{"text_format":"1","workbook":"xlsx","n_sheets":17,"sheets":["Portada","Indice","Regional-cuadro","Región CARD-graficos","Región CAPARD-graficos","Comparativo","Proyecciones","Seguimiento proyecciones","Gráficos-pais","Nota Técnica","Gráfico Seguimiento","Datos_Regional (M)","Datos Regional (T)","Saldo Operacional","Datos Gráfico-País","Hoja1","Hoja2"],"not_rendered":{"charts":47,"images":11,"macros":1,"external_links":10,"defined_names":10,"comments":3,"pivot_tables":0},"unopened":[],"bounds":{"document_bytes":16777216,"sheet_cells":100000,"rows_first":2000,"rows_last":500,"rows_between":2000,"halvings":0,"cell_chars":16384,"cell_head_chars":4096},"cells_cut":0,"cells_raw":0,"read":"whole","date_system":"1900"}

{"sheet":"Portada","index":0,"n_rows":0,"n_cols":0,"rows_kept":0,"cut":false,"hidden":false,"merged":[]}

{"sheet":"Indice","index":1,"n_rows":52,"n_cols":19,"rows_kept":52,"cut":false,"hidden":false,"merged":[[51,1,51,10],[14,1,14,10],[13,1,13,10],[12,1,12,10],[46,9,46,10],[17,3,17,8],[16,3,16,8],[46,6,46,7],[46,1,46,5],[45,9,45,10],[15,3,15,8],[47,1,47,7],[50,1,50,10],[8,3,9,9],[2,1,2,10],[3,1,3,10],[4,1,4,10]]}
[null,null,null,null,null,null,null,null,null,null,null,null,null,null,null,null,null,null,265]
[]
[null,"Consejo Monetario Centroamericano"]
[null,"Secretaría Ejecutiva"]
[null,"www.secmca.org"]
[]
[]
[]
[]
[]
[]
[]
[null,"REPORTE EJECUTIVO MENSUAL"]
[null,"DE INDICADORES MACROECONÓMICOS"]
[null,"DE CENTROAMÉRICA, PANAMÁ Y REPÚBLICA DOMINICANA"]
[]
[]
[null,null,null,null,null,null,null,null,null,"Con cifras al mes de:"]
[]
[]
[]
[]
[null,"CONTENIDO"]
[]
[]
[null,"INDICADORES REGIONALES"]
[null,null,null,"Principales indicadores macroeconómicos región CARD y CAPARD"]
[null,null,null,"CARD: evolución de los principales indicadores macroeconómicos"]
[null,null,null,"CAPARD: evolución de los principales indicadores macroeconómicos"]
[]
[null,"INDICADORES POR PAÍS"]
[null,null,null,"Cuadro comparativo por país"]
[null,null,null,"Proyecciones 2022-2023"]
[null,null,null,"Seguimiento de las proyecciones en 2022"]
[null,null,null,"Evolución de indicadores macroeconómicos seleccionados (series mensuales)"]
[null,null,null,"Nota técnica"]
[]
[]
[]
[]
[]
[]
[]
[]
[]
[null,null,null,null,null,null,null,null,null,"Nº265"]
[null,"Elaborado con información recibida al ",null,null,null,null,"2022-07-28",null,null,"REM N° 265"]
[null,null,null,null,null,null,null,null,null,"2022-06-19",2022]
[]
[]
[]
[null,"ADVERTENCIA\n   El Consejo Monetario Centroamericano y su Secretaría Ejecutiva autorizan la reproducción total, gráficos y cifras de esta publicación, siempre que se mencione la fuente. No  obstante, no asumen responsabilidad legal alguna o de cualquier otra índole, por la manipulación, interpretación personal y uso de dicha información.   \nDerechos Reservados © 2020"]

{"sheet":"Regional-cuadro","index":2,"n_rows":95,"n_cols":8,"rows_kept":95,"cut":false,"hidden":false,"merged":[[88,1,88,7],[113,1,113,21],[114,8,115,8],[95,1,95,7],[89,1,89,7],[92,1,92,7],[91,1,91,7],[90,1,90,7],[55,10,55,16],[56,10,56,16],[66,10,66,16],[41,6,41,7],[43,6,43,7],[47,6,47,7],[61,5,61,7],[63,6,63,7],[55,6,55,7],[82,1,82,7],[83,1,83,7],[85,1,85,7],[37,1,38,1],[37,6,37,7],[42,1,42,2],[80,1,80,6],[55,3,55,4],[69,6,69,7],[74,6,74,7],[61,2,61,4],[63,3,63,4],[69,3,69,4],[74,3,74,4],[32,1,33,1],[32,6,32,7],[37,3,37,4],[32,3,32,4],[32,2,33,2],[32,5,33,5],[37,2,38,2],[37,5,38,5],[13,6,13,7],[17,6,17,7],[22,6,22,7],[47,3,47,4],[24,10,24,16],[29,6,29,7],[43,3,43,4],[41,3,41,4],[22,3,22,4],[17,3,17,4],[13,3,13,4],[29,3,29,4],[2,0,2,7],[4,1,5,1],[4,3,5,4],[4,6,5,7],[4,2,5,2],[4,5,5,5],[10,3,10,4],[7,3,7,4],[7,6,7,7],[10,6,10,7],[4,10,4,16],[5,10,5,16]]}
["Consejo Monetario Centroamericano",null,null,null,null,null,{"$f":"CONCATENATE(Indice!$J$47,\",\")","v":"REM N° 265,"},{"$f":"Indice!$J$48","v":"2022-06-19"}]
["Secretaría Ejecutiva"]
["PRINCIPALES INDICADORES MACROECONÓMICOS REGIONALES"]
[]
[null,"Agregados Regionales",null,"Región CARD 1/",null,null,"Región CAPARD 1/"]
[]
[null,"I. SECTOR REAL"]
[null,"1. Indice de Precios al Consumidor (IPC)",null,{"$f":"IF([1]EJECUTIVO!$J$7=[1]EJECUTIVO!$J$5,[1]EJECUTIVO!$G$7,CONCATENATE([1]EJECUTIVO!$G$7,\"\n\",2021,\"                 \",2022))","v":"JUNIO\n2021                 2022"},null,null,{"$f":"IF([1]EJECUTIVO!$J$7=[1]EJECUTIVO!$J$5,[1]EJECUTIVO!$G$8,CONCATENATE([1]EJECUTIVO!$G$8,\"\n\",[1]EJECUTIVO!$I$5,\"                 \",[1]EJECUTIVO!$J$5))","v":"JUNIO\n2021                 2022"}]
[null,"    1.1 Variación interanual",null,{"$f":"CONCATENATE(ROUND([1]EJECUTIVO!$I$7,1),\" %\")","v":"5.2 %"},{"$f":"CONCATENATE(ROUND([1]EJECUTIVO!$J$7,1),\" 0%\")","v":"9 0%"},null,{"$f":"CONCATENATE(ROUND([1]EJECUTIVO!$I$8,1),\" %\")","v":"4.7 %"},{"$f":"CONCATENATE(ROUND([1]EJECUTIVO!$J$8,1),\" %\")","v":"8.5 %"}]
[]
[null,"2. Índice Mensual de Actividad Económica (IMAE)",null,{"$f":"IF([1]EJECUTIVO!$J$12=[1]EJECUTIVO!$J$10,[1]EJECUTIVO!$G$10,CONCATENATE([1]EJECUTIVO!$G$12,\"\n\",[1]EJECUTIVO!$I$10,\"                 \",[1]EJECUTIVO!$J$10))","v":"ABRIL\n2021                 2022"},null,null,{"$f":"IF([1]EJECUTIVO!$J$12=[1]EJECUTIVO!$J$10,[1]EJECUTIVO!$G$10,CONCATENATE([1]EJECUTIVO!$G$12,\"\n\",[1]EJECUTIVO!$I$10,\"                 \",[1]EJECUTIVO!$J$10))","v":"ABRIL\n2021                 2022"}]
[null,"    2.1 Variación acumulada de la tendencia-ciclo",null,{"$f":"CONCATENATE(ROUND([1]EJECUTIVO!$I$12,1),\" %\")","v":"8.1 %"},{"$f":"CONCATENATE(ROUND([1]EJECUTIVO!$J$12,1),\" %\")","v":"5.7 %"},null,{"$f":"CONCATENATE(ROUND([1]EJECUTIVO!$I$13,1),\" %\")","v":"6.7 %"},{"$f":"CONCATENATE(ROUND([1]EJECUTIVO!$J$13,1),\" %\")","v":"6.5 %"}]
[]
[null,"3. Producto Interno Bruto Trimestral (PIB)",null,{"$f":" CONCATENATE([1]EJECUTIVO!$G$17,\" TRIMESTRE \",\"\n\",[1]EJECUTIVO!$I$15,\"                 \",[1]EJECUTIVO!$J$15)","v":"I TRIMESTRE \n2021                 2022"},null,null,{"$f":" CONCATENATE([1]EJECUTIVO!$G$17,\" TRIMESTRE \",\"\n\",[1]EJECUTIVO!$I$15,\"                 \",[1]EJECUTIVO!$J$15)","v":"I TRIMESTRE \n2021                 2022"}]
[null,"    3.1 PIB nominal (millones de US$) ",null,{"$f":"[1]EJECUTIVO!$I$17","v":75059.081769550423},{"$f":"[1]EJECUTIVO!$J$17","v":85266.609099539273},null,{"$f":"[1]EJECUTIVO!$I$18","v":90053.155769550416},{"$f":"[1]EJECUTIVO!$J$17","v":85266.609099539273}]
[null,"    3.2 PIB real, tasa de variación interanual",null,{"$f":"CONCATENATE(ROUND([1]EJECUTIVO!$I$22,1),\" %\")","v":"2.6 %"},{"$f":"CONCATENATE(ROUND([1]EJECUTIVO!$J$22,1),\" %\")","v":"5.7 %"},null,{"$f":"CONCATENATE(ROUND([1]EJECUTIVO!$I$23,1),\" %\")","v":"0.9 %"},{"$f":"CONCATENATE(ROUND([1]EJECUTIVO!$J$23,1),\" %\")","v":"7 %"}]
[]
[null,"4. Producto Interno Bruto anual (PIB)",null,{"$f":"IF([1]EJECUTIVO!$J$5=[1]EJECUTIVO!$J$25-1,\"    ANUAL\",CONCATENATE(\" ANUAL\",\"         \n\",[1]EJECUTIVO!$I$30,\"                \",[1]EJECUTIVO!$J$30))","v":" ANUAL         \n2021                2022"},null,null,{"$f":"IF([1]EJECUTIVO!$J$25-1=[1]EJECUTIVO!$J$5,\"    ANUAL\",CONCATENATE(\" ANUAL\",\"         \n\",[1]EJECUTIVO!$I$25,\"                \",[1]EJECUTIVO!$J$25))","v":" ANUAL         \n2021                2022"}]
[null,"    4.1 PIB nominal (millones de US$) ",null,{"$f":"[1]EJECUTIVO!$I$27","v":315762.79656609107},{"$f":"[1]EJECUTIVO!$J$27","v":"n.d."},null,{"$f":"[1]EJECUTIVO!$I$28","v":379367.86234669382},{"$f":"[1]EJECUTIVO!$J$28","v":"n.d."}]
[null,"    4.2 PIB real, tasa de variación interanual",null,{"$f":"CONCATENATE(ROUND([1]EJECUTIVO!$I$32,1),\" %\")","v":"10.1 %"},{"$f":"CONCATENATE(ROUND([1]EJECUTIVO!$J$32,1),\" %\")","v":"4.2 %"},null,{"$f":"CONCATENATE(ROUND([1]EJECUTIVO!$I$33,1),\" %\")","v":"10.9 %"},"n.d."]
[]
[null,"II. SECTOR EXTERNO"]
[null,"1. Comercio Exterior 2/",null,{"$f":"CONCATENATE(\"ACUMULADO A \",[1]EJECUTIVO!$G$55,\"\n\",[1]EJECUTIVO!$I$37,\"                 \",[1]EJECUTIVO!$J$37)","v":"ACUMULADO A MARZO\n2021                 2022"},null,null,{"$f":"CONCATENATE(\"ACUMULADO A \",[1]EJECUTIVO!$G$55,\"\n\",[1]EJECUTIVO!$I$37,\"                 \",[1]EJECUTIVO!$J$37)","v":"ACUMULADO A MARZO\n2021                 2022"}]
[null,"    1.1 Balanza de bienes (millones de US$)",null,{"$f":"[1]EJECUTIVO!$I$55","v":-9498.4503523345775},{"$f":"[1]EJECUTIVO!$J$55","v":-15157.172110197896},null,{"$f":"[1]EJECUTIVO!$I$56","v":-11246.370352334578},{"$f":"[1]EJECUTIVO!$J$56","v":-17810.672110197895}]
[null,"  1.2 Exportaciones totales FOB (millones de US$)",null,{"$f":"[1]EJECUTIVO!$I$40","v":14485.185790061561},{"$f":"[1]EJECUTIVO!$J$40","v":17249.994833411307},null,{"$f":"[1]EJECUTIVO!$I$42","v":17270.475790061562},{"$f":"[1]EJECUTIVO!$J$42","v":20820.194833411308}]
[null,"    1.2.1 Tasa crecimiento interanual",null,{"$f":"CONCATENATE(ROUND([1]EJECUTIVO!$I$41,1),\" %\")","v":"9.3 %"},{"$f":"CONCATENATE(ROUND([1]EJECUTIVO!$J$41,1),\" %\")","v":"19.1 %"},null,{"$f":"CONCATENATE(ROUND([1]EJECUTIVO!$I$43,1),\" %\")","v":"9 %"},{"$f":"CONCATENATE(ROUND([1]EJECUTIVO!$J$43,1),\" %\")","v":"20.6 %"}]
[null,"  1.3 Importaciones totales CIF (millones de US$)",null,{"$f":"[1]EJECUTIVO!$I$48","v":23983.636142396135},{"$f":"[1]EJECUTIVO!$J$48","v":32407.166943609198},null,{"$f":"[1]EJECUTIVO!$I$50","v":28516.846142396134},{"$f":"[1]EJECUTIVO!$J$50","v":38630.866943609195}]
[null,"    1.3.1 Tasa crecimiento interanual",null,{"$f":"CONCATENATE(ROUND([1]EJECUTIVO!$I$49,1),\" %\")","v":"14.2 %"},{"$f":"CONCATENATE(ROUND([1]EJECUTIVO!$J$49,1),\" %\")","v":"35.1 %"},null,{"$f":"CONCATENATE(ROUND([1]EJECUTIVO!$I$51,1),\" %\")","v":"13.9 %"},{"$f":"CONCATENATE(ROUND([1]EJECUTIVO!$J$51,1),\" %\")","v":"35.5 %"}]
[]
[null,"2. Ingreso de Remesas familiares ","sin Costa Rica",{"$f":"CONCATENATE(\"ACUMULADO A \",[1]EJECUTIVO!$G$72,\"\n\",[1]EJECUTIVO!$I$63,\"                 \",[1]EJECUTIVO!$J$63)","v":"ACUMULADO A MAYO\n2021                 2022"},null,null,{"$f":"CONCATENATE(\"ACUMULADO A \",[1]EJECUTIVO!$G$71,\"\n\",2020,\"                 \",2021)","v":"ACUMULADO A DICIEMBRE\n2020                 2021"}]
[null,"    2.1 Ingreso de Remesas familiares (millones de US$)",null,{"$f":"[1]EJECUTIVO!$I$72","v":16747.108022392335},{"$f":"[1]EJECUTIVO!$J$72","v":18821.64453833918},null,{"$f":"[1]EJECUTIVO!$I$71","v":33975.655257363767},{"$f":"[1]EJECUTIVO!$J$71","v":43803.766612999832}]
[]
[null,"3. Inversión Extranjera Directa (IED)",null,{"$f":"CONCATENATE(\"ACUMULADO AL\",\" \",[1]EJECUTIVO!$G$81,\" \",\"TRIMESTRE\")","v":"ACUMULADO AL I TRIMESTRE"},null,null,{"$f":"CONCATENATE(\"ACUMULADO AL\",\" \",[1]EJECUTIVO!$G$82,\" \",\"TRIMESTRE\")","v":"ACUMULADO AL IV TRIMESTRE"}]
[null,null,null,{"$f":"[1]EJECUTIVO!$I$84","v":2021},{"$f":"[1]EJECUTIVO!$J$84","v":2022},null,{"$f":"[1]EJECUTIVO!$I$84","v":2021},{"$f":"[1]EJECUTIVO!$J$84","v":2022}]
[null,"3.1. IED en la economía declarante, acumulado (millones de US$)",null,{"$f":"[1]EJECUTIVO!$I$86","v":2961.4905976595664},{"$f":"[1]EJECUTIVO!$J$86","v":3094.6248478777734},null,{"$f":"[1]EJECUTIVO!$I$87","v":7321.6900311755744},{"$f":"[1]EJECUTIVO!$J$87","v":13847.777472330441}]
[null,"3.2. Tasa de Variación interanual",null,{"$f":"CONCATENATE(ROUND((([1]EJECUTIVO!$I$86/[1]EJECUTIVO!$H$86)-1)*100,1),\" %\")","v":"27.9 %"},{"$f":"CONCATENATE(ROUND((([1]EJECUTIVO!$J$86/[1]EJECUTIVO!$I$86)-1)*100,1),\" %\")","v":"4.5 %"},null,{"$f":"CONCATENATE(ROUND((([1]EJECUTIVO!$I$87/[1]EJECUTIVO!$H$87)-1)*100,1),\" %\")","v":"-41.5 %"},{"$f":"CONCATENATE(ROUND((([1]EJECUTIVO!$J$87/[1]EJECUTIVO!$I$87)-1)*100,1),\" %\")","v":"89.1 %"}]
[]
[null,"4. Cuenta Corriente ",null,{"$f":"CONCATENATE(\"ACUMULADO AL\",\" \",[1]EJECUTIVO!$G$76,\" \",\"TRIMESTRE\")","v":"ACUMULADO AL I TRIMESTRE"},null,null,{"$f":"CONCATENATE(\"ACUMULADO AL\",\" \",[1]EJECUTIVO!$G$77,\" \",\"TRIMESTRE\")","v":"ACUMULADO AL IV TRIMESTRE"}]
[null,null,null,{"$f":"[1]EJECUTIVO!$I$74","v":2021},{"$f":"[1]EJECUTIVO!$J$74","v":2022},null,{"$f":"[1]EJECUTIVO!$I$74","v":2021},{"$f":"[1]EJECUTIVO!$J$74","v":2022}]
[null,"4.1. Cuenta Corriente (millones de US$)",null,{"$f":"[1]EJECUTIVO!$I$76","v":96.048858759497875},{"$f":"[1]EJECUTIVO!$J$76","v":-2685.0598997001744},null,{"$f":"[1]EJECUTIVO!$I$77","v":4565.708639813949},{"$f":"[1]EJECUTIVO!$J$77","v":-6561.3145622880938}]
[]
[null,"5. Reservas Internacionales Netas del Banco Central (RIN) 3/",null,{"$f":"CONCATENATE(\"SALDO A \",[1]EJECUTIVO!$G$65,\"                              \",2021,\"                 \",2022)","v":"SALDO A JUNIO                              2021                 2022"},null,null,{"$f":"CONCATENATE(\"SALDO A \",[1]EJECUTIVO!$G$66,\"                           \",[1]EJECUTIVO!$I$63,\"                 \",[1]EJECUTIVO!$J$63)","v":"SALDO A MAYO                           2021                 2022"}]
[null,"    5.1 RIN del Banco Central (millones de US$)",null,{"$f":"[1]EJECUTIVO!$I$65","v":53244.159786042132},{"$f":"[1]EJECUTIVO!$J$65","v":56642.633040231231},null,{"$f":"[1]EJECUTIVO!$I$66","v":61499.473028939756},{"$f":"[1]EJECUTIVO!$J$66","v":66498.758397201658}]
[null,null,null,{"$f":"CONCATENATE(\"ACUMULADO A \",[1]EJECUTIVO!$G$60,\"\n\",[1]EJECUTIVO!$I$58,\"                 \",[1]EJECUTIVO!$J$58)","v":"ACUMULADO A MARZO\n2021                 2022"},null,null,{"$f":"CONCATENATE(\"ACUMULADO A \",[1]EJECUTIVO!$G$61,\"\n\",[1]EJECUTIVO!$I$58,\"                 \",[1]EJECUTIVO!$J$58)","v":"ACUMULADO A MARZO\n2021                 2022"}]
[null,"    5.2 RIN Banco Central/ Importaciones\n          (meses de importación promedio)",null,{"$f":"[1]EJECUTIVO!$I$60","v":6.5008251110374893},{"$f":"[1]EJECUTIVO!$J$60","v":6.0204358088768775},null,{"$f":"[1]EJECUTIVO!$I$61","v":6.2975870743567866},{"$f":"[1]EJECUTIVO!$J$61","v":5.8560576183645612}]
[]
[null,"III. SECTOR FISCAL"]
[null,"1. Resultado del Gobierno Central ",null,{"$f":"CONCATENATE(\"ACUMULADO A \",[1]EJECUTIVO!$G$93,\"\n\",[1]EJECUTIVO!$I$91,\"                 \",[1]EJECUTIVO!$J$91)","v":"ACUMULADO A MARZO\n2021                 2022"},null,null,{"$f":"CONCATENATE(\"ACUMULADO A \",[1]EJECUTIVO!$G$94,\"\n\",[1]EJECUTIVO!$I$91,\"                 \",[1]EJECUTIVO!$J$91)","v":"ACUMULADO A MARZO\n2021                 2022"}]
[null,"    1.1 Ingresos totales del Gobierno Central, incluye donaciones (millones US$)",null,{"$f":"[1]EJECUTIVO!$I$93","v":11740.808782339067},{"$f":"[1]EJECUTIVO!$J$93","v":13560.44685288009},null,{"$f":"[1]EJECUTIVO!$I$94","v":13242.208782339067},{"$f":"[1]EJECUTIVO!$J$94","v":15333.646852880091}]
[null,"    1.2 Gastos totales del Gobierno Central (millones US$)",null,{"$f":"[1]EJECUTIVO!$I$98","v":12837.889066984391},{"$f":"[1]EJECUTIVO!$J$98","v":14136.071724850841},null,{"$f":"[1]EJECUTIVO!$I$99","v":15525.389066984391},{"$f":"[1]EJECUTIVO!$J$99","v":17379.37172485084}]
[null,"    1.3 Donaciones recibidas (millones US$)",null,{"$f":"[1]EJECUTIVO!$I$103","v":71.890010880806884},{"$f":"[1]EJECUTIVO!$J$103","v":30.062083043626842},null,{"$f":"[1]EJECUTIVO!$I$104","v":71.890010880806884},{"$f":"[1]EJECUTIVO!$J$104","v":30.062083043626842}]
[null,"    1.4 Resultado del Gobierno Central (millones US$)",null,{"$f":"[1]EJECUTIVO!$I$108","v":-1025.1902737645148},{"$f":"[1]EJECUTIVO!$J$108","v":-545.56278892712442},null,{"$f":"[1]EJECUTIVO!$I$109","v":-2211.290273764515},{"$f":"[1]EJECUTIVO!$J$109","v":-2015.6627889271244}]
[null,"    1.5 Resultado del Gobierno Central / PIB",null,{"$f":"[1]EJECUTIVO!$I$113","v":-3.2467101410090793E-3},{"$f":"[1]EJECUTIVO!$J$113","v":-1.6020392342427719E-3},null,{"$f":"[1]EJECUTIVO!$I$114","v":-5.8288813925510587E-3},{"$f":"[1]EJECUTIVO!$J$114","v":-4.9038739606756115E-3}]
[]
[]
[null,"2. Deuda Pública",null,{"$f":"IF([1]EJECUTIVO!$J$49=[1]EJECUTIVO!$J$5,[1]EJECUTIVO!$G$118,CONCATENATE([1]EJECUTIVO!$G$118,\"\n\",[1]EJECUTIVO!$I$116,\"                 \",[1]EJECUTIVO!$J$116))","v":"ABRIL\n2021                 2022"},null,null,{"$f":"IF([1]EJECUTIVO!$J$49=[1]EJECUTIVO!$J$5,[1]EJECUTIVO!$G$119,CONCATENATE([1]EJECUTIVO!$G$119,\"\n\",[1]EJECUTIVO!$I$116,\"                 \",[1]EJECUTIVO!$J$116))","v":"ABRIL\n2021                 2022"}]
[null,"    2.1 Deuda Interna (millones de US$) 4/",null,{"$f":"[1]EJECUTIVO!$I$118","v":96972.55642797178},{"$f":"[1]EJECUTIVO!$J$118","v":99870.620211293062},null,{"$f":"[1]EJECUTIVO!$I$119","v":103614.92642797178},{"$f":"[1]EJECUTIVO!$J$119","v":107524.35021129306}]
[null,"    2.2 Deuda Externa (millones de US$)",null,{"$f":"[1]EJECUTIVO!$I$123","v":84302.406131165626},{"$f":"[1]EJECUTIVO!$J$123","v":92012.804573848902},null,{"$f":"[1]EJECUTIVO!$I$124","v":116054.04613116563},{"$f":"[1]EJECUTIVO!$J$124","v":127298.96457384891}]
[null,"    2.3 Deuda Total (millones de US$) 4/",null,{"$f":"[1]EJECUTIVO!$I$128","v":181274.96255913744},{"$f":"[1]EJECUTIVO!$J$128","v":191883.42478514198},null,{"$f":"[1]EJECUTIVO!$I$129","v":219668.97255913744},{"$f":"[1]EJECUTIVO!$J$129","v":234823.31478514196}]
[null,"    2.4 Deuda Total / PIB 4/",null,{"$f":"IF(ISERROR([1]EJECUTIVO!$I$133/100),\"n.d.\",[1]EJECUTIVO!$I$133/100)","v":0.57408587880046691},{"$f":"IF(ISERROR([1]EJECUTIVO!$J$133/100),\"n.d.\",[1]EJECUTIVO!$J$133/100)","v":0.5634636033575452},null,{"$f":"IF(ISERROR([1]EJECUTIVO!$I$134/100),\"n.d.\",[1]EJECUTIVO!$I$134/100)","v":0.57903948742602773},{"$f":"IF(ISERROR([1]EJECUTIVO!$J$134/100),\"n.d.\",[1]EJECUTIVO!$J$134/100)","v":0.57129791007717201}]
[]
[null,"Agregados Regionales","Región CARD",null,null,"Región CAPARD"]
[null,"IV. SECTOR MONETARIO  ",{"$f":"+[1]EJECUTIVO!$J$138","v":2022},{"$f":"+[1]EJECUTIVO!$I$138","v":2021},{"$f":"+[1]EJECUTIVO!$J$138","v":2022},{"$f":"+[1]EJECUTIVO!$J$146","v":2022},{"$f":"+[1]EJECUTIVO!$I$146","v":2021},{"$f":"+[1]EJECUTIVO!$J$146","v":2022}]
[null,"1. Agregados Monetarios",{"$f":"CONCATENATE(\"Porcentaje respecto a M3 a \",[1]EJECUTIVO!$G$141)","v":"Porcentaje respecto a M3 a FEBRERO"},{"$f":"CONCATENATE(\"Variación Interanual a  \",[1]EJECUTIVO!$G$141)","v":"Variación Interanual a  FEBRERO"},null,{"$f":"CONCATENATE(\"Porcentaje respecto a M3 a \",[1]EJECUTIVO!$G$141)","v":"Porcentaje respecto a M3 a FEBRERO"},{"$f":"CONCATENATE(\"Variación Interanual a  \",[1]EJECUTIVO!$G$141)","v":"Variación Interanual a  FEBRERO"}]
[null,"1.1 M1 5/",{"$f":"INDEX('[1]MONE(M)CARD'!$FA:$FJ,[1]EJECUTIVO!$E$149+6,3)/100","v":0.34549424615520608},{"$f":"INDEX('[1]MONE(M)CARD'!$EQ:$EZ,[1]EJECUTIVO!$E$149-6,3)/100","v":0.22761501998155276},{"$f":"INDEX('[1]MONE(M)CARD'!$EQ:$EZ,[1]EJECUTIVO!$E$149+6,3)/100","v":0.10506021877464346},{"$f":"INDEX('[1]MONE(M)CAPARD'!$FW:$GF,[1]EJECUTIVO!$E$149+6,3)/100","v":0.32695698556992497},{"$f":"INDEX('[1]MONE(M)CAPARD'!$FM:$FV,[1]EJECUTIVO!$E$149-6,3)/100","v":0.2173589271574361},{"$f":"INDEX('[1]MONE(M)CAPARD'!$FM:$FV,[1]EJECUTIVO!$E$149+6,3)/100","v":9.3974567129134781E-2}]
[null,"1.2 M2 6/",{"$f":"INDEX('[1]MONE(M)CARD'!$FA:$FJ,[1]EJECUTIVO!$E$149+6,6)/100","v":0.75376360538072906},{"$f":"INDEX('[1]MONE(M)CARD'!$EQ:$EZ,[1]EJECUTIVO!$E$149-6,6)/100","v":0.1306802808607106},{"$f":"INDEX('[1]MONE(M)CARD'!$EQ:$EZ,[1]EJECUTIVO!$E$149+6,6)/100","v":8.006723032038042E-2},{"$f":"INDEX('[1]MONE(M)CAPARD'!$FW:$GF,[1]EJECUTIVO!$E$149+6,6)/100","v":0.79910492612730766},{"$f":"INDEX('[1]MONE(M)CAPARD'!$FM:$FV,[1]EJECUTIVO!$E$149-6,6)/100","v":0.11679180380453304},{"$f":"INDEX('[1]MONE(M)CAPARD'!$FM:$FV,[1]EJECUTIVO!$E$149+6,6)/100","v":1.1532589989482034E-2}]
[null,"1.3 M3 7/",{"$f":"INDEX('[1]MONE(M)CARD'!$FA:$FJ,[1]EJECUTIVO!$E$149+6,10)/100","v":1},{"$f":"INDEX('[1]MONE(M)CARD'!$EQ:$EZ,[1]EJECUTIVO!$E$149-6,10)/100","v":0.13833758498848181},{"$f":"INDEX('[1]MONE(M)CARD'!$EQ:$EZ,[1]EJECUTIVO!$E$149+6,10)/100","v":8.071728283490319E-2},{"$f":"INDEX('[1]MONE(M)CAPARD'!$FW:$GF,[1]EJECUTIVO!$E$149+6,10)/100","v":1},{"$f":"INDEX('[1]MONE(M)CAPARD'!$FM:$FV,[1]EJECUTIVO!$E$149-6,10)/100","v":0.12520593018479742},{"$f":"INDEX('[1]MONE(M)CAPARD'!$FM:$FV,[1]EJECUTIVO!$E$149+6,10)/100","v":2.5070915523813353E-2}]
[null,"1.4 Base Monetaria Amplia 8/",{"$f":"INDEX('[1]MONE(M)CARD'!$FM:$FM,[1]EJECUTIVO!$E$149+6,1)/100","v":0.32200574976302548},{"$f":"INDEX('[1]MONE(M)CARD'!$FN:$FN,[1]EJECUTIVO!$E$149-6,1)/100","v":0.16679792978710098},{"$f":"INDEX('[1]MONE(M)CARD'!$FN:$FN,[1]EJECUTIVO!$E$149+6,1)/100","v":7.6821559320154664E-2},{"$f":"INDEX('[1]MONE(M)CAPARD'!$GI:$GI,[1]EJECUTIVO!$E$149+6,1)/100","v":0.27419471972567588},{"$f":"INDEX('[1]MONE(M)CAPARD'!$GJ:$GJ,[1]EJECUTIVO!$E$149-6,1)/100","v":0.16507884609968393},{"$f":"INDEX('[1]MONE(M)CAPARD'!$GJ:$GJ,[1]EJECUTIVO!$E$149+6,1)/100","v":7.5648382413804338E-2}]
[]
[null,"2. Crédito Neto de las OSD 9/ con el Sector Público",{"$f":"CONCATENATE(\"Saldo en millones de US$ a \",[1]EJECUTIVO!$G$141)","v":"Saldo en millones de US$ a FEBRERO"},{"$f":"CONCATENATE(\"Variación Interanual a  \",[1]EJECUTIVO!$G$141)","v":"Variación Interanual a  FEBRERO"},null,{"$f":"CONCATENATE(\"Saldo en millones de US$ a \",[1]EJECUTIVO!$G$141)","v":"Saldo en millones de US$ a FEBRERO"},{"$f":"CONCATENATE(\"Variación Interanual a  \",[1]EJECUTIVO!$G$141)","v":"Variación Interanual a  FEBRERO"}]
[null,"2.1 Total Activos",{"$f":"INDEX('[1]MONE(M)CARD'!$FO:$FW,[1]EJECUTIVO!$E$149+6,9)","v":35041.07053168572},{"$f":"INDEX('[1]MONE(M)CARD'!$GX:$HE,[1]EJECUTIVO!$E$149-6,8)/100","v":0.27945038046168058},{"$f":"INDEX('[1]MONE(M)CARD'!$GX:$HE,[1]EJECUTIVO!$E$149+6,8)/100","v":0.15819289319465901},{"$f":"INDEX('[1]MONE(M)CAPARD'!$GK:$GS,[1]EJECUTIVO!$E$149+6,9)","v":38771.822383625717},{"$f":"INDEX('[1]MONE(M)CAPARD'!$HT:$IA,[1]EJECUTIVO!$E$149-6,8)/100","v":0.28575064367998482},{"$f":"INDEX('[1]MONE(M)CAPARD'!$HT:$IA,[1]EJECUTIVO!$E$149+6,8)/100","v":0.14821449254304153}]
[null,"2.2 Total Pasivos",{"$f":"INDEX('[1]MONE(M)CARD'!$FX:$GF,[1]EJECUTIVO!$E$149+6,8)","v":17226.602909060519},{"$f":"INDEX('[1]MONE(M)CARD'!$HF:$HN,[1]EJECUTIVO!$E$149-6,8)/100","v":0.10720618251361923},{"$f":"INDEX('[1]MONE(M)CARD'!$HF:$HN,[1]EJECUTIVO!$E$149+6,8)/100","v":0.15980387370839644},{"$f":"INDEX('[1]MONE(M)CAPARD'!$GT:$HB,[1]EJECUTIVO!$E$149+6,8)","v":19047.351968180516},{"$f":"INDEX('[1]MONE(M)CAPARD'!$IB:$IJ,[1]EJECUTIVO!$E$149-6,8)/100","v":8.5005083583938865E-2},{"$f":"INDEX('[1]MONE(M)CAPARD'!$IB:$IJ,[1]EJECUTIVO!$E$149+6,8)/100","v":0.11695918251957016}]
[null,"2.3 Crédito neto",{"$f":"INDEX('[1]MONE(M)CARD'!$FX:$GF,[1]EJECUTIVO!$E$149+6,9)","v":17814.467622625201},{"$f":"INDEX('[1]MONE(M)CARD'!$HF:$HN,[1]EJECUTIVO!$E$149-6,9)/100","v":0.50527552276791643},{"$f":"INDEX('[1]MONE(M)CARD'!$HF:$HN,[1]EJECUTIVO!$E$149+6,9)/100","v":0.15663932443053863},{"$f":"INDEX('[1]MONE(M)CAPARD'!$GT:$HB,[1]EJECUTIVO!$E$149+6,9)","v":19724.470415445201},{"$f":"INDEX('[1]MONE(M)CAPARD'!$IB:$IJ,[1]EJECUTIVO!$E$149-6,9)/100","v":0.58493386080258558},{"$f":"INDEX('[1]MONE(M)CAPARD'!$IB:$IJ,[1]EJECUTIVO!$E$149+6,9)/100","v":0.18010311210435326}]
[]
[null,"3. Crédito 10/ de las OSD 9/ con el Sector Privado",{"$f":"CONCATENATE(\"Saldo en millones de US$ a \",[1]EJECUTIVO!$G$141)","v":"Saldo en millones de US$ a FEBRERO"},{"$f":"CONCATENATE(\"Variación Interanual a  \",[1]EJECUTIVO!$G$141)","v":"Variación Interanual a  FEBRERO"},null,{"$f":"CONCATENATE(\"Saldo en millones de US$ a \",[1]EJECUTIVO!$G$141)","v":"Saldo en millones de US$ a FEBRERO"},{"$f":"CONCATENATE(\"Variación Interanual a  \",[1]EJECUTIVO!$G$141)","v":"Variación Interanual a  FEBRERO"}]
[null,"    3.1 Otras Sociedades No Financieras 11/",{"$f":"INDEX('Datos_Regional (M)'!AF:AK,[1]EJECUTIVO!$E$149-1,5)","v":62431.537115451596},{"$f":"INDEX('Datos_Regional (M)'!AL:AR,[1]EJECUTIVO!$E$149-13,2)/100","v":1.5746736214950596E-2},{"$f":"INDEX('Datos_Regional (M)'!AL:AR,[1]EJECUTIVO!$E$149-1,2)/100","v":9.1542404832367641E-2},{"$f":"INDEX('Datos_Regional (M)'!AW:BB,[1]EJECUTIVO!$E$149-1,5)","v":86431.155435231587},{"$f":"INDEX('Datos_Regional (M)'!BC:BI,[1]EJECUTIVO!$E$149-13,2)/100","v":-3.491842499210529E-3},{"$f":"INDEX('Datos_Regional (M)'!BC:CI,[1]EJECUTIVO!$E$149-1,2)/100","v":5.9935981408194339E-2}]
[null,"    3.2 Hogares e ISFLSH 12/",{"$f":"INDEX('Datos_Regional (M)'!AF:AK,[1]EJECUTIVO!$E$149-1,4)","v":67131.526843831016},{"$f":"INDEX('Datos_Regional (M)'!AL:AR,[1]EJECUTIVO!$E$149-13,5)/100","v":-9.4551731076023549E-3},{"$f":"INDEX('Datos_Regional (M)'!AL:AR,[1]EJECUTIVO!$E$149-1,5)/100","v":8.8174541578485144E-2},{"$f":"INDEX('Datos_Regional (M)'!AW:BB,[1]EJECUTIVO!$E$149-1,4)","v":94868.67254470101},{"$f":"INDEX('Datos_Regional (M)'!BC:BI,[1]EJECUTIVO!$E$149-13,5)/100","v":-4.7695562932869029E-3},{"$f":"INDEX('Datos_Regional (M)'!BC:CI,[1]EJECUTIVO!$E$149-1,5)/100","v":7.6003339356723432E-2}]
[null,"    3.3 Otros 13/",{"$f":"INDEX('Datos_Regional (M)'!AF:AK,[1]EJECUTIVO!$E$149-1,2)","v":1795.2737164662808},{"$f":"INDEX('Datos_Regional (M)'!AL:AR,[1]EJECUTIVO!$E$149-13,3)/100","v":4.2554618602428151E-2},{"$f":"INDEX('Datos_Regional (M)'!AL:AR,[1]EJECUTIVO!$E$149-1,3)/100","v":0.46613615341186621},{"$f":"INDEX('Datos_Regional (M)'!AW:BB,[1]EJECUTIVO!$E$149-1,2)","v":2546.1339822362811},{"$f":"INDEX('Datos_Regional (M)'!BC:BI,[1]EJECUTIVO!$E$149-13,3)/100","v":-2.7469086729762227E-3},{"$f":"INDEX('Datos_Regional (M)'!BC:CI,[1]EJECUTIVO!$E$149-1,3)/100","v":0.45671678214579869}]
[null,"    3.4 Total",{"$f":"INDEX('Datos_Regional (M)'!AF:AK,[1]EJECUTIVO!$E$149-1,6)","v":131358.33767574889},{"$f":"INDEX('Datos_Regional (M)'!AL:AR,[1]EJECUTIVO!$E$149-13,6)/100","v":2.903945588976109E-3},{"$f":"INDEX('Datos_Regional (M)'!AL:AR,[1]EJECUTIVO!$E$149-1,6)/100","v":9.36314345949565E-2},{"$f":"INDEX('Datos_Regional (M)'!AW:BB,[1]EJECUTIVO!$E$149-1,6)","v":183845.96196216886},{"$f":"INDEX('Datos_Regional (M)'!BC:CI,[1]EJECUTIVO!$E$149-13,6)/100","v":-4.1416987234700331E-3},{"$f":"INDEX('Datos_Regional (M)'!BC:CI,[1]EJECUTIVO!$E$149-1,6)/100","v":7.2242914449644369E-2}]
[null,"Fuente: Cálculos de la Secretaría Ejecutiva con base en la información proporcionada por los Bancos Centrales de la región."]
[null,"*/ No incluye las remesas de Costa Rica debido a que se compilan trimestralmente.  En 2013 Costa Rica recibió 229 millones de US$ de remesas netas (ingresos-egresos)."]
[null,"Notas:"]
[null,"1/ La región CARD incluye a los países centroamericanos y a la República Dominicana. La región CAPARD incluye a los países centroamericanos, Panamá y la República Dominicana."]
[null,"2/ Incluye comercio intrarregional.  No incluye la maquila en el caso de Honduras. En Panamá incluye: exportación de mercancías generales, reexportaciones \nnacionales y reexportaciones de la Zona Libre de Colón."]
[null,"3/ En Panamá, al no tener banco central, las RIN son administradas por el Banco Nacional de Panamá (BNP)."]
[null,"4/ Incluye la deuda interna consolidada en los casos de Guatemala, Honduras y República Dominicana, tal como lo recomienda la versión del 2001 del Manual de Estadísticas de Finanzas Públicas del FMI. En el resto de países se considera únicamente la deuda interna bruta."]
[null,"5/ M1: incluye billetes y monedas en poder del público más los depósitos transferibles en MN."]
[null,"6/ M2: incluye M1 más otros depósitos en MN, más valores distintos de acciones emitidos por las sociedades de depósito en moneda nacional."]
[null,"7/ M3: incluye M2 más depósitos transferibles en ME, más otros depósitos en ME, más valores distintos de acciones emitidos por las sociedades de depósito en ME."]
[null,"8/ Base Monetaria Amplia: incluye billetes y monedas en circulación, más depósitos transferibles por concepto de encaje en MN, más valores por concepto de encaje en MN, más pasivos frente a OSD de encaje legal en ME, más otros pasivos frente a OSD a corto plazo, más depósitos y valores de otros sectores."]
[null,"9/ OSD corresponde a otras sociedades de depósito, por ejemplo: Bancos comerciales, cooperativas, y otras sociedades de depósito que reciben dinero de público."]
[null,"10/  Incluye valores distintos de acciones y préstamos."]
[null,"11/ Otras sociedades no Financieras abarca las sociedades y cuasisociedades que se dedican principalmente a la producción de bienes y servicios no financieros."]
[null,"12/ ISFLSH corresponde a Instituciones sin fines de lucro que dan servicios a los hogares, en estas podemos encontrar organizaciones del tipo ONG´s."]
[null,"13/ Incluye otros sectores residentes, por ejemplo otras sociedades financieras."]

{"sheet":"Región CARD-graficos","index":3,"n_rows":103,"n_cols":19,"rows_kept":103,"cut":false,"hidden":false,"merged":[[116,1,117,7],[55,1,55,7],[54,1,54,7],[54,10,54,17],[55,10,55,17],[70,1,70,8],[71,1,71,8],[70,10,70,17],[66,9,67,9],[71,10,71,17],[104,1,104,17],[68,10,69,17],[103,1,103,17],[102,1,102,17],[68,1,69,8],[2,1,2,17],[4,10,4,17],[5,10,5,17],[20,1,20,7],[21,1,21,7],[20,10,20,17],[21,10,21,17],[4,1,4,8],[5,1,5,8],[35,10,35,17],[53,10,53,17],[38,1,38,8],[37,10,37,17],[37,1,37,8],[38,10,38,17]]}
[null,"Consejo Monetario Centroamericano",null,null,null,null,null,null,null,null,null,null,null,null,null,{"$f":"CONCATENATE(Indice!$J$47,\",\")","v":"REM N° 265,"},{"$f":"Indice!$J$48","v":"2022-06-19"}]
[null,"Secretaría Ejecutiva"]
[null,"REGIÓN CARD: EVOLUCIÓN DE LOS PRINCIPALES INDICADORES MACROECONÓMICOS"]
[]
[null,"Región CARD: Inflación, serie original y tendencia de largo plazo",null,null,null,null,null,null,null,null,"Región CARD: Ciclo de crecimiento de la Actividad Económica"]
[null,"(cálculos basados en el IPC, variación interanual)",null,null,null,null,null,null,null,null,"(cálculos basados en el IMAE, variación interanual)"]
[]
[]
[]
[]
[]
[]
[]
[]
[]
[]
[]
[]
[]
[]
[null,"Región CARD:",null,null,null,null,null,null,null,null,"Región CARD:"]
[null,"Reservas Internacionales Netas del Banco Central",null,null,null,null,null,null,null,null," Flujos trimestrales de Inversión Extranjera Directa (IED)\nen la economía declarante"]
[]
[]
[]
[]
[null,null,null,null,null,null,null,null,null,null,null,null,null,null,null,null,null,null," "]
[]
[]
[]
[]
[]
[]
[]
[]
[null,null,null,null,null,null,null,null,null,null,"Los flujos negativos observados en El Salvador y Honduras surgen debido a amortizaciones netas de préstamos con el inversionista directo, mayores a lo registrado por acciones u otras aportaciones de capital, los cuales por metodología deben sumarse al valor de la IED. El valor de Guatemala del IV trimestre de 2021 corresponde a la venta de una empresa de telecomunicaciones a un no residente.\n"]
[]
[null,{"$f":"CONCATENATE(\"Región CARD:\")","v":"Región CARD:"},null,null,null,null,null,null,null,null,"Región CARD:"]
[null,"Flujos mensuales de comercio exterior",null,null,null,null,null,null,null,null,"Ingreso de Remesas, sin acumular"]
[]
[]
[]
[]
[]
[]
[]
[]
[]
[]
[]
[]
[]
[]
[]
[null,"Región CARD:",null,null,null,null,null,null,null,null,"Región CARD: Saldo Operacional (con donaciones) del Gobierno Central\ncon respecto al PIB"]
[null,"Deuda Pública Bruta Total, Interna y Externa",null,null,null,null,null,null,null,null,{"$f":"CONCATENATE(\"Datos a \",'Saldo Operacional'!C4,\" de cada año\")","v":"Datos a marzo de cada año"}]
[]
[]
[]
[]
[]
[]
[]
[]
[]
[]
[]
[]
[null,"Incluye la deuda interna consolidada en los casos de Guatemala, Honduras y República Dominicana, tal como lo recomienda la versión del 2001 del Manual de Estadísticas de Finanzas Públicas del FMI. En el resto de países se considera únicamente la deuda interna bruta.\nA partir de 2019 se dispone únicamente de datos trimestrales de Nicaragua."]
[]
[null,"Región CARD:",null,null,null,null,null,null,null,null,"Región CARD:"]
[null,{"$f":"CONCATENATE(\"Agregados Monetarios (Millones US$)\",\" \",\"y variación interanual\")","v":"Agregados Monetarios (Millones US$) y variación interanual"},null,null,null,null,null,null,null,null,{"$f":"CONCATENATE(\"Crédito Total (Millones US$)\",\" \",\"y variación interanual\")","v":"Crédito Total (Millones US$) y variación interanual"}]
[]
[]
[]
[]
[]
[]
[]
[]
[]
[]
[]
[]
[]
[]
[]
[]
[]
[null,"OJO, REVISAR AÑO DE INICIO DE TODOS ESTOS GRAFICOS PARA ARMONIZAR !!!"]
[]
[null,null,"deuda: a partir de diciembre 2011 mensual"]
[null,null,"remesas: desde 2006"]
[null,null,"ied:2008"]
[null,null,"agregados monetarios:2002"]
[null,null,"crédito osd:2003"]
[]
[null,null,"***la serie mas corta es la de remesas 2008, la extensión se puede evaluar a partir de esta fecha para que se armonizado pero se perdería información en otras series"]
[]
[]
[null,null,null,null,null,null,null,null,null,null,"OSD: Corresponde a Otras Sociedades de Depósito, por ejemplo: bancos comerciales y cooperativas. "]
[]
[null,"La región CARD la conforman los países de Centroamérica y República Dominicana"]

{"sheet":"Región CAPARD-graficos","index":4,"n_rows":103,"n_cols":19,"rows_kept":103,"cut":false,"hidden":false,"merged":[[104,1,104,17],[116,1,117,7],[68,10,69,17],[70,1,70,8],[70,10,70,17],[71,1,71,8],[71,10,71,17],[102,1,102,17],[103,1,103,17],[100,1,100,8],[100,10,100,17],[99,10,99,17],[68,1,69,8],[66,9,67,9],[21,1,21,7],[21,10,21,17],[34,10,35,17],[37,1,37,8],[37,10,37,17],[38,1,38,8],[38,10,38,17],[53,10,53,17],[54,1,54,7],[54,10,54,17],[55,1,55,7],[55,10,55,17],[34,1,35,8],[20,1,20,7],[20,10,20,17],[2,1,2,17],[4,10,4,17],[5,1,5,7],[5,10,5,17],[4,1,4,8]]}
[null,"Consejo Monetario Centroamericano",null,null,null,null,null,null,null,null,null,null,null,null,null,{"$f":"CONCATENATE(Indice!$J$47,\",\")","v":"REM N° 265,"},{"$f":"Indice!$J$48","v":"2022-06-19"}]
[null,"Secretaría Ejecutiva"]
[null,"REGIÓN CAPARD: EVOLUCIÓN DE LOS PRINCIPALES INDICADORES MACROECONÓMICOS"]
[]
[null,"Región CAPARD: Inflación, serie original y tendencia de largo plazo",null,null,null,null,null,null,null,null,"Región CAPARD: Ciclo de crecimiento de la Actividad Económica"]
[null,"(cálculos basados en el IPC, variación interanual)",null,null,null,null,null,null,null,null,"(cálculos basados en el IMAE, variación interanual)"]
[]
[]
[]
[]
[]
[]
[]
[]
[]
[]
[]
[]
[]
[]
[null,"Región CAPARD:",null,null,null,null,null,null,null,null,"Región CAPARD:"]
[null,"Reservas Internacionales Netas del Banco Central",null,null,null,null,null,null,null,null," Flujos trimestrales de Inversión Extranjera Directa (IED)\nen la economía declarante"]
[]
[]
[]
[]
[null,null,null,null,null,null,null,null,null,null,null,null,null,null,null,null,null,null," "]
[]
[]
[]
[]
[]
[]
[]
[null,"En Panamá, el Banco Nacional de Panamá (BNP) funciona como receptor y gestor de las RIN que corresponden a los activos externos de reserva menos los pasivos de corto plazo frente a no residentes. Los primeros se componen de: billetes y depósitos en moneda extranjera e inversiones en títulos (incluidos los títulos de deuda y participaciones de capital); los pasivos se componen de los depósitos transferibles de no residentes en moneda extranjera. ",null,null,null,null,null,null,null,null,"\nLos flujos negativos observados en El Salvador, Honduras y Panamá surgen debido a amortizaciones netas de préstamos con el inversionista directo, mayores a lo registrado por acciones u otras aportaciones de capital, los cuales por metodología deben sumarse al valor de la IED."]
[]
[]
[null,{"$f":"CONCATENATE(\"Región CAPARD:\")","v":"Región CAPARD:"},null,null,null,null,null,null,null,null,"Región CAPARD:"]
[null,"Flujos mensuales de comercio exterior",null,null,null,null,null,null,null,null,"Ingreso de Remesas, sin acumular"]
[]
[]
[]
[]
[]
[]
[]
[]
[]
[]
[]
[]
[]
[]
[]
[null,"Región CAPARD:",null,null,null,null,null,null,null,null,"Región CAPARD:\nSaldo Operacional (con donaciones) del Gobierno Central\ncon respecto al PIB"]
[null,"Deuda Pública Bruta Total, Interna y Externa",null,null,null,null,null,null,null,null,{"$f":"CONCATENATE(\"Datos a \",'Saldo Operacional'!G4,\" de cada año\")","v":"Datos a marzo de cada año"}]
[]
[]
[]
[]
[]
[]
[]
[]
[]
[]
[]
[]
[null,"Incluye la deuda interna consolidada en los casos de Guatemala, Honduras y República Dominicana, tal como lo recomienda la versión del 2001 del Manual de Estadísticas de Finanzas Públicas del FMI. En el resto de países se considera únicamente la deuda interna bruta.\nA partir de 2019 se dispone únicamente de datos trimestrales de Nicaragua."]
[]
[null,"Región CAPARD:",null,null,null,null,null,null,null,null,"Región CAPARD:"]
[null,{"$f":"CONCATENATE(\"Agregados Monetarios (Millones US$)\",\" \",\"y variación interanual\")","v":"Agregados Monetarios (Millones US$) y variación interanual"},null,null,null,null,null,null,null,null,{"$f":"CONCATENATE(\"Crédito Total (Millones US$)\",\" \",\"y variación interanual\")","v":"Crédito Total (Millones US$) y variación interanual"}]
[]
[]
[]
[]
[]
[]
[]
[]
[]
[]
[]
[]
[]
[]
[]
[]
[]
[null,"OJO, REVISAR AÑO DE INICIO DE TODOS ESTOS GRAFICOS PARA ARMONIZAR !!!"]
[]
[null,null,"deuda: a partir de diciembre 2011 mensual"]
[null,null,"remesas: desde 2006"]
[null,null,"ied:2008"]
[null,null,"agregados monetarios:2002"]
[null,null,"crédito osd:2003"]
[]
[null,null,"***la serie mas corta es la de remesas 2008, la extensión se puede evaluar a partir de esta fecha para que se armonizado pero se perdería información en otras series"]
[]
[null,null,null,null,null,null,null,null,null,null,"OSD: Corresponde a Otras Sociedades de Depósito, por ejemplo: bancos comerciales y cooperativas. "]
[]
[]
[null,"La región CAPARD la conforman los países de Centroamérica, Panamá y República Dominicana."]

{"sheet":"Comparativo","index":5,"n_rows":151,"n_cols":15,"rows_kept":151,"cut":false,"hidden":false,"merged":[[3,5,3,6],[16,9,16,10],[16,11,16,12],[22,1,22,2],[22,3,22,4],[4,0,4,12],[5,1,5,2],[5,3,5,4],[5,5,5,6],[5,7,5,8],[5,9,5,10],[5,11,5,12],[8,1,8,2],[8,3,8,4],[8,5,8,6],[8,7,8,8],[8,9,8,10],[8,11,8,12],[7,1,7,2],[7,3,7,4],[7,5,7,6],[7,7,7,8],[7,9,7,10],[7,11,7,12],[18,0,19,0],[43,5,43,6],[43,7,43,8],[43,9,43,10],[43,11,43,12],[32,11,32,12],[13,1,13,2],[13,3,13,4],[13,5,13,6],[13,7,13,8],[13,9,13,10],[13,11,13,12],[23,1,23,2],[23,3,23,4],[23,5,23,6],[23,7,23,8],[23,9,23,10],[23,11,23,12],[16,1,16,2],[16,3,16,4],[16,5,16,6],[43,1,43,2],[34,1,34,2],[16,7,16,8],[41,7,41,8],[22,5,22,6],[22,7,22,8],[22,9,22,10],[22,11,22,12],[66,1,66,2],[66,3,66,4],[66,5,66,6],[66,7,66,8],[66,9,66,10],[66,11,66,12],[54,1,54,2],[54,3,54,4],[54,5,54,6],[54,7,54,8],[54,9,54,10],[54,11,54,12],[46,1,46,2],[46,3,46,4],[46,5,46,6],[46,7,46,8],[46,9,46,10],[43,3,43,4],[29,1,29,2],[91,3,91,4],[91,5,91,6],[91,7,91,8],[91,9,91,10],[91,11,91,12],[92,1,92,2],[92,3,92,4],[92,5,92,6],[92,7,92,8],[92,9,92,10],[92,11,92,12],[41,9,41,10],[136,1,136,2],[136,3,136,4],[136,5,136,6],[136,7,136,8],[136,9,136,10],[136,11,136,12],[125,1,125,2],[125,3,125,4],[125,5,125,6],[125,7,125,8],[125,9,125,10],[125,11,125,12],[117,1,117,2],[117,3,117,4],[117,5,117,6],[117,7,117,8],[117,9,117,10],[41,1,41,2],[117,11,117,12],[41,3,41,4],[91,1,91,2],[41,5,41,6],[46,11,46,12],[29,7,29,8],[29,9,29,10],[29,11,29,12],[38,1,38,2],[38,3,38,4],[38,5,38,6],[38,7,38,8],[38,9,38,10],[38,11,38,12],[32,1,32,2],[32,3,32,4],[32,5,32,6],[32,7,32,8],[32,9,32,10],[34,3,34,4],[34,5,34,6],[34,9,34,10],[34,11,34,12],[34,7,34,8],[29,5,29,6],[29,3,29,4],[150,0,150,14],[2,0,2,14],[117,13,117,14],[125,13,125,14],[136,13,136,14],[34,13,34,14],[38,13,38,14],[41,13,41,14],[43,13,43,14],[46,13,46,14],[54,13,54,14],[66,13,66,14],[91,13,91,14],[92,13,92,14],[5,13,5,14],[7,13,7,14],[8,13,8,14],[13,13,13,14],[16,13,16,14],[22,13,22,14],[23,13,23,14],[29,13,29,14],[32,13,32,14],[41,11,41,12]]}
["Consejo Monetario Centroamericano"]
["Secretaría Ejecutiva"]
["CUADRO COMPARATIVO POR PAIS"]
[null,null,null,null,{"$f":"CONCATENATE(Indice!$J$47,\",\")","v":"REM N° 265,"},{"$f":"Indice!$J$48","v":"2022-06-19"}]
[]
["  Indicadores","Costa Rica",null,"El Salvador",null,"Guatemala",null,"Honduras",null,"Nicaragua",null,"Rep. Dominicana",null,"Panamá"]
[]
["I. SECTOR REAL"]
["1. Precios al Consumidor",{"$f":"IF([2]EJECUTIVO!$J$4=[2]EJECUTIVO!$J$8,[2]EJECUTIVO!$G$10,CONCATENATE([2]EJECUTIVO!$G$5,\"\n\",[2]EJECUTIVO!$I$4,\"          \",[2]EJECUTIVO!$J$4))","v":"JUNIO\n2021          2022"},null,{"$f":"IF([3]EJECUTIVO!$J$4=[3]EJECUTIVO!$J$8,[3]EJECUTIVO!$G$10,CONCATENATE([3]EJECUTIVO!$G$6,\"\n\",[3]EJECUTIVO!$I$4,\"          \",[3]EJECUTIVO!$J$4))","v":"JUNIO\n2021          2022"},null,{"$f":"IF([4]EJECUTIVO!$J$4=[4]EJECUTIVO!$J$8,[4]EJECUTIVO!$G$10,CONCATENATE([4]EJECUTIVO!$G$5,\"\n\",[4]EJECUTIVO!$I$4,\"          \",[4]EJECUTIVO!$J$4))","v":"JUNIO\n2021          2022"},null,{"$f":"IF([5]EJECUTIVO!$J$4=[5]EJECUTIVO!$J$8,[5]EJECUTIVO!$G$10,CONCATENATE([5]EJECUTIVO!$G$5,\"\n\",[5]EJECUTIVO!$I$4,\"          \",[5]EJECUTIVO!$J$4))","v":"JUNIO\n2021          2022"},null,{"$f":"IF([6]EJECUTIVO!$J$4=[6]EJECUTIVO!$J$8,[6]EJECUTIVO!$G$10,CONCATENATE([6]EJECUTIVO!$G$5,\"\n\",[6]EJECUTIVO!$I$4,\"          \",[6]EJECUTIVO!$J$4))","v":"JUNIO\n2021          2022"},null,{"$f":"IF([7]EJECUTIVO!$J$4=[7]EJECUTIVO!$J$8,[7]EJECUTIVO!$G$10,CONCATENATE([7]EJECUTIVO!$G$5,\"\n\",[7]EJECUTIVO!$I$4,\"          \",[7]EJECUTIVO!$J$4))","v":"JUNIO\n2021          2022"},null,{"$f":"IF([8]EJECUTIVO!$J$4=[8]EJECUTIVO!$J$8,[8]EJECUTIVO!$G$10,CONCATENATE([8]EJECUTIVO!$G$5,\"\n\",[8]EJECUTIVO!$I$4,\"          \",[8]EJECUTIVO!$J$4))","v":"JUNIO\n2021          2022"}]
["    1.1  Tasa de variación interanual en el mes indicado",{"$f":"[2]EJECUTIVO!$I$6","v":1.9080336324936071},{"$f":"[2]EJECUTIVO!$J$6","v":10.055605676445079},{"$f":"[3]EJECUTIVO!$I$6","v":2.5874516893015422},{"$f":"[3]EJECUTIVO!$J$6","v":7.759211946994812},{"$f":"[4]EJECUTIVO!$I$6","v":3.9072207648764299},{"$f":"[4]EJECUTIVO!$J$6","v":7.5538134467180278},{"$f":"[5]EJECUTIVO!$I$6","v":4.6709753231492463},{"$f":"[5]EJECUTIVO!$J$6","v":10.216110019646358},{"$f":"[6]EJECUTIVO!$I$6","v":3.9422249165742156},{"$f":"[6]EJECUTIVO!$J$6","v":10.37048519913351},{"$f":"[7]EJECUTIVO!$I$6","v":9.319367673985937},{"$f":"[7]EJECUTIVO!$J$6","v":9.4782888980982669},{"$f":"[8]EJECUTIVO!$I$6","v":1.5800761799955862},{"$f":"[8]EJECUTIVO!$J$6","v":5.1984402104513991}]
["    1.2  Tasa de variación acumulada al mes indicado respecto a diciembre",{"$f":"[2]EJECUTIVO!$I$7","v":0.76192321000001506},{"$f":"[2]EJECUTIVO!$J$7","v":7.3526788653152098},{"$f":"[3]EJECUTIVO!$I$7","v":2.9524670092428318},{"$f":"[3]EJECUTIVO!$J$7","v":4.5478675685111991},{"$f":"[4]EJECUTIVO!$I$7","v":1.2648008611410244},{"$f":"[4]EJECUTIVO!$J$7","v":5.6723237597911202},{"$f":"[5]EJECUTIVO!$I$7","v":1.8290940268648193},{"$f":"[5]EJECUTIVO!$J$7","v":6.5671641791044788},{"$f":"[6]EJECUTIVO!$I$7","v":2.2421973314468602},{"$f":"[6]EJECUTIVO!$J$7","v":5.2561684432031353},{"$f":"[7]EJECUTIVO!$I$7","v":4.0145985401459638},{"$f":"[7]EJECUTIVO!$J$7","v":4.9566054227770717},{"$f":"[8]EJECUTIVO!$I$7","v":1.8543737226958346},{"$f":"[8]EJECUTIVO!$J$7","v":4.4091507103442229}]
[{"$f":"CONCATENATE(\"    1.3  Tasa de variación de los precios en el 2021 y proyectado para el 2022\")","v":"    1.3  Tasa de variación de los precios en el 2021 y proyectado para el 2022"},{"$f":"[2]METAS!$H$7","v":3.2989079100000041},{"$f":"[2]METAS!$K$7","v":"3.0 ± 1"},{"$f":"[3]METAS!$H$7","v":6.1148062694338368},{"$f":"[3]METAS!$K$7","v":5.8},{"$f":"[4]METAS!$H$7","v":3.0678148546824602},{"$f":"[4]METAS!$K$7","v":"4.0 ± 1"},{"$f":"[5]METAS!$H$7","v":5.3158045155758948},{"$f":"[5]METAS!$K$7","v":"5.0 - 6.19"},{"$f":"[6]METAS!$H$7","v":7.2100675352489096},{"$f":"[6]METAS!$K$7","v":"6.0 -7.0"},{"$f":"[7]METAS!$H$7","v":8.4956989865317958},{"$f":"[7]METAS!$K$7","v":"4.0 ± 1"},{"$f":"[8]METAS!$H$7","v":2.6243501775598643},{"$f":"[8]METAS!$K$7","v":"n.d."}]
["    1.4 Tasa de variación interanual del índice subyacente de inflación",{"$f":"[2]EJECUTIVO!$I$5","v":0.5059333300282115},{"$f":"[2]EJECUTIVO!$J$5","v":5.6916496820632076},{"$f":"[3]EJECUTIVO!$I$5","v":1.7685794920037721},{"$f":"[3]EJECUTIVO!$J$5","v":5.130338325013863},{"$f":"[4]EJECUTIVO!$I$5","v":3.0548403047894164},{"$f":"[4]EJECUTIVO!$J$5","v":4.3400000000000016},{"$f":"[5]EJECUTIVO!$I$5","v":4.9213744903902255},{"$f":"[5]EJECUTIVO!$J$5","v":8.6872051068554015},{"$f":"[6]EJECUTIVO!$I$5","v":4.6955544134324656},{"$f":"[6]EJECUTIVO!$J$5","v":8.0955964232051656},{"$f":"[7]EJECUTIVO!$I$5","v":5.9953809353818688},{"$f":"[7]EJECUTIVO!$J$5","v":7.1123527862437381},{"$f":"[8]EJECUTIVO!$H$5","v":"n.d."},{"$f":"[8]EJECUTIVO!$I$5","v":"n.d."}]
["2. Producción",{"$f":"IF([2]EJECUTIVO!$J$9=[2]EJECUTIVO!$J$2,[2]EJECUTIVO!$G$10,CONCATENATE([2]EJECUTIVO!$G$10,\"\n\",[2]EJECUTIVO!$I$9,\"          \",[2]EJECUTIVO!$J$9))","v":"MAYO\n2021          2022"},null,{"$f":"IF([3]EJECUTIVO!$J$9=[3]EJECUTIVO!$J$2,[3]EJECUTIVO!$G$10,CONCATENATE([3]EJECUTIVO!$G$10,\"\n\",[3]EJECUTIVO!$I$9,\"          \",[3]EJECUTIVO!$J$9))","v":"ABRIL\n2021          2022"},null,{"$f":"IF([4]EJECUTIVO!$J$9=[4]EJECUTIVO!$J$2,[4]EJECUTIVO!$G$10,CONCATENATE([4]EJECUTIVO!$G$10,\"\n\",[4]EJECUTIVO!$I$9,\"          \",[4]EJECUTIVO!$J$9))","v":"MAYO\n2021          2022"},null,{"$f":"IF([5]EJECUTIVO!$J$9=[5]EJECUTIVO!$J$2,[5]EJECUTIVO!$G$10,CONCATENATE([5]EJECUTIVO!$G$10,\"\n\",[5]EJECUTIVO!$I$9,\"          \",[5]EJECUTIVO!$J$9))","v":"MAYO\n2021          2022"},null,{"$f":"IF([6]EJECUTIVO!$J$9=[6]EJECUTIVO!$J$2,[6]EJECUTIVO!$G$10,CONCATENATE([6]EJECUTIVO!$G$10,\"\n\",[6]EJECUTIVO!$I$9,\"          \",[6]EJECUTIVO!$J$9))","v":"MAYO\n2021          2022"},null,{"$f":"IF([7]EJECUTIVO!$J$9=[7]EJECUTIVO!$J$2,[7]EJECUTIVO!$G$10,CONCATENATE([7]EJECUTIVO!$G$10,\"\n\",[7]EJECUTIVO!$I$9,\"          \",[7]EJECUTIVO!$J$9))","v":"MAYO\n2021          2022"},null,{"$f":"IF([8]EJECUTIVO!$J$9=[8]EJECUTIVO!$J$2,[8]EJECUTIVO!$G$10,CONCATENATE([8]EJECUTIVO!$G$10,\"\n\",[8]EJECUTIVO!$I$9,\"          \",[8]EJECUTIVO!$J$9))","v":"MAYO\n2021          2022"}]
["    2.1  IMAE (variación acumulada Tendencia-Ciclo en el mes indicado)",{"$f":"[2]EJECUTIVO!$I$10","v":4.5056194722068232},{"$f":"[2]EJECUTIVO!$J$10","v":7.2458758310733895},{"$f":"[3]EJECUTIVO!$I$10","v":8.029440163568168},{"$f":"[3]EJECUTIVO!$J$10","v":2.6445424799636186},{"$f":"[4]EJECUTIVO!$I$10","v":9.140686980505297},{"$f":"[4]EJECUTIVO!$J$10","v":4.2882093065949478},{"$f":"[5]EJECUTIVO!$I$10","v":6.3315498364989731},{"$f":"[5]EJECUTIVO!$J$10","v":5.0443282030348424},{"$f":"[6]EJECUTIVO!$I$10","v":5.1993331891113437},{"$f":"[6]EJECUTIVO!$J$10","v":4.6345765019330187},{"$f":"[7]EJECUTIVO!$I$10","v":10.887439732824177},{"$f":"[7]EJECUTIVO!$J$10","v":6.3297853238856838},{"$f":"[8]EJECUTIVO!$I$10","v":5.4896069781919632},{"$f":"[8]EJECUTIVO!$J$10","v":14.240117841603928}]
["    2.2  Tasa de variación del PIB real estimado para 2021 y 2022",{"$f":"[2]METAS!$H$12","v":7.763901025241271},{"$f":"[2]METAS!$K$12","v":3.4},{"$f":"[3]METAS!$H$12","v":10.268310369833223},{"$f":"[3]METAS!$K$12","v":2.6},{"$f":"[4]METAS!$H$12","v":7.98076967891439},{"$f":"[4]METAS!$K$12","v":"3.0 - 5.0"},{"$f":"[5]METAS!$H$12","v":12.534145781897976},{"$f":"[5]METAS!$K$12","v":"3.5 - 4.5"},{"$f":"[6]METAS!$H$12","v":10.344647344727353},{"$f":"[6]METAS!$K$12","v":"4.0 - 5.0"},{"$f":"[7]METAS!$H$12","v":12.271990236920516},{"$f":"[7]METAS!$K$12","v":5},{"$f":"[8]METAS!$H$12","v":15.335817863631206},{"$f":"[8]METAS!$K$12","v":"n.d."}]
["    2.3 Tasa de variación interanual del PIB trimestral, a precios constantes a/",{"$f":"CONCATENATE(\"  \",[2]EJECUTIVO!$G$11,\" \",\"TRIMESTRE             2021          2022\")","v":"  I TRIMESTRE             2021          2022"},null,{"$f":"CONCATENATE(\"  \",[3]EJECUTIVO!$G$11,\" \",\"TRIMESTRE             2021         2022\")","v":"  I TRIMESTRE             2021         2022"},null,{"$f":"CONCATENATE(\"  \",[4]EJECUTIVO!$G$11,\" \",\"TRIMESTRE             2020          2021\")","v":"  I TRIMESTRE             2020          2021"},null,{"$f":"CONCATENATE(\"  \",[5]EJECUTIVO!$G$11,\" \",\"TRIMESTRE             2021          2022\")","v":"  I TRIMESTRE             2021          2022"},null,{"$f":"CONCATENATE(\"  \",[6]EJECUTIVO!$G$11,\" \",\"TRIMESTRE             2021          2022\")","v":"  I TRIMESTRE             2021          2022"},null,{"$f":"CONCATENATE(\"  \",[7]EJECUTIVO!$G$11,\" \",\"TRIMESTRE               2021          2022\")","v":"  I TRIMESTRE               2021          2022"},null,{"$f":"CONCATENATE(\"  \",[8]EJECUTIVO!$G$11,\" \",\"TRIMESTRE               2021          2022\")","v":"  I TRIMESTRE               2021          2022"}]
[null,{"$f":"[2]EJECUTIVO!I$11","v":-0.75876811938676514},{"$f":"[2]EJECUTIVO!J$11","v":7.8981951528761458},{"$f":"[3]EJECUTIVO!I$11","v":2.4565940155153272},{"$f":"[3]EJECUTIVO!J$11","v":2.7131782945736482},{"$f":"[4]EJECUTIVO!I$11","v":4.5101313733481874},{"$f":"[4]EJECUTIVO!J$11","v":4.4778892697331329},{"$f":"[5]EJECUTIVO!I$11","v":2.1038869520065275},{"$f":"[5]EJECUTIVO!J$11","v":5.9249707129689275},{"$f":"[6]EJECUTIVO!I$11","v":3.846219404397849},{"$f":"[6]EJECUTIVO!J$11","v":5.7601951118033057},{"$f":"[7]EJECUTIVO!I$11","v":3.1396607256150419},{"$f":"[7]EJECUTIVO!J$11","v":6.1469410294045614},{"$f":"[8]EJECUTIVO!I$11","v":-8.3806906205906344},{"$f":"[8]EJECUTIVO!J$11","v":13.591809016172101}]
["    2.4  PIB a precios corrientes en millones de US dólares b/(estimado)","2021","2022","2021","2022","2021","2022","2021","2022","2021","2022","2021","2022","2021","2022"]
[null,{"$f":"[2]METAS!$H$14","v":64423.476228765736},{"$f":"[2]METAS!$K$14","v":66212.965612052125},{"$f":"[3]METAS!$H$14","v":28736.94},{"$f":"[3]METAS!$K$14","v":30429.8},{"$f":"[4]METAS!$H$14","v":85985.879022097055},{"$f":"[4]METAS!$K$14","v":91875.540831650287},{"$f":"[5]METAS!$H$14","v":28489.738902978108},{"$f":"[5]METAS!$K$14","v":30402.78433797841},{"$f":"[6]METAS!$H$14","v":14013.08461600215},{"$f":"[6]METAS!$K$14","v":"n.d."},{"$f":"[7]METAS!$H$14","v":94113.677796248041},{"$f":"[7]METAS!$K$14","v":107032.2},{"$f":"[8]METAS!$H$14","v":63605.065780602723},{"$f":"[8]METAS!$K$14","v":70492.07290317188}]
[]
["II. SECTOR EXTERNO"]
["1.Indicadores de Balanza de Pagos y del comercio exterior"]
["     1.1  Comercio exterior, acumulado en millones de US$ c/",{"$f":"IF([2]EJECUTIVO!$J$16=[2]EJECUTIVO!$J$4,[2]EJECUTIVO!$G$16,(CONCATENATE([2]EJECUTIVO!$G$16,\"\n\",[2]EJECUTIVO!$I$15,\"          \",[2]EJECUTIVO!$J$15)))","v":"MARZO\n2021          2022"},null,{"$f":"IF([3]EJECUTIVO!$J$16=[3]EJECUTIVO!$J$4,[3]EJECUTIVO!$G$16,(CONCATENATE([3]EJECUTIVO!$G$16,\"\n\",[3]EJECUTIVO!$I$15,\"          \",[3]EJECUTIVO!$J$15)))","v":"JUNIO\n2021          2022"},null,{"$f":"IF([4]EJECUTIVO!$J$16=[4]EJECUTIVO!$J$4,[4]EJECUTIVO!$G$16,(CONCATENATE([4]EJECUTIVO!$G$16,\"\n\",[4]EJECUTIVO!$I$15,\"          \",[4]EJECUTIVO!$J$15)))","v":"ABRIL\n2021          2022"},null,{"$f":"IF([5]EJECUTIVO!$J$16=[5]EJECUTIVO!$J$4,[5]EJECUTIVO!$G$16,(CONCATENATE([5]EJECUTIVO!$G$16,\"\n\",[5]EJECUTIVO!$I$15,\"         \",[5]EJECUTIVO!$J$15)))","v":"MAYO\n2021         2022"},null,{"$f":"IF([6]EJECUTIVO!$J$16=[6]EJECUTIVO!$J$4,[6]EJECUTIVO!$G$16,(CONCATENATE([6]EJECUTIVO!$G$16,\"\n\",[6]EJECUTIVO!$I$15,\"          \",[6]EJECUTIVO!$J$15)))","v":"ABRIL\n2021          2022"},null,{"$f":"IF([7]EJECUTIVO!$J$16=[7]EJECUTIVO!$J$4,[7]EJECUTIVO!$G$16,(CONCATENATE([7]EJECUTIVO!$G$16,\"\n\",[7]EJECUTIVO!$I$15,\"             \",[7]EJECUTIVO!$J$15)))","v":"MARZO\n2021             2022"},null,{"$f":"IF([8]EJECUTIVO!$J$16=[8]EJECUTIVO!$J$4,[8]EJECUTIVO!$G$16,(CONCATENATE([8]EJECUTIVO!$G$16,\"\n\",[8]EJECUTIVO!$I$15,\"          \",[8]EJECUTIVO!$J$15)))","v":"MAYO\n2021          2022"}]
["         1.1.1  Exportaciones totales de bienes FOB",{"$f":"[2]EJECUTIVO!$I$17","v":3783.28667851},{"$f":"[2]EJECUTIVO!$J$17","v":4339.5937902700007},{"$f":"[3]EJECUTIVO!$I$17","v":3255.75},{"$f":"[3]EJECUTIVO!$J$17","v":3802.3199999999997},{"$f":"[4]EJECUTIVO!$I$17","v":4335.6000000000004},{"$f":"[4]EJECUTIVO!$J$17","v":5368.3},{"$f":"[5]EJECUTIVO!$I$17","v":2176.4310325806468},{"$f":"[5]EJECUTIVO!$J$17","v":2792.2040266534536},{"$f":"[6]EJECUTIVO!$I$17","v":2230.23063684},{"$f":"[6]EJECUTIVO!$J$17","v":2671.4285186799998},{"$f":"[7]EJECUTIVO!$I$17","v":2905.3},{"$f":"[7]EJECUTIVO!$J$17","v":3328.0000000000005},{"$f":"[8]EJECUTIVO!$I$17","v":4673.5},{"$f":"[8]EJECUTIVO!$J$17","v":5935.9800000000005}]
["         1.1.2  Importaciones totales de bienes CIF",{"$f":"[2]EJECUTIVO!$I$18","v":5322.2899288200006},{"$f":"[2]EJECUTIVO!$J$18","v":7170.68},{"$f":"[3]EJECUTIVO!$I$18","v":7025.83},{"$f":"[3]EJECUTIVO!$J$18","v":8934.3900000000012},{"$f":"[4]EJECUTIVO!$I$18","v":7694.0000000000009},{"$f":"[4]EJECUTIVO!$J$18","v":10462.999999999998},{"$f":"[5]EJECUTIVO!$I$18","v":4925.4560582209333},{"$f":"[5]EJECUTIVO!$J$18","v":6095.4755811455343},{"$f":"[6]EJECUTIVO!$I$18","v":2719.1864466500001},{"$f":"[6]EJECUTIVO!$J$18","v":3451.9041763600003},{"$f":"[7]EJECUTIVO!$I$18","v":4988.3},{"$f":"[7]EJECUTIVO!$J$18","v":6946.0000000000009},{"$f":"[8]EJECUTIVO!$I$18","v":7645.25},{"$f":"[8]EJECUTIVO!$J$18","v":10305.019999999999}]
["         1.1.3  Saldo acumulado (exportaciones - importaciones)",{"$f":"[2]EJECUTIVO!$I$16","v":-1539.0032503100006},{"$f":"[2]EJECUTIVO!$J$16","v":-2831.0862097299996},{"$f":"[3]EJECUTIVO!$I$16","v":-3770.08},{"$f":"[3]EJECUTIVO!$J$16","v":-5132.0700000000015},{"$f":"[4]EJECUTIVO!$I$16","v":-3358.4000000000005},{"$f":"[4]EJECUTIVO!$J$16","v":-5094.699999999998},{"$f":"[5]EJECUTIVO!$I$16","v":-2749.0250256402865},{"$f":"[5]EJECUTIVO!$J$16","v":-3303.2715544920807},{"$f":"[6]EJECUTIVO!$I$16","v":-488.95580981000012},{"$f":"[6]EJECUTIVO!$J$16","v":-780.4756576800005},{"$f":"[7]EJECUTIVO!$I$16","v":-2083},{"$f":"[7]EJECUTIVO!$J$16","v":-3618.0000000000005},{"$f":"[8]EJECUTIVO!$I$16","v":-2971.75},{"$f":"[8]EJECUTIVO!$J$16","v":-4369.0399999999981}]
["         1.1.4  Saldo en el 2021 (preliminar) y proyectado para el 2022",{"$f":"[2]METAS!$H$22","v":-8830.9230471800001},{"$f":"[2]METAS!$K$22","v":"n.d."},{"$f":"[3]METAS!$H$22","v":-8447.1700000000019},{"$f":"[3]METAS!$K$22","v":"n.d."},{"$f":"[4]METAS!$H$22","v":-12986.099999999997},{"$f":"[4]METAS!$K$22","v":-14817.965999999999},{"$f":"[5]METAS!$H$22","v":-8018.9918566354236},{"$f":"[5]METAS!$K$22","v":-8956.1650351963144},{"$f":"[6]METAS!$H$22","v":-2026.6153237599992},{"$f":"[6]METAS!$K$22","v":"n.d."},{"$f":"[7]METAS!$H$22","v":-11681.2},{"$f":"[7]METAS!$K$22","v":"n.d."},{"$f":"[8]METAS!$H$22","v":-7694.8200000000015},{"$f":"[8]METAS!$K$22","v":"n.d."}]
["     2.5  Saldo RIN/ Importaciones (meses de importación promedio)",{"$f":"[2]EJECUTIVO!$I$19","v":4.0409525114255338},{"$f":"[2]EJECUTIVO!$J$19","v":2.9512263829929655},{"$f":"[3]EJECUTIVO!$I$19","v":2.2240674767251702},{"$f":"[3]EJECUTIVO!$J$19","v":2.3393673211041821},{"$f":"[4]EJECUTIVO!$I$19","v":9.7801923576813099},{"$f":"[4]EJECUTIVO!$J$19","v":7.9685367485424834},{"$f":"[5]EJECUTIVO!$I$19","v":8.6694078863125146},{"$f":"[5]EJECUTIVO!$J$19","v":6.9395971498179074},{"$f":"[6]EJECUTIVO!$I$19","v":4.9345122138099011},{"$f":"[6]EJECUTIVO!$J$19","v":4.9198463915683108},{"$f":"[7]EJECUTIVO!$I$19","v":7.3216412162855695},{"$f":"[7]EJECUTIVO!$J$19","v":6.3040419797484484},{"$f":"[7]EJECUTIVO!$I$19","v":7.3216412162855695},{"$f":"[7]EJECUTIVO!$J$19","v":6.3040419797484484}]
["     1.2  Transferencias Corrientes, acumulado en millones de US$ ",{"$f":"IF([2]EJECUTIVO!$J$38=[2]EJECUTIVO!$J$4,CONCATENATE([2]EJECUTIVO!$G$38,\" TRIMESTRE\",\" \"),CONCATENATE([2]EJECUTIVO!$G$38,\" TRIMESTRE                \",[2]EJECUTIVO!$I$37,\"           \",[2]EJECUTIVO!$J$37))","v":"I TRIMESTRE                2021           2022"},null,{"$f":"IF([3]EJECUTIVO!$J$38=[3]EJECUTIVO!$J$4,[3]EJECUTIVO!$G$38,(CONCATENATE([3]EJECUTIVO!$G$38,\"\n\",[3]EJECUTIVO!$I$37,\"          \",[3]EJECUTIVO!$J$37)))","v":"JUNIO\n2021          2022"},null,{"$f":"IF([4]EJECUTIVO!$J$38=[4]EJECUTIVO!$J$4,[4]EJECUTIVO!$G$38,(CONCATENATE([4]EJECUTIVO!$G$38,\"\n\",[4]EJECUTIVO!$I$37,\"          \",[4]EJECUTIVO!$J$37)))","v":"MAYO\n2021          2022"},null,{"$f":"IF([5]EJECUTIVO!$J$38=[5]EJECUTIVO!$J$4,[5]EJECUTIVO!$G$38,(CONCATENATE([5]EJECUTIVO!$G$38,\"\n\",[5]EJECUTIVO!$I$37,\"          \",[5]EJECUTIVO!$J$37)))","v":"JUNIO\n2021          2022"},null,{"$f":"IF([6]EJECUTIVO!$J$38=[6]EJECUTIVO!$J$4,[6]EJECUTIVO!$G$38,(CONCATENATE([6]EJECUTIVO!$G$38,\"\n\",[6]EJECUTIVO!$I$37,\"          \",[6]EJECUTIVO!$J$37)))","v":"MAYO\n2021          2022"},null,{"$f":"IF([7]EJECUTIVO!$J$38=[7]EJECUTIVO!$J$4,[7]EJECUTIVO!$G$38,(CONCATENATE([7]EJECUTIVO!$G$38,\"\n\",[7]EJECUTIVO!$I$37,\"          \",[7]EJECUTIVO!$J$37)))","v":"JUNIO\n2021          2022"},null,{"$f":"IF([8]EJECUTIVO!$J$38=[8]EJECUTIVO!$J$4,CONCATENATE([8]EJECUTIVO!$G$38,\"    TRIMESTRE\",\" \"),CONCATENATE([8]EJECUTIVO!$G$38,\" TRIMESTRE                  \",[8]EJECUTIVO!$I$37,\"           \",[8]EJECUTIVO!$J$37))","v":"IV TRIMESTRE                  2020           2021"}]
["         1.2.1  Ingreso de remesas familiares d/",{"$f":"[2]EJECUTIVO!$I$38","v":126.55532961},{"$f":"[2]EJECUTIVO!$J$38","v":141.17356319999999},{"$f":"[3]EJECUTIVO!$I$38","v":3649.65},{"$f":"[3]EJECUTIVO!$J$38","v":3778.67},{"$f":"[4]EJECUTIVO!$I$38","v":5603.7},{"$f":"[4]EJECUTIVO!$J$38","v":7045.1},{"$f":"[5]EJECUTIVO!$I$38","v":3483.0780999999997},{"$f":"[5]EJECUTIVO!$J$38","v":4175.5560000000005},{"$f":"[6]EJECUTIVO!$I$38","v":858.30000000000007},{"$f":"[6]EJECUTIVO!$J$38","v":1132.5},{"$f":"[7]EJECUTIVO!$I$38","v":5263.0717842125659},{"$f":"[7]EJECUTIVO!$J$38","v":4861.0562731485234},{"$f":"[8]EJECUTIVO!$I$38","v":398.24500010000003},{"$f":"[8]EJECUTIVO!$J$38","v":512.70986882}]
["         1.2.2  Saldo en el 2021 (preliminar) y proyectado para el 2022",{"$f":"+[2]METAS!$H$27","v":558.81444390000001},{"$f":"[2]METAS!$K$27","v":"n.d."},{"$f":"+[3]METAS!$H$27","v":7517.14},{"$f":"[3]METAS!$K$27","v":"n.d."},{"$f":"+[4]METAS!$H$27","v":15295.7},{"$f":"[4]METAS!$K$27","v":17590.038001090998},{"$f":"+[5]METAS!$H$27","v":7370.0331000000006},{"$f":"[5]METAS!$K$27","v":8190.2160000000003},{"$f":"+[6]METAS!$H$27","v":2146.8999999999996},{"$f":"[6]METAS!$K$27","v":"n.d."},{"$f":"+[7]METAS!$H$27","v":10402.469200279835},{"$f":"+[7]METAS!$K$27","v":"n.d."},{"$f":"+[8]METAS!$H$27","v":512.70986882},{"$f":"[8]METAS!$K$27","v":"n.d."}]
["     1.3  Inversión directa, saldo en millones de US$ ",{"$f":"CONCATENATE([2]EJECUTIVO!$G$44,\" \",\"TRIMESTRE                2021             2022\")","v":"I TRIMESTRE                2021             2022"},null,{"$f":"CONCATENATE([3]EJECUTIVO!$G$44,\" \",\"TRIMESTRE               2021             2022\")","v":"I TRIMESTRE               2021             2022"},null,{"$f":"CONCATENATE([4]EJECUTIVO!$G$44,\" \",\"TRIMESTRE               2021             2022\")","v":"I TRIMESTRE               2021             2022"},null,{"$f":"CONCATENATE([5]EJECUTIVO!$G$44,\" \",\"TRIMESTRE               2021            2022\")","v":"I TRIMESTRE               2021            2022"},null,{"$f":"CONCATENATE([6]EJECUTIVO!$G$44,\" \",\"TRIMESTRE               2021             2022\")","v":"I TRIMESTRE               2021             2022"},null,{"$f":"CONCATENATE([7]EJECUTIVO!$G$44,\" \",\"TRIMESTRE                 2021           2022\")","v":"I TRIMESTRE                 2021           2022"},null,{"$f":"CONCATENATE([8]EJECUTIVO!$G$44,\" \",\"TRIMESTRE                2020           2021\")","v":"IV TRIMESTRE                2020           2021"}]
["         1.3.1  Inversión Extranjera Directa en la economía declarante e/",{"$f":"+[2]EJECUTIVO!$I$44","v":747.18626729587629},{"$f":"+[2]EJECUTIVO!$J$44","v":853.62256925679344},{"$f":"+[3]EJECUTIVO!$I$44","v":175.92259141000022},{"$f":"+[3]EJECUTIVO!$J$44","v":165.71895380000024},{"$f":"+[4]EJECUTIVO!$I$44","v":305.56871999999998},{"$f":"+[4]EJECUTIVO!$J$44","v":236.23506000000003},{"$f":"+[5]EJECUTIVO!$I$44","v":287.31301895369006},{"$f":"+[5]EJECUTIVO!$J$44","v":330.54826482097917},{"$f":"+[6]EJECUTIVO!$I$44","v":549.09999999999991},{"$f":"+[6]EJECUTIVO!$J$44","v":480.8},{"$f":"+[7]EJECUTIVO!$I$44","v":896.39999999999986},{"$f":"+[7]EJECUTIVO!$J$44","v":1027.7},{"$f":"+[8]EJECUTIVO!$I$44","v":606.69939328999988},{"$f":"+[8]EJECUTIVO!$J$44","v":1843.8059113800002}]
["     1.4  Balanza en cuenta corriente, saldo en millones de US$ ",{"$f":"CONCATENATE([2]EJECUTIVO!$G$41,\" \",\"TRIMESTRE                2021            2022\")","v":"I TRIMESTRE                2021            2022"},null,{"$f":"CONCATENATE([3]EJECUTIVO!$G$41,\" \",\"TRIMESTRE               2021             2022\")","v":"I TRIMESTRE               2021             2022"},null,{"$f":"CONCATENATE([4]EJECUTIVO!$G$41,\" \",\"TRIMESTRE               2021             2022\")","v":"I TRIMESTRE               2021             2022"},null,{"$f":"CONCATENATE([5]EJECUTIVO!$G$41,\" \",\"TRIMESTRE               2021             2022\")","v":"I TRIMESTRE               2021             2022"},null,{"$f":"CONCATENATE([6]EJECUTIVO!$G$41,\" \",\"TRIMESTRE               2021             2022\")","v":"I TRIMESTRE               2021             2022"},null,{"$f":"CONCATENATE([7]EJECUTIVO!$G$41,\" \",\"TRIMESTRE                  2021          2022\")","v":"I TRIMESTRE                  2021          2022"},null,{"$f":"CONCATENATE([8]EJECUTIVO!$G$41,\" \",\"TRIMESTRE               2020           2021\")","v":"IV TRIMESTRE               2020           2021"}]
["         1.4.1  Saldo de Balanza en Cuenta Corriente ",{"$f":"[2]EJECUTIVO!$I$41","v":-261.76534749233872},{"$f":"[2]EJECUTIVO!$J$41","v":-897.8357994415469},{"$f":"[3]EJECUTIVO!$I$41","v":-245.11269261594148},{"$f":"[3]EJECUTIVO!$J$41","v":-703.33414973171239},{"$f":"[4]EJECUTIVO!$I$41","v":777.35173000000054},{"$f":"[4]EJECUTIVO!$J$41","v":151.89465999999976},{"$f":"[5]EJECUTIVO!$I$41","v":26.175168867777373},{"$f":"[5]EJECUTIVO!$J$41","v":-90.484610526914182},{"$f":"[6]EJECUTIVO!$I$41","v":177.40000000000012},{"$f":"[6]EJECUTIVO!$J$41","v":-116.09999999999982},{"$f":"[7]EJECUTIVO!$I$41","v":-378},{"$f":"[7]EJECUTIVO!$J$41","v":-1029.200000000001},{"$f":"[8]EJECUTIVO!$I$41","v":1096.8379868185011},{"$f":"[8]EJECUTIVO!$J$41","v":-1412.3233419900016}]
["         1.4.2  Saldo en el 2021 (preliminar) y proyectado para 2022",{"$f":"+[2]METAS!$H$23","v":-2135.7356141817859},{"$f":"+[2]METAS!$K$23","v":"n.d."},{"$f":"+[3]METAS!$H$23","v":-1456.5010172923476},{"$f":"+[3]METAS!$K$23","v":"n.d."},{"$f":"+[4]METAS!$H$23","v":2177.2894700000006},{"$f":"+[4]METAS!$K$23","v":1144.8000000000029},{"$f":"+[5]METAS!$H$23","v":-728.74405882395808},{"$f":"+[5]METAS!$K$23","v":"n.d."},{"$f":"+[6]METAS!$H$23","v":-316.60000000000002},{"$f":"+[6]METAS!$K$23","v":"n.d."},{"$f":"+[7]METAS!$H$23","v":-2688.7000000000007},{"$f":"+[7]METAS!$K$23","v":"n.d."},{"$f":"+[8]METAS!$H$23","v":-1412.3233419900016},{"$f":"+[8]METAS!$K$23","v":"n.d."}]
[]
["     1.5  Saldo RIN del Banco Central, en millones de US$",{"$f":"IF([2]EJECUTIVO!$G$22=[2]EJECUTIVO!$J$4,[2]EJECUTIVO!$G$22,(CONCATENATE([2]EJECUTIVO!$G$22,\" \n\",[2]EJECUTIVO!$I$21,\"          \",[2]EJECUTIVO!$J$21)))","v":"JUNIO \n2021          2022"},null,{"$f":"IF([3]EJECUTIVO!$G$22=[3]EJECUTIVO!$J$4,[3]EJECUTIVO!$G$22,(CONCATENATE([3]EJECUTIVO!$G$22,\" \n\",[3]EJECUTIVO!$I$21,\"          \",[3]EJECUTIVO!$J$21)))","v":"JUNIO \n2021          2022"},null,{"$f":"IF([4]EJECUTIVO!$G$22=[4]EJECUTIVO!$J$4,[4]EJECUTIVO!$G$22,(CONCATENATE([4]EJECUTIVO!$G$22,\" \n\",[4]EJECUTIVO!$I$21,\"          \",[4]EJECUTIVO!$J$21)))","v":"JUNIO \n2021          2022"},null,{"$f":"IF([2]EJECUTIVO!$G$22=[5]EJECUTIVO!$J$4,[5]EJECUTIVO!$G$22,(CONCATENATE([5]EJECUTIVO!$G$22,\" \n\",[5]EJECUTIVO!$I$21,\"          \",[5]EJECUTIVO!$J$21)))","v":"JUNIO \n2021          2022"},null,{"$f":"IF([2]EJECUTIVO!$G$22=[6]EJECUTIVO!$J$4,[6]EJECUTIVO!$G$22,(CONCATENATE([6]EJECUTIVO!$G$22,\" \n\",[6]EJECUTIVO!$I$21,\"          \",[6]EJECUTIVO!$J$21)))","v":"JUNIO \n2021          2022"},null,{"$f":"IF([2]EJECUTIVO!$G$22=[7]EJECUTIVO!$J$4,[7]EJECUTIVO!$G$22,(CONCATENATE([7]EJECUTIVO!$G$22,\" \n\",[7]EJECUTIVO!$I$21,\"          \",[7]EJECUTIVO!$J$21)))","v":"JUNIO \n2021          2022"},null,{"$f":"IF([2]EJECUTIVO!$G$22=[8]EJECUTIVO!$J$4,[8]EJECUTIVO!$G$22,(CONCATENATE([8]EJECUTIVO!$G$22,\" \n\",[8]EJECUTIVO!$I$21,\"          \",[8]EJECUTIVO!$J$21)))","v":"MAYO \n2021          2022"}]
["      1.5.1  Saldo RIN a fines de mes ",{"$f":"[2]EJECUTIVO!$I$22","v":7137.0566722599997},{"$f":"ROUND([2]EJECUTIVO!$J$22,0)","v":6197},{"$f":"[3]EJECUTIVO!$I$22","v":2604.3200000000002},{"$f":"[3]EJECUTIVO!$J$22","v":3483.47},{"$f":"[4]EJECUTIVO!$I$22","v":18748.8},{"$f":"ROUND([4]EJECUTIVO!$J$22,0)","v":19876},{"$f":"[5]EJECUTIVO!$I$22","v":8645.3844918320228},{"$f":"ROUND([5]EJECUTIVO!$J$22,0)","v":8352},{"$f":"[6]EJECUTIVO!$I$22","v":3497.0349520029649},{"$f":"ROUND([6]EJECUTIVO!$J$22,0)","v":4278},{"$f":"[7]EJECUTIVO!$I$22","v":12611.563669947142},{"$f":"ROUND([7]EJECUTIVO!$J$22,0)","v":14455},{"$f":"[8]EJECUTIVO!$I$22","v":8286.6627843499991},{"$f":"ROUND([8]EJECUTIVO!$J$22,0)","v":8251}]
["      1.5.2  Saldo en el 2021 y proyectado para el 2022",{"$f":"+[2]METAS!$H$25","v":6918.1401695499999},{"$f":"+[2]METAS!$K$25","v":"n.d."},{"$f":"+[3]METAS!$H$25","v":3342.39},{"$f":"+[3]METAS!$K$25","v":"n.d."},{"$f":"+[4]METAS!$H$25","v":20939.599999999999},{"$f":"+[4]METAS!$K$25","v":22439.599999999999},{"$f":"+[5]METAS!$H$25","v":8677.5568154226803},{"$f":"+[5]METAS!$K$25","v":"n.d."},{"$f":"+[6]METAS!$H$25","v":3954.5522422552585},{"$f":"+[6]METAS!$K$25","v":"n.d."},{"$f":"+[7]METAS!$H$25","v":13033.917427885361},{"$f":"+[7]METAS!$K$25","v":"n.d."},{"$f":"+[8]METAS!$H$25","v":8099.4653844300001},{"$f":"+[8]METAS!$K$25","v":"n.d."}]
[null,{"$f":"IF([2]EJECUTIVO!$J$16=[2]EJECUTIVO!$J$4,[2]EJECUTIVO!$G$16,(CONCATENATE([2]EJECUTIVO!$G$16,\" \n\",[2]EJECUTIVO!$I$15,\"          \",[2]EJECUTIVO!$J$15)))","v":"MARZO \n2021          2022"},null,{"$f":"IF([3]EJECUTIVO!$J$16=[3]EJECUTIVO!$J$4,[3]EJECUTIVO!$G$16,(CONCATENATE([3]EJECUTIVO!$G$16,\"\n\",[3]EJECUTIVO!$I$15,\"          \",[3]EJECUTIVO!$J$15)))","v":"JUNIO\n2021          2022"},null,{"$f":"IF([4]EJECUTIVO!$J$16=[4]EJECUTIVO!$J$4,[4]EJECUTIVO!$G$16,(CONCATENATE([4]EJECUTIVO!$G$16,\"\n\",[4]EJECUTIVO!$I$15,\"          \",[4]EJECUTIVO!$J$15)))","v":"ABRIL\n2021          2022"},null,{"$f":"IF([5]EJECUTIVO!$J$16=[5]EJECUTIVO!$J$4,[5]EJECUTIVO!$G$16,(CONCATENATE([5]EJECUTIVO!$G$16,\"\n\",[5]EJECUTIVO!$I$15,\"          \",[5]EJECUTIVO!$J$15)))","v":"MAYO\n2021          2022"},null,{"$f":"IF([6]EJECUTIVO!$J$16=[6]EJECUTIVO!$J$4,[6]EJECUTIVO!$G$16,(CONCATENATE([6]EJECUTIVO!$G$16,\"\n\",[6]EJECUTIVO!$I$15,\"          \",[6]EJECUTIVO!$J$15)))","v":"ABRIL\n2021          2022"},null,{"$f":"IF([7]EJECUTIVO!$J$16=[7]EJECUTIVO!$J$4,[7]EJECUTIVO!$G$16,(CONCATENATE([7]EJECUTIVO!$G$16,\"\n\",[7]EJECUTIVO!$I$15,\"          \",[7]EJECUTIVO!$J$15)))","v":"MARZO\n2021          2022"},null,{"$f":"IF([8]EJECUTIVO!$J$16=[8]EJECUTIVO!$J$4,[8]EJECUTIVO!$G$16,(CONCATENATE([8]EJECUTIVO!$G$16,\"\n\",[8]EJECUTIVO!$I$15,\"          \",[8]EJECUTIVO!$J$15)))","v":"MAYO\n2021          2022"}]
["      1.5.3  Saldo RIN/ Importaciones (importación promedio al mes indicado)",{"$f":"[2]EJECUTIVO!$I$19","v":4.0409525114255338},{"$f":"[2]EJECUTIVO!$J$19","v":2.9512263829929655},{"$f":"[3]EJECUTIVO!$I$19","v":2.2240674767251702},{"$f":"[3]EJECUTIVO!$J$19","v":2.3393673211041821},{"$f":"[4]EJECUTIVO!$I$19","v":9.7801923576813099},{"$f":"[4]EJECUTIVO!$J$19","v":7.9685367485424834},{"$f":"[5]EJECUTIVO!$I$19","v":8.6694078863125146},{"$f":"[5]EJECUTIVO!$J$19","v":6.9395971498179074},{"$f":"[6]EJECUTIVO!$I$19","v":4.9345122138099011},{"$f":"[6]EJECUTIVO!$J$19","v":4.9198463915683108},{"$f":"[7]EJECUTIVO!$I$19","v":7.3216412162855695},{"$f":"[7]EJECUTIVO!$J$19","v":6.3040419797484484},{"$f":"[8]EJECUTIVO!$I$19","v":5.4194845062947579},{"$f":"[8]EJECUTIVO!$J$19","v":4.003278543452609}]
["         1.5.3  Saldo RIN/ Importaciones (importación promedio al mes indicado)",{"$f":"IF([2]EJECUTIVO!$J$37=[2]EJECUTIVO!$J$4,CONCATENATE([2]EJECUTIVO!$G$38,\" TRIMESTRE\",\" \"),CONCATENATE([2]EJECUTIVO!$G$38,\" TRIMESTRE            \",[2]EJECUTIVO!$I$37,\"           \",[2]EJECUTIVO!$J$37))","v":"I TRIMESTRE "},null,{"$f":"IF([3]EJECUTIVO!$J$37=[3]EJECUTIVO!$J$4,[3]EJECUTIVO!$G$38,(CONCATENATE([3]EJECUTIVO!$G$38,\"\n\",[3]EJECUTIVO!$I$37,\"          \",[3]EJECUTIVO!$J$37)))","v":"JUNIO"},null,{"$f":"IF([4]EJECUTIVO!$J$37=[4]EJECUTIVO!$J$4,CONCATENATE([4]EJECUTIVO!$G$38,\" TRIMESTRE\",\" \"),CONCATENATE([4]EJECUTIVO!$G$38,\" TRIMESTRE            \",[4]EJECUTIVO!$I$37,\"           \",[4]EJECUTIVO!$J$37))","v":"MAYO TRIMESTRE "},null,{"$f":"IF([5]EJECUTIVO!$J$37=[5]EJECUTIVO!$J$4,CONCATENATE([5]EJECUTIVO!$G$38,\" TRIMESTRE\",\" \"),CONCATENATE([5]EJECUTIVO!$G$38,\" TRIMESTRE            \",[5]EJECUTIVO!$I$37,\"           \",[5]EJECUTIVO!$J$37))","v":"JUNIO TRIMESTRE "},null,{"$f":"IF([6]EJECUTIVO!$J$37=[6]EJECUTIVO!$J$4,CONCATENATE([6]EJECUTIVO!$G$38,\" TRIMESTRE\",\" \"),CONCATENATE([6]EJECUTIVO!$G$38,\" TRIMESTRE            \",[6]EJECUTIVO!$I$37,\"           \",[6]EJECUTIVO!$J$37))","v":"MAYO TRIMESTRE "},null,{"$f":"IF([7]EJECUTIVO!$J$37=[7]EJECUTIVO!$J$4,CONCATENATE([7]EJECUTIVO!$G$38,\" TRIMESTRE\",\" \"),CONCATENATE([7]EJECUTIVO!$G$38,\" TRIMESTRE            \",[7]EJECUTIVO!$I$37,\"           \",[7]EJECUTIVO!$J$37))","v":"JUNIO TRIMESTRE "},null,{"$f":"IF([7]EJECUTIVO!$J$37=[7]EJECUTIVO!$J$4,CONCATENATE([7]EJECUTIVO!$G$38,\" TRIMESTRE\",\" \"),CONCATENATE([7]EJECUTIVO!$G$38,\" TRIMESTRE            \",[7]EJECUTIVO!$I$37,\"           \",[7]EJECUTIVO!$J$37))","v":"JUNIO TRIMESTRE "}]
["         1.5.3  Saldo RIN/ Importaciones (importación promedio al mes indicado)",{"$f":"[2]EJECUTIVO!$I$38","v":126.55532961},{"$f":"[2]EJECUTIVO!$J$38","v":141.17356319999999},{"$f":"[3]EJECUTIVO!$I$38","v":3649.65},{"$f":"[3]EJECUTIVO!$J$38","v":3778.67},{"$f":"[4]EJECUTIVO!$I$38","v":5603.7},{"$f":"[4]EJECUTIVO!$J$38","v":7045.1},{"$f":"[5]EJECUTIVO!$I$38","v":3483.0780999999997},{"$f":"[5]EJECUTIVO!$J$38","v":4175.5560000000005},{"$f":"[6]EJECUTIVO!$I$38","v":858.30000000000007},{"$f":"[6]EJECUTIVO!$J$38","v":1132.5},{"$f":"[7]EJECUTIVO!$I$38","v":5263.0717842125659},{"$f":"[7]EJECUTIVO!$J$38","v":4861.0562731485234},{"$f":"[7]EJECUTIVO!$I$38","v":5263.0717842125659},{"$f":"[7]EJECUTIVO!$J$38","v":4861.0562731485234}]
["         1.5.3  Saldo RIN/ Importaciones (importación promedio al mes indicado)",{"$f":"[2]METAS!$H$27","v":558.81444390000001},{"$f":"[2]METAS!$M$27","v":"n.d."},{"$f":"[3]METAS!$H$27","v":7517.14},{"$f":"[3]METAS!$M$27","v":"n.d."},{"$f":"[4]METAS!$H$27","v":15295.7},{"$f":"[4]METAS!$M$27","v":17590.038001090998},{"$f":"[5]METAS!$H$27","v":7370.0331000000006},{"$f":"[5]METAS!$M$27","v":8190.2160000000003},{"$f":"[6]METAS!$H$27","v":2146.8999999999996},{"$f":"[6]METAS!$M$27","v":"n.d."},{"$f":"[7]METAS!$H$27","v":10402.469200279835},{"$f":"[7]METAS!$M$27","v":"n.d."},{"$f":"[7]METAS!$H$27","v":10402.469200279835},{"$f":"[7]METAS!$M$27","v":"n.d."}]
["2. Tipo de Cambio ",{"$f":"IF([2]EJECUTIVO!$J$4=[2]EJECUTIVO!$J$8,[2]EJECUTIVO!$G$10,CONCATENATE([2]EJECUTIVO!$G$31,\"\n\",[2]EJECUTIVO!$I$30,\"          \",[2]EJECUTIVO!$J$30))","v":"JUNIO\n2021          2022"},null,{"$f":"IF([3]EJECUTIVO!$J$4=[3]EJECUTIVO!$J$8,[3]EJECUTIVO!$G$10,CONCATENATE([3]EJECUTIVO!$G$31,\"\n\",[3]EJECUTIVO!$I$30,\"          \",[3]EJECUTIVO!$J$30))","v":"JUNIO\n2021          2022"},null,{"$f":"IF([4]EJECUTIVO!$J$4=[4]EJECUTIVO!$J$8,[4]EJECUTIVO!$G$10,CONCATENATE([4]EJECUTIVO!$G$31,\"\n\",[4]EJECUTIVO!$I$30,\"          \",[4]EJECUTIVO!$J$30))","v":"JUNIO\n2021          2022"},null,{"$f":"IF([5]EJECUTIVO!$J$4=[5]EJECUTIVO!$J$8,[5]EJECUTIVO!$G$10,CONCATENATE([5]EJECUTIVO!$G$31,\"\n\",[5]EJECUTIVO!$I$30,\"          \",[5]EJECUTIVO!$J$30))","v":"JUNIO\n2021          2022"},null,{"$f":"IF([6]EJECUTIVO!$J$4=[6]EJECUTIVO!$J$8,[6]EJECUTIVO!$G$10,CONCATENATE([6]EJECUTIVO!$G$31,\"\n\",[6]EJECUTIVO!$I$30,\"          \",[6]EJECUTIVO!$J$30))","v":"MAYO\n2021          2022"},null,{"$f":"IF([7]EJECUTIVO!$J$4=[7]EJECUTIVO!$J$8,[7]EJECUTIVO!$G$10,CONCATENATE([7]EJECUTIVO!$G$31,\"\n\",[7]EJECUTIVO!$I$30,\"          \",[7]EJECUTIVO!$J$30))","v":"ABRIL\n2021          2022"},null,{"$f":"IF([8]EJECUTIVO!$J$4=[8]EJECUTIVO!$J$8,[8]EJECUTIVO!$G$10,CONCATENATE([8]EJECUTIVO!$G$31,\"\n\",[8]EJECUTIVO!$I$30,\"          \",[8]EJECUTIVO!$J$30))","v":"JUNIO\n2021          2022"}]
["     2.1  Unidades Moneda Nacional por US$, promedio compra  ",{"$f":"[2]EJECUTIVO!$I$31","v":614.18300000000011},{"$f":"[2]EJECUTIVO!$J$31","v":685.43433333333326},{"$f":"[3]EJECUTIVO!$I$31","v":8.75},{"$f":"[3]EJECUTIVO!$J$31","v":8.75},{"$f":"[4]EJECUTIVO!$I$31","v":7.7190899999999996},{"$f":"[4]EJECUTIVO!$J$31","v":7.71854},{"$f":"[5]EJECUTIVO!$I$31","v":23.964504545454545},{"$f":"[5]EJECUTIVO!$J$31","v":24.392890909090909},{"$f":"[6]EJECUTIVO!$I$31","v":34.932328212155952},{"$f":"[6]EJECUTIVO!$J$31","v":35.6766098341758},{"$f":"[7]EJECUTIVO!$I$31","v":56.796799999999998},{"$f":"[7]EJECUTIVO!$J$31","v":54.947499999999998},{"$f":"[8]EJECUTIVO!$I$31","v":1},{"$f":"[8]EJECUTIVO!$J$31","v":1}]
["     2.2  ITCER-USA, 2000=100, tasa de variación interanual  ",{"$f":"[2]EJECUTIVO!$I$32","v":10.619380829741253},{"$f":"[2]EJECUTIVO!$J$32","v":10.525719182507022},{"$f":"[3]EJECUTIVO!$I$32","v":2.6841137274497218},{"$f":"[3]EJECUTIVO!$J$32","v":1.1470097444674421},{"$f":"[4]EJECUTIVO!$I$32","v":1.8770509515624312},{"$f":"[4]EJECUTIVO!$J$32","v":1.3329523119171238},{"$f":"[5]EJECUTIVO!$I$32","v":-2.6540664184316998},{"$f":"[5]EJECUTIVO!$J$32","v":0.66006227563457642},{"$f":"[6]EJECUTIVO!$I$32","v":3.3506801894754856},{"$f":"[6]EJECUTIVO!$J$32","v":0.19740632177840389},{"$f":"[7]EJECUTIVO!$I$32","v":-0.31339087748893935},{"$f":"[7]EJECUTIVO!$J$32","v":-4.508033478227591},{"$f":"[8]EJECUTIVO!$I$32","v":3.7024380411717406},{"$f":"[8]EJECUTIVO!$J$32","v":3.609160354983576}]
["     2.3  ITCER-Global f/, 2000=100, tasa de variación interanual ",{"$f":"[2]EJECUTIVO!$I$33","v":12.635555221224614},{"$f":"[2]EJECUTIVO!$J$33","v":6.3486303284574497},{"$f":"[3]EJECUTIVO!$I$33","v":4.4870485015452211},{"$f":"[3]EJECUTIVO!$J$33","v":-2.0105301535004783},{"$f":"[4]EJECUTIVO!$I$33","v":3.4970725273487213},{"$f":"[4]EJECUTIVO!$J$33","v":-1.7656634943767235},{"$f":"[5]EJECUTIVO!$I$33","v":-0.56773112591482766},{"$f":"[5]EJECUTIVO!$J$33","v":-1.5248316298874021},{"$f":"[6]EJECUTIVO!$I$33","v":5.5568384014481387},{"$f":"[6]EJECUTIVO!$J$33","v":-4.0606439112703345},{"$f":"[7]EJECUTIVO!$I$33","v":3.6448967331628168},{"$f":"[7]EJECUTIVO!$J$33","v":-6.0546027694286302},{"$f":"[8]EJECUTIVO!$I$33","v":5.8905110586259912},{"$f":"[8]EJECUTIVO!$J$33","v":-2.7653842200940471}]
["     2.4  ITCER-Región g/, 2000=100, tasa de variación interanual ",{"$f":"[2]EJECUTIVO!$I$34","v":9.6280197044951379},{"$f":"[2]EJECUTIVO!$J$34","v":9.5082289184932556},{"$f":"[3]EJECUTIVO!$I$34","v":1.1850044996599696},{"$f":"[3]EJECUTIVO!$J$34","v":-0.54798226163266239},{"$f":"[4]EJECUTIVO!$I$34","v":-0.48998065809092717},{"$f":"[4]EJECUTIVO!$J$34","v":-1.0244571879751252},{"$f":"[5]EJECUTIVO!$I$34","v":-4.1166647026771086},{"$f":"[5]EJECUTIVO!$J$34","v":1.3085148871413654},{"$f":"[6]EJECUTIVO!$I$34","v":-0.20889731565356673},{"$f":"[6]EJECUTIVO!$J$34","v":-1.7416590962502587},{"$f":"[7]EJECUTIVO!$I$34","v":-3.1576350849454315},{"$f":"[7]EJECUTIVO!$J$34","v":-8.7019670973097814},{"$f":"[8]EJECUTIVO!$I$34","v":-1.5373664804042675},{"$f":"[8]EJECUTIVO!$J$34","v":-1.2767830294639015}]
["     2.5  ITCER-Global f/, tasa de variación con el año base (2000)",{"$f":"[2]EJECUTIVO!$I$35","v":-6.0771616522830385},{"$f":"[2]EJECUTIVO!$J$35","v":-0.11434785159181615},{"$f":"[3]EJECUTIVO!$I$35","v":12.500488321069795},{"$f":"[3]EJECUTIVO!$J$35","v":10.238632080539404},{"$f":"[4]EJECUTIVO!$I$35","v":-45.44958316978925},{"$f":"[4]EJECUTIVO!$J$35","v":-46.41275996579062},{"$f":"[5]EJECUTIVO!$I$35","v":-17.994596208111503},{"$f":"[5]EJECUTIVO!$J$35","v":-19.245040543347102},{"$f":"[6]EJECUTIVO!$I$35","v":20.165322193045895},{"$f":"[6]EJECUTIVO!$J$35","v":15.285836353955602},{"$f":"[7]EJECUTIVO!$I$35","v":26.301673111672201},{"$f":"[7]EJECUTIVO!$J$35","v":18.6546085136182},{"$f":"[8]EJECUTIVO!$I$35","v":4.3541703395289062},{"$f":"[8]EJECUTIVO!$J$35","v":1.4683765799495063}]
[]
["III. SECTOR FISCAL"]
["1.  Resultado del Gobierno Central, en millones de US$ ",{"$f":"IF([2]EJECUTIVO!$J$49=[2]EJECUTIVO!$J$4,[2]EJECUTIVO!$G$49,(CONCATENATE([2]EJECUTIVO!$G$49,\"\n\",[2]EJECUTIVO!$I$48,\"          \",[2]EJECUTIVO!$J$48)))","v":"MARZO\n2021          2022"},null,{"$f":"IF([3]EJECUTIVO!$J$49=[3]EJECUTIVO!$J$4,[3]EJECUTIVO!$G$49,(CONCATENATE([3]EJECUTIVO!$G$49,\"\n\",[3]EJECUTIVO!$I$48,\"          \",[3]EJECUTIVO!$J$48)))","v":"MAYO\n2021          2022"},null,{"$f":"IF([4]EJECUTIVO!$J$49=[4]EJECUTIVO!$J$4,[4]EJECUTIVO!$G$49,(CONCATENATE([4]EJECUTIVO!$G$49,\"\n\",[4]EJECUTIVO!$I$48,\"          \",[4]EJECUTIVO!$J$48)))","v":"MAYO\n2021          2022"},null,{"$f":"IF([5]EJECUTIVO!$J$49=[5]EJECUTIVO!$J$4,[5]EJECUTIVO!$G$49,(CONCATENATE([5]EJECUTIVO!$G$49,\"\n\",[5]EJECUTIVO!$I$48,\"          \",[5]EJECUTIVO!$J$48)))","v":"MAYO\n2021          2022"},null,{"$f":"IF([6]EJECUTIVO!$J$49=[6]EJECUTIVO!$J$4,[6]EJECUTIVO!$G$49,(CONCATENATE([6]EJECUTIVO!$G$49,\"\n\",[6]EJECUTIVO!$I$48,\"          \",[6]EJECUTIVO!$J$48)))","v":"ABRIL\n2021          2022"},null,{"$f":"IF([7]EJECUTIVO!$J$49=[7]EJECUTIVO!$J$4,[7]EJECUTIVO!$G$49,(CONCATENATE([7]EJECUTIVO!$G$49,\"\n\",[7]EJECUTIVO!$I$48,\"          \",[7]EJECUTIVO!$J$48)))","v":"ABRIL\n2021          2022"},null,{"$f":"IF([8]EJECUTIVO!$J$49=[8]EJECUTIVO!$J$4,[8]EJECUTIVO!$G$49,(CONCATENATE([8]EJECUTIVO!$G$49,\"\n\",[8]EJECUTIVO!$I$48,\"          \",[8]EJECUTIVO!$J$48)))","v":"MARZO\n2021          2022"}]
["     1.1 Ingresos totales, acumulado",{"$f":"[2]EJECUTIVO!$I49","v":2859.7374348567273},{"$f":"[2]EJECUTIVO!$J49","v":3022.0585523783984},{"$f":"[3]EJECUTIVO!$I49","v":2720.1515747699996},{"$f":"[3]EJECUTIVO!$J49","v":3251.3759037999998},{"$f":"[4]EJECUTIVO!$I49","v":4192.1228156563939},{"$f":"[4]EJECUTIVO!$J49","v":4932.0110805904969},{"$f":"[5]EJECUTIVO!$I49","v":2108.8785940548746},{"$f":"[5]EJECUTIVO!$J49","v":2420.8397616113466},{"$f":"[6]EJECUTIVO!$I49","v":1020.0606291871786},{"$f":"[6]EJECUTIVO!$J49","v":1208.1280338153176},{"$f":"[7]EJECUTIVO!$I49","v":4599.763451357765},{"$f":"[7]EJECUTIVO!$J49","v":5504.6341980578327},{"$f":"[8]EJECUTIVO!$I49","v":1501.3999999999999},{"$f":"[8]EJECUTIVO!$J49","v":1773.2}]
["     1.2 Ingresos tributarios, acumulado",{"$f":"[2]EJECUTIVO!$I50","v":2406.2666329143676},{"$f":"[2]EJECUTIVO!$J50","v":2709.4892867521821},{"$f":"[3]EJECUTIVO!$I50","v":2617.1954079499997},{"$f":"[3]EJECUTIVO!$J50","v":3156.8170452899999},{"$f":"[4]EJECUTIVO!$I50","v":3998.2219007963922},{"$f":"[4]EJECUTIVO!$J50","v":4695.8810088221526},{"$f":"[5]EJECUTIVO!$I50","v":1956.1621493241862},{"$f":"[5]EJECUTIVO!$J50","v":2264.6925631940026},{"$f":"[6]EJECUTIVO!$I50","v":950.00493762996894},{"$f":"[6]EJECUTIVO!$J50","v":1122.7144087568486},{"$f":"[7]EJECUTIVO!$I50","v":4315.9565456798173},{"$f":"[7]EJECUTIVO!$J50","v":5091.6735594417605},{"$f":"[8]EJECUTIVO!$I50","v":1058.0999999999999},{"$f":"[8]EJECUTIVO!$J50","v":1434.7}]
["     1.3 Gastos totales, acumulado",{"$f":"[2]EJECUTIVO!$I51","v":3510.2962481897453},{"$f":"[2]EJECUTIVO!$J51","v":3543.0684334016369},{"$f":"[3]EJECUTIVO!$I51","v":2932.4567936822746},{"$f":"[3]EJECUTIVO!$J51","v":3041.5732211654199},{"$f":"[4]EJECUTIVO!$I51","v":4257.8048670137396},{"$f":"[4]EJECUTIVO!$J51","v":4905.3157304104134},{"$f":"[5]EJECUTIVO!$I51","v":2161.6893507103446},{"$f":"[5]EJECUTIVO!$J51","v":1945.7485373245659},{"$f":"[6]EJECUTIVO!$I51","v":910.34812915515761},{"$f":"[6]EJECUTIVO!$J51","v":996.25377456687931},{"$f":"[7]EJECUTIVO!$I51","v":4783.9620754761418},{"$f":"[7]EJECUTIVO!$J51","v":5702.8687034029981},{"$f":"[8]EJECUTIVO!$I51","v":2687.5},{"$f":"[8]EJECUTIVO!$J51","v":3243.3}]
["     1.4 Donaciones, acumulado",{"$f":"[2]EJECUTIVO!$I52","v":0},{"$f":"[2]EJECUTIVO!$J52","v":0},{"$f":"[3]EJECUTIVO!$I52","v":4.28811257},{"$f":"[3]EJECUTIVO!$J52","v":7.1050526999999999},{"$f":"[4]EJECUTIVO!$I52","v":6.9523126755683258},{"$f":"[4]EJECUTIVO!$J52","v":3.5034023169694852},{"$f":"[5]EJECUTIVO!$I52","v":46.443777396146785},{"$f":"[5]EJECUTIVO!$J52","v":31.620913085914044},{"$f":"[6]EJECUTIVO!$I52","v":10.346480642043536},{"$f":"[6]EJECUTIVO!$J52","v":4.8432214101447597},{"$f":"[7]EJECUTIVO!$I52","v":31.458203698762333},{"$f":"[7]EJECUTIVO!$J52","v":6.7538606167733191},{"$f":"[8]EJECUTIVO!$I52","v":0},{"$f":"[8]EJECUTIVO!$J52","v":0}]
["     1.5 Déficit (-) superávit (+) con donaciones",{"$f":"[2]EJECUTIVO!$I56","v":-650.55881333301795},{"$f":"[2]EJECUTIVO!$J56","v":-521.00988102323845},{"$f":"[3]EJECUTIVO!$I56","v":-208.01710634227499},{"$f":"[3]EJECUTIVO!$J56","v":216.90773533457991},{"$f":"[4]EJECUTIVO!$I56","v":-58.729738681777377},{"$f":"[4]EJECUTIVO!$J56","v":30.198752497053036},{"$f":"[5]EJECUTIVO!$I56","v":-6.3669792593231733},{"$f":"[5]EJECUTIVO!$J56","v":506.71213737269477},{"$f":"[6]EJECUTIVO!$I56","v":120.05898067406454},{"$f":"[6]EJECUTIVO!$J56","v":216.71748065858307},{"$f":"[7]EJECUTIVO!$I56","v":-152.74042041961442},{"$f":"[7]EJECUTIVO!$J56","v":-191.48064472839209},{"$f":"[8]EJECUTIVO!$I56","v":-1186.1000000000001},{"$f":"[8]EJECUTIVO!$J56","v":-1470.1000000000001}]
["           1.5.1  Financiamiento interno",{"$f":"[2]EJECUTIVO!$I57","v":602.89152616399679},{"$f":"[2]EJECUTIVO!$J57","v":-62.111154223334665},{"$f":"[3]EJECUTIVO!$I57","v":30.821733372275105},{"$f":"[3]EJECUTIVO!$J57","v":-329.0129375145799},{"$f":"[4]EJECUTIVO!$I57","v":210.86963562860004},{"$f":"[4]EJECUTIVO!$J57","v":105.33206989165174},{"$f":"[5]EJECUTIVO!$I57","v":35.269960183156115},{"$f":"[5]EJECUTIVO!$J57","v":-462.66634085766032},{"$f":"[6]EJECUTIVO!$I57","v":-243.11780682979713},{"$f":"[6]EJECUTIVO!$J57","v":-302.56648725894502},{"$f":"[7]EJECUTIVO!$I57","v":-2267.4358631720534},{"$f":"[7]EJECUTIVO!$J57","v":-2821.9033458312119},{"$f":"[8]EJECUTIVO!$I57","v":"n.d."},{"$f":"[8]EJECUTIVO!$J57","v":"n.d."}]
["           1.5.2  Financiamiento externo",{"$f":"[2]EJECUTIVO!$I58","v":47.667274111263147},{"$f":"[2]EJECUTIVO!$J58","v":583.12094648513562},{"$f":"[3]EJECUTIVO!$I58","v":177.19537297000005},{"$f":"[3]EJECUTIVO!$J58","v":112.10520218000002},{"$f":"[4]EJECUTIVO!$I58","v":-152.13989694682147},{"$f":"[4]EJECUTIVO!$J58","v":-135.53082238870374},{"$f":"[5]EJECUTIVO!$I58","v":-28.902980923833031},{"$f":"[5]EJECUTIVO!$J58","v":-44.045796515034638},{"$f":"[6]EJECUTIVO!$I58","v":123.0588261557325},{"$f":"[6]EJECUTIVO!$J58","v":85.848614716317826},{"$f":"[7]EJECUTIVO!$I58","v":2430.0257726804998},{"$f":"[7]EJECUTIVO!$J58","v":2906.7277452417729},{"$f":"[8]EJECUTIVO!$I58","v":"n.d."},{"$f":"[8]EJECUTIVO!$J58","v":"n.d."}]
["     1.6  Déficit (-) superávit (+) en el 2021 y estimado 2022, con donaciones",{"$f":"[2]METAS!$H$39","v":-3245.705714390082},{"$f":"[2]METAS!$K$39","v":"n.d."},{"$f":"[3]METAS!$H$39","v":-1416.7646977476945},{"$f":"[3]METAS!$K$39","v":"n.d."},{"$f":"[4]METAS!$H$39","v":-1007.7294432689561},{"$f":"[4]METAS!$K$39","v":-2067.2591745325058},{"$f":"[5]METAS!$H$39","v":-1408.9592430357684},{"$f":"[5]METAS!$K$39","v":"n.d."},{"$f":"[6]METAS!$H$39","v":-100.92593322176363},{"$f":"[6]METAS!$K$39","v":"n.d."},{"$f":"[7]METAS!$H$39","v":-2872.3311593385056},{"$f":"[7]METAS!$K$39","v":"n.d."},{"$f":"[8]METAS!$H$39","v":-3981.3},{"$f":"[8]METAS!$K$39","v":"n.d."}]
["     1.7  Ingresos Corrientes, tasa de variación interanual",{"$f":"[2]EJECUTIVO!$I53","v":26.720241271335897},{"$f":"[2]EJECUTIVO!$J53","v":11.868467804045736},{"$f":"[3]EJECUTIVO!$I53","v":29.034582733098336},{"$f":"[3]EJECUTIVO!$J53","v":19.529217928780952},{"$f":"[4]EJECUTIVO!$I53","v":22.180581264184518},{"$f":"[4]EJECUTIVO!$J53","v":17.010086720380315},{"$f":"[5]EJECUTIVO!$I53","v":35.937989410080903},{"$f":"[5]EJECUTIVO!$J53","v":15.942910440902768},{"$f":"[6]EJECUTIVO!$I53","v":24.208046229397361},{"$f":"[6]EJECUTIVO!$J53","v":20.796691116635891},{"$f":"[7]EJECUTIVO!$I53","v":35.484921586523697},{"$f":"[7]EJECUTIVO!$J53","v":16.501855700362491},{"$f":"[8]EJECUTIVO!$I53","v":5.0003501645773385},{"$f":"[8]EJECUTIVO!$J53","v":18.255185753351565}]
["     1.8  Relación Gasto Capital / Gasto Total, en porcentajes",{"$f":"[2]EJECUTIVO!$I54","v":5.6074182538867827},{"$f":"[2]EJECUTIVO!$J54","v":4.6926392962883989},{"$f":"[3]EJECUTIVO!$I54","v":13.853343917332941},{"$f":"[3]EJECUTIVO!$J54","v":9.178021816059962},{"$f":"[4]EJECUTIVO!$I54","v":15.964905004401794},{"$f":"[4]EJECUTIVO!$J54","v":16.815346279056385},{"$f":"[5]EJECUTIVO!$I54","v":17.510025383946314},{"$f":"[5]EJECUTIVO!$J54","v":7.2961350829248195},{"$f":"[6]EJECUTIVO!$I54","v":24.929661001574015},{"$f":"[6]EJECUTIVO!$J54","v":17.051619510939609},{"$f":"[7]EJECUTIVO!$I54","v":6.3957204069883939},{"$f":"[7]EJECUTIVO!$J54","v":8.0218324634157216},{"$f":"[8]EJECUTIVO!$I54","v":22.161860465116277},{"$f":"[8]EJECUTIVO!$J54","v":36.45669534116486}]
["     1.9  Ahorro Corriente, en millones de US$",{"$f":"[2]EJECUTIVO!$I55","v":-458.00620155085892},{"$f":"[2]EJECUTIVO!$J55","v":-348.76245174193514},{"$f":"[3]EJECUTIVO!$I55","v":193.89492132372516},{"$f":"[3]EJECUTIVO!$J55","v":488.95893642457986},{"$f":"[4]EJECUTIVO!$I55","v":607.30500362556916},{"$f":"[4]EJECUTIVO!$J55","v":847.0157204628747},{"$f":"[5]EJECUTIVO!$I55","v":318.94802720617088},{"$f":"[5]EJECUTIVO!$J55","v":599.04019190832014},{"$f":"[6]EJECUTIVO!$I55","v":336.65052364204013},{"$f":"[6]EJECUTIVO!$J55","v":381.71603785200767},{"$f":"[7]EJECUTIVO!$I55","v":122.94377854813234},{"$f":"[7]EJECUTIVO!$J55","v":261.41303606515254},{"$f":"[8]EJECUTIVO!$I55","v":-592.60000000000014},{"$f":"[8]EJECUTIVO!$J55","v":-287.90000000000009}]
["2.  Saldo Deuda Pública, en millones de US$",{"$f":"IF([2]EJECUTIVO!$J$62=[2]EJECUTIVO!$J$4,[2]EJECUTIVO!$G$62,CONCATENATE([2]EJECUTIVO!$G$62,\"\n\",[2]EJECUTIVO!$I$61,\"          \",[2]EJECUTIVO!$J$61))","v":"ABRIL\n2021          2022"},null,{"$f":"IF([3]EJECUTIVO!$J$62=[3]EJECUTIVO!$J$4,[3]EJECUTIVO!$G$62,CONCATENATE([3]EJECUTIVO!$G$62,\"\n\",[3]EJECUTIVO!$I$61,\"          \",[3]EJECUTIVO!$J$61))","v":"MAYO\n2021          2022"},null,{"$f":"IF([4]EJECUTIVO!$J$62=[4]EJECUTIVO!$J$4,[4]EJECUTIVO!$G$62,CONCATENATE([4]EJECUTIVO!$G$62,\"\n\",[4]EJECUTIVO!$I$61,\"          \",[4]EJECUTIVO!$J$61))","v":"MAYO\n2021          2022"},null,{"$f":"IF([5]EJECUTIVO!$J$62=[5]EJECUTIVO!$J$4,[5]EJECUTIVO!$G$62,CONCATENATE([5]EJECUTIVO!$G$62,\"\n\",[5]EJECUTIVO!$I$61,\"          \",[5]EJECUTIVO!$J$61))","v":"MAYO\n2021          2022"},null,{"$f":"IF([6]EJECUTIVO!$J$62=[6]EJECUTIVO!$J$4,[6]EJECUTIVO!$G$62,CONCATENATE([6]EJECUTIVO!$G$62,\"\n\",[6]EJECUTIVO!$I$61,\"          \",[6]EJECUTIVO!$J$61))","v":"ABRIL\n2021          2022"},null,{"$f":"IF([7]EJECUTIVO!$J$62=[7]EJECUTIVO!$J$4,[7]EJECUTIVO!$G$62,CONCATENATE([7]EJECUTIVO!$G$62,\"\n\",[7]EJECUTIVO!$I$61,\"          \",[7]EJECUTIVO!$J$61))","v":"ABRIL\n2021          2022"},null,{"$f":"IF([8]EJECUTIVO!$J$62=[8]EJECUTIVO!$J$4,[8]EJECUTIVO!$G$62,CONCATENATE([8]EJECUTIVO!$G$62,\"\n\",[8]EJECUTIVO!$I$61,\"          \",[8]EJECUTIVO!$J$61))","v":"JUNIO\n2021          2022"}]
["2.1 Saldo Deuda Pública Total h/",{"$f":"[2]EJECUTIVO!$I$62","v":50127.093620299005},{"$f":"[2]EJECUTIVO!$J62","v":50907.438222507131},{"$f":"[3]EJECUTIVO!$I62","v":23298.242758919176},{"$f":"[3]EJECUTIVO!$J62","v":24579.673978046529},{"$f":"[4]EJECUTIVO!$I62","v":25886.406220197197},{"$f":"[4]EJECUTIVO!$J62","v":27503.760759370882},{"$f":"[5]EJECUTIVO!$I62","v":13706.358619558372},{"$f":"[5]EJECUTIVO!$J62","v":14618.028666690734},{"$f":"[6]EJECUTIVO!$I62","v":8679.4071153720615},{"$f":"[6]EJECUTIVO!$J62","v":9505.1040146054966},{"$f":"[7]EJECUTIVO!$I62","v":59357.440000000002},{"$f":"[7]EJECUTIVO!$J62","v":64332.44},{"$f":"[8]EJECUTIVO!$I62","v":39684.42},{"$f":"[8]EJECUTIVO!$J62","v":43175.31}]
["   2.1.1 Saldo Deuda Interna Bruta",{"$f":"[2]EJECUTIVO!$I$63","v":36846.563620299006},{"$f":"[2]EJECUTIVO!$J63","v":35971.086922507129},{"$f":"[3]EJECUTIVO!$I63","v":11945.988948919174},{"$f":"[3]EJECUTIVO!$J63","v":12654.19392804653},{"$f":"[4]EJECUTIVO!$I63","v":22359.100356566691},{"$f":"[4]EJECUTIVO!$J63","v":23286.51419094262},{"$f":"[5]EJECUTIVO!$I63","v":10999.239224620527},{"$f":"[5]EJECUTIVO!$J63","v":12577.463570167953},{"$f":"[6]EJECUTIVO!$I63","v":1601.8591042064247},{"$f":"[6]EJECUTIVO!$J63","v":1624.449540756603},{"$f":"[7]EJECUTIVO!$I63","v":28353.34},{"$f":"[7]EJECUTIVO!$J63","v":29593.66},{"$f":"[8]EJECUTIVO!$I63","v":7559.2},{"$f":"[8]EJECUTIVO!$J63","v":7655.73}]
["2.1.1.1 Sector Público No Financiero",{"$f":"[2]EJECUTIVO!$I$64","v":33547.659433456261},{"$f":"[2]EJECUTIVO!$J64","v":33320.544478458149},{"$f":"[3]EJECUTIVO!$I64","v":6050.5872105166654},{"$f":"[3]EJECUTIVO!$J64","v":6538.4769943366655},{"$f":"[4]EJECUTIVO!$I64","v":15002.339658382345},{"$f":"[4]EJECUTIVO!$J64","v":16033.178185508192},{"$f":"[5]EJECUTIVO!$I64","v":9689.6098938748491},{"$f":"[5]EJECUTIVO!$J64","v":10490.973911989682},{"$f":"[6]EJECUTIVO!$I64","v":818.71913968144372},{"$f":"[6]EJECUTIVO!$J64","v":877.6550209249574},{"$f":"[7]EJECUTIVO!$I64","v":14317.5},{"$f":"[7]EJECUTIVO!$J64","v":14095.83},{"$f":"[8]EJECUTIVO!$I64","v":7559.2},{"$f":"[8]EJECUTIVO!$J64","v":7655.73}]
["         a) Gobierno Central",{"$f":"[2]EJECUTIVO!$I$65","v":32208.991816271944},{"$f":"[2]EJECUTIVO!$J65","v":31891.457248718147},{"$f":"[3]EJECUTIVO!$I65","v":5585.4447123599984},{"$f":"[3]EJECUTIVO!$J65","v":5971.5274974599988},{"$f":"[4]EJECUTIVO!$I65","v":15002.339658382345},{"$f":"[4]EJECUTIVO!$J65","v":16033.178185508192},{"$f":"[5]EJECUTIVO!$I65","v":6841.9985090178116},{"$f":"[5]EJECUTIVO!$J65","v":7620.6577928230899},{"$f":"[6]EJECUTIVO!$I65","v":818.71913968144372},{"$f":"[6]EJECUTIVO!$J65","v":877.6550209249574},{"$f":"[7]EJECUTIVO!$I65","v":13838.4},{"$f":"[7]EJECUTIVO!$J65","v":13704.5},{"$f":"[8]EJECUTIVO!$I65","v":7555.38},{"$f":"[8]EJECUTIVO!$J65","v":7651.91}]
["         b) Resto del Sector Público No Financiero",{"$f":"[2]EJECUTIVO!$I$66","v":1338.6676171843158},{"$f":"[2]EJECUTIVO!$J66","v":1429.087229740001},{"$f":"[3]EJECUTIVO!$I66","v":465.1424981566667},{"$f":"[3]EJECUTIVO!$J66","v":566.94949687666667},{"$f":"[4]EJECUTIVO!$I66","v":"n.d."},{"$f":"[4]EJECUTIVO!$J66","v":"n.d."},{"$f":"[5]EJECUTIVO!$I66","v":2847.6113848570376},{"$f":"[5]EJECUTIVO!$J66","v":2870.3161191665927},{"$f":"[6]EJECUTIVO!$I66","v":"n.d."},{"$f":"[6]EJECUTIVO!$J66","v":"n.d."},{"$f":"[7]EJECUTIVO!$I66","v":479.1},{"$f":"[7]EJECUTIVO!$J66","v":391.33},{"$f":"[8]EJECUTIVO!$I66","v":3.82},{"$f":"[8]EJECUTIVO!$J66","v":3.82}]
["2.1.1.2 Sector Público Financiero",{"$f":"[2]EJECUTIVO!$I$67","v":3298.9041868427485},{"$f":"[2]EJECUTIVO!$J67","v":2650.5424440489833},{"$f":"[3]EJECUTIVO!$I67","v":5895.4017384025092},{"$f":"[3]EJECUTIVO!$J67","v":6115.7169337098649},{"$f":"[4]EJECUTIVO!$I67","v":7356.7606981843428},{"$f":"[4]EJECUTIVO!$J67","v":7253.3360054344294},{"$f":"[5]EJECUTIVO!$I67","v":1309.6293307456776},{"$f":"[5]EJECUTIVO!$J67","v":2086.4896581782709},{"$f":"[6]EJECUTIVO!$I67","v":783.139964524981},{"$f":"[6]EJECUTIVO!$J67","v":746.79451983164586},{"$f":"[7]EJECUTIVO!$I67","v":14035.84},{"$f":"[7]EJECUTIVO!$J67","v":15497.83},{"$f":"[8]EJECUTIVO!$I67","v":"n.d."},{"$f":"[8]EJECUTIVO!$J67","v":"n.d."}]
["         a) Banco Central",{"$f":"[2]EJECUTIVO!$I$68","v":3298.9041868427485},{"$f":"[2]EJECUTIVO!$J68","v":2650.5424440489833},{"$f":"[3]EJECUTIVO!$I68","v":0},{"$f":"[3]EJECUTIVO!$J68","v":0},{"$f":"[4]EJECUTIVO!$I68","v":7356.7606981843428},{"$f":"[4]EJECUTIVO!$J68","v":7253.3360054344294},{"$f":"[5]EJECUTIVO!$I68","v":1176.0655213169587},{"$f":"[5]EJECUTIVO!$J68","v":1946.7435344771052},{"$f":"[6]EJECUTIVO!$I68","v":783.139964524981},{"$f":"[6]EJECUTIVO!$J68","v":746.79451983164586},{"$f":"[7]EJECUTIVO!$I68","v":14035.84},{"$f":"[7]EJECUTIVO!$J68","v":15497.83},{"$f":"[8]EJECUTIVO!$I68","v":"n.d."},{"$f":"[8]EJECUTIVO!$J68","v":"n.d."}]
["         b) Resto del Sector Público Financiero",{"$f":"[2]EJECUTIVO!$I$69","v":"n.d."},{"$f":"[2]EJECUTIVO!$J69","v":"n.d."},{"$f":"[3]EJECUTIVO!$I69","v":5895.4017384025092},{"$f":"[3]EJECUTIVO!$J69","v":6115.7169337098649},{"$f":"[4]EJECUTIVO!$I69","v":"n.d."},{"$f":"[4]EJECUTIVO!$J69","v":"n.d."},{"$f":"[5]EJECUTIVO!$I69","v":133.56380942871883},{"$f":"[5]EJECUTIVO!$J69","v":139.74612370116563},{"$f":"[6]EJECUTIVO!$I69","v":"n.d."},{"$f":"[6]EJECUTIVO!$J69","v":"n.d."},{"$f":"[7]EJECUTIVO!$I69","v":"n.d."},{"$f":"[7]EJECUTIVO!$J69","v":"n.d."},{"$f":"[8]EJECUTIVO!$I69","v":"n.d."},{"$f":"[8]EJECUTIVO!$J69","v":"n.d."}]
["   2.1.2 Deuda  Intragubernamental",{"$f":"[2]EJECUTIVO!$I$70","v":"n.d."},{"$f":"[2]EJECUTIVO!$J70","v":"n.d."},{"$f":"[3]EJECUTIVO!$I70","v":"n.d."},{"$f":"[3]EJECUTIVO!$J70","v":"n.d."},{"$f":"[4]EJECUTIVO!$I70","v":6759.8805363694883},{"$f":"[4]EJECUTIVO!$J70","v":6725.4888315717426},{"$f":"[5]EJECUTIVO!$I70","v":6383.4806050621537},{"$f":"[5]EJECUTIVO!$J70","v":7097.4349034772194},{"$f":"[6]EJECUTIVO!$I70","v":"n.d."},{"$f":"[6]EJECUTIVO!$J70","v":"n.d."},{"$f":"[7]EJECUTIVO!$I70","v":2429.0899999999997},{"$f":"[7]EJECUTIVO!$J70","v":2449.64},{"$f":"[8]EJECUTIVO!$I70","v":"n.d."},{"$f":"[8]EJECUTIVO!$J70","v":"n.d."}]
["                     a) Deuda Intragubernamental SPNF",{"$f":"[2]EJECUTIVO!$I$71","v":"n.d."},{"$f":"[2]EJECUTIVO!$J71","v":"n.d."},{"$f":"[3]EJECUTIVO!$I71","v":"n.d."},{"$f":"[3]EJECUTIVO!$J71","v":"n.d."},{"$f":"[4]EJECUTIVO!$I71","v":3957.7450970513537},{"$f":"[4]EJECUTIVO!$J71","v":3977.0967770817015},{"$f":"[5]EJECUTIVO!$I71","v":4306.6164112292618},{"$f":"[5]EJECUTIVO!$J71","v":4162.5407806941321},{"$f":"[6]EJECUTIVO!$I71","v":"n.d."},{"$f":"[6]EJECUTIVO!$J71","v":"n.d."},{"$f":"[7]EJECUTIVO!$I71","v":2429.0899999999997},{"$f":"[7]EJECUTIVO!$J71","v":2449.64},{"$f":"[8]EJECUTIVO!$I71","v":"n.d."},{"$f":"[8]EJECUTIVO!$J71","v":"n.d."}]
["                     b) Deuda Intragubernamental del BC",{"$f":"[2]EJECUTIVO!$I$72","v":"n.d."},{"$f":"[2]EJECUTIVO!$J72","v":"n.d."},{"$f":"[3]EJECUTIVO!$I72","v":"n.d."},{"$f":"[3]EJECUTIVO!$J72","v":"n.d."},{"$f":"[4]EJECUTIVO!$I72","v":2802.1354393181346},{"$f":"[4]EJECUTIVO!$J72","v":2748.3920544900411},{"$f":"[5]EJECUTIVO!$I72","v":2076.8641938328924},{"$f":"[5]EJECUTIVO!$J72","v":2934.8941227830869},{"$f":"[6]EJECUTIVO!$I72","v":"n.d."},{"$f":"[6]EJECUTIVO!$J72","v":"n.d."},{"$f":"[7]EJECUTIVO!$I72","v":"n.d."},{"$f":"[7]EJECUTIVO!$J72","v":"n.d."},{"$f":"[8]EJECUTIVO!$I72","v":"n.d."},{"$f":"[8]EJECUTIVO!$J72","v":"n.d."}]
["   2.1.3 Saldo Deuda Interna Consolidada (2.1.1 - 2.1.2)",{"$f":"[2]EJECUTIVO!$I$73","v":"n.d."},{"$f":"[2]EJECUTIVO!$J73","v":"n.d."},{"$f":"[3]EJECUTIVO!$I73","v":"n.d."},{"$f":"[3]EJECUTIVO!$J73","v":"n.d."},{"$f":"[4]EJECUTIVO!$I73","v":15599.219820197201},{"$f":"[4]EJECUTIVO!$J73","v":16561.02535937088},{"$f":"[5]EJECUTIVO!$I73","v":4615.7586195583735},{"$f":"[5]EJECUTIVO!$J73","v":5480.0286666907332},{"$f":"[6]EJECUTIVO!$I73","v":"n.d."},{"$f":"[6]EJECUTIVO!$J73","v":"n.d."},{"$f":"[7]EJECUTIVO!$I73","v":25924.25},{"$f":"[7]EJECUTIVO!$J73","v":27144.02},{"$f":"[8]EJECUTIVO!$I73","v":"n.d."},{"$f":"[8]EJECUTIVO!$J73","v":"n.d."}]
["   2.1.4  Saldo Deuda Externa",{"$f":"[2]EJECUTIVO!$I74","v":13280.529999999999},{"$f":"[2]EJECUTIVO!$J74","v":14936.351300000002},{"$f":"[3]EJECUTIVO!$I74","v":11352.253810000002},{"$f":"[3]EJECUTIVO!$J74","v":11925.480049999998},{"$f":"[4]EJECUTIVO!$I74","v":10287.186399999999},{"$f":"[4]EJECUTIVO!$J74","v":10942.7354},{"$f":"[5]EJECUTIVO!$I74","v":9090.5999999999985},{"$f":"[5]EJECUTIVO!$J74","v":9138},{"$f":"[6]EJECUTIVO!$I74","v":7077.5480111656361},{"$f":"[6]EJECUTIVO!$J74","v":7880.6544738488938},{"$f":"[7]EJECUTIVO!$I74","v":33433.19},{"$f":"[7]EJECUTIVO!$J74","v":37188.42},{"$f":"[8]EJECUTIVO!$I74","v":32125.22},{"$f":"[8]EJECUTIVO!$J74","v":35519.58}]
["2.1.4.1 Sector Público No Financiero",{"$f":"[2]EJECUTIVO!$I75","v":12096.4},{"$f":"[2]EJECUTIVO!$J75","v":13473.418000000001},{"$f":"[3]EJECUTIVO!$I75","v":10929.499740000001},{"$f":"[3]EJECUTIVO!$J75","v":11438.824149999999},{"$f":"[4]EJECUTIVO!$I75","v":10287.186399999999},{"$f":"[4]EJECUTIVO!$J75","v":10942.7354},{"$f":"[5]EJECUTIVO!$I75","v":8489.1999999999989},{"$f":"[5]EJECUTIVO!$J75","v":8474},{"$f":"[6]EJECUTIVO!$I75","v":5459.3893116693471},{"$f":"[6]EJECUTIVO!$J75","v":6008.1315825696965},{"$f":"[7]EJECUTIVO!$I75","v":33128.89},{"$f":"[7]EJECUTIVO!$J75","v":36288.159999999996},{"$f":"[8]EJECUTIVO!$I75","v":32125.22},{"$f":"[8]EJECUTIVO!$J75","v":35519.58}]
["         a) Gobierno Central",{"$f":"[2]EJECUTIVO!$I76","v":9601.51},{"$f":"[2]EJECUTIVO!$J76","v":11324.734700000001},{"$f":"[3]EJECUTIVO!$I76","v":10406.99869},{"$f":"[3]EJECUTIVO!$J76","v":10968.446839999999},{"$f":"[4]EJECUTIVO!$I76","v":10251.908099999999},{"$f":"[4]EJECUTIVO!$J76","v":10915.475199999999},{"$f":"[5]EJECUTIVO!$I76","v":8239.0999999999985},{"$f":"[5]EJECUTIVO!$J76","v":8255.5},{"$f":"[6]EJECUTIVO!$I76","v":5413.6737825145547},{"$f":"[6]EJECUTIVO!$J76","v":5967.3365054045526},{"$f":"[7]EJECUTIVO!$I76","v":33122.9},{"$f":"[7]EJECUTIVO!$J76","v":36282.199999999997},{"$f":"[8]EJECUTIVO!$I76","v":32109.45},{"$f":"[8]EJECUTIVO!$J76","v":35506.67}]
["         b) Resto del Sector Público No Financiero",{"$f":"[2]EJECUTIVO!$I77","v":2494.89},{"$f":"[2]EJECUTIVO!$J77","v":2148.6833000000001},{"$f":"[3]EJECUTIVO!$I77","v":522.50105000000008},{"$f":"[3]EJECUTIVO!$J77","v":470.37730999999997},{"$f":"[4]EJECUTIVO!$I77","v":35.278300000000002},{"$f":"[4]EJECUTIVO!$J77","v":27.260200000000001},{"$f":"[5]EJECUTIVO!$I77","v":250.1},{"$f":"[5]EJECUTIVO!$J77","v":218.5},{"$f":"[6]EJECUTIVO!$I77","v":45.715529154792627},{"$f":"[6]EJECUTIVO!$J77","v":40.795077165143717},{"$f":"[7]EJECUTIVO!$I77","v":5.99},{"$f":"[7]EJECUTIVO!$J77","v":5.96},{"$f":"[8]EJECUTIVO!$I77","v":15.77},{"$f":"[8]EJECUTIVO!$J77","v":12.91}]
["2.1.4.2 Sector Público Financiero",{"$f":"[2]EJECUTIVO!$I78","v":1184.1300000000001},{"$f":"[2]EJECUTIVO!$J78","v":1462.9333000000001},{"$f":"[3]EJECUTIVO!$I78","v":422.75406999999996},{"$f":"[3]EJECUTIVO!$J78","v":486.65589999999997},{"$f":"[4]EJECUTIVO!$I78","v":"n.d."},{"$f":"[4]EJECUTIVO!$J78","v":"n.d."},{"$f":"[5]EJECUTIVO!$I78","v":601.4},{"$f":"[5]EJECUTIVO!$J78","v":663.99999999999989},{"$f":"[6]EJECUTIVO!$I78","v":1618.1586994962893},{"$f":"[6]EJECUTIVO!$J78","v":1872.5228912791974},{"$f":"[7]EJECUTIVO!$I78","v":304.3},{"$f":"[7]EJECUTIVO!$J78","v":900.26},{"$f":"[8]EJECUTIVO!$I78","v":0},{"$f":"[8]EJECUTIVO!$J78","v":0}]
["         a) Banco Central",{"$f":"[2]EJECUTIVO!$I79","v":231.69},{"$f":"[2]EJECUTIVO!$J79","v":690.96249999999998},{"$f":"[3]EJECUTIVO!$I79","v":142.22801999999999},{"$f":"[3]EJECUTIVO!$J79","v":116.38644000000001},{"$f":"[4]EJECUTIVO!$I79","v":0},{"$f":"[4]EJECUTIVO!$J79","v":0},{"$f":"[5]EJECUTIVO!$I79","v":577.6},{"$f":"[5]EJECUTIVO!$J79","v":642.69999999999993},{"$f":"[6]EJECUTIVO!$I79","v":1618.1586994962893},{"$f":"[6]EJECUTIVO!$J79","v":1872.5228912791974},{"$f":"[7]EJECUTIVO!$I79","v":304.3},{"$f":"[7]EJECUTIVO!$J79","v":900.26},{"$f":"[8]EJECUTIVO!$I79","v":0},{"$f":"[8]EJECUTIVO!$J79","v":0}]
["         b) Resto del Sector Público Financiero",{"$f":"[2]EJECUTIVO!$I80","v":952.44},{"$f":"[2]EJECUTIVO!$J80","v":771.97080000000005},{"$f":"[3]EJECUTIVO!$I80","v":280.52605},{"$f":"[3]EJECUTIVO!$J80","v":370.26945999999998},{"$f":"[4]EJECUTIVO!$I80","v":"n.d."},{"$f":"[4]EJECUTIVO!$J80","v":"n.d."},{"$f":"[5]EJECUTIVO!$I80","v":23.8},{"$f":"[5]EJECUTIVO!$J80","v":21.3},{"$f":"[6]EJECUTIVO!$I80","v":0},{"$f":"[6]EJECUTIVO!$J80","v":0},{"$f":"[7]EJECUTIVO!$I80","v":"n.d."},{"$f":"[7]EJECUTIVO!$J80","v":"n.d."},{"$f":"[8]EJECUTIVO!$I80","v":0},{"$f":"[8]EJECUTIVO!$J80","v":0}]
["2.2 Relación Deuda Pública Total/PIB h/",{"$f":"[2]EJECUTIVO!$I81","v":77.80873767553193},{"$f":"[2]EJECUTIVO!$J81","v":76.884395302241117},{"$f":"[3]EJECUTIVO!$I81","v":81.074194952278063},{"$f":"[3]EJECUTIVO!$J81","v":80.775009950924854},{"$f":"[4]EJECUTIVO!$I81","v":30.105415580556883},{"$f":"[4]EJECUTIVO!$J81","v":29.935889911949324},{"$f":"[5]EJECUTIVO!$I81","v":48.109807767054022},{"$f":"[5]EJECUTIVO!$J81","v":48.081216852333661},{"$f":"[6]EJECUTIVO!$I81","v":61.937877014320385},{"$f":"[6]EJECUTIVO!$J81","v":67.830204948246759},{"$f":"[7]EJECUTIVO!$I81","v":63.069939874739823},{"$f":"[7]EJECUTIVO!$J81","v":60.105687821048249},{"$f":"[8]EJECUTIVO!$I81","v":62.391917236413477},{"$f":"[8]EJECUTIVO!$J81","v":61.248461311821167}]
["   2.2.1.a Deuda Interna/PIB (bruta)",{"$f":"[2]EJECUTIVO!$I82","v":57.194311417561536},{"$f":"[2]EJECUTIVO!$J82","v":54.326349212728289},{"$f":"[3]EJECUTIVO!$I82","v":41.570149601590053},{"$f":"[3]EJECUTIVO!$J82","v":41.584873801492392},{"$f":"[4]EJECUTIVO!$I82","v":26.003223565139972},{"$f":"[4]EJECUTIVO!$J82","v":25.345716585888795},{"$f":"[5]EJECUTIVO!$I82","v":38.607722106820532},{"$f":"[5]EJECUTIVO!$J82","v":41.369446397896176},{"$f":"[6]EJECUTIVO!$I82","v":11.43116699928574},{"$f":"[6]EJECUTIVO!$J82","v":11.592376591386406},{"$f":"[7]EJECUTIVO!$I82","v":30.126694295577028},{"$f":"[7]EJECUTIVO!$J82","v":27.649305536091006},{"$f":"[8]EJECUTIVO!$I82","v":11.884587976175455},{"$f":"[8]EJECUTIVO!$J82","v":10.860412645994867}]
["   2.2.1.b Deuda Interna/PIB (consolidada)",{"$f":"[2]EJECUTIVO!$I83","v":"n.d."},{"$f":"[2]EJECUTIVO!$J83","v":"n.d."},{"$f":"[3]EJECUTIVO!$I83","v":"n.d."},{"$f":"[3]EJECUTIVO!$J83","v":"n.d."},{"$f":"[4]EJECUTIVO!$I83","v":18.141606502840354},{"$f":"[4]EJECUTIVO!$J83","v":18.02549972436816},{"$f":"[5]EJECUTIVO!$I83","v":16.201477434655871},{"$f":"[5]EJECUTIVO!$J83","v":18.024759198930397},{"$f":"[6]EJECUTIVO!$I83","v":"n.d."},{"$f":"[6]EJECUTIVO!$J83","v":"n.d."},{"$f":"[7]EJECUTIVO!$I83","v":27.545677320277349},{"$f":"[7]EJECUTIVO!$J83","v":25.360611105816755},{"$f":"[8]EJECUTIVO!$I83","v":"n.d."},{"$f":"[8]EJECUTIVO!$J83","v":"n.d."}]
["   2.2.2    Deuda Externa/PIB",{"$f":"[2]EJECUTIVO!$I84","v":20.614426257970393},{"$f":"[2]EJECUTIVO!$J84","v":22.558046089512835},{"$f":"[3]EJECUTIVO!$I84","v":39.50404535068801},{"$f":"[3]EJECUTIVO!$J84","v":39.190136149432462},{"$f":"[4]EJECUTIVO!$I84","v":11.963809077716528},{"$f":"[4]EJECUTIVO!$J84","v":11.910390187581161},{"$f":"[5]EJECUTIVO!$I84","v":31.908330332398144},{"$f":"[5]EJECUTIVO!$J84","v":30.056457653403264},{"$f":"[6]EJECUTIVO!$I84","v":50.506710015034642},{"$f":"[6]EJECUTIVO!$J84","v":56.237828356860362},{"$f":"[7]EJECUTIVO!$I84","v":35.524262554462474},{"$f":"[7]EJECUTIVO!$J84","v":34.745076715231491},{"$f":"[8]EJECUTIVO!$I84","v":50.507329260238023},{"$f":"[8]EJECUTIVO!$J84","v":50.388048665826304}]
[]
["IV. SECTOR MONEDA Y CREDITO  i/"]
["1. Principales variables monetarias, tasas de variación",{"$f":"IF([2]EJECUTIVO!$J$100=[2]EJECUTIVO!$J$4,[2]EJECUTIVO!$G$101,CONCATENATE([2]EJECUTIVO!$G$101,\"\n\",[2]EJECUTIVO!$I$99,\"          \",[2]EJECUTIVO!$J$99))","v":"FEBRERO\n2021          2022"},null,{"$f":"IF([3]EJECUTIVO!$J$100=[3]EJECUTIVO!$J$4,[3]EJECUTIVO!$G$101,CONCATENATE([3]EJECUTIVO!$G$101,\"\n\",[3]EJECUTIVO!$I$99,\"          \",[3]EJECUTIVO!$J$99))","v":"MAYO\n2021          2022"},null,{"$f":"IF([4]EJECUTIVO!$J$100=[4]EJECUTIVO!$J$4,[4]EJECUTIVO!$G$101,CONCATENATE([4]EJECUTIVO!$G$101,\"\n\",[4]EJECUTIVO!$I$99,\"          \",[4]EJECUTIVO!$J$99))","v":"JUNIO\n2021          2022"},null,{"$f":"IF([5]EJECUTIVO!$J$100=[5]EJECUTIVO!$J$4,[5]EJECUTIVO!$G$101,CONCATENATE([5]EJECUTIVO!$G$101,\"\n\",[5]EJECUTIVO!$I$99,\"          \",[5]EJECUTIVO!$J$99))","v":"ABRIL\n2021          2022"},null,{"$f":"IF([6]EJECUTIVO!$J$100=[6]EJECUTIVO!$J$4,[6]EJECUTIVO!$G$101,CONCATENATE([6]EJECUTIVO!$G$101,\"\n\",[6]EJECUTIVO!$I$99,\"          \",[6]EJECUTIVO!$J$99))","v":"ABRIL\n2021          2022"},null,{"$f":"IF([7]EJECUTIVO!$J$100=[7]EJECUTIVO!$J$4,[7]EJECUTIVO!$G$101,CONCATENATE([7]EJECUTIVO!$G$101,\"\n\",[7]EJECUTIVO!$I$99,\"          \",[7]EJECUTIVO!$J$99))","v":"JUNIO\n2021          2022"},null,{"$f":"IF([8]EJECUTIVO!$J$100=[8]EJECUTIVO!$J$4,[8]EJECUTIVO!$G$101,CONCATENATE([8]EJECUTIVO!$G$101,\"\n\",[8]EJECUTIVO!$I$99,\"          \",[8]EJECUTIVO!$J$99))","v":"MAYO\n2021          2022"}]
["1.1  Base Monetaria Restringida, tasa interanual ponderada para los componentes",{"$f":"[2]EJECUTIVO!$I100","v":14.921472396724877},{"$f":"[2]EJECUTIVO!$J100","v":2.3283632482596683},{"$f":"[3]EJECUTIVO!$I100","v":-12.849662182487631},{"$f":"[3]EJECUTIVO!$J100","v":20.310549653384371},{"$f":"[4]EJECUTIVO!$I100","v":15.271021354083313},{"$f":"[4]EJECUTIVO!$J100","v":15.637696821158364},{"$f":"[5]EJECUTIVO!$I100","v":50.626060244761085},{"$f":"[5]EJECUTIVO!$J100","v":-8.9424834764349477},{"$f":"[6]EJECUTIVO!$I100","v":23.811697890621076},{"$f":"[6]EJECUTIVO!$J100","v":22.307711754966309},{"$f":"[7]EJECUTIVO!$I100","v":16.472959095062389},{"$f":"[7]EJECUTIVO!$J100","v":12.32499706091772},{"$f":"[8]EJECUTIVO!$I100","v":13.585176938910305},{"$f":"[8]EJECUTIVO!$J100","v":2.8218495561545653}]
["     1.1.1 Billetes y monedas en circulación",{"$f":"[2]EJECUTIVO!$I101","v":8.9603902663445005},{"$f":"[2]EJECUTIVO!$J101","v":-1.0327715096236501},{"$f":"[3]EJECUTIVO!$I101","v":-1.2596712671616108E-2},{"$f":"[3]EJECUTIVO!$J101","v":3.4517022716946987E-4},{"$f":"[4]EJECUTIVO!$I101","v":9.8943911732429761},{"$f":"[4]EJECUTIVO!$J101","v":10.948978125702851},{"$f":"[5]EJECUTIVO!$I101","v":7.6293886052791144},{"$f":"[5]EJECUTIVO!$J101","v":7.4916665556119453},{"$f":"[6]EJECUTIVO!$I101","v":20.714516661145744},{"$f":"[6]EJECUTIVO!$J101","v":18.005556358025384},{"$f":"[7]EJECUTIVO!$I101","v":6.8325240715552624},{"$f":"[7]EJECUTIVO!$J101","v":3.8421558828576443},{"$f":"[8]EJECUTIVO!$I101","v":13.585176938910305},{"$f":"[8]EJECUTIVO!$J101","v":2.8218495561545653}]
["     1.1.2 Depósitos transferibles por concepto de encaje en MN",{"$f":"[2]EJECUTIVO!$I102","v":5.9610821303803743},{"$f":"[2]EJECUTIVO!$J102","v":3.3611347578833128},{"$f":"[3]EJECUTIVO!$I102","v":-12.837065469816018},{"$f":"[3]EJECUTIVO!$J102","v":20.310204483157211},{"$f":"[4]EJECUTIVO!$I102","v":5.151819742157759},{"$f":"[4]EJECUTIVO!$J102","v":4.5244826332562722},{"$f":"[5]EJECUTIVO!$I102","v":32.192280514168338},{"$f":"[5]EJECUTIVO!$J102","v":-17.24445114337588},{"$f":"[6]EJECUTIVO!$I102","v":3.0971812294753334},{"$f":"[6]EJECUTIVO!$J102","v":4.3021553969409192},{"$f":"[7]EJECUTIVO!$I102","v":9.640435023507143},{"$f":"[7]EJECUTIVO!$J102","v":8.4828411780600703},{"$f":"[8]EJECUTIVO!$I102","v":"n.a."},{"$f":"[8]EJECUTIVO!$J102","v":"n.a."}]
["     1.1.3 Valores por concepto de encaje en MN  j/",{"$f":"[2]EJECUTIVO!$I103","v":"n.a."},{"$f":"[2]EJECUTIVO!$J103","v":"n.a."},{"$f":"[3]EJECUTIVO!$I103","v":"n.d."},{"$f":"[3]EJECUTIVO!$J103","v":"n.d."},{"$f":"[4]EJECUTIVO!$I103","v":0.22481043868259074},{"$f":"[4]EJECUTIVO!$J103","v":0.16423606219924378},{"$f":"[5]EJECUTIVO!$I103","v":10.804391125313641},{"$f":"[5]EJECUTIVO!$J103","v":0.81030111132898985},{"$f":"[6]EJECUTIVO!$I103","v":"n.a."},{"$f":"[6]EJECUTIVO!$J103","v":"n.a."},{"$f":"[7]EJECUTIVO!$I103","v":"n.a."},{"$f":"[7]EJECUTIVO!$J103","v":"n.a."},{"$f":"[8]EJECUTIVO!$I103","v":"n.a."},{"$f":"[8]EJECUTIVO!$J103","v":"n.a."}]
["1.2.  Agregados monetarios, tasa interanual ponderada para los componentes"]
["     1.2.1  Agregado Monetario M1, tasa de variación interanual",{"$f":"[2]EJECUTIVO!$I104","v":26.119582774224746},{"$f":"[2]EJECUTIVO!$J104","v":5.2044507369781723},{"$f":"[3]EJECUTIVO!$I104","v":16.32688574756893},{"$f":"[3]EJECUTIVO!$J104","v":2.9806343857260442},{"$f":"[4]EJECUTIVO!$I104","v":17.482234284208452},{"$f":"[4]EJECUTIVO!$J104","v":11.618072592981999},{"$f":"[5]EJECUTIVO!$I104","v":30.848813864955904},{"$f":"[5]EJECUTIVO!$J104","v":12.593254364928551},{"$f":"[6]EJECUTIVO!$I104","v":28.271433870637395},{"$f":"[6]EJECUTIVO!$J104","v":23.556728043903362},{"$f":"[7]EJECUTIVO!$I104","v":22.741988229827736},{"$f":"[7]EJECUTIVO!$J104","v":14.53746476100417},{"$f":"[8]EJECUTIVO!$I104","v":13.407878002293572},{"$f":"[8]EJECUTIVO!$J104","v":0.29532826860110273}]
["             1.2.1.1 Billetes y monedas en poder del público",{"$f":"[2]EJECUTIVO!$I105","v":2.0722360226089576},{"$f":"[2]EJECUTIVO!$J105","v":-0.67935039250092322},{"$f":"[3]EJECUTIVO!$I105","v":-8.5192542878889544E-3},{"$f":"[3]EJECUTIVO!$J105","v":1.1111423585130093E-3},{"$f":"[4]EJECUTIVO!$I105","v":7.1568415630078874},{"$f":"[4]EJECUTIVO!$J105","v":6.2715295460380345},{"$f":"[5]EJECUTIVO!$I105","v":7.6991001938613257},{"$f":"[5]EJECUTIVO!$J105","v":6.6957046984202613},{"$f":"[6]EJECUTIVO!$I105","v":17.655010958939702},{"$f":"[6]EJECUTIVO!$J105","v":13.77559033625721},{"$f":"[7]EJECUTIVO!$I105","v":3.7666894412142908},{"$f":"[7]EJECUTIVO!$J105","v":1.0898606104639135},{"$f":"[8]EJECUTIVO!$I105","v":"n.a."},{"$f":"[8]EJECUTIVO!$J105","v":"n.a."}]
["             1.2.1.2 Depósitos transferibles en MN",{"$f":"[2]EJECUTIVO!$I106","v":24.047346751615791},{"$f":"[2]EJECUTIVO!$J106","v":5.8838011294790862},{"$f":"[3]EJECUTIVO!$I106","v":16.33540500185682},{"$f":"[3]EJECUTIVO!$J106","v":2.9795232433675327},{"$f":"[4]EJECUTIVO!$I106","v":10.325392721200579},{"$f":"[4]EJECUTIVO!$J106","v":5.3465430469439443},{"$f":"[5]EJECUTIVO!$I106","v":23.149713671094581},{"$f":"[5]EJECUTIVO!$J106","v":5.8975496665082963},{"$f":"[6]EJECUTIVO!$I106","v":10.616422911697695},{"$f":"[6]EJECUTIVO!$J106","v":9.7811377076461419},{"$f":"[7]EJECUTIVO!$I106","v":18.975298788613447},{"$f":"[7]EJECUTIVO!$J106","v":13.447604150540277},{"$f":"[8]EJECUTIVO!$I106","v":13.407878002293572},{"$f":"[8]EJECUTIVO!$J106","v":0.29532826860110273}]
["     1.2.2  Agregado Monetario M2, tasa de variación interanual",{"$f":"[2]EJECUTIVO!$I107","v":14.274061239522528},{"$f":"[2]EJECUTIVO!$J107","v":-4.4225316643083374},{"$f":"[3]EJECUTIVO!$I107","v":6.5319207855103034},{"$f":"[3]EJECUTIVO!$J107","v":3.8150831848701827},{"$f":"[4]EJECUTIVO!$I107","v":14.791163268975161},{"$f":"[4]EJECUTIVO!$J107","v":10.200200607207876},{"$f":"[5]EJECUTIVO!$I107","v":20.504038890453778},{"$f":"[5]EJECUTIVO!$J107","v":11.642877644897553},{"$f":"[6]EJECUTIVO!$I107","v":28.271433870637395},{"$f":"[6]EJECUTIVO!$J107","v":23.556728043903362},{"$f":"[7]EJECUTIVO!$I107","v":17.013757414877517},{"$f":"[7]EJECUTIVO!$J107","v":5.6010133012981411},{"$f":"[8]EJECUTIVO!$I107","v":-15.263395882692787},{"$f":"[8]EJECUTIVO!$J107","v":5.4639578737652572}]
["             1.2.2.1 Otros depósitos en MN",{"$f":"[2]EJECUTIVO!$I108","v":-1.0419192635719185E-2},{"$f":"[2]EJECUTIVO!$J108","v":3.2392068699912201E-2},{"$f":"[3]EJECUTIVO!$I108","v":4.1606597332610455},{"$f":"[3]EJECUTIVO!$J108","v":2.7115584131969825},{"$f":"[4]EJECUTIVO!$I108","v":6.9039141519055578},{"$f":"[4]EJECUTIVO!$J108","v":5.7589803872697622},{"$f":"[5]EJECUTIVO!$I108","v":13.259162072662432},{"$f":"[5]EJECUTIVO!$J108","v":7.5756262167753139},{"$f":"[6]EJECUTIVO!$I108","v":"n.a."},{"$f":"[6]EJECUTIVO!$J108","v":"n.a."},{"$f":"[7]EJECUTIVO!$I108","v":6.5473944169227538},{"$f":"[7]EJECUTIVO!$J108","v":15.564411050323688},{"$f":"[8]EJECUTIVO!$I108","v":-17.335453475157784},{"$f":"[8]EJECUTIVO!$J108","v":5.3894709998048747}]
["             1.2.2.2 Valores distintos de acciones emitidos por las sociedades de depósitos en MN",{"$f":"[2]EJECUTIVO!$I109","v":-2.1594726314231973},{"$f":"[2]EJECUTIVO!$J109","v":-8.0711013879530213},{"$f":"[3]EJECUTIVO!$I109","v":-1.9509156988130056},{"$f":"[3]EJECUTIVO!$J109","v":0.24191975165823371},{"$f":"[4]EJECUTIVO!$I109","v":0.21000420486890486},{"$f":"[4]EJECUTIVO!$J109","v":-0.78041207093232845},{"$f":"[5]EJECUTIVO!$I109","v":-0.74894883971601889},{"$f":"[5]EJECUTIVO!$J109","v":0.52383361101324133},{"$f":"[6]EJECUTIVO!$I109","v":"n.a."},{"$f":"[6]EJECUTIVO!$J109","v":"n.a."},{"$f":"[7]EJECUTIVO!$I109","v":1.725693155095148},{"$f":"[7]EJECUTIVO!$J109","v":-15.824255617948427},{"$f":"[8]EJECUTIVO!$I109","v":-0.45469435852304435},{"$f":"[8]EJECUTIVO!$J109","v":0}]
["             1.2.2.3 Agregado Monetario M1",{"$f":"[2]EJECUTIVO!$I110","v":16.44395306358145},{"$f":"[2]EJECUTIVO!$J110","v":3.6161776549447677},{"$f":"[3]EJECUTIVO!$I110","v":4.3221767510622691},{"$f":"[3]EJECUTIVO!$J110","v":0.86160502001497952},{"$f":"[4]EJECUTIVO!$I110","v":7.6772449122007176},{"$f":"[4]EJECUTIVO!$J110","v":5.221632290870426},{"$f":"[5]EJECUTIVO!$I110","v":7.993825657507367},{"$f":"[5]EJECUTIVO!$J110","v":3.5434178171089892},{"$f":"[6]EJECUTIVO!$I110","v":28.271433870637395},{"$f":"[6]EJECUTIVO!$J110","v":23.556728043903362},{"$f":"[7]EJECUTIVO!$I110","v":8.7406698428596279},{"$f":"[7]EJECUTIVO!$J110","v":5.8608578689228681},{"$f":"[8]EJECUTIVO!$I110","v":2.5267519509880527},{"$f":"[8]EJECUTIVO!$J110","v":7.4486873960374525E-2}]
["     1.2.3  Agregado Monetario M3, tasa de variación interanual  k/",{"$f":"[2]EJECUTIVO!$I111","v":18.866944133088381},{"$f":"[2]EJECUTIVO!$J111","v":4.6970107835395458},{"$f":"[3]EJECUTIVO!$I111","v":6.5319207855103034},{"$f":"[3]EJECUTIVO!$J111","v":3.8150831848701827},{"$f":"[4]EJECUTIVO!$I111","v":13.649238240623095},{"$f":"[4]EJECUTIVO!$J111","v":6.1275160312333821},{"$f":"[5]EJECUTIVO!$I111","v":16.878466706875383},{"$f":"[5]EJECUTIVO!$J111","v":10.794751561464921},{"$f":"[6]EJECUTIVO!$I111","v":15.945075748474146},{"$f":"[6]EJECUTIVO!$J111","v":14.457489051334171},{"$f":"[7]EJECUTIVO!$I111","v":15.382104707777454},{"$f":"[7]EJECUTIVO!$J111","v":6.318886190059847},{"$f":"[8]EJECUTIVO!$I111","v":-15.263395882692787},{"$f":"[8]EJECUTIVO!$J111","v":5.4639578737652572}]
["             1.2.3.1 Depósitos transferibles en ME",{"$f":"[2]EJECUTIVO!$I112","v":8.8078684418365825},{"$f":"[2]EJECUTIVO!$J112","v":7.3614806079580637},{"$f":"[3]EJECUTIVO!$I112","v":"n.a."},{"$f":"[3]EJECUTIVO!$J112","v":"n.a."},{"$f":"[4]EJECUTIVO!$I112","v":1.4399539500927778},{"$f":"[4]EJECUTIVO!$J112","v":-0.58842609505089349},{"$f":"[5]EJECUTIVO!$I112","v":0.42465266901539861},{"$f":"[5]EJECUTIVO!$J112","v":0.38783599007784803},{"$f":"[6]EJECUTIVO!$I112","v":2.5015492762759894},{"$f":"[6]EJECUTIVO!$J112","v":3.108831833457991},{"$f":"[7]EJECUTIVO!$I112","v":"n.a."},{"$f":"[7]EJECUTIVO!$J112","v":-3.8667260903934008E-8},{"$f":"[8]EJECUTIVO!$I112","v":"n.a."},{"$f":"[8]EJECUTIVO!$J112","v":"n.a."}]
["             1.2.3.2 Otros depósitos en ME",{"$f":"[2]EJECUTIVO!$I113","v":4.685419213052028E-3},{"$f":"[2]EJECUTIVO!$J113","v":5.2412575824466769E-2},{"$f":"[3]EJECUTIVO!$I113","v":"n.a."},{"$f":"[3]EJECUTIVO!$J113","v":"n.a."},{"$f":"[4]EJECUTIVO!$I113","v":0.59881204865375937},{"$f":"[4]EJECUTIVO!$J113","v":-1.3457613431787898},{"$f":"[5]EJECUTIVO!$I113","v":0.77249267943435362},{"$f":"[5]EJECUTIVO!$J113","v":1.1638784494987149},{"$f":"[6]EJECUTIVO!$I113","v":6.7925634037387823},{"$f":"[6]EJECUTIVO!$J113","v":5.2176855429558646},{"$f":"[7]EJECUTIVO!$I113","v":3.2156233528854208},{"$f":"[7]EJECUTIVO!$J113","v":2.2569805965790626},{"$f":"[8]EJECUTIVO!$I113","v":"n.a."},{"$f":"[8]EJECUTIVO!$J113","v":"n.a."}]
["             1.2.3.3 Valores distintos de acciones emitidos por las sociedades de depósito en ME",{"$f":"[2]EJECUTIVO!$I114","v":0.30531629268165783},{"$f":"[2]EJECUTIVO!$J114","v":0.18696189528131543},{"$f":"[3]EJECUTIVO!$I114","v":"n.a."},{"$f":"[3]EJECUTIVO!$J114","v":"n.a."},{"$f":"[4]EJECUTIVO!$I114","v":-2.4198963509797892E-2},{"$f":"[4]EJECUTIVO!$J114","v":-4.2352367836763639E-2},{"$f":"[5]EJECUTIVO!$I114","v":-7.5336371338076594E-2},{"$f":"[5]EJECUTIVO!$J114","v":1.8340004623174359E-2},{"$f":"[6]EJECUTIVO!$I114","v":"n.a."},{"$f":"[6]EJECUTIVO!$J114","v":"n.a."},{"$f":"[7]EJECUTIVO!$I114","v":"n.a."},{"$f":"[7]EJECUTIVO!$J114","v":"n.a."},{"$f":"[8]EJECUTIVO!$I114","v":"n.a."},{"$f":"[8]EJECUTIVO!$J114","v":"n.a."}]
["             1.2.3.4 Agregado Monetario M2",{"$f":"[2]EJECUTIVO!$I115","v":9.7490739793570746},{"$f":"[2]EJECUTIVO!$J115","v":-2.903844295524296},{"$f":"[3]EJECUTIVO!$I115","v":6.5319207855103034},{"$f":"[3]EJECUTIVO!$J115","v":3.8150831848701827},{"$f":"[4]EJECUTIVO!$I115","v":11.634671205386354},{"$f":"[4]EJECUTIVO!$J115","v":8.1040558372998301},{"$f":"[5]EJECUTIVO!$I115","v":15.756657729763699},{"$f":"[5]EJECUTIVO!$J115","v":9.2246971172652046},{"$f":"[6]EJECUTIVO!$I115","v":6.6509630684593866},{"$f":"[6]EJECUTIVO!$J115","v":6.1309716749203034},{"$f":"[7]EJECUTIVO!$I115","v":12.166481310276938},{"$f":"[7]EJECUTIVO!$J115","v":4.0619056321480445},{"$f":"[8]EJECUTIVO!$I115","v":-15.263395882692787},{"$f":"[8]EJECUTIVO!$J115","v":5.4639578737652572}]
["1.3.  Titulos emitidos por el Banco Central, tasa de variación interanual",{"$f":"[2]EJECUTIVO!$I116","v":-21.047486576577157},{"$f":"[2]EJECUTIVO!$J116","v":-20.930277294604728},{"$f":"[3]EJECUTIVO!$I116","v":-25.071921776966064},{"$f":"[3]EJECUTIVO!$J116","v":59.255749582353268},{"$f":"[4]EJECUTIVO!$I116","v":10.75361307738245},{"$f":"[4]EJECUTIVO!$J116","v":-3.7351818867595421},{"$f":"[5]EJECUTIVO!$I116","v":33.141434950295491},{"$f":"[5]EJECUTIVO!$J116","v":39.053808522722314},{"$f":"[6]EJECUTIVO!$I116","v":166.16011191547639},{"$f":"[6]EJECUTIVO!$J116","v":9.8094629771533484},{"$f":"[7]EJECUTIVO!$I116","v":37.877902374313585},{"$f":"[7]EJECUTIVO!$J116","v":11.672841262291534},{"$f":"[8]EJECUTIVO!$I116","v":480.5626382401237},{"$f":"[8]EJECUTIVO!$J116","v":0.37641810358521877}]
["     1.3.1 Títulos emitidos por el BC en MN",{"$f":"[2]EJECUTIVO!$I117","v":-21.047486576577157},{"$f":"[2]EJECUTIVO!$J117","v":-20.930277294604728},{"$f":"[3]EJECUTIVO!$I117","v":-20.029948866373502},{"$f":"[3]EJECUTIVO!$J117","v":-1.4846793996214716},{"$f":"[4]EJECUTIVO!$I117","v":10.650576876634192},{"$f":"[4]EJECUTIVO!$J117","v":-3.8064380834165483},{"$f":"[5]EJECUTIVO!$I117","v":26.261297130474109},{"$f":"[5]EJECUTIVO!$J117","v":36.758015486430729},{"$f":"[6]EJECUTIVO!$I117","v":"n.a."},{"$f":"[6]EJECUTIVO!$J117","v":"n.a."},{"$f":"[7]EJECUTIVO!$I117","v":37.877902374313585},{"$f":"[7]EJECUTIVO!$J117","v":11.672841262291534},{"$f":"[8]EJECUTIVO!$I117","v":480.7321506542159},{"$f":"[8]EJECUTIVO!$J117","v":0.37641810358521877}]
["     1.3.2 Títulos emitidos por el BC en ME",{"$f":"[2]EJECUTIVO!$I118","v":"n.d."},{"$f":"[2]EJECUTIVO!$J118","v":"n.d."},{"$f":"[3]EJECUTIVO!$I118","v":-5.0419729105925697},{"$f":"[3]EJECUTIVO!$J118","v":60.740428981974709},{"$f":"[4]EJECUTIVO!$I118","v":0.10303620074825463},{"$f":"[4]EJECUTIVO!$J118","v":7.1256196657004264E-2},{"$f":"[5]EJECUTIVO!$I118","v":6.8801378198213783},{"$f":"[5]EJECUTIVO!$J118","v":2.2957930362915957},{"$f":"[6]EJECUTIVO!$I118","v":166.16011191547639},{"$f":"[6]EJECUTIVO!$J118","v":9.8094629771533484},{"$f":"[7]EJECUTIVO!$I118","v":"n.d."},{"$f":"[7]EJECUTIVO!$J118","v":"n.d."},{"$f":"[8]EJECUTIVO!$I118","v":-0.16951241409217874},{"$f":"[8]EJECUTIVO!$J118","v":"n.a."}]
["1.4.  Saldo de los créditos de las Otras Sociedades de Depósito, tasa de variación interanual",{"$f":"[2]EJECUTIVO!$I119","v":7.5295536046812162},{"$f":"[2]EJECUTIVO!$J119","v":6.3056541766929763},{"$f":"[3]EJECUTIVO!$I119","v":6.2030103486258259},{"$f":"[3]EJECUTIVO!$J119","v":4.9305403210642584},{"$f":"[4]EJECUTIVO!$I119","v":8.5757615955740718},{"$f":"[4]EJECUTIVO!$J119","v":8.9299899154944953},{"$f":"[5]EJECUTIVO!$I119","v":8.6082344684015322},{"$f":"[5]EJECUTIVO!$J119","v":16.970826659988724},{"$f":"[6]EJECUTIVO!$I119","v":11.111860108412319},{"$f":"[6]EJECUTIVO!$J119","v":7.9394430118818304},{"$f":"[7]EJECUTIVO!$I119","v":19.783892880146482},{"$f":"[7]EJECUTIVO!$J119","v":16.410568029060425},{"$f":"[8]EJECUTIVO!$I119","v":4.0276419764579074},{"$f":"[8]EJECUTIVO!$J119","v":7.9357673420473507}]
["     1.4.1 Al Sector Público neto",{"$f":"[2]EJECUTIVO!$I120","v":5.3853379503561021},{"$f":"[2]EJECUTIVO!$J120","v":3.0690685558879234},{"$f":"[3]EJECUTIVO!$I120","v":1.0529879835968343},{"$f":"[3]EJECUTIVO!$J120","v":2.0759713328947771},{"$f":"[4]EJECUTIVO!$I120","v":5.2751721629041919},{"$f":"[4]EJECUTIVO!$J120","v":4.599717956071063E-2},{"$f":"[5]EJECUTIVO!$I120","v":7.0868423318247693},{"$f":"[5]EJECUTIVO!$J120","v":4.5555787328834896},{"$f":"[6]EJECUTIVO!$I120","v":12.007988469486332},{"$f":"[6]EJECUTIVO!$J120","v":1.6791605565431864},{"$f":"[7]EJECUTIVO!$I120","v":16.733182981720304},{"$f":"[7]EJECUTIVO!$J120","v":5.4121163310091198},{"$f":"[8]EJECUTIVO!$I120","v":1.7014441868395462},{"$f":"[8]EJECUTIVO!$J120","v":0.52887280904551037}]
["     1.4.2 Al Sector Privado",{"$f":"[2]EJECUTIVO!$I121","v":2.7648678283617296},{"$f":"[2]EJECUTIVO!$J121","v":2.4790568000428768},{"$f":"[3]EJECUTIVO!$I121","v":2.0121851299500562},{"$f":"[3]EJECUTIVO!$J121","v":6.1545548801486696},{"$f":"[4]EJECUTIVO!$I121","v":3.5150725826317339},{"$f":"[4]EJECUTIVO!$J121","v":8.4647984310653541},{"$f":"[5]EJECUTIVO!$I121","v":1.8865706579969883},{"$f":"[5]EJECUTIVO!$J121","v":12.616736805558354},{"$f":"[6]EJECUTIVO!$I121","v":-1.1290439765921865},{"$f":"[6]EJECUTIVO!$J121","v":6.0398013874746823},{"$f":"[7]EJECUTIVO!$I121","v":2.2353096846691387},{"$f":"[7]EJECUTIVO!$J121","v":9.9294996095670349},{"$f":"[8]EJECUTIVO!$I121","v":-0.84073986933591027},{"$f":"[8]EJECUTIVO!$J121","v":1.6599145651007645}]
["     1.4.3 A no residentes y otros",{"$f":"[2]EJECUTIVO!$I122","v":-0.6206521740366262},{"$f":"[2]EJECUTIVO!$J122","v":0.75752882076217509},{"$f":"[3]EJECUTIVO!$I122","v":3.137837235078945},{"$f":"[3]EJECUTIVO!$J122","v":-3.2999858919791731},{"$f":"[4]EJECUTIVO!$I122","v":-0.2144831499618518},{"$f":"[4]EJECUTIVO!$J122","v":0.41919430486842235},{"$f":"[5]EJECUTIVO!$I122","v":-0.36517852142021656},{"$f":"[5]EJECUTIVO!$J122","v":-0.20148887845311814},{"$f":"[6]EJECUTIVO!$I122","v":0.2329156155181695},{"$f":"[6]EJECUTIVO!$J122","v":0.22048106786394803},{"$f":"[7]EJECUTIVO!$I122","v":0.81540021375704352},{"$f":"[7]EJECUTIVO!$J122","v":1.0689520884842894},{"$f":"[8]EJECUTIVO!$I122","v":3.1669376589542568},{"$f":"[8]EJECUTIVO!$J122","v":5.7469799679010523}]
["2.  Relaciones Analíticas",{"$f":"IF([2]EJECUTIVO!$J$120=[2]EJECUTIVO!$J$4,[2]EJECUTIVO!$G$121,CONCATENATE([2]EJECUTIVO!$G$121,\"\n\",[2]EJECUTIVO!$I$124,\"          \",[2]EJECUTIVO!$J$124))","v":"FEBRERO\n2021          2022"},null,{"$f":"IF([3]EJECUTIVO!$J$121=[3]EJECUTIVO!$J$4,[3]EJECUTIVO!$G$122,CONCATENATE([3]EJECUTIVO!$G$122,\"\n\",[3]EJECUTIVO!$I$124,\"          \",[3]EJECUTIVO!$J$124))","v":"MAYO\n2021          2022"},null,{"$f":"IF([4]EJECUTIVO!$J$120=[4]EJECUTIVO!$J$4,[4]EJECUTIVO!$G$121,CONCATENATE([4]EJECUTIVO!$G$121,\"\n\",[4]EJECUTIVO!$I$124,\"          \",[4]EJECUTIVO!$J$124))","v":"JUNIO\n2021          2022"},null,{"$f":"IF([5]EJECUTIVO!$J$120=[5]EJECUTIVO!$J$4,[5]EJECUTIVO!$G$121,CONCATENATE([5]EJECUTIVO!$G$121,\"\n\",[5]EJECUTIVO!$I$124,\"          \",[5]EJECUTIVO!$J$124))","v":"ABRIL\n2021          2022"},null,{"$f":"IF([6]EJECUTIVO!$J$120=[6]EJECUTIVO!$J$4,[6]EJECUTIVO!$G$121,CONCATENATE([6]EJECUTIVO!$G$125,\"\n\",[6]EJECUTIVO!$I$124,\"          \",[6]EJECUTIVO!$J$124))","v":"ABRIL\n2021          2022"},null,{"$f":"IF([7]EJECUTIVO!$J$120=[7]EJECUTIVO!$J$4,[7]EJECUTIVO!$G$121,CONCATENATE([7]EJECUTIVO!$G$121,\"\n\",[7]EJECUTIVO!$I$124,\"          \",[7]EJECUTIVO!$J$124))","v":"JUNIO\n2021          2022"},null,{"$f":"IF([8]EJECUTIVO!$J$120=[8]EJECUTIVO!$J$4,[8]EJECUTIVO!$G$125,CONCATENATE([8]EJECUTIVO!$G$125,\"\n\",[8]EJECUTIVO!$I$124,\"          \",[8]EJECUTIVO!$J$124))","v":"MAYO\n2021          2022"}]
["     2.1 Multiplicador Monetario (M2/BMAmplia)",{"$f":"[2]EJECUTIVO!$I125","v":1.9327702594573393},{"$f":"[2]EJECUTIVO!$J125","v":1.7909669407536979},{"$f":"[3]EJECUTIVO!$I125","v":7.2465876123847854},{"$f":"[3]EJECUTIVO!$J125","v":5.7260373753697706},{"$f":"[4]EJECUTIVO!$I125","v":2.7093135619886151},{"$f":"[4]EJECUTIVO!$J125","v":2.6499727907780235},{"$f":"[5]EJECUTIVO!$I125","v":1.8773966418037586},{"$f":"[5]EJECUTIVO!$J125","v":1.9622590498834083},{"$f":"[6]EJECUTIVO!$I125","v":0.5382787436112153},{"$f":"[6]EJECUTIVO!$J125","v":0.59431623926336119},{"$f":"[7]EJECUTIVO!$I125","v":2.0675712825359449},{"$f":"[7]EJECUTIVO!$J125","v":2.1861785264483342},{"$f":"[8]EJECUTIVO!$I125","v":16.515028876349636},{"$f":"[8]EJECUTIVO!$J125","v":16.954157203387673}]
["     2.2 Relación RIN / BMAmplia, en porcentajes",{"$f":"[2]EJECUTIVO!$I126","v":64.345849995515664},{"$f":"[2]EJECUTIVO!$J126","v":59.023053540695301},{"$f":"[3]EJECUTIVO!$I126","v":105.00125329937366},{"$f":"[3]EJECUTIVO!$J126","v":107.75083061608504},{"$f":"[4]EJECUTIVO!$I126","v":127.12134755954769},{"$f":"[4]EJECUTIVO!$J126","v":119.79528102643344},{"$f":"[5]EJECUTIVO!$I126","v":103.39700172594415},{"$f":"[5]EJECUTIVO!$J126","v":98.655116087631924},{"$f":"[6]EJECUTIVO!$I126","v":136.88639767633455},{"$f":"[6]EJECUTIVO!$J126","v":157.9182225614671},{"$f":"[7]EJECUTIVO!$I126","v":101.64351524372567},{"$f":"[7]EJECUTIVO!$J126","v":112.13173050502519},{"$f":"[8]EJECUTIVO!$I126","v":376.81940202434487},{"$f":"[8]EJECUTIVO!$J126","v":365.20863394837198}]
["     2.3 Relación Cuasidinero / M2, en porcentajes  L/",{"$f":"[2]EJECUTIVO!$I127","v":30.517592773980095},{"$f":"[2]EJECUTIVO!$J127","v":23.519019541065482},{"$f":"[3]EJECUTIVO!$I127","v":72.251395111690542},{"$f":"[3]EJECUTIVO!$J127","v":70.727816516525849},{"$f":"[4]EJECUTIVO!$I127","v":55.055950553927516},{"$f":"[4]EJECUTIVO!$J127","v":54.477685648004417},{"$f":"[5]EJECUTIVO!$I127","v":71.862572497723903},{"$f":"[5]EJECUTIVO!$J127","v":71.623048431130258},{"$f":"[6]EJECUTIVO!$I127","v":0},{"$f":"[6]EJECUTIVO!$J127","v":0},{"$f":"[7]EJECUTIVO!$I127","v":59.684456916832929},{"$f":"[7]EJECUTIVO!$J127","v":56.272767174742334},{"$f":"[8]EJECUTIVO!$I127","v":74.778278316125807},{"$f":"[8]EJECUTIVO!$J127","v":76.014356878097843}]
["     2.4 Relación Depósitos en ME / Depósitos Totales, en porcentajes  m/",{"$f":"[2]EJECUTIVO!$I128","v":41.101463465185269},{"$f":"[2]EJECUTIVO!$J128","v":45.181811516508738},{"$f":"[3]EJECUTIVO!$I128","v":"n.a."},{"$f":"[3]EJECUTIVO!$J128","v":"n.a."},{"$f":"[4]EJECUTIVO!$I128","v":24.19349437832329},{"$f":"[4]EJECUTIVO!$J128","v":20.735674307639709},{"$f":"[5]EJECUTIVO!$I128","v":22.603702234572527},{"$f":"[5]EJECUTIVO!$J128","v":22.148366515437235},{"$f":"[6]EJECUTIVO!$I128","v":87.039741438127351},{"$f":"[6]EJECUTIVO!$J128","v":85.854044713646829},{"$f":"[7]EJECUTIVO!$I128","v":38.449598350992332},{"$f":"[7]EJECUTIVO!$J128","v":33.432368404157771},{"$f":"[8]EJECUTIVO!$I128","v":"n.a."},{"$f":"[8]EJECUTIVO!$J128","v":"n.a."}]
["     2.5 Relación Créditos en ME / Créditos Totales, en porcentajes  m/  n/",{"$f":"[2]EJECUTIVO!$I129","v":35.63983818466064},{"$f":"[2]EJECUTIVO!$J129","v":35.294473102894713},{"$f":"[3]EJECUTIVO!$I129","v":"n.a."},{"$f":"[3]EJECUTIVO!$J129","v":"n.a."},{"$f":"[4]EJECUTIVO!$I129","v":25.948823687555567},{"$f":"[4]EJECUTIVO!$J129","v":25.566186570169037},{"$f":"[5]EJECUTIVO!$I129","v":24.614319215293136},{"$f":"[5]EJECUTIVO!$J129","v":22.899452103216174},{"$f":"[6]EJECUTIVO!$I129","v":100},{"$f":"[6]EJECUTIVO!$J129","v":100},{"$f":"[7]EJECUTIVO!$I129","v":17.034288970401512},{"$f":"[7]EJECUTIVO!$J129","v":18.262542130632884},{"$f":"[8]EJECUTIVO!$I129","v":"n.a."},{"$f":"[8]EJECUTIVO!$J129","v":"n.a."}]
["     2.6 Relación Crédito-sector privado / PIB, en porcentajes",{"$f":"[2]EJECUTIVO!$I130","v":56.685357425584414},{"$f":"[2]EJECUTIVO!$J130","v":54.16855975068772},{"$f":"[3]EJECUTIVO!$I130","v":50.743042300015247},{"$f":"[3]EJECUTIVO!$J130","v":51.586650454817331},{"$f":"[4]EJECUTIVO!$I130","v":35.536895540021312},{"$f":"[4]EJECUTIVO!$J130","v":37.558917631651475},{"$f":"[5]EJECUTIVO!$I130","v":58.988974902467262},{"$f":"[5]EJECUTIVO!$J130","v":62.421998024073929},{"$f":"[6]EJECUTIVO!$I130","v":24.407968822350512},{"$f":"[6]EJECUTIVO!$J130","v":"n.d."},{"$f":"[7]EJECUTIVO!$I130","v":25.591782638090589},{"$f":"[7]EJECUTIVO!$J130","v":25.848726474654811},{"$f":"[8]EJECUTIVO!$I130","v":83.108783392722856},{"$f":"[8]EJECUTIVO!$J130","v":76.872194797780864}]
["     2.7 Relación Saldo de OMA's / M3, en porcentajes",{"$f":"[2]EJECUTIVO!$I131","v":7.6468801041056729},{"$f":"[2]EJECUTIVO!$J131","v":5.7751093834295091},{"$f":"[3]EJECUTIVO!$I131","v":0.25504943316983963},{"$f":"[3]EJECUTIVO!$J131","v":1.762838150987736},{"$f":"[4]EJECUTIVO!$I131","v":13.785338947965725},{"$f":"[4]EJECUTIVO!$J131","v":12.504232606977633},{"$f":"[5]EJECUTIVO!$I131","v":10.957832719023855},{"$f":"[5]EJECUTIVO!$J131","v":13.752712572218325},{"$f":"[6]EJECUTIVO!$I131","v":13.216239582050404},{"$f":"[6]EJECUTIVO!$J131","v":12.679538779952257},{"$f":"[7]EJECUTIVO!$I131","v":41.115575735598803},{"$f":"[7]EJECUTIVO!$J131","v":43.186054021684498},{"$f":"[8]EJECUTIVO!$I131","v":3.3249652668811374},{"$f":"[8]EJECUTIVO!$J131","v":3.164570252596044}]
["3.  Tasas de Interés y de encaje  ñ/",{"$f":"IF([2]EJECUTIVO!$J$84=[2]EJECUTIVO!$J$4,[2]EJECUTIVO!$G$85,CONCATENATE([2]EJECUTIVO!$G$89,\"\n\",[2]EJECUTIVO!$I$88,\"          \",[2]EJECUTIVO!$J$88))","v":"MARZO\n2021          2022"},null,{"$f":"IF([3]EJECUTIVO!$J$85=[3]EJECUTIVO!$J$4,[3]EJECUTIVO!$G$86,CONCATENATE([3]EJECUTIVO!$G$89,\"\n\",[3]EJECUTIVO!$I$88,\"          \",[3]EJECUTIVO!$J$88))","v":"JUNIO\n2021          2022"},null,{"$f":"IF([4]EJECUTIVO!$J$84=[4]EJECUTIVO!$J$4,[4]EJECUTIVO!$G$85,CONCATENATE([4]EJECUTIVO!$G$89,\"\n\",[4]EJECUTIVO!$I$88,\"          \",[4]EJECUTIVO!$J$88))","v":"JUNIO\n2021          2022"},null,{"$f":"IF([5]EJECUTIVO!$J$84=[5]EJECUTIVO!$J$4,[5]EJECUTIVO!$G$85,CONCATENATE([5]EJECUTIVO!$G$89,\"\n\",[5]EJECUTIVO!$I$88,\"          \",[5]EJECUTIVO!$J$88))","v":"MAYO\n2021          2022"},null,{"$f":"IF([6]EJECUTIVO!$J$84=[6]EJECUTIVO!$J$4,[6]EJECUTIVO!$G$85,CONCATENATE([6]EJECUTIVO!$G$89,\"\n\",[6]EJECUTIVO!$I$88,\"          \",[6]EJECUTIVO!$J$88))","v":"MAYO\n2021          2022"},null,{"$f":"IF([7]EJECUTIVO!$J$84=[7]EJECUTIVO!$J$4,[7]EJECUTIVO!$G$85,CONCATENATE([7]EJECUTIVO!$G$89,\"\n\",[7]EJECUTIVO!$I$88,\"          \",[7]EJECUTIVO!$J$88))","v":"JUNIO\n2021          2022"},null,{"$f":"IF([8]EJECUTIVO!$J$84=[8]EJECUTIVO!$J$4,[8]EJECUTIVO!$G$85,CONCATENATE([8]EJECUTIVO!$G$89,\"\n\",[8]EJECUTIVO!$I$88,\"          \",[8]EJECUTIVO!$J$88))","v":"MAYO\n2021          2022"}]
["     3.1 Tasa interés activa nominal promedio corto plazo en MN",{"$f":"[2]EJECUTIVO!$I91","v":9.5854076799999994},{"$f":"[2]EJECUTIVO!$J91","v":9.3949749899999997},{"$f":"[3]EJECUTIVO!$I91","v":6.34},{"$f":"[3]EJECUTIVO!$J91","v":6.18},{"$f":"[4]EJECUTIVO!$I91","v":12.24},{"$f":"[4]EJECUTIVO!$J91","v":11.98},{"$f":"[5]EJECUTIVO!$I91","v":16.32},{"$f":"[5]EJECUTIVO!$J91","v":14.76},{"$f":"[6]EJECUTIVO!$I91","v":8.7606353078525601},{"$f":"[6]EJECUTIVO!$J91","v":9.0553798986480505},{"$f":"[7]EJECUTIVO!$I91","v":9.3719000000000001},{"$f":"[7]EJECUTIVO!J91","v":11.6866},{"$f":"[8]EJECUTIVO!$I91","v":8.3000000000000007},{"$f":"[8]EJECUTIVO!J91","v":8.1944444444444446}]
["     3.2 Tasa interés activa real promedio corto plazo en MN",{"$f":"[2]EJECUTIVO!$I92","v":9.0697997601357887},{"$f":"[2]EJECUTIVO!$J92","v":3.4045673784158446},{"$f":"[3]EJECUTIVO!$I92","v":3.6579018670465686},{"$f":"[3]EJECUTIVO!$J92","v":-1.4655006458024245},{"$f":"[4]EJECUTIVO!$I92","v":8.0194419346266308},{"$f":"[4]EJECUTIVO!$J92","v":4.1153227500154586},{"$f":"[5]EJECUTIVO!$I92","v":10.950880945679698},{"$f":"[5]EJECUTIVO!$J92","v":5.1966666666666645},{"$f":"[6]EJECUTIVO!$I92","v":7.1089190895081913},{"$f":"[6]EJECUTIVO!$J92","v":0.69505538345770546},{"$f":"[7]EJECUTIVO!$I92","v":4.8053997321614493E-2},{"$f":"[7]EJECUTIVO!J92","v":2.0171224122412217},{"$f":"[8]EJECUTIVO!$I92","v":6.2556003412588126},{"$f":"[8]EJECUTIVO!J92","v":3.8134464474053482}]
["     3.3 Tasa interés activa promedio corto plazo en ME ",{"$f":"[2]EJECUTIVO!$I93","v":6.0726114400000002},{"$f":"[2]EJECUTIVO!$J93","v":6.0040512599999998},{"$f":"[3]EJECUTIVO!$I93","v":6.34},{"$f":"[3]EJECUTIVO!$J93","v":6.18},{"$f":"[4]EJECUTIVO!$I93","v":5.89},{"$f":"[4]EJECUTIVO!$J93","v":5.52},{"$f":"[5]EJECUTIVO!$I93","v":7.65},{"$f":"[5]EJECUTIVO!$J93","v":7.39},{"$f":"[6]EJECUTIVO!$I93","v":8.7956001158216495},{"$f":"[6]EJECUTIVO!$J93","v":8.0532802725535095},{"$f":"[7]EJECUTIVO!$I93","v":3.9887000000000001},{"$f":"[7]EJECUTIVO!J93","v":4.3262},{"$f":"[8]EJECUTIVO!$I93","v":8.3000000000000007},{"$f":"[8]EJECUTIVO!J93","v":8.1944444444444446}]
["     3.4 Tasa interés pasiva nominal promedio 180 días en MN ",{"$f":"[2]EJECUTIVO!$I94","v":3.4},{"$f":"[2]EJECUTIVO!$J94","v":2.95},{"$f":"[3]EJECUTIVO!$I94","v":3.92},{"$f":"[3]EJECUTIVO!$J94","v":4.45},{"$f":"[4]EJECUTIVO!$I94","v":4.1500000000000004},{"$f":"[4]EJECUTIVO!$J94","v":3.88},{"$f":"[5]EJECUTIVO!$I94","v":6.16},{"$f":"[5]EJECUTIVO!$J94","v":4.2},{"$f":"[6]EJECUTIVO!$I94","v":2.9405897402384902},{"$f":"[6]EJECUTIVO!$J94","v":2.8174600359438902},{"$f":"[7]EJECUTIVO!$I94","v":3.1663999999999999},{"$f":"[7]EJECUTIVO!J94","v":5.2267999999999999},{"$f":"[8]EJECUTIVO!$I94","v":1.83},{"$f":"[8]EJECUTIVO!J94","v":1.6}]
["     3.5 Tasa interés pasiva real promedio 180 días en MN ",{"$f":"[2]EJECUTIVO!$I95","v":2.9134949073726943},{"$f":"[2]EJECUTIVO!$J95","v":-2.6874843878246106},{"$f":"[3]EJECUTIVO!$I95","v":1.2989388943340174},{"$f":"[3]EJECUTIVO!$J95","v":-3.0709318370132155},{"$f":"[4]EJECUTIVO!$I95","v":0.23365001328727356},{"$f":"[4]EJECUTIVO!$J95","v":-3.4157909691765864},{"$f":"[5]EJECUTIVO!$I95","v":1.2598480157613188},{"$f":"[5]EJECUTIVO!$J95","v":-4.4833333333333361},{"$f":"[6]EJECUTIVO!$I95","v":1.377260865608344},{"$f":"[6]EJECUTIVO!$J95","v":-5.0646575865610348},{"$f":"[7]EJECUTIVO!$I95","v":-5.6284332821384604},{"$f":"[7]EJECUTIVO!J95","v":-3.8834082454974492},{"$f":"[8]EJECUTIVO!$I95","v":-9.2264240531996028E-2},{"$f":"[8]EJECUTIVO!J95","v":-2.5139764503132738}]
["     3.6 Tasa interés pasiva promedio 180 días en ME",{"$f":"[2]EJECUTIVO!$I96","v":2.55742899},{"$f":"[2]EJECUTIVO!$J96","v":2.1119108899999999},{"$f":"[3]EJECUTIVO!$I96","v":3.92},{"$f":"[3]EJECUTIVO!$J96","v":4.45},{"$f":"[4]EJECUTIVO!$I96","v":2.4900000000000002},{"$f":"[4]EJECUTIVO!$J96","v":2.64},{"$f":"[5]EJECUTIVO!$I96","v":3.02},{"$f":"[5]EJECUTIVO!$J96","v":2.78},{"$f":"[6]EJECUTIVO!$I96","v":4.1936545423834497},{"$f":"[6]EJECUTIVO!$J96","v":3.71827991886832},{"$f":"[7]EJECUTIVO!$I96","v":0.45739999999999997},{"$f":"[7]EJECUTIVO!J96","v":0.95409999999999995},{"$f":"[8]EJECUTIVO!$I96","v":1.83},{"$f":"[8]EJECUTIVO!J96","v":1.6}]
["     3.7 Tasa de interés de Política Monetaria de fin de mes  o/",{"$f":"[2]EJECUTIVO!$I97","v":0.75},{"$f":"[2]EJECUTIVO!$J97","v":2.5},{"$f":"[3]EJECUTIVO!$I97","v":"n.a."},{"$f":"[3]EJECUTIVO!$J97","v":"n.a."},{"$f":"[4]EJECUTIVO!$I97","v":1.75},{"$f":"[4]EJECUTIVO!$J97","v":2.25},{"$f":"[5]EJECUTIVO!$I97","v":3},{"$f":"[5]EJECUTIVO!$J97","v":3},{"$f":"[6]EJECUTIVO!$I97","v":3.5},{"$f":"[6]EJECUTIVO!$J97","v":4},{"$f":"[7]EJECUTIVO!$I97","v":3},{"$f":"[7]EJECUTIVO!J97","v":6.5},{"$f":"[8]EJECUTIVO!$I97","v":"n.a."},{"$f":"[8]EJECUTIVO!J97","v":"n.a."}]
["     3.8 Tasa de encaje efectivo promedio (Obligaciones MN)",{"$f":"[2]EJECUTIVO!$I89","v":12.851055282204593},{"$f":"[2]EJECUTIVO!$J89","v":13.305664219183083},{"$f":"[3]EJECUTIVO!$I89","v":12.762421425315837},{"$f":"[3]EJECUTIVO!$J89","v":15.335393645471138},{"$f":"[4]EJECUTIVO!$I89","v":14.715099297073127},{"$f":"[4]EJECUTIVO!$J89","v":14.7202334654563},{"$f":"[5]EJECUTIVO!$I89","v":23.520256792886642},{"$f":"[5]EJECUTIVO!$J89","v":14.21723570399759},{"$f":"[6]EJECUTIVO!$I89","v":16.583080231742453},{"$f":"[6]EJECUTIVO!$J89","v":16.204592097447577},{"$f":"[7]EJECUTIVO!$I89","v":10.8179798265258},{"$f":"[7]EJECUTIVO!J89","v":10.880281068415499},{"$f":"[8]EJECUTIVO!$I89","v":"n.a."},{"$f":"[8]EJECUTIVO!J89","v":"n.a."}]
["     3.9 Tasa de encaje efectivo promedio (Obligaciones ME)  ",{"$f":"[2]EJECUTIVO!$I90","v":16.103014862872598},{"$f":"[2]EJECUTIVO!$J90","v":16.600704326262402},{"$f":"[3]EJECUTIVO!$I90","v":12.762421425315837},{"$f":"[3]EJECUTIVO!$J90","v":15.335393645471138},{"$f":"[4]EJECUTIVO!$I90","v":15.669559371154982},{"$f":"[4]EJECUTIVO!$J90","v":15.662100022120701},{"$f":"[5]EJECUTIVO!$I90","v":27.4},{"$f":"[5]EJECUTIVO!$J90","v":28.4},{"$f":"[6]EJECUTIVO!$I90","v":17.607448237586322},{"$f":"[6]EJECUTIVO!$J90","v":16.056460076869044},{"$f":"[7]EJECUTIVO!$I90","v":24.9024996283697},{"$f":"[7]EJECUTIVO!J90","v":27.8234155197703},{"$f":"[8]EJECUTIVO!$I90","v":"n.a."},{"$f":"[8]EJECUTIVO!J90","v":"n.a."}]
[]
["V. SECTOR BURSÁTIL",{"$f":"IF([2]EJECUTIVO!$J$135=[2]EJECUTIVO!$J$8,[2]EJECUTIVO!$G$136,CONCATENATE([2]EJECUTIVO!$G$136,\"\n\",[2]EJECUTIVO!$I$135,\"    \",[2]EJECUTIVO!$J$135))","v":"JUNIO\n2021    2022"},null,{"$f":"IF([3]EJECUTIVO!$J$135=[3]EJECUTIVO!$J$8,[3]EJECUTIVO!$G$136,CONCATENATE([3]EJECUTIVO!$G$136,\"\n\",[3]EJECUTIVO!$I$135,\"     \",[3]EJECUTIVO!$J$135))","v":"JUNIO\n2021     2022"},null,{"$f":"IF([4]EJECUTIVO!$J$135=[4]EJECUTIVO!$J$8,[4]EJECUTIVO!$G$136,CONCATENATE([4]EJECUTIVO!$G$136,\"\n\",[4]EJECUTIVO!$I$135,\"     \",[4]EJECUTIVO!$J$135))","v":"MAYO\n2021     2022"},null,{"$f":"IF([5]EJECUTIVO!$J$135=[5]EJECUTIVO!$J$8,[5]EJECUTIVO!$G$136,CONCATENATE([5]EJECUTIVO!$G$136,\"\n\",[5]EJECUTIVO!$I$135,\"     \",[5]EJECUTIVO!$J$135))","v":"JUNIO\n2021     2022"},null,{"$f":"IF([6]EJECUTIVO!$J$135=[6]EJECUTIVO!$J$8,[6]EJECUTIVO!$G$136,CONCATENATE([6]EJECUTIVO!$G$136,\"\n\",[6]EJECUTIVO!$I$135,\"     \",[6]EJECUTIVO!$J$135))","v":"ABRIL\n2021     2022"},null,{"$f":"IF([7]EJECUTIVO!$J$135=[7]EJECUTIVO!$J$8,[7]EJECUTIVO!$G$136,CONCATENATE([7]EJECUTIVO!$G$136,\"\n\",[7]EJECUTIVO!$I$135,\"     \",[7]EJECUTIVO!$J$135))","v":"JUNIO\n2021     2022"},null,{"$f":"IF([8]EJECUTIVO!$J$135=[8]EJECUTIVO!$J$8,[8]EJECUTIVO!$G$136,CONCATENATE([8]EJECUTIVO!$G$136,\"\n\",[8]EJECUTIVO!$I$135,\"     \",[8]EJECUTIVO!$J$135))","v":"JUNIO\n2021     2022"}]
[]
["1  Volúmen Total Negociado por tipo de emisor, acumulado en mill.US$",{"$f":"[2]EJECUTIVO!$I136","v":12524.682157043873},{"$f":"[2]EJECUTIVO!$J136","v":8551.4911127644973},{"$f":"[3]EJECUTIVO!$I136","v":1667.7864456154352},{"$f":"[3]EJECUTIVO!$J136","v":1192.0388507120399},{"$f":"[4]EJECUTIVO!$I136","v":38689.334497800868},{"$f":"[4]EJECUTIVO!$J136","v":54103.562903792401},{"$f":"[5]EJECUTIVO!$I136","v":2540.4957173292096},{"$f":"[5]EJECUTIVO!$J136","v":4009.8871121781904},{"$f":"[6]EJECUTIVO!$I136","v":658.76852234427702},{"$f":"[6]EJECUTIVO!$J136","v":640.91341688773878},{"$f":"[7]EJECUTIVO!$I136","v":4658.4743040525891},{"$f":"[7]EJECUTIVO!$J136","v":5410.5831473117632},{"$f":"[8]EJECUTIVO!$I136","v":4574.3058142600003},{"$f":"[8]EJECUTIVO!$J136","v":3418.7036010699994}]
["     1.1  Público",{"$f":"[2]EJECUTIVO!$I137","v":11388.177499380334},{"$f":"[2]EJECUTIVO!$J137","v":7405.7349021039954},{"$f":"[3]EJECUTIVO!$I137","v":1122.9746859654354},{"$f":"[3]EJECUTIVO!$J137","v":652.10490552993997},{"$f":"[4]EJECUTIVO!$I137","v":38567.449039763371},{"$f":"[4]EJECUTIVO!$J137","v":53909.014376314233},{"$f":"[5]EJECUTIVO!$I137","v":2486.1853652315403},{"$f":"[5]EJECUTIVO!$J137","v":3961.7361287749181},{"$f":"[6]EJECUTIVO!$I137","v":643.16206589887486},{"$f":"[6]EJECUTIVO!$J137","v":632.25272719515294},{"$f":"[7]EJECUTIVO!$I137","v":4582.9164058095485},{"$f":"[7]EJECUTIVO!$J137","v":4560.8204398187208},{"$f":"[8]EJECUTIVO!$I137","v":2140.0322511499999},{"$f":"[8]EJECUTIVO!$J137","v":1000.4127135}]
["     1.2  Privado",{"$f":"[2]EJECUTIVO!$I138","v":1136.5046576635405},{"$f":"[2]EJECUTIVO!$J138","v":1145.7562106605019},{"$f":"[3]EJECUTIVO!$I138","v":544.81175965},{"$f":"[3]EJECUTIVO!$J138","v":539.93394518210005},{"$f":"[4]EJECUTIVO!$I138","v":121.8854580375007},{"$f":"[4]EJECUTIVO!$J138","v":194.54852747817333},{"$f":"[5]EJECUTIVO!$I138","v":54.310352097669863},{"$f":"[5]EJECUTIVO!$J138","v":48.150983403272946},{"$f":"[6]EJECUTIVO!$I138","v":15.60645644540211},{"$f":"[6]EJECUTIVO!$J138","v":8.6606896925858461},{"$f":"[7]EJECUTIVO!$I138","v":75.55789824304027},{"$f":"[7]EJECUTIVO!$J138","v":849.76270749304285},{"$f":"[8]EJECUTIVO!$I138","v":2434.2735631099999},{"$f":"[8]EJECUTIVO!$J138","v":2418.29088757}]
["2.  Relaciones Analíticas"]
["     2.1  Reportos / volúmen total negociado, en porcentajes",{"$f":"[2]EJECUTIVO!$I140","v":40.867507727844234},{"$f":"[2]EJECUTIVO!$J140","v":61.209636658662994},{"$f":"[3]EJECUTIVO!$I140","v":57.365639933679567},{"$f":"[3]EJECUTIVO!$J140","v":41.646357987028331},{"$f":"[4]EJECUTIVO!$I140","v":34.615898214521565},{"$f":"[4]EJECUTIVO!$J140","v":33.299232786818493},{"$f":"[5]EJECUTIVO!$I140","v":0},{"$f":"[5]EJECUTIVO!$J140","v":0},{"$f":"[6]EJECUTIVO!$I140","v":5.1269327173058228},{"$f":"[6]EJECUTIVO!$J140","v":3.7992373715594963},{"$f":"[7]EJECUTIVO!$I140","v":"n.d."},{"$f":"[7]EJECUTIVO!$J140","v":"n.d."},{"$f":"[8]EJECUTIVO!$I140","v":0.74432444044022406},{"$f":"[8]EJECUTIVO!$J140","v":3.3997055351743155}]
["     2.2  Mercado Secundario / Mercado Primario, (número de veces)",{"$f":"[2]EJECUTIVO!$I141","v":7.3166639502368103},{"$f":"[2]EJECUTIVO!$J141","v":7.5471303774183589},{"$f":"[3]EJECUTIVO!$I141","v":1.303418273031441},{"$f":"[3]EJECUTIVO!$J141","v":1.4586150507842917},{"$f":"[4]EJECUTIVO!$I141","v":0.53623318356296945},{"$f":"[4]EJECUTIVO!$J141","v":0.50368989893071947},{"$f":"[5]EJECUTIVO!$I141","v":0.18687561542804768},{"$f":"[5]EJECUTIVO!$J141","v":0.12189349212925916},{"$f":"[6]EJECUTIVO!$I141","v":1.2572145723998132E-2},{"$f":"[6]EJECUTIVO!$J141","v":2.5852507668300981E-2},{"$f":"[7]EJECUTIVO!$I141","v":"n.d."},{"$f":"[7]EJECUTIVO!$J141","v":"n.d."},{"$f":"[8]EJECUTIVO!$I141","v":0.41489568382041386},{"$f":"[8]EJECUTIVO!$J141","v":0.24011928089340948}]
["     2.3  Volúmen negociado en MN / Volúmen Total, en porcentajes",{"$f":"[2]EJECUTIVO!$I142","v":62.982354865649135},{"$f":"[2]EJECUTIVO!$J142","v":51.448300788101221},{"$f":"[3]EJECUTIVO!$I142","v":100},{"$f":"[3]EJECUTIVO!$J142","v":100},{"$f":"[4]EJECUTIVO!$I142","v":95.624217261022608},{"$f":"[4]EJECUTIVO!$J142","v":94.127921685195858},{"$f":"[5]EJECUTIVO!$I142","v":88.67420496151442},{"$f":"[5]EJECUTIVO!$J142","v":96.683803281477324},{"$f":"[6]EJECUTIVO!$I142","v":3.1468197119615876E-2},{"$f":"[6]EJECUTIVO!$J142","v":1.4126191484024275},{"$f":"[7]EJECUTIVO!$I142","v":63.053626494016534},{"$f":"[7]EJECUTIVO!$J142","v":80.828743566845674},{"$f":"[8]EJECUTIVO!$I142","v":100},{"$f":"[8]EJECUTIVO!$J142","v":100}]
["     2.4  Rendimiento Promedio: Operaciones de Reporto de 1 semana",{"$f":"[2]EJECUTIVO!$I139","v":"n.d."},{"$f":"[2]EJECUTIVO!$J139","v":"n.d."},{"$f":"[3]EJECUTIVO!$I139","v":1.1523150425117206},{"$f":"[3]EJECUTIVO!$J139","v":3.6903045412193776},{"$f":"[4]EJECUTIVO!$I139","v":"n.a."},{"$f":"[4]EJECUTIVO!$J139","v":"n.a."},{"$f":"[5]EJECUTIVO!$I139","v":"n.a."},{"$f":"[5]EJECUTIVO!$J139","v":"n.a."},{"$f":"[6]EJECUTIVO!$I139","v":"n.a."},{"$f":"[6]EJECUTIVO!$J139","v":"n.a."},{"$f":"[7]EJECUTIVO!$I139","v":"n.a."},{"$f":"[7]EJECUTIVO!$J139","v":"n.a."},{"$f":"[8]EJECUTIVO!$I139","v":"n.d."},{"$f":"[8]EJECUTIVO!$J139","v":"n.d."}]
[]
["Notas:"]
["Notación:  n.a.=no aplica ,  n.d.=no disponible, n.o.=No hubo transacción ese mes."]
[]
["a/ En Costa Rica corresponde a la nueva serie del PIB año base 2017; b/ Datos preliminares de 2021 y estimado 2022 (bancos centrales o WEO); c/ Los datos de Honduras no incluyen la maquila; d/ Las remesas provienen de la Balanza Cambiaria en Guatemala y Honduras y de la Balanza de Pagos para el resto de países;  e/ Los flujos negativos de IED que se pudieran observar en El Salvador surgen debido a que en algunos periodos hay amortizaciones netas de préstamos con el inversionista directo, mayores a lo registrado por acciones u otras aportaciones de capital, los cuales por razones metodológicas deben sumarse al valor de la IED; f/ Incluye dentro de los socios comerciales al resto de países centroamericanos, República Dominicana, Panamá, Brasil, Canadá, China, Colombia, Corea del Sur, Haití, Japón, México, Estados Unidos y Zona Euro. Valores sobre (bajo) 100 significan una depreciación (apreciación) real de la moneda. Ver nota metodológica en http://www.secmca.org/nota/propuesta-de-actualizacion-del-indice-de-tipo-de-cambio-efectivo-real-itcer/;  g/ Incluye dentro de los socios comerciales al resto de países Centroamericanos, República Dominicana y Panamá. Valores sobre (bajo) 100 significan una depreciación (apreciación) real de la moneda; h/ En Guatemala, Honduras y República Dominicana se refiere a la Deuda Pública Consolidada tal como lo recomienda la versión del 2001 del Manual de Estadísticas de Finanzas Públicas del FMI. En el resto de países se compila únicamente la deuda bruta. La Deuda Intragubernamental es la obligación contraída por una institución del gobierno con otra, por ejemplo los bonos emitidos por el Gobierno Central y que son comprados por una institución pública. Se resta de la deuda bruta para obtener la deuda consolidada; i/ Las estadísticas monetarias responden a los conceptos definidos en los cuadros armonizados que fueron aprobados por el CMCA en diciembre de 2007.  Las tasas de variación de los componentes de cada concepto están ponderadas, de modo que la suma de las tasas coincide con la tasa de variación interanual de dicho concepto;  j/ Costa Rica, Nicaragua y República Dominicana no tienen encaje remunerado;  k/ En El Salvador el agregado monetario M3 es igual a M2 debido a que no existen pasivos de las Sociedades de Depósito en otra moneda que no sea el US dólar; L/ Esta relación es cero para Nicaragua debido a que todo el cuasidinero en MN se registra como cuasidinero en ME, dado que los depósitos y valores distintos de acciones en MN poseen cláusulas de mantenimiento de valor; m/ Esta relación no aplica a El Salvador debido a que no existen depósitos en una moneda distinta al US dólar, dada la vigencia de la Ley de Integración Monetaria; n/ Esta relación es 100 en Nicaragua debido a que los créditos en MN están indexados al tipo de cambio (mantenimiento de valor). Para efectos prácticos, están dolarizados; ñ/ En El Salvador desde el 2001 las tasas en MN y ME son las mismas, debido a la Ley de Integración Monetaria que circula el US dólar como la moneda local; o/ Para Costa Rica la Tasa de Política Monetaria (TPM) corresponde a la tasa de interés que utiliza el BCCR como referencia para conducir el costo de las operaciones a un día plazo en el Mercado Integrado de Liquidez dentro de un corredor formado por las tasas de interés de sus facilidades permanentes de crédito y de depósito en este mercado; en República Dominicana corresponde a la tasa de referencia para las operaciones de expansión y contracción al plazo de un día hábil; en Honduras la Tasa de Política Monetaria corresponde a la tasa máxima permitida para las posturas de compra y la tasa mínima para las posturas de venta, en las subastas de Letras del Banco Central de Honduras dirigidas a las instituciones del sistema financiero nacional; en Guatemala corresponde a la tasa de interés de los depósitos a plazo a un día (overnight); en El Salvador no aplica por no tener política monetaria y Nicaragua no define tasa de política monetaria."]

{"sheet":"Proyecciones","index":6,"n_rows":49,"n_cols":16,"rows_kept":49,"cut":false,"hidden":false,"merged":[[48,0,48,8],[47,0,47,14],[46,0,46,14],[1,11,1,12],[3,0,3,14]]}
[]
["Consejo Monetario Centroamericano",null,null,null,null,null,null,null,null,null,{"$f":"CONCATENATE(Indice!$J$47,\",\")","v":"REM N° 265,"},{"$f":"Indice!$J$48","v":"2022-06-19"}]
["Secretaría Ejecutiva"]
["PROYECCIONES/METAS 2022-2023 DE LOS PRINCIPALES INDICADORES MACROECONÓMICOS"]
[]
["Cuadro 1",null,null,null,null,null,null,null,"Cuadro 2"]
["Inflación (IPC)\nporcentajes",2019,{"$f":"B7+1","v":2020},{"$f":" C7+1","v":2021},{"$f":"CONCATENATE(\"Proyección inicial \", D7+1)","v":"Proyección inicial 2022"},{"$f":"CONCATENATE(\"Proyección revisada \", D7+1)","v":"Proyección revisada 2022"},{"$f":"CONCATENATE(\"Proyección\n\",D7+2)","v":"Proyección\n2023"},null,"PIB real\nvariación anual",{"$f":"B7","v":2019},{"$f":"C7","v":2020},{"$f":"+CONCATENATE(D7)","v":"2021"},{"$f":"+E7","v":"Proyección inicial 2022"},{"$f":"+F7","v":"Proyección revisada 2022"},"Proyección\n2023"]
["Costa Rica",{"$f":"+'[1]Cuadros anuales'!H8","v":1.5224291145129909},{"$f":"+'[1]Cuadros anuales'!I8","v":0.89244852204477532},{"$f":"+'[1]Cuadros anuales'!J8","v":3.2989079100000041},{"$f":"CONCATENATE([1]METAS!I8,\"\")","v":"3.0 ± 1"},{"$f":"CONCATENATE([1]METAS!L8,\"\")","v":""},{"$f":"CONCATENATE([1]METAS!P8,\"\")","v":"3.0 ± 1"},null,"Costa Rica",{"$f":"+'[1]Cuadros anuales'!H33","v":2.4175118174155852},{"$f":"+'[1]Cuadros anuales'!I33","v":-4.0509081704482419},{"$f":"+'[1]Cuadros anuales'!J33","v":7.763901025241271},{"$f":"+[1]METAS!I33","v":3.9249598300000001},{"$f":"+[1]METAS!L33","v":3.4},{"$f":"[1]METAS!P33","v":3.9}]
["El Salvador ",{"$f":"+'[1]Cuadros anuales'!H9","v":-8.1930382300754445E-3},{"$f":"+'[1]Cuadros anuales'!I9","v":-8.5308433546249507E-2},{"$f":"+'[1]Cuadros anuales'!J9","v":6.1148062694338368},"n.d.",{"$f":"CONCATENATE([1]METAS!L9,\"\")","v":"5.8"},{"$f":"CONCATENATE([1]METAS!P9,\"\")","v":"n.d."},"os ","El Salvador",{"$f":"+'[1]Cuadros anuales'!H34","v":2.4328134236733412},{"$f":"+'[1]Cuadros anuales'!I34","v":-8.1727781230578103},{"$f":"+'[1]Cuadros anuales'!J34","v":10.268310369833223},{"$f":"+[1]METAS!I34","v":4},{"$f":"+[1]METAS!L34","v":2.6},{"$f":"[1]METAS!P34","v":"n.d."}]
["Guatemala",{"$f":"+'[1]Cuadros anuales'!H10","v":3.405527601545999},{"$f":"+'[1]Cuadros anuales'!I10","v":4.8236953455571108},{"$f":"+'[1]Cuadros anuales'!J10","v":3.0678148546824602},{"$f":"CONCATENATE([1]METAS!I10,\"\")","v":"4.0 ± 1"},{"$f":"CONCATENATE([1]METAS!L10,\"\")","v":""},{"$f":"CONCATENATE([1]METAS!P10,\"\")","v":"n.d."},null,"Guatemala",{"$f":"+'[1]Cuadros anuales'!H35","v":4.0023150463744273},{"$f":"+'[1]Cuadros anuales'!I35","v":-1.7640829239506384},{"$f":"+'[1]Cuadros anuales'!J35","v":7.98076967891439},{"$f":"+[1]METAS!I35","v":"3.0 - 5.0"},{"$f":"+[1]METAS!L35","v":"3.0 - 5.0"},{"$f":"[1]METAS!P35","v":"2.5-4.5"}]
["Honduras",{"$f":"+'[1]Cuadros anuales'!H11","v":4.0841584158415767},{"$f":"+'[1]Cuadros anuales'!I11","v":4.0130796670630131},{"$f":"+'[1]Cuadros anuales'!J11","v":5.3158045155758948},{"$f":"CONCATENATE([1]METAS!I11,\"\")","v":"5.0 - 6.19"},{"$f":"CONCATENATE([1]METAS!L11,\"\")","v":""},{"$f":"CONCATENATE([1]METAS!P11,\"\")","v":"4.44"},null,"Honduras",{"$f":"+'[1]Cuadros anuales'!H36","v":2.6530185142984664},{"$f":"+'[1]Cuadros anuales'!I36","v":-8.9647601840458506},{"$f":"+'[1]Cuadros anuales'!J36","v":12.534145781897976},{"$f":"+[1]METAS!I36","v":"3.5 - 4.5"},{"$f":"+[1]METAS!L36","v":""},{"$f":"[1]METAS!P36","v":"3.5 - 4.5"}]
["Nicaragua",{"$f":"+'[1]Cuadros anuales'!H12","v":6.1297243704681925},{"$f":"+'[1]Cuadros anuales'!I12","v":2.9305695911470364},{"$f":"+'[1]Cuadros anuales'!J12","v":7.2100675352489096},{"$f":"CONCATENATE([1]METAS!I12,\"\")","v":"5.0 - 6.0"},{"$f":"[1]METAS!L12","v":"6.0 -7.0"},{"$f":"CONCATENATE([1]METAS!P12,\"\")","v":"n.d."},null,"Nicaragua",{"$f":"+'[1]Cuadros anuales'!H37","v":-3.7797819811756783},{"$f":"+'[1]Cuadros anuales'!I37","v":-1.7894852313954157},{"$f":"+'[1]Cuadros anuales'!J37","v":10.344647344727353},{"$f":"+[1]METAS!I37","v":"4.0 - 5.0"},{"$f":"+[1]METAS!L37","v":""},{"$f":"[1]METAS!P37","v":"n.d."}]
["Rep Dominicana",{"$f":"+'[1]Cuadros anuales'!H13","v":3.6562789262573725},{"$f":"+'[1]Cuadros anuales'!I13","v":5.5536478118097365},{"$f":"+'[1]Cuadros anuales'!J13","v":8.4956989865317958},{"$f":"CONCATENATE([1]METAS!I13,\"\")","v":"4.0 ± 1"},{"$f":"CONCATENATE([1]METAS!L13,\"\")","v":""},{"$f":"CONCATENATE([1]METAS!P13,\"\")","v":"4.0 ± 1"},null,"Rep Dominicana",{"$f":"+'[1]Cuadros anuales'!H38","v":5.0521680227113563},{"$f":"+'[1]Cuadros anuales'!I38","v":-6.7202393746339411},{"$f":"+'[1]Cuadros anuales'!J38","v":12.271990236920516},{"$f":"+[1]METAS!I38","v":5},{"$f":"+[1]METAS!L38","v":""},{"$f":"[1]METAS!P38","v":5}]
["Promedio región CARD",{"$f":"+'[1]Cuadros anuales'!H16","v":3.0479223025774438},{"$f":"+'[1]Cuadros anuales'!I16","v":3.6843488043573958},{"$f":"+'[1]Cuadros anuales'!J16","v":5.5553391459174595},{"$f":"[1]METAS!I16","v":"n.d."},null,{"$f":"[1]METAS!P16","v":"n.d."},null,"Promedio región CARD",{"$f":"+'[1]Cuadros anuales'!H41","v":3.2820104707605728},{"$f":"+'[1]Cuadros anuales'!I41","v":-5.0969501282069416},{"$f":"+'[1]Cuadros anuales'!J41","v":10.084151523361438},{"$f":"+[1]METAS!I41","v":"4.2"},null,{"$f":"CONCATENATE([1]METAS!P41,\"\")","v":"n.d."}]
[]
["Cuadro 3",null,null,null,null,null,null,null,"Cuadro 4"]
["Cuenta Corriente/PIB\nporcentajes",{"$f":"B7","v":2019},{"$f":"C7","v":2020},{"$f":"+CONCATENATE(D7)","v":"2021"},{"$f":"+E7","v":"Proyección inicial 2022"},{"$f":"+F7","v":"Proyección revisada 2022"},"Proyección\n2023",null,"RIN del Banco Central\nen millones de US$",{"$f":"B7","v":2019},{"$f":"C7","v":2020},{"$f":"D7","v":2021},{"$f":"E7","v":"Proyección inicial 2022"},{"$f":"F7","v":"Proyección revisada 2022"},"Proyección\n2023"]
["Costa Rica",{"$f":"+'[1]Cuadros anuales'!H154","v":-1.2825024862808676},{"$f":"+'[1]Cuadros anuales'!I154","v":-1.0276090122813144},{"$f":"+'[1]Cuadros anuales'!J154","v":-3.3151511517290002},{"$f":"[1]METAS!I154","v":-3.4},{"$f":"[1]METAS!L154","v":-4.5999999999999996},{"$f":"[1]METAS!P154","v":-3.5},null,"Costa Rica",{"$f":"+'[1]Cuadros anuales'!H118","v":8912.2999999999993},{"$f":"+'[1]Cuadros anuales'!I118","v":7224.6663515199998},{"$f":"+'[1]Cuadros anuales'!J118","v":6918.1401695499999},{"$f":"+[1]METAS!I118","v":"n.d."},null,{"$f":"[1]METAS!P118","v":"n.d."}]
["El Salvador",{"$f":"+'[1]Cuadros anuales'!H155","v":-0.42169357852502265},{"$f":"+'[1]Cuadros anuales'!I155","v":0.82623144660199188},{"$f":"+'[1]Cuadros anuales'!J155","v":-5.0683928674811849},"n.d.",{"$f":"+[1]METAS!L155","v":""},{"$f":"[1]METAS!P155","v":"n.d."},null,"El Salvador",{"$f":"+'[1]Cuadros anuales'!H119","v":3936.49},{"$f":"+'[1]Cuadros anuales'!I119","v":2915.2},{"$f":"+'[1]Cuadros anuales'!J119","v":3342.39},"n.d.",{"$f":"[1]METAS!L119","v":""},{"$f":"[1]METAS!P119","v":"n.d."}]
["Guatemala",{"$f":"+'[1]Cuadros anuales'!H156","v":2.3600667469147267},{"$f":"+'[1]Cuadros anuales'!I156","v":4.9369693300527446},{"$f":"+'[1]Cuadros anuales'!J156","v":2.5321477139757684},{"$f":"[1]METAS!I156","v":1.2459839119377445},{"$f":"[1]METAS!L156","v":1.2459839119377445},{"$f":"[1]METAS!P156","v":0.82941871926370203},null,"Guatemala",{"$f":"+'[1]Cuadros anuales'!H120","v":14789},{"$f":"+'[1]Cuadros anuales'!I120","v":18468.2},{"$f":"+'[1]Cuadros anuales'!J120","v":20939.599999999999},{"$f":"+[1]METAS!I120","v":22439.599999999999},{"$f":"[1]METAS!L120","v":22439.599999999999},{"$f":"[1]METAS!P120","v":22439.599999999999},{"$f":"+M20","v":22439.599999999999}]
["Honduras",{"$f":"+'[1]Cuadros anuales'!H157","v":-1.6132436226390348},{"$f":"+'[1]Cuadros anuales'!I157","v":3.8311887024947895},{"$f":"+'[1]Cuadros anuales'!J157","v":-2.5579176464399977},{"$f":"[1]METAS!I157","v":-4.5},{"$f":"[1]METAS!L157","v":""},{"$f":"[1]METAS!P157","v":-3.9},null,"Honduras",{"$f":"+'[1]Cuadros anuales'!H121","v":5808.8569290984369},{"$f":"+'[1]Cuadros anuales'!I121","v":8148.8},{"$f":"+'[1]Cuadros anuales'!J121","v":8677.5568154226803},{"$f":"+[1]METAS!I121","v":"n.d."},{"$f":"[1]METAS!L121","v":""},{"$f":"[1]METAS!P121","v":"n.d."},{"$f":"+N21","v":""}]
["Nicaragua",{"$f":"+'[1]Cuadros anuales'!H158","v":5.9871328499372334},{"$f":"+'[1]Cuadros anuales'!I158","v":3.946279418001529},{"$f":"+'[1]Cuadros anuales'!J158","v":-2.2593169789216909},{"$f":"[1]METAS!I158","v":"n.d."},{"$f":"[1]METAS!L158","v":""},{"$f":"[1]METAS!P158","v":"n.d."},null,"Nicaragua",{"$f":"+'[1]Cuadros anuales'!H122","v":2208.5},{"$f":"+'[1]Cuadros anuales'!I122","v":3073.5},{"$f":"+'[1]Cuadros anuales'!J122","v":3954.5522422552585},{"$f":"+[1]METAS!I122","v":"n.d."},{"$f":"[1]METAS!L122","v":""},{"$f":"[1]METAS!P122","v":"n.d."}]
["Rep Dominicana",{"$f":"+'[1]Cuadros anuales'!H159","v":-1.3361287920626372},{"$f":"+'[1]Cuadros anuales'!I159","v":-1.6977844066428887},{"$f":"+'[1]Cuadros anuales'!J159","v":-2.856864233720541},{"$f":"[1]METAS!I159","v":"n.d."},{"$f":"[1]METAS!L159","v":""},{"$f":"[1]METAS!P159","v":"n.d."},null,"Rep Dominicana",{"$f":"+'[1]Cuadros anuales'!H123","v":8781.4},{"$f":"+'[1]Cuadros anuales'!I123","v":10751.6724920383},{"$f":"+'[1]Cuadros anuales'!J123","v":13033.917427885361},{"$f":"+[1]METAS!I123","v":"n.d."},{"$f":"[1]METAS!L123","v":""},{"$f":"[1]METAS!P123","v":"n.d."},{"$f":"+M23","v":"n.d."}]
["Promedio región CARD",{"$f":"+'[1]Cuadros anuales'!H162","v":5.6953974392770633E-2},{"$f":"+'[1]Cuadros anuales'!I162","v":1.2964946868097029},{"$f":"+[1]METAS!H162","v":-1.6355179100695403},{"$f":"[1]METAS!I162","v":"n.d"},null,{"$f":"[1]METAS!P162","v":"n.d."},null,"Total región CARD",{"$f":"+'[1]Cuadros anuales'!H126","v":44436.54692909844},{"$f":"+'[1]Cuadros anuales'!I126","v":50582.038843558301},{"$f":"+'[1]Cuadros anuales'!J126","v":56866.1566551133},{"$f":"+[1]METAS!I126","v":"n.d."},null,{"$f":"CONCATENATE([1]METAS!P126,\"\")","v":"n.d."},{"$f":"+SUM(P18:P23)","v":22439.599999999999}]
[]
["Cuadro 5",null,null,null,null,null,null,null,"Cuadro 6"]
["Exportaciones\nvariación anual",{"$f":"B7","v":2019},{"$f":"C7","v":2020},{"$f":"D17","v":"2021"},"Proyección inicial 2022","Proyección revisada 2022","Proyección\n2023",null,"Importaciones\nvariación anual",{"$f":"B7","v":2019},{"$f":"C7","v":2020},{"$f":"D17","v":"2021"},"Proyección inicial 2022","Proyección revisada 2022","Proyección\n2023"]
["Costa Rica",{"$f":"+'[1]Cuadros anuales'!H70","v":2.6650267419203519},{"$f":"+'[1]Cuadros anuales'!I70","v":8.1723041318943821},{"$f":"+'[1]Cuadros anuales'!J70","v":26.267100472035899},{"$f":"[1]METAS!I70","v":"n.d."},{"$f":"([1]METAS!L70)","v":""},{"$f":"[1]METAS!$P70","v":"n.d."},{"$f":"+E28","v":"n.d."},"Costa Rica",{"$f":"+'[1]Cuadros anuales'!H94","v":-2.5136593601189436},{"$f":"+'[1]Cuadros anuales'!I94","v":8.3929962476106272},{"$f":"+'[1]Cuadros anuales'!J94","v":38.029495849792468},{"$f":"[1]METAS!I94","v":"n.d."},{"$f":"[1]METAS!$L94","v":""},{"$f":"[1]METAS!$P94","v":"n.d."}]
["El Salvador ",{"$f":"+'[1]Cuadros anuales'!H71","v":-6.9428098736891977E-3},{"$f":"+'[1]Cuadros anuales'!I71","v":-14.846112941957449},{"$f":"+'[1]Cuadros anuales'!J71","v":31.828324370763962},"n.d.",{"$f":"([1]METAS!L71)","v":""},{"$f":"[1]METAS!$P71","v":"n.d."},{"$f":"+E29","v":"n.d."},"El Salvador",{"$f":"+'[1]Cuadros anuales'!H95","v":1.2019912231961403},{"$f":"+'[1]Cuadros anuales'!I95","v":-11.671842449347578},{"$f":"+'[1]Cuadros anuales'!J95","v":47.111855760138873},"n.d.",{"$f":"[1]METAS!$L95","v":""},{"$f":"[1]METAS!$P95","v":"n.d."}]
["Guatemala",{"$f":"+'[1]Cuadros anuales'!H72","v":1.8095463827304883},{"$f":"+'[1]Cuadros anuales'!I72","v":-0.59813218004854074},{"$f":"+'[1]Cuadros anuales'!J72","v":22.703647320584054},{"$f":"[1]METAS!I72","v":"8.5 -  11.5"},{"$f":"([1]METAS!L72)","v":"8.5 -  11.5"},{"$f":"[1]METAS!$P72","v":"4.5 -  7.5"},11.9,"Guatemala",{"$f":"+'[1]Cuadros anuales'!H96","v":1.0536588341135169},{"$f":"+'[1]Cuadros anuales'!I96","v":-8.4238693062932182},{"$f":"+'[1]Cuadros anuales'!J96","v":46.142100753564549},{"$f":"[1]METAS!I96","v":"10.5 - 13.5"},{"$f":"[1]METAS!$L96","v":"10.5 - 13.5"},{"$f":"[1]METAS!$P96","v":"6.5 - 9.5"}]
["Honduras",{"$f":"+'[1]Cuadros anuales'!H73","v":-2.3166391976557965},{"$f":"+'[1]Cuadros anuales'!I73","v":0.6117783932664288},{"$f":"+'[1]Cuadros anuales'!J73","v":22.165299536427359},{"$f":"[1]METAS!I73","v":7.4},{"$f":"([1]METAS!L73)","v":""},{"$f":"[1]METAS!$P73","v":3.8},13.6,"Honduras",{"$f":"+'[1]Cuadros anuales'!H97","v":-3.4523287304499788},{"$f":"+'[1]Cuadros anuales'!I97","v":-13.486898681028093},{"$f":"+'[1]Cuadros anuales'!J97","v":47.60272322374874},{"$f":"[1]METAS!I97","v":10},{"$f":"[1]METAS!$L97","v":""},{"$f":"[1]METAS!$P97","v":7}]
["Nicaragua",{"$f":"+'[1]Cuadros anuales'!H74","v":3.2253622478170736},{"$f":"+'[1]Cuadros anuales'!I74","v":-4.8236541192240683},{"$f":"+'[1]Cuadros anuales'!J74","v":29.458881018962241},{"$f":"[1]METAS!I74","v":"n.d."},{"$f":"([1]METAS!L74)","v":""},{"$f":"[1]METAS!$P74","v":"n.d."},8.1999999999999993,"Nicaragua",{"$f":"+'[1]Cuadros anuales'!H98","v":-6.5847733709501144},{"$f":"+'[1]Cuadros anuales'!I98","v":-4.3202995955777537},{"$f":"+'[1]Cuadros anuales'!J98","v":42.51953824013507},{"$f":"[1]METAS!I98","v":"n.d."},{"$f":"[1]METAS!$L98","v":""},{"$f":"[1]METAS!$P98","v":"n.d."}]
["Rep Dominicana",{"$f":"+'[1]Cuadros anuales'!H75","v":5.2133369680675914},{"$f":"+'[1]Cuadros anuales'!I75","v":-7.9587588338827908},{"$f":"+'[1]Cuadros anuales'!J75","v":20.967976780982131},{"$f":"[1]METAS!I75","v":"n.d."},{"$f":"([1]METAS!L75)","v":""},{"$f":"[1]METAS!$P75","v":"n.d."},47,"Rep Dominicana",{"$f":"+'[1]Cuadros anuales'!H99","v":0.34905655706455813},{"$f":"+'[1]Cuadros anuales'!I99","v":-15.605048401898594},{"$f":"+'[1]Cuadros anuales'!J99","v":41.147033031277438},{"$f":"[1]METAS!I99","v":"n.d."},{"$f":"[1]METAS!$L99","v":""},{"$f":"[1]METAS!$P99","v":"n.d."}]
["Promedio región CARD",{"$f":"+'[1]Cuadros anuales'!H78","v":2.6520799704964668},{"$f":"+'[1]Cuadros anuales'!I78","v":-3.2106214428453685},"n.d.",{"$f":"[1]METAS!I78","v":"n.d."},null,{"$f":"[1]METAS!$P78","v":"n.d."},null,"Promedio región CARD",{"$f":"+'[1]Cuadros anuales'!H102","v":-0.60051059885437652},{"$f":"+'[1]Cuadros anuales'!I102","v":-8.6945408272344729},"n.d.",{"$f":"[1]METAS!I102","v":"n.d."},null,{"$f":"[1]METAS!$P102","v":"n.d."}]
["En Honduras no se incluyen los bienes para la transformación.",null,null,null,null,null,null,null,"En Honduras no se incluyen los bienes para la transformación."]
["Cuadro 7",null,null,null,null,null,null,null,"Cuadro 8"]
["Remesas (Ingreso)\nen millones de US$",{"$f":"B7","v":2019},{"$f":"C7","v":2020},2021,"Proyección inicial 2022","Proyección revisada 2022","Proyección\n2023",null,"Saldo Operacional del Gobierno Central/PIB",{"$f":"B7","v":2019},{"$f":"C7","v":2020},{"$f":"D17","v":"2021"},"Proyección inicial 2022","Proyección revisada 2022","Proyección\n2023"]
["Costa Rica",{"$f":"+'[1]Cuadros anuales'!H130","v":518.78523984000003},{"$f":"+'[1]Cuadros anuales'!I130","v":495.26073155},{"$f":"+'[1]Cuadros anuales'!J130","v":558.81444390000001},{"$f":"+[1]METAS!I130","v":"n.d."},{"$f":"+[1]METAS!L130","v":""},{"$f":"+[1]METAS!P130","v":"n.d."},{"$f":"+E38","v":"n.d."},"Costa Rica",{"$f":"+'[1]Cuadros anuales'!H191","v":-6.6541998907443185},{"$f":"+'[1]Cuadros anuales'!I191","v":-7.9929270599233231},{"$f":"+'[1]Cuadros anuales'!J191","v":-5.0229083988640646},{"$f":"+[1]METAS!I179","v":-3.6},{"$f":"[1]METAS!L179","v":""},{"$f":"[1]METAS!P179","v":-2.7},{"$f":"+N38","v":""}]
["El Salvador",{"$f":"+'[1]Cuadros anuales'!H131","v":5648.9600000000009},{"$f":"+'[1]Cuadros anuales'!I131","v":5929.94},{"$f":"+'[1]Cuadros anuales'!J131","v":7517.14},{"$f":"+[1]METAS!I131","v":"n.d."},{"$f":"+[1]METAS!L131","v":""},{"$f":"+[1]METAS!P131","v":"n.d."},{"$f":"+E39","v":"n.d."},"El Salvador",{"$f":"+'[1]Cuadros anuales'!H192","v":-1.6220562384474631},{"$f":"+'[1]Cuadros anuales'!I192","v":-9.2393304202063025},{"$f":"+'[1]Cuadros anuales'!J192","v":-4.9301167686876006},{"$f":"+IF([1]METAS!I180=\"\", \"n.d.\")","v":"n.d."},{"$f":"[1]METAS!L180","v":""},{"$f":"[1]METAS!P180","v":"n.d."},{"$f":"+M39","v":"n.d."}]
["Guatemala",{"$f":"+'[1]Cuadros anuales'!H132","v":10508.4},{"$f":"+'[1]Cuadros anuales'!I132","v":11340.5},{"$f":"+'[1]Cuadros anuales'!J132","v":15295.7},{"$f":"+[1]METAS!I132","v":17590.038001090998},{"$f":"+[1]METAS!L132","v":17590.038001090998},{"$f":"+[1]METAS!P132","v":18645.440281156458},{"$f":"+E40","v":17590.038001090998},"Guatemala",{"$f":"+'[1]Cuadros anuales'!H193","v":-2.236102448236132},{"$f":"+'[1]Cuadros anuales'!I193","v":-4.9154768960373723},{"$f":"+'[1]Cuadros anuales'!J193","v":-1.1684591811221623},{"$f":"+[1]METAS!I181","v":-2.7708861244390199},{"$f":"[1]METAS!L181","v":-2.2499752561785433},{"$f":"[1]METAS!P181","v":-2.186609875736},{"$f":"+M40","v":-2.7708861244390199}]
["Honduras",{"$f":"+'[1]Cuadros anuales'!H133","v":5521.9937392699994},{"$f":"+'[1]Cuadros anuales'!I133","v":5741.0465999999997},{"$f":"+'[1]Cuadros anuales'!J133","v":7370.0331000000006},{"$f":"+[1]METAS!I133","v":8190.2160000000003},{"$f":"+[1]METAS!L133","v":""},{"$f":"+[1]METAS!P133","v":8845.4332800000011},{"$f":"+F41","v":""},"Honduras",{"$f":"+'[1]Cuadros anuales'!H194","v":-2.4728248230901784},{"$f":"+'[1]Cuadros anuales'!I194","v":-6.9899565287095715},{"$f":"+'[1]Cuadros anuales'!J194","v":-4.962951984757626},{"$f":"+[1]METAS!I182","v":4},{"$f":"[1]METAS!L182","v":""},{"$f":"[1]METAS!P182","v":2.7},-3.7]
["Nicaragua",{"$f":"+'[1]Cuadros anuales'!H134","v":1682.3999999999999},{"$f":"+'[1]Cuadros anuales'!I134","v":1851.4},{"$f":"+'[1]Cuadros anuales'!J134","v":2146.8999999999996},{"$f":"+[1]METAS!I134","v":"n.d."},{"$f":"+[1]METAS!L134","v":""},{"$f":"+[1]METAS!P134","v":"n.d."},null,"Nicaragua",{"$f":"+'[1]Cuadros anuales'!H195","v":0.25969974235861709},{"$f":"+'[1]Cuadros anuales'!I195","v":-1.0599248205316665},{"$f":"+'[1]Cuadros anuales'!J195","v":-0.74119396097172707},{"$f":"+IF([1]METAS!I183=\"\", \"n.d.\")","v":"n.d."},{"$f":"[1]METAS!L183","v":""},{"$f":"[1]METAS!P183","v":"n.d."},{"$f":"+M42","v":"n.d."}]
["Rep Dominicana",{"$f":"+'[1]Cuadros anuales'!H135","v":7087.0455344587717},{"$f":"+'[1]Cuadros anuales'!I135","v":8219.262925713756},{"$f":"+'[1]Cuadros anuales'!J135","v":10402.469200279835},{"$f":"+[1]METAS!I135","v":"n.d."},{"$f":"+[1]METAS!L135","v":""},{"$f":"+[1]METAS!P135","v":"n.d."},null,"Rep Dominicana",{"$f":"+'[1]Cuadros anuales'!H196","v":-2.1953227034944036},{"$f":"+'[1]Cuadros anuales'!I196","v":-7.9061094698755703},{"$f":"+'[1]Cuadros anuales'!J196","v":-2.9306059192376286},{"$f":"+[1]METAS!I184","v":"n.d."},{"$f":"[1]METAS!L184","v":""},{"$f":"[1]METAS!P184","v":"n.d."},{"$f":"+M43","v":"n.d."}]
["Total región CARD",{"$f":"+'[1]Cuadros anuales'!H138","v":30967.584513568774},{"$f":"+'[1]Cuadros anuales'!I138","v":33577.410257263764},"n.d.",{"$f":"+[1]METAS!I138","v":"n.d."},null,{"$f":"CONCATENATE([1]METAS!P138,\"\")","v":"n.d."},null,"Promedio región CARD",{"$f":"+'[1]Cuadros anuales'!H199","v":-2.7077044276462519},{"$f":"+'[1]Cuadros anuales'!I199","v":-6.7260105762827926},"n.d.",{"$f":"+[1]METAS!I187","v":"n.d"},null,{"$f":"[1]METAS!P187","v":"n.d."}]
[null,null,null,null,null,null,null,null,"Incluye donaciones"]
["Fuente: Bancos Centrales Centroamericanos y de República Dominicana."]
["NOTAS:"]
["La región CARD incluye a los países de Centroamérica y República Dominicana"]
["Los promedios regionales están ponderados conforme al tamaño de cada economía. "]

{"sheet":"Seguimiento proyecciones","index":7,"n_rows":93,"n_cols":14,"rows_kept":93,"cut":false,"hidden":false,"merged":[[92,0,93,7],[27,19,27,25],[28,19,28,25],[27,0,28,6],[5,8,5,16],[6,8,6,16],[28,8,28,16],[24,8,24,16],[71,0,72,6],[49,0,50,6],[49,8,50,16],[1,13,1,14],[48,0,48,7],[48,8,48,14],[24,0,24,6],[25,8,25,14],[4,0,4,15],[5,0,6,6],[3,0,3,16],[1,15,2,16],[27,8,27,16]]}
[]
["CONSEJO MONETARIO CENTROAMERICANO",null,null,null,null,null,null,null,null,null,null,null,{"$f":"CONCATENATE(Indice!$J$47,\",\")","v":"REM N° 265,"},{"$f":"Indice!$J$48","v":"2022-06-19"}]
["SECRETARIA EJECUTIVA"]
["SEGUIMIENTO DE LAS PROYECCIONES EN 2022"]
[]
["Inflación Acumulada en 2022",null,null,null,null,null,null,null,"Resultado operacional del Gobierno Central 2022"]
[null,null,null,null,null,null,null,null,"(incluye las donaciones)"]
[]
[]
[]
[]
[]
[]
[]
[]
[]
[]
[]
[]
[]
[]
[]
[]
[]
["Cuando se especifica un rango en las metas de inflación, se toma el límite superior.\n",null,null,null,null,null,null,null,"El saldo positivo de República Dominicana se debe a que en enero del 2015 se incluye dentro de las donaciones la suma de RD$ 93,157.2 millones, correspondiente al descuento generado por la transacción de deuda realizada con Petrocaribe."]
[]
[]
["Saldo en la Cuenta Corriente 2022",null,null,null,null,null,null,null,"Reservas Internacionales Netas"]
[null,null,null,null,null,null,null,null,"del Banco Central  2022"]
[]
[]
[]
[]
[]
[]
[]
[]
[]
[]
[]
[]
[]
[]
[]
[]
[]
[]
[]
[null,null,null,null,null,null,null,null,"\n"]
["Exportaciones Totales con Maquila 2022",null,null,null,null,null,null,null,"Importaciones Totales con Maquila 2022"]
[]
[]
[]
[]
[]
[]
[]
[]
[]
[]
[]
[]
[]
[]
[]
[]
[]
[]
[]
[]
[]
["Ingresos por Remesas Familiares 2022"]
[]
[]
[]
[]
[]
[]
[]
[]
[]
[]
[]
[]
[]
[]
[]
[]
[]
[]
[]
[]
["Los datos de Costa Rica no están disponibles en forma mensual. Anualmente Costa Rica recibe alrededor de 500 millones de US dólares por concepto de remesas."]

{"sheet":"Gráficos-pais","index":8,"n_rows":182,"n_cols":19,"rows_kept":182,"cut":false,"hidden":false,"merged":[[182,9,182,16],[181,9,181,16],[159,9,160,17],[159,0,159,7],[160,0,160,7],[80,9,81,16],[159,21,159,28],[160,21,160,28],[181,21,181,28],[181,0,181,7],[157,9,157,16],[158,9,158,16],[136,9,136,16],[108,0,109,7],[130,0,130,7],[108,9,109,16],[156,0,156,7],[131,0,131,7],[131,9,131,16],[133,0,134,7],[133,9,134,16],[57,9,58,16],[33,9,33,16],[34,9,34,16],[33,0,33,7],[34,0,34,7],[1,18,2,21],[4,0,5,16],[82,9,82,16],[106,0,106,7],[106,9,106,16],[85,0,85,7],[85,9,85,16],[84,9,84,16],[9,18,12,21],[9,9,9,16],[10,9,10,16],[80,0,83,7],[2,15,2,16],[9,0,10,7],[84,0,84,7],[57,0,58,7]]}
[]
[null,null,null,null,null,null,null,null,null,null,null,null,null,null,null,null,null,null,"Seleccione el país"]
["CONSEJO MONETARIO CENTROAMERICANO",null,null,null,null,null,null,null,null,null,null,null,null,null,{"$f":"CONCATENATE(Indice!$J$47,\",\")","v":"REM N° 265,"},{"$f":"Indice!$J$48","v":"2022-06-19"}]
["SECRETARIA EJECUTIVA"]
["EVOLUCIÓN POR PAÍS DE INDICADORES MACROECONÓMICOS SELECCIONADOS "]
[]
[]
[]
[]
["Tasa de Inflación Interanual ",null,null,null,null,null,null,null,null,"IMAE",null,null,null,null,null,null,null,null,"Nota: Se le recuerda habilitar las macros para hacer uso de las herramientas dinámicas presentes en este informe. \n"]
[null,null,null,null,null,null,null,null,null,"Variación interanual de la Tendencia-Ciclo"]
[]
[]
[]
[]
[]
[]
[]
[]
[]
[]
[]
[]
[]
[]
[]
[]
[]
[]
[]
[]
[]
[]
["ITCER bilateral USA\naño base 2000",null,null,null,null,null,null,null,null,"Tipo de Cambio Nominal\nTasa de variación interanual"]
["2000=100",null,null,null,null,null,null,null,null,"Tasa de Variación Interanual"]
[]
[]
[]
[]
[]
[]
[]
[]
[]
[]
[]
[]
[]
[]
[]
[]
[]
[]
[]
[]
[]
[]
["RIN Banco Central",null,null,null,null,null,null,null,null,"RIN Banco Central/ Base Monetaria Amplia"]
[]
[]
[]
[]
[]
[]
[]
[]
[]
[]
[]
[]
[]
[]
[]
[]
[]
[]
[]
[]
[]
[]
["En Panamá, el Banco Nacional de Panamá (BNP) funciona como receptor y gestor de las RIN que corresponden a los activos externos de reserva menos los pasivos de corto plazo frente a no residentes. Los primeros se componen de: billetes y depósitos en moneda extranjera e inversiones en títulos (incluidos los títulos de deuda y participaciones de capital); los pasivos se componen de los depósitos transferibles de no residentes en moneda extranjera.\nEn Costa Rica se dió un aumento en las RIN en marzo de 2018 de US$ 1.000 millones provenientes del FLAR.",null,null,null,null,null,null,null,null,"República Dominicana presenta un incremento de US$1,246 millones en febrero de 2018 debido a la colocación de bonos soberanos en el mercado global de capitales.\nEn El Salvador al cierre de febrero de 2017 las Reservas Internacionales Netas (RIN) alcanzaron un nivel de US$3,510.9 millones, un incremento de US$607 millones respecto al mes de enero de 2017, explicado por la colocación de bonos del Gobierno de El Salvador ($601 millones). \nLa relación RIN a Base Monetaria es alta en Panamá (escala derecha) debido a que la base monetaria es pequeña; esto es consecuencia de que no existe encaje legal debido a la ausencia de Banco Central."]
[]
[]
[]
["Exportaciones totales FOB, del mes                                     ",null,null,null,null,null,null,null,null,"Importaciones totales CIF, del mes"]
["Promedio móvil de los últimos 12 meses",null,null,null,null,null,null,null,null,"Promedio móvil de los últimos 12 meses"]
[]
[]
[]
[]
[]
[]
[]
[]
[]
[]
[]
[]
[]
[]
[]
[]
[]
[]
[]
[]
["Las cifras de Honduras no incluyen la maquila.",null,null,null,null,null,null,null,null,"Las cifras de Honduras no incluyen la maquila."]
[]
["Tasa de interés pasiva real en MN\na 180 días",null,null,null,null,null,null,null,null,"Tasa de interés activa real en MN\nde corto plazo"]
[]
[]
[]
[]
[]
[]
[]
[]
[]
[]
[]
[]
[]
[]
[]
[]
[]
[]
[]
[]
[]
[]
["La tasa real se obtiene deflatando con la tasa de variación interanual del IPC al mes indicado.",null,null,null,null,null,null,null,null,"La tasa real se obtiene deflatando con la tasa de variación interanual del IPC al mes indicado."]
[]
["Tasa de interés pasiva en ME\na 180 días",null,null,null,null,null,null,null,null,"Tasa de interés activa en ME\nde corto plazo"]
[]
[]
[]
[]
[]
[]
[]
[]
[]
[]
[]
[]
[]
[]
[]
[]
[]
[]
[]
[]
[]
[]
[]
[null,null,null,null,null,null,null,null,null,"En Honduras, a partir de enero 2017, la CNBS implementó las Normas Internacionales de Información Financiera (NIIF) en los balances contables de los Bancos Comerciales, Sociedades Financieras y Banhprovi, permitiendo cambios en el cálculo de las tasas de interés activas y pasivas."]
[null,null,null,null,null,null,null,null,null,"En Costa Rica a partir de enero 2019 cambia la metodología de cálculo de tasas de interés para utilizar tasas ponderadas por el monto de la operación."]
["Tasa de interés líder de Política Monetaria",null,null,null,null,null,null,null,null,"Créditos de las OSD al sector Privado, Variación Interanual "]
["evolución mensual"]
[]
[]
[]
[]
[]
[]
[]
[]
[]
[]
[]
[]
[]
[]
[]
[]
[]
[]
[]
[]
["En Nicaragua corresponde a la Tasa de Referencia de Reportos Monetarios (TRM) que el BCN utiliza para indicar el costo de operaciones a un día en las subastas de reportos monetarios. Es definida por el Comité de Operaciones de Mercado Abierto. La serie inicia en abril de 2020."]

{"sheet":"Nota Técnica","index":9,"n_rows":46,"n_cols":13,"rows_kept":46,"cut":false,"hidden":false,"merged":[[8,3,8,12],[0,10,0,14],[1,10,1,14],[31,3,31,5],[31,7,31,9],[31,11,31,13],[30,1,30,14],[4,3,5,12],[6,3,6,12],[7,3,7,12],[11,1,11,14],[22,4,22,14],[23,4,23,14],[24,4,24,14],[25,4,25,14],[21,4,21,14],[43,1,44,14],[45,1,48,14],[19,1,19,14],[20,7,20,14],[26,4,26,14],[27,4,27,14],[27,1,27,3],[28,4,28,14]]}
[null,null,null,null,null,null,null,null,null,null,"Consejo Monetario Centroamericano"]
[null,null,null,null,null,null,null,null,null,null,"Secretaría Ejecutiva"]
[]
[]
[null,null,null,"REPORTE EJECUTIVO MENSUAL"]
[]
[null,null,null,"DE INDICADORES MACROECONÓMICOS"]
[null,null,null,"DE CENTROAMÉRICA, REPÚBLICA DOMINICANA y"]
[null,null,null,"PANAMÁ"]
[]
[]
[null,"Glosario de Términos"]
[null,"PIB",null,"Producto Interno Bruto"]
[null,"IMAE",null,"Índice Mensual de Actividad Económica"]
[null,"IPC",null,"Índice de Precios al Consumidor"]
[null,"ISI",null,"Índice Subyacente de Inflación. En algunos países se utiliza el Indice del Nucleo Inflacionario (INI)"]
[null,"Región CARD",null,"La región incluye los siguientes países: Costa Rica, El Salvador, Guatemala, Honduras, Nicaragua y República Dominicana"]
[null,"Región CAPARD",null,"La región incluye los siguientes países: Costa Rica, El Salvador, Guatemala, Honduras, Nicaragua, Panamá y República Dominicana"]
[]
[null,"Definición de términos"]
[]
[null,"Variación Interanual",null,null,"Variación porcentual del nivel del mes respecto al mismo mes del año anterior."]
[null,"Variación acumulada",null,null,"Variación porcentual del nivel del mes vigente respecto al mes de diciembre del año anterior."]
[null,"Aceleración",null,null,"Diferencia en valor absoluto entre la variación (interanual) de un mes respecto al mes anterior. Su interpretación se realiza en puntos porcentuales."]
[null,"Metas de Inflación",null,null,"Esquema donde el Banco Central hace explícita su meta de inflación puntual o rango, y los instrumentos de política monetaria se direccionan en la obtención de dicha meta."]
[null,"Inflación Subyacente",null,null,"El Índice subyacente de Inflación (ISI) se define como el componente del cambio total de precios común a todos los bienes y servicios, cuya persistencia se mantendría en el mediano y largo plazo. El ISI constituye una medida alternativa del IPC, al que se le han eliminado algunos de los bienes y servicios cuyos precios son, por lo general, los más volátiles.  El algunos países se denomina índice del nucleo inflacionario."]
[null,"Tendencia-Ciclo",null,null,"Serie de tiempo que excluye los componentes de estacionalidad e irregularidad."]
[null,"RIN/meses de importación promedio",null,null,"Tanto en el cuadro regional como en el compartivo por país se calcula la relación de RIN a importaciones promedio. En ambos casos el denominador corresponde al promedio de importaciones observadas de enero al mes indicado.  En el cálculo regional se suman las importaciones totales y las RIN de todos los países de la región."]
[]
[]
[null,"Periodos base de los principales indicadores del sector real"]
[null,null,null,"Año Base o de referencia del Indicador Mensual de Actividad Económica IMAE",null,null,null,"Año Base o de referencia del Producto Interno Bruto en términos constantes ",null,null,null,"Periodo base de los Índices de Precios al Consumidor "]
[null,"País"]
[null,"Costa Rica",null,null,2017,null,null,null,2017,null,null,null,"Diciembre 2020"]
[null,"El Salvador",null,null,2014,null,null,null,2014,null,null,null,"Diciembre 2009"]
[null,"Guatemala",null,null,2013,null,null,null,2013,null,null,null,"Diciembre 2010"]
[null,"Honduras",null,null,2000,null,null,null,2000,null,null,null,"Diciembre 1999"]
[null,"Nicaragua",null,null,2006,null,null,null,2006,null,null,null,2006]
[null,"República Dominicana",null,null,2007,null,null,null,2007,null,null,null,"Oct.2019-Sept. 2020"]
[null,"Panamá",null,null,1996,null,null,null,2007,null,null,null,2013]
[]
[]
[]
[null," Los ponderadores"]
[]
[null,"Los cálculos regionales están basados en promedios ponderados de las tasas de variación de cada país. Los ponderadores por país se obtienen Banco Mundial utilizando el Gasto de consumo final de los hogares (GCFH) y de las instituciones sin fines de lucro que sirven a los hogares (ISFLSH) según la paridad del poder de compra (PPC) para las variables de precios y del  Producto Interno Bruto según PPC para las variables de producción.  Para mayor detalle consultar el Documento de Trabajo SECMCA-01-2021 “Propuesta de cambio en el método de agregación de variables y ponderadores regionales”, http://www.secmca.org/wp-content/uploads/2021/03/Propuesta-de-cambio-en-el-m%C3%A9todo-de\u0002agregaci%C3%B3n-de-variables-y-ponderadores-regionales.pdf. "]

{"sheet":"Gráfico Seguimiento","index":10,"n_rows":9,"n_cols":17,"rows_kept":9,"cut":false,"hidden":true,"merged":[[9,16,14,16],[9,10,14,10],[9,12,14,12],[9,2,14,2],[9,14,14,14],[0,11,0,12],[0,13,0,14],[0,1,0,2],[0,3,0,4],[0,5,0,6],[0,7,0,8],[0,9,0,10]]}
[null,"INFLACIÓN",null,"RIN",null,"RESULTADO OPERACIONAL GC",null,"CUENTA CORRIENTE",null,"Exportaciones",null,"Importaciones ",null,"Remesas acumuladas",null,"Remesas sin CR-NI",{"$f":"+[1]EJECUTIVO!$G$72","v":"MAYO"}]
[null,{"$f":"+[1]METAS!$O7","v":"Proy.dic/22"},{"$f":"[1]METAS!S19","v":"JUN.22"},{"$f":"+[1]METAS!$M117","v":"Proy.dic/22"},{"$f":"+[1]METAS!$S117","v":"JUN.22"},{"$f":"+[1]METAS!$M166","v":"Proy.dic/22"},{"$f":"+[1]METAS!$S166","v":"ABR.22"},{"$f":"+[1]METAS!$M141","v":"Proy.dic/22"},{"$f":"[1]METAS!S141","v":"I TRIM.22"},{"$f":"+[1]METAS!$M57","v":"Proy.dic/22"},{"$f":"+[1]METAS!$S57","v":"ABR.22"},{"$f":"+[1]METAS!$M81","v":"Proy.dic/22"},{"$f":"+[1]METAS!$S81","v":"ABR.22"},{"$f":"+[1]METAS!$M129","v":"Proy.dic/22"},{"$f":"+[1]METAS!$S129","v":"MAY.22"},{"$f":"+[1]METAS!$M129","v":"Proy.dic/22"},{"$f":"+[1]METAS!$V129","v":"MAY.22"}]
["CR",{"$f":"+[1]METAS!$O8","v":4},{"$f":"[1]METAS!S20","v":7.3526788653152098},null,{"$f":"+[1]METAS!$S118","v":6197},null,null,{"$f":"+'[2]HIST METAS'!$AL23","v":-2442.7325905841385},{"$f":"[1]METAS!S142","v":-897.8357994415469}]
["ES",{"$f":"+[1]METAS!$O9","v":5.8},{"$f":"[1]METAS!S21","v":4.5478675685111991},null,{"$f":"+[1]METAS!$S119","v":3483},null,{"$f":"+[1]METAS!$S168","v":227.28512230458014},null,{"$f":"[1]METAS!S143","v":-703.33414973171239},null,{"$f":"+[1]METAS!$S59","v":2476.06},null,{"$f":"+[1]METAS!$S83","v":5795.6600000000008},null,{"$f":"+[1]METAS!$S131","v":3145.87},null,{"$f":"+[1]METAS!$V131","v":3145.87}]
["GT",{"$f":"+[1]METAS!$O10","v":5},{"$f":"[1]METAS!S22","v":5.6723237597911202},{"$f":"+[1]METAS!$M120","v":22439.599999999999},{"$f":"+[1]METAS!$S120","v":19876},{"$f":"+[1]METAS!$M$169","v":-2067.2591745325058},{"$f":"+[1]METAS!$S169","v":289.73513790555864},{"$f":"+'[4]HIST METAS'!$AL23","v":3708.2},{"$f":"[1]METAS!S144","v":151.89465999999976},{"$f":"+[1]METAS!$M60","v":14982.770000000002},{"$f":"+[1]METAS!$S60","v":5368.3},{"$f":"+[1]METAS!$M84","v":29800.736000000001},{"$f":"+[1]METAS!$S84","v":10462.999999999998},{"$f":"+[1]METAS!$M132","v":17590.038001090998},{"$f":"+[1]METAS!$S132","v":7045.1},{"$f":"+[1]METAS!$M132","v":17590.038001090998},{"$f":"+[1]METAS!$V132","v":7045.1}]
["HO",6.19,{"$f":"[1]METAS!S23","v":6.5671641791044788},null,{"$f":"+[1]METAS!$S121","v":8352},null,{"$f":"+[1]METAS!$S170","v":743.33714638231572},null,{"$f":"[1]METAS!S145","v":-90.484610526914182},{"$f":"+[1]METAS!$M61","v":5587.8564758365783},{"$f":"+[1]METAS!$S61","v":2194.9886953715527},{"$f":"+[1]METAS!$M85","v":14544.021511032894},{"$f":"+[1]METAS!$S85","v":4741.9387546777452},{"$f":"+[1]METAS!$M133","v":8190.2160000000003},{"$f":"+[1]METAS!$S133","v":3440.9592000000002},{"$f":"+[1]METAS!$M133","v":8190.2160000000003},{"$f":"+[1]METAS!$V133","v":3440.9592000000002}]
["NI",7,{"$f":"[1]METAS!S24","v":5.2561684432031353},null,{"$f":"+[1]METAS!$S122","v":4278},null,{"$f":"+[1]METAS!$S171","v":216.71748065858307},null,{"$f":"[1]METAS!S146","v":-116.09999999999982},null,{"$f":"+[1]METAS!$S62","v":2671.4285186799998},null,{"$f":"+[1]METAS!$S86","v":3451.9041763600003},null,{"$f":"+[1]METAS!$S134","v":1132.5},null,{"$f":"+[1]METAS!$V134","v":1132.5}]
["RD",{"$f":"+[1]METAS!$O13","v":5},{"$f":"[1]METAS!S25","v":4.9566054227770717},null,{"$f":"+[1]METAS!$S123","v":14455},null,{"$f":"+[1]METAS!$S172","v":-191.48064472839209},{"$f":"+'[7]HIST METAS'!$AL23","v":-1260.2778018387471},{"$f":"[1]METAS!S147","v":-1029.200000000001},null,null,null,null,null,{"$f":"+[1]METAS!$S135","v":4057.2153383391806},null,{"$f":"+[1]METAS!$V135","v":4057.2153383391806}]
[null,"Nicaragua siempre da error el link y por eso se ingresa a mano"]

{"sheet":"Datos_Regional (M)","index":11,"n_rows":398,"n_cols":112,"rows_kept":398,"cut":false,"hidden":true,"merged":[[0,96,0,103],[0,104,0,111],[0,73,0,75],[0,76,0,89],[0,44,0,47],[0,48,0,53],[0,54,0,60],[0,12,1,12],[0,0,1,2],[0,3,1,3],[0,4,1,4],[0,11,1,11],[0,5,1,5],[0,6,1,6],[0,9,0,10],[0,7,0,8],[0,13,1,13],[0,14,1,14],[0,61,0,67],[0,69,1,69],[0,70,0,72],[0,27,0,30],[0,15,0,20],[0,21,0,26],[0,68,1,68],[0,31,0,36],[0,37,0,43]]}
["Variables Mensuales Regional",null,null,"IPC CARD","IPC CARD_T","IPC CAPARD","IPC CAPARD_T","CARD",null,"CAPARD",null,"RIN_CARD","RIN\nDiciembres","RIN_CAPARD","RIN\nDiciembres","CARD",null,null,null,null,null,"CAPARD",null,null,null,null,null,"Crédito de las OSD con SPNF",null,null,null,"Créditos de las OSD con el sector privado, saldo en millones de USD",null,null,null,null,null,"Tasa de variación Interanual",null,null,null,null,null,null,"Crédito de las OSD con SPNF",null,null,null,"Créditos de las OSD con el sector privado, saldo en millones de USD",null,null,null,null,null,"Tasa de variación Interanual",null,null,null,null,null,null,"Tasa de Política Monetaria",null,null,null,null,null,null,"CARD Saldo operacional GC","CAPARD Saldo operacional GC","CARD",null,null,"CAPARD",null,null,"Crédito de las OSD con el Sector Privado MN",null,null,null,null,null,null,null,null,null,null,null,null,null,"Mill-US$","Mill-US$","%","Mill-US$","Mill-US$","%","CARD",null,null,null,null,null,null,null,"CAPARD"]
[null,null,null,null,null,null,null,"IMAER_TC","IMAER_T","IMAER CARD_TC","IMAER CAPARD_T",null,null,null,null,"M1","M2","M3","M1_%","M2_%","M3_%","M1","M2","M3","M1_%","M2_%","M3_%","Activos","Pasivos","Crédito Neto","%Interanual","Otras sociedades no financieras","Otros sectores 1/","Otras sociedades no financieras","Hogares e ISFLSH",null,"TOTAL","Otras sociedades no financieras",null,"Otros sectores 1/","Otras sociedades no financieras","Hogares e ISFLSH","TOTAL","Aceleración","Activos","Pasivos","Crédito Neto","%Interanual","Otras sociedades no financieras","Otros sectores 1/","Otras sociedades no financieras","Hogares e ISFLSH",null,"TOTAL","Otras sociedades no financieras",null,"Otros sectores 1/","Otras sociedades no financieras","Hogares e ISFLSH","TOTAL","Aceleración","Costa Rica","El Salvador","Guatemala","Honduras","Nicaragua","República Dominicana","PA",null,null,"Deuda Pública total","Deuda Interna","Deuda Externa","Deuda Pública total","Deuda Interna","Deuda Externa","CR","SV","GT","HO","NI","RD","PA","CR %","SV %","GT %","HO %","NI %","RD %","PA %","CARD Saldo Operacional con donaciones","CARD PIB a precios corrientes","CARD Saldo operacional/PIB","CAPARD Saldo Operacional con donaciones","CAPARD PIB a precios corrientes","CAPARD Saldo operacional/PIB","Credito TOTAL","Créditos de las OSD a sector Público","Créditos de las OSD a sector Privado","Créditos de las OSD a no residentes y otros","Credito TOTAL %","Créditos de las OSD a sector Público %","Créditos de las OSD a sector Privado %","Créditos de las OSD a no residentes y otros %","Credito TOTAL","Créditos de las OSD a sector Público","Créditos de las OSD a sector Privado","Créditos de las OSD a no residentes y otros","Credito TOTAL %","Créditos de las OSD a sector Público %","Créditos de las OSD a sector Privado %","Créditos de las OSD a no residentes y otros %"]
[1990,"enero",{"$f":"A3&\"-\"&B3","v":"1990-enero"},{"$f":"IF('[1]REAL IPC(M)'!$AL10=\"\",\"\",+'[1]REAL IPC(M)'!$AL10)","v":"n.d."},{"$f":"IF('[1]REAL IPC(M)'!$BE10=\"\",\"\",+'[1]REAL IPC(M)'!$BE10)","v":"n.d."},{"$f":"IF('[1]REAL IPC(M)'!$AM10=\"\",\"\",+'[1]REAL IPC(M)'!$AM10)","v":"n.d."},{"$f":"IF('[1]REAL IPC(M)'!$BI10=\"\",\"\",+'[1]REAL IPC(M)'!$BI10)","v":"n.d."},{"$f":"IF('[1]REAL IMAE(M)'!BJ10=\"\",\"\",'[1]REAL IMAE(M)'!BJ10)","v":"n.d."},{"$f":"IF('[1]REAL IMAE(M)'!BK10=\"\",\"\",'[1]REAL IMAE(M)'!BK10)","v":"n.d."},{"$f":"IF('[1]REAL IMAE(M)'!BN10=\"\",\"\",'[1]REAL IMAE(M)'!BN10)","v":"n.d."},{"$f":"IF('[1]REAL IMAE(M)'!BO10=\"\",\"\",'[1]REAL IMAE(M)'!BO10)","v":"n.d."},{"$f":"IF('[1]EXT RIN(M)'!$K10=\"\",\"\",'[1]EXT RIN(M)'!$K10)","v":"n.d."},{"$f":"IF(B3<>\"diciembre\",\"\",L3)","v":""},{"$f":"IF('[1]EXT RIN(M)'!$L10=\"\",\"\",'[1]EXT RIN(M)'!$L10)","v":"n.d."},{"$f":"IF(B3<>\"diciembre\",\"\",N3)","v":""},{"$f":"IF('[1]MONE(M)CARD'!EG10=\"\",\"\",'[1]MONE(M)CARD'!EG10)","v":"n.d."},{"$f":"IF('[1]MONE(M)CARD'!EK10=\"\",\"\",'[1]MONE(M)CARD'!EK10)","v":"n.d."},{"$f":"IF('[1]MONE(M)CARD'!EP10=\"\",\"\",'[1]MONE(M)CARD'!EP10)","v":"n.d."},{"$f":"IF('[1]MONE(M)CARD'!ES10=\"\",\"\",'[1]MONE(M)CARD'!ES10)","v":"n.d."},{"$f":"IF('[1]MONE(M)CARD'!EV10=\"\",\"\",'[1]MONE(M)CARD'!EV10)","v":"n.d."},{"$f":"IF('[1]MONE(M)CARD'!EZ10=\"\",\"\",'[1]MONE(M)CARD'!EZ10)","v":"n.d."},{"$f":"IF('[1]MONE(M)CAPARD'!FC10=\"\",\"\",'[1]MONE(M)CAPARD'!FC10)","v":"n.d."},{"$f":"IF('[1]MONE(M)CAPARD'!FG10=\"\",\"\",'[1]MONE(M)CAPARD'!FG10)","v":"n.d."},{"$f":"IF('[1]MONE(M)CAPARD'!FL10=\"\",\"\",'[1]MONE(M)CAPARD'!FL10)","v":"n.d."},{"$f":"IF('[1]MONE(M)CAPARD'!FO10=\"\",\"\",'[1]MONE(M)CAPARD'!FO10)","v":"n.d."},{"$f":"IF('[1]MONE(M)CAPARD'!FR10=\"\",\"\",'[1]MONE(M)CAPARD'!FR10)","v":"n.d."},{"$f":"IF('[1]MONE(M)CAPARD'!FV10=\"\",\"\",'[1]MONE(M)CAPARD'!FV10)","v":"n.d."},{"$f":"IF('[1]MONE(M)CARD'!FV10=\"\",\"\",'[1]MONE(M)CARD'!FV10)","v":""},{"$f":"IF('[1]MONE(M)CARD'!GD10=\"\",\"\",'[1]MONE(M)CARD'!GD10)","v":"n.d."},{"$f":"IF('[1]MONE(M)CARD'!GE10=\"\",\"\",'[1]MONE(M)CARD'!GE10)","v":"n.d."},"n.d.","n.d.","n.d.","n.d.","n.d.",null,"n.d.","n.d.",null,"n.d.","n.d.","n.d.","n.d.","n.d.",{"$f":"IF('[1]MONE(M)CAPARD'!GS10=\"\",\"\",'[1]MONE(M)CAPARD'!GS10)","v":"n.d."},{"$f":"IF('[1]MONE(M)CARD'!HA10=\"\",\"\",'[1]MONE(M)CAPARD'!HA10)","v":"n.d."},{"$f":"IF('[1]MONE(M)CAPARD'!HB10=\"\",\"\",'[1]MONE(M)CAPARD'!HB10)","v":"n.d."},"n.d.","n.d.","n.d.","n.d.","n.d.","n.d.","n.d.","n.d.","n.d.","n.d.","n.d.","n.d.","n.d.","n.d.",{"$f":"IF('[1]MONE(M)CAPARD'!AS10=\"\",\"\",'[1]MONE(M)CAPARD'!AS10)","v":"n.d."},{"$f":"IF('[1]MONE(M)CAPARD'!AT10=\"\",\"\",'[1]MONE(M)CAPARD'!AT10)","v":"n.a."},{"$f":"IF('[1]MONE(M)CAPARD'!AU10=\"\",\"\",'[1]MONE(M)CAPARD'!AU10)","v":"n.d."},{"$f":"IF('[1]MONE(M)CAPARD'!AV10=\"\",\"\",'[1]MONE(M)CAPARD'!AV10)","v":"n.d."},{"$f":"IF('[1]MONE(M)CAPARD'!AW10=\"\",\"\",'[1]MONE(M)CAPARD'!AW10)","v":"n.a."},{"$f":"IF('[1]MONE(M)CAPARD'!AX10=\"\",\"\",'[1]MONE(M)CAPARD'!AX10)","v":"n.d."},{"$f":"IF('[1]MONE(M)CAPARD'!AY10=\"\",\"\",'[1]MONE(M)CAPARD'!AY10)","v":"n.a."},{"$f":"IF('[1]FISCAL(M)'!$K10=\"\",\"\",'[1]FISCAL(M)'!$K10)","v":"n.d."},{"$f":"IF('[1]FISCAL(M)'!$L10=\"\",\"\",'[1]FISCAL(M)'!$L10)","v":"n.d."},{"$f":"IF('[1]FISCAL(M)'!$AY10=\"\",\"\",'[1]FISCAL(M)'!$AY10)","v":"n.d."},{"$f":"IF('[1]FISCAL(M)'!$BI10=\"\",\"\",'[1]FISCAL(M)'!$BI10)","v":"n.d."},{"$f":"IF('[1]FISCAL(M)'!$BS10=\"\",\"\",'[1]FISCAL(M)'!$BS10)","v":"n.d."},{"$f":"IF('[1]FISCAL(M)'!$AZ10=\"\",\"\",'[1]FISCAL(M)'!$AZ10)","v":"n.d."},{"$f":"IF('[1]FISCAL(M)'!$BJ10=\"\",\"\",'[1]FISCAL(M)'!$BJ10)","v":"n.d."},{"$f":"IF('[1]FISCAL(M)'!$BT10=\"\",\"\",'[1]FISCAL(M)'!$BT10)","v":"n.d."},{"$f":"IF('[2]MONE(M)'!$AO10=\"\",\"\",'[2]MONE(M)'!$AO10)","v":"n.d."},{"$f":"IF('[3]MONE(M)'!$AO10=\"\",\"\",'[3]MONE(M)'!$AO10)","v":"n.d."},{"$f":"IF('[4]MONE(M)'!$AO10=\"\",\"\",'[4]MONE(M)'!$AO10)","v":"n.d."},{"$f":"+'[5]MONE(M)'!$AO10","v":"n.d."},{"$f":"IF('[6]MONE(M)'!$AO10=\"\",\"\",'[6]MONE(M)'!$AO10)","v":"n.d."},{"$f":"IF('[7]MONE(M)'!$AO10=\"\",\"\",'[7]MONE(M)'!$AO10)","v":"n.d."},{"$f":"IF('[8]MONE(M)'!$AO10=\"\",\"\",'[8]MONE(M)'!$AO10)","v":"n.d."},"n.d.","n.d.","n.d.","n.d.","n.d.","n.d.","n.d.",{"$f":"'[1]FISCAL(M)'!$K10","v":"n.d."},"n.d.",{"$f":"IF(OR(CM3=\"n.d.\",CM3=\"\",CN3=\"\",CN3=\"n.d.\"),\"n.d.\",(CM3/CN3)*100)","v":"n.d."},{"$f":"IF('[1]FISCAL(M)'!$L10=\"\",\"\",'[1]FISCAL(M)'!$L10)","v":"n.d."},"n.d.",{"$f":"IF(OR(CP3=\"n.d.\",CP3=\"\",CQ3=\"\",CQ3=\"n.d.\"),\"n.d.\",(CP3/CQ3)*100)","v":"n.d."},"n.d.","n.d.","n.d.","n.d.","n.d.","n.d.","n.d.","n.d.","n.d.","n.d.","n.d.","n.d.","n.d.","n.d.","n.d.","n.d."]
[1990,"febrero",{"$f":"A4&\"-\"&B4","v":"1990-febrero"},{"$f":"IF('[1]REAL IPC(M)'!$AL11=\"\",\"\",+'[1]REAL IPC(M)'!$AL11)","v":"n.d."},{"$f":"IF('[1]REAL IPC(M)'!$BE11=\"\",\"\",+'[1]REAL IPC(M)'!$BE11)","v":"n.d."},{"$f":"IF('[1]REAL IPC(M)'!$AM11=\"\",\"\",+'[1]REAL IPC(M)'!$AM11)","v":"n.d."},{"$f":"IF('[1]REAL IPC(M)'!$BI11=\"\",\"\",+'[1]REAL IPC(M)'!$BI11)","v":"n.d."},{"$f":"IF('[1]REAL IMAE(M)'!BJ11=\"\",\"\",'[1]REAL IMAE(M)'!BJ11)","v":"n.d."},{"$f":"IF('[1]REAL IMAE(M)'!BK11=\"\",\"\",'[1]REAL IMAE(M)'!BK11)","v":"n.d."},{"$f":"IF('[1]REAL IMAE(M)'!BN11=\"\",\"\",'[1]REAL IMAE(M)'!BN11)","v":"n.d."},{"$f":"IF('[1]REAL IMAE(M)'!BO11=\"\",\"\",'[1]REAL IMAE(M)'!BO11)","v":"n.d."},{"$f":"IF('[1]EXT RIN(M)'!$K11=\"\",\"\",'[1]EXT RIN(M)'!$K11)","v":"n.d."},{"$f":"IF(B4<>\"diciembre\",\"\",L4)","v":""},{"$f":"IF('[1]EXT RIN(M)'!$L11=\"\",\"\",'[1]EXT RIN(M)'!$L11)","v":"n.d."},{"$f":"IF(B4<>\"diciembre\",\"\",N4)","v":""},{"$f":"IF('[1]MONE(M)CARD'!EG11=\"\",\"\",'[1]MONE(M)CARD'!EG11)","v":"n.d."},{"$f":"IF('[1]MONE(M)CARD'!EK11=\"\",\"\",'[1]MONE(M)CARD'!EK11)","v":"n.d."},{"$f":"IF('[1]MONE(M)CARD'!EP11=\"\",\"\",'[1]MONE(M)CARD'!EP11)","v":"n.d."},{"$f":"IF('[1]MONE(M)CARD'!ES11=\"\",\"\",'[1]MONE(M)CARD'!ES11)","v":"n.d."},{"$f":"IF('[1]MONE(M)CARD'!EV11=\"\",\"\",'[1]MONE(M)CARD'!EV11)","v":"n.d."},{"$f":"IF('[1]MONE(M)CARD'!EZ11=\"\",\"\",'[1]MONE(M)CARD'!EZ11)","v":"n.d."},{"$f":"IF('[1]MONE(M)CAPARD'!FC11=\"\",\"\",'[1]MONE(M)CAPARD'!FC11)","v":"n.d."},{"$f":"IF('[1]MONE(M)CAPARD'!FG11=\"\",\"\",'[1]MONE(M)CAPARD'!FG11)","v":"n.d."},{"$f":"IF('[1]MONE(M)CAPARD'!FL11=\"\",\"\",'[1]MONE(M)CAPARD'!FL11)","v":"n.d."},{"$f":"IF('[1]MONE(M)CAPARD'!FO11=\"\",\"\",'[1]MONE(M)CAPARD'!FO11)","v":"n.d."},{"$f":"IF('[1]MONE(M)CAPARD'!FR11=\"\",\"\",'[1]MONE(M)CAPARD'!FR11)","v":"n.d."},{"$f":"IF('[1]MONE(M)CAPARD'!FV11=\"\",\"\",'[1]MONE(M)CAPARD'!FV11)","v":"n.d."},{"$f":"IF('[1]MONE(M)CARD'!FV11=\"\",\"\",'[1]MONE(M)CARD'!FV11)","v":""},{"$f":"IF('[1]MONE(M)CARD'!GD11=\"\",\"\",'[1]MONE(M)CARD'!GD11)","v":"n.d."},{"$f":"IF('[1]MONE(M)CARD'!GE11=\"\",\"\",'[1]MONE(M)CARD'!GE11)","v":"n.d."},"n.d.","n.d.","n.d.","n.d.","n.d.",{"$f":"IFERROR(+AF4+AH4,\"\")","v":""},"n.d.","n.d.",null,"n.d.","n.d.","n.d.","n.d.","n.d.",{"$f":"IF('[1]MONE(M)CAPARD'!GS11=\"\",\"\",'[1]MONE(M)CAPARD'!GS11)","v":"n.d."},{"$f":"IF('[1]MONE(M)CARD'!HA11=\"\",\"\",'[1]MONE(M)CAPARD'!HA11)","v":"n.d."},{"$f":"IF('[1]MONE(M)CAPARD'!HB11=\"\",\"\",'[1]MONE(M)CAPARD'!HB11)","v":"n.d."},"n.d.","n.d.","n.d.","n.d.","n.d.","n.d.","n.d.","n.d.","n.d.","n.d.","n.d.","n.d.","n.d.","n.d.",{"$f":"IF('[1]MONE(M)CAPARD'!AS11=\"\",\"\",'[1]MONE(M)CAPARD'!AS11)","v":"n.d."},{"$f":"IF('[1]MONE(M)CAPARD'!AT11=\"\",\"\",'[1]MONE(M)CAPARD'!AT11)","v":"n.a."},{"$f":"IF('[1]MONE(M)CAPARD'!AU11=\"\",\"\",'[1]MONE(M)CAPARD'!AU11)","v":"n.d."},{"$f":"IF('[1]MONE(M)CAPARD'!AV11=\"\",\"\",'[1]MONE(M)CAPARD'!AV11)","v":"n.d."},{"$f":"IF('[1]MONE(M)CAPARD'!AW11=\"\",\"\",'[1]MONE(M)CAPARD'!AW11)","v":"n.a."},{"$f":"IF('[1]MONE(M)CAPARD'!AX11=\"\",\"\",'[1]MONE(M)CAPARD'!AX11)","v":"n.d."},{"$f":"IF('[1]MONE(M)CAPARD'!AY11=\"\",\"\",'[1]MONE(M)CAPARD'!AY11)","v":"n.a."},{"$f":"IF('[1]FISCAL(M)'!$K11=\"\",\"\",'[1]FISCAL(M)'!$K11)","v":"n.d."},{"$f":"IF('[1]FISCAL(M)'!$L11=\"\",\"\",'[1]FISCAL(M)'!$L11)","v":"n.d."},{"$f":"IF('[1]FISCAL(M)'!$AY11=\"\",\"\",'[1]FISCAL(M)'!$AY11)","v":"n.d."},{"$f":"IF('[1]FISCAL(M)'!$BI11=\"\",\"\",'[1]FISCAL(M)'!$BI11)","v":"n.d."},{"$f":"IF('[1]FISCAL(M)'!$BS11=\"\",\"\",'[1]FISCAL(M)'!$BS11)","v":"n.d."},{"$f":"IF('[1]FISCAL(M)'!$AZ11=\"\",\"\",'[1]FISCAL(M)'!$AZ11)","v":"n.d."},{"$f":"IF('[1]FISCAL(M)'!$BJ11=\"\",\"\",'[1]FISCAL(M)'!$BJ11)","v":"n.d."},{"$f":"IF('[1]FISCAL(M)'!$BT11=\"\",\"\",'[1]FISCAL(M)'!$BT11)","v":"n.d."},{"$f":"IF('[2]MONE(M)'!$AO11=\"\",\"\",'[2]MONE(M)'!$AO11)","v":"n.d."},{"$f":"IF('[3]MONE(M)'!$AO11=\"\",\"\",'[3]MONE(M)'!$AO11)","v":"n.d."},{"$f":"IF('[4]MONE(M)'!$AO11=\"\",\"\",'[4]MONE(M)'!$AO11)","v":"n.d."},{"$f":"+'[5]MONE(M)'!$AO11","v":"n.d."},{"$f":"IF('[6]MONE(M)'!$AO11=\"\",\"\",'[6]MONE(M)'!$AO11)","v":"n.d."},{"$f":"IF('[7]MONE(M)'!$AO11=\"\",\"\",'[7]MONE(M)'!$AO11)","v":"n.d."},{"$f":"IF('[8]MONE(M)'!$AO11=\"\",\"\",'[8]MONE(M)'!$AO11)","v":"n.d."},"n.d.","n.d.","n.d.","n.d.","n.d.","n.d.","n.d.",{"$f":"'[1]FISCAL(M)'!$K11","v":"n.d."},"n.d.","n.d.",{"$f":"IF('[1]FISCAL(M)'!$L11=\"\",\"\",'[1]FISCAL(M)'!$L11)","v":"n.d."},"n.d.",{"$f":"IF(OR(CP4=\"n.d.\",CP4=\"\",CQ4=\"\",CQ4=\"n.d.\"),\"n.d.\",(CP4/CQ4)*100)","v":"n.d."},"n.d.","n.d.","n.d.","n.d.","n.d.","n.d.","n.d.","n.d.","n.d.","n.d.","n.d.","n.d.","n.d.","n.d.","n.d.","n.d."]
[1990,"marzo","1990-marzo",{"$f":"IF('[1]REAL IPC(M)'!$AL12=\"\",\"\",+'[1]REAL IPC(M)'!$AL12)","v":"n.d."},{"$f":"IF('[1]REAL IPC(M)'!$BE12=\"\",\"\",+'[1]REAL IPC(M)'!$BE12)","v":"n.d."},{"$f":"IF('[1]REAL IPC(M)'!$AM12=\"\",\"\",+'[1]REAL IPC(M)'!$AM12)","v":"n.d."},{"$f":"IF('[1]REAL IPC(M)'!$BI12=\"\",\"\",+'[1]REAL IPC(M)'!$BI12)","v":"n.d."},{"$f":"IF('[1]REAL IMAE(M)'!BJ12=\"\",\"\",'[1]REAL IMAE(M)'!BJ12)","v":"n.d."},{"$f":"IF('[1]REAL IMAE(M)'!BK12=\"\",\"\",'[1]REAL IMAE(M)'!BK12)","v":"n.d."},{"$f":"IF('[1]REAL IMAE(M)'!BN12=\"\",\"\",'[1]REAL IMAE(M)'!BN12)","v":"n.d."},{"$f":"IF('[1]REAL IMAE(M)'!BO12=\"\",\"\",'[1]REAL IMAE(M)'!BO12)","v":"n.d."},{"$f":"IF('[1]EXT RIN(M)'!$K12=\"\",\"\",'[1]EXT RIN(M)'!$K12)","v":"n.d."},"",{"$f":"IF('[1]EXT RIN(M)'!$L12=\"\",\"\",'[1]EXT RIN(M)'!$L12)","v":"n.d."},"",{"$f":"IF('[1]MONE(M)CARD'!EG12=\"\",\"\",'[1]MONE(M)CARD'!EG12)","v":"n.d."},{"$f":"IF('[1]MONE(M)CARD'!EK12=\"\",\"\",'[1]MONE(M)CARD'!EK12)","v":"n.d."},{"$f":"IF('[1]MONE(M)CARD'!EP12=\"\",\"\",'[1]MONE(M)CARD'!EP12)","v":"n.d."},{"$f":"IF('[1]MONE(M)CARD'!ES12=\"\",\"\",'[1]MONE(M)CARD'!ES12)","v":"n.d."},{"$f":"IF('[1]MONE(M)CARD'!EV12=\"\",\"\",'[1]MONE(M)CARD'!EV12)","v":"n.d."},{"$f":"IF('[1]MONE(M)CARD'!EZ12=\"\",\"\",'[1]MONE(M)CARD'!EZ12)","v":"n.d."},{"$f":"IF('[1]MONE(M)CAPARD'!FC12=\"\",\"\",'[1]MONE(M)CAPARD'!FC12)","v":"n.d."},{"$f":"IF('[1]MONE(M)CAPARD'!FG12=\"\",\"\",'[1]MONE(M)CAPARD'!FG12)","v":"n.d."},{"$f":"IF('[1]MONE(M)CAPARD'!FL12=\"\",\"\",'[1]MONE(M)CAPARD'!FL12)","v":"n.d."},{"$f":"IF('[1]MONE(M)CAPARD'!FO12=\"\",\"\",'[1]MONE(M)CAPARD'!FO12)","v":"n.d."},{"$f":"IF('[1]MONE(M)CAPARD'!FR12=\"\",\"\",'[1]MONE(M)CAPARD'!FR12)","v":"n.d."},{"$f":"IF('[1]MONE(M)CAPARD'!FV12=\"\",\"\",'[1]MONE(M)CAPARD'!FV12)","v":"n.d."},{"$f":"IF('[1]MONE(M)CARD'!FV12=\"\",\"\",'[1]MONE(M)CARD'!FV12)","v":""},{"$f":"IF('[1]MONE(M)CARD'!GD12=\"\",\"\",'[1]MONE(M)CARD'!GD12)","v":"n.d."},{"$f":"IF('[1]MONE(M)CARD'!GE12=\"\",\"\",'[1]MONE(M)CARD'!GE12)","v":"n.d."},"n.d.","n.d.","n.d.","n.d.","n.d.","","n.d.","n.d.",null,"n.d.","n.d.","n.d.","n.d.","n.d.",{"$f":"IF('[1]MONE(M)CAPARD'!GS12=\"\",\"\",'[1]MONE(M)CAPARD'!GS12)","v":"n.d."},{"$f":"IF('[1]MONE(M)CARD'!HA12=\"\",\"\",'[1]MONE(M)CAPARD'!HA12)","v":"n.d."},{"$f":"IF('[1]MONE(M)CAPARD'!HB12=\"\",\"\",'[1]MONE(M)CAPARD'!HB12)","v":"n.d."},"n.d.","n.d.","n.d.","n.d.","n.d.","n.d.","n.d.","n.d.","n.d.","n.d.","n.d.","n.d.","n.d.","n.d.",{"$f":"IF('[1]MONE(M)CAPARD'!AS12=\"\",\"\",'[1]MONE(M)CAPARD'!AS12)","v":"n.d."},{"$f":"IF('[1]MONE(M)CAPARD'!AT12=\"\",\"\",'[1]MONE(M)CAPARD'!AT12)","v":"n.a."},{"$f":"IF('[1]MONE(M)CAPARD'!AU12=\"\",\"\",'[1]MONE(M)CAPARD'!AU12)","v":"n.d."},{"$f":"IF('[1]MONE(M)CAPARD'!AV12=\"\",\"\",'[1]MONE(M)CAPARD'!AV12)","v":"n.d."},{"$f":"IF('[1]MONE(M)CAPARD'!AW12=\"\",\"\",'[1]MONE(M)CAPARD'!AW12)","v":"n.a."},{"$f":"IF('[1]MONE(M)CAPARD'!AX12=\"\",\"\",'[1]MONE(M)CAPARD'!AX12)","v":"n.d."},{"$f":"IF('[1]MONE(M)CAPARD'!AY12=\"\",\"\",'[1]MONE(M)CAPARD'!AY12)","v":"n.a."},{"$f":"IF('[1]FISCAL(M)'!$K12=\"\",\"\",'[1]FISCAL(M)'!$K12)","v":"n.d."},{"$f":"IF('[1]FISCAL(M)'!$L12=\"\",\"\",'[1]FISCAL(M)'!$L12)","v":"n.d."},{"$f":"IF('[1]FISCAL(M)'!$AY12=\"\",\"\",'[1]FISCAL(M)'!$AY12)","v":"n.d."},{"$f":"IF('[1]FISCAL(M)'!$BI12=\"\",\"\",'[1]FISCAL(M)'!$BI12)","v":"n.d."},{"$f":"IF('[1]FISCAL(M)'!$BS12=\"\",\"\",'[1]FISCAL(M)'!$BS12)","v":"n.d."},{"$f":"IF('[1]FISCAL(M)'!$AZ12=\"\",\"\",'[1]FISCAL(M)'!$AZ12)","v":"n.d."},{"$f":"IF('[1]FISCAL(M)'!$BJ12=\"\",\"\",'[1]FISCAL(M)'!$BJ12)","v":"n.d."},{"$f":"IF('[1]FISCAL(M)'!$BT12=\"\",\"\",'[1]FISCAL(M)'!$BT12)","v":"n.d."},{"$f":"IF('[2]MONE(M)'!$AO12=\"\",\"\",'[2]MONE(M)'!$AO12)","v":"n.d."},{"$f":"IF('[3]MONE(M)'!$AO12=\"\",\"\",'[3]MONE(M)'!$AO12)","v":"n.d."},{"$f":"IF('[4]MONE(M)'!$AO12=\"\",\"\",'[4]MONE(M)'!$AO12)","v":"n.d."},{"$f":"+'[5]MONE(M)'!$AO12","v":"n.d."},{"$f":"IF('[6]MONE(M)'!$AO12=\"\",\"\",'[6]MONE(M)'!$AO12)","v":"n.d."},{"$f":"IF('[7]MONE(M)'!$AO12=\"\",\"\",'[7]MONE(M)'!$AO12)","v":"n.d."},{"$f":"IF('[8]MONE(M)'!$AO12=\"\",\"\",'[8]MONE(M)'!$AO12)","v":"n.d."},"n.d.","n.d.","n.d.","n.d.","n.d.","n.d.","n.d.",{"$f":"IF('[1]FISCAL(M)'!$K12=\"\",\"\",'[1]FISCAL(M)'!$K12)","v":"n.d."},"n.d.","n.d.",{"$f":"IF('[1]FISCAL(M)'!$L12=\"\",\"\",'[1]FISCAL(M)'!$L12)","v":"n.d."},"n.d.","n.d.","n.d.","n.d.","n.d.","n.d.","n.d.","n.d.","n.d.","n.d.","n.d.","n.d.","n.d.","n.d.","n.d.","n.d.","n.d.","n.d."]
[1990,"abril","1990-abril",{"$f":"IF('[1]REAL IPC(M)'!$AL13=\"\",\"\",+'[1]REAL IPC(M)'!$AL13)","v":"n.d."},{"$f":"IF('[1]REAL IPC(M)'!$BE13=\"\",\"\",+'[1]REAL IPC(M)'!$BE13)","v":"n.d."},{"$f":"IF('[1]REAL IPC(M)'!$AM13=\"\",\"\",+'[1]REAL IPC(M)'!$AM13)","v":"n.d."},{"$f":"IF('[1]REAL IPC(M)'!$BI13=\"\",\"\",+'[1]REAL IPC(M)'!$BI13)","v":"n.d."},{"$f":"IF('[1]REAL IMAE(M)'!BJ13=\"\",\"\",'[1]REAL IMAE(M)'!BJ13)","v":"n.d."},{"$f":"IF('[1]REAL IMAE(M)'!BK13=\"\",\"\",'[1]REAL IMAE(M)'!BK13)","v":"n.d."},{"$f":"IF('[1]REAL IMAE(M)'!BN13=\"\",\"\",'[1]REAL IMAE(M)'!BN13)","v":"n.d."},{"$f":"IF('[1]REAL IMAE(M)'!BO13=\"\",\"\",'[1]REAL IMAE(M)'!BO13)","v":"n.d."},{"$f":"IF('[1]EXT RIN(M)'!$K13=\"\",\"\",'[1]EXT RIN(M)'!$K13)","v":"n.d."},"",{"$f":"IF('[1]EXT RIN(M)'!$L13=\"\",\"\",'[1]EXT RIN(M)'!$L13)","v":"n.d."},"",{"$f":"IF('[1]MONE(M)CARD'!EG13=\"\",\"\",'[1]MONE(M)CARD'!EG13)","v":"n.d."},{"$f":"IF('[1]MONE(M)CARD'!EK13=\"\",\"\",'[1]MONE(M)CARD'!EK13)","v":"n.d."},{"$f":"IF('[1]MONE(M)CARD'!EP13=\"\",\"\",'[1]MONE(M)CARD'!EP13)","v":"n.d."},{"$f":"IF('[1]MONE(M)CARD'!ES13=\"\",\"\",'[1]MONE(M)CARD'!ES13)","v":"n.d."},{"$f":"IF('[1]MONE(M)CARD'!EV13=\"\",\"\",'[1]MONE(M)CARD'!EV13)","v":"n.d."},{"$f":"IF('[1]MONE(M)CARD'!EZ13=\"\",\"\",'[1]MONE(M)CARD'!EZ13)","v":"n.d."},{"$f":"IF('[1]MONE(M)CAPARD'!FC13=\"\",\"\",'[1]MONE(M)CAPARD'!FC13)","v":"n.d."},{"$f":"IF('[1]MONE(M)CAPARD'!FG13=\"\",\"\",'[1]MONE(M)CAPARD'!FG13)","v":"n.d."},{"$f":"IF('[1]MONE(M)CAPARD'!FL13=\"\",\"\",'[1]MONE(M)CAPARD'!FL13)","v":"n.d."},{"$f":"IF('[1]MONE(M)CAPARD'!FO13=\"\",\"\",'[1]MONE(M)CAPARD'!FO13)","v":"n.d."},{"$f":"IF('[1]MONE(M)CAPARD'!FR13=\"\",\"\",'[1]MONE(M)CAPARD'!FR13)","v":"n.d."},{"$f":"IF('[1]MONE(M)CAPARD'!FV13=\"\",\"\",'[1]MONE(M)CAPARD'!FV13)","v":"n.d."},{"$f":"IF('[1]MONE(M)CARD'!FV13=\"\",\"\",'[1]MONE(M)CARD'!FV13)","v":""},{"$f":"IF('[1]MONE(M)CARD'!GD13=\"\",\"\",'[1]MONE(M)CARD'!GD13)","v":"n.d."},{"$f":"IF('[1]MONE(M)CARD'!GE13=\"\",\"\",'[1]MONE(M)CARD'!GE13)","v":"n.d."},"n.d.","n.d.","n.d.","n.d.","n.d.",{"$f":"IFERROR(+AF6+AH6,\"n.d.\")","v":"n.d."},"n.d.","n.d.",null,"n.d.","n.d.","n.d.","n.d.","n.d.",{"$f":"IF('[1]MONE(M)CAPARD'!GS13=\"\",\"\",'[1]MONE(M)CAPARD'!GS13)","v":"n.d."},{"$f":"IF('[1]MONE(M)CARD'!HA13=\"\",\"\",'[1]MONE(M)CAPARD'!HA13)","v":"n.d."},{"$f":"IF('[1]MONE(M)CAPARD'!HB13=\"\",\"\",'[1]MONE(M)CAPARD'!HB13)","v":"n.d."},"n.d.","n.d.","n.d.","n.d.","n.d.","n.d.","n.d.","n.d.","n.d.","n.d.","n.d.","n.d.","n.d.","n.d.",{"$f":"IF('[1]MONE(M)CAPARD'!AS13=\"\",\"\",'[1]MONE(M)CAPARD'!AS13)","v":"n.d."},{"$f":"IF('[1]MONE(M)CAPARD'!AT13=\"\",\"\",'[1]MONE(M)CAPARD'!AT13)","v":"n.a."},{"$f":"IF('[1]MONE(M)CAPARD'!AU13=\"\",\"\",'[1]MONE(M)CAPARD'!AU13)","v":"n.d."},{"$f":"IF('[1]MONE(M)CAPARD'!AV13=\"\",\"\",'[1]MONE(M)CAPARD'!AV13)","v":"n.d."},{"$f":"IF('[1]MONE(M)CAPARD'!AW13=\"\",\"\",'[1]MONE(M)CAPARD'!AW13)","v":"n.a."},{"$f":"IF('[1]MONE(M)CAPARD'!AX13=\"\",\"\",'[1]MONE(M)CAPARD'!AX13)","v":"n.d."},{"$f":"IF('[1]MONE(M)CAPARD'!AY13=\"\",\"\",'[1]MONE(M)CAPARD'!AY13)","v":"n.a."},{"$f":"IF('[1]FISCAL(M)'!$K13=\"\",\"\",'[1]FISCAL(M)'!$K13)","v":"n.d."},{"$f":"IF('[1]FISCAL(M)'!$L13=\"\",\"\",'[1]FISCAL(M)'!$L13)","v":"n.d."},{"$f":"IF('[1]FISCAL(M)'!$AY13=\"\",\"\",'[1]FISCAL(M)'!$AY13)","v":"n.d."},{"$f":"IF('[1]FISCAL(M)'!$BI13=\"\",\"\",'[1]FISCAL(M)'!$BI13)","v":"n.d."},{"$f":"IF('[1]FISCAL(M)'!$BS13=\"\",\"\",'[1]FISCAL(M)'!$BS13)","v":"n.d."},{"$f":"IF('[1]FISCAL(M)'!$AZ13=\"\",\"\",'[1]FISCAL(M)'!$AZ13)","v":"n.d."},{"$f":"IF('[1]FISCAL(M)'!$BJ13=\"\",\"\",'[1]FISCAL(M)'!$BJ13)","v":"n.d."},{"$f":"IF('[1]FISCAL(M)'!$BT13=\"\",\"\",'[1]FISCAL(M)'!$BT13)","v":"n.d."},{"$f":"IF('[2]MONE(M)'!$AO13=\"\",\"\",'[2]MONE(M)'!$AO13)","v":"n.d."},{"$f":"IF('[3]MONE(M)'!$AO13=\"\",\"\",'[3]MONE(M)'!$AO13)","v":"n.d."},{"$f":"IF('[4]MONE(M)'!$AO13=\"\",\"\",'[4]MONE(M)'!$AO13)","v":"n.d."},{"$f":"+'[5]MONE(M)'!$AO13","v":"n.d."},{"$f":"IF('[6]MONE(M)'!$AO13=\"\",\"\",'[6]MONE(M)'!$AO13)","v":"n.d."},{"$f":"IF('[7]MONE(M)'!$AO13=\"\",\"\",'[7]MONE(M)'!$AO13)","v":"n.d."},{"$f":"IF('[8]MONE(M)'!$AO13=\"\",\"\",'[8]MONE(M)'!$AO13)","v":"n.d."},"n.d.","n.d.","n.d.","n.d.","n.d.","n.d.","n.d.",{"$f":"IF('[1]FISCAL(M)'!$K13=\"\",\"\",'[1]FISCAL(M)'!$K13)","v":"n.d."},"n.d.","n.d.",{"$f":"IF('[1]FISCAL(M)'!$L13=\"\",\"\",'[1]FISCAL(M)'!$L13)","v":"n.d."},"n.d.","n.d.","n.d.","n.d.","n.d.","n.d.","n.d.","n.d.","n.d.","n.d.","n.d.","n.d.","n.d.","n.d.","n.d.","n.d.","n.d.","n.d."]
[1990,"mayo ","1990-mayo ",{"$f":"IF('[1]REAL IPC(M)'!$AL14=\"\",\"\",+'[1]REAL IPC(M)'!$AL14)","v":"n.d."},{"$f":"IF('[1]REAL IPC(M)'!$BE14=\"\",\"\",+'[1]REAL IPC(M)'!$BE14)","v":"n.d."},{"$f":"IF('[1]REAL IPC(M)'!$AM14=\"\",\"\",+'[1]REAL IPC(M)'!$AM14)","v":"n.d."},{"$f":"IF('[1]REAL IPC(M)'!$BI14=\"\",\"\",+'[1]REAL IPC(M)'!$BI14)","v":"n.d."},{"$f":"IF('[1]REAL IMAE(M)'!BJ14=\"\",\"\",'[1]REAL IMAE(M)'!BJ14)","v":"n.d."},{"$f":"IF('[1]REAL IMAE(M)'!BK14=\"\",\"\",'[1]REAL IMAE(M)'!BK14)","v":"n.d."},{"$f":"IF('[1]REAL IMAE(M)'!BN14=\"\",\"\",'[1]REAL IMAE(M)'!BN14)","v":"n.d."},{"$f":"IF('[1]REAL IMAE(M)'!BO14=\"\",\"\",'[1]REAL IMAE(M)'!BO14)","v":"n.d."},{"$f":"IF('[1]EXT RIN(M)'!$K14=\"\",\"\",'[1]EXT RIN(M)'!$K14)","v":"n.d."},"",{"$f":"IF('[1]EXT RIN(M)'!$L14=\"\",\"\",'[1]EXT RIN(M)'!$L14)","v":"n.d."},"",{"$f":"IF('[1]MONE(M)CARD'!EG14=\"\",\"\",'[1]MONE(M)CARD'!EG14)","v":"n.d."},{"$f":"IF('[1]MONE(M)CARD'!EK14=\"\",\"\",'[1]MONE(M)CARD'!EK14)","v":"n.d."},{"$f":"IF('[1]MONE(M)CARD'!EP14=\"\",\"\",'[1]MONE(M)CARD'!EP14)","v":"n.d."},{"$f":"IF('[1]MONE(M)CARD'!ES14=\"\",\"\",'[1]MONE(M)CARD'!ES14)","v":"n.d."},{"$f":"IF('[1]MONE(M)CARD'!EV14=\"\",\"\",'[1]MONE(M)CARD'!EV14)","v":"n.d."},{"$f":"IF('[1]MONE(M)CARD'!EZ14=\"\",\"\",'[1]MONE(M)CARD'!EZ14)","v":"n.d."},{"$f":"IF('[1]MONE(M)CAPARD'!FC14=\"\",\"\",'[1]MONE(M)CAPARD'!FC14)","v":"n.d."},{"$f":"IF('[1]MONE(M)CAPARD'!FG14=\"\",\"\",'[1]MONE(M)CAPARD'!FG14)","v":"n.d."},{"$f":"IF('[1]MONE(M)CAPARD'!FL14=\"\",\"\",'[1]MONE(M)CAPARD'!FL14)","v":"n.d."},{"$f":"IF('[1]MONE(M)CAPARD'!FO14=\"\",\"\",'[1]MONE(M)CAPARD'!FO14)","v":"n.d."},{"$f":"IF('[1]MONE(M)CAPARD'!FR14=\"\",\"\",'[1]MONE(M)CAPARD'!FR14)","v":"n.d."},{"$f":"IF('[1]MONE(M)CAPARD'!FV14=\"\",\"\",'[1]MONE(M)CAPARD'!FV14)","v":"n.d."},{"$f":"IF('[1]MONE(M)CARD'!FV14=\"\",\"\",'[1]MONE(M)CARD'!FV14)","v":""},{"$f":"IF('[1]MONE(M)CARD'!GD14=\"\",\"\",'[1]MONE(M)CARD'!GD14)","v":"n.d."},{"$f":"IF('[1]MONE(M)CARD'!GE14=\"\",\"\",'[1]MONE(M)CARD'!GE14)","v":"n.d."},"n.d.","n.d.","n.d.","n.d.","n.d.",{"$f":"IFERROR(+AF7+AH7,\"n.d.\")","v":"n.d."},"n.d.","n.d.",null,"n.d.","n.d.","n.d.","n.d.","n.d.",{"$f":"IF('[1]MONE(M)CAPARD'!GS14=\"\",\"\",'[1]MONE(M)CAPARD'!GS14)","v":"n.d."},{"$f":"IF('[1]MONE(M)CARD'!HA14=\"\",\"\",'[1]MONE(M)CAPARD'!HA14)","v":"n.d."},{"$f":"IF('[1]MONE(M)CAPARD'!HB14=\"\",\"\",'[1]MONE(M)CAPARD'!HB14)","v":"n.d."},"n.d.","n.d.","n.d.","n.d.","n.d.","n.d.","n.d.","n.d.","n.d.","n.d.","n.d.","n.d.","n.d.","n.d.",{"$f":"IF('[1]MONE(M)CAPARD'!AS14=\"\",\"\",'[1]MONE(M)CAPARD'!AS14)","v":"n.d."},{"$f":"IF('[1]MONE(M)CAPARD'!AT14=\"\",\"\",'[1]MONE(M)CAPARD'!AT14)","v":"n.a."},{"$f":"IF('[1]MONE(M)CAPARD'!AU14=\"\",\"\",'[1]MONE(M)CAPARD'!AU14)","v":"n.d."},{"$f":"IF('[1]MONE(M)CAPARD'!AV14=\"\",\"\",'[1]MONE(M)CAPARD'!AV14)","v":"n.d."},{"$f":"IF('[1]MONE(M)CAPARD'!AW14=\"\",\"\",'[1]MONE(M)CAPARD'!AW14)","v":"n.a."},{"$f":"IF('[1]MONE(M)CAPARD'!AX14=\"\",\"\",'[1]MONE(M)CAPARD'!AX14)","v":"n.d."},{"$f":"IF('[1]MONE(M)CAPARD'!AY14=\"\",\"\",'[1]MONE(M)CAPARD'!AY14)","v":"n.a."},{"$f":"IF('[1]FISCAL(M)'!$K14=\"\",\"\",'[1]FISCAL(M)'!$K14)","v":"n.d."},{"$f":"IF('[1]FISCAL(M)'!$L14=\"\",\"\",'[1]FISCAL(M)'!$L14)","v":"n.d."},{"$f":"IF('[1]FISCAL(M)'!$AY14=\"\",\"\",'[1]FISCAL(M)'!$AY14)","v":"n.d."},{"$f":"IF('[1]FISCAL(M)'!$BI14=\"\",\"\",'[1]FISCAL(M)'!$BI14)","v":"n.d."},{"$f":"IF('[1]FISCAL(M)'!$BS14=\"\",\"\",'[1]FISCAL(M)'!$BS14)","v":"n.d."},{"$f":"IF('[1]FISCAL(M)'!$AZ14=\"\",\"\",'[1]FISCAL(M)'!$AZ14)","v":"n.d."},{"$f":"IF('[1]FISCAL(M)'!$BJ14=\"\",\"\",'[1]FISCAL(M)'!$BJ14)","v":"n.d."},{"$f":"IF('[1]FISCAL(M)'!$BT14=\"\",\"\",'[1]FISCAL(M)'!$BT14)","v":"n.d."},{"$f":"IF('[2]MONE(M)'!$AO14=\"\",\"\",'[2]MONE(M)'!$AO14)","v":"n.d."},{"$f":"IF('[3]MONE(M)'!$AO14=\"\",\"\",'[3]MONE(M)'!$AO14)","v":"n.d."},{"$f":"IF('[4]MONE(M)'!$AO14=\"\",\"\",'[4]MONE(M)'!$AO14)","v":"n.d."},{"$f":"+'[5]MONE(M)'!$AO14","v":"n.d."},{"$f":"IF('[6]MONE(M)'!$AO14=\"\",\"\",'[6]MONE(M)'!$AO14)","v":"n.d."},{"$f":"IF('[7]MONE(M)'!$AO14=\"\",\"\",'[7]MONE(M)'!$AO14)","v":"n.d."},{"$f":"IF('[8]MONE(M)'!$AO14=\"\",\"\",'[8]MONE(M)'!$AO14)","v":"n.d."},"n.d.","n.d.","n.d.","n.d.","n.d.","n.d.","n.d.",{"$f":"IF('[1]FISCAL(M)'!$K14=\"\",\"\",'[1]FISCAL(M)'!$K14)","v":"n.d."},"n.d.","n.d.",{"$f":"IF('[1]FISCAL(M)'!$L14=\"\",\"\",'[1]FISCAL(M)'!$L14)","v":"n.d."},"n.d.","n.d.","n.d.","n.d.","n.d.","n.d.","n.d.","n.d.","n.d.","n.d.","n.d.","n.d.","n.d.","n.d.","n.d.","n.d.","n.d.","n.d."]
[1990,"junio ","1990-junio ",{"$f":"IF('[1]REAL IPC(M)'!$AL15=\"\",\"\",+'[1]REAL IPC(M)'!$AL15)","v":"n.d."},{"$f":"IF('[1]REAL IPC(M)'!$BE15=\"\",\"\",+'[1]REAL IPC(M)'!$BE15)","v":"n.d."},{"$f":"IF('[1]REAL IPC(M)'!$AM15=\"\",\"\",+'[1]REAL IPC(M)'!$AM15)","v":"n.d."},{"$f":"IF('[1]REAL IPC(M)'!$BI15=\"\",\"\",+'[1]REAL IPC(M)'!$BI15)","v":"n.d."},{"$f":"IF('[1]REAL IMAE(M)'!BJ15=\"\",\"\",'[1]REAL IMAE(M)'!BJ15)","v":"n.d."},{"$f":"IF('[1]REAL IMAE(M)'!BK15=\"\",\"\",'[1]REAL IMAE(M)'!BK15)","v":"n.d."},{"$f":"IF('[1]REAL IMAE(M)'!BN15=\"\",\"\",'[1]REAL IMAE(M)'!BN15)","v":"n.d."},{"$f":"IF('[1]REAL IMAE(M)'!BO15=\"\",\"\",'[1]REAL IMAE(M)'!BO15)","v":"n.d."},{"$f":"IF('[1]EXT RIN(M)'!$K15=\"\",\"\",'[1]EXT RIN(M)'!$K15)","v":"n.d."},"",{"$f":"IF('[1]EXT RIN(M)'!$L15=\"\",\"\",'[1]EXT RIN(M)'!$L15)","v":"n.d."},"",{"$f":"IF('[1]MONE(M)CARD'!EG15=\"\",\"\",'[1]MONE(M)CARD'!EG15)","v":"n.d."},{"$f":"IF('[1]MONE(M)CARD'!EK15=\"\",\"\",'[1]MONE(M)CARD'!EK15)","v":"n.d."},{"$f":"IF('[1]MONE(M)CARD'!EP15=\"\",\"\",'[1]MONE(M)CARD'!EP15)","v":"n.d."},{"$f":"IF('[1]MONE(M)CARD'!ES15=\"\",\"\",'[1]MONE(M)CARD'!ES15)","v":"n.d."},{"$f":"IF('[1]MONE(M)CARD'!EV15=\"\",\"\",'[1]MONE(M)CARD'!EV15)","v":"n.d."},{"$f":"IF('[1]MONE(M)CARD'!EZ15=\"\",\"\",'[1]MONE(M)CARD'!EZ15)","v":"n.d."},{"$f":"IF('[1]MONE(M)CAPARD'!FC15=\"\",\"\",'[1]MONE(M)CAPARD'!FC15)","v":"n.d."},{"$f":"IF('[1]MONE(M)CAPARD'!FG15=\"\",\"\",'[1]MONE(M)CAPARD'!FG15)","v":"n.d."},{"$f":"IF('[1]MONE(M)CAPARD'!FL15=\"\",\"\",'[1]MONE(M)CAPARD'!FL15)","v":"n.d."},{"$f":"IF('[1]MONE(M)CAPARD'!FO15=\"\",\"\",'[1]MONE(M)CAPARD'!FO15)","v":"n.d."},{"$f":"IF('[1]MONE(M)CAPARD'!FR15=\"\",\"\",'[1]MONE(M)CAPARD'!FR15)","v":"n.d."},{"$f":"IF('[1]MONE(M)CAPARD'!FV15=\"\",\"\",'[1]MONE(M)CAPARD'!FV15)","v":"n.d."},{"$f":"IF('[1]MONE(M)CARD'!FV15=\"\",\"\",'[1]MONE(M)CARD'!FV15)","v":""},{"$f":"IF('[1]MONE(M)CARD'!GD15=\"\",\"\",'[1]MONE(M)CARD'!GD15)","v":"n.d."},{"$f":"IF('[1]MONE(M)CARD'!GE15=\"\",\"\",'[1]MONE(M)CARD'!GE15)","v":"n.d."},"n.d.","n.d.","n.d.","n.d.","n.d.","n.d.","n.d.","n.d.",null,"n.d.","n.d.","n.d.","n.d.","n.d.",{"$f":"IF('[1]MONE(M)CAPARD'!GS15=\"\",\"\",'[1]MONE(M)CAPARD'!GS15)","v":"n.d."},{"$f":"IF('[1]MONE(M)CARD'!HA15=\"\",\"\",'[1]MONE(M)CAPARD'!HA15)","v":"n.d."},{"$f":"IF('[1]MONE(M)CAPARD'!HB15=\"\",\"\",'[1]MONE(M)CAPARD'!HB15)","v":"n.d."},"n.d.","n.d.","n.d.","n.d.","n.d.","n.d.","n.d.","n.d.","n.d.","n.d.","n.d.","n.d.","n.d.","n.d.",{"$f":"IF('[1]MONE(M)CAPARD'!AS15=\"\",\"\",'[1]MONE(M)CAPARD'!AS15)","v":"n.d."},{"$f":"IF('[1]MONE(M)CAPARD'!AT15=\"\",\"\",'[1]MONE(M)CAPARD'!AT15)","v":"n.a."},{"$f":"IF('[1]MONE(M)CAPARD'!AU15=\"\",\"\",'[1]MONE(M)CAPARD'!AU15)","v":"n.d."},{"$f":"IF('[1]MONE(M)CAPARD'!AV15=\"\",\"\",'[1]MONE(M)CAPARD'!AV15)","v":"n.d."},{"$f":"IF('[1]MONE(M)CAPARD'!AW15=\"\",\"\",'[1]MONE(M)CAPARD'!AW15)","v":"n.a."},{"$f":"IF('[1]MONE(M)CAPARD'!AX15=\"\",\"\",'[1]MONE(M)CAPARD'!AX15)","v":"n.d."},{"$f":"IF('[1]MONE(M)CAPARD'!AY15=\"\",\"\",'[1]MONE(M)CAPARD'!AY15)","v":"n.a."},{"$f":"IF('[1]FISCAL(M)'!$K15=\"\",\"\",'[1]FISCAL(M)'!$K15)","v":"n.d."},{"$f":"IF('[1]FISCAL(M)'!$L15=\"\",\"\",'[1]FISCAL(M)'!$L15)","v":"n.d."},{"$f":"IF('[1]FISCAL(M)'!$AY15=\"\",\"\",'[1]FISCAL(M)'!$AY15)","v":"n.d."},{"$f":"IF('[1]FISCAL(M)'!$BI15=\"\",\"\",'[1]FISCAL(M)'!$BI15)","v":"n.d."},{"$f":"IF('[1]FISCAL(M)'!$BS15=\"\",\"\",'[1]FISCAL(M)'!$BS15)","v":"n.d."},{"$f":"IF('[1]FISCAL(M)'!$AZ15=\"\",\"\",'[1]FISCAL(M)'!$AZ15)","v":"n.d."},{"$f":"IF('[1]FISCAL(M)'!$BJ15=\"\",\"\",'[1]FISCAL(M)'!$BJ15)","v":"n.d."},{"$f":"IF('[1]FISCAL(M)'!$BT15=\"\",\"\",'[1]FISCAL(M)'!$BT15)","v":"n.d."},{"$f":"IF('[2]MONE(M)'!$AO15=\"\",\"\",'[2]MONE(M)'!$AO15)","v":"n.d."},{"$f":"IF('[3]MONE(M)'!$AO15=\"\",\"\",'[3]MONE(M)'!$AO15)","v":"n.d."},{"$f":"IF('[4]MONE(M)'!$AO15=\"\",\"\",'[4]MONE(M)'!$AO15)","v":"n.d."},{"$f":"+'[5]MONE(M)'!$AO15","v":"n.d."},{"$f":"IF('[6]MONE(M)'!$AO15=\"\",\"\",'[6]MONE(M)'!$AO15)","v":"n.d."},{"$f":"IF('[7]MONE(M)'!$AO15=\"\",\"\",'[7]MONE(M)'!$AO15)","v":"n.d."},{"$f":"IF('[8]MONE(M)'!$AO15=\"\",\"\",'[8]MONE(M)'!$AO15)","v":"n.d."},"n.d.","n.d.","n.d.","n.d.","n.d.","n.d.","n.d.",{"$f":"IF('[1]FISCAL(M)'!$K15=\"\",\"\",'[1]FISCAL(M)'!$K15)","v":"n.d."},"n.d.","n.d.",{"$f":"IF('[1]FISCAL(M)'!$L15=\"\",\"\",'[1]FISCAL(M)'!$L15)","v":"n.d."},"n.d.","n.d.","n.d.","n.d.","n.d.","n.d.","n.d.","n.d.","n.d.","n.d.","n.d.","n.d.","n.d.","n.d.","n.d.","n.d.","n.d.","n.d."]
[1990,"julio","1990-julio",{"$f":"IF('[1]REAL IPC(M)'!$AL16=\"\",\"\",+'[1]REAL IPC(M)'!$AL16)","v":"n.d."},{"$f":"IF('[1]REAL IPC(M)'!$BE16=\"\",\"\",+'[1]REAL IPC(M)'!$BE16)","v":"n.d."},{"$f":"IF('[1]REAL IPC(M)'!$AM16=\"\",\"\",+'[1]REAL IPC(M)'!$AM16)","v":"n.d."},{"$f":"IF('[1]REAL IPC(M)'!$BI16=\"\",\"\",+'[1]REAL IPC(M)'!$BI16)","v":"n.d."},{"$f":"IF('[1]REAL IMAE(M)'!BJ16=\"\",\"\",'[1]REAL IMAE(M)'!BJ16)","v":"n.d."},{"$f":"IF('[1]REAL IMAE(M)'!BK16=\"\",\"\",'[1]REAL IMAE(M)'!BK16)","v":"n.d."},{"$f":"IF('[1]REAL IMAE(M)'!BN16=\"\",\"\",'[1]REAL IMAE(M)'!BN16)","v":"n.d."},{"$f":"IF('[1]REAL IMAE(M)'!BO16=\"\",\"\",'[1]REAL IMAE(M)'!BO16)","v":"n.d."},{"$f":"IF('[1]EXT RIN(M)'!$K16=\"\",\"\",'[1]EXT RIN(M)'!$K16)","v":"n.d."},"",{"$f":"IF('[1]EXT RIN(M)'!$L16=\"\",\"\",'[1]EXT RIN(M)'!$L16)","v":"n.d."},"",{"$f":"IF('[1]MONE(M)CARD'!EG16=\"\",\"\",'[1]MONE(M)CARD'!EG16)","v":"n.d."},{"$f":"IF('[1]MONE(M)CARD'!EK16=\"\",\"\",'[1]MONE(M)CARD'!EK16)","v":"n.d."},{"$f":"IF('[1]MONE(M)CARD'!EP16=\"\",\"\",'[1]MONE(M)CARD'!EP16)","v":"n.d."},{"$f":"IF('[1]MONE(M)CARD'!ES16=\"\",\"\",'[1]MONE(M)CARD'!ES16)","v":"n.d."},{"$f":"IF('[1]MONE(M)CARD'!EV16=\"\",\"\",'[1]MONE(M)CARD'!EV16)","v":"n.d."},{"$f":"IF('[1]MONE(M)CARD'!EZ16=\"\",\"\",'[1]MONE(M)CARD'!EZ16)","v":"n.d."},{"$f":"IF('[1]MONE(M)CAPARD'!FC16=\"\",\"\",'[1]MONE(M)CAPARD'!FC16)","v":"n.d."},{"$f":"IF('[1]MONE(M)CAPARD'!FG16=\"\",\"\",'[1]MONE(M)CAPARD'!FG16)","v":"n.d."},{"$f":"IF('[1]MONE(M)CAPARD'!FL16=\"\",\"\",'[1]MONE(M)CAPARD'!FL16)","v":"n.d."},{"$f":"IF('[1]MONE(M)CAPARD'!FO16=\"\",\"\",'[1]MONE(M)CAPARD'!FO16)","v":"n.d."},{"$f":"IF('[1]MONE(M)CAPARD'!FR16=\"\",\"\",'[1]MONE(M)CAPARD'!FR16)","v":"n.d."},{"$f":"IF('[1]MONE(M)CAPARD'!FV16=\"\",\"\",'[1]MONE(M)CAPARD'!FV16)","v":"n.d."},{"$f":"IF('[1]MONE(M)CARD'!FV16=\"\",\"\",'[1]MONE(M)CARD'!FV16)","v":""},{"$f":"IF('[1]MONE(M)CARD'!GD16=\"\",\"\",'[1]MONE(M)CARD'!GD16)","v":"n.d."},{"$f":"IF('[1]MONE(M)CARD'!GE16=\"\",\"\",'[1]MONE(M)CARD'!GE16)","v":"n.d."},"n.d.","n.d.","n.d.","n.d.","n.d.","n.d.","n.d.","n.d.",null,"n.d.","n.d.","n.d.","n.d.","n.d.",{"$f":"IF('[1]MONE(M)CAPARD'!GS16=\"\",\"\",'[1]MONE(M)CAPARD'!GS16)","v":"n.d."},{"$f":"IF('[1]MONE(M)CARD'!HA16=\"\",\"\",'[1]MONE(M)CAPARD'!HA16)","v":"n.d."},{"$f":"IF('[1]MONE(M)CAPARD'!HB16=\"\",\"\",'[1]MONE(M)CAPARD'!HB16)","v":"n.d."},"n.d.","n.d.","n.d.","n.d.","n.d.","n.d.","n.d.","n.d.","n.d.","n.d.","n.d.","n.d.","n.d.","n.d.",{"$f":"IF('[1]MONE(M)CAPARD'!AS16=\"\",\"\",'[1]MONE(M)CAPARD'!AS16)","v":"n.d."},{"$f":"IF('[1]MONE(M)CAPARD'!AT16=\"\",\"\",'[1]MONE(M)CAPARD'!AT16)","v":"n.a."},{"$f":"IF('[1]MONE(M)CAPARD'!AU16=\"\",\"\",'[1]MONE(M)CAPARD'!AU16)","v":"n.d."},{"$f":"IF('[1]MONE(M)CAPARD'!AV16=\"\",\"\",'[1]MONE(M)CAPARD'!AV16)","v":"n.d."},{"$f":"IF('[1]MONE(M)CAPARD'!AW16=\"\",\"\",'[1]MONE(M)CAPARD'!AW16)","v":"n.a."},{"$f":"IF('[1]MONE(M)CAPARD'!AX16=\"\",\"\",'[1]MONE(M)CAPARD'!AX16)","v":"n.d."},{"$f":"IF('[1]MONE(M)CAPARD'!AY16=\"\",\"\",'[1]MONE(M)CAPARD'!AY16)","v":"n.a."},{"$f":"IF('[1]FISCAL(M)'!$K16=\"\",\"\",'[1]FISCAL(M)'!$K16)","v":"n.d."},{"$f":"IF('[1]FISCAL(M)'!$L16=\"\",\"\",'[1]FISCAL(M)'!$L16)","v":"n.d."},{"$f":"IF('[1]FISCAL(M)'!$AY16=\"\",\"\",'[1]FISCAL(M)'!$AY16)","v":"n.d."},{"$f":"IF('[1]FISCAL(M)'!$BI16=\"\",\"\",'[1]FISCAL(M)'!$BI16)","v":"n.d."},{"$f":"IF('[1]FISCAL(M)'!$BS16=\"\",\"\",'[1]FISCAL(M)'!$BS16)","v":"n.d."},{"$f":"IF('[1]FISCAL(M)'!$AZ16=\"\",\"\",'[1]FISCAL(M)'!$AZ16)","v":"n.d."},{"$f":"IF('[1]FISCAL(M)'!$BJ16=\"\",\"\",'[1]FISCAL(M)'!$BJ16)","v":"n.d."},{"$f":"IF('[1]FISCAL(M)'!$BT16=\"\",\"\",'[1]FISCAL(M)'!$BT16)","v":"n.d."},{"$f":"IF('[2]MONE(M)'!$AO16=\"\",\"\",'[2]MONE(M)'!$AO16)","v":"n.d."},{"$f":"IF('[3]MONE(M)'!$AO16=\"\",\"\",'[3]MONE(M)'!$AO16)","v":"n.d."},{"$f":"IF('[4]MONE(M)'!$AO16=\"\",\"\",'[4]MONE(M)'!$AO16)","v":"n.d."},{"$f":"+'[5]MONE(M)'!$AO16","v":"n.d."},{"$f":"IF('[6]MONE(M)'!$AO16=\"\",\"\",'[6]MONE(M)'!$AO16)","v":"n.d."},{"$f":"IF('[7]MONE(M)'!$AO16=\"\",\"\",'[7]MONE(M)'!$AO16)","v":"n.d."},{"$f":"IF('[8]MONE(M)'!$AO16=\"\",\"\",'[8]MONE(M)'!$AO16)","v":"n.d."},"n.d.","n.d.","n.d.","n.d.","n.d.","n.d.","n.d.",{"$f":"IF('[1]FISCAL(M)'!$K16=\"\",\"\",'[1]FISCAL(M)'!$K16)","v":"n.d."},"n.d.","n.d.",{"$f":"IF('[1]FISCAL(M)'!$L16=\"\",\"\",'[1]FISCAL(M)'!$L16)","v":"n.d."},"n.d.","n.d.","n.d.","n.d.","n.d.","n.d.","n.d.","n.d.","n.d.","n.d.","n.d.","n.d.","n.d.","n.d.","n.d.","n.d.","n.d.","n.d."]
[1990,"agosto","1990-agosto",{"$f":"IF('[1]REAL IPC(M)'!$AL17=\"\",\"\",+'[1]REAL IPC(M)'!$AL17)","v":"n.d."},{"$f":"IF('[1]REAL IPC(M)'!$BE17=\"\",\"\",+'[1]REAL IPC(M)'!$BE17)","v":"n.d."},{"$f":"IF('[1]REAL IPC(M)'!$AM17=\"\",\"\",+'[1]REAL IPC(M)'!$AM17)","v":"n.d."},{"$f":"IF('[1]REAL IPC(M)'!$BI17=\"\",\"\",+'[1]REAL IPC(M)'!$BI17)","v":"n.d."},{"$f":"IF('[1]REAL IMAE(M)'!BJ17=\"\",\"\",'[1]REAL IMAE(M)'!BJ17)","v":"n.d."},{"$f":"IF('[1]REAL IMAE(M)'!BK17=\"\",\"\",'[1]REAL IMAE(M)'!BK17)","v":"n.d."},{"$f":"IF('[1]REAL IMAE(M)'!BN17=\"\",\"\",'[1]REAL IMAE(M)'!BN17)","v":"n.d."},{"$f":"IF('[1]REAL IMAE(M)'!BO17=\"\",\"\",'[1]REAL IMAE(M)'!BO17)","v":"n.d."},{"$f":"IF('[1]EXT RIN(M)'!$K17=\"\",\"\",'[1]EXT RIN(M)'!$K17)","v":"n.d."},"",{"$f":"IF('[1]EXT RIN(M)'!$L17=\"\",\"\",'[1]EXT RIN(M)'!$L17)","v":"n.d."},"",{"$f":"IF('[1]MONE(M)CARD'!EG17=\"\",\"\",'[1]MONE(M)CARD'!EG17)","v":"n.d."},{"$f":"IF('[1]MONE(M)CARD'!EK17=\"\",\"\",'[1]MONE(M)CARD'!EK17)","v":"n.d."},{"$f":"IF('[1]MONE(M)CARD'!EP17=\"\",\"\",'[1]MONE(M)CARD'!EP17)","v":"n.d."},{"$f":"IF('[1]MONE(M)CARD'!ES17=\"\",\"\",'[1]MONE(M)CARD'!ES17)","v":"n.d."},{"$f":"IF('[1]MONE(M)CARD'!EV17=\"\",\"\",'[1]MONE(M)CARD'!EV17)","v":"n.d."},{"$f":"IF('[1]MONE(M)CARD'!EZ17=\"\",\"\",'[1]MONE(M)CARD'!EZ17)","v":"n.d."},{"$f":"IF('[1]MONE(M)CAPARD'!FC17=\"\",\"\",'[1]MONE(M)CAPARD'!FC17)","v":"n.d."},{"$f":"IF('[1]MONE(M)CAPARD'!FG17=\"\",\"\",'[1]MONE(M)CAPARD'!FG17)","v":"n.d."},{"$f":"IF('[1]MONE(M)CAPARD'!FL17=\"\",\"\",'[1]MONE(M)CAPARD'!FL17)","v":"n.d."},{"$f":"IF('[1]MONE(M)CAPARD'!FO17=\"\",\"\",'[1]MONE(M)CAPARD'!FO17)","v":"n.d."},{"$f":"IF('[1]MONE(M)CAPARD'!FR17=\"\",\"\",'[1]MONE(M)CAPARD'!FR17)","v":"n.d."},{"$f":"IF('[1]MONE(M)CAPARD'!FV17=\"\",\"\",'[1]MONE(M)CAPARD'!FV17)","v":"n.d."},{"$f":"IF('[1]MONE(M)CARD'!FV17=\"\",\"\",'[1]MONE(M)CARD'!FV17)","v":""},{"$f":"IF('[1]MONE(M)CARD'!GD17=\"\",\"\",'[1]MONE(M)CARD'!GD17)","v":"n.d."},{"$f":"IF('[1]MONE(M)CARD'!GE17=\"\",\"\",'[1]MONE(M)CARD'!GE17)","v":"n.d."},"n.d.","n.d.","n.d.","n.d.","n.d.","n.d.","n.d.","n.d.",null,"n.d.","n.d.","n.d.","n.d.","n.d.",{"$f":"IF('[1]MONE(M)CAPARD'!GS17=\"\",\"\",'[1]MONE(M)CAPARD'!GS17)","v":"n.d."},{"$f":"IF('[1]MONE(M)CARD'!HA17=\"\",\"\",'[1]MONE(M)CAPARD'!HA17)","v":"n.d."},{"$f":"IF('[1]MONE(M)CAPARD'!HB17=\"\",\"\",'[1]MONE(M)CAPARD'!HB17)","v":"n.d."},"n.d.","n.d.","n.d.","n.d.","n.d.","n.d.","n.d.","n.d.","n.d.","n.d.","n.d.","n.d.","n.d.","n.d.",{"$f":"IF('[1]MONE(M)CAPARD'!AS17=\"\",\"\",'[1]MONE(M)CAPARD'!AS17)","v":"n.d."},{"$f":"IF('[1]MONE(M)CAPARD'!AT17=\"\",\"\",'[1]MONE(M)CAPARD'!AT17)","v":"n.a."},{"$f":"IF('[1]MONE(M)CAPARD'!AU17=\"\",\"\",'[1]MONE(M)CAPARD'!AU17)","v":"n.d."},{"$f":"IF('[1]MONE(M)CAPARD'!AV17=\"\",\"\",'[1]MONE(M)CAPARD'!AV17)","v":"n.d."},{"$f":"IF('[1]MONE(M)CAPARD'!AW17=\"\",\"\",'[1]MONE(M)CAPARD'!AW17)","v":"n.a."},{"$f":"IF('[1]MONE(M)CAPARD'!AX17=\"\",\"\",'[1]MONE(M)CAPARD'!AX17)","v":"n.d."},{"$f":"IF('[1]MONE(M)CAPARD'!AY17=\"\",\"\",'[1]MONE(M)CAPARD'!AY17)","v":"n.a."},{"$f":"IF('[1]FISCAL(M)'!$K17=\"\",\"\",'[1]FISCAL(M)'!$K17)","v":"n.d."},{"$f":"IF('[1]FISCAL(M)'!$L17=\"\",\"\",'[1]FISCAL(M)'!$L17)","v":"n.d."},{"$f":"IF('[1]FISCAL(M)'!$AY17=\"\",\"\",'[1]FISCAL(M)'!$AY17)","v":"n.d."},{"$f":"IF('[1]FISCAL(M)'!$BI17=\"\",\"\",'[1]FISCAL(M)'!$BI17)","v":"n.d."},{"$f":"IF('[1]FISCAL(M)'!$BS17=\"\",\"\",'[1]FISCAL(M)'!$BS17)","v":"n.d."},{"$f":"IF('[1]FISCAL(M)'!$AZ17=\"\",\"\",'[1]FISCAL(M)'!$AZ17)","v":"n.d."},{"$f":"IF('[1]FISCAL(M)'!$BJ17=\"\",\"\",'[1]FISCAL(M)'!$BJ17)","v":"n.d."},{"$f":"IF('[1]FISCAL(M)'!$BT17=\"\",\"\",'[1]FISCAL(M)'!$BT17)","v":"n.d."},{"$f":"IF('[2]MONE(M)'!$AO17=\"\",\"\",'[2]MONE(M)'!$AO17)","v":"n.d."},{"$f":"IF('[3]MONE(M)'!$AO17=\"\",\"\",'[3]MONE(M)'!$AO17)","v":"n.d."},{"$f":"IF('[4]MONE(M)'!$AO17=\"\",\"\",'[4]MONE(M)'!$AO17)","v":"n.d."},{"$f":"+'[5]MONE(M)'!$AO17","v":"n.d."},{"$f":"IF('[6]MONE(M)'!$AO17=\"\",\"\",'[6]MONE(M)'!$AO17)","v":"n.d."},{"$f":"IF('[7]MONE(M)'!$AO17=\"\",\"\",'[7]MONE(M)'!$AO17)","v":"n.d."},{"$f":"IF('[8]MONE(M)'!$AO17=\"\",\"\",'[8]MONE(M)'!$AO17)","v":"n.d."},"n.d.","n.d.","n.d.","n.d.","n.d.","n.d.","n.d.",{"$f":"IF('[1]FISCAL(M)'!$K17=\"\",\"\",'[1]FISCAL(M)'!$K17)","v":"n.d."},"n.d.","n.d.",{"$f":"IF('[1]FISCAL(M)'!$L17=\"\",\"\",'[1]FISCAL(M)'!$L17)","v":"n.d."},"n.d.","n.d.","n.d.","n.d.","n.d.","n.d.","n.d.","n.d.","n.d.","n.d.","n.d.","n.d.","n.d.","n.d.","n.d.","n.d.","n.d.","n.d."]
[1990,"septiembre","1990-septiembre",{"$f":"IF('[1]REAL IPC(M)'!$AL18=\"\",\"\",+'[1]REAL IPC(M)'!$AL18)","v":"n.d."},{"$f":"IF('[1]REAL IPC(M)'!$BE18=\"\",\"\",+'[1]REAL IPC(M)'!$BE18)","v":"n.d."},{"$f":"IF('[1]REAL IPC(M)'!$AM18=\"\",\"\",+'[1]REAL IPC(M)'!$AM18)","v":"n.d."},{"$f":"IF('[1]REAL IPC(M)'!$BI18=\"\",\"\",+'[1]REAL IPC(M)'!$BI18)","v":"n.d."},{"$f":"IF('[1]REAL IMAE(M)'!BJ18=\"\",\"\",'[1]REAL IMAE(M)'!BJ18)","v":"n.d."},{"$f":"IF('[1]REAL IMAE(M)'!BK18=\"\",\"\",'[1]REAL IMAE(M)'!BK18)","v":"n.d."},{"$f":"IF('[1]REAL IMAE(M)'!BN18=\"\",\"\",'[1]REAL IMAE(M)'!BN18)","v":"n.d."},{"$f":"IF('[1]REAL IMAE(M)'!BO18=\"\",\"\",'[1]REAL IMAE(M)'!BO18)","v":"n.d."},{"$f":"IF('[1]EXT RIN(M)'!$K18=\"\",\"\",'[1]EXT RIN(M)'!$K18)","v":"n.d."},"",{"$f":"IF('[1]EXT RIN(M)'!$L18=\"\",\"\",'[1]EXT RIN(M)'!$L18)","v":"n.d."},"",{"$f":"IF('[1]MONE(M)CARD'!EG18=\"\",\"\",'[1]MONE(M)CARD'!EG18)","v":"n.d."},{"$f":"IF('[1]MONE(M)CARD'!EK18=\"\",\"\",'[1]MONE(M)CARD'!EK18)","v":"n.d."},{"$f":"IF('[1]MONE(M)CARD'!EP18=\"\",\"\",'[1]MONE(M)CARD'!EP18)","v":"n.d."},{"$f":"IF('[1]MONE(M)CARD'!ES18=\"\",\"\",'[1]MONE(M)CARD'!ES18)","v":"n.d."},{"$f":"IF('[1]MONE(M)CARD'!EV18=\"\",\"\",'[1]MONE(M)CARD'!EV18)","v":"n.d."},{"$f":"IF('[1]MONE(M)CARD'!EZ18=\"\",\"\",'[1]MONE(M)CARD'!EZ18)","v":"n.d."},{"$f":"IF('[1]MONE(M)CAPARD'!FC18=\"\",\"\",'[1]MONE(M)CAPARD'!FC18)","v":"n.d."},{"$f":"IF('[1]MONE(M)CAPARD'!FG18=\"\",\"\",'[1]MONE(M)CAPARD'!FG18)","v":"n.d."},{"$f":"IF('[1]MONE(M)CAPARD'!FL18=\"\",\"\",'[1]MONE(M)CAPARD'!FL18)","v":"n.d."},{"$f":"IF('[1]MONE(M)CAPARD'!FO18=\"\",\"\",'[1]MONE(M)CAPARD'!FO18)","v":"n.d."},{"$f":"IF('[1]MONE(M)CAPARD'!FR18=\"\",\"\",'[1]MONE(M)CAPARD'!FR18)","v":"n.d."},{"$f":"IF('[1]MONE(M)CAPARD'!FV18=\"\",\"\",'[1]MONE(M)CAPARD'!FV18)","v":"n.d."},{"$f":"IF('[1]MONE(M)CARD'!FV18=\"\",\"\",'[1]MONE(M)CARD'!FV18)","v":""},{"$f":"IF('[1]MONE(M)CARD'!GD18=\"\",\"\",'[1]MONE(M)CARD'!GD18)","v":"n.d."},{"$f":"IF('[1]MONE(M)CARD'!GE18=\"\",\"\",'[1]MONE(M)CARD'!GE18)","v":"n.d."},"n.d.","n.d.","n.d.","n.d.","n.d.","n.d.","n.d.","n.d.",null,"n.d.","n.d.","n.d.","n.d.","n.d.",{"$f":"IF('[1]MONE(M)CAPARD'!GS18=\"\",\"\",'[1]MONE(M)CAPARD'!GS18)","v":"n.d."},{"$f":"IF('[1]MONE(M)CARD'!HA18=\"\",\"\",'[1]MONE(M)CAPARD'!HA18)","v":"n.d."},{"$f":"IF('[1]MONE(M)CAPARD'!HB18=\"\",\"\",'[1]MONE(M)CAPARD'!HB18)","v":"n.d."},"n.d.","n.d.","n.d.","n.d.","n.d.","n.d.","n.d.","n.d.","n.d.","n.d.","n.d.","n.d.","n.d.","n.d.",{"$f":"IF('[1]MONE(M)CAPARD'!AS18=\"\",\"\",'[1]MONE(M)CAPARD'!AS18)","v":"n.d."},{"$f":"IF('[1]MONE(M)CAPARD'!AT18=\"\",\"\",'[1]MONE(M)CAPARD'!AT18)","v":"n.a."},{"$f":"IF('[1]MONE(M)CAPARD'!AU18=\"\",\"\",'[1]MONE(M)CAPARD'!AU18)","v":"n.d."},{"$f":"IF('[1]MONE(M)CAPARD'!AV18=\"\",\"\",'[1]MONE(M)CAPARD'!AV18)","v":"n.d."},{"$f":"IF('[1]MONE(M)CAPARD'!AW18=\"\",\"\",'[1]MONE(M)CAPARD'!AW18)","v":"n.a."},{"$f":"IF('[1]MONE(M)CAPARD'!AX18=\"\",\"\",'[1]MONE(M)CAPARD'!AX18)","v":"n.d."},{"$f":"IF('[1]MONE(M)CAPARD'!AY18=\"\",\"\",'[1]MONE(M)CAPARD'!AY18)","v":"n.a."},{"$f":"IF('[1]FISCAL(M)'!$K18=\"\",\"\",'[1]FISCAL(M)'!$K18)","v":"n.d."},{"$f":"IF('[1]FISCAL(M)'!$L18=\"\",\"\",'[1]FISCAL(M)'!$L18)","v":"n.d."},{"$f":"IF('[1]FISCAL(M)'!$AY18=\"\",\"\",'[1]FISCAL(M)'!$AY18)","v":"n.d."},{"$f":"IF('[1]FISCAL(M)'!$BI18=\"\",\"\",'[1]FISCAL(M)'!$BI18)","v":"n.d."},{"$f":"IF('[1]FISCAL(M)'!$BS18=\"\",\"\",'[1]FISCAL(M)'!$BS18)","v":"n.d."},{"$f":"IF('[1]FISCAL(M)'!$AZ18=\"\",\"\",'[1]FISCAL(M)'!$AZ18)","v":"n.d."},{"$f":"IF('[1]FISCAL(M)'!$BJ18=\"\",\"\",'[1]FISCAL(M)'!$BJ18)","v":"n.d."},{"$f":"IF('[1]FISCAL(M)'!$BT18=\"\",\"\",'[1]FISCAL(M)'!$BT18)","v":"n.d."},{"$f":"IF('[2]MONE(M)'!$AO18=\"\",\"\",'[2]MONE(M)'!$AO18)","v":"n.d."},{"$f":"IF('[3]MONE(M)'!$AO18=\"\",\"\",'[3]MONE(M)'!$AO18)","v":"n.d."},{"$f":"IF('[4]MONE(M)'!$AO18=\"\",\"\",'[4]MONE(M)'!$AO18)","v":"n.d."},{"$f":"+'[5]MONE(M)'!$AO18","v":"n.d."},{"$f":"IF('[6]MONE(M)'!$AO18=\"\",\"\",'[6]MONE(M)'!$AO18)","v":"n.d."},{"$f":"IF('[7]MONE(M)'!$AO18=\"\",\"\",'[7]MONE(M)'!$AO18)","v":"n.d."},{"$f":"IF('[8]MONE(M)'!$AO18=\"\",\"\",'[8]MONE(M)'!$AO18)","v":"n.d."},"n.d.","n.d.","n.d.","n.d.","n.d.","n.d.","n.d.",{"$f":"IF('[1]FISCAL(M)'!$K18=\"\",\"\",'[1]FISCAL(M)'!$K18)","v":"n.d."},"n.d.","n.d.",{"$f":"IF('[1]FISCAL(M)'!$L18=\"\",\"\",'[1]FISCAL(M)'!$L18)","v":"n.d."},"n.d.","n.d.","n.d.","n.d.","n.d.","n.d.","n.d.","n.d.","n.d.","n.d.","n.d.","n.d.","n.d.","n.d.","n.d.","n.d.","n.d.","n.d."]
[1990,"octubre","1990-octubre",{"$f":"IF('[1]REAL IPC(M)'!$AL19=\"\",\"\",+'[1]REAL IPC(M)'!$AL19)","v":"n.d."},{"$f":"IF('[1]REAL IPC(M)'!$BE19=\"\",\"\",+'[1]REAL IPC(M)'!$BE19)","v":"n.d."},{"$f":"IF('[1]REAL IPC(M)'!$AM19=\"\",\"\",+'[1]REAL IPC(M)'!$AM19)","v":"n.d."},{"$f":"IF('[1]REAL IPC(M)'!$BI19=\"\",\"\",+'[1]REAL IPC(M)'!$BI19)","v":"n.d."},{"$f":"IF('[1]REAL IMAE(M)'!BJ19=\"\",\"\",'[1]REAL IMAE(M)'!BJ19)","v":"n.d."},{"$f":"IF('[1]REAL IMAE(M)'!BK19=\"\",\"\",'[1]REAL IMAE(M)'!BK19)","v":"n.d."},{"$f":"IF('[1]REAL IMAE(M)'!BN19=\"\",\"\",'[1]REAL IMAE(M)'!BN19)","v":"n.d."},{"$f":"IF('[1]REAL IMAE(M)'!BO19=\"\",\"\",'[1]REAL IMAE(M)'!BO19)","v":"n.d."},{"$f":"IF('[1]EXT RIN(M)'!$K19=\"\",\"\",'[1]EXT RIN(M)'!$K19)","v":"n.d."},"",{"$f":"IF('[1]EXT RIN(M)'!$L19=\"\",\"\",'[1]EXT RIN(M)'!$L19)","v":"n.d."},"",{"$f":"IF('[1]MONE(M)CARD'!EG19=\"\",\"\",'[1]MONE(M)CARD'!EG19)","v":"n.d."},{"$f":"IF('[1]MONE(M)CARD'!EK19=\"\",\"\",'[1]MONE(M)CARD'!EK19)","v":"n.d."},{"$f":"IF('[1]MONE(M)CARD'!EP19=\"\",\"\",'[1]MONE(M)CARD'!EP19)","v":"n.d."},{"$f":"IF('[1]MONE(M)CARD'!ES19=\"\",\"\",'[1]MONE(M)CARD'!ES19)","v":"n.d."},{"$f":"IF('[1]MONE(M)CARD'!EV19=\"\",\"\",'[1]MONE(M)CARD'!EV19)","v":"n.d."},{"$f":"IF('[1]MONE(M)CARD'!EZ19=\"\",\"\",'[1]MONE(M)CARD'!EZ19)","v":"n.d."},{"$f":"IF('[1]MONE(M)CAPARD'!FC19=\"\",\"\",'[1]MONE(M)CAPARD'!FC19)","v":"n.d."},{"$f":"IF('[1]MONE(M)CAPARD'!FG19=\"\",\"\",'[1]MONE(M)CAPARD'!FG19)","v":"n.d."},{"$f":"IF('[1]MONE(M)CAPARD'!FL19=\"\",\"\",'[1]MONE(M)CAPARD'!FL19)","v":"n.d."},{"$f":"IF('[1]MONE(M)CAPARD'!FO19=\"\",\"\",'[1]MONE(M)CAPARD'!FO19)","v":"n.d."},{"$f":"IF('[1]MONE(M)CAPARD'!FR19=\"\",\"\",'[1]MONE(M)CAPARD'!FR19)","v":"n.d."},{"$f":"IF('[1]MONE(M)CAPARD'!FV19=\"\",\"\",'[1]MONE(M)CAPARD'!FV19)","v":"n.d."},{"$f":"IF('[1]MONE(M)CARD'!FV19=\"\",\"\",'[1]MONE(M)CARD'!FV19)","v":""},{"$f":"IF('[1]MONE(M)CARD'!GD19=\"\",\"\",'[1]MONE(M)CARD'!GD19)","v":"n.d."},{"$f":"IF('[1]MONE(M)CARD'!GE19=\"\",\"\",'[1]MONE(M)CARD'!GE19)","v":"n.d."},"n.d.","n.d.","n.d.","n.d.","n.d.","n.d.","n.d.","n.d.",null,"n.d.","n.d.","n.d.","n.d.","n.d.",{"$f":"IF('[1]MONE(M)CAPARD'!GS19=\"\",\"\",'[1]MONE(M)CAPARD'!GS19)","v":"n.d."},{"$f":"IF('[1]MONE(M)CARD'!HA19=\"\",\"\",'[1]MONE(M)CAPARD'!HA19)","v":"n.d."},{"$f":"IF('[1]MONE(M)CAPARD'!HB19=\"\",\"\",'[1]MONE(M)CAPARD'!HB19)","v":"n.d."},"n.d.","n.d.","n.d.","n.d.","n.d.","n.d.","n.d.","n.d.","n.d.","n.d.","n.d.","n.d.","n.d.","n.d.",{"$f":"IF('[1]MONE(M)CAPARD'!AS19=\"\",\"\",'[1]MONE(M)CAPARD'!AS19)","v":"n.d."},{"$f":"IF('[1]MONE(M)CAPARD'!AT19=\"\",\"\",'[1]MONE(M)CAPARD'!AT19)","v":"n.a."},{"$f":"IF('[1]MONE(M)CAPARD'!AU19=\"\",\"\",'[1]MONE(M)CAPARD'!AU19)","v":"n.d."},{"$f":"IF('[1]MONE(M)CAPARD'!AV19=\"\",\"\",'[1]MONE(M)CAPARD'!AV19)","v":"n.d."},{"$f":"IF('[1]MONE(M)CAPARD'!AW19=\"\",\"\",'[1]MONE(M)CAPARD'!AW19)","v":"n.a."},{"$f":"IF('[1]MONE(M)CAPARD'!AX19=\"\",\"\",'[1]MONE(M)CAPARD'!AX19)","v":"n.d."},{"$f":"IF('[1]MONE(M)CAPARD'!AY19=\"\",\"\",'[1]MONE(M)CAPARD'!AY19)","v":"n.a."},{"$f":"IF('[1]FISCAL(M)'!$K19=\"\",\"\",'[1]FISCAL(M)'!$K19)","v":"n.d."},{"$f":"IF('[1]FISCAL(M)'!$L19=\"\",\"\",'[1]FISCAL(M)'!$L19)","v":"n.d."},{"$f":"IF('[1]FISCAL(M)'!$AY19=\"\",\"\",'[1]FISCAL(M)'!$AY19)","v":"n.d."},{"$f":"IF('[1]FISCAL(M)'!$BI19=\"\",\"\",'[1]FISCAL(M)'!$BI19)","v":"n.d."},{"$f":"IF('[1]FISCAL(M)'!$BS19=\"\",\"\",'[1]FISCAL(M)'!$BS19)","v":"n.d."},{"$f":"IF('[1]FISCAL(M)'!$AZ19=\"\",\"\",'[1]FISCAL(M)'!$AZ19)","v":"n.d."},{"$f":"IF('[1]FISCAL(M)'!$BJ19=\"\",\"\",'[1]FISCAL(M)'!$BJ19)","v":"n.d."},{"$f":"IF('[1]FISCAL(M)'!$BT19=\"\",\"\",'[1]FISCAL(M)'!$BT19)","v":"n.d."},{"$f":"IF('[2]MONE(M)'!$AO19=\"\",\"\",'[2]MONE(M)'!$AO19)","v":"n.d."},{"$f":"IF('[3]MONE(M)'!$AO19=\"\",\"\",'[3]MONE(M)'!$AO19)","v":"n.d."},{"$f":"IF('[4]MONE(M)'!$AO19=\"\",\"\",'[4]MONE(M)'!$AO19)","v":"n.d."},{"$f":"+'[5]MONE(M)'!$AO19","v":"n.d."},{"$f":"IF('[6]MONE(M)'!$AO19=\"\",\"\",'[6]MONE(M)'!$AO19)","v":"n.d."},{"$f":"IF('[7]MONE(M)'!$AO19=\"\",\"\",'[7]MONE(M)'!$AO19)","v":"n.d."},{"$f":"IF('[8]MONE(M)'!$AO19=\"\",\"\",'[8]MONE(M)'!$AO19)","v":"n.d."},"n.d.","n.d.","n.d.","n.d.","n.d.","n.d.","n.d.",{"$f":"IF('[1]FISCAL(M)'!$K19=\"\",\"\",'[1]FISCAL(M)'!$K19)","v":"n.d."},"n.d.","n.d.",{"$f":"IF('[1]FISCAL(M)'!$L19=\"\",\"\",'[1]FISCAL(M)'!$L19)","v":"n.d."},"n.d.","n.d.","n.d.","n.d.","n.d.","n.d.","n.d.","n.d.","n.d.","n.d.","n.d.","n.d.","n.d.","n.d.","n.d.","n.d.","n.d.","n.d."]
[1990,"noviembre","1990-noviembre",{"$f":"IF('[1]REAL IPC(M)'!$AL20=\"\",\"\",+'[1]REAL IPC(M)'!$AL20)","v":"n.d."},{"$f":"IF('[1]REAL IPC(M)'!$BE20=\"\",\"\",+'[1]REAL IPC(M)'!$BE20)","v":"n.d."},{"$f":"IF('[1]REAL IPC(M)'!$AM20=\"\",\"\",+'[1]REAL IPC(M)'!$AM20)","v":"n.d."},{"$f":"IF('[1]REAL IPC(M)'!$BI20=\"\",\"\",+'[1]REAL IPC(M)'!$BI20)","v":"n.d."},{"$f":"IF('[1]REAL IMAE(M)'!BJ20=\"\",\"\",'[1]REAL IMAE(M)'!BJ20)","v":"n.d."},{"$f":"IF('[1]REAL IMAE(M)'!BK20=\"\",\"\",'[1]REAL IMAE(M)'!BK20)","v":"n.d."},{"$f":"IF('[1]REAL IMAE(M)'!BN20=\"\",\"\",'[1]REAL IMAE(M)'!BN20)","v":"n.d."},{"$f":"IF('[1]REAL IMAE(M)'!BO20=\"\",\"\",'[1]REAL IMAE(M)'!BO20)","v":"n.d."},{"$f":"IF('[1]EXT RIN(M)'!$K20=\"\",\"\",'[1]EXT RIN(M)'!$K20)","v":"n.d."},"",{"$f":"IF('[1]EXT RIN(M)'!$L20=\"\",\"\",'[1]EXT RIN(M)'!$L20)","v":"n.d."},"",{"$f":"IF('[1]MONE(M)CARD'!EG20=\"\",\"\",'[1]MONE(M)CARD'!EG20)","v":"n.d."},{"$f":"IF('[1]MONE(M)CARD'!EK20=\"\",\"\",'[1]MONE(M)CARD'!EK20)","v":"n.d."},{"$f":"IF('[1]MONE(M)CARD'!EP20=\"\",\"\",'[1]MONE(M)CARD'!EP20)","v":"n.d."},{"$f":"IF('[1]MONE(M)CARD'!ES20=\"\",\"\",'[1]MONE(M)CARD'!ES20)","v":"n.d."},{"$f":"IF('[1]MONE(M)CARD'!EV20=\"\",\"\",'[1]MONE(M)CARD'!EV20)","v":"n.d."},{"$f":"IF('[1]MONE(M)CARD'!EZ20=\"\",\"\",'[1]MONE(M)CARD'!EZ20)","v":"n.d."},{"$f":"IF('[1]MONE(M)CAPARD'!FC20=\"\",\"\",'[1]MONE(M)CAPARD'!FC20)","v":"n.d."},{"$f":"IF('[1]MONE(M)CAPARD'!FG20=\"\",\"\",'[1]MONE(M)CAPARD'!FG20)","v":"n.d."},{"$f":"IF('[1]MONE(M)CAPARD'!FL20=\"\",\"\",'[1]MONE(M)CAPARD'!FL20)","v":"n.d."},{"$f":"IF('[1]MONE(M)CAPARD'!FO20=\"\",\"\",'[1]MONE(M)CAPARD'!FO20)","v":"n.d."},{"$f":"IF('[1]MONE(M)CAPARD'!FR20=\"\",\"\",'[1]MONE(M)CAPARD'!FR20)","v":"n.d."},{"$f":"IF('[1]MONE(M)CAPARD'!FV20=\"\",\"\",'[1]MONE(M)CAPARD'!FV20)","v":"n.d."},{"$f":"IF('[1]MONE(M)CARD'!FV20=\"\",\"\",'[1]MONE(M)CARD'!FV20)","v":""},{"$f":"IF('[1]MONE(M)CARD'!GD20=\"\",\"\",'[1]MONE(M)CARD'!GD20)","v":"n.d."},{"$f":"IF('[1]MONE(M)CARD'!GE20=\"\",\"\",'[1]MONE(M)CARD'!GE20)","v":"n.d."},"n.d.","n.d.","n.d.","n.d.","n.d.","n.d.","n.d.","n.d.",null,"n.d.","n.d.","n.d.","n.d.","n.d.",{"$f":"IF('[1]MONE(M)CAPARD'!GS20=\"\",\"\",'[1]MONE(M)CAPARD'!GS20)","v":"n.d."},{"$f":"IF('[1]MONE(M)CARD'!HA20=\"\",\"\",'[1]MONE(M)CAPARD'!HA20)","v":"n.d."},{"$f":"IF('[1]MONE(M)CAPARD'!HB20=\"\",\"\",'[1]MONE(M)CAPARD'!HB20)","v":"n.d."},"n.d.","n.d.","n.d.","n.d.","n.d.","n.d.","n.d.","n.d.","n.d.","n.d.","n.d.","n.d.","n.d.","n.d.",{"$f":"IF('[1]MONE(M)CAPARD'!AS20=\"\",\"\",'[1]MONE(M)CAPARD'!AS20)","v":"n.d."},{"$f":"IF('[1]MONE(M)CAPARD'!AT20=\"\",\"\",'[1]MONE(M)CAPARD'!AT20)","v":"n.a."},{"$f":"IF('[1]MONE(M)CAPARD'!AU20=\"\",\"\",'[1]MONE(M)CAPARD'!AU20)","v":"n.d."},{"$f":"IF('[1]MONE(M)CAPARD'!AV20=\"\",\"\",'[1]MONE(M)CAPARD'!AV20)","v":"n.d."},{"$f":"IF('[1]MONE(M)CAPARD'!AW20=\"\",\"\",'[1]MONE(M)CAPARD'!AW20)","v":"n.a."},{"$f":"IF('[1]MONE(M)CAPARD'!AX20=\"\",\"\",'[1]MONE(M)CAPARD'!AX20)","v":"n.d."},{"$f":"IF('[1]MONE(M)CAPARD'!AY20=\"\",\"\",'[1]MONE(M)CAPARD'!AY20)","v":"n.a."},{"$f":"IF('[1]FISCAL(M)'!$K20=\"\",\"\",'[1]FISCAL(M)'!$K20)","v":"n.d."},{"$f":"IF('[1]FISCAL(M)'!$L20=\"\",\"\",'[1]FISCAL(M)'!$L20)","v":"n.d."},{"$f":"IF('[1]FISCAL(M)'!$AY20=\"\",\"\",'[1]FISCAL(M)'!$AY20)","v":"n.d."},{"$f":"IF('[1]FISCAL(M)'!$BI20=\"\",\"\",'[1]FISCAL(M)'!$BI20)","v":"n.d."},{"$f":"IF('[1]FISCAL(M)'!$BS20=\"\",\"\",'[1]FISCAL(M)'!$BS20)","v":"n.d."},{"$f":"IF('[1]FISCAL(M)'!$AZ20=\"\",\"\",'[1]FISCAL(M)'!$AZ20)","v":"n.d."},{"$f":"IF('[1]FISCAL(M)'!$BJ20=\"\",\"\",'[1]FISCAL(M)'!$BJ20)","v":"n.d."},{"$f":"IF('[1]FISCAL(M)'!$BT20=\"\",\"\",'[1]FISCAL(M)'!$BT20)","v":"n.d."},{"$f":"IF('[2]MONE(M)'!$AO20=\"\",\"\",'[2]MONE(M)'!$AO20)","v":"n.d."},{"$f":"IF('[3]MONE(M)'!$AO20=\"\",\"\",'[3]MONE(M)'!$AO20)","v":"n.d."},{"$f":"IF('[4]MONE(M)'!$AO20=\"\",\"\",'[4]MONE(M)'!$AO20)","v":"n.d."},{"$f":"+'[5]MONE(M)'!$AO20","v":"n.d."},{"$f":"IF('[6]MONE(M)'!$AO20=\"\",\"\",'[6]MONE(M)'!$AO20)","v":"n.d."},{"$f":"IF('[7]MONE(M)'!$AO20=\"\",\"\",'[7]MONE(M)'!$AO20)","v":"n.d."},{"$f":"IF('[8]MONE(M)'!$AO20=\"\",\"\",'[8]MONE(M)'!$AO20)","v":"n.d."},"n.d.","n.d.","n.d.","n.d.","n.d.","n.d.","n.d.",{"$f":"IF('[1]FISCAL(M)'!$K20=\"\",\"\",'[1]FISCAL(M)'!$K20)","v":"n.d."},"n.d.","n.d.",{"$f":"IF('[1]FISCAL(M)'!$L20=\"\",\"\",'[1]FISCAL(M)'!$L20)","v":"n.d."},"n.d.","n.d.","n.d.","n.d.","n.d.","n.d.","n.d.","n.d.","n.d.","n.d.","n.d.","n.d.","n.d.","n.d.","n.d.","n.d.","n.d.","n.d."]
[1990,"diciembre","1990-diciembre",{"$f":"IF('[1]REAL IPC(M)'!$AL21=\"\",\"\",+'[1]REAL IPC(M)'!$AL21)","v":"n.d."},{"$f":"IF('[1]REAL IPC(M)'!$BE21=\"\",\"\",+'[1]REAL IPC(M)'!$BE21)","v":"n.d."},{"$f":"IF('[1]REAL IPC(M)'!$AM21=\"\",\"\",+'[1]REAL IPC(M)'!$AM21)","v":"n.d."},{"$f":"IF('[1]REAL IPC(M)'!$BI21=\"\",\"\",+'[1]REAL IPC(M)'!$BI21)","v":"n.d."},{"$f":"IF('[1]REAL IMAE(M)'!BJ21=\"\",\"\",'[1]REAL IMAE(M)'!BJ21)","v":"n.d."},{"$f":"IF('[1]REAL IMAE(M)'!BK21=\"\",\"\",'[1]REAL IMAE(M)'!BK21)","v":"n.d."},{"$f":"IF('[1]REAL IMAE(M)'!BN21=\"\",\"\",'[1]REAL IMAE(M)'!BN21)","v":"n.d."},{"$f":"IF('[1]REAL IMAE(M)'!BO21=\"\",\"\",'[1]REAL IMAE(M)'!BO21)","v":"n.d."},{"$f":"IF('[1]EXT RIN(M)'!$K21=\"\",\"\",'[1]EXT RIN(M)'!$K21)","v":"n.d."},"n.d.",{"$f":"IF('[1]EXT RIN(M)'!$L21=\"\",\"\",'[1]EXT RIN(M)'!$L21)","v":"n.d."},"n.d.",{"$f":"IF('[1]MONE(M)CARD'!EG21=\"\",\"\",'[1]MONE(M)CARD'!EG21)","v":"n.d."},{"$f":"IF('[1]MONE(M)CARD'!EK21=\"\",\"\",'[1]MONE(M)CARD'!EK21)","v":"n.d."},{"$f":"IF('[1]MONE(M)CARD'!EP21=\"\",\"\",'[1]MONE(M)CARD'!EP21)","v":"n.d."},{"$f":"IF('[1]MONE(M)CARD'!ES21=\"\",\"\",'[1]MONE(M)CARD'!ES21)","v":"n.d."},{"$f":"IF('[1]MONE(M)CARD'!EV21=\"\",\"\",'[1]MONE(M)CARD'!EV21)","v":"n.d."},{"$f":"IF('[1]MONE(M)CARD'!EZ21=\"\",\"\",'[1]MONE(M)CARD'!EZ21)","v":"n.d."},{"$f":"IF('[1]MONE(M)CAPARD'!FC21=\"\",\"\",'[1]MONE(M)CAPARD'!FC21)","v":"n.d."},{"$f":"IF('[1]MONE(M)CAPARD'!FG21=\"\",\"\",'[1]MONE(M)CAPARD'!FG21)","v":"n.d."},{"$f":"IF('[1]MONE(M)CAPARD'!FL21=\"\",\"\",'[1]MONE(M)CAPARD'!FL21)","v":"n.d."},{"$f":"IF('[1]MONE(M)CAPARD'!FO21=\"\",\"\",'[1]MONE(M)CAPARD'!FO21)","v":"n.d."},{"$f":"IF('[1]MONE(M)CAPARD'!FR21=\"\",\"\",'[1]MONE(M)CAPARD'!FR21)","v":"n.d."},{"$f":"IF('[1]MONE(M)CAPARD'!FV21=\"\",\"\",'[1]MONE(M)CAPARD'!FV21)","v":"n.d."},{"$f":"IF('[1]MONE(M)CARD'!FV21=\"\",\"\",'[1]MONE(M)CARD'!FV21)","v":""},{"$f":"IF('[1]MONE(M)CARD'!GD21=\"\",\"\",'[1]MONE(M)CARD'!GD21)","v":"n.d."},{"$f":"IF('[1]MONE(M)CARD'!GE21=\"\",\"\",'[1]MONE(M)CARD'!GE21)","v":"n.d."},"n.d.","n.d.","n.d.","n.d.","n.d.","n.d.","n.d.","n.d.",null,"n.d.","n.d.","n.d.","n.d.","n.d.",{"$f":"IF('[1]MONE(M)CAPARD'!GS21=\"\",\"\",'[1]MONE(M)CAPARD'!GS21)","v":"n.d."},{"$f":"IF('[1]MONE(M)CARD'!HA21=\"\",\"\",'[1]MONE(M)CAPARD'!HA21)","v":"n.d."},{"$f":"IF('[1]MONE(M)CAPARD'!HB21=\"\",\"\",'[1]MONE(M)CAPARD'!HB21)","v":"n.d."},"n.d.","n.d.","n.d.","n.d.","n.d.","n.d.","n.d.","n.d.","n.d.","n.d.","n.d.","n.d.","n.d.","n.d.",{"$f":"IF('[1]MONE(M)CAPARD'!AS21=\"\",\"\",'[1]MONE(M)CAPARD'!AS21)","v":"n.d."},{"$f":"IF('[1]MONE(M)CAPARD'!AT21=\"\",\"\",'[1]MONE(M)CAPARD'!AT21)","v":"n.a."},{"$f":"IF('[1]MONE(M)CAPARD'!AU21=\"\",\"\",'[1]MONE(M)CAPARD'!AU21)","v":"n.d."},{"$f":"IF('[1]MONE(M)CAPARD'!AV21=\"\",\"\",'[1]MONE(M)CAPARD'!AV21)","v":"n.d."},{"$f":"IF('[1]MONE(M)CAPARD'!AW21=\"\",\"\",'[1]MONE(M)CAPARD'!AW21)","v":"n.a."},{"$f":"IF('[1]MONE(M)CAPARD'!AX21=\"\",\"\",'[1]MONE(M)CAPARD'!AX21)","v":"n.d."},{"$f":"IF('[1]MONE(M)CAPARD'!AY21=\"\",\"\",'[1]MONE(M)CAPARD'!AY21)","v":"n.a."},{"$f":"IF('[1]FISCAL(M)'!$K21=\"\",\"\",'[1]FISCAL(M)'!$K21)","v":"n.d."},{"$f":"IF('[1]FISCAL(M)'!$L21=\"\",\"\",'[1]FISCAL(M)'!$L21)","v":"n.d."},{"$f":"IF('[1]FISCAL(M)'!$AY21=\"\",\"\",'[1]FISCAL(M)'!$AY21)","v":"n.d."},{"$f":"IF('[1]FISCAL(M)'!$BI21=\"\",\"\",'[1]FISCAL(M)'!$BI21)","v":"n.d."},{"$f":"IF('[1]FISCAL(M)'!$BS21=\"\",\"\",'[1]FISCAL(M)'!$BS21)","v":"n.d."},{"$f":"IF('[1]FISCAL(M)'!$AZ21=\"\",\"\",'[1]FISCAL(M)'!$AZ21)","v":"n.d."},{"$f":"IF('[1]FISCAL(M)'!$BJ21=\"\",\"\",'[1]FISCAL(M)'!$BJ21)","v":"n.d."},{"$f":"IF('[1]FISCAL(M)'!$BT21=\"\",\"\",'[1]FISCAL(M)'!$BT21)","v":"n.d."},{"$f":"IF('[2]MONE(M)'!$AO21=\"\",\"\",'[2]MONE(M)'!$AO21)","v":"n.d."},{"$f":"IF('[3]MONE(M)'!$AO21=\"\",\"\",'[3]MONE(M)'!$AO21)","v":"n.d."},{"$f":"IF('[4]MONE(M)'!$AO21=\"\",\"\",'[4]MONE(M)'!$AO21)","v":"n.d."},{"$f":"+'[5]MONE(M)'!$AO21","v":"n.d."},{"$f":"IF('[6]MONE(M)'!$AO21=\"\",\"\",'[6]MONE(M)'!$AO21)","v":"n.d."},{"$f":"IF('[7]MONE(M)'!$AO21=\"\",\"\",'[7]MONE(M)'!$AO21)","v":"n.d."},{"$f":"IF('[8]MONE(M)'!$AO21=\"\",\"\",'[8]MONE(M)'!$AO21)","v":"n.d."},"n.d.","n.d.","n.d.","n.d.","n.d.","n.d.","n.d.",{"$f":"IF('[1]FISCAL(M)'!$K21=\"\",\"\",'[1]FISCAL(M)'!$K21)","v":"n.d."},"n.d.","n.d.",{"$f":"IF('[1]FISCAL(M)'!$L21=\"\",\"\",'[1]FISCAL(M)'!$L21)","v":"n.d."},"n.d.","n.d.","n.d.","n.d.","n.d.","n.d.","n.d.","n.d.","n.d.","n.d.","n.d.","n.d.","n.d.","n.d.","n.d.","n.d.","n.d.","n.d."]
[1991,"enero","1991-enero",{"$f":"IF('[1]REAL IPC(M)'!$AL22=\"\",\"\",+'[1]REAL IPC(M)'!$AL22)","v":"n.d."},{"$f":"IF('[1]REAL IPC(M)'!$BE22=\"\",\"\",+'[1]REAL IPC(M)'!$BE22)","v":"n.d."},{"$f":"IF('[1]REAL IPC(M)'!$AM22=\"\",\"\",+'[1]REAL IPC(M)'!$AM22)","v":"n.d."},{"$f":"IF('[1]REAL IPC(M)'!$BI22=\"\",\"\",+'[1]REAL IPC(M)'!$BI22)","v":"n.d."},{"$f":"IF('[1]REAL IMAE(M)'!BJ22=\"\",\"\",'[1]REAL IMAE(M)'!BJ22)","v":"n.d."},{"$f":"IF('[1]REAL IMAE(M)'!BK22=\"\",\"\",'[1]REAL IMAE(M)'!BK22)","v":"n.d."},{"$f":"IF('[1]REAL IMAE(M)'!BN22=\"\",\"\",'[1]REAL IMAE(M)'!BN22)","v":"n.d."},{"$f":"IF('[1]REAL IMAE(M)'!BO22=\"\",\"\",'[1]REAL IMAE(M)'!BO22)","v":"n.d."},{"$f":"IF('[1]EXT RIN(M)'!$K22=\"\",\"\",'[1]EXT RIN(M)'!$K22)","v":"n.d."},"",{"$f":"IF('[1]EXT RIN(M)'!$L22=\"\",\"\",'[1]EXT RIN(M)'!$L22)","v":"n.d."},"",{"$f":"IF('[1]MONE(M)CARD'!EG22=\"\",\"\",'[1]MONE(M)CARD'!EG22)","v":"n.d."},{"$f":"IF('[1]MONE(M)CARD'!EK22=\"\",\"\",'[1]MONE(M)CARD'!EK22)","v":"n.d."},{"$f":"IF('[1]MONE(M)CARD'!EP22=\"\",\"\",'[1]MONE(M)CARD'!EP22)","v":"n.d."},{"$f":"IF('[1]MONE(M)CARD'!ES22=\"\",\"\",'[1]MONE(M)CARD'!ES22)","v":"n.d."},{"$f":"IF('[1]MONE(M)CARD'!EV22=\"\",\"\",'[1]MONE(M)CARD'!EV22)","v":"n.d."},{"$f":"IF('[1]MONE(M)CARD'!EZ22=\"\",\"\",'[1]MONE(M)CARD'!EZ22)","v":"n.d."},{"$f":"IF('[1]MONE(M)CAPARD'!FC22=\"\",\"\",'[1]MONE(M)CAPARD'!FC22)","v":"n.d."},{"$f":"IF('[1]MONE(M)CAPARD'!FG22=\"\",\"\",'[1]MONE(M)CAPARD'!FG22)","v":"n.d."},{"$f":"IF('[1]MONE(M)CAPARD'!FL22=\"\",\"\",'[1]MONE(M)CAPARD'!FL22)","v":"n.d."},{"$f":"IF('[1]MONE(M)CAPARD'!FO22=\"\",\"\",'[1]MONE(M)CAPARD'!FO22)","v":"n.d."},{"$f":"IF('[1]MONE(M)CAPARD'!FR22=\"\",\"\",'[1]MONE(M)CAPARD'!FR22)","v":"n.d."},{"$f":"IF('[1]MONE(M)CAPARD'!FV22=\"\",\"\",'[1]MONE(M)CAPARD'!FV22)","v":"n.d."},{"$f":"IF('[1]MONE(M)CARD'!FV22=\"\",\"\",'[1]MONE(M)CARD'!FV22)","v":""},{"$f":"IF('[1]MONE(M)CARD'!GD22=\"\",\"\",'[1]MONE(M)CARD'!GD22)","v":"n.d."},{"$f":"IF('[1]MONE(M)CARD'!GE22=\"\",\"\",'[1]MONE(M)CARD'!GE22)","v":"n.d."},"n.d.","n.d.","n.d.","n.d.","n.d.","n.d.","n.d.","n.d.",null,"n.d.","n.d.","n.d.","n.d.","n.d.",{"$f":"IF('[1]MONE(M)CAPARD'!GS22=\"\",\"\",'[1]MONE(M)CAPARD'!GS22)","v":"n.d."},{"$f":"IF('[1]MONE(M)CARD'!HA22=\"\",\"\",'[1]MONE(M)CAPARD'!HA22)","v":"n.d."},{"$f":"IF('[1]MONE(M)CAPARD'!HB22=\"\",\"\",'[1]MONE(M)CAPARD'!HB22)","v":"n.d."},"n.d.","n.d.","n.d.","n.d.","n.d.","n.d.","n.d.","n.d.","n.d.","n.d.","n.d.","n.d.","n.d.","n.d.",{"$f":"IF('[1]MONE(M)CAPARD'!AS22=\"\",\"\",'[1]MONE(M)CAPARD'!AS22)","v":"n.d."},{"$f":"IF('[1]MONE(M)CAPARD'!AT22=\"\",\"\",'[1]MONE(M)CAPARD'!AT22)","v":"n.a."},{"$f":"IF('[1]MONE(M)CAPARD'!AU22=\"\",\"\",'[1]MONE(M)CAPARD'!AU22)","v":"n.d."},{"$f":"IF('[1]MONE(M)CAPARD'!AV22=\"\",\"\",'[1]MONE(M)CAPARD'!AV22)","v":"n.d."},{"$f":"IF('[1]MONE(M)CAPARD'!AW22=\"\",\"\",'[1]MONE(M)CAPARD'!AW22)","v":"n.a."},{"$f":"IF('[1]MONE(M)CAPARD'!AX22=\"\",\"\",'[1]MONE(M)CAPARD'!AX22)","v":"n.d."},{"$f":"IF('[1]MONE(M)CAPARD'!AY22=\"\",\"\",'[1]MONE(M)CAPARD'!AY22)","v":"n.a."},{"$f":"IF('[1]FISCAL(M)'!$K22=\"\",\"\",'[1]FISCAL(M)'!$K22)","v":"n.d."},{"$f":"IF('[1]FISCAL(M)'!$L22=\"\",\"\",'[1]FISCAL(M)'!$L22)","v":"n.d."},{"$f":"IF('[1]FISCAL(M)'!$AY22=\"\",\"\",'[1]FISCAL(M)'!$AY22)","v":"n.d."},{"$f":"IF('[1]FISCAL(M)'!$BI22=\"\",\"\",'[1]FISCAL(M)'!$BI22)","v":"n.d."},{"$f":"IF('[1]FISCAL(M)'!$BS22=\"\",\"\",'[1]FISCAL(M)'!$BS22)","v":"n.d."},{"$f":"IF('[1]FISCAL(M)'!$AZ22=\"\",\"\",'[1]FISCAL(M)'!$AZ22)","v":"n.d."},{"$f":"IF('[1]FISCAL(M)'!$BJ22=\"\",\"\",'[1]FISCAL(M)'!$BJ22)","v":"n.d."},{"$f":"IF('[1]FISCAL(M)'!$BT22=\"\",\"\",'[1]FISCAL(M)'!$BT22)","v":"n.d."},{"$f":"IF('[2]MONE(M)'!$AO22=\"\",\"\",'[2]MONE(M)'!$AO22)","v":"n.d."},{"$f":"IF('[3]MONE(M)'!$AO22=\"\",\"\",'[3]MONE(M)'!$AO22)","v":"n.d."},{"$f":"IF('[4]MONE(M)'!$AO22=\"\",\"\",'[4]MONE(M)'!$AO22)","v":"n.d."},{"$f":"+'[5]MONE(M)'!$AO22","v":"n.d."},{"$f":"IF('[6]MONE(M)'!$AO22=\"\",\"\",'[6]MONE(M)'!$AO22)","v":"n.d."},{"$f":"IF('[7]MONE(M)'!$AO22=\"\",\"\",'[7]MONE(M)'!$AO22)","v":"n.d."},{"$f":"IF('[8]MONE(M)'!$AO22=\"\",\"\",'[8]MONE(M)'!$AO22)","v":"n.d."},"n.d.","n.d.","n.d.","n.d.","n.d.","n.d.","n.d.",{"$f":"IF('[1]FISCAL(M)'!$K22=\"\",\"\",'[1]FISCAL(M)'!$K22)","v":"n.d."},"n.d.","n.d.",{"$f":"IF('[1]FISCAL(M)'!$L22=\"\",\"\",'[1]FISCAL(M)'!$L22)","v":"n.d."},"n.d.","n.d.","n.d.","n.d.","n.d.","n.d.","n.d.","n.d.","n.d.","n.d.","n.d.","n.d.","n.d.","n.d.","n.d.","n.d.","n.d.","n.d."]
[1991,"febrero","1991-febrero",{"$f":"IF('[1]REAL IPC(M)'!$AL23=\"\",\"\",+'[1]REAL IPC(M)'!$AL23)","v":"n.d."},{"$f":"IF('[1]REAL IPC(M)'!$BE23=\"\",\"\",+'[1]REAL IPC(M)'!$BE23)","v":"n.d."},{"$f":"IF('[1]REAL IPC(M)'!$AM23=\"\",\"\",+'[1]REAL IPC(M)'!$AM23)","v":"n.d."},{"$f":"IF('[1]REAL IPC(M)'!$BI23=\"\",\"\",+'[1]REAL IPC(M)'!$BI23)","v":"n.d."},{"$f":"IF('[1]REAL IMAE(M)'!BJ23=\"\",\"\",'[1]REAL IMAE(M)'!BJ23)","v":"n.d."},{"$f":"IF('[1]REAL IMAE(M)'!BK23=\"\",\"\",'[1]REAL IMAE(M)'!BK23)","v":"n.d."},{"$f":"IF('[1]REAL IMAE(M)'!BN23=\"\",\"\",'[1]REAL IMAE(M)'!BN23)","v":"n.d."},{"$f":"IF('[1]REAL IMAE(M)'!BO23=\"\",\"\",'[1]REAL IMAE(M)'!BO23)","v":"n.d."},{"$f":"IF('[1]EXT RIN(M)'!$K23=\"\",\"\",'[1]EXT RIN(M)'!$K23)","v":"n.d."},"",{"$f":"IF('[1]EXT RIN(M)'!$L23=\"\",\"\",'[1]EXT RIN(M)'!$L23)","v":"n.d."},"",{"$f":"IF('[1]MONE(M)CARD'!EG23=\"\",\"\",'[1]MONE(M)CARD'!EG23)","v":"n.d."},{"$f":"IF('[1]MONE(M)CARD'!EK23=\"\",\"\",'[1]MONE(M)CARD'!EK23)","v":"n.d."},{"$f":"IF('[1]MONE(M)CARD'!EP23=\"\",\"\",'[1]MONE(M)CARD'!EP23)","v":"n.d."},{"$f":"IF('[1]MONE(M)CARD'!ES23=\"\",\"\",'[1]MONE(M)CARD'!ES23)","v":"n.d."},{"$f":"IF('[1]MONE(M)CARD'!EV23=\"\",\"\",'[1]MONE(M)CARD'!EV23)","v":"n.d."},{"$f":"IF('[1]MONE(M)CARD'!EZ23=\"\",\"\",'[1]MONE(M)CARD'!EZ23)","v":"n.d."},{"$f":"IF('[1]MONE(M)CAPARD'!FC23=\"\",\"\",'[1]MONE(M)CAPARD'!FC23)","v":"n.d."},{"$f":"IF('[1]MONE(M)CAPARD'!FG23=\"\",\"\",'[1]MONE(M)CAPARD'!FG23)","v":"n.d."},{"$f":"IF('[1]MONE(M)CAPARD'!FL23=\"\",\"\",'[1]MONE(M)CAPARD'!FL23)","v":"n.d."},{"$f":"IF('[1]MONE(M)CAPARD'!FO23=\"\",\"\",'[1]MONE(M)CAPARD'!FO23)","v":"n.d."},{"$f":"IF('[1]MONE(M)CAPARD'!FR23=\"\",\"\",'[1]MONE(M)CAPARD'!FR23)","v":"n.d."},{"$f":"IF('[1]MONE(M)CAPARD'!FV23=\"\",\"\",'[1]MONE(M)CAPARD'!FV23)","v":"n.d."},{"$f":"IF('[1]MONE(M)CARD'!FV23=\"\",\"\",'[1]MONE(M)CARD'!FV23)","v":""},{"$f":"IF('[1]MONE(M)CARD'!GD23=\"\",\"\",'[1]MONE(M)CARD'!GD23)","v":"n.d."},{"$f":"IF('[1]MONE(M)CARD'!GE23=\"\",\"\",'[1]MONE(M)CARD'!GE23)","v":"n.d."},"n.d.","n.d.","n.d.","n.d.","n.d.","n.d.","n.d.","n.d.",null,"n.d.","n.d.","n.d.","n.d.","n.d.",{"$f":"IF('[1]MONE(M)CAPARD'!GS23=\"\",\"\",'[1]MONE(M)CAPARD'!GS23)","v":"n.d."},{"$f":"IF('[1]MONE(M)CARD'!HA23=\"\",\"\",'[1]MONE(M)CAPARD'!HA23)","v":"n.d."},{"$f":"IF('[1]MONE(M)CAPARD'!HB23=\"\",\"\",'[1]MONE(M)CAPARD'!HB23)","v":"n.d."},"n.d.","n.d.","n.d.","n.d.","n.d.","n.d.","n.d.","n.d.","n.d.","n.d.","n.d.","n.d.","n.d.","n.d.",{"$f":"IF('[1]MONE(M)CAPARD'!AS23=\"\",\"\",'[1]MONE(M)CAPARD'!AS23)","v":"n.d."},{"$f":"IF('[1]MONE(M)CAPARD'!AT23=\"\",\"\",'[1]MONE(M)CAPARD'!AT23)","v":"n.a."},{"$f":"IF('[1]MONE(M)CAPARD'!AU23=\"\",\"\",'[1]MONE(M)CAPARD'!AU23)","v":"n.d."},{"$f":"IF('[1]MONE(M)CAPARD'!AV23=\"\",\"\",'[1]MONE(M)CAPARD'!AV23)","v":"n.d."},{"$f":"IF('[1]MONE(M)CAPARD'!AW23=\"\",\"\",'[1]MONE(M)CAPARD'!AW23)","v":"n.a."},{"$f":"IF('[1]MONE(M)CAPARD'!AX23=\"\",\"\",'[1]MONE(M)CAPARD'!AX23)","v":"n.d."},{"$f":"IF('[1]MONE(M)CAPARD'!AY23=\"\",\"\",'[1]MONE(M)CAPARD'!AY23)","v":"n.a."},{"$f":"IF('[1]FISCAL(M)'!$K23=\"\",\"\",'[1]FISCAL(M)'!$K23)","v":"n.d."},{"$f":"IF('[1]FISCAL(M)'!$L23=\"\",\"\",'[1]FISCAL(M)'!$L23)","v":"n.d."},{"$f":"IF('[1]FISCAL(M)'!$AY23=\"\",\"\",'[1]FISCAL(M)'!$AY23)","v":"n.d."},{"$f":"IF('[1]FISCAL(M)'!$BI23=\"\",\"\",'[1]FISCAL(M)'!$BI23)","v":"n.d."},{"$f":"IF('[1]FISCAL(M)'!$BS23=\"\",\"\",'[1]FISCAL(M)'!$BS23)","v":"n.d."},{"$f":"IF('[1]FISCAL(M)'!$AZ23=\"\",\"\",'[1]FISCAL(M)'!$AZ23)","v":"n.d."},{"$f":"IF('[1]FISCAL(M)'!$BJ23=\"\",\"\",'[1]FISCAL(M)'!$BJ23)","v":"n.d."},{"$f":"IF('[1]FISCAL(M)'!$BT23=\"\",\"\",'[1]FISCAL(M)'!$BT23)","v":"n.d."},{"$f":"IF('[2]MONE(M)'!$AO23=\"\",\"\",'[2]MONE(M)'!$AO23)","v":"n.d."},{"$f":"IF('[3]MONE(M)'!$AO23=\"\",\"\",'[3]MONE(M)'!$AO23)","v":"n.d."},{"$f":"IF('[4]MONE(M)'!$AO23=\"\",\"\",'[4]MONE(M)'!$AO23)","v":"n.d."},{"$f":"+'[5]MONE(M)'!$AO23","v":"n.d."},{"$f":"IF('[6]MONE(M)'!$AO23=\"\",\"\",'[6]MONE(M)'!$AO23)","v":"n.d."},{"$f":"IF('[7]MONE(M)'!$AO23=\"\",\"\",'[7]MONE(M)'!$AO23)","v":"n.d."},{"$f":"IF('[8]MONE(M)'!$AO23=\"\",\"\",'[8]MONE(M)'!$AO23)","v":"n.d."},"n.d.","n.d.","n.d.","n.d.","n.d.","n.d.","n.d.",{"$f":"IF('[1]FISCAL(M)'!$K23=\"\",\"\",'[1]FISCAL(M)'!$K23)","v":"n.d."},"n.d.","n.d.",{"$f":"IF('[1]FISCAL(M)'!$L23=\"\",\"\",'[1]FISCAL(M)'!$L23)","v":"n.d."},"n.d.","n.d.","n.d.","n.d.","n.d.","n.d.","n.d.","n.d.","n.d.","n.d.","n.d.","n.d.","n.d.","n.d.","n.d.","n.d.","n.d.","n.d."]
[1991,"marzo","1991-marzo",{"$f":"IF('[1]REAL IPC(M)'!$AL24=\"\",\"\",+'[1]REAL IPC(M)'!$AL24)","v":"n.d."},{"$f":"IF('[1]REAL IPC(M)'!$BE24=\"\",\"\",+'[1]REAL IPC(M)'!$BE24)","v":"n.d."},{"$f":"IF('[1]REAL IPC(M)'!$AM24=\"\",\"\",+'[1]REAL IPC(M)'!$AM24)","v":"n.d."},{"$f":"IF('[1]REAL IPC(M)'!$BI24=\"\",\"\",+'[1]REAL IPC(M)'!$BI24)","v":"n.d."},{"$f":"IF('[1]REAL IMAE(M)'!BJ24=\"\",\"\",'[1]REAL IMAE(M)'!BJ24)","v":"n.d."},{"$f":"IF('[1]REAL IMAE(M)'!BK24=\"\",\"\",'[1]REAL IMAE(M)'!BK24)","v":"n.d."},{"$f":"IF('[1]REAL IMAE(M)'!BN24=\"\",\"\",'[1]REAL IMAE(M)'!BN24)","v":"n.d."},{"$f":"IF('[1]REAL IMAE(M)'!BO24=\"\",\"\",'[1]REAL IMAE(M)'!BO24)","v":"n.d."},{"$f":"IF('[1]EXT RIN(M)'!$K24=\"\",\"\",'[1]EXT RIN(M)'!$K24)","v":"n.d."},"",{"$f":"IF('[1]EXT RIN(M)'!$L24=\"\",\"\",'[1]EXT RIN(M)'!$L24)","v":"n.d."},"",{"$f":"IF('[1]MONE(M)CARD'!EG24=\"\",\"\",'[1]MONE(M)CARD'!EG24)","v":"n.d."},{"$f":"IF('[1]MONE(M)CARD'!EK24=\"\",\"\",'[1]MONE(M)CARD'!EK24)","v":"n.d."},{"$f":"IF('[1]MONE(M)CARD'!EP24=\"\",\"\",'[1]MONE(M)CARD'!EP24)","v":"n.d."},{"$f":"IF('[1]MONE(M)CARD'!ES24=\"\",\"\",'[1]MONE(M)CARD'!ES24)","v":"n.d."},{"$f":"IF('[1]MONE(M)CARD'!EV24=\"\",\"\",'[1]MONE(M)CARD'!EV24)","v":"n.d."},{"$f":"IF('[1]MONE(M)CARD'!EZ24=\"\",\"\",'[1]MONE(M)CARD'!EZ24)","v":"n.d."},{"$f":"IF('[1]MONE(M)CAPARD'!FC24=\"\",\"\",'[1]MONE(M)CAPARD'!FC24)","v":"n.d."},{"$f":"IF('[1]MONE(M)CAPARD'!FG24=\"\",\"\",'[1]MONE(M)CAPARD'!FG24)","v":"n.d."},{"$f":"IF('[1]MONE(M)CAPARD'!FL24=\"\",\"\",'[1]MONE(M)CAPARD'!FL24)","v":"n.d."},{"$f":"IF('[1]MONE(M)CAPARD'!FO24=\"\",\"\",'[1]MONE(M)CAPARD'!FO24)","v":"n.d."},{"$f":"IF('[1]MONE(M)CAPARD'!FR24=\"\",\"\",'[1]MONE(M)CAPARD'!FR24)","v":"n.d."},{"$f":"IF('[1]MONE(M)CAPARD'!FV24=\"\",\"\",'[1]MONE(M)CAPARD'!FV24)","v":"n.d."},{"$f":"IF('[1]MONE(M)CARD'!FV24=\"\",\"\",'[1]MONE(M)CARD'!FV24)","v":""},{"$f":"IF('[1]MONE(M)CARD'!GD24=\"\",\"\",'[1]MONE(M)CARD'!GD24)","v":"n.d."},{"$f":"IF('[1]MONE(M)CARD'!GE24=\"\",\"\",'[1]MONE(M)CARD'!GE24)","v":"n.d."},"n.d.","n.d.","n.d.","n.d.","n.d.","n.d.","n.d.","n.d.",null,"n.d.","n.d.","n.d.","n.d.","n.d.",{"$f":"IF('[1]MONE(M)CAPARD'!GS24=\"\",\"\",'[1]MONE(M)CAPARD'!GS24)","v":"n.d."},{"$f":"IF('[1]MONE(M)CARD'!HA24=\"\",\"\",'[1]MONE(M)CAPARD'!HA24)","v":"n.d."},{"$f":"IF('[1]MONE(M)CAPARD'!HB24=\"\",\"\",'[1]MONE(M)CAPARD'!HB24)","v":"n.d."},"n.d.","n.d.","n.d.","n.d.","n.d.","n.d.","n.d.","n.d.","n.d.","n.d.","n.d.","n.d.","n.d.","n.d.",{"$f":"IF('[1]MONE(M)CAPARD'!AS24=\"\",\"\",'[1]MONE(M)CAPARD'!AS24)","v":"n.d."},{"$f":"IF('[1]MONE(M)CAPARD'!AT24=\"\",\"\",'[1]MONE(M)CAPARD'!AT24)","v":"n.a."},{"$f":"IF('[1]MONE(M)CAPARD'!AU24=\"\",\"\",'[1]MONE(M)CAPARD'!AU24)","v":"n.d."},{"$f":"IF('[1]MONE(M)CAPARD'!AV24=\"\",\"\",'[1]MONE(M)CAPARD'!AV24)","v":"n.d."},{"$f":"IF('[1]MONE(M)CAPARD'!AW24=\"\",\"\",'[1]MONE(M)CAPARD'!AW24)","v":"n.a."},{"$f":"IF('[1]MONE(M)CAPARD'!AX24=\"\",\"\",'[1]MONE(M)CAPARD'!AX24)","v":"n.d."},{"$f":"IF('[1]MONE(M)CAPARD'!AY24=\"\",\"\",'[1]MONE(M)CAPARD'!AY24)","v":"n.a."},{"$f":"IF('[1]FISCAL(M)'!$K24=\"\",\"\",'[1]FISCAL(M)'!$K24)","v":"n.d."},{"$f":"IF('[1]FISCAL(M)'!$L24=\"\",\"\",'[1]FISCAL(M)'!$L24)","v":"n.d."},{"$f":"IF('[1]FISCAL(M)'!$AY24=\"\",\"\",'[1]FISCAL(M)'!$AY24)","v":"n.d."},{"$f":"IF('[1]FISCAL(M)'!$BI24=\"\",\"\",'[1]FISCAL(M)'!$BI24)","v":"n.d."},{"$f":"IF('[1]FISCAL(M)'!$BS24=\"\",\"\",'[1]FISCAL(M)'!$BS24)","v":"n.d."},{"$f":"IF('[1]FISCAL(M)'!$AZ24=\"\",\"\",'[1]FISCAL(M)'!$AZ24)","v":"n.d."},{"$f":"IF('[1]FISCAL(M)'!$BJ24=\"\",\"\",'[1]FISCAL(M)'!$BJ24)","v":"n.d."},{"$f":"IF('[1]FISCAL(M)'!$BT24=\"\",\"\",'[1]FISCAL(M)'!$BT24)","v":"n.d."},{"$f":"IF('[2]MONE(M)'!$AO24=\"\",\"\",'[2]MONE(M)'!$AO24)","v":"n.d."},{"$f":"IF('[3]MONE(M)'!$AO24=\"\",\"\",'[3]MONE(M)'!$AO24)","v":"n.d."},{"$f":"IF('[4]MONE(M)'!$AO24=\"\",\"\",'[4]MONE(M)'!$AO24)","v":"n.d."},{"$f":"+'[5]MONE(M)'!$AO24","v":"n.d."},{"$f":"IF('[6]MONE(M)'!$AO24=\"\",\"\",'[6]MONE(M)'!$AO24)","v":"n.d."},{"$f":"IF('[7]MONE(M)'!$AO24=\"\",\"\",'[7]MONE(M)'!$AO24)","v":"n.d."},{"$f":"IF('[8]MONE(M)'!$AO24=\"\",\"\",'[8]MONE(M)'!$AO24)","v":"n.d."},"n.d.","n.d.","n.d.","n.d.","n.d.","n.d.","n.d.",{"$f":"IF('[1]FISCAL(M)'!$K24=\"\",\"\",'[1]FISCAL(M)'!$K24)","v":"n.d."},"n.d.","n.d.",{"$f":"IF('[1]FISCAL(M)'!$L24=\"\",\"\",'[1]FISCAL(M)'!$L24)","v":"n.d."},"n.d.","n.d.","n.d.","n.d.","n.d.","n.d.","n.d.","n.d.","n.d.","n.d.","n.d.","n.d.","n.d.","n.d.","n.d.","n.d.","n.d.","n.d."]
[1991,"abril","1991-abril",{"$f":"IF('[1]REAL IPC(M)'!$AL25=\"\",\"\",+'[1]REAL IPC(M)'!$AL25)","v":"n.d."},{"$f":"IF('[1]REAL IPC(M)'!$BE25=\"\",\"\",+'[1]REAL IPC(M)'!$BE25)","v":"n.d."},{"$f":"IF('[1]REAL IPC(M)'!$AM25=\"\",\"\",+'[1]REAL IPC(M)'!$AM25)","v":"n.d."},{"$f":"IF('[1]REAL IPC(M)'!$BI25=\"\",\"\",+'[1]REAL IPC(M)'!$BI25)","v":"n.d."},{"$f":"IF('[1]REAL IMAE(M)'!BJ25=\"\",\"\",'[1]REAL IMAE(M)'!BJ25)","v":"n.d."},{"$f":"IF('[1]REAL IMAE(M)'!BK25=\"\",\"\",'[1]REAL IMAE(M)'!BK25)","v":"n.d."},{"$f":"IF('[1]REAL IMAE(M)'!BN25=\"\",\"\",'[1]REAL IMAE(M)'!BN25)","v":"n.d."},{"$f":"IF('[1]REAL IMAE(M)'!BO25=\"\",\"\",'[1]REAL IMAE(M)'!BO25)","v":"n.d."},{"$f":"IF('[1]EXT RIN(M)'!$K25=\"\",\"\",'[1]EXT RIN(M)'!$K25)","v":"n.d."},"",{"$f":"IF('[1]EXT RIN(M)'!$L25=\"\",\"\",'[1]EXT RIN(M)'!$L25)","v":"n.d."},"",{"$f":"IF('[1]MONE(M)CARD'!EG25=\"\",\"\",'[1]MONE(M)CARD'!EG25)","v":"n.d."},{"$f":"IF('[1]MONE(M)CARD'!EK25=\"\",\"\",'[1]MONE(M)CARD'!EK25)","v":"n.d."},{"$f":"IF('[1]MONE(M)CARD'!EP25=\"\",\"\",'[1]MONE(M)CARD'!EP25)","v":"n.d."},{"$f":"IF('[1]MONE(M)CARD'!ES25=\"\",\"\",'[1]MONE(M)CARD'!ES25)","v":"n.d."},{"$f":"IF('[1]MONE(M)CARD'!EV25=\"\",\"\",'[1]MONE(M)CARD'!EV25)","v":"n.d."},{"$f":"IF('[1]MONE(M)CARD'!EZ25=\"\",\"\",'[1]MONE(M)CARD'!EZ25)","v":"n.d."},{"$f":"IF('[1]MONE(M)CAPARD'!FC25=\"\",\"\",'[1]MONE(M)CAPARD'!FC25)","v":"n.d."},{"$f":"IF('[1]MONE(M)CAPARD'!FG25=\"\",\"\",'[1]MONE(M)CAPARD'!FG25)","v":"n.d."},{"$f":"IF('[1]MONE(M)CAPARD'!FL25=\"\",\"\",'[1]MONE(M)CAPARD'!FL25)","v":"n.d."},{"$f":"IF('[1]MONE(M)CAPARD'!FO25=\"\",\"\",'[1]MONE(M)CAPARD'!FO25)","v":"n.d."},{"$f":"IF('[1]MONE(M)CAPARD'!FR25=\"\",\"\",'[1]MONE(M)CAPARD'!FR25)","v":"n.d."},{"$f":"IF('[1]MONE(M)CAPARD'!FV25=\"\",\"\",'[1]MONE(M)CAPARD'!FV25)","v":"n.d."},{"$f":"IF('[1]MONE(M)CARD'!FV25=\"\",\"\",'[1]MONE(M)CARD'!FV25)","v":""},{"$f":"IF('[1]MONE(M)CARD'!GD25=\"\",\"\",'[1]MONE(M)CARD'!GD25)","v":"n.d."},{"$f":"IF('[1]MONE(M)CARD'!GE25=\"\",\"\",'[1]MONE(M)CARD'!GE25)","v":"n.d."},"n.d.","n.d.","n.d.","n.d.","n.d.","n.d.","n.d.","n.d.",null,"n.d.","n.d.","n.d.","n.d.","n.d.",{"$f":"IF('[1]MONE(M)CAPARD'!GS25=\"\",\"\",'[1]MONE(M)CAPARD'!GS25)","v":"n.d."},{"$f":"IF('[1]MONE(M)CARD'!HA25=\"\",\"\",'[1]MONE(M)CAPARD'!HA25)","v":"n.d."},{"$f":"IF('[1]MONE(M)CAPARD'!HB25=\"\",\"\",'[1]MONE(M)CAPARD'!HB25)","v":"n.d."},"n.d.","n.d.","n.d.","n.d.","n.d.","n.d.","n.d.","n.d.","n.d.","n.d.","n.d.","n.d.","n.d.","n.d.",{"$f":"IF('[1]MONE(M)CAPARD'!AS25=\"\",\"\",'[1]MONE(M)CAPARD'!AS25)","v":"n.d."},{"$f":"IF('[1]MONE(M)CAPARD'!AT25=\"\",\"\",'[1]MONE(M)CAPARD'!AT25)","v":"n.a."},{"$f":"IF('[1]MONE(M)CAPARD'!AU25=\"\",\"\",'[1]MONE(M)CAPARD'!AU25)","v":"n.d."},{"$f":"IF('[1]MONE(M)CAPARD'!AV25=\"\",\"\",'[1]MONE(M)CAPARD'!AV25)","v":"n.d."},{"$f":"IF('[1]MONE(M)CAPARD'!AW25=\"\",\"\",'[1]MONE(M)CAPARD'!AW25)","v":"n.a."},{"$f":"IF('[1]MONE(M)CAPARD'!AX25=\"\",\"\",'[1]MONE(M)CAPARD'!AX25)","v":"n.d."},{"$f":"IF('[1]MONE(M)CAPARD'!AY25=\"\",\"\",'[1]MONE(M)CAPARD'!AY25)","v":"n.a."},{"$f":"IF('[1]FISCAL(M)'!$K25=\"\",\"\",'[1]FISCAL(M)'!$K25)","v":"n.d."},{"$f":"IF('[1]FISCAL(M)'!$L25=\"\",\"\",'[1]FISCAL(M)'!$L25)","v":"n.d."},{"$f":"IF('[1]FISCAL(M)'!$AY25=\"\",\"\",'[1]FISCAL(M)'!$AY25)","v":"n.d."},{"$f":"IF('[1]FISCAL(M)'!$BI25=\"\",\"\",'[1]FISCAL(M)'!$BI25)","v":"n.d."},{"$f":"IF('[1]FISCAL(M)'!$BS25=\"\",\"\",'[1]FISCAL(M)'!$BS25)","v":"n.d."},{"$f":"IF('[1]FISCAL(M)'!$AZ25=\"\",\"\",'[1]FISCAL(M)'!$AZ25)","v":"n.d."},{"$f":"IF('[1]FISCAL(M)'!$BJ25=\"\",\"\",'[1]FISCAL(M)'!$BJ25)","v":"n.d."},{"$f":"IF('[1]FISCAL(M)'!$BT25=\"\",\"\",'[1]FISCAL(M)'!$BT25)","v":"n.d."},{"$f":"IF('[2]MONE(M)'!$AO25=\"\",\"\",'[2]MONE(M)'!$AO25)","v":"n.d."},{"$f":"IF('[3]MONE(M)'!$AO25=\"\",\"\",'[3]MONE(M)'!$AO25)","v":"n.d."},{"$f":"IF('[4]MONE(M)'!$AO25=\"\",\"\",'[4]MONE(M)'!$AO25)","v":"n.d."},{"$f":"+'[5]MONE(M)'!$AO25","v":"n.d."},{"$f":"IF('[6]MONE(M)'!$AO25=\"\",\"\",'[6]MONE(M)'!$AO25)","v":"n.d."},{"$f":"IF('[7]MONE(M)'!$AO25=\"\",\"\",'[7]MONE(M)'!$AO25)","v":"n.d."},{"$f":"IF('[8]MONE(M)'!$AO25=\"\",\"\",'[8]MONE(M)'!$AO25)","v":"n.d."},"n.d.","n.d.","n.d.","n.d.","n.d.","n.d.","n.d.",{"$f":"IF('[1]FISCAL(M)'!$K25=\"\",\"\",'[1]FISCAL(M)'!$K25)","v":"n.d."},"n.d.","n.d.",{"$f":"IF('[1]FISCAL(M)'!$L25=\"\",\"\",'[1]FISCAL(M)'!$L25)","v":"n.d."},"n.d.","n.d.","n.d.","n.d.","n.d.","n.d.","n.d.","n.d.","n.d.","n.d.","n.d.","n.d.","n.d.","n.d.","n.d.","n.d.","n.d.","n.d."]
[1991,"mayo ","1991-mayo ",{"$f":"IF('[1]REAL IPC(M)'!$AL26=\"\",\"\",+'[1]REAL IPC(M)'!$AL26)","v":"n.d."},{"$f":"IF('[1]REAL IPC(M)'!$BE26=\"\",\"\",+'[1]REAL IPC(M)'!$BE26)","v":"n.d."},{"$f":"IF('[1]REAL IPC(M)'!$AM26=\"\",\"\",+'[1]REAL IPC(M)'!$AM26)","v":"n.d."},{"$f":"IF('[1]REAL IPC(M)'!$BI26=\"\",\"\",+'[1]REAL IPC(M)'!$BI26)","v":"n.d."},{"$f":"IF('[1]REAL IMAE(M)'!BJ26=\"\",\"\",'[1]REAL IMAE(M)'!BJ26)","v":"n.d."},{"$f":"IF('[1]REAL IMAE(M)'!BK26=\"\",\"\",'[1]REAL IMAE(M)'!BK26)","v":"n.d."},{"$f":"IF('[1]REAL IMAE(M)'!BN26=\"\",\"\",'[1]REAL IMAE(M)'!BN26)","v":"n.d."},{"$f":"IF('[1]REAL IMAE(M)'!BO26=\"\",\"\",'[1]REAL IMAE(M)'!BO26)","v":"n.d."},{"$f":"IF('[1]EXT RIN(M)'!$K26=\"\",\"\",'[1]EXT RIN(M)'!$K26)","v":"n.d."},"",{"$f":"IF('[1]EXT RIN(M)'!$L26=\"\",\"\",'[1]EXT RIN(M)'!$L26)","v":"n.d."},"",{"$f":"IF('[1]MONE(M)CARD'!EG26=\"\",\"\",'[1]MONE(M)CARD'!EG26)","v":"n.d."},{"$f":"IF('[1]MONE(M)CARD'!EK26=\"\",\"\",'[1]MONE(M)CARD'!EK26)","v":"n.d."},{"$f":"IF('[1]MONE(M)CARD'!EP26=\"\",\"\",'[1]MONE(M)CARD'!EP26)","v":"n.d."},{"$f":"IF('[1]MONE(M)CARD'!ES26=\"\",\"\",'[1]MONE(M)CARD'!ES26)","v":"n.d."},{"$f":"IF('[1]MONE(M)CARD'!EV26=\"\",\"\",'[1]MONE(M)CARD'!EV26)","v":"n.d."},{"$f":"IF('[1]MONE(M)CARD'!EZ26=\"\",\"\",'[1]MONE(M)CARD'!EZ26)","v":"n.d."},{"$f":"IF('[1]MONE(M)CAPARD'!FC26=\"\",\"\",'[1]MONE(M)CAPARD'!FC26)","v":"n.d."},{"$f":"IF('[1]MONE(M)CAPARD'!FG26=\"\",\"\",'[1]MONE(M)CAPARD'!FG26)","v":"n.d."},{"$f":"IF('[1]MONE(M)CAPARD'!FL26=\"\",\"\",'[1]MONE(M)CAPARD'!FL26)","v":"n.d."},{"$f":"IF('[1]MONE(M)CAPARD'!FO26=\"\",\"\",'[1]MONE(M)CAPARD'!FO26)","v":"n.d."},{"$f":"IF('[1]MONE(M)CAPARD'!FR26=\"\",\"\",'[1]MONE(M)CAPARD'!FR26)","v":"n.d."},{"$f":"IF('[1]MONE(M)CAPARD'!FV26=\"\",\"\",'[1]MONE(M)CAPARD'!FV26)","v":"n.d."},{"$f":"IF('[1]MONE(M)CARD'!FV26=\"\",\"\",'[1]MONE(M)CARD'!FV26)","v":""},{"$f":"IF('[1]MONE(M)CARD'!GD26=\"\",\"\",'[1]MONE(M)CARD'!GD26)","v":"n.d."},{"$f":"IF('[1]MONE(M)CARD'!GE26=\"\",\"\",'[1]MONE(M)CARD'!GE26)","v":"n.d."},"n.d.","n.d.","n.d.","n.d.","n.d.","n.d.","n.d.","n.d.",null,"n.d.","n.d.","n.d.","n.d.","n.d.",{"$f":"IF('[1]MONE(M)CAPARD'!GS26=\"\",\"\",'[1]MONE(M)CAPARD'!GS26)","v":"n.d."},{"$f":"IF('[1]MONE(M)CARD'!HA26=\"\",\"\",'[1]MONE(M)CAPARD'!HA26)","v":"n.d."},{"$f":"IF('[1]MONE(M)CAPARD'!HB26=\"\",\"\",'[1]MONE(M)CAPARD'!HB26)","v":"n.d."},"n.d.","n.d.","n.d.","n.d.","n.d.","n.d.","n.d.","n.d.","n.d.","n.d.","n.d.","n.d.","n.d.","n.d.",{"$f":"IF('[1]MONE(M)CAPARD'!AS26=\"\",\"\",'[1]MONE(M)CAPARD'!AS26)","v":"n.d."},{"$f":"IF('[1]MONE(M)CAPARD'!AT26=\"\",\"\",'[1]MONE(M)CAPARD'!AT26)","v":"n.a."},{"$f":"IF('[1]MONE(M)CAPARD'!AU26=\"\",\"\",'[1]MONE(M)CAPARD'!AU26)","v":"n.d."},{"$f":"IF('[1]MONE(M)CAPARD'!AV26=\"\",\"\",'[1]MONE(M)CAPARD'!AV26)","v":"n.d."},{"$f":"IF('[1]MONE(M)CAPARD'!AW26=\"\",\"\",'[1]MONE(M)CAPARD'!AW26)","v":"n.a."},{"$f":"IF('[1]MONE(M)CAPARD'!AX26=\"\",\"\",'[1]MONE(M)CAPARD'!AX26)","v":"n.d."},{"$f":"IF('[1]MONE(M)CAPARD'!AY26=\"\",\"\",'[1]MONE(M)CAPARD'!AY26)","v":"n.a."},{"$f":"IF('[1]FISCAL(M)'!$K26=\"\",\"\",'[1]FISCAL(M)'!$K26)","v":"n.d."},{"$f":"IF('[1]FISCAL(M)'!$L26=\"\",\"\",'[1]FISCAL(M)'!$L26)","v":"n.d."},{"$f":"IF('[1]FISCAL(M)'!$AY26=\"\",\"\",'[1]FISCAL(M)'!$AY26)","v":"n.d."},{"$f":"IF('[1]FISCAL(M)'!$BI26=\"\",\"\",'[1]FISCAL(M)'!$BI26)","v":"n.d."},{"$f":"IF('[1]FISCAL(M)'!$BS26=\"\",\"\",'[1]FISCAL(M)'!$BS26)","v":"n.d."},{"$f":"IF('[1]FISCAL(M)'!$AZ26=\"\",\"\",'[1]FISCAL(M)'!$AZ26)","v":"n.d."},{"$f":"IF('[1]FISCAL(M)'!$BJ26=\"\",\"\",'[1]FISCAL(M)'!$BJ26)","v":"n.d."},{"$f":"IF('[1]FISCAL(M)'!$BT26=\"\",\"\",'[1]FISCAL(M)'!$BT26)","v":"n.d."},{"$f":"IF('[2]MONE(M)'!$AO26=\"\",\"\",'[2]MONE(M)'!$AO26)","v":"n.d."},{"$f":"IF('[3]MONE(M)'!$AO26=\"\",\"\",'[3]MONE(M)'!$AO26)","v":"n.d."},{"$f":"IF('[4]MONE(M)'!$AO26=\"\",\"\",'[4]MONE(M)'!$AO26)","v":"n.d."},{"$f":"+'[5]MONE(M)'!$AO26","v":"n.d."},{"$f":"IF('[6]MONE(M)'!$AO26=\"\",\"\",'[6]MONE(M)'!$AO26)","v":"n.d."},{"$f":"IF('[7]MONE(M)'!$AO26=\"\",\"\",'[7]MONE(M)'!$AO26)","v":"n.d."},{"$f":"IF('[8]MONE(M)'!$AO26=\"\",\"\",'[8]MONE(M)'!$AO26)","v":"n.d."},"n.d.","n.d.","n.d.","n.d.","n.d.","n.d.","n.d.",{"$f":"IF('[1]FISCAL(M)'!$K26=\"\",\"\",'[1]FISCAL(M)'!$K26)","v":"n.d."},"n.d.","n.d.",{"$f":"IF('[1]FISCAL(M)'!$L26=\"\",\"\",'[1]FISCAL(M)'!$L26)","v":"n.d."},"n.d.","n.d.","n.d.","n.d.","n.d.","n.d.","n.d.","n.d.","n.d.","n.d.","n.d.","n.d.","n.d.","n.d.","n.d.","n.d.","n.d.","n.d."]
[1991,"junio ","1991-junio ",{"$f":"IF('[1]REAL IPC(M)'!$AL27=\"\",\"\",+'[1]REAL IPC(M)'!$AL27)","v":"n.d."},{"$f":"IF('[1]REAL IPC(M)'!$BE27=\"\",\"\",+'[1]REAL IPC(M)'!$BE27)","v":"n.d."},{"$f":"IF('[1]REAL IPC(M)'!$AM27=\"\",\"\",+'[1]REAL IPC(M)'!$AM27)","v":"n.d."},{"$f":"IF('[1]REAL IPC(M)'!$BI27=\"\",\"\",+'[1]REAL IPC(M)'!$BI27)","v":"n.d."},{"$f":"IF('[1]REAL IMAE(M)'!BJ27=\"\",\"\",'[1]REAL IMAE(M)'!BJ27)","v":"n.d."},{"$f":"IF('[1]REAL IMAE(M)'!BK27=\"\",\"\",'[1]REAL IMAE(M)'!BK27)","v":"n.d."},{"$f":"IF('[1]REAL IMAE(M)'!BN27=\"\",\"\",'[1]REAL IMAE(M)'!BN27)","v":"n.d."},{"$f":"IF('[1]REAL IMAE(M)'!BO27=\"\",\"\",'[1]REAL IMAE(M)'!BO27)","v":"n.d."},{"$f":"IF('[1]EXT RIN(M)'!$K27=\"\",\"\",'[1]EXT RIN(M)'!$K27)","v":"n.d."},"",{"$f":"IF('[1]EXT RIN(M)'!$L27=\"\",\"\",'[1]EXT RIN(M)'!$L27)","v":"n.d."},"",{"$f":"IF('[1]MONE(M)CARD'!EG27=\"\",\"\",'[1]MONE(M)CARD'!EG27)","v":"n.d."},{"$f":"IF('[1]MONE(M)CARD'!EK27=\"\",\"\",'[1]MONE(M)CARD'!EK27)","v":"n.d."},{"$f":"IF('[1]MONE(M)CARD'!EP27=\"\",\"\",'[1]MONE(M)CARD'!EP27)","v":"n.d."},{"$f":"IF('[1]MONE(M)CARD'!ES27=\"\",\"\",'[1]MONE(M)CARD'!ES27)","v":"n.d."},{"$f":"IF('[1]MONE(M)CARD'!EV27=\"\",\"\",'[1]MONE(M)CARD'!EV27)","v":"n.d."},{"$f":"IF('[1]MONE(M)CARD'!EZ27=\"\",\"\",'[1]MONE(M)CARD'!EZ27)","v":"n.d."},{"$f":"IF('[1]MONE(M)CAPARD'!FC27=\"\",\"\",'[1]MONE(M)CAPARD'!FC27)","v":"n.d."},{"$f":"IF('[1]MONE(M)CAPARD'!FG27=\"\",\"\",'[1]MONE(M)CAPARD'!FG27)","v":"n.d."},{"$f":"IF('[1]MONE(M)CAPARD'!FL27=\"\",\"\",'[1]MONE(M)CAPARD'!FL27)","v":"n.d."},{"$f":"IF('[1]MONE(M)CAPARD'!FO27=\"\",\"\",'[1]MONE(M)CAPARD'!FO27)","v":"n.d."},{"$f":"IF('[1]MONE(M)CAPARD'!FR27=\"\",\"\",'[1]MONE(M)CAPARD'!FR27)","v":"n.d."},{"$f":"IF('[1]MONE(M)CAPARD'!FV27=\"\",\"\",'[1]MONE(M)CAPARD'!FV27)","v":"n.d."},{"$f":"IF('[1]MONE(M)CARD'!FV27=\"\",\"\",'[1]MONE(M)CARD'!FV27)","v":""},{"$f":"IF('[1]MONE(M)CARD'!GD27=\"\",\"\",'[1]MONE(M)CARD'!GD27)","v":"n.d."},{"$f":"IF('[1]MONE(M)CARD'!GE27=\"\",\"\",'[1]MONE(M)CARD'!GE27)","v":"n.d."},"n.d.","n.d.","n.d.","n.d.","n.d.","n.d.","n.d.","n.d.",null,"n.d.","n.d.","n.d.","n.d.","n.d.",{"$f":"IF('[1]MONE(M)CAPARD'!GS27=\"\",\"\",'[1]MONE(M)CAPARD'!GS27)","v":"n.d."},{"$f":"IF('[1]MONE(M)CARD'!HA27=\"\",\"\",'[1]MONE(M)CAPARD'!HA27)","v":"n.d."},{"$f":"IF('[1]MONE(M)CAPARD'!HB27=\"\",\"\",'[1]MONE(M)CAPARD'!HB27)","v":"n.d."},"n.d.","n.d.","n.d.","n.d.","n.d.","n.d.","n.d.","n.d.","n.d.","n.d.","n.d.","n.d.","n.d.","n.d.",{"$f":"IF('[1]MONE(M)CAPARD'!AS27=\"\",\"\",'[1]MONE(M)CAPARD'!AS27)","v":"n.d."},{"$f":"IF('[1]MONE(M)CAPARD'!AT27=\"\",\"\",'[1]MONE(M)CAPARD'!AT27)","v":"n.a."},{"$f":"IF('[1]MONE(M)CAPARD'!AU27=\"\",\"\",'[1]MONE(M)CAPARD'!AU27)","v":"n.d."},{"$f":"IF('[1]MONE(M)CAPARD'!AV27=\"\",\"\",'[1]MONE(M)CAPARD'!AV27)","v":"n.d."},{"$f":"IF('[1]MONE(M)CAPARD'!AW27=\"\",\"\",'[1]MONE(M)CAPARD'!AW27)","v":"n.a."},{"$f":"IF('[1]MONE(M)CAPARD'!AX27=\"\",\"\",'[1]MONE(M)CAPARD'!AX27)","v":"n.d."},{"$f":"IF('[1]MONE(M)CAPARD'!AY27=\"\",\"\",'[1]MONE(M)CAPARD'!AY27)","v":"n.a."},{"$f":"IF('[1]FISCAL(M)'!$K27=\"\",\"\",'[1]FISCAL(M)'!$K27)","v":"n.d."},{"$f":"IF('[1]FISCAL(M)'!$L27=\"\",\"\",'[1]FISCAL(M)'!$L27)","v":"n.d."},{"$f":"IF('[1]FISCAL(M)'!$AY27=\"\",\"\",'[1]FISCAL(M)'!$AY27)","v":"n.d."},{"$f":"IF('[1]FISCAL(M)'!$BI27=\"\",\"\",'[1]FISCAL(M)'!$BI27)","v":"n.d."},{"$f":"IF('[1]FISCAL(M)'!$BS27=\"\",\"\",'[1]FISCAL(M)'!$BS27)","v":"n.d."},{"$f":"IF('[1]FISCAL(M)'!$AZ27=\"\",\"\",'[1]FISCAL(M)'!$AZ27)","v":"n.d."},{"$f":"IF('[1]FISCAL(M)'!$BJ27=\"\",\"\",'[1]FISCAL(M)'!$BJ27)","v":"n.d."},{"$f":"IF('[1]FISCAL(M)'!$BT27=\"\",\"\",'[1]FISCAL(M)'!$BT27)","v":"n.d."},{"$f":"IF('[2]MONE(M)'!$AO27=\"\",\"\",'[2]MONE(M)'!$AO27)","v":"n.d."},{"$f":"IF('[3]MONE(M)'!$AO27=\"\",\"\",'[3]MONE(M)'!$AO27)","v":"n.d."},{"$f":"IF('[4]MONE(M)'!$AO27=\"\",\"\",'[4]MONE(M)'!$AO27)","v":"n.d."},{"$f":"+'[5]MONE(M)'!$AO27","v":"n.d."},{"$f":"IF('[6]MONE(M)'!$AO27=\"\",\"\",'[6]MONE(M)'!$AO27)","v":"n.d."},{"$f":"IF('[7]MONE(M)'!$AO27=\"\",\"\",'[7]MONE(M)'!$AO27)","v":"n.d."},{"$f":"IF('[8]MONE(M)'!$AO27=\"\",\"\",'[8]MONE(M)'!$AO27)","v":"n.d."},"n.d.","n.d.","n.d.","n.d.","n.d.","n.d.","n.d.",{"$f":"IF('[1]FISCAL(M)'!$K27=\"\",\"\",'[1]FISCAL(M)'!$K27)","v":"n.d."},"n.d.","n.d.",{"$f":"IF('[1]FISCAL(M)'!$L27=\"\",\"\",'[1]FISCAL(M)'!$L27)","v":"n.d."},"n.d.","n.d.","n.d.","n.d.","n.d.","n.d.","n.d.","n.d.","n.d.","n.d.","n.d.","n.d.","n.d.","n.d.","n.d.","n.d.","n.d.","n.d."]
[1991,"julio","1991-julio",{"$f":"IF('[1]REAL IPC(M)'!$AL28=\"\",\"\",+'[1]REAL IPC(M)'!$AL28)","v":"n.d."},{"$f":"IF('[1]REAL IPC(M)'!$BE28=\"\",\"\",+'[1]REAL IPC(M)'!$BE28)","v":"n.d."},{"$f":"IF('[1]REAL IPC(M)'!$AM28=\"\",\"\",+'[1]REAL IPC(M)'!$AM28)","v":"n.d."},{"$f":"IF('[1]REAL IPC(M)'!$BI28=\"\",\"\",+'[1]REAL IPC(M)'!$BI28)","v":"n.d."},{"$f":"IF('[1]REAL IMAE(M)'!BJ28=\"\",\"\",'[1]REAL IMAE(M)'!BJ28)","v":"n.d."},{"$f":"IF('[1]REAL IMAE(M)'!BK28=\"\",\"\",'[1]REAL IMAE(M)'!BK28)","v":"n.d."},{"$f":"IF('[1]REAL IMAE(M)'!BN28=\"\",\"\",'[1]REAL IMAE(M)'!BN28)","v":"n.d."},{"$f":"IF('[1]REAL IMAE(M)'!BO28=\"\",\"\",'[1]REAL IMAE(M)'!BO28)","v":"n.d."},{"$f":"IF('[1]EXT RIN(M)'!$K28=\"\",\"\",'[1]EXT RIN(M)'!$K28)","v":"n.d."},"",{"$f":"IF('[1]EXT RIN(M)'!$L28=\"\",\"\",'[1]EXT RIN(M)'!$L28)","v":"n.d."},"",{"$f":"IF('[1]MONE(M)CARD'!EG28=\"\",\"\",'[1]MONE(M)CARD'!EG28)","v":"n.d."},{"$f":"IF('[1]MONE(M)CARD'!EK28=\"\",\"\",'[1]MONE(M)CARD'!EK28)","v":"n.d."},{"$f":"IF('[1]MONE(M)CARD'!EP28=\"\",\"\",'[1]MONE(M)CARD'!EP28)","v":"n.d."},{"$f":"IF('[1]MONE(M)CARD'!ES28=\"\",\"\",'[1]MONE(M)CARD'!ES28)","v":"n.d."},{"$f":"IF('[1]MONE(M)CARD'!EV28=\"\",\"\",'[1]MONE(M)CARD'!EV28)","v":"n.d."},{"$f":"IF('[1]MONE(M)CARD'!EZ28=\"\",\"\",'[1]MONE(M)CARD'!EZ28)","v":"n.d."},{"$f":"IF('[1]MONE(M)CAPARD'!FC28=\"\",\"\",'[1]MONE(M)CAPARD'!FC28)","v":"n.d."},{"$f":"IF('[1]MONE(M)CAPARD'!FG28=\"\",\"\",'[1]MONE(M)CAPARD'!FG28)","v":"n.d."},{"$f":"IF('[1]MONE(M)CAPARD'!FL28=\"\",\"\",'[1]MONE(M)CAPARD'!FL28)","v":"n.d."},{"$f":"IF('[1]MONE(M)CAPARD'!FO28=\"\",\"\",'[1]MONE(M)CAPARD'!FO28)","v":"n.d."},{"$f":"IF('[1]MONE(M)CAPARD'!FR28=\"\",\"\",'[1]MONE(M)CAPARD'!FR28)","v":"n.d."},{"$f":"IF('[1]MONE(M)CAPARD'!FV28=\"\",\"\",'[1]MONE(M)CAPARD'!FV28)","v":"n.d."},{"$f":"IF('[1]MONE(M)CARD'!FV28=\"\",\"\",'[1]MONE(M)CARD'!FV28)","v":""},{"$f":"IF('[1]MONE(M)CARD'!GD28=\"\",\"\",'[1]MONE(M)CARD'!GD28)","v":"n.d."},{"$f":"IF('[1]MONE(M)CARD'!GE28=\"\",\"\",'[1]MONE(M)CARD'!GE28)","v":"n.d."},"n.d.","n.d.","n.d.","n.d.","n.d.","n.d.","n.d.","n.d.",null,"n.d.","n.d.","n.d.","n.d.","n.d.",{"$f":"IF('[1]MONE(M)CAPARD'!GS28=\"\",\"\",'[1]MONE(M)CAPARD'!GS28)","v":"n.d."},{"$f":"IF('[1]MONE(M)CARD'!HA28=\"\",\"\",'[1]MONE(M)CAPARD'!HA28)","v":"n.d."},{"$f":"IF('[1]MONE(M)CAPARD'!HB28=\"\",\"\",'[1]MONE(M)CAPARD'!HB28)","v":"n.d."},"n.d.","n.d.","n.d.","n.d.","n.d.","n.d.","n.d.","n.d.","n.d.","n.d.","n.d.","n.d.","n.d.","n.d.",{"$f":"IF('[1]MONE(M)CAPARD'!AS28=\"\",\"\",'[1]MONE(M)CAPARD'!AS28)","v":"n.d."},{"$f":"IF('[1]MONE(M)CAPARD'!AT28=\"\",\"\",'[1]MONE(M)CAPARD'!AT28)","v":"n.a."},{"$f":"IF('[1]MONE(M)CAPARD'!AU28=\"\",\"\",'[1]MONE(M)CAPARD'!AU28)","v":"n.d."},{"$f":"IF('[1]MONE(M)CAPARD'!AV28=\"\",\"\",'[1]MONE(M)CAPARD'!AV28)","v":"n.d."},{"$f":"IF('[1]MONE(M)CAPARD'!AW28=\"\",\"\",'[1]MONE(M)CAPARD'!AW28)","v":"n.a."},{"$f":"IF('[1]MONE(M)CAPARD'!AX28=\"\",\"\",'[1]MONE(M)CAPARD'!AX28)","v":"n.d."},{"$f":"IF('[1]MONE(M)CAPARD'!AY28=\"\",\"\",'[1]MONE(M)CAPARD'!AY28)","v":"n.a."},{"$f":"IF('[1]FISCAL(M)'!$K28=\"\",\"\",'[1]FISCAL(M)'!$K28)","v":"n.d."},{"$f":"IF('[1]FISCAL(M)'!$L28=\"\",\"\",'[1]FISCAL(M)'!$L28)","v":"n.d."},{"$f":"IF('[1]FISCAL(M)'!$AY28=\"\",\"\",'[1]FISCAL(M)'!$AY28)","v":"n.d."},{"$f":"IF('[1]FISCAL(M)'!$BI28=\"\",\"\",'[1]FISCAL(M)'!$BI28)","v":"n.d."},{"$f":"IF('[1]FISCAL(M)'!$BS28=\"\",\"\",'[1]FISCAL(M)'!$BS28)","v":"n.d."},{"$f":"IF('[1]FISCAL(M)'!$AZ28=\"\",\"\",'[1]FISCAL(M)'!$AZ28)","v":"n.d."},{"$f":"IF('[1]FISCAL(M)'!$BJ28=\"\",\"\",'[1]FISCAL(M)'!$BJ28)","v":"n.d."},{"$f":"IF('[1]FISCAL(M)'!$BT28=\"\",\"\",'[1]FISCAL(M)'!$BT28)","v":"n.d."},{"$f":"IF('[2]MONE(M)'!$AO28=\"\",\"\",'[2]MONE(M)'!$AO28)","v":"n.d."},{"$f":"IF('[3]MONE(M)'!$AO28=\"\",\"\",'[3]MONE(M)'!$AO28)","v":"n.d."},{"$f":"IF('[4]MONE(M)'!$AO28=\"\",\"\",'[4]MONE(M)'!$AO28)","v":"n.d."},{"$f":"+'[5]MONE(M)'!$AO28","v":"n.d."},{"$f":"IF('[6]MONE(M)'!$AO28=\"\",\"\",'[6]MONE(M)'!$AO28)","v":"n.d."},{"$f":"IF('[7]MONE(M)'!$AO28=\"\",\"\",'[7]MONE(M)'!$AO28)","v":"n.d."},{"$f":"IF('[8]MONE(M)'!$AO28=\"\",\"\",'[8]MONE(M)'!$AO28)","v":"n.d."},"n.d.","n.d.","n.d.","n.d.","n.d.","n.d.","n.d.",{"$f":"IF('[1]FISCAL(M)'!$K28=\"\",\"\",'[1]FISCAL(M)'!$K28)","v":"n.d."},"n.d.","n.d.",{"$f":"IF('[1]FISCAL(M)'!$L28=\"\",\"\",'[1]FISCAL(M)'!$L28)","v":"n.d."},"n.d.","n.d.","n.d.","n.d.","n.d.","n.d.","n.d.","n.d.","n.d.","n.d.","n.d.","n.d.","n.d.","n.d.","n.d.","n.d.","n.d.","n.d."]
[1991,"agosto","1991-agosto",{"$f":"IF('[1]REAL IPC(M)'!$AL29=\"\",\"\",+'[1]REAL IPC(M)'!$AL29)","v":"n.d."},{"$f":"IF('[1]REAL IPC(M)'!$BE29=\"\",\"\",+'[1]REAL IPC(M)'!$BE29)","v":"n.d."},{"$f":"IF('[1]REAL IPC(M)'!$AM29=\"\",\"\",+'[1]REAL IPC(M)'!$AM29)","v":"n.d."},{"$f":"IF('[1]REAL IPC(M)'!$BI29=\"\",\"\",+'[1]REAL IPC(M)'!$BI29)","v":"n.d."},{"$f":"IF('[1]REAL IMAE(M)'!BJ29=\"\",\"\",'[1]REAL IMAE(M)'!BJ29)","v":"n.d."},{"$f":"IF('[1]REAL IMAE(M)'!BK29=\"\",\"\",'[1]REAL IMAE(M)'!BK29)","v":"n.d."},{"$f":"IF('[1]REAL IMAE(M)'!BN29=\"\",\"\",'[1]REAL IMAE(M)'!BN29)","v":"n.d."},{"$f":"IF('[1]REAL IMAE(M)'!BO29=\"\",\"\",'[1]REAL IMAE(M)'!BO29)","v":"n.d."},{"$f":"IF('[1]EXT RIN(M)'!$K29=\"\",\"\",'[1]EXT RIN(M)'!$K29)","v":"n.d."},"",{"$f":"IF('[1]EXT RIN(M)'!$L29=\"\",\"\",'[1]EXT RIN(M)'!$L29)","v":"n.d."},"",{"$f":"IF('[1]MONE(M)CARD'!EG29=\"\",\"\",'[1]MONE(M)CARD'!EG29)","v":"n.d."},{"$f":"IF('[1]MONE(M)CARD'!EK29=\"\",\"\",'[1]MONE(M)CARD'!EK29)","v":"n.d."},{"$f":"IF('[1]MONE(M)CARD'!EP29=\"\",\"\",'[1]MONE(M)CARD'!EP29)","v":"n.d."},{"$f":"IF('[1]MONE(M)CARD'!ES29=\"\",\"\",'[1]MONE(M)CARD'!ES29)","v":"n.d."},{"$f":"IF('[1]MONE(M)CARD'!EV29=\"\",\"\",'[1]MONE(M)CARD'!EV29)","v":"n.d."},{"$f":"IF('[1]MONE(M)CARD'!EZ29=\"\",\"\",'[1]MONE(M)CARD'!EZ29)","v":"n.d."},{"$f":"IF('[1]MONE(M)CAPARD'!FC29=\"\",\"\",'[1]MONE(M)CAPARD'!FC29)","v":"n.d."},{"$f":"IF('[1]MONE(M)CAPARD'!FG29=\"\",\"\",'[1]MONE(M)CAPARD'!FG29)","v":"n.d."},{"$f":"IF('[1]MONE(M)CAPARD'!FL29=\"\",\"\",'[1]MONE(M)CAPARD'!FL29)","v":"n.d."},{"$f":"IF('[1]MONE(M)CAPARD'!FO29=\"\",\"\",'[1]MONE(M)CAPARD'!FO29)","v":"n.d."},{"$f":"IF('[1]MONE(M)CAPARD'!FR29=\"\",\"\",'[1]MONE(M)CAPARD'!FR29)","v":"n.d."},{"$f":"IF('[1]MONE(M)CAPARD'!FV29=\"\",\"\",'[1]MONE(M)CAPARD'!FV29)","v":"n.d."},{"$f":"IF('[1]MONE(M)CARD'!FV29=\"\",\"\",'[1]MONE(M)CARD'!FV29)","v":""},{"$f":"IF('[1]MONE(M)CARD'!GD29=\"\",\"\",'[1]MONE(M)CARD'!GD29)","v":"n.d."},{"$f":"IF('[1]MONE(M)CARD'!GE29=\"\",\"\",'[1]MONE(M)CARD'!GE29)","v":"n.d."},"n.d.","n.d.","n.d.","n.d.","n.d.","n.d.","n.d.","n.d.",null,"n.d.","n.d.","n.d.","n.d.","n.d.",{"$f":"IF('[1]MONE(M)CAPARD'!GS29=\"\",\"\",'[1]MONE(M)CAPARD'!GS29)","v":"n.d."},{"$f":"IF('[1]MONE(M)CARD'!HA29=\"\",\"\",'[1]MONE(M)CAPARD'!HA29)","v":"n.d."},{"$f":"IF('[1]MONE(M)CAPARD'!HB29=\"\",\"\",'[1]MONE(M)CAPARD'!HB29)","v":"n.d."},"n.d.","n.d.","n.d.","n.d.","n.d.","n.d.","n.d.","n.d.","n.d.","n.d.","n.d.","n.d.","n.d.","n.d.",{"$f":"IF('[1]MONE(M)CAPARD'!AS29=\"\",\"\",'[1]MONE(M)CAPARD'!AS29)","v":"n.d."},{"$f":"IF('[1]MONE(M)CAPARD'!AT29=\"\",\"\",'[1]MONE(M)CAPARD'!AT29)","v":"n.a."},{"$f":"IF('[1]MONE(M)CAPARD'!AU29=\"\",\"\",'[1]MONE(M)CAPARD'!AU29)","v":"n.d."},{"$f":"IF('[1]MONE(M)CAPARD'!AV29=\"\",\"\",'[1]MONE(M)CAPARD'!AV29)","v":"n.d."},{"$f":"IF('[1]MONE(M)CAPARD'!AW29=\"\",\"\",'[1]MONE(M)CAPARD'!AW29)","v":"n.a."},{"$f":"IF('[1]MONE(M)CAPARD'!AX29=\"\",\"\",'[1]MONE(M)CAPARD'!AX29)","v":"n.d."},{"$f":"IF('[1]MONE(M)CAPARD'!AY29=\"\",\"\",'[1]MONE(M)CAPARD'!AY29)","v":"n.a."},{"$f":"IF('[1]FISCAL(M)'!$K29=\"\",\"\",'[1]FISCAL(M)'!$K29)","v":"n.d."},{"$f":"IF('[1]FISCAL(M)'!$L29=\"\",\"\",'[1]FISCAL(M)'!$L29)","v":"n.d."},{"$f":"IF('[1]FISCAL(M)'!$AY29=\"\",\"\",'[1]FISCAL(M)'!$AY29)","v":"n.d."},{"$f":"IF('[1]FISCAL(M)'!$BI29=\"\",\"\",'[1]FISCAL(M)'!$BI29)","v":"n.d."},{"$f":"IF('[1]FISCAL(M)'!$BS29=\"\",\"\",'[1]FISCAL(M)'!$BS29)","v":"n.d."},{"$f":"IF('[1]FISCAL(M)'!$AZ29=\"\",\"\",'[1]FISCAL(M)'!$AZ29)","v":"n.d."},{"$f":"IF('[1]FISCAL(M)'!$BJ29=\"\",\"\",'[1]FISCAL(M)'!$BJ29)","v":"n.d."},{"$f":"IF('[1]FISCAL(M)'!$BT29=\"\",\"\",'[1]FISCAL(M)'!$BT29)","v":"n.d."},{"$f":"IF('[2]MONE(M)'!$AO29=\"\",\"\",'[2]MONE(M)'!$AO29)","v":"n.d."},{"$f":"IF('[3]MONE(M)'!$AO29=\"\",\"\",'[3]MONE(M)'!$AO29)","v":"n.d."},{"$f":"IF('[4]MONE(M)'!$AO29=\"\",\"\",'[4]MONE(M)'!$AO29)","v":"n.d."},{"$f":"+'[5]MONE(M)'!$AO29","v":"n.d."},{"$f":"IF('[6]MONE(M)'!$AO29=\"\",\"\",'[6]MONE(M)'!$AO29)","v":"n.d."},{"$f":"IF('[7]MONE(M)'!$AO29=\"\",\"\",'[7]MONE(M)'!$AO29)","v":"n.d."},{"$f":"IF('[8]MONE(M)'!$AO29=\"\",\"\",'[8]MONE(M)'!$AO29)","v":"n.d."},"n.d.","n.d.","n.d.","n.d.","n.d.","n.d.","n.d.",{"$f":"IF('[1]FISCAL(M)'!$K29=\"\",\"\",'[1]FISCAL(M)'!$K29)","v":"n.d."},"n.d.","n.d.",{"$f":"IF('[1]FISCAL(M)'!$L29=\"\",\"\",'[1]FISCAL(M)'!$L29)","v":"n.d."},"n.d.","n.d.","n.d.","n.d.","n.d.","n.d.","n.d.","n.d.","n.d.","n.d.","n.d.","n.d.","n.d.","n.d.","n.d.","n.d.","n.d.","n.d."]
[1991,"septiembre","1991-septiembre",{"$f":"IF('[1]REAL IPC(M)'!$AL30=\"\",\"\",+'[1]REAL IPC(M)'!$AL30)","v":"n.d."},{"$f":"IF('[1]REAL IPC(M)'!$BE30=\"\",\"\",+'[1]REAL IPC(M)'!$BE30)","v":"n.d."},{"$f":"IF('[1]REAL IPC(M)'!$AM30=\"\",\"\",+'[1]REAL IPC(M)'!$AM30)","v":"n.d."},{"$f":"IF('[1]REAL IPC(M)'!$BI30=\"\",\"\",+'[1]REAL IPC(M)'!$BI30)","v":"n.d."},{"$f":"IF('[1]REAL IMAE(M)'!BJ30=\"\",\"\",'[1]REAL IMAE(M)'!BJ30)","v":"n.d."},{"$f":"IF('[1]REAL IMAE(M)'!BK30=\"\",\"\",'[1]REAL IMAE(M)'!BK30)","v":"n.d."},{"$f":"IF('[1]REAL IMAE(M)'!BN30=\"\",\"\",'[1]REAL IMAE(M)'!BN30)","v":"n.d."},{"$f":"IF('[1]REAL IMAE(M)'!BO30=\"\",\"\",'[1]REAL IMAE(M)'!BO30)","v":"n.d."},{"$f":"IF('[1]EXT RIN(M)'!$K30=\"\",\"\",'[1]EXT RIN(M)'!$K30)","v":"n.d."},"",{"$f":"IF('[1]EXT RIN(M)'!$L30=\"\",\"\",'[1]EXT RIN(M)'!$L30)","v":"n.d."},"",{"$f":"IF('[1]MONE(M)CARD'!EG30=\"\",\"\",'[1]MONE(M)CARD'!EG30)","v":"n.d."},{"$f":"IF('[1]MONE(M)CARD'!EK30=\"\",\"\",'[1]MONE(M)CARD'!EK30)","v":"n.d."},{"$f":"IF('[1]MONE(M)CARD'!EP30=\"\",\"\",'[1]MONE(M)CARD'!EP30)","v":"n.d."},{"$f":"IF('[1]MONE(M)CARD'!ES30=\"\",\"\",'[1]MONE(M)CARD'!ES30)","v":"n.d."},{"$f":"IF('[1]MONE(M)CARD'!EV30=\"\",\"\",'[1]MONE(M)CARD'!EV30)","v":"n.d."},{"$f":"IF('[1]MONE(M)CARD'!EZ30=\"\",\"\",'[1]MONE(M)CARD'!EZ30)","v":"n.d."},{"$f":"IF('[1]MONE(M)CAPARD'!FC30=\"\",\"\",'[1]MONE(M)CAPARD'!FC30)","v":"n.d."},{"$f":"IF('[1]MONE(M)CAPARD'!FG30=\"\",\"\",'[1]MONE(M)CAPARD'!FG30)","v":"n.d."},{"$f":"IF('[1]MONE(M)CAPARD'!FL30=\"\",\"\",'[1]MONE(M)CAPARD'!FL30)","v":"n.d."},{"$f":"IF('[1]MONE(M)CAPARD'!FO30=\"\",\"\",'[1]MONE(M)CAPARD'!FO30)","v":"n.d."},{"$f":"IF('[1]MONE(M)CAPARD'!FR30=\"\",\"\",'[1]MONE(M)CAPARD'!FR30)","v":"n.d."},{"$f":"IF('[1]MONE(M)CAPARD'!FV30=\"\",\"\",'[1]MONE(M)CAPARD'!FV30)","v":"n.d."},{"$f":"IF('[1]MONE(M)CARD'!FV30=\"\",\"\",'[1]MONE(M)CARD'!FV30)","v":""},{"$f":"IF('[1]MONE(M)CARD'!GD30=\"\",\"\",'[1]MONE(M)CARD'!GD30)","v":"n.d."},{"$f":"IF('[1]MONE(M)CARD'!GE30=\"\",\"\",'[1]MONE(M)CARD'!GE30)","v":"n.d."},"n.d.","n.d.","n.d.","n.d.","n.d.","n.d.","n.d.","n.d.",null,"n.d.","n.d.","n.d.","n.d.","n.d.",{"$f":"IF('[1]MONE(M)CAPARD'!GS30=\"\",\"\",'[1]MONE(M)CAPARD'!GS30)","v":"n.d."},{"$f":"IF('[1]MONE(M)CARD'!HA30=\"\",\"\",'[1]MONE(M)CAPARD'!HA30)","v":"n.d."},{"$f":"IF('[1]MONE(M)CAPARD'!HB30=\"\",\"\",'[1]MONE(M)CAPARD'!HB30)","v":"n.d."},"n.d.","n.d.","n.d.","n.d.","n.d.","n.d.","n.d.","n.d.","n.d.","n.d.","n.d.","n.d.","n.d.","n.d.",{"$f":"IF('[1]MONE(M)CAPARD'!AS30=\"\",\"\",'[1]MONE(M)CAPARD'!AS30)","v":"n.d."},{"$f":"IF('[1]MONE(M)CAPARD'!AT30=\"\",\"\",'[1]MONE(M)CAPARD'!AT30)","v":"n.a."},{"$f":"IF('[1]MONE(M)CAPARD'!AU30=\"\",\"\",'[1]MONE(M)CAPARD'!AU30)","v":"n.d."},{"$f":"IF('[1]MONE(M)CAPARD'!AV30=\"\",\"\",'[1]MONE(M)CAPARD'!AV30)","v":"n.d."},{"$f":"IF('[1]MONE(M)CAPARD'!AW30=\"\",\"\",'[1]MONE(M)CAPARD'!AW30)","v":"n.a."},{"$f":"IF('[1]MONE(M)CAPARD'!AX30=\"\",\"\",'[1]MONE(M)CAPARD'!AX30)","v":"n.d."},{"$f":"IF('[1]MONE(M)CAPARD'!AY30=\"\",\"\",'[1]MONE(M)CAPARD'!AY30)","v":"n.a."},{"$f":"IF('[1]FISCAL(M)'!$K30=\"\",\"\",'[1]FISCAL(M)'!$K30)","v":"n.d."},{"$f":"IF('[1]FISCAL(M)'!$L30=\"\",\"\",'[1]FISCAL(M)'!$L30)","v":"n.d."},{"$f":"IF('[1]FISCAL(M)'!$AY30=\"\",\"\",'[1]FISCAL(M)'!$AY30)","v":"n.d."},{"$f":"IF('[1]FISCAL(M)'!$BI30=\"\",\"\",'[1]FISCAL(M)'!$BI30)","v":"n.d."},{"$f":"IF('[1]FISCAL(M)'!$BS30=\"\",\"\",'[1]FISCAL(M)'!$BS30)","v":"n.d."},{"$f":"IF('[1]FISCAL(M)'!$AZ30=\"\",\"\",'[1]FISCAL(M)'!$AZ30)","v":"n.d."},{"$f":"IF('[1]FISCAL(M)'!$BJ30=\"\",\"\",'[1]FISCAL(M)'!$BJ30)","v":"n.d."},{"$f":"IF('[1]FISCAL(M)'!$BT30=\"\",\"\",'[1]FISCAL(M)'!$BT30)","v":"n.d."},{"$f":"IF('[2]MONE(M)'!$AO30=\"\",\"\",'[2]MONE(M)'!$AO30)","v":"n.d."},{"$f":"IF('[3]MONE(M)'!$AO30=\"\",\"\",'[3]MONE(M)'!$AO30)","v":"n.d."},{"$f":"IF('[4]MONE(M)'!$AO30=\"\",\"\",'[4]MONE(M)'!$AO30)","v":"n.d."},{"$f":"+'[5]MONE(M)'!$AO30","v":"n.d."},{"$f":"IF('[6]MONE(M)'!$AO30=\"\",\"\",'[6]MONE(M)'!$AO30)","v":"n.d."},{"$f":"IF('[7]MONE(M)'!$AO30=\"\",\"\",'[7]MONE(M)'!$AO30)","v":"n.d."},{"$f":"IF('[8]MONE(M)'!$AO30=\"\",\"\",'[8]MONE(M)'!$AO30)","v":"n.d."},"n.d.","n.d.","n.d.","n.d.","n.d.","n.d.","n.d.",{"$f":"IF('[1]FISCAL(M)'!$K30=\"\",\"\",'[1]FISCAL(M)'!$K30)","v":"n.d."},"n.d.","n.d.",{"$f":"IF('[1]FISCAL(M)'!$L30=\"\",\"\",'[1]FISCAL(M)'!$L30)","v":"n.d."},"n.d.","n.d.","n.d.","n.d.","n.d.","n.d.","n.d.","n.d.","n.d.","n.d.","n.d.","n.d.","n.d.","n.d.","n.d.","n.d.","n.d.","n.d."]
[1991,"octubre","1991-octubre",{"$f":"IF('[1]REAL IPC(M)'!$AL31=\"\",\"\",+'[1]REAL IPC(M)'!$AL31)","v":"n.d."},{"$f":"IF('[1]REAL IPC(M)'!$BE31=\"\",\"\",+'[1]REAL IPC(M)'!$BE31)","v":"n.d."},{"$f":"IF('[1]REAL IPC(M)'!$AM31=\"\",\"\",+'[1]REAL IPC(M)'!$AM31)","v":"n.d."},{"$f":"IF('[1]REAL IPC(M)'!$BI31=\"\",\"\",+'[1]REAL IPC(M)'!$BI31)","v":"n.d."},{"$f":"IF('[1]REAL IMAE(M)'!BJ31=\"\",\"\",'[1]REAL IMAE(M)'!BJ31)","v":"n.d."},{"$f":"IF('[1]REAL IMAE(M)'!BK31=\"\",\"\",'[1]REAL IMAE(M)'!BK31)","v":"n.d."},{"$f":"IF('[1]REAL IMAE(M)'!BN31=\"\",\"\",'[1]REAL IMAE(M)'!BN31)","v":"n.d."},{"$f":"IF('[1]REAL IMAE(M)'!BO31=\"\",\"\",'[1]REAL IMAE(M)'!BO31)","v":"n.d."},{"$f":"IF('[1]EXT RIN(M)'!$K31=\"\",\"\",'[1]EXT RIN(M)'!$K31)","v":"n.d."},"",{"$f":"IF('[1]EXT RIN(M)'!$L31=\"\",\"\",'[1]EXT RIN(M)'!$L31)","v":"n.d."},"",{"$f":"IF('[1]MONE(M)CARD'!EG31=\"\",\"\",'[1]MONE(M)CARD'!EG31)","v":"n.d."},{"$f":"IF('[1]MONE(M)CARD'!EK31=\"\",\"\",'[1]MONE(M)CARD'!EK31)","v":"n.d."},{"$f":"IF('[1]MONE(M)CARD'!EP31=\"\",\"\",'[1]MONE(M)CARD'!EP31)","v":"n.d."},{"$f":"IF('[1]MONE(M)CARD'!ES31=\"\",\"\",'[1]MONE(M)CARD'!ES31)","v":"n.d."},{"$f":"IF('[1]MONE(M)CARD'!EV31=\"\",\"\",'[1]MONE(M)CARD'!EV31)","v":"n.d."},{"$f":"IF('[1]MONE(M)CARD'!EZ31=\"\",\"\",'[1]MONE(M)CARD'!EZ31)","v":"n.d."},{"$f":"IF('[1]MONE(M)CAPARD'!FC31=\"\",\"\",'[1]MONE(M)CAPARD'!FC31)","v":"n.d."},{"$f":"IF('[1]MONE(M)CAPARD'!FG31=\"\",\"\",'[1]MONE(M)CAPARD'!FG31)","v":"n.d."},{"$f":"IF('[1]MONE(M)CAPARD'!FL31=\"\",\"\",'[1]MONE(M)CAPARD'!FL31)","v":"n.d."},{"$f":"IF('[1]MONE(M)CAPARD'!FO31=\"\",\"\",'[1]MONE(M)CAPARD'!FO31)","v":"n.d."},{"$f":"IF('[1]MONE(M)CAPARD'!FR31=\"\",\"\",'[1]MONE(M)CAPARD'!FR31)","v":"n.d."},{"$f":"IF('[1]MONE(M)CAPARD'!FV31=\"\",\"\",'[1]MONE(M)CAPARD'!FV31)","v":"n.d."},{"$f":"IF('[1]MONE(M)CARD'!FV31=\"\",\"\",'[1]MONE(M)CARD'!FV31)","v":""},{"$f":"IF('[1]MONE(M)CARD'!GD31=\"\",\"\",'[1]MONE(M)CARD'!GD31)","v":"n.d."},{"$f":"IF('[1]MONE(M)CARD'!GE31=\"\",\"\",'[1]MONE(M)CARD'!GE31)","v":"n.d."},"n.d.","n.d.","n.d.","n.d.","n.d.","n.d.","n.d.","n.d.",null,"n.d.","n.d.","n.d.","n.d.","n.d.",{"$f":"IF('[1]MONE(M)CAPARD'!GS31=\"\",\"\",'[1]MONE(M)CAPARD'!GS31)","v":"n.d."},{"$f":"IF('[1]MONE(M)CARD'!HA31=\"\",\"\",'[1]MONE(M)CAPARD'!HA31)","v":"n.d."},{"$f":"IF('[1]MONE(M)CAPARD'!HB31=\"\",\"\",'[1]MONE(M)CAPARD'!HB31)","v":"n.d."},"n.d.","n.d.","n.d.","n.d.","n.d.","n.d.","n.d.","n.d.","n.d.","n.d.","n.d.","n.d.","n.d.","n.d.",{"$f":"IF('[1]MONE(M)CAPARD'!AS31=\"\",\"\",'[1]MONE(M)CAPARD'!AS31)","v":"n.d."},{"$f":"IF('[1]MONE(M)CAPARD'!AT31=\"\",\"\",'[1]MONE(M)CAPARD'!AT31)","v":"n.a."},{"$f":"IF('[1]MONE(M)CAPARD'!AU31=\"\",\"\",'[1]MONE(M)CAPARD'!AU31)","v":"n.d."},{"$f":"IF('[1]MONE(M)CAPARD'!AV31=\"\",\"\",'[1]MONE(M)CAPARD'!AV31)","v":"n.d."},{"$f":"IF('[1]MONE(M)CAPARD'!AW31=\"\",\"\",'[1]MONE(M)CAPARD'!AW31)","v":"n.a."},{"$f":"IF('[1]MONE(M)CAPARD'!AX31=\"\",\"\",'[1]MONE(M)CAPARD'!AX31)","v":"n.d."},{"$f":"IF('[1]MONE(M)CAPARD'!AY31=\"\",\"\",'[1]MONE(M)CAPARD'!AY31)","v":"n.a."},{"$f":"IF('[1]FISCAL(M)'!$K31=\"\",\"\",'[1]FISCAL(M)'!$K31)","v":"n.d."},{"$f":"IF('[1]FISCAL(M)'!$L31=\"\",\"\",'[1]FISCAL(M)'!$L31)","v":"n.d."},{"$f":"IF('[1]FISCAL(M)'!$AY31=\"\",\"\",'[1]FISCAL(M)'!$AY31)","v":"n.d."},{"$f":"IF('[1]FISCAL(M)'!$BI31=\"\",\"\",'[1]FISCAL(M)'!$BI31)","v":"n.d."},{"$f":"IF('[1]FISCAL(M)'!$BS31=\"\",\"\",'[1]FISCAL(M)'!$BS31)","v":"n.d."},{"$f":"IF('[1]FISCAL(M)'!$AZ31=\"\",\"\",'[1]FISCAL(M)'!$AZ31)","v":"n.d."},{"$f":"IF('[1]FISCAL(M)'!$BJ31=\"\",\"\",'[1]FISCAL(M)'!$BJ31)","v":"n.d."},{"$f":"IF('[1]FISCAL(M)'!$BT31=\"\",\"\",'[1]FISCAL(M)'!$BT31)","v":"n.d."},{"$f":"IF('[2]MONE(M)'!$AO31=\"\",\"\",'[2]MONE(M)'!$AO31)","v":"n.d."},{"$f":"IF('[3]MONE(M)'!$AO31=\"\",\"\",'[3]MONE(M)'!$AO31)","v":"n.d."},{"$f":"IF('[4]MONE(M)'!$AO31=\"\",\"\",'[4]MONE(M)'!$AO31)","v":"n.d."},{"$f":"+'[5]MONE(M)'!$AO31","v":"n.d."},{"$f":"IF('[6]MONE(M)'!$AO31=\"\",\"\",'[6]MONE(M)'!$AO31)","v":"n.d."},{"$f":"IF('[7]MONE(M)'!$AO31=\"\",\"\",'[7]MONE(M)'!$AO31)","v":"n.d."},{"$f":"IF('[8]MONE(M)'!$AO31=\"\",\"\",'[8]MONE(M)'!$AO31)","v":"n.d."},"n.d.","n.d.","n.d.","n.d.","n.d.","n.d.","n.d.",{"$f":"IF('[1]FISCAL(M)'!$K31=\"\",\"\",'[1]FISCAL(M)'!$K31)","v":"n.d."},"n.d.","n.d.",{"$f":"IF('[1]FISCAL(M)'!$L31=\"\",\"\",'[1]FISCAL(M)'!$L31)","v":"n.d."},"n.d.","n.d.","n.d.","n.d.","n.d.","n.d.","n.d.","n.d.","n.d.","n.d.","n.d.","n.d.","n.d.","n.d.","n.d.","n.d.","n.d.","n.d."]
[1991,"noviembre","1991-noviembre",{"$f":"IF('[1]REAL IPC(M)'!$AL32=\"\",\"\",+'[1]REAL IPC(M)'!$AL32)","v":"n.d."},{"$f":"IF('[1]REAL IPC(M)'!$BE32=\"\",\"\",+'[1]REAL IPC(M)'!$BE32)","v":"n.d."},{"$f":"IF('[1]REAL IPC(M)'!$AM32=\"\",\"\",+'[1]REAL IPC(M)'!$AM32)","v":"n.d."},{"$f":"IF('[1]REAL IPC(M)'!$BI32=\"\",\"\",+'[1]REAL IPC(M)'!$BI32)","v":"n.d."},{"$f":"IF('[1]REAL IMAE(M)'!BJ32=\"\",\"\",'[1]REAL IMAE(M)'!BJ32)","v":"n.d."},{"$f":"IF('[1]REAL IMAE(M)'!BK32=\"\",\"\",'[1]REAL IMAE(M)'!BK32)","v":"n.d."},{"$f":"IF('[1]REAL IMAE(M)'!BN32=\"\",\"\",'[1]REAL IMAE(M)'!BN32)","v":"n.d."},{"$f":"IF('[1]REAL IMAE(M)'!BO32=\"\",\"\",'[1]REAL IMAE(M)'!BO32)","v":"n.d."},{"$f":"IF('[1]EXT RIN(M)'!$K32=\"\",\"\",'[1]EXT RIN(M)'!$K32)","v":"n.d."},"",{"$f":"IF('[1]EXT RIN(M)'!$L32=\"\",\"\",'[1]EXT RIN(M)'!$L32)","v":"n.d."},"",{"$f":"IF('[1]MONE(M)CARD'!EG32=\"\",\"\",'[1]MONE(M)CARD'!EG32)","v":"n.d."},{"$f":"IF('[1]MONE(M)CARD'!EK32=\"\",\"\",'[1]MONE(M)CARD'!EK32)","v":"n.d."},{"$f":"IF('[1]MONE(M)CARD'!EP32=\"\",\"\",'[1]MONE(M)CARD'!EP32)","v":"n.d."},{"$f":"IF('[1]MONE(M)CARD'!ES32=\"\",\"\",'[1]MONE(M)CARD'!ES32)","v":"n.d."},{"$f":"IF('[1]MONE(M)CARD'!EV32=\"\",\"\",'[1]MONE(M)CARD'!EV32)","v":"n.d."},{"$f":"IF('[1]MONE(M)CARD'!EZ32=\"\",\"\",'[1]MONE(M)CARD'!EZ32)","v":"n.d."},{"$f":"IF('[1]MONE(M)CAPARD'!FC32=\"\",\"\",'[1]MONE(M)CAPARD'!FC32)","v":"n.d."},{"$f":"IF('[1]MONE(M)CAPARD'!FG32=\"\",\"\",'[1]MONE(M)CAPARD'!FG32)","v":"n.d."},{"$f":"IF('[1]MONE(M)CAPARD'!FL32=\"\",\"\",'[1]MONE(M)CAPARD'!FL32)","v":"n.d."},{"$f":"IF('[1]MONE(M)CAPARD'!FO32=\"\",\"\",'[1]MONE(M)CAPARD'!FO32)","v":"n.d."},{"$f":"IF('[1]MONE(M)CAPARD'!FR32=\"\",\"\",'[1]MONE(M)CAPARD'!FR32)","v":"n.d."},{"$f":"IF('[1]MONE(M)CAPARD'!FV32=\"\",\"\",'[1]MONE(M)CAPARD'!FV32)","v":"n.d."},{"$f":"IF('[1]MONE(M)CARD'!FV32=\"\",\"\",'[1]MONE(M)CARD'!FV32)","v":""},{"$f":"IF('[1]MONE(M)CARD'!GD32=\"\",\"\",'[1]MONE(M)CARD'!GD32)","v":"n.d."},{"$f":"IF('[1]MONE(M)CARD'!GE32=\"\",\"\",'[1]MONE(M)CARD'!GE32)","v":"n.d."},"n.d.","n.d.","n.d.","n.d.","n.d.","n.d.","n.d.","n.d.",null,"n.d.","n.d.","n.d.","n.d.","n.d.",{"$f":"IF('[1]MONE(M)CAPARD'!GS32=\"\",\"\",'[1]MONE(M)CAPARD'!GS32)","v":"n.d."},{"$f":"IF('[1]MONE(M)CARD'!HA32=\"\",\"\",'[1]MONE(M)CAPARD'!HA32)","v":"n.d."},{"$f":"IF('[1]MONE(M)CAPARD'!HB32=\"\",\"\",'[1]MONE(M)CAPARD'!HB32)","v":"n.d."},"n.d.","n.d.","n.d.","n.d.","n.d.","n.d.","n.d.","n.d.","n.d.","n.d.","n.d.","n.d.","n.d.","n.d.",{"$f":"IF('[1]MONE(M)CAPARD'!AS32=\"\",\"\",'[1]MONE(M)CAPARD'!AS32)","v":"n.d."},{"$f":"IF('[1]MONE(M)CAPARD'!AT32=\"\",\"\",'[1]MONE(M)CAPARD'!AT32)","v":"n.a."},{"$f":"IF('[1]MONE(M)CAPARD'!AU32=\"\",\"\",'[1]MONE(M)CAPARD'!AU32)","v":"n.d."},{"$f":"IF('[1]MONE(M)CAPARD'!AV32=\"\",\"\",'[1]MONE(M)CAPARD'!AV32)","v":"n.d."},{"$f":"IF('[1]MONE(M)CAPARD'!AW32=\"\",\"\",'[1]MONE(M)CAPARD'!AW32)","v":"n.a."},{"$f":"IF('[1]MONE(M)CAPARD'!AX32=\"\",\"\",'[1]MONE(M)CAPARD'!AX32)","v":"n.d."},{"$f":"IF('[1]MONE(M)CAPARD'!AY32=\"\",\"\",'[1]MONE(M)CAPARD'!AY32)","v":"n.a."},{"$f":"IF('[1]FISCAL(M)'!$K32=\"\",\"\",'[1]FISCAL(M)'!$K32)","v":"n.d."},{"$f":"IF('[1]FISCAL(M)'!$L32=\"\",\"\",'[1]FISCAL(M)'!$L32)","v":"n.d."},{"$f":"IF('[1]FISCAL(M)'!$AY32=\"\",\"\",'[1]FISCAL(M)'!$AY32)","v":"n.d."},{"$f":"IF('[1]FISCAL(M)'!$BI32=\"\",\"\",'[1]FISCAL(M)'!$BI32)","v":"n.d."},{"$f":"IF('[1]FISCAL(M)'!$BS32=\"\",\"\",'[1]FISCAL(M)'!$BS32)","v":"n.d."},{"$f":"IF('[1]FISCAL(M)'!$AZ32=\"\",\"\",'[1]FISCAL(M)'!$AZ32)","v":"n.d."},{"$f":"IF('[1]FISCAL(M)'!$BJ32=\"\",\"\",'[1]FISCAL(M)'!$BJ32)","v":"n.d."},{"$f":"IF('[1]FISCAL(M)'!$BT32=\"\",\"\",'[1]FISCAL(M)'!$BT32)","v":"n.d."},{"$f":"IF('[2]MONE(M)'!$AO32=\"\",\"\",'[2]MONE(M)'!$AO32)","v":"n.d."},{"$f":"IF('[3]MONE(M)'!$AO32=\"\",\"\",'[3]MONE(M)'!$AO32)","v":"n.d."},{"$f":"IF('[4]MONE(M)'!$AO32=\"\",\"\",'[4]MONE(M)'!$AO32)","v":"n.d."},{"$f":"+'[5]MONE(M)'!$AO32","v":"n.d."},{"$f":"IF('[6]MONE(M)'!$AO32=\"\",\"\",'[6]MONE(M)'!$AO32)","v":"n.d."},{"$f":"IF('[7]MONE(M)'!$AO32=\"\",\"\",'[7]MONE(M)'!$AO32)","v":"n.d."},{"$f":"IF('[8]MONE(M)'!$AO32=\"\",\"\",'[8]MONE(M)'!$AO32)","v":"n.d."},"n.d.","n.d.","n.d.","n.d.","n.d.","n.d.","n.d.",{"$f":"IF('[1]FISCAL(M)'!$K32=\"\",\"\",'[1]FISCAL(M)'!$K32)","v":"n.d."},"n.d.","n.d.",{"$f":"IF('[1]FISCAL(M)'!$L32=\"\",\"\",'[1]FISCAL(M)'!$L32)","v":"n.d."},"n.d.","n.d.","n.d.","n.d.","n.d.","n.d.","n.d.","n.d.","n.d.","n.d.","n.d.","n.d.","n.d.","n.d.","n.d.","n.d.","n.d.","n.d."]
[1991,"diciembre","1991-diciembre",{"$f":"IF('[1]REAL IPC(M)'!$AL33=\"\",\"\",+'[1]REAL IPC(M)'!$AL33)","v":"n.d."},{"$f":"IF('[1]REAL IPC(M)'!$BE33=\"\",\"\",+'[1]REAL IPC(M)'!$BE33)","v":"n.d."},{"$f":"IF('[1]REAL IPC(M)'!$AM33=\"\",\"\",+'[1]REAL IPC(M)'!$AM33)","v":"n.d."},{"$f":"IF('[1]REAL IPC(M)'!$BI33=\"\",\"\",+'[1]REAL IPC(M)'!$BI33)","v":"n.d."},{"$f":"IF('[1]REAL IMAE(M)'!BJ33=\"\",\"\",'[1]REAL IMAE(M)'!BJ33)","v":"n.d."},{"$f":"IF('[1]REAL IMAE(M)'!BK33=\"\",\"\",'[1]REAL IMAE(M)'!BK33)","v":"n.d."},{"$f":"IF('[1]REAL IMAE(M)'!BN33=\"\",\"\",'[1]REAL IMAE(M)'!BN33)","v":"n.d."},{"$f":"IF('[1]REAL IMAE(M)'!BO33=\"\",\"\",'[1]REAL IMAE(M)'!BO33)","v":"n.d."},{"$f":"IF('[1]EXT RIN(M)'!$K33=\"\",\"\",'[1]EXT RIN(M)'!$K33)","v":"n.d."},"n.d.",{"$f":"IF('[1]EXT RIN(M)'!$L33=\"\",\"\",'[1]EXT RIN(M)'!$L33)","v":"n.d."},"n.d.",{"$f":"IF('[1]MONE(M)CARD'!EG33=\"\",\"\",'[1]MONE(M)CARD'!EG33)","v":"n.d."},{"$f":"IF('[1]MONE(M)CARD'!EK33=\"\",\"\",'[1]MONE(M)CARD'!EK33)","v":"n.d."},{"$f":"IF('[1]MONE(M)CARD'!EP33=\"\",\"\",'[1]MONE(M)CARD'!EP33)","v":"n.d."},{"$f":"IF('[1]MONE(M)CARD'!ES33=\"\",\"\",'[1]MONE(M)CARD'!ES33)","v":"n.d."},{"$f":"IF('[1]MONE(M)CARD'!EV33=\"\",\"\",'[1]MONE(M)CARD'!EV33)","v":"n.d."},{"$f":"IF('[1]MONE(M)CARD'!EZ33=\"\",\"\",'[1]MONE(M)CARD'!EZ33)","v":"n.d."},{"$f":"IF('[1]MONE(M)CAPARD'!FC33=\"\",\"\",'[1]MONE(M)CAPARD'!FC33)","v":"n.d."},{"$f":"IF('[1]MONE(M)CAPARD'!FG33=\"\",\"\",'[1]MONE(M)CAPARD'!FG33)","v":"n.d."},{"$f":"IF('[1]MONE(M)CAPARD'!FL33=\"\",\"\",'[1]MONE(M)CAPARD'!FL33)","v":"n.d."},{"$f":"IF('[1]MONE(M)CAPARD'!FO33=\"\",\"\",'[1]MONE(M)CAPARD'!FO33)","v":"n.d."},{"$f":"IF('[1]MONE(M)CAPARD'!FR33=\"\",\"\",'[1]MONE(M)CAPARD'!FR33)","v":"n.d."},{"$f":"IF('[1]MONE(M)CAPARD'!FV33=\"\",\"\",'[1]MONE(M)CAPARD'!FV33)","v":"n.d."},{"$f":"IF('[1]MONE(M)CARD'!FV33=\"\",\"\",'[1]MONE(M)CARD'!FV33)","v":""},{"$f":"IF('[1]MONE(M)CARD'!GD33=\"\",\"\",'[1]MONE(M)CARD'!GD33)","v":"n.d."},{"$f":"IF('[1]MONE(M)CARD'!GE33=\"\",\"\",'[1]MONE(M)CARD'!GE33)","v":"n.d."},"n.d.","n.d.","n.d.","n.d.","n.d.","n.d.","n.d.","n.d.",null,"n.d.","n.d.","n.d.","n.d.","n.d.",{"$f":"IF('[1]MONE(M)CAPARD'!GS33=\"\",\"\",'[1]MONE(M)CAPARD'!GS33)","v":"n.d."},{"$f":"IF('[1]MONE(M)CARD'!HA33=\"\",\"\",'[1]MONE(M)CAPARD'!HA33)","v":"n.d."},{"$f":"IF('[1]MONE(M)CAPARD'!HB33=\"\",\"\",'[1]MONE(M)CAPARD'!HB33)","v":"n.d."},"n.d.","n.d.","n.d.","n.d.","n.d.","n.d.","n.d.","n.d.","n.d.","n.d.","n.d.","n.d.","n.d.","n.d.",{"$f":"IF('[1]MONE(M)CAPARD'!AS33=\"\",\"\",'[1]MONE(M)CAPARD'!AS33)","v":"n.d."},{"$f":"IF('[1]MONE(M)CAPARD'!AT33=\"\",\"\",'[1]MONE(M)CAPARD'!AT33)","v":"n.a."},{"$f":"IF('[1]MONE(M)CAPARD'!AU33=\"\",\"\",'[1]MONE(M)CAPARD'!AU33)","v":"n.d."},{"$f":"IF('[1]MONE(M)CAPARD'!AV33=\"\",\"\",'[1]MONE(M)CAPARD'!AV33)","v":"n.d."},{"$f":"IF('[1]MONE(M)CAPARD'!AW33=\"\",\"\",'[1]MONE(M)CAPARD'!AW33)","v":"n.a."},{"$f":"IF('[1]MONE(M)CAPARD'!AX33=\"\",\"\",'[1]MONE(M)CAPARD'!AX33)","v":"n.d."},{"$f":"IF('[1]MONE(M)CAPARD'!AY33=\"\",\"\",'[1]MONE(M)CAPARD'!AY33)","v":"n.a."},{"$f":"IF('[1]FISCAL(M)'!$K33=\"\",\"\",'[1]FISCAL(M)'!$K33)","v":"n.d."},{"$f":"IF('[1]FISCAL(M)'!$L33=\"\",\"\",'[1]FISCAL(M)'!$L33)","v":"n.d."},{"$f":"IF('[1]FISCAL(M)'!$AY33=\"\",\"\",'[1]FISCAL(M)'!$AY33)","v":"n.d."},{"$f":"IF('[1]FISCAL(M)'!$BI33=\"\",\"\",'[1]FISCAL(M)'!$BI33)","v":"n.d."},{"$f":"IF('[1]FISCAL(M)'!$BS33=\"\",\"\",'[1]FISCAL(M)'!$BS33)","v":"n.d."},{"$f":"IF('[1]FISCAL(M)'!$AZ33=\"\",\"\",'[1]FISCAL(M)'!$AZ33)","v":"n.d."},{"$f":"IF('[1]FISCAL(M)'!$BJ33=\"\",\"\",'[1]FISCAL(M)'!$BJ33)","v":"n.d."},{"$f":"IF('[1]FISCAL(M)'!$BT33=\"\",\"\",'[1]FISCAL(M)'!$BT33)","v":"n.d."},{"$f":"IF('[2]MONE(M)'!$AO33=\"\",\"\",'[2]MONE(M)'!$AO33)","v":"n.d."},{"$f":"IF('[3]MONE(M)'!$AO33=\"\",\"\",'[3]MONE(M)'!$AO33)","v":"n.d."},{"$f":"IF('[4]MONE(M)'!$AO33=\"\",\"\",'[4]MONE(M)'!$AO33)","v":"n.d."},{"$f":"+'[5]MONE(M)'!$AO33","v":"n.d."},{"$f":"IF('[6]MONE(M)'!$AO33=\"\",\"\",'[6]MONE(M)'!$AO33)","v":"n.d."},{"$f":"IF('[7]MONE(M)'!$AO33=\"\",\"\",'[7]MONE(M)'!$AO33)","v":"n.d."},{"$f":"IF('[8]MONE(M)'!$AO33=\"\",\"\",'[8]MONE(M)'!$AO33)","v":"n.d."},"n.d.","n.d.","n.d.","n.d.","n.d.","n.d.","n.d.",{"$f":"IF('[1]FISCAL(M)'!$K33=\"\",\"\",'[1]FISCAL(M)'!$K33)","v":"n.d."},"n.d.","n.d.",{"$f":"IF('[1]FISCAL(M)'!$L33=\"\",\"\",'[1]FISCAL(M)'!$L33)","v":"n.d."},"n.d.","n.d.","n.d.","n.d.","n.d.","n.d.","n.d.","n.d.","n.d.","n.d.","n.d.","n.d.","n.d.","n.d.","n.d.","n.d.","n.d.","n.d."]
[1992,"enero","1992-enero",{"$f":"IF('[1]REAL IPC(M)'!$AL34=\"\",\"\",+'[1]REAL IPC(M)'!$AL34)","v":"n.d."},{"$f":"IF('[1]REAL IPC(M)'!$BE34=\"\",\"\",+'[1]REAL IPC(M)'!$BE34)","v":"n.d."},{"$f":"IF('[1]REAL IPC(M)'!$AM34=\"\",\"\",+'[1]REAL IPC(M)'!$AM34)","v":"n.d."},{"$f":"IF('[1]REAL IPC(M)'!$BI34=\"\",\"\",+'[1]REAL IPC(M)'!$BI34)","v":"n.d."},{"$f":"IF('[1]REAL IMAE(M)'!BJ34=\"\",\"\",'[1]REAL IMAE(M)'!BJ34)","v":"n.d."},{"$f":"IF('[1]REAL IMAE(M)'!BK34=\"\",\"\",'[1]REAL IMAE(M)'!BK34)","v":"n.d."},{"$f":"IF('[1]REAL IMAE(M)'!BN34=\"\",\"\",'[1]REAL IMAE(M)'!BN34)","v":"n.d."},{"$f":"IF('[1]REAL IMAE(M)'!BO34=\"\",\"\",'[1]REAL IMAE(M)'!BO34)","v":"n.d."},{"$f":"IF('[1]EXT RIN(M)'!$K34=\"\",\"\",'[1]EXT RIN(M)'!$K34)","v":"n.d."},"",{"$f":"IF('[1]EXT RIN(M)'!$L34=\"\",\"\",'[1]EXT RIN(M)'!$L34)","v":"n.d."},"",{"$f":"IF('[1]MONE(M)CARD'!EG34=\"\",\"\",'[1]MONE(M)CARD'!EG34)","v":"n.d."},{"$f":"IF('[1]MONE(M)CARD'!EK34=\"\",\"\",'[1]MONE(M)CARD'!EK34)","v":"n.d."},{"$f":"IF('[1]MONE(M)CARD'!EP34=\"\",\"\",'[1]MONE(M)CARD'!EP34)","v":"n.d."},{"$f":"IF('[1]MONE(M)CARD'!ES34=\"\",\"\",'[1]MONE(M)CARD'!ES34)","v":"n.d."},{"$f":"IF('[1]MONE(M)CARD'!EV34=\"\",\"\",'[1]MONE(M)CARD'!EV34)","v":"n.d."},{"$f":"IF('[1]MONE(M)CARD'!EZ34=\"\",\"\",'[1]MONE(M)CARD'!EZ34)","v":"n.d."},{"$f":"IF('[1]MONE(M)CAPARD'!FC34=\"\",\"\",'[1]MONE(M)CAPARD'!FC34)","v":"n.d."},{"$f":"IF('[1]MONE(M)CAPARD'!FG34=\"\",\"\",'[1]MONE(M)CAPARD'!FG34)","v":"n.d."},{"$f":"IF('[1]MONE(M)CAPARD'!FL34=\"\",\"\",'[1]MONE(M)CAPARD'!FL34)","v":"n.d."},{"$f":"IF('[1]MONE(M)CAPARD'!FO34=\"\",\"\",'[1]MONE(M)CAPARD'!FO34)","v":"n.d."},{"$f":"IF('[1]MONE(M)CAPARD'!FR34=\"\",\"\",'[1]MONE(M)CAPARD'!FR34)","v":"n.d."},{"$f":"IF('[1]MONE(M)CAPARD'!FV34=\"\",\"\",'[1]MONE(M)CAPARD'!FV34)","v":"n.d."},{"$f":"IF('[1]MONE(M)CARD'!FV34=\"\",\"\",'[1]MONE(M)CARD'!FV34)","v":""},{"$f":"IF('[1]MONE(M)CARD'!GD34=\"\",\"\",'[1]MONE(M)CARD'!GD34)","v":"n.d."},{"$f":"IF('[1]MONE(M)CARD'!GE34=\"\",\"\",'[1]MONE(M)CARD'!GE34)","v":"n.d."},"n.d.","n.d.","n.d.","n.d.","n.d.","n.d.","n.d.","n.d.",null,"n.d.","n.d.","n.d.","n.d.","n.d.",{"$f":"IF('[1]MONE(M)CAPARD'!GS34=\"\",\"\",'[1]MONE(M)CAPARD'!GS34)","v":"n.d."},{"$f":"IF('[1]MONE(M)CARD'!HA34=\"\",\"\",'[1]MONE(M)CAPARD'!HA34)","v":"n.d."},{"$f":"IF('[1]MONE(M)CAPARD'!HB34=\"\",\"\",'[1]MONE(M)CAPARD'!HB34)","v":"n.d."},"n.d.","n.d.","n.d.","n.d.","n.d.","n.d.","n.d.","n.d.","n.d.","n.d.","n.d.","n.d.","n.d.","n.d.",{"$f":"IF('[1]MONE(M)CAPARD'!AS34=\"\",\"\",'[1]MONE(M)CAPARD'!AS34)","v":"n.d."},{"$f":"IF('[1]MONE(M)CAPARD'!AT34=\"\",\"\",'[1]MONE(M)CAPARD'!AT34)","v":"n.a."},{"$f":"IF('[1]MONE(M)CAPARD'!AU34=\"\",\"\",'[1]MONE(M)CAPARD'!AU34)","v":"n.d."},{"$f":"IF('[1]MONE(M)CAPARD'!AV34=\"\",\"\",'[1]MONE(M)CAPARD'!AV34)","v":"n.d."},{"$f":"IF('[1]MONE(M)CAPARD'!AW34=\"\",\"\",'[1]MONE(M)CAPARD'!AW34)","v":"n.a."},{"$f":"IF('[1]MONE(M)CAPARD'!AX34=\"\",\"\",'[1]MONE(M)CAPARD'!AX34)","v":"n.d."},{"$f":"IF('[1]MONE(M)CAPARD'!AY34=\"\",\"\",'[1]MONE(M)CAPARD'!AY34)","v":"n.a."},{"$f":"IF('[1]FISCAL(M)'!$K34=\"\",\"\",'[1]FISCAL(M)'!$K34)","v":"n.d."},{"$f":"IF('[1]FISCAL(M)'!$L34=\"\",\"\",'[1]FISCAL(M)'!$L34)","v":"n.d."},{"$f":"IF('[1]FISCAL(M)'!$AY34=\"\",\"\",'[1]FISCAL(M)'!$AY34)","v":"n.d."},{"$f":"IF('[1]FISCAL(M)'!$BI34=\"\",\"\",'[1]FISCAL(M)'!$BI34)","v":"n.d."},{"$f":"IF('[1]FISCAL(M)'!$BS34=\"\",\"\",'[1]FISCAL(M)'!$BS34)","v":"n.d."},{"$f":"IF('[1]FISCAL(M)'!$AZ34=\"\",\"\",'[1]FISCAL(M)'!$AZ34)","v":"n.d."},{"$f":"IF('[1]FISCAL(M)'!$BJ34=\"\",\"\",'[1]FISCAL(M)'!$BJ34)","v":"n.d."},{"$f":"IF('[1]FISCAL(M)'!$BT34=\"\",\"\",'[1]FISCAL(M)'!$BT34)","v":"n.d."},{"$f":"IF('[2]MONE(M)'!$AO34=\"\",\"\",'[2]MONE(M)'!$AO34)","v":"n.d."},{"$f":"IF('[3]MONE(M)'!$AO34=\"\",\"\",'[3]MONE(M)'!$AO34)","v":"n.d."},{"$f":"IF('[4]MONE(M)'!$AO34=\"\",\"\",'[4]MONE(M)'!$AO34)","v":"n.d."},{"$f":"+'[5]MONE(M)'!$AO34","v":"n.d."},{"$f":"IF('[6]MONE(M)'!$AO34=\"\",\"\",'[6]MONE(M)'!$AO34)","v":"n.d."},{"$f":"IF('[7]MONE(M)'!$AO34=\"\",\"\",'[7]MONE(M)'!$AO34)","v":"n.d."},{"$f":"IF('[8]MONE(M)'!$AO34=\"\",\"\",'[8]MONE(M)'!$AO34)","v":"n.d."},"n.d.","n.d.","n.d.","n.d.","n.d.","n.d.","n.d.",{"$f":"IF('[1]FISCAL(M)'!$K34=\"\",\"\",'[1]FISCAL(M)'!$K34)","v":"n.d."},"n.d.","n.d.",{"$f":"IF('[1]FISCAL(M)'!$L34=\"\",\"\",'[1]FISCAL(M)'!$L34)","v":"n.d."},"n.d.","n.d.","n.d.","n.d.","n.d.","n.d.","n.d.","n.d.","n.d.","n.d.","n.d.","n.d.","n.d.","n.d.","n.d.","n.d.","n.d.","n.d."]
[1992,"febrero","1992-febrero",{"$f":"IF('[1]REAL IPC(M)'!$AL35=\"\",\"\",+'[1]REAL IPC(M)'!$AL35)","v":"n.d."},{"$f":"IF('[1]REAL IPC(M)'!$BE35=\"\",\"\",+'[1]REAL IPC(M)'!$BE35)","v":"n.d."},{"$f":"IF('[1]REAL IPC(M)'!$AM35=\"\",\"\",+'[1]REAL IPC(M)'!$AM35)","v":"n.d."},{"$f":"IF('[1]REAL IPC(M)'!$BI35=\"\",\"\",+'[1]REAL IPC(M)'!$BI35)","v":"n.d."},{"$f":"IF('[1]REAL IMAE(M)'!BJ35=\"\",\"\",'[1]REAL IMAE(M)'!BJ35)","v":"n.d."},{"$f":"IF('[1]REAL IMAE(M)'!BK35=\"\",\"\",'[1]REAL IMAE(M)'!BK35)","v":"n.d."},{"$f":"IF('[1]REAL IMAE(M)'!BN35=\"\",\"\",'[1]REAL IMAE(M)'!BN35)","v":"n.d."},{"$f":"IF('[1]REAL IMAE(M)'!BO35=\"\",\"\",'[1]REAL IMAE(M)'!BO35)","v":"n.d."},{"$f":"IF('[1]EXT RIN(M)'!$K35=\"\",\"\",'[1]EXT RIN(M)'!$K35)","v":"n.d."},"",{"$f":"IF('[1]EXT RIN(M)'!$L35=\"\",\"\",'[1]EXT RIN(M)'!$L35)","v":"n.d."},"",{"$f":"IF('[1]MONE(M)CARD'!EG35=\"\",\"\",'[1]MONE(M)CARD'!EG35)","v":"n.d."},{"$f":"IF('[1]MONE(M)CARD'!EK35=\"\",\"\",'[1]MONE(M)CARD'!EK35)","v":"n.d."},{"$f":"IF('[1]MONE(M)CARD'!EP35=\"\",\"\",'[1]MONE(M)CARD'!EP35)","v":"n.d."},{"$f":"IF('[1]MONE(M)CARD'!ES35=\"\",\"\",'[1]MONE(M)CARD'!ES35)","v":"n.d."},{"$f":"IF('[1]MONE(M)CARD'!EV35=\"\",\"\",'[1]MONE(M)CARD'!EV35)","v":"n.d."},{"$f":"IF('[1]MONE(M)CARD'!EZ35=\"\",\"\",'[1]MONE(M)CARD'!EZ35)","v":"n.d."},{"$f":"IF('[1]MONE(M)CAPARD'!FC35=\"\",\"\",'[1]MONE(M)CAPARD'!FC35)","v":"n.d."},{"$f":"IF('[1]MONE(M)CAPARD'!FG35=\"\",\"\",'[1]MONE(M)CAPARD'!FG35)","v":"n.d."},{"$f":"IF('[1]MONE(M)CAPARD'!FL35=\"\",\"\",'[1]MONE(M)CAPARD'!FL35)","v":"n.d."},{"$f":"IF('[1]MONE(M)CAPARD'!FO35=\"\",\"\",'[1]MONE(M)CAPARD'!FO35)","v":"n.d."},{"$f":"IF('[1]MONE(M)CAPARD'!FR35=\"\",\"\",'[1]MONE(M)CAPARD'!FR35)","v":"n.d."},{"$f":"IF('[1]MONE(M)CAPARD'!FV35=\"\",\"\",'[1]MONE(M)CAPARD'!FV35)","v":"n.d."},{"$f":"IF('[1]MONE(M)CARD'!FV35=\"\",\"\",'[1]MONE(M)CARD'!FV35)","v":""},{"$f":"IF('[1]MONE(M)CARD'!GD35=\"\",\"\",'[1]MONE(M)CARD'!GD35)","v":"n.d."},{"$f":"IF('[1]MONE(M)CARD'!GE35=\"\",\"\",'[1]MONE(M)CARD'!GE35)","v":"n.d."},"n.d.","n.d.","n.d.","n.d.","n.d.","n.d.","n.d.","n.d.",null,"n.d.","n.d.","n.d.","n.d.","n.d.",{"$f":"IF('[1]MONE(M)CAPARD'!GS35=\"\",\"\",'[1]MONE(M)CAPARD'!GS35)","v":"n.d."},{"$f":"IF('[1]MONE(M)CARD'!HA35=\"\",\"\",'[1]MONE(M)CAPARD'!HA35)","v":"n.d."},{"$f":"IF('[1]MONE(M)CAPARD'!HB35=\"\",\"\",'[1]MONE(M)CAPARD'!HB35)","v":"n.d."},"n.d.","n.d.","n.d.","n.d.","n.d.","n.d.","n.d.","n.d.","n.d.","n.d.","n.d.","n.d.","n.d.","n.d.",{"$f":"IF('[1]MONE(M)CAPARD'!AS35=\"\",\"\",'[1]MONE(M)CAPARD'!AS35)","v":"n.d."},{"$f":"IF('[1]MONE(M)CAPARD'!AT35=\"\",\"\",'[1]MONE(M)CAPARD'!AT35)","v":"n.a."},{"$f":"IF('[1]MONE(M)CAPARD'!AU35=\"\",\"\",'[1]MONE(M)CAPARD'!AU35)","v":"n.d."},{"$f":"IF('[1]MONE(M)CAPARD'!AV35=\"\",\"\",'[1]MONE(M)CAPARD'!AV35)","v":"n.d."},{"$f":"IF('[1]MONE(M)CAPARD'!AW35=\"\",\"\",'[1]MONE(M)CAPARD'!AW35)","v":"n.a."},{"$f":"IF('[1]MONE(M)CAPARD'!AX35=\"\",\"\",'[1]MONE(M)CAPARD'!AX35)","v":"n.d."},{"$f":"IF('[1]MONE(M)CAPARD'!AY35=\"\",\"\",'[1]MONE(M)CAPARD'!AY35)","v":"n.a."},{"$f":"IF('[1]FISCAL(M)'!$K35=\"\",\"\",'[1]FISCAL(M)'!$K35)","v":"n.d."},{"$f":"IF('[1]FISCAL(M)'!$L35=\"\",\"\",'[1]FISCAL(M)'!$L35)","v":"n.d."},{"$f":"IF('[1]FISCAL(M)'!$AY35=\"\",\"\",'[1]FISCAL(M)'!$AY35)","v":"n.d."},{"$f":"IF('[1]FISCAL(M)'!$BI35=\"\",\"\",'[1]FISCAL(M)'!$BI35)","v":"n.d."},{"$f":"IF('[1]FISCAL(M)'!$BS35=\"\",\"\",'[1]FISCAL(M)'!$BS35)","v":"n.d."},{"$f":"IF('[1]FISCAL(M)'!$AZ35=\"\",\"\",'[1]FISCAL(M)'!$AZ35)","v":"n.d."},{"$f":"IF('[1]FISCAL(M)'!$BJ35=\"\",\"\",'[1]FISCAL(M)'!$BJ35)","v":"n.d."},{"$f":"IF('[1]FISCAL(M)'!$BT35=\"\",\"\",'[1]FISCAL(M)'!$BT35)","v":"n.d."},{"$f":"IF('[2]MONE(M)'!$AO35=\"\",\"\",'[2]MONE(M)'!$AO35)","v":"n.d."},{"$f":"IF('[3]MONE(M)'!$AO35=\"\",\"\",'[3]MONE(M)'!$AO35)","v":"n.d."},{"$f":"IF('[4]MONE(M)'!$AO35=\"\",\"\",'[4]MONE(M)'!$AO35)","v":"n.d."},{"$f":"+'[5]MONE(M)'!$AO35","v":"n.d."},{"$f":"IF('[6]MONE(M)'!$AO35=\"\",\"\",'[6]MONE(M)'!$AO35)","v":"n.d."},{"$f":"IF('[7]MONE(M)'!$AO35=\"\",\"\",'[7]MONE(M)'!$AO35)","v":"n.d."},{"$f":"IF('[8]MONE(M)'!$AO35=\"\",\"\",'[8]MONE(M)'!$AO35)","v":"n.d."},"n.d.","n.d.","n.d.","n.d.","n.d.","n.d.","n.d.",{"$f":"IF('[1]FISCAL(M)'!$K35=\"\",\"\",'[1]FISCAL(M)'!$K35)","v":"n.d."},"n.d.","n.d.",{"$f":"IF('[1]FISCAL(M)'!$L35=\"\",\"\",'[1]FISCAL(M)'!$L35)","v":"n.d."},"n.d.","n.d.","n.d.","n.d.","n.d.","n.d.","n.d.","n.d.","n.d.","n.d.","n.d.","n.d.","n.d.","n.d.","n.d.","n.d.","n.d.","n.d."]
[1992,"marzo","1992-marzo",{"$f":"IF('[1]REAL IPC(M)'!$AL36=\"\",\"\",+'[1]REAL IPC(M)'!$AL36)","v":"n.d."},{"$f":"IF('[1]REAL IPC(M)'!$BE36=\"\",\"\",+'[1]REAL IPC(M)'!$BE36)","v":"n.d."},{"$f":"IF('[1]REAL IPC(M)'!$AM36=\"\",\"\",+'[1]REAL IPC(M)'!$AM36)","v":"n.d."},{"$f":"IF('[1]REAL IPC(M)'!$BI36=\"\",\"\",+'[1]REAL IPC(M)'!$BI36)","v":"n.d."},{"$f":"IF('[1]REAL IMAE(M)'!BJ36=\"\",\"\",'[1]REAL IMAE(M)'!BJ36)","v":"n.d."},{"$f":"IF('[1]REAL IMAE(M)'!BK36=\"\",\"\",'[1]REAL IMAE(M)'!BK36)","v":"n.d."},{"$f":"IF('[1]REAL IMAE(M)'!BN36=\"\",\"\",'[1]REAL IMAE(M)'!BN36)","v":"n.d."},{"$f":"IF('[1]REAL IMAE(M)'!BO36=\"\",\"\",'[1]REAL IMAE(M)'!BO36)","v":"n.d."},{"$f":"IF('[1]EXT RIN(M)'!$K36=\"\",\"\",'[1]EXT RIN(M)'!$K36)","v":"n.d."},"",{"$f":"IF('[1]EXT RIN(M)'!$L36=\"\",\"\",'[1]EXT RIN(M)'!$L36)","v":"n.d."},"",{"$f":"IF('[1]MONE(M)CARD'!EG36=\"\",\"\",'[1]MONE(M)CARD'!EG36)","v":"n.d."},{"$f":"IF('[1]MONE(M)CARD'!EK36=\"\",\"\",'[1]MONE(M)CARD'!EK36)","v":"n.d."},{"$f":"IF('[1]MONE(M)CARD'!EP36=\"\",\"\",'[1]MONE(M)CARD'!EP36)","v":"n.d."},{"$f":"IF('[1]MONE(M)CARD'!ES36=\"\",\"\",'[1]MONE(M)CARD'!ES36)","v":"n.d."},{"$f":"IF('[1]MONE(M)CARD'!EV36=\"\",\"\",'[1]MONE(M)CARD'!EV36)","v":"n.d."},{"$f":"IF('[1]MONE(M)CARD'!EZ36=\"\",\"\",'[1]MONE(M)CARD'!EZ36)","v":"n.d."},{"$f":"IF('[1]MONE(M)CAPARD'!FC36=\"\",\"\",'[1]MONE(M)CAPARD'!FC36)","v":"n.d."},{"$f":"IF('[1]MONE(M)CAPARD'!FG36=\"\",\"\",'[1]MONE(M)CAPARD'!FG36)","v":"n.d."},{"$f":"IF('[1]MONE(M)CAPARD'!FL36=\"\",\"\",'[1]MONE(M)CAPARD'!FL36)","v":"n.d."},{"$f":"IF('[1]MONE(M)CAPARD'!FO36=\"\",\"\",'[1]MONE(M)CAPARD'!FO36)","v":"n.d."},{"$f":"IF('[1]MONE(M)CAPARD'!FR36=\"\",\"\",'[1]MONE(M)CAPARD'!FR36)","v":"n.d."},{"$f":"IF('[1]MONE(M)CAPARD'!FV36=\"\",\"\",'[1]MONE(M)CAPARD'!FV36)","v":"n.d."},{"$f":"IF('[1]MONE(M)CARD'!FV36=\"\",\"\",'[1]MONE(M)CARD'!FV36)","v":""},{"$f":"IF('[1]MONE(M)CARD'!GD36=\"\",\"\",'[1]MONE(M)CARD'!GD36)","v":"n.d."},{"$f":"IF('[1]MONE(M)CARD'!GE36=\"\",\"\",'[1]MONE(M)CARD'!GE36)","v":"n.d."},"n.d.","n.d.","n.d.","n.d.","n.d.","n.d.","n.d.","n.d.",null,"n.d.","n.d.","n.d.","n.d.","n.d.",{"$f":"IF('[1]MONE(M)CAPARD'!GS36=\"\",\"\",'[1]MONE(M)CAPARD'!GS36)","v":"n.d."},{"$f":"IF('[1]MONE(M)CARD'!HA36=\"\",\"\",'[1]MONE(M)CAPARD'!HA36)","v":"n.d."},{"$f":"IF('[1]MONE(M)CAPARD'!HB36=\"\",\"\",'[1]MONE(M)CAPARD'!HB36)","v":"n.d."},"n.d.","n.d.","n.d.","n.d.","n.d.","n.d.","n.d.","n.d.","n.d.","n.d.","n.d.","n.d.","n.d.","n.d.",{"$f":"IF('[1]MONE(M)CAPARD'!AS36=\"\",\"\",'[1]MONE(M)CAPARD'!AS36)","v":"n.d."},{"$f":"IF('[1]MONE(M)CAPARD'!AT36=\"\",\"\",'[1]MONE(M)CAPARD'!AT36)","v":"n.a."},{"$f":"IF('[1]MONE(M)CAPARD'!AU36=\"\",\"\",'[1]MONE(M)CAPARD'!AU36)","v":"n.d."},{"$f":"IF('[1]MONE(M)CAPARD'!AV36=\"\",\"\",'[1]MONE(M)CAPARD'!AV36)","v":"n.d."},{"$f":"IF('[1]MONE(M)CAPARD'!AW36=\"\",\"\",'[1]MONE(M)CAPARD'!AW36)","v":"n.a."},{"$f":"IF('[1]MONE(M)CAPARD'!AX36=\"\",\"\",'[1]MONE(M)CAPARD'!AX36)","v":"n.d."},{"$f":"IF('[1]MONE(M)CAPARD'!AY36=\"\",\"\",'[1]MONE(M)CAPARD'!AY36)","v":"n.a."},{"$f":"IF('[1]FISCAL(M)'!$K36=\"\",\"\",'[1]FISCAL(M)'!$K36)","v":"n.d."},{"$f":"IF('[1]FISCAL(M)'!$L36=\"\",\"\",'[1]FISCAL(M)'!$L36)","v":"n.d."},{"$f":"IF('[1]FISCAL(M)'!$AY36=\"\",\"\",'[1]FISCAL(M)'!$AY36)","v":"n.d."},{"$f":"IF('[1]FISCAL(M)'!$BI36=\"\",\"\",'[1]FISCAL(M)'!$BI36)","v":"n.d."},{"$f":"IF('[1]FISCAL(M)'!$BS36=\"\",\"\",'[1]FISCAL(M)'!$BS36)","v":"n.d."},{"$f":"IF('[1]FISCAL(M)'!$AZ36=\"\",\"\",'[1]FISCAL(M)'!$AZ36)","v":"n.d."},{"$f":"IF('[1]FISCAL(M)'!$BJ36=\"\",\"\",'[1]FISCAL(M)'!$BJ36)","v":"n.d."},{"$f":"IF('[1]FISCAL(M)'!$BT36=\"\",\"\",'[1]FISCAL(M)'!$BT36)","v":"n.d."},{"$f":"IF('[2]MONE(M)'!$AO36=\"\",\"\",'[2]MONE(M)'!$AO36)","v":"n.d."},{"$f":"IF('[3]MONE(M)'!$AO36=\"\",\"\",'[3]MONE(M)'!$AO36)","v":"n.d."},{"$f":"IF('[4]MONE(M)'!$AO36=\"\",\"\",'[4]MONE(M)'!$AO36)","v":"n.d."},{"$f":"+'[5]MONE(M)'!$AO36","v":"n.d."},{"$f":"IF('[6]MONE(M)'!$AO36=\"\",\"\",'[6]MONE(M)'!$AO36)","v":"n.d."},{"$f":"IF('[7]MONE(M)'!$AO36=\"\",\"\",'[7]MONE(M)'!$AO36)","v":"n.d."},{"$f":"IF('[8]MONE(M)'!$AO36=\"\",\"\",'[8]MONE(M)'!$AO36)","v":"n.d."},"n.d.","n.d.","n.d.","n.d.","n.d.","n.d.","n.d.",{"$f":"IF('[1]FISCAL(M)'!$K36=\"\",\"\",'[1]FISCAL(M)'!$K36)","v":"n.d."},"n.d.","n.d.",{"$f":"IF('[1]FISCAL(M)'!$L36=\"\",\"\",'[1]FISCAL(M)'!$L36)","v":"n.d."},"n.d.","n.d.","n.d.","n.d.","n.d.","n.d.","n.d.","n.d.","n.d.","n.d.","n.d.","n.d.","n.d.","n.d.","n.d.","n.d.","n.d.","n.d."]
[1992,"abril","1992-abril",{"$f":"IF('[1]REAL IPC(M)'!$AL37=\"\",\"\",+'[1]REAL IPC(M)'!$AL37)","v":"n.d."},{"$f":"IF('[1]REAL IPC(M)'!$BE37=\"\",\"\",+'[1]REAL IPC(M)'!$BE37)","v":"n.d."},{"$f":"IF('[1]REAL IPC(M)'!$AM37=\"\",\"\",+'[1]REAL IPC(M)'!$AM37)","v":"n.d."},{"$f":"IF('[1]REAL IPC(M)'!$BI37=\"\",\"\",+'[1]REAL IPC(M)'!$BI37)","v":"n.d."},{"$f":"IF('[1]REAL IMAE(M)'!BJ37=\"\",\"\",'[1]REAL IMAE(M)'!BJ37)","v":"n.d."},{"$f":"IF('[1]REAL IMAE(M)'!BK37=\"\",\"\",'[1]REAL IMAE(M)'!BK37)","v":"n.d."},{"$f":"IF('[1]REAL IMAE(M)'!BN37=\"\",\"\",'[1]REAL IMAE(M)'!BN37)","v":"n.d."},{"$f":"IF('[1]REAL IMAE(M)'!BO37=\"\",\"\",'[1]REAL IMAE(M)'!BO37)","v":"n.d."},{"$f":"IF('[1]EXT RIN(M)'!$K37=\"\",\"\",'[1]EXT RIN(M)'!$K37)","v":"n.d."},"",{"$f":"IF('[1]EXT RIN(M)'!$L37=\"\",\"\",'[1]EXT RIN(M)'!$L37)","v":"n.d."},"",{"$f":"IF('[1]MONE(M)CARD'!EG37=\"\",\"\",'[1]MONE(M)CARD'!EG37)","v":"n.d."},{"$f":"IF('[1]MONE(M)CARD'!EK37=\"\",\"\",'[1]MONE(M)CARD'!EK37)","v":"n.d."},{"$f":"IF('[1]MONE(M)CARD'!EP37=\"\",\"\",'[1]MONE(M)CARD'!EP37)","v":"n.d."},{"$f":"IF('[1]MONE(M)CARD'!ES37=\"\",\"\",'[1]MONE(M)CARD'!ES37)","v":"n.d."},{"$f":"IF('[1]MONE(M)CARD'!EV37=\"\",\"\",'[1]MONE(M)CARD'!EV37)","v":"n.d."},{"$f":"IF('[1]MONE(M)CARD'!EZ37=\"\",\"\",'[1]MONE(M)CARD'!EZ37)","v":"n.d."},{"$f":"IF('[1]MONE(M)CAPARD'!FC37=\"\",\"\",'[1]MONE(M)CAPARD'!FC37)","v":"n.d."},{"$f":"IF('[1]MONE(M)CAPARD'!FG37=\"\",\"\",'[1]MONE(M)CAPARD'!FG37)","v":"n.d."},{"$f":"IF('[1]MONE(M)CAPARD'!FL37=\"\",\"\",'[1]MONE(M)CAPARD'!FL37)","v":"n.d."},{"$f":"IF('[1]MONE(M)CAPARD'!FO37=\"\",\"\",'[1]MONE(M)CAPARD'!FO37)","v":"n.d."},{"$f":"IF('[1]MONE(M)CAPARD'!FR37=\"\",\"\",'[1]MONE(M)CAPARD'!FR37)","v":"n.d."},{"$f":"IF('[1]MONE(M)CAPARD'!FV37=\"\",\"\",'[1]MONE(M)CAPARD'!FV37)","v":"n.d."},{"$f":"IF('[1]MONE(M)CARD'!FV37=\"\",\"\",'[1]MONE(M)CARD'!FV37)","v":""},{"$f":"IF('[1]MONE(M)CARD'!GD37=\"\",\"\",'[1]MONE(M)CARD'!GD37)","v":"n.d."},{"$f":"IF('[1]MONE(M)CARD'!GE37=\"\",\"\",'[1]MONE(M)CARD'!GE37)","v":"n.d."},"n.d.","n.d.","n.d.","n.d.","n.d.","n.d.","n.d.","n.d.",null,"n.d.","n.d.","n.d.","n.d.","n.d.",{"$f":"IF('[1]MONE(M)CAPARD'!GS37=\"\",\"\",'[1]MONE(M)CAPARD'!GS37)","v":"n.d."},{"$f":"IF('[1]MONE(M)CARD'!HA37=\"\",\"\",'[1]MONE(M)CAPARD'!HA37)","v":"n.d."},{"$f":"IF('[1]MONE(M)CAPARD'!HB37=\"\",\"\",'[1]MONE(M)CAPARD'!HB37)","v":"n.d."},"n.d.","n.d.","n.d.","n.d.","n.d.","n.d.","n.d.","n.d.","n.d.","n.d.","n.d.","n.d.","n.d.","n.d.",{"$f":"IF('[1]MONE(M)CAPARD'!AS37=\"\",\"\",'[1]MONE(M)CAPARD'!AS37)","v":"n.d."},{"$f":"IF('[1]MONE(M)CAPARD'!AT37=\"\",\"\",'[1]MONE(M)CAPARD'!AT37)","v":"n.a."},{"$f":"IF('[1]MONE(M)CAPARD'!AU37=\"\",\"\",'[1]MONE(M)CAPARD'!AU37)","v":"n.d."},{"$f":"IF('[1]MONE(M)CAPARD'!AV37=\"\",\"\",'[1]MONE(M)CAPARD'!AV37)","v":"n.d."},{"$f":"IF('[1]MONE(M)CAPARD'!AW37=\"\",\"\",'[1]MONE(M)CAPARD'!AW37)","v":"n.a."},{"$f":"IF('[1]MONE(M)CAPARD'!AX37=\"\",\"\",'[1]MONE(M)CAPARD'!AX37)","v":"n.d."},{"$f":"IF('[1]MONE(M)CAPARD'!AY37=\"\",\"\",'[1]MONE(M)CAPARD'!AY37)","v":"n.a."},{"$f":"IF('[1]FISCAL(M)'!$K37=\"\",\"\",'[1]FISCAL(M)'!$K37)","v":"n.d."},{"$f":"IF('[1]FISCAL(M)'!$L37=\"\",\"\",'[1]FISCAL(M)'!$L37)","v":"n.d."},{"$f":"IF('[1]FISCAL(M)'!$AY37=\"\",\"\",'[1]FISCAL(M)'!$AY37)","v":"n.d."},{"$f":"IF('[1]FISCAL(M)'!$BI37=\"\",\"\",'[1]FISCAL(M)'!$BI37)","v":"n.d."},{"$f":"IF('[1]FISCAL(M)'!$BS37=\"\",\"\",'[1]FISCAL(M)'!$BS37)","v":"n.d."},{"$f":"IF('[1]FISCAL(M)'!$AZ37=\"\",\"\",'[1]FISCAL(M)'!$AZ37)","v":"n.d."},{"$f":"IF('[1]FISCAL(M)'!$BJ37=\"\",\"\",'[1]FISCAL(M)'!$BJ37)","v":"n.d."},{"$f":"IF('[1]FISCAL(M)'!$BT37=\"\",\"\",'[1]FISCAL(M)'!$BT37)","v":"n.d."},{"$f":"IF('[2]MONE(M)'!$AO37=\"\",\"\",'[2]MONE(M)'!$AO37)","v":"n.d."},{"$f":"IF('[3]MONE(M)'!$AO37=\"\",\"\",'[3]MONE(M)'!$AO37)","v":"n.d."},{"$f":"IF('[4]MONE(M)'!$AO37=\"\",\"\",'[4]MONE(M)'!$AO37)","v":"n.d."},{"$f":"+'[5]MONE(M)'!$AO37","v":"n.d."},{"$f":"IF('[6]MONE(M)'!$AO37=\"\",\"\",'[6]MONE(M)'!$AO37)","v":"n.d."},{"$f":"IF('[7]MONE(M)'!$AO37=\"\",\"\",'[7]MONE(M)'!$AO37)","v":"n.d."},{"$f":"IF('[8]MONE(M)'!$AO37=\"\",\"\",'[8]MONE(M)'!$AO37)","v":"n.d."},"n.d.","n.d.","n.d.","n.d.","n.d.","n.d.","n.d.",{"$f":"IF('[1]FISCAL(M)'!$K37=\"\",\"\",'[1]FISCAL(M)'!$K37)","v":"n.d."},"n.d.","n.d.",{"$f":"IF('[1]FISCAL(M)'!$L37=\"\",\"\",'[1]FISCAL(M)'!$L37)","v":"n.d."},"n.d.","n.d.","n.d.","n.d.","n.d.","n.d.","n.d.","n.d.","n.d.","n.d.","n.d.","n.d.","n.d.","n.d.","n.d.","n.d.","n.d.","n.d."]
[1992,"mayo ","1992-mayo ",{"$f":"IF('[1]REAL IPC(M)'!$AL38=\"\",\"\",+'[1]REAL IPC(M)'!$AL38)","v":"n.d."},{"$f":"IF('[1]REAL IPC(M)'!$BE38=\"\",\"\",+'[1]REAL IPC(M)'!$BE38)","v":"n.d."},{"$f":"IF('[1]REAL IPC(M)'!$AM38=\"\",\"\",+'[1]REAL IPC(M)'!$AM38)","v":"n.d."},{"$f":"IF('[1]REAL IPC(M)'!$BI38=\"\",\"\",+'[1]REAL IPC(M)'!$BI38)","v":"n.d."},{"$f":"IF('[1]REAL IMAE(M)'!BJ38=\"\",\"\",'[1]REAL IMAE(M)'!BJ38)","v":"n.d."},{"$f":"IF('[1]REAL IMAE(M)'!BK38=\"\",\"\",'[1]REAL IMAE(M)'!BK38)","v":"n.d."},{"$f":"IF('[1]REAL IMAE(M)'!BN38=\"\",\"\",'[1]REAL IMAE(M)'!BN38)","v":"n.d."},{"$f":"IF('[1]REAL IMAE(M)'!BO38=\"\",\"\",'[1]REAL IMAE(M)'!BO38)","v":"n.d."},{"$f":"IF('[1]EXT RIN(M)'!$K38=\"\",\"\",'[1]EXT RIN(M)'!$K38)","v":"n.d."},"",{"$f":"IF('[1]EXT RIN(M)'!$L38=\"\",\"\",'[1]EXT RIN(M)'!$L38)","v":"n.d."},"",{"$f":"IF('[1]MONE(M)CARD'!EG38=\"\",\"\",'[1]MONE(M)CARD'!EG38)","v":"n.d."},{"$f":"IF('[1]MONE(M)CARD'!EK38=\"\",\"\",'[1]MONE(M)CARD'!EK38)","v":"n.d."},{"$f":"IF('[1]MONE(M)CARD'!EP38=\"\",\"\",'[1]MONE(M)CARD'!EP38)","v":"n.d."},{"$f":"IF('[1]MONE(M)CARD'!ES38=\"\",\"\",'[1]MONE(M)CARD'!ES38)","v":"n.d."},{"$f":"IF('[1]MONE(M)CARD'!EV38=\"\",\"\",'[1]MONE(M)CARD'!EV38)","v":"n.d."},{"$f":"IF('[1]MONE(M)CARD'!EZ38=\"\",\"\",'[1]MONE(M)CARD'!EZ38)","v":"n.d."},{"$f":"IF('[1]MONE(M)CAPARD'!FC38=\"\",\"\",'[1]MONE(M)CAPARD'!FC38)","v":"n.d."},{"$f":"IF('[1]MONE(M)CAPARD'!FG38=\"\",\"\",'[1]MONE(M)CAPARD'!FG38)","v":"n.d."},{"$f":"IF('[1]MONE(M)CAPARD'!FL38=\"\",\"\",'[1]MONE(M)CAPARD'!FL38)","v":"n.d."},{"$f":"IF('[1]MONE(M)CAPARD'!FO38=\"\",\"\",'[1]MONE(M)CAPARD'!FO38)","v":"n.d."},{"$f":"IF('[1]MONE(M)CAPARD'!FR38=\"\",\"\",'[1]MONE(M)CAPARD'!FR38)","v":"n.d."},{"$f":"IF('[1]MONE(M)CAPARD'!FV38=\"\",\"\",'[1]MONE(M)CAPARD'!FV38)","v":"n.d."},{"$f":"IF('[1]MONE(M)CARD'!FV38=\"\",\"\",'[1]MONE(M)CARD'!FV38)","v":""},{"$f":"IF('[1]MONE(M)CARD'!GD38=\"\",\"\",'[1]MONE(M)CARD'!GD38)","v":"n.d."},{"$f":"IF('[1]MONE(M)CARD'!GE38=\"\",\"\",'[1]MONE(M)CARD'!GE38)","v":"n.d."},"n.d.","n.d.","n.d.","n.d.","n.d.","n.d.","n.d.","n.d.",null,"n.d.","n.d.","n.d.","n.d.","n.d.",{"$f":"IF('[1]MONE(M)CAPARD'!GS38=\"\",\"\",'[1]MONE(M)CAPARD'!GS38)","v":"n.d."},{"$f":"IF('[1]MONE(M)CARD'!HA38=\"\",\"\",'[1]MONE(M)CAPARD'!HA38)","v":"n.d."},{"$f":"IF('[1]MONE(M)CAPARD'!HB38=\"\",\"\",'[1]MONE(M)CAPARD'!HB38)","v":"n.d."},"n.d.","n.d.","n.d.","n.d.","n.d.","n.d.","n.d.","n.d.","n.d.","n.d.","n.d.","n.d.","n.d.","n.d.",{"$f":"IF('[1]MONE(M)CAPARD'!AS38=\"\",\"\",'[1]MONE(M)CAPARD'!AS38)","v":"n.d."},{"$f":"IF('[1]MONE(M)CAPARD'!AT38=\"\",\"\",'[1]MONE(M)CAPARD'!AT38)","v":"n.a."},{"$f":"IF('[1]MONE(M)CAPARD'!AU38=\"\",\"\",'[1]MONE(M)CAPARD'!AU38)","v":"n.d."},{"$f":"IF('[1]MONE(M)CAPARD'!AV38=\"\",\"\",'[1]MONE(M)CAPARD'!AV38)","v":"n.d."},{"$f":"IF('[1]MONE(M)CAPARD'!AW38=\"\",\"\",'[1]MONE(M)CAPARD'!AW38)","v":"n.a."},{"$f":"IF('[1]MONE(M)CAPARD'!AX38=\"\",\"\",'[1]MONE(M)CAPARD'!AX38)","v":"n.d."},{"$f":"IF('[1]MONE(M)CAPARD'!AY38=\"\",\"\",'[1]MONE(M)CAPARD'!AY38)","v":"n.a."},{"$f":"IF('[1]FISCAL(M)'!$K38=\"\",\"\",'[1]FISCAL(M)'!$K38)","v":"n.d."},{"$f":"IF('[1]FISCAL(M)'!$L38=\"\",\"\",'[1]FISCAL(M)'!$L38)","v":"n.d."},{"$f":"IF('[1]FISCAL(M)'!$AY38=\"\",\"\",'[1]FISCAL(M)'!$AY38)","v":"n.d."},{"$f":"IF('[1]FISCAL(M)'!$BI38=\"\",\"\",'[1]FISCAL(M)'!$BI38)","v":"n.d."},{"$f":"IF('[1]FISCAL(M)'!$BS38=\"\",\"\",'[1]FISCAL(M)'!$BS38)","v":"n.d."},{"$f":"IF('[1]FISCAL(M)'!$AZ38=\"\",\"\",'[1]FISCAL(M)'!$AZ38)","v":"n.d."},{"$f":"IF('[1]FISCAL(M)'!$BJ38=\"\",\"\",'[1]FISCAL(M)'!$BJ38)","v":"n.d."},{"$f":"IF('[1]FISCAL(M)'!$BT38=\"\",\"\",'[1]FISCAL(M)'!$BT38)","v":"n.d."},{"$f":"IF('[2]MONE(M)'!$AO38=\"\",\"\",'[2]MONE(M)'!$AO38)","v":"n.d."},{"$f":"IF('[3]MONE(M)'!$AO38=\"\",\"\",'[3]MONE(M)'!$AO38)","v":"n.d."},{"$f":"IF('[4]MONE(M)'!$AO38=\"\",\"\",'[4]MONE(M)'!$AO38)","v":"n.d."},{"$f":"+'[5]MONE(M)'!$AO38","v":"n.d."},{"$f":"IF('[6]MONE(M)'!$AO38=\"\",\"\",'[6]MONE(M)'!$AO38)","v":"n.d."},{"$f":"IF('[7]MONE(M)'!$AO38=\"\",\"\",'[7]MONE(M)'!$AO38)","v":"n.d."},{"$f":"IF('[8]MONE(M)'!$AO38=\"\",\"\",'[8]MONE(M)'!$AO38)","v":"n.d."},"n.d.","n.d.","n.d.","n.d.","n.d.","n.d.","n.d.",{"$f":"IF('[1]FISCAL(M)'!$K38=\"\",\"\",'[1]FISCAL(M)'!$K38)","v":"n.d."},"n.d.","n.d.",{"$f":"IF('[1]FISCAL(M)'!$L38=\"\",\"\",'[1]FISCAL(M)'!$L38)","v":"n.d."},"n.d.","n.d.","n.d.","n.d.","n.d.","n.d.","n.d.","n.d.","n.d.","n.d.","n.d.","n.d.","n.d.","n.d.","n.d.","n.d.","n.d.","n.d."]
[1992,"junio ","1992-junio ",{"$f":"IF('[1]REAL IPC(M)'!$AL39=\"\",\"\",+'[1]REAL IPC(M)'!$AL39)","v":"n.d."},{"$f":"IF('[1]REAL IPC(M)'!$BE39=\"\",\"\",+'[1]REAL IPC(M)'!$BE39)","v":"n.d."},{"$f":"IF('[1]REAL IPC(M)'!$AM39=\"\",\"\",+'[1]REAL IPC(M)'!$AM39)","v":"n.d."},{"$f":"IF('[1]REAL IPC(M)'!$BI39=\"\",\"\",+'[1]REAL IPC(M)'!$BI39)","v":"n.d."},{"$f":"IF('[1]REAL IMAE(M)'!BJ39=\"\",\"\",'[1]REAL IMAE(M)'!BJ39)","v":"n.d."},{"$f":"IF('[1]REAL IMAE(M)'!BK39=\"\",\"\",'[1]REAL IMAE(M)'!BK39)","v":"n.d."},{"$f":"IF('[1]REAL IMAE(M)'!BN39=\"\",\"\",'[1]REAL IMAE(M)'!BN39)","v":"n.d."},{"$f":"IF('[1]REAL IMAE(M)'!BO39=\"\",\"\",'[1]REAL IMAE(M)'!BO39)","v":"n.d."},{"$f":"IF('[1]EXT RIN(M)'!$K39=\"\",\"\",'[1]EXT RIN(M)'!$K39)","v":"n.d."},"",{"$f":"IF('[1]EXT RIN(M)'!$L39=\"\",\"\",'[1]EXT RIN(M)'!$L39)","v":"n.d."},"",{"$f":"IF('[1]MONE(M)CARD'!EG39=\"\",\"\",'[1]MONE(M)CARD'!EG39)","v":"n.d."},{"$f":"IF('[1]MONE(M)CARD'!EK39=\"\",\"\",'[1]MONE(M)CARD'!EK39)","v":"n.d."},{"$f":"IF('[1]MONE(M)CARD'!EP39=\"\",\"\",'[1]MONE(M)CARD'!EP39)","v":"n.d."},{"$f":"IF('[1]MONE(M)CARD'!ES39=\"\",\"\",'[1]MONE(M)CARD'!ES39)","v":"n.d."},{"$f":"IF('[1]MONE(M)CARD'!EV39=\"\",\"\",'[1]MONE(M)CARD'!EV39)","v":"n.d."},{"$f":"IF('[1]MONE(M)CARD'!EZ39=\"\",\"\",'[1]MONE(M)CARD'!EZ39)","v":"n.d."},{"$f":"IF('[1]MONE(M)CAPARD'!FC39=\"\",\"\",'[1]MONE(M)CAPARD'!FC39)","v":"n.d."},{"$f":"IF('[1]MONE(M)CAPARD'!FG39=\"\",\"\",'[1]MONE(M)CAPARD'!FG39)","v":"n.d."},{"$f":"IF('[1]MONE(M)CAPARD'!FL39=\"\",\"\",'[1]MONE(M)CAPARD'!FL39)","v":"n.d."},{"$f":"IF('[1]MONE(M)CAPARD'!FO39=\"\",\"\",'[1]MONE(M)CAPARD'!FO39)","v":"n.d."},{"$f":"IF('[1]MONE(M)CAPARD'!FR39=\"\",\"\",'[1]MONE(M)CAPARD'!FR39)","v":"n.d."},{"$f":"IF('[1]MONE(M)CAPARD'!FV39=\"\",\"\",'[1]MONE(M)CAPARD'!FV39)","v":"n.d."},{"$f":"IF('[1]MONE(M)CARD'!FV39=\"\",\"\",'[1]MONE(M)CARD'!FV39)","v":""},{"$f":"IF('[1]MONE(M)CARD'!GD39=\"\",\"\",'[1]MONE(M)CARD'!GD39)","v":"n.d."},{"$f":"IF('[1]MONE(M)CARD'!GE39=\"\",\"\",'[1]MONE(M)CARD'!GE39)","v":"n.d."},"n.d.","n.d.","n.d.","n.d.","n.d.","n.d.","n.d.","n.d.",null,"n.d.","n.d.","n.d.","n.d.","n.d.",{"$f":"IF('[1]MONE(M)CAPARD'!GS39=\"\",\"\",'[1]MONE(M)CAPARD'!GS39)","v":"n.d."},{"$f":"IF('[1]MONE(M)CARD'!HA39=\"\",\"\",'[1]MONE(M)CAPARD'!HA39)","v":"n.d."},{"$f":"IF('[1]MONE(M)CAPARD'!HB39=\"\",\"\",'[1]MONE(M)CAPARD'!HB39)","v":"n.d."},"n.d.","n.d.","n.d.","n.d.","n.d.","n.d.","n.d.","n.d.","n.d.","n.d.","n.d.","n.d.","n.d.","n.d.",{"$f":"IF('[1]MONE(M)CAPARD'!AS39=\"\",\"\",'[1]MONE(M)CAPARD'!AS39)","v":"n.d."},{"$f":"IF('[1]MONE(M)CAPARD'!AT39=\"\",\"\",'[1]MONE(M)CAPARD'!AT39)","v":"n.a."},{"$f":"IF('[1]MONE(M)CAPARD'!AU39=\"\",\"\",'[1]MONE(M)CAPARD'!AU39)","v":"n.d."},{"$f":"IF('[1]MONE(M)CAPARD'!AV39=\"\",\"\",'[1]MONE(M)CAPARD'!AV39)","v":"n.d."},{"$f":"IF('[1]MONE(M)CAPARD'!AW39=\"\",\"\",'[1]MONE(M)CAPARD'!AW39)","v":"n.a."},{"$f":"IF('[1]MONE(M)CAPARD'!AX39=\"\",\"\",'[1]MONE(M)CAPARD'!AX39)","v":"n.d."},{"$f":"IF('[1]MONE(M)CAPARD'!AY39=\"\",\"\",'[1]MONE(M)CAPARD'!AY39)","v":"n.a."},{"$f":"IF('[1]FISCAL(M)'!$K39=\"\",\"\",'[1]FISCAL(M)'!$K39)","v":"n.d."},{"$f":"IF('[1]FISCAL(M)'!$L39=\"\",\"\",'[1]FISCAL(M)'!$L39)","v":"n.d."},{"$f":"IF('[1]FISCAL(M)'!$AY39=\"\",\"\",'[1]FISCAL(M)'!$AY39)","v":"n.d."},{"$f":"IF('[1]FISCAL(M)'!$BI39=\"\",\"\",'[1]FISCAL(M)'!$BI39)","v":"n.d."},{"$f":"IF('[1]FISCAL(M)'!$BS39=\"\",\"\",'[1]FISCAL(M)'!$BS39)","v":"n.d."},{"$f":"IF('[1]FISCAL(M)'!$AZ39=\"\",\"\",'[1]FISCAL(M)'!$AZ39)","v":"n.d."},{"$f":"IF('[1]FISCAL(M)'!$BJ39=\"\",\"\",'[1]FISCAL(M)'!$BJ39)","v":"n.d."},{"$f":"IF('[1]FISCAL(M)'!$BT39=\"\",\"\",'[1]FISCAL(M)'!$BT39)","v":"n.d."},{"$f":"IF('[2]MONE(M)'!$AO39=\"\",\"\",'[2]MONE(M)'!$AO39)","v":"n.d."},{"$f":"IF('[3]MONE(M)'!$AO39=\"\",\"\",'[3]MONE(M)'!$AO39)","v":"n.d."},{"$f":"IF('[4]MONE(M)'!$AO39=\"\",\"\",'[4]MONE(M)'!$AO39)","v":"n.d."},{"$f":"+'[5]MONE(M)'!$AO39","v":"n.d."},{"$f":"IF('[6]MONE(M)'!$AO39=\"\",\"\",'[6]MONE(M)'!$AO39)","v":"n.d."},{"$f":"IF('[7]MONE(M)'!$AO39=\"\",\"\",'[7]MONE(M)'!$AO39)","v":"n.d."},{"$f":"IF('[8]MONE(M)'!$AO39=\"\",\"\",'[8]MONE(M)'!$AO39)","v":"n.d."},"n.d.","n.d.","n.d.","n.d.","n.d.","n.d.","n.d.",{"$f":"IF('[1]FISCAL(M)'!$K39=\"\",\"\",'[1]FISCAL(M)'!$K39)","v":"n.d."},"n.d.","n.d.",{"$f":"IF('[1]FISCAL(M)'!$L39=\"\",\"\",'[1]FISCAL(M)'!$L39)","v":"n.d."},"n.d.","n.d.","n.d.","n.d.","n.d.","n.d.","n.d.","n.d.","n.d.","n.d.","n.d.","n.d.","n.d.","n.d.","n.d.","n.d.","n.d.","n.d."]
[1992,"julio","1992-julio",{"$f":"IF('[1]REAL IPC(M)'!$AL40=\"\",\"\",+'[1]REAL IPC(M)'!$AL40)","v":"n.d."},{"$f":"IF('[1]REAL IPC(M)'!$BE40=\"\",\"\",+'[1]REAL IPC(M)'!$BE40)","v":"n.d."},{"$f":"IF('[1]REAL IPC(M)'!$AM40=\"\",\"\",+'[1]REAL IPC(M)'!$AM40)","v":"n.d."},{"$f":"IF('[1]REAL IPC(M)'!$BI40=\"\",\"\",+'[1]REAL IPC(M)'!$BI40)","v":"n.d."},{"$f":"IF('[1]REAL IMAE(M)'!BJ40=\"\",\"\",'[1]REAL IMAE(M)'!BJ40)","v":"n.d."},{"$f":"IF('[1]REAL IMAE(M)'!BK40=\"\",\"\",'[1]REAL IMAE(M)'!BK40)","v":"n.d."},{"$f":"IF('[1]REAL IMAE(M)'!BN40=\"\",\"\",'[1]REAL IMAE(M)'!BN40)","v":"n.d."},{"$f":"IF('[1]REAL IMAE(M)'!BO40=\"\",\"\",'[1]REAL IMAE(M)'!BO40)","v":"n.d."},{"$f":"IF('[1]EXT RIN(M)'!$K40=\"\",\"\",'[1]EXT RIN(M)'!$K40)","v":"n.d."},"",{"$f":"IF('[1]EXT RIN(M)'!$L40=\"\",\"\",'[1]EXT RIN(M)'!$L40)","v":"n.d."},"",{"$f":"IF('[1]MONE(M)CARD'!EG40=\"\",\"\",'[1]MONE(M)CARD'!EG40)","v":"n.d."},{"$f":"IF('[1]MONE(M)CARD'!EK40=\"\",\"\",'[1]MONE(M)CARD'!EK40)","v":"n.d."},{"$f":"IF('[1]MONE(M)CARD'!EP40=\"\",\"\",'[1]MONE(M)CARD'!EP40)","v":"n.d."},{"$f":"IF('[1]MONE(M)CARD'!ES40=\"\",\"\",'[1]MONE(M)CARD'!ES40)","v":"n.d."},{"$f":"IF('[1]MONE(M)CARD'!EV40=\"\",\"\",'[1]MONE(M)CARD'!EV40)","v":"n.d."},{"$f":"IF('[1]MONE(M)CARD'!EZ40=\"\",\"\",'[1]MONE(M)CARD'!EZ40)","v":"n.d."},{"$f":"IF('[1]MONE(M)CAPARD'!FC40=\"\",\"\",'[1]MONE(M)CAPARD'!FC40)","v":"n.d."},{"$f":"IF('[1]MONE(M)CAPARD'!FG40=\"\",\"\",'[1]MONE(M)CAPARD'!FG40)","v":"n.d."},{"$f":"IF('[1]MONE(M)CAPARD'!FL40=\"\",\"\",'[1]MONE(M)CAPARD'!FL40)","v":"n.d."},{"$f":"IF('[1]MONE(M)CAPARD'!FO40=\"\",\"\",'[1]MONE(M)CAPARD'!FO40)","v":"n.d."},{"$f":"IF('[1]MONE(M)CAPARD'!FR40=\"\",\"\",'[1]MONE(M)CAPARD'!FR40)","v":"n.d."},{"$f":"IF('[1]MONE(M)CAPARD'!FV40=\"\",\"\",'[1]MONE(M)CAPARD'!FV40)","v":"n.d."},{"$f":"IF('[1]MONE(M)CARD'!FV40=\"\",\"\",'[1]MONE(M)CARD'!FV40)","v":""},{"$f":"IF('[1]MONE(M)CARD'!GD40=\"\",\"\",'[1]MONE(M)CARD'!GD40)","v":"n.d."},{"$f":"IF('[1]MONE(M)CARD'!GE40=\"\",\"\",'[1]MONE(M)CARD'!GE40)","v":"n.d."},"n.d.","n.d.","n.d.","n.d.","n.d.","n.d.","n.d.","n.d.",null,"n.d.","n.d.","n.d.","n.d.","n.d.",{"$f":"IF('[1]MONE(M)CAPARD'!GS40=\"\",\"\",'[1]MONE(M)CAPARD'!GS40)","v":"n.d."},{"$f":"IF('[1]MONE(M)CARD'!HA40=\"\",\"\",'[1]MONE(M)CAPARD'!HA40)","v":"n.d."},{"$f":"IF('[1]MONE(M)CAPARD'!HB40=\"\",\"\",'[1]MONE(M)CAPARD'!HB40)","v":"n.d."},"n.d.","n.d.","n.d.","n.d.","n.d.","n.d.","n.d.","n.d.","n.d.","n.d.","n.d.","n.d.","n.d.","n.d.",{"$f":"IF('[1]MONE(M)CAPARD'!AS40=\"\",\"\",'[1]MONE(M)CAPARD'!AS40)","v":"n.d."},{"$f":"IF('[1]MONE(M)CAPARD'!AT40=\"\",\"\",'[1]MONE(M)CAPARD'!AT40)","v":"n.a."},{"$f":"IF('[1]MONE(M)CAPARD'!AU40=\"\",\"\",'[1]MONE(M)CAPARD'!AU40)","v":"n.d."},{"$f":"IF('[1]MONE(M)CAPARD'!AV40=\"\",\"\",'[1]MONE(M)CAPARD'!AV40)","v":"n.d."},{"$f":"IF('[1]MONE(M)CAPARD'!AW40=\"\",\"\",'[1]MONE(M)CAPARD'!AW40)","v":"n.a."},{"$f":"IF('[1]MONE(M)CAPARD'!AX40=\"\",\"\",'[1]MONE(M)CAPARD'!AX40)","v":"n.d."},{"$f":"IF('[1]MONE(M)CAPARD'!AY40=\"\",\"\",'[1]MONE(M)CAPARD'!AY40)","v":"n.a."},{"$f":"IF('[1]FISCAL(M)'!$K40=\"\",\"\",'[1]FISCAL(M)'!$K40)","v":"n.d."},{"$f":"IF('[1]FISCAL(M)'!$L40=\"\",\"\",'[1]FISCAL(M)'!$L40)","v":"n.d."},{"$f":"IF('[1]FISCAL(M)'!$AY40=\"\",\"\",'[1]FISCAL(M)'!$AY40)","v":"n.d."},{"$f":"IF('[1]FISCAL(M)'!$BI40=\"\",\"\",'[1]FISCAL(M)'!$BI40)","v":"n.d."},{"$f":"IF('[1]FISCAL(M)'!$BS40=\"\",\"\",'[1]FISCAL(M)'!$BS40)","v":"n.d."},{"$f":"IF('[1]FISCAL(M)'!$AZ40=\"\",\"\",'[1]FISCAL(M)'!$AZ40)","v":"n.d."},{"$f":"IF('[1]FISCAL(M)'!$BJ40=\"\",\"\",'[1]FISCAL(M)'!$BJ40)","v":"n.d."},{"$f":"IF('[1]FISCAL(M)'!$BT40=\"\",\"\",'[1]FISCAL(M)'!$BT40)","v":"n.d."},{"$f":"IF('[2]MONE(M)'!$AO40=\"\",\"\",'[2]MONE(M)'!$AO40)","v":"n.d."},{"$f":"IF('[3]MONE(M)'!$AO40=\"\",\"\",'[3]MONE(M)'!$AO40)","v":"n.d."},{"$f":"IF('[4]MONE(M)'!$AO40=\"\",\"\",'[4]MONE(M)'!$AO40)","v":"n.d."},{"$f":"+'[5]MONE(M)'!$AO40","v":"n.d."},{"$f":"IF('[6]MONE(M)'!$AO40=\"\",\"\",'[6]MONE(M)'!$AO40)","v":"n.d."},{"$f":"IF('[7]MONE(M)'!$AO40=\"\",\"\",'[7]MONE(M)'!$AO40)","v":"n.d."},{"$f":"IF('[8]MONE(M)'!$AO40=\"\",\"\",'[8]MONE(M)'!$AO40)","v":"n.d."},"n.d.","n.d.","n.d.","n.d.","n.d.","n.d.","n.d.",{"$f":"IF('[1]FISCAL(M)'!$K40=\"\",\"\",'[1]FISCAL(M)'!$K40)","v":"n.d."},"n.d.","n.d.",{"$f":"IF('[1]FISCAL(M)'!$L40=\"\",\"\",'[1]FISCAL(M)'!$L40)","v":"n.d."},"n.d.","n.d.","n.d.","n.d.","n.d.","n.d.","n.d.","n.d.","n.d.","n.d.","n.d.","n.d.","n.d.","n.d.","n.d.","n.d.","n.d.","n.d."]
[1992,"agosto","1992-agosto",{"$f":"IF('[1]REAL IPC(M)'!$AL41=\"\",\"\",+'[1]REAL IPC(M)'!$AL41)","v":"n.d."},{"$f":"IF('[1]REAL IPC(M)'!$BE41=\"\",\"\",+'[1]REAL IPC(M)'!$BE41)","v":"n.d."},{"$f":"IF('[1]REAL IPC(M)'!$AM41=\"\",\"\",+'[1]REAL IPC(M)'!$AM41)","v":"n.d."},{"$f":"IF('[1]REAL IPC(M)'!$BI41=\"\",\"\",+'[1]REAL IPC(M)'!$BI41)","v":"n.d."},{"$f":"IF('[1]REAL IMAE(M)'!BJ41=\"\",\"\",'[1]REAL IMAE(M)'!BJ41)","v":"n.d."},{"$f":"IF('[1]REAL IMAE(M)'!BK41=\"\",\"\",'[1]REAL IMAE(M)'!BK41)","v":"n.d."},{"$f":"IF('[1]REAL IMAE(M)'!BN41=\"\",\"\",'[1]REAL IMAE(M)'!BN41)","v":"n.d."},{"$f":"IF('[1]REAL IMAE(M)'!BO41=\"\",\"\",'[1]REAL IMAE(M)'!BO41)","v":"n.d."},{"$f":"IF('[1]EXT RIN(M)'!$K41=\"\",\"\",'[1]EXT RIN(M)'!$K41)","v":"n.d."},"",{"$f":"IF('[1]EXT RIN(M)'!$L41=\"\",\"\",'[1]EXT RIN(M)'!$L41)","v":"n.d."},"",{"$f":"IF('[1]MONE(M)CARD'!EG41=\"\",\"\",'[1]MONE(M)CARD'!EG41)","v":"n.d."},{"$f":"IF('[1]MONE(M)CARD'!EK41=\"\",\"\",'[1]MONE(M)CARD'!EK41)","v":"n.d."},{"$f":"IF('[1]MONE(M)CARD'!EP41=\"\",\"\",'[1]MONE(M)CARD'!EP41)","v":"n.d."},{"$f":"IF('[1]MONE(M)CARD'!ES41=\"\",\"\",'[1]MONE(M)CARD'!ES41)","v":"n.d."},{"$f":"IF('[1]MONE(M)CARD'!EV41=\"\",\"\",'[1]MONE(M)CARD'!EV41)","v":"n.d."},{"$f":"IF('[1]MONE(M)CARD'!EZ41=\"\",\"\",'[1]MONE(M)CARD'!EZ41)","v":"n.d."},{"$f":"IF('[1]MONE(M)CAPARD'!FC41=\"\",\"\",'[1]MONE(M)CAPARD'!FC41)","v":"n.d."},{"$f":"IF('[1]MONE(M)CAPARD'!FG41=\"\",\"\",'[1]MONE(M)CAPARD'!FG41)","v":"n.d."},{"$f":"IF('[1]MONE(M)CAPARD'!FL41=\"\",\"\",'[1]MONE(M)CAPARD'!FL41)","v":"n.d."},{"$f":"IF('[1]MONE(M)CAPARD'!FO41=\"\",\"\",'[1]MONE(M)CAPARD'!FO41)","v":"n.d."},{"$f":"IF('[1]MONE(M)CAPARD'!FR41=\"\",\"\",'[1]MONE(M)CAPARD'!FR41)","v":"n.d."},{"$f":"IF('[1]MONE(M)CAPARD'!FV41=\"\",\"\",'[1]MONE(M)CAPARD'!FV41)","v":"n.d."},{"$f":"IF('[1]MONE(M)CARD'!FV41=\"\",\"\",'[1]MONE(M)CARD'!FV41)","v":""},{"$f":"IF('[1]MONE(M)CARD'!GD41=\"\",\"\",'[1]MONE(M)CARD'!GD41)","v":"n.d."},{"$f":"IF('[1]MONE(M)CARD'!GE41=\"\",\"\",'[1]MONE(M)CARD'!GE41)","v":"n.d."},"n.d.","n.d.","n.d.","n.d.","n.d.","n.d.","n.d.","n.d.",null,"n.d.","n.d.","n.d.","n.d.","n.d.",{"$f":"IF('[1]MONE(M)CAPARD'!GS41=\"\",\"\",'[1]MONE(M)CAPARD'!GS41)","v":"n.d."},{"$f":"IF('[1]MONE(M)CARD'!HA41=\"\",\"\",'[1]MONE(M)CAPARD'!HA41)","v":"n.d."},{"$f":"IF('[1]MONE(M)CAPARD'!HB41=\"\",\"\",'[1]MONE(M)CAPARD'!HB41)","v":"n.d."},"n.d.","n.d.","n.d.","n.d.","n.d.","n.d.","n.d.","n.d.","n.d.","n.d.","n.d.","n.d.","n.d.","n.d.",{"$f":"IF('[1]MONE(M)CAPARD'!AS41=\"\",\"\",'[1]MONE(M)CAPARD'!AS41)","v":"n.d."},{"$f":"IF('[1]MONE(M)CAPARD'!AT41=\"\",\"\",'[1]MONE(M)CAPARD'!AT41)","v":"n.a."},{"$f":"IF('[1]MONE(M)CAPARD'!AU41=\"\",\"\",'[1]MONE(M)CAPARD'!AU41)","v":"n.d."},{"$f":"IF('[1]MONE(M)CAPARD'!AV41=\"\",\"\",'[1]MONE(M)CAPARD'!AV41)","v":"n.d."},{"$f":"IF('[1]MONE(M)CAPARD'!AW41=\"\",\"\",'[1]MONE(M)CAPARD'!AW41)","v":"n.a."},{"$f":"IF('[1]MONE(M)CAPARD'!AX41=\"\",\"\",'[1]MONE(M)CAPARD'!AX41)","v":"n.d."},{"$f":"IF('[1]MONE(M)CAPARD'!AY41=\"\",\"\",'[1]MONE(M)CAPARD'!AY41)","v":"n.a."},{"$f":"IF('[1]FISCAL(M)'!$K41=\"\",\"\",'[1]FISCAL(M)'!$K41)","v":"n.d."},{"$f":"IF('[1]FISCAL(M)'!$L41=\"\",\"\",'[1]FISCAL(M)'!$L41)","v":"n.d."},{"$f":"IF('[1]FISCAL(M)'!$AY41=\"\",\"\",'[1]FISCAL(M)'!$AY41)","v":"n.d."},{"$f":"IF('[1]FISCAL(M)'!$BI41=\"\",\"\",'[1]FISCAL(M)'!$BI41)","v":"n.d."},{"$f":"IF('[1]FISCAL(M)'!$BS41=\"\",\"\",'[1]FISCAL(M)'!$BS41)","v":"n.d."},{"$f":"IF('[1]FISCAL(M)'!$AZ41=\"\",\"\",'[1]FISCAL(M)'!$AZ41)","v":"n.d."},{"$f":"IF('[1]FISCAL(M)'!$BJ41=\"\",\"\",'[1]FISCAL(M)'!$BJ41)","v":"n.d."},{"$f":"IF('[1]FISCAL(M)'!$BT41=\"\",\"\",'[1]FISCAL(M)'!$BT41)","v":"n.d."},{"$f":"IF('[2]MONE(M)'!$AO41=\"\",\"\",'[2]MONE(M)'!$AO41)","v":"n.d."},{"$f":"IF('[3]MONE(M)'!$AO41=\"\",\"\",'[3]MONE(M)'!$AO41)","v":"n.d."},{"$f":"IF('[4]MONE(M)'!$AO41=\"\",\"\",'[4]MONE(M)'!$AO41)","v":"n.d."},{"$f":"+'[5]MONE(M)'!$AO41","v":"n.d."},{"$f":"IF('[6]MONE(M)'!$AO41=\"\",\"\",'[6]MONE(M)'!$AO41)","v":"n.d."},{"$f":"IF('[7]MONE(M)'!$AO41=\"\",\"\",'[7]MONE(M)'!$AO41)","v":"n.d."},{"$f":"IF('[8]MONE(M)'!$AO41=\"\",\"\",'[8]MONE(M)'!$AO41)","v":"n.d."},"n.d.","n.d.","n.d.","n.d.","n.d.","n.d.","n.d.",{"$f":"IF('[1]FISCAL(M)'!$K41=\"\",\"\",'[1]FISCAL(M)'!$K41)","v":"n.d."},"n.d.","n.d.",{"$f":"IF('[1]FISCAL(M)'!$L41=\"\",\"\",'[1]FISCAL(M)'!$L41)","v":"n.d."},"n.d.","n.d.","n.d.","n.d.","n.d.","n.d.","n.d.","n.d.","n.d.","n.d.","n.d.","n.d.","n.d.","n.d.","n.d.","n.d.","n.d.","n.d."]
[1992,"septiembre","1992-septiembre",{"$f":"IF('[1]REAL IPC(M)'!$AL42=\"\",\"\",+'[1]REAL IPC(M)'!$AL42)","v":"n.d."},{"$f":"IF('[1]REAL IPC(M)'!$BE42=\"\",\"\",+'[1]REAL IPC(M)'!$BE42)","v":"n.d."},{"$f":"IF('[1]REAL IPC(M)'!$AM42=\"\",\"\",+'[1]REAL IPC(M)'!$AM42)","v":"n.d."},{"$f":"IF('[1]REAL IPC(M)'!$BI42=\"\",\"\",+'[1]REAL IPC(M)'!$BI42)","v":"n.d."},{"$f":"IF('[1]REAL IMAE(M)'!BJ42=\"\",\"\",'[1]REAL IMAE(M)'!BJ42)","v":"n.d."},{"$f":"IF('[1]REAL IMAE(M)'!BK42=\"\",\"\",'[1]REAL IMAE(M)'!BK42)","v":"n.d."},{"$f":"IF('[1]REAL IMAE(M)'!BN42=\"\",\"\",'[1]REAL IMAE(M)'!BN42)","v":"n.d."},{"$f":"IF('[1]REAL IMAE(M)'!BO42=\"\",\"\",'[1]REAL IMAE(M)'!BO42)","v":"n.d."},{"$f":"IF('[1]EXT RIN(M)'!$K42=\"\",\"\",'[1]EXT RIN(M)'!$K42)","v":"n.d."},"",{"$f":"IF('[1]EXT RIN(M)'!$L42=\"\",\"\",'[1]EXT RIN(M)'!$L42)","v":"n.d."},"",{"$f":"IF('[1]MONE(M)CARD'!EG42=\"\",\"\",'[1]MONE(M)CARD'!EG42)","v":"n.d."},{"$f":"IF('[1]MONE(M)CARD'!EK42=\"\",\"\",'[1]MONE(M)CARD'!EK42)","v":"n.d."},{"$f":"IF('[1]MONE(M)CARD'!EP42=\"\",\"\",'[1]MONE(M)CARD'!EP42)","v":"n.d."},{"$f":"IF('[1]MONE(M)CARD'!ES42=\"\",\"\",'[1]MONE(M)CARD'!ES42)","v":"n.d."},{"$f":"IF('[1]MONE(M)CARD'!EV42=\"\",\"\",'[1]MONE(M)CARD'!EV42)","v":"n.d."},{"$f":"IF('[1]MONE(M)CARD'!EZ42=\"\",\"\",'[1]MONE(M)CARD'!EZ42)","v":"n.d."},{"$f":"IF('[1]MONE(M)CAPARD'!FC42=\"\",\"\",'[1]MONE(M)CAPARD'!FC42)","v":"n.d."},{"$f":"IF('[1]MONE(M)CAPARD'!FG42=\"\",\"\",'[1]MONE(M)CAPARD'!FG42)","v":"n.d."},{"$f":"IF('[1]MONE(M)CAPARD'!FL42=\"\",\"\",'[1]MONE(M)CAPARD'!FL42)","v":"n.d."},{"$f":"IF('[1]MONE(M)CAPARD'!FO42=\"\",\"\",'[1]MONE(M)CAPARD'!FO42)","v":"n.d."},{"$f":"IF('[1]MONE(M)CAPARD'!FR42=\"\",\"\",'[1]MONE(M)CAPARD'!FR42)","v":"n.d."},{"$f":"IF('[1]MONE(M)CAPARD'!FV42=\"\",\"\",'[1]MONE(M)CAPARD'!FV42)","v":"n.d."},{"$f":"IF('[1]MONE(M)CARD'!FV42=\"\",\"\",'[1]MONE(M)CARD'!FV42)","v":""},{"$f":"IF('[1]MONE(M)CARD'!GD42=\"\",\"\",'[1]MONE(M)CARD'!GD42)","v":"n.d."},{"$f":"IF('[1]MONE(M)CARD'!GE42=\"\",\"\",'[1]MONE(M)CARD'!GE42)","v":"n.d."},"n.d.","n.d.","n.d.","n.d.","n.d.","n.d.","n.d.","n.d.",null,"n.d.","n.d.","n.d.","n.d.","n.d.",{"$f":"IF('[1]MONE(M)CAPARD'!GS42=\"\",\"\",'[1]MONE(M)CAPARD'!GS42)","v":"n.d."},{"$f":"IF('[1]MONE(M)CARD'!HA42=\"\",\"\",'[1]MONE(M)CAPARD'!HA42)","v":"n.d."},{"$f":"IF('[1]MONE(M)CAPARD'!HB42=\"\",\"\",'[1]MONE(M)CAPARD'!HB42)","v":"n.d."},"n.d.","n.d.","n.d.","n.d.","n.d.","n.d.","n.d.","n.d.","n.d.","n.d.","n.d.","n.d.","n.d.","n.d.",{"$f":"IF('[1]MONE(M)CAPARD'!AS42=\"\",\"\",'[1]MONE(M)CAPARD'!AS42)","v":"n.d."},{"$f":"IF('[1]MONE(M)CAPARD'!AT42=\"\",\"\",'[1]MONE(M)CAPARD'!AT42)","v":"n.a."},{"$f":"IF('[1]MONE(M)CAPARD'!AU42=\"\",\"\",'[1]MONE(M)CAPARD'!AU42)","v":"n.d."},{"$f":"IF('[1]MONE(M)CAPARD'!AV42=\"\",\"\",'[1]MONE(M)CAPARD'!AV42)","v":"n.d."},{"$f":"IF('[1]MONE(M)CAPARD'!AW42=\"\",\"\",'[1]MONE(M)CAPARD'!AW42)","v":"n.a."},{"$f":"IF('[1]MONE(M)CAPARD'!AX42=\"\",\"\",'[1]MONE(M)CAPARD'!AX42)","v":"n.d."},{"$f":"IF('[1]MONE(M)CAPARD'!AY42=\"\",\"\",'[1]MONE(M)CAPARD'!AY42)","v":"n.a."},{"$f":"IF('[1]FISCAL(M)'!$K42=\"\",\"\",'[1]FISCAL(M)'!$K42)","v":"n.d."},{"$f":"IF('[1]FISCAL(M)'!$L42=\"\",\"\",'[1]FISCAL(M)'!$L42)","v":"n.d."},{"$f":"IF('[1]FISCAL(M)'!$AY42=\"\",\"\",'[1]FISCAL(M)'!$AY42)","v":"n.d."},{"$f":"IF('[1]FISCAL(M)'!$BI42=\"\",\"\",'[1]FISCAL(M)'!$BI42)","v":"n.d."},{"$f":"IF('[1]FISCAL(M)'!$BS42=\"\",\"\",'[1]FISCAL(M)'!$BS42)","v":"n.d."},{"$f":"IF('[1]FISCAL(M)'!$AZ42=\"\",\"\",'[1]FISCAL(M)'!$AZ42)","v":"n.d."},{"$f":"IF('[1]FISCAL(M)'!$BJ42=\"\",\"\",'[1]FISCAL(M)'!$BJ42)","v":"n.d."},{"$f":"IF('[1]FISCAL(M)'!$BT42=\"\",\"\",'[1]FISCAL(M)'!$BT42)","v":"n.d."},{"$f":"IF('[2]MONE(M)'!$AO42=\"\",\"\",'[2]MONE(M)'!$AO42)","v":"n.d."},{"$f":"IF('[3]MONE(M)'!$AO42=\"\",\"\",'[3]MONE(M)'!$AO42)","v":"n.d."},{"$f":"IF('[4]MONE(M)'!$AO42=\"\",\"\",'[4]MONE(M)'!$AO42)","v":"n.d."},{"$f":"+'[5]MONE(M)'!$AO42","v":"n.d."},{"$f":"IF('[6]MONE(M)'!$AO42=\"\",\"\",'[6]MONE(M)'!$AO42)","v":"n.d."},{"$f":"IF('[7]MONE(M)'!$AO42=\"\",\"\",'[7]MONE(M)'!$AO42)","v":"n.d."},{"$f":"IF('[8]MONE(M)'!$AO42=\"\",\"\",'[8]MONE(M)'!$AO42)","v":"n.d."},"n.d.","n.d.","n.d.","n.d.","n.d.","n.d.","n.d.",{"$f":"IF('[1]FISCAL(M)'!$K42=\"\",\"\",'[1]FISCAL(M)'!$K42)","v":"n.d."},"n.d.","n.d.",{"$f":"IF('[1]FISCAL(M)'!$L42=\"\",\"\",'[1]FISCAL(M)'!$L42)","v":"n.d."},"n.d.","n.d.","n.d.","n.d.","n.d.","n.d.","n.d.","n.d.","n.d.","n.d.","n.d.","n.d.","n.d.","n.d.","n.d.","n.d.","n.d.","n.d."]
[1992,"octubre","1992-octubre",{"$f":"IF('[1]REAL IPC(M)'!$AL43=\"\",\"\",+'[1]REAL IPC(M)'!$AL43)","v":"n.d."},{"$f":"IF('[1]REAL IPC(M)'!$BE43=\"\",\"\",+'[1]REAL IPC(M)'!$BE43)","v":"n.d."},{"$f":"IF('[1]REAL IPC(M)'!$AM43=\"\",\"\",+'[1]REAL IPC(M)'!$AM43)","v":"n.d."},{"$f":"IF('[1]REAL IPC(M)'!$BI43=\"\",\"\",+'[1]REAL IPC(M)'!$BI43)","v":"n.d."},{"$f":"IF('[1]REAL IMAE(M)'!BJ43=\"\",\"\",'[1]REAL IMAE(M)'!BJ43)","v":"n.d."},{"$f":"IF('[1]REAL IMAE(M)'!BK43=\"\",\"\",'[1]REAL IMAE(M)'!BK43)","v":"n.d."},{"$f":"IF('[1]REAL IMAE(M)'!BN43=\"\",\"\",'[1]REAL IMAE(M)'!BN43)","v":"n.d."},{"$f":"IF('[1]REAL IMAE(M)'!BO43=\"\",\"\",'[1]REAL IMAE(M)'!BO43)","v":"n.d."},{"$f":"IF('[1]EXT RIN(M)'!$K43=\"\",\"\",'[1]EXT RIN(M)'!$K43)","v":"n.d."},"",{"$f":"IF('[1]EXT RIN(M)'!$L43=\"\",\"\",'[1]EXT RIN(M)'!$L43)","v":"n.d."},"",{"$f":"IF('[1]MONE(M)CARD'!EG43=\"\",\"\",'[1]MONE(M)CARD'!EG43)","v":"n.d."},{"$f":"IF('[1]MONE(M)CARD'!EK43=\"\",\"\",'[1]MONE(M)CARD'!EK43)","v":"n.d."},{"$f":"IF('[1]MONE(M)CARD'!EP43=\"\",\"\",'[1]MONE(M)CARD'!EP43)","v":"n.d."},{"$f":"IF('[1]MONE(M)CARD'!ES43=\"\",\"\",'[1]MONE(M)CARD'!ES43)","v":"n.d."},{"$f":"IF('[1]MONE(M)CARD'!EV43=\"\",\"\",'[1]MONE(M)CARD'!EV43)","v":"n.d."},{"$f":"IF('[1]MONE(M)CARD'!EZ43=\"\",\"\",'[1]MONE(M)CARD'!EZ43)","v":"n.d."},{"$f":"IF('[1]MONE(M)CAPARD'!FC43=\"\",\"\",'[1]MONE(M)CAPARD'!FC43)","v":"n.d."},{"$f":"IF('[1]MONE(M)CAPARD'!FG43=\"\",\"\",'[1]MONE(M)CAPARD'!FG43)","v":"n.d."},{"$f":"IF('[1]MONE(M)CAPARD'!FL43=\"\",\"\",'[1]MONE(M)CAPARD'!FL43)","v":"n.d."},{"$f":"IF('[1]MONE(M)CAPARD'!FO43=\"\",\"\",'[1]MONE(M)CAPARD'!FO43)","v":"n.d."},{"$f":"IF('[1]MONE(M)CAPARD'!FR43=\"\",\"\",'[1]MONE(M)CAPARD'!FR43)","v":"n.d."},{"$f":"IF('[1]MONE(M)CAPARD'!FV43=\"\",\"\",'[1]MONE(M)CAPARD'!FV43)","v":"n.d."},{"$f":"IF('[1]MONE(M)CARD'!FV43=\"\",\"\",'[1]MONE(M)CARD'!FV43)","v":""},{"$f":"IF('[1]MONE(M)CARD'!GD43=\"\",\"\",'[1]MONE(M)CARD'!GD43)","v":"n.d."},{"$f":"IF('[1]MONE(M)CARD'!GE43=\"\",\"\",'[1]MONE(M)CARD'!GE43)","v":"n.d."},"n.d.","n.d.","n.d.","n.d.","n.d.","n.d.","n.d.","n.d.",null,"n.d.","n.d.","n.d.","n.d.","n.d.",{"$f":"IF('[1]MONE(M)CAPARD'!GS43=\"\",\"\",'[1]MONE(M)CAPARD'!GS43)","v":"n.d."},{"$f":"IF('[1]MONE(M)CARD'!HA43=\"\",\"\",'[1]MONE(M)CAPARD'!HA43)","v":"n.d."},{"$f":"IF('[1]MONE(M)CAPARD'!HB43=\"\",\"\",'[1]MONE(M)CAPARD'!HB43)","v":"n.d."},"n.d.","n.d.","n.d.","n.d.","n.d.","n.d.","n.d.","n.d.","n.d.","n.d.","n.d.","n.d.","n.d.","n.d.",{"$f":"IF('[1]MONE(M)CAPARD'!AS43=\"\",\"\",'[1]MONE(M)CAPARD'!AS43)","v":"n.d."},{"$f":"IF('[1]MONE(M)CAPARD'!AT43=\"\",\"\",'[1]MONE(M)CAPARD'!AT43)","v":"n.a."},{"$f":"IF('[1]MONE(M)CAPARD'!AU43=\"\",\"\",'[1]MONE(M)CAPARD'!AU43)","v":"n.d."},{"$f":"IF('[1]MONE(M)CAPARD'!AV43=\"\",\"\",'[1]MONE(M)CAPARD'!AV43)","v":"n.d."},{"$f":"IF('[1]MONE(M)CAPARD'!AW43=\"\",\"\",'[1]MONE(M)CAPARD'!AW43)","v":"n.a."},{"$f":"IF('[1]MONE(M)CAPARD'!AX43=\"\",\"\",'[1]MONE(M)CAPARD'!AX43)","v":"n.d."},{"$f":"IF('[1]MONE(M)CAPARD'!AY43=\"\",\"\",'[1]MONE(M)CAPARD'!AY43)","v":"n.a."},{"$f":"IF('[1]FISCAL(M)'!$K43=\"\",\"\",'[1]FISCAL(M)'!$K43)","v":"n.d."},{"$f":"IF('[1]FISCAL(M)'!$L43=\"\",\"\",'[1]FISCAL(M)'!$L43)","v":"n.d."},{"$f":"IF('[1]FISCAL(M)'!$AY43=\"\",\"\",'[1]FISCAL(M)'!$AY43)","v":"n.d."},{"$f":"IF('[1]FISCAL(M)'!$BI43=\"\",\"\",'[1]FISCAL(M)'!$BI43)","v":"n.d."},{"$f":"IF('[1]FISCAL(M)'!$BS43=\"\",\"\",'[1]FISCAL(M)'!$BS43)","v":"n.d."},{"$f":"IF('[1]FISCAL(M)'!$AZ43=\"\",\"\",'[1]FISCAL(M)'!$AZ43)","v":"n.d."},{"$f":"IF('[1]FISCAL(M)'!$BJ43=\"\",\"\",'[1]FISCAL(M)'!$BJ43)","v":"n.d."},{"$f":"IF('[1]FISCAL(M)'!$BT43=\"\",\"\",'[1]FISCAL(M)'!$BT43)","v":"n.d."},{"$f":"IF('[2]MONE(M)'!$AO43=\"\",\"\",'[2]MONE(M)'!$AO43)","v":"n.d."},{"$f":"IF('[3]MONE(M)'!$AO43=\"\",\"\",'[3]MONE(M)'!$AO43)","v":"n.d."},{"$f":"IF('[4]MONE(M)'!$AO43=\"\",\"\",'[4]MONE(M)'!$AO43)","v":"n.d."},{"$f":"+'[5]MONE(M)'!$AO43","v":"n.d."},{"$f":"IF('[6]MONE(M)'!$AO43=\"\",\"\",'[6]MONE(M)'!$AO43)","v":"n.d."},{"$f":"IF('[7]MONE(M)'!$AO43=\"\",\"\",'[7]MONE(M)'!$AO43)","v":"n.d."},{"$f":"IF('[8]MONE(M)'!$AO43=\"\",\"\",'[8]MONE(M)'!$AO43)","v":"n.d."},"n.d.","n.d.","n.d.","n.d.","n.d.","n.d.","n.d.",{"$f":"IF('[1]FISCAL(M)'!$K43=\"\",\"\",'[1]FISCAL(M)'!$K43)","v":"n.d."},"n.d.","n.d.",{"$f":"IF('[1]FISCAL(M)'!$L43=\"\",\"\",'[1]FISCAL(M)'!$L43)","v":"n.d."},"n.d.","n.d.","n.d.","n.d.","n.d.","n.d.","n.d.","n.d.","n.d.","n.d.","n.d.","n.d.","n.d.","n.d.","n.d.","n.d.","n.d.","n.d."]
[1992,"noviembre","1992-noviembre",{"$f":"IF('[1]REAL IPC(M)'!$AL44=\"\",\"\",+'[1]REAL IPC(M)'!$AL44)","v":"n.d."},{"$f":"IF('[1]REAL IPC(M)'!$BE44=\"\",\"\",+'[1]REAL IPC(M)'!$BE44)","v":"n.d."},{"$f":"IF('[1]REAL IPC(M)'!$AM44=\"\",\"\",+'[1]REAL IPC(M)'!$AM44)","v":"n.d."},{"$f":"IF('[1]REAL IPC(M)'!$BI44=\"\",\"\",+'[1]REAL IPC(M)'!$BI44)","v":"n.d."},{"$f":"IF('[1]REAL IMAE(M)'!BJ44=\"\",\"\",'[1]REAL IMAE(M)'!BJ44)","v":"n.d."},{"$f":"IF('[1]REAL IMAE(M)'!BK44=\"\",\"\",'[1]REAL IMAE(M)'!BK44)","v":"n.d."},{"$f":"IF('[1]REAL IMAE(M)'!BN44=\"\",\"\",'[1]REAL IMAE(M)'!BN44)","v":"n.d."},{"$f":"IF('[1]REAL IMAE(M)'!BO44=\"\",\"\",'[1]REAL IMAE(M)'!BO44)","v":"n.d."},{"$f":"IF('[1]EXT RIN(M)'!$K44=\"\",\"\",'[1]EXT RIN(M)'!$K44)","v":"n.d."},"",{"$f":"IF('[1]EXT RIN(M)'!$L44=\"\",\"\",'[1]EXT RIN(M)'!$L44)","v":"n.d."},"",{"$f":"IF('[1]MONE(M)CARD'!EG44=\"\",\"\",'[1]MONE(M)CARD'!EG44)","v":"n.d."},{"$f":"IF('[1]MONE(M)CARD'!EK44=\"\",\"\",'[1]MONE(M)CARD'!EK44)","v":"n.d."},{"$f":"IF('[1]MONE(M)CARD'!EP44=\"\",\"\",'[1]MONE(M)CARD'!EP44)","v":"n.d."},{"$f":"IF('[1]MONE(M)CARD'!ES44=\"\",\"\",'[1]MONE(M)CARD'!ES44)","v":"n.d."},{"$f":"IF('[1]MONE(M)CARD'!EV44=\"\",\"\",'[1]MONE(M)CARD'!EV44)","v":"n.d."},{"$f":"IF('[1]MONE(M)CARD'!EZ44=\"\",\"\",'[1]MONE(M)CARD'!EZ44)","v":"n.d."},{"$f":"IF('[1]MONE(M)CAPARD'!FC44=\"\",\"\",'[1]MONE(M)CAPARD'!FC44)","v":"n.d."},{"$f":"IF('[1]MONE(M)CAPARD'!FG44=\"\",\"\",'[1]MONE(M)CAPARD'!FG44)","v":"n.d."},{"$f":"IF('[1]MONE(M)CAPARD'!FL44=\"\",\"\",'[1]MONE(M)CAPARD'!FL44)","v":"n.d."},{"$f":"IF('[1]MONE(M)CAPARD'!FO44=\"\",\"\",'[1]MONE(M)CAPARD'!FO44)","v":"n.d."},{"$f":"IF('[1]MONE(M)CAPARD'!FR44=\"\",\"\",'[1]MONE(M)CAPARD'!FR44)","v":"n.d."},{"$f":"IF('[1]MONE(M)CAPARD'!FV44=\"\",\"\",'[1]MONE(M)CAPARD'!FV44)","v":"n.d."},{"$f":"IF('[1]MONE(M)CARD'!FV44=\"\",\"\",'[1]MONE(M)CARD'!FV44)","v":""},{"$f":"IF('[1]MONE(M)CARD'!GD44=\"\",\"\",'[1]MONE(M)CARD'!GD44)","v":"n.d."},{"$f":"IF('[1]MONE(M)CARD'!GE44=\"\",\"\",'[1]MONE(M)CARD'!GE44)","v":"n.d."},"n.d.","n.d.","n.d.","n.d.","n.d.","n.d.","n.d.","n.d.",null,"n.d.","n.d.","n.d.","n.d.","n.d.",{"$f":"IF('[1]MONE(M)CAPARD'!GS44=\"\",\"\",'[1]MONE(M)CAPARD'!GS44)","v":"n.d."},{"$f":"IF('[1]MONE(M)CARD'!HA44=\"\",\"\",'[1]MONE(M)CAPARD'!HA44)","v":"n.d."},{"$f":"IF('[1]MONE(M)CAPARD'!HB44=\"\",\"\",'[1]MONE(M)CAPARD'!HB44)","v":"n.d."},"n.d.","n.d.","n.d.","n.d.","n.d.","n.d.","n.d.","n.d.","n.d.","n.d.","n.d.","n.d.","n.d.","n.d.",{"$f":"IF('[1]MONE(M)CAPARD'!AS44=\"\",\"\",'[1]MONE(M)CAPARD'!AS44)","v":"n.d."},{"$f":"IF('[1]MONE(M)CAPARD'!AT44=\"\",\"\",'[1]MONE(M)CAPARD'!AT44)","v":"n.a."},{"$f":"IF('[1]MONE(M)CAPARD'!AU44=\"\",\"\",'[1]MONE(M)CAPARD'!AU44)","v":"n.d."},{"$f":"IF('[1]MONE(M)CAPARD'!AV44=\"\",\"\",'[1]MONE(M)CAPARD'!AV44)","v":"n.d."},{"$f":"IF('[1]MONE(M)CAPARD'!AW44=\"\",\"\",'[1]MONE(M)CAPARD'!AW44)","v":"n.a."},{"$f":"IF('[1]MONE(M)CAPARD'!AX44=\"\",\"\",'[1]MONE(M)CAPARD'!AX44)","v":"n.d."},{"$f":"IF('[1]MONE(M)CAPARD'!AY44=\"\",\"\",'[1]MONE(M)CAPARD'!AY44)","v":"n.a."},{"$f":"IF('[1]FISCAL(M)'!$K44=\"\",\"\",'[1]FISCAL(M)'!$K44)","v":"n.d."},{"$f":"IF('[1]FISCAL(M)'!$L44=\"\",\"\",'[1]FISCAL(M)'!$L44)","v":"n.d."},{"$f":"IF('[1]FISCAL(M)'!$AY44=\"\",\"\",'[1]FISCAL(M)'!$AY44)","v":"n.d."},{"$f":"IF('[1]FISCAL(M)'!$BI44=\"\",\"\",'[1]FISCAL(M)'!$BI44)","v":"n.d."},{"$f":"IF('[1]FISCAL(M)'!$BS44=\"\",\"\",'[1]FISCAL(M)'!$BS44)","v":"n.d."},{"$f":"IF('[1]FISCAL(M)'!$AZ44=\"\",\"\",'[1]FISCAL(M)'!$AZ44)","v":"n.d."},{"$f":"IF('[1]FISCAL(M)'!$BJ44=\"\",\"\",'[1]FISCAL(M)'!$BJ44)","v":"n.d."},{"$f":"IF('[1]FISCAL(M)'!$BT44=\"\",\"\",'[1]FISCAL(M)'!$BT44)","v":"n.d."},{"$f":"IF('[2]MONE(M)'!$AO44=\"\",\"\",'[2]MONE(M)'!$AO44)","v":"n.d."},{"$f":"IF('[3]MONE(M)'!$AO44=\"\",\"\",'[3]MONE(M)'!$AO44)","v":"n.d."},{"$f":"IF('[4]MONE(M)'!$AO44=\"\",\"\",'[4]MONE(M)'!$AO44)","v":"n.d."},{"$f":"+'[5]MONE(M)'!$AO44","v":"n.d."},{"$f":"IF('[6]MONE(M)'!$AO44=\"\",\"\",'[6]MONE(M)'!$AO44)","v":"n.d."},{"$f":"IF('[7]MONE(M)'!$AO44=\"\",\"\",'[7]MONE(M)'!$AO44)","v":"n.d."},{"$f":"IF('[8]MONE(M)'!$AO44=\"\",\"\",'[8]MONE(M)'!$AO44)","v":"n.d."},"n.d.","n.d.","n.d.","n.d.","n.d.","n.d.","n.d.",{"$f":"IF('[1]FISCAL(M)'!$K44=\"\",\"\",'[1]FISCAL(M)'!$K44)","v":"n.d."},"n.d.","n.d.",{"$f":"IF('[1]FISCAL(M)'!$L44=\"\",\"\",'[1]FISCAL(M)'!$L44)","v":"n.d."},"n.d.","n.d.","n.d.","n.d.","n.d.","n.d.","n.d.","n.d.","n.d.","n.d.","n.d.","n.d.","n.d.","n.d.","n.d.","n.d.","n.d.","n.d."]
[1992,"diciembre","1992-diciembre",{"$f":"IF('[1]REAL IPC(M)'!$AL45=\"\",\"\",+'[1]REAL IPC(M)'!$AL45)","v":"n.d."},{"$f":"IF('[1]REAL IPC(M)'!$BE45=\"\",\"\",+'[1]REAL IPC(M)'!$BE45)","v":"n.d."},{"$f":"IF('[1]REAL IPC(M)'!$AM45=\"\",\"\",+'[1]REAL IPC(M)'!$AM45)","v":"n.d."},{"$f":"IF('[1]REAL IPC(M)'!$BI45=\"\",\"\",+'[1]REAL IPC(M)'!$BI45)","v":"n.d."},{"$f":"IF('[1]REAL IMAE(M)'!BJ45=\"\",\"\",'[1]REAL IMAE(M)'!BJ45)","v":"n.d."},{"$f":"IF('[1]REAL IMAE(M)'!BK45=\"\",\"\",'[1]REAL IMAE(M)'!BK45)","v":"n.d."},{"$f":"IF('[1]REAL IMAE(M)'!BN45=\"\",\"\",'[1]REAL IMAE(M)'!BN45)","v":"n.d."},{"$f":"IF('[1]REAL IMAE(M)'!BO45=\"\",\"\",'[1]REAL IMAE(M)'!BO45)","v":"n.d."},{"$f":"IF('[1]EXT RIN(M)'!$K45=\"\",\"\",'[1]EXT RIN(M)'!$K45)","v":"n.d."},"n.d.",{"$f":"IF('[1]EXT RIN(M)'!$L45=\"\",\"\",'[1]EXT RIN(M)'!$L45)","v":"n.d."},"n.d.",{"$f":"IF('[1]MONE(M)CARD'!EG45=\"\",\"\",'[1]MONE(M)CARD'!EG45)","v":"n.d."},{"$f":"IF('[1]MONE(M)CARD'!EK45=\"\",\"\",'[1]MONE(M)CARD'!EK45)","v":"n.d."},{"$f":"IF('[1]MONE(M)CARD'!EP45=\"\",\"\",'[1]MONE(M)CARD'!EP45)","v":"n.d."},{"$f":"IF('[1]MONE(M)CARD'!ES45=\"\",\"\",'[1]MONE(M)CARD'!ES45)","v":"n.d."},{"$f":"IF('[1]MONE(M)CARD'!EV45=\"\",\"\",'[1]MONE(M)CARD'!EV45)","v":"n.d."},{"$f":"IF('[1]MONE(M)CARD'!EZ45=\"\",\"\",'[1]MONE(M)CARD'!EZ45)","v":"n.d."},{"$f":"IF('[1]MONE(M)CAPARD'!FC45=\"\",\"\",'[1]MONE(M)CAPARD'!FC45)","v":"n.d."},{"$f":"IF('[1]MONE(M)CAPARD'!FG45=\"\",\"\",'[1]MONE(M)CAPARD'!FG45)","v":"n.d."},{"$f":"IF('[1]MONE(M)CAPARD'!FL45=\"\",\"\",'[1]MONE(M)CAPARD'!FL45)","v":"n.d."},{"$f":"IF('[1]MONE(M)CAPARD'!FO45=\"\",\"\",'[1]MONE(M)CAPARD'!FO45)","v":"n.d."},{"$f":"IF('[1]MONE(M)CAPARD'!FR45=\"\",\"\",'[1]MONE(M)CAPARD'!FR45)","v":"n.d."},{"$f":"IF('[1]MONE(M)CAPARD'!FV45=\"\",\"\",'[1]MONE(M)CAPARD'!FV45)","v":"n.d."},{"$f":"IF('[1]MONE(M)CARD'!FV45=\"\",\"\",'[1]MONE(M)CARD'!FV45)","v":""},{"$f":"IF('[1]MONE(M)CARD'!GD45=\"\",\"\",'[1]MONE(M)CARD'!GD45)","v":"n.d."},{"$f":"IF('[1]MONE(M)CARD'!GE45=\"\",\"\",'[1]MONE(M)CARD'!GE45)","v":"n.d."},"n.d.","n.d.","n.d.","n.d.","n.d.","n.d.","n.d.","n.d.",null,"n.d.","n.d.","n.d.","n.d.","n.d.",{"$f":"IF('[1]MONE(M)CAPARD'!GS45=\"\",\"\",'[1]MONE(M)CAPARD'!GS45)","v":"n.d."},{"$f":"IF('[1]MONE(M)CARD'!HA45=\"\",\"\",'[1]MONE(M)CAPARD'!HA45)","v":"n.d."},{"$f":"IF('[1]MONE(M)CAPARD'!HB45=\"\",\"\",'[1]MONE(M)CAPARD'!HB45)","v":"n.d."},"n.d.","n.d.","n.d.","n.d.","n.d.","n.d.","n.d.","n.d.","n.d.","n.d.","n.d.","n.d.","n.d.","n.d.",{"$f":"IF('[1]MONE(M)CAPARD'!AS45=\"\",\"\",'[1]MONE(M)CAPARD'!AS45)","v":"n.d."},{"$f":"IF('[1]MONE(M)CAPARD'!AT45=\"\",\"\",'[1]MONE(M)CAPARD'!AT45)","v":"n.a."},{"$f":"IF('[1]MONE(M)CAPARD'!AU45=\"\",\"\",'[1]MONE(M)CAPARD'!AU45)","v":"n.d."},{"$f":"IF('[1]MONE(M)CAPARD'!AV45=\"\",\"\",'[1]MONE(M)CAPARD'!AV45)","v":"n.d."},{"$f":"IF('[1]MONE(M)CAPARD'!AW45=\"\",\"\",'[1]MONE(M)CAPARD'!AW45)","v":"n.a."},{"$f":"IF('[1]MONE(M)CAPARD'!AX45=\"\",\"\",'[1]MONE(M)CAPARD'!AX45)","v":"n.d."},{"$f":"IF('[1]MONE(M)CAPARD'!AY45=\"\",\"\",'[1]MONE(M)CAPARD'!AY45)","v":"n.a."},{"$f":"IF('[1]FISCAL(M)'!$K45=\"\",\"\",'[1]FISCAL(M)'!$K45)","v":"n.d."},{"$f":"IF('[1]FISCAL(M)'!$L45=\"\",\"\",'[1]FISCAL(M)'!$L45)","v":"n.d."},{"$f":"IF('[1]FISCAL(M)'!$AY45=\"\",\"\",'[1]FISCAL(M)'!$AY45)","v":"n.d."},{"$f":"IF('[1]FISCAL(M)'!$BI45=\"\",\"\",'[1]FISCAL(M)'!$BI45)","v":"n.d."},{"$f":"IF('[1]FISCAL(M)'!$BS45=\"\",\"\",'[1]FISCAL(M)'!$BS45)","v":"n.d."},{"$f":"IF('[1]FISCAL(M)'!$AZ45=\"\",\"\",'[1]FISCAL(M)'!$AZ45)","v":"n.d."},{"$f":"IF('[1]FISCAL(M)'!$BJ45=\"\",\"\",'[1]FISCAL(M)'!$BJ45)","v":"n.d."},{"$f":"IF('[1]FISCAL(M)'!$BT45=\"\",\"\",'[1]FISCAL(M)'!$BT45)","v":"n.d."},{"$f":"IF('[2]MONE(M)'!$AO45=\"\",\"\",'[2]MONE(M)'!$AO45)","v":"n.d."},{"$f":"IF('[3]MONE(M)'!$AO45=\"\",\"\",'[3]MONE(M)'!$AO45)","v":"n.d."},{"$f":"IF('[4]MONE(M)'!$AO45=\"\",\"\",'[4]MONE(M)'!$AO45)","v":"n.d."},{"$f":"+'[5]MONE(M)'!$AO45","v":"n.d."},{"$f":"IF('[6]MONE(M)'!$AO45=\"\",\"\",'[6]MONE(M)'!$AO45)","v":"n.d."},{"$f":"IF('[7]MONE(M)'!$AO45=\"\",\"\",'[7]MONE(M)'!$AO45)","v":"n.d."},{"$f":"IF('[8]MONE(M)'!$AO45=\"\",\"\",'[8]MONE(M)'!$AO45)","v":"n.d."},"n.d.","n.d.","n.d.","n.d.","n.d.","n.d.","n.d.",{"$f":"IF('[1]FISCAL(M)'!$K45=\"\",\"\",'[1]FISCAL(M)'!$K45)","v":"n.d."},"n.d.","n.d.",{"$f":"IF('[1]FISCAL(M)'!$L45=\"\",\"\",'[1]FISCAL(M)'!$L45)","v":"n.d."},"n.d.","n.d.","n.d.","n.d.","n.d.","n.d.","n.d.","n.d.","n.d.","n.d.","n.d.","n.d.","n.d.","n.d.","n.d.","n.d.","n.d.","n.d."]
[1993,"enero","1993-enero",{"$f":"IF('[1]REAL IPC(M)'!$AL46=\"\",\"\",+'[1]REAL IPC(M)'!$AL46)","v":13.446579919318257},{"$f":"IF('[1]REAL IPC(M)'!$BE46=\"\",\"\",+'[1]REAL IPC(M)'!$BE46)","v":"n.d."},{"$f":"IF('[1]REAL IPC(M)'!$AM46=\"\",\"\",+'[1]REAL IPC(M)'!$AM46)","v":12.243779482979701},{"$f":"IF('[1]REAL IPC(M)'!$BI46=\"\",\"\",+'[1]REAL IPC(M)'!$BI46)","v":"n.d."},{"$f":"IF('[1]REAL IMAE(M)'!BJ46=\"\",\"\",'[1]REAL IMAE(M)'!BJ46)","v":"n.d."},{"$f":"IF('[1]REAL IMAE(M)'!BK46=\"\",\"\",'[1]REAL IMAE(M)'!BK46)","v":"n.d."},{"$f":"IF('[1]REAL IMAE(M)'!BN46=\"\",\"\",'[1]REAL IMAE(M)'!BN46)","v":"n.d."},{"$f":"IF('[1]REAL IMAE(M)'!BO46=\"\",\"\",'[1]REAL IMAE(M)'!BO46)","v":"n.d."},{"$f":"IF('[1]EXT RIN(M)'!$K46=\"\",\"\",'[1]EXT RIN(M)'!$K46)","v":"n.d."},"",{"$f":"IF('[1]EXT RIN(M)'!$L46=\"\",\"\",'[1]EXT RIN(M)'!$L46)","v":"n.d."},"",{"$f":"IF('[1]MONE(M)CARD'!EG46=\"\",\"\",'[1]MONE(M)CARD'!EG46)","v":"n.d."},{"$f":"IF('[1]MONE(M)CARD'!EK46=\"\",\"\",'[1]MONE(M)CARD'!EK46)","v":"n.d."},{"$f":"IF('[1]MONE(M)CARD'!EP46=\"\",\"\",'[1]MONE(M)CARD'!EP46)","v":"n.d."},{"$f":"IF('[1]MONE(M)CARD'!ES46=\"\",\"\",'[1]MONE(M)CARD'!ES46)","v":"n.d."},{"$f":"IF('[1]MONE(M)CARD'!EV46=\"\",\"\",'[1]MONE(M)CARD'!EV46)","v":"n.d."},{"$f":"IF('[1]MONE(M)CARD'!EZ46=\"\",\"\",'[1]MONE(M)CARD'!EZ46)","v":"n.d."},{"$f":"IF('[1]MONE(M)CAPARD'!FC46=\"\",\"\",'[1]MONE(M)CAPARD'!FC46)","v":"n.d."},{"$f":"IF('[1]MONE(M)CAPARD'!FG46=\"\",\"\",'[1]MONE(M)CAPARD'!FG46)","v":"n.d."},{"$f":"IF('[1]MONE(M)CAPARD'!FL46=\"\",\"\",'[1]MONE(M)CAPARD'!FL46)","v":"n.d."},{"$f":"IF('[1]MONE(M)CAPARD'!FO46=\"\",\"\",'[1]MONE(M)CAPARD'!FO46)","v":"n.d."},{"$f":"IF('[1]MONE(M)CAPARD'!FR46=\"\",\"\",'[1]MONE(M)CAPARD'!FR46)","v":"n.d."},{"$f":"IF('[1]MONE(M)CAPARD'!FV46=\"\",\"\",'[1]MONE(M)CAPARD'!FV46)","v":"n.d."},{"$f":"IF('[1]MONE(M)CARD'!FV46=\"\",\"\",'[1]MONE(M)CARD'!FV46)","v":""},{"$f":"IF('[1]MONE(M)CARD'!GD46=\"\",\"\",'[1]MONE(M)CARD'!GD46)","v":"n.d."},{"$f":"IF('[1]MONE(M)CARD'!GE46=\"\",\"\",'[1]MONE(M)CARD'!GE46)","v":"n.d."},"n.d.","n.d.","n.d.","n.d.","n.d.","n.d.","n.d.","n.d.",null,"n.d.","n.d.","n.d.","n.d.","n.d.",{"$f":"IF('[1]MONE(M)CAPARD'!GS46=\"\",\"\",'[1]MONE(M)CAPARD'!GS46)","v":"n.d."},{"$f":"IF('[1]MONE(M)CARD'!HA46=\"\",\"\",'[1]MONE(M)CAPARD'!HA46)","v":"n.d."},{"$f":"IF('[1]MONE(M)CAPARD'!HB46=\"\",\"\",'[1]MONE(M)CAPARD'!HB46)","v":"n.d."},"n.d.","n.d.","n.d.","n.d.","n.d.","n.d.","n.d.","n.d.","n.d.","n.d.","n.d.","n.d.","n.d.","n.d.",{"$f":"IF('[1]MONE(M)CAPARD'!AS46=\"\",\"\",'[1]MONE(M)CAPARD'!AS46)","v":"n.d."},{"$f":"IF('[1]MONE(M)CAPARD'!AT46=\"\",\"\",'[1]MONE(M)CAPARD'!AT46)","v":"n.a."},{"$f":"IF('[1]MONE(M)CAPARD'!AU46=\"\",\"\",'[1]MONE(M)CAPARD'!AU46)","v":"n.d."},{"$f":"IF('[1]MONE(M)CAPARD'!AV46=\"\",\"\",'[1]MONE(M)CAPARD'!AV46)","v":"n.d."},{"$f":"IF('[1]MONE(M)CAPARD'!AW46=\"\",\"\",'[1]MONE(M)CAPARD'!AW46)","v":"n.a."},{"$f":"IF('[1]MONE(M)CAPARD'!AX46=\"\",\"\",'[1]MONE(M)CAPARD'!AX46)","v":"n.d."},{"$f":"IF('[1]MONE(M)CAPARD'!AY46=\"\",\"\",'[1]MONE(M)CAPARD'!AY46)","v":"n.a."},{"$f":"IF('[1]FISCAL(M)'!$K46=\"\",\"\",'[1]FISCAL(M)'!$K46)","v":"n.d."},{"$f":"IF('[1]FISCAL(M)'!$L46=\"\",\"\",'[1]FISCAL(M)'!$L46)","v":"n.d."},{"$f":"IF('[1]FISCAL(M)'!$AY46=\"\",\"\",'[1]FISCAL(M)'!$AY46)","v":"n.d."},{"$f":"IF('[1]FISCAL(M)'!$BI46=\"\",\"\",'[1]FISCAL(M)'!$BI46)","v":"n.d."},{"$f":"IF('[1]FISCAL(M)'!$BS46=\"\",\"\",'[1]FISCAL(M)'!$BS46)","v":"n.d."},{"$f":"IF('[1]FISCAL(M)'!$AZ46=\"\",\"\",'[1]FISCAL(M)'!$AZ46)","v":"n.d."},{"$f":"IF('[1]FISCAL(M)'!$BJ46=\"\",\"\",'[1]FISCAL(M)'!$BJ46)","v":"n.d."},{"$f":"IF('[1]FISCAL(M)'!$BT46=\"\",\"\",'[1]FISCAL(M)'!$BT46)","v":"n.d."},{"$f":"IF('[2]MONE(M)'!$AO46=\"\",\"\",'[2]MONE(M)'!$AO46)","v":"n.d."},{"$f":"IF('[3]MONE(M)'!$AO46=\"\",\"\",'[3]MONE(M)'!$AO46)","v":"n.d."},{"$f":"IF('[4]MONE(M)'!$AO46=\"\",\"\",'[4]MONE(M)'!$AO46)","v":"n.d."},{"$f":"+'[5]MONE(M)'!$AO46","v":"n.d."},{"$f":"IF('[6]MONE(M)'!$AO46=\"\",\"\",'[6]MONE(M)'!$AO46)","v":"n.d."},{"$f":"IF('[7]MONE(M)'!$AO46=\"\",\"\",'[7]MONE(M)'!$AO46)","v":"n.d."},{"$f":"IF('[8]MONE(M)'!$AO46=\"\",\"\",'[8]MONE(M)'!$AO46)","v":"n.d."},"n.d.","n.d.","n.d.","n.d.","n.d.","n.d.","n.d.",{"$f":"IF('[1]FISCAL(M)'!$K46=\"\",\"\",'[1]FISCAL(M)'!$K46)","v":"n.d."},"n.d.","n.d.",{"$f":"IF('[1]FISCAL(M)'!$L46=\"\",\"\",'[1]FISCAL(M)'!$L46)","v":"n.d."},"n.d.","n.d.","n.d.","n.d.","n.d.","n.d.","n.d.","n.d.","n.d.","n.d.","n.d.","n.d.","n.d.","n.d.","n.d.","n.d.","n.d.","n.d."]
[1993,"febrero","1993-febrero",{"$f":"IF('[1]REAL IPC(M)'!$AL47=\"\",\"\",+'[1]REAL IPC(M)'!$AL47)","v":13.59056738388713},{"$f":"IF('[1]REAL IPC(M)'!$BE47=\"\",\"\",+'[1]REAL IPC(M)'!$BE47)","v":"n.d."},{"$f":"IF('[1]REAL IPC(M)'!$AM47=\"\",\"\",+'[1]REAL IPC(M)'!$AM47)","v":12.346474885305071},{"$f":"IF('[1]REAL IPC(M)'!$BI47=\"\",\"\",+'[1]REAL IPC(M)'!$BI47)","v":"n.d."},{"$f":"IF('[1]REAL IMAE(M)'!BJ47=\"\",\"\",'[1]REAL IMAE(M)'!BJ47)","v":"n.d."},{"$f":"IF('[1]REAL IMAE(M)'!BK47=\"\",\"\",'[1]REAL IMAE(M)'!BK47)","v":"n.d."},{"$f":"IF('[1]REAL IMAE(M)'!BN47=\"\",\"\",'[1]REAL IMAE(M)'!BN47)","v":"n.d."},{"$f":"IF('[1]REAL IMAE(M)'!BO47=\"\",\"\",'[1]REAL IMAE(M)'!BO47)","v":"n.d."},{"$f":"IF('[1]EXT RIN(M)'!$K47=\"\",\"\",'[1]EXT RIN(M)'!$K47)","v":"n.d."},"",{"$f":"IF('[1]EXT RIN(M)'!$L47=\"\",\"\",'[1]EXT RIN(M)'!$L47)","v":"n.d."},"",{"$f":"IF('[1]MONE(M)CARD'!EG47=\"\",\"\",'[1]MONE(M)CARD'!EG47)","v":"n.d."},{"$f":"IF('[1]MONE(M)CARD'!EK47=\"\",\"\",'[1]MONE(M)CARD'!EK47)","v":"n.d."},{"$f":"IF('[1]MONE(M)CARD'!EP47=\"\",\"\",'[1]MONE(M)CARD'!EP47)","v":"n.d."},{"$f":"IF('[1]MONE(M)CARD'!ES47=\"\",\"\",'[1]MONE(M)CARD'!ES47)","v":"n.d."},{"$f":"IF('[1]MONE(M)CARD'!EV47=\"\",\"\",'[1]MONE(M)CARD'!EV47)","v":"n.d."},{"$f":"IF('[1]MONE(M)CARD'!EZ47=\"\",\"\",'[1]MONE(M)CARD'!EZ47)","v":"n.d."},{"$f":"IF('[1]MONE(M)CAPARD'!FC47=\"\",\"\",'[1]MONE(M)CAPARD'!FC47)","v":"n.d."},{"$f":"IF('[1]MONE(M)CAPARD'!FG47=\"\",\"\",'[1]MONE(M)CAPARD'!FG47)","v":"n.d."},{"$f":"IF('[1]MONE(M)CAPARD'!FL47=\"\",\"\",'[1]MONE(M)CAPARD'!FL47)","v":"n.d."},{"$f":"IF('[1]MONE(M)CAPARD'!FO47=\"\",\"\",'[1]MONE(M)CAPARD'!FO47)","v":"n.d."},{"$f":"IF('[1]MONE(M)CAPARD'!FR47=\"\",\"\",'[1]MONE(M)CAPARD'!FR47)","v":"n.d."},{"$f":"IF('[1]MONE(M)CAPARD'!FV47=\"\",\"\",'[1]MONE(M)CAPARD'!FV47)","v":"n.d."},{"$f":"IF('[1]MONE(M)CARD'!FV47=\"\",\"\",'[1]MONE(M)CARD'!FV47)","v":""},{"$f":"IF('[1]MONE(M)CARD'!GD47=\"\",\"\",'[1]MONE(M)CARD'!GD47)","v":"n.d."},{"$f":"IF('[1]MONE(M)CARD'!GE47=\"\",\"\",'[1]MONE(M)CARD'!GE47)","v":"n.d."},"n.d.","n.d.","n.d.","n.d.","n.d.","n.d.","n.d.","n.d.",null,"n.d.","n.d.","n.d.","n.d.","n.d.",{"$f":"IF('[1]MONE(M)CAPARD'!GS47=\"\",\"\",'[1]MONE(M)CAPARD'!GS47)","v":"n.d."},{"$f":"IF('[1]MONE(M)CARD'!HA47=\"\",\"\",'[1]MONE(M)CAPARD'!HA47)","v":"n.d."},{"$f":"IF('[1]MONE(M)CAPARD'!HB47=\"\",\"\",'[1]MONE(M)CAPARD'!HB47)","v":"n.d."},"n.d.","n.d.","n.d.","n.d.","n.d.","n.d.","n.d.","n.d.","n.d.","n.d.","n.d.","n.d.","n.d.","n.d.",{"$f":"IF('[1]MONE(M)CAPARD'!AS47=\"\",\"\",'[1]MONE(M)CAPARD'!AS47)","v":"n.d."},{"$f":"IF('[1]MONE(M)CAPARD'!AT47=\"\",\"\",'[1]MONE(M)CAPARD'!AT47)","v":"n.a."},{"$f":"IF('[1]MONE(M)CAPARD'!AU47=\"\",\"\",'[1]MONE(M)CAPARD'!AU47)","v":"n.d."},{"$f":"IF('[1]MONE(M)CAPARD'!AV47=\"\",\"\",'[1]MONE(M)CAPARD'!AV47)","v":"n.d."},{"$f":"IF('[1]MONE(M)CAPARD'!AW47=\"\",\"\",'[1]MONE(M)CAPARD'!AW47)","v":"n.a."},{"$f":"IF('[1]MONE(M)CAPARD'!AX47=\"\",\"\",'[1]MONE(M)CAPARD'!AX47)","v":"n.d."},{"$f":"IF('[1]MONE(M)CAPARD'!AY47=\"\",\"\",'[1]MONE(M)CAPARD'!AY47)","v":"n.a."},{"$f":"IF('[1]FISCAL(M)'!$K47=\"\",\"\",'[1]FISCAL(M)'!$K47)","v":"n.d."},{"$f":"IF('[1]FISCAL(M)'!$L47=\"\",\"\",'[1]FISCAL(M)'!$L47)","v":"n.d."},{"$f":"IF('[1]FISCAL(M)'!$AY47=\"\",\"\",'[1]FISCAL(M)'!$AY47)","v":"n.d."},{"$f":"IF('[1]FISCAL(M)'!$BI47=\"\",\"\",'[1]FISCAL(M)'!$BI47)","v":"n.d."},{"$f":"IF('[1]FISCAL(M)'!$BS47=\"\",\"\",'[1]FISCAL(M)'!$BS47)","v":"n.d."},{"$f":"IF('[1]FISCAL(M)'!$AZ47=\"\",\"\",'[1]FISCAL(M)'!$AZ47)","v":"n.d."},{"$f":"IF('[1]FISCAL(M)'!$BJ47=\"\",\"\",'[1]FISCAL(M)'!$BJ47)","v":"n.d."},{"$f":"IF('[1]FISCAL(M)'!$BT47=\"\",\"\",'[1]FISCAL(M)'!$BT47)","v":"n.d."},{"$f":"IF('[2]MONE(M)'!$AO47=\"\",\"\",'[2]MONE(M)'!$AO47)","v":"n.d."},{"$f":"IF('[3]MONE(M)'!$AO47=\"\",\"\",'[3]MONE(M)'!$AO47)","v":"n.d."},{"$f":"IF('[4]MONE(M)'!$AO47=\"\",\"\",'[4]MONE(M)'!$AO47)","v":"n.d."},{"$f":"+'[5]MONE(M)'!$AO47","v":"n.d."},{"$f":"IF('[6]MONE(M)'!$AO47=\"\",\"\",'[6]MONE(M)'!$AO47)","v":"n.d."},{"$f":"IF('[7]MONE(M)'!$AO47=\"\",\"\",'[7]MONE(M)'!$AO47)","v":"n.d."},{"$f":"IF('[8]MONE(M)'!$AO47=\"\",\"\",'[8]MONE(M)'!$AO47)","v":"n.d."},"n.d.","n.d.","n.d.","n.d.","n.d.","n.d.","n.d.",{"$f":"IF('[1]FISCAL(M)'!$K47=\"\",\"\",'[1]FISCAL(M)'!$K47)","v":"n.d."},"n.d.","n.d.",{"$f":"IF('[1]FISCAL(M)'!$L47=\"\",\"\",'[1]FISCAL(M)'!$L47)","v":"n.d."},"n.d.","n.d.","n.d.","n.d.","n.d.","n.d.","n.d.","n.d.","n.d.","n.d.","n.d.","n.d.","n.d.","n.d.","n.d.","n.d.","n.d.","n.d."]
[1993,"marzo","1993-marzo",{"$f":"IF('[1]REAL IPC(M)'!$AL48=\"\",\"\",+'[1]REAL IPC(M)'!$AL48)","v":13.106476797666966},{"$f":"IF('[1]REAL IPC(M)'!$BE48=\"\",\"\",+'[1]REAL IPC(M)'!$BE48)","v":"n.d."},{"$f":"IF('[1]REAL IPC(M)'!$AM48=\"\",\"\",+'[1]REAL IPC(M)'!$AM48)","v":11.899101376449694},{"$f":"IF('[1]REAL IPC(M)'!$BI48=\"\",\"\",+'[1]REAL IPC(M)'!$BI48)","v":"n.d."},{"$f":"IF('[1]REAL IMAE(M)'!BJ48=\"\",\"\",'[1]REAL IMAE(M)'!BJ48)","v":"n.d."},{"$f":"IF('[1]REAL IMAE(M)'!BK48=\"\",\"\",'[1]REAL IMAE(M)'!BK48)","v":"n.d."},{"$f":"IF('[1]REAL IMAE(M)'!BN48=\"\",\"\",'[1]REAL IMAE(M)'!BN48)","v":"n.d."},{"$f":"IF('[1]REAL IMAE(M)'!BO48=\"\",\"\",'[1]REAL IMAE(M)'!BO48)","v":"n.d."},{"$f":"IF('[1]EXT RIN(M)'!$K48=\"\",\"\",'[1]EXT RIN(M)'!$K48)","v":"n.d."},"",{"$f":"IF('[1]EXT RIN(M)'!$L48=\"\",\"\",'[1]EXT RIN(M)'!$L48)","v":"n.d."},"",{"$f":"IF('[1]MONE(M)CARD'!EG48=\"\",\"\",'[1]MONE(M)CARD'!EG48)","v":"n.d."},{"$f":"IF('[1]MONE(M)CARD'!EK48=\"\",\"\",'[1]MONE(M)CARD'!EK48)","v":"n.d."},{"$f":"IF('[1]MONE(M)CARD'!EP48=\"\",\"\",'[1]MONE(M)CARD'!EP48)","v":"n.d."},{"$f":"IF('[1]MONE(M)CARD'!ES48=\"\",\"\",'[1]MONE(M)CARD'!ES48)","v":"n.d."},{"$f":"IF('[1]MONE(M)CARD'!EV48=\"\",\"\",'[1]MONE(M)CARD'!EV48)","v":"n.d."},{"$f":"IF('[1]MONE(M)CARD'!EZ48=\"\",\"\",'[1]MONE(M)CARD'!EZ48)","v":"n.d."},{"$f":"IF('[1]MONE(M)CAPARD'!FC48=\"\",\"\",'[1]MONE(M)CAPARD'!FC48)","v":"n.d."},{"$f":"IF('[1]MONE(M)CAPARD'!FG48=\"\",\"\",'[1]MONE(M)CAPARD'!FG48)","v":"n.d."},{"$f":"IF('[1]MONE(M)CAPARD'!FL48=\"\",\"\",'[1]MONE(M)CAPARD'!FL48)","v":"n.d."},{"$f":"IF('[1]MONE(M)CAPARD'!FO48=\"\",\"\",'[1]MONE(M)CAPARD'!FO48)","v":"n.d."},{"$f":"IF('[1]MONE(M)CAPARD'!FR48=\"\",\"\",'[1]MONE(M)CAPARD'!FR48)","v":"n.d."},{"$f":"IF('[1]MONE(M)CAPARD'!FV48=\"\",\"\",'[1]MONE(M)CAPARD'!FV48)","v":"n.d."},{"$f":"IF('[1]MONE(M)CARD'!FV48=\"\",\"\",'[1]MONE(M)CARD'!FV48)","v":""},{"$f":"IF('[1]MONE(M)CARD'!GD48=\"\",\"\",'[1]MONE(M)CARD'!GD48)","v":"n.d."},{"$f":"IF('[1]MONE(M)CARD'!GE48=\"\",\"\",'[1]MONE(M)CARD'!GE48)","v":"n.d."},"n.d.","n.d.","n.d.","n.d.","n.d.","n.d.","n.d.","n.d.",null,"n.d.","n.d.","n.d.","n.d.","n.d.",{"$f":"IF('[1]MONE(M)CAPARD'!GS48=\"\",\"\",'[1]MONE(M)CAPARD'!GS48)","v":"n.d."},{"$f":"IF('[1]MONE(M)CARD'!HA48=\"\",\"\",'[1]MONE(M)CAPARD'!HA48)","v":"n.d."},{"$f":"IF('[1]MONE(M)CAPARD'!HB48=\"\",\"\",'[1]MONE(M)CAPARD'!HB48)","v":"n.d."},"n.d.","n.d.","n.d.","n.d.","n.d.","n.d.","n.d.","n.d.","n.d.","n.d.","n.d.","n.d.","n.d.","n.d.",{"$f":"IF('[1]MONE(M)CAPARD'!AS48=\"\",\"\",'[1]MONE(M)CAPARD'!AS48)","v":"n.d."},{"$f":"IF('[1]MONE(M)CAPARD'!AT48=\"\",\"\",'[1]MONE(M)CAPARD'!AT48)","v":"n.a."},{"$f":"IF('[1]MONE(M)CAPARD'!AU48=\"\",\"\",'[1]MONE(M)CAPARD'!AU48)","v":"n.d."},{"$f":"IF('[1]MONE(M)CAPARD'!AV48=\"\",\"\",'[1]MONE(M)CAPARD'!AV48)","v":"n.d."},{"$f":"IF('[1]MONE(M)CAPARD'!AW48=\"\",\"\",'[1]MONE(M)CAPARD'!AW48)","v":"n.a."},{"$f":"IF('[1]MONE(M)CAPARD'!AX48=\"\",\"\",'[1]MONE(M)CAPARD'!AX48)","v":"n.d."},{"$f":"IF('[1]MONE(M)CAPARD'!AY48=\"\",\"\",'[1]MONE(M)CAPARD'!AY48)","v":"n.a."},{"$f":"IF('[1]FISCAL(M)'!$K48=\"\",\"\",'[1]FISCAL(M)'!$K48)","v":"n.d."},{"$f":"IF('[1]FISCAL(M)'!$L48=\"\",\"\",'[1]FISCAL(M)'!$L48)","v":"n.d."},{"$f":"IF('[1]FISCAL(M)'!$AY48=\"\",\"\",'[1]FISCAL(M)'!$AY48)","v":"n.d."},{"$f":"IF('[1]FISCAL(M)'!$BI48=\"\",\"\",'[1]FISCAL(M)'!$BI48)","v":"n.d."},{"$f":"IF('[1]FISCAL(M)'!$BS48=\"\",\"\",'[1]FISCAL(M)'!$BS48)","v":"n.d."},{"$f":"IF('[1]FISCAL(M)'!$AZ48=\"\",\"\",'[1]FISCAL(M)'!$AZ48)","v":"n.d."},{"$f":"IF('[1]FISCAL(M)'!$BJ48=\"\",\"\",'[1]FISCAL(M)'!$BJ48)","v":"n.d."},{"$f":"IF('[1]FISCAL(M)'!$BT48=\"\",\"\",'[1]FISCAL(M)'!$BT48)","v":"n.d."},{"$f":"IF('[2]MONE(M)'!$AO48=\"\",\"\",'[2]MONE(M)'!$AO48)","v":"n.d."},{"$f":"IF('[3]MONE(M)'!$AO48=\"\",\"\",'[3]MONE(M)'!$AO48)","v":"n.d."},{"$f":"IF('[4]MONE(M)'!$AO48=\"\",\"\",'[4]MONE(M)'!$AO48)","v":"n.d."},{"$f":"+'[5]MONE(M)'!$AO48","v":"n.d."},{"$f":"IF('[6]MONE(M)'!$AO48=\"\",\"\",'[6]MONE(M)'!$AO48)","v":"n.d."},{"$f":"IF('[7]MONE(M)'!$AO48=\"\",\"\",'[7]MONE(M)'!$AO48)","v":"n.d."},{"$f":"IF('[8]MONE(M)'!$AO48=\"\",\"\",'[8]MONE(M)'!$AO48)","v":"n.d."},"n.d.","n.d.","n.d.","n.d.","n.d.","n.d.","n.d.",{"$f":"IF('[1]FISCAL(M)'!$K48=\"\",\"\",'[1]FISCAL(M)'!$K48)","v":"n.d."},"n.d.","n.d.",{"$f":"IF('[1]FISCAL(M)'!$L48=\"\",\"\",'[1]FISCAL(M)'!$L48)","v":"n.d."},"n.d.","n.d.","n.d.","n.d.","n.d.","n.d.","n.d.","n.d.","n.d.","n.d.","n.d.","n.d.","n.d.","n.d.","n.d.","n.d.","n.d.","n.d."]
[1993,"abril","1993-abril",{"$f":"IF('[1]REAL IPC(M)'!$AL49=\"\",\"\",+'[1]REAL IPC(M)'!$AL49)","v":12.813276465582145},{"$f":"IF('[1]REAL IPC(M)'!$BE49=\"\",\"\",+'[1]REAL IPC(M)'!$BE49)","v":"n.d."},{"$f":"IF('[1]REAL IPC(M)'!$AM49=\"\",\"\",+'[1]REAL IPC(M)'!$AM49)","v":11.642770191913554},{"$f":"IF('[1]REAL IPC(M)'!$BI49=\"\",\"\",+'[1]REAL IPC(M)'!$BI49)","v":"n.d."},{"$f":"IF('[1]REAL IMAE(M)'!BJ49=\"\",\"\",'[1]REAL IMAE(M)'!BJ49)","v":"n.d."},{"$f":"IF('[1]REAL IMAE(M)'!BK49=\"\",\"\",'[1]REAL IMAE(M)'!BK49)","v":"n.d."},{"$f":"IF('[1]REAL IMAE(M)'!BN49=\"\",\"\",'[1]REAL IMAE(M)'!BN49)","v":"n.d."},{"$f":"IF('[1]REAL IMAE(M)'!BO49=\"\",\"\",'[1]REAL IMAE(M)'!BO49)","v":"n.d."},{"$f":"IF('[1]EXT RIN(M)'!$K49=\"\",\"\",'[1]EXT RIN(M)'!$K49)","v":"n.d."},"",{"$f":"IF('[1]EXT RIN(M)'!$L49=\"\",\"\",'[1]EXT RIN(M)'!$L49)","v":"n.d."},"",{"$f":"IF('[1]MONE(M)CARD'!EG49=\"\",\"\",'[1]MONE(M)CARD'!EG49)","v":"n.d."},{"$f":"IF('[1]MONE(M)CARD'!EK49=\"\",\"\",'[1]MONE(M)CARD'!EK49)","v":"n.d."},{"$f":"IF('[1]MONE(M)CARD'!EP49=\"\",\"\",'[1]MONE(M)CARD'!EP49)","v":"n.d."},{"$f":"IF('[1]MONE(M)CARD'!ES49=\"\",\"\",'[1]MONE(M)CARD'!ES49)","v":"n.d."},{"$f":"IF('[1]MONE(M)CARD'!EV49=\"\",\"\",'[1]MONE(M)CARD'!EV49)","v":"n.d."},{"$f":"IF('[1]MONE(M)CARD'!EZ49=\"\",\"\",'[1]MONE(M)CARD'!EZ49)","v":"n.d."},{"$f":"IF('[1]MONE(M)CAPARD'!FC49=\"\",\"\",'[1]MONE(M)CAPARD'!FC49)","v":"n.d."},{"$f":"IF('[1]MONE(M)CAPARD'!FG49=\"\",\"\",'[1]MONE(M)CAPARD'!FG49)","v":"n.d."},{"$f":"IF('[1]MONE(M)CAPARD'!FL49=\"\",\"\",'[1]MONE(M)CAPARD'!FL49)","v":"n.d."},{"$f":"IF('[1]MONE(M)CAPARD'!FO49=\"\",\"\",'[1]MONE(M)CAPARD'!FO49)","v":"n.d."},{"$f":"IF('[1]MONE(M)CAPARD'!FR49=\"\",\"\",'[1]MONE(M)CAPARD'!FR49)","v":"n.d."},{"$f":"IF('[1]MONE(M)CAPARD'!FV49=\"\",\"\",'[1]MONE(M)CAPARD'!FV49)","v":"n.d."},{"$f":"IF('[1]MONE(M)CARD'!FV49=\"\",\"\",'[1]MONE(M)CARD'!FV49)","v":""},{"$f":"IF('[1]MONE(M)CARD'!GD49=\"\",\"\",'[1]MONE(M)CARD'!GD49)","v":"n.d."},{"$f":"IF('[1]MONE(M)CARD'!GE49=\"\",\"\",'[1]MONE(M)CARD'!GE49)","v":"n.d."},"n.d.","n.d.","n.d.","n.d.","n.d.","n.d.","n.d.","n.d.",null,"n.d.","n.d.","n.d.","n.d.","n.d.",{"$f":"IF('[1]MONE(M)CAPARD'!GS49=\"\",\"\",'[1]MONE(M)CAPARD'!GS49)","v":"n.d."},{"$f":"IF('[1]MONE(M)CARD'!HA49=\"\",\"\",'[1]MONE(M)CAPARD'!HA49)","v":"n.d."},{"$f":"IF('[1]MONE(M)CAPARD'!HB49=\"\",\"\",'[1]MONE(M)CAPARD'!HB49)","v":"n.d."},"n.d.","n.d.","n.d.","n.d.","n.d.","n.d.","n.d.","n.d.","n.d.","n.d.","n.d.","n.d.","n.d.","n.d.",{"$f":"IF('[1]MONE(M)CAPARD'!AS49=\"\",\"\",'[1]MONE(M)CAPARD'!AS49)","v":"n.d."},{"$f":"IF('[1]MONE(M)CAPARD'!AT49=\"\",\"\",'[1]MONE(M)CAPARD'!AT49)","v":"n.a."},{"$f":"IF('[1]MONE(M)CAPARD'!AU49=\"\",\"\",'[1]MONE(M)CAPARD'!AU49)","v":"n.d."},{"$f":"IF('[1]MONE(M)CAPARD'!AV49=\"\",\"\",'[1]MONE(M)CAPARD'!AV49)","v":"n.d."},{"$f":"IF('[1]MONE(M)CAPARD'!AW49=\"\",\"\",'[1]MONE(M)CAPARD'!AW49)","v":"n.a."},{"$f":"IF('[1]MONE(M)CAPARD'!AX49=\"\",\"\",'[1]MONE(M)CAPARD'!AX49)","v":"n.d."},{"$f":"IF('[1]MONE(M)CAPARD'!AY49=\"\",\"\",'[1]MONE(M)CAPARD'!AY49)","v":"n.a."},{"$f":"IF('[1]FISCAL(M)'!$K49=\"\",\"\",'[1]FISCAL(M)'!$K49)","v":"n.d."},{"$f":"IF('[1]FISCAL(M)'!$L49=\"\",\"\",'[1]FISCAL(M)'!$L49)","v":"n.d."},{"$f":"IF('[1]FISCAL(M)'!$AY49=\"\",\"\",'[1]FISCAL(M)'!$AY49)","v":"n.d."},{"$f":"IF('[1]FISCAL(M)'!$BI49=\"\",\"\",'[1]FISCAL(M)'!$BI49)","v":"n.d."},{"$f":"IF('[1]FISCAL(M)'!$BS49=\"\",\"\",'[1]FISCAL(M)'!$BS49)","v":"n.d."},{"$f":"IF('[1]FISCAL(M)'!$AZ49=\"\",\"\",'[1]FISCAL(M)'!$AZ49)","v":"n.d."},{"$f":"IF('[1]FISCAL(M)'!$BJ49=\"\",\"\",'[1]FISCAL(M)'!$BJ49)","v":"n.d."},{"$f":"IF('[1]FISCAL(M)'!$BT49=\"\",\"\",'[1]FISCAL(M)'!$BT49)","v":"n.d."},{"$f":"IF('[2]MONE(M)'!$AO49=\"\",\"\",'[2]MONE(M)'!$AO49)","v":"n.d."},{"$f":"IF('[3]MONE(M)'!$AO49=\"\",\"\",'[3]MONE(M)'!$AO49)","v":"n.d."},{"$f":"IF('[4]MONE(M)'!$AO49=\"\",\"\",'[4]MONE(M)'!$AO49)","v":"n.d."},{"$f":"+'[5]MONE(M)'!$AO49","v":"n.d."},{"$f":"IF('[6]MONE(M)'!$AO49=\"\",\"\",'[6]MONE(M)'!$AO49)","v":"n.d."},{"$f":"IF('[7]MONE(M)'!$AO49=\"\",\"\",'[7]MONE(M)'!$AO49)","v":"n.d."},{"$f":"IF('[8]MONE(M)'!$AO49=\"\",\"\",'[8]MONE(M)'!$AO49)","v":"n.d."},"n.d.","n.d.","n.d.","n.d.","n.d.","n.d.","n.d.",{"$f":"IF('[1]FISCAL(M)'!$K49=\"\",\"\",'[1]FISCAL(M)'!$K49)","v":"n.d."},"n.d.","n.d.",{"$f":"IF('[1]FISCAL(M)'!$L49=\"\",\"\",'[1]FISCAL(M)'!$L49)","v":"n.d."},"n.d.","n.d.","n.d.","n.d.","n.d.","n.d.","n.d.","n.d.","n.d.","n.d.","n.d.","n.d.","n.d.","n.d.","n.d.","n.d.","n.d.","n.d."]
[1993,"mayo ","1993-mayo ",{"$f":"IF('[1]REAL IPC(M)'!$AL50=\"\",\"\",+'[1]REAL IPC(M)'!$AL50)","v":13.006403634492102},{"$f":"IF('[1]REAL IPC(M)'!$BE50=\"\",\"\",+'[1]REAL IPC(M)'!$BE50)","v":"n.d."},{"$f":"IF('[1]REAL IPC(M)'!$AM50=\"\",\"\",+'[1]REAL IPC(M)'!$AM50)","v":11.772166539952567},{"$f":"IF('[1]REAL IPC(M)'!$BI50=\"\",\"\",+'[1]REAL IPC(M)'!$BI50)","v":"n.d."},{"$f":"IF('[1]REAL IMAE(M)'!BJ50=\"\",\"\",'[1]REAL IMAE(M)'!BJ50)","v":"n.d."},{"$f":"IF('[1]REAL IMAE(M)'!BK50=\"\",\"\",'[1]REAL IMAE(M)'!BK50)","v":"n.d."},{"$f":"IF('[1]REAL IMAE(M)'!BN50=\"\",\"\",'[1]REAL IMAE(M)'!BN50)","v":"n.d."},{"$f":"IF('[1]REAL IMAE(M)'!BO50=\"\",\"\",'[1]REAL IMAE(M)'!BO50)","v":"n.d."},{"$f":"IF('[1]EXT RIN(M)'!$K50=\"\",\"\",'[1]EXT RIN(M)'!$K50)","v":"n.d."},"",{"$f":"IF('[1]EXT RIN(M)'!$L50=\"\",\"\",'[1]EXT RIN(M)'!$L50)","v":"n.d."},"",{"$f":"IF('[1]MONE(M)CARD'!EG50=\"\",\"\",'[1]MONE(M)CARD'!EG50)","v":"n.d."},{"$f":"IF('[1]MONE(M)CARD'!EK50=\"\",\"\",'[1]MONE(M)CARD'!EK50)","v":"n.d."},{"$f":"IF('[1]MONE(M)CARD'!EP50=\"\",\"\",'[1]MONE(M)CARD'!EP50)","v":"n.d."},{"$f":"IF('[1]MONE(M)CARD'!ES50=\"\",\"\",'[1]MONE(M)CARD'!ES50)","v":"n.d."},{"$f":"IF('[1]MONE(M)CARD'!EV50=\"\",\"\",'[1]MONE(M)CARD'!EV50)","v":"n.d."},{"$f":"IF('[1]MONE(M)CARD'!EZ50=\"\",\"\",'[1]MONE(M)CARD'!EZ50)","v":"n.d."},{"$f":"IF('[1]MONE(M)CAPARD'!FC50=\"\",\"\",'[1]MONE(M)CAPARD'!FC50)","v":"n.d."},{"$f":"IF('[1]MONE(M)CAPARD'!FG50=\"\",\"\",'[1]MONE(M)CAPARD'!FG50)","v":"n.d."},{"$f":"IF('[1]MONE(M)CAPARD'!FL50=\"\",\"\",'[1]MONE(M)CAPARD'!FL50)","v":"n.d."},{"$f":"IF('[1]MONE(M)CAPARD'!FO50=\"\",\"\",'[1]MONE(M)CAPARD'!FO50)","v":"n.d."},{"$f":"IF('[1]MONE(M)CAPARD'!FR50=\"\",\"\",'[1]MONE(M)CAPARD'!FR50)","v":"n.d."},{"$f":"IF('[1]MONE(M)CAPARD'!FV50=\"\",\"\",'[1]MONE(M)CAPARD'!FV50)","v":"n.d."},{"$f":"IF('[1]MONE(M)CARD'!FV50=\"\",\"\",'[1]MONE(M)CARD'!FV50)","v":""},{"$f":"IF('[1]MONE(M)CARD'!GD50=\"\",\"\",'[1]MONE(M)CARD'!GD50)","v":"n.d."},{"$f":"IF('[1]MONE(M)CARD'!GE50=\"\",\"\",'[1]MONE(M)CARD'!GE50)","v":"n.d."},"n.d.","n.d.","n.d.","n.d.","n.d.","n.d.","n.d.","n.d.",null,"n.d.","n.d.","n.d.","n.d.","n.d.",{"$f":"IF('[1]MONE(M)CAPARD'!GS50=\"\",\"\",'[1]MONE(M)CAPARD'!GS50)","v":"n.d."},{"$f":"IF('[1]MONE(M)CARD'!HA50=\"\",\"\",'[1]MONE(M)CAPARD'!HA50)","v":"n.d."},{"$f":"IF('[1]MONE(M)CAPARD'!HB50=\"\",\"\",'[1]MONE(M)CAPARD'!HB50)","v":"n.d."},"n.d.","n.d.","n.d.","n.d.","n.d.","n.d.","n.d.","n.d.","n.d.","n.d.","n.d.","n.d.","n.d.","n.d.",{"$f":"IF('[1]MONE(M)CAPARD'!AS50=\"\",\"\",'[1]MONE(M)CAPARD'!AS50)","v":"n.d."},{"$f":"IF('[1]MONE(M)CAPARD'!AT50=\"\",\"\",'[1]MONE(M)CAPARD'!AT50)","v":"n.a."},{"$f":"IF('[1]MONE(M)CAPARD'!AU50=\"\",\"\",'[1]MONE(M)CAPARD'!AU50)","v":"n.d."},{"$f":"IF('[1]MONE(M)CAPARD'!AV50=\"\",\"\",'[1]MONE(M)CAPARD'!AV50)","v":"n.d."},{"$f":"IF('[1]MONE(M)CAPARD'!AW50=\"\",\"\",'[1]MONE(M)CAPARD'!AW50)","v":"n.a."},{"$f":"IF('[1]MONE(M)CAPARD'!AX50=\"\",\"\",'[1]MONE(M)CAPARD'!AX50)","v":"n.d."},{"$f":"IF('[1]MONE(M)CAPARD'!AY50=\"\",\"\",'[1]MONE(M)CAPARD'!AY50)","v":"n.a."},{"$f":"IF('[1]FISCAL(M)'!$K50=\"\",\"\",'[1]FISCAL(M)'!$K50)","v":"n.d."},{"$f":"IF('[1]FISCAL(M)'!$L50=\"\",\"\",'[1]FISCAL(M)'!$L50)","v":"n.d."},{"$f":"IF('[1]FISCAL(M)'!$AY50=\"\",\"\",'[1]FISCAL(M)'!$AY50)","v":"n.d."},{"$f":"IF('[1]FISCAL(M)'!$BI50=\"\",\"\",'[1]FISCAL(M)'!$BI50)","v":"n.d."},{"$f":"IF('[1]FISCAL(M)'!$BS50=\"\",\"\",'[1]FISCAL(M)'!$BS50)","v":"n.d."},{"$f":"IF('[1]FISCAL(M)'!$AZ50=\"\",\"\",'[1]FISCAL(M)'!$AZ50)","v":"n.d."},{"$f":"IF('[1]FISCAL(M)'!$BJ50=\"\",\"\",'[1]FISCAL(M)'!$BJ50)","v":"n.d."},{"$f":"IF('[1]FISCAL(M)'!$BT50=\"\",\"\",'[1]FISCAL(M)'!$BT50)","v":"n.d."},{"$f":"IF('[2]MONE(M)'!$AO50=\"\",\"\",'[2]MONE(M)'!$AO50)","v":"n.d."},{"$f":"IF('[3]MONE(M)'!$AO50=\"\",\"\",'[3]MONE(M)'!$AO50)","v":"n.d."},{"$f":"IF('[4]MONE(M)'!$AO50=\"\",\"\",'[4]MONE(M)'!$AO50)","v":"n.d."},{"$f":"+'[5]MONE(M)'!$AO50","v":"n.d."},{"$f":"IF('[6]MONE(M)'!$AO50=\"\",\"\",'[6]MONE(M)'!$AO50)","v":"n.d."},{"$f":"IF('[7]MONE(M)'!$AO50=\"\",\"\",'[7]MONE(M)'!$AO50)","v":"n.d."},{"$f":"IF('[8]MONE(M)'!$AO50=\"\",\"\",'[8]MONE(M)'!$AO50)","v":"n.d."},"n.d.","n.d.","n.d.","n.d.","n.d.","n.d.","n.d.",{"$f":"IF('[1]FISCAL(M)'!$K50=\"\",\"\",'[1]FISCAL(M)'!$K50)","v":"n.d."},"n.d.","n.d.",{"$f":"IF('[1]FISCAL(M)'!$L50=\"\",\"\",'[1]FISCAL(M)'!$L50)","v":"n.d."},"n.d.","n.d.","n.d.","n.d.","n.d.","n.d.","n.d.","n.d.","n.d.","n.d.","n.d.","n.d.","n.d.","n.d.","n.d.","n.d.","n.d.","n.d."]
[1993,"junio ","1993-junio ",{"$f":"IF('[1]REAL IPC(M)'!$AL51=\"\",\"\",+'[1]REAL IPC(M)'!$AL51)","v":13.431846617835742},{"$f":"IF('[1]REAL IPC(M)'!$BE51=\"\",\"\",+'[1]REAL IPC(M)'!$BE51)","v":"n.d."},{"$f":"IF('[1]REAL IPC(M)'!$AM51=\"\",\"\",+'[1]REAL IPC(M)'!$AM51)","v":12.139213633632062},{"$f":"IF('[1]REAL IPC(M)'!$BI51=\"\",\"\",+'[1]REAL IPC(M)'!$BI51)","v":"n.d."},{"$f":"IF('[1]REAL IMAE(M)'!BJ51=\"\",\"\",'[1]REAL IMAE(M)'!BJ51)","v":"n.d."},{"$f":"IF('[1]REAL IMAE(M)'!BK51=\"\",\"\",'[1]REAL IMAE(M)'!BK51)","v":"n.d."},{"$f":"IF('[1]REAL IMAE(M)'!BN51=\"\",\"\",'[1]REAL IMAE(M)'!BN51)","v":"n.d."},{"$f":"IF('[1]REAL IMAE(M)'!BO51=\"\",\"\",'[1]REAL IMAE(M)'!BO51)","v":"n.d."},{"$f":"IF('[1]EXT RIN(M)'!$K51=\"\",\"\",'[1]EXT RIN(M)'!$K51)","v":"n.d."},"",{"$f":"IF('[1]EXT RIN(M)'!$L51=\"\",\"\",'[1]EXT RIN(M)'!$L51)","v":"n.d."},"",{"$f":"IF('[1]MONE(M)CARD'!EG51=\"\",\"\",'[1]MONE(M)CARD'!EG51)","v":"n.d."},{"$f":"IF('[1]MONE(M)CARD'!EK51=\"\",\"\",'[1]MONE(M)CARD'!EK51)","v":"n.d."},{"$f":"IF('[1]MONE(M)CARD'!EP51=\"\",\"\",'[1]MONE(M)CARD'!EP51)","v":"n.d."},{"$f":"IF('[1]MONE(M)CARD'!ES51=\"\",\"\",'[1]MONE(M)CARD'!ES51)","v":"n.d."},{"$f":"IF('[1]MONE(M)CARD'!EV51=\"\",\"\",'[1]MONE(M)CARD'!EV51)","v":"n.d."},{"$f":"IF('[1]MONE(M)CARD'!EZ51=\"\",\"\",'[1]MONE(M)CARD'!EZ51)","v":"n.d."},{"$f":"IF('[1]MONE(M)CAPARD'!FC51=\"\",\"\",'[1]MONE(M)CAPARD'!FC51)","v":"n.d."},{"$f":"IF('[1]MONE(M)CAPARD'!FG51=\"\",\"\",'[1]MONE(M)CAPARD'!FG51)","v":"n.d."},{"$f":"IF('[1]MONE(M)CAPARD'!FL51=\"\",\"\",'[1]MONE(M)CAPARD'!FL51)","v":"n.d."},{"$f":"IF('[1]MONE(M)CAPARD'!FO51=\"\",\"\",'[1]MONE(M)CAPARD'!FO51)","v":"n.d."},{"$f":"IF('[1]MONE(M)CAPARD'!FR51=\"\",\"\",'[1]MONE(M)CAPARD'!FR51)","v":"n.d."},{"$f":"IF('[1]MONE(M)CAPARD'!FV51=\"\",\"\",'[1]MONE(M)CAPARD'!FV51)","v":"n.d."},{"$f":"IF('[1]MONE(M)CARD'!FV51=\"\",\"\",'[1]MONE(M)CARD'!FV51)","v":""},{"$f":"IF('[1]MONE(M)CARD'!GD51=\"\",\"\",'[1]MONE(M)CARD'!GD51)","v":"n.d."},{"$f":"IF('[1]MONE(M)CARD'!GE51=\"\",\"\",'[1]MONE(M)CARD'!GE51)","v":"n.d."},"n.d.","n.d.","n.d.","n.d.","n.d.","n.d.","n.d.","n.d.",null,"n.d.","n.d.","n.d.","n.d.","n.d.",{"$f":"IF('[1]MONE(M)CAPARD'!GS51=\"\",\"\",'[1]MONE(M)CAPARD'!GS51)","v":"n.d."},{"$f":"IF('[1]MONE(M)CARD'!HA51=\"\",\"\",'[1]MONE(M)CAPARD'!HA51)","v":"n.d."},{"$f":"IF('[1]MONE(M)CAPARD'!HB51=\"\",\"\",'[1]MONE(M)CAPARD'!HB51)","v":"n.d."},"n.d.","n.d.","n.d.","n.d.","n.d.","n.d.","n.d.","n.d.","n.d.","n.d.","n.d.","n.d.","n.d.","n.d.",{"$f":"IF('[1]MONE(M)CAPARD'!AS51=\"\",\"\",'[1]MONE(M)CAPARD'!AS51)","v":"n.d."},{"$f":"IF('[1]MONE(M)CAPARD'!AT51=\"\",\"\",'[1]MONE(M)CAPARD'!AT51)","v":"n.a."},{"$f":"IF('[1]MONE(M)CAPARD'!AU51=\"\",\"\",'[1]MONE(M)CAPARD'!AU51)","v":"n.d."},{"$f":"IF('[1]MONE(M)CAPARD'!AV51=\"\",\"\",'[1]MONE(M)CAPARD'!AV51)","v":"n.d."},{"$f":"IF('[1]MONE(M)CAPARD'!AW51=\"\",\"\",'[1]MONE(M)CAPARD'!AW51)","v":"n.a."},{"$f":"IF('[1]MONE(M)CAPARD'!AX51=\"\",\"\",'[1]MONE(M)CAPARD'!AX51)","v":"n.d."},{"$f":"IF('[1]MONE(M)CAPARD'!AY51=\"\",\"\",'[1]MONE(M)CAPARD'!AY51)","v":"n.a."},{"$f":"IF('[1]FISCAL(M)'!$K51=\"\",\"\",'[1]FISCAL(M)'!$K51)","v":"n.d."},{"$f":"IF('[1]FISCAL(M)'!$L51=\"\",\"\",'[1]FISCAL(M)'!$L51)","v":"n.d."},{"$f":"IF('[1]FISCAL(M)'!$AY51=\"\",\"\",'[1]FISCAL(M)'!$AY51)","v":"n.d."},{"$f":"IF('[1]FISCAL(M)'!$BI51=\"\",\"\",'[1]FISCAL(M)'!$BI51)","v":"n.d."},{"$f":"IF('[1]FISCAL(M)'!$BS51=\"\",\"\",'[1]FISCAL(M)'!$BS51)","v":"n.d."},{"$f":"IF('[1]FISCAL(M)'!$AZ51=\"\",\"\",'[1]FISCAL(M)'!$AZ51)","v":"n.d."},{"$f":"IF('[1]FISCAL(M)'!$BJ51=\"\",\"\",'[1]FISCAL(M)'!$BJ51)","v":"n.d."},{"$f":"IF('[1]FISCAL(M)'!$BT51=\"\",\"\",'[1]FISCAL(M)'!$BT51)","v":"n.d."},{"$f":"IF('[2]MONE(M)'!$AO51=\"\",\"\",'[2]MONE(M)'!$AO51)","v":"n.d."},{"$f":"IF('[3]MONE(M)'!$AO51=\"\",\"\",'[3]MONE(M)'!$AO51)","v":"n.d."},{"$f":"IF('[4]MONE(M)'!$AO51=\"\",\"\",'[4]MONE(M)'!$AO51)","v":"n.d."},{"$f":"+'[5]MONE(M)'!$AO51","v":"n.d."},{"$f":"IF('[6]MONE(M)'!$AO51=\"\",\"\",'[6]MONE(M)'!$AO51)","v":"n.d."},{"$f":"IF('[7]MONE(M)'!$AO51=\"\",\"\",'[7]MONE(M)'!$AO51)","v":"n.d."},{"$f":"IF('[8]MONE(M)'!$AO51=\"\",\"\",'[8]MONE(M)'!$AO51)","v":"n.d."},"n.d.","n.d.","n.d.","n.d.","n.d.","n.d.","n.d.",{"$f":"IF('[1]FISCAL(M)'!$K51=\"\",\"\",'[1]FISCAL(M)'!$K51)","v":"n.d."},"n.d.","n.d.",{"$f":"IF('[1]FISCAL(M)'!$L51=\"\",\"\",'[1]FISCAL(M)'!$L51)","v":"n.d."},"n.d.","n.d.","n.d.","n.d.","n.d.","n.d.","n.d.","n.d.","n.d.","n.d.","n.d.","n.d.","n.d.","n.d.","n.d.","n.d.","n.d.","n.d."]
[1993,"julio","1993-julio",{"$f":"IF('[1]REAL IPC(M)'!$AL52=\"\",\"\",+'[1]REAL IPC(M)'!$AL52)","v":14.357380772527751},{"$f":"IF('[1]REAL IPC(M)'!$BE52=\"\",\"\",+'[1]REAL IPC(M)'!$BE52)","v":"n.d."},{"$f":"IF('[1]REAL IPC(M)'!$AM52=\"\",\"\",+'[1]REAL IPC(M)'!$AM52)","v":12.985940001907782},{"$f":"IF('[1]REAL IPC(M)'!$BI52=\"\",\"\",+'[1]REAL IPC(M)'!$BI52)","v":"n.d."},{"$f":"IF('[1]REAL IMAE(M)'!BJ52=\"\",\"\",'[1]REAL IMAE(M)'!BJ52)","v":"n.d."},{"$f":"IF('[1]REAL IMAE(M)'!BK52=\"\",\"\",'[1]REAL IMAE(M)'!BK52)","v":"n.d."},{"$f":"IF('[1]REAL IMAE(M)'!BN52=\"\",\"\",'[1]REAL IMAE(M)'!BN52)","v":"n.d."},{"$f":"IF('[1]REAL IMAE(M)'!BO52=\"\",\"\",'[1]REAL IMAE(M)'!BO52)","v":"n.d."},{"$f":"IF('[1]EXT RIN(M)'!$K52=\"\",\"\",'[1]EXT RIN(M)'!$K52)","v":"n.d."},"",{"$f":"IF('[1]EXT RIN(M)'!$L52=\"\",\"\",'[1]EXT RIN(M)'!$L52)","v":"n.d."},"",{"$f":"IF('[1]MONE(M)CARD'!EG52=\"\",\"\",'[1]MONE(M)CARD'!EG52)","v":"n.d."},{"$f":"IF('[1]MONE(M)CARD'!EK52=\"\",\"\",'[1]MONE(M)CARD'!EK52)","v":"n.d."},{"$f":"IF('[1]MONE(M)CARD'!EP52=\"\",\"\",'[1]MONE(M)CARD'!EP52)","v":"n.d."},{"$f":"IF('[1]MONE(M)CARD'!ES52=\"\",\"\",'[1]MONE(M)CARD'!ES52)","v":"n.d."},{"$f":"IF('[1]MONE(M)CARD'!EV52=\"\",\"\",'[1]MONE(M)CARD'!EV52)","v":"n.d."},{"$f":"IF('[1]MONE(M)CARD'!EZ52=\"\",\"\",'[1]MONE(M)CARD'!EZ52)","v":"n.d."},{"$f":"IF('[1]MONE(M)CAPARD'!FC52=\"\",\"\",'[1]MONE(M)CAPARD'!FC52)","v":"n.d."},{"$f":"IF('[1]MONE(M)CAPARD'!FG52=\"\",\"\",'[1]MONE(M)CAPARD'!FG52)","v":"n.d."},{"$f":"IF('[1]MONE(M)CAPARD'!FL52=\"\",\"\",'[1]MONE(M)CAPARD'!FL52)","v":"n.d."},{"$f":"IF('[1]MONE(M)CAPARD'!FO52=\"\",\"\",'[1]MONE(M)CAPARD'!FO52)","v":"n.d."},{"$f":"IF('[1]MONE(M)CAPARD'!FR52=\"\",\"\",'[1]MONE(M)CAPARD'!FR52)","v":"n.d."},{"$f":"IF('[1]MONE(M)CAPARD'!FV52=\"\",\"\",'[1]MONE(M)CAPARD'!FV52)","v":"n.d."},{"$f":"IF('[1]MONE(M)CARD'!FV52=\"\",\"\",'[1]MONE(M)CARD'!FV52)","v":""},{"$f":"IF('[1]MONE(M)CARD'!GD52=\"\",\"\",'[1]MONE(M)CARD'!GD52)","v":"n.d."},{"$f":"IF('[1]MONE(M)CARD'!GE52=\"\",\"\",'[1]MONE(M)CARD'!GE52)","v":"n.d."},"n.d.","n.d.","n.d.","n.d.","n.d.","n.d.","n.d.","n.d.",null,"n.d.","n.d.","n.d.","n.d.","n.d.",{"$f":"IF('[1]MONE(M)CAPARD'!GS52=\"\",\"\",'[1]MONE(M)CAPARD'!GS52)","v":"n.d."},{"$f":"IF('[1]MONE(M)CARD'!HA52=\"\",\"\",'[1]MONE(M)CAPARD'!HA52)","v":"n.d."},{"$f":"IF('[1]MONE(M)CAPARD'!HB52=\"\",\"\",'[1]MONE(M)CAPARD'!HB52)","v":"n.d."},"n.d.","n.d.","n.d.","n.d.","n.d.","n.d.","n.d.","n.d.","n.d.","n.d.","n.d.","n.d.","n.d.","n.d.",{"$f":"IF('[1]MONE(M)CAPARD'!AS52=\"\",\"\",'[1]MONE(M)CAPARD'!AS52)","v":"n.d."},{"$f":"IF('[1]MONE(M)CAPARD'!AT52=\"\",\"\",'[1]MONE(M)CAPARD'!AT52)","v":"n.a."},{"$f":"IF('[1]MONE(M)CAPARD'!AU52=\"\",\"\",'[1]MONE(M)CAPARD'!AU52)","v":"n.d."},{"$f":"IF('[1]MONE(M)CAPARD'!AV52=\"\",\"\",'[1]MONE(M)CAPARD'!AV52)","v":"n.d."},{"$f":"IF('[1]MONE(M)CAPARD'!AW52=\"\",\"\",'[1]MONE(M)CAPARD'!AW52)","v":"n.a."},{"$f":"IF('[1]MONE(M)CAPARD'!AX52=\"\",\"\",'[1]MONE(M)CAPARD'!AX52)","v":"n.d."},{"$f":"IF('[1]MONE(M)CAPARD'!AY52=\"\",\"\",'[1]MONE(M)CAPARD'!AY52)","v":"n.a."},{"$f":"IF('[1]FISCAL(M)'!$K52=\"\",\"\",'[1]FISCAL(M)'!$K52)","v":"n.d."},{"$f":"IF('[1]FISCAL(M)'!$L52=\"\",\"\",'[1]FISCAL(M)'!$L52)","v":"n.d."},{"$f":"IF('[1]FISCAL(M)'!$AY52=\"\",\"\",'[1]FISCAL(M)'!$AY52)","v":"n.d."},{"$f":"IF('[1]FISCAL(M)'!$BI52=\"\",\"\",'[1]FISCAL(M)'!$BI52)","v":"n.d."},{"$f":"IF('[1]FISCAL(M)'!$BS52=\"\",\"\",'[1]FISCAL(M)'!$BS52)","v":"n.d."},{"$f":"IF('[1]FISCAL(M)'!$AZ52=\"\",\"\",'[1]FISCAL(M)'!$AZ52)","v":"n.d."},{"$f":"IF('[1]FISCAL(M)'!$BJ52=\"\",\"\",'[1]FISCAL(M)'!$BJ52)","v":"n.d."},{"$f":"IF('[1]FISCAL(M)'!$BT52=\"\",\"\",'[1]FISCAL(M)'!$BT52)","v":"n.d."},{"$f":"IF('[2]MONE(M)'!$AO52=\"\",\"\",'[2]MONE(M)'!$AO52)","v":"n.d."},{"$f":"IF('[3]MONE(M)'!$AO52=\"\",\"\",'[3]MONE(M)'!$AO52)","v":"n.d."},{"$f":"IF('[4]MONE(M)'!$AO52=\"\",\"\",'[4]MONE(M)'!$AO52)","v":"n.d."},{"$f":"+'[5]MONE(M)'!$AO52","v":"n.d."},{"$f":"IF('[6]MONE(M)'!$AO52=\"\",\"\",'[6]MONE(M)'!$AO52)","v":"n.d."},{"$f":"IF('[7]MONE(M)'!$AO52=\"\",\"\",'[7]MONE(M)'!$AO52)","v":"n.d."},{"$f":"IF('[8]MONE(M)'!$AO52=\"\",\"\",'[8]MONE(M)'!$AO52)","v":"n.d."},"n.d.","n.d.","n.d.","n.d.","n.d.","n.d.","n.d.",{"$f":"IF('[1]FISCAL(M)'!$K52=\"\",\"\",'[1]FISCAL(M)'!$K52)","v":"n.d."},"n.d.","n.d.",{"$f":"IF('[1]FISCAL(M)'!$L52=\"\",\"\",'[1]FISCAL(M)'!$L52)","v":"n.d."},"n.d.","n.d.","n.d.","n.d.","n.d.","n.d.","n.d.","n.d.","n.d.","n.d.","n.d.","n.d.","n.d.","n.d.","n.d.","n.d.","n.d.","n.d."]
[1993,"agosto","1993-agosto",{"$f":"IF('[1]REAL IPC(M)'!$AL53=\"\",\"\",+'[1]REAL IPC(M)'!$AL53)","v":13.381226646589095},{"$f":"IF('[1]REAL IPC(M)'!$BE53=\"\",\"\",+'[1]REAL IPC(M)'!$BE53)","v":"n.d."},{"$f":"IF('[1]REAL IPC(M)'!$AM53=\"\",\"\",+'[1]REAL IPC(M)'!$AM53)","v":12.075441898769611},{"$f":"IF('[1]REAL IPC(M)'!$BI53=\"\",\"\",+'[1]REAL IPC(M)'!$BI53)","v":"n.d."},{"$f":"IF('[1]REAL IMAE(M)'!BJ53=\"\",\"\",'[1]REAL IMAE(M)'!BJ53)","v":"n.d."},{"$f":"IF('[1]REAL IMAE(M)'!BK53=\"\",\"\",'[1]REAL IMAE(M)'!BK53)","v":"n.d."},{"$f":"IF('[1]REAL IMAE(M)'!BN53=\"\",\"\",'[1]REAL IMAE(M)'!BN53)","v":"n.d."},{"$f":"IF('[1]REAL IMAE(M)'!BO53=\"\",\"\",'[1]REAL IMAE(M)'!BO53)","v":"n.d."},{"$f":"IF('[1]EXT RIN(M)'!$K53=\"\",\"\",'[1]EXT RIN(M)'!$K53)","v":"n.d."},"",{"$f":"IF('[1]EXT RIN(M)'!$L53=\"\",\"\",'[1]EXT RIN(M)'!$L53)","v":"n.d."},"",{"$f":"IF('[1]MONE(M)CARD'!EG53=\"\",\"\",'[1]MONE(M)CARD'!EG53)","v":"n.d."},{"$f":"IF('[1]MONE(M)CARD'!EK53=\"\",\"\",'[1]MONE(M)CARD'!EK53)","v":"n.d."},{"$f":"IF('[1]MONE(M)CARD'!EP53=\"\",\"\",'[1]MONE(M)CARD'!EP53)","v":"n.d."},{"$f":"IF('[1]MONE(M)CARD'!ES53=\"\",\"\",'[1]MONE(M)CARD'!ES53)","v":"n.d."},{"$f":"IF('[1]MONE(M)CARD'!EV53=\"\",\"\",'[1]MONE(M)CARD'!EV53)","v":"n.d."},{"$f":"IF('[1]MONE(M)CARD'!EZ53=\"\",\"\",'[1]MONE(M)CARD'!EZ53)","v":"n.d."},{"$f":"IF('[1]MONE(M)CAPARD'!FC53=\"\",\"\",'[1]MONE(M)CAPARD'!FC53)","v":"n.d."},{"$f":"IF('[1]MONE(M)CAPARD'!FG53=\"\",\"\",'[1]MONE(M)CAPARD'!FG53)","v":"n.d."},{"$f":"IF('[1]MONE(M)CAPARD'!FL53=\"\",\"\",'[1]MONE(M)CAPARD'!FL53)","v":"n.d."},{"$f":"IF('[1]MONE(M)CAPARD'!FO53=\"\",\"\",'[1]MONE(M)CAPARD'!FO53)","v":"n.d."},{"$f":"IF('[1]MONE(M)CAPARD'!FR53=\"\",\"\",'[1]MONE(M)CAPARD'!FR53)","v":"n.d."},{"$f":"IF('[1]MONE(M)CAPARD'!FV53=\"\",\"\",'[1]MONE(M)CAPARD'!FV53)","v":"n.d."},{"$f":"IF('[1]MONE(M)CARD'!FV53=\"\",\"\",'[1]MONE(M)CARD'!FV53)","v":""},{"$f":"IF('[1]MONE(M)CARD'!GD53=\"\",\"\",'[1]MONE(M)CARD'!GD53)","v":"n.d."},{"$f":"IF('[1]MONE(M)CARD'!GE53=\"\",\"\",'[1]MONE(M)CARD'!GE53)","v":"n.d."},"n.d.","n.d.","n.d.","n.d.","n.d.","n.d.","n.d.","n.d.",null,"n.d.","n.d.","n.d.","n.d.","n.d.",{"$f":"IF('[1]MONE(M)CAPARD'!GS53=\"\",\"\",'[1]MONE(M)CAPARD'!GS53)","v":"n.d."},{"$f":"IF('[1]MONE(M)CARD'!HA53=\"\",\"\",'[1]MONE(M)CAPARD'!HA53)","v":"n.d."},{"$f":"IF('[1]MONE(M)CAPARD'!HB53=\"\",\"\",'[1]MONE(M)CAPARD'!HB53)","v":"n.d."},"n.d.","n.d.","n.d.","n.d.","n.d.","n.d.","n.d.","n.d.","n.d.","n.d.","n.d.","n.d.","n.d.","n.d.",{"$f":"IF('[1]MONE(M)CAPARD'!AS53=\"\",\"\",'[1]MONE(M)CAPARD'!AS53)","v":"n.d."},{"$f":"IF('[1]MONE(M)CAPARD'!AT53=\"\",\"\",'[1]MONE(M)CAPARD'!AT53)","v":"n.a."},{"$f":"IF('[1]MONE(M)CAPARD'!AU53=\"\",\"\",'[1]MONE(M)CAPARD'!AU53)","v":"n.d."},{"$f":"IF('[1]MONE(M)CAPARD'!AV53=\"\",\"\",'[1]MONE(M)CAPARD'!AV53)","v":"n.d."},{"$f":"IF('[1]MONE(M)CAPARD'!AW53=\"\",\"\",'[1]MONE(M)CAPARD'!AW53)","v":"n.a."},{"$f":"IF('[1]MONE(M)CAPARD'!AX53=\"\",\"\",'[1]MONE(M)CAPARD'!AX53)","v":"n.d."},{"$f":"IF('[1]MONE(M)CAPARD'!AY53=\"\",\"\",'[1]MONE(M)CAPARD'!AY53)","v":"n.a."},{"$f":"IF('[1]FISCAL(M)'!$K53=\"\",\"\",'[1]FISCAL(M)'!$K53)","v":"n.d."},{"$f":"IF('[1]FISCAL(M)'!$L53=\"\",\"\",'[1]FISCAL(M)'!$L53)","v":"n.d."},{"$f":"IF('[1]FISCAL(M)'!$AY53=\"\",\"\",'[1]FISCAL(M)'!$AY53)","v":"n.d."},{"$f":"IF('[1]FISCAL(M)'!$BI53=\"\",\"\",'[1]FISCAL(M)'!$BI53)","v":"n.d."},{"$f":"IF('[1]FISCAL(M)'!$BS53=\"\",\"\",'[1]FISCAL(M)'!$BS53)","v":"n.d."},{"$f":"IF('[1]FISCAL(M)'!$AZ53=\"\",\"\",'[1]FISCAL(M)'!$AZ53)","v":"n.d."},{"$f":"IF('[1]FISCAL(M)'!$BJ53=\"\",\"\",'[1]FISCAL(M)'!$BJ53)","v":"n.d."},{"$f":"IF('[1]FISCAL(M)'!$BT53=\"\",\"\",'[1]FISCAL(M)'!$BT53)","v":"n.d."},{"$f":"IF('[2]MONE(M)'!$AO53=\"\",\"\",'[2]MONE(M)'!$AO53)","v":"n.d."},{"$f":"IF('[3]MONE(M)'!$AO53=\"\",\"\",'[3]MONE(M)'!$AO53)","v":"n.d."},{"$f":"IF('[4]MONE(M)'!$AO53=\"\",\"\",'[4]MONE(M)'!$AO53)","v":"n.d."},{"$f":"+'[5]MONE(M)'!$AO53","v":"n.d."},{"$f":"IF('[6]MONE(M)'!$AO53=\"\",\"\",'[6]MONE(M)'!$AO53)","v":"n.d."},{"$f":"IF('[7]MONE(M)'!$AO53=\"\",\"\",'[7]MONE(M)'!$AO53)","v":"n.d."},{"$f":"IF('[8]MONE(M)'!$AO53=\"\",\"\",'[8]MONE(M)'!$AO53)","v":"n.d."},"n.d.","n.d.","n.d.","n.d.","n.d.","n.d.","n.d.",{"$f":"IF('[1]FISCAL(M)'!$K53=\"\",\"\",'[1]FISCAL(M)'!$K53)","v":"n.d."},"n.d.","n.d.",{"$f":"IF('[1]FISCAL(M)'!$L53=\"\",\"\",'[1]FISCAL(M)'!$L53)","v":"n.d."},"n.d.","n.d.","n.d.","n.d.","n.d.","n.d.","n.d.","n.d.","n.d.","n.d.","n.d.","n.d.","n.d.","n.d.","n.d.","n.d.","n.d.","n.d."]
[1993,"septiembre","1993-septiembre",{"$f":"IF('[1]REAL IPC(M)'!$AL54=\"\",\"\",+'[1]REAL IPC(M)'!$AL54)","v":11.844599200125572},{"$f":"IF('[1]REAL IPC(M)'!$BE54=\"\",\"\",+'[1]REAL IPC(M)'!$BE54)","v":"n.d."},{"$f":"IF('[1]REAL IPC(M)'!$AM54=\"\",\"\",+'[1]REAL IPC(M)'!$AM54)","v":10.73875531655375},{"$f":"IF('[1]REAL IPC(M)'!$BI54=\"\",\"\",+'[1]REAL IPC(M)'!$BI54)","v":"n.d."},{"$f":"IF('[1]REAL IMAE(M)'!BJ54=\"\",\"\",'[1]REAL IMAE(M)'!BJ54)","v":"n.d."},{"$f":"IF('[1]REAL IMAE(M)'!BK54=\"\",\"\",'[1]REAL IMAE(M)'!BK54)","v":"n.d."},{"$f":"IF('[1]REAL IMAE(M)'!BN54=\"\",\"\",'[1]REAL IMAE(M)'!BN54)","v":"n.d."},{"$f":"IF('[1]REAL IMAE(M)'!BO54=\"\",\"\",'[1]REAL IMAE(M)'!BO54)","v":"n.d."},{"$f":"IF('[1]EXT RIN(M)'!$K54=\"\",\"\",'[1]EXT RIN(M)'!$K54)","v":"n.d."},"",{"$f":"IF('[1]EXT RIN(M)'!$L54=\"\",\"\",'[1]EXT RIN(M)'!$L54)","v":"n.d."},"",{"$f":"IF('[1]MONE(M)CARD'!EG54=\"\",\"\",'[1]MONE(M)CARD'!EG54)","v":"n.d."},{"$f":"IF('[1]MONE(M)CARD'!EK54=\"\",\"\",'[1]MONE(M)CARD'!EK54)","v":"n.d."},{"$f":"IF('[1]MONE(M)CARD'!EP54=\"\",\"\",'[1]MONE(M)CARD'!EP54)","v":"n.d."},{"$f":"IF('[1]MONE(M)CARD'!ES54=\"\",\"\",'[1]MONE(M)CARD'!ES54)","v":"n.d."},{"$f":"IF('[1]MONE(M)CARD'!EV54=\"\",\"\",'[1]MONE(M)CARD'!EV54)","v":"n.d."},{"$f":"IF('[1]MONE(M)CARD'!EZ54=\"\",\"\",'[1]MONE(M)CARD'!EZ54)","v":"n.d."},{"$f":"IF('[1]MONE(M)CAPARD'!FC54=\"\",\"\",'[1]MONE(M)CAPARD'!FC54)","v":"n.d."},{"$f":"IF('[1]MONE(M)CAPARD'!FG54=\"\",\"\",'[1]MONE(M)CAPARD'!FG54)","v":"n.d."},{"$f":"IF('[1]MONE(M)CAPARD'!FL54=\"\",\"\",'[1]MONE(M)CAPARD'!FL54)","v":"n.d."},{"$f":"IF('[1]MONE(M)CAPARD'!FO54=\"\",\"\",'[1]MONE(M)CAPARD'!FO54)","v":"n.d."},{"$f":"IF('[1]MONE(M)CAPARD'!FR54=\"\",\"\",'[1]MONE(M)CAPARD'!FR54)","v":"n.d."},{"$f":"IF('[1]MONE(M)CAPARD'!FV54=\"\",\"\",'[1]MONE(M)CAPARD'!FV54)","v":"n.d."},{"$f":"IF('[1]MONE(M)CARD'!FV54=\"\",\"\",'[1]MONE(M)CARD'!FV54)","v":""},{"$f":"IF('[1]MONE(M)CARD'!GD54=\"\",\"\",'[1]MONE(M)CARD'!GD54)","v":"n.d."},{"$f":"IF('[1]MONE(M)CARD'!GE54=\"\",\"\",'[1]MONE(M)CARD'!GE54)","v":"n.d."},"n.d.","n.d.","n.d.","n.d.","n.d.","n.d.","n.d.","n.d.",null,"n.d.","n.d.","n.d.","n.d.","n.d.",{"$f":"IF('[1]MONE(M)CAPARD'!GS54=\"\",\"\",'[1]MONE(M)CAPARD'!GS54)","v":"n.d."},{"$f":"IF('[1]MONE(M)CARD'!HA54=\"\",\"\",'[1]MONE(M)CAPARD'!HA54)","v":"n.d."},{"$f":"IF('[1]MONE(M)CAPARD'!HB54=\"\",\"\",'[1]MONE(M)CAPARD'!HB54)","v":"n.d."},"n.d.","n.d.","n.d.","n.d.","n.d.","n.d.","n.d.","n.d.","n.d.","n.d.","n.d.","n.d.","n.d.","n.d.",{"$f":"IF('[1]MONE(M)CAPARD'!AS54=\"\",\"\",'[1]MONE(M)CAPARD'!AS54)","v":"n.d."},{"$f":"IF('[1]MONE(M)CAPARD'!AT54=\"\",\"\",'[1]MONE(M)CAPARD'!AT54)","v":"n.a."},{"$f":"IF('[1]MONE(M)CAPARD'!AU54=\"\",\"\",'[1]MONE(M)CAPARD'!AU54)","v":"n.d."},{"$f":"IF('[1]MONE(M)CAPARD'!AV54=\"\",\"\",'[1]MONE(M)CAPARD'!AV54)","v":"n.d."},{"$f":"IF('[1]MONE(M)CAPARD'!AW54=\"\",\"\",'[1]MONE(M)CAPARD'!AW54)","v":"n.a."},{"$f":"IF('[1]MONE(M)CAPARD'!AX54=\"\",\"\",'[1]MONE(M)CAPARD'!AX54)","v":"n.d."},{"$f":"IF('[1]MONE(M)CAPARD'!AY54=\"\",\"\",'[1]MONE(M)CAPARD'!AY54)","v":"n.a."},{"$f":"IF('[1]FISCAL(M)'!$K54=\"\",\"\",'[1]FISCAL(M)'!$K54)","v":"n.d."},{"$f":"IF('[1]FISCAL(M)'!$L54=\"\",\"\",'[1]FISCAL(M)'!$L54)","v":"n.d."},{"$f":"IF('[1]FISCAL(M)'!$AY54=\"\",\"\",'[1]FISCAL(M)'!$AY54)","v":"n.d."},{"$f":"IF('[1]FISCAL(M)'!$BI54=\"\",\"\",'[1]FISCAL(M)'!$BI54)","v":"n.d."},{"$f":"IF('[1]FISCAL(M)'!$BS54=\"\",\"\",'[1]FISCAL(M)'!$BS54)","v":"n.d."},{"$f":"IF('[1]FISCAL(M)'!$AZ54=\"\",\"\",'[1]FISCAL(M)'!$AZ54)","v":"n.d."},{"$f":"IF('[1]FISCAL(M)'!$BJ54=\"\",\"\",'[1]FISCAL(M)'!$BJ54)","v":"n.d."},{"$f":"IF('[1]FISCAL(M)'!$BT54=\"\",\"\",'[1]FISCAL(M)'!$BT54)","v":"n.d."},{"$f":"IF('[2]MONE(M)'!$AO54=\"\",\"\",'[2]MONE(M)'!$AO54)","v":"n.d."},{"$f":"IF('[3]MONE(M)'!$AO54=\"\",\"\",'[3]MONE(M)'!$AO54)","v":"n.d."},{"$f":"IF('[4]MONE(M)'!$AO54=\"\",\"\",'[4]MONE(M)'!$AO54)","v":"n.d."},{"$f":"+'[5]MONE(M)'!$AO54","v":"n.d."},{"$f":"IF('[6]MONE(M)'!$AO54=\"\",\"\",'[6]MONE(M)'!$AO54)","v":"n.d."},{"$f":"IF('[7]MONE(M)'!$AO54=\"\",\"\",'[7]MONE(M)'!$AO54)","v":"n.d."},{"$f":"IF('[8]MONE(M)'!$AO54=\"\",\"\",'[8]MONE(M)'!$AO54)","v":"n.d."},"n.d.","n.d.","n.d.","n.d.","n.d.","n.d.","n.d.",{"$f":"IF('[1]FISCAL(M)'!$K54=\"\",\"\",'[1]FISCAL(M)'!$K54)","v":"n.d."},"n.d.","n.d.",{"$f":"IF('[1]FISCAL(M)'!$L54=\"\",\"\",'[1]FISCAL(M)'!$L54)","v":"n.d."},"n.d.","n.d.","n.d.","n.d.","n.d.","n.d.","n.d.","n.d.","n.d.","n.d.","n.d.","n.d.","n.d.","n.d.","n.d.","n.d.","n.d.","n.d."]
[1993,"octubre","1993-octubre",{"$f":"IF('[1]REAL IPC(M)'!$AL55=\"\",\"\",+'[1]REAL IPC(M)'!$AL55)","v":11.609643899268374},{"$f":"IF('[1]REAL IPC(M)'!$BE55=\"\",\"\",+'[1]REAL IPC(M)'!$BE55)","v":"n.d."},{"$f":"IF('[1]REAL IPC(M)'!$AM55=\"\",\"\",+'[1]REAL IPC(M)'!$AM55)","v":10.663067846590369},{"$f":"IF('[1]REAL IPC(M)'!$BI55=\"\",\"\",+'[1]REAL IPC(M)'!$BI55)","v":"n.d."},{"$f":"IF('[1]REAL IMAE(M)'!BJ55=\"\",\"\",'[1]REAL IMAE(M)'!BJ55)","v":"n.d."},{"$f":"IF('[1]REAL IMAE(M)'!BK55=\"\",\"\",'[1]REAL IMAE(M)'!BK55)","v":"n.d."},{"$f":"IF('[1]REAL IMAE(M)'!BN55=\"\",\"\",'[1]REAL IMAE(M)'!BN55)","v":"n.d."},{"$f":"IF('[1]REAL IMAE(M)'!BO55=\"\",\"\",'[1]REAL IMAE(M)'!BO55)","v":"n.d."},{"$f":"IF('[1]EXT RIN(M)'!$K55=\"\",\"\",'[1]EXT RIN(M)'!$K55)","v":"n.d."},"",{"$f":"IF('[1]EXT RIN(M)'!$L55=\"\",\"\",'[1]EXT RIN(M)'!$L55)","v":"n.d."},"",{"$f":"IF('[1]MONE(M)CARD'!EG55=\"\",\"\",'[1]MONE(M)CARD'!EG55)","v":"n.d."},{"$f":"IF('[1]MONE(M)CARD'!EK55=\"\",\"\",'[1]MONE(M)CARD'!EK55)","v":"n.d."},{"$f":"IF('[1]MONE(M)CARD'!EP55=\"\",\"\",'[1]MONE(M)CARD'!EP55)","v":"n.d."},{"$f":"IF('[1]MONE(M)CARD'!ES55=\"\",\"\",'[1]MONE(M)CARD'!ES55)","v":"n.d."},{"$f":"IF('[1]MONE(M)CARD'!EV55=\"\",\"\",'[1]MONE(M)CARD'!EV55)","v":"n.d."},{"$f":"IF('[1]MONE(M)CARD'!EZ55=\"\",\"\",'[1]MONE(M)CARD'!EZ55)","v":"n.d."},{"$f":"IF('[1]MONE(M)CAPARD'!FC55=\"\",\"\",'[1]MONE(M)CAPARD'!FC55)","v":"n.d."},{"$f":"IF('[1]MONE(M)CAPARD'!FG55=\"\",\"\",'[1]MONE(M)CAPARD'!FG55)","v":"n.d."},{"$f":"IF('[1]MONE(M)CAPARD'!FL55=\"\",\"\",'[1]MONE(M)CAPARD'!FL55)","v":"n.d."},{"$f":"IF('[1]MONE(M)CAPARD'!FO55=\"\",\"\",'[1]MONE(M)CAPARD'!FO55)","v":"n.d."},{"$f":"IF('[1]MONE(M)CAPARD'!FR55=\"\",\"\",'[1]MONE(M)CAPARD'!FR55)","v":"n.d."},{"$f":"IF('[1]MONE(M)CAPARD'!FV55=\"\",\"\",'[1]MONE(M)CAPARD'!FV55)","v":"n.d."},{"$f":"IF('[1]MONE(M)CARD'!FV55=\"\",\"\",'[1]MONE(M)CARD'!FV55)","v":""},{"$f":"IF('[1]MONE(M)CARD'!GD55=\"\",\"\",'[1]MONE(M)CARD'!GD55)","v":"n.d."},{"$f":"IF('[1]MONE(M)CARD'!GE55=\"\",\"\",'[1]MONE(M)CARD'!GE55)","v":"n.d."},"n.d.","n.d.","n.d.","n.d.","n.d.","n.d.","n.d.","n.d.",null,"n.d.","n.d.","n.d.","n.d.","n.d.",{"$f":"IF('[1]MONE(M)CAPARD'!GS55=\"\",\"\",'[1]MONE(M)CAPARD'!GS55)","v":"n.d."},{"$f":"IF('[1]MONE(M)CARD'!HA55=\"\",\"\",'[1]MONE(M)CAPARD'!HA55)","v":"n.d."},{"$f":"IF('[1]MONE(M)CAPARD'!HB55=\"\",\"\",'[1]MONE(M)CAPARD'!HB55)","v":"n.d."},"n.d.","n.d.","n.d.","n.d.","n.d.","n.d.","n.d.","n.d.","n.d.","n.d.","n.d.","n.d.","n.d.","n.d.",{"$f":"IF('[1]MONE(M)CAPARD'!AS55=\"\",\"\",'[1]MONE(M)CAPARD'!AS55)","v":"n.d."},{"$f":"IF('[1]MONE(M)CAPARD'!AT55=\"\",\"\",'[1]MONE(M)CAPARD'!AT55)","v":"n.a."},{"$f":"IF('[1]MONE(M)CAPARD'!AU55=\"\",\"\",'[1]MONE(M)CAPARD'!AU55)","v":"n.d."},{"$f":"IF('[1]MONE(M)CAPARD'!AV55=\"\",\"\",'[1]MONE(M)CAPARD'!AV55)","v":"n.d."},{"$f":"IF('[1]MONE(M)CAPARD'!AW55=\"\",\"\",'[1]MONE(M)CAPARD'!AW55)","v":"n.a."},{"$f":"IF('[1]MONE(M)CAPARD'!AX55=\"\",\"\",'[1]MONE(M)CAPARD'!AX55)","v":"n.d."},{"$f":"IF('[1]MONE(M)CAPARD'!AY55=\"\",\"\",'[1]MONE(M)CAPARD'!AY55)","v":"n.a."},{"$f":"IF('[1]FISCAL(M)'!$K55=\"\",\"\",'[1]FISCAL(M)'!$K55)","v":"n.d."},{"$f":"IF('[1]FISCAL(M)'!$L55=\"\",\"\",'[1]FISCAL(M)'!$L55)","v":"n.d."},{"$f":"IF('[1]FISCAL(M)'!$AY55=\"\",\"\",'[1]FISCAL(M)'!$AY55)","v":"n.d."},{"$f":"IF('[1]FISCAL(M)'!$BI55=\"\",\"\",'[1]FISCAL(M)'!$BI55)","v":"n.d."},{"$f":"IF('[1]FISCAL(M)'!$BS55=\"\",\"\",'[1]FISCAL(M)'!$BS55)","v":"n.d."},{"$f":"IF('[1]FISCAL(M)'!$AZ55=\"\",\"\",'[1]FISCAL(M)'!$AZ55)","v":"n.d."},{"$f":"IF('[1]FISCAL(M)'!$BJ55=\"\",\"\",'[1]FISCAL(M)'!$BJ55)","v":"n.d."},{"$f":"IF('[1]FISCAL(M)'!$BT55=\"\",\"\",'[1]FISCAL(M)'!$BT55)","v":"n.d."},{"$f":"IF('[2]MONE(M)'!$AO55=\"\",\"\",'[2]MONE(M)'!$AO55)","v":"n.d."},{"$f":"IF('[3]MONE(M)'!$AO55=\"\",\"\",'[3]MONE(M)'!$AO55)","v":"n.d."},{"$f":"IF('[4]MONE(M)'!$AO55=\"\",\"\",'[4]MONE(M)'!$AO55)","v":"n.d."},{"$f":"+'[5]MONE(M)'!$AO55","v":"n.d."},{"$f":"IF('[6]MONE(M)'!$AO55=\"\",\"\",'[6]MONE(M)'!$AO55)","v":"n.d."},{"$f":"IF('[7]MONE(M)'!$AO55=\"\",\"\",'[7]MONE(M)'!$AO55)","v":"n.d."},{"$f":"IF('[8]MONE(M)'!$AO55=\"\",\"\",'[8]MONE(M)'!$AO55)","v":"n.d."},"n.d.","n.d.","n.d.","n.d.","n.d.","n.d.","n.d.",{"$f":"IF('[1]FISCAL(M)'!$K55=\"\",\"\",'[1]FISCAL(M)'!$K55)","v":"n.d."},"n.d.","n.d.",{"$f":"IF('[1]FISCAL(M)'!$L55=\"\",\"\",'[1]FISCAL(M)'!$L55)","v":"n.d."},"n.d.","n.d.","n.d.","n.d.","n.d.","n.d.","n.d.","n.d.","n.d.","n.d.","n.d.","n.d.","n.d.","n.d.","n.d.","n.d.","n.d.","n.d."]
[1993,"noviembre","1993-noviembre",{"$f":"IF('[1]REAL IPC(M)'!$AL56=\"\",\"\",+'[1]REAL IPC(M)'!$AL56)","v":10.82391068891344},{"$f":"IF('[1]REAL IPC(M)'!$BE56=\"\",\"\",+'[1]REAL IPC(M)'!$BE56)","v":"n.d."},{"$f":"IF('[1]REAL IPC(M)'!$AM56=\"\",\"\",+'[1]REAL IPC(M)'!$AM56)","v":9.9149440643570905},{"$f":"IF('[1]REAL IPC(M)'!$BI56=\"\",\"\",+'[1]REAL IPC(M)'!$BI56)","v":"n.d."},{"$f":"IF('[1]REAL IMAE(M)'!BJ56=\"\",\"\",'[1]REAL IMAE(M)'!BJ56)","v":"n.d."},{"$f":"IF('[1]REAL IMAE(M)'!BK56=\"\",\"\",'[1]REAL IMAE(M)'!BK56)","v":"n.d."},{"$f":"IF('[1]REAL IMAE(M)'!BN56=\"\",\"\",'[1]REAL IMAE(M)'!BN56)","v":"n.d."},{"$f":"IF('[1]REAL IMAE(M)'!BO56=\"\",\"\",'[1]REAL IMAE(M)'!BO56)","v":"n.d."},{"$f":"IF('[1]EXT RIN(M)'!$K56=\"\",\"\",'[1]EXT RIN(M)'!$K56)","v":"n.d."},"",{"$f":"IF('[1]EXT RIN(M)'!$L56=\"\",\"\",'[1]EXT RIN(M)'!$L56)","v":"n.d."},"",{"$f":"IF('[1]MONE(M)CARD'!EG56=\"\",\"\",'[1]MONE(M)CARD'!EG56)","v":"n.d."},{"$f":"IF('[1]MONE(M)CARD'!EK56=\"\",\"\",'[1]MONE(M)CARD'!EK56)","v":"n.d."},{"$f":"IF('[1]MONE(M)CARD'!EP56=\"\",\"\",'[1]MONE(M)CARD'!EP56)","v":"n.d."},{"$f":"IF('[1]MONE(M)CARD'!ES56=\"\",\"\",'[1]MONE(M)CARD'!ES56)","v":"n.d."},{"$f":"IF('[1]MONE(M)CARD'!EV56=\"\",\"\",'[1]MONE(M)CARD'!EV56)","v":"n.d."},{"$f":"IF('[1]MONE(M)CARD'!EZ56=\"\",\"\",'[1]MONE(M)CARD'!EZ56)","v":"n.d."},{"$f":"IF('[1]MONE(M)CAPARD'!FC56=\"\",\"\",'[1]MONE(M)CAPARD'!FC56)","v":"n.d."},{"$f":"IF('[1]MONE(M)CAPARD'!FG56=\"\",\"\",'[1]MONE(M)CAPARD'!FG56)","v":"n.d."},{"$f":"IF('[1]MONE(M)CAPARD'!FL56=\"\",\"\",'[1]MONE(M)CAPARD'!FL56)","v":"n.d."},{"$f":"IF('[1]MONE(M)CAPARD'!FO56=\"\",\"\",'[1]MONE(M)CAPARD'!FO56)","v":"n.d."},{"$f":"IF('[1]MONE(M)CAPARD'!FR56=\"\",\"\",'[1]MONE(M)CAPARD'!FR56)","v":"n.d."},{"$f":"IF('[1]MONE(M)CAPARD'!FV56=\"\",\"\",'[1]MONE(M)CAPARD'!FV56)","v":"n.d."},{"$f":"IF('[1]MONE(M)CARD'!FV56=\"\",\"\",'[1]MONE(M)CARD'!FV56)","v":""},{"$f":"IF('[1]MONE(M)CARD'!GD56=\"\",\"\",'[1]MONE(M)CARD'!GD56)","v":"n.d."},{"$f":"IF('[1]MONE(M)CARD'!GE56=\"\",\"\",'[1]MONE(M)CARD'!GE56)","v":"n.d."},"n.d.","n.d.","n.d.","n.d.","n.d.","n.d.","n.d.","n.d.",null,"n.d.","n.d.","n.d.","n.d.","n.d.",{"$f":"IF('[1]MONE(M)CAPARD'!GS56=\"\",\"\",'[1]MONE(M)CAPARD'!GS56)","v":"n.d."},{"$f":"IF('[1]MONE(M)CARD'!HA56=\"\",\"\",'[1]MONE(M)CAPARD'!HA56)","v":"n.d."},{"$f":"IF('[1]MONE(M)CAPARD'!HB56=\"\",\"\",'[1]MONE(M)CAPARD'!HB56)","v":"n.d."},"n.d.","n.d.","n.d.","n.d.","n.d.","n.d.","n.d.","n.d.","n.d.","n.d.","n.d.","n.d.","n.d.","n.d.",{"$f":"IF('[1]MONE(M)CAPARD'!AS56=\"\",\"\",'[1]MONE(M)CAPARD'!AS56)","v":"n.d."},{"$f":"IF('[1]MONE(M)CAPARD'!AT56=\"\",\"\",'[1]MONE(M)CAPARD'!AT56)","v":"n.a."},{"$f":"IF('[1]MONE(M)CAPARD'!AU56=\"\",\"\",'[1]MONE(M)CAPARD'!AU56)","v":"n.d."},{"$f":"IF('[1]MONE(M)CAPARD'!AV56=\"\",\"\",'[1]MONE(M)CAPARD'!AV56)","v":"n.d."},{"$f":"IF('[1]MONE(M)CAPARD'!AW56=\"\",\"\",'[1]MONE(M)CAPARD'!AW56)","v":"n.a."},{"$f":"IF('[1]MONE(M)CAPARD'!AX56=\"\",\"\",'[1]MONE(M)CAPARD'!AX56)","v":"n.d."},{"$f":"IF('[1]MONE(M)CAPARD'!AY56=\"\",\"\",'[1]MONE(M)CAPARD'!AY56)","v":"n.a."},{"$f":"IF('[1]FISCAL(M)'!$K56=\"\",\"\",'[1]FISCAL(M)'!$K56)","v":"n.d."},{"$f":"IF('[1]FISCAL(M)'!$L56=\"\",\"\",'[1]FISCAL(M)'!$L56)","v":"n.d."},{"$f":"IF('[1]FISCAL(M)'!$AY56=\"\",\"\",'[1]FISCAL(M)'!$AY56)","v":"n.d."},{"$f":"IF('[1]FISCAL(M)'!$BI56=\"\",\"\",'[1]FISCAL(M)'!$BI56)","v":"n.d."},{"$f":"IF('[1]FISCAL(M)'!$BS56=\"\",\"\",'[1]FISCAL(M)'!$BS56)","v":"n.d."},{"$f":"IF('[1]FISCAL(M)'!$AZ56=\"\",\"\",'[1]FISCAL(M)'!$AZ56)","v":"n.d."},{"$f":"IF('[1]FISCAL(M)'!$BJ56=\"\",\"\",'[1]FISCAL(M)'!$BJ56)","v":"n.d."},{"$f":"IF('[1]FISCAL(M)'!$BT56=\"\",\"\",'[1]FISCAL(M)'!$BT56)","v":"n.d."},{"$f":"IF('[2]MONE(M)'!$AO56=\"\",\"\",'[2]MONE(M)'!$AO56)","v":"n.d."},{"$f":"IF('[3]MONE(M)'!$AO56=\"\",\"\",'[3]MONE(M)'!$AO56)","v":"n.d."},{"$f":"IF('[4]MONE(M)'!$AO56=\"\",\"\",'[4]MONE(M)'!$AO56)","v":"n.d."},{"$f":"+'[5]MONE(M)'!$AO56","v":"n.d."},{"$f":"IF('[6]MONE(M)'!$AO56=\"\",\"\",'[6]MONE(M)'!$AO56)","v":"n.d."},{"$f":"IF('[7]MONE(M)'!$AO56=\"\",\"\",'[7]MONE(M)'!$AO56)","v":"n.d."},{"$f":"IF('[8]MONE(M)'!$AO56=\"\",\"\",'[8]MONE(M)'!$AO56)","v":"n.d."},"n.d.","n.d.","n.d.","n.d.","n.d.","n.d.","n.d.",{"$f":"IF('[1]FISCAL(M)'!$K56=\"\",\"\",'[1]FISCAL(M)'!$K56)","v":"n.d."},"n.d.","n.d.",{"$f":"IF('[1]FISCAL(M)'!$L56=\"\",\"\",'[1]FISCAL(M)'!$L56)","v":"n.d."},"n.d.","n.d.","n.d.","n.d.","n.d.","n.d.","n.d.","n.d.","n.d.","n.d.","n.d.","n.d.","n.d.","n.d.","n.d.","n.d.","n.d.","n.d."]
[1993,"diciembre","1993-diciembre",{"$f":"IF('[1]REAL IPC(M)'!$AL57=\"\",\"\",+'[1]REAL IPC(M)'!$AL57)","v":10.221313138820666},{"$f":"IF('[1]REAL IPC(M)'!$BE57=\"\",\"\",+'[1]REAL IPC(M)'!$BE57)","v":"n.d."},{"$f":"IF('[1]REAL IPC(M)'!$AM57=\"\",\"\",+'[1]REAL IPC(M)'!$AM57)","v":9.3419142672350972},{"$f":"IF('[1]REAL IPC(M)'!$BI57=\"\",\"\",+'[1]REAL IPC(M)'!$BI57)","v":"n.d."},{"$f":"IF('[1]REAL IMAE(M)'!BJ57=\"\",\"\",'[1]REAL IMAE(M)'!BJ57)","v":"n.d."},{"$f":"IF('[1]REAL IMAE(M)'!BK57=\"\",\"\",'[1]REAL IMAE(M)'!BK57)","v":"n.d."},{"$f":"IF('[1]REAL IMAE(M)'!BN57=\"\",\"\",'[1]REAL IMAE(M)'!BN57)","v":"n.d."},{"$f":"IF('[1]REAL IMAE(M)'!BO57=\"\",\"\",'[1]REAL IMAE(M)'!BO57)","v":"n.d."},{"$f":"IF('[1]EXT RIN(M)'!$K57=\"\",\"\",'[1]EXT RIN(M)'!$K57)","v":"n.d."},"n.d.",{"$f":"IF('[1]EXT RIN(M)'!$L57=\"\",\"\",'[1]EXT RIN(M)'!$L57)","v":"n.d."},"n.d.",{"$f":"IF('[1]MONE(M)CARD'!EG57=\"\",\"\",'[1]MONE(M)CARD'!EG57)","v":"n.d."},{"$f":"IF('[1]MONE(M)CARD'!EK57=\"\",\"\",'[1]MONE(M)CARD'!EK57)","v":"n.d."},{"$f":"IF('[1]MONE(M)CARD'!EP57=\"\",\"\",'[1]MONE(M)CARD'!EP57)","v":"n.d."},{"$f":"IF('[1]MONE(M)CARD'!ES57=\"\",\"\",'[1]MONE(M)CARD'!ES57)","v":"n.d."},{"$f":"IF('[1]MONE(M)CARD'!EV57=\"\",\"\",'[1]MONE(M)CARD'!EV57)","v":"n.d."},{"$f":"IF('[1]MONE(M)CARD'!EZ57=\"\",\"\",'[1]MONE(M)CARD'!EZ57)","v":"n.d."},{"$f":"IF('[1]MONE(M)CAPARD'!FC57=\"\",\"\",'[1]MONE(M)CAPARD'!FC57)","v":"n.d."},{"$f":"IF('[1]MONE(M)CAPARD'!FG57=\"\",\"\",'[1]MONE(M)CAPARD'!FG57)","v":"n.d."},{"$f":"IF('[1]MONE(M)CAPARD'!FL57=\"\",\"\",'[1]MONE(M)CAPARD'!FL57)","v":"n.d."},{"$f":"IF('[1]MONE(M)CAPARD'!FO57=\"\",\"\",'[1]MONE(M)CAPARD'!FO57)","v":"n.d."},{"$f":"IF('[1]MONE(M)CAPARD'!FR57=\"\",\"\",'[1]MONE(M)CAPARD'!FR57)","v":"n.d."},{"$f":"IF('[1]MONE(M)CAPARD'!FV57=\"\",\"\",'[1]MONE(M)CAPARD'!FV57)","v":"n.d."},{"$f":"IF('[1]MONE(M)CARD'!FV57=\"\",\"\",'[1]MONE(M)CARD'!FV57)","v":""},{"$f":"IF('[1]MONE(M)CARD'!GD57=\"\",\"\",'[1]MONE(M)CARD'!GD57)","v":"n.d."},{"$f":"IF('[1]MONE(M)CARD'!GE57=\"\",\"\",'[1]MONE(M)CARD'!GE57)","v":"n.d."},"n.d.","n.d.","n.d.","n.d.","n.d.","n.d.","n.d.","n.d.",null,"n.d.","n.d.","n.d.","n.d.","n.d.",{"$f":"IF('[1]MONE(M)CAPARD'!GS57=\"\",\"\",'[1]MONE(M)CAPARD'!GS57)","v":"n.d."},{"$f":"IF('[1]MONE(M)CARD'!HA57=\"\",\"\",'[1]MONE(M)CAPARD'!HA57)","v":"n.d."},{"$f":"IF('[1]MONE(M)CAPARD'!HB57=\"\",\"\",'[1]MONE(M)CAPARD'!HB57)","v":"n.d."},"n.d.","n.d.","n.d.","n.d.","n.d.","n.d.","n.d.","n.d.","n.d.","n.d.","n.d.","n.d.","n.d.","n.d.",{"$f":"IF('[1]MONE(M)CAPARD'!AS57=\"\",\"\",'[1]MONE(M)CAPARD'!AS57)","v":"n.d."},{"$f":"IF('[1]MONE(M)CAPARD'!AT57=\"\",\"\",'[1]MONE(M)CAPARD'!AT57)","v":"n.a."},{"$f":"IF('[1]MONE(M)CAPARD'!AU57=\"\",\"\",'[1]MONE(M)CAPARD'!AU57)","v":"n.d."},{"$f":"IF('[1]MONE(M)CAPARD'!AV57=\"\",\"\",'[1]MONE(M)CAPARD'!AV57)","v":"n.d."},{"$f":"IF('[1]MONE(M)CAPARD'!AW57=\"\",\"\",'[1]MONE(M)CAPARD'!AW57)","v":"n.a."},{"$f":"IF('[1]MONE(M)CAPARD'!AX57=\"\",\"\",'[1]MONE(M)CAPARD'!AX57)","v":"n.d."},{"$f":"IF('[1]MONE(M)CAPARD'!AY57=\"\",\"\",'[1]MONE(M)CAPARD'!AY57)","v":"n.a."},{"$f":"IF('[1]FISCAL(M)'!$K57=\"\",\"\",'[1]FISCAL(M)'!$K57)","v":"n.d."},{"$f":"IF('[1]FISCAL(M)'!$L57=\"\",\"\",'[1]FISCAL(M)'!$L57)","v":"n.d."},{"$f":"IF('[1]FISCAL(M)'!$AY57=\"\",\"\",'[1]FISCAL(M)'!$AY57)","v":"n.d."},{"$f":"IF('[1]FISCAL(M)'!$BI57=\"\",\"\",'[1]FISCAL(M)'!$BI57)","v":"n.d."},{"$f":"IF('[1]FISCAL(M)'!$BS57=\"\",\"\",'[1]FISCAL(M)'!$BS57)","v":"n.d."},{"$f":"IF('[1]FISCAL(M)'!$AZ57=\"\",\"\",'[1]FISCAL(M)'!$AZ57)","v":"n.d."},{"$f":"IF('[1]FISCAL(M)'!$BJ57=\"\",\"\",'[1]FISCAL(M)'!$BJ57)","v":"n.d."},{"$f":"IF('[1]FISCAL(M)'!$BT57=\"\",\"\",'[1]FISCAL(M)'!$BT57)","v":"n.d."},{"$f":"IF('[2]MONE(M)'!$AO57=\"\",\"\",'[2]MONE(M)'!$AO57)","v":"n.d."},{"$f":"IF('[3]MONE(M)'!$AO57=\"\",\"\",'[3]MONE(M)'!$AO57)","v":"n.d."},{"$f":"IF('[4]MONE(M)'!$AO57=\"\",\"\",'[4]MONE(M)'!$AO57)","v":"n.d."},{"$f":"+'[5]MONE(M)'!$AO57","v":"n.d."},{"$f":"IF('[6]MONE(M)'!$AO57=\"\",\"\",'[6]MONE(M)'!$AO57)","v":"n.d."},{"$f":"IF('[7]MONE(M)'!$AO57=\"\",\"\",'[7]MONE(M)'!$AO57)","v":"n.d."},{"$f":"IF('[8]MONE(M)'!$AO57=\"\",\"\",'[8]MONE(M)'!$AO57)","v":"n.d."},"n.d.","n.d.","n.d.","n.d.","n.d.","n.d.","n.d.",{"$f":"IF('[1]FISCAL(M)'!$K57=\"\",\"\",'[1]FISCAL(M)'!$K57)","v":"n.d."},"n.d.","n.d.",{"$f":"IF('[1]FISCAL(M)'!$L57=\"\",\"\",'[1]FISCAL(M)'!$L57)","v":"n.d."},"n.d.","n.d.","n.d.","n.d.","n.d.","n.d.","n.d.","n.d.","n.d.","n.d.","n.d.","n.d.","n.d.","n.d.","n.d.","n.d.","n.d.","n.d."]
[1994,"enero","1994-enero",{"$f":"IF('[1]REAL IPC(M)'!$AL58=\"\",\"\",+'[1]REAL IPC(M)'!$AL58)","v":9.7738812702043987},{"$f":"IF('[1]REAL IPC(M)'!$BE58=\"\",\"\",+'[1]REAL IPC(M)'!$BE58)","v":"n.d."},{"$f":"IF('[1]REAL IPC(M)'!$AM58=\"\",\"\",+'[1]REAL IPC(M)'!$AM58)","v":8.9330136600600305},{"$f":"IF('[1]REAL IPC(M)'!$BI58=\"\",\"\",+'[1]REAL IPC(M)'!$BI58)","v":"n.d."},{"$f":"IF('[1]REAL IMAE(M)'!BJ58=\"\",\"\",'[1]REAL IMAE(M)'!BJ58)","v":"n.d."},{"$f":"IF('[1]REAL IMAE(M)'!BK58=\"\",\"\",'[1]REAL IMAE(M)'!BK58)","v":"n.d."},{"$f":"IF('[1]REAL IMAE(M)'!BN58=\"\",\"\",'[1]REAL IMAE(M)'!BN58)","v":"n.d."},{"$f":"IF('[1]REAL IMAE(M)'!BO58=\"\",\"\",'[1]REAL IMAE(M)'!BO58)","v":"n.d."},{"$f":"IF('[1]EXT RIN(M)'!$K58=\"\",\"\",'[1]EXT RIN(M)'!$K58)","v":"n.d."},"",{"$f":"IF('[1]EXT RIN(M)'!$L58=\"\",\"\",'[1]EXT RIN(M)'!$L58)","v":"n.d."},"",{"$f":"IF('[1]MONE(M)CARD'!EG58=\"\",\"\",'[1]MONE(M)CARD'!EG58)","v":"n.d."},{"$f":"IF('[1]MONE(M)CARD'!EK58=\"\",\"\",'[1]MONE(M)CARD'!EK58)","v":"n.d."},{"$f":"IF('[1]MONE(M)CARD'!EP58=\"\",\"\",'[1]MONE(M)CARD'!EP58)","v":"n.d."},{"$f":"IF('[1]MONE(M)CARD'!ES58=\"\",\"\",'[1]MONE(M)CARD'!ES58)","v":"n.d."},{"$f":"IF('[1]MONE(M)CARD'!EV58=\"\",\"\",'[1]MONE(M)CARD'!EV58)","v":"n.d."},{"$f":"IF('[1]MONE(M)CARD'!EZ58=\"\",\"\",'[1]MONE(M)CARD'!EZ58)","v":"n.d."},{"$f":"IF('[1]MONE(M)CAPARD'!FC58=\"\",\"\",'[1]MONE(M)CAPARD'!FC58)","v":"n.d."},{"$f":"IF('[1]MONE(M)CAPARD'!FG58=\"\",\"\",'[1]MONE(M)CAPARD'!FG58)","v":"n.d."},{"$f":"IF('[1]MONE(M)CAPARD'!FL58=\"\",\"\",'[1]MONE(M)CAPARD'!FL58)","v":"n.d."},{"$f":"IF('[1]MONE(M)CAPARD'!FO58=\"\",\"\",'[1]MONE(M)CAPARD'!FO58)","v":"n.d."},{"$f":"IF('[1]MONE(M)CAPARD'!FR58=\"\",\"\",'[1]MONE(M)CAPARD'!FR58)","v":"n.d."},{"$f":"IF('[1]MONE(M)CAPARD'!FV58=\"\",\"\",'[1]MONE(M)CAPARD'!FV58)","v":"n.d."},{"$f":"IF('[1]MONE(M)CARD'!FV58=\"\",\"\",'[1]MONE(M)CARD'!FV58)","v":""},{"$f":"IF('[1]MONE(M)CARD'!GD58=\"\",\"\",'[1]MONE(M)CARD'!GD58)","v":"n.d."},{"$f":"IF('[1]MONE(M)CARD'!GE58=\"\",\"\",'[1]MONE(M)CARD'!GE58)","v":"n.d."},"n.d.","n.d.","n.d.","n.d.","n.d.","n.d.","n.d.","n.d.",null,"n.d.","n.d.","n.d.","n.d.","n.d.",{"$f":"IF('[1]MONE(M)CAPARD'!GS58=\"\",\"\",'[1]MONE(M)CAPARD'!GS58)","v":"n.d."},{"$f":"IF('[1]MONE(M)CARD'!HA58=\"\",\"\",'[1]MONE(M)CAPARD'!HA58)","v":"n.d."},{"$f":"IF('[1]MONE(M)CAPARD'!HB58=\"\",\"\",'[1]MONE(M)CAPARD'!HB58)","v":"n.d."},"n.d.","n.d.","n.d.","n.d.","n.d.","n.d.","n.d.","n.d.","n.d.","n.d.","n.d.","n.d.","n.d.","n.d.",{"$f":"IF('[1]MONE(M)CAPARD'!AS58=\"\",\"\",'[1]MONE(M)CAPARD'!AS58)","v":"n.d."},{"$f":"IF('[1]MONE(M)CAPARD'!AT58=\"\",\"\",'[1]MONE(M)CAPARD'!AT58)","v":"n.a."},{"$f":"IF('[1]MONE(M)CAPARD'!AU58=\"\",\"\",'[1]MONE(M)CAPARD'!AU58)","v":"n.d."},{"$f":"IF('[1]MONE(M)CAPARD'!AV58=\"\",\"\",'[1]MONE(M)CAPARD'!AV58)","v":"n.d."},{"$f":"IF('[1]MONE(M)CAPARD'!AW58=\"\",\"\",'[1]MONE(M)CAPARD'!AW58)","v":"n.a."},{"$f":"IF('[1]MONE(M)CAPARD'!AX58=\"\",\"\",'[1]MONE(M)CAPARD'!AX58)","v":"n.d."},{"$f":"IF('[1]MONE(M)CAPARD'!AY58=\"\",\"\",'[1]MONE(M)CAPARD'!AY58)","v":"n.a."},{"$f":"IF('[1]FISCAL(M)'!$K58=\"\",\"\",'[1]FISCAL(M)'!$K58)","v":"n.d."},{"$f":"IF('[1]FISCAL(M)'!$L58=\"\",\"\",'[1]FISCAL(M)'!$L58)","v":"n.d."},{"$f":"IF('[1]FISCAL(M)'!$AY58=\"\",\"\",'[1]FISCAL(M)'!$AY58)","v":"n.d."},{"$f":"IF('[1]FISCAL(M)'!$BI58=\"\",\"\",'[1]FISCAL(M)'!$BI58)","v":"n.d."},{"$f":"IF('[1]FISCAL(M)'!$BS58=\"\",\"\",'[1]FISCAL(M)'!$BS58)","v":"n.d."},{"$f":"IF('[1]FISCAL(M)'!$AZ58=\"\",\"\",'[1]FISCAL(M)'!$AZ58)","v":"n.d."},{"$f":"IF('[1]FISCAL(M)'!$BJ58=\"\",\"\",'[1]FISCAL(M)'!$BJ58)","v":"n.d."},{"$f":"IF('[1]FISCAL(M)'!$BT58=\"\",\"\",'[1]FISCAL(M)'!$BT58)","v":"n.d."},{"$f":"IF('[2]MONE(M)'!$AO58=\"\",\"\",'[2]MONE(M)'!$AO58)","v":"n.d."},{"$f":"IF('[3]MONE(M)'!$AO58=\"\",\"\",'[3]MONE(M)'!$AO58)","v":"n.d."},{"$f":"IF('[4]MONE(M)'!$AO58=\"\",\"\",'[4]MONE(M)'!$AO58)","v":"n.d."},{"$f":"+'[5]MONE(M)'!$AO58","v":"n.d."},{"$f":"IF('[6]MONE(M)'!$AO58=\"\",\"\",'[6]MONE(M)'!$AO58)","v":"n.d."},{"$f":"IF('[7]MONE(M)'!$AO58=\"\",\"\",'[7]MONE(M)'!$AO58)","v":"n.d."},{"$f":"IF('[8]MONE(M)'!$AO58=\"\",\"\",'[8]MONE(M)'!$AO58)","v":"n.d."},"n.d.","n.d.","n.d.","n.d.","n.d.","n.d.","n.d.",{"$f":"IF('[1]FISCAL(M)'!$K58=\"\",\"\",'[1]FISCAL(M)'!$K58)","v":"n.d."},"n.d.","n.d.",{"$f":"IF('[1]FISCAL(M)'!$L58=\"\",\"\",'[1]FISCAL(M)'!$L58)","v":"n.d."},"n.d.","n.d.","n.d.","n.d.","n.d.","n.d.","n.d.","n.d.","n.d.","n.d.","n.d.","n.d.","n.d.","n.d.","n.d.","n.d.","n.d.","n.d."]
[1994,"febrero","1994-febrero",{"$f":"IF('[1]REAL IPC(M)'!$AL59=\"\",\"\",+'[1]REAL IPC(M)'!$AL59)","v":9.7636875461657446},{"$f":"IF('[1]REAL IPC(M)'!$BE59=\"\",\"\",+'[1]REAL IPC(M)'!$BE59)","v":"n.d."},{"$f":"IF('[1]REAL IPC(M)'!$AM59=\"\",\"\",+'[1]REAL IPC(M)'!$AM59)","v":8.9048587751072041},{"$f":"IF('[1]REAL IPC(M)'!$BI59=\"\",\"\",+'[1]REAL IPC(M)'!$BI59)","v":"n.d."},{"$f":"IF('[1]REAL IMAE(M)'!BJ59=\"\",\"\",'[1]REAL IMAE(M)'!BJ59)","v":"n.d."},{"$f":"IF('[1]REAL IMAE(M)'!BK59=\"\",\"\",'[1]REAL IMAE(M)'!BK59)","v":"n.d."},{"$f":"IF('[1]REAL IMAE(M)'!BN59=\"\",\"\",'[1]REAL IMAE(M)'!BN59)","v":"n.d."},{"$f":"IF('[1]REAL IMAE(M)'!BO59=\"\",\"\",'[1]REAL IMAE(M)'!BO59)","v":"n.d."},{"$f":"IF('[1]EXT RIN(M)'!$K59=\"\",\"\",'[1]EXT RIN(M)'!$K59)","v":"n.d."},"",{"$f":"IF('[1]EXT RIN(M)'!$L59=\"\",\"\",'[1]EXT RIN(M)'!$L59)","v":"n.d."},"",{"$f":"IF('[1]MONE(M)CARD'!EG59=\"\",\"\",'[1]MONE(M)CARD'!EG59)","v":"n.d."},{"$f":"IF('[1]MONE(M)CARD'!EK59=\"\",\"\",'[1]MONE(M)CARD'!EK59)","v":"n.d."},{"$f":"IF('[1]MONE(M)CARD'!EP59=\"\",\"\",'[1]MONE(M)CARD'!EP59)","v":"n.d."},{"$f":"IF('[1]MONE(M)CARD'!ES59=\"\",\"\",'[1]MONE(M)CARD'!ES59)","v":"n.d."},{"$f":"IF('[1]MONE(M)CARD'!EV59=\"\",\"\",'[1]MONE(M)CARD'!EV59)","v":"n.d."},{"$f":"IF('[1]MONE(M)CARD'!EZ59=\"\",\"\",'[1]MONE(M)CARD'!EZ59)","v":"n.d."},{"$f":"IF('[1]MONE(M)CAPARD'!FC59=\"\",\"\",'[1]MONE(M)CAPARD'!FC59)","v":"n.d."},{"$f":"IF('[1]MONE(M)CAPARD'!FG59=\"\",\"\",'[1]MONE(M)CAPARD'!FG59)","v":"n.d."},{"$f":"IF('[1]MONE(M)CAPARD'!FL59=\"\",\"\",'[1]MONE(M)CAPARD'!FL59)","v":"n.d."},{"$f":"IF('[1]MONE(M)CAPARD'!FO59=\"\",\"\",'[1]MONE(M)CAPARD'!FO59)","v":"n.d."},{"$f":"IF('[1]MONE(M)CAPARD'!FR59=\"\",\"\",'[1]MONE(M)CAPARD'!FR59)","v":"n.d."},{"$f":"IF('[1]MONE(M)CAPARD'!FV59=\"\",\"\",'[1]MONE(M)CAPARD'!FV59)","v":"n.d."},{"$f":"IF('[1]MONE(M)CARD'!FV59=\"\",\"\",'[1]MONE(M)CARD'!FV59)","v":""},{"$f":"IF('[1]MONE(M)CARD'!GD59=\"\",\"\",'[1]MONE(M)CARD'!GD59)","v":"n.d."},{"$f":"IF('[1]MONE(M)CARD'!GE59=\"\",\"\",'[1]MONE(M)CARD'!GE59)","v":"n.d."},"n.d.","n.d.","n.d.","n.d.","n.d.","n.d.","n.d.","n.d.",null,"n.d.","n.d.","n.d.","n.d.","n.d.",{"$f":"IF('[1]MONE(M)CAPARD'!GS59=\"\",\"\",'[1]MONE(M)CAPARD'!GS59)","v":"n.d."},{"$f":"IF('[1]MONE(M)CARD'!HA59=\"\",\"\",'[1]MONE(M)CAPARD'!HA59)","v":"n.d."},{"$f":"IF('[1]MONE(M)CAPARD'!HB59=\"\",\"\",'[1]MONE(M)CAPARD'!HB59)","v":"n.d."},"n.d.","n.d.","n.d.","n.d.","n.d.","n.d.","n.d.","n.d.","n.d.","n.d.","n.d.","n.d.","n.d.","n.d.",{"$f":"IF('[1]MONE(M)CAPARD'!AS59=\"\",\"\",'[1]MONE(M)CAPARD'!AS59)","v":"n.d."},{"$f":"IF('[1]MONE(M)CAPARD'!AT59=\"\",\"\",'[1]MONE(M)CAPARD'!AT59)","v":"n.a."},{"$f":"IF('[1]MONE(M)CAPARD'!AU59=\"\",\"\",'[1]MONE(M)CAPARD'!AU59)","v":"n.d."},{"$f":"IF('[1]MONE(M)CAPARD'!AV59=\"\",\"\",'[1]MONE(M)CAPARD'!AV59)","v":"n.d."},{"$f":"IF('[1]MONE(M)CAPARD'!AW59=\"\",\"\",'[1]MONE(M)CAPARD'!AW59)","v":"n.a."},{"$f":"IF('[1]MONE(M)CAPARD'!AX59=\"\",\"\",'[1]MONE(M)CAPARD'!AX59)","v":"n.d."},{"$f":"IF('[1]MONE(M)CAPARD'!AY59=\"\",\"\",'[1]MONE(M)CAPARD'!AY59)","v":"n.a."},{"$f":"IF('[1]FISCAL(M)'!$K59=\"\",\"\",'[1]FISCAL(M)'!$K59)","v":"n.d."},{"$f":"IF('[1]FISCAL(M)'!$L59=\"\",\"\",'[1]FISCAL(M)'!$L59)","v":"n.d."},{"$f":"IF('[1]FISCAL(M)'!$AY59=\"\",\"\",'[1]FISCAL(M)'!$AY59)","v":"n.d."},{"$f":"IF('[1]FISCAL(M)'!$BI59=\"\",\"\",'[1]FISCAL(M)'!$BI59)","v":"n.d."},{"$f":"IF('[1]FISCAL(M)'!$BS59=\"\",\"\",'[1]FISCAL(M)'!$BS59)","v":"n.d."},{"$f":"IF('[1]FISCAL(M)'!$AZ59=\"\",\"\",'[1]FISCAL(M)'!$AZ59)","v":"n.d."},{"$f":"IF('[1]FISCAL(M)'!$BJ59=\"\",\"\",'[1]FISCAL(M)'!$BJ59)","v":"n.d."},{"$f":"IF('[1]FISCAL(M)'!$BT59=\"\",\"\",'[1]FISCAL(M)'!$BT59)","v":"n.d."},{"$f":"IF('[2]MONE(M)'!$AO59=\"\",\"\",'[2]MONE(M)'!$AO59)","v":"n.d."},{"$f":"IF('[3]MONE(M)'!$AO59=\"\",\"\",'[3]MONE(M)'!$AO59)","v":"n.d."},{"$f":"IF('[4]MONE(M)'!$AO59=\"\",\"\",'[4]MONE(M)'!$AO59)","v":"n.d."},{"$f":"+'[5]MONE(M)'!$AO59","v":"n.d."},{"$f":"IF('[6]MONE(M)'!$AO59=\"\",\"\",'[6]MONE(M)'!$AO59)","v":"n.d."},{"$f":"IF('[7]MONE(M)'!$AO59=\"\",\"\",'[7]MONE(M)'!$AO59)","v":"n.d."},{"$f":"IF('[8]MONE(M)'!$AO59=\"\",\"\",'[8]MONE(M)'!$AO59)","v":"n.d."},"n.d.","n.d.","n.d.","n.d.","n.d.","n.d.","n.d.",{"$f":"IF('[1]FISCAL(M)'!$K59=\"\",\"\",'[1]FISCAL(M)'!$K59)","v":"n.d."},"n.d.","n.d.",{"$f":"IF('[1]FISCAL(M)'!$L59=\"\",\"\",'[1]FISCAL(M)'!$L59)","v":"n.d."},"n.d.","n.d.","n.d.","n.d.","n.d.","n.d.","n.d.","n.d.","n.d.","n.d.","n.d.","n.d.","n.d.","n.d.","n.d.","n.d.","n.d.","n.d."]
[1994,"marzo","1994-marzo",{"$f":"IF('[1]REAL IPC(M)'!$AL60=\"\",\"\",+'[1]REAL IPC(M)'!$AL60)","v":10.410565383429947},{"$f":"IF('[1]REAL IPC(M)'!$BE60=\"\",\"\",+'[1]REAL IPC(M)'!$BE60)","v":"n.d."},{"$f":"IF('[1]REAL IPC(M)'!$AM60=\"\",\"\",+'[1]REAL IPC(M)'!$AM60)","v":9.4783636055058018},{"$f":"IF('[1]REAL IPC(M)'!$BI60=\"\",\"\",+'[1]REAL IPC(M)'!$BI60)","v":"n.d."},{"$f":"IF('[1]REAL IMAE(M)'!BJ60=\"\",\"\",'[1]REAL IMAE(M)'!BJ60)","v":"n.d."},{"$f":"IF('[1]REAL IMAE(M)'!BK60=\"\",\"\",'[1]REAL IMAE(M)'!BK60)","v":"n.d."},{"$f":"IF('[1]REAL IMAE(M)'!BN60=\"\",\"\",'[1]REAL IMAE(M)'!BN60)","v":"n.d."},{"$f":"IF('[1]REAL IMAE(M)'!BO60=\"\",\"\",'[1]REAL IMAE(M)'!BO60)","v":"n.d."},{"$f":"IF('[1]EXT RIN(M)'!$K60=\"\",\"\",'[1]EXT RIN(M)'!$K60)","v":"n.d."},"",{"$f":"IF('[1]EXT RIN(M)'!$L60=\"\",\"\",'[1]EXT RIN(M)'!$L60)","v":"n.d."},"",{"$f":"IF('[1]MONE(M)CARD'!EG60=\"\",\"\",'[1]MONE(M)CARD'!EG60)","v":"n.d."},{"$f":"IF('[1]MONE(M)CARD'!EK60=\"\",\"\",'[1]MONE(M)CARD'!EK60)","v":"n.d."},{"$f":"IF('[1]MONE(M)CARD'!EP60=\"\",\"\",'[1]MONE(M)CARD'!EP60)","v":"n.d."},{"$f":"IF('[1]MONE(M)CARD'!ES60=\"\",\"\",'[1]MONE(M)CARD'!ES60)","v":"n.d."},{"$f":"IF('[1]MONE(M)CARD'!EV60=\"\",\"\",'[1]MONE(M)CARD'!EV60)","v":"n.d."},{"$f":"IF('[1]MONE(M)CARD'!EZ60=\"\",\"\",'[1]MONE(M)CARD'!EZ60)","v":"n.d."},{"$f":"IF('[1]MONE(M)CAPARD'!FC60=\"\",\"\",'[1]MONE(M)CAPARD'!FC60)","v":"n.d."},{"$f":"IF('[1]MONE(M)CAPARD'!FG60=\"\",\"\",'[1]MONE(M)CAPARD'!FG60)","v":"n.d."},{"$f":"IF('[1]MONE(M)CAPARD'!FL60=\"\",\"\",'[1]MONE(M)CAPARD'!FL60)","v":"n.d."},{"$f":"IF('[1]MONE(M)CAPARD'!FO60=\"\",\"\",'[1]MONE(M)CAPARD'!FO60)","v":"n.d."},{"$f":"IF('[1]MONE(M)CAPARD'!FR60=\"\",\"\",'[1]MONE(M)CAPARD'!FR60)","v":"n.d."},{"$f":"IF('[1]MONE(M)CAPARD'!FV60=\"\",\"\",'[1]MONE(M)CAPARD'!FV60)","v":"n.d."},{"$f":"IF('[1]MONE(M)CARD'!FV60=\"\",\"\",'[1]MONE(M)CARD'!FV60)","v":""},{"$f":"IF('[1]MONE(M)CARD'!GD60=\"\",\"\",'[1]MONE(M)CARD'!GD60)","v":"n.d."},{"$f":"IF('[1]MONE(M)CARD'!GE60=\"\",\"\",'[1]MONE(M)CARD'!GE60)","v":"n.d."},"n.d.","n.d.","n.d.","n.d.","n.d.","n.d.","n.d.","n.d.",null,"n.d.","n.d.","n.d.","n.d.","n.d.",{"$f":"IF('[1]MONE(M)CAPARD'!GS60=\"\",\"\",'[1]MONE(M)CAPARD'!GS60)","v":"n.d."},{"$f":"IF('[1]MONE(M)CARD'!HA60=\"\",\"\",'[1]MONE(M)CAPARD'!HA60)","v":"n.d."},{"$f":"IF('[1]MONE(M)CAPARD'!HB60=\"\",\"\",'[1]MONE(M)CAPARD'!HB60)","v":"n.d."},"n.d.","n.d.","n.d.","n.d.","n.d.","n.d.","n.d.","n.d.","n.d.","n.d.","n.d.","n.d.","n.d.","n.d.",{"$f":"IF('[1]MONE(M)CAPARD'!AS60=\"\",\"\",'[1]MONE(M)CAPARD'!AS60)","v":"n.d."},{"$f":"IF('[1]MONE(M)CAPARD'!AT60=\"\",\"\",'[1]MONE(M)CAPARD'!AT60)","v":"n.a."},{"$f":"IF('[1]MONE(M)CAPARD'!AU60=\"\",\"\",'[1]MONE(M)CAPARD'!AU60)","v":"n.d."},{"$f":"IF('[1]MONE(M)CAPARD'!AV60=\"\",\"\",'[1]MONE(M)CAPARD'!AV60)","v":"n.d."},{"$f":"IF('[1]MONE(M)CAPARD'!AW60=\"\",\"\",'[1]MONE(M)CAPARD'!AW60)","v":"n.a."},{"$f":"IF('[1]MONE(M)CAPARD'!AX60=\"\",\"\",'[1]MONE(M)CAPARD'!AX60)","v":"n.d."},{"$f":"IF('[1]MONE(M)CAPARD'!AY60=\"\",\"\",'[1]MONE(M)CAPARD'!AY60)","v":"n.a."},{"$f":"IF('[1]FISCAL(M)'!$K60=\"\",\"\",'[1]FISCAL(M)'!$K60)","v":"n.d."},{"$f":"IF('[1]FISCAL(M)'!$L60=\"\",\"\",'[1]FISCAL(M)'!$L60)","v":"n.d."},{"$f":"IF('[1]FISCAL(M)'!$AY60=\"\",\"\",'[1]FISCAL(M)'!$AY60)","v":"n.d."},{"$f":"IF('[1]FISCAL(M)'!$BI60=\"\",\"\",'[1]FISCAL(M)'!$BI60)","v":"n.d."},{"$f":"IF('[1]FISCAL(M)'!$BS60=\"\",\"\",'[1]FISCAL(M)'!$BS60)","v":"n.d."},{"$f":"IF('[1]FISCAL(M)'!$AZ60=\"\",\"\",'[1]FISCAL(M)'!$AZ60)","v":"n.d."},{"$f":"IF('[1]FISCAL(M)'!$BJ60=\"\",\"\",'[1]FISCAL(M)'!$BJ60)","v":"n.d."},{"$f":"IF('[1]FISCAL(M)'!$BT60=\"\",\"\",'[1]FISCAL(M)'!$BT60)","v":"n.d."},{"$f":"IF('[2]MONE(M)'!$AO60=\"\",\"\",'[2]MONE(M)'!$AO60)","v":"n.d."},{"$f":"IF('[3]MONE(M)'!$AO60=\"\",\"\",'[3]MONE(M)'!$AO60)","v":"n.d."},{"$f":"IF('[4]MONE(M)'!$AO60=\"\",\"\",'[4]MONE(M)'!$AO60)","v":"n.d."},{"$f":"+'[5]MONE(M)'!$AO60","v":"n.d."},{"$f":"IF('[6]MONE(M)'!$AO60=\"\",\"\",'[6]MONE(M)'!$AO60)","v":"n.d."},{"$f":"IF('[7]MONE(M)'!$AO60=\"\",\"\",'[7]MONE(M)'!$AO60)","v":"n.d."},{"$f":"IF('[8]MONE(M)'!$AO60=\"\",\"\",'[8]MONE(M)'!$AO60)","v":"n.d."},"n.d.","n.d.","n.d.","n.d.","n.d.","n.d.","n.d.",{"$f":"IF('[1]FISCAL(M)'!$K60=\"\",\"\",'[1]FISCAL(M)'!$K60)","v":"n.d."},"n.d.","n.d.",{"$f":"IF('[1]FISCAL(M)'!$L60=\"\",\"\",'[1]FISCAL(M)'!$L60)","v":"n.d."},"n.d.","n.d.","n.d.","n.d.","n.d.","n.d.","n.d.","n.d.","n.d.","n.d.","n.d.","n.d.","n.d.","n.d.","n.d.","n.d.","n.d.","n.d."]
[1994,"abril","1994-abril",{"$f":"IF('[1]REAL IPC(M)'!$AL61=\"\",\"\",+'[1]REAL IPC(M)'!$AL61)","v":10.926905673971433},{"$f":"IF('[1]REAL IPC(M)'!$BE61=\"\",\"\",+'[1]REAL IPC(M)'!$BE61)","v":"n.d."},{"$f":"IF('[1]REAL IPC(M)'!$AM61=\"\",\"\",+'[1]REAL IPC(M)'!$AM61)","v":9.9624012799833128},{"$f":"IF('[1]REAL IPC(M)'!$BI61=\"\",\"\",+'[1]REAL IPC(M)'!$BI61)","v":"n.d."},{"$f":"IF('[1]REAL IMAE(M)'!BJ61=\"\",\"\",'[1]REAL IMAE(M)'!BJ61)","v":"n.d."},{"$f":"IF('[1]REAL IMAE(M)'!BK61=\"\",\"\",'[1]REAL IMAE(M)'!BK61)","v":"n.d."},{"$f":"IF('[1]REAL IMAE(M)'!BN61=\"\",\"\",'[1]REAL IMAE(M)'!BN61)","v":"n.d."},{"$f":"IF('[1]REAL IMAE(M)'!BO61=\"\",\"\",'[1]REAL IMAE(M)'!BO61)","v":"n.d."},{"$f":"IF('[1]EXT RIN(M)'!$K61=\"\",\"\",'[1]EXT RIN(M)'!$K61)","v":"n.d."},"",{"$f":"IF('[1]EXT RIN(M)'!$L61=\"\",\"\",'[1]EXT RIN(M)'!$L61)","v":"n.d."},"",{"$f":"IF('[1]MONE(M)CARD'!EG61=\"\",\"\",'[1]MONE(M)CARD'!EG61)","v":"n.d."},{"$f":"IF('[1]MONE(M)CARD'!EK61=\"\",\"\",'[1]MONE(M)CARD'!EK61)","v":"n.d."},{"$f":"IF('[1]MONE(M)CARD'!EP61=\"\",\"\",'[1]MONE(M)CARD'!EP61)","v":"n.d."},{"$f":"IF('[1]MONE(M)CARD'!ES61=\"\",\"\",'[1]MONE(M)CARD'!ES61)","v":"n.d."},{"$f":"IF('[1]MONE(M)CARD'!EV61=\"\",\"\",'[1]MONE(M)CARD'!EV61)","v":"n.d."},{"$f":"IF('[1]MONE(M)CARD'!EZ61=\"\",\"\",'[1]MONE(M)CARD'!EZ61)","v":"n.d."},{"$f":"IF('[1]MONE(M)CAPARD'!FC61=\"\",\"\",'[1]MONE(M)CAPARD'!FC61)","v":"n.d."},{"$f":"IF('[1]MONE(M)CAPARD'!FG61=\"\",\"\",'[1]MONE(M)CAPARD'!FG61)","v":"n.d."},{"$f":"IF('[1]MONE(M)CAPARD'!FL61=\"\",\"\",'[1]MONE(M)CAPARD'!FL61)","v":"n.d."},{"$f":"IF('[1]MONE(M)CAPARD'!FO61=\"\",\"\",'[1]MONE(M)CAPARD'!FO61)","v":"n.d."},{"$f":"IF('[1]MONE(M)CAPARD'!FR61=\"\",\"\",'[1]MONE(M)CAPARD'!FR61)","v":"n.d."},{"$f":"IF('[1]MONE(M)CAPARD'!FV61=\"\",\"\",'[1]MONE(M)CAPARD'!FV61)","v":"n.d."},{"$f":"IF('[1]MONE(M)CARD'!FV61=\"\",\"\",'[1]MONE(M)CARD'!FV61)","v":""},{"$f":"IF('[1]MONE(M)CARD'!GD61=\"\",\"\",'[1]MONE(M)CARD'!GD61)","v":"n.d."},{"$f":"IF('[1]MONE(M)CARD'!GE61=\"\",\"\",'[1]MONE(M)CARD'!GE61)","v":"n.d."},"n.d.","n.d.","n.d.","n.d.","n.d.","n.d.","n.d.","n.d.",null,"n.d.","n.d.","n.d.","n.d.","n.d.",{"$f":"IF('[1]MONE(M)CAPARD'!GS61=\"\",\"\",'[1]MONE(M)CAPARD'!GS61)","v":"n.d."},{"$f":"IF('[1]MONE(M)CARD'!HA61=\"\",\"\",'[1]MONE(M)CAPARD'!HA61)","v":"n.d."},{"$f":"IF('[1]MONE(M)CAPARD'!HB61=\"\",\"\",'[1]MONE(M)CAPARD'!HB61)","v":"n.d."},"n.d.","n.d.","n.d.","n.d.","n.d.","n.d.","n.d.","n.d.","n.d.","n.d.","n.d.","n.d.","n.d.","n.d.",{"$f":"IF('[1]MONE(M)CAPARD'!AS61=\"\",\"\",'[1]MONE(M)CAPARD'!AS61)","v":"n.d."},{"$f":"IF('[1]MONE(M)CAPARD'!AT61=\"\",\"\",'[1]MONE(M)CAPARD'!AT61)","v":"n.a."},{"$f":"IF('[1]MONE(M)CAPARD'!AU61=\"\",\"\",'[1]MONE(M)CAPARD'!AU61)","v":"n.d."},{"$f":"IF('[1]MONE(M)CAPARD'!AV61=\"\",\"\",'[1]MONE(M)CAPARD'!AV61)","v":"n.d."},{"$f":"IF('[1]MONE(M)CAPARD'!AW61=\"\",\"\",'[1]MONE(M)CAPARD'!AW61)","v":"n.a."},{"$f":"IF('[1]MONE(M)CAPARD'!AX61=\"\",\"\",'[1]MONE(M)CAPARD'!AX61)","v":"n.d."},{"$f":"IF('[1]MONE(M)CAPARD'!AY61=\"\",\"\",'[1]MONE(M)CAPARD'!AY61)","v":"n.a."},{"$f":"IF('[1]FISCAL(M)'!$K61=\"\",\"\",'[1]FISCAL(M)'!$K61)","v":"n.d."},{"$f":"IF('[1]FISCAL(M)'!$L61=\"\",\"\",'[1]FISCAL(M)'!$L61)","v":"n.d."},{"$f":"IF('[1]FISCAL(M)'!$AY61=\"\",\"\",'[1]FISCAL(M)'!$AY61)","v":"n.d."},{"$f":"IF('[1]FISCAL(M)'!$BI61=\"\",\"\",'[1]FISCAL(M)'!$BI61)","v":"n.d."},{"$f":"IF('[1]FISCAL(M)'!$BS61=\"\",\"\",'[1]FISCAL(M)'!$BS61)","v":"n.d."},{"$f":"IF('[1]FISCAL(M)'!$AZ61=\"\",\"\",'[1]FISCAL(M)'!$AZ61)","v":"n.d."},{"$f":"IF('[1]FISCAL(M)'!$BJ61=\"\",\"\",'[1]FISCAL(M)'!$BJ61)","v":"n.d."},{"$f":"IF('[1]FISCAL(M)'!$BT61=\"\",\"\",'[1]FISCAL(M)'!$BT61)","v":"n.d."},{"$f":"IF('[2]MONE(M)'!$AO61=\"\",\"\",'[2]MONE(M)'!$AO61)","v":"n.d."},{"$f":"IF('[3]MONE(M)'!$AO61=\"\",\"\",'[3]MONE(M)'!$AO61)","v":"n.d."},{"$f":"IF('[4]MONE(M)'!$AO61=\"\",\"\",'[4]MONE(M)'!$AO61)","v":"n.d."},{"$f":"+'[5]MONE(M)'!$AO61","v":"n.d."},{"$f":"IF('[6]MONE(M)'!$AO61=\"\",\"\",'[6]MONE(M)'!$AO61)","v":"n.d."},{"$f":"IF('[7]MONE(M)'!$AO61=\"\",\"\",'[7]MONE(M)'!$AO61)","v":"n.d."},{"$f":"IF('[8]MONE(M)'!$AO61=\"\",\"\",'[8]MONE(M)'!$AO61)","v":"n.d."},"n.d.","n.d.","n.d.","n.d.","n.d.","n.d.","n.d.",{"$f":"IF('[1]FISCAL(M)'!$K61=\"\",\"\",'[1]FISCAL(M)'!$K61)","v":"n.d."},"n.d.","n.d.",{"$f":"IF('[1]FISCAL(M)'!$L61=\"\",\"\",'[1]FISCAL(M)'!$L61)","v":"n.d."},"n.d.","n.d.","n.d.","n.d.","n.d.","n.d.","n.d.","n.d.","n.d.","n.d.","n.d.","n.d.","n.d.","n.d.","n.d.","n.d.","n.d.","n.d."]
[1994,"mayo ","1994-mayo ",{"$f":"IF('[1]REAL IPC(M)'!$AL62=\"\",\"\",+'[1]REAL IPC(M)'!$AL62)","v":11.275668039627075},{"$f":"IF('[1]REAL IPC(M)'!$BE62=\"\",\"\",+'[1]REAL IPC(M)'!$BE62)","v":"n.d."},{"$f":"IF('[1]REAL IPC(M)'!$AM62=\"\",\"\",+'[1]REAL IPC(M)'!$AM62)","v":10.295559909518627},{"$f":"IF('[1]REAL IPC(M)'!$BI62=\"\",\"\",+'[1]REAL IPC(M)'!$BI62)","v":"n.d."},{"$f":"IF('[1]REAL IMAE(M)'!BJ62=\"\",\"\",'[1]REAL IMAE(M)'!BJ62)","v":"n.d."},{"$f":"IF('[1]REAL IMAE(M)'!BK62=\"\",\"\",'[1]REAL IMAE(M)'!BK62)","v":"n.d."},{"$f":"IF('[1]REAL IMAE(M)'!BN62=\"\",\"\",'[1]REAL IMAE(M)'!BN62)","v":"n.d."},{"$f":"IF('[1]REAL IMAE(M)'!BO62=\"\",\"\",'[1]REAL IMAE(M)'!BO62)","v":"n.d."},{"$f":"IF('[1]EXT RIN(M)'!$K62=\"\",\"\",'[1]EXT RIN(M)'!$K62)","v":"n.d."},"",{"$f":"IF('[1]EXT RIN(M)'!$L62=\"\",\"\",'[1]EXT RIN(M)'!$L62)","v":"n.d."},"",{"$f":"IF('[1]MONE(M)CARD'!EG62=\"\",\"\",'[1]MONE(M)CARD'!EG62)","v":"n.d."},{"$f":"IF('[1]MONE(M)CARD'!EK62=\"\",\"\",'[1]MONE(M)CARD'!EK62)","v":"n.d."},{"$f":"IF('[1]MONE(M)CARD'!EP62=\"\",\"\",'[1]MONE(M)CARD'!EP62)","v":"n.d."},{"$f":"IF('[1]MONE(M)CARD'!ES62=\"\",\"\",'[1]MONE(M)CARD'!ES62)","v":"n.d."},{"$f":"IF('[1]MONE(M)CARD'!EV62=\"\",\"\",'[1]MONE(M)CARD'!EV62)","v":"n.d."},{"$f":"IF('[1]MONE(M)CARD'!EZ62=\"\",\"\",'[1]MONE(M)CARD'!EZ62)","v":"n.d."},{"$f":"IF('[1]MONE(M)CAPARD'!FC62=\"\",\"\",'[1]MONE(M)CAPARD'!FC62)","v":"n.d."},{"$f":"IF('[1]MONE(M)CAPARD'!FG62=\"\",\"\",'[1]MONE(M)CAPARD'!FG62)","v":"n.d."},{"$f":"IF('[1]MONE(M)CAPARD'!FL62=\"\",\"\",'[1]MONE(M)CAPARD'!FL62)","v":"n.d."},{"$f":"IF('[1]MONE(M)CAPARD'!FO62=\"\",\"\",'[1]MONE(M)CAPARD'!FO62)","v":"n.d."},{"$f":"IF('[1]MONE(M)CAPARD'!FR62=\"\",\"\",'[1]MONE(M)CAPARD'!FR62)","v":"n.d."},{"$f":"IF('[1]MONE(M)CAPARD'!FV62=\"\",\"\",'[1]MONE(M)CAPARD'!FV62)","v":"n.d."},{"$f":"IF('[1]MONE(M)CARD'!FV62=\"\",\"\",'[1]MONE(M)CARD'!FV62)","v":""},{"$f":"IF('[1]MONE(M)CARD'!GD62=\"\",\"\",'[1]MONE(M)CARD'!GD62)","v":"n.d."},{"$f":"IF('[1]MONE(M)CARD'!GE62=\"\",\"\",'[1]MONE(M)CARD'!GE62)","v":"n.d."},"n.d.","n.d.","n.d.","n.d.","n.d.","n.d.","n.d.","n.d.",null,"n.d.","n.d.","n.d.","n.d.","n.d.",{"$f":"IF('[1]MONE(M)CAPARD'!GS62=\"\",\"\",'[1]MONE(M)CAPARD'!GS62)","v":"n.d."},{"$f":"IF('[1]MONE(M)CARD'!HA62=\"\",\"\",'[1]MONE(M)CAPARD'!HA62)","v":"n.d."},{"$f":"IF('[1]MONE(M)CAPARD'!HB62=\"\",\"\",'[1]MONE(M)CAPARD'!HB62)","v":"n.d."},"n.d.","n.d.","n.d.","n.d.","n.d.","n.d.","n.d.","n.d.","n.d.","n.d.","n.d.","n.d.","n.d.","n.d.",{"$f":"IF('[1]MONE(M)CAPARD'!AS62=\"\",\"\",'[1]MONE(M)CAPARD'!AS62)","v":"n.d."},{"$f":"IF('[1]MONE(M)CAPARD'!AT62=\"\",\"\",'[1]MONE(M)CAPARD'!AT62)","v":"n.a."},{"$f":"IF('[1]MONE(M)CAPARD'!AU62=\"\",\"\",'[1]MONE(M)CAPARD'!AU62)","v":"n.d."},{"$f":"IF('[1]MONE(M)CAPARD'!AV62=\"\",\"\",'[1]MONE(M)CAPARD'!AV62)","v":"n.d."},{"$f":"IF('[1]MONE(M)CAPARD'!AW62=\"\",\"\",'[1]MONE(M)CAPARD'!AW62)","v":"n.a."},{"$f":"IF('[1]MONE(M)CAPARD'!AX62=\"\",\"\",'[1]MONE(M)CAPARD'!AX62)","v":"n.d."},{"$f":"IF('[1]MONE(M)CAPARD'!AY62=\"\",\"\",'[1]MONE(M)CAPARD'!AY62)","v":"n.a."},{"$f":"IF('[1]FISCAL(M)'!$K62=\"\",\"\",'[1]FISCAL(M)'!$K62)","v":"n.d."},{"$f":"IF('[1]FISCAL(M)'!$L62=\"\",\"\",'[1]FISCAL(M)'!$L62)","v":"n.d."},{"$f":"IF('[1]FISCAL(M)'!$AY62=\"\",\"\",'[1]FISCAL(M)'!$AY62)","v":"n.d."},{"$f":"IF('[1]FISCAL(M)'!$BI62=\"\",\"\",'[1]FISCAL(M)'!$BI62)","v":"n.d."},{"$f":"IF('[1]FISCAL(M)'!$BS62=\"\",\"\",'[1]FISCAL(M)'!$BS62)","v":"n.d."},{"$f":"IF('[1]FISCAL(M)'!$AZ62=\"\",\"\",'[1]FISCAL(M)'!$AZ62)","v":"n.d."},{"$f":"IF('[1]FISCAL(M)'!$BJ62=\"\",\"\",'[1]FISCAL(M)'!$BJ62)","v":"n.d."},{"$f":"IF('[1]FISCAL(M)'!$BT62=\"\",\"\",'[1]FISCAL(M)'!$BT62)","v":"n.d."},{"$f":"IF('[2]MONE(M)'!$AO62=\"\",\"\",'[2]MONE(M)'!$AO62)","v":"n.d."},{"$f":"IF('[3]MONE(M)'!$AO62=\"\",\"\",'[3]MONE(M)'!$AO62)","v":"n.d."},{"$f":"IF('[4]MONE(M)'!$AO62=\"\",\"\",'[4]MONE(M)'!$AO62)","v":"n.d."},{"$f":"+'[5]MONE(M)'!$AO62","v":"n.d."},{"$f":"IF('[6]MONE(M)'!$AO62=\"\",\"\",'[6]MONE(M)'!$AO62)","v":"n.d."},{"$f":"IF('[7]MONE(M)'!$AO62=\"\",\"\",'[7]MONE(M)'!$AO62)","v":"n.d."},{"$f":"IF('[8]MONE(M)'!$AO62=\"\",\"\",'[8]MONE(M)'!$AO62)","v":"n.d."},"n.d.","n.d.","n.d.","n.d.","n.d.","n.d.","n.d.",{"$f":"IF('[1]FISCAL(M)'!$K62=\"\",\"\",'[1]FISCAL(M)'!$K62)","v":"n.d."},"n.d.","n.d.",{"$f":"IF('[1]FISCAL(M)'!$L62=\"\",\"\",'[1]FISCAL(M)'!$L62)","v":"n.d."},"n.d.","n.d.","n.d.","n.d.","n.d.","n.d.","n.d.","n.d.","n.d.","n.d.","n.d.","n.d.","n.d.","n.d.","n.d.","n.d.","n.d.","n.d."]
[1994,"junio ","1994-junio ",{"$f":"IF('[1]REAL IPC(M)'!$AL63=\"\",\"\",+'[1]REAL IPC(M)'!$AL63)","v":10.548649892942663},{"$f":"IF('[1]REAL IPC(M)'!$BE63=\"\",\"\",+'[1]REAL IPC(M)'!$BE63)","v":"n.d."},{"$f":"IF('[1]REAL IPC(M)'!$AM63=\"\",\"\",+'[1]REAL IPC(M)'!$AM63)","v":9.630706053181326},{"$f":"IF('[1]REAL IPC(M)'!$BI63=\"\",\"\",+'[1]REAL IPC(M)'!$BI63)","v":"n.d."},{"$f":"IF('[1]REAL IMAE(M)'!BJ63=\"\",\"\",'[1]REAL IMAE(M)'!BJ63)","v":"n.d."},{"$f":"IF('[1]REAL IMAE(M)'!BK63=\"\",\"\",'[1]REAL IMAE(M)'!BK63)","v":"n.d."},{"$f":"IF('[1]REAL IMAE(M)'!BN63=\"\",\"\",'[1]REAL IMAE(M)'!BN63)","v":"n.d."},{"$f":"IF('[1]REAL IMAE(M)'!BO63=\"\",\"\",'[1]REAL IMAE(M)'!BO63)","v":"n.d."},{"$f":"IF('[1]EXT RIN(M)'!$K63=\"\",\"\",'[1]EXT RIN(M)'!$K63)","v":"n.d."},"",{"$f":"IF('[1]EXT RIN(M)'!$L63=\"\",\"\",'[1]EXT RIN(M)'!$L63)","v":"n.d."},"",{"$f":"IF('[1]MONE(M)CARD'!EG63=\"\",\"\",'[1]MONE(M)CARD'!EG63)","v":"n.d."},{"$f":"IF('[1]MONE(M)CARD'!EK63=\"\",\"\",'[1]MONE(M)CARD'!EK63)","v":"n.d."},{"$f":"IF('[1]MONE(M)CARD'!EP63=\"\",\"\",'[1]MONE(M)CARD'!EP63)","v":"n.d."},{"$f":"IF('[1]MONE(M)CARD'!ES63=\"\",\"\",'[1]MONE(M)CARD'!ES63)","v":"n.d."},{"$f":"IF('[1]MONE(M)CARD'!EV63=\"\",\"\",'[1]MONE(M)CARD'!EV63)","v":"n.d."},{"$f":"IF('[1]MONE(M)CARD'!EZ63=\"\",\"\",'[1]MONE(M)CARD'!EZ63)","v":"n.d."},{"$f":"IF('[1]MONE(M)CAPARD'!FC63=\"\",\"\",'[1]MONE(M)CAPARD'!FC63)","v":"n.d."},{"$f":"IF('[1]MONE(M)CAPARD'!FG63=\"\",\"\",'[1]MONE(M)CAPARD'!FG63)","v":"n.d."},{"$f":"IF('[1]MONE(M)CAPARD'!FL63=\"\",\"\",'[1]MONE(M)CAPARD'!FL63)","v":"n.d."},{"$f":"IF('[1]MONE(M)CAPARD'!FO63=\"\",\"\",'[1]MONE(M)CAPARD'!FO63)","v":"n.d."},{"$f":"IF('[1]MONE(M)CAPARD'!FR63=\"\",\"\",'[1]MONE(M)CAPARD'!FR63)","v":"n.d."},{"$f":"IF('[1]MONE(M)CAPARD'!FV63=\"\",\"\",'[1]MONE(M)CAPARD'!FV63)","v":"n.d."},{"$f":"IF('[1]MONE(M)CARD'!FV63=\"\",\"\",'[1]MONE(M)CARD'!FV63)","v":""},{"$f":"IF('[1]MONE(M)CARD'!GD63=\"\",\"\",'[1]MONE(M)CARD'!GD63)","v":"n.d."},{"$f":"IF('[1]MONE(M)CARD'!GE63=\"\",\"\",'[1]MONE(M)CARD'!GE63)","v":"n.d."},"n.d.","n.d.","n.d.","n.d.","n.d.","n.d.","n.d.","n.d.",null,"n.d.","n.d.","n.d.","n.d.","n.d.",{"$f":"IF('[1]MONE(M)CAPARD'!GS63=\"\",\"\",'[1]MONE(M)CAPARD'!GS63)","v":"n.d."},{"$f":"IF('[1]MONE(M)CARD'!HA63=\"\",\"\",'[1]MONE(M)CAPARD'!HA63)","v":"n.d."},{"$f":"IF('[1]MONE(M)CAPARD'!HB63=\"\",\"\",'[1]MONE(M)CAPARD'!HB63)","v":"n.d."},"n.d.","n.d.","n.d.","n.d.","n.d.","n.d.","n.d.","n.d.","n.d.","n.d.","n.d.","n.d.","n.d.","n.d.",{"$f":"IF('[1]MONE(M)CAPARD'!AS63=\"\",\"\",'[1]MONE(M)CAPARD'!AS63)","v":"n.d."},{"$f":"IF('[1]MONE(M)CAPARD'!AT63=\"\",\"\",'[1]MONE(M)CAPARD'!AT63)","v":"n.a."},{"$f":"IF('[1]MONE(M)CAPARD'!AU63=\"\",\"\",'[1]MONE(M)CAPARD'!AU63)","v":"n.d."},{"$f":"IF('[1]MONE(M)CAPARD'!AV63=\"\",\"\",'[1]MONE(M)CAPARD'!AV63)","v":"n.d."},{"$f":"IF('[1]MONE(M)CAPARD'!AW63=\"\",\"\",'[1]MONE(M)CAPARD'!AW63)","v":"n.a."},{"$f":"IF('[1]MONE(M)CAPARD'!AX63=\"\",\"\",'[1]MONE(M)CAPARD'!AX63)","v":"n.d."},{"$f":"IF('[1]MONE(M)CAPARD'!AY63=\"\",\"\",'[1]MONE(M)CAPARD'!AY63)","v":"n.a."},{"$f":"IF('[1]FISCAL(M)'!$K63=\"\",\"\",'[1]FISCAL(M)'!$K63)","v":"n.d."},{"$f":"IF('[1]FISCAL(M)'!$L63=\"\",\"\",'[1]FISCAL(M)'!$L63)","v":"n.d."},{"$f":"IF('[1]FISCAL(M)'!$AY63=\"\",\"\",'[1]FISCAL(M)'!$AY63)","v":"n.d."},{"$f":"IF('[1]FISCAL(M)'!$BI63=\"\",\"\",'[1]FISCAL(M)'!$BI63)","v":"n.d."},{"$f":"IF('[1]FISCAL(M)'!$BS63=\"\",\"\",'[1]FISCAL(M)'!$BS63)","v":"n.d."},{"$f":"IF('[1]FISCAL(M)'!$AZ63=\"\",\"\",'[1]FISCAL(M)'!$AZ63)","v":"n.d."},{"$f":"IF('[1]FISCAL(M)'!$BJ63=\"\",\"\",'[1]FISCAL(M)'!$BJ63)","v":"n.d."},{"$f":"IF('[1]FISCAL(M)'!$BT63=\"\",\"\",'[1]FISCAL(M)'!$BT63)","v":"n.d."},{"$f":"IF('[2]MONE(M)'!$AO63=\"\",\"\",'[2]MONE(M)'!$AO63)","v":"n.d."},{"$f":"IF('[3]MONE(M)'!$AO63=\"\",\"\",'[3]MONE(M)'!$AO63)","v":"n.d."},{"$f":"IF('[4]MONE(M)'!$AO63=\"\",\"\",'[4]MONE(M)'!$AO63)","v":"n.d."},{"$f":"+'[5]MONE(M)'!$AO63","v":"n.d."},{"$f":"IF('[6]MONE(M)'!$AO63=\"\",\"\",'[6]MONE(M)'!$AO63)","v":"n.d."},{"$f":"IF('[7]MONE(M)'!$AO63=\"\",\"\",'[7]MONE(M)'!$AO63)","v":"n.d."},{"$f":"IF('[8]MONE(M)'!$AO63=\"\",\"\",'[8]MONE(M)'!$AO63)","v":"n.d."},"n.d.","n.d.","n.d.","n.d.","n.d.","n.d.","n.d.",{"$f":"IF('[1]FISCAL(M)'!$K63=\"\",\"\",'[1]FISCAL(M)'!$K63)","v":"n.d."},"n.d.","n.d.",{"$f":"IF('[1]FISCAL(M)'!$L63=\"\",\"\",'[1]FISCAL(M)'!$L63)","v":"n.d."},"n.d.","n.d.","n.d.","n.d.","n.d.","n.d.","n.d.","n.d.","n.d.","n.d.","n.d.","n.d.","n.d.","n.d.","n.d.","n.d.","n.d.","n.d."]
[1994,"julio","1994-julio",{"$f":"IF('[1]REAL IPC(M)'!$AL64=\"\",\"\",+'[1]REAL IPC(M)'!$AL64)","v":9.4454981194471941},{"$f":"IF('[1]REAL IPC(M)'!$BE64=\"\",\"\",+'[1]REAL IPC(M)'!$BE64)","v":"n.d."},{"$f":"IF('[1]REAL IPC(M)'!$AM64=\"\",\"\",+'[1]REAL IPC(M)'!$AM64)","v":8.6267088311890561},{"$f":"IF('[1]REAL IPC(M)'!$BI64=\"\",\"\",+'[1]REAL IPC(M)'!$BI64)","v":"n.d."},{"$f":"IF('[1]REAL IMAE(M)'!BJ64=\"\",\"\",'[1]REAL IMAE(M)'!BJ64)","v":"n.d."},{"$f":"IF('[1]REAL IMAE(M)'!BK64=\"\",\"\",'[1]REAL IMAE(M)'!BK64)","v":"n.d."},{"$f":"IF('[1]REAL IMAE(M)'!BN64=\"\",\"\",'[1]REAL IMAE(M)'!BN64)","v":"n.d."},{"$f":"IF('[1]REAL IMAE(M)'!BO64=\"\",\"\",'[1]REAL IMAE(M)'!BO64)","v":"n.d."},{"$f":"IF('[1]EXT RIN(M)'!$K64=\"\",\"\",'[1]EXT RIN(M)'!$K64)","v":"n.d."},"",{"$f":"IF('[1]EXT RIN(M)'!$L64=\"\",\"\",'[1]EXT RIN(M)'!$L64)","v":"n.d."},"",{"$f":"IF('[1]MONE(M)CARD'!EG64=\"\",\"\",'[1]MONE(M)CARD'!EG64)","v":"n.d."},{"$f":"IF('[1]MONE(M)CARD'!EK64=\"\",\"\",'[1]MONE(M)CARD'!EK64)","v":"n.d."},{"$f":"IF('[1]MONE(M)CARD'!EP64=\"\",\"\",'[1]MONE(M)CARD'!EP64)","v":"n.d."},{"$f":"IF('[1]MONE(M)CARD'!ES64=\"\",\"\",'[1]MONE(M)CARD'!ES64)","v":"n.d."},{"$f":"IF('[1]MONE(M)CARD'!EV64=\"\",\"\",'[1]MONE(M)CARD'!EV64)","v":"n.d."},{"$f":"IF('[1]MONE(M)CARD'!EZ64=\"\",\"\",'[1]MONE(M)CARD'!EZ64)","v":"n.d."},{"$f":"IF('[1]MONE(M)CAPARD'!FC64=\"\",\"\",'[1]MONE(M)CAPARD'!FC64)","v":"n.d."},{"$f":"IF('[1]MONE(M)CAPARD'!FG64=\"\",\"\",'[1]MONE(M)CAPARD'!FG64)","v":"n.d."},{"$f":"IF('[1]MONE(M)CAPARD'!FL64=\"\",\"\",'[1]MONE(M)CAPARD'!FL64)","v":"n.d."},{"$f":"IF('[1]MONE(M)CAPARD'!FO64=\"\",\"\",'[1]MONE(M)CAPARD'!FO64)","v":"n.d."},{"$f":"IF('[1]MONE(M)CAPARD'!FR64=\"\",\"\",'[1]MONE(M)CAPARD'!FR64)","v":"n.d."},{"$f":"IF('[1]MONE(M)CAPARD'!FV64=\"\",\"\",'[1]MONE(M)CAPARD'!FV64)","v":"n.d."},{"$f":"IF('[1]MONE(M)CARD'!FV64=\"\",\"\",'[1]MONE(M)CARD'!FV64)","v":""},{"$f":"IF('[1]MONE(M)CARD'!GD64=\"\",\"\",'[1]MONE(M)CARD'!GD64)","v":"n.d."},{"$f":"IF('[1]MONE(M)CARD'!GE64=\"\",\"\",'[1]MONE(M)CARD'!GE64)","v":"n.d."},"n.d.","n.d.","n.d.","n.d.","n.d.","n.d.","n.d.","n.d.",null,"n.d.","n.d.","n.d.","n.d.","n.d.",{"$f":"IF('[1]MONE(M)CAPARD'!GS64=\"\",\"\",'[1]MONE(M)CAPARD'!GS64)","v":"n.d."},{"$f":"IF('[1]MONE(M)CARD'!HA64=\"\",\"\",'[1]MONE(M)CAPARD'!HA64)","v":"n.d."},{"$f":"IF('[1]MONE(M)CAPARD'!HB64=\"\",\"\",'[1]MONE(M)CAPARD'!HB64)","v":"n.d."},"n.d.","n.d.","n.d.","n.d.","n.d.","n.d.","n.d.","n.d.","n.d.","n.d.","n.d.","n.d.","n.d.","n.d.",{"$f":"IF('[1]MONE(M)CAPARD'!AS64=\"\",\"\",'[1]MONE(M)CAPARD'!AS64)","v":"n.d."},{"$f":"IF('[1]MONE(M)CAPARD'!AT64=\"\",\"\",'[1]MONE(M)CAPARD'!AT64)","v":"n.a."},{"$f":"IF('[1]MONE(M)CAPARD'!AU64=\"\",\"\",'[1]MONE(M)CAPARD'!AU64)","v":"n.d."},{"$f":"IF('[1]MONE(M)CAPARD'!AV64=\"\",\"\",'[1]MONE(M)CAPARD'!AV64)","v":"n.d."},{"$f":"IF('[1]MONE(M)CAPARD'!AW64=\"\",\"\",'[1]MONE(M)CAPARD'!AW64)","v":"n.a."},{"$f":"IF('[1]MONE(M)CAPARD'!AX64=\"\",\"\",'[1]MONE(M)CAPARD'!AX64)","v":"n.d."},{"$f":"IF('[1]MONE(M)CAPARD'!AY64=\"\",\"\",'[1]MONE(M)CAPARD'!AY64)","v":"n.a."},{"$f":"IF('[1]FISCAL(M)'!$K64=\"\",\"\",'[1]FISCAL(M)'!$K64)","v":"n.d."},{"$f":"IF('[1]FISCAL(M)'!$L64=\"\",\"\",'[1]FISCAL(M)'!$L64)","v":"n.d."},{"$f":"IF('[1]FISCAL(M)'!$AY64=\"\",\"\",'[1]FISCAL(M)'!$AY64)","v":"n.d."},{"$f":"IF('[1]FISCAL(M)'!$BI64=\"\",\"\",'[1]FISCAL(M)'!$BI64)","v":"n.d."},{"$f":"IF('[1]FISCAL(M)'!$BS64=\"\",\"\",'[1]FISCAL(M)'!$BS64)","v":"n.d."},{"$f":"IF('[1]FISCAL(M)'!$AZ64=\"\",\"\",'[1]FISCAL(M)'!$AZ64)","v":"n.d."},{"$f":"IF('[1]FISCAL(M)'!$BJ64=\"\",\"\",'[1]FISCAL(M)'!$BJ64)","v":"n.d."},{"$f":"IF('[1]FISCAL(M)'!$BT64=\"\",\"\",'[1]FISCAL(M)'!$BT64)","v":"n.d."},{"$f":"IF('[2]MONE(M)'!$AO64=\"\",\"\",'[2]MONE(M)'!$AO64)","v":"n.d."},{"$f":"IF('[3]MONE(M)'!$AO64=\"\",\"\",'[3]MONE(M)'!$AO64)","v":"n.d."},{"$f":"IF('[4]MONE(M)'!$AO64=\"\",\"\",'[4]MONE(M)'!$AO64)","v":"n.d."},{"$f":"+'[5]MONE(M)'!$AO64","v":"n.d."},{"$f":"IF('[6]MONE(M)'!$AO64=\"\",\"\",'[6]MONE(M)'!$AO64)","v":"n.d."},{"$f":"IF('[7]MONE(M)'!$AO64=\"\",\"\",'[7]MONE(M)'!$AO64)","v":"n.d."},{"$f":"IF('[8]MONE(M)'!$AO64=\"\",\"\",'[8]MONE(M)'!$AO64)","v":"n.d."},"n.d.","n.d.","n.d.","n.d.","n.d.","n.d.","n.d.",{"$f":"IF('[1]FISCAL(M)'!$K64=\"\",\"\",'[1]FISCAL(M)'!$K64)","v":"n.d."},"n.d.","n.d.",{"$f":"IF('[1]FISCAL(M)'!$L64=\"\",\"\",'[1]FISCAL(M)'!$L64)","v":"n.d."},"n.d.","n.d.","n.d.","n.d.","n.d.","n.d.","n.d.","n.d.","n.d.","n.d.","n.d.","n.d.","n.d.","n.d.","n.d.","n.d.","n.d.","n.d."]
[1994,"agosto","1994-agosto",{"$f":"IF('[1]REAL IPC(M)'!$AL65=\"\",\"\",+'[1]REAL IPC(M)'!$AL65)","v":10.704081020006084},{"$f":"IF('[1]REAL IPC(M)'!$BE65=\"\",\"\",+'[1]REAL IPC(M)'!$BE65)","v":"n.d."},{"$f":"IF('[1]REAL IPC(M)'!$AM65=\"\",\"\",+'[1]REAL IPC(M)'!$AM65)","v":9.7989536005764766},{"$f":"IF('[1]REAL IPC(M)'!$BI65=\"\",\"\",+'[1]REAL IPC(M)'!$BI65)","v":"n.d."},{"$f":"IF('[1]REAL IMAE(M)'!BJ65=\"\",\"\",'[1]REAL IMAE(M)'!BJ65)","v":"n.d."},{"$f":"IF('[1]REAL IMAE(M)'!BK65=\"\",\"\",'[1]REAL IMAE(M)'!BK65)","v":"n.d."},{"$f":"IF('[1]REAL IMAE(M)'!BN65=\"\",\"\",'[1]REAL IMAE(M)'!BN65)","v":"n.d."},{"$f":"IF('[1]REAL IMAE(M)'!BO65=\"\",\"\",'[1]REAL IMAE(M)'!BO65)","v":"n.d."},{"$f":"IF('[1]EXT RIN(M)'!$K65=\"\",\"\",'[1]EXT RIN(M)'!$K65)","v":"n.d."},"",{"$f":"IF('[1]EXT RIN(M)'!$L65=\"\",\"\",'[1]EXT RIN(M)'!$L65)","v":"n.d."},"",{"$f":"IF('[1]MONE(M)CARD'!EG65=\"\",\"\",'[1]MONE(M)CARD'!EG65)","v":"n.d."},{"$f":"IF('[1]MONE(M)CARD'!EK65=\"\",\"\",'[1]MONE(M)CARD'!EK65)","v":"n.d."},{"$f":"IF('[1]MONE(M)CARD'!EP65=\"\",\"\",'[1]MONE(M)CARD'!EP65)","v":"n.d."},{"$f":"IF('[1]MONE(M)CARD'!ES65=\"\",\"\",'[1]MONE(M)CARD'!ES65)","v":"n.d."},{"$f":"IF('[1]MONE(M)CARD'!EV65=\"\",\"\",'[1]MONE(M)CARD'!EV65)","v":"n.d."},{"$f":"IF('[1]MONE(M)CARD'!EZ65=\"\",\"\",'[1]MONE(M)CARD'!EZ65)","v":"n.d."},{"$f":"IF('[1]MONE(M)CAPARD'!FC65=\"\",\"\",'[1]MONE(M)CAPARD'!FC65)","v":"n.d."},{"$f":"IF('[1]MONE(M)CAPARD'!FG65=\"\",\"\",'[1]MONE(M)CAPARD'!FG65)","v":"n.d."},{"$f":"IF('[1]MONE(M)CAPARD'!FL65=\"\",\"\",'[1]MONE(M)CAPARD'!FL65)","v":"n.d."},{"$f":"IF('[1]MONE(M)CAPARD'!FO65=\"\",\"\",'[1]MONE(M)CAPARD'!FO65)","v":"n.d."},{"$f":"IF('[1]MONE(M)CAPARD'!FR65=\"\",\"\",'[1]MONE(M)CAPARD'!FR65)","v":"n.d."},{"$f":"IF('[1]MONE(M)CAPARD'!FV65=\"\",\"\",'[1]MONE(M)CAPARD'!FV65)","v":"n.d."},{"$f":"IF('[1]MONE(M)CARD'!FV65=\"\",\"\",'[1]MONE(M)CARD'!FV65)","v":""},{"$f":"IF('[1]MONE(M)CARD'!GD65=\"\",\"\",'[1]MONE(M)CARD'!GD65)","v":"n.d."},{"$f":"IF('[1]MONE(M)CARD'!GE65=\"\",\"\",'[1]MONE(M)CARD'!GE65)","v":"n.d."},"n.d.","n.d.","n.d.","n.d.","n.d.","n.d.","n.d.","n.d.",null,"n.d.","n.d.","n.d.","n.d.","n.d.",{"$f":"IF('[1]MONE(M)CAPARD'!GS65=\"\",\"\",'[1]MONE(M)CAPARD'!GS65)","v":"n.d."},{"$f":"IF('[1]MONE(M)CARD'!HA65=\"\",\"\",'[1]MONE(M)CAPARD'!HA65)","v":"n.d."},{"$f":"IF('[1]MONE(M)CAPARD'!HB65=\"\",\"\",'[1]MONE(M)CAPARD'!HB65)","v":"n.d."},"n.d.","n.d.","n.d.","n.d.","n.d.","n.d.","n.d.","n.d.","n.d.","n.d.","n.d.","n.d.","n.d.","n.d.",{"$f":"IF('[1]MONE(M)CAPARD'!AS65=\"\",\"\",'[1]MONE(M)CAPARD'!AS65)","v":"n.d."},{"$f":"IF('[1]MONE(M)CAPARD'!AT65=\"\",\"\",'[1]MONE(M)CAPARD'!AT65)","v":"n.a."},{"$f":"IF('[1]MONE(M)CAPARD'!AU65=\"\",\"\",'[1]MONE(M)CAPARD'!AU65)","v":"n.d."},{"$f":"IF('[1]MONE(M)CAPARD'!AV65=\"\",\"\",'[1]MONE(M)CAPARD'!AV65)","v":"n.d."},{"$f":"IF('[1]MONE(M)CAPARD'!AW65=\"\",\"\",'[1]MONE(M)CAPARD'!AW65)","v":"n.a."},{"$f":"IF('[1]MONE(M)CAPARD'!AX65=\"\",\"\",'[1]MONE(M)CAPARD'!AX65)","v":"n.d."},{"$f":"IF('[1]MONE(M)CAPARD'!AY65=\"\",\"\",'[1]MONE(M)CAPARD'!AY65)","v":"n.a."},{"$f":"IF('[1]FISCAL(M)'!$K65=\"\",\"\",'[1]FISCAL(M)'!$K65)","v":"n.d."},{"$f":"IF('[1]FISCAL(M)'!$L65=\"\",\"\",'[1]FISCAL(M)'!$L65)","v":"n.d."},{"$f":"IF('[1]FISCAL(M)'!$AY65=\"\",\"\",'[1]FISCAL(M)'!$AY65)","v":"n.d."},{"$f":"IF('[1]FISCAL(M)'!$BI65=\"\",\"\",'[1]FISCAL(M)'!$BI65)","v":"n.d."},{"$f":"IF('[1]FISCAL(M)'!$BS65=\"\",\"\",'[1]FISCAL(M)'!$BS65)","v":"n.d."},{"$f":"IF('[1]FISCAL(M)'!$AZ65=\"\",\"\",'[1]FISCAL(M)'!$AZ65)","v":"n.d."},{"$f":"IF('[1]FISCAL(M)'!$BJ65=\"\",\"\",'[1]FISCAL(M)'!$BJ65)","v":"n.d."},{"$f":"IF('[1]FISCAL(M)'!$BT65=\"\",\"\",'[1]FISCAL(M)'!$BT65)","v":"n.d."},{"$f":"IF('[2]MONE(M)'!$AO65=\"\",\"\",'[2]MONE(M)'!$AO65)","v":"n.d."},{"$f":"IF('[3]MONE(M)'!$AO65=\"\",\"\",'[3]MONE(M)'!$AO65)","v":"n.d."},{"$f":"IF('[4]MONE(M)'!$AO65=\"\",\"\",'[4]MONE(M)'!$AO65)","v":"n.d."},{"$f":"+'[5]MONE(M)'!$AO65","v":"n.d."},{"$f":"IF('[6]MONE(M)'!$AO65=\"\",\"\",'[6]MONE(M)'!$AO65)","v":"n.d."},{"$f":"IF('[7]MONE(M)'!$AO65=\"\",\"\",'[7]MONE(M)'!$AO65)","v":"n.d."},{"$f":"IF('[8]MONE(M)'!$AO65=\"\",\"\",'[8]MONE(M)'!$AO65)","v":"n.d."},"n.d.","n.d.","n.d.","n.d.","n.d.","n.d.","n.d.",{"$f":"IF('[1]FISCAL(M)'!$K65=\"\",\"\",'[1]FISCAL(M)'!$K65)","v":"n.d."},"n.d.","n.d.",{"$f":"IF('[1]FISCAL(M)'!$L65=\"\",\"\",'[1]FISCAL(M)'!$L65)","v":"n.d."},"n.d.","n.d.","n.d.","n.d.","n.d.","n.d.","n.d.","n.d.","n.d.","n.d.","n.d.","n.d.","n.d.","n.d.","n.d.","n.d.","n.d.","n.d."]
[1994,"septiembre","1994-septiembre",{"$f":"IF('[1]REAL IPC(M)'!$AL66=\"\",\"\",+'[1]REAL IPC(M)'!$AL66)","v":11.849093617523533},{"$f":"IF('[1]REAL IPC(M)'!$BE66=\"\",\"\",+'[1]REAL IPC(M)'!$BE66)","v":"n.d."},{"$f":"IF('[1]REAL IPC(M)'!$AM66=\"\",\"\",+'[1]REAL IPC(M)'!$AM66)","v":10.859740544541395},{"$f":"IF('[1]REAL IPC(M)'!$BI66=\"\",\"\",+'[1]REAL IPC(M)'!$BI66)","v":"n.d."},{"$f":"IF('[1]REAL IMAE(M)'!BJ66=\"\",\"\",'[1]REAL IMAE(M)'!BJ66)","v":"n.d."},{"$f":"IF('[1]REAL IMAE(M)'!BK66=\"\",\"\",'[1]REAL IMAE(M)'!BK66)","v":"n.d."},{"$f":"IF('[1]REAL IMAE(M)'!BN66=\"\",\"\",'[1]REAL IMAE(M)'!BN66)","v":"n.d."},{"$f":"IF('[1]REAL IMAE(M)'!BO66=\"\",\"\",'[1]REAL IMAE(M)'!BO66)","v":"n.d."},{"$f":"IF('[1]EXT RIN(M)'!$K66=\"\",\"\",'[1]EXT RIN(M)'!$K66)","v":"n.d."},"",{"$f":"IF('[1]EXT RIN(M)'!$L66=\"\",\"\",'[1]EXT RIN(M)'!$L66)","v":"n.d."},"",{"$f":"IF('[1]MONE(M)CARD'!EG66=\"\",\"\",'[1]MONE(M)CARD'!EG66)","v":"n.d."},{"$f":"IF('[1]MONE(M)CARD'!EK66=\"\",\"\",'[1]MONE(M)CARD'!EK66)","v":"n.d."},{"$f":"IF('[1]MONE(M)CARD'!EP66=\"\",\"\",'[1]MONE(M)CARD'!EP66)","v":"n.d."},{"$f":"IF('[1]MONE(M)CARD'!ES66=\"\",\"\",'[1]MONE(M)CARD'!ES66)","v":"n.d."},{"$f":"IF('[1]MONE(M)CARD'!EV66=\"\",\"\",'[1]MONE(M)CARD'!EV66)","v":"n.d."},{"$f":"IF('[1]MONE(M)CARD'!EZ66=\"\",\"\",'[1]MONE(M)CARD'!EZ66)","v":"n.d."},{"$f":"IF('[1]MONE(M)CAPARD'!FC66=\"\",\"\",'[1]MONE(M)CAPARD'!FC66)","v":"n.d."},{"$f":"IF('[1]MONE(M)CAPARD'!FG66=\"\",\"\",'[1]MONE(M)CAPARD'!FG66)","v":"n.d."},{"$f":"IF('[1]MONE(M)CAPARD'!FL66=\"\",\"\",'[1]MONE(M)CAPARD'!FL66)","v":"n.d."},{"$f":"IF('[1]MONE(M)CAPARD'!FO66=\"\",\"\",'[1]MONE(M)CAPARD'!FO66)","v":"n.d."},{"$f":"IF('[1]MONE(M)CAPARD'!FR66=\"\",\"\",'[1]MONE(M)CAPARD'!FR66)","v":"n.d."},{"$f":"IF('[1]MONE(M)CAPARD'!FV66=\"\",\"\",'[1]MONE(M)CAPARD'!FV66)","v":"n.d."},{"$f":"IF('[1]MONE(M)CARD'!FV66=\"\",\"\",'[1]MONE(M)CARD'!FV66)","v":""},{"$f":"IF('[1]MONE(M)CARD'!GD66=\"\",\"\",'[1]MONE(M)CARD'!GD66)","v":"n.d."},{"$f":"IF('[1]MONE(M)CARD'!GE66=\"\",\"\",'[1]MONE(M)CARD'!GE66)","v":"n.d."},"n.d.","n.d.","n.d.","n.d.","n.d.","n.d.","n.d.","n.d.",null,"n.d.","n.d.","n.d.","n.d.","n.d.",{"$f":"IF('[1]MONE(M)CAPARD'!GS66=\"\",\"\",'[1]MONE(M)CAPARD'!GS66)","v":"n.d."},{"$f":"IF('[1]MONE(M)CARD'!HA66=\"\",\"\",'[1]MONE(M)CAPARD'!HA66)","v":"n.d."},{"$f":"IF('[1]MONE(M)CAPARD'!HB66=\"\",\"\",'[1]MONE(M)CAPARD'!HB66)","v":"n.d."},"n.d.","n.d.","n.d.","n.d.","n.d.","n.d.","n.d.","n.d.","n.d.","n.d.","n.d.","n.d.","n.d.","n.d.",{"$f":"IF('[1]MONE(M)CAPARD'!AS66=\"\",\"\",'[1]MONE(M)CAPARD'!AS66)","v":"n.d."},{"$f":"IF('[1]MONE(M)CAPARD'!AT66=\"\",\"\",'[1]MONE(M)CAPARD'!AT66)","v":"n.a."},{"$f":"IF('[1]MONE(M)CAPARD'!AU66=\"\",\"\",'[1]MONE(M)CAPARD'!AU66)","v":"n.d."},{"$f":"IF('[1]MONE(M)CAPARD'!AV66=\"\",\"\",'[1]MONE(M)CAPARD'!AV66)","v":"n.d."},{"$f":"IF('[1]MONE(M)CAPARD'!AW66=\"\",\"\",'[1]MONE(M)CAPARD'!AW66)","v":"n.a."},{"$f":"IF('[1]MONE(M)CAPARD'!AX66=\"\",\"\",'[1]MONE(M)CAPARD'!AX66)","v":"n.d."},{"$f":"IF('[1]MONE(M)CAPARD'!AY66=\"\",\"\",'[1]MONE(M)CAPARD'!AY66)","v":"n.a."},{"$f":"IF('[1]FISCAL(M)'!$K66=\"\",\"\",'[1]FISCAL(M)'!$K66)","v":"n.d."},{"$f":"IF('[1]FISCAL(M)'!$L66=\"\",\"\",'[1]FISCAL(M)'!$L66)","v":"n.d."},{"$f":"IF('[1]FISCAL(M)'!$AY66=\"\",\"\",'[1]FISCAL(M)'!$AY66)","v":"n.d."},{"$f":"IF('[1]FISCAL(M)'!$BI66=\"\",\"\",'[1]FISCAL(M)'!$BI66)","v":"n.d."},{"$f":"IF('[1]FISCAL(M)'!$BS66=\"\",\"\",'[1]FISCAL(M)'!$BS66)","v":"n.d."},{"$f":"IF('[1]FISCAL(M)'!$AZ66=\"\",\"\",'[1]FISCAL(M)'!$AZ66)","v":"n.d."},{"$f":"IF('[1]FISCAL(M)'!$BJ66=\"\",\"\",'[1]FISCAL(M)'!$BJ66)","v":"n.d."},{"$f":"IF('[1]FISCAL(M)'!$BT66=\"\",\"\",'[1]FISCAL(M)'!$BT66)","v":"n.d."},{"$f":"IF('[2]MONE(M)'!$AO66=\"\",\"\",'[2]MONE(M)'!$AO66)","v":"n.d."},{"$f":"IF('[3]MONE(M)'!$AO66=\"\",\"\",'[3]MONE(M)'!$AO66)","v":"n.d."},{"$f":"IF('[4]MONE(M)'!$AO66=\"\",\"\",'[4]MONE(M)'!$AO66)","v":"n.d."},{"$f":"+'[5]MONE(M)'!$AO66","v":"n.d."},{"$f":"IF('[6]MONE(M)'!$AO66=\"\",\"\",'[6]MONE(M)'!$AO66)","v":"n.d."},{"$f":"IF('[7]MONE(M)'!$AO66=\"\",\"\",'[7]MONE(M)'!$AO66)","v":"n.d."},{"$f":"IF('[8]MONE(M)'!$AO66=\"\",\"\",'[8]MONE(M)'!$AO66)","v":"n.d."},"n.d.","n.d.","n.d.","n.d.","n.d.","n.d.","n.d.",{"$f":"IF('[1]FISCAL(M)'!$K66=\"\",\"\",'[1]FISCAL(M)'!$K66)","v":"n.d."},"n.d.","n.d.",{"$f":"IF('[1]FISCAL(M)'!$L66=\"\",\"\",'[1]FISCAL(M)'!$L66)","v":"n.d."},"n.d.","n.d.","n.d.","n.d.","n.d.","n.d.","n.d.","n.d.","n.d.","n.d.","n.d.","n.d.","n.d.","n.d.","n.d.","n.d.","n.d.","n.d."]
[1994,"octubre","1994-octubre",{"$f":"IF('[1]REAL IPC(M)'!$AL67=\"\",\"\",+'[1]REAL IPC(M)'!$AL67)","v":12.42926430762199},{"$f":"IF('[1]REAL IPC(M)'!$BE67=\"\",\"\",+'[1]REAL IPC(M)'!$BE67)","v":"n.d."},{"$f":"IF('[1]REAL IPC(M)'!$AM67=\"\",\"\",+'[1]REAL IPC(M)'!$AM67)","v":11.306586058471479},{"$f":"IF('[1]REAL IPC(M)'!$BI67=\"\",\"\",+'[1]REAL IPC(M)'!$BI67)","v":"n.d."},{"$f":"IF('[1]REAL IMAE(M)'!BJ67=\"\",\"\",'[1]REAL IMAE(M)'!BJ67)","v":"n.d."},{"$f":"IF('[1]REAL IMAE(M)'!BK67=\"\",\"\",'[1]REAL IMAE(M)'!BK67)","v":"n.d."},{"$f":"IF('[1]REAL IMAE(M)'!BN67=\"\",\"\",'[1]REAL IMAE(M)'!BN67)","v":"n.d."},{"$f":"IF('[1]REAL IMAE(M)'!BO67=\"\",\"\",'[1]REAL IMAE(M)'!BO67)","v":"n.d."},{"$f":"IF('[1]EXT RIN(M)'!$K67=\"\",\"\",'[1]EXT RIN(M)'!$K67)","v":"n.d."},"",{"$f":"IF('[1]EXT RIN(M)'!$L67=\"\",\"\",'[1]EXT RIN(M)'!$L67)","v":"n.d."},"",{"$f":"IF('[1]MONE(M)CARD'!EG67=\"\",\"\",'[1]MONE(M)CARD'!EG67)","v":"n.d."},{"$f":"IF('[1]MONE(M)CARD'!EK67=\"\",\"\",'[1]MONE(M)CARD'!EK67)","v":"n.d."},{"$f":"IF('[1]MONE(M)CARD'!EP67=\"\",\"\",'[1]MONE(M)CARD'!EP67)","v":"n.d."},{"$f":"IF('[1]MONE(M)CARD'!ES67=\"\",\"\",'[1]MONE(M)CARD'!ES67)","v":"n.d."},{"$f":"IF('[1]MONE(M)CARD'!EV67=\"\",\"\",'[1]MONE(M)CARD'!EV67)","v":"n.d."},{"$f":"IF('[1]MONE(M)CARD'!EZ67=\"\",\"\",'[1]MONE(M)CARD'!EZ67)","v":"n.d."},{"$f":"IF('[1]MONE(M)CAPARD'!FC67=\"\",\"\",'[1]MONE(M)CAPARD'!FC67)","v":"n.d."},{"$f":"IF('[1]MONE(M)CAPARD'!FG67=\"\",\"\",'[1]MONE(M)CAPARD'!FG67)","v":"n.d."},{"$f":"IF('[1]MONE(M)CAPARD'!FL67=\"\",\"\",'[1]MONE(M)CAPARD'!FL67)","v":"n.d."},{"$f":"IF('[1]MONE(M)CAPARD'!FO67=\"\",\"\",'[1]MONE(M)CAPARD'!FO67)","v":"n.d."},{"$f":"IF('[1]MONE(M)CAPARD'!FR67=\"\",\"\",'[1]MONE(M)CAPARD'!FR67)","v":"n.d."},{"$f":"IF('[1]MONE(M)CAPARD'!FV67=\"\",\"\",'[1]MONE(M)CAPARD'!FV67)","v":"n.d."},{"$f":"IF('[1]MONE(M)CARD'!FV67=\"\",\"\",'[1]MONE(M)CARD'!FV67)","v":""},{"$f":"IF('[1]MONE(M)CARD'!GD67=\"\",\"\",'[1]MONE(M)CARD'!GD67)","v":"n.d."},{"$f":"IF('[1]MONE(M)CARD'!GE67=\"\",\"\",'[1]MONE(M)CARD'!GE67)","v":"n.d."},"n.d.","n.d.","n.d.","n.d.","n.d.","n.d.","n.d.","n.d.",null,"n.d.","n.d.","n.d.","n.d.","n.d.",{"$f":"IF('[1]MONE(M)CAPARD'!GS67=\"\",\"\",'[1]MONE(M)CAPARD'!GS67)","v":"n.d."},{"$f":"IF('[1]MONE(M)CARD'!HA67=\"\",\"\",'[1]MONE(M)CAPARD'!HA67)","v":"n.d."},{"$f":"IF('[1]MONE(M)CAPARD'!HB67=\"\",\"\",'[1]MONE(M)CAPARD'!HB67)","v":"n.d."},"n.d.","n.d.","n.d.","n.d.","n.d.","n.d.","n.d.","n.d.","n.d.","n.d.","n.d.","n.d.","n.d.","n.d.",{"$f":"IF('[1]MONE(M)CAPARD'!AS67=\"\",\"\",'[1]MONE(M)CAPARD'!AS67)","v":"n.d."},{"$f":"IF('[1]MONE(M)CAPARD'!AT67=\"\",\"\",'[1]MONE(M)CAPARD'!AT67)","v":"n.a."},{"$f":"IF('[1]MONE(M)CAPARD'!AU67=\"\",\"\",'[1]MONE(M)CAPARD'!AU67)","v":"n.d."},{"$f":"IF('[1]MONE(M)CAPARD'!AV67=\"\",\"\",'[1]MONE(M)CAPARD'!AV67)","v":"n.d."},{"$f":"IF('[1]MONE(M)CAPARD'!AW67=\"\",\"\",'[1]MONE(M)CAPARD'!AW67)","v":"n.a."},{"$f":"IF('[1]MONE(M)CAPARD'!AX67=\"\",\"\",'[1]MONE(M)CAPARD'!AX67)","v":"n.d."},{"$f":"IF('[1]MONE(M)CAPARD'!AY67=\"\",\"\",'[1]MONE(M)CAPARD'!AY67)","v":"n.a."},{"$f":"IF('[1]FISCAL(M)'!$K67=\"\",\"\",'[1]FISCAL(M)'!$K67)","v":"n.d."},{"$f":"IF('[1]FISCAL(M)'!$L67=\"\",\"\",'[1]FISCAL(M)'!$L67)","v":"n.d."},{"$f":"IF('[1]FISCAL(M)'!$AY67=\"\",\"\",'[1]FISCAL(M)'!$AY67)","v":"n.d."},{"$f":"IF('[1]FISCAL(M)'!$BI67=\"\",\"\",'[1]FISCAL(M)'!$BI67)","v":"n.d."},{"$f":"IF('[1]FISCAL(M)'!$BS67=\"\",\"\",'[1]FISCAL(M)'!$BS67)","v":"n.d."},{"$f":"IF('[1]FISCAL(M)'!$AZ67=\"\",\"\",'[1]FISCAL(M)'!$AZ67)","v":"n.d."},{"$f":"IF('[1]FISCAL(M)'!$BJ67=\"\",\"\",'[1]FISCAL(M)'!$BJ67)","v":"n.d."},{"$f":"IF('[1]FISCAL(M)'!$BT67=\"\",\"\",'[1]FISCAL(M)'!$BT67)","v":"n.d."},{"$f":"IF('[2]MONE(M)'!$AO67=\"\",\"\",'[2]MONE(M)'!$AO67)","v":"n.d."},{"$f":"IF('[3]MONE(M)'!$AO67=\"\",\"\",'[3]MONE(M)'!$AO67)","v":"n.d."},{"$f":"IF('[4]MONE(M)'!$AO67=\"\",\"\",'[4]MONE(M)'!$AO67)","v":"n.d."},{"$f":"+'[5]MONE(M)'!$AO67","v":"n.d."},{"$f":"IF('[6]MONE(M)'!$AO67=\"\",\"\",'[6]MONE(M)'!$AO67)","v":"n.d."},{"$f":"IF('[7]MONE(M)'!$AO67=\"\",\"\",'[7]MONE(M)'!$AO67)","v":"n.d."},{"$f":"IF('[8]MONE(M)'!$AO67=\"\",\"\",'[8]MONE(M)'!$AO67)","v":"n.d."},"n.d.","n.d.","n.d.","n.d.","n.d.","n.d.","n.d.",{"$f":"IF('[1]FISCAL(M)'!$K67=\"\",\"\",'[1]FISCAL(M)'!$K67)","v":"n.d."},"n.d.","n.d.",{"$f":"IF('[1]FISCAL(M)'!$L67=\"\",\"\",'[1]FISCAL(M)'!$L67)","v":"n.d."},"n.d.","n.d.","n.d.","n.d.","n.d.","n.d.","n.d.","n.d.","n.d.","n.d.","n.d.","n.d.","n.d.","n.d.","n.d.","n.d.","n.d.","n.d."]
[1994,"noviembre","1994-noviembre",{"$f":"IF('[1]REAL IPC(M)'!$AL68=\"\",\"\",+'[1]REAL IPC(M)'!$AL68)","v":12.925839564365926},{"$f":"IF('[1]REAL IPC(M)'!$BE68=\"\",\"\",+'[1]REAL IPC(M)'!$BE68)","v":"n.d."},{"$f":"IF('[1]REAL IPC(M)'!$AM68=\"\",\"\",+'[1]REAL IPC(M)'!$AM68)","v":11.791514594099194},{"$f":"IF('[1]REAL IPC(M)'!$BI68=\"\",\"\",+'[1]REAL IPC(M)'!$BI68)","v":"n.d."},{"$f":"IF('[1]REAL IMAE(M)'!BJ68=\"\",\"\",'[1]REAL IMAE(M)'!BJ68)","v":"n.d."},{"$f":"IF('[1]REAL IMAE(M)'!BK68=\"\",\"\",'[1]REAL IMAE(M)'!BK68)","v":"n.d."},{"$f":"IF('[1]REAL IMAE(M)'!BN68=\"\",\"\",'[1]REAL IMAE(M)'!BN68)","v":"n.d."},{"$f":"IF('[1]REAL IMAE(M)'!BO68=\"\",\"\",'[1]REAL IMAE(M)'!BO68)","v":"n.d."},{"$f":"IF('[1]EXT RIN(M)'!$K68=\"\",\"\",'[1]EXT RIN(M)'!$K68)","v":"n.d."},"",{"$f":"IF('[1]EXT RIN(M)'!$L68=\"\",\"\",'[1]EXT RIN(M)'!$L68)","v":"n.d."},"",{"$f":"IF('[1]MONE(M)CARD'!EG68=\"\",\"\",'[1]MONE(M)CARD'!EG68)","v":"n.d."},{"$f":"IF('[1]MONE(M)CARD'!EK68=\"\",\"\",'[1]MONE(M)CARD'!EK68)","v":"n.d."},{"$f":"IF('[1]MONE(M)CARD'!EP68=\"\",\"\",'[1]MONE(M)CARD'!EP68)","v":"n.d."},{"$f":"IF('[1]MONE(M)CARD'!ES68=\"\",\"\",'[1]MONE(M)CARD'!ES68)","v":"n.d."},{"$f":"IF('[1]MONE(M)CARD'!EV68=\"\",\"\",'[1]MONE(M)CARD'!EV68)","v":"n.d."},{"$f":"IF('[1]MONE(M)CARD'!EZ68=\"\",\"\",'[1]MONE(M)CARD'!EZ68)","v":"n.d."},{"$f":"IF('[1]MONE(M)CAPARD'!FC68=\"\",\"\",'[1]MONE(M)CAPARD'!FC68)","v":"n.d."},{"$f":"IF('[1]MONE(M)CAPARD'!FG68=\"\",\"\",'[1]MONE(M)CAPARD'!FG68)","v":"n.d."},{"$f":"IF('[1]MONE(M)CAPARD'!FL68=\"\",\"\",'[1]MONE(M)CAPARD'!FL68)","v":"n.d."},{"$f":"IF('[1]MONE(M)CAPARD'!FO68=\"\",\"\",'[1]MONE(M)CAPARD'!FO68)","v":"n.d."},{"$f":"IF('[1]MONE(M)CAPARD'!FR68=\"\",\"\",'[1]MONE(M)CAPARD'!FR68)","v":"n.d."},{"$f":"IF('[1]MONE(M)CAPARD'!FV68=\"\",\"\",'[1]MONE(M)CAPARD'!FV68)","v":"n.d."},{"$f":"IF('[1]MONE(M)CARD'!FV68=\"\",\"\",'[1]MONE(M)CARD'!FV68)","v":""},{"$f":"IF('[1]MONE(M)CARD'!GD68=\"\",\"\",'[1]MONE(M)CARD'!GD68)","v":"n.d."},{"$f":"IF('[1]MONE(M)CARD'!GE68=\"\",\"\",'[1]MONE(M)CARD'!GE68)","v":"n.d."},"n.d.","n.d.","n.d.","n.d.","n.d.","n.d.","n.d.","n.d.",null,"n.d.","n.d.","n.d.","n.d.","n.d.",{"$f":"IF('[1]MONE(M)CAPARD'!GS68=\"\",\"\",'[1]MONE(M)CAPARD'!GS68)","v":"n.d."},{"$f":"IF('[1]MONE(M)CARD'!HA68=\"\",\"\",'[1]MONE(M)CAPARD'!HA68)","v":"n.d."},{"$f":"IF('[1]MONE(M)CAPARD'!HB68=\"\",\"\",'[1]MONE(M)CAPARD'!HB68)","v":"n.d."},"n.d.","n.d.","n.d.","n.d.","n.d.","n.d.","n.d.","n.d.","n.d.","n.d.","n.d.","n.d.","n.d.","n.d.",{"$f":"IF('[1]MONE(M)CAPARD'!AS68=\"\",\"\",'[1]MONE(M)CAPARD'!AS68)","v":"n.d."},{"$f":"IF('[1]MONE(M)CAPARD'!AT68=\"\",\"\",'[1]MONE(M)CAPARD'!AT68)","v":"n.a."},{"$f":"IF('[1]MONE(M)CAPARD'!AU68=\"\",\"\",'[1]MONE(M)CAPARD'!AU68)","v":"n.d."},{"$f":"IF('[1]MONE(M)CAPARD'!AV68=\"\",\"\",'[1]MONE(M)CAPARD'!AV68)","v":"n.d."},{"$f":"IF('[1]MONE(M)CAPARD'!AW68=\"\",\"\",'[1]MONE(M)CAPARD'!AW68)","v":"n.a."},{"$f":"IF('[1]MONE(M)CAPARD'!AX68=\"\",\"\",'[1]MONE(M)CAPARD'!AX68)","v":"n.d."},{"$f":"IF('[1]MONE(M)CAPARD'!AY68=\"\",\"\",'[1]MONE(M)CAPARD'!AY68)","v":"n.a."},{"$f":"IF('[1]FISCAL(M)'!$K68=\"\",\"\",'[1]FISCAL(M)'!$K68)","v":"n.d."},{"$f":"IF('[1]FISCAL(M)'!$L68=\"\",\"\",'[1]FISCAL(M)'!$L68)","v":"n.d."},{"$f":"IF('[1]FISCAL(M)'!$AY68=\"\",\"\",'[1]FISCAL(M)'!$AY68)","v":"n.d."},{"$f":"IF('[1]FISCAL(M)'!$BI68=\"\",\"\",'[1]FISCAL(M)'!$BI68)","v":"n.d."},{"$f":"IF('[1]FISCAL(M)'!$BS68=\"\",\"\",'[1]FISCAL(M)'!$BS68)","v":"n.d."},{"$f":"IF('[1]FISCAL(M)'!$AZ68=\"\",\"\",'[1]FISCAL(M)'!$AZ68)","v":"n.d."},{"$f":"IF('[1]FISCAL(M)'!$BJ68=\"\",\"\",'[1]FISCAL(M)'!$BJ68)","v":"n.d."},{"$f":"IF('[1]FISCAL(M)'!$BT68=\"\",\"\",'[1]FISCAL(M)'!$BT68)","v":"n.d."},{"$f":"IF('[2]MONE(M)'!$AO68=\"\",\"\",'[2]MONE(M)'!$AO68)","v":"n.d."},{"$f":"IF('[3]MONE(M)'!$AO68=\"\",\"\",'[3]MONE(M)'!$AO68)","v":"n.d."},{"$f":"IF('[4]MONE(M)'!$AO68=\"\",\"\",'[4]MONE(M)'!$AO68)","v":"n.d."},{"$f":"+'[5]MONE(M)'!$AO68","v":"n.d."},{"$f":"IF('[6]MONE(M)'!$AO68=\"\",\"\",'[6]MONE(M)'!$AO68)","v":"n.d."},{"$f":"IF('[7]MONE(M)'!$AO68=\"\",\"\",'[7]MONE(M)'!$AO68)","v":"n.d."},{"$f":"IF('[8]MONE(M)'!$AO68=\"\",\"\",'[8]MONE(M)'!$AO68)","v":"n.d."},"n.d.","n.d.","n.d.","n.d.","n.d.","n.d.","n.d.",{"$f":"IF('[1]FISCAL(M)'!$K68=\"\",\"\",'[1]FISCAL(M)'!$K68)","v":"n.d."},"n.d.","n.d.",{"$f":"IF('[1]FISCAL(M)'!$L68=\"\",\"\",'[1]FISCAL(M)'!$L68)","v":"n.d."},"n.d.","n.d.","n.d.","n.d.","n.d.","n.d.","n.d.","n.d.","n.d.","n.d.","n.d.","n.d.","n.d.","n.d.","n.d.","n.d.","n.d.","n.d."]
[1994,"diciembre","1994-diciembre",{"$f":"IF('[1]REAL IPC(M)'!$AL69=\"\",\"\",+'[1]REAL IPC(M)'!$AL69)","v":13.767371355962844},{"$f":"IF('[1]REAL IPC(M)'!$BE69=\"\",\"\",+'[1]REAL IPC(M)'!$BE69)","v":"n.d."},{"$f":"IF('[1]REAL IPC(M)'!$AM69=\"\",\"\",+'[1]REAL IPC(M)'!$AM69)","v":12.540639055777092},{"$f":"IF('[1]REAL IPC(M)'!$BI69=\"\",\"\",+'[1]REAL IPC(M)'!$BI69)","v":"n.d."},{"$f":"IF('[1]REAL IMAE(M)'!BJ69=\"\",\"\",'[1]REAL IMAE(M)'!BJ69)","v":"n.d."},{"$f":"IF('[1]REAL IMAE(M)'!BK69=\"\",\"\",'[1]REAL IMAE(M)'!BK69)","v":"n.d."},{"$f":"IF('[1]REAL IMAE(M)'!BN69=\"\",\"\",'[1]REAL IMAE(M)'!BN69)","v":"n.d."},{"$f":"IF('[1]REAL IMAE(M)'!BO69=\"\",\"\",'[1]REAL IMAE(M)'!BO69)","v":"n.d."},{"$f":"IF('[1]EXT RIN(M)'!$K69=\"\",\"\",'[1]EXT RIN(M)'!$K69)","v":"n.d."},"n.d.",{"$f":"IF('[1]EXT RIN(M)'!$L69=\"\",\"\",'[1]EXT RIN(M)'!$L69)","v":"n.d."},"n.d.",{"$f":"IF('[1]MONE(M)CARD'!EG69=\"\",\"\",'[1]MONE(M)CARD'!EG69)","v":"n.d."},{"$f":"IF('[1]MONE(M)CARD'!EK69=\"\",\"\",'[1]MONE(M)CARD'!EK69)","v":"n.d."},{"$f":"IF('[1]MONE(M)CARD'!EP69=\"\",\"\",'[1]MONE(M)CARD'!EP69)","v":"n.d."},{"$f":"IF('[1]MONE(M)CARD'!ES69=\"\",\"\",'[1]MONE(M)CARD'!ES69)","v":"n.d."},{"$f":"IF('[1]MONE(M)CARD'!EV69=\"\",\"\",'[1]MONE(M)CARD'!EV69)","v":"n.d."},{"$f":"IF('[1]MONE(M)CARD'!EZ69=\"\",\"\",'[1]MONE(M)CARD'!EZ69)","v":"n.d."},{"$f":"IF('[1]MONE(M)CAPARD'!FC69=\"\",\"\",'[1]MONE(M)CAPARD'!FC69)","v":"n.d."},{"$f":"IF('[1]MONE(M)CAPARD'!FG69=\"\",\"\",'[1]MONE(M)CAPARD'!FG69)","v":"n.d."},{"$f":"IF('[1]MONE(M)CAPARD'!FL69=\"\",\"\",'[1]MONE(M)CAPARD'!FL69)","v":"n.d."},{"$f":"IF('[1]MONE(M)CAPARD'!FO69=\"\",\"\",'[1]MONE(M)CAPARD'!FO69)","v":"n.d."},{"$f":"IF('[1]MONE(M)CAPARD'!FR69=\"\",\"\",'[1]MONE(M)CAPARD'!FR69)","v":"n.d."},{"$f":"IF('[1]MONE(M)CAPARD'!FV69=\"\",\"\",'[1]MONE(M)CAPARD'!FV69)","v":"n.d."},{"$f":"IF('[1]MONE(M)CARD'!FV69=\"\",\"\",'[1]MONE(M)CARD'!FV69)","v":""},{"$f":"IF('[1]MONE(M)CARD'!GD69=\"\",\"\",'[1]MONE(M)CARD'!GD69)","v":"n.d."},{"$f":"IF('[1]MONE(M)CARD'!GE69=\"\",\"\",'[1]MONE(M)CARD'!GE69)","v":"n.d."},"n.d.","n.d.","n.d.","n.d.","n.d.","n.d.","n.d.","n.d.",null,"n.d.","n.d.","n.d.","n.d.","n.d.",{"$f":"IF('[1]MONE(M)CAPARD'!GS69=\"\",\"\",'[1]MONE(M)CAPARD'!GS69)","v":"n.d."},{"$f":"IF('[1]MONE(M)CARD'!HA69=\"\",\"\",'[1]MONE(M)CAPARD'!HA69)","v":"n.d."},{"$f":"IF('[1]MONE(M)CAPARD'!HB69=\"\",\"\",'[1]MONE(M)CAPARD'!HB69)","v":"n.d."},"n.d.","n.d.","n.d.","n.d.","n.d.","n.d.","n.d.","n.d.","n.d.","n.d.","n.d.","n.d.","n.d.","n.d.",{"$f":"IF('[1]MONE(M)CAPARD'!AS69=\"\",\"\",'[1]MONE(M)CAPARD'!AS69)","v":"n.d."},{"$f":"IF('[1]MONE(M)CAPARD'!AT69=\"\",\"\",'[1]MONE(M)CAPARD'!AT69)","v":"n.a."},{"$f":"IF('[1]MONE(M)CAPARD'!AU69=\"\",\"\",'[1]MONE(M)CAPARD'!AU69)","v":"n.d."},{"$f":"IF('[1]MONE(M)CAPARD'!AV69=\"\",\"\",'[1]MONE(M)CAPARD'!AV69)","v":"n.d."},{"$f":"IF('[1]MONE(M)CAPARD'!AW69=\"\",\"\",'[1]MONE(M)CAPARD'!AW69)","v":"n.a."},{"$f":"IF('[1]MONE(M)CAPARD'!AX69=\"\",\"\",'[1]MONE(M)CAPARD'!AX69)","v":"n.d."},{"$f":"IF('[1]MONE(M)CAPARD'!AY69=\"\",\"\",'[1]MONE(M)CAPARD'!AY69)","v":"n.a."},{"$f":"IF('[1]FISCAL(M)'!$K69=\"\",\"\",'[1]FISCAL(M)'!$K69)","v":"n.d."},{"$f":"IF('[1]FISCAL(M)'!$L69=\"\",\"\",'[1]FISCAL(M)'!$L69)","v":"n.d."},{"$f":"IF('[1]FISCAL(M)'!$AY69=\"\",\"\",'[1]FISCAL(M)'!$AY69)","v":"n.d."},{"$f":"IF('[1]FISCAL(M)'!$BI69=\"\",\"\",'[1]FISCAL(M)'!$BI69)","v":"n.d."},{"$f":"IF('[1]FISCAL(M)'!$BS69=\"\",\"\",'[1]FISCAL(M)'!$BS69)","v":"n.d."},{"$f":"IF('[1]FISCAL(M)'!$AZ69=\"\",\"\",'[1]FISCAL(M)'!$AZ69)","v":"n.d."},{"$f":"IF('[1]FISCAL(M)'!$BJ69=\"\",\"\",'[1]FISCAL(M)'!$BJ69)","v":"n.d."},{"$f":"IF('[1]FISCAL(M)'!$BT69=\"\",\"\",'[1]FISCAL(M)'!$BT69)","v":"n.d."},{"$f":"IF('[2]MONE(M)'!$AO69=\"\",\"\",'[2]MONE(M)'!$AO69)","v":"n.d."},{"$f":"IF('[3]MONE(M)'!$AO69=\"\",\"\",'[3]MONE(M)'!$AO69)","v":"n.d."},{"$f":"IF('[4]MONE(M)'!$AO69=\"\",\"\",'[4]MONE(M)'!$AO69)","v":"n.d."},{"$f":"+'[5]MONE(M)'!$AO69","v":"n.d."},{"$f":"IF('[6]MONE(M)'!$AO69=\"\",\"\",'[6]MONE(M)'!$AO69)","v":"n.d."},{"$f":"IF('[7]MONE(M)'!$AO69=\"\",\"\",'[7]MONE(M)'!$AO69)","v":"n.d."},{"$f":"IF('[8]MONE(M)'!$AO69=\"\",\"\",'[8]MONE(M)'!$AO69)","v":"n.d."},"n.d.","n.d.","n.d.","n.d.","n.d.","n.d.","n.d.",{"$f":"IF('[1]FISCAL(M)'!$K69=\"\",\"\",'[1]FISCAL(M)'!$K69)","v":"n.d."},"n.d.","n.d.",{"$f":"IF('[1]FISCAL(M)'!$L69=\"\",\"\",'[1]FISCAL(M)'!$L69)","v":"n.d."},"n.d.","n.d.","n.d.","n.d.","n.d.","n.d.","n.d.","n.d.","n.d.","n.d.","n.d.","n.d.","n.d.","n.d.","n.d.","n.d.","n.d.","n.d."]
[1995,"enero","1995-enero",{"$f":"IF('[1]REAL IPC(M)'!$AL70=\"\",\"\",+'[1]REAL IPC(M)'!$AL70)","v":13.684500335089345},{"$f":"IF('[1]REAL IPC(M)'!$BE70=\"\",\"\",+'[1]REAL IPC(M)'!$BE70)","v":13.960429204766655},{"$f":"IF('[1]REAL IPC(M)'!$AM70=\"\",\"\",+'[1]REAL IPC(M)'!$AM70)","v":12.473287110752086},{"$f":"IF('[1]REAL IPC(M)'!$BI70=\"\",\"\",+'[1]REAL IPC(M)'!$BI70)","v":12.724439454993508},{"$f":"IF('[1]REAL IMAE(M)'!BJ70=\"\",\"\",'[1]REAL IMAE(M)'!BJ70)","v":"n.d."},{"$f":"IF('[1]REAL IMAE(M)'!BK70=\"\",\"\",'[1]REAL IMAE(M)'!BK70)","v":"n.d."},{"$f":"IF('[1]REAL IMAE(M)'!BN70=\"\",\"\",'[1]REAL IMAE(M)'!BN70)","v":"n.d."},{"$f":"IF('[1]REAL IMAE(M)'!BO70=\"\",\"\",'[1]REAL IMAE(M)'!BO70)","v":"n.d."},{"$f":"IF('[1]EXT RIN(M)'!$K70=\"\",\"\",'[1]EXT RIN(M)'!$K70)","v":"n.d."},"",{"$f":"IF('[1]EXT RIN(M)'!$L70=\"\",\"\",'[1]EXT RIN(M)'!$L70)","v":"n.d."},"",{"$f":"IF('[1]MONE(M)CARD'!EG70=\"\",\"\",'[1]MONE(M)CARD'!EG70)","v":"n.d."},{"$f":"IF('[1]MONE(M)CARD'!EK70=\"\",\"\",'[1]MONE(M)CARD'!EK70)","v":"n.d."},{"$f":"IF('[1]MONE(M)CARD'!EP70=\"\",\"\",'[1]MONE(M)CARD'!EP70)","v":"n.d."},{"$f":"IF('[1]MONE(M)CARD'!ES70=\"\",\"\",'[1]MONE(M)CARD'!ES70)","v":"n.d."},{"$f":"IF('[1]MONE(M)CARD'!EV70=\"\",\"\",'[1]MONE(M)CARD'!EV70)","v":"n.d."},{"$f":"IF('[1]MONE(M)CARD'!EZ70=\"\",\"\",'[1]MONE(M)CARD'!EZ70)","v":"n.d."},{"$f":"IF('[1]MONE(M)CAPARD'!FC70=\"\",\"\",'[1]MONE(M)CAPARD'!FC70)","v":"n.d."},{"$f":"IF('[1]MONE(M)CAPARD'!FG70=\"\",\"\",'[1]MONE(M)CAPARD'!FG70)","v":"n.d."},{"$f":"IF('[1]MONE(M)CAPARD'!FL70=\"\",\"\",'[1]MONE(M)CAPARD'!FL70)","v":"n.d."},{"$f":"IF('[1]MONE(M)CAPARD'!FO70=\"\",\"\",'[1]MONE(M)CAPARD'!FO70)","v":"n.d."},{"$f":"IF('[1]MONE(M)CAPARD'!FR70=\"\",\"\",'[1]MONE(M)CAPARD'!FR70)","v":"n.d."},{"$f":"IF('[1]MONE(M)CAPARD'!FV70=\"\",\"\",'[1]MONE(M)CAPARD'!FV70)","v":"n.d."},{"$f":"IF('[1]MONE(M)CARD'!FV70=\"\",\"\",'[1]MONE(M)CARD'!FV70)","v":""},{"$f":"IF('[1]MONE(M)CARD'!GD70=\"\",\"\",'[1]MONE(M)CARD'!GD70)","v":"n.d."},{"$f":"IF('[1]MONE(M)CARD'!GE70=\"\",\"\",'[1]MONE(M)CARD'!GE70)","v":"n.d."},"n.d.","n.d.","n.d.","n.d.","n.d.","n.d.","n.d.","n.d.",null,"n.d.","n.d.","n.d.","n.d.","n.d.",{"$f":"IF('[1]MONE(M)CAPARD'!GS70=\"\",\"\",'[1]MONE(M)CAPARD'!GS70)","v":"n.d."},{"$f":"IF('[1]MONE(M)CARD'!HA70=\"\",\"\",'[1]MONE(M)CAPARD'!HA70)","v":"n.d."},{"$f":"IF('[1]MONE(M)CAPARD'!HB70=\"\",\"\",'[1]MONE(M)CAPARD'!HB70)","v":"n.d."},"n.d.","n.d.","n.d.","n.d.","n.d.","n.d.","n.d.","n.d.","n.d.","n.d.","n.d.","n.d.","n.d.","n.d.",{"$f":"IF('[1]MONE(M)CAPARD'!AS70=\"\",\"\",'[1]MONE(M)CAPARD'!AS70)","v":"n.d."},{"$f":"IF('[1]MONE(M)CAPARD'!AT70=\"\",\"\",'[1]MONE(M)CAPARD'!AT70)","v":"n.a."},{"$f":"IF('[1]MONE(M)CAPARD'!AU70=\"\",\"\",'[1]MONE(M)CAPARD'!AU70)","v":"n.d."},{"$f":"IF('[1]MONE(M)CAPARD'!AV70=\"\",\"\",'[1]MONE(M)CAPARD'!AV70)","v":"n.d."},{"$f":"IF('[1]MONE(M)CAPARD'!AW70=\"\",\"\",'[1]MONE(M)CAPARD'!AW70)","v":"n.a."},{"$f":"IF('[1]MONE(M)CAPARD'!AX70=\"\",\"\",'[1]MONE(M)CAPARD'!AX70)","v":"n.d."},{"$f":"IF('[1]MONE(M)CAPARD'!AY70=\"\",\"\",'[1]MONE(M)CAPARD'!AY70)","v":"n.a."},{"$f":"IF('[1]FISCAL(M)'!$K70=\"\",\"\",'[1]FISCAL(M)'!$K70)","v":"n.d."},{"$f":"IF('[1]FISCAL(M)'!$L70=\"\",\"\",'[1]FISCAL(M)'!$L70)","v":"n.d."},{"$f":"IF('[1]FISCAL(M)'!$AY70=\"\",\"\",'[1]FISCAL(M)'!$AY70)","v":"n.d."},{"$f":"IF('[1]FISCAL(M)'!$BI70=\"\",\"\",'[1]FISCAL(M)'!$BI70)","v":"n.d."},{"$f":"IF('[1]FISCAL(M)'!$BS70=\"\",\"\",'[1]FISCAL(M)'!$BS70)","v":"n.d."},{"$f":"IF('[1]FISCAL(M)'!$AZ70=\"\",\"\",'[1]FISCAL(M)'!$AZ70)","v":"n.d."},{"$f":"IF('[1]FISCAL(M)'!$BJ70=\"\",\"\",'[1]FISCAL(M)'!$BJ70)","v":"n.d."},{"$f":"IF('[1]FISCAL(M)'!$BT70=\"\",\"\",'[1]FISCAL(M)'!$BT70)","v":"n.d."},{"$f":"IF('[2]MONE(M)'!$AO70=\"\",\"\",'[2]MONE(M)'!$AO70)","v":"n.d."},{"$f":"IF('[3]MONE(M)'!$AO70=\"\",\"\",'[3]MONE(M)'!$AO70)","v":"n.d."},{"$f":"IF('[4]MONE(M)'!$AO70=\"\",\"\",'[4]MONE(M)'!$AO70)","v":"n.d."},{"$f":"+'[5]MONE(M)'!$AO70","v":"n.d."},{"$f":"IF('[6]MONE(M)'!$AO70=\"\",\"\",'[6]MONE(M)'!$AO70)","v":"n.d."},{"$f":"IF('[7]MONE(M)'!$AO70=\"\",\"\",'[7]MONE(M)'!$AO70)","v":"n.d."},{"$f":"IF('[8]MONE(M)'!$AO70=\"\",\"\",'[8]MONE(M)'!$AO70)","v":"n.d."},"n.d.","n.d.","n.d.","n.d.","n.d.","n.d.","n.d.",{"$f":"IF('[1]FISCAL(M)'!$K70=\"\",\"\",'[1]FISCAL(M)'!$K70)","v":"n.d."},"n.d.","n.d.",{"$f":"IF('[1]FISCAL(M)'!$L70=\"\",\"\",'[1]FISCAL(M)'!$L70)","v":"n.d."},"n.d.","n.d.","n.d.","n.d.","n.d.","n.d.","n.d.","n.d.","n.d.","n.d.","n.d.","n.d.","n.d.","n.d.","n.d.","n.d.","n.d.","n.d."]
[1995,"febrero","1995-febrero",{"$f":"IF('[1]REAL IPC(M)'!$AL71=\"\",\"\",+'[1]REAL IPC(M)'!$AL71)","v":14.046551732031688},{"$f":"IF('[1]REAL IPC(M)'!$BE71=\"\",\"\",+'[1]REAL IPC(M)'!$BE71)","v":13.792199855810772},{"$f":"IF('[1]REAL IPC(M)'!$AM71=\"\",\"\",+'[1]REAL IPC(M)'!$AM71)","v":12.810174021255261},{"$f":"IF('[1]REAL IPC(M)'!$BI71=\"\",\"\",+'[1]REAL IPC(M)'!$BI71)","v":12.583540773822843},{"$f":"IF('[1]REAL IMAE(M)'!BJ71=\"\",\"\",'[1]REAL IMAE(M)'!BJ71)","v":"n.d."},{"$f":"IF('[1]REAL IMAE(M)'!BK71=\"\",\"\",'[1]REAL IMAE(M)'!BK71)","v":"n.d."},{"$f":"IF('[1]REAL IMAE(M)'!BN71=\"\",\"\",'[1]REAL IMAE(M)'!BN71)","v":"n.d."},{"$f":"IF('[1]REAL IMAE(M)'!BO71=\"\",\"\",'[1]REAL IMAE(M)'!BO71)","v":"n.d."},{"$f":"IF('[1]EXT RIN(M)'!$K71=\"\",\"\",'[1]EXT RIN(M)'!$K71)","v":"n.d."},"",{"$f":"IF('[1]EXT RIN(M)'!$L71=\"\",\"\",'[1]EXT RIN(M)'!$L71)","v":"n.d."},"",{"$f":"IF('[1]MONE(M)CARD'!EG71=\"\",\"\",'[1]MONE(M)CARD'!EG71)","v":"n.d."},{"$f":"IF('[1]MONE(M)CARD'!EK71=\"\",\"\",'[1]MONE(M)CARD'!EK71)","v":"n.d."},{"$f":"IF('[1]MONE(M)CARD'!EP71=\"\",\"\",'[1]MONE(M)CARD'!EP71)","v":"n.d."},{"$f":"IF('[1]MONE(M)CARD'!ES71=\"\",\"\",'[1]MONE(M)CARD'!ES71)","v":"n.d."},{"$f":"IF('[1]MONE(M)CARD'!EV71=\"\",\"\",'[1]MONE(M)CARD'!EV71)","v":"n.d."},{"$f":"IF('[1]MONE(M)CARD'!EZ71=\"\",\"\",'[1]MONE(M)CARD'!EZ71)","v":"n.d."},{"$f":"IF('[1]MONE(M)CAPARD'!FC71=\"\",\"\",'[1]MONE(M)CAPARD'!FC71)","v":"n.d."},{"$f":"IF('[1]MONE(M)CAPARD'!FG71=\"\",\"\",'[1]MONE(M)CAPARD'!FG71)","v":"n.d."},{"$f":"IF('[1]MONE(M)CAPARD'!FL71=\"\",\"\",'[1]MONE(M)CAPARD'!FL71)","v":"n.d."},{"$f":"IF('[1]MONE(M)CAPARD'!FO71=\"\",\"\",'[1]MONE(M)CAPARD'!FO71)","v":"n.d."},{"$f":"IF('[1]MONE(M)CAPARD'!FR71=\"\",\"\",'[1]MONE(M)CAPARD'!FR71)","v":"n.d."},{"$f":"IF('[1]MONE(M)CAPARD'!FV71=\"\",\"\",'[1]MONE(M)CAPARD'!FV71)","v":"n.d."},{"$f":"IF('[1]MONE(M)CARD'!FV71=\"\",\"\",'[1]MONE(M)CARD'!FV71)","v":""},{"$f":"IF('[1]MONE(M)CARD'!GD71=\"\",\"\",'[1]MONE(M)CARD'!GD71)","v":"n.d."},{"$f":"IF('[1]MONE(M)CARD'!GE71=\"\",\"\",'[1]MONE(M)CARD'!GE71)","v":"n.d."},"n.d.","n.d.","n.d.","n.d.","n.d.","n.d.","n.d.","n.d.",null,"n.d.","n.d.","n.d.","n.d.","n.d.",{"$f":"IF('[1]MONE(M)CAPARD'!GS71=\"\",\"\",'[1]MONE(M)CAPARD'!GS71)","v":"n.d."},{"$f":"IF('[1]MONE(M)CARD'!HA71=\"\",\"\",'[1]MONE(M)CAPARD'!HA71)","v":"n.d."},{"$f":"IF('[1]MONE(M)CAPARD'!HB71=\"\",\"\",'[1]MONE(M)CAPARD'!HB71)","v":"n.d."},"n.d.","n.d.","n.d.","n.d.","n.d.","n.d.","n.d.","n.d.","n.d.","n.d.","n.d.","n.d.","n.d.","n.d.",{"$f":"IF('[1]MONE(M)CAPARD'!AS71=\"\",\"\",'[1]MONE(M)CAPARD'!AS71)","v":"n.d."},{"$f":"IF('[1]MONE(M)CAPARD'!AT71=\"\",\"\",'[1]MONE(M)CAPARD'!AT71)","v":"n.a."},{"$f":"IF('[1]MONE(M)CAPARD'!AU71=\"\",\"\",'[1]MONE(M)CAPARD'!AU71)","v":"n.d."},{"$f":"IF('[1]MONE(M)CAPARD'!AV71=\"\",\"\",'[1]MONE(M)CAPARD'!AV71)","v":"n.d."},{"$f":"IF('[1]MONE(M)CAPARD'!AW71=\"\",\"\",'[1]MONE(M)CAPARD'!AW71)","v":"n.a."},{"$f":"IF('[1]MONE(M)CAPARD'!AX71=\"\",\"\",'[1]MONE(M)CAPARD'!AX71)","v":"n.d."},{"$f":"IF('[1]MONE(M)CAPARD'!AY71=\"\",\"\",'[1]MONE(M)CAPARD'!AY71)","v":"n.a."},{"$f":"IF('[1]FISCAL(M)'!$K71=\"\",\"\",'[1]FISCAL(M)'!$K71)","v":"n.d."},{"$f":"IF('[1]FISCAL(M)'!$L71=\"\",\"\",'[1]FISCAL(M)'!$L71)","v":"n.d."},{"$f":"IF('[1]FISCAL(M)'!$AY71=\"\",\"\",'[1]FISCAL(M)'!$AY71)","v":"n.d."},{"$f":"IF('[1]FISCAL(M)'!$BI71=\"\",\"\",'[1]FISCAL(M)'!$BI71)","v":"n.d."},{"$f":"IF('[1]FISCAL(M)'!$BS71=\"\",\"\",'[1]FISCAL(M)'!$BS71)","v":"n.d."},{"$f":"IF('[1]FISCAL(M)'!$AZ71=\"\",\"\",'[1]FISCAL(M)'!$AZ71)","v":"n.d."},{"$f":"IF('[1]FISCAL(M)'!$BJ71=\"\",\"\",'[1]FISCAL(M)'!$BJ71)","v":"n.d."},{"$f":"IF('[1]FISCAL(M)'!$BT71=\"\",\"\",'[1]FISCAL(M)'!$BT71)","v":"n.d."},{"$f":"IF('[2]MONE(M)'!$AO71=\"\",\"\",'[2]MONE(M)'!$AO71)","v":"n.d."},{"$f":"IF('[3]MONE(M)'!$AO71=\"\",\"\",'[3]MONE(M)'!$AO71)","v":"n.d."},{"$f":"IF('[4]MONE(M)'!$AO71=\"\",\"\",'[4]MONE(M)'!$AO71)","v":"n.d."},{"$f":"+'[5]MONE(M)'!$AO71","v":"n.d."},{"$f":"IF('[6]MONE(M)'!$AO71=\"\",\"\",'[6]MONE(M)'!$AO71)","v":"n.d."},{"$f":"IF('[7]MONE(M)'!$AO71=\"\",\"\",'[7]MONE(M)'!$AO71)","v":"n.d."},{"$f":"IF('[8]MONE(M)'!$AO71=\"\",\"\",'[8]MONE(M)'!$AO71)","v":"n.d."},"n.d.","n.d.","n.d.","n.d.","n.d.","n.d.","n.d.",{"$f":"IF('[1]FISCAL(M)'!$K71=\"\",\"\",'[1]FISCAL(M)'!$K71)","v":"n.d."},"n.d.","n.d.",{"$f":"IF('[1]FISCAL(M)'!$L71=\"\",\"\",'[1]FISCAL(M)'!$L71)","v":"n.d."},"n.d.","n.d.","n.d.","n.d.","n.d.","n.d.","n.d.","n.d.","n.d.","n.d.","n.d.","n.d.","n.d.","n.d.","n.d.","n.d.","n.d.","n.d."]
[1995,"marzo","1995-marzo",{"$f":"IF('[1]REAL IPC(M)'!$AL72=\"\",\"\",+'[1]REAL IPC(M)'!$AL72)","v":13.928505471960474},{"$f":"IF('[1]REAL IPC(M)'!$BE72=\"\",\"\",+'[1]REAL IPC(M)'!$BE72)","v":13.625623047863055},{"$f":"IF('[1]REAL IPC(M)'!$AM72=\"\",\"\",+'[1]REAL IPC(M)'!$AM72)","v":12.721024720502051},{"$f":"IF('[1]REAL IPC(M)'!$BI72=\"\",\"\",+'[1]REAL IPC(M)'!$BI72)","v":12.443482641050863},{"$f":"IF('[1]REAL IMAE(M)'!BJ72=\"\",\"\",'[1]REAL IMAE(M)'!BJ72)","v":"n.d."},{"$f":"IF('[1]REAL IMAE(M)'!BK72=\"\",\"\",'[1]REAL IMAE(M)'!BK72)","v":"n.d."},{"$f":"IF('[1]REAL IMAE(M)'!BN72=\"\",\"\",'[1]REAL IMAE(M)'!BN72)","v":"n.d."},{"$f":"IF('[1]REAL IMAE(M)'!BO72=\"\",\"\",'[1]REAL IMAE(M)'!BO72)","v":"n.d."},{"$f":"IF('[1]EXT RIN(M)'!$K72=\"\",\"\",'[1]EXT RIN(M)'!$K72)","v":"n.d."},"",{"$f":"IF('[1]EXT RIN(M)'!$L72=\"\",\"\",'[1]EXT RIN(M)'!$L72)","v":"n.d."},"",{"$f":"IF('[1]MONE(M)CARD'!EG72=\"\",\"\",'[1]MONE(M)CARD'!EG72)","v":"n.d."},{"$f":"IF('[1]MONE(M)CARD'!EK72=\"\",\"\",'[1]MONE(M)CARD'!EK72)","v":"n.d."},{"$f":"IF('[1]MONE(M)CARD'!EP72=\"\",\"\",'[1]MONE(M)CARD'!EP72)","v":"n.d."},{"$f":"IF('[1]MONE(M)CARD'!ES72=\"\",\"\",'[1]MONE(M)CARD'!ES72)","v":"n.d."},{"$f":"IF('[1]MONE(M)CARD'!EV72=\"\",\"\",'[1]MONE(M)CARD'!EV72)","v":"n.d."},{"$f":"IF('[1]MONE(M)CARD'!EZ72=\"\",\"\",'[1]MONE(M)CARD'!EZ72)","v":"n.d."},{"$f":"IF('[1]MONE(M)CAPARD'!FC72=\"\",\"\",'[1]MONE(M)CAPARD'!FC72)","v":"n.d."},{"$f":"IF('[1]MONE(M)CAPARD'!FG72=\"\",\"\",'[1]MONE(M)CAPARD'!FG72)","v":"n.d."},{"$f":"IF('[1]MONE(M)CAPARD'!FL72=\"\",\"\",'[1]MONE(M)CAPARD'!FL72)","v":"n.d."},{"$f":"IF('[1]MONE(M)CAPARD'!FO72=\"\",\"\",'[1]MONE(M)CAPARD'!FO72)","v":"n.d."},{"$f":"IF('[1]MONE(M)CAPARD'!FR72=\"\",\"\",'[1]MONE(M)CAPARD'!FR72)","v":"n.d."},{"$f":"IF('[1]MONE(M)CAPARD'!FV72=\"\",\"\",'[1]MONE(M)CAPARD'!FV72)","v":"n.d."},{"$f":"IF('[1]MONE(M)CARD'!FV72=\"\",\"\",'[1]MONE(M)CARD'!FV72)","v":""},{"$f":"IF('[1]MONE(M)CARD'!GD72=\"\",\"\",'[1]MONE(M)CARD'!GD72)","v":"n.d."},{"$f":"IF('[1]MONE(M)CARD'!GE72=\"\",\"\",'[1]MONE(M)CARD'!GE72)","v":"n.d."},"n.d.","n.d.","n.d.","n.d.","n.d.","n.d.","n.d.","n.d.",null,"n.d.","n.d.","n.d.","n.d.","n.d.",{"$f":"IF('[1]MONE(M)CAPARD'!GS72=\"\",\"\",'[1]MONE(M)CAPARD'!GS72)","v":"n.d."},{"$f":"IF('[1]MONE(M)CARD'!HA72=\"\",\"\",'[1]MONE(M)CAPARD'!HA72)","v":"n.d."},{"$f":"IF('[1]MONE(M)CAPARD'!HB72=\"\",\"\",'[1]MONE(M)CAPARD'!HB72)","v":"n.d."},"n.d.","n.d.","n.d.","n.d.","n.d.","n.d.","n.d.","n.d.","n.d.","n.d.","n.d.","n.d.","n.d.","n.d.",{"$f":"IF('[1]MONE(M)CAPARD'!AS72=\"\",\"\",'[1]MONE(M)CAPARD'!AS72)","v":"n.d."},{"$f":"IF('[1]MONE(M)CAPARD'!AT72=\"\",\"\",'[1]MONE(M)CAPARD'!AT72)","v":"n.a."},{"$f":"IF('[1]MONE(M)CAPARD'!AU72=\"\",\"\",'[1]MONE(M)CAPARD'!AU72)","v":"n.d."},{"$f":"IF('[1]MONE(M)CAPARD'!AV72=\"\",\"\",'[1]MONE(M)CAPARD'!AV72)","v":"n.d."},{"$f":"IF('[1]MONE(M)CAPARD'!AW72=\"\",\"\",'[1]MONE(M)CAPARD'!AW72)","v":"n.a."},{"$f":"IF('[1]MONE(M)CAPARD'!AX72=\"\",\"\",'[1]MONE(M)CAPARD'!AX72)","v":"n.d."},{"$f":"IF('[1]MONE(M)CAPARD'!AY72=\"\",\"\",'[1]MONE(M)CAPARD'!AY72)","v":"n.a."},{"$f":"IF('[1]FISCAL(M)'!$K72=\"\",\"\",'[1]FISCAL(M)'!$K72)","v":"n.d."},{"$f":"IF('[1]FISCAL(M)'!$L72=\"\",\"\",'[1]FISCAL(M)'!$L72)","v":"n.d."},{"$f":"IF('[1]FISCAL(M)'!$AY72=\"\",\"\",'[1]FISCAL(M)'!$AY72)","v":"n.d."},{"$f":"IF('[1]FISCAL(M)'!$BI72=\"\",\"\",'[1]FISCAL(M)'!$BI72)","v":"n.d."},{"$f":"IF('[1]FISCAL(M)'!$BS72=\"\",\"\",'[1]FISCAL(M)'!$BS72)","v":"n.d."},{"$f":"IF('[1]FISCAL(M)'!$AZ72=\"\",\"\",'[1]FISCAL(M)'!$AZ72)","v":"n.d."},{"$f":"IF('[1]FISCAL(M)'!$BJ72=\"\",\"\",'[1]FISCAL(M)'!$BJ72)","v":"n.d."},{"$f":"IF('[1]FISCAL(M)'!$BT72=\"\",\"\",'[1]FISCAL(M)'!$BT72)","v":"n.d."},{"$f":"IF('[2]MONE(M)'!$AO72=\"\",\"\",'[2]MONE(M)'!$AO72)","v":"n.d."},{"$f":"IF('[3]MONE(M)'!$AO72=\"\",\"\",'[3]MONE(M)'!$AO72)","v":"n.d."},{"$f":"IF('[4]MONE(M)'!$AO72=\"\",\"\",'[4]MONE(M)'!$AO72)","v":"n.d."},{"$f":"+'[5]MONE(M)'!$AO72","v":"n.d."},{"$f":"IF('[6]MONE(M)'!$AO72=\"\",\"\",'[6]MONE(M)'!$AO72)","v":"n.d."},{"$f":"IF('[7]MONE(M)'!$AO72=\"\",\"\",'[7]MONE(M)'!$AO72)","v":"n.d."},{"$f":"IF('[8]MONE(M)'!$AO72=\"\",\"\",'[8]MONE(M)'!$AO72)","v":"n.d."},"n.d.","n.d.","n.d.","n.d.","n.d.","n.d.","n.d.",{"$f":"IF('[1]FISCAL(M)'!$K72=\"\",\"\",'[1]FISCAL(M)'!$K72)","v":"n.d."},"n.d.","n.d.",{"$f":"IF('[1]FISCAL(M)'!$L72=\"\",\"\",'[1]FISCAL(M)'!$L72)","v":"n.d."},"n.d.","n.d.","n.d.","n.d.","n.d.","n.d.","n.d.","n.d.","n.d.","n.d.","n.d.","n.d.","n.d.","n.d.","n.d.","n.d.","n.d.","n.d."]
[1995,"abril","1995-abril",{"$f":"IF('[1]REAL IPC(M)'!$AL73=\"\",\"\",+'[1]REAL IPC(M)'!$AL73)","v":13.269532087702562},{"$f":"IF('[1]REAL IPC(M)'!$BE73=\"\",\"\",+'[1]REAL IPC(M)'!$BE73)","v":13.460344377224498},{"$f":"IF('[1]REAL IPC(M)'!$AM73=\"\",\"\",+'[1]REAL IPC(M)'!$AM73)","v":12.106066425632211},{"$f":"IF('[1]REAL IPC(M)'!$BI73=\"\",\"\",+'[1]REAL IPC(M)'!$BI73)","v":12.303954043113619},{"$f":"IF('[1]REAL IMAE(M)'!BJ73=\"\",\"\",'[1]REAL IMAE(M)'!BJ73)","v":"n.d."},{"$f":"IF('[1]REAL IMAE(M)'!BK73=\"\",\"\",'[1]REAL IMAE(M)'!BK73)","v":"n.d."},{"$f":"IF('[1]REAL IMAE(M)'!BN73=\"\",\"\",'[1]REAL IMAE(M)'!BN73)","v":"n.d."},{"$f":"IF('[1]REAL IMAE(M)'!BO73=\"\",\"\",'[1]REAL IMAE(M)'!BO73)","v":"n.d."},{"$f":"IF('[1]EXT RIN(M)'!$K73=\"\",\"\",'[1]EXT RIN(M)'!$K73)","v":"n.d."},"",{"$f":"IF('[1]EXT RIN(M)'!$L73=\"\",\"\",'[1]EXT RIN(M)'!$L73)","v":"n.d."},"",{"$f":"IF('[1]MONE(M)CARD'!EG73=\"\",\"\",'[1]MONE(M)CARD'!EG73)","v":"n.d."},{"$f":"IF('[1]MONE(M)CARD'!EK73=\"\",\"\",'[1]MONE(M)CARD'!EK73)","v":"n.d."},{"$f":"IF('[1]MONE(M)CARD'!EP73=\"\",\"\",'[1]MONE(M)CARD'!EP73)","v":"n.d."},{"$f":"IF('[1]MONE(M)CARD'!ES73=\"\",\"\",'[1]MONE(M)CARD'!ES73)","v":"n.d."},{"$f":"IF('[1]MONE(M)CARD'!EV73=\"\",\"\",'[1]MONE(M)CARD'!EV73)","v":"n.d."},{"$f":"IF('[1]MONE(M)CARD'!EZ73=\"\",\"\",'[1]MONE(M)CARD'!EZ73)","v":"n.d."},{"$f":"IF('[1]MONE(M)CAPARD'!FC73=\"\",\"\",'[1]MONE(M)CAPARD'!FC73)","v":"n.d."},{"$f":"IF('[1]MONE(M)CAPARD'!FG73=\"\",\"\",'[1]MONE(M)CAPARD'!FG73)","v":"n.d."},{"$f":"IF('[1]MONE(M)CAPARD'!FL73=\"\",\"\",'[1]MONE(M)CAPARD'!FL73)","v":"n.d."},{"$f":"IF('[1]MONE(M)CAPARD'!FO73=\"\",\"\",'[1]MONE(M)CAPARD'!FO73)","v":"n.d."},{"$f":"IF('[1]MONE(M)CAPARD'!FR73=\"\",\"\",'[1]MONE(M)CAPARD'!FR73)","v":"n.d."},{"$f":"IF('[1]MONE(M)CAPARD'!FV73=\"\",\"\",'[1]MONE(M)CAPARD'!FV73)","v":"n.d."},{"$f":"IF('[1]MONE(M)CARD'!FV73=\"\",\"\",'[1]MONE(M)CARD'!FV73)","v":""},{"$f":"IF('[1]MONE(M)CARD'!GD73=\"\",\"\",'[1]MONE(M)CARD'!GD73)","v":"n.d."},{"$f":"IF('[1]MONE(M)CARD'!GE73=\"\",\"\",'[1]MONE(M)CARD'!GE73)","v":"n.d."},"n.d.","n.d.","n.d.","n.d.","n.d.","n.d.","n.d.","n.d.",null,"n.d.","n.d.","n.d.","n.d.","n.d.",{"$f":"IF('[1]MONE(M)CAPARD'!GS73=\"\",\"\",'[1]MONE(M)CAPARD'!GS73)","v":"n.d."},{"$f":"IF('[1]MONE(M)CARD'!HA73=\"\",\"\",'[1]MONE(M)CAPARD'!HA73)","v":"n.d."},{"$f":"IF('[1]MONE(M)CAPARD'!HB73=\"\",\"\",'[1]MONE(M)CAPARD'!HB73)","v":"n.d."},"n.d.","n.d.","n.d.","n.d.","n.d.","n.d.","n.d.","n.d.","n.d.","n.d.","n.d.","n.d.","n.d.","n.d.",{"$f":"IF('[1]MONE(M)CAPARD'!AS73=\"\",\"\",'[1]MONE(M)CAPARD'!AS73)","v":"n.d."},{"$f":"IF('[1]MONE(M)CAPARD'!AT73=\"\",\"\",'[1]MONE(M)CAPARD'!AT73)","v":"n.a."},{"$f":"IF('[1]MONE(M)CAPARD'!AU73=\"\",\"\",'[1]MONE(M)CAPARD'!AU73)","v":"n.d."},{"$f":"IF('[1]MONE(M)CAPARD'!AV73=\"\",\"\",'[1]MONE(M)CAPARD'!AV73)","v":"n.d."},{"$f":"IF('[1]MONE(M)CAPARD'!AW73=\"\",\"\",'[1]MONE(M)CAPARD'!AW73)","v":"n.a."},{"$f":"IF('[1]MONE(M)CAPARD'!AX73=\"\",\"\",'[1]MONE(M)CAPARD'!AX73)","v":"n.d."},{"$f":"IF('[1]MONE(M)CAPARD'!AY73=\"\",\"\",'[1]MONE(M)CAPARD'!AY73)","v":"n.a."},{"$f":"IF('[1]FISCAL(M)'!$K73=\"\",\"\",'[1]FISCAL(M)'!$K73)","v":"n.d."},{"$f":"IF('[1]FISCAL(M)'!$L73=\"\",\"\",'[1]FISCAL(M)'!$L73)","v":"n.d."},{"$f":"IF('[1]FISCAL(M)'!$AY73=\"\",\"\",'[1]FISCAL(M)'!$AY73)","v":"n.d."},{"$f":"IF('[1]FISCAL(M)'!$BI73=\"\",\"\",'[1]FISCAL(M)'!$BI73)","v":"n.d."},{"$f":"IF('[1]FISCAL(M)'!$BS73=\"\",\"\",'[1]FISCAL(M)'!$BS73)","v":"n.d."},{"$f":"IF('[1]FISCAL(M)'!$AZ73=\"\",\"\",'[1]FISCAL(M)'!$AZ73)","v":"n.d."},{"$f":"IF('[1]FISCAL(M)'!$BJ73=\"\",\"\",'[1]FISCAL(M)'!$BJ73)","v":"n.d."},{"$f":"IF('[1]FISCAL(M)'!$BT73=\"\",\"\",'[1]FISCAL(M)'!$BT73)","v":"n.d."},{"$f":"IF('[2]MONE(M)'!$AO73=\"\",\"\",'[2]MONE(M)'!$AO73)","v":"n.d."},{"$f":"IF('[3]MONE(M)'!$AO73=\"\",\"\",'[3]MONE(M)'!$AO73)","v":"n.d."},{"$f":"IF('[4]MONE(M)'!$AO73=\"\",\"\",'[4]MONE(M)'!$AO73)","v":"n.d."},{"$f":"+'[5]MONE(M)'!$AO73","v":"n.d."},{"$f":"IF('[6]MONE(M)'!$AO73=\"\",\"\",'[6]MONE(M)'!$AO73)","v":"n.d."},{"$f":"IF('[7]MONE(M)'!$AO73=\"\",\"\",'[7]MONE(M)'!$AO73)","v":"n.d."},{"$f":"IF('[8]MONE(M)'!$AO73=\"\",\"\",'[8]MONE(M)'!$AO73)","v":"n.d."},"n.d.","n.d.","n.d.","n.d.","n.d.","n.d.","n.d.",{"$f":"IF('[1]FISCAL(M)'!$K73=\"\",\"\",'[1]FISCAL(M)'!$K73)","v":"n.d."},"n.d.","n.d.",{"$f":"IF('[1]FISCAL(M)'!$L73=\"\",\"\",'[1]FISCAL(M)'!$L73)","v":"n.d."},"n.d.","n.d.","n.d.","n.d.","n.d.","n.d.","n.d.","n.d.","n.d.","n.d.","n.d.","n.d.","n.d.","n.d.","n.d.","n.d.","n.d.","n.d."]
[1995,"mayo ","1995-mayo ",{"$f":"IF('[1]REAL IPC(M)'!$AL74=\"\",\"\",+'[1]REAL IPC(M)'!$AL74)","v":13.183057615170778},{"$f":"IF('[1]REAL IPC(M)'!$BE74=\"\",\"\",+'[1]REAL IPC(M)'!$BE74)","v":13.296037410210237},{"$f":"IF('[1]REAL IPC(M)'!$AM74=\"\",\"\",+'[1]REAL IPC(M)'!$AM74)","v":12.036456046379506},{"$f":"IF('[1]REAL IPC(M)'!$BI74=\"\",\"\",+'[1]REAL IPC(M)'!$BI74)","v":12.164670254154952},{"$f":"IF('[1]REAL IMAE(M)'!BJ74=\"\",\"\",'[1]REAL IMAE(M)'!BJ74)","v":"n.d."},{"$f":"IF('[1]REAL IMAE(M)'!BK74=\"\",\"\",'[1]REAL IMAE(M)'!BK74)","v":"n.d."},{"$f":"IF('[1]REAL IMAE(M)'!BN74=\"\",\"\",'[1]REAL IMAE(M)'!BN74)","v":"n.d."},{"$f":"IF('[1]REAL IMAE(M)'!BO74=\"\",\"\",'[1]REAL IMAE(M)'!BO74)","v":"n.d."},{"$f":"IF('[1]EXT RIN(M)'!$K74=\"\",\"\",'[1]EXT RIN(M)'!$K74)","v":"n.d."},"",{"$f":"IF('[1]EXT RIN(M)'!$L74=\"\",\"\",'[1]EXT RIN(M)'!$L74)","v":"n.d."},"",{"$f":"IF('[1]MONE(M)CARD'!EG74=\"\",\"\",'[1]MONE(M)CARD'!EG74)","v":"n.d."},{"$f":"IF('[1]MONE(M)CARD'!EK74=\"\",\"\",'[1]MONE(M)CARD'!EK74)","v":"n.d."},{"$f":"IF('[1]MONE(M)CARD'!EP74=\"\",\"\",'[1]MONE(M)CARD'!EP74)","v":"n.d."},{"$f":"IF('[1]MONE(M)CARD'!ES74=\"\",\"\",'[1]MONE(M)CARD'!ES74)","v":"n.d."},{"$f":"IF('[1]MONE(M)CARD'!EV74=\"\",\"\",'[1]MONE(M)CARD'!EV74)","v":"n.d."},{"$f":"IF('[1]MONE(M)CARD'!EZ74=\"\",\"\",'[1]MONE(M)CARD'!EZ74)","v":"n.d."},{"$f":"IF('[1]MONE(M)CAPARD'!FC74=\"\",\"\",'[1]MONE(M)CAPARD'!FC74)","v":"n.d."},{"$f":"IF('[1]MONE(M)CAPARD'!FG74=\"\",\"\",'[1]MONE(M)CAPARD'!FG74)","v":"n.d."},{"$f":"IF('[1]MONE(M)CAPARD'!FL74=\"\",\"\",'[1]MONE(M)CAPARD'!FL74)","v":"n.d."},{"$f":"IF('[1]MONE(M)CAPARD'!FO74=\"\",\"\",'[1]MONE(M)CAPARD'!FO74)","v":"n.d."},{"$f":"IF('[1]MONE(M)CAPARD'!FR74=\"\",\"\",'[1]MONE(M)CAPARD'!FR74)","v":"n.d."},{"$f":"IF('[1]MONE(M)CAPARD'!FV74=\"\",\"\",'[1]MONE(M)CAPARD'!FV74)","v":"n.d."},{"$f":"IF('[1]MONE(M)CARD'!FV74=\"\",\"\",'[1]MONE(M)CARD'!FV74)","v":""},{"$f":"IF('[1]MONE(M)CARD'!GD74=\"\",\"\",'[1]MONE(M)CARD'!GD74)","v":"n.d."},{"$f":"IF('[1]MONE(M)CARD'!GE74=\"\",\"\",'[1]MONE(M)CARD'!GE74)","v":"n.d."},"n.d.","n.d.","n.d.","n.d.","n.d.","n.d.","n.d.","n.d.",null,"n.d.","n.d.","n.d.","n.d.","n.d.",{"$f":"IF('[1]MONE(M)CAPARD'!GS74=\"\",\"\",'[1]MONE(M)CAPARD'!GS74)","v":"n.d."},{"$f":"IF('[1]MONE(M)CARD'!HA74=\"\",\"\",'[1]MONE(M)CAPARD'!HA74)","v":"n.d."},{"$f":"IF('[1]MONE(M)CAPARD'!HB74=\"\",\"\",'[1]MONE(M)CAPARD'!HB74)","v":"n.d."},"n.d.","n.d.","n.d.","n.d.","n.d.","n.d.","n.d.","n.d.","n.d.","n.d.","n.d.","n.d.","n.d.","n.d.",{"$f":"IF('[1]MONE(M)CAPARD'!AS74=\"\",\"\",'[1]MONE(M)CAPARD'!AS74)","v":"n.d."},{"$f":"IF('[1]MONE(M)CAPARD'!AT74=\"\",\"\",'[1]MONE(M)CAPARD'!AT74)","v":"n.a."},{"$f":"IF('[1]MONE(M)CAPARD'!AU74=\"\",\"\",'[1]MONE(M)CAPARD'!AU74)","v":"n.d."},{"$f":"IF('[1]MONE(M)CAPARD'!AV74=\"\",\"\",'[1]MONE(M)CAPARD'!AV74)","v":"n.d."},{"$f":"IF('[1]MONE(M)CAPARD'!AW74=\"\",\"\",'[1]MONE(M)CAPARD'!AW74)","v":"n.a."},{"$f":"IF('[1]MONE(M)CAPARD'!AX74=\"\",\"\",'[1]MONE(M)CAPARD'!AX74)","v":"n.d."},{"$f":"IF('[1]MONE(M)CAPARD'!AY74=\"\",\"\",'[1]MONE(M)CAPARD'!AY74)","v":"n.a."},{"$f":"IF('[1]FISCAL(M)'!$K74=\"\",\"\",'[1]FISCAL(M)'!$K74)","v":"n.d."},{"$f":"IF('[1]FISCAL(M)'!$L74=\"\",\"\",'[1]FISCAL(M)'!$L74)","v":"n.d."},{"$f":"IF('[1]FISCAL(M)'!$AY74=\"\",\"\",'[1]FISCAL(M)'!$AY74)","v":"n.d."},{"$f":"IF('[1]FISCAL(M)'!$BI74=\"\",\"\",'[1]FISCAL(M)'!$BI74)","v":"n.d."},{"$f":"IF('[1]FISCAL(M)'!$BS74=\"\",\"\",'[1]FISCAL(M)'!$BS74)","v":"n.d."},{"$f":"IF('[1]FISCAL(M)'!$AZ74=\"\",\"\",'[1]FISCAL(M)'!$AZ74)","v":"n.d."},{"$f":"IF('[1]FISCAL(M)'!$BJ74=\"\",\"\",'[1]FISCAL(M)'!$BJ74)","v":"n.d."},{"$f":"IF('[1]FISCAL(M)'!$BT74=\"\",\"\",'[1]FISCAL(M)'!$BT74)","v":"n.d."},{"$f":"IF('[2]MONE(M)'!$AO74=\"\",\"\",'[2]MONE(M)'!$AO74)","v":"n.d."},{"$f":"IF('[3]MONE(M)'!$AO74=\"\",\"\",'[3]MONE(M)'!$AO74)","v":"n.d."},{"$f":"IF('[4]MONE(M)'!$AO74=\"\",\"\",'[4]MONE(M)'!$AO74)","v":"n.d."},{"$f":"+'[5]MONE(M)'!$AO74","v":"n.d."},{"$f":"IF('[6]MONE(M)'!$AO74=\"\",\"\",'[6]MONE(M)'!$AO74)","v":"n.d."},{"$f":"IF('[7]MONE(M)'!$AO74=\"\",\"\",'[7]MONE(M)'!$AO74)","v":"n.d."},{"$f":"IF('[8]MONE(M)'!$AO74=\"\",\"\",'[8]MONE(M)'!$AO74)","v":"n.d."},"n.d.","n.d.","n.d.","n.d.","n.d.","n.d.","n.d.",{"$f":"IF('[1]FISCAL(M)'!$K74=\"\",\"\",'[1]FISCAL(M)'!$K74)","v":"n.d."},"n.d.",{"$f":"IF(OR(CM67=\"n.d.\",CM67=\"\",CN67=\"\",CN67=\"n.d.\"),\"n.d.\",(CM67/CN67)*100)","v":"n.d."},{"$f":"IF('[1]FISCAL(M)'!$L74=\"\",\"\",'[1]FISCAL(M)'!$L74)","v":"n.d."},"n.d.","n.d.","n.d.","n.d.","n.d.","n.d.","n.d.","n.d.","n.d.","n.d.","n.d.","n.d.","n.d.","n.d.","n.d.","n.d.","n.d.","n.d."]
[1995,"junio ",{"$f":"A68&\"-\"&B68","v":"1995-junio "},{"$f":"IF('[1]REAL IPC(M)'!$AL75=\"\",\"\",+'[1]REAL IPC(M)'!$AL75)","v":13.283025137409531},{"$f":"IF('[1]REAL IPC(M)'!$BE75=\"\",\"\",+'[1]REAL IPC(M)'!$BE75)","v":13.132383899725886},{"$f":"IF('[1]REAL IPC(M)'!$AM75=\"\",\"\",+'[1]REAL IPC(M)'!$AM75)","v":12.144728930418736},{"$f":"IF('[1]REAL IPC(M)'!$BI75=\"\",\"\",+'[1]REAL IPC(M)'!$BI75)","v":12.025350125480404},{"$f":"IF('[1]REAL IMAE(M)'!BJ75=\"\",\"\",'[1]REAL IMAE(M)'!BJ75)","v":"n.d."},{"$f":"IF('[1]REAL IMAE(M)'!BK75=\"\",\"\",'[1]REAL IMAE(M)'!BK75)","v":"n.d."},{"$f":"IF('[1]REAL IMAE(M)'!BN75=\"\",\"\",'[1]REAL IMAE(M)'!BN75)","v":"n.d."},{"$f":"IF('[1]REAL IMAE(M)'!BO75=\"\",\"\",'[1]REAL IMAE(M)'!BO75)","v":"n.d."},{"$f":"IF('[1]EXT RIN(M)'!$K75=\"\",\"\",'[1]EXT RIN(M)'!$K75)","v":"n.d."},{"$f":"IF(B68<>\"diciembre\",\"\",L68)","v":""},{"$f":"IF('[1]EXT RIN(M)'!$L75=\"\",\"\",'[1]EXT RIN(M)'!$L75)","v":"n.d."},{"$f":"IF(B68<>\"diciembre\",\"\",N68)","v":""},{"$f":"IF('[1]MONE(M)CARD'!EG75=\"\",\"\",'[1]MONE(M)CARD'!EG75)","v":"n.d."},{"$f":"IF('[1]MONE(M)CARD'!EK75=\"\",\"\",'[1]MONE(M)CARD'!EK75)","v":"n.d."},{"$f":"IF('[1]MONE(M)CARD'!EP75=\"\",\"\",'[1]MONE(M)CARD'!EP75)","v":"n.d."},{"$f":"IF('[1]MONE(M)CARD'!ES75=\"\",\"\",'[1]MONE(M)CARD'!ES75)","v":"n.d."},{"$f":"IF('[1]MONE(M)CARD'!EV75=\"\",\"\",'[1]MONE(M)CARD'!EV75)","v":"n.d."},{"$f":"IF('[1]MONE(M)CARD'!EZ75=\"\",\"\",'[1]MONE(M)CARD'!EZ75)","v":"n.d."},{"$f":"IF('[1]MONE(M)CAPARD'!FC75=\"\",\"\",'[1]MONE(M)CAPARD'!FC75)","v":"n.d."},{"$f":"IF('[1]MONE(M)CAPARD'!FG75=\"\",\"\",'[1]MONE(M)CAPARD'!FG75)","v":"n.d."},{"$f":"IF('[1]MONE(M)CAPARD'!FL75=\"\",\"\",'[1]MONE(M)CAPARD'!FL75)","v":"n.d."},{"$f":"IF('[1]MONE(M)CAPARD'!FO75=\"\",\"\",'[1]MONE(M)CAPARD'!FO75)","v":"n.d."},{"$f":"IF('[1]MONE(M)CAPARD'!FR75=\"\",\"\",'[1]MONE(M)CAPARD'!FR75)","v":"n.d."},{"$f":"IF('[1]MONE(M)CAPARD'!FV75=\"\",\"\",'[1]MONE(M)CAPARD'!FV75)","v":"n.d."},{"$f":"IF('[1]MONE(M)CARD'!FV75=\"\",\"\",'[1]MONE(M)CARD'!FV75)","v":""},{"$f":"IF('[1]MONE(M)CARD'!GD75=\"\",\"\",'[1]MONE(M)CARD'!GD75)","v":"n.d."},{"$f":"IF('[1]MONE(M)CARD'!GE75=\"\",\"\",'[1]MONE(M)CARD'!GE75)","v":"n.d."},"n.d.","n.d.","n.d.","n.d.","n.d.","n.d.","n.d.","n.d.",null,"n.d.","n.d.","n.d.","n.d.","n.d.",{"$f":"IF('[1]MONE(M)CAPARD'!GS75=\"\",\"\",'[1]MONE(M)CAPARD'!GS75)","v":"n.d."},{"$f":"IF('[1]MONE(M)CARD'!HA75=\"\",\"\",'[1]MONE(M)CAPARD'!HA75)","v":"n.d."},{"$f":"IF('[1]MONE(M)CAPARD'!HB75=\"\",\"\",'[1]MONE(M)CAPARD'!HB75)","v":"n.d."},"n.d.","n.d.","n.d.","n.d.","n.d.","n.d.","n.d.","n.d.","n.d.","n.d.","n.d.","n.d.","n.d.","n.d.",{"$f":"IF('[1]MONE(M)CAPARD'!AS75=\"\",\"\",'[1]MONE(M)CAPARD'!AS75)","v":"n.d."},{"$f":"IF('[1]MONE(M)CAPARD'!AT75=\"\",\"\",'[1]MONE(M)CAPARD'!AT75)","v":"n.a."},{"$f":"IF('[1]MONE(M)CAPARD'!AU75=\"\",\"\",'[1]MONE(M)CAPARD'!AU75)","v":"n.d."},{"$f":"IF('[1]MONE(M)CAPARD'!AV75=\"\",\"\",'[1]MONE(M)CAPARD'!AV75)","v":"n.d."},{"$f":"IF('[1]MONE(M)CAPARD'!AW75=\"\",\"\",'[1]MONE(M)CAPARD'!AW75)","v":"n.a."},{"$f":"IF('[1]MONE(M)CAPARD'!AX75=\"\",\"\",'[1]MONE(M)CAPARD'!AX75)","v":"n.d."},{"$f":"IF('[1]MONE(M)CAPARD'!AY75=\"\",\"\",'[1]MONE(M)CAPARD'!AY75)","v":"n.a."},{"$f":"IF('[1]FISCAL(M)'!$K75=\"\",\"\",'[1]FISCAL(M)'!$K75)","v":"n.d."},{"$f":"IF('[1]FISCAL(M)'!$L75=\"\",\"\",'[1]FISCAL(M)'!$L75)","v":"n.d."},{"$f":"IF('[1]FISCAL(M)'!$AY75=\"\",\"\",'[1]FISCAL(M)'!$AY75)","v":"n.d."},{"$f":"IF('[1]FISCAL(M)'!$BI75=\"\",\"\",'[1]FISCAL(M)'!$BI75)","v":"n.d."},{"$f":"IF('[1]FISCAL(M)'!$BS75=\"\",\"\",'[1]FISCAL(M)'!$BS75)","v":"n.d."},{"$f":"IF('[1]FISCAL(M)'!$AZ75=\"\",\"\",'[1]FISCAL(M)'!$AZ75)","v":"n.d."},{"$f":"IF('[1]FISCAL(M)'!$BJ75=\"\",\"\",'[1]FISCAL(M)'!$BJ75)","v":"n.d."},{"$f":"IF('[1]FISCAL(M)'!$BT75=\"\",\"\",'[1]FISCAL(M)'!$BT75)","v":"n.d."},{"$f":"IF('[2]MONE(M)'!$AO75=\"\",\"\",'[2]MONE(M)'!$AO75)","v":"n.d."},{"$f":"IF('[3]MONE(M)'!$AO75=\"\",\"\",'[3]MONE(M)'!$AO75)","v":"n.d."},{"$f":"IF('[4]MONE(M)'!$AO75=\"\",\"\",'[4]MONE(M)'!$AO75)","v":"n.d."},{"$f":"+'[5]MONE(M)'!$AO75","v":"n.d."},{"$f":"IF('[6]MONE(M)'!$AO75=\"\",\"\",'[6]MONE(M)'!$AO75)","v":"n.d."},{"$f":"IF('[7]MONE(M)'!$AO75=\"\",\"\",'[7]MONE(M)'!$AO75)","v":"n.d."},{"$f":"IF('[8]MONE(M)'!$AO75=\"\",\"\",'[8]MONE(M)'!$AO75)","v":"n.d."},"n.d.","n.d.","n.d.","n.d.","n.d.","n.d.","n.d.",{"$f":"IF('[1]FISCAL(M)'!$K75=\"\",\"\",'[1]FISCAL(M)'!$K75)","v":"n.d."},"n.d.","n.d.",{"$f":"IF('[1]FISCAL(M)'!$L75=\"\",\"\",'[1]FISCAL(M)'!$L75)","v":"n.d."},"n.d.",{"$f":"IF(OR(CP68=\"n.d.\",CP68=\"\",CQ68=\"\",CQ68=\"n.d.\"),\"n.d.\",(CP68/CQ68)*100)","v":"n.d."},"n.d.","n.d.","n.d.","n.d.","n.d.","n.d.","n.d.","n.d.","n.d.","n.d.","n.d.","n.d.","n.d.","n.d.","n.d.","n.d."]
[1995,"julio","1995-julio",{"$f":"IF('[1]REAL IPC(M)'!$AL76=\"\",\"\",+'[1]REAL IPC(M)'!$AL76)","v":13.740317166969106},{"$f":"IF('[1]REAL IPC(M)'!$BE76=\"\",\"\",+'[1]REAL IPC(M)'!$BE76)","v":12.969071726668036},{"$f":"IF('[1]REAL IPC(M)'!$AM76=\"\",\"\",+'[1]REAL IPC(M)'!$AM76)","v":12.558755050884773},{"$f":"IF('[1]REAL IPC(M)'!$BI76=\"\",\"\",+'[1]REAL IPC(M)'!$BI76)","v":11.885711993400893},{"$f":"IF('[1]REAL IMAE(M)'!BJ76=\"\",\"\",'[1]REAL IMAE(M)'!BJ76)","v":"n.d."},{"$f":"IF('[1]REAL IMAE(M)'!BK76=\"\",\"\",'[1]REAL IMAE(M)'!BK76)","v":"n.d."},{"$f":"IF('[1]REAL IMAE(M)'!BN76=\"\",\"\",'[1]REAL IMAE(M)'!BN76)","v":"n.d."},{"$f":"IF('[1]REAL IMAE(M)'!BO76=\"\",\"\",'[1]REAL IMAE(M)'!BO76)","v":"n.d."},{"$f":"IF('[1]EXT RIN(M)'!$K76=\"\",\"\",'[1]EXT RIN(M)'!$K76)","v":"n.d."},"",{"$f":"IF('[1]EXT RIN(M)'!$L76=\"\",\"\",'[1]EXT RIN(M)'!$L76)","v":"n.d."},"",{"$f":"IF('[1]MONE(M)CARD'!EG76=\"\",\"\",'[1]MONE(M)CARD'!EG76)","v":"n.d."},{"$f":"IF('[1]MONE(M)CARD'!EK76=\"\",\"\",'[1]MONE(M)CARD'!EK76)","v":"n.d."},{"$f":"IF('[1]MONE(M)CARD'!EP76=\"\",\"\",'[1]MONE(M)CARD'!EP76)","v":"n.d."},{"$f":"IF('[1]MONE(M)CARD'!ES76=\"\",\"\",'[1]MONE(M)CARD'!ES76)","v":"n.d."},{"$f":"IF('[1]MONE(M)CARD'!EV76=\"\",\"\",'[1]MONE(M)CARD'!EV76)","v":"n.d."},{"$f":"IF('[1]MONE(M)CARD'!EZ76=\"\",\"\",'[1]MONE(M)CARD'!EZ76)","v":"n.d."},{"$f":"IF('[1]MONE(M)CAPARD'!FC76=\"\",\"\",'[1]MONE(M)CAPARD'!FC76)","v":"n.d."},{"$f":"IF('[1]MONE(M)CAPARD'!FG76=\"\",\"\",'[1]MONE(M)CAPARD'!FG76)","v":"n.d."},{"$f":"IF('[1]MONE(M)CAPARD'!FL76=\"\",\"\",'[1]MONE(M)CAPARD'!FL76)","v":"n.d."},{"$f":"IF('[1]MONE(M)CAPARD'!FO76=\"\",\"\",'[1]MONE(M)CAPARD'!FO76)","v":"n.d."},{"$f":"IF('[1]MONE(M)CAPARD'!FR76=\"\",\"\",'[1]MONE(M)CAPARD'!FR76)","v":"n.d."},{"$f":"IF('[1]MONE(M)CAPARD'!FV76=\"\",\"\",'[1]MONE(M)CAPARD'!FV76)","v":"n.d."},{"$f":"IF('[1]MONE(M)CARD'!FV76=\"\",\"\",'[1]MONE(M)CARD'!FV76)","v":""},{"$f":"IF('[1]MONE(M)CARD'!GD76=\"\",\"\",'[1]MONE(M)CARD'!GD76)","v":"n.d."},{"$f":"IF('[1]MONE(M)CARD'!GE76=\"\",\"\",'[1]MONE(M)CARD'!GE76)","v":"n.d."},"n.d.","n.d.","n.d.","n.d.","n.d.","n.d.","n.d.","n.d.",null,"n.d.","n.d.","n.d.","n.d.","n.d.",{"$f":"IF('[1]MONE(M)CAPARD'!GS76=\"\",\"\",'[1]MONE(M)CAPARD'!GS76)","v":"n.d."},{"$f":"IF('[1]MONE(M)CARD'!HA76=\"\",\"\",'[1]MONE(M)CAPARD'!HA76)","v":"n.d."},{"$f":"IF('[1]MONE(M)CAPARD'!HB76=\"\",\"\",'[1]MONE(M)CAPARD'!HB76)","v":"n.d."},"n.d.","n.d.","n.d.","n.d.","n.d.","n.d.","n.d.","n.d.","n.d.","n.d.","n.d.","n.d.","n.d.","n.d.",{"$f":"IF('[1]MONE(M)CAPARD'!AS76=\"\",\"\",'[1]MONE(M)CAPARD'!AS76)","v":"n.d."},{"$f":"IF('[1]MONE(M)CAPARD'!AT76=\"\",\"\",'[1]MONE(M)CAPARD'!AT76)","v":"n.a."},{"$f":"IF('[1]MONE(M)CAPARD'!AU76=\"\",\"\",'[1]MONE(M)CAPARD'!AU76)","v":"n.d."},{"$f":"IF('[1]MONE(M)CAPARD'!AV76=\"\",\"\",'[1]MONE(M)CAPARD'!AV76)","v":"n.d."},{"$f":"IF('[1]MONE(M)CAPARD'!AW76=\"\",\"\",'[1]MONE(M)CAPARD'!AW76)","v":"n.a."},{"$f":"IF('[1]MONE(M)CAPARD'!AX76=\"\",\"\",'[1]MONE(M)CAPARD'!AX76)","v":"n.d."},{"$f":"IF('[1]MONE(M)CAPARD'!AY76=\"\",\"\",'[1]MONE(M)CAPARD'!AY76)","v":"n.a."},{"$f":"IF('[1]FISCAL(M)'!$K76=\"\",\"\",'[1]FISCAL(M)'!$K76)","v":"n.d."},{"$f":"IF('[1]FISCAL(M)'!$L76=\"\",\"\",'[1]FISCAL(M)'!$L76)","v":"n.d."},{"$f":"IF('[1]FISCAL(M)'!$AY76=\"\",\"\",'[1]FISCAL(M)'!$AY76)","v":"n.d."},{"$f":"IF('[1]FISCAL(M)'!$BI76=\"\",\"\",'[1]FISCAL(M)'!$BI76)","v":"n.d."},{"$f":"IF('[1]FISCAL(M)'!$BS76=\"\",\"\",'[1]FISCAL(M)'!$BS76)","v":"n.d."},{"$f":"IF('[1]FISCAL(M)'!$AZ76=\"\",\"\",'[1]FISCAL(M)'!$AZ76)","v":"n.d."},{"$f":"IF('[1]FISCAL(M)'!$BJ76=\"\",\"\",'[1]FISCAL(M)'!$BJ76)","v":"n.d."},{"$f":"IF('[1]FISCAL(M)'!$BT76=\"\",\"\",'[1]FISCAL(M)'!$BT76)","v":"n.d."},{"$f":"IF('[2]MONE(M)'!$AO76=\"\",\"\",'[2]MONE(M)'!$AO76)","v":"n.d."},{"$f":"IF('[3]MONE(M)'!$AO76=\"\",\"\",'[3]MONE(M)'!$AO76)","v":"n.d."},{"$f":"IF('[4]MONE(M)'!$AO76=\"\",\"\",'[4]MONE(M)'!$AO76)","v":"n.d."},{"$f":"+'[5]MONE(M)'!$AO76","v":"n.d."},{"$f":"IF('[6]MONE(M)'!$AO76=\"\",\"\",'[6]MONE(M)'!$AO76)","v":"n.d."},{"$f":"IF('[7]MONE(M)'!$AO76=\"\",\"\",'[7]MONE(M)'!$AO76)","v":"n.d."},{"$f":"IF('[8]MONE(M)'!$AO76=\"\",\"\",'[8]MONE(M)'!$AO76)","v":"n.d."},"n.d.","n.d.","n.d.","n.d.","n.d.","n.d.","n.d.",{"$f":"IF('[1]FISCAL(M)'!$K76=\"\",\"\",'[1]FISCAL(M)'!$K76)","v":"n.d."},"n.d.","n.d.",{"$f":"IF('[1]FISCAL(M)'!$L76=\"\",\"\",'[1]FISCAL(M)'!$L76)","v":"n.d."},"n.d.","n.d.","n.d.","n.d.","n.d.","n.d.","n.d.","n.d.","n.d.","n.d.","n.d.","n.d.","n.d.","n.d.","n.d.","n.d.","n.d.","n.d."]
[1995,"agosto","1995-agosto",{"$f":"IF('[1]REAL IPC(M)'!$AL77=\"\",\"\",+'[1]REAL IPC(M)'!$AL77)","v":12.990683781716106},{"$f":"IF('[1]REAL IPC(M)'!$BE77=\"\",\"\",+'[1]REAL IPC(M)'!$BE77)","v":12.805816664176239},{"$f":"IF('[1]REAL IPC(M)'!$AM77=\"\",\"\",+'[1]REAL IPC(M)'!$AM77)","v":11.879653531677592},{"$f":"IF('[1]REAL IPC(M)'!$BI77=\"\",\"\",+'[1]REAL IPC(M)'!$BI77)","v":11.745499250325375},{"$f":"IF('[1]REAL IMAE(M)'!BJ77=\"\",\"\",'[1]REAL IMAE(M)'!BJ77)","v":"n.d."},{"$f":"IF('[1]REAL IMAE(M)'!BK77=\"\",\"\",'[1]REAL IMAE(M)'!BK77)","v":"n.d."},{"$f":"IF('[1]REAL IMAE(M)'!BN77=\"\",\"\",'[1]REAL IMAE(M)'!BN77)","v":"n.d."},{"$f":"IF('[1]REAL IMAE(M)'!BO77=\"\",\"\",'[1]REAL IMAE(M)'!BO77)","v":"n.d."},{"$f":"IF('[1]EXT RIN(M)'!$K77=\"\",\"\",'[1]EXT RIN(M)'!$K77)","v":"n.d."},"",{"$f":"IF('[1]EXT RIN(M)'!$L77=\"\",\"\",'[1]EXT RIN(M)'!$L77)","v":"n.d."},"",{"$f":"IF('[1]MONE(M)CARD'!EG77=\"\",\"\",'[1]MONE(M)CARD'!EG77)","v":"n.d."},{"$f":"IF('[1]MONE(M)CARD'!EK77=\"\",\"\",'[1]MONE(M)CARD'!EK77)","v":"n.d."},{"$f":"IF('[1]MONE(M)CARD'!EP77=\"\",\"\",'[1]MONE(M)CARD'!EP77)","v":"n.d."},{"$f":"IF('[1]MONE(M)CARD'!ES77=\"\",\"\",'[1]MONE(M)CARD'!ES77)","v":"n.d."},{"$f":"IF('[1]MONE(M)CARD'!EV77=\"\",\"\",'[1]MONE(M)CARD'!EV77)","v":"n.d."},{"$f":"IF('[1]MONE(M)CARD'!EZ77=\"\",\"\",'[1]MONE(M)CARD'!EZ77)","v":"n.d."},{"$f":"IF('[1]MONE(M)CAPARD'!FC77=\"\",\"\",'[1]MONE(M)CAPARD'!FC77)","v":"n.d."},{"$f":"IF('[1]MONE(M)CAPARD'!FG77=\"\",\"\",'[1]MONE(M)CAPARD'!FG77)","v":"n.d."},{"$f":"IF('[1]MONE(M)CAPARD'!FL77=\"\",\"\",'[1]MONE(M)CAPARD'!FL77)","v":"n.d."},{"$f":"IF('[1]MONE(M)CAPARD'!FO77=\"\",\"\",'[1]MONE(M)CAPARD'!FO77)","v":"n.d."},{"$f":"IF('[1]MONE(M)CAPARD'!FR77=\"\",\"\",'[1]MONE(M)CAPARD'!FR77)","v":"n.d."},{"$f":"IF('[1]MONE(M)CAPARD'!FV77=\"\",\"\",'[1]MONE(M)CAPARD'!FV77)","v":"n.d."},{"$f":"IF('[1]MONE(M)CARD'!FV77=\"\",\"\",'[1]MONE(M)CARD'!FV77)","v":""},{"$f":"IF('[1]MONE(M)CARD'!GD77=\"\",\"\",'[1]MONE(M)CARD'!GD77)","v":"n.d."},{"$f":"IF('[1]MONE(M)CARD'!GE77=\"\",\"\",'[1]MONE(M)CARD'!GE77)","v":"n.d."},"n.d.","n.d.","n.d.","n.d.","n.d.","n.d.","n.d.","n.d.",null,"n.d.","n.d.","n.d.","n.d.","n.d.",{"$f":"IF('[1]MONE(M)CAPARD'!GS77=\"\",\"\",'[1]MONE(M)CAPARD'!GS77)","v":"n.d."},{"$f":"IF('[1]MONE(M)CARD'!HA77=\"\",\"\",'[1]MONE(M)CAPARD'!HA77)","v":"n.d."},{"$f":"IF('[1]MONE(M)CAPARD'!HB77=\"\",\"\",'[1]MONE(M)CAPARD'!HB77)","v":"n.d."},"n.d.","n.d.","n.d.","n.d.","n.d.","n.d.","n.d.","n.d.","n.d.","n.d.","n.d.","n.d.","n.d.","n.d.",{"$f":"IF('[1]MONE(M)CAPARD'!AS77=\"\",\"\",'[1]MONE(M)CAPARD'!AS77)","v":"n.d."},{"$f":"IF('[1]MONE(M)CAPARD'!AT77=\"\",\"\",'[1]MONE(M)CAPARD'!AT77)","v":"n.a."},{"$f":"IF('[1]MONE(M)CAPARD'!AU77=\"\",\"\",'[1]MONE(M)CAPARD'!AU77)","v":"n.d."},{"$f":"IF('[1]MONE(M)CAPARD'!AV77=\"\",\"\",'[1]MONE(M)CAPARD'!AV77)","v":"n.d."},{"$f":"IF('[1]MONE(M)CAPARD'!AW77=\"\",\"\",'[1]MONE(M)CAPARD'!AW77)","v":"n.a."},{"$f":"IF('[1]MONE(M)CAPARD'!AX77=\"\",\"\",'[1]MONE(M)CAPARD'!AX77)","v":"n.d."},{"$f":"IF('[1]MONE(M)CAPARD'!AY77=\"\",\"\",'[1]MONE(M)CAPARD'!AY77)","v":"n.a."},{"$f":"IF('[1]FISCAL(M)'!$K77=\"\",\"\",'[1]FISCAL(M)'!$K77)","v":"n.d."},{"$f":"IF('[1]FISCAL(M)'!$L77=\"\",\"\",'[1]FISCAL(M)'!$L77)","v":"n.d."},{"$f":"IF('[1]FISCAL(M)'!$AY77=\"\",\"\",'[1]FISCAL(M)'!$AY77)","v":"n.d."},{"$f":"IF('[1]FISCAL(M)'!$BI77=\"\",\"\",'[1]FISCAL(M)'!$BI77)","v":"n.d."},{"$f":"IF('[1]FISCAL(M)'!$BS77=\"\",\"\",'[1]FISCAL(M)'!$BS77)","v":"n.d."},{"$f":"IF('[1]FISCAL(M)'!$AZ77=\"\",\"\",'[1]FISCAL(M)'!$AZ77)","v":"n.d."},{"$f":"IF('[1]FISCAL(M)'!$BJ77=\"\",\"\",'[1]FISCAL(M)'!$BJ77)","v":"n.d."},{"$f":"IF('[1]FISCAL(M)'!$BT77=\"\",\"\",'[1]FISCAL(M)'!$BT77)","v":"n.d."},{"$f":"IF('[2]MONE(M)'!$AO77=\"\",\"\",'[2]MONE(M)'!$AO77)","v":"n.d."},{"$f":"IF('[3]MONE(M)'!$AO77=\"\",\"\",'[3]MONE(M)'!$AO77)","v":"n.d."},{"$f":"IF('[4]MONE(M)'!$AO77=\"\",\"\",'[4]MONE(M)'!$AO77)","v":"n.d."},{"$f":"+'[5]MONE(M)'!$AO77","v":"n.d."},{"$f":"IF('[6]MONE(M)'!$AO77=\"\",\"\",'[6]MONE(M)'!$AO77)","v":"n.d."},{"$f":"IF('[7]MONE(M)'!$AO77=\"\",\"\",'[7]MONE(M)'!$AO77)","v":"n.d."},{"$f":"IF('[8]MONE(M)'!$AO77=\"\",\"\",'[8]MONE(M)'!$AO77)","v":"n.d."},"n.d.","n.d.","n.d.","n.d.","n.d.","n.d.","n.d.",{"$f":"IF('[1]FISCAL(M)'!$K77=\"\",\"\",'[1]FISCAL(M)'!$K77)","v":"n.d."},"n.d.","n.d.",{"$f":"IF('[1]FISCAL(M)'!$L77=\"\",\"\",'[1]FISCAL(M)'!$L77)","v":"n.d."},"n.d.","n.d.","n.d.","n.d.","n.d.","n.d.","n.d.","n.d.","n.d.","n.d.","n.d.","n.d.","n.d.","n.d.","n.d.","n.d.","n.d.","n.d."]
[1995,"septiembre","1995-septiembre",{"$f":"IF('[1]REAL IPC(M)'!$AL78=\"\",\"\",+'[1]REAL IPC(M)'!$AL78)","v":13.3184024622518},{"$f":"IF('[1]REAL IPC(M)'!$BE78=\"\",\"\",+'[1]REAL IPC(M)'!$BE78)","v":12.642377207867849},{"$f":"IF('[1]REAL IPC(M)'!$AM78=\"\",\"\",+'[1]REAL IPC(M)'!$AM78)","v":12.167598222731989},{"$f":"IF('[1]REAL IPC(M)'!$BI78=\"\",\"\",+'[1]REAL IPC(M)'!$BI78)","v":11.604493975870911},{"$f":"IF('[1]REAL IMAE(M)'!BJ78=\"\",\"\",'[1]REAL IMAE(M)'!BJ78)","v":"n.d."},{"$f":"IF('[1]REAL IMAE(M)'!BK78=\"\",\"\",'[1]REAL IMAE(M)'!BK78)","v":"n.d."},{"$f":"IF('[1]REAL IMAE(M)'!BN78=\"\",\"\",'[1]REAL IMAE(M)'!BN78)","v":"n.d."},{"$f":"IF('[1]REAL IMAE(M)'!BO78=\"\",\"\",'[1]REAL IMAE(M)'!BO78)","v":"n.d."},{"$f":"IF('[1]EXT RIN(M)'!$K78=\"\",\"\",'[1]EXT RIN(M)'!$K78)","v":"n.d."},"",{"$f":"IF('[1]EXT RIN(M)'!$L78=\"\",\"\",'[1]EXT RIN(M)'!$L78)","v":"n.d."},"",{"$f":"IF('[1]MONE(M)CARD'!EG78=\"\",\"\",'[1]MONE(M)CARD'!EG78)","v":"n.d."},{"$f":"IF('[1]MONE(M)CARD'!EK78=\"\",\"\",'[1]MONE(M)CARD'!EK78)","v":"n.d."},{"$f":"IF('[1]MONE(M)CARD'!EP78=\"\",\"\",'[1]MONE(M)CARD'!EP78)","v":"n.d."},{"$f":"IF('[1]MONE(M)CARD'!ES78=\"\",\"\",'[1]MONE(M)CARD'!ES78)","v":"n.d."},{"$f":"IF('[1]MONE(M)CARD'!EV78=\"\",\"\",'[1]MONE(M)CARD'!EV78)","v":"n.d."},{"$f":"IF('[1]MONE(M)CARD'!EZ78=\"\",\"\",'[1]MONE(M)CARD'!EZ78)","v":"n.d."},{"$f":"IF('[1]MONE(M)CAPARD'!FC78=\"\",\"\",'[1]MONE(M)CAPARD'!FC78)","v":"n.d."},{"$f":"IF('[1]MONE(M)CAPARD'!FG78=\"\",\"\",'[1]MONE(M)CAPARD'!FG78)","v":"n.d."},{"$f":"IF('[1]MONE(M)CAPARD'!FL78=\"\",\"\",'[1]MONE(M)CAPARD'!FL78)","v":"n.d."},{"$f":"IF('[1]MONE(M)CAPARD'!FO78=\"\",\"\",'[1]MONE(M)CAPARD'!FO78)","v":"n.d."},{"$f":"IF('[1]MONE(M)CAPARD'!FR78=\"\",\"\",'[1]MONE(M)CAPARD'!FR78)","v":"n.d."},{"$f":"IF('[1]MONE(M)CAPARD'!FV78=\"\",\"\",'[1]MONE(M)CAPARD'!FV78)","v":"n.d."},{"$f":"IF('[1]MONE(M)CARD'!FV78=\"\",\"\",'[1]MONE(M)CARD'!FV78)","v":""},{"$f":"IF('[1]MONE(M)CARD'!GD78=\"\",\"\",'[1]MONE(M)CARD'!GD78)","v":"n.d."},{"$f":"IF('[1]MONE(M)CARD'!GE78=\"\",\"\",'[1]MONE(M)CARD'!GE78)","v":"n.d."},"n.d.","n.d.","n.d.","n.d.","n.d.",{"$f":"IFERROR(+AF71+AH71,\"n.d.\")","v":"n.d."},"n.d.","n.d.",null,"n.d.","n.d.","n.d.","n.d.","n.d.",{"$f":"IF('[1]MONE(M)CAPARD'!GS78=\"\",\"\",'[1]MONE(M)CAPARD'!GS78)","v":"n.d."},{"$f":"IF('[1]MONE(M)CARD'!HA78=\"\",\"\",'[1]MONE(M)CAPARD'!HA78)","v":"n.d."},{"$f":"IF('[1]MONE(M)CAPARD'!HB78=\"\",\"\",'[1]MONE(M)CAPARD'!HB78)","v":"n.d."},"n.d.","n.d.","n.d.","n.d.","n.d.","n.d.","n.d.","n.d.","n.d.","n.d.","n.d.","n.d.","n.d.","n.d.",{"$f":"IF('[1]MONE(M)CAPARD'!AS78=\"\",\"\",'[1]MONE(M)CAPARD'!AS78)","v":"n.d."},{"$f":"IF('[1]MONE(M)CAPARD'!AT78=\"\",\"\",'[1]MONE(M)CAPARD'!AT78)","v":"n.a."},{"$f":"IF('[1]MONE(M)CAPARD'!AU78=\"\",\"\",'[1]MONE(M)CAPARD'!AU78)","v":"n.d."},{"$f":"IF('[1]MONE(M)CAPARD'!AV78=\"\",\"\",'[1]MONE(M)CAPARD'!AV78)","v":"n.d."},{"$f":"IF('[1]MONE(M)CAPARD'!AW78=\"\",\"\",'[1]MONE(M)CAPARD'!AW78)","v":"n.a."},{"$f":"IF('[1]MONE(M)CAPARD'!AX78=\"\",\"\",'[1]MONE(M)CAPARD'!AX78)","v":"n.d."},{"$f":"IF('[1]MONE(M)CAPARD'!AY78=\"\",\"\",'[1]MONE(M)CAPARD'!AY78)","v":"n.a."},{"$f":"IF('[1]FISCAL(M)'!$K78=\"\",\"\",'[1]FISCAL(M)'!$K78)","v":"n.d."},{"$f":"IF('[1]FISCAL(M)'!$L78=\"\",\"\",'[1]FISCAL(M)'!$L78)","v":"n.d."},{"$f":"IF('[1]FISCAL(M)'!$AY78=\"\",\"\",'[1]FISCAL(M)'!$AY78)","v":"n.d."},{"$f":"IF('[1]FISCAL(M)'!$BI78=\"\",\"\",'[1]FISCAL(M)'!$BI78)","v":"n.d."},{"$f":"IF('[1]FISCAL(M)'!$BS78=\"\",\"\",'[1]FISCAL(M)'!$BS78)","v":"n.d."},{"$f":"IF('[1]FISCAL(M)'!$AZ78=\"\",\"\",'[1]FISCAL(M)'!$AZ78)","v":"n.d."},{"$f":"IF('[1]FISCAL(M)'!$BJ78=\"\",\"\",'[1]FISCAL(M)'!$BJ78)","v":"n.d."},{"$f":"IF('[1]FISCAL(M)'!$BT78=\"\",\"\",'[1]FISCAL(M)'!$BT78)","v":"n.d."},{"$f":"IF('[2]MONE(M)'!$AO78=\"\",\"\",'[2]MONE(M)'!$AO78)","v":"n.d."},{"$f":"IF('[3]MONE(M)'!$AO78=\"\",\"\",'[3]MONE(M)'!$AO78)","v":"n.d."},{"$f":"IF('[4]MONE(M)'!$AO78=\"\",\"\",'[4]MONE(M)'!$AO78)","v":"n.d."},{"$f":"+'[5]MONE(M)'!$AO78","v":"n.d."},{"$f":"IF('[6]MONE(M)'!$AO78=\"\",\"\",'[6]MONE(M)'!$AO78)","v":"n.d."},{"$f":"IF('[7]MONE(M)'!$AO78=\"\",\"\",'[7]MONE(M)'!$AO78)","v":"n.d."},{"$f":"IF('[8]MONE(M)'!$AO78=\"\",\"\",'[8]MONE(M)'!$AO78)","v":"n.d."},"n.d.","n.d.","n.d.","n.d.","n.d.","n.d.","n.d.",{"$f":"IF('[1]FISCAL(M)'!$K78=\"\",\"\",'[1]FISCAL(M)'!$K78)","v":"n.d."},"n.d.","n.d.",{"$f":"IF('[1]FISCAL(M)'!$L78=\"\",\"\",'[1]FISCAL(M)'!$L78)","v":"n.d."},"n.d.","n.d.","n.d.","n.d.","n.d.","n.d.","n.d.","n.d.","n.d.","n.d.","n.d.","n.d.","n.d.","n.d.","n.d.","n.d.","n.d.","n.d."]
[1995,"octubre","1995-octubre",{"$f":"IF('[1]REAL IPC(M)'!$AL79=\"\",\"\",+'[1]REAL IPC(M)'!$AL79)","v":13.659499421761812},{"$f":"IF('[1]REAL IPC(M)'!$BE79=\"\",\"\",+'[1]REAL IPC(M)'!$BE79)","v":12.478544612832687},{"$f":"IF('[1]REAL IPC(M)'!$AM79=\"\",\"\",+'[1]REAL IPC(M)'!$AM79)","v":12.449893988220694},{"$f":"IF('[1]REAL IPC(M)'!$BI79=\"\",\"\",+'[1]REAL IPC(M)'!$BI79)","v":11.46250718769306},{"$f":"IF('[1]REAL IMAE(M)'!BJ79=\"\",\"\",'[1]REAL IMAE(M)'!BJ79)","v":"n.d."},{"$f":"IF('[1]REAL IMAE(M)'!BK79=\"\",\"\",'[1]REAL IMAE(M)'!BK79)","v":"n.d."},{"$f":"IF('[1]REAL IMAE(M)'!BN79=\"\",\"\",'[1]REAL IMAE(M)'!BN79)","v":"n.d."},{"$f":"IF('[1]REAL IMAE(M)'!BO79=\"\",\"\",'[1]REAL IMAE(M)'!BO79)","v":"n.d."},{"$f":"IF('[1]EXT RIN(M)'!$K79=\"\",\"\",'[1]EXT RIN(M)'!$K79)","v":"n.d."},"",{"$f":"IF('[1]EXT RIN(M)'!$L79=\"\",\"\",'[1]EXT RIN(M)'!$L79)","v":"n.d."},"",{"$f":"IF('[1]MONE(M)CARD'!EG79=\"\",\"\",'[1]MONE(M)CARD'!EG79)","v":"n.d."},{"$f":"IF('[1]MONE(M)CARD'!EK79=\"\",\"\",'[1]MONE(M)CARD'!EK79)","v":"n.d."},{"$f":"IF('[1]MONE(M)CARD'!EP79=\"\",\"\",'[1]MONE(M)CARD'!EP79)","v":"n.d."},{"$f":"IF('[1]MONE(M)CARD'!ES79=\"\",\"\",'[1]MONE(M)CARD'!ES79)","v":"n.d."},{"$f":"IF('[1]MONE(M)CARD'!EV79=\"\",\"\",'[1]MONE(M)CARD'!EV79)","v":"n.d."},{"$f":"IF('[1]MONE(M)CARD'!EZ79=\"\",\"\",'[1]MONE(M)CARD'!EZ79)","v":"n.d."},{"$f":"IF('[1]MONE(M)CAPARD'!FC79=\"\",\"\",'[1]MONE(M)CAPARD'!FC79)","v":"n.d."},{"$f":"IF('[1]MONE(M)CAPARD'!FG79=\"\",\"\",'[1]MONE(M)CAPARD'!FG79)","v":"n.d."},{"$f":"IF('[1]MONE(M)CAPARD'!FL79=\"\",\"\",'[1]MONE(M)CAPARD'!FL79)","v":"n.d."},{"$f":"IF('[1]MONE(M)CAPARD'!FO79=\"\",\"\",'[1]MONE(M)CAPARD'!FO79)","v":"n.d."},{"$f":"IF('[1]MONE(M)CAPARD'!FR79=\"\",\"\",'[1]MONE(M)CAPARD'!FR79)","v":"n.d."},{"$f":"IF('[1]MONE(M)CAPARD'!FV79=\"\",\"\",'[1]MONE(M)CAPARD'!FV79)","v":"n.d."},{"$f":"IF('[1]MONE(M)CARD'!FV79=\"\",\"\",'[1]MONE(M)CARD'!FV79)","v":""},{"$f":"IF('[1]MONE(M)CARD'!GD79=\"\",\"\",'[1]MONE(M)CARD'!GD79)","v":"n.d."},{"$f":"IF('[1]MONE(M)CARD'!GE79=\"\",\"\",'[1]MONE(M)CARD'!GE79)","v":"n.d."},"n.d.","n.d.","n.d.","n.d.","n.d.","n.d.","n.d.","n.d.",null,"n.d.","n.d.","n.d.","n.d.","n.d.",{"$f":"IF('[1]MONE(M)CAPARD'!GS79=\"\",\"\",'[1]MONE(M)CAPARD'!GS79)","v":"n.d."},{"$f":"IF('[1]MONE(M)CARD'!HA79=\"\",\"\",'[1]MONE(M)CAPARD'!HA79)","v":"n.d."},{"$f":"IF('[1]MONE(M)CAPARD'!HB79=\"\",\"\",'[1]MONE(M)CAPARD'!HB79)","v":"n.d."},"n.d.","n.d.","n.d.","n.d.","n.d.","n.d.","n.d.","n.d.","n.d.","n.d.","n.d.","n.d.","n.d.","n.d.",{"$f":"IF('[1]MONE(M)CAPARD'!AS79=\"\",\"\",'[1]MONE(M)CAPARD'!AS79)","v":"n.d."},{"$f":"IF('[1]MONE(M)CAPARD'!AT79=\"\",\"\",'[1]MONE(M)CAPARD'!AT79)","v":"n.a."},{"$f":"IF('[1]MONE(M)CAPARD'!AU79=\"\",\"\",'[1]MONE(M)CAPARD'!AU79)","v":"n.d."},{"$f":"IF('[1]MONE(M)CAPARD'!AV79=\"\",\"\",'[1]MONE(M)CAPARD'!AV79)","v":"n.d."},{"$f":"IF('[1]MONE(M)CAPARD'!AW79=\"\",\"\",'[1]MONE(M)CAPARD'!AW79)","v":"n.a."},{"$f":"IF('[1]MONE(M)CAPARD'!AX79=\"\",\"\",'[1]MONE(M)CAPARD'!AX79)","v":"n.d."},{"$f":"IF('[1]MONE(M)CAPARD'!AY79=\"\",\"\",'[1]MONE(M)CAPARD'!AY79)","v":"n.a."},{"$f":"IF('[1]FISCAL(M)'!$K79=\"\",\"\",'[1]FISCAL(M)'!$K79)","v":"n.d."},{"$f":"IF('[1]FISCAL(M)'!$L79=\"\",\"\",'[1]FISCAL(M)'!$L79)","v":"n.d."},{"$f":"IF('[1]FISCAL(M)'!$AY79=\"\",\"\",'[1]FISCAL(M)'!$AY79)","v":"n.d."},{"$f":"IF('[1]FISCAL(M)'!$BI79=\"\",\"\",'[1]FISCAL(M)'!$BI79)","v":"n.d."},{"$f":"IF('[1]FISCAL(M)'!$BS79=\"\",\"\",'[1]FISCAL(M)'!$BS79)","v":"n.d."},{"$f":"IF('[1]FISCAL(M)'!$AZ79=\"\",\"\",'[1]FISCAL(M)'!$AZ79)","v":"n.d."},{"$f":"IF('[1]FISCAL(M)'!$BJ79=\"\",\"\",'[1]FISCAL(M)'!$BJ79)","v":"n.d."},{"$f":"IF('[1]FISCAL(M)'!$BT79=\"\",\"\",'[1]FISCAL(M)'!$BT79)","v":"n.d."},{"$f":"IF('[2]MONE(M)'!$AO79=\"\",\"\",'[2]MONE(M)'!$AO79)","v":"n.d."},{"$f":"IF('[3]MONE(M)'!$AO79=\"\",\"\",'[3]MONE(M)'!$AO79)","v":"n.d."},{"$f":"IF('[4]MONE(M)'!$AO79=\"\",\"\",'[4]MONE(M)'!$AO79)","v":"n.d."},{"$f":"+'[5]MONE(M)'!$AO79","v":"n.d."},{"$f":"IF('[6]MONE(M)'!$AO79=\"\",\"\",'[6]MONE(M)'!$AO79)","v":"n.d."},{"$f":"IF('[7]MONE(M)'!$AO79=\"\",\"\",'[7]MONE(M)'!$AO79)","v":"n.d."},{"$f":"IF('[8]MONE(M)'!$AO79=\"\",\"\",'[8]MONE(M)'!$AO79)","v":"n.d."},"n.d.","n.d.","n.d.","n.d.","n.d.","n.d.","n.d.",{"$f":"IF('[1]FISCAL(M)'!$K79=\"\",\"\",'[1]FISCAL(M)'!$K79)","v":"n.d."},"n.d.","n.d.",{"$f":"IF('[1]FISCAL(M)'!$L79=\"\",\"\",'[1]FISCAL(M)'!$L79)","v":"n.d."},"n.d.","n.d.","n.d.","n.d.","n.d.","n.d.","n.d.","n.d.","n.d.","n.d.","n.d.","n.d.","n.d.","n.d.","n.d.","n.d.","n.d.","n.d."]
[1995,"noviembre","1995-noviembre",{"$f":"IF('[1]REAL IPC(M)'!$AL80=\"\",\"\",+'[1]REAL IPC(M)'!$AL80)","v":13.815609904885084},{"$f":"IF('[1]REAL IPC(M)'!$BE80=\"\",\"\",+'[1]REAL IPC(M)'!$BE80)","v":12.314154415381928},{"$f":"IF('[1]REAL IPC(M)'!$AM80=\"\",\"\",+'[1]REAL IPC(M)'!$AM80)","v":12.555759423356028},{"$f":"IF('[1]REAL IPC(M)'!$BI80=\"\",\"\",+'[1]REAL IPC(M)'!$BI80)","v":11.319391914130739},{"$f":"IF('[1]REAL IMAE(M)'!BJ80=\"\",\"\",'[1]REAL IMAE(M)'!BJ80)","v":"n.d."},{"$f":"IF('[1]REAL IMAE(M)'!BK80=\"\",\"\",'[1]REAL IMAE(M)'!BK80)","v":"n.d."},{"$f":"IF('[1]REAL IMAE(M)'!BN80=\"\",\"\",'[1]REAL IMAE(M)'!BN80)","v":"n.d."},{"$f":"IF('[1]REAL IMAE(M)'!BO80=\"\",\"\",'[1]REAL IMAE(M)'!BO80)","v":"n.d."},{"$f":"IF('[1]EXT RIN(M)'!$K80=\"\",\"\",'[1]EXT RIN(M)'!$K80)","v":"n.d."},"",{"$f":"IF('[1]EXT RIN(M)'!$L80=\"\",\"\",'[1]EXT RIN(M)'!$L80)","v":"n.d."},"",{"$f":"IF('[1]MONE(M)CARD'!EG80=\"\",\"\",'[1]MONE(M)CARD'!EG80)","v":"n.d."},{"$f":"IF('[1]MONE(M)CARD'!EK80=\"\",\"\",'[1]MONE(M)CARD'!EK80)","v":"n.d."},{"$f":"IF('[1]MONE(M)CARD'!EP80=\"\",\"\",'[1]MONE(M)CARD'!EP80)","v":"n.d."},{"$f":"IF('[1]MONE(M)CARD'!ES80=\"\",\"\",'[1]MONE(M)CARD'!ES80)","v":"n.d."},{"$f":"IF('[1]MONE(M)CARD'!EV80=\"\",\"\",'[1]MONE(M)CARD'!EV80)","v":"n.d."},{"$f":"IF('[1]MONE(M)CARD'!EZ80=\"\",\"\",'[1]MONE(M)CARD'!EZ80)","v":"n.d."},{"$f":"IF('[1]MONE(M)CAPARD'!FC80=\"\",\"\",'[1]MONE(M)CAPARD'!FC80)","v":"n.d."},{"$f":"IF('[1]MONE(M)CAPARD'!FG80=\"\",\"\",'[1]MONE(M)CAPARD'!FG80)","v":"n.d."},{"$f":"IF('[1]MONE(M)CAPARD'!FL80=\"\",\"\",'[1]MONE(M)CAPARD'!FL80)","v":"n.d."},{"$f":"IF('[1]MONE(M)CAPARD'!FO80=\"\",\"\",'[1]MONE(M)CAPARD'!FO80)","v":"n.d."},{"$f":"IF('[1]MONE(M)CAPARD'!FR80=\"\",\"\",'[1]MONE(M)CAPARD'!FR80)","v":"n.d."},{"$f":"IF('[1]MONE(M)CAPARD'!FV80=\"\",\"\",'[1]MONE(M)CAPARD'!FV80)","v":"n.d."},{"$f":"IF('[1]MONE(M)CARD'!FV80=\"\",\"\",'[1]MONE(M)CARD'!FV80)","v":""},{"$f":"IF('[1]MONE(M)CARD'!GD80=\"\",\"\",'[1]MONE(M)CARD'!GD80)","v":"n.d."},{"$f":"IF('[1]MONE(M)CARD'!GE80=\"\",\"\",'[1]MONE(M)CARD'!GE80)","v":"n.d."},"n.d.","n.d.","n.d.","n.d.","n.d.","n.d.","n.d.","n.d.",null,"n.d.","n.d.","n.d.","n.d.","n.d.",{"$f":"IF('[1]MONE(M)CAPARD'!GS80=\"\",\"\",'[1]MONE(M)CAPARD'!GS80)","v":"n.d."},{"$f":"IF('[1]MONE(M)CARD'!HA80=\"\",\"\",'[1]MONE(M)CAPARD'!HA80)","v":"n.d."},{"$f":"IF('[1]MONE(M)CAPARD'!HB80=\"\",\"\",'[1]MONE(M)CAPARD'!HB80)","v":"n.d."},"n.d.","n.d.","n.d.","n.d.","n.d.","n.d.","n.d.","n.d.","n.d.","n.d.","n.d.","n.d.","n.d.","n.d.",{"$f":"IF('[1]MONE(M)CAPARD'!AS80=\"\",\"\",'[1]MONE(M)CAPARD'!AS80)","v":"n.d."},{"$f":"IF('[1]MONE(M)CAPARD'!AT80=\"\",\"\",'[1]MONE(M)CAPARD'!AT80)","v":"n.a."},{"$f":"IF('[1]MONE(M)CAPARD'!AU80=\"\",\"\",'[1]MONE(M)CAPARD'!AU80)","v":"n.d."},{"$f":"IF('[1]MONE(M)CAPARD'!AV80=\"\",\"\",'[1]MONE(M)CAPARD'!AV80)","v":"n.d."},{"$f":"IF('[1]MONE(M)CAPARD'!AW80=\"\",\"\",'[1]MONE(M)CAPARD'!AW80)","v":"n.a."},{"$f":"IF('[1]MONE(M)CAPARD'!AX80=\"\",\"\",'[1]MONE(M)CAPARD'!AX80)","v":"n.d."},{"$f":"IF('[1]MONE(M)CAPARD'!AY80=\"\",\"\",'[1]MONE(M)CAPARD'!AY80)","v":"n.a."},{"$f":"IF('[1]FISCAL(M)'!$K80=\"\",\"\",'[1]FISCAL(M)'!$K80)","v":"n.d."},{"$f":"IF('[1]FISCAL(M)'!$L80=\"\",\"\",'[1]FISCAL(M)'!$L80)","v":"n.d."},{"$f":"IF('[1]FISCAL(M)'!$AY80=\"\",\"\",'[1]FISCAL(M)'!$AY80)","v":"n.d."},{"$f":"IF('[1]FISCAL(M)'!$BI80=\"\",\"\",'[1]FISCAL(M)'!$BI80)","v":"n.d."},{"$f":"IF('[1]FISCAL(M)'!$BS80=\"\",\"\",'[1]FISCAL(M)'!$BS80)","v":"n.d."},{"$f":"IF('[1]FISCAL(M)'!$AZ80=\"\",\"\",'[1]FISCAL(M)'!$AZ80)","v":"n.d."},{"$f":"IF('[1]FISCAL(M)'!$BJ80=\"\",\"\",'[1]FISCAL(M)'!$BJ80)","v":"n.d."},{"$f":"IF('[1]FISCAL(M)'!$BT80=\"\",\"\",'[1]FISCAL(M)'!$BT80)","v":"n.d."},{"$f":"IF('[2]MONE(M)'!$AO80=\"\",\"\",'[2]MONE(M)'!$AO80)","v":"n.d."},{"$f":"IF('[3]MONE(M)'!$AO80=\"\",\"\",'[3]MONE(M)'!$AO80)","v":"n.d."},{"$f":"IF('[4]MONE(M)'!$AO80=\"\",\"\",'[4]MONE(M)'!$AO80)","v":"n.d."},{"$f":"+'[5]MONE(M)'!$AO80","v":"n.d."},{"$f":"IF('[6]MONE(M)'!$AO80=\"\",\"\",'[6]MONE(M)'!$AO80)","v":"n.d."},{"$f":"IF('[7]MONE(M)'!$AO80=\"\",\"\",'[7]MONE(M)'!$AO80)","v":"n.d."},{"$f":"IF('[8]MONE(M)'!$AO80=\"\",\"\",'[8]MONE(M)'!$AO80)","v":"n.d."},"n.d.","n.d.","n.d.","n.d.","n.d.","n.d.","n.d.",{"$f":"IF('[1]FISCAL(M)'!$K80=\"\",\"\",'[1]FISCAL(M)'!$K80)","v":"n.d."},"n.d.","n.d.",{"$f":"IF('[1]FISCAL(M)'!$L80=\"\",\"\",'[1]FISCAL(M)'!$L80)","v":"n.d."},"n.d.","n.d.","n.d.","n.d.","n.d.","n.d.","n.d.","n.d.","n.d.","n.d.","n.d.","n.d.","n.d.","n.d.","n.d.","n.d.","n.d.","n.d."]
[1995,"diciembre","1995-diciembre",{"$f":"IF('[1]REAL IPC(M)'!$AL81=\"\",\"\",+'[1]REAL IPC(M)'!$AL81)","v":12.668591764143255},{"$f":"IF('[1]REAL IPC(M)'!$BE81=\"\",\"\",+'[1]REAL IPC(M)'!$BE81)","v":12.149121451512478},{"$f":"IF('[1]REAL IPC(M)'!$AM81=\"\",\"\",+'[1]REAL IPC(M)'!$AM81)","v":11.55220800486909},{"$f":"IF('[1]REAL IPC(M)'!$BI81=\"\",\"\",+'[1]REAL IPC(M)'!$BI81)","v":11.175076504921201},{"$f":"IF('[1]REAL IMAE(M)'!BJ81=\"\",\"\",'[1]REAL IMAE(M)'!BJ81)","v":"n.d."},{"$f":"IF('[1]REAL IMAE(M)'!BK81=\"\",\"\",'[1]REAL IMAE(M)'!BK81)","v":"n.d."},{"$f":"IF('[1]REAL IMAE(M)'!BN81=\"\",\"\",'[1]REAL IMAE(M)'!BN81)","v":"n.d."},{"$f":"IF('[1]REAL IMAE(M)'!BO81=\"\",\"\",'[1]REAL IMAE(M)'!BO81)","v":"n.d."},{"$f":"IF('[1]EXT RIN(M)'!$K81=\"\",\"\",'[1]EXT RIN(M)'!$K81)","v":"n.d."},"n.d.",{"$f":"IF('[1]EXT RIN(M)'!$L81=\"\",\"\",'[1]EXT RIN(M)'!$L81)","v":"n.d."},"n.d.",{"$f":"IF('[1]MONE(M)CARD'!EG81=\"\",\"\",'[1]MONE(M)CARD'!EG81)","v":"n.d."},{"$f":"IF('[1]MONE(M)CARD'!EK81=\"\",\"\",'[1]MONE(M)CARD'!EK81)","v":"n.d."},{"$f":"IF('[1]MONE(M)CARD'!EP81=\"\",\"\",'[1]MONE(M)CARD'!EP81)","v":"n.d."},{"$f":"IF('[1]MONE(M)CARD'!ES81=\"\",\"\",'[1]MONE(M)CARD'!ES81)","v":"n.d."},{"$f":"IF('[1]MONE(M)CARD'!EV81=\"\",\"\",'[1]MONE(M)CARD'!EV81)","v":"n.d."},{"$f":"IF('[1]MONE(M)CARD'!EZ81=\"\",\"\",'[1]MONE(M)CARD'!EZ81)","v":"n.d."},{"$f":"IF('[1]MONE(M)CAPARD'!FC81=\"\",\"\",'[1]MONE(M)CAPARD'!FC81)","v":"n.d."},{"$f":"IF('[1]MONE(M)CAPARD'!FG81=\"\",\"\",'[1]MONE(M)CAPARD'!FG81)","v":"n.d."},{"$f":"IF('[1]MONE(M)CAPARD'!FL81=\"\",\"\",'[1]MONE(M)CAPARD'!FL81)","v":"n.d."},{"$f":"IF('[1]MONE(M)CAPARD'!FO81=\"\",\"\",'[1]MONE(M)CAPARD'!FO81)","v":"n.d."},{"$f":"IF('[1]MONE(M)CAPARD'!FR81=\"\",\"\",'[1]MONE(M)CAPARD'!FR81)","v":"n.d."},{"$f":"IF('[1]MONE(M)CAPARD'!FV81=\"\",\"\",'[1]MONE(M)CAPARD'!FV81)","v":"n.d."},{"$f":"IF('[1]MONE(M)CARD'!FV81=\"\",\"\",'[1]MONE(M)CARD'!FV81)","v":""},{"$f":"IF('[1]MONE(M)CARD'!GD81=\"\",\"\",'[1]MONE(M)CARD'!GD81)","v":"n.d."},{"$f":"IF('[1]MONE(M)CARD'!GE81=\"\",\"\",'[1]MONE(M)CARD'!GE81)","v":"n.d."},"n.d.","n.d.","n.d.","n.d.","n.d.","n.d.","n.d.","n.d.",null,"n.d.","n.d.","n.d.","n.d.","n.d.",{"$f":"IF('[1]MONE(M)CAPARD'!GS81=\"\",\"\",'[1]MONE(M)CAPARD'!GS81)","v":"n.d."},{"$f":"IF('[1]MONE(M)CARD'!HA81=\"\",\"\",'[1]MONE(M)CAPARD'!HA81)","v":"n.d."},{"$f":"IF('[1]MONE(M)CAPARD'!HB81=\"\",\"\",'[1]MONE(M)CAPARD'!HB81)","v":"n.d."},"n.d.","n.d.","n.d.","n.d.","n.d.","n.d.","n.d.","n.d.","n.d.","n.d.","n.d.","n.d.","n.d.","n.d.",{"$f":"IF('[1]MONE(M)CAPARD'!AS81=\"\",\"\",'[1]MONE(M)CAPARD'!AS81)","v":"n.d."},{"$f":"IF('[1]MONE(M)CAPARD'!AT81=\"\",\"\",'[1]MONE(M)CAPARD'!AT81)","v":"n.a."},{"$f":"IF('[1]MONE(M)CAPARD'!AU81=\"\",\"\",'[1]MONE(M)CAPARD'!AU81)","v":"n.d."},{"$f":"IF('[1]MONE(M)CAPARD'!AV81=\"\",\"\",'[1]MONE(M)CAPARD'!AV81)","v":"n.d."},{"$f":"IF('[1]MONE(M)CAPARD'!AW81=\"\",\"\",'[1]MONE(M)CAPARD'!AW81)","v":"n.a."},{"$f":"IF('[1]MONE(M)CAPARD'!AX81=\"\",\"\",'[1]MONE(M)CAPARD'!AX81)","v":"n.d."},{"$f":"IF('[1]MONE(M)CAPARD'!AY81=\"\",\"\",'[1]MONE(M)CAPARD'!AY81)","v":"n.a."},{"$f":"IF('[1]FISCAL(M)'!$K81=\"\",\"\",'[1]FISCAL(M)'!$K81)","v":"n.d."},{"$f":"IF('[1]FISCAL(M)'!$L81=\"\",\"\",'[1]FISCAL(M)'!$L81)","v":"n.d."},{"$f":"IF('[1]FISCAL(M)'!$AY81=\"\",\"\",'[1]FISCAL(M)'!$AY81)","v":"n.d."},{"$f":"IF('[1]FISCAL(M)'!$BI81=\"\",\"\",'[1]FISCAL(M)'!$BI81)","v":"n.d."},{"$f":"IF('[1]FISCAL(M)'!$BS81=\"\",\"\",'[1]FISCAL(M)'!$BS81)","v":"n.d."},{"$f":"IF('[1]FISCAL(M)'!$AZ81=\"\",\"\",'[1]FISCAL(M)'!$AZ81)","v":"n.d."},{"$f":"IF('[1]FISCAL(M)'!$BJ81=\"\",\"\",'[1]FISCAL(M)'!$BJ81)","v":"n.d."},{"$f":"IF('[1]FISCAL(M)'!$BT81=\"\",\"\",'[1]FISCAL(M)'!$BT81)","v":"n.d."},{"$f":"IF('[2]MONE(M)'!$AO81=\"\",\"\",'[2]MONE(M)'!$AO81)","v":"n.d."},{"$f":"IF('[3]MONE(M)'!$AO81=\"\",\"\",'[3]MONE(M)'!$AO81)","v":"n.d."},{"$f":"IF('[4]MONE(M)'!$AO81=\"\",\"\",'[4]MONE(M)'!$AO81)","v":"n.d."},{"$f":"+'[5]MONE(M)'!$AO81","v":"n.d."},{"$f":"IF('[6]MONE(M)'!$AO81=\"\",\"\",'[6]MONE(M)'!$AO81)","v":"n.d."},{"$f":"IF('[7]MONE(M)'!$AO81=\"\",\"\",'[7]MONE(M)'!$AO81)","v":"n.d."},{"$f":"IF('[8]MONE(M)'!$AO81=\"\",\"\",'[8]MONE(M)'!$AO81)","v":"n.d."},"n.d.","n.d.","n.d.","n.d.","n.d.","n.d.","n.d.",{"$f":"IF('[1]FISCAL(M)'!$K81=\"\",\"\",'[1]FISCAL(M)'!$K81)","v":"n.d."},"n.d.","n.d.",{"$f":"IF('[1]FISCAL(M)'!$L81=\"\",\"\",'[1]FISCAL(M)'!$L81)","v":"n.d."},"n.d.","n.d.","n.d.","n.d.","n.d.","n.d.","n.d.","n.d.","n.d.","n.d.","n.d.","n.d.","n.d.","n.d.","n.d.","n.d.","n.d.","n.d."]
[1996,"enero","1996-enero",{"$f":"IF('[1]REAL IPC(M)'!$AL82=\"\",\"\",+'[1]REAL IPC(M)'!$AL82)","v":11.997002985377115},{"$f":"IF('[1]REAL IPC(M)'!$BE82=\"\",\"\",+'[1]REAL IPC(M)'!$BE82)","v":11.983440001171687},{"$f":"IF('[1]REAL IPC(M)'!$AM82=\"\",\"\",+'[1]REAL IPC(M)'!$AM82)","v":11.037835016052444},{"$f":"IF('[1]REAL IPC(M)'!$BI82=\"\",\"\",+'[1]REAL IPC(M)'!$BI82)","v":11.029563815984456},{"$f":"IF('[1]REAL IMAE(M)'!BJ82=\"\",\"\",'[1]REAL IMAE(M)'!BJ82)","v":"n.d."},{"$f":"IF('[1]REAL IMAE(M)'!BK82=\"\",\"\",'[1]REAL IMAE(M)'!BK82)","v":"n.d."},{"$f":"IF('[1]REAL IMAE(M)'!BN82=\"\",\"\",'[1]REAL IMAE(M)'!BN82)","v":"n.d."},{"$f":"IF('[1]REAL IMAE(M)'!BO82=\"\",\"\",'[1]REAL IMAE(M)'!BO82)","v":"n.d."},{"$f":"IF('[1]EXT RIN(M)'!$K82=\"\",\"\",'[1]EXT RIN(M)'!$K82)","v":"n.d."},"",{"$f":"IF('[1]EXT RIN(M)'!$L82=\"\",\"\",'[1]EXT RIN(M)'!$L82)","v":"n.d."},"",{"$f":"IF('[1]MONE(M)CARD'!EG82=\"\",\"\",'[1]MONE(M)CARD'!EG82)","v":"n.d."},{"$f":"IF('[1]MONE(M)CARD'!EK82=\"\",\"\",'[1]MONE(M)CARD'!EK82)","v":"n.d."},{"$f":"IF('[1]MONE(M)CARD'!EP82=\"\",\"\",'[1]MONE(M)CARD'!EP82)","v":"n.d."},{"$f":"IF('[1]MONE(M)CARD'!ES82=\"\",\"\",'[1]MONE(M)CARD'!ES82)","v":"n.d."},{"$f":"IF('[1]MONE(M)CARD'!EV82=\"\",\"\",'[1]MONE(M)CARD'!EV82)","v":"n.d."},{"$f":"IF('[1]MONE(M)CARD'!EZ82=\"\",\"\",'[1]MONE(M)CARD'!EZ82)","v":"n.d."},{"$f":"IF('[1]MONE(M)CAPARD'!FC82=\"\",\"\",'[1]MONE(M)CAPARD'!FC82)","v":"n.d."},{"$f":"IF('[1]MONE(M)CAPARD'!FG82=\"\",\"\",'[1]MONE(M)CAPARD'!FG82)","v":"n.d."},{"$f":"IF('[1]MONE(M)CAPARD'!FL82=\"\",\"\",'[1]MONE(M)CAPARD'!FL82)","v":"n.d."},{"$f":"IF('[1]MONE(M)CAPARD'!FO82=\"\",\"\",'[1]MONE(M)CAPARD'!FO82)","v":"n.d."},{"$f":"IF('[1]MONE(M)CAPARD'!FR82=\"\",\"\",'[1]MONE(M)CAPARD'!FR82)","v":"n.d."},{"$f":"IF('[1]MONE(M)CAPARD'!FV82=\"\",\"\",'[1]MONE(M)CAPARD'!FV82)","v":"n.d."},{"$f":"IF('[1]MONE(M)CARD'!FV82=\"\",\"\",'[1]MONE(M)CARD'!FV82)","v":""},{"$f":"IF('[1]MONE(M)CARD'!GD82=\"\",\"\",'[1]MONE(M)CARD'!GD82)","v":"n.d."},{"$f":"IF('[1]MONE(M)CARD'!GE82=\"\",\"\",'[1]MONE(M)CARD'!GE82)","v":"n.d."},"n.d.","n.d.","n.d.","n.d.","n.d.","n.d.","n.d.","n.d.",null,"n.d.","n.d.","n.d.","n.d.","n.d.",{"$f":"IF('[1]MONE(M)CAPARD'!GS82=\"\",\"\",'[1]MONE(M)CAPARD'!GS82)","v":"n.d."},{"$f":"IF('[1]MONE(M)CARD'!HA82=\"\",\"\",'[1]MONE(M)CAPARD'!HA82)","v":"n.d."},{"$f":"IF('[1]MONE(M)CAPARD'!HB82=\"\",\"\",'[1]MONE(M)CAPARD'!HB82)","v":"n.d."},"n.d.","n.d.","n.d.","n.d.","n.d.","n.d.","n.d.","n.d.","n.d.","n.d.","n.d.","n.d.","n.d.","n.d.",{"$f":"IF('[1]MONE(M)CAPARD'!AS82=\"\",\"\",'[1]MONE(M)CAPARD'!AS82)","v":"n.d."},{"$f":"IF('[1]MONE(M)CAPARD'!AT82=\"\",\"\",'[1]MONE(M)CAPARD'!AT82)","v":"n.a."},{"$f":"IF('[1]MONE(M)CAPARD'!AU82=\"\",\"\",'[1]MONE(M)CAPARD'!AU82)","v":"n.d."},{"$f":"IF('[1]MONE(M)CAPARD'!AV82=\"\",\"\",'[1]MONE(M)CAPARD'!AV82)","v":"n.d."},{"$f":"IF('[1]MONE(M)CAPARD'!AW82=\"\",\"\",'[1]MONE(M)CAPARD'!AW82)","v":"n.a."},{"$f":"IF('[1]MONE(M)CAPARD'!AX82=\"\",\"\",'[1]MONE(M)CAPARD'!AX82)","v":"n.d."},{"$f":"IF('[1]MONE(M)CAPARD'!AY82=\"\",\"\",'[1]MONE(M)CAPARD'!AY82)","v":"n.a."},{"$f":"IF('[1]FISCAL(M)'!$K82=\"\",\"\",'[1]FISCAL(M)'!$K82)","v":"n.d."},{"$f":"IF('[1]FISCAL(M)'!$L82=\"\",\"\",'[1]FISCAL(M)'!$L82)","v":"n.d."},{"$f":"IF('[1]FISCAL(M)'!$AY82=\"\",\"\",'[1]FISCAL(M)'!$AY82)","v":"n.d."},{"$f":"IF('[1]FISCAL(M)'!$BI82=\"\",\"\",'[1]FISCAL(M)'!$BI82)","v":"n.d."},{"$f":"IF('[1]FISCAL(M)'!$BS82=\"\",\"\",'[1]FISCAL(M)'!$BS82)","v":"n.d."},{"$f":"IF('[1]FISCAL(M)'!$AZ82=\"\",\"\",'[1]FISCAL(M)'!$AZ82)","v":"n.d."},{"$f":"IF('[1]FISCAL(M)'!$BJ82=\"\",\"\",'[1]FISCAL(M)'!$BJ82)","v":"n.d."},{"$f":"IF('[1]FISCAL(M)'!$BT82=\"\",\"\",'[1]FISCAL(M)'!$BT82)","v":"n.d."},{"$f":"IF('[2]MONE(M)'!$AO82=\"\",\"\",'[2]MONE(M)'!$AO82)","v":"n.d."},{"$f":"IF('[3]MONE(M)'!$AO82=\"\",\"\",'[3]MONE(M)'!$AO82)","v":"n.d."},{"$f":"IF('[4]MONE(M)'!$AO82=\"\",\"\",'[4]MONE(M)'!$AO82)","v":"n.d."},{"$f":"+'[5]MONE(M)'!$AO82","v":"n.d."},{"$f":"IF('[6]MONE(M)'!$AO82=\"\",\"\",'[6]MONE(M)'!$AO82)","v":"n.d."},{"$f":"IF('[7]MONE(M)'!$AO82=\"\",\"\",'[7]MONE(M)'!$AO82)","v":"n.d."},{"$f":"IF('[8]MONE(M)'!$AO82=\"\",\"\",'[8]MONE(M)'!$AO82)","v":"n.d."},"n.d.","n.d.","n.d.","n.d.","n.d.","n.d.","n.d.",{"$f":"IF('[1]FISCAL(M)'!$K82=\"\",\"\",'[1]FISCAL(M)'!$K82)","v":"n.d."},"n.d.","n.d.",{"$f":"IF('[1]FISCAL(M)'!$L82=\"\",\"\",'[1]FISCAL(M)'!$L82)","v":"n.d."},"n.d.","n.d.","n.d.","n.d.","n.d.","n.d.","n.d.","n.d.","n.d.","n.d.","n.d.","n.d.","n.d.","n.d.","n.d.","n.d.","n.d.","n.d."]
[1996,"febrero","1996-febrero",{"$f":"IF('[1]REAL IPC(M)'!$AL83=\"\",\"\",+'[1]REAL IPC(M)'!$AL83)","v":11.872564175221068},{"$f":"IF('[1]REAL IPC(M)'!$BE83=\"\",\"\",+'[1]REAL IPC(M)'!$BE83)","v":11.817140727678076},{"$f":"IF('[1]REAL IPC(M)'!$AM83=\"\",\"\",+'[1]REAL IPC(M)'!$AM83)","v":10.924566883719567},{"$f":"IF('[1]REAL IPC(M)'!$BI83=\"\",\"\",+'[1]REAL IPC(M)'!$BI83)","v":10.882888992815554},{"$f":"IF('[1]REAL IMAE(M)'!BJ83=\"\",\"\",'[1]REAL IMAE(M)'!BJ83)","v":"n.d."},{"$f":"IF('[1]REAL IMAE(M)'!BK83=\"\",\"\",'[1]REAL IMAE(M)'!BK83)","v":"n.d."},{"$f":"IF('[1]REAL IMAE(M)'!BN83=\"\",\"\",'[1]REAL IMAE(M)'!BN83)","v":"n.d."},{"$f":"IF('[1]REAL IMAE(M)'!BO83=\"\",\"\",'[1]REAL IMAE(M)'!BO83)","v":"n.d."},{"$f":"IF('[1]EXT RIN(M)'!$K83=\"\",\"\",'[1]EXT RIN(M)'!$K83)","v":"n.d."},"",{"$f":"IF('[1]EXT RIN(M)'!$L83=\"\",\"\",'[1]EXT RIN(M)'!$L83)","v":"n.d."},"",{"$f":"IF('[1]MONE(M)CARD'!EG83=\"\",\"\",'[1]MONE(M)CARD'!EG83)","v":"n.d."},{"$f":"IF('[1]MONE(M)CARD'!EK83=\"\",\"\",'[1]MONE(M)CARD'!EK83)","v":"n.d."},{"$f":"IF('[1]MONE(M)CARD'!EP83=\"\",\"\",'[1]MONE(M)CARD'!EP83)","v":"n.d."},{"$f":"IF('[1]MONE(M)CARD'!ES83=\"\",\"\",'[1]MONE(M)CARD'!ES83)","v":"n.d."},{"$f":"IF('[1]MONE(M)CARD'!EV83=\"\",\"\",'[1]MONE(M)CARD'!EV83)","v":"n.d."},{"$f":"IF('[1]MONE(M)CARD'!EZ83=\"\",\"\",'[1]MONE(M)CARD'!EZ83)","v":"n.d."},{"$f":"IF('[1]MONE(M)CAPARD'!FC83=\"\",\"\",'[1]MONE(M)CAPARD'!FC83)","v":"n.d."},{"$f":"IF('[1]MONE(M)CAPARD'!FG83=\"\",\"\",'[1]MONE(M)CAPARD'!FG83)","v":"n.d."},{"$f":"IF('[1]MONE(M)CAPARD'!FL83=\"\",\"\",'[1]MONE(M)CAPARD'!FL83)","v":"n.d."},{"$f":"IF('[1]MONE(M)CAPARD'!FO83=\"\",\"\",'[1]MONE(M)CAPARD'!FO83)","v":"n.d."},{"$f":"IF('[1]MONE(M)CAPARD'!FR83=\"\",\"\",'[1]MONE(M)CAPARD'!FR83)","v":"n.d."},{"$f":"IF('[1]MONE(M)CAPARD'!FV83=\"\",\"\",'[1]MONE(M)CAPARD'!FV83)","v":"n.d."},{"$f":"IF('[1]MONE(M)CARD'!FV83=\"\",\"\",'[1]MONE(M)CARD'!FV83)","v":""},{"$f":"IF('[1]MONE(M)CARD'!GD83=\"\",\"\",'[1]MONE(M)CARD'!GD83)","v":"n.d."},{"$f":"IF('[1]MONE(M)CARD'!GE83=\"\",\"\",'[1]MONE(M)CARD'!GE83)","v":"n.d."},"n.d.","n.d.","n.d.","n.d.","n.d.","n.d.","n.d.","n.d.",null,"n.d.","n.d.","n.d.","n.d.","n.d.",{"$f":"IF('[1]MONE(M)CAPARD'!GS83=\"\",\"\",'[1]MONE(M)CAPARD'!GS83)","v":"n.d."},{"$f":"IF('[1]MONE(M)CARD'!HA83=\"\",\"\",'[1]MONE(M)CAPARD'!HA83)","v":"n.d."},{"$f":"IF('[1]MONE(M)CAPARD'!HB83=\"\",\"\",'[1]MONE(M)CAPARD'!HB83)","v":"n.d."},"n.d.","n.d.","n.d.","n.d.","n.d.","n.d.","n.d.","n.d.","n.d.","n.d.","n.d.","n.d.","n.d.","n.d.",{"$f":"IF('[1]MONE(M)CAPARD'!AS83=\"\",\"\",'[1]MONE(M)CAPARD'!AS83)","v":"n.d."},{"$f":"IF('[1]MONE(M)CAPARD'!AT83=\"\",\"\",'[1]MONE(M)CAPARD'!AT83)","v":"n.a."},{"$f":"IF('[1]MONE(M)CAPARD'!AU83=\"\",\"\",'[1]MONE(M)CAPARD'!AU83)","v":"n.d."},{"$f":"IF('[1]MONE(M)CAPARD'!AV83=\"\",\"\",'[1]MONE(M)CAPARD'!AV83)","v":"n.d."},{"$f":"IF('[1]MONE(M)CAPARD'!AW83=\"\",\"\",'[1]MONE(M)CAPARD'!AW83)","v":"n.a."},{"$f":"IF('[1]MONE(M)CAPARD'!AX83=\"\",\"\",'[1]MONE(M)CAPARD'!AX83)","v":"n.d."},{"$f":"IF('[1]MONE(M)CAPARD'!AY83=\"\",\"\",'[1]MONE(M)CAPARD'!AY83)","v":"n.a."},{"$f":"IF('[1]FISCAL(M)'!$K83=\"\",\"\",'[1]FISCAL(M)'!$K83)","v":"n.d."},{"$f":"IF('[1]FISCAL(M)'!$L83=\"\",\"\",'[1]FISCAL(M)'!$L83)","v":"n.d."},{"$f":"IF('[1]FISCAL(M)'!$AY83=\"\",\"\",'[1]FISCAL(M)'!$AY83)","v":"n.d."},{"$f":"IF('[1]FISCAL(M)'!$BI83=\"\",\"\",'[1]FISCAL(M)'!$BI83)","v":"n.d."},{"$f":"IF('[1]FISCAL(M)'!$BS83=\"\",\"\",'[1]FISCAL(M)'!$BS83)","v":"n.d."},{"$f":"IF('[1]FISCAL(M)'!$AZ83=\"\",\"\",'[1]FISCAL(M)'!$AZ83)","v":"n.d."},{"$f":"IF('[1]FISCAL(M)'!$BJ83=\"\",\"\",'[1]FISCAL(M)'!$BJ83)","v":"n.d."},{"$f":"IF('[1]FISCAL(M)'!$BT83=\"\",\"\",'[1]FISCAL(M)'!$BT83)","v":"n.d."},{"$f":"IF('[2]MONE(M)'!$AO83=\"\",\"\",'[2]MONE(M)'!$AO83)","v":"n.d."},{"$f":"IF('[3]MONE(M)'!$AO83=\"\",\"\",'[3]MONE(M)'!$AO83)","v":"n.d."},{"$f":"IF('[4]MONE(M)'!$AO83=\"\",\"\",'[4]MONE(M)'!$AO83)","v":"n.d."},{"$f":"+'[5]MONE(M)'!$AO83","v":"n.d."},{"$f":"IF('[6]MONE(M)'!$AO83=\"\",\"\",'[6]MONE(M)'!$AO83)","v":"n.d."},{"$f":"IF('[7]MONE(M)'!$AO83=\"\",\"\",'[7]MONE(M)'!$AO83)","v":"n.d."},{"$f":"IF('[8]MONE(M)'!$AO83=\"\",\"\",'[8]MONE(M)'!$AO83)","v":"n.d."},"n.d.","n.d.","n.d.","n.d.","n.d.","n.d.","n.d.",{"$f":"IF('[1]FISCAL(M)'!$K83=\"\",\"\",'[1]FISCAL(M)'!$K83)","v":"n.d."},"n.d.","n.d.",{"$f":"IF('[1]FISCAL(M)'!$L83=\"\",\"\",'[1]FISCAL(M)'!$L83)","v":"n.d."},"n.d.","n.d.","n.d.","n.d.","n.d.","n.d.","n.d.","n.d.","n.d.","n.d.","n.d.","n.d.","n.d.","n.d.","n.d.","n.d.","n.d.","n.d."]
[1996,"marzo","1996-marzo",{"$f":"IF('[1]REAL IPC(M)'!$AL84=\"\",\"\",+'[1]REAL IPC(M)'!$AL84)","v":11.768296873595151},{"$f":"IF('[1]REAL IPC(M)'!$BE84=\"\",\"\",+'[1]REAL IPC(M)'!$BE84)","v":11.650254602030063},{"$f":"IF('[1]REAL IPC(M)'!$AM84=\"\",\"\",+'[1]REAL IPC(M)'!$AM84)","v":10.829329258800534},{"$f":"IF('[1]REAL IPC(M)'!$BI84=\"\",\"\",+'[1]REAL IPC(M)'!$BI84)","v":10.73508792838731},{"$f":"IF('[1]REAL IMAE(M)'!BJ84=\"\",\"\",'[1]REAL IMAE(M)'!BJ84)","v":"n.d."},{"$f":"IF('[1]REAL IMAE(M)'!BK84=\"\",\"\",'[1]REAL IMAE(M)'!BK84)","v":"n.d."},{"$f":"IF('[1]REAL IMAE(M)'!BN84=\"\",\"\",'[1]REAL IMAE(M)'!BN84)","v":"n.d."},{"$f":"IF('[1]REAL IMAE(M)'!BO84=\"\",\"\",'[1]REAL IMAE(M)'!BO84)","v":"n.d."},{"$f":"IF('[1]EXT RIN(M)'!$K84=\"\",\"\",'[1]EXT RIN(M)'!$K84)","v":"n.d."},"",{"$f":"IF('[1]EXT RIN(M)'!$L84=\"\",\"\",'[1]EXT RIN(M)'!$L84)","v":"n.d."},"",{"$f":"IF('[1]MONE(M)CARD'!EG84=\"\",\"\",'[1]MONE(M)CARD'!EG84)","v":"n.d."},{"$f":"IF('[1]MONE(M)CARD'!EK84=\"\",\"\",'[1]MONE(M)CARD'!EK84)","v":"n.d."},{"$f":"IF('[1]MONE(M)CARD'!EP84=\"\",\"\",'[1]MONE(M)CARD'!EP84)","v":"n.d."},{"$f":"IF('[1]MONE(M)CARD'!ES84=\"\",\"\",'[1]MONE(M)CARD'!ES84)","v":"n.d."},{"$f":"IF('[1]MONE(M)CARD'!EV84=\"\",\"\",'[1]MONE(M)CARD'!EV84)","v":"n.d."},{"$f":"IF('[1]MONE(M)CARD'!EZ84=\"\",\"\",'[1]MONE(M)CARD'!EZ84)","v":"n.d."},{"$f":"IF('[1]MONE(M)CAPARD'!FC84=\"\",\"\",'[1]MONE(M)CAPARD'!FC84)","v":"n.d."},{"$f":"IF('[1]MONE(M)CAPARD'!FG84=\"\",\"\",'[1]MONE(M)CAPARD'!FG84)","v":"n.d."},{"$f":"IF('[1]MONE(M)CAPARD'!FL84=\"\",\"\",'[1]MONE(M)CAPARD'!FL84)","v":"n.d."},{"$f":"IF('[1]MONE(M)CAPARD'!FO84=\"\",\"\",'[1]MONE(M)CAPARD'!FO84)","v":"n.d."},{"$f":"IF('[1]MONE(M)CAPARD'!FR84=\"\",\"\",'[1]MONE(M)CAPARD'!FR84)","v":"n.d."},{"$f":"IF('[1]MONE(M)CAPARD'!FV84=\"\",\"\",'[1]MONE(M)CAPARD'!FV84)","v":"n.d."},{"$f":"IF('[1]MONE(M)CARD'!FV84=\"\",\"\",'[1]MONE(M)CARD'!FV84)","v":""},{"$f":"IF('[1]MONE(M)CARD'!GD84=\"\",\"\",'[1]MONE(M)CARD'!GD84)","v":"n.d."},{"$f":"IF('[1]MONE(M)CARD'!GE84=\"\",\"\",'[1]MONE(M)CARD'!GE84)","v":"n.d."},"n.d.","n.d.","n.d.","n.d.","n.d.","n.d.","n.d.","n.d.",null,"n.d.","n.d.","n.d.","n.d.","n.d.",{"$f":"IF('[1]MONE(M)CAPARD'!GS84=\"\",\"\",'[1]MONE(M)CAPARD'!GS84)","v":"n.d."},{"$f":"IF('[1]MONE(M)CARD'!HA84=\"\",\"\",'[1]MONE(M)CAPARD'!HA84)","v":"n.d."},{"$f":"IF('[1]MONE(M)CAPARD'!HB84=\"\",\"\",'[1]MONE(M)CAPARD'!HB84)","v":"n.d."},"n.d.","n.d.","n.d.","n.d.","n.d.","n.d.","n.d.","n.d.","n.d.","n.d.","n.d.","n.d.","n.d.","n.d.",{"$f":"IF('[1]MONE(M)CAPARD'!AS84=\"\",\"\",'[1]MONE(M)CAPARD'!AS84)","v":"n.d."},{"$f":"IF('[1]MONE(M)CAPARD'!AT84=\"\",\"\",'[1]MONE(M)CAPARD'!AT84)","v":"n.a."},{"$f":"IF('[1]MONE(M)CAPARD'!AU84=\"\",\"\",'[1]MONE(M)CAPARD'!AU84)","v":"n.d."},{"$f":"IF('[1]MONE(M)CAPARD'!AV84=\"\",\"\",'[1]MONE(M)CAPARD'!AV84)","v":"n.d."},{"$f":"IF('[1]MONE(M)CAPARD'!AW84=\"\",\"\",'[1]MONE(M)CAPARD'!AW84)","v":"n.a."},{"$f":"IF('[1]MONE(M)CAPARD'!AX84=\"\",\"\",'[1]MONE(M)CAPARD'!AX84)","v":"n.d."},{"$f":"IF('[1]MONE(M)CAPARD'!AY84=\"\",\"\",'[1]MONE(M)CAPARD'!AY84)","v":"n.a."},{"$f":"IF('[1]FISCAL(M)'!$K84=\"\",\"\",'[1]FISCAL(M)'!$K84)","v":"n.d."},{"$f":"IF('[1]FISCAL(M)'!$L84=\"\",\"\",'[1]FISCAL(M)'!$L84)","v":"n.d."},{"$f":"IF('[1]FISCAL(M)'!$AY84=\"\",\"\",'[1]FISCAL(M)'!$AY84)","v":"n.d."},{"$f":"IF('[1]FISCAL(M)'!$BI84=\"\",\"\",'[1]FISCAL(M)'!$BI84)","v":"n.d."},{"$f":"IF('[1]FISCAL(M)'!$BS84=\"\",\"\",'[1]FISCAL(M)'!$BS84)","v":"n.d."},{"$f":"IF('[1]FISCAL(M)'!$AZ84=\"\",\"\",'[1]FISCAL(M)'!$AZ84)","v":"n.d."},{"$f":"IF('[1]FISCAL(M)'!$BJ84=\"\",\"\",'[1]FISCAL(M)'!$BJ84)","v":"n.d."},{"$f":"IF('[1]FISCAL(M)'!$BT84=\"\",\"\",'[1]FISCAL(M)'!$BT84)","v":"n.d."},{"$f":"IF('[2]MONE(M)'!$AO84=\"\",\"\",'[2]MONE(M)'!$AO84)","v":"n.d."},{"$f":"IF('[3]MONE(M)'!$AO84=\"\",\"\",'[3]MONE(M)'!$AO84)","v":"n.d."},{"$f":"IF('[4]MONE(M)'!$AO84=\"\",\"\",'[4]MONE(M)'!$AO84)","v":"n.d."},{"$f":"+'[5]MONE(M)'!$AO84","v":"n.d."},{"$f":"IF('[6]MONE(M)'!$AO84=\"\",\"\",'[6]MONE(M)'!$AO84)","v":"n.d."},{"$f":"IF('[7]MONE(M)'!$AO84=\"\",\"\",'[7]MONE(M)'!$AO84)","v":"n.d."},{"$f":"IF('[8]MONE(M)'!$AO84=\"\",\"\",'[8]MONE(M)'!$AO84)","v":"n.d."},"n.d.","n.d.","n.d.","n.d.","n.d.","n.d.","n.d.",{"$f":"IF('[1]FISCAL(M)'!$K84=\"\",\"\",'[1]FISCAL(M)'!$K84)","v":"n.d."},"n.d.","n.d.",{"$f":"IF('[1]FISCAL(M)'!$L84=\"\",\"\",'[1]FISCAL(M)'!$L84)","v":"n.d."},"n.d.","n.d.","n.d.","n.d.","n.d.","n.d.","n.d.","n.d.","n.d.","n.d.","n.d.","n.d.","n.d.","n.d.","n.d.","n.d.","n.d.","n.d."]
[1996,"abril","1996-abril",{"$f":"IF('[1]REAL IPC(M)'!$AL85=\"\",\"\",+'[1]REAL IPC(M)'!$AL85)","v":11.989096030350055},{"$f":"IF('[1]REAL IPC(M)'!$BE85=\"\",\"\",+'[1]REAL IPC(M)'!$BE85)","v":11.482809769907565},{"$f":"IF('[1]REAL IPC(M)'!$AM85=\"\",\"\",+'[1]REAL IPC(M)'!$AM85)","v":11.030088489112178},{"$f":"IF('[1]REAL IPC(M)'!$BI85=\"\",\"\",+'[1]REAL IPC(M)'!$BI85)","v":10.586193951036304},{"$f":"IF('[1]REAL IMAE(M)'!BJ85=\"\",\"\",'[1]REAL IMAE(M)'!BJ85)","v":"n.d."},{"$f":"IF('[1]REAL IMAE(M)'!BK85=\"\",\"\",'[1]REAL IMAE(M)'!BK85)","v":"n.d."},{"$f":"IF('[1]REAL IMAE(M)'!BN85=\"\",\"\",'[1]REAL IMAE(M)'!BN85)","v":"n.d."},{"$f":"IF('[1]REAL IMAE(M)'!BO85=\"\",\"\",'[1]REAL IMAE(M)'!BO85)","v":"n.d."},{"$f":"IF('[1]EXT RIN(M)'!$K85=\"\",\"\",'[1]EXT RIN(M)'!$K85)","v":"n.d."},"",{"$f":"IF('[1]EXT RIN(M)'!$L85=\"\",\"\",'[1]EXT RIN(M)'!$L85)","v":"n.d."},"",{"$f":"IF('[1]MONE(M)CARD'!EG85=\"\",\"\",'[1]MONE(M)CARD'!EG85)","v":"n.d."},{"$f":"IF('[1]MONE(M)CARD'!EK85=\"\",\"\",'[1]MONE(M)CARD'!EK85)","v":"n.d."},{"$f":"IF('[1]MONE(M)CARD'!EP85=\"\",\"\",'[1]MONE(M)CARD'!EP85)","v":"n.d."},{"$f":"IF('[1]MONE(M)CARD'!ES85=\"\",\"\",'[1]MONE(M)CARD'!ES85)","v":"n.d."},{"$f":"IF('[1]MONE(M)CARD'!EV85=\"\",\"\",'[1]MONE(M)CARD'!EV85)","v":"n.d."},{"$f":"IF('[1]MONE(M)CARD'!EZ85=\"\",\"\",'[1]MONE(M)CARD'!EZ85)","v":"n.d."},{"$f":"IF('[1]MONE(M)CAPARD'!FC85=\"\",\"\",'[1]MONE(M)CAPARD'!FC85)","v":"n.d."},{"$f":"IF('[1]MONE(M)CAPARD'!FG85=\"\",\"\",'[1]MONE(M)CAPARD'!FG85)","v":"n.d."},{"$f":"IF('[1]MONE(M)CAPARD'!FL85=\"\",\"\",'[1]MONE(M)CAPARD'!FL85)","v":"n.d."},{"$f":"IF('[1]MONE(M)CAPARD'!FO85=\"\",\"\",'[1]MONE(M)CAPARD'!FO85)","v":"n.d."},{"$f":"IF('[1]MONE(M)CAPARD'!FR85=\"\",\"\",'[1]MONE(M)CAPARD'!FR85)","v":"n.d."},{"$f":"IF('[1]MONE(M)CAPARD'!FV85=\"\",\"\",'[1]MONE(M)CAPARD'!FV85)","v":"n.d."},{"$f":"IF('[1]MONE(M)CARD'!FV85=\"\",\"\",'[1]MONE(M)CARD'!FV85)","v":""},{"$f":"IF('[1]MONE(M)CARD'!GD85=\"\",\"\",'[1]MONE(M)CARD'!GD85)","v":"n.d."},{"$f":"IF('[1]MONE(M)CARD'!GE85=\"\",\"\",'[1]MONE(M)CARD'!GE85)","v":"n.d."},"n.d.","n.d.","n.d.","n.d.","n.d.","n.d.","n.d.","n.d.",null,"n.d.","n.d.","n.d.","n.d.","n.d.",{"$f":"IF('[1]MONE(M)CAPARD'!GS85=\"\",\"\",'[1]MONE(M)CAPARD'!GS85)","v":"n.d."},{"$f":"IF('[1]MONE(M)CARD'!HA85=\"\",\"\",'[1]MONE(M)CAPARD'!HA85)","v":"n.d."},{"$f":"IF('[1]MONE(M)CAPARD'!HB85=\"\",\"\",'[1]MONE(M)CAPARD'!HB85)","v":"n.d."},"n.d.","n.d.","n.d.","n.d.","n.d.","n.d.","n.d.","n.d.","n.d.","n.d.","n.d.","n.d.","n.d.","n.d.",{"$f":"IF('[1]MONE(M)CAPARD'!AS85=\"\",\"\",'[1]MONE(M)CAPARD'!AS85)","v":"n.d."},{"$f":"IF('[1]MONE(M)CAPARD'!AT85=\"\",\"\",'[1]MONE(M)CAPARD'!AT85)","v":"n.a."},{"$f":"IF('[1]MONE(M)CAPARD'!AU85=\"\",\"\",'[1]MONE(M)CAPARD'!AU85)","v":"n.d."},{"$f":"IF('[1]MONE(M)CAPARD'!AV85=\"\",\"\",'[1]MONE(M)CAPARD'!AV85)","v":"n.d."},{"$f":"IF('[1]MONE(M)CAPARD'!AW85=\"\",\"\",'[1]MONE(M)CAPARD'!AW85)","v":"n.a."},{"$f":"IF('[1]MONE(M)CAPARD'!AX85=\"\",\"\",'[1]MONE(M)CAPARD'!AX85)","v":"n.d."},{"$f":"IF('[1]MONE(M)CAPARD'!AY85=\"\",\"\",'[1]MONE(M)CAPARD'!AY85)","v":"n.a."},{"$f":"IF('[1]FISCAL(M)'!$K85=\"\",\"\",'[1]FISCAL(M)'!$K85)","v":"n.d."},{"$f":"IF('[1]FISCAL(M)'!$L85=\"\",\"\",'[1]FISCAL(M)'!$L85)","v":"n.d."},{"$f":"IF('[1]FISCAL(M)'!$AY85=\"\",\"\",'[1]FISCAL(M)'!$AY85)","v":"n.d."},{"$f":"IF('[1]FISCAL(M)'!$BI85=\"\",\"\",'[1]FISCAL(M)'!$BI85)","v":"n.d."},{"$f":"IF('[1]FISCAL(M)'!$BS85=\"\",\"\",'[1]FISCAL(M)'!$BS85)","v":"n.d."},{"$f":"IF('[1]FISCAL(M)'!$AZ85=\"\",\"\",'[1]FISCAL(M)'!$AZ85)","v":"n.d."},{"$f":"IF('[1]FISCAL(M)'!$BJ85=\"\",\"\",'[1]FISCAL(M)'!$BJ85)","v":"n.d."},{"$f":"IF('[1]FISCAL(M)'!$BT85=\"\",\"\",'[1]FISCAL(M)'!$BT85)","v":"n.d."},{"$f":"IF('[2]MONE(M)'!$AO85=\"\",\"\",'[2]MONE(M)'!$AO85)","v":"n.d."},{"$f":"IF('[3]MONE(M)'!$AO85=\"\",\"\",'[3]MONE(M)'!$AO85)","v":"n.d."},{"$f":"IF('[4]MONE(M)'!$AO85=\"\",\"\",'[4]MONE(M)'!$AO85)","v":"n.d."},{"$f":"+'[5]MONE(M)'!$AO85","v":"n.d."},{"$f":"IF('[6]MONE(M)'!$AO85=\"\",\"\",'[6]MONE(M)'!$AO85)","v":"n.d."},{"$f":"IF('[7]MONE(M)'!$AO85=\"\",\"\",'[7]MONE(M)'!$AO85)","v":"n.d."},{"$f":"IF('[8]MONE(M)'!$AO85=\"\",\"\",'[8]MONE(M)'!$AO85)","v":"n.d."},"n.d.","n.d.","n.d.","n.d.","n.d.","n.d.","n.d.",{"$f":"IF('[1]FISCAL(M)'!$K85=\"\",\"\",'[1]FISCAL(M)'!$K85)","v":"n.d."},"n.d.","n.d.",{"$f":"IF('[1]FISCAL(M)'!$L85=\"\",\"\",'[1]FISCAL(M)'!$L85)","v":"n.d."},"n.d.","n.d.","n.d.","n.d.","n.d.","n.d.","n.d.","n.d.","n.d.","n.d.","n.d.","n.d.","n.d.","n.d.","n.d.","n.d.","n.d.","n.d."]
[1996,"mayo ","1996-mayo ",{"$f":"IF('[1]REAL IPC(M)'!$AL86=\"\",\"\",+'[1]REAL IPC(M)'!$AL86)","v":11.872050099120756},{"$f":"IF('[1]REAL IPC(M)'!$BE86=\"\",\"\",+'[1]REAL IPC(M)'!$BE86)","v":11.314841322025448},{"$f":"IF('[1]REAL IPC(M)'!$AM86=\"\",\"\",+'[1]REAL IPC(M)'!$AM86)","v":10.881469658688815},{"$f":"IF('[1]REAL IPC(M)'!$BI86=\"\",\"\",+'[1]REAL IPC(M)'!$BI86)","v":10.436246087573098},{"$f":"IF('[1]REAL IMAE(M)'!BJ86=\"\",\"\",'[1]REAL IMAE(M)'!BJ86)","v":"n.d."},{"$f":"IF('[1]REAL IMAE(M)'!BK86=\"\",\"\",'[1]REAL IMAE(M)'!BK86)","v":"n.d."},{"$f":"IF('[1]REAL IMAE(M)'!BN86=\"\",\"\",'[1]REAL IMAE(M)'!BN86)","v":"n.d."},{"$f":"IF('[1]REAL IMAE(M)'!BO86=\"\",\"\",'[1]REAL IMAE(M)'!BO86)","v":"n.d."},{"$f":"IF('[1]EXT RIN(M)'!$K86=\"\",\"\",'[1]EXT RIN(M)'!$K86)","v":"n.d."},"",{"$f":"IF('[1]EXT RIN(M)'!$L86=\"\",\"\",'[1]EXT RIN(M)'!$L86)","v":"n.d."},"",{"$f":"IF('[1]MONE(M)CARD'!EG86=\"\",\"\",'[1]MONE(M)CARD'!EG86)","v":"n.d."},{"$f":"IF('[1]MONE(M)CARD'!EK86=\"\",\"\",'[1]MONE(M)CARD'!EK86)","v":"n.d."},{"$f":"IF('[1]MONE(M)CARD'!EP86=\"\",\"\",'[1]MONE(M)CARD'!EP86)","v":"n.d."},{"$f":"IF('[1]MONE(M)CARD'!ES86=\"\",\"\",'[1]MONE(M)CARD'!ES86)","v":"n.d."},{"$f":"IF('[1]MONE(M)CARD'!EV86=\"\",\"\",'[1]MONE(M)CARD'!EV86)","v":"n.d."},{"$f":"IF('[1]MONE(M)CARD'!EZ86=\"\",\"\",'[1]MONE(M)CARD'!EZ86)","v":"n.d."},{"$f":"IF('[1]MONE(M)CAPARD'!FC86=\"\",\"\",'[1]MONE(M)CAPARD'!FC86)","v":"n.d."},{"$f":"IF('[1]MONE(M)CAPARD'!FG86=\"\",\"\",'[1]MONE(M)CAPARD'!FG86)","v":"n.d."},{"$f":"IF('[1]MONE(M)CAPARD'!FL86=\"\",\"\",'[1]MONE(M)CAPARD'!FL86)","v":"n.d."},{"$f":"IF('[1]MONE(M)CAPARD'!FO86=\"\",\"\",'[1]MONE(M)CAPARD'!FO86)","v":"n.d."},{"$f":"IF('[1]MONE(M)CAPARD'!FR86=\"\",\"\",'[1]MONE(M)CAPARD'!FR86)","v":"n.d."},{"$f":"IF('[1]MONE(M)CAPARD'!FV86=\"\",\"\",'[1]MONE(M)CAPARD'!FV86)","v":"n.d."},{"$f":"IF('[1]MONE(M)CARD'!FV86=\"\",\"\",'[1]MONE(M)CARD'!FV86)","v":""},{"$f":"IF('[1]MONE(M)CARD'!GD86=\"\",\"\",'[1]MONE(M)CARD'!GD86)","v":"n.d."},{"$f":"IF('[1]MONE(M)CARD'!GE86=\"\",\"\",'[1]MONE(M)CARD'!GE86)","v":"n.d."},"n.d.","n.d.","n.d.","n.d.","n.d.","n.d.","n.d.","n.d.",null,"n.d.","n.d.","n.d.","n.d.","n.d.",{"$f":"IF('[1]MONE(M)CAPARD'!GS86=\"\",\"\",'[1]MONE(M)CAPARD'!GS86)","v":"n.d."},{"$f":"IF('[1]MONE(M)CARD'!HA86=\"\",\"\",'[1]MONE(M)CAPARD'!HA86)","v":"n.d."},{"$f":"IF('[1]MONE(M)CAPARD'!HB86=\"\",\"\",'[1]MONE(M)CAPARD'!HB86)","v":"n.d."},"n.d.","n.d.","n.d.","n.d.","n.d.","n.d.","n.d.","n.d.","n.d.","n.d.","n.d.","n.d.","n.d.","n.d.",{"$f":"IF('[1]MONE(M)CAPARD'!AS86=\"\",\"\",'[1]MONE(M)CAPARD'!AS86)","v":"n.d."},{"$f":"IF('[1]MONE(M)CAPARD'!AT86=\"\",\"\",'[1]MONE(M)CAPARD'!AT86)","v":"n.a."},{"$f":"IF('[1]MONE(M)CAPARD'!AU86=\"\",\"\",'[1]MONE(M)CAPARD'!AU86)","v":"n.d."},{"$f":"IF('[1]MONE(M)CAPARD'!AV86=\"\",\"\",'[1]MONE(M)CAPARD'!AV86)","v":"n.d."},{"$f":"IF('[1]MONE(M)CAPARD'!AW86=\"\",\"\",'[1]MONE(M)CAPARD'!AW86)","v":"n.a."},{"$f":"IF('[1]MONE(M)CAPARD'!AX86=\"\",\"\",'[1]MONE(M)CAPARD'!AX86)","v":"n.d."},{"$f":"IF('[1]MONE(M)CAPARD'!AY86=\"\",\"\",'[1]MONE(M)CAPARD'!AY86)","v":"n.a."},{"$f":"IF('[1]FISCAL(M)'!$K86=\"\",\"\",'[1]FISCAL(M)'!$K86)","v":"n.d."},{"$f":"IF('[1]FISCAL(M)'!$L86=\"\",\"\",'[1]FISCAL(M)'!$L86)","v":"n.d."},{"$f":"IF('[1]FISCAL(M)'!$AY86=\"\",\"\",'[1]FISCAL(M)'!$AY86)","v":"n.d."},{"$f":"IF('[1]FISCAL(M)'!$BI86=\"\",\"\",'[1]FISCAL(M)'!$BI86)","v":"n.d."},{"$f":"IF('[1]FISCAL(M)'!$BS86=\"\",\"\",'[1]FISCAL(M)'!$BS86)","v":"n.d."},{"$f":"IF('[1]FISCAL(M)'!$AZ86=\"\",\"\",'[1]FISCAL(M)'!$AZ86)","v":"n.d."},{"$f":"IF('[1]FISCAL(M)'!$BJ86=\"\",\"\",'[1]FISCAL(M)'!$BJ86)","v":"n.d."},{"$f":"IF('[1]FISCAL(M)'!$BT86=\"\",\"\",'[1]FISCAL(M)'!$BT86)","v":"n.d."},{"$f":"IF('[2]MONE(M)'!$AO86=\"\",\"\",'[2]MONE(M)'!$AO86)","v":"n.d."},{"$f":"IF('[3]MONE(M)'!$AO86=\"\",\"\",'[3]MONE(M)'!$AO86)","v":"n.d."},{"$f":"IF('[4]MONE(M)'!$AO86=\"\",\"\",'[4]MONE(M)'!$AO86)","v":"n.d."},{"$f":"+'[5]MONE(M)'!$AO86","v":"n.d."},{"$f":"IF('[6]MONE(M)'!$AO86=\"\",\"\",'[6]MONE(M)'!$AO86)","v":"n.d."},{"$f":"IF('[7]MONE(M)'!$AO86=\"\",\"\",'[7]MONE(M)'!$AO86)","v":"n.d."},{"$f":"IF('[8]MONE(M)'!$AO86=\"\",\"\",'[8]MONE(M)'!$AO86)","v":"n.d."},"n.d.","n.d.","n.d.","n.d.","n.d.","n.d.","n.d.",{"$f":"IF('[1]FISCAL(M)'!$K86=\"\",\"\",'[1]FISCAL(M)'!$K86)","v":"n.d."},"n.d.","n.d.",{"$f":"IF('[1]FISCAL(M)'!$L86=\"\",\"\",'[1]FISCAL(M)'!$L86)","v":"n.d."},"n.d.","n.d.","n.d.","n.d.","n.d.","n.d.","n.d.","n.d.","n.d.","n.d.","n.d.","n.d.","n.d.","n.d.","n.d.","n.d.","n.d.","n.d."]
[1996,"junio ","1996-junio ",{"$f":"IF('[1]REAL IPC(M)'!$AL87=\"\",\"\",+'[1]REAL IPC(M)'!$AL87)","v":11.734326128654061},{"$f":"IF('[1]REAL IPC(M)'!$BE87=\"\",\"\",+'[1]REAL IPC(M)'!$BE87)","v":11.146407747308395},{"$f":"IF('[1]REAL IPC(M)'!$AM87=\"\",\"\",+'[1]REAL IPC(M)'!$AM87)","v":10.730964254204522},{"$f":"IF('[1]REAL IPC(M)'!$BI87=\"\",\"\",+'[1]REAL IPC(M)'!$BI87)","v":10.285304806825701},{"$f":"IF('[1]REAL IMAE(M)'!BJ87=\"\",\"\",'[1]REAL IMAE(M)'!BJ87)","v":"n.d."},{"$f":"IF('[1]REAL IMAE(M)'!BK87=\"\",\"\",'[1]REAL IMAE(M)'!BK87)","v":"n.d."},{"$f":"IF('[1]REAL IMAE(M)'!BN87=\"\",\"\",'[1]REAL IMAE(M)'!BN87)","v":"n.d."},{"$f":"IF('[1]REAL IMAE(M)'!BO87=\"\",\"\",'[1]REAL IMAE(M)'!BO87)","v":"n.d."},{"$f":"IF('[1]EXT RIN(M)'!$K87=\"\",\"\",'[1]EXT RIN(M)'!$K87)","v":"n.d."},"",{"$f":"IF('[1]EXT RIN(M)'!$L87=\"\",\"\",'[1]EXT RIN(M)'!$L87)","v":"n.d."},"",{"$f":"IF('[1]MONE(M)CARD'!EG87=\"\",\"\",'[1]MONE(M)CARD'!EG87)","v":"n.d."},{"$f":"IF('[1]MONE(M)CARD'!EK87=\"\",\"\",'[1]MONE(M)CARD'!EK87)","v":"n.d."},{"$f":"IF('[1]MONE(M)CARD'!EP87=\"\",\"\",'[1]MONE(M)CARD'!EP87)","v":"n.d."},{"$f":"IF('[1]MONE(M)CARD'!ES87=\"\",\"\",'[1]MONE(M)CARD'!ES87)","v":"n.d."},{"$f":"IF('[1]MONE(M)CARD'!EV87=\"\",\"\",'[1]MONE(M)CARD'!EV87)","v":"n.d."},{"$f":"IF('[1]MONE(M)CARD'!EZ87=\"\",\"\",'[1]MONE(M)CARD'!EZ87)","v":"n.d."},{"$f":"IF('[1]MONE(M)CAPARD'!FC87=\"\",\"\",'[1]MONE(M)CAPARD'!FC87)","v":"n.d."},{"$f":"IF('[1]MONE(M)CAPARD'!FG87=\"\",\"\",'[1]MONE(M)CAPARD'!FG87)","v":"n.d."},{"$f":"IF('[1]MONE(M)CAPARD'!FL87=\"\",\"\",'[1]MONE(M)CAPARD'!FL87)","v":"n.d."},{"$f":"IF('[1]MONE(M)CAPARD'!FO87=\"\",\"\",'[1]MONE(M)CAPARD'!FO87)","v":"n.d."},{"$f":"IF('[1]MONE(M)CAPARD'!FR87=\"\",\"\",'[1]MONE(M)CAPARD'!FR87)","v":"n.d."},{"$f":"IF('[1]MONE(M)CAPARD'!FV87=\"\",\"\",'[1]MONE(M)CAPARD'!FV87)","v":"n.d."},{"$f":"IF('[1]MONE(M)CARD'!FV87=\"\",\"\",'[1]MONE(M)CARD'!FV87)","v":""},{"$f":"IF('[1]MONE(M)CARD'!GD87=\"\",\"\",'[1]MONE(M)CARD'!GD87)","v":"n.d."},{"$f":"IF('[1]MONE(M)CARD'!GE87=\"\",\"\",'[1]MONE(M)CARD'!GE87)","v":"n.d."},"n.d.","n.d.","n.d.","n.d.","n.d.","n.d.","n.d.","n.d.",null,"n.d.","n.d.","n.d.","n.d.","n.d.",{"$f":"IF('[1]MONE(M)CAPARD'!GS87=\"\",\"\",'[1]MONE(M)CAPARD'!GS87)","v":"n.d."},{"$f":"IF('[1]MONE(M)CARD'!HA87=\"\",\"\",'[1]MONE(M)CAPARD'!HA87)","v":"n.d."},{"$f":"IF('[1]MONE(M)CAPARD'!HB87=\"\",\"\",'[1]MONE(M)CAPARD'!HB87)","v":"n.d."},"n.d.","n.d.","n.d.","n.d.","n.d.","n.d.","n.d.","n.d.","n.d.","n.d.","n.d.","n.d.","n.d.","n.d.",{"$f":"IF('[1]MONE(M)CAPARD'!AS87=\"\",\"\",'[1]MONE(M)CAPARD'!AS87)","v":"n.d."},{"$f":"IF('[1]MONE(M)CAPARD'!AT87=\"\",\"\",'[1]MONE(M)CAPARD'!AT87)","v":"n.a."},{"$f":"IF('[1]MONE(M)CAPARD'!AU87=\"\",\"\",'[1]MONE(M)CAPARD'!AU87)","v":"n.d."},{"$f":"IF('[1]MONE(M)CAPARD'!AV87=\"\",\"\",'[1]MONE(M)CAPARD'!AV87)","v":"n.d."},{"$f":"IF('[1]MONE(M)CAPARD'!AW87=\"\",\"\",'[1]MONE(M)CAPARD'!AW87)","v":"n.a."},{"$f":"IF('[1]MONE(M)CAPARD'!AX87=\"\",\"\",'[1]MONE(M)CAPARD'!AX87)","v":"n.d."},{"$f":"IF('[1]MONE(M)CAPARD'!AY87=\"\",\"\",'[1]MONE(M)CAPARD'!AY87)","v":"n.a."},{"$f":"IF('[1]FISCAL(M)'!$K87=\"\",\"\",'[1]FISCAL(M)'!$K87)","v":"n.d."},{"$f":"IF('[1]FISCAL(M)'!$L87=\"\",\"\",'[1]FISCAL(M)'!$L87)","v":"n.d."},{"$f":"IF('[1]FISCAL(M)'!$AY87=\"\",\"\",'[1]FISCAL(M)'!$AY87)","v":"n.d."},{"$f":"IF('[1]FISCAL(M)'!$BI87=\"\",\"\",'[1]FISCAL(M)'!$BI87)","v":"n.d."},{"$f":"IF('[1]FISCAL(M)'!$BS87=\"\",\"\",'[1]FISCAL(M)'!$BS87)","v":"n.d."},{"$f":"IF('[1]FISCAL(M)'!$AZ87=\"\",\"\",'[1]FISCAL(M)'!$AZ87)","v":"n.d."},{"$f":"IF('[1]FISCAL(M)'!$BJ87=\"\",\"\",'[1]FISCAL(M)'!$BJ87)","v":"n.d."},{"$f":"IF('[1]FISCAL(M)'!$BT87=\"\",\"\",'[1]FISCAL(M)'!$BT87)","v":"n.d."},{"$f":"IF('[2]MONE(M)'!$AO87=\"\",\"\",'[2]MONE(M)'!$AO87)","v":"n.d."},{"$f":"IF('[3]MONE(M)'!$AO87=\"\",\"\",'[3]MONE(M)'!$AO87)","v":"n.d."},{"$f":"IF('[4]MONE(M)'!$AO87=\"\",\"\",'[4]MONE(M)'!$AO87)","v":"n.d."},{"$f":"+'[5]MONE(M)'!$AO87","v":"n.d."},{"$f":"IF('[6]MONE(M)'!$AO87=\"\",\"\",'[6]MONE(M)'!$AO87)","v":"n.d."},{"$f":"IF('[7]MONE(M)'!$AO87=\"\",\"\",'[7]MONE(M)'!$AO87)","v":"n.d."},{"$f":"IF('[8]MONE(M)'!$AO87=\"\",\"\",'[8]MONE(M)'!$AO87)","v":"n.d."},"n.d.","n.d.","n.d.","n.d.","n.d.","n.d.","n.d.",{"$f":"IF('[1]FISCAL(M)'!$K87=\"\",\"\",'[1]FISCAL(M)'!$K87)","v":"n.d."},"n.d.","n.d.",{"$f":"IF('[1]FISCAL(M)'!$L87=\"\",\"\",'[1]FISCAL(M)'!$L87)","v":"n.d."},"n.d.","n.d.","n.d.","n.d.","n.d.","n.d.","n.d.","n.d.","n.d.","n.d.","n.d.","n.d.","n.d.","n.d.","n.d.","n.d.","n.d.","n.d."]
[1996,"julio","1996-julio",{"$f":"IF('[1]REAL IPC(M)'!$AL88=\"\",\"\",+'[1]REAL IPC(M)'!$AL88)","v":11.495673278038598},{"$f":"IF('[1]REAL IPC(M)'!$BE88=\"\",\"\",+'[1]REAL IPC(M)'!$BE88)","v":10.977596366444375},{"$f":"IF('[1]REAL IPC(M)'!$AM88=\"\",\"\",+'[1]REAL IPC(M)'!$AM88)","v":10.53034313292256},{"$f":"IF('[1]REAL IPC(M)'!$BI88=\"\",\"\",+'[1]REAL IPC(M)'!$BI88)","v":10.13345637474934},{"$f":"IF('[1]REAL IMAE(M)'!BJ88=\"\",\"\",'[1]REAL IMAE(M)'!BJ88)","v":"n.d."},{"$f":"IF('[1]REAL IMAE(M)'!BK88=\"\",\"\",'[1]REAL IMAE(M)'!BK88)","v":"n.d."},{"$f":"IF('[1]REAL IMAE(M)'!BN88=\"\",\"\",'[1]REAL IMAE(M)'!BN88)","v":"n.d."},{"$f":"IF('[1]REAL IMAE(M)'!BO88=\"\",\"\",'[1]REAL IMAE(M)'!BO88)","v":"n.d."},{"$f":"IF('[1]EXT RIN(M)'!$K88=\"\",\"\",'[1]EXT RIN(M)'!$K88)","v":"n.d."},"",{"$f":"IF('[1]EXT RIN(M)'!$L88=\"\",\"\",'[1]EXT RIN(M)'!$L88)","v":"n.d."},"",{"$f":"IF('[1]MONE(M)CARD'!EG88=\"\",\"\",'[1]MONE(M)CARD'!EG88)","v":"n.d."},{"$f":"IF('[1]MONE(M)CARD'!EK88=\"\",\"\",'[1]MONE(M)CARD'!EK88)","v":"n.d."},{"$f":"IF('[1]MONE(M)CARD'!EP88=\"\",\"\",'[1]MONE(M)CARD'!EP88)","v":"n.d."},{"$f":"IF('[1]MONE(M)CARD'!ES88=\"\",\"\",'[1]MONE(M)CARD'!ES88)","v":"n.d."},{"$f":"IF('[1]MONE(M)CARD'!EV88=\"\",\"\",'[1]MONE(M)CARD'!EV88)","v":"n.d."},{"$f":"IF('[1]MONE(M)CARD'!EZ88=\"\",\"\",'[1]MONE(M)CARD'!EZ88)","v":"n.d."},{"$f":"IF('[1]MONE(M)CAPARD'!FC88=\"\",\"\",'[1]MONE(M)CAPARD'!FC88)","v":"n.d."},{"$f":"IF('[1]MONE(M)CAPARD'!FG88=\"\",\"\",'[1]MONE(M)CAPARD'!FG88)","v":"n.d."},{"$f":"IF('[1]MONE(M)CAPARD'!FL88=\"\",\"\",'[1]MONE(M)CAPARD'!FL88)","v":"n.d."},{"$f":"IF('[1]MONE(M)CAPARD'!FO88=\"\",\"\",'[1]MONE(M)CAPARD'!FO88)","v":"n.d."},{"$f":"IF('[1]MONE(M)CAPARD'!FR88=\"\",\"\",'[1]MONE(M)CAPARD'!FR88)","v":"n.d."},{"$f":"IF('[1]MONE(M)CAPARD'!FV88=\"\",\"\",'[1]MONE(M)CAPARD'!FV88)","v":"n.d."},{"$f":"IF('[1]MONE(M)CARD'!FV88=\"\",\"\",'[1]MONE(M)CARD'!FV88)","v":""},{"$f":"IF('[1]MONE(M)CARD'!GD88=\"\",\"\",'[1]MONE(M)CARD'!GD88)","v":"n.d."},{"$f":"IF('[1]MONE(M)CARD'!GE88=\"\",\"\",'[1]MONE(M)CARD'!GE88)","v":"n.d."},"n.d.","n.d.","n.d.","n.d.","n.d.","n.d.","n.d.","n.d.",null,"n.d.","n.d.","n.d.","n.d.","n.d.",{"$f":"IF('[1]MONE(M)CAPARD'!GS88=\"\",\"\",'[1]MONE(M)CAPARD'!GS88)","v":"n.d."},{"$f":"IF('[1]MONE(M)CARD'!HA88=\"\",\"\",'[1]MONE(M)CAPARD'!HA88)","v":"n.d."},{"$f":"IF('[1]MONE(M)CAPARD'!HB88=\"\",\"\",'[1]MONE(M)CAPARD'!HB88)","v":"n.d."},"n.d.","n.d.","n.d.","n.d.","n.d.","n.d.","n.d.","n.d.","n.d.","n.d.","n.d.","n.d.","n.d.","n.d.",{"$f":"IF('[1]MONE(M)CAPARD'!AS88=\"\",\"\",'[1]MONE(M)CAPARD'!AS88)","v":"n.d."},{"$f":"IF('[1]MONE(M)CAPARD'!AT88=\"\",\"\",'[1]MONE(M)CAPARD'!AT88)","v":"n.a."},{"$f":"IF('[1]MONE(M)CAPARD'!AU88=\"\",\"\",'[1]MONE(M)CAPARD'!AU88)","v":"n.d."},{"$f":"IF('[1]MONE(M)CAPARD'!AV88=\"\",\"\",'[1]MONE(M)CAPARD'!AV88)","v":"n.d."},{"$f":"IF('[1]MONE(M)CAPARD'!AW88=\"\",\"\",'[1]MONE(M)CAPARD'!AW88)","v":"n.a."},{"$f":"IF('[1]MONE(M)CAPARD'!AX88=\"\",\"\",'[1]MONE(M)CAPARD'!AX88)","v":"n.d."},{"$f":"IF('[1]MONE(M)CAPARD'!AY88=\"\",\"\",'[1]MONE(M)CAPARD'!AY88)","v":"n.a."},{"$f":"IF('[1]FISCAL(M)'!$K88=\"\",\"\",'[1]FISCAL(M)'!$K88)","v":"n.d."},{"$f":"IF('[1]FISCAL(M)'!$L88=\"\",\"\",'[1]FISCAL(M)'!$L88)","v":"n.d."},{"$f":"IF('[1]FISCAL(M)'!$AY88=\"\",\"\",'[1]FISCAL(M)'!$AY88)","v":"n.d."},{"$f":"IF('[1]FISCAL(M)'!$BI88=\"\",\"\",'[1]FISCAL(M)'!$BI88)","v":"n.d."},{"$f":"IF('[1]FISCAL(M)'!$BS88=\"\",\"\",'[1]FISCAL(M)'!$BS88)","v":"n.d."},{"$f":"IF('[1]FISCAL(M)'!$AZ88=\"\",\"\",'[1]FISCAL(M)'!$AZ88)","v":"n.d."},{"$f":"IF('[1]FISCAL(M)'!$BJ88=\"\",\"\",'[1]FISCAL(M)'!$BJ88)","v":"n.d."},{"$f":"IF('[1]FISCAL(M)'!$BT88=\"\",\"\",'[1]FISCAL(M)'!$BT88)","v":"n.d."},{"$f":"IF('[2]MONE(M)'!$AO88=\"\",\"\",'[2]MONE(M)'!$AO88)","v":"n.d."},{"$f":"IF('[3]MONE(M)'!$AO88=\"\",\"\",'[3]MONE(M)'!$AO88)","v":"n.d."},{"$f":"IF('[4]MONE(M)'!$AO88=\"\",\"\",'[4]MONE(M)'!$AO88)","v":"n.d."},{"$f":"+'[5]MONE(M)'!$AO88","v":"n.d."},{"$f":"IF('[6]MONE(M)'!$AO88=\"\",\"\",'[6]MONE(M)'!$AO88)","v":"n.d."},{"$f":"IF('[7]MONE(M)'!$AO88=\"\",\"\",'[7]MONE(M)'!$AO88)","v":"n.d."},{"$f":"IF('[8]MONE(M)'!$AO88=\"\",\"\",'[8]MONE(M)'!$AO88)","v":"n.d."},"n.d.","n.d.","n.d.","n.d.","n.d.","n.d.","n.d.",{"$f":"IF('[1]FISCAL(M)'!$K88=\"\",\"\",'[1]FISCAL(M)'!$K88)","v":"n.d."},"n.d.","n.d.",{"$f":"IF('[1]FISCAL(M)'!$L88=\"\",\"\",'[1]FISCAL(M)'!$L88)","v":"n.d."},"n.d.","n.d.","n.d.","n.d.","n.d.","n.d.","n.d.","n.d.","n.d.","n.d.","n.d.","n.d.","n.d.","n.d.","n.d.","n.d.","n.d.","n.d."]
[1996,"agosto","1996-agosto",{"$f":"IF('[1]REAL IPC(M)'!$AL89=\"\",\"\",+'[1]REAL IPC(M)'!$AL89)","v":11.956085654456539},{"$f":"IF('[1]REAL IPC(M)'!$BE89=\"\",\"\",+'[1]REAL IPC(M)'!$BE89)","v":10.808519188776344},{"$f":"IF('[1]REAL IPC(M)'!$AM89=\"\",\"\",+'[1]REAL IPC(M)'!$AM89)","v":10.949301641093045},{"$f":"IF('[1]REAL IPC(M)'!$BI89=\"\",\"\",+'[1]REAL IPC(M)'!$BI89)","v":9.9808090720656004},{"$f":"IF('[1]REAL IMAE(M)'!BJ89=\"\",\"\",'[1]REAL IMAE(M)'!BJ89)","v":"n.d."},{"$f":"IF('[1]REAL IMAE(M)'!BK89=\"\",\"\",'[1]REAL IMAE(M)'!BK89)","v":"n.d."},{"$f":"IF('[1]REAL IMAE(M)'!BN89=\"\",\"\",'[1]REAL IMAE(M)'!BN89)","v":"n.d."},{"$f":"IF('[1]REAL IMAE(M)'!BO89=\"\",\"\",'[1]REAL IMAE(M)'!BO89)","v":"n.d."},{"$f":"IF('[1]EXT RIN(M)'!$K89=\"\",\"\",'[1]EXT RIN(M)'!$K89)","v":"n.d."},"",{"$f":"IF('[1]EXT RIN(M)'!$L89=\"\",\"\",'[1]EXT RIN(M)'!$L89)","v":"n.d."},"",{"$f":"IF('[1]MONE(M)CARD'!EG89=\"\",\"\",'[1]MONE(M)CARD'!EG89)","v":"n.d."},{"$f":"IF('[1]MONE(M)CARD'!EK89=\"\",\"\",'[1]MONE(M)CARD'!EK89)","v":"n.d."},{"$f":"IF('[1]MONE(M)CARD'!EP89=\"\",\"\",'[1]MONE(M)CARD'!EP89)","v":"n.d."},{"$f":"IF('[1]MONE(M)CARD'!ES89=\"\",\"\",'[1]MONE(M)CARD'!ES89)","v":"n.d."},{"$f":"IF('[1]MONE(M)CARD'!EV89=\"\",\"\",'[1]MONE(M)CARD'!EV89)","v":"n.d."},{"$f":"IF('[1]MONE(M)CARD'!EZ89=\"\",\"\",'[1]MONE(M)CARD'!EZ89)","v":"n.d."},{"$f":"IF('[1]MONE(M)CAPARD'!FC89=\"\",\"\",'[1]MONE(M)CAPARD'!FC89)","v":"n.d."},{"$f":"IF('[1]MONE(M)CAPARD'!FG89=\"\",\"\",'[1]MONE(M)CAPARD'!FG89)","v":"n.d."},{"$f":"IF('[1]MONE(M)CAPARD'!FL89=\"\",\"\",'[1]MONE(M)CAPARD'!FL89)","v":"n.d."},{"$f":"IF('[1]MONE(M)CAPARD'!FO89=\"\",\"\",'[1]MONE(M)CAPARD'!FO89)","v":"n.d."},{"$f":"IF('[1]MONE(M)CAPARD'!FR89=\"\",\"\",'[1]MONE(M)CAPARD'!FR89)","v":"n.d."},{"$f":"IF('[1]MONE(M)CAPARD'!FV89=\"\",\"\",'[1]MONE(M)CAPARD'!FV89)","v":"n.d."},{"$f":"IF('[1]MONE(M)CARD'!FV89=\"\",\"\",'[1]MONE(M)CARD'!FV89)","v":""},{"$f":"IF('[1]MONE(M)CARD'!GD89=\"\",\"\",'[1]MONE(M)CARD'!GD89)","v":"n.d."},{"$f":"IF('[1]MONE(M)CARD'!GE89=\"\",\"\",'[1]MONE(M)CARD'!GE89)","v":"n.d."},"n.d.","n.d.","n.d.","n.d.","n.d.","n.d.","n.d.","n.d.",null,"n.d.","n.d.","n.d.","n.d.","n.d.",{"$f":"IF('[1]MONE(M)CAPARD'!GS89=\"\",\"\",'[1]MONE(M)CAPARD'!GS89)","v":"n.d."},{"$f":"IF('[1]MONE(M)CARD'!HA89=\"\",\"\",'[1]MONE(M)CAPARD'!HA89)","v":"n.d."},{"$f":"IF('[1]MONE(M)CAPARD'!HB89=\"\",\"\",'[1]MONE(M)CAPARD'!HB89)","v":"n.d."},"n.d.","n.d.","n.d.","n.d.","n.d.","n.d.","n.d.","n.d.","n.d.","n.d.","n.d.","n.d.","n.d.","n.d.",{"$f":"IF('[1]MONE(M)CAPARD'!AS89=\"\",\"\",'[1]MONE(M)CAPARD'!AS89)","v":"n.d."},{"$f":"IF('[1]MONE(M)CAPARD'!AT89=\"\",\"\",'[1]MONE(M)CAPARD'!AT89)","v":"n.a."},{"$f":"IF('[1]MONE(M)CAPARD'!AU89=\"\",\"\",'[1]MONE(M)CAPARD'!AU89)","v":"n.d."},{"$f":"IF('[1]MONE(M)CAPARD'!AV89=\"\",\"\",'[1]MONE(M)CAPARD'!AV89)","v":"n.d."},{"$f":"IF('[1]MONE(M)CAPARD'!AW89=\"\",\"\",'[1]MONE(M)CAPARD'!AW89)","v":"n.a."},{"$f":"IF('[1]MONE(M)CAPARD'!AX89=\"\",\"\",'[1]MONE(M)CAPARD'!AX89)","v":"n.d."},{"$f":"IF('[1]MONE(M)CAPARD'!AY89=\"\",\"\",'[1]MONE(M)CAPARD'!AY89)","v":"n.a."},{"$f":"IF('[1]FISCAL(M)'!$K89=\"\",\"\",'[1]FISCAL(M)'!$K89)","v":"n.d."},{"$f":"IF('[1]FISCAL(M)'!$L89=\"\",\"\",'[1]FISCAL(M)'!$L89)","v":"n.d."},{"$f":"IF('[1]FISCAL(M)'!$AY89=\"\",\"\",'[1]FISCAL(M)'!$AY89)","v":"n.d."},{"$f":"IF('[1]FISCAL(M)'!$BI89=\"\",\"\",'[1]FISCAL(M)'!$BI89)","v":"n.d."},{"$f":"IF('[1]FISCAL(M)'!$BS89=\"\",\"\",'[1]FISCAL(M)'!$BS89)","v":"n.d."},{"$f":"IF('[1]FISCAL(M)'!$AZ89=\"\",\"\",'[1]FISCAL(M)'!$AZ89)","v":"n.d."},{"$f":"IF('[1]FISCAL(M)'!$BJ89=\"\",\"\",'[1]FISCAL(M)'!$BJ89)","v":"n.d."},{"$f":"IF('[1]FISCAL(M)'!$BT89=\"\",\"\",'[1]FISCAL(M)'!$BT89)","v":"n.d."},{"$f":"IF('[2]MONE(M)'!$AO89=\"\",\"\",'[2]MONE(M)'!$AO89)","v":"n.d."},{"$f":"IF('[3]MONE(M)'!$AO89=\"\",\"\",'[3]MONE(M)'!$AO89)","v":"n.d."},{"$f":"IF('[4]MONE(M)'!$AO89=\"\",\"\",'[4]MONE(M)'!$AO89)","v":"n.d."},{"$f":"+'[5]MONE(M)'!$AO89","v":"n.d."},{"$f":"IF('[6]MONE(M)'!$AO89=\"\",\"\",'[6]MONE(M)'!$AO89)","v":"n.d."},{"$f":"IF('[7]MONE(M)'!$AO89=\"\",\"\",'[7]MONE(M)'!$AO89)","v":"n.d."},{"$f":"IF('[8]MONE(M)'!$AO89=\"\",\"\",'[8]MONE(M)'!$AO89)","v":"n.d."},"n.d.","n.d.","n.d.","n.d.","n.d.","n.d.","n.d.",{"$f":"IF('[1]FISCAL(M)'!$K89=\"\",\"\",'[1]FISCAL(M)'!$K89)","v":"n.d."},"n.d.","n.d.",{"$f":"IF('[1]FISCAL(M)'!$L89=\"\",\"\",'[1]FISCAL(M)'!$L89)","v":"n.d."},"n.d.","n.d.","n.d.","n.d.","n.d.","n.d.","n.d.","n.d.","n.d.","n.d.","n.d.","n.d.","n.d.","n.d.","n.d.","n.d.","n.d.","n.d."]
[1996,"septiembre","1996-septiembre",{"$f":"IF('[1]REAL IPC(M)'!$AL90=\"\",\"\",+'[1]REAL IPC(M)'!$AL90)","v":11.078005168811988},{"$f":"IF('[1]REAL IPC(M)'!$BE90=\"\",\"\",+'[1]REAL IPC(M)'!$BE90)","v":10.639322190769484},{"$f":"IF('[1]REAL IPC(M)'!$AM90=\"\",\"\",+'[1]REAL IPC(M)'!$AM90)","v":10.18338508076293},{"$f":"IF('[1]REAL IPC(M)'!$BI90=\"\",\"\",+'[1]REAL IPC(M)'!$BI90)","v":9.8275017205840633},{"$f":"IF('[1]REAL IMAE(M)'!BJ90=\"\",\"\",'[1]REAL IMAE(M)'!BJ90)","v":"n.d."},{"$f":"IF('[1]REAL IMAE(M)'!BK90=\"\",\"\",'[1]REAL IMAE(M)'!BK90)","v":"n.d."},{"$f":"IF('[1]REAL IMAE(M)'!BN90=\"\",\"\",'[1]REAL IMAE(M)'!BN90)","v":"n.d."},{"$f":"IF('[1]REAL IMAE(M)'!BO90=\"\",\"\",'[1]REAL IMAE(M)'!BO90)","v":"n.d."},{"$f":"IF('[1]EXT RIN(M)'!$K90=\"\",\"\",'[1]EXT RIN(M)'!$K90)","v":"n.d."},"",{"$f":"IF('[1]EXT RIN(M)'!$L90=\"\",\"\",'[1]EXT RIN(M)'!$L90)","v":"n.d."},"",{"$f":"IF('[1]MONE(M)CARD'!EG90=\"\",\"\",'[1]MONE(M)CARD'!EG90)","v":"n.d."},{"$f":"IF('[1]MONE(M)CARD'!EK90=\"\",\"\",'[1]MONE(M)CARD'!EK90)","v":"n.d."},{"$f":"IF('[1]MONE(M)CARD'!EP90=\"\",\"\",'[1]MONE(M)CARD'!EP90)","v":"n.d."},{"$f":"IF('[1]MONE(M)CARD'!ES90=\"\",\"\",'[1]MONE(M)CARD'!ES90)","v":"n.d."},{"$f":"IF('[1]MONE(M)CARD'!EV90=\"\",\"\",'[1]MONE(M)CARD'!EV90)","v":"n.d."},{"$f":"IF('[1]MONE(M)CARD'!EZ90=\"\",\"\",'[1]MONE(M)CARD'!EZ90)","v":"n.d."},{"$f":"IF('[1]MONE(M)CAPARD'!FC90=\"\",\"\",'[1]MONE(M)CAPARD'!FC90)","v":"n.d."},{"$f":"IF('[1]MONE(M)CAPARD'!FG90=\"\",\"\",'[1]MONE(M)CAPARD'!FG90)","v":"n.d."},{"$f":"IF('[1]MONE(M)CAPARD'!FL90=\"\",\"\",'[1]MONE(M)CAPARD'!FL90)","v":"n.d."},{"$f":"IF('[1]MONE(M)CAPARD'!FO90=\"\",\"\",'[1]MONE(M)CAPARD'!FO90)","v":"n.d."},{"$f":"IF('[1]MONE(M)CAPARD'!FR90=\"\",\"\",'[1]MONE(M)CAPARD'!FR90)","v":"n.d."},{"$f":"IF('[1]MONE(M)CAPARD'!FV90=\"\",\"\",'[1]MONE(M)CAPARD'!FV90)","v":"n.d."},{"$f":"IF('[1]MONE(M)CARD'!FV90=\"\",\"\",'[1]MONE(M)CARD'!FV90)","v":""},{"$f":"IF('[1]MONE(M)CARD'!GD90=\"\",\"\",'[1]MONE(M)CARD'!GD90)","v":"n.d."},{"$f":"IF('[1]MONE(M)CARD'!GE90=\"\",\"\",'[1]MONE(M)CARD'!GE90)","v":"n.d."},"n.d.","n.d.","n.d.","n.d.","n.d.","n.d.","n.d.","n.d.",null,"n.d.","n.d.","n.d.","n.d.","n.d.",{"$f":"IF('[1]MONE(M)CAPARD'!GS90=\"\",\"\",'[1]MONE(M)CAPARD'!GS90)","v":"n.d."},{"$f":"IF('[1]MONE(M)CARD'!HA90=\"\",\"\",'[1]MONE(M)CAPARD'!HA90)","v":"n.d."},{"$f":"IF('[1]MONE(M)CAPARD'!HB90=\"\",\"\",'[1]MONE(M)CAPARD'!HB90)","v":"n.d."},"n.d.","n.d.","n.d.","n.d.","n.d.","n.d.","n.d.","n.d.","n.d.","n.d.","n.d.","n.d.","n.d.","n.d.",{"$f":"IF('[1]MONE(M)CAPARD'!AS90=\"\",\"\",'[1]MONE(M)CAPARD'!AS90)","v":"n.d."},{"$f":"IF('[1]MONE(M)CAPARD'!AT90=\"\",\"\",'[1]MONE(M)CAPARD'!AT90)","v":"n.a."},{"$f":"IF('[1]MONE(M)CAPARD'!AU90=\"\",\"\",'[1]MONE(M)CAPARD'!AU90)","v":"n.d."},{"$f":"IF('[1]MONE(M)CAPARD'!AV90=\"\",\"\",'[1]MONE(M)CAPARD'!AV90)","v":"n.d."},{"$f":"IF('[1]MONE(M)CAPARD'!AW90=\"\",\"\",'[1]MONE(M)CAPARD'!AW90)","v":"n.a."},{"$f":"IF('[1]MONE(M)CAPARD'!AX90=\"\",\"\",'[1]MONE(M)CAPARD'!AX90)","v":"n.d."},{"$f":"IF('[1]MONE(M)CAPARD'!AY90=\"\",\"\",'[1]MONE(M)CAPARD'!AY90)","v":"n.a."},{"$f":"IF('[1]FISCAL(M)'!$K90=\"\",\"\",'[1]FISCAL(M)'!$K90)","v":"n.d."},{"$f":"IF('[1]FISCAL(M)'!$L90=\"\",\"\",'[1]FISCAL(M)'!$L90)","v":"n.d."},{"$f":"IF('[1]FISCAL(M)'!$AY90=\"\",\"\",'[1]FISCAL(M)'!$AY90)","v":"n.d."},{"$f":"IF('[1]FISCAL(M)'!$BI90=\"\",\"\",'[1]FISCAL(M)'!$BI90)","v":"n.d."},{"$f":"IF('[1]FISCAL(M)'!$BS90=\"\",\"\",'[1]FISCAL(M)'!$BS90)","v":"n.d."},{"$f":"IF('[1]FISCAL(M)'!$AZ90=\"\",\"\",'[1]FISCAL(M)'!$AZ90)","v":"n.d."},{"$f":"IF('[1]FISCAL(M)'!$BJ90=\"\",\"\",'[1]FISCAL(M)'!$BJ90)","v":"n.d."},{"$f":"IF('[1]FISCAL(M)'!$BT90=\"\",\"\",'[1]FISCAL(M)'!$BT90)","v":"n.d."},{"$f":"IF('[2]MONE(M)'!$AO90=\"\",\"\",'[2]MONE(M)'!$AO90)","v":"n.d."},{"$f":"IF('[3]MONE(M)'!$AO90=\"\",\"\",'[3]MONE(M)'!$AO90)","v":"n.d."},{"$f":"IF('[4]MONE(M)'!$AO90=\"\",\"\",'[4]MONE(M)'!$AO90)","v":"n.d."},{"$f":"+'[5]MONE(M)'!$AO90","v":"n.d."},{"$f":"IF('[6]MONE(M)'!$AO90=\"\",\"\",'[6]MONE(M)'!$AO90)","v":"n.d."},{"$f":"IF('[7]MONE(M)'!$AO90=\"\",\"\",'[7]MONE(M)'!$AO90)","v":"n.d."},{"$f":"IF('[8]MONE(M)'!$AO90=\"\",\"\",'[8]MONE(M)'!$AO90)","v":"n.d."},"n.d.","n.d.","n.d.","n.d.","n.d.","n.d.","n.d.",{"$f":"IF('[1]FISCAL(M)'!$K90=\"\",\"\",'[1]FISCAL(M)'!$K90)","v":"n.d."},"n.d.","n.d.",{"$f":"IF('[1]FISCAL(M)'!$L90=\"\",\"\",'[1]FISCAL(M)'!$L90)","v":"n.d."},"n.d.","n.d.","n.d.","n.d.","n.d.","n.d.","n.d.","n.d.","n.d.","n.d.","n.d.","n.d.","n.d.","n.d.","n.d.","n.d.","n.d.","n.d."]
[1996,"octubre","1996-octubre",{"$f":"IF('[1]REAL IPC(M)'!$AL91=\"\",\"\",+'[1]REAL IPC(M)'!$AL91)","v":10.133408265509459},{"$f":"IF('[1]REAL IPC(M)'!$BE91=\"\",\"\",+'[1]REAL IPC(M)'!$BE91)","v":10.47019776253677},{"$f":"IF('[1]REAL IPC(M)'!$AM91=\"\",\"\",+'[1]REAL IPC(M)'!$AM91)","v":9.3821138807582916},{"$f":"IF('[1]REAL IPC(M)'!$BI91=\"\",\"\",+'[1]REAL IPC(M)'!$BI91)","v":9.6737193504329078},{"$f":"IF('[1]REAL IMAE(M)'!BJ91=\"\",\"\",'[1]REAL IMAE(M)'!BJ91)","v":"n.d."},{"$f":"IF('[1]REAL IMAE(M)'!BK91=\"\",\"\",'[1]REAL IMAE(M)'!BK91)","v":"n.d."},{"$f":"IF('[1]REAL IMAE(M)'!BN91=\"\",\"\",'[1]REAL IMAE(M)'!BN91)","v":"n.d."},{"$f":"IF('[1]REAL IMAE(M)'!BO91=\"\",\"\",'[1]REAL IMAE(M)'!BO91)","v":"n.d."},{"$f":"IF('[1]EXT RIN(M)'!$K91=\"\",\"\",'[1]EXT RIN(M)'!$K91)","v":"n.d."},"",{"$f":"IF('[1]EXT RIN(M)'!$L91=\"\",\"\",'[1]EXT RIN(M)'!$L91)","v":"n.d."},"",{"$f":"IF('[1]MONE(M)CARD'!EG91=\"\",\"\",'[1]MONE(M)CARD'!EG91)","v":"n.d."},{"$f":"IF('[1]MONE(M)CARD'!EK91=\"\",\"\",'[1]MONE(M)CARD'!EK91)","v":"n.d."},{"$f":"IF('[1]MONE(M)CARD'!EP91=\"\",\"\",'[1]MONE(M)CARD'!EP91)","v":"n.d."},{"$f":"IF('[1]MONE(M)CARD'!ES91=\"\",\"\",'[1]MONE(M)CARD'!ES91)","v":"n.d."},{"$f":"IF('[1]MONE(M)CARD'!EV91=\"\",\"\",'[1]MONE(M)CARD'!EV91)","v":"n.d."},{"$f":"IF('[1]MONE(M)CARD'!EZ91=\"\",\"\",'[1]MONE(M)CARD'!EZ91)","v":"n.d."},{"$f":"IF('[1]MONE(M)CAPARD'!FC91=\"\",\"\",'[1]MONE(M)CAPARD'!FC91)","v":"n.d."},{"$f":"IF('[1]MONE(M)CAPARD'!FG91=\"\",\"\",'[1]MONE(M)CAPARD'!FG91)","v":"n.d."},{"$f":"IF('[1]MONE(M)CAPARD'!FL91=\"\",\"\",'[1]MONE(M)CAPARD'!FL91)","v":"n.d."},{"$f":"IF('[1]MONE(M)CAPARD'!FO91=\"\",\"\",'[1]MONE(M)CAPARD'!FO91)","v":"n.d."},{"$f":"IF('[1]MONE(M)CAPARD'!FR91=\"\",\"\",'[1]MONE(M)CAPARD'!FR91)","v":"n.d."},{"$f":"IF('[1]MONE(M)CAPARD'!FV91=\"\",\"\",'[1]MONE(M)CAPARD'!FV91)","v":"n.d."},{"$f":"IF('[1]MONE(M)CARD'!FV91=\"\",\"\",'[1]MONE(M)CARD'!FV91)","v":""},{"$f":"IF('[1]MONE(M)CARD'!GD91=\"\",\"\",'[1]MONE(M)CARD'!GD91)","v":"n.d."},{"$f":"IF('[1]MONE(M)CARD'!GE91=\"\",\"\",'[1]MONE(M)CARD'!GE91)","v":"n.d."},"n.d.","n.d.","n.d.","n.d.","n.d.","n.d.","n.d.","n.d.",null,"n.d.","n.d.","n.d.","n.d.","n.d.",{"$f":"IF('[1]MONE(M)CAPARD'!GS91=\"\",\"\",'[1]MONE(M)CAPARD'!GS91)","v":"n.d."},{"$f":"IF('[1]MONE(M)CARD'!HA91=\"\",\"\",'[1]MONE(M)CAPARD'!HA91)","v":"n.d."},{"$f":"IF('[1]MONE(M)CAPARD'!HB91=\"\",\"\",'[1]MONE(M)CAPARD'!HB91)","v":"n.d."},"n.d.","n.d.","n.d.","n.d.","n.d.","n.d.","n.d.","n.d.","n.d.","n.d.","n.d.","n.d.","n.d.","n.d.",{"$f":"IF('[1]MONE(M)CAPARD'!AS91=\"\",\"\",'[1]MONE(M)CAPARD'!AS91)","v":"n.d."},{"$f":"IF('[1]MONE(M)CAPARD'!AT91=\"\",\"\",'[1]MONE(M)CAPARD'!AT91)","v":"n.a."},{"$f":"IF('[1]MONE(M)CAPARD'!AU91=\"\",\"\",'[1]MONE(M)CAPARD'!AU91)","v":"n.d."},{"$f":"IF('[1]MONE(M)CAPARD'!AV91=\"\",\"\",'[1]MONE(M)CAPARD'!AV91)","v":"n.d."},{"$f":"IF('[1]MONE(M)CAPARD'!AW91=\"\",\"\",'[1]MONE(M)CAPARD'!AW91)","v":"n.a."},{"$f":"IF('[1]MONE(M)CAPARD'!AX91=\"\",\"\",'[1]MONE(M)CAPARD'!AX91)","v":"n.d."},{"$f":"IF('[1]MONE(M)CAPARD'!AY91=\"\",\"\",'[1]MONE(M)CAPARD'!AY91)","v":"n.a."},{"$f":"IF('[1]FISCAL(M)'!$K91=\"\",\"\",'[1]FISCAL(M)'!$K91)","v":"n.d."},{"$f":"IF('[1]FISCAL(M)'!$L91=\"\",\"\",'[1]FISCAL(M)'!$L91)","v":"n.d."},{"$f":"IF('[1]FISCAL(M)'!$AY91=\"\",\"\",'[1]FISCAL(M)'!$AY91)","v":"n.d."},{"$f":"IF('[1]FISCAL(M)'!$BI91=\"\",\"\",'[1]FISCAL(M)'!$BI91)","v":"n.d."},{"$f":"IF('[1]FISCAL(M)'!$BS91=\"\",\"\",'[1]FISCAL(M)'!$BS91)","v":"n.d."},{"$f":"IF('[1]FISCAL(M)'!$AZ91=\"\",\"\",'[1]FISCAL(M)'!$AZ91)","v":"n.d."},{"$f":"IF('[1]FISCAL(M)'!$BJ91=\"\",\"\",'[1]FISCAL(M)'!$BJ91)","v":"n.d."},{"$f":"IF('[1]FISCAL(M)'!$BT91=\"\",\"\",'[1]FISCAL(M)'!$BT91)","v":"n.d."},{"$f":"IF('[2]MONE(M)'!$AO91=\"\",\"\",'[2]MONE(M)'!$AO91)","v":"n.d."},{"$f":"IF('[3]MONE(M)'!$AO91=\"\",\"\",'[3]MONE(M)'!$AO91)","v":"n.d."},{"$f":"IF('[4]MONE(M)'!$AO91=\"\",\"\",'[4]MONE(M)'!$AO91)","v":"n.d."},{"$f":"+'[5]MONE(M)'!$AO91","v":"n.d."},{"$f":"IF('[6]MONE(M)'!$AO91=\"\",\"\",'[6]MONE(M)'!$AO91)","v":"n.d."},{"$f":"IF('[7]MONE(M)'!$AO91=\"\",\"\",'[7]MONE(M)'!$AO91)","v":"n.d."},{"$f":"IF('[8]MONE(M)'!$AO91=\"\",\"\",'[8]MONE(M)'!$AO91)","v":"n.d."},"n.d.","n.d.","n.d.","n.d.","n.d.","n.d.","n.d.",{"$f":"IF('[1]FISCAL(M)'!$K91=\"\",\"\",'[1]FISCAL(M)'!$K91)","v":"n.d."},"n.d.","n.d.",{"$f":"IF('[1]FISCAL(M)'!$L91=\"\",\"\",'[1]FISCAL(M)'!$L91)","v":"n.d."},"n.d.","n.d.","n.d.","n.d.","n.d.","n.d.","n.d.","n.d.","n.d.","n.d.","n.d.","n.d.","n.d.","n.d.","n.d.","n.d.","n.d.","n.d."]
[1996,"noviembre","1996-noviembre",{"$f":"IF('[1]REAL IPC(M)'!$AL92=\"\",\"\",+'[1]REAL IPC(M)'!$AL92)","v":9.5689636813991221},{"$f":"IF('[1]REAL IPC(M)'!$BE92=\"\",\"\",+'[1]REAL IPC(M)'!$BE92)","v":10.301358665007543},{"$f":"IF('[1]REAL IPC(M)'!$AM92=\"\",\"\",+'[1]REAL IPC(M)'!$AM92)","v":8.8766736517155831},{"$f":"IF('[1]REAL IPC(M)'!$BI92=\"\",\"\",+'[1]REAL IPC(M)'!$BI92)","v":9.5196682233425811},{"$f":"IF('[1]REAL IMAE(M)'!BJ92=\"\",\"\",'[1]REAL IMAE(M)'!BJ92)","v":"n.d."},{"$f":"IF('[1]REAL IMAE(M)'!BK92=\"\",\"\",'[1]REAL IMAE(M)'!BK92)","v":"n.d."},{"$f":"IF('[1]REAL IMAE(M)'!BN92=\"\",\"\",'[1]REAL IMAE(M)'!BN92)","v":"n.d."},{"$f":"IF('[1]REAL IMAE(M)'!BO92=\"\",\"\",'[1]REAL IMAE(M)'!BO92)","v":"n.d."},{"$f":"IF('[1]EXT RIN(M)'!$K92=\"\",\"\",'[1]EXT RIN(M)'!$K92)","v":"n.d."},"",{"$f":"IF('[1]EXT RIN(M)'!$L92=\"\",\"\",'[1]EXT RIN(M)'!$L92)","v":"n.d."},"",{"$f":"IF('[1]MONE(M)CARD'!EG92=\"\",\"\",'[1]MONE(M)CARD'!EG92)","v":"n.d."},{"$f":"IF('[1]MONE(M)CARD'!EK92=\"\",\"\",'[1]MONE(M)CARD'!EK92)","v":"n.d."},{"$f":"IF('[1]MONE(M)CARD'!EP92=\"\",\"\",'[1]MONE(M)CARD'!EP92)","v":"n.d."},{"$f":"IF('[1]MONE(M)CARD'!ES92=\"\",\"\",'[1]MONE(M)CARD'!ES92)","v":"n.d."},{"$f":"IF('[1]MONE(M)CARD'!EV92=\"\",\"\",'[1]MONE(M)CARD'!EV92)","v":"n.d."},{"$f":"IF('[1]MONE(M)CARD'!EZ92=\"\",\"\",'[1]MONE(M)CARD'!EZ92)","v":"n.d."},{"$f":"IF('[1]MONE(M)CAPARD'!FC92=\"\",\"\",'[1]MONE(M)CAPARD'!FC92)","v":"n.d."},{"$f":"IF('[1]MONE(M)CAPARD'!FG92=\"\",\"\",'[1]MONE(M)CAPARD'!FG92)","v":"n.d."},{"$f":"IF('[1]MONE(M)CAPARD'!FL92=\"\",\"\",'[1]MONE(M)CAPARD'!FL92)","v":"n.d."},{"$f":"IF('[1]MONE(M)CAPARD'!FO92=\"\",\"\",'[1]MONE(M)CAPARD'!FO92)","v":"n.d."},{"$f":"IF('[1]MONE(M)CAPARD'!FR92=\"\",\"\",'[1]MONE(M)CAPARD'!FR92)","v":"n.d."},{"$f":"IF('[1]MONE(M)CAPARD'!FV92=\"\",\"\",'[1]MONE(M)CAPARD'!FV92)","v":"n.d."},{"$f":"IF('[1]MONE(M)CARD'!FV92=\"\",\"\",'[1]MONE(M)CARD'!FV92)","v":""},{"$f":"IF('[1]MONE(M)CARD'!GD92=\"\",\"\",'[1]MONE(M)CARD'!GD92)","v":"n.d."},{"$f":"IF('[1]MONE(M)CARD'!GE92=\"\",\"\",'[1]MONE(M)CARD'!GE92)","v":"n.d."},"n.d.","n.d.","n.d.","n.d.","n.d.","n.d.","n.d.","n.d.",null,"n.d.","n.d.","n.d.","n.d.","n.d.",{"$f":"IF('[1]MONE(M)CAPARD'!GS92=\"\",\"\",'[1]MONE(M)CAPARD'!GS92)","v":"n.d."},{"$f":"IF('[1]MONE(M)CARD'!HA92=\"\",\"\",'[1]MONE(M)CAPARD'!HA92)","v":"n.d."},{"$f":"IF('[1]MONE(M)CAPARD'!HB92=\"\",\"\",'[1]MONE(M)CAPARD'!HB92)","v":"n.d."},"n.d.","n.d.","n.d.","n.d.","n.d.","n.d.","n.d.","n.d.","n.d.","n.d.","n.d.","n.d.","n.d.","n.d.",{"$f":"IF('[1]MONE(M)CAPARD'!AS92=\"\",\"\",'[1]MONE(M)CAPARD'!AS92)","v":"n.d."},{"$f":"IF('[1]MONE(M)CAPARD'!AT92=\"\",\"\",'[1]MONE(M)CAPARD'!AT92)","v":"n.a."},{"$f":"IF('[1]MONE(M)CAPARD'!AU92=\"\",\"\",'[1]MONE(M)CAPARD'!AU92)","v":"n.d."},{"$f":"IF('[1]MONE(M)CAPARD'!AV92=\"\",\"\",'[1]MONE(M)CAPARD'!AV92)","v":"n.d."},{"$f":"IF('[1]MONE(M)CAPARD'!AW92=\"\",\"\",'[1]MONE(M)CAPARD'!AW92)","v":"n.a."},{"$f":"IF('[1]MONE(M)CAPARD'!AX92=\"\",\"\",'[1]MONE(M)CAPARD'!AX92)","v":"n.d."},{"$f":"IF('[1]MONE(M)CAPARD'!AY92=\"\",\"\",'[1]MONE(M)CAPARD'!AY92)","v":"n.a."},{"$f":"IF('[1]FISCAL(M)'!$K92=\"\",\"\",'[1]FISCAL(M)'!$K92)","v":"n.d."},{"$f":"IF('[1]FISCAL(M)'!$L92=\"\",\"\",'[1]FISCAL(M)'!$L92)","v":"n.d."},{"$f":"IF('[1]FISCAL(M)'!$AY92=\"\",\"\",'[1]FISCAL(M)'!$AY92)","v":"n.d."},{"$f":"IF('[1]FISCAL(M)'!$BI92=\"\",\"\",'[1]FISCAL(M)'!$BI92)","v":"n.d."},{"$f":"IF('[1]FISCAL(M)'!$BS92=\"\",\"\",'[1]FISCAL(M)'!$BS92)","v":"n.d."},{"$f":"IF('[1]FISCAL(M)'!$AZ92=\"\",\"\",'[1]FISCAL(M)'!$AZ92)","v":"n.d."},{"$f":"IF('[1]FISCAL(M)'!$BJ92=\"\",\"\",'[1]FISCAL(M)'!$BJ92)","v":"n.d."},{"$f":"IF('[1]FISCAL(M)'!$BT92=\"\",\"\",'[1]FISCAL(M)'!$BT92)","v":"n.d."},{"$f":"IF('[2]MONE(M)'!$AO92=\"\",\"\",'[2]MONE(M)'!$AO92)","v":"n.d."},{"$f":"IF('[3]MONE(M)'!$AO92=\"\",\"\",'[3]MONE(M)'!$AO92)","v":"n.d."},{"$f":"IF('[4]MONE(M)'!$AO92=\"\",\"\",'[4]MONE(M)'!$AO92)","v":"n.d."},{"$f":"+'[5]MONE(M)'!$AO92","v":"n.d."},{"$f":"IF('[6]MONE(M)'!$AO92=\"\",\"\",'[6]MONE(M)'!$AO92)","v":"n.d."},{"$f":"IF('[7]MONE(M)'!$AO92=\"\",\"\",'[7]MONE(M)'!$AO92)","v":"n.d."},{"$f":"IF('[8]MONE(M)'!$AO92=\"\",\"\",'[8]MONE(M)'!$AO92)","v":"n.d."},"n.d.","n.d.","n.d.","n.d.","n.d.","n.d.","n.d.",{"$f":"IF('[1]FISCAL(M)'!$K92=\"\",\"\",'[1]FISCAL(M)'!$K92)","v":"n.d."},"n.d.","n.d.",{"$f":"IF('[1]FISCAL(M)'!$L92=\"\",\"\",'[1]FISCAL(M)'!$L92)","v":"n.d."},"n.d.","n.d.","n.d.","n.d.","n.d.","n.d.","n.d.","n.d.","n.d.","n.d.","n.d.","n.d.","n.d.","n.d.","n.d.","n.d.","n.d.","n.d."]
[1996,"diciembre","1996-diciembre",{"$f":"IF('[1]REAL IPC(M)'!$AL93=\"\",\"\",+'[1]REAL IPC(M)'!$AL93)","v":10.097632471564122},{"$f":"IF('[1]REAL IPC(M)'!$BE93=\"\",\"\",+'[1]REAL IPC(M)'!$BE93)","v":10.132988991391368},{"$f":"IF('[1]REAL IPC(M)'!$AM93=\"\",\"\",+'[1]REAL IPC(M)'!$AM93)","v":9.3987888472808265},{"$f":"IF('[1]REAL IPC(M)'!$BI93=\"\",\"\",+'[1]REAL IPC(M)'!$BI93)","v":9.3655262077213095},{"$f":"IF('[1]REAL IMAE(M)'!BJ93=\"\",\"\",'[1]REAL IMAE(M)'!BJ93)","v":"n.d."},{"$f":"IF('[1]REAL IMAE(M)'!BK93=\"\",\"\",'[1]REAL IMAE(M)'!BK93)","v":"n.d."},{"$f":"IF('[1]REAL IMAE(M)'!BN93=\"\",\"\",'[1]REAL IMAE(M)'!BN93)","v":"n.d."},{"$f":"IF('[1]REAL IMAE(M)'!BO93=\"\",\"\",'[1]REAL IMAE(M)'!BO93)","v":"n.d."},{"$f":"IF('[1]EXT RIN(M)'!$K93=\"\",\"\",'[1]EXT RIN(M)'!$K93)","v":"n.d."},"n.d.",{"$f":"IF('[1]EXT RIN(M)'!$L93=\"\",\"\",'[1]EXT RIN(M)'!$L93)","v":"n.d."},"n.d.",{"$f":"IF('[1]MONE(M)CARD'!EG93=\"\",\"\",'[1]MONE(M)CARD'!EG93)","v":"n.d."},{"$f":"IF('[1]MONE(M)CARD'!EK93=\"\",\"\",'[1]MONE(M)CARD'!EK93)","v":"n.d."},{"$f":"IF('[1]MONE(M)CARD'!EP93=\"\",\"\",'[1]MONE(M)CARD'!EP93)","v":"n.d."},{"$f":"IF('[1]MONE(M)CARD'!ES93=\"\",\"\",'[1]MONE(M)CARD'!ES93)","v":"n.d."},{"$f":"IF('[1]MONE(M)CARD'!EV93=\"\",\"\",'[1]MONE(M)CARD'!EV93)","v":"n.d."},{"$f":"IF('[1]MONE(M)CARD'!EZ93=\"\",\"\",'[1]MONE(M)CARD'!EZ93)","v":"n.d."},{"$f":"IF('[1]MONE(M)CAPARD'!FC93=\"\",\"\",'[1]MONE(M)CAPARD'!FC93)","v":"n.d."},{"$f":"IF('[1]MONE(M)CAPARD'!FG93=\"\",\"\",'[1]MONE(M)CAPARD'!FG93)","v":"n.d."},{"$f":"IF('[1]MONE(M)CAPARD'!FL93=\"\",\"\",'[1]MONE(M)CAPARD'!FL93)","v":"n.d."},{"$f":"IF('[1]MONE(M)CAPARD'!FO93=\"\",\"\",'[1]MONE(M)CAPARD'!FO93)","v":"n.d."},{"$f":"IF('[1]MONE(M)CAPARD'!FR93=\"\",\"\",'[1]MONE(M)CAPARD'!FR93)","v":"n.d."},{"$f":"IF('[1]MONE(M)CAPARD'!FV93=\"\",\"\",'[1]MONE(M)CAPARD'!FV93)","v":"n.d."},{"$f":"IF('[1]MONE(M)CARD'!FV93=\"\",\"\",'[1]MONE(M)CARD'!FV93)","v":""},{"$f":"IF('[1]MONE(M)CARD'!GD93=\"\",\"\",'[1]MONE(M)CARD'!GD93)","v":"n.d."},{"$f":"IF('[1]MONE(M)CARD'!GE93=\"\",\"\",'[1]MONE(M)CARD'!GE93)","v":"n.d."},"n.d.","n.d.","n.d.","n.d.","n.d.","n.d.","n.d.","n.d.",null,"n.d.","n.d.","n.d.","n.d.","n.d.",{"$f":"IF('[1]MONE(M)CAPARD'!GS93=\"\",\"\",'[1]MONE(M)CAPARD'!GS93)","v":"n.d."},{"$f":"IF('[1]MONE(M)CARD'!HA93=\"\",\"\",'[1]MONE(M)CAPARD'!HA93)","v":"n.d."},{"$f":"IF('[1]MONE(M)CAPARD'!HB93=\"\",\"\",'[1]MONE(M)CAPARD'!HB93)","v":"n.d."},"n.d.","n.d.","n.d.","n.d.","n.d.","n.d.","n.d.","n.d.","n.d.","n.d.","n.d.","n.d.","n.d.","n.d.",{"$f":"IF('[1]MONE(M)CAPARD'!AS93=\"\",\"\",'[1]MONE(M)CAPARD'!AS93)","v":"n.d."},{"$f":"IF('[1]MONE(M)CAPARD'!AT93=\"\",\"\",'[1]MONE(M)CAPARD'!AT93)","v":"n.a."},{"$f":"IF('[1]MONE(M)CAPARD'!AU93=\"\",\"\",'[1]MONE(M)CAPARD'!AU93)","v":"n.d."},{"$f":"IF('[1]MONE(M)CAPARD'!AV93=\"\",\"\",'[1]MONE(M)CAPARD'!AV93)","v":"n.d."},{"$f":"IF('[1]MONE(M)CAPARD'!AW93=\"\",\"\",'[1]MONE(M)CAPARD'!AW93)","v":"n.a."},{"$f":"IF('[1]MONE(M)CAPARD'!AX93=\"\",\"\",'[1]MONE(M)CAPARD'!AX93)","v":"n.d."},{"$f":"IF('[1]MONE(M)CAPARD'!AY93=\"\",\"\",'[1]MONE(M)CAPARD'!AY93)","v":"n.a."},{"$f":"IF('[1]FISCAL(M)'!$K93=\"\",\"\",'[1]FISCAL(M)'!$K93)","v":"n.d."},{"$f":"IF('[1]FISCAL(M)'!$L93=\"\",\"\",'[1]FISCAL(M)'!$L93)","v":"n.d."},{"$f":"IF('[1]FISCAL(M)'!$AY93=\"\",\"\",'[1]FISCAL(M)'!$AY93)","v":"n.d."},{"$f":"IF('[1]FISCAL(M)'!$BI93=\"\",\"\",'[1]FISCAL(M)'!$BI93)","v":"n.d."},{"$f":"IF('[1]FISCAL(M)'!$BS93=\"\",\"\",'[1]FISCAL(M)'!$BS93)","v":"n.d."},{"$f":"IF('[1]FISCAL(M)'!$AZ93=\"\",\"\",'[1]FISCAL(M)'!$AZ93)","v":"n.d."},{"$f":"IF('[1]FISCAL(M)'!$BJ93=\"\",\"\",'[1]FISCAL(M)'!$BJ93)","v":"n.d."},{"$f":"IF('[1]FISCAL(M)'!$BT93=\"\",\"\",'[1]FISCAL(M)'!$BT93)","v":"n.d."},{"$f":"IF('[2]MONE(M)'!$AO93=\"\",\"\",'[2]MONE(M)'!$AO93)","v":"n.d."},{"$f":"IF('[3]MONE(M)'!$AO93=\"\",\"\",'[3]MONE(M)'!$AO93)","v":"n.d."},{"$f":"IF('[4]MONE(M)'!$AO93=\"\",\"\",'[4]MONE(M)'!$AO93)","v":"n.d."},{"$f":"+'[5]MONE(M)'!$AO93","v":"n.d."},{"$f":"IF('[6]MONE(M)'!$AO93=\"\",\"\",'[6]MONE(M)'!$AO93)","v":"n.d."},{"$f":"IF('[7]MONE(M)'!$AO93=\"\",\"\",'[7]MONE(M)'!$AO93)","v":"n.d."},{"$f":"IF('[8]MONE(M)'!$AO93=\"\",\"\",'[8]MONE(M)'!$AO93)","v":"n.d."},"n.d.","n.d.","n.d.","n.d.","n.d.","n.d.","n.d.",{"$f":"IF('[1]FISCAL(M)'!$K93=\"\",\"\",'[1]FISCAL(M)'!$K93)","v":"n.d."},"n.d.","n.d.",{"$f":"IF('[1]FISCAL(M)'!$L93=\"\",\"\",'[1]FISCAL(M)'!$L93)","v":"n.d."},"n.d.","n.d.","n.d.","n.d.","n.d.","n.d.","n.d.","n.d.","n.d.","n.d.","n.d.","n.d.","n.d.","n.d.","n.d.","n.d.","n.d.","n.d."]
[1997,"enero","1997-enero",{"$f":"IF('[1]REAL IPC(M)'!$AL94=\"\",\"\",+'[1]REAL IPC(M)'!$AL94)","v":10.939392891926714},{"$f":"IF('[1]REAL IPC(M)'!$BE94=\"\",\"\",+'[1]REAL IPC(M)'!$BE94)","v":9.9652303705388903},{"$f":"IF('[1]REAL IPC(M)'!$AM94=\"\",\"\",+'[1]REAL IPC(M)'!$AM94)","v":10.149089228667506},{"$f":"IF('[1]REAL IPC(M)'!$BI94=\"\",\"\",+'[1]REAL IPC(M)'!$BI94)","v":9.2114283905549765},{"$f":"IF('[1]REAL IMAE(M)'!BJ94=\"\",\"\",'[1]REAL IMAE(M)'!BJ94)","v":"n.d."},{"$f":"IF('[1]REAL IMAE(M)'!BK94=\"\",\"\",'[1]REAL IMAE(M)'!BK94)","v":"n.d."},{"$f":"IF('[1]REAL IMAE(M)'!BN94=\"\",\"\",'[1]REAL IMAE(M)'!BN94)","v":"n.d."},{"$f":"IF('[1]REAL IMAE(M)'!BO94=\"\",\"\",'[1]REAL IMAE(M)'!BO94)","v":"n.d."},{"$f":"IF('[1]EXT RIN(M)'!$K94=\"\",\"\",'[1]EXT RIN(M)'!$K94)","v":"n.d."},"",{"$f":"IF('[1]EXT RIN(M)'!$L94=\"\",\"\",'[1]EXT RIN(M)'!$L94)","v":"n.d."},"",{"$f":"IF('[1]MONE(M)CARD'!EG94=\"\",\"\",'[1]MONE(M)CARD'!EG94)","v":"n.d."},{"$f":"IF('[1]MONE(M)CARD'!EK94=\"\",\"\",'[1]MONE(M)CARD'!EK94)","v":"n.d."},{"$f":"IF('[1]MONE(M)CARD'!EP94=\"\",\"\",'[1]MONE(M)CARD'!EP94)","v":"n.d."},{"$f":"IF('[1]MONE(M)CARD'!ES94=\"\",\"\",'[1]MONE(M)CARD'!ES94)","v":"n.d."},{"$f":"IF('[1]MONE(M)CARD'!EV94=\"\",\"\",'[1]MONE(M)CARD'!EV94)","v":"n.d."},{"$f":"IF('[1]MONE(M)CARD'!EZ94=\"\",\"\",'[1]MONE(M)CARD'!EZ94)","v":"n.d."},{"$f":"IF('[1]MONE(M)CAPARD'!FC94=\"\",\"\",'[1]MONE(M)CAPARD'!FC94)","v":"n.d."},{"$f":"IF('[1]MONE(M)CAPARD'!FG94=\"\",\"\",'[1]MONE(M)CAPARD'!FG94)","v":"n.d."},{"$f":"IF('[1]MONE(M)CAPARD'!FL94=\"\",\"\",'[1]MONE(M)CAPARD'!FL94)","v":"n.d."},{"$f":"IF('[1]MONE(M)CAPARD'!FO94=\"\",\"\",'[1]MONE(M)CAPARD'!FO94)","v":"n.d."},{"$f":"IF('[1]MONE(M)CAPARD'!FR94=\"\",\"\",'[1]MONE(M)CAPARD'!FR94)","v":"n.d."},{"$f":"IF('[1]MONE(M)CAPARD'!FV94=\"\",\"\",'[1]MONE(M)CAPARD'!FV94)","v":"n.d."},{"$f":"IF('[1]MONE(M)CARD'!FV94=\"\",\"\",'[1]MONE(M)CARD'!FV94)","v":""},{"$f":"IF('[1]MONE(M)CARD'!GD94=\"\",\"\",'[1]MONE(M)CARD'!GD94)","v":"n.d."},{"$f":"IF('[1]MONE(M)CARD'!GE94=\"\",\"\",'[1]MONE(M)CARD'!GE94)","v":"n.d."},"n.d.","n.d.","n.d.","n.d.","n.d.","n.d.","n.d.","n.d.",null,"n.d.","n.d.","n.d.","n.d.","n.d.",{"$f":"IF('[1]MONE(M)CAPARD'!GS94=\"\",\"\",'[1]MONE(M)CAPARD'!GS94)","v":"n.d."},{"$f":"IF('[1]MONE(M)CARD'!HA94=\"\",\"\",'[1]MONE(M)CAPARD'!HA94)","v":"n.d."},{"$f":"IF('[1]MONE(M)CAPARD'!HB94=\"\",\"\",'[1]MONE(M)CAPARD'!HB94)","v":"n.d."},"n.d.","n.d.","n.d.","n.d.","n.d.","n.d.","n.d.","n.d.","n.d.","n.d.","n.d.","n.d.","n.d.","n.d.",{"$f":"IF('[1]MONE(M)CAPARD'!AS94=\"\",\"\",'[1]MONE(M)CAPARD'!AS94)","v":"n.d."},{"$f":"IF('[1]MONE(M)CAPARD'!AT94=\"\",\"\",'[1]MONE(M)CAPARD'!AT94)","v":"n.a."},{"$f":"IF('[1]MONE(M)CAPARD'!AU94=\"\",\"\",'[1]MONE(M)CAPARD'!AU94)","v":"n.d."},{"$f":"IF('[1]MONE(M)CAPARD'!AV94=\"\",\"\",'[1]MONE(M)CAPARD'!AV94)","v":"n.d."},{"$f":"IF('[1]MONE(M)CAPARD'!AW94=\"\",\"\",'[1]MONE(M)CAPARD'!AW94)","v":"n.a."},{"$f":"IF('[1]MONE(M)CAPARD'!AX94=\"\",\"\",'[1]MONE(M)CAPARD'!AX94)","v":"n.d."},{"$f":"IF('[1]MONE(M)CAPARD'!AY94=\"\",\"\",'[1]MONE(M)CAPARD'!AY94)","v":"n.a."},{"$f":"IF('[1]FISCAL(M)'!$K94=\"\",\"\",'[1]FISCAL(M)'!$K94)","v":"n.d."},{"$f":"IF('[1]FISCAL(M)'!$L94=\"\",\"\",'[1]FISCAL(M)'!$L94)","v":"n.d."},{"$f":"IF('[1]FISCAL(M)'!$AY94=\"\",\"\",'[1]FISCAL(M)'!$AY94)","v":"n.d."},{"$f":"IF('[1]FISCAL(M)'!$BI94=\"\",\"\",'[1]FISCAL(M)'!$BI94)","v":"n.d."},{"$f":"IF('[1]FISCAL(M)'!$BS94=\"\",\"\",'[1]FISCAL(M)'!$BS94)","v":"n.d."},{"$f":"IF('[1]FISCAL(M)'!$AZ94=\"\",\"\",'[1]FISCAL(M)'!$AZ94)","v":"n.d."},{"$f":"IF('[1]FISCAL(M)'!$BJ94=\"\",\"\",'[1]FISCAL(M)'!$BJ94)","v":"n.d."},{"$f":"IF('[1]FISCAL(M)'!$BT94=\"\",\"\",'[1]FISCAL(M)'!$BT94)","v":"n.d."},{"$f":"IF('[2]MONE(M)'!$AO94=\"\",\"\",'[2]MONE(M)'!$AO94)","v":"n.d."},{"$f":"IF('[3]MONE(M)'!$AO94=\"\",\"\",'[3]MONE(M)'!$AO94)","v":"n.d."},{"$f":"IF('[4]MONE(M)'!$AO94=\"\",\"\",'[4]MONE(M)'!$AO94)","v":"n.d."},{"$f":"+'[5]MONE(M)'!$AO94","v":"n.d."},{"$f":"IF('[6]MONE(M)'!$AO94=\"\",\"\",'[6]MONE(M)'!$AO94)","v":"n.d."},{"$f":"IF('[7]MONE(M)'!$AO94=\"\",\"\",'[7]MONE(M)'!$AO94)","v":"n.d."},{"$f":"IF('[8]MONE(M)'!$AO94=\"\",\"\",'[8]MONE(M)'!$AO94)","v":"n.d."},"n.d.","n.d.","n.d.","n.d.","n.d.","n.d.","n.d.",{"$f":"IF('[1]FISCAL(M)'!$K94=\"\",\"\",'[1]FISCAL(M)'!$K94)","v":"n.d."},"n.d.","n.d.",{"$f":"IF('[1]FISCAL(M)'!$L94=\"\",\"\",'[1]FISCAL(M)'!$L94)","v":"n.d."},"n.d.","n.d.","n.d.","n.d.","n.d.","n.d.","n.d.","n.d.","n.d.","n.d.","n.d.","n.d.","n.d.","n.d.","n.d.","n.d.","n.d.","n.d."]
[1997,"febrero","1997-febrero",{"$f":"IF('[1]REAL IPC(M)'!$AL95=\"\",\"\",+'[1]REAL IPC(M)'!$AL95)","v":11.488038497583952},{"$f":"IF('[1]REAL IPC(M)'!$BE95=\"\",\"\",+'[1]REAL IPC(M)'!$BE95)","v":9.7982170691983441},{"$f":"IF('[1]REAL IPC(M)'!$AM95=\"\",\"\",+'[1]REAL IPC(M)'!$AM95)","v":10.649039311793773},{"$f":"IF('[1]REAL IPC(M)'!$BI95=\"\",\"\",+'[1]REAL IPC(M)'!$BI95)","v":9.0575078570719558},{"$f":"IF('[1]REAL IMAE(M)'!BJ95=\"\",\"\",'[1]REAL IMAE(M)'!BJ95)","v":"n.d."},{"$f":"IF('[1]REAL IMAE(M)'!BK95=\"\",\"\",'[1]REAL IMAE(M)'!BK95)","v":"n.d."},{"$f":"IF('[1]REAL IMAE(M)'!BN95=\"\",\"\",'[1]REAL IMAE(M)'!BN95)","v":"n.d."},{"$f":"IF('[1]REAL IMAE(M)'!BO95=\"\",\"\",'[1]REAL IMAE(M)'!BO95)","v":"n.d."},{"$f":"IF('[1]EXT RIN(M)'!$K95=\"\",\"\",'[1]EXT RIN(M)'!$K95)","v":"n.d."},"",{"$f":"IF('[1]EXT RIN(M)'!$L95=\"\",\"\",'[1]EXT RIN(M)'!$L95)","v":"n.d."},"",{"$f":"IF('[1]MONE(M)CARD'!EG95=\"\",\"\",'[1]MONE(M)CARD'!EG95)","v":"n.d."},{"$f":"IF('[1]MONE(M)CARD'!EK95=\"\",\"\",'[1]MONE(M)CARD'!EK95)","v":"n.d."},{"$f":"IF('[1]MONE(M)CARD'!EP95=\"\",\"\",'[1]MONE(M)CARD'!EP95)","v":"n.d."},{"$f":"IF('[1]MONE(M)CARD'!ES95=\"\",\"\",'[1]MONE(M)CARD'!ES95)","v":"n.d."},{"$f":"IF('[1]MONE(M)CARD'!EV95=\"\",\"\",'[1]MONE(M)CARD'!EV95)","v":"n.d."},{"$f":"IF('[1]MONE(M)CARD'!EZ95=\"\",\"\",'[1]MONE(M)CARD'!EZ95)","v":"n.d."},{"$f":"IF('[1]MONE(M)CAPARD'!FC95=\"\",\"\",'[1]MONE(M)CAPARD'!FC95)","v":"n.d."},{"$f":"IF('[1]MONE(M)CAPARD'!FG95=\"\",\"\",'[1]MONE(M)CAPARD'!FG95)","v":"n.d."},{"$f":"IF('[1]MONE(M)CAPARD'!FL95=\"\",\"\",'[1]MONE(M)CAPARD'!FL95)","v":"n.d."},{"$f":"IF('[1]MONE(M)CAPARD'!FO95=\"\",\"\",'[1]MONE(M)CAPARD'!FO95)","v":"n.d."},{"$f":"IF('[1]MONE(M)CAPARD'!FR95=\"\",\"\",'[1]MONE(M)CAPARD'!FR95)","v":"n.d."},{"$f":"IF('[1]MONE(M)CAPARD'!FV95=\"\",\"\",'[1]MONE(M)CAPARD'!FV95)","v":"n.d."},{"$f":"IF('[1]MONE(M)CARD'!FV95=\"\",\"\",'[1]MONE(M)CARD'!FV95)","v":""},{"$f":"IF('[1]MONE(M)CARD'!GD95=\"\",\"\",'[1]MONE(M)CARD'!GD95)","v":"n.d."},{"$f":"IF('[1]MONE(M)CARD'!GE95=\"\",\"\",'[1]MONE(M)CARD'!GE95)","v":"n.d."},"n.d.","n.d.","n.d.","n.d.","n.d.","n.d.","n.d.","n.d.",null,"n.d.","n.d.","n.d.","n.d.","n.d.",{"$f":"IF('[1]MONE(M)CAPARD'!GS95=\"\",\"\",'[1]MONE(M)CAPARD'!GS95)","v":"n.d."},{"$f":"IF('[1]MONE(M)CARD'!HA95=\"\",\"\",'[1]MONE(M)CAPARD'!HA95)","v":"n.d."},{"$f":"IF('[1]MONE(M)CAPARD'!HB95=\"\",\"\",'[1]MONE(M)CAPARD'!HB95)","v":"n.d."},"n.d.","n.d.","n.d.","n.d.","n.d.","n.d.","n.d.","n.d.","n.d.","n.d.","n.d.","n.d.","n.d.","n.d.",{"$f":"IF('[1]MONE(M)CAPARD'!AS95=\"\",\"\",'[1]MONE(M)CAPARD'!AS95)","v":"n.d."},{"$f":"IF('[1]MONE(M)CAPARD'!AT95=\"\",\"\",'[1]MONE(M)CAPARD'!AT95)","v":"n.a."},{"$f":"IF('[1]MONE(M)CAPARD'!AU95=\"\",\"\",'[1]MONE(M)CAPARD'!AU95)","v":"n.d."},{"$f":"IF('[1]MONE(M)CAPARD'!AV95=\"\",\"\",'[1]MONE(M)CAPARD'!AV95)","v":"n.d."},{"$f":"IF('[1]MONE(M)CAPARD'!AW95=\"\",\"\",'[1]MONE(M)CAPARD'!AW95)","v":"n.a."},{"$f":"IF('[1]MONE(M)CAPARD'!AX95=\"\",\"\",'[1]MONE(M)CAPARD'!AX95)","v":"n.d."},{"$f":"IF('[1]MONE(M)CAPARD'!AY95=\"\",\"\",'[1]MONE(M)CAPARD'!AY95)","v":"n.a."},{"$f":"IF('[1]FISCAL(M)'!$K95=\"\",\"\",'[1]FISCAL(M)'!$K95)","v":"n.d."},{"$f":"IF('[1]FISCAL(M)'!$L95=\"\",\"\",'[1]FISCAL(M)'!$L95)","v":"n.d."},{"$f":"IF('[1]FISCAL(M)'!$AY95=\"\",\"\",'[1]FISCAL(M)'!$AY95)","v":"n.d."},{"$f":"IF('[1]FISCAL(M)'!$BI95=\"\",\"\",'[1]FISCAL(M)'!$BI95)","v":"n.d."},{"$f":"IF('[1]FISCAL(M)'!$BS95=\"\",\"\",'[1]FISCAL(M)'!$BS95)","v":"n.d."},{"$f":"IF('[1]FISCAL(M)'!$AZ95=\"\",\"\",'[1]FISCAL(M)'!$AZ95)","v":"n.d."},{"$f":"IF('[1]FISCAL(M)'!$BJ95=\"\",\"\",'[1]FISCAL(M)'!$BJ95)","v":"n.d."},{"$f":"IF('[1]FISCAL(M)'!$BT95=\"\",\"\",'[1]FISCAL(M)'!$BT95)","v":"n.d."},{"$f":"IF('[2]MONE(M)'!$AO95=\"\",\"\",'[2]MONE(M)'!$AO95)","v":"n.d."},{"$f":"IF('[3]MONE(M)'!$AO95=\"\",\"\",'[3]MONE(M)'!$AO95)","v":"n.d."},{"$f":"IF('[4]MONE(M)'!$AO95=\"\",\"\",'[4]MONE(M)'!$AO95)","v":"n.d."},{"$f":"+'[5]MONE(M)'!$AO95","v":"n.d."},{"$f":"IF('[6]MONE(M)'!$AO95=\"\",\"\",'[6]MONE(M)'!$AO95)","v":"n.d."},{"$f":"IF('[7]MONE(M)'!$AO95=\"\",\"\",'[7]MONE(M)'!$AO95)","v":"n.d."},{"$f":"IF('[8]MONE(M)'!$AO95=\"\",\"\",'[8]MONE(M)'!$AO95)","v":"n.d."},"n.d.","n.d.","n.d.","n.d.","n.d.","n.d.","n.d.",{"$f":"IF('[1]FISCAL(M)'!$K95=\"\",\"\",'[1]FISCAL(M)'!$K95)","v":"n.d."},"n.d.","n.d.",{"$f":"IF('[1]FISCAL(M)'!$L95=\"\",\"\",'[1]FISCAL(M)'!$L95)","v":"n.d."},"n.d.","n.d.","n.d.","n.d.","n.d.","n.d.","n.d.","n.d.","n.d.","n.d.","n.d.","n.d.","n.d.","n.d.","n.d.","n.d.","n.d.","n.d."]
[1997,"marzo","1997-marzo",{"$f":"IF('[1]REAL IPC(M)'!$AL96=\"\",\"\",+'[1]REAL IPC(M)'!$AL96)","v":11.024863915853157},{"$f":"IF('[1]REAL IPC(M)'!$BE96=\"\",\"\",+'[1]REAL IPC(M)'!$BE96)","v":9.632137020149024},{"$f":"IF('[1]REAL IPC(M)'!$AM96=\"\",\"\",+'[1]REAL IPC(M)'!$AM96)","v":10.193723046859438},{"$f":"IF('[1]REAL IPC(M)'!$BI96=\"\",\"\",+'[1]REAL IPC(M)'!$BI96)","v":8.903956691328796},{"$f":"IF('[1]REAL IMAE(M)'!BJ96=\"\",\"\",'[1]REAL IMAE(M)'!BJ96)","v":"n.d."},{"$f":"IF('[1]REAL IMAE(M)'!BK96=\"\",\"\",'[1]REAL IMAE(M)'!BK96)","v":"n.d."},{"$f":"IF('[1]REAL IMAE(M)'!BN96=\"\",\"\",'[1]REAL IMAE(M)'!BN96)","v":"n.d."},{"$f":"IF('[1]REAL IMAE(M)'!BO96=\"\",\"\",'[1]REAL IMAE(M)'!BO96)","v":"n.d."},{"$f":"IF('[1]EXT RIN(M)'!$K96=\"\",\"\",'[1]EXT RIN(M)'!$K96)","v":"n.d."},"",{"$f":"IF('[1]EXT RIN(M)'!$L96=\"\",\"\",'[1]EXT RIN(M)'!$L96)","v":"n.d."},"",{"$f":"IF('[1]MONE(M)CARD'!EG96=\"\",\"\",'[1]MONE(M)CARD'!EG96)","v":"n.d."},{"$f":"IF('[1]MONE(M)CARD'!EK96=\"\",\"\",'[1]MONE(M)CARD'!EK96)","v":"n.d."},{"$f":"IF('[1]MONE(M)CARD'!EP96=\"\",\"\",'[1]MONE(M)CARD'!EP96)","v":"n.d."},{"$f":"IF('[1]MONE(M)CARD'!ES96=\"\",\"\",'[1]MONE(M)CARD'!ES96)","v":"n.d."},{"$f":"IF('[1]MONE(M)CARD'!EV96=\"\",\"\",'[1]MONE(M)CARD'!EV96)","v":"n.d."},{"$f":"IF('[1]MONE(M)CARD'!EZ96=\"\",\"\",'[1]MONE(M)CARD'!EZ96)","v":"n.d."},{"$f":"IF('[1]MONE(M)CAPARD'!FC96=\"\",\"\",'[1]MONE(M)CAPARD'!FC96)","v":"n.d."},{"$f":"IF('[1]MONE(M)CAPARD'!FG96=\"\",\"\",'[1]MONE(M)CAPARD'!FG96)","v":"n.d."},{"$f":"IF('[1]MONE(M)CAPARD'!FL96=\"\",\"\",'[1]MONE(M)CAPARD'!FL96)","v":"n.d."},{"$f":"IF('[1]MONE(M)CAPARD'!FO96=\"\",\"\",'[1]MONE(M)CAPARD'!FO96)","v":"n.d."},{"$f":"IF('[1]MONE(M)CAPARD'!FR96=\"\",\"\",'[1]MONE(M)CAPARD'!FR96)","v":"n.d."},{"$f":"IF('[1]MONE(M)CAPARD'!FV96=\"\",\"\",'[1]MONE(M)CAPARD'!FV96)","v":"n.d."},{"$f":"IF('[1]MONE(M)CARD'!FV96=\"\",\"\",'[1]MONE(M)CARD'!FV96)","v":""},{"$f":"IF('[1]MONE(M)CARD'!GD96=\"\",\"\",'[1]MONE(M)CARD'!GD96)","v":"n.d."},{"$f":"IF('[1]MONE(M)CARD'!GE96=\"\",\"\",'[1]MONE(M)CARD'!GE96)","v":"n.d."},"n.d.","n.d.","n.d.","n.d.","n.d.","n.d.","n.d.","n.d.",null,"n.d.","n.d.","n.d.","n.d.","n.d.",{"$f":"IF('[1]MONE(M)CAPARD'!GS96=\"\",\"\",'[1]MONE(M)CAPARD'!GS96)","v":"n.d."},{"$f":"IF('[1]MONE(M)CARD'!HA96=\"\",\"\",'[1]MONE(M)CAPARD'!HA96)","v":"n.d."},{"$f":"IF('[1]MONE(M)CAPARD'!HB96=\"\",\"\",'[1]MONE(M)CAPARD'!HB96)","v":"n.d."},"n.d.","n.d.","n.d.","n.d.","n.d.","n.d.","n.d.","n.d.","n.d.","n.d.","n.d.","n.d.","n.d.","n.d.",{"$f":"IF('[1]MONE(M)CAPARD'!AS96=\"\",\"\",'[1]MONE(M)CAPARD'!AS96)","v":"n.d."},{"$f":"IF('[1]MONE(M)CAPARD'!AT96=\"\",\"\",'[1]MONE(M)CAPARD'!AT96)","v":"n.a."},{"$f":"IF('[1]MONE(M)CAPARD'!AU96=\"\",\"\",'[1]MONE(M)CAPARD'!AU96)","v":"n.d."},{"$f":"IF('[1]MONE(M)CAPARD'!AV96=\"\",\"\",'[1]MONE(M)CAPARD'!AV96)","v":"n.d."},{"$f":"IF('[1]MONE(M)CAPARD'!AW96=\"\",\"\",'[1]MONE(M)CAPARD'!AW96)","v":"n.a."},{"$f":"IF('[1]MONE(M)CAPARD'!AX96=\"\",\"\",'[1]MONE(M)CAPARD'!AX96)","v":"n.d."},{"$f":"IF('[1]MONE(M)CAPARD'!AY96=\"\",\"\",'[1]MONE(M)CAPARD'!AY96)","v":"n.a."},{"$f":"IF('[1]FISCAL(M)'!$K96=\"\",\"\",'[1]FISCAL(M)'!$K96)","v":"n.d."},{"$f":"IF('[1]FISCAL(M)'!$L96=\"\",\"\",'[1]FISCAL(M)'!$L96)","v":"n.d."},{"$f":"IF('[1]FISCAL(M)'!$AY96=\"\",\"\",'[1]FISCAL(M)'!$AY96)","v":"n.d."},{"$f":"IF('[1]FISCAL(M)'!$BI96=\"\",\"\",'[1]FISCAL(M)'!$BI96)","v":"n.d."},{"$f":"IF('[1]FISCAL(M)'!$BS96=\"\",\"\",'[1]FISCAL(M)'!$BS96)","v":"n.d."},{"$f":"IF('[1]FISCAL(M)'!$AZ96=\"\",\"\",'[1]FISCAL(M)'!$AZ96)","v":"n.d."},{"$f":"IF('[1]FISCAL(M)'!$BJ96=\"\",\"\",'[1]FISCAL(M)'!$BJ96)","v":"n.d."},{"$f":"IF('[1]FISCAL(M)'!$BT96=\"\",\"\",'[1]FISCAL(M)'!$BT96)","v":"n.d."},{"$f":"IF('[2]MONE(M)'!$AO96=\"\",\"\",'[2]MONE(M)'!$AO96)","v":"n.d."},{"$f":"IF('[3]MONE(M)'!$AO96=\"\",\"\",'[3]MONE(M)'!$AO96)","v":"n.d."},{"$f":"IF('[4]MONE(M)'!$AO96=\"\",\"\",'[4]MONE(M)'!$AO96)","v":"n.d."},{"$f":"+'[5]MONE(M)'!$AO96","v":"n.d."},{"$f":"IF('[6]MONE(M)'!$AO96=\"\",\"\",'[6]MONE(M)'!$AO96)","v":"n.d."},{"$f":"IF('[7]MONE(M)'!$AO96=\"\",\"\",'[7]MONE(M)'!$AO96)","v":"n.d."},{"$f":"IF('[8]MONE(M)'!$AO96=\"\",\"\",'[8]MONE(M)'!$AO96)","v":"n.d."},"n.d.","n.d.","n.d.","n.d.","n.d.","n.d.","n.d.",{"$f":"IF('[1]FISCAL(M)'!$K96=\"\",\"\",'[1]FISCAL(M)'!$K96)","v":"n.d."},"n.d.","n.d.",{"$f":"IF('[1]FISCAL(M)'!$L96=\"\",\"\",'[1]FISCAL(M)'!$L96)","v":"n.d."},"n.d.","n.d.","n.d.","n.d.","n.d.","n.d.","n.d.","n.d.","n.d.","n.d.","n.d.","n.d.","n.d.","n.d.","n.d.","n.d.","n.d.","n.d."]
[1997,"abril","1997-abril",{"$f":"IF('[1]REAL IPC(M)'!$AL97=\"\",\"\",+'[1]REAL IPC(M)'!$AL97)","v":10.660105256014486},{"$f":"IF('[1]REAL IPC(M)'!$BE97=\"\",\"\",+'[1]REAL IPC(M)'!$BE97)","v":9.4672621288841583},{"$f":"IF('[1]REAL IPC(M)'!$AM97=\"\",\"\",+'[1]REAL IPC(M)'!$AM97)","v":9.8202037790425791},{"$f":"IF('[1]REAL IPC(M)'!$BI97=\"\",\"\",+'[1]REAL IPC(M)'!$BI97)","v":8.751058603377281},{"$f":"IF('[1]REAL IMAE(M)'!BJ97=\"\",\"\",'[1]REAL IMAE(M)'!BJ97)","v":"n.d."},{"$f":"IF('[1]REAL IMAE(M)'!BK97=\"\",\"\",'[1]REAL IMAE(M)'!BK97)","v":"n.d."},{"$f":"IF('[1]REAL IMAE(M)'!BN97=\"\",\"\",'[1]REAL IMAE(M)'!BN97)","v":"n.d."},{"$f":"IF('[1]REAL IMAE(M)'!BO97=\"\",\"\",'[1]REAL IMAE(M)'!BO97)","v":"n.d."},{"$f":"IF('[1]EXT RIN(M)'!$K97=\"\",\"\",'[1]EXT RIN(M)'!$K97)","v":"n.d."},"",{"$f":"IF('[1]EXT RIN(M)'!$L97=\"\",\"\",'[1]EXT RIN(M)'!$L97)","v":"n.d."},"",{"$f":"IF('[1]MONE(M)CARD'!EG97=\"\",\"\",'[1]MONE(M)CARD'!EG97)","v":"n.d."},{"$f":"IF('[1]MONE(M)CARD'!EK97=\"\",\"\",'[1]MONE(M)CARD'!EK97)","v":"n.d."},{"$f":"IF('[1]MONE(M)CARD'!EP97=\"\",\"\",'[1]MONE(M)CARD'!EP97)","v":"n.d."},{"$f":"IF('[1]MONE(M)CARD'!ES97=\"\",\"\",'[1]MONE(M)CARD'!ES97)","v":"n.d."},{"$f":"IF('[1]MONE(M)CARD'!EV97=\"\",\"\",'[1]MONE(M)CARD'!EV97)","v":"n.d."},{"$f":"IF('[1]MONE(M)CARD'!EZ97=\"\",\"\",'[1]MONE(M)CARD'!EZ97)","v":"n.d."},{"$f":"IF('[1]MONE(M)CAPARD'!FC97=\"\",\"\",'[1]MONE(M)CAPARD'!FC97)","v":"n.d."},{"$f":"IF('[1]MONE(M)CAPARD'!FG97=\"\",\"\",'[1]MONE(M)CAPARD'!FG97)","v":"n.d."},{"$f":"IF('[1]MONE(M)CAPARD'!FL97=\"\",\"\",'[1]MONE(M)CAPARD'!FL97)","v":"n.d."},{"$f":"IF('[1]MONE(M)CAPARD'!FO97=\"\",\"\",'[1]MONE(M)CAPARD'!FO97)","v":"n.d."},{"$f":"IF('[1]MONE(M)CAPARD'!FR97=\"\",\"\",'[1]MONE(M)CAPARD'!FR97)","v":"n.d."},{"$f":"IF('[1]MONE(M)CAPARD'!FV97=\"\",\"\",'[1]MONE(M)CAPARD'!FV97)","v":"n.d."},{"$f":"IF('[1]MONE(M)CARD'!FV97=\"\",\"\",'[1]MONE(M)CARD'!FV97)","v":""},{"$f":"IF('[1]MONE(M)CARD'!GD97=\"\",\"\",'[1]MONE(M)CARD'!GD97)","v":"n.d."},{"$f":"IF('[1]MONE(M)CARD'!GE97=\"\",\"\",'[1]MONE(M)CARD'!GE97)","v":"n.d."},"n.d.","n.d.","n.d.","n.d.","n.d.","n.d.","n.d.","n.d.",null,"n.d.","n.d.","n.d.","n.d.","n.d.",{"$f":"IF('[1]MONE(M)CAPARD'!GS97=\"\",\"\",'[1]MONE(M)CAPARD'!GS97)","v":"n.d."},{"$f":"IF('[1]MONE(M)CARD'!HA97=\"\",\"\",'[1]MONE(M)CAPARD'!HA97)","v":"n.d."},{"$f":"IF('[1]MONE(M)CAPARD'!HB97=\"\",\"\",'[1]MONE(M)CAPARD'!HB97)","v":"n.d."},"n.d.","n.d.","n.d.","n.d.","n.d.","n.d.","n.d.","n.d.","n.d.","n.d.","n.d.","n.d.","n.d.","n.d.",{"$f":"IF('[1]MONE(M)CAPARD'!AS97=\"\",\"\",'[1]MONE(M)CAPARD'!AS97)","v":"n.d."},{"$f":"IF('[1]MONE(M)CAPARD'!AT97=\"\",\"\",'[1]MONE(M)CAPARD'!AT97)","v":"n.a."},{"$f":"IF('[1]MONE(M)CAPARD'!AU97=\"\",\"\",'[1]MONE(M)CAPARD'!AU97)","v":"n.d."},{"$f":"IF('[1]MONE(M)CAPARD'!AV97=\"\",\"\",'[1]MONE(M)CAPARD'!AV97)","v":"n.d."},{"$f":"IF('[1]MONE(M)CAPARD'!AW97=\"\",\"\",'[1]MONE(M)CAPARD'!AW97)","v":"n.a."},{"$f":"IF('[1]MONE(M)CAPARD'!AX97=\"\",\"\",'[1]MONE(M)CAPARD'!AX97)","v":"n.d."},{"$f":"IF('[1]MONE(M)CAPARD'!AY97=\"\",\"\",'[1]MONE(M)CAPARD'!AY97)","v":"n.a."},{"$f":"IF('[1]FISCAL(M)'!$K97=\"\",\"\",'[1]FISCAL(M)'!$K97)","v":"n.d."},{"$f":"IF('[1]FISCAL(M)'!$L97=\"\",\"\",'[1]FISCAL(M)'!$L97)","v":"n.d."},{"$f":"IF('[1]FISCAL(M)'!$AY97=\"\",\"\",'[1]FISCAL(M)'!$AY97)","v":"n.d."},{"$f":"IF('[1]FISCAL(M)'!$BI97=\"\",\"\",'[1]FISCAL(M)'!$BI97)","v":"n.d."},{"$f":"IF('[1]FISCAL(M)'!$BS97=\"\",\"\",'[1]FISCAL(M)'!$BS97)","v":"n.d."},{"$f":"IF('[1]FISCAL(M)'!$AZ97=\"\",\"\",'[1]FISCAL(M)'!$AZ97)","v":"n.d."},{"$f":"IF('[1]FISCAL(M)'!$BJ97=\"\",\"\",'[1]FISCAL(M)'!$BJ97)","v":"n.d."},{"$f":"IF('[1]FISCAL(M)'!$BT97=\"\",\"\",'[1]FISCAL(M)'!$BT97)","v":"n.d."},{"$f":"IF('[2]MONE(M)'!$AO97=\"\",\"\",'[2]MONE(M)'!$AO97)","v":"n.d."},{"$f":"IF('[3]MONE(M)'!$AO97=\"\",\"\",'[3]MONE(M)'!$AO97)","v":"n.d."},{"$f":"IF('[4]MONE(M)'!$AO97=\"\",\"\",'[4]MONE(M)'!$AO97)","v":"n.d."},{"$f":"+'[5]MONE(M)'!$AO97","v":"n.d."},{"$f":"IF('[6]MONE(M)'!$AO97=\"\",\"\",'[6]MONE(M)'!$AO97)","v":"n.d."},{"$f":"IF('[7]MONE(M)'!$AO97=\"\",\"\",'[7]MONE(M)'!$AO97)","v":"n.d."},{"$f":"IF('[8]MONE(M)'!$AO97=\"\",\"\",'[8]MONE(M)'!$AO97)","v":"n.d."},"n.d.","n.d.","n.d.","n.d.","n.d.","n.d.","n.d.",{"$f":"IF('[1]FISCAL(M)'!$K97=\"\",\"\",'[1]FISCAL(M)'!$K97)","v":"n.d."},"n.d.","n.d.",{"$f":"IF('[1]FISCAL(M)'!$L97=\"\",\"\",'[1]FISCAL(M)'!$L97)","v":"n.d."},"n.d.","n.d.","n.d.","n.d.","n.d.","n.d.","n.d.","n.d.","n.d.","n.d.","n.d.","n.d.","n.d.","n.d.","n.d.","n.d.","n.d.","n.d."]
[1997,"mayo ","1997-mayo ",{"$f":"IF('[1]REAL IPC(M)'!$AL98=\"\",\"\",+'[1]REAL IPC(M)'!$AL98)","v":9.9981327559401922},{"$f":"IF('[1]REAL IPC(M)'!$BE98=\"\",\"\",+'[1]REAL IPC(M)'!$BE98)","v":9.3039404492047062},{"$f":"IF('[1]REAL IPC(M)'!$AM98=\"\",\"\",+'[1]REAL IPC(M)'!$AM98)","v":9.258120312683026},{"$f":"IF('[1]REAL IPC(M)'!$BI98=\"\",\"\",+'[1]REAL IPC(M)'!$BI98)","v":8.5991776072040338},{"$f":"IF('[1]REAL IMAE(M)'!BJ98=\"\",\"\",'[1]REAL IMAE(M)'!BJ98)","v":"n.d."},{"$f":"IF('[1]REAL IMAE(M)'!BK98=\"\",\"\",'[1]REAL IMAE(M)'!BK98)","v":"n.d."},{"$f":"IF('[1]REAL IMAE(M)'!BN98=\"\",\"\",'[1]REAL IMAE(M)'!BN98)","v":"n.d."},{"$f":"IF('[1]REAL IMAE(M)'!BO98=\"\",\"\",'[1]REAL IMAE(M)'!BO98)","v":"n.d."},{"$f":"IF('[1]EXT RIN(M)'!$K98=\"\",\"\",'[1]EXT RIN(M)'!$K98)","v":"n.d."},"",{"$f":"IF('[1]EXT RIN(M)'!$L98=\"\",\"\",'[1]EXT RIN(M)'!$L98)","v":"n.d."},"",{"$f":"IF('[1]MONE(M)CARD'!EG98=\"\",\"\",'[1]MONE(M)CARD'!EG98)","v":"n.d."},{"$f":"IF('[1]MONE(M)CARD'!EK98=\"\",\"\",'[1]MONE(M)CARD'!EK98)","v":"n.d."},{"$f":"IF('[1]MONE(M)CARD'!EP98=\"\",\"\",'[1]MONE(M)CARD'!EP98)","v":"n.d."},{"$f":"IF('[1]MONE(M)CARD'!ES98=\"\",\"\",'[1]MONE(M)CARD'!ES98)","v":"n.d."},{"$f":"IF('[1]MONE(M)CARD'!EV98=\"\",\"\",'[1]MONE(M)CARD'!EV98)","v":"n.d."},{"$f":"IF('[1]MONE(M)CARD'!EZ98=\"\",\"\",'[1]MONE(M)CARD'!EZ98)","v":"n.d."},{"$f":"IF('[1]MONE(M)CAPARD'!FC98=\"\",\"\",'[1]MONE(M)CAPARD'!FC98)","v":"n.d."},{"$f":"IF('[1]MONE(M)CAPARD'!FG98=\"\",\"\",'[1]MONE(M)CAPARD'!FG98)","v":"n.d."},{"$f":"IF('[1]MONE(M)CAPARD'!FL98=\"\",\"\",'[1]MONE(M)CAPARD'!FL98)","v":"n.d."},{"$f":"IF('[1]MONE(M)CAPARD'!FO98=\"\",\"\",'[1]MONE(M)CAPARD'!FO98)","v":"n.d."},{"$f":"IF('[1]MONE(M)CAPARD'!FR98=\"\",\"\",'[1]MONE(M)CAPARD'!FR98)","v":"n.d."},{"$f":"IF('[1]MONE(M)CAPARD'!FV98=\"\",\"\",'[1]MONE(M)CAPARD'!FV98)","v":"n.d."},{"$f":"IF('[1]MONE(M)CARD'!FV98=\"\",\"\",'[1]MONE(M)CARD'!FV98)","v":""},{"$f":"IF('[1]MONE(M)CARD'!GD98=\"\",\"\",'[1]MONE(M)CARD'!GD98)","v":"n.d."},{"$f":"IF('[1]MONE(M)CARD'!GE98=\"\",\"\",'[1]MONE(M)CARD'!GE98)","v":"n.d."},"n.d.","n.d.","n.d.","n.d.","n.d.","n.d.","n.d.","n.d.",null,"n.d.","n.d.","n.d.","n.d.","n.d.",{"$f":"IF('[1]MONE(M)CAPARD'!GS98=\"\",\"\",'[1]MONE(M)CAPARD'!GS98)","v":"n.d."},{"$f":"IF('[1]MONE(M)CARD'!HA98=\"\",\"\",'[1]MONE(M)CAPARD'!HA98)","v":"n.d."},{"$f":"IF('[1]MONE(M)CAPARD'!HB98=\"\",\"\",'[1]MONE(M)CAPARD'!HB98)","v":"n.d."},"n.d.","n.d.","n.d.","n.d.","n.d.","n.d.","n.d.","n.d.","n.d.","n.d.","n.d.","n.d.","n.d.","n.d.",{"$f":"IF('[1]MONE(M)CAPARD'!AS98=\"\",\"\",'[1]MONE(M)CAPARD'!AS98)","v":"n.d."},{"$f":"IF('[1]MONE(M)CAPARD'!AT98=\"\",\"\",'[1]MONE(M)CAPARD'!AT98)","v":"n.a."},{"$f":"IF('[1]MONE(M)CAPARD'!AU98=\"\",\"\",'[1]MONE(M)CAPARD'!AU98)","v":"n.d."},{"$f":"IF('[1]MONE(M)CAPARD'!AV98=\"\",\"\",'[1]MONE(M)CAPARD'!AV98)","v":"n.d."},{"$f":"IF('[1]MONE(M)CAPARD'!AW98=\"\",\"\",'[1]MONE(M)CAPARD'!AW98)","v":"n.a."},{"$f":"IF('[1]MONE(M)CAPARD'!AX98=\"\",\"\",'[1]MONE(M)CAPARD'!AX98)","v":"n.d."},{"$f":"IF('[1]MONE(M)CAPARD'!AY98=\"\",\"\",'[1]MONE(M)CAPARD'!AY98)","v":"n.a."},{"$f":"IF('[1]FISCAL(M)'!$K98=\"\",\"\",'[1]FISCAL(M)'!$K98)","v":"n.d."},{"$f":"IF('[1]FISCAL(M)'!$L98=\"\",\"\",'[1]FISCAL(M)'!$L98)","v":"n.d."},{"$f":"IF('[1]FISCAL(M)'!$AY98=\"\",\"\",'[1]FISCAL(M)'!$AY98)","v":"n.d."},{"$f":"IF('[1]FISCAL(M)'!$BI98=\"\",\"\",'[1]FISCAL(M)'!$BI98)","v":"n.d."},{"$f":"IF('[1]FISCAL(M)'!$BS98=\"\",\"\",'[1]FISCAL(M)'!$BS98)","v":"n.d."},{"$f":"IF('[1]FISCAL(M)'!$AZ98=\"\",\"\",'[1]FISCAL(M)'!$AZ98)","v":"n.d."},{"$f":"IF('[1]FISCAL(M)'!$BJ98=\"\",\"\",'[1]FISCAL(M)'!$BJ98)","v":"n.d."},{"$f":"IF('[1]FISCAL(M)'!$BT98=\"\",\"\",'[1]FISCAL(M)'!$BT98)","v":"n.d."},{"$f":"IF('[2]MONE(M)'!$AO98=\"\",\"\",'[2]MONE(M)'!$AO98)","v":"n.d."},{"$f":"IF('[3]MONE(M)'!$AO98=\"\",\"\",'[3]MONE(M)'!$AO98)","v":"n.d."},{"$f":"IF('[4]MONE(M)'!$AO98=\"\",\"\",'[4]MONE(M)'!$AO98)","v":"n.d."},{"$f":"+'[5]MONE(M)'!$AO98","v":"n.d."},{"$f":"IF('[6]MONE(M)'!$AO98=\"\",\"\",'[6]MONE(M)'!$AO98)","v":"n.d."},{"$f":"IF('[7]MONE(M)'!$AO98=\"\",\"\",'[7]MONE(M)'!$AO98)","v":"n.d."},{"$f":"IF('[8]MONE(M)'!$AO98=\"\",\"\",'[8]MONE(M)'!$AO98)","v":"n.d."},"n.d.","n.d.","n.d.","n.d.","n.d.","n.d.","n.d.",{"$f":"IF('[1]FISCAL(M)'!$K98=\"\",\"\",'[1]FISCAL(M)'!$K98)","v":"n.d."},"n.d.","n.d.",{"$f":"IF('[1]FISCAL(M)'!$L98=\"\",\"\",'[1]FISCAL(M)'!$L98)","v":"n.d."},"n.d.","n.d.","n.d.","n.d.","n.d.","n.d.","n.d.","n.d.","n.d.","n.d.","n.d.","n.d.","n.d.","n.d.","n.d.","n.d.","n.d.","n.d."]
[1997,"junio ","1997-junio ",{"$f":"IF('[1]REAL IPC(M)'!$AL99=\"\",\"\",+'[1]REAL IPC(M)'!$AL99)","v":9.5191666375697537},{"$f":"IF('[1]REAL IPC(M)'!$BE99=\"\",\"\",+'[1]REAL IPC(M)'!$BE99)","v":9.1425722465395367},{"$f":"IF('[1]REAL IPC(M)'!$AM99=\"\",\"\",+'[1]REAL IPC(M)'!$AM99)","v":8.8381920821613456},{"$f":"IF('[1]REAL IPC(M)'!$BI99=\"\",\"\",+'[1]REAL IPC(M)'!$BI99)","v":8.44873494796785},{"$f":"IF('[1]REAL IMAE(M)'!BJ99=\"\",\"\",'[1]REAL IMAE(M)'!BJ99)","v":"n.d."},{"$f":"IF('[1]REAL IMAE(M)'!BK99=\"\",\"\",'[1]REAL IMAE(M)'!BK99)","v":"n.d."},{"$f":"IF('[1]REAL IMAE(M)'!BN99=\"\",\"\",'[1]REAL IMAE(M)'!BN99)","v":"n.d."},{"$f":"IF('[1]REAL IMAE(M)'!BO99=\"\",\"\",'[1]REAL IMAE(M)'!BO99)","v":"n.d."},{"$f":"IF('[1]EXT RIN(M)'!$K99=\"\",\"\",'[1]EXT RIN(M)'!$K99)","v":"n.d."},"",{"$f":"IF('[1]EXT RIN(M)'!$L99=\"\",\"\",'[1]EXT RIN(M)'!$L99)","v":"n.d."},"",{"$f":"IF('[1]MONE(M)CARD'!EG99=\"\",\"\",'[1]MONE(M)CARD'!EG99)","v":"n.d."},{"$f":"IF('[1]MONE(M)CARD'!EK99=\"\",\"\",'[1]MONE(M)CARD'!EK99)","v":"n.d."},{"$f":"IF('[1]MONE(M)CARD'!EP99=\"\",\"\",'[1]MONE(M)CARD'!EP99)","v":"n.d."},{"$f":"IF('[1]MONE(M)CARD'!ES99=\"\",\"\",'[1]MONE(M)CARD'!ES99)","v":"n.d."},{"$f":"IF('[1]MONE(M)CARD'!EV99=\"\",\"\",'[1]MONE(M)CARD'!EV99)","v":"n.d."},{"$f":"IF('[1]MONE(M)CARD'!EZ99=\"\",\"\",'[1]MONE(M)CARD'!EZ99)","v":"n.d."},{"$f":"IF('[1]MONE(M)CAPARD'!FC99=\"\",\"\",'[1]MONE(M)CAPARD'!FC99)","v":"n.d."},{"$f":"IF('[1]MONE(M)CAPARD'!FG99=\"\",\"\",'[1]MONE(M)CAPARD'!FG99)","v":"n.d."},{"$f":"IF('[1]MONE(M)CAPARD'!FL99=\"\",\"\",'[1]MONE(M)CAPARD'!FL99)","v":"n.d."},{"$f":"IF('[1]MONE(M)CAPARD'!FO99=\"\",\"\",'[1]MONE(M)CAPARD'!FO99)","v":"n.d."},{"$f":"IF('[1]MONE(M)CAPARD'!FR99=\"\",\"\",'[1]MONE(M)CAPARD'!FR99)","v":"n.d."},{"$f":"IF('[1]MONE(M)CAPARD'!FV99=\"\",\"\",'[1]MONE(M)CAPARD'!FV99)","v":"n.d."},{"$f":"IF('[1]MONE(M)CARD'!FV99=\"\",\"\",'[1]MONE(M)CARD'!FV99)","v":""},{"$f":"IF('[1]MONE(M)CARD'!GD99=\"\",\"\",'[1]MONE(M)CARD'!GD99)","v":"n.d."},{"$f":"IF('[1]MONE(M)CARD'!GE99=\"\",\"\",'[1]MONE(M)CARD'!GE99)","v":"n.d."},"n.d.","n.d.","n.d.","n.d.","n.d.","n.d.","n.d.","n.d.",null,"n.d.","n.d.","n.d.","n.d.","n.d.",{"$f":"IF('[1]MONE(M)CAPARD'!GS99=\"\",\"\",'[1]MONE(M)CAPARD'!GS99)","v":"n.d."},{"$f":"IF('[1]MONE(M)CARD'!HA99=\"\",\"\",'[1]MONE(M)CAPARD'!HA99)","v":"n.d."},{"$f":"IF('[1]MONE(M)CAPARD'!HB99=\"\",\"\",'[1]MONE(M)CAPARD'!HB99)","v":"n.d."},"n.d.","n.d.","n.d.","n.d.","n.d.","n.d.","n.d.","n.d.","n.d.","n.d.","n.d.","n.d.","n.d.","n.d.",{"$f":"IF('[1]MONE(M)CAPARD'!AS99=\"\",\"\",'[1]MONE(M)CAPARD'!AS99)","v":"n.d."},{"$f":"IF('[1]MONE(M)CAPARD'!AT99=\"\",\"\",'[1]MONE(M)CAPARD'!AT99)","v":"n.a."},{"$f":"IF('[1]MONE(M)CAPARD'!AU99=\"\",\"\",'[1]MONE(M)CAPARD'!AU99)","v":"n.d."},{"$f":"IF('[1]MONE(M)CAPARD'!AV99=\"\",\"\",'[1]MONE(M)CAPARD'!AV99)","v":"n.d."},{"$f":"IF('[1]MONE(M)CAPARD'!AW99=\"\",\"\",'[1]MONE(M)CAPARD'!AW99)","v":"n.a."},{"$f":"IF('[1]MONE(M)CAPARD'!AX99=\"\",\"\",'[1]MONE(M)CAPARD'!AX99)","v":"n.d."},{"$f":"IF('[1]MONE(M)CAPARD'!AY99=\"\",\"\",'[1]MONE(M)CAPARD'!AY99)","v":"n.a."},{"$f":"IF('[1]FISCAL(M)'!$K99=\"\",\"\",'[1]FISCAL(M)'!$K99)","v":"n.d."},{"$f":"IF('[1]FISCAL(M)'!$L99=\"\",\"\",'[1]FISCAL(M)'!$L99)","v":"n.d."},{"$f":"IF('[1]FISCAL(M)'!$AY99=\"\",\"\",'[1]FISCAL(M)'!$AY99)","v":"n.d."},{"$f":"IF('[1]FISCAL(M)'!$BI99=\"\",\"\",'[1]FISCAL(M)'!$BI99)","v":"n.d."},{"$f":"IF('[1]FISCAL(M)'!$BS99=\"\",\"\",'[1]FISCAL(M)'!$BS99)","v":"n.d."},{"$f":"IF('[1]FISCAL(M)'!$AZ99=\"\",\"\",'[1]FISCAL(M)'!$AZ99)","v":"n.d."},{"$f":"IF('[1]FISCAL(M)'!$BJ99=\"\",\"\",'[1]FISCAL(M)'!$BJ99)","v":"n.d."},{"$f":"IF('[1]FISCAL(M)'!$BT99=\"\",\"\",'[1]FISCAL(M)'!$BT99)","v":"n.d."},{"$f":"IF('[2]MONE(M)'!$AO99=\"\",\"\",'[2]MONE(M)'!$AO99)","v":"n.d."},{"$f":"IF('[3]MONE(M)'!$AO99=\"\",\"\",'[3]MONE(M)'!$AO99)","v":"n.d."},{"$f":"IF('[4]MONE(M)'!$AO99=\"\",\"\",'[4]MONE(M)'!$AO99)","v":"n.d."},{"$f":"+'[5]MONE(M)'!$AO99","v":"n.d."},{"$f":"IF('[6]MONE(M)'!$AO99=\"\",\"\",'[6]MONE(M)'!$AO99)","v":"n.d."},{"$f":"IF('[7]MONE(M)'!$AO99=\"\",\"\",'[7]MONE(M)'!$AO99)","v":"n.d."},{"$f":"IF('[8]MONE(M)'!$AO99=\"\",\"\",'[8]MONE(M)'!$AO99)","v":"n.d."},"n.d.","n.d.","n.d.","n.d.","n.d.","n.d.","n.d.",{"$f":"IF('[1]FISCAL(M)'!$K99=\"\",\"\",'[1]FISCAL(M)'!$K99)","v":"n.d."},"n.d.","n.d.",{"$f":"IF('[1]FISCAL(M)'!$L99=\"\",\"\",'[1]FISCAL(M)'!$L99)","v":"n.d."},"n.d.","n.d.","n.d.","n.d.","n.d.","n.d.","n.d.","n.d.","n.d.","n.d.","n.d.","n.d.","n.d.","n.d.","n.d.","n.d.","n.d.","n.d."]
[1997,"julio","1997-julio",{"$f":"IF('[1]REAL IPC(M)'!$AL100=\"\",\"\",+'[1]REAL IPC(M)'!$AL100)","v":9.7447676970632493},{"$f":"IF('[1]REAL IPC(M)'!$BE100=\"\",\"\",+'[1]REAL IPC(M)'!$BE100)","v":8.9835839224491352},{"$f":"IF('[1]REAL IPC(M)'!$AM100=\"\",\"\",+'[1]REAL IPC(M)'!$AM100)","v":9.0351442057284181},{"$f":"IF('[1]REAL IPC(M)'!$BI100=\"\",\"\",+'[1]REAL IPC(M)'!$BI100)","v":8.3001818615452638},{"$f":"IF('[1]REAL IMAE(M)'!BJ100=\"\",\"\",'[1]REAL IMAE(M)'!BJ100)","v":"n.d."},{"$f":"IF('[1]REAL IMAE(M)'!BK100=\"\",\"\",'[1]REAL IMAE(M)'!BK100)","v":"n.d."},{"$f":"IF('[1]REAL IMAE(M)'!BN100=\"\",\"\",'[1]REAL IMAE(M)'!BN100)","v":"n.d."},{"$f":"IF('[1]REAL IMAE(M)'!BO100=\"\",\"\",'[1]REAL IMAE(M)'!BO100)","v":"n.d."},{"$f":"IF('[1]EXT RIN(M)'!$K100=\"\",\"\",'[1]EXT RIN(M)'!$K100)","v":"n.d."},"",{"$f":"IF('[1]EXT RIN(M)'!$L100=\"\",\"\",'[1]EXT RIN(M)'!$L100)","v":"n.d."},"",{"$f":"IF('[1]MONE(M)CARD'!EG100=\"\",\"\",'[1]MONE(M)CARD'!EG100)","v":"n.d."},{"$f":"IF('[1]MONE(M)CARD'!EK100=\"\",\"\",'[1]MONE(M)CARD'!EK100)","v":"n.d."},{"$f":"IF('[1]MONE(M)CARD'!EP100=\"\",\"\",'[1]MONE(M)CARD'!EP100)","v":"n.d."},{"$f":"IF('[1]MONE(M)CARD'!ES100=\"\",\"\",'[1]MONE(M)CARD'!ES100)","v":"n.d."},{"$f":"IF('[1]MONE(M)CARD'!EV100=\"\",\"\",'[1]MONE(M)CARD'!EV100)","v":"n.d."},{"$f":"IF('[1]MONE(M)CARD'!EZ100=\"\",\"\",'[1]MONE(M)CARD'!EZ100)","v":"n.d."},{"$f":"IF('[1]MONE(M)CAPARD'!FC100=\"\",\"\",'[1]MONE(M)CAPARD'!FC100)","v":"n.d."},{"$f":"IF('[1]MONE(M)CAPARD'!FG100=\"\",\"\",'[1]MONE(M)CAPARD'!FG100)","v":"n.d."},{"$f":"IF('[1]MONE(M)CAPARD'!FL100=\"\",\"\",'[1]MONE(M)CAPARD'!FL100)","v":"n.d."},{"$f":"IF('[1]MONE(M)CAPARD'!FO100=\"\",\"\",'[1]MONE(M)CAPARD'!FO100)","v":"n.d."},{"$f":"IF('[1]MONE(M)CAPARD'!FR100=\"\",\"\",'[1]MONE(M)CAPARD'!FR100)","v":"n.d."},{"$f":"IF('[1]MONE(M)CAPARD'!FV100=\"\",\"\",'[1]MONE(M)CAPARD'!FV100)","v":"n.d."},{"$f":"IF('[1]MONE(M)CARD'!FV100=\"\",\"\",'[1]MONE(M)CARD'!FV100)","v":""},{"$f":"IF('[1]MONE(M)CARD'!GD100=\"\",\"\",'[1]MONE(M)CARD'!GD100)","v":"n.d."},{"$f":"IF('[1]MONE(M)CARD'!GE100=\"\",\"\",'[1]MONE(M)CARD'!GE100)","v":"n.d."},"n.d.","n.d.","n.d.","n.d.","n.d.","n.d.","n.d.","n.d.",null,"n.d.","n.d.","n.d.","n.d.","n.d.",{"$f":"IF('[1]MONE(M)CAPARD'!GS100=\"\",\"\",'[1]MONE(M)CAPARD'!GS100)","v":"n.d."},{"$f":"IF('[1]MONE(M)CARD'!HA100=\"\",\"\",'[1]MONE(M)CAPARD'!HA100)","v":"n.d."},{"$f":"IF('[1]MONE(M)CAPARD'!HB100=\"\",\"\",'[1]MONE(M)CAPARD'!HB100)","v":"n.d."},"n.d.","n.d.","n.d.","n.d.","n.d.","n.d.","n.d.","n.d.","n.d.","n.d.","n.d.","n.d.","n.d.","n.d.",{"$f":"IF('[1]MONE(M)CAPARD'!AS100=\"\",\"\",'[1]MONE(M)CAPARD'!AS100)","v":"n.d."},{"$f":"IF('[1]MONE(M)CAPARD'!AT100=\"\",\"\",'[1]MONE(M)CAPARD'!AT100)","v":"n.a."},{"$f":"IF('[1]MONE(M)CAPARD'!AU100=\"\",\"\",'[1]MONE(M)CAPARD'!AU100)","v":"n.d."},{"$f":"IF('[1]MONE(M)CAPARD'!AV100=\"\",\"\",'[1]MONE(M)CAPARD'!AV100)","v":"n.d."},{"$f":"IF('[1]MONE(M)CAPARD'!AW100=\"\",\"\",'[1]MONE(M)CAPARD'!AW100)","v":"n.a."},{"$f":"IF('[1]MONE(M)CAPARD'!AX100=\"\",\"\",'[1]MONE(M)CAPARD'!AX100)","v":"n.d."},{"$f":"IF('[1]MONE(M)CAPARD'!AY100=\"\",\"\",'[1]MONE(M)CAPARD'!AY100)","v":"n.a."},{"$f":"IF('[1]FISCAL(M)'!$K100=\"\",\"\",'[1]FISCAL(M)'!$K100)","v":"n.d."},{"$f":"IF('[1]FISCAL(M)'!$L100=\"\",\"\",'[1]FISCAL(M)'!$L100)","v":"n.d."},{"$f":"IF('[1]FISCAL(M)'!$AY100=\"\",\"\",'[1]FISCAL(M)'!$AY100)","v":"n.d."},{"$f":"IF('[1]FISCAL(M)'!$BI100=\"\",\"\",'[1]FISCAL(M)'!$BI100)","v":"n.d."},{"$f":"IF('[1]FISCAL(M)'!$BS100=\"\",\"\",'[1]FISCAL(M)'!$BS100)","v":"n.d."},{"$f":"IF('[1]FISCAL(M)'!$AZ100=\"\",\"\",'[1]FISCAL(M)'!$AZ100)","v":"n.d."},{"$f":"IF('[1]FISCAL(M)'!$BJ100=\"\",\"\",'[1]FISCAL(M)'!$BJ100)","v":"n.d."},{"$f":"IF('[1]FISCAL(M)'!$BT100=\"\",\"\",'[1]FISCAL(M)'!$BT100)","v":"n.d."},{"$f":"IF('[2]MONE(M)'!$AO100=\"\",\"\",'[2]MONE(M)'!$AO100)","v":"n.d."},{"$f":"IF('[3]MONE(M)'!$AO100=\"\",\"\",'[3]MONE(M)'!$AO100)","v":"n.d."},{"$f":"IF('[4]MONE(M)'!$AO100=\"\",\"\",'[4]MONE(M)'!$AO100)","v":"n.d."},{"$f":"+'[5]MONE(M)'!$AO100","v":"n.d."},{"$f":"IF('[6]MONE(M)'!$AO100=\"\",\"\",'[6]MONE(M)'!$AO100)","v":"n.d."},{"$f":"IF('[7]MONE(M)'!$AO100=\"\",\"\",'[7]MONE(M)'!$AO100)","v":"n.d."},{"$f":"IF('[8]MONE(M)'!$AO100=\"\",\"\",'[8]MONE(M)'!$AO100)","v":"n.d."},"n.d.","n.d.","n.d.","n.d.","n.d.","n.d.","n.d.",{"$f":"IF('[1]FISCAL(M)'!$K100=\"\",\"\",'[1]FISCAL(M)'!$K100)","v":"n.d."},"n.d.","n.d.",{"$f":"IF('[1]FISCAL(M)'!$L100=\"\",\"\",'[1]FISCAL(M)'!$L100)","v":"n.d."},"n.d.","n.d.","n.d.","n.d.","n.d.","n.d.","n.d.","n.d.","n.d.","n.d.","n.d.","n.d.","n.d.","n.d.","n.d.","n.d.","n.d.","n.d."]
[1997,"agosto","1997-agosto",{"$f":"IF('[1]REAL IPC(M)'!$AL101=\"\",\"\",+'[1]REAL IPC(M)'!$AL101)","v":9.1931960630823539},{"$f":"IF('[1]REAL IPC(M)'!$BE101=\"\",\"\",+'[1]REAL IPC(M)'!$BE101)","v":8.8274177018845101},{"$f":"IF('[1]REAL IPC(M)'!$AM101=\"\",\"\",+'[1]REAL IPC(M)'!$AM101)","v":8.5159269330001166},{"$f":"IF('[1]REAL IPC(M)'!$BI101=\"\",\"\",+'[1]REAL IPC(M)'!$BI101)","v":8.1539889179231828},{"$f":"IF('[1]REAL IMAE(M)'!BJ101=\"\",\"\",'[1]REAL IMAE(M)'!BJ101)","v":"n.d."},{"$f":"IF('[1]REAL IMAE(M)'!BK101=\"\",\"\",'[1]REAL IMAE(M)'!BK101)","v":"n.d."},{"$f":"IF('[1]REAL IMAE(M)'!BN101=\"\",\"\",'[1]REAL IMAE(M)'!BN101)","v":"n.d."},{"$f":"IF('[1]REAL IMAE(M)'!BO101=\"\",\"\",'[1]REAL IMAE(M)'!BO101)","v":"n.d."},{"$f":"IF('[1]EXT RIN(M)'!$K101=\"\",\"\",'[1]EXT RIN(M)'!$K101)","v":"n.d."},"",{"$f":"IF('[1]EXT RIN(M)'!$L101=\"\",\"\",'[1]EXT RIN(M)'!$L101)","v":"n.d."},"",{"$f":"IF('[1]MONE(M)CARD'!EG101=\"\",\"\",'[1]MONE(M)CARD'!EG101)","v":"n.d."},{"$f":"IF('[1]MONE(M)CARD'!EK101=\"\",\"\",'[1]MONE(M)CARD'!EK101)","v":"n.d."},{"$f":"IF('[1]MONE(M)CARD'!EP101=\"\",\"\",'[1]MONE(M)CARD'!EP101)","v":"n.d."},{"$f":"IF('[1]MONE(M)CARD'!ES101=\"\",\"\",'[1]MONE(M)CARD'!ES101)","v":"n.d."},{"$f":"IF('[1]MONE(M)CARD'!EV101=\"\",\"\",'[1]MONE(M)CARD'!EV101)","v":"n.d."},{"$f":"IF('[1]MONE(M)CARD'!EZ101=\"\",\"\",'[1]MONE(M)CARD'!EZ101)","v":"n.d."},{"$f":"IF('[1]MONE(M)CAPARD'!FC101=\"\",\"\",'[1]MONE(M)CAPARD'!FC101)","v":"n.d."},{"$f":"IF('[1]MONE(M)CAPARD'!FG101=\"\",\"\",'[1]MONE(M)CAPARD'!FG101)","v":"n.d."},{"$f":"IF('[1]MONE(M)CAPARD'!FL101=\"\",\"\",'[1]MONE(M)CAPARD'!FL101)","v":"n.d."},{"$f":"IF('[1]MONE(M)CAPARD'!FO101=\"\",\"\",'[1]MONE(M)CAPARD'!FO101)","v":"n.d."},{"$f":"IF('[1]MONE(M)CAPARD'!FR101=\"\",\"\",'[1]MONE(M)CAPARD'!FR101)","v":"n.d."},{"$f":"IF('[1]MONE(M)CAPARD'!FV101=\"\",\"\",'[1]MONE(M)CAPARD'!FV101)","v":"n.d."},{"$f":"IF('[1]MONE(M)CARD'!FV101=\"\",\"\",'[1]MONE(M)CARD'!FV101)","v":""},{"$f":"IF('[1]MONE(M)CARD'!GD101=\"\",\"\",'[1]MONE(M)CARD'!GD101)","v":"n.d."},{"$f":"IF('[1]MONE(M)CARD'!GE101=\"\",\"\",'[1]MONE(M)CARD'!GE101)","v":"n.d."},"n.d.","n.d.","n.d.","n.d.","n.d.","n.d.","n.d.","n.d.",null,"n.d.","n.d.","n.d.","n.d.","n.d.",{"$f":"IF('[1]MONE(M)CAPARD'!GS101=\"\",\"\",'[1]MONE(M)CAPARD'!GS101)","v":"n.d."},{"$f":"IF('[1]MONE(M)CARD'!HA101=\"\",\"\",'[1]MONE(M)CAPARD'!HA101)","v":"n.d."},{"$f":"IF('[1]MONE(M)CAPARD'!HB101=\"\",\"\",'[1]MONE(M)CAPARD'!HB101)","v":"n.d."},"n.d.","n.d.","n.d.","n.d.","n.d.","n.d.","n.d.","n.d.","n.d.","n.d.","n.d.","n.d.","n.d.","n.d.",{"$f":"IF('[1]MONE(M)CAPARD'!AS101=\"\",\"\",'[1]MONE(M)CAPARD'!AS101)","v":"n.d."},{"$f":"IF('[1]MONE(M)CAPARD'!AT101=\"\",\"\",'[1]MONE(M)CAPARD'!AT101)","v":"n.a."},{"$f":"IF('[1]MONE(M)CAPARD'!AU101=\"\",\"\",'[1]MONE(M)CAPARD'!AU101)","v":"n.d."},{"$f":"IF('[1]MONE(M)CAPARD'!AV101=\"\",\"\",'[1]MONE(M)CAPARD'!AV101)","v":"n.d."},{"$f":"IF('[1]MONE(M)CAPARD'!AW101=\"\",\"\",'[1]MONE(M)CAPARD'!AW101)","v":"n.a."},{"$f":"IF('[1]MONE(M)CAPARD'!AX101=\"\",\"\",'[1]MONE(M)CAPARD'!AX101)","v":"n.d."},{"$f":"IF('[1]MONE(M)CAPARD'!AY101=\"\",\"\",'[1]MONE(M)CAPARD'!AY101)","v":"n.a."},{"$f":"IF('[1]FISCAL(M)'!$K101=\"\",\"\",'[1]FISCAL(M)'!$K101)","v":"n.d."},{"$f":"IF('[1]FISCAL(M)'!$L101=\"\",\"\",'[1]FISCAL(M)'!$L101)","v":"n.d."},{"$f":"IF('[1]FISCAL(M)'!$AY101=\"\",\"\",'[1]FISCAL(M)'!$AY101)","v":"n.d."},{"$f":"IF('[1]FISCAL(M)'!$BI101=\"\",\"\",'[1]FISCAL(M)'!$BI101)","v":"n.d."},{"$f":"IF('[1]FISCAL(M)'!$BS101=\"\",\"\",'[1]FISCAL(M)'!$BS101)","v":"n.d."},{"$f":"IF('[1]FISCAL(M)'!$AZ101=\"\",\"\",'[1]FISCAL(M)'!$AZ101)","v":"n.d."},{"$f":"IF('[1]FISCAL(M)'!$BJ101=\"\",\"\",'[1]FISCAL(M)'!$BJ101)","v":"n.d."},{"$f":"IF('[1]FISCAL(M)'!$BT101=\"\",\"\",'[1]FISCAL(M)'!$BT101)","v":"n.d."},{"$f":"IF('[2]MONE(M)'!$AO101=\"\",\"\",'[2]MONE(M)'!$AO101)","v":"n.d."},{"$f":"IF('[3]MONE(M)'!$AO101=\"\",\"\",'[3]MONE(M)'!$AO101)","v":"n.d."},{"$f":"IF('[4]MONE(M)'!$AO101=\"\",\"\",'[4]MONE(M)'!$AO101)","v":"n.d."},{"$f":"+'[5]MONE(M)'!$AO101","v":"n.d."},{"$f":"IF('[6]MONE(M)'!$AO101=\"\",\"\",'[6]MONE(M)'!$AO101)","v":"n.d."},{"$f":"IF('[7]MONE(M)'!$AO101=\"\",\"\",'[7]MONE(M)'!$AO101)","v":"n.d."},{"$f":"IF('[8]MONE(M)'!$AO101=\"\",\"\",'[8]MONE(M)'!$AO101)","v":"n.d."},"n.d.","n.d.","n.d.","n.d.","n.d.","n.d.","n.d.",{"$f":"IF('[1]FISCAL(M)'!$K101=\"\",\"\",'[1]FISCAL(M)'!$K101)","v":"n.d."},"n.d.","n.d.",{"$f":"IF('[1]FISCAL(M)'!$L101=\"\",\"\",'[1]FISCAL(M)'!$L101)","v":"n.d."},"n.d.","n.d.","n.d.","n.d.","n.d.","n.d.","n.d.","n.d.","n.d.","n.d.","n.d.","n.d.","n.d.","n.d.","n.d.","n.d.","n.d.","n.d."]
[1997,"septiembre","1997-septiembre",{"$f":"IF('[1]REAL IPC(M)'!$AL102=\"\",\"\",+'[1]REAL IPC(M)'!$AL102)","v":8.9020560078655322},{"$f":"IF('[1]REAL IPC(M)'!$BE102=\"\",\"\",+'[1]REAL IPC(M)'!$BE102)","v":8.6745356121702635},{"$f":"IF('[1]REAL IPC(M)'!$AM102=\"\",\"\",+'[1]REAL IPC(M)'!$AM102)","v":8.2339753728000851},{"$f":"IF('[1]REAL IPC(M)'!$BI102=\"\",\"\",+'[1]REAL IPC(M)'!$BI102)","v":8.0106524635551679},{"$f":"IF('[1]REAL IMAE(M)'!BJ102=\"\",\"\",'[1]REAL IMAE(M)'!BJ102)","v":"n.d."},{"$f":"IF('[1]REAL IMAE(M)'!BK102=\"\",\"\",'[1]REAL IMAE(M)'!BK102)","v":"n.d."},{"$f":"IF('[1]REAL IMAE(M)'!BN102=\"\",\"\",'[1]REAL IMAE(M)'!BN102)","v":"n.d."},{"$f":"IF('[1]REAL IMAE(M)'!BO102=\"\",\"\",'[1]REAL IMAE(M)'!BO102)","v":"n.d."},{"$f":"IF('[1]EXT RIN(M)'!$K102=\"\",\"\",'[1]EXT RIN(M)'!$K102)","v":"n.d."},"",{"$f":"IF('[1]EXT RIN(M)'!$L102=\"\",\"\",'[1]EXT RIN(M)'!$L102)","v":"n.d."},"",{"$f":"IF('[1]MONE(M)CARD'!EG102=\"\",\"\",'[1]MONE(M)CARD'!EG102)","v":"n.d."},{"$f":"IF('[1]MONE(M)CARD'!EK102=\"\",\"\",'[1]MONE(M)CARD'!EK102)","v":"n.d."},{"$f":"IF('[1]MONE(M)CARD'!EP102=\"\",\"\",'[1]MONE(M)CARD'!EP102)","v":"n.d."},{"$f":"IF('[1]MONE(M)CARD'!ES102=\"\",\"\",'[1]MONE(M)CARD'!ES102)","v":"n.d."},{"$f":"IF('[1]MONE(M)CARD'!EV102=\"\",\"\",'[1]MONE(M)CARD'!EV102)","v":"n.d."},{"$f":"IF('[1]MONE(M)CARD'!EZ102=\"\",\"\",'[1]MONE(M)CARD'!EZ102)","v":"n.d."},{"$f":"IF('[1]MONE(M)CAPARD'!FC102=\"\",\"\",'[1]MONE(M)CAPARD'!FC102)","v":"n.d."},{"$f":"IF('[1]MONE(M)CAPARD'!FG102=\"\",\"\",'[1]MONE(M)CAPARD'!FG102)","v":"n.d."},{"$f":"IF('[1]MONE(M)CAPARD'!FL102=\"\",\"\",'[1]MONE(M)CAPARD'!FL102)","v":"n.d."},{"$f":"IF('[1]MONE(M)CAPARD'!FO102=\"\",\"\",'[1]MONE(M)CAPARD'!FO102)","v":"n.d."},{"$f":"IF('[1]MONE(M)CAPARD'!FR102=\"\",\"\",'[1]MONE(M)CAPARD'!FR102)","v":"n.d."},{"$f":"IF('[1]MONE(M)CAPARD'!FV102=\"\",\"\",'[1]MONE(M)CAPARD'!FV102)","v":"n.d."},{"$f":"IF('[1]MONE(M)CARD'!FV102=\"\",\"\",'[1]MONE(M)CARD'!FV102)","v":""},{"$f":"IF('[1]MONE(M)CARD'!GD102=\"\",\"\",'[1]MONE(M)CARD'!GD102)","v":"n.d."},{"$f":"IF('[1]MONE(M)CARD'!GE102=\"\",\"\",'[1]MONE(M)CARD'!GE102)","v":"n.d."},"n.d.","n.d.","n.d.","n.d.","n.d.","n.d.","n.d.","n.d.",null,"n.d.","n.d.","n.d.","n.d.","n.d.",{"$f":"IF('[1]MONE(M)CAPARD'!GS102=\"\",\"\",'[1]MONE(M)CAPARD'!GS102)","v":"n.d."},{"$f":"IF('[1]MONE(M)CARD'!HA102=\"\",\"\",'[1]MONE(M)CAPARD'!HA102)","v":"n.d."},{"$f":"IF('[1]MONE(M)CAPARD'!HB102=\"\",\"\",'[1]MONE(M)CAPARD'!HB102)","v":"n.d."},"n.d.","n.d.","n.d.","n.d.","n.d.","n.d.","n.d.","n.d.","n.d.","n.d.","n.d.","n.d.","n.d.","n.d.",{"$f":"IF('[1]MONE(M)CAPARD'!AS102=\"\",\"\",'[1]MONE(M)CAPARD'!AS102)","v":"n.d."},{"$f":"IF('[1]MONE(M)CAPARD'!AT102=\"\",\"\",'[1]MONE(M)CAPARD'!AT102)","v":"n.a."},{"$f":"IF('[1]MONE(M)CAPARD'!AU102=\"\",\"\",'[1]MONE(M)CAPARD'!AU102)","v":"n.d."},{"$f":"IF('[1]MONE(M)CAPARD'!AV102=\"\",\"\",'[1]MONE(M)CAPARD'!AV102)","v":"n.d."},{"$f":"IF('[1]MONE(M)CAPARD'!AW102=\"\",\"\",'[1]MONE(M)CAPARD'!AW102)","v":"n.a."},{"$f":"IF('[1]MONE(M)CAPARD'!AX102=\"\",\"\",'[1]MONE(M)CAPARD'!AX102)","v":"n.d."},{"$f":"IF('[1]MONE(M)CAPARD'!AY102=\"\",\"\",'[1]MONE(M)CAPARD'!AY102)","v":"n.a."},{"$f":"IF('[1]FISCAL(M)'!$K102=\"\",\"\",'[1]FISCAL(M)'!$K102)","v":"n.d."},{"$f":"IF('[1]FISCAL(M)'!$L102=\"\",\"\",'[1]FISCAL(M)'!$L102)","v":"n.d."},{"$f":"IF('[1]FISCAL(M)'!$AY102=\"\",\"\",'[1]FISCAL(M)'!$AY102)","v":"n.d."},{"$f":"IF('[1]FISCAL(M)'!$BI102=\"\",\"\",'[1]FISCAL(M)'!$BI102)","v":"n.d."},{"$f":"IF('[1]FISCAL(M)'!$BS102=\"\",\"\",'[1]FISCAL(M)'!$BS102)","v":"n.d."},{"$f":"IF('[1]FISCAL(M)'!$AZ102=\"\",\"\",'[1]FISCAL(M)'!$AZ102)","v":"n.d."},{"$f":"IF('[1]FISCAL(M)'!$BJ102=\"\",\"\",'[1]FISCAL(M)'!$BJ102)","v":"n.d."},{"$f":"IF('[1]FISCAL(M)'!$BT102=\"\",\"\",'[1]FISCAL(M)'!$BT102)","v":"n.d."},{"$f":"IF('[2]MONE(M)'!$AO102=\"\",\"\",'[2]MONE(M)'!$AO102)","v":"n.d."},{"$f":"IF('[3]MONE(M)'!$AO102=\"\",\"\",'[3]MONE(M)'!$AO102)","v":"n.d."},{"$f":"IF('[4]MONE(M)'!$AO102=\"\",\"\",'[4]MONE(M)'!$AO102)","v":"n.d."},{"$f":"+'[5]MONE(M)'!$AO102","v":"n.d."},{"$f":"IF('[6]MONE(M)'!$AO102=\"\",\"\",'[6]MONE(M)'!$AO102)","v":"n.d."},{"$f":"IF('[7]MONE(M)'!$AO102=\"\",\"\",'[7]MONE(M)'!$AO102)","v":"n.d."},{"$f":"IF('[8]MONE(M)'!$AO102=\"\",\"\",'[8]MONE(M)'!$AO102)","v":"n.d."},"n.d.","n.d.","n.d.","n.d.","n.d.","n.d.","n.d.",{"$f":"IF('[1]FISCAL(M)'!$K102=\"\",\"\",'[1]FISCAL(M)'!$K102)","v":"n.d."},"n.d.","n.d.",{"$f":"IF('[1]FISCAL(M)'!$L102=\"\",\"\",'[1]FISCAL(M)'!$L102)","v":"n.d."},"n.d.","n.d.","n.d.","n.d.","n.d.","n.d.","n.d.","n.d.","n.d.","n.d.","n.d.","n.d.","n.d.","n.d.","n.d.","n.d.","n.d.","n.d."]
[1997,"octubre","1997-octubre",{"$f":"IF('[1]REAL IPC(M)'!$AL103=\"\",\"\",+'[1]REAL IPC(M)'!$AL103)","v":8.4630191052024841},{"$f":"IF('[1]REAL IPC(M)'!$BE103=\"\",\"\",+'[1]REAL IPC(M)'!$BE103)","v":8.5254122361934535},{"$f":"IF('[1]REAL IPC(M)'!$AM103=\"\",\"\",+'[1]REAL IPC(M)'!$AM103)","v":7.7523672329310012},{"$f":"IF('[1]REAL IPC(M)'!$BI103=\"\",\"\",+'[1]REAL IPC(M)'!$BI103)","v":7.8706837200535507},{"$f":"IF('[1]REAL IMAE(M)'!BJ103=\"\",\"\",'[1]REAL IMAE(M)'!BJ103)","v":"n.d."},{"$f":"IF('[1]REAL IMAE(M)'!BK103=\"\",\"\",'[1]REAL IMAE(M)'!BK103)","v":"n.d."},{"$f":"IF('[1]REAL IMAE(M)'!BN103=\"\",\"\",'[1]REAL IMAE(M)'!BN103)","v":"n.d."},{"$f":"IF('[1]REAL IMAE(M)'!BO103=\"\",\"\",'[1]REAL IMAE(M)'!BO103)","v":"n.d."},{"$f":"IF('[1]EXT RIN(M)'!$K103=\"\",\"\",'[1]EXT RIN(M)'!$K103)","v":"n.d."},"",{"$f":"IF('[1]EXT RIN(M)'!$L103=\"\",\"\",'[1]EXT RIN(M)'!$L103)","v":"n.d."},"",{"$f":"IF('[1]MONE(M)CARD'!EG103=\"\",\"\",'[1]MONE(M)CARD'!EG103)","v":"n.d."},{"$f":"IF('[1]MONE(M)CARD'!EK103=\"\",\"\",'[1]MONE(M)CARD'!EK103)","v":"n.d."},{"$f":"IF('[1]MONE(M)CARD'!EP103=\"\",\"\",'[1]MONE(M)CARD'!EP103)","v":"n.d."},{"$f":"IF('[1]MONE(M)CARD'!ES103=\"\",\"\",'[1]MONE(M)CARD'!ES103)","v":"n.d."},{"$f":"IF('[1]MONE(M)CARD'!EV103=\"\",\"\",'[1]MONE(M)CARD'!EV103)","v":"n.d."},{"$f":"IF('[1]MONE(M)CARD'!EZ103=\"\",\"\",'[1]MONE(M)CARD'!EZ103)","v":"n.d."},{"$f":"IF('[1]MONE(M)CAPARD'!FC103=\"\",\"\",'[1]MONE(M)CAPARD'!FC103)","v":"n.d."},{"$f":"IF('[1]MONE(M)CAPARD'!FG103=\"\",\"\",'[1]MONE(M)CAPARD'!FG103)","v":"n.d."},{"$f":"IF('[1]MONE(M)CAPARD'!FL103=\"\",\"\",'[1]MONE(M)CAPARD'!FL103)","v":"n.d."},{"$f":"IF('[1]MONE(M)CAPARD'!FO103=\"\",\"\",'[1]MONE(M)CAPARD'!FO103)","v":"n.d."},{"$f":"IF('[1]MONE(M)CAPARD'!FR103=\"\",\"\",'[1]MONE(M)CAPARD'!FR103)","v":"n.d."},{"$f":"IF('[1]MONE(M)CAPARD'!FV103=\"\",\"\",'[1]MONE(M)CAPARD'!FV103)","v":"n.d."},{"$f":"IF('[1]MONE(M)CARD'!FV103=\"\",\"\",'[1]MONE(M)CARD'!FV103)","v":""},{"$f":"IF('[1]MONE(M)CARD'!GD103=\"\",\"\",'[1]MONE(M)CARD'!GD103)","v":"n.d."},{"$f":"IF('[1]MONE(M)CARD'!GE103=\"\",\"\",'[1]MONE(M)CARD'!GE103)","v":"n.d."},"n.d.","n.d.","n.d.","n.d.","n.d.","n.d.","n.d.","n.d.",null,"n.d.","n.d.","n.d.","n.d.","n.d.",{"$f":"IF('[1]MONE(M)CAPARD'!GS103=\"\",\"\",'[1]MONE(M)CAPARD'!GS103)","v":"n.d."},{"$f":"IF('[1]MONE(M)CARD'!HA103=\"\",\"\",'[1]MONE(M)CAPARD'!HA103)","v":"n.d."},{"$f":"IF('[1]MONE(M)CAPARD'!HB103=\"\",\"\",'[1]MONE(M)CAPARD'!HB103)","v":"n.d."},"n.d.","n.d.","n.d.","n.d.","n.d.","n.d.","n.d.","n.d.","n.d.","n.d.","n.d.","n.d.","n.d.","n.d.",{"$f":"IF('[1]MONE(M)CAPARD'!AS103=\"\",\"\",'[1]MONE(M)CAPARD'!AS103)","v":"n.d."},{"$f":"IF('[1]MONE(M)CAPARD'!AT103=\"\",\"\",'[1]MONE(M)CAPARD'!AT103)","v":"n.a."},{"$f":"IF('[1]MONE(M)CAPARD'!AU103=\"\",\"\",'[1]MONE(M)CAPARD'!AU103)","v":"n.d."},{"$f":"IF('[1]MONE(M)CAPARD'!AV103=\"\",\"\",'[1]MONE(M)CAPARD'!AV103)","v":"n.d."},{"$f":"IF('[1]MONE(M)CAPARD'!AW103=\"\",\"\",'[1]MONE(M)CAPARD'!AW103)","v":"n.a."},{"$f":"IF('[1]MONE(M)CAPARD'!AX103=\"\",\"\",'[1]MONE(M)CAPARD'!AX103)","v":"n.d."},{"$f":"IF('[1]MONE(M)CAPARD'!AY103=\"\",\"\",'[1]MONE(M)CAPARD'!AY103)","v":"n.a."},{"$f":"IF('[1]FISCAL(M)'!$K103=\"\",\"\",'[1]FISCAL(M)'!$K103)","v":"n.d."},{"$f":"IF('[1]FISCAL(M)'!$L103=\"\",\"\",'[1]FISCAL(M)'!$L103)","v":"n.d."},{"$f":"IF('[1]FISCAL(M)'!$AY103=\"\",\"\",'[1]FISCAL(M)'!$AY103)","v":"n.d."},{"$f":"IF('[1]FISCAL(M)'!$BI103=\"\",\"\",'[1]FISCAL(M)'!$BI103)","v":"n.d."},{"$f":"IF('[1]FISCAL(M)'!$BS103=\"\",\"\",'[1]FISCAL(M)'!$BS103)","v":"n.d."},{"$f":"IF('[1]FISCAL(M)'!$AZ103=\"\",\"\",'[1]FISCAL(M)'!$AZ103)","v":"n.d."},{"$f":"IF('[1]FISCAL(M)'!$BJ103=\"\",\"\",'[1]FISCAL(M)'!$BJ103)","v":"n.d."},{"$f":"IF('[1]FISCAL(M)'!$BT103=\"\",\"\",'[1]FISCAL(M)'!$BT103)","v":"n.d."},{"$f":"IF('[2]MONE(M)'!$AO103=\"\",\"\",'[2]MONE(M)'!$AO103)","v":"n.d."},{"$f":"IF('[3]MONE(M)'!$AO103=\"\",\"\",'[3]MONE(M)'!$AO103)","v":"n.d."},{"$f":"IF('[4]MONE(M)'!$AO103=\"\",\"\",'[4]MONE(M)'!$AO103)","v":"n.d."},{"$f":"+'[5]MONE(M)'!$AO103","v":"n.d."},{"$f":"IF('[6]MONE(M)'!$AO103=\"\",\"\",'[6]MONE(M)'!$AO103)","v":"n.d."},{"$f":"IF('[7]MONE(M)'!$AO103=\"\",\"\",'[7]MONE(M)'!$AO103)","v":"n.d."},{"$f":"IF('[8]MONE(M)'!$AO103=\"\",\"\",'[8]MONE(M)'!$AO103)","v":"n.d."},"n.d.","n.d.","n.d.","n.d.","n.d.","n.d.","n.d.",{"$f":"IF('[1]FISCAL(M)'!$K103=\"\",\"\",'[1]FISCAL(M)'!$K103)","v":"n.d."},"n.d.","n.d.",{"$f":"IF('[1]FISCAL(M)'!$L103=\"\",\"\",'[1]FISCAL(M)'!$L103)","v":"n.d."},"n.d.","n.d.","n.d.","n.d.","n.d.","n.d.","n.d.","n.d.","n.d.","n.d.","n.d.","n.d.","n.d.","n.d.","n.d.","n.d.","n.d.","n.d."]
[1997,"noviembre","1997-noviembre",{"$f":"IF('[1]REAL IPC(M)'!$AL104=\"\",\"\",+'[1]REAL IPC(M)'!$AL104)","v":8.2434621254787732},{"$f":"IF('[1]REAL IPC(M)'!$BE104=\"\",\"\",+'[1]REAL IPC(M)'!$BE104)","v":8.3805196626344234},{"$f":"IF('[1]REAL IPC(M)'!$AM104=\"\",\"\",+'[1]REAL IPC(M)'!$AM104)","v":7.5360787513165883},{"$f":"IF('[1]REAL IPC(M)'!$BI104=\"\",\"\",+'[1]REAL IPC(M)'!$BI104)","v":7.7345913454728965},{"$f":"IF('[1]REAL IMAE(M)'!BJ104=\"\",\"\",'[1]REAL IMAE(M)'!BJ104)","v":"n.d."},{"$f":"IF('[1]REAL IMAE(M)'!BK104=\"\",\"\",'[1]REAL IMAE(M)'!BK104)","v":"n.d."},{"$f":"IF('[1]REAL IMAE(M)'!BN104=\"\",\"\",'[1]REAL IMAE(M)'!BN104)","v":"n.d."},{"$f":"IF('[1]REAL IMAE(M)'!BO104=\"\",\"\",'[1]REAL IMAE(M)'!BO104)","v":"n.d."},{"$f":"IF('[1]EXT RIN(M)'!$K104=\"\",\"\",'[1]EXT RIN(M)'!$K104)","v":"n.d."},"",{"$f":"IF('[1]EXT RIN(M)'!$L104=\"\",\"\",'[1]EXT RIN(M)'!$L104)","v":"n.d."},"",{"$f":"IF('[1]MONE(M)CARD'!EG104=\"\",\"\",'[1]MONE(M)CARD'!EG104)","v":"n.d."},{"$f":"IF('[1]MONE(M)CARD'!EK104=\"\",\"\",'[1]MONE(M)CARD'!EK104)","v":"n.d."},{"$f":"IF('[1]MONE(M)CARD'!EP104=\"\",\"\",'[1]MONE(M)CARD'!EP104)","v":"n.d."},{"$f":"IF('[1]MONE(M)CARD'!ES104=\"\",\"\",'[1]MONE(M)CARD'!ES104)","v":"n.d."},{"$f":"IF('[1]MONE(M)CARD'!EV104=\"\",\"\",'[1]MONE(M)CARD'!EV104)","v":"n.d."},{"$f":"IF('[1]MONE(M)CARD'!EZ104=\"\",\"\",'[1]MONE(M)CARD'!EZ104)","v":"n.d."},{"$f":"IF('[1]MONE(M)CAPARD'!FC104=\"\",\"\",'[1]MONE(M)CAPARD'!FC104)","v":"n.d."},{"$f":"IF('[1]MONE(M)CAPARD'!FG104=\"\",\"\",'[1]MONE(M)CAPARD'!FG104)","v":"n.d."},{"$f":"IF('[1]MONE(M)CAPARD'!FL104=\"\",\"\",'[1]MONE(M)CAPARD'!FL104)","v":"n.d."},{"$f":"IF('[1]MONE(M)CAPARD'!FO104=\"\",\"\",'[1]MONE(M)CAPARD'!FO104)","v":"n.d."},{"$f":"IF('[1]MONE(M)CAPARD'!FR104=\"\",\"\",'[1]MONE(M)CAPARD'!FR104)","v":"n.d."},{"$f":"IF('[1]MONE(M)CAPARD'!FV104=\"\",\"\",'[1]MONE(M)CAPARD'!FV104)","v":"n.d."},{"$f":"IF('[1]MONE(M)CARD'!FV104=\"\",\"\",'[1]MONE(M)CARD'!FV104)","v":""},{"$f":"IF('[1]MONE(M)CARD'!GD104=\"\",\"\",'[1]MONE(M)CARD'!GD104)","v":"n.d."},{"$f":"IF('[1]MONE(M)CARD'!GE104=\"\",\"\",'[1]MONE(M)CARD'!GE104)","v":"n.d."},"n.d.","n.d.","n.d.","n.d.","n.d.","n.d.","n.d.","n.d.",null,"n.d.","n.d.","n.d.","n.d.","n.d.",{"$f":"IF('[1]MONE(M)CAPARD'!GS104=\"\",\"\",'[1]MONE(M)CAPARD'!GS104)","v":"n.d."},{"$f":"IF('[1]MONE(M)CARD'!HA104=\"\",\"\",'[1]MONE(M)CAPARD'!HA104)","v":"n.d."},{"$f":"IF('[1]MONE(M)CAPARD'!HB104=\"\",\"\",'[1]MONE(M)CAPARD'!HB104)","v":"n.d."},"n.d.","n.d.","n.d.","n.d.","n.d.","n.d.","n.d.","n.d.","n.d.","n.d.","n.d.","n.d.","n.d.","n.d.",{"$f":"IF('[1]MONE(M)CAPARD'!AS104=\"\",\"\",'[1]MONE(M)CAPARD'!AS104)","v":"n.d."},{"$f":"IF('[1]MONE(M)CAPARD'!AT104=\"\",\"\",'[1]MONE(M)CAPARD'!AT104)","v":"n.a."},{"$f":"IF('[1]MONE(M)CAPARD'!AU104=\"\",\"\",'[1]MONE(M)CAPARD'!AU104)","v":"n.d."},{"$f":"IF('[1]MONE(M)CAPARD'!AV104=\"\",\"\",'[1]MONE(M)CAPARD'!AV104)","v":"n.d."},{"$f":"IF('[1]MONE(M)CAPARD'!AW104=\"\",\"\",'[1]MONE(M)CAPARD'!AW104)","v":"n.a."},{"$f":"IF('[1]MONE(M)CAPARD'!AX104=\"\",\"\",'[1]MONE(M)CAPARD'!AX104)","v":"n.d."},{"$f":"IF('[1]MONE(M)CAPARD'!AY104=\"\",\"\",'[1]MONE(M)CAPARD'!AY104)","v":"n.a."},{"$f":"IF('[1]FISCAL(M)'!$K104=\"\",\"\",'[1]FISCAL(M)'!$K104)","v":"n.d."},{"$f":"IF('[1]FISCAL(M)'!$L104=\"\",\"\",'[1]FISCAL(M)'!$L104)","v":"n.d."},{"$f":"IF('[1]FISCAL(M)'!$AY104=\"\",\"\",'[1]FISCAL(M)'!$AY104)","v":"n.d."},{"$f":"IF('[1]FISCAL(M)'!$BI104=\"\",\"\",'[1]FISCAL(M)'!$BI104)","v":"n.d."},{"$f":"IF('[1]FISCAL(M)'!$BS104=\"\",\"\",'[1]FISCAL(M)'!$BS104)","v":"n.d."},{"$f":"IF('[1]FISCAL(M)'!$AZ104=\"\",\"\",'[1]FISCAL(M)'!$AZ104)","v":"n.d."},{"$f":"IF('[1]FISCAL(M)'!$BJ104=\"\",\"\",'[1]FISCAL(M)'!$BJ104)","v":"n.d."},{"$f":"IF('[1]FISCAL(M)'!$BT104=\"\",\"\",'[1]FISCAL(M)'!$BT104)","v":"n.d."},{"$f":"IF('[2]MONE(M)'!$AO104=\"\",\"\",'[2]MONE(M)'!$AO104)","v":"n.d."},{"$f":"IF('[3]MONE(M)'!$AO104=\"\",\"\",'[3]MONE(M)'!$AO104)","v":"n.d."},{"$f":"IF('[4]MONE(M)'!$AO104=\"\",\"\",'[4]MONE(M)'!$AO104)","v":"n.d."},{"$f":"+'[5]MONE(M)'!$AO104","v":"n.d."},{"$f":"IF('[6]MONE(M)'!$AO104=\"\",\"\",'[6]MONE(M)'!$AO104)","v":"n.d."},{"$f":"IF('[7]MONE(M)'!$AO104=\"\",\"\",'[7]MONE(M)'!$AO104)","v":"n.d."},{"$f":"IF('[8]MONE(M)'!$AO104=\"\",\"\",'[8]MONE(M)'!$AO104)","v":"n.d."},"n.d.","n.d.","n.d.","n.d.","n.d.","n.d.","n.d.",{"$f":"IF('[1]FISCAL(M)'!$K104=\"\",\"\",'[1]FISCAL(M)'!$K104)","v":"n.d."},"n.d.","n.d.",{"$f":"IF('[1]FISCAL(M)'!$L104=\"\",\"\",'[1]FISCAL(M)'!$L104)","v":"n.d."},"n.d.","n.d.","n.d.","n.d.","n.d.","n.d.","n.d.","n.d.","n.d.","n.d.","n.d.","n.d.","n.d.","n.d.","n.d.","n.d.","n.d.","n.d."]
[1997,"diciembre","1997-diciembre",{"$f":"IF('[1]REAL IPC(M)'!$AL105=\"\",\"\",+'[1]REAL IPC(M)'!$AL105)","v":7.5776028866498812},{"$f":"IF('[1]REAL IPC(M)'!$BE105=\"\",\"\",+'[1]REAL IPC(M)'!$BE105)","v":8.2403185290126366},{"$f":"IF('[1]REAL IPC(M)'!$AM105=\"\",\"\",+'[1]REAL IPC(M)'!$AM105)","v":6.8649213691857058},{"$f":"IF('[1]REAL IPC(M)'!$BI105=\"\",\"\",+'[1]REAL IPC(M)'!$BI105)","v":7.6028688181163151},{"$f":"IF('[1]REAL IMAE(M)'!BJ105=\"\",\"\",'[1]REAL IMAE(M)'!BJ105)","v":"n.d."},{"$f":"IF('[1]REAL IMAE(M)'!BK105=\"\",\"\",'[1]REAL IMAE(M)'!BK105)","v":"n.d."},{"$f":"IF('[1]REAL IMAE(M)'!BN105=\"\",\"\",'[1]REAL IMAE(M)'!BN105)","v":"n.d."},{"$f":"IF('[1]REAL IMAE(M)'!BO105=\"\",\"\",'[1]REAL IMAE(M)'!BO105)","v":"n.d."},{"$f":"IF('[1]EXT RIN(M)'!$K105=\"\",\"\",'[1]EXT RIN(M)'!$K105)","v":"n.d."},"n.d.",{"$f":"IF('[1]EXT RIN(M)'!$L105=\"\",\"\",'[1]EXT RIN(M)'!$L105)","v":"n.d."},"n.d.",{"$f":"IF('[1]MONE(M)CARD'!EG105=\"\",\"\",'[1]MONE(M)CARD'!EG105)","v":"n.d."},{"$f":"IF('[1]MONE(M)CARD'!EK105=\"\",\"\",'[1]MONE(M)CARD'!EK105)","v":"n.d."},{"$f":"IF('[1]MONE(M)CARD'!EP105=\"\",\"\",'[1]MONE(M)CARD'!EP105)","v":"n.d."},{"$f":"IF('[1]MONE(M)CARD'!ES105=\"\",\"\",'[1]MONE(M)CARD'!ES105)","v":"n.d."},{"$f":"IF('[1]MONE(M)CARD'!EV105=\"\",\"\",'[1]MONE(M)CARD'!EV105)","v":"n.d."},{"$f":"IF('[1]MONE(M)CARD'!EZ105=\"\",\"\",'[1]MONE(M)CARD'!EZ105)","v":"n.d."},{"$f":"IF('[1]MONE(M)CAPARD'!FC105=\"\",\"\",'[1]MONE(M)CAPARD'!FC105)","v":"n.d."},{"$f":"IF('[1]MONE(M)CAPARD'!FG105=\"\",\"\",'[1]MONE(M)CAPARD'!FG105)","v":"n.d."},{"$f":"IF('[1]MONE(M)CAPARD'!FL105=\"\",\"\",'[1]MONE(M)CAPARD'!FL105)","v":"n.d."},{"$f":"IF('[1]MONE(M)CAPARD'!FO105=\"\",\"\",'[1]MONE(M)CAPARD'!FO105)","v":"n.d."},{"$f":"IF('[1]MONE(M)CAPARD'!FR105=\"\",\"\",'[1]MONE(M)CAPARD'!FR105)","v":"n.d."},{"$f":"IF('[1]MONE(M)CAPARD'!FV105=\"\",\"\",'[1]MONE(M)CAPARD'!FV105)","v":"n.d."},{"$f":"IF('[1]MONE(M)CARD'!FV105=\"\",\"\",'[1]MONE(M)CARD'!FV105)","v":""},{"$f":"IF('[1]MONE(M)CARD'!GD105=\"\",\"\",'[1]MONE(M)CARD'!GD105)","v":"n.d."},{"$f":"IF('[1]MONE(M)CARD'!GE105=\"\",\"\",'[1]MONE(M)CARD'!GE105)","v":"n.d."},"n.d.","n.d.","n.d.","n.d.","n.d.","n.d.","n.d.","n.d.",null,"n.d.","n.d.","n.d.","n.d.","n.d.",{"$f":"IF('[1]MONE(M)CAPARD'!GS105=\"\",\"\",'[1]MONE(M)CAPARD'!GS105)","v":"n.d."},{"$f":"IF('[1]MONE(M)CARD'!HA105=\"\",\"\",'[1]MONE(M)CAPARD'!HA105)","v":"n.d."},{"$f":"IF('[1]MONE(M)CAPARD'!HB105=\"\",\"\",'[1]MONE(M)CAPARD'!HB105)","v":"n.d."},"n.d.","n.d.","n.d.","n.d.","n.d.","n.d.","n.d.","n.d.","n.d.","n.d.","n.d.","n.d.","n.d.","n.d.",{"$f":"IF('[1]MONE(M)CAPARD'!AS105=\"\",\"\",'[1]MONE(M)CAPARD'!AS105)","v":"n.d."},{"$f":"IF('[1]MONE(M)CAPARD'!AT105=\"\",\"\",'[1]MONE(M)CAPARD'!AT105)","v":"n.a."},{"$f":"IF('[1]MONE(M)CAPARD'!AU105=\"\",\"\",'[1]MONE(M)CAPARD'!AU105)","v":"n.d."},{"$f":"IF('[1]MONE(M)CAPARD'!AV105=\"\",\"\",'[1]MONE(M)CAPARD'!AV105)","v":"n.d."},{"$f":"IF('[1]MONE(M)CAPARD'!AW105=\"\",\"\",'[1]MONE(M)CAPARD'!AW105)","v":"n.a."},{"$f":"IF('[1]MONE(M)CAPARD'!AX105=\"\",\"\",'[1]MONE(M)CAPARD'!AX105)","v":"n.d."},{"$f":"IF('[1]MONE(M)CAPARD'!AY105=\"\",\"\",'[1]MONE(M)CAPARD'!AY105)","v":"n.a."},{"$f":"IF('[1]FISCAL(M)'!$K105=\"\",\"\",'[1]FISCAL(M)'!$K105)","v":"n.d."},{"$f":"IF('[1]FISCAL(M)'!$L105=\"\",\"\",'[1]FISCAL(M)'!$L105)","v":"n.d."},{"$f":"IF('[1]FISCAL(M)'!$AY105=\"\",\"\",'[1]FISCAL(M)'!$AY105)","v":"n.d."},{"$f":"IF('[1]FISCAL(M)'!$BI105=\"\",\"\",'[1]FISCAL(M)'!$BI105)","v":"n.d."},{"$f":"IF('[1]FISCAL(M)'!$BS105=\"\",\"\",'[1]FISCAL(M)'!$BS105)","v":"n.d."},{"$f":"IF('[1]FISCAL(M)'!$AZ105=\"\",\"\",'[1]FISCAL(M)'!$AZ105)","v":"n.d."},{"$f":"IF('[1]FISCAL(M)'!$BJ105=\"\",\"\",'[1]FISCAL(M)'!$BJ105)","v":"n.d."},{"$f":"IF('[1]FISCAL(M)'!$BT105=\"\",\"\",'[1]FISCAL(M)'!$BT105)","v":"n.d."},{"$f":"IF('[2]MONE(M)'!$AO105=\"\",\"\",'[2]MONE(M)'!$AO105)","v":"n.d."},{"$f":"IF('[3]MONE(M)'!$AO105=\"\",\"\",'[3]MONE(M)'!$AO105)","v":"n.d."},{"$f":"IF('[4]MONE(M)'!$AO105=\"\",\"\",'[4]MONE(M)'!$AO105)","v":"n.d."},{"$f":"+'[5]MONE(M)'!$AO105","v":"n.d."},{"$f":"IF('[6]MONE(M)'!$AO105=\"\",\"\",'[6]MONE(M)'!$AO105)","v":"n.d."},{"$f":"IF('[7]MONE(M)'!$AO105=\"\",\"\",'[7]MONE(M)'!$AO105)","v":"n.d."},{"$f":"IF('[8]MONE(M)'!$AO105=\"\",\"\",'[8]MONE(M)'!$AO105)","v":"n.d."},"n.d.","n.d.","n.d.","n.d.","n.d.","n.d.","n.d.",{"$f":"IF('[1]FISCAL(M)'!$K105=\"\",\"\",'[1]FISCAL(M)'!$K105)","v":"n.d."},"n.d.","n.d.",{"$f":"IF('[1]FISCAL(M)'!$L105=\"\",\"\",'[1]FISCAL(M)'!$L105)","v":"n.d."},"n.d.","n.d.","n.d.","n.d.","n.d.","n.d.","n.d.","n.d.","n.d.","n.d.","n.d.","n.d.","n.d.","n.d.","n.d.","n.d.","n.d.","n.d."]
[1998,"enero","1998-enero",{"$f":"IF('[1]REAL IPC(M)'!$AL106=\"\",\"\",+'[1]REAL IPC(M)'!$AL106)","v":6.9094410146484542},{"$f":"IF('[1]REAL IPC(M)'!$BE106=\"\",\"\",+'[1]REAL IPC(M)'!$BE106)","v":8.1052454753476546},{"$f":"IF('[1]REAL IPC(M)'!$AM106=\"\",\"\",+'[1]REAL IPC(M)'!$AM106)","v":6.30858244105994},{"$f":"IF('[1]REAL IPC(M)'!$BI106=\"\",\"\",+'[1]REAL IPC(M)'!$BI106)","v":7.4759815165870158},{"$f":"IF('[1]REAL IMAE(M)'!BJ106=\"\",\"\",'[1]REAL IMAE(M)'!BJ106)","v":"n.d."},{"$f":"IF('[1]REAL IMAE(M)'!BK106=\"\",\"\",'[1]REAL IMAE(M)'!BK106)","v":"n.d."},{"$f":"IF('[1]REAL IMAE(M)'!BN106=\"\",\"\",'[1]REAL IMAE(M)'!BN106)","v":"n.d."},{"$f":"IF('[1]REAL IMAE(M)'!BO106=\"\",\"\",'[1]REAL IMAE(M)'!BO106)","v":"n.d."},{"$f":"IF('[1]EXT RIN(M)'!$K106=\"\",\"\",'[1]EXT RIN(M)'!$K106)","v":"n.d."},"",{"$f":"IF('[1]EXT RIN(M)'!$L106=\"\",\"\",'[1]EXT RIN(M)'!$L106)","v":"n.d."},"",{"$f":"IF('[1]MONE(M)CARD'!EG106=\"\",\"\",'[1]MONE(M)CARD'!EG106)","v":"n.d."},{"$f":"IF('[1]MONE(M)CARD'!EK106=\"\",\"\",'[1]MONE(M)CARD'!EK106)","v":"n.d."},{"$f":"IF('[1]MONE(M)CARD'!EP106=\"\",\"\",'[1]MONE(M)CARD'!EP106)","v":"n.d."},{"$f":"IF('[1]MONE(M)CARD'!ES106=\"\",\"\",'[1]MONE(M)CARD'!ES106)","v":"n.d."},{"$f":"IF('[1]MONE(M)CARD'!EV106=\"\",\"\",'[1]MONE(M)CARD'!EV106)","v":"n.d."},{"$f":"IF('[1]MONE(M)CARD'!EZ106=\"\",\"\",'[1]MONE(M)CARD'!EZ106)","v":"n.d."},{"$f":"IF('[1]MONE(M)CAPARD'!FC106=\"\",\"\",'[1]MONE(M)CAPARD'!FC106)","v":"n.d."},{"$f":"IF('[1]MONE(M)CAPARD'!FG106=\"\",\"\",'[1]MONE(M)CAPARD'!FG106)","v":"n.d."},{"$f":"IF('[1]MONE(M)CAPARD'!FL106=\"\",\"\",'[1]MONE(M)CAPARD'!FL106)","v":"n.d."},{"$f":"IF('[1]MONE(M)CAPARD'!FO106=\"\",\"\",'[1]MONE(M)CAPARD'!FO106)","v":"n.d."},{"$f":"IF('[1]MONE(M)CAPARD'!FR106=\"\",\"\",'[1]MONE(M)CAPARD'!FR106)","v":"n.d."},{"$f":"IF('[1]MONE(M)CAPARD'!FV106=\"\",\"\",'[1]MONE(M)CAPARD'!FV106)","v":"n.d."},{"$f":"IF('[1]MONE(M)CARD'!FV106=\"\",\"\",'[1]MONE(M)CARD'!FV106)","v":""},{"$f":"IF('[1]MONE(M)CARD'!GD106=\"\",\"\",'[1]MONE(M)CARD'!GD106)","v":"n.d."},{"$f":"IF('[1]MONE(M)CARD'!GE106=\"\",\"\",'[1]MONE(M)CARD'!GE106)","v":"n.d."},"n.d.","n.d.","n.d.","n.d.","n.d.","n.d.","n.d.","n.d.",null,"n.d.","n.d.","n.d.","n.d.","n.d.",{"$f":"IF('[1]MONE(M)CAPARD'!GS106=\"\",\"\",'[1]MONE(M)CAPARD'!GS106)","v":"n.d."},{"$f":"IF('[1]MONE(M)CARD'!HA106=\"\",\"\",'[1]MONE(M)CAPARD'!HA106)","v":"n.d."},{"$f":"IF('[1]MONE(M)CAPARD'!HB106=\"\",\"\",'[1]MONE(M)CAPARD'!HB106)","v":"n.d."},"n.d.","n.d.","n.d.","n.d.","n.d.","n.d.","n.d.","n.d.","n.d.","n.d.","n.d.","n.d.","n.d.","n.d.",{"$f":"IF('[1]MONE(M)CAPARD'!AS106=\"\",\"\",'[1]MONE(M)CAPARD'!AS106)","v":"n.d."},{"$f":"IF('[1]MONE(M)CAPARD'!AT106=\"\",\"\",'[1]MONE(M)CAPARD'!AT106)","v":"n.a."},{"$f":"IF('[1]MONE(M)CAPARD'!AU106=\"\",\"\",'[1]MONE(M)CAPARD'!AU106)","v":"n.d."},{"$f":"IF('[1]MONE(M)CAPARD'!AV106=\"\",\"\",'[1]MONE(M)CAPARD'!AV106)","v":"n.d."},{"$f":"IF('[1]MONE(M)CAPARD'!AW106=\"\",\"\",'[1]MONE(M)CAPARD'!AW106)","v":"n.a."},{"$f":"IF('[1]MONE(M)CAPARD'!AX106=\"\",\"\",'[1]MONE(M)CAPARD'!AX106)","v":"n.d."},{"$f":"IF('[1]MONE(M)CAPARD'!AY106=\"\",\"\",'[1]MONE(M)CAPARD'!AY106)","v":"n.a."},{"$f":"IF('[1]FISCAL(M)'!$K106=\"\",\"\",'[1]FISCAL(M)'!$K106)","v":"n.d."},{"$f":"IF('[1]FISCAL(M)'!$L106=\"\",\"\",'[1]FISCAL(M)'!$L106)","v":"n.d."},{"$f":"IF('[1]FISCAL(M)'!$AY106=\"\",\"\",'[1]FISCAL(M)'!$AY106)","v":"n.d."},{"$f":"IF('[1]FISCAL(M)'!$BI106=\"\",\"\",'[1]FISCAL(M)'!$BI106)","v":"n.d."},{"$f":"IF('[1]FISCAL(M)'!$BS106=\"\",\"\",'[1]FISCAL(M)'!$BS106)","v":"n.d."},{"$f":"IF('[1]FISCAL(M)'!$AZ106=\"\",\"\",'[1]FISCAL(M)'!$AZ106)","v":"n.d."},{"$f":"IF('[1]FISCAL(M)'!$BJ106=\"\",\"\",'[1]FISCAL(M)'!$BJ106)","v":"n.d."},{"$f":"IF('[1]FISCAL(M)'!$BT106=\"\",\"\",'[1]FISCAL(M)'!$BT106)","v":"n.d."},{"$f":"IF('[2]MONE(M)'!$AO106=\"\",\"\",'[2]MONE(M)'!$AO106)","v":"n.d."},{"$f":"IF('[3]MONE(M)'!$AO106=\"\",\"\",'[3]MONE(M)'!$AO106)","v":"n.d."},{"$f":"IF('[4]MONE(M)'!$AO106=\"\",\"\",'[4]MONE(M)'!$AO106)","v":"n.d."},{"$f":"+'[5]MONE(M)'!$AO106","v":"n.d."},{"$f":"IF('[6]MONE(M)'!$AO106=\"\",\"\",'[6]MONE(M)'!$AO106)","v":"n.d."},{"$f":"IF('[7]MONE(M)'!$AO106=\"\",\"\",'[7]MONE(M)'!$AO106)","v":"n.d."},{"$f":"IF('[8]MONE(M)'!$AO106=\"\",\"\",'[8]MONE(M)'!$AO106)","v":"n.d."},"n.d.","n.d.","n.d.","n.d.","n.d.","n.d.","n.d.",{"$f":"IF('[1]FISCAL(M)'!$K106=\"\",\"\",'[1]FISCAL(M)'!$K106)","v":"n.d."},"n.d.","n.d.",{"$f":"IF('[1]FISCAL(M)'!$L106=\"\",\"\",'[1]FISCAL(M)'!$L106)","v":"n.d."},"n.d.","n.d.","n.d.","n.d.","n.d.","n.d.","n.d.","n.d.","n.d.","n.d.","n.d.","n.d.","n.d.","n.d.","n.d.","n.d.","n.d.","n.d."]
[1998,"febrero","1998-febrero",{"$f":"IF('[1]REAL IPC(M)'!$AL107=\"\",\"\",+'[1]REAL IPC(M)'!$AL107)","v":6.3288372391484549},{"$f":"IF('[1]REAL IPC(M)'!$BE107=\"\",\"\",+'[1]REAL IPC(M)'!$BE107)","v":7.9756894301211245},{"$f":"IF('[1]REAL IPC(M)'!$AM107=\"\",\"\",+'[1]REAL IPC(M)'!$AM107)","v":5.755540007112403},{"$f":"IF('[1]REAL IPC(M)'!$BI107=\"\",\"\",+'[1]REAL IPC(M)'!$BI107)","v":7.354338215353895},{"$f":"IF('[1]REAL IMAE(M)'!BJ107=\"\",\"\",'[1]REAL IMAE(M)'!BJ107)","v":"n.d."},{"$f":"IF('[1]REAL IMAE(M)'!BK107=\"\",\"\",'[1]REAL IMAE(M)'!BK107)","v":"n.d."},{"$f":"IF('[1]REAL IMAE(M)'!BN107=\"\",\"\",'[1]REAL IMAE(M)'!BN107)","v":"n.d."},{"$f":"IF('[1]REAL IMAE(M)'!BO107=\"\",\"\",'[1]REAL IMAE(M)'!BO107)","v":"n.d."},{"$f":"IF('[1]EXT RIN(M)'!$K107=\"\",\"\",'[1]EXT RIN(M)'!$K107)","v":"n.d."},"",{"$f":"IF('[1]EXT RIN(M)'!$L107=\"\",\"\",'[1]EXT RIN(M)'!$L107)","v":"n.d."},"",{"$f":"IF('[1]MONE(M)CARD'!EG107=\"\",\"\",'[1]MONE(M)CARD'!EG107)","v":"n.d."},{"$f":"IF('[1]MONE(M)CARD'!EK107=\"\",\"\",'[1]MONE(M)CARD'!EK107)","v":"n.d."},{"$f":"IF('[1]MONE(M)CARD'!EP107=\"\",\"\",'[1]MONE(M)CARD'!EP107)","v":"n.d."},{"$f":"IF('[1]MONE(M)CARD'!ES107=\"\",\"\",'[1]MONE(M)CARD'!ES107)","v":"n.d."},{"$f":"IF('[1]MONE(M)CARD'!EV107=\"\",\"\",'[1]MONE(M)CARD'!EV107)","v":"n.d."},{"$f":"IF('[1]MONE(M)CARD'!EZ107=\"\",\"\",'[1]MONE(M)CARD'!EZ107)","v":"n.d."},{"$f":"IF('[1]MONE(M)CAPARD'!FC107=\"\",\"\",'[1]MONE(M)CAPARD'!FC107)","v":"n.d."},{"$f":"IF('[1]MONE(M)CAPARD'!FG107=\"\",\"\",'[1]MONE(M)CAPARD'!FG107)","v":"n.d."},{"$f":"IF('[1]MONE(M)CAPARD'!FL107=\"\",\"\",'[1]MONE(M)CAPARD'!FL107)","v":"n.d."},{"$f":"IF('[1]MONE(M)CAPARD'!FO107=\"\",\"\",'[1]MONE(M)CAPARD'!FO107)","v":"n.d."},{"$f":"IF('[1]MONE(M)CAPARD'!FR107=\"\",\"\",'[1]MONE(M)CAPARD'!FR107)","v":"n.d."},{"$f":"IF('[1]MONE(M)CAPARD'!FV107=\"\",\"\",'[1]MONE(M)CAPARD'!FV107)","v":"n.d."},{"$f":"IF('[1]MONE(M)CARD'!FV107=\"\",\"\",'[1]MONE(M)CARD'!FV107)","v":""},{"$f":"IF('[1]MONE(M)CARD'!GD107=\"\",\"\",'[1]MONE(M)CARD'!GD107)","v":"n.d."},{"$f":"IF('[1]MONE(M)CARD'!GE107=\"\",\"\",'[1]MONE(M)CARD'!GE107)","v":"n.d."},"n.d.","n.d.","n.d.","n.d.","n.d.","n.d.","n.d.","n.d.",null,"n.d.","n.d.","n.d.","n.d.","n.d.",{"$f":"IF('[1]MONE(M)CAPARD'!GS107=\"\",\"\",'[1]MONE(M)CAPARD'!GS107)","v":"n.d."},{"$f":"IF('[1]MONE(M)CARD'!HA107=\"\",\"\",'[1]MONE(M)CAPARD'!HA107)","v":"n.d."},{"$f":"IF('[1]MONE(M)CAPARD'!HB107=\"\",\"\",'[1]MONE(M)CAPARD'!HB107)","v":"n.d."},"n.d.","n.d.","n.d.","n.d.","n.d.","n.d.","n.d.","n.d.","n.d.","n.d.","n.d.","n.d.","n.d.","n.d.",{"$f":"IF('[1]MONE(M)CAPARD'!AS107=\"\",\"\",'[1]MONE(M)CAPARD'!AS107)","v":"n.d."},{"$f":"IF('[1]MONE(M)CAPARD'!AT107=\"\",\"\",'[1]MONE(M)CAPARD'!AT107)","v":"n.a."},{"$f":"IF('[1]MONE(M)CAPARD'!AU107=\"\",\"\",'[1]MONE(M)CAPARD'!AU107)","v":"n.d."},{"$f":"IF('[1]MONE(M)CAPARD'!AV107=\"\",\"\",'[1]MONE(M)CAPARD'!AV107)","v":"n.d."},{"$f":"IF('[1]MONE(M)CAPARD'!AW107=\"\",\"\",'[1]MONE(M)CAPARD'!AW107)","v":"n.a."},{"$f":"IF('[1]MONE(M)CAPARD'!AX107=\"\",\"\",'[1]MONE(M)CAPARD'!AX107)","v":"n.d."},{"$f":"IF('[1]MONE(M)CAPARD'!AY107=\"\",\"\",'[1]MONE(M)CAPARD'!AY107)","v":"n.a."},{"$f":"IF('[1]FISCAL(M)'!$K107=\"\",\"\",'[1]FISCAL(M)'!$K107)","v":"n.d."},{"$f":"IF('[1]FISCAL(M)'!$L107=\"\",\"\",'[1]FISCAL(M)'!$L107)","v":"n.d."},{"$f":"IF('[1]FISCAL(M)'!$AY107=\"\",\"\",'[1]FISCAL(M)'!$AY107)","v":"n.d."},{"$f":"IF('[1]FISCAL(M)'!$BI107=\"\",\"\",'[1]FISCAL(M)'!$BI107)","v":"n.d."},{"$f":"IF('[1]FISCAL(M)'!$BS107=\"\",\"\",'[1]FISCAL(M)'!$BS107)","v":"n.d."},{"$f":"IF('[1]FISCAL(M)'!$AZ107=\"\",\"\",'[1]FISCAL(M)'!$AZ107)","v":"n.d."},{"$f":"IF('[1]FISCAL(M)'!$BJ107=\"\",\"\",'[1]FISCAL(M)'!$BJ107)","v":"n.d."},{"$f":"IF('[1]FISCAL(M)'!$BT107=\"\",\"\",'[1]FISCAL(M)'!$BT107)","v":"n.d."},{"$f":"IF('[2]MONE(M)'!$AO107=\"\",\"\",'[2]MONE(M)'!$AO107)","v":"n.d."},{"$f":"IF('[3]MONE(M)'!$AO107=\"\",\"\",'[3]MONE(M)'!$AO107)","v":"n.d."},{"$f":"IF('[4]MONE(M)'!$AO107=\"\",\"\",'[4]MONE(M)'!$AO107)","v":"n.d."},{"$f":"+'[5]MONE(M)'!$AO107","v":"n.d."},{"$f":"IF('[6]MONE(M)'!$AO107=\"\",\"\",'[6]MONE(M)'!$AO107)","v":"n.d."},{"$f":"IF('[7]MONE(M)'!$AO107=\"\",\"\",'[7]MONE(M)'!$AO107)","v":"n.d."},{"$f":"IF('[8]MONE(M)'!$AO107=\"\",\"\",'[8]MONE(M)'!$AO107)","v":"n.d."},"n.d.","n.d.","n.d.","n.d.","n.d.","n.d.","n.d.",{"$f":"IF('[1]FISCAL(M)'!$K107=\"\",\"\",'[1]FISCAL(M)'!$K107)","v":"n.d."},"n.d.","n.d.",{"$f":"IF('[1]FISCAL(M)'!$L107=\"\",\"\",'[1]FISCAL(M)'!$L107)","v":"n.d."},"n.d.","n.d.","n.d.","n.d.","n.d.","n.d.","n.d.","n.d.","n.d.","n.d.","n.d.","n.d.","n.d.","n.d.","n.d.","n.d.","n.d.","n.d."]
[1998,"marzo","1998-marzo",{"$f":"IF('[1]REAL IPC(M)'!$AL108=\"\",\"\",+'[1]REAL IPC(M)'!$AL108)","v":6.6416237531550237},{"$f":"IF('[1]REAL IPC(M)'!$BE108=\"\",\"\",+'[1]REAL IPC(M)'!$BE108)","v":7.8519559380647141},{"$f":"IF('[1]REAL IPC(M)'!$AM108=\"\",\"\",+'[1]REAL IPC(M)'!$AM108)","v":6.0646974558465905},{"$f":"IF('[1]REAL IPC(M)'!$BI108=\"\",\"\",+'[1]REAL IPC(M)'!$BI108)","v":7.2382549276620134},{"$f":"IF('[1]REAL IMAE(M)'!BJ108=\"\",\"\",'[1]REAL IMAE(M)'!BJ108)","v":"n.d."},{"$f":"IF('[1]REAL IMAE(M)'!BK108=\"\",\"\",'[1]REAL IMAE(M)'!BK108)","v":"n.d."},{"$f":"IF('[1]REAL IMAE(M)'!BN108=\"\",\"\",'[1]REAL IMAE(M)'!BN108)","v":"n.d."},{"$f":"IF('[1]REAL IMAE(M)'!BO108=\"\",\"\",'[1]REAL IMAE(M)'!BO108)","v":"n.d."},{"$f":"IF('[1]EXT RIN(M)'!$K108=\"\",\"\",'[1]EXT RIN(M)'!$K108)","v":"n.d."},"",{"$f":"IF('[1]EXT RIN(M)'!$L108=\"\",\"\",'[1]EXT RIN(M)'!$L108)","v":"n.d."},"",{"$f":"IF('[1]MONE(M)CARD'!EG108=\"\",\"\",'[1]MONE(M)CARD'!EG108)","v":"n.d."},{"$f":"IF('[1]MONE(M)CARD'!EK108=\"\",\"\",'[1]MONE(M)CARD'!EK108)","v":"n.d."},{"$f":"IF('[1]MONE(M)CARD'!EP108=\"\",\"\",'[1]MONE(M)CARD'!EP108)","v":"n.d."},{"$f":"IF('[1]MONE(M)CARD'!ES108=\"\",\"\",'[1]MONE(M)CARD'!ES108)","v":"n.d."},{"$f":"IF('[1]MONE(M)CARD'!EV108=\"\",\"\",'[1]MONE(M)CARD'!EV108)","v":"n.d."},{"$f":"IF('[1]MONE(M)CARD'!EZ108=\"\",\"\",'[1]MONE(M)CARD'!EZ108)","v":"n.d."},{"$f":"IF('[1]MONE(M)CAPARD'!FC108=\"\",\"\",'[1]MONE(M)CAPARD'!FC108)","v":"n.d."},{"$f":"IF('[1]MONE(M)CAPARD'!FG108=\"\",\"\",'[1]MONE(M)CAPARD'!FG108)","v":"n.d."},{"$f":"IF('[1]MONE(M)CAPARD'!FL108=\"\",\"\",'[1]MONE(M)CAPARD'!FL108)","v":"n.d."},{"$f":"IF('[1]MONE(M)CAPARD'!FO108=\"\",\"\",'[1]MONE(M)CAPARD'!FO108)","v":"n.d."},{"$f":"IF('[1]MONE(M)CAPARD'!FR108=\"\",\"\",'[1]MONE(M)CAPARD'!FR108)","v":"n.d."},{"$f":"IF('[1]MONE(M)CAPARD'!FV108=\"\",\"\",'[1]MONE(M)CAPARD'!FV108)","v":"n.d."},{"$f":"IF('[1]MONE(M)CARD'!FV108=\"\",\"\",'[1]MONE(M)CARD'!FV108)","v":""},{"$f":"IF('[1]MONE(M)CARD'!GD108=\"\",\"\",'[1]MONE(M)CARD'!GD108)","v":"n.d."},{"$f":"IF('[1]MONE(M)CARD'!GE108=\"\",\"\",'[1]MONE(M)CARD'!GE108)","v":"n.d."},"n.d.","n.d.","n.d.","n.d.","n.d.","n.d.","n.d.","n.d.",null,"n.d.","n.d.","n.d.","n.d.","n.d.",{"$f":"IF('[1]MONE(M)CAPARD'!GS108=\"\",\"\",'[1]MONE(M)CAPARD'!GS108)","v":"n.d."},{"$f":"IF('[1]MONE(M)CARD'!HA108=\"\",\"\",'[1]MONE(M)CAPARD'!HA108)","v":"n.d."},{"$f":"IF('[1]MONE(M)CAPARD'!HB108=\"\",\"\",'[1]MONE(M)CAPARD'!HB108)","v":"n.d."},"n.d.","n.d.","n.d.","n.d.","n.d.","n.d.","n.d.","n.d.","n.d.","n.d.","n.d.","n.d.","n.d.","n.d.",{"$f":"IF('[1]MONE(M)CAPARD'!AS108=\"\",\"\",'[1]MONE(M)CAPARD'!AS108)","v":"n.d."},{"$f":"IF('[1]MONE(M)CAPARD'!AT108=\"\",\"\",'[1]MONE(M)CAPARD'!AT108)","v":"n.a."},{"$f":"IF('[1]MONE(M)CAPARD'!AU108=\"\",\"\",'[1]MONE(M)CAPARD'!AU108)","v":"n.d."},{"$f":"IF('[1]MONE(M)CAPARD'!AV108=\"\",\"\",'[1]MONE(M)CAPARD'!AV108)","v":"n.d."},{"$f":"IF('[1]MONE(M)CAPARD'!AW108=\"\",\"\",'[1]MONE(M)CAPARD'!AW108)","v":"n.a."},{"$f":"IF('[1]MONE(M)CAPARD'!AX108=\"\",\"\",'[1]MONE(M)CAPARD'!AX108)","v":"n.d."},{"$f":"IF('[1]MONE(M)CAPARD'!AY108=\"\",\"\",'[1]MONE(M)CAPARD'!AY108)","v":"n.a."},{"$f":"IF('[1]FISCAL(M)'!$K108=\"\",\"\",'[1]FISCAL(M)'!$K108)","v":"n.d."},{"$f":"IF('[1]FISCAL(M)'!$L108=\"\",\"\",'[1]FISCAL(M)'!$L108)","v":"n.d."},{"$f":"IF('[1]FISCAL(M)'!$AY108=\"\",\"\",'[1]FISCAL(M)'!$AY108)","v":"n.d."},{"$f":"IF('[1]FISCAL(M)'!$BI108=\"\",\"\",'[1]FISCAL(M)'!$BI108)","v":"n.d."},{"$f":"IF('[1]FISCAL(M)'!$BS108=\"\",\"\",'[1]FISCAL(M)'!$BS108)","v":"n.d."},{"$f":"IF('[1]FISCAL(M)'!$AZ108=\"\",\"\",'[1]FISCAL(M)'!$AZ108)","v":"n.d."},{"$f":"IF('[1]FISCAL(M)'!$BJ108=\"\",\"\",'[1]FISCAL(M)'!$BJ108)","v":"n.d."},{"$f":"IF('[1]FISCAL(M)'!$BT108=\"\",\"\",'[1]FISCAL(M)'!$BT108)","v":"n.d."},{"$f":"IF('[2]MONE(M)'!$AO108=\"\",\"\",'[2]MONE(M)'!$AO108)","v":"n.d."},{"$f":"IF('[3]MONE(M)'!$AO108=\"\",\"\",'[3]MONE(M)'!$AO108)","v":"n.d."},{"$f":"IF('[4]MONE(M)'!$AO108=\"\",\"\",'[4]MONE(M)'!$AO108)","v":"n.d."},{"$f":"+'[5]MONE(M)'!$AO108","v":"n.d."},{"$f":"IF('[6]MONE(M)'!$AO108=\"\",\"\",'[6]MONE(M)'!$AO108)","v":"n.d."},{"$f":"IF('[7]MONE(M)'!$AO108=\"\",\"\",'[7]MONE(M)'!$AO108)","v":"n.d."},{"$f":"IF('[8]MONE(M)'!$AO108=\"\",\"\",'[8]MONE(M)'!$AO108)","v":"n.d."},"n.d.","n.d.","n.d.","n.d.","n.d.","n.d.","n.d.",{"$f":"IF('[1]FISCAL(M)'!$K108=\"\",\"\",'[1]FISCAL(M)'!$K108)","v":"n.d."},"n.d.","n.d.",{"$f":"IF('[1]FISCAL(M)'!$L108=\"\",\"\",'[1]FISCAL(M)'!$L108)","v":"n.d."},"n.d.","n.d.","n.d.","n.d.","n.d.","n.d.","n.d.","n.d.","n.d.","n.d.","n.d.","n.d.","n.d.","n.d.","n.d.","n.d.","n.d.","n.d."]
[1998,"abril","1998-abril",{"$f":"IF('[1]REAL IPC(M)'!$AL109=\"\",\"\",+'[1]REAL IPC(M)'!$AL109)","v":6.9621207341267866},{"$f":"IF('[1]REAL IPC(M)'!$BE109=\"\",\"\",+'[1]REAL IPC(M)'!$BE109)","v":7.7342515296847658},{"$f":"IF('[1]REAL IPC(M)'!$AM109=\"\",\"\",+'[1]REAL IPC(M)'!$AM109)","v":6.3728686614199948},{"$f":"IF('[1]REAL IPC(M)'!$BI109=\"\",\"\",+'[1]REAL IPC(M)'!$BI109)","v":7.1279383814926156},{"$f":"IF('[1]REAL IMAE(M)'!BJ109=\"\",\"\",'[1]REAL IMAE(M)'!BJ109)","v":"n.d."},{"$f":"IF('[1]REAL IMAE(M)'!BK109=\"\",\"\",'[1]REAL IMAE(M)'!BK109)","v":"n.d."},{"$f":"IF('[1]REAL IMAE(M)'!BN109=\"\",\"\",'[1]REAL IMAE(M)'!BN109)","v":"n.d."},{"$f":"IF('[1]REAL IMAE(M)'!BO109=\"\",\"\",'[1]REAL IMAE(M)'!BO109)","v":"n.d."},{"$f":"IF('[1]EXT RIN(M)'!$K109=\"\",\"\",'[1]EXT RIN(M)'!$K109)","v":"n.d."},"",{"$f":"IF('[1]EXT RIN(M)'!$L109=\"\",\"\",'[1]EXT RIN(M)'!$L109)","v":"n.d."},"",{"$f":"IF('[1]MONE(M)CARD'!EG109=\"\",\"\",'[1]MONE(M)CARD'!EG109)","v":"n.d."},{"$f":"IF('[1]MONE(M)CARD'!EK109=\"\",\"\",'[1]MONE(M)CARD'!EK109)","v":"n.d."},{"$f":"IF('[1]MONE(M)CARD'!EP109=\"\",\"\",'[1]MONE(M)CARD'!EP109)","v":"n.d."},{"$f":"IF('[1]MONE(M)CARD'!ES109=\"\",\"\",'[1]MONE(M)CARD'!ES109)","v":"n.d."},{"$f":"IF('[1]MONE(M)CARD'!EV109=\"\",\"\",'[1]MONE(M)CARD'!EV109)","v":"n.d."},{"$f":"IF('[1]MONE(M)CARD'!EZ109=\"\",\"\",'[1]MONE(M)CARD'!EZ109)","v":"n.d."},{"$f":"IF('[1]MONE(M)CAPARD'!FC109=\"\",\"\",'[1]MONE(M)CAPARD'!FC109)","v":"n.d."},{"$f":"IF('[1]MONE(M)CAPARD'!FG109=\"\",\"\",'[1]MONE(M)CAPARD'!FG109)","v":"n.d."},{"$f":"IF('[1]MONE(M)CAPARD'!FL109=\"\",\"\",'[1]MONE(M)CAPARD'!FL109)","v":"n.d."},{"$f":"IF('[1]MONE(M)CAPARD'!FO109=\"\",\"\",'[1]MONE(M)CAPARD'!FO109)","v":"n.d."},{"$f":"IF('[1]MONE(M)CAPARD'!FR109=\"\",\"\",'[1]MONE(M)CAPARD'!FR109)","v":"n.d."},{"$f":"IF('[1]MONE(M)CAPARD'!FV109=\"\",\"\",'[1]MONE(M)CAPARD'!FV109)","v":"n.d."},{"$f":"IF('[1]MONE(M)CARD'!FV109=\"\",\"\",'[1]MONE(M)CARD'!FV109)","v":""},{"$f":"IF('[1]MONE(M)CARD'!GD109=\"\",\"\",'[1]MONE(M)CARD'!GD109)","v":"n.d."},{"$f":"IF('[1]MONE(M)CARD'!GE109=\"\",\"\",'[1]MONE(M)CARD'!GE109)","v":"n.d."},"n.d.","n.d.","n.d.","n.d.","n.d.","n.d.","n.d.","n.d.",null,"n.d.","n.d.","n.d.","n.d.","n.d.",{"$f":"IF('[1]MONE(M)CAPARD'!GS109=\"\",\"\",'[1]MONE(M)CAPARD'!GS109)","v":"n.d."},{"$f":"IF('[1]MONE(M)CARD'!HA109=\"\",\"\",'[1]MONE(M)CAPARD'!HA109)","v":"n.d."},{"$f":"IF('[1]MONE(M)CAPARD'!HB109=\"\",\"\",'[1]MONE(M)CAPARD'!HB109)","v":"n.d."},"n.d.","n.d.","n.d.","n.d.","n.d.","n.d.","n.d.","n.d.","n.d.","n.d.","n.d.","n.d.","n.d.","n.d.",{"$f":"IF('[1]MONE(M)CAPARD'!AS109=\"\",\"\",'[1]MONE(M)CAPARD'!AS109)","v":"n.d."},{"$f":"IF('[1]MONE(M)CAPARD'!AT109=\"\",\"\",'[1]MONE(M)CAPARD'!AT109)","v":"n.a."},{"$f":"IF('[1]MONE(M)CAPARD'!AU109=\"\",\"\",'[1]MONE(M)CAPARD'!AU109)","v":"n.d."},{"$f":"IF('[1]MONE(M)CAPARD'!AV109=\"\",\"\",'[1]MONE(M)CAPARD'!AV109)","v":"n.d."},{"$f":"IF('[1]MONE(M)CAPARD'!AW109=\"\",\"\",'[1]MONE(M)CAPARD'!AW109)","v":"n.a."},{"$f":"IF('[1]MONE(M)CAPARD'!AX109=\"\",\"\",'[1]MONE(M)CAPARD'!AX109)","v":"n.d."},{"$f":"IF('[1]MONE(M)CAPARD'!AY109=\"\",\"\",'[1]MONE(M)CAPARD'!AY109)","v":"n.a."},{"$f":"IF('[1]FISCAL(M)'!$K109=\"\",\"\",'[1]FISCAL(M)'!$K109)","v":"n.d."},{"$f":"IF('[1]FISCAL(M)'!$L109=\"\",\"\",'[1]FISCAL(M)'!$L109)","v":"n.d."},{"$f":"IF('[1]FISCAL(M)'!$AY109=\"\",\"\",'[1]FISCAL(M)'!$AY109)","v":"n.d."},{"$f":"IF('[1]FISCAL(M)'!$BI109=\"\",\"\",'[1]FISCAL(M)'!$BI109)","v":"n.d."},{"$f":"IF('[1]FISCAL(M)'!$BS109=\"\",\"\",'[1]FISCAL(M)'!$BS109)","v":"n.d."},{"$f":"IF('[1]FISCAL(M)'!$AZ109=\"\",\"\",'[1]FISCAL(M)'!$AZ109)","v":"n.d."},{"$f":"IF('[1]FISCAL(M)'!$BJ109=\"\",\"\",'[1]FISCAL(M)'!$BJ109)","v":"n.d."},{"$f":"IF('[1]FISCAL(M)'!$BT109=\"\",\"\",'[1]FISCAL(M)'!$BT109)","v":"n.d."},{"$f":"IF('[2]MONE(M)'!$AO109=\"\",\"\",'[2]MONE(M)'!$AO109)","v":"n.d."},{"$f":"IF('[3]MONE(M)'!$AO109=\"\",\"\",'[3]MONE(M)'!$AO109)","v":"n.d."},{"$f":"IF('[4]MONE(M)'!$AO109=\"\",\"\",'[4]MONE(M)'!$AO109)","v":"n.d."},{"$f":"+'[5]MONE(M)'!$AO109","v":"n.d."},{"$f":"IF('[6]MONE(M)'!$AO109=\"\",\"\",'[6]MONE(M)'!$AO109)","v":"n.d."},{"$f":"IF('[7]MONE(M)'!$AO109=\"\",\"\",'[7]MONE(M)'!$AO109)","v":"n.d."},{"$f":"IF('[8]MONE(M)'!$AO109=\"\",\"\",'[8]MONE(M)'!$AO109)","v":"n.d."},"n.d.","n.d.","n.d.","n.d.","n.d.","n.d.","n.d.",{"$f":"IF('[1]FISCAL(M)'!$K109=\"\",\"\",'[1]FISCAL(M)'!$K109)","v":"n.d."},"n.d.","n.d.",{"$f":"IF('[1]FISCAL(M)'!$L109=\"\",\"\",'[1]FISCAL(M)'!$L109)","v":"n.d."},"n.d.","n.d.","n.d.","n.d.","n.d.","n.d.","n.d.","n.d.","n.d.","n.d.","n.d.","n.d.","n.d.","n.d.","n.d.","n.d.","n.d.","n.d."]
[1998,"mayo ","1998-mayo ",{"$f":"IF('[1]REAL IPC(M)'!$AL110=\"\",\"\",+'[1]REAL IPC(M)'!$AL110)","v":7.3879082967708953},{"$f":"IF('[1]REAL IPC(M)'!$BE110=\"\",\"\",+'[1]REAL IPC(M)'!$BE110)","v":7.6227012252677362},{"$f":"IF('[1]REAL IPC(M)'!$AM110=\"\",\"\",+'[1]REAL IPC(M)'!$AM110)","v":6.7524385653489949},{"$f":"IF('[1]REAL IPC(M)'!$BI110=\"\",\"\",+'[1]REAL IPC(M)'!$BI110)","v":7.0235066931920276},{"$f":"IF('[1]REAL IMAE(M)'!BJ110=\"\",\"\",'[1]REAL IMAE(M)'!BJ110)","v":"n.d."},{"$f":"IF('[1]REAL IMAE(M)'!BK110=\"\",\"\",'[1]REAL IMAE(M)'!BK110)","v":"n.d."},{"$f":"IF('[1]REAL IMAE(M)'!BN110=\"\",\"\",'[1]REAL IMAE(M)'!BN110)","v":"n.d."},{"$f":"IF('[1]REAL IMAE(M)'!BO110=\"\",\"\",'[1]REAL IMAE(M)'!BO110)","v":"n.d."},{"$f":"IF('[1]EXT RIN(M)'!$K110=\"\",\"\",'[1]EXT RIN(M)'!$K110)","v":"n.d."},"",{"$f":"IF('[1]EXT RIN(M)'!$L110=\"\",\"\",'[1]EXT RIN(M)'!$L110)","v":"n.d."},"",{"$f":"IF('[1]MONE(M)CARD'!EG110=\"\",\"\",'[1]MONE(M)CARD'!EG110)","v":"n.d."},{"$f":"IF('[1]MONE(M)CARD'!EK110=\"\",\"\",'[1]MONE(M)CARD'!EK110)","v":"n.d."},{"$f":"IF('[1]MONE(M)CARD'!EP110=\"\",\"\",'[1]MONE(M)CARD'!EP110)","v":"n.d."},{"$f":"IF('[1]MONE(M)CARD'!ES110=\"\",\"\",'[1]MONE(M)CARD'!ES110)","v":"n.d."},{"$f":"IF('[1]MONE(M)CARD'!EV110=\"\",\"\",'[1]MONE(M)CARD'!EV110)","v":"n.d."},{"$f":"IF('[1]MONE(M)CARD'!EZ110=\"\",\"\",'[1]MONE(M)CARD'!EZ110)","v":"n.d."},{"$f":"IF('[1]MONE(M)CAPARD'!FC110=\"\",\"\",'[1]MONE(M)CAPARD'!FC110)","v":"n.d."},{"$f":"IF('[1]MONE(M)CAPARD'!FG110=\"\",\"\",'[1]MONE(M)CAPARD'!FG110)","v":"n.d."},{"$f":"IF('[1]MONE(M)CAPARD'!FL110=\"\",\"\",'[1]MONE(M)CAPARD'!FL110)","v":"n.d."},{"$f":"IF('[1]MONE(M)CAPARD'!FO110=\"\",\"\",'[1]MONE(M)CAPARD'!FO110)","v":"n.d."},{"$f":"IF('[1]MONE(M)CAPARD'!FR110=\"\",\"\",'[1]MONE(M)CAPARD'!FR110)","v":"n.d."},{"$f":"IF('[1]MONE(M)CAPARD'!FV110=\"\",\"\",'[1]MONE(M)CAPARD'!FV110)","v":"n.d."},{"$f":"IF('[1]MONE(M)CARD'!FV110=\"\",\"\",'[1]MONE(M)CARD'!FV110)","v":""},{"$f":"IF('[1]MONE(M)CARD'!GD110=\"\",\"\",'[1]MONE(M)CARD'!GD110)","v":"n.d."},{"$f":"IF('[1]MONE(M)CARD'!GE110=\"\",\"\",'[1]MONE(M)CARD'!GE110)","v":"n.d."},"n.d.","n.d.","n.d.","n.d.","n.d.","n.d.","n.d.","n.d.",null,"n.d.","n.d.","n.d.","n.d.","n.d.",{"$f":"IF('[1]MONE(M)CAPARD'!GS110=\"\",\"\",'[1]MONE(M)CAPARD'!GS110)","v":"n.d."},{"$f":"IF('[1]MONE(M)CARD'!HA110=\"\",\"\",'[1]MONE(M)CAPARD'!HA110)","v":"n.d."},{"$f":"IF('[1]MONE(M)CAPARD'!HB110=\"\",\"\",'[1]MONE(M)CAPARD'!HB110)","v":"n.d."},"n.d.","n.d.","n.d.","n.d.","n.d.","n.d.","n.d.","n.d.","n.d.","n.d.","n.d.","n.d.","n.d.","n.d.",{"$f":"IF('[1]MONE(M)CAPARD'!AS110=\"\",\"\",'[1]MONE(M)CAPARD'!AS110)","v":"n.d."},{"$f":"IF('[1]MONE(M)CAPARD'!AT110=\"\",\"\",'[1]MONE(M)CAPARD'!AT110)","v":"n.a."},{"$f":"IF('[1]MONE(M)CAPARD'!AU110=\"\",\"\",'[1]MONE(M)CAPARD'!AU110)","v":"n.d."},{"$f":"IF('[1]MONE(M)CAPARD'!AV110=\"\",\"\",'[1]MONE(M)CAPARD'!AV110)","v":"n.d."},{"$f":"IF('[1]MONE(M)CAPARD'!AW110=\"\",\"\",'[1]MONE(M)CAPARD'!AW110)","v":"n.a."},{"$f":"IF('[1]MONE(M)CAPARD'!AX110=\"\",\"\",'[1]MONE(M)CAPARD'!AX110)","v":"n.d."},{"$f":"IF('[1]MONE(M)CAPARD'!AY110=\"\",\"\",'[1]MONE(M)CAPARD'!AY110)","v":"n.a."},{"$f":"IF('[1]FISCAL(M)'!$K110=\"\",\"\",'[1]FISCAL(M)'!$K110)","v":"n.d."},{"$f":"IF('[1]FISCAL(M)'!$L110=\"\",\"\",'[1]FISCAL(M)'!$L110)","v":"n.d."},{"$f":"IF('[1]FISCAL(M)'!$AY110=\"\",\"\",'[1]FISCAL(M)'!$AY110)","v":"n.d."},{"$f":"IF('[1]FISCAL(M)'!$BI110=\"\",\"\",'[1]FISCAL(M)'!$BI110)","v":"n.d."},{"$f":"IF('[1]FISCAL(M)'!$BS110=\"\",\"\",'[1]FISCAL(M)'!$BS110)","v":"n.d."},{"$f":"IF('[1]FISCAL(M)'!$AZ110=\"\",\"\",'[1]FISCAL(M)'!$AZ110)","v":"n.d."},{"$f":"IF('[1]FISCAL(M)'!$BJ110=\"\",\"\",'[1]FISCAL(M)'!$BJ110)","v":"n.d."},{"$f":"IF('[1]FISCAL(M)'!$BT110=\"\",\"\",'[1]FISCAL(M)'!$BT110)","v":"n.d."},{"$f":"IF('[2]MONE(M)'!$AO110=\"\",\"\",'[2]MONE(M)'!$AO110)","v":"n.d."},{"$f":"IF('[3]MONE(M)'!$AO110=\"\",\"\",'[3]MONE(M)'!$AO110)","v":"n.d."},{"$f":"IF('[4]MONE(M)'!$AO110=\"\",\"\",'[4]MONE(M)'!$AO110)","v":"n.d."},{"$f":"+'[5]MONE(M)'!$AO110","v":"n.d."},{"$f":"IF('[6]MONE(M)'!$AO110=\"\",\"\",'[6]MONE(M)'!$AO110)","v":"n.d."},{"$f":"IF('[7]MONE(M)'!$AO110=\"\",\"\",'[7]MONE(M)'!$AO110)","v":"n.d."},{"$f":"IF('[8]MONE(M)'!$AO110=\"\",\"\",'[8]MONE(M)'!$AO110)","v":"n.d."},"n.d.","n.d.","n.d.","n.d.","n.d.","n.d.","n.d.",{"$f":"IF('[1]FISCAL(M)'!$K110=\"\",\"\",'[1]FISCAL(M)'!$K110)","v":"n.d."},"n.d.","n.d.",{"$f":"IF('[1]FISCAL(M)'!$L110=\"\",\"\",'[1]FISCAL(M)'!$L110)","v":"n.d."},"n.d.","n.d.","n.d.","n.d.","n.d.","n.d.","n.d.","n.d.","n.d.","n.d.","n.d.","n.d.","n.d.","n.d.","n.d.","n.d.","n.d.","n.d."]
[1998,"junio ","1998-junio ",{"$f":"IF('[1]REAL IPC(M)'!$AL111=\"\",\"\",+'[1]REAL IPC(M)'!$AL111)","v":7.4321475300767048},{"$f":"IF('[1]REAL IPC(M)'!$BE111=\"\",\"\",+'[1]REAL IPC(M)'!$BE111)","v":7.5173846539011491},{"$f":"IF('[1]REAL IPC(M)'!$AM111=\"\",\"\",+'[1]REAL IPC(M)'!$AM111)","v":6.8088981646276636},{"$f":"IF('[1]REAL IPC(M)'!$BI111=\"\",\"\",+'[1]REAL IPC(M)'!$BI111)","v":6.9250249930269625},{"$f":"IF('[1]REAL IMAE(M)'!BJ111=\"\",\"\",'[1]REAL IMAE(M)'!BJ111)","v":"n.d."},{"$f":"IF('[1]REAL IMAE(M)'!BK111=\"\",\"\",'[1]REAL IMAE(M)'!BK111)","v":"n.d."},{"$f":"IF('[1]REAL IMAE(M)'!BN111=\"\",\"\",'[1]REAL IMAE(M)'!BN111)","v":"n.d."},{"$f":"IF('[1]REAL IMAE(M)'!BO111=\"\",\"\",'[1]REAL IMAE(M)'!BO111)","v":"n.d."},{"$f":"IF('[1]EXT RIN(M)'!$K111=\"\",\"\",'[1]EXT RIN(M)'!$K111)","v":"n.d."},"",{"$f":"IF('[1]EXT RIN(M)'!$L111=\"\",\"\",'[1]EXT RIN(M)'!$L111)","v":"n.d."},"",{"$f":"IF('[1]MONE(M)CARD'!EG111=\"\",\"\",'[1]MONE(M)CARD'!EG111)","v":"n.d."},{"$f":"IF('[1]MONE(M)CARD'!EK111=\"\",\"\",'[1]MONE(M)CARD'!EK111)","v":"n.d."},{"$f":"IF('[1]MONE(M)CARD'!EP111=\"\",\"\",'[1]MONE(M)CARD'!EP111)","v":"n.d."},{"$f":"IF('[1]MONE(M)CARD'!ES111=\"\",\"\",'[1]MONE(M)CARD'!ES111)","v":"n.d."},{"$f":"IF('[1]MONE(M)CARD'!EV111=\"\",\"\",'[1]MONE(M)CARD'!EV111)","v":"n.d."},{"$f":"IF('[1]MONE(M)CARD'!EZ111=\"\",\"\",'[1]MONE(M)CARD'!EZ111)","v":"n.d."},{"$f":"IF('[1]MONE(M)CAPARD'!FC111=\"\",\"\",'[1]MONE(M)CAPARD'!FC111)","v":"n.d."},{"$f":"IF('[1]MONE(M)CAPARD'!FG111=\"\",\"\",'[1]MONE(M)CAPARD'!FG111)","v":"n.d."},{"$f":"IF('[1]MONE(M)CAPARD'!FL111=\"\",\"\",'[1]MONE(M)CAPARD'!FL111)","v":"n.d."},{"$f":"IF('[1]MONE(M)CAPARD'!FO111=\"\",\"\",'[1]MONE(M)CAPARD'!FO111)","v":"n.d."},{"$f":"IF('[1]MONE(M)CAPARD'!FR111=\"\",\"\",'[1]MONE(M)CAPARD'!FR111)","v":"n.d."},{"$f":"IF('[1]MONE(M)CAPARD'!FV111=\"\",\"\",'[1]MONE(M)CAPARD'!FV111)","v":"n.d."},{"$f":"IF('[1]MONE(M)CARD'!FV111=\"\",\"\",'[1]MONE(M)CARD'!FV111)","v":""},{"$f":"IF('[1]MONE(M)CARD'!GD111=\"\",\"\",'[1]MONE(M)CARD'!GD111)","v":"n.d."},{"$f":"IF('[1]MONE(M)CARD'!GE111=\"\",\"\",'[1]MONE(M)CARD'!GE111)","v":"n.d."},"n.d.","n.d.","n.d.","n.d.","n.d.","n.d.","n.d.","n.d.",null,"n.d.","n.d.","n.d.","n.d.","n.d.",{"$f":"IF('[1]MONE(M)CAPARD'!GS111=\"\",\"\",'[1]MONE(M)CAPARD'!GS111)","v":"n.d."},{"$f":"IF('[1]MONE(M)CARD'!HA111=\"\",\"\",'[1]MONE(M)CAPARD'!HA111)","v":"n.d."},{"$f":"IF('[1]MONE(M)CAPARD'!HB111=\"\",\"\",'[1]MONE(M)CAPARD'!HB111)","v":"n.d."},"n.d.","n.d.","n.d.","n.d.","n.d.","n.d.","n.d.","n.d.","n.d.","n.d.","n.d.","n.d.","n.d.","n.d.",{"$f":"IF('[1]MONE(M)CAPARD'!AS111=\"\",\"\",'[1]MONE(M)CAPARD'!AS111)","v":"n.d."},{"$f":"IF('[1]MONE(M)CAPARD'!AT111=\"\",\"\",'[1]MONE(M)CAPARD'!AT111)","v":"n.a."},{"$f":"IF('[1]MONE(M)CAPARD'!AU111=\"\",\"\",'[1]MONE(M)CAPARD'!AU111)","v":"n.d."},{"$f":"IF('[1]MONE(M)CAPARD'!AV111=\"\",\"\",'[1]MONE(M)CAPARD'!AV111)","v":"n.d."},{"$f":"IF('[1]MONE(M)CAPARD'!AW111=\"\",\"\",'[1]MONE(M)CAPARD'!AW111)","v":"n.a."},{"$f":"IF('[1]MONE(M)CAPARD'!AX111=\"\",\"\",'[1]MONE(M)CAPARD'!AX111)","v":"n.d."},{"$f":"IF('[1]MONE(M)CAPARD'!AY111=\"\",\"\",'[1]MONE(M)CAPARD'!AY111)","v":"n.a."},{"$f":"IF('[1]FISCAL(M)'!$K111=\"\",\"\",'[1]FISCAL(M)'!$K111)","v":"n.d."},{"$f":"IF('[1]FISCAL(M)'!$L111=\"\",\"\",'[1]FISCAL(M)'!$L111)","v":"n.d."},{"$f":"IF('[1]FISCAL(M)'!$AY111=\"\",\"\",'[1]FISCAL(M)'!$AY111)","v":"n.d."},{"$f":"IF('[1]FISCAL(M)'!$BI111=\"\",\"\",'[1]FISCAL(M)'!$BI111)","v":"n.d."},{"$f":"IF('[1]FISCAL(M)'!$BS111=\"\",\"\",'[1]FISCAL(M)'!$BS111)","v":"n.d."},{"$f":"IF('[1]FISCAL(M)'!$AZ111=\"\",\"\",'[1]FISCAL(M)'!$AZ111)","v":"n.d."},{"$f":"IF('[1]FISCAL(M)'!$BJ111=\"\",\"\",'[1]FISCAL(M)'!$BJ111)","v":"n.d."},{"$f":"IF('[1]FISCAL(M)'!$BT111=\"\",\"\",'[1]FISCAL(M)'!$BT111)","v":"n.d."},{"$f":"IF('[2]MONE(M)'!$AO111=\"\",\"\",'[2]MONE(M)'!$AO111)","v":"n.d."},{"$f":"IF('[3]MONE(M)'!$AO111=\"\",\"\",'[3]MONE(M)'!$AO111)","v":"n.d."},{"$f":"IF('[4]MONE(M)'!$AO111=\"\",\"\",'[4]MONE(M)'!$AO111)","v":"n.d."},{"$f":"+'[5]MONE(M)'!$AO111","v":"n.d."},{"$f":"IF('[6]MONE(M)'!$AO111=\"\",\"\",'[6]MONE(M)'!$AO111)","v":"n.d."},{"$f":"IF('[7]MONE(M)'!$AO111=\"\",\"\",'[7]MONE(M)'!$AO111)","v":"n.d."},{"$f":"IF('[8]MONE(M)'!$AO111=\"\",\"\",'[8]MONE(M)'!$AO111)","v":"n.d."},"n.d.","n.d.","n.d.","n.d.","n.d.","n.d.","n.d.",{"$f":"IF('[1]FISCAL(M)'!$K111=\"\",\"\",'[1]FISCAL(M)'!$K111)","v":"n.d."},"n.d.","n.d.",{"$f":"IF('[1]FISCAL(M)'!$L111=\"\",\"\",'[1]FISCAL(M)'!$L111)","v":"n.d."},"n.d.","n.d.","n.d.","n.d.","n.d.","n.d.","n.d.","n.d.","n.d.","n.d.","n.d.","n.d.","n.d.","n.d.","n.d.","n.d.","n.d.","n.d."]
[1998,"julio","1998-julio",{"$f":"IF('[1]REAL IPC(M)'!$AL112=\"\",\"\",+'[1]REAL IPC(M)'!$AL112)","v":6.9982776644418099},{"$f":"IF('[1]REAL IPC(M)'!$BE112=\"\",\"\",+'[1]REAL IPC(M)'!$BE112)","v":7.4183644078995359},{"$f":"IF('[1]REAL IPC(M)'!$AM112=\"\",\"\",+'[1]REAL IPC(M)'!$AM112)","v":6.405620081277652},{"$f":"IF('[1]REAL IPC(M)'!$BI112=\"\",\"\",+'[1]REAL IPC(M)'!$BI112)","v":6.8325393197605333},{"$f":"IF('[1]REAL IMAE(M)'!BJ112=\"\",\"\",'[1]REAL IMAE(M)'!BJ112)","v":"n.d."},{"$f":"IF('[1]REAL IMAE(M)'!BK112=\"\",\"\",'[1]REAL IMAE(M)'!BK112)","v":"n.d."},{"$f":"IF('[1]REAL IMAE(M)'!BN112=\"\",\"\",'[1]REAL IMAE(M)'!BN112)","v":"n.d."},{"$f":"IF('[1]REAL IMAE(M)'!BO112=\"\",\"\",'[1]REAL IMAE(M)'!BO112)","v":"n.d."},{"$f":"IF('[1]EXT RIN(M)'!$K112=\"\",\"\",'[1]EXT RIN(M)'!$K112)","v":"n.d."},"",{"$f":"IF('[1]EXT RIN(M)'!$L112=\"\",\"\",'[1]EXT RIN(M)'!$L112)","v":"n.d."},"",{"$f":"IF('[1]MONE(M)CARD'!EG112=\"\",\"\",'[1]MONE(M)CARD'!EG112)","v":"n.d."},{"$f":"IF('[1]MONE(M)CARD'!EK112=\"\",\"\",'[1]MONE(M)CARD'!EK112)","v":"n.d."},{"$f":"IF('[1]MONE(M)CARD'!EP112=\"\",\"\",'[1]MONE(M)CARD'!EP112)","v":"n.d."},{"$f":"IF('[1]MONE(M)CARD'!ES112=\"\",\"\",'[1]MONE(M)CARD'!ES112)","v":"n.d."},{"$f":"IF('[1]MONE(M)CARD'!EV112=\"\",\"\",'[1]MONE(M)CARD'!EV112)","v":"n.d."},{"$f":"IF('[1]MONE(M)CARD'!EZ112=\"\",\"\",'[1]MONE(M)CARD'!EZ112)","v":"n.d."},{"$f":"IF('[1]MONE(M)CAPARD'!FC112=\"\",\"\",'[1]MONE(M)CAPARD'!FC112)","v":"n.d."},{"$f":"IF('[1]MONE(M)CAPARD'!FG112=\"\",\"\",'[1]MONE(M)CAPARD'!FG112)","v":"n.d."},{"$f":"IF('[1]MONE(M)CAPARD'!FL112=\"\",\"\",'[1]MONE(M)CAPARD'!FL112)","v":"n.d."},{"$f":"IF('[1]MONE(M)CAPARD'!FO112=\"\",\"\",'[1]MONE(M)CAPARD'!FO112)","v":"n.d."},{"$f":"IF('[1]MONE(M)CAPARD'!FR112=\"\",\"\",'[1]MONE(M)CAPARD'!FR112)","v":"n.d."},{"$f":"IF('[1]MONE(M)CAPARD'!FV112=\"\",\"\",'[1]MONE(M)CAPARD'!FV112)","v":"n.d."},{"$f":"IF('[1]MONE(M)CARD'!FV112=\"\",\"\",'[1]MONE(M)CARD'!FV112)","v":""},{"$f":"IF('[1]MONE(M)CARD'!GD112=\"\",\"\",'[1]MONE(M)CARD'!GD112)","v":"n.d."},{"$f":"IF('[1]MONE(M)CARD'!GE112=\"\",\"\",'[1]MONE(M)CARD'!GE112)","v":"n.d."},"n.d.","n.d.","n.d.","n.d.","n.d.","n.d.","n.d.","n.d.",null,"n.d.","n.d.","n.d.","n.d.","n.d.",{"$f":"IF('[1]MONE(M)CAPARD'!GS112=\"\",\"\",'[1]MONE(M)CAPARD'!GS112)","v":"n.d."},{"$f":"IF('[1]MONE(M)CARD'!HA112=\"\",\"\",'[1]MONE(M)CAPARD'!HA112)","v":"n.d."},{"$f":"IF('[1]MONE(M)CAPARD'!HB112=\"\",\"\",'[1]MONE(M)CAPARD'!HB112)","v":"n.d."},"n.d.","n.d.","n.d.","n.d.","n.d.","n.d.","n.d.","n.d.","n.d.","n.d.","n.d.","n.d.","n.d.","n.d.",{"$f":"IF('[1]MONE(M)CAPARD'!AS112=\"\",\"\",'[1]MONE(M)CAPARD'!AS112)","v":"n.d."},{"$f":"IF('[1]MONE(M)CAPARD'!AT112=\"\",\"\",'[1]MONE(M)CAPARD'!AT112)","v":"n.a."},{"$f":"IF('[1]MONE(M)CAPARD'!AU112=\"\",\"\",'[1]MONE(M)CAPARD'!AU112)","v":"n.d."},{"$f":"IF('[1]MONE(M)CAPARD'!AV112=\"\",\"\",'[1]MONE(M)CAPARD'!AV112)","v":"n.d."},{"$f":"IF('[1]MONE(M)CAPARD'!AW112=\"\",\"\",'[1]MONE(M)CAPARD'!AW112)","v":"n.a."},{"$f":"IF('[1]MONE(M)CAPARD'!AX112=\"\",\"\",'[1]MONE(M)CAPARD'!AX112)","v":"n.d."},{"$f":"IF('[1]MONE(M)CAPARD'!AY112=\"\",\"\",'[1]MONE(M)CAPARD'!AY112)","v":"n.a."},{"$f":"IF('[1]FISCAL(M)'!$K112=\"\",\"\",'[1]FISCAL(M)'!$K112)","v":"n.d."},{"$f":"IF('[1]FISCAL(M)'!$L112=\"\",\"\",'[1]FISCAL(M)'!$L112)","v":"n.d."},{"$f":"IF('[1]FISCAL(M)'!$AY112=\"\",\"\",'[1]FISCAL(M)'!$AY112)","v":"n.d."},{"$f":"IF('[1]FISCAL(M)'!$BI112=\"\",\"\",'[1]FISCAL(M)'!$BI112)","v":"n.d."},{"$f":"IF('[1]FISCAL(M)'!$BS112=\"\",\"\",'[1]FISCAL(M)'!$BS112)","v":"n.d."},{"$f":"IF('[1]FISCAL(M)'!$AZ112=\"\",\"\",'[1]FISCAL(M)'!$AZ112)","v":"n.d."},{"$f":"IF('[1]FISCAL(M)'!$BJ112=\"\",\"\",'[1]FISCAL(M)'!$BJ112)","v":"n.d."},{"$f":"IF('[1]FISCAL(M)'!$BT112=\"\",\"\",'[1]FISCAL(M)'!$BT112)","v":"n.d."},{"$f":"IF('[2]MONE(M)'!$AO112=\"\",\"\",'[2]MONE(M)'!$AO112)","v":"n.d."},{"$f":"IF('[3]MONE(M)'!$AO112=\"\",\"\",'[3]MONE(M)'!$AO112)","v":"n.d."},{"$f":"IF('[4]MONE(M)'!$AO112=\"\",\"\",'[4]MONE(M)'!$AO112)","v":"n.d."},{"$f":"+'[5]MONE(M)'!$AO112","v":"n.d."},{"$f":"IF('[6]MONE(M)'!$AO112=\"\",\"\",'[6]MONE(M)'!$AO112)","v":"n.d."},{"$f":"IF('[7]MONE(M)'!$AO112=\"\",\"\",'[7]MONE(M)'!$AO112)","v":"n.d."},{"$f":"IF('[8]MONE(M)'!$AO112=\"\",\"\",'[8]MONE(M)'!$AO112)","v":"n.d."},"n.d.","n.d.","n.d.","n.d.","n.d.","n.d.","n.d.",{"$f":"IF('[1]FISCAL(M)'!$K112=\"\",\"\",'[1]FISCAL(M)'!$K112)","v":"n.d."},"n.d.","n.d.",{"$f":"IF('[1]FISCAL(M)'!$L112=\"\",\"\",'[1]FISCAL(M)'!$L112)","v":"n.d."},"n.d.","n.d.","n.d.","n.d.","n.d.","n.d.","n.d.","n.d.","n.d.","n.d.","n.d.","n.d.","n.d.","n.d.","n.d.","n.d.","n.d.","n.d."]
[1998,"agosto","1998-agosto",{"$f":"IF('[1]REAL IPC(M)'!$AL113=\"\",\"\",+'[1]REAL IPC(M)'!$AL113)","v":6.5600040194257581},{"$f":"IF('[1]REAL IPC(M)'!$BE113=\"\",\"\",+'[1]REAL IPC(M)'!$BE113)","v":7.325696025498063},{"$f":"IF('[1]REAL IPC(M)'!$AM113=\"\",\"\",+'[1]REAL IPC(M)'!$AM113)","v":6.0064867281756529},{"$f":"IF('[1]REAL IPC(M)'!$BI113=\"\",\"\",+'[1]REAL IPC(M)'!$BI113)","v":6.7460859761031999},{"$f":"IF('[1]REAL IMAE(M)'!BJ113=\"\",\"\",'[1]REAL IMAE(M)'!BJ113)","v":"n.d."},{"$f":"IF('[1]REAL IMAE(M)'!BK113=\"\",\"\",'[1]REAL IMAE(M)'!BK113)","v":"n.d."},{"$f":"IF('[1]REAL IMAE(M)'!BN113=\"\",\"\",'[1]REAL IMAE(M)'!BN113)","v":"n.d."},{"$f":"IF('[1]REAL IMAE(M)'!BO113=\"\",\"\",'[1]REAL IMAE(M)'!BO113)","v":"n.d."},{"$f":"IF('[1]EXT RIN(M)'!$K113=\"\",\"\",'[1]EXT RIN(M)'!$K113)","v":"n.d."},"",{"$f":"IF('[1]EXT RIN(M)'!$L113=\"\",\"\",'[1]EXT RIN(M)'!$L113)","v":"n.d."},"",{"$f":"IF('[1]MONE(M)CARD'!EG113=\"\",\"\",'[1]MONE(M)CARD'!EG113)","v":"n.d."},{"$f":"IF('[1]MONE(M)CARD'!EK113=\"\",\"\",'[1]MONE(M)CARD'!EK113)","v":"n.d."},{"$f":"IF('[1]MONE(M)CARD'!EP113=\"\",\"\",'[1]MONE(M)CARD'!EP113)","v":"n.d."},{"$f":"IF('[1]MONE(M)CARD'!ES113=\"\",\"\",'[1]MONE(M)CARD'!ES113)","v":"n.d."},{"$f":"IF('[1]MONE(M)CARD'!EV113=\"\",\"\",'[1]MONE(M)CARD'!EV113)","v":"n.d."},{"$f":"IF('[1]MONE(M)CARD'!EZ113=\"\",\"\",'[1]MONE(M)CARD'!EZ113)","v":"n.d."},{"$f":"IF('[1]MONE(M)CAPARD'!FC113=\"\",\"\",'[1]MONE(M)CAPARD'!FC113)","v":"n.d."},{"$f":"IF('[1]MONE(M)CAPARD'!FG113=\"\",\"\",'[1]MONE(M)CAPARD'!FG113)","v":"n.d."},{"$f":"IF('[1]MONE(M)CAPARD'!FL113=\"\",\"\",'[1]MONE(M)CAPARD'!FL113)","v":"n.d."},{"$f":"IF('[1]MONE(M)CAPARD'!FO113=\"\",\"\",'[1]MONE(M)CAPARD'!FO113)","v":"n.d."},{"$f":"IF('[1]MONE(M)CAPARD'!FR113=\"\",\"\",'[1]MONE(M)CAPARD'!FR113)","v":"n.d."},{"$f":"IF('[1]MONE(M)CAPARD'!FV113=\"\",\"\",'[1]MONE(M)CAPARD'!FV113)","v":"n.d."},{"$f":"IF('[1]MONE(M)CARD'!FV113=\"\",\"\",'[1]MONE(M)CARD'!FV113)","v":""},{"$f":"IF('[1]MONE(M)CARD'!GD113=\"\",\"\",'[1]MONE(M)CARD'!GD113)","v":"n.d."},{"$f":"IF('[1]MONE(M)CARD'!GE113=\"\",\"\",'[1]MONE(M)CARD'!GE113)","v":"n.d."},"n.d.","n.d.","n.d.","n.d.","n.d.","n.d.","n.d.","n.d.",null,"n.d.","n.d.","n.d.","n.d.","n.d.",{"$f":"IF('[1]MONE(M)CAPARD'!GS113=\"\",\"\",'[1]MONE(M)CAPARD'!GS113)","v":"n.d."},{"$f":"IF('[1]MONE(M)CARD'!HA113=\"\",\"\",'[1]MONE(M)CAPARD'!HA113)","v":"n.d."},{"$f":"IF('[1]MONE(M)CAPARD'!HB113=\"\",\"\",'[1]MONE(M)CAPARD'!HB113)","v":"n.d."},"n.d.","n.d.","n.d.","n.d.","n.d.","n.d.","n.d.","n.d.","n.d.","n.d.","n.d.","n.d.","n.d.","n.d.",{"$f":"IF('[1]MONE(M)CAPARD'!AS113=\"\",\"\",'[1]MONE(M)CAPARD'!AS113)","v":"n.d."},{"$f":"IF('[1]MONE(M)CAPARD'!AT113=\"\",\"\",'[1]MONE(M)CAPARD'!AT113)","v":"n.a."},{"$f":"IF('[1]MONE(M)CAPARD'!AU113=\"\",\"\",'[1]MONE(M)CAPARD'!AU113)","v":"n.d."},{"$f":"IF('[1]MONE(M)CAPARD'!AV113=\"\",\"\",'[1]MONE(M)CAPARD'!AV113)","v":"n.d."},{"$f":"IF('[1]MONE(M)CAPARD'!AW113=\"\",\"\",'[1]MONE(M)CAPARD'!AW113)","v":"n.a."},{"$f":"IF('[1]MONE(M)CAPARD'!AX113=\"\",\"\",'[1]MONE(M)CAPARD'!AX113)","v":"n.d."},{"$f":"IF('[1]MONE(M)CAPARD'!AY113=\"\",\"\",'[1]MONE(M)CAPARD'!AY113)","v":"n.a."},{"$f":"IF('[1]FISCAL(M)'!$K113=\"\",\"\",'[1]FISCAL(M)'!$K113)","v":"n.d."},{"$f":"IF('[1]FISCAL(M)'!$L113=\"\",\"\",'[1]FISCAL(M)'!$L113)","v":"n.d."},{"$f":"IF('[1]FISCAL(M)'!$AY113=\"\",\"\",'[1]FISCAL(M)'!$AY113)","v":"n.d."},{"$f":"IF('[1]FISCAL(M)'!$BI113=\"\",\"\",'[1]FISCAL(M)'!$BI113)","v":"n.d."},{"$f":"IF('[1]FISCAL(M)'!$BS113=\"\",\"\",'[1]FISCAL(M)'!$BS113)","v":"n.d."},{"$f":"IF('[1]FISCAL(M)'!$AZ113=\"\",\"\",'[1]FISCAL(M)'!$AZ113)","v":"n.d."},{"$f":"IF('[1]FISCAL(M)'!$BJ113=\"\",\"\",'[1]FISCAL(M)'!$BJ113)","v":"n.d."},{"$f":"IF('[1]FISCAL(M)'!$BT113=\"\",\"\",'[1]FISCAL(M)'!$BT113)","v":"n.d."},{"$f":"IF('[2]MONE(M)'!$AO113=\"\",\"\",'[2]MONE(M)'!$AO113)","v":"n.d."},{"$f":"IF('[3]MONE(M)'!$AO113=\"\",\"\",'[3]MONE(M)'!$AO113)","v":"n.d."},{"$f":"IF('[4]MONE(M)'!$AO113=\"\",\"\",'[4]MONE(M)'!$AO113)","v":"n.d."},{"$f":"+'[5]MONE(M)'!$AO113","v":"n.d."},{"$f":"IF('[6]MONE(M)'!$AO113=\"\",\"\",'[6]MONE(M)'!$AO113)","v":"n.d."},{"$f":"IF('[7]MONE(M)'!$AO113=\"\",\"\",'[7]MONE(M)'!$AO113)","v":"n.d."},{"$f":"IF('[8]MONE(M)'!$AO113=\"\",\"\",'[8]MONE(M)'!$AO113)","v":"n.d."},"n.d.","n.d.","n.d.","n.d.","n.d.","n.d.","n.d.",{"$f":"IF('[1]FISCAL(M)'!$K113=\"\",\"\",'[1]FISCAL(M)'!$K113)","v":"n.d."},"n.d.","n.d.",{"$f":"IF('[1]FISCAL(M)'!$L113=\"\",\"\",'[1]FISCAL(M)'!$L113)","v":"n.d."},"n.d.","n.d.","n.d.","n.d.","n.d.","n.d.","n.d.","n.d.","n.d.","n.d.","n.d.","n.d.","n.d.","n.d.","n.d.","n.d.","n.d.","n.d."]
[1998,"septiembre","1998-septiembre",{"$f":"IF('[1]REAL IPC(M)'!$AL114=\"\",\"\",+'[1]REAL IPC(M)'!$AL114)","v":6.2744421177204135},{"$f":"IF('[1]REAL IPC(M)'!$BE114=\"\",\"\",+'[1]REAL IPC(M)'!$BE114)","v":7.2394128971750238},{"$f":"IF('[1]REAL IPC(M)'!$AM114=\"\",\"\",+'[1]REAL IPC(M)'!$AM114)","v":5.7867711126559307},{"$f":"IF('[1]REAL IPC(M)'!$BI114=\"\",\"\",+'[1]REAL IPC(M)'!$BI114)","v":6.665674064340199},{"$f":"IF('[1]REAL IMAE(M)'!BJ114=\"\",\"\",'[1]REAL IMAE(M)'!BJ114)","v":"n.d."},{"$f":"IF('[1]REAL IMAE(M)'!BK114=\"\",\"\",'[1]REAL IMAE(M)'!BK114)","v":"n.d."},{"$f":"IF('[1]REAL IMAE(M)'!BN114=\"\",\"\",'[1]REAL IMAE(M)'!BN114)","v":"n.d."},{"$f":"IF('[1]REAL IMAE(M)'!BO114=\"\",\"\",'[1]REAL IMAE(M)'!BO114)","v":"n.d."},{"$f":"IF('[1]EXT RIN(M)'!$K114=\"\",\"\",'[1]EXT RIN(M)'!$K114)","v":"n.d."},"",{"$f":"IF('[1]EXT RIN(M)'!$L114=\"\",\"\",'[1]EXT RIN(M)'!$L114)","v":"n.d."},"",{"$f":"IF('[1]MONE(M)CARD'!EG114=\"\",\"\",'[1]MONE(M)CARD'!EG114)","v":"n.d."},{"$f":"IF('[1]MONE(M)CARD'!EK114=\"\",\"\",'[1]MONE(M)CARD'!EK114)","v":"n.d."},{"$f":"IF('[1]MONE(M)CARD'!EP114=\"\",\"\",'[1]MONE(M)CARD'!EP114)","v":"n.d."},{"$f":"IF('[1]MONE(M)CARD'!ES114=\"\",\"\",'[1]MONE(M)CARD'!ES114)","v":"n.d."},{"$f":"IF('[1]MONE(M)CARD'!EV114=\"\",\"\",'[1]MONE(M)CARD'!EV114)","v":"n.d."},{"$f":"IF('[1]MONE(M)CARD'!EZ114=\"\",\"\",'[1]MONE(M)CARD'!EZ114)","v":"n.d."},{"$f":"IF('[1]MONE(M)CAPARD'!FC114=\"\",\"\",'[1]MONE(M)CAPARD'!FC114)","v":"n.d."},{"$f":"IF('[1]MONE(M)CAPARD'!FG114=\"\",\"\",'[1]MONE(M)CAPARD'!FG114)","v":"n.d."},{"$f":"IF('[1]MONE(M)CAPARD'!FL114=\"\",\"\",'[1]MONE(M)CAPARD'!FL114)","v":"n.d."},{"$f":"IF('[1]MONE(M)CAPARD'!FO114=\"\",\"\",'[1]MONE(M)CAPARD'!FO114)","v":"n.d."},{"$f":"IF('[1]MONE(M)CAPARD'!FR114=\"\",\"\",'[1]MONE(M)CAPARD'!FR114)","v":"n.d."},{"$f":"IF('[1]MONE(M)CAPARD'!FV114=\"\",\"\",'[1]MONE(M)CAPARD'!FV114)","v":"n.d."},{"$f":"IF('[1]MONE(M)CARD'!FV114=\"\",\"\",'[1]MONE(M)CARD'!FV114)","v":""},{"$f":"IF('[1]MONE(M)CARD'!GD114=\"\",\"\",'[1]MONE(M)CARD'!GD114)","v":"n.d."},{"$f":"IF('[1]MONE(M)CARD'!GE114=\"\",\"\",'[1]MONE(M)CARD'!GE114)","v":"n.d."},"n.d.","n.d.","n.d.","n.d.","n.d.","n.d.","n.d.","n.d.",null,"n.d.","n.d.","n.d.","n.d.","n.d.",{"$f":"IF('[1]MONE(M)CAPARD'!GS114=\"\",\"\",'[1]MONE(M)CAPARD'!GS114)","v":"n.d."},{"$f":"IF('[1]MONE(M)CARD'!HA114=\"\",\"\",'[1]MONE(M)CAPARD'!HA114)","v":"n.d."},{"$f":"IF('[1]MONE(M)CAPARD'!HB114=\"\",\"\",'[1]MONE(M)CAPARD'!HB114)","v":"n.d."},"n.d.","n.d.","n.d.","n.d.","n.d.","n.d.","n.d.","n.d.","n.d.","n.d.","n.d.","n.d.","n.d.","n.d.",{"$f":"IF('[1]MONE(M)CAPARD'!AS114=\"\",\"\",'[1]MONE(M)CAPARD'!AS114)","v":"n.d."},{"$f":"IF('[1]MONE(M)CAPARD'!AT114=\"\",\"\",'[1]MONE(M)CAPARD'!AT114)","v":"n.a."},{"$f":"IF('[1]MONE(M)CAPARD'!AU114=\"\",\"\",'[1]MONE(M)CAPARD'!AU114)","v":"n.d."},{"$f":"IF('[1]MONE(M)CAPARD'!AV114=\"\",\"\",'[1]MONE(M)CAPARD'!AV114)","v":"n.d."},{"$f":"IF('[1]MONE(M)CAPARD'!AW114=\"\",\"\",'[1]MONE(M)CAPARD'!AW114)","v":"n.a."},{"$f":"IF('[1]MONE(M)CAPARD'!AX114=\"\",\"\",'[1]MONE(M)CAPARD'!AX114)","v":"n.d."},{"$f":"IF('[1]MONE(M)CAPARD'!AY114=\"\",\"\",'[1]MONE(M)CAPARD'!AY114)","v":"n.a."},{"$f":"IF('[1]FISCAL(M)'!$K114=\"\",\"\",'[1]FISCAL(M)'!$K114)","v":"n.d."},{"$f":"IF('[1]FISCAL(M)'!$L114=\"\",\"\",'[1]FISCAL(M)'!$L114)","v":"n.d."},{"$f":"IF('[1]FISCAL(M)'!$AY114=\"\",\"\",'[1]FISCAL(M)'!$AY114)","v":"n.d."},{"$f":"IF('[1]FISCAL(M)'!$BI114=\"\",\"\",'[1]FISCAL(M)'!$BI114)","v":"n.d."},{"$f":"IF('[1]FISCAL(M)'!$BS114=\"\",\"\",'[1]FISCAL(M)'!$BS114)","v":"n.d."},{"$f":"IF('[1]FISCAL(M)'!$AZ114=\"\",\"\",'[1]FISCAL(M)'!$AZ114)","v":"n.d."},{"$f":"IF('[1]FISCAL(M)'!$BJ114=\"\",\"\",'[1]FISCAL(M)'!$BJ114)","v":"n.d."},{"$f":"IF('[1]FISCAL(M)'!$BT114=\"\",\"\",'[1]FISCAL(M)'!$BT114)","v":"n.d."},{"$f":"IF('[2]MONE(M)'!$AO114=\"\",\"\",'[2]MONE(M)'!$AO114)","v":"n.d."},{"$f":"IF('[3]MONE(M)'!$AO114=\"\",\"\",'[3]MONE(M)'!$AO114)","v":"n.d."},{"$f":"IF('[4]MONE(M)'!$AO114=\"\",\"\",'[4]MONE(M)'!$AO114)","v":"n.d."},{"$f":"+'[5]MONE(M)'!$AO114","v":"n.d."},{"$f":"IF('[6]MONE(M)'!$AO114=\"\",\"\",'[6]MONE(M)'!$AO114)","v":"n.d."},{"$f":"IF('[7]MONE(M)'!$AO114=\"\",\"\",'[7]MONE(M)'!$AO114)","v":"n.d."},{"$f":"IF('[8]MONE(M)'!$AO114=\"\",\"\",'[8]MONE(M)'!$AO114)","v":"n.d."},"n.d.","n.d.","n.d.","n.d.","n.d.","n.d.","n.d.",{"$f":"IF('[1]FISCAL(M)'!$K114=\"\",\"\",'[1]FISCAL(M)'!$K114)","v":"n.d."},"n.d.","n.d.",{"$f":"IF('[1]FISCAL(M)'!$L114=\"\",\"\",'[1]FISCAL(M)'!$L114)","v":"n.d."},"n.d.","n.d.","n.d.","n.d.","n.d.","n.d.","n.d.","n.d.","n.d.","n.d.","n.d.","n.d.","n.d.","n.d.","n.d.","n.d.","n.d.","n.d."]
[1998,"octubre","1998-octubre",{"$f":"IF('[1]REAL IPC(M)'!$AL115=\"\",\"\",+'[1]REAL IPC(M)'!$AL115)","v":6.8744920650266161},{"$f":"IF('[1]REAL IPC(M)'!$BE115=\"\",\"\",+'[1]REAL IPC(M)'!$BE115)","v":7.1595033715531109},{"$f":"IF('[1]REAL IPC(M)'!$AM115=\"\",\"\",+'[1]REAL IPC(M)'!$AM115)","v":6.3903424848368306},{"$f":"IF('[1]REAL IPC(M)'!$BI115=\"\",\"\",+'[1]REAL IPC(M)'!$BI115)","v":6.5912627501276688},{"$f":"IF('[1]REAL IMAE(M)'!BJ115=\"\",\"\",'[1]REAL IMAE(M)'!BJ115)","v":"n.d."},{"$f":"IF('[1]REAL IMAE(M)'!BK115=\"\",\"\",'[1]REAL IMAE(M)'!BK115)","v":"n.d."},{"$f":"IF('[1]REAL IMAE(M)'!BN115=\"\",\"\",'[1]REAL IMAE(M)'!BN115)","v":"n.d."},{"$f":"IF('[1]REAL IMAE(M)'!BO115=\"\",\"\",'[1]REAL IMAE(M)'!BO115)","v":"n.d."},{"$f":"IF('[1]EXT RIN(M)'!$K115=\"\",\"\",'[1]EXT RIN(M)'!$K115)","v":"n.d."},"",{"$f":"IF('[1]EXT RIN(M)'!$L115=\"\",\"\",'[1]EXT RIN(M)'!$L115)","v":"n.d."},"",{"$f":"IF('[1]MONE(M)CARD'!EG115=\"\",\"\",'[1]MONE(M)CARD'!EG115)","v":"n.d."},{"$f":"IF('[1]MONE(M)CARD'!EK115=\"\",\"\",'[1]MONE(M)CARD'!EK115)","v":"n.d."},{"$f":"IF('[1]MONE(M)CARD'!EP115=\"\",\"\",'[1]MONE(M)CARD'!EP115)","v":"n.d."},{"$f":"IF('[1]MONE(M)CARD'!ES115=\"\",\"\",'[1]MONE(M)CARD'!ES115)","v":"n.d."},{"$f":"IF('[1]MONE(M)CARD'!EV115=\"\",\"\",'[1]MONE(M)CARD'!EV115)","v":"n.d."},{"$f":"IF('[1]MONE(M)CARD'!EZ115=\"\",\"\",'[1]MONE(M)CARD'!EZ115)","v":"n.d."},{"$f":"IF('[1]MONE(M)CAPARD'!FC115=\"\",\"\",'[1]MONE(M)CAPARD'!FC115)","v":"n.d."},{"$f":"IF('[1]MONE(M)CAPARD'!FG115=\"\",\"\",'[1]MONE(M)CAPARD'!FG115)","v":"n.d."},{"$f":"IF('[1]MONE(M)CAPARD'!FL115=\"\",\"\",'[1]MONE(M)CAPARD'!FL115)","v":"n.d."},{"$f":"IF('[1]MONE(M)CAPARD'!FO115=\"\",\"\",'[1]MONE(M)CAPARD'!FO115)","v":"n.d."},{"$f":"IF('[1]MONE(M)CAPARD'!FR115=\"\",\"\",'[1]MONE(M)CAPARD'!FR115)","v":"n.d."},{"$f":"IF('[1]MONE(M)CAPARD'!FV115=\"\",\"\",'[1]MONE(M)CAPARD'!FV115)","v":"n.d."},{"$f":"IF('[1]MONE(M)CARD'!FV115=\"\",\"\",'[1]MONE(M)CARD'!FV115)","v":""},{"$f":"IF('[1]MONE(M)CARD'!GD115=\"\",\"\",'[1]MONE(M)CARD'!GD115)","v":"n.d."},{"$f":"IF('[1]MONE(M)CARD'!GE115=\"\",\"\",'[1]MONE(M)CARD'!GE115)","v":"n.d."},"n.d.","n.d.","n.d.","n.d.","n.d.","n.d.","n.d.","n.d.",null,"n.d.","n.d.","n.d.","n.d.","n.d.",{"$f":"IF('[1]MONE(M)CAPARD'!GS115=\"\",\"\",'[1]MONE(M)CAPARD'!GS115)","v":"n.d."},{"$f":"IF('[1]MONE(M)CARD'!HA115=\"\",\"\",'[1]MONE(M)CAPARD'!HA115)","v":"n.d."},{"$f":"IF('[1]MONE(M)CAPARD'!HB115=\"\",\"\",'[1]MONE(M)CAPARD'!HB115)","v":"n.d."},"n.d.","n.d.","n.d.","n.d.","n.d.","n.d.","n.d.","n.d.","n.d.","n.d.","n.d.","n.d.","n.d.","n.d.",{"$f":"IF('[1]MONE(M)CAPARD'!AS115=\"\",\"\",'[1]MONE(M)CAPARD'!AS115)","v":"n.d."},{"$f":"IF('[1]MONE(M)CAPARD'!AT115=\"\",\"\",'[1]MONE(M)CAPARD'!AT115)","v":"n.a."},{"$f":"IF('[1]MONE(M)CAPARD'!AU115=\"\",\"\",'[1]MONE(M)CAPARD'!AU115)","v":"n.d."},{"$f":"IF('[1]MONE(M)CAPARD'!AV115=\"\",\"\",'[1]MONE(M)CAPARD'!AV115)","v":"n.d."},{"$f":"IF('[1]MONE(M)CAPARD'!AW115=\"\",\"\",'[1]MONE(M)CAPARD'!AW115)","v":"n.a."},{"$f":"IF('[1]MONE(M)CAPARD'!AX115=\"\",\"\",'[1]MONE(M)CAPARD'!AX115)","v":"n.d."},{"$f":"IF('[1]MONE(M)CAPARD'!AY115=\"\",\"\",'[1]MONE(M)CAPARD'!AY115)","v":"n.a."},{"$f":"IF('[1]FISCAL(M)'!$K115=\"\",\"\",'[1]FISCAL(M)'!$K115)","v":"n.d."},{"$f":"IF('[1]FISCAL(M)'!$L115=\"\",\"\",'[1]FISCAL(M)'!$L115)","v":"n.d."},{"$f":"IF('[1]FISCAL(M)'!$AY115=\"\",\"\",'[1]FISCAL(M)'!$AY115)","v":"n.d."},{"$f":"IF('[1]FISCAL(M)'!$BI115=\"\",\"\",'[1]FISCAL(M)'!$BI115)","v":"n.d."},{"$f":"IF('[1]FISCAL(M)'!$BS115=\"\",\"\",'[1]FISCAL(M)'!$BS115)","v":"n.d."},{"$f":"IF('[1]FISCAL(M)'!$AZ115=\"\",\"\",'[1]FISCAL(M)'!$AZ115)","v":"n.d."},{"$f":"IF('[1]FISCAL(M)'!$BJ115=\"\",\"\",'[1]FISCAL(M)'!$BJ115)","v":"n.d."},{"$f":"IF('[1]FISCAL(M)'!$BT115=\"\",\"\",'[1]FISCAL(M)'!$BT115)","v":"n.d."},{"$f":"IF('[2]MONE(M)'!$AO115=\"\",\"\",'[2]MONE(M)'!$AO115)","v":"n.d."},{"$f":"IF('[3]MONE(M)'!$AO115=\"\",\"\",'[3]MONE(M)'!$AO115)","v":"n.d."},{"$f":"IF('[4]MONE(M)'!$AO115=\"\",\"\",'[4]MONE(M)'!$AO115)","v":"n.d."},{"$f":"+'[5]MONE(M)'!$AO115","v":"n.d."},{"$f":"IF('[6]MONE(M)'!$AO115=\"\",\"\",'[6]MONE(M)'!$AO115)","v":"n.d."},{"$f":"IF('[7]MONE(M)'!$AO115=\"\",\"\",'[7]MONE(M)'!$AO115)","v":"n.d."},{"$f":"IF('[8]MONE(M)'!$AO115=\"\",\"\",'[8]MONE(M)'!$AO115)","v":"n.d."},"n.d.","n.d.","n.d.","n.d.","n.d.","n.d.","n.d.",{"$f":"IF('[1]FISCAL(M)'!$K115=\"\",\"\",'[1]FISCAL(M)'!$K115)","v":"n.d."},"n.d.","n.d.",{"$f":"IF('[1]FISCAL(M)'!$L115=\"\",\"\",'[1]FISCAL(M)'!$L115)","v":"n.d."},"n.d.","n.d.","n.d.","n.d.","n.d.","n.d.","n.d.","n.d.","n.d.","n.d.","n.d.","n.d.","n.d.","n.d.","n.d.","n.d.","n.d.","n.d."]
[1998,"noviembre","1998-noviembre",{"$f":"IF('[1]REAL IPC(M)'!$AL116=\"\",\"\",+'[1]REAL IPC(M)'!$AL116)","v":8.6264222583834371},{"$f":"IF('[1]REAL IPC(M)'!$BE116=\"\",\"\",+'[1]REAL IPC(M)'!$BE116)","v":7.0859097249005965},{"$f":"IF('[1]REAL IPC(M)'!$AM116=\"\",\"\",+'[1]REAL IPC(M)'!$AM116)","v":7.994052170723065},{"$f":"IF('[1]REAL IPC(M)'!$BI116=\"\",\"\",+'[1]REAL IPC(M)'!$BI116)","v":6.5227633565251963},{"$f":"IF('[1]REAL IMAE(M)'!BJ116=\"\",\"\",'[1]REAL IMAE(M)'!BJ116)","v":"n.d."},{"$f":"IF('[1]REAL IMAE(M)'!BK116=\"\",\"\",'[1]REAL IMAE(M)'!BK116)","v":"n.d."},{"$f":"IF('[1]REAL IMAE(M)'!BN116=\"\",\"\",'[1]REAL IMAE(M)'!BN116)","v":"n.d."},{"$f":"IF('[1]REAL IMAE(M)'!BO116=\"\",\"\",'[1]REAL IMAE(M)'!BO116)","v":"n.d."},{"$f":"IF('[1]EXT RIN(M)'!$K116=\"\",\"\",'[1]EXT RIN(M)'!$K116)","v":"n.d."},"",{"$f":"IF('[1]EXT RIN(M)'!$L116=\"\",\"\",'[1]EXT RIN(M)'!$L116)","v":"n.d."},"",{"$f":"IF('[1]MONE(M)CARD'!EG116=\"\",\"\",'[1]MONE(M)CARD'!EG116)","v":"n.d."},{"$f":"IF('[1]MONE(M)CARD'!EK116=\"\",\"\",'[1]MONE(M)CARD'!EK116)","v":"n.d."},{"$f":"IF('[1]MONE(M)CARD'!EP116=\"\",\"\",'[1]MONE(M)CARD'!EP116)","v":"n.d."},{"$f":"IF('[1]MONE(M)CARD'!ES116=\"\",\"\",'[1]MONE(M)CARD'!ES116)","v":"n.d."},{"$f":"IF('[1]MONE(M)CARD'!EV116=\"\",\"\",'[1]MONE(M)CARD'!EV116)","v":"n.d."},{"$f":"IF('[1]MONE(M)CARD'!EZ116=\"\",\"\",'[1]MONE(M)CARD'!EZ116)","v":"n.d."},{"$f":"IF('[1]MONE(M)CAPARD'!FC116=\"\",\"\",'[1]MONE(M)CAPARD'!FC116)","v":"n.d."},{"$f":"IF('[1]MONE(M)CAPARD'!FG116=\"\",\"\",'[1]MONE(M)CAPARD'!FG116)","v":"n.d."},{"$f":"IF('[1]MONE(M)CAPARD'!FL116=\"\",\"\",'[1]MONE(M)CAPARD'!FL116)","v":"n.d."},{"$f":"IF('[1]MONE(M)CAPARD'!FO116=\"\",\"\",'[1]MONE(M)CAPARD'!FO116)","v":"n.d."},{"$f":"IF('[1]MONE(M)CAPARD'!FR116=\"\",\"\",'[1]MONE(M)CAPARD'!FR116)","v":"n.d."},{"$f":"IF('[1]MONE(M)CAPARD'!FV116=\"\",\"\",'[1]MONE(M)CAPARD'!FV116)","v":"n.d."},{"$f":"IF('[1]MONE(M)CARD'!FV116=\"\",\"\",'[1]MONE(M)CARD'!FV116)","v":""},{"$f":"IF('[1]MONE(M)CARD'!GD116=\"\",\"\",'[1]MONE(M)CARD'!GD116)","v":"n.d."},{"$f":"IF('[1]MONE(M)CARD'!GE116=\"\",\"\",'[1]MONE(M)CARD'!GE116)","v":"n.d."},"n.d.","n.d.","n.d.","n.d.","n.d.","n.d.","n.d.","n.d.",null,"n.d.","n.d.","n.d.","n.d.","n.d.",{"$f":"IF('[1]MONE(M)CAPARD'!GS116=\"\",\"\",'[1]MONE(M)CAPARD'!GS116)","v":"n.d."},{"$f":"IF('[1]MONE(M)CARD'!HA116=\"\",\"\",'[1]MONE(M)CAPARD'!HA116)","v":"n.d."},{"$f":"IF('[1]MONE(M)CAPARD'!HB116=\"\",\"\",'[1]MONE(M)CAPARD'!HB116)","v":"n.d."},"n.d.","n.d.","n.d.","n.d.","n.d.","n.d.","n.d.","n.d.","n.d.","n.d.","n.d.","n.d.","n.d.","n.d.",{"$f":"IF('[1]MONE(M)CAPARD'!AS116=\"\",\"\",'[1]MONE(M)CAPARD'!AS116)","v":"n.d."},{"$f":"IF('[1]MONE(M)CAPARD'!AT116=\"\",\"\",'[1]MONE(M)CAPARD'!AT116)","v":"n.a."},{"$f":"IF('[1]MONE(M)CAPARD'!AU116=\"\",\"\",'[1]MONE(M)CAPARD'!AU116)","v":"n.d."},{"$f":"IF('[1]MONE(M)CAPARD'!AV116=\"\",\"\",'[1]MONE(M)CAPARD'!AV116)","v":"n.d."},{"$f":"IF('[1]MONE(M)CAPARD'!AW116=\"\",\"\",'[1]MONE(M)CAPARD'!AW116)","v":"n.a."},{"$f":"IF('[1]MONE(M)CAPARD'!AX116=\"\",\"\",'[1]MONE(M)CAPARD'!AX116)","v":"n.d."},{"$f":"IF('[1]MONE(M)CAPARD'!AY116=\"\",\"\",'[1]MONE(M)CAPARD'!AY116)","v":"n.a."},{"$f":"IF('[1]FISCAL(M)'!$K116=\"\",\"\",'[1]FISCAL(M)'!$K116)","v":"n.d."},{"$f":"IF('[1]FISCAL(M)'!$L116=\"\",\"\",'[1]FISCAL(M)'!$L116)","v":"n.d."},{"$f":"IF('[1]FISCAL(M)'!$AY116=\"\",\"\",'[1]FISCAL(M)'!$AY116)","v":"n.d."},{"$f":"IF('[1]FISCAL(M)'!$BI116=\"\",\"\",'[1]FISCAL(M)'!$BI116)","v":"n.d."},{"$f":"IF('[1]FISCAL(M)'!$BS116=\"\",\"\",'[1]FISCAL(M)'!$BS116)","v":"n.d."},{"$f":"IF('[1]FISCAL(M)'!$AZ116=\"\",\"\",'[1]FISCAL(M)'!$AZ116)","v":"n.d."},{"$f":"IF('[1]FISCAL(M)'!$BJ116=\"\",\"\",'[1]FISCAL(M)'!$BJ116)","v":"n.d."},{"$f":"IF('[1]FISCAL(M)'!$BT116=\"\",\"\",'[1]FISCAL(M)'!$BT116)","v":"n.d."},{"$f":"IF('[2]MONE(M)'!$AO116=\"\",\"\",'[2]MONE(M)'!$AO116)","v":"n.d."},{"$f":"IF('[3]MONE(M)'!$AO116=\"\",\"\",'[3]MONE(M)'!$AO116)","v":"n.d."},{"$f":"IF('[4]MONE(M)'!$AO116=\"\",\"\",'[4]MONE(M)'!$AO116)","v":"n.d."},{"$f":"+'[5]MONE(M)'!$AO116","v":"n.d."},{"$f":"IF('[6]MONE(M)'!$AO116=\"\",\"\",'[6]MONE(M)'!$AO116)","v":"n.d."},{"$f":"IF('[7]MONE(M)'!$AO116=\"\",\"\",'[7]MONE(M)'!$AO116)","v":"n.d."},{"$f":"IF('[8]MONE(M)'!$AO116=\"\",\"\",'[8]MONE(M)'!$AO116)","v":"n.d."},"n.d.","n.d.","n.d.","n.d.","n.d.","n.d.","n.d.",{"$f":"IF('[1]FISCAL(M)'!$K116=\"\",\"\",'[1]FISCAL(M)'!$K116)","v":"n.d."},"n.d.","n.d.",{"$f":"IF('[1]FISCAL(M)'!$L116=\"\",\"\",'[1]FISCAL(M)'!$L116)","v":"n.d."},"n.d.","n.d.","n.d.","n.d.","n.d.","n.d.","n.d.","n.d.","n.d.","n.d.","n.d.","n.d.","n.d.","n.d.","n.d.","n.d.","n.d.","n.d."]
[1998,"diciembre","1998-diciembre",{"$f":"IF('[1]REAL IPC(M)'!$AL117=\"\",\"\",+'[1]REAL IPC(M)'!$AL117)","v":9.0268806953574199},{"$f":"IF('[1]REAL IPC(M)'!$BE117=\"\",\"\",+'[1]REAL IPC(M)'!$BE117)","v":7.0185554465600264},{"$f":"IF('[1]REAL IPC(M)'!$AM117=\"\",\"\",+'[1]REAL IPC(M)'!$AM117)","v":8.342399434581683},{"$f":"IF('[1]REAL IPC(M)'!$BI117=\"\",\"\",+'[1]REAL IPC(M)'!$BI117)","v":6.4600719430347731},{"$f":"IF('[1]REAL IMAE(M)'!BJ117=\"\",\"\",'[1]REAL IMAE(M)'!BJ117)","v":"n.d."},{"$f":"IF('[1]REAL IMAE(M)'!BK117=\"\",\"\",'[1]REAL IMAE(M)'!BK117)","v":"n.d."},{"$f":"IF('[1]REAL IMAE(M)'!BN117=\"\",\"\",'[1]REAL IMAE(M)'!BN117)","v":"n.d."},{"$f":"IF('[1]REAL IMAE(M)'!BO117=\"\",\"\",'[1]REAL IMAE(M)'!BO117)","v":"n.d."},{"$f":"IF('[1]EXT RIN(M)'!$K117=\"\",\"\",'[1]EXT RIN(M)'!$K117)","v":"n.d."},"n.d.",{"$f":"IF('[1]EXT RIN(M)'!$L117=\"\",\"\",'[1]EXT RIN(M)'!$L117)","v":"n.d."},"n.d.",{"$f":"IF('[1]MONE(M)CARD'!EG117=\"\",\"\",'[1]MONE(M)CARD'!EG117)","v":"n.d."},{"$f":"IF('[1]MONE(M)CARD'!EK117=\"\",\"\",'[1]MONE(M)CARD'!EK117)","v":"n.d."},{"$f":"IF('[1]MONE(M)CARD'!EP117=\"\",\"\",'[1]MONE(M)CARD'!EP117)","v":"n.d."},{"$f":"IF('[1]MONE(M)CARD'!ES117=\"\",\"\",'[1]MONE(M)CARD'!ES117)","v":"n.d."},{"$f":"IF('[1]MONE(M)CARD'!EV117=\"\",\"\",'[1]MONE(M)CARD'!EV117)","v":"n.d."},{"$f":"IF('[1]MONE(M)CARD'!EZ117=\"\",\"\",'[1]MONE(M)CARD'!EZ117)","v":"n.d."},{"$f":"IF('[1]MONE(M)CAPARD'!FC117=\"\",\"\",'[1]MONE(M)CAPARD'!FC117)","v":"n.d."},{"$f":"IF('[1]MONE(M)CAPARD'!FG117=\"\",\"\",'[1]MONE(M)CAPARD'!FG117)","v":"n.d."},{"$f":"IF('[1]MONE(M)CAPARD'!FL117=\"\",\"\",'[1]MONE(M)CAPARD'!FL117)","v":"n.d."},{"$f":"IF('[1]MONE(M)CAPARD'!FO117=\"\",\"\",'[1]MONE(M)CAPARD'!FO117)","v":"n.d."},{"$f":"IF('[1]MONE(M)CAPARD'!FR117=\"\",\"\",'[1]MONE(M)CAPARD'!FR117)","v":"n.d."},{"$f":"IF('[1]MONE(M)CAPARD'!FV117=\"\",\"\",'[1]MONE(M)CAPARD'!FV117)","v":"n.d."},{"$f":"IF('[1]MONE(M)CARD'!FV117=\"\",\"\",'[1]MONE(M)CARD'!FV117)","v":""},{"$f":"IF('[1]MONE(M)CARD'!GD117=\"\",\"\",'[1]MONE(M)CARD'!GD117)","v":"n.d."},{"$f":"IF('[1]MONE(M)CARD'!GE117=\"\",\"\",'[1]MONE(M)CARD'!GE117)","v":"n.d."},"n.d.","n.d.","n.d.","n.d.","n.d.","n.d.","n.d.","n.d.",null,"n.d.","n.d.","n.d.","n.d.","n.d.",{"$f":"IF('[1]MONE(M)CAPARD'!GS117=\"\",\"\",'[1]MONE(M)CAPARD'!GS117)","v":"n.d."},{"$f":"IF('[1]MONE(M)CARD'!HA117=\"\",\"\",'[1]MONE(M)CAPARD'!HA117)","v":"n.d."},{"$f":"IF('[1]MONE(M)CAPARD'!HB117=\"\",\"\",'[1]MONE(M)CAPARD'!HB117)","v":"n.d."},"n.d.","n.d.","n.d.","n.d.","n.d.","n.d.","n.d.","n.d.","n.d.","n.d.","n.d.","n.d.","n.d.","n.d.",{"$f":"IF('[1]MONE(M)CAPARD'!AS117=\"\",\"\",'[1]MONE(M)CAPARD'!AS117)","v":"n.d."},{"$f":"IF('[1]MONE(M)CAPARD'!AT117=\"\",\"\",'[1]MONE(M)CAPARD'!AT117)","v":"n.a."},{"$f":"IF('[1]MONE(M)CAPARD'!AU117=\"\",\"\",'[1]MONE(M)CAPARD'!AU117)","v":"n.d."},{"$f":"IF('[1]MONE(M)CAPARD'!AV117=\"\",\"\",'[1]MONE(M)CAPARD'!AV117)","v":"n.d."},{"$f":"IF('[1]MONE(M)CAPARD'!AW117=\"\",\"\",'[1]MONE(M)CAPARD'!AW117)","v":"n.a."},{"$f":"IF('[1]MONE(M)CAPARD'!AX117=\"\",\"\",'[1]MONE(M)CAPARD'!AX117)","v":"n.d."},{"$f":"IF('[1]MONE(M)CAPARD'!AY117=\"\",\"\",'[1]MONE(M)CAPARD'!AY117)","v":"n.a."},{"$f":"IF('[1]FISCAL(M)'!$K117=\"\",\"\",'[1]FISCAL(M)'!$K117)","v":"n.d."},{"$f":"IF('[1]FISCAL(M)'!$L117=\"\",\"\",'[1]FISCAL(M)'!$L117)","v":"n.d."},{"$f":"IF('[1]FISCAL(M)'!$AY117=\"\",\"\",'[1]FISCAL(M)'!$AY117)","v":"n.d."},{"$f":"IF('[1]FISCAL(M)'!$BI117=\"\",\"\",'[1]FISCAL(M)'!$BI117)","v":"n.d."},{"$f":"IF('[1]FISCAL(M)'!$BS117=\"\",\"\",'[1]FISCAL(M)'!$BS117)","v":"n.d."},{"$f":"IF('[1]FISCAL(M)'!$AZ117=\"\",\"\",'[1]FISCAL(M)'!$AZ117)","v":"n.d."},{"$f":"IF('[1]FISCAL(M)'!$BJ117=\"\",\"\",'[1]FISCAL(M)'!$BJ117)","v":"n.d."},{"$f":"IF('[1]FISCAL(M)'!$BT117=\"\",\"\",'[1]FISCAL(M)'!$BT117)","v":"n.d."},{"$f":"IF('[2]MONE(M)'!$AO117=\"\",\"\",'[2]MONE(M)'!$AO117)","v":"n.d."},{"$f":"IF('[3]MONE(M)'!$AO117=\"\",\"\",'[3]MONE(M)'!$AO117)","v":"n.d."},{"$f":"IF('[4]MONE(M)'!$AO117=\"\",\"\",'[4]MONE(M)'!$AO117)","v":"n.d."},{"$f":"+'[5]MONE(M)'!$AO117","v":"n.d."},{"$f":"IF('[6]MONE(M)'!$AO117=\"\",\"\",'[6]MONE(M)'!$AO117)","v":"n.d."},{"$f":"IF('[7]MONE(M)'!$AO117=\"\",\"\",'[7]MONE(M)'!$AO117)","v":"n.d."},{"$f":"IF('[8]MONE(M)'!$AO117=\"\",\"\",'[8]MONE(M)'!$AO117)","v":"n.d."},"n.d.","n.d.","n.d.","n.d.","n.d.","n.d.","n.d.",{"$f":"IF('[1]FISCAL(M)'!$K117=\"\",\"\",'[1]FISCAL(M)'!$K117)","v":"n.d."},"n.d.","n.d.",{"$f":"IF('[1]FISCAL(M)'!$L117=\"\",\"\",'[1]FISCAL(M)'!$L117)","v":"n.d."},"n.d.","n.d.","n.d.","n.d.","n.d.","n.d.","n.d.","n.d.","n.d.","n.d.","n.d.","n.d.","n.d.","n.d.","n.d.","n.d.","n.d.","n.d."]
[1999,"enero","1999-enero",{"$f":"IF('[1]REAL IPC(M)'!$AL118=\"\",\"\",+'[1]REAL IPC(M)'!$AL118)","v":8.36299486182841},{"$f":"IF('[1]REAL IPC(M)'!$BE118=\"\",\"\",+'[1]REAL IPC(M)'!$BE118)","v":6.9573890140673056},{"$f":"IF('[1]REAL IPC(M)'!$AM118=\"\",\"\",+'[1]REAL IPC(M)'!$AM118)","v":7.6403044719934421},{"$f":"IF('[1]REAL IPC(M)'!$BI118=\"\",\"\",+'[1]REAL IPC(M)'!$BI118)","v":6.4031150300360995},{"$f":"IF('[1]REAL IMAE(M)'!BJ118=\"\",\"\",'[1]REAL IMAE(M)'!BJ118)","v":"n.d."},{"$f":"IF('[1]REAL IMAE(M)'!BK118=\"\",\"\",'[1]REAL IMAE(M)'!BK118)","v":"n.d."},{"$f":"IF('[1]REAL IMAE(M)'!BN118=\"\",\"\",'[1]REAL IMAE(M)'!BN118)","v":"n.d."},{"$f":"IF('[1]REAL IMAE(M)'!BO118=\"\",\"\",'[1]REAL IMAE(M)'!BO118)","v":"n.d."},{"$f":"IF('[1]EXT RIN(M)'!$K118=\"\",\"\",'[1]EXT RIN(M)'!$K118)","v":"n.d."},"",{"$f":"IF('[1]EXT RIN(M)'!$L118=\"\",\"\",'[1]EXT RIN(M)'!$L118)","v":"n.d."},"",{"$f":"IF('[1]MONE(M)CARD'!EG118=\"\",\"\",'[1]MONE(M)CARD'!EG118)","v":"n.d."},{"$f":"IF('[1]MONE(M)CARD'!EK118=\"\",\"\",'[1]MONE(M)CARD'!EK118)","v":"n.d."},{"$f":"IF('[1]MONE(M)CARD'!EP118=\"\",\"\",'[1]MONE(M)CARD'!EP118)","v":"n.d."},{"$f":"IF('[1]MONE(M)CARD'!ES118=\"\",\"\",'[1]MONE(M)CARD'!ES118)","v":"n.d."},{"$f":"IF('[1]MONE(M)CARD'!EV118=\"\",\"\",'[1]MONE(M)CARD'!EV118)","v":"n.d."},{"$f":"IF('[1]MONE(M)CARD'!EZ118=\"\",\"\",'[1]MONE(M)CARD'!EZ118)","v":"n.d."},{"$f":"IF('[1]MONE(M)CAPARD'!FC118=\"\",\"\",'[1]MONE(M)CAPARD'!FC118)","v":"n.d."},{"$f":"IF('[1]MONE(M)CAPARD'!FG118=\"\",\"\",'[1]MONE(M)CAPARD'!FG118)","v":"n.d."},{"$f":"IF('[1]MONE(M)CAPARD'!FL118=\"\",\"\",'[1]MONE(M)CAPARD'!FL118)","v":"n.d."},{"$f":"IF('[1]MONE(M)CAPARD'!FO118=\"\",\"\",'[1]MONE(M)CAPARD'!FO118)","v":"n.d."},{"$f":"IF('[1]MONE(M)CAPARD'!FR118=\"\",\"\",'[1]MONE(M)CAPARD'!FR118)","v":"n.d."},{"$f":"IF('[1]MONE(M)CAPARD'!FV118=\"\",\"\",'[1]MONE(M)CAPARD'!FV118)","v":"n.d."},{"$f":"IF('[1]MONE(M)CARD'!FV118=\"\",\"\",'[1]MONE(M)CARD'!FV118)","v":""},{"$f":"IF('[1]MONE(M)CARD'!GD118=\"\",\"\",'[1]MONE(M)CARD'!GD118)","v":"n.d."},{"$f":"IF('[1]MONE(M)CARD'!GE118=\"\",\"\",'[1]MONE(M)CARD'!GE118)","v":"n.d."},"n.d.","n.d.","n.d.","n.d.","n.d.","n.d.","n.d.","n.d.",null,"n.d.","n.d.","n.d.","n.d.","n.d.",{"$f":"IF('[1]MONE(M)CAPARD'!GS118=\"\",\"\",'[1]MONE(M)CAPARD'!GS118)","v":"n.d."},{"$f":"IF('[1]MONE(M)CARD'!HA118=\"\",\"\",'[1]MONE(M)CAPARD'!HA118)","v":"n.d."},{"$f":"IF('[1]MONE(M)CAPARD'!HB118=\"\",\"\",'[1]MONE(M)CAPARD'!HB118)","v":"n.d."},"n.d.","n.d.","n.d.","n.d.","n.d.","n.d.","n.d.","n.d.","n.d.","n.d.","n.d.","n.d.","n.d.","n.d.",{"$f":"IF('[1]MONE(M)CAPARD'!AS118=\"\",\"\",'[1]MONE(M)CAPARD'!AS118)","v":"n.d."},{"$f":"IF('[1]MONE(M)CAPARD'!AT118=\"\",\"\",'[1]MONE(M)CAPARD'!AT118)","v":"n.a."},{"$f":"IF('[1]MONE(M)CAPARD'!AU118=\"\",\"\",'[1]MONE(M)CAPARD'!AU118)","v":"n.d."},{"$f":"IF('[1]MONE(M)CAPARD'!AV118=\"\",\"\",'[1]MONE(M)CAPARD'!AV118)","v":"n.d."},{"$f":"IF('[1]MONE(M)CAPARD'!AW118=\"\",\"\",'[1]MONE(M)CAPARD'!AW118)","v":"n.a."},{"$f":"IF('[1]MONE(M)CAPARD'!AX118=\"\",\"\",'[1]MONE(M)CAPARD'!AX118)","v":"n.d."},{"$f":"IF('[1]MONE(M)CAPARD'!AY118=\"\",\"\",'[1]MONE(M)CAPARD'!AY118)","v":"n.a."},{"$f":"IF('[1]FISCAL(M)'!$K118=\"\",\"\",'[1]FISCAL(M)'!$K118)","v":"n.d."},{"$f":"IF('[1]FISCAL(M)'!$L118=\"\",\"\",'[1]FISCAL(M)'!$L118)","v":"n.d."},{"$f":"IF('[1]FISCAL(M)'!$AY118=\"\",\"\",'[1]FISCAL(M)'!$AY118)","v":"n.d."},{"$f":"IF('[1]FISCAL(M)'!$BI118=\"\",\"\",'[1]FISCAL(M)'!$BI118)","v":"n.d."},{"$f":"IF('[1]FISCAL(M)'!$BS118=\"\",\"\",'[1]FISCAL(M)'!$BS118)","v":"n.d."},{"$f":"IF('[1]FISCAL(M)'!$AZ118=\"\",\"\",'[1]FISCAL(M)'!$AZ118)","v":"n.d."},{"$f":"IF('[1]FISCAL(M)'!$BJ118=\"\",\"\",'[1]FISCAL(M)'!$BJ118)","v":"n.d."},{"$f":"IF('[1]FISCAL(M)'!$BT118=\"\",\"\",'[1]FISCAL(M)'!$BT118)","v":"n.d."},{"$f":"IF('[2]MONE(M)'!$AO118=\"\",\"\",'[2]MONE(M)'!$AO118)","v":"n.d."},{"$f":"IF('[3]MONE(M)'!$AO118=\"\",\"\",'[3]MONE(M)'!$AO118)","v":"n.d."},{"$f":"IF('[4]MONE(M)'!$AO118=\"\",\"\",'[4]MONE(M)'!$AO118)","v":"n.d."},{"$f":"+'[5]MONE(M)'!$AO118","v":"n.d."},{"$f":"IF('[6]MONE(M)'!$AO118=\"\",\"\",'[6]MONE(M)'!$AO118)","v":"n.d."},{"$f":"IF('[7]MONE(M)'!$AO118=\"\",\"\",'[7]MONE(M)'!$AO118)","v":"n.d."},{"$f":"IF('[8]MONE(M)'!$AO118=\"\",\"\",'[8]MONE(M)'!$AO118)","v":"n.d."},"n.d.","n.d.","n.d.","n.d.","n.d.","n.d.","n.d.",{"$f":"IF('[1]FISCAL(M)'!$K118=\"\",\"\",'[1]FISCAL(M)'!$K118)","v":"n.d."},"n.d.","n.d.",{"$f":"IF('[1]FISCAL(M)'!$L118=\"\",\"\",'[1]FISCAL(M)'!$L118)","v":"n.d."},"n.d.","n.d.","n.d.","n.d.","n.d.","n.d.","n.d.","n.d.","n.d.","n.d.","n.d.","n.d.","n.d.","n.d.","n.d.","n.d.","n.d.","n.d."]
[1999,"febrero","1999-febrero",{"$f":"IF('[1]REAL IPC(M)'!$AL119=\"\",\"\",+'[1]REAL IPC(M)'!$AL119)","v":7.563890455863409},{"$f":"IF('[1]REAL IPC(M)'!$BE119=\"\",\"\",+'[1]REAL IPC(M)'!$BE119)","v":6.9024158441950423},{"$f":"IF('[1]REAL IPC(M)'!$AM119=\"\",\"\",+'[1]REAL IPC(M)'!$AM119)","v":6.9478894897293531},{"$f":"IF('[1]REAL IPC(M)'!$BI119=\"\",\"\",+'[1]REAL IPC(M)'!$BI119)","v":6.3518811514767126},{"$f":"IF('[1]REAL IMAE(M)'!BJ119=\"\",\"\",'[1]REAL IMAE(M)'!BJ119)","v":"n.d."},{"$f":"IF('[1]REAL IMAE(M)'!BK119=\"\",\"\",'[1]REAL IMAE(M)'!BK119)","v":"n.d."},{"$f":"IF('[1]REAL IMAE(M)'!BN119=\"\",\"\",'[1]REAL IMAE(M)'!BN119)","v":"n.d."},{"$f":"IF('[1]REAL IMAE(M)'!BO119=\"\",\"\",'[1]REAL IMAE(M)'!BO119)","v":"n.d."},{"$f":"IF('[1]EXT RIN(M)'!$K119=\"\",\"\",'[1]EXT RIN(M)'!$K119)","v":"n.d."},"",{"$f":"IF('[1]EXT RIN(M)'!$L119=\"\",\"\",'[1]EXT RIN(M)'!$L119)","v":"n.d."},"",{"$f":"IF('[1]MONE(M)CARD'!EG119=\"\",\"\",'[1]MONE(M)CARD'!EG119)","v":"n.d."},{"$f":"IF('[1]MONE(M)CARD'!EK119=\"\",\"\",'[1]MONE(M)CARD'!EK119)","v":"n.d."},{"$f":"IF('[1]MONE(M)CARD'!EP119=\"\",\"\",'[1]MONE(M)CARD'!EP119)","v":"n.d."},{"$f":"IF('[1]MONE(M)CARD'!ES119=\"\",\"\",'[1]MONE(M)CARD'!ES119)","v":"n.d."},{"$f":"IF('[1]MONE(M)CARD'!EV119=\"\",\"\",'[1]MONE(M)CARD'!EV119)","v":"n.d."},{"$f":"IF('[1]MONE(M)CARD'!EZ119=\"\",\"\",'[1]MONE(M)CARD'!EZ119)","v":"n.d."},{"$f":"IF('[1]MONE(M)CAPARD'!FC119=\"\",\"\",'[1]MONE(M)CAPARD'!FC119)","v":"n.d."},{"$f":"IF('[1]MONE(M)CAPARD'!FG119=\"\",\"\",'[1]MONE(M)CAPARD'!FG119)","v":"n.d."},{"$f":"IF('[1]MONE(M)CAPARD'!FL119=\"\",\"\",'[1]MONE(M)CAPARD'!FL119)","v":"n.d."},{"$f":"IF('[1]MONE(M)CAPARD'!FO119=\"\",\"\",'[1]MONE(M)CAPARD'!FO119)","v":"n.d."},{"$f":"IF('[1]MONE(M)CAPARD'!FR119=\"\",\"\",'[1]MONE(M)CAPARD'!FR119)","v":"n.d."},{"$f":"IF('[1]MONE(M)CAPARD'!FV119=\"\",\"\",'[1]MONE(M)CAPARD'!FV119)","v":"n.d."},{"$f":"IF('[1]MONE(M)CARD'!FV119=\"\",\"\",'[1]MONE(M)CARD'!FV119)","v":""},{"$f":"IF('[1]MONE(M)CARD'!GD119=\"\",\"\",'[1]MONE(M)CARD'!GD119)","v":"n.d."},{"$f":"IF('[1]MONE(M)CARD'!GE119=\"\",\"\",'[1]MONE(M)CARD'!GE119)","v":"n.d."},"n.d.","n.d.","n.d.","n.d.","n.d.","n.d.","n.d.","n.d.",null,"n.d.","n.d.","n.d.","n.d.","n.d.",{"$f":"IF('[1]MONE(M)CAPARD'!GS119=\"\",\"\",'[1]MONE(M)CAPARD'!GS119)","v":"n.d."},{"$f":"IF('[1]MONE(M)CARD'!HA119=\"\",\"\",'[1]MONE(M)CAPARD'!HA119)","v":"n.d."},{"$f":"IF('[1]MONE(M)CAPARD'!HB119=\"\",\"\",'[1]MONE(M)CAPARD'!HB119)","v":"n.d."},"n.d.","n.d.","n.d.","n.d.","n.d.","n.d.","n.d.","n.d.","n.d.","n.d.","n.d.","n.d.","n.d.","n.d.",{"$f":"IF('[1]MONE(M)CAPARD'!AS119=\"\",\"\",'[1]MONE(M)CAPARD'!AS119)","v":"n.d."},{"$f":"IF('[1]MONE(M)CAPARD'!AT119=\"\",\"\",'[1]MONE(M)CAPARD'!AT119)","v":"n.a."},{"$f":"IF('[1]MONE(M)CAPARD'!AU119=\"\",\"\",'[1]MONE(M)CAPARD'!AU119)","v":"n.d."},{"$f":"IF('[1]MONE(M)CAPARD'!AV119=\"\",\"\",'[1]MONE(M)CAPARD'!AV119)","v":"n.d."},{"$f":"IF('[1]MONE(M)CAPARD'!AW119=\"\",\"\",'[1]MONE(M)CAPARD'!AW119)","v":"n.a."},{"$f":"IF('[1]MONE(M)CAPARD'!AX119=\"\",\"\",'[1]MONE(M)CAPARD'!AX119)","v":"n.d."},{"$f":"IF('[1]MONE(M)CAPARD'!AY119=\"\",\"\",'[1]MONE(M)CAPARD'!AY119)","v":"n.a."},{"$f":"IF('[1]FISCAL(M)'!$K119=\"\",\"\",'[1]FISCAL(M)'!$K119)","v":"n.d."},{"$f":"IF('[1]FISCAL(M)'!$L119=\"\",\"\",'[1]FISCAL(M)'!$L119)","v":"n.d."},{"$f":"IF('[1]FISCAL(M)'!$AY119=\"\",\"\",'[1]FISCAL(M)'!$AY119)","v":"n.d."},{"$f":"IF('[1]FISCAL(M)'!$BI119=\"\",\"\",'[1]FISCAL(M)'!$BI119)","v":"n.d."},{"$f":"IF('[1]FISCAL(M)'!$BS119=\"\",\"\",'[1]FISCAL(M)'!$BS119)","v":"n.d."},{"$f":"IF('[1]FISCAL(M)'!$AZ119=\"\",\"\",'[1]FISCAL(M)'!$AZ119)","v":"n.d."},{"$f":"IF('[1]FISCAL(M)'!$BJ119=\"\",\"\",'[1]FISCAL(M)'!$BJ119)","v":"n.d."},{"$f":"IF('[1]FISCAL(M)'!$BT119=\"\",\"\",'[1]FISCAL(M)'!$BT119)","v":"n.d."},{"$f":"IF('[2]MONE(M)'!$AO119=\"\",\"\",'[2]MONE(M)'!$AO119)","v":"n.d."},{"$f":"IF('[3]MONE(M)'!$AO119=\"\",\"\",'[3]MONE(M)'!$AO119)","v":"n.d."},{"$f":"IF('[4]MONE(M)'!$AO119=\"\",\"\",'[4]MONE(M)'!$AO119)","v":"n.d."},{"$f":"+'[5]MONE(M)'!$AO119","v":"n.d."},{"$f":"IF('[6]MONE(M)'!$AO119=\"\",\"\",'[6]MONE(M)'!$AO119)","v":"n.d."},{"$f":"IF('[7]MONE(M)'!$AO119=\"\",\"\",'[7]MONE(M)'!$AO119)","v":"n.d."},{"$f":"IF('[8]MONE(M)'!$AO119=\"\",\"\",'[8]MONE(M)'!$AO119)","v":"n.d."},"n.d.","n.d.","n.d.","n.d.","n.d.","n.d.","n.d.",{"$f":"IF('[1]FISCAL(M)'!$K119=\"\",\"\",'[1]FISCAL(M)'!$K119)","v":"n.d."},"n.d.","n.d.",{"$f":"IF('[1]FISCAL(M)'!$L119=\"\",\"\",'[1]FISCAL(M)'!$L119)","v":"n.d."},"n.d.","n.d.","n.d.","n.d.","n.d.","n.d.","n.d.","n.d.","n.d.","n.d.","n.d.","n.d.","n.d.","n.d.","n.d.","n.d.","n.d.","n.d."]
[1999,"marzo","1999-marzo",{"$f":"IF('[1]REAL IPC(M)'!$AL120=\"\",\"\",+'[1]REAL IPC(M)'!$AL120)","v":6.7283358809994809},{"$f":"IF('[1]REAL IPC(M)'!$BE120=\"\",\"\",+'[1]REAL IPC(M)'!$BE120)","v":6.8536899172644272},{"$f":"IF('[1]REAL IPC(M)'!$AM120=\"\",\"\",+'[1]REAL IPC(M)'!$AM120)","v":6.195070022479654},{"$f":"IF('[1]REAL IPC(M)'!$BI120=\"\",\"\",+'[1]REAL IPC(M)'!$BI120)","v":6.3064089657779432},{"$f":"IF('[1]REAL IMAE(M)'!BJ120=\"\",\"\",'[1]REAL IMAE(M)'!BJ120)","v":"n.d."},{"$f":"IF('[1]REAL IMAE(M)'!BK120=\"\",\"\",'[1]REAL IMAE(M)'!BK120)","v":"n.d."},{"$f":"IF('[1]REAL IMAE(M)'!BN120=\"\",\"\",'[1]REAL IMAE(M)'!BN120)","v":"n.d."},{"$f":"IF('[1]REAL IMAE(M)'!BO120=\"\",\"\",'[1]REAL IMAE(M)'!BO120)","v":"n.d."},{"$f":"IF('[1]EXT RIN(M)'!$K120=\"\",\"\",'[1]EXT RIN(M)'!$K120)","v":"n.d."},"",{"$f":"IF('[1]EXT RIN(M)'!$L120=\"\",\"\",'[1]EXT RIN(M)'!$L120)","v":"n.d."},"",{"$f":"IF('[1]MONE(M)CARD'!EG120=\"\",\"\",'[1]MONE(M)CARD'!EG120)","v":"n.d."},{"$f":"IF('[1]MONE(M)CARD'!EK120=\"\",\"\",'[1]MONE(M)CARD'!EK120)","v":"n.d."},{"$f":"IF('[1]MONE(M)CARD'!EP120=\"\",\"\",'[1]MONE(M)CARD'!EP120)","v":"n.d."},{"$f":"IF('[1]MONE(M)CARD'!ES120=\"\",\"\",'[1]MONE(M)CARD'!ES120)","v":"n.d."},{"$f":"IF('[1]MONE(M)CARD'!EV120=\"\",\"\",'[1]MONE(M)CARD'!EV120)","v":"n.d."},{"$f":"IF('[1]MONE(M)CARD'!EZ120=\"\",\"\",'[1]MONE(M)CARD'!EZ120)","v":"n.d."},{"$f":"IF('[1]MONE(M)CAPARD'!FC120=\"\",\"\",'[1]MONE(M)CAPARD'!FC120)","v":"n.d."},{"$f":"IF('[1]MONE(M)CAPARD'!FG120=\"\",\"\",'[1]MONE(M)CAPARD'!FG120)","v":"n.d."},{"$f":"IF('[1]MONE(M)CAPARD'!FL120=\"\",\"\",'[1]MONE(M)CAPARD'!FL120)","v":"n.d."},{"$f":"IF('[1]MONE(M)CAPARD'!FO120=\"\",\"\",'[1]MONE(M)CAPARD'!FO120)","v":"n.d."},{"$f":"IF('[1]MONE(M)CAPARD'!FR120=\"\",\"\",'[1]MONE(M)CAPARD'!FR120)","v":"n.d."},{"$f":"IF('[1]MONE(M)CAPARD'!FV120=\"\",\"\",'[1]MONE(M)CAPARD'!FV120)","v":"n.d."},{"$f":"IF('[1]MONE(M)CARD'!FV120=\"\",\"\",'[1]MONE(M)CARD'!FV120)","v":""},{"$f":"IF('[1]MONE(M)CARD'!GD120=\"\",\"\",'[1]MONE(M)CARD'!GD120)","v":"n.d."},{"$f":"IF('[1]MONE(M)CARD'!GE120=\"\",\"\",'[1]MONE(M)CARD'!GE120)","v":"n.d."},"n.d.","n.d.","n.d.","n.d.","n.d.","n.d.","n.d.","n.d.",null,"n.d.","n.d.","n.d.","n.d.","n.d.",{"$f":"IF('[1]MONE(M)CAPARD'!GS120=\"\",\"\",'[1]MONE(M)CAPARD'!GS120)","v":"n.d."},{"$f":"IF('[1]MONE(M)CARD'!HA120=\"\",\"\",'[1]MONE(M)CAPARD'!HA120)","v":"n.d."},{"$f":"IF('[1]MONE(M)CAPARD'!HB120=\"\",\"\",'[1]MONE(M)CAPARD'!HB120)","v":"n.d."},"n.d.","n.d.","n.d.","n.d.","n.d.","n.d.","n.d.","n.d.","n.d.","n.d.","n.d.","n.d.","n.d.","n.d.",{"$f":"IF('[1]MONE(M)CAPARD'!AS120=\"\",\"\",'[1]MONE(M)CAPARD'!AS120)","v":"n.d."},{"$f":"IF('[1]MONE(M)CAPARD'!AT120=\"\",\"\",'[1]MONE(M)CAPARD'!AT120)","v":"n.a."},{"$f":"IF('[1]MONE(M)CAPARD'!AU120=\"\",\"\",'[1]MONE(M)CAPARD'!AU120)","v":"n.d."},{"$f":"IF('[1]MONE(M)CAPARD'!AV120=\"\",\"\",'[1]MONE(M)CAPARD'!AV120)","v":"n.d."},{"$f":"IF('[1]MONE(M)CAPARD'!AW120=\"\",\"\",'[1]MONE(M)CAPARD'!AW120)","v":"n.a."},{"$f":"IF('[1]MONE(M)CAPARD'!AX120=\"\",\"\",'[1]MONE(M)CAPARD'!AX120)","v":"n.d."},{"$f":"IF('[1]MONE(M)CAPARD'!AY120=\"\",\"\",'[1]MONE(M)CAPARD'!AY120)","v":"n.a."},{"$f":"IF('[1]FISCAL(M)'!$K120=\"\",\"\",'[1]FISCAL(M)'!$K120)","v":"n.d."},{"$f":"IF('[1]FISCAL(M)'!$L120=\"\",\"\",'[1]FISCAL(M)'!$L120)","v":"n.d."},{"$f":"IF('[1]FISCAL(M)'!$AY120=\"\",\"\",'[1]FISCAL(M)'!$AY120)","v":"n.d."},{"$f":"IF('[1]FISCAL(M)'!$BI120=\"\",\"\",'[1]FISCAL(M)'!$BI120)","v":"n.d."},{"$f":"IF('[1]FISCAL(M)'!$BS120=\"\",\"\",'[1]FISCAL(M)'!$BS120)","v":"n.d."},{"$f":"IF('[1]FISCAL(M)'!$AZ120=\"\",\"\",'[1]FISCAL(M)'!$AZ120)","v":"n.d."},{"$f":"IF('[1]FISCAL(M)'!$BJ120=\"\",\"\",'[1]FISCAL(M)'!$BJ120)","v":"n.d."},{"$f":"IF('[1]FISCAL(M)'!$BT120=\"\",\"\",'[1]FISCAL(M)'!$BT120)","v":"n.d."},{"$f":"IF('[2]MONE(M)'!$AO120=\"\",\"\",'[2]MONE(M)'!$AO120)","v":"n.d."},{"$f":"IF('[3]MONE(M)'!$AO120=\"\",\"\",'[3]MONE(M)'!$AO120)","v":"n.d."},{"$f":"IF('[4]MONE(M)'!$AO120=\"\",\"\",'[4]MONE(M)'!$AO120)","v":"n.d."},{"$f":"+'[5]MONE(M)'!$AO120","v":"n.d."},{"$f":"IF('[6]MONE(M)'!$AO120=\"\",\"\",'[6]MONE(M)'!$AO120)","v":"n.d."},{"$f":"IF('[7]MONE(M)'!$AO120=\"\",\"\",'[7]MONE(M)'!$AO120)","v":"n.d."},{"$f":"IF('[8]MONE(M)'!$AO120=\"\",\"\",'[8]MONE(M)'!$AO120)","v":"n.d."},"n.d.","n.d.","n.d.","n.d.","n.d.","n.d.","n.d.",{"$f":"IF('[1]FISCAL(M)'!$K120=\"\",\"\",'[1]FISCAL(M)'!$K120)","v":"n.d."},"n.d.","n.d.",{"$f":"IF('[1]FISCAL(M)'!$L120=\"\",\"\",'[1]FISCAL(M)'!$L120)","v":"n.d."},"n.d.","n.d.","n.d.","n.d.","n.d.","n.d.","n.d.","n.d.","n.d.","n.d.","n.d.","n.d.","n.d.","n.d.","n.d.","n.d.","n.d.","n.d."]
[1999,"abril","1999-abril",{"$f":"IF('[1]REAL IPC(M)'!$AL121=\"\",\"\",+'[1]REAL IPC(M)'!$AL121)","v":6.061469171820244},{"$f":"IF('[1]REAL IPC(M)'!$BE121=\"\",\"\",+'[1]REAL IPC(M)'!$BE121)","v":6.8112758357473213},{"$f":"IF('[1]REAL IPC(M)'!$AM121=\"\",\"\",+'[1]REAL IPC(M)'!$AM121)","v":5.6125605205324502},{"$f":"IF('[1]REAL IPC(M)'!$BI121=\"\",\"\",+'[1]REAL IPC(M)'!$BI121)","v":6.2667466379076942},{"$f":"IF('[1]REAL IMAE(M)'!BJ121=\"\",\"\",'[1]REAL IMAE(M)'!BJ121)","v":"n.d."},{"$f":"IF('[1]REAL IMAE(M)'!BK121=\"\",\"\",'[1]REAL IMAE(M)'!BK121)","v":"n.d."},{"$f":"IF('[1]REAL IMAE(M)'!BN121=\"\",\"\",'[1]REAL IMAE(M)'!BN121)","v":"n.d."},{"$f":"IF('[1]REAL IMAE(M)'!BO121=\"\",\"\",'[1]REAL IMAE(M)'!BO121)","v":"n.d."},{"$f":"IF('[1]EXT RIN(M)'!$K121=\"\",\"\",'[1]EXT RIN(M)'!$K121)","v":"n.d."},"",{"$f":"IF('[1]EXT RIN(M)'!$L121=\"\",\"\",'[1]EXT RIN(M)'!$L121)","v":"n.d."},"",{"$f":"IF('[1]MONE(M)CARD'!EG121=\"\",\"\",'[1]MONE(M)CARD'!EG121)","v":"n.d."},{"$f":"IF('[1]MONE(M)CARD'!EK121=\"\",\"\",'[1]MONE(M)CARD'!EK121)","v":"n.d."},{"$f":"IF('[1]MONE(M)CARD'!EP121=\"\",\"\",'[1]MONE(M)CARD'!EP121)","v":"n.d."},{"$f":"IF('[1]MONE(M)CARD'!ES121=\"\",\"\",'[1]MONE(M)CARD'!ES121)","v":"n.d."},{"$f":"IF('[1]MONE(M)CARD'!EV121=\"\",\"\",'[1]MONE(M)CARD'!EV121)","v":"n.d."},{"$f":"IF('[1]MONE(M)CARD'!EZ121=\"\",\"\",'[1]MONE(M)CARD'!EZ121)","v":"n.d."},{"$f":"IF('[1]MONE(M)CAPARD'!FC121=\"\",\"\",'[1]MONE(M)CAPARD'!FC121)","v":"n.d."},{"$f":"IF('[1]MONE(M)CAPARD'!FG121=\"\",\"\",'[1]MONE(M)CAPARD'!FG121)","v":"n.d."},{"$f":"IF('[1]MONE(M)CAPARD'!FL121=\"\",\"\",'[1]MONE(M)CAPARD'!FL121)","v":"n.d."},{"$f":"IF('[1]MONE(M)CAPARD'!FO121=\"\",\"\",'[1]MONE(M)CAPARD'!FO121)","v":"n.d."},{"$f":"IF('[1]MONE(M)CAPARD'!FR121=\"\",\"\",'[1]MONE(M)CAPARD'!FR121)","v":"n.d."},{"$f":"IF('[1]MONE(M)CAPARD'!FV121=\"\",\"\",'[1]MONE(M)CAPARD'!FV121)","v":"n.d."},{"$f":"IF('[1]MONE(M)CARD'!FV121=\"\",\"\",'[1]MONE(M)CARD'!FV121)","v":""},{"$f":"IF('[1]MONE(M)CARD'!GD121=\"\",\"\",'[1]MONE(M)CARD'!GD121)","v":"n.d."},{"$f":"IF('[1]MONE(M)CARD'!GE121=\"\",\"\",'[1]MONE(M)CARD'!GE121)","v":"n.d."},"n.d.","n.d.","n.d.","n.d.","n.d.","n.d.","n.d.","n.d.",null,"n.d.","n.d.","n.d.","n.d.","n.d.",{"$f":"IF('[1]MONE(M)CAPARD'!GS121=\"\",\"\",'[1]MONE(M)CAPARD'!GS121)","v":"n.d."},{"$f":"IF('[1]MONE(M)CARD'!HA121=\"\",\"\",'[1]MONE(M)CAPARD'!HA121)","v":"n.d."},{"$f":"IF('[1]MONE(M)CAPARD'!HB121=\"\",\"\",'[1]MONE(M)CAPARD'!HB121)","v":"n.d."},"n.d.","n.d.","n.d.","n.d.","n.d.","n.d.","n.d.","n.d.","n.d.","n.d.","n.d.","n.d.","n.d.","n.d.",{"$f":"IF('[1]MONE(M)CAPARD'!AS121=\"\",\"\",'[1]MONE(M)CAPARD'!AS121)","v":"n.d."},{"$f":"IF('[1]MONE(M)CAPARD'!AT121=\"\",\"\",'[1]MONE(M)CAPARD'!AT121)","v":"n.a."},{"$f":"IF('[1]MONE(M)CAPARD'!AU121=\"\",\"\",'[1]MONE(M)CAPARD'!AU121)","v":"n.d."},{"$f":"IF('[1]MONE(M)CAPARD'!AV121=\"\",\"\",'[1]MONE(M)CAPARD'!AV121)","v":"n.d."},{"$f":"IF('[1]MONE(M)CAPARD'!AW121=\"\",\"\",'[1]MONE(M)CAPARD'!AW121)","v":"n.a."},{"$f":"IF('[1]MONE(M)CAPARD'!AX121=\"\",\"\",'[1]MONE(M)CAPARD'!AX121)","v":"n.d."},{"$f":"IF('[1]MONE(M)CAPARD'!AY121=\"\",\"\",'[1]MONE(M)CAPARD'!AY121)","v":"n.a."},{"$f":"IF('[1]FISCAL(M)'!$K121=\"\",\"\",'[1]FISCAL(M)'!$K121)","v":"n.d."},{"$f":"IF('[1]FISCAL(M)'!$L121=\"\",\"\",'[1]FISCAL(M)'!$L121)","v":"n.d."},{"$f":"IF('[1]FISCAL(M)'!$AY121=\"\",\"\",'[1]FISCAL(M)'!$AY121)","v":"n.d."},{"$f":"IF('[1]FISCAL(M)'!$BI121=\"\",\"\",'[1]FISCAL(M)'!$BI121)","v":"n.d."},{"$f":"IF('[1]FISCAL(M)'!$BS121=\"\",\"\",'[1]FISCAL(M)'!$BS121)","v":"n.d."},{"$f":"IF('[1]FISCAL(M)'!$AZ121=\"\",\"\",'[1]FISCAL(M)'!$AZ121)","v":"n.d."},{"$f":"IF('[1]FISCAL(M)'!$BJ121=\"\",\"\",'[1]FISCAL(M)'!$BJ121)","v":"n.d."},{"$f":"IF('[1]FISCAL(M)'!$BT121=\"\",\"\",'[1]FISCAL(M)'!$BT121)","v":"n.d."},{"$f":"IF('[2]MONE(M)'!$AO121=\"\",\"\",'[2]MONE(M)'!$AO121)","v":"n.d."},{"$f":"IF('[3]MONE(M)'!$AO121=\"\",\"\",'[3]MONE(M)'!$AO121)","v":"n.d."},{"$f":"IF('[4]MONE(M)'!$AO121=\"\",\"\",'[4]MONE(M)'!$AO121)","v":"n.d."},{"$f":"+'[5]MONE(M)'!$AO121","v":"n.d."},{"$f":"IF('[6]MONE(M)'!$AO121=\"\",\"\",'[6]MONE(M)'!$AO121)","v":"n.d."},{"$f":"IF('[7]MONE(M)'!$AO121=\"\",\"\",'[7]MONE(M)'!$AO121)","v":"n.d."},{"$f":"IF('[8]MONE(M)'!$AO121=\"\",\"\",'[8]MONE(M)'!$AO121)","v":"n.d."},"n.d.","n.d.","n.d.","n.d.","n.d.","n.d.","n.d.",{"$f":"IF('[1]FISCAL(M)'!$K121=\"\",\"\",'[1]FISCAL(M)'!$K121)","v":"n.d."},"n.d.","n.d.",{"$f":"IF('[1]FISCAL(M)'!$L121=\"\",\"\",'[1]FISCAL(M)'!$L121)","v":"n.d."},"n.d.","n.d.","n.d.","n.d.","n.d.","n.d.","n.d.","n.d.","n.d.","n.d.","n.d.","n.d.","n.d.","n.d.","n.d.","n.d.","n.d.","n.d."]
[1999,"mayo ","1999-mayo ",{"$f":"IF('[1]REAL IPC(M)'!$AL122=\"\",\"\",+'[1]REAL IPC(M)'!$AL122)","v":5.764068922579324},{"$f":"IF('[1]REAL IPC(M)'!$BE122=\"\",\"\",+'[1]REAL IPC(M)'!$BE122)","v":6.7752099263370669},{"$f":"IF('[1]REAL IPC(M)'!$AM122=\"\",\"\",+'[1]REAL IPC(M)'!$AM122)","v":5.3264435404785093},{"$f":"IF('[1]REAL IPC(M)'!$BI122=\"\",\"\",+'[1]REAL IPC(M)'!$BI122)","v":6.2329131926785131},{"$f":"IF('[1]REAL IMAE(M)'!BJ122=\"\",\"\",'[1]REAL IMAE(M)'!BJ122)","v":"n.d."},{"$f":"IF('[1]REAL IMAE(M)'!BK122=\"\",\"\",'[1]REAL IMAE(M)'!BK122)","v":"n.d."},{"$f":"IF('[1]REAL IMAE(M)'!BN122=\"\",\"\",'[1]REAL IMAE(M)'!BN122)","v":"n.d."},{"$f":"IF('[1]REAL IMAE(M)'!BO122=\"\",\"\",'[1]REAL IMAE(M)'!BO122)","v":"n.d."},{"$f":"IF('[1]EXT RIN(M)'!$K122=\"\",\"\",'[1]EXT RIN(M)'!$K122)","v":"n.d."},"",{"$f":"IF('[1]EXT RIN(M)'!$L122=\"\",\"\",'[1]EXT RIN(M)'!$L122)","v":"n.d."},"",{"$f":"IF('[1]MONE(M)CARD'!EG122=\"\",\"\",'[1]MONE(M)CARD'!EG122)","v":"n.d."},{"$f":"IF('[1]MONE(M)CARD'!EK122=\"\",\"\",'[1]MONE(M)CARD'!EK122)","v":"n.d."},{"$f":"IF('[1]MONE(M)CARD'!EP122=\"\",\"\",'[1]MONE(M)CARD'!EP122)","v":"n.d."},{"$f":"IF('[1]MONE(M)CARD'!ES122=\"\",\"\",'[1]MONE(M)CARD'!ES122)","v":"n.d."},{"$f":"IF('[1]MONE(M)CARD'!EV122=\"\",\"\",'[1]MONE(M)CARD'!EV122)","v":"n.d."},{"$f":"IF('[1]MONE(M)CARD'!EZ122=\"\",\"\",'[1]MONE(M)CARD'!EZ122)","v":"n.d."},{"$f":"IF('[1]MONE(M)CAPARD'!FC122=\"\",\"\",'[1]MONE(M)CAPARD'!FC122)","v":"n.d."},{"$f":"IF('[1]MONE(M)CAPARD'!FG122=\"\",\"\",'[1]MONE(M)CAPARD'!FG122)","v":"n.d."},{"$f":"IF('[1]MONE(M)CAPARD'!FL122=\"\",\"\",'[1]MONE(M)CAPARD'!FL122)","v":"n.d."},{"$f":"IF('[1]MONE(M)CAPARD'!FO122=\"\",\"\",'[1]MONE(M)CAPARD'!FO122)","v":"n.d."},{"$f":"IF('[1]MONE(M)CAPARD'!FR122=\"\",\"\",'[1]MONE(M)CAPARD'!FR122)","v":"n.d."},{"$f":"IF('[1]MONE(M)CAPARD'!FV122=\"\",\"\",'[1]MONE(M)CAPARD'!FV122)","v":"n.d."},{"$f":"IF('[1]MONE(M)CARD'!FV122=\"\",\"\",'[1]MONE(M)CARD'!FV122)","v":""},{"$f":"IF('[1]MONE(M)CARD'!GD122=\"\",\"\",'[1]MONE(M)CARD'!GD122)","v":"n.d."},{"$f":"IF('[1]MONE(M)CARD'!GE122=\"\",\"\",'[1]MONE(M)CARD'!GE122)","v":"n.d."},"n.d.","n.d.","n.d.","n.d.","n.d.","n.d.","n.d.","n.d.",null,"n.d.","n.d.","n.d.","n.d.","n.d.",{"$f":"IF('[1]MONE(M)CAPARD'!GS122=\"\",\"\",'[1]MONE(M)CAPARD'!GS122)","v":"n.d."},{"$f":"IF('[1]MONE(M)CARD'!HA122=\"\",\"\",'[1]MONE(M)CAPARD'!HA122)","v":"n.d."},{"$f":"IF('[1]MONE(M)CAPARD'!HB122=\"\",\"\",'[1]MONE(M)CAPARD'!HB122)","v":"n.d."},"n.d.","n.d.","n.d.","n.d.","n.d.","n.d.","n.d.","n.d.","n.d.","n.d.","n.d.","n.d.","n.d.","n.d.",{"$f":"IF('[1]MONE(M)CAPARD'!AS122=\"\",\"\",'[1]MONE(M)CAPARD'!AS122)","v":"n.d."},{"$f":"IF('[1]MONE(M)CAPARD'!AT122=\"\",\"\",'[1]MONE(M)CAPARD'!AT122)","v":"n.a."},{"$f":"IF('[1]MONE(M)CAPARD'!AU122=\"\",\"\",'[1]MONE(M)CAPARD'!AU122)","v":"n.d."},{"$f":"IF('[1]MONE(M)CAPARD'!AV122=\"\",\"\",'[1]MONE(M)CAPARD'!AV122)","v":"n.d."},{"$f":"IF('[1]MONE(M)CAPARD'!AW122=\"\",\"\",'[1]MONE(M)CAPARD'!AW122)","v":"n.a."},{"$f":"IF('[1]MONE(M)CAPARD'!AX122=\"\",\"\",'[1]MONE(M)CAPARD'!AX122)","v":"n.d."},{"$f":"IF('[1]MONE(M)CAPARD'!AY122=\"\",\"\",'[1]MONE(M)CAPARD'!AY122)","v":"n.a."},{"$f":"IF('[1]FISCAL(M)'!$K122=\"\",\"\",'[1]FISCAL(M)'!$K122)","v":"n.d."},{"$f":"IF('[1]FISCAL(M)'!$L122=\"\",\"\",'[1]FISCAL(M)'!$L122)","v":"n.d."},{"$f":"IF('[1]FISCAL(M)'!$AY122=\"\",\"\",'[1]FISCAL(M)'!$AY122)","v":"n.d."},{"$f":"IF('[1]FISCAL(M)'!$BI122=\"\",\"\",'[1]FISCAL(M)'!$BI122)","v":"n.d."},{"$f":"IF('[1]FISCAL(M)'!$BS122=\"\",\"\",'[1]FISCAL(M)'!$BS122)","v":"n.d."},{"$f":"IF('[1]FISCAL(M)'!$AZ122=\"\",\"\",'[1]FISCAL(M)'!$AZ122)","v":"n.d."},{"$f":"IF('[1]FISCAL(M)'!$BJ122=\"\",\"\",'[1]FISCAL(M)'!$BJ122)","v":"n.d."},{"$f":"IF('[1]FISCAL(M)'!$BT122=\"\",\"\",'[1]FISCAL(M)'!$BT122)","v":"n.d."},{"$f":"IF('[2]MONE(M)'!$AO122=\"\",\"\",'[2]MONE(M)'!$AO122)","v":"n.d."},{"$f":"IF('[3]MONE(M)'!$AO122=\"\",\"\",'[3]MONE(M)'!$AO122)","v":"n.d."},{"$f":"IF('[4]MONE(M)'!$AO122=\"\",\"\",'[4]MONE(M)'!$AO122)","v":"n.d."},{"$f":"+'[5]MONE(M)'!$AO122","v":"n.d."},{"$f":"IF('[6]MONE(M)'!$AO122=\"\",\"\",'[6]MONE(M)'!$AO122)","v":"n.d."},{"$f":"IF('[7]MONE(M)'!$AO122=\"\",\"\",'[7]MONE(M)'!$AO122)","v":"n.d."},{"$f":"IF('[8]MONE(M)'!$AO122=\"\",\"\",'[8]MONE(M)'!$AO122)","v":"n.d."},"n.d.","n.d.","n.d.","n.d.","n.d.","n.d.","n.d.",{"$f":"IF('[1]FISCAL(M)'!$K122=\"\",\"\",'[1]FISCAL(M)'!$K122)","v":"n.d."},"n.d.","n.d.",{"$f":"IF('[1]FISCAL(M)'!$L122=\"\",\"\",'[1]FISCAL(M)'!$L122)","v":"n.d."},"n.d.","n.d.","n.d.","n.d.","n.d.","n.d.","n.d.","n.d.","n.d.","n.d.","n.d.","n.d.","n.d.","n.d.","n.d.","n.d.","n.d.","n.d."]
[1999,"junio ","1999-junio ",{"$f":"IF('[1]REAL IPC(M)'!$AL123=\"\",\"\",+'[1]REAL IPC(M)'!$AL123)","v":5.5775068256795013},{"$f":"IF('[1]REAL IPC(M)'!$BE123=\"\",\"\",+'[1]REAL IPC(M)'!$BE123)","v":6.7454698942398084},{"$f":"IF('[1]REAL IPC(M)'!$AM123=\"\",\"\",+'[1]REAL IPC(M)'!$AM123)","v":5.1490810389465347},{"$f":"IF('[1]REAL IPC(M)'!$BI123=\"\",\"\",+'[1]REAL IPC(M)'!$BI123)","v":6.204869053090678},{"$f":"IF('[1]REAL IMAE(M)'!BJ123=\"\",\"\",'[1]REAL IMAE(M)'!BJ123)","v":"n.d."},{"$f":"IF('[1]REAL IMAE(M)'!BK123=\"\",\"\",'[1]REAL IMAE(M)'!BK123)","v":"n.d."},{"$f":"IF('[1]REAL IMAE(M)'!BN123=\"\",\"\",'[1]REAL IMAE(M)'!BN123)","v":"n.d."},{"$f":"IF('[1]REAL IMAE(M)'!BO123=\"\",\"\",'[1]REAL IMAE(M)'!BO123)","v":"n.d."},{"$f":"IF('[1]EXT RIN(M)'!$K123=\"\",\"\",'[1]EXT RIN(M)'!$K123)","v":"n.d."},"",{"$f":"IF('[1]EXT RIN(M)'!$L123=\"\",\"\",'[1]EXT RIN(M)'!$L123)","v":"n.d."},"",{"$f":"IF('[1]MONE(M)CARD'!EG123=\"\",\"\",'[1]MONE(M)CARD'!EG123)","v":"n.d."},{"$f":"IF('[1]MONE(M)CARD'!EK123=\"\",\"\",'[1]MONE(M)CARD'!EK123)","v":"n.d."},{"$f":"IF('[1]MONE(M)CARD'!EP123=\"\",\"\",'[1]MONE(M)CARD'!EP123)","v":"n.d."},{"$f":"IF('[1]MONE(M)CARD'!ES123=\"\",\"\",'[1]MONE(M)CARD'!ES123)","v":"n.d."},{"$f":"IF('[1]MONE(M)CARD'!EV123=\"\",\"\",'[1]MONE(M)CARD'!EV123)","v":"n.d."},{"$f":"IF('[1]MONE(M)CARD'!EZ123=\"\",\"\",'[1]MONE(M)CARD'!EZ123)","v":"n.d."},{"$f":"IF('[1]MONE(M)CAPARD'!FC123=\"\",\"\",'[1]MONE(M)CAPARD'!FC123)","v":"n.d."},{"$f":"IF('[1]MONE(M)CAPARD'!FG123=\"\",\"\",'[1]MONE(M)CAPARD'!FG123)","v":"n.d."},{"$f":"IF('[1]MONE(M)CAPARD'!FL123=\"\",\"\",'[1]MONE(M)CAPARD'!FL123)","v":"n.d."},{"$f":"IF('[1]MONE(M)CAPARD'!FO123=\"\",\"\",'[1]MONE(M)CAPARD'!FO123)","v":"n.d."},{"$f":"IF('[1]MONE(M)CAPARD'!FR123=\"\",\"\",'[1]MONE(M)CAPARD'!FR123)","v":"n.d."},{"$f":"IF('[1]MONE(M)CAPARD'!FV123=\"\",\"\",'[1]MONE(M)CAPARD'!FV123)","v":"n.d."},{"$f":"IF('[1]MONE(M)CARD'!FV123=\"\",\"\",'[1]MONE(M)CARD'!FV123)","v":""},{"$f":"IF('[1]MONE(M)CARD'!GD123=\"\",\"\",'[1]MONE(M)CARD'!GD123)","v":"n.d."},{"$f":"IF('[1]MONE(M)CARD'!GE123=\"\",\"\",'[1]MONE(M)CARD'!GE123)","v":"n.d."},"n.d.","n.d.","n.d.","n.d.","n.d.","n.d.","n.d.","n.d.",null,"n.d.","n.d.","n.d.","n.d.","n.d.",{"$f":"IF('[1]MONE(M)CAPARD'!GS123=\"\",\"\",'[1]MONE(M)CAPARD'!GS123)","v":"n.d."},{"$f":"IF('[1]MONE(M)CARD'!HA123=\"\",\"\",'[1]MONE(M)CAPARD'!HA123)","v":"n.d."},{"$f":"IF('[1]MONE(M)CAPARD'!HB123=\"\",\"\",'[1]MONE(M)CAPARD'!HB123)","v":"n.d."},"n.d.","n.d.","n.d.","n.d.","n.d.","n.d.","n.d.","n.d.","n.d.","n.d.","n.d.","n.d.","n.d.","n.d.",{"$f":"IF('[1]MONE(M)CAPARD'!AS123=\"\",\"\",'[1]MONE(M)CAPARD'!AS123)","v":"n.d."},{"$f":"IF('[1]MONE(M)CAPARD'!AT123=\"\",\"\",'[1]MONE(M)CAPARD'!AT123)","v":"n.a."},{"$f":"IF('[1]MONE(M)CAPARD'!AU123=\"\",\"\",'[1]MONE(M)CAPARD'!AU123)","v":"n.d."},{"$f":"IF('[1]MONE(M)CAPARD'!AV123=\"\",\"\",'[1]MONE(M)CAPARD'!AV123)","v":"n.d."},{"$f":"IF('[1]MONE(M)CAPARD'!AW123=\"\",\"\",'[1]MONE(M)CAPARD'!AW123)","v":"n.a."},{"$f":"IF('[1]MONE(M)CAPARD'!AX123=\"\",\"\",'[1]MONE(M)CAPARD'!AX123)","v":"n.d."},{"$f":"IF('[1]MONE(M)CAPARD'!AY123=\"\",\"\",'[1]MONE(M)CAPARD'!AY123)","v":"n.a."},{"$f":"IF('[1]FISCAL(M)'!$K123=\"\",\"\",'[1]FISCAL(M)'!$K123)","v":"n.d."},{"$f":"IF('[1]FISCAL(M)'!$L123=\"\",\"\",'[1]FISCAL(M)'!$L123)","v":"n.d."},{"$f":"IF('[1]FISCAL(M)'!$AY123=\"\",\"\",'[1]FISCAL(M)'!$AY123)","v":"n.d."},{"$f":"IF('[1]FISCAL(M)'!$BI123=\"\",\"\",'[1]FISCAL(M)'!$BI123)","v":"n.d."},{"$f":"IF('[1]FISCAL(M)'!$BS123=\"\",\"\",'[1]FISCAL(M)'!$BS123)","v":"n.d."},{"$f":"IF('[1]FISCAL(M)'!$AZ123=\"\",\"\",'[1]FISCAL(M)'!$AZ123)","v":"n.d."},{"$f":"IF('[1]FISCAL(M)'!$BJ123=\"\",\"\",'[1]FISCAL(M)'!$BJ123)","v":"n.d."},{"$f":"IF('[1]FISCAL(M)'!$BT123=\"\",\"\",'[1]FISCAL(M)'!$BT123)","v":"n.d."},{"$f":"IF('[2]MONE(M)'!$AO123=\"\",\"\",'[2]MONE(M)'!$AO123)","v":"n.d."},{"$f":"IF('[3]MONE(M)'!$AO123=\"\",\"\",'[3]MONE(M)'!$AO123)","v":"n.d."},{"$f":"IF('[4]MONE(M)'!$AO123=\"\",\"\",'[4]MONE(M)'!$AO123)","v":"n.d."},{"$f":"+'[5]MONE(M)'!$AO123","v":"n.d."},{"$f":"IF('[6]MONE(M)'!$AO123=\"\",\"\",'[6]MONE(M)'!$AO123)","v":"n.d."},{"$f":"IF('[7]MONE(M)'!$AO123=\"\",\"\",'[7]MONE(M)'!$AO123)","v":"n.d."},{"$f":"IF('[8]MONE(M)'!$AO123=\"\",\"\",'[8]MONE(M)'!$AO123)","v":"n.d."},"n.d.","n.d.","n.d.","n.d.","n.d.","n.d.","n.d.",{"$f":"IF('[1]FISCAL(M)'!$K123=\"\",\"\",'[1]FISCAL(M)'!$K123)","v":"n.d."},"n.d.","n.d.",{"$f":"IF('[1]FISCAL(M)'!$L123=\"\",\"\",'[1]FISCAL(M)'!$L123)","v":"n.d."},"n.d.","n.d.","n.d.","n.d.","n.d.","n.d.","n.d.","n.d.","n.d.","n.d.","n.d.","n.d.","n.d.","n.d.","n.d.","n.d.","n.d.","n.d."]
[1999,"julio","1999-julio",{"$f":"IF('[1]REAL IPC(M)'!$AL124=\"\",\"\",+'[1]REAL IPC(M)'!$AL124)","v":5.4766217954381968},{"$f":"IF('[1]REAL IPC(M)'!$BE124=\"\",\"\",+'[1]REAL IPC(M)'!$BE124)","v":6.7219632076139124},{"$f":"IF('[1]REAL IPC(M)'!$AM124=\"\",\"\",+'[1]REAL IPC(M)'!$AM124)","v":5.0670569102565954},{"$f":"IF('[1]REAL IPC(M)'!$BI124=\"\",\"\",+'[1]REAL IPC(M)'!$BI124)","v":6.182501937716478},{"$f":"IF('[1]REAL IMAE(M)'!BJ124=\"\",\"\",'[1]REAL IMAE(M)'!BJ124)","v":"n.d."},{"$f":"IF('[1]REAL IMAE(M)'!BK124=\"\",\"\",'[1]REAL IMAE(M)'!BK124)","v":"n.d."},{"$f":"IF('[1]REAL IMAE(M)'!BN124=\"\",\"\",'[1]REAL IMAE(M)'!BN124)","v":"n.d."},{"$f":"IF('[1]REAL IMAE(M)'!BO124=\"\",\"\",'[1]REAL IMAE(M)'!BO124)","v":"n.d."},{"$f":"IF('[1]EXT RIN(M)'!$K124=\"\",\"\",'[1]EXT RIN(M)'!$K124)","v":"n.d."},"",{"$f":"IF('[1]EXT RIN(M)'!$L124=\"\",\"\",'[1]EXT RIN(M)'!$L124)","v":"n.d."},"",{"$f":"IF('[1]MONE(M)CARD'!EG124=\"\",\"\",'[1]MONE(M)CARD'!EG124)","v":"n.d."},{"$f":"IF('[1]MONE(M)CARD'!EK124=\"\",\"\",'[1]MONE(M)CARD'!EK124)","v":"n.d."},{"$f":"IF('[1]MONE(M)CARD'!EP124=\"\",\"\",'[1]MONE(M)CARD'!EP124)","v":"n.d."},{"$f":"IF('[1]MONE(M)CARD'!ES124=\"\",\"\",'[1]MONE(M)CARD'!ES124)","v":"n.d."},{"$f":"IF('[1]MONE(M)CARD'!EV124=\"\",\"\",'[1]MONE(M)CARD'!EV124)","v":"n.d."},{"$f":"IF('[1]MONE(M)CARD'!EZ124=\"\",\"\",'[1]MONE(M)CARD'!EZ124)","v":"n.d."},{"$f":"IF('[1]MONE(M)CAPARD'!FC124=\"\",\"\",'[1]MONE(M)CAPARD'!FC124)","v":"n.d."},{"$f":"IF('[1]MONE(M)CAPARD'!FG124=\"\",\"\",'[1]MONE(M)CAPARD'!FG124)","v":"n.d."},{"$f":"IF('[1]MONE(M)CAPARD'!FL124=\"\",\"\",'[1]MONE(M)CAPARD'!FL124)","v":"n.d."},{"$f":"IF('[1]MONE(M)CAPARD'!FO124=\"\",\"\",'[1]MONE(M)CAPARD'!FO124)","v":"n.d."},{"$f":"IF('[1]MONE(M)CAPARD'!FR124=\"\",\"\",'[1]MONE(M)CAPARD'!FR124)","v":"n.d."},{"$f":"IF('[1]MONE(M)CAPARD'!FV124=\"\",\"\",'[1]MONE(M)CAPARD'!FV124)","v":"n.d."},{"$f":"IF('[1]MONE(M)CARD'!FV124=\"\",\"\",'[1]MONE(M)CARD'!FV124)","v":""},{"$f":"IF('[1]MONE(M)CARD'!GD124=\"\",\"\",'[1]MONE(M)CARD'!GD124)","v":"n.d."},{"$f":"IF('[1]MONE(M)CARD'!GE124=\"\",\"\",'[1]MONE(M)CARD'!GE124)","v":"n.d."},"n.d.","n.d.","n.d.","n.d.","n.d.","n.d.","n.d.","n.d.",null,"n.d.","n.d.","n.d.","n.d.","n.d.",{"$f":"IF('[1]MONE(M)CAPARD'!GS124=\"\",\"\",'[1]MONE(M)CAPARD'!GS124)","v":"n.d."},{"$f":"IF('[1]MONE(M)CARD'!HA124=\"\",\"\",'[1]MONE(M)CAPARD'!HA124)","v":"n.d."},{"$f":"IF('[1]MONE(M)CAPARD'!HB124=\"\",\"\",'[1]MONE(M)CAPARD'!HB124)","v":"n.d."},"n.d.","n.d.","n.d.","n.d.","n.d.","n.d.","n.d.","n.d.","n.d.","n.d.","n.d.","n.d.","n.d.","n.d.",{"$f":"IF('[1]MONE(M)CAPARD'!AS124=\"\",\"\",'[1]MONE(M)CAPARD'!AS124)","v":"n.d."},{"$f":"IF('[1]MONE(M)CAPARD'!AT124=\"\",\"\",'[1]MONE(M)CAPARD'!AT124)","v":"n.a."},{"$f":"IF('[1]MONE(M)CAPARD'!AU124=\"\",\"\",'[1]MONE(M)CAPARD'!AU124)","v":"n.d."},{"$f":"IF('[1]MONE(M)CAPARD'!AV124=\"\",\"\",'[1]MONE(M)CAPARD'!AV124)","v":"n.d."},{"$f":"IF('[1]MONE(M)CAPARD'!AW124=\"\",\"\",'[1]MONE(M)CAPARD'!AW124)","v":"n.a."},{"$f":"IF('[1]MONE(M)CAPARD'!AX124=\"\",\"\",'[1]MONE(M)CAPARD'!AX124)","v":"n.d."},{"$f":"IF('[1]MONE(M)CAPARD'!AY124=\"\",\"\",'[1]MONE(M)CAPARD'!AY124)","v":"n.a."},{"$f":"IF('[1]FISCAL(M)'!$K124=\"\",\"\",'[1]FISCAL(M)'!$K124)","v":"n.d."},{"$f":"IF('[1]FISCAL(M)'!$L124=\"\",\"\",'[1]FISCAL(M)'!$L124)","v":"n.d."},{"$f":"IF('[1]FISCAL(M)'!$AY124=\"\",\"\",'[1]FISCAL(M)'!$AY124)","v":"n.d."},{"$f":"IF('[1]FISCAL(M)'!$BI124=\"\",\"\",'[1]FISCAL(M)'!$BI124)","v":"n.d."},{"$f":"IF('[1]FISCAL(M)'!$BS124=\"\",\"\",'[1]FISCAL(M)'!$BS124)","v":"n.d."},{"$f":"IF('[1]FISCAL(M)'!$AZ124=\"\",\"\",'[1]FISCAL(M)'!$AZ124)","v":"n.d."},{"$f":"IF('[1]FISCAL(M)'!$BJ124=\"\",\"\",'[1]FISCAL(M)'!$BJ124)","v":"n.d."},{"$f":"IF('[1]FISCAL(M)'!$BT124=\"\",\"\",'[1]FISCAL(M)'!$BT124)","v":"n.d."},{"$f":"IF('[2]MONE(M)'!$AO124=\"\",\"\",'[2]MONE(M)'!$AO124)","v":"n.d."},{"$f":"IF('[3]MONE(M)'!$AO124=\"\",\"\",'[3]MONE(M)'!$AO124)","v":"n.d."},{"$f":"IF('[4]MONE(M)'!$AO124=\"\",\"\",'[4]MONE(M)'!$AO124)","v":"n.d."},{"$f":"+'[5]MONE(M)'!$AO124","v":"n.d."},{"$f":"IF('[6]MONE(M)'!$AO124=\"\",\"\",'[6]MONE(M)'!$AO124)","v":"n.d."},{"$f":"IF('[7]MONE(M)'!$AO124=\"\",\"\",'[7]MONE(M)'!$AO124)","v":"n.d."},{"$f":"IF('[8]MONE(M)'!$AO124=\"\",\"\",'[8]MONE(M)'!$AO124)","v":"n.d."},"n.d.","n.d.","n.d.","n.d.","n.d.","n.d.","n.d.",{"$f":"IF('[1]FISCAL(M)'!$K124=\"\",\"\",'[1]FISCAL(M)'!$K124)","v":"n.d."},"n.d.","n.d.",{"$f":"IF('[1]FISCAL(M)'!$L124=\"\",\"\",'[1]FISCAL(M)'!$L124)","v":"n.d."},"n.d.","n.d.","n.d.","n.d.","n.d.","n.d.","n.d.","n.d.","n.d.","n.d.","n.d.","n.d.","n.d.","n.d.","n.d.","n.d.","n.d.","n.d."]
[1999,"agosto","1999-agosto",{"$f":"IF('[1]REAL IPC(M)'!$AL125=\"\",\"\",+'[1]REAL IPC(M)'!$AL125)","v":5.9173334621897666},{"$f":"IF('[1]REAL IPC(M)'!$BE125=\"\",\"\",+'[1]REAL IPC(M)'!$BE125)","v":6.7045198301420861},{"$f":"IF('[1]REAL IPC(M)'!$AM125=\"\",\"\",+'[1]REAL IPC(M)'!$AM125)","v":5.4729559660980254},{"$f":"IF('[1]REAL IPC(M)'!$BI125=\"\",\"\",+'[1]REAL IPC(M)'!$BI125)","v":6.165620581081388},{"$f":"IF('[1]REAL IMAE(M)'!BJ125=\"\",\"\",'[1]REAL IMAE(M)'!BJ125)","v":"n.d."},{"$f":"IF('[1]REAL IMAE(M)'!BK125=\"\",\"\",'[1]REAL IMAE(M)'!BK125)","v":"n.d."},{"$f":"IF('[1]REAL IMAE(M)'!BN125=\"\",\"\",'[1]REAL IMAE(M)'!BN125)","v":"n.d."},{"$f":"IF('[1]REAL IMAE(M)'!BO125=\"\",\"\",'[1]REAL IMAE(M)'!BO125)","v":"n.d."},{"$f":"IF('[1]EXT RIN(M)'!$K125=\"\",\"\",'[1]EXT RIN(M)'!$K125)","v":"n.d."},"",{"$f":"IF('[1]EXT RIN(M)'!$L125=\"\",\"\",'[1]EXT RIN(M)'!$L125)","v":"n.d."},"",{"$f":"IF('[1]MONE(M)CARD'!EG125=\"\",\"\",'[1]MONE(M)CARD'!EG125)","v":"n.d."},{"$f":"IF('[1]MONE(M)CARD'!EK125=\"\",\"\",'[1]MONE(M)CARD'!EK125)","v":"n.d."},{"$f":"IF('[1]MONE(M)CARD'!EP125=\"\",\"\",'[1]MONE(M)CARD'!EP125)","v":"n.d."},{"$f":"IF('[1]MONE(M)CARD'!ES125=\"\",\"\",'[1]MONE(M)CARD'!ES125)","v":"n.d."},{"$f":"IF('[1]MONE(M)CARD'!EV125=\"\",\"\",'[1]MONE(M)CARD'!EV125)","v":"n.d."},{"$f":"IF('[1]MONE(M)CARD'!EZ125=\"\",\"\",'[1]MONE(M)CARD'!EZ125)","v":"n.d."},{"$f":"IF('[1]MONE(M)CAPARD'!FC125=\"\",\"\",'[1]MONE(M)CAPARD'!FC125)","v":"n.d."},{"$f":"IF('[1]MONE(M)CAPARD'!FG125=\"\",\"\",'[1]MONE(M)CAPARD'!FG125)","v":"n.d."},{"$f":"IF('[1]MONE(M)CAPARD'!FL125=\"\",\"\",'[1]MONE(M)CAPARD'!FL125)","v":"n.d."},{"$f":"IF('[1]MONE(M)CAPARD'!FO125=\"\",\"\",'[1]MONE(M)CAPARD'!FO125)","v":"n.d."},{"$f":"IF('[1]MONE(M)CAPARD'!FR125=\"\",\"\",'[1]MONE(M)CAPARD'!FR125)","v":"n.d."},{"$f":"IF('[1]MONE(M)CAPARD'!FV125=\"\",\"\",'[1]MONE(M)CAPARD'!FV125)","v":"n.d."},{"$f":"IF('[1]MONE(M)CARD'!FV125=\"\",\"\",'[1]MONE(M)CARD'!FV125)","v":""},{"$f":"IF('[1]MONE(M)CARD'!GD125=\"\",\"\",'[1]MONE(M)CARD'!GD125)","v":"n.d."},{"$f":"IF('[1]MONE(M)CARD'!GE125=\"\",\"\",'[1]MONE(M)CARD'!GE125)","v":"n.d."},"n.d.","n.d.","n.d.","n.d.","n.d.","n.d.","n.d.","n.d.",null,"n.d.","n.d.","n.d.","n.d.","n.d.",{"$f":"IF('[1]MONE(M)CAPARD'!GS125=\"\",\"\",'[1]MONE(M)CAPARD'!GS125)","v":"n.d."},{"$f":"IF('[1]MONE(M)CARD'!HA125=\"\",\"\",'[1]MONE(M)CAPARD'!HA125)","v":"n.d."},{"$f":"IF('[1]MONE(M)CAPARD'!HB125=\"\",\"\",'[1]MONE(M)CAPARD'!HB125)","v":"n.d."},"n.d.","n.d.","n.d.","n.d.","n.d.","n.d.","n.d.","n.d.","n.d.","n.d.","n.d.","n.d.","n.d.","n.d.",{"$f":"IF('[1]MONE(M)CAPARD'!AS125=\"\",\"\",'[1]MONE(M)CAPARD'!AS125)","v":"n.d."},{"$f":"IF('[1]MONE(M)CAPARD'!AT125=\"\",\"\",'[1]MONE(M)CAPARD'!AT125)","v":"n.a."},{"$f":"IF('[1]MONE(M)CAPARD'!AU125=\"\",\"\",'[1]MONE(M)CAPARD'!AU125)","v":"n.d."},{"$f":"IF('[1]MONE(M)CAPARD'!AV125=\"\",\"\",'[1]MONE(M)CAPARD'!AV125)","v":"n.d."},{"$f":"IF('[1]MONE(M)CAPARD'!AW125=\"\",\"\",'[1]MONE(M)CAPARD'!AW125)","v":"n.a."},{"$f":"IF('[1]MONE(M)CAPARD'!AX125=\"\",\"\",'[1]MONE(M)CAPARD'!AX125)","v":"n.d."},{"$f":"IF('[1]MONE(M)CAPARD'!AY125=\"\",\"\",'[1]MONE(M)CAPARD'!AY125)","v":"n.a."},{"$f":"IF('[1]FISCAL(M)'!$K125=\"\",\"\",'[1]FISCAL(M)'!$K125)","v":"n.d."},{"$f":"IF('[1]FISCAL(M)'!$L125=\"\",\"\",'[1]FISCAL(M)'!$L125)","v":"n.d."},{"$f":"IF('[1]FISCAL(M)'!$AY125=\"\",\"\",'[1]FISCAL(M)'!$AY125)","v":"n.d."},{"$f":"IF('[1]FISCAL(M)'!$BI125=\"\",\"\",'[1]FISCAL(M)'!$BI125)","v":"n.d."},{"$f":"IF('[1]FISCAL(M)'!$BS125=\"\",\"\",'[1]FISCAL(M)'!$BS125)","v":"n.d."},{"$f":"IF('[1]FISCAL(M)'!$AZ125=\"\",\"\",'[1]FISCAL(M)'!$AZ125)","v":"n.d."},{"$f":"IF('[1]FISCAL(M)'!$BJ125=\"\",\"\",'[1]FISCAL(M)'!$BJ125)","v":"n.d."},{"$f":"IF('[1]FISCAL(M)'!$BT125=\"\",\"\",'[1]FISCAL(M)'!$BT125)","v":"n.d."},{"$f":"IF('[2]MONE(M)'!$AO125=\"\",\"\",'[2]MONE(M)'!$AO125)","v":"n.d."},{"$f":"IF('[3]MONE(M)'!$AO125=\"\",\"\",'[3]MONE(M)'!$AO125)","v":"n.d."},{"$f":"IF('[4]MONE(M)'!$AO125=\"\",\"\",'[4]MONE(M)'!$AO125)","v":"n.d."},{"$f":"+'[5]MONE(M)'!$AO125","v":"n.d."},{"$f":"IF('[6]MONE(M)'!$AO125=\"\",\"\",'[6]MONE(M)'!$AO125)","v":"n.d."},{"$f":"IF('[7]MONE(M)'!$AO125=\"\",\"\",'[7]MONE(M)'!$AO125)","v":"n.d."},{"$f":"IF('[8]MONE(M)'!$AO125=\"\",\"\",'[8]MONE(M)'!$AO125)","v":"n.d."},"n.d.","n.d.","n.d.","n.d.","n.d.","n.d.","n.d.",{"$f":"IF('[1]FISCAL(M)'!$K125=\"\",\"\",'[1]FISCAL(M)'!$K125)","v":"n.d."},"n.d.","n.d.",{"$f":"IF('[1]FISCAL(M)'!$L125=\"\",\"\",'[1]FISCAL(M)'!$L125)","v":"n.d."},"n.d.","n.d.","n.d.","n.d.","n.d.","n.d.","n.d.","n.d.","n.d.","n.d.","n.d.","n.d.","n.d.","n.d.","n.d.","n.d.","n.d.","n.d."]
[1999,"septiembre","1999-septiembre",{"$f":"IF('[1]REAL IPC(M)'!$AL126=\"\",\"\",+'[1]REAL IPC(M)'!$AL126)","v":6.5540252569947555},{"$f":"IF('[1]REAL IPC(M)'!$BE126=\"\",\"\",+'[1]REAL IPC(M)'!$BE126)","v":6.6928972866933778},{"$f":"IF('[1]REAL IPC(M)'!$AM126=\"\",\"\",+'[1]REAL IPC(M)'!$AM126)","v":5.9922050171073105},{"$f":"IF('[1]REAL IPC(M)'!$BI126=\"\",\"\",+'[1]REAL IPC(M)'!$BI126)","v":6.1539602645143132},{"$f":"IF('[1]REAL IMAE(M)'!BJ126=\"\",\"\",'[1]REAL IMAE(M)'!BJ126)","v":"n.d."},{"$f":"IF('[1]REAL IMAE(M)'!BK126=\"\",\"\",'[1]REAL IMAE(M)'!BK126)","v":"n.d."},{"$f":"IF('[1]REAL IMAE(M)'!BN126=\"\",\"\",'[1]REAL IMAE(M)'!BN126)","v":"n.d."},{"$f":"IF('[1]REAL IMAE(M)'!BO126=\"\",\"\",'[1]REAL IMAE(M)'!BO126)","v":"n.d."},{"$f":"IF('[1]EXT RIN(M)'!$K126=\"\",\"\",'[1]EXT RIN(M)'!$K126)","v":"n.d."},"",{"$f":"IF('[1]EXT RIN(M)'!$L126=\"\",\"\",'[1]EXT RIN(M)'!$L126)","v":"n.d."},"",{"$f":"IF('[1]MONE(M)CARD'!EG126=\"\",\"\",'[1]MONE(M)CARD'!EG126)","v":"n.d."},{"$f":"IF('[1]MONE(M)CARD'!EK126=\"\",\"\",'[1]MONE(M)CARD'!EK126)","v":"n.d."},{"$f":"IF('[1]MONE(M)CARD'!EP126=\"\",\"\",'[1]MONE(M)CARD'!EP126)","v":"n.d."},{"$f":"IF('[1]MONE(M)CARD'!ES126=\"\",\"\",'[1]MONE(M)CARD'!ES126)","v":"n.d."},{"$f":"IF('[1]MONE(M)CARD'!EV126=\"\",\"\",'[1]MONE(M)CARD'!EV126)","v":"n.d."},{"$f":"IF('[1]MONE(M)CARD'!EZ126=\"\",\"\",'[1]MONE(M)CARD'!EZ126)","v":"n.d."},{"$f":"IF('[1]MONE(M)CAPARD'!FC126=\"\",\"\",'[1]MONE(M)CAPARD'!FC126)","v":"n.d."},{"$f":"IF('[1]MONE(M)CAPARD'!FG126=\"\",\"\",'[1]MONE(M)CAPARD'!FG126)","v":"n.d."},{"$f":"IF('[1]MONE(M)CAPARD'!FL126=\"\",\"\",'[1]MONE(M)CAPARD'!FL126)","v":"n.d."},{"$f":"IF('[1]MONE(M)CAPARD'!FO126=\"\",\"\",'[1]MONE(M)CAPARD'!FO126)","v":"n.d."},{"$f":"IF('[1]MONE(M)CAPARD'!FR126=\"\",\"\",'[1]MONE(M)CAPARD'!FR126)","v":"n.d."},{"$f":"IF('[1]MONE(M)CAPARD'!FV126=\"\",\"\",'[1]MONE(M)CAPARD'!FV126)","v":"n.d."},{"$f":"IF('[1]MONE(M)CARD'!FV126=\"\",\"\",'[1]MONE(M)CARD'!FV126)","v":""},{"$f":"IF('[1]MONE(M)CARD'!GD126=\"\",\"\",'[1]MONE(M)CARD'!GD126)","v":"n.d."},{"$f":"IF('[1]MONE(M)CARD'!GE126=\"\",\"\",'[1]MONE(M)CARD'!GE126)","v":"n.d."},"n.d.","n.d.","n.d.","n.d.","n.d.","n.d.","n.d.","n.d.",null,"n.d.","n.d.","n.d.","n.d.","n.d.",{"$f":"IF('[1]MONE(M)CAPARD'!GS126=\"\",\"\",'[1]MONE(M)CAPARD'!GS126)","v":"n.d."},{"$f":"IF('[1]MONE(M)CARD'!HA126=\"\",\"\",'[1]MONE(M)CAPARD'!HA126)","v":"n.d."},{"$f":"IF('[1]MONE(M)CAPARD'!HB126=\"\",\"\",'[1]MONE(M)CAPARD'!HB126)","v":"n.d."},"n.d.","n.d.","n.d.","n.d.","n.d.","n.d.","n.d.","n.d.","n.d.","n.d.","n.d.","n.d.","n.d.","n.d.",{"$f":"IF('[1]MONE(M)CAPARD'!AS126=\"\",\"\",'[1]MONE(M)CAPARD'!AS126)","v":"n.d."},{"$f":"IF('[1]MONE(M)CAPARD'!AT126=\"\",\"\",'[1]MONE(M)CAPARD'!AT126)","v":"n.a."},{"$f":"IF('[1]MONE(M)CAPARD'!AU126=\"\",\"\",'[1]MONE(M)CAPARD'!AU126)","v":"n.d."},{"$f":"IF('[1]MONE(M)CAPARD'!AV126=\"\",\"\",'[1]MONE(M)CAPARD'!AV126)","v":"n.d."},{"$f":"IF('[1]MONE(M)CAPARD'!AW126=\"\",\"\",'[1]MONE(M)CAPARD'!AW126)","v":"n.a."},{"$f":"IF('[1]MONE(M)CAPARD'!AX126=\"\",\"\",'[1]MONE(M)CAPARD'!AX126)","v":"n.d."},{"$f":"IF('[1]MONE(M)CAPARD'!AY126=\"\",\"\",'[1]MONE(M)CAPARD'!AY126)","v":"n.a."},{"$f":"IF('[1]FISCAL(M)'!$K126=\"\",\"\",'[1]FISCAL(M)'!$K126)","v":"n.d."},{"$f":"IF('[1]FISCAL(M)'!$L126=\"\",\"\",'[1]FISCAL(M)'!$L126)","v":"n.d."},{"$f":"IF('[1]FISCAL(M)'!$AY126=\"\",\"\",'[1]FISCAL(M)'!$AY126)","v":"n.d."},{"$f":"IF('[1]FISCAL(M)'!$BI126=\"\",\"\",'[1]FISCAL(M)'!$BI126)","v":"n.d."},{"$f":"IF('[1]FISCAL(M)'!$BS126=\"\",\"\",'[1]FISCAL(M)'!$BS126)","v":"n.d."},{"$f":"IF('[1]FISCAL(M)'!$AZ126=\"\",\"\",'[1]FISCAL(M)'!$AZ126)","v":"n.d."},{"$f":"IF('[1]FISCAL(M)'!$BJ126=\"\",\"\",'[1]FISCAL(M)'!$BJ126)","v":"n.d."},{"$f":"IF('[1]FISCAL(M)'!$BT126=\"\",\"\",'[1]FISCAL(M)'!$BT126)","v":"n.d."},{"$f":"IF('[2]MONE(M)'!$AO126=\"\",\"\",'[2]MONE(M)'!$AO126)","v":"n.d."},{"$f":"IF('[3]MONE(M)'!$AO126=\"\",\"\",'[3]MONE(M)'!$AO126)","v":"n.d."},{"$f":"IF('[4]MONE(M)'!$AO126=\"\",\"\",'[4]MONE(M)'!$AO126)","v":"n.d."},{"$f":"+'[5]MONE(M)'!$AO126","v":"n.d."},{"$f":"IF('[6]MONE(M)'!$AO126=\"\",\"\",'[6]MONE(M)'!$AO126)","v":"n.d."},{"$f":"IF('[7]MONE(M)'!$AO126=\"\",\"\",'[7]MONE(M)'!$AO126)","v":"n.d."},{"$f":"IF('[8]MONE(M)'!$AO126=\"\",\"\",'[8]MONE(M)'!$AO126)","v":"n.d."},"n.d.","n.d.","n.d.","n.d.","n.d.","n.d.","n.d.",{"$f":"IF('[1]FISCAL(M)'!$K126=\"\",\"\",'[1]FISCAL(M)'!$K126)","v":"n.d."},"n.d.","n.d.",{"$f":"IF('[1]FISCAL(M)'!$L126=\"\",\"\",'[1]FISCAL(M)'!$L126)","v":"n.d."},"n.d.","n.d.","n.d.","n.d.","n.d.","n.d.","n.d.","n.d.","n.d.","n.d.","n.d.","n.d.","n.d.","n.d.","n.d.","n.d.","n.d.","n.d."]
[1999,"octubre","1999-octubre",{"$f":"IF('[1]REAL IPC(M)'!$AL127=\"\",\"\",+'[1]REAL IPC(M)'!$AL127)","v":7.3887401961435728},{"$f":"IF('[1]REAL IPC(M)'!$BE127=\"\",\"\",+'[1]REAL IPC(M)'!$BE127)","v":6.6868075885468725},{"$f":"IF('[1]REAL IPC(M)'!$AM127=\"\",\"\",+'[1]REAL IPC(M)'!$AM127)","v":6.7349729733818364},{"$f":"IF('[1]REAL IPC(M)'!$BI127=\"\",\"\",+'[1]REAL IPC(M)'!$BI127)","v":6.1472104274693518},{"$f":"IF('[1]REAL IMAE(M)'!BJ127=\"\",\"\",'[1]REAL IMAE(M)'!BJ127)","v":"n.d."},{"$f":"IF('[1]REAL IMAE(M)'!BK127=\"\",\"\",'[1]REAL IMAE(M)'!BK127)","v":"n.d."},{"$f":"IF('[1]REAL IMAE(M)'!BN127=\"\",\"\",'[1]REAL IMAE(M)'!BN127)","v":"n.d."},{"$f":"IF('[1]REAL IMAE(M)'!BO127=\"\",\"\",'[1]REAL IMAE(M)'!BO127)","v":"n.d."},{"$f":"IF('[1]EXT RIN(M)'!$K127=\"\",\"\",'[1]EXT RIN(M)'!$K127)","v":"n.d."},"",{"$f":"IF('[1]EXT RIN(M)'!$L127=\"\",\"\",'[1]EXT RIN(M)'!$L127)","v":"n.d."},"",{"$f":"IF('[1]MONE(M)CARD'!EG127=\"\",\"\",'[1]MONE(M)CARD'!EG127)","v":"n.d."},{"$f":"IF('[1]MONE(M)CARD'!EK127=\"\",\"\",'[1]MONE(M)CARD'!EK127)","v":"n.d."},{"$f":"IF('[1]MONE(M)CARD'!EP127=\"\",\"\",'[1]MONE(M)CARD'!EP127)","v":"n.d."},{"$f":"IF('[1]MONE(M)CARD'!ES127=\"\",\"\",'[1]MONE(M)CARD'!ES127)","v":"n.d."},{"$f":"IF('[1]MONE(M)CARD'!EV127=\"\",\"\",'[1]MONE(M)CARD'!EV127)","v":"n.d."},{"$f":"IF('[1]MONE(M)CARD'!EZ127=\"\",\"\",'[1]MONE(M)CARD'!EZ127)","v":"n.d."},{"$f":"IF('[1]MONE(M)CAPARD'!FC127=\"\",\"\",'[1]MONE(M)CAPARD'!FC127)","v":"n.d."},{"$f":"IF('[1]MONE(M)CAPARD'!FG127=\"\",\"\",'[1]MONE(M)CAPARD'!FG127)","v":"n.d."},{"$f":"IF('[1]MONE(M)CAPARD'!FL127=\"\",\"\",'[1]MONE(M)CAPARD'!FL127)","v":"n.d."},{"$f":"IF('[1]MONE(M)CAPARD'!FO127=\"\",\"\",'[1]MONE(M)CAPARD'!FO127)","v":"n.d."},{"$f":"IF('[1]MONE(M)CAPARD'!FR127=\"\",\"\",'[1]MONE(M)CAPARD'!FR127)","v":"n.d."},{"$f":"IF('[1]MONE(M)CAPARD'!FV127=\"\",\"\",'[1]MONE(M)CAPARD'!FV127)","v":"n.d."},{"$f":"IF('[1]MONE(M)CARD'!FV127=\"\",\"\",'[1]MONE(M)CARD'!FV127)","v":""},{"$f":"IF('[1]MONE(M)CARD'!GD127=\"\",\"\",'[1]MONE(M)CARD'!GD127)","v":"n.d."},{"$f":"IF('[1]MONE(M)CARD'!GE127=\"\",\"\",'[1]MONE(M)CARD'!GE127)","v":"n.d."},"n.d.","n.d.","n.d.","n.d.","n.d.","n.d.","n.d.","n.d.",null,"n.d.","n.d.","n.d.","n.d.","n.d.",{"$f":"IF('[1]MONE(M)CAPARD'!GS127=\"\",\"\",'[1]MONE(M)CAPARD'!GS127)","v":"n.d."},{"$f":"IF('[1]MONE(M)CARD'!HA127=\"\",\"\",'[1]MONE(M)CAPARD'!HA127)","v":"n.d."},{"$f":"IF('[1]MONE(M)CAPARD'!HB127=\"\",\"\",'[1]MONE(M)CAPARD'!HB127)","v":"n.d."},"n.d.","n.d.","n.d.","n.d.","n.d.","n.d.","n.d.","n.d.","n.d.","n.d.","n.d.","n.d.","n.d.","n.d.",{"$f":"IF('[1]MONE(M)CAPARD'!AS127=\"\",\"\",'[1]MONE(M)CAPARD'!AS127)","v":"n.d."},{"$f":"IF('[1]MONE(M)CAPARD'!AT127=\"\",\"\",'[1]MONE(M)CAPARD'!AT127)","v":"n.a."},{"$f":"IF('[1]MONE(M)CAPARD'!AU127=\"\",\"\",'[1]MONE(M)CAPARD'!AU127)","v":"n.d."},{"$f":"IF('[1]MONE(M)CAPARD'!AV127=\"\",\"\",'[1]MONE(M)CAPARD'!AV127)","v":"n.d."},{"$f":"IF('[1]MONE(M)CAPARD'!AW127=\"\",\"\",'[1]MONE(M)CAPARD'!AW127)","v":"n.a."},{"$f":"IF('[1]MONE(M)CAPARD'!AX127=\"\",\"\",'[1]MONE(M)CAPARD'!AX127)","v":"n.d."},{"$f":"IF('[1]MONE(M)CAPARD'!AY127=\"\",\"\",'[1]MONE(M)CAPARD'!AY127)","v":"n.a."},{"$f":"IF('[1]FISCAL(M)'!$K127=\"\",\"\",'[1]FISCAL(M)'!$K127)","v":"n.d."},{"$f":"IF('[1]FISCAL(M)'!$L127=\"\",\"\",'[1]FISCAL(M)'!$L127)","v":"n.d."},{"$f":"IF('[1]FISCAL(M)'!$AY127=\"\",\"\",'[1]FISCAL(M)'!$AY127)","v":"n.d."},{"$f":"IF('[1]FISCAL(M)'!$BI127=\"\",\"\",'[1]FISCAL(M)'!$BI127)","v":"n.d."},{"$f":"IF('[1]FISCAL(M)'!$BS127=\"\",\"\",'[1]FISCAL(M)'!$BS127)","v":"n.d."},{"$f":"IF('[1]FISCAL(M)'!$AZ127=\"\",\"\",'[1]FISCAL(M)'!$AZ127)","v":"n.d."},{"$f":"IF('[1]FISCAL(M)'!$BJ127=\"\",\"\",'[1]FISCAL(M)'!$BJ127)","v":"n.d."},{"$f":"IF('[1]FISCAL(M)'!$BT127=\"\",\"\",'[1]FISCAL(M)'!$BT127)","v":"n.d."},{"$f":"IF('[2]MONE(M)'!$AO127=\"\",\"\",'[2]MONE(M)'!$AO127)","v":"n.d."},{"$f":"IF('[3]MONE(M)'!$AO127=\"\",\"\",'[3]MONE(M)'!$AO127)","v":"n.d."},{"$f":"IF('[4]MONE(M)'!$AO127=\"\",\"\",'[4]MONE(M)'!$AO127)","v":"n.d."},{"$f":"+'[5]MONE(M)'!$AO127","v":"n.d."},{"$f":"IF('[6]MONE(M)'!$AO127=\"\",\"\",'[6]MONE(M)'!$AO127)","v":"n.d."},{"$f":"IF('[7]MONE(M)'!$AO127=\"\",\"\",'[7]MONE(M)'!$AO127)","v":"n.d."},{"$f":"IF('[8]MONE(M)'!$AO127=\"\",\"\",'[8]MONE(M)'!$AO127)","v":"n.d."},"n.d.","n.d.","n.d.","n.d.","n.d.","n.d.","n.d.",{"$f":"IF('[1]FISCAL(M)'!$K127=\"\",\"\",'[1]FISCAL(M)'!$K127)","v":"n.d."},"n.d.","n.d.",{"$f":"IF('[1]FISCAL(M)'!$L127=\"\",\"\",'[1]FISCAL(M)'!$L127)","v":"n.d."},"n.d.","n.d.","n.d.","n.d.","n.d.","n.d.","n.d.","n.d.","n.d.","n.d.","n.d.","n.d.","n.d.","n.d.","n.d.","n.d.","n.d.","n.d."]
[1999,"noviembre","1999-noviembre",{"$f":"IF('[1]REAL IPC(M)'!$AL128=\"\",\"\",+'[1]REAL IPC(M)'!$AL128)","v":5.7114012674599923},{"$f":"IF('[1]REAL IPC(M)'!$BE128=\"\",\"\",+'[1]REAL IPC(M)'!$BE128)","v":6.685964229179775},{"$f":"IF('[1]REAL IPC(M)'!$AM128=\"\",\"\",+'[1]REAL IPC(M)'!$AM128)","v":5.2419945125573797},{"$f":"IF('[1]REAL IPC(M)'!$BI128=\"\",\"\",+'[1]REAL IPC(M)'!$BI128)","v":6.1450611922070353},{"$f":"IF('[1]REAL IMAE(M)'!BJ128=\"\",\"\",'[1]REAL IMAE(M)'!BJ128)","v":"n.d."},{"$f":"IF('[1]REAL IMAE(M)'!BK128=\"\",\"\",'[1]REAL IMAE(M)'!BK128)","v":"n.d."},{"$f":"IF('[1]REAL IMAE(M)'!BN128=\"\",\"\",'[1]REAL IMAE(M)'!BN128)","v":"n.d."},{"$f":"IF('[1]REAL IMAE(M)'!BO128=\"\",\"\",'[1]REAL IMAE(M)'!BO128)","v":"n.d."},{"$f":"IF('[1]EXT RIN(M)'!$K128=\"\",\"\",'[1]EXT RIN(M)'!$K128)","v":"n.d."},"",{"$f":"IF('[1]EXT RIN(M)'!$L128=\"\",\"\",'[1]EXT RIN(M)'!$L128)","v":"n.d."},"",{"$f":"IF('[1]MONE(M)CARD'!EG128=\"\",\"\",'[1]MONE(M)CARD'!EG128)","v":"n.d."},{"$f":"IF('[1]MONE(M)CARD'!EK128=\"\",\"\",'[1]MONE(M)CARD'!EK128)","v":"n.d."},{"$f":"IF('[1]MONE(M)CARD'!EP128=\"\",\"\",'[1]MONE(M)CARD'!EP128)","v":"n.d."},{"$f":"IF('[1]MONE(M)CARD'!ES128=\"\",\"\",'[1]MONE(M)CARD'!ES128)","v":"n.d."},{"$f":"IF('[1]MONE(M)CARD'!EV128=\"\",\"\",'[1]MONE(M)CARD'!EV128)","v":"n.d."},{"$f":"IF('[1]MONE(M)CARD'!EZ128=\"\",\"\",'[1]MONE(M)CARD'!EZ128)","v":"n.d."},{"$f":"IF('[1]MONE(M)CAPARD'!FC128=\"\",\"\",'[1]MONE(M)CAPARD'!FC128)","v":"n.d."},{"$f":"IF('[1]MONE(M)CAPARD'!FG128=\"\",\"\",'[1]MONE(M)CAPARD'!FG128)","v":"n.d."},{"$f":"IF('[1]MONE(M)CAPARD'!FL128=\"\",\"\",'[1]MONE(M)CAPARD'!FL128)","v":"n.d."},{"$f":"IF('[1]MONE(M)CAPARD'!FO128=\"\",\"\",'[1]MONE(M)CAPARD'!FO128)","v":"n.d."},{"$f":"IF('[1]MONE(M)CAPARD'!FR128=\"\",\"\",'[1]MONE(M)CAPARD'!FR128)","v":"n.d."},{"$f":"IF('[1]MONE(M)CAPARD'!FV128=\"\",\"\",'[1]MONE(M)CAPARD'!FV128)","v":"n.d."},{"$f":"IF('[1]MONE(M)CARD'!FV128=\"\",\"\",'[1]MONE(M)CARD'!FV128)","v":""},{"$f":"IF('[1]MONE(M)CARD'!GD128=\"\",\"\",'[1]MONE(M)CARD'!GD128)","v":"n.d."},{"$f":"IF('[1]MONE(M)CARD'!GE128=\"\",\"\",'[1]MONE(M)CARD'!GE128)","v":"n.d."},"n.d.","n.d.","n.d.","n.d.","n.d.","n.d.","n.d.","n.d.",null,"n.d.","n.d.","n.d.","n.d.","n.d.",{"$f":"IF('[1]MONE(M)CAPARD'!GS128=\"\",\"\",'[1]MONE(M)CAPARD'!GS128)","v":"n.d."},{"$f":"IF('[1]MONE(M)CARD'!HA128=\"\",\"\",'[1]MONE(M)CAPARD'!HA128)","v":"n.d."},{"$f":"IF('[1]MONE(M)CAPARD'!HB128=\"\",\"\",'[1]MONE(M)CAPARD'!HB128)","v":"n.d."},"n.d.","n.d.","n.d.","n.d.","n.d.","n.d.","n.d.","n.d.","n.d.","n.d.","n.d.","n.d.","n.d.","n.d.",{"$f":"IF('[1]MONE(M)CAPARD'!AS128=\"\",\"\",'[1]MONE(M)CAPARD'!AS128)","v":"n.d."},{"$f":"IF('[1]MONE(M)CAPARD'!AT128=\"\",\"\",'[1]MONE(M)CAPARD'!AT128)","v":"n.a."},{"$f":"IF('[1]MONE(M)CAPARD'!AU128=\"\",\"\",'[1]MONE(M)CAPARD'!AU128)","v":"n.d."},{"$f":"IF('[1]MONE(M)CAPARD'!AV128=\"\",\"\",'[1]MONE(M)CAPARD'!AV128)","v":"n.d."},{"$f":"IF('[1]MONE(M)CAPARD'!AW128=\"\",\"\",'[1]MONE(M)CAPARD'!AW128)","v":"n.a."},{"$f":"IF('[1]MONE(M)CAPARD'!AX128=\"\",\"\",'[1]MONE(M)CAPARD'!AX128)","v":"n.d."},{"$f":"IF('[1]MONE(M)CAPARD'!AY128=\"\",\"\",'[1]MONE(M)CAPARD'!AY128)","v":"n.a."},{"$f":"IF('[1]FISCAL(M)'!$K128=\"\",\"\",'[1]FISCAL(M)'!$K128)","v":"n.d."},{"$f":"IF('[1]FISCAL(M)'!$L128=\"\",\"\",'[1]FISCAL(M)'!$L128)","v":"n.d."},{"$f":"IF('[1]FISCAL(M)'!$AY128=\"\",\"\",'[1]FISCAL(M)'!$AY128)","v":"n.d."},{"$f":"IF('[1]FISCAL(M)'!$BI128=\"\",\"\",'[1]FISCAL(M)'!$BI128)","v":"n.d."},{"$f":"IF('[1]FISCAL(M)'!$BS128=\"\",\"\",'[1]FISCAL(M)'!$BS128)","v":"n.d."},{"$f":"IF('[1]FISCAL(M)'!$AZ128=\"\",\"\",'[1]FISCAL(M)'!$AZ128)","v":"n.d."},{"$f":"IF('[1]FISCAL(M)'!$BJ128=\"\",\"\",'[1]FISCAL(M)'!$BJ128)","v":"n.d."},{"$f":"IF('[1]FISCAL(M)'!$BT128=\"\",\"\",'[1]FISCAL(M)'!$BT128)","v":"n.d."},{"$f":"IF('[2]MONE(M)'!$AO128=\"\",\"\",'[2]MONE(M)'!$AO128)","v":"n.d."},{"$f":"IF('[3]MONE(M)'!$AO128=\"\",\"\",'[3]MONE(M)'!$AO128)","v":"n.d."},{"$f":"IF('[4]MONE(M)'!$AO128=\"\",\"\",'[4]MONE(M)'!$AO128)","v":"n.d."},{"$f":"+'[5]MONE(M)'!$AO128","v":"n.d."},{"$f":"IF('[6]MONE(M)'!$AO128=\"\",\"\",'[6]MONE(M)'!$AO128)","v":"n.d."},{"$f":"IF('[7]MONE(M)'!$AO128=\"\",\"\",'[7]MONE(M)'!$AO128)","v":"n.d."},{"$f":"IF('[8]MONE(M)'!$AO128=\"\",\"\",'[8]MONE(M)'!$AO128)","v":"n.d."},"n.d.","n.d.","n.d.","n.d.","n.d.","n.d.","n.d.",{"$f":"IF('[1]FISCAL(M)'!$K128=\"\",\"\",'[1]FISCAL(M)'!$K128)","v":"n.d."},"n.d.","n.d.",{"$f":"IF('[1]FISCAL(M)'!$L128=\"\",\"\",'[1]FISCAL(M)'!$L128)","v":"n.d."},"n.d.","n.d.","n.d.","n.d.","n.d.","n.d.","n.d.","n.d.","n.d.","n.d.","n.d.","n.d.","n.d.","n.d.","n.d.","n.d.","n.d.","n.d."]
[1999,"diciembre","1999-diciembre",{"$f":"IF('[1]REAL IPC(M)'!$AL129=\"\",\"\",+'[1]REAL IPC(M)'!$AL129)","v":5.3907829077463276},{"$f":"IF('[1]REAL IPC(M)'!$BE129=\"\",\"\",+'[1]REAL IPC(M)'!$BE129)","v":6.690121963720097},{"$f":"IF('[1]REAL IPC(M)'!$AM129=\"\",\"\",+'[1]REAL IPC(M)'!$AM129)","v":5.0066979703641712},{"$f":"IF('[1]REAL IPC(M)'!$BI129=\"\",\"\",+'[1]REAL IPC(M)'!$BI129)","v":6.1472425591423185},{"$f":"IF('[1]REAL IMAE(M)'!BJ129=\"\",\"\",'[1]REAL IMAE(M)'!BJ129)","v":"n.d."},{"$f":"IF('[1]REAL IMAE(M)'!BK129=\"\",\"\",'[1]REAL IMAE(M)'!BK129)","v":"n.d."},{"$f":"IF('[1]REAL IMAE(M)'!BN129=\"\",\"\",'[1]REAL IMAE(M)'!BN129)","v":"n.d."},{"$f":"IF('[1]REAL IMAE(M)'!BO129=\"\",\"\",'[1]REAL IMAE(M)'!BO129)","v":"n.d."},{"$f":"IF('[1]EXT RIN(M)'!$K129=\"\",\"\",'[1]EXT RIN(M)'!$K129)","v":"n.d."},"n.d.",{"$f":"IF('[1]EXT RIN(M)'!$L129=\"\",\"\",'[1]EXT RIN(M)'!$L129)","v":"n.d."},"n.d.",{"$f":"IF('[1]MONE(M)CARD'!EG129=\"\",\"\",'[1]MONE(M)CARD'!EG129)","v":"n.d."},{"$f":"IF('[1]MONE(M)CARD'!EK129=\"\",\"\",'[1]MONE(M)CARD'!EK129)","v":"n.d."},{"$f":"IF('[1]MONE(M)CARD'!EP129=\"\",\"\",'[1]MONE(M)CARD'!EP129)","v":"n.d."},{"$f":"IF('[1]MONE(M)CARD'!ES129=\"\",\"\",'[1]MONE(M)CARD'!ES129)","v":"n.d."},{"$f":"IF('[1]MONE(M)CARD'!EV129=\"\",\"\",'[1]MONE(M)CARD'!EV129)","v":"n.d."},{"$f":"IF('[1]MONE(M)CARD'!EZ129=\"\",\"\",'[1]MONE(M)CARD'!EZ129)","v":"n.d."},{"$f":"IF('[1]MONE(M)CAPARD'!FC129=\"\",\"\",'[1]MONE(M)CAPARD'!FC129)","v":"n.d."},{"$f":"IF('[1]MONE(M)CAPARD'!FG129=\"\",\"\",'[1]MONE(M)CAPARD'!FG129)","v":"n.d."},{"$f":"IF('[1]MONE(M)CAPARD'!FL129=\"\",\"\",'[1]MONE(M)CAPARD'!FL129)","v":"n.d."},{"$f":"IF('[1]MONE(M)CAPARD'!FO129=\"\",\"\",'[1]MONE(M)CAPARD'!FO129)","v":"n.d."},{"$f":"IF('[1]MONE(M)CAPARD'!FR129=\"\",\"\",'[1]MONE(M)CAPARD'!FR129)","v":"n.d."},{"$f":"IF('[1]MONE(M)CAPARD'!FV129=\"\",\"\",'[1]MONE(M)CAPARD'!FV129)","v":"n.d."},{"$f":"IF('[1]MONE(M)CARD'!FV129=\"\",\"\",'[1]MONE(M)CARD'!FV129)","v":""},{"$f":"IF('[1]MONE(M)CARD'!GD129=\"\",\"\",'[1]MONE(M)CARD'!GD129)","v":"n.d."},{"$f":"IF('[1]MONE(M)CARD'!GE129=\"\",\"\",'[1]MONE(M)CARD'!GE129)","v":"n.d."},"n.d.","n.d.","n.d.","n.d.","n.d.","n.d.","n.d.","n.d.",null,"n.d.","n.d.","n.d.","n.d.","n.d.",{"$f":"IF('[1]MONE(M)CAPARD'!GS129=\"\",\"\",'[1]MONE(M)CAPARD'!GS129)","v":"n.d."},{"$f":"IF('[1]MONE(M)CARD'!HA129=\"\",\"\",'[1]MONE(M)CAPARD'!HA129)","v":"n.d."},{"$f":"IF('[1]MONE(M)CAPARD'!HB129=\"\",\"\",'[1]MONE(M)CAPARD'!HB129)","v":"n.d."},"n.d.","n.d.","n.d.","n.d.","n.d.","n.d.","n.d.","n.d.","n.d.","n.d.","n.d.","n.d.","n.d.","n.d.",{"$f":"IF('[1]MONE(M)CAPARD'!AS129=\"\",\"\",'[1]MONE(M)CAPARD'!AS129)","v":"n.d."},{"$f":"IF('[1]MONE(M)CAPARD'!AT129=\"\",\"\",'[1]MONE(M)CAPARD'!AT129)","v":"n.a."},{"$f":"IF('[1]MONE(M)CAPARD'!AU129=\"\",\"\",'[1]MONE(M)CAPARD'!AU129)","v":"n.d."},{"$f":"IF('[1]MONE(M)CAPARD'!AV129=\"\",\"\",'[1]MONE(M)CAPARD'!AV129)","v":"n.d."},{"$f":"IF('[1]MONE(M)CAPARD'!AW129=\"\",\"\",'[1]MONE(M)CAPARD'!AW129)","v":"n.a."},{"$f":"IF('[1]MONE(M)CAPARD'!AX129=\"\",\"\",'[1]MONE(M)CAPARD'!AX129)","v":"n.d."},{"$f":"IF('[1]MONE(M)CAPARD'!AY129=\"\",\"\",'[1]MONE(M)CAPARD'!AY129)","v":"n.a."},{"$f":"IF('[1]FISCAL(M)'!$K129=\"\",\"\",'[1]FISCAL(M)'!$K129)","v":"n.d."},{"$f":"IF('[1]FISCAL(M)'!$L129=\"\",\"\",'[1]FISCAL(M)'!$L129)","v":"n.d."},{"$f":"IF('[1]FISCAL(M)'!$AY129=\"\",\"\",'[1]FISCAL(M)'!$AY129)","v":"n.d."},{"$f":"IF('[1]FISCAL(M)'!$BI129=\"\",\"\",'[1]FISCAL(M)'!$BI129)","v":"n.d."},{"$f":"IF('[1]FISCAL(M)'!$BS129=\"\",\"\",'[1]FISCAL(M)'!$BS129)","v":"n.d."},{"$f":"IF('[1]FISCAL(M)'!$AZ129=\"\",\"\",'[1]FISCAL(M)'!$AZ129)","v":"n.d."},{"$f":"IF('[1]FISCAL(M)'!$BJ129=\"\",\"\",'[1]FISCAL(M)'!$BJ129)","v":"n.d."},{"$f":"IF('[1]FISCAL(M)'!$BT129=\"\",\"\",'[1]FISCAL(M)'!$BT129)","v":"n.d."},{"$f":"IF('[2]MONE(M)'!$AO129=\"\",\"\",'[2]MONE(M)'!$AO129)","v":"n.d."},{"$f":"IF('[3]MONE(M)'!$AO129=\"\",\"\",'[3]MONE(M)'!$AO129)","v":"n.d."},{"$f":"IF('[4]MONE(M)'!$AO129=\"\",\"\",'[4]MONE(M)'!$AO129)","v":"n.d."},{"$f":"+'[5]MONE(M)'!$AO129","v":"n.d."},{"$f":"IF('[6]MONE(M)'!$AO129=\"\",\"\",'[6]MONE(M)'!$AO129)","v":"n.d."},{"$f":"IF('[7]MONE(M)'!$AO129=\"\",\"\",'[7]MONE(M)'!$AO129)","v":"n.d."},{"$f":"IF('[8]MONE(M)'!$AO129=\"\",\"\",'[8]MONE(M)'!$AO129)","v":"n.d."},"n.d.","n.d.","n.d.","n.d.","n.d.","n.d.","n.d.",{"$f":"IF('[1]FISCAL(M)'!$K129=\"\",\"\",'[1]FISCAL(M)'!$K129)","v":"n.d."},"n.d.","n.d.",{"$f":"IF('[1]FISCAL(M)'!$L129=\"\",\"\",'[1]FISCAL(M)'!$L129)","v":"n.d."},"n.d.","n.d.","n.d.","n.d.","n.d.","n.d.","n.d.","n.d.","n.d.","n.d.","n.d.","n.d.","n.d.","n.d.","n.d.","n.d.","n.d.","n.d."]
[2000,"enero","2000-enero",{"$f":"IF('[1]REAL IPC(M)'!$AL130=\"\",\"\",+'[1]REAL IPC(M)'!$AL130)","v":5.8150329976018877},{"$f":"IF('[1]REAL IPC(M)'!$BE130=\"\",\"\",+'[1]REAL IPC(M)'!$BE130)","v":6.6990634924233294},{"$f":"IF('[1]REAL IPC(M)'!$AM130=\"\",\"\",+'[1]REAL IPC(M)'!$AM130)","v":5.3813923825836607},{"$f":"IF('[1]REAL IPC(M)'!$BI130=\"\",\"\",+'[1]REAL IPC(M)'!$BI130)","v":6.1535137229273174},{"$f":"IF('[1]REAL IMAE(M)'!BJ130=\"\",\"\",'[1]REAL IMAE(M)'!BJ130)","v":"n.d."},{"$f":"IF('[1]REAL IMAE(M)'!BK130=\"\",\"\",'[1]REAL IMAE(M)'!BK130)","v":"n.d."},{"$f":"IF('[1]REAL IMAE(M)'!BN130=\"\",\"\",'[1]REAL IMAE(M)'!BN130)","v":"n.d."},{"$f":"IF('[1]REAL IMAE(M)'!BO130=\"\",\"\",'[1]REAL IMAE(M)'!BO130)","v":"n.d."},{"$f":"IF('[1]EXT RIN(M)'!$K130=\"\",\"\",'[1]EXT RIN(M)'!$K130)","v":"n.d."},"",{"$f":"IF('[1]EXT RIN(M)'!$L130=\"\",\"\",'[1]EXT RIN(M)'!$L130)","v":"n.d."},"",{"$f":"IF('[1]MONE(M)CARD'!EG130=\"\",\"\",'[1]MONE(M)CARD'!EG130)","v":"n.d."},{"$f":"IF('[1]MONE(M)CARD'!EK130=\"\",\"\",'[1]MONE(M)CARD'!EK130)","v":"n.d."},{"$f":"IF('[1]MONE(M)CARD'!EP130=\"\",\"\",'[1]MONE(M)CARD'!EP130)","v":"n.d."},{"$f":"IF('[1]MONE(M)CARD'!ES130=\"\",\"\",'[1]MONE(M)CARD'!ES130)","v":"n.d."},{"$f":"IF('[1]MONE(M)CARD'!EV130=\"\",\"\",'[1]MONE(M)CARD'!EV130)","v":"n.d."},{"$f":"IF('[1]MONE(M)CARD'!EZ130=\"\",\"\",'[1]MONE(M)CARD'!EZ130)","v":"n.d."},{"$f":"IF('[1]MONE(M)CAPARD'!FC130=\"\",\"\",'[1]MONE(M)CAPARD'!FC130)","v":"n.d."},{"$f":"IF('[1]MONE(M)CAPARD'!FG130=\"\",\"\",'[1]MONE(M)CAPARD'!FG130)","v":"n.d."},{"$f":"IF('[1]MONE(M)CAPARD'!FL130=\"\",\"\",'[1]MONE(M)CAPARD'!FL130)","v":"n.d."},{"$f":"IF('[1]MONE(M)CAPARD'!FO130=\"\",\"\",'[1]MONE(M)CAPARD'!FO130)","v":"n.d."},{"$f":"IF('[1]MONE(M)CAPARD'!FR130=\"\",\"\",'[1]MONE(M)CAPARD'!FR130)","v":"n.d."},{"$f":"IF('[1]MONE(M)CAPARD'!FV130=\"\",\"\",'[1]MONE(M)CAPARD'!FV130)","v":"n.d."},{"$f":"IF('[1]MONE(M)CARD'!FV130=\"\",\"\",'[1]MONE(M)CARD'!FV130)","v":""},{"$f":"IF('[1]MONE(M)CARD'!GD130=\"\",\"\",'[1]MONE(M)CARD'!GD130)","v":"n.d."},{"$f":"IF('[1]MONE(M)CARD'!GE130=\"\",\"\",'[1]MONE(M)CARD'!GE130)","v":"n.d."},"n.d.","n.d.","n.d.","n.d.","n.d.","n.d.","n.d.","n.d.",null,"n.d.","n.d.","n.d.","n.d.","n.d.",{"$f":"IF('[1]MONE(M)CAPARD'!GS130=\"\",\"\",'[1]MONE(M)CAPARD'!GS130)","v":"n.d."},{"$f":"IF('[1]MONE(M)CARD'!HA130=\"\",\"\",'[1]MONE(M)CAPARD'!HA130)","v":"n.d."},{"$f":"IF('[1]MONE(M)CAPARD'!HB130=\"\",\"\",'[1]MONE(M)CAPARD'!HB130)","v":"n.d."},"n.d.","n.d.","n.d.","n.d.","n.d.","n.d.","n.d.","n.d.","n.d.","n.d.","n.d.","n.d.","n.d.","n.d.",{"$f":"IF('[1]MONE(M)CAPARD'!AS130=\"\",\"\",'[1]MONE(M)CAPARD'!AS130)","v":"n.d."},{"$f":"IF('[1]MONE(M)CAPARD'!AT130=\"\",\"\",'[1]MONE(M)CAPARD'!AT130)","v":"n.a."},{"$f":"IF('[1]MONE(M)CAPARD'!AU130=\"\",\"\",'[1]MONE(M)CAPARD'!AU130)","v":"n.d."},{"$f":"IF('[1]MONE(M)CAPARD'!AV130=\"\",\"\",'[1]MONE(M)CAPARD'!AV130)","v":"n.d."},{"$f":"IF('[1]MONE(M)CAPARD'!AW130=\"\",\"\",'[1]MONE(M)CAPARD'!AW130)","v":"n.a."},{"$f":"IF('[1]MONE(M)CAPARD'!AX130=\"\",\"\",'[1]MONE(M)CAPARD'!AX130)","v":"n.d."},{"$f":"IF('[1]MONE(M)CAPARD'!AY130=\"\",\"\",'[1]MONE(M)CAPARD'!AY130)","v":"n.a."},{"$f":"IF('[1]FISCAL(M)'!$K130=\"\",\"\",'[1]FISCAL(M)'!$K130)","v":"n.d."},{"$f":"IF('[1]FISCAL(M)'!$L130=\"\",\"\",'[1]FISCAL(M)'!$L130)","v":"n.d."},{"$f":"IF('[1]FISCAL(M)'!$AY130=\"\",\"\",'[1]FISCAL(M)'!$AY130)","v":"n.d."},{"$f":"IF('[1]FISCAL(M)'!$BI130=\"\",\"\",'[1]FISCAL(M)'!$BI130)","v":"n.d."},{"$f":"IF('[1]FISCAL(M)'!$BS130=\"\",\"\",'[1]FISCAL(M)'!$BS130)","v":"n.d."},{"$f":"IF('[1]FISCAL(M)'!$AZ130=\"\",\"\",'[1]FISCAL(M)'!$AZ130)","v":"n.d."},{"$f":"IF('[1]FISCAL(M)'!$BJ130=\"\",\"\",'[1]FISCAL(M)'!$BJ130)","v":"n.d."},{"$f":"IF('[1]FISCAL(M)'!$BT130=\"\",\"\",'[1]FISCAL(M)'!$BT130)","v":"n.d."},{"$f":"IF('[2]MONE(M)'!$AO130=\"\",\"\",'[2]MONE(M)'!$AO130)","v":"n.d."},{"$f":"IF('[3]MONE(M)'!$AO130=\"\",\"\",'[3]MONE(M)'!$AO130)","v":"n.d."},{"$f":"IF('[4]MONE(M)'!$AO130=\"\",\"\",'[4]MONE(M)'!$AO130)","v":"n.d."},{"$f":"+'[5]MONE(M)'!$AO130","v":"n.d."},{"$f":"IF('[6]MONE(M)'!$AO130=\"\",\"\",'[6]MONE(M)'!$AO130)","v":"n.d."},{"$f":"IF('[7]MONE(M)'!$AO130=\"\",\"\",'[7]MONE(M)'!$AO130)","v":"n.d."},{"$f":"IF('[8]MONE(M)'!$AO130=\"\",\"\",'[8]MONE(M)'!$AO130)","v":"n.d."},"n.d.","n.d.","n.d.","n.d.","n.d.","n.d.","n.d.",{"$f":"IF('[1]FISCAL(M)'!$K130=\"\",\"\",'[1]FISCAL(M)'!$K130)","v":"n.d."},{"$f":"+'[1]REAL(A)'!$AO$20","v":"n.d."},"n.d.",{"$f":"IF('[1]FISCAL(M)'!$L130=\"\",\"\",'[1]FISCAL(M)'!$L130)","v":"n.d."},{"$f":"+'[1]REAL(A)'!$AP$20","v":"n.d."},"n.d.","n.d.","n.d.","n.d.","n.d.","n.d.","n.d.","n.d.","n.d.","n.d.","n.d.","n.d.","n.d.","n.d.","n.d.","n.d.","n.d."]
[2000,"febrero","2000-febrero",{"$f":"IF('[1]REAL IPC(M)'!$AL131=\"\",\"\",+'[1]REAL IPC(M)'!$AL131)","v":6.7968823392658084},{"$f":"IF('[1]REAL IPC(M)'!$BE131=\"\",\"\",+'[1]REAL IPC(M)'!$BE131)","v":6.7125645336649109},{"$f":"IF('[1]REAL IPC(M)'!$AM131=\"\",\"\",+'[1]REAL IPC(M)'!$AM131)","v":6.2575425813480745},{"$f":"IF('[1]REAL IPC(M)'!$BI131=\"\",\"\",+'[1]REAL IPC(M)'!$BI131)","v":6.1636287880253882},{"$f":"IF('[1]REAL IMAE(M)'!BJ131=\"\",\"\",'[1]REAL IMAE(M)'!BJ131)","v":"n.d."},{"$f":"IF('[1]REAL IMAE(M)'!BK131=\"\",\"\",'[1]REAL IMAE(M)'!BK131)","v":"n.d."},{"$f":"IF('[1]REAL IMAE(M)'!BN131=\"\",\"\",'[1]REAL IMAE(M)'!BN131)","v":"n.d."},{"$f":"IF('[1]REAL IMAE(M)'!BO131=\"\",\"\",'[1]REAL IMAE(M)'!BO131)","v":"n.d."},{"$f":"IF('[1]EXT RIN(M)'!$K131=\"\",\"\",'[1]EXT RIN(M)'!$K131)","v":"n.d."},"",{"$f":"IF('[1]EXT RIN(M)'!$L131=\"\",\"\",'[1]EXT RIN(M)'!$L131)","v":"n.d."},"",{"$f":"IF('[1]MONE(M)CARD'!EG131=\"\",\"\",'[1]MONE(M)CARD'!EG131)","v":"n.d."},{"$f":"IF('[1]MONE(M)CARD'!EK131=\"\",\"\",'[1]MONE(M)CARD'!EK131)","v":"n.d."},{"$f":"IF('[1]MONE(M)CARD'!EP131=\"\",\"\",'[1]MONE(M)CARD'!EP131)","v":"n.d."},{"$f":"IF('[1]MONE(M)CARD'!ES131=\"\",\"\",'[1]MONE(M)CARD'!ES131)","v":"n.d."},{"$f":"IF('[1]MONE(M)CARD'!EV131=\"\",\"\",'[1]MONE(M)CARD'!EV131)","v":"n.d."},{"$f":"IF('[1]MONE(M)CARD'!EZ131=\"\",\"\",'[1]MONE(M)CARD'!EZ131)","v":"n.d."},{"$f":"IF('[1]MONE(M)CAPARD'!FC131=\"\",\"\",'[1]MONE(M)CAPARD'!FC131)","v":"n.d."},{"$f":"IF('[1]MONE(M)CAPARD'!FG131=\"\",\"\",'[1]MONE(M)CAPARD'!FG131)","v":"n.d."},{"$f":"IF('[1]MONE(M)CAPARD'!FL131=\"\",\"\",'[1]MONE(M)CAPARD'!FL131)","v":"n.d."},{"$f":"IF('[1]MONE(M)CAPARD'!FO131=\"\",\"\",'[1]MONE(M)CAPARD'!FO131)","v":"n.d."},{"$f":"IF('[1]MONE(M)CAPARD'!FR131=\"\",\"\",'[1]MONE(M)CAPARD'!FR131)","v":"n.d."},{"$f":"IF('[1]MONE(M)CAPARD'!FV131=\"\",\"\",'[1]MONE(M)CAPARD'!FV131)","v":"n.d."},{"$f":"IF('[1]MONE(M)CARD'!FV131=\"\",\"\",'[1]MONE(M)CARD'!FV131)","v":""},{"$f":"IF('[1]MONE(M)CARD'!GD131=\"\",\"\",'[1]MONE(M)CARD'!GD131)","v":"n.d."},{"$f":"IF('[1]MONE(M)CARD'!GE131=\"\",\"\",'[1]MONE(M)CARD'!GE131)","v":"n.d."},"n.d.","n.d.","n.d.","n.d.","n.d.","n.d.","n.d.","n.d.",null,"n.d.","n.d.","n.d.","n.d.","n.d.",{"$f":"IF('[1]MONE(M)CAPARD'!GS131=\"\",\"\",'[1]MONE(M)CAPARD'!GS131)","v":"n.d."},{"$f":"IF('[1]MONE(M)CARD'!HA131=\"\",\"\",'[1]MONE(M)CAPARD'!HA131)","v":"n.d."},{"$f":"IF('[1]MONE(M)CAPARD'!HB131=\"\",\"\",'[1]MONE(M)CAPARD'!HB131)","v":"n.d."},"n.d.","n.d.","n.d.","n.d.","n.d.","n.d.","n.d.","n.d.","n.d.","n.d.","n.d.","n.d.","n.d.","n.d.",{"$f":"IF('[1]MONE(M)CAPARD'!AS131=\"\",\"\",'[1]MONE(M)CAPARD'!AS131)","v":"n.d."},{"$f":"IF('[1]MONE(M)CAPARD'!AT131=\"\",\"\",'[1]MONE(M)CAPARD'!AT131)","v":"n.a."},{"$f":"IF('[1]MONE(M)CAPARD'!AU131=\"\",\"\",'[1]MONE(M)CAPARD'!AU131)","v":"n.d."},{"$f":"IF('[1]MONE(M)CAPARD'!AV131=\"\",\"\",'[1]MONE(M)CAPARD'!AV131)","v":"n.d."},{"$f":"IF('[1]MONE(M)CAPARD'!AW131=\"\",\"\",'[1]MONE(M)CAPARD'!AW131)","v":"n.a."},{"$f":"IF('[1]MONE(M)CAPARD'!AX131=\"\",\"\",'[1]MONE(M)CAPARD'!AX131)","v":"n.d."},{"$f":"IF('[1]MONE(M)CAPARD'!AY131=\"\",\"\",'[1]MONE(M)CAPARD'!AY131)","v":"n.a."},{"$f":"IF('[1]FISCAL(M)'!$K131=\"\",\"\",'[1]FISCAL(M)'!$K131)","v":"n.d."},{"$f":"IF('[1]FISCAL(M)'!$L131=\"\",\"\",'[1]FISCAL(M)'!$L131)","v":"n.d."},{"$f":"IF('[1]FISCAL(M)'!$AY131=\"\",\"\",'[1]FISCAL(M)'!$AY131)","v":"n.d."},{"$f":"IF('[1]FISCAL(M)'!$BI131=\"\",\"\",'[1]FISCAL(M)'!$BI131)","v":"n.d."},{"$f":"IF('[1]FISCAL(M)'!$BS131=\"\",\"\",'[1]FISCAL(M)'!$BS131)","v":"n.d."},{"$f":"IF('[1]FISCAL(M)'!$AZ131=\"\",\"\",'[1]FISCAL(M)'!$AZ131)","v":"n.d."},{"$f":"IF('[1]FISCAL(M)'!$BJ131=\"\",\"\",'[1]FISCAL(M)'!$BJ131)","v":"n.d."},{"$f":"IF('[1]FISCAL(M)'!$BT131=\"\",\"\",'[1]FISCAL(M)'!$BT131)","v":"n.d."},{"$f":"IF('[2]MONE(M)'!$AO131=\"\",\"\",'[2]MONE(M)'!$AO131)","v":"n.d."},{"$f":"IF('[3]MONE(M)'!$AO131=\"\",\"\",'[3]MONE(M)'!$AO131)","v":"n.d."},{"$f":"IF('[4]MONE(M)'!$AO131=\"\",\"\",'[4]MONE(M)'!$AO131)","v":"n.d."},{"$f":"+'[5]MONE(M)'!$AO131","v":"n.d."},{"$f":"IF('[6]MONE(M)'!$AO131=\"\",\"\",'[6]MONE(M)'!$AO131)","v":"n.d."},{"$f":"IF('[7]MONE(M)'!$AO131=\"\",\"\",'[7]MONE(M)'!$AO131)","v":"n.d."},{"$f":"IF('[8]MONE(M)'!$AO131=\"\",\"\",'[8]MONE(M)'!$AO131)","v":"n.d."},"n.d.","n.d.","n.d.","n.d.","n.d.","n.d.","n.d.",{"$f":"IF('[1]FISCAL(M)'!$K131=\"\",\"\",'[1]FISCAL(M)'!$K131)","v":"n.d."},{"$f":"+'[1]REAL(A)'!$AO$20","v":"n.d."},"n.d.",{"$f":"IF('[1]FISCAL(M)'!$L131=\"\",\"\",'[1]FISCAL(M)'!$L131)","v":"n.d."},{"$f":"+'[1]REAL(A)'!$AP$20","v":"n.d."},"n.d.","n.d.","n.d.","n.d.","n.d.","n.d.","n.d.","n.d.","n.d.","n.d.","n.d.","n.d.","n.d.","n.d.","n.d.","n.d.","n.d."]
[2000,"marzo","2000-marzo",{"$f":"IF('[1]REAL IPC(M)'!$AL132=\"\",\"\",+'[1]REAL IPC(M)'!$AL132)","v":7.6755933829941725},{"$f":"IF('[1]REAL IPC(M)'!$BE132=\"\",\"\",+'[1]REAL IPC(M)'!$BE132)","v":6.7303961054302031},{"$f":"IF('[1]REAL IPC(M)'!$AM132=\"\",\"\",+'[1]REAL IPC(M)'!$AM132)","v":7.0933078120498205},{"$f":"IF('[1]REAL IPC(M)'!$BI132=\"\",\"\",+'[1]REAL IPC(M)'!$BI132)","v":6.1773381532338245},{"$f":"IF('[1]REAL IMAE(M)'!BJ132=\"\",\"\",'[1]REAL IMAE(M)'!BJ132)","v":"n.d."},{"$f":"IF('[1]REAL IMAE(M)'!BK132=\"\",\"\",'[1]REAL IMAE(M)'!BK132)","v":"n.d."},{"$f":"IF('[1]REAL IMAE(M)'!BN132=\"\",\"\",'[1]REAL IMAE(M)'!BN132)","v":"n.d."},{"$f":"IF('[1]REAL IMAE(M)'!BO132=\"\",\"\",'[1]REAL IMAE(M)'!BO132)","v":"n.d."},{"$f":"IF('[1]EXT RIN(M)'!$K132=\"\",\"\",'[1]EXT RIN(M)'!$K132)","v":"n.d."},"",{"$f":"IF('[1]EXT RIN(M)'!$L132=\"\",\"\",'[1]EXT RIN(M)'!$L132)","v":"n.d."},"",{"$f":"IF('[1]MONE(M)CARD'!EG132=\"\",\"\",'[1]MONE(M)CARD'!EG132)","v":"n.d."},{"$f":"IF('[1]MONE(M)CARD'!EK132=\"\",\"\",'[1]MONE(M)CARD'!EK132)","v":"n.d."},{"$f":"IF('[1]MONE(M)CARD'!EP132=\"\",\"\",'[1]MONE(M)CARD'!EP132)","v":"n.d."},{"$f":"IF('[1]MONE(M)CARD'!ES132=\"\",\"\",'[1]MONE(M)CARD'!ES132)","v":"n.d."},{"$f":"IF('[1]MONE(M)CARD'!EV132=\"\",\"\",'[1]MONE(M)CARD'!EV132)","v":"n.d."},{"$f":"IF('[1]MONE(M)CARD'!EZ132=\"\",\"\",'[1]MONE(M)CARD'!EZ132)","v":"n.d."},{"$f":"IF('[1]MONE(M)CAPARD'!FC132=\"\",\"\",'[1]MONE(M)CAPARD'!FC132)","v":"n.d."},{"$f":"IF('[1]MONE(M)CAPARD'!FG132=\"\",\"\",'[1]MONE(M)CAPARD'!FG132)","v":"n.d."},{"$f":"IF('[1]MONE(M)CAPARD'!FL132=\"\",\"\",'[1]MONE(M)CAPARD'!FL132)","v":"n.d."},{"$f":"IF('[1]MONE(M)CAPARD'!FO132=\"\",\"\",'[1]MONE(M)CAPARD'!FO132)","v":"n.d."},{"$f":"IF('[1]MONE(M)CAPARD'!FR132=\"\",\"\",'[1]MONE(M)CAPARD'!FR132)","v":"n.d."},{"$f":"IF('[1]MONE(M)CAPARD'!FV132=\"\",\"\",'[1]MONE(M)CAPARD'!FV132)","v":"n.d."},{"$f":"IF('[1]MONE(M)CARD'!FV132=\"\",\"\",'[1]MONE(M)CARD'!FV132)","v":""},{"$f":"IF('[1]MONE(M)CARD'!GD132=\"\",\"\",'[1]MONE(M)CARD'!GD132)","v":"n.d."},{"$f":"IF('[1]MONE(M)CARD'!GE132=\"\",\"\",'[1]MONE(M)CARD'!GE132)","v":"n.d."},"n.d.","n.d.","n.d.","n.d.","n.d.","n.d.","n.d.","n.d.",null,"n.d.","n.d.","n.d.","n.d.","n.d.",{"$f":"IF('[1]MONE(M)CAPARD'!GS132=\"\",\"\",'[1]MONE(M)CAPARD'!GS132)","v":"n.d."},{"$f":"IF('[1]MONE(M)CARD'!HA132=\"\",\"\",'[1]MONE(M)CAPARD'!HA132)","v":"n.d."},{"$f":"IF('[1]MONE(M)CAPARD'!HB132=\"\",\"\",'[1]MONE(M)CAPARD'!HB132)","v":"n.d."},"n.d.","n.d.","n.d.","n.d.","n.d.","n.d.","n.d.","n.d.","n.d.","n.d.","n.d.","n.d.","n.d.","n.d.",{"$f":"IF('[1]MONE(M)CAPARD'!AS132=\"\",\"\",'[1]MONE(M)CAPARD'!AS132)","v":"n.d."},{"$f":"IF('[1]MONE(M)CAPARD'!AT132=\"\",\"\",'[1]MONE(M)CAPARD'!AT132)","v":"n.a."},{"$f":"IF('[1]MONE(M)CAPARD'!AU132=\"\",\"\",'[1]MONE(M)CAPARD'!AU132)","v":"n.d."},{"$f":"IF('[1]MONE(M)CAPARD'!AV132=\"\",\"\",'[1]MONE(M)CAPARD'!AV132)","v":"n.d."},{"$f":"IF('[1]MONE(M)CAPARD'!AW132=\"\",\"\",'[1]MONE(M)CAPARD'!AW132)","v":"n.a."},{"$f":"IF('[1]MONE(M)CAPARD'!AX132=\"\",\"\",'[1]MONE(M)CAPARD'!AX132)","v":"n.d."},{"$f":"IF('[1]MONE(M)CAPARD'!AY132=\"\",\"\",'[1]MONE(M)CAPARD'!AY132)","v":"n.a."},{"$f":"IF('[1]FISCAL(M)'!$K132=\"\",\"\",'[1]FISCAL(M)'!$K132)","v":"n.d."},{"$f":"IF('[1]FISCAL(M)'!$L132=\"\",\"\",'[1]FISCAL(M)'!$L132)","v":"n.d."},{"$f":"IF('[1]FISCAL(M)'!$AY132=\"\",\"\",'[1]FISCAL(M)'!$AY132)","v":"n.d."},{"$f":"IF('[1]FISCAL(M)'!$BI132=\"\",\"\",'[1]FISCAL(M)'!$BI132)","v":"n.d."},{"$f":"IF('[1]FISCAL(M)'!$BS132=\"\",\"\",'[1]FISCAL(M)'!$BS132)","v":"n.d."},{"$f":"IF('[1]FISCAL(M)'!$AZ132=\"\",\"\",'[1]FISCAL(M)'!$AZ132)","v":"n.d."},{"$f":"IF('[1]FISCAL(M)'!$BJ132=\"\",\"\",'[1]FISCAL(M)'!$BJ132)","v":"n.d."},{"$f":"IF('[1]FISCAL(M)'!$BT132=\"\",\"\",'[1]FISCAL(M)'!$BT132)","v":"n.d."},{"$f":"IF('[2]MONE(M)'!$AO132=\"\",\"\",'[2]MONE(M)'!$AO132)","v":"n.d."},{"$f":"IF('[3]MONE(M)'!$AO132=\"\",\"\",'[3]MONE(M)'!$AO132)","v":"n.d."},{"$f":"IF('[4]MONE(M)'!$AO132=\"\",\"\",'[4]MONE(M)'!$AO132)","v":"n.d."},{"$f":"+'[5]MONE(M)'!$AO132","v":"n.d."},{"$f":"IF('[6]MONE(M)'!$AO132=\"\",\"\",'[6]MONE(M)'!$AO132)","v":"n.d."},{"$f":"IF('[7]MONE(M)'!$AO132=\"\",\"\",'[7]MONE(M)'!$AO132)","v":"n.d."},{"$f":"IF('[8]MONE(M)'!$AO132=\"\",\"\",'[8]MONE(M)'!$AO132)","v":"n.d."},"n.d.","n.d.","n.d.","n.d.","n.d.","n.d.","n.d.",{"$f":"IF('[1]FISCAL(M)'!$K132=\"\",\"\",'[1]FISCAL(M)'!$K132)","v":"n.d."},{"$f":"+'[1]REAL(A)'!$AO$20","v":"n.d."},"n.d.",{"$f":"IF('[1]FISCAL(M)'!$L132=\"\",\"\",'[1]FISCAL(M)'!$L132)","v":"n.d."},{"$f":"+'[1]REAL(A)'!$AP$20","v":"n.d."},"n.d.","n.d.","n.d.","n.d.","n.d.","n.d.","n.d.","n.d.","n.d.","n.d.","n.d.","n.d.","n.d.","n.d.","n.d.","n.d.","n.d."]
[2000,"abril","2000-abril",{"$f":"IF('[1]REAL IPC(M)'!$AL133=\"\",\"\",+'[1]REAL IPC(M)'!$AL133)","v":7.9910566405112737},{"$f":"IF('[1]REAL IPC(M)'!$BE133=\"\",\"\",+'[1]REAL IPC(M)'!$BE133)","v":6.7523641376266985},{"$f":"IF('[1]REAL IPC(M)'!$AM133=\"\",\"\",+'[1]REAL IPC(M)'!$AM133)","v":7.3597587388168906},{"$f":"IF('[1]REAL IPC(M)'!$BI133=\"\",\"\",+'[1]REAL IPC(M)'!$BI133)","v":6.194430288931807},{"$f":"IF('[1]REAL IMAE(M)'!BJ133=\"\",\"\",'[1]REAL IMAE(M)'!BJ133)","v":"n.d."},{"$f":"IF('[1]REAL IMAE(M)'!BK133=\"\",\"\",'[1]REAL IMAE(M)'!BK133)","v":"n.d."},{"$f":"IF('[1]REAL IMAE(M)'!BN133=\"\",\"\",'[1]REAL IMAE(M)'!BN133)","v":"n.d."},{"$f":"IF('[1]REAL IMAE(M)'!BO133=\"\",\"\",'[1]REAL IMAE(M)'!BO133)","v":"n.d."},{"$f":"IF('[1]EXT RIN(M)'!$K133=\"\",\"\",'[1]EXT RIN(M)'!$K133)","v":"n.d."},"",{"$f":"IF('[1]EXT RIN(M)'!$L133=\"\",\"\",'[1]EXT RIN(M)'!$L133)","v":"n.d."},"",{"$f":"IF('[1]MONE(M)CARD'!EG133=\"\",\"\",'[1]MONE(M)CARD'!EG133)","v":"n.d."},{"$f":"IF('[1]MONE(M)CARD'!EK133=\"\",\"\",'[1]MONE(M)CARD'!EK133)","v":"n.d."},{"$f":"IF('[1]MONE(M)CARD'!EP133=\"\",\"\",'[1]MONE(M)CARD'!EP133)","v":"n.d."},{"$f":"IF('[1]MONE(M)CARD'!ES133=\"\",\"\",'[1]MONE(M)CARD'!ES133)","v":"n.d."},{"$f":"IF('[1]MONE(M)CARD'!EV133=\"\",\"\",'[1]MONE(M)CARD'!EV133)","v":"n.d."},{"$f":"IF('[1]MONE(M)CARD'!EZ133=\"\",\"\",'[1]MONE(M)CARD'!EZ133)","v":"n.d."},{"$f":"IF('[1]MONE(M)CAPARD'!FC133=\"\",\"\",'[1]MONE(M)CAPARD'!FC133)","v":"n.d."},{"$f":"IF('[1]MONE(M)CAPARD'!FG133=\"\",\"\",'[1]MONE(M)CAPARD'!FG133)","v":"n.d."},{"$f":"IF('[1]MONE(M)CAPARD'!FL133=\"\",\"\",'[1]MONE(M)CAPARD'!FL133)","v":"n.d."},{"$f":"IF('[1]MONE(M)CAPARD'!FO133=\"\",\"\",'[1]MONE(M)CAPARD'!FO133)","v":"n.d."},{"$f":"IF('[1]MONE(M)CAPARD'!FR133=\"\",\"\",'[1]MONE(M)CAPARD'!FR133)","v":"n.d."},{"$f":"IF('[1]MONE(M)CAPARD'!FV133=\"\",\"\",'[1]MONE(M)CAPARD'!FV133)","v":"n.d."},{"$f":"IF('[1]MONE(M)CARD'!FV133=\"\",\"\",'[1]MONE(M)CARD'!FV133)","v":""},{"$f":"IF('[1]MONE(M)CARD'!GD133=\"\",\"\",'[1]MONE(M)CARD'!GD133)","v":"n.d."},{"$f":"IF('[1]MONE(M)CARD'!GE133=\"\",\"\",'[1]MONE(M)CARD'!GE133)","v":"n.d."},"n.d.","n.d.","n.d.","n.d.","n.d.","n.d.","n.d.","n.d.",null,"n.d.","n.d.","n.d.","n.d.","n.d.",{"$f":"IF('[1]MONE(M)CAPARD'!GS133=\"\",\"\",'[1]MONE(M)CAPARD'!GS133)","v":"n.d."},{"$f":"IF('[1]MONE(M)CARD'!HA133=\"\",\"\",'[1]MONE(M)CAPARD'!HA133)","v":"n.d."},{"$f":"IF('[1]MONE(M)CAPARD'!HB133=\"\",\"\",'[1]MONE(M)CAPARD'!HB133)","v":"n.d."},"n.d.","n.d.","n.d.","n.d.","n.d.","n.d.","n.d.","n.d.","n.d.","n.d.","n.d.","n.d.","n.d.","n.d.",{"$f":"IF('[1]MONE(M)CAPARD'!AS133=\"\",\"\",'[1]MONE(M)CAPARD'!AS133)","v":"n.d."},{"$f":"IF('[1]MONE(M)CAPARD'!AT133=\"\",\"\",'[1]MONE(M)CAPARD'!AT133)","v":"n.a."},{"$f":"IF('[1]MONE(M)CAPARD'!AU133=\"\",\"\",'[1]MONE(M)CAPARD'!AU133)","v":"n.d."},{"$f":"IF('[1]MONE(M)CAPARD'!AV133=\"\",\"\",'[1]MONE(M)CAPARD'!AV133)","v":"n.d."},{"$f":"IF('[1]MONE(M)CAPARD'!AW133=\"\",\"\",'[1]MONE(M)CAPARD'!AW133)","v":"n.a."},{"$f":"IF('[1]MONE(M)CAPARD'!AX133=\"\",\"\",'[1]MONE(M)CAPARD'!AX133)","v":"n.d."},{"$f":"IF('[1]MONE(M)CAPARD'!AY133=\"\",\"\",'[1]MONE(M)CAPARD'!AY133)","v":"n.a."},{"$f":"IF('[1]FISCAL(M)'!$K133=\"\",\"\",'[1]FISCAL(M)'!$K133)","v":"n.d."},{"$f":"IF('[1]FISCAL(M)'!$L133=\"\",\"\",'[1]FISCAL(M)'!$L133)","v":"n.d."},{"$f":"IF('[1]FISCAL(M)'!$AY133=\"\",\"\",'[1]FISCAL(M)'!$AY133)","v":"n.d."},{"$f":"IF('[1]FISCAL(M)'!$BI133=\"\",\"\",'[1]FISCAL(M)'!$BI133)","v":"n.d."},{"$f":"IF('[1]FISCAL(M)'!$BS133=\"\",\"\",'[1]FISCAL(M)'!$BS133)","v":"n.d."},{"$f":"IF('[1]FISCAL(M)'!$AZ133=\"\",\"\",'[1]FISCAL(M)'!$AZ133)","v":"n.d."},{"$f":"IF('[1]FISCAL(M)'!$BJ133=\"\",\"\",'[1]FISCAL(M)'!$BJ133)","v":"n.d."},{"$f":"IF('[1]FISCAL(M)'!$BT133=\"\",\"\",'[1]FISCAL(M)'!$BT133)","v":"n.d."},{"$f":"IF('[2]MONE(M)'!$AO133=\"\",\"\",'[2]MONE(M)'!$AO133)","v":"n.d."},{"$f":"IF('[3]MONE(M)'!$AO133=\"\",\"\",'[3]MONE(M)'!$AO133)","v":"n.d."},{"$f":"IF('[4]MONE(M)'!$AO133=\"\",\"\",'[4]MONE(M)'!$AO133)","v":"n.d."},{"$f":"+'[5]MONE(M)'!$AO133","v":"n.d."},{"$f":"IF('[6]MONE(M)'!$AO133=\"\",\"\",'[6]MONE(M)'!$AO133)","v":"n.d."},{"$f":"IF('[7]MONE(M)'!$AO133=\"\",\"\",'[7]MONE(M)'!$AO133)","v":"n.d."},{"$f":"IF('[8]MONE(M)'!$AO133=\"\",\"\",'[8]MONE(M)'!$AO133)","v":"n.d."},"n.d.","n.d.","n.d.","n.d.","n.d.","n.d.","n.d.",{"$f":"IF('[1]FISCAL(M)'!$K133=\"\",\"\",'[1]FISCAL(M)'!$K133)","v":"n.d."},{"$f":"+'[1]REAL(A)'!$AO$20","v":"n.d."},"n.d.",{"$f":"IF('[1]FISCAL(M)'!$L133=\"\",\"\",'[1]FISCAL(M)'!$L133)","v":"n.d."},{"$f":"+'[1]REAL(A)'!$AP$20","v":"n.d."},"n.d.","n.d.","n.d.","n.d.","n.d.","n.d.","n.d.","n.d.","n.d.","n.d.","n.d.","n.d.","n.d.","n.d.","n.d.","n.d.","n.d."]
[2000,"mayo ","2000-mayo ",{"$f":"IF('[1]REAL IPC(M)'!$AL134=\"\",\"\",+'[1]REAL IPC(M)'!$AL134)","v":7.502638653318594},{"$f":"IF('[1]REAL IPC(M)'!$BE134=\"\",\"\",+'[1]REAL IPC(M)'!$BE134)","v":6.77834974602749},{"$f":"IF('[1]REAL IPC(M)'!$AM134=\"\",\"\",+'[1]REAL IPC(M)'!$AM134)","v":6.9284692071329035},{"$f":"IF('[1]REAL IPC(M)'!$BI134=\"\",\"\",+'[1]REAL IPC(M)'!$BI134)","v":6.2147743573899517},{"$f":"IF('[1]REAL IMAE(M)'!BJ134=\"\",\"\",'[1]REAL IMAE(M)'!BJ134)","v":"n.d."},{"$f":"IF('[1]REAL IMAE(M)'!BK134=\"\",\"\",'[1]REAL IMAE(M)'!BK134)","v":"n.d."},{"$f":"IF('[1]REAL IMAE(M)'!BN134=\"\",\"\",'[1]REAL IMAE(M)'!BN134)","v":"n.d."},{"$f":"IF('[1]REAL IMAE(M)'!BO134=\"\",\"\",'[1]REAL IMAE(M)'!BO134)","v":"n.d."},{"$f":"IF('[1]EXT RIN(M)'!$K134=\"\",\"\",'[1]EXT RIN(M)'!$K134)","v":"n.d."},"",{"$f":"IF('[1]EXT RIN(M)'!$L134=\"\",\"\",'[1]EXT RIN(M)'!$L134)","v":"n.d."},"",{"$f":"IF('[1]MONE(M)CARD'!EG134=\"\",\"\",'[1]MONE(M)CARD'!EG134)","v":"n.d."},{"$f":"IF('[1]MONE(M)CARD'!EK134=\"\",\"\",'[1]MONE(M)CARD'!EK134)","v":"n.d."},{"$f":"IF('[1]MONE(M)CARD'!EP134=\"\",\"\",'[1]MONE(M)CARD'!EP134)","v":"n.d."},{"$f":"IF('[1]MONE(M)CARD'!ES134=\"\",\"\",'[1]MONE(M)CARD'!ES134)","v":"n.d."},{"$f":"IF('[1]MONE(M)CARD'!EV134=\"\",\"\",'[1]MONE(M)CARD'!EV134)","v":"n.d."},{"$f":"IF('[1]MONE(M)CARD'!EZ134=\"\",\"\",'[1]MONE(M)CARD'!EZ134)","v":"n.d."},{"$f":"IF('[1]MONE(M)CAPARD'!FC134=\"\",\"\",'[1]MONE(M)CAPARD'!FC134)","v":"n.d."},{"$f":"IF('[1]MONE(M)CAPARD'!FG134=\"\",\"\",'[1]MONE(M)CAPARD'!FG134)","v":"n.d."},{"$f":"IF('[1]MONE(M)CAPARD'!FL134=\"\",\"\",'[1]MONE(M)CAPARD'!FL134)","v":"n.d."},{"$f":"IF('[1]MONE(M)CAPARD'!FO134=\"\",\"\",'[1]MONE(M)CAPARD'!FO134)","v":"n.d."},{"$f":"IF('[1]MONE(M)CAPARD'!FR134=\"\",\"\",'[1]MONE(M)CAPARD'!FR134)","v":"n.d."},{"$f":"IF('[1]MONE(M)CAPARD'!FV134=\"\",\"\",'[1]MONE(M)CAPARD'!FV134)","v":"n.d."},{"$f":"IF('[1]MONE(M)CARD'!FV134=\"\",\"\",'[1]MONE(M)CARD'!FV134)","v":""},{"$f":"IF('[1]MONE(M)CARD'!GD134=\"\",\"\",'[1]MONE(M)CARD'!GD134)","v":"n.d."},{"$f":"IF('[1]MONE(M)CARD'!GE134=\"\",\"\",'[1]MONE(M)CARD'!GE134)","v":"n.d."},"n.d.","n.d.","n.d.","n.d.","n.d.","n.d.","n.d.","n.d.",null,"n.d.","n.d.","n.d.","n.d.","n.d.",{"$f":"IF('[1]MONE(M)CAPARD'!GS134=\"\",\"\",'[1]MONE(M)CAPARD'!GS134)","v":"n.d."},{"$f":"IF('[1]MONE(M)CARD'!HA134=\"\",\"\",'[1]MONE(M)CAPARD'!HA134)","v":"n.d."},{"$f":"IF('[1]MONE(M)CAPARD'!HB134=\"\",\"\",'[1]MONE(M)CAPARD'!HB134)","v":"n.d."},"n.d.","n.d.","n.d.","n.d.","n.d.","n.d.","n.d.","n.d.","n.d.","n.d.","n.d.","n.d.","n.d.","n.d.",{"$f":"IF('[1]MONE(M)CAPARD'!AS134=\"\",\"\",'[1]MONE(M)CAPARD'!AS134)","v":"n.d."},{"$f":"IF('[1]MONE(M)CAPARD'!AT134=\"\",\"\",'[1]MONE(M)CAPARD'!AT134)","v":"n.a."},{"$f":"IF('[1]MONE(M)CAPARD'!AU134=\"\",\"\",'[1]MONE(M)CAPARD'!AU134)","v":"n.d."},{"$f":"IF('[1]MONE(M)CAPARD'!AV134=\"\",\"\",'[1]MONE(M)CAPARD'!AV134)","v":"n.d."},{"$f":"IF('[1]MONE(M)CAPARD'!AW134=\"\",\"\",'[1]MONE(M)CAPARD'!AW134)","v":"n.a."},{"$f":"IF('[1]MONE(M)CAPARD'!AX134=\"\",\"\",'[1]MONE(M)CAPARD'!AX134)","v":"n.d."},{"$f":"IF('[1]MONE(M)CAPARD'!AY134=\"\",\"\",'[1]MONE(M)CAPARD'!AY134)","v":"n.a."},{"$f":"IF('[1]FISCAL(M)'!$K134=\"\",\"\",'[1]FISCAL(M)'!$K134)","v":"n.d."},{"$f":"IF('[1]FISCAL(M)'!$L134=\"\",\"\",'[1]FISCAL(M)'!$L134)","v":"n.d."},{"$f":"IF('[1]FISCAL(M)'!$AY134=\"\",\"\",'[1]FISCAL(M)'!$AY134)","v":"n.d."},{"$f":"IF('[1]FISCAL(M)'!$BI134=\"\",\"\",'[1]FISCAL(M)'!$BI134)","v":"n.d."},{"$f":"IF('[1]FISCAL(M)'!$BS134=\"\",\"\",'[1]FISCAL(M)'!$BS134)","v":"n.d."},{"$f":"IF('[1]FISCAL(M)'!$AZ134=\"\",\"\",'[1]FISCAL(M)'!$AZ134)","v":"n.d."},{"$f":"IF('[1]FISCAL(M)'!$BJ134=\"\",\"\",'[1]FISCAL(M)'!$BJ134)","v":"n.d."},{"$f":"IF('[1]FISCAL(M)'!$BT134=\"\",\"\",'[1]FISCAL(M)'!$BT134)","v":"n.d."},{"$f":"IF('[2]MONE(M)'!$AO134=\"\",\"\",'[2]MONE(M)'!$AO134)","v":"n.d."},{"$f":"IF('[3]MONE(M)'!$AO134=\"\",\"\",'[3]MONE(M)'!$AO134)","v":"n.d."},{"$f":"IF('[4]MONE(M)'!$AO134=\"\",\"\",'[4]MONE(M)'!$AO134)","v":"n.d."},{"$f":"+'[5]MONE(M)'!$AO134","v":"n.d."},{"$f":"IF('[6]MONE(M)'!$AO134=\"\",\"\",'[6]MONE(M)'!$AO134)","v":"n.d."},{"$f":"IF('[7]MONE(M)'!$AO134=\"\",\"\",'[7]MONE(M)'!$AO134)","v":"n.d."},{"$f":"IF('[8]MONE(M)'!$AO134=\"\",\"\",'[8]MONE(M)'!$AO134)","v":"n.d."},"n.d.","n.d.","n.d.","n.d.","n.d.","n.d.","n.d.",{"$f":"IF('[1]FISCAL(M)'!$K134=\"\",\"\",'[1]FISCAL(M)'!$K134)","v":"n.d."},{"$f":"+'[1]REAL(A)'!$AO$20","v":"n.d."},"n.d.",{"$f":"IF('[1]FISCAL(M)'!$L134=\"\",\"\",'[1]FISCAL(M)'!$L134)","v":"n.d."},{"$f":"+'[1]REAL(A)'!$AP$20","v":"n.d."},"n.d.","n.d.","n.d.","n.d.","n.d.","n.d.","n.d.","n.d.","n.d.","n.d.","n.d.","n.d.","n.d.","n.d.","n.d.","n.d.","n.d."]
[2000,"junio ","2000-junio ",{"$f":"IF('[1]REAL IPC(M)'!$AL135=\"\",\"\",+'[1]REAL IPC(M)'!$AL135)","v":8.0074157614133945},{"$f":"IF('[1]REAL IPC(M)'!$BE135=\"\",\"\",+'[1]REAL IPC(M)'!$BE135)","v":6.8083122783781924},{"$f":"IF('[1]REAL IPC(M)'!$AM135=\"\",\"\",+'[1]REAL IPC(M)'!$AM135)","v":7.3918440762585913},{"$f":"IF('[1]REAL IPC(M)'!$BI135=\"\",\"\",+'[1]REAL IPC(M)'!$BI135)","v":6.2383241333077599},{"$f":"IF('[1]REAL IMAE(M)'!BJ135=\"\",\"\",'[1]REAL IMAE(M)'!BJ135)","v":"n.d."},{"$f":"IF('[1]REAL IMAE(M)'!BK135=\"\",\"\",'[1]REAL IMAE(M)'!BK135)","v":"n.d."},{"$f":"IF('[1]REAL IMAE(M)'!BN135=\"\",\"\",'[1]REAL IMAE(M)'!BN135)","v":"n.d."},{"$f":"IF('[1]REAL IMAE(M)'!BO135=\"\",\"\",'[1]REAL IMAE(M)'!BO135)","v":"n.d."},{"$f":"IF('[1]EXT RIN(M)'!$K135=\"\",\"\",'[1]EXT RIN(M)'!$K135)","v":"n.d."},"",{"$f":"IF('[1]EXT RIN(M)'!$L135=\"\",\"\",'[1]EXT RIN(M)'!$L135)","v":"n.d."},"",{"$f":"IF('[1]MONE(M)CARD'!EG135=\"\",\"\",'[1]MONE(M)CARD'!EG135)","v":"n.d."},{"$f":"IF('[1]MONE(M)CARD'!EK135=\"\",\"\",'[1]MONE(M)CARD'!EK135)","v":"n.d."},{"$f":"IF('[1]MONE(M)CARD'!EP135=\"\",\"\",'[1]MONE(M)CARD'!EP135)","v":"n.d."},{"$f":"IF('[1]MONE(M)CARD'!ES135=\"\",\"\",'[1]MONE(M)CARD'!ES135)","v":"n.d."},{"$f":"IF('[1]MONE(M)CARD'!EV135=\"\",\"\",'[1]MONE(M)CARD'!EV135)","v":"n.d."},{"$f":"IF('[1]MONE(M)CARD'!EZ135=\"\",\"\",'[1]MONE(M)CARD'!EZ135)","v":"n.d."},{"$f":"IF('[1]MONE(M)CAPARD'!FC135=\"\",\"\",'[1]MONE(M)CAPARD'!FC135)","v":"n.d."},{"$f":"IF('[1]MONE(M)CAPARD'!FG135=\"\",\"\",'[1]MONE(M)CAPARD'!FG135)","v":"n.d."},{"$f":"IF('[1]MONE(M)CAPARD'!FL135=\"\",\"\",'[1]MONE(M)CAPARD'!FL135)","v":"n.d."},{"$f":"IF('[1]MONE(M)CAPARD'!FO135=\"\",\"\",'[1]MONE(M)CAPARD'!FO135)","v":"n.d."},{"$f":"IF('[1]MONE(M)CAPARD'!FR135=\"\",\"\",'[1]MONE(M)CAPARD'!FR135)","v":"n.d."},{"$f":"IF('[1]MONE(M)CAPARD'!FV135=\"\",\"\",'[1]MONE(M)CAPARD'!FV135)","v":"n.d."},{"$f":"IF('[1]MONE(M)CARD'!FV135=\"\",\"\",'[1]MONE(M)CARD'!FV135)","v":""},{"$f":"IF('[1]MONE(M)CARD'!GD135=\"\",\"\",'[1]MONE(M)CARD'!GD135)","v":"n.d."},{"$f":"IF('[1]MONE(M)CARD'!GE135=\"\",\"\",'[1]MONE(M)CARD'!GE135)","v":"n.d."},"n.d.","n.d.","n.d.","n.d.","n.d.","n.d.","n.d.","n.d.",null,"n.d.","n.d.","n.d.","n.d.","n.d.",{"$f":"IF('[1]MONE(M)CAPARD'!GS135=\"\",\"\",'[1]MONE(M)CAPARD'!GS135)","v":"n.d."},{"$f":"IF('[1]MONE(M)CARD'!HA135=\"\",\"\",'[1]MONE(M)CAPARD'!HA135)","v":"n.d."},{"$f":"IF('[1]MONE(M)CAPARD'!HB135=\"\",\"\",'[1]MONE(M)CAPARD'!HB135)","v":"n.d."},"n.d.","n.d.","n.d.","n.d.","n.d.","n.d.","n.d.","n.d.","n.d.","n.d.","n.d.","n.d.","n.d.","n.d.",{"$f":"IF('[1]MONE(M)CAPARD'!AS135=\"\",\"\",'[1]MONE(M)CAPARD'!AS135)","v":"n.d."},{"$f":"IF('[1]MONE(M)CAPARD'!AT135=\"\",\"\",'[1]MONE(M)CAPARD'!AT135)","v":"n.a."},{"$f":"IF('[1]MONE(M)CAPARD'!AU135=\"\",\"\",'[1]MONE(M)CAPARD'!AU135)","v":"n.d."},{"$f":"IF('[1]MONE(M)CAPARD'!AV135=\"\",\"\",'[1]MONE(M)CAPARD'!AV135)","v":"n.d."},{"$f":"IF('[1]MONE(M)CAPARD'!AW135=\"\",\"\",'[1]MONE(M)CAPARD'!AW135)","v":"n.a."},{"$f":"IF('[1]MONE(M)CAPARD'!AX135=\"\",\"\",'[1]MONE(M)CAPARD'!AX135)","v":"n.d."},{"$f":"IF('[1]MONE(M)CAPARD'!AY135=\"\",\"\",'[1]MONE(M)CAPARD'!AY135)","v":"n.a."},{"$f":"IF('[1]FISCAL(M)'!$K135=\"\",\"\",'[1]FISCAL(M)'!$K135)","v":"n.d."},{"$f":"IF('[1]FISCAL(M)'!$L135=\"\",\"\",'[1]FISCAL(M)'!$L135)","v":"n.d."},{"$f":"IF('[1]FISCAL(M)'!$AY135=\"\",\"\",'[1]FISCAL(M)'!$AY135)","v":"n.d."},{"$f":"IF('[1]FISCAL(M)'!$BI135=\"\",\"\",'[1]FISCAL(M)'!$BI135)","v":"n.d."},{"$f":"IF('[1]FISCAL(M)'!$BS135=\"\",\"\",'[1]FISCAL(M)'!$BS135)","v":"n.d."},{"$f":"IF('[1]FISCAL(M)'!$AZ135=\"\",\"\",'[1]FISCAL(M)'!$AZ135)","v":"n.d."},{"$f":"IF('[1]FISCAL(M)'!$BJ135=\"\",\"\",'[1]FISCAL(M)'!$BJ135)","v":"n.d."},{"$f":"IF('[1]FISCAL(M)'!$BT135=\"\",\"\",'[1]FISCAL(M)'!$BT135)","v":"n.d."},{"$f":"IF('[2]MONE(M)'!$AO135=\"\",\"\",'[2]MONE(M)'!$AO135)","v":"n.d."},{"$f":"IF('[3]MONE(M)'!$AO135=\"\",\"\",'[3]MONE(M)'!$AO135)","v":"n.d."},{"$f":"IF('[4]MONE(M)'!$AO135=\"\",\"\",'[4]MONE(M)'!$AO135)","v":"n.d."},{"$f":"+'[5]MONE(M)'!$AO135","v":"n.d."},{"$f":"IF('[6]MONE(M)'!$AO135=\"\",\"\",'[6]MONE(M)'!$AO135)","v":"n.d."},{"$f":"IF('[7]MONE(M)'!$AO135=\"\",\"\",'[7]MONE(M)'!$AO135)","v":"n.d."},{"$f":"IF('[8]MONE(M)'!$AO135=\"\",\"\",'[8]MONE(M)'!$AO135)","v":"n.d."},"n.d.","n.d.","n.d.","n.d.","n.d.","n.d.","n.d.",{"$f":"IF('[1]FISCAL(M)'!$K135=\"\",\"\",'[1]FISCAL(M)'!$K135)","v":"n.d."},{"$f":"+'[1]REAL(A)'!$AO$20","v":"n.d."},"n.d.",{"$f":"IF('[1]FISCAL(M)'!$L135=\"\",\"\",'[1]FISCAL(M)'!$L135)","v":"n.d."},{"$f":"+'[1]REAL(A)'!$AP$20","v":"n.d."},"n.d.","n.d.","n.d.","n.d.","n.d.","n.d.","n.d.","n.d.","n.d.","n.d.","n.d.","n.d.","n.d.","n.d.","n.d.","n.d.","n.d."]
[2000,"julio","2000-julio",{"$f":"IF('[1]REAL IPC(M)'!$AL136=\"\",\"\",+'[1]REAL IPC(M)'!$AL136)","v":7.8068685629094192},{"$f":"IF('[1]REAL IPC(M)'!$BE136=\"\",\"\",+'[1]REAL IPC(M)'!$BE136)","v":6.8422734016921893},{"$f":"IF('[1]REAL IPC(M)'!$AM136=\"\",\"\",+'[1]REAL IPC(M)'!$AM136)","v":7.21081510780468},{"$f":"IF('[1]REAL IPC(M)'!$BI136=\"\",\"\",+'[1]REAL IPC(M)'!$BI136)","v":6.2651014130750138},{"$f":"IF('[1]REAL IMAE(M)'!BJ136=\"\",\"\",'[1]REAL IMAE(M)'!BJ136)","v":"n.d."},{"$f":"IF('[1]REAL IMAE(M)'!BK136=\"\",\"\",'[1]REAL IMAE(M)'!BK136)","v":"n.d."},{"$f":"IF('[1]REAL IMAE(M)'!BN136=\"\",\"\",'[1]REAL IMAE(M)'!BN136)","v":"n.d."},{"$f":"IF('[1]REAL IMAE(M)'!BO136=\"\",\"\",'[1]REAL IMAE(M)'!BO136)","v":"n.d."},{"$f":"IF('[1]EXT RIN(M)'!$K136=\"\",\"\",'[1]EXT RIN(M)'!$K136)","v":"n.d."},"",{"$f":"IF('[1]EXT RIN(M)'!$L136=\"\",\"\",'[1]EXT RIN(M)'!$L136)","v":"n.d."},"",{"$f":"IF('[1]MONE(M)CARD'!EG136=\"\",\"\",'[1]MONE(M)CARD'!EG136)","v":"n.d."},{"$f":"IF('[1]MONE(M)CARD'!EK136=\"\",\"\",'[1]MONE(M)CARD'!EK136)","v":"n.d."},{"$f":"IF('[1]MONE(M)CARD'!EP136=\"\",\"\",'[1]MONE(M)CARD'!EP136)","v":"n.d."},{"$f":"IF('[1]MONE(M)CARD'!ES136=\"\",\"\",'[1]MONE(M)CARD'!ES136)","v":"n.d."},{"$f":"IF('[1]MONE(M)CARD'!EV136=\"\",\"\",'[1]MONE(M)CARD'!EV136)","v":"n.d."},{"$f":"IF('[1]MONE(M)CARD'!EZ136=\"\",\"\",'[1]MONE(M)CARD'!EZ136)","v":"n.d."},{"$f":"IF('[1]MONE(M)CAPARD'!FC136=\"\",\"\",'[1]MONE(M)CAPARD'!FC136)","v":"n.d."},{"$f":"IF('[1]MONE(M)CAPARD'!FG136=\"\",\"\",'[1]MONE(M)CAPARD'!FG136)","v":"n.d."},{"$f":"IF('[1]MONE(M)CAPARD'!FL136=\"\",\"\",'[1]MONE(M)CAPARD'!FL136)","v":"n.d."},{"$f":"IF('[1]MONE(M)CAPARD'!FO136=\"\",\"\",'[1]MONE(M)CAPARD'!FO136)","v":"n.d."},{"$f":"IF('[1]MONE(M)CAPARD'!FR136=\"\",\"\",'[1]MONE(M)CAPARD'!FR136)","v":"n.d."},{"$f":"IF('[1]MONE(M)CAPARD'!FV136=\"\",\"\",'[1]MONE(M)CAPARD'!FV136)","v":"n.d."},{"$f":"IF('[1]MONE(M)CARD'!FV136=\"\",\"\",'[1]MONE(M)CARD'!FV136)","v":""},{"$f":"IF('[1]MONE(M)CARD'!GD136=\"\",\"\",'[1]MONE(M)CARD'!GD136)","v":"n.d."},{"$f":"IF('[1]MONE(M)CARD'!GE136=\"\",\"\",'[1]MONE(M)CARD'!GE136)","v":"n.d."},"n.d.","n.d.","n.d.","n.d.","n.d.","n.d.","n.d.","n.d.",null,"n.d.","n.d.","n.d.","n.d.","n.d.",{"$f":"IF('[1]MONE(M)CAPARD'!GS136=\"\",\"\",'[1]MONE(M)CAPARD'!GS136)","v":"n.d."},{"$f":"IF('[1]MONE(M)CARD'!HA136=\"\",\"\",'[1]MONE(M)CAPARD'!HA136)","v":"n.d."},{"$f":"IF('[1]MONE(M)CAPARD'!HB136=\"\",\"\",'[1]MONE(M)CAPARD'!HB136)","v":"n.d."},"n.d.","n.d.","n.d.","n.d.","n.d.","n.d.","n.d.","n.d.","n.d.","n.d.","n.d.","n.d.","n.d.","n.d.",{"$f":"IF('[1]MONE(M)CAPARD'!AS136=\"\",\"\",'[1]MONE(M)CAPARD'!AS136)","v":"n.d."},{"$f":"IF('[1]MONE(M)CAPARD'!AT136=\"\",\"\",'[1]MONE(M)CAPARD'!AT136)","v":"n.a."},{"$f":"IF('[1]MONE(M)CAPARD'!AU136=\"\",\"\",'[1]MONE(M)CAPARD'!AU136)","v":"n.d."},{"$f":"IF('[1]MONE(M)CAPARD'!AV136=\"\",\"\",'[1]MONE(M)CAPARD'!AV136)","v":"n.d."},{"$f":"IF('[1]MONE(M)CAPARD'!AW136=\"\",\"\",'[1]MONE(M)CAPARD'!AW136)","v":"n.a."},{"$f":"IF('[1]MONE(M)CAPARD'!AX136=\"\",\"\",'[1]MONE(M)CAPARD'!AX136)","v":"n.d."},{"$f":"IF('[1]MONE(M)CAPARD'!AY136=\"\",\"\",'[1]MONE(M)CAPARD'!AY136)","v":"n.a."},{"$f":"IF('[1]FISCAL(M)'!$K136=\"\",\"\",'[1]FISCAL(M)'!$K136)","v":"n.d."},{"$f":"IF('[1]FISCAL(M)'!$L136=\"\",\"\",'[1]FISCAL(M)'!$L136)","v":"n.d."},{"$f":"IF('[1]FISCAL(M)'!$AY136=\"\",\"\",'[1]FISCAL(M)'!$AY136)","v":"n.d."},{"$f":"IF('[1]FISCAL(M)'!$BI136=\"\",\"\",'[1]FISCAL(M)'!$BI136)","v":"n.d."},{"$f":"IF('[1]FISCAL(M)'!$BS136=\"\",\"\",'[1]FISCAL(M)'!$BS136)","v":"n.d."},{"$f":"IF('[1]FISCAL(M)'!$AZ136=\"\",\"\",'[1]FISCAL(M)'!$AZ136)","v":"n.d."},{"$f":"IF('[1]FISCAL(M)'!$BJ136=\"\",\"\",'[1]FISCAL(M)'!$BJ136)","v":"n.d."},{"$f":"IF('[1]FISCAL(M)'!$BT136=\"\",\"\",'[1]FISCAL(M)'!$BT136)","v":"n.d."},{"$f":"IF('[2]MONE(M)'!$AO136=\"\",\"\",'[2]MONE(M)'!$AO136)","v":"n.d."},{"$f":"IF('[3]MONE(M)'!$AO136=\"\",\"\",'[3]MONE(M)'!$AO136)","v":"n.d."},{"$f":"IF('[4]MONE(M)'!$AO136=\"\",\"\",'[4]MONE(M)'!$AO136)","v":"n.d."},{"$f":"+'[5]MONE(M)'!$AO136","v":"n.d."},{"$f":"IF('[6]MONE(M)'!$AO136=\"\",\"\",'[6]MONE(M)'!$AO136)","v":"n.d."},{"$f":"IF('[7]MONE(M)'!$AO136=\"\",\"\",'[7]MONE(M)'!$AO136)","v":"n.d."},{"$f":"IF('[8]MONE(M)'!$AO136=\"\",\"\",'[8]MONE(M)'!$AO136)","v":"n.d."},"n.d.","n.d.","n.d.","n.d.","n.d.","n.d.","n.d.",{"$f":"IF('[1]FISCAL(M)'!$K136=\"\",\"\",'[1]FISCAL(M)'!$K136)","v":"n.d."},{"$f":"+'[1]REAL(A)'!$AO$20","v":"n.d."},"n.d.",{"$f":"IF('[1]FISCAL(M)'!$L136=\"\",\"\",'[1]FISCAL(M)'!$L136)","v":"n.d."},{"$f":"+'[1]REAL(A)'!$AP$20","v":"n.d."},"n.d.","n.d.","n.d.","n.d.","n.d.","n.d.","n.d.","n.d.","n.d.","n.d.","n.d.","n.d.","n.d.","n.d.","n.d.","n.d.","n.d."]
[2000,"agosto","2000-agosto",{"$f":"IF('[1]REAL IPC(M)'!$AL137=\"\",\"\",+'[1]REAL IPC(M)'!$AL137)","v":7.5099082947065243},{"$f":"IF('[1]REAL IPC(M)'!$BE137=\"\",\"\",+'[1]REAL IPC(M)'!$BE137)","v":6.8803204621730396},{"$f":"IF('[1]REAL IPC(M)'!$AM137=\"\",\"\",+'[1]REAL IPC(M)'!$AM137)","v":6.9079040111045487},{"$f":"IF('[1]REAL IPC(M)'!$BI137=\"\",\"\",+'[1]REAL IPC(M)'!$BI137)","v":6.2952003608902629},{"$f":"IF('[1]REAL IMAE(M)'!BJ137=\"\",\"\",'[1]REAL IMAE(M)'!BJ137)","v":"n.d."},{"$f":"IF('[1]REAL IMAE(M)'!BK137=\"\",\"\",'[1]REAL IMAE(M)'!BK137)","v":"n.d."},{"$f":"IF('[1]REAL IMAE(M)'!BN137=\"\",\"\",'[1]REAL IMAE(M)'!BN137)","v":"n.d."},{"$f":"IF('[1]REAL IMAE(M)'!BO137=\"\",\"\",'[1]REAL IMAE(M)'!BO137)","v":"n.d."},{"$f":"IF('[1]EXT RIN(M)'!$K137=\"\",\"\",'[1]EXT RIN(M)'!$K137)","v":"n.d."},"",{"$f":"IF('[1]EXT RIN(M)'!$L137=\"\",\"\",'[1]EXT RIN(M)'!$L137)","v":"n.d."},"",{"$f":"IF('[1]MONE(M)CARD'!EG137=\"\",\"\",'[1]MONE(M)CARD'!EG137)","v":"n.d."},{"$f":"IF('[1]MONE(M)CARD'!EK137=\"\",\"\",'[1]MONE(M)CARD'!EK137)","v":"n.d."},{"$f":"IF('[1]MONE(M)CARD'!EP137=\"\",\"\",'[1]MONE(M)CARD'!EP137)","v":"n.d."},{"$f":"IF('[1]MONE(M)CARD'!ES137=\"\",\"\",'[1]MONE(M)CARD'!ES137)","v":"n.d."},{"$f":"IF('[1]MONE(M)CARD'!EV137=\"\",\"\",'[1]MONE(M)CARD'!EV137)","v":"n.d."},{"$f":"IF('[1]MONE(M)CARD'!EZ137=\"\",\"\",'[1]MONE(M)CARD'!EZ137)","v":"n.d."},{"$f":"IF('[1]MONE(M)CAPARD'!FC137=\"\",\"\",'[1]MONE(M)CAPARD'!FC137)","v":"n.d."},{"$f":"IF('[1]MONE(M)CAPARD'!FG137=\"\",\"\",'[1]MONE(M)CAPARD'!FG137)","v":"n.d."},{"$f":"IF('[1]MONE(M)CAPARD'!FL137=\"\",\"\",'[1]MONE(M)CAPARD'!FL137)","v":"n.d."},{"$f":"IF('[1]MONE(M)CAPARD'!FO137=\"\",\"\",'[1]MONE(M)CAPARD'!FO137)","v":"n.d."},{"$f":"IF('[1]MONE(M)CAPARD'!FR137=\"\",\"\",'[1]MONE(M)CAPARD'!FR137)","v":"n.d."},{"$f":"IF('[1]MONE(M)CAPARD'!FV137=\"\",\"\",'[1]MONE(M)CAPARD'!FV137)","v":"n.d."},{"$f":"IF('[1]MONE(M)CARD'!FV137=\"\",\"\",'[1]MONE(M)CARD'!FV137)","v":""},{"$f":"IF('[1]MONE(M)CARD'!GD137=\"\",\"\",'[1]MONE(M)CARD'!GD137)","v":"n.d."},{"$f":"IF('[1]MONE(M)CARD'!GE137=\"\",\"\",'[1]MONE(M)CARD'!GE137)","v":"n.d."},"n.d.","n.d.","n.d.","n.d.","n.d.","n.d.","n.d.","n.d.",null,"n.d.","n.d.","n.d.","n.d.","n.d.",{"$f":"IF('[1]MONE(M)CAPARD'!GS137=\"\",\"\",'[1]MONE(M)CAPARD'!GS137)","v":"n.d."},{"$f":"IF('[1]MONE(M)CARD'!HA137=\"\",\"\",'[1]MONE(M)CAPARD'!HA137)","v":"n.d."},{"$f":"IF('[1]MONE(M)CAPARD'!HB137=\"\",\"\",'[1]MONE(M)CAPARD'!HB137)","v":"n.d."},"n.d.","n.d.","n.d.","n.d.","n.d.","n.d.","n.d.","n.d.","n.d.","n.d.","n.d.","n.d.","n.d.","n.d.",{"$f":"IF('[1]MONE(M)CAPARD'!AS137=\"\",\"\",'[1]MONE(M)CAPARD'!AS137)","v":"n.d."},{"$f":"IF('[1]MONE(M)CAPARD'!AT137=\"\",\"\",'[1]MONE(M)CAPARD'!AT137)","v":"n.a."},{"$f":"IF('[1]MONE(M)CAPARD'!AU137=\"\",\"\",'[1]MONE(M)CAPARD'!AU137)","v":"n.d."},{"$f":"IF('[1]MONE(M)CAPARD'!AV137=\"\",\"\",'[1]MONE(M)CAPARD'!AV137)","v":"n.d."},{"$f":"IF('[1]MONE(M)CAPARD'!AW137=\"\",\"\",'[1]MONE(M)CAPARD'!AW137)","v":"n.a."},{"$f":"IF('[1]MONE(M)CAPARD'!AX137=\"\",\"\",'[1]MONE(M)CAPARD'!AX137)","v":"n.d."},{"$f":"IF('[1]MONE(M)CAPARD'!AY137=\"\",\"\",'[1]MONE(M)CAPARD'!AY137)","v":"n.a."},{"$f":"IF('[1]FISCAL(M)'!$K137=\"\",\"\",'[1]FISCAL(M)'!$K137)","v":"n.d."},{"$f":"IF('[1]FISCAL(M)'!$L137=\"\",\"\",'[1]FISCAL(M)'!$L137)","v":"n.d."},{"$f":"IF('[1]FISCAL(M)'!$AY137=\"\",\"\",'[1]FISCAL(M)'!$AY137)","v":"n.d."},{"$f":"IF('[1]FISCAL(M)'!$BI137=\"\",\"\",'[1]FISCAL(M)'!$BI137)","v":"n.d."},{"$f":"IF('[1]FISCAL(M)'!$BS137=\"\",\"\",'[1]FISCAL(M)'!$BS137)","v":"n.d."},{"$f":"IF('[1]FISCAL(M)'!$AZ137=\"\",\"\",'[1]FISCAL(M)'!$AZ137)","v":"n.d."},{"$f":"IF('[1]FISCAL(M)'!$BJ137=\"\",\"\",'[1]FISCAL(M)'!$BJ137)","v":"n.d."},{"$f":"IF('[1]FISCAL(M)'!$BT137=\"\",\"\",'[1]FISCAL(M)'!$BT137)","v":"n.d."},{"$f":"IF('[2]MONE(M)'!$AO137=\"\",\"\",'[2]MONE(M)'!$AO137)","v":"n.d."},{"$f":"IF('[3]MONE(M)'!$AO137=\"\",\"\",'[3]MONE(M)'!$AO137)","v":"n.d."},{"$f":"IF('[4]MONE(M)'!$AO137=\"\",\"\",'[4]MONE(M)'!$AO137)","v":"n.d."},{"$f":"+'[5]MONE(M)'!$AO137","v":"n.d."},{"$f":"IF('[6]MONE(M)'!$AO137=\"\",\"\",'[6]MONE(M)'!$AO137)","v":"n.d."},{"$f":"IF('[7]MONE(M)'!$AO137=\"\",\"\",'[7]MONE(M)'!$AO137)","v":"n.d."},{"$f":"IF('[8]MONE(M)'!$AO137=\"\",\"\",'[8]MONE(M)'!$AO137)","v":"n.d."},"n.d.","n.d.","n.d.","n.d.","n.d.","n.d.","n.d.",{"$f":"IF('[1]FISCAL(M)'!$K137=\"\",\"\",'[1]FISCAL(M)'!$K137)","v":"n.d."},{"$f":"+'[1]REAL(A)'!$AO$20","v":"n.d."},"n.d.",{"$f":"IF('[1]FISCAL(M)'!$L137=\"\",\"\",'[1]FISCAL(M)'!$L137)","v":"n.d."},{"$f":"+'[1]REAL(A)'!$AP$20","v":"n.d."},"n.d.","n.d.","n.d.","n.d.","n.d.","n.d.","n.d.","n.d.","n.d.","n.d.","n.d.","n.d.","n.d.","n.d.","n.d.","n.d.","n.d."]
[2000,"septiembre","2000-septiembre",{"$f":"IF('[1]REAL IPC(M)'!$AL138=\"\",\"\",+'[1]REAL IPC(M)'!$AL138)","v":8.1385405000126134},{"$f":"IF('[1]REAL IPC(M)'!$BE138=\"\",\"\",+'[1]REAL IPC(M)'!$BE138)","v":6.9225989524887011},{"$f":"IF('[1]REAL IPC(M)'!$AM138=\"\",\"\",+'[1]REAL IPC(M)'!$AM138)","v":7.518322100290753},{"$f":"IF('[1]REAL IPC(M)'!$BI138=\"\",\"\",+'[1]REAL IPC(M)'!$BI138)","v":6.3287815326947827},{"$f":"IF('[1]REAL IMAE(M)'!BJ138=\"\",\"\",'[1]REAL IMAE(M)'!BJ138)","v":"n.d."},{"$f":"IF('[1]REAL IMAE(M)'!BK138=\"\",\"\",'[1]REAL IMAE(M)'!BK138)","v":"n.d."},{"$f":"IF('[1]REAL IMAE(M)'!BN138=\"\",\"\",'[1]REAL IMAE(M)'!BN138)","v":"n.d."},{"$f":"IF('[1]REAL IMAE(M)'!BO138=\"\",\"\",'[1]REAL IMAE(M)'!BO138)","v":"n.d."},{"$f":"IF('[1]EXT RIN(M)'!$K138=\"\",\"\",'[1]EXT RIN(M)'!$K138)","v":"n.d."},"",{"$f":"IF('[1]EXT RIN(M)'!$L138=\"\",\"\",'[1]EXT RIN(M)'!$L138)","v":"n.d."},"",{"$f":"IF('[1]MONE(M)CARD'!EG138=\"\",\"\",'[1]MONE(M)CARD'!EG138)","v":"n.d."},{"$f":"IF('[1]MONE(M)CARD'!EK138=\"\",\"\",'[1]MONE(M)CARD'!EK138)","v":"n.d."},{"$f":"IF('[1]MONE(M)CARD'!EP138=\"\",\"\",'[1]MONE(M)CARD'!EP138)","v":"n.d."},{"$f":"IF('[1]MONE(M)CARD'!ES138=\"\",\"\",'[1]MONE(M)CARD'!ES138)","v":"n.d."},{"$f":"IF('[1]MONE(M)CARD'!EV138=\"\",\"\",'[1]MONE(M)CARD'!EV138)","v":"n.d."},{"$f":"IF('[1]MONE(M)CARD'!EZ138=\"\",\"\",'[1]MONE(M)CARD'!EZ138)","v":"n.d."},{"$f":"IF('[1]MONE(M)CAPARD'!FC138=\"\",\"\",'[1]MONE(M)CAPARD'!FC138)","v":"n.d."},{"$f":"IF('[1]MONE(M)CAPARD'!FG138=\"\",\"\",'[1]MONE(M)CAPARD'!FG138)","v":"n.d."},{"$f":"IF('[1]MONE(M)CAPARD'!FL138=\"\",\"\",'[1]MONE(M)CAPARD'!FL138)","v":"n.d."},{"$f":"IF('[1]MONE(M)CAPARD'!FO138=\"\",\"\",'[1]MONE(M)CAPARD'!FO138)","v":"n.d."},{"$f":"IF('[1]MONE(M)CAPARD'!FR138=\"\",\"\",'[1]MONE(M)CAPARD'!FR138)","v":"n.d."},{"$f":"IF('[1]MONE(M)CAPARD'!FV138=\"\",\"\",'[1]MONE(M)CAPARD'!FV138)","v":"n.d."},{"$f":"IF('[1]MONE(M)CARD'!FV138=\"\",\"\",'[1]MONE(M)CARD'!FV138)","v":""},{"$f":"IF('[1]MONE(M)CARD'!GD138=\"\",\"\",'[1]MONE(M)CARD'!GD138)","v":"n.d."},{"$f":"IF('[1]MONE(M)CARD'!GE138=\"\",\"\",'[1]MONE(M)CARD'!GE138)","v":"n.d."},"n.d.","n.d.","n.d.","n.d.","n.d.","n.d.","n.d.","n.d.",null,"n.d.","n.d.","n.d.","n.d.","n.d.",{"$f":"IF('[1]MONE(M)CAPARD'!GS138=\"\",\"\",'[1]MONE(M)CAPARD'!GS138)","v":"n.d."},{"$f":"IF('[1]MONE(M)CARD'!HA138=\"\",\"\",'[1]MONE(M)CAPARD'!HA138)","v":"n.d."},{"$f":"IF('[1]MONE(M)CAPARD'!HB138=\"\",\"\",'[1]MONE(M)CAPARD'!HB138)","v":"n.d."},"n.d.","n.d.","n.d.","n.d.","n.d.","n.d.","n.d.","n.d.","n.d.","n.d.","n.d.","n.d.","n.d.","n.d.",{"$f":"IF('[1]MONE(M)CAPARD'!AS138=\"\",\"\",'[1]MONE(M)CAPARD'!AS138)","v":"n.d."},{"$f":"IF('[1]MONE(M)CAPARD'!AT138=\"\",\"\",'[1]MONE(M)CAPARD'!AT138)","v":"n.a."},{"$f":"IF('[1]MONE(M)CAPARD'!AU138=\"\",\"\",'[1]MONE(M)CAPARD'!AU138)","v":"n.d."},{"$f":"IF('[1]MONE(M)CAPARD'!AV138=\"\",\"\",'[1]MONE(M)CAPARD'!AV138)","v":"n.d."},{"$f":"IF('[1]MONE(M)CAPARD'!AW138=\"\",\"\",'[1]MONE(M)CAPARD'!AW138)","v":"n.a."},{"$f":"IF('[1]MONE(M)CAPARD'!AX138=\"\",\"\",'[1]MONE(M)CAPARD'!AX138)","v":"n.d."},{"$f":"IF('[1]MONE(M)CAPARD'!AY138=\"\",\"\",'[1]MONE(M)CAPARD'!AY138)","v":"n.a."},{"$f":"IF('[1]FISCAL(M)'!$K138=\"\",\"\",'[1]FISCAL(M)'!$K138)","v":"n.d."},{"$f":"IF('[1]FISCAL(M)'!$L138=\"\",\"\",'[1]FISCAL(M)'!$L138)","v":"n.d."},{"$f":"IF('[1]FISCAL(M)'!$AY138=\"\",\"\",'[1]FISCAL(M)'!$AY138)","v":"n.d."},{"$f":"IF('[1]FISCAL(M)'!$BI138=\"\",\"\",'[1]FISCAL(M)'!$BI138)","v":"n.d."},{"$f":"IF('[1]FISCAL(M)'!$BS138=\"\",\"\",'[1]FISCAL(M)'!$BS138)","v":"n.d."},{"$f":"IF('[1]FISCAL(M)'!$AZ138=\"\",\"\",'[1]FISCAL(M)'!$AZ138)","v":"n.d."},{"$f":"IF('[1]FISCAL(M)'!$BJ138=\"\",\"\",'[1]FISCAL(M)'!$BJ138)","v":"n.d."},{"$f":"IF('[1]FISCAL(M)'!$BT138=\"\",\"\",'[1]FISCAL(M)'!$BT138)","v":"n.d."},{"$f":"IF('[2]MONE(M)'!$AO138=\"\",\"\",'[2]MONE(M)'!$AO138)","v":"n.d."},{"$f":"IF('[3]MONE(M)'!$AO138=\"\",\"\",'[3]MONE(M)'!$AO138)","v":"n.d."},{"$f":"IF('[4]MONE(M)'!$AO138=\"\",\"\",'[4]MONE(M)'!$AO138)","v":"n.d."},{"$f":"+'[5]MONE(M)'!$AO138","v":"n.d."},{"$f":"IF('[6]MONE(M)'!$AO138=\"\",\"\",'[6]MONE(M)'!$AO138)","v":"n.d."},{"$f":"IF('[7]MONE(M)'!$AO138=\"\",\"\",'[7]MONE(M)'!$AO138)","v":"n.d."},{"$f":"IF('[8]MONE(M)'!$AO138=\"\",\"\",'[8]MONE(M)'!$AO138)","v":"n.d."},"n.d.","n.d.","n.d.","n.d.","n.d.","n.d.","n.d.",{"$f":"IF('[1]FISCAL(M)'!$K138=\"\",\"\",'[1]FISCAL(M)'!$K138)","v":"n.d."},{"$f":"+'[1]REAL(A)'!$AO$20","v":"n.d."},{"$f":"IF(OR(CM131=\"n.d.\",CM131=\"\",CN131=\"\",CN131=\"n.d.\"),\"n.d.\",(CM131/CN131)*100)","v":"n.d."},{"$f":"IF('[1]FISCAL(M)'!$L138=\"\",\"\",'[1]FISCAL(M)'!$L138)","v":"n.d."},{"$f":"+'[1]REAL(A)'!$AP$20","v":"n.d."},"n.d.","n.d.","n.d.","n.d.","n.d.","n.d.","n.d.","n.d.","n.d.","n.d.","n.d.","n.d.","n.d.","n.d.","n.d.","n.d.","n.d."]
[2000,"octubre",{"$f":"A132&\"-\"&B132","v":"2000-octubre"},{"$f":"IF('[1]REAL IPC(M)'!$AL139=\"\",\"\",+'[1]REAL IPC(M)'!$AL139)","v":6.8137150424292914},{"$f":"IF('[1]REAL IPC(M)'!$BE139=\"\",\"\",+'[1]REAL IPC(M)'!$BE139)","v":6.969291954483614},{"$f":"IF('[1]REAL IPC(M)'!$AM139=\"\",\"\",+'[1]REAL IPC(M)'!$AM139)","v":6.2892139195319885},{"$f":"IF('[1]REAL IPC(M)'!$BI139=\"\",\"\",+'[1]REAL IPC(M)'!$BI139)","v":6.3660489943554222},{"$f":"IF('[1]REAL IMAE(M)'!BJ139=\"\",\"\",'[1]REAL IMAE(M)'!BJ139)","v":"n.d."},{"$f":"IF('[1]REAL IMAE(M)'!BK139=\"\",\"\",'[1]REAL IMAE(M)'!BK139)","v":"n.d."},{"$f":"IF('[1]REAL IMAE(M)'!BN139=\"\",\"\",'[1]REAL IMAE(M)'!BN139)","v":"n.d."},{"$f":"IF('[1]REAL IMAE(M)'!BO139=\"\",\"\",'[1]REAL IMAE(M)'!BO139)","v":"n.d."},{"$f":"IF('[1]EXT RIN(M)'!$K139=\"\",\"\",'[1]EXT RIN(M)'!$K139)","v":"n.d."},{"$f":"IF(B132<>\"diciembre\",\"\",L132)","v":""},{"$f":"IF('[1]EXT RIN(M)'!$L139=\"\",\"\",'[1]EXT RIN(M)'!$L139)","v":"n.d."},{"$f":"IF(B132<>\"diciembre\",\"\",N132)","v":""},{"$f":"IF('[1]MONE(M)CARD'!EG139=\"\",\"\",'[1]MONE(M)CARD'!EG139)","v":"n.d."},{"$f":"IF('[1]MONE(M)CARD'!EK139=\"\",\"\",'[1]MONE(M)CARD'!EK139)","v":"n.d."},{"$f":"IF('[1]MONE(M)CARD'!EP139=\"\",\"\",'[1]MONE(M)CARD'!EP139)","v":"n.d."},{"$f":"IF('[1]MONE(M)CARD'!ES139=\"\",\"\",'[1]MONE(M)CARD'!ES139)","v":"n.d."},{"$f":"IF('[1]MONE(M)CARD'!EV139=\"\",\"\",'[1]MONE(M)CARD'!EV139)","v":"n.d."},{"$f":"IF('[1]MONE(M)CARD'!EZ139=\"\",\"\",'[1]MONE(M)CARD'!EZ139)","v":"n.d."},{"$f":"IF('[1]MONE(M)CAPARD'!FC139=\"\",\"\",'[1]MONE(M)CAPARD'!FC139)","v":"n.d."},{"$f":"IF('[1]MONE(M)CAPARD'!FG139=\"\",\"\",'[1]MONE(M)CAPARD'!FG139)","v":"n.d."},{"$f":"IF('[1]MONE(M)CAPARD'!FL139=\"\",\"\",'[1]MONE(M)CAPARD'!FL139)","v":"n.d."},{"$f":"IF('[1]MONE(M)CAPARD'!FO139=\"\",\"\",'[1]MONE(M)CAPARD'!FO139)","v":"n.d."},{"$f":"IF('[1]MONE(M)CAPARD'!FR139=\"\",\"\",'[1]MONE(M)CAPARD'!FR139)","v":"n.d."},{"$f":"IF('[1]MONE(M)CAPARD'!FV139=\"\",\"\",'[1]MONE(M)CAPARD'!FV139)","v":"n.d."},{"$f":"IF('[1]MONE(M)CARD'!FV139=\"\",\"\",'[1]MONE(M)CARD'!FV139)","v":""},{"$f":"IF('[1]MONE(M)CARD'!GD139=\"\",\"\",'[1]MONE(M)CARD'!GD139)","v":"n.d."},{"$f":"IF('[1]MONE(M)CARD'!GE139=\"\",\"\",'[1]MONE(M)CARD'!GE139)","v":"n.d."},"n.d.","n.d.","n.d.","n.d.","n.d.","n.d.","n.d.","n.d.",null,"n.d.","n.d.","n.d.","n.d.","n.d.",{"$f":"IF('[1]MONE(M)CAPARD'!GS139=\"\",\"\",'[1]MONE(M)CAPARD'!GS139)","v":"n.d."},{"$f":"IF('[1]MONE(M)CARD'!HA139=\"\",\"\",'[1]MONE(M)CAPARD'!HA139)","v":"n.d."},{"$f":"IF('[1]MONE(M)CAPARD'!HB139=\"\",\"\",'[1]MONE(M)CAPARD'!HB139)","v":"n.d."},"n.d.","n.d.","n.d.","n.d.","n.d.","n.d.","n.d.","n.d.","n.d.","n.d.","n.d.","n.d.","n.d.","n.d.",{"$f":"IF('[1]MONE(M)CAPARD'!AS139=\"\",\"\",'[1]MONE(M)CAPARD'!AS139)","v":"n.d."},{"$f":"IF('[1]MONE(M)CAPARD'!AT139=\"\",\"\",'[1]MONE(M)CAPARD'!AT139)","v":"n.a."},{"$f":"IF('[1]MONE(M)CAPARD'!AU139=\"\",\"\",'[1]MONE(M)CAPARD'!AU139)","v":"n.d."},{"$f":"IF('[1]MONE(M)CAPARD'!AV139=\"\",\"\",'[1]MONE(M)CAPARD'!AV139)","v":"n.d."},{"$f":"IF('[1]MONE(M)CAPARD'!AW139=\"\",\"\",'[1]MONE(M)CAPARD'!AW139)","v":"n.a."},{"$f":"IF('[1]MONE(M)CAPARD'!AX139=\"\",\"\",'[1]MONE(M)CAPARD'!AX139)","v":"n.d."},{"$f":"IF('[1]MONE(M)CAPARD'!AY139=\"\",\"\",'[1]MONE(M)CAPARD'!AY139)","v":"n.a."},{"$f":"IF('[1]FISCAL(M)'!$K139=\"\",\"\",'[1]FISCAL(M)'!$K139)","v":"n.d."},{"$f":"IF('[1]FISCAL(M)'!$L139=\"\",\"\",'[1]FISCAL(M)'!$L139)","v":"n.d."},{"$f":"IF('[1]FISCAL(M)'!$AY139=\"\",\"\",'[1]FISCAL(M)'!$AY139)","v":"n.d."},{"$f":"IF('[1]FISCAL(M)'!$BI139=\"\",\"\",'[1]FISCAL(M)'!$BI139)","v":"n.d."},{"$f":"IF('[1]FISCAL(M)'!$BS139=\"\",\"\",'[1]FISCAL(M)'!$BS139)","v":"n.d."},{"$f":"IF('[1]FISCAL(M)'!$AZ139=\"\",\"\",'[1]FISCAL(M)'!$AZ139)","v":"n.d."},{"$f":"IF('[1]FISCAL(M)'!$BJ139=\"\",\"\",'[1]FISCAL(M)'!$BJ139)","v":"n.d."},{"$f":"IF('[1]FISCAL(M)'!$BT139=\"\",\"\",'[1]FISCAL(M)'!$BT139)","v":"n.d."},{"$f":"IF('[2]MONE(M)'!$AO139=\"\",\"\",'[2]MONE(M)'!$AO139)","v":"n.d."},{"$f":"IF('[3]MONE(M)'!$AO139=\"\",\"\",'[3]MONE(M)'!$AO139)","v":"n.d."},{"$f":"IF('[4]MONE(M)'!$AO139=\"\",\"\",'[4]MONE(M)'!$AO139)","v":"n.d."},{"$f":"+'[5]MONE(M)'!$AO139","v":"n.d."},{"$f":"IF('[6]MONE(M)'!$AO139=\"\",\"\",'[6]MONE(M)'!$AO139)","v":"n.d."},{"$f":"IF('[7]MONE(M)'!$AO139=\"\",\"\",'[7]MONE(M)'!$AO139)","v":"n.d."},{"$f":"IF('[8]MONE(M)'!$AO139=\"\",\"\",'[8]MONE(M)'!$AO139)","v":"n.d."},"n.d.","n.d.","n.d.","n.d.","n.d.","n.d.","n.d.",{"$f":"IF('[1]FISCAL(M)'!$K139=\"\",\"\",'[1]FISCAL(M)'!$K139)","v":"n.d."},{"$f":"+'[1]REAL(A)'!$AO$20","v":"n.d."},"n.d.",{"$f":"IF('[1]FISCAL(M)'!$L139=\"\",\"\",'[1]FISCAL(M)'!$L139)","v":"n.d."},{"$f":"+'[1]REAL(A)'!$AP$20","v":"n.d."},{"$f":"IF(OR(CP132=\"n.d.\",CP132=\"\",CQ132=\"\",CQ132=\"n.d.\"),\"n.d.\",(CP132/CQ132)*100)","v":"n.d."},"n.d.","n.d.","n.d.","n.d.","n.d.","n.d.","n.d.","n.d.","n.d.","n.d.","n.d.","n.d.","n.d.","n.d.","n.d.","n.d."]
[2000,"noviembre","2000-noviembre",{"$f":"IF('[1]REAL IPC(M)'!$AL140=\"\",\"\",+'[1]REAL IPC(M)'!$AL140)","v":6.7579741218974698},{"$f":"IF('[1]REAL IPC(M)'!$BE140=\"\",\"\",+'[1]REAL IPC(M)'!$BE140)","v":7.0205848069870624},{"$f":"IF('[1]REAL IPC(M)'!$AM140=\"\",\"\",+'[1]REAL IPC(M)'!$AM140)","v":6.1948867287401566},{"$f":"IF('[1]REAL IPC(M)'!$BI140=\"\",\"\",+'[1]REAL IPC(M)'!$BI140)","v":6.407212937339346},{"$f":"IF('[1]REAL IMAE(M)'!BJ140=\"\",\"\",'[1]REAL IMAE(M)'!BJ140)","v":"n.d."},{"$f":"IF('[1]REAL IMAE(M)'!BK140=\"\",\"\",'[1]REAL IMAE(M)'!BK140)","v":"n.d."},{"$f":"IF('[1]REAL IMAE(M)'!BN140=\"\",\"\",'[1]REAL IMAE(M)'!BN140)","v":"n.d."},{"$f":"IF('[1]REAL IMAE(M)'!BO140=\"\",\"\",'[1]REAL IMAE(M)'!BO140)","v":"n.d."},{"$f":"IF('[1]EXT RIN(M)'!$K140=\"\",\"\",'[1]EXT RIN(M)'!$K140)","v":"n.d."},"",{"$f":"IF('[1]EXT RIN(M)'!$L140=\"\",\"\",'[1]EXT RIN(M)'!$L140)","v":"n.d."},"",{"$f":"IF('[1]MONE(M)CARD'!EG140=\"\",\"\",'[1]MONE(M)CARD'!EG140)","v":"n.d."},{"$f":"IF('[1]MONE(M)CARD'!EK140=\"\",\"\",'[1]MONE(M)CARD'!EK140)","v":"n.d."},{"$f":"IF('[1]MONE(M)CARD'!EP140=\"\",\"\",'[1]MONE(M)CARD'!EP140)","v":"n.d."},{"$f":"IF('[1]MONE(M)CARD'!ES140=\"\",\"\",'[1]MONE(M)CARD'!ES140)","v":"n.d."},{"$f":"IF('[1]MONE(M)CARD'!EV140=\"\",\"\",'[1]MONE(M)CARD'!EV140)","v":"n.d."},{"$f":"IF('[1]MONE(M)CARD'!EZ140=\"\",\"\",'[1]MONE(M)CARD'!EZ140)","v":"n.d."},{"$f":"IF('[1]MONE(M)CAPARD'!FC140=\"\",\"\",'[1]MONE(M)CAPARD'!FC140)","v":"n.d."},{"$f":"IF('[1]MONE(M)CAPARD'!FG140=\"\",\"\",'[1]MONE(M)CAPARD'!FG140)","v":"n.d."},{"$f":"IF('[1]MONE(M)CAPARD'!FL140=\"\",\"\",'[1]MONE(M)CAPARD'!FL140)","v":"n.d."},{"$f":"IF('[1]MONE(M)CAPARD'!FO140=\"\",\"\",'[1]MONE(M)CAPARD'!FO140)","v":"n.d."},{"$f":"IF('[1]MONE(M)CAPARD'!FR140=\"\",\"\",'[1]MONE(M)CAPARD'!FR140)","v":"n.d."},{"$f":"IF('[1]MONE(M)CAPARD'!FV140=\"\",\"\",'[1]MONE(M)CAPARD'!FV140)","v":"n.d."},{"$f":"IF('[1]MONE(M)CARD'!FV140=\"\",\"\",'[1]MONE(M)CARD'!FV140)","v":""},{"$f":"IF('[1]MONE(M)CARD'!GD140=\"\",\"\",'[1]MONE(M)CARD'!GD140)","v":"n.d."},{"$f":"IF('[1]MONE(M)CARD'!GE140=\"\",\"\",'[1]MONE(M)CARD'!GE140)","v":"n.d."},"n.d.","n.d.","n.d.","n.d.","n.d.","n.d.","n.d.","n.d.",null,"n.d.","n.d.","n.d.","n.d.","n.d.",{"$f":"IF('[1]MONE(M)CAPARD'!GS140=\"\",\"\",'[1]MONE(M)CAPARD'!GS140)","v":"n.d."},{"$f":"IF('[1]MONE(M)CARD'!HA140=\"\",\"\",'[1]MONE(M)CAPARD'!HA140)","v":"n.d."},{"$f":"IF('[1]MONE(M)CAPARD'!HB140=\"\",\"\",'[1]MONE(M)CAPARD'!HB140)","v":"n.d."},"n.d.","n.d.","n.d.","n.d.","n.d.","n.d.","n.d.","n.d.","n.d.","n.d.","n.d.","n.d.","n.d.","n.d.",{"$f":"IF('[1]MONE(M)CAPARD'!AS140=\"\",\"\",'[1]MONE(M)CAPARD'!AS140)","v":"n.d."},{"$f":"IF('[1]MONE(M)CAPARD'!AT140=\"\",\"\",'[1]MONE(M)CAPARD'!AT140)","v":"n.a."},{"$f":"IF('[1]MONE(M)CAPARD'!AU140=\"\",\"\",'[1]MONE(M)CAPARD'!AU140)","v":"n.d."},{"$f":"IF('[1]MONE(M)CAPARD'!AV140=\"\",\"\",'[1]MONE(M)CAPARD'!AV140)","v":"n.d."},{"$f":"IF('[1]MONE(M)CAPARD'!AW140=\"\",\"\",'[1]MONE(M)CAPARD'!AW140)","v":"n.a."},{"$f":"IF('[1]MONE(M)CAPARD'!AX140=\"\",\"\",'[1]MONE(M)CAPARD'!AX140)","v":"n.d."},{"$f":"IF('[1]MONE(M)CAPARD'!AY140=\"\",\"\",'[1]MONE(M)CAPARD'!AY140)","v":"n.a."},{"$f":"IF('[1]FISCAL(M)'!$K140=\"\",\"\",'[1]FISCAL(M)'!$K140)","v":"n.d."},{"$f":"IF('[1]FISCAL(M)'!$L140=\"\",\"\",'[1]FISCAL(M)'!$L140)","v":"n.d."},{"$f":"IF('[1]FISCAL(M)'!$AY140=\"\",\"\",'[1]FISCAL(M)'!$AY140)","v":"n.d."},{"$f":"IF('[1]FISCAL(M)'!$BI140=\"\",\"\",'[1]FISCAL(M)'!$BI140)","v":"n.d."},{"$f":"IF('[1]FISCAL(M)'!$BS140=\"\",\"\",'[1]FISCAL(M)'!$BS140)","v":"n.d."},{"$f":"IF('[1]FISCAL(M)'!$AZ140=\"\",\"\",'[1]FISCAL(M)'!$AZ140)","v":"n.d."},{"$f":"IF('[1]FISCAL(M)'!$BJ140=\"\",\"\",'[1]FISCAL(M)'!$BJ140)","v":"n.d."},{"$f":"IF('[1]FISCAL(M)'!$BT140=\"\",\"\",'[1]FISCAL(M)'!$BT140)","v":"n.d."},{"$f":"IF('[2]MONE(M)'!$AO140=\"\",\"\",'[2]MONE(M)'!$AO140)","v":"n.d."},{"$f":"IF('[3]MONE(M)'!$AO140=\"\",\"\",'[3]MONE(M)'!$AO140)","v":"n.d."},{"$f":"IF('[4]MONE(M)'!$AO140=\"\",\"\",'[4]MONE(M)'!$AO140)","v":"n.d."},{"$f":"+'[5]MONE(M)'!$AO140","v":"n.d."},{"$f":"IF('[6]MONE(M)'!$AO140=\"\",\"\",'[6]MONE(M)'!$AO140)","v":"n.d."},{"$f":"IF('[7]MONE(M)'!$AO140=\"\",\"\",'[7]MONE(M)'!$AO140)","v":"n.d."},{"$f":"IF('[8]MONE(M)'!$AO140=\"\",\"\",'[8]MONE(M)'!$AO140)","v":"n.d."},"n.d.","n.d.","n.d.","n.d.","n.d.","n.d.","n.d.",{"$f":"IF('[1]FISCAL(M)'!$K140=\"\",\"\",'[1]FISCAL(M)'!$K140)","v":"n.d."},{"$f":"+'[1]REAL(A)'!$AO$20","v":"n.d."},"n.d.",{"$f":"IF('[1]FISCAL(M)'!$L140=\"\",\"\",'[1]FISCAL(M)'!$L140)","v":"n.d."},{"$f":"+'[1]REAL(A)'!$AP$20","v":"n.d."},"n.d.","n.d.","n.d.","n.d.","n.d.","n.d.","n.d.","n.d.","n.d.","n.d.","n.d.","n.d.","n.d.","n.d.","n.d.","n.d.","n.d."]
[2000,"diciembre","2000-diciembre",{"$f":"IF('[1]REAL IPC(M)'!$AL141=\"\",\"\",+'[1]REAL IPC(M)'!$AL141)","v":7.3817866993046044},{"$f":"IF('[1]REAL IPC(M)'!$BE141=\"\",\"\",+'[1]REAL IPC(M)'!$BE141)","v":7.0766207052463281},{"$f":"IF('[1]REAL IPC(M)'!$AM141=\"\",\"\",+'[1]REAL IPC(M)'!$AM141)","v":6.7216347228034934},{"$f":"IF('[1]REAL IPC(M)'!$BI141=\"\",\"\",+'[1]REAL IPC(M)'!$BI141)","v":6.4524411940798387},{"$f":"IF('[1]REAL IMAE(M)'!BJ141=\"\",\"\",'[1]REAL IMAE(M)'!BJ141)","v":"n.d."},{"$f":"IF('[1]REAL IMAE(M)'!BK141=\"\",\"\",'[1]REAL IMAE(M)'!BK141)","v":"n.d."},{"$f":"IF('[1]REAL IMAE(M)'!BN141=\"\",\"\",'[1]REAL IMAE(M)'!BN141)","v":"n.d."},{"$f":"IF('[1]REAL IMAE(M)'!BO141=\"\",\"\",'[1]REAL IMAE(M)'!BO141)","v":"n.d."},{"$f":"IF('[1]EXT RIN(M)'!$K141=\"\",\"\",'[1]EXT RIN(M)'!$K141)","v":"n.d."},"n.d.",{"$f":"IF('[1]EXT RIN(M)'!$L141=\"\",\"\",'[1]EXT RIN(M)'!$L141)","v":"n.d."},"n.d.",{"$f":"IF('[1]MONE(M)CARD'!EG141=\"\",\"\",'[1]MONE(M)CARD'!EG141)","v":"n.d."},{"$f":"IF('[1]MONE(M)CARD'!EK141=\"\",\"\",'[1]MONE(M)CARD'!EK141)","v":"n.d."},{"$f":"IF('[1]MONE(M)CARD'!EP141=\"\",\"\",'[1]MONE(M)CARD'!EP141)","v":"n.d."},{"$f":"IF('[1]MONE(M)CARD'!ES141=\"\",\"\",'[1]MONE(M)CARD'!ES141)","v":"n.d."},{"$f":"IF('[1]MONE(M)CARD'!EV141=\"\",\"\",'[1]MONE(M)CARD'!EV141)","v":"n.d."},{"$f":"IF('[1]MONE(M)CARD'!EZ141=\"\",\"\",'[1]MONE(M)CARD'!EZ141)","v":"n.d."},{"$f":"IF('[1]MONE(M)CAPARD'!FC141=\"\",\"\",'[1]MONE(M)CAPARD'!FC141)","v":"n.d."},{"$f":"IF('[1]MONE(M)CAPARD'!FG141=\"\",\"\",'[1]MONE(M)CAPARD'!FG141)","v":"n.d."},{"$f":"IF('[1]MONE(M)CAPARD'!FL141=\"\",\"\",'[1]MONE(M)CAPARD'!FL141)","v":"n.d."},{"$f":"IF('[1]MONE(M)CAPARD'!FO141=\"\",\"\",'[1]MONE(M)CAPARD'!FO141)","v":"n.d."},{"$f":"IF('[1]MONE(M)CAPARD'!FR141=\"\",\"\",'[1]MONE(M)CAPARD'!FR141)","v":"n.d."},{"$f":"IF('[1]MONE(M)CAPARD'!FV141=\"\",\"\",'[1]MONE(M)CAPARD'!FV141)","v":"n.d."},{"$f":"IF('[1]MONE(M)CARD'!FV141=\"\",\"\",'[1]MONE(M)CARD'!FV141)","v":""},{"$f":"IF('[1]MONE(M)CARD'!GD141=\"\",\"\",'[1]MONE(M)CARD'!GD141)","v":"n.d."},{"$f":"IF('[1]MONE(M)CARD'!GE141=\"\",\"\",'[1]MONE(M)CARD'!GE141)","v":"n.d."},"n.d.","n.d.","n.d.","n.d.","n.d.","n.d.","n.d.","n.d.",null,"n.d.","n.d.","n.d.","n.d.","n.d.",{"$f":"IF('[1]MONE(M)CAPARD'!GS141=\"\",\"\",'[1]MONE(M)CAPARD'!GS141)","v":"n.d."},{"$f":"IF('[1]MONE(M)CARD'!HA141=\"\",\"\",'[1]MONE(M)CAPARD'!HA141)","v":"n.d."},{"$f":"IF('[1]MONE(M)CAPARD'!HB141=\"\",\"\",'[1]MONE(M)CAPARD'!HB141)","v":"n.d."},"n.d.","n.d.","n.d.","n.d.","n.d.","n.d.","n.d.","n.d.","n.d.","n.d.","n.d.","n.d.","n.d.","n.d.",{"$f":"IF('[1]MONE(M)CAPARD'!AS141=\"\",\"\",'[1]MONE(M)CAPARD'!AS141)","v":"n.d."},{"$f":"IF('[1]MONE(M)CAPARD'!AT141=\"\",\"\",'[1]MONE(M)CAPARD'!AT141)","v":"n.a."},{"$f":"IF('[1]MONE(M)CAPARD'!AU141=\"\",\"\",'[1]MONE(M)CAPARD'!AU141)","v":"n.d."},{"$f":"IF('[1]MONE(M)CAPARD'!AV141=\"\",\"\",'[1]MONE(M)CAPARD'!AV141)","v":"n.d."},{"$f":"IF('[1]MONE(M)CAPARD'!AW141=\"\",\"\",'[1]MONE(M)CAPARD'!AW141)","v":"n.a."},{"$f":"IF('[1]MONE(M)CAPARD'!AX141=\"\",\"\",'[1]MONE(M)CAPARD'!AX141)","v":"n.d."},{"$f":"IF('[1]MONE(M)CAPARD'!AY141=\"\",\"\",'[1]MONE(M)CAPARD'!AY141)","v":"n.a."},{"$f":"IF('[1]FISCAL(M)'!$K141=\"\",\"\",'[1]FISCAL(M)'!$K141)","v":"n.d."},{"$f":"IF('[1]FISCAL(M)'!$L141=\"\",\"\",'[1]FISCAL(M)'!$L141)","v":"n.d."},{"$f":"IF('[1]FISCAL(M)'!$AY141=\"\",\"\",'[1]FISCAL(M)'!$AY141)","v":"n.d."},{"$f":"IF('[1]FISCAL(M)'!$BI141=\"\",\"\",'[1]FISCAL(M)'!$BI141)","v":"n.d."},{"$f":"IF('[1]FISCAL(M)'!$BS141=\"\",\"\",'[1]FISCAL(M)'!$BS141)","v":"n.d."},{"$f":"IF('[1]FISCAL(M)'!$AZ141=\"\",\"\",'[1]FISCAL(M)'!$AZ141)","v":"n.d."},{"$f":"IF('[1]FISCAL(M)'!$BJ141=\"\",\"\",'[1]FISCAL(M)'!$BJ141)","v":"n.d."},{"$f":"IF('[1]FISCAL(M)'!$BT141=\"\",\"\",'[1]FISCAL(M)'!$BT141)","v":"n.d."},{"$f":"IF('[2]MONE(M)'!$AO141=\"\",\"\",'[2]MONE(M)'!$AO141)","v":"n.d."},{"$f":"IF('[3]MONE(M)'!$AO141=\"\",\"\",'[3]MONE(M)'!$AO141)","v":"n.d."},{"$f":"IF('[4]MONE(M)'!$AO141=\"\",\"\",'[4]MONE(M)'!$AO141)","v":"n.d."},{"$f":"+'[5]MONE(M)'!$AO141","v":"n.d."},{"$f":"IF('[6]MONE(M)'!$AO141=\"\",\"\",'[6]MONE(M)'!$AO141)","v":"n.d."},{"$f":"IF('[7]MONE(M)'!$AO141=\"\",\"\",'[7]MONE(M)'!$AO141)","v":"n.d."},{"$f":"IF('[8]MONE(M)'!$AO141=\"\",\"\",'[8]MONE(M)'!$AO141)","v":"n.d."},"n.d.","n.d.","n.d.","n.d.","n.d.","n.d.","n.d.",{"$f":"IF('[1]FISCAL(M)'!$K141=\"\",\"\",'[1]FISCAL(M)'!$K141)","v":"n.d."},{"$f":"+'[1]REAL(A)'!$AO$20","v":"n.d."},"n.d.",{"$f":"IF('[1]FISCAL(M)'!$L141=\"\",\"\",'[1]FISCAL(M)'!$L141)","v":"n.d."},{"$f":"+'[1]REAL(A)'!$AP$20","v":"n.d."},"n.d.","n.d.","n.d.","n.d.","n.d.","n.d.","n.d.","n.d.","n.d.","n.d.","n.d.","n.d.","n.d.","n.d.","n.d.","n.d.","n.d."]
[2001,"enero","2001-enero",{"$f":"IF('[1]REAL IPC(M)'!$AL142=\"\",\"\",+'[1]REAL IPC(M)'!$AL142)","v":8.4528961608646433},{"$f":"IF('[1]REAL IPC(M)'!$BE142=\"\",\"\",+'[1]REAL IPC(M)'!$BE142)","v":7.137498617203919},{"$f":"IF('[1]REAL IPC(M)'!$AM142=\"\",\"\",+'[1]REAL IPC(M)'!$AM142)","v":7.7505204958452367},{"$f":"IF('[1]REAL IPC(M)'!$BI142=\"\",\"\",+'[1]REAL IPC(M)'!$BI142)","v":6.5018550460108404},{"$f":"IF('[1]REAL IMAE(M)'!BJ142=\"\",\"\",'[1]REAL IMAE(M)'!BJ142)","v":"n.d."},{"$f":"IF('[1]REAL IMAE(M)'!BK142=\"\",\"\",'[1]REAL IMAE(M)'!BK142)","v":"n.d."},{"$f":"IF('[1]REAL IMAE(M)'!BN142=\"\",\"\",'[1]REAL IMAE(M)'!BN142)","v":"n.d."},{"$f":"IF('[1]REAL IMAE(M)'!BO142=\"\",\"\",'[1]REAL IMAE(M)'!BO142)","v":"n.d."},{"$f":"IF('[1]EXT RIN(M)'!$K142=\"\",\"\",'[1]EXT RIN(M)'!$K142)","v":"n.d."},"",{"$f":"IF('[1]EXT RIN(M)'!$L142=\"\",\"\",'[1]EXT RIN(M)'!$L142)","v":"n.d."},"",{"$f":"IF('[1]MONE(M)CARD'!EG142=\"\",\"\",'[1]MONE(M)CARD'!EG142)","v":"n.d."},{"$f":"IF('[1]MONE(M)CARD'!EK142=\"\",\"\",'[1]MONE(M)CARD'!EK142)","v":"n.d."},{"$f":"IF('[1]MONE(M)CARD'!EP142=\"\",\"\",'[1]MONE(M)CARD'!EP142)","v":"n.d."},{"$f":"IF('[1]MONE(M)CARD'!ES142=\"\",\"\",'[1]MONE(M)CARD'!ES142)","v":"n.d."},{"$f":"IF('[1]MONE(M)CARD'!EV142=\"\",\"\",'[1]MONE(M)CARD'!EV142)","v":"n.d."},{"$f":"IF('[1]MONE(M)CARD'!EZ142=\"\",\"\",'[1]MONE(M)CARD'!EZ142)","v":"n.d."},{"$f":"IF('[1]MONE(M)CAPARD'!FC142=\"\",\"\",'[1]MONE(M)CAPARD'!FC142)","v":"n.d."},{"$f":"IF('[1]MONE(M)CAPARD'!FG142=\"\",\"\",'[1]MONE(M)CAPARD'!FG142)","v":"n.d."},{"$f":"IF('[1]MONE(M)CAPARD'!FL142=\"\",\"\",'[1]MONE(M)CAPARD'!FL142)","v":"n.d."},{"$f":"IF('[1]MONE(M)CAPARD'!FO142=\"\",\"\",'[1]MONE(M)CAPARD'!FO142)","v":"n.d."},{"$f":"IF('[1]MONE(M)CAPARD'!FR142=\"\",\"\",'[1]MONE(M)CAPARD'!FR142)","v":"n.d."},{"$f":"IF('[1]MONE(M)CAPARD'!FV142=\"\",\"\",'[1]MONE(M)CAPARD'!FV142)","v":"n.d."},{"$f":"IF('[1]MONE(M)CARD'!FV142=\"\",\"\",'[1]MONE(M)CARD'!FV142)","v":""},{"$f":"IF('[1]MONE(M)CARD'!GD142=\"\",\"\",'[1]MONE(M)CARD'!GD142)","v":"n.d."},{"$f":"IF('[1]MONE(M)CARD'!GE142=\"\",\"\",'[1]MONE(M)CARD'!GE142)","v":"n.d."},"n.d.","n.d.","n.d.","n.d.","n.d.",{"$f":"IFERROR(+AF135+AH135,\"n.d.\")","v":"n.d."},"n.d.","n.d.",null,"n.d.","n.d.","n.d.","n.d.","n.d.",{"$f":"IF('[1]MONE(M)CAPARD'!GS142=\"\",\"\",'[1]MONE(M)CAPARD'!GS142)","v":"n.d."},{"$f":"IF('[1]MONE(M)CARD'!HA142=\"\",\"\",'[1]MONE(M)CAPARD'!HA142)","v":"n.d."},{"$f":"IF('[1]MONE(M)CAPARD'!HB142=\"\",\"\",'[1]MONE(M)CAPARD'!HB142)","v":"n.d."},"n.d.","n.d.","n.d.","n.d.","n.d.","n.d.","n.d.","n.d.","n.d.","n.d.","n.d.","n.d.","n.d.","n.d.",{"$f":"IF('[1]MONE(M)CAPARD'!AS142=\"\",\"\",'[1]MONE(M)CAPARD'!AS142)","v":"n.d."},{"$f":"IF('[1]MONE(M)CAPARD'!AT142=\"\",\"\",'[1]MONE(M)CAPARD'!AT142)","v":"n.a."},{"$f":"IF('[1]MONE(M)CAPARD'!AU142=\"\",\"\",'[1]MONE(M)CAPARD'!AU142)","v":"n.d."},{"$f":"IF('[1]MONE(M)CAPARD'!AV142=\"\",\"\",'[1]MONE(M)CAPARD'!AV142)","v":"n.d."},{"$f":"IF('[1]MONE(M)CAPARD'!AW142=\"\",\"\",'[1]MONE(M)CAPARD'!AW142)","v":"n.a."},{"$f":"IF('[1]MONE(M)CAPARD'!AX142=\"\",\"\",'[1]MONE(M)CAPARD'!AX142)","v":"n.d."},{"$f":"IF('[1]MONE(M)CAPARD'!AY142=\"\",\"\",'[1]MONE(M)CAPARD'!AY142)","v":"n.a."},{"$f":"IF('[1]FISCAL(M)'!$K142=\"\",\"\",'[1]FISCAL(M)'!$K142)","v":"n.d."},{"$f":"IF('[1]FISCAL(M)'!$L142=\"\",\"\",'[1]FISCAL(M)'!$L142)","v":"n.d."},{"$f":"IF('[1]FISCAL(M)'!$AY142=\"\",\"\",'[1]FISCAL(M)'!$AY142)","v":"n.d."},{"$f":"IF('[1]FISCAL(M)'!$BI142=\"\",\"\",'[1]FISCAL(M)'!$BI142)","v":"n.d."},{"$f":"IF('[1]FISCAL(M)'!$BS142=\"\",\"\",'[1]FISCAL(M)'!$BS142)","v":"n.d."},{"$f":"IF('[1]FISCAL(M)'!$AZ142=\"\",\"\",'[1]FISCAL(M)'!$AZ142)","v":"n.d."},{"$f":"IF('[1]FISCAL(M)'!$BJ142=\"\",\"\",'[1]FISCAL(M)'!$BJ142)","v":"n.d."},{"$f":"IF('[1]FISCAL(M)'!$BT142=\"\",\"\",'[1]FISCAL(M)'!$BT142)","v":"n.d."},{"$f":"IF('[2]MONE(M)'!$AO142=\"\",\"\",'[2]MONE(M)'!$AO142)","v":"n.d."},{"$f":"IF('[3]MONE(M)'!$AO142=\"\",\"\",'[3]MONE(M)'!$AO142)","v":"n.d."},{"$f":"IF('[4]MONE(M)'!$AO142=\"\",\"\",'[4]MONE(M)'!$AO142)","v":"n.d."},{"$f":"+'[5]MONE(M)'!$AO142","v":"n.d."},{"$f":"IF('[6]MONE(M)'!$AO142=\"\",\"\",'[6]MONE(M)'!$AO142)","v":"n.d."},{"$f":"IF('[7]MONE(M)'!$AO142=\"\",\"\",'[7]MONE(M)'!$AO142)","v":"n.d."},{"$f":"IF('[8]MONE(M)'!$AO142=\"\",\"\",'[8]MONE(M)'!$AO142)","v":"n.d."},"n.d.","n.d.","n.d.","n.d.","n.d.","n.d.","n.d.",{"$f":"IF('[1]FISCAL(M)'!$K142=\"\",\"\",'[1]FISCAL(M)'!$K142)","v":"n.d."},{"$f":"+'[1]REAL(A)'!$AO$21","v":86214.197483650845},"n.d.",{"$f":"IF('[1]FISCAL(M)'!$L142=\"\",\"\",'[1]FISCAL(M)'!$L142)","v":"n.d."},{"$f":"+'[1]REAL(A)'!$AP$21","v":"n.d."},"n.d.","n.d.","n.d.","n.d.","n.d.","n.d.","n.d.","n.d.","n.d.","n.d.","n.d.","n.d.","n.d.","n.d.","n.d.","n.d.","n.d."]
[2001,"febrero","2001-febrero",{"$f":"IF('[1]REAL IPC(M)'!$AL143=\"\",\"\",+'[1]REAL IPC(M)'!$AL143)","v":8.2151965141061147},{"$f":"IF('[1]REAL IPC(M)'!$BE143=\"\",\"\",+'[1]REAL IPC(M)'!$BE143)","v":7.2033219946628702},{"$f":"IF('[1]REAL IPC(M)'!$AM143=\"\",\"\",+'[1]REAL IPC(M)'!$AM143)","v":7.5422219928604761},{"$f":"IF('[1]REAL IPC(M)'!$BI143=\"\",\"\",+'[1]REAL IPC(M)'!$BI143)","v":6.5555803209189412},{"$f":"IF('[1]REAL IMAE(M)'!BJ143=\"\",\"\",'[1]REAL IMAE(M)'!BJ143)","v":"n.d."},{"$f":"IF('[1]REAL IMAE(M)'!BK143=\"\",\"\",'[1]REAL IMAE(M)'!BK143)","v":"n.d."},{"$f":"IF('[1]REAL IMAE(M)'!BN143=\"\",\"\",'[1]REAL IMAE(M)'!BN143)","v":"n.d."},{"$f":"IF('[1]REAL IMAE(M)'!BO143=\"\",\"\",'[1]REAL IMAE(M)'!BO143)","v":"n.d."},{"$f":"IF('[1]EXT RIN(M)'!$K143=\"\",\"\",'[1]EXT RIN(M)'!$K143)","v":"n.d."},"",{"$f":"IF('[1]EXT RIN(M)'!$L143=\"\",\"\",'[1]EXT RIN(M)'!$L143)","v":"n.d."},"",{"$f":"IF('[1]MONE(M)CARD'!EG143=\"\",\"\",'[1]MONE(M)CARD'!EG143)","v":"n.d."},{"$f":"IF('[1]MONE(M)CARD'!EK143=\"\",\"\",'[1]MONE(M)CARD'!EK143)","v":"n.d."},{"$f":"IF('[1]MONE(M)CARD'!EP143=\"\",\"\",'[1]MONE(M)CARD'!EP143)","v":"n.d."},{"$f":"IF('[1]MONE(M)CARD'!ES143=\"\",\"\",'[1]MONE(M)CARD'!ES143)","v":"n.d."},{"$f":"IF('[1]MONE(M)CARD'!EV143=\"\",\"\",'[1]MONE(M)CARD'!EV143)","v":"n.d."},{"$f":"IF('[1]MONE(M)CARD'!EZ143=\"\",\"\",'[1]MONE(M)CARD'!EZ143)","v":"n.d."},{"$f":"IF('[1]MONE(M)CAPARD'!FC143=\"\",\"\",'[1]MONE(M)CAPARD'!FC143)","v":"n.d."},{"$f":"IF('[1]MONE(M)CAPARD'!FG143=\"\",\"\",'[1]MONE(M)CAPARD'!FG143)","v":"n.d."},{"$f":"IF('[1]MONE(M)CAPARD'!FL143=\"\",\"\",'[1]MONE(M)CAPARD'!FL143)","v":"n.d."},{"$f":"IF('[1]MONE(M)CAPARD'!FO143=\"\",\"\",'[1]MONE(M)CAPARD'!FO143)","v":"n.d."},{"$f":"IF('[1]MONE(M)CAPARD'!FR143=\"\",\"\",'[1]MONE(M)CAPARD'!FR143)","v":"n.d."},{"$f":"IF('[1]MONE(M)CAPARD'!FV143=\"\",\"\",'[1]MONE(M)CAPARD'!FV143)","v":"n.d."},{"$f":"IF('[1]MONE(M)CARD'!FV143=\"\",\"\",'[1]MONE(M)CARD'!FV143)","v":""},{"$f":"IF('[1]MONE(M)CARD'!GD143=\"\",\"\",'[1]MONE(M)CARD'!GD143)","v":"n.d."},{"$f":"IF('[1]MONE(M)CARD'!GE143=\"\",\"\",'[1]MONE(M)CARD'!GE143)","v":"n.d."},"n.d.","n.d.","n.d.","n.d.","n.d.","n.d.","n.d.","n.d.",null,"n.d.","n.d.","n.d.","n.d.","n.d.",{"$f":"IF('[1]MONE(M)CAPARD'!GS143=\"\",\"\",'[1]MONE(M)CAPARD'!GS143)","v":"n.d."},{"$f":"IF('[1]MONE(M)CARD'!HA143=\"\",\"\",'[1]MONE(M)CAPARD'!HA143)","v":"n.d."},{"$f":"IF('[1]MONE(M)CAPARD'!HB143=\"\",\"\",'[1]MONE(M)CAPARD'!HB143)","v":"n.d."},"n.d.","n.d.","n.d.","n.d.","n.d.","n.d.","n.d.","n.d.","n.d.","n.d.","n.d.","n.d.","n.d.","n.d.",{"$f":"IF('[1]MONE(M)CAPARD'!AS143=\"\",\"\",'[1]MONE(M)CAPARD'!AS143)","v":"n.d."},{"$f":"IF('[1]MONE(M)CAPARD'!AT143=\"\",\"\",'[1]MONE(M)CAPARD'!AT143)","v":"n.a."},{"$f":"IF('[1]MONE(M)CAPARD'!AU143=\"\",\"\",'[1]MONE(M)CAPARD'!AU143)","v":"n.d."},{"$f":"IF('[1]MONE(M)CAPARD'!AV143=\"\",\"\",'[1]MONE(M)CAPARD'!AV143)","v":"n.d."},{"$f":"IF('[1]MONE(M)CAPARD'!AW143=\"\",\"\",'[1]MONE(M)CAPARD'!AW143)","v":"n.a."},{"$f":"IF('[1]MONE(M)CAPARD'!AX143=\"\",\"\",'[1]MONE(M)CAPARD'!AX143)","v":"n.d."},{"$f":"IF('[1]MONE(M)CAPARD'!AY143=\"\",\"\",'[1]MONE(M)CAPARD'!AY143)","v":"n.a."},{"$f":"IF('[1]FISCAL(M)'!$K143=\"\",\"\",'[1]FISCAL(M)'!$K143)","v":"n.d."},{"$f":"IF('[1]FISCAL(M)'!$L143=\"\",\"\",'[1]FISCAL(M)'!$L143)","v":"n.d."},{"$f":"IF('[1]FISCAL(M)'!$AY143=\"\",\"\",'[1]FISCAL(M)'!$AY143)","v":"n.d."},{"$f":"IF('[1]FISCAL(M)'!$BI143=\"\",\"\",'[1]FISCAL(M)'!$BI143)","v":"n.d."},{"$f":"IF('[1]FISCAL(M)'!$BS143=\"\",\"\",'[1]FISCAL(M)'!$BS143)","v":"n.d."},{"$f":"IF('[1]FISCAL(M)'!$AZ143=\"\",\"\",'[1]FISCAL(M)'!$AZ143)","v":"n.d."},{"$f":"IF('[1]FISCAL(M)'!$BJ143=\"\",\"\",'[1]FISCAL(M)'!$BJ143)","v":"n.d."},{"$f":"IF('[1]FISCAL(M)'!$BT143=\"\",\"\",'[1]FISCAL(M)'!$BT143)","v":"n.d."},{"$f":"IF('[2]MONE(M)'!$AO143=\"\",\"\",'[2]MONE(M)'!$AO143)","v":"n.d."},{"$f":"IF('[3]MONE(M)'!$AO143=\"\",\"\",'[3]MONE(M)'!$AO143)","v":"n.d."},{"$f":"IF('[4]MONE(M)'!$AO143=\"\",\"\",'[4]MONE(M)'!$AO143)","v":"n.d."},{"$f":"+'[5]MONE(M)'!$AO143","v":"n.d."},{"$f":"IF('[6]MONE(M)'!$AO143=\"\",\"\",'[6]MONE(M)'!$AO143)","v":"n.d."},{"$f":"IF('[7]MONE(M)'!$AO143=\"\",\"\",'[7]MONE(M)'!$AO143)","v":"n.d."},{"$f":"IF('[8]MONE(M)'!$AO143=\"\",\"\",'[8]MONE(M)'!$AO143)","v":"n.d."},"n.d.","n.d.","n.d.","n.d.","n.d.","n.d.","n.d.",{"$f":"IF('[1]FISCAL(M)'!$K143=\"\",\"\",'[1]FISCAL(M)'!$K143)","v":"n.d."},{"$f":"+'[1]REAL(A)'!$AO$21","v":86214.197483650845},"n.d.",{"$f":"IF('[1]FISCAL(M)'!$L143=\"\",\"\",'[1]FISCAL(M)'!$L143)","v":"n.d."},{"$f":"+'[1]REAL(A)'!$AP$21","v":"n.d."},"n.d.","n.d.","n.d.","n.d.","n.d.","n.d.","n.d.","n.d.","n.d.","n.d.","n.d.","n.d.","n.d.","n.d.","n.d.","n.d.","n.d."]
[2001,"marzo","2001-marzo",{"$f":"IF('[1]REAL IPC(M)'!$AL144=\"\",\"\",+'[1]REAL IPC(M)'!$AL144)","v":8.015499079527789},{"$f":"IF('[1]REAL IPC(M)'!$BE144=\"\",\"\",+'[1]REAL IPC(M)'!$BE144)","v":7.2742446261483407},{"$f":"IF('[1]REAL IPC(M)'!$AM144=\"\",\"\",+'[1]REAL IPC(M)'!$AM144)","v":7.320379379672115},{"$f":"IF('[1]REAL IPC(M)'!$BI144=\"\",\"\",+'[1]REAL IPC(M)'!$BI144)","v":6.6137997475913313},{"$f":"IF('[1]REAL IMAE(M)'!BJ144=\"\",\"\",'[1]REAL IMAE(M)'!BJ144)","v":"n.d."},{"$f":"IF('[1]REAL IMAE(M)'!BK144=\"\",\"\",'[1]REAL IMAE(M)'!BK144)","v":"n.d."},{"$f":"IF('[1]REAL IMAE(M)'!BN144=\"\",\"\",'[1]REAL IMAE(M)'!BN144)","v":"n.d."},{"$f":"IF('[1]REAL IMAE(M)'!BO144=\"\",\"\",'[1]REAL IMAE(M)'!BO144)","v":"n.d."},{"$f":"IF('[1]EXT RIN(M)'!$K144=\"\",\"\",'[1]EXT RIN(M)'!$K144)","v":"n.d."},"",{"$f":"IF('[1]EXT RIN(M)'!$L144=\"\",\"\",'[1]EXT RIN(M)'!$L144)","v":"n.d."},"",{"$f":"IF('[1]MONE(M)CARD'!EG144=\"\",\"\",'[1]MONE(M)CARD'!EG144)","v":"n.d."},{"$f":"IF('[1]MONE(M)CARD'!EK144=\"\",\"\",'[1]MONE(M)CARD'!EK144)","v":"n.d."},{"$f":"IF('[1]MONE(M)CARD'!EP144=\"\",\"\",'[1]MONE(M)CARD'!EP144)","v":"n.d."},{"$f":"IF('[1]MONE(M)CARD'!ES144=\"\",\"\",'[1]MONE(M)CARD'!ES144)","v":"n.d."},{"$f":"IF('[1]MONE(M)CARD'!EV144=\"\",\"\",'[1]MONE(M)CARD'!EV144)","v":"n.d."},{"$f":"IF('[1]MONE(M)CARD'!EZ144=\"\",\"\",'[1]MONE(M)CARD'!EZ144)","v":"n.d."},{"$f":"IF('[1]MONE(M)CAPARD'!FC144=\"\",\"\",'[1]MONE(M)CAPARD'!FC144)","v":"n.d."},{"$f":"IF('[1]MONE(M)CAPARD'!FG144=\"\",\"\",'[1]MONE(M)CAPARD'!FG144)","v":"n.d."},{"$f":"IF('[1]MONE(M)CAPARD'!FL144=\"\",\"\",'[1]MONE(M)CAPARD'!FL144)","v":"n.d."},{"$f":"IF('[1]MONE(M)CAPARD'!FO144=\"\",\"\",'[1]MONE(M)CAPARD'!FO144)","v":"n.d."},{"$f":"IF('[1]MONE(M)CAPARD'!FR144=\"\",\"\",'[1]MONE(M)CAPARD'!FR144)","v":"n.d."},{"$f":"IF('[1]MONE(M)CAPARD'!FV144=\"\",\"\",'[1]MONE(M)CAPARD'!FV144)","v":"n.d."},{"$f":"IF('[1]MONE(M)CARD'!FV144=\"\",\"\",'[1]MONE(M)CARD'!FV144)","v":""},{"$f":"IF('[1]MONE(M)CARD'!GD144=\"\",\"\",'[1]MONE(M)CARD'!GD144)","v":"n.d."},{"$f":"IF('[1]MONE(M)CARD'!GE144=\"\",\"\",'[1]MONE(M)CARD'!GE144)","v":"n.d."},"n.d.","n.d.","n.d.","n.d.","n.d.","n.d.","n.d.","n.d.",null,"n.d.","n.d.","n.d.","n.d.","n.d.",{"$f":"IF('[1]MONE(M)CAPARD'!GS144=\"\",\"\",'[1]MONE(M)CAPARD'!GS144)","v":"n.d."},{"$f":"IF('[1]MONE(M)CARD'!HA144=\"\",\"\",'[1]MONE(M)CAPARD'!HA144)","v":"n.d."},{"$f":"IF('[1]MONE(M)CAPARD'!HB144=\"\",\"\",'[1]MONE(M)CAPARD'!HB144)","v":"n.d."},"n.d.","n.d.","n.d.","n.d.","n.d.","n.d.","n.d.","n.d.","n.d.","n.d.","n.d.","n.d.","n.d.","n.d.",{"$f":"IF('[1]MONE(M)CAPARD'!AS144=\"\",\"\",'[1]MONE(M)CAPARD'!AS144)","v":"n.d."},{"$f":"IF('[1]MONE(M)CAPARD'!AT144=\"\",\"\",'[1]MONE(M)CAPARD'!AT144)","v":"n.a."},{"$f":"IF('[1]MONE(M)CAPARD'!AU144=\"\",\"\",'[1]MONE(M)CAPARD'!AU144)","v":"n.d."},{"$f":"IF('[1]MONE(M)CAPARD'!AV144=\"\",\"\",'[1]MONE(M)CAPARD'!AV144)","v":"n.d."},{"$f":"IF('[1]MONE(M)CAPARD'!AW144=\"\",\"\",'[1]MONE(M)CAPARD'!AW144)","v":"n.a."},{"$f":"IF('[1]MONE(M)CAPARD'!AX144=\"\",\"\",'[1]MONE(M)CAPARD'!AX144)","v":"n.d."},{"$f":"IF('[1]MONE(M)CAPARD'!AY144=\"\",\"\",'[1]MONE(M)CAPARD'!AY144)","v":"n.a."},{"$f":"IF('[1]FISCAL(M)'!$K144=\"\",\"\",'[1]FISCAL(M)'!$K144)","v":"n.d."},{"$f":"IF('[1]FISCAL(M)'!$L144=\"\",\"\",'[1]FISCAL(M)'!$L144)","v":"n.d."},{"$f":"IF('[1]FISCAL(M)'!$AY144=\"\",\"\",'[1]FISCAL(M)'!$AY144)","v":"n.d."},{"$f":"IF('[1]FISCAL(M)'!$BI144=\"\",\"\",'[1]FISCAL(M)'!$BI144)","v":"n.d."},{"$f":"IF('[1]FISCAL(M)'!$BS144=\"\",\"\",'[1]FISCAL(M)'!$BS144)","v":"n.d."},{"$f":"IF('[1]FISCAL(M)'!$AZ144=\"\",\"\",'[1]FISCAL(M)'!$AZ144)","v":"n.d."},{"$f":"IF('[1]FISCAL(M)'!$BJ144=\"\",\"\",'[1]FISCAL(M)'!$BJ144)","v":"n.d."},{"$f":"IF('[1]FISCAL(M)'!$BT144=\"\",\"\",'[1]FISCAL(M)'!$BT144)","v":"n.d."},{"$f":"IF('[2]MONE(M)'!$AO144=\"\",\"\",'[2]MONE(M)'!$AO144)","v":"n.d."},{"$f":"IF('[3]MONE(M)'!$AO144=\"\",\"\",'[3]MONE(M)'!$AO144)","v":"n.d."},{"$f":"IF('[4]MONE(M)'!$AO144=\"\",\"\",'[4]MONE(M)'!$AO144)","v":"n.d."},{"$f":"+'[5]MONE(M)'!$AO144","v":"n.d."},{"$f":"IF('[6]MONE(M)'!$AO144=\"\",\"\",'[6]MONE(M)'!$AO144)","v":"n.d."},{"$f":"IF('[7]MONE(M)'!$AO144=\"\",\"\",'[7]MONE(M)'!$AO144)","v":"n.d."},{"$f":"IF('[8]MONE(M)'!$AO144=\"\",\"\",'[8]MONE(M)'!$AO144)","v":"n.d."},"n.d.","n.d.","n.d.","n.d.","n.d.","n.d.","n.d.",{"$f":"IF('[1]FISCAL(M)'!$K144=\"\",\"\",'[1]FISCAL(M)'!$K144)","v":"n.d."},{"$f":"+'[1]REAL(A)'!$AO$21","v":86214.197483650845},"n.d.",{"$f":"IF('[1]FISCAL(M)'!$L144=\"\",\"\",'[1]FISCAL(M)'!$L144)","v":"n.d."},{"$f":"+'[1]REAL(A)'!$AP$21","v":"n.d."},"n.d.","n.d.","n.d.","n.d.","n.d.","n.d.","n.d.","n.d.","n.d.","n.d.","n.d.","n.d.","n.d.","n.d.","n.d.","n.d.","n.d."]
[2001,"abril","2001-abril",{"$f":"IF('[1]REAL IPC(M)'!$AL145=\"\",\"\",+'[1]REAL IPC(M)'!$AL145)","v":8.1846220825442231},{"$f":"IF('[1]REAL IPC(M)'!$BE145=\"\",\"\",+'[1]REAL IPC(M)'!$BE145)","v":7.3504686792537299},{"$f":"IF('[1]REAL IPC(M)'!$AM145=\"\",\"\",+'[1]REAL IPC(M)'!$AM145)","v":7.498100870094504},{"$f":"IF('[1]REAL IPC(M)'!$BI145=\"\",\"\",+'[1]REAL IPC(M)'!$BI145)","v":6.6767519283861931},{"$f":"IF('[1]REAL IMAE(M)'!BJ145=\"\",\"\",'[1]REAL IMAE(M)'!BJ145)","v":"n.d."},{"$f":"IF('[1]REAL IMAE(M)'!BK145=\"\",\"\",'[1]REAL IMAE(M)'!BK145)","v":"n.d."},{"$f":"IF('[1]REAL IMAE(M)'!BN145=\"\",\"\",'[1]REAL IMAE(M)'!BN145)","v":"n.d."},{"$f":"IF('[1]REAL IMAE(M)'!BO145=\"\",\"\",'[1]REAL IMAE(M)'!BO145)","v":"n.d."},{"$f":"IF('[1]EXT RIN(M)'!$K145=\"\",\"\",'[1]EXT RIN(M)'!$K145)","v":"n.d."},"",{"$f":"IF('[1]EXT RIN(M)'!$L145=\"\",\"\",'[1]EXT RIN(M)'!$L145)","v":"n.d."},"",{"$f":"IF('[1]MONE(M)CARD'!EG145=\"\",\"\",'[1]MONE(M)CARD'!EG145)","v":"n.d."},{"$f":"IF('[1]MONE(M)CARD'!EK145=\"\",\"\",'[1]MONE(M)CARD'!EK145)","v":"n.d."},{"$f":"IF('[1]MONE(M)CARD'!EP145=\"\",\"\",'[1]MONE(M)CARD'!EP145)","v":"n.d."},{"$f":"IF('[1]MONE(M)CARD'!ES145=\"\",\"\",'[1]MONE(M)CARD'!ES145)","v":"n.d."},{"$f":"IF('[1]MONE(M)CARD'!EV145=\"\",\"\",'[1]MONE(M)CARD'!EV145)","v":"n.d."},{"$f":"IF('[1]MONE(M)CARD'!EZ145=\"\",\"\",'[1]MONE(M)CARD'!EZ145)","v":"n.d."},{"$f":"IF('[1]MONE(M)CAPARD'!FC145=\"\",\"\",'[1]MONE(M)CAPARD'!FC145)","v":"n.d."},{"$f":"IF('[1]MONE(M)CAPARD'!FG145=\"\",\"\",'[1]MONE(M)CAPARD'!FG145)","v":"n.d."},{"$f":"IF('[1]MONE(M)CAPARD'!FL145=\"\",\"\",'[1]MONE(M)CAPARD'!FL145)","v":"n.d."},{"$f":"IF('[1]MONE(M)CAPARD'!FO145=\"\",\"\",'[1]MONE(M)CAPARD'!FO145)","v":"n.d."},{"$f":"IF('[1]MONE(M)CAPARD'!FR145=\"\",\"\",'[1]MONE(M)CAPARD'!FR145)","v":"n.d."},{"$f":"IF('[1]MONE(M)CAPARD'!FV145=\"\",\"\",'[1]MONE(M)CAPARD'!FV145)","v":"n.d."},{"$f":"IF('[1]MONE(M)CARD'!FV145=\"\",\"\",'[1]MONE(M)CARD'!FV145)","v":""},{"$f":"IF('[1]MONE(M)CARD'!GD145=\"\",\"\",'[1]MONE(M)CARD'!GD145)","v":"n.d."},{"$f":"IF('[1]MONE(M)CARD'!GE145=\"\",\"\",'[1]MONE(M)CARD'!GE145)","v":"n.d."},"n.d.","n.d.","n.d.","n.d.","n.d.","n.d.","n.d.","n.d.",null,"n.d.","n.d.","n.d.","n.d.","n.d.",{"$f":"IF('[1]MONE(M)CAPARD'!GS145=\"\",\"\",'[1]MONE(M)CAPARD'!GS145)","v":"n.d."},{"$f":"IF('[1]MONE(M)CARD'!HA145=\"\",\"\",'[1]MONE(M)CAPARD'!HA145)","v":"n.d."},{"$f":"IF('[1]MONE(M)CAPARD'!HB145=\"\",\"\",'[1]MONE(M)CAPARD'!HB145)","v":"n.d."},"n.d.","n.d.","n.d.","n.d.","n.d.","n.d.","n.d.","n.d.","n.d.","n.d.","n.d.","n.d.","n.d.","n.d.",{"$f":"IF('[1]MONE(M)CAPARD'!AS145=\"\",\"\",'[1]MONE(M)CAPARD'!AS145)","v":"n.d."},{"$f":"IF('[1]MONE(M)CAPARD'!AT145=\"\",\"\",'[1]MONE(M)CAPARD'!AT145)","v":"n.a."},{"$f":"IF('[1]MONE(M)CAPARD'!AU145=\"\",\"\",'[1]MONE(M)CAPARD'!AU145)","v":"n.d."},{"$f":"IF('[1]MONE(M)CAPARD'!AV145=\"\",\"\",'[1]MONE(M)CAPARD'!AV145)","v":"n.d."},{"$f":"IF('[1]MONE(M)CAPARD'!AW145=\"\",\"\",'[1]MONE(M)CAPARD'!AW145)","v":"n.a."},{"$f":"IF('[1]MONE(M)CAPARD'!AX145=\"\",\"\",'[1]MONE(M)CAPARD'!AX145)","v":"n.d."},{"$f":"IF('[1]MONE(M)CAPARD'!AY145=\"\",\"\",'[1]MONE(M)CAPARD'!AY145)","v":"n.a."},{"$f":"IF('[1]FISCAL(M)'!$K145=\"\",\"\",'[1]FISCAL(M)'!$K145)","v":"n.d."},{"$f":"IF('[1]FISCAL(M)'!$L145=\"\",\"\",'[1]FISCAL(M)'!$L145)","v":"n.d."},{"$f":"IF('[1]FISCAL(M)'!$AY145=\"\",\"\",'[1]FISCAL(M)'!$AY145)","v":"n.d."},{"$f":"IF('[1]FISCAL(M)'!$BI145=\"\",\"\",'[1]FISCAL(M)'!$BI145)","v":"n.d."},{"$f":"IF('[1]FISCAL(M)'!$BS145=\"\",\"\",'[1]FISCAL(M)'!$BS145)","v":"n.d."},{"$f":"IF('[1]FISCAL(M)'!$AZ145=\"\",\"\",'[1]FISCAL(M)'!$AZ145)","v":"n.d."},{"$f":"IF('[1]FISCAL(M)'!$BJ145=\"\",\"\",'[1]FISCAL(M)'!$BJ145)","v":"n.d."},{"$f":"IF('[1]FISCAL(M)'!$BT145=\"\",\"\",'[1]FISCAL(M)'!$BT145)","v":"n.d."},{"$f":"IF('[2]MONE(M)'!$AO145=\"\",\"\",'[2]MONE(M)'!$AO145)","v":"n.d."},{"$f":"IF('[3]MONE(M)'!$AO145=\"\",\"\",'[3]MONE(M)'!$AO145)","v":"n.d."},{"$f":"IF('[4]MONE(M)'!$AO145=\"\",\"\",'[4]MONE(M)'!$AO145)","v":"n.d."},{"$f":"+'[5]MONE(M)'!$AO145","v":"n.d."},{"$f":"IF('[6]MONE(M)'!$AO145=\"\",\"\",'[6]MONE(M)'!$AO145)","v":"n.d."},{"$f":"IF('[7]MONE(M)'!$AO145=\"\",\"\",'[7]MONE(M)'!$AO145)","v":"n.d."},{"$f":"IF('[8]MONE(M)'!$AO145=\"\",\"\",'[8]MONE(M)'!$AO145)","v":"n.d."},"n.d.","n.d.","n.d.","n.d.","n.d.","n.d.","n.d.",{"$f":"IF('[1]FISCAL(M)'!$K145=\"\",\"\",'[1]FISCAL(M)'!$K145)","v":"n.d."},{"$f":"+'[1]REAL(A)'!$AO$21","v":86214.197483650845},"n.d.",{"$f":"IF('[1]FISCAL(M)'!$L145=\"\",\"\",'[1]FISCAL(M)'!$L145)","v":"n.d."},{"$f":"+'[1]REAL(A)'!$AP$21","v":"n.d."},"n.d.","n.d.","n.d.","n.d.","n.d.","n.d.","n.d.","n.d.","n.d.","n.d.","n.d.","n.d.","n.d.","n.d.","n.d.","n.d.","n.d."]
[2001,"mayo ","2001-mayo ",{"$f":"IF('[1]REAL IPC(M)'!$AL146=\"\",\"\",+'[1]REAL IPC(M)'!$AL146)","v":8.6698559733803027},{"$f":"IF('[1]REAL IPC(M)'!$BE146=\"\",\"\",+'[1]REAL IPC(M)'!$BE146)","v":7.4322260664892781},{"$f":"IF('[1]REAL IPC(M)'!$AM146=\"\",\"\",+'[1]REAL IPC(M)'!$AM146)","v":7.939277192071148},{"$f":"IF('[1]REAL IPC(M)'!$BI146=\"\",\"\",+'[1]REAL IPC(M)'!$BI146)","v":6.744710768619977},{"$f":"IF('[1]REAL IMAE(M)'!BJ146=\"\",\"\",'[1]REAL IMAE(M)'!BJ146)","v":"n.d."},{"$f":"IF('[1]REAL IMAE(M)'!BK146=\"\",\"\",'[1]REAL IMAE(M)'!BK146)","v":"n.d."},{"$f":"IF('[1]REAL IMAE(M)'!BN146=\"\",\"\",'[1]REAL IMAE(M)'!BN146)","v":"n.d."},{"$f":"IF('[1]REAL IMAE(M)'!BO146=\"\",\"\",'[1]REAL IMAE(M)'!BO146)","v":"n.d."},{"$f":"IF('[1]EXT RIN(M)'!$K146=\"\",\"\",'[1]EXT RIN(M)'!$K146)","v":"n.d."},"",{"$f":"IF('[1]EXT RIN(M)'!$L146=\"\",\"\",'[1]EXT RIN(M)'!$L146)","v":"n.d."},"",{"$f":"IF('[1]MONE(M)CARD'!EG146=\"\",\"\",'[1]MONE(M)CARD'!EG146)","v":"n.d."},{"$f":"IF('[1]MONE(M)CARD'!EK146=\"\",\"\",'[1]MONE(M)CARD'!EK146)","v":"n.d."},{"$f":"IF('[1]MONE(M)CARD'!EP146=\"\",\"\",'[1]MONE(M)CARD'!EP146)","v":"n.d."},{"$f":"IF('[1]MONE(M)CARD'!ES146=\"\",\"\",'[1]MONE(M)CARD'!ES146)","v":"n.d."},{"$f":"IF('[1]MONE(M)CARD'!EV146=\"\",\"\",'[1]MONE(M)CARD'!EV146)","v":"n.d."},{"$f":"IF('[1]MONE(M)CARD'!EZ146=\"\",\"\",'[1]MONE(M)CARD'!EZ146)","v":"n.d."},{"$f":"IF('[1]MONE(M)CAPARD'!FC146=\"\",\"\",'[1]MONE(M)CAPARD'!FC146)","v":"n.d."},{"$f":"IF('[1]MONE(M)CAPARD'!FG146=\"\",\"\",'[1]MONE(M)CAPARD'!FG146)","v":"n.d."},{"$f":"IF('[1]MONE(M)CAPARD'!FL146=\"\",\"\",'[1]MONE(M)CAPARD'!FL146)","v":"n.d."},{"$f":"IF('[1]MONE(M)CAPARD'!FO146=\"\",\"\",'[1]MONE(M)CAPARD'!FO146)","v":"n.d."},{"$f":"IF('[1]MONE(M)CAPARD'!FR146=\"\",\"\",'[1]MONE(M)CAPARD'!FR146)","v":"n.d."},{"$f":"IF('[1]MONE(M)CAPARD'!FV146=\"\",\"\",'[1]MONE(M)CAPARD'!FV146)","v":"n.d."},{"$f":"IF('[1]MONE(M)CARD'!FV146=\"\",\"\",'[1]MONE(M)CARD'!FV146)","v":""},{"$f":"IF('[1]MONE(M)CARD'!GD146=\"\",\"\",'[1]MONE(M)CARD'!GD146)","v":"n.d."},{"$f":"IF('[1]MONE(M)CARD'!GE146=\"\",\"\",'[1]MONE(M)CARD'!GE146)","v":"n.d."},"n.d.","n.d.","n.d.","n.d.","n.d.","n.d.","n.d.","n.d.",null,"n.d.","n.d.","n.d.","n.d.","n.d.",{"$f":"IF('[1]MONE(M)CAPARD'!GS146=\"\",\"\",'[1]MONE(M)CAPARD'!GS146)","v":"n.d."},{"$f":"IF('[1]MONE(M)CARD'!HA146=\"\",\"\",'[1]MONE(M)CAPARD'!HA146)","v":"n.d."},{"$f":"IF('[1]MONE(M)CAPARD'!HB146=\"\",\"\",'[1]MONE(M)CAPARD'!HB146)","v":"n.d."},"n.d.","n.d.","n.d.","n.d.","n.d.","n.d.","n.d.","n.d.","n.d.","n.d.","n.d.","n.d.","n.d.","n.d.",{"$f":"IF('[1]MONE(M)CAPARD'!AS146=\"\",\"\",'[1]MONE(M)CAPARD'!AS146)","v":"n.d."},{"$f":"IF('[1]MONE(M)CAPARD'!AT146=\"\",\"\",'[1]MONE(M)CAPARD'!AT146)","v":"n.a."},{"$f":"IF('[1]MONE(M)CAPARD'!AU146=\"\",\"\",'[1]MONE(M)CAPARD'!AU146)","v":"n.d."},{"$f":"IF('[1]MONE(M)CAPARD'!AV146=\"\",\"\",'[1]MONE(M)CAPARD'!AV146)","v":"n.d."},{"$f":"IF('[1]MONE(M)CAPARD'!AW146=\"\",\"\",'[1]MONE(M)CAPARD'!AW146)","v":"n.a."},{"$f":"IF('[1]MONE(M)CAPARD'!AX146=\"\",\"\",'[1]MONE(M)CAPARD'!AX146)","v":"n.d."},{"$f":"IF('[1]MONE(M)CAPARD'!AY146=\"\",\"\",'[1]MONE(M)CAPARD'!AY146)","v":"n.a."},{"$f":"IF('[1]FISCAL(M)'!$K146=\"\",\"\",'[1]FISCAL(M)'!$K146)","v":"n.d."},{"$f":"IF('[1]FISCAL(M)'!$L146=\"\",\"\",'[1]FISCAL(M)'!$L146)","v":"n.d."},{"$f":"IF('[1]FISCAL(M)'!$AY146=\"\",\"\",'[1]FISCAL(M)'!$AY146)","v":"n.d."},{"$f":"IF('[1]FISCAL(M)'!$BI146=\"\",\"\",'[1]FISCAL(M)'!$BI146)","v":"n.d."},{"$f":"IF('[1]FISCAL(M)'!$BS146=\"\",\"\",'[1]FISCAL(M)'!$BS146)","v":"n.d."},{"$f":"IF('[1]FISCAL(M)'!$AZ146=\"\",\"\",'[1]FISCAL(M)'!$AZ146)","v":"n.d."},{"$f":"IF('[1]FISCAL(M)'!$BJ146=\"\",\"\",'[1]FISCAL(M)'!$BJ146)","v":"n.d."},{"$f":"IF('[1]FISCAL(M)'!$BT146=\"\",\"\",'[1]FISCAL(M)'!$BT146)","v":"n.d."},{"$f":"IF('[2]MONE(M)'!$AO146=\"\",\"\",'[2]MONE(M)'!$AO146)","v":"n.d."},{"$f":"IF('[3]MONE(M)'!$AO146=\"\",\"\",'[3]MONE(M)'!$AO146)","v":"n.d."},{"$f":"IF('[4]MONE(M)'!$AO146=\"\",\"\",'[4]MONE(M)'!$AO146)","v":"n.d."},{"$f":"+'[5]MONE(M)'!$AO146","v":"n.d."},{"$f":"IF('[6]MONE(M)'!$AO146=\"\",\"\",'[6]MONE(M)'!$AO146)","v":"n.d."},{"$f":"IF('[7]MONE(M)'!$AO146=\"\",\"\",'[7]MONE(M)'!$AO146)","v":"n.d."},{"$f":"IF('[8]MONE(M)'!$AO146=\"\",\"\",'[8]MONE(M)'!$AO146)","v":"n.d."},"n.d.","n.d.","n.d.","n.d.","n.d.","n.d.","n.d.",{"$f":"IF('[1]FISCAL(M)'!$K146=\"\",\"\",'[1]FISCAL(M)'!$K146)","v":"n.d."},{"$f":"+'[1]REAL(A)'!$AO$21","v":86214.197483650845},"n.d.",{"$f":"IF('[1]FISCAL(M)'!$L146=\"\",\"\",'[1]FISCAL(M)'!$L146)","v":"n.d."},{"$f":"+'[1]REAL(A)'!$AP$21","v":"n.d."},"n.d.","n.d.","n.d.","n.d.","n.d.","n.d.","n.d.","n.d.","n.d.","n.d.","n.d.","n.d.","n.d.","n.d.","n.d.","n.d.","n.d."]
[2001,"junio ","2001-junio ",{"$f":"IF('[1]REAL IPC(M)'!$AL147=\"\",\"\",+'[1]REAL IPC(M)'!$AL147)","v":7.9859983684081426},{"$f":"IF('[1]REAL IPC(M)'!$BE147=\"\",\"\",+'[1]REAL IPC(M)'!$BE147)","v":7.5197888098724297},{"$f":"IF('[1]REAL IPC(M)'!$AM147=\"\",\"\",+'[1]REAL IPC(M)'!$AM147)","v":7.2299359969063559},{"$f":"IF('[1]REAL IPC(M)'!$BI147=\"\",\"\",+'[1]REAL IPC(M)'!$BI147)","v":6.8179964542399718},{"$f":"IF('[1]REAL IMAE(M)'!BJ147=\"\",\"\",'[1]REAL IMAE(M)'!BJ147)","v":"n.d."},{"$f":"IF('[1]REAL IMAE(M)'!BK147=\"\",\"\",'[1]REAL IMAE(M)'!BK147)","v":"n.d."},{"$f":"IF('[1]REAL IMAE(M)'!BN147=\"\",\"\",'[1]REAL IMAE(M)'!BN147)","v":"n.d."},{"$f":"IF('[1]REAL IMAE(M)'!BO147=\"\",\"\",'[1]REAL IMAE(M)'!BO147)","v":"n.d."},{"$f":"IF('[1]EXT RIN(M)'!$K147=\"\",\"\",'[1]EXT RIN(M)'!$K147)","v":"n.d."},"",{"$f":"IF('[1]EXT RIN(M)'!$L147=\"\",\"\",'[1]EXT RIN(M)'!$L147)","v":"n.d."},"",{"$f":"IF('[1]MONE(M)CARD'!EG147=\"\",\"\",'[1]MONE(M)CARD'!EG147)","v":"n.d."},{"$f":"IF('[1]MONE(M)CARD'!EK147=\"\",\"\",'[1]MONE(M)CARD'!EK147)","v":"n.d."},{"$f":"IF('[1]MONE(M)CARD'!EP147=\"\",\"\",'[1]MONE(M)CARD'!EP147)","v":"n.d."},{"$f":"IF('[1]MONE(M)CARD'!ES147=\"\",\"\",'[1]MONE(M)CARD'!ES147)","v":"n.d."},{"$f":"IF('[1]MONE(M)CARD'!EV147=\"\",\"\",'[1]MONE(M)CARD'!EV147)","v":"n.d."},{"$f":"IF('[1]MONE(M)CARD'!EZ147=\"\",\"\",'[1]MONE(M)CARD'!EZ147)","v":"n.d."},{"$f":"IF('[1]MONE(M)CAPARD'!FC147=\"\",\"\",'[1]MONE(M)CAPARD'!FC147)","v":"n.d."},{"$f":"IF('[1]MONE(M)CAPARD'!FG147=\"\",\"\",'[1]MONE(M)CAPARD'!FG147)","v":"n.d."},{"$f":"IF('[1]MONE(M)CAPARD'!FL147=\"\",\"\",'[1]MONE(M)CAPARD'!FL147)","v":"n.d."},{"$f":"IF('[1]MONE(M)CAPARD'!FO147=\"\",\"\",'[1]MONE(M)CAPARD'!FO147)","v":"n.d."},{"$f":"IF('[1]MONE(M)CAPARD'!FR147=\"\",\"\",'[1]MONE(M)CAPARD'!FR147)","v":"n.d."},{"$f":"IF('[1]MONE(M)CAPARD'!FV147=\"\",\"\",'[1]MONE(M)CAPARD'!FV147)","v":"n.d."},{"$f":"IF('[1]MONE(M)CARD'!FV147=\"\",\"\",'[1]MONE(M)CARD'!FV147)","v":""},{"$f":"IF('[1]MONE(M)CARD'!GD147=\"\",\"\",'[1]MONE(M)CARD'!GD147)","v":"n.d."},{"$f":"IF('[1]MONE(M)CARD'!GE147=\"\",\"\",'[1]MONE(M)CARD'!GE147)","v":"n.d."},"n.d.","n.d.","n.d.","n.d.","n.d.","n.d.","n.d.","n.d.",null,"n.d.","n.d.","n.d.","n.d.","n.d.",{"$f":"IF('[1]MONE(M)CAPARD'!GS147=\"\",\"\",'[1]MONE(M)CAPARD'!GS147)","v":"n.d."},{"$f":"IF('[1]MONE(M)CARD'!HA147=\"\",\"\",'[1]MONE(M)CAPARD'!HA147)","v":"n.d."},{"$f":"IF('[1]MONE(M)CAPARD'!HB147=\"\",\"\",'[1]MONE(M)CAPARD'!HB147)","v":"n.d."},"n.d.","n.d.","n.d.","n.d.","n.d.","n.d.","n.d.","n.d.","n.d.","n.d.","n.d.","n.d.","n.d.","n.d.",{"$f":"IF('[1]MONE(M)CAPARD'!AS147=\"\",\"\",'[1]MONE(M)CAPARD'!AS147)","v":"n.d."},{"$f":"IF('[1]MONE(M)CAPARD'!AT147=\"\",\"\",'[1]MONE(M)CAPARD'!AT147)","v":"n.a."},{"$f":"IF('[1]MONE(M)CAPARD'!AU147=\"\",\"\",'[1]MONE(M)CAPARD'!AU147)","v":"n.d."},{"$f":"IF('[1]MONE(M)CAPARD'!AV147=\"\",\"\",'[1]MONE(M)CAPARD'!AV147)","v":"n.d."},{"$f":"IF('[1]MONE(M)CAPARD'!AW147=\"\",\"\",'[1]MONE(M)CAPARD'!AW147)","v":"n.a."},{"$f":"IF('[1]MONE(M)CAPARD'!AX147=\"\",\"\",'[1]MONE(M)CAPARD'!AX147)","v":"n.d."},{"$f":"IF('[1]MONE(M)CAPARD'!AY147=\"\",\"\",'[1]MONE(M)CAPARD'!AY147)","v":"n.a."},{"$f":"IF('[1]FISCAL(M)'!$K147=\"\",\"\",'[1]FISCAL(M)'!$K147)","v":"n.d."},{"$f":"IF('[1]FISCAL(M)'!$L147=\"\",\"\",'[1]FISCAL(M)'!$L147)","v":"n.d."},{"$f":"IF('[1]FISCAL(M)'!$AY147=\"\",\"\",'[1]FISCAL(M)'!$AY147)","v":"n.d."},{"$f":"IF('[1]FISCAL(M)'!$BI147=\"\",\"\",'[1]FISCAL(M)'!$BI147)","v":"n.d."},{"$f":"IF('[1]FISCAL(M)'!$BS147=\"\",\"\",'[1]FISCAL(M)'!$BS147)","v":"n.d."},{"$f":"IF('[1]FISCAL(M)'!$AZ147=\"\",\"\",'[1]FISCAL(M)'!$AZ147)","v":"n.d."},{"$f":"IF('[1]FISCAL(M)'!$BJ147=\"\",\"\",'[1]FISCAL(M)'!$BJ147)","v":"n.d."},{"$f":"IF('[1]FISCAL(M)'!$BT147=\"\",\"\",'[1]FISCAL(M)'!$BT147)","v":"n.d."},{"$f":"IF('[2]MONE(M)'!$AO147=\"\",\"\",'[2]MONE(M)'!$AO147)","v":"n.d."},{"$f":"IF('[3]MONE(M)'!$AO147=\"\",\"\",'[3]MONE(M)'!$AO147)","v":"n.d."},{"$f":"IF('[4]MONE(M)'!$AO147=\"\",\"\",'[4]MONE(M)'!$AO147)","v":"n.d."},{"$f":"+'[5]MONE(M)'!$AO147","v":"n.d."},{"$f":"IF('[6]MONE(M)'!$AO147=\"\",\"\",'[6]MONE(M)'!$AO147)","v":"n.d."},{"$f":"IF('[7]MONE(M)'!$AO147=\"\",\"\",'[7]MONE(M)'!$AO147)","v":"n.d."},{"$f":"IF('[8]MONE(M)'!$AO147=\"\",\"\",'[8]MONE(M)'!$AO147)","v":"n.d."},"n.d.","n.d.","n.d.","n.d.","n.d.","n.d.","n.d.",{"$f":"IF('[1]FISCAL(M)'!$K147=\"\",\"\",'[1]FISCAL(M)'!$K147)","v":"n.d."},{"$f":"+'[1]REAL(A)'!$AO$21","v":86214.197483650845},"n.d.",{"$f":"IF('[1]FISCAL(M)'!$L147=\"\",\"\",'[1]FISCAL(M)'!$L147)","v":"n.d."},{"$f":"+'[1]REAL(A)'!$AP$21","v":"n.d."},"n.d.","n.d.","n.d.","n.d.","n.d.","n.d.","n.d.","n.d.","n.d.","n.d.","n.d.","n.d.","n.d.","n.d.","n.d.","n.d.","n.d."]
[2001,"julio","2001-julio",{"$f":"IF('[1]REAL IPC(M)'!$AL148=\"\",\"\",+'[1]REAL IPC(M)'!$AL148)","v":7.8969188545874092},{"$f":"IF('[1]REAL IPC(M)'!$BE148=\"\",\"\",+'[1]REAL IPC(M)'!$BE148)","v":7.6134755160643719},{"$f":"IF('[1]REAL IPC(M)'!$AM148=\"\",\"\",+'[1]REAL IPC(M)'!$AM148)","v":7.1410632032358423},{"$f":"IF('[1]REAL IPC(M)'!$BI148=\"\",\"\",+'[1]REAL IPC(M)'!$BI148)","v":6.8969808969142621},{"$f":"IF('[1]REAL IMAE(M)'!BJ148=\"\",\"\",'[1]REAL IMAE(M)'!BJ148)","v":"n.d."},{"$f":"IF('[1]REAL IMAE(M)'!BK148=\"\",\"\",'[1]REAL IMAE(M)'!BK148)","v":"n.d."},{"$f":"IF('[1]REAL IMAE(M)'!BN148=\"\",\"\",'[1]REAL IMAE(M)'!BN148)","v":"n.d."},{"$f":"IF('[1]REAL IMAE(M)'!BO148=\"\",\"\",'[1]REAL IMAE(M)'!BO148)","v":"n.d."},{"$f":"IF('[1]EXT RIN(M)'!$K148=\"\",\"\",'[1]EXT RIN(M)'!$K148)","v":"n.d."},"",{"$f":"IF('[1]EXT RIN(M)'!$L148=\"\",\"\",'[1]EXT RIN(M)'!$L148)","v":"n.d."},"",{"$f":"IF('[1]MONE(M)CARD'!EG148=\"\",\"\",'[1]MONE(M)CARD'!EG148)","v":"n.d."},{"$f":"IF('[1]MONE(M)CARD'!EK148=\"\",\"\",'[1]MONE(M)CARD'!EK148)","v":"n.d."},{"$f":"IF('[1]MONE(M)CARD'!EP148=\"\",\"\",'[1]MONE(M)CARD'!EP148)","v":"n.d."},{"$f":"IF('[1]MONE(M)CARD'!ES148=\"\",\"\",'[1]MONE(M)CARD'!ES148)","v":"n.d."},{"$f":"IF('[1]MONE(M)CARD'!EV148=\"\",\"\",'[1]MONE(M)CARD'!EV148)","v":"n.d."},{"$f":"IF('[1]MONE(M)CARD'!EZ148=\"\",\"\",'[1]MONE(M)CARD'!EZ148)","v":"n.d."},{"$f":"IF('[1]MONE(M)CAPARD'!FC148=\"\",\"\",'[1]MONE(M)CAPARD'!FC148)","v":"n.d."},{"$f":"IF('[1]MONE(M)CAPARD'!FG148=\"\",\"\",'[1]MONE(M)CAPARD'!FG148)","v":"n.d."},{"$f":"IF('[1]MONE(M)CAPARD'!FL148=\"\",\"\",'[1]MONE(M)CAPARD'!FL148)","v":"n.d."},{"$f":"IF('[1]MONE(M)CAPARD'!FO148=\"\",\"\",'[1]MONE(M)CAPARD'!FO148)","v":"n.d."},{"$f":"IF('[1]MONE(M)CAPARD'!FR148=\"\",\"\",'[1]MONE(M)CAPARD'!FR148)","v":"n.d."},{"$f":"IF('[1]MONE(M)CAPARD'!FV148=\"\",\"\",'[1]MONE(M)CAPARD'!FV148)","v":"n.d."},{"$f":"IF('[1]MONE(M)CARD'!FV148=\"\",\"\",'[1]MONE(M)CARD'!FV148)","v":""},{"$f":"IF('[1]MONE(M)CARD'!GD148=\"\",\"\",'[1]MONE(M)CARD'!GD148)","v":"n.d."},{"$f":"IF('[1]MONE(M)CARD'!GE148=\"\",\"\",'[1]MONE(M)CARD'!GE148)","v":"n.d."},"n.d.","n.d.","n.d.","n.d.","n.d.","n.d.","n.d.","n.d.",null,"n.d.","n.d.","n.d.","n.d.","n.d.",{"$f":"IF('[1]MONE(M)CAPARD'!GS148=\"\",\"\",'[1]MONE(M)CAPARD'!GS148)","v":"n.d."},{"$f":"IF('[1]MONE(M)CARD'!HA148=\"\",\"\",'[1]MONE(M)CAPARD'!HA148)","v":"n.d."},{"$f":"IF('[1]MONE(M)CAPARD'!HB148=\"\",\"\",'[1]MONE(M)CAPARD'!HB148)","v":"n.d."},"n.d.","n.d.","n.d.","n.d.","n.d.","n.d.","n.d.","n.d.","n.d.","n.d.","n.d.","n.d.","n.d.","n.d.",{"$f":"IF('[1]MONE(M)CAPARD'!AS148=\"\",\"\",'[1]MONE(M)CAPARD'!AS148)","v":"n.d."},{"$f":"IF('[1]MONE(M)CAPARD'!AT148=\"\",\"\",'[1]MONE(M)CAPARD'!AT148)","v":"n.a."},{"$f":"IF('[1]MONE(M)CAPARD'!AU148=\"\",\"\",'[1]MONE(M)CAPARD'!AU148)","v":"n.d."},{"$f":"IF('[1]MONE(M)CAPARD'!AV148=\"\",\"\",'[1]MONE(M)CAPARD'!AV148)","v":"n.d."},{"$f":"IF('[1]MONE(M)CAPARD'!AW148=\"\",\"\",'[1]MONE(M)CAPARD'!AW148)","v":"n.a."},{"$f":"IF('[1]MONE(M)CAPARD'!AX148=\"\",\"\",'[1]MONE(M)CAPARD'!AX148)","v":"n.d."},{"$f":"IF('[1]MONE(M)CAPARD'!AY148=\"\",\"\",'[1]MONE(M)CAPARD'!AY148)","v":"n.a."},{"$f":"IF('[1]FISCAL(M)'!$K148=\"\",\"\",'[1]FISCAL(M)'!$K148)","v":"n.d."},{"$f":"IF('[1]FISCAL(M)'!$L148=\"\",\"\",'[1]FISCAL(M)'!$L148)","v":"n.d."},{"$f":"IF('[1]FISCAL(M)'!$AY148=\"\",\"\",'[1]FISCAL(M)'!$AY148)","v":"n.d."},{"$f":"IF('[1]FISCAL(M)'!$BI148=\"\",\"\",'[1]FISCAL(M)'!$BI148)","v":"n.d."},{"$f":"IF('[1]FISCAL(M)'!$BS148=\"\",\"\",'[1]FISCAL(M)'!$BS148)","v":"n.d."},{"$f":"IF('[1]FISCAL(M)'!$AZ148=\"\",\"\",'[1]FISCAL(M)'!$AZ148)","v":"n.d."},{"$f":"IF('[1]FISCAL(M)'!$BJ148=\"\",\"\",'[1]FISCAL(M)'!$BJ148)","v":"n.d."},{"$f":"IF('[1]FISCAL(M)'!$BT148=\"\",\"\",'[1]FISCAL(M)'!$BT148)","v":"n.d."},{"$f":"IF('[2]MONE(M)'!$AO148=\"\",\"\",'[2]MONE(M)'!$AO148)","v":"n.d."},{"$f":"IF('[3]MONE(M)'!$AO148=\"\",\"\",'[3]MONE(M)'!$AO148)","v":"n.d."},{"$f":"IF('[4]MONE(M)'!$AO148=\"\",\"\",'[4]MONE(M)'!$AO148)","v":"n.d."},{"$f":"+'[5]MONE(M)'!$AO148","v":"n.d."},{"$f":"IF('[6]MONE(M)'!$AO148=\"\",\"\",'[6]MONE(M)'!$AO148)","v":"n.d."},{"$f":"IF('[7]MONE(M)'!$AO148=\"\",\"\",'[7]MONE(M)'!$AO148)","v":"n.d."},{"$f":"IF('[8]MONE(M)'!$AO148=\"\",\"\",'[8]MONE(M)'!$AO148)","v":"n.d."},"n.d.","n.d.","n.d.","n.d.","n.d.","n.d.","n.d.",{"$f":"IF('[1]FISCAL(M)'!$K148=\"\",\"\",'[1]FISCAL(M)'!$K148)","v":"n.d."},{"$f":"+'[1]REAL(A)'!$AO$21","v":86214.197483650845},"n.d.",{"$f":"IF('[1]FISCAL(M)'!$L148=\"\",\"\",'[1]FISCAL(M)'!$L148)","v":"n.d."},{"$f":"+'[1]REAL(A)'!$AP$21","v":"n.d."},"n.d.","n.d.","n.d.","n.d.","n.d.","n.d.","n.d.","n.d.","n.d.","n.d.","n.d.","n.d.","n.d.","n.d.","n.d.","n.d.","n.d."]
[2001,"agosto","2001-agosto",{"$f":"IF('[1]REAL IPC(M)'!$AL149=\"\",\"\",+'[1]REAL IPC(M)'!$AL149)","v":8.3917775439102051},{"$f":"IF('[1]REAL IPC(M)'!$BE149=\"\",\"\",+'[1]REAL IPC(M)'!$BE149)","v":7.713622640374318},{"$f":"IF('[1]REAL IPC(M)'!$AM149=\"\",\"\",+'[1]REAL IPC(M)'!$AM149)","v":7.6227312873515585},{"$f":"IF('[1]REAL IPC(M)'!$BI149=\"\",\"\",+'[1]REAL IPC(M)'!$BI149)","v":6.9820549050138903},{"$f":"IF('[1]REAL IMAE(M)'!BJ149=\"\",\"\",'[1]REAL IMAE(M)'!BJ149)","v":"n.d."},{"$f":"IF('[1]REAL IMAE(M)'!BK149=\"\",\"\",'[1]REAL IMAE(M)'!BK149)","v":"n.d."},{"$f":"IF('[1]REAL IMAE(M)'!BN149=\"\",\"\",'[1]REAL IMAE(M)'!BN149)","v":"n.d."},{"$f":"IF('[1]REAL IMAE(M)'!BO149=\"\",\"\",'[1]REAL IMAE(M)'!BO149)","v":"n.d."},{"$f":"IF('[1]EXT RIN(M)'!$K149=\"\",\"\",'[1]EXT RIN(M)'!$K149)","v":"n.d."},"",{"$f":"IF('[1]EXT RIN(M)'!$L149=\"\",\"\",'[1]EXT RIN(M)'!$L149)","v":"n.d."},"",{"$f":"IF('[1]MONE(M)CARD'!EG149=\"\",\"\",'[1]MONE(M)CARD'!EG149)","v":"n.d."},{"$f":"IF('[1]MONE(M)CARD'!EK149=\"\",\"\",'[1]MONE(M)CARD'!EK149)","v":"n.d."},{"$f":"IF('[1]MONE(M)CARD'!EP149=\"\",\"\",'[1]MONE(M)CARD'!EP149)","v":"n.d."},{"$f":"IF('[1]MONE(M)CARD'!ES149=\"\",\"\",'[1]MONE(M)CARD'!ES149)","v":"n.d."},{"$f":"IF('[1]MONE(M)CARD'!EV149=\"\",\"\",'[1]MONE(M)CARD'!EV149)","v":"n.d."},{"$f":"IF('[1]MONE(M)CARD'!EZ149=\"\",\"\",'[1]MONE(M)CARD'!EZ149)","v":"n.d."},{"$f":"IF('[1]MONE(M)CAPARD'!FC149=\"\",\"\",'[1]MONE(M)CAPARD'!FC149)","v":"n.d."},{"$f":"IF('[1]MONE(M)CAPARD'!FG149=\"\",\"\",'[1]MONE(M)CAPARD'!FG149)","v":"n.d."},{"$f":"IF('[1]MONE(M)CAPARD'!FL149=\"\",\"\",'[1]MONE(M)CAPARD'!FL149)","v":"n.d."},{"$f":"IF('[1]MONE(M)CAPARD'!FO149=\"\",\"\",'[1]MONE(M)CAPARD'!FO149)","v":"n.d."},{"$f":"IF('[1]MONE(M)CAPARD'!FR149=\"\",\"\",'[1]MONE(M)CAPARD'!FR149)","v":"n.d."},{"$f":"IF('[1]MONE(M)CAPARD'!FV149=\"\",\"\",'[1]MONE(M)CAPARD'!FV149)","v":"n.d."},{"$f":"IF('[1]MONE(M)CARD'!FV149=\"\",\"\",'[1]MONE(M)CARD'!FV149)","v":""},{"$f":"IF('[1]MONE(M)CARD'!GD149=\"\",\"\",'[1]MONE(M)CARD'!GD149)","v":"n.d."},{"$f":"IF('[1]MONE(M)CARD'!GE149=\"\",\"\",'[1]MONE(M)CARD'!GE149)","v":"n.d."},"n.d.","n.d.","n.d.","n.d.","n.d.","n.d.","n.d.","n.d.",null,"n.d.","n.d.","n.d.","n.d.","n.d.",{"$f":"IF('[1]MONE(M)CAPARD'!GS149=\"\",\"\",'[1]MONE(M)CAPARD'!GS149)","v":"n.d."},{"$f":"IF('[1]MONE(M)CARD'!HA149=\"\",\"\",'[1]MONE(M)CAPARD'!HA149)","v":"n.d."},{"$f":"IF('[1]MONE(M)CAPARD'!HB149=\"\",\"\",'[1]MONE(M)CAPARD'!HB149)","v":"n.d."},"n.d.","n.d.","n.d.","n.d.","n.d.","n.d.","n.d.","n.d.","n.d.","n.d.","n.d.","n.d.","n.d.","n.d.",{"$f":"IF('[1]MONE(M)CAPARD'!AS149=\"\",\"\",'[1]MONE(M)CAPARD'!AS149)","v":"n.d."},{"$f":"IF('[1]MONE(M)CAPARD'!AT149=\"\",\"\",'[1]MONE(M)CAPARD'!AT149)","v":"n.a."},{"$f":"IF('[1]MONE(M)CAPARD'!AU149=\"\",\"\",'[1]MONE(M)CAPARD'!AU149)","v":"n.d."},{"$f":"IF('[1]MONE(M)CAPARD'!AV149=\"\",\"\",'[1]MONE(M)CAPARD'!AV149)","v":"n.d."},{"$f":"IF('[1]MONE(M)CAPARD'!AW149=\"\",\"\",'[1]MONE(M)CAPARD'!AW149)","v":"n.a."},{"$f":"IF('[1]MONE(M)CAPARD'!AX149=\"\",\"\",'[1]MONE(M)CAPARD'!AX149)","v":"n.d."},{"$f":"IF('[1]MONE(M)CAPARD'!AY149=\"\",\"\",'[1]MONE(M)CAPARD'!AY149)","v":"n.a."},{"$f":"IF('[1]FISCAL(M)'!$K149=\"\",\"\",'[1]FISCAL(M)'!$K149)","v":"n.d."},{"$f":"IF('[1]FISCAL(M)'!$L149=\"\",\"\",'[1]FISCAL(M)'!$L149)","v":"n.d."},{"$f":"IF('[1]FISCAL(M)'!$AY149=\"\",\"\",'[1]FISCAL(M)'!$AY149)","v":"n.d."},{"$f":"IF('[1]FISCAL(M)'!$BI149=\"\",\"\",'[1]FISCAL(M)'!$BI149)","v":"n.d."},{"$f":"IF('[1]FISCAL(M)'!$BS149=\"\",\"\",'[1]FISCAL(M)'!$BS149)","v":"n.d."},{"$f":"IF('[1]FISCAL(M)'!$AZ149=\"\",\"\",'[1]FISCAL(M)'!$AZ149)","v":"n.d."},{"$f":"IF('[1]FISCAL(M)'!$BJ149=\"\",\"\",'[1]FISCAL(M)'!$BJ149)","v":"n.d."},{"$f":"IF('[1]FISCAL(M)'!$BT149=\"\",\"\",'[1]FISCAL(M)'!$BT149)","v":"n.d."},{"$f":"IF('[2]MONE(M)'!$AO149=\"\",\"\",'[2]MONE(M)'!$AO149)","v":"n.d."},{"$f":"IF('[3]MONE(M)'!$AO149=\"\",\"\",'[3]MONE(M)'!$AO149)","v":"n.d."},{"$f":"IF('[4]MONE(M)'!$AO149=\"\",\"\",'[4]MONE(M)'!$AO149)","v":"n.d."},{"$f":"+'[5]MONE(M)'!$AO149","v":"n.d."},{"$f":"IF('[6]MONE(M)'!$AO149=\"\",\"\",'[6]MONE(M)'!$AO149)","v":"n.d."},{"$f":"IF('[7]MONE(M)'!$AO149=\"\",\"\",'[7]MONE(M)'!$AO149)","v":"n.d."},{"$f":"IF('[8]MONE(M)'!$AO149=\"\",\"\",'[8]MONE(M)'!$AO149)","v":"n.d."},"n.d.","n.d.","n.d.","n.d.","n.d.","n.d.","n.d.",{"$f":"IF('[1]FISCAL(M)'!$K149=\"\",\"\",'[1]FISCAL(M)'!$K149)","v":"n.d."},{"$f":"+'[1]REAL(A)'!$AO$21","v":86214.197483650845},"n.d.",{"$f":"IF('[1]FISCAL(M)'!$L149=\"\",\"\",'[1]FISCAL(M)'!$L149)","v":"n.d."},{"$f":"+'[1]REAL(A)'!$AP$21","v":"n.d."},"n.d.","n.d.","n.d.","n.d.","n.d.","n.d.","n.d.","n.d.","n.d.","n.d.","n.d.","n.d.","n.d.","n.d.","n.d.","n.d.","n.d."]
[2001,"septiembre","2001-septiembre",{"$f":"IF('[1]REAL IPC(M)'!$AL150=\"\",\"\",+'[1]REAL IPC(M)'!$AL150)","v":7.7209998376707611},{"$f":"IF('[1]REAL IPC(M)'!$BE150=\"\",\"\",+'[1]REAL IPC(M)'!$BE150)","v":7.8205706456461188},{"$f":"IF('[1]REAL IPC(M)'!$AM150=\"\",\"\",+'[1]REAL IPC(M)'!$AM150)","v":7.0523953772082759},{"$f":"IF('[1]REAL IPC(M)'!$BI150=\"\",\"\",+'[1]REAL IPC(M)'!$BI150)","v":7.0736128913902574},{"$f":"IF('[1]REAL IMAE(M)'!BJ150=\"\",\"\",'[1]REAL IMAE(M)'!BJ150)","v":"n.d."},{"$f":"IF('[1]REAL IMAE(M)'!BK150=\"\",\"\",'[1]REAL IMAE(M)'!BK150)","v":"n.d."},{"$f":"IF('[1]REAL IMAE(M)'!BN150=\"\",\"\",'[1]REAL IMAE(M)'!BN150)","v":"n.d."},{"$f":"IF('[1]REAL IMAE(M)'!BO150=\"\",\"\",'[1]REAL IMAE(M)'!BO150)","v":"n.d."},{"$f":"IF('[1]EXT RIN(M)'!$K150=\"\",\"\",'[1]EXT RIN(M)'!$K150)","v":"n.d."},"",{"$f":"IF('[1]EXT RIN(M)'!$L150=\"\",\"\",'[1]EXT RIN(M)'!$L150)","v":"n.d."},"",{"$f":"IF('[1]MONE(M)CARD'!EG150=\"\",\"\",'[1]MONE(M)CARD'!EG150)","v":"n.d."},{"$f":"IF('[1]MONE(M)CARD'!EK150=\"\",\"\",'[1]MONE(M)CARD'!EK150)","v":"n.d."},{"$f":"IF('[1]MONE(M)CARD'!EP150=\"\",\"\",'[1]MONE(M)CARD'!EP150)","v":"n.d."},{"$f":"IF('[1]MONE(M)CARD'!ES150=\"\",\"\",'[1]MONE(M)CARD'!ES150)","v":"n.d."},{"$f":"IF('[1]MONE(M)CARD'!EV150=\"\",\"\",'[1]MONE(M)CARD'!EV150)","v":"n.d."},{"$f":"IF('[1]MONE(M)CARD'!EZ150=\"\",\"\",'[1]MONE(M)CARD'!EZ150)","v":"n.d."},{"$f":"IF('[1]MONE(M)CAPARD'!FC150=\"\",\"\",'[1]MONE(M)CAPARD'!FC150)","v":"n.d."},{"$f":"IF('[1]MONE(M)CAPARD'!FG150=\"\",\"\",'[1]MONE(M)CAPARD'!FG150)","v":"n.d."},{"$f":"IF('[1]MONE(M)CAPARD'!FL150=\"\",\"\",'[1]MONE(M)CAPARD'!FL150)","v":"n.d."},{"$f":"IF('[1]MONE(M)CAPARD'!FO150=\"\",\"\",'[1]MONE(M)CAPARD'!FO150)","v":"n.d."},{"$f":"IF('[1]MONE(M)CAPARD'!FR150=\"\",\"\",'[1]MONE(M)CAPARD'!FR150)","v":"n.d."},{"$f":"IF('[1]MONE(M)CAPARD'!FV150=\"\",\"\",'[1]MONE(M)CAPARD'!FV150)","v":"n.d."},{"$f":"IF('[1]MONE(M)CARD'!FV150=\"\",\"\",'[1]MONE(M)CARD'!FV150)","v":""},{"$f":"IF('[1]MONE(M)CARD'!GD150=\"\",\"\",'[1]MONE(M)CARD'!GD150)","v":"n.d."},{"$f":"IF('[1]MONE(M)CARD'!GE150=\"\",\"\",'[1]MONE(M)CARD'!GE150)","v":"n.d."},"n.d.","n.d.","n.d.","n.d.","n.d.","n.d.","n.d.","n.d.",null,"n.d.","n.d.","n.d.","n.d.","n.d.",{"$f":"IF('[1]MONE(M)CAPARD'!GS150=\"\",\"\",'[1]MONE(M)CAPARD'!GS150)","v":"n.d."},{"$f":"IF('[1]MONE(M)CARD'!HA150=\"\",\"\",'[1]MONE(M)CAPARD'!HA150)","v":"n.d."},{"$f":"IF('[1]MONE(M)CAPARD'!HB150=\"\",\"\",'[1]MONE(M)CAPARD'!HB150)","v":"n.d."},"n.d.","n.d.","n.d.","n.d.","n.d.","n.d.","n.d.","n.d.","n.d.","n.d.","n.d.","n.d.","n.d.","n.d.",{"$f":"IF('[1]MONE(M)CAPARD'!AS150=\"\",\"\",'[1]MONE(M)CAPARD'!AS150)","v":"n.d."},{"$f":"IF('[1]MONE(M)CAPARD'!AT150=\"\",\"\",'[1]MONE(M)CAPARD'!AT150)","v":"n.a."},{"$f":"IF('[1]MONE(M)CAPARD'!AU150=\"\",\"\",'[1]MONE(M)CAPARD'!AU150)","v":"n.d."},{"$f":"IF('[1]MONE(M)CAPARD'!AV150=\"\",\"\",'[1]MONE(M)CAPARD'!AV150)","v":"n.d."},{"$f":"IF('[1]MONE(M)CAPARD'!AW150=\"\",\"\",'[1]MONE(M)CAPARD'!AW150)","v":"n.a."},{"$f":"IF('[1]MONE(M)CAPARD'!AX150=\"\",\"\",'[1]MONE(M)CAPARD'!AX150)","v":"n.d."},{"$f":"IF('[1]MONE(M)CAPARD'!AY150=\"\",\"\",'[1]MONE(M)CAPARD'!AY150)","v":"n.a."},{"$f":"IF('[1]FISCAL(M)'!$K150=\"\",\"\",'[1]FISCAL(M)'!$K150)","v":"n.d."},{"$f":"IF('[1]FISCAL(M)'!$L150=\"\",\"\",'[1]FISCAL(M)'!$L150)","v":"n.d."},{"$f":"IF('[1]FISCAL(M)'!$AY150=\"\",\"\",'[1]FISCAL(M)'!$AY150)","v":"n.d."},{"$f":"IF('[1]FISCAL(M)'!$BI150=\"\",\"\",'[1]FISCAL(M)'!$BI150)","v":"n.d."},{"$f":"IF('[1]FISCAL(M)'!$BS150=\"\",\"\",'[1]FISCAL(M)'!$BS150)","v":"n.d."},{"$f":"IF('[1]FISCAL(M)'!$AZ150=\"\",\"\",'[1]FISCAL(M)'!$AZ150)","v":"n.d."},{"$f":"IF('[1]FISCAL(M)'!$BJ150=\"\",\"\",'[1]FISCAL(M)'!$BJ150)","v":"n.d."},{"$f":"IF('[1]FISCAL(M)'!$BT150=\"\",\"\",'[1]FISCAL(M)'!$BT150)","v":"n.d."},{"$f":"IF('[2]MONE(M)'!$AO150=\"\",\"\",'[2]MONE(M)'!$AO150)","v":"n.d."},{"$f":"IF('[3]MONE(M)'!$AO150=\"\",\"\",'[3]MONE(M)'!$AO150)","v":"n.d."},{"$f":"IF('[4]MONE(M)'!$AO150=\"\",\"\",'[4]MONE(M)'!$AO150)","v":"n.d."},{"$f":"+'[5]MONE(M)'!$AO150","v":"n.d."},{"$f":"IF('[6]MONE(M)'!$AO150=\"\",\"\",'[6]MONE(M)'!$AO150)","v":"n.d."},{"$f":"IF('[7]MONE(M)'!$AO150=\"\",\"\",'[7]MONE(M)'!$AO150)","v":"n.d."},{"$f":"IF('[8]MONE(M)'!$AO150=\"\",\"\",'[8]MONE(M)'!$AO150)","v":"n.d."},"n.d.","n.d.","n.d.","n.d.","n.d.","n.d.","n.d.",{"$f":"IF('[1]FISCAL(M)'!$K150=\"\",\"\",'[1]FISCAL(M)'!$K150)","v":"n.d."},{"$f":"+'[1]REAL(A)'!$AO$21","v":86214.197483650845},"n.d.",{"$f":"IF('[1]FISCAL(M)'!$L150=\"\",\"\",'[1]FISCAL(M)'!$L150)","v":"n.d."},{"$f":"+'[1]REAL(A)'!$AP$21","v":"n.d."},"n.d.","n.d.","n.d.","n.d.","n.d.","n.d.","n.d.","n.d.","n.d.","n.d.","n.d.","n.d.","n.d.","n.d.","n.d.","n.d.","n.d."]
[2001,"octubre","2001-octubre",{"$f":"IF('[1]REAL IPC(M)'!$AL151=\"\",\"\",+'[1]REAL IPC(M)'!$AL151)","v":7.4647461364613088},{"$f":"IF('[1]REAL IPC(M)'!$BE151=\"\",\"\",+'[1]REAL IPC(M)'!$BE151)","v":7.9346846123250492},{"$f":"IF('[1]REAL IPC(M)'!$AM151=\"\",\"\",+'[1]REAL IPC(M)'!$AM151)","v":6.8432704770291286},{"$f":"IF('[1]REAL IPC(M)'!$BI151=\"\",\"\",+'[1]REAL IPC(M)'!$BI151)","v":7.1720779682943547},{"$f":"IF('[1]REAL IMAE(M)'!BJ151=\"\",\"\",'[1]REAL IMAE(M)'!BJ151)","v":"n.d."},{"$f":"IF('[1]REAL IMAE(M)'!BK151=\"\",\"\",'[1]REAL IMAE(M)'!BK151)","v":"n.d."},{"$f":"IF('[1]REAL IMAE(M)'!BN151=\"\",\"\",'[1]REAL IMAE(M)'!BN151)","v":"n.d."},{"$f":"IF('[1]REAL IMAE(M)'!BO151=\"\",\"\",'[1]REAL IMAE(M)'!BO151)","v":"n.d."},{"$f":"IF('[1]EXT RIN(M)'!$K151=\"\",\"\",'[1]EXT RIN(M)'!$K151)","v":"n.d."},"",{"$f":"IF('[1]EXT RIN(M)'!$L151=\"\",\"\",'[1]EXT RIN(M)'!$L151)","v":"n.d."},"",{"$f":"IF('[1]MONE(M)CARD'!EG151=\"\",\"\",'[1]MONE(M)CARD'!EG151)","v":"n.d."},{"$f":"IF('[1]MONE(M)CARD'!EK151=\"\",\"\",'[1]MONE(M)CARD'!EK151)","v":"n.d."},{"$f":"IF('[1]MONE(M)CARD'!EP151=\"\",\"\",'[1]MONE(M)CARD'!EP151)","v":"n.d."},{"$f":"IF('[1]MONE(M)CARD'!ES151=\"\",\"\",'[1]MONE(M)CARD'!ES151)","v":"n.d."},{"$f":"IF('[1]MONE(M)CARD'!EV151=\"\",\"\",'[1]MONE(M)CARD'!EV151)","v":"n.d."},{"$f":"IF('[1]MONE(M)CARD'!EZ151=\"\",\"\",'[1]MONE(M)CARD'!EZ151)","v":"n.d."},{"$f":"IF('[1]MONE(M)CAPARD'!FC151=\"\",\"\",'[1]MONE(M)CAPARD'!FC151)","v":"n.d."},{"$f":"IF('[1]MONE(M)CAPARD'!FG151=\"\",\"\",'[1]MONE(M)CAPARD'!FG151)","v":"n.d."},{"$f":"IF('[1]MONE(M)CAPARD'!FL151=\"\",\"\",'[1]MONE(M)CAPARD'!FL151)","v":"n.d."},{"$f":"IF('[1]MONE(M)CAPARD'!FO151=\"\",\"\",'[1]MONE(M)CAPARD'!FO151)","v":"n.d."},{"$f":"IF('[1]MONE(M)CAPARD'!FR151=\"\",\"\",'[1]MONE(M)CAPARD'!FR151)","v":"n.d."},{"$f":"IF('[1]MONE(M)CAPARD'!FV151=\"\",\"\",'[1]MONE(M)CAPARD'!FV151)","v":"n.d."},{"$f":"IF('[1]MONE(M)CARD'!FV151=\"\",\"\",'[1]MONE(M)CARD'!FV151)","v":""},{"$f":"IF('[1]MONE(M)CARD'!GD151=\"\",\"\",'[1]MONE(M)CARD'!GD151)","v":"n.d."},{"$f":"IF('[1]MONE(M)CARD'!GE151=\"\",\"\",'[1]MONE(M)CARD'!GE151)","v":"n.d."},"n.d.","n.d.","n.d.","n.d.","n.d.","n.d.","n.d.","n.d.",null,"n.d.","n.d.","n.d.","n.d.","n.d.",{"$f":"IF('[1]MONE(M)CAPARD'!GS151=\"\",\"\",'[1]MONE(M)CAPARD'!GS151)","v":"n.d."},{"$f":"IF('[1]MONE(M)CARD'!HA151=\"\",\"\",'[1]MONE(M)CAPARD'!HA151)","v":"n.d."},{"$f":"IF('[1]MONE(M)CAPARD'!HB151=\"\",\"\",'[1]MONE(M)CAPARD'!HB151)","v":"n.d."},"n.d.","n.d.","n.d.","n.d.","n.d.","n.d.","n.d.","n.d.","n.d.","n.d.","n.d.","n.d.","n.d.","n.d.",{"$f":"IF('[1]MONE(M)CAPARD'!AS151=\"\",\"\",'[1]MONE(M)CAPARD'!AS151)","v":"n.d."},{"$f":"IF('[1]MONE(M)CAPARD'!AT151=\"\",\"\",'[1]MONE(M)CAPARD'!AT151)","v":"n.a."},{"$f":"IF('[1]MONE(M)CAPARD'!AU151=\"\",\"\",'[1]MONE(M)CAPARD'!AU151)","v":"n.d."},{"$f":"IF('[1]MONE(M)CAPARD'!AV151=\"\",\"\",'[1]MONE(M)CAPARD'!AV151)","v":"n.d."},{"$f":"IF('[1]MONE(M)CAPARD'!AW151=\"\",\"\",'[1]MONE(M)CAPARD'!AW151)","v":"n.a."},{"$f":"IF('[1]MONE(M)CAPARD'!AX151=\"\",\"\",'[1]MONE(M)CAPARD'!AX151)","v":"n.d."},{"$f":"IF('[1]MONE(M)CAPARD'!AY151=\"\",\"\",'[1]MONE(M)CAPARD'!AY151)","v":"n.a."},{"$f":"IF('[1]FISCAL(M)'!$K151=\"\",\"\",'[1]FISCAL(M)'!$K151)","v":"n.d."},{"$f":"IF('[1]FISCAL(M)'!$L151=\"\",\"\",'[1]FISCAL(M)'!$L151)","v":"n.d."},{"$f":"IF('[1]FISCAL(M)'!$AY151=\"\",\"\",'[1]FISCAL(M)'!$AY151)","v":"n.d."},{"$f":"IF('[1]FISCAL(M)'!$BI151=\"\",\"\",'[1]FISCAL(M)'!$BI151)","v":"n.d."},{"$f":"IF('[1]FISCAL(M)'!$BS151=\"\",\"\",'[1]FISCAL(M)'!$BS151)","v":"n.d."},{"$f":"IF('[1]FISCAL(M)'!$AZ151=\"\",\"\",'[1]FISCAL(M)'!$AZ151)","v":"n.d."},{"$f":"IF('[1]FISCAL(M)'!$BJ151=\"\",\"\",'[1]FISCAL(M)'!$BJ151)","v":"n.d."},{"$f":"IF('[1]FISCAL(M)'!$BT151=\"\",\"\",'[1]FISCAL(M)'!$BT151)","v":"n.d."},{"$f":"IF('[2]MONE(M)'!$AO151=\"\",\"\",'[2]MONE(M)'!$AO151)","v":"n.d."},{"$f":"IF('[3]MONE(M)'!$AO151=\"\",\"\",'[3]MONE(M)'!$AO151)","v":"n.d."},{"$f":"IF('[4]MONE(M)'!$AO151=\"\",\"\",'[4]MONE(M)'!$AO151)","v":"n.d."},{"$f":"+'[5]MONE(M)'!$AO151","v":"n.d."},{"$f":"IF('[6]MONE(M)'!$AO151=\"\",\"\",'[6]MONE(M)'!$AO151)","v":"n.d."},{"$f":"IF('[7]MONE(M)'!$AO151=\"\",\"\",'[7]MONE(M)'!$AO151)","v":"n.d."},{"$f":"IF('[8]MONE(M)'!$AO151=\"\",\"\",'[8]MONE(M)'!$AO151)","v":"n.d."},"n.d.","n.d.","n.d.","n.d.","n.d.","n.d.","n.d.",{"$f":"IF('[1]FISCAL(M)'!$K151=\"\",\"\",'[1]FISCAL(M)'!$K151)","v":"n.d."},{"$f":"+'[1]REAL(A)'!$AO$21","v":86214.197483650845},"n.d.",{"$f":"IF('[1]FISCAL(M)'!$L151=\"\",\"\",'[1]FISCAL(M)'!$L151)","v":"n.d."},{"$f":"+'[1]REAL(A)'!$AP$21","v":"n.d."},"n.d.","n.d.","n.d.","n.d.","n.d.","n.d.","n.d.","n.d.","n.d.","n.d.","n.d.","n.d.","n.d.","n.d.","n.d.","n.d.","n.d."]
[2001,"noviembre","2001-noviembre",{"$f":"IF('[1]REAL IPC(M)'!$AL152=\"\",\"\",+'[1]REAL IPC(M)'!$AL152)","v":7.3953855677568514},{"$f":"IF('[1]REAL IPC(M)'!$BE152=\"\",\"\",+'[1]REAL IPC(M)'!$BE152)","v":8.0563592014780472},{"$f":"IF('[1]REAL IPC(M)'!$AM152=\"\",\"\",+'[1]REAL IPC(M)'!$AM152)","v":6.7644352645028327},{"$f":"IF('[1]REAL IPC(M)'!$BI152=\"\",\"\",+'[1]REAL IPC(M)'!$BI152)","v":7.2779125120648658},{"$f":"IF('[1]REAL IMAE(M)'!BJ152=\"\",\"\",'[1]REAL IMAE(M)'!BJ152)","v":"n.d."},{"$f":"IF('[1]REAL IMAE(M)'!BK152=\"\",\"\",'[1]REAL IMAE(M)'!BK152)","v":"n.d."},{"$f":"IF('[1]REAL IMAE(M)'!BN152=\"\",\"\",'[1]REAL IMAE(M)'!BN152)","v":"n.d."},{"$f":"IF('[1]REAL IMAE(M)'!BO152=\"\",\"\",'[1]REAL IMAE(M)'!BO152)","v":"n.d."},{"$f":"IF('[1]EXT RIN(M)'!$K152=\"\",\"\",'[1]EXT RIN(M)'!$K152)","v":"n.d."},"",{"$f":"IF('[1]EXT RIN(M)'!$L152=\"\",\"\",'[1]EXT RIN(M)'!$L152)","v":"n.d."},"",{"$f":"IF('[1]MONE(M)CARD'!EG152=\"\",\"\",'[1]MONE(M)CARD'!EG152)","v":"n.d."},{"$f":"IF('[1]MONE(M)CARD'!EK152=\"\",\"\",'[1]MONE(M)CARD'!EK152)","v":"n.d."},{"$f":"IF('[1]MONE(M)CARD'!EP152=\"\",\"\",'[1]MONE(M)CARD'!EP152)","v":"n.d."},{"$f":"IF('[1]MONE(M)CARD'!ES152=\"\",\"\",'[1]MONE(M)CARD'!ES152)","v":"n.d."},{"$f":"IF('[1]MONE(M)CARD'!EV152=\"\",\"\",'[1]MONE(M)CARD'!EV152)","v":"n.d."},{"$f":"IF('[1]MONE(M)CARD'!EZ152=\"\",\"\",'[1]MONE(M)CARD'!EZ152)","v":"n.d."},{"$f":"IF('[1]MONE(M)CAPARD'!FC152=\"\",\"\",'[1]MONE(M)CAPARD'!FC152)","v":"n.d."},{"$f":"IF('[1]MONE(M)CAPARD'!FG152=\"\",\"\",'[1]MONE(M)CAPARD'!FG152)","v":"n.d."},{"$f":"IF('[1]MONE(M)CAPARD'!FL152=\"\",\"\",'[1]MONE(M)CAPARD'!FL152)","v":"n.d."},{"$f":"IF('[1]MONE(M)CAPARD'!FO152=\"\",\"\",'[1]MONE(M)CAPARD'!FO152)","v":"n.d."},{"$f":"IF('[1]MONE(M)CAPARD'!FR152=\"\",\"\",'[1]MONE(M)CAPARD'!FR152)","v":"n.d."},{"$f":"IF('[1]MONE(M)CAPARD'!FV152=\"\",\"\",'[1]MONE(M)CAPARD'!FV152)","v":"n.d."},{"$f":"IF('[1]MONE(M)CARD'!FV152=\"\",\"\",'[1]MONE(M)CARD'!FV152)","v":""},{"$f":"IF('[1]MONE(M)CARD'!GD152=\"\",\"\",'[1]MONE(M)CARD'!GD152)","v":"n.d."},{"$f":"IF('[1]MONE(M)CARD'!GE152=\"\",\"\",'[1]MONE(M)CARD'!GE152)","v":"n.d."},"n.d.","n.d.","n.d.","n.d.","n.d.","n.d.","n.d.","n.d.",null,"n.d.","n.d.","n.d.","n.d.","n.d.",{"$f":"IF('[1]MONE(M)CAPARD'!GS152=\"\",\"\",'[1]MONE(M)CAPARD'!GS152)","v":"n.d."},{"$f":"IF('[1]MONE(M)CARD'!HA152=\"\",\"\",'[1]MONE(M)CAPARD'!HA152)","v":"n.d."},{"$f":"IF('[1]MONE(M)CAPARD'!HB152=\"\",\"\",'[1]MONE(M)CAPARD'!HB152)","v":"n.d."},"n.d.","n.d.","n.d.","n.d.","n.d.","n.d.","n.d.","n.d.","n.d.","n.d.","n.d.","n.d.","n.d.","n.d.",{"$f":"IF('[1]MONE(M)CAPARD'!AS152=\"\",\"\",'[1]MONE(M)CAPARD'!AS152)","v":"n.d."},{"$f":"IF('[1]MONE(M)CAPARD'!AT152=\"\",\"\",'[1]MONE(M)CAPARD'!AT152)","v":"n.a."},{"$f":"IF('[1]MONE(M)CAPARD'!AU152=\"\",\"\",'[1]MONE(M)CAPARD'!AU152)","v":"n.d."},{"$f":"IF('[1]MONE(M)CAPARD'!AV152=\"\",\"\",'[1]MONE(M)CAPARD'!AV152)","v":"n.d."},{"$f":"IF('[1]MONE(M)CAPARD'!AW152=\"\",\"\",'[1]MONE(M)CAPARD'!AW152)","v":"n.a."},{"$f":"IF('[1]MONE(M)CAPARD'!AX152=\"\",\"\",'[1]MONE(M)CAPARD'!AX152)","v":"n.d."},{"$f":"IF('[1]MONE(M)CAPARD'!AY152=\"\",\"\",'[1]MONE(M)CAPARD'!AY152)","v":"n.a."},{"$f":"IF('[1]FISCAL(M)'!$K152=\"\",\"\",'[1]FISCAL(M)'!$K152)","v":"n.d."},{"$f":"IF('[1]FISCAL(M)'!$L152=\"\",\"\",'[1]FISCAL(M)'!$L152)","v":"n.d."},{"$f":"IF('[1]FISCAL(M)'!$AY152=\"\",\"\",'[1]FISCAL(M)'!$AY152)","v":"n.d."},{"$f":"IF('[1]FISCAL(M)'!$BI152=\"\",\"\",'[1]FISCAL(M)'!$BI152)","v":"n.d."},{"$f":"IF('[1]FISCAL(M)'!$BS152=\"\",\"\",'[1]FISCAL(M)'!$BS152)","v":"n.d."},{"$f":"IF('[1]FISCAL(M)'!$AZ152=\"\",\"\",'[1]FISCAL(M)'!$AZ152)","v":"n.d."},{"$f":"IF('[1]FISCAL(M)'!$BJ152=\"\",\"\",'[1]FISCAL(M)'!$BJ152)","v":"n.d."},{"$f":"IF('[1]FISCAL(M)'!$BT152=\"\",\"\",'[1]FISCAL(M)'!$BT152)","v":"n.d."},{"$f":"IF('[2]MONE(M)'!$AO152=\"\",\"\",'[2]MONE(M)'!$AO152)","v":"n.d."},{"$f":"IF('[3]MONE(M)'!$AO152=\"\",\"\",'[3]MONE(M)'!$AO152)","v":"n.d."},{"$f":"IF('[4]MONE(M)'!$AO152=\"\",\"\",'[4]MONE(M)'!$AO152)","v":"n.d."},{"$f":"+'[5]MONE(M)'!$AO152","v":"n.d."},{"$f":"IF('[6]MONE(M)'!$AO152=\"\",\"\",'[6]MONE(M)'!$AO152)","v":"n.d."},{"$f":"IF('[7]MONE(M)'!$AO152=\"\",\"\",'[7]MONE(M)'!$AO152)","v":"n.d."},{"$f":"IF('[8]MONE(M)'!$AO152=\"\",\"\",'[8]MONE(M)'!$AO152)","v":"n.d."},"n.d.","n.d.","n.d.","n.d.","n.d.","n.d.","n.d.",{"$f":"IF('[1]FISCAL(M)'!$K152=\"\",\"\",'[1]FISCAL(M)'!$K152)","v":"n.d."},{"$f":"+'[1]REAL(A)'!$AO$21","v":86214.197483650845},"n.d.",{"$f":"IF('[1]FISCAL(M)'!$L152=\"\",\"\",'[1]FISCAL(M)'!$L152)","v":"n.d."},{"$f":"+'[1]REAL(A)'!$AP$21","v":"n.d."},"n.d.","n.d.","n.d.","n.d.","n.d.","n.d.","n.d.","n.d.","n.d.","n.d.","n.d.","n.d.","n.d.","n.d.","n.d.","n.d.","n.d."]
[2001,"diciembre","2001-diciembre",{"$f":"IF('[1]REAL IPC(M)'!$AL153=\"\",\"\",+'[1]REAL IPC(M)'!$AL153)","v":6.6375178906429522},{"$f":"IF('[1]REAL IPC(M)'!$BE153=\"\",\"\",+'[1]REAL IPC(M)'!$BE153)","v":8.1859933581132971},{"$f":"IF('[1]REAL IPC(M)'!$AM153=\"\",\"\",+'[1]REAL IPC(M)'!$AM153)","v":6.0355240857589587},{"$f":"IF('[1]REAL IPC(M)'!$BI153=\"\",\"\",+'[1]REAL IPC(M)'!$BI153)","v":7.3915956858420895},{"$f":"IF('[1]REAL IMAE(M)'!BJ153=\"\",\"\",'[1]REAL IMAE(M)'!BJ153)","v":"n.d."},{"$f":"IF('[1]REAL IMAE(M)'!BK153=\"\",\"\",'[1]REAL IMAE(M)'!BK153)","v":"n.d."},{"$f":"IF('[1]REAL IMAE(M)'!BN153=\"\",\"\",'[1]REAL IMAE(M)'!BN153)","v":"n.d."},{"$f":"IF('[1]REAL IMAE(M)'!BO153=\"\",\"\",'[1]REAL IMAE(M)'!BO153)","v":"n.d."},{"$f":"IF('[1]EXT RIN(M)'!$K153=\"\",\"\",'[1]EXT RIN(M)'!$K153)","v":7764.9711239690441},7764.9711239690441,{"$f":"IF('[1]EXT RIN(M)'!$L153=\"\",\"\",'[1]EXT RIN(M)'!$L153)","v":7764.9711239690441},7764.9711239690441,{"$f":"IF('[1]MONE(M)CARD'!EG153=\"\",\"\",'[1]MONE(M)CARD'!EG153)","v":8926.4344020836179},{"$f":"IF('[1]MONE(M)CARD'!EK153=\"\",\"\",'[1]MONE(M)CARD'!EK153)","v":18810.285015974117},{"$f":"IF('[1]MONE(M)CARD'!EP153=\"\",\"\",'[1]MONE(M)CARD'!EP153)","v":6410.966982121492},{"$f":"IF('[1]MONE(M)CARD'!ES153=\"\",\"\",'[1]MONE(M)CARD'!ES153)","v":"n.d."},{"$f":"IF('[1]MONE(M)CARD'!EV153=\"\",\"\",'[1]MONE(M)CARD'!EV153)","v":"n.d."},{"$f":"IF('[1]MONE(M)CARD'!EZ153=\"\",\"\",'[1]MONE(M)CARD'!EZ153)","v":"n.d."},{"$f":"IF('[1]MONE(M)CAPARD'!FC153=\"\",\"\",'[1]MONE(M)CAPARD'!FC153)","v":8926.4344020836179},{"$f":"IF('[1]MONE(M)CAPARD'!FG153=\"\",\"\",'[1]MONE(M)CAPARD'!FG153)","v":18810.285015974117},{"$f":"IF('[1]MONE(M)CAPARD'!FL153=\"\",\"\",'[1]MONE(M)CAPARD'!FL153)","v":6410.966982121492},{"$f":"IF('[1]MONE(M)CAPARD'!FO153=\"\",\"\",'[1]MONE(M)CAPARD'!FO153)","v":"n.d."},{"$f":"IF('[1]MONE(M)CAPARD'!FR153=\"\",\"\",'[1]MONE(M)CAPARD'!FR153)","v":"n.d."},{"$f":"IF('[1]MONE(M)CAPARD'!FV153=\"\",\"\",'[1]MONE(M)CAPARD'!FV153)","v":"n.d."},{"$f":"IF('[1]MONE(M)CARD'!FV153=\"\",\"\",'[1]MONE(M)CARD'!FV153)","v":313.20424942934255},{"$f":"IF('[1]MONE(M)CARD'!GD153=\"\",\"\",'[1]MONE(M)CARD'!GD153)","v":68.191909845091004},{"$f":"IF('[1]MONE(M)CARD'!GE153=\"\",\"\",'[1]MONE(M)CARD'!GE153)","v":2610.3801962136013},"n.d.",{"$f":"IF('[9]II.2.Balance OSD-Activos'!J11=\"\",\"\",'[9]II.2.Balance OSD-Activos'!J11)","v":157.33979291675027},{"$f":"IF('[9]II.2.Balance OSD-Activos'!N11=\"\",\"\",'[9]II.2.Balance OSD-Activos'!N11)","v":17.021121511511133},{"$f":"IF('[9]II.2.Balance OSD-Activos'!R11=\"\",\"\",'[9]II.2.Balance OSD-Activos'!R11)","v":13188.083443706269},{"$f":"IF('[9]II.2.Balance OSD-Activos'!S11=\"\",\"\",'[9]II.2.Balance OSD-Activos'!S11)","v":11414.577095810417},13345.423236623019,{"$f":"IF(OR(AF146=\"\",AG146=\"\",AH146=\"\",AI146=\"\"),\"\",SUM(AF146:AI146))","v":24777.021453944948},"n.d.",null,"n.d.","n.d.","n.d.","n.d.","n.d.",{"$f":"IF('[1]MONE(M)CAPARD'!GS153=\"\",\"\",'[1]MONE(M)CAPARD'!GS153)","v":3003.7851404356006},{"$f":"IF('[1]MONE(M)CARD'!HA153=\"\",\"\",'[1]MONE(M)CAPARD'!HA153)","v":2610.3801962136013},{"$f":"IF('[1]MONE(M)CAPARD'!HB153=\"\",\"\",'[1]MONE(M)CAPARD'!HB153)","v":393.40494422199936},"n.d.",{"$f":"IF('[10]II.2.Balance OSD-Activos'!J11=\"\",\"\",'[10]II.2.Balance OSD-Activos'!J11)","v":157.33979291675027},{"$f":"IF('[10]II.2.Balance OSD-Activos'!N11=\"\",\"\",'[10]II.2.Balance OSD-Activos'!N11)","v":17.021121511511133},{"$f":"IF('[10]II.2.Balance OSD-Activos'!R11=\"\",\"\",'[10]II.2.Balance OSD-Activos'!R11)","v":13188.083443706269},{"$f":"IF('[10]II.2.Balance OSD-Activos'!S11=\"\",\"\",'[10]II.2.Balance OSD-Activos'!S11)","v":11414.577095810417},{"$f":"IFERROR(+AW146+AY146,\"n.d.\")","v":13345.423236623019},{"$f":"IF(OR(AW146=\"\",AX146=\"\",AY146=\"\",AZ146=\"\"),\"\",SUM(AW146:AZ146))","v":24777.021453944948},"n.d.","n.d.","n.d.","n.d.","n.d.","n.d.","n.d.",{"$f":"IF('[1]MONE(M)CAPARD'!AS153=\"\",\"\",'[1]MONE(M)CAPARD'!AS153)","v":"n.d."},{"$f":"IF('[1]MONE(M)CAPARD'!AT153=\"\",\"\",'[1]MONE(M)CAPARD'!AT153)","v":"n.a."},{"$f":"IF('[1]MONE(M)CAPARD'!AU153=\"\",\"\",'[1]MONE(M)CAPARD'!AU153)","v":"n.d."},{"$f":"IF('[1]MONE(M)CAPARD'!AV153=\"\",\"\",'[1]MONE(M)CAPARD'!AV153)","v":"n.d."},{"$f":"IF('[1]MONE(M)CAPARD'!AW153=\"\",\"\",'[1]MONE(M)CAPARD'!AW153)","v":"n.a."},{"$f":"IF('[1]MONE(M)CAPARD'!AX153=\"\",\"\",'[1]MONE(M)CAPARD'!AX153)","v":"n.d."},{"$f":"IF('[1]MONE(M)CAPARD'!AY153=\"\",\"\",'[1]MONE(M)CAPARD'!AY153)","v":"n.a."},{"$f":"IF('[1]FISCAL(M)'!$K153=\"\",\"\",'[1]FISCAL(M)'!$K153)","v":"n.d."},{"$f":"IF('[1]FISCAL(M)'!$L153=\"\",\"\",'[1]FISCAL(M)'!$L153)","v":"n.d."},{"$f":"IF('[1]FISCAL(M)'!$AY153=\"\",\"\",'[1]FISCAL(M)'!$AY153)","v":"n.d."},{"$f":"IF('[1]FISCAL(M)'!$BI153=\"\",\"\",'[1]FISCAL(M)'!$BI153)","v":"n.d."},{"$f":"IF('[1]FISCAL(M)'!$BS153=\"\",\"\",'[1]FISCAL(M)'!$BS153)","v":"n.d."},{"$f":"IF('[1]FISCAL(M)'!$AZ153=\"\",\"\",'[1]FISCAL(M)'!$AZ153)","v":"n.d."},{"$f":"IF('[1]FISCAL(M)'!$BJ153=\"\",\"\",'[1]FISCAL(M)'!$BJ153)","v":"n.d."},{"$f":"IF('[1]FISCAL(M)'!$BT153=\"\",\"\",'[1]FISCAL(M)'!$BT153)","v":"n.d."},{"$f":"IF('[2]MONE(M)'!$AO153=\"\",\"\",'[2]MONE(M)'!$AO153)","v":1530647.7155016826},{"$f":"IF('[3]MONE(M)'!$AO153=\"\",\"\",'[3]MONE(M)'!$AO153)","v":5793.6577428571427},{"$f":"IF('[4]MONE(M)'!$AO153=\"\",\"\",'[4]MONE(M)'!$AO153)","v":36171.978717497179},{"$f":"+'[5]MONE(M)'!$AO153","v":42189.255782720531},{"$f":"IF('[6]MONE(M)'!$AO153=\"\",\"\",'[6]MONE(M)'!$AO153)","v":9904.0127808399993},{"$f":"IF('[7]MONE(M)'!$AO153=\"\",\"\",'[7]MONE(M)'!$AO153)","v":134642.91197099999},{"$f":"IF('[8]MONE(M)'!$AO153=\"\",\"\",'[8]MONE(M)'!$AO153)","v":0},"n.d.","n.d.","n.d.","n.d.","n.d.","n.d.","n.d.",{"$f":"IF('[1]FISCAL(M)'!$K153=\"\",\"\",'[1]FISCAL(M)'!$K153)","v":"n.d."},{"$f":"+'[1]REAL(A)'!$AO$21","v":86214.197483650845},"n.d.",{"$f":"IF('[1]FISCAL(M)'!$L153=\"\",\"\",'[1]FISCAL(M)'!$L153)","v":"n.d."},{"$f":"+'[1]REAL(A)'!$AP$21","v":"n.d."},"n.d.","n.d.","n.d.","n.d.","n.d.","n.d.","n.d.","n.d.","n.d.","n.d.","n.d.","n.d.","n.d.","n.d.","n.d.","n.d.","n.d."]
[2002,"enero","2002-enero",{"$f":"IF('[1]REAL IPC(M)'!$AL154=\"\",\"\",+'[1]REAL IPC(M)'!$AL154)","v":5.9694831945125815},{"$f":"IF('[1]REAL IPC(M)'!$BE154=\"\",\"\",+'[1]REAL IPC(M)'!$BE154)","v":8.3239550268700881},{"$f":"IF('[1]REAL IPC(M)'!$AM154=\"\",\"\",+'[1]REAL IPC(M)'!$AM154)","v":5.4886547874231084},{"$f":"IF('[1]REAL IPC(M)'!$BI154=\"\",\"\",+'[1]REAL IPC(M)'!$BI154)","v":7.5135833918688277},{"$f":"IF('[1]REAL IMAE(M)'!BJ154=\"\",\"\",'[1]REAL IMAE(M)'!BJ154)","v":"n.d."},{"$f":"IF('[1]REAL IMAE(M)'!BK154=\"\",\"\",'[1]REAL IMAE(M)'!BK154)","v":"n.d."},{"$f":"IF('[1]REAL IMAE(M)'!BN154=\"\",\"\",'[1]REAL IMAE(M)'!BN154)","v":"n.d."},{"$f":"IF('[1]REAL IMAE(M)'!BO154=\"\",\"\",'[1]REAL IMAE(M)'!BO154)","v":"n.d."},{"$f":"IF('[1]EXT RIN(M)'!$K154=\"\",\"\",'[1]EXT RIN(M)'!$K154)","v":7465.7883886444188},"",{"$f":"IF('[1]EXT RIN(M)'!$L154=\"\",\"\",'[1]EXT RIN(M)'!$L154)","v":7465.7883886444188},"",{"$f":"IF('[1]MONE(M)CARD'!EG154=\"\",\"\",'[1]MONE(M)CARD'!EG154)","v":8554.9617742593909},{"$f":"IF('[1]MONE(M)CARD'!EK154=\"\",\"\",'[1]MONE(M)CARD'!EK154)","v":18346.135160144535},{"$f":"IF('[1]MONE(M)CARD'!EP154=\"\",\"\",'[1]MONE(M)CARD'!EP154)","v":6591.6138308720401},{"$f":"IF('[1]MONE(M)CARD'!ES154=\"\",\"\",'[1]MONE(M)CARD'!ES154)","v":"n.d."},{"$f":"IF('[1]MONE(M)CARD'!EV154=\"\",\"\",'[1]MONE(M)CARD'!EV154)","v":"n.d."},{"$f":"IF('[1]MONE(M)CARD'!EZ154=\"\",\"\",'[1]MONE(M)CARD'!EZ154)","v":"n.d."},{"$f":"IF('[1]MONE(M)CAPARD'!FC154=\"\",\"\",'[1]MONE(M)CAPARD'!FC154)","v":8554.9617742593909},{"$f":"IF('[1]MONE(M)CAPARD'!FG154=\"\",\"\",'[1]MONE(M)CAPARD'!FG154)","v":18346.135160144535},{"$f":"IF('[1]MONE(M)CAPARD'!FL154=\"\",\"\",'[1]MONE(M)CAPARD'!FL154)","v":6591.6138308720401},{"$f":"IF('[1]MONE(M)CAPARD'!FO154=\"\",\"\",'[1]MONE(M)CAPARD'!FO154)","v":"n.d."},{"$f":"IF('[1]MONE(M)CAPARD'!FR154=\"\",\"\",'[1]MONE(M)CAPARD'!FR154)","v":"n.d."},{"$f":"IF('[1]MONE(M)CAPARD'!FV154=\"\",\"\",'[1]MONE(M)CAPARD'!FV154)","v":"n.d."},{"$f":"IF('[1]MONE(M)CARD'!FV154=\"\",\"\",'[1]MONE(M)CARD'!FV154)","v":336.17883302918676},{"$f":"IF('[1]MONE(M)CARD'!GD154=\"\",\"\",'[1]MONE(M)CARD'!GD154)","v":85.382174326043099},{"$f":"IF('[1]MONE(M)CARD'!GE154=\"\",\"\",'[1]MONE(M)CARD'!GE154)","v":3166.9433422064035},"n.d.",{"$f":"IF('[9]II.2.Balance OSD-Activos'!J12=\"\",\"\",'[9]II.2.Balance OSD-Activos'!J12)","v":175.96176107411975},{"$f":"IF('[9]II.2.Balance OSD-Activos'!N12=\"\",\"\",'[9]II.2.Balance OSD-Activos'!N12)","v":15.466224372399777},{"$f":"IF('[9]II.2.Balance OSD-Activos'!R12=\"\",\"\",'[9]II.2.Balance OSD-Activos'!R12)","v":13147.617384813884},{"$f":"IF('[9]II.2.Balance OSD-Activos'!S12=\"\",\"\",'[9]II.2.Balance OSD-Activos'!S12)","v":11391.26557294667},13323.579145888005,24730.310943207074,"n.d.",null,"n.d.","n.d.","n.d.","n.d.","n.d.",{"$f":"IF('[1]MONE(M)CAPARD'!GS154=\"\",\"\",'[1]MONE(M)CAPARD'!GS154)","v":3016.9493268919236},{"$f":"IF('[1]MONE(M)CARD'!HA154=\"\",\"\",'[1]MONE(M)CAPARD'!HA154)","v":3166.9433422064035},{"$f":"IF('[1]MONE(M)CAPARD'!HB154=\"\",\"\",'[1]MONE(M)CAPARD'!HB154)","v":-149.99401531447984},"n.d.",{"$f":"IF('[10]II.2.Balance OSD-Activos'!J12=\"\",\"\",'[10]II.2.Balance OSD-Activos'!J12)","v":175.96176107411975},{"$f":"IF('[10]II.2.Balance OSD-Activos'!N12=\"\",\"\",'[10]II.2.Balance OSD-Activos'!N12)","v":15.466224372399777},{"$f":"IF('[10]II.2.Balance OSD-Activos'!R12=\"\",\"\",'[10]II.2.Balance OSD-Activos'!R12)","v":13147.617384813884},{"$f":"IF('[10]II.2.Balance OSD-Activos'!S12=\"\",\"\",'[10]II.2.Balance OSD-Activos'!S12)","v":11391.26557294667},13323.579145888005,24730.310943207074,"n.d.","n.d.","n.d.","n.d.","n.d.","n.d.","n.d.",{"$f":"IF('[1]MONE(M)CAPARD'!AS154=\"\",\"\",'[1]MONE(M)CAPARD'!AS154)","v":"n.d."},{"$f":"IF('[1]MONE(M)CAPARD'!AT154=\"\",\"\",'[1]MONE(M)CAPARD'!AT154)","v":"n.a."},{"$f":"IF('[1]MONE(M)CAPARD'!AU154=\"\",\"\",'[1]MONE(M)CAPARD'!AU154)","v":"n.d."},{"$f":"IF('[1]MONE(M)CAPARD'!AV154=\"\",\"\",'[1]MONE(M)CAPARD'!AV154)","v":"n.d."},{"$f":"IF('[1]MONE(M)CAPARD'!AW154=\"\",\"\",'[1]MONE(M)CAPARD'!AW154)","v":"n.a."},{"$f":"IF('[1]MONE(M)CAPARD'!AX154=\"\",\"\",'[1]MONE(M)CAPARD'!AX154)","v":"n.d."},{"$f":"IF('[1]MONE(M)CAPARD'!AY154=\"\",\"\",'[1]MONE(M)CAPARD'!AY154)","v":"n.a."},{"$f":"IF('[1]FISCAL(M)'!$K154=\"\",\"\",'[1]FISCAL(M)'!$K154)","v":15.59640378748103},{"$f":"IF('[1]FISCAL(M)'!$L154=\"\",\"\",'[1]FISCAL(M)'!$L154)","v":66.144494440481054},{"$f":"IF('[1]FISCAL(M)'!$AY154=\"\",\"\",'[1]FISCAL(M)'!$AY154)","v":"n.d."},{"$f":"IF('[1]FISCAL(M)'!$BI154=\"\",\"\",'[1]FISCAL(M)'!$BI154)","v":"n.d."},{"$f":"IF('[1]FISCAL(M)'!$BS154=\"\",\"\",'[1]FISCAL(M)'!$BS154)","v":"n.d."},{"$f":"IF('[1]FISCAL(M)'!$AZ154=\"\",\"\",'[1]FISCAL(M)'!$AZ154)","v":"n.d."},{"$f":"IF('[1]FISCAL(M)'!$BJ154=\"\",\"\",'[1]FISCAL(M)'!$BJ154)","v":"n.d."},{"$f":"IF('[1]FISCAL(M)'!$BT154=\"\",\"\",'[1]FISCAL(M)'!$BT154)","v":"n.d."},{"$f":"IF('[2]MONE(M)'!$AO154=\"\",\"\",'[2]MONE(M)'!$AO154)","v":1555656.2210431478},{"$f":"IF('[3]MONE(M)'!$AO154=\"\",\"\",'[3]MONE(M)'!$AO154)","v":5805.6617428571435},{"$f":"IF('[4]MONE(M)'!$AO154=\"\",\"\",'[4]MONE(M)'!$AO154)","v":35624.893431773249},{"$f":"+'[5]MONE(M)'!$AO154","v":42270.620131316355},{"$f":"IF('[6]MONE(M)'!$AO154=\"\",\"\",'[6]MONE(M)'!$AO154)","v":10101.976076520001},{"$f":"IF('[7]MONE(M)'!$AO154=\"\",\"\",'[7]MONE(M)'!$AO154)","v":136430.585999},{"$f":"IF('[8]MONE(M)'!$AO154=\"\",\"\",'[8]MONE(M)'!$AO154)","v":0},"n.d.","n.d.","n.d.","n.d.","n.d.","n.d.","n.d.",{"$f":"IF('[1]FISCAL(M)'!$K154=\"\",\"\",'[1]FISCAL(M)'!$K154)","v":15.59640378748103},{"$f":"+'[1]REAL(A)'!$AO$22","v":90015.237527740421},1.732640407983661E-2,{"$f":"IF('[1]FISCAL(M)'!$L154=\"\",\"\",'[1]FISCAL(M)'!$L154)","v":66.144494440481054},{"$f":"+'[1]REAL(A)'!$AP$22","v":"n.d."},"n.d.","n.d.",{"$f":"'[1]Gráfico REM'!BG148","v":6609.5245323925374},{"$f":"'[1]Gráfico REM'!BH148","v":26129.731447709215},{"$f":"'[1]Gráfico REM'!BI148","v":843.15762417990481},"n.d.","n.d.","n.d.","n.d.","n.d.","n.d.","n.d.","n.d.","n.d.","n.d.","n.d.","n.d."]
[2002,"febrero","2002-febrero",{"$f":"IF('[1]REAL IPC(M)'!$AL155=\"\",\"\",+'[1]REAL IPC(M)'!$AL155)","v":5.9209894978198951},{"$f":"IF('[1]REAL IPC(M)'!$BE155=\"\",\"\",+'[1]REAL IPC(M)'!$BE155)","v":8.4705276025479606},{"$f":"IF('[1]REAL IPC(M)'!$AM155=\"\",\"\",+'[1]REAL IPC(M)'!$AM155)","v":5.4365276410848429},{"$f":"IF('[1]REAL IPC(M)'!$BI155=\"\",\"\",+'[1]REAL IPC(M)'!$BI155)","v":7.6442508014591404},{"$f":"IF('[1]REAL IMAE(M)'!BJ155=\"\",\"\",'[1]REAL IMAE(M)'!BJ155)","v":"n.d."},{"$f":"IF('[1]REAL IMAE(M)'!BK155=\"\",\"\",'[1]REAL IMAE(M)'!BK155)","v":"n.d."},{"$f":"IF('[1]REAL IMAE(M)'!BN155=\"\",\"\",'[1]REAL IMAE(M)'!BN155)","v":"n.d."},{"$f":"IF('[1]REAL IMAE(M)'!BO155=\"\",\"\",'[1]REAL IMAE(M)'!BO155)","v":"n.d."},{"$f":"IF('[1]EXT RIN(M)'!$K155=\"\",\"\",'[1]EXT RIN(M)'!$K155)","v":7585.2437964367746},"",{"$f":"IF('[1]EXT RIN(M)'!$L155=\"\",\"\",'[1]EXT RIN(M)'!$L155)","v":7585.2437964367746},"",{"$f":"IF('[1]MONE(M)CARD'!EG155=\"\",\"\",'[1]MONE(M)CARD'!EG155)","v":8368.7543965780897},{"$f":"IF('[1]MONE(M)CARD'!EK155=\"\",\"\",'[1]MONE(M)CARD'!EK155)","v":18846.9535447009},{"$f":"IF('[1]MONE(M)CARD'!EP155=\"\",\"\",'[1]MONE(M)CARD'!EP155)","v":6858.5999706813964},{"$f":"IF('[1]MONE(M)CARD'!ES155=\"\",\"\",'[1]MONE(M)CARD'!ES155)","v":"n.d."},{"$f":"IF('[1]MONE(M)CARD'!EV155=\"\",\"\",'[1]MONE(M)CARD'!EV155)","v":"n.d."},{"$f":"IF('[1]MONE(M)CARD'!EZ155=\"\",\"\",'[1]MONE(M)CARD'!EZ155)","v":"n.d."},{"$f":"IF('[1]MONE(M)CAPARD'!FC155=\"\",\"\",'[1]MONE(M)CAPARD'!FC155)","v":8368.7543965780897},{"$f":"IF('[1]MONE(M)CAPARD'!FG155=\"\",\"\",'[1]MONE(M)CAPARD'!FG155)","v":18846.9535447009},{"$f":"IF('[1]MONE(M)CAPARD'!FL155=\"\",\"\",'[1]MONE(M)CAPARD'!FL155)","v":6858.5999706813964},{"$f":"IF('[1]MONE(M)CAPARD'!FO155=\"\",\"\",'[1]MONE(M)CAPARD'!FO155)","v":"n.d."},{"$f":"IF('[1]MONE(M)CAPARD'!FR155=\"\",\"\",'[1]MONE(M)CAPARD'!FR155)","v":"n.d."},{"$f":"IF('[1]MONE(M)CAPARD'!FV155=\"\",\"\",'[1]MONE(M)CAPARD'!FV155)","v":"n.d."},{"$f":"IF('[1]MONE(M)CARD'!FV155=\"\",\"\",'[1]MONE(M)CARD'!FV155)","v":333.94592179767994},{"$f":"IF('[1]MONE(M)CARD'!GD155=\"\",\"\",'[1]MONE(M)CARD'!GD155)","v":87.727987876489365},{"$f":"IF('[1]MONE(M)CARD'!GE155=\"\",\"\",'[1]MONE(M)CARD'!GE155)","v":2751.4355450735093},"n.d.",{"$f":"IF('[9]II.2.Balance OSD-Activos'!J13=\"\",\"\",'[9]II.2.Balance OSD-Activos'!J13)","v":162.58406265463518},{"$f":"IF('[9]II.2.Balance OSD-Activos'!N13=\"\",\"\",'[9]II.2.Balance OSD-Activos'!N13)","v":15.384225492535423},{"$f":"IF('[9]II.2.Balance OSD-Activos'!R13=\"\",\"\",'[9]II.2.Balance OSD-Activos'!R13)","v":13079.119232248217},{"$f":"IF('[9]II.2.Balance OSD-Activos'!S13=\"\",\"\",'[9]II.2.Balance OSD-Activos'!S13)","v":11608.852269651819},13241.703294902853,24865.939790047207,"n.d.",null,"n.d.","n.d.","n.d.","n.d.","n.d.",{"$f":"IF('[1]MONE(M)CAPARD'!GS155=\"\",\"\",'[1]MONE(M)CAPARD'!GS155)","v":2995.6125770590911},{"$f":"IF('[1]MONE(M)CARD'!HA155=\"\",\"\",'[1]MONE(M)CAPARD'!HA155)","v":2751.4355450735093},{"$f":"IF('[1]MONE(M)CAPARD'!HB155=\"\",\"\",'[1]MONE(M)CAPARD'!HB155)","v":244.17703198558183},"n.d.",{"$f":"IF('[10]II.2.Balance OSD-Activos'!J13=\"\",\"\",'[10]II.2.Balance OSD-Activos'!J13)","v":162.58406265463518},{"$f":"IF('[10]II.2.Balance OSD-Activos'!N13=\"\",\"\",'[10]II.2.Balance OSD-Activos'!N13)","v":15.384225492535423},{"$f":"IF('[10]II.2.Balance OSD-Activos'!R13=\"\",\"\",'[10]II.2.Balance OSD-Activos'!R13)","v":13079.119232248217},{"$f":"IF('[10]II.2.Balance OSD-Activos'!S13=\"\",\"\",'[10]II.2.Balance OSD-Activos'!S13)","v":11608.852269651819},13241.703294902853,24865.939790047207,"n.d.","n.d.","n.d.","n.d.","n.d.","n.d.","n.d.",{"$f":"IF('[1]MONE(M)CAPARD'!AS155=\"\",\"\",'[1]MONE(M)CAPARD'!AS155)","v":"n.d."},{"$f":"IF('[1]MONE(M)CAPARD'!AT155=\"\",\"\",'[1]MONE(M)CAPARD'!AT155)","v":"n.a."},{"$f":"IF('[1]MONE(M)CAPARD'!AU155=\"\",\"\",'[1]MONE(M)CAPARD'!AU155)","v":"n.d."},{"$f":"IF('[1]MONE(M)CAPARD'!AV155=\"\",\"\",'[1]MONE(M)CAPARD'!AV155)","v":"n.d."},{"$f":"IF('[1]MONE(M)CAPARD'!AW155=\"\",\"\",'[1]MONE(M)CAPARD'!AW155)","v":"n.a."},{"$f":"IF('[1]MONE(M)CAPARD'!AX155=\"\",\"\",'[1]MONE(M)CAPARD'!AX155)","v":"n.d."},{"$f":"IF('[1]MONE(M)CAPARD'!AY155=\"\",\"\",'[1]MONE(M)CAPARD'!AY155)","v":"n.a."},{"$f":"IF('[1]FISCAL(M)'!$K155=\"\",\"\",'[1]FISCAL(M)'!$K155)","v":-203.49347393374867},{"$f":"IF('[1]FISCAL(M)'!$L155=\"\",\"\",'[1]FISCAL(M)'!$L155)","v":-369.66503359074864},{"$f":"IF('[1]FISCAL(M)'!$AY155=\"\",\"\",'[1]FISCAL(M)'!$AY155)","v":"n.d."},{"$f":"IF('[1]FISCAL(M)'!$BI155=\"\",\"\",'[1]FISCAL(M)'!$BI155)","v":"n.d."},{"$f":"IF('[1]FISCAL(M)'!$BS155=\"\",\"\",'[1]FISCAL(M)'!$BS155)","v":"n.d."},{"$f":"IF('[1]FISCAL(M)'!$AZ155=\"\",\"\",'[1]FISCAL(M)'!$AZ155)","v":"n.d."},{"$f":"IF('[1]FISCAL(M)'!$BJ155=\"\",\"\",'[1]FISCAL(M)'!$BJ155)","v":"n.d."},{"$f":"IF('[1]FISCAL(M)'!$BT155=\"\",\"\",'[1]FISCAL(M)'!$BT155)","v":"n.d."},{"$f":"IF('[2]MONE(M)'!$AO155=\"\",\"\",'[2]MONE(M)'!$AO155)","v":1565422.9569562464},{"$f":"IF('[3]MONE(M)'!$AO155=\"\",\"\",'[3]MONE(M)'!$AO155)","v":5890.6657428571443},{"$f":"IF('[4]MONE(M)'!$AO155=\"\",\"\",'[4]MONE(M)'!$AO155)","v":36059.338473854223},{"$f":"+'[5]MONE(M)'!$AO155","v":42544.854746607489},{"$f":"IF('[6]MONE(M)'!$AO155=\"\",\"\",'[6]MONE(M)'!$AO155)","v":10157.002826709999},{"$f":"IF('[7]MONE(M)'!$AO155=\"\",\"\",'[7]MONE(M)'!$AO155)","v":138279.52566300001},{"$f":"IF('[8]MONE(M)'!$AO155=\"\",\"\",'[8]MONE(M)'!$AO155)","v":0},"n.d.","n.d.","n.d.","n.d.","n.d.","n.d.","n.d.",{"$f":"IF('[1]FISCAL(M)'!$K155=\"\",\"\",'[1]FISCAL(M)'!$K155)","v":-203.49347393374867},{"$f":"+'[1]REAL(A)'!$AO$22","v":90015.237527740421},-0.22606558569712945,{"$f":"IF('[1]FISCAL(M)'!$L155=\"\",\"\",'[1]FISCAL(M)'!$L155)","v":-369.66503359074864},{"$f":"+'[1]REAL(A)'!$AP$22","v":"n.d."},"n.d.","n.d.",{"$f":"'[1]Gráfico REM'!BG149","v":6803.2255155732018},{"$f":"'[1]Gráfico REM'!BH149","v":26379.834770216716},{"$f":"'[1]Gráfico REM'!BI149","v":806.16507432037963},"n.d.","n.d.","n.d.","n.d.","n.d.","n.d.","n.d.","n.d.","n.d.","n.d.","n.d.","n.d."]
[2002,"marzo","2002-marzo",{"$f":"IF('[1]REAL IPC(M)'!$AL156=\"\",\"\",+'[1]REAL IPC(M)'!$AL156)","v":6.2574111848242797},{"$f":"IF('[1]REAL IPC(M)'!$BE156=\"\",\"\",+'[1]REAL IPC(M)'!$BE156)","v":8.6258567090821359},{"$f":"IF('[1]REAL IPC(M)'!$AM156=\"\",\"\",+'[1]REAL IPC(M)'!$AM156)","v":5.7578516525423229},{"$f":"IF('[1]REAL IPC(M)'!$BI156=\"\",\"\",+'[1]REAL IPC(M)'!$BI156)","v":7.7838373745904965},{"$f":"IF('[1]REAL IMAE(M)'!BJ156=\"\",\"\",'[1]REAL IMAE(M)'!BJ156)","v":"n.d."},{"$f":"IF('[1]REAL IMAE(M)'!BK156=\"\",\"\",'[1]REAL IMAE(M)'!BK156)","v":"n.d."},{"$f":"IF('[1]REAL IMAE(M)'!BN156=\"\",\"\",'[1]REAL IMAE(M)'!BN156)","v":"n.d."},{"$f":"IF('[1]REAL IMAE(M)'!BO156=\"\",\"\",'[1]REAL IMAE(M)'!BO156)","v":"n.d."},{"$f":"IF('[1]EXT RIN(M)'!$K156=\"\",\"\",'[1]EXT RIN(M)'!$K156)","v":7737.9052355600579},"",{"$f":"IF('[1]EXT RIN(M)'!$L156=\"\",\"\",'[1]EXT RIN(M)'!$L156)","v":7737.9052355600579},"",{"$f":"IF('[1]MONE(M)CARD'!EG156=\"\",\"\",'[1]MONE(M)CARD'!EG156)","v":8652.7441718158534},{"$f":"IF('[1]MONE(M)CARD'!EK156=\"\",\"\",'[1]MONE(M)CARD'!EK156)","v":18736.58298008101},{"$f":"IF('[1]MONE(M)CARD'!EP156=\"\",\"\",'[1]MONE(M)CARD'!EP156)","v":6850.938790484357},{"$f":"IF('[1]MONE(M)CARD'!ES156=\"\",\"\",'[1]MONE(M)CARD'!ES156)","v":"n.d."},{"$f":"IF('[1]MONE(M)CARD'!EV156=\"\",\"\",'[1]MONE(M)CARD'!EV156)","v":"n.d."},{"$f":"IF('[1]MONE(M)CARD'!EZ156=\"\",\"\",'[1]MONE(M)CARD'!EZ156)","v":"n.d."},{"$f":"IF('[1]MONE(M)CAPARD'!FC156=\"\",\"\",'[1]MONE(M)CAPARD'!FC156)","v":8652.7441718158534},{"$f":"IF('[1]MONE(M)CAPARD'!FG156=\"\",\"\",'[1]MONE(M)CAPARD'!FG156)","v":18736.58298008101},{"$f":"IF('[1]MONE(M)CAPARD'!FL156=\"\",\"\",'[1]MONE(M)CAPARD'!FL156)","v":6850.938790484357},{"$f":"IF('[1]MONE(M)CAPARD'!FO156=\"\",\"\",'[1]MONE(M)CAPARD'!FO156)","v":"n.d."},{"$f":"IF('[1]MONE(M)CAPARD'!FR156=\"\",\"\",'[1]MONE(M)CAPARD'!FR156)","v":"n.d."},{"$f":"IF('[1]MONE(M)CAPARD'!FV156=\"\",\"\",'[1]MONE(M)CAPARD'!FV156)","v":"n.d."},{"$f":"IF('[1]MONE(M)CARD'!FV156=\"\",\"\",'[1]MONE(M)CARD'!FV156)","v":323.91807245626751},{"$f":"IF('[1]MONE(M)CARD'!GD156=\"\",\"\",'[1]MONE(M)CARD'!GD156)","v":84.282791216498566},{"$f":"IF('[1]MONE(M)CARD'!GE156=\"\",\"\",'[1]MONE(M)CARD'!GE156)","v":3241.1603797218545},"n.d.",{"$f":"IF('[9]II.2.Balance OSD-Activos'!J14=\"\",\"\",'[9]II.2.Balance OSD-Activos'!J14)","v":176.82626615055591},{"$f":"IF('[9]II.2.Balance OSD-Activos'!N14=\"\",\"\",'[9]II.2.Balance OSD-Activos'!N14)","v":15.33166959057451},{"$f":"IF('[9]II.2.Balance OSD-Activos'!R14=\"\",\"\",'[9]II.2.Balance OSD-Activos'!R14)","v":13230.673502304811},{"$f":"IF('[9]II.2.Balance OSD-Activos'!S14=\"\",\"\",'[9]II.2.Balance OSD-Activos'!S14)","v":11722.752348089525},13407.499768455367,25145.583786135467,"n.d.",null,"n.d.","n.d.","n.d.","n.d.","n.d.",{"$f":"IF('[1]MONE(M)CAPARD'!GS156=\"\",\"\",'[1]MONE(M)CAPARD'!GS156)","v":3148.7421487684637},{"$f":"IF('[1]MONE(M)CARD'!HA156=\"\",\"\",'[1]MONE(M)CAPARD'!HA156)","v":3241.1603797218545},{"$f":"IF('[1]MONE(M)CAPARD'!HB156=\"\",\"\",'[1]MONE(M)CAPARD'!HB156)","v":-92.418230953390776},"n.d.",{"$f":"IF('[10]II.2.Balance OSD-Activos'!J14=\"\",\"\",'[10]II.2.Balance OSD-Activos'!J14)","v":176.82626615055591},{"$f":"IF('[10]II.2.Balance OSD-Activos'!N14=\"\",\"\",'[10]II.2.Balance OSD-Activos'!N14)","v":15.33166959057451},{"$f":"IF('[10]II.2.Balance OSD-Activos'!R14=\"\",\"\",'[10]II.2.Balance OSD-Activos'!R14)","v":13230.673502304811},{"$f":"IF('[10]II.2.Balance OSD-Activos'!S14=\"\",\"\",'[10]II.2.Balance OSD-Activos'!S14)","v":11722.752348089525},13407.499768455367,25145.583786135467,"n.d.","n.d.","n.d.","n.d.","n.d.","n.d.","n.d.",{"$f":"IF('[1]MONE(M)CAPARD'!AS156=\"\",\"\",'[1]MONE(M)CAPARD'!AS156)","v":"n.d."},{"$f":"IF('[1]MONE(M)CAPARD'!AT156=\"\",\"\",'[1]MONE(M)CAPARD'!AT156)","v":"n.a."},{"$f":"IF('[1]MONE(M)CAPARD'!AU156=\"\",\"\",'[1]MONE(M)CAPARD'!AU156)","v":"n.d."},{"$f":"IF('[1]MONE(M)CAPARD'!AV156=\"\",\"\",'[1]MONE(M)CAPARD'!AV156)","v":"n.d."},{"$f":"IF('[1]MONE(M)CAPARD'!AW156=\"\",\"\",'[1]MONE(M)CAPARD'!AW156)","v":"n.a."},{"$f":"IF('[1]MONE(M)CAPARD'!AX156=\"\",\"\",'[1]MONE(M)CAPARD'!AX156)","v":"n.d."},{"$f":"IF('[1]MONE(M)CAPARD'!AY156=\"\",\"\",'[1]MONE(M)CAPARD'!AY156)","v":"n.a."},{"$f":"IF('[1]FISCAL(M)'!$K156=\"\",\"\",'[1]FISCAL(M)'!$K156)","v":-239.48396330420698},{"$f":"IF('[1]FISCAL(M)'!$L156=\"\",\"\",'[1]FISCAL(M)'!$L156)","v":-398.23370950620705},{"$f":"IF('[1]FISCAL(M)'!$AY156=\"\",\"\",'[1]FISCAL(M)'!$AY156)","v":"n.d."},{"$f":"IF('[1]FISCAL(M)'!$BI156=\"\",\"\",'[1]FISCAL(M)'!$BI156)","v":"n.d."},{"$f":"IF('[1]FISCAL(M)'!$BS156=\"\",\"\",'[1]FISCAL(M)'!$BS156)","v":"n.d."},{"$f":"IF('[1]FISCAL(M)'!$AZ156=\"\",\"\",'[1]FISCAL(M)'!$AZ156)","v":"n.d."},{"$f":"IF('[1]FISCAL(M)'!$BJ156=\"\",\"\",'[1]FISCAL(M)'!$BJ156)","v":"n.d."},{"$f":"IF('[1]FISCAL(M)'!$BT156=\"\",\"\",'[1]FISCAL(M)'!$BT156)","v":"n.d."},{"$f":"IF('[2]MONE(M)'!$AO156=\"\",\"\",'[2]MONE(M)'!$AO156)","v":1596602.9556422816},{"$f":"IF('[3]MONE(M)'!$AO156=\"\",\"\",'[3]MONE(M)'!$AO156)","v":5811.2257428571429},{"$f":"IF('[4]MONE(M)'!$AO156=\"\",\"\",'[4]MONE(M)'!$AO156)","v":35860.147330091728},{"$f":"+'[5]MONE(M)'!$AO156","v":42927.815958334751},{"$f":"IF('[6]MONE(M)'!$AO156=\"\",\"\",'[6]MONE(M)'!$AO156)","v":9924.1195131900004},{"$f":"IF('[7]MONE(M)'!$AO156=\"\",\"\",'[7]MONE(M)'!$AO156)","v":140953.09512399998},{"$f":"IF('[8]MONE(M)'!$AO156=\"\",\"\",'[8]MONE(M)'!$AO156)","v":0},"n.d.","n.d.","n.d.","n.d.","n.d.","n.d.","n.d.",{"$f":"IF('[1]FISCAL(M)'!$K156=\"\",\"\",'[1]FISCAL(M)'!$K156)","v":-239.48396330420698},{"$f":"+'[1]REAL(A)'!$AO$22","v":90015.237527740421},-0.26604824903161989,{"$f":"IF('[1]FISCAL(M)'!$L156=\"\",\"\",'[1]FISCAL(M)'!$L156)","v":-398.23370950620705},{"$f":"+'[1]REAL(A)'!$AP$22","v":"n.d."},"n.d.","n.d.",{"$f":"'[1]Gráfico REM'!BG150","v":7063.2160628032798},{"$f":"'[1]Gráfico REM'!BH150","v":26538.533317388901},{"$f":"'[1]Gráfico REM'!BI150","v":864.48690803304407},"n.d.","n.d.","n.d.","n.d.","n.d.","n.d.","n.d.","n.d.","n.d.","n.d.","n.d.","n.d."]
[2002,"abril","2002-abril",{"$f":"IF('[1]REAL IPC(M)'!$AL157=\"\",\"\",+'[1]REAL IPC(M)'!$AL157)","v":6.1947875271679997},{"$f":"IF('[1]REAL IPC(M)'!$BE157=\"\",\"\",+'[1]REAL IPC(M)'!$BE157)","v":8.7899322654715348},{"$f":"IF('[1]REAL IPC(M)'!$AM157=\"\",\"\",+'[1]REAL IPC(M)'!$AM157)","v":5.6846867466285422},{"$f":"IF('[1]REAL IPC(M)'!$BI157=\"\",\"\",+'[1]REAL IPC(M)'!$BI157)","v":7.9324287764861223},{"$f":"IF('[1]REAL IMAE(M)'!BJ157=\"\",\"\",'[1]REAL IMAE(M)'!BJ157)","v":"n.d."},{"$f":"IF('[1]REAL IMAE(M)'!BK157=\"\",\"\",'[1]REAL IMAE(M)'!BK157)","v":"n.d."},{"$f":"IF('[1]REAL IMAE(M)'!BN157=\"\",\"\",'[1]REAL IMAE(M)'!BN157)","v":"n.d."},{"$f":"IF('[1]REAL IMAE(M)'!BO157=\"\",\"\",'[1]REAL IMAE(M)'!BO157)","v":"n.d."},{"$f":"IF('[1]EXT RIN(M)'!$K157=\"\",\"\",'[1]EXT RIN(M)'!$K157)","v":8031.5617016391616},"",{"$f":"IF('[1]EXT RIN(M)'!$L157=\"\",\"\",'[1]EXT RIN(M)'!$L157)","v":8031.5617016391616},"",{"$f":"IF('[1]MONE(M)CARD'!EG157=\"\",\"\",'[1]MONE(M)CARD'!EG157)","v":8516.1143933098247},{"$f":"IF('[1]MONE(M)CARD'!EK157=\"\",\"\",'[1]MONE(M)CARD'!EK157)","v":18554.494723898231},{"$f":"IF('[1]MONE(M)CARD'!EP157=\"\",\"\",'[1]MONE(M)CARD'!EP157)","v":6869.6534825405251},{"$f":"IF('[1]MONE(M)CARD'!ES157=\"\",\"\",'[1]MONE(M)CARD'!ES157)","v":"n.d."},{"$f":"IF('[1]MONE(M)CARD'!EV157=\"\",\"\",'[1]MONE(M)CARD'!EV157)","v":"n.d."},{"$f":"IF('[1]MONE(M)CARD'!EZ157=\"\",\"\",'[1]MONE(M)CARD'!EZ157)","v":"n.d."},{"$f":"IF('[1]MONE(M)CAPARD'!FC157=\"\",\"\",'[1]MONE(M)CAPARD'!FC157)","v":8516.1143933098247},{"$f":"IF('[1]MONE(M)CAPARD'!FG157=\"\",\"\",'[1]MONE(M)CAPARD'!FG157)","v":18554.494723898231},{"$f":"IF('[1]MONE(M)CAPARD'!FL157=\"\",\"\",'[1]MONE(M)CAPARD'!FL157)","v":6869.6534825405251},{"$f":"IF('[1]MONE(M)CAPARD'!FO157=\"\",\"\",'[1]MONE(M)CAPARD'!FO157)","v":"n.d."},{"$f":"IF('[1]MONE(M)CAPARD'!FR157=\"\",\"\",'[1]MONE(M)CAPARD'!FR157)","v":"n.d."},{"$f":"IF('[1]MONE(M)CAPARD'!FV157=\"\",\"\",'[1]MONE(M)CAPARD'!FV157)","v":"n.d."},{"$f":"IF('[1]MONE(M)CARD'!FV157=\"\",\"\",'[1]MONE(M)CARD'!FV157)","v":331.74770305264855},{"$f":"IF('[1]MONE(M)CARD'!GD157=\"\",\"\",'[1]MONE(M)CARD'!GD157)","v":119.30014920112664},{"$f":"IF('[1]MONE(M)CARD'!GE157=\"\",\"\",'[1]MONE(M)CARD'!GE157)","v":3502.1299428059101},"n.d.",{"$f":"IF('[9]II.2.Balance OSD-Activos'!J15=\"\",\"\",'[9]II.2.Balance OSD-Activos'!J15)","v":180.45876454116967},{"$f":"IF('[9]II.2.Balance OSD-Activos'!N15=\"\",\"\",'[9]II.2.Balance OSD-Activos'!N15)","v":6.3848281878188109},{"$f":"IF('[9]II.2.Balance OSD-Activos'!R15=\"\",\"\",'[9]II.2.Balance OSD-Activos'!R15)","v":13104.994023651265},{"$f":"IF('[9]II.2.Balance OSD-Activos'!S15=\"\",\"\",'[9]II.2.Balance OSD-Activos'!S15)","v":11698.284309906647},13285.452788192435,24990.121926286898,"n.d.",null,"n.d.","n.d.","n.d.","n.d.","n.d.",{"$f":"IF('[1]MONE(M)CAPARD'!GS157=\"\",\"\",'[1]MONE(M)CAPARD'!GS157)","v":3256.559287082056},{"$f":"IF('[1]MONE(M)CARD'!HA157=\"\",\"\",'[1]MONE(M)CAPARD'!HA157)","v":3502.1299428059101},{"$f":"IF('[1]MONE(M)CAPARD'!HB157=\"\",\"\",'[1]MONE(M)CAPARD'!HB157)","v":-245.57065572385409},"n.d.",{"$f":"IF('[10]II.2.Balance OSD-Activos'!J15=\"\",\"\",'[10]II.2.Balance OSD-Activos'!J15)","v":180.45876454116967},{"$f":"IF('[10]II.2.Balance OSD-Activos'!N15=\"\",\"\",'[10]II.2.Balance OSD-Activos'!N15)","v":6.3848281878188109},{"$f":"IF('[10]II.2.Balance OSD-Activos'!R15=\"\",\"\",'[10]II.2.Balance OSD-Activos'!R15)","v":13104.994023651265},{"$f":"IF('[10]II.2.Balance OSD-Activos'!S15=\"\",\"\",'[10]II.2.Balance OSD-Activos'!S15)","v":11698.284309906647},13285.452788192435,24990.121926286898,"n.d.","n.d.","n.d.","n.d.","n.d.","n.d.","n.d.",{"$f":"IF('[1]MONE(M)CAPARD'!AS157=\"\",\"\",'[1]MONE(M)CAPARD'!AS157)","v":"n.d."},{"$f":"IF('[1]MONE(M)CAPARD'!AT157=\"\",\"\",'[1]MONE(M)CAPARD'!AT157)","v":"n.a."},{"$f":"IF('[1]MONE(M)CAPARD'!AU157=\"\",\"\",'[1]MONE(M)CAPARD'!AU157)","v":"n.d."},{"$f":"IF('[1]MONE(M)CAPARD'!AV157=\"\",\"\",'[1]MONE(M)CAPARD'!AV157)","v":"n.d."},{"$f":"IF('[1]MONE(M)CAPARD'!AW157=\"\",\"\",'[1]MONE(M)CAPARD'!AW157)","v":"n.a."},{"$f":"IF('[1]MONE(M)CAPARD'!AX157=\"\",\"\",'[1]MONE(M)CAPARD'!AX157)","v":"n.d."},{"$f":"IF('[1]MONE(M)CAPARD'!AY157=\"\",\"\",'[1]MONE(M)CAPARD'!AY157)","v":"n.a."},{"$f":"IF('[1]FISCAL(M)'!$K157=\"\",\"\",'[1]FISCAL(M)'!$K157)","v":-231.43086247671164},{"$f":"IF('[1]FISCAL(M)'!$L157=\"\",\"\",'[1]FISCAL(M)'!$L157)","v":-464.45235431971179},{"$f":"IF('[1]FISCAL(M)'!$AY157=\"\",\"\",'[1]FISCAL(M)'!$AY157)","v":"n.d."},{"$f":"IF('[1]FISCAL(M)'!$BI157=\"\",\"\",'[1]FISCAL(M)'!$BI157)","v":"n.d."},{"$f":"IF('[1]FISCAL(M)'!$BS157=\"\",\"\",'[1]FISCAL(M)'!$BS157)","v":"n.d."},{"$f":"IF('[1]FISCAL(M)'!$AZ157=\"\",\"\",'[1]FISCAL(M)'!$AZ157)","v":"n.d."},{"$f":"IF('[1]FISCAL(M)'!$BJ157=\"\",\"\",'[1]FISCAL(M)'!$BJ157)","v":"n.d."},{"$f":"IF('[1]FISCAL(M)'!$BT157=\"\",\"\",'[1]FISCAL(M)'!$BT157)","v":"n.d."},{"$f":"IF('[2]MONE(M)'!$AO157=\"\",\"\",'[2]MONE(M)'!$AO157)","v":1624659.0883578556},{"$f":"IF('[3]MONE(M)'!$AO157=\"\",\"\",'[3]MONE(M)'!$AO157)","v":5737.4057428571432},{"$f":"IF('[4]MONE(M)'!$AO157=\"\",\"\",'[4]MONE(M)'!$AO157)","v":35844.910562476973},{"$f":"+'[5]MONE(M)'!$AO157","v":42985.767731163287},{"$f":"IF('[6]MONE(M)'!$AO157=\"\",\"\",'[6]MONE(M)'!$AO157)","v":9786.5350100899996},{"$f":"IF('[7]MONE(M)'!$AO157=\"\",\"\",'[7]MONE(M)'!$AO157)","v":140390.03914000001},{"$f":"IF('[8]MONE(M)'!$AO157=\"\",\"\",'[8]MONE(M)'!$AO157)","v":0},"n.d.","n.d.","n.d.","n.d.","n.d.","n.d.","n.d.",{"$f":"IF('[1]FISCAL(M)'!$K157=\"\",\"\",'[1]FISCAL(M)'!$K157)","v":-231.43086247671164},{"$f":"+'[1]REAL(A)'!$AO$22","v":90015.237527740421},-0.25710187389706163,{"$f":"IF('[1]FISCAL(M)'!$L157=\"\",\"\",'[1]FISCAL(M)'!$L157)","v":-464.45235431971179},{"$f":"+'[1]REAL(A)'!$AP$22","v":"n.d."},"n.d.","n.d.",{"$f":"'[1]Gráfico REM'!BG151","v":7117.9962993215104},{"$f":"'[1]Gráfico REM'!BH151","v":26281.548735464028},{"$f":"'[1]Gráfico REM'!BI151","v":864.96060624905385},"n.d.","n.d.","n.d.","n.d.","n.d.","n.d.","n.d.","n.d.","n.d.","n.d.","n.d.","n.d."]
[2002,"mayo ","2002-mayo ",{"$f":"IF('[1]REAL IPC(M)'!$AL158=\"\",\"\",+'[1]REAL IPC(M)'!$AL158)","v":5.931769742542703},{"$f":"IF('[1]REAL IPC(M)'!$BE158=\"\",\"\",+'[1]REAL IPC(M)'!$BE158)","v":8.9625915556792002},{"$f":"IF('[1]REAL IPC(M)'!$AM158=\"\",\"\",+'[1]REAL IPC(M)'!$AM158)","v":5.4217272478544798},{"$f":"IF('[1]REAL IPC(M)'!$BI158=\"\",\"\",+'[1]REAL IPC(M)'!$BI158)","v":8.0899603551353607},{"$f":"IF('[1]REAL IMAE(M)'!BJ158=\"\",\"\",'[1]REAL IMAE(M)'!BJ158)","v":"n.d."},{"$f":"IF('[1]REAL IMAE(M)'!BK158=\"\",\"\",'[1]REAL IMAE(M)'!BK158)","v":"n.d."},{"$f":"IF('[1]REAL IMAE(M)'!BN158=\"\",\"\",'[1]REAL IMAE(M)'!BN158)","v":"n.d."},{"$f":"IF('[1]REAL IMAE(M)'!BO158=\"\",\"\",'[1]REAL IMAE(M)'!BO158)","v":"n.d."},{"$f":"IF('[1]EXT RIN(M)'!$K158=\"\",\"\",'[1]EXT RIN(M)'!$K158)","v":7688.4760407747617},"",{"$f":"IF('[1]EXT RIN(M)'!$L158=\"\",\"\",'[1]EXT RIN(M)'!$L158)","v":7688.4760407747617},"",{"$f":"IF('[1]MONE(M)CARD'!EG158=\"\",\"\",'[1]MONE(M)CARD'!EG158)","v":8214.7804938156933},{"$f":"IF('[1]MONE(M)CARD'!EK158=\"\",\"\",'[1]MONE(M)CARD'!EK158)","v":18551.443117602379},{"$f":"IF('[1]MONE(M)CARD'!EP158=\"\",\"\",'[1]MONE(M)CARD'!EP158)","v":6984.2067227394946},{"$f":"IF('[1]MONE(M)CARD'!ES158=\"\",\"\",'[1]MONE(M)CARD'!ES158)","v":"n.d."},{"$f":"IF('[1]MONE(M)CARD'!EV158=\"\",\"\",'[1]MONE(M)CARD'!EV158)","v":"n.d."},{"$f":"IF('[1]MONE(M)CARD'!EZ158=\"\",\"\",'[1]MONE(M)CARD'!EZ158)","v":"n.d."},{"$f":"IF('[1]MONE(M)CAPARD'!FC158=\"\",\"\",'[1]MONE(M)CAPARD'!FC158)","v":8214.7804938156933},{"$f":"IF('[1]MONE(M)CAPARD'!FG158=\"\",\"\",'[1]MONE(M)CAPARD'!FG158)","v":18551.443117602379},{"$f":"IF('[1]MONE(M)CAPARD'!FL158=\"\",\"\",'[1]MONE(M)CAPARD'!FL158)","v":6984.2067227394946},{"$f":"IF('[1]MONE(M)CAPARD'!FO158=\"\",\"\",'[1]MONE(M)CAPARD'!FO158)","v":"n.d."},{"$f":"IF('[1]MONE(M)CAPARD'!FR158=\"\",\"\",'[1]MONE(M)CAPARD'!FR158)","v":"n.d."},{"$f":"IF('[1]MONE(M)CAPARD'!FV158=\"\",\"\",'[1]MONE(M)CAPARD'!FV158)","v":"n.d."},{"$f":"IF('[1]MONE(M)CARD'!FV158=\"\",\"\",'[1]MONE(M)CARD'!FV158)","v":329.9293986952182},{"$f":"IF('[1]MONE(M)CARD'!GD158=\"\",\"\",'[1]MONE(M)CARD'!GD158)","v":80.201275881980692},{"$f":"IF('[1]MONE(M)CARD'!GE158=\"\",\"\",'[1]MONE(M)CARD'!GE158)","v":3351.3496909541886},"n.d.",{"$f":"IF('[9]II.2.Balance OSD-Activos'!J16=\"\",\"\",'[9]II.2.Balance OSD-Activos'!J16)","v":153.37045555711671},{"$f":"IF('[9]II.2.Balance OSD-Activos'!N16=\"\",\"\",'[9]II.2.Balance OSD-Activos'!N16)","v":7.9958367062067337},{"$f":"IF('[9]II.2.Balance OSD-Activos'!R16=\"\",\"\",'[9]II.2.Balance OSD-Activos'!R16)","v":13228.159455785546},{"$f":"IF('[9]II.2.Balance OSD-Activos'!S16=\"\",\"\",'[9]II.2.Balance OSD-Activos'!S16)","v":11680.803748584023},13381.529911342663,25070.32949663289,"n.d.",null,"n.d.","n.d.","n.d.","n.d.","n.d.",{"$f":"IF('[1]MONE(M)CAPARD'!GS158=\"\",\"\",'[1]MONE(M)CAPARD'!GS158)","v":3139.2361184851939},{"$f":"IF('[1]MONE(M)CARD'!HA158=\"\",\"\",'[1]MONE(M)CAPARD'!HA158)","v":3351.3496909541886},{"$f":"IF('[1]MONE(M)CAPARD'!HB158=\"\",\"\",'[1]MONE(M)CAPARD'!HB158)","v":-212.11357246899479},"n.d.",{"$f":"IF('[10]II.2.Balance OSD-Activos'!J16=\"\",\"\",'[10]II.2.Balance OSD-Activos'!J16)","v":153.37045555711671},{"$f":"IF('[10]II.2.Balance OSD-Activos'!N16=\"\",\"\",'[10]II.2.Balance OSD-Activos'!N16)","v":7.9958367062067337},{"$f":"IF('[10]II.2.Balance OSD-Activos'!R16=\"\",\"\",'[10]II.2.Balance OSD-Activos'!R16)","v":13228.159455785546},{"$f":"IF('[10]II.2.Balance OSD-Activos'!S16=\"\",\"\",'[10]II.2.Balance OSD-Activos'!S16)","v":11680.803748584023},13381.529911342663,25070.32949663289,"n.d.","n.d.","n.d.","n.d.","n.d.","n.d.","n.d.",{"$f":"IF('[1]MONE(M)CAPARD'!AS158=\"\",\"\",'[1]MONE(M)CAPARD'!AS158)","v":"n.d."},{"$f":"IF('[1]MONE(M)CAPARD'!AT158=\"\",\"\",'[1]MONE(M)CAPARD'!AT158)","v":"n.a."},{"$f":"IF('[1]MONE(M)CAPARD'!AU158=\"\",\"\",'[1]MONE(M)CAPARD'!AU158)","v":"n.d."},{"$f":"IF('[1]MONE(M)CAPARD'!AV158=\"\",\"\",'[1]MONE(M)CAPARD'!AV158)","v":"n.d."},{"$f":"IF('[1]MONE(M)CAPARD'!AW158=\"\",\"\",'[1]MONE(M)CAPARD'!AW158)","v":"n.a."},{"$f":"IF('[1]MONE(M)CAPARD'!AX158=\"\",\"\",'[1]MONE(M)CAPARD'!AX158)","v":"n.d."},{"$f":"IF('[1]MONE(M)CAPARD'!AY158=\"\",\"\",'[1]MONE(M)CAPARD'!AY158)","v":"n.a."},{"$f":"IF('[1]FISCAL(M)'!$K158=\"\",\"\",'[1]FISCAL(M)'!$K158)","v":-262.971412665331},{"$f":"IF('[1]FISCAL(M)'!$L158=\"\",\"\",'[1]FISCAL(M)'!$L158)","v":-554.64970911233081},{"$f":"IF('[1]FISCAL(M)'!$AY158=\"\",\"\",'[1]FISCAL(M)'!$AY158)","v":"n.d."},{"$f":"IF('[1]FISCAL(M)'!$BI158=\"\",\"\",'[1]FISCAL(M)'!$BI158)","v":"n.d."},{"$f":"IF('[1]FISCAL(M)'!$BS158=\"\",\"\",'[1]FISCAL(M)'!$BS158)","v":"n.d."},{"$f":"IF('[1]FISCAL(M)'!$AZ158=\"\",\"\",'[1]FISCAL(M)'!$AZ158)","v":"n.d."},{"$f":"IF('[1]FISCAL(M)'!$BJ158=\"\",\"\",'[1]FISCAL(M)'!$BJ158)","v":"n.d."},{"$f":"IF('[1]FISCAL(M)'!$BT158=\"\",\"\",'[1]FISCAL(M)'!$BT158)","v":"n.d."},{"$f":"IF('[2]MONE(M)'!$AO158=\"\",\"\",'[2]MONE(M)'!$AO158)","v":1654548.1975979139},{"$f":"IF('[3]MONE(M)'!$AO158=\"\",\"\",'[3]MONE(M)'!$AO158)","v":5752.3697428571431},{"$f":"IF('[4]MONE(M)'!$AO158=\"\",\"\",'[4]MONE(M)'!$AO158)","v":35836.640044445288},{"$f":"+'[5]MONE(M)'!$AO158","v":42658.406941517125},{"$f":"IF('[6]MONE(M)'!$AO158=\"\",\"\",'[6]MONE(M)'!$AO158)","v":10037.0502098},{"$f":"IF('[7]MONE(M)'!$AO158=\"\",\"\",'[7]MONE(M)'!$AO158)","v":141147.08231700002},{"$f":"IF('[8]MONE(M)'!$AO158=\"\",\"\",'[8]MONE(M)'!$AO158)","v":0},"n.d.","n.d.","n.d.","n.d.","n.d.","n.d.","n.d.",{"$f":"IF('[1]FISCAL(M)'!$K158=\"\",\"\",'[1]FISCAL(M)'!$K158)","v":-262.971412665331},{"$f":"+'[1]REAL(A)'!$AO$22","v":90015.237527740421},-0.2921409973331347,{"$f":"IF('[1]FISCAL(M)'!$L158=\"\",\"\",'[1]FISCAL(M)'!$L158)","v":-554.64970911233081},{"$f":"+'[1]REAL(A)'!$AP$22","v":"n.d."},"n.d.","n.d.",{"$f":"'[1]Gráfico REM'!BG152","v":6831.9531436227853},{"$f":"'[1]Gráfico REM'!BH152","v":26327.183434161783},{"$f":"'[1]Gráfico REM'!BI152","v":940.31645552878763},"n.d.","n.d.","n.d.","n.d.","n.d.","n.d.","n.d.","n.d.","n.d.","n.d.","n.d.","n.d."]
[2002,"junio ","2002-junio ",{"$f":"IF('[1]REAL IPC(M)'!$AL159=\"\",\"\",+'[1]REAL IPC(M)'!$AL159)","v":6.1820929605076458},{"$f":"IF('[1]REAL IPC(M)'!$BE159=\"\",\"\",+'[1]REAL IPC(M)'!$BE159)","v":9.1435075113060584},{"$f":"IF('[1]REAL IPC(M)'!$AM159=\"\",\"\",+'[1]REAL IPC(M)'!$AM159)","v":5.7225032409535359},{"$f":"IF('[1]REAL IPC(M)'!$BI159=\"\",\"\",+'[1]REAL IPC(M)'!$BI159)","v":8.2562031087177736},{"$f":"IF('[1]REAL IMAE(M)'!BJ159=\"\",\"\",'[1]REAL IMAE(M)'!BJ159)","v":"n.d."},{"$f":"IF('[1]REAL IMAE(M)'!BK159=\"\",\"\",'[1]REAL IMAE(M)'!BK159)","v":"n.d."},{"$f":"IF('[1]REAL IMAE(M)'!BN159=\"\",\"\",'[1]REAL IMAE(M)'!BN159)","v":"n.d."},{"$f":"IF('[1]REAL IMAE(M)'!BO159=\"\",\"\",'[1]REAL IMAE(M)'!BO159)","v":"n.d."},{"$f":"IF('[1]EXT RIN(M)'!$K159=\"\",\"\",'[1]EXT RIN(M)'!$K159)","v":7693.1354164281493},"",{"$f":"IF('[1]EXT RIN(M)'!$L159=\"\",\"\",'[1]EXT RIN(M)'!$L159)","v":7693.1354164281493},"",{"$f":"IF('[1]MONE(M)CARD'!EG159=\"\",\"\",'[1]MONE(M)CARD'!EG159)","v":8089.3183486423704},{"$f":"IF('[1]MONE(M)CARD'!EK159=\"\",\"\",'[1]MONE(M)CARD'!EK159)","v":18754.981845164632},{"$f":"IF('[1]MONE(M)CARD'!EP159=\"\",\"\",'[1]MONE(M)CARD'!EP159)","v":6983.9072551487261},{"$f":"IF('[1]MONE(M)CARD'!ES159=\"\",\"\",'[1]MONE(M)CARD'!ES159)","v":"n.d."},{"$f":"IF('[1]MONE(M)CARD'!EV159=\"\",\"\",'[1]MONE(M)CARD'!EV159)","v":"n.d."},{"$f":"IF('[1]MONE(M)CARD'!EZ159=\"\",\"\",'[1]MONE(M)CARD'!EZ159)","v":"n.d."},{"$f":"IF('[1]MONE(M)CAPARD'!FC159=\"\",\"\",'[1]MONE(M)CAPARD'!FC159)","v":8089.3183486423704},{"$f":"IF('[1]MONE(M)CAPARD'!FG159=\"\",\"\",'[1]MONE(M)CAPARD'!FG159)","v":18754.981845164632},{"$f":"IF('[1]MONE(M)CAPARD'!FL159=\"\",\"\",'[1]MONE(M)CAPARD'!FL159)","v":6983.9072551487261},{"$f":"IF('[1]MONE(M)CAPARD'!FO159=\"\",\"\",'[1]MONE(M)CAPARD'!FO159)","v":"n.d."},{"$f":"IF('[1]MONE(M)CAPARD'!FR159=\"\",\"\",'[1]MONE(M)CAPARD'!FR159)","v":"n.d."},{"$f":"IF('[1]MONE(M)CAPARD'!FV159=\"\",\"\",'[1]MONE(M)CAPARD'!FV159)","v":"n.d."},{"$f":"IF('[1]MONE(M)CARD'!FV159=\"\",\"\",'[1]MONE(M)CARD'!FV159)","v":352.22371538043973},{"$f":"IF('[1]MONE(M)CARD'!GD159=\"\",\"\",'[1]MONE(M)CARD'!GD159)","v":81.033931308438298},{"$f":"IF('[1]MONE(M)CARD'!GE159=\"\",\"\",'[1]MONE(M)CARD'!GE159)","v":3227.1587050958192},"n.d.",{"$f":"IF('[9]II.2.Balance OSD-Activos'!J17=\"\",\"\",'[9]II.2.Balance OSD-Activos'!J17)","v":151.8308567906135},{"$f":"IF('[9]II.2.Balance OSD-Activos'!N17=\"\",\"\",'[9]II.2.Balance OSD-Activos'!N17)","v":0.55576563162079007},{"$f":"IF('[9]II.2.Balance OSD-Activos'!R17=\"\",\"\",'[9]II.2.Balance OSD-Activos'!R17)","v":13366.133589678955},{"$f":"IF('[9]II.2.Balance OSD-Activos'!S17=\"\",\"\",'[9]II.2.Balance OSD-Activos'!S17)","v":11811.84453540574},13517.964446469568,25330.36474750693,"n.d.",null,"n.d.","n.d.","n.d.","n.d.","n.d.",{"$f":"IF('[1]MONE(M)CAPARD'!GS159=\"\",\"\",'[1]MONE(M)CAPARD'!GS159)","v":3224.3036896608114},{"$f":"IF('[1]MONE(M)CARD'!HA159=\"\",\"\",'[1]MONE(M)CAPARD'!HA159)","v":3227.1587050958192},{"$f":"IF('[1]MONE(M)CAPARD'!HB159=\"\",\"\",'[1]MONE(M)CAPARD'!HB159)","v":-2.8550154350077719},"n.d.",{"$f":"IF('[10]II.2.Balance OSD-Activos'!J17=\"\",\"\",'[10]II.2.Balance OSD-Activos'!J17)","v":151.8308567906135},{"$f":"IF('[10]II.2.Balance OSD-Activos'!N17=\"\",\"\",'[10]II.2.Balance OSD-Activos'!N17)","v":0.55576563162079007},{"$f":"IF('[10]II.2.Balance OSD-Activos'!R17=\"\",\"\",'[10]II.2.Balance OSD-Activos'!R17)","v":13366.133589678955},{"$f":"IF('[10]II.2.Balance OSD-Activos'!S17=\"\",\"\",'[10]II.2.Balance OSD-Activos'!S17)","v":11811.84453540574},13517.964446469568,25330.36474750693,"n.d.","n.d.","n.d.","n.d.","n.d.","n.d.","n.d.",{"$f":"IF('[1]MONE(M)CAPARD'!AS159=\"\",\"\",'[1]MONE(M)CAPARD'!AS159)","v":"n.d."},{"$f":"IF('[1]MONE(M)CAPARD'!AT159=\"\",\"\",'[1]MONE(M)CAPARD'!AT159)","v":"n.a."},{"$f":"IF('[1]MONE(M)CAPARD'!AU159=\"\",\"\",'[1]MONE(M)CAPARD'!AU159)","v":"n.d."},{"$f":"IF('[1]MONE(M)CAPARD'!AV159=\"\",\"\",'[1]MONE(M)CAPARD'!AV159)","v":"n.d."},{"$f":"IF('[1]MONE(M)CAPARD'!AW159=\"\",\"\",'[1]MONE(M)CAPARD'!AW159)","v":"n.a."},{"$f":"IF('[1]MONE(M)CAPARD'!AX159=\"\",\"\",'[1]MONE(M)CAPARD'!AX159)","v":"n.d."},{"$f":"IF('[1]MONE(M)CAPARD'!AY159=\"\",\"\",'[1]MONE(M)CAPARD'!AY159)","v":"n.a."},{"$f":"IF('[1]FISCAL(M)'!$K159=\"\",\"\",'[1]FISCAL(M)'!$K159)","v":-502.91161332883735},{"$f":"IF('[1]FISCAL(M)'!$L159=\"\",\"\",'[1]FISCAL(M)'!$L159)","v":-715.02644628083726},{"$f":"IF('[1]FISCAL(M)'!$AY159=\"\",\"\",'[1]FISCAL(M)'!$AY159)","v":"n.d."},{"$f":"IF('[1]FISCAL(M)'!$BI159=\"\",\"\",'[1]FISCAL(M)'!$BI159)","v":"n.d."},{"$f":"IF('[1]FISCAL(M)'!$BS159=\"\",\"\",'[1]FISCAL(M)'!$BS159)","v":"n.d."},{"$f":"IF('[1]FISCAL(M)'!$AZ159=\"\",\"\",'[1]FISCAL(M)'!$AZ159)","v":"n.d."},{"$f":"IF('[1]FISCAL(M)'!$BJ159=\"\",\"\",'[1]FISCAL(M)'!$BJ159)","v":"n.d."},{"$f":"IF('[1]FISCAL(M)'!$BT159=\"\",\"\",'[1]FISCAL(M)'!$BT159)","v":"n.d."},{"$f":"IF('[2]MONE(M)'!$AO159=\"\",\"\",'[2]MONE(M)'!$AO159)","v":1699922.5302329597},{"$f":"IF('[3]MONE(M)'!$AO159=\"\",\"\",'[3]MONE(M)'!$AO159)","v":5783.6187428571429},{"$f":"IF('[4]MONE(M)'!$AO159=\"\",\"\",'[4]MONE(M)'!$AO159)","v":36447.315969735559},{"$f":"+'[5]MONE(M)'!$AO159","v":42336.07979756844},{"$f":"IF('[6]MONE(M)'!$AO159=\"\",\"\",'[6]MONE(M)'!$AO159)","v":9958.3758454300005},{"$f":"IF('[7]MONE(M)'!$AO159=\"\",\"\",'[7]MONE(M)'!$AO159)","v":146163.84596999999},{"$f":"IF('[8]MONE(M)'!$AO159=\"\",\"\",'[8]MONE(M)'!$AO159)","v":0},"n.d.","n.d.","n.d.","n.d.","n.d.","n.d.","n.d.",{"$f":"IF('[1]FISCAL(M)'!$K159=\"\",\"\",'[1]FISCAL(M)'!$K159)","v":-502.91161332883735},{"$f":"+'[1]REAL(A)'!$AO$22","v":90015.237527740421},-0.5586960909522154,{"$f":"IF('[1]FISCAL(M)'!$L159=\"\",\"\",'[1]FISCAL(M)'!$L159)","v":-715.02644628083726},{"$f":"+'[1]REAL(A)'!$AP$22","v":"n.d."},"n.d.","n.d.",{"$f":"'[1]Gráfico REM'!BG153","v":6966.9896721287078},{"$f":"'[1]Gráfico REM'!BH153","v":26726.342443288126},{"$f":"'[1]Gráfico REM'!BI153","v":935.28727544792184},"n.d.","n.d.","n.d.","n.d.","n.d.","n.d.","n.d.","n.d.","n.d.","n.d.","n.d.","n.d."]
[2002,"julio","2002-julio",{"$f":"IF('[1]REAL IPC(M)'!$AL160=\"\",\"\",+'[1]REAL IPC(M)'!$AL160)","v":6.5510597637518098},{"$f":"IF('[1]REAL IPC(M)'!$BE160=\"\",\"\",+'[1]REAL IPC(M)'!$BE160)","v":9.3321701105828936},{"$f":"IF('[1]REAL IPC(M)'!$AM160=\"\",\"\",+'[1]REAL IPC(M)'!$AM160)","v":6.0652739582783388},{"$f":"IF('[1]REAL IPC(M)'!$BI160=\"\",\"\",+'[1]REAL IPC(M)'!$BI160)","v":8.4307443900346168},{"$f":"IF('[1]REAL IMAE(M)'!BJ160=\"\",\"\",'[1]REAL IMAE(M)'!BJ160)","v":"n.d."},{"$f":"IF('[1]REAL IMAE(M)'!BK160=\"\",\"\",'[1]REAL IMAE(M)'!BK160)","v":"n.d."},{"$f":"IF('[1]REAL IMAE(M)'!BN160=\"\",\"\",'[1]REAL IMAE(M)'!BN160)","v":"n.d."},{"$f":"IF('[1]REAL IMAE(M)'!BO160=\"\",\"\",'[1]REAL IMAE(M)'!BO160)","v":"n.d."},{"$f":"IF('[1]EXT RIN(M)'!$K160=\"\",\"\",'[1]EXT RIN(M)'!$K160)","v":7554.0963995284937},"",{"$f":"IF('[1]EXT RIN(M)'!$L160=\"\",\"\",'[1]EXT RIN(M)'!$L160)","v":7554.0963995284937},"",{"$f":"IF('[1]MONE(M)CARD'!EG160=\"\",\"\",'[1]MONE(M)CARD'!EG160)","v":8213.6987112449315},{"$f":"IF('[1]MONE(M)CARD'!EK160=\"\",\"\",'[1]MONE(M)CARD'!EK160)","v":18798.375045912177},{"$f":"IF('[1]MONE(M)CARD'!EP160=\"\",\"\",'[1]MONE(M)CARD'!EP160)","v":7026.105459392973},{"$f":"IF('[1]MONE(M)CARD'!ES160=\"\",\"\",'[1]MONE(M)CARD'!ES160)","v":"n.d."},{"$f":"IF('[1]MONE(M)CARD'!EV160=\"\",\"\",'[1]MONE(M)CARD'!EV160)","v":"n.d."},{"$f":"IF('[1]MONE(M)CARD'!EZ160=\"\",\"\",'[1]MONE(M)CARD'!EZ160)","v":"n.d."},{"$f":"IF('[1]MONE(M)CAPARD'!FC160=\"\",\"\",'[1]MONE(M)CAPARD'!FC160)","v":8213.6987112449315},{"$f":"IF('[1]MONE(M)CAPARD'!FG160=\"\",\"\",'[1]MONE(M)CAPARD'!FG160)","v":18798.375045912177},{"$f":"IF('[1]MONE(M)CAPARD'!FL160=\"\",\"\",'[1]MONE(M)CAPARD'!FL160)","v":7026.105459392973},{"$f":"IF('[1]MONE(M)CAPARD'!FO160=\"\",\"\",'[1]MONE(M)CAPARD'!FO160)","v":"n.d."},{"$f":"IF('[1]MONE(M)CAPARD'!FR160=\"\",\"\",'[1]MONE(M)CAPARD'!FR160)","v":"n.d."},{"$f":"IF('[1]MONE(M)CAPARD'!FV160=\"\",\"\",'[1]MONE(M)CAPARD'!FV160)","v":"n.d."},{"$f":"IF('[1]MONE(M)CARD'!FV160=\"\",\"\",'[1]MONE(M)CARD'!FV160)","v":361.82841885828816},{"$f":"IF('[1]MONE(M)CARD'!GD160=\"\",\"\",'[1]MONE(M)CARD'!GD160)","v":77.157093859251631},{"$f":"IF('[1]MONE(M)CARD'!GE160=\"\",\"\",'[1]MONE(M)CARD'!GE160)","v":3346.7180899456162},"n.d.",{"$f":"IF('[9]II.2.Balance OSD-Activos'!J18=\"\",\"\",'[9]II.2.Balance OSD-Activos'!J18)","v":165.47760884662264},{"$f":"IF('[9]II.2.Balance OSD-Activos'!N18=\"\",\"\",'[9]II.2.Balance OSD-Activos'!N18)","v":2.2622932325118992},{"$f":"IF('[9]II.2.Balance OSD-Activos'!R18=\"\",\"\",'[9]II.2.Balance OSD-Activos'!R18)","v":13204.333818896452},{"$f":"IF('[9]II.2.Balance OSD-Activos'!S18=\"\",\"\",'[9]II.2.Balance OSD-Activos'!S18)","v":12049.993947973171},13369.811427743074,25422.067668948759,"n.d.",null,"n.d.","n.d.","n.d.","n.d.","n.d.",{"$f":"IF('[1]MONE(M)CAPARD'!GS160=\"\",\"\",'[1]MONE(M)CAPARD'!GS160)","v":3241.1807313161175},{"$f":"IF('[1]MONE(M)CARD'!HA160=\"\",\"\",'[1]MONE(M)CAPARD'!HA160)","v":3346.7180899456162},{"$f":"IF('[1]MONE(M)CAPARD'!HB160=\"\",\"\",'[1]MONE(M)CAPARD'!HB160)","v":-105.53735862949861},"n.d.",{"$f":"IF('[10]II.2.Balance OSD-Activos'!J18=\"\",\"\",'[10]II.2.Balance OSD-Activos'!J18)","v":165.47760884662264},{"$f":"IF('[10]II.2.Balance OSD-Activos'!N18=\"\",\"\",'[10]II.2.Balance OSD-Activos'!N18)","v":2.2622932325118992},{"$f":"IF('[10]II.2.Balance OSD-Activos'!R18=\"\",\"\",'[10]II.2.Balance OSD-Activos'!R18)","v":13204.333818896452},{"$f":"IF('[10]II.2.Balance OSD-Activos'!S18=\"\",\"\",'[10]II.2.Balance OSD-Activos'!S18)","v":12049.993947973171},13369.811427743074,25422.067668948759,"n.d.","n.d.","n.d.","n.d.","n.d.","n.d.","n.d.",{"$f":"IF('[1]MONE(M)CAPARD'!AS160=\"\",\"\",'[1]MONE(M)CAPARD'!AS160)","v":"n.d."},{"$f":"IF('[1]MONE(M)CAPARD'!AT160=\"\",\"\",'[1]MONE(M)CAPARD'!AT160)","v":"n.a."},{"$f":"IF('[1]MONE(M)CAPARD'!AU160=\"\",\"\",'[1]MONE(M)CAPARD'!AU160)","v":"n.d."},{"$f":"IF('[1]MONE(M)CAPARD'!AV160=\"\",\"\",'[1]MONE(M)CAPARD'!AV160)","v":"n.d."},{"$f":"IF('[1]MONE(M)CAPARD'!AW160=\"\",\"\",'[1]MONE(M)CAPARD'!AW160)","v":"n.a."},{"$f":"IF('[1]MONE(M)CAPARD'!AX160=\"\",\"\",'[1]MONE(M)CAPARD'!AX160)","v":"n.d."},{"$f":"IF('[1]MONE(M)CAPARD'!AY160=\"\",\"\",'[1]MONE(M)CAPARD'!AY160)","v":"n.a."},{"$f":"IF('[1]FISCAL(M)'!$K160=\"\",\"\",'[1]FISCAL(M)'!$K160)","v":-654.36573121956781},{"$f":"IF('[1]FISCAL(M)'!$L160=\"\",\"\",'[1]FISCAL(M)'!$L160)","v":-800.27436618656793},{"$f":"IF('[1]FISCAL(M)'!$AY160=\"\",\"\",'[1]FISCAL(M)'!$AY160)","v":"n.d."},{"$f":"IF('[1]FISCAL(M)'!$BI160=\"\",\"\",'[1]FISCAL(M)'!$BI160)","v":"n.d."},{"$f":"IF('[1]FISCAL(M)'!$BS160=\"\",\"\",'[1]FISCAL(M)'!$BS160)","v":"n.d."},{"$f":"IF('[1]FISCAL(M)'!$AZ160=\"\",\"\",'[1]FISCAL(M)'!$AZ160)","v":"n.d."},{"$f":"IF('[1]FISCAL(M)'!$BJ160=\"\",\"\",'[1]FISCAL(M)'!$BJ160)","v":"n.d."},{"$f":"IF('[1]FISCAL(M)'!$BT160=\"\",\"\",'[1]FISCAL(M)'!$BT160)","v":"n.d."},{"$f":"IF('[2]MONE(M)'!$AO160=\"\",\"\",'[2]MONE(M)'!$AO160)","v":1716024.834583095},{"$f":"IF('[3]MONE(M)'!$AO160=\"\",\"\",'[3]MONE(M)'!$AO160)","v":5785.3647428571421},{"$f":"IF('[4]MONE(M)'!$AO160=\"\",\"\",'[4]MONE(M)'!$AO160)","v":36453.343606806462},{"$f":"+'[5]MONE(M)'!$AO160","v":42822.981925366868},{"$f":"IF('[6]MONE(M)'!$AO160=\"\",\"\",'[6]MONE(M)'!$AO160)","v":10127.78694482},{"$f":"IF('[7]MONE(M)'!$AO160=\"\",\"\",'[7]MONE(M)'!$AO160)","v":145255.14780400001},{"$f":"IF('[8]MONE(M)'!$AO160=\"\",\"\",'[8]MONE(M)'!$AO160)","v":0},"n.d.","n.d.","n.d.","n.d.","n.d.","n.d.","n.d.",{"$f":"IF('[1]FISCAL(M)'!$K160=\"\",\"\",'[1]FISCAL(M)'!$K160)","v":-654.36573121956781},{"$f":"+'[1]REAL(A)'!$AO$22","v":90015.237527740421},-0.72694995779787708,{"$f":"IF('[1]FISCAL(M)'!$L160=\"\",\"\",'[1]FISCAL(M)'!$L160)","v":-800.27436618656793},{"$f":"+'[1]REAL(A)'!$AP$22","v":"n.d."},"n.d.","n.d.",{"$f":"'[1]Gráfico REM'!BG154","v":7187.3155139648352},{"$f":"'[1]Gráfico REM'!BH154","v":26776.949215050772},{"$f":"'[1]Gráfico REM'!BI154","v":927.73428689849777},"n.d.","n.d.","n.d.","n.d.","n.d.","n.d.","n.d.","n.d.","n.d.","n.d.","n.d.","n.d."]
[2002,"agosto","2002-agosto",{"$f":"IF('[1]REAL IPC(M)'!$AL161=\"\",\"\",+'[1]REAL IPC(M)'!$AL161)","v":6.0879219431280385},{"$f":"IF('[1]REAL IPC(M)'!$BE161=\"\",\"\",+'[1]REAL IPC(M)'!$BE161)","v":9.5278927984412185},{"$f":"IF('[1]REAL IPC(M)'!$AM161=\"\",\"\",+'[1]REAL IPC(M)'!$AM161)","v":5.6694374784061585},{"$f":"IF('[1]REAL IPC(M)'!$BI161=\"\",\"\",+'[1]REAL IPC(M)'!$BI161)","v":8.6129945323728982},{"$f":"IF('[1]REAL IMAE(M)'!BJ161=\"\",\"\",'[1]REAL IMAE(M)'!BJ161)","v":"n.d."},{"$f":"IF('[1]REAL IMAE(M)'!BK161=\"\",\"\",'[1]REAL IMAE(M)'!BK161)","v":"n.d."},{"$f":"IF('[1]REAL IMAE(M)'!BN161=\"\",\"\",'[1]REAL IMAE(M)'!BN161)","v":"n.d."},{"$f":"IF('[1]REAL IMAE(M)'!BO161=\"\",\"\",'[1]REAL IMAE(M)'!BO161)","v":"n.d."},{"$f":"IF('[1]EXT RIN(M)'!$K161=\"\",\"\",'[1]EXT RIN(M)'!$K161)","v":7328.4886992093507},"",{"$f":"IF('[1]EXT RIN(M)'!$L161=\"\",\"\",'[1]EXT RIN(M)'!$L161)","v":7328.4886992093507},"",{"$f":"IF('[1]MONE(M)CARD'!EG161=\"\",\"\",'[1]MONE(M)CARD'!EG161)","v":8183.8230605688141},{"$f":"IF('[1]MONE(M)CARD'!EK161=\"\",\"\",'[1]MONE(M)CARD'!EK161)","v":18701.181993729129},{"$f":"IF('[1]MONE(M)CARD'!EP161=\"\",\"\",'[1]MONE(M)CARD'!EP161)","v":7111.2666703399955},{"$f":"IF('[1]MONE(M)CARD'!ES161=\"\",\"\",'[1]MONE(M)CARD'!ES161)","v":"n.d."},{"$f":"IF('[1]MONE(M)CARD'!EV161=\"\",\"\",'[1]MONE(M)CARD'!EV161)","v":"n.d."},{"$f":"IF('[1]MONE(M)CARD'!EZ161=\"\",\"\",'[1]MONE(M)CARD'!EZ161)","v":"n.d."},{"$f":"IF('[1]MONE(M)CAPARD'!FC161=\"\",\"\",'[1]MONE(M)CAPARD'!FC161)","v":8183.8230605688141},{"$f":"IF('[1]MONE(M)CAPARD'!FG161=\"\",\"\",'[1]MONE(M)CAPARD'!FG161)","v":18701.181993729129},{"$f":"IF('[1]MONE(M)CAPARD'!FL161=\"\",\"\",'[1]MONE(M)CAPARD'!FL161)","v":7111.2666703399955},{"$f":"IF('[1]MONE(M)CAPARD'!FO161=\"\",\"\",'[1]MONE(M)CAPARD'!FO161)","v":"n.d."},{"$f":"IF('[1]MONE(M)CAPARD'!FR161=\"\",\"\",'[1]MONE(M)CAPARD'!FR161)","v":"n.d."},{"$f":"IF('[1]MONE(M)CAPARD'!FV161=\"\",\"\",'[1]MONE(M)CAPARD'!FV161)","v":"n.d."},{"$f":"IF('[1]MONE(M)CARD'!FV161=\"\",\"\",'[1]MONE(M)CARD'!FV161)","v":345.93732095620572},{"$f":"IF('[1]MONE(M)CARD'!GD161=\"\",\"\",'[1]MONE(M)CARD'!GD161)","v":79.293502817963684},{"$f":"IF('[1]MONE(M)CARD'!GE161=\"\",\"\",'[1]MONE(M)CARD'!GE161)","v":3401.5752778375795},"n.d.",{"$f":"IF('[9]II.2.Balance OSD-Activos'!J19=\"\",\"\",'[9]II.2.Balance OSD-Activos'!J19)","v":162.81782687082563},{"$f":"IF('[9]II.2.Balance OSD-Activos'!N19=\"\",\"\",'[9]II.2.Balance OSD-Activos'!N19)","v":2.7074737783496641},{"$f":"IF('[9]II.2.Balance OSD-Activos'!R19=\"\",\"\",'[9]II.2.Balance OSD-Activos'!R19)","v":13228.737638204464},{"$f":"IF('[9]II.2.Balance OSD-Activos'!S19=\"\",\"\",'[9]II.2.Balance OSD-Activos'!S19)","v":12140.322261277055},13391.555465075289,25534.585200130692,"n.d.",null,"n.d.","n.d.","n.d.","n.d.","n.d.",{"$f":"IF('[1]MONE(M)CAPARD'!GS161=\"\",\"\",'[1]MONE(M)CAPARD'!GS161)","v":3152.4958869751431},{"$f":"IF('[1]MONE(M)CARD'!HA161=\"\",\"\",'[1]MONE(M)CAPARD'!HA161)","v":3401.5752778375795},{"$f":"IF('[1]MONE(M)CAPARD'!HB161=\"\",\"\",'[1]MONE(M)CAPARD'!HB161)","v":-249.07939086243641},"n.d.",{"$f":"IF('[10]II.2.Balance OSD-Activos'!J19=\"\",\"\",'[10]II.2.Balance OSD-Activos'!J19)","v":162.81782687082563},{"$f":"IF('[10]II.2.Balance OSD-Activos'!N19=\"\",\"\",'[10]II.2.Balance OSD-Activos'!N19)","v":2.7074737783496641},{"$f":"IF('[10]II.2.Balance OSD-Activos'!R19=\"\",\"\",'[10]II.2.Balance OSD-Activos'!R19)","v":13228.737638204464},{"$f":"IF('[10]II.2.Balance OSD-Activos'!S19=\"\",\"\",'[10]II.2.Balance OSD-Activos'!S19)","v":12140.322261277055},13391.555465075289,25534.585200130692,"n.d.","n.d.","n.d.","n.d.","n.d.","n.d.","n.d.",{"$f":"IF('[1]MONE(M)CAPARD'!AS161=\"\",\"\",'[1]MONE(M)CAPARD'!AS161)","v":"n.d."},{"$f":"IF('[1]MONE(M)CAPARD'!AT161=\"\",\"\",'[1]MONE(M)CAPARD'!AT161)","v":"n.a."},{"$f":"IF('[1]MONE(M)CAPARD'!AU161=\"\",\"\",'[1]MONE(M)CAPARD'!AU161)","v":"n.d."},{"$f":"IF('[1]MONE(M)CAPARD'!AV161=\"\",\"\",'[1]MONE(M)CAPARD'!AV161)","v":"n.d."},{"$f":"IF('[1]MONE(M)CAPARD'!AW161=\"\",\"\",'[1]MONE(M)CAPARD'!AW161)","v":"n.a."},{"$f":"IF('[1]MONE(M)CAPARD'!AX161=\"\",\"\",'[1]MONE(M)CAPARD'!AX161)","v":"n.d."},{"$f":"IF('[1]MONE(M)CAPARD'!AY161=\"\",\"\",'[1]MONE(M)CAPARD'!AY161)","v":"n.a."},{"$f":"IF('[1]FISCAL(M)'!$K161=\"\",\"\",'[1]FISCAL(M)'!$K161)","v":-908.82414488682809},{"$f":"IF('[1]FISCAL(M)'!$L161=\"\",\"\",'[1]FISCAL(M)'!$L161)","v":-1139.2381496838279},{"$f":"IF('[1]FISCAL(M)'!$AY161=\"\",\"\",'[1]FISCAL(M)'!$AY161)","v":"n.d."},{"$f":"IF('[1]FISCAL(M)'!$BI161=\"\",\"\",'[1]FISCAL(M)'!$BI161)","v":"n.d."},{"$f":"IF('[1]FISCAL(M)'!$BS161=\"\",\"\",'[1]FISCAL(M)'!$BS161)","v":"n.d."},{"$f":"IF('[1]FISCAL(M)'!$AZ161=\"\",\"\",'[1]FISCAL(M)'!$AZ161)","v":"n.d."},{"$f":"IF('[1]FISCAL(M)'!$BJ161=\"\",\"\",'[1]FISCAL(M)'!$BJ161)","v":"n.d."},{"$f":"IF('[1]FISCAL(M)'!$BT161=\"\",\"\",'[1]FISCAL(M)'!$BT161)","v":"n.d."},{"$f":"IF('[2]MONE(M)'!$AO161=\"\",\"\",'[2]MONE(M)'!$AO161)","v":1738334.0258143651},{"$f":"IF('[3]MONE(M)'!$AO161=\"\",\"\",'[3]MONE(M)'!$AO161)","v":5792.9357428571429},{"$f":"IF('[4]MONE(M)'!$AO161=\"\",\"\",'[4]MONE(M)'!$AO161)","v":36549.315806997824},{"$f":"+'[5]MONE(M)'!$AO161","v":43194.911477279595},{"$f":"IF('[6]MONE(M)'!$AO161=\"\",\"\",'[6]MONE(M)'!$AO161)","v":10543.21374413},{"$f":"IF('[7]MONE(M)'!$AO161=\"\",\"\",'[7]MONE(M)'!$AO161)","v":145371.19292},{"$f":"IF('[8]MONE(M)'!$AO161=\"\",\"\",'[8]MONE(M)'!$AO161)","v":0},"n.d.","n.d.","n.d.","n.d.","n.d.","n.d.","n.d.",{"$f":"IF('[1]FISCAL(M)'!$K161=\"\",\"\",'[1]FISCAL(M)'!$K161)","v":-908.82414488682809},{"$f":"+'[1]REAL(A)'!$AO$22","v":90015.237527740421},-1.0096336685294547,{"$f":"IF('[1]FISCAL(M)'!$L161=\"\",\"\",'[1]FISCAL(M)'!$L161)","v":-1139.2381496838279},{"$f":"+'[1]REAL(A)'!$AP$22","v":"n.d."},"n.d.","n.d.",{"$f":"'[1]Gráfico REM'!BG155","v":7175.3658003690625},{"$f":"'[1]Gráfico REM'!BH155","v":26861.041762878202},{"$f":"'[1]Gráfico REM'!BI155","v":939.70615140943983},"n.d.","n.d.","n.d.","n.d.","n.d.","n.d.","n.d.","n.d.","n.d.","n.d.","n.d.","n.d."]
[2002,"septiembre","2002-septiembre",{"$f":"IF('[1]REAL IPC(M)'!$AL162=\"\",\"\",+'[1]REAL IPC(M)'!$AL162)","v":5.9067814570123556},{"$f":"IF('[1]REAL IPC(M)'!$BE162=\"\",\"\",+'[1]REAL IPC(M)'!$BE162)","v":9.7298177953633047},{"$f":"IF('[1]REAL IPC(M)'!$AM162=\"\",\"\",+'[1]REAL IPC(M)'!$AM162)","v":5.4150584354354381},{"$f":"IF('[1]REAL IPC(M)'!$BI162=\"\",\"\",+'[1]REAL IPC(M)'!$BI162)","v":8.8021933092536244},{"$f":"IF('[1]REAL IMAE(M)'!BJ162=\"\",\"\",'[1]REAL IMAE(M)'!BJ162)","v":"n.d."},{"$f":"IF('[1]REAL IMAE(M)'!BK162=\"\",\"\",'[1]REAL IMAE(M)'!BK162)","v":"n.d."},{"$f":"IF('[1]REAL IMAE(M)'!BN162=\"\",\"\",'[1]REAL IMAE(M)'!BN162)","v":"n.d."},{"$f":"IF('[1]REAL IMAE(M)'!BO162=\"\",\"\",'[1]REAL IMAE(M)'!BO162)","v":"n.d."},{"$f":"IF('[1]EXT RIN(M)'!$K162=\"\",\"\",'[1]EXT RIN(M)'!$K162)","v":7176.8849209277223},"",{"$f":"IF('[1]EXT RIN(M)'!$L162=\"\",\"\",'[1]EXT RIN(M)'!$L162)","v":7176.8849209277223},"",{"$f":"IF('[1]MONE(M)CARD'!EG162=\"\",\"\",'[1]MONE(M)CARD'!EG162)","v":8025.4687922677676},{"$f":"IF('[1]MONE(M)CARD'!EK162=\"\",\"\",'[1]MONE(M)CARD'!EK162)","v":19014.265268427982},{"$f":"IF('[1]MONE(M)CARD'!EP162=\"\",\"\",'[1]MONE(M)CARD'!EP162)","v":7218.0721543145846},{"$f":"IF('[1]MONE(M)CARD'!ES162=\"\",\"\",'[1]MONE(M)CARD'!ES162)","v":"n.d."},{"$f":"IF('[1]MONE(M)CARD'!EV162=\"\",\"\",'[1]MONE(M)CARD'!EV162)","v":"n.d."},{"$f":"IF('[1]MONE(M)CARD'!EZ162=\"\",\"\",'[1]MONE(M)CARD'!EZ162)","v":"n.d."},{"$f":"IF('[1]MONE(M)CAPARD'!FC162=\"\",\"\",'[1]MONE(M)CAPARD'!FC162)","v":8025.4687922677676},{"$f":"IF('[1]MONE(M)CAPARD'!FG162=\"\",\"\",'[1]MONE(M)CAPARD'!FG162)","v":19014.265268427982},{"$f":"IF('[1]MONE(M)CAPARD'!FL162=\"\",\"\",'[1]MONE(M)CAPARD'!FL162)","v":7218.0721543145846},{"$f":"IF('[1]MONE(M)CAPARD'!FO162=\"\",\"\",'[1]MONE(M)CAPARD'!FO162)","v":"n.d."},{"$f":"IF('[1]MONE(M)CAPARD'!FR162=\"\",\"\",'[1]MONE(M)CAPARD'!FR162)","v":"n.d."},{"$f":"IF('[1]MONE(M)CAPARD'!FV162=\"\",\"\",'[1]MONE(M)CAPARD'!FV162)","v":"n.d."},{"$f":"IF('[1]MONE(M)CARD'!FV162=\"\",\"\",'[1]MONE(M)CARD'!FV162)","v":386.66312182207218},{"$f":"IF('[1]MONE(M)CARD'!GD162=\"\",\"\",'[1]MONE(M)CARD'!GD162)","v":90.971836932110733},{"$f":"IF('[1]MONE(M)CARD'!GE162=\"\",\"\",'[1]MONE(M)CARD'!GE162)","v":3438.9834989276428},"n.d.",{"$f":"IF('[9]II.2.Balance OSD-Activos'!J20=\"\",\"\",'[9]II.2.Balance OSD-Activos'!J20)","v":167.29718404586109},{"$f":"IF('[9]II.2.Balance OSD-Activos'!N20=\"\",\"\",'[9]II.2.Balance OSD-Activos'!N20)","v":13.278832686858843},{"$f":"IF('[9]II.2.Balance OSD-Activos'!R20=\"\",\"\",'[9]II.2.Balance OSD-Activos'!R20)","v":13242.613499195599},{"$f":"IF('[9]II.2.Balance OSD-Activos'!S20=\"\",\"\",'[9]II.2.Balance OSD-Activos'!S20)","v":12205.532249430369},13409.91068324146,25628.721765358689,"n.d.",null,"n.d.","n.d.","n.d.","n.d.","n.d.",{"$f":"IF('[1]MONE(M)CAPARD'!GS162=\"\",\"\",'[1]MONE(M)CAPARD'!GS162)","v":3255.7955916520491},{"$f":"IF('[1]MONE(M)CARD'!HA162=\"\",\"\",'[1]MONE(M)CAPARD'!HA162)","v":3438.9834989276428},{"$f":"IF('[1]MONE(M)CAPARD'!HB162=\"\",\"\",'[1]MONE(M)CAPARD'!HB162)","v":-183.18790727559372},"n.d.",{"$f":"IF('[10]II.2.Balance OSD-Activos'!J20=\"\",\"\",'[10]II.2.Balance OSD-Activos'!J20)","v":167.29718404586109},{"$f":"IF('[10]II.2.Balance OSD-Activos'!N20=\"\",\"\",'[10]II.2.Balance OSD-Activos'!N20)","v":13.278832686858843},{"$f":"IF('[10]II.2.Balance OSD-Activos'!R20=\"\",\"\",'[10]II.2.Balance OSD-Activos'!R20)","v":13242.613499195599},{"$f":"IF('[10]II.2.Balance OSD-Activos'!S20=\"\",\"\",'[10]II.2.Balance OSD-Activos'!S20)","v":12205.532249430369},13409.91068324146,25628.721765358689,"n.d.","n.d.","n.d.","n.d.","n.d.","n.d.","n.d.",{"$f":"IF('[1]MONE(M)CAPARD'!AS162=\"\",\"\",'[1]MONE(M)CAPARD'!AS162)","v":"n.d."},{"$f":"IF('[1]MONE(M)CAPARD'!AT162=\"\",\"\",'[1]MONE(M)CAPARD'!AT162)","v":"n.a."},{"$f":"IF('[1]MONE(M)CAPARD'!AU162=\"\",\"\",'[1]MONE(M)CAPARD'!AU162)","v":"n.d."},{"$f":"IF('[1]MONE(M)CAPARD'!AV162=\"\",\"\",'[1]MONE(M)CAPARD'!AV162)","v":"n.d."},{"$f":"IF('[1]MONE(M)CAPARD'!AW162=\"\",\"\",'[1]MONE(M)CAPARD'!AW162)","v":"n.a."},{"$f":"IF('[1]MONE(M)CAPARD'!AX162=\"\",\"\",'[1]MONE(M)CAPARD'!AX162)","v":"n.d."},{"$f":"IF('[1]MONE(M)CAPARD'!AY162=\"\",\"\",'[1]MONE(M)CAPARD'!AY162)","v":"n.a."},{"$f":"IF('[1]FISCAL(M)'!$K162=\"\",\"\",'[1]FISCAL(M)'!$K162)","v":-1171.1928275656933},{"$f":"IF('[1]FISCAL(M)'!$L162=\"\",\"\",'[1]FISCAL(M)'!$L162)","v":-1311.9538929926935},{"$f":"IF('[1]FISCAL(M)'!$AY162=\"\",\"\",'[1]FISCAL(M)'!$AY162)","v":"n.d."},{"$f":"IF('[1]FISCAL(M)'!$BI162=\"\",\"\",'[1]FISCAL(M)'!$BI162)","v":"n.d."},{"$f":"IF('[1]FISCAL(M)'!$BS162=\"\",\"\",'[1]FISCAL(M)'!$BS162)","v":"n.d."},{"$f":"IF('[1]FISCAL(M)'!$AZ162=\"\",\"\",'[1]FISCAL(M)'!$AZ162)","v":"n.d."},{"$f":"IF('[1]FISCAL(M)'!$BJ162=\"\",\"\",'[1]FISCAL(M)'!$BJ162)","v":"n.d."},{"$f":"IF('[1]FISCAL(M)'!$BT162=\"\",\"\",'[1]FISCAL(M)'!$BT162)","v":"n.d."},{"$f":"IF('[2]MONE(M)'!$AO162=\"\",\"\",'[2]MONE(M)'!$AO162)","v":1772486.7060930179},{"$f":"IF('[3]MONE(M)'!$AO162=\"\",\"\",'[3]MONE(M)'!$AO162)","v":5784.2947428571424},{"$f":"IF('[4]MONE(M)'!$AO162=\"\",\"\",'[4]MONE(M)'!$AO162)","v":36597.350374896159},{"$f":"+'[5]MONE(M)'!$AO162","v":43775.040130770336},{"$f":"IF('[6]MONE(M)'!$AO162=\"\",\"\",'[6]MONE(M)'!$AO162)","v":10640.785055209999},{"$f":"IF('[7]MONE(M)'!$AO162=\"\",\"\",'[7]MONE(M)'!$AO162)","v":145088.56660199998},{"$f":"IF('[8]MONE(M)'!$AO162=\"\",\"\",'[8]MONE(M)'!$AO162)","v":0},"n.d.","n.d.","n.d.","n.d.","n.d.","n.d.","n.d.",{"$f":"IF('[1]FISCAL(M)'!$K162=\"\",\"\",'[1]FISCAL(M)'!$K162)","v":-1171.1928275656933},{"$f":"+'[1]REAL(A)'!$AO$22","v":90015.237527740421},-1.3011050792425685,{"$f":"IF('[1]FISCAL(M)'!$L162=\"\",\"\",'[1]FISCAL(M)'!$L162)","v":-1311.9538929926935},{"$f":"+'[1]REAL(A)'!$AP$22","v":"n.d."},"n.d.","n.d.",{"$f":"'[1]Gráfico REM'!BG156","v":7334.5755788182687},{"$f":"'[1]Gráfico REM'!BH156","v":26943.15452119377},{"$f":"'[1]Gráfico REM'!BI156","v":929.81871032703634},"n.d.","n.d.","n.d.","n.d.","n.d.","n.d.","n.d.","n.d.","n.d.","n.d.","n.d.","n.d."]
[2002,"octubre","2002-octubre",{"$f":"IF('[1]REAL IPC(M)'!$AL163=\"\",\"\",+'[1]REAL IPC(M)'!$AL163)","v":6.7533050174706899},{"$f":"IF('[1]REAL IPC(M)'!$BE163=\"\",\"\",+'[1]REAL IPC(M)'!$BE163)","v":9.9368904604715915},{"$f":"IF('[1]REAL IPC(M)'!$AM163=\"\",\"\",+'[1]REAL IPC(M)'!$AM163)","v":6.2072265998608378},{"$f":"IF('[1]REAL IPC(M)'!$BI163=\"\",\"\",+'[1]REAL IPC(M)'!$BI163)","v":8.997382348795302},{"$f":"IF('[1]REAL IMAE(M)'!BJ163=\"\",\"\",'[1]REAL IMAE(M)'!BJ163)","v":"n.d."},{"$f":"IF('[1]REAL IMAE(M)'!BK163=\"\",\"\",'[1]REAL IMAE(M)'!BK163)","v":"n.d."},{"$f":"IF('[1]REAL IMAE(M)'!BN163=\"\",\"\",'[1]REAL IMAE(M)'!BN163)","v":"n.d."},{"$f":"IF('[1]REAL IMAE(M)'!BO163=\"\",\"\",'[1]REAL IMAE(M)'!BO163)","v":"n.d."},{"$f":"IF('[1]EXT RIN(M)'!$K163=\"\",\"\",'[1]EXT RIN(M)'!$K163)","v":7461.0011579488491},"",{"$f":"IF('[1]EXT RIN(M)'!$L163=\"\",\"\",'[1]EXT RIN(M)'!$L163)","v":7461.0011579488491},"",{"$f":"IF('[1]MONE(M)CARD'!EG163=\"\",\"\",'[1]MONE(M)CARD'!EG163)","v":8202.2275235661036},{"$f":"IF('[1]MONE(M)CARD'!EK163=\"\",\"\",'[1]MONE(M)CARD'!EK163)","v":19027.594766860948},{"$f":"IF('[1]MONE(M)CARD'!EP163=\"\",\"\",'[1]MONE(M)CARD'!EP163)","v":7146.6052301583768},{"$f":"IF('[1]MONE(M)CARD'!ES163=\"\",\"\",'[1]MONE(M)CARD'!ES163)","v":"n.d."},{"$f":"IF('[1]MONE(M)CARD'!EV163=\"\",\"\",'[1]MONE(M)CARD'!EV163)","v":"n.d."},{"$f":"IF('[1]MONE(M)CARD'!EZ163=\"\",\"\",'[1]MONE(M)CARD'!EZ163)","v":"n.d."},{"$f":"IF('[1]MONE(M)CAPARD'!FC163=\"\",\"\",'[1]MONE(M)CAPARD'!FC163)","v":8202.2275235661036},{"$f":"IF('[1]MONE(M)CAPARD'!FG163=\"\",\"\",'[1]MONE(M)CAPARD'!FG163)","v":19027.594766860948},{"$f":"IF('[1]MONE(M)CAPARD'!FL163=\"\",\"\",'[1]MONE(M)CAPARD'!FL163)","v":7146.6052301583768},{"$f":"IF('[1]MONE(M)CAPARD'!FO163=\"\",\"\",'[1]MONE(M)CAPARD'!FO163)","v":"n.d."},{"$f":"IF('[1]MONE(M)CAPARD'!FR163=\"\",\"\",'[1]MONE(M)CAPARD'!FR163)","v":"n.d."},{"$f":"IF('[1]MONE(M)CAPARD'!FV163=\"\",\"\",'[1]MONE(M)CAPARD'!FV163)","v":"n.d."},{"$f":"IF('[1]MONE(M)CARD'!FV163=\"\",\"\",'[1]MONE(M)CARD'!FV163)","v":414.56039849984404},{"$f":"IF('[1]MONE(M)CARD'!GD163=\"\",\"\",'[1]MONE(M)CARD'!GD163)","v":75.042958007667806},{"$f":"IF('[1]MONE(M)CARD'!GE163=\"\",\"\",'[1]MONE(M)CARD'!GE163)","v":3645.9354913255111},"n.d.",{"$f":"IF('[9]II.2.Balance OSD-Activos'!J21=\"\",\"\",'[9]II.2.Balance OSD-Activos'!J21)","v":198.00957907246496},{"$f":"IF('[9]II.2.Balance OSD-Activos'!N21=\"\",\"\",'[9]II.2.Balance OSD-Activos'!N21)","v":9.0827905858643696},{"$f":"IF('[9]II.2.Balance OSD-Activos'!R21=\"\",\"\",'[9]II.2.Balance OSD-Activos'!R21)","v":13390.638610648843},{"$f":"IF('[9]II.2.Balance OSD-Activos'!S21=\"\",\"\",'[9]II.2.Balance OSD-Activos'!S21)","v":12394.322217071924},13588.648189721307,25992.053197379093,"n.d.",null,"n.d.","n.d.","n.d.","n.d.","n.d.",{"$f":"IF('[1]MONE(M)CAPARD'!GS163=\"\",\"\",'[1]MONE(M)CAPARD'!GS163)","v":3262.8642534647388},{"$f":"IF('[1]MONE(M)CARD'!HA163=\"\",\"\",'[1]MONE(M)CAPARD'!HA163)","v":3645.9354913255111},{"$f":"IF('[1]MONE(M)CAPARD'!HB163=\"\",\"\",'[1]MONE(M)CAPARD'!HB163)","v":-383.07123786077227},"n.d.",{"$f":"IF('[10]II.2.Balance OSD-Activos'!J21=\"\",\"\",'[10]II.2.Balance OSD-Activos'!J21)","v":198.00957907246496},{"$f":"IF('[10]II.2.Balance OSD-Activos'!N21=\"\",\"\",'[10]II.2.Balance OSD-Activos'!N21)","v":9.0827905858643696},{"$f":"IF('[10]II.2.Balance OSD-Activos'!R21=\"\",\"\",'[10]II.2.Balance OSD-Activos'!R21)","v":13390.638610648843},{"$f":"IF('[10]II.2.Balance OSD-Activos'!S21=\"\",\"\",'[10]II.2.Balance OSD-Activos'!S21)","v":12394.322217071924},13588.648189721307,25992.053197379093,"n.d.","n.d.","n.d.","n.d.","n.d.","n.d.","n.d.",{"$f":"IF('[1]MONE(M)CAPARD'!AS163=\"\",\"\",'[1]MONE(M)CAPARD'!AS163)","v":"n.d."},{"$f":"IF('[1]MONE(M)CAPARD'!AT163=\"\",\"\",'[1]MONE(M)CAPARD'!AT163)","v":"n.a."},{"$f":"IF('[1]MONE(M)CAPARD'!AU163=\"\",\"\",'[1]MONE(M)CAPARD'!AU163)","v":"n.d."},{"$f":"IF('[1]MONE(M)CAPARD'!AV163=\"\",\"\",'[1]MONE(M)CAPARD'!AV163)","v":"n.d."},{"$f":"IF('[1]MONE(M)CAPARD'!AW163=\"\",\"\",'[1]MONE(M)CAPARD'!AW163)","v":"n.a."},{"$f":"IF('[1]MONE(M)CAPARD'!AX163=\"\",\"\",'[1]MONE(M)CAPARD'!AX163)","v":"n.d."},{"$f":"IF('[1]MONE(M)CAPARD'!AY163=\"\",\"\",'[1]MONE(M)CAPARD'!AY163)","v":"n.a."},{"$f":"IF('[1]FISCAL(M)'!$K163=\"\",\"\",'[1]FISCAL(M)'!$K163)","v":-1326.5443534470278},{"$f":"IF('[1]FISCAL(M)'!$L163=\"\",\"\",'[1]FISCAL(M)'!$L163)","v":-1557.4761097840278},{"$f":"IF('[1]FISCAL(M)'!$AY163=\"\",\"\",'[1]FISCAL(M)'!$AY163)","v":"n.d."},{"$f":"IF('[1]FISCAL(M)'!$BI163=\"\",\"\",'[1]FISCAL(M)'!$BI163)","v":"n.d."},{"$f":"IF('[1]FISCAL(M)'!$BS163=\"\",\"\",'[1]FISCAL(M)'!$BS163)","v":"n.d."},{"$f":"IF('[1]FISCAL(M)'!$AZ163=\"\",\"\",'[1]FISCAL(M)'!$AZ163)","v":"n.d."},{"$f":"IF('[1]FISCAL(M)'!$BJ163=\"\",\"\",'[1]FISCAL(M)'!$BJ163)","v":"n.d."},{"$f":"IF('[1]FISCAL(M)'!$BT163=\"\",\"\",'[1]FISCAL(M)'!$BT163)","v":"n.d."},{"$f":"IF('[2]MONE(M)'!$AO163=\"\",\"\",'[2]MONE(M)'!$AO163)","v":1820075.2550575347},{"$f":"IF('[3]MONE(M)'!$AO163=\"\",\"\",'[3]MONE(M)'!$AO163)","v":5852.2237428571434},{"$f":"IF('[4]MONE(M)'!$AO163=\"\",\"\",'[4]MONE(M)'!$AO163)","v":36703.46766061653},{"$f":"+'[5]MONE(M)'!$AO163","v":44301.073934143787},{"$f":"IF('[6]MONE(M)'!$AO163=\"\",\"\",'[6]MONE(M)'!$AO163)","v":10975.947526249998},{"$f":"IF('[7]MONE(M)'!$AO163=\"\",\"\",'[7]MONE(M)'!$AO163)","v":146954.63974499999},{"$f":"IF('[8]MONE(M)'!$AO163=\"\",\"\",'[8]MONE(M)'!$AO163)","v":0},"n.d.","n.d.","n.d.","n.d.","n.d.","n.d.","n.d.",{"$f":"IF('[1]FISCAL(M)'!$K163=\"\",\"\",'[1]FISCAL(M)'!$K163)","v":-1326.5443534470278},{"$f":"+'[1]REAL(A)'!$AO$22","v":90015.237527740421},-1.4736886663640922,{"$f":"IF('[1]FISCAL(M)'!$L163=\"\",\"\",'[1]FISCAL(M)'!$L163)","v":-1557.4761097840278},{"$f":"+'[1]REAL(A)'!$AP$22","v":"n.d."},"n.d.","n.d.",{"$f":"'[1]Gráfico REM'!BG157","v":7393.4026697855124},{"$f":"'[1]Gráfico REM'!BH157","v":27301.472738844033},{"$f":"'[1]Gráfico REM'!BI157","v":934.69804147474883},"n.d.","n.d.","n.d.","n.d.","n.d.","n.d.","n.d.","n.d.","n.d.","n.d.","n.d.","n.d."]
[2002,"noviembre","2002-noviembre",{"$f":"IF('[1]REAL IPC(M)'!$AL164=\"\",\"\",+'[1]REAL IPC(M)'!$AL164)","v":6.5794734960833656},{"$f":"IF('[1]REAL IPC(M)'!$BE164=\"\",\"\",+'[1]REAL IPC(M)'!$BE164)","v":10.147853735452816},{"$f":"IF('[1]REAL IPC(M)'!$AM164=\"\",\"\",+'[1]REAL IPC(M)'!$AM164)","v":6.0998128092211168},{"$f":"IF('[1]REAL IPC(M)'!$BI164=\"\",\"\",+'[1]REAL IPC(M)'!$BI164)","v":9.1973931212139917},{"$f":"IF('[1]REAL IMAE(M)'!BJ164=\"\",\"\",'[1]REAL IMAE(M)'!BJ164)","v":"n.d."},{"$f":"IF('[1]REAL IMAE(M)'!BK164=\"\",\"\",'[1]REAL IMAE(M)'!BK164)","v":"n.d."},{"$f":"IF('[1]REAL IMAE(M)'!BN164=\"\",\"\",'[1]REAL IMAE(M)'!BN164)","v":"n.d."},{"$f":"IF('[1]REAL IMAE(M)'!BO164=\"\",\"\",'[1]REAL IMAE(M)'!BO164)","v":"n.d."},{"$f":"IF('[1]EXT RIN(M)'!$K164=\"\",\"\",'[1]EXT RIN(M)'!$K164)","v":7298.0689126914285},"",{"$f":"IF('[1]EXT RIN(M)'!$L164=\"\",\"\",'[1]EXT RIN(M)'!$L164)","v":7298.0689126914285},"",{"$f":"IF('[1]MONE(M)CARD'!EG164=\"\",\"\",'[1]MONE(M)CARD'!EG164)","v":8494.0206687486207},{"$f":"IF('[1]MONE(M)CARD'!EK164=\"\",\"\",'[1]MONE(M)CARD'!EK164)","v":18919.441447600919},{"$f":"IF('[1]MONE(M)CARD'!EP164=\"\",\"\",'[1]MONE(M)CARD'!EP164)","v":7352.7630337466617},{"$f":"IF('[1]MONE(M)CARD'!ES164=\"\",\"\",'[1]MONE(M)CARD'!ES164)","v":"n.d."},{"$f":"IF('[1]MONE(M)CARD'!EV164=\"\",\"\",'[1]MONE(M)CARD'!EV164)","v":"n.d."},{"$f":"IF('[1]MONE(M)CARD'!EZ164=\"\",\"\",'[1]MONE(M)CARD'!EZ164)","v":"n.d."},{"$f":"IF('[1]MONE(M)CAPARD'!FC164=\"\",\"\",'[1]MONE(M)CAPARD'!FC164)","v":8494.0206687486207},{"$f":"IF('[1]MONE(M)CAPARD'!FG164=\"\",\"\",'[1]MONE(M)CAPARD'!FG164)","v":18919.441447600919},{"$f":"IF('[1]MONE(M)CAPARD'!FL164=\"\",\"\",'[1]MONE(M)CAPARD'!FL164)","v":7352.7630337466617},{"$f":"IF('[1]MONE(M)CAPARD'!FO164=\"\",\"\",'[1]MONE(M)CAPARD'!FO164)","v":"n.d."},{"$f":"IF('[1]MONE(M)CAPARD'!FR164=\"\",\"\",'[1]MONE(M)CAPARD'!FR164)","v":"n.d."},{"$f":"IF('[1]MONE(M)CAPARD'!FV164=\"\",\"\",'[1]MONE(M)CAPARD'!FV164)","v":"n.d."},{"$f":"IF('[1]MONE(M)CARD'!FV164=\"\",\"\",'[1]MONE(M)CARD'!FV164)","v":428.4667122303253},{"$f":"IF('[1]MONE(M)CARD'!GD164=\"\",\"\",'[1]MONE(M)CARD'!GD164)","v":72.782337617422883},{"$f":"IF('[1]MONE(M)CARD'!GE164=\"\",\"\",'[1]MONE(M)CARD'!GE164)","v":3612.2140196392666},"n.d.",{"$f":"IF('[9]II.2.Balance OSD-Activos'!J22=\"\",\"\",'[9]II.2.Balance OSD-Activos'!J22)","v":175.32025766922615},{"$f":"IF('[9]II.2.Balance OSD-Activos'!N22=\"\",\"\",'[9]II.2.Balance OSD-Activos'!N22)","v":13.345519896926655},{"$f":"IF('[9]II.2.Balance OSD-Activos'!R22=\"\",\"\",'[9]II.2.Balance OSD-Activos'!R22)","v":13597.962985844579},{"$f":"IF('[9]II.2.Balance OSD-Activos'!S22=\"\",\"\",'[9]II.2.Balance OSD-Activos'!S22)","v":12593.786572800342},13773.283243513804,26380.415336211074,"n.d.",null,"n.d.","n.d.","n.d.","n.d.","n.d.",{"$f":"IF('[1]MONE(M)CAPARD'!GS164=\"\",\"\",'[1]MONE(M)CAPARD'!GS164)","v":3378.4106318508416},{"$f":"IF('[1]MONE(M)CARD'!HA164=\"\",\"\",'[1]MONE(M)CAPARD'!HA164)","v":3612.2140196392666},{"$f":"IF('[1]MONE(M)CAPARD'!HB164=\"\",\"\",'[1]MONE(M)CAPARD'!HB164)","v":-233.80338778842497},"n.d.",{"$f":"IF('[10]II.2.Balance OSD-Activos'!J22=\"\",\"\",'[10]II.2.Balance OSD-Activos'!J22)","v":175.32025766922615},{"$f":"IF('[10]II.2.Balance OSD-Activos'!N22=\"\",\"\",'[10]II.2.Balance OSD-Activos'!N22)","v":13.345519896926655},{"$f":"IF('[10]II.2.Balance OSD-Activos'!R22=\"\",\"\",'[10]II.2.Balance OSD-Activos'!R22)","v":13597.962985844579},{"$f":"IF('[10]II.2.Balance OSD-Activos'!S22=\"\",\"\",'[10]II.2.Balance OSD-Activos'!S22)","v":12593.786572800342},13773.283243513804,26380.415336211074,"n.d.","n.d.","n.d.","n.d.","n.d.","n.d.","n.d.",{"$f":"IF('[1]MONE(M)CAPARD'!AS164=\"\",\"\",'[1]MONE(M)CAPARD'!AS164)","v":"n.d."},{"$f":"IF('[1]MONE(M)CAPARD'!AT164=\"\",\"\",'[1]MONE(M)CAPARD'!AT164)","v":"n.a."},{"$f":"IF('[1]MONE(M)CAPARD'!AU164=\"\",\"\",'[1]MONE(M)CAPARD'!AU164)","v":"n.d."},{"$f":"IF('[1]MONE(M)CAPARD'!AV164=\"\",\"\",'[1]MONE(M)CAPARD'!AV164)","v":"n.d."},{"$f":"IF('[1]MONE(M)CAPARD'!AW164=\"\",\"\",'[1]MONE(M)CAPARD'!AW164)","v":"n.a."},{"$f":"IF('[1]MONE(M)CAPARD'!AX164=\"\",\"\",'[1]MONE(M)CAPARD'!AX164)","v":"n.d."},{"$f":"IF('[1]MONE(M)CAPARD'!AY164=\"\",\"\",'[1]MONE(M)CAPARD'!AY164)","v":"n.a."},{"$f":"IF('[1]FISCAL(M)'!$K164=\"\",\"\",'[1]FISCAL(M)'!$K164)","v":-1664.5953429299557},{"$f":"IF('[1]FISCAL(M)'!$L164=\"\",\"\",'[1]FISCAL(M)'!$L164)","v":-1909.3839482369558},{"$f":"IF('[1]FISCAL(M)'!$AY164=\"\",\"\",'[1]FISCAL(M)'!$AY164)","v":"n.d."},{"$f":"IF('[1]FISCAL(M)'!$BI164=\"\",\"\",'[1]FISCAL(M)'!$BI164)","v":"n.d."},{"$f":"IF('[1]FISCAL(M)'!$BS164=\"\",\"\",'[1]FISCAL(M)'!$BS164)","v":"n.d."},{"$f":"IF('[1]FISCAL(M)'!$AZ164=\"\",\"\",'[1]FISCAL(M)'!$AZ164)","v":"n.d."},{"$f":"IF('[1]FISCAL(M)'!$BJ164=\"\",\"\",'[1]FISCAL(M)'!$BJ164)","v":"n.d."},{"$f":"IF('[1]FISCAL(M)'!$BT164=\"\",\"\",'[1]FISCAL(M)'!$BT164)","v":"n.d."},{"$f":"IF('[2]MONE(M)'!$AO164=\"\",\"\",'[2]MONE(M)'!$AO164)","v":1843303.470993524},{"$f":"IF('[3]MONE(M)'!$AO164=\"\",\"\",'[3]MONE(M)'!$AO164)","v":5948.3077428571432},{"$f":"IF('[4]MONE(M)'!$AO164=\"\",\"\",'[4]MONE(M)'!$AO164)","v":37029.239523973389},{"$f":"+'[5]MONE(M)'!$AO164","v":44837.604244254791},{"$f":"IF('[6]MONE(M)'!$AO164=\"\",\"\",'[6]MONE(M)'!$AO164)","v":11152.98817402},{"$f":"IF('[7]MONE(M)'!$AO164=\"\",\"\",'[7]MONE(M)'!$AO164)","v":149451.24821799999},{"$f":"IF('[8]MONE(M)'!$AO164=\"\",\"\",'[8]MONE(M)'!$AO164)","v":0},"n.d.","n.d.","n.d.","n.d.","n.d.","n.d.","n.d.",{"$f":"IF('[1]FISCAL(M)'!$K164=\"\",\"\",'[1]FISCAL(M)'!$K164)","v":-1664.5953429299557},{"$f":"+'[1]REAL(A)'!$AO$22","v":90015.237527740421},-1.8492372943158313,{"$f":"IF('[1]FISCAL(M)'!$L164=\"\",\"\",'[1]FISCAL(M)'!$L164)","v":-1909.3839482369558},{"$f":"+'[1]REAL(A)'!$AP$22","v":"n.d."},"n.d.","n.d.",{"$f":"'[1]Gráfico REM'!BG158","v":7251.0761357349656},{"$f":"'[1]Gráfico REM'!BH158","v":27686.284065501295},{"$f":"'[1]Gráfico REM'!BI158","v":955.7065909508085},"n.d.","n.d.","n.d.","n.d.","n.d.","n.d.","n.d.","n.d.","n.d.","n.d.","n.d.","n.d."]
[2002,"diciembre","2002-diciembre",{"$f":"IF('[1]REAL IPC(M)'!$AL165=\"\",\"\",+'[1]REAL IPC(M)'!$AL165)","v":7.2190895703164948},{"$f":"IF('[1]REAL IPC(M)'!$BE165=\"\",\"\",+'[1]REAL IPC(M)'!$BE165)","v":10.361269756530289},{"$f":"IF('[1]REAL IPC(M)'!$AM165=\"\",\"\",+'[1]REAL IPC(M)'!$AM165)","v":6.694189888580393},{"$f":"IF('[1]REAL IPC(M)'!$BI165=\"\",\"\",+'[1]REAL IPC(M)'!$BI165)","v":9.4008684216375205},{"$f":"IF('[1]REAL IMAE(M)'!BJ165=\"\",\"\",'[1]REAL IMAE(M)'!BJ165)","v":"n.d."},{"$f":"IF('[1]REAL IMAE(M)'!BK165=\"\",\"\",'[1]REAL IMAE(M)'!BK165)","v":"n.d."},{"$f":"IF('[1]REAL IMAE(M)'!BN165=\"\",\"\",'[1]REAL IMAE(M)'!BN165)","v":"n.d."},{"$f":"IF('[1]REAL IMAE(M)'!BO165=\"\",\"\",'[1]REAL IMAE(M)'!BO165)","v":"n.d."},{"$f":"IF('[1]EXT RIN(M)'!$K165=\"\",\"\",'[1]EXT RIN(M)'!$K165)","v":7459.2233140622684},7459.2233140622684,{"$f":"IF('[1]EXT RIN(M)'!$L165=\"\",\"\",'[1]EXT RIN(M)'!$L165)","v":8687.6969895204275},8687.6969895204275,{"$f":"IF('[1]MONE(M)CARD'!EG165=\"\",\"\",'[1]MONE(M)CARD'!EG165)","v":9023.0281751028378},{"$f":"IF('[1]MONE(M)CARD'!EK165=\"\",\"\",'[1]MONE(M)CARD'!EK165)","v":17806.490487746334},{"$f":"IF('[1]MONE(M)CARD'!EP165=\"\",\"\",'[1]MONE(M)CARD'!EP165)","v":7256.5386794467704},{"$f":"IF('[1]MONE(M)CARD'!ES165=\"\",\"\",'[1]MONE(M)CARD'!ES165)","v":1.08210925738359},{"$f":"IF('[1]MONE(M)CARD'!EV165=\"\",\"\",'[1]MONE(M)CARD'!EV165)","v":-3.2707572281166719},{"$f":"IF('[1]MONE(M)CARD'!EZ165=\"\",\"\",'[1]MONE(M)CARD'!EZ165)","v":-0.18047798952189886},{"$f":"IF('[1]MONE(M)CAPARD'!FC165=\"\",\"\",'[1]MONE(M)CAPARD'!FC165)","v":10358.550077912838},{"$f":"IF('[1]MONE(M)CAPARD'!FG165=\"\",\"\",'[1]MONE(M)CAPARD'!FG165)","v":26542.615911326331},{"$f":"IF('[1]MONE(M)CAPARD'!FL165=\"\",\"\",'[1]MONE(M)CAPARD'!FL165)","v":7256.5386794467631},{"$f":"IF('[1]MONE(M)CAPARD'!FO165=\"\",\"\",'[1]MONE(M)CAPARD'!FO165)","v":16.043535540853071},{"$f":"IF('[1]MONE(M)CAPARD'!FR165=\"\",\"\",'[1]MONE(M)CAPARD'!FR165)","v":33.040845361167712},{"$f":"IF('[1]MONE(M)CAPARD'!FV165=\"\",\"\",'[1]MONE(M)CAPARD'!FV165)","v":29.31389890137379},{"$f":"IF('[1]MONE(M)CARD'!FV165=\"\",\"\",'[1]MONE(M)CARD'!FV165)","v":406.16848449476805},{"$f":"IF('[1]MONE(M)CARD'!GD165=\"\",\"\",'[1]MONE(M)CARD'!GD165)","v":55.795244096774461},{"$f":"IF('[1]MONE(M)CARD'!GE165=\"\",\"\",'[1]MONE(M)CARD'!GE165)","v":3245.4903965815024},"n.d.",{"$f":"IF('[9]II.2.Balance OSD-Activos'!J23=\"\",\"\",'[9]II.2.Balance OSD-Activos'!J23)","v":174.60701390028299},{"$f":"IF('[9]II.2.Balance OSD-Activos'!N23=\"\",\"\",'[9]II.2.Balance OSD-Activos'!N23)","v":13.705203433015559},{"$f":"IF('[9]II.2.Balance OSD-Activos'!R23=\"\",\"\",'[9]II.2.Balance OSD-Activos'!R23)","v":12953.857766333032},{"$f":"IF('[9]II.2.Balance OSD-Activos'!S23=\"\",\"\",'[9]II.2.Balance OSD-Activos'!S23)","v":12155.892632847379},13128.464780233315,25298.062616513707,{"$f":"IF(OR(AF158=\"\",AF146=\"\"),\"\",((AF158/AF146)-1)*100)","v":10.974478015659361},{"$f":"IF(OR(AJ158=\"\",AJ146=\"\"),\"\",((AJ158/AJ146)-1)*100)","v":-1.6257143182564548},{"$f":"IF(OR(AG158=\"\",AG146=\"\"),\"\",((AG158/AG146)-1)*100)","v":-19.481196208211472},-1.7760403046662265,6.4944634462984485,{"$f":"IF(OR(AK158=\"\",AK146=\"\"),\"\",((AK158/AK146)-1)*100)","v":2.1029209000656524},"n.d.",{"$f":"IF('[1]MONE(M)CAPARD'!GS165=\"\",\"\",'[1]MONE(M)CAPARD'!GS165)","v":3743.9937545865719},{"$f":"IF('[1]MONE(M)CARD'!HA165=\"\",\"\",'[1]MONE(M)CAPARD'!HA165)","v":3408.8994265215019},{"$f":"IF('[1]MONE(M)CAPARD'!HB165=\"\",\"\",'[1]MONE(M)CAPARD'!HB165)","v":335.09432806506993},"n.d.",{"$f":"IF('[10]II.2.Balance OSD-Activos'!J23=\"\",\"\",'[10]II.2.Balance OSD-Activos'!J23)","v":952.65851269028292},{"$f":"IF('[10]II.2.Balance OSD-Activos'!N23=\"\",\"\",'[10]II.2.Balance OSD-Activos'!N23)","v":409.22349667301546},{"$f":"IF('[10]II.2.Balance OSD-Activos'!R23=\"\",\"\",'[10]II.2.Balance OSD-Activos'!R23)","v":17590.694498243032},{"$f":"IF('[10]II.2.Balance OSD-Activos'!S23=\"\",\"\",'[10]II.2.Balance OSD-Activos'!S23)","v":16622.619752767379},18543.353010933315,35575.196260373712,{"$f":"IF(OR(AW158=\"\",AW146=\"\"),\"\",((AW158/AW146)-1)*100)","v":505.47843303336623},{"$f":"IF(OR(BA158=\"\",BA146=\"\"),\"\",((BA158/BA146)-1)*100)","v":38.949156442232116},{"$f":"IF(OR(AX158=\"\",AX146=\"\"),\"\",((AX158/AX146)-1)*100)","v":2304.2099481885707},33.383251427923085,45.626242770470341,{"$f":"IF(OR(BB158=\"\",BB146=\"\"),\"\",((BB158/BB146)-1)*100)","v":43.5814079852181},"n.d.",{"$f":"IF('[1]MONE(M)CAPARD'!AS165=\"\",\"\",'[1]MONE(M)CAPARD'!AS165)","v":"n.d."},{"$f":"IF('[1]MONE(M)CAPARD'!AT165=\"\",\"\",'[1]MONE(M)CAPARD'!AT165)","v":"n.a."},{"$f":"IF('[1]MONE(M)CAPARD'!AU165=\"\",\"\",'[1]MONE(M)CAPARD'!AU165)","v":"n.d."},{"$f":"IF('[1]MONE(M)CAPARD'!AV165=\"\",\"\",'[1]MONE(M)CAPARD'!AV165)","v":"n.d."},{"$f":"IF('[1]MONE(M)CAPARD'!AW165=\"\",\"\",'[1]MONE(M)CAPARD'!AW165)","v":"n.a."},{"$f":"IF('[1]MONE(M)CAPARD'!AX165=\"\",\"\",'[1]MONE(M)CAPARD'!AX165)","v":"n.d."},{"$f":"IF('[1]MONE(M)CAPARD'!AY165=\"\",\"\",'[1]MONE(M)CAPARD'!AY165)","v":"n.a."},{"$f":"IF('[1]FISCAL(M)'!$K165=\"\",\"\",'[1]FISCAL(M)'!$K165)","v":-2133.2719280894394},{"$f":"IF('[1]FISCAL(M)'!$L165=\"\",\"\",'[1]FISCAL(M)'!$L165)","v":-2125.3181362064397},{"$f":"IF('[1]FISCAL(M)'!$AY165=\"\",\"\",'[1]FISCAL(M)'!$AY165)","v":"n.d."},{"$f":"IF('[1]FISCAL(M)'!$BI165=\"\",\"\",'[1]FISCAL(M)'!$BI165)","v":"n.d."},{"$f":"IF('[1]FISCAL(M)'!$BS165=\"\",\"\",'[1]FISCAL(M)'!$BS165)","v":"n.d."},{"$f":"IF('[1]FISCAL(M)'!$AZ165=\"\",\"\",'[1]FISCAL(M)'!$AZ165)","v":"n.d."},{"$f":"IF('[1]FISCAL(M)'!$BJ165=\"\",\"\",'[1]FISCAL(M)'!$BJ165)","v":"n.d."},{"$f":"IF('[1]FISCAL(M)'!$BT165=\"\",\"\",'[1]FISCAL(M)'!$BT165)","v":"n.d."},{"$f":"IF('[2]MONE(M)'!$AO165=\"\",\"\",'[2]MONE(M)'!$AO165)","v":1875498.132815789},{"$f":"IF('[3]MONE(M)'!$AO165=\"\",\"\",'[3]MONE(M)'!$AO165)","v":6003.8447428571435},{"$f":"IF('[4]MONE(M)'!$AO165=\"\",\"\",'[4]MONE(M)'!$AO165)","v":37833.536927033972},{"$f":"+'[5]MONE(M)'!$AO165","v":45155.454621851844},{"$f":"IF('[6]MONE(M)'!$AO165=\"\",\"\",'[6]MONE(M)'!$AO165)","v":11385.75509588},{"$f":"IF('[7]MONE(M)'!$AO165=\"\",\"\",'[7]MONE(M)'!$AO165)","v":152060.32945600001},{"$f":"IF('[8]MONE(M)'!$AO165=\"\",\"\",'[8]MONE(M)'!$AO165)","v":10055.359689329998},{"$f":"((BY158/BY146)-1)*100","v":22.529705158255741},3.6278808540103125,4.5934954858664057,7.0306972334557738,14.96102991614201,12.936007718513576,"n.d.",{"$f":"IF('[1]FISCAL(M)'!$K165=\"\",\"\",'[1]FISCAL(M)'!$K165)","v":-2133.2719280894394},{"$f":"+'[1]REAL(A)'!$AO$22","v":90015.237527740421},-2.3699009042019346,{"$f":"IF('[1]FISCAL(M)'!$L165=\"\",\"\",'[1]FISCAL(M)'!$L165)","v":-2125.3181362064397},{"$f":"+'[1]REAL(A)'!$AP$22","v":"n.d."},"n.d.","n.d.",{"$f":"'[1]Gráfico REM'!BG159","v":7228.0250645440883},{"$f":"'[1]Gráfico REM'!BH159","v":26599.021740134849},{"$f":"'[1]Gráfico REM'!BI159","v":968.49648227157923},"n.d.","n.d.","n.d.","n.d.","n.d.",{"$f":"'[1]Gráfico REM'!BK159","v":7633.8463521140884},{"$f":"'[1]Gráfico REM'!BL159","v":36654.381429464847},{"$f":"'[1]Gráfico REM'!BM159","v":8003.0034102815789},"n.d.","n.d.","n.d.","n.d."]
[2003,"enero","2003-enero",{"$f":"IF('[1]REAL IPC(M)'!$AL166=\"\",\"\",+'[1]REAL IPC(M)'!$AL166)","v":7.9898283378768031},{"$f":"IF('[1]REAL IPC(M)'!$BE166=\"\",\"\",+'[1]REAL IPC(M)'!$BE166)","v":10.575531239151204},{"$f":"IF('[1]REAL IPC(M)'!$AM166=\"\",\"\",+'[1]REAL IPC(M)'!$AM166)","v":7.3174939592020039},{"$f":"IF('[1]REAL IPC(M)'!$BI166=\"\",\"\",+'[1]REAL IPC(M)'!$BI166)","v":9.6062764065263373},{"$f":"IF('[1]REAL IMAE(M)'!BJ166=\"\",\"\",'[1]REAL IMAE(M)'!BJ166)","v":"n.d."},{"$f":"IF('[1]REAL IMAE(M)'!BK166=\"\",\"\",'[1]REAL IMAE(M)'!BK166)","v":"n.d."},{"$f":"IF('[1]REAL IMAE(M)'!BN166=\"\",\"\",'[1]REAL IMAE(M)'!BN166)","v":"n.d."},{"$f":"IF('[1]REAL IMAE(M)'!BO166=\"\",\"\",'[1]REAL IMAE(M)'!BO166)","v":"n.d."},{"$f":"IF('[1]EXT RIN(M)'!$K166=\"\",\"\",'[1]EXT RIN(M)'!$K166)","v":7662.8379251623801},"",{"$f":"IF('[1]EXT RIN(M)'!$L166=\"\",\"\",'[1]EXT RIN(M)'!$L166)","v":8908.8598632187004},"",{"$f":"IF('[1]MONE(M)CARD'!EG166=\"\",\"\",'[1]MONE(M)CARD'!EG166)","v":8681.1032549330193},{"$f":"IF('[1]MONE(M)CARD'!EK166=\"\",\"\",'[1]MONE(M)CARD'!EK166)","v":17682.675617595669},{"$f":"IF('[1]MONE(M)CARD'!EP166=\"\",\"\",'[1]MONE(M)CARD'!EP166)","v":7996.4919204215985},{"$f":"IF('[1]MONE(M)CARD'!ES166=\"\",\"\",'[1]MONE(M)CARD'!ES166)","v":1.4744832765140936},{"$f":"IF('[1]MONE(M)CARD'!EV166=\"\",\"\",'[1]MONE(M)CARD'!EV166)","v":-1.9973834642707744},{"$f":"IF('[1]MONE(M)CARD'!EZ166=\"\",\"\",'[1]MONE(M)CARD'!EZ166)","v":2.5902950458515095},{"$f":"IF('[1]MONE(M)CAPARD'!FC166=\"\",\"\",'[1]MONE(M)CAPARD'!FC166)","v":9903.2959607230187},{"$f":"IF('[1]MONE(M)CAPARD'!FG166=\"\",\"\",'[1]MONE(M)CAPARD'!FG166)","v":26321.435409405665},{"$f":"IF('[1]MONE(M)CAPARD'!FL166=\"\",\"\",'[1]MONE(M)CAPARD'!FL166)","v":7996.4919204215912},{"$f":"IF('[1]MONE(M)CAPARD'!FO166=\"\",\"\",'[1]MONE(M)CAPARD'!FO166)","v":15.760844081391046},{"$f":"IF('[1]MONE(M)CAPARD'!FR166=\"\",\"\",'[1]MONE(M)CAPARD'!FR166)","v":34.658937732017627},{"$f":"IF('[1]MONE(M)CAPARD'!FV166=\"\",\"\",'[1]MONE(M)CAPARD'!FV166)","v":32.032380419912876},{"$f":"IF('[1]MONE(M)CARD'!FV166=\"\",\"\",'[1]MONE(M)CARD'!FV166)","v":406.22255237869484},{"$f":"IF('[1]MONE(M)CARD'!GD166=\"\",\"\",'[1]MONE(M)CARD'!GD166)","v":72.15855051170233},{"$f":"IF('[1]MONE(M)CARD'!GE166=\"\",\"\",'[1]MONE(M)CARD'!GE166)","v":3391.2863944616038},{"$f":"IF(AD159=\"\",\"\",((AD159/AD146)-1)*100)","v":29.915419959924595},{"$f":"IF('[9]II.2.Balance OSD-Activos'!J24=\"\",\"\",'[9]II.2.Balance OSD-Activos'!J24)","v":176.82109118421593},{"$f":"IF('[9]II.2.Balance OSD-Activos'!N24=\"\",\"\",'[9]II.2.Balance OSD-Activos'!N24)","v":12.531357331127296},{"$f":"IF('[9]II.2.Balance OSD-Activos'!R24=\"\",\"\",'[9]II.2.Balance OSD-Activos'!R24)","v":12952.291713242792},{"$f":"IF('[9]II.2.Balance OSD-Activos'!S24=\"\",\"\",'[9]II.2.Balance OSD-Activos'!S24)","v":11798.63815996807},13129.112804427008,24940.282321726205,{"$f":"IF(OR(AF159=\"\",AF147=\"\"),\"\",((AF159/AF147)-1)*100)","v":0.48836184910323599},-1.459565326491219,-18.975976105130687,-1.4856355022675238,3.5761837384326922,0.84904463595838475,{"$f":"IF(OR(AQ159=\"\",AQ158=\"\"),\"\",AQ159-AQ158)","v":-1.2538762641072676},{"$f":"IF('[1]MONE(M)CAPARD'!GS166=\"\",\"\",'[1]MONE(M)CAPARD'!GS166)","v":3793.0118398563709},{"$f":"IF('[1]MONE(M)CARD'!HA166=\"\",\"\",'[1]MONE(M)CAPARD'!HA166)","v":3579.4576711316035},{"$f":"IF('[1]MONE(M)CAPARD'!HB166=\"\",\"\",'[1]MONE(M)CAPARD'!HB166)","v":213.55416872476735},"n.d.",{"$f":"IF('[10]II.2.Balance OSD-Activos'!J24=\"\",\"\",'[10]II.2.Balance OSD-Activos'!J24)","v":1016.7512602942159},{"$f":"IF('[10]II.2.Balance OSD-Activos'!N24=\"\",\"\",'[10]II.2.Balance OSD-Activos'!N24)","v":380.99647545112731},{"$f":"IF('[10]II.2.Balance OSD-Activos'!R24=\"\",\"\",'[10]II.2.Balance OSD-Activos'!R24)","v":17470.368917102791},{"$f":"IF('[10]II.2.Balance OSD-Activos'!S24=\"\",\"\",'[10]II.2.Balance OSD-Activos'!S24)","v":16272.569874888068},18487.120177397006,35140.686527736201,477.82512182628886,38.754909435146786,2363.4097261063525,32.878592415397549,42.851290496940919,42.095611367105157,{"$f":"IF(OR(BH159=\"\",BH158=\"\"),\"\",BH159-BH158)","v":-1.4857966181129427},{"$f":"IF('[1]MONE(M)CAPARD'!AS166=\"\",\"\",'[1]MONE(M)CAPARD'!AS166)","v":"n.d."},{"$f":"IF('[1]MONE(M)CAPARD'!AT166=\"\",\"\",'[1]MONE(M)CAPARD'!AT166)","v":"n.a."},{"$f":"IF('[1]MONE(M)CAPARD'!AU166=\"\",\"\",'[1]MONE(M)CAPARD'!AU166)","v":"n.d."},{"$f":"IF('[1]MONE(M)CAPARD'!AV166=\"\",\"\",'[1]MONE(M)CAPARD'!AV166)","v":"n.d."},{"$f":"IF('[1]MONE(M)CAPARD'!AW166=\"\",\"\",'[1]MONE(M)CAPARD'!AW166)","v":"n.a."},{"$f":"IF('[1]MONE(M)CAPARD'!AX166=\"\",\"\",'[1]MONE(M)CAPARD'!AX166)","v":"n.d."},{"$f":"IF('[1]MONE(M)CAPARD'!AY166=\"\",\"\",'[1]MONE(M)CAPARD'!AY166)","v":"n.a."},{"$f":"IF('[1]FISCAL(M)'!$K166=\"\",\"\",'[1]FISCAL(M)'!$K166)","v":94.883604179853705},{"$f":"IF('[1]FISCAL(M)'!$L166=\"\",\"\",'[1]FISCAL(M)'!$L166)","v":-10.19145086014629},{"$f":"IF('[1]FISCAL(M)'!$AY166=\"\",\"\",'[1]FISCAL(M)'!$AY166)","v":"n.d."},{"$f":"IF('[1]FISCAL(M)'!$BI166=\"\",\"\",'[1]FISCAL(M)'!$BI166)","v":"n.d."},{"$f":"IF('[1]FISCAL(M)'!$BS166=\"\",\"\",'[1]FISCAL(M)'!$BS166)","v":"n.d."},{"$f":"IF('[1]FISCAL(M)'!$AZ166=\"\",\"\",'[1]FISCAL(M)'!$AZ166)","v":"n.d."},{"$f":"IF('[1]FISCAL(M)'!$BJ166=\"\",\"\",'[1]FISCAL(M)'!$BJ166)","v":"n.d."},{"$f":"IF('[1]FISCAL(M)'!$BT166=\"\",\"\",'[1]FISCAL(M)'!$BT166)","v":"n.d."},{"$f":"IF('[2]MONE(M)'!$AO166=\"\",\"\",'[2]MONE(M)'!$AO166)","v":1903495.3336585597},{"$f":"IF('[3]MONE(M)'!$AO166=\"\",\"\",'[3]MONE(M)'!$AO166)","v":6000.7417428571434},{"$f":"IF('[4]MONE(M)'!$AO166=\"\",\"\",'[4]MONE(M)'!$AO166)","v":37514.57144007436},{"$f":"+'[5]MONE(M)'!$AO166","v":45323.643012334811},{"$f":"IF('[6]MONE(M)'!$AO166=\"\",\"\",'[6]MONE(M)'!$AO166)","v":11419.762618000001},{"$f":"IF('[7]MONE(M)'!$AO166=\"\",\"\",'[7]MONE(M)'!$AO166)","v":159434.00236344},{"$f":"IF('[8]MONE(M)'!$AO166=\"\",\"\",'[8]MONE(M)'!$AO166)","v":10017.526527799999},22.359638839882479,3.3601682054593018,5.3043751889956248,7.2225646833049773,13.044839262121478,16.860893908795948,"n.d.",{"$f":"IF('[1]FISCAL(M)'!$K166=\"\",\"\",'[1]FISCAL(M)'!$K166)","v":94.883604179853705},{"$f":"+'[1]REAL(A)'!$AO$23","v":87995.190722536106},0.1078281703815359,{"$f":"IF('[1]FISCAL(M)'!$L166=\"\",\"\",'[1]FISCAL(M)'!$L166)","v":-10.19145086014629},{"$f":"+'[1]REAL(A)'!$AP$23","v":"n.d."},"n.d.","n.d.",{"$f":"'[1]Gráfico REM'!BG160","v":7565.0644516947868},{"$f":"'[1]Gráfico REM'!BH160","v":26214.551818798893},{"$f":"'[1]Gráfico REM'!BI160","v":938.58518251166606},"n.d.",{"$f":"+((CT159/CT147)-1)*100","v":14.457014489003805},0.32461248696498135,11.317878839627248,"n.d.",{"$f":"'[1]Gráfico REM'!BK160","v":7993.0175701267872},{"$f":"'[1]Gráfico REM'!BL160","v":36232.078346598893},{"$f":"'[1]Gráfico REM'!BM160","v":7806.8564683716659},"n.d.","n.d.","n.d.","n.d."]
[2003,"febrero","2003-febrero",{"$f":"IF('[1]REAL IPC(M)'!$AL167=\"\",\"\",+'[1]REAL IPC(M)'!$AL167)","v":9.1349565335331349},{"$f":"IF('[1]REAL IPC(M)'!$BE167=\"\",\"\",+'[1]REAL IPC(M)'!$BE167)","v":10.788882313984406},{"$f":"IF('[1]REAL IPC(M)'!$AM167=\"\",\"\",+'[1]REAL IPC(M)'!$AM167)","v":8.3613560754555394},{"$f":"IF('[1]REAL IPC(M)'!$BI167=\"\",\"\",+'[1]REAL IPC(M)'!$BI167)","v":9.8119323519963118},{"$f":"IF('[1]REAL IMAE(M)'!BJ167=\"\",\"\",'[1]REAL IMAE(M)'!BJ167)","v":"n.d."},{"$f":"IF('[1]REAL IMAE(M)'!BK167=\"\",\"\",'[1]REAL IMAE(M)'!BK167)","v":"n.d."},{"$f":"IF('[1]REAL IMAE(M)'!BN167=\"\",\"\",'[1]REAL IMAE(M)'!BN167)","v":"n.d."},{"$f":"IF('[1]REAL IMAE(M)'!BO167=\"\",\"\",'[1]REAL IMAE(M)'!BO167)","v":"n.d."},{"$f":"IF('[1]EXT RIN(M)'!$K167=\"\",\"\",'[1]EXT RIN(M)'!$K167)","v":7809.4259864399328},"",{"$f":"IF('[1]EXT RIN(M)'!$L167=\"\",\"\",'[1]EXT RIN(M)'!$L167)","v":9365.0088917713329},"",{"$f":"IF('[1]MONE(M)CARD'!EG167=\"\",\"\",'[1]MONE(M)CARD'!EG167)","v":8490.6421137572634},{"$f":"IF('[1]MONE(M)CARD'!EK167=\"\",\"\",'[1]MONE(M)CARD'!EK167)","v":17739.231418472533},{"$f":"IF('[1]MONE(M)CARD'!EP167=\"\",\"\",'[1]MONE(M)CARD'!EP167)","v":7672.9498803053357},{"$f":"IF('[1]MONE(M)CARD'!ES167=\"\",\"\",'[1]MONE(M)CARD'!ES167)","v":1.456461874768511},{"$f":"IF('[1]MONE(M)CARD'!EV167=\"\",\"\",'[1]MONE(M)CARD'!EV167)","v":-3.6222993396910597},{"$f":"IF('[1]MONE(M)CARD'!EZ167=\"\",\"\",'[1]MONE(M)CARD'!EZ167)","v":-0.50326627284207337},{"$f":"IF('[1]MONE(M)CAPARD'!FC167=\"\",\"\",'[1]MONE(M)CAPARD'!FC167)","v":9683.7031850572603},{"$f":"IF('[1]MONE(M)CAPARD'!FG167=\"\",\"\",'[1]MONE(M)CAPARD'!FG167)","v":26453.650764392536},{"$f":"IF('[1]MONE(M)CAPARD'!FL167=\"\",\"\",'[1]MONE(M)CAPARD'!FL167)","v":7672.949880305343},{"$f":"IF('[1]MONE(M)CAPARD'!FO167=\"\",\"\",'[1]MONE(M)CAPARD'!FO167)","v":15.71259862778196},{"$f":"IF('[1]MONE(M)CAPARD'!FR167=\"\",\"\",'[1]MONE(M)CAPARD'!FR167)","v":32.781238053481033},{"$f":"IF('[1]MONE(M)CAPARD'!FV167=\"\",\"\",'[1]MONE(M)CAPARD'!FV167)","v":28.572835412974975},{"$f":"IF('[1]MONE(M)CARD'!FV167=\"\",\"\",'[1]MONE(M)CARD'!FV167)","v":395.10988930351067},{"$f":"IF('[1]MONE(M)CARD'!GD167=\"\",\"\",'[1]MONE(M)CARD'!GD167)","v":67.924691126758461},{"$f":"IF('[1]MONE(M)CARD'!GE167=\"\",\"\",'[1]MONE(M)CARD'!GE167)","v":3411.2859992904032},{"$f":"IF(AD160=\"\",\"\",((AD160/AD147)-1)*100)","v":7.7154098031247509},{"$f":"IF('[9]II.2.Balance OSD-Activos'!J25=\"\",\"\",'[9]II.2.Balance OSD-Activos'!J25)","v":177.43540599747263},{"$f":"IF('[9]II.2.Balance OSD-Activos'!N25=\"\",\"\",'[9]II.2.Balance OSD-Activos'!N25)","v":12.558367741518641},{"$f":"IF('[9]II.2.Balance OSD-Activos'!R25=\"\",\"\",'[9]II.2.Balance OSD-Activos'!R25)","v":12940.084225194569},{"$f":"IF('[9]II.2.Balance OSD-Activos'!S25=\"\",\"\",'[9]II.2.Balance OSD-Activos'!S25)","v":11859.801943819621},13117.519631192041,24989.879942753181,{"$f":"IF(OR(AF160=\"\",AF148=\"\"),\"\",((AF160/AF148)-1)*100)","v":9.1345628226704001},-0.93782243073377014,-18.368540895269092,-1.0630303507811134,2.1617096017652049,0.49843341435091837,{"$f":"IF(OR(AQ160=\"\",AQ159=\"\"),\"\",AQ160-AQ159)","v":-0.35061122160746638},{"$f":"IF('[1]MONE(M)CAPARD'!GS167=\"\",\"\",'[1]MONE(M)CAPARD'!GS167)","v":3743.6998102805424},{"$f":"IF('[1]MONE(M)CARD'!HA167=\"\",\"\",'[1]MONE(M)CAPARD'!HA167)","v":3579.0553072804032},{"$f":"IF('[1]MONE(M)CAPARD'!HB167=\"\",\"\",'[1]MONE(M)CAPARD'!HB167)","v":164.64450300013914},"n.d.",{"$f":"IF('[10]II.2.Balance OSD-Activos'!J25=\"\",\"\",'[10]II.2.Balance OSD-Activos'!J25)","v":966.67160705747244},{"$f":"IF('[10]II.2.Balance OSD-Activos'!N25=\"\",\"\",'[10]II.2.Balance OSD-Activos'!N25)","v":380.03246877151861},{"$f":"IF('[10]II.2.Balance OSD-Activos'!R25=\"\",\"\",'[10]II.2.Balance OSD-Activos'!R25)","v":17429.91946556457},{"$f":"IF('[10]II.2.Balance OSD-Activos'!S25=\"\",\"\",'[10]II.2.Balance OSD-Activos'!S25)","v":16353.188656039621},18396.591072622043,35129.812197433181,494.56726032913735,38.929189568108427,2370.2736511234452,33.265238706509436,40.868263943633565,41.276832864745259,-0.81877850235989769,{"$f":"IF('[1]MONE(M)CAPARD'!AS167=\"\",\"\",'[1]MONE(M)CAPARD'!AS167)","v":"n.d."},{"$f":"IF('[1]MONE(M)CAPARD'!AT167=\"\",\"\",'[1]MONE(M)CAPARD'!AT167)","v":"n.a."},{"$f":"IF('[1]MONE(M)CAPARD'!AU167=\"\",\"\",'[1]MONE(M)CAPARD'!AU167)","v":"n.d."},{"$f":"IF('[1]MONE(M)CAPARD'!AV167=\"\",\"\",'[1]MONE(M)CAPARD'!AV167)","v":"n.d."},{"$f":"IF('[1]MONE(M)CAPARD'!AW167=\"\",\"\",'[1]MONE(M)CAPARD'!AW167)","v":"n.a."},{"$f":"IF('[1]MONE(M)CAPARD'!AX167=\"\",\"\",'[1]MONE(M)CAPARD'!AX167)","v":"n.d."},{"$f":"IF('[1]MONE(M)CAPARD'!AY167=\"\",\"\",'[1]MONE(M)CAPARD'!AY167)","v":"n.a."},{"$f":"IF('[1]FISCAL(M)'!$K167=\"\",\"\",'[1]FISCAL(M)'!$K167)","v":-36.29785521236704},{"$f":"IF('[1]FISCAL(M)'!$L167=\"\",\"\",'[1]FISCAL(M)'!$L167)","v":72.186170927632929},{"$f":"IF('[1]FISCAL(M)'!$AY167=\"\",\"\",'[1]FISCAL(M)'!$AY167)","v":"n.d."},{"$f":"IF('[1]FISCAL(M)'!$BI167=\"\",\"\",'[1]FISCAL(M)'!$BI167)","v":"n.d."},{"$f":"IF('[1]FISCAL(M)'!$BS167=\"\",\"\",'[1]FISCAL(M)'!$BS167)","v":"n.d."},{"$f":"IF('[1]FISCAL(M)'!$AZ167=\"\",\"\",'[1]FISCAL(M)'!$AZ167)","v":"n.d."},{"$f":"IF('[1]FISCAL(M)'!$BJ167=\"\",\"\",'[1]FISCAL(M)'!$BJ167)","v":"n.d."},{"$f":"IF('[1]FISCAL(M)'!$BT167=\"\",\"\",'[1]FISCAL(M)'!$BT167)","v":"n.d."},{"$f":"IF('[2]MONE(M)'!$AO167=\"\",\"\",'[2]MONE(M)'!$AO167)","v":1943682.9997312583},{"$f":"IF('[3]MONE(M)'!$AO167=\"\",\"\",'[3]MONE(M)'!$AO167)","v":6045.6527428571426},{"$f":"IF('[4]MONE(M)'!$AO167=\"\",\"\",'[4]MONE(M)'!$AO167)","v":37562.021141400408},{"$f":"+'[5]MONE(M)'!$AO167","v":45788.79121983597},{"$f":"IF('[6]MONE(M)'!$AO167=\"\",\"\",'[6]MONE(M)'!$AO167)","v":11787.464581},{"$f":"IF('[7]MONE(M)'!$AO167=\"\",\"\",'[7]MONE(M)'!$AO167)","v":159568.44684996002},{"$f":"IF('[8]MONE(M)'!$AO167=\"\",\"\",'[8]MONE(M)'!$AO167)","v":9960.7984162399989},24.163440372082402,2.6310608472044361,4.1672496810659654,7.624744502123737,16.052587383380022,15.395570012904924,"n.d.",{"$f":"IF('[1]FISCAL(M)'!$K167=\"\",\"\",'[1]FISCAL(M)'!$K167)","v":-36.29785521236704},{"$f":"+'[1]REAL(A)'!$AO$23","v":87995.190722536106},-4.1249817080140652E-2,{"$f":"IF('[1]FISCAL(M)'!$L167=\"\",\"\",'[1]FISCAL(M)'!$L167)","v":72.186170927632929},{"$f":"+'[1]REAL(A)'!$AP$23","v":"n.d."},"n.d.","n.d.",{"$f":"'[1]Gráfico REM'!BG161","v":7220.1174980888536},{"$f":"'[1]Gráfico REM'!BH161","v":26290.805892405428},{"$f":"'[1]Gráfico REM'!BI161","v":912.25683565266479},"n.d.",6.1278577574908955,-0.33748838302734008,13.160054275698263,"n.d.",{"$f":"'[1]Gráfico REM'!BK161","v":7668.5322385608533},{"$f":"'[1]Gráfico REM'!BL161","v":36251.60430864543},{"$f":"'[1]Gráfico REM'!BM161","v":7833.0856596926651},"n.d.","n.d.","n.d.","n.d."]
[2003,"marzo","2003-marzo",{"$f":"IF('[1]REAL IPC(M)'!$AL168=\"\",\"\",+'[1]REAL IPC(M)'!$AL168)","v":9.157353082210351},{"$f":"IF('[1]REAL IPC(M)'!$BE168=\"\",\"\",+'[1]REAL IPC(M)'!$BE168)","v":10.999468052430728},{"$f":"IF('[1]REAL IPC(M)'!$AM168=\"\",\"\",+'[1]REAL IPC(M)'!$AM168)","v":8.357663220042145},{"$f":"IF('[1]REAL IPC(M)'!$BI168=\"\",\"\",+'[1]REAL IPC(M)'!$BI168)","v":10.01604473651696},{"$f":"IF('[1]REAL IMAE(M)'!BJ168=\"\",\"\",'[1]REAL IMAE(M)'!BJ168)","v":"n.d."},{"$f":"IF('[1]REAL IMAE(M)'!BK168=\"\",\"\",'[1]REAL IMAE(M)'!BK168)","v":"n.d."},{"$f":"IF('[1]REAL IMAE(M)'!BN168=\"\",\"\",'[1]REAL IMAE(M)'!BN168)","v":"n.d."},{"$f":"IF('[1]REAL IMAE(M)'!BO168=\"\",\"\",'[1]REAL IMAE(M)'!BO168)","v":"n.d."},{"$f":"IF('[1]EXT RIN(M)'!$K168=\"\",\"\",'[1]EXT RIN(M)'!$K168)","v":7924.6638087683677},"",{"$f":"IF('[1]EXT RIN(M)'!$L168=\"\",\"\",'[1]EXT RIN(M)'!$L168)","v":9372.4970008247274},"",{"$f":"IF('[1]MONE(M)CARD'!EG168=\"\",\"\",'[1]MONE(M)CARD'!EG168)","v":8420.8901880988597},{"$f":"IF('[1]MONE(M)CARD'!EK168=\"\",\"\",'[1]MONE(M)CARD'!EK168)","v":17968.563441081522},{"$f":"IF('[1]MONE(M)CARD'!EP168=\"\",\"\",'[1]MONE(M)CARD'!EP168)","v":8071.9461704009009},{"$f":"IF('[1]MONE(M)CARD'!ES168=\"\",\"\",'[1]MONE(M)CARD'!ES168)","v":-2.6795428029895985},{"$f":"IF('[1]MONE(M)CARD'!EV168=\"\",\"\",'[1]MONE(M)CARD'!EV168)","v":-3.6505954205130475},{"$f":"IF('[1]MONE(M)CARD'!EZ168=\"\",\"\",'[1]MONE(M)CARD'!EZ168)","v":0.64582984715182423},{"$f":"IF('[1]MONE(M)CAPARD'!FC168=\"\",\"\",'[1]MONE(M)CAPARD'!FC168)","v":9675.6683823888598},{"$f":"IF('[1]MONE(M)CAPARD'!FG168=\"\",\"\",'[1]MONE(M)CAPARD'!FG168)","v":26639.484972341525},{"$f":"IF('[1]MONE(M)CAPARD'!FL168=\"\",\"\",'[1]MONE(M)CAPARD'!FL168)","v":8071.9461704009009},{"$f":"IF('[1]MONE(M)CAPARD'!FO168=\"\",\"\",'[1]MONE(M)CAPARD'!FO168)","v":11.821962954884601},{"$f":"IF('[1]MONE(M)CAPARD'!FR168=\"\",\"\",'[1]MONE(M)CAPARD'!FR168)","v":32.58870199086055},{"$f":"IF('[1]MONE(M)CAPARD'!FV168=\"\",\"\",'[1]MONE(M)CAPARD'!FV168)","v":29.634213705655597},{"$f":"IF('[1]MONE(M)CARD'!FV168=\"\",\"\",'[1]MONE(M)CARD'!FV168)","v":386.49586821026685},{"$f":"IF('[1]MONE(M)CARD'!GD168=\"\",\"\",'[1]MONE(M)CARD'!GD168)","v":68.53882811318114},{"$f":"IF('[1]MONE(M)CARD'!GE168=\"\",\"\",'[1]MONE(M)CARD'!GE168)","v":3362.9452804045031},22.22511577368811,{"$f":"IF('[9]II.2.Balance OSD-Activos'!J26=\"\",\"\",'[9]II.2.Balance OSD-Activos'!J26)","v":184.30889377217636},{"$f":"IF('[9]II.2.Balance OSD-Activos'!N26=\"\",\"\",'[9]II.2.Balance OSD-Activos'!N26)","v":11.66562170848896},{"$f":"IF('[9]II.2.Balance OSD-Activos'!R26=\"\",\"\",'[9]II.2.Balance OSD-Activos'!R26)","v":13256.084363545557},{"$f":"IF('[9]II.2.Balance OSD-Activos'!S26=\"\",\"\",'[9]II.2.Balance OSD-Activos'!S26)","v":11889.146966609329},13440.393257317734,25341.205845635552,4.2316267738467639,0.24533648652194096,-23.911602454173263,0.19206022457072258,1.4194159663103445,0.77795791564778671,0.27952450129686834,{"$f":"IF('[1]MONE(M)CAPARD'!GS168=\"\",\"\",'[1]MONE(M)CAPARD'!GS168)","v":3775.9433620612999},{"$f":"IF('[1]MONE(M)CARD'!HA168=\"\",\"\",'[1]MONE(M)CAPARD'!HA168)","v":3531.401218934503},{"$f":"IF('[1]MONE(M)CAPARD'!HB168=\"\",\"\",'[1]MONE(M)CAPARD'!HB168)","v":244.54214312679687},"n.d.",{"$f":"IF('[10]II.2.Balance OSD-Activos'!J26=\"\",\"\",'[10]II.2.Balance OSD-Activos'!J26)","v":967.71317203217632},{"$f":"IF('[10]II.2.Balance OSD-Activos'!N26=\"\",\"\",'[10]II.2.Balance OSD-Activos'!N26)","v":377.83840821848889},{"$f":"IF('[10]II.2.Balance OSD-Activos'!R26=\"\",\"\",'[10]II.2.Balance OSD-Activos'!R26)","v":17769.334564825556},{"$f":"IF('[10]II.2.Balance OSD-Activos'!S26=\"\",\"\",'[10]II.2.Balance OSD-Activos'!S26)","v":16378.52356698933},18737.047736857734,35493.40971206555,447.2677748045827,39.750498306489,2364.4309348459583,34.304081812086885,39.715683490136698,41.151663106885472,-0.12516975785978701,{"$f":"IF('[1]MONE(M)CAPARD'!AS168=\"\",\"\",'[1]MONE(M)CAPARD'!AS168)","v":"n.d."},{"$f":"IF('[1]MONE(M)CAPARD'!AT168=\"\",\"\",'[1]MONE(M)CAPARD'!AT168)","v":"n.a."},{"$f":"IF('[1]MONE(M)CAPARD'!AU168=\"\",\"\",'[1]MONE(M)CAPARD'!AU168)","v":"n.d."},{"$f":"IF('[1]MONE(M)CAPARD'!AV168=\"\",\"\",'[1]MONE(M)CAPARD'!AV168)","v":"n.d."},{"$f":"IF('[1]MONE(M)CAPARD'!AW168=\"\",\"\",'[1]MONE(M)CAPARD'!AW168)","v":"n.a."},{"$f":"IF('[1]MONE(M)CAPARD'!AX168=\"\",\"\",'[1]MONE(M)CAPARD'!AX168)","v":"n.d."},{"$f":"IF('[1]MONE(M)CAPARD'!AY168=\"\",\"\",'[1]MONE(M)CAPARD'!AY168)","v":"n.a."},{"$f":"IF('[1]FISCAL(M)'!$K168=\"\",\"\",'[1]FISCAL(M)'!$K168)","v":-283.27285962072409},{"$f":"IF('[1]FISCAL(M)'!$L168=\"\",\"\",'[1]FISCAL(M)'!$L168)","v":-224.43536975072419},{"$f":"IF('[1]FISCAL(M)'!$AY168=\"\",\"\",'[1]FISCAL(M)'!$AY168)","v":"n.d."},{"$f":"IF('[1]FISCAL(M)'!$BI168=\"\",\"\",'[1]FISCAL(M)'!$BI168)","v":"n.d."},{"$f":"IF('[1]FISCAL(M)'!$BS168=\"\",\"\",'[1]FISCAL(M)'!$BS168)","v":"n.d."},{"$f":"IF('[1]FISCAL(M)'!$AZ168=\"\",\"\",'[1]FISCAL(M)'!$AZ168)","v":"n.d."},{"$f":"IF('[1]FISCAL(M)'!$BJ168=\"\",\"\",'[1]FISCAL(M)'!$BJ168)","v":"n.d."},{"$f":"IF('[1]FISCAL(M)'!$BT168=\"\",\"\",'[1]FISCAL(M)'!$BT168)","v":"n.d."},{"$f":"IF('[2]MONE(M)'!$AO168=\"\",\"\",'[2]MONE(M)'!$AO168)","v":1953315.3066062636},{"$f":"IF('[3]MONE(M)'!$AO168=\"\",\"\",'[3]MONE(M)'!$AO168)","v":6091.3517428571431},{"$f":"IF('[4]MONE(M)'!$AO168=\"\",\"\",'[4]MONE(M)'!$AO168)","v":38146.826167492778},{"$f":"+'[5]MONE(M)'!$AO168","v":46566.461801363112},{"$f":"IF('[6]MONE(M)'!$AO168=\"\",\"\",'[6]MONE(M)'!$AO168)","v":11753.310185},{"$f":"IF('[7]MONE(M)'!$AO168=\"\",\"\",'[7]MONE(M)'!$AO168)","v":170966.5583727},{"$f":"IF('[8]MONE(M)'!$AO168=\"\",\"\",'[8]MONE(M)'!$AO168)","v":9980.0307720099991},22.34195732278874,4.8204288113280924,6.3766576761445704,8.4761960556297247,18.431767869974248,21.293227525295855,"n.d.",{"$f":"IF('[1]FISCAL(M)'!$K168=\"\",\"\",'[1]FISCAL(M)'!$K168)","v":-283.27285962072409},{"$f":"+'[1]REAL(A)'!$AO$23","v":87995.190722536106},-0.32191856997495683,{"$f":"IF('[1]FISCAL(M)'!$L168=\"\",\"\",'[1]FISCAL(M)'!$L168)","v":-224.43536975072419},{"$f":"+'[1]REAL(A)'!$AP$23","v":"n.d."},"n.d.","n.d.",{"$f":"'[1]Gráfico REM'!BG162","v":7388.3055906613708},{"$f":"'[1]Gráfico REM'!BH162","v":26650.042799606294},{"$f":"'[1]Gráfico REM'!BI162","v":915.98419137350641},"n.d.",4.6025709105813162,0.42017952116566448,5.9569766600206187,"n.d.",{"$f":"'[1]Gráfico REM'!BK162","v":7819.2538490433708},{"$f":"'[1]Gráfico REM'!BL162","v":36630.073571616289},{"$f":"'[1]Gráfico REM'!BM162","v":7970.3741910735071},"n.d.","n.d.","n.d.","n.d."]
[2003,"abril","2003-abril",{"$f":"IF('[1]REAL IPC(M)'!$AL169=\"\",\"\",+'[1]REAL IPC(M)'!$AL169)","v":8.9890007075562828},{"$f":"IF('[1]REAL IPC(M)'!$BE169=\"\",\"\",+'[1]REAL IPC(M)'!$BE169)","v":11.205378117526799},{"$f":"IF('[1]REAL IPC(M)'!$AM169=\"\",\"\",+'[1]REAL IPC(M)'!$AM169)","v":8.2054360402956217},{"$f":"IF('[1]REAL IPC(M)'!$BI169=\"\",\"\",+'[1]REAL IPC(M)'!$BI169)","v":10.216756485951151},{"$f":"IF('[1]REAL IMAE(M)'!BJ169=\"\",\"\",'[1]REAL IMAE(M)'!BJ169)","v":"n.d."},{"$f":"IF('[1]REAL IMAE(M)'!BK169=\"\",\"\",'[1]REAL IMAE(M)'!BK169)","v":"n.d."},{"$f":"IF('[1]REAL IMAE(M)'!BN169=\"\",\"\",'[1]REAL IMAE(M)'!BN169)","v":"n.d."},{"$f":"IF('[1]REAL IMAE(M)'!BO169=\"\",\"\",'[1]REAL IMAE(M)'!BO169)","v":"n.d."},{"$f":"IF('[1]EXT RIN(M)'!$K169=\"\",\"\",'[1]EXT RIN(M)'!$K169)","v":7571.810839168661},"",{"$f":"IF('[1]EXT RIN(M)'!$L169=\"\",\"\",'[1]EXT RIN(M)'!$L169)","v":8952.3561764059505},"",{"$f":"IF('[1]MONE(M)CARD'!EG169=\"\",\"\",'[1]MONE(M)CARD'!EG169)","v":8940.4571611968568},{"$f":"IF('[1]MONE(M)CARD'!EK169=\"\",\"\",'[1]MONE(M)CARD'!EK169)","v":19219.09298514387},{"$f":"IF('[1]MONE(M)CARD'!EP169=\"\",\"\",'[1]MONE(M)CARD'!EP169)","v":8050.0194344972697},{"$f":"IF('[1]MONE(M)CARD'!ES169=\"\",\"\",'[1]MONE(M)CARD'!ES169)","v":4.9828213700416235},{"$f":"IF('[1]MONE(M)CARD'!EV169=\"\",\"\",'[1]MONE(M)CARD'!EV169)","v":4.0225952228036821},{"$f":"IF('[1]MONE(M)CARD'!EZ169=\"\",\"\",'[1]MONE(M)CARD'!EZ169)","v":6.6861797972836756},{"$f":"IF('[1]MONE(M)CAPARD'!FC169=\"\",\"\",'[1]MONE(M)CAPARD'!FC169)","v":10174.632989986856},{"$f":"IF('[1]MONE(M)CAPARD'!FG169=\"\",\"\",'[1]MONE(M)CAPARD'!FG169)","v":27901.729336653865},{"$f":"IF('[1]MONE(M)CAPARD'!FL169=\"\",\"\",'[1]MONE(M)CAPARD'!FL169)","v":8050.0194344972697},{"$f":"IF('[1]MONE(M)CAPARD'!FO169=\"\",\"\",'[1]MONE(M)CAPARD'!FO169)","v":19.475062453129421},{"$f":"IF('[1]MONE(M)CAPARD'!FR169=\"\",\"\",'[1]MONE(M)CAPARD'!FR169)","v":40.655727995557392},{"$f":"IF('[1]MONE(M)CAPARD'!FV169=\"\",\"\",'[1]MONE(M)CAPARD'!FV169)","v":35.904610712940332},{"$f":"IF('[1]MONE(M)CARD'!FV169=\"\",\"\",'[1]MONE(M)CARD'!FV169)","v":412.00534817235621},{"$f":"IF('[1]MONE(M)CARD'!GD169=\"\",\"\",'[1]MONE(M)CARD'!GD169)","v":107.24598381952663},{"$f":"IF('[1]MONE(M)CARD'!GE169=\"\",\"\",'[1]MONE(M)CARD'!GE169)","v":3274.4186181188925},1.0261213423783833,{"$f":"IF('[9]II.2.Balance OSD-Activos'!J27=\"\",\"\",'[9]II.2.Balance OSD-Activos'!J27)","v":170.24436253532284},{"$f":"IF('[9]II.2.Balance OSD-Activos'!N27=\"\",\"\",'[9]II.2.Balance OSD-Activos'!N27)","v":11.572374119933022},{"$f":"IF('[9]II.2.Balance OSD-Activos'!R27=\"\",\"\",'[9]II.2.Balance OSD-Activos'!R27)","v":13203.205262696212},{"$f":"IF('[9]II.2.Balance OSD-Activos'!S27=\"\",\"\",'[9]II.2.Balance OSD-Activos'!S27)","v":11979.966545857016},13373.449625231535,25364.988545208485,-5.6602415692126318,0.66235482103633725,81.248011371882868,0.74941841917439689,2.4078935721525196,1.5000591834938959,0.72210126784610917,{"$f":"IF('[1]MONE(M)CAPARD'!GS169=\"\",\"\",'[1]MONE(M)CAPARD'!GS169)","v":3857.9521794660686},{"$f":"IF('[1]MONE(M)CARD'!HA169=\"\",\"\",'[1]MONE(M)CAPARD'!HA169)","v":3498.8011728488927},{"$f":"IF('[1]MONE(M)CAPARD'!HB169=\"\",\"\",'[1]MONE(M)CAPARD'!HB169)","v":359.15100661717588},"n.d.",{"$f":"IF('[10]II.2.Balance OSD-Activos'!J27=\"\",\"\",'[10]II.2.Balance OSD-Activos'!J27)","v":984.14478694532283},{"$f":"IF('[10]II.2.Balance OSD-Activos'!N27=\"\",\"\",'[10]II.2.Balance OSD-Activos'!N27)","v":362.99428535993303},{"$f":"IF('[10]II.2.Balance OSD-Activos'!R27=\"\",\"\",'[10]II.2.Balance OSD-Activos'!R27)","v":17654.548323266212},{"$f":"IF('[10]II.2.Balance OSD-Activos'!S27=\"\",\"\",'[10]II.2.Balance OSD-Activos'!S27)","v":16489.025260507016},18638.693110211534,35490.712656078482,445.35715649366591,40.293999815925275,5585.2631689050877,34.71618751907959,40.952509134551882,42.018965576738943,0.86730246985347037,{"$f":"IF('[1]MONE(M)CAPARD'!AS169=\"\",\"\",'[1]MONE(M)CAPARD'!AS169)","v":"n.d."},{"$f":"IF('[1]MONE(M)CAPARD'!AT169=\"\",\"\",'[1]MONE(M)CAPARD'!AT169)","v":"n.a."},{"$f":"IF('[1]MONE(M)CAPARD'!AU169=\"\",\"\",'[1]MONE(M)CAPARD'!AU169)","v":"n.d."},{"$f":"IF('[1]MONE(M)CAPARD'!AV169=\"\",\"\",'[1]MONE(M)CAPARD'!AV169)","v":"n.d."},{"$f":"IF('[1]MONE(M)CAPARD'!AW169=\"\",\"\",'[1]MONE(M)CAPARD'!AW169)","v":"n.a."},{"$f":"IF('[1]MONE(M)CAPARD'!AX169=\"\",\"\",'[1]MONE(M)CAPARD'!AX169)","v":"n.d."},{"$f":"IF('[1]MONE(M)CAPARD'!AY169=\"\",\"\",'[1]MONE(M)CAPARD'!AY169)","v":"n.a."},{"$f":"IF('[1]FISCAL(M)'!$K169=\"\",\"\",'[1]FISCAL(M)'!$K169)","v":-245.24544325149634},{"$f":"IF('[1]FISCAL(M)'!$L169=\"\",\"\",'[1]FISCAL(M)'!$L169)","v":-270.4000950914965},{"$f":"IF('[1]FISCAL(M)'!$AY169=\"\",\"\",'[1]FISCAL(M)'!$AY169)","v":"n.d."},{"$f":"IF('[1]FISCAL(M)'!$BI169=\"\",\"\",'[1]FISCAL(M)'!$BI169)","v":"n.d."},{"$f":"IF('[1]FISCAL(M)'!$BS169=\"\",\"\",'[1]FISCAL(M)'!$BS169)","v":"n.d."},{"$f":"IF('[1]FISCAL(M)'!$AZ169=\"\",\"\",'[1]FISCAL(M)'!$AZ169)","v":"n.d."},{"$f":"IF('[1]FISCAL(M)'!$BJ169=\"\",\"\",'[1]FISCAL(M)'!$BJ169)","v":"n.d."},{"$f":"IF('[1]FISCAL(M)'!$BT169=\"\",\"\",'[1]FISCAL(M)'!$BT169)","v":"n.d."},{"$f":"IF('[2]MONE(M)'!$AO169=\"\",\"\",'[2]MONE(M)'!$AO169)","v":1966727.1879855446},{"$f":"IF('[3]MONE(M)'!$AO169=\"\",\"\",'[3]MONE(M)'!$AO169)","v":6142.4447428571439},{"$f":"IF('[4]MONE(M)'!$AO169=\"\",\"\",'[4]MONE(M)'!$AO169)","v":38032.85910167174},{"$f":"+'[5]MONE(M)'!$AO169","v":47008.551999850315},{"$f":"IF('[6]MONE(M)'!$AO169=\"\",\"\",'[6]MONE(M)'!$AO169)","v":11911.678702000001},{"$f":"IF('[7]MONE(M)'!$AO169=\"\",\"\",'[7]MONE(M)'!$AO169)","v":169902.86564636001},{"$f":"IF('[8]MONE(M)'!$AO169=\"\",\"\",'[8]MONE(M)'!$AO169)","v":9974.0501950399994},21.054761708404833,7.0596192452356821,6.1039308087579514,9.3584097272517486,21.714975624354892,21.022023134368652,"n.d.",{"$f":"IF('[1]FISCAL(M)'!$K169=\"\",\"\",'[1]FISCAL(M)'!$K169)","v":-245.24544325149634},{"$f":"+'[1]REAL(A)'!$AO$23","v":87995.190722536106},-0.27870323507201339,{"$f":"IF('[1]FISCAL(M)'!$L169=\"\",\"\",'[1]FISCAL(M)'!$L169)","v":-270.4000950914965},{"$f":"+'[1]REAL(A)'!$AP$23","v":"n.d."},"n.d.","n.d.",{"$f":"'[1]Gráfico REM'!BG163","v":8082.4887662434749},{"$f":"'[1]Gráfico REM'!BH163","v":26645.269816893109},{"$f":"'[1]Gráfico REM'!BI163","v":1035.0707734878345},"n.d.",13.550055751137435,1.3839408213347726,19.666810951827294,"n.d.",{"$f":"'[1]Gráfico REM'!BK163","v":8528.4317452854757},{"$f":"'[1]Gráfico REM'!BL163","v":36619.320011933109},{"$f":"'[1]Gráfico REM'!BM163","v":7764.8597508078328},"n.d.","n.d.","n.d.","n.d."]
[2003,"mayo ","2003-mayo ",{"$f":"IF('[1]REAL IPC(M)'!$AL170=\"\",\"\",+'[1]REAL IPC(M)'!$AL170)","v":9.3660589721595642},{"$f":"IF('[1]REAL IPC(M)'!$BE170=\"\",\"\",+'[1]REAL IPC(M)'!$BE170)","v":11.404650676210881},{"$f":"IF('[1]REAL IPC(M)'!$AM170=\"\",\"\",+'[1]REAL IPC(M)'!$AM170)","v":8.5438503570097968},{"$f":"IF('[1]REAL IPC(M)'!$BI170=\"\",\"\",+'[1]REAL IPC(M)'!$BI170)","v":10.412146217909669},{"$f":"IF('[1]REAL IMAE(M)'!BJ170=\"\",\"\",'[1]REAL IMAE(M)'!BJ170)","v":"n.d."},{"$f":"IF('[1]REAL IMAE(M)'!BK170=\"\",\"\",'[1]REAL IMAE(M)'!BK170)","v":"n.d."},{"$f":"IF('[1]REAL IMAE(M)'!BN170=\"\",\"\",'[1]REAL IMAE(M)'!BN170)","v":"n.d."},{"$f":"IF('[1]REAL IMAE(M)'!BO170=\"\",\"\",'[1]REAL IMAE(M)'!BO170)","v":"n.d."},{"$f":"IF('[1]EXT RIN(M)'!$K170=\"\",\"\",'[1]EXT RIN(M)'!$K170)","v":7628.0775964053664},"",{"$f":"IF('[1]EXT RIN(M)'!$L170=\"\",\"\",'[1]EXT RIN(M)'!$L170)","v":8938.3776070529166},"",{"$f":"IF('[1]MONE(M)CARD'!EG170=\"\",\"\",'[1]MONE(M)CARD'!EG170)","v":8620.4499703732126},{"$f":"IF('[1]MONE(M)CARD'!EK170=\"\",\"\",'[1]MONE(M)CARD'!EK170)","v":18715.324593245619},{"$f":"IF('[1]MONE(M)CARD'!EP170=\"\",\"\",'[1]MONE(M)CARD'!EP170)","v":7934.2984578906398},{"$f":"IF('[1]MONE(M)CARD'!ES170=\"\",\"\",'[1]MONE(M)CARD'!ES170)","v":4.9382874790497189},{"$f":"IF('[1]MONE(M)CARD'!EV170=\"\",\"\",'[1]MONE(M)CARD'!EV170)","v":2.1278719047904904},{"$f":"IF('[1]MONE(M)CARD'!EZ170=\"\",\"\",'[1]MONE(M)CARD'!EZ170)","v":4.5025875886801181},{"$f":"IF('[1]MONE(M)CAPARD'!FC170=\"\",\"\",'[1]MONE(M)CAPARD'!FC170)","v":9888.1194244632134},{"$f":"IF('[1]MONE(M)CAPARD'!FG170=\"\",\"\",'[1]MONE(M)CAPARD'!FG170)","v":27411.458786525625},{"$f":"IF('[1]MONE(M)CAPARD'!FL170=\"\",\"\",'[1]MONE(M)CAPARD'!FL170)","v":7934.2984578906471},{"$f":"IF('[1]MONE(M)CAPARD'!FO170=\"\",\"\",'[1]MONE(M)CAPARD'!FO170)","v":20.369855675477332},{"$f":"IF('[1]MONE(M)CAPARD'!FR170=\"\",\"\",'[1]MONE(M)CAPARD'!FR170)","v":39.353159237141689},{"$f":"IF('[1]MONE(M)CAPARD'!FV170=\"\",\"\",'[1]MONE(M)CAPARD'!FV170)","v":34.024592341567718},{"$f":"IF('[1]MONE(M)CARD'!FV170=\"\",\"\",'[1]MONE(M)CARD'!FV170)","v":455.24308560453773},{"$f":"IF('[1]MONE(M)CARD'!GD170=\"\",\"\",'[1]MONE(M)CARD'!GD170)","v":59.025937925335867},{"$f":"IF('[1]MONE(M)CARD'!GE170=\"\",\"\",'[1]MONE(M)CARD'!GE170)","v":3166.9719678238966},-9.5701181982266625,{"$f":"IF('[9]II.2.Balance OSD-Activos'!J28=\"\",\"\",'[9]II.2.Balance OSD-Activos'!J28)","v":174.26282580845609},{"$f":"IF('[9]II.2.Balance OSD-Activos'!N28=\"\",\"\",'[9]II.2.Balance OSD-Activos'!N28)","v":12.494011696936628},{"$f":"IF('[9]II.2.Balance OSD-Activos'!R28=\"\",\"\",'[9]II.2.Balance OSD-Activos'!R28)","v":12946.312792958548},{"$f":"IF('[9]II.2.Balance OSD-Activos'!S28=\"\",\"\",'[9]II.2.Balance OSD-Activos'!S28)","v":11680.141195674589},13120.575618767005,24813.210826138529,13.62216091453079,-1.9501080541953875,56.25646390750083,-2.1306566780439629,-5.6721517088687001E-3,-1.0255895142060045,-2.5256486976999004,{"$f":"IF('[1]MONE(M)CAPARD'!GS170=\"\",\"\",'[1]MONE(M)CAPARD'!GS170)","v":3844.5850527294383},{"$f":"IF('[1]MONE(M)CARD'!HA170=\"\",\"\",'[1]MONE(M)CAPARD'!HA170)","v":3391.2522599838962},{"$f":"IF('[1]MONE(M)CAPARD'!HB170=\"\",\"\",'[1]MONE(M)CAPARD'!HB170)","v":453.33279274554206},"n.d.",{"$f":"IF('[10]II.2.Balance OSD-Activos'!J28=\"\",\"\",'[10]II.2.Balance OSD-Activos'!J28)","v":990.13780219845592},{"$f":"IF('[10]II.2.Balance OSD-Activos'!N28=\"\",\"\",'[10]II.2.Balance OSD-Activos'!N28)","v":343.84930158693663},{"$f":"IF('[10]II.2.Balance OSD-Activos'!R28=\"\",\"\",'[10]II.2.Balance OSD-Activos'!R28)","v":17380.839591638549},{"$f":"IF('[10]II.2.Balance OSD-Activos'!S28=\"\",\"\",'[10]II.2.Balance OSD-Activos'!S28)","v":16215.77621772459},18370.977393837005,34930.602913148527,545.58574766032336,37.28607652152769,4200.3542245932194,31.392728139792435,38.824147436689096,39.330450035927676,-2.6885155408112666,{"$f":"IF('[1]MONE(M)CAPARD'!AS170=\"\",\"\",'[1]MONE(M)CAPARD'!AS170)","v":"n.d."},{"$f":"IF('[1]MONE(M)CAPARD'!AT170=\"\",\"\",'[1]MONE(M)CAPARD'!AT170)","v":"n.a."},{"$f":"IF('[1]MONE(M)CAPARD'!AU170=\"\",\"\",'[1]MONE(M)CAPARD'!AU170)","v":"n.d."},{"$f":"IF('[1]MONE(M)CAPARD'!AV170=\"\",\"\",'[1]MONE(M)CAPARD'!AV170)","v":"n.d."},{"$f":"IF('[1]MONE(M)CAPARD'!AW170=\"\",\"\",'[1]MONE(M)CAPARD'!AW170)","v":"n.a."},{"$f":"IF('[1]MONE(M)CAPARD'!AX170=\"\",\"\",'[1]MONE(M)CAPARD'!AX170)","v":"n.d."},{"$f":"IF('[1]MONE(M)CAPARD'!AY170=\"\",\"\",'[1]MONE(M)CAPARD'!AY170)","v":"n.a."},{"$f":"IF('[1]FISCAL(M)'!$K170=\"\",\"\",'[1]FISCAL(M)'!$K170)","v":-400.98814242022939},{"$f":"IF('[1]FISCAL(M)'!$L170=\"\",\"\",'[1]FISCAL(M)'!$L170)","v":-458.04990963022959},{"$f":"IF('[1]FISCAL(M)'!$AY170=\"\",\"\",'[1]FISCAL(M)'!$AY170)","v":"n.d."},{"$f":"IF('[1]FISCAL(M)'!$BI170=\"\",\"\",'[1]FISCAL(M)'!$BI170)","v":"n.d."},{"$f":"IF('[1]FISCAL(M)'!$BS170=\"\",\"\",'[1]FISCAL(M)'!$BS170)","v":"n.d."},{"$f":"IF('[1]FISCAL(M)'!$AZ170=\"\",\"\",'[1]FISCAL(M)'!$AZ170)","v":"n.d."},{"$f":"IF('[1]FISCAL(M)'!$BJ170=\"\",\"\",'[1]FISCAL(M)'!$BJ170)","v":"n.d."},{"$f":"IF('[1]FISCAL(M)'!$BT170=\"\",\"\",'[1]FISCAL(M)'!$BT170)","v":"n.d."},{"$f":"IF('[2]MONE(M)'!$AO170=\"\",\"\",'[2]MONE(M)'!$AO170)","v":1985439.6547130526},{"$f":"IF('[3]MONE(M)'!$AO170=\"\",\"\",'[3]MONE(M)'!$AO170)","v":6141.6707428571426},{"$f":"IF('[4]MONE(M)'!$AO170=\"\",\"\",'[4]MONE(M)'!$AO170)","v":38542.270371465063},{"$f":"+'[5]MONE(M)'!$AO170","v":47210.578546490782},{"$f":"IF('[6]MONE(M)'!$AO170=\"\",\"\",'[6]MONE(M)'!$AO170)","v":12014.256410999998},{"$f":"IF('[7]MONE(M)'!$AO170=\"\",\"\",'[7]MONE(M)'!$AO170)","v":180805.81584694001},{"$f":"IF('[8]MONE(M)'!$AO170=\"\",\"\",'[8]MONE(M)'!$AO170)","v":9979.2638480599999},19.998901065289566,6.7676630224161816,7.5498995543784142,10.671218011526996,19.699076520205992,28.09745187709305,"n.d.",{"$f":"IF('[1]FISCAL(M)'!$K170=\"\",\"\",'[1]FISCAL(M)'!$K170)","v":-400.98814242022939},{"$f":"+'[1]REAL(A)'!$AO$23","v":87995.190722536106},-0.45569324769647201,{"$f":"IF('[1]FISCAL(M)'!$L170=\"\",\"\",'[1]FISCAL(M)'!$L170)","v":-458.04990963022959},{"$f":"+'[1]REAL(A)'!$AP$23","v":"n.d."},"n.d.","n.d.",{"$f":"'[1]Gráfico REM'!BG164","v":7949.2360211884297},{"$f":"'[1]Gráfico REM'!BH164","v":26046.500542324382},{"$f":"'[1]Gráfico REM'!BI164","v":1049.6723240153055},"n.d.",16.35378425580334,-1.0661333846794685,11.629687840039082,"n.d.",{"$f":"'[1]Gráfico REM'!BK164","v":8402.3412661604289},{"$f":"'[1]Gráfico REM'!BL164","v":36025.764390384385},{"$f":"'[1]Gráfico REM'!BM164","v":7591.1924008653059},"n.d.","n.d.","n.d.","n.d."]
[2003,"junio ","2003-junio ",{"$f":"IF('[1]REAL IPC(M)'!$AL171=\"\",\"\",+'[1]REAL IPC(M)'!$AL171)","v":10.690943891236504},{"$f":"IF('[1]REAL IPC(M)'!$BE171=\"\",\"\",+'[1]REAL IPC(M)'!$BE171)","v":11.595256686326971},{"$f":"IF('[1]REAL IPC(M)'!$AM171=\"\",\"\",+'[1]REAL IPC(M)'!$AM171)","v":9.7430999136400196},{"$f":"IF('[1]REAL IPC(M)'!$BI171=\"\",\"\",+'[1]REAL IPC(M)'!$BI171)","v":10.600208996893755},{"$f":"IF('[1]REAL IMAE(M)'!BJ171=\"\",\"\",'[1]REAL IMAE(M)'!BJ171)","v":"n.d."},{"$f":"IF('[1]REAL IMAE(M)'!BK171=\"\",\"\",'[1]REAL IMAE(M)'!BK171)","v":"n.d."},{"$f":"IF('[1]REAL IMAE(M)'!BN171=\"\",\"\",'[1]REAL IMAE(M)'!BN171)","v":"n.d."},{"$f":"IF('[1]REAL IMAE(M)'!BO171=\"\",\"\",'[1]REAL IMAE(M)'!BO171)","v":"n.d."},{"$f":"IF('[1]EXT RIN(M)'!$K171=\"\",\"\",'[1]EXT RIN(M)'!$K171)","v":7813.3999860276135},"",{"$f":"IF('[1]EXT RIN(M)'!$L171=\"\",\"\",'[1]EXT RIN(M)'!$L171)","v":9064.493008427793},"",{"$f":"IF('[1]MONE(M)CARD'!EG171=\"\",\"\",'[1]MONE(M)CARD'!EG171)","v":8843.0500072521318},{"$f":"IF('[1]MONE(M)CARD'!EK171=\"\",\"\",'[1]MONE(M)CARD'!EK171)","v":18963.063979168401},{"$f":"IF('[1]MONE(M)CARD'!EP171=\"\",\"\",'[1]MONE(M)CARD'!EP171)","v":7840.1065104549562},{"$f":"IF('[1]MONE(M)CARD'!ES171=\"\",\"\",'[1]MONE(M)CARD'!ES171)","v":9.3176164680953697},{"$f":"IF('[1]MONE(M)CARD'!EV171=\"\",\"\",'[1]MONE(M)CARD'!EV171)","v":3.5829348713490417},{"$f":"IF('[1]MONE(M)CARD'!EZ171=\"\",\"\",'[1]MONE(M)CARD'!EZ171)","v":5.3742518005513773},{"$f":"IF('[1]MONE(M)CAPARD'!FC171=\"\",\"\",'[1]MONE(M)CAPARD'!FC171)","v":10103.17353495213},{"$f":"IF('[1]MONE(M)CAPARD'!FG171=\"\",\"\",'[1]MONE(M)CAPARD'!FG171)","v":27630.594419388402},{"$f":"IF('[1]MONE(M)CAPARD'!FL171=\"\",\"\",'[1]MONE(M)CAPARD'!FL171)","v":7840.1065104549562},{"$f":"IF('[1]MONE(M)CAPARD'!FO171=\"\",\"\",'[1]MONE(M)CAPARD'!FO171)","v":24.89523961741158},{"$f":"IF('[1]MONE(M)CAPARD'!FR171=\"\",\"\",'[1]MONE(M)CAPARD'!FR171)","v":40.565288280622561},{"$f":"IF('[1]MONE(M)CAPARD'!FV171=\"\",\"\",'[1]MONE(M)CAPARD'!FV171)","v":34.721517637501506},{"$f":"IF('[1]MONE(M)CARD'!FV171=\"\",\"\",'[1]MONE(M)CARD'!FV171)","v":409.14492938892283},{"$f":"IF('[1]MONE(M)CARD'!GD171=\"\",\"\",'[1]MONE(M)CARD'!GD171)","v":66.723842001478801},{"$f":"IF('[1]MONE(M)CARD'!GE171=\"\",\"\",'[1]MONE(M)CARD'!GE171)","v":3249.944625679133},-3.0257978016667075,{"$f":"IF('[9]II.2.Balance OSD-Activos'!J29=\"\",\"\",'[9]II.2.Balance OSD-Activos'!J29)","v":189.48777234265307},{"$f":"IF('[9]II.2.Balance OSD-Activos'!N29=\"\",\"\",'[9]II.2.Balance OSD-Activos'!N29)","v":11.405626186707273},{"$f":"IF('[9]II.2.Balance OSD-Activos'!R29=\"\",\"\",'[9]II.2.Balance OSD-Activos'!R29)","v":12707.072596102076},{"$f":"IF('[9]II.2.Balance OSD-Activos'!S29=\"\",\"\",'[9]II.2.Balance OSD-Activos'!S29)","v":11721.586917804385},12896.560368444729,24629.552912435822,24.801885695719527,-4.5968761087186394,1952.2366871526087,-4.9308275213244324,-0.76412805240375636,-2.7666867100288539,-1.7410971958228494,{"$f":"IF('[1]MONE(M)CAPARD'!GS171=\"\",\"\",'[1]MONE(M)CAPARD'!GS171)","v":3838.6760125223964},{"$f":"IF('[1]MONE(M)CARD'!HA171=\"\",\"\",'[1]MONE(M)CAPARD'!HA171)","v":3475.2135844491331},{"$f":"IF('[1]MONE(M)CAPARD'!HB171=\"\",\"\",'[1]MONE(M)CAPARD'!HB171)","v":363.46242807326325},"n.d.",{"$f":"IF('[10]II.2.Balance OSD-Activos'!J29=\"\",\"\",'[10]II.2.Balance OSD-Activos'!J29)","v":1023.6309263526531},{"$f":"IF('[10]II.2.Balance OSD-Activos'!N29=\"\",\"\",'[10]II.2.Balance OSD-Activos'!N29)","v":353.32519433670723},{"$f":"IF('[10]II.2.Balance OSD-Activos'!R29=\"\",\"\",'[10]II.2.Balance OSD-Activos'!R29)","v":17131.789652872078},{"$f":"IF('[10]II.2.Balance OSD-Activos'!S29=\"\",\"\",'[10]II.2.Balance OSD-Activos'!S29)","v":16281.176845494385},18155.42057922473,34789.922619055826,574.19162875720269,34.305876088957362,63474.495116997095,28.173114071678018,37.837717019487684,37.344736113521314,-1.9857139224063616,{"$f":"IF('[1]MONE(M)CAPARD'!AS171=\"\",\"\",'[1]MONE(M)CAPARD'!AS171)","v":"n.d."},{"$f":"IF('[1]MONE(M)CAPARD'!AT171=\"\",\"\",'[1]MONE(M)CAPARD'!AT171)","v":"n.a."},{"$f":"IF('[1]MONE(M)CAPARD'!AU171=\"\",\"\",'[1]MONE(M)CAPARD'!AU171)","v":"n.d."},{"$f":"IF('[1]MONE(M)CAPARD'!AV171=\"\",\"\",'[1]MONE(M)CAPARD'!AV171)","v":"n.d."},{"$f":"IF('[1]MONE(M)CAPARD'!AW171=\"\",\"\",'[1]MONE(M)CAPARD'!AW171)","v":"n.a."},{"$f":"IF('[1]MONE(M)CAPARD'!AX171=\"\",\"\",'[1]MONE(M)CAPARD'!AX171)","v":"n.d."},{"$f":"IF('[1]MONE(M)CAPARD'!AY171=\"\",\"\",'[1]MONE(M)CAPARD'!AY171)","v":"n.a."},{"$f":"IF('[1]FISCAL(M)'!$K171=\"\",\"\",'[1]FISCAL(M)'!$K171)","v":-730.48956258168459},{"$f":"IF('[1]FISCAL(M)'!$L171=\"\",\"\",'[1]FISCAL(M)'!$L171)","v":-760.45859779168495},{"$f":"IF('[1]FISCAL(M)'!$AY171=\"\",\"\",'[1]FISCAL(M)'!$AY171)","v":"n.d."},{"$f":"IF('[1]FISCAL(M)'!$BI171=\"\",\"\",'[1]FISCAL(M)'!$BI171)","v":"n.d."},{"$f":"IF('[1]FISCAL(M)'!$BS171=\"\",\"\",'[1]FISCAL(M)'!$BS171)","v":"n.d."},{"$f":"IF('[1]FISCAL(M)'!$AZ171=\"\",\"\",'[1]FISCAL(M)'!$AZ171)","v":"n.d."},{"$f":"IF('[1]FISCAL(M)'!$BJ171=\"\",\"\",'[1]FISCAL(M)'!$BJ171)","v":"n.d."},{"$f":"IF('[1]FISCAL(M)'!$BT171=\"\",\"\",'[1]FISCAL(M)'!$BT171)","v":"n.d."},{"$f":"IF('[2]MONE(M)'!$AO171=\"\",\"\",'[2]MONE(M)'!$AO171)","v":1998030.5642120999},{"$f":"IF('[3]MONE(M)'!$AO171=\"\",\"\",'[3]MONE(M)'!$AO171)","v":6186.051742857142},{"$f":"IF('[4]MONE(M)'!$AO171=\"\",\"\",'[4]MONE(M)'!$AO171)","v":38346.304910672923},{"$f":"+'[5]MONE(M)'!$AO171","v":47538.801702526427},{"$f":"IF('[6]MONE(M)'!$AO171=\"\",\"\",'[6]MONE(M)'!$AO171)","v":12226.691024},{"$f":"IF('[7]MONE(M)'!$AO171=\"\",\"\",'[7]MONE(M)'!$AO171)","v":193984.12053185},{"$f":"IF('[8]MONE(M)'!$AO171=\"\",\"\",'[8]MONE(M)'!$AO171)","v":10011.83390279},17.536565853873775,6.9581522899829773,5.2102298630555266,12.289096982609159,22.777963131517588,32.716896743169357,"n.d.",{"$f":"IF('[1]FISCAL(M)'!$K171=\"\",\"\",'[1]FISCAL(M)'!$K171)","v":-730.48956258168459},{"$f":"+'[1]REAL(A)'!$AO$23","v":87995.190722536106},-0.83014714393317601,{"$f":"IF('[1]FISCAL(M)'!$L171=\"\",\"\",'[1]FISCAL(M)'!$L171)","v":-760.45859779168495},{"$f":"+'[1]REAL(A)'!$AP$23","v":"n.d."},"n.d.","n.d.",{"$f":"'[1]Gráfico REM'!BG165","v":7901.3010483531034},{"$f":"'[1]Gráfico REM'!BH165","v":25859.961965965398},{"$f":"'[1]Gráfico REM'!BI165","v":1169.6838687733552},"n.d.",13.410546307569371,-3.2416724404438879,25.061454323023668,"n.d.",{"$f":"'[1]Gráfico REM'!BK165","v":8342.3016350051039},{"$f":"'[1]Gráfico REM'!BL165","v":35871.795868755398},{"$f":"'[1]Gráfico REM'!BM165","v":7708.1003401533553},"n.d.","n.d.","n.d.","n.d."]
[2003,"julio","2003-julio",{"$f":"IF('[1]REAL IPC(M)'!$AL172=\"\",\"\",+'[1]REAL IPC(M)'!$AL172)","v":11.268777656777162},{"$f":"IF('[1]REAL IPC(M)'!$BE172=\"\",\"\",+'[1]REAL IPC(M)'!$BE172)","v":11.775124024544503},{"$f":"IF('[1]REAL IPC(M)'!$AM172=\"\",\"\",+'[1]REAL IPC(M)'!$AM172)","v":10.258483349976411},{"$f":"IF('[1]REAL IPC(M)'!$BI172=\"\",\"\",+'[1]REAL IPC(M)'!$BI172)","v":10.77887981451482},{"$f":"IF('[1]REAL IMAE(M)'!BJ172=\"\",\"\",'[1]REAL IMAE(M)'!BJ172)","v":"n.d."},{"$f":"IF('[1]REAL IMAE(M)'!BK172=\"\",\"\",'[1]REAL IMAE(M)'!BK172)","v":"n.d."},{"$f":"IF('[1]REAL IMAE(M)'!BN172=\"\",\"\",'[1]REAL IMAE(M)'!BN172)","v":"n.d."},{"$f":"IF('[1]REAL IMAE(M)'!BO172=\"\",\"\",'[1]REAL IMAE(M)'!BO172)","v":"n.d."},{"$f":"IF('[1]EXT RIN(M)'!$K172=\"\",\"\",'[1]EXT RIN(M)'!$K172)","v":7650.0005756941255},"",{"$f":"IF('[1]EXT RIN(M)'!$L172=\"\",\"\",'[1]EXT RIN(M)'!$L172)","v":8919.3132505869762},"",{"$f":"IF('[1]MONE(M)CARD'!EG172=\"\",\"\",'[1]MONE(M)CARD'!EG172)","v":8651.1479836304788},{"$f":"IF('[1]MONE(M)CARD'!EK172=\"\",\"\",'[1]MONE(M)CARD'!EK172)","v":18617.07573065973},{"$f":"IF('[1]MONE(M)CARD'!EP172=\"\",\"\",'[1]MONE(M)CARD'!EP172)","v":7865.8025904189053},{"$f":"IF('[1]MONE(M)CARD'!ES172=\"\",\"\",'[1]MONE(M)CARD'!ES172)","v":5.3258499947978377},{"$f":"IF('[1]MONE(M)CARD'!EV172=\"\",\"\",'[1]MONE(M)CARD'!EV172)","v":0.94827949692397606},{"$f":"IF('[1]MONE(M)CARD'!EZ172=\"\",\"\",'[1]MONE(M)CARD'!EZ172)","v":3.219464476014644},{"$f":"IF('[1]MONE(M)CAPARD'!FC172=\"\",\"\",'[1]MONE(M)CAPARD'!FC172)","v":9876.1982601704804},{"$f":"IF('[1]MONE(M)CAPARD'!FG172=\"\",\"\",'[1]MONE(M)CAPARD'!FG172)","v":27366.868382469729},{"$f":"IF('[1]MONE(M)CAPARD'!FL172=\"\",\"\",'[1]MONE(M)CAPARD'!FL172)","v":7865.8025904189053},{"$f":"IF('[1]MONE(M)CAPARD'!FO172=\"\",\"\",'[1]MONE(M)CAPARD'!FO172)","v":20.240571359764026},{"$f":"IF('[1]MONE(M)CAPARD'!FR172=\"\",\"\",'[1]MONE(M)CAPARD'!FR172)","v":37.875629162949039},{"$f":"IF('[1]MONE(M)CAPARD'!FV172=\"\",\"\",'[1]MONE(M)CAPARD'!FV172)","v":32.524330828854175},{"$f":"IF('[1]MONE(M)CARD'!FV172=\"\",\"\",'[1]MONE(M)CARD'!FV172)","v":396.87488498760138},{"$f":"IF('[1]MONE(M)CARD'!GD172=\"\",\"\",'[1]MONE(M)CARD'!GD172)","v":36.097255333868446},{"$f":"IF('[1]MONE(M)CARD'!GE172=\"\",\"\",'[1]MONE(M)CARD'!GE172)","v":3150.1729945901025},-2.3855570035695162,{"$f":"IF('[9]II.2.Balance OSD-Activos'!J30=\"\",\"\",'[9]II.2.Balance OSD-Activos'!J30)","v":164.26802810462885},{"$f":"IF('[9]II.2.Balance OSD-Activos'!N30=\"\",\"\",'[9]II.2.Balance OSD-Activos'!N30)","v":12.710280309837836},{"$f":"IF('[9]II.2.Balance OSD-Activos'!R30=\"\",\"\",'[9]II.2.Balance OSD-Activos'!R30)","v":12280.319667025882},{"$f":"IF('[9]II.2.Balance OSD-Activos'!S30=\"\",\"\",'[9]II.2.Balance OSD-Activos'!S30)","v":11634.157927280159},12444.587695130511,24091.45590272051,-0.7309633916180891,-6.9202451927831587,461.83169039166467,-6.9978096929678602,-3.4509230667535418,-5.2340816001111286,-2.4673948900822746,{"$f":"IF('[1]MONE(M)CAPARD'!GS172=\"\",\"\",'[1]MONE(M)CAPARD'!GS172)","v":3886.4087938799812},{"$f":"IF('[1]MONE(M)CARD'!HA172=\"\",\"\",'[1]MONE(M)CAPARD'!HA172)","v":3367.4074665001026},{"$f":"IF('[1]MONE(M)CAPARD'!HB172=\"\",\"\",'[1]MONE(M)CAPARD'!HB172)","v":519.0013273798786},"n.d.",{"$f":"IF('[10]II.2.Balance OSD-Activos'!J30=\"\",\"\",'[10]II.2.Balance OSD-Activos'!J30)","v":972.90662069462894},{"$f":"IF('[10]II.2.Balance OSD-Activos'!N30=\"\",\"\",'[10]II.2.Balance OSD-Activos'!N30)","v":384.87381311983785},{"$f":"IF('[10]II.2.Balance OSD-Activos'!R30=\"\",\"\",'[10]II.2.Balance OSD-Activos'!R30)","v":16710.977214675884},{"$f":"IF('[10]II.2.Balance OSD-Activos'!S30=\"\",\"\",'[10]II.2.Balance OSD-Activos'!S30)","v":16212.473981860157},17683.883835370514,34281.231630350507,487.93852985656417,32.267264433330077,16912.552024146742,26.556761165498166,34.543420120033531,34.848321846859776,-2.4964142666615388,{"$f":"IF('[1]MONE(M)CAPARD'!AS172=\"\",\"\",'[1]MONE(M)CAPARD'!AS172)","v":"n.d."},{"$f":"IF('[1]MONE(M)CAPARD'!AT172=\"\",\"\",'[1]MONE(M)CAPARD'!AT172)","v":"n.a."},{"$f":"IF('[1]MONE(M)CAPARD'!AU172=\"\",\"\",'[1]MONE(M)CAPARD'!AU172)","v":"n.d."},{"$f":"IF('[1]MONE(M)CAPARD'!AV172=\"\",\"\",'[1]MONE(M)CAPARD'!AV172)","v":"n.d."},{"$f":"IF('[1]MONE(M)CAPARD'!AW172=\"\",\"\",'[1]MONE(M)CAPARD'!AW172)","v":"n.a."},{"$f":"IF('[1]MONE(M)CAPARD'!AX172=\"\",\"\",'[1]MONE(M)CAPARD'!AX172)","v":"n.d."},{"$f":"IF('[1]MONE(M)CAPARD'!AY172=\"\",\"\",'[1]MONE(M)CAPARD'!AY172)","v":"n.a."},{"$f":"IF('[1]FISCAL(M)'!$K172=\"\",\"\",'[1]FISCAL(M)'!$K172)","v":-1206.9675415556133},{"$f":"IF('[1]FISCAL(M)'!$L172=\"\",\"\",'[1]FISCAL(M)'!$L172)","v":-1421.1726923156136},{"$f":"IF('[1]FISCAL(M)'!$AY172=\"\",\"\",'[1]FISCAL(M)'!$AY172)","v":"n.d."},{"$f":"IF('[1]FISCAL(M)'!$BI172=\"\",\"\",'[1]FISCAL(M)'!$BI172)","v":"n.d."},{"$f":"IF('[1]FISCAL(M)'!$BS172=\"\",\"\",'[1]FISCAL(M)'!$BS172)","v":"n.d."},{"$f":"IF('[1]FISCAL(M)'!$AZ172=\"\",\"\",'[1]FISCAL(M)'!$AZ172)","v":"n.d."},{"$f":"IF('[1]FISCAL(M)'!$BJ172=\"\",\"\",'[1]FISCAL(M)'!$BJ172)","v":"n.d."},{"$f":"IF('[1]FISCAL(M)'!$BT172=\"\",\"\",'[1]FISCAL(M)'!$BT172)","v":"n.d."},{"$f":"IF('[2]MONE(M)'!$AO172=\"\",\"\",'[2]MONE(M)'!$AO172)","v":2029534.6683925537},{"$f":"IF('[3]MONE(M)'!$AO172=\"\",\"\",'[3]MONE(M)'!$AO172)","v":6222.6887428571426},{"$f":"IF('[4]MONE(M)'!$AO172=\"\",\"\",'[4]MONE(M)'!$AO172)","v":38154.617088068444},{"$f":"+'[5]MONE(M)'!$AO172","v":48027.698329458064},{"$f":"IF('[6]MONE(M)'!$AO172=\"\",\"\",'[6]MONE(M)'!$AO172)","v":12599.967671},{"$f":"IF('[7]MONE(M)'!$AO172=\"\",\"\",'[7]MONE(M)'!$AO172)","v":197515.72991003998},{"$f":"IF('[8]MONE(M)'!$AO172=\"\",\"\",'[8]MONE(M)'!$AO172)","v":10045.76826959},18.269539431556382,7.5591431039838897,4.6669888491225331,12.154026109536531,24.409880852049646,35.978471604020392,"n.d.",{"$f":"IF('[1]FISCAL(M)'!$K172=\"\",\"\",'[1]FISCAL(M)'!$K172)","v":-1206.9675415556133},{"$f":"+'[1]REAL(A)'!$AO$23","v":87995.190722536106},-1.3716289852264636,{"$f":"IF('[1]FISCAL(M)'!$L172=\"\",\"\",'[1]FISCAL(M)'!$L172)","v":-1421.1726923156136},{"$f":"+'[1]REAL(A)'!$AP$23","v":"n.d."},"n.d.","n.d.",{"$f":"'[1]Gráfico REM'!BG166","v":7750.7483942063946},{"$f":"'[1]Gráfico REM'!BH166","v":25317.856524754632},{"$f":"'[1]Gráfico REM'!BI166","v":1211.603442771687},"n.d.",7.8392673752365249,-5.4490624700293093,30.598109812475549,"n.d.",{"$f":"'[1]Gráfico REM'!BK166","v":8309.775339908394},{"$f":"'[1]Gráfico REM'!BL166","v":35363.624794344636},{"$f":"'[1]Gráfico REM'!BM166","v":7537.7424915516867},"n.d.","n.d.","n.d.","n.d."]
[2003,"agosto","2003-agosto",{"$f":"IF('[1]REAL IPC(M)'!$AL173=\"\",\"\",+'[1]REAL IPC(M)'!$AL173)","v":12.045818682012467},{"$f":"IF('[1]REAL IPC(M)'!$BE173=\"\",\"\",+'[1]REAL IPC(M)'!$BE173)","v":11.942191646471167},{"$f":"IF('[1]REAL IPC(M)'!$AM173=\"\",\"\",+'[1]REAL IPC(M)'!$AM173)","v":10.937368307016126},{"$f":"IF('[1]REAL IPC(M)'!$BI173=\"\",\"\",+'[1]REAL IPC(M)'!$BI173)","v":10.946090836896305},{"$f":"IF('[1]REAL IMAE(M)'!BJ173=\"\",\"\",'[1]REAL IMAE(M)'!BJ173)","v":"n.d."},{"$f":"IF('[1]REAL IMAE(M)'!BK173=\"\",\"\",'[1]REAL IMAE(M)'!BK173)","v":"n.d."},{"$f":"IF('[1]REAL IMAE(M)'!BN173=\"\",\"\",'[1]REAL IMAE(M)'!BN173)","v":"n.d."},{"$f":"IF('[1]REAL IMAE(M)'!BO173=\"\",\"\",'[1]REAL IMAE(M)'!BO173)","v":"n.d."},{"$f":"IF('[1]EXT RIN(M)'!$K173=\"\",\"\",'[1]EXT RIN(M)'!$K173)","v":8078.4117113547582},"",{"$f":"IF('[1]EXT RIN(M)'!$L173=\"\",\"\",'[1]EXT RIN(M)'!$L173)","v":9299.0378931412379},"",{"$f":"IF('[1]MONE(M)CARD'!EG173=\"\",\"\",'[1]MONE(M)CARD'!EG173)","v":8551.0646545562304},{"$f":"IF('[1]MONE(M)CARD'!EK173=\"\",\"\",'[1]MONE(M)CARD'!EK173)","v":19187.78501021901},{"$f":"IF('[1]MONE(M)CARD'!EP173=\"\",\"\",'[1]MONE(M)CARD'!EP173)","v":7791.9672446364348},{"$f":"IF('[1]MONE(M)CARD'!ES173=\"\",\"\",'[1]MONE(M)CARD'!ES173)","v":4.4874087730079948},{"$f":"IF('[1]MONE(M)CARD'!EV173=\"\",\"\",'[1]MONE(M)CARD'!EV173)","v":3.1759138923457053},{"$f":"IF('[1]MONE(M)CARD'!EZ173=\"\",\"\",'[1]MONE(M)CARD'!EZ173)","v":4.5138631588875544},{"$f":"IF('[1]MONE(M)CAPARD'!FC173=\"\",\"\",'[1]MONE(M)CAPARD'!FC173)","v":9819.1080645862312},{"$f":"IF('[1]MONE(M)CAPARD'!FG173=\"\",\"\",'[1]MONE(M)CAPARD'!FG173)","v":27971.034457399008},{"$f":"IF('[1]MONE(M)CAPARD'!FL173=\"\",\"\",'[1]MONE(M)CAPARD'!FL173)","v":7791.9672446364275},{"$f":"IF('[1]MONE(M)CAPARD'!FO173=\"\",\"\",'[1]MONE(M)CAPARD'!FO173)","v":19.981920331299996},{"$f":"IF('[1]MONE(M)CAPARD'!FR173=\"\",\"\",'[1]MONE(M)CAPARD'!FR173)","v":40.562155170374268},{"$f":"IF('[1]MONE(M)CAPARD'!FV173=\"\",\"\",'[1]MONE(M)CAPARD'!FV173)","v":34.079731259434489},{"$f":"IF('[1]MONE(M)CARD'!FV173=\"\",\"\",'[1]MONE(M)CARD'!FV173)","v":408.02217186346718},{"$f":"IF('[1]MONE(M)CARD'!GD173=\"\",\"\",'[1]MONE(M)CARD'!GD173)","v":40.126875281278949},{"$f":"IF('[1]MONE(M)CARD'!GE173=\"\",\"\",'[1]MONE(M)CARD'!GE173)","v":3050.4790704801339},-8.8516275199712506,{"$f":"IF('[9]II.2.Balance OSD-Activos'!J31=\"\",\"\",'[9]II.2.Balance OSD-Activos'!J31)","v":164.08011030745911},{"$f":"IF('[9]II.2.Balance OSD-Activos'!N31=\"\",\"\",'[9]II.2.Balance OSD-Activos'!N31)","v":12.975130687494396},{"$f":"IF('[9]II.2.Balance OSD-Activos'!R31=\"\",\"\",'[9]II.2.Balance OSD-Activos'!R31)","v":12412.861787761667},{"$f":"IF('[9]II.2.Balance OSD-Activos'!S31=\"\",\"\",'[9]II.2.Balance OSD-Activos'!S31)","v":11816.883291724838},12576.941898069126,24406.800320481459,0.77527348257444562,-6.0830391893656133,379.23384489445971,-6.1674505365240222,-2.6641712023070641,-4.4166955163362553,0.81738608377487321,{"$f":"IF('[1]MONE(M)CAPARD'!GS173=\"\",\"\",'[1]MONE(M)CAPARD'!GS173)","v":4047.0476521498772},{"$f":"IF('[1]MONE(M)CARD'!HA173=\"\",\"\",'[1]MONE(M)CAPARD'!HA173)","v":3267.7818378901334},{"$f":"IF('[1]MONE(M)CAPARD'!HB173=\"\",\"\",'[1]MONE(M)CAPARD'!HB173)","v":779.26581425974382},"n.d.",{"$f":"IF('[10]II.2.Balance OSD-Activos'!J31=\"\",\"\",'[10]II.2.Balance OSD-Activos'!J31)","v":961.85400728745913},{"$f":"IF('[10]II.2.Balance OSD-Activos'!N31=\"\",\"\",'[10]II.2.Balance OSD-Activos'!N31)","v":376.64580374749443},{"$f":"IF('[10]II.2.Balance OSD-Activos'!R31=\"\",\"\",'[10]II.2.Balance OSD-Activos'!R31)","v":16880.230145141664},{"$f":"IF('[10]II.2.Balance OSD-Activos'!S31=\"\",\"\",'[10]II.2.Balance OSD-Activos'!S31)","v":16409.859805864839},17842.084152429125,34628.589762041462,490.754726170472,33.233844260740717,13811.337083274662,27.602728293527612,35.168238970113343,35.614459724469015,0.76613787760923913,{"$f":"IF('[1]MONE(M)CAPARD'!AS173=\"\",\"\",'[1]MONE(M)CAPARD'!AS173)","v":"n.d."},{"$f":"IF('[1]MONE(M)CAPARD'!AT173=\"\",\"\",'[1]MONE(M)CAPARD'!AT173)","v":"n.a."},{"$f":"IF('[1]MONE(M)CAPARD'!AU173=\"\",\"\",'[1]MONE(M)CAPARD'!AU173)","v":"n.d."},{"$f":"IF('[1]MONE(M)CAPARD'!AV173=\"\",\"\",'[1]MONE(M)CAPARD'!AV173)","v":"n.d."},{"$f":"IF('[1]MONE(M)CAPARD'!AW173=\"\",\"\",'[1]MONE(M)CAPARD'!AW173)","v":"n.a."},{"$f":"IF('[1]MONE(M)CAPARD'!AX173=\"\",\"\",'[1]MONE(M)CAPARD'!AX173)","v":"n.d."},{"$f":"IF('[1]MONE(M)CAPARD'!AY173=\"\",\"\",'[1]MONE(M)CAPARD'!AY173)","v":"n.a."},{"$f":"IF('[1]FISCAL(M)'!$K173=\"\",\"\",'[1]FISCAL(M)'!$K173)","v":-1374.278820882706},{"$f":"IF('[1]FISCAL(M)'!$L173=\"\",\"\",'[1]FISCAL(M)'!$L173)","v":-1700.7774350427064},{"$f":"IF('[1]FISCAL(M)'!$AY173=\"\",\"\",'[1]FISCAL(M)'!$AY173)","v":"n.d."},{"$f":"IF('[1]FISCAL(M)'!$BI173=\"\",\"\",'[1]FISCAL(M)'!$BI173)","v":"n.d."},{"$f":"IF('[1]FISCAL(M)'!$BS173=\"\",\"\",'[1]FISCAL(M)'!$BS173)","v":"n.d."},{"$f":"IF('[1]FISCAL(M)'!$AZ173=\"\",\"\",'[1]FISCAL(M)'!$AZ173)","v":"n.d."},{"$f":"IF('[1]FISCAL(M)'!$BJ173=\"\",\"\",'[1]FISCAL(M)'!$BJ173)","v":"n.d."},{"$f":"IF('[1]FISCAL(M)'!$BT173=\"\",\"\",'[1]FISCAL(M)'!$BT173)","v":"n.d."},{"$f":"IF('[2]MONE(M)'!$AO173=\"\",\"\",'[2]MONE(M)'!$AO173)","v":2042080.423384988},{"$f":"IF('[3]MONE(M)'!$AO173=\"\",\"\",'[3]MONE(M)'!$AO173)","v":6220.5107428571428},{"$f":"IF('[4]MONE(M)'!$AO173=\"\",\"\",'[4]MONE(M)'!$AO173)","v":38546.529042018679},{"$f":"+'[5]MONE(M)'!$AO173","v":48699.381771089698},{"$f":"IF('[6]MONE(M)'!$AO173=\"\",\"\",'[6]MONE(M)'!$AO173)","v":12938.940635999999},{"$f":"IF('[7]MONE(M)'!$AO173=\"\",\"\",'[7]MONE(M)'!$AO173)","v":193800.72302725},{"$f":"IF('[8]MONE(M)'!$AO173=\"\",\"\",'[8]MONE(M)'!$AO173)","v":10095.383021199999},17.473419553432802,7.3809726014518962,5.4644339871294134,12.743330419152365,22.72292822673576,33.314392717339473,"n.d.",{"$f":"IF('[1]FISCAL(M)'!$K173=\"\",\"\",'[1]FISCAL(M)'!$K173)","v":-1374.278820882706},{"$f":"+'[1]REAL(A)'!$AO$23","v":87995.190722536106},-1.561765830153198,{"$f":"IF('[1]FISCAL(M)'!$L173=\"\",\"\",'[1]FISCAL(M)'!$L173)","v":-1700.7774350427064},{"$f":"+'[1]REAL(A)'!$AP$23","v":"n.d."},"n.d.","n.d.",{"$f":"'[1]Gráfico REM'!BG167","v":8127.5974801717839},{"$f":"'[1]Gráfico REM'!BH167","v":25688.126176884172},{"$f":"'[1]Gráfico REM'!BI167","v":1122.0245258314744},"n.d.",13.270845087141669,-4.3666049751465374,19.401636793435916,"n.d.",{"$f":"'[1]Gráfico REM'!BK167","v":8708.0056806537832},{"$f":"'[1]Gráfico REM'!BL167","v":35783.509198084168},{"$f":"'[1]Gráfico REM'!BM167","v":7378.6127488914735},"n.d.","n.d.","n.d.","n.d."]
[2003,"septiembre","2003-septiembre",{"$f":"IF('[1]REAL IPC(M)'!$AL174=\"\",\"\",+'[1]REAL IPC(M)'!$AL174)","v":12.326809277941098},{"$f":"IF('[1]REAL IPC(M)'!$BE174=\"\",\"\",+'[1]REAL IPC(M)'!$BE174)","v":12.094454777150121},{"$f":"IF('[1]REAL IPC(M)'!$AM174=\"\",\"\",+'[1]REAL IPC(M)'!$AM174)","v":11.18055648701155},{"$f":"IF('[1]REAL IPC(M)'!$BI174=\"\",\"\",+'[1]REAL IPC(M)'!$BI174)","v":11.099815617578779},{"$f":"IF('[1]REAL IMAE(M)'!BJ174=\"\",\"\",'[1]REAL IMAE(M)'!BJ174)","v":"n.d."},{"$f":"IF('[1]REAL IMAE(M)'!BK174=\"\",\"\",'[1]REAL IMAE(M)'!BK174)","v":"n.d."},{"$f":"IF('[1]REAL IMAE(M)'!BN174=\"\",\"\",'[1]REAL IMAE(M)'!BN174)","v":"n.d."},{"$f":"IF('[1]REAL IMAE(M)'!BO174=\"\",\"\",'[1]REAL IMAE(M)'!BO174)","v":"n.d."},{"$f":"IF('[1]EXT RIN(M)'!$K174=\"\",\"\",'[1]EXT RIN(M)'!$K174)","v":7983.5524035407252},"",{"$f":"IF('[1]EXT RIN(M)'!$L174=\"\",\"\",'[1]EXT RIN(M)'!$L174)","v":9030.2890626496846},"",{"$f":"IF('[1]MONE(M)CARD'!EG174=\"\",\"\",'[1]MONE(M)CARD'!EG174)","v":8386.9556188341321},{"$f":"IF('[1]MONE(M)CARD'!EK174=\"\",\"\",'[1]MONE(M)CARD'!EK174)","v":19527.439068565691},{"$f":"IF('[1]MONE(M)CARD'!EP174=\"\",\"\",'[1]MONE(M)CARD'!EP174)","v":7796.3445434331443},{"$f":"IF('[1]MONE(M)CARD'!ES174=\"\",\"\",'[1]MONE(M)CARD'!ES174)","v":4.5042456200769632},{"$f":"IF('[1]MONE(M)CARD'!EV174=\"\",\"\",'[1]MONE(M)CARD'!EV174)","v":3.2347234804185998},{"$f":"IF('[1]MONE(M)CARD'!EZ174=\"\",\"\",'[1]MONE(M)CARD'!EZ174)","v":4.2411735494785274},{"$f":"IF('[1]MONE(M)CAPARD'!FC174=\"\",\"\",'[1]MONE(M)CAPARD'!FC174)","v":9646.2674089541324},{"$f":"IF('[1]MONE(M)CAPARD'!FG174=\"\",\"\",'[1]MONE(M)CAPARD'!FG174)","v":28284.28479736569},{"$f":"IF('[1]MONE(M)CAPARD'!FL174=\"\",\"\",'[1]MONE(M)CAPARD'!FL174)","v":7796.3445434331443},{"$f":"IF('[1]MONE(M)CAPARD'!FO174=\"\",\"\",'[1]MONE(M)CAPARD'!FO174)","v":20.195687736620972},{"$f":"IF('[1]MONE(M)CAPARD'!FR174=\"\",\"\",'[1]MONE(M)CAPARD'!FR174)","v":40.277090452064314},{"$f":"IF('[1]MONE(M)CAPARD'!FV174=\"\",\"\",'[1]MONE(M)CAPARD'!FV174)","v":33.478765285668977},{"$f":"IF('[1]MONE(M)CARD'!FV174=\"\",\"\",'[1]MONE(M)CARD'!FV174)","v":397.18670464532397},{"$f":"IF('[1]MONE(M)CARD'!GD174=\"\",\"\",'[1]MONE(M)CARD'!GD174)","v":87.484139406586763},{"$f":"IF('[1]MONE(M)CARD'!GE174=\"\",\"\",'[1]MONE(M)CARD'!GE174)","v":2906.1845224648418},-14.563568785332404,{"$f":"IF('[9]II.2.Balance OSD-Activos'!J32=\"\",\"\",'[9]II.2.Balance OSD-Activos'!J32)","v":166.35760945561231},{"$f":"IF('[9]II.2.Balance OSD-Activos'!N32=\"\",\"\",'[9]II.2.Balance OSD-Activos'!N32)","v":13.426554447073055},{"$f":"IF('[9]II.2.Balance OSD-Activos'!R32=\"\",\"\",'[9]II.2.Balance OSD-Activos'!R32)","v":12638.206660606202},{"$f":"IF('[9]II.2.Balance OSD-Activos'!S32=\"\",\"\",'[9]II.2.Balance OSD-Activos'!S32)","v":11738.954540811854},12804.564270061814,24556.945365320738,-0.56162008679788711,-4.5141718500493528,1.1124604375835068,-4.5641054058257469,-3.822674006209692,-4.1819346663110935,0.23476085002516189,{"$f":"IF('[1]MONE(M)CAPARD'!GS174=\"\",\"\",'[1]MONE(M)CAPARD'!GS174)","v":4037.6757636515108},{"$f":"IF('[1]MONE(M)CARD'!HA174=\"\",\"\",'[1]MONE(M)CAPARD'!HA174)","v":3123.5053364148421},{"$f":"IF('[1]MONE(M)CAPARD'!HB174=\"\",\"\",'[1]MONE(M)CAPARD'!HB174)","v":914.17042723666873},"n.d.",{"$f":"IF('[10]II.2.Balance OSD-Activos'!J32=\"\",\"\",'[10]II.2.Balance OSD-Activos'!J32)","v":767.48052099561221},{"$f":"IF('[10]II.2.Balance OSD-Activos'!N32=\"\",\"\",'[10]II.2.Balance OSD-Activos'!N32)","v":403.83719067707307},{"$f":"IF('[10]II.2.Balance OSD-Activos'!R32=\"\",\"\",'[10]II.2.Balance OSD-Activos'!R32)","v":17277.659839136199},{"$f":"IF('[10]II.2.Balance OSD-Activos'!S32=\"\",\"\",'[10]II.2.Balance OSD-Activos'!S32)","v":16330.920191001853},18045.140360131812,34779.897741810739,358.75280290744354,34.565701341195812,2941.2100235039729,30.470166181212655,33.799328511577322,35.706720218958885,9.2260494489870837E-2,{"$f":"IF('[1]MONE(M)CAPARD'!AS174=\"\",\"\",'[1]MONE(M)CAPARD'!AS174)","v":"n.d."},{"$f":"IF('[1]MONE(M)CAPARD'!AT174=\"\",\"\",'[1]MONE(M)CAPARD'!AT174)","v":"n.a."},{"$f":"IF('[1]MONE(M)CAPARD'!AU174=\"\",\"\",'[1]MONE(M)CAPARD'!AU174)","v":"n.d."},{"$f":"IF('[1]MONE(M)CAPARD'!AV174=\"\",\"\",'[1]MONE(M)CAPARD'!AV174)","v":"n.d."},{"$f":"IF('[1]MONE(M)CAPARD'!AW174=\"\",\"\",'[1]MONE(M)CAPARD'!AW174)","v":"n.a."},{"$f":"IF('[1]MONE(M)CAPARD'!AX174=\"\",\"\",'[1]MONE(M)CAPARD'!AX174)","v":"n.d."},{"$f":"IF('[1]MONE(M)CAPARD'!AY174=\"\",\"\",'[1]MONE(M)CAPARD'!AY174)","v":"n.a."},{"$f":"IF('[1]FISCAL(M)'!$K174=\"\",\"\",'[1]FISCAL(M)'!$K174)","v":-1541.503388740239},{"$f":"IF('[1]FISCAL(M)'!$L174=\"\",\"\",'[1]FISCAL(M)'!$L174)","v":-1966.9336404402395},{"$f":"IF('[1]FISCAL(M)'!$AY174=\"\",\"\",'[1]FISCAL(M)'!$AY174)","v":"n.d."},{"$f":"IF('[1]FISCAL(M)'!$BI174=\"\",\"\",'[1]FISCAL(M)'!$BI174)","v":"n.d."},{"$f":"IF('[1]FISCAL(M)'!$BS174=\"\",\"\",'[1]FISCAL(M)'!$BS174)","v":"n.d."},{"$f":"IF('[1]FISCAL(M)'!$AZ174=\"\",\"\",'[1]FISCAL(M)'!$AZ174)","v":"n.d."},{"$f":"IF('[1]FISCAL(M)'!$BJ174=\"\",\"\",'[1]FISCAL(M)'!$BJ174)","v":"n.d."},{"$f":"IF('[1]FISCAL(M)'!$BT174=\"\",\"\",'[1]FISCAL(M)'!$BT174)","v":"n.d."},{"$f":"IF('[2]MONE(M)'!$AO174=\"\",\"\",'[2]MONE(M)'!$AO174)","v":2079781.4646080632},{"$f":"IF('[3]MONE(M)'!$AO174=\"\",\"\",'[3]MONE(M)'!$AO174)","v":6247.6117428571433},{"$f":"IF('[4]MONE(M)'!$AO174=\"\",\"\",'[4]MONE(M)'!$AO174)","v":36597.350374896159},{"$f":"+'[5]MONE(M)'!$AO174","v":49180.531348771467},{"$f":"IF('[6]MONE(M)'!$AO174=\"\",\"\",'[6]MONE(M)'!$AO174)","v":13462.753408},{"$f":"IF('[7]MONE(M)'!$AO174=\"\",\"\",'[7]MONE(M)'!$AO174)","v":193587.22985244001},{"$f":"IF('[8]MONE(M)'!$AO174=\"\",\"\",'[8]MONE(M)'!$AO174)","v":10064.665276559997},17.336928816374364,8.0099134051240704,0,12.348340976623117,26.520302197141877,33.426936654132945,"n.d.",{"$f":"IF('[1]FISCAL(M)'!$K174=\"\",\"\",'[1]FISCAL(M)'!$K174)","v":-1541.503388740239},{"$f":"+'[1]REAL(A)'!$AO$23","v":87995.190722536106},-1.7518041339337087,{"$f":"IF('[1]FISCAL(M)'!$L174=\"\",\"\",'[1]FISCAL(M)'!$L174)","v":-1966.9336404402395},{"$f":"+'[1]REAL(A)'!$AP$23","v":"n.d."},"n.d.","n.d.",{"$f":"'[1]Gráfico REM'!BG168","v":7635.6132067677308},{"$f":"'[1]Gráfico REM'!BH168","v":25449.9254798449},{"$f":"'[1]Gráfico REM'!BI168","v":1099.8789336023628},"n.d.",4.1043632956600407,-5.5421462998116233,18.289610801175726,"n.d.",{"$f":"'[1]Gráfico REM'!BK168","v":8223.2039107937308},{"$f":"'[1]Gráfico REM'!BL168","v":35514.590756404898},{"$f":"'[1]Gráfico REM'!BM168","v":7330.479925652362},"n.d.","n.d.","n.d.","n.d."]
[2003,"octubre","2003-octubre",{"$f":"IF('[1]REAL IPC(M)'!$AL175=\"\",\"\",+'[1]REAL IPC(M)'!$AL175)","v":12.39512678096597},{"$f":"IF('[1]REAL IPC(M)'!$BE175=\"\",\"\",+'[1]REAL IPC(M)'!$BE175)","v":12.229995738437239},{"$f":"IF('[1]REAL IPC(M)'!$AM175=\"\",\"\",+'[1]REAL IPC(M)'!$AM175)","v":11.188735278347362},{"$f":"IF('[1]REAL IPC(M)'!$BI175=\"\",\"\",+'[1]REAL IPC(M)'!$BI175)","v":11.23810005440744},{"$f":"IF('[1]REAL IMAE(M)'!BJ175=\"\",\"\",'[1]REAL IMAE(M)'!BJ175)","v":"n.d."},{"$f":"IF('[1]REAL IMAE(M)'!BK175=\"\",\"\",'[1]REAL IMAE(M)'!BK175)","v":"n.d."},{"$f":"IF('[1]REAL IMAE(M)'!BN175=\"\",\"\",'[1]REAL IMAE(M)'!BN175)","v":"n.d."},{"$f":"IF('[1]REAL IMAE(M)'!BO175=\"\",\"\",'[1]REAL IMAE(M)'!BO175)","v":"n.d."},{"$f":"IF('[1]EXT RIN(M)'!$K175=\"\",\"\",'[1]EXT RIN(M)'!$K175)","v":7753.021110945172},"",{"$f":"IF('[1]EXT RIN(M)'!$L175=\"\",\"\",'[1]EXT RIN(M)'!$L175)","v":8737.1272924986315},"",{"$f":"IF('[1]MONE(M)CARD'!EG175=\"\",\"\",'[1]MONE(M)CARD'!EG175)","v":8341.4303067919009},{"$f":"IF('[1]MONE(M)CARD'!EK175=\"\",\"\",'[1]MONE(M)CARD'!EK175)","v":18695.036439767166},{"$f":"IF('[1]MONE(M)CARD'!EP175=\"\",\"\",'[1]MONE(M)CARD'!EP175)","v":7832.5998506908581},{"$f":"IF('[1]MONE(M)CARD'!ES175=\"\",\"\",'[1]MONE(M)CARD'!ES175)","v":1.697133892297531},{"$f":"IF('[1]MONE(M)CARD'!EV175=\"\",\"\",'[1]MONE(M)CARD'!EV175)","v":-0.71008742475693332},{"$f":"IF('[1]MONE(M)CARD'!EZ175=\"\",\"\",'[1]MONE(M)CARD'!EZ175)","v":1.4330723469432538},{"$f":"IF('[1]MONE(M)CAPARD'!FC175=\"\",\"\",'[1]MONE(M)CAPARD'!FC175)","v":9628.5958353819005},{"$f":"IF('[1]MONE(M)CAPARD'!FG175=\"\",\"\",'[1]MONE(M)CAPARD'!FG175)","v":27469.565464847168},{"$f":"IF('[1]MONE(M)CAPARD'!FL175=\"\",\"\",'[1]MONE(M)CAPARD'!FL175)","v":7832.5998506908581},{"$f":"IF('[1]MONE(M)CAPARD'!FO175=\"\",\"\",'[1]MONE(M)CAPARD'!FO175)","v":17.390011526962024},{"$f":"IF('[1]MONE(M)CAPARD'!FR175=\"\",\"\",'[1]MONE(M)CAPARD'!FR175)","v":36.240923295600581},{"$f":"IF('[1]MONE(M)CAPARD'!FV175=\"\",\"\",'[1]MONE(M)CAPARD'!FV175)","v":30.702241016796506},{"$f":"IF('[1]MONE(M)CARD'!FV175=\"\",\"\",'[1]MONE(M)CARD'!FV175)","v":427.30555439508856},{"$f":"IF('[1]MONE(M)CARD'!GD175=\"\",\"\",'[1]MONE(M)CARD'!GD175)","v":36.839581217205371},{"$f":"IF('[1]MONE(M)CARD'!GE175=\"\",\"\",'[1]MONE(M)CARD'!GE175)","v":2887.034899159843},-16.049760050896154,{"$f":"IF('[9]II.2.Balance OSD-Activos'!J33=\"\",\"\",'[9]II.2.Balance OSD-Activos'!J33)","v":148.49819153451759},{"$f":"IF('[9]II.2.Balance OSD-Activos'!N33=\"\",\"\",'[9]II.2.Balance OSD-Activos'!N33)","v":8.7963727082896419},{"$f":"IF('[9]II.2.Balance OSD-Activos'!R33=\"\",\"\",'[9]II.2.Balance OSD-Activos'!R33)","v":12457.031405055164},{"$f":"IF('[9]II.2.Balance OSD-Activos'!S33=\"\",\"\",'[9]II.2.Balance OSD-Activos'!S33)","v":11580.879218160553},12605.529596589682,24195.205187458523,-25.004541583227059,-7.2348520574347708,-3.1534127630387321,-6.9720887310873447,-6.5630293021665569,-6.9130668372968547,-2.7311321709857612,{"$f":"IF('[1]MONE(M)CAPARD'!GS175=\"\",\"\",'[1]MONE(M)CAPARD'!GS175)","v":4035.6663851906778},{"$f":"IF('[1]MONE(M)CARD'!HA175=\"\",\"\",'[1]MONE(M)CAPARD'!HA175)","v":3099.7473813498432},{"$f":"IF('[1]MONE(M)CAPARD'!HB175=\"\",\"\",'[1]MONE(M)CAPARD'!HB175)","v":935.91900384083465},"n.d.",{"$f":"IF('[10]II.2.Balance OSD-Activos'!J33=\"\",\"\",'[10]II.2.Balance OSD-Activos'!J33)","v":714.37070733451765},{"$f":"IF('[10]II.2.Balance OSD-Activos'!N33=\"\",\"\",'[10]II.2.Balance OSD-Activos'!N33)","v":381.37710950828966},{"$f":"IF('[10]II.2.Balance OSD-Activos'!R33=\"\",\"\",'[10]II.2.Balance OSD-Activos'!R33)","v":17212.801674845166},{"$f":"IF('[10]II.2.Balance OSD-Activos'!S33=\"\",\"\",'[10]II.2.Balance OSD-Activos'!S33)","v":16104.186787320552},17927.172382179684,34412.736279008524,260.77583250307379,31.927562858976021,4098.8979697696695,28.543545795917204,29.931968084052762,32.397144687586788,-3.3095755313720971,{"$f":"IF('[1]MONE(M)CAPARD'!AS175=\"\",\"\",'[1]MONE(M)CAPARD'!AS175)","v":"n.d."},{"$f":"IF('[1]MONE(M)CAPARD'!AT175=\"\",\"\",'[1]MONE(M)CAPARD'!AT175)","v":"n.a."},{"$f":"IF('[1]MONE(M)CAPARD'!AU175=\"\",\"\",'[1]MONE(M)CAPARD'!AU175)","v":"n.d."},{"$f":"IF('[1]MONE(M)CAPARD'!AV175=\"\",\"\",'[1]MONE(M)CAPARD'!AV175)","v":"n.d."},{"$f":"IF('[1]MONE(M)CAPARD'!AW175=\"\",\"\",'[1]MONE(M)CAPARD'!AW175)","v":"n.a."},{"$f":"IF('[1]MONE(M)CAPARD'!AX175=\"\",\"\",'[1]MONE(M)CAPARD'!AX175)","v":"n.d."},{"$f":"IF('[1]MONE(M)CAPARD'!AY175=\"\",\"\",'[1]MONE(M)CAPARD'!AY175)","v":"n.a."},{"$f":"IF('[1]FISCAL(M)'!$K175=\"\",\"\",'[1]FISCAL(M)'!$K175)","v":-1744.2214500513369},{"$f":"IF('[1]FISCAL(M)'!$L175=\"\",\"\",'[1]FISCAL(M)'!$L175)","v":-2257.2615974013374},{"$f":"IF('[1]FISCAL(M)'!$AY175=\"\",\"\",'[1]FISCAL(M)'!$AY175)","v":"n.d."},{"$f":"IF('[1]FISCAL(M)'!$BI175=\"\",\"\",'[1]FISCAL(M)'!$BI175)","v":"n.d."},{"$f":"IF('[1]FISCAL(M)'!$BS175=\"\",\"\",'[1]FISCAL(M)'!$BS175)","v":"n.d."},{"$f":"IF('[1]FISCAL(M)'!$AZ175=\"\",\"\",'[1]FISCAL(M)'!$AZ175)","v":"n.d."},{"$f":"IF('[1]FISCAL(M)'!$BJ175=\"\",\"\",'[1]FISCAL(M)'!$BJ175)","v":"n.d."},{"$f":"IF('[1]FISCAL(M)'!$BT175=\"\",\"\",'[1]FISCAL(M)'!$BT175)","v":"n.d."},{"$f":"IF('[2]MONE(M)'!$AO175=\"\",\"\",'[2]MONE(M)'!$AO175)","v":2109425.7564644422},{"$f":"IF('[3]MONE(M)'!$AO175=\"\",\"\",'[3]MONE(M)'!$AO175)","v":6266.851742857144},{"$f":"IF('[4]MONE(M)'!$AO175=\"\",\"\",'[4]MONE(M)'!$AO175)","v":39480.498458993025},{"$f":"+'[5]MONE(M)'!$AO175","v":49678.25358820011},{"$f":"IF('[6]MONE(M)'!$AO175=\"\",\"\",'[6]MONE(M)'!$AO175)","v":13669.641947100001},{"$f":"IF('[7]MONE(M)'!$AO175=\"\",\"\",'[7]MONE(M)'!$AO175)","v":202834.07321843001},{"$f":"IF('[8]MONE(M)'!$AO175=\"\",\"\",'[8]MONE(M)'!$AO175)","v":10065.422418589998},15.897721844350921,7.0849649333053932,7.5661265144064238,12.137808808088547,24.541793903512943,38.024953530146213,"n.d.",{"$f":"IF('[1]FISCAL(M)'!$K175=\"\",\"\",'[1]FISCAL(M)'!$K175)","v":-1744.2214500513369},{"$f":"+'[1]REAL(A)'!$AO$23","v":87995.190722536106},-1.982178157384948,{"$f":"IF('[1]FISCAL(M)'!$L175=\"\",\"\",'[1]FISCAL(M)'!$L175)","v":-2257.2615974013374},{"$f":"+'[1]REAL(A)'!$AP$23","v":"n.d."},"n.d.","n.d.",{"$f":"'[1]Gráfico REM'!BG169","v":7644.9238595455517},{"$f":"'[1]Gráfico REM'!BH169","v":25373.716755975431},{"$f":"'[1]Gráfico REM'!BI169","v":1268.1039740576462},"n.d.",3.4019679570264305,-7.060996310744172,35.669908118867546,"n.d.",{"$f":"'[1]Gráfico REM'!BK169","v":8229.4914499305523},{"$f":"'[1]Gráfico REM'!BL169","v":35439.139174565425},{"$f":"'[1]Gráfico REM'!BM169","v":7304.9162820076463},"n.d.","n.d.","n.d.","n.d."]
[2003,"noviembre","2003-noviembre",{"$f":"IF('[1]REAL IPC(M)'!$AL176=\"\",\"\",+'[1]REAL IPC(M)'!$AL176)","v":14.359474571318387},{"$f":"IF('[1]REAL IPC(M)'!$BE176=\"\",\"\",+'[1]REAL IPC(M)'!$BE176)","v":12.34699573234337},{"$f":"IF('[1]REAL IPC(M)'!$AM176=\"\",\"\",+'[1]REAL IPC(M)'!$AM176)","v":12.964952255377105},{"$f":"IF('[1]REAL IPC(M)'!$BI176=\"\",\"\",+'[1]REAL IPC(M)'!$BI176)","v":11.35907303830983},{"$f":"IF('[1]REAL IMAE(M)'!BJ176=\"\",\"\",'[1]REAL IMAE(M)'!BJ176)","v":"n.d."},{"$f":"IF('[1]REAL IMAE(M)'!BK176=\"\",\"\",'[1]REAL IMAE(M)'!BK176)","v":"n.d."},{"$f":"IF('[1]REAL IMAE(M)'!BN176=\"\",\"\",'[1]REAL IMAE(M)'!BN176)","v":"n.d."},{"$f":"IF('[1]REAL IMAE(M)'!BO176=\"\",\"\",'[1]REAL IMAE(M)'!BO176)","v":"n.d."},{"$f":"IF('[1]EXT RIN(M)'!$K176=\"\",\"\",'[1]EXT RIN(M)'!$K176)","v":8067.47697786751},"",{"$f":"IF('[1]EXT RIN(M)'!$L176=\"\",\"\",'[1]EXT RIN(M)'!$L176)","v":9069.9126021642896},"",{"$f":"IF('[1]MONE(M)CARD'!EG176=\"\",\"\",'[1]MONE(M)CARD'!EG176)","v":8611.0942859089537},{"$f":"IF('[1]MONE(M)CARD'!EK176=\"\",\"\",'[1]MONE(M)CARD'!EK176)","v":18109.042352372999},{"$f":"IF('[1]MONE(M)CARD'!EP176=\"\",\"\",'[1]MONE(M)CARD'!EP176)","v":7930.0416859176366},{"$f":"IF('[1]MONE(M)CARD'!ES176=\"\",\"\",'[1]MONE(M)CARD'!ES176)","v":1.3783062430148485},{"$f":"IF('[1]MONE(M)CARD'!EV176=\"\",\"\",'[1]MONE(M)CARD'!EV176)","v":-2.5291423430026549},{"$f":"IF('[1]MONE(M)CARD'!EZ176=\"\",\"\",'[1]MONE(M)CARD'!EZ176)","v":-0.33379184940443007},{"$f":"IF('[1]MONE(M)CAPARD'!FC176=\"\",\"\",'[1]MONE(M)CAPARD'!FC176)","v":10022.157661598954},{"$f":"IF('[1]MONE(M)CAPARD'!FG176=\"\",\"\",'[1]MONE(M)CAPARD'!FG176)","v":26921.735979252997},{"$f":"IF('[1]MONE(M)CAPARD'!FL176=\"\",\"\",'[1]MONE(M)CAPARD'!FL176)","v":7930.0416859176403},{"$f":"IF('[1]MONE(M)CAPARD'!FO176=\"\",\"\",'[1]MONE(M)CAPARD'!FO176)","v":17.990737866611116},{"$f":"IF('[1]MONE(M)CAPARD'!FR176=\"\",\"\",'[1]MONE(M)CAPARD'!FR176)","v":34.765515877027475},{"$f":"IF('[1]MONE(M)CAPARD'!FV176=\"\",\"\",'[1]MONE(M)CAPARD'!FV176)","v":29.073361094094572},{"$f":"IF('[1]MONE(M)CARD'!FV176=\"\",\"\",'[1]MONE(M)CARD'!FV176)","v":392.74945024269738},{"$f":"IF('[1]MONE(M)CARD'!GD176=\"\",\"\",'[1]MONE(M)CARD'!GD176)","v":41.176149198400665},{"$f":"IF('[1]MONE(M)CARD'!GE176=\"\",\"\",'[1]MONE(M)CARD'!GE176)","v":2731.4874248797232},-25.081301318179172,{"$f":"IF('[9]II.2.Balance OSD-Activos'!J34=\"\",\"\",'[9]II.2.Balance OSD-Activos'!J34)","v":147.23754744054489},{"$f":"IF('[9]II.2.Balance OSD-Activos'!N34=\"\",\"\",'[9]II.2.Balance OSD-Activos'!N34)","v":6.0703974752865948},{"$f":"IF('[9]II.2.Balance OSD-Activos'!R34=\"\",\"\",'[9]II.2.Balance OSD-Activos'!R34)","v":12335.91344573574},{"$f":"IF('[9]II.2.Balance OSD-Activos'!S34=\"\",\"\",'[9]II.2.Balance OSD-Activos'!S34)","v":11594.666579298018},12483.150993176285,24083.887969949588,-16.017949438372636,-9.3669187478960474,-54.513593159569986,-9.2811661674813131,-7.9334359664327669,-8.7054253581411842,-1.7923585208443296,{"$f":"IF('[1]MONE(M)CAPARD'!GS176=\"\",\"\",'[1]MONE(M)CAPARD'!GS176)","v":3859.6092134467103},{"$f":"IF('[1]MONE(M)CARD'!HA176=\"\",\"\",'[1]MONE(M)CAPARD'!HA176)","v":2944.2522432397227},{"$f":"IF('[1]MONE(M)CAPARD'!HB176=\"\",\"\",'[1]MONE(M)CAPARD'!HB176)","v":915.35697020698763},"n.d.",{"$f":"IF('[10]II.2.Balance OSD-Activos'!J34=\"\",\"\",'[10]II.2.Balance OSD-Activos'!J34)","v":757.77289559054486},{"$f":"IF('[10]II.2.Balance OSD-Activos'!N34=\"\",\"\",'[10]II.2.Balance OSD-Activos'!N34)","v":386.76354821528656},{"$f":"IF('[10]II.2.Balance OSD-Activos'!R34=\"\",\"\",'[10]II.2.Balance OSD-Activos'!R34)","v":17034.274642285742},{"$f":"IF('[10]II.2.Balance OSD-Activos'!S34=\"\",\"\",'[10]II.2.Balance OSD-Activos'!S34)","v":16153.309320798018},17792.047537876286,34332.12040688959,332.22209781383197,29.177968849620672,2798.0777909173435,25.270782543079061,28.264118400143602,30.142455944443025,-2.2546887431437632,{"$f":"IF('[1]MONE(M)CAPARD'!AS176=\"\",\"\",'[1]MONE(M)CAPARD'!AS176)","v":"n.d."},{"$f":"IF('[1]MONE(M)CAPARD'!AT176=\"\",\"\",'[1]MONE(M)CAPARD'!AT176)","v":"n.a."},{"$f":"IF('[1]MONE(M)CAPARD'!AU176=\"\",\"\",'[1]MONE(M)CAPARD'!AU176)","v":"n.d."},{"$f":"IF('[1]MONE(M)CAPARD'!AV176=\"\",\"\",'[1]MONE(M)CAPARD'!AV176)","v":"n.d."},{"$f":"IF('[1]MONE(M)CAPARD'!AW176=\"\",\"\",'[1]MONE(M)CAPARD'!AW176)","v":"n.a."},{"$f":"IF('[1]MONE(M)CAPARD'!AX176=\"\",\"\",'[1]MONE(M)CAPARD'!AX176)","v":"n.d."},{"$f":"IF('[1]MONE(M)CAPARD'!AY176=\"\",\"\",'[1]MONE(M)CAPARD'!AY176)","v":"n.a."},{"$f":"IF('[1]FISCAL(M)'!$K176=\"\",\"\",'[1]FISCAL(M)'!$K176)","v":-2039.0465171801561},{"$f":"IF('[1]FISCAL(M)'!$L176=\"\",\"\",'[1]FISCAL(M)'!$L176)","v":-2585.8326988901567},{"$f":"IF('[1]FISCAL(M)'!$AY176=\"\",\"\",'[1]FISCAL(M)'!$AY176)","v":"n.d."},{"$f":"IF('[1]FISCAL(M)'!$BI176=\"\",\"\",'[1]FISCAL(M)'!$BI176)","v":"n.d."},{"$f":"IF('[1]FISCAL(M)'!$BS176=\"\",\"\",'[1]FISCAL(M)'!$BS176)","v":"n.d."},{"$f":"IF('[1]FISCAL(M)'!$AZ176=\"\",\"\",'[1]FISCAL(M)'!$AZ176)","v":"n.d."},{"$f":"IF('[1]FISCAL(M)'!$BJ176=\"\",\"\",'[1]FISCAL(M)'!$BJ176)","v":"n.d."},{"$f":"IF('[1]FISCAL(M)'!$BT176=\"\",\"\",'[1]FISCAL(M)'!$BT176)","v":"n.d."},{"$f":"IF('[2]MONE(M)'!$AO176=\"\",\"\",'[2]MONE(M)'!$AO176)","v":2158016.1933991141},{"$f":"IF('[3]MONE(M)'!$AO176=\"\",\"\",'[3]MONE(M)'!$AO176)","v":6362.569742857143},{"$f":"IF('[4]MONE(M)'!$AO176=\"\",\"\",'[4]MONE(M)'!$AO176)","v":39998.238513835764},{"$f":"+'[5]MONE(M)'!$AO176","v":51187.338888561811},{"$f":"IF('[6]MONE(M)'!$AO176=\"\",\"\",'[6]MONE(M)'!$AO176)","v":14058.138825347},{"$f":"IF('[7]MONE(M)'!$AO176=\"\",\"\",'[7]MONE(M)'!$AO176)","v":213154.61761736998},{"$f":"IF('[8]MONE(M)'!$AO176=\"\",\"\",'[8]MONE(M)'!$AO176)","v":10104.14578203},17.073299505911677,6.9643673109794024,8.0179853219513042,14.161627837465552,26.048181940103877,42.624849346489114,"n.d.",{"$f":"IF('[1]FISCAL(M)'!$K176=\"\",\"\",'[1]FISCAL(M)'!$K176)","v":-2039.0465171801561},{"$f":"+'[1]REAL(A)'!$AO$23","v":87995.190722536106},-2.3172249533609386,{"$f":"IF('[1]FISCAL(M)'!$L176=\"\",\"\",'[1]FISCAL(M)'!$L176)","v":-2585.8326988901567},{"$f":"+'[1]REAL(A)'!$AP$23","v":"n.d."},"n.d.","n.d.",{"$f":"'[1]Gráfico REM'!BG170","v":7386.2647675767921},{"$f":"'[1]Gráfico REM'!BH170","v":25288.258471185905},{"$f":"'[1]Gráfico REM'!BI170","v":1063.3805341854261},"n.d.",1.8643940473274778,-8.6614208993957007,11.266422587657932,"n.d.",{"$f":"'[1]Gráfico REM'!BK170","v":7999.3939050527924},{"$f":"'[1]Gráfico REM'!BL170","v":35392.404253215907},{"$f":"'[1]Gráfico REM'!BM170","v":6933.3956546454247},"n.d.","n.d.","n.d.","n.d."]
[2003,"diciembre","2003-diciembre",{"$f":"IF('[1]REAL IPC(M)'!$AL177=\"\",\"\",+'[1]REAL IPC(M)'!$AL177)","v":15.033501089145386},{"$f":"IF('[1]REAL IPC(M)'!$BE177=\"\",\"\",+'[1]REAL IPC(M)'!$BE177)","v":12.443743824257613},{"$f":"IF('[1]REAL IPC(M)'!$AM177=\"\",\"\",+'[1]REAL IPC(M)'!$AM177)","v":13.57438058099223},{"$f":"IF('[1]REAL IPC(M)'!$BI177=\"\",\"\",+'[1]REAL IPC(M)'!$BI177)","v":11.460952077718511},{"$f":"IF('[1]REAL IMAE(M)'!BJ177=\"\",\"\",'[1]REAL IMAE(M)'!BJ177)","v":"n.d."},{"$f":"IF('[1]REAL IMAE(M)'!BK177=\"\",\"\",'[1]REAL IMAE(M)'!BK177)","v":"n.d."},{"$f":"IF('[1]REAL IMAE(M)'!BN177=\"\",\"\",'[1]REAL IMAE(M)'!BN177)","v":"n.d."},{"$f":"IF('[1]REAL IMAE(M)'!BO177=\"\",\"\",'[1]REAL IMAE(M)'!BO177)","v":"n.d."},{"$f":"IF('[1]EXT RIN(M)'!$K177=\"\",\"\",'[1]EXT RIN(M)'!$K177)","v":8374.3777768190575},8374.3777768190575,{"$f":"IF('[1]EXT RIN(M)'!$L177=\"\",\"\",'[1]EXT RIN(M)'!$L177)","v":9337.3727874570268},9337.3727874570268,{"$f":"IF('[1]MONE(M)CARD'!EG177=\"\",\"\",'[1]MONE(M)CARD'!EG177)","v":9810.55061717219},{"$f":"IF('[1]MONE(M)CARD'!EK177=\"\",\"\",'[1]MONE(M)CARD'!EK177)","v":18795.481178163111},{"$f":"IF('[1]MONE(M)CARD'!EP177=\"\",\"\",'[1]MONE(M)CARD'!EP177)","v":9942.5504764139769},{"$f":"IF('[1]MONE(M)CARD'!ES177=\"\",\"\",'[1]MONE(M)CARD'!ES177)","v":8.7279173553104439},{"$f":"IF('[1]MONE(M)CARD'!EV177=\"\",\"\",'[1]MONE(M)CARD'!EV177)","v":6.6214871567787936},{"$f":"IF('[1]MONE(M)CARD'!EZ177=\"\",\"\",'[1]MONE(M)CARD'!EZ177)","v":13.091936344060473},{"$f":"IF('[1]MONE(M)CAPARD'!FC177=\"\",\"\",'[1]MONE(M)CAPARD'!FC177)","v":11274.06083201219},{"$f":"IF('[1]MONE(M)CAPARD'!FG177=\"\",\"\",'[1]MONE(M)CAPARD'!FG177)","v":27701.371907443114},{"$f":"IF('[1]MONE(M)CAPARD'!FL177=\"\",\"\",'[1]MONE(M)CAPARD'!FL177)","v":9942.5504764139769},{"$f":"IF('[1]MONE(M)CAPARD'!FO177=\"\",\"\",'[1]MONE(M)CAPARD'!FO177)","v":8.8382133330750854},{"$f":"IF('[1]MONE(M)CAPARD'!FR177=\"\",\"\",'[1]MONE(M)CAPARD'!FR177)","v":5.6211414859384634},{"$f":"IF('[1]MONE(M)CAPARD'!FV177=\"\",\"\",'[1]MONE(M)CAPARD'!FV177)","v":10.780176603153603},{"$f":"IF('[1]MONE(M)CARD'!FV177=\"\",\"\",'[1]MONE(M)CARD'!FV177)","v":374.31999689211239},{"$f":"IF('[1]MONE(M)CARD'!GD177=\"\",\"\",'[1]MONE(M)CARD'!GD177)","v":32.317352218750159},{"$f":"IF('[1]MONE(M)CARD'!GE177=\"\",\"\",'[1]MONE(M)CARD'!GE177)","v":2585.915620262605},-28.411893475767879,{"$f":"IF('[9]II.2.Balance OSD-Activos'!J35=\"\",\"\",'[9]II.2.Balance OSD-Activos'!J35)","v":160.27015392627229},{"$f":"IF('[9]II.2.Balance OSD-Activos'!N35=\"\",\"\",'[9]II.2.Balance OSD-Activos'!N35)","v":5.4534396454811365},{"$f":"IF('[9]II.2.Balance OSD-Activos'!R35=\"\",\"\",'[9]II.2.Balance OSD-Activos'!R35)","v":12620.755668100965},{"$f":"IF('[9]II.2.Balance OSD-Activos'!S35=\"\",\"\",'[9]II.2.Balance OSD-Activos'!S35)","v":12881.514850251639},12781.025822027237,25667.994111924356,-8.2109301646945294,-2.6464553473852792,-60.208984331134332,-2.5714509472058333,5.9693042651882244,1.4622918008320829,10.167717158973268,{"$f":"IF('[1]MONE(M)CAPARD'!GS177=\"\",\"\",'[1]MONE(M)CAPARD'!GS177)","v":4090.0876454177915},{"$f":"IF('[1]MONE(M)CARD'!HA177=\"\",\"\",'[1]MONE(M)CAPARD'!HA177)","v":2798.620614662605},{"$f":"IF('[1]MONE(M)CAPARD'!HB177=\"\",\"\",'[1]MONE(M)CAPARD'!HB177)","v":1291.4670307551864},"n.d.",{"$f":"IF('[10]II.2.Balance OSD-Activos'!J35=\"\",\"\",'[10]II.2.Balance OSD-Activos'!J35)","v":616.99249187627231},{"$f":"IF('[10]II.2.Balance OSD-Activos'!N35=\"\",\"\",'[10]II.2.Balance OSD-Activos'!N35)","v":354.52414172548123},{"$f":"IF('[10]II.2.Balance OSD-Activos'!R35=\"\",\"\",'[10]II.2.Balance OSD-Activos'!R35)","v":17351.728859320967},{"$f":"IF('[10]II.2.Balance OSD-Activos'!S35=\"\",\"\",'[10]II.2.Balance OSD-Activos'!S35)","v":17485.506698351637},17968.72135119724,35808.752191274354,-35.234663454179241,-3.0988552037879424,-13.366621269853674,-1.3584775686140915,5.1910406326933112,0.65651340105408185,-29.485942543388944,{"$f":"IF('[1]MONE(M)CAPARD'!AS177=\"\",\"\",'[1]MONE(M)CAPARD'!AS177)","v":"n.d."},{"$f":"IF('[1]MONE(M)CAPARD'!AT177=\"\",\"\",'[1]MONE(M)CAPARD'!AT177)","v":"n.a."},{"$f":"IF('[1]MONE(M)CAPARD'!AU177=\"\",\"\",'[1]MONE(M)CAPARD'!AU177)","v":"n.d."},{"$f":"IF('[1]MONE(M)CAPARD'!AV177=\"\",\"\",'[1]MONE(M)CAPARD'!AV177)","v":"n.d."},{"$f":"IF('[1]MONE(M)CAPARD'!AW177=\"\",\"\",'[1]MONE(M)CAPARD'!AW177)","v":"n.a."},{"$f":"IF('[1]MONE(M)CAPARD'!AX177=\"\",\"\",'[1]MONE(M)CAPARD'!AX177)","v":"n.d."},{"$f":"IF('[1]MONE(M)CAPARD'!AY177=\"\",\"\",'[1]MONE(M)CAPARD'!AY177)","v":"n.a."},{"$f":"IF('[1]FISCAL(M)'!$K177=\"\",\"\",'[1]FISCAL(M)'!$K177)","v":-2750.6917761730833},{"$f":"IF('[1]FISCAL(M)'!$L177=\"\",\"\",'[1]FISCAL(M)'!$L177)","v":-2711.1174293430845},{"$f":"IF('[1]FISCAL(M)'!$AY177=\"\",\"\",'[1]FISCAL(M)'!$AY177)","v":"n.d."},{"$f":"IF('[1]FISCAL(M)'!$BI177=\"\",\"\",'[1]FISCAL(M)'!$BI177)","v":"n.d."},{"$f":"IF('[1]FISCAL(M)'!$BS177=\"\",\"\",'[1]FISCAL(M)'!$BS177)","v":29190.5},{"$f":"IF('[1]FISCAL(M)'!$AZ177=\"\",\"\",'[1]FISCAL(M)'!$AZ177)","v":"n.d."},{"$f":"IF('[1]FISCAL(M)'!$BJ177=\"\",\"\",'[1]FISCAL(M)'!$BJ177)","v":"n.d."},{"$f":"IF('[1]FISCAL(M)'!$BT177=\"\",\"\",'[1]FISCAL(M)'!$BT177)","v":35700.183792249998},{"$f":"IF('[2]MONE(M)'!$AO177=\"\",\"\",'[2]MONE(M)'!$AO177)","v":2256103.1479283469},{"$f":"IF('[3]MONE(M)'!$AO177=\"\",\"\",'[3]MONE(M)'!$AO177)","v":6449.6837428571425},{"$f":"IF('[4]MONE(M)'!$AO177=\"\",\"\",'[4]MONE(M)'!$AO177)","v":49003.152351801451},{"$f":"+'[5]MONE(M)'!$AO177","v":54031.603230121967},{"$f":"IF('[6]MONE(M)'!$AO177=\"\",\"\",'[6]MONE(M)'!$AO177)","v":14319.503887999999},{"$f":"IF('[7]MONE(M)'!$AO177=\"\",\"\",'[7]MONE(M)'!$AO177)","v":194502.96766075},{"$f":"IF('[8]MONE(M)'!$AO177=\"\",\"\",'[8]MONE(M)'!$AO177)","v":10006.67172056},20.293542736890636,7.4258915594114905,29.52305370314512,19.656869103859577,25.766835553854417,27.911710014432888,-0.48419917610369456,{"$f":"IF('[1]FISCAL(M)'!$K177=\"\",\"\",'[1]FISCAL(M)'!$K177)","v":-2750.6917761730833},{"$f":"+'[1]REAL(A)'!$AO$23","v":87995.190722536106},-3.1259569455863621,{"$f":"IF('[1]FISCAL(M)'!$L177=\"\",\"\",'[1]FISCAL(M)'!$L177)","v":-2711.1174293430845},{"$f":"+'[1]REAL(A)'!$AP$23","v":"n.d."},"n.d.","n.d.",{"$f":"'[1]Gráfico REM'!BG171","v":7782.4062554361471},{"$f":"'[1]Gráfico REM'!BH171","v":27158.109410130477},{"$f":"'[1]Gráfico REM'!BI171","v":1900.9433874951978},"n.d.",7.6698847325735731,2.1019106471574789,96.27777924774621,"n.d.",{"$f":"'[1]Gráfico REM'!BK171","v":8313.9098441561473},{"$f":"'[1]Gráfico REM'!BL171","v":37164.781130690477},{"$f":"'[1]Gráfico REM'!BM171","v":8256.9461251251978},"n.d.",{"$f":"+((DB170/DB158)-1)*100","v":8.9085299948920884},1.3924657334834833,3.1730926731503573]
[2004,"enero","2004-enero",{"$f":"IF('[1]REAL IPC(M)'!$AL178=\"\",\"\",+'[1]REAL IPC(M)'!$AL178)","v":17.542844602171947},{"$f":"IF('[1]REAL IPC(M)'!$BE178=\"\",\"\",+'[1]REAL IPC(M)'!$BE178)","v":12.5187357691267},{"$f":"IF('[1]REAL IPC(M)'!$AM178=\"\",\"\",+'[1]REAL IPC(M)'!$AM178)","v":15.906476862802531},{"$f":"IF('[1]REAL IPC(M)'!$BI178=\"\",\"\",+'[1]REAL IPC(M)'!$BI178)","v":11.542147285488502},{"$f":"IF('[1]REAL IMAE(M)'!BJ178=\"\",\"\",'[1]REAL IMAE(M)'!BJ178)","v":"n.d."},{"$f":"IF('[1]REAL IMAE(M)'!BK178=\"\",\"\",'[1]REAL IMAE(M)'!BK178)","v":"n.d."},{"$f":"IF('[1]REAL IMAE(M)'!BN178=\"\",\"\",'[1]REAL IMAE(M)'!BN178)","v":"n.d."},{"$f":"IF('[1]REAL IMAE(M)'!BO178=\"\",\"\",'[1]REAL IMAE(M)'!BO178)","v":"n.d."},{"$f":"IF('[1]EXT RIN(M)'!$K178=\"\",\"\",'[1]EXT RIN(M)'!$K178)","v":8150.2850558651699},"",{"$f":"IF('[1]EXT RIN(M)'!$L178=\"\",\"\",'[1]EXT RIN(M)'!$L178)","v":9337.725847862479},"",{"$f":"IF('[1]MONE(M)CARD'!EG178=\"\",\"\",'[1]MONE(M)CARD'!EG178)","v":9031.8061332872712},{"$f":"IF('[1]MONE(M)CARD'!EK178=\"\",\"\",'[1]MONE(M)CARD'!EK178)","v":17269.741437904377},{"$f":"IF('[1]MONE(M)CARD'!EP178=\"\",\"\",'[1]MONE(M)CARD'!EP178)","v":10094.527943216435},{"$f":"IF('[1]MONE(M)CARD'!ES178=\"\",\"\",'[1]MONE(M)CARD'!ES178)","v":4.0398422649214005},{"$f":"IF('[1]MONE(M)CARD'!EV178=\"\",\"\",'[1]MONE(M)CARD'!EV178)","v":-0.23604848772983411},{"$f":"IF('[1]MONE(M)CARD'!EZ178=\"\",\"\",'[1]MONE(M)CARD'!EZ178)","v":5.9248797360336392},{"$f":"IF('[1]MONE(M)CAPARD'!FC178=\"\",\"\",'[1]MONE(M)CAPARD'!FC178)","v":10424.802379147273},{"$f":"IF('[1]MONE(M)CAPARD'!FG178=\"\",\"\",'[1]MONE(M)CAPARD'!FG178)","v":26258.956041474383},{"$f":"IF('[1]MONE(M)CAPARD'!FL178=\"\",\"\",'[1]MONE(M)CAPARD'!FL178)","v":10094.527943216432},{"$f":"IF('[1]MONE(M)CAPARD'!FO178=\"\",\"\",'[1]MONE(M)CAPARD'!FO178)","v":5.2659884193360984},{"$f":"IF('[1]MONE(M)CAPARD'!FR178=\"\",\"\",'[1]MONE(M)CAPARD'!FR178)","v":1.2671648156692417},{"$f":"IF('[1]MONE(M)CAPARD'!FV178=\"\",\"\",'[1]MONE(M)CAPARD'!FV178)","v":5.7824340509237793},{"$f":"IF('[1]MONE(M)CARD'!FV178=\"\",\"\",'[1]MONE(M)CARD'!FV178)","v":409.15127436529878},{"$f":"IF('[1]MONE(M)CARD'!GD178=\"\",\"\",'[1]MONE(M)CARD'!GD178)","v":34.977209455391133},{"$f":"IF('[1]MONE(M)CARD'!GE178=\"\",\"\",'[1]MONE(M)CARD'!GE178)","v":2570.044445891946},-20.811830206030134,{"$f":"IF('[9]II.2.Balance OSD-Activos'!J36=\"\",\"\",'[9]II.2.Balance OSD-Activos'!J36)","v":156.47015054161716},{"$f":"IF('[9]II.2.Balance OSD-Activos'!N36=\"\",\"\",'[9]II.2.Balance OSD-Activos'!N36)","v":5.6855468359398831},{"$f":"IF('[9]II.2.Balance OSD-Activos'!R36=\"\",\"\",'[9]II.2.Balance OSD-Activos'!R36)","v":11843.628739169078},{"$f":"IF('[9]II.2.Balance OSD-Activos'!S36=\"\",\"\",'[9]II.2.Balance OSD-Activos'!S36)","v":12336.717325796704},12000.098889710696,24342.501762343338,-11.50934003760713,-8.5993161269481977,-54.629441283130163,-8.5595892882815878,4.5605192610643774,-2.3968476044961329,-3.8591394053282158,{"$f":"IF('[1]MONE(M)CAPARD'!GS178=\"\",\"\",'[1]MONE(M)CAPARD'!GS178)","v":4186.6689513973706},{"$f":"IF('[1]MONE(M)CARD'!HA178=\"\",\"\",'[1]MONE(M)CAPARD'!HA178)","v":2782.8191632919456},{"$f":"IF('[1]MONE(M)CAPARD'!HB178=\"\",\"\",'[1]MONE(M)CAPARD'!HB178)","v":1403.849788105425},"n.d.",{"$f":"IF('[10]II.2.Balance OSD-Activos'!J36=\"\",\"\",'[10]II.2.Balance OSD-Activos'!J36)","v":628.62451379161712},{"$f":"IF('[10]II.2.Balance OSD-Activos'!N36=\"\",\"\",'[10]II.2.Balance OSD-Activos'!N36)","v":345.74872634593987},{"$f":"IF('[10]II.2.Balance OSD-Activos'!R36=\"\",\"\",'[10]II.2.Balance OSD-Activos'!R36)","v":16623.875522849077},{"$f":"IF('[10]II.2.Balance OSD-Activos'!S36=\"\",\"\",'[10]II.2.Balance OSD-Activos'!S36)","v":16951.299420036703},17252.500036640693,34549.548183023333,-38.173225021652499,-6.6782718395794411,-9.2514633011897445,-4.8453092105286366,4.1710040292778583,-1.6822048830670622,-2.338718284121144,{"$f":"IF('[1]MONE(M)CAPARD'!AS178=\"\",\"\",'[1]MONE(M)CAPARD'!AS178)","v":"n.d."},{"$f":"IF('[1]MONE(M)CAPARD'!AT178=\"\",\"\",'[1]MONE(M)CAPARD'!AT178)","v":"n.a."},{"$f":"IF('[1]MONE(M)CAPARD'!AU178=\"\",\"\",'[1]MONE(M)CAPARD'!AU178)","v":"n.d."},{"$f":"IF('[1]MONE(M)CAPARD'!AV178=\"\",\"\",'[1]MONE(M)CAPARD'!AV178)","v":"n.d."},{"$f":"IF('[1]MONE(M)CAPARD'!AW178=\"\",\"\",'[1]MONE(M)CAPARD'!AW178)","v":"n.a."},{"$f":"IF('[1]MONE(M)CAPARD'!AX178=\"\",\"\",'[1]MONE(M)CAPARD'!AX178)","v":45},{"$f":"IF('[1]MONE(M)CAPARD'!AY178=\"\",\"\",'[1]MONE(M)CAPARD'!AY178)","v":"n.a."},{"$f":"IF('[1]FISCAL(M)'!$K178=\"\",\"\",'[1]FISCAL(M)'!$K178)","v":-130.77758964961183},{"$f":"IF('[1]FISCAL(M)'!$L178=\"\",\"\",'[1]FISCAL(M)'!$L178)","v":-29.795601342611832},{"$f":"IF('[1]FISCAL(M)'!$AY178=\"\",\"\",'[1]FISCAL(M)'!$AY178)","v":"n.d."},{"$f":"IF('[1]FISCAL(M)'!$BI178=\"\",\"\",'[1]FISCAL(M)'!$BI178)","v":"n.d."},{"$f":"IF('[1]FISCAL(M)'!$BS178=\"\",\"\",'[1]FISCAL(M)'!$BS178)","v":"n.d."},{"$f":"IF('[1]FISCAL(M)'!$AZ178=\"\",\"\",'[1]FISCAL(M)'!$AZ178)","v":"n.d."},{"$f":"IF('[1]FISCAL(M)'!$BJ178=\"\",\"\",'[1]FISCAL(M)'!$BJ178)","v":"n.d."},{"$f":"IF('[1]FISCAL(M)'!$BT178=\"\",\"\",'[1]FISCAL(M)'!$BT178)","v":"n.d."},{"$f":"IF('[2]MONE(M)'!$AO178=\"\",\"\",'[2]MONE(M)'!$AO178)","v":2257287.0812391425},{"$f":"IF('[3]MONE(M)'!$AO178=\"\",\"\",'[3]MONE(M)'!$AO178)","v":6454.7767428571424},{"$f":"IF('[4]MONE(M)'!$AO178=\"\",\"\",'[4]MONE(M)'!$AO178)","v":47210.935087723381},{"$f":"+'[5]MONE(M)'!$AO178","v":54468.857097785367},{"$f":"IF('[6]MONE(M)'!$AO178=\"\",\"\",'[6]MONE(M)'!$AO178)","v":14279.604961210829},{"$f":"IF('[7]MONE(M)'!$AO178=\"\",\"\",'[7]MONE(M)'!$AO178)","v":212308.14318394},{"$f":"IF('[8]MONE(M)'!$AO178=\"\",\"\",'[8]MONE(M)'!$AO178)","v":10069.615774819998},18.586425788635232,7.5663146233621914,25.846926342042732,20.177579465449604,25.042922859912188,33.163653948779405,0.51998112383775386,{"$f":"IF('[1]FISCAL(M)'!$K178=\"\",\"\",'[1]FISCAL(M)'!$K178)","v":-130.77758964961183},{"$f":"+'[1]REAL(A)'!$AO$24","v":95171.868879548187},-0.1374120222595682,{"$f":"IF('[1]FISCAL(M)'!$L178=\"\",\"\",'[1]FISCAL(M)'!$L178)","v":-29.795601342611832},{"$f":"+'[1]REAL(A)'!$AP$24","v":"n.d."},"n.d.","n.d.",{"$f":"'[1]Gráfico REM'!BG172","v":7746.24174379743},{"$f":"'[1]Gráfico REM'!BH172","v":25728.548583205054},{"$f":"'[1]Gráfico REM'!BI172","v":1993.0703846406323},"n.d.",2.3949206680196067,-1.8539444769195557,112.34837516901237,"n.d.",{"$f":"'[1]Gráfico REM'!BK172","v":8291.7041828174297},{"$f":"'[1]Gráfico REM'!BL172","v":35798.164358025053},{"$f":"'[1]Gráfico REM'!BM172","v":8318.9819805306324},"n.d.",3.7368441901961758,-1.1975961865145712,6.5599452767419075]
[2004,"febrero","2004-febrero",{"$f":"IF('[1]REAL IPC(M)'!$AL179=\"\",\"\",+'[1]REAL IPC(M)'!$AL179)","v":20.240016692876182},{"$f":"IF('[1]REAL IPC(M)'!$BE179=\"\",\"\",+'[1]REAL IPC(M)'!$BE179)","v":12.570705213230294},{"$f":"IF('[1]REAL IPC(M)'!$AM179=\"\",\"\",+'[1]REAL IPC(M)'!$AM179)","v":18.352061169607147},{"$f":"IF('[1]REAL IPC(M)'!$BI179=\"\",\"\",+'[1]REAL IPC(M)'!$BI179)","v":11.60129214325789},{"$f":"IF('[1]REAL IMAE(M)'!BJ179=\"\",\"\",'[1]REAL IMAE(M)'!BJ179)","v":"n.d."},{"$f":"IF('[1]REAL IMAE(M)'!BK179=\"\",\"\",'[1]REAL IMAE(M)'!BK179)","v":"n.d."},{"$f":"IF('[1]REAL IMAE(M)'!BN179=\"\",\"\",'[1]REAL IMAE(M)'!BN179)","v":"n.d."},{"$f":"IF('[1]REAL IMAE(M)'!BO179=\"\",\"\",'[1]REAL IMAE(M)'!BO179)","v":"n.d."},{"$f":"IF('[1]EXT RIN(M)'!$K179=\"\",\"\",'[1]EXT RIN(M)'!$K179)","v":8259.4031791232519},"",{"$f":"IF('[1]EXT RIN(M)'!$L179=\"\",\"\",'[1]EXT RIN(M)'!$L179)","v":9318.0039083325319},"",{"$f":"IF('[1]MONE(M)CARD'!EG179=\"\",\"\",'[1]MONE(M)CARD'!EG179)","v":8955.3057689358338},{"$f":"IF('[1]MONE(M)CARD'!EK179=\"\",\"\",'[1]MONE(M)CARD'!EK179)","v":17487.525774230322},{"$f":"IF('[1]MONE(M)CARD'!EP179=\"\",\"\",'[1]MONE(M)CARD'!EP179)","v":10203.605931325837},{"$f":"IF('[1]MONE(M)CARD'!ES179=\"\",\"\",'[1]MONE(M)CARD'!ES179)","v":5.4726562367489517},{"$f":"IF('[1]MONE(M)CARD'!EV179=\"\",\"\",'[1]MONE(M)CARD'!EV179)","v":0.81189110833754796},{"$f":"IF('[1]MONE(M)CARD'!EZ179=\"\",\"\",'[1]MONE(M)CARD'!EZ179)","v":8.0925828169887701},{"$f":"IF('[1]MONE(M)CAPARD'!FC179=\"\",\"\",'[1]MONE(M)CAPARD'!FC179)","v":10380.355144665835},{"$f":"IF('[1]MONE(M)CAPARD'!FG179=\"\",\"\",'[1]MONE(M)CAPARD'!FG179)","v":26538.701133691324},{"$f":"IF('[1]MONE(M)CAPARD'!FL179=\"\",\"\",'[1]MONE(M)CAPARD'!FL179)","v":10203.605931325837},{"$f":"IF('[1]MONE(M)CAPARD'!FO179=\"\",\"\",'[1]MONE(M)CAPARD'!FO179)","v":7.1940655996516334},{"$f":"IF('[1]MONE(M)CAPARD'!FR179=\"\",\"\",'[1]MONE(M)CAPARD'!FR179)","v":2.1631421326554046},{"$f":"IF('[1]MONE(M)CAPARD'!FV179=\"\",\"\",'[1]MONE(M)CAPARD'!FV179)","v":7.560683424610648},{"$f":"IF('[1]MONE(M)CARD'!FV179=\"\",\"\",'[1]MONE(M)CARD'!FV179)","v":391.77956781704654},{"$f":"IF('[1]MONE(M)CARD'!GD179=\"\",\"\",'[1]MONE(M)CARD'!GD179)","v":34.806131642655046},{"$f":"IF('[1]MONE(M)CARD'!GE179=\"\",\"\",'[1]MONE(M)CARD'!GE179)","v":2667.2393720242908},-21.350217534554815,{"$f":"IF('[9]II.2.Balance OSD-Activos'!J37=\"\",\"\",'[9]II.2.Balance OSD-Activos'!J37)","v":144.77701805844725},{"$f":"IF('[9]II.2.Balance OSD-Activos'!N37=\"\",\"\",'[9]II.2.Balance OSD-Activos'!N37)","v":6.221343336749853},{"$f":"IF('[9]II.2.Balance OSD-Activos'!R37=\"\",\"\",'[9]II.2.Balance OSD-Activos'!R37)","v":11873.686057920722},{"$f":"IF('[9]II.2.Balance OSD-Activos'!S37=\"\",\"\",'[9]II.2.Balance OSD-Activos'!S37)","v":12608.38353468668},12018.463075979169,24633.067954002599,-18.405789845286325,-8.3785394351492677,-50.460573660526308,-8.2410450250203997,6.3119232042248452,-1.4278259422132789,0.96902166228285402,{"$f":"IF('[1]MONE(M)CAPARD'!GS179=\"\",\"\",'[1]MONE(M)CAPARD'!GS179)","v":4185.2051726472091},{"$f":"IF('[1]MONE(M)CARD'!HA179=\"\",\"\",'[1]MONE(M)CAPARD'!HA179)","v":2859.9392914342907},{"$f":"IF('[1]MONE(M)CAPARD'!HB179=\"\",\"\",'[1]MONE(M)CAPARD'!HB179)","v":1325.2658812129184},"n.d.",{"$f":"IF('[10]II.2.Balance OSD-Activos'!J37=\"\",\"\",'[10]II.2.Balance OSD-Activos'!J37)","v":633.9035701284472},{"$f":"IF('[10]II.2.Balance OSD-Activos'!N37=\"\",\"\",'[10]II.2.Balance OSD-Activos'!N37)","v":349.52070435674977},{"$f":"IF('[10]II.2.Balance OSD-Activos'!R37=\"\",\"\",'[10]II.2.Balance OSD-Activos'!R37)","v":16652.859433280722},{"$f":"IF('[10]II.2.Balance OSD-Activos'!S37=\"\",\"\",'[10]II.2.Balance OSD-Activos'!S37)","v":17264.588513046678},17286.763003409171,34900.872220812598,-34.424103749355375,-6.0327919712501954,-8.0287256805715135,-4.458196343471621,5.5732241349178979,-0.65169712645748445,1.0305077566095777,{"$f":"IF('[1]MONE(M)CAPARD'!AS179=\"\",\"\",'[1]MONE(M)CAPARD'!AS179)","v":"n.d."},{"$f":"IF('[1]MONE(M)CAPARD'!AT179=\"\",\"\",'[1]MONE(M)CAPARD'!AT179)","v":"n.a."},{"$f":"IF('[1]MONE(M)CAPARD'!AU179=\"\",\"\",'[1]MONE(M)CAPARD'!AU179)","v":"n.d."},{"$f":"IF('[1]MONE(M)CAPARD'!AV179=\"\",\"\",'[1]MONE(M)CAPARD'!AV179)","v":"n.d."},{"$f":"IF('[1]MONE(M)CAPARD'!AW179=\"\",\"\",'[1]MONE(M)CAPARD'!AW179)","v":"n.a."},{"$f":"IF('[1]MONE(M)CAPARD'!AX179=\"\",\"\",'[1]MONE(M)CAPARD'!AX179)","v":50},{"$f":"IF('[1]MONE(M)CAPARD'!AY179=\"\",\"\",'[1]MONE(M)CAPARD'!AY179)","v":"n.a."},{"$f":"IF('[1]FISCAL(M)'!$K179=\"\",\"\",'[1]FISCAL(M)'!$K179)","v":-256.08403758575764},{"$f":"IF('[1]FISCAL(M)'!$L179=\"\",\"\",'[1]FISCAL(M)'!$L179)","v":-487.7470750887577},{"$f":"IF('[1]FISCAL(M)'!$AY179=\"\",\"\",'[1]FISCAL(M)'!$AY179)","v":"n.d."},{"$f":"IF('[1]FISCAL(M)'!$BI179=\"\",\"\",'[1]FISCAL(M)'!$BI179)","v":"n.d."},{"$f":"IF('[1]FISCAL(M)'!$BS179=\"\",\"\",'[1]FISCAL(M)'!$BS179)","v":"n.d."},{"$f":"IF('[1]FISCAL(M)'!$AZ179=\"\",\"\",'[1]FISCAL(M)'!$AZ179)","v":"n.d."},{"$f":"IF('[1]FISCAL(M)'!$BJ179=\"\",\"\",'[1]FISCAL(M)'!$BJ179)","v":"n.d."},{"$f":"IF('[1]FISCAL(M)'!$BT179=\"\",\"\",'[1]FISCAL(M)'!$BT179)","v":"n.d."},{"$f":"IF('[2]MONE(M)'!$AO179=\"\",\"\",'[2]MONE(M)'!$AO179)","v":2264679.7001891024},{"$f":"IF('[3]MONE(M)'!$AO179=\"\",\"\",'[3]MONE(M)'!$AO179)","v":6519.8817428571429},{"$f":"IF('[4]MONE(M)'!$AO179=\"\",\"\",'[4]MONE(M)'!$AO179)","v":47060.365496984297},{"$f":"+'[5]MONE(M)'!$AO179","v":55252.158056538923},{"$f":"IF('[6]MONE(M)'!$AO179=\"\",\"\",'[6]MONE(M)'!$AO179)","v":14523.739080641208},{"$f":"IF('[7]MONE(M)'!$AO179=\"\",\"\",'[7]MONE(M)'!$AO179)","v":209462.19771930002},{"$f":"IF('[8]MONE(M)'!$AO179=\"\",\"\",'[8]MONE(M)'!$AO179)","v":10139.172773419999},16.514868962800342,7.8441323074716074,25.287096026669676,20.667431012250368,23.21342711859986,31.26793037990425,1.7907636489177481,{"$f":"IF('[1]FISCAL(M)'!$K179=\"\",\"\",'[1]FISCAL(M)'!$K179)","v":-256.08403758575764},{"$f":"+'[1]REAL(A)'!$AO$24","v":95171.868879548187},-0.26907534821015627,{"$f":"IF('[1]FISCAL(M)'!$L179=\"\",\"\",'[1]FISCAL(M)'!$L179)","v":-487.7470750887577},{"$f":"+'[1]REAL(A)'!$AP$24","v":"n.d."},"n.d.","n.d.",{"$f":"'[1]Gráfico REM'!BG173","v":7684.5847636800518},{"$f":"'[1]Gráfico REM'!BH173","v":26026.018963127757},{"$f":"'[1]Gráfico REM'!BI173","v":2037.6084268549625},"n.d.",6.4329599305571028,-1.0071464920524131,123.35907468395963,"n.d.",{"$f":"'[1]Gráfico REM'!BK173","v":8227.4450437800515},{"$f":"'[1]Gráfico REM'!BL173","v":36165.191736547757},{"$f":"'[1]Gráfico REM'!BM173","v":8268.4573336649628},"n.d.",7.2883934999807609,-0.23836895978991413,5.5581119993698636]
[2004,"marzo","2004-marzo",{"$f":"IF('[1]REAL IPC(M)'!$AL180=\"\",\"\",+'[1]REAL IPC(M)'!$AL180)","v":20.59770100386924},{"$f":"IF('[1]REAL IPC(M)'!$BE180=\"\",\"\",+'[1]REAL IPC(M)'!$BE180)","v":12.598756944627553},{"$f":"IF('[1]REAL IPC(M)'!$AM180=\"\",\"\",+'[1]REAL IPC(M)'!$AM180)","v":18.648453623283999},{"$f":"IF('[1]REAL IPC(M)'!$BI180=\"\",\"\",+'[1]REAL IPC(M)'!$BI180)","v":11.637389381114428},{"$f":"IF('[1]REAL IMAE(M)'!BJ180=\"\",\"\",'[1]REAL IMAE(M)'!BJ180)","v":"n.d."},{"$f":"IF('[1]REAL IMAE(M)'!BK180=\"\",\"\",'[1]REAL IMAE(M)'!BK180)","v":"n.d."},{"$f":"IF('[1]REAL IMAE(M)'!BN180=\"\",\"\",'[1]REAL IMAE(M)'!BN180)","v":"n.d."},{"$f":"IF('[1]REAL IMAE(M)'!BO180=\"\",\"\",'[1]REAL IMAE(M)'!BO180)","v":"n.d."},{"$f":"IF('[1]EXT RIN(M)'!$K180=\"\",\"\",'[1]EXT RIN(M)'!$K180)","v":8521.7542298615499},"",{"$f":"IF('[1]EXT RIN(M)'!$L180=\"\",\"\",'[1]EXT RIN(M)'!$L180)","v":9482.0687180005898},"",{"$f":"IF('[1]MONE(M)CARD'!EG180=\"\",\"\",'[1]MONE(M)CARD'!EG180)","v":8967.5425605631863},{"$f":"IF('[1]MONE(M)CARD'!EK180=\"\",\"\",'[1]MONE(M)CARD'!EK180)","v":18327.286312134926},{"$f":"IF('[1]MONE(M)CARD'!EP180=\"\",\"\",'[1]MONE(M)CARD'!EP180)","v":10317.3424992527},{"$f":"IF('[1]MONE(M)CARD'!ES180=\"\",\"\",'[1]MONE(M)CARD'!ES180)","v":6.4916221474649261},{"$f":"IF('[1]MONE(M)CARD'!EV180=\"\",\"\",'[1]MONE(M)CARD'!EV180)","v":3.4308222377010589},{"$f":"IF('[1]MONE(M)CARD'!EZ180=\"\",\"\",'[1]MONE(M)CARD'!EZ180)","v":9.1429007257209918},{"$f":"IF('[1]MONE(M)CAPARD'!FC180=\"\",\"\",'[1]MONE(M)CAPARD'!FC180)","v":10426.073231513186},{"$f":"IF('[1]MONE(M)CAPARD'!FG180=\"\",\"\",'[1]MONE(M)CAPARD'!FG180)","v":27438.527597544922},{"$f":"IF('[1]MONE(M)CAPARD'!FL180=\"\",\"\",'[1]MONE(M)CAPARD'!FL180)","v":10317.3424992527},{"$f":"IF('[1]MONE(M)CAPARD'!FO180=\"\",\"\",'[1]MONE(M)CAPARD'!FO180)","v":7.7555866888759262},{"$f":"IF('[1]MONE(M)CAPARD'!FR180=\"\",\"\",'[1]MONE(M)CAPARD'!FR180)","v":4.2666692308650056},{"$f":"IF('[1]MONE(M)CAPARD'!FV180=\"\",\"\",'[1]MONE(M)CAPARD'!FV180)","v":8.5494295499775497},{"$f":"IF('[1]MONE(M)CARD'!FV180=\"\",\"\",'[1]MONE(M)CARD'!FV180)","v":386.00252307081303},{"$f":"IF('[1]MONE(M)CARD'!GD180=\"\",\"\",'[1]MONE(M)CARD'!GD180)","v":32.750185669922757},{"$f":"IF('[1]MONE(M)CARD'!GE180=\"\",\"\",'[1]MONE(M)CARD'!GE180)","v":2538.4907456464966},-25.585519766605923,{"$f":"IF('[9]II.2.Balance OSD-Activos'!J38=\"\",\"\",'[9]II.2.Balance OSD-Activos'!J38)","v":151.48253041002678},{"$f":"IF('[9]II.2.Balance OSD-Activos'!N38=\"\",\"\",'[9]II.2.Balance OSD-Activos'!N38)","v":7.2063528394402621},{"$f":"IF('[9]II.2.Balance OSD-Activos'!R38=\"\",\"\",'[9]II.2.Balance OSD-Activos'!R38)","v":11955.392718485018},{"$f":"IF('[9]II.2.Balance OSD-Activos'!S38=\"\",\"\",'[9]II.2.Balance OSD-Activos'!S38)","v":12960.732995928647},12106.875248895045,25074.814597663135,-17.810515103371049,-9.9217186795977348,-38.225728387915503,-9.8120350579350646,9.0131447809407064,-1.0512177265561973,0.37660821565708158,{"$f":"IF('[1]MONE(M)CAPARD'!GS180=\"\",\"\",'[1]MONE(M)CAPARD'!GS180)","v":4323.3349215659464},{"$f":"IF('[1]MONE(M)CARD'!HA180=\"\",\"\",'[1]MONE(M)CAPARD'!HA180)","v":2738.0493587364972},{"$f":"IF('[1]MONE(M)CAPARD'!HB180=\"\",\"\",'[1]MONE(M)CAPARD'!HB180)","v":1585.2855628294492},"n.d.",{"$f":"IF('[10]II.2.Balance OSD-Activos'!J38=\"\",\"\",'[10]II.2.Balance OSD-Activos'!J38)","v":634.52876591002666},{"$f":"IF('[10]II.2.Balance OSD-Activos'!N38=\"\",\"\",'[10]II.2.Balance OSD-Activos'!N38)","v":364.80788350944016},{"$f":"IF('[10]II.2.Balance OSD-Activos'!R38=\"\",\"\",'[10]II.2.Balance OSD-Activos'!R38)","v":16791.320514195017},{"$f":"IF('[10]II.2.Balance OSD-Activos'!S38=\"\",\"\",'[10]II.2.Balance OSD-Activos'!S38)","v":17651.305490318649},17425.849280105042,35441.962653933137,-34.430078638122673,-6.9978924917473933,-3.4487030501975102,-5.5039430264683169,7.7710418654254765,-0.14494819897488131,0.50674892748260314,{"$f":"IF('[1]MONE(M)CAPARD'!AS180=\"\",\"\",'[1]MONE(M)CAPARD'!AS180)","v":"n.d."},{"$f":"IF('[1]MONE(M)CAPARD'!AT180=\"\",\"\",'[1]MONE(M)CAPARD'!AT180)","v":"n.a."},{"$f":"IF('[1]MONE(M)CAPARD'!AU180=\"\",\"\",'[1]MONE(M)CAPARD'!AU180)","v":"n.d."},{"$f":"IF('[1]MONE(M)CAPARD'!AV180=\"\",\"\",'[1]MONE(M)CAPARD'!AV180)","v":"n.d."},{"$f":"IF('[1]MONE(M)CAPARD'!AW180=\"\",\"\",'[1]MONE(M)CAPARD'!AW180)","v":"n.a."},{"$f":"IF('[1]MONE(M)CAPARD'!AX180=\"\",\"\",'[1]MONE(M)CAPARD'!AX180)","v":50},{"$f":"IF('[1]MONE(M)CAPARD'!AY180=\"\",\"\",'[1]MONE(M)CAPARD'!AY180)","v":"n.a."},{"$f":"IF('[1]FISCAL(M)'!$K180=\"\",\"\",'[1]FISCAL(M)'!$K180)","v":-477.92053644253923},{"$f":"IF('[1]FISCAL(M)'!$L180=\"\",\"\",'[1]FISCAL(M)'!$L180)","v":-682.02588688553942},{"$f":"IF('[1]FISCAL(M)'!$AY180=\"\",\"\",'[1]FISCAL(M)'!$AY180)","v":"n.d."},{"$f":"IF('[1]FISCAL(M)'!$BI180=\"\",\"\",'[1]FISCAL(M)'!$BI180)","v":"n.d."},{"$f":"IF('[1]FISCAL(M)'!$BS180=\"\",\"\",'[1]FISCAL(M)'!$BS180)","v":"n.d."},{"$f":"IF('[1]FISCAL(M)'!$AZ180=\"\",\"\",'[1]FISCAL(M)'!$AZ180)","v":"n.d."},{"$f":"IF('[1]FISCAL(M)'!$BJ180=\"\",\"\",'[1]FISCAL(M)'!$BJ180)","v":"n.d."},{"$f":"IF('[1]FISCAL(M)'!$BT180=\"\",\"\",'[1]FISCAL(M)'!$BT180)","v":"n.d."},{"$f":"IF('[2]MONE(M)'!$AO180=\"\",\"\",'[2]MONE(M)'!$AO180)","v":2293291.7168150079},{"$f":"IF('[3]MONE(M)'!$AO180=\"\",\"\",'[3]MONE(M)'!$AO180)","v":6534.0687428571437},{"$f":"IF('[4]MONE(M)'!$AO180=\"\",\"\",'[4]MONE(M)'!$AO180)","v":47367.7027573175},{"$f":"+'[5]MONE(M)'!$AO180","v":56106.371277071557},{"$f":"IF('[6]MONE(M)'!$AO180=\"\",\"\",'[6]MONE(M)'!$AO180)","v":15044.625254663562},{"$f":"IF('[7]MONE(M)'!$AO180=\"\",\"\",'[7]MONE(M)'!$AO180)","v":200932.02052202},{"$f":"IF('[8]MONE(M)'!$AO180=\"\",\"\",'[8]MONE(M)'!$AO180)","v":10212.338378479999},17.405096302625477,7.2679598665294609,24.172067551146338,20.486653068902893,28.003303051288974,17.527089762195793,2.3277243505253509,{"$f":"IF('[1]FISCAL(M)'!$K180=\"\",\"\",'[1]FISCAL(M)'!$K180)","v":-477.92053644253923},{"$f":"+'[1]REAL(A)'!$AO$24","v":95171.868879548187},-0.50216575766459626,{"$f":"IF('[1]FISCAL(M)'!$L180=\"\",\"\",'[1]FISCAL(M)'!$L180)","v":-682.02588688553942},{"$f":"+'[1]REAL(A)'!$AP$24","v":"n.d."},"n.d.","n.d.",{"$f":"'[1]Gráfico REM'!BG174","v":7969.4904818365485},{"$f":"'[1]Gráfico REM'!BH174","v":26443.189789213458},{"$f":"'[1]Gráfico REM'!BI174","v":2020.0238783190803},"n.d.",7.8662811661415422,-0.77618265737228187,120.53043025667077,"n.d.",{"$f":"'[1]Gráfico REM'!BK174","v":8509.6849449465481},{"$f":"'[1]Gráfico REM'!BL174","v":36655.528167693454},{"$f":"'[1]Gráfico REM'!BM174","v":8188.0980909490791},"n.d.",8.8298846569311316,6.9490977208652716E-2,2.7316647205775313]
[2004,"abril","2004-abril",{"$f":"IF('[1]REAL IPC(M)'!$AL181=\"\",\"\",+'[1]REAL IPC(M)'!$AL181)","v":21.042542798134669},{"$f":"IF('[1]REAL IPC(M)'!$BE181=\"\",\"\",+'[1]REAL IPC(M)'!$BE181)","v":12.602373698775304},{"$f":"IF('[1]REAL IPC(M)'!$AM181=\"\",\"\",+'[1]REAL IPC(M)'!$AM181)","v":19.051801305404759},{"$f":"IF('[1]REAL IPC(M)'!$BI181=\"\",\"\",+'[1]REAL IPC(M)'!$BI181)","v":11.64982191735211},{"$f":"IF('[1]REAL IMAE(M)'!BJ181=\"\",\"\",'[1]REAL IMAE(M)'!BJ181)","v":"n.d."},{"$f":"IF('[1]REAL IMAE(M)'!BK181=\"\",\"\",'[1]REAL IMAE(M)'!BK181)","v":"n.d."},{"$f":"IF('[1]REAL IMAE(M)'!BN181=\"\",\"\",'[1]REAL IMAE(M)'!BN181)","v":"n.d."},{"$f":"IF('[1]REAL IMAE(M)'!BO181=\"\",\"\",'[1]REAL IMAE(M)'!BO181)","v":"n.d."},{"$f":"IF('[1]EXT RIN(M)'!$K181=\"\",\"\",'[1]EXT RIN(M)'!$K181)","v":8396.2645054101631},"",{"$f":"IF('[1]EXT RIN(M)'!$L181=\"\",\"\",'[1]EXT RIN(M)'!$L181)","v":9340.6075733727121},"",{"$f":"IF('[1]MONE(M)CARD'!EG181=\"\",\"\",'[1]MONE(M)CARD'!EG181)","v":8900.9467793062831},{"$f":"IF('[1]MONE(M)CARD'!EK181=\"\",\"\",'[1]MONE(M)CARD'!EK181)","v":18141.140126003276},{"$f":"IF('[1]MONE(M)CARD'!EP181=\"\",\"\",'[1]MONE(M)CARD'!EP181)","v":10690.078297646563},{"$f":"IF('[1]MONE(M)CARD'!ES181=\"\",\"\",'[1]MONE(M)CARD'!ES181)","v":-0.4419279817374},{"$f":"IF('[1]MONE(M)CARD'!EV181=\"\",\"\",'[1]MONE(M)CARD'!EV181)","v":-3.9683277439585773},{"$f":"IF('[1]MONE(M)CARD'!EZ181=\"\",\"\",'[1]MONE(M)CARD'!EZ181)","v":4.2049536620945682},{"$f":"IF('[1]MONE(M)CAPARD'!FC181=\"\",\"\",'[1]MONE(M)CAPARD'!FC181)","v":10358.624524236282},{"$f":"IF('[1]MONE(M)CAPARD'!FG181=\"\",\"\",'[1]MONE(M)CAPARD'!FG181)","v":27355.682429963275},{"$f":"IF('[1]MONE(M)CAPARD'!FL181=\"\",\"\",'[1]MONE(M)CAPARD'!FL181)","v":10690.078297646571},{"$f":"IF('[1]MONE(M)CAPARD'!FO181=\"\",\"\",'[1]MONE(M)CAPARD'!FO181)","v":1.8083358331499211},{"$f":"IF('[1]MONE(M)CAPARD'!FR181=\"\",\"\",'[1]MONE(M)CAPARD'!FR181)","v":-0.95086649647686539},{"$f":"IF('[1]MONE(M)CAPARD'!FV181=\"\",\"\",'[1]MONE(M)CAPARD'!FV181)","v":4.9386130100223413},{"$f":"IF('[1]MONE(M)CARD'!FV181=\"\",\"\",'[1]MONE(M)CARD'!FV181)","v":384.6455967258928},{"$f":"IF('[1]MONE(M)CARD'!GD181=\"\",\"\",'[1]MONE(M)CARD'!GD181)","v":101.27272632068318},{"$f":"IF('[1]MONE(M)CARD'!GE181=\"\",\"\",'[1]MONE(M)CARD'!GE181)","v":3035.2843407840737},-9.7432730032710353,{"$f":"IF('[9]II.2.Balance OSD-Activos'!J39=\"\",\"\",'[9]II.2.Balance OSD-Activos'!J39)","v":144.21368733274758},{"$f":"IF('[9]II.2.Balance OSD-Activos'!N39=\"\",\"\",'[9]II.2.Balance OSD-Activos'!N39)","v":8.8910027427909704},{"$f":"IF('[9]II.2.Balance OSD-Activos'!R39=\"\",\"\",'[9]II.2.Balance OSD-Activos'!R39)","v":11827.428663229835},{"$f":"IF('[9]II.2.Balance OSD-Activos'!S39=\"\",\"\",'[9]II.2.Balance OSD-Activos'!S39)","v":13080.299249471052},11971.642350562583,25060.832602776427,-15.290183366379795,-10.482017085735141,{"$f":"IF(OR(AG174=\"\",AG162=\"\"),\"\",((AG174/AG162)-1)*100)","v":-23.170451882673582},-10.420019776208733,9.1847727571038984,-1.1991172079181323,-0.14789948136193498,{"$f":"IF('[1]MONE(M)CAPARD'!GS181=\"\",\"\",'[1]MONE(M)CAPARD'!GS181)","v":4523.9574917178061},{"$f":"IF('[1]MONE(M)CARD'!HA181=\"\",\"\",'[1]MONE(M)CAPARD'!HA181)","v":3223.8992633640737},{"$f":"IF('[1]MONE(M)CAPARD'!HB181=\"\",\"\",'[1]MONE(M)CAPARD'!HB181)","v":1300.0582283537324},"n.d.",{"$f":"IF('[10]II.2.Balance OSD-Activos'!J39=\"\",\"\",'[10]II.2.Balance OSD-Activos'!J39)","v":650.73566115274753},{"$f":"IF('[10]II.2.Balance OSD-Activos'!N39=\"\",\"\",'[10]II.2.Balance OSD-Activos'!N39)","v":394.75348631279093},{"$f":"IF('[10]II.2.Balance OSD-Activos'!R39=\"\",\"\",'[10]II.2.Balance OSD-Activos'!R39)","v":16658.711419409836},{"$f":"IF('[10]II.2.Balance OSD-Activos'!S39=\"\",\"\",'[10]II.2.Balance OSD-Activos'!S39)","v":17819.279986971054},17309.447080562582,35523.480553846428,-33.878056381057561,-7.1316482426587164,8.7492289090354447,-5.6406818550209126,8.0675158503767932,9.2328091817939217E-2,0.23727629079282053,{"$f":"IF('[1]MONE(M)CAPARD'!AS181=\"\",\"\",'[1]MONE(M)CAPARD'!AS181)","v":"n.d."},{"$f":"IF('[1]MONE(M)CAPARD'!AT181=\"\",\"\",'[1]MONE(M)CAPARD'!AT181)","v":"n.a."},{"$f":"IF('[1]MONE(M)CAPARD'!AU181=\"\",\"\",'[1]MONE(M)CAPARD'!AU181)","v":"n.d."},{"$f":"IF('[1]MONE(M)CAPARD'!AV181=\"\",\"\",'[1]MONE(M)CAPARD'!AV181)","v":"n.d."},{"$f":"IF('[1]MONE(M)CAPARD'!AW181=\"\",\"\",'[1]MONE(M)CAPARD'!AW181)","v":"n.a."},{"$f":"IF('[1]MONE(M)CAPARD'!AX181=\"\",\"\",'[1]MONE(M)CAPARD'!AX181)","v":50},{"$f":"IF('[1]MONE(M)CAPARD'!AY181=\"\",\"\",'[1]MONE(M)CAPARD'!AY181)","v":"n.a."},{"$f":"IF('[1]FISCAL(M)'!$K181=\"\",\"\",'[1]FISCAL(M)'!$K181)","v":-288.45871613859413},{"$f":"IF('[1]FISCAL(M)'!$L181=\"\",\"\",'[1]FISCAL(M)'!$L181)","v":-563.76182943159415},{"$f":"IF('[1]FISCAL(M)'!$AY181=\"\",\"\",'[1]FISCAL(M)'!$AY181)","v":"n.d."},{"$f":"IF('[1]FISCAL(M)'!$BI181=\"\",\"\",'[1]FISCAL(M)'!$BI181)","v":"n.d."},{"$f":"IF('[1]FISCAL(M)'!$BS181=\"\",\"\",'[1]FISCAL(M)'!$BS181)","v":"n.d."},{"$f":"IF('[1]FISCAL(M)'!$AZ181=\"\",\"\",'[1]FISCAL(M)'!$AZ181)","v":"n.d."},{"$f":"IF('[1]FISCAL(M)'!$BJ181=\"\",\"\",'[1]FISCAL(M)'!$BJ181)","v":"n.d."},{"$f":"IF('[1]FISCAL(M)'!$BT181=\"\",\"\",'[1]FISCAL(M)'!$BT181)","v":"n.d."},{"$f":"IF('[2]MONE(M)'!$AO181=\"\",\"\",'[2]MONE(M)'!$AO181)","v":2363615.6141269617},{"$f":"IF('[3]MONE(M)'!$AO181=\"\",\"\",'[3]MONE(M)'!$AO181)","v":6574.8637428571428},{"$f":"IF('[4]MONE(M)'!$AO181=\"\",\"\",'[4]MONE(M)'!$AO181)","v":47524.420238413499},{"$f":"+'[5]MONE(M)'!$AO181","v":56717.839087645792},{"$f":"IF('[6]MONE(M)'!$AO181=\"\",\"\",'[6]MONE(M)'!$AO181)","v":15006.401547596222},{"$f":"IF('[7]MONE(M)'!$AO181=\"\",\"\",'[7]MONE(M)'!$AO181)","v":200349.53881819002},{"$f":"IF('[8]MONE(M)'!$AO181=\"\",\"\",'[8]MONE(M)'!$AO181)","v":10276.651957710001},20.180146416134971,7.0398516893920071,24.956212498693155,20.654299430083256,25.98057690287272,17.920046878551467,3.0338905134093208,{"$f":"IF('[1]FISCAL(M)'!$K181=\"\",\"\",'[1]FISCAL(M)'!$K181)","v":-288.45871613859413},{"$f":"+'[1]REAL(A)'!$AO$24","v":95171.868879548187},-0.30309241536874137,{"$f":"IF('[1]FISCAL(M)'!$L181=\"\",\"\",'[1]FISCAL(M)'!$L181)","v":-563.76182943159415},{"$f":"+'[1]REAL(A)'!$AP$24","v":"n.d."},"n.d.","n.d.",{"$f":"'[1]Gráfico REM'!BG175","v":8467.7530404840327},{"$f":"'[1]Gráfico REM'!BH175","v":26465.312137103556},{"$f":"'[1]Gráfico REM'!BI175","v":2100.3960726269515},"n.d.",4.7666540020397496,-0.67538321445504979,102.92294270365061,"n.d.",{"$f":"'[1]Gráfico REM'!BK175","v":9003.3417582940328},{"$f":"'[1]Gráfico REM'!BL175","v":36741.964094813557},{"$f":"'[1]Gráfico REM'!BM175","v":8427.8090572069523},"n.d.",5.5685503172501427,0.33491633061586423,8.5378143028294708]
[2004,"mayo ","2004-mayo ",{"$f":"IF('[1]REAL IPC(M)'!$AL182=\"\",\"\",+'[1]REAL IPC(M)'!$AL182)","v":22.014791110435496},{"$f":"IF('[1]REAL IPC(M)'!$BE182=\"\",\"\",+'[1]REAL IPC(M)'!$BE182)","v":12.581447112496136},{"$f":"IF('[1]REAL IPC(M)'!$AM182=\"\",\"\",+'[1]REAL IPC(M)'!$AM182)","v":19.979943215255492},{"$f":"IF('[1]REAL IPC(M)'!$BI182=\"\",\"\",+'[1]REAL IPC(M)'!$BI182)","v":11.638384244756072},{"$f":"IF('[1]REAL IMAE(M)'!BJ182=\"\",\"\",'[1]REAL IMAE(M)'!BJ182)","v":"n.d."},{"$f":"IF('[1]REAL IMAE(M)'!BK182=\"\",\"\",'[1]REAL IMAE(M)'!BK182)","v":"n.d."},{"$f":"IF('[1]REAL IMAE(M)'!BN182=\"\",\"\",'[1]REAL IMAE(M)'!BN182)","v":"n.d."},{"$f":"IF('[1]REAL IMAE(M)'!BO182=\"\",\"\",'[1]REAL IMAE(M)'!BO182)","v":"n.d."},{"$f":"IF('[1]EXT RIN(M)'!$K182=\"\",\"\",'[1]EXT RIN(M)'!$K182)","v":8390.096511707261},"",{"$f":"IF('[1]EXT RIN(M)'!$L182=\"\",\"\",'[1]EXT RIN(M)'!$L182)","v":9223.7991021306207},"",{"$f":"IF('[1]MONE(M)CARD'!EG182=\"\",\"\",'[1]MONE(M)CARD'!EG182)","v":9026.7005346196765},{"$f":"IF('[1]MONE(M)CARD'!EK182=\"\",\"\",'[1]MONE(M)CARD'!EK182)","v":18221.808097930101},{"$f":"IF('[1]MONE(M)CARD'!EP182=\"\",\"\",'[1]MONE(M)CARD'!EP182)","v":11221.594995932854},{"$f":"IF('[1]MONE(M)CARD'!ES182=\"\",\"\",'[1]MONE(M)CARD'!ES182)","v":4.7126375727794656},{"$f":"IF('[1]MONE(M)CARD'!EV182=\"\",\"\",'[1]MONE(M)CARD'!EV182)","v":-0.31923708935321926},{"$f":"IF('[1]MONE(M)CARD'!EZ182=\"\",\"\",'[1]MONE(M)CARD'!EZ182)","v":9.072934453585102},{"$f":"IF('[1]MONE(M)CAPARD'!FC182=\"\",\"\",'[1]MONE(M)CAPARD'!FC182)","v":10435.405882119678},{"$f":"IF('[1]MONE(M)CAPARD'!FG182=\"\",\"\",'[1]MONE(M)CAPARD'!FG182)","v":27541.6386454801},{"$f":"IF('[1]MONE(M)CAPARD'!FL182=\"\",\"\",'[1]MONE(M)CAPARD'!FL182)","v":11221.59499593285},{"$f":"IF('[1]MONE(M)CAPARD'!FO182=\"\",\"\",'[1]MONE(M)CAPARD'!FO182)","v":5.5347881044243596},{"$f":"IF('[1]MONE(M)CAPARD'!FR182=\"\",\"\",'[1]MONE(M)CAPARD'!FR182)","v":1.8162841219779624},{"$f":"IF('[1]MONE(M)CAPARD'!FV182=\"\",\"\",'[1]MONE(M)CAPARD'!FV182)","v":8.7650299877588544},{"$f":"IF('[1]MONE(M)CARD'!FV182=\"\",\"\",'[1]MONE(M)CARD'!FV182)","v":337.77128290971746},{"$f":"IF('[1]MONE(M)CARD'!GD182=\"\",\"\",'[1]MONE(M)CARD'!GD182)","v":33.036243484281535},{"$f":"IF('[1]MONE(M)CARD'!GE182=\"\",\"\",'[1]MONE(M)CARD'!GE182)","v":2800.0622193373006},-14.486736550933211,{"$f":"IF('[9]II.2.Balance OSD-Activos'!J40=\"\",\"\",'[9]II.2.Balance OSD-Activos'!J40)","v":145.32425950760771},{"$f":"IF('[9]II.2.Balance OSD-Activos'!N40=\"\",\"\",'[9]II.2.Balance OSD-Activos'!N40)","v":10.297305464819754},{"$f":"IF('[9]II.2.Balance OSD-Activos'!R40=\"\",\"\",'[9]II.2.Balance OSD-Activos'!R40)","v":11792.609340012616},{"$f":"IF('[9]II.2.Balance OSD-Activos'!S40=\"\",\"\",'[9]II.2.Balance OSD-Activos'!S40)","v":13161.175069249148},11937.933599520224,25109.405974234192,-16.606276276419784,-9.0136443217871509,-17.582072799367388,-8.9114442961197966,12.679931250514498,1.193699397353476,2.3928166052716082,{"$f":"IF('[1]MONE(M)CAPARD'!GS182=\"\",\"\",'[1]MONE(M)CAPARD'!GS182)","v":4890.4790418028333},{"$f":"IF('[1]MONE(M)CARD'!HA182=\"\",\"\",'[1]MONE(M)CAPARD'!HA182)","v":2990.7185783973005},{"$f":"IF('[1]MONE(M)CAPARD'!HB182=\"\",\"\",'[1]MONE(M)CAPARD'!HB182)","v":1899.7604634055328},"n.d.",{"$f":"IF('[10]II.2.Balance OSD-Activos'!J40=\"\",\"\",'[10]II.2.Balance OSD-Activos'!J40)","v":652.77519963760778},{"$f":"IF('[10]II.2.Balance OSD-Activos'!N40=\"\",\"\",'[10]II.2.Balance OSD-Activos'!N40)","v":450.79833013481976},{"$f":"IF('[10]II.2.Balance OSD-Activos'!R40=\"\",\"\",'[10]II.2.Balance OSD-Activos'!R40)","v":16653.491495622617},{"$f":"IF('[10]II.2.Balance OSD-Activos'!S40=\"\",\"\",'[10]II.2.Balance OSD-Activos'!S40)","v":17909.045604529147},17306.266695260223,35666.110629924195,-34.072287898894871,-5.795612697961106,31.103459583687076,-4.184769626237383,10.442111213607742,2.105625598860783,2.0132975070428438,{"$f":"IF('[1]MONE(M)CAPARD'!AS182=\"\",\"\",'[1]MONE(M)CAPARD'!AS182)","v":"n.d."},{"$f":"IF('[1]MONE(M)CAPARD'!AT182=\"\",\"\",'[1]MONE(M)CAPARD'!AT182)","v":"n.a."},{"$f":"IF('[1]MONE(M)CAPARD'!AU182=\"\",\"\",'[1]MONE(M)CAPARD'!AU182)","v":"n.d."},{"$f":"IF('[1]MONE(M)CAPARD'!AV182=\"\",\"\",'[1]MONE(M)CAPARD'!AV182)","v":"n.d."},{"$f":"IF('[1]MONE(M)CAPARD'!AW182=\"\",\"\",'[1]MONE(M)CAPARD'!AW182)","v":"n.a."},{"$f":"IF('[1]MONE(M)CAPARD'!AX182=\"\",\"\",'[1]MONE(M)CAPARD'!AX182)","v":15},{"$f":"IF('[1]MONE(M)CAPARD'!AY182=\"\",\"\",'[1]MONE(M)CAPARD'!AY182)","v":"n.a."},{"$f":"IF('[1]FISCAL(M)'!$K182=\"\",\"\",'[1]FISCAL(M)'!$K182)","v":-426.47591313525845},{"$f":"IF('[1]FISCAL(M)'!$L182=\"\",\"\",'[1]FISCAL(M)'!$L182)","v":-738.92504648825843},{"$f":"IF('[1]FISCAL(M)'!$AY182=\"\",\"\",'[1]FISCAL(M)'!$AY182)","v":"n.d."},{"$f":"IF('[1]FISCAL(M)'!$BI182=\"\",\"\",'[1]FISCAL(M)'!$BI182)","v":"n.d."},{"$f":"IF('[1]FISCAL(M)'!$BS182=\"\",\"\",'[1]FISCAL(M)'!$BS182)","v":"n.d."},{"$f":"IF('[1]FISCAL(M)'!$AZ182=\"\",\"\",'[1]FISCAL(M)'!$AZ182)","v":"n.d."},{"$f":"IF('[1]FISCAL(M)'!$BJ182=\"\",\"\",'[1]FISCAL(M)'!$BJ182)","v":"n.d."},{"$f":"IF('[1]FISCAL(M)'!$BT182=\"\",\"\",'[1]FISCAL(M)'!$BT182)","v":"n.d."},{"$f":"IF('[2]MONE(M)'!$AO182=\"\",\"\",'[2]MONE(M)'!$AO182)","v":2408493.9769793162},{"$f":"IF('[3]MONE(M)'!$AO182=\"\",\"\",'[3]MONE(M)'!$AO182)","v":6631.9647428571425},{"$f":"IF('[4]MONE(M)'!$AO182=\"\",\"\",'[4]MONE(M)'!$AO182)","v":47901.264479007077},{"$f":"+'[5]MONE(M)'!$AO182","v":57479.781979124004},{"$f":"IF('[6]MONE(M)'!$AO182=\"\",\"\",'[6]MONE(M)'!$AO182)","v":15486.079968726992},{"$f":"IF('[7]MONE(M)'!$AO182=\"\",\"\",'[7]MONE(M)'!$AO182)","v":203216.12938179},{"$f":"IF('[8]MONE(M)'!$AO182=\"\",\"\",'[8]MONE(M)'!$AO182)","v":10337.750404279999},21.307840873532168,7.9830720422487511,24.282415169997318,21.751911857044036,28.897531723630145,12.394686216189687,3.5923146404200024,{"$f":"IF('[1]FISCAL(M)'!$K182=\"\",\"\",'[1]FISCAL(M)'!$K182)","v":-426.47591313525845},{"$f":"+'[1]REAL(A)'!$AO$24","v":95171.868879548187},-0.44811131498848328,{"$f":"IF('[1]FISCAL(M)'!$L182=\"\",\"\",'[1]FISCAL(M)'!$L182)","v":-738.92504648825843},{"$f":"+'[1]REAL(A)'!$AP$24","v":"n.d."},"n.d.","n.d.",{"$f":"'[1]Gráfico REM'!BG176","v":9042.3929774327662},{"$f":"'[1]Gráfico REM'!BH176","v":26522.675407951116},{"$f":"'[1]Gráfico REM'!BI176","v":2230.2725274909126},"n.d.",{"$f":"+((CT175/CT163)-1)*100","v":13.751723477961431},1.8281721371858461,112.47321439889583,"n.d.",{"$f":"'[1]Gráfico REM'!BK176","v":9575.7179858327654},{"$f":"'[1]Gráfico REM'!BL176","v":36860.425812231115},{"$f":"'[1]Gráfico REM'!BM176","v":8814.8024091909137},"n.d.",13.964878151259953,2.3168458351143562,16.118811692694422]
[2004,"junio ","2004-junio ",{"$f":"IF('[1]REAL IPC(M)'!$AL183=\"\",\"\",+'[1]REAL IPC(M)'!$AL183)","v":20.835017467893802},{"$f":"IF('[1]REAL IPC(M)'!$BE183=\"\",\"\",+'[1]REAL IPC(M)'!$BE183)","v":12.536326579279077},{"$f":"IF('[1]REAL IPC(M)'!$AM183=\"\",\"\",+'[1]REAL IPC(M)'!$AM183)","v":18.938153835734738},{"$f":"IF('[1]REAL IPC(M)'!$BI183=\"\",\"\",+'[1]REAL IPC(M)'!$BI183)","v":11.60333523630792},{"$f":"IF('[1]REAL IMAE(M)'!BJ183=\"\",\"\",'[1]REAL IMAE(M)'!BJ183)","v":"n.d."},{"$f":"IF('[1]REAL IMAE(M)'!BK183=\"\",\"\",'[1]REAL IMAE(M)'!BK183)","v":"n.d."},{"$f":"IF('[1]REAL IMAE(M)'!BN183=\"\",\"\",'[1]REAL IMAE(M)'!BN183)","v":"n.d."},{"$f":"IF('[1]REAL IMAE(M)'!BO183=\"\",\"\",'[1]REAL IMAE(M)'!BO183)","v":"n.d."},{"$f":"IF('[1]EXT RIN(M)'!$K183=\"\",\"\",'[1]EXT RIN(M)'!$K183)","v":8503.4657828836152},"",{"$f":"IF('[1]EXT RIN(M)'!$L183=\"\",\"\",'[1]EXT RIN(M)'!$L183)","v":9287.7916653421744},"",{"$f":"IF('[1]MONE(M)CARD'!EG183=\"\",\"\",'[1]MONE(M)CARD'!EG183)","v":8979.8703893638158},{"$f":"IF('[1]MONE(M)CARD'!EK183=\"\",\"\",'[1]MONE(M)CARD'!EK183)","v":18742.43773123057},{"$f":"IF('[1]MONE(M)CARD'!EP183=\"\",\"\",'[1]MONE(M)CARD'!EP183)","v":11354.854377856176},{"$f":"IF('[1]MONE(M)CARD'!ES183=\"\",\"\",'[1]MONE(M)CARD'!ES183)","v":1.5472080560381185},{"$f":"IF('[1]MONE(M)CARD'!EV183=\"\",\"\",'[1]MONE(M)CARD'!EV183)","v":-0.30139366423900249},{"$f":"IF('[1]MONE(M)CARD'!EZ183=\"\",\"\",'[1]MONE(M)CARD'!EZ183)","v":9.6249811445670908},{"$f":"IF('[1]MONE(M)CAPARD'!FC183=\"\",\"\",'[1]MONE(M)CAPARD'!FC183)","v":10392.610617593815},{"$f":"IF('[1]MONE(M)CAPARD'!FG183=\"\",\"\",'[1]MONE(M)CAPARD'!FG183)","v":28079.869501920566},{"$f":"IF('[1]MONE(M)CAPARD'!FL183=\"\",\"\",'[1]MONE(M)CAPARD'!FL183)","v":11354.85437785618},{"$f":"IF('[1]MONE(M)CAPARD'!FO183=\"\",\"\",'[1]MONE(M)CAPARD'!FO183)","v":2.8648135325041402},{"$f":"IF('[1]MONE(M)CAPARD'!FR183=\"\",\"\",'[1]MONE(M)CAPARD'!FR183)","v":1.9576952030545325},{"$f":"IF('[1]MONE(M)CAPARD'!FV183=\"\",\"\",'[1]MONE(M)CAPARD'!FV183)","v":9.3331104333925996},{"$f":"IF('[1]MONE(M)CARD'!FV183=\"\",\"\",'[1]MONE(M)CARD'!FV183)","v":355.64060983825925},{"$f":"IF('[1]MONE(M)CARD'!GD183=\"\",\"\",'[1]MONE(M)CARD'!GD183)","v":71.089410571993994},{"$f":"IF('[1]MONE(M)CARD'!GE183=\"\",\"\",'[1]MONE(M)CARD'!GE183)","v":2794.0472894894324},-11.775433509463928,{"$f":"IF('[9]II.2.Balance OSD-Activos'!J41=\"\",\"\",'[9]II.2.Balance OSD-Activos'!J41)","v":152.04219812896417},{"$f":"IF('[9]II.2.Balance OSD-Activos'!N41=\"\",\"\",'[9]II.2.Balance OSD-Activos'!N41)","v":10.995681009429386},{"$f":"IF('[9]II.2.Balance OSD-Activos'!R41=\"\",\"\",'[9]II.2.Balance OSD-Activos'!R41)","v":11566.678297971355},{"$f":"IF('[9]II.2.Balance OSD-Activos'!S41=\"\",\"\",'[9]II.2.Balance OSD-Activos'!S41)","v":13486.433911858137},11718.720496100319,25216.150088967886,-19.76147260097375,-9.1329768457203979,-3.5942364809014915,-8.9744847958178831,15.056382778453447,2.3816801653589126,1.1879807680054366,{"$f":"IF('[1]MONE(M)CAPARD'!GS183=\"\",\"\",'[1]MONE(M)CAPARD'!GS183)","v":5033.2946727185472},{"$f":"IF('[1]MONE(M)CARD'!HA183=\"\",\"\",'[1]MONE(M)CAPARD'!HA183)","v":2982.6031892594324},{"$f":"IF('[1]MONE(M)CAPARD'!HB183=\"\",\"\",'[1]MONE(M)CAPARD'!HB183)","v":2050.6914834591148},"n.d.",{"$f":"IF('[10]II.2.Balance OSD-Activos'!J41=\"\",\"\",'[10]II.2.Balance OSD-Activos'!J41)","v":639.61203870896406},{"$f":"IF('[10]II.2.Balance OSD-Activos'!N41=\"\",\"\",'[10]II.2.Balance OSD-Activos'!N41)","v":451.66257138942933},{"$f":"IF('[10]II.2.Balance OSD-Activos'!R41=\"\",\"\",'[10]II.2.Balance OSD-Activos'!R41)","v":16422.223487121355},{"$f":"IF('[10]II.2.Balance OSD-Activos'!S41=\"\",\"\",'[10]II.2.Balance OSD-Activos'!S41)","v":18278.474613808139},17061.83552583032,35791.972711027891,-37.515365915330889,-6.0234630678057677,27.83197423476398,-4.1418099342106167,12.26752701765832,2.8802883609266861,0.77466276206590301,{"$f":"IF('[1]MONE(M)CAPARD'!AS183=\"\",\"\",'[1]MONE(M)CAPARD'!AS183)","v":"n.d."},{"$f":"IF('[1]MONE(M)CAPARD'!AT183=\"\",\"\",'[1]MONE(M)CAPARD'!AT183)","v":"n.a."},{"$f":"IF('[1]MONE(M)CAPARD'!AU183=\"\",\"\",'[1]MONE(M)CAPARD'!AU183)","v":"n.d."},{"$f":"IF('[1]MONE(M)CAPARD'!AV183=\"\",\"\",'[1]MONE(M)CAPARD'!AV183)","v":"n.d."},{"$f":"IF('[1]MONE(M)CAPARD'!AW183=\"\",\"\",'[1]MONE(M)CAPARD'!AW183)","v":"n.a."},{"$f":"IF('[1]MONE(M)CAPARD'!AX183=\"\",\"\",'[1]MONE(M)CAPARD'!AX183)","v":15},{"$f":"IF('[1]MONE(M)CAPARD'!AY183=\"\",\"\",'[1]MONE(M)CAPARD'!AY183)","v":"n.a."},{"$f":"IF('[1]FISCAL(M)'!$K183=\"\",\"\",'[1]FISCAL(M)'!$K183)","v":-570.27454012328474},{"$f":"IF('[1]FISCAL(M)'!$L183=\"\",\"\",'[1]FISCAL(M)'!$L183)","v":-950.35953792628493},{"$f":"IF('[1]FISCAL(M)'!$AY183=\"\",\"\",'[1]FISCAL(M)'!$AY183)","v":"n.d."},{"$f":"IF('[1]FISCAL(M)'!$BI183=\"\",\"\",'[1]FISCAL(M)'!$BI183)","v":"n.d."},{"$f":"IF('[1]FISCAL(M)'!$BS183=\"\",\"\",'[1]FISCAL(M)'!$BS183)","v":"n.d."},{"$f":"IF('[1]FISCAL(M)'!$AZ183=\"\",\"\",'[1]FISCAL(M)'!$AZ183)","v":"n.d."},{"$f":"IF('[1]FISCAL(M)'!$BJ183=\"\",\"\",'[1]FISCAL(M)'!$BJ183)","v":"n.d."},{"$f":"IF('[1]FISCAL(M)'!$BT183=\"\",\"\",'[1]FISCAL(M)'!$BT183)","v":"n.d."},{"$f":"IF('[2]MONE(M)'!$AO183=\"\",\"\",'[2]MONE(M)'!$AO183)","v":2461975.7006435492},{"$f":"IF('[3]MONE(M)'!$AO183=\"\",\"\",'[3]MONE(M)'!$AO183)","v":6597.9387428571426},{"$f":"IF('[4]MONE(M)'!$AO183=\"\",\"\",'[4]MONE(M)'!$AO183)","v":48513.300211865833},{"$f":"+'[5]MONE(M)'!$AO183","v":58009.834696750171},{"$f":"IF('[6]MONE(M)'!$AO183=\"\",\"\",'[6]MONE(M)'!$AO183)","v":15354.614238086782},{"$f":"IF('[7]MONE(M)'!$AO183=\"\",\"\",'[7]MONE(M)'!$AO183)","v":198157.96853673999},{"$f":"IF('[8]MONE(M)'!$AO183=\"\",\"\",'[8]MONE(M)'!$AO183)","v":10361.280687480001},23.220122091295469,6.6583180536049502,26.513624519694279,22.026287199551486,25.582745224745796,2.1516441621337146,3.490337415532041,{"$f":"IF('[1]FISCAL(M)'!$K183=\"\",\"\",'[1]FISCAL(M)'!$K183)","v":-570.27454012328474},{"$f":"+'[1]REAL(A)'!$AO$24","v":95171.868879548187},-0.5992049403222689,{"$f":"IF('[1]FISCAL(M)'!$L183=\"\",\"\",'[1]FISCAL(M)'!$L183)","v":-950.35953792628493},{"$f":"+'[1]REAL(A)'!$AP$24","v":"n.d."},"n.d.","n.d.",{"$f":"'[1]Gráfico REM'!BG177","v":9471.7090314907364},{"$f":"'[1]Gráfico REM'!BH177","v":26757.95342993419},{"$f":"'[1]Gráfico REM'!BI177","v":2333.7336531001156},"n.d.",19.875308807085123,3.4725165688590298,99.518324173137202,"n.d.",{"$f":"'[1]Gráfico REM'!BK177","v":9993.8569473007356},{"$f":"'[1]Gráfico REM'!BL177","v":37119.234117414191},{"$f":"'[1]Gráfico REM'!BM177","v":9040.0866680501149},"n.d.",19.797357906186775,3.4774903749531072,17.280344950339078]
[2004,"julio","2004-julio",{"$f":"IF('[1]REAL IPC(M)'!$AL184=\"\",\"\",+'[1]REAL IPC(M)'!$AL184)","v":20.06478801703766},{"$f":"IF('[1]REAL IPC(M)'!$BE184=\"\",\"\",+'[1]REAL IPC(M)'!$BE184)","v":12.467841581166205},{"$f":"IF('[1]REAL IPC(M)'!$AM184=\"\",\"\",+'[1]REAL IPC(M)'!$AM184)","v":18.23972362376054},{"$f":"IF('[1]REAL IPC(M)'!$BI184=\"\",\"\",+'[1]REAL IPC(M)'!$BI184)","v":11.545426127484726},{"$f":"IF('[1]REAL IMAE(M)'!BJ184=\"\",\"\",'[1]REAL IMAE(M)'!BJ184)","v":"n.d."},{"$f":"IF('[1]REAL IMAE(M)'!BK184=\"\",\"\",'[1]REAL IMAE(M)'!BK184)","v":"n.d."},{"$f":"IF('[1]REAL IMAE(M)'!BN184=\"\",\"\",'[1]REAL IMAE(M)'!BN184)","v":"n.d."},{"$f":"IF('[1]REAL IMAE(M)'!BO184=\"\",\"\",'[1]REAL IMAE(M)'!BO184)","v":"n.d."},{"$f":"IF('[1]EXT RIN(M)'!$K184=\"\",\"\",'[1]EXT RIN(M)'!$K184)","v":8406.7013149666036},"",{"$f":"IF('[1]EXT RIN(M)'!$L184=\"\",\"\",'[1]EXT RIN(M)'!$L184)","v":9114.2238620290846},"",{"$f":"IF('[1]MONE(M)CARD'!EG184=\"\",\"\",'[1]MONE(M)CARD'!EG184)","v":9241.0438825670917},{"$f":"IF('[1]MONE(M)CARD'!EK184=\"\",\"\",'[1]MONE(M)CARD'!EK184)","v":19256.291271439171},{"$f":"IF('[1]MONE(M)CARD'!EP184=\"\",\"\",'[1]MONE(M)CARD'!EP184)","v":11495.071100477333},{"$f":"IF('[1]MONE(M)CARD'!ES184=\"\",\"\",'[1]MONE(M)CARD'!ES184)","v":6.8187008250558456},{"$f":"IF('[1]MONE(M)CARD'!EV184=\"\",\"\",'[1]MONE(M)CARD'!EV184)","v":4.5074862689788109},{"$f":"IF('[1]MONE(M)CARD'!EZ184=\"\",\"\",'[1]MONE(M)CARD'!EZ184)","v":13.828133182456526},{"$f":"IF('[1]MONE(M)CAPARD'!FC184=\"\",\"\",'[1]MONE(M)CAPARD'!FC184)","v":10688.406237207091},{"$f":"IF('[1]MONE(M)CAPARD'!FG184=\"\",\"\",'[1]MONE(M)CAPARD'!FG184)","v":28640.97866346917},{"$f":"IF('[1]MONE(M)CAPARD'!FL184=\"\",\"\",'[1]MONE(M)CAPARD'!FL184)","v":11495.071100477333},{"$f":"IF('[1]MONE(M)CAPARD'!FO184=\"\",\"\",'[1]MONE(M)CAPARD'!FO184)","v":8.2238929964796981},{"$f":"IF('[1]MONE(M)CAPARD'!FR184=\"\",\"\",'[1]MONE(M)CAPARD'!FR184)","v":5.6018970673252566},{"$f":"IF('[1]MONE(M)CAPARD'!FV184=\"\",\"\",'[1]MONE(M)CAPARD'!FV184)","v":12.670649620065566},{"$f":"IF('[1]MONE(M)CARD'!FV184=\"\",\"\",'[1]MONE(M)CARD'!FV184)","v":337.88780916074165},{"$f":"IF('[1]MONE(M)CARD'!GD184=\"\",\"\",'[1]MONE(M)CARD'!GD184)","v":21.657024414236041},{"$f":"IF('[1]MONE(M)CARD'!GE184=\"\",\"\",'[1]MONE(M)CARD'!GE184)","v":2848.0349729635795},-12.366661559089408,{"$f":"IF('[9]II.2.Balance OSD-Activos'!J42=\"\",\"\",'[9]II.2.Balance OSD-Activos'!J42)","v":179.14389974373611},{"$f":"IF('[9]II.2.Balance OSD-Activos'!N42=\"\",\"\",'[9]II.2.Balance OSD-Activos'!N42)","v":12.44717109055812},{"$f":"IF('[9]II.2.Balance OSD-Activos'!R42=\"\",\"\",'[9]II.2.Balance OSD-Activos'!R42)","v":11523.593326670238},{"$f":"IF('[9]II.2.Balance OSD-Activos'!S42=\"\",\"\",'[9]II.2.Balance OSD-Activos'!S42)","v":13727.173775173786},11702.737226413974,25442.358172678316,9.0558532970470793,-5.9612297883265164,-2.0700504856377422,-6.162106206302953,17.990265053784892,5.6073915807024921,3.2257114153435795,{"$f":"IF('[1]MONE(M)CAPARD'!GS184=\"\",\"\",'[1]MONE(M)CAPARD'!GS184)","v":5075.5555538738854},{"$f":"IF('[1]MONE(M)CARD'!HA184=\"\",\"\",'[1]MONE(M)CAPARD'!HA184)","v":3034.2007204535798},{"$f":"IF('[1]MONE(M)CAPARD'!HB184=\"\",\"\",'[1]MONE(M)CAPARD'!HB184)","v":2041.3548334203056},"n.d.",{"$f":"IF('[10]II.2.Balance OSD-Activos'!J42=\"\",\"\",'[10]II.2.Balance OSD-Activos'!J42)","v":608.15214300373611},{"$f":"IF('[10]II.2.Balance OSD-Activos'!N42=\"\",\"\",'[10]II.2.Balance OSD-Activos'!N42)","v":462.59897265055804},{"$f":"IF('[10]II.2.Balance OSD-Activos'!R42=\"\",\"\",'[10]II.2.Balance OSD-Activos'!R42)","v":16475.786232180235},{"$f":"IF('[10]II.2.Balance OSD-Activos'!S42=\"\",\"\",'[10]II.2.Balance OSD-Activos'!S42)","v":18561.602661503784},17083.93837518397,36108.140009338313,-37.491211379615038,-3.3926114069272484,20.194972191189066,-1.4074041240933588,14.4896373142805,5.3291795309080126,2.4488911699813265,{"$f":"IF('[1]MONE(M)CAPARD'!AS184=\"\",\"\",'[1]MONE(M)CAPARD'!AS184)","v":"n.d."},{"$f":"IF('[1]MONE(M)CAPARD'!AT184=\"\",\"\",'[1]MONE(M)CAPARD'!AT184)","v":"n.a."},{"$f":"IF('[1]MONE(M)CAPARD'!AU184=\"\",\"\",'[1]MONE(M)CAPARD'!AU184)","v":"n.d."},{"$f":"IF('[1]MONE(M)CAPARD'!AV184=\"\",\"\",'[1]MONE(M)CAPARD'!AV184)","v":"n.d."},{"$f":"IF('[1]MONE(M)CAPARD'!AW184=\"\",\"\",'[1]MONE(M)CAPARD'!AW184)","v":"n.a."},{"$f":"IF('[1]MONE(M)CAPARD'!AX184=\"\",\"\",'[1]MONE(M)CAPARD'!AX184)","v":15},{"$f":"IF('[1]MONE(M)CAPARD'!AY184=\"\",\"\",'[1]MONE(M)CAPARD'!AY184)","v":"n.a."},{"$f":"IF('[1]FISCAL(M)'!$K184=\"\",\"\",'[1]FISCAL(M)'!$K184)","v":-926.16793047577312},{"$f":"IF('[1]FISCAL(M)'!$L184=\"\",\"\",'[1]FISCAL(M)'!$L184)","v":-1419.4973074987738},{"$f":"IF('[1]FISCAL(M)'!$AY184=\"\",\"\",'[1]FISCAL(M)'!$AY184)","v":"n.d."},{"$f":"IF('[1]FISCAL(M)'!$BI184=\"\",\"\",'[1]FISCAL(M)'!$BI184)","v":"n.d."},{"$f":"IF('[1]FISCAL(M)'!$BS184=\"\",\"\",'[1]FISCAL(M)'!$BS184)","v":"n.d."},{"$f":"IF('[1]FISCAL(M)'!$AZ184=\"\",\"\",'[1]FISCAL(M)'!$AZ184)","v":"n.d."},{"$f":"IF('[1]FISCAL(M)'!$BJ184=\"\",\"\",'[1]FISCAL(M)'!$BJ184)","v":"n.d."},{"$f":"IF('[1]FISCAL(M)'!$BT184=\"\",\"\",'[1]FISCAL(M)'!$BT184)","v":"n.d."},{"$f":"IF('[2]MONE(M)'!$AO184=\"\",\"\",'[2]MONE(M)'!$AO184)","v":2463364.7670165291},{"$f":"IF('[3]MONE(M)'!$AO184=\"\",\"\",'[3]MONE(M)'!$AO184)","v":6528.0667428571423},{"$f":"IF('[4]MONE(M)'!$AO184=\"\",\"\",'[4]MONE(M)'!$AO184)","v":49441.854667981839},{"$f":"+'[5]MONE(M)'!$AO184","v":58443.203254193839},{"$f":"IF('[6]MONE(M)'!$AO184=\"\",\"\",'[6]MONE(M)'!$AO184)","v":15593.408725326481},{"$f":"IF('[7]MONE(M)'!$AO184=\"\",\"\",'[7]MONE(M)'!$AO184)","v":195954.06866322004},{"$f":"IF('[8]MONE(M)'!$AO184=\"\",\"\",'[8]MONE(M)'!$AO184)","v":10410.079837609999},21.375840747159081,4.9074927675039959,29.582887842538707,21.686454456526327,23.757529642049512,-0.79065158381624867,3.6265177360583101,{"$f":"IF('[1]FISCAL(M)'!$K184=\"\",\"\",'[1]FISCAL(M)'!$K184)","v":-926.16793047577312},{"$f":"+'[1]REAL(A)'!$AO$24","v":95171.868879548187},-0.97315303500864692,{"$f":"IF('[1]FISCAL(M)'!$L184=\"\",\"\",'[1]FISCAL(M)'!$L184)","v":-1419.4973074987738},{"$f":"+'[1]REAL(A)'!$AP$24","v":"n.d."},"n.d.","n.d.",{"$f":"'[1]Gráfico REM'!BG178","v":9723.1669288360208},{"$f":"'[1]Gráfico REM'!BH178","v":26927.500133737816},{"$f":"'[1]Gráfico REM'!BI178","v":2291.8458084806712},"n.d.",25.448104290212669,6.3577404643609947,89.15807991084948,"n.d.",{"$f":"'[1]Gráfico REM'!BK178","v":10254.29358577602},{"$f":"'[1]Gráfico REM'!BL178","v":37337.579971347819},{"$f":"'[1]Gráfico REM'!BM178","v":8760.2829457106709},"n.d.",23.40037084431048,5.5818802186784255,16.218920393330084]
[2004,"agosto","2004-agosto",{"$f":"IF('[1]REAL IPC(M)'!$AL185=\"\",\"\",+'[1]REAL IPC(M)'!$AL185)","v":19.173336825738318},{"$f":"IF('[1]REAL IPC(M)'!$BE185=\"\",\"\",+'[1]REAL IPC(M)'!$BE185)","v":12.377260502434527},{"$f":"IF('[1]REAL IPC(M)'!$AM185=\"\",\"\",+'[1]REAL IPC(M)'!$AM185)","v":17.449979000954819},{"$f":"IF('[1]REAL IPC(M)'!$BI185=\"\",\"\",+'[1]REAL IPC(M)'!$BI185)","v":11.465859002386726},{"$f":"IF('[1]REAL IMAE(M)'!BJ185=\"\",\"\",'[1]REAL IMAE(M)'!BJ185)","v":"n.d."},{"$f":"IF('[1]REAL IMAE(M)'!BK185=\"\",\"\",'[1]REAL IMAE(M)'!BK185)","v":"n.d."},{"$f":"IF('[1]REAL IMAE(M)'!BN185=\"\",\"\",'[1]REAL IMAE(M)'!BN185)","v":"n.d."},{"$f":"IF('[1]REAL IMAE(M)'!BO185=\"\",\"\",'[1]REAL IMAE(M)'!BO185)","v":"n.d."},{"$f":"IF('[1]EXT RIN(M)'!$K185=\"\",\"\",'[1]EXT RIN(M)'!$K185)","v":8525.2251585985505},"",{"$f":"IF('[1]EXT RIN(M)'!$L185=\"\",\"\",'[1]EXT RIN(M)'!$L185)","v":9065.6491115261706},"",{"$f":"IF('[1]MONE(M)CARD'!EG185=\"\",\"\",'[1]MONE(M)CARD'!EG185)","v":9436.9234859387179},{"$f":"IF('[1]MONE(M)CARD'!EK185=\"\",\"\",'[1]MONE(M)CARD'!EK185)","v":20468.550279736268},{"$f":"IF('[1]MONE(M)CARD'!EP185=\"\",\"\",'[1]MONE(M)CARD'!EP185)","v":11498.374052129249},{"$f":"IF('[1]MONE(M)CARD'!ES185=\"\",\"\",'[1]MONE(M)CARD'!ES185)","v":10.359632012728138},{"$f":"IF('[1]MONE(M)CARD'!EV185=\"\",\"\",'[1]MONE(M)CARD'!EV185)","v":7.8107929026742573},{"$f":"IF('[1]MONE(M)CARD'!EZ185=\"\",\"\",'[1]MONE(M)CARD'!EZ185)","v":16.529400163712161},{"$f":"IF('[1]MONE(M)CAPARD'!FC185=\"\",\"\",'[1]MONE(M)CAPARD'!FC185)","v":11035.855504368717},{"$f":"IF('[1]MONE(M)CAPARD'!FG185=\"\",\"\",'[1]MONE(M)CAPARD'!FG185)","v":29984.024207706265},{"$f":"IF('[1]MONE(M)CAPARD'!FL185=\"\",\"\",'[1]MONE(M)CAPARD'!FL185)","v":11498.374052129249},{"$f":"IF('[1]MONE(M)CAPARD'!FO185=\"\",\"\",'[1]MONE(M)CAPARD'!FO185)","v":12.391628972603218},{"$f":"IF('[1]MONE(M)CAPARD'!FR185=\"\",\"\",'[1]MONE(M)CAPARD'!FR185)","v":8.546507037412665},{"$f":"IF('[1]MONE(M)CAPARD'!FV185=\"\",\"\",'[1]MONE(M)CAPARD'!FV185)","v":15.216812106976407},{"$f":"IF('[1]MONE(M)CARD'!FV185=\"\",\"\",'[1]MONE(M)CARD'!FV185)","v":341.56549934321805},{"$f":"IF('[1]MONE(M)CARD'!GD185=\"\",\"\",'[1]MONE(M)CARD'!GD185)","v":33.015599048672925},{"$f":"IF('[1]MONE(M)CARD'!GE185=\"\",\"\",'[1]MONE(M)CARD'!GE185)","v":2911.6399682000924},-7.5720611788511523,{"$f":"IF('[9]II.2.Balance OSD-Activos'!J43=\"\",\"\",'[9]II.2.Balance OSD-Activos'!J43)","v":153.51897061697085},{"$f":"IF('[9]II.2.Balance OSD-Activos'!N43=\"\",\"\",'[9]II.2.Balance OSD-Activos'!N43)","v":11.712516826206288},{"$f":"IF('[9]II.2.Balance OSD-Activos'!R43=\"\",\"\",'[9]II.2.Balance OSD-Activos'!R43)","v":11862.037365721962},{"$f":"IF('[9]II.2.Balance OSD-Activos'!S43=\"\",\"\",'[9]II.2.Balance OSD-Activos'!S43)","v":14112.969799514223},12015.556336338934,26140.238652679363,-6.4365752014052262,-4.4636094074377404,-9.7310300119368485,-4.4375296483425313,19.430559235507516,7.1022760437108756,1.4948844630083835,{"$f":"IF('[1]MONE(M)CAPARD'!GS185=\"\",\"\",'[1]MONE(M)CAPARD'!GS185)","v":5371.3068702839782},{"$f":"IF('[1]MONE(M)CARD'!HA185=\"\",\"\",'[1]MONE(M)CAPARD'!HA185)","v":3097.7708629600925},{"$f":"IF('[1]MONE(M)CAPARD'!HB185=\"\",\"\",'[1]MONE(M)CAPARD'!HB185)","v":2273.5360073238858},"n.d.",{"$f":"IF('[10]II.2.Balance OSD-Activos'!J43=\"\",\"\",'[10]II.2.Balance OSD-Activos'!J43)","v":531.36187981697083},{"$f":"IF('[10]II.2.Balance OSD-Activos'!N43=\"\",\"\",'[10]II.2.Balance OSD-Activos'!N43)","v":396.53833852620625},{"$f":"IF('[10]II.2.Balance OSD-Activos'!R43=\"\",\"\",'[10]II.2.Balance OSD-Activos'!R43)","v":16938.284451981963},{"$f":"IF('[10]II.2.Balance OSD-Activos'!S43=\"\",\"\",'[10]II.2.Balance OSD-Activos'!S43)","v":19005.712520704226},17469.646331798933,36871.897191029362,-44.756493626774663,-2.0874120839716293,5.2814964565615741,0.34391892966583182,15.818859792523266,6.4781945912418593,1.1490150603338467,{"$f":"IF('[1]MONE(M)CAPARD'!AS185=\"\",\"\",'[1]MONE(M)CAPARD'!AS185)","v":"n.d."},{"$f":"IF('[1]MONE(M)CAPARD'!AT185=\"\",\"\",'[1]MONE(M)CAPARD'!AT185)","v":"n.a."},{"$f":"IF('[1]MONE(M)CAPARD'!AU185=\"\",\"\",'[1]MONE(M)CAPARD'!AU185)","v":"n.d."},{"$f":"IF('[1]MONE(M)CAPARD'!AV185=\"\",\"\",'[1]MONE(M)CAPARD'!AV185)","v":"n.d."},{"$f":"IF('[1]MONE(M)CAPARD'!AW185=\"\",\"\",'[1]MONE(M)CAPARD'!AW185)","v":"n.a."},{"$f":"IF('[1]MONE(M)CAPARD'!AX185=\"\",\"\",'[1]MONE(M)CAPARD'!AX185)","v":15},{"$f":"IF('[1]MONE(M)CAPARD'!AY185=\"\",\"\",'[1]MONE(M)CAPARD'!AY185)","v":"n.a."},{"$f":"IF('[1]FISCAL(M)'!$K185=\"\",\"\",'[1]FISCAL(M)'!$K185)","v":-1099.8668623780768},{"$f":"IF('[1]FISCAL(M)'!$L185=\"\",\"\",'[1]FISCAL(M)'!$L185)","v":-1659.2411535310771},{"$f":"IF('[1]FISCAL(M)'!$AY185=\"\",\"\",'[1]FISCAL(M)'!$AY185)","v":"n.d."},{"$f":"IF('[1]FISCAL(M)'!$BI185=\"\",\"\",'[1]FISCAL(M)'!$BI185)","v":"n.d."},{"$f":"IF('[1]FISCAL(M)'!$BS185=\"\",\"\",'[1]FISCAL(M)'!$BS185)","v":"n.d."},{"$f":"IF('[1]FISCAL(M)'!$AZ185=\"\",\"\",'[1]FISCAL(M)'!$AZ185)","v":"n.d."},{"$f":"IF('[1]FISCAL(M)'!$BJ185=\"\",\"\",'[1]FISCAL(M)'!$BJ185)","v":"n.d."},{"$f":"IF('[1]FISCAL(M)'!$BT185=\"\",\"\",'[1]FISCAL(M)'!$BT185)","v":"n.d."},{"$f":"IF('[2]MONE(M)'!$AO185=\"\",\"\",'[2]MONE(M)'!$AO185)","v":2518569.3244763548},{"$f":"IF('[3]MONE(M)'!$AO185=\"\",\"\",'[3]MONE(M)'!$AO185)","v":6547.1337428571433},{"$f":"IF('[4]MONE(M)'!$AO185=\"\",\"\",'[4]MONE(M)'!$AO185)","v":49393.675168607762},{"$f":"+'[5]MONE(M)'!$AO185","v":59154.479556865306},{"$f":"IF('[6]MONE(M)'!$AO185=\"\",\"\",'[6]MONE(M)'!$AO185)","v":16069.099658784027},{"$f":"IF('[7]MONE(M)'!$AO185=\"\",\"\",'[7]MONE(M)'!$AO185)","v":186837.66881447},{"$f":"IF('[8]MONE(M)'!$AO185=\"\",\"\",'[8]MONE(M)'!$AO185)","v":10524.29272053},23.333503207553917,5.2507424792257451,28.140396544562705,21.468645813451094,24.191772037928594,-3.5928938262015375,4.2485728221435926,{"$f":"IF('[1]FISCAL(M)'!$K185=\"\",\"\",'[1]FISCAL(M)'!$K185)","v":-1099.8668623780768},{"$f":"+'[1]REAL(A)'!$AO$24","v":95171.868879548187},-1.1556638272703197,{"$f":"IF('[1]FISCAL(M)'!$L185=\"\",\"\",'[1]FISCAL(M)'!$L185)","v":-1659.2411535310771},{"$f":"+'[1]REAL(A)'!$AP$24","v":"n.d."},"n.d.","n.d.",{"$f":"'[1]Gráfico REM'!BG179","v":10167.192999657502},{"$f":"'[1]Gráfico REM'!BH179","v":27663.548763747851},{"$f":"'[1]Gráfico REM'!BI179","v":2149.5287172375401},"n.d.",25.09469156736106,7.6900221264145419,91.575911911964255,"n.d.",{"$f":"'[1]Gráfico REM'!BK179","v":10695.793238377502},{"$f":"'[1]Gráfico REM'!BL179","v":38187.841484277851},{"$f":"'[1]Gráfico REM'!BM179","v":8640.4961816775394},"n.d.",22.827127480404673,6.7191070414145182,17.10190622181176]
[2004,"septiembre","2004-septiembre",{"$f":"IF('[1]REAL IPC(M)'!$AL186=\"\",\"\",+'[1]REAL IPC(M)'!$AL186)","v":18.443105106115198},{"$f":"IF('[1]REAL IPC(M)'!$BE186=\"\",\"\",+'[1]REAL IPC(M)'!$BE186)","v":12.26622578047416},{"$f":"IF('[1]REAL IPC(M)'!$AM186=\"\",\"\",+'[1]REAL IPC(M)'!$AM186)","v":16.787992166142129},{"$f":"IF('[1]REAL IPC(M)'!$BI186=\"\",\"\",+'[1]REAL IPC(M)'!$BI186)","v":11.366222587870611},{"$f":"IF('[1]REAL IMAE(M)'!BJ186=\"\",\"\",'[1]REAL IMAE(M)'!BJ186)","v":"n.d."},{"$f":"IF('[1]REAL IMAE(M)'!BK186=\"\",\"\",'[1]REAL IMAE(M)'!BK186)","v":"n.d."},{"$f":"IF('[1]REAL IMAE(M)'!BN186=\"\",\"\",'[1]REAL IMAE(M)'!BN186)","v":"n.d."},{"$f":"IF('[1]REAL IMAE(M)'!BO186=\"\",\"\",'[1]REAL IMAE(M)'!BO186)","v":"n.d."},{"$f":"IF('[1]EXT RIN(M)'!$K186=\"\",\"\",'[1]EXT RIN(M)'!$K186)","v":8809.5398741231602},"",{"$f":"IF('[1]EXT RIN(M)'!$L186=\"\",\"\",'[1]EXT RIN(M)'!$L186)","v":9276.5959094052196},"",{"$f":"IF('[1]MONE(M)CARD'!EG186=\"\",\"\",'[1]MONE(M)CARD'!EG186)","v":9756.809025498349},{"$f":"IF('[1]MONE(M)CARD'!EK186=\"\",\"\",'[1]MONE(M)CARD'!EK186)","v":22032.50326476177},{"$f":"IF('[1]MONE(M)CARD'!EP186=\"\",\"\",'[1]MONE(M)CARD'!EP186)","v":11536.115694354139},{"$f":"IF('[1]MONE(M)CARD'!ES186=\"\",\"\",'[1]MONE(M)CARD'!ES186)","v":16.33314242879753},{"$f":"IF('[1]MONE(M)CARD'!EV186=\"\",\"\",'[1]MONE(M)CARD'!EV186)","v":13.881431592028704},{"$f":"IF('[1]MONE(M)CARD'!EZ186=\"\",\"\",'[1]MONE(M)CARD'!EZ186)","v":21.323245941676582},{"$f":"IF('[1]MONE(M)CAPARD'!FC186=\"\",\"\",'[1]MONE(M)CAPARD'!FC186)","v":11215.937264838349},{"$f":"IF('[1]MONE(M)CAPARD'!FG186=\"\",\"\",'[1]MONE(M)CAPARD'!FG186)","v":31534.356753481763},{"$f":"IF('[1]MONE(M)CAPARD'!FL186=\"\",\"\",'[1]MONE(M)CAPARD'!FL186)","v":11536.115694354143},{"$f":"IF('[1]MONE(M)CAPARD'!FO186=\"\",\"\",'[1]MONE(M)CAPARD'!FO186)","v":16.272302947222595},{"$f":"IF('[1]MONE(M)CAPARD'!FR186=\"\",\"\",'[1]MONE(M)CAPARD'!FR186)","v":12.706753610608512},{"$f":"IF('[1]MONE(M)CAPARD'!FV186=\"\",\"\",'[1]MONE(M)CAPARD'!FV186)","v":18.718770726481736},{"$f":"IF('[1]MONE(M)CARD'!FV186=\"\",\"\",'[1]MONE(M)CARD'!FV186)","v":347.77251557830573},{"$f":"IF('[1]MONE(M)CARD'!GD186=\"\",\"\",'[1]MONE(M)CARD'!GD186)","v":56.403577315445759},{"$f":"IF('[1]MONE(M)CARD'!GE186=\"\",\"\",'[1]MONE(M)CARD'!GE186)","v":3211.8482500007945},5.289961864752657,{"$f":"IF('[9]II.2.Balance OSD-Activos'!J44=\"\",\"\",'[9]II.2.Balance OSD-Activos'!J44)","v":149.67843239654437},{"$f":"IF('[9]II.2.Balance OSD-Activos'!N44=\"\",\"\",'[9]II.2.Balance OSD-Activos'!N44)","v":12.287453594906818},{"$f":"IF('[9]II.2.Balance OSD-Activos'!R44=\"\",\"\",'[9]II.2.Balance OSD-Activos'!R44)","v":12324.67409435425},{"$f":"IF('[9]II.2.Balance OSD-Activos'!S44=\"\",\"\",'[9]II.2.Balance OSD-Activos'!S44)","v":14643.77027491964},12474.352526750794,27130.410255265342,-10.026098062871169,-2.5788596655575646,-8.4839402145690297,-2.4808311390352999,24.745097393544313,10.479580630491792,3.3773045867809168,{"$f":"IF('[1]MONE(M)CAPARD'!GS186=\"\",\"\",'[1]MONE(M)CAPARD'!GS186)","v":5508.5139567040023},{"$f":"IF('[1]MONE(M)CARD'!HA186=\"\",\"\",'[1]MONE(M)CAPARD'!HA186)","v":3407.7264397707945},{"$f":"IF('[1]MONE(M)CAPARD'!HB186=\"\",\"\",'[1]MONE(M)CAPARD'!HB186)","v":2100.7875169332078},"n.d.",{"$f":"IF('[10]II.2.Balance OSD-Activos'!J44=\"\",\"\",'[10]II.2.Balance OSD-Activos'!J44)","v":491.88349984654434},{"$f":"IF('[10]II.2.Balance OSD-Activos'!N44=\"\",\"\",'[10]II.2.Balance OSD-Activos'!N44)","v":425.19435802490676},{"$f":"IF('[10]II.2.Balance OSD-Activos'!R44=\"\",\"\",'[10]II.2.Balance OSD-Activos'!R44)","v":17513.131805614252},{"$f":"IF('[10]II.2.Balance OSD-Activos'!S44=\"\",\"\",'[10]II.2.Balance OSD-Activos'!S44)","v":19584.933605589638},18005.015305460794,38015.143269075343,-35.909318036052603,-0.22235933813886666,5.288558815503408,1.3628695591325179,19.925474967299817,9.3020558924051819,2.8238613011633227,{"$f":"IF('[1]MONE(M)CAPARD'!AS186=\"\",\"\",'[1]MONE(M)CAPARD'!AS186)","v":"n.d."},{"$f":"IF('[1]MONE(M)CAPARD'!AT186=\"\",\"\",'[1]MONE(M)CAPARD'!AT186)","v":"n.a."},{"$f":"IF('[1]MONE(M)CAPARD'!AU186=\"\",\"\",'[1]MONE(M)CAPARD'!AU186)","v":"n.d."},{"$f":"IF('[1]MONE(M)CAPARD'!AV186=\"\",\"\",'[1]MONE(M)CAPARD'!AV186)","v":"n.d."},{"$f":"IF('[1]MONE(M)CAPARD'!AW186=\"\",\"\",'[1]MONE(M)CAPARD'!AW186)","v":"n.a."},{"$f":"IF('[1]MONE(M)CAPARD'!AX186=\"\",\"\",'[1]MONE(M)CAPARD'!AX186)","v":15},{"$f":"IF('[1]MONE(M)CAPARD'!AY186=\"\",\"\",'[1]MONE(M)CAPARD'!AY186)","v":"n.a."},{"$f":"IF('[1]FISCAL(M)'!$K186=\"\",\"\",'[1]FISCAL(M)'!$K186)","v":-1277.2697936605723},{"$f":"IF('[1]FISCAL(M)'!$L186=\"\",\"\",'[1]FISCAL(M)'!$L186)","v":-1818.7511584135727},{"$f":"IF('[1]FISCAL(M)'!$AY186=\"\",\"\",'[1]FISCAL(M)'!$AY186)","v":"n.d."},{"$f":"IF('[1]FISCAL(M)'!$BI186=\"\",\"\",'[1]FISCAL(M)'!$BI186)","v":"n.d."},{"$f":"IF('[1]FISCAL(M)'!$BS186=\"\",\"\",'[1]FISCAL(M)'!$BS186)","v":"n.d."},{"$f":"IF('[1]FISCAL(M)'!$AZ186=\"\",\"\",'[1]FISCAL(M)'!$AZ186)","v":"n.d."},{"$f":"IF('[1]FISCAL(M)'!$BJ186=\"\",\"\",'[1]FISCAL(M)'!$BJ186)","v":"n.d."},{"$f":"IF('[1]FISCAL(M)'!$BT186=\"\",\"\",'[1]FISCAL(M)'!$BT186)","v":"n.d."},{"$f":"IF('[2]MONE(M)'!$AO186=\"\",\"\",'[2]MONE(M)'!$AO186)","v":2549579.0251839012},{"$f":"IF('[3]MONE(M)'!$AO186=\"\",\"\",'[3]MONE(M)'!$AO186)","v":6537.297742857143},{"$f":"IF('[4]MONE(M)'!$AO186=\"\",\"\",'[4]MONE(M)'!$AO186)","v":50253.277152913179},{"$f":"+'[5]MONE(M)'!$AO186","v":59734.488432101294},{"$f":"IF('[6]MONE(M)'!$AO186=\"\",\"\",'[6]MONE(M)'!$AO186)","v":16585.598392886699},{"$f":"IF('[7]MONE(M)'!$AO186=\"\",\"\",'[7]MONE(M)'!$AO186)","v":176313.911513231},{"$f":"IF('[8]MONE(M)'!$AO186=\"\",\"\",'[8]MONE(M)'!$AO186)","v":10657.694451959998},22.588794475306663,4.6367477993682238,37.313976662595394,21.459623948518946,23.196183501593403,-8.9227571221383926,5.8921897460527672,{"$f":"IF('[1]FISCAL(M)'!$K186=\"\",\"\",'[1]FISCAL(M)'!$K186)","v":-1277.2697936605723},{"$f":"+'[1]REAL(A)'!$AO$24","v":95171.868879548187},-1.342066525221981,{"$f":"IF('[1]FISCAL(M)'!$L186=\"\",\"\",'[1]FISCAL(M)'!$L186)","v":-1818.7511584135727},{"$f":"+'[1]REAL(A)'!$AP$24","v":"n.d."},"n.d.","n.d.",{"$f":"'[1]Gráfico REM'!BG180","v":10765.421617133401},{"$f":"'[1]Gráfico REM'!BH180","v":28635.291594171507},{"$f":"'[1]Gráfico REM'!BI180","v":2215.4741202452078},"n.d.",40.989614397853515,12.516209985955594,101.42890754248812,"n.d.",{"$f":"'[1]Gráfico REM'!BK180","v":11260.183584113402},{"$f":"'[1]Gráfico REM'!BL180","v":39292.986046131504},{"$f":"'[1]Gráfico REM'!BM180","v":8673.6046394052082},"n.d.",36.931829810681791,10.638994309811078,18.322466296547656]
[2004,"octubre","2004-octubre",{"$f":"IF('[1]REAL IPC(M)'!$AL187=\"\",\"\",+'[1]REAL IPC(M)'!$AL187)","v":18.254663950743243},{"$f":"IF('[1]REAL IPC(M)'!$BE187=\"\",\"\",+'[1]REAL IPC(M)'!$BE187)","v":12.136698506418163},{"$f":"IF('[1]REAL IPC(M)'!$AM187=\"\",\"\",+'[1]REAL IPC(M)'!$AM187)","v":16.654710688786455},{"$f":"IF('[1]REAL IPC(M)'!$BI187=\"\",\"\",+'[1]REAL IPC(M)'!$BI187)","v":11.248435629553576},{"$f":"IF('[1]REAL IMAE(M)'!BJ187=\"\",\"\",'[1]REAL IMAE(M)'!BJ187)","v":"n.d."},{"$f":"IF('[1]REAL IMAE(M)'!BK187=\"\",\"\",'[1]REAL IMAE(M)'!BK187)","v":"n.d."},{"$f":"IF('[1]REAL IMAE(M)'!BN187=\"\",\"\",'[1]REAL IMAE(M)'!BN187)","v":"n.d."},{"$f":"IF('[1]REAL IMAE(M)'!BO187=\"\",\"\",'[1]REAL IMAE(M)'!BO187)","v":"n.d."},{"$f":"IF('[1]EXT RIN(M)'!$K187=\"\",\"\",'[1]EXT RIN(M)'!$K187)","v":9165.31045957278},"",{"$f":"IF('[1]EXT RIN(M)'!$L187=\"\",\"\",'[1]EXT RIN(M)'!$L187)","v":9634.0542299420995},"",{"$f":"IF('[1]MONE(M)CARD'!EG187=\"\",\"\",'[1]MONE(M)CARD'!EG187)","v":9751.0262811223656},{"$f":"IF('[1]MONE(M)CARD'!EK187=\"\",\"\",'[1]MONE(M)CARD'!EK187)","v":21945.596361739154},{"$f":"IF('[1]MONE(M)CARD'!EP187=\"\",\"\",'[1]MONE(M)CARD'!EP187)","v":11510.372092090161},{"$f":"IF('[1]MONE(M)CARD'!ES187=\"\",\"\",'[1]MONE(M)CARD'!ES187)","v":16.898732261572924},{"$f":"IF('[1]MONE(M)CARD'!EV187=\"\",\"\",'[1]MONE(M)CARD'!EV187)","v":17.236556610695253},{"$f":"IF('[1]MONE(M)CARD'!EZ187=\"\",\"\",'[1]MONE(M)CARD'!EZ187)","v":23.912105919002013},{"$f":"IF('[1]MONE(M)CAPARD'!FC187=\"\",\"\",'[1]MONE(M)CAPARD'!FC187)","v":11211.277783072364},{"$f":"IF('[1]MONE(M)CAPARD'!FG187=\"\",\"\",'[1]MONE(M)CAPARD'!FG187)","v":31457.756301649148},{"$f":"IF('[1]MONE(M)CAPARD'!FL187=\"\",\"\",'[1]MONE(M)CAPARD'!FL187)","v":11510.372092090161},{"$f":"IF('[1]MONE(M)CAPARD'!FO187=\"\",\"\",'[1]MONE(M)CAPARD'!FO187)","v":16.437307939280533},{"$f":"IF('[1]MONE(M)CAPARD'!FR187=\"\",\"\",'[1]MONE(M)CAPARD'!FR187)","v":15.016573838817294},{"$f":"IF('[1]MONE(M)CAPARD'!FV187=\"\",\"\",'[1]MONE(M)CAPARD'!FV187)","v":20.584216222881381},{"$f":"IF('[1]MONE(M)CARD'!FV187=\"\",\"\",'[1]MONE(M)CARD'!FV187)","v":357.4930536242415},{"$f":"IF('[1]MONE(M)CARD'!GD187=\"\",\"\",'[1]MONE(M)CARD'!GD187)","v":25.759268735222015},{"$f":"IF('[1]MONE(M)CARD'!GE187=\"\",\"\",'[1]MONE(M)CARD'!GE187)","v":3152.9263458750943},8.4902325197500517,{"$f":"IF('[9]II.2.Balance OSD-Activos'!J45=\"\",\"\",'[9]II.2.Balance OSD-Activos'!J45)","v":162.68173729062028},{"$f":"IF('[9]II.2.Balance OSD-Activos'!N45=\"\",\"\",'[9]II.2.Balance OSD-Activos'!N45)","v":11.845692559114905},{"$f":"IF('[9]II.2.Balance OSD-Activos'!R45=\"\",\"\",'[9]II.2.Balance OSD-Activos'!R45)","v":12291.363533485262},{"$f":"IF('[9]II.2.Balance OSD-Activos'!S45=\"\",\"\",'[9]II.2.Balance OSD-Activos'!S45)","v":14801.135562481331},12454.045270775883,27267.026525816327,9.5513255815009792,-1.2017291669743191,34.665650853466047,-1.3299145372843157,27.806665484179604,12.695992096607922,2.2164114661161296,{"$f":"IF('[1]MONE(M)CAPARD'!GS187=\"\",\"\",'[1]MONE(M)CAPARD'!GS187)","v":5595.8781519730937},{"$f":"IF('[1]MONE(M)CARD'!HA187=\"\",\"\",'[1]MONE(M)CAPARD'!HA187)","v":3348.8831643250946},{"$f":"IF('[1]MONE(M)CAPARD'!HB187=\"\",\"\",'[1]MONE(M)CAPARD'!HB187)","v":2246.9949876479991},"n.d.",{"$f":"IF('[10]II.2.Balance OSD-Activos'!J45=\"\",\"\",'[10]II.2.Balance OSD-Activos'!J45)","v":506.3904773006202},{"$f":"IF('[10]II.2.Balance OSD-Activos'!N45=\"\",\"\",'[10]II.2.Balance OSD-Activos'!N45)","v":438.66549846911488},{"$f":"IF('[10]II.2.Balance OSD-Activos'!R45=\"\",\"\",'[10]II.2.Balance OSD-Activos'!R45)","v":17565.604064245264},{"$f":"IF('[10]II.2.Balance OSD-Activos'!S45=\"\",\"\",'[10]II.2.Balance OSD-Activos'!S45)","v":19780.300090091332},18071.994541545886,38290.96013010633,-29.113767949685364,0.8078360394981221,15.021454495443432,2.0496511611801438,22.827065727187957,11.269734030023915,1.9676781376187336,{"$f":"IF('[1]MONE(M)CAPARD'!AS187=\"\",\"\",'[1]MONE(M)CAPARD'!AS187)","v":"n.d."},{"$f":"IF('[1]MONE(M)CAPARD'!AT187=\"\",\"\",'[1]MONE(M)CAPARD'!AT187)","v":"n.a."},{"$f":"IF('[1]MONE(M)CAPARD'!AU187=\"\",\"\",'[1]MONE(M)CAPARD'!AU187)","v":"n.d."},{"$f":"IF('[1]MONE(M)CAPARD'!AV187=\"\",\"\",'[1]MONE(M)CAPARD'!AV187)","v":"n.d."},{"$f":"IF('[1]MONE(M)CAPARD'!AW187=\"\",\"\",'[1]MONE(M)CAPARD'!AW187)","v":"n.a."},{"$f":"IF('[1]MONE(M)CAPARD'!AX187=\"\",\"\",'[1]MONE(M)CAPARD'!AX187)","v":10},{"$f":"IF('[1]MONE(M)CAPARD'!AY187=\"\",\"\",'[1]MONE(M)CAPARD'!AY187)","v":"n.a."},{"$f":"IF('[1]FISCAL(M)'!$K187=\"\",\"\",'[1]FISCAL(M)'!$K187)","v":-1269.8405519212999},{"$f":"IF('[1]FISCAL(M)'!$L187=\"\",\"\",'[1]FISCAL(M)'!$L187)","v":-1832.2734074643008},{"$f":"IF('[1]FISCAL(M)'!$AY187=\"\",\"\",'[1]FISCAL(M)'!$AY187)","v":"n.d."},{"$f":"IF('[1]FISCAL(M)'!$BI187=\"\",\"\",'[1]FISCAL(M)'!$BI187)","v":"n.d."},{"$f":"IF('[1]FISCAL(M)'!$BS187=\"\",\"\",'[1]FISCAL(M)'!$BS187)","v":"n.d."},{"$f":"IF('[1]FISCAL(M)'!$AZ187=\"\",\"\",'[1]FISCAL(M)'!$AZ187)","v":"n.d."},{"$f":"IF('[1]FISCAL(M)'!$BJ187=\"\",\"\",'[1]FISCAL(M)'!$BJ187)","v":"n.d."},{"$f":"IF('[1]FISCAL(M)'!$BT187=\"\",\"\",'[1]FISCAL(M)'!$BT187)","v":"n.d."},{"$f":"IF('[2]MONE(M)'!$AO187=\"\",\"\",'[2]MONE(M)'!$AO187)","v":2588565.4009046839},{"$f":"IF('[3]MONE(M)'!$AO187=\"\",\"\",'[3]MONE(M)'!$AO187)","v":6636.096742857143},{"$f":"IF('[4]MONE(M)'!$AO187=\"\",\"\",'[4]MONE(M)'!$AO187)","v":50783.251943715441},{"$f":"+'[5]MONE(M)'!$AO187","v":60793.421366840157},{"$f":"IF('[6]MONE(M)'!$AO187=\"\",\"\",'[6]MONE(M)'!$AO187)","v":16794.499270341697},{"$f":"IF('[7]MONE(M)'!$AO187=\"\",\"\",'[7]MONE(M)'!$AO187)","v":177089.60509937},{"$f":"IF('[8]MONE(M)'!$AO187=\"\",\"\",'[8]MONE(M)'!$AO187)","v":10768.90565017},22.714221772057819,5.8920334348240955,28.628700056718337,22.374312653535377,22.859833017825547,-12.692378410867899,6.989107881659562,{"$f":"IF('[1]FISCAL(M)'!$K187=\"\",\"\",'[1]FISCAL(M)'!$K187)","v":-1269.8405519212999},{"$f":"+'[1]REAL(A)'!$AO$24","v":95171.868879548187},-1.3342603931929096,{"$f":"IF('[1]FISCAL(M)'!$L187=\"\",\"\",'[1]FISCAL(M)'!$L187)","v":-1832.2734074643008},{"$f":"+'[1]REAL(A)'!$AP$24","v":"n.d."},"n.d.","n.d.",{"$f":"'[1]Gráfico REM'!BG181","v":10703.957532714236},{"$f":"'[1]Gráfico REM'!BH181","v":28731.655595806929},{"$f":"'[1]Gráfico REM'!BI181","v":2125.5185358314375},"n.d.",40.013919423790398,13.233925767066479,67.613900698556947,"n.d.",{"$f":"'[1]Gráfico REM'!BK181","v":11232.779689444236},{"$f":"'[1]Gráfico REM'!BL181","v":39500.561245976933},{"$f":"'[1]Gráfico REM'!BM181","v":8752.7359284914364},"n.d.",36.494214226798036,11.460272924254266,19.819797935944017]
[2004,"noviembre","2004-noviembre",{"$f":"IF('[1]REAL IPC(M)'!$AL188=\"\",\"\",+'[1]REAL IPC(M)'!$AL188)","v":15.835122207378639},{"$f":"IF('[1]REAL IPC(M)'!$BE188=\"\",\"\",+'[1]REAL IPC(M)'!$BE188)","v":11.990918300629151},{"$f":"IF('[1]REAL IPC(M)'!$AM188=\"\",\"\",+'[1]REAL IPC(M)'!$AM188)","v":14.45141973868056},{"$f":"IF('[1]REAL IPC(M)'!$BI188=\"\",\"\",+'[1]REAL IPC(M)'!$BI188)","v":11.114708139030682},{"$f":"IF('[1]REAL IMAE(M)'!BJ188=\"\",\"\",'[1]REAL IMAE(M)'!BJ188)","v":"n.d."},{"$f":"IF('[1]REAL IMAE(M)'!BK188=\"\",\"\",'[1]REAL IMAE(M)'!BK188)","v":"n.d."},{"$f":"IF('[1]REAL IMAE(M)'!BN188=\"\",\"\",'[1]REAL IMAE(M)'!BN188)","v":"n.d."},{"$f":"IF('[1]REAL IMAE(M)'!BO188=\"\",\"\",'[1]REAL IMAE(M)'!BO188)","v":"n.d."},{"$f":"IF('[1]EXT RIN(M)'!$K188=\"\",\"\",'[1]EXT RIN(M)'!$K188)","v":9764.1279495399504},"",{"$f":"IF('[1]EXT RIN(M)'!$L188=\"\",\"\",'[1]EXT RIN(M)'!$L188)","v":10252.877585201149},"",{"$f":"IF('[1]MONE(M)CARD'!EG188=\"\",\"\",'[1]MONE(M)CARD'!EG188)","v":10296.100412878688},{"$f":"IF('[1]MONE(M)CARD'!EK188=\"\",\"\",'[1]MONE(M)CARD'!EK188)","v":22997.289476057333},{"$f":"IF('[1]MONE(M)CARD'!EP188=\"\",\"\",'[1]MONE(M)CARD'!EP188)","v":11659.597021393631},{"$f":"IF('[1]MONE(M)CARD'!ES188=\"\",\"\",'[1]MONE(M)CARD'!ES188)","v":19.567851320906438},{"$f":"IF('[1]MONE(M)CARD'!EV188=\"\",\"\",'[1]MONE(M)CARD'!EV188)","v":24.600372893440102},{"$f":"IF('[1]MONE(M)CARD'!EZ188=\"\",\"\",'[1]MONE(M)CARD'!EZ188)","v":29.733782290334165},{"$f":"IF('[1]MONE(M)CAPARD'!FC188=\"\",\"\",'[1]MONE(M)CAPARD'!FC188)","v":11827.204710288686},{"$f":"IF('[1]MONE(M)CAPARD'!FG188=\"\",\"\",'[1]MONE(M)CAPARD'!FG188)","v":32591.003493477336},{"$f":"IF('[1]MONE(M)CAPARD'!FL188=\"\",\"\",'[1]MONE(M)CAPARD'!FL188)","v":11659.597021393631},{"$f":"IF('[1]MONE(M)CAPARD'!FO188=\"\",\"\",'[1]MONE(M)CAPARD'!FO188)","v":18.010563290238156},{"$f":"IF('[1]MONE(M)CAPARD'!FR188=\"\",\"\",'[1]MONE(M)CAPARD'!FR188)","v":20.231529019586336},{"$f":"IF('[1]MONE(M)CAPARD'!FV188=\"\",\"\",'[1]MONE(M)CAPARD'!FV188)","v":24.96743335926319},{"$f":"IF('[1]MONE(M)CARD'!FV188=\"\",\"\",'[1]MONE(M)CARD'!FV188)","v":382.17002559479329},{"$f":"IF('[1]MONE(M)CARD'!GD188=\"\",\"\",'[1]MONE(M)CARD'!GD188)","v":31.734371791368783},{"$f":"IF('[1]MONE(M)CARD'!GE188=\"\",\"\",'[1]MONE(M)CARD'!GE188)","v":3341.414973387667},15.738641550888532,{"$f":"IF('[9]II.2.Balance OSD-Activos'!J46=\"\",\"\",'[9]II.2.Balance OSD-Activos'!J46)","v":161.09296103478314},{"$f":"IF('[9]II.2.Balance OSD-Activos'!N46=\"\",\"\",'[9]II.2.Balance OSD-Activos'!N46)","v":12.400017840115797},{"$f":"IF('[9]II.2.Balance OSD-Activos'!R46=\"\",\"\",'[9]II.2.Balance OSD-Activos'!R46)","v":12772.993459778283},{"$f":"IF('[9]II.2.Balance OSD-Activos'!S46=\"\",\"\",'[9]II.2.Balance OSD-Activos'!S46)","v":15404.77672662698},12934.086420813066,28351.263165280165,9.4102447609928586,3.6123525853630767,104.27027868599939,3.5431507846193089,32.860885832903698,17.71879690129412,5.0228048046861975,{"$f":"IF('[1]MONE(M)CAPARD'!GS188=\"\",\"\",'[1]MONE(M)CAPARD'!GS188)","v":5803.9894990504299},{"$f":"IF('[1]MONE(M)CARD'!HA188=\"\",\"\",'[1]MONE(M)CAPARD'!HA188)","v":3538.3762986076676},{"$f":"IF('[1]MONE(M)CAPARD'!HB188=\"\",\"\",'[1]MONE(M)CAPARD'!HB188)","v":2265.6132004427623},"n.d.",{"$f":"IF('[10]II.2.Balance OSD-Activos'!J46=\"\",\"\",'[10]II.2.Balance OSD-Activos'!J46)","v":506.41464473478317},{"$f":"IF('[10]II.2.Balance OSD-Activos'!N46=\"\",\"\",'[10]II.2.Balance OSD-Activos'!N46)","v":417.88658367011584},{"$f":"IF('[10]II.2.Balance OSD-Activos'!R46=\"\",\"\",'[10]II.2.Balance OSD-Activos'!R46)","v":18074.644692688282},{"$f":"IF('[10]II.2.Balance OSD-Activos'!S46=\"\",\"\",'[10]II.2.Balance OSD-Activos'!S46)","v":20439.61400273698},18581.059337423067,39438.559923830166,-33.17065737220306,4.4346318087735925,8.0470446603476464,6.1075101361811601,26.535148908590365,14.873650262265304,3.6039162322413887,{"$f":"IF('[1]MONE(M)CAPARD'!AS188=\"\",\"\",'[1]MONE(M)CAPARD'!AS188)","v":"n.d."},{"$f":"IF('[1]MONE(M)CAPARD'!AT188=\"\",\"\",'[1]MONE(M)CAPARD'!AT188)","v":"n.a."},{"$f":"IF('[1]MONE(M)CAPARD'!AU188=\"\",\"\",'[1]MONE(M)CAPARD'!AU188)","v":"n.d."},{"$f":"IF('[1]MONE(M)CAPARD'!AV188=\"\",\"\",'[1]MONE(M)CAPARD'!AV188)","v":"n.d."},{"$f":"IF('[1]MONE(M)CAPARD'!AW188=\"\",\"\",'[1]MONE(M)CAPARD'!AW188)","v":"n.a."},{"$f":"IF('[1]MONE(M)CAPARD'!AX188=\"\",\"\",'[1]MONE(M)CAPARD'!AX188)","v":10},{"$f":"IF('[1]MONE(M)CAPARD'!AY188=\"\",\"\",'[1]MONE(M)CAPARD'!AY188)","v":"n.a."},{"$f":"IF('[1]FISCAL(M)'!$K188=\"\",\"\",'[1]FISCAL(M)'!$K188)","v":-1329.2293723879461},{"$f":"IF('[1]FISCAL(M)'!$L188=\"\",\"\",'[1]FISCAL(M)'!$L188)","v":-2155.4310446009472},{"$f":"IF('[1]FISCAL(M)'!$AY188=\"\",\"\",'[1]FISCAL(M)'!$AY188)","v":"n.d."},{"$f":"IF('[1]FISCAL(M)'!$BI188=\"\",\"\",'[1]FISCAL(M)'!$BI188)","v":"n.d."},{"$f":"IF('[1]FISCAL(M)'!$BS188=\"\",\"\",'[1]FISCAL(M)'!$BS188)","v":"n.d."},{"$f":"IF('[1]FISCAL(M)'!$AZ188=\"\",\"\",'[1]FISCAL(M)'!$AZ188)","v":"n.d."},{"$f":"IF('[1]FISCAL(M)'!$BJ188=\"\",\"\",'[1]FISCAL(M)'!$BJ188)","v":"n.d."},{"$f":"IF('[1]FISCAL(M)'!$BT188=\"\",\"\",'[1]FISCAL(M)'!$BT188)","v":"n.d."},{"$f":"IF('[2]MONE(M)'!$AO188=\"\",\"\",'[2]MONE(M)'!$AO188)","v":2625052.4513633177},{"$f":"IF('[3]MONE(M)'!$AO188=\"\",\"\",'[3]MONE(M)'!$AO188)","v":6701.444742857143},{"$f":"IF('[4]MONE(M)'!$AO188=\"\",\"\",'[4]MONE(M)'!$AO188)","v":51762.247456015735},{"$f":"+'[5]MONE(M)'!$AO188","v":61572.106925390712},{"$f":"IF('[6]MONE(M)'!$AO188=\"\",\"\",'[6]MONE(M)'!$AO188)","v":17430.040360053201},{"$f":"IF('[7]MONE(M)'!$AO188=\"\",\"\",'[7]MONE(M)'!$AO188)","v":175892.96741039},{"$f":"IF('[8]MONE(M)'!$AO188=\"\",\"\",'[8]MONE(M)'!$AO188)","v":10862.323132049998},21.64192555147466,5.3260712840190738,29.411317546173166,20.287766979715862,23.985405014116235,-17.481042927189915,7.5036263962897198,{"$f":"IF('[1]FISCAL(M)'!$K188=\"\",\"\",'[1]FISCAL(M)'!$K188)","v":-1329.2293723879461},{"$f":"+'[1]REAL(A)'!$AO$24","v":95171.868879548187},-1.3966620473432658,{"$f":"IF('[1]FISCAL(M)'!$L188=\"\",\"\",'[1]FISCAL(M)'!$L188)","v":-2155.4310446009472},{"$f":"+'[1]REAL(A)'!$AP$24","v":"n.d."},"n.d.","n.d.",{"$f":"'[1]Gráfico REM'!BG182","v":11285.508730542975},{"$f":"'[1]Gráfico REM'!BH182","v":29804.435970170503},{"$f":"'[1]Gráfico REM'!BI182","v":2176.6309618407527},"n.d.",52.790471038657415,17.858792071942986,104.68975045777964,"n.d.",{"$f":"'[1]Gráfico REM'!BK182","v":11893.136209622975},{"$f":"'[1]Gráfico REM'!BL182","v":40666.759102220502},{"$f":"'[1]Gráfico REM'!BM182","v":9350.7877657007521},"n.d.",48.675466551418502,14.902505100442109,34.865918973420442]
[2004,"diciembre","2004-diciembre",{"$f":"IF('[1]REAL IPC(M)'!$AL189=\"\",\"\",+'[1]REAL IPC(M)'!$AL189)","v":14.063449500275382},{"$f":"IF('[1]REAL IPC(M)'!$BE189=\"\",\"\",+'[1]REAL IPC(M)'!$BE189)","v":11.831374175034725},{"$f":"IF('[1]REAL IPC(M)'!$AM189=\"\",\"\",+'[1]REAL IPC(M)'!$AM189)","v":12.901328479079188},{"$f":"IF('[1]REAL IPC(M)'!$BI189=\"\",\"\",+'[1]REAL IPC(M)'!$BI189)","v":10.967512605954454},{"$f":"IF('[1]REAL IMAE(M)'!BJ189=\"\",\"\",'[1]REAL IMAE(M)'!BJ189)","v":"n.d."},{"$f":"IF('[1]REAL IMAE(M)'!BK189=\"\",\"\",'[1]REAL IMAE(M)'!BK189)","v":"n.d."},{"$f":"IF('[1]REAL IMAE(M)'!BN189=\"\",\"\",'[1]REAL IMAE(M)'!BN189)","v":"n.d."},{"$f":"IF('[1]REAL IMAE(M)'!BO189=\"\",\"\",'[1]REAL IMAE(M)'!BO189)","v":"n.d."},{"$f":"IF('[1]EXT RIN(M)'!$K189=\"\",\"\",'[1]EXT RIN(M)'!$K189)","v":10190.404261494246},10190.404261494246,{"$f":"IF('[1]EXT RIN(M)'!$L189=\"\",\"\",'[1]EXT RIN(M)'!$L189)","v":10808.749128948926},10808.749128948926,{"$f":"IF('[1]MONE(M)CARD'!EG189=\"\",\"\",'[1]MONE(M)CARD'!EG189)","v":10878.798780452249},{"$f":"IF('[1]MONE(M)CARD'!EK189=\"\",\"\",'[1]MONE(M)CARD'!EK189)","v":22540.967108744917},{"$f":"IF('[1]MONE(M)CARD'!EP189=\"\",\"\",'[1]MONE(M)CARD'!EP189)","v":11868.702170519478},{"$f":"IF('[1]MONE(M)CARD'!ES189=\"\",\"\",'[1]MONE(M)CARD'!ES189)","v":10.888768683484695},{"$f":"IF('[1]MONE(M)CARD'!EV189=\"\",\"\",'[1]MONE(M)CARD'!EV189)","v":16.827689098237066},{"$f":"IF('[1]MONE(M)CARD'!EZ189=\"\",\"\",'[1]MONE(M)CARD'!EZ189)","v":17.484134021983898},{"$f":"IF('[1]MONE(M)CAPARD'!FC189=\"\",\"\",'[1]MONE(M)CAPARD'!FC189)","v":12511.86292930225},{"$f":"IF('[1]MONE(M)CAPARD'!FG189=\"\",\"\",'[1]MONE(M)CAPARD'!FG189)","v":32136.032113404919},{"$f":"IF('[1]MONE(M)CAPARD'!FL189=\"\",\"\",'[1]MONE(M)CAPARD'!FL189)","v":11868.702170519478},{"$f":"IF('[1]MONE(M)CAPARD'!FO189=\"\",\"\",'[1]MONE(M)CAPARD'!FO189)","v":10.979203640407675},{"$f":"IF('[1]MONE(M)CAPARD'!FR189=\"\",\"\",'[1]MONE(M)CAPARD'!FR189)","v":14.553943098390709},{"$f":"IF('[1]MONE(M)CAPARD'!FV189=\"\",\"\",'[1]MONE(M)CAPARD'!FV189)","v":15.533375453819476},{"$f":"IF('[1]MONE(M)CARD'!FV189=\"\",\"\",'[1]MONE(M)CARD'!FV189)","v":407.93865274269831},{"$f":"IF('[1]MONE(M)CARD'!GD189=\"\",\"\",'[1]MONE(M)CARD'!GD189)","v":15.107685496573541},{"$f":"IF('[1]MONE(M)CARD'!GE189=\"\",\"\",'[1]MONE(M)CARD'!GE189)","v":3091.074865449104},13.164528501727023,{"$f":"IF('[9]II.2.Balance OSD-Activos'!J47=\"\",\"\",'[9]II.2.Balance OSD-Activos'!J47)","v":136.53216421903906},{"$f":"IF('[9]II.2.Balance OSD-Activos'!N47=\"\",\"\",'[9]II.2.Balance OSD-Activos'!N47)","v":11.824464891618662},{"$f":"IF('[9]II.2.Balance OSD-Activos'!R47=\"\",\"\",'[9]II.2.Balance OSD-Activos'!R47)","v":12626.156007852149},{"$f":"IF('[9]II.2.Balance OSD-Activos'!S47=\"\",\"\",'[9]II.2.Balance OSD-Activos'!S47)","v":15598.243511245906},12762.688172071188,28372.756148208711,-14.811235358364483,-0.14347557239454689,116.82581380389392,4.2789353452366008E-2,21.090133362235708,10.537488922937799,-7.1813079783563207,{"$f":"IF('[1]MONE(M)CAPARD'!GS189=\"\",\"\",'[1]MONE(M)CAPARD'!GS189)","v":5821.1470823277677},{"$f":"IF('[1]MONE(M)CARD'!HA189=\"\",\"\",'[1]MONE(M)CAPARD'!HA189)","v":3283.9617883291039},{"$f":"IF('[1]MONE(M)CAPARD'!HB189=\"\",\"\",'[1]MONE(M)CAPARD'!HB189)","v":2537.1852939986638},"n.d.",{"$f":"IF('[10]II.2.Balance OSD-Activos'!J47=\"\",\"\",'[10]II.2.Balance OSD-Activos'!J47)","v":473.69490492903901},{"$f":"IF('[10]II.2.Balance OSD-Activos'!N47=\"\",\"\",'[10]II.2.Balance OSD-Activos'!N47)","v":415.40273592161867},{"$f":"IF('[10]II.2.Balance OSD-Activos'!R47=\"\",\"\",'[10]II.2.Balance OSD-Activos'!R47)","v":17745.974603212151},{"$f":"IF('[10]II.2.Balance OSD-Activos'!S47=\"\",\"\",'[10]II.2.Balance OSD-Activos'!S47)","v":20697.023788005903},18219.669508141189,39332.096032068715,-23.225175157555931,1.3965832740081341,17.171917799402657,2.2720833588833145,18.36673735029375,9.8393371038852031,-5.0343131583801011,{"$f":"IF('[1]MONE(M)CAPARD'!AS189=\"\",\"\",'[1]MONE(M)CAPARD'!AS189)","v":"n.d."},{"$f":"IF('[1]MONE(M)CAPARD'!AT189=\"\",\"\",'[1]MONE(M)CAPARD'!AT189)","v":"n.a."},{"$f":"IF('[1]MONE(M)CAPARD'!AU189=\"\",\"\",'[1]MONE(M)CAPARD'!AU189)","v":"n.d."},{"$f":"IF('[1]MONE(M)CAPARD'!AV189=\"\",\"\",'[1]MONE(M)CAPARD'!AV189)","v":"n.d."},{"$f":"IF('[1]MONE(M)CAPARD'!AW189=\"\",\"\",'[1]MONE(M)CAPARD'!AW189)","v":"n.a."},{"$f":"IF('[1]MONE(M)CAPARD'!AX189=\"\",\"\",'[1]MONE(M)CAPARD'!AX189)","v":7},{"$f":"IF('[1]MONE(M)CAPARD'!AY189=\"\",\"\",'[1]MONE(M)CAPARD'!AY189)","v":"n.a."},{"$f":"IF('[1]FISCAL(M)'!$K189=\"\",\"\",'[1]FISCAL(M)'!$K189)","v":-2034.4539905514384},{"$f":"IF('[1]FISCAL(M)'!$L189=\"\",\"\",'[1]FISCAL(M)'!$L189)","v":-1939.3242303844397},{"$f":"IF('[1]FISCAL(M)'!$AY189=\"\",\"\",'[1]FISCAL(M)'!$AY189)","v":"n.d."},{"$f":"IF('[1]FISCAL(M)'!$BI189=\"\",\"\",'[1]FISCAL(M)'!$BI189)","v":"n.d."},{"$f":"IF('[1]FISCAL(M)'!$BS189=\"\",\"\",'[1]FISCAL(M)'!$BS189)","v":29450.300000000003},{"$f":"IF('[1]FISCAL(M)'!$AZ189=\"\",\"\",'[1]FISCAL(M)'!$AZ189)","v":"n.d."},{"$f":"IF('[1]FISCAL(M)'!$BJ189=\"\",\"\",'[1]FISCAL(M)'!$BJ189)","v":"n.d."},{"$f":"IF('[1]FISCAL(M)'!$BT189=\"\",\"\",'[1]FISCAL(M)'!$BT189)","v":36669.483222289993},{"$f":"IF('[2]MONE(M)'!$AO189=\"\",\"\",'[2]MONE(M)'!$AO189)","v":2698691.7171735931},{"$f":"IF('[3]MONE(M)'!$AO189=\"\",\"\",'[3]MONE(M)'!$AO189)","v":6707.2817428571416},{"$f":"IF('[4]MONE(M)'!$AO189=\"\",\"\",'[4]MONE(M)'!$AO189)","v":53400.474005754833},{"$f":"+'[5]MONE(M)'!$AO189","v":62052.733351520394},{"$f":"IF('[6]MONE(M)'!$AO189=\"\",\"\",'[6]MONE(M)'!$AO189)","v":18320.389897868121},{"$f":"IF('[7]MONE(M)'!$AO189=\"\",\"\",'[7]MONE(M)'!$AO189)","v":178521.91516318999},{"$f":"IF('[8]MONE(M)'!$AO189=\"\",\"\",'[8]MONE(M)'!$AO189)","v":10709.198761289997},19.617390705369587,3.9939632743277054,8.9735485227242293,14.84525655704909,27.940116090341192,-8.2163540689178518,7.0205864681916585,{"$f":"IF('[1]FISCAL(M)'!$K189=\"\",\"\",'[1]FISCAL(M)'!$K189)","v":-2034.4539905514384},{"$f":"+'[1]REAL(A)'!$AO$24","v":95171.868879548187},-2.1376631713792364,{"$f":"IF('[1]FISCAL(M)'!$L189=\"\",\"\",'[1]FISCAL(M)'!$L189)","v":-1939.3242303844397},{"$f":"+'[1]REAL(A)'!$AP$24","v":"n.d."},"n.d.","n.d.",{"$f":"'[1]Gráfico REM'!BG183","v":11074.575200335561},{"$f":"'[1]Gráfico REM'!BH183","v":29837.502363400672},{"$f":"'[1]Gráfico REM'!BI183","v":2398.2170712095713},"n.d.",42.3027125138806,9.8659038182927752,26.159310528948065,"n.d.",{"$f":"'[1]Gráfico REM'!BK183","v":11597.361395835562},{"$f":"'[1]Gráfico REM'!BL183","v":40546.70112469067},{"$f":"'[1]Gráfico REM'!BM183","v":9834.523836169572},"n.d.",39.493470740332292,9.0997979568549603,19.106067632486258]
[2005,"enero","2005-enero",{"$f":"IF('[1]REAL IPC(M)'!$AL190=\"\",\"\",+'[1]REAL IPC(M)'!$AL190)","v":11.431324885198402},{"$f":"IF('[1]REAL IPC(M)'!$BE190=\"\",\"\",+'[1]REAL IPC(M)'!$BE190)","v":11.660668912499638},{"$f":"IF('[1]REAL IPC(M)'!$AM190=\"\",\"\",+'[1]REAL IPC(M)'!$AM190)","v":10.423853254985271},{"$f":"IF('[1]REAL IPC(M)'!$BI190=\"\",\"\",+'[1]REAL IPC(M)'!$BI190)","v":10.809442700546757},{"$f":"IF('[1]REAL IMAE(M)'!BJ190=\"\",\"\",'[1]REAL IMAE(M)'!BJ190)","v":"n.d."},{"$f":"IF('[1]REAL IMAE(M)'!BK190=\"\",\"\",'[1]REAL IMAE(M)'!BK190)","v":"n.d."},{"$f":"IF('[1]REAL IMAE(M)'!BN190=\"\",\"\",'[1]REAL IMAE(M)'!BN190)","v":"n.d."},{"$f":"IF('[1]REAL IMAE(M)'!BO190=\"\",\"\",'[1]REAL IMAE(M)'!BO190)","v":"n.d."},{"$f":"IF('[1]EXT RIN(M)'!$K190=\"\",\"\",'[1]EXT RIN(M)'!$K190)","v":10185.619650385206},"",{"$f":"IF('[1]EXT RIN(M)'!$L190=\"\",\"\",'[1]EXT RIN(M)'!$L190)","v":11283.375532274325},"",{"$f":"IF('[1]MONE(M)CARD'!EG190=\"\",\"\",'[1]MONE(M)CARD'!EG190)","v":10759.194992311634},{"$f":"IF('[1]MONE(M)CARD'!EK190=\"\",\"\",'[1]MONE(M)CARD'!EK190)","v":23081.420477862135},{"$f":"IF('[1]MONE(M)CARD'!EP190=\"\",\"\",'[1]MONE(M)CARD'!EP190)","v":12049.17109915406},{"$f":"IF('[1]MONE(M)CARD'!ES190=\"\",\"\",'[1]MONE(M)CARD'!ES190)","v":19.125619322783805},{"$f":"IF('[1]MONE(M)CARD'!EV190=\"\",\"\",'[1]MONE(M)CARD'!EV190)","v":28.663970736230503},{"$f":"IF('[1]MONE(M)CARD'!EZ190=\"\",\"\",'[1]MONE(M)CARD'!EZ190)","v":26.084436084768203},{"$f":"IF('[1]MONE(M)CAPARD'!FC190=\"\",\"\",'[1]MONE(M)CAPARD'!FC190)","v":12281.102807841631},{"$f":"IF('[1]MONE(M)CAPARD'!FG190=\"\",\"\",'[1]MONE(M)CAPARD'!FG190)","v":32692.238866232128},{"$f":"IF('[1]MONE(M)CAPARD'!FL190=\"\",\"\",'[1]MONE(M)CAPARD'!FL190)","v":12049.17109915406},{"$f":"IF('[1]MONE(M)CAPARD'!FO190=\"\",\"\",'[1]MONE(M)CAPARD'!FO190)","v":17.80657667341028},{"$f":"IF('[1]MONE(M)CAPARD'!FR190=\"\",\"\",'[1]MONE(M)CAPARD'!FR190)","v":22.597420794244847},{"$f":"IF('[1]MONE(M)CAPARD'!FV190=\"\",\"\",'[1]MONE(M)CAPARD'!FV190)","v":21.899533321316845},{"$f":"IF('[1]MONE(M)CARD'!FV190=\"\",\"\",'[1]MONE(M)CARD'!FV190)","v":403.46555327910926},{"$f":"IF('[1]MONE(M)CARD'!GD190=\"\",\"\",'[1]MONE(M)CARD'!GD190)","v":32.473557267692264},{"$f":"IF('[1]MONE(M)CARD'!GE190=\"\",\"\",'[1]MONE(M)CARD'!GE190)","v":3383.679853342433},30.850358257196863,{"$f":"IF('[9]II.2.Balance OSD-Activos'!J48=\"\",\"\",'[9]II.2.Balance OSD-Activos'!J48)","v":182.44594340512481},{"$f":"IF('[9]II.2.Balance OSD-Activos'!N48=\"\",\"\",'[9]II.2.Balance OSD-Activos'!N48)","v":117.03052184408482},{"$f":"IF('[9]II.2.Balance OSD-Activos'!R48=\"\",\"\",'[9]II.2.Balance OSD-Activos'!R48)","v":11642.520752587861},{"$f":"IF('[9]II.2.Balance OSD-Activos'!S48=\"\",\"\",'[9]II.2.Balance OSD-Activos'!S48)","v":16879.69721629404},11824.966695992985,28821.69443413111,16.601117065199421,-1.459422920821718,1958.3863825428921,-1.6980267704281848,36.824868160006652,18.400708010697841,7.8632190877600419,{"$f":"IF('[1]MONE(M)CAPARD'!GS190=\"\",\"\",'[1]MONE(M)CAPARD'!GS190)","v":5786.5952615735696},{"$f":"IF('[1]MONE(M)CARD'!HA190=\"\",\"\",'[1]MONE(M)CAPARD'!HA190)","v":3574.2515825224327},{"$f":"IF('[1]MONE(M)CAPARD'!HB190=\"\",\"\",'[1]MONE(M)CAPARD'!HB190)","v":2212.3436790511369},"n.d.",{"$f":"IF('[10]II.2.Balance OSD-Activos'!J48=\"\",\"\",'[10]II.2.Balance OSD-Activos'!J48)","v":516.75083991512474},{"$f":"IF('[10]II.2.Balance OSD-Activos'!N48=\"\",\"\",'[10]II.2.Balance OSD-Activos'!N48)","v":513.7450404540848},{"$f":"IF('[10]II.2.Balance OSD-Activos'!R48=\"\",\"\",'[10]II.2.Balance OSD-Activos'!R48)","v":16817.27472884786},{"$f":"IF('[10]II.2.Balance OSD-Activos'!S48=\"\",\"\",'[10]II.2.Balance OSD-Activos'!S48)","v":22001.477239424043},17334.025568762983,39849.247848641113,-17.79658149213974,0.47254329487984581,48.589134624911303,1.1633821832518043,29.792275472510088,15.339418152570516,5.5000810486853133,{"$f":"IF('[1]MONE(M)CAPARD'!AS190=\"\",\"\",'[1]MONE(M)CAPARD'!AS190)","v":"n.d."},{"$f":"IF('[1]MONE(M)CAPARD'!AT190=\"\",\"\",'[1]MONE(M)CAPARD'!AT190)","v":"n.a."},{"$f":"IF('[1]MONE(M)CAPARD'!AU190=\"\",\"\",'[1]MONE(M)CAPARD'!AU190)","v":2.5499999999999998},{"$f":"IF('[1]MONE(M)CAPARD'!AV190=\"\",\"\",'[1]MONE(M)CAPARD'!AV190)","v":"n.d."},{"$f":"IF('[1]MONE(M)CAPARD'!AW190=\"\",\"\",'[1]MONE(M)CAPARD'!AW190)","v":"n.a."},{"$f":"IF('[1]MONE(M)CAPARD'!AX190=\"\",\"\",'[1]MONE(M)CAPARD'!AX190)","v":4},{"$f":"IF('[1]MONE(M)CAPARD'!AY190=\"\",\"\",'[1]MONE(M)CAPARD'!AY190)","v":"n.a."},{"$f":"IF('[1]FISCAL(M)'!$K190=\"\",\"\",'[1]FISCAL(M)'!$K190)","v":13.76561769264822},{"$f":"IF('[1]FISCAL(M)'!$L190=\"\",\"\",'[1]FISCAL(M)'!$L190)","v":395.50920881264818},{"$f":"IF('[1]FISCAL(M)'!$AY190=\"\",\"\",'[1]FISCAL(M)'!$AY190)","v":"n.d."},{"$f":"IF('[1]FISCAL(M)'!$BI190=\"\",\"\",'[1]FISCAL(M)'!$BI190)","v":"n.d."},{"$f":"IF('[1]FISCAL(M)'!$BS190=\"\",\"\",'[1]FISCAL(M)'!$BS190)","v":"n.d."},{"$f":"IF('[1]FISCAL(M)'!$AZ190=\"\",\"\",'[1]FISCAL(M)'!$AZ190)","v":"n.d."},{"$f":"IF('[1]FISCAL(M)'!$BJ190=\"\",\"\",'[1]FISCAL(M)'!$BJ190)","v":"n.d."},{"$f":"IF('[1]FISCAL(M)'!$BT190=\"\",\"\",'[1]FISCAL(M)'!$BT190)","v":"n.d."},{"$f":"IF('[2]MONE(M)'!$AO190=\"\",\"\",'[2]MONE(M)'!$AO190)","v":2717067.2638911577},{"$f":"IF('[3]MONE(M)'!$AO190=\"\",\"\",'[3]MONE(M)'!$AO190)","v":6837.908530337143},{"$f":"IF('[4]MONE(M)'!$AO190=\"\",\"\",'[4]MONE(M)'!$AO190)","v":53462.139755380893},{"$f":"+'[5]MONE(M)'!$AO190","v":61841.894977776632},{"$f":"IF('[6]MONE(M)'!$AO190=\"\",\"\",'[6]MONE(M)'!$AO190)","v":18485.997000725532},{"$f":"IF('[7]MONE(M)'!$AO190=\"\",\"\",'[7]MONE(M)'!$AO190)","v":174373.72288120998},{"$f":"IF('[8]MONE(M)'!$AO190=\"\",\"\",'[8]MONE(M)'!$AO190)","v":10780.578187610001},20.368706597993636,5.9356319008860181,13.241010066930571,13.536244879812331,29.457341788802726,-17.86762379145501,7.0604721042865304,{"$f":"IF('[1]FISCAL(M)'!$K190=\"\",\"\",'[1]FISCAL(M)'!$K190)","v":13.76561769264822},{"$f":"+'[1]REAL(A)'!$AO$25","v":114915.867502026},1.1978865923285597E-2,{"$f":"IF('[1]FISCAL(M)'!$L190=\"\",\"\",'[1]FISCAL(M)'!$L190)","v":395.50920881264818},{"$f":"+'[1]REAL(A)'!$AP$25","v":"n.d."},"n.d.","n.d.",{"$f":"'[1]Gráfico REM'!BG184","v":11577.558395291777},{"$f":"'[1]Gráfico REM'!BH184","v":30155.148883539736},{"$f":"'[1]Gráfico REM'!BI184","v":2503.1801285577521},"n.d.",49.460328998409551,17.205013668063085,25.594166058972224,"n.d.",{"$f":"'[1]Gráfico REM'!BK184","v":12088.582280261777},{"$f":"'[1]Gráfico REM'!BL184","v":40935.72707114974},{"$f":"'[1]Gráfico REM'!BM184","v":9912.6114917177511},"n.d.",45.79128745707628,14.3514697059403,19.156544814218577]
[2005,"febrero","2005-febrero",{"$f":"IF('[1]REAL IPC(M)'!$AL191=\"\",\"\",+'[1]REAL IPC(M)'!$AL191)","v":8.5337753723691243},{"$f":"IF('[1]REAL IPC(M)'!$BE191=\"\",\"\",+'[1]REAL IPC(M)'!$BE191)","v":11.481437775095205},{"$f":"IF('[1]REAL IPC(M)'!$AM191=\"\",\"\",+'[1]REAL IPC(M)'!$AM191)","v":7.8743621388316809},{"$f":"IF('[1]REAL IPC(M)'!$BI191=\"\",\"\",+'[1]REAL IPC(M)'!$BI191)","v":10.643132069149551},{"$f":"IF('[1]REAL IMAE(M)'!BJ191=\"\",\"\",'[1]REAL IMAE(M)'!BJ191)","v":"n.d."},{"$f":"IF('[1]REAL IMAE(M)'!BK191=\"\",\"\",'[1]REAL IMAE(M)'!BK191)","v":"n.d."},{"$f":"IF('[1]REAL IMAE(M)'!BN191=\"\",\"\",'[1]REAL IMAE(M)'!BN191)","v":"n.d."},{"$f":"IF('[1]REAL IMAE(M)'!BO191=\"\",\"\",'[1]REAL IMAE(M)'!BO191)","v":"n.d."},{"$f":"IF('[1]EXT RIN(M)'!$K191=\"\",\"\",'[1]EXT RIN(M)'!$K191)","v":10369.812376920985},"",{"$f":"IF('[1]EXT RIN(M)'!$L191=\"\",\"\",'[1]EXT RIN(M)'!$L191)","v":11456.428338557105},"",{"$f":"IF('[1]MONE(M)CARD'!EG191=\"\",\"\",'[1]MONE(M)CARD'!EG191)","v":10766.904975855345},{"$f":"IF('[1]MONE(M)CARD'!EK191=\"\",\"\",'[1]MONE(M)CARD'!EK191)","v":23571.463088189921},{"$f":"IF('[1]MONE(M)CARD'!EP191=\"\",\"\",'[1]MONE(M)CARD'!EP191)","v":12274.192425873385},{"$f":"IF('[1]MONE(M)CARD'!ES191=\"\",\"\",'[1]MONE(M)CARD'!ES191)","v":20.22933949618546},{"$f":"IF('[1]MONE(M)CARD'!EV191=\"\",\"\",'[1]MONE(M)CARD'!EV191)","v":29.858892032761975},{"$f":"IF('[1]MONE(M)CARD'!EZ191=\"\",\"\",'[1]MONE(M)CARD'!EZ191)","v":27.195339307848542},{"$f":"IF('[1]MONE(M)CAPARD'!FC191=\"\",\"\",'[1]MONE(M)CAPARD'!FC191)","v":12324.034759785345},{"$f":"IF('[1]MONE(M)CAPARD'!FG191=\"\",\"\",'[1]MONE(M)CAPARD'!FG191)","v":33321.183279089913},{"$f":"IF('[1]MONE(M)CAPARD'!FL191=\"\",\"\",'[1]MONE(M)CAPARD'!FL191)","v":12274.192425873385},{"$f":"IF('[1]MONE(M)CAPARD'!FO191=\"\",\"\",'[1]MONE(M)CAPARD'!FO191)","v":18.724596490499756},{"$f":"IF('[1]MONE(M)CAPARD'!FR191=\"\",\"\",'[1]MONE(M)CAPARD'!FR191)","v":23.63592854250065},{"$f":"IF('[1]MONE(M)CAPARD'!FV191=\"\",\"\",'[1]MONE(M)CAPARD'!FV191)","v":22.912008254166683},{"$f":"IF('[1]MONE(M)CARD'!FV191=\"\",\"\",'[1]MONE(M)CARD'!FV191)","v":363.76730366112008},{"$f":"IF('[1]MONE(M)CARD'!GD191=\"\",\"\",'[1]MONE(M)CARD'!GD191)","v":42.416224713312396},{"$f":"IF('[1]MONE(M)CARD'!GE191=\"\",\"\",'[1]MONE(M)CARD'!GE191)","v":3400.8450436242733},32.326312451923144,{"$f":"IF('[9]II.2.Balance OSD-Activos'!J49=\"\",\"\",'[9]II.2.Balance OSD-Activos'!J49)","v":171.7460314560218},{"$f":"IF('[9]II.2.Balance OSD-Activos'!N49=\"\",\"\",'[9]II.2.Balance OSD-Activos'!N49)","v":117.6220349722699},{"$f":"IF('[9]II.2.Balance OSD-Activos'!R49=\"\",\"\",'[9]II.2.Balance OSD-Activos'!R49)","v":11610.871654739214},{"$f":"IF('[9]II.2.Balance OSD-Activos'!S49=\"\",\"\",'[9]II.2.Balance OSD-Activos'!S49)","v":17096.454340816777},11782.617686195235,28996.694061984283,18.627965791288091,-1.962358982949397,1790.6211826868546,-2.213418831350944,35.595925471199806,17.714505217660648,-0.686202793037193,{"$f":"IF('[1]MONE(M)CAPARD'!GS191=\"\",\"\",'[1]MONE(M)CAPARD'!GS191)","v":5800.7644066673674},{"$f":"IF('[1]MONE(M)CARD'!HA191=\"\",\"\",'[1]MONE(M)CAPARD'!HA191)","v":3590.4379611342733},{"$f":"IF('[1]MONE(M)CAPARD'!HB191=\"\",\"\",'[1]MONE(M)CAPARD'!HB191)","v":2210.3264455330941},"n.d.",{"$f":"IF('[10]II.2.Balance OSD-Activos'!J49=\"\",\"\",'[10]II.2.Balance OSD-Activos'!J49)","v":507.56453587602181},{"$f":"IF('[10]II.2.Balance OSD-Activos'!N49=\"\",\"\",'[10]II.2.Balance OSD-Activos'!N49)","v":512.20185464226984},{"$f":"IF('[10]II.2.Balance OSD-Activos'!R49=\"\",\"\",'[10]II.2.Balance OSD-Activos'!R49)","v":16819.856569199212},{"$f":"IF('[10]II.2.Balance OSD-Activos'!S49=\"\",\"\",'[10]II.2.Balance OSD-Activos'!S49)","v":22274.85006265678},17327.421105075235,40114.473022374281,-19.930323823042272,0.23519788903245686,46.544066848604835,1.0028135803797467,29.020451578234251,14.938310906890839,-0.40110724567967715,{"$f":"IF('[1]MONE(M)CAPARD'!AS191=\"\",\"\",'[1]MONE(M)CAPARD'!AS191)","v":"n.d."},{"$f":"IF('[1]MONE(M)CAPARD'!AT191=\"\",\"\",'[1]MONE(M)CAPARD'!AT191)","v":"n.a."},{"$f":"IF('[1]MONE(M)CAPARD'!AU191=\"\",\"\",'[1]MONE(M)CAPARD'!AU191)","v":2.75},{"$f":"IF('[1]MONE(M)CAPARD'!AV191=\"\",\"\",'[1]MONE(M)CAPARD'!AV191)","v":"n.d."},{"$f":"IF('[1]MONE(M)CAPARD'!AW191=\"\",\"\",'[1]MONE(M)CAPARD'!AW191)","v":"n.a."},{"$f":"IF('[1]MONE(M)CAPARD'!AX191=\"\",\"\",'[1]MONE(M)CAPARD'!AX191)","v":4},{"$f":"IF('[1]MONE(M)CAPARD'!AY191=\"\",\"\",'[1]MONE(M)CAPARD'!AY191)","v":"n.a."},{"$f":"IF('[1]FISCAL(M)'!$K191=\"\",\"\",'[1]FISCAL(M)'!$K191)","v":14.994565399093432},{"$f":"IF('[1]FISCAL(M)'!$L191=\"\",\"\",'[1]FISCAL(M)'!$L191)","v":335.52587747909331},{"$f":"IF('[1]FISCAL(M)'!$AY191=\"\",\"\",'[1]FISCAL(M)'!$AY191)","v":"n.d."},{"$f":"IF('[1]FISCAL(M)'!$BI191=\"\",\"\",'[1]FISCAL(M)'!$BI191)","v":"n.d."},{"$f":"IF('[1]FISCAL(M)'!$BS191=\"\",\"\",'[1]FISCAL(M)'!$BS191)","v":"n.d."},{"$f":"IF('[1]FISCAL(M)'!$AZ191=\"\",\"\",'[1]FISCAL(M)'!$AZ191)","v":"n.d."},{"$f":"IF('[1]FISCAL(M)'!$BJ191=\"\",\"\",'[1]FISCAL(M)'!$BJ191)","v":"n.d."},{"$f":"IF('[1]FISCAL(M)'!$BT191=\"\",\"\",'[1]FISCAL(M)'!$BT191)","v":"n.d."},{"$f":"IF('[2]MONE(M)'!$AO191=\"\",\"\",'[2]MONE(M)'!$AO191)","v":2750379.1107620043},{"$f":"IF('[3]MONE(M)'!$AO191=\"\",\"\",'[3]MONE(M)'!$AO191)","v":6834.513994277143},{"$f":"IF('[4]MONE(M)'!$AO191=\"\",\"\",'[4]MONE(M)'!$AO191)","v":53482.864195850903},{"$f":"+'[5]MONE(M)'!$AO191","v":62799.294391446703},{"$f":"IF('[6]MONE(M)'!$AO191=\"\",\"\",'[6]MONE(M)'!$AO191)","v":18587.690754977426},{"$f":"IF('[7]MONE(M)'!$AO191=\"\",\"\",'[7]MONE(M)'!$AO191)","v":173953.11533895001},{"$f":"IF('[8]MONE(M)'!$AO191=\"\",\"\",'[8]MONE(M)'!$AO191)","v":10874.787632219999},21.446715424364228,4.8257355551685421,13.647362554543196,13.659441731099232,27.981442325365702,-16.952501581185398,7.2551762874425663,{"$f":"IF('[1]FISCAL(M)'!$K191=\"\",\"\",'[1]FISCAL(M)'!$K191)","v":14.994565399093432},{"$f":"+'[1]REAL(A)'!$AO$25","v":114915.867502026},1.3048298485697872E-2,{"$f":"IF('[1]FISCAL(M)'!$L191=\"\",\"\",'[1]FISCAL(M)'!$L191)","v":335.52587747909331},{"$f":"+'[1]REAL(A)'!$AP$25","v":"n.d."},"n.d.","n.d.",{"$f":"'[1]Gráfico REM'!BG185","v":11669.793672398091},{"$f":"'[1]Gráfico REM'!BH185","v":30303.823756558479},{"$f":"'[1]Gráfico REM'!BI185","v":2570.0057286903393},"n.d.",51.859782034723409,16.436646724538551,26.128538477686259,"n.d.",{"$f":"'[1]Gráfico REM'!BK185","v":12173.783942188091},{"$f":"'[1]Gráfico REM'!BL185","v":41178.611388778474},{"$f":"'[1]Gráfico REM'!BM185","v":9939.8045084403384},"n.d.",47.965545529732488,13.862555157323463,20.21353085986788]
[2005,"marzo","2005-marzo",{"$f":"IF('[1]REAL IPC(M)'!$AL192=\"\",\"\",+'[1]REAL IPC(M)'!$AL192)","v":7.9181318516159171},{"$f":"IF('[1]REAL IPC(M)'!$BE192=\"\",\"\",+'[1]REAL IPC(M)'!$BE192)","v":11.296184139789522},{"$f":"IF('[1]REAL IPC(M)'!$AM192=\"\",\"\",+'[1]REAL IPC(M)'!$AM192)","v":7.4145325933496764},{"$f":"IF('[1]REAL IPC(M)'!$BI192=\"\",\"\",+'[1]REAL IPC(M)'!$BI192)","v":10.471079811826979},{"$f":"IF('[1]REAL IMAE(M)'!BJ192=\"\",\"\",'[1]REAL IMAE(M)'!BJ192)","v":"n.d."},{"$f":"IF('[1]REAL IMAE(M)'!BK192=\"\",\"\",'[1]REAL IMAE(M)'!BK192)","v":"n.d."},{"$f":"IF('[1]REAL IMAE(M)'!BN192=\"\",\"\",'[1]REAL IMAE(M)'!BN192)","v":"n.d."},{"$f":"IF('[1]REAL IMAE(M)'!BO192=\"\",\"\",'[1]REAL IMAE(M)'!BO192)","v":"n.d."},{"$f":"IF('[1]EXT RIN(M)'!$K192=\"\",\"\",'[1]EXT RIN(M)'!$K192)","v":10778.609506630964},"",{"$f":"IF('[1]EXT RIN(M)'!$L192=\"\",\"\",'[1]EXT RIN(M)'!$L192)","v":11797.245055901005},"",{"$f":"IF('[1]MONE(M)CARD'!EG192=\"\",\"\",'[1]MONE(M)CARD'!EG192)","v":11109.918712700646},{"$f":"IF('[1]MONE(M)CARD'!EK192=\"\",\"\",'[1]MONE(M)CARD'!EK192)","v":24201.798602728661},{"$f":"IF('[1]MONE(M)CARD'!EP192=\"\",\"\",'[1]MONE(M)CARD'!EP192)","v":12544.186640780601},{"$f":"IF('[1]MONE(M)CARD'!ES192=\"\",\"\",'[1]MONE(M)CARD'!ES192)","v":23.890337153893725},{"$f":"IF('[1]MONE(M)CARD'!EV192=\"\",\"\",'[1]MONE(M)CARD'!EV192)","v":29.371455231031529},{"$f":"IF('[1]MONE(M)CARD'!EZ192=\"\",\"\",'[1]MONE(M)CARD'!EZ192)","v":27.235153437321436},{"$f":"IF('[1]MONE(M)CAPARD'!FC192=\"\",\"\",'[1]MONE(M)CAPARD'!FC192)","v":12626.806482670647},{"$f":"IF('[1]MONE(M)CAPARD'!FG192=\"\",\"\",'[1]MONE(M)CAPARD'!FG192)","v":33865.528959408657},{"$f":"IF('[1]MONE(M)CAPARD'!FL192=\"\",\"\",'[1]MONE(M)CAPARD'!FL192)","v":12544.186640780601},{"$f":"IF('[1]MONE(M)CAPARD'!FO192=\"\",\"\",'[1]MONE(M)CAPARD'!FO192)","v":21.107978068921128},{"$f":"IF('[1]MONE(M)CAPARD'!FR192=\"\",\"\",'[1]MONE(M)CAPARD'!FR192)","v":22.785753511496388},{"$f":"IF('[1]MONE(M)CAPARD'!FV192=\"\",\"\",'[1]MONE(M)CAPARD'!FV192)","v":22.528312485418468},{"$f":"IF('[1]MONE(M)CARD'!FV192=\"\",\"\",'[1]MONE(M)CARD'!FV192)","v":403.00853723816908},{"$f":"IF('[1]MONE(M)CARD'!GD192=\"\",\"\",'[1]MONE(M)CARD'!GD192)","v":37.740822181617546},{"$f":"IF('[1]MONE(M)CARD'!GE192=\"\",\"\",'[1]MONE(M)CARD'!GE192)","v":3585.9173785186936},34.443028103517229,{"$f":"IF('[9]II.2.Balance OSD-Activos'!J50=\"\",\"\",'[9]II.2.Balance OSD-Activos'!J50)","v":188.79835881599809},{"$f":"IF('[9]II.2.Balance OSD-Activos'!N50=\"\",\"\",'[9]II.2.Balance OSD-Activos'!N50)","v":120.48584253042554},{"$f":"IF('[9]II.2.Balance OSD-Activos'!R50=\"\",\"\",'[9]II.2.Balance OSD-Activos'!R50)","v":11654.284118859763},{"$f":"IF('[9]II.2.Balance OSD-Activos'!S50=\"\",\"\",'[9]II.2.Balance OSD-Activos'!S50)","v":17409.848011540722},11843.082477675762,29373.416331746907,24.633750377001441,-2.1788675095447019,1571.9392626878928,-2.5186006575902087,34.327649655383482,17.143104756931614,-0.57140046072903417,{"$f":"IF('[1]MONE(M)CAPARD'!GS192=\"\",\"\",'[1]MONE(M)CAPARD'!GS192)","v":5951.0828189928843},{"$f":"IF('[1]MONE(M)CARD'!HA192=\"\",\"\",'[1]MONE(M)CAPARD'!HA192)","v":3774.9363778386937},{"$f":"IF('[1]MONE(M)CAPARD'!HB192=\"\",\"\",'[1]MONE(M)CAPARD'!HB192)","v":2176.1464411541906},"n.d.",{"$f":"IF('[10]II.2.Balance OSD-Activos'!J50=\"\",\"\",'[10]II.2.Balance OSD-Activos'!J50)","v":445.40213759599811},{"$f":"IF('[10]II.2.Balance OSD-Activos'!N50=\"\",\"\",'[10]II.2.Balance OSD-Activos'!N50)","v":481.58013205042556},{"$f":"IF('[10]II.2.Balance OSD-Activos'!R50=\"\",\"\",'[10]II.2.Balance OSD-Activos'!R50)","v":17033.977040649763},{"$f":"IF('[10]II.2.Balance OSD-Activos'!S50=\"\",\"\",'[10]II.2.Balance OSD-Activos'!S50)","v":22662.630613630718},17479.379178245759,40623.589923926906,-29.805839935843959,0.30718673896619197,32.009244816104321,1.4451306926671403,28.390676973216912,14.620034789238012,-0.31827611765282704,{"$f":"IF('[1]MONE(M)CAPARD'!AS192=\"\",\"\",'[1]MONE(M)CAPARD'!AS192)","v":"n.d."},{"$f":"IF('[1]MONE(M)CAPARD'!AT192=\"\",\"\",'[1]MONE(M)CAPARD'!AT192)","v":"n.a."},{"$f":"IF('[1]MONE(M)CAPARD'!AU192=\"\",\"\",'[1]MONE(M)CAPARD'!AU192)","v":2.75},{"$f":"IF('[1]MONE(M)CAPARD'!AV192=\"\",\"\",'[1]MONE(M)CAPARD'!AV192)","v":"n.d."},{"$f":"IF('[1]MONE(M)CAPARD'!AW192=\"\",\"\",'[1]MONE(M)CAPARD'!AW192)","v":"n.a."},{"$f":"IF('[1]MONE(M)CAPARD'!AX192=\"\",\"\",'[1]MONE(M)CAPARD'!AX192)","v":4},{"$f":"IF('[1]MONE(M)CAPARD'!AY192=\"\",\"\",'[1]MONE(M)CAPARD'!AY192)","v":"n.a."},{"$f":"IF('[1]FISCAL(M)'!$K192=\"\",\"\",'[1]FISCAL(M)'!$K192)","v":-151.16031499924424},{"$f":"IF('[1]FISCAL(M)'!$L192=\"\",\"\",'[1]FISCAL(M)'!$L192)","v":123.07818804075561},{"$f":"IF('[1]FISCAL(M)'!$AY192=\"\",\"\",'[1]FISCAL(M)'!$AY192)","v":"n.d."},{"$f":"IF('[1]FISCAL(M)'!$BI192=\"\",\"\",'[1]FISCAL(M)'!$BI192)","v":"n.d."},{"$f":"IF('[1]FISCAL(M)'!$BS192=\"\",\"\",'[1]FISCAL(M)'!$BS192)","v":"n.d."},{"$f":"IF('[1]FISCAL(M)'!$AZ192=\"\",\"\",'[1]FISCAL(M)'!$AZ192)","v":"n.d."},{"$f":"IF('[1]FISCAL(M)'!$BJ192=\"\",\"\",'[1]FISCAL(M)'!$BJ192)","v":"n.d."},{"$f":"IF('[1]FISCAL(M)'!$BT192=\"\",\"\",'[1]FISCAL(M)'!$BT192)","v":"n.d."},{"$f":"IF('[2]MONE(M)'!$AO192=\"\",\"\",'[2]MONE(M)'!$AO192)","v":2815781.7630589642},{"$f":"IF('[3]MONE(M)'!$AO192=\"\",\"\",'[3]MONE(M)'!$AO192)","v":6888.9800619271418},{"$f":"IF('[4]MONE(M)'!$AO192=\"\",\"\",'[4]MONE(M)'!$AO192)","v":53820.536737998729},{"$f":"+'[5]MONE(M)'!$AO192","v":63034.66028350142},{"$f":"IF('[6]MONE(M)'!$AO192=\"\",\"\",'[6]MONE(M)'!$AO192)","v":19187.166980985618},{"$f":"IF('[7]MONE(M)'!$AO192=\"\",\"\",'[7]MONE(M)'!$AO192)","v":170518.6867165},{"$f":"IF('[8]MONE(M)'!$AO192=\"\",\"\",'[8]MONE(M)'!$AO192)","v":11019.436326880001},22.783409647055542,5.4317047009641017,13.622856091927282,12.348488859163087,27.535027667358758,-15.136130979276663,7.9031649607377075,{"$f":"IF('[1]FISCAL(M)'!$K192=\"\",\"\",'[1]FISCAL(M)'!$K192)","v":-151.16031499924424},{"$f":"+'[1]REAL(A)'!$AO$25","v":114915.867502026},-0.13153998510830475,{"$f":"IF('[1]FISCAL(M)'!$L192=\"\",\"\",'[1]FISCAL(M)'!$L192)","v":123.07818804075561},{"$f":"+'[1]REAL(A)'!$AP$25","v":"n.d."},"n.d.","n.d.",{"$f":"'[1]Gráfico REM'!BG186","v":12031.993056217281},{"$f":"'[1]Gráfico REM'!BH186","v":30700.525172527166},{"$f":"'[1]Gráfico REM'!BI186","v":2602.9986447142915},"n.d.",50.975687638245844,16.099931276257507,28.859795800053668,"n.d.",{"$f":"'[1]Gráfico REM'!BK186","v":12558.774906267281},{"$f":"'[1]Gráfico REM'!BL186","v":41719.961499407167},{"$f":"'[1]Gráfico REM'!BM186","v":9798.6329166042906},"n.d.",47.582137147454247,13.816287978568198,19.66921753704267]
[2005,"abril","2005-abril",{"$f":"IF('[1]REAL IPC(M)'!$AL193=\"\",\"\",+'[1]REAL IPC(M)'!$AL193)","v":7.8746754900400395},{"$f":"IF('[1]REAL IPC(M)'!$BE193=\"\",\"\",+'[1]REAL IPC(M)'!$BE193)","v":11.107250091050247},{"$f":"IF('[1]REAL IPC(M)'!$AM193=\"\",\"\",+'[1]REAL IPC(M)'!$AM193)","v":7.4062972005981997},{"$f":"IF('[1]REAL IPC(M)'!$BI193=\"\",\"\",+'[1]REAL IPC(M)'!$BI193)","v":10.295620184062916},{"$f":"IF('[1]REAL IMAE(M)'!BJ193=\"\",\"\",'[1]REAL IMAE(M)'!BJ193)","v":"n.d."},{"$f":"IF('[1]REAL IMAE(M)'!BK193=\"\",\"\",'[1]REAL IMAE(M)'!BK193)","v":"n.d."},{"$f":"IF('[1]REAL IMAE(M)'!BN193=\"\",\"\",'[1]REAL IMAE(M)'!BN193)","v":"n.d."},{"$f":"IF('[1]REAL IMAE(M)'!BO193=\"\",\"\",'[1]REAL IMAE(M)'!BO193)","v":"n.d."},{"$f":"IF('[1]EXT RIN(M)'!$K193=\"\",\"\",'[1]EXT RIN(M)'!$K193)","v":10981.289959340393},"",{"$f":"IF('[1]EXT RIN(M)'!$L193=\"\",\"\",'[1]EXT RIN(M)'!$L193)","v":12039.017325130273},"",{"$f":"IF('[1]MONE(M)CARD'!EG193=\"\",\"\",'[1]MONE(M)CARD'!EG193)","v":11040.845199564856},{"$f":"IF('[1]MONE(M)CARD'!EK193=\"\",\"\",'[1]MONE(M)CARD'!EK193)","v":24032.149990483813},{"$f":"IF('[1]MONE(M)CARD'!EP193=\"\",\"\",'[1]MONE(M)CARD'!EP193)","v":12703.986766064736},{"$f":"IF('[1]MONE(M)CARD'!ES193=\"\",\"\",'[1]MONE(M)CARD'!ES193)","v":24.04124497445148},{"$f":"IF('[1]MONE(M)CARD'!EV193=\"\",\"\",'[1]MONE(M)CARD'!EV193)","v":29.697812572158732},{"$f":"IF('[1]MONE(M)CARD'!EZ193=\"\",\"\",'[1]MONE(M)CARD'!EZ193)","v":26.621363229826844},{"$f":"IF('[1]MONE(M)CAPARD'!FC193=\"\",\"\",'[1]MONE(M)CAPARD'!FC193)","v":12571.980913654857},{"$f":"IF('[1]MONE(M)CAPARD'!FG193=\"\",\"\",'[1]MONE(M)CAPARD'!FG193)","v":33661.521907073809},{"$f":"IF('[1]MONE(M)CAPARD'!FL193=\"\",\"\",'[1]MONE(M)CAPARD'!FL193)","v":12703.986766064736},{"$f":"IF('[1]MONE(M)CAPARD'!FO193=\"\",\"\",'[1]MONE(M)CAPARD'!FO193)","v":21.367280802967038},{"$f":"IF('[1]MONE(M)CAPARD'!FR193=\"\",\"\",'[1]MONE(M)CAPARD'!FR193)","v":22.588764197297493},{"$f":"IF('[1]MONE(M)CAPARD'!FV193=\"\",\"\",'[1]MONE(M)CAPARD'!FV193)","v":21.760640652998564},{"$f":"IF('[1]MONE(M)CARD'!FV193=\"\",\"\",'[1]MONE(M)CARD'!FV193)","v":408.47308535907177},{"$f":"IF('[1]MONE(M)CARD'!GD193=\"\",\"\",'[1]MONE(M)CARD'!GD193)","v":84.445636348024749},{"$f":"IF('[1]MONE(M)CARD'!GE193=\"\",\"\",'[1]MONE(M)CARD'!GE193)","v":3796.7248092145019},49.566226141492642,{"$f":"IF('[9]II.2.Balance OSD-Activos'!J51=\"\",\"\",'[9]II.2.Balance OSD-Activos'!J51)","v":195.92795361025537},{"$f":"IF('[9]II.2.Balance OSD-Activos'!N51=\"\",\"\",'[9]II.2.Balance OSD-Activos'!N51)","v":121.91590333666667},{"$f":"IF('[9]II.2.Balance OSD-Activos'!R51=\"\",\"\",'[9]II.2.Balance OSD-Activos'!R51)","v":11603.148592947386},{"$f":"IF('[9]II.2.Balance OSD-Activos'!S51=\"\",\"\",'[9]II.2.Balance OSD-Activos'!S51)","v":17533.801035698416},11799.076546557641,29454.793485592723,35.859471617410541,-1.4414547223492113,1271.2278228180605,-1.8962707505453924,34.047399843757063,17.533179972358546,0.39007521542693269,{"$f":"IF('[1]MONE(M)CAPARD'!GS193=\"\",\"\",'[1]MONE(M)CAPARD'!GS193)","v":6038.941680903029},{"$f":"IF('[1]MONE(M)CARD'!HA193=\"\",\"\",'[1]MONE(M)CAPARD'!HA193)","v":4025.9940187545021},{"$f":"IF('[1]MONE(M)CAPARD'!HB193=\"\",\"\",'[1]MONE(M)CAPARD'!HB193)","v":2012.9476621485269},"n.d.",{"$f":"IF('[10]II.2.Balance OSD-Activos'!J51=\"\",\"\",'[10]II.2.Balance OSD-Activos'!J51)","v":425.47826975025532},{"$f":"IF('[10]II.2.Balance OSD-Activos'!N51=\"\",\"\",'[10]II.2.Balance OSD-Activos'!N51)","v":441.81347679666669},{"$f":"IF('[10]II.2.Balance OSD-Activos'!R51=\"\",\"\",'[10]II.2.Balance OSD-Activos'!R51)","v":17031.539648397385},{"$f":"IF('[10]II.2.Balance OSD-Activos'!S51=\"\",\"\",'[10]II.2.Balance OSD-Activos'!S51)","v":22878.518911018415},17457.017918147641,40777.350305962726,-34.615805595079784,0.8525450691649894,11.921361587820623,2.2380376224847121,28.391937989338125,14.789850741546818,0.16981595230880586,{"$f":"IF('[1]MONE(M)CAPARD'!AS193=\"\",\"\",'[1]MONE(M)CAPARD'!AS193)","v":"n.d."},{"$f":"IF('[1]MONE(M)CAPARD'!AT193=\"\",\"\",'[1]MONE(M)CAPARD'!AT193)","v":"n.a."},{"$f":"IF('[1]MONE(M)CAPARD'!AU193=\"\",\"\",'[1]MONE(M)CAPARD'!AU193)","v":2.75},{"$f":"IF('[1]MONE(M)CAPARD'!AV193=\"\",\"\",'[1]MONE(M)CAPARD'!AV193)","v":"n.d."},{"$f":"IF('[1]MONE(M)CAPARD'!AW193=\"\",\"\",'[1]MONE(M)CAPARD'!AW193)","v":"n.a."},{"$f":"IF('[1]MONE(M)CAPARD'!AX193=\"\",\"\",'[1]MONE(M)CAPARD'!AX193)","v":4},{"$f":"IF('[1]MONE(M)CAPARD'!AY193=\"\",\"\",'[1]MONE(M)CAPARD'!AY193)","v":"n.a."},{"$f":"IF('[1]FISCAL(M)'!$K193=\"\",\"\",'[1]FISCAL(M)'!$K193)","v":135.08734107711126},{"$f":"IF('[1]FISCAL(M)'!$L193=\"\",\"\",'[1]FISCAL(M)'!$L193)","v":369.58086235711113},{"$f":"IF('[1]FISCAL(M)'!$AY193=\"\",\"\",'[1]FISCAL(M)'!$AY193)","v":"n.d."},{"$f":"IF('[1]FISCAL(M)'!$BI193=\"\",\"\",'[1]FISCAL(M)'!$BI193)","v":"n.d."},{"$f":"IF('[1]FISCAL(M)'!$BS193=\"\",\"\",'[1]FISCAL(M)'!$BS193)","v":"n.d."},{"$f":"IF('[1]FISCAL(M)'!$AZ193=\"\",\"\",'[1]FISCAL(M)'!$AZ193)","v":"n.d."},{"$f":"IF('[1]FISCAL(M)'!$BJ193=\"\",\"\",'[1]FISCAL(M)'!$BJ193)","v":"n.d."},{"$f":"IF('[1]FISCAL(M)'!$BT193=\"\",\"\",'[1]FISCAL(M)'!$BT193)","v":"n.d."},{"$f":"IF('[2]MONE(M)'!$AO193=\"\",\"\",'[2]MONE(M)'!$AO193)","v":2861588.1522950102},{"$f":"IF('[3]MONE(M)'!$AO193=\"\",\"\",'[3]MONE(M)'!$AO193)","v":6932.7833944171434},{"$f":"IF('[4]MONE(M)'!$AO193=\"\",\"\",'[4]MONE(M)'!$AO193)","v":54756.477171121449},{"$f":"+'[5]MONE(M)'!$AO193","v":63689.797422516262},{"$f":"IF('[6]MONE(M)'!$AO193=\"\",\"\",'[6]MONE(M)'!$AO193)","v":19527.435021301702},{"$f":"IF('[7]MONE(M)'!$AO193=\"\",\"\",'[7]MONE(M)'!$AO193)","v":172777.71648771997},{"$f":"IF('[8]MONE(M)'!$AO193=\"\",\"\",'[8]MONE(M)'!$AO193)","v":11157.5532551},21.068253873080888,5.4437577044671226,15.217559512409062,12.292355363004459,30.127365707001719,-13.761859644453933,8.5718704984370611,{"$f":"IF('[1]FISCAL(M)'!$K193=\"\",\"\",'[1]FISCAL(M)'!$K193)","v":135.08734107711126},{"$f":"+'[1]REAL(A)'!$AO$25","v":114915.867502026},0.11755325353544378,{"$f":"IF('[1]FISCAL(M)'!$L193=\"\",\"\",'[1]FISCAL(M)'!$L193)","v":369.58086235711113},{"$f":"+'[1]REAL(A)'!$AP$25","v":"n.d."},"n.d.","n.d.",{"$f":"'[1]Gráfico REM'!BG187","v":11941.059030775252},{"$f":"'[1]Gráfico REM'!BH187","v":30850.863341408694},{"$f":"'[1]Gráfico REM'!BI187","v":2724.6174168559396},"n.d.",41.018035997099389,16.570940790668899,29.719220691946859,"n.d.",{"$f":"'[1]Gráfico REM'!BK187","v":12490.164145825252},{"$f":"'[1]Gráfico REM'!BL187","v":42008.416596508694},{"$f":"'[1]Gráfico REM'!BM187","v":9917.866974055938},"n.d.",38.728090981541371,14.333617245134,17.680252444433098]
[2005,"mayo ","2005-mayo ",{"$f":"IF('[1]REAL IPC(M)'!$AL194=\"\",\"\",+'[1]REAL IPC(M)'!$AL194)","v":7.1399788836347788},{"$f":"IF('[1]REAL IPC(M)'!$BE194=\"\",\"\",+'[1]REAL IPC(M)'!$BE194)","v":10.916772570450316},{"$f":"IF('[1]REAL IPC(M)'!$AM194=\"\",\"\",+'[1]REAL IPC(M)'!$AM194)","v":6.6845108482186388},{"$f":"IF('[1]REAL IPC(M)'!$BI194=\"\",\"\",+'[1]REAL IPC(M)'!$BI194)","v":10.11888420614364},{"$f":"IF('[1]REAL IMAE(M)'!BJ194=\"\",\"\",'[1]REAL IMAE(M)'!BJ194)","v":"n.d."},{"$f":"IF('[1]REAL IMAE(M)'!BK194=\"\",\"\",'[1]REAL IMAE(M)'!BK194)","v":"n.d."},{"$f":"IF('[1]REAL IMAE(M)'!BN194=\"\",\"\",'[1]REAL IMAE(M)'!BN194)","v":"n.d."},{"$f":"IF('[1]REAL IMAE(M)'!BO194=\"\",\"\",'[1]REAL IMAE(M)'!BO194)","v":"n.d."},{"$f":"IF('[1]EXT RIN(M)'!$K194=\"\",\"\",'[1]EXT RIN(M)'!$K194)","v":11194.848773852013},"",{"$f":"IF('[1]EXT RIN(M)'!$L194=\"\",\"\",'[1]EXT RIN(M)'!$L194)","v":12230.488059440313},"",{"$f":"IF('[1]MONE(M)CARD'!EG194=\"\",\"\",'[1]MONE(M)CARD'!EG194)","v":10921.525729745359},{"$f":"IF('[1]MONE(M)CARD'!EK194=\"\",\"\",'[1]MONE(M)CARD'!EK194)","v":24213.146631393531},{"$f":"IF('[1]MONE(M)CARD'!EP194=\"\",\"\",'[1]MONE(M)CARD'!EP194)","v":12780.307854608982},{"$f":"IF('[1]MONE(M)CARD'!ES194=\"\",\"\",'[1]MONE(M)CARD'!ES194)","v":20.991337730309635},{"$f":"IF('[1]MONE(M)CARD'!EV194=\"\",\"\",'[1]MONE(M)CARD'!EV194)","v":28.941634329185529},{"$f":"IF('[1]MONE(M)CARD'!EZ194=\"\",\"\",'[1]MONE(M)CARD'!EZ194)","v":24.551211710987975},{"$f":"IF('[1]MONE(M)CAPARD'!FC194=\"\",\"\",'[1]MONE(M)CAPARD'!FC194)","v":12452.161730465361},{"$f":"IF('[1]MONE(M)CAPARD'!FG194=\"\",\"\",'[1]MONE(M)CAPARD'!FG194)","v":33918.246346723521},{"$f":"IF('[1]MONE(M)CAPARD'!FL194=\"\",\"\",'[1]MONE(M)CAPARD'!FL194)","v":12780.307854608982},{"$f":"IF('[1]MONE(M)CAPARD'!FO194=\"\",\"\",'[1]MONE(M)CAPARD'!FO194)","v":19.326089192191851},{"$f":"IF('[1]MONE(M)CAPARD'!FR194=\"\",\"\",'[1]MONE(M)CAPARD'!FR194)","v":22.101149928845153},{"$f":"IF('[1]MONE(M)CAPARD'!FV194=\"\",\"\",'[1]MONE(M)CAPARD'!FV194)","v":20.228356931506152},{"$f":"IF('[1]MONE(M)CARD'!FV194=\"\",\"\",'[1]MONE(M)CARD'!FV194)","v":424.03073020189959},{"$f":"IF('[1]MONE(M)CARD'!GD194=\"\",\"\",'[1]MONE(M)CARD'!GD194)","v":38.089615651209876},{"$f":"IF('[1]MONE(M)CARD'!GE194=\"\",\"\",'[1]MONE(M)CARD'!GE194)","v":3674.3165994310802},21.053456180712615,{"$f":"IF('[9]II.2.Balance OSD-Activos'!J52=\"\",\"\",'[9]II.2.Balance OSD-Activos'!J52)","v":203.82559883559352},{"$f":"IF('[9]II.2.Balance OSD-Activos'!N52=\"\",\"\",'[9]II.2.Balance OSD-Activos'!N52)","v":122.782452846157},{"$f":"IF('[9]II.2.Balance OSD-Activos'!R52=\"\",\"\",'[9]II.2.Balance OSD-Activos'!R52)","v":11741.680331402345},{"$f":"IF('[9]II.2.Balance OSD-Activos'!S52=\"\",\"\",'[9]II.2.Balance OSD-Activos'!S52)","v":17648.462897507816},11945.50593023794,29716.75128059191,40.255728483463059,6.3430832937627635E-2,1092.3745805700073,-0.4318722611921566,34.094887459882941,18.34908126096455,0.81590128860600331,{"$f":"IF('[1]MONE(M)CAPARD'!GS194=\"\",\"\",'[1]MONE(M)CAPARD'!GS194)","v":6013.7878742109669},{"$f":"IF('[1]MONE(M)CARD'!HA194=\"\",\"\",'[1]MONE(M)CAPARD'!HA194)","v":3902.4085618310801},{"$f":"IF('[1]MONE(M)CAPARD'!HB194=\"\",\"\",'[1]MONE(M)CAPARD'!HB194)","v":2111.3793123798869},"n.d.",{"$f":"IF('[10]II.2.Balance OSD-Activos'!J52=\"\",\"\",'[10]II.2.Balance OSD-Activos'!J52)","v":435.58422326559349},{"$f":"IF('[10]II.2.Balance OSD-Activos'!N52=\"\",\"\",'[10]II.2.Balance OSD-Activos'!N52)","v":474.53657927615694},{"$f":"IF('[10]II.2.Balance OSD-Activos'!R52=\"\",\"\",'[10]II.2.Balance OSD-Activos'!R52)","v":17283.971539312344},{"$f":"IF('[10]II.2.Balance OSD-Activos'!S52=\"\",\"\",'[10]II.2.Balance OSD-Activos'!S52)","v":23050.813760327816},17719.555762577937,41244.906102181907,-33.271940553591683,2.38808909278454,5.2658245504675794,3.7858730336244983,28.710453194101703,15.641726484123698,0.8518757425768797,{"$f":"IF('[1]MONE(M)CAPARD'!AS194=\"\",\"\",'[1]MONE(M)CAPARD'!AS194)","v":"n.d."},{"$f":"IF('[1]MONE(M)CAPARD'!AT194=\"\",\"\",'[1]MONE(M)CAPARD'!AT194)","v":"n.a."},{"$f":"IF('[1]MONE(M)CAPARD'!AU194=\"\",\"\",'[1]MONE(M)CAPARD'!AU194)","v":3},{"$f":"IF('[1]MONE(M)CAPARD'!AV194=\"\",\"\",'[1]MONE(M)CAPARD'!AV194)","v":7},{"$f":"IF('[1]MONE(M)CAPARD'!AW194=\"\",\"\",'[1]MONE(M)CAPARD'!AW194)","v":"n.a."},{"$f":"IF('[1]MONE(M)CAPARD'!AX194=\"\",\"\",'[1]MONE(M)CAPARD'!AX194)","v":8},{"$f":"IF('[1]MONE(M)CAPARD'!AY194=\"\",\"\",'[1]MONE(M)CAPARD'!AY194)","v":"n.a."},{"$f":"IF('[1]FISCAL(M)'!$K194=\"\",\"\",'[1]FISCAL(M)'!$K194)","v":249.37207836425978},{"$f":"IF('[1]FISCAL(M)'!$L194=\"\",\"\",'[1]FISCAL(M)'!$L194)","v":425.8228320642595},{"$f":"IF('[1]FISCAL(M)'!$AY194=\"\",\"\",'[1]FISCAL(M)'!$AY194)","v":"n.d."},{"$f":"IF('[1]FISCAL(M)'!$BI194=\"\",\"\",'[1]FISCAL(M)'!$BI194)","v":"n.d."},{"$f":"IF('[1]FISCAL(M)'!$BS194=\"\",\"\",'[1]FISCAL(M)'!$BS194)","v":"n.d."},{"$f":"IF('[1]FISCAL(M)'!$AZ194=\"\",\"\",'[1]FISCAL(M)'!$AZ194)","v":"n.d."},{"$f":"IF('[1]FISCAL(M)'!$BJ194=\"\",\"\",'[1]FISCAL(M)'!$BJ194)","v":"n.d."},{"$f":"IF('[1]FISCAL(M)'!$BT194=\"\",\"\",'[1]FISCAL(M)'!$BT194)","v":"n.d."},{"$f":"IF('[2]MONE(M)'!$AO194=\"\",\"\",'[2]MONE(M)'!$AO194)","v":2951390.0473211501},{"$f":"IF('[3]MONE(M)'!$AO194=\"\",\"\",'[3]MONE(M)'!$AO194)","v":6905.3084063471433},{"$f":"IF('[4]MONE(M)'!$AO194=\"\",\"\",'[4]MONE(M)'!$AO194)","v":55014.408145255904},{"$f":"+'[5]MONE(M)'!$AO194","v":64194.405370881395},{"$f":"IF('[6]MONE(M)'!$AO194=\"\",\"\",'[6]MONE(M)'!$AO194)","v":20201.672548388491},{"$f":"IF('[7]MONE(M)'!$AO194=\"\",\"\",'[7]MONE(M)'!$AO194)","v":175147.23265280999},{"$f":"IF('[8]MONE(M)'!$AO194=\"\",\"\",'[8]MONE(M)'!$AO194)","v":11339.529561949999},22.540893833694486,4.1216091171835778,14.849594772944229,11.68171339654014,30.450524530315583,-13.812337049411017,9.6904947255763485,{"$f":"IF('[1]FISCAL(M)'!$K194=\"\",\"\",'[1]FISCAL(M)'!$K194)","v":249.37207836425978},{"$f":"+'[1]REAL(A)'!$AO$25","v":114915.867502026},0.21700404285758301,{"$f":"IF('[1]FISCAL(M)'!$L194=\"\",\"\",'[1]FISCAL(M)'!$L194)","v":425.8228320642595},{"$f":"+'[1]REAL(A)'!$AP$25","v":"n.d."},"n.d.","n.d.",{"$f":"'[1]Gráfico REM'!BG188","v":11857.095662680118},{"$f":"'[1]Gráfico REM'!BH188","v":31059.115266617173},{"$f":"'[1]Gráfico REM'!BI188","v":2796.1529348442491},"n.d.",31.127851800646656,17.104005492998265,25.372702231594978,"n.d.",{"$f":"'[1]Gráfico REM'!BK188","v":12365.396771290118},{"$f":"'[1]Gráfico REM'!BL188","v":42398.644828567172},{"$f":"'[1]Gráfico REM'!BM188","v":9892.7304719142485},"n.d.",29.132841940256291,15.02483732702391,12.228612879619561]
[2005,"junio ","2005-junio ",{"$f":"IF('[1]REAL IPC(M)'!$AL195=\"\",\"\",+'[1]REAL IPC(M)'!$AL195)","v":6.7026622441930694},{"$f":"IF('[1]REAL IPC(M)'!$BE195=\"\",\"\",+'[1]REAL IPC(M)'!$BE195)","v":10.726652930745972},{"$f":"IF('[1]REAL IPC(M)'!$AM195=\"\",\"\",+'[1]REAL IPC(M)'!$AM195)","v":6.2603491005180478},{"$f":"IF('[1]REAL IPC(M)'!$BI195=\"\",\"\",+'[1]REAL IPC(M)'!$BI195)","v":9.9427697198015252},{"$f":"IF('[1]REAL IMAE(M)'!BJ195=\"\",\"\",'[1]REAL IMAE(M)'!BJ195)","v":"n.d."},{"$f":"IF('[1]REAL IMAE(M)'!BK195=\"\",\"\",'[1]REAL IMAE(M)'!BK195)","v":"n.d."},{"$f":"IF('[1]REAL IMAE(M)'!BN195=\"\",\"\",'[1]REAL IMAE(M)'!BN195)","v":"n.d."},{"$f":"IF('[1]REAL IMAE(M)'!BO195=\"\",\"\",'[1]REAL IMAE(M)'!BO195)","v":"n.d."},{"$f":"IF('[1]EXT RIN(M)'!$K195=\"\",\"\",'[1]EXT RIN(M)'!$K195)","v":11593.846412017558},"",{"$f":"IF('[1]EXT RIN(M)'!$L195=\"\",\"\",'[1]EXT RIN(M)'!$L195)","v":12737.294272005527},"",{"$f":"IF('[1]MONE(M)CARD'!EG195=\"\",\"\",'[1]MONE(M)CARD'!EG195)","v":10999.945266846389},{"$f":"IF('[1]MONE(M)CARD'!EK195=\"\",\"\",'[1]MONE(M)CARD'!EK195)","v":24495.583329941732},{"$f":"IF('[1]MONE(M)CARD'!EP195=\"\",\"\",'[1]MONE(M)CARD'!EP195)","v":12844.914678444999},{"$f":"IF('[1]MONE(M)CARD'!ES195=\"\",\"\",'[1]MONE(M)CARD'!ES195)","v":22.495590580853442},{"$f":"IF('[1]MONE(M)CARD'!EV195=\"\",\"\",'[1]MONE(M)CARD'!EV195)","v":28.039586178681695},{"$f":"IF('[1]MONE(M)CARD'!EZ195=\"\",\"\",'[1]MONE(M)CARD'!EZ195)","v":23.705100842851245},{"$f":"IF('[1]MONE(M)CAPARD'!FC195=\"\",\"\",'[1]MONE(M)CAPARD'!FC195)","v":12515.34737009639},{"$f":"IF('[1]MONE(M)CAPARD'!FG195=\"\",\"\",'[1]MONE(M)CAPARD'!FG195)","v":34240.656048751734},{"$f":"IF('[1]MONE(M)CAPARD'!FL195=\"\",\"\",'[1]MONE(M)CAPARD'!FL195)","v":12844.914678444999},{"$f":"IF('[1]MONE(M)CAPARD'!FO195=\"\",\"\",'[1]MONE(M)CAPARD'!FO195)","v":20.425442947982297},{"$f":"IF('[1]MONE(M)CAPARD'!FR195=\"\",\"\",'[1]MONE(M)CAPARD'!FR195)","v":21.531035362422845},{"$f":"IF('[1]MONE(M)CAPARD'!FV195=\"\",\"\",'[1]MONE(M)CAPARD'!FV195)","v":19.614903543432206},{"$f":"IF('[1]MONE(M)CARD'!FV195=\"\",\"\",'[1]MONE(M)CARD'!FV195)","v":407.44044355833546},{"$f":"IF('[1]MONE(M)CARD'!GD195=\"\",\"\",'[1]MONE(M)CARD'!GD195)","v":72.506042929949842},{"$f":"IF('[1]MONE(M)CARD'!GE195=\"\",\"\",'[1]MONE(M)CARD'!GE195)","v":3742.5355244788188},33.659012954525579,{"$f":"IF('[9]II.2.Balance OSD-Activos'!J53=\"\",\"\",'[9]II.2.Balance OSD-Activos'!J53)","v":206.8839367861448},{"$f":"IF('[9]II.2.Balance OSD-Activos'!N53=\"\",\"\",'[9]II.2.Balance OSD-Activos'!N53)","v":125.11150780724351},{"$f":"IF('[9]II.2.Balance OSD-Activos'!R53=\"\",\"\",'[9]II.2.Balance OSD-Activos'!R53)","v":11461.042332206744},{"$f":"IF('[9]II.2.Balance OSD-Activos'!S53=\"\",\"\",'[9]II.2.Balance OSD-Activos'!S53)","v":18227.695568469164},11667.926268992889,30020.733345269298,36.070077473270381,-0.43344516258693178,1037.8240938415154,-0.91327832453971247,35.155784602497505,19.053595570100246,0.70451430913569624,{"$f":"IF('[1]MONE(M)CAPARD'!GS195=\"\",\"\",'[1]MONE(M)CAPARD'!GS195)","v":6017.3683257797948},{"$f":"IF('[1]MONE(M)CARD'!HA195=\"\",\"\",'[1]MONE(M)CAPARD'!HA195)","v":3971.2338424788186},{"$f":"IF('[1]MONE(M)CAPARD'!HB195=\"\",\"\",'[1]MONE(M)CAPARD'!HB195)","v":2046.1344833009762},"n.d.",{"$f":"IF('[10]II.2.Balance OSD-Activos'!J53=\"\",\"\",'[10]II.2.Balance OSD-Activos'!J53)","v":414.28226977614474},{"$f":"IF('[10]II.2.Balance OSD-Activos'!N53=\"\",\"\",'[10]II.2.Balance OSD-Activos'!N53)","v":495.96661045724352},{"$f":"IF('[10]II.2.Balance OSD-Activos'!R53=\"\",\"\",'[10]II.2.Balance OSD-Activos'!R53)","v":17171.05892963674},{"$f":"IF('[10]II.2.Balance OSD-Activos'!S53=\"\",\"\",'[10]II.2.Balance OSD-Activos'!S53)","v":23701.20584522916},17585.341199412884,41782.51365509929,-35.229131926228298,3.0682846097655592,9.8091012791969199,4.5598907060462102,29.667307289003865,16.737107486186844,1.0953810020631458,{"$f":"IF('[1]MONE(M)CAPARD'!AS195=\"\",\"\",'[1]MONE(M)CAPARD'!AS195)","v":"n.d."},{"$f":"IF('[1]MONE(M)CAPARD'!AT195=\"\",\"\",'[1]MONE(M)CAPARD'!AT195)","v":"n.a."},{"$f":"IF('[1]MONE(M)CAPARD'!AU195=\"\",\"\",'[1]MONE(M)CAPARD'!AU195)","v":3},{"$f":"IF('[1]MONE(M)CAPARD'!AV195=\"\",\"\",'[1]MONE(M)CAPARD'!AV195)","v":7},{"$f":"IF('[1]MONE(M)CAPARD'!AW195=\"\",\"\",'[1]MONE(M)CAPARD'!AW195)","v":"n.a."},{"$f":"IF('[1]MONE(M)CAPARD'!AX195=\"\",\"\",'[1]MONE(M)CAPARD'!AX195)","v":8},{"$f":"IF('[1]MONE(M)CAPARD'!AY195=\"\",\"\",'[1]MONE(M)CAPARD'!AY195)","v":"n.a."},{"$f":"IF('[1]FISCAL(M)'!$K195=\"\",\"\",'[1]FISCAL(M)'!$K195)","v":209.665785700941},{"$f":"IF('[1]FISCAL(M)'!$L195=\"\",\"\",'[1]FISCAL(M)'!$L195)","v":556.15304782094074},{"$f":"IF('[1]FISCAL(M)'!$AY195=\"\",\"\",'[1]FISCAL(M)'!$AY195)","v":"n.d."},{"$f":"IF('[1]FISCAL(M)'!$BI195=\"\",\"\",'[1]FISCAL(M)'!$BI195)","v":"n.d."},{"$f":"IF('[1]FISCAL(M)'!$BS195=\"\",\"\",'[1]FISCAL(M)'!$BS195)","v":"n.d."},{"$f":"IF('[1]FISCAL(M)'!$AZ195=\"\",\"\",'[1]FISCAL(M)'!$AZ195)","v":"n.d."},{"$f":"IF('[1]FISCAL(M)'!$BJ195=\"\",\"\",'[1]FISCAL(M)'!$BJ195)","v":"n.d."},{"$f":"IF('[1]FISCAL(M)'!$BT195=\"\",\"\",'[1]FISCAL(M)'!$BT195)","v":"n.d."},{"$f":"IF('[2]MONE(M)'!$AO195=\"\",\"\",'[2]MONE(M)'!$AO195)","v":3004723.7712094462},{"$f":"IF('[3]MONE(M)'!$AO195=\"\",\"\",'[3]MONE(M)'!$AO195)","v":6886.9153133071432},{"$f":"IF('[4]MONE(M)'!$AO195=\"\",\"\",'[4]MONE(M)'!$AO195)","v":56262.965609976687},{"$f":"+'[5]MONE(M)'!$AO195","v":64743.630184938564},{"$f":"IF('[6]MONE(M)'!$AO195=\"\",\"\",'[6]MONE(M)'!$AO195)","v":20642.853274944518},{"$f":"IF('[7]MONE(M)'!$AO195=\"\",\"\",'[7]MONE(M)'!$AO195)","v":177450.96606100001},{"$f":"IF('[8]MONE(M)'!$AO195=\"\",\"\",'[8]MONE(M)'!$AO195)","v":11715.472811669999},22.045224509081262,4.3798007485723156,15.974310888491905,11.608023921098386,34.440715701866196,-10.449745033544156,13.069736889053974,{"$f":"IF('[1]FISCAL(M)'!$K195=\"\",\"\",'[1]FISCAL(M)'!$K195)","v":209.665785700941},{"$f":"+'[1]REAL(A)'!$AO$25","v":114915.867502026},0.18245155369622437,{"$f":"IF('[1]FISCAL(M)'!$L195=\"\",\"\",'[1]FISCAL(M)'!$L195)","v":556.15304782094074},{"$f":"+'[1]REAL(A)'!$AP$25","v":"n.d."},"n.d.","n.d.",{"$f":"'[1]Gráfico REM'!BG189","v":11840.55816895695},{"$f":"'[1]Gráfico REM'!BH189","v":31392.317150355142},{"$f":"'[1]Gráfico REM'!BI189","v":2953.9971879579189},"n.d.",25.009732980505039,17.31957465490046,26.578163023610244,"n.d.",{"$f":"'[1]Gráfico REM'!BK189","v":12362.44872603695},{"$f":"'[1]Gráfico REM'!BL189","v":43107.789962025141},{"$f":"'[1]Gráfico REM'!BM189","v":10543.068177627918},"n.d.",23.70047711535388,16.133295815501402,16.625742260743024]
[2005,"julio","2005-julio",{"$f":"IF('[1]REAL IPC(M)'!$AL196=\"\",\"\",+'[1]REAL IPC(M)'!$AL196)","v":6.8081639812824113},{"$f":"IF('[1]REAL IPC(M)'!$BE196=\"\",\"\",+'[1]REAL IPC(M)'!$BE196)","v":10.53852553813166},{"$f":"IF('[1]REAL IPC(M)'!$AM196=\"\",\"\",+'[1]REAL IPC(M)'!$AM196)","v":6.3853225338324604},{"$f":"IF('[1]REAL IPC(M)'!$BI196=\"\",\"\",+'[1]REAL IPC(M)'!$BI196)","v":9.7689048561000682},{"$f":"IF('[1]REAL IMAE(M)'!BJ196=\"\",\"\",'[1]REAL IMAE(M)'!BJ196)","v":"n.d."},{"$f":"IF('[1]REAL IMAE(M)'!BK196=\"\",\"\",'[1]REAL IMAE(M)'!BK196)","v":"n.d."},{"$f":"IF('[1]REAL IMAE(M)'!BN196=\"\",\"\",'[1]REAL IMAE(M)'!BN196)","v":"n.d."},{"$f":"IF('[1]REAL IMAE(M)'!BO196=\"\",\"\",'[1]REAL IMAE(M)'!BO196)","v":"n.d."},{"$f":"IF('[1]EXT RIN(M)'!$K196=\"\",\"\",'[1]EXT RIN(M)'!$K196)","v":11690.086854471894},"",{"$f":"IF('[1]EXT RIN(M)'!$L196=\"\",\"\",'[1]EXT RIN(M)'!$L196)","v":12731.930660119113},"",{"$f":"IF('[1]MONE(M)CARD'!EG196=\"\",\"\",'[1]MONE(M)CARD'!EG196)","v":11289.912940125227},{"$f":"IF('[1]MONE(M)CARD'!EK196=\"\",\"\",'[1]MONE(M)CARD'!EK196)","v":24832.410972033205},{"$f":"IF('[1]MONE(M)CARD'!EP196=\"\",\"\",'[1]MONE(M)CARD'!EP196)","v":12775.557908997216},{"$f":"IF('[1]MONE(M)CARD'!ES196=\"\",\"\",'[1]MONE(M)CARD'!ES196)","v":22.171402750540501},{"$f":"IF('[1]MONE(M)CARD'!EV196=\"\",\"\",'[1]MONE(M)CARD'!EV196)","v":26.75684837527772},{"$f":"IF('[1]MONE(M)CARD'!EZ196=\"\",\"\",'[1]MONE(M)CARD'!EZ196)","v":22.267916338926597},{"$f":"IF('[1]MONE(M)CAPARD'!FC196=\"\",\"\",'[1]MONE(M)CAPARD'!FC196)","v":12876.838799675226},{"$f":"IF('[1]MONE(M)CAPARD'!FG196=\"\",\"\",'[1]MONE(M)CAPARD'!FG196)","v":34417.149174093196},{"$f":"IF('[1]MONE(M)CAPARD'!FL196=\"\",\"\",'[1]MONE(M)CAPARD'!FL196)","v":12775.557908997216},{"$f":"IF('[1]MONE(M)CAPARD'!FO196=\"\",\"\",'[1]MONE(M)CAPARD'!FO196)","v":20.474825843071407},{"$f":"IF('[1]MONE(M)CAPARD'!FR196=\"\",\"\",'[1]MONE(M)CAPARD'!FR196)","v":20.251023740153173},{"$f":"IF('[1]MONE(M)CAPARD'!FV196=\"\",\"\",'[1]MONE(M)CAPARD'!FV196)","v":18.190238733499097},{"$f":"IF('[1]MONE(M)CARD'!FV196=\"\",\"\",'[1]MONE(M)CARD'!FV196)","v":430.55891789676599},{"$f":"IF('[1]MONE(M)CARD'!GD196=\"\",\"\",'[1]MONE(M)CARD'!GD196)","v":35.620706081878922},{"$f":"IF('[1]MONE(M)CARD'!GE196=\"\",\"\",'[1]MONE(M)CARD'!GE196)","v":3724.0248259170226},33.284244684259747,{"$f":"IF('[9]II.2.Balance OSD-Activos'!J54=\"\",\"\",'[9]II.2.Balance OSD-Activos'!J54)","v":201.52557502125902},{"$f":"IF('[9]II.2.Balance OSD-Activos'!N54=\"\",\"\",'[9]II.2.Balance OSD-Activos'!N54)","v":128.83314672881627},{"$f":"IF('[9]II.2.Balance OSD-Activos'!R54=\"\",\"\",'[9]II.2.Balance OSD-Activos'!R54)","v":11539.74349729274},{"$f":"IF('[9]II.2.Balance OSD-Activos'!S54=\"\",\"\",'[9]II.2.Balance OSD-Activos'!S54)","v":18538.470097290712},11741.269072313999,30408.572316333528,12.493685416885359,0.32925498671418918,935.03957478774817,0.14014873802534744,35.049431156895338,19.519472644592597,0.46587707449235083,{"$f":"IF('[1]MONE(M)CAPARD'!GS196=\"\",\"\",'[1]MONE(M)CAPARD'!GS196)","v":5892.2056629297567},{"$f":"IF('[1]MONE(M)CARD'!HA196=\"\",\"\",'[1]MONE(M)CAPARD'!HA196)","v":4004.8358521970231},{"$f":"IF('[1]MONE(M)CAPARD'!HB196=\"\",\"\",'[1]MONE(M)CAPARD'!HB196)","v":1887.3698107327336},"n.d.",{"$f":"IF('[10]II.2.Balance OSD-Activos'!J54=\"\",\"\",'[10]II.2.Balance OSD-Activos'!J54)","v":409.23265304125903},{"$f":"IF('[10]II.2.Balance OSD-Activos'!N54=\"\",\"\",'[10]II.2.Balance OSD-Activos'!N54)","v":475.43193339881623},{"$f":"IF('[10]II.2.Balance OSD-Activos'!R54=\"\",\"\",'[10]II.2.Balance OSD-Activos'!R54)","v":17382.075080082737},{"$f":"IF('[10]II.2.Balance OSD-Activos'!S54=\"\",\"\",'[10]II.2.Balance OSD-Activos'!S54)","v":24081.08745627071},17791.307733123995,42347.827122793518,-32.708836473055889,4.1405520343455793,2.7741005724091883,5.500732014429488,29.736035704579411,17.280555331405868,0.54344784521902412,{"$f":"IF('[1]MONE(M)CAPARD'!AS196=\"\",\"\",'[1]MONE(M)CAPARD'!AS196)","v":"n.d."},{"$f":"IF('[1]MONE(M)CAPARD'!AT196=\"\",\"\",'[1]MONE(M)CAPARD'!AT196)","v":"n.a."},{"$f":"IF('[1]MONE(M)CAPARD'!AU196=\"\",\"\",'[1]MONE(M)CAPARD'!AU196)","v":3.25},{"$f":"IF('[1]MONE(M)CAPARD'!AV196=\"\",\"\",'[1]MONE(M)CAPARD'!AV196)","v":7},{"$f":"IF('[1]MONE(M)CAPARD'!AW196=\"\",\"\",'[1]MONE(M)CAPARD'!AW196)","v":"n.a."},{"$f":"IF('[1]MONE(M)CAPARD'!AX196=\"\",\"\",'[1]MONE(M)CAPARD'!AX196)","v":8},{"$f":"IF('[1]MONE(M)CAPARD'!AY196=\"\",\"\",'[1]MONE(M)CAPARD'!AY196)","v":"n.a."},{"$f":"IF('[1]FISCAL(M)'!$K196=\"\",\"\",'[1]FISCAL(M)'!$K196)","v":51.230904150201923},{"$f":"IF('[1]FISCAL(M)'!$L196=\"\",\"\",'[1]FISCAL(M)'!$L196)","v":68.997503430201505},{"$f":"IF('[1]FISCAL(M)'!$AY196=\"\",\"\",'[1]FISCAL(M)'!$AY196)","v":"n.d."},{"$f":"IF('[1]FISCAL(M)'!$BI196=\"\",\"\",'[1]FISCAL(M)'!$BI196)","v":"n.d."},{"$f":"IF('[1]FISCAL(M)'!$BS196=\"\",\"\",'[1]FISCAL(M)'!$BS196)","v":"n.d."},{"$f":"IF('[1]FISCAL(M)'!$AZ196=\"\",\"\",'[1]FISCAL(M)'!$AZ196)","v":"n.d."},{"$f":"IF('[1]FISCAL(M)'!$BJ196=\"\",\"\",'[1]FISCAL(M)'!$BJ196)","v":"n.d."},{"$f":"IF('[1]FISCAL(M)'!$BT196=\"\",\"\",'[1]FISCAL(M)'!$BT196)","v":"n.d."},{"$f":"IF('[2]MONE(M)'!$AO196=\"\",\"\",'[2]MONE(M)'!$AO196)","v":3036219.7722881446},{"$f":"IF('[3]MONE(M)'!$AO196=\"\",\"\",'[3]MONE(M)'!$AO196)","v":6941.0933185371432},{"$f":"IF('[4]MONE(M)'!$AO196=\"\",\"\",'[4]MONE(M)'!$AO196)","v":57169.692320081202},{"$f":"+'[5]MONE(M)'!$AO196","v":65777.814572275092},{"$f":"IF('[6]MONE(M)'!$AO196=\"\",\"\",'[6]MONE(M)'!$AO196)","v":20918.753017400501},{"$f":"IF('[7]MONE(M)'!$AO196=\"\",\"\",'[7]MONE(M)'!$AO196)","v":180549.49750358998},{"$f":"IF('[8]MONE(M)'!$AO196=\"\",\"\",'[8]MONE(M)'!$AO196)","v":11920.71299611},23.254980867710518,6.3269355530398697,15.630153245654533,12.54998170818935,34.151251890324083,-7.8613173304941109,14.511254304143929,{"$f":"IF('[1]FISCAL(M)'!$K196=\"\",\"\",'[1]FISCAL(M)'!$K196)","v":51.230904150201923},{"$f":"+'[1]REAL(A)'!$AO$25","v":114915.867502026},4.4581227348171659E-2,{"$f":"IF('[1]FISCAL(M)'!$L196=\"\",\"\",'[1]FISCAL(M)'!$L196)","v":68.997503430201505},{"$f":"+'[1]REAL(A)'!$AP$25","v":"n.d."},"n.d.","n.d.",{"$f":"'[1]Gráfico REM'!BG190","v":11756.694878159236},{"$f":"'[1]Gráfico REM'!BH190","v":31772.44889849818},{"$f":"'[1]Gráfico REM'!BI190","v":2777.4675189702384},"n.d.",20.91425524427002,17.992567972138129,21.189109175346289,"n.d.",{"$f":"'[1]Gráfico REM'!BK190","v":12212.172162359237},{"$f":"'[1]Gráfico REM'!BL190","v":43693.16189460818},{"$f":"'[1]Gráfico REM'!BM190","v":10447.277302821238},"n.d.",19.093256499882514,17.021943918533331,19.257304445132984]
[2005,"agosto","2005-agosto",{"$f":"IF('[1]REAL IPC(M)'!$AL197=\"\",\"\",+'[1]REAL IPC(M)'!$AL197)","v":7.1518243753698307},{"$f":"IF('[1]REAL IPC(M)'!$BE197=\"\",\"\",+'[1]REAL IPC(M)'!$BE197)","v":10.353740577542702},{"$f":"IF('[1]REAL IPC(M)'!$AM197=\"\",\"\",+'[1]REAL IPC(M)'!$AM197)","v":6.6625224628524604},{"$f":"IF('[1]REAL IPC(M)'!$BI197=\"\",\"\",+'[1]REAL IPC(M)'!$BI197)","v":9.5986289363844115},{"$f":"IF('[1]REAL IMAE(M)'!BJ197=\"\",\"\",'[1]REAL IMAE(M)'!BJ197)","v":"n.d."},{"$f":"IF('[1]REAL IMAE(M)'!BK197=\"\",\"\",'[1]REAL IMAE(M)'!BK197)","v":"n.d."},{"$f":"IF('[1]REAL IMAE(M)'!BN197=\"\",\"\",'[1]REAL IMAE(M)'!BN197)","v":"n.d."},{"$f":"IF('[1]REAL IMAE(M)'!BO197=\"\",\"\",'[1]REAL IMAE(M)'!BO197)","v":"n.d."},{"$f":"IF('[1]EXT RIN(M)'!$K197=\"\",\"\",'[1]EXT RIN(M)'!$K197)","v":11532.488811667734},"",{"$f":"IF('[1]EXT RIN(M)'!$L197=\"\",\"\",'[1]EXT RIN(M)'!$L197)","v":12512.334124083414},"",{"$f":"IF('[1]MONE(M)CARD'!EG197=\"\",\"\",'[1]MONE(M)CARD'!EG197)","v":11123.331761575284},{"$f":"IF('[1]MONE(M)CARD'!EK197=\"\",\"\",'[1]MONE(M)CARD'!EK197)","v":24542.065254842026},{"$f":"IF('[1]MONE(M)CARD'!EP197=\"\",\"\",'[1]MONE(M)CARD'!EP197)","v":12759.575685264514},{"$f":"IF('[1]MONE(M)CARD'!ES197=\"\",\"\",'[1]MONE(M)CARD'!ES197)","v":17.870318416265228},{"$f":"IF('[1]MONE(M)CARD'!EV197=\"\",\"\",'[1]MONE(M)CARD'!EV197)","v":19.260431370772892},{"$f":"IF('[1]MONE(M)CARD'!EZ197=\"\",\"\",'[1]MONE(M)CARD'!EZ197)","v":16.957662763069091},{"$f":"IF('[1]MONE(M)CAPARD'!FC197=\"\",\"\",'[1]MONE(M)CAPARD'!FC197)","v":12736.038327685284},{"$f":"IF('[1]MONE(M)CAPARD'!FG197=\"\",\"\",'[1]MONE(M)CAPARD'!FG197)","v":34254.898359172017},{"$f":"IF('[1]MONE(M)CAPARD'!FL197=\"\",\"\",'[1]MONE(M)CAPARD'!FL197)","v":12759.575685264506},{"$f":"IF('[1]MONE(M)CAPARD'!FO197=\"\",\"\",'[1]MONE(M)CAPARD'!FO197)","v":15.405990252803893},{"$f":"IF('[1]MONE(M)CAPARD'!FR197=\"\",\"\",'[1]MONE(M)CAPARD'!FR197)","v":14.556495574082895},{"$f":"IF('[1]MONE(M)CAPARD'!FV197=\"\",\"\",'[1]MONE(M)CAPARD'!FV197)","v":13.770942652413542},{"$f":"IF('[1]MONE(M)CARD'!FV197=\"\",\"\",'[1]MONE(M)CARD'!FV197)","v":426.43782500914438},{"$f":"IF('[1]MONE(M)CARD'!GD197=\"\",\"\",'[1]MONE(M)CARD'!GD197)","v":39.14890001756396},{"$f":"IF('[1]MONE(M)CARD'!GE197=\"\",\"\",'[1]MONE(M)CARD'!GE197)","v":3895.5458926916313},36.780128392807043,{"$f":"IF('[9]II.2.Balance OSD-Activos'!J55=\"\",\"\",'[9]II.2.Balance OSD-Activos'!J55)","v":187.81009865457594},{"$f":"IF('[9]II.2.Balance OSD-Activos'!N55=\"\",\"\",'[9]II.2.Balance OSD-Activos'!N55)","v":129.01700751847133},{"$f":"IF('[9]II.2.Balance OSD-Activos'!R55=\"\",\"\",'[9]II.2.Balance OSD-Activos'!R55)","v":11620.878892433626},{"$f":"IF('[9]II.2.Balance OSD-Activos'!S55=\"\",\"\",'[9]II.2.Balance OSD-Activos'!S55)","v":18849.040319974614},11808.688991088202,30786.746318581289,22.336736560826289,-1.7216626468230856,1001.5310324233724,-2.0330274290419781,33.558284243075541,17.775306980319638,-1.744165664272959,{"$f":"IF('[1]MONE(M)CAPARD'!GS197=\"\",\"\",'[1]MONE(M)CAPARD'!GS197)","v":5788.9605710502174},{"$f":"IF('[1]MONE(M)CARD'!HA197=\"\",\"\",'[1]MONE(M)CAPARD'!HA197)","v":4180.8358273516315},{"$f":"IF('[1]MONE(M)CAPARD'!HB197=\"\",\"\",'[1]MONE(M)CAPARD'!HB197)","v":1608.1247436985859},"n.d.",{"$f":"IF('[10]II.2.Balance OSD-Activos'!J55=\"\",\"\",'[10]II.2.Balance OSD-Activos'!J55)","v":372.45296533457594},{"$f":"IF('[10]II.2.Balance OSD-Activos'!N55=\"\",\"\",'[10]II.2.Balance OSD-Activos'!N55)","v":486.04883566847121},{"$f":"IF('[10]II.2.Balance OSD-Activos'!R55=\"\",\"\",'[10]II.2.Balance OSD-Activos'!R55)","v":17543.897784843626},{"$f":"IF('[10]II.2.Balance OSD-Activos'!S55=\"\",\"\",'[10]II.2.Balance OSD-Activos'!S55)","v":24480.869352804613},17916.350750178201,42883.268938651287,-29.90596813928984,2.5570318362207356,22.572974274049784,3.5754112795691073,28.807953535737862,16.303396910871303,-0.9771584205345647,{"$f":"IF('[1]MONE(M)CAPARD'!AS197=\"\",\"\",'[1]MONE(M)CAPARD'!AS197)","v":"n.d."},{"$f":"IF('[1]MONE(M)CAPARD'!AT197=\"\",\"\",'[1]MONE(M)CAPARD'!AT197)","v":"n.a."},{"$f":"IF('[1]MONE(M)CAPARD'!AU197=\"\",\"\",'[1]MONE(M)CAPARD'!AU197)","v":3.5},{"$f":"IF('[1]MONE(M)CAPARD'!AV197=\"\",\"\",'[1]MONE(M)CAPARD'!AV197)","v":7},{"$f":"IF('[1]MONE(M)CAPARD'!AW197=\"\",\"\",'[1]MONE(M)CAPARD'!AW197)","v":"n.a."},{"$f":"IF('[1]MONE(M)CAPARD'!AX197=\"\",\"\",'[1]MONE(M)CAPARD'!AX197)","v":8},{"$f":"IF('[1]MONE(M)CAPARD'!AY197=\"\",\"\",'[1]MONE(M)CAPARD'!AY197)","v":"n.a."},{"$f":"IF('[1]FISCAL(M)'!$K197=\"\",\"\",'[1]FISCAL(M)'!$K197)","v":-51.86366372635149},{"$f":"IF('[1]FISCAL(M)'!$L197=\"\",\"\",'[1]FISCAL(M)'!$L197)","v":-76.999183266352077},{"$f":"IF('[1]FISCAL(M)'!$AY197=\"\",\"\",'[1]FISCAL(M)'!$AY197)","v":"n.d."},{"$f":"IF('[1]FISCAL(M)'!$BI197=\"\",\"\",'[1]FISCAL(M)'!$BI197)","v":"n.d."},{"$f":"IF('[1]FISCAL(M)'!$BS197=\"\",\"\",'[1]FISCAL(M)'!$BS197)","v":"n.d."},{"$f":"IF('[1]FISCAL(M)'!$AZ197=\"\",\"\",'[1]FISCAL(M)'!$AZ197)","v":"n.d."},{"$f":"IF('[1]FISCAL(M)'!$BJ197=\"\",\"\",'[1]FISCAL(M)'!$BJ197)","v":"n.d."},{"$f":"IF('[1]FISCAL(M)'!$BT197=\"\",\"\",'[1]FISCAL(M)'!$BT197)","v":"n.d."},{"$f":"IF('[2]MONE(M)'!$AO197=\"\",\"\",'[2]MONE(M)'!$AO197)","v":3137007.6438775659},{"$f":"IF('[3]MONE(M)'!$AO197=\"\",\"\",'[3]MONE(M)'!$AO197)","v":6999.9075508271444},{"$f":"IF('[4]MONE(M)'!$AO197=\"\",\"\",'[4]MONE(M)'!$AO197)","v":57768.650557290879},{"$f":"+'[5]MONE(M)'!$AO197","v":66670.558501544321},{"$f":"IF('[6]MONE(M)'!$AO197=\"\",\"\",'[6]MONE(M)'!$AO197)","v":21336.468246042743},{"$f":"IF('[7]MONE(M)'!$AO197=\"\",\"\",'[7]MONE(M)'!$AO197)","v":184369.51234999998},{"$f":"IF('[8]MONE(M)'!$AO197=\"\",\"\",'[8]MONE(M)'!$AO197)","v":12055.06158641},{"$f":"((BY190/BY178)-1)*100","v":24.555143802912504},6.9156034648593101,16.955562346990227,12.705849161353534,32.77948795581311,-1.3210165167072963,14.5450996711056,{"$f":"IF('[1]FISCAL(M)'!$K197=\"\",\"\",'[1]FISCAL(M)'!$K197)","v":-51.86366372635149},{"$f":"+'[1]REAL(A)'!$AO$25","v":114915.867502026},-4.5131855899218719E-2,{"$f":"IF('[1]FISCAL(M)'!$L197=\"\",\"\",'[1]FISCAL(M)'!$L197)","v":-76.999183266352077},{"$f":"+'[1]REAL(A)'!$AP$25","v":"n.d."},"n.d.","n.d.",{"$f":"'[1]Gráfico REM'!BG191","v":11623.036956559965},{"$f":"'[1]Gráfico REM'!BH191","v":32167.522965832184},{"$f":"'[1]Gráfico REM'!BI191","v":3075.7014571762556},"n.d.",14.319035322251739,16.281259648026936,43.087246637438902,"n.d.",{"$f":"'[1]Gráfico REM'!BK191","v":12086.550432339965},{"$f":"'[1]Gráfico REM'!BL191","v":44222.584552242188},{"$f":"'[1]Gráfico REM'!BM191","v":10892.011516576256},"n.d.",13.002842921199109,15.802786524210521,26.057708811597301]
[2005,"septiembre","2005-septiembre",{"$f":"IF('[1]REAL IPC(M)'!$AL198=\"\",\"\",+'[1]REAL IPC(M)'!$AL198)","v":8.1790161883153125},{"$f":"IF('[1]REAL IPC(M)'!$BE198=\"\",\"\",+'[1]REAL IPC(M)'!$BE198)","v":10.173381808723271},{"$f":"IF('[1]REAL IPC(M)'!$AM198=\"\",\"\",+'[1]REAL IPC(M)'!$AM198)","v":7.6967627168106123},{"$f":"IF('[1]REAL IPC(M)'!$BI198=\"\",\"\",+'[1]REAL IPC(M)'!$BI198)","v":9.433009552268512},{"$f":"IF('[1]REAL IMAE(M)'!BJ198=\"\",\"\",'[1]REAL IMAE(M)'!BJ198)","v":"n.d."},{"$f":"IF('[1]REAL IMAE(M)'!BK198=\"\",\"\",'[1]REAL IMAE(M)'!BK198)","v":"n.d."},{"$f":"IF('[1]REAL IMAE(M)'!BN198=\"\",\"\",'[1]REAL IMAE(M)'!BN198)","v":"n.d."},{"$f":"IF('[1]REAL IMAE(M)'!BO198=\"\",\"\",'[1]REAL IMAE(M)'!BO198)","v":"n.d."},{"$f":"IF('[1]EXT RIN(M)'!$K198=\"\",\"\",'[1]EXT RIN(M)'!$K198)","v":11645.5177717524},"",{"$f":"IF('[1]EXT RIN(M)'!$L198=\"\",\"\",'[1]EXT RIN(M)'!$L198)","v":12548.251169052821},"",{"$f":"IF('[1]MONE(M)CARD'!EG198=\"\",\"\",'[1]MONE(M)CARD'!EG198)","v":10941.128225408971},{"$f":"IF('[1]MONE(M)CARD'!EK198=\"\",\"\",'[1]MONE(M)CARD'!EK198)","v":24275.053949206867},{"$f":"IF('[1]MONE(M)CARD'!EP198=\"\",\"\",'[1]MONE(M)CARD'!EP198)","v":12798.256702740589},{"$f":"IF('[1]MONE(M)CARD'!ES198=\"\",\"\",'[1]MONE(M)CARD'!ES198)","v":12.13838660586195},{"$f":"IF('[1]MONE(M)CARD'!EV198=\"\",\"\",'[1]MONE(M)CARD'!EV198)","v":10.779943438429363},{"$f":"IF('[1]MONE(M)CARD'!EZ198=\"\",\"\",'[1]MONE(M)CARD'!EZ198)","v":10.822768777742553},{"$f":"IF('[1]MONE(M)CAPARD'!FC198=\"\",\"\",'[1]MONE(M)CAPARD'!FC198)","v":12625.932802488971},{"$f":"IF('[1]MONE(M)CAPARD'!FG198=\"\",\"\",'[1]MONE(M)CAPARD'!FG198)","v":34006.213705556875},{"$f":"IF('[1]MONE(M)CAPARD'!FL198=\"\",\"\",'[1]MONE(M)CAPARD'!FL198)","v":12798.256702740589},{"$f":"IF('[1]MONE(M)CAPARD'!FO198=\"\",\"\",'[1]MONE(M)CAPARD'!FO198)","v":12.571357206775025},{"$f":"IF('[1]MONE(M)CAPARD'!FR198=\"\",\"\",'[1]MONE(M)CAPARD'!FR198)","v":9.0802942502856467},{"$f":"IF('[1]MONE(M)CAPARD'!FV198=\"\",\"\",'[1]MONE(M)CAPARD'!FV198)","v":9.4756561086617666},{"$f":"IF('[1]MONE(M)CARD'!FV198=\"\",\"\",'[1]MONE(M)CARD'!FV198)","v":414.82818450979119},{"$f":"IF('[1]MONE(M)CARD'!GD198=\"\",\"\",'[1]MONE(M)CARD'!GD198)","v":76.397769907726669},{"$f":"IF('[1]MONE(M)CARD'!GE198=\"\",\"\",'[1]MONE(M)CARD'!GE198)","v":3956.2229298175998},35.876103262287764,{"$f":"IF('[9]II.2.Balance OSD-Activos'!J56=\"\",\"\",'[9]II.2.Balance OSD-Activos'!J56)","v":176.53086404152174},{"$f":"IF('[9]II.2.Balance OSD-Activos'!N56=\"\",\"\",'[9]II.2.Balance OSD-Activos'!N56)","v":125.91242163172198},{"$f":"IF('[9]II.2.Balance OSD-Activos'!R56=\"\",\"\",'[9]II.2.Balance OSD-Activos'!R56)","v":11839.700473361667},{"$f":"IF('[9]II.2.Balance OSD-Activos'!S56=\"\",\"\",'[9]II.2.Balance OSD-Activos'!S56)","v":18887.778729269594},12016.231337403189,31029.922488304503,17.940080755146461,-3.6725047521719456,924.72347634267373,-3.9349813007610646,28.981665067627162,14.373215135153972,-3.4020918451656659,{"$f":"IF('[1]MONE(M)CAPARD'!GS198=\"\",\"\",'[1]MONE(M)CAPARD'!GS198)","v":5674.4931084501704},{"$f":"IF('[1]MONE(M)CARD'!HA198=\"\",\"\",'[1]MONE(M)CAPARD'!HA198)","v":4241.6135555975998},{"$f":"IF('[1]MONE(M)CAPARD'!HB198=\"\",\"\",'[1]MONE(M)CAPARD'!HB198)","v":1432.8795528525707},"n.d.",{"$f":"IF('[10]II.2.Balance OSD-Activos'!J56=\"\",\"\",'[10]II.2.Balance OSD-Activos'!J56)","v":361.23860793152164},{"$f":"IF('[10]II.2.Balance OSD-Activos'!N56=\"\",\"\",'[10]II.2.Balance OSD-Activos'!N56)","v":491.74098480172194},{"$f":"IF('[10]II.2.Balance OSD-Activos'!R56=\"\",\"\",'[10]II.2.Balance OSD-Activos'!R56)","v":17888.289924451667},{"$f":"IF('[10]II.2.Balance OSD-Activos'!S56=\"\",\"\",'[10]II.2.Balance OSD-Activos'!S56)","v":24598.758111849591},18249.528532383189,43340.027629034506,-26.56012896463913,1.3580284313795321,15.650872482394762,2.1421532310808455,25.600416152694947,14.007271581930002,-2.2961253289413008,{"$f":"IF('[1]MONE(M)CAPARD'!AS198=\"\",\"\",'[1]MONE(M)CAPARD'!AS198)","v":"n.d."},{"$f":"IF('[1]MONE(M)CAPARD'!AT198=\"\",\"\",'[1]MONE(M)CAPARD'!AT198)","v":"n.a."},{"$f":"IF('[1]MONE(M)CAPARD'!AU198=\"\",\"\",'[1]MONE(M)CAPARD'!AU198)","v":3.75},{"$f":"IF('[1]MONE(M)CAPARD'!AV198=\"\",\"\",'[1]MONE(M)CAPARD'!AV198)","v":7},{"$f":"IF('[1]MONE(M)CAPARD'!AW198=\"\",\"\",'[1]MONE(M)CAPARD'!AW198)","v":"n.a."},{"$f":"IF('[1]MONE(M)CAPARD'!AX198=\"\",\"\",'[1]MONE(M)CAPARD'!AX198)","v":10},{"$f":"IF('[1]MONE(M)CAPARD'!AY198=\"\",\"\",'[1]MONE(M)CAPARD'!AY198)","v":"n.a."},{"$f":"IF('[1]FISCAL(M)'!$K198=\"\",\"\",'[1]FISCAL(M)'!$K198)","v":-294.79733376658527},{"$f":"IF('[1]FISCAL(M)'!$L198=\"\",\"\",'[1]FISCAL(M)'!$L198)","v":-395.01281925658554},{"$f":"IF('[1]FISCAL(M)'!$AY198=\"\",\"\",'[1]FISCAL(M)'!$AY198)","v":"n.d."},{"$f":"IF('[1]FISCAL(M)'!$BI198=\"\",\"\",'[1]FISCAL(M)'!$BI198)","v":"n.d."},{"$f":"IF('[1]FISCAL(M)'!$BS198=\"\",\"\",'[1]FISCAL(M)'!$BS198)","v":"n.d."},{"$f":"IF('[1]FISCAL(M)'!$AZ198=\"\",\"\",'[1]FISCAL(M)'!$AZ198)","v":"n.d."},{"$f":"IF('[1]FISCAL(M)'!$BJ198=\"\",\"\",'[1]FISCAL(M)'!$BJ198)","v":"n.d."},{"$f":"IF('[1]FISCAL(M)'!$BT198=\"\",\"\",'[1]FISCAL(M)'!$BT198)","v":"n.d."},{"$f":"IF('[2]MONE(M)'!$AO198=\"\",\"\",'[2]MONE(M)'!$AO198)","v":3218014.2604387128},{"$f":"IF('[3]MONE(M)'!$AO198=\"\",\"\",'[3]MONE(M)'!$AO198)","v":7170.1626235471431},{"$f":"IF('[4]MONE(M)'!$AO198=\"\",\"\",'[4]MONE(M)'!$AO198)","v":58748.58719386773},{"$f":"+'[5]MONE(M)'!$AO198","v":67888.517346476467},{"$f":"IF('[6]MONE(M)'!$AO198=\"\",\"\",'[6]MONE(M)'!$AO198)","v":21857.599234907109},{"$f":"IF('[7]MONE(M)'!$AO198=\"\",\"\",'[7]MONE(M)'!$AO198)","v":189985.262972},{"$f":"IF('[8]MONE(M)'!$AO198=\"\",\"\",'[8]MONE(M)'!$AO198)","v":12303.719584719998},26.217474675318098,9.6808330534047915,16.904987141643723,13.650454081721408,31.786618228266562,7.7539834159615184,15.444476665938645,{"$f":"IF('[1]FISCAL(M)'!$K198=\"\",\"\",'[1]FISCAL(M)'!$K198)","v":-294.79733376658527},{"$f":"+'[1]REAL(A)'!$AO$25","v":114915.867502026},-0.25653318394989094,{"$f":"IF('[1]FISCAL(M)'!$L198=\"\",\"\",'[1]FISCAL(M)'!$L198)","v":-395.01281925658554},{"$f":"+'[1]REAL(A)'!$AP$25","v":"n.d."},"n.d.","n.d.",{"$f":"'[1]Gráfico REM'!BG192","v":11457.469033095866},{"$f":"'[1]Gráfico REM'!BH192","v":32404.522915374342},{"$f":"'[1]Gráfico REM'!BI192","v":3205.5512211908158},"n.d.",6.4284283567775491,13.162887860970951,44.689174741342796,"n.d.",{"$f":"'[1]Gráfico REM'!BK192","v":11899.562152765866},{"$f":"'[1]Gráfico REM'!BL192","v":44708.24250009434},{"$f":"'[1]Gráfico REM'!BM192","v":11053.226553050816},"n.d.",5.6782250828888881,13.78173816468189,27.435213069716191]
[2005,"octubre","2005-octubre",{"$f":"IF('[1]REAL IPC(M)'!$AL199=\"\",\"\",+'[1]REAL IPC(M)'!$AL199)","v":8.5607508957053824},{"$f":"IF('[1]REAL IPC(M)'!$BE199=\"\",\"\",+'[1]REAL IPC(M)'!$BE199)","v":9.9983177399985088},{"$f":"IF('[1]REAL IPC(M)'!$AM199=\"\",\"\",+'[1]REAL IPC(M)'!$AM199)","v":8.0898052293669753},{"$f":"IF('[1]REAL IPC(M)'!$BI199=\"\",\"\",+'[1]REAL IPC(M)'!$BI199)","v":9.2728930992427969},{"$f":"IF('[1]REAL IMAE(M)'!BJ199=\"\",\"\",'[1]REAL IMAE(M)'!BJ199)","v":"n.d."},{"$f":"IF('[1]REAL IMAE(M)'!BK199=\"\",\"\",'[1]REAL IMAE(M)'!BK199)","v":"n.d."},{"$f":"IF('[1]REAL IMAE(M)'!BN199=\"\",\"\",'[1]REAL IMAE(M)'!BN199)","v":"n.d."},{"$f":"IF('[1]REAL IMAE(M)'!BO199=\"\",\"\",'[1]REAL IMAE(M)'!BO199)","v":"n.d."},{"$f":"IF('[1]EXT RIN(M)'!$K199=\"\",\"\",'[1]EXT RIN(M)'!$K199)","v":11730.596740516954},"",{"$f":"IF('[1]EXT RIN(M)'!$L199=\"\",\"\",'[1]EXT RIN(M)'!$L199)","v":12651.523870103554},"",{"$f":"IF('[1]MONE(M)CARD'!EG199=\"\",\"\",'[1]MONE(M)CARD'!EG199)","v":11048.359368136804},{"$f":"IF('[1]MONE(M)CARD'!EK199=\"\",\"\",'[1]MONE(M)CARD'!EK199)","v":23421.655641409427},{"$f":"IF('[1]MONE(M)CARD'!EP199=\"\",\"\",'[1]MONE(M)CARD'!EP199)","v":12838.184649958035},{"$f":"IF('[1]MONE(M)CARD'!ES199=\"\",\"\",'[1]MONE(M)CARD'!ES199)","v":13.304579944841578},{"$f":"IF('[1]MONE(M)CARD'!EV199=\"\",\"\",'[1]MONE(M)CARD'!EV199)","v":8.7498040341194248},{"$f":"IF('[1]MONE(M)CARD'!EZ199=\"\",\"\",'[1]MONE(M)CARD'!EZ199)","v":9.4919930203684721},{"$f":"IF('[1]MONE(M)CAPARD'!FC199=\"\",\"\",'[1]MONE(M)CAPARD'!FC199)","v":12722.219050996806},{"$f":"IF('[1]MONE(M)CAPARD'!FG199=\"\",\"\",'[1]MONE(M)CAPARD'!FG199)","v":33413.159614799428},{"$f":"IF('[1]MONE(M)CAPARD'!FL199=\"\",\"\",'[1]MONE(M)CAPARD'!FL199)","v":12838.184649958035},{"$f":"IF('[1]MONE(M)CAPARD'!FO199=\"\",\"\",'[1]MONE(M)CAPARD'!FO199)","v":13.476976462092249},{"$f":"IF('[1]MONE(M)CAPARD'!FR199=\"\",\"\",'[1]MONE(M)CAPARD'!FR199)","v":8.1237943521105258},{"$f":"IF('[1]MONE(M)CAPARD'!FV199=\"\",\"\",'[1]MONE(M)CAPARD'!FV199)","v":8.8486705138426824},{"$f":"IF('[1]MONE(M)CARD'!FV199=\"\",\"\",'[1]MONE(M)CARD'!FV199)","v":454.82353228070326},{"$f":"IF('[1]MONE(M)CARD'!GD199=\"\",\"\",'[1]MONE(M)CARD'!GD199)","v":45.026777484896016},{"$f":"IF('[1]MONE(M)CARD'!GE199=\"\",\"\",'[1]MONE(M)CARD'!GE199)","v":3998.3079507361717},24.486203566285635,{"$f":"IF('[9]II.2.Balance OSD-Activos'!J57=\"\",\"\",'[9]II.2.Balance OSD-Activos'!J57)","v":195.35204991093138},{"$f":"IF('[9]II.2.Balance OSD-Activos'!N57=\"\",\"\",'[9]II.2.Balance OSD-Activos'!N57)","v":119.87198768621515},{"$f":"IF('[9]II.2.Balance OSD-Activos'!R57=\"\",\"\",'[9]II.2.Balance OSD-Activos'!R57)","v":11778.722320098093},{"$f":"IF('[9]II.2.Balance OSD-Activos'!S57=\"\",\"\",'[9]II.2.Balance OSD-Activos'!S57)","v":19267.951128039462},11974.074370009024,31361.897485734702,20.082348003173657,-3.8539357319756773,911.94579454096379,-4.1707432376447473,30.178870713682549,15.017665956503778,0.6444508213498068,{"$f":"IF('[1]MONE(M)CAPARD'!GS199=\"\",\"\",'[1]MONE(M)CAPARD'!GS199)","v":5720.5695671703725},{"$f":"IF('[1]MONE(M)CARD'!HA199=\"\",\"\",'[1]MONE(M)CAPARD'!HA199)","v":4284.7718581461722},{"$f":"IF('[1]MONE(M)CAPARD'!HB199=\"\",\"\",'[1]MONE(M)CAPARD'!HB199)","v":1435.7977090242002},"n.d.",{"$f":"IF('[10]II.2.Balance OSD-Activos'!J57=\"\",\"\",'[10]II.2.Balance OSD-Activos'!J57)","v":380.31307463093145},{"$f":"IF('[10]II.2.Balance OSD-Activos'!N57=\"\",\"\",'[10]II.2.Balance OSD-Activos'!N57)","v":489.69585703621516},{"$f":"IF('[10]II.2.Balance OSD-Activos'!R57=\"\",\"\",'[10]II.2.Balance OSD-Activos'!R57)","v":17931.934100778089},{"$f":"IF('[10]II.2.Balance OSD-Activos'!S57=\"\",\"\",'[10]II.2.Balance OSD-Activos'!S57)","v":25049.590979119461},18312.247175409022,43851.534011564698,-24.897269660709387,1.3294195796198283,11.633091443295518,2.0854963779952662,26.639084670245762,14.521897237793091,0.51462565586308884,{"$f":"IF('[1]MONE(M)CAPARD'!AS199=\"\",\"\",'[1]MONE(M)CAPARD'!AS199)","v":"n.d."},{"$f":"IF('[1]MONE(M)CAPARD'!AT199=\"\",\"\",'[1]MONE(M)CAPARD'!AT199)","v":"n.a."},{"$f":"IF('[1]MONE(M)CAPARD'!AU199=\"\",\"\",'[1]MONE(M)CAPARD'!AU199)","v":3.75},{"$f":"IF('[1]MONE(M)CAPARD'!AV199=\"\",\"\",'[1]MONE(M)CAPARD'!AV199)","v":7},{"$f":"IF('[1]MONE(M)CAPARD'!AW199=\"\",\"\",'[1]MONE(M)CAPARD'!AW199)","v":"n.a."},{"$f":"IF('[1]MONE(M)CAPARD'!AX199=\"\",\"\",'[1]MONE(M)CAPARD'!AX199)","v":10},{"$f":"IF('[1]MONE(M)CAPARD'!AY199=\"\",\"\",'[1]MONE(M)CAPARD'!AY199)","v":"n.a."},{"$f":"IF('[1]FISCAL(M)'!$K199=\"\",\"\",'[1]FISCAL(M)'!$K199)","v":-140.08601061318427},{"$f":"IF('[1]FISCAL(M)'!$L199=\"\",\"\",'[1]FISCAL(M)'!$L199)","v":-314.66478916318516},{"$f":"IF('[1]FISCAL(M)'!$AY199=\"\",\"\",'[1]FISCAL(M)'!$AY199)","v":"n.d."},{"$f":"IF('[1]FISCAL(M)'!$BI199=\"\",\"\",'[1]FISCAL(M)'!$BI199)","v":"n.d."},{"$f":"IF('[1]FISCAL(M)'!$BS199=\"\",\"\",'[1]FISCAL(M)'!$BS199)","v":"n.d."},{"$f":"IF('[1]FISCAL(M)'!$AZ199=\"\",\"\",'[1]FISCAL(M)'!$AZ199)","v":"n.d."},{"$f":"IF('[1]FISCAL(M)'!$BJ199=\"\",\"\",'[1]FISCAL(M)'!$BJ199)","v":"n.d."},{"$f":"IF('[1]FISCAL(M)'!$BT199=\"\",\"\",'[1]FISCAL(M)'!$BT199)","v":"n.d."},{"$f":"IF('[2]MONE(M)'!$AO199=\"\",\"\",'[2]MONE(M)'!$AO199)","v":3280956.5796250599},{"$f":"IF('[3]MONE(M)'!$AO199=\"\",\"\",'[3]MONE(M)'!$AO199)","v":7229.1622279871444},{"$f":"IF('[4]MONE(M)'!$AO199=\"\",\"\",'[4]MONE(M)'!$AO199)","v":59740.580039468769},{"$f":"+'[5]MONE(M)'!$AO199","v":69199.661513740721},{"$f":"IF('[6]MONE(M)'!$AO199=\"\",\"\",'[6]MONE(M)'!$AO199)","v":22603.773957431033},{"$f":"IF('[7]MONE(M)'!$AO199=\"\",\"\",'[7]MONE(M)'!$AO199)","v":197913.70867765998},{"$f":"IF('[8]MONE(M)'!$AO199=\"\",\"\",'[8]MONE(M)'!$AO199)","v":12473.102224572998},26.748065877662984,8.9369626168930729,17.638350741462936,13.827549030635344,34.590341715922676,11.75907731377286,15.82516023228504,{"$f":"IF('[1]FISCAL(M)'!$K199=\"\",\"\",'[1]FISCAL(M)'!$K199)","v":-140.08601061318427},{"$f":"+'[1]REAL(A)'!$AO$25","v":114915.867502026},-0.12190310499175801,{"$f":"IF('[1]FISCAL(M)'!$L199=\"\",\"\",'[1]FISCAL(M)'!$L199)","v":-314.66478916318516},{"$f":"+'[1]REAL(A)'!$AP$25","v":"n.d."},"n.d.","n.d.",{"$f":"'[1]Gráfico REM'!BG193","v":11032.675028654001},{"$f":"'[1]Gráfico REM'!BH193","v":32722.460771909307},{"$f":"'[1]Gráfico REM'!BI193","v":3087.9454679717701},"n.d.",3.0709902849961335,13.889924173686641,45.279630166286026,"n.d.",{"$f":"'[1]Gráfico REM'!BK193","v":11495.190846344001},{"$f":"'[1]Gráfico REM'!BL193","v":45195.562996482302},{"$f":"'[1]Gráfico REM'!BM193","v":11053.143988341768},"n.d.",2.3361195016257774,14.417521095565178,26.282159985681353]
[2005,"noviembre","2005-noviembre",{"$f":"IF('[1]REAL IPC(M)'!$AL200=\"\",\"\",+'[1]REAL IPC(M)'!$AL200)","v":8.1157977584289434},{"$f":"IF('[1]REAL IPC(M)'!$BE200=\"\",\"\",+'[1]REAL IPC(M)'!$BE200)","v":9.8292593401626327},{"$f":"IF('[1]REAL IPC(M)'!$AM200=\"\",\"\",+'[1]REAL IPC(M)'!$AM200)","v":7.6295144869115594},{"$f":"IF('[1]REAL IPC(M)'!$BI200=\"\",\"\",+'[1]REAL IPC(M)'!$BI200)","v":9.118976656600509},{"$f":"IF('[1]REAL IMAE(M)'!BJ200=\"\",\"\",'[1]REAL IMAE(M)'!BJ200)","v":"n.d."},{"$f":"IF('[1]REAL IMAE(M)'!BK200=\"\",\"\",'[1]REAL IMAE(M)'!BK200)","v":"n.d."},{"$f":"IF('[1]REAL IMAE(M)'!BN200=\"\",\"\",'[1]REAL IMAE(M)'!BN200)","v":"n.d."},{"$f":"IF('[1]REAL IMAE(M)'!BO200=\"\",\"\",'[1]REAL IMAE(M)'!BO200)","v":"n.d."},{"$f":"IF('[1]EXT RIN(M)'!$K200=\"\",\"\",'[1]EXT RIN(M)'!$K200)","v":11705.572929376087},"",{"$f":"IF('[1]EXT RIN(M)'!$L200=\"\",\"\",'[1]EXT RIN(M)'!$L200)","v":12649.580598993267},"",{"$f":"IF('[1]MONE(M)CARD'!EG200=\"\",\"\",'[1]MONE(M)CARD'!EG200)","v":11569.099050051635},{"$f":"IF('[1]MONE(M)CARD'!EK200=\"\",\"\",'[1]MONE(M)CARD'!EK200)","v":23490.36781630668},{"$f":"IF('[1]MONE(M)CARD'!EP200=\"\",\"\",'[1]MONE(M)CARD'!EP200)","v":12890.169718891382},{"$f":"IF('[1]MONE(M)CARD'!ES200=\"\",\"\",'[1]MONE(M)CARD'!ES200)","v":12.363891047339038},{"$f":"IF('[1]MONE(M)CARD'!EV200=\"\",\"\",'[1]MONE(M)CARD'!EV200)","v":5.3045874370671653},{"$f":"IF('[1]MONE(M)CARD'!EZ200=\"\",\"\",'[1]MONE(M)CARD'!EZ200)","v":6.6661858997214996},{"$f":"IF('[1]MONE(M)CAPARD'!FC200=\"\",\"\",'[1]MONE(M)CAPARD'!FC200)","v":13289.609864221635},{"$f":"IF('[1]MONE(M)CAPARD'!FG200=\"\",\"\",'[1]MONE(M)CAPARD'!FG200)","v":33632.17463828667},{"$f":"IF('[1]MONE(M)CAPARD'!FL200=\"\",\"\",'[1]MONE(M)CAPARD'!FL200)","v":12890.169718891382},{"$f":"IF('[1]MONE(M)CAPARD'!FO200=\"\",\"\",'[1]MONE(M)CAPARD'!FO200)","v":12.364757267292227},{"$f":"IF('[1]MONE(M)CAPARD'!FR200=\"\",\"\",'[1]MONE(M)CAPARD'!FR200)","v":5.6363739105757427},{"$f":"IF('[1]MONE(M)CAPARD'!FV200=\"\",\"\",'[1]MONE(M)CAPARD'!FV200)","v":6.6588715111922436},{"$f":"IF('[1]MONE(M)CARD'!FV200=\"\",\"\",'[1]MONE(M)CARD'!FV200)","v":1125.9147858206034},{"$f":"IF('[1]MONE(M)CARD'!GD200=\"\",\"\",'[1]MONE(M)CARD'!GD200)","v":43.871755395868533},{"$f":"IF('[1]MONE(M)CARD'!GE200=\"\",\"\",'[1]MONE(M)CARD'!GE200)","v":3980.6987942466199},26.254100399601231,{"$f":"IF('[9]II.2.Balance OSD-Activos'!J58=\"\",\"\",'[9]II.2.Balance OSD-Activos'!J58)","v":201.3357190597404},{"$f":"IF('[9]II.2.Balance OSD-Activos'!N58=\"\",\"\",'[9]II.2.Balance OSD-Activos'!N58)","v":236.95449109000253},{"$f":"IF('[9]II.2.Balance OSD-Activos'!R58=\"\",\"\",'[9]II.2.Balance OSD-Activos'!R58)","v":14457.263742582807},{"$f":"IF('[9]II.2.Balance OSD-Activos'!S58=\"\",\"\",'[9]II.2.Balance OSD-Activos'!S58)","v":16137.18436194252},14658.599461642547,31032.738314675069,24.981077861166167,13.333087353231665,1810.9205659641998,13.186182926564815,4.7544190241302298,9.4580447218969752,-5.5596212346068032,{"$f":"IF('[1]MONE(M)CAPARD'!GS200=\"\",\"\",'[1]MONE(M)CAPARD'!GS200)","v":6471.0033670771445},{"$f":"IF('[1]MONE(M)CARD'!HA200=\"\",\"\",'[1]MONE(M)CAPARD'!HA200)","v":4265.1250117066202},{"$f":"IF('[1]MONE(M)CAPARD'!HB200=\"\",\"\",'[1]MONE(M)CAPARD'!HB200)","v":2205.8783553705243},"n.d.",{"$f":"IF('[10]II.2.Balance OSD-Activos'!J58=\"\",\"\",'[10]II.2.Balance OSD-Activos'!J58)","v":394.48140340974038},{"$f":"IF('[10]II.2.Balance OSD-Activos'!N58=\"\",\"\",'[10]II.2.Balance OSD-Activos'!N58)","v":625.69288593000249},{"$f":"IF('[10]II.2.Balance OSD-Activos'!R58=\"\",\"\",'[10]II.2.Balance OSD-Activos'!R58)","v":20707.905593092808},{"$f":"IF('[10]II.2.Balance OSD-Activos'!S58=\"\",\"\",'[10]II.2.Balance OSD-Activos'!S58)","v":21996.602789832519},21102.386996502548,43724.682672265073,-22.103081435108152,13.569342916856296,49.727919100635965,14.568811421614036,7.6175058241660043,10.867848006400148,-3.6540492313929427,{"$f":"IF('[1]MONE(M)CAPARD'!AS200=\"\",\"\",'[1]MONE(M)CAPARD'!AS200)","v":"n.d."},{"$f":"IF('[1]MONE(M)CAPARD'!AT200=\"\",\"\",'[1]MONE(M)CAPARD'!AT200)","v":"n.a."},{"$f":"IF('[1]MONE(M)CAPARD'!AU200=\"\",\"\",'[1]MONE(M)CAPARD'!AU200)","v":4},{"$f":"IF('[1]MONE(M)CAPARD'!AV200=\"\",\"\",'[1]MONE(M)CAPARD'!AV200)","v":7},{"$f":"IF('[1]MONE(M)CAPARD'!AW200=\"\",\"\",'[1]MONE(M)CAPARD'!AW200)","v":"n.a."},{"$f":"IF('[1]MONE(M)CAPARD'!AX200=\"\",\"\",'[1]MONE(M)CAPARD'!AX200)","v":10},{"$f":"IF('[1]MONE(M)CAPARD'!AY200=\"\",\"\",'[1]MONE(M)CAPARD'!AY200)","v":"n.a."},{"$f":"IF('[1]FISCAL(M)'!$K200=\"\",\"\",'[1]FISCAL(M)'!$K200)","v":-417.8482741090948},{"$f":"IF('[1]FISCAL(M)'!$L200=\"\",\"\",'[1]FISCAL(M)'!$L200)","v":-646.31233794909565},{"$f":"IF('[1]FISCAL(M)'!$AY200=\"\",\"\",'[1]FISCAL(M)'!$AY200)","v":"n.d."},{"$f":"IF('[1]FISCAL(M)'!$BI200=\"\",\"\",'[1]FISCAL(M)'!$BI200)","v":"n.d."},{"$f":"IF('[1]FISCAL(M)'!$BS200=\"\",\"\",'[1]FISCAL(M)'!$BS200)","v":"n.d."},{"$f":"IF('[1]FISCAL(M)'!$AZ200=\"\",\"\",'[1]FISCAL(M)'!$AZ200)","v":"n.d."},{"$f":"IF('[1]FISCAL(M)'!$BJ200=\"\",\"\",'[1]FISCAL(M)'!$BJ200)","v":"n.d."},{"$f":"IF('[1]FISCAL(M)'!$BT200=\"\",\"\",'[1]FISCAL(M)'!$BT200)","v":"n.d."},{"$f":"IF('[2]MONE(M)'!$AO200=\"\",\"\",'[2]MONE(M)'!$AO200)","v":3366261.8454746678},{"$f":"IF('[3]MONE(M)'!$AO200=\"\",\"\",'[3]MONE(M)'!$AO200)","v":7328.4168484671427},{"$f":"IF('[4]MONE(M)'!$AO200=\"\",\"\",'[4]MONE(M)'!$AO200)","v":52564.139565937367},{"$f":"+'[5]MONE(M)'!$AO200","v":71027.158985756949},{"$f":"IF('[6]MONE(M)'!$AO200=\"\",\"\",'[6]MONE(M)'!$AO200)","v":23294.631049732943},{"$f":"IF('[7]MONE(M)'!$AO200=\"\",\"\",'[7]MONE(M)'!$AO200)","v":200013.08786217001},{"$f":"IF('[8]MONE(M)'!$AO200=\"\",\"\",'[8]MONE(M)'!$AO200)","v":12668.326296523001},28.235984150579707,9.355775204716398,1.5491833321245041,15.356063861552261,33.646455019808364,13.712953284541163,16.62630675333412,{"$f":"IF('[1]FISCAL(M)'!$K200=\"\",\"\",'[1]FISCAL(M)'!$K200)","v":-417.8482741090948},{"$f":"+'[1]REAL(A)'!$AO$25","v":114915.867502026},-0.36361233935054965,{"$f":"IF('[1]FISCAL(M)'!$L200=\"\",\"\",'[1]FISCAL(M)'!$L200)","v":-646.31233794909565},{"$f":"+'[1]REAL(A)'!$AP$25","v":"n.d."},"n.d.","n.d.",{"$f":"'[1]Gráfico REM'!BG194","v":11916.34577754446},{"$f":"'[1]Gráfico REM'!BH194","v":32235.508578611807},{"$f":"'[1]Gráfico REM'!BI194","v":3735.5011543150686},"n.d.",5.5897971643422251,8.1567475756777252,71.61848837967446,"n.d.",{"$f":"'[1]Gráfico REM'!BK194","v":12348.48139650446},{"$f":"'[1]Gráfico REM'!BL194","v":44903.834875134809},{"$f":"'[1]Gráfico REM'!BM194","v":11872.131028585067},"n.d.",3.8286384588201106,10.419015103377038,26.963966310226304]
[2005,"diciembre","2005-diciembre",{"$f":"IF('[1]REAL IPC(M)'!$AL201=\"\",\"\",+'[1]REAL IPC(M)'!$AL201)","v":8.5030676240712246},{"$f":"IF('[1]REAL IPC(M)'!$BE201=\"\",\"\",+'[1]REAL IPC(M)'!$BE201)","v":9.6667825394635152},{"$f":"IF('[1]REAL IPC(M)'!$AM201=\"\",\"\",+'[1]REAL IPC(M)'!$AM201)","v":7.9757417730535352},{"$f":"IF('[1]REAL IPC(M)'!$BI201=\"\",\"\",+'[1]REAL IPC(M)'!$BI201)","v":8.9718681549133539},{"$f":"IF('[1]REAL IMAE(M)'!BJ201=\"\",\"\",'[1]REAL IMAE(M)'!BJ201)","v":"n.d."},{"$f":"IF('[1]REAL IMAE(M)'!BK201=\"\",\"\",'[1]REAL IMAE(M)'!BK201)","v":"n.d."},{"$f":"IF('[1]REAL IMAE(M)'!BN201=\"\",\"\",'[1]REAL IMAE(M)'!BN201)","v":"n.d."},{"$f":"IF('[1]REAL IMAE(M)'!BO201=\"\",\"\",'[1]REAL IMAE(M)'!BO201)","v":"n.d."},{"$f":"IF('[1]EXT RIN(M)'!$K201=\"\",\"\",'[1]EXT RIN(M)'!$K201)","v":12142.098525460302},12142.098525460302,{"$f":"IF('[1]EXT RIN(M)'!$L201=\"\",\"\",'[1]EXT RIN(M)'!$L201)","v":13321.749764955292},13321.749764955292,{"$f":"IF('[1]MONE(M)CARD'!EG201=\"\",\"\",'[1]MONE(M)CARD'!EG201)","v":12301.867546451831},{"$f":"IF('[1]MONE(M)CARD'!EK201=\"\",\"\",'[1]MONE(M)CARD'!EK201)","v":23768.285106872449},{"$f":"IF('[1]MONE(M)CARD'!EP201=\"\",\"\",'[1]MONE(M)CARD'!EP201)","v":12822.316971144079},{"$f":"IF('[1]MONE(M)CARD'!ES201=\"\",\"\",'[1]MONE(M)CARD'!ES201)","v":13.081120394989254},{"$f":"IF('[1]MONE(M)CARD'!EV201=\"\",\"\",'[1]MONE(M)CARD'!EV201)","v":7.9305964407842877},{"$f":"IF('[1]MONE(M)CARD'!EZ201=\"\",\"\",'[1]MONE(M)CARD'!EZ201)","v":7.9578791669427495},{"$f":"IF('[1]MONE(M)CAPARD'!FC201=\"\",\"\",'[1]MONE(M)CAPARD'!FC201)","v":14208.151614091828},{"$f":"IF('[1]MONE(M)CAPARD'!FG201=\"\",\"\",'[1]MONE(M)CAPARD'!FG201)","v":34068.052675862447},{"$f":"IF('[1]MONE(M)CAPARD'!FL201=\"\",\"\",'[1]MONE(M)CAPARD'!FL201)","v":12822.316971144079},{"$f":"IF('[1]MONE(M)CAPARD'!FO201=\"\",\"\",'[1]MONE(M)CAPARD'!FO201)","v":13.557442999291048},{"$f":"IF('[1]MONE(M)CAPARD'!FR201=\"\",\"\",'[1]MONE(M)CAPARD'!FR201)","v":8.1264956472785634},{"$f":"IF('[1]MONE(M)CAPARD'!FV201=\"\",\"\",'[1]MONE(M)CAPARD'!FV201)","v":8.107218540749983},{"$f":"IF('[1]MONE(M)CARD'!FV201=\"\",\"\",'[1]MONE(M)CARD'!FV201)","v":1141.9051969465445},{"$f":"IF('[1]MONE(M)CARD'!GD201=\"\",\"\",'[1]MONE(M)CARD'!GD201)","v":44.881564234620264},{"$f":"IF('[1]MONE(M)CARD'!GE201=\"\",\"\",'[1]MONE(M)CARD'!GE201)","v":3745.165827828409},12.083229938704743,{"$f":"IF('[9]II.2.Balance OSD-Activos'!J59=\"\",\"\",'[9]II.2.Balance OSD-Activos'!J59)","v":195.84497121773293},{"$f":"IF('[9]II.2.Balance OSD-Activos'!N59=\"\",\"\",'[9]II.2.Balance OSD-Activos'!N59)","v":239.13694120634764},{"$f":"IF('[9]II.2.Balance OSD-Activos'!R59=\"\",\"\",'[9]II.2.Balance OSD-Activos'!R59)","v":14696.749455699459},{"$f":"IF('[9]II.2.Balance OSD-Activos'!S59=\"\",\"\",'[9]II.2.Balance OSD-Activos'!S59)","v":16548.824190827381},14892.594426917192,31680.55555895092,43.44236930393788,16.688539484235896,1922.3912320620198,16.399238585042177,6.0941520684436812,11.658364782975239,2.2003200610782638,{"$f":"IF('[1]MONE(M)CAPARD'!GS201=\"\",\"\",'[1]MONE(M)CAPARD'!GS201)","v":6454.357763480185},{"$f":"IF('[1]MONE(M)CARD'!HA201=\"\",\"\",'[1]MONE(M)CAPARD'!HA201)","v":3989.4516185184093},{"$f":"IF('[1]MONE(M)CAPARD'!HB201=\"\",\"\",'[1]MONE(M)CAPARD'!HB201)","v":2464.9061449617757},"n.d.",{"$f":"IF('[10]II.2.Balance OSD-Activos'!J59=\"\",\"\",'[10]II.2.Balance OSD-Activos'!J59)","v":404.45156764773293},{"$f":"IF('[10]II.2.Balance OSD-Activos'!N59=\"\",\"\",'[10]II.2.Balance OSD-Activos'!N59)","v":620.33036465634768},{"$f":"IF('[10]II.2.Balance OSD-Activos'!R59=\"\",\"\",'[10]II.2.Balance OSD-Activos'!R59)","v":20718.57388210946},{"$f":"IF('[10]II.2.Balance OSD-Activos'!S59=\"\",\"\",'[10]II.2.Balance OSD-Activos'!S59)","v":22498.860175867383},21123.025449757191,44242.215990280922,-14.617707845449369,15.935283240558684,49.332277092512044,16.750836994657071,8.7057753149303529,12.483748524891292,1.6159005184911432,{"$f":"IF('[1]MONE(M)CAPARD'!AS201=\"\",\"\",'[1]MONE(M)CAPARD'!AS201)","v":"n.d."},{"$f":"IF('[1]MONE(M)CAPARD'!AT201=\"\",\"\",'[1]MONE(M)CAPARD'!AT201)","v":"n.a."},{"$f":"IF('[1]MONE(M)CAPARD'!AU201=\"\",\"\",'[1]MONE(M)CAPARD'!AU201)","v":4.25},{"$f":"IF('[1]MONE(M)CAPARD'!AV201=\"\",\"\",'[1]MONE(M)CAPARD'!AV201)","v":7},{"$f":"IF('[1]MONE(M)CAPARD'!AW201=\"\",\"\",'[1]MONE(M)CAPARD'!AW201)","v":"n.a."},{"$f":"IF('[1]MONE(M)CAPARD'!AX201=\"\",\"\",'[1]MONE(M)CAPARD'!AX201)","v":10},{"$f":"IF('[1]MONE(M)CAPARD'!AY201=\"\",\"\",'[1]MONE(M)CAPARD'!AY201)","v":"n.a."},{"$f":"IF('[1]FISCAL(M)'!$K201=\"\",\"\",'[1]FISCAL(M)'!$K201)","v":-1523.6327316001077},{"$f":"IF('[1]FISCAL(M)'!$L201=\"\",\"\",'[1]FISCAL(M)'!$L201)","v":-1493.6327316001082},{"$f":"IF('[1]FISCAL(M)'!$AY201=\"\",\"\",'[1]FISCAL(M)'!$AY201)","v":"n.d."},{"$f":"IF('[1]FISCAL(M)'!$BI201=\"\",\"\",'[1]FISCAL(M)'!$BI201)","v":"n.d."},{"$f":"IF('[1]FISCAL(M)'!$BS201=\"\",\"\",'[1]FISCAL(M)'!$BS201)","v":28855.4},{"$f":"IF('[1]FISCAL(M)'!$AZ201=\"\",\"\",'[1]FISCAL(M)'!$AZ201)","v":"n.d."},{"$f":"IF('[1]FISCAL(M)'!$BJ201=\"\",\"\",'[1]FISCAL(M)'!$BJ201)","v":"n.d."},{"$f":"IF('[1]FISCAL(M)'!$BT201=\"\",\"\",'[1]FISCAL(M)'!$BT201)","v":36435.104038830003},{"$f":"IF('[2]MONE(M)'!$AO201=\"\",\"\",'[2]MONE(M)'!$AO201)","v":3513450.2858631033},{"$f":"IF('[3]MONE(M)'!$AO201=\"\",\"\",'[3]MONE(M)'!$AO201)","v":7475.5792748771419},{"$f":"IF('[4]MONE(M)'!$AO201=\"\",\"\",'[4]MONE(M)'!$AO201)","v":55942.455012089791},{"$f":"+'[5]MONE(M)'!$AO201","v":71746.347800475967},{"$f":"IF('[6]MONE(M)'!$AO201=\"\",\"\",'[6]MONE(M)'!$AO201)","v":24075.086353959712},{"$f":"IF('[7]MONE(M)'!$AO201=\"\",\"\",'[7]MONE(M)'!$AO201)","v":203881.20671452998},{"$f":"IF('[8]MONE(M)'!$AO201=\"\",\"\",'[8]MONE(M)'!$AO201)","v":12553.650540959999},30.190872247639568,11.454678086814996,4.7602218026398413,15.621575272184307,31.411430041460232,14.205142000722226,17.223060480836793,{"$f":"IF('[1]FISCAL(M)'!$K201=\"\",\"\",'[1]FISCAL(M)'!$K201)","v":-1523.6327316001077},{"$f":"+'[1]REAL(A)'!$AO$25","v":114915.867502026},-1.3258680152009867,{"$f":"IF('[1]FISCAL(M)'!$L201=\"\",\"\",'[1]FISCAL(M)'!$L201)","v":-1493.6327316001082},{"$f":"+'[1]REAL(A)'!$AP$25","v":"n.d."},"n.d.","n.d.",{"$f":"'[1]Gráfico REM'!BG195","v":11686.671784083781},{"$f":"'[1]Gráfico REM'!BH195","v":33003.377212104351},{"$f":"'[1]Gráfico REM'!BI195","v":3839.3067241926392},"n.d.",5.5270434547202596,10.610388262882919,60.090042318656181,"n.d.",{"$f":"'[1]Gráfico REM'!BK195","v":12122.741737103781},{"$f":"'[1]Gráfico REM'!BL195","v":45557.027753064351},{"$f":"'[1]Gráfico REM'!BM195","v":12451.465192522639},"n.d.",4.5301713323935511,12.35692791126397,26.609741355534045]
[2006,"enero","2006-enero",{"$f":"IF('[1]REAL IPC(M)'!$AL202=\"\",\"\",+'[1]REAL IPC(M)'!$AL202)","v":8.319996393380924},{"$f":"IF('[1]REAL IPC(M)'!$BE202=\"\",\"\",+'[1]REAL IPC(M)'!$BE202)","v":9.5113505737367312},{"$f":"IF('[1]REAL IPC(M)'!$AM202=\"\",\"\",+'[1]REAL IPC(M)'!$AM202)","v":7.7948210552078789},{"$f":"IF('[1]REAL IPC(M)'!$BI202=\"\",\"\",+'[1]REAL IPC(M)'!$BI202)","v":8.8320618750172173},{"$f":"IF('[1]REAL IMAE(M)'!BJ202=\"\",\"\",'[1]REAL IMAE(M)'!BJ202)","v":"n.d."},{"$f":"IF('[1]REAL IMAE(M)'!BK202=\"\",\"\",'[1]REAL IMAE(M)'!BK202)","v":"n.d."},{"$f":"IF('[1]REAL IMAE(M)'!BN202=\"\",\"\",'[1]REAL IMAE(M)'!BN202)","v":"n.d."},{"$f":"IF('[1]REAL IMAE(M)'!BO202=\"\",\"\",'[1]REAL IMAE(M)'!BO202)","v":"n.d."},{"$f":"IF('[1]EXT RIN(M)'!$K202=\"\",\"\",'[1]EXT RIN(M)'!$K202)","v":12574.826265853762},"",{"$f":"IF('[1]EXT RIN(M)'!$L202=\"\",\"\",'[1]EXT RIN(M)'!$L202)","v":13782.379440133562},"",{"$f":"IF('[1]MONE(M)CARD'!EG202=\"\",\"\",'[1]MONE(M)CARD'!EG202)","v":12175.20358656445},{"$f":"IF('[1]MONE(M)CARD'!EK202=\"\",\"\",'[1]MONE(M)CARD'!EK202)","v":23689.676763946205},{"$f":"IF('[1]MONE(M)CARD'!EP202=\"\",\"\",'[1]MONE(M)CARD'!EP202)","v":13044.390449990206},{"$f":"IF('[1]MONE(M)CARD'!ES202=\"\",\"\",'[1]MONE(M)CARD'!ES202)","v":13.160915805175733},{"$f":"IF('[1]MONE(M)CARD'!EV202=\"\",\"\",'[1]MONE(M)CARD'!EV202)","v":5.9817614195611268},{"$f":"IF('[1]MONE(M)CARD'!EZ202=\"\",\"\",'[1]MONE(M)CARD'!EZ202)","v":6.579861134484366},{"$f":"IF('[1]MONE(M)CAPARD'!FC202=\"\",\"\",'[1]MONE(M)CAPARD'!FC202)","v":13943.02831259445},{"$f":"IF('[1]MONE(M)CAPARD'!FG202=\"\",\"\",'[1]MONE(M)CAPARD'!FG202)","v":33928.328450786204},{"$f":"IF('[1]MONE(M)CAPARD'!FL202=\"\",\"\",'[1]MONE(M)CAPARD'!FL202)","v":13044.390449990213},{"$f":"IF('[1]MONE(M)CAPARD'!FO202=\"\",\"\",'[1]MONE(M)CAPARD'!FO202)","v":13.532380037496793},{"$f":"IF('[1]MONE(M)CAPARD'!FR202=\"\",\"\",'[1]MONE(M)CAPARD'!FR202)","v":6.4438509157471513},{"$f":"IF('[1]MONE(M)CAPARD'!FV202=\"\",\"\",'[1]MONE(M)CAPARD'!FV202)","v":6.8275392486227382},{"$f":"IF('[1]MONE(M)CARD'!FV202=\"\",\"\",'[1]MONE(M)CARD'!FV202)","v":1138.2662547012324},{"$f":"IF('[1]MONE(M)CARD'!GD202=\"\",\"\",'[1]MONE(M)CARD'!GD202)","v":45.549179614752134},{"$f":"IF('[1]MONE(M)CARD'!GE202=\"\",\"\",'[1]MONE(M)CARD'!GE202)","v":3914.9080644673631},26.651997602088628,{"$f":"IF('[9]II.2.Balance OSD-Activos'!J60=\"\",\"\",'[9]II.2.Balance OSD-Activos'!J60)","v":203.42940188684679},{"$f":"IF('[9]II.2.Balance OSD-Activos'!N60=\"\",\"\",'[9]II.2.Balance OSD-Activos'!N60)","v":237.33585176749469},{"$f":"IF('[9]II.2.Balance OSD-Activos'!R60=\"\",\"\",'[9]II.2.Balance OSD-Activos'!R60)","v":14678.756379432374},{"$f":"IF('[9]II.2.Balance OSD-Activos'!S60=\"\",\"\",'[9]II.2.Balance OSD-Activos'!S60)","v":16737.347499318392},14882.185781319222,31856.869132405107,11.501192128524229,25.85393400187932,102.79825128327458,26.078850889483096,-0.84331913749162712,10.530868354081546,-1.1274964288936928,{"$f":"IF('[1]MONE(M)CAPARD'!GS202=\"\",\"\",'[1]MONE(M)CAPARD'!GS202)","v":6530.1436957813994},{"$f":"IF('[1]MONE(M)CARD'!HA202=\"\",\"\",'[1]MONE(M)CAPARD'!HA202)","v":4196.4457309373638},{"$f":"IF('[1]MONE(M)CAPARD'!HB202=\"\",\"\",'[1]MONE(M)CAPARD'!HB202)","v":2333.6979648440356},"n.d.",{"$f":"IF('[10]II.2.Balance OSD-Activos'!J60=\"\",\"\",'[10]II.2.Balance OSD-Activos'!J60)","v":418.95111720684673},{"$f":"IF('[10]II.2.Balance OSD-Activos'!N60=\"\",\"\",'[10]II.2.Balance OSD-Activos'!N60)","v":628.86218216749478},{"$f":"IF('[10]II.2.Balance OSD-Activos'!R60=\"\",\"\",'[10]II.2.Balance OSD-Activos'!R60)","v":20811.412699122375},{"$f":"IF('[10]II.2.Balance OSD-Activos'!S60=\"\",\"\",'[10]II.2.Balance OSD-Activos'!S60)","v":22733.948684598392},21230.36381632922,44593.174683095109,-18.925895258214076,22.477976809885902,22.407445843498785,23.750209440433821,3.3291921137997393,11.904683502365687,-0.57906502252560443,{"$f":"IF('[1]MONE(M)CAPARD'!AS202=\"\",\"\",'[1]MONE(M)CAPARD'!AS202)","v":"n.d."},{"$f":"IF('[1]MONE(M)CAPARD'!AT202=\"\",\"\",'[1]MONE(M)CAPARD'!AT202)","v":"n.a."},{"$f":"IF('[1]MONE(M)CAPARD'!AU202=\"\",\"\",'[1]MONE(M)CAPARD'!AU202)","v":4.25},{"$f":"IF('[1]MONE(M)CAPARD'!AV202=\"\",\"\",'[1]MONE(M)CAPARD'!AV202)","v":7},{"$f":"IF('[1]MONE(M)CAPARD'!AW202=\"\",\"\",'[1]MONE(M)CAPARD'!AW202)","v":"n.a."},{"$f":"IF('[1]MONE(M)CAPARD'!AX202=\"\",\"\",'[1]MONE(M)CAPARD'!AX202)","v":10},{"$f":"IF('[1]MONE(M)CAPARD'!AY202=\"\",\"\",'[1]MONE(M)CAPARD'!AY202)","v":"n.a."},{"$f":"IF('[1]FISCAL(M)'!$K202=\"\",\"\",'[1]FISCAL(M)'!$K202)","v":110.15959957907717},{"$f":"IF('[1]FISCAL(M)'!$L202=\"\",\"\",'[1]FISCAL(M)'!$L202)","v":162.88267670907726},{"$f":"IF('[1]FISCAL(M)'!$AY202=\"\",\"\",'[1]FISCAL(M)'!$AY202)","v":"n.d."},{"$f":"IF('[1]FISCAL(M)'!$BI202=\"\",\"\",'[1]FISCAL(M)'!$BI202)","v":"n.d."},{"$f":"IF('[1]FISCAL(M)'!$BS202=\"\",\"\",'[1]FISCAL(M)'!$BS202)","v":"n.d."},{"$f":"IF('[1]FISCAL(M)'!$AZ202=\"\",\"\",'[1]FISCAL(M)'!$AZ202)","v":"n.d."},{"$f":"IF('[1]FISCAL(M)'!$BJ202=\"\",\"\",'[1]FISCAL(M)'!$BJ202)","v":"n.d."},{"$f":"IF('[1]FISCAL(M)'!$BT202=\"\",\"\",'[1]FISCAL(M)'!$BT202)","v":"n.d."},{"$f":"IF('[2]MONE(M)'!$AO202=\"\",\"\",'[2]MONE(M)'!$AO202)","v":3495870.0193156349},{"$f":"IF('[3]MONE(M)'!$AO202=\"\",\"\",'[3]MONE(M)'!$AO202)","v":7525.5795430471435},{"$f":"IF('[4]MONE(M)'!$AO202=\"\",\"\",'[4]MONE(M)'!$AO202)","v":56440.24675633778},{"$f":"+'[5]MONE(M)'!$AO202","v":73528.739460127894},{"$f":"IF('[6]MONE(M)'!$AO202=\"\",\"\",'[6]MONE(M)'!$AO202)","v":24626.978584329707},{"$f":"IF('[7]MONE(M)'!$AO202=\"\",\"\",'[7]MONE(M)'!$AO202)","v":200863.452326},{"$f":"IF('[8]MONE(M)'!$AO202=\"\",\"\",'[8]MONE(M)'!$AO202)","v":12721.846796449998},28.663359416032286,10.056744831538357,5.5704972052809554,18.897940444016182,33.219639618913476,15.191353953505837,18.007091781691955,{"$f":"IF('[1]FISCAL(M)'!$K202=\"\",\"\",'[1]FISCAL(M)'!$K202)","v":110.15959957907717},{"$f":"+'[1]REAL(A)'!$AO$26","v":125760.26827524658},{"$f":"IF(OR(CM195=\"n.d.\",CM195=\"\",CN195=\"\",CN195=\"n.d.\"),\"n.d.\",(CM195/CN195)*100)","v":8.7594914586199168E-2},{"$f":"IF('[1]FISCAL(M)'!$L202=\"\",\"\",'[1]FISCAL(M)'!$L202)","v":162.88267670907726},{"$f":"+'[1]REAL(A)'!$AP$26","v":"n.d."},"n.d.",{"$f":"+CT195+CU195+CV195","v":48756.21001387162},{"$f":"'[1]Gráfico REM'!BG196","v":11846.879790310279},{"$f":"'[1]Gráfico REM'!BH196","v":33099.71782770117},{"$f":"'[1]Gráfico REM'!BI196","v":3809.6123958601665},"n.d.",2.3262365502559446,9.7647302473400579,52.190901181975136,{"$f":"+DB195+DC195+DD195","v":70324.607526131615},{"$f":"'[1]Gráfico REM'!BK196","v":12344.776753750279},{"$f":"'[1]Gráfico REM'!BL196","v":45821.564624151171},{"$f":"'[1]Gráfico REM'!BM196","v":12158.266148230166},"n.d.",2.1193095066806666,11.935387258444031,22.654521045122355]
[2006,"febrero",{"$f":"A196&\"-\"&B196","v":"2006-febrero"},{"$f":"IF('[1]REAL IPC(M)'!$AL203=\"\",\"\",+'[1]REAL IPC(M)'!$AL203)","v":8.0209261249128527},{"$f":"IF('[1]REAL IPC(M)'!$BE203=\"\",\"\",+'[1]REAL IPC(M)'!$BE203)","v":9.3633455777881061},{"$f":"IF('[1]REAL IPC(M)'!$AM203=\"\",\"\",+'[1]REAL IPC(M)'!$AM203)","v":7.4558258966897606},{"$f":"IF('[1]REAL IPC(M)'!$BI203=\"\",\"\",+'[1]REAL IPC(M)'!$BI203)","v":8.6999748636555019},{"$f":"IF('[1]REAL IMAE(M)'!BJ203=\"\",\"\",'[1]REAL IMAE(M)'!BJ203)","v":"n.d."},{"$f":"IF('[1]REAL IMAE(M)'!BK203=\"\",\"\",'[1]REAL IMAE(M)'!BK203)","v":"n.d."},{"$f":"IF('[1]REAL IMAE(M)'!BN203=\"\",\"\",'[1]REAL IMAE(M)'!BN203)","v":"n.d."},{"$f":"IF('[1]REAL IMAE(M)'!BO203=\"\",\"\",'[1]REAL IMAE(M)'!BO203)","v":"n.d."},{"$f":"IF('[1]EXT RIN(M)'!$K203=\"\",\"\",'[1]EXT RIN(M)'!$K203)","v":12803.313186735255},{"$f":"IF(B196<>\"diciembre\",\"\",L196)","v":""},{"$f":"IF('[1]EXT RIN(M)'!$L203=\"\",\"\",'[1]EXT RIN(M)'!$L203)","v":13916.743114808014},{"$f":"IF(B196<>\"diciembre\",\"\",N196)","v":""},{"$f":"IF('[1]MONE(M)CARD'!EG203=\"\",\"\",'[1]MONE(M)CARD'!EG203)","v":12169.368829467594},{"$f":"IF('[1]MONE(M)CARD'!EK203=\"\",\"\",'[1]MONE(M)CARD'!EK203)","v":24466.728288890125},{"$f":"IF('[1]MONE(M)CARD'!EP203=\"\",\"\",'[1]MONE(M)CARD'!EP203)","v":13188.509489730459},{"$f":"IF('[1]MONE(M)CARD'!ES203=\"\",\"\",'[1]MONE(M)CARD'!ES203)","v":13.025691754104439},{"$f":"IF('[1]MONE(M)CARD'!EV203=\"\",\"\",'[1]MONE(M)CARD'!EV203)","v":6.6914334718147117},{"$f":"IF('[1]MONE(M)CARD'!EZ203=\"\",\"\",'[1]MONE(M)CARD'!EZ203)","v":6.890945454206987},{"$f":"IF('[1]MONE(M)CAPARD'!FC203=\"\",\"\",'[1]MONE(M)CAPARD'!FC203)","v":13958.419958977594},{"$f":"IF('[1]MONE(M)CAPARD'!FG203=\"\",\"\",'[1]MONE(M)CAPARD'!FG203)","v":34829.997203170118},{"$f":"IF('[1]MONE(M)CAPARD'!FL203=\"\",\"\",'[1]MONE(M)CAPARD'!FL203)","v":13188.509489730459},{"$f":"IF('[1]MONE(M)CAPARD'!FO203=\"\",\"\",'[1]MONE(M)CAPARD'!FO203)","v":13.261770443275811},{"$f":"IF('[1]MONE(M)CAPARD'!FR203=\"\",\"\",'[1]MONE(M)CAPARD'!FR203)","v":6.8861520621841255},{"$f":"IF('[1]MONE(M)CAPARD'!FV203=\"\",\"\",'[1]MONE(M)CAPARD'!FV203)","v":7.0054514619050545},{"$f":"IF('[1]MONE(M)CARD'!FV203=\"\",\"\",'[1]MONE(M)CARD'!FV203)","v":1164.0027710000413},{"$f":"IF('[1]MONE(M)CARD'!GD203=\"\",\"\",'[1]MONE(M)CARD'!GD203)","v":49.775745892612832},{"$f":"IF('[1]MONE(M)CARD'!GE203=\"\",\"\",'[1]MONE(M)CARD'!GE203)","v":3944.067166110875},16.56147558448491,{"$f":"IF('[9]II.2.Balance OSD-Activos'!J61=\"\",\"\",'[9]II.2.Balance OSD-Activos'!J61)","v":226.79433523876745},{"$f":"IF('[9]II.2.Balance OSD-Activos'!N61=\"\",\"\",'[9]II.2.Balance OSD-Activos'!N61)","v":247.30131163373213},{"$f":"IF('[9]II.2.Balance OSD-Activos'!R61=\"\",\"\",'[9]II.2.Balance OSD-Activos'!R61)","v":14911.837649498093},{"$f":"IF('[9]II.2.Balance OSD-Activos'!S61=\"\",\"\",'[9]II.2.Balance OSD-Activos'!S61)","v":17051.862908161915},15138.631984736861,32437.796204532508,32.052154752025011,28.482756446163936,110.25083581663493,28.42995851574608,-0.26082269320839568,11.867222295039603,1.3363539409580572,{"$f":"IF('[1]MONE(M)CAPARD'!GS203=\"\",\"\",'[1]MONE(M)CAPARD'!GS203)","v":6471.828732547996},{"$f":"IF('[1]MONE(M)CARD'!HA203=\"\",\"\",'[1]MONE(M)CAPARD'!HA203)","v":4226.3271946608738},{"$f":"IF('[1]MONE(M)CAPARD'!HB203=\"\",\"\",'[1]MONE(M)CAPARD'!HB203)","v":2245.5015378871221},"n.d.",{"$f":"IF('[10]II.2.Balance OSD-Activos'!J61=\"\",\"\",'[10]II.2.Balance OSD-Activos'!J61)","v":444.89470530876747},{"$f":"IF('[10]II.2.Balance OSD-Activos'!N61=\"\",\"\",'[10]II.2.Balance OSD-Activos'!N61)","v":645.61294898373228},{"$f":"IF('[10]II.2.Balance OSD-Activos'!R61=\"\",\"\",'[10]II.2.Balance OSD-Activos'!R61)","v":21039.232695358092},{"$f":"IF('[10]II.2.Balance OSD-Activos'!S61=\"\",\"\",'[10]II.2.Balance OSD-Activos'!S61)","v":23123.636891501912},21484.127400666861,45253.377241152506,-12.347164968705005,23.989180330904048,26.046585566278146,25.085684344570858,3.8105164634445687,12.810598847732457,0.9059153453667701,{"$f":"IF('[1]MONE(M)CAPARD'!AS203=\"\",\"\",'[1]MONE(M)CAPARD'!AS203)","v":"n.d."},{"$f":"IF('[1]MONE(M)CAPARD'!AT203=\"\",\"\",'[1]MONE(M)CAPARD'!AT203)","v":"n.a."},{"$f":"IF('[1]MONE(M)CAPARD'!AU203=\"\",\"\",'[1]MONE(M)CAPARD'!AU203)","v":4.25},{"$f":"IF('[1]MONE(M)CAPARD'!AV203=\"\",\"\",'[1]MONE(M)CAPARD'!AV203)","v":7},{"$f":"IF('[1]MONE(M)CAPARD'!AW203=\"\",\"\",'[1]MONE(M)CAPARD'!AW203)","v":"n.a."},{"$f":"IF('[1]MONE(M)CAPARD'!AX203=\"\",\"\",'[1]MONE(M)CAPARD'!AX203)","v":10},{"$f":"IF('[1]MONE(M)CAPARD'!AY203=\"\",\"\",'[1]MONE(M)CAPARD'!AY203)","v":"n.a."},{"$f":"IF('[1]FISCAL(M)'!$K203=\"\",\"\",'[1]FISCAL(M)'!$K203)","v":-77.312917844041692},{"$f":"IF('[1]FISCAL(M)'!$L203=\"\",\"\",'[1]FISCAL(M)'!$L203)","v":-161.50194122404173},{"$f":"IF('[1]FISCAL(M)'!$AY203=\"\",\"\",'[1]FISCAL(M)'!$AY203)","v":"n.d."},{"$f":"IF('[1]FISCAL(M)'!$BI203=\"\",\"\",'[1]FISCAL(M)'!$BI203)","v":"n.d."},{"$f":"IF('[1]FISCAL(M)'!$BS203=\"\",\"\",'[1]FISCAL(M)'!$BS203)","v":"n.d."},{"$f":"IF('[1]FISCAL(M)'!$AZ203=\"\",\"\",'[1]FISCAL(M)'!$AZ203)","v":"n.d."},{"$f":"IF('[1]FISCAL(M)'!$BJ203=\"\",\"\",'[1]FISCAL(M)'!$BJ203)","v":"n.d."},{"$f":"IF('[1]FISCAL(M)'!$BT203=\"\",\"\",'[1]FISCAL(M)'!$BT203)","v":"n.d."},{"$f":"IF('[2]MONE(M)'!$AO203=\"\",\"\",'[2]MONE(M)'!$AO203)","v":3529148.5497338674},{"$f":"IF('[3]MONE(M)'!$AO203=\"\",\"\",'[3]MONE(M)'!$AO203)","v":7595.012520387143},{"$f":"IF('[4]MONE(M)'!$AO203=\"\",\"\",'[4]MONE(M)'!$AO203)","v":57258.815142582098},{"$f":"+'[5]MONE(M)'!$AO203","v":74776.785078442015},{"$f":"IF('[6]MONE(M)'!$AO203=\"\",\"\",'[6]MONE(M)'!$AO203)","v":25253.591314697071},{"$f":"IF('[7]MONE(M)'!$AO203=\"\",\"\",'[7]MONE(M)'!$AO203)","v":200327.37377900002},{"$f":"IF('[8]MONE(M)'!$AO203=\"\",\"\",'[8]MONE(M)'!$AO203)","v":12758.38250928},28.314985229658095,11.127324148385686,7.0601135588099773,19.072651696269148,35.861908009926658,15.161705146044335,17.320750903486658,{"$f":"IF('[1]FISCAL(M)'!$K203=\"\",\"\",'[1]FISCAL(M)'!$K203)","v":-77.312917844041692},{"$f":"+'[1]REAL(A)'!$AO$26","v":125760.26827524658},-6.1476425666355874E-2,{"$f":"IF('[1]FISCAL(M)'!$L203=\"\",\"\",'[1]FISCAL(M)'!$L203)","v":-161.50194122404173},{"$f":"+'[1]REAL(A)'!$AP$26","v":"n.d."},{"$f":"IF(OR(CP196=\"n.d.\",CP196=\"\",CQ196=\"\",CQ196=\"n.d.\"),\"n.d.\",(CP196/CQ196)*100)","v":"n.d."},49237.897320887874,{"$f":"'[1]Gráfico REM'!BG197","v":11748.271925516201},{"$f":"'[1]Gráfico REM'!BH197","v":33697.697792034473},{"$f":"'[1]Gráfico REM'!BI197","v":3791.9276033372007},"n.d.",0.67249049401558736,11.199491069972577,47.545492253417891,71003.293787717877,{"$f":"'[1]Gráfico REM'!BK197","v":12263.0530195762},{"$f":"'[1]Gráfico REM'!BL197","v":46456.080301314476},{"$f":"'[1]Gráfico REM'!BM197","v":12284.160466827201},"n.d.",0.73328948346740308,12.816043898882313,23.585533864334685]
[2006,"marzo","2006-marzo",{"$f":"IF('[1]REAL IPC(M)'!$AL204=\"\",\"\",+'[1]REAL IPC(M)'!$AL204)","v":7.9225719052587795},{"$f":"IF('[1]REAL IPC(M)'!$BE204=\"\",\"\",+'[1]REAL IPC(M)'!$BE204)","v":9.2230745362939395},{"$f":"IF('[1]REAL IPC(M)'!$AM204=\"\",\"\",+'[1]REAL IPC(M)'!$AM204)","v":7.3366346710709074},{"$f":"IF('[1]REAL IPC(M)'!$BI204=\"\",\"\",+'[1]REAL IPC(M)'!$BI204)","v":8.5759488783204283},{"$f":"IF('[1]REAL IMAE(M)'!BJ204=\"\",\"\",'[1]REAL IMAE(M)'!BJ204)","v":"n.d."},{"$f":"IF('[1]REAL IMAE(M)'!BK204=\"\",\"\",'[1]REAL IMAE(M)'!BK204)","v":"n.d."},{"$f":"IF('[1]REAL IMAE(M)'!BN204=\"\",\"\",'[1]REAL IMAE(M)'!BN204)","v":"n.d."},{"$f":"IF('[1]REAL IMAE(M)'!BO204=\"\",\"\",'[1]REAL IMAE(M)'!BO204)","v":"n.d."},{"$f":"IF('[1]EXT RIN(M)'!$K204=\"\",\"\",'[1]EXT RIN(M)'!$K204)","v":13321.735690739448},"",{"$f":"IF('[1]EXT RIN(M)'!$L204=\"\",\"\",'[1]EXT RIN(M)'!$L204)","v":14458.959426737649},"",{"$f":"IF('[1]MONE(M)CARD'!EG204=\"\",\"\",'[1]MONE(M)CARD'!EG204)","v":12569.381398919395},{"$f":"IF('[1]MONE(M)CARD'!EK204=\"\",\"\",'[1]MONE(M)CARD'!EK204)","v":24910.615019156132},{"$f":"IF('[1]MONE(M)CARD'!EP204=\"\",\"\",'[1]MONE(M)CARD'!EP204)","v":13405.853675896462},{"$f":"IF('[1]MONE(M)CARD'!ES204=\"\",\"\",'[1]MONE(M)CARD'!ES204)","v":13.136573938658236},{"$f":"IF('[1]MONE(M)CARD'!EV204=\"\",\"\",'[1]MONE(M)CARD'!EV204)","v":6.1403955046355208},{"$f":"IF('[1]MONE(M)CARD'!EZ204=\"\",\"\",'[1]MONE(M)CARD'!EZ204)","v":6.3313946394881748},{"$f":"IF('[1]MONE(M)CAPARD'!FC204=\"\",\"\",'[1]MONE(M)CAPARD'!FC204)","v":14405.639755929398},{"$f":"IF('[1]MONE(M)CAPARD'!FG204=\"\",\"\",'[1]MONE(M)CAPARD'!FG204)","v":35394.370601676128},{"$f":"IF('[1]MONE(M)CAPARD'!FL204=\"\",\"\",'[1]MONE(M)CAPARD'!FL204)","v":13405.853675896455},{"$f":"IF('[1]MONE(M)CAPARD'!FO204=\"\",\"\",'[1]MONE(M)CAPARD'!FO204)","v":14.087752716413826},{"$f":"IF('[1]MONE(M)CAPARD'!FR204=\"\",\"\",'[1]MONE(M)CAPARD'!FR204)","v":7.1144520576880144},{"$f":"IF('[1]MONE(M)CAPARD'!FV204=\"\",\"\",'[1]MONE(M)CAPARD'!FV204)","v":7.0623095730304897},{"$f":"IF('[1]MONE(M)CARD'!FV204=\"\",\"\",'[1]MONE(M)CARD'!FV204)","v":1224.2638077712381},{"$f":"IF('[1]MONE(M)CARD'!GD204=\"\",\"\",'[1]MONE(M)CARD'!GD204)","v":34.551969362918513},{"$f":"IF('[1]MONE(M)CARD'!GE204=\"\",\"\",'[1]MONE(M)CARD'!GE204)","v":4321.4852183164594},27.070923928691016,{"$f":"IF('[9]II.2.Balance OSD-Activos'!J62=\"\",\"\",'[9]II.2.Balance OSD-Activos'!J62)","v":172.3347445476781},{"$f":"IF('[9]II.2.Balance OSD-Activos'!N62=\"\",\"\",'[9]II.2.Balance OSD-Activos'!N62)","v":248.97260385751269},{"$f":"IF('[9]II.2.Balance OSD-Activos'!R62=\"\",\"\",'[9]II.2.Balance OSD-Activos'!R62)","v":15142.984463300938},{"$f":"IF('[9]II.2.Balance OSD-Activos'!S62=\"\",\"\",'[9]II.2.Balance OSD-Activos'!S62)","v":17397.2560955138},15315.319207848615,32961.54790721993,-8.7202104782941099,29.318690777658851,106.64054682992416,29.934917570745689,-7.2326398361288735E-2,12.21557456901925,0.3483522739796463,{"$f":"IF('[1]MONE(M)CAPARD'!GS204=\"\",\"\",'[1]MONE(M)CAPARD'!GS204)","v":6647.6631988338831},{"$f":"IF('[1]MONE(M)CARD'!HA204=\"\",\"\",'[1]MONE(M)CAPARD'!HA204)","v":4604.4145390264603},{"$f":"IF('[1]MONE(M)CAPARD'!HB204=\"\",\"\",'[1]MONE(M)CAPARD'!HB204)","v":2043.2486598074229},"n.d.",{"$f":"IF('[10]II.2.Balance OSD-Activos'!J62=\"\",\"\",'[10]II.2.Balance OSD-Activos'!J62)","v":435.2347602676781},{"$f":"IF('[10]II.2.Balance OSD-Activos'!N62=\"\",\"\",'[10]II.2.Balance OSD-Activos'!N62)","v":661.96317126751262},{"$f":"IF('[10]II.2.Balance OSD-Activos'!R62=\"\",\"\",'[10]II.2.Balance OSD-Activos'!R62)","v":21308.804662910938},{"$f":"IF('[10]II.2.Balance OSD-Activos'!S62=\"\",\"\",'[10]II.2.Balance OSD-Activos'!S62)","v":23539.0695225038},21744.039423178616,45945.07211694993,-2.2827410266140991,24.398236352927839,37.456495235604812,25.095886956168577,3.8673308664614492,13.099487768038752,0.2888889203062952,{"$f":"IF('[1]MONE(M)CAPARD'!AS204=\"\",\"\",'[1]MONE(M)CAPARD'!AS204)","v":8.51},{"$f":"IF('[1]MONE(M)CAPARD'!AT204=\"\",\"\",'[1]MONE(M)CAPARD'!AT204)","v":"n.a."},{"$f":"IF('[1]MONE(M)CAPARD'!AU204=\"\",\"\",'[1]MONE(M)CAPARD'!AU204)","v":4.25},{"$f":"IF('[1]MONE(M)CAPARD'!AV204=\"\",\"\",'[1]MONE(M)CAPARD'!AV204)","v":6.75},{"$f":"IF('[1]MONE(M)CAPARD'!AW204=\"\",\"\",'[1]MONE(M)CAPARD'!AW204)","v":"n.a."},{"$f":"IF('[1]MONE(M)CAPARD'!AX204=\"\",\"\",'[1]MONE(M)CAPARD'!AX204)","v":10},{"$f":"IF('[1]MONE(M)CAPARD'!AY204=\"\",\"\",'[1]MONE(M)CAPARD'!AY204)","v":"n.a."},{"$f":"IF('[1]FISCAL(M)'!$K204=\"\",\"\",'[1]FISCAL(M)'!$K204)","v":-211.65623819985521},{"$f":"IF('[1]FISCAL(M)'!$L204=\"\",\"\",'[1]FISCAL(M)'!$L204)","v":-139.78579145685509},{"$f":"IF('[1]FISCAL(M)'!$AY204=\"\",\"\",'[1]FISCAL(M)'!$AY204)","v":"n.d."},{"$f":"IF('[1]FISCAL(M)'!$BI204=\"\",\"\",'[1]FISCAL(M)'!$BI204)","v":"n.d."},{"$f":"IF('[1]FISCAL(M)'!$BS204=\"\",\"\",'[1]FISCAL(M)'!$BS204)","v":29018.559999999998},{"$f":"IF('[1]FISCAL(M)'!$AZ204=\"\",\"\",'[1]FISCAL(M)'!$AZ204)","v":"n.d."},{"$f":"IF('[1]FISCAL(M)'!$BJ204=\"\",\"\",'[1]FISCAL(M)'!$BJ204)","v":"n.d."},{"$f":"IF('[1]FISCAL(M)'!$BT204=\"\",\"\",'[1]FISCAL(M)'!$BT204)","v":36930.169925500006},{"$f":"IF('[2]MONE(M)'!$AO204=\"\",\"\",'[2]MONE(M)'!$AO204)","v":3619163.4780797553},{"$f":"IF('[3]MONE(M)'!$AO204=\"\",\"\",'[3]MONE(M)'!$AO204)","v":7641.4495203871438},{"$f":"IF('[4]MONE(M)'!$AO204=\"\",\"\",'[4]MONE(M)'!$AO204)","v":58254.997375256207},{"$f":"+'[5]MONE(M)'!$AO204","v":76416.711020273593},{"$f":"IF('[6]MONE(M)'!$AO204=\"\",\"\",'[6]MONE(M)'!$AO204)","v":25881.245450890543},{"$f":"IF('[7]MONE(M)'!$AO204=\"\",\"\",'[7]MONE(M)'!$AO204)","v":201544.99035599999},{"$f":"IF('[8]MONE(M)'!$AO204=\"\",\"\",'[8]MONE(M)'!$AO204)","v":12896.164344569999},28.531391372747095,10.922799190821063,8.2393467364412878,21.229670591680438,34.888310903525891,18.195251345727016,17.031070937013769,{"$f":"IF('[1]FISCAL(M)'!$K204=\"\",\"\",'[1]FISCAL(M)'!$K204)","v":-211.65623819985521},{"$f":"+'[1]REAL(A)'!$AO$26","v":125760.26827524658},-0.16830135710001148,{"$f":"IF('[1]FISCAL(M)'!$L204=\"\",\"\",'[1]FISCAL(M)'!$L204)","v":-139.78579145685509},{"$f":"+'[1]REAL(A)'!$AP$26","v":"n.d."},"n.d.",50234.823334956607,{"$f":"'[1]Gráfico REM'!BG198","v":12009.435994722684},{"$f":"'[1]Gráfico REM'!BH198","v":34245.676230331766},{"$f":"'[1]Gráfico REM'!BI198","v":3979.7111099021586},"n.d.",-0.18747568577544005,11.547525776454904,52.88948067581407,72365.555972197617,{"$f":"'[1]Gráfico REM'!BK198","v":12519.827177357683},{"$f":"'[1]Gráfico REM'!BL198","v":47141.840574901769},{"$f":"'[1]Gráfico REM'!BM198","v":12703.888219938157},"n.d.",-0.31012363228328788,12.995887054142298,29.649598347650731]
[2006,"abril","2006-abril",{"$f":"IF('[1]REAL IPC(M)'!$AL205=\"\",\"\",+'[1]REAL IPC(M)'!$AL205)","v":7.9419033299928943},{"$f":"IF('[1]REAL IPC(M)'!$BE205=\"\",\"\",+'[1]REAL IPC(M)'!$BE205)","v":9.0907614245850255},{"$f":"IF('[1]REAL IPC(M)'!$AM205=\"\",\"\",+'[1]REAL IPC(M)'!$AM205)","v":7.4403267312141086},{"$f":"IF('[1]REAL IPC(M)'!$BI205=\"\",\"\",+'[1]REAL IPC(M)'!$BI205)","v":8.4602394452202745},{"$f":"IF('[1]REAL IMAE(M)'!BJ205=\"\",\"\",'[1]REAL IMAE(M)'!BJ205)","v":"n.d."},{"$f":"IF('[1]REAL IMAE(M)'!BK205=\"\",\"\",'[1]REAL IMAE(M)'!BK205)","v":"n.d."},{"$f":"IF('[1]REAL IMAE(M)'!BN205=\"\",\"\",'[1]REAL IMAE(M)'!BN205)","v":"n.d."},{"$f":"IF('[1]REAL IMAE(M)'!BO205=\"\",\"\",'[1]REAL IMAE(M)'!BO205)","v":"n.d."},{"$f":"IF('[1]EXT RIN(M)'!$K205=\"\",\"\",'[1]EXT RIN(M)'!$K205)","v":13894.785117032368},"",{"$f":"IF('[1]EXT RIN(M)'!$L205=\"\",\"\",'[1]EXT RIN(M)'!$L205)","v":15001.712976087449},"",{"$f":"IF('[1]MONE(M)CARD'!EG205=\"\",\"\",'[1]MONE(M)CARD'!EG205)","v":12667.257692253243},{"$f":"IF('[1]MONE(M)CARD'!EK205=\"\",\"\",'[1]MONE(M)CARD'!EK205)","v":25182.943110418168},{"$f":"IF('[1]MONE(M)CARD'!EP205=\"\",\"\",'[1]MONE(M)CARD'!EP205)","v":13581.577125569485},{"$f":"IF('[1]MONE(M)CARD'!ES205=\"\",\"\",'[1]MONE(M)CARD'!ES205)","v":14.730869451484452},{"$f":"IF('[1]MONE(M)CARD'!EV205=\"\",\"\",'[1]MONE(M)CARD'!EV205)","v":7.9183588329824861},{"$f":"IF('[1]MONE(M)CARD'!EZ205=\"\",\"\",'[1]MONE(M)CARD'!EZ205)","v":7.6497003839310684},{"$f":"IF('[1]MONE(M)CAPARD'!FC205=\"\",\"\",'[1]MONE(M)CAPARD'!FC205)","v":14495.55436435324},{"$f":"IF('[1]MONE(M)CAPARD'!FG205=\"\",\"\",'[1]MONE(M)CAPARD'!FG205)","v":35841.484165258167},{"$f":"IF('[1]MONE(M)CAPARD'!FL205=\"\",\"\",'[1]MONE(M)CAPARD'!FL205)","v":13581.577125569485},{"$f":"IF('[1]MONE(M)CAPARD'!FO205=\"\",\"\",'[1]MONE(M)CAPARD'!FO205)","v":15.300480202042976},{"$f":"IF('[1]MONE(M)CAPARD'!FR205=\"\",\"\",'[1]MONE(M)CAPARD'!FR205)","v":8.8756755567370504},{"$f":"IF('[1]MONE(M)CAPARD'!FV205=\"\",\"\",'[1]MONE(M)CAPARD'!FV205)","v":8.451540951794545},{"$f":"IF('[1]MONE(M)CARD'!FV205=\"\",\"\",'[1]MONE(M)CARD'!FV205)","v":1247.5804203226439},{"$f":"IF('[1]MONE(M)CARD'!GD205=\"\",\"\",'[1]MONE(M)CARD'!GD205)","v":87.916986981946877},{"$f":"IF('[1]MONE(M)CARD'!GE205=\"\",\"\",'[1]MONE(M)CARD'!GE205)","v":4505.6555876035191},25.648616853095497,{"$f":"IF('[9]II.2.Balance OSD-Activos'!J63=\"\",\"\",'[9]II.2.Balance OSD-Activos'!J63)","v":168.97353862364668},{"$f":"IF('[9]II.2.Balance OSD-Activos'!N63=\"\",\"\",'[9]II.2.Balance OSD-Activos'!N63)","v":260.71105374377009},{"$f":"IF('[9]II.2.Balance OSD-Activos'!R63=\"\",\"\",'[9]II.2.Balance OSD-Activos'!R63)","v":15399.242612704913},{"$f":"IF('[9]II.2.Balance OSD-Activos'!S63=\"\",\"\",'[9]II.2.Balance OSD-Activos'!S63)","v":17659.483670845722},15568.216151328559,33488.410875918053,-13.757309505833494,31.944360983661536,113.84499200553458,32.716068309810886,0.71680199228576491,13.694264712119942,1.4786901431006925,{"$f":"IF('[1]MONE(M)CAPARD'!GS205=\"\",\"\",'[1]MONE(M)CAPARD'!GS205)","v":6798.4315605109377},{"$f":"IF('[1]MONE(M)CARD'!HA205=\"\",\"\",'[1]MONE(M)CAPARD'!HA205)","v":4788.576912113519},{"$f":"IF('[1]MONE(M)CAPARD'!HB205=\"\",\"\",'[1]MONE(M)CAPARD'!HB205)","v":2009.8546483974187},"n.d.",{"$f":"IF('[10]II.2.Balance OSD-Activos'!J63=\"\",\"\",'[10]II.2.Balance OSD-Activos'!J63)","v":436.98398543364669},{"$f":"IF('[10]II.2.Balance OSD-Activos'!N63=\"\",\"\",'[10]II.2.Balance OSD-Activos'!N63)","v":675.88840266377008},{"$f":"IF('[10]II.2.Balance OSD-Activos'!R63=\"\",\"\",'[10]II.2.Balance OSD-Activos'!R63)","v":21654.550475704913},{"$f":"IF('[10]II.2.Balance OSD-Activos'!S63=\"\",\"\",'[10]II.2.Balance OSD-Activos'!S63)","v":23862.945718085724},22091.534461138559,46630.368581888055,2.7041840915036364,26.548157106335179,52.980485693701553,27.14382212498645,4.3028432517683957,14.353601281124595,1.2541135130858425,{"$f":"IF('[1]MONE(M)CAPARD'!AS205=\"\",\"\",'[1]MONE(M)CAPARD'!AS205)","v":8.51},{"$f":"IF('[1]MONE(M)CAPARD'!AT205=\"\",\"\",'[1]MONE(M)CAPARD'!AT205)","v":"n.a."},{"$f":"IF('[1]MONE(M)CAPARD'!AU205=\"\",\"\",'[1]MONE(M)CAPARD'!AU205)","v":4.5},{"$f":"IF('[1]MONE(M)CAPARD'!AV205=\"\",\"\",'[1]MONE(M)CAPARD'!AV205)","v":6.5},{"$f":"IF('[1]MONE(M)CAPARD'!AW205=\"\",\"\",'[1]MONE(M)CAPARD'!AW205)","v":"n.a."},{"$f":"IF('[1]MONE(M)CAPARD'!AX205=\"\",\"\",'[1]MONE(M)CAPARD'!AX205)","v":10},{"$f":"IF('[1]MONE(M)CAPARD'!AY205=\"\",\"\",'[1]MONE(M)CAPARD'!AY205)","v":"n.a."},{"$f":"IF('[1]FISCAL(M)'!$K205=\"\",\"\",'[1]FISCAL(M)'!$K205)","v":-81.770061772478272},{"$f":"IF('[1]FISCAL(M)'!$L205=\"\",\"\",'[1]FISCAL(M)'!$L205)","v":-16.855704059477972},{"$f":"IF('[1]FISCAL(M)'!$AY205=\"\",\"\",'[1]FISCAL(M)'!$AY205)","v":"n.d."},{"$f":"IF('[1]FISCAL(M)'!$BI205=\"\",\"\",'[1]FISCAL(M)'!$BI205)","v":"n.d."},{"$f":"IF('[1]FISCAL(M)'!$BS205=\"\",\"\",'[1]FISCAL(M)'!$BS205)","v":"n.d."},{"$f":"IF('[1]FISCAL(M)'!$AZ205=\"\",\"\",'[1]FISCAL(M)'!$AZ205)","v":"n.d."},{"$f":"IF('[1]FISCAL(M)'!$BJ205=\"\",\"\",'[1]FISCAL(M)'!$BJ205)","v":"n.d."},{"$f":"IF('[1]FISCAL(M)'!$BT205=\"\",\"\",'[1]FISCAL(M)'!$BT205)","v":"n.d."},{"$f":"IF('[2]MONE(M)'!$AO205=\"\",\"\",'[2]MONE(M)'!$AO205)","v":3675064.6117537757},{"$f":"IF('[3]MONE(M)'!$AO205=\"\",\"\",'[3]MONE(M)'!$AO205)","v":7723.7642431471431},{"$f":"IF('[4]MONE(M)'!$AO205=\"\",\"\",'[4]MONE(M)'!$AO205)","v":59120.053761321054},{"$f":"+'[5]MONE(M)'!$AO205","v":78453.171528608451},{"$f":"IF('[6]MONE(M)'!$AO205=\"\",\"\",'[6]MONE(M)'!$AO205)","v":26472.48384254142},{"$f":"IF('[7]MONE(M)'!$AO205=\"\",\"\",'[7]MONE(M)'!$AO205)","v":204492.66281200002},{"$f":"IF('[8]MONE(M)'!$AO205=\"\",\"\",'[8]MONE(M)'!$AO205)","v":13040.220975009999},28.427447143515483,11.40928258867806,7.9690601288370688,23.180124138490179,35.565596882865776,18.35592399818189,16.873481818690415,{"$f":"IF('[1]FISCAL(M)'!$K205=\"\",\"\",'[1]FISCAL(M)'!$K205)","v":-81.770061772478272},{"$f":"+'[1]REAL(A)'!$AO$26","v":125760.26827524658},-6.5020584715604568E-2,{"$f":"IF('[1]FISCAL(M)'!$L205=\"\",\"\",'[1]FISCAL(M)'!$L205)","v":-16.855704059477972},{"$f":"+'[1]REAL(A)'!$AP$26","v":"n.d."},"n.d.",50663.147501098611,{"$f":"'[1]Gráfico REM'!BG199","v":11792.387881785244},{"$f":"'[1]Gráfico REM'!BH199","v":34804.821360333619},{"$f":"'[1]Gráfico REM'!BI199","v":4065.9382589797465},"n.d.",-1.2450415713283314,12.816361004775633,49.229694922512039,72839.000212488609,{"$f":"'[1]Gráfico REM'!BK199","v":12286.396591115245},{"$f":"'[1]Gráfico REM'!BL199","v":47845.04233534362},{"$f":"'[1]Gráfico REM'!BM199","v":12707.561286029746},"n.d.",-1.6314241536858898,13.893943670611964,28.127966620961399]
[2006,"mayo ","2006-mayo ",{"$f":"IF('[1]REAL IPC(M)'!$AL206=\"\",\"\",+'[1]REAL IPC(M)'!$AL206)","v":8.204009315457661},{"$f":"IF('[1]REAL IPC(M)'!$BE206=\"\",\"\",+'[1]REAL IPC(M)'!$BE206)","v":8.9665495881442236},{"$f":"IF('[1]REAL IPC(M)'!$AM206=\"\",\"\",+'[1]REAL IPC(M)'!$AM206)","v":7.696528533602276},{"$f":"IF('[1]REAL IPC(M)'!$BI206=\"\",\"\",+'[1]REAL IPC(M)'!$BI206)","v":8.3530152635820532},{"$f":"IF('[1]REAL IMAE(M)'!BJ206=\"\",\"\",'[1]REAL IMAE(M)'!BJ206)","v":"n.d."},{"$f":"IF('[1]REAL IMAE(M)'!BK206=\"\",\"\",'[1]REAL IMAE(M)'!BK206)","v":"n.d."},{"$f":"IF('[1]REAL IMAE(M)'!BN206=\"\",\"\",'[1]REAL IMAE(M)'!BN206)","v":"n.d."},{"$f":"IF('[1]REAL IMAE(M)'!BO206=\"\",\"\",'[1]REAL IMAE(M)'!BO206)","v":"n.d."},{"$f":"IF('[1]EXT RIN(M)'!$K206=\"\",\"\",'[1]EXT RIN(M)'!$K206)","v":13735.546565379038},"",{"$f":"IF('[1]EXT RIN(M)'!$L206=\"\",\"\",'[1]EXT RIN(M)'!$L206)","v":14904.237773865498},"",{"$f":"IF('[1]MONE(M)CARD'!EG206=\"\",\"\",'[1]MONE(M)CARD'!EG206)","v":12480.405476862528},{"$f":"IF('[1]MONE(M)CARD'!EK206=\"\",\"\",'[1]MONE(M)CARD'!EK206)","v":25303.61846740621},{"$f":"IF('[1]MONE(M)CARD'!EP206=\"\",\"\",'[1]MONE(M)CARD'!EP206)","v":13743.685049422893},{"$f":"IF('[1]MONE(M)CARD'!ES206=\"\",\"\",'[1]MONE(M)CARD'!ES206)","v":14.273461288210655},{"$f":"IF('[1]MONE(M)CARD'!EV206=\"\",\"\",'[1]MONE(M)CARD'!EV206)","v":7.5405615168342877},{"$f":"IF('[1]MONE(M)CARD'!EZ206=\"\",\"\",'[1]MONE(M)CARD'!EZ206)","v":7.5398732539941449},{"$f":"IF('[1]MONE(M)CAPARD'!FC206=\"\",\"\",'[1]MONE(M)CAPARD'!FC206)","v":14353.051933752531},{"$f":"IF('[1]MONE(M)CAPARD'!FG206=\"\",\"\",'[1]MONE(M)CAPARD'!FG206)","v":36189.387101806205},{"$f":"IF('[1]MONE(M)CAPARD'!FL206=\"\",\"\",'[1]MONE(M)CAPARD'!FL206)","v":13743.685049422893},{"$f":"IF('[1]MONE(M)CAPARD'!FO206=\"\",\"\",'[1]MONE(M)CAPARD'!FO206)","v":15.265543802217628},{"$f":"IF('[1]MONE(M)CAPARD'!FR206=\"\",\"\",'[1]MONE(M)CAPARD'!FR206)","v":8.9971840476905651},{"$f":"IF('[1]MONE(M)CAPARD'!FV206=\"\",\"\",'[1]MONE(M)CAPARD'!FV206)","v":8.6819036292054452},{"$f":"IF('[1]MONE(M)CARD'!FV206=\"\",\"\",'[1]MONE(M)CARD'!FV206)","v":1267.9685581466122},{"$f":"IF('[1]MONE(M)CARD'!GD206=\"\",\"\",'[1]MONE(M)CARD'!GD206)","v":33.274669242895698},{"$f":"IF('[1]MONE(M)CARD'!GE206=\"\",\"\",'[1]MONE(M)CARD'!GE206)","v":4173.4081162460971},9.9212696721500571,{"$f":"IF('[9]II.2.Balance OSD-Activos'!J64=\"\",\"\",'[9]II.2.Balance OSD-Activos'!J64)","v":178.56072587738288},{"$f":"IF('[9]II.2.Balance OSD-Activos'!N64=\"\",\"\",'[9]II.2.Balance OSD-Activos'!N64)","v":278.74108180855916},{"$f":"IF('[9]II.2.Balance OSD-Activos'!R64=\"\",\"\",'[9]II.2.Balance OSD-Activos'!R64)","v":15461.761935475446},{"$f":"IF('[9]II.2.Balance OSD-Activos'!S64=\"\",\"\",'[9]II.2.Balance OSD-Activos'!S64)","v":17890.666492651857},{"$f":"IFERROR(+AF199+AH199,\"n.d.\")","v":15640.32266135283},33809.730235813244,-12.395338516134757,30.930600618280323,127.0202910490915,31.682702126747465,1.372377847014894,13.773305556097149,7.9040843977207231E-2,{"$f":"IF('[1]MONE(M)CAPARD'!GS206=\"\",\"\",'[1]MONE(M)CAPARD'!GS206)","v":6853.8939683974249},{"$f":"IF('[1]MONE(M)CARD'!HA206=\"\",\"\",'[1]MONE(M)CAPARD'!HA206)","v":4456.1093923460976},{"$f":"IF('[1]MONE(M)CAPARD'!HB206=\"\",\"\",'[1]MONE(M)CAPARD'!HB206)","v":2397.7845760513273},"n.d.",{"$f":"IF('[10]II.2.Balance OSD-Activos'!J64=\"\",\"\",'[10]II.2.Balance OSD-Activos'!J64)","v":448.3381648073829},{"$f":"IF('[10]II.2.Balance OSD-Activos'!N64=\"\",\"\",'[10]II.2.Balance OSD-Activos'!N64)","v":703.18084199855923},{"$f":"IF('[10]II.2.Balance OSD-Activos'!R64=\"\",\"\",'[10]II.2.Balance OSD-Activos'!R64)","v":21878.293268085446},{"$f":"IF('[10]II.2.Balance OSD-Activos'!S64=\"\",\"\",'[10]II.2.Balance OSD-Activos'!S64)","v":24154.381374641853},22326.631432892831,47184.193649533241,2.9280081464320595,25.999950179589781,48.182642331001958,26.581400682842649,4.7875429726188745,14.400051081791986,4.6449800667391017E-2,{"$f":"IF('[1]MONE(M)CAPARD'!AS206=\"\",\"\",'[1]MONE(M)CAPARD'!AS206)","v":8.51},{"$f":"IF('[1]MONE(M)CAPARD'!AT206=\"\",\"\",'[1]MONE(M)CAPARD'!AT206)","v":"n.a."},{"$f":"IF('[1]MONE(M)CAPARD'!AU206=\"\",\"\",'[1]MONE(M)CAPARD'!AU206)","v":4.5},{"$f":"IF('[1]MONE(M)CAPARD'!AV206=\"\",\"\",'[1]MONE(M)CAPARD'!AV206)","v":6.5},{"$f":"IF('[1]MONE(M)CAPARD'!AW206=\"\",\"\",'[1]MONE(M)CAPARD'!AW206)","v":"n.a."},{"$f":"IF('[1]MONE(M)CAPARD'!AX206=\"\",\"\",'[1]MONE(M)CAPARD'!AX206)","v":10},{"$f":"IF('[1]MONE(M)CAPARD'!AY206=\"\",\"\",'[1]MONE(M)CAPARD'!AY206)","v":"n.a."},{"$f":"IF('[1]FISCAL(M)'!$K206=\"\",\"\",'[1]FISCAL(M)'!$K206)","v":-4.1918626730869164},{"$f":"IF('[1]FISCAL(M)'!$L206=\"\",\"\",'[1]FISCAL(M)'!$L206)","v":24.450628469913454},{"$f":"IF('[1]FISCAL(M)'!$AY206=\"\",\"\",'[1]FISCAL(M)'!$AY206)","v":"n.d."},{"$f":"IF('[1]FISCAL(M)'!$BI206=\"\",\"\",'[1]FISCAL(M)'!$BI206)","v":"n.d."},{"$f":"IF('[1]FISCAL(M)'!$BS206=\"\",\"\",'[1]FISCAL(M)'!$BS206)","v":"n.d."},{"$f":"IF('[1]FISCAL(M)'!$AZ206=\"\",\"\",'[1]FISCAL(M)'!$AZ206)","v":"n.d."},{"$f":"IF('[1]FISCAL(M)'!$BJ206=\"\",\"\",'[1]FISCAL(M)'!$BJ206)","v":"n.d."},{"$f":"IF('[1]FISCAL(M)'!$BT206=\"\",\"\",'[1]FISCAL(M)'!$BT206)","v":"n.d."},{"$f":"IF('[2]MONE(M)'!$AO206=\"\",\"\",'[2]MONE(M)'!$AO206)","v":3776162.0792518761},{"$f":"IF('[3]MONE(M)'!$AO206=\"\",\"\",'[3]MONE(M)'!$AO206)","v":7732.6304125871429},{"$f":"IF('[4]MONE(M)'!$AO206=\"\",\"\",'[4]MONE(M)'!$AO206)","v":59529.508613859252},{"$f":"+'[5]MONE(M)'!$AO206","v":80234.818881439249},{"$f":"IF('[6]MONE(M)'!$AO206=\"\",\"\",'[6]MONE(M)'!$AO206)","v":26974.093116411885},{"$f":"IF('[7]MONE(M)'!$AO206=\"\",\"\",'[7]MONE(M)'!$AO206)","v":207989.4643704},{"$f":"IF('[8]MONE(M)'!$AO206=\"\",\"\",'[8]MONE(M)'!$AO206)","v":13249.534265180002},27.945206113279951,11.980956643146467,8.2071235896640218,24.987245255851832,33.524058722373653,18.751213604780361,16.843773745597513,{"$f":"IF('[1]FISCAL(M)'!$K206=\"\",\"\",'[1]FISCAL(M)'!$K206)","v":-4.1918626730869164},{"$f":"+'[1]REAL(A)'!$AO$26","v":125760.26827524658},-3.3332170251993659E-3,{"$f":"IF('[1]FISCAL(M)'!$L206=\"\",\"\",'[1]FISCAL(M)'!$L206)","v":24.450628469913454},{"$f":"+'[1]REAL(A)'!$AP$26","v":"n.d."},"n.d.",51269.019499329472,{"$f":"'[1]Gráfico REM'!BG200","v":11817.805841406429},{"$f":"'[1]Gráfico REM'!BH200","v":35126.384910513734},{"$f":"'[1]Gráfico REM'!BI200","v":4324.8287474093067},"n.d.",-0.33136125735540034,13.09525274297858,54.670679615391208,74119.246590219467,{"$f":"'[1]Gráfico REM'!BK200","v":12302.462367956428},{"$f":"'[1]Gráfico REM'!BL200","v":48375.919175693736},{"$f":"'[1]Gráfico REM'!BM200","v":13440.865046569306},"n.d.",-0.50895579412226777,14.097795746290508,35.866079488653966]
[2006,"junio ","2006-junio ",{"$f":"IF('[1]REAL IPC(M)'!$AL207=\"\",\"\",+'[1]REAL IPC(M)'!$AL207)","v":8.4962287346555865},{"$f":"IF('[1]REAL IPC(M)'!$BE207=\"\",\"\",+'[1]REAL IPC(M)'!$BE207)","v":8.850513957249273},{"$f":"IF('[1]REAL IPC(M)'!$AM207=\"\",\"\",+'[1]REAL IPC(M)'!$AM207)","v":7.9690082321204558},{"$f":"IF('[1]REAL IPC(M)'!$BI207=\"\",\"\",+'[1]REAL IPC(M)'!$BI207)","v":8.254374332849812},{"$f":"IF('[1]REAL IMAE(M)'!BJ207=\"\",\"\",'[1]REAL IMAE(M)'!BJ207)","v":"n.d."},{"$f":"IF('[1]REAL IMAE(M)'!BK207=\"\",\"\",'[1]REAL IMAE(M)'!BK207)","v":"n.d."},{"$f":"IF('[1]REAL IMAE(M)'!BN207=\"\",\"\",'[1]REAL IMAE(M)'!BN207)","v":"n.d."},{"$f":"IF('[1]REAL IMAE(M)'!BO207=\"\",\"\",'[1]REAL IMAE(M)'!BO207)","v":"n.d."},{"$f":"IF('[1]EXT RIN(M)'!$K207=\"\",\"\",'[1]EXT RIN(M)'!$K207)","v":13606.326108222192},"",{"$f":"IF('[1]EXT RIN(M)'!$L207=\"\",\"\",'[1]EXT RIN(M)'!$L207)","v":14812.873694357582},"",{"$f":"IF('[1]MONE(M)CARD'!EG207=\"\",\"\",'[1]MONE(M)CARD'!EG207)","v":12922.618091404727},{"$f":"IF('[1]MONE(M)CARD'!EK207=\"\",\"\",'[1]MONE(M)CARD'!EK207)","v":25349.397064542791},{"$f":"IF('[1]MONE(M)CARD'!EP207=\"\",\"\",'[1]MONE(M)CARD'!EP207)","v":13774.966884668509},{"$f":"IF('[1]MONE(M)CARD'!ES207=\"\",\"\",'[1]MONE(M)CARD'!ES207)","v":17.478930830258179},{"$f":"IF('[1]MONE(M)CARD'!EV207=\"\",\"\",'[1]MONE(M)CARD'!EV207)","v":7.8220741285442763},{"$f":"IF('[1]MONE(M)CARD'!EZ207=\"\",\"\",'[1]MONE(M)CARD'!EZ207)","v":7.6675729766878753},{"$f":"IF('[1]MONE(M)CAPARD'!FC207=\"\",\"\",'[1]MONE(M)CAPARD'!FC207)","v":14754.892629634727},{"$f":"IF('[1]MONE(M)CAPARD'!FG207=\"\",\"\",'[1]MONE(M)CAPARD'!FG207)","v":36432.232540692792},{"$f":"IF('[1]MONE(M)CAPARD'!FL207=\"\",\"\",'[1]MONE(M)CAPARD'!FL207)","v":13774.966884668509},{"$f":"IF('[1]MONE(M)CAPARD'!FO207=\"\",\"\",'[1]MONE(M)CAPARD'!FO207)","v":17.894391528351882},{"$f":"IF('[1]MONE(M)CAPARD'!FR207=\"\",\"\",'[1]MONE(M)CAPARD'!FR207)","v":9.4771182895694963},{"$f":"IF('[1]MONE(M)CAPARD'!FV207=\"\",\"\",'[1]MONE(M)CAPARD'!FV207)","v":8.9951197546173312},{"$f":"IF('[1]MONE(M)CARD'!FV207=\"\",\"\",'[1]MONE(M)CARD'!FV207)","v":1315.3983500996633},{"$f":"IF('[1]MONE(M)CARD'!GD207=\"\",\"\",'[1]MONE(M)CARD'!GD207)","v":93.824513735182435},{"$f":"IF('[1]MONE(M)CARD'!GE207=\"\",\"\",'[1]MONE(M)CARD'!GE207)","v":4175.5729380558832},13.642165149906127,{"$f":"IF('[9]II.2.Balance OSD-Activos'!J65=\"\",\"\",'[9]II.2.Balance OSD-Activos'!J65)","v":182.36339032383725},{"$f":"IF('[9]II.2.Balance OSD-Activos'!N65=\"\",\"\",'[9]II.2.Balance OSD-Activos'!N65)","v":298.42312783174702},{"$f":"IF('[9]II.2.Balance OSD-Activos'!R65=\"\",\"\",'[9]II.2.Balance OSD-Activos'!R65)","v":15335.969543481786},{"$f":"IF('[9]II.2.Balance OSD-Activos'!S65=\"\",\"\",'[9]II.2.Balance OSD-Activos'!S65)","v":18519.091430647488},15518.332933805623,34335.847492284855,-11.852320118818295,32.999922831575113,138.52572242316893,33.809553258398559,1.5986434548665107,14.373779938642084,0.60047438254493457,{"$f":"IF('[1]MONE(M)CAPARD'!GS207=\"\",\"\",'[1]MONE(M)CAPARD'!GS207)","v":6893.7916400976574},{"$f":"IF('[1]MONE(M)CARD'!HA207=\"\",\"\",'[1]MONE(M)CAPARD'!HA207)","v":4461.5189327858834},{"$f":"IF('[1]MONE(M)CAPARD'!HB207=\"\",\"\",'[1]MONE(M)CAPARD'!HB207)","v":2432.272707311774},"n.d.",{"$f":"IF('[10]II.2.Balance OSD-Activos'!J65=\"\",\"\",'[10]II.2.Balance OSD-Activos'!J65)","v":441.98915490383723},{"$f":"IF('[10]II.2.Balance OSD-Activos'!N65=\"\",\"\",'[10]II.2.Balance OSD-Activos'!N65)","v":756.98073467174709},{"$f":"IF('[10]II.2.Balance OSD-Activos'!R65=\"\",\"\",'[10]II.2.Balance OSD-Activos'!R65)","v":21916.913719611784},{"$f":"IF('[10]II.2.Balance OSD-Activos'!S65=\"\",\"\",'[10]II.2.Balance OSD-Activos'!S65)","v":24842.80856799749},22358.902874515621,47958.692177184857,6.6879244295595219,27.145118317420589,52.627358114665903,27.638684424894965,4.8166440569441527,14.781730398194458,0.38167931640247232,{"$f":"IF('[1]MONE(M)CAPARD'!AS207=\"\",\"\",'[1]MONE(M)CAPARD'!AS207)","v":8.51},{"$f":"IF('[1]MONE(M)CAPARD'!AT207=\"\",\"\",'[1]MONE(M)CAPARD'!AT207)","v":"n.a."},{"$f":"IF('[1]MONE(M)CAPARD'!AU207=\"\",\"\",'[1]MONE(M)CAPARD'!AU207)","v":4.75},{"$f":"IF('[1]MONE(M)CAPARD'!AV207=\"\",\"\",'[1]MONE(M)CAPARD'!AV207)","v":6.5},{"$f":"IF('[1]MONE(M)CAPARD'!AW207=\"\",\"\",'[1]MONE(M)CAPARD'!AW207)","v":"n.a."},{"$f":"IF('[1]MONE(M)CAPARD'!AX207=\"\",\"\",'[1]MONE(M)CAPARD'!AX207)","v":10},{"$f":"IF('[1]MONE(M)CAPARD'!AY207=\"\",\"\",'[1]MONE(M)CAPARD'!AY207)","v":"n.a."},{"$f":"IF('[1]FISCAL(M)'!$K207=\"\",\"\",'[1]FISCAL(M)'!$K207)","v":-115.57957061292342},{"$f":"IF('[1]FISCAL(M)'!$L207=\"\",\"\",'[1]FISCAL(M)'!$L207)","v":-73.30445609692319},{"$f":"IF('[1]FISCAL(M)'!$AY207=\"\",\"\",'[1]FISCAL(M)'!$AY207)","v":"n.d."},{"$f":"IF('[1]FISCAL(M)'!$BI207=\"\",\"\",'[1]FISCAL(M)'!$BI207)","v":"n.d."},{"$f":"IF('[1]FISCAL(M)'!$BS207=\"\",\"\",'[1]FISCAL(M)'!$BS207)","v":29637.64},{"$f":"IF('[1]FISCAL(M)'!$AZ207=\"\",\"\",'[1]FISCAL(M)'!$AZ207)","v":"n.d."},{"$f":"IF('[1]FISCAL(M)'!$BJ207=\"\",\"\",'[1]FISCAL(M)'!$BJ207)","v":"n.d."},{"$f":"IF('[1]FISCAL(M)'!$BT207=\"\",\"\",'[1]FISCAL(M)'!$BT207)","v":37551.269033489996},{"$f":"IF('[2]MONE(M)'!$AO207=\"\",\"\",'[2]MONE(M)'!$AO207)","v":3866381.6137728635},{"$f":"IF('[3]MONE(M)'!$AO207=\"\",\"\",'[3]MONE(M)'!$AO207)","v":7757.9792254971435},{"$f":"IF('[4]MONE(M)'!$AO207=\"\",\"\",'[4]MONE(M)'!$AO207)","v":62132.5483824494},{"$f":"+'[5]MONE(M)'!$AO207","v":80298.696348241909},{"$f":"IF('[6]MONE(M)'!$AO207=\"\",\"\",'[6]MONE(M)'!$AO207)","v":27327.686296880856},{"$f":"IF('[7]MONE(M)'!$AO207=\"\",\"\",'[7]MONE(M)'!$AO207)","v":213704.87678411003},{"$f":"IF('[8]MONE(M)'!$AO207=\"\",\"\",'[8]MONE(M)'!$AO207)","v":13460.768968429998},28.676773912451424,12.648099658012345,10.432409150206446,24.025631739942121,32.383280222459,20.430382278475445,14.897359968446832,{"$f":"IF('[1]FISCAL(M)'!$K207=\"\",\"\",'[1]FISCAL(M)'!$K207)","v":-115.57957061292342},{"$f":"+'[1]REAL(A)'!$AO$26","v":125760.26827524658},-9.1904678797248535E-2,{"$f":"IF('[1]FISCAL(M)'!$L207=\"\",\"\",'[1]FISCAL(M)'!$L207)","v":-73.30445609692319},{"$f":"+'[1]REAL(A)'!$AP$26","v":"n.d."},"n.d.",51743.049461966337,{"$f":"'[1]Gráfico REM'!BG201","v":11619.35130659857},{"$f":"'[1]Gráfico REM'!BH201","v":35810.064195425504},{"$f":"'[1]Gráfico REM'!BI201","v":4313.6339599422608},"n.d.",-1.8682131298364824,14.072701368017304,46.027016461862338,75310.725899821336,{"$f":"'[1]Gráfico REM'!BK201","v":12099.86341362157},{"$f":"'[1]Gráfico REM'!BL201","v":49270.833163855503},{"$f":"'[1]Gráfico REM'!BM201","v":13940.02932234426},"n.d.",-2.1240558261110598,14.296820150742029,32.219853722700911]
[2006,"julio","2006-julio",{"$f":"IF('[1]REAL IPC(M)'!$AL208=\"\",\"\",+'[1]REAL IPC(M)'!$AL208)","v":8.4581522574413537},{"$f":"IF('[1]REAL IPC(M)'!$BE208=\"\",\"\",+'[1]REAL IPC(M)'!$BE208)","v":8.7426849777775253},{"$f":"IF('[1]REAL IPC(M)'!$AM208=\"\",\"\",+'[1]REAL IPC(M)'!$AM208)","v":7.8949527123580943},{"$f":"IF('[1]REAL IPC(M)'!$BI208=\"\",\"\",+'[1]REAL IPC(M)'!$BI208)","v":8.1643700296473618},{"$f":"IF('[1]REAL IMAE(M)'!BJ208=\"\",\"\",'[1]REAL IMAE(M)'!BJ208)","v":"n.d."},{"$f":"IF('[1]REAL IMAE(M)'!BK208=\"\",\"\",'[1]REAL IMAE(M)'!BK208)","v":"n.d."},{"$f":"IF('[1]REAL IMAE(M)'!BN208=\"\",\"\",'[1]REAL IMAE(M)'!BN208)","v":"n.d."},{"$f":"IF('[1]REAL IMAE(M)'!BO208=\"\",\"\",'[1]REAL IMAE(M)'!BO208)","v":"n.d."},{"$f":"IF('[1]EXT RIN(M)'!$K208=\"\",\"\",'[1]EXT RIN(M)'!$K208)","v":13835.306819365764},"",{"$f":"IF('[1]EXT RIN(M)'!$L208=\"\",\"\",'[1]EXT RIN(M)'!$L208)","v":15005.402086167183},"",{"$f":"IF('[1]MONE(M)CARD'!EG208=\"\",\"\",'[1]MONE(M)CARD'!EG208)","v":13264.290950796079},{"$f":"IF('[1]MONE(M)CARD'!EK208=\"\",\"\",'[1]MONE(M)CARD'!EK208)","v":25561.944370941834},{"$f":"IF('[1]MONE(M)CARD'!EP208=\"\",\"\",'[1]MONE(M)CARD'!EP208)","v":13913.514735552162},{"$f":"IF('[1]MONE(M)CARD'!ES208=\"\",\"\",'[1]MONE(M)CARD'!ES208)","v":17.487982601298533},{"$f":"IF('[1]MONE(M)CARD'!EV208=\"\",\"\",'[1]MONE(M)CARD'!EV208)","v":7.4854303841435987},{"$f":"IF('[1]MONE(M)CARD'!EZ208=\"\",\"\",'[1]MONE(M)CARD'!EZ208)","v":7.8569215946532989},{"$f":"IF('[1]MONE(M)CAPARD'!FC208=\"\",\"\",'[1]MONE(M)CAPARD'!FC208)","v":15117.374791706079},{"$f":"IF('[1]MONE(M)CAPARD'!FG208=\"\",\"\",'[1]MONE(M)CAPARD'!FG208)","v":36561.602014911827},{"$f":"IF('[1]MONE(M)CAPARD'!FL208=\"\",\"\",'[1]MONE(M)CAPARD'!FL208)","v":13913.514735552162},{"$f":"IF('[1]MONE(M)CAPARD'!FO208=\"\",\"\",'[1]MONE(M)CAPARD'!FO208)","v":17.399736277566525},{"$f":"IF('[1]MONE(M)CAPARD'!FR208=\"\",\"\",'[1]MONE(M)CAPARD'!FR208)","v":9.2717679788002059},{"$f":"IF('[1]MONE(M)CAPARD'!FV208=\"\",\"\",'[1]MONE(M)CAPARD'!FV208)","v":9.1942523923574484},{"$f":"IF('[1]MONE(M)CARD'!FV208=\"\",\"\",'[1]MONE(M)CARD'!FV208)","v":1350.4143119835962},{"$f":"IF('[1]MONE(M)CARD'!GD208=\"\",\"\",'[1]MONE(M)CARD'!GD208)","v":40.304486327462378},{"$f":"IF('[1]MONE(M)CARD'!GE208=\"\",\"\",'[1]MONE(M)CARD'!GE208)","v":4127.1334135267716},10.276399155930838,{"$f":"IF('[9]II.2.Balance OSD-Activos'!J66=\"\",\"\",'[9]II.2.Balance OSD-Activos'!J66)","v":205.52445604912694},{"$f":"IF('[9]II.2.Balance OSD-Activos'!N66=\"\",\"\",'[9]II.2.Balance OSD-Activos'!N66)","v":319.93888877864265},{"$f":"IF('[9]II.2.Balance OSD-Activos'!R66=\"\",\"\",'[9]II.2.Balance OSD-Activos'!R66)","v":15728.786579381282},{"$f":"IF('[9]II.2.Balance OSD-Activos'!S66=\"\",\"\",'[9]II.2.Balance OSD-Activos'!S66)","v":18602.690514902817},15934.311035430408,34856.940439111866,1.9843044871332483,35.71199959128468,148.33584904363866,36.301006890415756,0.34641703050506401,14.628664826822412,0.25488488818032806,{"$f":"IF('[1]MONE(M)CAPARD'!GS208=\"\",\"\",'[1]MONE(M)CAPARD'!GS208)","v":6831.9187165926096},{"$f":"IF('[1]MONE(M)CARD'!HA208=\"\",\"\",'[1]MONE(M)CAPARD'!HA208)","v":4425.8461005167719},{"$f":"IF('[1]MONE(M)CAPARD'!HB208=\"\",\"\",'[1]MONE(M)CAPARD'!HB208)","v":2406.0726160758377},"n.d.",{"$f":"IF('[10]II.2.Balance OSD-Activos'!J66=\"\",\"\",'[10]II.2.Balance OSD-Activos'!J66)","v":469.51987672912691},{"$f":"IF('[10]II.2.Balance OSD-Activos'!N66=\"\",\"\",'[10]II.2.Balance OSD-Activos'!N66)","v":778.71878534864277},{"$f":"IF('[10]II.2.Balance OSD-Activos'!R66=\"\",\"\",'[10]II.2.Balance OSD-Activos'!R66)","v":22422.483856811283},{"$f":"IF('[10]II.2.Balance OSD-Activos'!S66=\"\",\"\",'[10]II.2.Balance OSD-Activos'!S66)","v":25029.256266732817},22892.003733540409,{"$f":"IF(OR(AW201=\"\",AX201=\"\",AY201=\"\",AZ201=\"\"),\"\",SUM(AW201:AZ201))","v":48699.978785621868},14.731772560140666,28.669595720161144,63.791855498989847,28.997739070314466,3.9374003029718052,14.99994709152228,0.21821669332782179,{"$f":"IF('[1]MONE(M)CAPARD'!AS208=\"\",\"\",'[1]MONE(M)CAPARD'!AS208)","v":9.1999999999999993},{"$f":"IF('[1]MONE(M)CAPARD'!AT208=\"\",\"\",'[1]MONE(M)CAPARD'!AT208)","v":"n.a."},{"$f":"IF('[1]MONE(M)CAPARD'!AU208=\"\",\"\",'[1]MONE(M)CAPARD'!AU208)","v":5},{"$f":"IF('[1]MONE(M)CAPARD'!AV208=\"\",\"\",'[1]MONE(M)CAPARD'!AV208)","v":6.5},{"$f":"IF('[1]MONE(M)CAPARD'!AW208=\"\",\"\",'[1]MONE(M)CAPARD'!AW208)","v":"n.a."},{"$f":"IF('[1]MONE(M)CAPARD'!AX208=\"\",\"\",'[1]MONE(M)CAPARD'!AX208)","v":10},{"$f":"IF('[1]MONE(M)CAPARD'!AY208=\"\",\"\",'[1]MONE(M)CAPARD'!AY208)","v":"n.a."},{"$f":"IF('[1]FISCAL(M)'!$K208=\"\",\"\",'[1]FISCAL(M)'!$K208)","v":-376.22550712780742},{"$f":"IF('[1]FISCAL(M)'!$L208=\"\",\"\",'[1]FISCAL(M)'!$L208)","v":-432.66931862180729},{"$f":"IF('[1]FISCAL(M)'!$AY208=\"\",\"\",'[1]FISCAL(M)'!$AY208)","v":"n.d."},{"$f":"IF('[1]FISCAL(M)'!$BI208=\"\",\"\",'[1]FISCAL(M)'!$BI208)","v":"n.d."},{"$f":"IF('[1]FISCAL(M)'!$BS208=\"\",\"\",'[1]FISCAL(M)'!$BS208)","v":"n.d."},{"$f":"IF('[1]FISCAL(M)'!$AZ208=\"\",\"\",'[1]FISCAL(M)'!$AZ208)","v":"n.d."},{"$f":"IF('[1]FISCAL(M)'!$BJ208=\"\",\"\",'[1]FISCAL(M)'!$BJ208)","v":"n.d."},{"$f":"IF('[1]FISCAL(M)'!$BT208=\"\",\"\",'[1]FISCAL(M)'!$BT208)","v":"n.d."},{"$f":"IF('[2]MONE(M)'!$AO208=\"\",\"\",'[2]MONE(M)'!$AO208)","v":3943473.2047031648},{"$f":"IF('[3]MONE(M)'!$AO208=\"\",\"\",'[3]MONE(M)'!$AO208)","v":7838.7922254971436},{"$f":"IF('[4]MONE(M)'!$AO208=\"\",\"\",'[4]MONE(M)'!$AO208)","v":62595.886150223778},{"$f":"+'[5]MONE(M)'!$AO208","v":81356.732006673628},{"$f":"IF('[6]MONE(M)'!$AO208=\"\",\"\",'[6]MONE(M)'!$AO208)","v":28074.171551599829},{"$f":"IF('[7]MONE(M)'!$AO208=\"\",\"\",'[7]MONE(M)'!$AO208)","v":217800.05156406004},{"$f":"IF('[8]MONE(M)'!$AO208=\"\",\"\",'[8]MONE(M)'!$AO208)","v":13691.081650800001},29.88101983577096,12.933105287067281,9.491381901729401,23.684151770169848,34.20576039234917,20.631768338058865,14.851197703255782,{"$f":"IF('[1]FISCAL(M)'!$K208=\"\",\"\",'[1]FISCAL(M)'!$K208)","v":-376.22550712780742},{"$f":"+'[1]REAL(A)'!$AO$26","v":125760.26827524658},-0.29916086557988042,{"$f":"IF('[1]FISCAL(M)'!$L208=\"\",\"\",'[1]FISCAL(M)'!$L208)","v":-432.66931862180729},{"$f":"+'[1]REAL(A)'!$AP$26","v":"n.d."},"n.d.",52279.919631020704,{"$f":"'[1]Gráfico REM'!BG202","v":11636.435542172349},{"$f":"'[1]Gráfico REM'!BH202","v":36312.537540228092},{"$f":"'[1]Gráfico REM'!BI202","v":4330.9465486202707},"n.d.",-1.0229008852674859,14.289388445422958,55.931492233111449,76261.254218030706,{"$f":"'[1]Gráfico REM'!BK202","v":12128.841140522349},{"$f":"'[1]Gráfico REM'!BL202","v":50003.61919102809},{"$f":"'[1]Gráfico REM'!BM202","v":14128.793886480271},"n.d.",-0.68236035923022742,14.442665677620891,35.239005120165203]
[2006,"agosto","2006-agosto",{"$f":"IF('[1]REAL IPC(M)'!$AL209=\"\",\"\",+'[1]REAL IPC(M)'!$AL209)","v":7.8757145830277375},{"$f":"IF('[1]REAL IPC(M)'!$BE209=\"\",\"\",+'[1]REAL IPC(M)'!$BE209)","v":8.6430724192982478},{"$f":"IF('[1]REAL IPC(M)'!$AM209=\"\",\"\",+'[1]REAL IPC(M)'!$AM209)","v":7.3801715324437245},{"$f":"IF('[1]REAL IPC(M)'!$BI209=\"\",\"\",+'[1]REAL IPC(M)'!$BI209)","v":8.0830344821012812},{"$f":"IF('[1]REAL IMAE(M)'!BJ209=\"\",\"\",'[1]REAL IMAE(M)'!BJ209)","v":"n.d."},{"$f":"IF('[1]REAL IMAE(M)'!BK209=\"\",\"\",'[1]REAL IMAE(M)'!BK209)","v":"n.d."},{"$f":"IF('[1]REAL IMAE(M)'!BN209=\"\",\"\",'[1]REAL IMAE(M)'!BN209)","v":"n.d."},{"$f":"IF('[1]REAL IMAE(M)'!BO209=\"\",\"\",'[1]REAL IMAE(M)'!BO209)","v":"n.d."},{"$f":"IF('[1]EXT RIN(M)'!$K209=\"\",\"\",'[1]EXT RIN(M)'!$K209)","v":13850.715064414244},"",{"$f":"IF('[1]EXT RIN(M)'!$L209=\"\",\"\",'[1]EXT RIN(M)'!$L209)","v":14842.260808864605},"",{"$f":"IF('[1]MONE(M)CARD'!EG209=\"\",\"\",'[1]MONE(M)CARD'!EG209)","v":13076.953414234547},{"$f":"IF('[1]MONE(M)CARD'!EK209=\"\",\"\",'[1]MONE(M)CARD'!EK209)","v":26099.173285319932},{"$f":"IF('[1]MONE(M)CARD'!EP209=\"\",\"\",'[1]MONE(M)CARD'!EP209)","v":13994.773043974368},{"$f":"IF('[1]MONE(M)CARD'!ES209=\"\",\"\",'[1]MONE(M)CARD'!ES209)","v":17.563277752875294},{"$f":"IF('[1]MONE(M)CARD'!EV209=\"\",\"\",'[1]MONE(M)CARD'!EV209)","v":9.8435177422001807},{"$f":"IF('[1]MONE(M)CARD'!EZ209=\"\",\"\",'[1]MONE(M)CARD'!EZ209)","v":9.8005776298190739},{"$f":"IF('[1]MONE(M)CAPARD'!FC209=\"\",\"\",'[1]MONE(M)CAPARD'!FC209)","v":14963.498012094546},{"$f":"IF('[1]MONE(M)CAPARD'!FG209=\"\",\"\",'[1]MONE(M)CAPARD'!FG209)","v":37243.930177479931},{"$f":"IF('[1]MONE(M)CAPARD'!FL209=\"\",\"\",'[1]MONE(M)CAPARD'!FL209)","v":13994.773043974361},{"$f":"IF('[1]MONE(M)CAPARD'!FO209=\"\",\"\",'[1]MONE(M)CAPARD'!FO209)","v":17.489423532648019},{"$f":"IF('[1]MONE(M)CAPARD'!FR209=\"\",\"\",'[1]MONE(M)CAPARD'!FR209)","v":11.101058779652195},{"$f":"IF('[1]MONE(M)CAPARD'!FV209=\"\",\"\",'[1]MONE(M)CAPARD'!FV209)","v":10.797713032561763},{"$f":"IF('[1]MONE(M)CARD'!FV209=\"\",\"\",'[1]MONE(M)CARD'!FV209)","v":1337.0262532911715},{"$f":"IF('[1]MONE(M)CARD'!GD209=\"\",\"\",'[1]MONE(M)CARD'!GD209)","v":41.545671293407736},{"$f":"IF('[1]MONE(M)CARD'!GE209=\"\",\"\",'[1]MONE(M)CARD'!GE209)","v":4140.0596223837993},11.171644011914728,{"$f":"IF('[9]II.2.Balance OSD-Activos'!J67=\"\",\"\",'[9]II.2.Balance OSD-Activos'!J67)","v":197.45245510184756},{"$f":"IF('[9]II.2.Balance OSD-Activos'!N67=\"\",\"\",'[9]II.2.Balance OSD-Activos'!N67)","v":321.31998802519684},{"$f":"IF('[9]II.2.Balance OSD-Activos'!R67=\"\",\"\",'[9]II.2.Balance OSD-Activos'!R67)","v":15899.391770538547},{"$f":"IF('[9]II.2.Balance OSD-Activos'!S67=\"\",\"\",'[9]II.2.Balance OSD-Activos'!S67)","v":19077.469612408157},16096.844225640394,35495.633826073747,5.1340990268079478,36.313558920794534,149.05242665715491,36.817463788308366,1.2118881839913831,15.295177537648463,0.66651271082605135,{"$f":"IF('[1]MONE(M)CAPARD'!GS209=\"\",\"\",'[1]MONE(M)CAPARD'!GS209)","v":6843.5534739801797},{"$f":"IF('[1]MONE(M)CARD'!HA209=\"\",\"\",'[1]MONE(M)CAPARD'!HA209)","v":4439.5122421637989},{"$f":"IF('[1]MONE(M)CAPARD'!HB209=\"\",\"\",'[1]MONE(M)CAPARD'!HB209)","v":2404.0412318163808},"n.d.",{"$f":"IF('[10]II.2.Balance OSD-Activos'!J67=\"\",\"\",'[10]II.2.Balance OSD-Activos'!J67)","v":457.57094412184756},{"$f":"IF('[10]II.2.Balance OSD-Activos'!N67=\"\",\"\",'[10]II.2.Balance OSD-Activos'!N67)","v":798.54175636519687},{"$f":"IF('[10]II.2.Balance OSD-Activos'!R67=\"\",\"\",'[10]II.2.Balance OSD-Activos'!R67)","v":22701.980947498545},{"$f":"IF('[10]II.2.Balance OSD-Activos'!S67=\"\",\"\",'[10]II.2.Balance OSD-Activos'!S67)","v":25585.359179078157},23159.551891620391,49543.452827063746,22.853349740633643,29.264894478525648,64.29249445005847,29.401010117096369,4.511644624854827,15.530961265897215,0.53101417437493481,{"$f":"IF('[1]MONE(M)CAPARD'!AS209=\"\",\"\",'[1]MONE(M)CAPARD'!AS209)","v":9.1999999999999993},{"$f":"IF('[1]MONE(M)CAPARD'!AT209=\"\",\"\",'[1]MONE(M)CAPARD'!AT209)","v":"n.a."},{"$f":"IF('[1]MONE(M)CAPARD'!AU209=\"\",\"\",'[1]MONE(M)CAPARD'!AU209)","v":5},{"$f":"IF('[1]MONE(M)CAPARD'!AV209=\"\",\"\",'[1]MONE(M)CAPARD'!AV209)","v":6.5},{"$f":"IF('[1]MONE(M)CAPARD'!AW209=\"\",\"\",'[1]MONE(M)CAPARD'!AW209)","v":"n.a."},{"$f":"IF('[1]MONE(M)CAPARD'!AX209=\"\",\"\",'[1]MONE(M)CAPARD'!AX209)","v":8},{"$f":"IF('[1]MONE(M)CAPARD'!AY209=\"\",\"\",'[1]MONE(M)CAPARD'!AY209)","v":"n.a."},{"$f":"IF('[1]FISCAL(M)'!$K209=\"\",\"\",'[1]FISCAL(M)'!$K209)","v":-435.23160586164869},{"$f":"IF('[1]FISCAL(M)'!$L209=\"\",\"\",'[1]FISCAL(M)'!$L209)","v":-560.50915517264855},{"$f":"IF('[1]FISCAL(M)'!$AY209=\"\",\"\",'[1]FISCAL(M)'!$AY209)","v":"n.d."},{"$f":"IF('[1]FISCAL(M)'!$BI209=\"\",\"\",'[1]FISCAL(M)'!$BI209)","v":"n.d."},{"$f":"IF('[1]FISCAL(M)'!$BS209=\"\",\"\",'[1]FISCAL(M)'!$BS209)","v":"n.d."},{"$f":"IF('[1]FISCAL(M)'!$AZ209=\"\",\"\",'[1]FISCAL(M)'!$AZ209)","v":"n.d."},{"$f":"IF('[1]FISCAL(M)'!$BJ209=\"\",\"\",'[1]FISCAL(M)'!$BJ209)","v":"n.d."},{"$f":"IF('[1]FISCAL(M)'!$BT209=\"\",\"\",'[1]FISCAL(M)'!$BT209)","v":"n.d."},{"$f":"IF('[2]MONE(M)'!$AO209=\"\",\"\",'[2]MONE(M)'!$AO209)","v":4060619.8525951649},{"$f":"IF('[3]MONE(M)'!$AO209=\"\",\"\",'[3]MONE(M)'!$AO209)","v":7922.5327715871426},{"$f":"IF('[4]MONE(M)'!$AO209=\"\",\"\",'[4]MONE(M)'!$AO209)","v":63427.894183675788},{"$f":"+'[5]MONE(M)'!$AO209","v":84280.720025556453},{"$f":"IF('[6]MONE(M)'!$AO209=\"\",\"\",'[6]MONE(M)'!$AO209)","v":28640.355886556805},{"$f":"IF('[7]MONE(M)'!$AO209=\"\",\"\",'[7]MONE(M)'!$AO209)","v":221967.28311416},{"$f":"IF('[8]MONE(M)'!$AO209=\"\",\"\",'[8]MONE(M)'!$AO209)","v":13880.79527314},29.442459616577409,13.180534372214336,9.7963922850724536,26.41370031961592,34.231942963984707,20.392618218128099,15.144955284079176,{"$f":"IF('[1]FISCAL(M)'!$K209=\"\",\"\",'[1]FISCAL(M)'!$K209)","v":-435.23160586164869},{"$f":"+'[1]REAL(A)'!$AO$26","v":125760.26827524658},-0.3460803732615092,{"$f":"IF('[1]FISCAL(M)'!$L209=\"\",\"\",'[1]FISCAL(M)'!$L209)","v":-560.50915517264855},{"$f":"+'[1]REAL(A)'!$AP$26","v":"n.d."},"n.d.",52571.797405326302,{"$f":"'[1]Gráfico REM'!BG203","v":11320.4462256238},{"$f":"'[1]Gráfico REM'!BH203","v":36980.885225280392},{"$f":"'[1]Gráfico REM'!BI203","v":4270.4659544221049},"n.d.",-2.6033706342590945,14.963422158929941,38.845268758390496,76595.538566096293,{"$f":"'[1]Gráfico REM'!BK203","v":11796.541879243799},{"$f":"'[1]Gráfico REM'!BL203","v":50861.680498420392},{"$f":"'[1]Gráfico REM'!BM203","v":13937.316188432105},"n.d.",-2.3994319530590835,15.01290802742461,27.959065845838317]
[2006,"septiembre","2006-septiembre",{"$f":"IF('[1]REAL IPC(M)'!$AL210=\"\",\"\",+'[1]REAL IPC(M)'!$AL210)","v":6.0810193444380101},{"$f":"IF('[1]REAL IPC(M)'!$BE210=\"\",\"\",+'[1]REAL IPC(M)'!$BE210)","v":8.5516722932310163},{"$f":"IF('[1]REAL IPC(M)'!$AM210=\"\",\"\",+'[1]REAL IPC(M)'!$AM210)","v":5.6376026656340006},{"$f":"IF('[1]REAL IPC(M)'!$BI210=\"\",\"\",+'[1]REAL IPC(M)'!$BI210)","v":8.0103838280414443},{"$f":"IF('[1]REAL IMAE(M)'!BJ210=\"\",\"\",'[1]REAL IMAE(M)'!BJ210)","v":"n.d."},{"$f":"IF('[1]REAL IMAE(M)'!BK210=\"\",\"\",'[1]REAL IMAE(M)'!BK210)","v":"n.d."},{"$f":"IF('[1]REAL IMAE(M)'!BN210=\"\",\"\",'[1]REAL IMAE(M)'!BN210)","v":"n.d."},{"$f":"IF('[1]REAL IMAE(M)'!BO210=\"\",\"\",'[1]REAL IMAE(M)'!BO210)","v":"n.d."},{"$f":"IF('[1]EXT RIN(M)'!$K210=\"\",\"\",'[1]EXT RIN(M)'!$K210)","v":13773.250879275691},"",{"$f":"IF('[1]EXT RIN(M)'!$L210=\"\",\"\",'[1]EXT RIN(M)'!$L210)","v":14679.319001923601},"",{"$f":"IF('[1]MONE(M)CARD'!EG210=\"\",\"\",'[1]MONE(M)CARD'!EG210)","v":13269.964638354231},{"$f":"IF('[1]MONE(M)CARD'!EK210=\"\",\"\",'[1]MONE(M)CARD'!EK210)","v":26201.852901971066},{"$f":"IF('[1]MONE(M)CARD'!EP210=\"\",\"\",'[1]MONE(M)CARD'!EP210)","v":13959.76935964547},{"$f":"IF('[1]MONE(M)CARD'!ES210=\"\",\"\",'[1]MONE(M)CARD'!ES210)","v":21.285157846308024},{"$f":"IF('[1]MONE(M)CARD'!EV210=\"\",\"\",'[1]MONE(M)CARD'!EV210)","v":12.084317784955578},{"$f":"IF('[1]MONE(M)CARD'!EZ210=\"\",\"\",'[1]MONE(M)CARD'!EZ210)","v":11.282331209683383},{"$f":"IF('[1]MONE(M)CAPARD'!FC210=\"\",\"\",'[1]MONE(M)CAPARD'!FC210)","v":15208.232733324228},{"$f":"IF('[1]MONE(M)CAPARD'!FG210=\"\",\"\",'[1]MONE(M)CAPARD'!FG210)","v":37490.217230991053},{"$f":"IF('[1]MONE(M)CAPARD'!FL210=\"\",\"\",'[1]MONE(M)CAPARD'!FL210)","v":13959.769359645463},{"$f":"IF('[1]MONE(M)CAPARD'!FO210=\"\",\"\",'[1]MONE(M)CAPARD'!FO210)","v":20.452349709371219},{"$f":"IF('[1]MONE(M)CAPARD'!FR210=\"\",\"\",'[1]MONE(M)CAPARD'!FR210)","v":13.008844564388134},{"$f":"IF('[1]MONE(M)CAPARD'!FV210=\"\",\"\",'[1]MONE(M)CAPARD'!FV210)","v":12.161815708264424},{"$f":"IF('[1]MONE(M)CARD'!FV210=\"\",\"\",'[1]MONE(M)CARD'!FV210)","v":1392.2456740712685},{"$f":"IF('[1]MONE(M)CARD'!GD210=\"\",\"\",'[1]MONE(M)CARD'!GD210)","v":77.863670745066599},{"$f":"IF('[1]MONE(M)CARD'!GE210=\"\",\"\",'[1]MONE(M)CARD'!GE210)","v":4194.6072044865896},7.6770065103333174,{"$f":"IF('[9]II.2.Balance OSD-Activos'!J68=\"\",\"\",'[9]II.2.Balance OSD-Activos'!J68)","v":173.19032704829894},{"$f":"IF('[9]II.2.Balance OSD-Activos'!N68=\"\",\"\",'[9]II.2.Balance OSD-Activos'!N68)","v":334.14112082271021},{"$f":"IF('[9]II.2.Balance OSD-Activos'!R68=\"\",\"\",'[9]II.2.Balance OSD-Activos'!R68)","v":15953.693922282962},{"$f":"IF('[9]II.2.Balance OSD-Activos'!S68=\"\",\"\",'[9]II.2.Balance OSD-Activos'!S68)","v":19365.261902955419},16126.88424933126,35826.287273109396,-1.8923246149393336,34.20916921874457,165.37581955180804,34.747445327501623,2.5280006745625805,15.457224511639357,0.16204697399089341,{"$f":"IF('[1]MONE(M)CAPARD'!GS210=\"\",\"\",'[1]MONE(M)CAPARD'!GS210)","v":6839.5221065399355},{"$f":"IF('[1]MONE(M)CARD'!HA210=\"\",\"\",'[1]MONE(M)CAPARD'!HA210)","v":4493.6277714765893},{"$f":"IF('[1]MONE(M)CAPARD'!HB210=\"\",\"\",'[1]MONE(M)CAPARD'!HB210)","v":2345.8943350633463},"n.d.",{"$f":"IF('[10]II.2.Balance OSD-Activos'!J68=\"\",\"\",'[10]II.2.Balance OSD-Activos'!J68)","v":418.96731186829896},{"$f":"IF('[10]II.2.Balance OSD-Activos'!N68=\"\",\"\",'[10]II.2.Balance OSD-Activos'!N68)","v":822.94395930271025},{"$f":"IF('[10]II.2.Balance OSD-Activos'!R68=\"\",\"\",'[10]II.2.Balance OSD-Activos'!R68)","v":22920.754957142963},{"$f":"IF('[10]II.2.Balance OSD-Activos'!S68=\"\",\"\",'[10]II.2.Balance OSD-Activos'!S68)","v":25961.339734275418},23339.722269011261,50124.005962589392,15.980768021263291,27.892193091978747,67.353136048754365,28.132734062032249,5.539229323001682,15.652916494705082,0.12195522880786669,{"$f":"IF('[1]MONE(M)CAPARD'!AS210=\"\",\"\",'[1]MONE(M)CAPARD'!AS210)","v":9.1999999999999993},{"$f":"IF('[1]MONE(M)CAPARD'!AT210=\"\",\"\",'[1]MONE(M)CAPARD'!AT210)","v":"n.a."},{"$f":"IF('[1]MONE(M)CAPARD'!AU210=\"\",\"\",'[1]MONE(M)CAPARD'!AU210)","v":5},{"$f":"IF('[1]MONE(M)CAPARD'!AV210=\"\",\"\",'[1]MONE(M)CAPARD'!AV210)","v":6},{"$f":"IF('[1]MONE(M)CAPARD'!AW210=\"\",\"\",'[1]MONE(M)CAPARD'!AW210)","v":"n.a."},{"$f":"IF('[1]MONE(M)CAPARD'!AX210=\"\",\"\",'[1]MONE(M)CAPARD'!AX210)","v":8},{"$f":"IF('[1]MONE(M)CAPARD'!AY210=\"\",\"\",'[1]MONE(M)CAPARD'!AY210)","v":"n.a."},{"$f":"IF('[1]FISCAL(M)'!$K210=\"\",\"\",'[1]FISCAL(M)'!$K210)","v":-638.35654509698384},{"$f":"IF('[1]FISCAL(M)'!$L210=\"\",\"\",'[1]FISCAL(M)'!$L210)","v":-746.48598326398337},{"$f":"IF('[1]FISCAL(M)'!$AY210=\"\",\"\",'[1]FISCAL(M)'!$AY210)","v":"n.d."},{"$f":"IF('[1]FISCAL(M)'!$BI210=\"\",\"\",'[1]FISCAL(M)'!$BI210)","v":"n.d."},{"$f":"IF('[1]FISCAL(M)'!$BS210=\"\",\"\",'[1]FISCAL(M)'!$BS210)","v":27596.32},{"$f":"IF('[1]FISCAL(M)'!$AZ210=\"\",\"\",'[1]FISCAL(M)'!$AZ210)","v":"n.d."},{"$f":"IF('[1]FISCAL(M)'!$BJ210=\"\",\"\",'[1]FISCAL(M)'!$BJ210)","v":"n.d."},{"$f":"IF('[1]FISCAL(M)'!$BT210=\"\",\"\",'[1]FISCAL(M)'!$BT210)","v":35369.072686240004},{"$f":"IF('[2]MONE(M)'!$AO210=\"\",\"\",'[2]MONE(M)'!$AO210)","v":4143710.2077532988},{"$f":"IF('[3]MONE(M)'!$AO210=\"\",\"\",'[3]MONE(M)'!$AO210)","v":7921.5070791057151},{"$f":"IF('[4]MONE(M)'!$AO210=\"\",\"\",'[4]MONE(M)'!$AO210)","v":64949.560633398636},{"$f":"+'[5]MONE(M)'!$AO210","v":85380.852436931076},{"$f":"IF('[6]MONE(M)'!$AO210=\"\",\"\",'[6]MONE(M)'!$AO210)","v":29335.153597519435},{"$f":"IF('[7]MONE(M)'!$AO210=\"\",\"\",'[7]MONE(M)'!$AO210)","v":224755.26879942001},{"$f":"IF('[8]MONE(M)'!$AO210=\"\",\"\",'[8]MONE(M)'!$AO210)","v":14188.895299189999},28.76606106737345,10.478764499582226,10.555102234319214,25.766264714812625,34.210318719132204,18.301422585889938,15.321998372030542,{"$f":"IF('[1]FISCAL(M)'!$K210=\"\",\"\",'[1]FISCAL(M)'!$K210)","v":-638.35654509698384},{"$f":"+'[1]REAL(A)'!$AO$26","v":125760.26827524658},-0.50759795112701078,{"$f":"IF('[1]FISCAL(M)'!$L210=\"\",\"\",'[1]FISCAL(M)'!$L210)","v":-746.48598326398337},{"$f":"+'[1]REAL(A)'!$AP$26","v":"n.d."},"n.d.",53011.64769982599,{"$f":"'[1]Gráfico REM'!BG204","v":11339.307218054444},{"$f":"'[1]Gráfico REM'!BH204","v":37290.299614119576},{"$f":"'[1]Gráfico REM'!BI204","v":4382.0408676519737},"n.d.",-1.0313081772257093,15.077452957738725,36.701633050933104,77542.964287305993,{"$f":"'[1]Gráfico REM'!BK204","v":11817.666954244443},{"$f":"'[1]Gráfico REM'!BL204","v":51479.194913309577},{"$f":"'[1]Gráfico REM'!BM204","v":14246.102419751973},"n.d.",-0.68822026785571033,15.144751917280018,28.886369526370448]
[2006,"octubre","2006-octubre",{"$f":"IF('[1]REAL IPC(M)'!$AL211=\"\",\"\",+'[1]REAL IPC(M)'!$AL211)","v":4.7441386437233612},{"$f":"IF('[1]REAL IPC(M)'!$BE211=\"\",\"\",+'[1]REAL IPC(M)'!$BE211)","v":8.4684260722110096},{"$f":"IF('[1]REAL IPC(M)'!$AM211=\"\",\"\",+'[1]REAL IPC(M)'!$AM211)","v":4.4044827286467747},{"$f":"IF('[1]REAL IPC(M)'!$BI211=\"\",\"\",+'[1]REAL IPC(M)'!$BI211)","v":7.9463762312950603},{"$f":"IF('[1]REAL IMAE(M)'!BJ211=\"\",\"\",'[1]REAL IMAE(M)'!BJ211)","v":"n.d."},{"$f":"IF('[1]REAL IMAE(M)'!BK211=\"\",\"\",'[1]REAL IMAE(M)'!BK211)","v":"n.d."},{"$f":"IF('[1]REAL IMAE(M)'!BN211=\"\",\"\",'[1]REAL IMAE(M)'!BN211)","v":"n.d."},{"$f":"IF('[1]REAL IMAE(M)'!BO211=\"\",\"\",'[1]REAL IMAE(M)'!BO211)","v":"n.d."},{"$f":"IF('[1]EXT RIN(M)'!$K211=\"\",\"\",'[1]EXT RIN(M)'!$K211)","v":13999.215422995259},"",{"$f":"IF('[1]EXT RIN(M)'!$L211=\"\",\"\",'[1]EXT RIN(M)'!$L211)","v":14921.116019374978},"",{"$f":"IF('[1]MONE(M)CARD'!EG211=\"\",\"\",'[1]MONE(M)CARD'!EG211)","v":13315.176152825577},{"$f":"IF('[1]MONE(M)CARD'!EK211=\"\",\"\",'[1]MONE(M)CARD'!EK211)","v":26592.589297101276},{"$f":"IF('[1]MONE(M)CARD'!EP211=\"\",\"\",'[1]MONE(M)CARD'!EP211)","v":14019.264353424347},{"$f":"IF('[1]MONE(M)CARD'!ES211=\"\",\"\",'[1]MONE(M)CARD'!ES211)","v":20.517225310630451},{"$f":"IF('[1]MONE(M)CARD'!EV211=\"\",\"\",'[1]MONE(M)CARD'!EV211)","v":15.775306273799639},{"$f":"IF('[1]MONE(M)CARD'!EZ211=\"\",\"\",'[1]MONE(M)CARD'!EZ211)","v":13.990873023038851},{"$f":"IF('[1]MONE(M)CAPARD'!FC211=\"\",\"\",'[1]MONE(M)CAPARD'!FC211)","v":15299.756161215577},{"$f":"IF('[1]MONE(M)CAPARD'!FG211=\"\",\"\",'[1]MONE(M)CAPARD'!FG211)","v":38121.268043041273},{"$f":"IF('[1]MONE(M)CAPARD'!FL211=\"\",\"\",'[1]MONE(M)CAPARD'!FL211)","v":14019.264353424347},{"$f":"IF('[1]MONE(M)CAPARD'!FO211=\"\",\"\",'[1]MONE(M)CAPARD'!FO211)","v":20.260122073725938},{"$f":"IF('[1]MONE(M)CAPARD'!FR211=\"\",\"\",'[1]MONE(M)CAPARD'!FR211)","v":15.791884122676624},{"$f":"IF('[1]MONE(M)CAPARD'!FV211=\"\",\"\",'[1]MONE(M)CAPARD'!FV211)","v":14.35681475883468},{"$f":"IF('[1]MONE(M)CARD'!FV211=\"\",\"\",'[1]MONE(M)CARD'!FV211)","v":1433.6272047401856},{"$f":"IF('[1]MONE(M)CARD'!GD211=\"\",\"\",'[1]MONE(M)CARD'!GD211)","v":51.234658059787485},{"$f":"IF('[1]MONE(M)CARD'!GE211=\"\",\"\",'[1]MONE(M)CARD'!GE211)","v":4375.5869478016748},10.6001108992968,{"$f":"IF('[9]II.2.Balance OSD-Activos'!J69=\"\",\"\",'[9]II.2.Balance OSD-Activos'!J69)","v":199.40863669162118},{"$f":"IF('[9]II.2.Balance OSD-Activos'!N69=\"\",\"\",'[9]II.2.Balance OSD-Activos'!N69)","v":330.00595102397358},{"$f":"IF('[9]II.2.Balance OSD-Activos'!R69=\"\",\"\",'[9]II.2.Balance OSD-Activos'!R69)","v":16434.041404722029},{"$f":"IF('[9]II.2.Balance OSD-Activos'!S69=\"\",\"\",'[9]II.2.Balance OSD-Activos'!S69)","v":19706.232340217342},16633.450041413649,36669.688332654965,2.0765519391986675,38.912199201591505,175.29863931831932,39.523124479134218,2.2746643338744876,16.924329432983342,1.4671049213439851,{"$f":"IF('[1]MONE(M)CAPARD'!GS211=\"\",\"\",'[1]MONE(M)CAPARD'!GS211)","v":6966.6574916245436},{"$f":"IF('[1]MONE(M)CARD'!HA211=\"\",\"\",'[1]MONE(M)CAPARD'!HA211)","v":4674.7145718416741},{"$f":"IF('[1]MONE(M)CAPARD'!HB211=\"\",\"\",'[1]MONE(M)CAPARD'!HB211)","v":2291.9429197828695},"n.d.",{"$f":"IF('[10]II.2.Balance OSD-Activos'!J69=\"\",\"\",'[10]II.2.Balance OSD-Activos'!J69)","v":391.51455311162118},{"$f":"IF('[10]II.2.Balance OSD-Activos'!N69=\"\",\"\",'[10]II.2.Balance OSD-Activos'!N69)","v":823.20500437397345},{"$f":"IF('[10]II.2.Balance OSD-Activos'!R69=\"\",\"\",'[10]II.2.Balance OSD-Activos'!R69)","v":23525.282092222027},{"$f":"IF('[10]II.2.Balance OSD-Activos'!S69=\"\",\"\",'[10]II.2.Balance OSD-Activos'!S69)","v":26401.517543037342},23916.796645333648,51141.519192744963,2.9453308939115574,30.605470842763705,{"$f":"IF(OR(AX204=\"\",AX192=\"\"),\"\",((AX204/AX192)-1)*100)","v":68.105364288000047},31.192106551413403,5.3970005540002752,16.624242105778375,0.97132561107329352,{"$f":"IF('[1]MONE(M)CAPARD'!AS211=\"\",\"\",'[1]MONE(M)CAPARD'!AS211)","v":9.1999999999999993},{"$f":"IF('[1]MONE(M)CAPARD'!AT211=\"\",\"\",'[1]MONE(M)CAPARD'!AT211)","v":"n.a."},{"$f":"IF('[1]MONE(M)CAPARD'!AU211=\"\",\"\",'[1]MONE(M)CAPARD'!AU211)","v":5},{"$f":"IF('[1]MONE(M)CAPARD'!AV211=\"\",\"\",'[1]MONE(M)CAPARD'!AV211)","v":6},{"$f":"IF('[1]MONE(M)CAPARD'!AW211=\"\",\"\",'[1]MONE(M)CAPARD'!AW211)","v":"n.a."},{"$f":"IF('[1]MONE(M)CAPARD'!AX211=\"\",\"\",'[1]MONE(M)CAPARD'!AX211)","v":8},{"$f":"IF('[1]MONE(M)CAPARD'!AY211=\"\",\"\",'[1]MONE(M)CAPARD'!AY211)","v":"n.a."},{"$f":"IF('[1]FISCAL(M)'!$K211=\"\",\"\",'[1]FISCAL(M)'!$K211)","v":-577.26466949693781},{"$f":"IF('[1]FISCAL(M)'!$L211=\"\",\"\",'[1]FISCAL(M)'!$L211)","v":-781.49237212393734},{"$f":"IF('[1]FISCAL(M)'!$AY211=\"\",\"\",'[1]FISCAL(M)'!$AY211)","v":"n.d."},{"$f":"IF('[1]FISCAL(M)'!$BI211=\"\",\"\",'[1]FISCAL(M)'!$BI211)","v":"n.d."},{"$f":"IF('[1]FISCAL(M)'!$BS211=\"\",\"\",'[1]FISCAL(M)'!$BS211)","v":"n.d."},{"$f":"IF('[1]FISCAL(M)'!$AZ211=\"\",\"\",'[1]FISCAL(M)'!$AZ211)","v":"n.d."},{"$f":"IF('[1]FISCAL(M)'!$BJ211=\"\",\"\",'[1]FISCAL(M)'!$BJ211)","v":"n.d."},{"$f":"IF('[1]FISCAL(M)'!$BT211=\"\",\"\",'[1]FISCAL(M)'!$BT211)","v":"n.d."},{"$f":"IF('[2]MONE(M)'!$AO211=\"\",\"\",'[2]MONE(M)'!$AO211)","v":4195548.5740256412},{"$f":"IF('[3]MONE(M)'!$AO211=\"\",\"\",'[3]MONE(M)'!$AO211)","v":7962.8052795557142},{"$f":"IF('[4]MONE(M)'!$AO211=\"\",\"\",'[4]MONE(M)'!$AO211)","v":66433.613001004007},{"$f":"+'[5]MONE(M)'!$AO211","v":88679.798786155734},{"$f":"IF('[6]MONE(M)'!$AO211=\"\",\"\",'[6]MONE(M)'!$AO211)","v":30229.731052222858},{"$f":"IF('[7]MONE(M)'!$AO211=\"\",\"\",'[7]MONE(M)'!$AO211)","v":229968.21416733999},{"$f":"IF('[8]MONE(M)'!$AO211=\"\",\"\",'[8]MONE(M)'!$AO211)","v":14368.42081842},27.87577257438436,10.148382736914208,11.203495106865979,28.150625084411594,33.737539178871415,16.1962027309017,15.195246216398939,{"$f":"IF('[1]FISCAL(M)'!$K211=\"\",\"\",'[1]FISCAL(M)'!$K211)","v":-577.26466949693781},{"$f":"+'[1]REAL(A)'!$AO$26","v":125760.26827524658},-0.45901990939896953,{"$f":"IF('[1]FISCAL(M)'!$L211=\"\",\"\",'[1]FISCAL(M)'!$L211)","v":-781.49237212393734},{"$f":"+'[1]REAL(A)'!$AP$26","v":"n.d."},"n.d.",53747.600988538354,{"$f":"'[1]Gráfico REM'!BG205","v":11156.155269746991},{"$f":"'[1]Gráfico REM'!BH205","v":38115.448986563577},{"$f":"'[1]Gráfico REM'!BI205","v":4475.996732227788},"n.d.",1.1192230422113258,16.480998333975826,44.950640438858528,78919.650200188364,{"$f":"'[1]Gráfico REM'!BK205","v":11662.144238476991},{"$f":"'[1]Gráfico REM'!BL205","v":52483.86980498358},{"$f":"'[1]Gráfico REM'!BM205","v":14773.636156727787},"n.d.",1.4523759924011115,16.126155589805457,33.66003530136026]
[2006,"noviembre","2006-noviembre",{"$f":"IF('[1]REAL IPC(M)'!$AL212=\"\",\"\",+'[1]REAL IPC(M)'!$AL212)","v":5.5883376659514372},{"$f":"IF('[1]REAL IPC(M)'!$BE212=\"\",\"\",+'[1]REAL IPC(M)'!$BE212)","v":8.3931412345458423},{"$f":"IF('[1]REAL IPC(M)'!$AM212=\"\",\"\",+'[1]REAL IPC(M)'!$AM212)","v":5.2322066282086688},{"$f":"IF('[1]REAL IPC(M)'!$BI212=\"\",\"\",+'[1]REAL IPC(M)'!$BI212)","v":7.8908150193834237},{"$f":"IF('[1]REAL IMAE(M)'!BJ212=\"\",\"\",'[1]REAL IMAE(M)'!BJ212)","v":"n.d."},{"$f":"IF('[1]REAL IMAE(M)'!BK212=\"\",\"\",'[1]REAL IMAE(M)'!BK212)","v":"n.d."},{"$f":"IF('[1]REAL IMAE(M)'!BN212=\"\",\"\",'[1]REAL IMAE(M)'!BN212)","v":"n.d."},{"$f":"IF('[1]REAL IMAE(M)'!BO212=\"\",\"\",'[1]REAL IMAE(M)'!BO212)","v":"n.d."},{"$f":"IF('[1]EXT RIN(M)'!$K212=\"\",\"\",'[1]EXT RIN(M)'!$K212)","v":14296.851660087217},"",{"$f":"IF('[1]EXT RIN(M)'!$L212=\"\",\"\",'[1]EXT RIN(M)'!$L212)","v":16130.580475214187},"",{"$f":"IF('[1]MONE(M)CARD'!EG212=\"\",\"\",'[1]MONE(M)CARD'!EG212)","v":14195.608189374805},{"$f":"IF('[1]MONE(M)CARD'!EK212=\"\",\"\",'[1]MONE(M)CARD'!EK212)","v":26284.067860844734},{"$f":"IF('[1]MONE(M)CARD'!EP212=\"\",\"\",'[1]MONE(M)CARD'!EP212)","v":14009.330567684665},{"$f":"IF('[1]MONE(M)CARD'!ES212=\"\",\"\",'[1]MONE(M)CARD'!ES212)","v":22.702797581385113},{"$f":"IF('[1]MONE(M)CARD'!EV212=\"\",\"\",'[1]MONE(M)CARD'!EV212)","v":15.460044513860671},{"$f":"IF('[1]MONE(M)CARD'!EZ212=\"\",\"\",'[1]MONE(M)CARD'!EZ212)","v":13.637997070172059},{"$f":"IF('[1]MONE(M)CAPARD'!FC212=\"\",\"\",'[1]MONE(M)CAPARD'!FC212)","v":17091.834579114806},{"$f":"IF('[1]MONE(M)CAPARD'!FG212=\"\",\"\",'[1]MONE(M)CAPARD'!FG212)","v":38332.933512294738},{"$f":"IF('[1]MONE(M)CAPARD'!FL212=\"\",\"\",'[1]MONE(M)CAPARD'!FL212)","v":14009.33056768465},{"$f":"IF('[1]MONE(M)CAPARD'!FO212=\"\",\"\",'[1]MONE(M)CAPARD'!FO212)","v":28.610506657005352},{"$f":"IF('[1]MONE(M)CAPARD'!FR212=\"\",\"\",'[1]MONE(M)CAPARD'!FR212)","v":18.121611697114126},{"$f":"IF('[1]MONE(M)CAPARD'!FV212=\"\",\"\",'[1]MONE(M)CAPARD'!FV212)","v":16.087326627177578},{"$f":"IF('[1]MONE(M)CARD'!FV212=\"\",\"\",'[1]MONE(M)CARD'!FV212)","v":1477.1708139271504},{"$f":"IF('[1]MONE(M)CARD'!GD212=\"\",\"\",'[1]MONE(M)CARD'!GD212)","v":46.922813655273721},{"$f":"IF('[1]MONE(M)CARD'!GE212=\"\",\"\",'[1]MONE(M)CARD'!GE212)","v":4578.6758485375458},14.515337611614342,{"$f":"IF('[9]II.2.Balance OSD-Activos'!J70=\"\",\"\",'[9]II.2.Balance OSD-Activos'!J70)","v":252.89995483069652},{"$f":"IF('[9]II.2.Balance OSD-Activos'!N70=\"\",\"\",'[9]II.2.Balance OSD-Activos'!N70)","v":343.57000312163217},{"$f":"IF('[9]II.2.Balance OSD-Activos'!R70=\"\",\"\",'[9]II.2.Balance OSD-Activos'!R70)","v":16910.504786569763},{"$f":"IF('[9]II.2.Balance OSD-Activos'!S70=\"\",\"\",'[9]II.2.Balance OSD-Activos'!S70)","v":19688.031691889671},17163.40474140046,37195.006436411764,25.61107190108476,17.087616632900616,44.994087911646204,16.968916716661365,22.004131887600977,19.857313457970349,2.9329840249870074,{"$f":"IF('[1]MONE(M)CAPARD'!GS212=\"\",\"\",'[1]MONE(M)CAPARD'!GS212)","v":7423.2450037251347},{"$f":"IF('[1]MONE(M)CARD'!HA212=\"\",\"\",'[1]MONE(M)CAPARD'!HA212)","v":4880.222561927545},{"$f":"IF('[1]MONE(M)CAPARD'!HB212=\"\",\"\",'[1]MONE(M)CAPARD'!HB212)","v":2543.0224417975896},"n.d.",{"$f":"IF('[10]II.2.Balance OSD-Activos'!J70=\"\",\"\",'[10]II.2.Balance OSD-Activos'!J70)","v":433.42590552069652},{"$f":"IF('[10]II.2.Balance OSD-Activos'!N70=\"\",\"\",'[10]II.2.Balance OSD-Activos'!N70)","v":843.52245517163215},{"$f":"IF('[10]II.2.Balance OSD-Activos'!R70=\"\",\"\",'[10]II.2.Balance OSD-Activos'!R70)","v":24066.57882087976},{"$f":"IF('[10]II.2.Balance OSD-Activos'!S70=\"\",\"\",'[10]II.2.Balance OSD-Activos'!S70)","v":26459.302574529669},24500.004726400457,51802.829756101753,9.8723290310608789,16.100632267150729,34.814135519194437,16.219280181126816,20.288131887165516,18.475027353281902,1.8507852475035271,{"$f":"IF('[1]MONE(M)CAPARD'!AS212=\"\",\"\",'[1]MONE(M)CAPARD'!AS212)","v":9.1999999999999993},{"$f":"IF('[1]MONE(M)CAPARD'!AT212=\"\",\"\",'[1]MONE(M)CAPARD'!AT212)","v":"n.a."},{"$f":"IF('[1]MONE(M)CAPARD'!AU212=\"\",\"\",'[1]MONE(M)CAPARD'!AU212)","v":5},{"$f":"IF('[1]MONE(M)CAPARD'!AV212=\"\",\"\",'[1]MONE(M)CAPARD'!AV212)","v":6},{"$f":"IF('[1]MONE(M)CAPARD'!AW212=\"\",\"\",'[1]MONE(M)CAPARD'!AW212)","v":"n.a."},{"$f":"IF('[1]MONE(M)CAPARD'!AX212=\"\",\"\",'[1]MONE(M)CAPARD'!AX212)","v":8},{"$f":"IF('[1]MONE(M)CAPARD'!AY212=\"\",\"\",'[1]MONE(M)CAPARD'!AY212)","v":"n.a."},{"$f":"IF('[1]FISCAL(M)'!$K212=\"\",\"\",'[1]FISCAL(M)'!$K212)","v":-785.78437118049055},{"$f":"IF('[1]FISCAL(M)'!$L212=\"\",\"\",'[1]FISCAL(M)'!$L212)","v":-930.47978044749004},{"$f":"IF('[1]FISCAL(M)'!$AY212=\"\",\"\",'[1]FISCAL(M)'!$AY212)","v":"n.d."},{"$f":"IF('[1]FISCAL(M)'!$BI212=\"\",\"\",'[1]FISCAL(M)'!$BI212)","v":"n.d."},{"$f":"IF('[1]FISCAL(M)'!$BS212=\"\",\"\",'[1]FISCAL(M)'!$BS212)","v":"n.d."},{"$f":"IF('[1]FISCAL(M)'!$AZ212=\"\",\"\",'[1]FISCAL(M)'!$AZ212)","v":"n.d."},{"$f":"IF('[1]FISCAL(M)'!$BJ212=\"\",\"\",'[1]FISCAL(M)'!$BJ212)","v":"n.d."},{"$f":"IF('[1]FISCAL(M)'!$BT212=\"\",\"\",'[1]FISCAL(M)'!$BT212)","v":"n.d."},{"$f":"IF('[2]MONE(M)'!$AO212=\"\",\"\",'[2]MONE(M)'!$AO212)","v":4346890.2482188297},{"$f":"IF('[3]MONE(M)'!$AO212=\"\",\"\",'[3]MONE(M)'!$AO212)","v":8043.132093082857},{"$f":"IF('[4]MONE(M)'!$AO212=\"\",\"\",'[4]MONE(M)'!$AO212)","v":66687.15894158739},{"$f":"+'[5]MONE(M)'!$AO212","v":91037.734159371437},{"$f":"IF('[6]MONE(M)'!$AO212=\"\",\"\",'[6]MONE(M)'!$AO212)","v":30854.062469912809},{"$f":"IF('[7]MONE(M)'!$AO212=\"\",\"\",'[7]MONE(M)'!$AO212)","v":221276.1634776},{"$f":"IF('[8]MONE(M)'!$AO212=\"\",\"\",'[8]MONE(M)'!$AO212)","v":14503.648456119998},29.131079154238691,9.7526554424262724,26.868164288951913,28.173131882731226,32.451389352511463,10.630842132732067,14.487487270522292,{"$f":"IF('[1]FISCAL(M)'!$K212=\"\",\"\",'[1]FISCAL(M)'!$K212)","v":-785.78437118049055},{"$f":"+'[1]REAL(A)'!$AO$26","v":125760.26827524658},-0.62482720652334733,{"$f":"IF('[1]FISCAL(M)'!$L212=\"\",\"\",'[1]FISCAL(M)'!$L212)","v":-930.47978044749004},{"$f":"+'[1]REAL(A)'!$AP$26","v":"n.d."},"n.d.",54245.177272484958,{"$f":"'[1]Gráfico REM'!BG206","v":11515.263747063189},{"$f":"'[1]Gráfico REM'!BH206","v":38412.158012368425},{"$f":"'[1]Gráfico REM'!BI206","v":4317.7555130533447},"n.d.",-3.3658139665356357,19.161011276412165,15.587048020737049,79296.293553744967,{"$f":"'[1]Gráfico REM'!BK206","v":12032.19931126319},{"$f":"'[1]Gráfico REM'!BL206","v":52915.806468488423},{"$f":"'[1]Gráfico REM'!BM206","v":14348.287773993346},"n.d.",-2.5613034921913691,17.84251081368151,20.85688525039291]
[2006,"diciembre","2006-diciembre",{"$f":"IF('[1]REAL IPC(M)'!$AL213=\"\",\"\",+'[1]REAL IPC(M)'!$AL213)","v":6.2340614398119998},{"$f":"IF('[1]REAL IPC(M)'!$BE213=\"\",\"\",+'[1]REAL IPC(M)'!$BE213)","v":8.3254509768335936},{"$f":"IF('[1]REAL IPC(M)'!$AM213=\"\",\"\",+'[1]REAL IPC(M)'!$AM213)","v":5.8318669711810323},{"$f":"IF('[1]REAL IPC(M)'!$BI213=\"\",\"\",+'[1]REAL IPC(M)'!$BI213)","v":7.843271199618207},{"$f":"IF('[1]REAL IMAE(M)'!BJ213=\"\",\"\",'[1]REAL IMAE(M)'!BJ213)","v":"n.d."},{"$f":"IF('[1]REAL IMAE(M)'!BK213=\"\",\"\",'[1]REAL IMAE(M)'!BK213)","v":"n.d."},{"$f":"IF('[1]REAL IMAE(M)'!BN213=\"\",\"\",'[1]REAL IMAE(M)'!BN213)","v":"n.d."},{"$f":"IF('[1]REAL IMAE(M)'!BO213=\"\",\"\",'[1]REAL IMAE(M)'!BO213)","v":"n.d."},{"$f":"IF('[1]EXT RIN(M)'!$K213=\"\",\"\",'[1]EXT RIN(M)'!$K213)","v":14371.078990295948},14371.078990295948,{"$f":"IF('[1]EXT RIN(M)'!$L213=\"\",\"\",'[1]EXT RIN(M)'!$L213)","v":15683.127508807547},15683.127508807547,{"$f":"IF('[1]MONE(M)CARD'!EG213=\"\",\"\",'[1]MONE(M)CARD'!EG213)","v":15272.61442323562},{"$f":"IF('[1]MONE(M)CARD'!EK213=\"\",\"\",'[1]MONE(M)CARD'!EK213)","v":26478.683223630953},{"$f":"IF('[1]MONE(M)CARD'!EP213=\"\",\"\",'[1]MONE(M)CARD'!EP213)","v":13667.472485738326},{"$f":"IF('[1]MONE(M)CARD'!ES213=\"\",\"\",'[1]MONE(M)CARD'!ES213)","v":24.148747054593578},{"$f":"IF('[1]MONE(M)CARD'!EV213=\"\",\"\",'[1]MONE(M)CARD'!EV213)","v":15.750266011193915},{"$f":"IF('[1]MONE(M)CARD'!EZ213=\"\",\"\",'[1]MONE(M)CARD'!EZ213)","v":13.348273380877519},{"$f":"IF('[1]MONE(M)CAPARD'!FC213=\"\",\"\",'[1]MONE(M)CAPARD'!FC213)","v":17882.880128645618},{"$f":"IF('[1]MONE(M)CAPARD'!FG213=\"\",\"\",'[1]MONE(M)CAPARD'!FG213)","v":38815.730981080953},{"$f":"IF('[1]MONE(M)CAPARD'!FL213=\"\",\"\",'[1]MONE(M)CAPARD'!FL213)","v":13667.472485738326},{"$f":"IF('[1]MONE(M)CAPARD'!FO213=\"\",\"\",'[1]MONE(M)CAPARD'!FO213)","v":25.863522676018924},{"$f":"IF('[1]MONE(M)CAPARD'!FR213=\"\",\"\",'[1]MONE(M)CAPARD'!FR213)","v":17.446290452302392},{"$f":"IF('[1]MONE(M)CAPARD'!FV213=\"\",\"\",'[1]MONE(M)CAPARD'!FV213)","v":15.16822689498909},{"$f":"IF('[1]MONE(M)CARD'!FV213=\"\",\"\",'[1]MONE(M)CARD'!FV213)","v":1561.504208720969},{"$f":"IF('[1]MONE(M)CARD'!GD213=\"\",\"\",'[1]MONE(M)CARD'!GD213)","v":43.651354897895843},{"$f":"IF('[1]MONE(M)CARD'!GE213=\"\",\"\",'[1]MONE(M)CARD'!GE213)","v":4232.509116780112},6.3257818676820898,{"$f":"IF('[9]II.2.Balance OSD-Activos'!J71=\"\",\"\",'[9]II.2.Balance OSD-Activos'!J71)","v":220.13992599241539},{"$f":"IF('[9]II.2.Balance OSD-Activos'!N71=\"\",\"\",'[9]II.2.Balance OSD-Activos'!N71)","v":358.09496394776602},{"$f":"IF('[9]II.2.Balance OSD-Activos'!R71=\"\",\"\",'[9]II.2.Balance OSD-Activos'!R71)","v":17260.516238853688},{"$f":"IF('[9]II.2.Balance OSD-Activos'!S71=\"\",\"\",'[9]II.2.Balance OSD-Activos'!S71)","v":20183.357949855854},17480.656164846103,38022.109078649723,12.405197143240532,17.378179138828841,49.744728748859977,17.444447773177419,21.962489401772768,20.017179016632113,0.15986555866176388,{"$f":"IF('[1]MONE(M)CAPARD'!GS213=\"\",\"\",'[1]MONE(M)CAPARD'!GS213)","v":7383.2444576274029},{"$f":"IF('[1]MONE(M)CARD'!HA213=\"\",\"\",'[1]MONE(M)CAPARD'!HA213)","v":4532.7958490701121},{"$f":"IF('[1]MONE(M)CAPARD'!HB213=\"\",\"\",'[1]MONE(M)CAPARD'!HB213)","v":2850.4486085572908},"n.d.",{"$f":"IF('[10]II.2.Balance OSD-Activos'!J71=\"\",\"\",'[10]II.2.Balance OSD-Activos'!J71)","v":398.63731626241537},{"$f":"IF('[10]II.2.Balance OSD-Activos'!N71=\"\",\"\",'[10]II.2.Balance OSD-Activos'!N71)","v":838.90284266776587},{"$f":"IF('[10]II.2.Balance OSD-Activos'!R71=\"\",\"\",'[10]II.2.Balance OSD-Activos'!R71)","v":24082.97437087369},{"$f":"IF('[10]II.2.Balance OSD-Activos'!S71=\"\",\"\",'[10]II.2.Balance OSD-Activos'!S71)","v":27026.732355395852},24481.611687136105,52347.246885199726,-1.4375643094012291,15.90011925785717,35.23485072869255,16.238571766126221,20.124895857547198,18.319676610907809,-0.15535074237409319,{"$f":"IF('[1]MONE(M)CAPARD'!AS213=\"\",\"\",'[1]MONE(M)CAPARD'!AS213)","v":8.9700000000000006},{"$f":"IF('[1]MONE(M)CAPARD'!AT213=\"\",\"\",'[1]MONE(M)CAPARD'!AT213)","v":"n.a."},{"$f":"IF('[1]MONE(M)CAPARD'!AU213=\"\",\"\",'[1]MONE(M)CAPARD'!AU213)","v":5},{"$f":"IF('[1]MONE(M)CAPARD'!AV213=\"\",\"\",'[1]MONE(M)CAPARD'!AV213)","v":6},{"$f":"IF('[1]MONE(M)CAPARD'!AW213=\"\",\"\",'[1]MONE(M)CAPARD'!AW213)","v":"n.a."},{"$f":"IF('[1]MONE(M)CAPARD'!AX213=\"\",\"\",'[1]MONE(M)CAPARD'!AX213)","v":8},{"$f":"IF('[1]MONE(M)CAPARD'!AY213=\"\",\"\",'[1]MONE(M)CAPARD'!AY213)","v":"n.a."},{"$f":"IF('[1]FISCAL(M)'!$K213=\"\",\"\",'[1]FISCAL(M)'!$K213)","v":-1424.3669952308258},{"$f":"IF('[1]FISCAL(M)'!$L213=\"\",\"\",'[1]FISCAL(M)'!$L213)","v":-1413.9774120388256},{"$f":"IF('[1]FISCAL(M)'!$AY213=\"\",\"\",'[1]FISCAL(M)'!$AY213)","v":"n.d."},{"$f":"IF('[1]FISCAL(M)'!$BI213=\"\",\"\",'[1]FISCAL(M)'!$BI213)","v":"n.d."},{"$f":"IF('[1]FISCAL(M)'!$BS213=\"\",\"\",'[1]FISCAL(M)'!$BS213)","v":28099.55},{"$f":"IF('[1]FISCAL(M)'!$AZ213=\"\",\"\",'[1]FISCAL(M)'!$AZ213)","v":"n.d."},{"$f":"IF('[1]FISCAL(M)'!$BJ213=\"\",\"\",'[1]FISCAL(M)'!$BJ213)","v":"n.d."},{"$f":"IF('[1]FISCAL(M)'!$BT213=\"\",\"\",'[1]FISCAL(M)'!$BT213)","v":35887.883448659995},{"$f":"IF('[2]MONE(M)'!$AO213=\"\",\"\",'[2]MONE(M)'!$AO213)","v":4484094.3987209611},{"$f":"IF('[3]MONE(M)'!$AO213=\"\",\"\",'[3]MONE(M)'!$AO213)","v":8138.3648772899996},{"$f":"IF('[4]MONE(M)'!$AO213=\"\",\"\",'[4]MONE(M)'!$AO213)","v":67905.509182619789},{"$f":"+'[5]MONE(M)'!$AO213","v":92621.295792901568},{"$f":"IF('[6]MONE(M)'!$AO213=\"\",\"\",'[6]MONE(M)'!$AO213)","v":31475.069152872486},{"$f":"IF('[7]MONE(M)'!$AO213=\"\",\"\",'[7]MONE(M)'!$AO213)","v":228245.58909178001},{"$f":"IF('[8]MONE(M)'!$AO213=\"\",\"\",'[8]MONE(M)'!$AO213)","v":14115.31720657},27.626521905358679,8.8660099510984089,21.384571284804444,29.095485181319724,30.737097637432441,11.950283584187593,12.439940561628671,{"$f":"IF('[1]FISCAL(M)'!$K213=\"\",\"\",'[1]FISCAL(M)'!$K213)","v":-1424.3669952308258},{"$f":"+'[1]REAL(A)'!$AO$26","v":125760.26827524658},-1.1326049274269752,{"$f":"IF('[1]FISCAL(M)'!$L213=\"\",\"\",'[1]FISCAL(M)'!$L213)","v":-1413.9774120388256},{"$f":"+'[1]REAL(A)'!$AP$26","v":"n.d."},"n.d.",54757.1957329078,{"$f":"'[1]Gráfico REM'!BG207","v":11470.65311389089},{"$f":"'[1]Gráfico REM'!BH207","v":39232.083220783767},{"$f":"'[1]Gráfico REM'!BI207","v":4054.4593982331426},"n.d.",-1.8484190724607275,18.8729352412909,5.6039459594296348,79385.379434205795,{"$f":"'[1]Gráfico REM'!BK207","v":11992.16570926689},{"$f":"'[1]Gráfico REM'!BL207","v":53347.400427353765},{"$f":"'[1]Gráfico REM'!BM207","v":14045.81329758514},"n.d.",-1.0771163047814447,17.100265444260465,12.804501963511417]
[2007,"enero","2007-enero",{"$f":"IF('[1]REAL IPC(M)'!$AL214=\"\",\"\",+'[1]REAL IPC(M)'!$AL214)","v":6.2322360762913087},{"$f":"IF('[1]REAL IPC(M)'!$BE214=\"\",\"\",+'[1]REAL IPC(M)'!$BE214)","v":8.2648384361381666},{"$f":"IF('[1]REAL IPC(M)'!$AM214=\"\",\"\",+'[1]REAL IPC(M)'!$AM214)","v":5.8404295060858979},{"$f":"IF('[1]REAL IPC(M)'!$BI214=\"\",\"\",+'[1]REAL IPC(M)'!$BI214)","v":7.8031554108699774},{"$f":"IF('[1]REAL IMAE(M)'!BJ214=\"\",\"\",'[1]REAL IMAE(M)'!BJ214)","v":"n.d."},{"$f":"IF('[1]REAL IMAE(M)'!BK214=\"\",\"\",'[1]REAL IMAE(M)'!BK214)","v":"n.d."},{"$f":"IF('[1]REAL IMAE(M)'!BN214=\"\",\"\",'[1]REAL IMAE(M)'!BN214)","v":"n.d."},{"$f":"IF('[1]REAL IMAE(M)'!BO214=\"\",\"\",'[1]REAL IMAE(M)'!BO214)","v":"n.d."},{"$f":"IF('[1]EXT RIN(M)'!$K214=\"\",\"\",'[1]EXT RIN(M)'!$K214)","v":14427.89042171833},"",{"$f":"IF('[1]EXT RIN(M)'!$L214=\"\",\"\",'[1]EXT RIN(M)'!$L214)","v":15774.460845826679},"",{"$f":"IF('[1]MONE(M)CARD'!EG214=\"\",\"\",'[1]MONE(M)CARD'!EG214)","v":14991.294181992283},{"$f":"IF('[1]MONE(M)CARD'!EK214=\"\",\"\",'[1]MONE(M)CARD'!EK214)","v":26595.532740193172},{"$f":"IF('[1]MONE(M)CARD'!EP214=\"\",\"\",'[1]MONE(M)CARD'!EP214)","v":13734.930560728913},{"$f":"IF('[1]MONE(M)CARD'!ES214=\"\",\"\",'[1]MONE(M)CARD'!ES214)","v":23.129720791982813},{"$f":"IF('[1]MONE(M)CARD'!EV214=\"\",\"\",'[1]MONE(M)CARD'!EV214)","v":15.954177222267884},{"$f":"IF('[1]MONE(M)CARD'!EZ214=\"\",\"\",'[1]MONE(M)CARD'!EZ214)","v":13.110984027077022},{"$f":"IF('[1]MONE(M)CAPARD'!FC214=\"\",\"\",'[1]MONE(M)CAPARD'!FC214)","v":17435.420566402281},{"$f":"IF('[1]MONE(M)CAPARD'!FG214=\"\",\"\",'[1]MONE(M)CAPARD'!FG214)","v":39047.216626133173},{"$f":"IF('[1]MONE(M)CAPARD'!FL214=\"\",\"\",'[1]MONE(M)CAPARD'!FL214)","v":13734.930560728921},{"$f":"IF('[1]MONE(M)CAPARD'!FO214=\"\",\"\",'[1]MONE(M)CAPARD'!FO214)","v":25.047587765802824},{"$f":"IF('[1]MONE(M)CAPARD'!FR214=\"\",\"\",'[1]MONE(M)CAPARD'!FR214)","v":17.988377625724674},{"$f":"IF('[1]MONE(M)CAPARD'!FV214=\"\",\"\",'[1]MONE(M)CAPARD'!FV214)","v":15.269976919616246},{"$f":"IF('[1]MONE(M)CARD'!FV214=\"\",\"\",'[1]MONE(M)CARD'!FV214)","v":1554.5591812630116},{"$f":"IF('[1]MONE(M)CARD'!GD214=\"\",\"\",'[1]MONE(M)CARD'!GD214)","v":41.745379412571253},{"$f":"IF('[1]MONE(M)CARD'!GE214=\"\",\"\",'[1]MONE(M)CARD'!GE214)","v":4542.9628160282264},21.302047088857769,{"$f":"IF('[9]II.2.Balance OSD-Activos'!J72=\"\",\"\",'[9]II.2.Balance OSD-Activos'!J72)","v":208.02156182253526},{"$f":"IF('[9]II.2.Balance OSD-Activos'!N72=\"\",\"\",'[9]II.2.Balance OSD-Activos'!N72)","v":344.25136715106578},{"$f":"IF('[9]II.2.Balance OSD-Activos'!R72=\"\",\"\",'[9]II.2.Balance OSD-Activos'!R72)","v":17575.412695360079},{"$f":"IF('[9]II.2.Balance OSD-Activos'!S72=\"\",\"\",'[9]II.2.Balance OSD-Activos'!S72)","v":20202.698828966626},17783.434257182613,38330.384453300307,2.2573727755650363,19.494773943120425,45.048194188676781,19.733662996045442,20.704304130564033,20.32062627997011,0.30344726333799699,{"$f":"IF('[1]MONE(M)CAPARD'!GS214=\"\",\"\",'[1]MONE(M)CAPARD'!GS214)","v":7190.8424259467965},{"$f":"IF('[1]MONE(M)CARD'!HA214=\"\",\"\",'[1]MONE(M)CAPARD'!HA214)","v":4842.8315460482263},{"$f":"IF('[1]MONE(M)CAPARD'!HB214=\"\",\"\",'[1]MONE(M)CAPARD'!HB214)","v":2348.0108798985702},"n.d.",{"$f":"IF('[10]II.2.Balance OSD-Activos'!J72=\"\",\"\",'[10]II.2.Balance OSD-Activos'!J72)","v":395.84222762253523},{"$f":"IF('[10]II.2.Balance OSD-Activos'!N72=\"\",\"\",'[10]II.2.Balance OSD-Activos'!N72)","v":797.46307129106583},{"$f":"IF('[10]II.2.Balance OSD-Activos'!R72=\"\",\"\",'[10]II.2.Balance OSD-Activos'!R72)","v":24519.365868110079},{"$f":"IF('[10]II.2.Balance OSD-Activos'!S72=\"\",\"\",'[10]II.2.Balance OSD-Activos'!S72)","v":27118.971094036628},24915.208095732614,52831.642261060304,-5.5158916243925553,17.356482023964269,26.810467206416444,17.816922006183987,19.28843277634811,18.474727660707082,0.15505104979927253,{"$f":"IF('[1]MONE(M)CAPARD'!AS214=\"\",\"\",'[1]MONE(M)CAPARD'!AS214)","v":5.98},{"$f":"IF('[1]MONE(M)CAPARD'!AT214=\"\",\"\",'[1]MONE(M)CAPARD'!AT214)","v":"n.a."},{"$f":"IF('[1]MONE(M)CAPARD'!AU214=\"\",\"\",'[1]MONE(M)CAPARD'!AU214)","v":5},{"$f":"IF('[1]MONE(M)CAPARD'!AV214=\"\",\"\",'[1]MONE(M)CAPARD'!AV214)","v":6},{"$f":"IF('[1]MONE(M)CAPARD'!AW214=\"\",\"\",'[1]MONE(M)CAPARD'!AW214)","v":"n.a."},{"$f":"IF('[1]MONE(M)CAPARD'!AX214=\"\",\"\",'[1]MONE(M)CAPARD'!AX214)","v":8},{"$f":"IF('[1]MONE(M)CAPARD'!AY214=\"\",\"\",'[1]MONE(M)CAPARD'!AY214)","v":"n.a."},{"$f":"IF('[1]FISCAL(M)'!$K214=\"\",\"\",'[1]FISCAL(M)'!$K214)","v":380.9127097423036},{"$f":"IF('[1]FISCAL(M)'!$L214=\"\",\"\",'[1]FISCAL(M)'!$L214)","v":259.65983899230366},{"$f":"IF('[1]FISCAL(M)'!$AY214=\"\",\"\",'[1]FISCAL(M)'!$AY214)","v":"n.d."},{"$f":"IF('[1]FISCAL(M)'!$BI214=\"\",\"\",'[1]FISCAL(M)'!$BI214)","v":"n.d."},{"$f":"IF('[1]FISCAL(M)'!$BS214=\"\",\"\",'[1]FISCAL(M)'!$BS214)","v":"n.d."},{"$f":"IF('[1]FISCAL(M)'!$AZ214=\"\",\"\",'[1]FISCAL(M)'!$AZ214)","v":"n.d."},{"$f":"IF('[1]FISCAL(M)'!$BJ214=\"\",\"\",'[1]FISCAL(M)'!$BJ214)","v":"n.d."},{"$f":"IF('[1]FISCAL(M)'!$BT214=\"\",\"\",'[1]FISCAL(M)'!$BT214)","v":"n.d."},{"$f":"IF('[2]MONE(M)'!$AO214=\"\",\"\",'[2]MONE(M)'!$AO214)","v":4522219.6535648387},{"$f":"IF('[3]MONE(M)'!$AO214=\"\",\"\",'[3]MONE(M)'!$AO214)","v":8184.1455731300002},{"$f":"IF('[4]MONE(M)'!$AO214=\"\",\"\",'[4]MONE(M)'!$AO214)","v":68525.592850636633},{"$f":"+'[5]MONE(M)'!$AO214","v":94990.763623850857},{"$f":"IF('[6]MONE(M)'!$AO214=\"\",\"\",'[6]MONE(M)'!$AO214)","v":32193.650927890289},{"$f":"IF('[7]MONE(M)'!$AO214=\"\",\"\",'[7]MONE(M)'!$AO214)","v":231239.89426331999},{"$f":"IF('[8]MONE(M)'!$AO214=\"\",\"\",'[8]MONE(M)'!$AO214)","v":14317.807770980002},29.358918626217289,8.7510340740641457,21.412638655662452,29.18861974420366,30.725134704000201,15.122931317549604,12.545041612789687,{"$f":"IF('[1]FISCAL(M)'!$K214=\"\",\"\",'[1]FISCAL(M)'!$K214)","v":380.9127097423036},{"$f":"+'[1]REAL(A)'!$AO$27","v":142802.84135501215},0.26674028760768365,{"$f":"IF('[1]FISCAL(M)'!$L214=\"\",\"\",'[1]FISCAL(M)'!$L214)","v":259.65983899230366},{"$f":"+'[1]REAL(A)'!$AP$27","v":164098.82435501216},0.15823382039017805,54815.010200825542,{"$f":"'[1]Gráfico REM'!BG208","v":11426.547637973181},{"$f":"'[1]Gráfico REM'!BH208","v":39482.799236943771},{"$f":"'[1]Gráfico REM'!BI208","v":3905.6633259085875},{"$f":"+((CS207/CS195)-1)*100","v":12.426725098669756},-3.5480410013182806,19.284398261246196,2.5212782841844472,79740.336129575546,{"$f":"'[1]Gráfico REM'!BK208","v":11907.94690004318},{"$f":"'[1]Gráfico REM'!BL208","v":53800.607007923769},{"$f":"'[1]Gráfico REM'!BM208","v":14031.782221608588},{"$f":"+((DA207/DA195)-1)*100","v":13.388952935066412},-3.5385804249104091,17.413290989123233,15.4094017233793]
[2007,"febrero","2007-febrero",{"$f":"IF('[1]REAL IPC(M)'!$AL215=\"\",\"\",+'[1]REAL IPC(M)'!$AL215)","v":6.2823080171860557},{"$f":"IF('[1]REAL IPC(M)'!$BE215=\"\",\"\",+'[1]REAL IPC(M)'!$BE215)","v":8.2106749055313557},{"$f":"IF('[1]REAL IPC(M)'!$AM215=\"\",\"\",+'[1]REAL IPC(M)'!$AM215)","v":5.9334690451479988},{"$f":"IF('[1]REAL IPC(M)'!$BI215=\"\",\"\",+'[1]REAL IPC(M)'!$BI215)","v":7.7697530255993907},{"$f":"IF('[1]REAL IMAE(M)'!BJ215=\"\",\"\",'[1]REAL IMAE(M)'!BJ215)","v":"n.d."},{"$f":"IF('[1]REAL IMAE(M)'!BK215=\"\",\"\",'[1]REAL IMAE(M)'!BK215)","v":"n.d."},{"$f":"IF('[1]REAL IMAE(M)'!BN215=\"\",\"\",'[1]REAL IMAE(M)'!BN215)","v":"n.d."},{"$f":"IF('[1]REAL IMAE(M)'!BO215=\"\",\"\",'[1]REAL IMAE(M)'!BO215)","v":"n.d."},{"$f":"IF('[1]EXT RIN(M)'!$K215=\"\",\"\",'[1]EXT RIN(M)'!$K215)","v":14601.90018196993},"",{"$f":"IF('[1]EXT RIN(M)'!$L215=\"\",\"\",'[1]EXT RIN(M)'!$L215)","v":15872.250847542169},"",{"$f":"IF('[1]MONE(M)CARD'!EG215=\"\",\"\",'[1]MONE(M)CARD'!EG215)","v":15260.428332466479},{"$f":"IF('[1]MONE(M)CARD'!EK215=\"\",\"\",'[1]MONE(M)CARD'!EK215)","v":26765.687544002947},{"$f":"IF('[1]MONE(M)CARD'!EP215=\"\",\"\",'[1]MONE(M)CARD'!EP215)","v":14006.932669671427},{"$f":"IF('[1]MONE(M)CARD'!ES215=\"\",\"\",'[1]MONE(M)CARD'!ES215)","v":25.400327217579431},{"$f":"IF('[1]MONE(M)CARD'!EV215=\"\",\"\",'[1]MONE(M)CARD'!EV215)","v":14.712317037206613},{"$f":"IF('[1]MONE(M)CARD'!EZ215=\"\",\"\",'[1]MONE(M)CARD'!EZ215)","v":12.460593993018776},{"$f":"IF('[1]MONE(M)CAPARD'!FC215=\"\",\"\",'[1]MONE(M)CAPARD'!FC215)","v":17735.998580406478},{"$f":"IF('[1]MONE(M)CAPARD'!FG215=\"\",\"\",'[1]MONE(M)CAPARD'!FG215)","v":39459.215928542952},{"$f":"IF('[1]MONE(M)CAPARD'!FL215=\"\",\"\",'[1]MONE(M)CAPARD'!FL215)","v":14006.932669671427},{"$f":"IF('[1]MONE(M)CAPARD'!FO215=\"\",\"\",'[1]MONE(M)CAPARD'!FO215)","v":27.063081871234786},{"$f":"IF('[1]MONE(M)CAPARD'!FR215=\"\",\"\",'[1]MONE(M)CAPARD'!FR215)","v":17.231133608745353},{"$f":"IF('[1]MONE(M)CAPARD'!FV215=\"\",\"\",'[1]MONE(M)CAPARD'!FV215)","v":14.884927383638047},{"$f":"IF('[1]MONE(M)CARD'!FV215=\"\",\"\",'[1]MONE(M)CARD'!FV215)","v":1647.9673387062492},{"$f":"IF('[1]MONE(M)CARD'!GD215=\"\",\"\",'[1]MONE(M)CARD'!GD215)","v":47.504525195449546},{"$f":"IF('[1]MONE(M)CARD'!GE215=\"\",\"\",'[1]MONE(M)CARD'!GE215)","v":4480.9618369133386},14.458928872011434,{"$f":"IF('[9]II.2.Balance OSD-Activos'!J73=\"\",\"\",'[9]II.2.Balance OSD-Activos'!J73)","v":233.15616411160542},{"$f":"IF('[9]II.2.Balance OSD-Activos'!N73=\"\",\"\",'[9]II.2.Balance OSD-Activos'!N73)","v":356.38634861277376},{"$f":"IF('[9]II.2.Balance OSD-Activos'!R73=\"\",\"\",'[9]II.2.Balance OSD-Activos'!R73)","v":17429.440883929325},{"$f":"IF('[9]II.2.Balance OSD-Activos'!S73=\"\",\"\",'[9]II.2.Balance OSD-Activos'!S73)","v":20853.261252807279},17662.597048040931,38872.244649460983,2.8051092484917106,16.672345730108184,44.110173237011786,16.883252712424547,22.293155681106349,19.836268790755263,-0.48435748921484745,{"$f":"IF('[1]MONE(M)CAPARD'!GS215=\"\",\"\",'[1]MONE(M)CAPARD'!GS215)","v":7046.3086361893475},{"$f":"IF('[1]MONE(M)CARD'!HA215=\"\",\"\",'[1]MONE(M)CAPARD'!HA215)","v":4790.1804184333387},{"$f":"IF('[1]MONE(M)CAPARD'!HB215=\"\",\"\",'[1]MONE(M)CAPARD'!HB215)","v":2256.1282177560088},"n.d.",{"$f":"IF('[10]II.2.Balance OSD-Activos'!J73=\"\",\"\",'[10]II.2.Balance OSD-Activos'!J73)","v":406.7098505116054},{"$f":"IF('[10]II.2.Balance OSD-Activos'!N73=\"\",\"\",'[10]II.2.Balance OSD-Activos'!N73)","v":816.67123816277365},{"$f":"IF('[10]II.2.Balance OSD-Activos'!R73=\"\",\"\",'[10]II.2.Balance OSD-Activos'!R73)","v":24436.15203949932},{"$f":"IF('[10]II.2.Balance OSD-Activos'!S73=\"\",\"\",'[10]II.2.Balance OSD-Activos'!S73)","v":27830.362874917279},24842.861890010925,53489.89600309098,-8.5828971083530607,15.633562521323574,26.495486103292443,16.145642730073018,20.354609465196717,18.200892980973691,-0.27383467973339037,{"$f":"IF('[1]MONE(M)CAPARD'!AS215=\"\",\"\",'[1]MONE(M)CAPARD'!AS215)","v":5.98},{"$f":"IF('[1]MONE(M)CAPARD'!AT215=\"\",\"\",'[1]MONE(M)CAPARD'!AT215)","v":"n.a."},{"$f":"IF('[1]MONE(M)CAPARD'!AU215=\"\",\"\",'[1]MONE(M)CAPARD'!AU215)","v":5},{"$f":"IF('[1]MONE(M)CAPARD'!AV215=\"\",\"\",'[1]MONE(M)CAPARD'!AV215)","v":6},{"$f":"IF('[1]MONE(M)CAPARD'!AW215=\"\",\"\",'[1]MONE(M)CAPARD'!AW215)","v":"n.a."},{"$f":"IF('[1]MONE(M)CAPARD'!AX215=\"\",\"\",'[1]MONE(M)CAPARD'!AX215)","v":8},{"$f":"IF('[1]MONE(M)CAPARD'!AY215=\"\",\"\",'[1]MONE(M)CAPARD'!AY215)","v":"n.a."},{"$f":"IF('[1]FISCAL(M)'!$K215=\"\",\"\",'[1]FISCAL(M)'!$K215)","v":331.26244296479626},{"$f":"IF('[1]FISCAL(M)'!$L215=\"\",\"\",'[1]FISCAL(M)'!$L215)","v":265.49021808897618},{"$f":"IF('[1]FISCAL(M)'!$AY215=\"\",\"\",'[1]FISCAL(M)'!$AY215)","v":"n.d."},{"$f":"IF('[1]FISCAL(M)'!$BI215=\"\",\"\",'[1]FISCAL(M)'!$BI215)","v":"n.d."},{"$f":"IF('[1]FISCAL(M)'!$BS215=\"\",\"\",'[1]FISCAL(M)'!$BS215)","v":"n.d."},{"$f":"IF('[1]FISCAL(M)'!$AZ215=\"\",\"\",'[1]FISCAL(M)'!$AZ215)","v":"n.d."},{"$f":"IF('[1]FISCAL(M)'!$BJ215=\"\",\"\",'[1]FISCAL(M)'!$BJ215)","v":"n.d."},{"$f":"IF('[1]FISCAL(M)'!$BT215=\"\",\"\",'[1]FISCAL(M)'!$BT215)","v":"n.d."},{"$f":"IF('[2]MONE(M)'!$AO215=\"\",\"\",'[2]MONE(M)'!$AO215)","v":4618994.5735645238},{"$f":"IF('[3]MONE(M)'!$AO215=\"\",\"\",'[3]MONE(M)'!$AO215)","v":8186.0599720800001},{"$f":"IF('[4]MONE(M)'!$AO215=\"\",\"\",'[4]MONE(M)'!$AO215)","v":69179.706225213828},{"$f":"+'[5]MONE(M)'!$AO215","v":97347.278600163874},{"$f":"IF('[6]MONE(M)'!$AO215=\"\",\"\",'[6]MONE(M)'!$AO215)","v":32643.571586732662},{"$f":"IF('[7]MONE(M)'!$AO215=\"\",\"\",'[7]MONE(M)'!$AO215)","v":232746.76703711},{"$f":"IF('[8]MONE(M)'!$AO215=\"\",\"\",'[8]MONE(M)'!$AO215)","v":14438.78675453},30.88127372572178,7.7820471013881898,20.819311494565707,30.183824428992324,29.263086504986614,16.18320684115535,13.170981854696183,{"$f":"IF('[1]FISCAL(M)'!$K215=\"\",\"\",'[1]FISCAL(M)'!$K215)","v":331.26244296479626},{"$f":"+'[1]REAL(A)'!$AO$27","v":142802.84135501215},0.23197188502802119,{"$f":"IF('[1]FISCAL(M)'!$L215=\"\",\"\",'[1]FISCAL(M)'!$L215)","v":265.49021808897618},{"$f":"+'[1]REAL(A)'!$AP$27","v":164098.82435501216},0.1617867886211137,55362.047885097614,{"$f":"'[1]Gráfico REM'!BG209","v":11278.645849554272},{"$f":"'[1]Gráfico REM'!BH209","v":40017.438477884411},{"$f":"'[1]Gráfico REM'!BI209","v":4065.9635576589249},12.437879961238174,-3.9974055668727138,18.754220911031517,7.2268245332677283,80451.720028217605,{"$f":"'[1]Gráfico REM'!BK209","v":11779.279510144272},{"$f":"'[1]Gráfico REM'!BL209","v":54456.225232414406},{"$f":"'[1]Gráfico REM'!BM209","v":14216.215285658925},13.30702526103671,-3.944967934654231,17.22087804052974,15.728016774521535]
[2007,"marzo","2007-marzo",{"$f":"IF('[1]REAL IPC(M)'!$AL216=\"\",\"\",+'[1]REAL IPC(M)'!$AL216)","v":6.7962145405661367},{"$f":"IF('[1]REAL IPC(M)'!$BE216=\"\",\"\",+'[1]REAL IPC(M)'!$BE216)","v":8.1622337620656626},{"$f":"IF('[1]REAL IPC(M)'!$AM216=\"\",\"\",+'[1]REAL IPC(M)'!$AM216)","v":6.442577292944951},{"$f":"IF('[1]REAL IPC(M)'!$BI216=\"\",\"\",+'[1]REAL IPC(M)'!$BI216)","v":7.7422405207040246},{"$f":"IF('[1]REAL IMAE(M)'!BJ216=\"\",\"\",'[1]REAL IMAE(M)'!BJ216)","v":"n.d."},{"$f":"IF('[1]REAL IMAE(M)'!BK216=\"\",\"\",'[1]REAL IMAE(M)'!BK216)","v":"n.d."},{"$f":"IF('[1]REAL IMAE(M)'!BN216=\"\",\"\",'[1]REAL IMAE(M)'!BN216)","v":"n.d."},{"$f":"IF('[1]REAL IMAE(M)'!BO216=\"\",\"\",'[1]REAL IMAE(M)'!BO216)","v":"n.d."},{"$f":"IF('[1]EXT RIN(M)'!$K216=\"\",\"\",'[1]EXT RIN(M)'!$K216)","v":15144.447925935823},"",{"$f":"IF('[1]EXT RIN(M)'!$L216=\"\",\"\",'[1]EXT RIN(M)'!$L216)","v":16264.326981243054},"",{"$f":"IF('[1]MONE(M)CARD'!EG216=\"\",\"\",'[1]MONE(M)CARD'!EG216)","v":15749.837366811418},{"$f":"IF('[1]MONE(M)CARD'!EK216=\"\",\"\",'[1]MONE(M)CARD'!EK216)","v":27824.661651918195},{"$f":"IF('[1]MONE(M)CARD'!EP216=\"\",\"\",'[1]MONE(M)CARD'!EP216)","v":14196.73087244849},{"$f":"IF('[1]MONE(M)CARD'!ES216=\"\",\"\",'[1]MONE(M)CARD'!ES216)","v":25.303202018879389},{"$f":"IF('[1]MONE(M)CARD'!EV216=\"\",\"\",'[1]MONE(M)CARD'!EV216)","v":16.260680851385789},{"$f":"IF('[1]MONE(M)CARD'!EZ216=\"\",\"\",'[1]MONE(M)CARD'!EZ216)","v":13.531030305066615},{"$f":"IF('[1]MONE(M)CAPARD'!FC216=\"\",\"\",'[1]MONE(M)CAPARD'!FC216)","v":18279.304555731418},{"$f":"IF('[1]MONE(M)CAPARD'!FG216=\"\",\"\",'[1]MONE(M)CAPARD'!FG216)","v":40861.286198818198},{"$f":"IF('[1]MONE(M)CAPARD'!FL216=\"\",\"\",'[1]MONE(M)CAPARD'!FL216)","v":14196.730872448505},{"$f":"IF('[1]MONE(M)CAPARD'!FO216=\"\",\"\",'[1]MONE(M)CAPARD'!FO216)","v":26.889918569618597},{"$f":"IF('[1]MONE(M)CAPARD'!FR216=\"\",\"\",'[1]MONE(M)CAPARD'!FR216)","v":18.756181635045756},{"$f":"IF('[1]MONE(M)CAPARD'!FV216=\"\",\"\",'[1]MONE(M)CAPARD'!FV216)","v":16.029300047422822},{"$f":"IF('[1]MONE(M)CARD'!FV216=\"\",\"\",'[1]MONE(M)CARD'!FV216)","v":1747.4468335060665},{"$f":"IF('[1]MONE(M)CARD'!GD216=\"\",\"\",'[1]MONE(M)CARD'!GD216)","v":39.669310626014166},{"$f":"IF('[1]MONE(M)CARD'!GE216=\"\",\"\",'[1]MONE(M)CARD'!GE216)","v":4693.5014422545128},19.001559673808298,{"$f":"IF('[9]II.2.Balance OSD-Activos'!J74=\"\",\"\",'[9]II.2.Balance OSD-Activos'!J74)","v":243.98050603893734},{"$f":"IF('[9]II.2.Balance OSD-Activos'!N74=\"\",\"\",'[9]II.2.Balance OSD-Activos'!N74)","v":379.54913704749879},{"$f":"IF('[9]II.2.Balance OSD-Activos'!R74=\"\",\"\",'[9]II.2.Balance OSD-Activos'!R74)","v":17933.656818663141},{"$f":"IF('[9]II.2.Balance OSD-Activos'!S74=\"\",\"\",'[9]II.2.Balance OSD-Activos'!S74)","v":21049.51716441942},18177.637324702078,39606.703626168994,41.573602397651001,18.689248836463147,52.446145144834965,18.428813435854764,20.993316698070696,20.160326625599701,0.32405783484443873,{"$f":"IF('[1]MONE(M)CAPARD'!GS216=\"\",\"\",'[1]MONE(M)CAPARD'!GS216)","v":7279.0039832669308},{"$f":"IF('[1]MONE(M)CARD'!HA216=\"\",\"\",'[1]MONE(M)CAPARD'!HA216)","v":5006.706459854513},{"$f":"IF('[1]MONE(M)CAPARD'!HB216=\"\",\"\",'[1]MONE(M)CAPARD'!HB216)","v":2272.2975234124178},"n.d.",{"$f":"IF('[10]II.2.Balance OSD-Activos'!J74=\"\",\"\",'[10]II.2.Balance OSD-Activos'!J74)","v":416.24261482893735},{"$f":"IF('[10]II.2.Balance OSD-Activos'!N74=\"\",\"\",'[10]II.2.Balance OSD-Activos'!N74)","v":792.19883802749871},{"$f":"IF('[10]II.2.Balance OSD-Activos'!R74=\"\",\"\",'[10]II.2.Balance OSD-Activos'!R74)","v":25044.720086273141},{"$f":"IF('[10]II.2.Balance OSD-Activos'!S74=\"\",\"\",'[10]II.2.Balance OSD-Activos'!S74)","v":28105.848417789421},25460.962701102078,54359.009956918999,-4.3636554734415522,17.093987025986124,19.67415596710822,17.532261816003004,19.400847135948563,18.31303652881855,0.11214354784485892,{"$f":"IF('[1]MONE(M)CAPARD'!AS216=\"\",\"\",'[1]MONE(M)CAPARD'!AS216)","v":5.98},{"$f":"IF('[1]MONE(M)CAPARD'!AT216=\"\",\"\",'[1]MONE(M)CAPARD'!AT216)","v":"n.a."},{"$f":"IF('[1]MONE(M)CAPARD'!AU216=\"\",\"\",'[1]MONE(M)CAPARD'!AU216)","v":5.25},{"$f":"IF('[1]MONE(M)CAPARD'!AV216=\"\",\"\",'[1]MONE(M)CAPARD'!AV216)","v":6},{"$f":"IF('[1]MONE(M)CAPARD'!AW216=\"\",\"\",'[1]MONE(M)CAPARD'!AW216)","v":"n.a."},{"$f":"IF('[1]MONE(M)CAPARD'!AX216=\"\",\"\",'[1]MONE(M)CAPARD'!AX216)","v":8},{"$f":"IF('[1]MONE(M)CAPARD'!AY216=\"\",\"\",'[1]MONE(M)CAPARD'!AY216)","v":"n.a."},{"$f":"IF('[1]FISCAL(M)'!$K216=\"\",\"\",'[1]FISCAL(M)'!$K216)","v":4.9366114106566528},{"$f":"IF('[1]FISCAL(M)'!$L216=\"\",\"\",'[1]FISCAL(M)'!$L216)","v":322.91852150865651},{"$f":"IF('[1]FISCAL(M)'!$AY216=\"\",\"\",'[1]FISCAL(M)'!$AY216)","v":49428.779343204966},{"$f":"IF('[1]FISCAL(M)'!$BI216=\"\",\"\",'[1]FISCAL(M)'!$BI216)","v":22415.708343204962},{"$f":"IF('[1]FISCAL(M)'!$BS216=\"\",\"\",'[1]FISCAL(M)'!$BS216)","v":27013.070999999996},{"$f":"IF('[1]FISCAL(M)'!$AZ216=\"\",\"\",'[1]FISCAL(M)'!$AZ216)","v":60168.125076784963},{"$f":"IF('[1]FISCAL(M)'!$BJ216=\"\",\"\",'[1]FISCAL(M)'!$BJ216)","v":25332.838148764964},{"$f":"IF('[1]FISCAL(M)'!$BT216=\"\",\"\",'[1]FISCAL(M)'!$BT216)","v":34835.286928019996},{"$f":"IF('[2]MONE(M)'!$AO216=\"\",\"\",'[2]MONE(M)'!$AO216)","v":4716069.2168245185},{"$f":"IF('[3]MONE(M)'!$AO216=\"\",\"\",'[3]MONE(M)'!$AO216)","v":8296.4514341200011},{"$f":"IF('[4]MONE(M)'!$AO216=\"\",\"\",'[4]MONE(M)'!$AO216)","v":69257.868007645448},{"$f":"+'[5]MONE(M)'!$AO216","v":99819.638644498744},{"$f":"IF('[6]MONE(M)'!$AO216=\"\",\"\",'[6]MONE(M)'!$AO216)","v":33164.83861275974},{"$f":"IF('[7]MONE(M)'!$AO216=\"\",\"\",'[7]MONE(M)'!$AO216)","v":233788.40120661998},{"$f":"IF('[8]MONE(M)'!$AO216=\"\",\"\",'[8]MONE(M)'!$AO216)","v":14625.204716900002},30.308267238780708,8.5716971889342908,18.887427908567211,30.625405505892921,28.142359592739673,15.998120714222019,13.407400263614221,{"$f":"IF('[1]FISCAL(M)'!$K216=\"\",\"\",'[1]FISCAL(M)'!$K216)","v":4.9366114106566528},{"$f":"+'[1]REAL(A)'!$AO$27","v":142802.84135501215},3.4569420074661459E-3,{"$f":"IF('[1]FISCAL(M)'!$L216=\"\",\"\",'[1]FISCAL(M)'!$L216)","v":322.91852150865651},{"$f":"+'[1]REAL(A)'!$AP$27","v":164098.82435501216},0.19678295854823011,56200.946617284601,{"$f":"'[1]Gráfico REM'!BG210","v":11406.167155582803},{"$f":"'[1]Gráfico REM'!BH210","v":40767.655730020568},{"$f":"'[1]Gráfico REM'!BI210","v":4027.1237316812299},11.876469122916934,-5.0232903477313684,19.044680139538951,1.1913583792828808,81944.557714010603,{"$f":"'[1]Gráfico REM'!BK210","v":11933.899658592803},{"$f":"'[1]Gráfico REM'!BL210","v":55392.860446920567},{"$f":"'[1]Gráfico REM'!BM210","v":14617.797608497232},13.236962824542076,-4.6799968598970736,17.502540782023736,15.065540214335993]
[2007,"abril","2007-abril",{"$f":"IF('[1]REAL IPC(M)'!$AL217=\"\",\"\",+'[1]REAL IPC(M)'!$AL217)","v":6.6355808806945582},{"$f":"IF('[1]REAL IPC(M)'!$BE217=\"\",\"\",+'[1]REAL IPC(M)'!$BE217)","v":8.1187021046721384},{"$f":"IF('[1]REAL IPC(M)'!$AM217=\"\",\"\",+'[1]REAL IPC(M)'!$AM217)","v":6.2474790938459757},{"$f":"IF('[1]REAL IPC(M)'!$BI217=\"\",\"\",+'[1]REAL IPC(M)'!$BI217)","v":7.7196990229578599},{"$f":"IF('[1]REAL IMAE(M)'!BJ217=\"\",\"\",'[1]REAL IMAE(M)'!BJ217)","v":"n.d."},{"$f":"IF('[1]REAL IMAE(M)'!BK217=\"\",\"\",'[1]REAL IMAE(M)'!BK217)","v":"n.d."},{"$f":"IF('[1]REAL IMAE(M)'!BN217=\"\",\"\",'[1]REAL IMAE(M)'!BN217)","v":"n.d."},{"$f":"IF('[1]REAL IMAE(M)'!BO217=\"\",\"\",'[1]REAL IMAE(M)'!BO217)","v":"n.d."},{"$f":"IF('[1]EXT RIN(M)'!$K217=\"\",\"\",'[1]EXT RIN(M)'!$K217)","v":15581.758713182253},"",{"$f":"IF('[1]EXT RIN(M)'!$L217=\"\",\"\",'[1]EXT RIN(M)'!$L217)","v":17230.124370508533},"",{"$f":"IF('[1]MONE(M)CARD'!EG217=\"\",\"\",'[1]MONE(M)CARD'!EG217)","v":15462.210001855936},{"$f":"IF('[1]MONE(M)CARD'!EK217=\"\",\"\",'[1]MONE(M)CARD'!EK217)","v":28203.801935367701},{"$f":"IF('[1]MONE(M)CARD'!EP217=\"\",\"\",'[1]MONE(M)CARD'!EP217)","v":14392.777102383479},{"$f":"IF('[1]MONE(M)CARD'!ES217=\"\",\"\",'[1]MONE(M)CARD'!ES217)","v":22.06438344829731},{"$f":"IF('[1]MONE(M)CARD'!EV217=\"\",\"\",'[1]MONE(M)CARD'!EV217)","v":15.36533759720966},{"$f":"IF('[1]MONE(M)CARD'!EZ217=\"\",\"\",'[1]MONE(M)CARD'!EZ217)","v":12.885051573780748},{"$f":"IF('[1]MONE(M)CAPARD'!FC217=\"\",\"\",'[1]MONE(M)CAPARD'!FC217)","v":18084.623773265939},{"$f":"IF('[1]MONE(M)CAPARD'!FG217=\"\",\"\",'[1]MONE(M)CAPARD'!FG217)","v":40577.861852477712},{"$f":"IF('[1]MONE(M)CAPARD'!FL217=\"\",\"\",'[1]MONE(M)CAPARD'!FL217)","v":14392.777102383479},{"$f":"IF('[1]MONE(M)CAPARD'!FO217=\"\",\"\",'[1]MONE(M)CAPARD'!FO217)","v":24.759794063059527},{"$f":"IF('[1]MONE(M)CAPARD'!FR217=\"\",\"\",'[1]MONE(M)CAPARD'!FR217)","v":16.539405851686496},{"$f":"IF('[1]MONE(M)CAPARD'!FV217=\"\",\"\",'[1]MONE(M)CAPARD'!FV217)","v":14.294187975276751},{"$f":"IF('[1]MONE(M)CARD'!FV217=\"\",\"\",'[1]MONE(M)CARD'!FV217)","v":1810.7278723810434},{"$f":"IF('[1]MONE(M)CARD'!GD217=\"\",\"\",'[1]MONE(M)CARD'!GD217)","v":180.06329640875052},{"$f":"IF('[1]MONE(M)CARD'!GE217=\"\",\"\",'[1]MONE(M)CARD'!GE217)","v":5030.9167207979335},16.416381559621552,{"$f":"IF('[9]II.2.Balance OSD-Activos'!J75=\"\",\"\",'[9]II.2.Balance OSD-Activos'!J75)","v":220.94027878616549},{"$f":"IF('[9]II.2.Balance OSD-Activos'!N75=\"\",\"\",'[9]II.2.Balance OSD-Activos'!N75)","v":387.68378535425836},{"$f":"IF('[9]II.2.Balance OSD-Activos'!R75=\"\",\"\",'[9]II.2.Balance OSD-Activos'!R75)","v":18326.192012272506},{"$f":"IF('[9]II.2.Balance OSD-Activos'!S75=\"\",\"\",'[9]II.2.Balance OSD-Activos'!S75)","v":21251.749445705376},18547.132291058671,{"$f":"IF(OR(AF210=\"\",AG210=\"\",AH210=\"\",AI210=\"\"),\"\",SUM(AF210:AI210))","v":40186.565522118304},30.754365793489068,19.134601618926638,48.702473403862115,19.007099720298946,20.341850542267959,20.001410849318567,-0.15891577628113396,{"$f":"IF('[1]MONE(M)CAPARD'!GS217=\"\",\"\",'[1]MONE(M)CAPARD'!GS217)","v":7429.7202678552139},{"$f":"IF('[1]MONE(M)CARD'!HA217=\"\",\"\",'[1]MONE(M)CAPARD'!HA217)","v":5331.2034530879337},{"$f":"IF('[1]MONE(M)CAPARD'!HB217=\"\",\"\",'[1]MONE(M)CAPARD'!HB217)","v":2098.5168147672803},"n.d.",{"$f":"IF('[10]II.2.Balance OSD-Activos'!J75=\"\",\"\",'[10]II.2.Balance OSD-Activos'!J75)","v":399.43766905616548},{"$f":"IF('[10]II.2.Balance OSD-Activos'!N75=\"\",\"\",'[10]II.2.Balance OSD-Activos'!N75)","v":868.49166407425832},{"$f":"IF('[10]II.2.Balance OSD-Activos'!R75=\"\",\"\",'[10]II.2.Balance OSD-Activos'!R75)","v":25148.650144292504},{"$f":"IF('[10]II.2.Balance OSD-Activos'!S75=\"\",\"\",'[10]II.2.Balance OSD-Activos'!S75)","v":28095.123851245375},{"$f":"IFERROR(+AW210+AY210,\"n.d.\")","v":25548.087813348669},54511.7033286683,-8.5921492844232343,15.646506394974825,28.496311025816112,16.135637045468833,17.735354985751339,16.901720888051219,-1.4113156407673308,{"$f":"IF('[1]MONE(M)CAPARD'!AS217=\"\",\"\",'[1]MONE(M)CAPARD'!AS217)","v":5.98},{"$f":"IF('[1]MONE(M)CAPARD'!AT217=\"\",\"\",'[1]MONE(M)CAPARD'!AT217)","v":"n.a."},{"$f":"IF('[1]MONE(M)CAPARD'!AU217=\"\",\"\",'[1]MONE(M)CAPARD'!AU217)","v":5.5},{"$f":"IF('[1]MONE(M)CAPARD'!AV217=\"\",\"\",'[1]MONE(M)CAPARD'!AV217)","v":6},{"$f":"IF('[1]MONE(M)CAPARD'!AW217=\"\",\"\",'[1]MONE(M)CAPARD'!AW217)","v":"n.a."},{"$f":"IF('[1]MONE(M)CAPARD'!AX217=\"\",\"\",'[1]MONE(M)CAPARD'!AX217)","v":7},{"$f":"IF('[1]MONE(M)CAPARD'!AY217=\"\",\"\",'[1]MONE(M)CAPARD'!AY217)","v":"n.a."},{"$f":"IF('[1]FISCAL(M)'!$K217=\"\",\"\",'[1]FISCAL(M)'!$K217)","v":417.74000805146767},{"$f":"IF('[1]FISCAL(M)'!$L217=\"\",\"\",'[1]FISCAL(M)'!$L217)","v":316.07000812946768},{"$f":"IF('[1]FISCAL(M)'!$AY217=\"\",\"\",'[1]FISCAL(M)'!$AY217)","v":"n.d."},{"$f":"IF('[1]FISCAL(M)'!$BI217=\"\",\"\",'[1]FISCAL(M)'!$BI217)","v":"n.d."},{"$f":"IF('[1]FISCAL(M)'!$BS217=\"\",\"\",'[1]FISCAL(M)'!$BS217)","v":"n.d."},{"$f":"IF('[1]FISCAL(M)'!$AZ217=\"\",\"\",'[1]FISCAL(M)'!$AZ217)","v":"n.d."},{"$f":"IF('[1]FISCAL(M)'!$BJ217=\"\",\"\",'[1]FISCAL(M)'!$BJ217)","v":"n.d."},{"$f":"IF('[1]FISCAL(M)'!$BT217=\"\",\"\",'[1]FISCAL(M)'!$BT217)","v":"n.d."},{"$f":"IF('[2]MONE(M)'!$AO217=\"\",\"\",'[2]MONE(M)'!$AO217)","v":4801259.8460711781},{"$f":"IF('[3]MONE(M)'!$AO217=\"\",\"\",'[3]MONE(M)'!$AO217)","v":8341.9750857100007},{"$f":"IF('[4]MONE(M)'!$AO217=\"\",\"\",'[4]MONE(M)'!$AO217)","v":69102.012597915294},{"$f":"+'[5]MONE(M)'!$AO217","v":102274.88345151802},{"$f":"IF('[6]MONE(M)'!$AO217=\"\",\"\",'[6]MONE(M)'!$AO217)","v":33729.893669919482},{"$f":"IF('[7]MONE(M)'!$AO217=\"\",\"\",'[7]MONE(M)'!$AO217)","v":239405.38668714999},{"$f":"IF('[8]MONE(M)'!$AO217=\"\",\"\",'[8]MONE(M)'!$AO217)","v":14115.317206569998},30.64422951138188,8.0040097431943291,16.884218131623019,30.364243355315246,27.41491833764147,17.072849164885163,8.2444632926105257,{"$f":"IF('[1]FISCAL(M)'!$K217=\"\",\"\",'[1]FISCAL(M)'!$K217)","v":417.74000805146767},{"$f":"+'[1]REAL(A)'!$AO$27","v":142802.84135501215},0.29252919906050995,{"$f":"IF('[1]FISCAL(M)'!$L217=\"\",\"\",'[1]FISCAL(M)'!$L217)","v":316.07000812946768},{"$f":"+'[1]REAL(A)'!$AP$27","v":164098.82435501216},0.19260955059963156,56863.687447389893,{"$f":"'[1]Gráfico REM'!BG211","v":11527.232152154287},{"$f":"'[1]Gráfico REM'!BH211","v":41317.962015178593},{"$f":"'[1]Gráfico REM'!BI211","v":4018.4932800570118},12.238757858770665,-2.24853297134604,18.71332878687857,-1.1668888187849613,81491.871148687889,{"$f":"'[1]Gráfico REM'!BK211","v":12048.744747530287},{"$f":"'[1]Gráfico REM'!BL211","v":55433.279221748591},{"$f":"'[1]Gráfico REM'!BM211","v":14009.847179409011},11.879447701034884,-1.9342680485897157,15.860027530583798,10.248118140582596]
[2007,"mayo ","2007-mayo ",{"$f":"IF('[1]REAL IPC(M)'!$AL218=\"\",\"\",+'[1]REAL IPC(M)'!$AL218)","v":6.2905464788475474},{"$f":"IF('[1]REAL IPC(M)'!$BE218=\"\",\"\",+'[1]REAL IPC(M)'!$BE218)","v":8.0792030641826607},{"$f":"IF('[1]REAL IPC(M)'!$AM218=\"\",\"\",+'[1]REAL IPC(M)'!$AM218)","v":6.002565308100638},{"$f":"IF('[1]REAL IPC(M)'!$BI218=\"\",\"\",+'[1]REAL IPC(M)'!$BI218)","v":7.7011374741797312},{"$f":"IF('[1]REAL IMAE(M)'!BJ218=\"\",\"\",'[1]REAL IMAE(M)'!BJ218)","v":"n.d."},{"$f":"IF('[1]REAL IMAE(M)'!BK218=\"\",\"\",'[1]REAL IMAE(M)'!BK218)","v":"n.d."},{"$f":"IF('[1]REAL IMAE(M)'!BN218=\"\",\"\",'[1]REAL IMAE(M)'!BN218)","v":"n.d."},{"$f":"IF('[1]REAL IMAE(M)'!BO218=\"\",\"\",'[1]REAL IMAE(M)'!BO218)","v":"n.d."},{"$f":"IF('[1]EXT RIN(M)'!$K218=\"\",\"\",'[1]EXT RIN(M)'!$K218)","v":15791.967384072588},"",{"$f":"IF('[1]EXT RIN(M)'!$L218=\"\",\"\",'[1]EXT RIN(M)'!$L218)","v":17474.150513552489},"",{"$f":"IF('[1]MONE(M)CARD'!EG218=\"\",\"\",'[1]MONE(M)CARD'!EG218)","v":15639.099509232281},{"$f":"IF('[1]MONE(M)CARD'!EK218=\"\",\"\",'[1]MONE(M)CARD'!EK218)","v":28875.51617662227},{"$f":"IF('[1]MONE(M)CARD'!EP218=\"\",\"\",'[1]MONE(M)CARD'!EP218)","v":14458.665190486179},{"$f":"IF('[1]MONE(M)CARD'!ES218=\"\",\"\",'[1]MONE(M)CARD'!ES218)","v":25.309226036170607},{"$f":"IF('[1]MONE(M)CARD'!EV218=\"\",\"\",'[1]MONE(M)CARD'!EV218)","v":17.813327006973644},{"$f":"IF('[1]MONE(M)CARD'!EZ218=\"\",\"\",'[1]MONE(M)CARD'!EZ218)","v":14.449646662071935},{"$f":"IF('[1]MONE(M)CAPARD'!FC218=\"\",\"\",'[1]MONE(M)CAPARD'!FC218)","v":18113.631744232283},{"$f":"IF('[1]MONE(M)CAPARD'!FG218=\"\",\"\",'[1]MONE(M)CAPARD'!FG218)","v":42298.686397972269},{"$f":"IF('[1]MONE(M)CAPARD'!FL218=\"\",\"\",'[1]MONE(M)CAPARD'!FL218)","v":14458.665190486172},{"$f":"IF('[1]MONE(M)CAPARD'!FO218=\"\",\"\",'[1]MONE(M)CAPARD'!FO218)","v":26.200558792910101},{"$f":"IF('[1]MONE(M)CAPARD'!FR218=\"\",\"\",'[1]MONE(M)CAPARD'!FR218)","v":19.527904262202188},{"$f":"IF('[1]MONE(M)CAPARD'!FV218=\"\",\"\",'[1]MONE(M)CAPARD'!FV218)","v":16.465231647371791},{"$f":"IF('[1]MONE(M)CARD'!FV218=\"\",\"\",'[1]MONE(M)CARD'!FV218)","v":1856.5104386119033},{"$f":"IF('[1]MONE(M)CARD'!GD218=\"\",\"\",'[1]MONE(M)CARD'!GD218)","v":37.365635919156873},{"$f":"IF('[1]MONE(M)CARD'!GE218=\"\",\"\",'[1]MONE(M)CARD'!GE218)","v":4820.1858903968341},6.980788848102093,{"$f":"IF('[9]II.2.Balance OSD-Activos'!J76=\"\",\"\",'[9]II.2.Balance OSD-Activos'!J76)","v":238.58923045730864},{"$f":"IF('[9]II.2.Balance OSD-Activos'!N76=\"\",\"\",'[9]II.2.Balance OSD-Activos'!N76)","v":388.63181788588082},{"$f":"IF('[9]II.2.Balance OSD-Activos'!R76=\"\",\"\",'[9]II.2.Balance OSD-Activos'!R76)","v":18465.758141987175},{"$f":"IF('[9]II.2.Balance OSD-Activos'!S76=\"\",\"\",'[9]II.2.Balance OSD-Activos'!S76)","v":21705.592110652644},18704.347372444485,40798.571300983007,33.617977461150758,19.59054667499187,39.423946898790895,19.428550375099007,21.323552253168842,20.671093843176468,0.66968299385790075,{"$f":"IF('[1]MONE(M)CAPARD'!GS218=\"\",\"\",'[1]MONE(M)CAPARD'!GS218)","v":7508.1290461615718},{"$f":"IF('[1]MONE(M)CARD'!HA218=\"\",\"\",'[1]MONE(M)CAPARD'!HA218)","v":5167.2331416568341},{"$f":"IF('[1]MONE(M)CAPARD'!HB218=\"\",\"\",'[1]MONE(M)CAPARD'!HB218)","v":2340.8959045047377},"n.d.",{"$f":"IF('[10]II.2.Balance OSD-Activos'!J76=\"\",\"\",'[10]II.2.Balance OSD-Activos'!J76)","v":411.46820059730862},{"$f":"IF('[10]II.2.Balance OSD-Activos'!N76=\"\",\"\",'[10]II.2.Balance OSD-Activos'!N76)","v":803.5275921358807},{"$f":"IF('[10]II.2.Balance OSD-Activos'!R76=\"\",\"\",'[10]II.2.Balance OSD-Activos'!R76)","v":25954.800116487175},{"$f":"IF('[10]II.2.Balance OSD-Activos'!S76=\"\",\"\",'[10]II.2.Balance OSD-Activos'!S76)","v":28937.028395992646},26366.268317084483,56106.824305213013,-8.2236952158455061,18.093355893537243,14.270404445621555,18.63265474344955,19.800329170805387,18.910211165107071,2.0084902770558521,{"$f":"IF('[1]MONE(M)CAPARD'!AS218=\"\",\"\",'[1]MONE(M)CAPARD'!AS218)","v":5.98},{"$f":"IF('[1]MONE(M)CAPARD'!AT218=\"\",\"\",'[1]MONE(M)CAPARD'!AT218)","v":"n.a."},{"$f":"IF('[1]MONE(M)CAPARD'!AU218=\"\",\"\",'[1]MONE(M)CAPARD'!AU218)","v":5.5},{"$f":"IF('[1]MONE(M)CAPARD'!AV218=\"\",\"\",'[1]MONE(M)CAPARD'!AV218)","v":6},{"$f":"IF('[1]MONE(M)CAPARD'!AW218=\"\",\"\",'[1]MONE(M)CAPARD'!AW218)","v":"n.a."},{"$f":"IF('[1]MONE(M)CAPARD'!AX218=\"\",\"\",'[1]MONE(M)CAPARD'!AX218)","v":7},{"$f":"IF('[1]MONE(M)CAPARD'!AY218=\"\",\"\",'[1]MONE(M)CAPARD'!AY218)","v":"n.a."},{"$f":"IF('[1]FISCAL(M)'!$K218=\"\",\"\",'[1]FISCAL(M)'!$K218)","v":451.3313009788925},{"$f":"IF('[1]FISCAL(M)'!$L218=\"\",\"\",'[1]FISCAL(M)'!$L218)","v":300.9632069428925},{"$f":"IF('[1]FISCAL(M)'!$AY218=\"\",\"\",'[1]FISCAL(M)'!$AY218)","v":"n.d."},{"$f":"IF('[1]FISCAL(M)'!$BI218=\"\",\"\",'[1]FISCAL(M)'!$BI218)","v":"n.d."},{"$f":"IF('[1]FISCAL(M)'!$BS218=\"\",\"\",'[1]FISCAL(M)'!$BS218)","v":"n.d."},{"$f":"IF('[1]FISCAL(M)'!$AZ218=\"\",\"\",'[1]FISCAL(M)'!$AZ218)","v":"n.d."},{"$f":"IF('[1]FISCAL(M)'!$BJ218=\"\",\"\",'[1]FISCAL(M)'!$BJ218)","v":"n.d."},{"$f":"IF('[1]FISCAL(M)'!$BT218=\"\",\"\",'[1]FISCAL(M)'!$BT218)","v":"n.d."},{"$f":"IF('[2]MONE(M)'!$AO218=\"\",\"\",'[2]MONE(M)'!$AO218)","v":4929688.3884895658},{"$f":"IF('[3]MONE(M)'!$AO218=\"\",\"\",'[3]MONE(M)'!$AO218)","v":8379.4729804599992},{"$f":"IF('[4]MONE(M)'!$AO218=\"\",\"\",'[4]MONE(M)'!$AO218)","v":69403.257484660266},{"$f":"+'[5]MONE(M)'!$AO218","v":104150.76775869736},{"$f":"IF('[6]MONE(M)'!$AO218=\"\",\"\",'[6]MONE(M)'!$AO218)","v":34291.579764232287},{"$f":"IF('[7]MONE(M)'!$AO218=\"\",\"\",'[7]MONE(M)'!$AO218)","v":245842.03716631001},{"$f":"IF('[8]MONE(M)'!$AO218=\"\",\"\",'[8]MONE(M)'!$AO218)","v":15177.051322940002},30.547584691232956,8.3651038955635073,16.586310051452834,29.807444212715239,27.127831939484981,18.199274136549469,14.547809901707609,{"$f":"IF('[1]FISCAL(M)'!$K218=\"\",\"\",'[1]FISCAL(M)'!$K218)","v":451.3313009788925},{"$f":"+'[1]REAL(A)'!$AO$27","v":142802.84135501215},0.31605204539093823,{"$f":"IF('[1]FISCAL(M)'!$L218=\"\",\"\",'[1]FISCAL(M)'!$L218)","v":300.9632069428925},{"$f":"+'[1]REAL(A)'!$AP$27","v":164098.82435501216},0.18340363383212746,57631.201824465905,{"$f":"'[1]Gráfico REM'!BG212","v":11571.077872319463},{"$f":"'[1]Gráfico REM'!BH212","v":41955.592410331061},{"$f":"'[1]Gráfico REM'!BI212","v":4104.531541815385},12.409409010093597,-2.0877646188981802,19.441817076294889,-5.0937787010846609,83775.788968387904,{"$f":"'[1]Gráfico REM'!BK212","v":12113.697041039464},{"$f":"'[1]Gráfico REM'!BL212","v":57132.643733271063},{"$f":"'[1]Gráfico REM'!BM212","v":14529.448194077388},13.02838712265415,-1.5343702851604024,18.1014122455726,8.0990557061350277]
[2007,"junio ","2007-junio ",{"$f":"IF('[1]REAL IPC(M)'!$AL219=\"\",\"\",+'[1]REAL IPC(M)'!$AL219)","v":6.126268970151405},{"$f":"IF('[1]REAL IPC(M)'!$BE219=\"\",\"\",+'[1]REAL IPC(M)'!$BE219)","v":8.0427955352605949},{"$f":"IF('[1]REAL IPC(M)'!$AM219=\"\",\"\",+'[1]REAL IPC(M)'!$AM219)","v":5.8820301841147726},{"$f":"IF('[1]REAL IPC(M)'!$BI219=\"\",\"\",+'[1]REAL IPC(M)'!$BI219)","v":7.6854901815205157},{"$f":"IF('[1]REAL IMAE(M)'!BJ219=\"\",\"\",'[1]REAL IMAE(M)'!BJ219)","v":"n.d."},{"$f":"IF('[1]REAL IMAE(M)'!BK219=\"\",\"\",'[1]REAL IMAE(M)'!BK219)","v":"n.d."},{"$f":"IF('[1]REAL IMAE(M)'!BN219=\"\",\"\",'[1]REAL IMAE(M)'!BN219)","v":"n.d."},{"$f":"IF('[1]REAL IMAE(M)'!BO219=\"\",\"\",'[1]REAL IMAE(M)'!BO219)","v":"n.d."},{"$f":"IF('[1]EXT RIN(M)'!$K219=\"\",\"\",'[1]EXT RIN(M)'!$K219)","v":16139.297376662204},"",{"$f":"IF('[1]EXT RIN(M)'!$L219=\"\",\"\",'[1]EXT RIN(M)'!$L219)","v":17882.353390912253},"",{"$f":"IF('[1]MONE(M)CARD'!EG219=\"\",\"\",'[1]MONE(M)CARD'!EG219)","v":15804.319687310373},{"$f":"IF('[1]MONE(M)CARD'!EK219=\"\",\"\",'[1]MONE(M)CARD'!EK219)","v":29166.059648366398},{"$f":"IF('[1]MONE(M)CARD'!EP219=\"\",\"\",'[1]MONE(M)CARD'!EP219)","v":14535.843801207084},{"$f":"IF('[1]MONE(M)CARD'!ES219=\"\",\"\",'[1]MONE(M)CARD'!ES219)","v":22.29967314303256},{"$f":"IF('[1]MONE(M)CARD'!EV219=\"\",\"\",'[1]MONE(M)CARD'!EV219)","v":17.501989776172834},{"$f":"IF('[1]MONE(M)CARD'!EZ219=\"\",\"\",'[1]MONE(M)CARD'!EZ219)","v":14.33174567249036},{"$f":"IF('[1]MONE(M)CAPARD'!FC219=\"\",\"\",'[1]MONE(M)CAPARD'!FC219)","v":18296.002121900376},{"$f":"IF('[1]MONE(M)CAPARD'!FG219=\"\",\"\",'[1]MONE(M)CAPARD'!FG219)","v":42618.580486536397},{"$f":"IF('[1]MONE(M)CAPARD'!FL219=\"\",\"\",'[1]MONE(M)CAPARD'!FL219)","v":14535.843801207084},{"$f":"IF('[1]MONE(M)CAPARD'!FO219=\"\",\"\",'[1]MONE(M)CAPARD'!FO219)","v":23.999561238103784},{"$f":"IF('[1]MONE(M)CAPARD'!FR219=\"\",\"\",'[1]MONE(M)CAPARD'!FR219)","v":19.00371901281952},{"$f":"IF('[1]MONE(M)CAPARD'!FV219=\"\",\"\",'[1]MONE(M)CAPARD'!FV219)","v":16.145314941163758},{"$f":"IF('[1]MONE(M)CARD'!FV219=\"\",\"\",'[1]MONE(M)CARD'!FV219)","v":1874.6528337062987},{"$f":"IF('[1]MONE(M)CARD'!GD219=\"\",\"\",'[1]MONE(M)CARD'!GD219)","v":91.521807435906524},{"$f":"IF('[1]MONE(M)CARD'!GE219=\"\",\"\",'[1]MONE(M)CARD'!GE219)","v":4952.5041914948733},18.66810178990017,{"$f":"IF('[9]II.2.Balance OSD-Activos'!J77=\"\",\"\",'[9]II.2.Balance OSD-Activos'!J77)","v":221.5536544925657},{"$f":"IF('[9]II.2.Balance OSD-Activos'!N77=\"\",\"\",'[9]II.2.Balance OSD-Activos'!N77)","v":398.83418159406381},{"$f":"IF('[9]II.2.Balance OSD-Activos'!R77=\"\",\"\",'[9]II.2.Balance OSD-Activos'!R77)","v":18400.173979709423},{"$f":"IF('[9]II.2.Balance OSD-Activos'!S77=\"\",\"\",'[9]II.2.Balance OSD-Activos'!S77)","v":22410.006821880845},18621.72763420199,41430.568637676901,21.490203762463047,19.998247966673244,33.647209079227004,19.980506791825302,21.010293111865241,20.662723257336822,-8.3705858396463384E-3,{"$f":"IF('[1]MONE(M)CAPARD'!GS219=\"\",\"\",'[1]MONE(M)CAPARD'!GS219)","v":7480.3386198197068},{"$f":"IF('[1]MONE(M)CARD'!HA219=\"\",\"\",'[1]MONE(M)CAPARD'!HA219)","v":5305.4375903848741},{"$f":"IF('[1]MONE(M)CAPARD'!HB219=\"\",\"\",'[1]MONE(M)CAPARD'!HB219)","v":2174.9010294348327},"n.d.",{"$f":"IF('[10]II.2.Balance OSD-Activos'!J77=\"\",\"\",'[10]II.2.Balance OSD-Activos'!J77)","v":395.19951220256576},{"$f":"IF('[10]II.2.Balance OSD-Activos'!N77=\"\",\"\",'[10]II.2.Balance OSD-Activos'!N77)","v":810.78541744406391},{"$f":"IF('[10]II.2.Balance OSD-Activos'!R77=\"\",\"\",'[10]II.2.Balance OSD-Activos'!R77)","v":25990.082264859422},{"$f":"IF('[10]II.2.Balance OSD-Activos'!S77=\"\",\"\",'[10]II.2.Balance OSD-Activos'!S77)","v":29741.380191650846},26385.281777061988,56937.447386156899,-10.58615176009271,18.00794486716779,7.1078008075923238,18.584589953479025,19.718268207257751,18.721851663093215,-0.18835950201385643,{"$f":"IF('[1]MONE(M)CAPARD'!AS219=\"\",\"\",'[1]MONE(M)CAPARD'!AS219)","v":5.98},{"$f":"IF('[1]MONE(M)CAPARD'!AT219=\"\",\"\",'[1]MONE(M)CAPARD'!AT219)","v":"n.a."},{"$f":"IF('[1]MONE(M)CAPARD'!AU219=\"\",\"\",'[1]MONE(M)CAPARD'!AU219)","v":5.5},{"$f":"IF('[1]MONE(M)CAPARD'!AV219=\"\",\"\",'[1]MONE(M)CAPARD'!AV219)","v":6},{"$f":"IF('[1]MONE(M)CAPARD'!AW219=\"\",\"\",'[1]MONE(M)CAPARD'!AW219)","v":"n.a."},{"$f":"IF('[1]MONE(M)CAPARD'!AX219=\"\",\"\",'[1]MONE(M)CAPARD'!AX219)","v":7},{"$f":"IF('[1]MONE(M)CAPARD'!AY219=\"\",\"\",'[1]MONE(M)CAPARD'!AY219)","v":"n.a."},{"$f":"IF('[1]FISCAL(M)'!$K219=\"\",\"\",'[1]FISCAL(M)'!$K219)","v":441.71946810681442},{"$f":"IF('[1]FISCAL(M)'!$L219=\"\",\"\",'[1]FISCAL(M)'!$L219)","v":326.01024892381434},{"$f":"IF('[1]FISCAL(M)'!$AY219=\"\",\"\",'[1]FISCAL(M)'!$AY219)","v":48501.982935674969},{"$f":"IF('[1]FISCAL(M)'!$BI219=\"\",\"\",'[1]FISCAL(M)'!$BI219)","v":22552.325935674962},{"$f":"IF('[1]FISCAL(M)'!$BS219=\"\",\"\",'[1]FISCAL(M)'!$BS219)","v":25949.657000000003},{"$f":"IF('[1]FISCAL(M)'!$AZ219=\"\",\"\",'[1]FISCAL(M)'!$AZ219)","v":59400.24307797497},{"$f":"IF('[1]FISCAL(M)'!$BJ219=\"\",\"\",'[1]FISCAL(M)'!$BJ219)","v":25181.764581954962},{"$f":"IF('[1]FISCAL(M)'!$BT219=\"\",\"\",'[1]FISCAL(M)'!$BT219)","v":34218.478496020005},{"$f":"IF('[2]MONE(M)'!$AO219=\"\",\"\",'[2]MONE(M)'!$AO219)","v":5071442.3415026702},{"$f":"IF('[3]MONE(M)'!$AO219=\"\",\"\",'[3]MONE(M)'!$AO219)","v":8430.091471830001},{"$f":"IF('[4]MONE(M)'!$AO219=\"\",\"\",'[4]MONE(M)'!$AO219)","v":70205.212432141532},{"$f":"+'[5]MONE(M)'!$AO219","v":105798.49536672767},{"$f":"IF('[6]MONE(M)'!$AO219=\"\",\"\",'[6]MONE(M)'!$AO219)","v":35397.684409204674},{"$f":"IF('[7]MONE(M)'!$AO219=\"\",\"\",'[7]MONE(M)'!$AO219)","v":255504.42318573003},{"$f":"IF('[8]MONE(M)'!$AO219=\"\",\"\",'[8]MONE(M)'!$AO219)","v":15387.371402519999},31.167661346131158,8.6634963409532482,12.992649198938079,31.75618058342744,29.530484303184188,19.55947240448188,14.312721944849716,{"$f":"IF('[1]FISCAL(M)'!$K219=\"\",\"\",'[1]FISCAL(M)'!$K219)","v":441.71946810681442},{"$f":"+'[1]REAL(A)'!$AO$27","v":142802.84135501215},0.30932120391686507,{"$f":"IF('[1]FISCAL(M)'!$L219=\"\",\"\",'[1]FISCAL(M)'!$L219)","v":326.01024892381434},{"$f":"+'[1]REAL(A)'!$AP$27","v":164098.82435501216},0.19866702287794719,58356.248941149366,{"$f":"'[1]Gráfico REM'!BG213","v":11641.422160896576},{"$f":"'[1]Gráfico REM'!BH213","v":42573.906829656298},{"$f":"'[1]Gráfico REM'!BI213","v":4140.9199505964916},12.780846022699244,0.18994910916818597,18.888105302795942,-4.0039097185724408,84697.53948170536,{"$f":"'[1]Gráfico REM'!BK213","v":12176.519538126577},{"$f":"'[1]Gráfico REM'!BL213","v":57961.278232176293},{"$f":"'[1]Gráfico REM'!BM213","v":14559.741711402492},12.464112474988486,0.63352884148022426,17.638112672906846,4.4455601543456069]
[2007,"julio","2007-julio",{"$f":"IF('[1]REAL IPC(M)'!$AL220=\"\",\"\",+'[1]REAL IPC(M)'!$AL220)","v":5.9989226782801497},{"$f":"IF('[1]REAL IPC(M)'!$BE220=\"\",\"\",+'[1]REAL IPC(M)'!$BE220)","v":8.0084571529592132},{"$f":"IF('[1]REAL IPC(M)'!$AM220=\"\",\"\",+'[1]REAL IPC(M)'!$AM220)","v":5.8140898944545771},{"$f":"IF('[1]REAL IPC(M)'!$BI220=\"\",\"\",+'[1]REAL IPC(M)'!$BI220)","v":7.6716009997564782},{"$f":"IF('[1]REAL IMAE(M)'!BJ220=\"\",\"\",'[1]REAL IMAE(M)'!BJ220)","v":"n.d."},{"$f":"IF('[1]REAL IMAE(M)'!BK220=\"\",\"\",'[1]REAL IMAE(M)'!BK220)","v":"n.d."},{"$f":"IF('[1]REAL IMAE(M)'!BN220=\"\",\"\",'[1]REAL IMAE(M)'!BN220)","v":"n.d."},{"$f":"IF('[1]REAL IMAE(M)'!BO220=\"\",\"\",'[1]REAL IMAE(M)'!BO220)","v":"n.d."},{"$f":"IF('[1]EXT RIN(M)'!$K220=\"\",\"\",'[1]EXT RIN(M)'!$K220)","v":16690.896929464252},"",{"$f":"IF('[1]EXT RIN(M)'!$L220=\"\",\"\",'[1]EXT RIN(M)'!$L220)","v":18573.760170741552},"",{"$f":"IF('[1]MONE(M)CARD'!EG220=\"\",\"\",'[1]MONE(M)CARD'!EG220)","v":16021.308867150208},{"$f":"IF('[1]MONE(M)CARD'!EK220=\"\",\"\",'[1]MONE(M)CARD'!EK220)","v":30264.52896562195},{"$f":"IF('[1]MONE(M)CARD'!EP220=\"\",\"\",'[1]MONE(M)CARD'!EP220)","v":14745.382538388949},{"$f":"IF('[1]MONE(M)CARD'!ES220=\"\",\"\",'[1]MONE(M)CARD'!ES220)","v":20.785264184729456},{"$f":"IF('[1]MONE(M)CARD'!EV220=\"\",\"\",'[1]MONE(M)CARD'!EV220)","v":19.21278859312374},{"$f":"IF('[1]MONE(M)CARD'!EZ220=\"\",\"\",'[1]MONE(M)CARD'!EZ220)","v":15.721482003354549},{"$f":"IF('[1]MONE(M)CAPARD'!FC220=\"\",\"\",'[1]MONE(M)CAPARD'!FC220)","v":18584.046637430205},{"$f":"IF('[1]MONE(M)CAPARD'!FG220=\"\",\"\",'[1]MONE(M)CAPARD'!FG220)","v":43644.316420301941},{"$f":"IF('[1]MONE(M)CAPARD'!FL220=\"\",\"\",'[1]MONE(M)CAPARD'!FL220)","v":14745.382538388949},{"$f":"IF('[1]MONE(M)CAPARD'!FO220=\"\",\"\",'[1]MONE(M)CAPARD'!FO220)","v":22.931705362137755},{"$f":"IF('[1]MONE(M)CAPARD'!FR220=\"\",\"\",'[1]MONE(M)CAPARD'!FR220)","v":20.413303248223947},{"$f":"IF('[1]MONE(M)CAPARD'!FV220=\"\",\"\",'[1]MONE(M)CAPARD'!FV220)","v":17.351458659919782},{"$f":"IF('[1]MONE(M)CARD'!FV220=\"\",\"\",'[1]MONE(M)CARD'!FV220)","v":1910.1992632691204},{"$f":"IF('[1]MONE(M)CARD'!GD220=\"\",\"\",'[1]MONE(M)CARD'!GD220)","v":48.50736588740228},{"$f":"IF('[1]MONE(M)CARD'!GE220=\"\",\"\",'[1]MONE(M)CARD'!GE220)","v":4983.9259372684601},19.359091822952081,{"$f":"IF('[9]II.2.Balance OSD-Activos'!J78=\"\",\"\",'[9]II.2.Balance OSD-Activos'!J78)","v":209.75410095904522},{"$f":"IF('[9]II.2.Balance OSD-Activos'!N78=\"\",\"\",'[9]II.2.Balance OSD-Activos'!N78)","v":401.21195402726426},{"$f":"IF('[9]II.2.Balance OSD-Activos'!R78=\"\",\"\",'[9]II.2.Balance OSD-Activos'!R78)","v":18803.515125467013},{"$f":"IF('[9]II.2.Balance OSD-Activos'!S78=\"\",\"\",'[9]II.2.Balance OSD-Activos'!S78)","v":22924.69402500537},19013.269226426059,42339.175205458698,2.0579764526452493,19.322819694867867,25.4026841059801,19.548415451935529,23.233217295316223,21.465552260436649,0.80282900309982708,{"$f":"IF('[1]MONE(M)CAPARD'!GS220=\"\",\"\",'[1]MONE(M)CAPARD'!GS220)","v":7530.1531157330046},{"$f":"IF('[1]MONE(M)CARD'!HA220=\"\",\"\",'[1]MONE(M)CAPARD'!HA220)","v":5338.5646941984596},{"$f":"IF('[1]MONE(M)CAPARD'!HB220=\"\",\"\",'[1]MONE(M)CAPARD'!HB220)","v":2191.588421534545},"n.d.",{"$f":"IF('[10]II.2.Balance OSD-Activos'!J78=\"\",\"\",'[10]II.2.Balance OSD-Activos'!J78)","v":382.25541258904514},{"$f":"IF('[10]II.2.Balance OSD-Activos'!N78=\"\",\"\",'[10]II.2.Balance OSD-Activos'!N78)","v":815.68845169726433},{"$f":"IF('[10]II.2.Balance OSD-Activos'!R78=\"\",\"\",'[10]II.2.Balance OSD-Activos'!R78)","v":26589.036508687012},{"$f":"IF('[10]II.2.Balance OSD-Activos'!S78=\"\",\"\",'[10]II.2.Balance OSD-Activos'!S78)","v":30343.110494055371},26971.291921276057,58130.090867028688,-18.585893476545181,17.819707856149101,4.7474989744943352,18.58202988787103,21.230571818409839,19.363688273701985,0.64183661060877029,{"$f":"IF('[1]MONE(M)CAPARD'!AS220=\"\",\"\",'[1]MONE(M)CAPARD'!AS220)","v":5.98},{"$f":"IF('[1]MONE(M)CAPARD'!AT220=\"\",\"\",'[1]MONE(M)CAPARD'!AT220)","v":"n.a."},{"$f":"IF('[1]MONE(M)CAPARD'!AU220=\"\",\"\",'[1]MONE(M)CAPARD'!AU220)","v":5.5},{"$f":"IF('[1]MONE(M)CAPARD'!AV220=\"\",\"\",'[1]MONE(M)CAPARD'!AV220)","v":6},{"$f":"IF('[1]MONE(M)CAPARD'!AW220=\"\",\"\",'[1]MONE(M)CAPARD'!AW220)","v":"n.a."},{"$f":"IF('[1]MONE(M)CAPARD'!AX220=\"\",\"\",'[1]MONE(M)CAPARD'!AX220)","v":7},{"$f":"IF('[1]MONE(M)CAPARD'!AY220=\"\",\"\",'[1]MONE(M)CAPARD'!AY220)","v":"n.a."},{"$f":"IF('[1]FISCAL(M)'!$K220=\"\",\"\",'[1]FISCAL(M)'!$K220)","v":425.34234362557174},{"$f":"IF('[1]FISCAL(M)'!$L220=\"\",\"\",'[1]FISCAL(M)'!$L220)","v":117.54086767257172},{"$f":"IF('[1]FISCAL(M)'!$AY220=\"\",\"\",'[1]FISCAL(M)'!$AY220)","v":"n.d."},{"$f":"IF('[1]FISCAL(M)'!$BI220=\"\",\"\",'[1]FISCAL(M)'!$BI220)","v":"n.d."},{"$f":"IF('[1]FISCAL(M)'!$BS220=\"\",\"\",'[1]FISCAL(M)'!$BS220)","v":"n.d."},{"$f":"IF('[1]FISCAL(M)'!$AZ220=\"\",\"\",'[1]FISCAL(M)'!$AZ220)","v":"n.d."},{"$f":"IF('[1]FISCAL(M)'!$BJ220=\"\",\"\",'[1]FISCAL(M)'!$BJ220)","v":"n.d."},{"$f":"IF('[1]FISCAL(M)'!$BT220=\"\",\"\",'[1]FISCAL(M)'!$BT220)","v":"n.d."},{"$f":"IF('[2]MONE(M)'!$AO220=\"\",\"\",'[2]MONE(M)'!$AO220)","v":5204961.9180931514},{"$f":"IF('[3]MONE(M)'!$AO220=\"\",\"\",'[3]MONE(M)'!$AO220)","v":8499.9039197499987},{"$f":"IF('[4]MONE(M)'!$AO220=\"\",\"\",'[4]MONE(M)'!$AO220)","v":71565.19277235042},{"$f":"+'[5]MONE(M)'!$AO220","v":108597.51321928579},{"$f":"IF('[6]MONE(M)'!$AO220=\"\",\"\",'[6]MONE(M)'!$AO220)","v":36104.710312523253},{"$f":"IF('[7]MONE(M)'!$AO220=\"\",\"\",'[7]MONE(M)'!$AO220)","v":259731.91515257003},{"$f":"IF('[8]MONE(M)'!$AO220=\"\",\"\",'[8]MONE(M)'!$AO220)","v":15688.103872429998},31.989280715423106,8.4338463788141471,14.328907494976928,33.483131070674773,28.604722123904658,19.252458062975641,14.586299845149986,{"$f":"IF('[1]FISCAL(M)'!$K220=\"\",\"\",'[1]FISCAL(M)'!$K220)","v":425.34234362557174},{"$f":"+'[1]REAL(A)'!$AO$27","v":142802.84135501215},0.29785285754094898,{"$f":"IF('[1]FISCAL(M)'!$L220=\"\",\"\",'[1]FISCAL(M)'!$L220)","v":117.54086767257172},{"$f":"+'[1]REAL(A)'!$AP$27","v":164098.82435501216},7.1628098576918056E-2,59104.050257257448,{"$f":"'[1]Gráfico REM'!BG214","v":11432.896072773319},{"$f":"'[1]Gráfico REM'!BH214","v":43540.831033714989},{"$f":"'[1]Gráfico REM'!BI214","v":4130.323150769138},13.053062580049545,-1.7491565064006842,19.905779059034856,-4.6323221863600716,86134.906761057457,{"$f":"'[1]Gráfico REM'!BK214","v":11993.385687963319},{"$f":"'[1]Gráfico REM'!BL214","v":59228.93490614499},{"$f":"'[1]Gráfico REM'!BM214","v":14912.586166949139},12.94714156522787,-1.1168045734103571,18.449295999702663,5.5474818782576429]
[2007,"agosto","2007-agosto",{"$f":"IF('[1]REAL IPC(M)'!$AL221=\"\",\"\",+'[1]REAL IPC(M)'!$AL221)","v":6.0310492413439443},{"$f":"IF('[1]REAL IPC(M)'!$BE221=\"\",\"\",+'[1]REAL IPC(M)'!$BE221)","v":7.9750751959420274},{"$f":"IF('[1]REAL IPC(M)'!$AM221=\"\",\"\",+'[1]REAL IPC(M)'!$AM221)","v":5.8519778427269076},{"$f":"IF('[1]REAL IPC(M)'!$BI221=\"\",\"\",+'[1]REAL IPC(M)'!$BI221)","v":7.6582156738490781},{"$f":"IF('[1]REAL IMAE(M)'!BJ221=\"\",\"\",'[1]REAL IMAE(M)'!BJ221)","v":"n.d."},{"$f":"IF('[1]REAL IMAE(M)'!BK221=\"\",\"\",'[1]REAL IMAE(M)'!BK221)","v":"n.d."},{"$f":"IF('[1]REAL IMAE(M)'!BN221=\"\",\"\",'[1]REAL IMAE(M)'!BN221)","v":"n.d."},{"$f":"IF('[1]REAL IMAE(M)'!BO221=\"\",\"\",'[1]REAL IMAE(M)'!BO221)","v":"n.d."},{"$f":"IF('[1]EXT RIN(M)'!$K221=\"\",\"\",'[1]EXT RIN(M)'!$K221)","v":16438.12995307249},"",{"$f":"IF('[1]EXT RIN(M)'!$L221=\"\",\"\",'[1]EXT RIN(M)'!$L221)","v":18277.30992536934},"",{"$f":"IF('[1]MONE(M)CARD'!EG221=\"\",\"\",'[1]MONE(M)CARD'!EG221)","v":16050.42448793923},{"$f":"IF('[1]MONE(M)CARD'!EK221=\"\",\"\",'[1]MONE(M)CARD'!EK221)","v":30277.61874653941},{"$f":"IF('[1]MONE(M)CARD'!EP221=\"\",\"\",'[1]MONE(M)CARD'!EP221)","v":14730.462534938524},{"$f":"IF('[1]MONE(M)CARD'!ES221=\"\",\"\",'[1]MONE(M)CARD'!ES221)","v":22.738255459929956},{"$f":"IF('[1]MONE(M)CARD'!EV221=\"\",\"\",'[1]MONE(M)CARD'!EV221)","v":18.255803055194562},{"$f":"IF('[1]MONE(M)CARD'!EZ221=\"\",\"\",'[1]MONE(M)CARD'!EZ221)","v":14.834441515818565},{"$f":"IF('[1]MONE(M)CAPARD'!FC221=\"\",\"\",'[1]MONE(M)CAPARD'!FC221)","v":18503.98920388463},{"$f":"IF('[1]MONE(M)CAPARD'!FG221=\"\",\"\",'[1]MONE(M)CAPARD'!FG221)","v":43947.921647093317},{"$f":"IF('[1]MONE(M)CAPARD'!FL221=\"\",\"\",'[1]MONE(M)CAPARD'!FL221)","v":14730.462534938531},{"$f":"IF('[1]MONE(M)CAPARD'!FO221=\"\",\"\",'[1]MONE(M)CAPARD'!FO221)","v":23.660852488692228},{"$f":"IF('[1]MONE(M)CAPARD'!FR221=\"\",\"\",'[1]MONE(M)CAPARD'!FR221)","v":19.622653359219157},{"$f":"IF('[1]MONE(M)CAPARD'!FV221=\"\",\"\",'[1]MONE(M)CAPARD'!FV221)","v":16.585811268769856},{"$f":"IF('[1]MONE(M)CARD'!FV221=\"\",\"\",'[1]MONE(M)CARD'!FV221)","v":1944.8808248520918},{"$f":"IF('[1]MONE(M)CARD'!GD221=\"\",\"\",'[1]MONE(M)CARD'!GD221)","v":48.795451521937842},{"$f":"IF('[1]MONE(M)CARD'!GE221=\"\",\"\",'[1]MONE(M)CARD'!GE221)","v":4901.7426557117988},18.768698866051391,{"$f":"IF('[9]II.2.Balance OSD-Activos'!J79=\"\",\"\",'[9]II.2.Balance OSD-Activos'!J79)","v":235.14406621784471},{"$f":"IF('[9]II.2.Balance OSD-Activos'!N79=\"\",\"\",'[9]II.2.Balance OSD-Activos'!N79)","v":374.34462862155965},{"$f":"IF('[9]II.2.Balance OSD-Activos'!R79=\"\",\"\",'[9]II.2.Balance OSD-Activos'!R79)","v":19052.031695087127},{"$f":"IF('[9]II.2.Balance OSD-Activos'!S79=\"\",\"\",'[9]II.2.Balance OSD-Activos'!S79)","v":23392.174485545009},19287.17576130497,43053.694875471541,19.088955412864085,19.819608681947432,16.502129519625399,19.828682568791088,22.616756628617708,21.292931650218705,-0.17262061021794395,{"$f":"IF('[1]MONE(M)CAPARD'!GS221=\"\",\"\",'[1]MONE(M)CAPARD'!GS221)","v":7551.2097002868886},{"$f":"IF('[1]MONE(M)CARD'!HA221=\"\",\"\",'[1]MONE(M)CAPARD'!HA221)","v":5274.162533321798},{"$f":"IF('[1]MONE(M)CAPARD'!HB221=\"\",\"\",'[1]MONE(M)CAPARD'!HB221)","v":2277.0471669650906},"n.d.",{"$f":"IF('[10]II.2.Balance OSD-Activos'!J79=\"\",\"\",'[10]II.2.Balance OSD-Activos'!J79)","v":407.06161476784473},{"$f":"IF('[10]II.2.Balance OSD-Activos'!N79=\"\",\"\",'[10]II.2.Balance OSD-Activos'!N79)","v":797.97615775155953},{"$f":"IF('[10]II.2.Balance OSD-Activos'!R79=\"\",\"\",'[10]II.2.Balance OSD-Activos'!R79)","v":26968.979234337123},{"$f":"IF('[10]II.2.Balance OSD-Activos'!S79=\"\",\"\",'[10]II.2.Balance OSD-Activos'!S79)","v":30906.895007685009},27376.040849104967,59080.912014541536,-11.038578826489598,18.206263131585843,-7.0828934007394206E-2,18.795709047182264,20.799144508232725,19.250695386066894,-0.11299288763509097,{"$f":"IF('[1]MONE(M)CAPARD'!AS221=\"\",\"\",'[1]MONE(M)CAPARD'!AS221)","v":5.52},{"$f":"IF('[1]MONE(M)CAPARD'!AT221=\"\",\"\",'[1]MONE(M)CAPARD'!AT221)","v":"n.a."},{"$f":"IF('[1]MONE(M)CAPARD'!AU221=\"\",\"\",'[1]MONE(M)CAPARD'!AU221)","v":5.5},{"$f":"IF('[1]MONE(M)CAPARD'!AV221=\"\",\"\",'[1]MONE(M)CAPARD'!AV221)","v":6.25},{"$f":"IF('[1]MONE(M)CAPARD'!AW221=\"\",\"\",'[1]MONE(M)CAPARD'!AW221)","v":"n.a."},{"$f":"IF('[1]MONE(M)CAPARD'!AX221=\"\",\"\",'[1]MONE(M)CAPARD'!AX221)","v":7},{"$f":"IF('[1]MONE(M)CAPARD'!AY221=\"\",\"\",'[1]MONE(M)CAPARD'!AY221)","v":"n.a."},{"$f":"IF('[1]FISCAL(M)'!$K221=\"\",\"\",'[1]FISCAL(M)'!$K221)","v":380.47085727292404},{"$f":"IF('[1]FISCAL(M)'!$L221=\"\",\"\",'[1]FISCAL(M)'!$L221)","v":3.3153931099241163},{"$f":"IF('[1]FISCAL(M)'!$AY221=\"\",\"\",'[1]FISCAL(M)'!$AY221)","v":"n.d."},{"$f":"IF('[1]FISCAL(M)'!$BI221=\"\",\"\",'[1]FISCAL(M)'!$BI221)","v":"n.d."},{"$f":"IF('[1]FISCAL(M)'!$BS221=\"\",\"\",'[1]FISCAL(M)'!$BS221)","v":"n.d."},{"$f":"IF('[1]FISCAL(M)'!$AZ221=\"\",\"\",'[1]FISCAL(M)'!$AZ221)","v":"n.d."},{"$f":"IF('[1]FISCAL(M)'!$BJ221=\"\",\"\",'[1]FISCAL(M)'!$BJ221)","v":"n.d."},{"$f":"IF('[1]FISCAL(M)'!$BT221=\"\",\"\",'[1]FISCAL(M)'!$BT221)","v":"n.d."},{"$f":"IF('[2]MONE(M)'!$AO221=\"\",\"\",'[2]MONE(M)'!$AO221)","v":5347400.4580569863},{"$f":"IF('[3]MONE(M)'!$AO221=\"\",\"\",'[3]MONE(M)'!$AO221)","v":8589.5510584000003},{"$f":"IF('[4]MONE(M)'!$AO221=\"\",\"\",'[4]MONE(M)'!$AO221)","v":72191.215654330736},{"$f":"+'[5]MONE(M)'!$AO221","v":111641.31312252212},{"$f":"IF('[6]MONE(M)'!$AO221=\"\",\"\",'[6]MONE(M)'!$AO221)","v":37071.737199081166},{"$f":"IF('[7]MONE(M)'!$AO221=\"\",\"\",'[7]MONE(M)'!$AO221)","v":265232.88061102002},{"$f":"IF('[8]MONE(M)'!$AO221=\"\",\"\",'[8]MONE(M)'!$AO221)","v":15918.094314499998},31.689265485894545,8.4192556350793488,13.816194883087164,32.463644222153199,29.438814747696206,19.491880465378351,14.677106039466414,{"$f":"IF('[1]FISCAL(M)'!$K221=\"\",\"\",'[1]FISCAL(M)'!$K221)","v":380.47085727292404},{"$f":"+'[1]REAL(A)'!$AO$27","v":142802.84135501215},0.26643087326747372,{"$f":"IF('[1]FISCAL(M)'!$L221=\"\",\"\",'[1]FISCAL(M)'!$L221)","v":3.3153931099241163},{"$f":"+'[1]REAL(A)'!$AP$27","v":164098.82435501216},2.0203637186038451E-3,59722.109192216725,{"$f":"'[1]Gráfico REM'!BG215","v":11360.223655582608},{"$f":"'[1]Gráfico REM'!BH215","v":44248.366768928696},{"$f":"'[1]Gráfico REM'!BI215","v":4113.5187677054164},13.601041128120128,0.35137687301380893,19.651994535491003,-3.6751770975756992,87371.670017666707,{"$f":"'[1]Gráfico REM'!BK215","v":11968.369471282607},{"$f":"'[1]Gráfico REM'!BL215","v":60166.461083428694},{"$f":"'[1]Gráfico REM'!BM215","v":15236.839462955415},14.068876142533293,1.45659290491853,18.29428460449174,9.3240567764538937]
[2007,"septiembre","2007-septiembre",{"$f":"IF('[1]REAL IPC(M)'!$AL222=\"\",\"\",+'[1]REAL IPC(M)'!$AL222)","v":7.3789265325792552},{"$f":"IF('[1]REAL IPC(M)'!$BE222=\"\",\"\",+'[1]REAL IPC(M)'!$BE222)","v":7.9414408178765772},{"$f":"IF('[1]REAL IPC(M)'!$AM222=\"\",\"\",+'[1]REAL IPC(M)'!$AM222)","v":7.1612404584357359},{"$f":"IF('[1]REAL IPC(M)'!$BI222=\"\",\"\",+'[1]REAL IPC(M)'!$BI222)","v":7.6439763111754822},{"$f":"IF('[1]REAL IMAE(M)'!BJ222=\"\",\"\",'[1]REAL IMAE(M)'!BJ222)","v":"n.d."},{"$f":"IF('[1]REAL IMAE(M)'!BK222=\"\",\"\",'[1]REAL IMAE(M)'!BK222)","v":"n.d."},{"$f":"IF('[1]REAL IMAE(M)'!BN222=\"\",\"\",'[1]REAL IMAE(M)'!BN222)","v":"n.d."},{"$f":"IF('[1]REAL IMAE(M)'!BO222=\"\",\"\",'[1]REAL IMAE(M)'!BO222)","v":"n.d."},{"$f":"IF('[1]EXT RIN(M)'!$K222=\"\",\"\",'[1]EXT RIN(M)'!$K222)","v":16429.400277607423},"",{"$f":"IF('[1]EXT RIN(M)'!$L222=\"\",\"\",'[1]EXT RIN(M)'!$L222)","v":18149.176740364172},"",{"$f":"IF('[1]MONE(M)CARD'!EG222=\"\",\"\",'[1]MONE(M)CARD'!EG222)","v":16351.329691641042},{"$f":"IF('[1]MONE(M)CARD'!EK222=\"\",\"\",'[1]MONE(M)CARD'!EK222)","v":30114.775768453888},{"$f":"IF('[1]MONE(M)CARD'!EP222=\"\",\"\",'[1]MONE(M)CARD'!EP222)","v":14752.104123120866},{"$f":"IF('[1]MONE(M)CARD'!ES222=\"\",\"\",'[1]MONE(M)CARD'!ES222)","v":23.22059732081523},{"$f":"IF('[1]MONE(M)CARD'!EV222=\"\",\"\",'[1]MONE(M)CARD'!EV222)","v":17.719700676626072},{"$f":"IF('[1]MONE(M)CARD'!EZ222=\"\",\"\",'[1]MONE(M)CARD'!EZ222)","v":14.573070228706397},{"$f":"IF('[1]MONE(M)CAPARD'!FC222=\"\",\"\",'[1]MONE(M)CAPARD'!FC222)","v":18938.84488548644},{"$f":"IF('[1]MONE(M)CAPARD'!FG222=\"\",\"\",'[1]MONE(M)CAPARD'!FG222)","v":44013.731994927788},{"$f":"IF('[1]MONE(M)CAPARD'!FL222=\"\",\"\",'[1]MONE(M)CAPARD'!FL222)","v":14752.104123120851},{"$f":"IF('[1]MONE(M)CAPARD'!FO222=\"\",\"\",'[1]MONE(M)CAPARD'!FO222)","v":24.530214769712909},{"$f":"IF('[1]MONE(M)CAPARD'!FR222=\"\",\"\",'[1]MONE(M)CAPARD'!FR222)","v":19.458118641141287},{"$f":"IF('[1]MONE(M)CAPARD'!FV222=\"\",\"\",'[1]MONE(M)CAPARD'!FV222)","v":16.571792333497882},{"$f":"IF('[1]MONE(M)CARD'!FV222=\"\",\"\",'[1]MONE(M)CARD'!FV222)","v":1970.2196167879129},{"$f":"IF('[1]MONE(M)CARD'!GD222=\"\",\"\",'[1]MONE(M)CARD'!GD222)","v":83.065144831145574},{"$f":"IF('[1]MONE(M)CARD'!GE222=\"\",\"\",'[1]MONE(M)CARD'!GE222)","v":5121.8515814853254},23.714440096305211,{"$f":"IF('[9]II.2.Balance OSD-Activos'!J80=\"\",\"\",'[9]II.2.Balance OSD-Activos'!J80)","v":209.30859453409829},{"$f":"IF('[9]II.2.Balance OSD-Activos'!N80=\"\",\"\",'[9]II.2.Balance OSD-Activos'!N80)","v":386.19590677770731},{"$f":"IF('[9]II.2.Balance OSD-Activos'!R80=\"\",\"\",'[9]II.2.Balance OSD-Activos'!R80)","v":19101.42670605435},{"$f":"IF('[9]II.2.Balance OSD-Activos'!S80=\"\",\"\",'[9]II.2.Balance OSD-Activos'!S80)","v":24080.440668637821},19310.735300588447,43777.371876003977,20.854667868215749,19.742505756430994,15.578682990836224,19.730432331880586,24.348644440294386,22.193437300053496,0.9005056498347912,{"$f":"IF('[1]MONE(M)CAPARD'!GS222=\"\",\"\",'[1]MONE(M)CAPARD'!GS222)","v":7577.0057919955852},{"$f":"IF('[1]MONE(M)CARD'!HA222=\"\",\"\",'[1]MONE(M)CAPARD'!HA222)","v":5484.6456135753251},{"$f":"IF('[1]MONE(M)CAPARD'!HB222=\"\",\"\",'[1]MONE(M)CAPARD'!HB222)","v":2092.3601784202601},"n.d.",{"$f":"IF('[10]II.2.Balance OSD-Activos'!J80=\"\",\"\",'[10]II.2.Balance OSD-Activos'!J80)","v":380.82539953409827},{"$f":"IF('[10]II.2.Balance OSD-Activos'!N80=\"\",\"\",'[10]II.2.Balance OSD-Activos'!N80)","v":827.35028943770726},{"$f":"IF('[10]II.2.Balance OSD-Activos'!R80=\"\",\"\",'[10]II.2.Balance OSD-Activos'!R80)","v":27175.663520154347},{"$f":"IF('[10]II.2.Balance OSD-Activos'!S80=\"\",\"\",'[10]II.2.Balance OSD-Activos'!S80)","v":31680.002402797818},27556.488919688443,60063.84161192397,-9.1037919316699583,18.066910146038406,0.53543501780248803,18.5635620247552,22.027610004164554,19.83048932033342,0.57979393426652592,{"$f":"IF('[1]MONE(M)CAPARD'!AS222=\"\",\"\",'[1]MONE(M)CAPARD'!AS222)","v":5.52},{"$f":"IF('[1]MONE(M)CAPARD'!AT222=\"\",\"\",'[1]MONE(M)CAPARD'!AT222)","v":"n.a."},{"$f":"IF('[1]MONE(M)CAPARD'!AU222=\"\",\"\",'[1]MONE(M)CAPARD'!AU222)","v":5.75},{"$f":"IF('[1]MONE(M)CAPARD'!AV222=\"\",\"\",'[1]MONE(M)CAPARD'!AV222)","v":6.25},{"$f":"IF('[1]MONE(M)CAPARD'!AW222=\"\",\"\",'[1]MONE(M)CAPARD'!AW222)","v":"n.a."},{"$f":"IF('[1]MONE(M)CAPARD'!AX222=\"\",\"\",'[1]MONE(M)CAPARD'!AX222)","v":7},{"$f":"IF('[1]MONE(M)CAPARD'!AY222=\"\",\"\",'[1]MONE(M)CAPARD'!AY222)","v":"n.a."},{"$f":"IF('[1]FISCAL(M)'!$K222=\"\",\"\",'[1]FISCAL(M)'!$K222)","v":187.92677121674956},{"$f":"IF('[1]FISCAL(M)'!$L222=\"\",\"\",'[1]FISCAL(M)'!$L222)","v":-226.83739846625087},{"$f":"IF('[1]FISCAL(M)'!$AY222=\"\",\"\",'[1]FISCAL(M)'!$AY222)","v":49207.611589526088},{"$f":"IF('[1]FISCAL(M)'!$BI222=\"\",\"\",'[1]FISCAL(M)'!$BI222)","v":23105.511589526082},{"$f":"IF('[1]FISCAL(M)'!$BS222=\"\",\"\",'[1]FISCAL(M)'!$BS222)","v":26102.100000000002},{"$f":"IF('[1]FISCAL(M)'!$AZ222=\"\",\"\",'[1]FISCAL(M)'!$AZ222)","v":60091.835457736088},{"$f":"IF('[1]FISCAL(M)'!$BJ222=\"\",\"\",'[1]FISCAL(M)'!$BJ222)","v":25722.83003204608},{"$f":"IF('[1]FISCAL(M)'!$BT222=\"\",\"\",'[1]FISCAL(M)'!$BT222)","v":34369.005425690004},{"$f":"IF('[2]MONE(M)'!$AO222=\"\",\"\",'[2]MONE(M)'!$AO222)","v":5551791.8994058557},{"$f":"IF('[3]MONE(M)'!$AO222=\"\",\"\",'[3]MONE(M)'!$AO222)","v":8619.8569313799999},{"$f":"IF('[4]MONE(M)'!$AO222=\"\",\"\",'[4]MONE(M)'!$AO222)","v":72916.757021769969},{"$f":"+'[5]MONE(M)'!$AO222","v":114333.72187025729},{"$f":"IF('[6]MONE(M)'!$AO222=\"\",\"\",'[6]MONE(M)'!$AO222)","v":37738.350563191372},{"$f":"IF('[7]MONE(M)'!$AO222=\"\",\"\",'[7]MONE(M)'!$AO222)","v":271172.71788015001},{"$f":"IF('[8]MONE(M)'!$AO222=\"\",\"\",'[8]MONE(M)'!$AO222)","v":16157.887507600002},33.981181623606169,8.8158710874133739,12.266744086755853,33.910260447110254,28.645484802856135,20.652440909919068,13.8769944163476,{"$f":"IF('[1]FISCAL(M)'!$K222=\"\",\"\",'[1]FISCAL(M)'!$K222)","v":187.92677121674956},{"$f":"+'[1]REAL(A)'!$AO$27","v":142802.84135501215},0.13159876192488212,{"$f":"IF('[1]FISCAL(M)'!$L222=\"\",\"\",'[1]FISCAL(M)'!$L222)","v":-226.83739846625087},{"$f":"+'[1]REAL(A)'!$AP$27","v":164098.82435501216},-0.13823218987572378,60679.441507823038,{"$f":"'[1]Gráfico REM'!BG216","v":11425.80742387091},{"$f":"'[1]Gráfico REM'!BH216","v":44980.484029850028},{"$f":"'[1]Gráfico REM'!BI216","v":4273.1500541020978},14.464356685186042,0.76283501410685517,20.622479559854877,-2.4849337748924949,88798.678796353037,{"$f":"'[1]Gráfico REM'!BK216","v":12043.32565799091},{"$f":"'[1]Gráfico REM'!BL216","v":61138.371537450032},{"$f":"'[1]Gráfico REM'!BM216","v":15616.981600912097},14.51545554454594,1.9095029892124193,18.763262790737901,9.6228367645274204]
[2007,"octubre","2007-octubre",{"$f":"IF('[1]REAL IPC(M)'!$AL223=\"\",\"\",+'[1]REAL IPC(M)'!$AL223)","v":8.0484064654941392},{"$f":"IF('[1]REAL IPC(M)'!$BE223=\"\",\"\",+'[1]REAL IPC(M)'!$BE223)","v":7.9062715188032096},{"$f":"IF('[1]REAL IPC(M)'!$AM223=\"\",\"\",+'[1]REAL IPC(M)'!$AM223)","v":7.7907757002796174},{"$f":"IF('[1]REAL IPC(M)'!$BI223=\"\",\"\",+'[1]REAL IPC(M)'!$BI223)","v":7.6274464107939144},{"$f":"IF('[1]REAL IMAE(M)'!BJ223=\"\",\"\",'[1]REAL IMAE(M)'!BJ223)","v":"n.d."},{"$f":"IF('[1]REAL IMAE(M)'!BK223=\"\",\"\",'[1]REAL IMAE(M)'!BK223)","v":"n.d."},{"$f":"IF('[1]REAL IMAE(M)'!BN223=\"\",\"\",'[1]REAL IMAE(M)'!BN223)","v":"n.d."},{"$f":"IF('[1]REAL IMAE(M)'!BO223=\"\",\"\",'[1]REAL IMAE(M)'!BO223)","v":"n.d."},{"$f":"IF('[1]EXT RIN(M)'!$K223=\"\",\"\",'[1]EXT RIN(M)'!$K223)","v":16238.521462731078},"",{"$f":"IF('[1]EXT RIN(M)'!$L223=\"\",\"\",'[1]EXT RIN(M)'!$L223)","v":18016.600499361677},"",{"$f":"IF('[1]MONE(M)CARD'!EG223=\"\",\"\",'[1]MONE(M)CARD'!EG223)","v":16245.645757913464},{"$f":"IF('[1]MONE(M)CARD'!EK223=\"\",\"\",'[1]MONE(M)CARD'!EK223)","v":30439.885411232201},{"$f":"IF('[1]MONE(M)CARD'!EP223=\"\",\"\",'[1]MONE(M)CARD'!EP223)","v":14924.064792967838},{"$f":"IF('[1]MONE(M)CARD'!ES223=\"\",\"\",'[1]MONE(M)CARD'!ES223)","v":22.008492951601099},{"$f":"IF('[1]MONE(M)CARD'!EV223=\"\",\"\",'[1]MONE(M)CARD'!EV223)","v":16.983576110576838},{"$f":"IF('[1]MONE(M)CARD'!EZ223=\"\",\"\",'[1]MONE(M)CARD'!EZ223)","v":14.246225291430537},{"$f":"IF('[1]MONE(M)CAPARD'!FC223=\"\",\"\",'[1]MONE(M)CAPARD'!FC223)","v":18893.838846188861},{"$f":"IF('[1]MONE(M)CAPARD'!FG223=\"\",\"\",'[1]MONE(M)CAPARD'!FG223)","v":44562.228687460207},{"$f":"IF('[1]MONE(M)CAPARD'!FL223=\"\",\"\",'[1]MONE(M)CAPARD'!FL223)","v":14924.064792967838},{"$f":"IF('[1]MONE(M)CAPARD'!FO223=\"\",\"\",'[1]MONE(M)CAPARD'!FO223)","v":23.491110885049117},{"$f":"IF('[1]MONE(M)CAPARD'!FR223=\"\",\"\",'[1]MONE(M)CAPARD'!FR223)","v":18.784820169345572},{"$f":"IF('[1]MONE(M)CAPARD'!FV223=\"\",\"\",'[1]MONE(M)CAPARD'!FV223)","v":16.22152574210731},{"$f":"IF('[1]MONE(M)CARD'!FV223=\"\",\"\",'[1]MONE(M)CARD'!FV223)","v":2018.1051158394575},{"$f":"IF('[1]MONE(M)CARD'!GD223=\"\",\"\",'[1]MONE(M)CARD'!GD223)","v":52.816726071134148},{"$f":"IF('[1]MONE(M)CARD'!GE223=\"\",\"\",'[1]MONE(M)CARD'!GE223)","v":5071.5188587111152},20.905691796041669,{"$f":"IF('[9]II.2.Balance OSD-Activos'!J81=\"\",\"\",'[9]II.2.Balance OSD-Activos'!J81)","v":203.51319124390443},{"$f":"IF('[9]II.2.Balance OSD-Activos'!N81=\"\",\"\",'[9]II.2.Balance OSD-Activos'!N81)","v":401.69485556843762},{"$f":"IF('[9]II.2.Balance OSD-Activos'!R81=\"\",\"\",'[9]II.2.Balance OSD-Activos'!R81)","v":19551.069894953769},{"$f":"IF('[9]II.2.Balance OSD-Activos'!S81=\"\",\"\",'[9]II.2.Balance OSD-Activos'!S81)","v":24779.363742316214},19754.583086197672,44935.641684082322,2.0583634793265304,18.764195263238136,21.723518718987012,18.966901770955236,25.743791682316687,22.54165150366547,0.34821420361197397,{"$f":"IF('[1]MONE(M)CAPARD'!GS223=\"\",\"\",'[1]MONE(M)CAPARD'!GS223)","v":7594.3839749524195},{"$f":"IF('[1]MONE(M)CARD'!HA223=\"\",\"\",'[1]MONE(M)CAPARD'!HA223)","v":5438.9429476311143},{"$f":"IF('[1]MONE(M)CAPARD'!HB223=\"\",\"\",'[1]MONE(M)CAPARD'!HB223)","v":2155.4410273213052},"n.d.",{"$f":"IF('[10]II.2.Balance OSD-Activos'!J81=\"\",\"\",'[10]II.2.Balance OSD-Activos'!J81)","v":392.25268730390439},{"$f":"IF('[10]II.2.Balance OSD-Activos'!N81=\"\",\"\",'[10]II.2.Balance OSD-Activos'!N81)","v":835.30147776843773},{"$f":"IF('[10]II.2.Balance OSD-Activos'!R81=\"\",\"\",'[10]II.2.Balance OSD-Activos'!R81)","v":27889.325157973773},{"$f":"IF('[10]II.2.Balance OSD-Activos'!S81=\"\",\"\",'[10]II.2.Balance OSD-Activos'!S81)","v":32461.256262626212},28281.577845277679,61578.135585672324,0.18853301529069277,18.249857055148876,1.4694363287627743,18.55043883701013,22.952236399710113,20.407325706522862,0.57683638618944144,{"$f":"IF('[1]MONE(M)CAPARD'!AS223=\"\",\"\",'[1]MONE(M)CAPARD'!AS223)","v":5.52},{"$f":"IF('[1]MONE(M)CAPARD'!AT223=\"\",\"\",'[1]MONE(M)CAPARD'!AT223)","v":"n.a."},{"$f":"IF('[1]MONE(M)CAPARD'!AU223=\"\",\"\",'[1]MONE(M)CAPARD'!AU223)","v":6},{"$f":"IF('[1]MONE(M)CAPARD'!AV223=\"\",\"\",'[1]MONE(M)CAPARD'!AV223)","v":6.75},{"$f":"IF('[1]MONE(M)CAPARD'!AW223=\"\",\"\",'[1]MONE(M)CAPARD'!AW223)","v":"n.a."},{"$f":"IF('[1]MONE(M)CAPARD'!AX223=\"\",\"\",'[1]MONE(M)CAPARD'!AX223)","v":7},{"$f":"IF('[1]MONE(M)CAPARD'!AY223=\"\",\"\",'[1]MONE(M)CAPARD'!AY223)","v":"n.a."},{"$f":"IF('[1]FISCAL(M)'!$K223=\"\",\"\",'[1]FISCAL(M)'!$K223)","v":313.90725466152094},{"$f":"IF('[1]FISCAL(M)'!$L223=\"\",\"\",'[1]FISCAL(M)'!$L223)","v":-189.03473733547941},{"$f":"IF('[1]FISCAL(M)'!$AY223=\"\",\"\",'[1]FISCAL(M)'!$AY223)","v":"n.d."},{"$f":"IF('[1]FISCAL(M)'!$BI223=\"\",\"\",'[1]FISCAL(M)'!$BI223)","v":"n.d."},{"$f":"IF('[1]FISCAL(M)'!$BS223=\"\",\"\",'[1]FISCAL(M)'!$BS223)","v":"n.d."},{"$f":"IF('[1]FISCAL(M)'!$AZ223=\"\",\"\",'[1]FISCAL(M)'!$AZ223)","v":"n.d."},{"$f":"IF('[1]FISCAL(M)'!$BJ223=\"\",\"\",'[1]FISCAL(M)'!$BJ223)","v":"n.d."},{"$f":"IF('[1]FISCAL(M)'!$BT223=\"\",\"\",'[1]FISCAL(M)'!$BT223)","v":"n.d."},{"$f":"IF('[2]MONE(M)'!$AO223=\"\",\"\",'[2]MONE(M)'!$AO223)","v":5790629.3549906528},{"$f":"IF('[3]MONE(M)'!$AO223=\"\",\"\",'[3]MONE(M)'!$AO223)","v":8644.5632917099992},{"$f":"IF('[4]MONE(M)'!$AO223=\"\",\"\",'[4]MONE(M)'!$AO223)","v":74564.943046574379},{"$f":"+'[5]MONE(M)'!$AO223","v":117421.45938694669},{"$f":"IF('[6]MONE(M)'!$AO223=\"\",\"\",'[6]MONE(M)'!$AO223)","v":39456.494980529722},{"$f":"IF('[7]MONE(M)'!$AO223=\"\",\"\",'[7]MONE(M)'!$AO223)","v":279081.48264393001},{"$f":"IF('[8]MONE(M)'!$AO223=\"\",\"\",'[8]MONE(M)'!$AO223)","v":16520.5220892},38.018408149057059,8.561781786937317,12.239782962650981,32.410606467544191,30.522150238013456,21.35654644900271,14.977994436389652,{"$f":"IF('[1]FISCAL(M)'!$K223=\"\",\"\",'[1]FISCAL(M)'!$K223)","v":313.90725466152094},{"$f":"+'[1]REAL(A)'!$AO$27","v":142802.84135501215},0.21981863363708434,{"$f":"IF('[1]FISCAL(M)'!$L223=\"\",\"\",'[1]FISCAL(M)'!$L223)","v":-189.03473733547941},{"$f":"+'[1]REAL(A)'!$AP$27","v":164098.82435501216},-0.11519566826787302,61593.973319352088,{"$f":"'[1]Gráfico REM'!BG217","v":11252.746663314443},{"$f":"'[1]Gráfico REM'!BH217","v":46173.815739102763},{"$f":"'[1]Gráfico REM'!BI217","v":4167.410916934884},14.598553584720865,0.86581256025888287,21.141996137523968,-6.8942368315652258,90104.91310163209,{"$f":"'[1]Gráfico REM'!BK217","v":11871.047643274444},{"$f":"'[1]Gráfico REM'!BL217","v":62694.337828302763},{"$f":"'[1]Gráfico REM'!BM217","v":15539.527630054887},14.172975771016571,1.7912949842295411,19.45448775263452,5.1841771734598918]
[2007,"noviembre","2007-noviembre",{"$f":"IF('[1]REAL IPC(M)'!$AL224=\"\",\"\",+'[1]REAL IPC(M)'!$AL224)","v":9.3310033482003174},{"$f":"IF('[1]REAL IPC(M)'!$BE224=\"\",\"\",+'[1]REAL IPC(M)'!$BE224)","v":7.8682759603289743},{"$f":"IF('[1]REAL IPC(M)'!$AM224=\"\",\"\",+'[1]REAL IPC(M)'!$AM224)","v":9.0481387222973488},{"$f":"IF('[1]REAL IPC(M)'!$BI224=\"\",\"\",+'[1]REAL IPC(M)'!$BI224)","v":7.6071821264604544},{"$f":"IF('[1]REAL IMAE(M)'!BJ224=\"\",\"\",'[1]REAL IMAE(M)'!BJ224)","v":"n.d."},{"$f":"IF('[1]REAL IMAE(M)'!BK224=\"\",\"\",'[1]REAL IMAE(M)'!BK224)","v":"n.d."},{"$f":"IF('[1]REAL IMAE(M)'!BN224=\"\",\"\",'[1]REAL IMAE(M)'!BN224)","v":"n.d."},{"$f":"IF('[1]REAL IMAE(M)'!BO224=\"\",\"\",'[1]REAL IMAE(M)'!BO224)","v":"n.d."},{"$f":"IF('[1]EXT RIN(M)'!$K224=\"\",\"\",'[1]EXT RIN(M)'!$K224)","v":16090.52848989897},"",{"$f":"IF('[1]EXT RIN(M)'!$L224=\"\",\"\",'[1]EXT RIN(M)'!$L224)","v":17874.624941158971},"",{"$f":"IF('[1]MONE(M)CARD'!EG224=\"\",\"\",'[1]MONE(M)CARD'!EG224)","v":17124.174822470832},{"$f":"IF('[1]MONE(M)CARD'!EK224=\"\",\"\",'[1]MONE(M)CARD'!EK224)","v":30701.145685900188},{"$f":"IF('[1]MONE(M)CARD'!EP224=\"\",\"\",'[1]MONE(M)CARD'!EP224)","v":15010.914339243434},{"$f":"IF('[1]MONE(M)CARD'!ES224=\"\",\"\",'[1]MONE(M)CARD'!ES224)","v":20.630089208069393},{"$f":"IF('[1]MONE(M)CARD'!EV224=\"\",\"\",'[1]MONE(M)CARD'!EV224)","v":18.146500107951447},{"$f":"IF('[1]MONE(M)CARD'!EZ224=\"\",\"\",'[1]MONE(M)CARD'!EZ224)","v":15.319105169679293},{"$f":"IF('[1]MONE(M)CAPARD'!FC224=\"\",\"\",'[1]MONE(M)CAPARD'!FC224)","v":19912.142765606233},{"$f":"IF('[1]MONE(M)CAPARD'!FG224=\"\",\"\",'[1]MONE(M)CAPARD'!FG224)","v":44963.682780283983},{"$f":"IF('[1]MONE(M)CAPARD'!FL224=\"\",\"\",'[1]MONE(M)CAPARD'!FL224)","v":15010.914339243427},{"$f":"IF('[1]MONE(M)CAPARD'!FO224=\"\",\"\",'[1]MONE(M)CAPARD'!FO224)","v":16.500909679629562},{"$f":"IF('[1]MONE(M)CAPARD'!FR224=\"\",\"\",'[1]MONE(M)CAPARD'!FR224)","v":17.052046909593699},{"$f":"IF('[1]MONE(M)CAPARD'!FV224=\"\",\"\",'[1]MONE(M)CAPARD'!FV224)","v":15.054046106884122},{"$f":"IF('[1]MONE(M)CARD'!FV224=\"\",\"\",'[1]MONE(M)CARD'!FV224)","v":2080.2832794349292},{"$f":"IF('[1]MONE(M)CARD'!GD224=\"\",\"\",'[1]MONE(M)CARD'!GD224)","v":52.721425737652318},{"$f":"IF('[1]MONE(M)CARD'!GE224=\"\",\"\",'[1]MONE(M)CARD'!GE224)","v":5044.9686131691624},15.298099965852341,{"$f":"IF('[9]II.2.Balance OSD-Activos'!J82=\"\",\"\",'[9]II.2.Balance OSD-Activos'!J82)","v":215.66209003148111},{"$f":"IF('[9]II.2.Balance OSD-Activos'!N82=\"\",\"\",'[9]II.2.Balance OSD-Activos'!N82)","v":417.80393108619012},{"$f":"IF('[9]II.2.Balance OSD-Activos'!R82=\"\",\"\",'[9]II.2.Balance OSD-Activos'!R82)","v":20276.653055618608},{"$f":"IF('[9]II.2.Balance OSD-Activos'!S82=\"\",\"\",'[9]II.2.Balance OSD-Activos'!S82)","v":25566.036984464416},20492.315145650089,46476.156061200694,-14.724346164531443,19.395396510226458,21.606638324090621,19.90566403270364,29.855728518540236,24.952676485366119,2.4110249817006491,{"$f":"IF('[1]MONE(M)CAPARD'!GS224=\"\",\"\",'[1]MONE(M)CAPARD'!GS224)","v":7678.2707559758583},{"$f":"IF('[1]MONE(M)CARD'!HA224=\"\",\"\",'[1]MONE(M)CAPARD'!HA224)","v":5411.3884739391624},{"$f":"IF('[1]MONE(M)CAPARD'!HB224=\"\",\"\",'[1]MONE(M)CAPARD'!HB224)","v":2266.8822820366959},"n.d.",{"$f":"IF('[10]II.2.Balance OSD-Activos'!J82=\"\",\"\",'[10]II.2.Balance OSD-Activos'!J82)","v":415.51220396148113},{"$f":"IF('[10]II.2.Balance OSD-Activos'!N82=\"\",\"\",'[10]II.2.Balance OSD-Activos'!N82)","v":859.75225175619016},{"$f":"IF('[10]II.2.Balance OSD-Activos'!R82=\"\",\"\",'[10]II.2.Balance OSD-Activos'!R82)","v":28723.924929468601},{"$f":"IF('[10]II.2.Balance OSD-Activos'!S82=\"\",\"\",'[10]II.2.Balance OSD-Activos'!S82)","v":33348.686577064414},29139.437133430081,63347.875962250691,-4.13304819371485,18.936455151089483,1.9240503302613066,19.351924273292241,26.037662871608049,22.286516509822651,1.8791908032997888,{"$f":"IF('[1]MONE(M)CAPARD'!AS224=\"\",\"\",'[1]MONE(M)CAPARD'!AS224)","v":5.52},{"$f":"IF('[1]MONE(M)CAPARD'!AT224=\"\",\"\",'[1]MONE(M)CAPARD'!AT224)","v":"n.a."},{"$f":"IF('[1]MONE(M)CAPARD'!AU224=\"\",\"\",'[1]MONE(M)CAPARD'!AU224)","v":6.25},{"$f":"IF('[1]MONE(M)CAPARD'!AV224=\"\",\"\",'[1]MONE(M)CAPARD'!AV224)","v":7},{"$f":"IF('[1]MONE(M)CAPARD'!AW224=\"\",\"\",'[1]MONE(M)CAPARD'!AW224)","v":"n.a."},{"$f":"IF('[1]MONE(M)CAPARD'!AX224=\"\",\"\",'[1]MONE(M)CAPARD'!AX224)","v":7},{"$f":"IF('[1]MONE(M)CAPARD'!AY224=\"\",\"\",'[1]MONE(M)CAPARD'!AY224)","v":"n.a."},{"$f":"IF('[1]FISCAL(M)'!$K224=\"\",\"\",'[1]FISCAL(M)'!$K224)","v":62.251648201669639},{"$f":"IF('[1]FISCAL(M)'!$L224=\"\",\"\",'[1]FISCAL(M)'!$L224)","v":-533.36589818533071},{"$f":"IF('[1]FISCAL(M)'!$AY224=\"\",\"\",'[1]FISCAL(M)'!$AY224)","v":"n.d."},{"$f":"IF('[1]FISCAL(M)'!$BI224=\"\",\"\",'[1]FISCAL(M)'!$BI224)","v":"n.d."},{"$f":"IF('[1]FISCAL(M)'!$BS224=\"\",\"\",'[1]FISCAL(M)'!$BS224)","v":"n.d."},{"$f":"IF('[1]FISCAL(M)'!$AZ224=\"\",\"\",'[1]FISCAL(M)'!$AZ224)","v":"n.d."},{"$f":"IF('[1]FISCAL(M)'!$BJ224=\"\",\"\",'[1]FISCAL(M)'!$BJ224)","v":"n.d."},{"$f":"IF('[1]FISCAL(M)'!$BT224=\"\",\"\",'[1]FISCAL(M)'!$BT224)","v":"n.d."},{"$f":"IF('[2]MONE(M)'!$AO224=\"\",\"\",'[2]MONE(M)'!$AO224)","v":5941566.1966409096},{"$f":"IF('[3]MONE(M)'!$AO224=\"\",\"\",'[3]MONE(M)'!$AO224)","v":8714.8013859899984},{"$f":"IF('[4]MONE(M)'!$AO224=\"\",\"\",'[4]MONE(M)'!$AO224)","v":75562.089428375009},{"$f":"+'[5]MONE(M)'!$AO224","v":120135.07666471168},{"$f":"IF('[6]MONE(M)'!$AO224=\"\",\"\",'[6]MONE(M)'!$AO224)","v":40727.307321957174},{"$f":"IF('[7]MONE(M)'!$AO224=\"\",\"\",'[7]MONE(M)'!$AO224)","v":286743.46264819999},{"$f":"IF('[8]MONE(M)'!$AO224=\"\",\"\",'[8]MONE(M)'!$AO224)","v":16737.039509909995},36.685443095222148,8.3508424968524508,13.30830496851927,31.961848319293829,31.999821293135099,29.586241076177778,15.398822307000891,{"$f":"IF('[1]FISCAL(M)'!$K224=\"\",\"\",'[1]FISCAL(M)'!$K224)","v":62.251648201669639},{"$f":"+'[1]REAL(A)'!$AO$27","v":142802.84135501215},4.3592723793856578E-2,{"$f":"IF('[1]FISCAL(M)'!$L224=\"\",\"\",'[1]FISCAL(M)'!$L224)","v":-533.36589818533071},{"$f":"+'[1]REAL(A)'!$AP$27","v":164098.82435501216},-0.32502725128087723,63146.067337467553,{"$f":"'[1]Gráfico REM'!BG218","v":11220.617135863211},{"$f":"'[1]Gráfico REM'!BH218","v":47609.338699456988},{"$f":"'[1]Gráfico REM'!BI218","v":4316.1115021473561},16.40862932435736,-2.5587482638000703,23.94341053196527,-3.8075590454778041E-2,92312.093996467564,{"$f":"'[1]Gráfico REM'!BK218","v":11876.566639723211},{"$f":"'[1]Gráfico REM'!BL218","v":64346.378209366987},{"$f":"'[1]Gráfico REM'!BM218","v":16089.149147377359},16.414134708453719,-1.2934681974083762,21.601431601889164,12.132885824463102]
[2007,"diciembre","2007-diciembre",{"$f":"IF('[1]REAL IPC(M)'!$AL225=\"\",\"\",+'[1]REAL IPC(M)'!$AL225)","v":9.1471135578170539},{"$f":"IF('[1]REAL IPC(M)'!$BE225=\"\",\"\",+'[1]REAL IPC(M)'!$BE225)","v":7.8262043422432148},{"$f":"IF('[1]REAL IPC(M)'!$AM225=\"\",\"\",+'[1]REAL IPC(M)'!$AM225)","v":8.869622643549091},{"$f":"IF('[1]REAL IPC(M)'!$BI225=\"\",\"\",+'[1]REAL IPC(M)'!$BI225)","v":7.5817859024698286},{"$f":"IF('[1]REAL IMAE(M)'!BJ225=\"\",\"\",'[1]REAL IMAE(M)'!BJ225)","v":"n.d."},{"$f":"IF('[1]REAL IMAE(M)'!BK225=\"\",\"\",'[1]REAL IMAE(M)'!BK225)","v":"n.d."},{"$f":"IF('[1]REAL IMAE(M)'!BN225=\"\",\"\",'[1]REAL IMAE(M)'!BN225)","v":"n.d."},{"$f":"IF('[1]REAL IMAE(M)'!BO225=\"\",\"\",'[1]REAL IMAE(M)'!BO225)","v":"n.d."},{"$f":"IF('[1]EXT RIN(M)'!$K225=\"\",\"\",'[1]EXT RIN(M)'!$K225)","v":16557.801364710427},16557.801364710427,{"$f":"IF('[1]EXT RIN(M)'!$L225=\"\",\"\",'[1]EXT RIN(M)'!$L225)","v":18629.446194005428},18629.446194005428,{"$f":"IF('[1]MONE(M)CARD'!EG225=\"\",\"\",'[1]MONE(M)CARD'!EG225)","v":18537.544771146029},{"$f":"IF('[1]MONE(M)CARD'!EK225=\"\",\"\",'[1]MONE(M)CARD'!EK225)","v":30974.91191599278},{"$f":"IF('[1]MONE(M)CARD'!EP225=\"\",\"\",'[1]MONE(M)CARD'!EP225)","v":15097.325484315217},{"$f":"IF('[1]MONE(M)CARD'!ES225=\"\",\"\",'[1]MONE(M)CARD'!ES225)","v":21.377678093825068},{"$f":"IF('[1]MONE(M)CARD'!EV225=\"\",\"\",'[1]MONE(M)CARD'!EV225)","v":18.589024719462131},{"$f":"IF('[1]MONE(M)CARD'!EZ225=\"\",\"\",'[1]MONE(M)CARD'!EZ225)","v":16.584655373724576},{"$f":"IF('[1]MONE(M)CAPARD'!FC225=\"\",\"\",'[1]MONE(M)CAPARD'!FC225)","v":21591.487716151431},{"$f":"IF('[1]MONE(M)CAPARD'!FG225=\"\",\"\",'[1]MONE(M)CAPARD'!FG225)","v":45459.316789645978},{"$f":"IF('[1]MONE(M)CAPARD'!FL225=\"\",\"\",'[1]MONE(M)CAPARD'!FL225)","v":15097.32548431521},{"$f":"IF('[1]MONE(M)CAPARD'!FO225=\"\",\"\",'[1]MONE(M)CAPARD'!FO225)","v":20.738312625409794},{"$f":"IF('[1]MONE(M)CAPARD'!FR225=\"\",\"\",'[1]MONE(M)CAPARD'!FR225)","v":18.258283921693685},{"$f":"IF('[1]MONE(M)CAPARD'!FV225=\"\",\"\",'[1]MONE(M)CAPARD'!FV225)","v":16.743928029848565},{"$f":"IF('[1]MONE(M)CARD'!FV225=\"\",\"\",'[1]MONE(M)CARD'!FV225)","v":2104.123826426875},{"$f":"IF('[1]MONE(M)CARD'!GD225=\"\",\"\",'[1]MONE(M)CARD'!GD225)","v":39.110051325840438},{"$f":"IF('[1]MONE(M)CARD'!GE225=\"\",\"\",'[1]MONE(M)CARD'!GE225)","v":4509.9827612995259},-1.5002828221604925,{"$f":"IF('[9]II.2.Balance OSD-Activos'!J83=\"\",\"\",'[9]II.2.Balance OSD-Activos'!J83)","v":220.0394912408423},{"$f":"IF('[9]II.2.Balance OSD-Activos'!N83=\"\",\"\",'[9]II.2.Balance OSD-Activos'!N83)","v":460.15235727611292},{"$f":"IF('[9]II.2.Balance OSD-Activos'!R83=\"\",\"\",'[9]II.2.Balance OSD-Activos'!R83)","v":20864.645996686646},{"$f":"IF('[9]II.2.Balance OSD-Activos'!S83=\"\",\"\",'[9]II.2.Balance OSD-Activos'!S83)","v":25955.009296714252},21084.685487927487,47499.847141917853,-4.5623142244788362E-2,20.617242791658754,28.500091764271129,20.880776148050572,28.59609070600473,24.926913032791486,-2.5763452574633305E-2,{"$f":"IF('[1]MONE(M)CAPARD'!GS225=\"\",\"\",'[1]MONE(M)CAPARD'!GS225)","v":7689.036849136015},{"$f":"IF('[1]MONE(M)CARD'!HA225=\"\",\"\",'[1]MONE(M)CAPARD'!HA225)","v":4876.2149794995257},{"$f":"IF('[1]MONE(M)CAPARD'!HB225=\"\",\"\",'[1]MONE(M)CAPARD'!HB225)","v":2812.8218696364893},"n.d.",{"$f":"IF('[10]II.2.Balance OSD-Activos'!J83=\"\",\"\",'[10]II.2.Balance OSD-Activos'!J83)","v":440.78532253084234},{"$f":"IF('[10]II.2.Balance OSD-Activos'!N83=\"\",\"\",'[10]II.2.Balance OSD-Activos'!N83)","v":933.4774994261129},{"$f":"IF('[10]II.2.Balance OSD-Activos'!R83=\"\",\"\",'[10]II.2.Balance OSD-Activos'!R83)","v":29131.156404916648},{"$f":"IF('[10]II.2.Balance OSD-Activos'!S83=\"\",\"\",'[10]II.2.Balance OSD-Activos'!S83)","v":33859.247071344253},29571.941727447491,64364.666298217853,10.573020775777486,20.792462952862323,11.273612622123608,20.961621917217599,25.280580079390536,22.957118335894467,0.67060182607181673,{"$f":"IF('[1]MONE(M)CAPARD'!AS225=\"\",\"\",'[1]MONE(M)CAPARD'!AS225)","v":5.52},{"$f":"IF('[1]MONE(M)CAPARD'!AT225=\"\",\"\",'[1]MONE(M)CAPARD'!AT225)","v":"n.a."},{"$f":"IF('[1]MONE(M)CAPARD'!AU225=\"\",\"\",'[1]MONE(M)CAPARD'!AU225)","v":6.5},{"$f":"IF('[1]MONE(M)CAPARD'!AV225=\"\",\"\",'[1]MONE(M)CAPARD'!AV225)","v":7.5},{"$f":"IF('[1]MONE(M)CAPARD'!AW225=\"\",\"\",'[1]MONE(M)CAPARD'!AW225)","v":"n.a."},{"$f":"IF('[1]MONE(M)CAPARD'!AX225=\"\",\"\",'[1]MONE(M)CAPARD'!AX225)","v":7},{"$f":"IF('[1]MONE(M)CAPARD'!AY225=\"\",\"\",'[1]MONE(M)CAPARD'!AY225)","v":"n.a."},{"$f":"IF('[1]FISCAL(M)'!$K225=\"\",\"\",'[1]FISCAL(M)'!$K225)","v":-666.07724271691677},{"$f":"IF('[1]FISCAL(M)'!$L225=\"\",\"\",'[1]FISCAL(M)'!$L225)","v":-665.03408758791818},{"$f":"IF('[1]FISCAL(M)'!$AY225=\"\",\"\",'[1]FISCAL(M)'!$AY225)","v":49248.277441989892},{"$f":"IF('[1]FISCAL(M)'!$BI225=\"\",\"\",'[1]FISCAL(M)'!$BI225)","v":22939.418873419898},{"$f":"IF('[1]FISCAL(M)'!$BS225=\"\",\"\",'[1]FISCAL(M)'!$BS225)","v":26308.858568570002},{"$f":"IF('[1]FISCAL(M)'!$AZ225=\"\",\"\",'[1]FISCAL(M)'!$AZ225)","v":59887.920026839893},{"$f":"IF('[1]FISCAL(M)'!$BJ225=\"\",\"\",'[1]FISCAL(M)'!$BJ225)","v":25303.436280549893},{"$f":"IF('[1]FISCAL(M)'!$BT225=\"\",\"\",'[1]FISCAL(M)'!$BT225)","v":34584.483746290003},{"$f":"IF('[2]MONE(M)'!$AO225=\"\",\"\",'[2]MONE(M)'!$AO225)","v":6160428.0506168222},{"$f":"IF('[3]MONE(M)'!$AO225=\"\",\"\",'[3]MONE(M)'!$AO225)","v":8773.6392377900011},{"$f":"IF('[4]MONE(M)'!$AO225=\"\",\"\",'[4]MONE(M)'!$AO225)","v":76736.544869611389},{"$f":"+'[5]MONE(M)'!$AO225","v":122651.27249980241},{"$f":"IF('[6]MONE(M)'!$AO225=\"\",\"\",'[6]MONE(M)'!$AO225)","v":41538.341226571407},{"$f":"IF('[7]MONE(M)'!$AO225=\"\",\"\",'[7]MONE(M)'!$AO225)","v":294178.24319206999},{"$f":"IF('[8]MONE(M)'!$AO225=\"\",\"\",'[8]MONE(M)'!$AO225)","v":16743.095265520002},37.383995581672337,7.8059213377459358,13.004888400500914,32.422324099251384,31.972200044493061,28.886715560482411,18.616500220957821,{"$f":"IF('[1]FISCAL(M)'!$K225=\"\",\"\",'[1]FISCAL(M)'!$K225)","v":-666.07724271691677},{"$f":"+'[1]REAL(A)'!$AO$27","v":142802.84135501215},-0.46643136536830443,{"$f":"IF('[1]FISCAL(M)'!$L225=\"\",\"\",'[1]FISCAL(M)'!$L225)","v":-665.03408758791818},{"$f":"+'[1]REAL(A)'!$AP$27","v":164098.82435501216},-0.40526438272901966,64008.673695238213,{"$f":"'[1]Gráfico REM'!BG219","v":10987.899513809776},{"$f":"'[1]Gráfico REM'!BH219","v":48625.263870495313},{"$f":"'[1]Gráfico REM'!BI219","v":4395.510310933123},16.895456092121396,-4.2085973247373509,23.942599725969615,8.4117481321579923,93475.04855597821,{"$f":"'[1]Gráfico REM'!BK219","v":11553.689516669776},{"$f":"'[1]Gráfico REM'!BL219","v":65368.359136015315},{"$f":"'[1]Gráfico REM'!BM219","v":16552.999903293123},17.748443381126442,-3.656355350879481,22.533354226006175,17.850063592537111]
[2008,"enero","2008-enero",{"$f":"IF('[1]REAL IPC(M)'!$AL226=\"\",\"\",+'[1]REAL IPC(M)'!$AL226)","v":9.05665014567656},{"$f":"IF('[1]REAL IPC(M)'!$BE226=\"\",\"\",+'[1]REAL IPC(M)'!$BE226)","v":7.7789258122105576},{"$f":"IF('[1]REAL IPC(M)'!$AM226=\"\",\"\",+'[1]REAL IPC(M)'!$AM226)","v":8.9165785677207445},{"$f":"IF('[1]REAL IPC(M)'!$BI226=\"\",\"\",+'[1]REAL IPC(M)'!$BI226)","v":7.5499923839418281},{"$f":"IF('[1]REAL IMAE(M)'!BJ226=\"\",\"\",'[1]REAL IMAE(M)'!BJ226)","v":6.0405272151676348},{"$f":"IF('[1]REAL IMAE(M)'!BK226=\"\",\"\",'[1]REAL IMAE(M)'!BK226)","v":2.1724847133166802},{"$f":"IF('[1]REAL IMAE(M)'!BN226=\"\",\"\",'[1]REAL IMAE(M)'!BN226)","v":7.3560712362467973},{"$f":"IF('[1]REAL IMAE(M)'!BO226=\"\",\"\",'[1]REAL IMAE(M)'!BO226)","v":2.796508819863619},{"$f":"IF('[1]EXT RIN(M)'!$K226=\"\",\"\",'[1]EXT RIN(M)'!$K226)","v":16678.656912816023},"",{"$f":"IF('[1]EXT RIN(M)'!$L226=\"\",\"\",'[1]EXT RIN(M)'!$L226)","v":18782.566235151022},"",{"$f":"IF('[1]MONE(M)CARD'!EG226=\"\",\"\",'[1]MONE(M)CARD'!EG226)","v":18592.673135685029},{"$f":"IF('[1]MONE(M)CARD'!EK226=\"\",\"\",'[1]MONE(M)CARD'!EK226)","v":31165.287984553499},{"$f":"IF('[1]MONE(M)CARD'!EP226=\"\",\"\",'[1]MONE(M)CARD'!EP226)","v":15366.175917484295},{"$f":"IF('[1]MONE(M)CARD'!ES226=\"\",\"\",'[1]MONE(M)CARD'!ES226)","v":24.023135761145721},{"$f":"IF('[1]MONE(M)CARD'!EV226=\"\",\"\",'[1]MONE(M)CARD'!EV226)","v":19.64837137813462},{"$f":"IF('[1]MONE(M)CARD'!EZ226=\"\",\"\",'[1]MONE(M)CARD'!EZ226)","v":17.718850594787838},{"$f":"IF('[1]MONE(M)CAPARD'!FC226=\"\",\"\",'[1]MONE(M)CAPARD'!FC226)","v":21653.190941709432},{"$f":"IF('[1]MONE(M)CAPARD'!FG226=\"\",\"\",'[1]MONE(M)CAPARD'!FG226)","v":45751.2563099783},{"$f":"IF('[1]MONE(M)CAPARD'!FL226=\"\",\"\",'[1]MONE(M)CAPARD'!FL226)","v":15366.175917484303},{"$f":"IF('[1]MONE(M)CAPARD'!FO226=\"\",\"\",'[1]MONE(M)CAPARD'!FO226)","v":24.190815238691243},{"$f":"IF('[1]MONE(M)CAPARD'!FR226=\"\",\"\",'[1]MONE(M)CAPARD'!FR226)","v":19.336579526063026},{"$f":"IF('[1]MONE(M)CAPARD'!FV226=\"\",\"\",'[1]MONE(M)CAPARD'!FV226)","v":17.877371457834457},{"$f":"IF('[1]MONE(M)CARD'!FV226=\"\",\"\",'[1]MONE(M)CARD'!FV226)","v":2106.1379118458181},{"$f":"IF('[1]MONE(M)CARD'!GD226=\"\",\"\",'[1]MONE(M)CARD'!GD226)","v":69.381523660716766},{"$f":"IF('[1]MONE(M)CARD'!GE226=\"\",\"\",'[1]MONE(M)CARD'!GE226)","v":5038.8219360934927},19.050468577059654,{"$f":"IF('[9]II.2.Balance OSD-Activos'!J84=\"\",\"\",'[9]II.2.Balance OSD-Activos'!J84)","v":127.99189719458448},{"$f":"IF('[9]II.2.Balance OSD-Activos'!N84=\"\",\"\",'[9]II.2.Balance OSD-Activos'!N84)","v":421.72115697116487},{"$f":"IF('[9]II.2.Balance OSD-Activos'!R84=\"\",\"\",'[9]II.2.Balance OSD-Activos'!R84)","v":22554.104071466558},{"$f":"IF('[9]II.2.Balance OSD-Activos'!S84=\"\",\"\",'[9]II.2.Balance OSD-Activos'!S84)","v":24415.401362503588},22682.095968661142,47519.218488135899,-38.471812213497692,27.546207558306634,22.503843764287357,28.327592998262041,20.852177073969891,23.972715551629232,-0.95419748116225378,{"$f":"IF('[1]MONE(M)CAPARD'!GS226=\"\",\"\",'[1]MONE(M)CAPARD'!GS226)","v":7631.8255011603569},{"$f":"IF('[1]MONE(M)CARD'!HA226=\"\",\"\",'[1]MONE(M)CAPARD'!HA226)","v":5422.4206575834924},{"$f":"IF('[1]MONE(M)CAPARD'!HB226=\"\",\"\",'[1]MONE(M)CAPARD'!HB226)","v":2209.4048435768646},"n.d.",{"$f":"IF('[10]II.2.Balance OSD-Activos'!J84=\"\",\"\",'[10]II.2.Balance OSD-Activos'!J84)","v":369.63802672458445},{"$f":"IF('[10]II.2.Balance OSD-Activos'!N84=\"\",\"\",'[10]II.2.Balance OSD-Activos'!N84)","v":887.77415211116477},{"$f":"IF('[10]II.2.Balance OSD-Activos'!R84=\"\",\"\",'[10]II.2.Balance OSD-Activos'!R84)","v":30984.145769866562},{"$f":"IF('[10]II.2.Balance OSD-Activos'!S84=\"\",\"\",'[10]II.2.Balance OSD-Activos'!S84)","v":32353.18051382359},31353.783796591146,64594.7384625259,-6.6198599010862562,25.841950330574637,11.32479785852507,26.366015893439499,19.300914483949395,22.265248055965927,-0.69187027992854055,{"$f":"IF('[1]MONE(M)CAPARD'!AS226=\"\",\"\",'[1]MONE(M)CAPARD'!AS226)","v":5.99},{"$f":"IF('[1]MONE(M)CAPARD'!AT226=\"\",\"\",'[1]MONE(M)CAPARD'!AT226)","v":"n.a."},{"$f":"IF('[1]MONE(M)CAPARD'!AU226=\"\",\"\",'[1]MONE(M)CAPARD'!AU226)","v":6.5},{"$f":"IF('[1]MONE(M)CAPARD'!AV226=\"\",\"\",'[1]MONE(M)CAPARD'!AV226)","v":7.5},{"$f":"IF('[1]MONE(M)CAPARD'!AW226=\"\",\"\",'[1]MONE(M)CAPARD'!AW226)","v":"n.a."},{"$f":"IF('[1]MONE(M)CAPARD'!AX226=\"\",\"\",'[1]MONE(M)CAPARD'!AX226)","v":7},{"$f":"IF('[1]MONE(M)CAPARD'!AY226=\"\",\"\",'[1]MONE(M)CAPARD'!AY226)","v":"n.a."},{"$f":"IF('[1]FISCAL(M)'!$K226=\"\",\"\",'[1]FISCAL(M)'!$K226)","v":131.63900218738124},{"$f":"IF('[1]FISCAL(M)'!$L226=\"\",\"\",'[1]FISCAL(M)'!$L226)","v":52.730636977381238},{"$f":"IF('[1]FISCAL(M)'!$AY226=\"\",\"\",'[1]FISCAL(M)'!$AY226)","v":"n.d."},{"$f":"IF('[1]FISCAL(M)'!$BI226=\"\",\"\",'[1]FISCAL(M)'!$BI226)","v":"n.d."},{"$f":"IF('[1]FISCAL(M)'!$BS226=\"\",\"\",'[1]FISCAL(M)'!$BS226)","v":"n.d."},{"$f":"IF('[1]FISCAL(M)'!$AZ226=\"\",\"\",'[1]FISCAL(M)'!$AZ226)","v":"n.d."},{"$f":"IF('[1]FISCAL(M)'!$BJ226=\"\",\"\",'[1]FISCAL(M)'!$BJ226)","v":"n.d."},{"$f":"IF('[1]FISCAL(M)'!$BT226=\"\",\"\",'[1]FISCAL(M)'!$BT226)","v":"n.d."},{"$f":"IF('[2]MONE(M)'!$AO226=\"\",\"\",'[2]MONE(M)'!$AO226)","v":6293619.8067052281},{"$f":"IF('[3]MONE(M)'!$AO226=\"\",\"\",'[3]MONE(M)'!$AO226)","v":8854.9335304199994},{"$f":"IF('[4]MONE(M)'!$AO226=\"\",\"\",'[4]MONE(M)'!$AO226)","v":76821.697362542574},{"$f":"+'[5]MONE(M)'!$AO226","v":124443.89473762974},{"$f":"IF('[6]MONE(M)'!$AO226=\"\",\"\",'[6]MONE(M)'!$AO226)","v":42100.755822950588},{"$f":"IF('[7]MONE(M)'!$AO226=\"\",\"\",'[7]MONE(M)'!$AO226)","v":298590.45260459004},{"$f":"IF('[8]MONE(M)'!$AO226=\"\",\"\",'[8]MONE(M)'!$AO226)","v":16927.708996880003},39.171033006855495,8.1961879990541053,12.106578238569554,31.006310498154164,30.773474301659554,29.125838582409958,18.228357774085158,{"$f":"IF('[1]FISCAL(M)'!$K226=\"\",\"\",'[1]FISCAL(M)'!$K226)","v":131.63900218738124},{"$f":"+'[1]REAL(A)'!$AO$28","v":159639.80552117509},8.24600116228031E-2,{"$f":"IF('[1]FISCAL(M)'!$L226=\"\",\"\",'[1]FISCAL(M)'!$L226)","v":52.730636977381238},{"$f":"+'[1]REAL(A)'!$AP$28","v":184795.69352117507},2.8534559422153969E-2,64998.230235143958,{"$f":"'[1]Gráfico REM'!BG220","v":11389.53627031205},{"$f":"'[1]Gráfico REM'!BH220","v":49040.143455074089},{"$f":"'[1]Gráfico REM'!BI220","v":4568.5505097578207},18.577429789778744,-0.32390682499876533,24.206349100971501,16.972460976139647,94679.256563293966,{"$f":"'[1]Gráfico REM'!BK220","v":11978.67880490005},{"$f":"'[1]Gráfico REM'!BL220","v":65967.852451954095},{"$f":"'[1]Gráfico REM'!BM220","v":16732.725306439825},18.734458818236167,0.59398908519330273,22.615442688663954,19.248752882380504]
[2008,"febrero","2008-febrero",{"$f":"IF('[1]REAL IPC(M)'!$AL227=\"\",\"\",+'[1]REAL IPC(M)'!$AL227)","v":9.4329008548585271},{"$f":"IF('[1]REAL IPC(M)'!$BE227=\"\",\"\",+'[1]REAL IPC(M)'!$BE227)","v":7.7254195819142613},{"$f":"IF('[1]REAL IPC(M)'!$AM227=\"\",\"\",+'[1]REAL IPC(M)'!$AM227)","v":9.327323616372496},{"$f":"IF('[1]REAL IPC(M)'!$BI227=\"\",\"\",+'[1]REAL IPC(M)'!$BI227)","v":7.5106603424255569},{"$f":"IF('[1]REAL IMAE(M)'!BJ227=\"\",\"\",'[1]REAL IMAE(M)'!BJ227)","v":5.5335701006610227},{"$f":"IF('[1]REAL IMAE(M)'!BK227=\"\",\"\",'[1]REAL IMAE(M)'!BK227)","v":2.1488663092185334},{"$f":"IF('[1]REAL IMAE(M)'!BN227=\"\",\"\",'[1]REAL IMAE(M)'!BN227)","v":7.1053778897623765},{"$f":"IF('[1]REAL IMAE(M)'!BO227=\"\",\"\",'[1]REAL IMAE(M)'!BO227)","v":2.7619444700515805},{"$f":"IF('[1]EXT RIN(M)'!$K227=\"\",\"\",'[1]EXT RIN(M)'!$K227)","v":16845.612612520639},"",{"$f":"IF('[1]EXT RIN(M)'!$L227=\"\",\"\",'[1]EXT RIN(M)'!$L227)","v":18955.004149465891},"",{"$f":"IF('[1]MONE(M)CARD'!EG227=\"\",\"\",'[1]MONE(M)CARD'!EG227)","v":18757.285183563792},{"$f":"IF('[1]MONE(M)CARD'!EK227=\"\",\"\",'[1]MONE(M)CARD'!EK227)","v":31968.979673676578},{"$f":"IF('[1]MONE(M)CARD'!EP227=\"\",\"\",'[1]MONE(M)CARD'!EP227)","v":15452.846034117189},{"$f":"IF('[1]MONE(M)CARD'!ES227=\"\",\"\",'[1]MONE(M)CARD'!ES227)","v":22.914539322974115},{"$f":"IF('[1]MONE(M)CARD'!EV227=\"\",\"\",'[1]MONE(M)CARD'!EV227)","v":20.701767934833558},{"$f":"IF('[1]MONE(M)CARD'!EZ227=\"\",\"\",'[1]MONE(M)CARD'!EZ227)","v":18.107282413631044},{"$f":"IF('[1]MONE(M)CAPARD'!FC227=\"\",\"\",'[1]MONE(M)CAPARD'!FC227)","v":21875.749176878191},{"$f":"IF('[1]MONE(M)CAPARD'!FG227=\"\",\"\",'[1]MONE(M)CAPARD'!FG227)","v":46701.472679012979},{"$f":"IF('[1]MONE(M)CAPARD'!FL227=\"\",\"\",'[1]MONE(M)CAPARD'!FL227)","v":15452.846034117189},{"$f":"IF('[1]MONE(M)CAPARD'!FO227=\"\",\"\",'[1]MONE(M)CAPARD'!FO227)","v":23.340950201952705},{"$f":"IF('[1]MONE(M)CAPARD'!FR227=\"\",\"\",'[1]MONE(M)CAPARD'!FR227)","v":19.90027914863537},{"$f":"IF('[1]MONE(M)CAPARD'!FV227=\"\",\"\",'[1]MONE(M)CAPARD'!FV227)","v":18.016199257596565},{"$f":"IF('[1]MONE(M)CARD'!FV227=\"\",\"\",'[1]MONE(M)CARD'!FV227)","v":2134.1025800202224},{"$f":"IF('[1]MONE(M)CARD'!GD227=\"\",\"\",'[1]MONE(M)CARD'!GD227)","v":68.848286482011872},{"$f":"IF('[1]MONE(M)CARD'!GE227=\"\",\"\",'[1]MONE(M)CARD'!GE227)","v":4721.4640052103668},3.9291800617949679,{"$f":"IF('[9]II.2.Balance OSD-Activos'!J85=\"\",\"\",'[9]II.2.Balance OSD-Activos'!J85)","v":105.24656609477191},{"$f":"IF('[9]II.2.Balance OSD-Activos'!N85=\"\",\"\",'[9]II.2.Balance OSD-Activos'!N85)","v":423.94699355323155},{"$f":"IF('[9]II.2.Balance OSD-Activos'!R85=\"\",\"\",'[9]II.2.Balance OSD-Activos'!R85)","v":22938.57587760665},{"$f":"IF('[9]II.2.Balance OSD-Activos'!S85=\"\",\"\",'[9]II.2.Balance OSD-Activos'!S85)","v":24898.939357606636},23043.822443701421,48366.70879486129,-54.860054206247241,30.466784590193406,18.95713604166831,31.608214115215706,19.400697357372465,24.424790055266232,0.45207450363700019,{"$f":"IF('[1]MONE(M)CAPARD'!GS227=\"\",\"\",'[1]MONE(M)CAPARD'!GS227)","v":7878.892455358462},{"$f":"IF('[1]MONE(M)CARD'!HA227=\"\",\"\",'[1]MONE(M)CAPARD'!HA227)","v":5104.7033794803665},{"$f":"IF('[1]MONE(M)CAPARD'!HB227=\"\",\"\",'[1]MONE(M)CAPARD'!HB227)","v":2774.1890758780955},"n.d.",{"$f":"IF('[10]II.2.Balance OSD-Activos'!J85=\"\",\"\",'[10]II.2.Balance OSD-Activos'!J85)","v":374.7292216647719},{"$f":"IF('[10]II.2.Balance OSD-Activos'!N85=\"\",\"\",'[10]II.2.Balance OSD-Activos'!N85)","v":847.11787700323146},{"$f":"IF('[10]II.2.Balance OSD-Activos'!R85=\"\",\"\",'[10]II.2.Balance OSD-Activos'!R85)","v":31430.900597506654},{"$f":"IF('[10]II.2.Balance OSD-Activos'!S85=\"\",\"\",'[10]II.2.Balance OSD-Activos'!S85)","v":32918.354538346633},31805.629819171427,65571.102234521299,-7.8632540634569477,28.027237602444522,3.7281389888239591,28.624590920455951,18.282160697282968,22.58595946930275,0.32071141333682363,{"$f":"IF('[1]MONE(M)CAPARD'!AS227=\"\",\"\",'[1]MONE(M)CAPARD'!AS227)","v":5.99},{"$f":"IF('[1]MONE(M)CAPARD'!AT227=\"\",\"\",'[1]MONE(M)CAPARD'!AT227)","v":"n.a."},{"$f":"IF('[1]MONE(M)CAPARD'!AU227=\"\",\"\",'[1]MONE(M)CAPARD'!AU227)","v":6.5},{"$f":"IF('[1]MONE(M)CAPARD'!AV227=\"\",\"\",'[1]MONE(M)CAPARD'!AV227)","v":7.75},{"$f":"IF('[1]MONE(M)CAPARD'!AW227=\"\",\"\",'[1]MONE(M)CAPARD'!AW227)","v":"n.a."},{"$f":"IF('[1]MONE(M)CAPARD'!AX227=\"\",\"\",'[1]MONE(M)CAPARD'!AX227)","v":8},{"$f":"IF('[1]MONE(M)CAPARD'!AY227=\"\",\"\",'[1]MONE(M)CAPARD'!AY227)","v":"n.a."},{"$f":"IF('[1]FISCAL(M)'!$K227=\"\",\"\",'[1]FISCAL(M)'!$K227)","v":8.8851003318127937},{"$f":"IF('[1]FISCAL(M)'!$L227=\"\",\"\",'[1]FISCAL(M)'!$L227)","v":-103.05814791818729},{"$f":"IF('[1]FISCAL(M)'!$AY227=\"\",\"\",'[1]FISCAL(M)'!$AY227)","v":"n.d."},{"$f":"IF('[1]FISCAL(M)'!$BI227=\"\",\"\",'[1]FISCAL(M)'!$BI227)","v":"n.d."},{"$f":"IF('[1]FISCAL(M)'!$BS227=\"\",\"\",'[1]FISCAL(M)'!$BS227)","v":"n.d."},{"$f":"IF('[1]FISCAL(M)'!$AZ227=\"\",\"\",'[1]FISCAL(M)'!$AZ227)","v":"n.d."},{"$f":"IF('[1]FISCAL(M)'!$BJ227=\"\",\"\",'[1]FISCAL(M)'!$BJ227)","v":"n.d."},{"$f":"IF('[1]FISCAL(M)'!$BT227=\"\",\"\",'[1]FISCAL(M)'!$BT227)","v":"n.d."},{"$f":"IF('[2]MONE(M)'!$AO227=\"\",\"\",'[2]MONE(M)'!$AO227)","v":6464478.6328722192},{"$f":"IF('[3]MONE(M)'!$AO227=\"\",\"\",'[3]MONE(M)'!$AO227)","v":8935.6711540199994},{"$f":"IF('[4]MONE(M)'!$AO227=\"\",\"\",'[4]MONE(M)'!$AO227)","v":77209.071496934455},{"$f":"+'[5]MONE(M)'!$AO227","v":127016.80824197558},{"$f":"IF('[6]MONE(M)'!$AO227=\"\",\"\",'[6]MONE(M)'!$AO227)","v":43138.949339513507},{"$f":"IF('[7]MONE(M)'!$AO227=\"\",\"\",'[7]MONE(M)'!$AO227)","v":301205.27564047999},{"$f":"IF('[8]MONE(M)'!$AO227=\"\",\"\",'[8]MONE(M)'!$AO227)","v":17151.067786299998},39.95423744097446,9.157166994826337,11.606532767833833,30.478026780464894,32.151438223893635,29.413301621695442,18.784687923443787,{"$f":"IF('[1]FISCAL(M)'!$K227=\"\",\"\",'[1]FISCAL(M)'!$K227)","v":8.8851003318127937},{"$f":"+'[1]REAL(A)'!$AO$28","v":159639.80552117509},5.5657173364786188E-3,{"$f":"IF('[1]FISCAL(M)'!$L227=\"\",\"\",'[1]FISCAL(M)'!$L227)","v":-103.05814791818729},{"$f":"+'[1]REAL(A)'!$AP$28","v":184795.69352117507},-5.5768695663017835E-2,66011.306913803041,{"$f":"'[1]Gráfico REM'!BG221","v":11547.868701423733},{"$f":"'[1]Gráfico REM'!BH221","v":49943.916123528419},{"$f":"'[1]Gráfico REM'!BI221","v":4519.5220888508884},19.235666734741574,2.3870139683488834,24.805379912384605,11.155007288189033,96308.610599434032,{"$f":"'[1]Gráfico REM'!BK221","v":12230.838093296734},{"$f":"'[1]Gráfico REM'!BL221","v":67094.983909828414},{"$f":"'[1]Gráfico REM'!BM221","v":16982.788596308885},19.709821698845943,3.8334991776329153,23.209024539385336,19.460688059787824]
[2008,"marzo","2008-marzo",{"$f":"IF('[1]REAL IPC(M)'!$AL228=\"\",\"\",+'[1]REAL IPC(M)'!$AL228)","v":9.8124885904049552},{"$f":"IF('[1]REAL IPC(M)'!$BE228=\"\",\"\",+'[1]REAL IPC(M)'!$BE228)","v":7.6647731629773563},{"$f":"IF('[1]REAL IPC(M)'!$AM228=\"\",\"\",+'[1]REAL IPC(M)'!$AM228)","v":9.7081212692440069},{"$f":"IF('[1]REAL IPC(M)'!$BI228=\"\",\"\",+'[1]REAL IPC(M)'!$BI228)","v":7.4627762922454544},{"$f":"IF('[1]REAL IMAE(M)'!BJ228=\"\",\"\",'[1]REAL IMAE(M)'!BJ228)","v":6.0575008753064097},{"$f":"IF('[1]REAL IMAE(M)'!BK228=\"\",\"\",'[1]REAL IMAE(M)'!BK228)","v":2.1229269770288051},{"$f":"IF('[1]REAL IMAE(M)'!BN228=\"\",\"\",'[1]REAL IMAE(M)'!BN228)","v":6.9563748447884155},{"$f":"IF('[1]REAL IMAE(M)'!BO228=\"\",\"\",'[1]REAL IMAE(M)'!BO228)","v":2.7235831277037104},{"$f":"IF('[1]EXT RIN(M)'!$K228=\"\",\"\",'[1]EXT RIN(M)'!$K228)","v":17250.804473252341},"",{"$f":"IF('[1]EXT RIN(M)'!$L228=\"\",\"\",'[1]EXT RIN(M)'!$L228)","v":19262.05363292334},"",{"$f":"IF('[1]MONE(M)CARD'!EG228=\"\",\"\",'[1]MONE(M)CARD'!EG228)","v":19264.133576631142},{"$f":"IF('[1]MONE(M)CARD'!EK228=\"\",\"\",'[1]MONE(M)CARD'!EK228)","v":32196.492115516314},{"$f":"IF('[1]MONE(M)CARD'!EP228=\"\",\"\",'[1]MONE(M)CARD'!EP228)","v":15815.74981379474},{"$f":"IF('[1]MONE(M)CARD'!ES228=\"\",\"\",'[1]MONE(M)CARD'!ES228)","v":22.31322221285388},{"$f":"IF('[1]MONE(M)CARD'!EV228=\"\",\"\",'[1]MONE(M)CARD'!EV228)","v":18.098031764009836},{"$f":"IF('[1]MONE(M)CARD'!EZ228=\"\",\"\",'[1]MONE(M)CARD'!EZ228)","v":16.453078171727764},{"$f":"IF('[1]MONE(M)CAPARD'!FC228=\"\",\"\",'[1]MONE(M)CAPARD'!FC228)","v":22400.127548216544},{"$f":"IF('[1]MONE(M)CAPARD'!FG228=\"\",\"\",'[1]MONE(M)CAPARD'!FG228)","v":47279.782686168306},{"$f":"IF('[1]MONE(M)CAPARD'!FL228=\"\",\"\",'[1]MONE(M)CAPARD'!FL228)","v":15815.74981379474},{"$f":"IF('[1]MONE(M)CAPARD'!FO228=\"\",\"\",'[1]MONE(M)CAPARD'!FO228)","v":22.543653014376062},{"$f":"IF('[1]MONE(M)CAPARD'!FR228=\"\",\"\",'[1]MONE(M)CAPARD'!FR228)","v":17.820788303546763},{"$f":"IF('[1]MONE(M)CAPARD'!FV228=\"\",\"\",'[1]MONE(M)CAPARD'!FV228)","v":16.578650748959923},{"$f":"IF('[1]MONE(M)CARD'!FV228=\"\",\"\",'[1]MONE(M)CARD'!FV228)","v":2148.157047088243},{"$f":"IF('[1]MONE(M)CARD'!GD228=\"\",\"\",'[1]MONE(M)CARD'!GD228)","v":65.810153917243738},{"$f":"IF('[1]MONE(M)CARD'!GE228=\"\",\"\",'[1]MONE(M)CARD'!GE228)","v":5216.5804366607917},16.416533470282268,{"$f":"IF('[9]II.2.Balance OSD-Activos'!J86=\"\",\"\",'[9]II.2.Balance OSD-Activos'!J86)","v":120.13591513421417},{"$f":"IF('[9]II.2.Balance OSD-Activos'!N86=\"\",\"\",'[9]II.2.Balance OSD-Activos'!N86)","v":439.1244178526963},{"$f":"IF('[9]II.2.Balance OSD-Activos'!R86=\"\",\"\",'[9]II.2.Balance OSD-Activos'!R86)","v":23273.757808179726},{"$f":"IF('[9]II.2.Balance OSD-Activos'!S86=\"\",\"\",'[9]II.2.Balance OSD-Activos'!S86)","v":25301.987715809471},23393.89372331394,49135.005856976102,-50.76003526484962,28.696008757548206,15.696328878161015,29.776977687892781,20.202223728808953,24.057296766579572,-0.36749328868665998,{"$f":"IF('[1]MONE(M)CAPARD'!GS228=\"\",\"\",'[1]MONE(M)CAPARD'!GS228)","v":7890.7620073647022},{"$f":"IF('[1]MONE(M)CARD'!HA228=\"\",\"\",'[1]MONE(M)CAPARD'!HA228)","v":5604.7329053907924},{"$f":"IF('[1]MONE(M)CAPARD'!HB228=\"\",\"\",'[1]MONE(M)CAPARD'!HB228)","v":2286.0291019739097},"n.d.",{"$f":"IF('[10]II.2.Balance OSD-Activos'!J86=\"\",\"\",'[10]II.2.Balance OSD-Activos'!J86)","v":372.42474203421415},{"$f":"IF('[10]II.2.Balance OSD-Activos'!N86=\"\",\"\",'[10]II.2.Balance OSD-Activos'!N86)","v":867.03146480269618},{"$f":"IF('[10]II.2.Balance OSD-Activos'!R86=\"\",\"\",'[10]II.2.Balance OSD-Activos'!R86)","v":31879.956142339724},{"$f":"IF('[10]II.2.Balance OSD-Activos'!S86=\"\",\"\",'[10]II.2.Balance OSD-Activos'!S86)","v":33357.794997429475},32252.380884373939,66477.207346606112,-10.527003058716367,26.673846794402213,9.4461924434935618,27.292123978710126,18.686312192290444,22.29289569344828,-0.29306377585447052,{"$f":"IF('[1]MONE(M)CAPARD'!AS228=\"\",\"\",'[1]MONE(M)CAPARD'!AS228)","v":5.99},{"$f":"IF('[1]MONE(M)CAPARD'!AT228=\"\",\"\",'[1]MONE(M)CAPARD'!AT228)","v":"n.a."},{"$f":"IF('[1]MONE(M)CAPARD'!AU228=\"\",\"\",'[1]MONE(M)CAPARD'!AU228)","v":6.75},{"$f":"IF('[1]MONE(M)CAPARD'!AV228=\"\",\"\",'[1]MONE(M)CAPARD'!AV228)","v":7.75},{"$f":"IF('[1]MONE(M)CAPARD'!AW228=\"\",\"\",'[1]MONE(M)CAPARD'!AW228)","v":"n.a."},{"$f":"IF('[1]MONE(M)CAPARD'!AX228=\"\",\"\",'[1]MONE(M)CAPARD'!AX228)","v":9},{"$f":"IF('[1]MONE(M)CAPARD'!AY228=\"\",\"\",'[1]MONE(M)CAPARD'!AY228)","v":"n.a."},{"$f":"IF('[1]FISCAL(M)'!$K228=\"\",\"\",'[1]FISCAL(M)'!$K228)","v":6.4149446707088202},{"$f":"IF('[1]FISCAL(M)'!$L228=\"\",\"\",'[1]FISCAL(M)'!$L228)","v":19.726777140708673},{"$f":"IF('[1]FISCAL(M)'!$AY228=\"\",\"\",'[1]FISCAL(M)'!$AY228)","v":51426.212651916794},{"$f":"IF('[1]FISCAL(M)'!$BI228=\"\",\"\",'[1]FISCAL(M)'!$BI228)","v":24944.420651916796},{"$f":"IF('[1]FISCAL(M)'!$BS228=\"\",\"\",'[1]FISCAL(M)'!$BS228)","v":26481.792000000001},{"$f":"IF('[1]FISCAL(M)'!$AZ228=\"\",\"\",'[1]FISCAL(M)'!$AZ228)","v":62170.781452216805},{"$f":"IF('[1]FISCAL(M)'!$BJ228=\"\",\"\",'[1]FISCAL(M)'!$BJ228)","v":27396.536048466798},{"$f":"IF('[1]FISCAL(M)'!$BT228=\"\",\"\",'[1]FISCAL(M)'!$BT228)","v":34774.245403749999},{"$f":"IF('[2]MONE(M)'!$AO228=\"\",\"\",'[2]MONE(M)'!$AO228)","v":6636052.8106466718},{"$f":"IF('[3]MONE(M)'!$AO228=\"\",\"\",'[3]MONE(M)'!$AO228)","v":9017.7701151500005},{"$f":"IF('[4]MONE(M)'!$AO228=\"\",\"\",'[4]MONE(M)'!$AO228)","v":77439.670312014103},{"$f":"+'[5]MONE(M)'!$AO228","v":128485.75099708361},{"$f":"IF('[6]MONE(M)'!$AO228=\"\",\"\",'[6]MONE(M)'!$AO228)","v":43551.628740422915},{"$f":"IF('[7]MONE(M)'!$AO228=\"\",\"\",'[7]MONE(M)'!$AO228)","v":306069.37986423},{"$f":"IF('[8]MONE(M)'!$AO228=\"\",\"\",'[8]MONE(M)'!$AO228)","v":17302.44591925},40.711522786235534,8.6943036641364824,11.813534750254595,28.717908361377063,31.318681356908495,30.917264622434693,18.305666513210173,{"$f":"IF('[1]FISCAL(M)'!$K228=\"\",\"\",'[1]FISCAL(M)'!$K228)","v":6.4149446707088202},{"$f":"+'[1]REAL(A)'!$AO$28","v":159639.80552117509},4.0183866735279397E-3,{"$f":"IF('[1]FISCAL(M)'!$L228=\"\",\"\",'[1]FISCAL(M)'!$L228)","v":19.726777140708673},{"$f":"+'[1]REAL(A)'!$AP$28","v":184795.69352117507},1.0674911717273463E-2,67034.372784763284,{"$f":"'[1]Gráfico REM'!BG222","v":11624.058517428297},{"$f":"'[1]Gráfico REM'!BH222","v":50783.345976982375},{"$f":"'[1]Gráfico REM'!BI222","v":4626.9682903526136},19.27623433329655,1.9102943072234924,24.567736524488048,14.895111216783064,97700.486038803283,{"$f":"'[1]Gráfico REM'!BK222","v":12341.587319598297},{"$f":"'[1]Gráfico REM'!BL222","v":68085.791896232375},{"$f":"'[1]Gráfico REM'!BM222","v":17273.106822972612},19.227546971186825,3.4162149227720873,22.914381649372718,18.164906134230961]
[2008,"abril","2008-abril",{"$f":"IF('[1]REAL IPC(M)'!$AL229=\"\",\"\",+'[1]REAL IPC(M)'!$AL229)","v":10.652660845912232},{"$f":"IF('[1]REAL IPC(M)'!$BE229=\"\",\"\",+'[1]REAL IPC(M)'!$BE229)","v":7.5961975502272239},{"$f":"IF('[1]REAL IPC(M)'!$AM229=\"\",\"\",+'[1]REAL IPC(M)'!$AM229)","v":10.440834021644907},{"$f":"IF('[1]REAL IPC(M)'!$BI229=\"\",\"\",+'[1]REAL IPC(M)'!$BI229)","v":7.4054749703508671},{"$f":"IF('[1]REAL IMAE(M)'!BJ229=\"\",\"\",'[1]REAL IMAE(M)'!BJ229)","v":6.6242525712488787},{"$f":"IF('[1]REAL IMAE(M)'!BK229=\"\",\"\",'[1]REAL IMAE(M)'!BK229)","v":2.0951431504916851},{"$f":"IF('[1]REAL IMAE(M)'!BN229=\"\",\"\",'[1]REAL IMAE(M)'!BN229)","v":7.3197383038259956},{"$f":"IF('[1]REAL IMAE(M)'!BO229=\"\",\"\",'[1]REAL IMAE(M)'!BO229)","v":2.6819543890638231},{"$f":"IF('[1]EXT RIN(M)'!$K229=\"\",\"\",'[1]EXT RIN(M)'!$K229)","v":17525.103586873833},"",{"$f":"IF('[1]EXT RIN(M)'!$L229=\"\",\"\",'[1]EXT RIN(M)'!$L229)","v":19483.070407085452},"",{"$f":"IF('[1]MONE(M)CARD'!EG229=\"\",\"\",'[1]MONE(M)CARD'!EG229)","v":19064.103696756869},{"$f":"IF('[1]MONE(M)CARD'!EK229=\"\",\"\",'[1]MONE(M)CARD'!EK229)","v":32324.73655219805},{"$f":"IF('[1]MONE(M)CARD'!EP229=\"\",\"\",'[1]MONE(M)CARD'!EP229)","v":16181.417546648838},{"$f":"IF('[1]MONE(M)CARD'!ES229=\"\",\"\",'[1]MONE(M)CARD'!ES229)","v":23.294818104712036},{"$f":"IF('[1]MONE(M)CARD'!EV229=\"\",\"\",'[1]MONE(M)CARD'!EV229)","v":17.686131545133989},{"$f":"IF('[1]MONE(M)CARD'!EZ229=\"\",\"\",'[1]MONE(M)CARD'!EZ229)","v":16.382478713960104},{"$f":"IF('[1]MONE(M)CAPARD'!FC229=\"\",\"\",'[1]MONE(M)CAPARD'!FC229)","v":22246.064659921271},{"$f":"IF('[1]MONE(M)CAPARD'!FG229=\"\",\"\",'[1]MONE(M)CAPARD'!FG229)","v":47530.660267811145},{"$f":"IF('[1]MONE(M)CAPARD'!FL229=\"\",\"\",'[1]MONE(M)CAPARD'!FL229)","v":16181.417546648838},{"$f":"IF('[1]MONE(M)CAPARD'!FO229=\"\",\"\",'[1]MONE(M)CAPARD'!FO229)","v":23.010934254585315},{"$f":"IF('[1]MONE(M)CAPARD'!FR229=\"\",\"\",'[1]MONE(M)CAPARD'!FR229)","v":18.946076327034046},{"$f":"IF('[1]MONE(M)CAPARD'!FV229=\"\",\"\",'[1]MONE(M)CAPARD'!FV229)","v":17.66180732833962},{"$f":"IF('[1]MONE(M)CARD'!FV229=\"\",\"\",'[1]MONE(M)CARD'!FV229)","v":2206.9816757374183},{"$f":"IF('[1]MONE(M)CARD'!GD229=\"\",\"\",'[1]MONE(M)CARD'!GD229)","v":244.38686776064679},{"$f":"IF('[1]MONE(M)CARD'!GE229=\"\",\"\",'[1]MONE(M)CARD'!GE229)","v":5502.5935685317299},17.238561364723303,{"$f":"IF('[9]II.2.Balance OSD-Activos'!J87=\"\",\"\",'[9]II.2.Balance OSD-Activos'!J87)","v":92.453244846665228},{"$f":"IF('[9]II.2.Balance OSD-Activos'!N87=\"\",\"\",'[9]II.2.Balance OSD-Activos'!N87)","v":433.55278694451698},{"$f":"IF('[9]II.2.Balance OSD-Activos'!R87=\"\",\"\",'[9]II.2.Balance OSD-Activos'!R87)","v":23579.650182341546},{"$f":"IF('[9]II.2.Balance OSD-Activos'!S87=\"\",\"\",'[9]II.2.Balance OSD-Activos'!S87)","v":25782.655473025079},23672.103427188209,49888.31168715781,-58.154644615007015,{"$f":"IF(OR(AJ222=\"\",AJ210=\"\"),\"\",((AJ222/AJ210)-1)*100)","v":27.632148494461429},11.831550176478078,28.666392704774424,21.320155495411797,{"$f":"IF(OR(AK222=\"\",AK210=\"\"),\"\",((AK222/AK210)-1)*100)","v":24.141764888317606},8.4468121738034085E-2,{"$f":"IF('[1]MONE(M)CAPARD'!GS229=\"\",\"\",'[1]MONE(M)CAPARD'!GS229)","v":8135.3585019786988},{"$f":"IF('[1]MONE(M)CARD'!HA229=\"\",\"\",'[1]MONE(M)CAPARD'!HA229)","v":5893.8090684217304},{"$f":"IF('[1]MONE(M)CAPARD'!HB229=\"\",\"\",'[1]MONE(M)CAPARD'!HB229)","v":2241.5494335569683},"n.d.",{"$f":"IF('[10]II.2.Balance OSD-Activos'!J87=\"\",\"\",'[10]II.2.Balance OSD-Activos'!J87)","v":343.1761367826652},{"$f":"IF('[10]II.2.Balance OSD-Activos'!N87=\"\",\"\",'[10]II.2.Balance OSD-Activos'!N87)","v":905.90225746451677},{"$f":"IF('[10]II.2.Balance OSD-Activos'!R87=\"\",\"\",'[10]II.2.Balance OSD-Activos'!R87)","v":32296.913005011549},{"$f":"IF('[10]II.2.Balance OSD-Activos'!S87=\"\",\"\",'[10]II.2.Balance OSD-Activos'!S87)","v":33923.452924225079},32640.089141794215,67469.444323483811,{"$f":"IF(OR(AW222=\"\",AW210=\"\"),\"\",((AW222/AW210)-1)*100)","v":-14.085184405977813},{"$f":"IF(OR(BA222=\"\",BA210=\"\"),\"\",((BA222/BA210)-1)*100)","v":27.759421293127208},4.3075362652023941,28.424041925531917,20.744984445837744,{"$f":"IF(OR(BB222=\"\",BB210=\"\"),\"\",((BB222/BB210)-1)*100)","v":23.770567059130766},1.477671365682486,{"$f":"IF('[1]MONE(M)CAPARD'!AS229=\"\",\"\",'[1]MONE(M)CAPARD'!AS229)","v":5.99},{"$f":"IF('[1]MONE(M)CAPARD'!AT229=\"\",\"\",'[1]MONE(M)CAPARD'!AT229)","v":"n.a."},{"$f":"IF('[1]MONE(M)CAPARD'!AU229=\"\",\"\",'[1]MONE(M)CAPARD'!AU229)","v":6.75},{"$f":"IF('[1]MONE(M)CAPARD'!AV229=\"\",\"\",'[1]MONE(M)CAPARD'!AV229)","v":7.75},{"$f":"IF('[1]MONE(M)CAPARD'!AW229=\"\",\"\",'[1]MONE(M)CAPARD'!AW229)","v":"n.a."},{"$f":"IF('[1]MONE(M)CAPARD'!AX229=\"\",\"\",'[1]MONE(M)CAPARD'!AX229)","v":9},{"$f":"IF('[1]MONE(M)CAPARD'!AY229=\"\",\"\",'[1]MONE(M)CAPARD'!AY229)","v":"n.a."},{"$f":"IF('[1]FISCAL(M)'!$K229=\"\",\"\",'[1]FISCAL(M)'!$K229)","v":448.32105740553902},{"$f":"IF('[1]FISCAL(M)'!$L229=\"\",\"\",'[1]FISCAL(M)'!$L229)","v":314.96426358553867},{"$f":"IF('[1]FISCAL(M)'!$AY229=\"\",\"\",'[1]FISCAL(M)'!$AY229)","v":"n.d."},{"$f":"IF('[1]FISCAL(M)'!$BI229=\"\",\"\",'[1]FISCAL(M)'!$BI229)","v":"n.d."},{"$f":"IF('[1]FISCAL(M)'!$BS229=\"\",\"\",'[1]FISCAL(M)'!$BS229)","v":"n.d."},{"$f":"IF('[1]FISCAL(M)'!$AZ229=\"\",\"\",'[1]FISCAL(M)'!$AZ229)","v":"n.d."},{"$f":"IF('[1]FISCAL(M)'!$BJ229=\"\",\"\",'[1]FISCAL(M)'!$BJ229)","v":"n.d."},{"$f":"IF('[1]FISCAL(M)'!$BT229=\"\",\"\",'[1]FISCAL(M)'!$BT229)","v":"n.d."},{"$f":"IF('[2]MONE(M)'!$AO229=\"\",\"\",'[2]MONE(M)'!$AO229)","v":6795777.0476829112},{"$f":"IF('[3]MONE(M)'!$AO229=\"\",\"\",'[3]MONE(M)'!$AO229)","v":9067.2952381499999},{"$f":"IF('[4]MONE(M)'!$AO229=\"\",\"\",'[4]MONE(M)'!$AO229)","v":77150.702241046311},{"$f":"+'[5]MONE(M)'!$AO229","v":129971.8950854204},{"$f":"IF('[6]MONE(M)'!$AO229=\"\",\"\",'[6]MONE(M)'!$AO229)","v":43891.975205281815},{"$f":"IF('[7]MONE(M)'!$AO229=\"\",\"\",'[7]MONE(M)'!$AO229)","v":311953.51904549001},{"$f":"IF('[8]MONE(M)'!$AO229=\"\",\"\",'[8]MONE(M)'!$AO229)","v":17493.786363216001},{"$f":"((BY222/BY210)-1)*100","v":41.541538378595064},8.6948252061132436,11.647547358662358,27.080951548609455,30.12781965697371,30.30346700308144,23.934773177279279,{"$f":"IF('[1]FISCAL(M)'!$K229=\"\",\"\",'[1]FISCAL(M)'!$K229)","v":448.32105740553902},{"$f":"+'[1]REAL(A)'!$AO$28","v":159639.80552117509},0.28083287620021086,{"$f":"IF('[1]FISCAL(M)'!$L229=\"\",\"\",'[1]FISCAL(M)'!$L229)","v":314.96426358553867},{"$f":"+'[1]REAL(A)'!$AP$28","v":184795.69352117507},0.17043917938999378,67926.243175731244,{"$f":"'[1]Gráfico REM'!BG223","v":11762.225869419617},{"$f":"'[1]Gráfico REM'!BH223","v":51496.449186343976},{"$f":"'[1]Gráfico REM'!BI223","v":4667.5681199676546},19.454516977247383,2.0385962056070239,24.634533444379979,16.15219423488583,99402.620450366259,{"$f":"'[1]Gráfico REM'!BK223","v":12487.891682362617},{"$f":"'[1]Gráfico REM'!BL223","v":68990.235549559977},{"$f":"'[1]Gráfico REM'!BM223","v":17924.493218443655},21.978571665140567,3.6447525782496548,24.456349178946766,27.942103785316075]
[2008,"mayo ","2008-mayo ",{"$f":"IF('[1]REAL IPC(M)'!$AL230=\"\",\"\",+'[1]REAL IPC(M)'!$AL230)","v":11.6762520338334},{"$f":"IF('[1]REAL IPC(M)'!$BE230=\"\",\"\",+'[1]REAL IPC(M)'!$BE230)","v":7.5190538312231103},{"$f":"IF('[1]REAL IPC(M)'!$AM230=\"\",\"\",+'[1]REAL IPC(M)'!$AM230)","v":11.394201770656597},{"$f":"IF('[1]REAL IPC(M)'!$BI230=\"\",\"\",+'[1]REAL IPC(M)'!$BI230)","v":7.3380684792005546},{"$f":"IF('[1]REAL IMAE(M)'!BJ230=\"\",\"\",'[1]REAL IMAE(M)'!BJ230)","v":5.2563148982235353},{"$f":"IF('[1]REAL IMAE(M)'!BK230=\"\",\"\",'[1]REAL IMAE(M)'!BK230)","v":2.0662253349991389},{"$f":"IF('[1]REAL IMAE(M)'!BN230=\"\",\"\",'[1]REAL IMAE(M)'!BN230)","v":6.1022019640993408},{"$f":"IF('[1]REAL IMAE(M)'!BO230=\"\",\"\",'[1]REAL IMAE(M)'!BO230)","v":2.6378701618344769},{"$f":"IF('[1]EXT RIN(M)'!$K230=\"\",\"\",'[1]EXT RIN(M)'!$K230)","v":17298.641879493753},"",{"$f":"IF('[1]EXT RIN(M)'!$L230=\"\",\"\",'[1]EXT RIN(M)'!$L230)","v":19252.771926007041},"",{"$f":"IF('[1]MONE(M)CARD'!EG230=\"\",\"\",'[1]MONE(M)CARD'!EG230)","v":18611.814741260205},{"$f":"IF('[1]MONE(M)CARD'!EK230=\"\",\"\",'[1]MONE(M)CARD'!EK230)","v":32261.497045511271},{"$f":"IF('[1]MONE(M)CARD'!EP230=\"\",\"\",'[1]MONE(M)CARD'!EP230)","v":16653.980580723277},{"$f":"IF('[1]MONE(M)CARD'!ES230=\"\",\"\",'[1]MONE(M)CARD'!ES230)","v":19.008225059716711},{"$f":"IF('[1]MONE(M)CARD'!EV230=\"\",\"\",'[1]MONE(M)CARD'!EV230)","v":14.284513081705729},{"$f":"IF('[1]MONE(M)CARD'!EZ230=\"\",\"\",'[1]MONE(M)CARD'!EZ230)","v":14.504893341597636},{"$f":"IF('[1]MONE(M)CAPARD'!FC230=\"\",\"\",'[1]MONE(M)CAPARD'!FC230)","v":21818.938950055603},{"$f":"IF('[1]MONE(M)CAPARD'!FG230=\"\",\"\",'[1]MONE(M)CAPARD'!FG230)","v":47852.484410217672},{"$f":"IF('[1]MONE(M)CAPARD'!FL230=\"\",\"\",'[1]MONE(M)CAPARD'!FL230)","v":16653.980580723277},{"$f":"IF('[1]MONE(M)CAPARD'!FO230=\"\",\"\",'[1]MONE(M)CAPARD'!FO230)","v":20.455904470969255},{"$f":"IF('[1]MONE(M)CAPARD'!FR230=\"\",\"\",'[1]MONE(M)CAPARD'!FR230)","v":15.326518668384349},{"$f":"IF('[1]MONE(M)CAPARD'!FV230=\"\",\"\",'[1]MONE(M)CAPARD'!FV230)","v":15.298878281600592},{"$f":"IF('[1]MONE(M)CARD'!FV230=\"\",\"\",'[1]MONE(M)CARD'!FV230)","v":2218.1168059640013},{"$f":"IF('[1]MONE(M)CARD'!GD230=\"\",\"\",'[1]MONE(M)CARD'!GD230)","v":61.552960713973299},{"$f":"IF('[1]MONE(M)CARD'!GE230=\"\",\"\",'[1]MONE(M)CARD'!GE230)","v":5098.625218804912},1.3458481180391946,{"$f":"IF('[9]II.2.Balance OSD-Activos'!J88=\"\",\"\",'[9]II.2.Balance OSD-Activos'!J88)","v":111.31596687364134},{"$f":"IF('[9]II.2.Balance OSD-Activos'!N88=\"\",\"\",'[9]II.2.Balance OSD-Activos'!N88)","v":433.23924721377574},{"$f":"IF('[9]II.2.Balance OSD-Activos'!R88=\"\",\"\",'[9]II.2.Balance OSD-Activos'!R88)","v":23723.156085975315},{"$f":"IF('[9]II.2.Balance OSD-Activos'!S88=\"\",\"\",'[9]II.2.Balance OSD-Activos'!S88)","v":25946.779268040642},23834.472052848956,50214.490568103371,-53.344094089963811,27.427445493031442,11.478069286903736,28.471064678541126,19.539605903247924,23.079041659710022,-1.0627232286075845,{"$f":"IF('[1]MONE(M)CAPARD'!GS230=\"\",\"\",'[1]MONE(M)CAPARD'!GS230)","v":8061.1495949490654},{"$f":"IF('[1]MONE(M)CARD'!HA230=\"\",\"\",'[1]MONE(M)CAPARD'!HA230)","v":5489.0219332149127},{"$f":"IF('[1]MONE(M)CAPARD'!HB230=\"\",\"\",'[1]MONE(M)CAPARD'!HB230)","v":2572.1276617341528},"n.d.",{"$f":"IF('[10]II.2.Balance OSD-Activos'!J88=\"\",\"\",'[10]II.2.Balance OSD-Activos'!J88)","v":366.12824615364133},{"$f":"IF('[10]II.2.Balance OSD-Activos'!N88=\"\",\"\",'[10]II.2.Balance OSD-Activos'!N88)","v":850.99590290377569},{"$f":"IF('[10]II.2.Balance OSD-Activos'!R88=\"\",\"\",'[10]II.2.Balance OSD-Activos'!R88)","v":32675.755078155315},{"$f":"IF('[10]II.2.Balance OSD-Activos'!S88=\"\",\"\",'[10]II.2.Balance OSD-Activos'!S88)","v":34153.168810090647},33041.883324308954,68046.048037303379,-11.019066449812998,25.318770661599043,5.9074898276632926,25.89484384970784,18.025833000946157,21.279450191553728,{"$f":"IF(OR(BH223=\"\",BH222=\"\"),\"\",BH223-BH222)","v":-2.4911168675770377},{"$f":"IF('[1]MONE(M)CAPARD'!AS230=\"\",\"\",'[1]MONE(M)CAPARD'!AS230)","v":7.0012000000000008},{"$f":"IF('[1]MONE(M)CAPARD'!AT230=\"\",\"\",'[1]MONE(M)CAPARD'!AT230)","v":"n.a."},{"$f":"IF('[1]MONE(M)CAPARD'!AU230=\"\",\"\",'[1]MONE(M)CAPARD'!AU230)","v":6.75},{"$f":"IF('[1]MONE(M)CAPARD'!AV230=\"\",\"\",'[1]MONE(M)CAPARD'!AV230)","v":8},{"$f":"IF('[1]MONE(M)CAPARD'!AW230=\"\",\"\",'[1]MONE(M)CAPARD'!AW230)","v":"n.a."},{"$f":"IF('[1]MONE(M)CAPARD'!AX230=\"\",\"\",'[1]MONE(M)CAPARD'!AX230)","v":9},{"$f":"IF('[1]MONE(M)CAPARD'!AY230=\"\",\"\",'[1]MONE(M)CAPARD'!AY230)","v":"n.a."},{"$f":"IF('[1]FISCAL(M)'!$K230=\"\",\"\",'[1]FISCAL(M)'!$K230)","v":156.06626714368997},{"$f":"IF('[1]FISCAL(M)'!$L230=\"\",\"\",'[1]FISCAL(M)'!$L230)","v":90.240024403690043},{"$f":"IF('[1]FISCAL(M)'!$AY230=\"\",\"\",'[1]FISCAL(M)'!$AY230)","v":"n.d."},{"$f":"IF('[1]FISCAL(M)'!$BI230=\"\",\"\",'[1]FISCAL(M)'!$BI230)","v":"n.d."},{"$f":"IF('[1]FISCAL(M)'!$BS230=\"\",\"\",'[1]FISCAL(M)'!$BS230)","v":"n.d."},{"$f":"IF('[1]FISCAL(M)'!$AZ230=\"\",\"\",'[1]FISCAL(M)'!$AZ230)","v":"n.d."},{"$f":"IF('[1]FISCAL(M)'!$BJ230=\"\",\"\",'[1]FISCAL(M)'!$BJ230)","v":"n.d."},{"$f":"IF('[1]FISCAL(M)'!$BT230=\"\",\"\",'[1]FISCAL(M)'!$BT230)","v":"n.d."},{"$f":"IF('[2]MONE(M)'!$AO230=\"\",\"\",'[2]MONE(M)'!$AO230)","v":7103653.2488369644},{"$f":"IF('[3]MONE(M)'!$AO230=\"\",\"\",'[3]MONE(M)'!$AO230)","v":9062.2856041199993},{"$f":"IF('[4]MONE(M)'!$AO230=\"\",\"\",'[4]MONE(M)'!$AO230)","v":77665.696160369378},{"$f":"+'[5]MONE(M)'!$AO230","v":130545.68317507274},{"$f":"IF('[6]MONE(M)'!$AO230=\"\",\"\",'[6]MONE(M)'!$AO230)","v":44235.035900676186},{"$f":"IF('[7]MONE(M)'!$AO230=\"\",\"\",'[7]MONE(M)'!$AO230)","v":319107.42541690002},{"$f":"IF('[8]MONE(M)'!$AO230=\"\",\"\",'[8]MONE(M)'!$AO230)","v":17808.929460299994},44.099437713414822,8.1486344696407809,11.904972439564965,25.342986887555831,28.99678639715335,29.801814651017811,17.34116912013026,{"$f":"IF('[1]FISCAL(M)'!$K230=\"\",\"\",'[1]FISCAL(M)'!$K230)","v":156.06626714368997},{"$f":"+'[1]REAL(A)'!$AO$28","v":159639.80552117509},9.7761499166314686E-2,{"$f":"IF('[1]FISCAL(M)'!$L230=\"\",\"\",'[1]FISCAL(M)'!$L230)","v":90.240024403690043},{"$f":"+'[1]REAL(A)'!$AP$28","v":184795.69352117507},4.8832319998490532E-2,68273.090368770558,{"$f":"'[1]Gráfico REM'!BG224","v":11729.300675729795},{"$f":"'[1]Gráfico REM'!BH224","v":51835.928876304046},{"$f":"'[1]Gráfico REM'!BI224","v":4707.8608167367202},18.465498215216634,1.3673990025495852,23.549510085192061,14.699101926123582,100324.94438667156,{"$f":"'[1]Gráfico REM'!BK224","v":12447.718322579796},{"$f":"'[1]Gráfico REM'!BL224","v":69644.85833660404},{"$f":"'[1]Gráfico REM'!BM224","v":18232.367727487719},19.754102733103874,2.7573851352623135,21.900289896871207,25.485617099483136]
[2008,"junio ","2008-junio ",{"$f":"IF('[1]REAL IPC(M)'!$AL231=\"\",\"\",+'[1]REAL IPC(M)'!$AL231)","v":13.021363874338387},{"$f":"IF('[1]REAL IPC(M)'!$BE231=\"\",\"\",+'[1]REAL IPC(M)'!$BE231)","v":7.4328976722682905},{"$f":"IF('[1]REAL IPC(M)'!$AM231=\"\",\"\",+'[1]REAL IPC(M)'!$AM231)","v":12.682730059068881},{"$f":"IF('[1]REAL IPC(M)'!$BI231=\"\",\"\",+'[1]REAL IPC(M)'!$BI231)","v":7.2600909581031825},{"$f":"IF('[1]REAL IMAE(M)'!BJ231=\"\",\"\",'[1]REAL IMAE(M)'!BJ231)","v":3.9596697545805304},{"$f":"IF('[1]REAL IMAE(M)'!BK231=\"\",\"\",'[1]REAL IMAE(M)'!BK231)","v":2.0371476583376014},{"$f":"IF('[1]REAL IMAE(M)'!BN231=\"\",\"\",'[1]REAL IMAE(M)'!BN231)","v":4.8830593413505818},{"$f":"IF('[1]REAL IMAE(M)'!BO231=\"\",\"\",'[1]REAL IMAE(M)'!BO231)","v":2.5924487689029663},{"$f":"IF('[1]EXT RIN(M)'!$K231=\"\",\"\",'[1]EXT RIN(M)'!$K231)","v":16963.930532118793},"",{"$f":"IF('[1]EXT RIN(M)'!$L231=\"\",\"\",'[1]EXT RIN(M)'!$L231)","v":19480.374936027212},"",{"$f":"IF('[1]MONE(M)CARD'!EG231=\"\",\"\",'[1]MONE(M)CARD'!EG231)","v":18115.935573234747},{"$f":"IF('[1]MONE(M)CARD'!EK231=\"\",\"\",'[1]MONE(M)CARD'!EK231)","v":32319.682240454531},{"$f":"IF('[1]MONE(M)CARD'!EP231=\"\",\"\",'[1]MONE(M)CARD'!EP231)","v":16759.157672458714},{"$f":"IF('[1]MONE(M)CARD'!ES231=\"\",\"\",'[1]MONE(M)CARD'!ES231)","v":14.62648144089631},{"$f":"IF('[1]MONE(M)CARD'!EV231=\"\",\"\",'[1]MONE(M)CARD'!EV231)","v":12.152973932502986},{"$f":"IF('[1]MONE(M)CARD'!EZ231=\"\",\"\",'[1]MONE(M)CARD'!EZ231)","v":12.920585350506864},{"$f":"IF('[1]MONE(M)CAPARD'!FC231=\"\",\"\",'[1]MONE(M)CAPARD'!FC231)","v":21376.911082801147},{"$f":"IF('[1]MONE(M)CAPARD'!FG231=\"\",\"\",'[1]MONE(M)CAPARD'!FG231)","v":48129.046075834529},{"$f":"IF('[1]MONE(M)CAPARD'!FL231=\"\",\"\",'[1]MONE(M)CAPARD'!FL231)","v":16759.157672458721},{"$f":"IF('[1]MONE(M)CAPARD'!FO231=\"\",\"\",'[1]MONE(M)CAPARD'!FO231)","v":16.839246849523004},{"$f":"IF('[1]MONE(M)CAPARD'!FR231=\"\",\"\",'[1]MONE(M)CAPARD'!FR231)","v":14.103970153460409},{"$f":"IF('[1]MONE(M)CAPARD'!FV231=\"\",\"\",'[1]MONE(M)CAPARD'!FV231)","v":14.333502057011893},{"$f":"IF('[1]MONE(M)CARD'!FV231=\"\",\"\",'[1]MONE(M)CARD'!FV231)","v":2275.2120820355285},{"$f":"IF('[1]MONE(M)CARD'!GD231=\"\",\"\",'[1]MONE(M)CARD'!GD231)","v":144.4767314090827},{"$f":"IF('[1]MONE(M)CARD'!GE231=\"\",\"\",'[1]MONE(M)CARD'!GE231)","v":5042.9568245700593},{"$f":"IF(AD224=\"\",\"\",((AD224/AD211)-1)*100)","v":4.6216253737650925},{"$f":"IF('[9]II.2.Balance OSD-Activos'!J89=\"\",\"\",'[9]II.2.Balance OSD-Activos'!J89)","v":106.35031040757865},{"$f":"IF('[9]II.2.Balance OSD-Activos'!N89=\"\",\"\",'[9]II.2.Balance OSD-Activos'!N89)","v":428.27161865077812},{"$f":"IF('[9]II.2.Balance OSD-Activos'!R89=\"\",\"\",'[9]II.2.Balance OSD-Activos'!R89)","v":23759.425849948886},{"$f":"IF('[9]II.2.Balance OSD-Activos'!S89=\"\",\"\",'[9]II.2.Balance OSD-Activos'!S89)","v":26325.440199797329},23865.776160356465,50619.487978804573,{"$f":"IF(OR(AF224=\"\",AF212=\"\"),\"\",((AF224/AF212)-1)*100)","v":-51.997943499890553},28.160913042906287,7.380871152782964,29.12609346057986,17.471808058949389,22.17908091363072,{"$f":"IF(OR(AQ224=\"\",AQ223=\"\"),\"\",AQ224-AQ223)","v":-0.89996074607930154},{"$f":"IF('[1]MONE(M)CAPARD'!GS231=\"\",\"\",'[1]MONE(M)CAPARD'!GS231)","v":8288.2069188323148},{"$f":"IF('[1]MONE(M)CARD'!HA231=\"\",\"\",'[1]MONE(M)CAPARD'!HA231)","v":5432.8094037900592},{"$f":"IF('[1]MONE(M)CAPARD'!HB231=\"\",\"\",'[1]MONE(M)CAPARD'!HB231)","v":2855.3975150422557},"n.d.",{"$f":"IF('[10]II.2.Balance OSD-Activos'!J89=\"\",\"\",'[10]II.2.Balance OSD-Activos'!J89)","v":345.98622915757858},{"$f":"IF('[10]II.2.Balance OSD-Activos'!N89=\"\",\"\",'[10]II.2.Balance OSD-Activos'!N89)","v":859.86492707077798},{"$f":"IF('[10]II.2.Balance OSD-Activos'!R89=\"\",\"\",'[10]II.2.Balance OSD-Activos'!R89)","v":33067.594200618885},{"$f":"IF('[10]II.2.Balance OSD-Activos'!S89=\"\",\"\",'[10]II.2.Balance OSD-Activos'!S89)","v":34583.924975857328},33413.580429776463,68857.370332704566,-12.452769177448308,26.637193842002162,6.0533291017287105,27.231587278693613,16.282179081809755,20.935120019879449,-0.34433017167427948,{"$f":"IF('[1]MONE(M)CAPARD'!AS231=\"\",\"\",'[1]MONE(M)CAPARD'!AS231)","v":8},{"$f":"IF('[1]MONE(M)CAPARD'!AT231=\"\",\"\",'[1]MONE(M)CAPARD'!AT231)","v":"n.a."},{"$f":"IF('[1]MONE(M)CAPARD'!AU231=\"\",\"\",'[1]MONE(M)CAPARD'!AU231)","v":6.75},{"$f":"IF('[1]MONE(M)CAPARD'!AV231=\"\",\"\",'[1]MONE(M)CAPARD'!AV231)","v":8.5},{"$f":"IF('[1]MONE(M)CAPARD'!AW231=\"\",\"\",'[1]MONE(M)CAPARD'!AW231)","v":"n.a."},{"$f":"IF('[1]MONE(M)CAPARD'!AX231=\"\",\"\",'[1]MONE(M)CAPARD'!AX231)","v":9},{"$f":"IF('[1]MONE(M)CAPARD'!AY231=\"\",\"\",'[1]MONE(M)CAPARD'!AY231)","v":"n.a."},{"$f":"IF('[1]FISCAL(M)'!$K231=\"\",\"\",'[1]FISCAL(M)'!$K231)","v":-95.858662277923258},{"$f":"IF('[1]FISCAL(M)'!$L231=\"\",\"\",'[1]FISCAL(M)'!$L231)","v":286.3956982320766},{"$f":"IF('[1]FISCAL(M)'!$AY231=\"\",\"\",'[1]FISCAL(M)'!$AY231)","v":50987.474098968174},{"$f":"IF('[1]FISCAL(M)'!$BI231=\"\",\"\",'[1]FISCAL(M)'!$BI231)","v":24116.989598968175},{"$f":"IF('[1]FISCAL(M)'!$BS231=\"\",\"\",'[1]FISCAL(M)'!$BS231)","v":26870.484499999999},{"$f":"IF('[1]FISCAL(M)'!$AZ231=\"\",\"\",'[1]FISCAL(M)'!$AZ231)","v":62019.071665178169},{"$f":"IF('[1]FISCAL(M)'!$BJ231=\"\",\"\",'[1]FISCAL(M)'!$BJ231)","v":26692.29610908818},{"$f":"IF('[1]FISCAL(M)'!$BT231=\"\",\"\",'[1]FISCAL(M)'!$BT231)","v":35326.775556089997},{"$f":"IF('[2]MONE(M)'!$AO231=\"\",\"\",'[2]MONE(M)'!$AO231)","v":7243879.8992386963},{"$f":"IF('[3]MONE(M)'!$AO231=\"\",\"\",'[3]MONE(M)'!$AO231)","v":9111.4835499799992},{"$f":"IF('[4]MONE(M)'!$AO231=\"\",\"\",'[4]MONE(M)'!$AO231)","v":78854.306912560729},{"$f":"+'[5]MONE(M)'!$AO231","v":132297.52434996786},{"$f":"IF('[6]MONE(M)'!$AO231=\"\",\"\",'[6]MONE(M)'!$AO231)","v":44794.727666625746},{"$f":"IF('[7]MONE(M)'!$AO231=\"\",\"\",'[7]MONE(M)'!$AO231)","v":321874.37795065006},{"$f":"IF('[8]MONE(M)'!$AO231=\"\",\"\",'[8]MONE(M)'!$AO231)","v":18223.19087287},42.836680601841024,8.0828550962577239,12.319732653439619,25.046697395257866,26.547056436769356,25.976049235231713,18.429525070705566,{"$f":"IF('[1]FISCAL(M)'!$K231=\"\",\"\",'[1]FISCAL(M)'!$K231)","v":-95.858662277923258},{"$f":"+'[1]REAL(A)'!$AO$28","v":159639.80552117509},-6.004684230538497E-2,{"$f":"IF('[1]FISCAL(M)'!$L231=\"\",\"\",'[1]FISCAL(M)'!$L231)","v":286.3956982320766},{"$f":"+'[1]REAL(A)'!$AP$28","v":184795.69352117507},0.15497963874318293,69010.885428830647,{"$f":"'[1]Gráfico REM'!BG225","v":11954.994052711838},{"$f":"'[1]Gráfico REM'!BH225","v":52318.864414585492},{"$f":"'[1]Gráfico REM'!BI225","v":4737.0269615333127},18.257918699377296,2.6935874971405704,22.889507472076808,14.395521238003006,101823.34195536465,{"$f":"'[1]Gráfico REM'!BK225","v":12694.120710651838},{"$f":"'[1]Gráfico REM'!BL225","v":70542.0552874555},{"$f":"'[1]Gráfico REM'!BM225","v":18587.165957257312},20.219952761860881,4.2508137970342919,21.705485867451401,27.661371511149358]
[2008,"julio","2008-julio",{"$f":"IF('[1]REAL IPC(M)'!$AL232=\"\",\"\",+'[1]REAL IPC(M)'!$AL232)","v":14.061048861704206},{"$f":"IF('[1]REAL IPC(M)'!$BE232=\"\",\"\",+'[1]REAL IPC(M)'!$BE232)","v":7.337542413468312},{"$f":"IF('[1]REAL IPC(M)'!$AM232=\"\",\"\",+'[1]REAL IPC(M)'!$AM232)","v":13.614616120035761},{"$f":"IF('[1]REAL IPC(M)'!$BI232=\"\",\"\",+'[1]REAL IPC(M)'!$BI232)","v":7.1713640833821479},{"$f":"IF('[1]REAL IMAE(M)'!BJ232=\"\",\"\",'[1]REAL IMAE(M)'!BJ232)","v":2.8978796696756515},{"$f":"IF('[1]REAL IMAE(M)'!BK232=\"\",\"\",'[1]REAL IMAE(M)'!BK232)","v":2.0090672885104244},{"$f":"IF('[1]REAL IMAE(M)'!BN232=\"\",\"\",'[1]REAL IMAE(M)'!BN232)","v":4.0696572741365955},{"$f":"IF('[1]REAL IMAE(M)'!BO232=\"\",\"\",'[1]REAL IMAE(M)'!BO232)","v":2.5470345866761779},{"$f":"IF('[1]EXT RIN(M)'!$K232=\"\",\"\",'[1]EXT RIN(M)'!$K232)","v":16684.934030699034},"",{"$f":"IF('[1]EXT RIN(M)'!$L232=\"\",\"\",'[1]EXT RIN(M)'!$L232)","v":19115.508496185113},"",{"$f":"IF('[1]MONE(M)CARD'!EG232=\"\",\"\",'[1]MONE(M)CARD'!EG232)","v":17787.953634129291},{"$f":"IF('[1]MONE(M)CARD'!EK232=\"\",\"\",'[1]MONE(M)CARD'!EK232)","v":32338.695967778032},{"$f":"IF('[1]MONE(M)CARD'!EP232=\"\",\"\",'[1]MONE(M)CARD'!EP232)","v":16996.078021208203},{"$f":"IF('[1]MONE(M)CARD'!ES232=\"\",\"\",'[1]MONE(M)CARD'!ES232)","v":11.026844196240294},{"$f":"IF('[1]MONE(M)CARD'!EV232=\"\",\"\",'[1]MONE(M)CARD'!EV232)","v":8.298027969185263},{"$f":"IF('[1]MONE(M)CARD'!EZ232=\"\",\"\",'[1]MONE(M)CARD'!EZ232)","v":9.9809691087757066},{"$f":"IF('[1]MONE(M)CAPARD'!FC232=\"\",\"\",'[1]MONE(M)CAPARD'!FC232)","v":20994.630353404693},{"$f":"IF('[1]MONE(M)CAPARD'!FG232=\"\",\"\",'[1]MONE(M)CAPARD'!FG232)","v":47924.073512038041},{"$f":"IF('[1]MONE(M)CAPARD'!FL232=\"\",\"\",'[1]MONE(M)CAPARD'!FL232)","v":16996.078021208188},{"$f":"IF('[1]MONE(M)CAPARD'!FO232=\"\",\"\",'[1]MONE(M)CAPARD'!FO232)","v":12.971253048404009},{"$f":"IF('[1]MONE(M)CAPARD'!FR232=\"\",\"\",'[1]MONE(M)CAPARD'!FR232)","v":10.751272376397946},{"$f":"IF('[1]MONE(M)CAPARD'!FV232=\"\",\"\",'[1]MONE(M)CAPARD'!FV232)","v":11.61569600295036},{"$f":"IF('[1]MONE(M)CARD'!FV232=\"\",\"\",'[1]MONE(M)CARD'!FV232)","v":2304.2897642889516},{"$f":"IF('[1]MONE(M)CARD'!GD232=\"\",\"\",'[1]MONE(M)CARD'!GD232)","v":64.017391069118716},{"$f":"IF('[1]MONE(M)CARD'!GE232=\"\",\"\",'[1]MONE(M)CARD'!GE232)","v":4914.7483779809445},-0.76235803250340739,{"$f":"IF('[9]II.2.Balance OSD-Activos'!J90=\"\",\"\",'[9]II.2.Balance OSD-Activos'!J90)","v":103.91990027104096},{"$f":"IF('[9]II.2.Balance OSD-Activos'!N90=\"\",\"\",'[9]II.2.Balance OSD-Activos'!N90)","v":429.9239104992717},{"$f":"IF('[9]II.2.Balance OSD-Activos'!R90=\"\",\"\",'[9]II.2.Balance OSD-Activos'!R90)","v":23717.115200588902},{"$f":"IF('[9]II.2.Balance OSD-Activos'!S90=\"\",\"\",'[9]II.2.Balance OSD-Activos'!S90)","v":26362.204678424234},23821.035100859943,50613.163689783447,-50.456320140633878,25.286371413453157,7.1563063323024423,26.131284721690307,14.994794040301528,19.542157928617378,-2.6369229850133422,{"$f":"IF('[1]MONE(M)CAPARD'!GS232=\"\",\"\",'[1]MONE(M)CAPARD'!GS232)","v":8155.6181394928926},{"$f":"IF('[1]MONE(M)CARD'!HA232=\"\",\"\",'[1]MONE(M)CAPARD'!HA232)","v":5378.521084350944},{"$f":"IF('[1]MONE(M)CAPARD'!HB232=\"\",\"\",'[1]MONE(M)CAPARD'!HB232)","v":2777.0970551419487},"n.d.",{"$f":"IF('[10]II.2.Balance OSD-Activos'!J90=\"\",\"\",'[10]II.2.Balance OSD-Activos'!J90)","v":348.93658511104093},{"$f":"IF('[10]II.2.Balance OSD-Activos'!N90=\"\",\"\",'[10]II.2.Balance OSD-Activos'!N90)","v":837.47862614927158},{"$f":"IF('[10]II.2.Balance OSD-Activos'!R90=\"\",\"\",'[10]II.2.Balance OSD-Activos'!R90)","v":33296.547983168901},{"$f":"IF('[10]II.2.Balance OSD-Activos'!S90=\"\",\"\",'[10]II.2.Balance OSD-Activos'!S90)","v":34698.310713614235},33645.484568279942,69181.273908043455,-8.71637820700386,24.745543025838558,2.6713844491321082,25.226605982095094,14.353176548634018,19.011122941978709,-1.92399707790074,{"$f":"IF('[1]MONE(M)CAPARD'!AS232=\"\",\"\",'[1]MONE(M)CAPARD'!AS232)","v":8.9976000000000003},{"$f":"IF('[1]MONE(M)CAPARD'!AT232=\"\",\"\",'[1]MONE(M)CAPARD'!AT232)","v":"n.a."},{"$f":"IF('[1]MONE(M)CAPARD'!AU232=\"\",\"\",'[1]MONE(M)CAPARD'!AU232)","v":7.25},{"$f":"IF('[1]MONE(M)CAPARD'!AV232=\"\",\"\",'[1]MONE(M)CAPARD'!AV232)","v":9},{"$f":"IF('[1]MONE(M)CAPARD'!AW232=\"\",\"\",'[1]MONE(M)CAPARD'!AW232)","v":"n.a."},{"$f":"IF('[1]MONE(M)CAPARD'!AX232=\"\",\"\",'[1]MONE(M)CAPARD'!AX232)","v":9},{"$f":"IF('[1]MONE(M)CAPARD'!AY232=\"\",\"\",'[1]MONE(M)CAPARD'!AY232)","v":"n.a."},{"$f":"IF('[1]FISCAL(M)'!$K232=\"\",\"\",'[1]FISCAL(M)'!$K232)","v":-310.73472794515084},{"$f":"IF('[1]FISCAL(M)'!$L232=\"\",\"\",'[1]FISCAL(M)'!$L232)","v":-180.36938795515061},{"$f":"IF('[1]FISCAL(M)'!$AY232=\"\",\"\",'[1]FISCAL(M)'!$AY232)","v":"n.d."},{"$f":"IF('[1]FISCAL(M)'!$BI232=\"\",\"\",'[1]FISCAL(M)'!$BI232)","v":"n.d."},{"$f":"IF('[1]FISCAL(M)'!$BS232=\"\",\"\",'[1]FISCAL(M)'!$BS232)","v":"n.d."},{"$f":"IF('[1]FISCAL(M)'!$AZ232=\"\",\"\",'[1]FISCAL(M)'!$AZ232)","v":"n.d."},{"$f":"IF('[1]FISCAL(M)'!$BJ232=\"\",\"\",'[1]FISCAL(M)'!$BJ232)","v":"n.d."},{"$f":"IF('[1]FISCAL(M)'!$BT232=\"\",\"\",'[1]FISCAL(M)'!$BT232)","v":"n.d."},{"$f":"IF('[2]MONE(M)'!$AO232=\"\",\"\",'[2]MONE(M)'!$AO232)","v":7520293.4247210566},{"$f":"IF('[3]MONE(M)'!$AO232=\"\",\"\",'[3]MONE(M)'!$AO232)","v":9136.7193479499983},{"$f":"IF('[4]MONE(M)'!$AO232=\"\",\"\",'[4]MONE(M)'!$AO232)","v":79118.69258897382},{"$f":"+'[5]MONE(M)'!$AO232","v":132988.92893337383},{"$f":"IF('[6]MONE(M)'!$AO232=\"\",\"\",'[6]MONE(M)'!$AO232)","v":45542.517421681579},{"$f":"IF('[7]MONE(M)'!$AO232=\"\",\"\",'[7]MONE(M)'!$AO232)","v":321122.98345044005},{"$f":"IF('[8]MONE(M)'!$AO232=\"\",\"\",'[8]MONE(M)'!$AO232)","v":18573.681732599998},44.483159397948711,7.4920309007296293,10.554711758621483,22.460381449836355,26.140099248725267,23.636320650778742,18.393413784320135,{"$f":"IF('[1]FISCAL(M)'!$K232=\"\",\"\",'[1]FISCAL(M)'!$K232)","v":-310.73472794515084},{"$f":"+'[1]REAL(A)'!$AO$28","v":159639.80552117509},-0.1946473982041616,{"$f":"IF('[1]FISCAL(M)'!$L232=\"\",\"\",'[1]FISCAL(M)'!$L232)","v":-180.36938795515061},{"$f":"+'[1]REAL(A)'!$AP$28","v":184795.69352117507},-9.7604757187960522E-2,68604.261620000616,{"$f":"'[1]Gráfico REM'!BG226","v":11723.51281766383},{"$f":"'[1]Gráfico REM'!BH226","v":52258.114355448182},{"$f":"'[1]Gráfico REM'!BI226","v":4622.6344468885945},16.073706152780321,2.5419346335404436,20.020939230542332,11.919437732802574,102001.0061690906,{"$f":"'[1]Gráfico REM'!BK226","v":12508.149834303829},{"$f":"'[1]Gráfico REM'!BL226","v":70831.796088048184},{"$f":"'[1]Gráfico REM'!BM226","v":18661.060246738594},18.420057563940361,4.2920669753590435,19.589852831710132,25.136311286483792]
[2008,"agosto","2008-agosto",{"$f":"IF('[1]REAL IPC(M)'!$AL233=\"\",\"\",+'[1]REAL IPC(M)'!$AL233)","v":14.396447530214051},{"$f":"IF('[1]REAL IPC(M)'!$BE233=\"\",\"\",+'[1]REAL IPC(M)'!$BE233)","v":7.2331307420208102},{"$f":"IF('[1]REAL IPC(M)'!$AM233=\"\",\"\",+'[1]REAL IPC(M)'!$AM233)","v":13.941838457632061},{"$f":"IF('[1]REAL IPC(M)'!$BI233=\"\",\"\",+'[1]REAL IPC(M)'!$BI233)","v":7.0720750019021672},{"$f":"IF('[1]REAL IMAE(M)'!BJ233=\"\",\"\",'[1]REAL IMAE(M)'!BJ233)","v":1.606893589091607},{"$f":"IF('[1]REAL IMAE(M)'!BK233=\"\",\"\",'[1]REAL IMAE(M)'!BK233)","v":1.9832448153761062},{"$f":"IF('[1]REAL IMAE(M)'!BN233=\"\",\"\",'[1]REAL IMAE(M)'!BN233)","v":2.814828810158132},{"$f":"IF('[1]REAL IMAE(M)'!BO233=\"\",\"\",'[1]REAL IMAE(M)'!BO233)","v":2.5031166702430774},{"$f":"IF('[1]EXT RIN(M)'!$K233=\"\",\"\",'[1]EXT RIN(M)'!$K233)","v":16542.386362923153},"",{"$f":"IF('[1]EXT RIN(M)'!$L233=\"\",\"\",'[1]EXT RIN(M)'!$L233)","v":18947.533758389472},"",{"$f":"IF('[1]MONE(M)CARD'!EG233=\"\",\"\",'[1]MONE(M)CARD'!EG233)","v":17554.784585388625},{"$f":"IF('[1]MONE(M)CARD'!EK233=\"\",\"\",'[1]MONE(M)CARD'!EK233)","v":32281.482472840449},{"$f":"IF('[1]MONE(M)CARD'!EP233=\"\",\"\",'[1]MONE(M)CARD'!EP233)","v":16818.421072576355},{"$f":"IF('[1]MONE(M)CARD'!ES233=\"\",\"\",'[1]MONE(M)CARD'!ES233)","v":9.3727122206631819},{"$f":"IF('[1]MONE(M)CARD'!EV233=\"\",\"\",'[1]MONE(M)CARD'!EV233)","v":7.5725706911349056},{"$f":"IF('[1]MONE(M)CARD'!EZ233=\"\",\"\",'[1]MONE(M)CARD'!EZ233)","v":9.1652789253013012},{"$f":"IF('[1]MONE(M)CAPARD'!FC233=\"\",\"\",'[1]MONE(M)CAPARD'!FC233)","v":20887.826568615023},{"$f":"IF('[1]MONE(M)CAPARD'!FG233=\"\",\"\",'[1]MONE(M)CAPARD'!FG233)","v":48042.939111650441},{"$f":"IF('[1]MONE(M)CAPARD'!FL233=\"\",\"\",'[1]MONE(M)CAPARD'!FL233)","v":16818.421072576355},{"$f":"IF('[1]MONE(M)CAPARD'!FO233=\"\",\"\",'[1]MONE(M)CAPARD'!FO233)","v":12.882829418371799},{"$f":"IF('[1]MONE(M)CAPARD'!FR233=\"\",\"\",'[1]MONE(M)CAPARD'!FR233)","v":10.374149871486393},{"$f":"IF('[1]MONE(M)CAPARD'!FV233=\"\",\"\",'[1]MONE(M)CAPARD'!FV233)","v":11.099442775736845},{"$f":"IF('[1]MONE(M)CARD'!FV233=\"\",\"\",'[1]MONE(M)CARD'!FV233)","v":2358.1755691419562},{"$f":"IF('[1]MONE(M)CARD'!GD233=\"\",\"\",'[1]MONE(M)CARD'!GD233)","v":72.124648986187282},{"$f":"IF('[1]MONE(M)CARD'!GE233=\"\",\"\",'[1]MONE(M)CARD'!GE233)","v":5002.3839138213898},0.37035013732660271,{"$f":"IF('[9]II.2.Balance OSD-Activos'!J91=\"\",\"\",'[9]II.2.Balance OSD-Activos'!J91)","v":115.85026032187704},{"$f":"IF('[9]II.2.Balance OSD-Activos'!N91=\"\",\"\",'[9]II.2.Balance OSD-Activos'!N91)","v":423.25412827348902},{"$f":"IF('[9]II.2.Balance OSD-Activos'!R91=\"\",\"\",'[9]II.2.Balance OSD-Activos'!R91)","v":23857.237445233513},{"$f":"IF('[9]II.2.Balance OSD-Activos'!S91=\"\",\"\",'[9]II.2.Balance OSD-Activos'!S91)","v":26652.07156949725},23973.08770555539,51048.413403326129,-50.732220385034175,24.295480075686161,13.065367020765773,25.221487277839682,13.935844596092029,18.569180998236057,-0.97297693038132138,{"$f":"IF('[1]MONE(M)CAPARD'!GS233=\"\",\"\",'[1]MONE(M)CAPARD'!GS233)","v":8098.7202457048679},{"$f":"IF('[1]MONE(M)CARD'!HA233=\"\",\"\",'[1]MONE(M)CAPARD'!HA233)","v":5465.6912788613899},{"$f":"IF('[1]MONE(M)CAPARD'!HB233=\"\",\"\",'[1]MONE(M)CAPARD'!HB233)","v":2633.028966843478},"n.d.",{"$f":"IF('[10]II.2.Balance OSD-Activos'!J91=\"\",\"\",'[10]II.2.Balance OSD-Activos'!J91)","v":389.23726849187699},{"$f":"IF('[10]II.2.Balance OSD-Activos'!N91=\"\",\"\",'[10]II.2.Balance OSD-Activos'!N91)","v":831.53853451348903},{"$f":"IF('[10]II.2.Balance OSD-Activos'!R91=\"\",\"\",'[10]II.2.Balance OSD-Activos'!R91)","v":33735.566402903511},{"$f":"IF('[10]II.2.Balance OSD-Activos'!S91=\"\",\"\",'[10]II.2.Balance OSD-Activos'!S91)","v":35056.224832777247},34124.803671395384,70012.567038686131,-4.3787833657893067,24.652077557486042,4.2059372872113698,25.090260590772061,13.425256157438348,18.50285422380411,-0.50826871817459818,{"$f":"IF('[1]MONE(M)CAPARD'!AS233=\"\",\"\",'[1]MONE(M)CAPARD'!AS233)","v":10},{"$f":"IF('[1]MONE(M)CAPARD'!AT233=\"\",\"\",'[1]MONE(M)CAPARD'!AT233)","v":"n.a."},{"$f":"IF('[1]MONE(M)CAPARD'!AU233=\"\",\"\",'[1]MONE(M)CAPARD'!AU233)","v":7.25},{"$f":"IF('[1]MONE(M)CAPARD'!AV233=\"\",\"\",'[1]MONE(M)CAPARD'!AV233)","v":9},{"$f":"IF('[1]MONE(M)CAPARD'!AW233=\"\",\"\",'[1]MONE(M)CAPARD'!AW233)","v":"n.a."},{"$f":"IF('[1]MONE(M)CAPARD'!AX233=\"\",\"\",'[1]MONE(M)CAPARD'!AX233)","v":9.5},{"$f":"IF('[1]MONE(M)CAPARD'!AY233=\"\",\"\",'[1]MONE(M)CAPARD'!AY233)","v":"n.a."},{"$f":"IF('[1]FISCAL(M)'!$K233=\"\",\"\",'[1]FISCAL(M)'!$K233)","v":-416.28011482448608},{"$f":"IF('[1]FISCAL(M)'!$L233=\"\",\"\",'[1]FISCAL(M)'!$L233)","v":-386.39391224448588},{"$f":"IF('[1]FISCAL(M)'!$AY233=\"\",\"\",'[1]FISCAL(M)'!$AY233)","v":"n.d."},{"$f":"IF('[1]FISCAL(M)'!$BI233=\"\",\"\",'[1]FISCAL(M)'!$BI233)","v":"n.d."},{"$f":"IF('[1]FISCAL(M)'!$BS233=\"\",\"\",'[1]FISCAL(M)'!$BS233)","v":"n.d."},{"$f":"IF('[1]FISCAL(M)'!$AZ233=\"\",\"\",'[1]FISCAL(M)'!$AZ233)","v":"n.d."},{"$f":"IF('[1]FISCAL(M)'!$BJ233=\"\",\"\",'[1]FISCAL(M)'!$BJ233)","v":"n.d."},{"$f":"IF('[1]FISCAL(M)'!$BT233=\"\",\"\",'[1]FISCAL(M)'!$BT233)","v":"n.d."},{"$f":"IF('[2]MONE(M)'!$AO233=\"\",\"\",'[2]MONE(M)'!$AO233)","v":7592805.7953898562},{"$f":"IF('[3]MONE(M)'!$AO233=\"\",\"\",'[3]MONE(M)'!$AO233)","v":9241.9938793500005},{"$f":"IF('[4]MONE(M)'!$AO233=\"\",\"\",'[4]MONE(M)'!$AO233)","v":80118.503133820777},{"$f":"+'[5]MONE(M)'!$AO233","v":134678.33039930335},{"$f":"IF('[6]MONE(M)'!$AO233=\"\",\"\",'[6]MONE(M)'!$AO233)","v":46622.095771143329},{"$f":"IF('[7]MONE(M)'!$AO233=\"\",\"\",'[7]MONE(M)'!$AO233)","v":324677.19513931999},{"$f":"IF('[8]MONE(M)'!$AO233=\"\",\"\",'[8]MONE(M)'!$AO233)","v":18962.60600991},41.990596270935598,7.5957732425602664,10.98095856627188,20.634849799284403,25.761831771668021,22.412121148538368,19.126106651075169,{"$f":"IF('[1]FISCAL(M)'!$K233=\"\",\"\",'[1]FISCAL(M)'!$K233)","v":-416.28011482448608},{"$f":"+'[1]REAL(A)'!$AO$28","v":159639.80552117509},-0.26076210345249357,{"$f":"IF('[1]FISCAL(M)'!$L233=\"\",\"\",'[1]FISCAL(M)'!$L233)","v":-386.39391224448588},{"$f":"+'[1]REAL(A)'!$AP$28","v":184795.69352117507},-0.20909248742866965,68739.661893326338,{"$f":"'[1]Gráfico REM'!BG227","v":11347.809808253322},{"$f":"'[1]Gráfico REM'!BH227","v":52726.297847063543},{"$f":"'[1]Gráfico REM'!BI227","v":4665.5542380094685},15.099186587811975,-0.109274673682902,19.159873453426691,13.420030428400986,102700.81847473633,{"$f":"'[1]Gráfico REM'!BK227","v":12137.806920483321},{"$f":"'[1]Gráfico REM'!BL227","v":71688.903856973542},{"$f":"'[1]Gráfico REM'!BM227","v":18874.107697279469},17.544758448556653,1.4157103823312589,19.150939852632298,23.871540047180815]
[2008,"septiembre","2008-septiembre",{"$f":"IF('[1]REAL IPC(M)'!$AL234=\"\",\"\",+'[1]REAL IPC(M)'!$AL234)","v":13.909183629915866},{"$f":"IF('[1]REAL IPC(M)'!$BE234=\"\",\"\",+'[1]REAL IPC(M)'!$BE234)","v":7.1201906464632536},{"$f":"IF('[1]REAL IPC(M)'!$AM234=\"\",\"\",+'[1]REAL IPC(M)'!$AM234)","v":13.524583898547293},{"$f":"IF('[1]REAL IPC(M)'!$BI234=\"\",\"\",+'[1]REAL IPC(M)'!$BI234)","v":6.9628358605819285},{"$f":"IF('[1]REAL IMAE(M)'!BJ234=\"\",\"\",'[1]REAL IMAE(M)'!BJ234)","v":1.3626642610314876},{"$f":"IF('[1]REAL IMAE(M)'!BK234=\"\",\"\",'[1]REAL IMAE(M)'!BK234)","v":1.9609843080840017},{"$f":"IF('[1]REAL IMAE(M)'!BN234=\"\",\"\",'[1]REAL IMAE(M)'!BN234)","v":2.4454750052761876},{"$f":"IF('[1]REAL IMAE(M)'!BO234=\"\",\"\",'[1]REAL IMAE(M)'!BO234)","v":2.4622747826098301},{"$f":"IF('[1]EXT RIN(M)'!$K234=\"\",\"\",'[1]EXT RIN(M)'!$K234)","v":16328.770519770424},"",{"$f":"IF('[1]EXT RIN(M)'!$L234=\"\",\"\",'[1]EXT RIN(M)'!$L234)","v":18552.994452283503},"",{"$f":"IF('[1]MONE(M)CARD'!EG234=\"\",\"\",'[1]MONE(M)CARD'!EG234)","v":17334.035971538076},{"$f":"IF('[1]MONE(M)CARD'!EK234=\"\",\"\",'[1]MONE(M)CARD'!EK234)","v":32406.268199822742},{"$f":"IF('[1]MONE(M)CARD'!EP234=\"\",\"\",'[1]MONE(M)CARD'!EP234)","v":17039.386846555055},{"$f":"IF('[1]MONE(M)CARD'!ES234=\"\",\"\",'[1]MONE(M)CARD'!ES234)","v":6.0099471934652815},{"$f":"IF('[1]MONE(M)CARD'!EV234=\"\",\"\",'[1]MONE(M)CARD'!EV234)","v":7.0464237939583008},{"$f":"IF('[1]MONE(M)CARD'!EZ234=\"\",\"\",'[1]MONE(M)CARD'!EZ234)","v":9.0846848879828634},{"$f":"IF('[1]MONE(M)CAPARD'!FC234=\"\",\"\",'[1]MONE(M)CAPARD'!FC234)","v":20615.192845383477},{"$f":"IF('[1]MONE(M)CAPARD'!FG234=\"\",\"\",'[1]MONE(M)CAPARD'!FG234)","v":48086.87162643273},{"$f":"IF('[1]MONE(M)CAPARD'!FL234=\"\",\"\",'[1]MONE(M)CAPARD'!FL234)","v":17039.386846555048},{"$f":"IF('[1]MONE(M)CAPARD'!FO234=\"\",\"\",'[1]MONE(M)CAPARD'!FO234)","v":8.8513738299936371},{"$f":"IF('[1]MONE(M)CAPARD'!FR234=\"\",\"\",'[1]MONE(M)CAPARD'!FR234)","v":9.1330456612185973},{"$f":"IF('[1]MONE(M)CAPARD'!FV234=\"\",\"\",'[1]MONE(M)CAPARD'!FV234)","v":10.342710646313002},{"$f":"IF('[1]MONE(M)CARD'!FV234=\"\",\"\",'[1]MONE(M)CARD'!FV234)","v":2336.2556862255833},{"$f":"IF('[1]MONE(M)CARD'!GD234=\"\",\"\",'[1]MONE(M)CARD'!GD234)","v":149.84076227326238},{"$f":"IF('[1]MONE(M)CARD'!GE234=\"\",\"\",'[1]MONE(M)CARD'!GE234)","v":5048.8654575536066},3.0014387162975886,{"$f":"IF('[9]II.2.Balance OSD-Activos'!J92=\"\",\"\",'[9]II.2.Balance OSD-Activos'!J92)","v":109.46819784845457},{"$f":"IF('[9]II.2.Balance OSD-Activos'!N92=\"\",\"\",'[9]II.2.Balance OSD-Activos'!N92)","v":418.69130860614393},{"$f":"IF('[9]II.2.Balance OSD-Activos'!R92=\"\",\"\",'[9]II.2.Balance OSD-Activos'!R92)","v":23975.515097576204},{"$f":"IF('[9]II.2.Balance OSD-Activos'!S92=\"\",\"\",'[9]II.2.Balance OSD-Activos'!S92)","v":26859.75146097636},24084.983295424659,51363.426065007166,-47.700094163777308,24.723284331336302,8.4142274058696351,25.516881364557833,11.541777123532015,17.328710847444427,-1.24047015079163,{"$f":"IF('[1]MONE(M)CAPARD'!GS234=\"\",\"\",'[1]MONE(M)CAPARD'!GS234)","v":8071.8693480480233},{"$f":"IF('[1]MONE(M)CARD'!HA234=\"\",\"\",'[1]MONE(M)CAPARD'!HA234)","v":5514.2997321536068},{"$f":"IF('[1]MONE(M)CAPARD'!HB234=\"\",\"\",'[1]MONE(M)CAPARD'!HB234)","v":2557.5696158944165},"n.d.",{"$f":"IF('[10]II.2.Balance OSD-Activos'!J92=\"\",\"\",'[10]II.2.Balance OSD-Activos'!J92)","v":374.97967229845449},{"$f":"IF('[10]II.2.Balance OSD-Activos'!N92=\"\",\"\",'[10]II.2.Balance OSD-Activos'!N92)","v":802.78631351614399},{"$f":"IF('[10]II.2.Balance OSD-Activos'!R92=\"\",\"\",'[10]II.2.Balance OSD-Activos'!R92)","v":34221.795261876206},{"$f":"IF('[10]II.2.Balance OSD-Activos'!S92=\"\",\"\",'[10]II.2.Balance OSD-Activos'!S92)","v":35337.56552345636},34596.77493417466,70737.126771147159,-1.5350150601287194,25.548559669574232,-2.9689934523692174,25.928094585422802,11.545337257725485,17.769900946702542,-0.73295327710156855,{"$f":"IF('[1]MONE(M)CAPARD'!AS234=\"\",\"\",'[1]MONE(M)CAPARD'!AS234)","v":10},{"$f":"IF('[1]MONE(M)CAPARD'!AT234=\"\",\"\",'[1]MONE(M)CAPARD'!AT234)","v":"n.a."},{"$f":"IF('[1]MONE(M)CAPARD'!AU234=\"\",\"\",'[1]MONE(M)CAPARD'!AU234)","v":7.25},{"$f":"IF('[1]MONE(M)CAPARD'!AV234=\"\",\"\",'[1]MONE(M)CAPARD'!AV234)","v":9},{"$f":"IF('[1]MONE(M)CAPARD'!AW234=\"\",\"\",'[1]MONE(M)CAPARD'!AW234)","v":"n.a."},{"$f":"IF('[1]MONE(M)CAPARD'!AX234=\"\",\"\",'[1]MONE(M)CAPARD'!AX234)","v":9.5},{"$f":"IF('[1]MONE(M)CAPARD'!AY234=\"\",\"\",'[1]MONE(M)CAPARD'!AY234)","v":"n.a."},{"$f":"IF('[1]FISCAL(M)'!$K234=\"\",\"\",'[1]FISCAL(M)'!$K234)","v":-878.0338940333047},{"$f":"IF('[1]FISCAL(M)'!$L234=\"\",\"\",'[1]FISCAL(M)'!$L234)","v":-918.07818179330434},{"$f":"IF('[1]FISCAL(M)'!$AY234=\"\",\"\",'[1]FISCAL(M)'!$AY234)","v":50288.920674458197},{"$f":"IF('[1]FISCAL(M)'!$BI234=\"\",\"\",'[1]FISCAL(M)'!$BI234)","v":23320.326004458202},{"$f":"IF('[1]FISCAL(M)'!$BS234=\"\",\"\",'[1]FISCAL(M)'!$BS234)","v":26968.594669999999},{"$f":"IF('[1]FISCAL(M)'!$AZ234=\"\",\"\",'[1]FISCAL(M)'!$AZ234)","v":61372.443469998208},{"$f":"IF('[1]FISCAL(M)'!$BJ234=\"\",\"\",'[1]FISCAL(M)'!$BJ234)","v":25920.4543799782},{"$f":"IF('[1]FISCAL(M)'!$BT234=\"\",\"\",'[1]FISCAL(M)'!$BT234)","v":35451.989090019997},{"$f":"IF('[2]MONE(M)'!$AO234=\"\",\"\",'[2]MONE(M)'!$AO234)","v":7726237.9359870385},{"$f":"IF('[3]MONE(M)'!$AO234=\"\",\"\",'[3]MONE(M)'!$AO234)","v":9246.5576702299986},{"$f":"IF('[4]MONE(M)'!$AO234=\"\",\"\",'[4]MONE(M)'!$AO234)","v":80817.858824738185},{"$f":"+'[5]MONE(M)'!$AO234","v":135922.15762641031},{"$f":"IF('[6]MONE(M)'!$AO234=\"\",\"\",'[6]MONE(M)'!$AO234)","v":46704.120908071913},{"$f":"IF('[7]MONE(M)'!$AO234=\"\",\"\",'[7]MONE(M)'!$AO234)","v":328074.00274570996},{"$f":"IF('[8]MONE(M)'!$AO234=\"\",\"\",'[8]MONE(M)'!$AO234)","v":19394.071250630001},39.166562363655764,7.2704308649084171,10.835783331133708,18.88194961469982,23.757716516697556,20.983410613861441,20.028507696367058,{"$f":"IF('[1]FISCAL(M)'!$K234=\"\",\"\",'[1]FISCAL(M)'!$K234)","v":-878.0338940333047},{"$f":"+'[1]REAL(A)'!$AO$28","v":159639.80552117509},-0.55000937339330425,{"$f":"IF('[1]FISCAL(M)'!$L234=\"\",\"\",'[1]FISCAL(M)'!$L234)","v":-918.07818179330434},{"$f":"+'[1]REAL(A)'!$AP$28","v":184795.69352117507},-0.49680713024197454,69115.088891699008,{"$f":"'[1]Gráfico REM'!BG228","v":11297.407778647133},{"$f":"'[1]Gráfico REM'!BH228","v":53094.444179758226},{"$f":"'[1]Gráfico REM'!BI228","v":4723.2369332936514},13.90198586911584,-1.1237686796254143,18.038845790373447,10.532906017645782,103506.02407979901,{"$f":"'[1]Gráfico REM'!BK228","v":12066.151329887134},{"$f":"'[1]Gráfico REM'!BL228","v":72488.51543038823},{"$f":"'[1]Gráfico REM'!BM228","v":18951.357319523649},16.562572194542604,0.18952964110108272,18.56468140631733,21.35096143301347]
[2008,"octubre","2008-octubre",{"$f":"IF('[1]REAL IPC(M)'!$AL235=\"\",\"\",+'[1]REAL IPC(M)'!$AL235)","v":13.195842106232902},{"$f":"IF('[1]REAL IPC(M)'!$BE235=\"\",\"\",+'[1]REAL IPC(M)'!$BE235)","v":6.999649049406087},{"$f":"IF('[1]REAL IPC(M)'!$AM235=\"\",\"\",+'[1]REAL IPC(M)'!$AM235)","v":12.823617499574102},{"$f":"IF('[1]REAL IPC(M)'!$BI235=\"\",\"\",+'[1]REAL IPC(M)'!$BI235)","v":6.8446978200385811},{"$f":"IF('[1]REAL IMAE(M)'!BJ235=\"\",\"\",'[1]REAL IMAE(M)'!BJ235)","v":1.1988497185178915},{"$f":"IF('[1]REAL IMAE(M)'!BK235=\"\",\"\",'[1]REAL IMAE(M)'!BK235)","v":1.9435560840849631},{"$f":"IF('[1]REAL IMAE(M)'!BN235=\"\",\"\",'[1]REAL IMAE(M)'!BN235)","v":2.2192017803344122},{"$f":"IF('[1]REAL IMAE(M)'!BO235=\"\",\"\",'[1]REAL IMAE(M)'!BO235)","v":2.426095521795868},{"$f":"IF('[1]EXT RIN(M)'!$K235=\"\",\"\",'[1]EXT RIN(M)'!$K235)","v":16116.737809608137},"",{"$f":"IF('[1]EXT RIN(M)'!$L235=\"\",\"\",'[1]EXT RIN(M)'!$L235)","v":18490.632912054338},"",{"$f":"IF('[1]MONE(M)CARD'!EG235=\"\",\"\",'[1]MONE(M)CARD'!EG235)","v":16957.314584517822},{"$f":"IF('[1]MONE(M)CARD'!EK235=\"\",\"\",'[1]MONE(M)CARD'!EK235)","v":32321.75629249608},{"$f":"IF('[1]MONE(M)CARD'!EP235=\"\",\"\",'[1]MONE(M)CARD'!EP235)","v":16935.172671459484},{"$f":"IF('[1]MONE(M)CARD'!ES235=\"\",\"\",'[1]MONE(M)CARD'!ES235)","v":4.3806742878022886},{"$f":"IF('[1]MONE(M)CARD'!EV235=\"\",\"\",'[1]MONE(M)CARD'!EV235)","v":5.5553394015623869},{"$f":"IF('[1]MONE(M)CARD'!EZ235=\"\",\"\",'[1]MONE(M)CARD'!EZ235)","v":7.47391297484159},{"$f":"IF('[1]MONE(M)CAPARD'!FC235=\"\",\"\",'[1]MONE(M)CAPARD'!FC235)","v":20265.700832653223},{"$f":"IF('[1]MONE(M)CAPARD'!FG235=\"\",\"\",'[1]MONE(M)CAPARD'!FG235)","v":48355.398408276087},{"$f":"IF('[1]MONE(M)CAPARD'!FL235=\"\",\"\",'[1]MONE(M)CAPARD'!FL235)","v":16935.172671459484},{"$f":"IF('[1]MONE(M)CAPARD'!FO235=\"\",\"\",'[1]MONE(M)CAPARD'!FO235)","v":7.2608959864240985},{"$f":"IF('[1]MONE(M)CAPARD'!FR235=\"\",\"\",'[1]MONE(M)CAPARD'!FR235)","v":8.139539539763252},{"$f":"IF('[1]MONE(M)CAPARD'!FV235=\"\",\"\",'[1]MONE(M)CAPARD'!FV235)","v":9.155559416343273},{"$f":"IF('[1]MONE(M)CARD'!FV235=\"\",\"\",'[1]MONE(M)CARD'!FV235)","v":2313.2107958114757},{"$f":"IF('[1]MONE(M)CARD'!GD235=\"\",\"\",'[1]MONE(M)CARD'!GD235)","v":67.04219294557123},{"$f":"IF('[1]MONE(M)CARD'!GE235=\"\",\"\",'[1]MONE(M)CARD'!GE235)","v":4955.5113652889386},-3.2476578743062423,{"$f":"IF('[9]II.2.Balance OSD-Activos'!J93=\"\",\"\",'[9]II.2.Balance OSD-Activos'!J93)","v":101.21286814587705},{"$f":"IF('[9]II.2.Balance OSD-Activos'!N93=\"\",\"\",'[9]II.2.Balance OSD-Activos'!N93)","v":415.25438077724834},{"$f":"IF('[9]II.2.Balance OSD-Activos'!R93=\"\",\"\",'[9]II.2.Balance OSD-Activos'!R93)","v":24116.12334666722},{"$f":"IF('[9]II.2.Balance OSD-Activos'!S93=\"\",\"\",'[9]II.2.Balance OSD-Activos'!S93)","v":26917.305614654088},24217.336214813098,51549.896210244435,-50.267170630440127,22.590976023854981,3.3755785071289068,23.34937922191007,8.6279127041783745,14.719394846218691,-2.6093160012257357,{"$f":"IF('[1]MONE(M)CAPARD'!GS235=\"\",\"\",'[1]MONE(M)CAPARD'!GS235)","v":8160.3695361781447},{"$f":"IF('[1]MONE(M)CARD'!HA235=\"\",\"\",'[1]MONE(M)CAPARD'!HA235)","v":5394.6173114389394},{"$f":"IF('[1]MONE(M)CAPARD'!HB235=\"\",\"\",'[1]MONE(M)CAPARD'!HB235)","v":2765.7522247392053},"n.d.",{"$f":"IF('[10]II.2.Balance OSD-Activos'!J93=\"\",\"\",'[10]II.2.Balance OSD-Activos'!J93)","v":385.53036191587699},{"$f":"IF('[10]II.2.Balance OSD-Activos'!N93=\"\",\"\",'[10]II.2.Balance OSD-Activos'!N93)","v":819.85229006724842},{"$f":"IF('[10]II.2.Balance OSD-Activos'!R93=\"\",\"\",'[10]II.2.Balance OSD-Activos'!R93)","v":34570.13071843722},{"$f":"IF('[10]II.2.Balance OSD-Activos'!S93=\"\",\"\",'[10]II.2.Balance OSD-Activos'!S93)","v":35476.65141243409},34955.6610803531,71252.164782854437,-1.7137742087205088,23.598694781415208,-1.8495343432724187,23.954704972677888,9.289212732286046,15.710169048107737,-2.059731898594805,{"$f":"IF('[1]MONE(M)CAPARD'!AS235=\"\",\"\",'[1]MONE(M)CAPARD'!AS235)","v":10},{"$f":"IF('[1]MONE(M)CAPARD'!AT235=\"\",\"\",'[1]MONE(M)CAPARD'!AT235)","v":"n.a."},{"$f":"IF('[1]MONE(M)CAPARD'!AU235=\"\",\"\",'[1]MONE(M)CAPARD'!AU235)","v":7.25},{"$f":"IF('[1]MONE(M)CAPARD'!AV235=\"\",\"\",'[1]MONE(M)CAPARD'!AV235)","v":9},{"$f":"IF('[1]MONE(M)CAPARD'!AW235=\"\",\"\",'[1]MONE(M)CAPARD'!AW235)","v":"n.a."},{"$f":"IF('[1]MONE(M)CAPARD'!AX235=\"\",\"\",'[1]MONE(M)CAPARD'!AX235)","v":9.5},{"$f":"IF('[1]MONE(M)CAPARD'!AY235=\"\",\"\",'[1]MONE(M)CAPARD'!AY235)","v":"n.a."},{"$f":"IF('[1]FISCAL(M)'!$K235=\"\",\"\",'[1]FISCAL(M)'!$K235)","v":-1006.3644757209736},{"$f":"IF('[1]FISCAL(M)'!$L235=\"\",\"\",'[1]FISCAL(M)'!$L235)","v":-1159.5039424609736},{"$f":"IF('[1]FISCAL(M)'!$AY235=\"\",\"\",'[1]FISCAL(M)'!$AY235)","v":"n.d."},{"$f":"IF('[1]FISCAL(M)'!$BI235=\"\",\"\",'[1]FISCAL(M)'!$BI235)","v":"n.d."},{"$f":"IF('[1]FISCAL(M)'!$BS235=\"\",\"\",'[1]FISCAL(M)'!$BS235)","v":"n.d."},{"$f":"IF('[1]FISCAL(M)'!$AZ235=\"\",\"\",'[1]FISCAL(M)'!$AZ235)","v":"n.d."},{"$f":"IF('[1]FISCAL(M)'!$BJ235=\"\",\"\",'[1]FISCAL(M)'!$BJ235)","v":"n.d."},{"$f":"IF('[1]FISCAL(M)'!$BT235=\"\",\"\",'[1]FISCAL(M)'!$BT235)","v":"n.d."},{"$f":"IF('[2]MONE(M)'!$AO235=\"\",\"\",'[2]MONE(M)'!$AO235)","v":7807622.5383925419},{"$f":"IF('[3]MONE(M)'!$AO235=\"\",\"\",'[3]MONE(M)'!$AO235)","v":9252.3264112100005},{"$f":"IF('[4]MONE(M)'!$AO235=\"\",\"\",'[4]MONE(M)'!$AO235)","v":81726.145841690013},{"$f":"+'[5]MONE(M)'!$AO235","v":135405.57670348292},{"$f":"IF('[6]MONE(M)'!$AO235=\"\",\"\",'[6]MONE(M)'!$AO235)","v":46554.84925188018},{"$f":"IF('[7]MONE(M)'!$AO235=\"\",\"\",'[7]MONE(M)'!$AO235)","v":331089.07028461999},{"$f":"IF('[8]MONE(M)'!$AO235=\"\",\"\",'[8]MONE(M)'!$AO235)","v":19705.149249319998},34.832020144123788,7.030582101039573,9.6039807750441639,15.315869356785949,17.990331566078609,18.635269939082487,19.276794903484884,{"$f":"IF('[1]FISCAL(M)'!$K235=\"\",\"\",'[1]FISCAL(M)'!$K235)","v":-1006.3644757209736},{"$f":"+'[1]REAL(A)'!$AO$28","v":159639.80552117509},-0.63039695672110196,{"$f":"IF('[1]FISCAL(M)'!$L235=\"\",\"\",'[1]FISCAL(M)'!$L235)","v":-1159.5039424609736},{"$f":"+'[1]REAL(A)'!$AP$28","v":184795.69352117507},-0.62745182009780442,69235.003596035676,{"$f":"'[1]Gráfico REM'!BG229","v":11273.47867460538},{"$f":"'[1]Gráfico REM'!BH229","v":53212.983173362096},{"$f":"'[1]Gráfico REM'!BI229","v":4748.5417480682008},12.405483629163561,0.18423956311506284,15.244933349309786,13.944649153070232,104058.95136671569,{"$f":"'[1]Gráfico REM'!BK229","v":12086.99236766538},{"$f":"'[1]Gráfico REM'!BL229","v":72918.132422682102},{"$f":"'[1]Gráfico REM'!BM229","v":19053.826576368199},15.486434407127625,1.8190873365189431,16.307365144167619,22.61522376984184]
[2008,"noviembre","2008-noviembre",{"$f":"IF('[1]REAL IPC(M)'!$AL236=\"\",\"\",+'[1]REAL IPC(M)'!$AL236)","v":10.321402774344858},{"$f":"IF('[1]REAL IPC(M)'!$BE236=\"\",\"\",+'[1]REAL IPC(M)'!$BE236)","v":6.8728073559717329},{"$f":"IF('[1]REAL IPC(M)'!$AM236=\"\",\"\",+'[1]REAL IPC(M)'!$AM236)","v":10.058389826102964},{"$f":"IF('[1]REAL IPC(M)'!$BI236=\"\",\"\",+'[1]REAL IPC(M)'!$BI236)","v":6.7191264832618058},{"$f":"IF('[1]REAL IMAE(M)'!BJ236=\"\",\"\",'[1]REAL IMAE(M)'!BJ236)","v":-0.24357649161745876},{"$f":"IF('[1]REAL IMAE(M)'!BK236=\"\",\"\",'[1]REAL IMAE(M)'!BK236)","v":1.9321867772631007},{"$f":"IF('[1]REAL IMAE(M)'!BN236=\"\",\"\",'[1]REAL IMAE(M)'!BN236)","v":0.47893243497802995},{"$f":"IF('[1]REAL IMAE(M)'!BO236=\"\",\"\",'[1]REAL IMAE(M)'!BO236)","v":2.396150845996714},{"$f":"IF('[1]EXT RIN(M)'!$K236=\"\",\"\",'[1]EXT RIN(M)'!$K236)","v":16218.631526435387},"",{"$f":"IF('[1]EXT RIN(M)'!$L236=\"\",\"\",'[1]EXT RIN(M)'!$L236)","v":18571.562904868355},"",{"$f":"IF('[1]MONE(M)CARD'!EG236=\"\",\"\",'[1]MONE(M)CARD'!EG236)","v":17634.703213673947},{"$f":"IF('[1]MONE(M)CARD'!EK236=\"\",\"\",'[1]MONE(M)CARD'!EK236)","v":32390.807914636371},{"$f":"IF('[1]MONE(M)CARD'!EP236=\"\",\"\",'[1]MONE(M)CARD'!EP236)","v":17070.414741228116},{"$f":"IF('[1]MONE(M)CARD'!ES236=\"\",\"\",'[1]MONE(M)CARD'!ES236)","v":2.981331342945559},{"$f":"IF('[1]MONE(M)CARD'!EV236=\"\",\"\",'[1]MONE(M)CARD'!EV236)","v":4.6004722949095411},{"$f":"IF('[1]MONE(M)CARD'!EZ236=\"\",\"\",'[1]MONE(M)CARD'!EZ236)","v":6.779036064548194},{"$f":"IF('[1]MONE(M)CAPARD'!FC236=\"\",\"\",'[1]MONE(M)CAPARD'!FC236)","v":21165.864523210348},{"$f":"IF('[1]MONE(M)CAPARD'!FG236=\"\",\"\",'[1]MONE(M)CAPARD'!FG236)","v":48217.245599626374},{"$f":"IF('[1]MONE(M)CAPARD'!FL236=\"\",\"\",'[1]MONE(M)CAPARD'!FL236)","v":17070.414741228102},{"$f":"IF('[1]MONE(M)CAPARD'!FO236=\"\",\"\",'[1]MONE(M)CAPARD'!FO236)","v":6.2962674201474611},{"$f":"IF('[1]MONE(M)CAPARD'!FR236=\"\",\"\",'[1]MONE(M)CAPARD'!FR236)","v":6.9475564110675458},{"$f":"IF('[1]MONE(M)CAPARD'!FV236=\"\",\"\",'[1]MONE(M)CAPARD'!FV236)","v":8.2201188687550886},{"$f":"IF('[1]MONE(M)CARD'!FV236=\"\",\"\",'[1]MONE(M)CARD'!FV236)","v":2381.3844376576599},{"$f":"IF('[1]MONE(M)CARD'!GD236=\"\",\"\",'[1]MONE(M)CARD'!GD236)","v":67.085072067910772},{"$f":"IF('[1]MONE(M)CARD'!GE236=\"\",\"\",'[1]MONE(M)CARD'!GE236)","v":5054.4273916934899},-0.33700884279012078,{"$f":"IF('[9]II.2.Balance OSD-Activos'!J94=\"\",\"\",'[9]II.2.Balance OSD-Activos'!J94)","v":104.46638541537983},{"$f":"IF('[9]II.2.Balance OSD-Activos'!N94=\"\",\"\",'[9]II.2.Balance OSD-Activos'!N94)","v":411.34431291176236},{"$f":"IF('[9]II.2.Balance OSD-Activos'!R94=\"\",\"\",'[9]II.2.Balance OSD-Activos'!R94)","v":24438.610781833326},{"$f":"IF('[9]II.2.Balance OSD-Activos'!S94=\"\",\"\",'[9]II.2.Balance OSD-Activos'!S94)","v":27263.67710446335},24543.077167248706,52218.098584623818,-51.560153478930658,19.767224897761125,-1.5460884146384912,20.525861515697486,6.6402161626791356,12.354598594302901,-2.3647962519157897,{"$f":"IF('[1]MONE(M)CAPARD'!GS236=\"\",\"\",'[1]MONE(M)CAPARD'!GS236)","v":8046.1818059099396},{"$f":"IF('[1]MONE(M)CARD'!HA236=\"\",\"\",'[1]MONE(M)CAPARD'!HA236)","v":5541.2611274034898},{"$f":"IF('[1]MONE(M)CAPARD'!HB236=\"\",\"\",'[1]MONE(M)CAPARD'!HB236)","v":2504.9206785064498},"n.d.",{"$f":"IF('[10]II.2.Balance OSD-Activos'!J94=\"\",\"\",'[10]II.2.Balance OSD-Activos'!J94)","v":389.70990099437978},{"$f":"IF('[10]II.2.Balance OSD-Activos'!N94=\"\",\"\",'[10]II.2.Balance OSD-Activos'!N94)","v":887.85004047176233},{"$f":"IF('[10]II.2.Balance OSD-Activos'!R94=\"\",\"\",'[10]II.2.Balance OSD-Activos'!R94)","v":34903.389468303329},{"$f":"IF('[10]II.2.Balance OSD-Activos'!S94=\"\",\"\",'[10]II.2.Balance OSD-Activos'!S94)","v":35918.159735243345},35293.099369297706,72099.109145012815,-6.2097581541776581,21.11798593668739,3.2681262140549894,21.513301382065151,7.7048706318349813,13.81456449775369,-1.8956045503540473,{"$f":"IF('[1]MONE(M)CAPARD'!AS236=\"\",\"\",'[1]MONE(M)CAPARD'!AS236)","v":10},{"$f":"IF('[1]MONE(M)CAPARD'!AT236=\"\",\"\",'[1]MONE(M)CAPARD'!AT236)","v":"n.a."},{"$f":"IF('[1]MONE(M)CAPARD'!AU236=\"\",\"\",'[1]MONE(M)CAPARD'!AU236)","v":7.25},{"$f":"IF('[1]MONE(M)CAPARD'!AV236=\"\",\"\",'[1]MONE(M)CAPARD'!AV236)","v":9},{"$f":"IF('[1]MONE(M)CAPARD'!AW236=\"\",\"\",'[1]MONE(M)CAPARD'!AW236)","v":"n.a."},{"$f":"IF('[1]MONE(M)CAPARD'!AX236=\"\",\"\",'[1]MONE(M)CAPARD'!AX236)","v":9.5},{"$f":"IF('[1]MONE(M)CAPARD'!AY236=\"\",\"\",'[1]MONE(M)CAPARD'!AY236)","v":"n.a."},{"$f":"IF('[1]FISCAL(M)'!$K236=\"\",\"\",'[1]FISCAL(M)'!$K236)","v":-1533.7408837567366},{"$f":"IF('[1]FISCAL(M)'!$L236=\"\",\"\",'[1]FISCAL(M)'!$L236)","v":-1915.5614897667365},{"$f":"IF('[1]FISCAL(M)'!$AY236=\"\",\"\",'[1]FISCAL(M)'!$AY236)","v":"n.d."},{"$f":"IF('[1]FISCAL(M)'!$BI236=\"\",\"\",'[1]FISCAL(M)'!$BI236)","v":"n.d."},{"$f":"IF('[1]FISCAL(M)'!$BS236=\"\",\"\",'[1]FISCAL(M)'!$BS236)","v":"n.d."},{"$f":"IF('[1]FISCAL(M)'!$AZ236=\"\",\"\",'[1]FISCAL(M)'!$AZ236)","v":"n.d."},{"$f":"IF('[1]FISCAL(M)'!$BJ236=\"\",\"\",'[1]FISCAL(M)'!$BJ236)","v":"n.d."},{"$f":"IF('[1]FISCAL(M)'!$BT236=\"\",\"\",'[1]FISCAL(M)'!$BT236)","v":"n.d."},{"$f":"IF('[2]MONE(M)'!$AO236=\"\",\"\",'[2]MONE(M)'!$AO236)","v":7753907.2032484924},{"$f":"IF('[3]MONE(M)'!$AO236=\"\",\"\",'[3]MONE(M)'!$AO236)","v":9249.1523016399988},{"$f":"IF('[4]MONE(M)'!$AO236=\"\",\"\",'[4]MONE(M)'!$AO236)","v":82970.320507177239},{"$f":"+'[5]MONE(M)'!$AO236","v":136022.03198019176},{"$f":"IF('[6]MONE(M)'!$AO236=\"\",\"\",'[6]MONE(M)'!$AO236)","v":46966.662599271811},{"$f":"IF('[7]MONE(M)'!$AO236=\"\",\"\",'[7]MONE(M)'!$AO236)","v":335507.00125769002},{"$f":"IF('[8]MONE(M)'!$AO236=\"\",\"\",'[8]MONE(M)'!$AO236)","v":19813.889922388997},30.502748713499095,6.1315329171933719,9.8041638801219975,13.224243706789673,15.319832533958945,17.005980941688303,18.383480606932913,{"$f":"IF('[1]FISCAL(M)'!$K236=\"\",\"\",'[1]FISCAL(M)'!$K236)","v":-1533.7408837567366},{"$f":"+'[1]REAL(A)'!$AO$28","v":159639.80552117509},-0.96075090968041599,{"$f":"IF('[1]FISCAL(M)'!$L236=\"\",\"\",'[1]FISCAL(M)'!$L236)","v":-1915.5614897667365},{"$f":"+'[1]REAL(A)'!$AP$28","v":184795.69352117507},-1.036583403685887,70054.58226825732,{"$f":"'[1]Gráfico REM'!BG230","v":11425.378458537645},{"$f":"'[1]Gráfico REM'!BH230","v":53856.753173022822},{"$f":"'[1]Gráfico REM'!BI230","v":4772.4506366968562},10.940530775842339,1.8248668517525601,13.122245853914972,10.572922741279079,104687.47028775532,{"$f":"'[1]Gráfico REM'!BK230","v":12206.054767330645},{"$f":"'[1]Gráfico REM'!BL230","v":73670.643095411826},{"$f":"'[1]Gráfico REM'!BM230","v":18810.772425012852},13.406018383421481,2.7742708612891853,14.49073770042817,16.915893144536721]
[2008,"diciembre","2008-diciembre",{"$f":"IF('[1]REAL IPC(M)'!$AL237=\"\",\"\",+'[1]REAL IPC(M)'!$AL237)","v":8.7478121935040463},{"$f":"IF('[1]REAL IPC(M)'!$BE237=\"\",\"\",+'[1]REAL IPC(M)'!$BE237)","v":6.7412865095173968},{"$f":"IF('[1]REAL IPC(M)'!$AM237=\"\",\"\",+'[1]REAL IPC(M)'!$AM237)","v":8.5505972387891926},{"$f":"IF('[1]REAL IPC(M)'!$BI237=\"\",\"\",+'[1]REAL IPC(M)'!$BI237)","v":6.5879423269161075},{"$f":"IF('[1]REAL IMAE(M)'!BJ237=\"\",\"\",'[1]REAL IMAE(M)'!BJ237)","v":-1.6194325717218239},{"$f":"IF('[1]REAL IMAE(M)'!BK237=\"\",\"\",'[1]REAL IMAE(M)'!BK237)","v":1.9280488737675405},{"$f":"IF('[1]REAL IMAE(M)'!BN237=\"\",\"\",'[1]REAL IMAE(M)'!BN237)","v":-0.98761333417374253},{"$f":"IF('[1]REAL IMAE(M)'!BO237=\"\",\"\",'[1]REAL IMAE(M)'!BO237)","v":2.3739851774398524},{"$f":"IF('[1]EXT RIN(M)'!$K237=\"\",\"\",'[1]EXT RIN(M)'!$K237)","v":16652.633494081474},16652.633494081474,{"$f":"IF('[1]EXT RIN(M)'!$L237=\"\",\"\",'[1]EXT RIN(M)'!$L237)","v":19264.209030946746},19264.209030946746,{"$f":"IF('[1]MONE(M)CARD'!EG237=\"\",\"\",'[1]MONE(M)CARD'!EG237)","v":18419.446676746582},{"$f":"IF('[1]MONE(M)CARD'!EK237=\"\",\"\",'[1]MONE(M)CARD'!EK237)","v":31994.144692668579},{"$f":"IF('[1]MONE(M)CARD'!EP237=\"\",\"\",'[1]MONE(M)CARD'!EP237)","v":17239.675454796037},{"$f":"IF('[1]MONE(M)CARD'!ES237=\"\",\"\",'[1]MONE(M)CARD'!ES237)","v":-0.63707516749073045},{"$f":"IF('[1]MONE(M)CARD'!EV237=\"\",\"\",'[1]MONE(M)CARD'!EV237)","v":1.8200160981113767},{"$f":"IF('[1]MONE(M)CARD'!EZ237=\"\",\"\",'[1]MONE(M)CARD'!EZ237)","v":4.7105632467243419},{"$f":"IF('[1]MONE(M)CAPARD'!FC237=\"\",\"\",'[1]MONE(M)CAPARD'!FC237)","v":22183.057567180982},{"$f":"IF('[1]MONE(M)CAPARD'!FG237=\"\",\"\",'[1]MONE(M)CAPARD'!FG237)","v":48010.687852368574},{"$f":"IF('[1]MONE(M)CAPARD'!FL237=\"\",\"\",'[1]MONE(M)CAPARD'!FL237)","v":17239.675454796045},{"$f":"IF('[1]MONE(M)CAPARD'!FO237=\"\",\"\",'[1]MONE(M)CAPARD'!FO237)","v":2.7398290419192728},{"$f":"IF('[1]MONE(M)CAPARD'!FR237=\"\",\"\",'[1]MONE(M)CAPARD'!FR237)","v":4.6874022421019568},{"$f":"IF('[1]MONE(M)CAPARD'!FV237=\"\",\"\",'[1]MONE(M)CAPARD'!FV237)","v":6.4338541666975502},{"$f":"IF('[1]MONE(M)CARD'!FV237=\"\",\"\",'[1]MONE(M)CARD'!FV237)","v":2337.8005698319585},{"$f":"IF('[1]MONE(M)CARD'!GD237=\"\",\"\",'[1]MONE(M)CARD'!GD237)","v":57.39653405187331},{"$f":"IF('[1]MONE(M)CARD'!GE237=\"\",\"\",'[1]MONE(M)CARD'!GE237)","v":4908.2352565723604},-2.7102915217327439,{"$f":"IF('[9]II.2.Balance OSD-Activos'!J95=\"\",\"\",'[9]II.2.Balance OSD-Activos'!J95)","v":105.69787463920646},{"$f":"IF('[9]II.2.Balance OSD-Activos'!N95=\"\",\"\",'[9]II.2.Balance OSD-Activos'!N95)","v":405.22205083633651},{"$f":"IF('[9]II.2.Balance OSD-Activos'!R95=\"\",\"\",'[9]II.2.Balance OSD-Activos'!R95)","v":24626.098583479819},{"$f":"IF('[9]II.2.Balance OSD-Activos'!S95=\"\",\"\",'[9]II.2.Balance OSD-Activos'!S95)","v":27258.032075706687},24731.796458119024,52395.050584662051,-51.964134236469505,17.297440705386723,-11.937417155686902,18.027876377056671,5.0203132817116414,10.305724622899382,-2.0488739714035198,{"$f":"IF('[1]MONE(M)CAPARD'!GS237=\"\",\"\",'[1]MONE(M)CAPARD'!GS237)","v":8479.2859043530843},{"$f":"IF('[1]MONE(M)CARD'!HA237=\"\",\"\",'[1]MONE(M)CAPARD'!HA237)","v":5393.4874074323607},{"$f":"IF('[1]MONE(M)CAPARD'!HB237=\"\",\"\",'[1]MONE(M)CAPARD'!HB237)","v":3085.7984969207237},"n.d.",{"$f":"IF('[10]II.2.Balance OSD-Activos'!J95=\"\",\"\",'[10]II.2.Balance OSD-Activos'!J95)","v":409.49795498420656},{"$f":"IF('[10]II.2.Balance OSD-Activos'!N95=\"\",\"\",'[10]II.2.Balance OSD-Activos'!N95)","v":809.12769587633636},{"$f":"IF('[10]II.2.Balance OSD-Activos'!R95=\"\",\"\",'[10]II.2.Balance OSD-Activos'!R95)","v":34672.759224889822},{"$f":"IF('[10]II.2.Balance OSD-Activos'!S95=\"\",\"\",'[10]II.2.Balance OSD-Activos'!S95)","v":35928.774483036686},35082.257179874032,71820.159358787059,-7.0980964989927902,18.633593638229339,-13.321135605970669,19.022941427199513,6.1121483514732899,11.583207820927722,-2.2313566768259676,{"$f":"IF('[1]MONE(M)CAPARD'!AS237=\"\",\"\",'[1]MONE(M)CAPARD'!AS237)","v":10},{"$f":"IF('[1]MONE(M)CAPARD'!AT237=\"\",\"\",'[1]MONE(M)CAPARD'!AT237)","v":"n.a."},{"$f":"IF('[1]MONE(M)CAPARD'!AU237=\"\",\"\",'[1]MONE(M)CAPARD'!AU237)","v":7.25},{"$f":"IF('[1]MONE(M)CAPARD'!AV237=\"\",\"\",'[1]MONE(M)CAPARD'!AV237)","v":7.75},{"$f":"IF('[1]MONE(M)CAPARD'!AW237=\"\",\"\",'[1]MONE(M)CAPARD'!AW237)","v":"n.a."},{"$f":"IF('[1]MONE(M)CAPARD'!AX237=\"\",\"\",'[1]MONE(M)CAPARD'!AX237)","v":9.5},{"$f":"IF('[1]MONE(M)CAPARD'!AY237=\"\",\"\",'[1]MONE(M)CAPARD'!AY237)","v":"n.a."},{"$f":"IF('[1]FISCAL(M)'!$K237=\"\",\"\",'[1]FISCAL(M)'!$K237)","v":-2663.0519924727291},{"$f":"IF('[1]FISCAL(M)'!$L237=\"\",\"\",'[1]FISCAL(M)'!$L237)","v":-2630.5943166327284},{"$f":"IF('[1]FISCAL(M)'!$AY237=\"\",\"\",'[1]FISCAL(M)'!$AY237)","v":52323.271289437565},{"$f":"IF('[1]FISCAL(M)'!$BI237=\"\",\"\",'[1]FISCAL(M)'!$BI237)","v":24433.678775117569},{"$f":"IF('[1]FISCAL(M)'!$BS237=\"\",\"\",'[1]FISCAL(M)'!$BS237)","v":27889.592514319997},{"$f":"IF('[1]FISCAL(M)'!$AZ237=\"\",\"\",'[1]FISCAL(M)'!$AZ237)","v":62887.385938537562},{"$f":"IF('[1]FISCAL(M)'!$BJ237=\"\",\"\",'[1]FISCAL(M)'!$BJ237)","v":26520.949470437568},{"$f":"IF('[1]FISCAL(M)'!$BT237=\"\",\"\",'[1]FISCAL(M)'!$BT237)","v":36366.436468100001},{"$f":"IF('[2]MONE(M)'!$AO237=\"\",\"\",'[2]MONE(M)'!$AO237)","v":8247192.0173865147},{"$f":"IF('[3]MONE(M)'!$AO237=\"\",\"\",'[3]MONE(M)'!$AO237)","v":9160.9753295700011},{"$f":"IF('[4]MONE(M)'!$AO237=\"\",\"\",'[4]MONE(M)'!$AO237)","v":85347.69851167321},{"$f":"+'[5]MONE(M)'!$AO237","v":135414.67585590761},{"$f":"IF('[6]MONE(M)'!$AO237=\"\",\"\",'[6]MONE(M)'!$AO237)","v":46350.383238286871},{"$f":"IF('[7]MONE(M)'!$AO237=\"\",\"\",'[7]MONE(M)'!$AO237)","v":334228.4666859},{"$f":"IF('[8]MONE(M)'!$AO237=\"\",\"\",'[8]MONE(M)'!$AO237)","v":19424.842702734997},33.873684582043808,4.4147711261212752,11.221711450122829,10.406254330647702,11.58457913730382,13.614271082474684,16.017035050488349,{"$f":"IF('[1]FISCAL(M)'!$K237=\"\",\"\",'[1]FISCAL(M)'!$K237)","v":-2663.0519924727291},{"$f":"+'[1]REAL(A)'!$AO$28","v":159639.80552117509},-1.6681628894364282,{"$f":"IF('[1]FISCAL(M)'!$L237=\"\",\"\",'[1]FISCAL(M)'!$L237)","v":-2630.5943166327284},{"$f":"+'[1]REAL(A)'!$AP$28","v":184795.69352117507},-1.4235149458887677,70610.230928784687,{"$f":"'[1]Gráfico REM'!BG231","v":11812.68264747031},{"$f":"'[1]Gráfico REM'!BH231","v":54102.469506571913},{"$f":"'[1]Gráfico REM'!BI231","v":4695.0787747424674},10.313535420181008,7.5062857339014855,11.264114988998642,6.8153284287427507,104463.86247185868,{"$f":"'[1]Gráfico REM'!BK231","v":12548.66521217331},{"$f":"'[1]Gráfico REM'!BL231","v":73527.312209306911},{"$f":"'[1]Gráfico REM'!BM231","v":18387.885050378471},11.755879334258633,8.6117572578696446,12.481502031150637,11.084910033258133]
[2009,"enero","2009-enero",{"$f":"IF('[1]REAL IPC(M)'!$AL238=\"\",\"\",+'[1]REAL IPC(M)'!$AL238)","v":7.6199428269990932},{"$f":"IF('[1]REAL IPC(M)'!$BE238=\"\",\"\",+'[1]REAL IPC(M)'!$BE238)","v":6.6068706302425229},{"$f":"IF('[1]REAL IPC(M)'!$AM238=\"\",\"\",+'[1]REAL IPC(M)'!$AM238)","v":7.3509664520208906},{"$f":"IF('[1]REAL IPC(M)'!$BI238=\"\",\"\",+'[1]REAL IPC(M)'!$BI238)","v":6.453148280431753},{"$f":"IF('[1]REAL IMAE(M)'!BJ238=\"\",\"\",'[1]REAL IMAE(M)'!BJ238)","v":-2.1620274645663629},{"$f":"IF('[1]REAL IMAE(M)'!BK238=\"\",\"\",'[1]REAL IMAE(M)'!BK238)","v":1.9321718310874259},{"$f":"IF('[1]REAL IMAE(M)'!BN238=\"\",\"\",'[1]REAL IMAE(M)'!BN238)","v":-1.8101267018267309},{"$f":"IF('[1]REAL IMAE(M)'!BO238=\"\",\"\",'[1]REAL IMAE(M)'!BO238)","v":2.3609966285361272},{"$f":"IF('[1]EXT RIN(M)'!$K238=\"\",\"\",'[1]EXT RIN(M)'!$K238)","v":16453.599035983192},"",{"$f":"IF('[1]EXT RIN(M)'!$L238=\"\",\"\",'[1]EXT RIN(M)'!$L238)","v":19022.837199739151},"",{"$f":"IF('[1]MONE(M)CARD'!EG238=\"\",\"\",'[1]MONE(M)CARD'!EG238)","v":18179.827830500904},{"$f":"IF('[1]MONE(M)CARD'!EK238=\"\",\"\",'[1]MONE(M)CARD'!EK238)","v":31991.04955716278},{"$f":"IF('[1]MONE(M)CARD'!EP238=\"\",\"\",'[1]MONE(M)CARD'!EP238)","v":17197.993792636451},{"$f":"IF('[1]MONE(M)CARD'!ES238=\"\",\"\",'[1]MONE(M)CARD'!ES238)","v":-2.2204730980385334},{"$f":"IF('[1]MONE(M)CARD'!EV238=\"\",\"\",'[1]MONE(M)CARD'!EV238)","v":0.82984965245531672},{"$f":"IF('[1]MONE(M)CARD'!EZ238=\"\",\"\",'[1]MONE(M)CARD'!EZ238)","v":3.4468543380115069},{"$f":"IF('[1]MONE(M)CAPARD'!FC238=\"\",\"\",'[1]MONE(M)CAPARD'!FC238)","v":21894.060645596306},{"$f":"IF('[1]MONE(M)CAPARD'!FG238=\"\",\"\",'[1]MONE(M)CAPARD'!FG238)","v":47918.944911982784},{"$f":"IF('[1]MONE(M)CAPARD'!FL238=\"\",\"\",'[1]MONE(M)CAPARD'!FL238)","v":17197.993792636451},{"$f":"IF('[1]MONE(M)CAPARD'!FO238=\"\",\"\",'[1]MONE(M)CAPARD'!FO238)","v":1.1123981889565204},{"$f":"IF('[1]MONE(M)CAPARD'!FR238=\"\",\"\",'[1]MONE(M)CAPARD'!FR238)","v":3.5732928673056552},{"$f":"IF('[1]MONE(M)CAPARD'!FV238=\"\",\"\",'[1]MONE(M)CAPARD'!FV238)","v":5.1230448904277859},{"$f":"IF('[1]MONE(M)CARD'!FV238=\"\",\"\",'[1]MONE(M)CARD'!FV238)","v":2234.8331530223068},{"$f":"IF('[1]MONE(M)CARD'!GD238=\"\",\"\",'[1]MONE(M)CARD'!GD238)","v":60.912345136900065},{"$f":"IF('[1]MONE(M)CARD'!GE238=\"\",\"\",'[1]MONE(M)CARD'!GE238)","v":5064.1782007798229},12.288194186369994,{"$f":"IF('[9]II.2.Balance OSD-Activos'!J96=\"\",\"\",'[9]II.2.Balance OSD-Activos'!J96)","v":116.07692902400531},{"$f":"IF('[9]II.2.Balance OSD-Activos'!N96=\"\",\"\",'[9]II.2.Balance OSD-Activos'!N96)","v":384.15171602514221},{"$f":"IF('[9]II.2.Balance OSD-Activos'!R96=\"\",\"\",'[9]II.2.Balance OSD-Activos'!R96)","v":23810.03254765151},{"$f":"IF('[9]II.2.Balance OSD-Activos'!S96=\"\",\"\",'[9]II.2.Balance OSD-Activos'!S96)","v":27173.494528896692},23926.109476675516,51483.75572159735,-9.309158182462907,5.4845615225910915,-8.9085976183527098,5.5685141480473987,11.296530110002202,8.3430185924696421,-1.9627060304297395,{"$f":"IF('[1]MONE(M)CAPARD'!GS238=\"\",\"\",'[1]MONE(M)CAPARD'!GS238)","v":8266.8213372876198},{"$f":"IF('[1]MONE(M)CARD'!HA238=\"\",\"\",'[1]MONE(M)CAPARD'!HA238)","v":5526.0384281898223},{"$f":"IF('[1]MONE(M)CAPARD'!HB238=\"\",\"\",'[1]MONE(M)CAPARD'!HB238)","v":2740.7829090977975},"n.d.",{"$f":"IF('[10]II.2.Balance OSD-Activos'!J96=\"\",\"\",'[10]II.2.Balance OSD-Activos'!J96)","v":417.36689440000526},{"$f":"IF('[10]II.2.Balance OSD-Activos'!N96=\"\",\"\",'[10]II.2.Balance OSD-Activos'!N96)","v":816.93188380514221},{"$f":"IF('[10]II.2.Balance OSD-Activos'!R96=\"\",\"\",'[10]II.2.Balance OSD-Activos'!R96)","v":34014.599792481509},{"$f":"IF('[10]II.2.Balance OSD-Activos'!S96=\"\",\"\",'[10]II.2.Balance OSD-Activos'!S96)","v":35889.389537256691},34431.966686881511,71138.288107943343,12.912326174434252,9.8175802648260646,-7.9797624359254637,9.7806602290200892,10.930019760876931,10.130158897095964,-1.4530489238317585,{"$f":"IF('[1]MONE(M)CAPARD'!AS238=\"\",\"\",'[1]MONE(M)CAPARD'!AS238)","v":10},{"$f":"IF('[1]MONE(M)CAPARD'!AT238=\"\",\"\",'[1]MONE(M)CAPARD'!AT238)","v":"n.a."},{"$f":"IF('[1]MONE(M)CAPARD'!AU238=\"\",\"\",'[1]MONE(M)CAPARD'!AU238)","v":7},{"$f":"IF('[1]MONE(M)CAPARD'!AV238=\"\",\"\",'[1]MONE(M)CAPARD'!AV238)","v":6.75},{"$f":"IF('[1]MONE(M)CAPARD'!AW238=\"\",\"\",'[1]MONE(M)CAPARD'!AW238)","v":"n.a."},{"$f":"IF('[1]MONE(M)CAPARD'!AX238=\"\",\"\",'[1]MONE(M)CAPARD'!AX238)","v":8.5},{"$f":"IF('[1]MONE(M)CAPARD'!AY238=\"\",\"\",'[1]MONE(M)CAPARD'!AY238)","v":"n.a."},{"$f":"IF('[1]FISCAL(M)'!$K238=\"\",\"\",'[1]FISCAL(M)'!$K238)","v":-397.86944113847125},{"$f":"IF('[1]FISCAL(M)'!$L238=\"\",\"\",'[1]FISCAL(M)'!$L238)","v":-831.43618581547116},{"$f":"IF('[1]FISCAL(M)'!$AY238=\"\",\"\",'[1]FISCAL(M)'!$AY238)","v":"n.d."},{"$f":"IF('[1]FISCAL(M)'!$BI238=\"\",\"\",'[1]FISCAL(M)'!$BI238)","v":"n.d."},{"$f":"IF('[1]FISCAL(M)'!$BS238=\"\",\"\",'[1]FISCAL(M)'!$BS238)","v":"n.d."},{"$f":"IF('[1]FISCAL(M)'!$AZ238=\"\",\"\",'[1]FISCAL(M)'!$AZ238)","v":"n.d."},{"$f":"IF('[1]FISCAL(M)'!$BJ238=\"\",\"\",'[1]FISCAL(M)'!$BJ238)","v":"n.d."},{"$f":"IF('[1]FISCAL(M)'!$BT238=\"\",\"\",'[1]FISCAL(M)'!$BT238)","v":"n.d."},{"$f":"IF('[2]MONE(M)'!$AO238=\"\",\"\",'[2]MONE(M)'!$AO238)","v":8308684.8381836731},{"$f":"IF('[3]MONE(M)'!$AO238=\"\",\"\",'[3]MONE(M)'!$AO238)","v":9142.5427774899981},{"$f":"IF('[4]MONE(M)'!$AO238=\"\",\"\",'[4]MONE(M)'!$AO238)","v":82857.80745027271},{"$f":"+'[5]MONE(M)'!$AO238","v":136476.42332866689},{"$f":"IF('[6]MONE(M)'!$AO238=\"\",\"\",'[6]MONE(M)'!$AO238)","v":45739.778355130096},{"$f":"IF('[7]MONE(M)'!$AO238=\"\",\"\",'[7]MONE(M)'!$AO238)","v":327045.16066672001},{"$f":"IF('[8]MONE(M)'!$AO238=\"\",\"\",'[8]MONE(M)'!$AO238)","v":19622.744335395997},32.017584369039788,3.2480113609204775,7.8572985171677212,9.6690389001451891,8.6436038048413053,9.5296777957637033,15.920851067399155,{"$f":"IF('[1]FISCAL(M)'!$K238=\"\",\"\",'[1]FISCAL(M)'!$K238)","v":-397.86944113847125},{"$f":"+'[1]REAL(A)'!$AO$29","v":157527.17375242617},-0.25257194150119983,{"$f":"IF('[1]FISCAL(M)'!$L238=\"\",\"\",'[1]FISCAL(M)'!$L238)","v":-831.43618581547116},{"$f":"+'[1]REAL(A)'!$AP$29","v":184643.80875242618},-0.45029193853462812,69886.701447402942,{"$f":"'[1]Gráfico REM'!BG232","v":11781.479768269393},{"$f":"'[1]Gráfico REM'!BH232","v":53251.004467643448},{"$f":"'[1]Gráfico REM'!BI232","v":4854.2172114901077},7.5209297154306798,3.4412594916527262,8.586559328536536,6.2528957734437007,103738.51857510695,{"$f":"'[1]Gráfico REM'!BK232","v":12477.656040309394},{"$f":"'[1]Gráfico REM'!BL232","v":72873.748803039445},{"$f":"'[1]Gráfico REM'!BM232","v":18387.113731758109},9.5683704547857129,4.1655448279089846,10.46857839750821,9.8871426801082407]
[2009,"febrero","2009-febrero",{"$f":"IF('[1]REAL IPC(M)'!$AL239=\"\",\"\",+'[1]REAL IPC(M)'!$AL239)","v":6.9229091061591586},{"$f":"IF('[1]REAL IPC(M)'!$BE239=\"\",\"\",+'[1]REAL IPC(M)'!$BE239)","v":6.4714178550300705},{"$f":"IF('[1]REAL IPC(M)'!$AM239=\"\",\"\",+'[1]REAL IPC(M)'!$AM239)","v":6.6589034426138172},{"$f":"IF('[1]REAL IPC(M)'!$BI239=\"\",\"\",+'[1]REAL IPC(M)'!$BI239)","v":6.3168303850127172},{"$f":"IF('[1]REAL IMAE(M)'!BJ239=\"\",\"\",'[1]REAL IMAE(M)'!BJ239)","v":-2.5976936615486057},{"$f":"IF('[1]REAL IMAE(M)'!BK239=\"\",\"\",'[1]REAL IMAE(M)'!BK239)","v":1.9453656241851025},{"$f":"IF('[1]REAL IMAE(M)'!BN239=\"\",\"\",'[1]REAL IMAE(M)'!BN239)","v":-2.768576146008106},{"$f":"IF('[1]REAL IMAE(M)'!BO239=\"\",\"\",'[1]REAL IMAE(M)'!BO239)","v":2.3583368757165601},{"$f":"IF('[1]EXT RIN(M)'!$K239=\"\",\"\",'[1]EXT RIN(M)'!$K239)","v":16735.210469273639},"",{"$f":"IF('[1]EXT RIN(M)'!$L239=\"\",\"\",'[1]EXT RIN(M)'!$L239)","v":19262.824464903399},"",{"$f":"IF('[1]MONE(M)CARD'!EG239=\"\",\"\",'[1]MONE(M)CARD'!EG239)","v":17534.199189637293},{"$f":"IF('[1]MONE(M)CARD'!EK239=\"\",\"\",'[1]MONE(M)CARD'!EK239)","v":32197.567883974159},{"$f":"IF('[1]MONE(M)CARD'!EP239=\"\",\"\",'[1]MONE(M)CARD'!EP239)","v":17530.134029242588},{"$f":"IF('[1]MONE(M)CARD'!ES239=\"\",\"\",'[1]MONE(M)CARD'!ES239)","v":-6.5205917698486378},{"$f":"IF('[1]MONE(M)CARD'!EV239=\"\",\"\",'[1]MONE(M)CARD'!EV239)","v":-1.9605184541533816},{"$f":"IF('[1]MONE(M)CARD'!EZ239=\"\",\"\",'[1]MONE(M)CARD'!EZ239)","v":1.636151040581435},{"$f":"IF('[1]MONE(M)CAPARD'!FC239=\"\",\"\",'[1]MONE(M)CAPARD'!FC239)","v":21228.498378080691},{"$f":"IF('[1]MONE(M)CAPARD'!FG239=\"\",\"\",'[1]MONE(M)CAPARD'!FG239)","v":48182.490173654165},{"$f":"IF('[1]MONE(M)CAPARD'!FL239=\"\",\"\",'[1]MONE(M)CAPARD'!FL239)","v":17530.134029242603},{"$f":"IF('[1]MONE(M)CAPARD'!FO239=\"\",\"\",'[1]MONE(M)CAPARD'!FO239)","v":-2.9587594626547475},{"$f":"IF('[1]MONE(M)CAPARD'!FR239=\"\",\"\",'[1]MONE(M)CAPARD'!FR239)","v":1.2158070468293092},{"$f":"IF('[1]MONE(M)CAPARD'!FV239=\"\",\"\",'[1]MONE(M)CAPARD'!FV239)","v":3.4643012484287805},{"$f":"IF('[1]MONE(M)CARD'!FV239=\"\",\"\",'[1]MONE(M)CARD'!FV239)","v":2196.7151807287378},{"$f":"IF('[1]MONE(M)CARD'!GD239=\"\",\"\",'[1]MONE(M)CARD'!GD239)","v":58.505219214266404},{"$f":"IF('[1]MONE(M)CARD'!GE239=\"\",\"\",'[1]MONE(M)CARD'!GE239)","v":4946.3594765217867},-1.8350015290159338,{"$f":"IF('[9]II.2.Balance OSD-Activos'!J97=\"\",\"\",'[9]II.2.Balance OSD-Activos'!J97)","v":137.72287770801961},{"$f":"IF('[9]II.2.Balance OSD-Activos'!N97=\"\",\"\",'[9]II.2.Balance OSD-Activos'!N97)","v":375.68193961140059},{"$f":"IF('[9]II.2.Balance OSD-Activos'!R97=\"\",\"\",'[9]II.2.Balance OSD-Activos'!R97)","v":23967.771470320575},{"$f":"IF('[9]II.2.Balance OSD-Activos'!S97=\"\",\"\",'[9]II.2.Balance OSD-Activos'!S97)","v":26723.310923532314},24105.494348028595,51204.487211172309,30.857359834432607,4.607186619845538,-11.38469069854855,4.4867458128412308,7.3271055434268151,5.8672142203161748,-2.4758043721534673,{"$f":"IF('[1]MONE(M)CAPARD'!GS239=\"\",\"\",'[1]MONE(M)CAPARD'!GS239)","v":8421.1238854825242},{"$f":"IF('[1]MONE(M)CARD'!HA239=\"\",\"\",'[1]MONE(M)CAPARD'!HA239)","v":5387.5192061317866},{"$f":"IF('[1]MONE(M)CAPARD'!HB239=\"\",\"\",'[1]MONE(M)CAPARD'!HB239)","v":3033.6046793507376},"n.d.",{"$f":"IF('[10]II.2.Balance OSD-Activos'!J97=\"\",\"\",'[10]II.2.Balance OSD-Activos'!J97)","v":431.0923124680196},{"$f":"IF('[10]II.2.Balance OSD-Activos'!N97=\"\",\"\",'[10]II.2.Balance OSD-Activos'!N97)","v":818.77465056140068},{"$f":"IF('[10]II.2.Balance OSD-Activos'!R97=\"\",\"\",'[10]II.2.Balance OSD-Activos'!R97)","v":34193.495446130568},{"$f":"IF('[10]II.2.Balance OSD-Activos'!S97=\"\",\"\",'[10]II.2.Balance OSD-Activos'!S97)","v":35480.850919422315},34624.587758598587,70924.213328582293,15.041018299253285,8.8630785035672677,-3.3458420854129423,8.7894231348975893,7.7843999708145484,8.1638266120875649,-1.9663322850083986,{"$f":"IF('[1]MONE(M)CAPARD'!AS239=\"\",\"\",'[1]MONE(M)CAPARD'!AS239)","v":10},{"$f":"IF('[1]MONE(M)CAPARD'!AT239=\"\",\"\",'[1]MONE(M)CAPARD'!AT239)","v":"n.a."},{"$f":"IF('[1]MONE(M)CAPARD'!AU239=\"\",\"\",'[1]MONE(M)CAPARD'!AU239)","v":6.5},{"$f":"IF('[1]MONE(M)CAPARD'!AV239=\"\",\"\",'[1]MONE(M)CAPARD'!AV239)","v":6.75},{"$f":"IF('[1]MONE(M)CAPARD'!AW239=\"\",\"\",'[1]MONE(M)CAPARD'!AW239)","v":"n.a."},{"$f":"IF('[1]MONE(M)CAPARD'!AX239=\"\",\"\",'[1]MONE(M)CAPARD'!AX239)","v":6},{"$f":"IF('[1]MONE(M)CAPARD'!AY239=\"\",\"\",'[1]MONE(M)CAPARD'!AY239)","v":"n.a."},{"$f":"IF('[1]FISCAL(M)'!$K239=\"\",\"\",'[1]FISCAL(M)'!$K239)","v":-441.13491944330036},{"$f":"IF('[1]FISCAL(M)'!$L239=\"\",\"\",'[1]FISCAL(M)'!$L239)","v":-1058.7403557103003},{"$f":"IF('[1]FISCAL(M)'!$AY239=\"\",\"\",'[1]FISCAL(M)'!$AY239)","v":"n.d."},{"$f":"IF('[1]FISCAL(M)'!$BI239=\"\",\"\",'[1]FISCAL(M)'!$BI239)","v":"n.d."},{"$f":"IF('[1]FISCAL(M)'!$BS239=\"\",\"\",'[1]FISCAL(M)'!$BS239)","v":"n.d."},{"$f":"IF('[1]FISCAL(M)'!$AZ239=\"\",\"\",'[1]FISCAL(M)'!$AZ239)","v":"n.d."},{"$f":"IF('[1]FISCAL(M)'!$BJ239=\"\",\"\",'[1]FISCAL(M)'!$BJ239)","v":"n.d."},{"$f":"IF('[1]FISCAL(M)'!$BT239=\"\",\"\",'[1]FISCAL(M)'!$BT239)","v":"n.d."},{"$f":"IF('[2]MONE(M)'!$AO239=\"\",\"\",'[2]MONE(M)'!$AO239)","v":8411247.1449179128},{"$f":"IF('[3]MONE(M)'!$AO239=\"\",\"\",'[3]MONE(M)'!$AO239)","v":9121.4497280399992},{"$f":"IF('[4]MONE(M)'!$AO239=\"\",\"\",'[4]MONE(M)'!$AO239)","v":82812.502123022598},{"$f":"+'[5]MONE(M)'!$AO239","v":136662.73180532921},{"$f":"IF('[6]MONE(M)'!$AO239=\"\",\"\",'[6]MONE(M)'!$AO239)","v":45607.668406559998},{"$f":"IF('[7]MONE(M)'!$AO239=\"\",\"\",'[7]MONE(M)'!$AO239)","v":325660.43809970003},{"$f":"IF('[8]MONE(M)'!$AO239=\"\",\"\",'[8]MONE(M)'!$AO239)","v":19671.569360759997},30.114857246898019,2.0790668190203254,7.2574770262722632,7.5942103229184488,5.7227148663661298,8.1191016349958733,14.695887194110057,{"$f":"IF('[1]FISCAL(M)'!$K239=\"\",\"\",'[1]FISCAL(M)'!$K239)","v":-441.13491944330036},{"$f":"+'[1]REAL(A)'!$AO$29","v":157527.17375242617},-0.28003734780171929,{"$f":"IF('[1]FISCAL(M)'!$L239=\"\",\"\",'[1]FISCAL(M)'!$L239)","v":-1058.7403557103003},{"$f":"+'[1]REAL(A)'!$AP$29","v":184643.80875242618},-0.57339607694611572,69759.026976546753,{"$f":"'[1]Gráfico REM'!BG233","v":11967.342891677255},{"$f":"'[1]Gráfico REM'!BH233","v":53082.526359327981},{"$f":"'[1]Gráfico REM'!BI233","v":4709.1577255415177},5.6773910985241427,3.6324814656214954,6.2842693953688133,4.1959223334351536,104737.97973575676,{"$f":"'[1]Gráfico REM'!BK233","v":12686.767874207255},{"$f":"'[1]Gráfico REM'!BL233","v":72754.095720087978},{"$f":"'[1]Gráfico REM'!BM233","v":19297.11614146152},8.7524563835544189,3.7277067804568409,8.4344782284545552,13.627488395254716]
[2009,"marzo","2009-marzo",{"$f":"IF('[1]REAL IPC(M)'!$AL240=\"\",\"\",+'[1]REAL IPC(M)'!$AL240)","v":5.7125887737533798},{"$f":"IF('[1]REAL IPC(M)'!$BE240=\"\",\"\",+'[1]REAL IPC(M)'!$BE240)","v":6.3368025370332814},{"$f":"IF('[1]REAL IPC(M)'!$AM240=\"\",\"\",+'[1]REAL IPC(M)'!$AM240)","v":5.5138505445534891},{"$f":"IF('[1]REAL IPC(M)'!$BI240=\"\",\"\",+'[1]REAL IPC(M)'!$BI240)","v":6.1810893668828637},{"$f":"IF('[1]REAL IMAE(M)'!BJ240=\"\",\"\",'[1]REAL IMAE(M)'!BJ240)","v":-2.7603436007142435},{"$f":"IF('[1]REAL IMAE(M)'!BK240=\"\",\"\",'[1]REAL IMAE(M)'!BK240)","v":1.9681861046220384},{"$f":"IF('[1]REAL IMAE(M)'!BN240=\"\",\"\",'[1]REAL IMAE(M)'!BN240)","v":-2.5105717991428134},{"$f":"IF('[1]REAL IMAE(M)'!BO240=\"\",\"\",'[1]REAL IMAE(M)'!BO240)","v":2.3668552214156646},{"$f":"IF('[1]EXT RIN(M)'!$K240=\"\",\"\",'[1]EXT RIN(M)'!$K240)","v":17340.176260494063},"",{"$f":"IF('[1]EXT RIN(M)'!$L240=\"\",\"\",'[1]EXT RIN(M)'!$L240)","v":20195.845471269182},"",{"$f":"IF('[1]MONE(M)CARD'!EG240=\"\",\"\",'[1]MONE(M)CARD'!EG240)","v":17531.779037592853},{"$f":"IF('[1]MONE(M)CARD'!EK240=\"\",\"\",'[1]MONE(M)CARD'!EK240)","v":32567.50233872731},{"$f":"IF('[1]MONE(M)CARD'!EP240=\"\",\"\",'[1]MONE(M)CARD'!EP240)","v":17713.557776414564},{"$f":"IF('[1]MONE(M)CARD'!ES240=\"\",\"\",'[1]MONE(M)CARD'!ES240)","v":-8.9926418551196434},{"$f":"IF('[1]MONE(M)CARD'!EV240=\"\",\"\",'[1]MONE(M)CARD'!EV240)","v":-2.6454095680282896},{"$f":"IF('[1]MONE(M)CARD'!EZ240=\"\",\"\",'[1]MONE(M)CARD'!EZ240)","v":0.79740271790524897},{"$f":"IF('[1]MONE(M)CAPARD'!FC240=\"\",\"\",'[1]MONE(M)CAPARD'!FC240)","v":21142.345555797248},{"$f":"IF('[1]MONE(M)CAPARD'!FG240=\"\",\"\",'[1]MONE(M)CAPARD'!FG240)","v":48677.306530027316},{"$f":"IF('[1]MONE(M)CAPARD'!FL240=\"\",\"\",'[1]MONE(M)CAPARD'!FL240)","v":17713.557776414571},{"$f":"IF('[1]MONE(M)CAPARD'!FO240=\"\",\"\",'[1]MONE(M)CAPARD'!FO240)","v":-5.615066207600405},{"$f":"IF('[1]MONE(M)CAPARD'!FR240=\"\",\"\",'[1]MONE(M)CAPARD'!FR240)","v":0.20054826558997263},{"$f":"IF('[1]MONE(M)CAPARD'!FV240=\"\",\"\",'[1]MONE(M)CAPARD'!FV240)","v":2.3832201692007837},{"$f":"IF('[1]MONE(M)CARD'!FV240=\"\",\"\",'[1]MONE(M)CARD'!FV240)","v":2173.9019894289986},{"$f":"IF('[1]MONE(M)CARD'!GD240=\"\",\"\",'[1]MONE(M)CARD'!GD240)","v":54.218438729292977},{"$f":"IF('[1]MONE(M)CARD'!GE240=\"\",\"\",'[1]MONE(M)CARD'!GE240)","v":5265.4456053760605},11.521460283619312,{"$f":"IF('[9]II.2.Balance OSD-Activos'!J98=\"\",\"\",'[9]II.2.Balance OSD-Activos'!J98)","v":122.16987119783749},{"$f":"IF('[9]II.2.Balance OSD-Activos'!N98=\"\",\"\",'[9]II.2.Balance OSD-Activos'!N98)","v":370.48774238684263},{"$f":"IF('[9]II.2.Balance OSD-Activos'!R98=\"\",\"\",'[9]II.2.Balance OSD-Activos'!R98)","v":23747.150422918508},{"$f":"IF('[9]II.2.Balance OSD-Activos'!S98=\"\",\"\",'[9]II.2.Balance OSD-Activos'!S98)","v":26795.934244389136},23869.320294116347,51035.742280892329,1.6930457984617009,2.0322678064002897,-15.630348182750742,2.0340188234338585,5.904463101316737,3.8683956392494556,-1.9988185810667192,{"$f":"IF('[1]MONE(M)CAPARD'!GS240=\"\",\"\",'[1]MONE(M)CAPARD'!GS240)","v":8624.2399144949686},{"$f":"IF('[1]MONE(M)CARD'!HA240=\"\",\"\",'[1]MONE(M)CAPARD'!HA240)","v":5725.125949276061},{"$f":"IF('[1]MONE(M)CAPARD'!HB240=\"\",\"\",'[1]MONE(M)CAPARD'!HB240)","v":2899.1139652189077},"n.d.",{"$f":"IF('[10]II.2.Balance OSD-Activos'!J98=\"\",\"\",'[10]II.2.Balance OSD-Activos'!J98)","v":425.88811915783748},{"$f":"IF('[10]II.2.Balance OSD-Activos'!N98=\"\",\"\",'[10]II.2.Balance OSD-Activos'!N98)","v":764.7070436168425},{"$f":"IF('[10]II.2.Balance OSD-Activos'!R98=\"\",\"\",'[10]II.2.Balance OSD-Activos'!R98)","v":33941.800514828508},{"$f":"IF('[10]II.2.Balance OSD-Activos'!S98=\"\",\"\",'[10]II.2.Balance OSD-Activos'!S98)","v":35609.810057719136},34367.688633986349,70742.205735322321,14.355484770319515,6.5586096021744034,-11.801696402002992,6.4675257496683125,6.7510908933375191,6.4157303818117573,-1.7480962302758076,{"$f":"IF('[1]MONE(M)CAPARD'!AS240=\"\",\"\",'[1]MONE(M)CAPARD'!AS240)","v":10},{"$f":"IF('[1]MONE(M)CAPARD'!AT240=\"\",\"\",'[1]MONE(M)CAPARD'!AT240)","v":"n.a."},{"$f":"IF('[1]MONE(M)CAPARD'!AU240=\"\",\"\",'[1]MONE(M)CAPARD'!AU240)","v":6.25},{"$f":"IF('[1]MONE(M)CAPARD'!AV240=\"\",\"\",'[1]MONE(M)CAPARD'!AV240)","v":5.75},{"$f":"IF('[1]MONE(M)CAPARD'!AW240=\"\",\"\",'[1]MONE(M)CAPARD'!AW240)","v":"n.a."},{"$f":"IF('[1]MONE(M)CAPARD'!AX240=\"\",\"\",'[1]MONE(M)CAPARD'!AX240)","v":6},{"$f":"IF('[1]MONE(M)CAPARD'!AY240=\"\",\"\",'[1]MONE(M)CAPARD'!AY240)","v":"n.a."},{"$f":"IF('[1]FISCAL(M)'!$K240=\"\",\"\",'[1]FISCAL(M)'!$K240)","v":-781.64195746402356},{"$f":"IF('[1]FISCAL(M)'!$L240=\"\",\"\",'[1]FISCAL(M)'!$L240)","v":-1126.0071313280237},{"$f":"IF('[1]FISCAL(M)'!$AY240=\"\",\"\",'[1]FISCAL(M)'!$AY240)","v":53202.2635369368},{"$f":"IF('[1]FISCAL(M)'!$BI240=\"\",\"\",'[1]FISCAL(M)'!$BI240)","v":24962.648317326802},{"$f":"IF('[1]FISCAL(M)'!$BS240=\"\",\"\",'[1]FISCAL(M)'!$BS240)","v":28239.615219610001},{"$f":"IF('[1]FISCAL(M)'!$AZ240=\"\",\"\",'[1]FISCAL(M)'!$AZ240)","v":63897.355909876802},{"$f":"IF('[1]FISCAL(M)'!$BJ240=\"\",\"\",'[1]FISCAL(M)'!$BJ240)","v":26879.088561646804},{"$f":"IF('[1]FISCAL(M)'!$BT240=\"\",\"\",'[1]FISCAL(M)'!$BT240)","v":37008.537257579999},{"$f":"IF('[2]MONE(M)'!$AO240=\"\",\"\",'[2]MONE(M)'!$AO240)","v":8445007.9262335859},{"$f":"IF('[3]MONE(M)'!$AO240=\"\",\"\",'[3]MONE(M)'!$AO240)","v":9085.1722397599988},{"$f":"IF('[4]MONE(M)'!$AO240=\"\",\"\",'[4]MONE(M)'!$AO240)","v":83286.580308746255},{"$f":"+'[5]MONE(M)'!$AO240","v":136653.40828933526},{"$f":"IF('[6]MONE(M)'!$AO240=\"\",\"\",'[6]MONE(M)'!$AO240)","v":45427.109112531027},{"$f":"IF('[7]MONE(M)'!$AO240=\"\",\"\",'[7]MONE(M)'!$AO240)","v":323276.96297784004},{"$f":"IF('[8]MONE(M)'!$AO240=\"\",\"\",'[8]MONE(M)'!$AO240)","v":19698.843702170001},27.25950451576702,0.74743671383639132,7.5502774910768844,6.3568584289452001,4.3063380781609206,5.6221184625666165,13.850052149296799,{"$f":"IF('[1]FISCAL(M)'!$K240=\"\",\"\",'[1]FISCAL(M)'!$K240)","v":-781.64195746402356},{"$f":"+'[1]REAL(A)'!$AO$29","v":157527.17375242617},-0.49619499851655596,{"$f":"IF('[1]FISCAL(M)'!$L240=\"\",\"\",'[1]FISCAL(M)'!$L240)","v":-1126.0071313280237},{"$f":"+'[1]REAL(A)'!$AP$29","v":184643.80875242618},-0.60982663807471327,69976.624392556274,{"$f":"'[1]Gráfico REM'!BG234","v":12299.3956619813},{"$f":"'[1]Gráfico REM'!BH234","v":53007.166446939067},{"$f":"'[1]Gráfico REM'!BI234","v":4670.0622836359116},4.3891685497529753,5.809822305526513,4.3790349516643623,0.93136564979601211,105125.98571840627,{"$f":"'[1]Gráfico REM'!BK234","v":12980.172678181299},{"$f":"'[1]Gráfico REM'!BL234","v":72706.010149109061},{"$f":"'[1]Gráfico REM'!BM234","v":19439.802891115913},7.6002689246129629,5.1742562933451586,6.7858772354711494,12.543754232224579]
[2009,"abril","2009-abril",{"$f":"IF('[1]REAL IPC(M)'!$AL241=\"\",\"\",+'[1]REAL IPC(M)'!$AL241)","v":4.4912436732887473},{"$f":"IF('[1]REAL IPC(M)'!$BE241=\"\",\"\",+'[1]REAL IPC(M)'!$BE241)","v":6.2048720694532156},{"$f":"IF('[1]REAL IPC(M)'!$AM241=\"\",\"\",+'[1]REAL IPC(M)'!$AM241)","v":4.4134760217995783},{"$f":"IF('[1]REAL IPC(M)'!$BI241=\"\",\"\",+'[1]REAL IPC(M)'!$BI241)","v":6.0479898001885912},{"$f":"IF('[1]REAL IMAE(M)'!BJ241=\"\",\"\",'[1]REAL IMAE(M)'!BJ241)","v":-2.4829660667071707},{"$f":"IF('[1]REAL IMAE(M)'!BK241=\"\",\"\",'[1]REAL IMAE(M)'!BK241)","v":2.0009062992536686},{"$f":"IF('[1]REAL IMAE(M)'!BN241=\"\",\"\",'[1]REAL IMAE(M)'!BN241)","v":-1.9216708937620064},{"$f":"IF('[1]REAL IMAE(M)'!BO241=\"\",\"\",'[1]REAL IMAE(M)'!BO241)","v":2.3870328648685879},{"$f":"IF('[1]EXT RIN(M)'!$K241=\"\",\"\",'[1]EXT RIN(M)'!$K241)","v":17586.253981363716},"",{"$f":"IF('[1]EXT RIN(M)'!$L241=\"\",\"\",'[1]EXT RIN(M)'!$L241)","v":20429.986758571216},"",{"$f":"IF('[1]MONE(M)CARD'!EG241=\"\",\"\",'[1]MONE(M)CARD'!EG241)","v":17173.715140341912},{"$f":"IF('[1]MONE(M)CARD'!EK241=\"\",\"\",'[1]MONE(M)CARD'!EK241)","v":32511.466574468519},{"$f":"IF('[1]MONE(M)CARD'!EP241=\"\",\"\",'[1]MONE(M)CARD'!EP241)","v":17973.081715195338},{"$f":"IF('[1]MONE(M)CARD'!ES241=\"\",\"\",'[1]MONE(M)CARD'!ES241)","v":-9.9159582138474427},{"$f":"IF('[1]MONE(M)CARD'!EV241=\"\",\"\",'[1]MONE(M)CARD'!EV241)","v":-3.3152305556830242},{"$f":"IF('[1]MONE(M)CARD'!EZ241=\"\",\"\",'[1]MONE(M)CARD'!EZ241)","v":0.13024315323499902},{"$f":"IF('[1]MONE(M)CAPARD'!FC241=\"\",\"\",'[1]MONE(M)CAPARD'!FC241)","v":20805.625658065313},{"$f":"IF('[1]MONE(M)CAPARD'!FG241=\"\",\"\",'[1]MONE(M)CAPARD'!FG241)","v":48782.71752364852},{"$f":"IF('[1]MONE(M)CAPARD'!FL241=\"\",\"\",'[1]MONE(M)CAPARD'!FL241)","v":17973.081715195323},{"$f":"IF('[1]MONE(M)CAPARD'!FO241=\"\",\"\",'[1]MONE(M)CAPARD'!FO241)","v":-6.4750283876099051},{"$f":"IF('[1]MONE(M)CAPARD'!FR241=\"\",\"\",'[1]MONE(M)CAPARD'!FR241)","v":-0.26997791342842081},{"$f":"IF('[1]MONE(M)CAPARD'!FV241=\"\",\"\",'[1]MONE(M)CAPARD'!FV241)","v":1.8651897032392784},{"$f":"IF('[1]MONE(M)CARD'!FV241=\"\",\"\",'[1]MONE(M)CARD'!FV241)","v":2070.2381033275965},{"$f":"IF('[1]MONE(M)CARD'!GD241=\"\",\"\",'[1]MONE(M)CARD'!GD241)","v":194.96044366264204},{"$f":"IF('[1]MONE(M)CARD'!GE241=\"\",\"\",'[1]MONE(M)CARD'!GE241)","v":5539.2023239474593},6.1845473525024897,{"$f":"IF('[9]II.2.Balance OSD-Activos'!J99=\"\",\"\",'[9]II.2.Balance OSD-Activos'!J99)","v":114.31017499735128},{"$f":"IF('[9]II.2.Balance OSD-Activos'!N99=\"\",\"\",'[9]II.2.Balance OSD-Activos'!N99)","v":360.61687725982267},{"$f":"IF('[9]II.2.Balance OSD-Activos'!R99=\"\",\"\",'[9]II.2.Balance OSD-Activos'!R99)","v":23554.894994065129},{"$f":"IF('[9]II.2.Balance OSD-Activos'!S99=\"\",\"\",'[9]II.2.Balance OSD-Activos'!S99)","v":26739.253710217752},23669.205169062479,50769.075756540056,23.641063314690602,-1.2243348524754172E-2,-16.822844156697382,-0.10498539242518312,3.7102393824154589,1.7654717900765782,-2.1029238491728774,{"$f":"IF('[1]MONE(M)CAPARD'!GS241=\"\",\"\",'[1]MONE(M)CAPARD'!GS241)","v":8818.7779799699074},{"$f":"IF('[1]MONE(M)CARD'!HA241=\"\",\"\",'[1]MONE(M)CAPARD'!HA241)","v":5997.67082481746},{"$f":"IF('[1]MONE(M)CAPARD'!HB241=\"\",\"\",'[1]MONE(M)CAPARD'!HB241)","v":2821.1071551524474},"n.d.",{"$f":"IF('[10]II.2.Balance OSD-Activos'!J99=\"\",\"\",'[10]II.2.Balance OSD-Activos'!J99)","v":414.58178434935127},{"$f":"IF('[10]II.2.Balance OSD-Activos'!N99=\"\",\"\",'[10]II.2.Balance OSD-Activos'!N99)","v":774.43855761982263},{"$f":"IF('[10]II.2.Balance OSD-Activos'!R99=\"\",\"\",'[10]II.2.Balance OSD-Activos'!R99)","v":33735.228050555132},{"$f":"IF('[10]II.2.Balance OSD-Activos'!S99=\"\",\"\",'[10]II.2.Balance OSD-Activos'!S99)","v":35590.670616977754},34149.809834904481,70514.91900950206,20.807288127935173,4.6253571384311298,-14.511907742965679,4.453413381397775,4.9146462079692865,4.5138576678009246,-1.9018727140108327,{"$f":"IF('[1]MONE(M)CAPARD'!AS241=\"\",\"\",'[1]MONE(M)CAPARD'!AS241)","v":10},{"$f":"IF('[1]MONE(M)CAPARD'!AT241=\"\",\"\",'[1]MONE(M)CAPARD'!AT241)","v":"n.a."},{"$f":"IF('[1]MONE(M)CAPARD'!AU241=\"\",\"\",'[1]MONE(M)CAPARD'!AU241)","v":5.75},{"$f":"IF('[1]MONE(M)CAPARD'!AV241=\"\",\"\",'[1]MONE(M)CAPARD'!AV241)","v":4.5},{"$f":"IF('[1]MONE(M)CAPARD'!AW241=\"\",\"\",'[1]MONE(M)CAPARD'!AW241)","v":"n.a."},{"$f":"IF('[1]MONE(M)CAPARD'!AX241=\"\",\"\",'[1]MONE(M)CAPARD'!AX241)","v":5},{"$f":"IF('[1]MONE(M)CAPARD'!AY241=\"\",\"\",'[1]MONE(M)CAPARD'!AY241)","v":"n.a."},{"$f":"IF('[1]FISCAL(M)'!$K241=\"\",\"\",'[1]FISCAL(M)'!$K241)","v":-670.22821818179182},{"$f":"IF('[1]FISCAL(M)'!$L241=\"\",\"\",'[1]FISCAL(M)'!$L241)","v":-1030.077473942792},{"$f":"IF('[1]FISCAL(M)'!$AY241=\"\",\"\",'[1]FISCAL(M)'!$AY241)","v":"n.d."},{"$f":"IF('[1]FISCAL(M)'!$BI241=\"\",\"\",'[1]FISCAL(M)'!$BI241)","v":"n.d."},{"$f":"IF('[1]FISCAL(M)'!$BS241=\"\",\"\",'[1]FISCAL(M)'!$BS241)","v":"n.d."},{"$f":"IF('[1]FISCAL(M)'!$AZ241=\"\",\"\",'[1]FISCAL(M)'!$AZ241)","v":"n.d."},{"$f":"IF('[1]FISCAL(M)'!$BJ241=\"\",\"\",'[1]FISCAL(M)'!$BJ241)","v":"n.d."},{"$f":"IF('[1]FISCAL(M)'!$BT241=\"\",\"\",'[1]FISCAL(M)'!$BT241)","v":"n.d."},{"$f":"IF('[2]MONE(M)'!$AO241=\"\",\"\",'[2]MONE(M)'!$AO241)","v":8565013.4202512465},{"$f":"IF('[3]MONE(M)'!$AO241=\"\",\"\",'[3]MONE(M)'!$AO241)","v":9019.2485439299999},{"$f":"IF('[4]MONE(M)'!$AO241=\"\",\"\",'[4]MONE(M)'!$AO241)","v":82764.904261340824},{"$f":"+'[5]MONE(M)'!$AO241","v":136348.87209543635},{"$f":"IF('[6]MONE(M)'!$AO241=\"\",\"\",'[6]MONE(M)'!$AO241)","v":44454.289407475713},{"$f":"IF('[7]MONE(M)'!$AO241=\"\",\"\",'[7]MONE(M)'!$AO241)","v":324705.74239627999},{"$f":"IF('[8]MONE(M)'!$AO241=\"\",\"\",'[8]MONE(M)'!$AO241)","v":19724.875813922001},26.034349863958163,-0.52989003840799853,7.2769292530270757,4.9064276594758205,1.2811321421830835,4.0878600728111669,12.753610935807981,{"$f":"IF('[1]FISCAL(M)'!$K241=\"\",\"\",'[1]FISCAL(M)'!$K241)","v":-670.22821818179182},{"$f":"+'[1]REAL(A)'!$AO$29","v":157527.17375242617},-0.42546831903119142,{"$f":"IF('[1]FISCAL(M)'!$L241=\"\",\"\",'[1]FISCAL(M)'!$L241)","v":-1030.077473942792},{"$f":"+'[1]REAL(A)'!$AP$29","v":184643.80875242618},-0.55787273935837134,69902.621008163915,{"$f":"'[1]Gráfico REM'!BG235","v":12541.987037250423},{"$f":"'[1]Gráfico REM'!BH235","v":52762.569841963021},{"$f":"'[1]Gráfico REM'!BI235","v":4598.0641289504665},2.9095939066136944,6.6293674044985984,2.4586562289712122,-1.4890835919427303,105062.51044095893,{"$f":"'[1]Gráfico REM'!BK235","v":13275.968819240423},{"$f":"'[1]Gráfico REM'!BL235","v":72487.445655885022},{"$f":"'[1]Gráfico REM'!BM235","v":19299.095965833469},5.6939042099184434,6.310730080969984,5.0691377967723827,7.6688513903165667]
[2009,"mayo ","2009-mayo ",{"$f":"IF('[1]REAL IPC(M)'!$AL242=\"\",\"\",+'[1]REAL IPC(M)'!$AL242)","v":3.2300528727720712},{"$f":"IF('[1]REAL IPC(M)'!$BE242=\"\",\"\",+'[1]REAL IPC(M)'!$BE242)","v":6.0773913628245024},{"$f":"IF('[1]REAL IPC(M)'!$AM242=\"\",\"\",+'[1]REAL IPC(M)'!$AM242)","v":3.1580586275064659},{"$f":"IF('[1]REAL IPC(M)'!$BI242=\"\",\"\",+'[1]REAL IPC(M)'!$BI242)","v":5.9195014561236325},{"$f":"IF('[1]REAL IMAE(M)'!BJ242=\"\",\"\",'[1]REAL IMAE(M)'!BJ242)","v":-2.2774936992369654},{"$f":"IF('[1]REAL IMAE(M)'!BK242=\"\",\"\",'[1]REAL IMAE(M)'!BK242)","v":2.0435042294291605},{"$f":"IF('[1]REAL IMAE(M)'!BN242=\"\",\"\",'[1]REAL IMAE(M)'!BN242)","v":-1.8095309098494328},{"$f":"IF('[1]REAL IMAE(M)'!BO242=\"\",\"\",'[1]REAL IMAE(M)'!BO242)","v":2.4190040431212978},{"$f":"IF('[1]EXT RIN(M)'!$K242=\"\",\"\",'[1]EXT RIN(M)'!$K242)","v":17464.557393108022},"",{"$f":"IF('[1]EXT RIN(M)'!$L242=\"\",\"\",'[1]EXT RIN(M)'!$L242)","v":20215.518321091073},"",{"$f":"IF('[1]MONE(M)CARD'!EG242=\"\",\"\",'[1]MONE(M)CARD'!EG242)","v":17293.191847379232},{"$f":"IF('[1]MONE(M)CARD'!EK242=\"\",\"\",'[1]MONE(M)CARD'!EK242)","v":32686.921880053611},{"$f":"IF('[1]MONE(M)CARD'!EP242=\"\",\"\",'[1]MONE(M)CARD'!EP242)","v":18387.572642984429},{"$f":"IF('[1]MONE(M)CARD'!ES242=\"\",\"\",'[1]MONE(M)CARD'!ES242)","v":-7.0848700796367847},{"$f":"IF('[1]MONE(M)CARD'!EV242=\"\",\"\",'[1]MONE(M)CARD'!EV242)","v":-1.7557301224704003},{"$f":"IF('[1]MONE(M)CARD'!EZ242=\"\",\"\",'[1]MONE(M)CARD'!EZ242)","v":1.2445249519986046},{"$f":"IF('[1]MONE(M)CAPARD'!FC242=\"\",\"\",'[1]MONE(M)CAPARD'!FC242)","v":21119.562298267629},{"$f":"IF('[1]MONE(M)CAPARD'!FG242=\"\",\"\",'[1]MONE(M)CAPARD'!FG242)","v":49090.6019171636},{"$f":"IF('[1]MONE(M)CAPARD'!FL242=\"\",\"\",'[1]MONE(M)CAPARD'!FL242)","v":18387.572642984436},{"$f":"IF('[1]MONE(M)CAPARD'!FO242=\"\",\"\",'[1]MONE(M)CAPARD'!FO242)","v":-3.2053650885080831},{"$f":"IF('[1]MONE(M)CAPARD'!FR242=\"\",\"\",'[1]MONE(M)CAPARD'!FR242)","v":0.77325943575474732},{"$f":"IF('[1]MONE(M)CAPARD'!FV242=\"\",\"\",'[1]MONE(M)CAPARD'!FV242)","v":2.6322876160211894},{"$f":"IF('[1]MONE(M)CARD'!FV242=\"\",\"\",'[1]MONE(M)CARD'!FV242)","v":2099.4019442455224},{"$f":"IF('[1]MONE(M)CARD'!GD242=\"\",\"\",'[1]MONE(M)CARD'!GD242)","v":46.343809704808606},{"$f":"IF('[1]MONE(M)CARD'!GE242=\"\",\"\",'[1]MONE(M)CARD'!GE242)","v":5274.7715909473645},-4.1402653993425131,{"$f":"IF('[9]II.2.Balance OSD-Activos'!J100=\"\",\"\",'[9]II.2.Balance OSD-Activos'!J100)","v":118.78371987255153},{"$f":"IF('[9]II.2.Balance OSD-Activos'!N100=\"\",\"\",'[9]II.2.Balance OSD-Activos'!N100)","v":357.75285229958121},{"$f":"IF('[9]II.2.Balance OSD-Activos'!R100=\"\",\"\",'[9]II.2.Balance OSD-Activos'!R100)","v":23474.831887075467},{"$f":"IF('[9]II.2.Balance OSD-Activos'!S100=\"\",\"\",'[9]II.2.Balance OSD-Activos'!S100)","v":26657.83539151118},23593.615606948017,50609.203850758779,6.7086090240648932,-1.0105382043574584,-17.423720357668071,-1.0467586943317952,2.7404407927667851,0.78605453961557714,-0.97941725046100103,{"$f":"IF('[1]MONE(M)CAPARD'!GS242=\"\",\"\",'[1]MONE(M)CAPARD'!GS242)","v":9146.0330732415896},{"$f":"IF('[1]MONE(M)CARD'!HA242=\"\",\"\",'[1]MONE(M)CAPARD'!HA242)","v":5693.4035861773646},{"$f":"IF('[1]MONE(M)CAPARD'!HB242=\"\",\"\",'[1]MONE(M)CAPARD'!HB242)","v":3452.629487064225},"n.d.",{"$f":"IF('[10]II.2.Balance OSD-Activos'!J100=\"\",\"\",'[10]II.2.Balance OSD-Activos'!J100)","v":435.02105184755158},{"$f":"IF('[10]II.2.Balance OSD-Activos'!N100=\"\",\"\",'[10]II.2.Balance OSD-Activos'!N100)","v":793.84324654958129},{"$f":"IF('[10]II.2.Balance OSD-Activos'!R100=\"\",\"\",'[10]II.2.Balance OSD-Activos'!R100)","v":33644.651233485463},{"$f":"IF('[10]II.2.Balance OSD-Activos'!S100=\"\",\"\",'[10]II.2.Balance OSD-Activos'!S100)","v":35578.444201431179},34079.672285333014,70451.959733313764,18.816577638481412,3.1408287198343654,-6.715973150890342,2.9651836752133232,4.1731863864984398,3.535711132983721,-0.97814653481720359,{"$f":"IF('[1]MONE(M)CAPARD'!AS242=\"\",\"\",'[1]MONE(M)CAPARD'!AS242)","v":10},{"$f":"IF('[1]MONE(M)CAPARD'!AT242=\"\",\"\",'[1]MONE(M)CAPARD'!AT242)","v":"n.a."},{"$f":"IF('[1]MONE(M)CAPARD'!AU242=\"\",\"\",'[1]MONE(M)CAPARD'!AU242)","v":5.75},{"$f":"IF('[1]MONE(M)CAPARD'!AV242=\"\",\"\",'[1]MONE(M)CAPARD'!AV242)","v":4.5},{"$f":"IF('[1]MONE(M)CAPARD'!AW242=\"\",\"\",'[1]MONE(M)CAPARD'!AW242)","v":"n.a."},{"$f":"IF('[1]MONE(M)CAPARD'!AX242=\"\",\"\",'[1]MONE(M)CAPARD'!AX242)","v":5},{"$f":"IF('[1]MONE(M)CAPARD'!AY242=\"\",\"\",'[1]MONE(M)CAPARD'!AY242)","v":"n.a."},{"$f":"IF('[1]FISCAL(M)'!$K242=\"\",\"\",'[1]FISCAL(M)'!$K242)","v":-667.91062488113732},{"$f":"IF('[1]FISCAL(M)'!$L242=\"\",\"\",'[1]FISCAL(M)'!$L242)","v":-1106.5350506221373},{"$f":"IF('[1]FISCAL(M)'!$AY242=\"\",\"\",'[1]FISCAL(M)'!$AY242)","v":"n.d."},{"$f":"IF('[1]FISCAL(M)'!$BI242=\"\",\"\",'[1]FISCAL(M)'!$BI242)","v":"n.d."},{"$f":"IF('[1]FISCAL(M)'!$BS242=\"\",\"\",'[1]FISCAL(M)'!$BS242)","v":"n.d."},{"$f":"IF('[1]FISCAL(M)'!$AZ242=\"\",\"\",'[1]FISCAL(M)'!$AZ242)","v":"n.d."},{"$f":"IF('[1]FISCAL(M)'!$BJ242=\"\",\"\",'[1]FISCAL(M)'!$BJ242)","v":"n.d."},{"$f":"IF('[1]FISCAL(M)'!$BT242=\"\",\"\",'[1]FISCAL(M)'!$BT242)","v":"n.d."},{"$f":"IF('[2]MONE(M)'!$AO242=\"\",\"\",'[2]MONE(M)'!$AO242)","v":8634753.5660453867},{"$f":"IF('[3]MONE(M)'!$AO242=\"\",\"\",'[3]MONE(M)'!$AO242)","v":8905.7185746699997},{"$f":"IF('[4]MONE(M)'!$AO242=\"\",\"\",'[4]MONE(M)'!$AO242)","v":82843.392487304023},{"$f":"+'[5]MONE(M)'!$AO242","v":136153.74294942443},{"$f":"IF('[6]MONE(M)'!$AO242=\"\",\"\",'[6]MONE(M)'!$AO242)","v":44136.554050752107},{"$f":"IF('[7]MONE(M)'!$AO242=\"\",\"\",'[7]MONE(M)'!$AO242)","v":330078.11533514003},{"$f":"IF('[8]MONE(M)'!$AO242=\"\",\"\",'[8]MONE(M)'!$AO242)","v":19797.154338984998},21.553702912780825,-1.7276770595137658,6.6666450993285276,4.2958599916558038,-0.22263314117164645,3.4379300023831494,11.16420211061644,{"$f":"IF('[1]FISCAL(M)'!$K242=\"\",\"\",'[1]FISCAL(M)'!$K242)","v":-667.91062488113732},{"$f":"+'[1]REAL(A)'!$AO$29","v":157527.17375242617},-0.42399708505584127,{"$f":"IF('[1]FISCAL(M)'!$L242=\"\",\"\",'[1]FISCAL(M)'!$L242)","v":-1106.5350506221373},{"$f":"+'[1]REAL(A)'!$AP$29","v":184643.80875242618},-0.59928088469286289,70265.321354952277,{"$f":"'[1]Gráfico REM'!BG236","v":12953.779690207348},{"$f":"'[1]Gráfico REM'!BH236","v":52772.057385542066},{"$f":"'[1]Gráfico REM'!BI236","v":4539.4842792028612},2.9180325299775767,10.439488664581997,1.8059452768212303,-3.5764977786783891,105458.75062594729,{"$f":"'[1]Gráfico REM'!BK236","v":13735.440987067348},{"$f":"'[1]Gráfico REM'!BL236","v":72569.211724527064},{"$f":"'[1]Gráfico REM'!BM236","v":19154.09791435286},5.1171782557775991,10.345049840593369,4.1989508741466341,5.055460709447579]
[2009,"junio ","2009-junio ",{"$f":"IF('[1]REAL IPC(M)'!$AL243=\"\",\"\",+'[1]REAL IPC(M)'!$AL243)","v":2.1084066867609552},{"$f":"IF('[1]REAL IPC(M)'!$BE243=\"\",\"\",+'[1]REAL IPC(M)'!$BE243)","v":5.9559778495715365},{"$f":"IF('[1]REAL IPC(M)'!$AM243=\"\",\"\",+'[1]REAL IPC(M)'!$AM243)","v":2.0795870529032978},{"$f":"IF('[1]REAL IPC(M)'!$BI243=\"\",\"\",+'[1]REAL IPC(M)'!$BI243)","v":5.7974305223193801},{"$f":"IF('[1]REAL IMAE(M)'!BJ243=\"\",\"\",'[1]REAL IMAE(M)'!BJ243)","v":-1.7809802569473843},{"$f":"IF('[1]REAL IMAE(M)'!BK243=\"\",\"\",'[1]REAL IMAE(M)'!BK243)","v":2.095679678455209},{"$f":"IF('[1]REAL IMAE(M)'!BN243=\"\",\"\",'[1]REAL IMAE(M)'!BN243)","v":-1.317983504697362},{"$f":"IF('[1]REAL IMAE(M)'!BO243=\"\",\"\",'[1]REAL IMAE(M)'!BO243)","v":2.4625980184652008},{"$f":"IF('[1]EXT RIN(M)'!$K243=\"\",\"\",'[1]EXT RIN(M)'!$K243)","v":17376.818072119077},"",{"$f":"IF('[1]EXT RIN(M)'!$L243=\"\",\"\",'[1]EXT RIN(M)'!$L243)","v":20082.243497732306},"",{"$f":"IF('[1]MONE(M)CARD'!EG243=\"\",\"\",'[1]MONE(M)CARD'!EG243)","v":17204.860833498249},{"$f":"IF('[1]MONE(M)CARD'!EK243=\"\",\"\",'[1]MONE(M)CARD'!EK243)","v":32851.045400320603},{"$f":"IF('[1]MONE(M)CARD'!EP243=\"\",\"\",'[1]MONE(M)CARD'!EP243)","v":18443.37363671232},{"$f":"IF('[1]MONE(M)CARD'!ES243=\"\",\"\",'[1]MONE(M)CARD'!ES243)","v":-5.0291343555149197},{"$f":"IF('[1]MONE(M)CARD'!EV243=\"\",\"\",'[1]MONE(M)CARD'!EV243)","v":-0.75286394086236941},{"$f":"IF('[1]MONE(M)CARD'!EZ243=\"\",\"\",'[1]MONE(M)CARD'!EZ243)","v":1.9413776963241647},{"$f":"IF('[1]MONE(M)CAPARD'!FC243=\"\",\"\",'[1]MONE(M)CAPARD'!FC243)","v":21140.419370766649},{"$f":"IF('[1]MONE(M)CAPARD'!FG243=\"\",\"\",'[1]MONE(M)CAPARD'!FG243)","v":49409.021620430613},{"$f":"IF('[1]MONE(M)CAPARD'!FL243=\"\",\"\",'[1]MONE(M)CAPARD'!FL243)","v":18443.37363671232},{"$f":"IF('[1]MONE(M)CAPARD'!FO243=\"\",\"\",'[1]MONE(M)CAPARD'!FO243)","v":-1.1062950634844859},{"$f":"IF('[1]MONE(M)CAPARD'!FR243=\"\",\"\",'[1]MONE(M)CAPARD'!FR243)","v":1.5012869043440569},{"$f":"IF('[1]MONE(M)CAPARD'!FV243=\"\",\"\",'[1]MONE(M)CAPARD'!FV243)","v":3.1619963668465312},{"$f":"IF('[1]MONE(M)CARD'!FV243=\"\",\"\",'[1]MONE(M)CARD'!FV243)","v":2093.5289603966016},{"$f":"IF('[1]MONE(M)CARD'!GD243=\"\",\"\",'[1]MONE(M)CARD'!GD243)","v":127.96562438592161},{"$f":"IF('[1]MONE(M)CARD'!GE243=\"\",\"\",'[1]MONE(M)CARD'!GE243)","v":5326.1301704269263},4.4620842258207727,{"$f":"IF('[9]II.2.Balance OSD-Activos'!J101=\"\",\"\",'[9]II.2.Balance OSD-Activos'!J101)","v":160.78504364511141},{"$f":"IF('[9]II.2.Balance OSD-Activos'!N101=\"\",\"\",'[9]II.2.Balance OSD-Activos'!N101)","v":360.27529417932362},{"$f":"IF('[9]II.2.Balance OSD-Activos'!R101=\"\",\"\",'[9]II.2.Balance OSD-Activos'!R101)","v":23385.680553571918},{"$f":"IF('[9]II.2.Balance OSD-Activos'!S101=\"\",\"\",'[9]II.2.Balance OSD-Activos'!S101)","v":26703.787943305957},23546.465597217029,50610.528834702309,51.184367049721068,-1.3379433419384967,-15.876915842723671,-1.5730401009575457,1.4371943665030917,-1.7699001827153893E-2,-0.80375354144273103,{"$f":"IF('[1]MONE(M)CAPARD'!GS243=\"\",\"\",'[1]MONE(M)CAPARD'!GS243)","v":9468.2253817934452},{"$f":"IF('[1]MONE(M)CARD'!HA243=\"\",\"\",'[1]MONE(M)CAPARD'!HA243)","v":5798.6540338369268},{"$f":"IF('[1]MONE(M)CAPARD'!HB243=\"\",\"\",'[1]MONE(M)CAPARD'!HB243)","v":3669.5713479565184},"n.d.",{"$f":"IF('[10]II.2.Balance OSD-Activos'!J101=\"\",\"\",'[10]II.2.Balance OSD-Activos'!J101)","v":469.87774444811134},{"$f":"IF('[10]II.2.Balance OSD-Activos'!N101=\"\",\"\",'[10]II.2.Balance OSD-Activos'!N101)","v":757.98303046932358},{"$f":"IF('[10]II.2.Balance OSD-Activos'!R101=\"\",\"\",'[10]II.2.Balance OSD-Activos'!R101)","v":33531.809786841921},{"$f":"IF('[10]II.2.Balance OSD-Activos'!S101=\"\",\"\",'[10]II.2.Balance OSD-Activos'!S101)","v":35658.618261515963},34001.68753129003,70418.288823275318,35.808221498349482,1.7600840554922392,-11.848593121308715,1.4038384026568984,3.1074936879167625,2.2668865845859587,-1.2688245483977623,{"$f":"IF('[1]MONE(M)CAPARD'!AS243=\"\",\"\",'[1]MONE(M)CAPARD'!AS243)","v":10},{"$f":"IF('[1]MONE(M)CAPARD'!AT243=\"\",\"\",'[1]MONE(M)CAPARD'!AT243)","v":"n.a."},{"$f":"IF('[1]MONE(M)CAPARD'!AU243=\"\",\"\",'[1]MONE(M)CAPARD'!AU243)","v":5.25},{"$f":"IF('[1]MONE(M)CAPARD'!AV243=\"\",\"\",'[1]MONE(M)CAPARD'!AV243)","v":3.5},{"$f":"IF('[1]MONE(M)CAPARD'!AW243=\"\",\"\",'[1]MONE(M)CAPARD'!AW243)","v":"n.a."},{"$f":"IF('[1]MONE(M)CAPARD'!AX243=\"\",\"\",'[1]MONE(M)CAPARD'!AX243)","v":5},{"$f":"IF('[1]MONE(M)CAPARD'!AY243=\"\",\"\",'[1]MONE(M)CAPARD'!AY243)","v":"n.a."},{"$f":"IF('[1]FISCAL(M)'!$K243=\"\",\"\",'[1]FISCAL(M)'!$K243)","v":-1669.8964265816762},{"$f":"IF('[1]FISCAL(M)'!$L243=\"\",\"\",'[1]FISCAL(M)'!$L243)","v":-1949.0873668326763},{"$f":"IF('[1]FISCAL(M)'!$AY243=\"\",\"\",'[1]FISCAL(M)'!$AY243)","v":54366.624062234026},{"$f":"IF('[1]FISCAL(M)'!$BI243=\"\",\"\",'[1]FISCAL(M)'!$BI243)","v":26099.704062234021},{"$f":"IF('[1]FISCAL(M)'!$BS243=\"\",\"\",'[1]FISCAL(M)'!$BS243)","v":28266.920000000002},{"$f":"IF('[1]FISCAL(M)'!$AZ243=\"\",\"\",'[1]FISCAL(M)'!$AZ243)","v":65283.405232104014},{"$f":"IF('[1]FISCAL(M)'!$BJ243=\"\",\"\",'[1]FISCAL(M)'!$BJ243)","v":28109.192074724022},{"$f":"IF('[1]FISCAL(M)'!$BT243=\"\",\"\",'[1]FISCAL(M)'!$BT243)","v":37165.418640769996},{"$f":"IF('[2]MONE(M)'!$AO243=\"\",\"\",'[2]MONE(M)'!$AO243)","v":8645092.2403994203},{"$f":"IF('[3]MONE(M)'!$AO243=\"\",\"\",'[3]MONE(M)'!$AO243)","v":8783.3579088900005},{"$f":"IF('[4]MONE(M)'!$AO243=\"\",\"\",'[4]MONE(M)'!$AO243)","v":81743.382381133488},{"$f":"+'[5]MONE(M)'!$AO243","v":135978.00811218494},{"$f":"IF('[6]MONE(M)'!$AO243=\"\",\"\",'[6]MONE(M)'!$AO243)","v":43674.406571500993},{"$f":"IF('[7]MONE(M)'!$AO243=\"\",\"\",'[7]MONE(M)'!$AO243)","v":336225.90067442995},{"$f":"IF('[8]MONE(M)'!$AO243=\"\",\"\",'[8]MONE(M)'!$AO243)","v":19796.123290302996},19.343395537355423,-3.6012317784486214,3.6638144214194535,2.781974780178853,-2.5010110642093464,4.4587341232797062,8.6314873635808596,{"$f":"IF('[1]FISCAL(M)'!$K243=\"\",\"\",'[1]FISCAL(M)'!$K243)","v":-1669.8964265816762},{"$f":"+'[1]REAL(A)'!$AO$29","v":157527.17375242617},-1.0600688038789607,{"$f":"IF('[1]FISCAL(M)'!$L243=\"\",\"\",'[1]FISCAL(M)'!$L243)","v":-1949.0873668326763},{"$f":"+'[1]REAL(A)'!$AP$29","v":184643.80875242618},-1.0555931336132958,70912.095492033332,{"$f":"'[1]Gráfico REM'!BG237","v":13607.426438631597},{"$f":"'[1]Gráfico REM'!BH237","v":52658.956743455958},{"$f":"'[1]Gráfico REM'!BI237","v":4645.7123099457785},2.7549422839435289,13.822109644169389,0.65003767317177719,-1.9276785276724828,106501.29226430833,{"$f":"'[1]Gráfico REM'!BK237","v":14433.723961701597},{"$f":"'[1]Gráfico REM'!BL237","v":72455.080033758946},{"$f":"'[1]Gráfico REM'!BM237","v":19612.488268847777},4.5941826491948223,13.704007474814928,2.7118925561609553,5.5162918002038541]
[2009,"julio","2009-julio",{"$f":"IF('[1]REAL IPC(M)'!$AL244=\"\",\"\",+'[1]REAL IPC(M)'!$AL244)","v":0.77728550296929377},{"$f":"IF('[1]REAL IPC(M)'!$BE244=\"\",\"\",+'[1]REAL IPC(M)'!$BE244)","v":5.8420394890884353},{"$f":"IF('[1]REAL IPC(M)'!$AM244=\"\",\"\",+'[1]REAL IPC(M)'!$AM244)","v":0.88955190505006776},{"$f":"IF('[1]REAL IPC(M)'!$BI244=\"\",\"\",+'[1]REAL IPC(M)'!$BI244)","v":5.6833513343317765},{"$f":"IF('[1]REAL IMAE(M)'!BJ244=\"\",\"\",'[1]REAL IMAE(M)'!BJ244)","v":-0.93187902459759275},{"$f":"IF('[1]REAL IMAE(M)'!BK244=\"\",\"\",'[1]REAL IMAE(M)'!BK244)","v":2.1568709805756869},{"$f":"IF('[1]REAL IMAE(M)'!BN244=\"\",\"\",'[1]REAL IMAE(M)'!BN244)","v":-0.86541548185763428},{"$f":"IF('[1]REAL IMAE(M)'!BO244=\"\",\"\",'[1]REAL IMAE(M)'!BO244)","v":2.5173462278380576},{"$f":"IF('[1]EXT RIN(M)'!$K244=\"\",\"\",'[1]EXT RIN(M)'!$K244)","v":16962.706769246517},"",{"$f":"IF('[1]EXT RIN(M)'!$L244=\"\",\"\",'[1]EXT RIN(M)'!$L244)","v":19449.562611370849},"",{"$f":"IF('[1]MONE(M)CARD'!EG244=\"\",\"\",'[1]MONE(M)CARD'!EG244)","v":16970.591220713031},{"$f":"IF('[1]MONE(M)CARD'!EK244=\"\",\"\",'[1]MONE(M)CARD'!EK244)","v":32696.274328263171},{"$f":"IF('[1]MONE(M)CARD'!EP244=\"\",\"\",'[1]MONE(M)CARD'!EP244)","v":18712.893825078718},{"$f":"IF('[1]MONE(M)CARD'!ES244=\"\",\"\",'[1]MONE(M)CARD'!ES244)","v":-4.5950334154683636},{"$f":"IF('[1]MONE(M)CARD'!EV244=\"\",\"\",'[1]MONE(M)CARD'!EV244)","v":-0.91724473225840431},{"$f":"IF('[1]MONE(M)CARD'!EZ244=\"\",\"\",'[1]MONE(M)CARD'!EZ244)","v":1.8727363971223765},{"$f":"IF('[1]MONE(M)CAPARD'!FC244=\"\",\"\",'[1]MONE(M)CAPARD'!FC244)","v":20695.49934987543},{"$f":"IF('[1]MONE(M)CAPARD'!FG244=\"\",\"\",'[1]MONE(M)CAPARD'!FG244)","v":49470.612223943172},{"$f":"IF('[1]MONE(M)CAPARD'!FL244=\"\",\"\",'[1]MONE(M)CAPARD'!FL244)","v":18712.893825078732},{"$f":"IF('[1]MONE(M)CAPARD'!FO244=\"\",\"\",'[1]MONE(M)CAPARD'!FO244)","v":-1.4247976672794982},{"$f":"IF('[1]MONE(M)CAPARD'!FR244=\"\",\"\",'[1]MONE(M)CAPARD'!FR244)","v":1.809969773679021},{"$f":"IF('[1]MONE(M)CAPARD'!FV244=\"\",\"\",'[1]MONE(M)CAPARD'!FV244)","v":3.4501903481023444},{"$f":"IF('[1]MONE(M)CARD'!FV244=\"\",\"\",'[1]MONE(M)CARD'!FV244)","v":2064.3511588029023},{"$f":"IF('[1]MONE(M)CARD'!GD244=\"\",\"\",'[1]MONE(M)CARD'!GD244)","v":48.069021342454874},{"$f":"IF('[1]MONE(M)CARD'!GE244=\"\",\"\",'[1]MONE(M)CARD'!GE244)","v":5156.4439612754823},2.250408652172009,{"$f":"IF('[9]II.2.Balance OSD-Activos'!J102=\"\",\"\",'[9]II.2.Balance OSD-Activos'!J102)","v":123.55203694474719},{"$f":"IF('[9]II.2.Balance OSD-Activos'!N102=\"\",\"\",'[9]II.2.Balance OSD-Activos'!N102)","v":351.08052656116996},{"$f":"IF('[9]II.2.Balance OSD-Activos'!R102=\"\",\"\",'[9]II.2.Balance OSD-Activos'!R102)","v":23563.101772784266},{"$f":"IF('[9]II.2.Balance OSD-Activos'!S102=\"\",\"\",'[9]II.2.Balance OSD-Activos'!S102)","v":26417.828392970143},23686.653809729014,50455.562729260331,18.8916046132668,-0.56412868106674452,-18.338915797109479,-0.64937673280269781,0.21099796175785279,-0.31138334186947558,-0.29368434004232169,{"$f":"IF('[1]MONE(M)CAPARD'!GS244=\"\",\"\",'[1]MONE(M)CAPARD'!GS244)","v":9570.5961261634111},{"$f":"IF('[1]MONE(M)CARD'!HA244=\"\",\"\",'[1]MONE(M)CAPARD'!HA244)","v":5623.1900838254833},{"$f":"IF('[1]MONE(M)CAPARD'!HB244=\"\",\"\",'[1]MONE(M)CAPARD'!HB244)","v":3947.4060423379278},"n.d.",{"$f":"IF('[10]II.2.Balance OSD-Activos'!J102=\"\",\"\",'[10]II.2.Balance OSD-Activos'!J102)","v":427.99783566674711},{"$f":"IF('[10]II.2.Balance OSD-Activos'!N102=\"\",\"\",'[10]II.2.Balance OSD-Activos'!N102)","v":740.35484627117},{"$f":"IF('[10]II.2.Balance OSD-Activos'!R102=\"\",\"\",'[10]II.2.Balance OSD-Activos'!R102)","v":33684.383638984269},{"$f":"IF('[10]II.2.Balance OSD-Activos'!S102=\"\",\"\",'[10]II.2.Balance OSD-Activos'!S102)","v":35428.57164908015},34112.381474651018,70281.307970002337,22.657770474410643,1.3876955923269874,-11.597165210612825,1.1647923863201015,2.1046008305510622,1.5900748856129132,-0.67681169897304549,{"$f":"IF('[1]MONE(M)CAPARD'!AS244=\"\",\"\",'[1]MONE(M)CAPARD'!AS244)","v":9},{"$f":"IF('[1]MONE(M)CAPARD'!AT244=\"\",\"\",'[1]MONE(M)CAPARD'!AT244)","v":"n.a."},{"$f":"IF('[1]MONE(M)CAPARD'!AU244=\"\",\"\",'[1]MONE(M)CAPARD'!AU244)","v":4.75},{"$f":"IF('[1]MONE(M)CAPARD'!AV244=\"\",\"\",'[1]MONE(M)CAPARD'!AV244)","v":4},{"$f":"IF('[1]MONE(M)CAPARD'!AW244=\"\",\"\",'[1]MONE(M)CAPARD'!AW244)","v":"n.a."},{"$f":"IF('[1]MONE(M)CAPARD'!AX244=\"\",\"\",'[1]MONE(M)CAPARD'!AX244)","v":5},{"$f":"IF('[1]MONE(M)CAPARD'!AY244=\"\",\"\",'[1]MONE(M)CAPARD'!AY244)","v":"n.a."},{"$f":"IF('[1]FISCAL(M)'!$K244=\"\",\"\",'[1]FISCAL(M)'!$K244)","v":-1916.6322335560412},{"$f":"IF('[1]FISCAL(M)'!$L244=\"\",\"\",'[1]FISCAL(M)'!$L244)","v":-2568.1643441270407},{"$f":"IF('[1]FISCAL(M)'!$AY244=\"\",\"\",'[1]FISCAL(M)'!$AY244)","v":"n.d."},{"$f":"IF('[1]FISCAL(M)'!$BI244=\"\",\"\",'[1]FISCAL(M)'!$BI244)","v":"n.d."},{"$f":"IF('[1]FISCAL(M)'!$BS244=\"\",\"\",'[1]FISCAL(M)'!$BS244)","v":"n.d."},{"$f":"IF('[1]FISCAL(M)'!$AZ244=\"\",\"\",'[1]FISCAL(M)'!$AZ244)","v":"n.d."},{"$f":"IF('[1]FISCAL(M)'!$BJ244=\"\",\"\",'[1]FISCAL(M)'!$BJ244)","v":"n.d."},{"$f":"IF('[1]FISCAL(M)'!$BT244=\"\",\"\",'[1]FISCAL(M)'!$BT244)","v":"n.d."},{"$f":"IF('[2]MONE(M)'!$AO244=\"\",\"\",'[2]MONE(M)'!$AO244)","v":8735541.0576996058},{"$f":"IF('[3]MONE(M)'!$AO244=\"\",\"\",'[3]MONE(M)'!$AO244)","v":8784.7760159999998},{"$f":"IF('[4]MONE(M)'!$AO244=\"\",\"\",'[4]MONE(M)'!$AO244)","v":82035.091625868401},{"$f":"+'[5]MONE(M)'!$AO244","v":137149.65516642912},{"$f":"IF('[6]MONE(M)'!$AO244=\"\",\"\",'[6]MONE(M)'!$AO244)","v":43408.432048480005},{"$f":"IF('[7]MONE(M)'!$AO244=\"\",\"\",'[7]MONE(M)'!$AO244)","v":338303.13677589002},{"$f":"IF('[8]MONE(M)'!$AO244=\"\",\"\",'[8]MONE(M)'!$AO244)","v":19841.930253552},16.159577350848188,-3.8519661001622407,3.6861062050727256,3.1286260190423576,-4.6859187722143698,5.350022954087752,6.8282020722149506,{"$f":"IF('[1]FISCAL(M)'!$K244=\"\",\"\",'[1]FISCAL(M)'!$K244)","v":-1916.6322335560412},{"$f":"+'[1]REAL(A)'!$AO$29","v":157527.17375242617},-1.2166994353420386,{"$f":"IF('[1]FISCAL(M)'!$L244=\"\",\"\",'[1]FISCAL(M)'!$L244)","v":-2568.1643441270407},{"$f":"+'[1]REAL(A)'!$AP$29","v":184643.80875242618},-1.390874874971022,70437.916842184859,{"$f":"'[1]Gráfico REM'!BG238","v":13512.131430636924},{"$f":"'[1]Gráfico REM'!BH238","v":52544.657145878497},{"$f":"'[1]Gráfico REM'!BI238","v":4381.128265669432},2.6728007544791765,15.256678103155053,0.54832210071973364,-5.2244274124188088,105717.27910320685,{"$f":"'[1]Gráfico REM'!BK238","v":14444.156861156924},{"$f":"'[1]Gráfico REM'!BL238","v":72386.5873994305},{"$f":"'[1]Gráfico REM'!BM238","v":18886.534842619432},3.6433688977103307,15.477964786954823,2.195047135963657,1.2082625150960702]
[2009,"agosto","2009-agosto",{"$f":"IF('[1]REAL IPC(M)'!$AL245=\"\",\"\",+'[1]REAL IPC(M)'!$AL245)","v":0.53604322989835307},{"$f":"IF('[1]REAL IPC(M)'!$BE245=\"\",\"\",+'[1]REAL IPC(M)'!$BE245)","v":5.736710841613113},{"$f":"IF('[1]REAL IPC(M)'!$AM245=\"\",\"\",+'[1]REAL IPC(M)'!$AM245)","v":0.66349703609187571},{"$f":"IF('[1]REAL IPC(M)'!$BI245=\"\",\"\",+'[1]REAL IPC(M)'!$BI245)","v":5.5785370200897244},{"$f":"IF('[1]REAL IMAE(M)'!BJ245=\"\",\"\",'[1]REAL IMAE(M)'!BJ245)","v":-0.21954511914589192},{"$f":"IF('[1]REAL IMAE(M)'!BK245=\"\",\"\",'[1]REAL IMAE(M)'!BK245)","v":2.2262826536899594},{"$f":"IF('[1]REAL IMAE(M)'!BN245=\"\",\"\",'[1]REAL IMAE(M)'!BN245)","v":-0.30517111018161236},{"$f":"IF('[1]REAL IMAE(M)'!BO245=\"\",\"\",'[1]REAL IMAE(M)'!BO245)","v":2.5825161187932988},{"$f":"IF('[1]EXT RIN(M)'!$K245=\"\",\"\",'[1]EXT RIN(M)'!$K245)","v":17977.42070442831},"",{"$f":"IF('[1]EXT RIN(M)'!$L245=\"\",\"\",'[1]EXT RIN(M)'!$L245)","v":20714.23400179551},"",{"$f":"IF('[1]MONE(M)CARD'!EG245=\"\",\"\",'[1]MONE(M)CARD'!EG245)","v":16992.063838460137},{"$f":"IF('[1]MONE(M)CARD'!EK245=\"\",\"\",'[1]MONE(M)CARD'!EK245)","v":32659.183943970329},{"$f":"IF('[1]MONE(M)CARD'!EP245=\"\",\"\",'[1]MONE(M)CARD'!EP245)","v":18986.885039254223},{"$f":"IF('[1]MONE(M)CARD'!ES245=\"\",\"\",'[1]MONE(M)CARD'!ES245)","v":-3.2055121166047029},{"$f":"IF('[1]MONE(M)CARD'!EV245=\"\",\"\",'[1]MONE(M)CARD'!EV245)","v":-0.37125428271429506},{"$f":"IF('[1]MONE(M)CARD'!EZ245=\"\",\"\",'[1]MONE(M)CARD'!EZ245)","v":2.9757017045626055},{"$f":"IF('[1]MONE(M)CAPARD'!FC245=\"\",\"\",'[1]MONE(M)CAPARD'!FC245)","v":20944.510178508535},{"$f":"IF('[1]MONE(M)CAPARD'!FG245=\"\",\"\",'[1]MONE(M)CAPARD'!FG245)","v":49645.809711730333},{"$f":"IF('[1]MONE(M)CAPARD'!FL245=\"\",\"\",'[1]MONE(M)CAPARD'!FL245)","v":18986.885039254237},{"$f":"IF('[1]MONE(M)CAPARD'!FO245=\"\",\"\",'[1]MONE(M)CAPARD'!FO245)","v":0.27137150774070307},{"$f":"IF('[1]MONE(M)CAPARD'!FR245=\"\",\"\",'[1]MONE(M)CAPARD'!FR245)","v":2.4075667716665583},{"$f":"IF('[1]MONE(M)CAPARD'!FV245=\"\",\"\",'[1]MONE(M)CAPARD'!FV245)","v":4.4642034771535721},{"$f":"IF('[1]MONE(M)CARD'!FV245=\"\",\"\",'[1]MONE(M)CARD'!FV245)","v":2079.2024806147238},{"$f":"IF('[1]MONE(M)CARD'!GD245=\"\",\"\",'[1]MONE(M)CARD'!GD245)","v":61.415279259499414},{"$f":"IF('[1]MONE(M)CARD'!GE245=\"\",\"\",'[1]MONE(M)CARD'!GE245)","v":5209.6149078834042},5.999626170558825,{"$f":"IF('[9]II.2.Balance OSD-Activos'!J103=\"\",\"\",'[9]II.2.Balance OSD-Activos'!J103)","v":111.68536821407352},{"$f":"IF('[9]II.2.Balance OSD-Activos'!N103=\"\",\"\",'[9]II.2.Balance OSD-Activos'!N103)","v":339.85048851587453},{"$f":"IF('[9]II.2.Balance OSD-Activos'!R103=\"\",\"\",'[9]II.2.Balance OSD-Activos'!R103)","v":23123.176734695779},{"$f":"IF('[9]II.2.Balance OSD-Activos'!S103=\"\",\"\",'[9]II.2.Balance OSD-Activos'!S103)","v":26720.493161754646},23234.86210290985,50295.205753180373,-3.5950649538739388,-3.0793930749040244,{"$f":"IF(OR(AG238=\"\",AG226=\"\"),\"\",((AG238/AG226)-1)*100)","v":-19.705334026588051},-3.0768889827367474,0.25672147877504603,-1.4754771009135359,-1.1640937590440603,{"$f":"IF('[1]MONE(M)CAPARD'!GS245=\"\",\"\",'[1]MONE(M)CAPARD'!GS245)","v":9709.0677031863761},{"$f":"IF('[1]MONE(M)CARD'!HA245=\"\",\"\",'[1]MONE(M)CAPARD'!HA245)","v":5682.8006880334042},{"$f":"IF('[1]MONE(M)CAPARD'!HB245=\"\",\"\",'[1]MONE(M)CAPARD'!HB245)","v":4026.2670151529719},"n.d.",{"$f":"IF('[10]II.2.Balance OSD-Activos'!J103=\"\",\"\",'[10]II.2.Balance OSD-Activos'!J103)","v":421.66596152607343},{"$f":"IF('[10]II.2.Balance OSD-Activos'!N103=\"\",\"\",'[10]II.2.Balance OSD-Activos'!N103)","v":743.44443657587442},{"$f":"IF('[10]II.2.Balance OSD-Activos'!R103=\"\",\"\",'[10]II.2.Balance OSD-Activos'!R103)","v":33214.323386835778},{"$f":"IF('[10]II.2.Balance OSD-Activos'!S103=\"\",\"\",'[10]II.2.Balance OSD-Activos'!S103)","v":35782.077684114643},33635.989348361851,70161.511469052377,8.3313432857658576,-1.4324311657308519,-10.594108905506838,-1.5450845254605605,2.0705391262174189,0.21273956471834499,-1.3773353208945682,{"$f":"IF('[1]MONE(M)CAPARD'!AS245=\"\",\"\",'[1]MONE(M)CAPARD'!AS245)","v":9},{"$f":"IF('[1]MONE(M)CAPARD'!AT245=\"\",\"\",'[1]MONE(M)CAPARD'!AT245)","v":"n.a."},{"$f":"IF('[1]MONE(M)CAPARD'!AU245=\"\",\"\",'[1]MONE(M)CAPARD'!AU245)","v":4.75},{"$f":"IF('[1]MONE(M)CAPARD'!AV245=\"\",\"\",'[1]MONE(M)CAPARD'!AV245)","v":4.5},{"$f":"IF('[1]MONE(M)CAPARD'!AW245=\"\",\"\",'[1]MONE(M)CAPARD'!AW245)","v":"n.a."},{"$f":"IF('[1]MONE(M)CAPARD'!AX245=\"\",\"\",'[1]MONE(M)CAPARD'!AX245)","v":5},{"$f":"IF('[1]MONE(M)CAPARD'!AY245=\"\",\"\",'[1]MONE(M)CAPARD'!AY245)","v":"n.a."},{"$f":"IF('[1]FISCAL(M)'!$K245=\"\",\"\",'[1]FISCAL(M)'!$K245)","v":-2430.7066249804093},{"$f":"IF('[1]FISCAL(M)'!$L245=\"\",\"\",'[1]FISCAL(M)'!$L245)","v":-3093.498027511409},{"$f":"IF('[1]FISCAL(M)'!$AY245=\"\",\"\",'[1]FISCAL(M)'!$AY245)","v":"n.d."},{"$f":"IF('[1]FISCAL(M)'!$BI245=\"\",\"\",'[1]FISCAL(M)'!$BI245)","v":"n.d."},{"$f":"IF('[1]FISCAL(M)'!$BS245=\"\",\"\",'[1]FISCAL(M)'!$BS245)","v":"n.d."},{"$f":"IF('[1]FISCAL(M)'!$AZ245=\"\",\"\",'[1]FISCAL(M)'!$AZ245)","v":"n.d."},{"$f":"IF('[1]FISCAL(M)'!$BJ245=\"\",\"\",'[1]FISCAL(M)'!$BJ245)","v":"n.d."},{"$f":"IF('[1]FISCAL(M)'!$BT245=\"\",\"\",'[1]FISCAL(M)'!$BT245)","v":"n.d."},{"$f":"IF('[2]MONE(M)'!$AO245=\"\",\"\",'[2]MONE(M)'!$AO245)","v":8766494.8745375834},{"$f":"IF('[3]MONE(M)'!$AO245=\"\",\"\",'[3]MONE(M)'!$AO245)","v":8758.2896758900006},{"$f":"IF('[4]MONE(M)'!$AO245=\"\",\"\",'[4]MONE(M)'!$AO245)","v":82270.825961052149},{"$f":"+'[5]MONE(M)'!$AO245","v":135881.4195070728},{"$f":"IF('[6]MONE(M)'!$AO245=\"\",\"\",'[6]MONE(M)'!$AO245)","v":43255.715753614306},{"$f":"IF('[7]MONE(M)'!$AO245=\"\",\"\",'[7]MONE(M)'!$AO245)","v":338498.28561035998},{"$f":"IF('[8]MONE(M)'!$AO245=\"\",\"\",'[8]MONE(M)'!$AO245)","v":19884.334488831999},15.457909905457591,-5.2337645942481359,2.6864241630131014,0.89330562994243135,-7.220567762662955,4.2568713411206272,4.860769023204381,{"$f":"IF('[1]FISCAL(M)'!$K245=\"\",\"\",'[1]FISCAL(M)'!$K245)","v":-2430.7066249804093},{"$f":"+'[1]REAL(A)'!$AO$29","v":157527.17375242617},-1.5430395703033253,{"$f":"IF('[1]FISCAL(M)'!$L245=\"\",\"\",'[1]FISCAL(M)'!$L245)","v":-3093.498027511409},{"$f":"+'[1]REAL(A)'!$AP$29","v":184643.80875242618},-1.675386815519619,70366.417655900208,{"$f":"'[1]Gráfico REM'!BG239","v":13545.081478717206},{"$f":"'[1]Gráfico REM'!BH239","v":52387.807949298898},{"$f":"'[1]Gráfico REM'!BI239","v":4433.5282278841059},2.3665460634623825,19.362958205959679,-0.64197546876221256,-4.9731714237739695,105278.72938135921,{"$f":"'[1]Gráfico REM'!BK239","v":14402.943540227207},{"$f":"'[1]Gráfico REM'!BL239","v":72272.14243813089},{"$f":"'[1]Gráfico REM'!BM239","v":18603.643403001108},2.5101171976122494,18.661827746833936,0.81356883670724578,-1.4329911570725384]
[2009,"septiembre","2009-septiembre",{"$f":"IF('[1]REAL IPC(M)'!$AL246=\"\",\"\",+'[1]REAL IPC(M)'!$AL246)","v":0.39137363020609328},{"$f":"IF('[1]REAL IPC(M)'!$BE246=\"\",\"\",+'[1]REAL IPC(M)'!$BE246)","v":5.6407996554849849},{"$f":"IF('[1]REAL IPC(M)'!$AM246=\"\",\"\",+'[1]REAL IPC(M)'!$AM246)","v":0.40116939072019075},{"$f":"IF('[1]REAL IPC(M)'!$BI246=\"\",\"\",+'[1]REAL IPC(M)'!$BI246)","v":5.4839053285643979},{"$f":"IF('[1]REAL IMAE(M)'!BJ246=\"\",\"\",'[1]REAL IMAE(M)'!BJ246)","v":0.13299581303056751},{"$f":"IF('[1]REAL IMAE(M)'!BK246=\"\",\"\",'[1]REAL IMAE(M)'!BK246)","v":2.3029302201498458},{"$f":"IF('[1]REAL IMAE(M)'!BN246=\"\",\"\",'[1]REAL IMAE(M)'!BN246)","v":0.30327530170328743},{"$f":"IF('[1]REAL IMAE(M)'!BO246=\"\",\"\",'[1]REAL IMAE(M)'!BO246)","v":2.6571407658923407},{"$f":"IF('[1]EXT RIN(M)'!$K246=\"\",\"\",'[1]EXT RIN(M)'!$K246)","v":17586.649688050737},"",{"$f":"IF('[1]EXT RIN(M)'!$L246=\"\",\"\",'[1]EXT RIN(M)'!$L246)","v":20303.825851130536},"",{"$f":"IF('[1]MONE(M)CARD'!EG246=\"\",\"\",'[1]MONE(M)CARD'!EG246)","v":17000.722001037862},{"$f":"IF('[1]MONE(M)CARD'!EK246=\"\",\"\",'[1]MONE(M)CARD'!EK246)","v":32494.259909169687},{"$f":"IF('[1]MONE(M)CARD'!EP246=\"\",\"\",'[1]MONE(M)CARD'!EP246)","v":19036.863034899718},{"$f":"IF('[1]MONE(M)CARD'!ES246=\"\",\"\",'[1]MONE(M)CARD'!ES246)","v":-1.9228872666902541},{"$f":"IF('[1]MONE(M)CARD'!EV246=\"\",\"\",'[1]MONE(M)CARD'!EV246)","v":-0.49320619413204536},{"$f":"IF('[1]MONE(M)CARD'!EZ246=\"\",\"\",'[1]MONE(M)CARD'!EZ246)","v":2.623782620858961},{"$f":"IF('[1]MONE(M)CAPARD'!FC246=\"\",\"\",'[1]MONE(M)CAPARD'!FC246)","v":20931.982468591857},{"$f":"IF('[1]MONE(M)CAPARD'!FG246=\"\",\"\",'[1]MONE(M)CAPARD'!FG246)","v":49593.985537879693},{"$f":"IF('[1]MONE(M)CAPARD'!FL246=\"\",\"\",'[1]MONE(M)CAPARD'!FL246)","v":19036.863034899725},{"$f":"IF('[1]MONE(M)CAPARD'!FO246=\"\",\"\",'[1]MONE(M)CAPARD'!FO246)","v":1.536680377352484},{"$f":"IF('[1]MONE(M)CAPARD'!FR246=\"\",\"\",'[1]MONE(M)CAPARD'!FR246)","v":2.6548016405002928},{"$f":"IF('[1]MONE(M)CAPARD'!FV246=\"\",\"\",'[1]MONE(M)CAPARD'!FV246)","v":4.4568638205232158},{"$f":"IF('[1]MONE(M)CARD'!FV246=\"\",\"\",'[1]MONE(M)CARD'!FV246)","v":2078.0500518196413},{"$f":"IF('[1]MONE(M)CARD'!GD246=\"\",\"\",'[1]MONE(M)CARD'!GD246)","v":141.78089359405237},{"$f":"IF('[1]MONE(M)CARD'!GE246=\"\",\"\",'[1]MONE(M)CARD'!GE246)","v":5337.2432267502245},6.6939946772903935,{"$f":"IF('[9]II.2.Balance OSD-Activos'!J104=\"\",\"\",'[9]II.2.Balance OSD-Activos'!J104)","v":155.10907415909355},{"$f":"IF('[9]II.2.Balance OSD-Activos'!N104=\"\",\"\",'[9]II.2.Balance OSD-Activos'!N104)","v":322.96049119106902},{"$f":"IF('[9]II.2.Balance OSD-Activos'!R104=\"\",\"\",'[9]II.2.Balance OSD-Activos'!R104)","v":23142.64858225912},{"$f":"IF('[9]II.2.Balance OSD-Activos'!S104=\"\",\"\",'[9]II.2.Balance OSD-Activos'!S104)","v":26852.963947057502},23297.757656418213,50473.682094666787,41.693274583567394,-3.2685330496201481,-22.864295352528398,-3.4738211543212327,-2.5270203742278063E-2,-1.7322519903837597,-0.25677488947022375,{"$f":"IF('[1]MONE(M)CAPARD'!GS246=\"\",\"\",'[1]MONE(M)CAPARD'!GS246)","v":10058.964613716109},{"$f":"IF('[1]MONE(M)CARD'!HA246=\"\",\"\",'[1]MONE(M)CAPARD'!HA246)","v":5822.4027219702248},{"$f":"IF('[1]MONE(M)CAPARD'!HB246=\"\",\"\",'[1]MONE(M)CAPARD'!HB246)","v":4236.5618917458842},"n.d.",{"$f":"IF('[10]II.2.Balance OSD-Activos'!J104=\"\",\"\",'[10]II.2.Balance OSD-Activos'!J104)","v":465.55754844909359},{"$f":"IF('[10]II.2.Balance OSD-Activos'!N104=\"\",\"\",'[10]II.2.Balance OSD-Activos'!N104)","v":731.49778244106915},{"$f":"IF('[10]II.2.Balance OSD-Activos'!R104=\"\",\"\",'[10]II.2.Balance OSD-Activos'!R104)","v":33210.506870409125},{"$f":"IF('[10]II.2.Balance OSD-Activos'!S104=\"\",\"\",'[10]II.2.Balance OSD-Activos'!S104)","v":35965.599207777501},33676.064418858216,70373.161409076798,24.155409704061558,-2.6612611061818003,-8.8801378243279281,-2.9551003497285233,1.7772409474678286,-0.51453229539261125,-0.72727186011095624,{"$f":"IF('[1]MONE(M)CAPARD'!AS246=\"\",\"\",'[1]MONE(M)CAPARD'!AS246)","v":9},{"$f":"IF('[1]MONE(M)CAPARD'!AT246=\"\",\"\",'[1]MONE(M)CAPARD'!AT246)","v":"n.a."},{"$f":"IF('[1]MONE(M)CAPARD'!AU246=\"\",\"\",'[1]MONE(M)CAPARD'!AU246)","v":4.5},{"$f":"IF('[1]MONE(M)CAPARD'!AV246=\"\",\"\",'[1]MONE(M)CAPARD'!AV246)","v":4.5},{"$f":"IF('[1]MONE(M)CAPARD'!AW246=\"\",\"\",'[1]MONE(M)CAPARD'!AW246)","v":"n.a."},{"$f":"IF('[1]MONE(M)CAPARD'!AX246=\"\",\"\",'[1]MONE(M)CAPARD'!AX246)","v":4},{"$f":"IF('[1]MONE(M)CAPARD'!AY246=\"\",\"\",'[1]MONE(M)CAPARD'!AY246)","v":"n.a."},{"$f":"IF('[1]FISCAL(M)'!$K246=\"\",\"\",'[1]FISCAL(M)'!$K246)","v":-2882.5252943042715},{"$f":"IF('[1]FISCAL(M)'!$L246=\"\",\"\",'[1]FISCAL(M)'!$L246)","v":-3649.5142531052711},{"$f":"IF('[1]FISCAL(M)'!$AY246=\"\",\"\",'[1]FISCAL(M)'!$AY246)","v":54826.50023447843},{"$f":"IF('[1]FISCAL(M)'!$BI246=\"\",\"\",'[1]FISCAL(M)'!$BI246)","v":26227.240234478431},{"$f":"IF('[1]FISCAL(M)'!$BS246=\"\",\"\",'[1]FISCAL(M)'!$BS246)","v":28599.26},{"$f":"IF('[1]FISCAL(M)'!$AZ246=\"\",\"\",'[1]FISCAL(M)'!$AZ246)","v":66040.120081698435},{"$f":"IF('[1]FISCAL(M)'!$BJ246=\"\",\"\",'[1]FISCAL(M)'!$BJ246)","v":28386.575722088426},{"$f":"IF('[1]FISCAL(M)'!$BT246=\"\",\"\",'[1]FISCAL(M)'!$BT246)","v":37644.795770439996},{"$f":"IF('[2]MONE(M)'!$AO246=\"\",\"\",'[2]MONE(M)'!$AO246)","v":8830399.6406132169},{"$f":"IF('[3]MONE(M)'!$AO246=\"\",\"\",'[3]MONE(M)'!$AO246)","v":8724.0280485900003},{"$f":"IF('[4]MONE(M)'!$AO246=\"\",\"\",'[4]MONE(M)'!$AO246)","v":82550.694300061499},{"$f":"+'[5]MONE(M)'!$AO246","v":136568.77406460053},{"$f":"IF('[6]MONE(M)'!$AO246=\"\",\"\",'[6]MONE(M)'!$AO246)","v":43045.906592090127},{"$f":"IF('[7]MONE(M)'!$AO246=\"\",\"\",'[7]MONE(M)'!$AO246)","v":343527.60528498999},{"$f":"IF('[8]MONE(M)'!$AO246=\"\",\"\",'[8]MONE(M)'!$AO246)","v":19920.330438825997},14.29106524772228,-5.6510718937310305,2.1441244553151773,0.47572555459829413,-7.8327441879963438,4.7104014368545055,2.7135054903900224,{"$f":"IF('[1]FISCAL(M)'!$K246=\"\",\"\",'[1]FISCAL(M)'!$K246)","v":-2882.5252943042715},{"$f":"+'[1]REAL(A)'!$AO$29","v":157527.17375242617},-1.829859081223995,{"$f":"IF('[1]FISCAL(M)'!$L246=\"\",\"\",'[1]FISCAL(M)'!$L246)","v":-3649.5142531052711},{"$f":"+'[1]REAL(A)'!$AP$29","v":184643.80875242618},-1.9765159079872572,70719.583706873978,{"$f":"'[1]Gráfico REM'!BG240","v":13835.342808615966},{"$f":"'[1]Gráfico REM'!BH240","v":52614.846194476122},{"$f":"'[1]Gráfico REM'!BI240","v":4269.3947037818816},{"$f":"+((CS239/CS227)-1)*100","v":2.3214826760755036},22.464755452712804,-0.90329222330374215,-9.6087119050217158,105971.04514345297,{"$f":"'[1]Gráfico REM'!BK240","v":14694.453639235966},{"$f":"'[1]Gráfico REM'!BL240","v":72535.176633302122},{"$f":"'[1]Gráfico REM'!BM240","v":18741.414870914883},2.3815242499832801,21.782441123862629,6.4370476670472243E-2,-1.1077963708303051]
[2009,"octubre","2009-octubre",{"$f":"IF('[1]REAL IPC(M)'!$AL247=\"\",\"\",+'[1]REAL IPC(M)'!$AL247)","v":0.35205902887787133},{"$f":"IF('[1]REAL IPC(M)'!$BE247=\"\",\"\",+'[1]REAL IPC(M)'!$BE247)","v":5.554773770177035},{"$f":"IF('[1]REAL IPC(M)'!$AM247=\"\",\"\",+'[1]REAL IPC(M)'!$AM247)","v":0.39033313519989399},{"$f":"IF('[1]REAL IPC(M)'!$BI247=\"\",\"\",+'[1]REAL IPC(M)'!$BI247)","v":5.4000043005332898},{"$f":"IF('[1]REAL IMAE(M)'!BJ247=\"\",\"\",'[1]REAL IMAE(M)'!BJ247)","v":0.5084403110461766},{"$f":"IF('[1]REAL IMAE(M)'!BK247=\"\",\"\",'[1]REAL IMAE(M)'!BK247)","v":2.3856848562866073},{"$f":"IF('[1]REAL IMAE(M)'!BN247=\"\",\"\",'[1]REAL IMAE(M)'!BN247)","v":0.57493205206597953},{"$f":"IF('[1]REAL IMAE(M)'!BO247=\"\",\"\",'[1]REAL IMAE(M)'!BO247)","v":2.7400551001966811},{"$f":"IF('[1]EXT RIN(M)'!$K247=\"\",\"\",'[1]EXT RIN(M)'!$K247)","v":17595.84583917557},"",{"$f":"IF('[1]EXT RIN(M)'!$L247=\"\",\"\",'[1]EXT RIN(M)'!$L247)","v":20275.244075316172},"",{"$f":"IF('[1]MONE(M)CARD'!EG247=\"\",\"\",'[1]MONE(M)CARD'!EG247)","v":17534.016183955231},{"$f":"IF('[1]MONE(M)CARD'!EK247=\"\",\"\",'[1]MONE(M)CARD'!EK247)","v":32796.000104504048},{"$f":"IF('[1]MONE(M)CARD'!EP247=\"\",\"\",'[1]MONE(M)CARD'!EP247)","v":18989.90815598597},{"$f":"IF('[1]MONE(M)CARD'!ES247=\"\",\"\",'[1]MONE(M)CARD'!ES247)","v":3.4009016968048922},{"$f":"IF('[1]MONE(M)CARD'!EV247=\"\",\"\",'[1]MONE(M)CARD'!EV247)","v":2.1326404754428596},{"$f":"IF('[1]MONE(M)CARD'!EZ247=\"\",\"\",'[1]MONE(M)CARD'!EZ247)","v":4.6903516970609127},{"$f":"IF('[1]MONE(M)CAPARD'!FC247=\"\",\"\",'[1]MONE(M)CAPARD'!FC247)","v":21348.241068074629},{"$f":"IF('[1]MONE(M)CAPARD'!FG247=\"\",\"\",'[1]MONE(M)CAPARD'!FG247)","v":49995.833637724034},{"$f":"IF('[1]MONE(M)CAPARD'!FL247=\"\",\"\",'[1]MONE(M)CAPARD'!FL247)","v":18989.908155985977},{"$f":"IF('[1]MONE(M)CAPARD'!FO247=\"\",\"\",'[1]MONE(M)CAPARD'!FO247)","v":5.3417359920618024},{"$f":"IF('[1]MONE(M)CAPARD'!FR247=\"\",\"\",'[1]MONE(M)CAPARD'!FR247)","v":3.9681315149280305},{"$f":"IF('[1]MONE(M)CAPARD'!FV247=\"\",\"\",'[1]MONE(M)CAPARD'!FV247)","v":5.5842907160427835},{"$f":"IF('[1]MONE(M)CARD'!FV247=\"\",\"\",'[1]MONE(M)CARD'!FV247)","v":2092.5705659147789},{"$f":"IF('[1]MONE(M)CARD'!GD247=\"\",\"\",'[1]MONE(M)CARD'!GD247)","v":56.414606647541575},{"$f":"IF('[1]MONE(M)CARD'!GE247=\"\",\"\",'[1]MONE(M)CARD'!GE247)","v":5515.7618665449409},9.247551017482758,{"$f":"IF('[9]II.2.Balance OSD-Activos'!J105=\"\",\"\",'[9]II.2.Balance OSD-Activos'!J105)","v":172.52193669986102},{"$f":"IF('[9]II.2.Balance OSD-Activos'!N105=\"\",\"\",'[9]II.2.Balance OSD-Activos'!N105)","v":321.71576611883904},{"$f":"IF('[9]II.2.Balance OSD-Activos'!R105=\"\",\"\",'[9]II.2.Balance OSD-Activos'!R105)","v":23356.830998192938},{"$f":"IF('[9]II.2.Balance OSD-Activos'!S105=\"\",\"\",'[9]II.2.Balance OSD-Activos'!S105)","v":27011.123547636555},23529.352934892799,50862.192248648193,70.454547786559061,-2.8408709934806042,-22.525617787181275,-3.1484842632438004,0.34854132254378278,-1.3340549877956409,0.39819700258811874,{"$f":"IF('[1]MONE(M)CAPARD'!GS247=\"\",\"\",'[1]MONE(M)CAPARD'!GS247)","v":10246.166627256391},{"$f":"IF('[1]MONE(M)CARD'!HA247=\"\",\"\",'[1]MONE(M)CAPARD'!HA247)","v":6037.8773785549402},{"$f":"IF('[1]MONE(M)CAPARD'!HB247=\"\",\"\",'[1]MONE(M)CAPARD'!HB247)","v":4208.2892487014506},"n.d.",{"$f":"IF('[10]II.2.Balance OSD-Activos'!J105=\"\",\"\",'[10]II.2.Balance OSD-Activos'!J105)","v":482.44488384186104},{"$f":"IF('[10]II.2.Balance OSD-Activos'!N105=\"\",\"\",'[10]II.2.Balance OSD-Activos'!N105)","v":723.34444208883906},{"$f":"IF('[10]II.2.Balance OSD-Activos'!R105=\"\",\"\",'[10]II.2.Balance OSD-Activos'!R105)","v":33528.768604282937},{"$f":"IF('[10]II.2.Balance OSD-Activos'!S105=\"\",\"\",'[10]II.2.Balance OSD-Activos'!S105)","v":36162.378666996556},34011.213488124798,70896.936597210195,25.137973944353288,-2.7018444596349833,-11.771370178217511,-3.0123175484520037,1.9328973487112266,-0.49855072716291637,1.5981568229694876E-2,{"$f":"IF('[1]MONE(M)CAPARD'!AS247=\"\",\"\",'[1]MONE(M)CAPARD'!AS247)","v":9},{"$f":"IF('[1]MONE(M)CAPARD'!AT247=\"\",\"\",'[1]MONE(M)CAPARD'!AT247)","v":"n.a."},{"$f":"IF('[1]MONE(M)CAPARD'!AU247=\"\",\"\",'[1]MONE(M)CAPARD'!AU247)","v":4.5},{"$f":"IF('[1]MONE(M)CAPARD'!AV247=\"\",\"\",'[1]MONE(M)CAPARD'!AV247)","v":4.5},{"$f":"IF('[1]MONE(M)CAPARD'!AW247=\"\",\"\",'[1]MONE(M)CAPARD'!AW247)","v":"n.a."},{"$f":"IF('[1]MONE(M)CAPARD'!AX247=\"\",\"\",'[1]MONE(M)CAPARD'!AX247)","v":4},{"$f":"IF('[1]MONE(M)CAPARD'!AY247=\"\",\"\",'[1]MONE(M)CAPARD'!AY247)","v":"n.a."},{"$f":"IF('[1]FISCAL(M)'!$K247=\"\",\"\",'[1]FISCAL(M)'!$K247)","v":-3119.9665378853624},{"$f":"IF('[1]FISCAL(M)'!$L247=\"\",\"\",'[1]FISCAL(M)'!$L247)","v":-4037.7234651363619},{"$f":"IF('[1]FISCAL(M)'!$AY247=\"\",\"\",'[1]FISCAL(M)'!$AY247)","v":"n.d."},{"$f":"IF('[1]FISCAL(M)'!$BI247=\"\",\"\",'[1]FISCAL(M)'!$BI247)","v":"n.d."},{"$f":"IF('[1]FISCAL(M)'!$BS247=\"\",\"\",'[1]FISCAL(M)'!$BS247)","v":"n.d."},{"$f":"IF('[1]FISCAL(M)'!$AZ247=\"\",\"\",'[1]FISCAL(M)'!$AZ247)","v":"n.d."},{"$f":"IF('[1]FISCAL(M)'!$BJ247=\"\",\"\",'[1]FISCAL(M)'!$BJ247)","v":"n.d."},{"$f":"IF('[1]FISCAL(M)'!$BT247=\"\",\"\",'[1]FISCAL(M)'!$BT247)","v":"n.d."},{"$f":"IF('[2]MONE(M)'!$AO247=\"\",\"\",'[2]MONE(M)'!$AO247)","v":8867636.6548686549},{"$f":"IF('[3]MONE(M)'!$AO247=\"\",\"\",'[3]MONE(M)'!$AO247)","v":8673.7691245499991},{"$f":"IF('[4]MONE(M)'!$AO247=\"\",\"\",'[4]MONE(M)'!$AO247)","v":82560.146147359672},{"$f":"+'[5]MONE(M)'!$AO247","v":138011.83783487632},{"$f":"IF('[6]MONE(M)'!$AO247=\"\",\"\",'[6]MONE(M)'!$AO247)","v":42865.041038729287},{"$f":"IF('[7]MONE(M)'!$AO247=\"\",\"\",'[7]MONE(M)'!$AO247)","v":350956.42670498998},{"$f":"IF('[8]MONE(M)'!$AO247=\"\",\"\",'[8]MONE(M)'!$AO247)","v":20080.086630845999},13.576656802550202,-6.2531006899954278,1.0204816305484199,1.9247812348975213,-7.9257226098780169,6.0006077528596879,1.9027380954190987,{"$f":"IF('[1]FISCAL(M)'!$K247=\"\",\"\",'[1]FISCAL(M)'!$K247)","v":-3119.9665378853624},{"$f":"+'[1]REAL(A)'!$AO$29","v":157527.17375242617},-1.9805894205838948,{"$f":"IF('[1]FISCAL(M)'!$L247=\"\",\"\",'[1]FISCAL(M)'!$L247)","v":-4037.7234651363619},{"$f":"+'[1]REAL(A)'!$AP$29","v":184643.80875242618},-2.1867635272570749,71175.328929088515,{"$f":"'[1]Gráfico REM'!BG241","v":13843.07236329505},{"$f":"'[1]Gráfico REM'!BH241","v":53077.661499435198},{"$f":"'[1]Gráfico REM'!BI241","v":4254.5950663582553},2.8025207370162342,22.793263400390629,-0.25430198770483026,-10.402070949695085,106381.4015193785,{"$f":"'[1]Gráfico REM'!BK241","v":14709.66649918505},{"$f":"'[1]Gráfico REM'!BL241","v":73157.748130281194},{"$f":"'[1]Gráfico REM'!BM241","v":18513.986889912252},2.2318600391024734,21.698318752444479,0.32860922192867736,-2.8332350160334308]
[2009,"noviembre","2009-noviembre",{"$f":"IF('[1]REAL IPC(M)'!$AL248=\"\",\"\",+'[1]REAL IPC(M)'!$AL248)","v":1.6202989755659036},{"$f":"IF('[1]REAL IPC(M)'!$BE248=\"\",\"\",+'[1]REAL IPC(M)'!$BE248)","v":5.4787658968959985},{"$f":"IF('[1]REAL IPC(M)'!$AM248=\"\",\"\",+'[1]REAL IPC(M)'!$AM248)","v":1.5975358003941231},{"$f":"IF('[1]REAL IPC(M)'!$BI248=\"\",\"\",+'[1]REAL IPC(M)'!$BI248)","v":5.3270123046112561},{"$f":"IF('[1]REAL IMAE(M)'!BJ248=\"\",\"\",'[1]REAL IMAE(M)'!BJ248)","v":1.9990699248032318},{"$f":"IF('[1]REAL IMAE(M)'!BK248=\"\",\"\",'[1]REAL IMAE(M)'!BK248)","v":2.4732872899153602},{"$f":"IF('[1]REAL IMAE(M)'!BN248=\"\",\"\",'[1]REAL IMAE(M)'!BN248)","v":1.9377204275129678},{"$f":"IF('[1]REAL IMAE(M)'!BO248=\"\",\"\",'[1]REAL IMAE(M)'!BO248)","v":2.8299340676440909},{"$f":"IF('[1]EXT RIN(M)'!$K248=\"\",\"\",'[1]EXT RIN(M)'!$K248)","v":17499.329330105291},"",{"$f":"IF('[1]EXT RIN(M)'!$L248=\"\",\"\",'[1]EXT RIN(M)'!$L248)","v":20526.217725065289},"",{"$f":"IF('[1]MONE(M)CARD'!EG248=\"\",\"\",'[1]MONE(M)CARD'!EG248)","v":18195.25119288118},{"$f":"IF('[1]MONE(M)CARD'!EK248=\"\",\"\",'[1]MONE(M)CARD'!EK248)","v":32987.566592122756},{"$f":"IF('[1]MONE(M)CARD'!EP248=\"\",\"\",'[1]MONE(M)CARD'!EP248)","v":19139.385044045761},{"$f":"IF('[1]MONE(M)CARD'!ES248=\"\",\"\",'[1]MONE(M)CARD'!ES248)","v":3.1786640944009958},{"$f":"IF('[1]MONE(M)CARD'!EV248=\"\",\"\",'[1]MONE(M)CARD'!EV248)","v":2.3134329476919069},{"$f":"IF('[1]MONE(M)CARD'!EZ248=\"\",\"\",'[1]MONE(M)CARD'!EZ248)","v":4.8084543401106794},{"$f":"IF('[1]MONE(M)CAPARD'!FC248=\"\",\"\",'[1]MONE(M)CAPARD'!FC248)","v":22199.86999786958},{"$f":"IF('[1]MONE(M)CAPARD'!FG248=\"\",\"\",'[1]MONE(M)CAPARD'!FG248)","v":50128.952639542767},{"$f":"IF('[1]MONE(M)CAPARD'!FL248=\"\",\"\",'[1]MONE(M)CAPARD'!FL248)","v":19139.385044045775},{"$f":"IF('[1]MONE(M)CAPARD'!FO248=\"\",\"\",'[1]MONE(M)CAPARD'!FO248)","v":4.8852503687026205},{"$f":"IF('[1]MONE(M)CAPARD'!FR248=\"\",\"\",'[1]MONE(M)CAPARD'!FR248)","v":4.2455757739318756},{"$f":"IF('[1]MONE(M)CAPARD'!FV248=\"\",\"\",'[1]MONE(M)CAPARD'!FV248)","v":5.8004376632163179},{"$f":"IF('[1]MONE(M)CARD'!FV248=\"\",\"\",'[1]MONE(M)CARD'!FV248)","v":2147.2447606646715},{"$f":"IF('[1]MONE(M)CARD'!GD248=\"\",\"\",'[1]MONE(M)CARD'!GD248)","v":62.749986184571355},{"$f":"IF('[1]MONE(M)CARD'!GE248=\"\",\"\",'[1]MONE(M)CARD'!GE248)","v":5579.747203569128},12.596799649228373,{"$f":"IF('[9]II.2.Balance OSD-Activos'!J106=\"\",\"\",'[9]II.2.Balance OSD-Activos'!J106)","v":156.08274243807494},{"$f":"IF('[9]II.2.Balance OSD-Activos'!N106=\"\",\"\",'[9]II.2.Balance OSD-Activos'!N106)","v":338.04262439310685},{"$f":"IF('[9]II.2.Balance OSD-Activos'!R106=\"\",\"\",'[9]II.2.Balance OSD-Activos'!R106)","v":23691.543916331779},{"$f":"IF('[9]II.2.Balance OSD-Activos'!S106=\"\",\"\",'[9]II.2.Balance OSD-Activos'!S106)","v":27436.544264488708},23847.626658769852,51622.213547651671,49.409536682501141,-2.8335913371404509,-17.820032079641145,-3.0569121631778162,0.63405665847273696,-1.1411465624441841,0.1929084253514568,{"$f":"IF('[1]MONE(M)CAPARD'!GS248=\"\",\"\",'[1]MONE(M)CAPARD'!GS248)","v":10502.363016844487},{"$f":"IF('[1]MONE(M)CARD'!HA248=\"\",\"\",'[1]MONE(M)CAPARD'!HA248)","v":6108.7012250391281},{"$f":"IF('[1]MONE(M)CAPARD'!HB248=\"\",\"\",'[1]MONE(M)CAPARD'!HB248)","v":4393.6617918053589},"n.d.",{"$f":"IF('[10]II.2.Balance OSD-Activos'!J106=\"\",\"\",'[10]II.2.Balance OSD-Activos'!J106)","v":464.68873906007497},{"$f":"IF('[10]II.2.Balance OSD-Activos'!N106=\"\",\"\",'[10]II.2.Balance OSD-Activos'!N106)","v":746.3517332931068},{"$f":"IF('[10]II.2.Balance OSD-Activos'!R106=\"\",\"\",'[10]II.2.Balance OSD-Activos'!R106)","v":33811.777198491778},{"$f":"IF('[10]II.2.Balance OSD-Activos'!S106=\"\",\"\",'[10]II.2.Balance OSD-Activos'!S106)","v":36629.031251118708},34276.465937551853,71651.848921963669,19.239654387630377,-2.8805444971212846,-15.937185417423628,-3.1275251098546564,1.9791423645177719,-0.62034084519626553,-0.12179011803334916,{"$f":"IF('[1]MONE(M)CAPARD'!AS248=\"\",\"\",'[1]MONE(M)CAPARD'!AS248)","v":9},{"$f":"IF('[1]MONE(M)CAPARD'!AT248=\"\",\"\",'[1]MONE(M)CAPARD'!AT248)","v":"n.a."},{"$f":"IF('[1]MONE(M)CAPARD'!AU248=\"\",\"\",'[1]MONE(M)CAPARD'!AU248)","v":4.5},{"$f":"IF('[1]MONE(M)CAPARD'!AV248=\"\",\"\",'[1]MONE(M)CAPARD'!AV248)","v":4.5},{"$f":"IF('[1]MONE(M)CAPARD'!AW248=\"\",\"\",'[1]MONE(M)CAPARD'!AW248)","v":"n.a."},{"$f":"IF('[1]MONE(M)CAPARD'!AX248=\"\",\"\",'[1]MONE(M)CAPARD'!AX248)","v":4},{"$f":"IF('[1]MONE(M)CAPARD'!AY248=\"\",\"\",'[1]MONE(M)CAPARD'!AY248)","v":"n.a."},{"$f":"IF('[1]FISCAL(M)'!$K248=\"\",\"\",'[1]FISCAL(M)'!$K248)","v":-4120.0053023596656},{"$f":"IF('[1]FISCAL(M)'!$L248=\"\",\"\",'[1]FISCAL(M)'!$L248)","v":-5240.227298560666},{"$f":"IF('[1]FISCAL(M)'!$AY248=\"\",\"\",'[1]FISCAL(M)'!$AY248)","v":"n.d."},{"$f":"IF('[1]FISCAL(M)'!$BI248=\"\",\"\",'[1]FISCAL(M)'!$BI248)","v":"n.d."},{"$f":"IF('[1]FISCAL(M)'!$BS248=\"\",\"\",'[1]FISCAL(M)'!$BS248)","v":"n.d."},{"$f":"IF('[1]FISCAL(M)'!$AZ248=\"\",\"\",'[1]FISCAL(M)'!$AZ248)","v":"n.d."},{"$f":"IF('[1]FISCAL(M)'!$BJ248=\"\",\"\",'[1]FISCAL(M)'!$BJ248)","v":"n.d."},{"$f":"IF('[1]FISCAL(M)'!$BT248=\"\",\"\",'[1]FISCAL(M)'!$BT248)","v":"n.d."},{"$f":"IF('[2]MONE(M)'!$AO248=\"\",\"\",'[2]MONE(M)'!$AO248)","v":8721436.4524679184},{"$f":"IF('[3]MONE(M)'!$AO248=\"\",\"\",'[3]MONE(M)'!$AO248)","v":8668.245999230001},{"$f":"IF('[4]MONE(M)'!$AO248=\"\",\"\",'[4]MONE(M)'!$AO248)","v":82656.796774849383},{"$f":"+'[5]MONE(M)'!$AO248","v":138932.48944372483},{"$f":"IF('[6]MONE(M)'!$AO248=\"\",\"\",'[6]MONE(M)'!$AO248)","v":43103.049052094284},{"$f":"IF('[7]MONE(M)'!$AO248=\"\",\"\",'[7]MONE(M)'!$AO248)","v":356943.13834579004},{"$f":"IF('[8]MONE(M)'!$AO248=\"\",\"\",'[8]MONE(M)'!$AO248)","v":20053.489628337},12.47795754911898,-6.280643711607981,-0.3778745585305221,2.1396956222186958,-8.2262893153439265,6.3891772772979305,1.2092512216758777,{"$f":"IF('[1]FISCAL(M)'!$K248=\"\",\"\",'[1]FISCAL(M)'!$K248)","v":-4120.0053023596656},{"$f":"+'[1]REAL(A)'!$AO$29","v":157527.17375242617},-2.615425138544524,{"$f":"IF('[1]FISCAL(M)'!$L248=\"\",\"\",'[1]FISCAL(M)'!$L248)","v":-5240.227298560666},{"$f":"+'[1]REAL(A)'!$AP$29","v":184643.80875242618},-2.8380195003380044,72334.29691882123,{"$f":"'[1]Gráfico REM'!BG242","v":14246.507210488116},{"$f":"'[1]Gráfico REM'!BH242","v":53804.723774202561},{"$f":"'[1]Gráfico REM'!BI242","v":4283.0659341305563},3.2541977651572962,24.691775088136136,-9.6607009808236111E-2,-10.254369082484981,107143.23057100523,{"$f":"'[1]Gráfico REM'!BK242","v":15137.433178918116},{"$f":"'[1]Gráfico REM'!BL242","v":73858.213402539564},{"$f":"'[1]Gráfico REM'!BM242","v":18147.583989547558},2.3458015333637672,24.015773052512191,0.25460658309282014,-3.5255779001581389]
[2009,"diciembre","2009-diciembre",{"$f":"IF('[1]REAL IPC(M)'!$AL249=\"\",\"\",+'[1]REAL IPC(M)'!$AL249)","v":2.3552527302808768},{"$f":"IF('[1]REAL IPC(M)'!$BE249=\"\",\"\",+'[1]REAL IPC(M)'!$BE249)","v":5.412602115700782},{"$f":"IF('[1]REAL IPC(M)'!$AM249=\"\",\"\",+'[1]REAL IPC(M)'!$AM249)","v":2.3088698713655376},{"$f":"IF('[1]REAL IPC(M)'!$BI249=\"\",\"\",+'[1]REAL IPC(M)'!$BI249)","v":5.2647680267732477},{"$f":"IF('[1]REAL IMAE(M)'!BJ249=\"\",\"\",'[1]REAL IMAE(M)'!BJ249)","v":3.4044291660963344},{"$f":"IF('[1]REAL IMAE(M)'!BK249=\"\",\"\",'[1]REAL IMAE(M)'!BK249)","v":2.5643728653936826},{"$f":"IF('[1]REAL IMAE(M)'!BN249=\"\",\"\",'[1]REAL IMAE(M)'!BN249)","v":3.4252126852384102},{"$f":"IF('[1]REAL IMAE(M)'!BO249=\"\",\"\",'[1]REAL IMAE(M)'!BO249)","v":2.9253066943835115},{"$f":"IF('[1]EXT RIN(M)'!$K249=\"\",\"\",'[1]EXT RIN(M)'!$K249)","v":18653.296140537856},18653.296140537856,{"$f":"IF('[1]EXT RIN(M)'!$L249=\"\",\"\",'[1]EXT RIN(M)'!$L249)","v":21857.829325376384},21857.829325376384,{"$f":"IF('[1]MONE(M)CARD'!EG249=\"\",\"\",'[1]MONE(M)CARD'!EG249)","v":19383.996948382621},{"$f":"IF('[1]MONE(M)CARD'!EK249=\"\",\"\",'[1]MONE(M)CARD'!EK249)","v":33058.239608700249},{"$f":"IF('[1]MONE(M)CARD'!EP249=\"\",\"\",'[1]MONE(M)CARD'!EP249)","v":19184.008665731191},{"$f":"IF('[1]MONE(M)CARD'!ES249=\"\",\"\",'[1]MONE(M)CARD'!ES249)","v":5.2365865737634909},{"$f":"IF('[1]MONE(M)CARD'!EV249=\"\",\"\",'[1]MONE(M)CARD'!EV249)","v":4.0240045046630923},{"$f":"IF('[1]MONE(M)CARD'!EZ249=\"\",\"\",'[1]MONE(M)CARD'!EZ249)","v":5.8725595748778225},{"$f":"IF('[1]MONE(M)CAPARD'!FC249=\"\",\"\",'[1]MONE(M)CAPARD'!FC249)","v":23787.49936484102},{"$f":"IF('[1]MONE(M)CAPARD'!FG249=\"\",\"\",'[1]MONE(M)CAPARD'!FG249)","v":50466.881519530245},{"$f":"IF('[1]MONE(M)CAPARD'!FL249=\"\",\"\",'[1]MONE(M)CAPARD'!FL249)","v":19184.008665731191},{"$f":"IF('[1]MONE(M)CAPARD'!FO249=\"\",\"\",'[1]MONE(M)CAPARD'!FO249)","v":7.232735130407586},{"$f":"IF('[1]MONE(M)CAPARD'!FR249=\"\",\"\",'[1]MONE(M)CAPARD'!FR249)","v":5.7848964185501117},{"$f":"IF('[1]MONE(M)CAPARD'!FV249=\"\",\"\",'[1]MONE(M)CAPARD'!FV249)","v":6.8680472703759987},{"$f":"IF('[1]MONE(M)CARD'!FV249=\"\",\"\",'[1]MONE(M)CARD'!FV249)","v":2103.0269129795033},{"$f":"IF('[1]MONE(M)CARD'!GD249=\"\",\"\",'[1]MONE(M)CARD'!GD249)","v":57.175376084824208},{"$f":"IF('[1]MONE(M)CARD'!GE249=\"\",\"\",'[1]MONE(M)CARD'!GE249)","v":5244.7974287896977},3.7664016582583448,{"$f":"IF('[9]II.2.Balance OSD-Activos'!J107=\"\",\"\",'[9]II.2.Balance OSD-Activos'!J107)","v":174.46925896548476},{"$f":"IF('[9]II.2.Balance OSD-Activos'!N107=\"\",\"\",'[9]II.2.Balance OSD-Activos'!N107)","v":342.93146480067946},{"$f":"IF('[9]II.2.Balance OSD-Activos'!R107=\"\",\"\",'[9]II.2.Balance OSD-Activos'!R107)","v":23907.579842636187},{"$f":"IF('[9]II.2.Balance OSD-Activos'!S107=\"\",\"\",'[9]II.2.Balance OSD-Activos'!S107)","v":27386.743989407816},24082.049101601671,51811.724555810171,65.064112746850782,-2.6271741222585243,-15.371963570860892,-2.9177124358855777,0.47219811519643162,-1.1133227706485727,2.7823791795611452E-2,{"$f":"IF('[1]MONE(M)CAPARD'!GS249=\"\",\"\",'[1]MONE(M)CAPARD'!GS249)","v":10675.496447045593},{"$f":"IF('[1]MONE(M)CARD'!HA249=\"\",\"\",'[1]MONE(M)CAPARD'!HA249)","v":5764.4647834796979},{"$f":"IF('[1]MONE(M)CAPARD'!HB249=\"\",\"\",'[1]MONE(M)CAPARD'!HB249)","v":4911.0316635658946},"n.d.",{"$f":"IF('[10]II.2.Balance OSD-Activos'!J107=\"\",\"\",'[10]II.2.Balance OSD-Activos'!J107)","v":462.65725555948472},{"$f":"IF('[10]II.2.Balance OSD-Activos'!N107=\"\",\"\",'[10]II.2.Balance OSD-Activos'!N107)","v":748.62279156067962},{"$f":"IF('[10]II.2.Balance OSD-Activos'!R107=\"\",\"\",'[10]II.2.Balance OSD-Activos'!R107)","v":33724.903478186185},{"$f":"IF('[10]II.2.Balance OSD-Activos'!S107=\"\",\"\",'[10]II.2.Balance OSD-Activos'!S107)","v":36666.925727597816},34187.560733745668,71603.109252904163,12.981579011140209,-2.5502818747980438,-7.4777942497847754,-2.7337188268051649,2.0544848945784011,-0.3022133448612907,0.31812750033497483,{"$f":"IF('[1]MONE(M)CAPARD'!AS249=\"\",\"\",'[1]MONE(M)CAPARD'!AS249)","v":9},{"$f":"IF('[1]MONE(M)CAPARD'!AT249=\"\",\"\",'[1]MONE(M)CAPARD'!AT249)","v":"n.a."},{"$f":"IF('[1]MONE(M)CAPARD'!AU249=\"\",\"\",'[1]MONE(M)CAPARD'!AU249)","v":4.5},{"$f":"IF('[1]MONE(M)CAPARD'!AV249=\"\",\"\",'[1]MONE(M)CAPARD'!AV249)","v":4.5},{"$f":"IF('[1]MONE(M)CAPARD'!AW249=\"\",\"\",'[1]MONE(M)CAPARD'!AW249)","v":"n.a."},{"$f":"IF('[1]MONE(M)CAPARD'!AX249=\"\",\"\",'[1]MONE(M)CAPARD'!AX249)","v":4},{"$f":"IF('[1]MONE(M)CAPARD'!AY249=\"\",\"\",'[1]MONE(M)CAPARD'!AY249)","v":"n.a."},{"$f":"IF('[1]FISCAL(M)'!$K249=\"\",\"\",'[1]FISCAL(M)'!$K249)","v":-5600.5145757326582},{"$f":"IF('[1]FISCAL(M)'!$L249=\"\",\"\",'[1]FISCAL(M)'!$L249)","v":-5594.6724984836574},{"$f":"IF('[1]FISCAL(M)'!$AY249=\"\",\"\",'[1]FISCAL(M)'!$AY249)","v":58466.162373634375},{"$f":"IF('[1]FISCAL(M)'!$BI249=\"\",\"\",'[1]FISCAL(M)'!$BI249)","v":27838.56334030678},{"$f":"IF('[1]FISCAL(M)'!$BS249=\"\",\"\",'[1]FISCAL(M)'!$BS249)","v":30627.599033327602},{"$f":"IF('[1]FISCAL(M)'!$AZ249=\"\",\"\",'[1]FISCAL(M)'!$AZ249)","v":69549.130284624378},{"$f":"IF('[1]FISCAL(M)'!$BJ249=\"\",\"\",'[1]FISCAL(M)'!$BJ249)","v":28771.377823616785},{"$f":"IF('[1]FISCAL(M)'!$BT249=\"\",\"\",'[1]FISCAL(M)'!$BT249)","v":40771.021506337602},{"$f":"IF('[2]MONE(M)'!$AO249=\"\",\"\",'[2]MONE(M)'!$AO249)","v":8854743.5806054734},{"$f":"IF('[3]MONE(M)'!$AO249=\"\",\"\",'[3]MONE(M)'!$AO249)","v":8756.3330770001521},{"$f":"IF('[4]MONE(M)'!$AO249=\"\",\"\",'[4]MONE(M)'!$AO249)","v":83044.35708254081},{"$f":"+'[5]MONE(M)'!$AO249","v":138807.94585617408},{"$f":"IF('[6]MONE(M)'!$AO249=\"\",\"\",'[6]MONE(M)'!$AO249)","v":42960.414410638696},{"$f":"IF('[7]MONE(M)'!$AO249=\"\",\"\",'[7]MONE(M)'!$AO249)","v":360918.06613902998},{"$f":"IF('[8]MONE(M)'!$AO249=\"\",\"\",'[8]MONE(M)'!$AO249)","v":19830.130507878999},7.3667687370214452,-4.4170215289603076,-2.6987739204442196,2.5058362240420573,-7.3137881303383834,7.9854357463250425,2.0864406026152249,{"$f":"IF('[1]FISCAL(M)'!$K249=\"\",\"\",'[1]FISCAL(M)'!$K249)","v":-5600.5145757326582},{"$f":"+'[1]REAL(A)'!$AO$29","v":157527.17375242617},-3.5552688735053253,{"$f":"IF('[1]FISCAL(M)'!$L249=\"\",\"\",'[1]FISCAL(M)'!$L249)","v":-5594.6724984836574},{"$f":"+'[1]REAL(A)'!$AP$29","v":184643.80875242618},-3.0299810951067943,72794.386775816776,{"$f":"'[1]Gráfico REM'!BG243","v":14520.484575155342},{"$f":"'[1]Gráfico REM'!BH243","v":53963.3974168805},{"$f":"'[1]Gráfico REM'!BI243","v":4310.5047837809379},3.093256909519182,22.922836484267251,-0.25705312707494654,-8.191001885428939,107236.59532585679,{"$f":"'[1]Gráfico REM'!BK243","v":15330.296102125341},{"$f":"'[1]Gráfico REM'!BL243","v":73793.527924759503},{"$f":"'[1]Gráfico REM'!BM243","v":18112.771298971937},2.6542507508230839,22.166747163304713,0.36206371136586757,-1.49616854060588]
[2010,"enero","2010-enero",{"$f":"IF('[1]REAL IPC(M)'!$AL250=\"\",\"\",+'[1]REAL IPC(M)'!$AL250)","v":3.6520459106079484},{"$f":"IF('[1]REAL IPC(M)'!$BE250=\"\",\"\",+'[1]REAL IPC(M)'!$BE250)","v":5.355870424256004},{"$f":"IF('[1]REAL IPC(M)'!$AM250=\"\",\"\",+'[1]REAL IPC(M)'!$AM250)","v":3.5886908262899642},{"$f":"IF('[1]REAL IPC(M)'!$BI250=\"\",\"\",+'[1]REAL IPC(M)'!$BI250)","v":5.2128456981062055},{"$f":"IF('[1]REAL IMAE(M)'!BJ250=\"\",\"\",'[1]REAL IMAE(M)'!BJ250)","v":3.9903508238665175},{"$f":"IF('[1]REAL IMAE(M)'!BK250=\"\",\"\",'[1]REAL IMAE(M)'!BK250)","v":2.6575507876809512},{"$f":"IF('[1]REAL IMAE(M)'!BN250=\"\",\"\",'[1]REAL IMAE(M)'!BN250)","v":3.9256996370931274},{"$f":"IF('[1]REAL IMAE(M)'!BO250=\"\",\"\",'[1]REAL IMAE(M)'!BO250)","v":3.0246458879572558},{"$f":"IF('[1]EXT RIN(M)'!$K250=\"\",\"\",'[1]EXT RIN(M)'!$K250)","v":18653.893631118262},"",{"$f":"IF('[1]EXT RIN(M)'!$L250=\"\",\"\",'[1]EXT RIN(M)'!$L250)","v":21679.004450107292},"",{"$f":"IF('[1]MONE(M)CARD'!EG250=\"\",\"\",'[1]MONE(M)CARD'!EG250)","v":19423.468815189357},{"$f":"IF('[1]MONE(M)CARD'!EK250=\"\",\"\",'[1]MONE(M)CARD'!EK250)","v":33014.341221705436},{"$f":"IF('[1]MONE(M)CARD'!EP250=\"\",\"\",'[1]MONE(M)CARD'!EP250)","v":19446.844484089568},{"$f":"IF('[1]MONE(M)CARD'!ES250=\"\",\"\",'[1]MONE(M)CARD'!ES250)","v":6.8407742707109476},{"$f":"IF('[1]MONE(M)CARD'!EV250=\"\",\"\",'[1]MONE(M)CARD'!EV250)","v":4.5184233708229105},{"$f":"IF('[1]MONE(M)CARD'!EZ250=\"\",\"\",'[1]MONE(M)CARD'!EZ250)","v":6.7030711092049833},{"$f":"IF('[1]MONE(M)CAPARD'!FC250=\"\",\"\",'[1]MONE(M)CAPARD'!FC250)","v":23923.432367018358},{"$f":"IF('[1]MONE(M)CAPARD'!FG250=\"\",\"\",'[1]MONE(M)CAPARD'!FG250)","v":50694.544338055428},{"$f":"IF('[1]MONE(M)CAPARD'!FL250=\"\",\"\",'[1]MONE(M)CAPARD'!FL250)","v":19446.844484089568},{"$f":"IF('[1]MONE(M)CAPARD'!FO250=\"\",\"\",'[1]MONE(M)CAPARD'!FO250)","v":9.2690513389540374},{"$f":"IF('[1]MONE(M)CAPARD'!FR250=\"\",\"\",'[1]MONE(M)CAPARD'!FR250)","v":6.8826304054933507},{"$f":"IF('[1]MONE(M)CAPARD'!FV250=\"\",\"\",'[1]MONE(M)CAPARD'!FV250)","v":8.1068162549845937},{"$f":"IF('[1]MONE(M)CARD'!FV250=\"\",\"\",'[1]MONE(M)CARD'!FV250)","v":2087.8962846441409},{"$f":"IF('[1]MONE(M)CARD'!GD250=\"\",\"\",'[1]MONE(M)CARD'!GD250)","v":59.569786774687515},{"$f":"IF('[1]MONE(M)CARD'!GE250=\"\",\"\",'[1]MONE(M)CARD'!GE250)","v":5626.2253250723925},14.628273319592999,{"$f":"IF('[9]II.2.Balance OSD-Activos'!J108=\"\",\"\",'[9]II.2.Balance OSD-Activos'!J108)","v":168.47927485651513},{"$f":"IF('[9]II.2.Balance OSD-Activos'!N108=\"\",\"\",'[9]II.2.Balance OSD-Activos'!N108)","v":331.26101516861002},{"$f":"IF('[9]II.2.Balance OSD-Activos'!R108=\"\",\"\",'[9]II.2.Balance OSD-Activos'!R108)","v":23859.486224830362},{"$f":"IF('[9]II.2.Balance OSD-Activos'!S108=\"\",\"\",'[9]II.2.Balance OSD-Activos'!S108)","v":27477.513411857566},24027.965499686878,51836.739926713053,45.144497078892186,0.42571076217241544,-13.768180291838284,0.20770100620348675,1.118806720414911,0.68562248454540065,1.7989452551939733,{"$f":"IF('[1]MONE(M)CAPARD'!GS250=\"\",\"\",'[1]MONE(M)CAPARD'!GS250)","v":10747.799486635986},{"$f":"IF('[1]MONE(M)CARD'!HA250=\"\",\"\",'[1]MONE(M)CAPARD'!HA250)","v":6191.6730615423912},{"$f":"IF('[1]MONE(M)CAPARD'!HB250=\"\",\"\",'[1]MONE(M)CAPARD'!HB250)","v":4556.1264250935947},"n.d.",{"$f":"IF('[10]II.2.Balance OSD-Activos'!J108=\"\",\"\",'[10]II.2.Balance OSD-Activos'!J108)","v":457.85124430651513},{"$f":"IF('[10]II.2.Balance OSD-Activos'!N108=\"\",\"\",'[10]II.2.Balance OSD-Activos'!N108)","v":733.05624012860994},{"$f":"IF('[10]II.2.Balance OSD-Activos'!R108=\"\",\"\",'[10]II.2.Balance OSD-Activos'!R108)","v":33579.11852367036},{"$f":"IF('[10]II.2.Balance OSD-Activos'!S108=\"\",\"\",'[10]II.2.Balance OSD-Activos'!S108)","v":36942.571546907566},34036.969767976872,71712.597555013053,9.6999427721043965,-1.1471808232642489,-10.267152664656997,-1.2802775028016189,2.9345219387406196,0.80731412344119402,1.1095274683024847,{"$f":"IF('[1]MONE(M)CAPARD'!AS250=\"\",\"\",'[1]MONE(M)CAPARD'!AS250)","v":9},{"$f":"IF('[1]MONE(M)CAPARD'!AT250=\"\",\"\",'[1]MONE(M)CAPARD'!AT250)","v":"n.a."},{"$f":"IF('[1]MONE(M)CAPARD'!AU250=\"\",\"\",'[1]MONE(M)CAPARD'!AU250)","v":4.5},{"$f":"IF('[1]MONE(M)CAPARD'!AV250=\"\",\"\",'[1]MONE(M)CAPARD'!AV250)","v":4.5},{"$f":"IF('[1]MONE(M)CAPARD'!AW250=\"\",\"\",'[1]MONE(M)CAPARD'!AW250)","v":"n.a."},{"$f":"IF('[1]MONE(M)CAPARD'!AX250=\"\",\"\",'[1]MONE(M)CAPARD'!AX250)","v":4},{"$f":"IF('[1]MONE(M)CAPARD'!AY250=\"\",\"\",'[1]MONE(M)CAPARD'!AY250)","v":"n.a."},{"$f":"IF('[1]FISCAL(M)'!$K250=\"\",\"\",'[1]FISCAL(M)'!$K250)","v":-95.214270811794705},{"$f":"IF('[1]FISCAL(M)'!$L250=\"\",\"\",'[1]FISCAL(M)'!$L250)","v":-196.91634431179469},{"$f":"IF('[1]FISCAL(M)'!$AY250=\"\",\"\",'[1]FISCAL(M)'!$AY250)","v":"n.d."},{"$f":"IF('[1]FISCAL(M)'!$BI250=\"\",\"\",'[1]FISCAL(M)'!$BI250)","v":"n.d."},{"$f":"IF('[1]FISCAL(M)'!$BS250=\"\",\"\",'[1]FISCAL(M)'!$BS250)","v":"n.d."},{"$f":"IF('[1]FISCAL(M)'!$AZ250=\"\",\"\",'[1]FISCAL(M)'!$AZ250)","v":"n.d."},{"$f":"IF('[1]FISCAL(M)'!$BJ250=\"\",\"\",'[1]FISCAL(M)'!$BJ250)","v":"n.d."},{"$f":"IF('[1]FISCAL(M)'!$BT250=\"\",\"\",'[1]FISCAL(M)'!$BT250)","v":"n.d."},{"$f":"IF('[2]MONE(M)'!$AO250=\"\",\"\",'[2]MONE(M)'!$AO250)","v":8837210.8583729882},{"$f":"IF('[3]MONE(M)'!$AO250=\"\",\"\",'[3]MONE(M)'!$AO250)","v":8713.9565519601529},{"$f":"IF('[4]MONE(M)'!$AO250=\"\",\"\",'[4]MONE(M)'!$AO250)","v":83425.302783254505},{"$f":"+'[5]MONE(M)'!$AO250","v":139130.11851586917},{"$f":"IF('[6]MONE(M)'!$AO250=\"\",\"\",'[6]MONE(M)'!$AO250)","v":42687.054203158041},{"$f":"IF('[7]MONE(M)'!$AO250=\"\",\"\",'[7]MONE(M)'!$AO250)","v":362454.93796988996},{"$f":"IF('[8]MONE(M)'!$AO250=\"\",\"\",'[8]MONE(M)'!$AO250)","v":19917.52864158},6.3611273081439101,-4.6878230264896796,0.68490266692415869,1.9444348866115568,-6.6741122536062019,10.827182775303257,1.5022583036576886,{"$f":"IF('[1]FISCAL(M)'!$K250=\"\",\"\",'[1]FISCAL(M)'!$K250)","v":-95.214270811794705},{"$f":"+'[1]REAL(A)'!$AO$30","v":176102.10453812065},-5.4067650731103992E-2,{"$f":"IF('[1]FISCAL(M)'!$L250=\"\",\"\",'[1]FISCAL(M)'!$L250)","v":-196.91634431179469},{"$f":"+'[1]REAL(A)'!$AP$30","v":205542.39353812064},-9.5803274897289681E-2,73321.949835464256,{"$f":"'[1]Gráfico REM'!BG244","v":14914.272919321982},{"$f":"'[1]Gráfico REM'!BH244","v":54071.52295072312},{"$f":"'[1]Gráfico REM'!BI244","v":4336.1539654191565},4.9154536083616751,26.590829103573398,1.5408507149911932,-10.672436430011345,107704.59504134426,{"$f":"'[1]Gráfico REM'!BK244","v":15742.749697961983},{"$f":"'[1]Gráfico REM'!BL244","v":73989.05159230312},{"$f":"'[1]Gráfico REM'!BM244","v":17972.793751079156},3.823147390875703,26.167524149604859,1.5304589205065833,-2.2533171150366127]
[2010,"febrero","2010-febrero",{"$f":"IF('[1]REAL IPC(M)'!$AL251=\"\",\"\",+'[1]REAL IPC(M)'!$AL251)","v":4.0358776359887605},{"$f":"IF('[1]REAL IPC(M)'!$BE251=\"\",\"\",+'[1]REAL IPC(M)'!$BE251)","v":5.3079967120797544},{"$f":"IF('[1]REAL IPC(M)'!$AM251=\"\",\"\",+'[1]REAL IPC(M)'!$AM251)","v":3.921963857518751},{"$f":"IF('[1]REAL IPC(M)'!$BI251=\"\",\"\",+'[1]REAL IPC(M)'!$BI251)","v":5.1706396305991609},{"$f":"IF('[1]REAL IMAE(M)'!BJ251=\"\",\"\",'[1]REAL IMAE(M)'!BJ251)","v":5.462204490330258},{"$f":"IF('[1]REAL IMAE(M)'!BK251=\"\",\"\",'[1]REAL IMAE(M)'!BK251)","v":2.7514828464956897},{"$f":"IF('[1]REAL IMAE(M)'!BN251=\"\",\"\",'[1]REAL IMAE(M)'!BN251)","v":5.5050338967892687},{"$f":"IF('[1]REAL IMAE(M)'!BO251=\"\",\"\",'[1]REAL IMAE(M)'!BO251)","v":3.1264651216190709},{"$f":"IF('[1]EXT RIN(M)'!$K251=\"\",\"\",'[1]EXT RIN(M)'!$K251)","v":18456.284649492049},"",{"$f":"IF('[1]EXT RIN(M)'!$L251=\"\",\"\",'[1]EXT RIN(M)'!$L251)","v":21154.947260702051},"",{"$f":"IF('[1]MONE(M)CARD'!EG251=\"\",\"\",'[1]MONE(M)CARD'!EG251)","v":19245.146778951126},{"$f":"IF('[1]MONE(M)CARD'!EK251=\"\",\"\",'[1]MONE(M)CARD'!EK251)","v":33587.479911192},{"$f":"IF('[1]MONE(M)CARD'!EP251=\"\",\"\",'[1]MONE(M)CARD'!EP251)","v":19826.392298175531},{"$f":"IF('[1]MONE(M)CARD'!ES251=\"\",\"\",'[1]MONE(M)CARD'!ES251)","v":9.7577743403588268},{"$f":"IF('[1]MONE(M)CARD'!EV251=\"\",\"\",'[1]MONE(M)CARD'!EV251)","v":6.2351687844549586},{"$f":"IF('[1]MONE(M)CARD'!EZ251=\"\",\"\",'[1]MONE(M)CARD'!EZ251)","v":8.0240341069330867},{"$f":"IF('[1]MONE(M)CAPARD'!FC251=\"\",\"\",'[1]MONE(M)CAPARD'!FC251)","v":23560.028974820125},{"$f":"IF('[1]MONE(M)CAPARD'!FG251=\"\",\"\",'[1]MONE(M)CAPARD'!FG251)","v":51477.971576571996},{"$f":"IF('[1]MONE(M)CAPARD'!FL251=\"\",\"\",'[1]MONE(M)CAPARD'!FL251)","v":19826.392298175531},{"$f":"IF('[1]MONE(M)CAPARD'!FO251=\"\",\"\",'[1]MONE(M)CAPARD'!FO251)","v":10.983021762607748},{"$f":"IF('[1]MONE(M)CAPARD'!FR251=\"\",\"\",'[1]MONE(M)CAPARD'!FR251)","v":8.1068028522072169},{"$f":"IF('[1]MONE(M)CAPARD'!FV251=\"\",\"\",'[1]MONE(M)CAPARD'!FV251)","v":9.1133746993091957},{"$f":"IF('[1]MONE(M)CARD'!FV251=\"\",\"\",'[1]MONE(M)CARD'!FV251)","v":2149.2692139288347},{"$f":"IF('[1]MONE(M)CARD'!GD251=\"\",\"\",'[1]MONE(M)CARD'!GD251)","v":63.272034237313605},{"$f":"IF('[1]MONE(M)CARD'!GE251=\"\",\"\",'[1]MONE(M)CARD'!GE251)","v":5554.5750439059539},9.6836411295837763,{"$f":"IF('[9]II.2.Balance OSD-Activos'!J109=\"\",\"\",'[9]II.2.Balance OSD-Activos'!J109)","v":177.53425087528387},{"$f":"IF('[9]II.2.Balance OSD-Activos'!N109=\"\",\"\",'[9]II.2.Balance OSD-Activos'!N109)","v":325.2546168496433},{"$f":"IF('[9]II.2.Balance OSD-Activos'!R109=\"\",\"\",'[9]II.2.Balance OSD-Activos'!R109)","v":23954.336870114086},{"$f":"IF('[9]II.2.Balance OSD-Activos'!S109=\"\",\"\",'[9]II.2.Balance OSD-Activos'!S109)","v":27587.099164554911},24131.87112098937,52044.224902393922,28.906869962205306,0.10942224448897697,-13.422876493322654,-5.6052771627623788E-2,3.232339897905212,1.6399689499056125,0.95434646536021184,{"$f":"IF('[1]MONE(M)CAPARD'!GS251=\"\",\"\",'[1]MONE(M)CAPARD'!GS251)","v":11089.23817944543},{"$f":"IF('[1]MONE(M)CARD'!HA251=\"\",\"\",'[1]MONE(M)CAPARD'!HA251)","v":6133.0611536359538},{"$f":"IF('[1]MONE(M)CAPARD'!HB251=\"\",\"\",'[1]MONE(M)CAPARD'!HB251)","v":4956.1770258094766},"n.d.",{"$f":"IF('[10]II.2.Balance OSD-Activos'!J109=\"\",\"\",'[10]II.2.Balance OSD-Activos'!J109)","v":455.70228323928393},{"$f":"IF('[10]II.2.Balance OSD-Activos'!N109=\"\",\"\",'[10]II.2.Balance OSD-Activos'!N109)","v":731.02489094964324},{"$f":"IF('[10]II.2.Balance OSD-Activos'!R109=\"\",\"\",'[10]II.2.Balance OSD-Activos'!R109)","v":33876.451569194083},{"$f":"IF('[10]II.2.Balance OSD-Activos'!S109=\"\",\"\",'[10]II.2.Balance OSD-Activos'!S109)","v":36939.071261414909},34332.153852433366,72002.250004797912,5.708747305274664,-0.84458451376825394,-10.717205222656922,-0.92720522660798554,4.1098798484406229,1.5199839739092003,0.71266985046800624,{"$f":"IF('[1]MONE(M)CAPARD'!AS251=\"\",\"\",'[1]MONE(M)CAPARD'!AS251)","v":9},{"$f":"IF('[1]MONE(M)CAPARD'!AT251=\"\",\"\",'[1]MONE(M)CAPARD'!AT251)","v":"n.a."},{"$f":"IF('[1]MONE(M)CAPARD'!AU251=\"\",\"\",'[1]MONE(M)CAPARD'!AU251)","v":4.5},{"$f":"IF('[1]MONE(M)CAPARD'!AV251=\"\",\"\",'[1]MONE(M)CAPARD'!AV251)","v":4.5},{"$f":"IF('[1]MONE(M)CAPARD'!AW251=\"\",\"\",'[1]MONE(M)CAPARD'!AW251)","v":"n.a."},{"$f":"IF('[1]MONE(M)CAPARD'!AX251=\"\",\"\",'[1]MONE(M)CAPARD'!AX251)","v":4},{"$f":"IF('[1]MONE(M)CAPARD'!AY251=\"\",\"\",'[1]MONE(M)CAPARD'!AY251)","v":"n.a."},{"$f":"IF('[1]FISCAL(M)'!$K251=\"\",\"\",'[1]FISCAL(M)'!$K251)","v":-862.96624883824916},{"$f":"IF('[1]FISCAL(M)'!$L251=\"\",\"\",'[1]FISCAL(M)'!$L251)","v":-1088.4290208482491},{"$f":"IF('[1]FISCAL(M)'!$AY251=\"\",\"\",'[1]FISCAL(M)'!$AY251)","v":"n.d."},{"$f":"IF('[1]FISCAL(M)'!$BI251=\"\",\"\",'[1]FISCAL(M)'!$BI251)","v":"n.d."},{"$f":"IF('[1]FISCAL(M)'!$BS251=\"\",\"\",'[1]FISCAL(M)'!$BS251)","v":"n.d."},{"$f":"IF('[1]FISCAL(M)'!$AZ251=\"\",\"\",'[1]FISCAL(M)'!$AZ251)","v":"n.d."},{"$f":"IF('[1]FISCAL(M)'!$BJ251=\"\",\"\",'[1]FISCAL(M)'!$BJ251)","v":"n.d."},{"$f":"IF('[1]FISCAL(M)'!$BT251=\"\",\"\",'[1]FISCAL(M)'!$BT251)","v":"n.d."},{"$f":"IF('[2]MONE(M)'!$AO251=\"\",\"\",'[2]MONE(M)'!$AO251)","v":8818985.6963433195},{"$f":"IF('[3]MONE(M)'!$AO251=\"\",\"\",'[3]MONE(M)'!$AO251)","v":8610.5726310601349},{"$f":"IF('[4]MONE(M)'!$AO251=\"\",\"\",'[4]MONE(M)'!$AO251)","v":82435.750228346878},{"$f":"+'[5]MONE(M)'!$AO251","v":139065.219910154},{"$f":"IF('[6]MONE(M)'!$AO251=\"\",\"\",'[6]MONE(M)'!$AO251)","v":42452.827677035995},{"$f":"IF('[7]MONE(M)'!$AO251=\"\",\"\",'[7]MONE(M)'!$AO251)","v":367857.60218207998},{"$f":"IF('[8]MONE(M)'!$AO251=\"\",\"\",'[8]MONE(M)'!$AO251)","v":20013.656144679},4.8475397809677023,-5.6008322384257685,-0.4549456724735057,1.7579687403344479,-6.9173471035634542,12.957411814775433,1.7389908128091935,{"$f":"IF('[1]FISCAL(M)'!$K251=\"\",\"\",'[1]FISCAL(M)'!$K251)","v":-862.96624883824916},{"$f":"+'[1]REAL(A)'!$AO$30","v":176102.10453812065},-0.49003744225637219,{"$f":"IF('[1]FISCAL(M)'!$L251=\"\",\"\",'[1]FISCAL(M)'!$L251)","v":-1088.4290208482491},{"$f":"+'[1]REAL(A)'!$AP$30","v":205542.39353812064},-0.52953991734380823,73997.236828164125,{"$f":"'[1]Gráfico REM'!BG245","v":15346.65767461408},{"$f":"'[1]Gráfico REM'!BH245","v":54308.287058429109},{"$f":"'[1]Gráfico REM'!BI245","v":4342.292095120938},6.0755002403377389,28.237803608744127,2.3091604397342813,-7.7904723477571158,108636.89062379411,{"$f":"'[1]Gráfico REM'!BK245","v":16285.18262999408},{"$f":"'[1]Gráfico REM'!BL245","v":74321.943203108109},{"$f":"'[1]Gráfico REM'!BM245","v":18029.764790691937},3.7225378013533428,28.363526403778195,2.1549954920094372,-6.5675686536734279]
[2010,"marzo","2010-marzo",{"$f":"IF('[1]REAL IPC(M)'!$AL252=\"\",\"\",+'[1]REAL IPC(M)'!$AL252)","v":4.845009871177175},{"$f":"IF('[1]REAL IPC(M)'!$BE252=\"\",\"\",+'[1]REAL IPC(M)'!$BE252)","v":5.2683091630195467},{"$f":"IF('[1]REAL IPC(M)'!$AM252=\"\",\"\",+'[1]REAL IPC(M)'!$AM252)","v":4.6170870125011643},{"$f":"IF('[1]REAL IPC(M)'!$BI252=\"\",\"\",+'[1]REAL IPC(M)'!$BI252)","v":5.1374356506381558},{"$f":"IF('[1]REAL IMAE(M)'!BJ252=\"\",\"\",'[1]REAL IMAE(M)'!BJ252)","v":6.1888862907524489},{"$f":"IF('[1]REAL IMAE(M)'!BK252=\"\",\"\",'[1]REAL IMAE(M)'!BK252)","v":2.8449137897975207},{"$f":"IF('[1]REAL IMAE(M)'!BN252=\"\",\"\",'[1]REAL IMAE(M)'!BN252)","v":6.4155112000658043},{"$f":"IF('[1]REAL IMAE(M)'!BO252=\"\",\"\",'[1]REAL IMAE(M)'!BO252)","v":3.229345944778772},{"$f":"IF('[1]EXT RIN(M)'!$K252=\"\",\"\",'[1]EXT RIN(M)'!$K252)","v":18137.456825361493},"",{"$f":"IF('[1]EXT RIN(M)'!$L252=\"\",\"\",'[1]EXT RIN(M)'!$L252)","v":21001.003596121493},"",{"$f":"IF('[1]MONE(M)CARD'!EG252=\"\",\"\",'[1]MONE(M)CARD'!EG252)","v":20089.618517984032},{"$f":"IF('[1]MONE(M)CARD'!EK252=\"\",\"\",'[1]MONE(M)CARD'!EK252)","v":34123.215059381444},{"$f":"IF('[1]MONE(M)CARD'!EP252=\"\",\"\",'[1]MONE(M)CARD'!EP252)","v":20335.070884190507},{"$f":"IF('[1]MONE(M)CARD'!ES252=\"\",\"\",'[1]MONE(M)CARD'!ES252)","v":14.589731452275799},{"$f":"IF('[1]MONE(M)CARD'!EV252=\"\",\"\",'[1]MONE(M)CARD'!EV252)","v":8.2108008099885055},{"$f":"IF('[1]MONE(M)CARD'!EZ252=\"\",\"\",'[1]MONE(M)CARD'!EZ252)","v":9.9318438705270573},{"$f":"IF('[1]MONE(M)CAPARD'!FC252=\"\",\"\",'[1]MONE(M)CAPARD'!FC252)","v":24486.502768394028},{"$f":"IF('[1]MONE(M)CAPARD'!FG252=\"\",\"\",'[1]MONE(M)CAPARD'!FG252)","v":52019.727382771438},{"$f":"IF('[1]MONE(M)CAPARD'!FL252=\"\",\"\",'[1]MONE(M)CAPARD'!FL252)","v":20335.0708841905},{"$f":"IF('[1]MONE(M)CAPARD'!FO252=\"\",\"\",'[1]MONE(M)CAPARD'!FO252)","v":15.817342516567701},{"$f":"IF('[1]MONE(M)CAPARD'!FR252=\"\",\"\",'[1]MONE(M)CAPARD'!FR252)","v":9.5769283655575244},{"$f":"IF('[1]MONE(M)CAPARD'!FV252=\"\",\"\",'[1]MONE(M)CAPARD'!FV252)","v":10.633782524102585},{"$f":"IF('[1]MONE(M)CARD'!FV252=\"\",\"\",'[1]MONE(M)CARD'!FV252)","v":2177.1792404336011},{"$f":"IF('[1]MONE(M)CARD'!GD252=\"\",\"\",'[1]MONE(M)CARD'!GD252)","v":54.535861841165932},{"$f":"IF('[1]MONE(M)CARD'!GE252=\"\",\"\",'[1]MONE(M)CARD'!GE252)","v":5716.0400701724629},15.560547050897021,{"$f":"IF('[9]II.2.Balance OSD-Activos'!J110=\"\",\"\",'[9]II.2.Balance OSD-Activos'!J110)","v":165.98553649606407},{"$f":"IF('[9]II.2.Balance OSD-Activos'!N110=\"\",\"\",'[9]II.2.Balance OSD-Activos'!N110)","v":329.04205887136641},{"$f":"IF('[9]II.2.Balance OSD-Activos'!R110=\"\",\"\",'[9]II.2.Balance OSD-Activos'!R110)","v":24215.48280267735},{"$f":"IF('[9]II.2.Balance OSD-Activos'!S110=\"\",\"\",'[9]II.2.Balance OSD-Activos'!S110)","v":28032.023419641482},24381.468339173414,52742.533817686264,35.864542434748969,2.1456331338572276,-11.186789405896446,1.9721624338844945,4.612972863639464,3.3443062851913341,1.7043373352857216,{"$f":"IF('[1]MONE(M)CAPARD'!GS252=\"\",\"\",'[1]MONE(M)CAPARD'!GS252)","v":11552.195679775728},{"$f":"IF('[1]MONE(M)CARD'!HA252=\"\",\"\",'[1]MONE(M)CAPARD'!HA252)","v":6238.4842165224645},{"$f":"IF('[1]MONE(M)CAPARD'!HB252=\"\",\"\",'[1]MONE(M)CAPARD'!HB252)","v":5313.7114632532639},"n.d.",{"$f":"IF('[10]II.2.Balance OSD-Activos'!J110=\"\",\"\",'[10]II.2.Balance OSD-Activos'!J110)","v":458.63859182606404},{"$f":"IF('[10]II.2.Balance OSD-Activos'!N110=\"\",\"\",'[10]II.2.Balance OSD-Activos'!N110)","v":753.42927209136644},{"$f":"IF('[10]II.2.Balance OSD-Activos'!R110=\"\",\"\",'[10]II.2.Balance OSD-Activos'!R110)","v":34234.895803987354},{"$f":"IF('[10]II.2.Balance OSD-Activos'!S110=\"\",\"\",'[10]II.2.Balance OSD-Activos'!S110)","v":37449.189187891483},34693.534395813418,72896.152855796274,7.689923995294401,0.94811660247886564,-1.4747832676073491,0.86352310340991334,5.1653719219252769,3.0447836593232802,1.52479968541408,{"$f":"IF('[1]MONE(M)CAPARD'!AS252=\"\",\"\",'[1]MONE(M)CAPARD'!AS252)","v":9},{"$f":"IF('[1]MONE(M)CAPARD'!AT252=\"\",\"\",'[1]MONE(M)CAPARD'!AT252)","v":"n.a."},{"$f":"IF('[1]MONE(M)CAPARD'!AU252=\"\",\"\",'[1]MONE(M)CAPARD'!AU252)","v":4.5},{"$f":"IF('[1]MONE(M)CAPARD'!AV252=\"\",\"\",'[1]MONE(M)CAPARD'!AV252)","v":4.5},{"$f":"IF('[1]MONE(M)CAPARD'!AW252=\"\",\"\",'[1]MONE(M)CAPARD'!AW252)","v":"n.a."},{"$f":"IF('[1]MONE(M)CAPARD'!AX252=\"\",\"\",'[1]MONE(M)CAPARD'!AX252)","v":4},{"$f":"IF('[1]MONE(M)CAPARD'!AY252=\"\",\"\",'[1]MONE(M)CAPARD'!AY252)","v":"n.a."},{"$f":"IF('[1]FISCAL(M)'!$K252=\"\",\"\",'[1]FISCAL(M)'!$K252)","v":-1078.3968086462139},{"$f":"IF('[1]FISCAL(M)'!$L252=\"\",\"\",'[1]FISCAL(M)'!$L252)","v":-1341.742072706214},{"$f":"IF('[1]FISCAL(M)'!$AY252=\"\",\"\",'[1]FISCAL(M)'!$AY252)","v":60199.394459518415},{"$f":"IF('[1]FISCAL(M)'!$BI252=\"\",\"\",'[1]FISCAL(M)'!$BI252)","v":29555.727301136245},{"$f":"IF('[1]FISCAL(M)'!$BS252=\"\",\"\",'[1]FISCAL(M)'!$BS252)","v":30643.667158382174},{"$f":"IF('[1]FISCAL(M)'!$AZ252=\"\",\"\",'[1]FISCAL(M)'!$AZ252)","v":71367.241064408416},{"$f":"IF('[1]FISCAL(M)'!$BJ252=\"\",\"\",'[1]FISCAL(M)'!$BJ252)","v":30581.921535156245},{"$f":"IF('[1]FISCAL(M)'!$BT252=\"\",\"\",'[1]FISCAL(M)'!$BT252)","v":40777.736786542169},{"$f":"IF('[2]MONE(M)'!$AO252=\"\",\"\",'[2]MONE(M)'!$AO252)","v":8604176.8285778258},{"$f":"IF('[3]MONE(M)'!$AO252=\"\",\"\",'[3]MONE(M)'!$AO252)","v":8632.6703606643932},{"$f":"IF('[4]MONE(M)'!$AO252=\"\",\"\",'[4]MONE(M)'!$AO252)","v":81799.399276366516},{"$f":"+'[5]MONE(M)'!$AO252","v":139300.3270845263},{"$f":"IF('[6]MONE(M)'!$AO252=\"\",\"\",'[6]MONE(M)'!$AO252)","v":41876.898141370002},{"$f":"IF('[7]MONE(M)'!$AO252=\"\",\"\",'[7]MONE(M)'!$AO252)","v":373254.36855220998},{"$f":"IF('[8]MONE(M)'!$AO252=\"\",\"\",'[8]MONE(M)'!$AO252)","v":20202.428194990003},1.8847691291064006,-4.9806637359641197,-1.785619035943975,1.9369577592874609,-7.8151813763154498,15.459624810257754,2.5564165107037518,{"$f":"IF('[1]FISCAL(M)'!$K252=\"\",\"\",'[1]FISCAL(M)'!$K252)","v":-1078.3968086462139},{"$f":"+'[1]REAL(A)'!$AO$30","v":176102.10453812065},-0.61237019936509307,{"$f":"IF('[1]FISCAL(M)'!$L252=\"\",\"\",'[1]FISCAL(M)'!$L252)","v":-1341.742072706214},{"$f":"+'[1]REAL(A)'!$AP$30","v":205542.39353812064},-0.65278118523873752,75799.532855879457,{"$f":"'[1]Gráfico REM'!BG246","v":16010.650084149313},{"$f":"'[1]Gráfico REM'!BH246","v":55097.438379388419},{"$f":"'[1]Gráfico REM'!BI246","v":4691.4443923417311},8.3212194270156701,30.174282738459123,3.9433760990445377,0.4578548937290039,111056.80144482947,{"$f":"'[1]Gráfico REM'!BK246","v":17054.700296289313},{"$f":"'[1]Gráfico REM'!BL246","v":75299.866574378422},{"$f":"'[1]Gráfico REM'!BM246","v":18702.234574161725},5.6416267451795177,31.390396099714369,3.5675956086020255,-3.7941141743328077]
[2010,"abril","2010-abril",{"$f":"IF('[1]REAL IPC(M)'!$AL253=\"\",\"\",+'[1]REAL IPC(M)'!$AL253)","v":4.8267865793921949},{"$f":"IF('[1]REAL IPC(M)'!$BE253=\"\",\"\",+'[1]REAL IPC(M)'!$BE253)","v":5.2360843058813389},{"$f":"IF('[1]REAL IPC(M)'!$AM253=\"\",\"\",+'[1]REAL IPC(M)'!$AM253)","v":4.5909861181905542},{"$f":"IF('[1]REAL IPC(M)'!$BI253=\"\",\"\",+'[1]REAL IPC(M)'!$BI253)","v":5.1124596011221657},{"$f":"IF('[1]REAL IMAE(M)'!BJ253=\"\",\"\",'[1]REAL IMAE(M)'!BJ253)","v":5.23275473532121},{"$f":"IF('[1]REAL IMAE(M)'!BK253=\"\",\"\",'[1]REAL IMAE(M)'!BK253)","v":2.9367546121608745},{"$f":"IF('[1]REAL IMAE(M)'!BN253=\"\",\"\",'[1]REAL IMAE(M)'!BN253)","v":5.3534055713230888},{"$f":"IF('[1]REAL IMAE(M)'!BO253=\"\",\"\",'[1]REAL IMAE(M)'!BO253)","v":3.3320377502738419},{"$f":"IF('[1]EXT RIN(M)'!$K253=\"\",\"\",'[1]EXT RIN(M)'!$K253)","v":18370.5543492666},"",{"$f":"IF('[1]EXT RIN(M)'!$L253=\"\",\"\",'[1]EXT RIN(M)'!$L253)","v":21093.066739956601},"",{"$f":"IF('[1]MONE(M)CARD'!EG253=\"\",\"\",'[1]MONE(M)CARD'!EG253)","v":19922.059925638256},{"$f":"IF('[1]MONE(M)CARD'!EK253=\"\",\"\",'[1]MONE(M)CARD'!EK253)","v":34190.881450393819},{"$f":"IF('[1]MONE(M)CARD'!EP253=\"\",\"\",'[1]MONE(M)CARD'!EP253)","v":20300.829158838707},{"$f":"IF('[1]MONE(M)CARD'!ES253=\"\",\"\",'[1]MONE(M)CARD'!ES253)","v":16.003204681323414},{"$f":"IF('[1]MONE(M)CARD'!EV253=\"\",\"\",'[1]MONE(M)CARD'!EV253)","v":8.9116302052323793},{"$f":"IF('[1]MONE(M)CARD'!EZ253=\"\",\"\",'[1]MONE(M)CARD'!EZ253)","v":9.9847480002997138},{"$f":"IF('[1]MONE(M)CAPARD'!FC253=\"\",\"\",'[1]MONE(M)CAPARD'!FC253)","v":24425.497533708254},{"$f":"IF('[1]MONE(M)CAPARD'!FG253=\"\",\"\",'[1]MONE(M)CAPARD'!FG253)","v":52277.852930143825},{"$f":"IF('[1]MONE(M)CAPARD'!FL253=\"\",\"\",'[1]MONE(M)CAPARD'!FL253)","v":20300.829158838693},{"$f":"IF('[1]MONE(M)CAPARD'!FO253=\"\",\"\",'[1]MONE(M)CAPARD'!FO253)","v":17.398524491089717},{"$f":"IF('[1]MONE(M)CAPARD'!FR253=\"\",\"\",'[1]MONE(M)CAPARD'!FR253)","v":10.224424029695678},{"$f":"IF('[1]MONE(M)CAPARD'!FV253=\"\",\"\",'[1]MONE(M)CAPARD'!FV253)","v":10.784149226556195},{"$f":"IF('[1]MONE(M)CARD'!FV253=\"\",\"\",'[1]MONE(M)CARD'!FV253)","v":2186.0588567392947},{"$f":"IF('[1]MONE(M)CARD'!GD253=\"\",\"\",'[1]MONE(M)CARD'!GD253)","v":166.50111861433285},{"$f":"IF('[1]MONE(M)CARD'!GE253=\"\",\"\",'[1]MONE(M)CARD'!GE253)","v":6104.1987204457273},15.929385239746718,{"$f":"IF('[9]II.2.Balance OSD-Activos'!J111=\"\",\"\",'[9]II.2.Balance OSD-Activos'!J111)","v":173.23468558219844},{"$f":"IF('[9]II.2.Balance OSD-Activos'!N111=\"\",\"\",'[9]II.2.Balance OSD-Activos'!N111)","v":328.08868578626357},{"$f":"IF('[9]II.2.Balance OSD-Activos'!R111=\"\",\"\",'[9]II.2.Balance OSD-Activos'!R111)","v":24260.673984928195},{"$f":"IF('[9]II.2.Balance OSD-Activos'!S111=\"\",\"\",'[9]II.2.Balance OSD-Activos'!S111)","v":28221.370880201986},24433.908670510395,52983.368236498645,51.547913898489362,3.2307950181928557,-9.0201522792630389,2.9963155897782423,5.5428516668656336,4.3614985046745547,1.0171922194832206,{"$f":"IF('[1]MONE(M)CAPARD'!GS253=\"\",\"\",'[1]MONE(M)CAPARD'!GS253)","v":11593.815195270203},{"$f":"IF('[1]MONE(M)CARD'!HA253=\"\",\"\",'[1]MONE(M)CAPARD'!HA253)","v":6621.0021884957278},{"$f":"IF('[1]MONE(M)CAPARD'!HB253=\"\",\"\",'[1]MONE(M)CAPARD'!HB253)","v":4972.8130067744751},"n.d.",{"$f":"IF('[10]II.2.Balance OSD-Activos'!J111=\"\",\"\",'[10]II.2.Balance OSD-Activos'!J111)","v":472.83779432219853},{"$f":"IF('[10]II.2.Balance OSD-Activos'!N111=\"\",\"\",'[10]II.2.Balance OSD-Activos'!N111)","v":593.79787148626349},{"$f":"IF('[10]II.2.Balance OSD-Activos'!R111=\"\",\"\",'[10]II.2.Balance OSD-Activos'!R111)","v":34340.288621088192},{"$f":"IF('[10]II.2.Balance OSD-Activos'!S111=\"\",\"\",'[10]II.2.Balance OSD-Activos'!S111)","v":37738.314093731984},34813.126415410392,73145.238380628638,14.051753398735256,1.942372691715355,-23.325373505258362,1.79355707815676,6.0342877487948865,3.7301600967195814,0.68537643739630116,{"$f":"IF('[1]MONE(M)CAPARD'!AS253=\"\",\"\",'[1]MONE(M)CAPARD'!AS253)","v":9},{"$f":"IF('[1]MONE(M)CAPARD'!AT253=\"\",\"\",'[1]MONE(M)CAPARD'!AT253)","v":"n.a."},{"$f":"IF('[1]MONE(M)CAPARD'!AU253=\"\",\"\",'[1]MONE(M)CAPARD'!AU253)","v":4.5},{"$f":"IF('[1]MONE(M)CAPARD'!AV253=\"\",\"\",'[1]MONE(M)CAPARD'!AV253)","v":4.5},{"$f":"IF('[1]MONE(M)CAPARD'!AW253=\"\",\"\",'[1]MONE(M)CAPARD'!AW253)","v":"n.a."},{"$f":"IF('[1]MONE(M)CAPARD'!AX253=\"\",\"\",'[1]MONE(M)CAPARD'!AX253)","v":4},{"$f":"IF('[1]MONE(M)CAPARD'!AY253=\"\",\"\",'[1]MONE(M)CAPARD'!AY253)","v":"n.a."},{"$f":"IF('[1]FISCAL(M)'!$K253=\"\",\"\",'[1]FISCAL(M)'!$K253)","v":-1197.2662948140792},{"$f":"IF('[1]FISCAL(M)'!$L253=\"\",\"\",'[1]FISCAL(M)'!$L253)","v":-1561.9390059740792},{"$f":"IF('[1]FISCAL(M)'!$AY253=\"\",\"\",'[1]FISCAL(M)'!$AY253)","v":"n.d."},{"$f":"IF('[1]FISCAL(M)'!$BI253=\"\",\"\",'[1]FISCAL(M)'!$BI253)","v":"n.d."},{"$f":"IF('[1]FISCAL(M)'!$BS253=\"\",\"\",'[1]FISCAL(M)'!$BS253)","v":"n.d."},{"$f":"IF('[1]FISCAL(M)'!$AZ253=\"\",\"\",'[1]FISCAL(M)'!$AZ253)","v":"n.d."},{"$f":"IF('[1]FISCAL(M)'!$BJ253=\"\",\"\",'[1]FISCAL(M)'!$BJ253)","v":"n.d."},{"$f":"IF('[1]FISCAL(M)'!$BT253=\"\",\"\",'[1]FISCAL(M)'!$BT253)","v":"n.d."},{"$f":"IF('[2]MONE(M)'!$AO253=\"\",\"\",'[2]MONE(M)'!$AO253)","v":8504879.9075303189},{"$f":"IF('[3]MONE(M)'!$AO253=\"\",\"\",'[3]MONE(M)'!$AO253)","v":8635.7018073201325},{"$f":"IF('[4]MONE(M)'!$AO253=\"\",\"\",'[4]MONE(M)'!$AO253)","v":81513.342282139725},{"$f":"+'[5]MONE(M)'!$AO253","v":139989.61602877479},{"$f":"IF('[6]MONE(M)'!$AO253=\"\",\"\",'[6]MONE(M)'!$AO253)","v":41490.517651009999},{"$f":"IF('[7]MONE(M)'!$AO253=\"\",\"\",'[7]MONE(M)'!$AO253)","v":376748.87770019},{"$f":"IF('[8]MONE(M)'!$AO253=\"\",\"\",'[8]MONE(M)'!$AO253)","v":20355.594547479999},-0.70208311149574376,-4.2525353940711224,-1.5121892429780792,2.6701679870077211,-6.6670096316224221,16.027784085319663,3.1975802509886186,{"$f":"IF('[1]FISCAL(M)'!$K253=\"\",\"\",'[1]FISCAL(M)'!$K253)","v":-1197.2662948140792},{"$f":"+'[1]REAL(A)'!$AO$30","v":176102.10453812065},-0.67987052054503305,{"$f":"IF('[1]FISCAL(M)'!$L253=\"\",\"\",'[1]FISCAL(M)'!$L253)","v":-1561.9390059740792},{"$f":"+'[1]REAL(A)'!$AP$30","v":205542.39353812064},-0.75991087730736007,76469.500823077455,{"$f":"'[1]Gráfico REM'!BG247","v":16406.517050290848},{"$f":"'[1]Gráfico REM'!BH247","v":55269.594144700277},{"$f":"'[1]Gráfico REM'!BI247","v":4793.3896280863191},9.3943255920927449,30.812741247160822,4.7515204627947671,4.2479942353573996,111810.43855233744,{"$f":"'[1]Gráfico REM'!BK247","v":17445.429507540848},{"$f":"'[1]Gráfico REM'!BL247","v":75625.18869218028},{"$f":"'[1]Gráfico REM'!BM247","v":18739.820352616312},6.4227744825977595,31.406074728480561,4.3286709966176229,-2.897936847442395]
[2010,"mayo ","2010-mayo ",{"$f":"IF('[1]REAL IPC(M)'!$AL254=\"\",\"\",+'[1]REAL IPC(M)'!$AL254)","v":4.8683563432526444},{"$f":"IF('[1]REAL IPC(M)'!$BE254=\"\",\"\",+'[1]REAL IPC(M)'!$BE254)","v":5.2105796704431606},{"$f":"IF('[1]REAL IPC(M)'!$AM254=\"\",\"\",+'[1]REAL IPC(M)'!$AM254)","v":4.6897659090259003},{"$f":"IF('[1]REAL IPC(M)'!$BI254=\"\",\"\",+'[1]REAL IPC(M)'!$BI254)","v":5.0949078928539393},{"$f":"IF('[1]REAL IMAE(M)'!BJ254=\"\",\"\",'[1]REAL IMAE(M)'!BJ254)","v":4.9634773309739089},{"$f":"IF('[1]REAL IMAE(M)'!BK254=\"\",\"\",'[1]REAL IMAE(M)'!BK254)","v":3.0261227408350022},{"$f":"IF('[1]REAL IMAE(M)'!BN254=\"\",\"\",'[1]REAL IMAE(M)'!BN254)","v":5.0213282810544158},{"$f":"IF('[1]REAL IMAE(M)'!BO254=\"\",\"\",'[1]REAL IMAE(M)'!BO254)","v":3.4335128071875332},{"$f":"IF('[1]EXT RIN(M)'!$K254=\"\",\"\",'[1]EXT RIN(M)'!$K254)","v":18531.941329973393},"",{"$f":"IF('[1]EXT RIN(M)'!$L254=\"\",\"\",'[1]EXT RIN(M)'!$L254)","v":21283.236425073392},"",{"$f":"IF('[1]MONE(M)CARD'!EG254=\"\",\"\",'[1]MONE(M)CARD'!EG254)","v":19813.369939233839},{"$f":"IF('[1]MONE(M)CARD'!EK254=\"\",\"\",'[1]MONE(M)CARD'!EK254)","v":34224.917064615416},{"$f":"IF('[1]MONE(M)CARD'!EP254=\"\",\"\",'[1]MONE(M)CARD'!EP254)","v":20502.907077195632},{"$f":"IF('[1]MONE(M)CARD'!ES254=\"\",\"\",'[1]MONE(M)CARD'!ES254)","v":14.573238498111829},{"$f":"IF('[1]MONE(M)CARD'!EV254=\"\",\"\",'[1]MONE(M)CARD'!EV254)","v":8.1195759148282587},{"$f":"IF('[1]MONE(M)CARD'!EZ254=\"\",\"\",'[1]MONE(M)CARD'!EZ254)","v":9.0298619689709092},{"$f":"IF('[1]MONE(M)CAPARD'!FC254=\"\",\"\",'[1]MONE(M)CAPARD'!FC254)","v":24309.182017923835},{"$f":"IF('[1]MONE(M)CAPARD'!FG254=\"\",\"\",'[1]MONE(M)CAPARD'!FG254)","v":52368.543746155417},{"$f":"IF('[1]MONE(M)CAPARD'!FL254=\"\",\"\",'[1]MONE(M)CAPARD'!FL254)","v":20502.907077195632},{"$f":"IF('[1]MONE(M)CAPARD'!FO254=\"\",\"\",'[1]MONE(M)CAPARD'!FO254)","v":15.102679092538951},{"$f":"IF('[1]MONE(M)CAPARD'!FR254=\"\",\"\",'[1]MONE(M)CAPARD'!FR254)","v":9.2117168801985727},{"$f":"IF('[1]MONE(M)CAPARD'!FV254=\"\",\"\",'[1]MONE(M)CAPARD'!FV254)","v":9.6874889666484165},{"$f":"IF('[1]MONE(M)CARD'!FV254=\"\",\"\",'[1]MONE(M)CARD'!FV254)","v":2255.1833146269701},{"$f":"IF('[1]MONE(M)CARD'!GD254=\"\",\"\",'[1]MONE(M)CARD'!GD254)","v":70.19543604001997},{"$f":"IF('[1]MONE(M)CARD'!GE254=\"\",\"\",'[1]MONE(M)CARD'!GE254)","v":5751.2588889773751},3.8282870461896268,{"$f":"IF('[9]II.2.Balance OSD-Activos'!J112=\"\",\"\",'[9]II.2.Balance OSD-Activos'!J112)","v":159.45865982068568},{"$f":"IF('[9]II.2.Balance OSD-Activos'!N112=\"\",\"\",'[9]II.2.Balance OSD-Activos'!N112)","v":335.65240556868412},{"$f":"IF('[9]II.2.Balance OSD-Activos'!R112=\"\",\"\",'[9]II.2.Balance OSD-Activos'!R112)","v":24136.038023303794},{"$f":"IF('[9]II.2.Balance OSD-Activos'!S112=\"\",\"\",'[9]II.2.Balance OSD-Activos'!S112)","v":28044.975725141347},24295.496683124478,52676.124813834511,34.242857515976219,2.97487713570177,-6.1775738722525286,2.8166597290622875,5.2034995087105962,4.0840811666803978,-0.27741733799415691,{"$f":"IF('[1]MONE(M)CAPARD'!GS254=\"\",\"\",'[1]MONE(M)CAPARD'!GS254)","v":11520.488978403766},{"$f":"IF('[1]MONE(M)CARD'!HA254=\"\",\"\",'[1]MONE(M)CAPARD'!HA254)","v":6274.3052780773751},{"$f":"IF('[1]MONE(M)CAPARD'!HB254=\"\",\"\",'[1]MONE(M)CAPARD'!HB254)","v":5246.1837003263909},"n.d.",{"$f":"IF('[10]II.2.Balance OSD-Activos'!J112=\"\",\"\",'[10]II.2.Balance OSD-Activos'!J112)","v":465.0279898706857},{"$f":"IF('[10]II.2.Balance OSD-Activos'!N112=\"\",\"\",'[10]II.2.Balance OSD-Activos'!N112)","v":594.85185808868414},{"$f":"IF('[10]II.2.Balance OSD-Activos'!R112=\"\",\"\",'[10]II.2.Balance OSD-Activos'!R112)","v":34409.260677303791},{"$f":"IF('[10]II.2.Balance OSD-Activos'!S112=\"\",\"\",'[10]II.2.Balance OSD-Activos'!S112)","v":37678.526966931342},34874.288667174478,73147.667492194509,6.8978128519742832,2.3316432599131742,-25.066836472541397,2.2726032691262832,5.9026829661531055,3.8263062788955526,9.6146182175971262E-2,{"$f":"IF('[1]MONE(M)CAPARD'!AS254=\"\",\"\",'[1]MONE(M)CAPARD'!AS254)","v":9},{"$f":"IF('[1]MONE(M)CAPARD'!AT254=\"\",\"\",'[1]MONE(M)CAPARD'!AT254)","v":"n.a."},{"$f":"IF('[1]MONE(M)CAPARD'!AU254=\"\",\"\",'[1]MONE(M)CAPARD'!AU254)","v":4.5},{"$f":"IF('[1]MONE(M)CAPARD'!AV254=\"\",\"\",'[1]MONE(M)CAPARD'!AV254)","v":4.5},{"$f":"IF('[1]MONE(M)CAPARD'!AW254=\"\",\"\",'[1]MONE(M)CAPARD'!AW254)","v":"n.a."},{"$f":"IF('[1]MONE(M)CAPARD'!AX254=\"\",\"\",'[1]MONE(M)CAPARD'!AX254)","v":4},{"$f":"IF('[1]MONE(M)CAPARD'!AY254=\"\",\"\",'[1]MONE(M)CAPARD'!AY254)","v":"n.a."},{"$f":"IF('[1]FISCAL(M)'!$K254=\"\",\"\",'[1]FISCAL(M)'!$K254)","v":-1857.8387441436053},{"$f":"IF('[1]FISCAL(M)'!$L254=\"\",\"\",'[1]FISCAL(M)'!$L254)","v":-2277.9941046936055},{"$f":"IF('[1]FISCAL(M)'!$AY254=\"\",\"\",'[1]FISCAL(M)'!$AY254)","v":"n.d."},{"$f":"IF('[1]FISCAL(M)'!$BI254=\"\",\"\",'[1]FISCAL(M)'!$BI254)","v":"n.d."},{"$f":"IF('[1]FISCAL(M)'!$BS254=\"\",\"\",'[1]FISCAL(M)'!$BS254)","v":"n.d."},{"$f":"IF('[1]FISCAL(M)'!$AZ254=\"\",\"\",'[1]FISCAL(M)'!$AZ254)","v":"n.d."},{"$f":"IF('[1]FISCAL(M)'!$BJ254=\"\",\"\",'[1]FISCAL(M)'!$BJ254)","v":"n.d."},{"$f":"IF('[1]FISCAL(M)'!$BT254=\"\",\"\",'[1]FISCAL(M)'!$BT254)","v":"n.d."},{"$f":"IF('[2]MONE(M)'!$AO254=\"\",\"\",'[2]MONE(M)'!$AO254)","v":8825589.1578562409},{"$f":"IF('[3]MONE(M)'!$AO254=\"\",\"\",'[3]MONE(M)'!$AO254)","v":8571.6514233403068},{"$f":"IF('[4]MONE(M)'!$AO254=\"\",\"\",'[4]MONE(M)'!$AO254)","v":81267.267311881267},{"$f":"+'[5]MONE(M)'!$AO254","v":139881.10307771558},{"$f":"IF('[6]MONE(M)'!$AO254=\"\",\"\",'[6]MONE(M)'!$AO254)","v":41287.002857567495},{"$f":"IF('[7]MONE(M)'!$AO254=\"\",\"\",'[7]MONE(M)'!$AO254)","v":382818.36672536994},{"$f":"IF('[8]MONE(M)'!$AO254=\"\",\"\",'[8]MONE(M)'!$AO254)","v":20682.085741309998},2.210087298394714,-3.7511532452851104,-1.9025357703262857,2.7376112088785653,-6.4562158384815156,15.978112131633093,4.4699929453112075,{"$f":"IF('[1]FISCAL(M)'!$K254=\"\",\"\",'[1]FISCAL(M)'!$K254)","v":-1857.8387441436053},{"$f":"+'[1]REAL(A)'!$AO$30","v":176102.10453812065},-1.0549781611164339,{"$f":"IF('[1]FISCAL(M)'!$L254=\"\",\"\",'[1]FISCAL(M)'!$L254)","v":-2277.9941046936055},{"$f":"+'[1]REAL(A)'!$AP$30","v":205542.39353812064},-1.1082843132655844,76348.287401311027,{"$f":"'[1]Gráfico REM'!BG248","v":16534.944542697143},{"$f":"'[1]Gráfico REM'!BH248","v":54993.501615989881},{"$f":"'[1]Gráfico REM'!BI248","v":4819.841242623992},8.6571382996030621,27.645713746367349,4.209508479493973,6.1759650695466517,111843.38763682102,{"$f":"'[1]Gráfico REM'!BK248","v":17681.652615237144},{"$f":"'[1]Gráfico REM'!BL248","v":75675.587357299883},{"$f":"'[1]Gráfico REM'!BM248","v":18486.147664283992},6.0541557461831319,28.730141477695305,4.2805696230580947,-3.4872446254352152]
[2010,"junio ","2010-junio ",{"$f":"IF('[1]REAL IPC(M)'!$AL255=\"\",\"\",+'[1]REAL IPC(M)'!$AL255)","v":4.4028165898178706},{"$f":"IF('[1]REAL IPC(M)'!$BE255=\"\",\"\",+'[1]REAL IPC(M)'!$BE255)","v":5.1910470085180238},{"$f":"IF('[1]REAL IPC(M)'!$AM255=\"\",\"\",+'[1]REAL IPC(M)'!$AM255)","v":4.228843893697265},{"$f":"IF('[1]REAL IPC(M)'!$BI255=\"\",\"\",+'[1]REAL IPC(M)'!$BI255)","v":5.0839617241518198},{"$f":"IF('[1]REAL IMAE(M)'!BJ255=\"\",\"\",'[1]REAL IMAE(M)'!BJ255)","v":4.9010585422001318},{"$f":"IF('[1]REAL IMAE(M)'!BK255=\"\",\"\",'[1]REAL IMAE(M)'!BK255)","v":3.1122761947767197},{"$f":"IF('[1]REAL IMAE(M)'!BN255=\"\",\"\",'[1]REAL IMAE(M)'!BN255)","v":5.0263962634747639},{"$f":"IF('[1]REAL IMAE(M)'!BO255=\"\",\"\",'[1]REAL IMAE(M)'!BO255)","v":3.5328880194351431},{"$f":"IF('[1]EXT RIN(M)'!$K255=\"\",\"\",'[1]EXT RIN(M)'!$K255)","v":18724.881527917354},"",{"$f":"IF('[1]EXT RIN(M)'!$L255=\"\",\"\",'[1]EXT RIN(M)'!$L255)","v":21254.379828057354},"",{"$f":"IF('[1]MONE(M)CARD'!EG255=\"\",\"\",'[1]MONE(M)CARD'!EG255)","v":19500.243766450869},{"$f":"IF('[1]MONE(M)CARD'!EK255=\"\",\"\",'[1]MONE(M)CARD'!EK255)","v":34571.686172091438},{"$f":"IF('[1]MONE(M)CARD'!EP255=\"\",\"\",'[1]MONE(M)CARD'!EP255)","v":20827.202896986229},{"$f":"IF('[1]MONE(M)CARD'!ES255=\"\",\"\",'[1]MONE(M)CARD'!ES255)","v":13.341479220125141},{"$f":"IF('[1]MONE(M)CARD'!EV255=\"\",\"\",'[1]MONE(M)CARD'!EV255)","v":8.02307660950936},{"$f":"IF('[1]MONE(M)CARD'!EZ255=\"\",\"\",'[1]MONE(M)CARD'!EZ255)","v":9.3429492647128178},{"$f":"IF('[1]MONE(M)CAPARD'!FC255=\"\",\"\",'[1]MONE(M)CAPARD'!FC255)","v":23971.572114220868},{"$f":"IF('[1]MONE(M)CAPARD'!FG255=\"\",\"\",'[1]MONE(M)CAPARD'!FG255)","v":52744.340464911438},{"$f":"IF('[1]MONE(M)CAPARD'!FL255=\"\",\"\",'[1]MONE(M)CAPARD'!FL255)","v":20827.202896986229},{"$f":"IF('[1]MONE(M)CAPARD'!FO255=\"\",\"\",'[1]MONE(M)CAPARD'!FO255)","v":13.392131413292518},{"$f":"IF('[1]MONE(M)CAPARD'!FR255=\"\",\"\",'[1]MONE(M)CAPARD'!FR255)","v":8.7406384817485083},{"$f":"IF('[1]MONE(M)CAPARD'!FV255=\"\",\"\",'[1]MONE(M)CAPARD'!FV255)","v":9.6078552902937773},{"$f":"IF('[1]MONE(M)CARD'!FV255=\"\",\"\",'[1]MONE(M)CARD'!FV255)","v":2314.9314037321524},{"$f":"IF('[1]MONE(M)CARD'!GD255=\"\",\"\",'[1]MONE(M)CARD'!GD255)","v":151.19695238357519},{"$f":"IF('[1]MONE(M)CARD'!GE255=\"\",\"\",'[1]MONE(M)CARD'!GE255)","v":5677.3136752678201},7.6314600050418013,{"$f":"IF('[9]II.2.Balance OSD-Activos'!J113=\"\",\"\",'[9]II.2.Balance OSD-Activos'!J113)","v":184.48015824387318},{"$f":"IF('[9]II.2.Balance OSD-Activos'!N113=\"\",\"\",'[9]II.2.Balance OSD-Activos'!N113)","v":331.10571518516815},{"$f":"IF('[9]II.2.Balance OSD-Activos'!R113=\"\",\"\",'[9]II.2.Balance OSD-Activos'!R113)","v":24135.245219032277},{"$f":"IF('[9]II.2.Balance OSD-Activos'!S113=\"\",\"\",'[9]II.2.Balance OSD-Activos'!S113)","v":28246.931651436254},24319.725377276151,52897.762743897576,14.73713851834515,3.2839738807785901,-8.0964694125366776,3.2052292159864937,5.7787446163312106,4.5192847454045504,0.43520357872415261,{"$f":"IF('[1]MONE(M)CAPARD'!GS255=\"\",\"\",'[1]MONE(M)CAPARD'!GS255)","v":11684.801392135072},{"$f":"IF('[1]MONE(M)CARD'!HA255=\"\",\"\",'[1]MONE(M)CAPARD'!HA255)","v":6220.2823524678215},{"$f":"IF('[1]MONE(M)CAPARD'!HB255=\"\",\"\",'[1]MONE(M)CAPARD'!HB255)","v":5464.5190396672506},"n.d.",{"$f":"IF('[10]II.2.Balance OSD-Activos'!J113=\"\",\"\",'[10]II.2.Balance OSD-Activos'!J113)","v":506.06816253387319},{"$f":"IF('[10]II.2.Balance OSD-Activos'!N113=\"\",\"\",'[10]II.2.Balance OSD-Activos'!N113)","v":591.19532917516813},{"$f":"IF('[10]II.2.Balance OSD-Activos'!R113=\"\",\"\",'[10]II.2.Balance OSD-Activos'!R113)","v":34858.143120712281},{"$f":"IF('[10]II.2.Balance OSD-Activos'!S113=\"\",\"\",'[10]II.2.Balance OSD-Activos'!S113)","v":38171.563494886257},35364.211283246157,74126.97010730757,7.7020924087964238,4.0072239082318051,-22.004147136497878,3.9554481022697985,7.0472310927491844,5.2666449952223582,1.4403387163268055,{"$f":"IF('[1]MONE(M)CAPARD'!AS255=\"\",\"\",'[1]MONE(M)CAPARD'!AS255)","v":9},{"$f":"IF('[1]MONE(M)CAPARD'!AT255=\"\",\"\",'[1]MONE(M)CAPARD'!AT255)","v":"n.a."},{"$f":"IF('[1]MONE(M)CAPARD'!AU255=\"\",\"\",'[1]MONE(M)CAPARD'!AU255)","v":4.5},{"$f":"IF('[1]MONE(M)CAPARD'!AV255=\"\",\"\",'[1]MONE(M)CAPARD'!AV255)","v":4.5},{"$f":"IF('[1]MONE(M)CAPARD'!AW255=\"\",\"\",'[1]MONE(M)CAPARD'!AW255)","v":"n.a."},{"$f":"IF('[1]MONE(M)CAPARD'!AX255=\"\",\"\",'[1]MONE(M)CAPARD'!AX255)","v":4},{"$f":"IF('[1]MONE(M)CAPARD'!AY255=\"\",\"\",'[1]MONE(M)CAPARD'!AY255)","v":"n.a."},{"$f":"IF('[1]FISCAL(M)'!$K255=\"\",\"\",'[1]FISCAL(M)'!$K255)","v":-2223.9993231096955},{"$f":"IF('[1]FISCAL(M)'!$L255=\"\",\"\",'[1]FISCAL(M)'!$L255)","v":-2604.5623053696954},{"$f":"IF('[1]FISCAL(M)'!$AY255=\"\",\"\",'[1]FISCAL(M)'!$AY255)","v":61811.437324123712},{"$f":"IF('[1]FISCAL(M)'!$BI255=\"\",\"\",'[1]FISCAL(M)'!$BI255)","v":30148.457324123701},{"$f":"IF('[1]FISCAL(M)'!$BS255=\"\",\"\",'[1]FISCAL(M)'!$BS255)","v":31662.980000000003},{"$f":"IF('[1]FISCAL(M)'!$AZ255=\"\",\"\",'[1]FISCAL(M)'!$AZ255)","v":72884.719526423709},{"$f":"IF('[1]FISCAL(M)'!$BJ255=\"\",\"\",'[1]FISCAL(M)'!$BJ255)","v":31069.488056773698},{"$f":"IF('[1]FISCAL(M)'!$BT255=\"\",\"\",'[1]FISCAL(M)'!$BT255)","v":41808.564761810005},{"$f":"IF('[2]MONE(M)'!$AO255=\"\",\"\",'[2]MONE(M)'!$AO255)","v":8962306.9691753425},{"$f":"IF('[3]MONE(M)'!$AO255=\"\",\"\",'[3]MONE(M)'!$AO255)","v":8561.8993762401224},{"$f":"IF('[4]MONE(M)'!$AO255=\"\",\"\",'[4]MONE(M)'!$AO255)","v":81717.678457745904},{"$f":"+'[5]MONE(M)'!$AO255","v":139041.86977396454},{"$f":"IF('[6]MONE(M)'!$AO255=\"\",\"\",'[6]MONE(M)'!$AO255)","v":41612.398186554892},{"$f":"IF('[7]MONE(M)'!$AO255=\"\",\"\",'[7]MONE(M)'!$AO255)","v":388621.26708642003},{"$f":"IF('[8]MONE(M)'!$AO255=\"\",\"\",'[8]MONE(M)'!$AO255)","v":21453.668402280004},3.6693041549463734,-2.5213424631794989,-3.144465354728565E-2,2.2532038116427344,-4.7213197540997172,15.583381978274446,8.3730793533143277,{"$f":"IF('[1]FISCAL(M)'!$K255=\"\",\"\",'[1]FISCAL(M)'!$K255)","v":-2223.9993231096955},{"$f":"+'[1]REAL(A)'!$AO$30","v":176102.10453812065},-1.2629033190391366,{"$f":"IF('[1]FISCAL(M)'!$L255=\"\",\"\",'[1]FISCAL(M)'!$L255)","v":-2604.5623053696954},{"$f":"+'[1]REAL(A)'!$AP$30","v":205542.39353812064},-1.2671655032014812,77132.60514461952,{"$f":"'[1]Gráfico REM'!BG249","v":16788.907843625402},{"$f":"'[1]Gráfico REM'!BH249","v":55522.071097551343},{"$f":"'[1]Gráfico REM'!BI249","v":4821.6262034427782},8.7721419165860617,23.380478441989251,5.437089018006791,3.7865860337583657,112980.41907799951,{"$f":"'[1]Gráfico REM'!BK249","v":17811.906967175404},{"$f":"'[1]Gráfico REM'!BL249","v":76975.739499831339},{"$f":"'[1]Gráfico REM'!BM249","v":18192.772610992779},6.0836133308239004,23.404791545393742,6.2392581223650323,-7.2388349626704702]
[2010,"julio","2010-julio",{"$f":"IF('[1]REAL IPC(M)'!$AL256=\"\",\"\",+'[1]REAL IPC(M)'!$AL256)","v":4.5406865357878967},{"$f":"IF('[1]REAL IPC(M)'!$BE256=\"\",\"\",+'[1]REAL IPC(M)'!$BE256)","v":5.1767246488682916},{"$f":"IF('[1]REAL IPC(M)'!$AM256=\"\",\"\",+'[1]REAL IPC(M)'!$AM256)","v":4.4193711055708462},{"$f":"IF('[1]REAL IPC(M)'!$BI256=\"\",\"\",+'[1]REAL IPC(M)'!$BI256)","v":5.0787799269830458},{"$f":"IF('[1]REAL IMAE(M)'!BJ256=\"\",\"\",'[1]REAL IMAE(M)'!BJ256)","v":4.5006385944173388},{"$f":"IF('[1]REAL IMAE(M)'!BK256=\"\",\"\",'[1]REAL IMAE(M)'!BK256)","v":3.194590566308908},{"$f":"IF('[1]REAL IMAE(M)'!BN256=\"\",\"\",'[1]REAL IMAE(M)'!BN256)","v":4.7340291095930187},{"$f":"IF('[1]REAL IMAE(M)'!BO256=\"\",\"\",'[1]REAL IMAE(M)'!BO256)","v":3.6293957347909744},{"$f":"IF('[1]EXT RIN(M)'!$K256=\"\",\"\",'[1]EXT RIN(M)'!$K256)","v":18484.677855956041},"",{"$f":"IF('[1]EXT RIN(M)'!$L256=\"\",\"\",'[1]EXT RIN(M)'!$L256)","v":20860.043667066042},"",{"$f":"IF('[1]MONE(M)CARD'!EG256=\"\",\"\",'[1]MONE(M)CARD'!EG256)","v":19858.333681183154},{"$f":"IF('[1]MONE(M)CARD'!EK256=\"\",\"\",'[1]MONE(M)CARD'!EK256)","v":34866.532403948913},{"$f":"IF('[1]MONE(M)CARD'!EP256=\"\",\"\",'[1]MONE(M)CARD'!EP256)","v":20975.016235714713},{"$f":"IF('[1]MONE(M)CARD'!ES256=\"\",\"\",'[1]MONE(M)CARD'!ES256)","v":17.016157085591455},{"$f":"IF('[1]MONE(M)CARD'!EV256=\"\",\"\",'[1]MONE(M)CARD'!EV256)","v":10.183852917330171},{"$f":"IF('[1]MONE(M)CARD'!EZ256=\"\",\"\",'[1]MONE(M)CARD'!EZ256)","v":10.70510193922869},{"$f":"IF('[1]MONE(M)CAPARD'!FC256=\"\",\"\",'[1]MONE(M)CAPARD'!FC256)","v":24367.42646530315},{"$f":"IF('[1]MONE(M)CAPARD'!FG256=\"\",\"\",'[1]MONE(M)CAPARD'!FG256)","v":53073.584448378919},{"$f":"IF('[1]MONE(M)CAPARD'!FL256=\"\",\"\",'[1]MONE(M)CAPARD'!FL256)","v":20975.016235714735},{"$f":"IF('[1]MONE(M)CAPARD'!FO256=\"\",\"\",'[1]MONE(M)CAPARD'!FO256)","v":17.742635987422162},{"$f":"IF('[1]MONE(M)CAPARD'!FR256=\"\",\"\",'[1]MONE(M)CAPARD'!FR256)","v":10.368109585508201},{"$f":"IF('[1]MONE(M)CAPARD'!FV256=\"\",\"\",'[1]MONE(M)CAPARD'!FV256)","v":10.730342568187412},{"$f":"IF('[1]MONE(M)CARD'!FV256=\"\",\"\",'[1]MONE(M)CARD'!FV256)","v":2456.4366888419522},{"$f":"IF('[1]MONE(M)CARD'!GD256=\"\",\"\",'[1]MONE(M)CARD'!GD256)","v":76.843635377491424},{"$f":"IF('[1]MONE(M)CARD'!GE256=\"\",\"\",'[1]MONE(M)CARD'!GE256)","v":5845.1924985380374},9.7455809659549697,{"$f":"IF('[9]II.2.Balance OSD-Activos'!J114=\"\",\"\",'[9]II.2.Balance OSD-Activos'!J114)","v":181.66830334531147},{"$f":"IF('[9]II.2.Balance OSD-Activos'!N114=\"\",\"\",'[9]II.2.Balance OSD-Activos'!N114)","v":334.35957217805958},{"$f":"IF('[9]II.2.Balance OSD-Activos'!R114=\"\",\"\",'[9]II.2.Balance OSD-Activos'!R114)","v":24263.018595014717},{"$f":"IF('[9]II.2.Balance OSD-Activos'!S114=\"\",\"\",'[9]II.2.Balance OSD-Activos'!S114)","v":28595.521954358235},24444.686898360029,53374.568424896323,47.037886090501324,3.2002540110569022,-4.7627120042492699,2.9703934099154283,8.243272418135561,5.785300049667641,1.2660153042630906,{"$f":"IF('[1]MONE(M)CAPARD'!GS256=\"\",\"\",'[1]MONE(M)CAPARD'!GS256)","v":11769.357960991254},{"$f":"IF('[1]MONE(M)CARD'!HA256=\"\",\"\",'[1]MONE(M)CAPARD'!HA256)","v":6399.7464198980369},{"$f":"IF('[1]MONE(M)CAPARD'!HB256=\"\",\"\",'[1]MONE(M)CAPARD'!HB256)","v":5369.6115410932171},"n.d.",{"$f":"IF('[10]II.2.Balance OSD-Activos'!J114=\"\",\"\",'[10]II.2.Balance OSD-Activos'!J114)","v":490.46382384531137},{"$f":"IF('[10]II.2.Balance OSD-Activos'!N114=\"\",\"\",'[10]II.2.Balance OSD-Activos'!N114)","v":594.78650435805946},{"$f":"IF('[10]II.2.Balance OSD-Activos'!R114=\"\",\"\",'[10]II.2.Balance OSD-Activos'!R114)","v":34994.815744224717},{"$f":"IF('[10]II.2.Balance OSD-Activos'!S114=\"\",\"\",'[10]II.2.Balance OSD-Activos'!S114)","v":38587.011414518238},35485.279568070029,74667.077486946335,14.594930855492061,4.0246327992058184,-19.661969209261198,3.8903253189523479,8.9149508953463297,6.2403071935086096,0.97366219828625145,{"$f":"IF('[1]MONE(M)CAPARD'!AS256=\"\",\"\",'[1]MONE(M)CAPARD'!AS256)","v":9},{"$f":"IF('[1]MONE(M)CAPARD'!AT256=\"\",\"\",'[1]MONE(M)CAPARD'!AT256)","v":"n.a."},{"$f":"IF('[1]MONE(M)CAPARD'!AU256=\"\",\"\",'[1]MONE(M)CAPARD'!AU256)","v":4.5},{"$f":"IF('[1]MONE(M)CAPARD'!AV256=\"\",\"\",'[1]MONE(M)CAPARD'!AV256)","v":4.5},{"$f":"IF('[1]MONE(M)CAPARD'!AW256=\"\",\"\",'[1]MONE(M)CAPARD'!AW256)","v":"n.a."},{"$f":"IF('[1]MONE(M)CAPARD'!AX256=\"\",\"\",'[1]MONE(M)CAPARD'!AX256)","v":4},{"$f":"IF('[1]MONE(M)CAPARD'!AY256=\"\",\"\",'[1]MONE(M)CAPARD'!AY256)","v":"n.a."},{"$f":"IF('[1]FISCAL(M)'!$K256=\"\",\"\",'[1]FISCAL(M)'!$K256)","v":-2603.474184426274},{"$f":"IF('[1]FISCAL(M)'!$L256=\"\",\"\",'[1]FISCAL(M)'!$L256)","v":-3250.0574843062741},{"$f":"IF('[1]FISCAL(M)'!$AY256=\"\",\"\",'[1]FISCAL(M)'!$AY256)","v":"n.d."},{"$f":"IF('[1]FISCAL(M)'!$BI256=\"\",\"\",'[1]FISCAL(M)'!$BI256)","v":"n.d."},{"$f":"IF('[1]FISCAL(M)'!$BS256=\"\",\"\",'[1]FISCAL(M)'!$BS256)","v":"n.d."},{"$f":"IF('[1]FISCAL(M)'!$AZ256=\"\",\"\",'[1]FISCAL(M)'!$AZ256)","v":"n.d."},{"$f":"IF('[1]FISCAL(M)'!$BJ256=\"\",\"\",'[1]FISCAL(M)'!$BJ256)","v":"n.d."},{"$f":"IF('[1]FISCAL(M)'!$BT256=\"\",\"\",'[1]FISCAL(M)'!$BT256)","v":"n.d."},{"$f":"IF('[2]MONE(M)'!$AO256=\"\",\"\",'[2]MONE(M)'!$AO256)","v":8895899.6035036221},{"$f":"IF('[3]MONE(M)'!$AO256=\"\",\"\",'[3]MONE(M)'!$AO256)","v":8650.0145944201795},{"$f":"IF('[4]MONE(M)'!$AO256=\"\",\"\",'[4]MONE(M)'!$AO256)","v":81583.196911323554},{"$f":"+'[5]MONE(M)'!$AO256","v":138596.93165477266},{"$f":"IF('[6]MONE(M)'!$AO256=\"\",\"\",'[6]MONE(M)'!$AO256)","v":41672.245527980005},{"$f":"IF('[7]MONE(M)'!$AO256=\"\",\"\",'[7]MONE(M)'!$AO256)","v":391413.49176891998},{"$f":"IF('[8]MONE(M)'!$AO256=\"\",\"\",'[8]MONE(M)'!$AO256)","v":21515.116758840002},1.8357025025104168,-1.5340336661330389,-0.5508553785808723,1.0552534649739265,-3.9996526908895658,15.699043023716651,8.4325793101126081,{"$f":"IF('[1]FISCAL(M)'!$K256=\"\",\"\",'[1]FISCAL(M)'!$K256)","v":-2603.474184426274},{"$f":"+'[1]REAL(A)'!$AO$30","v":176102.10453812065},-1.4783890239441757,{"$f":"IF('[1]FISCAL(M)'!$L256=\"\",\"\",'[1]FISCAL(M)'!$L256)","v":-3250.0574843062741},{"$f":"+'[1]REAL(A)'!$AP$30","v":205542.39353812064},-1.5812102935852532,78078.588885653182,{"$f":"'[1]Gráfico REM'!BG250","v":17255.109251640952},{"$f":"'[1]Gráfico REM'!BH250","v":56105.846715211628},{"$f":"'[1]Gráfico REM'!BI250","v":4717.6329188006102},10.847385025010237,27.700868957782141,6.7774532421941203,7.6807761089313864,113906.47735297319,{"$f":"'[1]Gráfico REM'!BK250","v":18146.748784400952},{"$f":"'[1]Gráfico REM'!BL250","v":77620.963474051634},{"$f":"'[1]Gráfico REM'!BM250","v":18138.765094520608},7.7463195413605135,25.633839059176932,7.2311408268741273,-3.9592744478007869]
[2010,"agosto","2010-agosto",{"$f":"IF('[1]REAL IPC(M)'!$AL257=\"\",\"\",+'[1]REAL IPC(M)'!$AL257)","v":4.2617288048282687},{"$f":"IF('[1]REAL IPC(M)'!$BE257=\"\",\"\",+'[1]REAL IPC(M)'!$BE257)","v":5.1668257616659163},{"$f":"IF('[1]REAL IPC(M)'!$AM257=\"\",\"\",+'[1]REAL IPC(M)'!$AM257)","v":4.1945539808848853},{"$f":"IF('[1]REAL IPC(M)'!$BI257=\"\",\"\",+'[1]REAL IPC(M)'!$BI257)","v":5.0784869335080751},{"$f":"IF('[1]REAL IMAE(M)'!BJ257=\"\",\"\",'[1]REAL IMAE(M)'!BJ257)","v":4.8093951373490818},{"$f":"IF('[1]REAL IMAE(M)'!BK257=\"\",\"\",'[1]REAL IMAE(M)'!BK257)","v":3.2725531592934454},{"$f":"IF('[1]REAL IMAE(M)'!BN257=\"\",\"\",'[1]REAL IMAE(M)'!BN257)","v":5.0580133300721419},{"$f":"IF('[1]REAL IMAE(M)'!BO257=\"\",\"\",'[1]REAL IMAE(M)'!BO257)","v":3.7223774023214418},{"$f":"IF('[1]EXT RIN(M)'!$K257=\"\",\"\",'[1]EXT RIN(M)'!$K257)","v":18216.653361855304},"",{"$f":"IF('[1]EXT RIN(M)'!$L257=\"\",\"\",'[1]EXT RIN(M)'!$L257)","v":20722.474156895303},"",{"$f":"IF('[1]MONE(M)CARD'!EG257=\"\",\"\",'[1]MONE(M)CARD'!EG257)","v":19782.32274328429},{"$f":"IF('[1]MONE(M)CARD'!EK257=\"\",\"\",'[1]MONE(M)CARD'!EK257)","v":34958.23985931628},{"$f":"IF('[1]MONE(M)CARD'!EP257=\"\",\"\",'[1]MONE(M)CARD'!EP257)","v":20952.951151395151},{"$f":"IF('[1]MONE(M)CARD'!ES257=\"\",\"\",'[1]MONE(M)CARD'!ES257)","v":16.420953518951787},{"$f":"IF('[1]MONE(M)CARD'!EV257=\"\",\"\",'[1]MONE(M)CARD'!EV257)","v":10.250124714833465},{"$f":"IF('[1]MONE(M)CARD'!EZ257=\"\",\"\",'[1]MONE(M)CARD'!EZ257)","v":10.279097991549735},{"$f":"IF('[1]MONE(M)CAPARD'!FC257=\"\",\"\",'[1]MONE(M)CAPARD'!FC257)","v":24358.444572424287},{"$f":"IF('[1]MONE(M)CAPARD'!FG257=\"\",\"\",'[1]MONE(M)CAPARD'!FG257)","v":53209.330206326282},{"$f":"IF('[1]MONE(M)CAPARD'!FL257=\"\",\"\",'[1]MONE(M)CAPARD'!FL257)","v":20952.951151395158},{"$f":"IF('[1]MONE(M)CAPARD'!FO257=\"\",\"\",'[1]MONE(M)CAPARD'!FO257)","v":16.299900856210225},{"$f":"IF('[1]MONE(M)CAPARD'!FR257=\"\",\"\",'[1]MONE(M)CAPARD'!FR257)","v":9.884435853755825},{"$f":"IF('[1]MONE(M)CAPARD'!FV257=\"\",\"\",'[1]MONE(M)CAPARD'!FV257)","v":9.9841483195330039},{"$f":"IF('[1]MONE(M)CARD'!FV257=\"\",\"\",'[1]MONE(M)CARD'!FV257)","v":2472.800957740686},{"$f":"IF('[1]MONE(M)CARD'!GD257=\"\",\"\",'[1]MONE(M)CARD'!GD257)","v":84.704705338918984},{"$f":"IF('[1]MONE(M)CARD'!GE257=\"\",\"\",'[1]MONE(M)CARD'!GE257)","v":5761.36842480617},11.731427085674273,{"$f":"IF('[9]II.2.Balance OSD-Activos'!J115=\"\",\"\",'[9]II.2.Balance OSD-Activos'!J115)","v":232.05222936356904},{"$f":"IF('[9]II.2.Balance OSD-Activos'!N115=\"\",\"\",'[9]II.2.Balance OSD-Activos'!N115)","v":324.65737870761382},{"$f":"IF('[9]II.2.Balance OSD-Activos'!R115=\"\",\"\",'[9]II.2.Balance OSD-Activos'!R115)","v":24420.609783387452},{"$f":"IF('[9]II.2.Balance OSD-Activos'!S115=\"\",\"\",'[9]II.2.Balance OSD-Activos'!S115)","v":28855.144333241678},24652.662012751021,53832.463724700312,107.77316946189556,6.1020371180236621,-4.4705275765849155,5.6109636819274389,7.9888165183357618,{"$f":"IF(OR(AK250=\"\",AK238=\"\"),\"\",((AK250/AK238)-1)*100)","v":7.0329923469818256},1.2476922973141846,{"$f":"IF('[1]MONE(M)CAPARD'!GS257=\"\",\"\",'[1]MONE(M)CAPARD'!GS257)","v":11785.630329802634},{"$f":"IF('[1]MONE(M)CARD'!HA257=\"\",\"\",'[1]MONE(M)CAPARD'!HA257)","v":6306.7352435061703},{"$f":"IF('[1]MONE(M)CAPARD'!HB257=\"\",\"\",'[1]MONE(M)CAPARD'!HB257)","v":5478.8950862964639},"n.d.",{"$f":"IF('[10]II.2.Balance OSD-Activos'!J115=\"\",\"\",'[10]II.2.Balance OSD-Activos'!J115)","v":551.06515131356889},{"$f":"IF('[10]II.2.Balance OSD-Activos'!N115=\"\",\"\",'[10]II.2.Balance OSD-Activos'!N115)","v":559.66950732761381},{"$f":"IF('[10]II.2.Balance OSD-Activos'!R115=\"\",\"\",'[10]II.2.Balance OSD-Activos'!R115)","v":35494.159070637455},{"$f":"IF('[10]II.2.Balance OSD-Activos'!S115=\"\",\"\",'[10]II.2.Balance OSD-Activos'!S115)","v":38893.430044181674},36045.224221951023,75498.323773460317,30.687606208283924,7.1626698671983791,-24.719389937825554,6.8640136282447139,8.6952814409888326,7.6064671251587335,1.3661599316501238,{"$f":"IF('[1]MONE(M)CAPARD'!AS257=\"\",\"\",'[1]MONE(M)CAPARD'!AS257)","v":7.5},{"$f":"IF('[1]MONE(M)CAPARD'!AT257=\"\",\"\",'[1]MONE(M)CAPARD'!AT257)","v":"n.a."},{"$f":"IF('[1]MONE(M)CAPARD'!AU257=\"\",\"\",'[1]MONE(M)CAPARD'!AU257)","v":4.5},{"$f":"IF('[1]MONE(M)CAPARD'!AV257=\"\",\"\",'[1]MONE(M)CAPARD'!AV257)","v":4.5},{"$f":"IF('[1]MONE(M)CAPARD'!AW257=\"\",\"\",'[1]MONE(M)CAPARD'!AW257)","v":"n.a."},{"$f":"IF('[1]MONE(M)CAPARD'!AX257=\"\",\"\",'[1]MONE(M)CAPARD'!AX257)","v":4},{"$f":"IF('[1]MONE(M)CAPARD'!AY257=\"\",\"\",'[1]MONE(M)CAPARD'!AY257)","v":"n.a."},{"$f":"IF('[1]FISCAL(M)'!$K257=\"\",\"\",'[1]FISCAL(M)'!$K257)","v":-2949.8078751244375},{"$f":"IF('[1]FISCAL(M)'!$L257=\"\",\"\",'[1]FISCAL(M)'!$L257)","v":-3851.0126633544373},{"$f":"IF('[1]FISCAL(M)'!$AY257=\"\",\"\",'[1]FISCAL(M)'!$AY257)","v":"n.d."},{"$f":"IF('[1]FISCAL(M)'!$BI257=\"\",\"\",'[1]FISCAL(M)'!$BI257)","v":"n.d."},{"$f":"IF('[1]FISCAL(M)'!$BS257=\"\",\"\",'[1]FISCAL(M)'!$BS257)","v":"n.d."},{"$f":"IF('[1]FISCAL(M)'!$AZ257=\"\",\"\",'[1]FISCAL(M)'!$AZ257)","v":"n.d."},{"$f":"IF('[1]FISCAL(M)'!$BJ257=\"\",\"\",'[1]FISCAL(M)'!$BJ257)","v":"n.d."},{"$f":"IF('[1]FISCAL(M)'!$BT257=\"\",\"\",'[1]FISCAL(M)'!$BT257)","v":"n.d."},{"$f":"IF('[2]MONE(M)'!$AO257=\"\",\"\",'[2]MONE(M)'!$AO257)","v":8917607.7135359719},{"$f":"IF('[3]MONE(M)'!$AO257=\"\",\"\",'[3]MONE(M)'!$AO257)","v":8633.9216551201207},{"$f":"IF('[4]MONE(M)'!$AO257=\"\",\"\",'[4]MONE(M)'!$AO257)","v":82069.762803661753},{"$f":"+'[5]MONE(M)'!$AO257","v":138218.64223320456},{"$f":"IF('[6]MONE(M)'!$AO257=\"\",\"\",'[6]MONE(M)'!$AO257)","v":41860.746989763778},{"$f":"IF('[7]MONE(M)'!$AO257=\"\",\"\",'[7]MONE(M)'!$AO257)","v":398940.41208366997},{"$f":"IF('[8]MONE(M)'!$AO257=\"\",\"\",'[8]MONE(M)'!$AO257)","v":21921.66319078},1.7237543757345763,-1.4200035095007446,-0.24439180601587562,1.7200458566081656,-3.2249351086832245,17.855962361618573,10.245898363318439,{"$f":"IF('[1]FISCAL(M)'!$K257=\"\",\"\",'[1]FISCAL(M)'!$K257)","v":-2949.8078751244375},{"$f":"+'[1]REAL(A)'!$AO$30","v":176102.10453812065},-1.6750554360841812,{"$f":"IF('[1]FISCAL(M)'!$L257=\"\",\"\",'[1]FISCAL(M)'!$L257)","v":-3851.0126633544373},{"$f":"+'[1]REAL(A)'!$AP$30","v":205542.39353812064},-1.8735855883862784,78758.234403160532,{"$f":"'[1]Gráfico REM'!BG251","v":17312.552797574972},{"$f":"'[1]Gráfico REM'!BH251","v":56566.297519024287},{"$f":"'[1]Gráfico REM'!BI251","v":4879.3840865612674},11.92588315110379,27.814312706626598,7.9760725506387686,10.056456974222217,115690.19470346053,{"$f":"'[1]Gráfico REM'!BK251","v":18152.180939694972},{"$f":"'[1]Gráfico REM'!BL251","v":78487.960709804291},{"$f":"'[1]Gráfico REM'!BM251","v":19050.053053961263},9.8894291214202124,26.031049757268022,8.6005728652564848,2.3995818522738466]
[2010,"septiembre","2010-septiembre",{"$f":"IF('[1]REAL IPC(M)'!$AL258=\"\",\"\",+'[1]REAL IPC(M)'!$AL258)","v":4.4195674899689452},{"$f":"IF('[1]REAL IPC(M)'!$BE258=\"\",\"\",+'[1]REAL IPC(M)'!$BE258)","v":5.1605335342457925},{"$f":"IF('[1]REAL IPC(M)'!$AM258=\"\",\"\",+'[1]REAL IPC(M)'!$AM258)","v":4.3980982430219306},{"$f":"IF('[1]REAL IPC(M)'!$BI258=\"\",\"\",+'[1]REAL IPC(M)'!$BI258)","v":5.0821697612227323},{"$f":"IF('[1]REAL IMAE(M)'!BJ258=\"\",\"\",'[1]REAL IMAE(M)'!BJ258)","v":5.3166736677112691},{"$f":"IF('[1]REAL IMAE(M)'!BK258=\"\",\"\",'[1]REAL IMAE(M)'!BK258)","v":3.3457396851061638},{"$f":"IF('[1]REAL IMAE(M)'!BN258=\"\",\"\",'[1]REAL IMAE(M)'!BN258)","v":5.4016697618635146},{"$f":"IF('[1]REAL IMAE(M)'!BO258=\"\",\"\",'[1]REAL IMAE(M)'!BO258)","v":3.811257435208093},{"$f":"IF('[1]EXT RIN(M)'!$K258=\"\",\"\",'[1]EXT RIN(M)'!$K258)","v":18522.040248679332},"",{"$f":"IF('[1]EXT RIN(M)'!$L258=\"\",\"\",'[1]EXT RIN(M)'!$L258)","v":20831.63266923933},"",{"$f":"IF('[1]MONE(M)CARD'!EG258=\"\",\"\",'[1]MONE(M)CARD'!EG258)","v":19725.229333694049},{"$f":"IF('[1]MONE(M)CARD'!EK258=\"\",\"\",'[1]MONE(M)CARD'!EK258)","v":34763.5088396754},{"$f":"IF('[1]MONE(M)CARD'!EP258=\"\",\"\",'[1]MONE(M)CARD'!EP258)","v":20679.618748429435},{"$f":"IF('[1]MONE(M)CARD'!ES258=\"\",\"\",'[1]MONE(M)CARD'!ES258)","v":16.025833093970121},{"$f":"IF('[1]MONE(M)CARD'!EV258=\"\",\"\",'[1]MONE(M)CARD'!EV258)","v":10.089419311681812},{"$f":"IF('[1]MONE(M)CARD'!EZ258=\"\",\"\",'[1]MONE(M)CARD'!EZ258)","v":9.6838367360565503},{"$f":"IF('[1]MONE(M)CAPARD'!FC258=\"\",\"\",'[1]MONE(M)CAPARD'!FC258)","v":24255.376842434045},{"$f":"IF('[1]MONE(M)CAPARD'!FG258=\"\",\"\",'[1]MONE(M)CAPARD'!FG258)","v":53222.538974585397},{"$f":"IF('[1]MONE(M)CAPARD'!FL258=\"\",\"\",'[1]MONE(M)CAPARD'!FL258)","v":20679.618748429435},{"$f":"IF('[1]MONE(M)CAPARD'!FO258=\"\",\"\",'[1]MONE(M)CAPARD'!FO258)","v":15.877112351058443},{"$f":"IF('[1]MONE(M)CAPARD'!FR258=\"\",\"\",'[1]MONE(M)CAPARD'!FR258)","v":9.8572880416330833},{"$f":"IF('[1]MONE(M)CAPARD'!FV258=\"\",\"\",'[1]MONE(M)CAPARD'!FV258)","v":9.5962838871266776},{"$f":"IF('[1]MONE(M)CARD'!FV258=\"\",\"\",'[1]MONE(M)CARD'!FV258)","v":2473.5927553105848},{"$f":"IF('[1]MONE(M)CARD'!GD258=\"\",\"\",'[1]MONE(M)CARD'!GD258)","v":178.51287246520434},{"$f":"IF('[1]MONE(M)CARD'!GE258=\"\",\"\",'[1]MONE(M)CARD'!GE258)","v":5820.4962524903358},11.726036480787116,{"$f":"IF('[9]II.2.Balance OSD-Activos'!J116=\"\",\"\",'[9]II.2.Balance OSD-Activos'!J116)","v":187.17577397471587},{"$f":"IF('[9]II.2.Balance OSD-Activos'!N116=\"\",\"\",'[9]II.2.Balance OSD-Activos'!N116)","v":326.2576133073855},{"$f":"IF('[9]II.2.Balance OSD-Activos'!R116=\"\",\"\",'[9]II.2.Balance OSD-Activos'!R116)","v":24398.854862990462},{"$f":"IF('[9]II.2.Balance OSD-Activos'!S116=\"\",\"\",'[9]II.2.Balance OSD-Activos'!S116)","v":29075.765013725264},24586.030636965177,53988.053263997826,20.673645297329202,5.5296007433233152,1.0209057164103141,5.4281007477006593,8.2776749376723089,6.9627794594806947,-7.0212887501130972E-2,{"$f":"IF('[1]MONE(M)CAPARD'!GS258=\"\",\"\",'[1]MONE(M)CAPARD'!GS258)","v":11822.04184456252},{"$f":"IF('[1]MONE(M)CARD'!HA258=\"\",\"\",'[1]MONE(M)CAPARD'!HA258)","v":6369.2093889803355},{"$f":"IF('[1]MONE(M)CAPARD'!HB258=\"\",\"\",'[1]MONE(M)CAPARD'!HB258)","v":5452.8324555821846},"n.d.",{"$f":"IF('[10]II.2.Balance OSD-Activos'!J116=\"\",\"\",'[10]II.2.Balance OSD-Activos'!J116)","v":554.59245771471592},{"$f":"IF('[10]II.2.Balance OSD-Activos'!N116=\"\",\"\",'[10]II.2.Balance OSD-Activos'!N116)","v":561.32260867738546},{"$f":"IF('[10]II.2.Balance OSD-Activos'!R116=\"\",\"\",'[10]II.2.Balance OSD-Activos'!R116)","v":35784.83523227046},{"$f":"IF('[10]II.2.Balance OSD-Activos'!S116=\"\",\"\",'[10]II.2.Balance OSD-Activos'!S116)","v":39159.270392765269},36339.427689985176,76060.020691427839,19.124361652436583,7.9087723494064344,-23.263935701321603,7.7515479420613209,8.87979417925877,8.0810058387081884,0.47453871354945498,{"$f":"IF('[1]MONE(M)CAPARD'!AS258=\"\",\"\",'[1]MONE(M)CAPARD'!AS258)","v":7.5},{"$f":"IF('[1]MONE(M)CAPARD'!AT258=\"\",\"\",'[1]MONE(M)CAPARD'!AT258)","v":"n.a."},{"$f":"IF('[1]MONE(M)CAPARD'!AU258=\"\",\"\",'[1]MONE(M)CAPARD'!AU258)","v":4.5},{"$f":"IF('[1]MONE(M)CAPARD'!AV258=\"\",\"\",'[1]MONE(M)CAPARD'!AV258)","v":4.5},{"$f":"IF('[1]MONE(M)CAPARD'!AW258=\"\",\"\",'[1]MONE(M)CAPARD'!AW258)","v":"n.a."},{"$f":"IF('[1]MONE(M)CAPARD'!AX258=\"\",\"\",'[1]MONE(M)CAPARD'!AX258)","v":4},{"$f":"IF('[1]MONE(M)CAPARD'!AY258=\"\",\"\",'[1]MONE(M)CAPARD'!AY258)","v":"n.a."},{"$f":"IF('[1]FISCAL(M)'!$K258=\"\",\"\",'[1]FISCAL(M)'!$K258)","v":-3365.9103100833872},{"$f":"IF('[1]FISCAL(M)'!$L258=\"\",\"\",'[1]FISCAL(M)'!$L258)","v":-4352.2010806033868},{"$f":"IF('[1]FISCAL(M)'!$AY258=\"\",\"\",'[1]FISCAL(M)'!$AY258)","v":64099.001384015341},{"$f":"IF('[1]FISCAL(M)'!$BI258=\"\",\"\",'[1]FISCAL(M)'!$BI258)","v":31526.642430240303},{"$f":"IF('[1]FISCAL(M)'!$BS258=\"\",\"\",'[1]FISCAL(M)'!$BS258)","v":32572.358953775038},{"$f":"IF('[1]FISCAL(M)'!$AZ258=\"\",\"\",'[1]FISCAL(M)'!$AZ258)","v":75604.27069368535},{"$f":"IF('[1]FISCAL(M)'!$BJ258=\"\",\"\",'[1]FISCAL(M)'!$BJ258)","v":32856.709312140301},{"$f":"IF('[1]FISCAL(M)'!$BT258=\"\",\"\",'[1]FISCAL(M)'!$BT258)","v":42740.94511327504},{"$f":"IF('[2]MONE(M)'!$AO258=\"\",\"\",'[2]MONE(M)'!$AO258)","v":8919487.4831184968},{"$f":"IF('[3]MONE(M)'!$AO258=\"\",\"\",'[3]MONE(M)'!$AO258)","v":8607.2974200199988},{"$f":"IF('[4]MONE(M)'!$AO258=\"\",\"\",'[4]MONE(M)'!$AO258)","v":81762.583698642586},{"$f":"+'[5]MONE(M)'!$AO258","v":138806.09874980117},{"$f":"IF('[6]MONE(M)'!$AO258=\"\",\"\",'[6]MONE(M)'!$AO258)","v":42171.95173212378},{"$f":"IF('[7]MONE(M)'!$AO258=\"\",\"\",'[7]MONE(M)'!$AO258)","v":403640.76087067003},{"$f":"IF('[8]MONE(M)'!$AO258=\"\",\"\",'[8]MONE(M)'!$AO258)","v":22386.808676740002},1.008876677512327,-1.3380359155180321,-0.95469893754525081,1.6382402935991358,-2.030285639580276,17.498784569528336,12.381713473520906,{"$f":"IF('[1]FISCAL(M)'!$K258=\"\",\"\",'[1]FISCAL(M)'!$K258)","v":-3365.9103100833872},{"$f":"+'[1]REAL(A)'!$AO$30","v":176102.10453812065},-1.9113401960251823,{"$f":"IF('[1]FISCAL(M)'!$L258=\"\",\"\",'[1]FISCAL(M)'!$L258)","v":-4352.2010806033868},{"$f":"+'[1]REAL(A)'!$AP$30","v":205542.39353812064},-2.1174225937950908,78512.324662128842,{"$f":"'[1]Gráfico REM'!BG252","v":17163.490572969538},{"$f":"'[1]Gráfico REM'!BH252","v":56582.112075448313},{"$f":"'[1]Gráfico REM'!BI252","v":4766.7220137109971},11.019212142926404,24.055405134457295,7.5402023723652123,11.64866086259433,115953.17085900884,{"$f":"'[1]Gráfico REM'!BK252","v":18068.242402789539},{"$f":"'[1]Gráfico REM'!BL252","v":78968.920752188307},{"$f":"'[1]Gráfico REM'!BM252","v":18916.007704030999},9.4196728002852836,22.959606708650604,8.8698262243320123,0.93158832627449062]
[2010,"octubre","2010-octubre",{"$f":"IF('[1]REAL IPC(M)'!$AL259=\"\",\"\",+'[1]REAL IPC(M)'!$AL259)","v":5.1693649493564475},{"$f":"IF('[1]REAL IPC(M)'!$BE259=\"\",\"\",+'[1]REAL IPC(M)'!$BE259)","v":5.1569950048593771},{"$f":"IF('[1]REAL IPC(M)'!$AM259=\"\",\"\",+'[1]REAL IPC(M)'!$AM259)","v":5.0586112094798796},{"$f":"IF('[1]REAL IPC(M)'!$BI259=\"\",\"\",+'[1]REAL IPC(M)'!$BI259)","v":5.0888747408880164},{"$f":"IF('[1]REAL IMAE(M)'!BJ259=\"\",\"\",'[1]REAL IMAE(M)'!BJ259)","v":5.2421004808563598},{"$f":"IF('[1]REAL IMAE(M)'!BK259=\"\",\"\",'[1]REAL IMAE(M)'!BK259)","v":3.413820888711383},{"$f":"IF('[1]REAL IMAE(M)'!BN259=\"\",\"\",'[1]REAL IMAE(M)'!BN259)","v":5.3295719744853587},{"$f":"IF('[1]REAL IMAE(M)'!BO259=\"\",\"\",'[1]REAL IMAE(M)'!BO259)","v":3.8955584410881539},{"$f":"IF('[1]EXT RIN(M)'!$K259=\"\",\"\",'[1]EXT RIN(M)'!$K259)","v":18988.695672263915},"",{"$f":"IF('[1]EXT RIN(M)'!$L259=\"\",\"\",'[1]EXT RIN(M)'!$L259)","v":21306.404632093916},"",{"$f":"IF('[1]MONE(M)CARD'!EG259=\"\",\"\",'[1]MONE(M)CARD'!EG259)","v":19963.033023365781},{"$f":"IF('[1]MONE(M)CARD'!EK259=\"\",\"\",'[1]MONE(M)CARD'!EK259)","v":34828.49855024038},{"$f":"IF('[1]MONE(M)CARD'!EP259=\"\",\"\",'[1]MONE(M)CARD'!EP259)","v":20669.424237638566},{"$f":"IF('[1]MONE(M)CARD'!ES259=\"\",\"\",'[1]MONE(M)CARD'!ES259)","v":13.853168686095184},{"$f":"IF('[1]MONE(M)CARD'!EV259=\"\",\"\",'[1]MONE(M)CARD'!EV259)","v":8.8645218383724522},{"$f":"IF('[1]MONE(M)CARD'!EZ259=\"\",\"\",'[1]MONE(M)CARD'!EZ259)","v":8.8589700811359862},{"$f":"IF('[1]MONE(M)CAPARD'!FC259=\"\",\"\",'[1]MONE(M)CAPARD'!FC259)","v":24692.518006775783},{"$f":"IF('[1]MONE(M)CAPARD'!FG259=\"\",\"\",'[1]MONE(M)CAPARD'!FG259)","v":53396.839263780384},{"$f":"IF('[1]MONE(M)CAPARD'!FL259=\"\",\"\",'[1]MONE(M)CAPARD'!FL259)","v":20669.424237638566},{"$f":"IF('[1]MONE(M)CAPARD'!FO259=\"\",\"\",'[1]MONE(M)CAPARD'!FO259)","v":15.665351201708022},{"$f":"IF('[1]MONE(M)CAPARD'!FR259=\"\",\"\",'[1]MONE(M)CAPARD'!FR259)","v":9.4545799249243991},{"$f":"IF('[1]MONE(M)CAPARD'!FV259=\"\",\"\",'[1]MONE(M)CAPARD'!FV259)","v":9.3262783058070795},{"$f":"IF('[1]MONE(M)CARD'!FV259=\"\",\"\",'[1]MONE(M)CARD'!FV259)","v":2493.3883179373456},{"$f":"IF('[1]MONE(M)CARD'!GD259=\"\",\"\",'[1]MONE(M)CARD'!GD259)","v":87.102474031208274},{"$f":"IF('[1]MONE(M)CARD'!GE259=\"\",\"\",'[1]MONE(M)CARD'!GE259)","v":5760.5292768738645},7.9307993310504088,{"$f":"IF('[9]II.2.Balance OSD-Activos'!J117=\"\",\"\",'[9]II.2.Balance OSD-Activos'!J117)","v":189.98976879421971},{"$f":"IF('[9]II.2.Balance OSD-Activos'!N117=\"\",\"\",'[9]II.2.Balance OSD-Activos'!N117)","v":311.38192041103065},{"$f":"IF('[9]II.2.Balance OSD-Activos'!R117=\"\",\"\",'[9]II.2.Balance OSD-Activos'!R117)","v":24965.322142371751},{"$f":"IF('[9]II.2.Balance OSD-Activos'!S117=\"\",\"\",'[9]II.2.Balance OSD-Activos'!S117)","v":29328.51818627083},25155.311911165973,54795.212017847836,10.124991887117375,6.9103429268637662,-3.2121042224555363,6.8865983758809479,8.5794085334782277,7.7326980912903354,0.76991863180964071,{"$f":"IF('[1]MONE(M)CAPARD'!GS259=\"\",\"\",'[1]MONE(M)CAPARD'!GS259)","v":12140.256556161345},{"$f":"IF('[1]MONE(M)CARD'!HA259=\"\",\"\",'[1]MONE(M)CAPARD'!HA259)","v":6305.4078275438651},{"$f":"IF('[1]MONE(M)CAPARD'!HB259=\"\",\"\",'[1]MONE(M)CAPARD'!HB259)","v":5834.8487286174795},"n.d.",{"$f":"IF('[10]II.2.Balance OSD-Activos'!J117=\"\",\"\",'[10]II.2.Balance OSD-Activos'!J117)","v":552.22474906421974},{"$f":"IF('[10]II.2.Balance OSD-Activos'!N117=\"\",\"\",'[10]II.2.Balance OSD-Activos'!N117)","v":549.70109231103061},{"$f":"IF('[10]II.2.Balance OSD-Activos'!R117=\"\",\"\",'[10]II.2.Balance OSD-Activos'!R117)","v":36564.681922581753},{"$f":"IF('[10]II.2.Balance OSD-Activos'!S117=\"\",\"\",'[10]II.2.Balance OSD-Activos'!S117)","v":39476.748602660824},37116.906671645971,77143.356366617823,14.463800438027153,9.1313801096968952,-24.005624385025982,9.0546520038645504,9.1652431555591107,8.8105637129227254,0.72955787421453699,{"$f":"IF('[1]MONE(M)CAPARD'!AS259=\"\",\"\",'[1]MONE(M)CAPARD'!AS259)","v":6.5},{"$f":"IF('[1]MONE(M)CAPARD'!AT259=\"\",\"\",'[1]MONE(M)CAPARD'!AT259)","v":"n.a."},{"$f":"IF('[1]MONE(M)CAPARD'!AU259=\"\",\"\",'[1]MONE(M)CAPARD'!AU259)","v":4.5},{"$f":"IF('[1]MONE(M)CAPARD'!AV259=\"\",\"\",'[1]MONE(M)CAPARD'!AV259)","v":4.5},{"$f":"IF('[1]MONE(M)CAPARD'!AW259=\"\",\"\",'[1]MONE(M)CAPARD'!AW259)","v":"n.a."},{"$f":"IF('[1]MONE(M)CAPARD'!AX259=\"\",\"\",'[1]MONE(M)CAPARD'!AX259)","v":4.75},{"$f":"IF('[1]MONE(M)CAPARD'!AY259=\"\",\"\",'[1]MONE(M)CAPARD'!AY259)","v":"n.a."},{"$f":"IF('[1]FISCAL(M)'!$K259=\"\",\"\",'[1]FISCAL(M)'!$K259)","v":-3589.9862929297997},{"$f":"IF('[1]FISCAL(M)'!$L259=\"\",\"\",'[1]FISCAL(M)'!$L259)","v":-4725.9970665498004},{"$f":"IF('[1]FISCAL(M)'!$AY259=\"\",\"\",'[1]FISCAL(M)'!$AY259)","v":"n.d."},{"$f":"IF('[1]FISCAL(M)'!$BI259=\"\",\"\",'[1]FISCAL(M)'!$BI259)","v":"n.d."},{"$f":"IF('[1]FISCAL(M)'!$BS259=\"\",\"\",'[1]FISCAL(M)'!$BS259)","v":"n.d."},{"$f":"IF('[1]FISCAL(M)'!$AZ259=\"\",\"\",'[1]FISCAL(M)'!$AZ259)","v":"n.d."},{"$f":"IF('[1]FISCAL(M)'!$BJ259=\"\",\"\",'[1]FISCAL(M)'!$BJ259)","v":"n.d."},{"$f":"IF('[1]FISCAL(M)'!$BT259=\"\",\"\",'[1]FISCAL(M)'!$BT259)","v":"n.d."},{"$f":"IF('[2]MONE(M)'!$AO259=\"\",\"\",'[2]MONE(M)'!$AO259)","v":9053166.0253772754},{"$f":"IF('[3]MONE(M)'!$AO259=\"\",\"\",'[3]MONE(M)'!$AO259)","v":8599.8996099501201},{"$f":"IF('[4]MONE(M)'!$AO259=\"\",\"\",'[4]MONE(M)'!$AO259)","v":82855.912209006667},{"$f":"+'[5]MONE(M)'!$AO259","v":140523.05801135412},{"$f":"IF('[6]MONE(M)'!$AO259=\"\",\"\",'[6]MONE(M)'!$AO259)","v":42673.691291790987},{"$f":"IF('[7]MONE(M)'!$AO259=\"\",\"\",'[7]MONE(M)'!$AO259)","v":419432.36923305999},{"$f":"IF('[8]MONE(M)'!$AO259=\"\",\"\",'[8]MONE(M)'!$AO259)","v":22667.336794199997},2.0922076279112911,-0.85164261970959165,0.35824314205923358,1.8195686803927247,-0.44640047530903892,19.511237668723513,12.884656380812597,{"$f":"IF('[1]FISCAL(M)'!$K259=\"\",\"\",'[1]FISCAL(M)'!$K259)","v":-3589.9862929297997},{"$f":"+'[1]REAL(A)'!$AO$30","v":176102.10453812065},-2.0385822772224045,{"$f":"IF('[1]FISCAL(M)'!$L259=\"\",\"\",'[1]FISCAL(M)'!$L259)","v":-4725.9970665498004},{"$f":"+'[1]REAL(A)'!$AP$30","v":205542.39353812064},-2.299280934311636,79637.952393956119,{"$f":"'[1]Gráfico REM'!BG253","v":17453.434740631637},{"$f":"'[1]Gráfico REM'!BH253","v":57375.65636947607},{"$f":"'[1]Gráfico REM'!BI253","v":4808.8612838484141},11.889826983868046,26.080643679285199,8.097558838545682,13.027472858059475,117670.72771484611,{"$f":"'[1]Gráfico REM'!BK253","v":18432.872494441639},{"$f":"'[1]Gráfico REM'!BL253","v":80042.993163676059},{"$f":"'[1]Gráfico REM'!BM253","v":19194.862056728416},10.612123956095033,25.311287617995038,9.4115048772871468,3.6776258450693433]
[2010,"noviembre","2010-noviembre",{"$f":"IF('[1]REAL IPC(M)'!$AL260=\"\",\"\",+'[1]REAL IPC(M)'!$AL260)","v":5.3443465897199616},{"$f":"IF('[1]REAL IPC(M)'!$BE260=\"\",\"\",+'[1]REAL IPC(M)'!$BE260)","v":5.1553344326336292},{"$f":"IF('[1]REAL IPC(M)'!$AM260=\"\",\"\",+'[1]REAL IPC(M)'!$AM260)","v":5.2318265877609127},{"$f":"IF('[1]REAL IPC(M)'!$BI260=\"\",\"\",+'[1]REAL IPC(M)'!$BI260)","v":5.0976223991211933},{"$f":"IF('[1]REAL IMAE(M)'!BJ260=\"\",\"\",'[1]REAL IMAE(M)'!BJ260)","v":4.9679551427897373},{"$f":"IF('[1]REAL IMAE(M)'!BK260=\"\",\"\",'[1]REAL IMAE(M)'!BK260)","v":3.4765920075058965},{"$f":"IF('[1]REAL IMAE(M)'!BN260=\"\",\"\",'[1]REAL IMAE(M)'!BN260)","v":5.2575114348771379},{"$f":"IF('[1]REAL IMAE(M)'!BO260=\"\",\"\",'[1]REAL IMAE(M)'!BO260)","v":3.9749185656734243},{"$f":"IF('[1]EXT RIN(M)'!$K260=\"\",\"\",'[1]EXT RIN(M)'!$K260)","v":19453.529677027203},"",{"$f":"IF('[1]EXT RIN(M)'!$L260=\"\",\"\",'[1]EXT RIN(M)'!$L260)","v":21878.705485017203},"",{"$f":"IF('[1]MONE(M)CARD'!EG260=\"\",\"\",'[1]MONE(M)CARD'!EG260)","v":21148.667086982485},{"$f":"IF('[1]MONE(M)CARD'!EK260=\"\",\"\",'[1]MONE(M)CARD'!EK260)","v":34681.024776130231},{"$f":"IF('[1]MONE(M)CARD'!EP260=\"\",\"\",'[1]MONE(M)CARD'!EP260)","v":20648.140310264542},{"$f":"IF('[1]MONE(M)CARD'!ES260=\"\",\"\",'[1]MONE(M)CARD'!ES260)","v":16.231795113973568},{"$f":"IF('[1]MONE(M)CARD'!EV260=\"\",\"\",'[1]MONE(M)CARD'!EV260)","v":9.078972747511127},{"$f":"IF('[1]MONE(M)CARD'!EZ260=\"\",\"\",'[1]MONE(M)CARD'!EZ260)","v":8.7534649039530787},{"$f":"IF('[1]MONE(M)CAPARD'!FC260=\"\",\"\",'[1]MONE(M)CAPARD'!FC260)","v":26016.10126112248},{"$f":"IF('[1]MONE(M)CAPARD'!FG260=\"\",\"\",'[1]MONE(M)CAPARD'!FG260)","v":53125.225179940237},{"$f":"IF('[1]MONE(M)CAPARD'!FL260=\"\",\"\",'[1]MONE(M)CAPARD'!FL260)","v":20648.140310264542},{"$f":"IF('[1]MONE(M)CAPARD'!FO260=\"\",\"\",'[1]MONE(M)CAPARD'!FO260)","v":17.190331581307117},{"$f":"IF('[1]MONE(M)CAPARD'!FR260=\"\",\"\",'[1]MONE(M)CAPARD'!FR260)","v":9.4187953781603273},{"$f":"IF('[1]MONE(M)CAPARD'!FV260=\"\",\"\",'[1]MONE(M)CAPARD'!FV260)","v":9.0974331746482626},{"$f":"IF('[1]MONE(M)CARD'!FV260=\"\",\"\",'[1]MONE(M)CARD'!FV260)","v":2571.5100010195106},{"$f":"IF('[1]MONE(M)CARD'!GD260=\"\",\"\",'[1]MONE(M)CARD'!GD260)","v":89.457704709005043},{"$f":"IF('[1]MONE(M)CARD'!GE260=\"\",\"\",'[1]MONE(M)CARD'!GE260)","v":5993.5736140219369},8.6626609168009026,{"$f":"IF('[9]II.2.Balance OSD-Activos'!J118=\"\",\"\",'[9]II.2.Balance OSD-Activos'!J118)","v":188.21209819489565},{"$f":"IF('[9]II.2.Balance OSD-Activos'!N118=\"\",\"\",'[9]II.2.Balance OSD-Activos'!N118)","v":324.24173386575728},{"$f":"IF('[9]II.2.Balance OSD-Activos'!R118=\"\",\"\",'[9]II.2.Balance OSD-Activos'!R118)","v":25607.099663725981},{"$f":"IF('[9]II.2.Balance OSD-Activos'!S118=\"\",\"\",'[9]II.2.Balance OSD-Activos'!S118)","v":29676.984294392194},25795.311761920879,55796.537790178831,20.584822674786007,8.1672072907715396,-4.0825888605398593,8.0853985462455036,8.1658973094629097,8.0862945535528077,0.35359646226247232,{"$f":"IF('[1]MONE(M)CAPARD'!GS260=\"\",\"\",'[1]MONE(M)CAPARD'!GS260)","v":12093.885642555377},{"$f":"IF('[1]MONE(M)CARD'!HA260=\"\",\"\",'[1]MONE(M)CAPARD'!HA260)","v":6617.5226042119366},{"$f":"IF('[1]MONE(M)CAPARD'!HB260=\"\",\"\",'[1]MONE(M)CAPARD'!HB260)","v":5476.3630383434402},"n.d.",{"$f":"IF('[10]II.2.Balance OSD-Activos'!J118=\"\",\"\",'[10]II.2.Balance OSD-Activos'!J118)","v":585.4712105448956},{"$f":"IF('[10]II.2.Balance OSD-Activos'!N118=\"\",\"\",'[10]II.2.Balance OSD-Activos'!N118)","v":529.88017670575721},{"$f":"IF('[10]II.2.Balance OSD-Activos'!R118=\"\",\"\",'[10]II.2.Balance OSD-Activos'!R118)","v":37401.315009835984},{"$f":"IF('[10]II.2.Balance OSD-Activos'!S118=\"\",\"\",'[10]II.2.Balance OSD-Activos'!S118)","v":39795.520266202191},37986.786220380876,78312.186663288827,25.992123615719009,10.82468738051594,-29.00395978612098,10.61623525516524,8.6447522823491987,9.2954164359093649,0.48485272298663951,{"$f":"IF('[1]MONE(M)CAPARD'!AS260=\"\",\"\",'[1]MONE(M)CAPARD'!AS260)","v":6.5},{"$f":"IF('[1]MONE(M)CAPARD'!AT260=\"\",\"\",'[1]MONE(M)CAPARD'!AT260)","v":"n.a."},{"$f":"IF('[1]MONE(M)CAPARD'!AU260=\"\",\"\",'[1]MONE(M)CAPARD'!AU260)","v":4.5},{"$f":"IF('[1]MONE(M)CAPARD'!AV260=\"\",\"\",'[1]MONE(M)CAPARD'!AV260)","v":4.5},{"$f":"IF('[1]MONE(M)CAPARD'!AW260=\"\",\"\",'[1]MONE(M)CAPARD'!AW260)","v":"n.a."},{"$f":"IF('[1]MONE(M)CAPARD'!AX260=\"\",\"\",'[1]MONE(M)CAPARD'!AX260)","v":5},{"$f":"IF('[1]MONE(M)CAPARD'!AY260=\"\",\"\",'[1]MONE(M)CAPARD'!AY260)","v":"n.a."},{"$f":"IF('[1]FISCAL(M)'!$K260=\"\",\"\",'[1]FISCAL(M)'!$K260)","v":-4380.9046044301585},{"$f":"IF('[1]FISCAL(M)'!$L260=\"\",\"\",'[1]FISCAL(M)'!$L260)","v":-5565.7132863401584},{"$f":"IF('[1]FISCAL(M)'!$AY260=\"\",\"\",'[1]FISCAL(M)'!$AY260)","v":"n.d."},{"$f":"IF('[1]FISCAL(M)'!$BI260=\"\",\"\",'[1]FISCAL(M)'!$BI260)","v":"n.d."},{"$f":"IF('[1]FISCAL(M)'!$BS260=\"\",\"\",'[1]FISCAL(M)'!$BS260)","v":"n.d."},{"$f":"IF('[1]FISCAL(M)'!$AZ260=\"\",\"\",'[1]FISCAL(M)'!$AZ260)","v":"n.d."},{"$f":"IF('[1]FISCAL(M)'!$BJ260=\"\",\"\",'[1]FISCAL(M)'!$BJ260)","v":"n.d."},{"$f":"IF('[1]FISCAL(M)'!$BT260=\"\",\"\",'[1]FISCAL(M)'!$BT260)","v":"n.d."},{"$f":"IF('[2]MONE(M)'!$AO260=\"\",\"\",'[2]MONE(M)'!$AO260)","v":9104450.2187164761},{"$f":"IF('[3]MONE(M)'!$AO260=\"\",\"\",'[3]MONE(M)'!$AO260)","v":8676.4209678901207},{"$f":"IF('[4]MONE(M)'!$AO260=\"\",\"\",'[4]MONE(M)'!$AO260)","v":83899.16941222742},{"$f":"+'[5]MONE(M)'!$AO260","v":142070.21218546026},{"$f":"IF('[6]MONE(M)'!$AO260=\"\",\"\",'[6]MONE(M)'!$AO260)","v":43583.336453077507},{"$f":"IF('[7]MONE(M)'!$AO260=\"\",\"\",'[7]MONE(M)'!$AO260)","v":428301.67272053001},{"$f":"IF('[8]MONE(M)'!$AO260=\"\",\"\",'[8]MONE(M)'!$AO260)","v":22864.514068279997},4.3916362669841558,9.4309375401269158E-2,1.5030495807406563,2.2584513919664317,1.1142770907059285,19.991569162932365,14.017632302613414,{"$f":"IF('[1]FISCAL(M)'!$K260=\"\",\"\",'[1]FISCAL(M)'!$K260)","v":-4380.9046044301585},{"$f":"+'[1]REAL(A)'!$AO$30","v":176102.10453812065},-2.4877071264539192,{"$f":"IF('[1]FISCAL(M)'!$L260=\"\",\"\",'[1]FISCAL(M)'!$L260)","v":-5565.7132863401584},{"$f":"+'[1]REAL(A)'!$AP$30","v":205542.39353812064},-2.7078176869181592,80648.809091792064,{"$f":"'[1]Gráfico REM'!BG254","v":17561.103910662547},{"$f":"'[1]Gráfico REM'!BH254","v":58289.680059049744},{"$f":"'[1]Gráfico REM'!BI254","v":4798.0251220797663},11.494564165463551,23.266030411540186,8.3356180837741878,12.023144071765145,119121.19834956207,{"$f":"'[1]Gráfico REM'!BK254","v":18513.896395562548},{"$f":"'[1]Gráfico REM'!BL254","v":81154.194127329742},{"$f":"'[1]Gráfico REM'!BM254","v":19453.107826669766},11.179397629436671,22.305388084862553,9.8783606977139726,7.1939264084637911]
[2010,"diciembre","2010-diciembre",{"$f":"IF('[1]REAL IPC(M)'!$AL261=\"\",\"\",+'[1]REAL IPC(M)'!$AL261)","v":5.6513388031566691},{"$f":"IF('[1]REAL IPC(M)'!$BE261=\"\",\"\",+'[1]REAL IPC(M)'!$BE261)","v":5.1546857845828686},{"$f":"IF('[1]REAL IPC(M)'!$AM261=\"\",\"\",+'[1]REAL IPC(M)'!$AM261)","v":5.5744661881550028},{"$f":"IF('[1]REAL IPC(M)'!$BI261=\"\",\"\",+'[1]REAL IPC(M)'!$BI261)","v":5.1074418216281448},{"$f":"IF('[1]REAL IMAE(M)'!BJ261=\"\",\"\",'[1]REAL IMAE(M)'!BJ261)","v":4.8795113506851395},{"$f":"IF('[1]REAL IMAE(M)'!BK261=\"\",\"\",'[1]REAL IMAE(M)'!BK261)","v":3.5339607397472994},{"$f":"IF('[1]REAL IMAE(M)'!BN261=\"\",\"\",'[1]REAL IMAE(M)'!BN261)","v":5.1503212911464091},{"$f":"IF('[1]REAL IMAE(M)'!BO261=\"\",\"\",'[1]REAL IMAE(M)'!BO261)","v":4.0490805611440139},{"$f":"IF('[1]EXT RIN(M)'!$K261=\"\",\"\",'[1]EXT RIN(M)'!$K261)","v":21155.417328751882},21155.417328751882,{"$f":"IF('[1]EXT RIN(M)'!$L261=\"\",\"\",'[1]EXT RIN(M)'!$L261)","v":23702.040474911882},23702.040474911882,{"$f":"IF('[1]MONE(M)CARD'!EG261=\"\",\"\",'[1]MONE(M)CARD'!EG261)","v":22584.708519394102},{"$f":"IF('[1]MONE(M)CARD'!EK261=\"\",\"\",'[1]MONE(M)CARD'!EK261)","v":35537.677613002459},{"$f":"IF('[1]MONE(M)CARD'!EP261=\"\",\"\",'[1]MONE(M)CARD'!EP261)","v":20331.73027462625},{"$f":"IF('[1]MONE(M)CARD'!ES261=\"\",\"\",'[1]MONE(M)CARD'!ES261)","v":16.512134104924868},{"$f":"IF('[1]MONE(M)CARD'!EV261=\"\",\"\",'[1]MONE(M)CARD'!EV261)","v":10.831249672448461},{"$f":"IF('[1]MONE(M)CARD'!EZ261=\"\",\"\",'[1]MONE(M)CARD'!EZ261)","v":9.5326387177893999},{"$f":"IF('[1]MONE(M)CAPARD'!FC261=\"\",\"\",'[1]MONE(M)CAPARD'!FC261)","v":27815.064628774104},{"$f":"IF('[1]MONE(M)CAPARD'!FG261=\"\",\"\",'[1]MONE(M)CAPARD'!FG261)","v":54541.533979422464},{"$f":"IF('[1]MONE(M)CAPARD'!FL261=\"\",\"\",'[1]MONE(M)CAPARD'!FL261)","v":20331.730274626258},{"$f":"IF('[1]MONE(M)CAPARD'!FO261=\"\",\"\",'[1]MONE(M)CAPARD'!FO261)","v":16.931436138621624},{"$f":"IF('[1]MONE(M)CAPARD'!FR261=\"\",\"\",'[1]MONE(M)CAPARD'!FR261)","v":10.911433948176153},{"$f":"IF('[1]MONE(M)CAPARD'!FV261=\"\",\"\",'[1]MONE(M)CAPARD'!FV261)","v":9.8995063776869507},{"$f":"IF('[1]MONE(M)CARD'!FV261=\"\",\"\",'[1]MONE(M)CARD'!FV261)","v":2386.9685442517325},{"$f":"IF('[1]MONE(M)CARD'!GD261=\"\",\"\",'[1]MONE(M)CARD'!GD261)","v":89.771834037013718},{"$f":"IF('[1]MONE(M)CARD'!GE261=\"\",\"\",'[1]MONE(M)CARD'!GE261)","v":5615.6517775530046},0.64348029890870517,{"$f":"IF('[9]II.2.Balance OSD-Activos'!J119=\"\",\"\",'[9]II.2.Balance OSD-Activos'!J119)","v":165.1736972684968},{"$f":"IF('[9]II.2.Balance OSD-Activos'!N119=\"\",\"\",'[9]II.2.Balance OSD-Activos'!N119)","v":362.88722087986423},{"$f":"IF('[9]II.2.Balance OSD-Activos'!R119=\"\",\"\",'[9]II.2.Balance OSD-Activos'!R119)","v":26137.069614649798},{"$f":"IF('[9]II.2.Balance OSD-Activos'!S119=\"\",\"\",'[9]II.2.Balance OSD-Activos'!S119)","v":29667.025404806194},26302.243311918293,56332.155937604351,-5.3279080521726137,9.2192911033013303,5.8191674219172596,9.3254515374977096,8.3262231402181577,8.7247267303849352,0.6384321768321275,{"$f":"IF('[1]MONE(M)CAPARD'!GS261=\"\",\"\",'[1]MONE(M)CAPARD'!GS261)","v":12172.686150028216},{"$f":"IF('[1]MONE(M)CARD'!HA261=\"\",\"\",'[1]MONE(M)CAPARD'!HA261)","v":6193.3626738030052},{"$f":"IF('[1]MONE(M)CAPARD'!HB261=\"\",\"\",'[1]MONE(M)CAPARD'!HB261)","v":5979.3234762252105},"n.d.",{"$f":"IF('[10]II.2.Balance OSD-Activos'!J119=\"\",\"\",'[10]II.2.Balance OSD-Activos'!J119)","v":636.07956269849683},{"$f":"IF('[10]II.2.Balance OSD-Activos'!N119=\"\",\"\",'[10]II.2.Balance OSD-Activos'!N119)","v":584.19574931986438},{"$f":"IF('[10]II.2.Balance OSD-Activos'!R119=\"\",\"\",'[10]II.2.Balance OSD-Activos'!R119)","v":37661.988848319801},{"$f":"IF('[10]II.2.Balance OSD-Activos'!S119=\"\",\"\",'[10]II.2.Balance OSD-Activos'!S119)","v":39872.795577456192},38298.068411018299,78755.059737794363,37.483970056688086,12.023401462553762,-21.963937525603317,11.674119016175055,8.743219635251398,9.9883239143000235,0.69290747839065858,{"$f":"IF('[1]MONE(M)CAPARD'!AS261=\"\",\"\",'[1]MONE(M)CAPARD'!AS261)","v":6.5},{"$f":"IF('[1]MONE(M)CAPARD'!AT261=\"\",\"\",'[1]MONE(M)CAPARD'!AT261)","v":"n.a."},{"$f":"IF('[1]MONE(M)CAPARD'!AU261=\"\",\"\",'[1]MONE(M)CAPARD'!AU261)","v":4.5},{"$f":"IF('[1]MONE(M)CAPARD'!AV261=\"\",\"\",'[1]MONE(M)CAPARD'!AV261)","v":4.5},{"$f":"IF('[1]MONE(M)CAPARD'!AW261=\"\",\"\",'[1]MONE(M)CAPARD'!AW261)","v":"n.a."},{"$f":"IF('[1]MONE(M)CAPARD'!AX261=\"\",\"\",'[1]MONE(M)CAPARD'!AX261)","v":5},{"$f":"IF('[1]MONE(M)CAPARD'!AY261=\"\",\"\",'[1]MONE(M)CAPARD'!AY261)","v":"n.a."},{"$f":"IF('[1]FISCAL(M)'!$K261=\"\",\"\",'[1]FISCAL(M)'!$K261)","v":-5971.153078404227},{"$f":"IF('[1]FISCAL(M)'!$L261=\"\",\"\",'[1]FISCAL(M)'!$L261)","v":-5970.9545345642264},{"$f":"IF('[1]FISCAL(M)'!$AY261=\"\",\"\",'[1]FISCAL(M)'!$AY261)","v":67116.420440396847},{"$f":"IF('[1]FISCAL(M)'!$BI261=\"\",\"\",'[1]FISCAL(M)'!$BI261)","v":32739.638756987682},{"$f":"IF('[1]FISCAL(M)'!$BS261=\"\",\"\",'[1]FISCAL(M)'!$BS261)","v":34376.781683409172},{"$f":"IF('[1]FISCAL(M)'!$AZ261=\"\",\"\",'[1]FISCAL(M)'!$AZ261)","v":78828.462275326849},{"$f":"IF('[1]FISCAL(M)'!$BJ261=\"\",\"\",'[1]FISCAL(M)'!$BJ261)","v":34013.147284697683},{"$f":"IF('[1]FISCAL(M)'!$BT261=\"\",\"\",'[1]FISCAL(M)'!$BT261)","v":44809.567902169169},{"$f":"IF('[2]MONE(M)'!$AO261=\"\",\"\",'[2]MONE(M)'!$AO261)","v":9286261.0529342201},{"$f":"IF('[3]MONE(M)'!$AO261=\"\",\"\",'[3]MONE(M)'!$AO261)","v":8726.804724640002},{"$f":"IF('[4]MONE(M)'!$AO261=\"\",\"\",'[4]MONE(M)'!$AO261)","v":84980.342242991086},{"$f":"+'[5]MONE(M)'!$AO261","v":142544.46384274022},{"$f":"IF('[6]MONE(M)'!$AO261=\"\",\"\",'[6]MONE(M)'!$AO261)","v":45388.328275109772},{"$f":"IF('[7]MONE(M)'!$AO261=\"\",\"\",'[7]MONE(M)'!$AO261)","v":434557.58259563998},{"$f":"IF('[8]MONE(M)'!$AO261=\"\",\"\",'[8]MONE(M)'!$AO261)","v":22764.798215510004},{"$f":"((BY254/BY242)-1)*100","v":4.8732915685316902},-0.33722280891428369,2.3312663598876737,2.6918617399883882,5.6515140688908838,20.403388847884152,14.799033755551871,{"$f":"IF('[1]FISCAL(M)'!$K261=\"\",\"\",'[1]FISCAL(M)'!$K261)","v":-5971.153078404227},{"$f":"+'[1]REAL(A)'!$AO$30","v":176102.10453812065},-3.390733514551302,{"$f":"IF('[1]FISCAL(M)'!$L261=\"\",\"\",'[1]FISCAL(M)'!$L261)","v":-5970.9545345642264},{"$f":"+'[1]REAL(A)'!$AP$30","v":205542.39353812064},-2.9049747021929235,81523.229151631269,{"$f":"'[1]Gráfico REM'!BG255","v":17730.354737906633},{"$f":"'[1]Gráfico REM'!BH255","v":58847.162565123901},{"$f":"'[1]Gráfico REM'!BI255","v":4945.711848600733},11.991092668582425,22.10580608475976,9.0501439531597949,14.736257043719746,119991.93162421127,{"$f":"'[1]Gráfico REM'!BK255","v":18702.103784446634},{"$f":"'[1]Gráfico REM'!BL255","v":81611.960780633905},{"$f":"'[1]Gráfico REM'!BM255","v":19677.867059130731},11.894574104665679,21.994406760700702,10.595011616528405,8.6408409531876895]
[2011,"enero","2011-enero",{"$f":"IF('[1]REAL IPC(M)'!$AL262=\"\",\"\",+'[1]REAL IPC(M)'!$AL262)","v":5.2824653900971796},{"$f":"IF('[1]REAL IPC(M)'!$BE262=\"\",\"\",+'[1]REAL IPC(M)'!$BE262)","v":5.1542150665086384},{"$f":"IF('[1]REAL IPC(M)'!$AM262=\"\",\"\",+'[1]REAL IPC(M)'!$AM262)","v":5.2309682928413537},{"$f":"IF('[1]REAL IPC(M)'!$BI262=\"\",\"\",+'[1]REAL IPC(M)'!$BI262)","v":5.1173939838345506},{"$f":"IF('[1]REAL IMAE(M)'!BJ262=\"\",\"\",'[1]REAL IMAE(M)'!BJ262)","v":4.8850908442156449},{"$f":"IF('[1]REAL IMAE(M)'!BK262=\"\",\"\",'[1]REAL IMAE(M)'!BK262)","v":3.5859298746110824},{"$f":"IF('[1]REAL IMAE(M)'!BN262=\"\",\"\",'[1]REAL IMAE(M)'!BN262)","v":5.2070180960828161},{"$f":"IF('[1]REAL IMAE(M)'!BO262=\"\",\"\",'[1]REAL IMAE(M)'!BO262)","v":4.1178809047089704},{"$f":"IF('[1]EXT RIN(M)'!$K262=\"\",\"\",'[1]EXT RIN(M)'!$K262)","v":20329.666946779656},"",{"$f":"IF('[1]EXT RIN(M)'!$L262=\"\",\"\",'[1]EXT RIN(M)'!$L262)","v":23252.229599089656},"",{"$f":"IF('[1]MONE(M)CARD'!EG262=\"\",\"\",'[1]MONE(M)CARD'!EG262)","v":22249.451809925955},{"$f":"IF('[1]MONE(M)CARD'!EK262=\"\",\"\",'[1]MONE(M)CARD'!EK262)","v":35721.946667184864},{"$f":"IF('[1]MONE(M)CARD'!EP262=\"\",\"\",'[1]MONE(M)CARD'!EP262)","v":20908.744380892851},{"$f":"IF('[1]MONE(M)CARD'!ES262=\"\",\"\",'[1]MONE(M)CARD'!ES262)","v":14.549321862254839},{"$f":"IF('[1]MONE(M)CARD'!EV262=\"\",\"\",'[1]MONE(M)CARD'!EV262)","v":10.552668840141589},{"$f":"IF('[1]MONE(M)CARD'!EZ262=\"\",\"\",'[1]MONE(M)CARD'!EZ262)","v":9.7315461604913231},{"$f":"IF('[1]MONE(M)CAPARD'!FC262=\"\",\"\",'[1]MONE(M)CAPARD'!FC262)","v":27404.314496815958},{"$f":"IF('[1]MONE(M)CAPARD'!FG262=\"\",\"\",'[1]MONE(M)CAPARD'!FG262)","v":54782.39794630486},{"$f":"IF('[1]MONE(M)CAPARD'!FL262=\"\",\"\",'[1]MONE(M)CAPARD'!FL262)","v":20908.744380892851},{"$f":"IF('[1]MONE(M)CAPARD'!FO262=\"\",\"\",'[1]MONE(M)CAPARD'!FO262)","v":14.550094971307125},{"$f":"IF('[1]MONE(M)CAPARD'!FR262=\"\",\"\",'[1]MONE(M)CAPARD'!FR262)","v":10.143314080951725},{"$f":"IF('[1]MONE(M)CAPARD'!FV262=\"\",\"\",'[1]MONE(M)CAPARD'!FV262)","v":9.6004388470476201},{"$f":"IF('[1]MONE(M)CARD'!FV262=\"\",\"\",'[1]MONE(M)CARD'!FV262)","v":2409.2727712851647},{"$f":"IF('[1]MONE(M)CARD'!GD262=\"\",\"\",'[1]MONE(M)CARD'!GD262)","v":84.027790037547788},{"$f":"IF('[1]MONE(M)CARD'!GE262=\"\",\"\",'[1]MONE(M)CARD'!GE262)","v":6026.9699498383352},14.913302785635585,{"$f":"IF('[9]II.2.Balance OSD-Activos'!J120=\"\",\"\",'[9]II.2.Balance OSD-Activos'!J120)","v":198.09612973656414},{"$f":"IF('[9]II.2.Balance OSD-Activos'!N120=\"\",\"\",'[9]II.2.Balance OSD-Activos'!N120)","v":354.68000319644904},{"$f":"IF('[9]II.2.Balance OSD-Activos'!R120=\"\",\"\",'[9]II.2.Balance OSD-Activos'!R120)","v":26191.9927204171},{"$f":"IF('[9]II.2.Balance OSD-Activos'!S120=\"\",\"\",'[9]II.2.Balance OSD-Activos'!S120)","v":29985.609712798287},26390.088850153665,56730.3785661484,17.578930646082203,9.8307255788991696,7.0696480888096325,9.7760130859788639,9.1278139449779481,9.4404830364602113,0.71575630607527607,{"$f":"IF('[1]MONE(M)CAPARD'!GS262=\"\",\"\",'[1]MONE(M)CAPARD'!GS262)","v":12334.879235392402},{"$f":"IF('[1]MONE(M)CARD'!HA262=\"\",\"\",'[1]MONE(M)CAPARD'!HA262)","v":6616.4841486883352},{"$f":"IF('[1]MONE(M)CAPARD'!HB262=\"\",\"\",'[1]MONE(M)CAPARD'!HB262)","v":5718.3950867040667},"n.d.",{"$f":"IF('[10]II.2.Balance OSD-Activos'!J120=\"\",\"\",'[10]II.2.Balance OSD-Activos'!J120)","v":672.93262405656412},{"$f":"IF('[10]II.2.Balance OSD-Activos'!N120=\"\",\"\",'[10]II.2.Balance OSD-Activos'!N120)","v":573.80146260644892},{"$f":"IF('[10]II.2.Balance OSD-Activos'!R120=\"\",\"\",'[10]II.2.Balance OSD-Activos'!R120)","v":37849.6625564571},{"$f":"IF('[10]II.2.Balance OSD-Activos'!S120=\"\",\"\",'[10]II.2.Balance OSD-Activos'!S120)","v":40235.158275838279},38522.595180513665,79331.554918958398,46.976257556277304,13.178686126039985,-21.724769370249241,12.717856276591588,8.9127166601003172,10.624294229616481,0.63597031531645776,{"$f":"IF('[1]MONE(M)CAPARD'!AS262=\"\",\"\",'[1]MONE(M)CAPARD'!AS262)","v":6.5},{"$f":"IF('[1]MONE(M)CAPARD'!AT262=\"\",\"\",'[1]MONE(M)CAPARD'!AT262)","v":"n.a."},{"$f":"IF('[1]MONE(M)CAPARD'!AU262=\"\",\"\",'[1]MONE(M)CAPARD'!AU262)","v":4.5},{"$f":"IF('[1]MONE(M)CAPARD'!AV262=\"\",\"\",'[1]MONE(M)CAPARD'!AV262)","v":4.5},{"$f":"IF('[1]MONE(M)CAPARD'!AW262=\"\",\"\",'[1]MONE(M)CAPARD'!AW262)","v":"n.a."},{"$f":"IF('[1]MONE(M)CAPARD'!AX262=\"\",\"\",'[1]MONE(M)CAPARD'!AX262)","v":5},{"$f":"IF('[1]MONE(M)CAPARD'!AY262=\"\",\"\",'[1]MONE(M)CAPARD'!AY262)","v":"n.a."},{"$f":"IF('[1]FISCAL(M)'!$K262=\"\",\"\",'[1]FISCAL(M)'!$K262)","v":-117.03554032841809},{"$f":"IF('[1]FISCAL(M)'!$L262=\"\",\"\",'[1]FISCAL(M)'!$L262)","v":-176.58863572841801},{"$f":"IF('[1]FISCAL(M)'!$AY262=\"\",\"\",'[1]FISCAL(M)'!$AY262)","v":67683.017922230953},{"$f":"IF('[1]FISCAL(M)'!$BI262=\"\",\"\",'[1]FISCAL(M)'!$BI262)","v":33331.974954978985},{"$f":"IF('[1]FISCAL(M)'!$BS262=\"\",\"\",'[1]FISCAL(M)'!$BS262)","v":34351.04296725196},{"$f":"IF('[1]FISCAL(M)'!$AZ262=\"\",\"\",'[1]FISCAL(M)'!$AZ262)","v":79891.855924810952},{"$f":"IF('[1]FISCAL(M)'!$BJ262=\"\",\"\",'[1]FISCAL(M)'!$BJ262)","v":34599.718051978984},{"$f":"IF('[1]FISCAL(M)'!$BT262=\"\",\"\",'[1]FISCAL(M)'!$BT262)","v":45292.137872831961},{"$f":"IF('[2]MONE(M)'!$AO262=\"\",\"\",'[2]MONE(M)'!$AO262)","v":9254828.5438397415},{"$f":"IF('[3]MONE(M)'!$AO262=\"\",\"\",'[3]MONE(M)'!$AO262)","v":8690.8501481400017},{"$f":"IF('[4]MONE(M)'!$AO262=\"\",\"\",'[4]MONE(M)'!$AO262)","v":85261.834755603762},{"$f":"+'[5]MONE(M)'!$AO262","v":145306.2994852562},{"$f":"IF('[6]MONE(M)'!$AO262=\"\",\"\",'[6]MONE(M)'!$AO262)","v":45443.16783084879},{"$f":"IF('[7]MONE(M)'!$AO262=\"\",\"\",'[7]MONE(M)'!$AO262)","v":434180.53339752008},{"$f":"IF('[8]MONE(M)'!$AO262=\"\",\"\",'[8]MONE(M)'!$AO262)","v":22953.672896549993},4.7256729771370409,-0.26516546969647115,2.2014088185220215,4.4391401626546978,6.4565561600332888,19.788831083214141,15.243579209077751,{"$f":"IF('[1]FISCAL(M)'!$K262=\"\",\"\",'[1]FISCAL(M)'!$K262)","v":-117.03554032841809},{"$f":"+'[1]REAL(A)'!$AO$31","v":196050.69529278859},-5.9696569886494591E-2,{"$f":"IF('[1]FISCAL(M)'!$L262=\"\",\"\",'[1]FISCAL(M)'!$L262)","v":-176.58863572841801},{"$f":"+'[1]REAL(A)'!$AP$31","v":230736.92329278859},-7.6532456621318357E-2,82697.378532170042,{"$f":"'[1]Gráfico REM'!BG256","v":18159.791623507834},{"$f":"'[1]Gráfico REM'!BH256","v":59333.004165593586},{"$f":"'[1]Gráfico REM'!BI256","v":5204.5827430686249},12.786660362612313,21.761159405774077,9.7305955662935659,20.027627814307138,121669.46402018002,{"$f":"'[1]Gráfico REM'!BK256","v":19153.533458237835},{"$f":"'[1]Gráfico REM'!BL256","v":82286.677062143572},{"$f":"'[1]Gráfico REM'!BM256","v":20229.253499798626},12.965898969746936,21.665743441994788,11.214666617923829,12.55486364541396]
[2011,"febrero","2011-febrero",{"$f":"IF('[1]REAL IPC(M)'!$AL263=\"\",\"\",+'[1]REAL IPC(M)'!$AL263)","v":5.6144133182587819},{"$f":"IF('[1]REAL IPC(M)'!$BE263=\"\",\"\",+'[1]REAL IPC(M)'!$BE263)","v":5.1531241622051027},{"$f":"IF('[1]REAL IPC(M)'!$AM263=\"\",\"\",+'[1]REAL IPC(M)'!$AM263)","v":5.5430011748737185},{"$f":"IF('[1]REAL IPC(M)'!$BI263=\"\",\"\",+'[1]REAL IPC(M)'!$BI263)","v":5.1265781587070069},{"$f":"IF('[1]REAL IMAE(M)'!BJ263=\"\",\"\",'[1]REAL IMAE(M)'!BJ263)","v":4.3071546018736528},{"$f":"IF('[1]REAL IMAE(M)'!BK263=\"\",\"\",'[1]REAL IMAE(M)'!BK263)","v":3.632585753357942},{"$f":"IF('[1]REAL IMAE(M)'!BN263=\"\",\"\",'[1]REAL IMAE(M)'!BN263)","v":4.6380661981825},{"$f":"IF('[1]REAL IMAE(M)'!BO263=\"\",\"\",'[1]REAL IMAE(M)'!BO263)","v":4.1812368540380618},{"$f":"IF('[1]EXT RIN(M)'!$K263=\"\",\"\",'[1]EXT RIN(M)'!$K263)","v":20886.358021187905},"",{"$f":"IF('[1]EXT RIN(M)'!$L263=\"\",\"\",'[1]EXT RIN(M)'!$L263)","v":23395.142635617907},"",{"$f":"IF('[1]MONE(M)CARD'!EG263=\"\",\"\",'[1]MONE(M)CARD'!EG263)","v":22295.321013673205},{"$f":"IF('[1]MONE(M)CARD'!EK263=\"\",\"\",'[1]MONE(M)CARD'!EK263)","v":35959.607357156507},{"$f":"IF('[1]MONE(M)CARD'!EP263=\"\",\"\",'[1]MONE(M)CARD'!EP263)","v":21189.636089515727},{"$f":"IF('[1]MONE(M)CARD'!ES263=\"\",\"\",'[1]MONE(M)CARD'!ES263)","v":15.849056750547241},{"$f":"IF('[1]MONE(M)CARD'!EV263=\"\",\"\",'[1]MONE(M)CARD'!EV263)","v":10.263168841647285},{"$f":"IF('[1]MONE(M)CARD'!EZ263=\"\",\"\",'[1]MONE(M)CARD'!EZ263)","v":9.3388894682402643},{"$f":"IF('[1]MONE(M)CAPARD'!FC263=\"\",\"\",'[1]MONE(M)CAPARD'!FC263)","v":27622.242346363204},{"$f":"IF('[1]MONE(M)CAPARD'!FG263=\"\",\"\",'[1]MONE(M)CAPARD'!FG263)","v":54987.692806486506},{"$f":"IF('[1]MONE(M)CAPARD'!FL263=\"\",\"\",'[1]MONE(M)CAPARD'!FL263)","v":21189.636089515712},{"$f":"IF('[1]MONE(M)CAPARD'!FO263=\"\",\"\",'[1]MONE(M)CAPARD'!FO263)","v":17.241971034435434},{"$f":"IF('[1]MONE(M)CAPARD'!FR263=\"\",\"\",'[1]MONE(M)CAPARD'!FR263)","v":10.09080005572871},{"$f":"IF('[1]MONE(M)CAPARD'!FV263=\"\",\"\",'[1]MONE(M)CAPARD'!FV263)","v":9.4188958832708067},{"$f":"IF('[1]MONE(M)CARD'!FV263=\"\",\"\",'[1]MONE(M)CARD'!FV263)","v":2670.2766583122898},{"$f":"IF('[1]MONE(M)CARD'!GD263=\"\",\"\",'[1]MONE(M)CARD'!GD263)","v":93.910039273252551},{"$f":"IF('[1]MONE(M)CARD'!GE263=\"\",\"\",'[1]MONE(M)CARD'!GE263)","v":5705.9518970850622},1.4170525957675428,{"$f":"IF('[9]II.2.Balance OSD-Activos'!J121=\"\",\"\",'[9]II.2.Balance OSD-Activos'!J121)","v":189.33457377367452},{"$f":"IF('[9]II.2.Balance OSD-Activos'!N121=\"\",\"\",'[9]II.2.Balance OSD-Activos'!N121)","v":365.37408786287773},{"$f":"IF('[9]II.2.Balance OSD-Activos'!R121=\"\",\"\",'[9]II.2.Balance OSD-Activos'!R121)","v":26261.671709053848},{"$f":"IF('[9]II.2.Balance OSD-Activos'!S121=\"\",\"\",'[9]II.2.Balance OSD-Activos'!S121)","v":30247.865723170678},26451.006282827522,57064.246093861075,6.6467866567788469,9.61025836003666,12.334789095947141,9.6322217202281948,9.6449668112783549,9.6456834564871095,0.2052004200268982,{"$f":"IF('[1]MONE(M)CAPARD'!GS263=\"\",\"\",'[1]MONE(M)CAPARD'!GS263)","v":12827.227067731108},{"$f":"IF('[1]MONE(M)CARD'!HA263=\"\",\"\",'[1]MONE(M)CAPARD'!HA263)","v":6308.9388884950622},{"$f":"IF('[1]MONE(M)CAPARD'!HB263=\"\",\"\",'[1]MONE(M)CAPARD'!HB263)","v":6518.2881792360458},"n.d.",{"$f":"IF('[10]II.2.Balance OSD-Activos'!J121=\"\",\"\",'[10]II.2.Balance OSD-Activos'!J121)","v":673.53107988367458},{"$f":"IF('[10]II.2.Balance OSD-Activos'!N121=\"\",\"\",'[10]II.2.Balance OSD-Activos'!N121)","v":591.95265541287768},{"$f":"IF('[10]II.2.Balance OSD-Activos'!R121=\"\",\"\",'[10]II.2.Balance OSD-Activos'!R121)","v":37986.090400713852},{"$f":"IF('[10]II.2.Balance OSD-Activos'!S121=\"\",\"\",'[10]II.2.Balance OSD-Activos'!S121)","v":40593.178681140678},38659.621480597525,79844.752817151078,47.800681422087862,12.604707664903581,-19.024281834795364,12.131255314995615,9.8922558010891457,10.892024640661347,0.26773041104486595,{"$f":"IF('[1]MONE(M)CAPARD'!AS263=\"\",\"\",'[1]MONE(M)CAPARD'!AS263)","v":6.5},{"$f":"IF('[1]MONE(M)CAPARD'!AT263=\"\",\"\",'[1]MONE(M)CAPARD'!AT263)","v":"n.a."},{"$f":"IF('[1]MONE(M)CAPARD'!AU263=\"\",\"\",'[1]MONE(M)CAPARD'!AU263)","v":4.5},{"$f":"IF('[1]MONE(M)CAPARD'!AV263=\"\",\"\",'[1]MONE(M)CAPARD'!AV263)","v":4.5},{"$f":"IF('[1]MONE(M)CAPARD'!AW263=\"\",\"\",'[1]MONE(M)CAPARD'!AW263)","v":"n.a."},{"$f":"IF('[1]MONE(M)CAPARD'!AX263=\"\",\"\",'[1]MONE(M)CAPARD'!AX263)","v":5},{"$f":"IF('[1]MONE(M)CAPARD'!AY263=\"\",\"\",'[1]MONE(M)CAPARD'!AY263)","v":"n.a."},{"$f":"IF('[1]FISCAL(M)'!$K263=\"\",\"\",'[1]FISCAL(M)'!$K263)","v":-1020.6345749840268},{"$f":"IF('[1]FISCAL(M)'!$L263=\"\",\"\",'[1]FISCAL(M)'!$L263)","v":-1289.6164897540264},{"$f":"IF('[1]FISCAL(M)'!$AY263=\"\",\"\",'[1]FISCAL(M)'!$AY263)","v":69384.431751894779},{"$f":"IF('[1]FISCAL(M)'!$BI263=\"\",\"\",'[1]FISCAL(M)'!$BI263)","v":35027.17274062887},{"$f":"IF('[1]FISCAL(M)'!$BS263=\"\",\"\",'[1]FISCAL(M)'!$BS263)","v":34357.259011265909},{"$f":"IF('[1]FISCAL(M)'!$AZ263=\"\",\"\",'[1]FISCAL(M)'!$AZ263)","v":81273.419708184781},{"$f":"IF('[1]FISCAL(M)'!$BJ263=\"\",\"\",'[1]FISCAL(M)'!$BJ263)","v":36306.883876448861},{"$f":"IF('[1]FISCAL(M)'!$BT263=\"\",\"\",'[1]FISCAL(M)'!$BT263)","v":44966.535831735906},{"$f":"IF('[2]MONE(M)'!$AO263=\"\",\"\",'[2]MONE(M)'!$AO263)","v":9339743.5467052702},{"$f":"IF('[3]MONE(M)'!$AO263=\"\",\"\",'[3]MONE(M)'!$AO263)","v":8694.9924182601208},{"$f":"IF('[4]MONE(M)'!$AO263=\"\",\"\",'[4]MONE(M)'!$AO263)","v":86003.143873807538},{"$f":"+'[5]MONE(M)'!$AO263","v":145612.06960074618},{"$f":"IF('[6]MONE(M)'!$AO263=\"\",\"\",'[6]MONE(M)'!$AO263)","v":44766.601000738767},{"$f":"IF('[7]MONE(M)'!$AO263=\"\",\"\",'[7]MONE(M)'!$AO263)","v":435068.90518678993},{"$f":"IF('[8]MONE(M)'!$AO263=\"\",\"\",'[8]MONE(M)'!$AO263)","v":23124.661825380001},5.9049630909127737,0.98042012787240562,4.3274836895145441,4.7077548899875143,5.4502219293966148,18.271011012419436,15.544414564792653,{"$f":"IF('[1]FISCAL(M)'!$K263=\"\",\"\",'[1]FISCAL(M)'!$K263)","v":-1020.6345749840268},{"$f":"+'[1]REAL(A)'!$AO$31","v":196050.69529278859},-0.52059727381215215,{"$f":"IF('[1]FISCAL(M)'!$L263=\"\",\"\",'[1]FISCAL(M)'!$L263)","v":-1289.6164897540264},{"$f":"+'[1]REAL(A)'!$AP$31","v":230736.92329278859},-0.55891205939224364,83865.575363467055,{"$f":"'[1]Gráfico REM'!BG257","v":19122.209115763122},{"$f":"'[1]Gráfico REM'!BH257","v":59774.335280535452},{"$f":"'[1]Gráfico REM'!BI257","v":4969.0309671684745},13.33609058702978,24.601783145227984,10.064851090268313,14.43336510576405,123199.30088041704,{"$f":"'[1]Gráfico REM'!BK257","v":20147.247411583121},{"$f":"'[1]Gráfico REM'!BL257","v":82898.997105915449},{"$f":"'[1]Gráfico REM'!BM257","v":20153.056362918476},13.404664081423379,23.715207064831322,11.54040587901186,11.776590526143259]
[2011,"marzo","2011-marzo",{"$f":"IF('[1]REAL IPC(M)'!$AL264=\"\",\"\",+'[1]REAL IPC(M)'!$AL264)","v":5.6668713827937367},{"$f":"IF('[1]REAL IPC(M)'!$BE264=\"\",\"\",+'[1]REAL IPC(M)'!$BE264)","v":5.1506454301813331},{"$f":"IF('[1]REAL IPC(M)'!$AM264=\"\",\"\",+'[1]REAL IPC(M)'!$AM264)","v":5.648080513748166},{"$f":"IF('[1]REAL IPC(M)'!$BI264=\"\",\"\",+'[1]REAL IPC(M)'!$BI264)","v":5.1341264923722818},{"$f":"IF('[1]REAL IMAE(M)'!BJ264=\"\",\"\",'[1]REAL IMAE(M)'!BJ264)","v":3.7433560220529793},{"$f":"IF('[1]REAL IMAE(M)'!BK264=\"\",\"\",'[1]REAL IMAE(M)'!BK264)","v":3.6740929084064788},{"$f":"IF('[1]REAL IMAE(M)'!BN264=\"\",\"\",'[1]REAL IMAE(M)'!BN264)","v":3.9080916259754961},{"$f":"IF('[1]REAL IMAE(M)'!BO264=\"\",\"\",'[1]REAL IMAE(M)'!BO264)","v":4.2391449099608902},{"$f":"IF('[1]EXT RIN(M)'!$K264=\"\",\"\",'[1]EXT RIN(M)'!$K264)","v":21208.109906462047},"",{"$f":"IF('[1]EXT RIN(M)'!$L264=\"\",\"\",'[1]EXT RIN(M)'!$L264)","v":23384.949252102047},"",{"$f":"IF('[1]MONE(M)CARD'!EG264=\"\",\"\",'[1]MONE(M)CARD'!EG264)","v":22947.412937386747},{"$f":"IF('[1]MONE(M)CARD'!EK264=\"\",\"\",'[1]MONE(M)CARD'!EK264)","v":36490.090329551531},{"$f":"IF('[1]MONE(M)CARD'!EP264=\"\",\"\",'[1]MONE(M)CARD'!EP264)","v":21534.813755894837},{"$f":"IF('[1]MONE(M)CARD'!ES264=\"\",\"\",'[1]MONE(M)CARD'!ES264)","v":14.225229895950719},{"$f":"IF('[1]MONE(M)CARD'!EV264=\"\",\"\",'[1]MONE(M)CARD'!EV264)","v":9.6373300283535848},{"$f":"IF('[1]MONE(M)CARD'!EZ264=\"\",\"\",'[1]MONE(M)CARD'!EZ264)","v":8.6178311887897152},{"$f":"IF('[1]MONE(M)CAPARD'!FC264=\"\",\"\",'[1]MONE(M)CAPARD'!FC264)","v":28426.269729846746},{"$f":"IF('[1]MONE(M)CAPARD'!FG264=\"\",\"\",'[1]MONE(M)CAPARD'!FG264)","v":55657.802517051539},{"$f":"IF('[1]MONE(M)CAPARD'!FL264=\"\",\"\",'[1]MONE(M)CAPARD'!FL264)","v":21534.813755894837},{"$f":"IF('[1]MONE(M)CAPARD'!FO264=\"\",\"\",'[1]MONE(M)CAPARD'!FO264)","v":16.089545325100385},{"$f":"IF('[1]MONE(M)CAPARD'!FR264=\"\",\"\",'[1]MONE(M)CAPARD'!FR264)","v":9.9048692907232283},{"$f":"IF('[1]MONE(M)CAPARD'!FV264=\"\",\"\",'[1]MONE(M)CAPARD'!FV264)","v":9.0638858354789456},{"$f":"IF('[1]MONE(M)CARD'!FV264=\"\",\"\",'[1]MONE(M)CARD'!FV264)","v":2610.8404822093726},{"$f":"IF('[1]MONE(M)CARD'!GD264=\"\",\"\",'[1]MONE(M)CARD'!GD264)","v":79.365834310748454},{"$f":"IF('[1]MONE(M)CARD'!GE264=\"\",\"\",'[1]MONE(M)CARD'!GE264)","v":5732.1428547871537},3.1967848031149382,{"$f":"IF('[9]II.2.Balance OSD-Activos'!J122=\"\",\"\",'[9]II.2.Balance OSD-Activos'!J122)","v":187.66124807083975},{"$f":"IF('[9]II.2.Balance OSD-Activos'!N122=\"\",\"\",'[9]II.2.Balance OSD-Activos'!N122)","v":384.11986391342634},{"$f":"IF('[9]II.2.Balance OSD-Activos'!R122=\"\",\"\",'[9]II.2.Balance OSD-Activos'!R122)","v":26552.569096004714},{"$f":"IF('[9]II.2.Balance OSD-Activos'!S122=\"\",\"\",'[9]II.2.Balance OSD-Activos'!S122)","v":30469.928273122972},26740.230344075553,57594.278481111949,13.058795382023947,9.6744050525962244,16.738834309200492,9.6512066778572159,8.6968565093781258,9.198922221288397,-0.44676123519871247,{"$f":"IF('[1]MONE(M)CAPARD'!GS264=\"\",\"\",'[1]MONE(M)CAPARD'!GS264)","v":13060.489389283232},{"$f":"IF('[1]MONE(M)CARD'!HA264=\"\",\"\",'[1]MONE(M)CAPARD'!HA264)","v":6314.6430158571538},{"$f":"IF('[1]MONE(M)CAPARD'!HB264=\"\",\"\",'[1]MONE(M)CAPARD'!HB264)","v":6745.8463734260777},"n.d.",{"$f":"IF('[10]II.2.Balance OSD-Activos'!J122=\"\",\"\",'[10]II.2.Balance OSD-Activos'!J122)","v":675.86795559083987},{"$f":"IF('[10]II.2.Balance OSD-Activos'!N122=\"\",\"\",'[10]II.2.Balance OSD-Activos'!N122)","v":626.45524111342627},{"$f":"IF('[10]II.2.Balance OSD-Activos'!R122=\"\",\"\",'[10]II.2.Balance OSD-Activos'!R122)","v":38576.314859724713},{"$f":"IF('[10]II.2.Balance OSD-Activos'!S122=\"\",\"\",'[10]II.2.Balance OSD-Activos'!S122)","v":40861.900107332971},39252.182815315551,80740.538163761958,47.363952278825835,13.139763644410474,-16.852813619184992,12.681268494562525,9.1129100347649974,10.761041564818253,-0.1309830758430941,{"$f":"IF('[1]MONE(M)CAPARD'!AS264=\"\",\"\",'[1]MONE(M)CAPARD'!AS264)","v":6.5},{"$f":"IF('[1]MONE(M)CAPARD'!AT264=\"\",\"\",'[1]MONE(M)CAPARD'!AT264)","v":"n.a."},{"$f":"IF('[1]MONE(M)CAPARD'!AU264=\"\",\"\",'[1]MONE(M)CAPARD'!AU264)","v":4.75},{"$f":"IF('[1]MONE(M)CAPARD'!AV264=\"\",\"\",'[1]MONE(M)CAPARD'!AV264)","v":4.5},{"$f":"IF('[1]MONE(M)CAPARD'!AW264=\"\",\"\",'[1]MONE(M)CAPARD'!AW264)","v":"n.a."},{"$f":"IF('[1]MONE(M)CAPARD'!AX264=\"\",\"\",'[1]MONE(M)CAPARD'!AX264)","v":6},{"$f":"IF('[1]MONE(M)CAPARD'!AY264=\"\",\"\",'[1]MONE(M)CAPARD'!AY264)","v":"n.a."},{"$f":"IF('[1]FISCAL(M)'!$K264=\"\",\"\",'[1]FISCAL(M)'!$K264)","v":-1344.2016804181374},{"$f":"IF('[1]FISCAL(M)'!$L264=\"\",\"\",'[1]FISCAL(M)'!$L264)","v":-1665.7194269181373},{"$f":"IF('[1]FISCAL(M)'!$AY264=\"\",\"\",'[1]FISCAL(M)'!$AY264)","v":70142.533995770893},{"$f":"IF('[1]FISCAL(M)'!$BI264=\"\",\"\",'[1]FISCAL(M)'!$BI264)","v":35474.292583415459},{"$f":"IF('[1]FISCAL(M)'!$BS264=\"\",\"\",'[1]FISCAL(M)'!$BS264)","v":34668.241412355434},{"$f":"IF('[1]FISCAL(M)'!$AZ264=\"\",\"\",'[1]FISCAL(M)'!$AZ264)","v":82143.30634624089},{"$f":"IF('[1]FISCAL(M)'!$BJ264=\"\",\"\",'[1]FISCAL(M)'!$BJ264)","v":36882.755885875464},{"$f":"IF('[1]FISCAL(M)'!$BT264=\"\",\"\",'[1]FISCAL(M)'!$BT264)","v":45260.550460365441},{"$f":"IF('[2]MONE(M)'!$AO264=\"\",\"\",'[2]MONE(M)'!$AO264)","v":9506491.4430962242},{"$f":"IF('[3]MONE(M)'!$AO264=\"\",\"\",'[3]MONE(M)'!$AO264)","v":8700.3799223301212},{"$f":"IF('[4]MONE(M)'!$AO264=\"\",\"\",'[4]MONE(M)'!$AO264)","v":86021.201319454616},{"$f":"+'[5]MONE(M)'!$AO264","v":146011.28068235048},{"$f":"IF('[6]MONE(M)'!$AO264=\"\",\"\",'[6]MONE(M)'!$AO264)","v":44407.497913753767},{"$f":"IF('[7]MONE(M)'!$AO264=\"\",\"\",'[7]MONE(M)'!$AO264)","v":441270.34053927998},{"$f":"IF('[8]MONE(M)'!$AO264=\"\",\"\",'[8]MONE(M)'!$AO264)","v":23600.663155729999},10.486937129435315,0.78434086831640215,5.1611650946535192,4.8176151042000237,6.0429494176976739,18.222418199924185,16.820923346148664,{"$f":"IF('[1]FISCAL(M)'!$K264=\"\",\"\",'[1]FISCAL(M)'!$K264)","v":-1344.2016804181374},{"$f":"+'[1]REAL(A)'!$AO$31","v":196050.69529278859},-0.68563984351632223,{"$f":"IF('[1]FISCAL(M)'!$L264=\"\",\"\",'[1]FISCAL(M)'!$L264)","v":-1665.7194269181373},{"$f":"+'[1]REAL(A)'!$AP$31","v":230736.92329278859},-0.72191281878386626,85166.456451952079,{"$f":"'[1]Gráfico REM'!BG258","v":19550.698984509909},{"$f":"'[1]Gráfico REM'!BH258","v":60461.325809504437},{"$f":"'[1]Gráfico REM'!BI258","v":5154.4316579377391},12.357495149583976,22.110588150728972,9.7352755189479279,9.8687573991452116,125305.22538255207,{"$f":"'[1]Gráfico REM'!BK258","v":20554.437885409909},{"$f":"'[1]Gráfico REM'!BL258","v":84061.988965234428},{"$f":"'[1]Gráfico REM'!BM258","v":20688.798531907742},12.829852609073122,20.520663091816704,11.636305334221419,10.622067378464894]
[2011,"abril","2011-abril",{"$f":"IF('[1]REAL IPC(M)'!$AL265=\"\",\"\",+'[1]REAL IPC(M)'!$AL265)","v":6.531795603382573},{"$f":"IF('[1]REAL IPC(M)'!$BE265=\"\",\"\",+'[1]REAL IPC(M)'!$BE265)","v":5.1460437742506526},{"$f":"IF('[1]REAL IPC(M)'!$AM265=\"\",\"\",+'[1]REAL IPC(M)'!$AM265)","v":6.5033822659569918},{"$f":"IF('[1]REAL IPC(M)'!$BI265=\"\",\"\",+'[1]REAL IPC(M)'!$BI265)","v":5.1392060048256027},{"$f":"IF('[1]REAL IMAE(M)'!BJ265=\"\",\"\",'[1]REAL IMAE(M)'!BJ265)","v":4.4228393907321362},{"$f":"IF('[1]REAL IMAE(M)'!BK265=\"\",\"\",'[1]REAL IMAE(M)'!BK265)","v":3.7106593183578784},{"$f":"IF('[1]REAL IMAE(M)'!BN265=\"\",\"\",'[1]REAL IMAE(M)'!BN265)","v":4.9645738637787984},{"$f":"IF('[1]REAL IMAE(M)'!BO265=\"\",\"\",'[1]REAL IMAE(M)'!BO265)","v":4.2916365620525809},{"$f":"IF('[1]EXT RIN(M)'!$K265=\"\",\"\",'[1]EXT RIN(M)'!$K265)","v":21836.963522189395},"",{"$f":"IF('[1]EXT RIN(M)'!$L265=\"\",\"\",'[1]EXT RIN(M)'!$L265)","v":24229.653686339396},"",{"$f":"IF('[1]MONE(M)CARD'!EG265=\"\",\"\",'[1]MONE(M)CARD'!EG265)","v":23178.959825637539},{"$f":"IF('[1]MONE(M)CARD'!EK265=\"\",\"\",'[1]MONE(M)CARD'!EK265)","v":36832.1152177646},{"$f":"IF('[1]MONE(M)CARD'!EP265=\"\",\"\",'[1]MONE(M)CARD'!EP265)","v":21741.716493920212},{"$f":"IF('[1]MONE(M)CARD'!ES265=\"\",\"\",'[1]MONE(M)CARD'!ES265)","v":16.34820852941963},{"$f":"IF('[1]MONE(M)CARD'!EV265=\"\",\"\",'[1]MONE(M)CARD'!EV265)","v":10.899673012383104},{"$f":"IF('[1]MONE(M)CARD'!EZ265=\"\",\"\",'[1]MONE(M)CARD'!EZ265)","v":9.8624501213958169},{"$f":"IF('[1]MONE(M)CAPARD'!FC265=\"\",\"\",'[1]MONE(M)CAPARD'!FC265)","v":28584.953238567541},{"$f":"IF('[1]MONE(M)CAPARD'!FG265=\"\",\"\",'[1]MONE(M)CAPARD'!FG265)","v":56073.187056304596},{"$f":"IF('[1]MONE(M)CAPARD'!FL265=\"\",\"\",'[1]MONE(M)CAPARD'!FL265)","v":21741.716493920219},{"$f":"IF('[1]MONE(M)CAPARD'!FO265=\"\",\"\",'[1]MONE(M)CAPARD'!FO265)","v":17.029154469091388},{"$f":"IF('[1]MONE(M)CAPARD'!FR265=\"\",\"\",'[1]MONE(M)CAPARD'!FR265)","v":10.370850533796293},{"$f":"IF('[1]MONE(M)CAPARD'!FV265=\"\",\"\",'[1]MONE(M)CAPARD'!FV265)","v":9.6858477672273189},{"$f":"IF('[1]MONE(M)CARD'!FV265=\"\",\"\",'[1]MONE(M)CARD'!FV265)","v":2649.7444487305838},{"$f":"IF('[1]MONE(M)CARD'!GD265=\"\",\"\",'[1]MONE(M)CARD'!GD265)","v":155.49577342096546},{"$f":"IF('[1]MONE(M)CARD'!GE265=\"\",\"\",'[1]MONE(M)CARD'!GE265)","v":6306.8185814065982},10.335450836269434,{"$f":"IF('[9]II.2.Balance OSD-Activos'!J123=\"\",\"\",'[9]II.2.Balance OSD-Activos'!J123)","v":172.91794685993921},{"$f":"IF('[9]II.2.Balance OSD-Activos'!N123=\"\",\"\",'[9]II.2.Balance OSD-Activos'!N123)","v":417.59249600476949},{"$f":"IF('[9]II.2.Balance OSD-Activos'!R123=\"\",\"\",'[9]II.2.Balance OSD-Activos'!R123)","v":26521.03564705875},{"$f":"IF('[9]II.2.Balance OSD-Activos'!S123=\"\",\"\",'[9]II.2.Balance OSD-Activos'!S123)","v":30773.029503076439},26693.95359391869,57884.5755929999,-0.18283793525225578,9.2496249940394293,27.280370855828306,9.31697801773681,9.0415828263839195,9.250463909021466,5.1541687733068997E-2,{"$f":"IF('[1]MONE(M)CAPARD'!GS265=\"\",\"\",'[1]MONE(M)CAPARD'!GS265)","v":13389.921013427906},{"$f":"IF('[1]MONE(M)CARD'!HA265=\"\",\"\",'[1]MONE(M)CAPARD'!HA265)","v":6855.2162917665974},{"$f":"IF('[1]MONE(M)CAPARD'!HB265=\"\",\"\",'[1]MONE(M)CAPARD'!HB265)","v":6534.7047216613082},"n.d.",{"$f":"IF('[10]II.2.Balance OSD-Activos'!J123=\"\",\"\",'[10]II.2.Balance OSD-Activos'!J123)","v":674.56811651993939},{"$f":"IF('[10]II.2.Balance OSD-Activos'!N123=\"\",\"\",'[10]II.2.Balance OSD-Activos'!N123)","v":673.87114657476957},{"$f":"IF('[10]II.2.Balance OSD-Activos'!R123=\"\",\"\",'[10]II.2.Balance OSD-Activos'!R123)","v":38690.631530148756},{"$f":"IF('[10]II.2.Balance OSD-Activos'!S123=\"\",\"\",'[10]II.2.Balance OSD-Activos'!S123)","v":41251.254574416438},39365.199646668698,81290.325367659912,42.663747403465571,13.075738090685473,13.484938046019668,12.668335310347523,9.3086841981314894,11.135498587955084,0.37445702313683071,{"$f":"IF('[1]MONE(M)CAPARD'!AS265=\"\",\"\",'[1]MONE(M)CAPARD'!AS265)","v":6.5},{"$f":"IF('[1]MONE(M)CAPARD'!AT265=\"\",\"\",'[1]MONE(M)CAPARD'!AT265)","v":"n.a."},{"$f":"IF('[1]MONE(M)CAPARD'!AU265=\"\",\"\",'[1]MONE(M)CAPARD'!AU265)","v":4.75},{"$f":"IF('[1]MONE(M)CAPARD'!AV265=\"\",\"\",'[1]MONE(M)CAPARD'!AV265)","v":4.5},{"$f":"IF('[1]MONE(M)CAPARD'!AW265=\"\",\"\",'[1]MONE(M)CAPARD'!AW265)","v":"n.a."},{"$f":"IF('[1]MONE(M)CAPARD'!AX265=\"\",\"\",'[1]MONE(M)CAPARD'!AX265)","v":6.25},{"$f":"IF('[1]MONE(M)CAPARD'!AY265=\"\",\"\",'[1]MONE(M)CAPARD'!AY265)","v":"n.a."},{"$f":"IF('[1]FISCAL(M)'!$K265=\"\",\"\",'[1]FISCAL(M)'!$K265)","v":-1162.3727406812563},{"$f":"IF('[1]FISCAL(M)'!$L265=\"\",\"\",'[1]FISCAL(M)'!$L265)","v":-1622.5787333012559},{"$f":"IF('[1]FISCAL(M)'!$AY265=\"\",\"\",'[1]FISCAL(M)'!$AY265)","v":70539.611586345622},{"$f":"IF('[1]FISCAL(M)'!$BI265=\"\",\"\",'[1]FISCAL(M)'!$BI265)","v":35816.85306496764},{"$f":"IF('[1]FISCAL(M)'!$BS265=\"\",\"\",'[1]FISCAL(M)'!$BS265)","v":34722.758521377989},{"$f":"IF('[1]FISCAL(M)'!$AZ265=\"\",\"\",'[1]FISCAL(M)'!$AZ265)","v":82865.712634095617},{"$f":"IF('[1]FISCAL(M)'!$BJ265=\"\",\"\",'[1]FISCAL(M)'!$BJ265)","v":37529.711022207644},{"$f":"IF('[1]FISCAL(M)'!$BT265=\"\",\"\",'[1]FISCAL(M)'!$BT265)","v":45336.001611887994},{"$f":"IF('[2]MONE(M)'!$AO265=\"\",\"\",'[2]MONE(M)'!$AO265)","v":9546568.3460912649},{"$f":"IF('[3]MONE(M)'!$AO265=\"\",\"\",'[3]MONE(M)'!$AO265)","v":8795.8187183401224},{"$f":"IF('[4]MONE(M)'!$AO265=\"\",\"\",'[4]MONE(M)'!$AO265)","v":85200.220193048328},{"$f":"+'[5]MONE(M)'!$AO265","v":145836.00415090116},{"$f":"IF('[6]MONE(M)'!$AO265=\"\",\"\",'[6]MONE(M)'!$AO265)","v":44242.104723901415},{"$f":"IF('[7]MONE(M)'!$AO265=\"\",\"\",'[7]MONE(M)'!$AO265)","v":442343.28159104998},{"$f":"IF('[8]MONE(M)'!$AO265=\"\",\"\",'[8]MONE(M)'!$AO265)","v":23857.934232840005},12.248126368470214,1.8541273725346308,4.5230361161579191,4.1763012771780517,6.6318456087626876,17.41064347457959,17.205784273167257,{"$f":"IF('[1]FISCAL(M)'!$K265=\"\",\"\",'[1]FISCAL(M)'!$K265)","v":-1162.3727406812563},{"$f":"+'[1]REAL(A)'!$AO$31","v":196050.69529278859},-0.59289396497438107,{"$f":"IF('[1]FISCAL(M)'!$L265=\"\",\"\",'[1]FISCAL(M)'!$L265)","v":-1622.5787333012559},{"$f":"+'[1]REAL(A)'!$AP$31","v":230736.92329278859},-0.70321590066550377,86022.188452248389,{"$f":"'[1]Gráfico REM'!BG259","v":20094.077458673652},{"$f":"'[1]Gráfico REM'!BH259","v":60700.850465308278},{"$f":"'[1]Gráfico REM'!BI259","v":5227.2605282664526},12.492153768954717,22.476192826785457,9.8268431398076395,9.0514423788526699,126605.1818100684,{"$f":"'[1]Gráfico REM'!BK259","v":21153.823645403652},{"$f":"'[1]Gráfico REM'!BL259","v":84558.784698148287},{"$f":"'[1]Gráfico REM'!BM259","v":20892.573466516456},13.23198750428447,21.257109985511313,11.812990037394444,11.48758671851191]
[2011,"mayo ","2011-mayo ",{"$f":"IF('[1]REAL IPC(M)'!$AL266=\"\",\"\",+'[1]REAL IPC(M)'!$AL266)","v":6.9112004394933146},{"$f":"IF('[1]REAL IPC(M)'!$BE266=\"\",\"\",+'[1]REAL IPC(M)'!$BE266)","v":5.1386355396296102},{"$f":"IF('[1]REAL IPC(M)'!$AM266=\"\",\"\",+'[1]REAL IPC(M)'!$AM266)","v":6.8571949731307313},{"$f":"IF('[1]REAL IPC(M)'!$BI266=\"\",\"\",+'[1]REAL IPC(M)'!$BI266)","v":5.1410411708354031},{"$f":"IF('[1]REAL IMAE(M)'!BJ266=\"\",\"\",'[1]REAL IMAE(M)'!BJ266)","v":5.0016930052415365},{"$f":"IF('[1]REAL IMAE(M)'!BK266=\"\",\"\",'[1]REAL IMAE(M)'!BK266)","v":3.742496286960284},{"$f":"IF('[1]REAL IMAE(M)'!BN266=\"\",\"\",'[1]REAL IMAE(M)'!BN266)","v":5.7858421381743241},{"$f":"IF('[1]REAL IMAE(M)'!BO266=\"\",\"\",'[1]REAL IMAE(M)'!BO266)","v":4.3387232909543716},{"$f":"IF('[1]EXT RIN(M)'!$K266=\"\",\"\",'[1]EXT RIN(M)'!$K266)","v":21604.527207288796},"",{"$f":"IF('[1]EXT RIN(M)'!$L266=\"\",\"\",'[1]EXT RIN(M)'!$L266)","v":23878.822370268797},"",{"$f":"IF('[1]MONE(M)CARD'!EG266=\"\",\"\",'[1]MONE(M)CARD'!EG266)","v":22346.63864572837},{"$f":"IF('[1]MONE(M)CARD'!EK266=\"\",\"\",'[1]MONE(M)CARD'!EK266)","v":36856.169465174069},{"$f":"IF('[1]MONE(M)CARD'!EP266=\"\",\"\",'[1]MONE(M)CARD'!EP266)","v":21534.888094909489},{"$f":"IF('[1]MONE(M)CARD'!ES266=\"\",\"\",'[1]MONE(M)CARD'!ES266)","v":12.785652891274335},{"$f":"IF('[1]MONE(M)CARD'!EV266=\"\",\"\",'[1]MONE(M)CARD'!EV266)","v":9.5571517777484303},{"$f":"IF('[1]MONE(M)CARD'!EZ266=\"\",\"\",'[1]MONE(M)CARD'!EZ266)","v":8.3128560001733973},{"$f":"IF('[1]MONE(M)CAPARD'!FC266=\"\",\"\",'[1]MONE(M)CAPARD'!FC266)","v":27662.449783638371},{"$f":"IF('[1]MONE(M)CAPARD'!FG266=\"\",\"\",'[1]MONE(M)CAPARD'!FG266)","v":55754.502677334065},{"$f":"IF('[1]MONE(M)CAPARD'!FL266=\"\",\"\",'[1]MONE(M)CAPARD'!FL266)","v":21534.888094909489},{"$f":"IF('[1]MONE(M)CAPARD'!FO266=\"\",\"\",'[1]MONE(M)CAPARD'!FO266)","v":13.794243521818551},{"$f":"IF('[1]MONE(M)CAPARD'!FR266=\"\",\"\",'[1]MONE(M)CAPARD'!FR266)","v":8.7890278822670318},{"$f":"IF('[1]MONE(M)CAPARD'!FV266=\"\",\"\",'[1]MONE(M)CAPARD'!FV266)","v":7.9966630051686804},{"$f":"IF('[1]MONE(M)CARD'!FV266=\"\",\"\",'[1]MONE(M)CARD'!FV266)","v":2610.7820168493076},{"$f":"IF('[1]MONE(M)CARD'!GD266=\"\",\"\",'[1]MONE(M)CARD'!GD266)","v":74.579405973330466},{"$f":"IF('[1]MONE(M)CARD'!GE266=\"\",\"\",'[1]MONE(M)CARD'!GE266)","v":5917.8029486922696},-3.0535665742521423,{"$f":"IF('[9]II.2.Balance OSD-Activos'!J124=\"\",\"\",'[9]II.2.Balance OSD-Activos'!J124)","v":134.10450022253224},{"$f":"IF('[9]II.2.Balance OSD-Activos'!N124=\"\",\"\",'[9]II.2.Balance OSD-Activos'!N124)","v":409.63345636159181},{"$f":"IF('[9]II.2.Balance OSD-Activos'!R124=\"\",\"\",'[9]II.2.Balance OSD-Activos'!R124)","v":26518.114917839179},{"$f":"IF('[9]II.2.Balance OSD-Activos'!S124=\"\",\"\",'[9]II.2.Balance OSD-Activos'!S124)","v":30896.518052256732},26652.219418061712,57958.370926680036,-15.90014592287724,9.7002451346228202,22.040971423268729,9.8693782808737964,10.167747531901327,10.027780387250939,0.77731647822947281,{"$f":"IF('[1]MONE(M)CAPARD'!GS266=\"\",\"\",'[1]MONE(M)CAPARD'!GS266)","v":13159.639585450061},{"$f":"IF('[1]MONE(M)CARD'!HA266=\"\",\"\",'[1]MONE(M)CAPARD'!HA266)","v":6494.5985356022693},{"$f":"IF('[1]MONE(M)CAPARD'!HB266=\"\",\"\",'[1]MONE(M)CAPARD'!HB266)","v":6665.0410498477913},"n.d.",{"$f":"IF('[10]II.2.Balance OSD-Activos'!J124=\"\",\"\",'[10]II.2.Balance OSD-Activos'!J124)","v":739.17079570253213},{"$f":"IF('[10]II.2.Balance OSD-Activos'!N124=\"\",\"\",'[10]II.2.Balance OSD-Activos'!N124)","v":659.04334736159171},{"$f":"IF('[10]II.2.Balance OSD-Activos'!R124=\"\",\"\",'[10]II.2.Balance OSD-Activos'!R124)","v":38065.139336009175},{"$f":"IF('[10]II.2.Balance OSD-Activos'!S124=\"\",\"\",'[10]II.2.Balance OSD-Activos'!S124)","v":40883.461014576729},38804.310131711711,80346.814493650018,58.951893607109461,11.269108603314336,10.791172356620171,10.624694011855906,8.5059961353006308,9.841936521384941,-1.2935620665701428,{"$f":"IF('[1]MONE(M)CAPARD'!AS266=\"\",\"\",'[1]MONE(M)CAPARD'!AS266)","v":6.5},{"$f":"IF('[1]MONE(M)CAPARD'!AT266=\"\",\"\",'[1]MONE(M)CAPARD'!AT266)","v":"n.a."},{"$f":"IF('[1]MONE(M)CAPARD'!AU266=\"\",\"\",'[1]MONE(M)CAPARD'!AU266)","v":4.75},{"$f":"IF('[1]MONE(M)CAPARD'!AV266=\"\",\"\",'[1]MONE(M)CAPARD'!AV266)","v":4.5},{"$f":"IF('[1]MONE(M)CAPARD'!AW266=\"\",\"\",'[1]MONE(M)CAPARD'!AW266)","v":"n.a."},{"$f":"IF('[1]MONE(M)CAPARD'!AX266=\"\",\"\",'[1]MONE(M)CAPARD'!AX266)","v":6.75},{"$f":"IF('[1]MONE(M)CAPARD'!AY266=\"\",\"\",'[1]MONE(M)CAPARD'!AY266)","v":"n.a."},{"$f":"IF('[1]FISCAL(M)'!$K266=\"\",\"\",'[1]FISCAL(M)'!$K266)","v":-1756.141130281803},{"$f":"IF('[1]FISCAL(M)'!$L266=\"\",\"\",'[1]FISCAL(M)'!$L266)","v":-2368.9025015718025},{"$f":"IF('[1]FISCAL(M)'!$AY266=\"\",\"\",'[1]FISCAL(M)'!$AY266)","v":71242.398149391869},{"$f":"IF('[1]FISCAL(M)'!$BI266=\"\",\"\",'[1]FISCAL(M)'!$BI266)","v":36414.141967068863},{"$f":"IF('[1]FISCAL(M)'!$BS266=\"\",\"\",'[1]FISCAL(M)'!$BS266)","v":34828.256182322999},{"$f":"IF('[1]FISCAL(M)'!$AZ266=\"\",\"\",'[1]FISCAL(M)'!$AZ266)","v":83538.873863431858},{"$f":"IF('[1]FISCAL(M)'!$BJ266=\"\",\"\",'[1]FISCAL(M)'!$BJ266)","v":38108.393901608863},{"$f":"IF('[1]FISCAL(M)'!$BT266=\"\",\"\",'[1]FISCAL(M)'!$BT266)","v":45430.479961823003},{"$f":"IF('[2]MONE(M)'!$AO266=\"\",\"\",'[2]MONE(M)'!$AO266)","v":9700991.5610177889},{"$f":"IF('[3]MONE(M)'!$AO266=\"\",\"\",'[3]MONE(M)'!$AO266)","v":8774.9934746401195},{"$f":"IF('[4]MONE(M)'!$AO266=\"\",\"\",'[4]MONE(M)'!$AO266)","v":86910.755090227511},{"$f":"+'[5]MONE(M)'!$AO266","v":146479.05623902142},{"$f":"IF('[6]MONE(M)'!$AO266=\"\",\"\",'[6]MONE(M)'!$AO266)","v":44412.531211273774},{"$f":"IF('[7]MONE(M)'!$AO266=\"\",\"\",'[7]MONE(M)'!$AO266)","v":446590.37982990994},{"$f":"IF('[8]MONE(M)'!$AO266=\"\",\"\",'[8]MONE(M)'!$AO266)","v":22827.83568964},9.9189117859887599,2.3722622544603222,6.9443552921351515,4.7168295188808385,7.5702476260840923,16.658556288729322,10.374920475472749,{"$f":"IF('[1]FISCAL(M)'!$K266=\"\",\"\",'[1]FISCAL(M)'!$K266)","v":-1756.141130281803},{"$f":"+'[1]REAL(A)'!$AO$31","v":196050.69529278859},{"$f":"IF(OR(CM259=\"n.d.\",CM259=\"\",CN259=\"\",CN259=\"n.d.\"),\"n.d.\",(CM259/CN259)*100)","v":-0.89575868509883316},{"$f":"IF('[1]FISCAL(M)'!$L266=\"\",\"\",'[1]FISCAL(M)'!$L266)","v":-2368.9025015718025},{"$f":"+'[1]REAL(A)'!$AP$31","v":230736.92329278859},-1.026668149928408,{"$f":"+CT259+CU259+CV259","v":85940.285504109663},{"$f":"'[1]Gráfico REM'!BG260","v":20012.43120627608},{"$f":"'[1]Gráfico REM'!BH260","v":60836.449174447509},{"$f":"'[1]Gráfico REM'!BI260","v":5091.4051233860673},12.563475133869106,21.031135935165924,10.624796360955369,5.6342909878548619,{"$f":"+DB259+DC259+DD259","v":125553.88062325964},{"$f":"'[1]Gráfico REM'!BK260","v":20993.017740406081},{"$f":"'[1]Gráfico REM'!BL260","v":83664.284864087502},{"$f":"'[1]Gráfico REM'!BM260","v":20896.578018766064},12.258653172201361,18.727690206487658,10.556505454089482,13.039116630768465]
[2011,"junio ",{"$f":"A260&\"-\"&B260","v":"2011-junio "},{"$f":"IF('[1]REAL IPC(M)'!$AL267=\"\",\"\",+'[1]REAL IPC(M)'!$AL267)","v":7.3314270892889333},{"$f":"IF('[1]REAL IPC(M)'!$BE267=\"\",\"\",+'[1]REAL IPC(M)'!$BE267)","v":5.1278235749758316},{"$f":"IF('[1]REAL IPC(M)'!$AM267=\"\",\"\",+'[1]REAL IPC(M)'!$AM267)","v":7.2398718910695381},{"$f":"IF('[1]REAL IPC(M)'!$BI267=\"\",\"\",+'[1]REAL IPC(M)'!$BI267)","v":5.1389537780867078},{"$f":"IF('[1]REAL IMAE(M)'!BJ267=\"\",\"\",'[1]REAL IMAE(M)'!BJ267)","v":4.822796746730007},{"$f":"IF('[1]REAL IMAE(M)'!BK267=\"\",\"\",'[1]REAL IMAE(M)'!BK267)","v":3.769855476445616},{"$f":"IF('[1]REAL IMAE(M)'!BN267=\"\",\"\",'[1]REAL IMAE(M)'!BN267)","v":5.2940246456127715},{"$f":"IF('[1]REAL IMAE(M)'!BO267=\"\",\"\",'[1]REAL IMAE(M)'!BO267)","v":4.3804663147051226},{"$f":"IF('[1]EXT RIN(M)'!$K267=\"\",\"\",'[1]EXT RIN(M)'!$K267)","v":21540.918808838822},{"$f":"IF(B260<>\"diciembre\",\"\",L260)","v":""},{"$f":"IF('[1]EXT RIN(M)'!$L267=\"\",\"\",'[1]EXT RIN(M)'!$L267)","v":23889.398043958823},{"$f":"IF(B260<>\"diciembre\",\"\",N260)","v":""},{"$f":"IF('[1]MONE(M)CARD'!EG267=\"\",\"\",'[1]MONE(M)CARD'!EG267)","v":22389.366448411449},{"$f":"IF('[1]MONE(M)CARD'!EK267=\"\",\"\",'[1]MONE(M)CARD'!EK267)","v":36761.008398516758},{"$f":"IF('[1]MONE(M)CARD'!EP267=\"\",\"\",'[1]MONE(M)CARD'!EP267)","v":21455.883936172853},{"$f":"IF('[1]MONE(M)CARD'!ES267=\"\",\"\",'[1]MONE(M)CARD'!ES267)","v":14.815828543288067},{"$f":"IF('[1]MONE(M)CARD'!EV267=\"\",\"\",'[1]MONE(M)CARD'!EV267)","v":9.3920171041758991},{"$f":"IF('[1]MONE(M)CARD'!EZ267=\"\",\"\",'[1]MONE(M)CARD'!EZ267)","v":7.6197490298116399},{"$f":"IF('[1]MONE(M)CAPARD'!FC267=\"\",\"\",'[1]MONE(M)CAPARD'!FC267)","v":27803.208858621452},{"$f":"IF('[1]MONE(M)CAPARD'!FG267=\"\",\"\",'[1]MONE(M)CAPARD'!FG267)","v":56270.306799676764},{"$f":"IF('[1]MONE(M)CAPARD'!FL267=\"\",\"\",'[1]MONE(M)CAPARD'!FL267)","v":21455.883936172861},{"$f":"IF('[1]MONE(M)CAPARD'!FO267=\"\",\"\",'[1]MONE(M)CAPARD'!FO267)","v":15.984086175672685},{"$f":"IF('[1]MONE(M)CAPARD'!FR267=\"\",\"\",'[1]MONE(M)CAPARD'!FR267)","v":9.5907131021566894},{"$f":"IF('[1]MONE(M)CAPARD'!FV267=\"\",\"\",'[1]MONE(M)CAPARD'!FV267)","v":8.1874400662421252},{"$f":"IF('[1]MONE(M)CARD'!FV267=\"\",\"\",'[1]MONE(M)CARD'!FV267)","v":2685.2743130998892},{"$f":"IF('[1]MONE(M)CARD'!GD267=\"\",\"\",'[1]MONE(M)CARD'!GD267)","v":169.66393295240579},{"$f":"IF('[1]MONE(M)CARD'!GE267=\"\",\"\",'[1]MONE(M)CARD'!GE267)","v":6012.189482169767},4.5369300570433424,{"$f":"IF('[9]II.2.Balance OSD-Activos'!J125=\"\",\"\",'[9]II.2.Balance OSD-Activos'!J125)","v":145.72451818124256},{"$f":"IF('[9]II.2.Balance OSD-Activos'!N125=\"\",\"\",'[9]II.2.Balance OSD-Activos'!N125)","v":405.77107129290454},{"$f":"IF('[9]II.2.Balance OSD-Activos'!R125=\"\",\"\",'[9]II.2.Balance OSD-Activos'!R125)","v":26718.418760222157},{"$f":"IF('[9]II.2.Balance OSD-Activos'!S125=\"\",\"\",'[9]II.2.Balance OSD-Activos'!S125)","v":31199.987552211056},26864.1432784034,58469.90190190736,-21.008026246051713,10.4623628007934,22.550307253373859,10.70290986375757,10.454430722653907,10.533789840956187,0.50600945370524819,{"$f":"IF('[1]MONE(M)CAPARD'!GS267=\"\",\"\",'[1]MONE(M)CAPARD'!GS267)","v":13859.915399888214},{"$f":"IF('[1]MONE(M)CARD'!HA267=\"\",\"\",'[1]MONE(M)CAPARD'!HA267)","v":6598.0866249597666},{"$f":"IF('[1]MONE(M)CAPARD'!HB267=\"\",\"\",'[1]MONE(M)CAPARD'!HB267)","v":7261.8287749284473},"n.d.",{"$f":"IF('[10]II.2.Balance OSD-Activos'!J125=\"\",\"\",'[10]II.2.Balance OSD-Activos'!J125)","v":757.96011530124235},{"$f":"IF('[10]II.2.Balance OSD-Activos'!N125=\"\",\"\",'[10]II.2.Balance OSD-Activos'!N125)","v":776.87522873290459},{"$f":"IF('[10]II.2.Balance OSD-Activos'!R125=\"\",\"\",'[10]II.2.Balance OSD-Activos'!R125)","v":39344.881178912168},{"$f":"IF('[10]II.2.Balance OSD-Activos'!S125=\"\",\"\",'[10]II.2.Balance OSD-Activos'!S125)","v":41794.109016231057},40102.841294213409,82673.825539177371,49.774313307154358,13.399507126042387,31.40753832016836,12.871420151849456,9.4901680457236246,11.530021285771186,1.6880847643862449,{"$f":"IF('[1]MONE(M)CAPARD'!AS267=\"\",\"\",'[1]MONE(M)CAPARD'!AS267)","v":5},{"$f":"IF('[1]MONE(M)CAPARD'!AT267=\"\",\"\",'[1]MONE(M)CAPARD'!AT267)","v":"n.a."},{"$f":"IF('[1]MONE(M)CAPARD'!AU267=\"\",\"\",'[1]MONE(M)CAPARD'!AU267)","v":4.75},{"$f":"IF('[1]MONE(M)CAPARD'!AV267=\"\",\"\",'[1]MONE(M)CAPARD'!AV267)","v":4.5},{"$f":"IF('[1]MONE(M)CAPARD'!AW267=\"\",\"\",'[1]MONE(M)CAPARD'!AW267)","v":"n.a."},{"$f":"IF('[1]MONE(M)CAPARD'!AX267=\"\",\"\",'[1]MONE(M)CAPARD'!AX267)","v":6.75},{"$f":"IF('[1]MONE(M)CAPARD'!AY267=\"\",\"\",'[1]MONE(M)CAPARD'!AY267)","v":"n.a."},{"$f":"IF('[1]FISCAL(M)'!$K267=\"\",\"\",'[1]FISCAL(M)'!$K267)","v":-2256.428854487684},{"$f":"IF('[1]FISCAL(M)'!$L267=\"\",\"\",'[1]FISCAL(M)'!$L267)","v":-2672.1522951376842},{"$f":"IF('[1]FISCAL(M)'!$AY267=\"\",\"\",'[1]FISCAL(M)'!$AY267)","v":71884.634380806703},{"$f":"IF('[1]FISCAL(M)'!$BI267=\"\",\"\",'[1]FISCAL(M)'!$BI267)","v":37002.791944865472},{"$f":"IF('[1]FISCAL(M)'!$BS267=\"\",\"\",'[1]FISCAL(M)'!$BS267)","v":34881.842435941238},{"$f":"IF('[1]FISCAL(M)'!$AZ267=\"\",\"\",'[1]FISCAL(M)'!$AZ267)","v":84476.766988136704},{"$f":"IF('[1]FISCAL(M)'!$BJ267=\"\",\"\",'[1]FISCAL(M)'!$BJ267)","v":38976.182388315472},{"$f":"IF('[1]FISCAL(M)'!$BT267=\"\",\"\",'[1]FISCAL(M)'!$BT267)","v":45500.584599821232},{"$f":"IF('[2]MONE(M)'!$AO267=\"\",\"\",'[2]MONE(M)'!$AO267)","v":9774692.21556288},{"$f":"IF('[3]MONE(M)'!$AO267=\"\",\"\",'[3]MONE(M)'!$AO267)","v":8766.1176485801207},{"$f":"IF('[4]MONE(M)'!$AO267=\"\",\"\",'[4]MONE(M)'!$AO267)","v":88214.304191987379},{"$f":"+'[5]MONE(M)'!$AO267","v":147264.93489660055},{"$f":"IF('[6]MONE(M)'!$AO267=\"\",\"\",'[6]MONE(M)'!$AO267)","v":44337.360101023783},{"$f":"IF('[7]MONE(M)'!$AO267=\"\",\"\",'[7]MONE(M)'!$AO267)","v":449338.85697361},{"$f":"IF('[8]MONE(M)'!$AO267=\"\",\"\",'[8]MONE(M)'!$AO267)","v":24537.730655620006},9.0644657584439727,2.3851982295741259,7.9500860240427906,5.9140927376796215,6.5484375648153348,15.623846410260356,14.375454097222097,{"$f":"IF('[1]FISCAL(M)'!$K267=\"\",\"\",'[1]FISCAL(M)'!$K267)","v":-2256.428854487684},{"$f":"+'[1]REAL(A)'!$AO$31","v":196050.69529278859},-1.1509415210784428,{"$f":"IF('[1]FISCAL(M)'!$L267=\"\",\"\",'[1]FISCAL(M)'!$L267)","v":-2672.1522951376842},{"$f":"+'[1]REAL(A)'!$AP$31","v":230736.92329278859},{"$f":"IF(OR(CP260=\"n.d.\",CP260=\"\",CQ260=\"\",CQ260=\"n.d.\"),\"n.d.\",(CP260/CQ260)*100)","v":-1.1580947934141059},86986.151738832879,{"$f":"'[1]Gráfico REM'!BG261","v":20740.026936101509},{"$f":"'[1]Gráfico REM'!BH261","v":61315.026868737237},{"$f":"'[1]Gráfico REM'!BI261","v":4931.0979339941459},12.774813680593944,23.534104357933639,10.433608935458771,2.270431716029786,129305.10387976289,{"$f":"'[1]Gráfico REM'!BK261","v":21759.714180731509},{"$f":"'[1]Gráfico REM'!BL261","v":85852.757524357236},{"$f":"'[1]Gráfico REM'!BM261","v":21692.632174674145},14.449127499246694,22.163866119620469,11.532228312720981,19.237637046959044]
[2011,"julio","2011-julio",{"$f":"IF('[1]REAL IPC(M)'!$AL268=\"\",\"\",+'[1]REAL IPC(M)'!$AL268)","v":7.6693144365796995},{"$f":"IF('[1]REAL IPC(M)'!$BE268=\"\",\"\",+'[1]REAL IPC(M)'!$BE268)","v":5.1131278688906878},{"$f":"IF('[1]REAL IPC(M)'!$AM268=\"\",\"\",+'[1]REAL IPC(M)'!$AM268)","v":7.4230674089800885},{"$f":"IF('[1]REAL IPC(M)'!$BI268=\"\",\"\",+'[1]REAL IPC(M)'!$BI268)","v":5.1323965090317669},{"$f":"IF('[1]REAL IMAE(M)'!BJ268=\"\",\"\",'[1]REAL IMAE(M)'!BJ268)","v":4.7072308603006929},{"$f":"IF('[1]REAL IMAE(M)'!BK268=\"\",\"\",'[1]REAL IMAE(M)'!BK268)","v":3.7930660705358887},{"$f":"IF('[1]REAL IMAE(M)'!BN268=\"\",\"\",'[1]REAL IMAE(M)'!BN268)","v":5.0954506798109644},{"$f":"IF('[1]REAL IMAE(M)'!BO268=\"\",\"\",'[1]REAL IMAE(M)'!BO268)","v":4.4170282574342856},{"$f":"IF('[1]EXT RIN(M)'!$K268=\"\",\"\",'[1]EXT RIN(M)'!$K268)","v":22134.017765918263},"",{"$f":"IF('[1]EXT RIN(M)'!$L268=\"\",\"\",'[1]EXT RIN(M)'!$L268)","v":24249.814748468263},"",{"$f":"IF('[1]MONE(M)CARD'!EG268=\"\",\"\",'[1]MONE(M)CARD'!EG268)","v":22890.662000381897},{"$f":"IF('[1]MONE(M)CARD'!EK268=\"\",\"\",'[1]MONE(M)CARD'!EK268)","v":37001.768599368341},{"$f":"IF('[1]MONE(M)CARD'!EP268=\"\",\"\",'[1]MONE(M)CARD'!EP268)","v":21289.813748946806},{"$f":"IF('[1]MONE(M)CARD'!ES268=\"\",\"\",'[1]MONE(M)CARD'!ES268)","v":15.269802430966495},{"$f":"IF('[1]MONE(M)CARD'!EV268=\"\",\"\",'[1]MONE(M)CARD'!EV268)","v":9.442808880663712},{"$f":"IF('[1]MONE(M)CARD'!EZ268=\"\",\"\",'[1]MONE(M)CARD'!EZ268)","v":7.2422332238427867},{"$f":"IF('[1]MONE(M)CAPARD'!FC268=\"\",\"\",'[1]MONE(M)CAPARD'!FC268)","v":28478.904644971899},{"$f":"IF('[1]MONE(M)CAPARD'!FG268=\"\",\"\",'[1]MONE(M)CAPARD'!FG268)","v":56731.74521928835},{"$f":"IF('[1]MONE(M)CAPARD'!FL268=\"\",\"\",'[1]MONE(M)CAPARD'!FL268)","v":21289.813748946821},{"$f":"IF('[1]MONE(M)CAPARD'!FO268=\"\",\"\",'[1]MONE(M)CAPARD'!FO268)","v":16.872845335239226},{"$f":"IF('[1]MONE(M)CAPARD'!FR268=\"\",\"\",'[1]MONE(M)CAPARD'!FR268)","v":10.032977176961765},{"$f":"IF('[1]MONE(M)CAPARD'!FV268=\"\",\"\",'[1]MONE(M)CAPARD'!FV268)","v":8.2145527491553683},{"$f":"IF('[1]MONE(M)CARD'!FV268=\"\",\"\",'[1]MONE(M)CARD'!FV268)","v":2927.5499690684996},{"$f":"IF('[1]MONE(M)CARD'!GD268=\"\",\"\",'[1]MONE(M)CARD'!GD268)","v":87.14804512498651},{"$f":"IF('[1]MONE(M)CARD'!GE268=\"\",\"\",'[1]MONE(M)CARD'!GE268)","v":6133.8191268183373},8.0408706945187767,{"$f":"IF('[9]II.2.Balance OSD-Activos'!J126=\"\",\"\",'[9]II.2.Balance OSD-Activos'!J126)","v":149.55545718050359},{"$f":"IF('[9]II.2.Balance OSD-Activos'!N126=\"\",\"\",'[9]II.2.Balance OSD-Activos'!N126)","v":423.20707933234451},{"$f":"IF('[9]II.2.Balance OSD-Activos'!R126=\"\",\"\",'[9]II.2.Balance OSD-Activos'!R126)","v":26899.167314435152},{"$f":"IF('[9]II.2.Balance OSD-Activos'!S126=\"\",\"\",'[9]II.2.Balance OSD-Activos'!S126)","v":31559.526374004919},27048.722771615656,59031.456224952919,-17.676636800954991,10.652768366733834,26.57244312627909,10.864883563836859,10.365274760074605,10.598470333331944,6.4680492375757126E-2,{"$f":"IF('[1]MONE(M)CAPARD'!GS268=\"\",\"\",'[1]MONE(M)CAPARD'!GS268)","v":13594.663256016842},{"$f":"IF('[1]MONE(M)CARD'!HA268=\"\",\"\",'[1]MONE(M)CAPARD'!HA268)","v":6724.2880431383373},{"$f":"IF('[1]MONE(M)CAPARD'!HB268=\"\",\"\",'[1]MONE(M)CAPARD'!HB268)","v":6870.3752128785045},"n.d.",{"$f":"IF('[10]II.2.Balance OSD-Activos'!J126=\"\",\"\",'[10]II.2.Balance OSD-Activos'!J126)","v":767.57126744050345},{"$f":"IF('[10]II.2.Balance OSD-Activos'!N126=\"\",\"\",'[10]II.2.Balance OSD-Activos'!N126)","v":827.93687663234448},{"$f":"IF('[10]II.2.Balance OSD-Activos'!R126=\"\",\"\",'[10]II.2.Balance OSD-Activos'!R126)","v":39869.019848205149},{"$f":"IF('[10]II.2.Balance OSD-Activos'!S126=\"\",\"\",'[10]II.2.Balance OSD-Activos'!S126)","v":42160.521286024908},40636.59111564565,83625.049278302904,56.499058671163006,14.516756272679388,39.199001753733342,13.928360530901873,9.2609138166169345,11.99721763975916,0.46719635398797443,{"$f":"IF('[1]MONE(M)CAPARD'!AS268=\"\",\"\",'[1]MONE(M)CAPARD'!AS268)","v":5},{"$f":"IF('[1]MONE(M)CAPARD'!AT268=\"\",\"\",'[1]MONE(M)CAPARD'!AT268)","v":"n.a."},{"$f":"IF('[1]MONE(M)CAPARD'!AU268=\"\",\"\",'[1]MONE(M)CAPARD'!AU268)","v":5},{"$f":"IF('[1]MONE(M)CAPARD'!AV268=\"\",\"\",'[1]MONE(M)CAPARD'!AV268)","v":4.5},{"$f":"IF('[1]MONE(M)CAPARD'!AW268=\"\",\"\",'[1]MONE(M)CAPARD'!AW268)","v":"n.a."},{"$f":"IF('[1]MONE(M)CAPARD'!AX268=\"\",\"\",'[1]MONE(M)CAPARD'!AX268)","v":6.75},{"$f":"IF('[1]MONE(M)CAPARD'!AY268=\"\",\"\",'[1]MONE(M)CAPARD'!AY268)","v":"n.a."},{"$f":"IF('[1]FISCAL(M)'!$K268=\"\",\"\",'[1]FISCAL(M)'!$K268)","v":-2749.5122901452687},{"$f":"IF('[1]FISCAL(M)'!$L268=\"\",\"\",'[1]FISCAL(M)'!$L268)","v":-3353.7131992052682},{"$f":"IF('[1]FISCAL(M)'!$AY268=\"\",\"\",'[1]FISCAL(M)'!$AY268)","v":72752.932546662953},{"$f":"IF('[1]FISCAL(M)'!$BI268=\"\",\"\",'[1]FISCAL(M)'!$BI268)","v":37134.72083748474},{"$f":"IF('[1]FISCAL(M)'!$BS268=\"\",\"\",'[1]FISCAL(M)'!$BS268)","v":35618.211709178213},{"$f":"IF('[1]FISCAL(M)'!$AZ268=\"\",\"\",'[1]FISCAL(M)'!$AZ268)","v":85483.538779772964},{"$f":"IF('[1]FISCAL(M)'!$BJ268=\"\",\"\",'[1]FISCAL(M)'!$BJ268)","v":39192.681313804736},{"$f":"IF('[1]FISCAL(M)'!$BT268=\"\",\"\",'[1]FISCAL(M)'!$BT268)","v":46290.85746596822},{"$f":"IF('[2]MONE(M)'!$AO268=\"\",\"\",'[2]MONE(M)'!$AO268)","v":9891237.1977583189},{"$f":"IF('[3]MONE(M)'!$AO268=\"\",\"\",'[3]MONE(M)'!$AO268)","v":8814.635333860122},{"$f":"IF('[4]MONE(M)'!$AO268=\"\",\"\",'[4]MONE(M)'!$AO268)","v":88584.586281566997},{"$f":"+'[5]MONE(M)'!$AO268","v":148391.80736532705},{"$f":"IF('[6]MONE(M)'!$AO268=\"\",\"\",'[6]MONE(M)'!$AO268)","v":44699.583837033773},{"$f":"IF('[7]MONE(M)'!$AO268=\"\",\"\",'[7]MONE(M)'!$AO268)","v":455480.58472166007},{"$f":"IF('[8]MONE(M)'!$AO268=\"\",\"\",'[8]MONE(M)'!$AO268)","v":24900.120694450001},11.188723328922091,1.9031267247356265,8.5819012190139645,7.0671663460430523,7.264639259770922,16.368136076046035,15.733142299677215,{"$f":"IF('[1]FISCAL(M)'!$K268=\"\",\"\",'[1]FISCAL(M)'!$K268)","v":-2749.5122901452687},{"$f":"+'[1]REAL(A)'!$AO$31","v":196050.69529278859},-1.4024496500963979,{"$f":"IF('[1]FISCAL(M)'!$L268=\"\",\"\",'[1]FISCAL(M)'!$L268)","v":-3353.7131992052682},{"$f":"+'[1]REAL(A)'!$AP$31","v":230736.92329278859},-1.4534792053847607,87011.21485974695,{"$f":"'[1]Gráfico REM'!BG262","v":20316.494294582219},{"$f":"'[1]Gráfico REM'!BH262","v":61818.877344754823},{"$f":"'[1]Gráfico REM'!BI262","v":4875.8432204099099},11.440557650415117,17.74190472106185,10.182594086035346,3.3535949984324409,130284.04292359696,{"$f":"'[1]Gráfico REM'!BK262","v":21408.219969662219},{"$f":"'[1]Gráfico REM'!BL262","v":86718.998039204831},{"$f":"'[1]Gráfico REM'!BM262","v":22156.824914729907},14.378080993474152,17.97275767692803,11.721104915419712,22.151782655937712]
[2011,"agosto","2011-agosto",{"$f":"IF('[1]REAL IPC(M)'!$AL269=\"\",\"\",+'[1]REAL IPC(M)'!$AL269)","v":8.0464704715487834},{"$f":"IF('[1]REAL IPC(M)'!$BE269=\"\",\"\",+'[1]REAL IPC(M)'!$BE269)","v":5.0942062038034752},{"$f":"IF('[1]REAL IPC(M)'!$AM269=\"\",\"\",+'[1]REAL IPC(M)'!$AM269)","v":7.7476834180226328},{"$f":"IF('[1]REAL IPC(M)'!$BI269=\"\",\"\",+'[1]REAL IPC(M)'!$BI269)","v":5.1209720339309595},{"$f":"IF('[1]REAL IMAE(M)'!BJ269=\"\",\"\",'[1]REAL IMAE(M)'!BJ269)","v":4.5289919812790069},{"$f":"IF('[1]REAL IMAE(M)'!BK269=\"\",\"\",'[1]REAL IMAE(M)'!BK269)","v":3.8125142353017116},{"$f":"IF('[1]REAL IMAE(M)'!BN269=\"\",\"\",'[1]REAL IMAE(M)'!BN269)","v":5.0878635957554375},{"$f":"IF('[1]REAL IMAE(M)'!BO269=\"\",\"\",'[1]REAL IMAE(M)'!BO269)","v":4.4486350161565325},{"$f":"IF('[1]EXT RIN(M)'!$K269=\"\",\"\",'[1]EXT RIN(M)'!$K269)","v":21294.223249136452},"",{"$f":"IF('[1]EXT RIN(M)'!$L269=\"\",\"\",'[1]EXT RIN(M)'!$L269)","v":23208.238909846452},"",{"$f":"IF('[1]MONE(M)CARD'!EG269=\"\",\"\",'[1]MONE(M)CARD'!EG269)","v":22299.95174824282},{"$f":"IF('[1]MONE(M)CARD'!EK269=\"\",\"\",'[1]MONE(M)CARD'!EK269)","v":37267.157727148675},{"$f":"IF('[1]MONE(M)CARD'!EP269=\"\",\"\",'[1]MONE(M)CARD'!EP269)","v":21186.975064222745},{"$f":"IF('[1]MONE(M)CARD'!ES269=\"\",\"\",'[1]MONE(M)CARD'!ES269)","v":12.726660249303713},{"$f":"IF('[1]MONE(M)CARD'!EV269=\"\",\"\",'[1]MONE(M)CARD'!EV269)","v":8.817130557882912},{"$f":"IF('[1]MONE(M)CARD'!EZ269=\"\",\"\",'[1]MONE(M)CARD'!EZ269)","v":6.6856069095502679},{"$f":"IF('[1]MONE(M)CAPARD'!FC269=\"\",\"\",'[1]MONE(M)CAPARD'!FC269)","v":28004.558915362817},{"$f":"IF('[1]MONE(M)CAPARD'!FG269=\"\",\"\",'[1]MONE(M)CAPARD'!FG269)","v":56985.301423778677},{"$f":"IF('[1]MONE(M)CAPARD'!FL269=\"\",\"\",'[1]MONE(M)CAPARD'!FL269)","v":21186.975064222745},{"$f":"IF('[1]MONE(M)CAPARD'!FO269=\"\",\"\",'[1]MONE(M)CAPARD'!FO269)","v":14.968584435256682},{"$f":"IF('[1]MONE(M)CAPARD'!FR269=\"\",\"\",'[1]MONE(M)CAPARD'!FR269)","v":9.5685167990975817},{"$f":"IF('[1]MONE(M)CAPARD'!FV269=\"\",\"\",'[1]MONE(M)CAPARD'!FV269)","v":7.7710648200531196},{"$f":"IF('[1]MONE(M)CARD'!FV269=\"\",\"\",'[1]MONE(M)CARD'!FV269)","v":2893.7265671141113},{"$f":"IF('[1]MONE(M)CARD'!GD269=\"\",\"\",'[1]MONE(M)CARD'!GD269)","v":83.078211316956072},{"$f":"IF('[1]MONE(M)CARD'!GE269=\"\",\"\",'[1]MONE(M)CARD'!GE269)","v":5951.7683789320708},1.8233083071377054,{"$f":"IF('[9]II.2.Balance OSD-Activos'!J127=\"\",\"\",'[9]II.2.Balance OSD-Activos'!J127)","v":154.13882019456634},{"$f":"IF('[9]II.2.Balance OSD-Activos'!N127=\"\",\"\",'[9]II.2.Balance OSD-Activos'!N127)","v":416.27375281355626},{"$f":"IF('[9]II.2.Balance OSD-Activos'!R127=\"\",\"\",'[9]II.2.Balance OSD-Activos'!R127)","v":26835.307806049812},{"$f":"IF('[9]II.2.Balance OSD-Activos'!S127=\"\",\"\",'[9]II.2.Balance OSD-Activos'!S127)","v":31835.217704305665},26989.446626244378,59240.938083363595,-33.575807214905687,9.4788328022536117,28.219403012075727,9.8879513823811216,10.327702182487041,10.046863889273716,-0.55160644405822801,{"$f":"IF('[1]MONE(M)CAPARD'!GS269=\"\",\"\",'[1]MONE(M)CAPARD'!GS269)","v":13557.634646916078},{"$f":"IF('[1]MONE(M)CARD'!HA269=\"\",\"\",'[1]MONE(M)CAPARD'!HA269)","v":6543.5767630520704},{"$f":"IF('[1]MONE(M)CAPARD'!HB269=\"\",\"\",'[1]MONE(M)CAPARD'!HB269)","v":7014.0578838640076},"n.d.",{"$f":"IF('[10]II.2.Balance OSD-Activos'!J127=\"\",\"\",'[10]II.2.Balance OSD-Activos'!J127)","v":823.78786613456634},{"$f":"IF('[10]II.2.Balance OSD-Activos'!N127=\"\",\"\",'[10]II.2.Balance OSD-Activos'!N127)","v":815.48039147355632},{"$f":"IF('[10]II.2.Balance OSD-Activos'!R127=\"\",\"\",'[10]II.2.Balance OSD-Activos'!R127)","v":40281.379493329805},{"$f":"IF('[10]II.2.Balance OSD-Activos'!S127=\"\",\"\",'[10]II.2.Balance OSD-Activos'!S127)","v":42525.300222715661},41105.167359464373,84445.947973653587,49.490103696615705,14.037762967866119,45.707490009134702,13.487347067908351,9.338004322088068,11.851421002460194,-0.1457966372989663,{"$f":"IF('[1]MONE(M)CAPARD'!AS269=\"\",\"\",'[1]MONE(M)CAPARD'!AS269)","v":5},{"$f":"IF('[1]MONE(M)CAPARD'!AT269=\"\",\"\",'[1]MONE(M)CAPARD'!AT269)","v":"n.a."},{"$f":"IF('[1]MONE(M)CAPARD'!AU269=\"\",\"\",'[1]MONE(M)CAPARD'!AU269)","v":5},{"$f":"IF('[1]MONE(M)CAPARD'!AV269=\"\",\"\",'[1]MONE(M)CAPARD'!AV269)","v":4.5},{"$f":"IF('[1]MONE(M)CAPARD'!AW269=\"\",\"\",'[1]MONE(M)CAPARD'!AW269)","v":"n.a."},{"$f":"IF('[1]MONE(M)CAPARD'!AX269=\"\",\"\",'[1]MONE(M)CAPARD'!AX269)","v":6.75},{"$f":"IF('[1]MONE(M)CAPARD'!AY269=\"\",\"\",'[1]MONE(M)CAPARD'!AY269)","v":"n.a."},{"$f":"IF('[1]FISCAL(M)'!$K269=\"\",\"\",'[1]FISCAL(M)'!$K269)","v":-3167.3746173329464},{"$f":"IF('[1]FISCAL(M)'!$L269=\"\",\"\",'[1]FISCAL(M)'!$L269)","v":-4103.1607104629475},{"$f":"IF('[1]FISCAL(M)'!$AY269=\"\",\"\",'[1]FISCAL(M)'!$AY269)","v":72616.417108501919},{"$f":"IF('[1]FISCAL(M)'!$BI269=\"\",\"\",'[1]FISCAL(M)'!$BI269)","v":37205.867108501909},{"$f":"IF('[1]FISCAL(M)'!$BS269=\"\",\"\",'[1]FISCAL(M)'!$BS269)","v":35410.550000000003},{"$f":"IF('[1]FISCAL(M)'!$AZ269=\"\",\"\",'[1]FISCAL(M)'!$AZ269)","v":85357.587501271904},{"$f":"IF('[1]FISCAL(M)'!$BJ269=\"\",\"\",'[1]FISCAL(M)'!$BJ269)","v":39261.39712397191},{"$f":"IF('[1]FISCAL(M)'!$BT269=\"\",\"\",'[1]FISCAL(M)'!$BT269)","v":46096.190377300001},{"$f":"IF('[2]MONE(M)'!$AO269=\"\",\"\",'[2]MONE(M)'!$AO269)","v":10057386.237096863},{"$f":"IF('[3]MONE(M)'!$AO269=\"\",\"\",'[3]MONE(M)'!$AO269)","v":8798.3398399801226},{"$f":"IF('[4]MONE(M)'!$AO269=\"\",\"\",'[4]MONE(M)'!$AO269)","v":89001.923816099472},{"$f":"+'[5]MONE(M)'!$AO269","v":149456.9303408878},{"$f":"IF('[6]MONE(M)'!$AO269=\"\",\"\",'[6]MONE(M)'!$AO269)","v":45733.401889663779},{"$f":"IF('[7]MONE(M)'!$AO269=\"\",\"\",'[7]MONE(M)'!$AO269)","v":459852.30398615007},{"$f":"IF('[8]MONE(M)'!$AO269=\"\",\"\",'[8]MONE(M)'!$AO269)","v":25559.926031169998},12.781213977722183,1.9043279685367231,8.4466687554852093,8.130804879939312,9.2512799660430911,15.268418555126217,16.596655138466907,{"$f":"IF('[1]FISCAL(M)'!$K269=\"\",\"\",'[1]FISCAL(M)'!$K269)","v":-3167.3746173329464},{"$f":"+'[1]REAL(A)'!$AO$31","v":196050.69529278859},-1.6155895864601164,{"$f":"IF('[1]FISCAL(M)'!$L269=\"\",\"\",'[1]FISCAL(M)'!$L269)","v":-4103.1607104629475},{"$f":"+'[1]REAL(A)'!$AP$31","v":230736.92329278859},-1.7782852661410984,86848.672568466558,{"$f":"'[1]Gráfico REM'!BG263","v":20059.157680953715},{"$f":"'[1]Gráfico REM'!BH263","v":62057.751127590906},{"$f":"'[1]Gráfico REM'!BI263","v":4731.7637599219333},10.272498141453212,15.864817369761152,9.7079954839182072,-3.0253885330713715,130856.28291653654,{"$f":"'[1]Gráfico REM'!BK263","v":21149.583869763715},{"$f":"'[1]Gráfico REM'!BL263","v":87617.677158760896},{"$f":"'[1]Gráfico REM'!BM263","v":22089.021888011932},13.10922524761069,16.5126325041971,11.631995998357203,15.95254787712388]
[2011,"septiembre","2011-septiembre",{"$f":"IF('[1]REAL IPC(M)'!$AL270=\"\",\"\",+'[1]REAL IPC(M)'!$AL270)","v":7.5895313613048021},{"$f":"IF('[1]REAL IPC(M)'!$BE270=\"\",\"\",+'[1]REAL IPC(M)'!$BE270)","v":5.0708774867609829},{"$f":"IF('[1]REAL IPC(M)'!$AM270=\"\",\"\",+'[1]REAL IPC(M)'!$AM270)","v":7.4247169406516322},{"$f":"IF('[1]REAL IPC(M)'!$BI270=\"\",\"\",+'[1]REAL IPC(M)'!$BI270)","v":5.1044504272042213},{"$f":"IF('[1]REAL IMAE(M)'!BJ270=\"\",\"\",'[1]REAL IMAE(M)'!BJ270)","v":3.9175362210470688},{"$f":"IF('[1]REAL IMAE(M)'!BK270=\"\",\"\",'[1]REAL IMAE(M)'!BK270)","v":3.8286347644965968},{"$f":"IF('[1]REAL IMAE(M)'!BN270=\"\",\"\",'[1]REAL IMAE(M)'!BN270)","v":4.569836914519132},{"$f":"IF('[1]REAL IMAE(M)'!BO270=\"\",\"\",'[1]REAL IMAE(M)'!BO270)","v":4.4755582219560441},{"$f":"IF('[1]EXT RIN(M)'!$K270=\"\",\"\",'[1]EXT RIN(M)'!$K270)","v":20709.361117411754},"",{"$f":"IF('[1]EXT RIN(M)'!$L270=\"\",\"\",'[1]EXT RIN(M)'!$L270)","v":22507.489649351755},"",{"$f":"IF('[1]MONE(M)CARD'!EG270=\"\",\"\",'[1]MONE(M)CARD'!EG270)","v":22224.798643998402},{"$f":"IF('[1]MONE(M)CARD'!EK270=\"\",\"\",'[1]MONE(M)CARD'!EK270)","v":37169.890726912541},{"$f":"IF('[1]MONE(M)CARD'!EP270=\"\",\"\",'[1]MONE(M)CARD'!EP270)","v":20934.585613389834},{"$f":"IF('[1]MONE(M)CARD'!ES270=\"\",\"\",'[1]MONE(M)CARD'!ES270)","v":12.671940427251016},{"$f":"IF('[1]MONE(M)CARD'!EV270=\"\",\"\",'[1]MONE(M)CARD'!EV270)","v":9.003605812878245},{"$f":"IF('[1]MONE(M)CARD'!EZ270=\"\",\"\",'[1]MONE(M)CARD'!EZ270)","v":6.8658119903711956},{"$f":"IF('[1]MONE(M)CAPARD'!FC270=\"\",\"\",'[1]MONE(M)CAPARD'!FC270)","v":27924.634095478403},{"$f":"IF('[1]MONE(M)CAPARD'!FG270=\"\",\"\",'[1]MONE(M)CAPARD'!FG270)","v":56860.621665002553},{"$f":"IF('[1]MONE(M)CAPARD'!FL270=\"\",\"\",'[1]MONE(M)CAPARD'!FL270)","v":20934.585613389834},{"$f":"IF('[1]MONE(M)CAPARD'!FO270=\"\",\"\",'[1]MONE(M)CAPARD'!FO270)","v":15.127603569634518},{"$f":"IF('[1]MONE(M)CAPARD'!FR270=\"\",\"\",'[1]MONE(M)CAPARD'!FR270)","v":9.4315133111212646},{"$f":"IF('[1]MONE(M)CAPARD'!FV270=\"\",\"\",'[1]MONE(M)CAPARD'!FV270)","v":7.7042550446084768},{"$f":"IF('[1]MONE(M)CARD'!FV270=\"\",\"\",'[1]MONE(M)CARD'!FV270)","v":2758.2713744332136},{"$f":"IF('[1]MONE(M)CARD'!GD270=\"\",\"\",'[1]MONE(M)CARD'!GD270)","v":179.5712528348796},{"$f":"IF('[1]MONE(M)CARD'!GE270=\"\",\"\",'[1]MONE(M)CARD'!GE270)","v":6325.4029935867002},9.7899409861035949,{"$f":"IF('[9]II.2.Balance OSD-Activos'!J128=\"\",\"\",'[9]II.2.Balance OSD-Activos'!J128)","v":142.20842899030671},{"$f":"IF('[9]II.2.Balance OSD-Activos'!N128=\"\",\"\",'[9]II.2.Balance OSD-Activos'!N128)","v":400.73706314300392},{"$f":"IF('[9]II.2.Balance OSD-Activos'!R128=\"\",\"\",'[9]II.2.Balance OSD-Activos'!R128)","v":27240.954451953465},{"$f":"IF('[9]II.2.Balance OSD-Activos'!S128=\"\",\"\",'[9]II.2.Balance OSD-Activos'!S128)","v":32089.360597632272},{"$f":"IFERROR(+AF263+AH263,\"n.d.\")","v":27383.162880943772},59873.26054171905,-24.024126642843989,11.376916775549351,22.828417421618052,11.648495820490567,10.364630414657828,10.900943675340491,0.85407978606677482,{"$f":"IF('[1]MONE(M)CAPARD'!GS270=\"\",\"\",'[1]MONE(M)CAPARD'!GS270)","v":13526.670118660277},{"$f":"IF('[1]MONE(M)CARD'!HA270=\"\",\"\",'[1]MONE(M)CAPARD'!HA270)","v":6915.9409792367005},{"$f":"IF('[1]MONE(M)CAPARD'!HB270=\"\",\"\",'[1]MONE(M)CAPARD'!HB270)","v":6610.7291394235763},"n.d.",{"$f":"IF('[10]II.2.Balance OSD-Activos'!J128=\"\",\"\",'[10]II.2.Balance OSD-Activos'!J128)","v":810.92261084030667},{"$f":"IF('[10]II.2.Balance OSD-Activos'!N128=\"\",\"\",'[10]II.2.Balance OSD-Activos'!N128)","v":795.68954930300401},{"$f":"IF('[10]II.2.Balance OSD-Activos'!R128=\"\",\"\",'[10]II.2.Balance OSD-Activos'!R128)","v":41041.255548303467},{"$f":"IF('[10]II.2.Balance OSD-Activos'!S128=\"\",\"\",'[10]II.2.Balance OSD-Activos'!S128)","v":42916.823158102277},41852.178159143776,85564.690866549063,46.21955267510107,15.170163152233318,41.752627990140077,14.688960510548377,9.5955637774886249,12.496276083964331,0.64485508150413651,{"$f":"IF('[1]MONE(M)CAPARD'!AS270=\"\",\"\",'[1]MONE(M)CAPARD'!AS270)","v":5},{"$f":"IF('[1]MONE(M)CAPARD'!AT270=\"\",\"\",'[1]MONE(M)CAPARD'!AT270)","v":"n.a."},{"$f":"IF('[1]MONE(M)CAPARD'!AU270=\"\",\"\",'[1]MONE(M)CAPARD'!AU270)","v":5.5},{"$f":"IF('[1]MONE(M)CAPARD'!AV270=\"\",\"\",'[1]MONE(M)CAPARD'!AV270)","v":5},{"$f":"IF('[1]MONE(M)CAPARD'!AW270=\"\",\"\",'[1]MONE(M)CAPARD'!AW270)","v":"n.a."},{"$f":"IF('[1]MONE(M)CAPARD'!AX270=\"\",\"\",'[1]MONE(M)CAPARD'!AX270)","v":6.75},{"$f":"IF('[1]MONE(M)CAPARD'!AY270=\"\",\"\",'[1]MONE(M)CAPARD'!AY270)","v":"n.a."},{"$f":"IF('[1]FISCAL(M)'!$K270=\"\",\"\",'[1]FISCAL(M)'!$K270)","v":-3685.3163453819479},{"$f":"IF('[1]FISCAL(M)'!$L270=\"\",\"\",'[1]FISCAL(M)'!$L270)","v":-4629.0237458519496},{"$f":"IF('[1]FISCAL(M)'!$AY270=\"\",\"\",'[1]FISCAL(M)'!$AY270)","v":72547.394671585382},{"$f":"IF('[1]FISCAL(M)'!$BI270=\"\",\"\",'[1]FISCAL(M)'!$BI270)","v":37361.348671585394},{"$f":"IF('[1]FISCAL(M)'!$BS270=\"\",\"\",'[1]FISCAL(M)'!$BS270)","v":35186.046000000002},{"$f":"IF('[1]FISCAL(M)'!$AZ270=\"\",\"\",'[1]FISCAL(M)'!$AZ270)","v":85507.649582855389},{"$f":"IF('[1]FISCAL(M)'!$BJ270=\"\",\"\",'[1]FISCAL(M)'!$BJ270)","v":39582.114720445396},{"$f":"IF('[1]FISCAL(M)'!$BT270=\"\",\"\",'[1]FISCAL(M)'!$BT270)","v":45925.534862410001},{"$f":"IF('[2]MONE(M)'!$AO270=\"\",\"\",'[2]MONE(M)'!$AO270)","v":10158821.66241068},{"$f":"IF('[3]MONE(M)'!$AO270=\"\",\"\",'[3]MONE(M)'!$AO270)","v":8859.73511315},{"$f":"IF('[4]MONE(M)'!$AO270=\"\",\"\",'[4]MONE(M)'!$AO270)","v":90449.33973190657},{"$f":"+'[5]MONE(M)'!$AO270","v":150928.84808840905},{"$f":"IF('[6]MONE(M)'!$AO270=\"\",\"\",'[6]MONE(M)'!$AO270)","v":47134.255199490617},{"$f":"IF('[7]MONE(M)'!$AO270=\"\",\"\",'[7]MONE(M)'!$AO270)","v":467002.85657869995},{"$f":"IF('[8]MONE(M)'!$AO270=\"\",\"\",'[8]MONE(M)'!$AO270)","v":26055.073206610006},13.894679281044041,2.9328333948684948,10.624365865542229,8.7335855180680646,11.766833792486974,15.697645493323131,16.385830525640532,{"$f":"IF('[1]FISCAL(M)'!$K270=\"\",\"\",'[1]FISCAL(M)'!$K270)","v":-3685.3163453819479},{"$f":"+'[1]REAL(A)'!$AO$31","v":196050.69529278859},-1.8797772381669824,{"$f":"IF('[1]FISCAL(M)'!$L270=\"\",\"\",'[1]FISCAL(M)'!$L270)","v":-4629.0237458519496},{"$f":"+'[1]REAL(A)'!$AP$31","v":230736.92329278859},-2.0061911547542182,87461.883389050738,{"$f":"'[1]Gráfico REM'!BG264","v":20062.91400721886},{"$f":"'[1]Gráfico REM'!BH264","v":62596.524250897564},{"$f":"'[1]Gráfico REM'!BI264","v":4802.4451309343085},11.39892209972837,16.892970703847212,10.629529289096617,0.74942732386233946,131909.36818274073,{"$f":"'[1]Gráfico REM'!BK264","v":21192.778583508862},{"$f":"'[1]Gráfico REM'!BL264","v":88651.597457507567},{"$f":"'[1]Gráfico REM'!BM264","v":22064.992141724306},13.760897787895377,17.292972448924694,12.261376517610501,16.647193673019387]
[2011,"octubre","2011-octubre",{"$f":"IF('[1]REAL IPC(M)'!$AL271=\"\",\"\",+'[1]REAL IPC(M)'!$AL271)","v":6.8794574843492384},{"$f":"IF('[1]REAL IPC(M)'!$BE271=\"\",\"\",+'[1]REAL IPC(M)'!$BE271)","v":5.0431331642259991},{"$f":"IF('[1]REAL IPC(M)'!$AM271=\"\",\"\",+'[1]REAL IPC(M)'!$AM271)","v":6.7990672003105379},{"$f":"IF('[1]REAL IPC(M)'!$BI271=\"\",\"\",+'[1]REAL IPC(M)'!$BI271)","v":5.0827796935885017},{"$f":"IF('[1]REAL IMAE(M)'!BJ271=\"\",\"\",'[1]REAL IMAE(M)'!BJ271)","v":3.6107486606960615},{"$f":"IF('[1]REAL IMAE(M)'!BK271=\"\",\"\",'[1]REAL IMAE(M)'!BK271)","v":3.8419028795609877},{"$f":"IF('[1]REAL IMAE(M)'!BN271=\"\",\"\",'[1]REAL IMAE(M)'!BN271)","v":4.3767001812967665},{"$f":"IF('[1]REAL IMAE(M)'!BO271=\"\",\"\",'[1]REAL IMAE(M)'!BO271)","v":4.4981123237522791},{"$f":"IF('[1]EXT RIN(M)'!$K271=\"\",\"\",'[1]EXT RIN(M)'!$K271)","v":20765.30333387202},"",{"$f":"IF('[1]EXT RIN(M)'!$L271=\"\",\"\",'[1]EXT RIN(M)'!$L271)","v":22473.106082382019},"",{"$f":"IF('[1]MONE(M)CARD'!EG271=\"\",\"\",'[1]MONE(M)CARD'!EG271)","v":22222.387605283398},{"$f":"IF('[1]MONE(M)CARD'!EK271=\"\",\"\",'[1]MONE(M)CARD'!EK271)","v":37600.262602341434},{"$f":"IF('[1]MONE(M)CARD'!EP271=\"\",\"\",'[1]MONE(M)CARD'!EP271)","v":21080.669780313554},{"$f":"IF('[1]MONE(M)CARD'!ES271=\"\",\"\",'[1]MONE(M)CARD'!ES271)","v":11.317691952285758},{"$f":"IF('[1]MONE(M)CARD'!EV271=\"\",\"\",'[1]MONE(M)CARD'!EV271)","v":9.1822923899470545},{"$f":"IF('[1]MONE(M)CARD'!EZ271=\"\",\"\",'[1]MONE(M)CARD'!EZ271)","v":7.2121590803951641},{"$f":"IF('[1]MONE(M)CAPARD'!FC271=\"\",\"\",'[1]MONE(M)CAPARD'!FC271)","v":27879.439110113399},{"$f":"IF('[1]MONE(M)CAPARD'!FG271=\"\",\"\",'[1]MONE(M)CAPARD'!FG271)","v":57429.967095801447},{"$f":"IF('[1]MONE(M)CAPARD'!FL271=\"\",\"\",'[1]MONE(M)CAPARD'!FL271)","v":21080.669780313547},{"$f":"IF('[1]MONE(M)CAPARD'!FO271=\"\",\"\",'[1]MONE(M)CAPARD'!FO271)","v":12.90642413407619},{"$f":"IF('[1]MONE(M)CAPARD'!FR271=\"\",\"\",'[1]MONE(M)CAPARD'!FR271)","v":9.2458808571613371},{"$f":"IF('[1]MONE(M)CAPARD'!FV271=\"\",\"\",'[1]MONE(M)CAPARD'!FV271)","v":7.7272059876522858},{"$f":"IF('[1]MONE(M)CARD'!FV271=\"\",\"\",'[1]MONE(M)CARD'!FV271)","v":2795.396379159049},{"$f":"IF('[1]MONE(M)CARD'!GD271=\"\",\"\",'[1]MONE(M)CARD'!GD271)","v":95.224758796620904},{"$f":"IF('[1]MONE(M)CARD'!GE271=\"\",\"\",'[1]MONE(M)CARD'!GE271)","v":6278.3677917122377},7.8665378235747374,{"$f":"IF('[9]II.2.Balance OSD-Activos'!J129=\"\",\"\",'[9]II.2.Balance OSD-Activos'!J129)","v":157.89271411869325},{"$f":"IF('[9]II.2.Balance OSD-Activos'!N129=\"\",\"\",'[9]II.2.Balance OSD-Activos'!N129)","v":396.49870614793326},{"$f":"IF('[9]II.2.Balance OSD-Activos'!R129=\"\",\"\",'[9]II.2.Balance OSD-Activos'!R129)","v":27546.303514136125},{"$f":"IF('[9]II.2.Balance OSD-Activos'!S129=\"\",\"\",'[9]II.2.Balance OSD-Activos'!S129)","v":32465.647715559669},27704.196228254819,60566.342649962418,-16.894096392259517,10.132588799097508,27.335172711551991,10.33826584349924,10.696515621295122,10.532180494592879,-0.36876318074761194,{"$f":"IF('[1]MONE(M)CAPARD'!GS271=\"\",\"\",'[1]MONE(M)CAPARD'!GS271)","v":13710.821259913146},{"$f":"IF('[1]MONE(M)CARD'!HA271=\"\",\"\",'[1]MONE(M)CAPARD'!HA271)","v":6917.290814802237},{"$f":"IF('[1]MONE(M)CAPARD'!HB271=\"\",\"\",'[1]MONE(M)CAPARD'!HB271)","v":6793.5304451109087},"n.d.",{"$f":"IF('[10]II.2.Balance OSD-Activos'!J129=\"\",\"\",'[10]II.2.Balance OSD-Activos'!J129)","v":805.60307614869339},{"$f":"IF('[10]II.2.Balance OSD-Activos'!N129=\"\",\"\",'[10]II.2.Balance OSD-Activos'!N129)","v":775.46247399793322},{"$f":"IF('[10]II.2.Balance OSD-Activos'!R129=\"\",\"\",'[10]II.2.Balance OSD-Activos'!R129)","v":41748.529488446133},{"$f":"IF('[10]II.2.Balance OSD-Activos'!S129=\"\",\"\",'[10]II.2.Balance OSD-Activos'!S129)","v":43421.028581289669},42554.132564594824,86750.623619882419,45.883189319899095,14.648919806408367,41.069844110690411,14.177198578781901,9.99140030079122,12.453784364277332,-4.2491719686998053E-2,{"$f":"IF('[1]MONE(M)CAPARD'!AS271=\"\",\"\",'[1]MONE(M)CAPARD'!AS271)","v":5},{"$f":"IF('[1]MONE(M)CAPARD'!AT271=\"\",\"\",'[1]MONE(M)CAPARD'!AT271)","v":"n.a."},{"$f":"IF('[1]MONE(M)CAPARD'!AU271=\"\",\"\",'[1]MONE(M)CAPARD'!AU271)","v":5.5},{"$f":"IF('[1]MONE(M)CAPARD'!AV271=\"\",\"\",'[1]MONE(M)CAPARD'!AV271)","v":5},{"$f":"IF('[1]MONE(M)CAPARD'!AW271=\"\",\"\",'[1]MONE(M)CAPARD'!AW271)","v":"n.a."},{"$f":"IF('[1]MONE(M)CAPARD'!AX271=\"\",\"\",'[1]MONE(M)CAPARD'!AX271)","v":6.75},{"$f":"IF('[1]MONE(M)CAPARD'!AY271=\"\",\"\",'[1]MONE(M)CAPARD'!AY271)","v":"n.a."},{"$f":"IF('[1]FISCAL(M)'!$K271=\"\",\"\",'[1]FISCAL(M)'!$K271)","v":-3914.0333816336529},{"$f":"IF('[1]FISCAL(M)'!$L271=\"\",\"\",'[1]FISCAL(M)'!$L271)","v":-4875.371033073654},{"$f":"IF('[1]FISCAL(M)'!$AY271=\"\",\"\",'[1]FISCAL(M)'!$AY271)","v":73067.03995739427},{"$f":"IF('[1]FISCAL(M)'!$BI271=\"\",\"\",'[1]FISCAL(M)'!$BI271)","v":37402.635885609241},{"$f":"IF('[1]FISCAL(M)'!$BS271=\"\",\"\",'[1]FISCAL(M)'!$BS271)","v":35664.404071785037},{"$f":"IF('[1]FISCAL(M)'!$AZ271=\"\",\"\",'[1]FISCAL(M)'!$AZ271)","v":86096.119009334274},{"$f":"IF('[1]FISCAL(M)'!$BJ271=\"\",\"\",'[1]FISCAL(M)'!$BJ271)","v":39646.923728509239},{"$f":"IF('[1]FISCAL(M)'!$BT271=\"\",\"\",'[1]FISCAL(M)'!$BT271)","v":46449.195280825043},{"$f":"IF('[2]MONE(M)'!$AO271=\"\",\"\",'[2]MONE(M)'!$AO271)","v":10310987.461434668},{"$f":"IF('[3]MONE(M)'!$AO271=\"\",\"\",'[3]MONE(M)'!$AO271)","v":8914.2742567101213},{"$f":"IF('[4]MONE(M)'!$AO271=\"\",\"\",'[4]MONE(M)'!$AO271)","v":91806.540824940079},{"$f":"+'[5]MONE(M)'!$AO271","v":152082.75290594689},{"$f":"IF('[6]MONE(M)'!$AO271=\"\",\"\",'[6]MONE(M)'!$AO271)","v":48840.133089140283},{"$f":"IF('[7]MONE(M)'!$AO271=\"\",\"\",'[7]MONE(M)'!$AO271)","v":474017.22564463003},{"$f":"IF('[8]MONE(M)'!$AO271=\"\",\"\",'[8]MONE(M)'!$AO271)","v":26556.308537390003},13.893718866212602,3.6555618207015916,10.802643260211987,8.2261908174947163,14.450218883538479,13.013982805232583,17.156721049757806,{"$f":"IF('[1]FISCAL(M)'!$K271=\"\",\"\",'[1]FISCAL(M)'!$K271)","v":-3914.0333816336529},{"$f":"+'[1]REAL(A)'!$AO$31","v":196050.69529278859},-1.9964394289896836,{"$f":"IF('[1]FISCAL(M)'!$L271=\"\",\"\",'[1]FISCAL(M)'!$L271)","v":-4875.371033073654},{"$f":"+'[1]REAL(A)'!$AP$31","v":230736.92329278859},-2.1129565929450997,88140.90174410872,{"$f":"'[1]Gráfico REM'!BG265","v":19963.04580566529},{"$f":"'[1]Gráfico REM'!BH265","v":63358.023112017923},{"$f":"'[1]Gráfico REM'!BI265","v":4819.8328264255106},10.677006495709328,14.378895056061779,10.42666371259935,0.228152610971466,133176.30488378872,{"$f":"'[1]Gráfico REM'!BK265","v":21172.435533315289},{"$f":"'[1]Gráfico REM'!BL265","v":89914.331649407919},{"$f":"'[1]Gráfico REM'!BM265","v":22089.53770106551},13.177089553246901,14.862377199754162,12.332545417868657,15.080471199960609]
[2011,"noviembre","2011-noviembre",{"$f":"IF('[1]REAL IPC(M)'!$AL272=\"\",\"\",+'[1]REAL IPC(M)'!$AL272)","v":6.4805509661894911},{"$f":"IF('[1]REAL IPC(M)'!$BE272=\"\",\"\",+'[1]REAL IPC(M)'!$BE272)","v":5.0111139279784833},{"$f":"IF('[1]REAL IPC(M)'!$AM272=\"\",\"\",+'[1]REAL IPC(M)'!$AM272)","v":6.5175548846203579},{"$f":"IF('[1]REAL IPC(M)'!$BI272=\"\",\"\",+'[1]REAL IPC(M)'!$BI272)","v":5.0560655892611939},{"$f":"IF('[1]REAL IMAE(M)'!BJ272=\"\",\"\",'[1]REAL IMAE(M)'!BJ272)","v":3.9519958811439659},{"$f":"IF('[1]REAL IMAE(M)'!BK272=\"\",\"\",'[1]REAL IMAE(M)'!BK272)","v":3.8527919735511285},{"$f":"IF('[1]REAL IMAE(M)'!BN272=\"\",\"\",'[1]REAL IMAE(M)'!BN272)","v":4.9661490440135347},{"$f":"IF('[1]REAL IMAE(M)'!BO272=\"\",\"\",'[1]REAL IMAE(M)'!BO272)","v":4.5166162202793458},{"$f":"IF('[1]EXT RIN(M)'!$K272=\"\",\"\",'[1]EXT RIN(M)'!$K272)","v":20620.432408491917},"",{"$f":"IF('[1]EXT RIN(M)'!$L272=\"\",\"\",'[1]EXT RIN(M)'!$L272)","v":22832.670791781919},"",{"$f":"IF('[1]MONE(M)CARD'!EG272=\"\",\"\",'[1]MONE(M)CARD'!EG272)","v":22954.752932292326},{"$f":"IF('[1]MONE(M)CARD'!EK272=\"\",\"\",'[1]MONE(M)CARD'!EK272)","v":37330.688356462386},{"$f":"IF('[1]MONE(M)CARD'!EP272=\"\",\"\",'[1]MONE(M)CARD'!EP272)","v":21302.101354408005},{"$f":"IF('[1]MONE(M)CARD'!ES272=\"\",\"\",'[1]MONE(M)CARD'!ES272)","v":8.5399511840702722},{"$f":"IF('[1]MONE(M)CARD'!EV272=\"\",\"\",'[1]MONE(M)CARD'!EV272)","v":7.9809672540678056},{"$f":"IF('[1]MONE(M)CARD'!EZ272=\"\",\"\",'[1]MONE(M)CARD'!EZ272)","v":6.681296167236539},{"$f":"IF('[1]MONE(M)CAPARD'!FC272=\"\",\"\",'[1]MONE(M)CAPARD'!FC272)","v":28959.957024072319},{"$f":"IF('[1]MONE(M)CAPARD'!FG272=\"\",\"\",'[1]MONE(M)CAPARD'!FG272)","v":57358.399091362378},{"$f":"IF('[1]MONE(M)CAPARD'!FL272=\"\",\"\",'[1]MONE(M)CAPARD'!FL272)","v":21302.101354408005},{"$f":"IF('[1]MONE(M)CAPARD'!FO272=\"\",\"\",'[1]MONE(M)CAPARD'!FO272)","v":11.315514701463103},{"$f":"IF('[1]MONE(M)CAPARD'!FR272=\"\",\"\",'[1]MONE(M)CAPARD'!FR272)","v":9.0686244432822036},{"$f":"IF('[1]MONE(M)CAPARD'!FV272=\"\",\"\",'[1]MONE(M)CAPARD'!FV272)","v":7.847512341187346},{"$f":"IF('[1]MONE(M)CARD'!FV272=\"\",\"\",'[1]MONE(M)CARD'!FV272)","v":2874.3495889359574},{"$f":"IF('[1]MONE(M)CARD'!GD272=\"\",\"\",'[1]MONE(M)CARD'!GD272)","v":85.061657145948303},{"$f":"IF('[1]MONE(M)CARD'!GE272=\"\",\"\",'[1]MONE(M)CARD'!GE272)","v":6782.9458773933384},17.74865730869648,{"$f":"IF('[9]II.2.Balance OSD-Activos'!J130=\"\",\"\",'[9]II.2.Balance OSD-Activos'!J130)","v":171.05708199564401},{"$f":"IF('[9]II.2.Balance OSD-Activos'!N130=\"\",\"\",'[9]II.2.Balance OSD-Activos'!N130)","v":441.3263831288283},{"$f":"IF('[9]II.2.Balance OSD-Activos'!R130=\"\",\"\",'[9]II.2.Balance OSD-Activos'!R130)","v":28286.478948839278},{"$f":"IF('[9]II.2.Balance OSD-Activos'!S130=\"\",\"\",'[9]II.2.Balance OSD-Activos'!S130)","v":33067.525949204297},28457.536030834923,61966.388363168051,-9.1147255483478133,10.320574116278092,36.110295817609469,10.463423504805579,11.424818711963214,11.057765978582324,0.52558548398944538,{"$f":"IF('[1]MONE(M)CAPARD'!GS272=\"\",\"\",'[1]MONE(M)CAPARD'!GS272)","v":13854.510037256941},{"$f":"IF('[1]MONE(M)CARD'!HA272=\"\",\"\",'[1]MONE(M)CAPARD'!HA272)","v":7390.5794818933373},{"$f":"IF('[1]MONE(M)CAPARD'!HB272=\"\",\"\",'[1]MONE(M)CAPARD'!HB272)","v":6463.9305553636041},"n.d.",{"$f":"IF('[10]II.2.Balance OSD-Activos'!J130=\"\",\"\",'[10]II.2.Balance OSD-Activos'!J130)","v":817.17048269564384},{"$f":"IF('[10]II.2.Balance OSD-Activos'!N130=\"\",\"\",'[10]II.2.Balance OSD-Activos'!N130)","v":779.29193569882841},{"$f":"IF('[10]II.2.Balance OSD-Activos'!R130=\"\",\"\",'[10]II.2.Balance OSD-Activos'!R130)","v":42616.695713349283},{"$f":"IF('[10]II.2.Balance OSD-Activos'!S130=\"\",\"\",'[10]II.2.Balance OSD-Activos'!S130)","v":44140.021471084299},43433.866196044924,{"$f":"IF(OR(AW265=\"\",AX265=\"\",AY265=\"\",AZ265=\"\"),\"\",SUM(AW265:AZ265))","v":88353.179602828051},39.574836128168741,14.339407245621505,47.06946399536092,13.944377897252359,10.91706095515439,12.821750186483104,0.36796582220577179,{"$f":"IF('[1]MONE(M)CAPARD'!AS272=\"\",\"\",'[1]MONE(M)CAPARD'!AS272)","v":5},{"$f":"IF('[1]MONE(M)CAPARD'!AT272=\"\",\"\",'[1]MONE(M)CAPARD'!AT272)","v":"n.a."},{"$f":"IF('[1]MONE(M)CAPARD'!AU272=\"\",\"\",'[1]MONE(M)CAPARD'!AU272)","v":5.5},{"$f":"IF('[1]MONE(M)CAPARD'!AV272=\"\",\"\",'[1]MONE(M)CAPARD'!AV272)","v":5.5},{"$f":"IF('[1]MONE(M)CAPARD'!AW272=\"\",\"\",'[1]MONE(M)CAPARD'!AW272)","v":"n.a."},{"$f":"IF('[1]MONE(M)CAPARD'!AX272=\"\",\"\",'[1]MONE(M)CAPARD'!AX272)","v":6.75},{"$f":"IF('[1]MONE(M)CAPARD'!AY272=\"\",\"\",'[1]MONE(M)CAPARD'!AY272)","v":"n.a."},{"$f":"IF('[1]FISCAL(M)'!$K272=\"\",\"\",'[1]FISCAL(M)'!$K272)","v":-4291.9045131756056},{"$f":"IF('[1]FISCAL(M)'!$L272=\"\",\"\",'[1]FISCAL(M)'!$L272)","v":-4753.1167776956063},{"$f":"IF('[1]FISCAL(M)'!$AY272=\"\",\"\",'[1]FISCAL(M)'!$AY272)","v":73208.431830548143},{"$f":"IF('[1]FISCAL(M)'!$BI272=\"\",\"\",'[1]FISCAL(M)'!$BI272)","v":37350.214102568818},{"$f":"IF('[1]FISCAL(M)'!$BS272=\"\",\"\",'[1]FISCAL(M)'!$BS272)","v":35858.217727979325},{"$f":"IF('[1]FISCAL(M)'!$AZ272=\"\",\"\",'[1]FISCAL(M)'!$AZ272)","v":86248.088824448147},{"$f":"IF('[1]FISCAL(M)'!$BJ272=\"\",\"\",'[1]FISCAL(M)'!$BJ272)","v":39614.82202867882},{"$f":"IF('[1]FISCAL(M)'!$BT272=\"\",\"\",'[1]FISCAL(M)'!$BT272)","v":46633.266795769319},{"$f":"IF('[2]MONE(M)'!$AO272=\"\",\"\",'[2]MONE(M)'!$AO272)","v":10364493.493442513},{"$f":"IF('[3]MONE(M)'!$AO272=\"\",\"\",'[3]MONE(M)'!$AO272)","v":8995.4357564101228},{"$f":"IF('[4]MONE(M)'!$AO272=\"\",\"\",'[4]MONE(M)'!$AO272)","v":93934.144497774425},{"$f":"+'[5]MONE(M)'!$AO272","v":155418.11868715123},{"$f":"IF('[6]MONE(M)'!$AO272=\"\",\"\",'[6]MONE(M)'!$AO272)","v":51013.714280906206},{"$f":"IF('[7]MONE(M)'!$AO272=\"\",\"\",'[7]MONE(M)'!$AO272)","v":483562.73545831005},{"$f":"IF('[8]MONE(M)'!$AO272=\"\",\"\",'[8]MONE(M)'!$AO272)","v":26800.069622300009},13.839861215734949,3.6768016409141291,11.960756174166033,9.3952886367667521,17.048666835840699,12.902369114453194,17.212504679816565,{"$f":"IF('[1]FISCAL(M)'!$K272=\"\",\"\",'[1]FISCAL(M)'!$K272)","v":-4291.9045131756056},{"$f":"+'[1]REAL(A)'!$AO$31","v":196050.69529278859},-2.1891809701393474,{"$f":"IF('[1]FISCAL(M)'!$L272=\"\",\"\",'[1]FISCAL(M)'!$L272)","v":-4753.1167776956063},{"$f":"+'[1]REAL(A)'!$AP$31","v":230736.92329278859},-2.0599723312008638,89216.185845124681,{"$f":"'[1]Gráfico REM'!BG266","v":19729.555391503269},{"$f":"'[1]Gráfico REM'!BH266","v":64600.370551980886},{"$f":"'[1]Gráfico REM'!BI266","v":4886.259901640532},10.623066663738934,12.348036273073394,10.826428428734157,1.8389811915473953,134631.2894618047,{"$f":"'[1]Gráfico REM'!BK266","v":21024.384402213269},{"$f":"'[1]Gráfico REM'!BL266","v":91400.440174280899},{"$f":"'[1]Gráfico REM'!BM266","v":22206.464885310535},13.020429048008864,13.560019744155216,12.625651892833712,14.153815848725104]
[2011,"diciembre","2011-diciembre",{"$f":"IF('[1]REAL IPC(M)'!$AL273=\"\",\"\",+'[1]REAL IPC(M)'!$AL273)","v":6.3521848680622162},{"$f":"IF('[1]REAL IPC(M)'!$BE273=\"\",\"\",+'[1]REAL IPC(M)'!$BE273)","v":4.9750701805689523},{"$f":"IF('[1]REAL IPC(M)'!$AM273=\"\",\"\",+'[1]REAL IPC(M)'!$AM273)","v":6.3478855978257531},{"$f":"IF('[1]REAL IPC(M)'!$BI273=\"\",\"\",+'[1]REAL IPC(M)'!$BI273)","v":5.0245338250186622},{"$f":"IF('[1]REAL IMAE(M)'!BJ273=\"\",\"\",'[1]REAL IMAE(M)'!BJ273)","v":4.013724381201933},{"$f":"IF('[1]REAL IMAE(M)'!BK273=\"\",\"\",'[1]REAL IMAE(M)'!BK273)","v":3.861754880352164},{"$f":"IF('[1]REAL IMAE(M)'!BN273=\"\",\"\",'[1]REAL IMAE(M)'!BN273)","v":5.0104564931252593},{"$f":"IF('[1]REAL IMAE(M)'!BO273=\"\",\"\",'[1]REAL IMAE(M)'!BO273)","v":4.5313777319606396},{"$f":"IF('[1]EXT RIN(M)'!$K273=\"\",\"\",'[1]EXT RIN(M)'!$K273)","v":21614.840209303533},21614.840209303533,{"$f":"IF('[1]EXT RIN(M)'!$L273=\"\",\"\",'[1]EXT RIN(M)'!$L273)","v":23831.723253223532},23831.723253223532,{"$f":"IF('[1]MONE(M)CARD'!EG273=\"\",\"\",'[1]MONE(M)CARD'!EG273)","v":24476.594233486721},{"$f":"IF('[1]MONE(M)CARD'!EK273=\"\",\"\",'[1]MONE(M)CARD'!EK273)","v":37790.982850763241},{"$f":"IF('[1]MONE(M)CARD'!EP273=\"\",\"\",'[1]MONE(M)CARD'!EP273)","v":21754.611011824774},{"$f":"IF('[1]MONE(M)CARD'!ES273=\"\",\"\",'[1]MONE(M)CARD'!ES273)","v":8.3768436172997554},{"$f":"IF('[1]MONE(M)CARD'!EV273=\"\",\"\",'[1]MONE(M)CARD'!EV273)","v":7.1318320318286776},{"$f":"IF('[1]MONE(M)CARD'!EZ273=\"\",\"\",'[1]MONE(M)CARD'!EZ273)","v":7.0972333180894687},{"$f":"IF('[1]MONE(M)CAPARD'!FC273=\"\",\"\",'[1]MONE(M)CAPARD'!FC273)","v":30705.868318766719},{"$f":"IF('[1]MONE(M)CAPARD'!FG273=\"\",\"\",'[1]MONE(M)CAPARD'!FG273)","v":57838.21731124325},{"$f":"IF('[1]MONE(M)CAPARD'!FL273=\"\",\"\",'[1]MONE(M)CAPARD'!FL273)","v":21754.611011824774},{"$f":"IF('[1]MONE(M)CAPARD'!FO273=\"\",\"\",'[1]MONE(M)CAPARD'!FO273)","v":10.392942560349617},{"$f":"IF('[1]MONE(M)CAPARD'!FR273=\"\",\"\",'[1]MONE(M)CAPARD'!FR273)","v":7.5130434311035055},{"$f":"IF('[1]MONE(M)CAPARD'!FV273=\"\",\"\",'[1]MONE(M)CAPARD'!FV273)","v":7.411132152803912},{"$f":"IF('[1]MONE(M)CARD'!FV273=\"\",\"\",'[1]MONE(M)CARD'!FV273)","v":2813.5459962475716},{"$f":"IF('[1]MONE(M)CARD'!GD273=\"\",\"\",'[1]MONE(M)CARD'!GD273)","v":107.74456166780035},{"$f":"IF('[1]MONE(M)CARD'!GE273=\"\",\"\",'[1]MONE(M)CARD'!GE273)","v":6340.9030283097272},5.7950304218373994,{"$f":"IF('[9]II.2.Balance OSD-Activos'!J131=\"\",\"\",'[9]II.2.Balance OSD-Activos'!J131)","v":175.51720139804308},{"$f":"IF('[9]II.2.Balance OSD-Activos'!N131=\"\",\"\",'[9]II.2.Balance OSD-Activos'!N131)","v":463.88541705919124},{"$f":"IF('[9]II.2.Balance OSD-Activos'!R131=\"\",\"\",'[9]II.2.Balance OSD-Activos'!R131)","v":28772.389559819996},{"$f":"IF('[9]II.2.Balance OSD-Activos'!S131=\"\",\"\",'[9]II.2.Balance OSD-Activos'!S131)","v":33181.638838614672},28947.906761218041,62593.431016891904,6.2621980984856718,10.058698864293913,27.831841511102162,10.082690921453196,11.846868318787006,11.114921797459299,5.7155818876974962E-2,{"$f":"IF('[1]MONE(M)CAPARD'!GS273=\"\",\"\",'[1]MONE(M)CAPARD'!GS273)","v":14151.617789429416},{"$f":"IF('[1]MONE(M)CARD'!HA273=\"\",\"\",'[1]MONE(M)CAPARD'!HA273)","v":6906.5226109097275},{"$f":"IF('[1]MONE(M)CAPARD'!HB273=\"\",\"\",'[1]MONE(M)CAPARD'!HB273)","v":7245.0951785196885},"n.d.",{"$f":"IF('[10]II.2.Balance OSD-Activos'!J131=\"\",\"\",'[10]II.2.Balance OSD-Activos'!J131)","v":806.08356680804286},{"$f":"IF('[10]II.2.Balance OSD-Activos'!N131=\"\",\"\",'[10]II.2.Balance OSD-Activos'!N131)","v":812.73455929919123},{"$f":"IF('[10]II.2.Balance OSD-Activos'!R131=\"\",\"\",'[10]II.2.Balance OSD-Activos'!R131)","v":42649.662888709994},{"$f":"IF('[10]II.2.Balance OSD-Activos'!S131=\"\",\"\",'[10]II.2.Balance OSD-Activos'!S131)","v":44445.865533034674},43455.746455518034,88714.346547851892,26.726845834870549,13.467201502559023,39.120245268028327,13.243257174966505,11.469148047808474,12.645900902387464,-0.17584928409564071,{"$f":"IF('[1]MONE(M)CAPARD'!AS273=\"\",\"\",'[1]MONE(M)CAPARD'!AS273)","v":5},{"$f":"IF('[1]MONE(M)CAPARD'!AT273=\"\",\"\",'[1]MONE(M)CAPARD'!AT273)","v":"n.a."},{"$f":"IF('[1]MONE(M)CAPARD'!AU273=\"\",\"\",'[1]MONE(M)CAPARD'!AU273)","v":5.5},{"$f":"IF('[1]MONE(M)CAPARD'!AV273=\"\",\"\",'[1]MONE(M)CAPARD'!AV273)","v":5.5},{"$f":"IF('[1]MONE(M)CAPARD'!AW273=\"\",\"\",'[1]MONE(M)CAPARD'!AW273)","v":"n.a."},{"$f":"IF('[1]MONE(M)CAPARD'!AX273=\"\",\"\",'[1]MONE(M)CAPARD'!AX273)","v":6.75},{"$f":"IF('[1]MONE(M)CAPARD'!AY273=\"\",\"\",'[1]MONE(M)CAPARD'!AY273)","v":"n.a."},{"$f":"IF('[1]FISCAL(M)'!$K273=\"\",\"\",'[1]FISCAL(M)'!$K273)","v":-5758.2434273853632},{"$f":"IF('[1]FISCAL(M)'!$L273=\"\",\"\",'[1]FISCAL(M)'!$L273)","v":-5755.1755719053635},{"$f":"IF('[1]FISCAL(M)'!$AY273=\"\",\"\",'[1]FISCAL(M)'!$AY273)","v":75030.202133718718},{"$f":"IF('[1]FISCAL(M)'!$BI273=\"\",\"\",'[1]FISCAL(M)'!$BI273)","v":38312.063633718732},{"$f":"IF('[1]FISCAL(M)'!$BS273=\"\",\"\",'[1]FISCAL(M)'!$BS273)","v":36718.138500000001},{"$f":"IF('[1]FISCAL(M)'!$AZ273=\"\",\"\",'[1]FISCAL(M)'!$AZ273)","v":87884.248368138738},{"$f":"IF('[1]FISCAL(M)'!$BJ273=\"\",\"\",'[1]FISCAL(M)'!$BJ273)","v":40255.696704898728},{"$f":"IF('[1]FISCAL(M)'!$BT273=\"\",\"\",'[1]FISCAL(M)'!$BT273)","v":47628.551663240003},{"$f":"IF('[2]MONE(M)'!$AO273=\"\",\"\",'[2]MONE(M)'!$AO273)","v":10496810.242187671},{"$f":"IF('[3]MONE(M)'!$AO273=\"\",\"\",'[3]MONE(M)'!$AO273)","v":9142.0049089299991},{"$f":"IF('[4]MONE(M)'!$AO273=\"\",\"\",'[4]MONE(M)'!$AO273)","v":94130.354663270031},{"$f":"+'[5]MONE(M)'!$AO273","v":158117.15046826677},{"$f":"IF('[6]MONE(M)'!$AO273=\"\",\"\",'[6]MONE(M)'!$AO273)","v":52514.577097942776},{"$f":"IF('[7]MONE(M)'!$AO273=\"\",\"\",'[7]MONE(M)'!$AO273)","v":489175.40418530995},{"$f":"IF('[8]MONE(M)'!$AO273=\"\",\"\",'[8]MONE(M)'!$AO273)","v":26523.396707989999},13.035915987640134,4.7577572478238794,10.767210602795153,10.924792310914899,15.700619726814047,12.568603972673609,16.510572406124837,{"$f":"IF('[1]FISCAL(M)'!$K273=\"\",\"\",'[1]FISCAL(M)'!$K273)","v":-5758.2434273853632},{"$f":"+'[1]REAL(A)'!$AO$31","v":196050.69529278859},-2.9371196153045069,{"$f":"IF('[1]FISCAL(M)'!$L273=\"\",\"\",'[1]FISCAL(M)'!$L273)","v":-5755.1755719053635},{"$f":"+'[1]REAL(A)'!$AP$31","v":230736.92329278859},-2.4942586083643228,89516.056170427721,{"$f":"'[1]Gráfico REM'!BG267","v":19736.383141846571},{"$f":"'[1]Gráfico REM'!BH267","v":64878.354020538754},{"$f":"'[1]Gráfico REM'!BI267","v":4901.3190080423901},9.8043552763715791,11.314090629281925,10.248907836024145,-0.89760264886646901,135032.59373701771,{"$f":"'[1]Gráfico REM'!BK267","v":21135.19662603657},{"$f":"'[1]Gráfico REM'!BL267","v":91401.750728528757},{"$f":"'[1]Gráfico REM'!BM267","v":22495.646382452389},12.534727884796904,13.009728047886181,11.995533319201801,14.319536334168802]
[2012,"enero","2012-enero",{"$f":"IF('[1]REAL IPC(M)'!$AL274=\"\",\"\",+'[1]REAL IPC(M)'!$AL274)","v":5.7755482917958512},{"$f":"IF('[1]REAL IPC(M)'!$BE274=\"\",\"\",+'[1]REAL IPC(M)'!$BE274)","v":4.935337588904809},{"$f":"IF('[1]REAL IPC(M)'!$AM274=\"\",\"\",+'[1]REAL IPC(M)'!$AM274)","v":5.813154715611657},{"$f":"IF('[1]REAL IPC(M)'!$BI274=\"\",\"\",+'[1]REAL IPC(M)'!$BI274)","v":4.9885076182579979},{"$f":"IF('[1]REAL IMAE(M)'!BJ274=\"\",\"\",'[1]REAL IMAE(M)'!BJ274)","v":3.7572498382588471},{"$f":"IF('[1]REAL IMAE(M)'!BK274=\"\",\"\",'[1]REAL IMAE(M)'!BK274)","v":3.8692447383558148},{"$f":"IF('[1]REAL IMAE(M)'!BN274=\"\",\"\",'[1]REAL IMAE(M)'!BN274)","v":4.9234338707648817},{"$f":"IF('[1]REAL IMAE(M)'!BO274=\"\",\"\",'[1]REAL IMAE(M)'!BO274)","v":4.5427327708764231},{"$f":"IF('[1]EXT RIN(M)'!$K274=\"\",\"\",'[1]EXT RIN(M)'!$K274)","v":20962.801397472798},"",{"$f":"IF('[1]EXT RIN(M)'!$L274=\"\",\"\",'[1]EXT RIN(M)'!$L274)","v":23045.502741922799},"",{"$f":"IF('[1]MONE(M)CARD'!EG274=\"\",\"\",'[1]MONE(M)CARD'!EG274)","v":24155.461374928163},{"$f":"IF('[1]MONE(M)CARD'!EK274=\"\",\"\",'[1]MONE(M)CARD'!EK274)","v":38167.327572764538},{"$f":"IF('[1]MONE(M)CARD'!EP274=\"\",\"\",'[1]MONE(M)CARD'!EP274)","v":21966.523481803008},{"$f":"IF('[1]MONE(M)CARD'!ES274=\"\",\"\",'[1]MONE(M)CARD'!ES274)","v":8.5665461840812576},{"$f":"IF('[1]MONE(M)CARD'!EV274=\"\",\"\",'[1]MONE(M)CARD'!EV274)","v":7.5060988433804265},{"$f":"IF('[1]MONE(M)CARD'!EZ274=\"\",\"\",'[1]MONE(M)CARD'!EZ274)","v":6.857454075900149},{"$f":"IF('[1]MONE(M)CAPARD'!FC274=\"\",\"\",'[1]MONE(M)CAPARD'!FC274)","v":30274.904420298168},{"$f":"IF('[1]MONE(M)CAPARD'!FG274=\"\",\"\",'[1]MONE(M)CAPARD'!FG274)","v":58262.408715984529},{"$f":"IF('[1]MONE(M)CAPARD'!FL274=\"\",\"\",'[1]MONE(M)CAPARD'!FL274)","v":21966.523481803},{"$f":"IF('[1]MONE(M)CAPARD'!FO274=\"\",\"\",'[1]MONE(M)CAPARD'!FO274)","v":10.474956138077228},{"$f":"IF('[1]MONE(M)CAPARD'!FR274=\"\",\"\",'[1]MONE(M)CAPARD'!FR274)","v":7.7270406667707459},{"$f":"IF('[1]MONE(M)CAPARD'!FV274=\"\",\"\",'[1]MONE(M)CAPARD'!FV274)","v":7.1859420601998902},{"$f":"IF('[1]MONE(M)CARD'!FV274=\"\",\"\",'[1]MONE(M)CARD'!FV274)","v":2856.6762272374235},{"$f":"IF('[1]MONE(M)CARD'!GD274=\"\",\"\",'[1]MONE(M)CARD'!GD274)","v":76.734221337964456},{"$f":"IF('[1]MONE(M)CARD'!GE274=\"\",\"\",'[1]MONE(M)CARD'!GE274)","v":6788.1969254900641},20.879947589057778,{"$f":"IF('[9]II.2.Balance OSD-Activos'!J132=\"\",\"\",'[9]II.2.Balance OSD-Activos'!J132)","v":164.80657593956988},{"$f":"IF('[9]II.2.Balance OSD-Activos'!N132=\"\",\"\",'[9]II.2.Balance OSD-Activos'!N132)","v":419.98651220112606},{"$f":"IF('[9]II.2.Balance OSD-Activos'!R132=\"\",\"\",'[9]II.2.Balance OSD-Activos'!R132)","v":28835.002345446872},{"$f":"IF('[9]II.2.Balance OSD-Activos'!S132=\"\",\"\",'[9]II.2.Balance OSD-Activos'!S132)","v":33468.020544088933},28999.80892138644,62887.815977676502,-16.804747190802761,9.8890158576240736,18.412797004658099,10.09090699299675,11.613606875581727,10.85386272250668,-0.2610590749526196,{"$f":"IF('[1]MONE(M)CAPARD'!GS274=\"\",\"\",'[1]MONE(M)CAPARD'!GS274)","v":14363.588908225907},{"$f":"IF('[1]MONE(M)CARD'!HA274=\"\",\"\",'[1]MONE(M)CAPARD'!HA274)","v":7413.142383950064},{"$f":"IF('[1]MONE(M)CAPARD'!HB274=\"\",\"\",'[1]MONE(M)CAPARD'!HB274)","v":6950.4465242758433},"n.d.",{"$f":"IF('[10]II.2.Balance OSD-Activos'!J132=\"\",\"\",'[10]II.2.Balance OSD-Activos'!J132)","v":315.78725303956992},{"$f":"IF('[10]II.2.Balance OSD-Activos'!N132=\"\",\"\",'[10]II.2.Balance OSD-Activos'!N132)","v":748.71522665112593},{"$f":"IF('[10]II.2.Balance OSD-Activos'!R132=\"\",\"\",'[10]II.2.Balance OSD-Activos'!R132)","v":42792.974953296871},{"$f":"IF('[10]II.2.Balance OSD-Activos'!S132=\"\",\"\",'[10]II.2.Balance OSD-Activos'!S132)","v":44796.02602183893},43108.76220633644,88653.503454826496,-53.072976141958293,11.905135166341662,30.48332488560499,13.060386970336268,11.335528282833952,11.750618710790416,-0.89528219159704747,{"$f":"IF('[1]MONE(M)CAPARD'!AS274=\"\",\"\",'[1]MONE(M)CAPARD'!AS274)","v":5},{"$f":"IF('[1]MONE(M)CAPARD'!AT274=\"\",\"\",'[1]MONE(M)CAPARD'!AT274)","v":"n.a."},{"$f":"IF('[1]MONE(M)CAPARD'!AU274=\"\",\"\",'[1]MONE(M)CAPARD'!AU274)","v":5.5},{"$f":"IF('[1]MONE(M)CAPARD'!AV274=\"\",\"\",'[1]MONE(M)CAPARD'!AV274)","v":6},{"$f":"IF('[1]MONE(M)CAPARD'!AW274=\"\",\"\",'[1]MONE(M)CAPARD'!AW274)","v":"n.a."},{"$f":"IF('[1]MONE(M)CAPARD'!AX274=\"\",\"\",'[1]MONE(M)CAPARD'!AX274)","v":6.75},{"$f":"IF('[1]MONE(M)CAPARD'!AY274=\"\",\"\",'[1]MONE(M)CAPARD'!AY274)","v":"n.a."},{"$f":"IF('[1]FISCAL(M)'!$K274=\"\",\"\",'[1]FISCAL(M)'!$K274)","v":-389.96458922035981},{"$f":"IF('[1]FISCAL(M)'!$L274=\"\",\"\",'[1]FISCAL(M)'!$L274)","v":-246.95935018035971},{"$f":"IF('[1]FISCAL(M)'!$AY274=\"\",\"\",'[1]FISCAL(M)'!$AY274)","v":75515.897790758841},{"$f":"IF('[1]FISCAL(M)'!$BI274=\"\",\"\",'[1]FISCAL(M)'!$BI274)","v":38835.287678670749},{"$f":"IF('[1]FISCAL(M)'!$BS274=\"\",\"\",'[1]FISCAL(M)'!$BS274)","v":36680.610112088085},{"$f":"IF('[1]FISCAL(M)'!$AZ274=\"\",\"\",'[1]FISCAL(M)'!$AZ274)","v":88789.711514978844},{"$f":"IF('[1]FISCAL(M)'!$BJ274=\"\",\"\",'[1]FISCAL(M)'!$BJ274)","v":41183.168811150746},{"$f":"IF('[1]FISCAL(M)'!$BT274=\"\",\"\",'[1]FISCAL(M)'!$BT274)","v":47606.54270382809},{"$f":"IF('[2]MONE(M)'!$AO274=\"\",\"\",'[2]MONE(M)'!$AO274)","v":10566586.289198976},{"$f":"IF('[3]MONE(M)'!$AO274=\"\",\"\",'[3]MONE(M)'!$AO274)","v":9129.57861031012},{"$f":"IF('[4]MONE(M)'!$AO274=\"\",\"\",'[4]MONE(M)'!$AO274)","v":94331.451925249363},{"$f":"+'[5]MONE(M)'!$AO274","v":161380.607047328},{"$f":"IF('[6]MONE(M)'!$AO274=\"\",\"\",'[6]MONE(M)'!$AO274)","v":53468.668771855933},{"$f":"IF('[7]MONE(M)'!$AO274=\"\",\"\",'[7]MONE(M)'!$AO274)","v":491725.65763840993},{"$f":"IF('[8]MONE(M)'!$AO274=\"\",\"\",'[8]MONE(M)'!$AO274)","v":25927.470311749992},14.173766041645086,5.0481650781197152,10.637370396312651,11.062361108234553,17.660522635394017,13.253731988072248,12.955649532005697,{"$f":"IF('[1]FISCAL(M)'!$K274=\"\",\"\",'[1]FISCAL(M)'!$K274)","v":-389.96458922035981},{"$f":"+'[1]REAL(A)'!$AO$32","v":208321.52269328738},-0.18719361503252177,{"$f":"IF('[1]FISCAL(M)'!$L274=\"\",\"\",'[1]FISCAL(M)'!$L274)","v":-246.95935018035971},{"$f":"+'[1]REAL(A)'!$AP$32","v":248751.25969328737},-9.9279638014642776E-2,89836.385130355033,{"$f":"'[1]Gráfico REM'!BG268","v":19525.042475377821},{"$f":"'[1]Gráfico REM'!BH268","v":65629.840313827881},{"$f":"'[1]Gráfico REM'!BI268","v":4681.5023411493257},8.6326879096993991,7.5179874316546158,10.612704070504053,-10.050381130282327,134892.20052427502,{"$f":"'[1]Gráfico REM'!BK268","v":20936.450108277822},{"$f":"'[1]Gráfico REM'!BL268","v":91557.310625577869},{"$f":"'[1]Gráfico REM'!BM268","v":22398.439790419325},10.867752735313996,9.3085521474533195,11.266263135687261,10.723016994385336]
[2012,"febrero","2012-febrero",{"$f":"IF('[1]REAL IPC(M)'!$AL275=\"\",\"\",+'[1]REAL IPC(M)'!$AL275)","v":5.4920071094036516},{"$f":"IF('[1]REAL IPC(M)'!$BE275=\"\",\"\",+'[1]REAL IPC(M)'!$BE275)","v":4.8923219990642863},{"$f":"IF('[1]REAL IPC(M)'!$AM275=\"\",\"\",+'[1]REAL IPC(M)'!$AM275)","v":5.5919740747047308},{"$f":"IF('[1]REAL IPC(M)'!$BI275=\"\",\"\",+'[1]REAL IPC(M)'!$BI275)","v":4.9483898913436297},{"$f":"IF('[1]REAL IMAE(M)'!BJ275=\"\",\"\",'[1]REAL IMAE(M)'!BJ275)","v":3.6364958799014913},{"$f":"IF('[1]REAL IMAE(M)'!BK275=\"\",\"\",'[1]REAL IMAE(M)'!BK275)","v":3.8757186844255553},{"$f":"IF('[1]REAL IMAE(M)'!BN275=\"\",\"\",'[1]REAL IMAE(M)'!BN275)","v":5.4015634046164829},{"$f":"IF('[1]REAL IMAE(M)'!BO275=\"\",\"\",'[1]REAL IMAE(M)'!BO275)","v":4.5510462750817826},{"$f":"IF('[1]EXT RIN(M)'!$K275=\"\",\"\",'[1]EXT RIN(M)'!$K275)","v":21044.031879338752},"",{"$f":"IF('[1]EXT RIN(M)'!$L275=\"\",\"\",'[1]EXT RIN(M)'!$L275)","v":23052.555008918753},"",{"$f":"IF('[1]MONE(M)CARD'!EG275=\"\",\"\",'[1]MONE(M)CARD'!EG275)","v":24177.233781961309},{"$f":"IF('[1]MONE(M)CARD'!EK275=\"\",\"\",'[1]MONE(M)CARD'!EK275)","v":38742.560288423098},{"$f":"IF('[1]MONE(M)CARD'!EP275=\"\",\"\",'[1]MONE(M)CARD'!EP275)","v":21917.8569465201},{"$f":"IF('[1]MONE(M)CARD'!ES275=\"\",\"\",'[1]MONE(M)CARD'!ES275)","v":8.4408417673554439},{"$f":"IF('[1]MONE(M)CARD'!EV275=\"\",\"\",'[1]MONE(M)CARD'!EV275)","v":8.0076756250730519},{"$f":"IF('[1]MONE(M)CARD'!EZ275=\"\",\"\",'[1]MONE(M)CARD'!EZ275)","v":6.7884903054015844},{"$f":"IF('[1]MONE(M)CAPARD'!FC275=\"\",\"\",'[1]MONE(M)CAPARD'!FC275)","v":30441.571815601317},{"$f":"IF('[1]MONE(M)CAPARD'!FG275=\"\",\"\",'[1]MONE(M)CAPARD'!FG275)","v":59182.021924513101},{"$f":"IF('[1]MONE(M)CAPARD'!FL275=\"\",\"\",'[1]MONE(M)CAPARD'!FL275)","v":21917.8569465201},{"$f":"IF('[1]MONE(M)CAPARD'!FO275=\"\",\"\",'[1]MONE(M)CAPARD'!FO275)","v":10.20673641873724},{"$f":"IF('[1]MONE(M)CAPARD'!FR275=\"\",\"\",'[1]MONE(M)CAPARD'!FR275)","v":8.4900909004318024},{"$f":"IF('[1]MONE(M)CAPARD'!FV275=\"\",\"\",'[1]MONE(M)CAPARD'!FV275)","v":7.4584888469262589},{"$f":"IF('[1]MONE(M)CARD'!FV275=\"\",\"\",'[1]MONE(M)CARD'!FV275)","v":2969.6354455151295},{"$f":"IF('[1]MONE(M)CARD'!GD275=\"\",\"\",'[1]MONE(M)CARD'!GD275)","v":81.436145427241371},{"$f":"IF('[1]MONE(M)CARD'!GE275=\"\",\"\",'[1]MONE(M)CARD'!GE275)","v":6520.7629578807173},8.1930557502717818,{"$f":"IF('[9]II.2.Balance OSD-Activos'!J133=\"\",\"\",'[9]II.2.Balance OSD-Activos'!J133)","v":161.69908555404578},{"$f":"IF('[9]II.2.Balance OSD-Activos'!N133=\"\",\"\",'[9]II.2.Balance OSD-Activos'!N133)","v":426.09776703501831},{"$f":"IF('[9]II.2.Balance OSD-Activos'!R133=\"\",\"\",'[9]II.2.Balance OSD-Activos'!R133)","v":29178.879245381788},{"$f":"IF('[9]II.2.Balance OSD-Activos'!S133=\"\",\"\",'[9]II.2.Balance OSD-Activos'!S133)","v":33686.887520950389},29340.578330935834,63453.563618921238,-14.596112938497674,10.924242417137364,16.619591040875825,11.108232440976785,11.369469268522071,11.196708906923636,0.34284618441695613,{"$f":"IF('[1]MONE(M)CAPARD'!GS275=\"\",\"\",'[1]MONE(M)CAPARD'!GS275)","v":14299.107528500381},{"$f":"IF('[1]MONE(M)CARD'!HA275=\"\",\"\",'[1]MONE(M)CAPARD'!HA275)","v":7138.2641396207182},{"$f":"IF('[1]MONE(M)CAPARD'!HB275=\"\",\"\",'[1]MONE(M)CAPARD'!HB275)","v":7160.8433888796626},"n.d.",{"$f":"IF('[10]II.2.Balance OSD-Activos'!J133=\"\",\"\",'[10]II.2.Balance OSD-Activos'!J133)","v":314.8243512240457},{"$f":"IF('[10]II.2.Balance OSD-Activos'!N133=\"\",\"\",'[10]II.2.Balance OSD-Activos'!N133)","v":776.11228065501837},{"$f":"IF('[10]II.2.Balance OSD-Activos'!R133=\"\",\"\",'[10]II.2.Balance OSD-Activos'!R133)","v":43165.247639891786},{"$f":"IF('[10]II.2.Balance OSD-Activos'!S133=\"\",\"\",'[10]II.2.Balance OSD-Activos'!S133)","v":45103.185078250397},43480.07199111583,89359.369350021239,-53.257635671627959,12.468954236754737,{"$f":"IF(OR(AX268=\"\",AX256=\"\"),\"\",((AX268/AX256)-1)*100)","v":31.110532837071613},13.634351902349518,11.110256805794405,11.916395501479183,0.16577679068876705,{"$f":"IF('[1]MONE(M)CAPARD'!AS275=\"\",\"\",'[1]MONE(M)CAPARD'!AS275)","v":5},{"$f":"IF('[1]MONE(M)CAPARD'!AT275=\"\",\"\",'[1]MONE(M)CAPARD'!AT275)","v":"n.a."},{"$f":"IF('[1]MONE(M)CAPARD'!AU275=\"\",\"\",'[1]MONE(M)CAPARD'!AU275)","v":5.5},{"$f":"IF('[1]MONE(M)CAPARD'!AV275=\"\",\"\",'[1]MONE(M)CAPARD'!AV275)","v":6},{"$f":"IF('[1]MONE(M)CAPARD'!AW275=\"\",\"\",'[1]MONE(M)CAPARD'!AW275)","v":"n.a."},{"$f":"IF('[1]MONE(M)CAPARD'!AX275=\"\",\"\",'[1]MONE(M)CAPARD'!AX275)","v":6.75},{"$f":"IF('[1]MONE(M)CAPARD'!AY275=\"\",\"\",'[1]MONE(M)CAPARD'!AY275)","v":"n.a."},{"$f":"IF('[1]FISCAL(M)'!$K275=\"\",\"\",'[1]FISCAL(M)'!$K275)","v":-1012.4117808018012},{"$f":"IF('[1]FISCAL(M)'!$L275=\"\",\"\",'[1]FISCAL(M)'!$L275)","v":-1260.2017297518014},{"$f":"IF('[1]FISCAL(M)'!$AY275=\"\",\"\",'[1]FISCAL(M)'!$AY275)","v":76150.286733413333},{"$f":"IF('[1]FISCAL(M)'!$BI275=\"\",\"\",'[1]FISCAL(M)'!$BI275)","v":39217.669844531083},{"$f":"IF('[1]FISCAL(M)'!$BS275=\"\",\"\",'[1]FISCAL(M)'!$BS275)","v":36932.61688888225},{"$f":"IF('[1]FISCAL(M)'!$AZ275=\"\",\"\",'[1]FISCAL(M)'!$AZ275)","v":89331.29356641334},{"$f":"IF('[1]FISCAL(M)'!$BJ275=\"\",\"\",'[1]FISCAL(M)'!$BJ275)","v":41783.130457851075},{"$f":"IF('[1]FISCAL(M)'!$BT275=\"\",\"\",'[1]FISCAL(M)'!$BT275)","v":47548.16310856225},{"$f":"IF('[2]MONE(M)'!$AO275=\"\",\"\",'[2]MONE(M)'!$AO275)","v":10793595.924677394},{"$f":"IF('[3]MONE(M)'!$AO275=\"\",\"\",'[3]MONE(M)'!$AO275)","v":9006.949021980121},{"$f":"IF('[4]MONE(M)'!$AO275=\"\",\"\",'[4]MONE(M)'!$AO275)","v":96938.990957904229},{"$f":"+'[5]MONE(M)'!$AO275","v":163002.0813322328},{"$f":"IF('[6]MONE(M)'!$AO275=\"\",\"\",'[6]MONE(M)'!$AO275)","v":54435.216739101204},{"$f":"IF('[7]MONE(M)'!$AO275=\"\",\"\",'[7]MONE(M)'!$AO275)","v":491887.27948678005},{"$f":"IF('[8]MONE(M)'!$AO275=\"\",\"\",'[8]MONE(M)'!$AO275)","v":26061.706378050003},15.566298696552462,3.5877731539462721,12.715636419225396,11.942699378676714,21.597833032270831,13.059626560899829,12.700918936018812,{"$f":"IF('[1]FISCAL(M)'!$K275=\"\",\"\",'[1]FISCAL(M)'!$K275)","v":-1012.4117808018012},{"$f":"+'[1]REAL(A)'!$AO$32","v":208321.52269328738},-0.48598520580726512,{"$f":"IF('[1]FISCAL(M)'!$L275=\"\",\"\",'[1]FISCAL(M)'!$L275)","v":-1260.2017297518014},{"$f":"+'[1]REAL(A)'!$AP$32","v":248751.25969328737},-0.50661119517772168,91665.093070503019,{"$f":"'[1]Gráfico REM'!BG269","v":20401.010043469909},{"$f":"'[1]Gráfico REM'!BH269","v":66260.029124426001},{"$f":"'[1]Gráfico REM'!BI269","v":5004.0539026071101},9.3000228916733096,6.6875166983328516,10.850298566185002,0.70482425386437786,136593.00438825303,{"$f":"'[1]Gráfico REM'!BK269","v":21765.990743969909},{"$f":"'[1]Gráfico REM'!BL269","v":92321.735502476004},{"$f":"'[1]Gráfico REM'!BM269","v":22505.27814180711},10.871574280146712,8.0345632299930756,11.366528818824717,11.671786832376995]
[2012,"marzo","2012-marzo",{"$f":"IF('[1]REAL IPC(M)'!$AL276=\"\",\"\",+'[1]REAL IPC(M)'!$AL276)","v":4.9539649486434412},{"$f":"IF('[1]REAL IPC(M)'!$BE276=\"\",\"\",+'[1]REAL IPC(M)'!$BE276)","v":4.8464766552163585},{"$f":"IF('[1]REAL IPC(M)'!$AM276=\"\",\"\",+'[1]REAL IPC(M)'!$AM276)","v":5.1069317853171814},{"$f":"IF('[1]REAL IPC(M)'!$BI276=\"\",\"\",+'[1]REAL IPC(M)'!$BI276)","v":4.9046379301718845},{"$f":"IF('[1]REAL IMAE(M)'!BJ276=\"\",\"\",'[1]REAL IMAE(M)'!BJ276)","v":3.4360781294120013},{"$f":"IF('[1]REAL IMAE(M)'!BK276=\"\",\"\",'[1]REAL IMAE(M)'!BK276)","v":3.8816251366990517},{"$f":"IF('[1]REAL IMAE(M)'!BN276=\"\",\"\",'[1]REAL IMAE(M)'!BN276)","v":5.0357394603985473},{"$f":"IF('[1]REAL IMAE(M)'!BO276=\"\",\"\",'[1]REAL IMAE(M)'!BO276)","v":4.556705006312245},{"$f":"IF('[1]EXT RIN(M)'!$K276=\"\",\"\",'[1]EXT RIN(M)'!$K276)","v":21387.5321565206},"",{"$f":"IF('[1]EXT RIN(M)'!$L276=\"\",\"\",'[1]EXT RIN(M)'!$L276)","v":23099.7055171106},"",{"$f":"IF('[1]MONE(M)CARD'!EG276=\"\",\"\",'[1]MONE(M)CARD'!EG276)","v":24165.015912768788},{"$f":"IF('[1]MONE(M)CARD'!EK276=\"\",\"\",'[1]MONE(M)CARD'!EK276)","v":39586.595289779012},{"$f":"IF('[1]MONE(M)CARD'!EP276=\"\",\"\",'[1]MONE(M)CARD'!EP276)","v":22446.365347361418},{"$f":"IF('[1]MONE(M)CARD'!ES276=\"\",\"\",'[1]MONE(M)CARD'!ES276)","v":5.3060577185948476},{"$f":"IF('[1]MONE(M)CARD'!EV276=\"\",\"\",'[1]MONE(M)CARD'!EV276)","v":7.2582253602317959},{"$f":"IF('[1]MONE(M)CARD'!EZ276=\"\",\"\",'[1]MONE(M)CARD'!EZ276)","v":6.4536371431763939},{"$f":"IF('[1]MONE(M)CAPARD'!FC276=\"\",\"\",'[1]MONE(M)CAPARD'!FC276)","v":30562.290822768788},{"$f":"IF('[1]MONE(M)CAPARD'!FG276=\"\",\"\",'[1]MONE(M)CAPARD'!FG276)","v":60174.640304339016},{"$f":"IF('[1]MONE(M)CAPARD'!FL276=\"\",\"\",'[1]MONE(M)CAPARD'!FL276)","v":22446.365347361425},{"$f":"IF('[1]MONE(M)CAPARD'!FO276=\"\",\"\",'[1]MONE(M)CAPARD'!FO276)","v":7.51425042125482},{"$f":"IF('[1]MONE(M)CAPARD'!FR276=\"\",\"\",'[1]MONE(M)CAPARD'!FR276)","v":7.9121511392485244},{"$f":"IF('[1]MONE(M)CAPARD'!FV276=\"\",\"\",'[1]MONE(M)CAPARD'!FV276)","v":7.1619866086033657},{"$f":"IF('[1]MONE(M)CARD'!FV276=\"\",\"\",'[1]MONE(M)CARD'!FV276)","v":2880.258260996743},{"$f":"IF('[1]MONE(M)CARD'!GD276=\"\",\"\",'[1]MONE(M)CARD'!GD276)","v":89.163683422161839},{"$f":"IF('[1]MONE(M)CARD'!GE276=\"\",\"\",'[1]MONE(M)CARD'!GE276)","v":6629.8426606262183},16.191702632704175,{"$f":"IF('[9]II.2.Balance OSD-Activos'!J134=\"\",\"\",'[9]II.2.Balance OSD-Activos'!J134)","v":163.87190451169542},{"$f":"IF('[9]II.2.Balance OSD-Activos'!N134=\"\",\"\",'[9]II.2.Balance OSD-Activos'!N134)","v":429.63994271102621},{"$f":"IF('[9]II.2.Balance OSD-Activos'!R134=\"\",\"\",'[9]II.2.Balance OSD-Activos'!R134)","v":29583.086137947379},{"$f":"IF('[9]II.2.Balance OSD-Activos'!S134=\"\",\"\",'[9]II.2.Balance OSD-Activos'!S134)","v":34001.209236227209},29746.958042459075,64177.807221397306,-12.676748025337737,11.24421016459074,11.850488109060464,11.413272406844644,11.589397032546088,11.430872846934669,0.23416394001103313,{"$f":"IF('[1]MONE(M)CAPARD'!GS276=\"\",\"\",'[1]MONE(M)CAPARD'!GS276)","v":14199.200447507092},{"$f":"IF('[1]MONE(M)CARD'!HA276=\"\",\"\",'[1]MONE(M)CAPARD'!HA276)","v":7275.8451131362181},{"$f":"IF('[1]MONE(M)CAPARD'!HB276=\"\",\"\",'[1]MONE(M)CAPARD'!HB276)","v":6923.3553343708736},"n.d.",{"$f":"IF('[10]II.2.Balance OSD-Activos'!J134=\"\",\"\",'[10]II.2.Balance OSD-Activos'!J134)","v":317.57055357169548},{"$f":"IF('[10]II.2.Balance OSD-Activos'!N134=\"\",\"\",'[10]II.2.Balance OSD-Activos'!N134)","v":783.25867993102611},{"$f":"IF('[10]II.2.Balance OSD-Activos'!R134=\"\",\"\",'[10]II.2.Balance OSD-Activos'!R134)","v":43709.099610157376},{"$f":"IF('[10]II.2.Balance OSD-Activos'!S134=\"\",\"\",'[10]II.2.Balance OSD-Activos'!S134)","v":45517.787015517206},44026.670163729075,90327.715859177304,-53.012929382918131,12.163622519740724,25.030270085841444,13.305534157674304,11.394200700296619,11.874057212710376,-4.2338288768807075E-2,{"$f":"IF('[1]MONE(M)CAPARD'!AS276=\"\",\"\",'[1]MONE(M)CAPARD'!AS276)","v":5},{"$f":"IF('[1]MONE(M)CAPARD'!AT276=\"\",\"\",'[1]MONE(M)CAPARD'!AT276)","v":"n.a."},{"$f":"IF('[1]MONE(M)CAPARD'!AU276=\"\",\"\",'[1]MONE(M)CAPARD'!AU276)","v":5.5},{"$f":"IF('[1]MONE(M)CAPARD'!AV276=\"\",\"\",'[1]MONE(M)CAPARD'!AV276)","v":6},{"$f":"IF('[1]MONE(M)CAPARD'!AW276=\"\",\"\",'[1]MONE(M)CAPARD'!AW276)","v":"n.a."},{"$f":"IF('[1]MONE(M)CAPARD'!AX276=\"\",\"\",'[1]MONE(M)CAPARD'!AX276)","v":6.75},{"$f":"IF('[1]MONE(M)CAPARD'!AY276=\"\",\"\",'[1]MONE(M)CAPARD'!AY276)","v":"n.a."},{"$f":"IF('[1]FISCAL(M)'!$K276=\"\",\"\",'[1]FISCAL(M)'!$K276)","v":-1753.370993023932},{"$f":"IF('[1]FISCAL(M)'!$L276=\"\",\"\",'[1]FISCAL(M)'!$L276)","v":-1864.438245653932},{"$f":"IF('[1]FISCAL(M)'!$AY276=\"\",\"\",'[1]FISCAL(M)'!$AY276)","v":77331.722535409586},{"$f":"IF('[1]FISCAL(M)'!$BI276=\"\",\"\",'[1]FISCAL(M)'!$BI276)","v":39918.784951160545},{"$f":"IF('[1]FISCAL(M)'!$BS276=\"\",\"\",'[1]FISCAL(M)'!$BS276)","v":37412.937584249041},{"$f":"IF('[1]FISCAL(M)'!$AZ276=\"\",\"\",'[1]FISCAL(M)'!$AZ276)","v":91040.659236139589},{"$f":"IF('[1]FISCAL(M)'!$BJ276=\"\",\"\",'[1]FISCAL(M)'!$BJ276)","v":42793.577723850547},{"$f":"IF('[1]FISCAL(M)'!$BT276=\"\",\"\",'[1]FISCAL(M)'!$BT276)","v":48247.081512289034},{"$f":"IF('[2]MONE(M)'!$AO276=\"\",\"\",'[2]MONE(M)'!$AO276)","v":10854507.987424146},{"$f":"IF('[3]MONE(M)'!$AO276=\"\",\"\",'[3]MONE(M)'!$AO276)","v":9006.3950107501223},{"$f":"IF('[4]MONE(M)'!$AO276=\"\",\"\",'[4]MONE(M)'!$AO276)","v":98760.431064171222},{"$f":"+'[5]MONE(M)'!$AO276","v":164888.89290970651},{"$f":"IF('[6]MONE(M)'!$AO276=\"\",\"\",'[6]MONE(M)'!$AO276)","v":54132.969262592815},{"$f":"IF('[7]MONE(M)'!$AO276=\"\",\"\",'[7]MONE(M)'!$AO276)","v":491994.46645476995},{"$f":"IF('[8]MONE(M)'!$AO276=\"\",\"\",'[8]MONE(M)'!$AO276)","v":26238.33522959},14.179958530408964,3.5172612133246295,14.809406924471169,12.928872439948336,21.900516367140121,11.495022723145087,11.176262533197523,{"$f":"IF('[1]FISCAL(M)'!$K276=\"\",\"\",'[1]FISCAL(M)'!$K276)","v":-1753.370993023932},{"$f":"+'[1]REAL(A)'!$AO$32","v":208321.52269328738},-0.84166579158766375,{"$f":"IF('[1]FISCAL(M)'!$L276=\"\",\"\",'[1]FISCAL(M)'!$L276)","v":-1864.438245653932},{"$f":"+'[1]REAL(A)'!$AP$32","v":248751.25969328737},-0.74951911719072362,92808.590490792238,{"$f":"'[1]Gráfico REM'!BG270","v":20715.132273476953},{"$f":"'[1]Gráfico REM'!BH270","v":66935.321590130043},{"$f":"'[1]Gráfico REM'!BI270","v":5158.1366271852394},8.9731736615713089,5.9559675584470284,10.707664269591488,7.1879297144139542E-2,138488.60713239224,{"$f":"'[1]Gráfico REM'!BK270","v":21909.040328286952},{"$f":"'[1]Gráfico REM'!BL270","v":93173.656819720039},{"$f":"'[1]Gráfico REM'!BM270","v":23405.909984385235},10.521015152873158,6.5903161664108367,10.839224680079763,13.133249126511481]
[2012,"abril","2012-abril",{"$f":"IF('[1]REAL IPC(M)'!$AL277=\"\",\"\",+'[1]REAL IPC(M)'!$AL277)","v":4.4331874273723981},{"$f":"IF('[1]REAL IPC(M)'!$BE277=\"\",\"\",+'[1]REAL IPC(M)'!$BE277)","v":4.7982788071315285},{"$f":"IF('[1]REAL IPC(M)'!$AM277=\"\",\"\",+'[1]REAL IPC(M)'!$AM277)","v":4.6033493781902468},{"$f":"IF('[1]REAL IPC(M)'!$BI277=\"\",\"\",+'[1]REAL IPC(M)'!$BI277)","v":4.8577409206306266},{"$f":"IF('[1]REAL IMAE(M)'!BJ277=\"\",\"\",'[1]REAL IMAE(M)'!BJ277)","v":2.9972618815658603},{"$f":"IF('[1]REAL IMAE(M)'!BK277=\"\",\"\",'[1]REAL IMAE(M)'!BK277)","v":3.887391192839007},{"$f":"IF('[1]REAL IMAE(M)'!BN277=\"\",\"\",'[1]REAL IMAE(M)'!BN277)","v":3.9243690452837043},{"$f":"IF('[1]REAL IMAE(M)'!BO277=\"\",\"\",'[1]REAL IMAE(M)'!BO277)","v":4.5601495674844506},{"$f":"IF('[1]EXT RIN(M)'!$K277=\"\",\"\",'[1]EXT RIN(M)'!$K277)","v":21470.533112334517},"",{"$f":"IF('[1]EXT RIN(M)'!$L277=\"\",\"\",'[1]EXT RIN(M)'!$L277)","v":23490.033180274517},"",{"$f":"IF('[1]MONE(M)CARD'!EG277=\"\",\"\",'[1]MONE(M)CARD'!EG277)","v":23977.564581016988},{"$f":"IF('[1]MONE(M)CARD'!EK277=\"\",\"\",'[1]MONE(M)CARD'!EK277)","v":39778.806156892468},{"$f":"IF('[1]MONE(M)CARD'!EP277=\"\",\"\",'[1]MONE(M)CARD'!EP277)","v":22284.511903605031},{"$f":"IF('[1]MONE(M)CARD'!ES277=\"\",\"\",'[1]MONE(M)CARD'!ES277)","v":3.4453865116765847},{"$f":"IF('[1]MONE(M)CARD'!EV277=\"\",\"\",'[1]MONE(M)CARD'!EV277)","v":6.2410075003632048},{"$f":"IF('[1]MONE(M)CARD'!EZ277=\"\",\"\",'[1]MONE(M)CARD'!EZ277)","v":5.2451922724063849},{"$f":"IF('[1]MONE(M)CAPARD'!FC277=\"\",\"\",'[1]MONE(M)CAPARD'!FC277)","v":30370.537731806991},{"$f":"IF('[1]MONE(M)CAPARD'!FG277=\"\",\"\",'[1]MONE(M)CAPARD'!FG277)","v":60561.422151292456},{"$f":"IF('[1]MONE(M)CAPARD'!FL277=\"\",\"\",'[1]MONE(M)CAPARD'!FL277)","v":22284.511903605031},{"$f":"IF('[1]MONE(M)CAPARD'!FO277=\"\",\"\",'[1]MONE(M)CAPARD'!FO277)","v":6.2465888201289621},{"$f":"IF('[1]MONE(M)CAPARD'!FR277=\"\",\"\",'[1]MONE(M)CAPARD'!FR277)","v":7.4107694385619816},{"$f":"IF('[1]MONE(M)CAPARD'!FV277=\"\",\"\",'[1]MONE(M)CAPARD'!FV277)","v":6.4066016662441161},{"$f":"IF('[1]MONE(M)CARD'!FV277=\"\",\"\",'[1]MONE(M)CARD'!FV277)","v":2784.0957102332081},{"$f":"IF('[1]MONE(M)CARD'!GD277=\"\",\"\",'[1]MONE(M)CARD'!GD277)","v":219.22897918570584},{"$f":"IF('[1]MONE(M)CARD'!GE277=\"\",\"\",'[1]MONE(M)CARD'!GE277)","v":6854.0184176462508},19.571660917734658,{"$f":"IF('[9]II.2.Balance OSD-Activos'!J135=\"\",\"\",'[9]II.2.Balance OSD-Activos'!J135)","v":180.6274173249642},{"$f":"IF('[9]II.2.Balance OSD-Activos'!N135=\"\",\"\",'[9]II.2.Balance OSD-Activos'!N135)","v":438.7820977580908},{"$f":"IF('[9]II.2.Balance OSD-Activos'!R135=\"\",\"\",'[9]II.2.Balance OSD-Activos'!R135)","v":29792.65972640166},{"$f":"IF('[9]II.2.Balance OSD-Activos'!S135=\"\",\"\",'[9]II.2.Balance OSD-Activos'!S135)","v":34330.832422534193},29973.287143726626,64742.901664018907,4.4584559353284092,12.284930136969363,5.0742295314327945,12.33595898320714,11.561432127123105,11.848279098116766,0.41740625118209707,{"$f":"IF('[1]MONE(M)CAPARD'!GS277=\"\",\"\",'[1]MONE(M)CAPARD'!GS277)","v":14355.003040570693},{"$f":"IF('[1]MONE(M)CARD'!HA277=\"\",\"\",'[1]MONE(M)CAPARD'!HA277)","v":7521.6839895962503},{"$f":"IF('[1]MONE(M)CAPARD'!HB277=\"\",\"\",'[1]MONE(M)CAPARD'!HB277)","v":6833.3190509744427},"n.d.",{"$f":"IF('[10]II.2.Balance OSD-Activos'!J135=\"\",\"\",'[10]II.2.Balance OSD-Activos'!J135)","v":388.38187478496411},{"$f":"IF('[10]II.2.Balance OSD-Activos'!N135=\"\",\"\",'[10]II.2.Balance OSD-Activos'!N135)","v":802.88705405809083},{"$f":"IF('[10]II.2.Balance OSD-Activos'!R135=\"\",\"\",'[10]II.2.Balance OSD-Activos'!R135)","v":44181.174697561655},{"$f":"IF('[10]II.2.Balance OSD-Activos'!S135=\"\",\"\",'[10]II.2.Balance OSD-Activos'!S135)","v":45941.431852254194},44569.556572346621,91313.875478658912,-42.425106483151723,13.2207050196387,19.145486216333541,14.190885364935246,11.36978093448473,12.330557253479402,0.45650004076902562,{"$f":"IF('[1]MONE(M)CAPARD'!AS277=\"\",\"\",'[1]MONE(M)CAPARD'!AS277)","v":5},{"$f":"IF('[1]MONE(M)CAPARD'!AT277=\"\",\"\",'[1]MONE(M)CAPARD'!AT277)","v":"n.a."},{"$f":"IF('[1]MONE(M)CAPARD'!AU277=\"\",\"\",'[1]MONE(M)CAPARD'!AU277)","v":5.5},{"$f":"IF('[1]MONE(M)CAPARD'!AV277=\"\",\"\",'[1]MONE(M)CAPARD'!AV277)","v":6},{"$f":"IF('[1]MONE(M)CAPARD'!AW277=\"\",\"\",'[1]MONE(M)CAPARD'!AW277)","v":"n.a."},{"$f":"IF('[1]MONE(M)CAPARD'!AX277=\"\",\"\",'[1]MONE(M)CAPARD'!AX277)","v":6.75},{"$f":"IF('[1]MONE(M)CAPARD'!AY277=\"\",\"\",'[1]MONE(M)CAPARD'!AY277)","v":"n.a."},{"$f":"IF('[1]FISCAL(M)'!$K277=\"\",\"\",'[1]FISCAL(M)'!$K277)","v":-1777.695116772242},{"$f":"IF('[1]FISCAL(M)'!$L277=\"\",\"\",'[1]FISCAL(M)'!$L277)","v":-2086.4379789222421},{"$f":"IF('[1]FISCAL(M)'!$AY277=\"\",\"\",'[1]FISCAL(M)'!$AY277)","v":78271.898787446902},{"$f":"IF('[1]FISCAL(M)'!$BI277=\"\",\"\",'[1]FISCAL(M)'!$BI277)","v":40448.812000118589},{"$f":"IF('[1]FISCAL(M)'!$BS277=\"\",\"\",'[1]FISCAL(M)'!$BS277)","v":37823.086787328328},{"$f":"IF('[1]FISCAL(M)'!$AZ277=\"\",\"\",'[1]FISCAL(M)'!$AZ277)","v":91972.482449636911},{"$f":"IF('[1]FISCAL(M)'!$BJ277=\"\",\"\",'[1]FISCAL(M)'!$BJ277)","v":43239.229772008584},{"$f":"IF('[1]FISCAL(M)'!$BT277=\"\",\"\",'[1]FISCAL(M)'!$BT277)","v":48733.252677628334},{"$f":"IF('[2]MONE(M)'!$AO277=\"\",\"\",'[2]MONE(M)'!$AO277)","v":10921605.837871812},{"$f":"IF('[3]MONE(M)'!$AO277=\"\",\"\",'[3]MONE(M)'!$AO277)","v":9104.7054600201227},{"$f":"IF('[4]MONE(M)'!$AO277=\"\",\"\",'[4]MONE(M)'!$AO277)","v":101003.84208953888},{"$f":"+'[5]MONE(M)'!$AO277","v":167361.8997308707},{"$f":"IF('[6]MONE(M)'!$AO277=\"\",\"\",'[6]MONE(M)'!$AO277)","v":54302.630289920009},{"$f":"IF('[7]MONE(M)'!$AO277=\"\",\"\",'[7]MONE(M)'!$AO277)","v":488027.64754164004},{"$f":"IF('[8]MONE(M)'!$AO277=\"\",\"\",'[8]MONE(M)'!$AO277)","v":26777.274802860004},14.403474022616102,3.511745200431915,18.548804053184842,14.760343788421416,22.739708313613495,10.327808254772064,12.236350982984856,{"$f":"IF('[1]FISCAL(M)'!$K277=\"\",\"\",'[1]FISCAL(M)'!$K277)","v":-1777.695116772242},{"$f":"+'[1]REAL(A)'!$AO$32","v":208321.52269328738},-0.8533420329254936,{"$f":"IF('[1]FISCAL(M)'!$L277=\"\",\"\",'[1]FISCAL(M)'!$L277)","v":-2086.4379789222421},{"$f":"+'[1]REAL(A)'!$AP$32","v":248751.25969328737},-0.83876478916924468,93478.600811085169,{"$f":"'[1]Gráfico REM'!BG271","v":20791.989788686955},{"$f":"'[1]Gráfico REM'!BH271","v":67481.427729291128},{"$f":"'[1]Gráfico REM'!BI271","v":5205.1832931070894},8.6680105365790627,3.4732240454863339,11.170481487500883,-0.42234809303994814,139053.65148416517,{"$f":"'[1]Gráfico REM'!BK271","v":22137.691295046956},{"$f":"'[1]Gráfico REM'!BL271","v":94258.702532151132},{"$f":"'[1]Gráfico REM'!BM271","v":22657.257656967093},9.8325119842028297,4.6510156562503013,11.47121244543532,8.4464663641308455]
[2012,"mayo ","2012-mayo ",{"$f":"IF('[1]REAL IPC(M)'!$AL278=\"\",\"\",+'[1]REAL IPC(M)'!$AL278)","v":3.9943449042268098},{"$f":"IF('[1]REAL IPC(M)'!$BE278=\"\",\"\",+'[1]REAL IPC(M)'!$BE278)","v":4.7482033989485917},{"$f":"IF('[1]REAL IPC(M)'!$AM278=\"\",\"\",+'[1]REAL IPC(M)'!$AM278)","v":4.2187120354757246},{"$f":"IF('[1]REAL IPC(M)'!$BI278=\"\",\"\",+'[1]REAL IPC(M)'!$BI278)","v":4.8081928475109503},{"$f":"IF('[1]REAL IMAE(M)'!BJ278=\"\",\"\",'[1]REAL IMAE(M)'!BJ278)","v":3.2450405584024011},{"$f":"IF('[1]REAL IMAE(M)'!BK278=\"\",\"\",'[1]REAL IMAE(M)'!BK278)","v":3.8934101137807708},{"$f":"IF('[1]REAL IMAE(M)'!BN278=\"\",\"\",'[1]REAL IMAE(M)'!BN278)","v":4.1148803735340911},{"$f":"IF('[1]REAL IMAE(M)'!BO278=\"\",\"\",'[1]REAL IMAE(M)'!BO278)","v":4.5618479170524751},{"$f":"IF('[1]EXT RIN(M)'!$K278=\"\",\"\",'[1]EXT RIN(M)'!$K278)","v":21185.559158317894},"",{"$f":"IF('[1]EXT RIN(M)'!$L278=\"\",\"\",'[1]EXT RIN(M)'!$L278)","v":23227.431959187892},"",{"$f":"IF('[1]MONE(M)CARD'!EG278=\"\",\"\",'[1]MONE(M)CARD'!EG278)","v":23567.610315418759},{"$f":"IF('[1]MONE(M)CARD'!EK278=\"\",\"\",'[1]MONE(M)CARD'!EK278)","v":40208.854575063873},{"$f":"IF('[1]MONE(M)CARD'!EP278=\"\",\"\",'[1]MONE(M)CARD'!EP278)","v":22826.998173107},{"$f":"IF('[1]MONE(M)CARD'!ES278=\"\",\"\",'[1]MONE(M)CARD'!ES278)","v":5.4637822226734745},{"$f":"IF('[1]MONE(M)CARD'!EV278=\"\",\"\",'[1]MONE(M)CARD'!EV278)","v":7.7254051378990996},{"$f":"IF('[1]MONE(M)CARD'!EZ278=\"\",\"\",'[1]MONE(M)CARD'!EZ278)","v":7.2652145570577531},{"$f":"IF('[1]MONE(M)CAPARD'!FC278=\"\",\"\",'[1]MONE(M)CAPARD'!FC278)","v":29924.816403978759},{"$f":"IF('[1]MONE(M)CAPARD'!FG278=\"\",\"\",'[1]MONE(M)CAPARD'!FG278)","v":61136.686808153878},{"$f":"IF('[1]MONE(M)CAPARD'!FL278=\"\",\"\",'[1]MONE(M)CAPARD'!FL278)","v":22826.998173107},{"$f":"IF('[1]MONE(M)CAPARD'!FO278=\"\",\"\",'[1]MONE(M)CAPARD'!FO278)","v":8.1784752906393763},{"$f":"IF('[1]MONE(M)CAPARD'!FR278=\"\",\"\",'[1]MONE(M)CAPARD'!FR278)","v":9.1642652070474497},{"$f":"IF('[1]MONE(M)CAPARD'!FV278=\"\",\"\",'[1]MONE(M)CAPARD'!FV278)","v":8.5150110584286232},{"$f":"IF('[1]MONE(M)CARD'!FV278=\"\",\"\",'[1]MONE(M)CARD'!FV278)","v":2682.031236609706},{"$f":"IF('[1]MONE(M)CARD'!GD278=\"\",\"\",'[1]MONE(M)CARD'!GD278)","v":68.990501084856191},{"$f":"IF('[1]MONE(M)CARD'!GE278=\"\",\"\",'[1]MONE(M)CARD'!GE278)","v":6432.2294230407551},1.98849610172529,{"$f":"IF('[9]II.2.Balance OSD-Activos'!J136=\"\",\"\",'[9]II.2.Balance OSD-Activos'!J136)","v":173.82934350763509},{"$f":"IF('[9]II.2.Balance OSD-Activos'!N136=\"\",\"\",'[9]II.2.Balance OSD-Activos'!N136)","v":438.52207432611982},{"$f":"IF('[9]II.2.Balance OSD-Activos'!R136=\"\",\"\",'[9]II.2.Balance OSD-Activos'!R136)","v":29932.128589809792},{"$f":"IF('[9]II.2.Balance OSD-Activos'!S136=\"\",\"\",'[9]II.2.Balance OSD-Activos'!S136)","v":34705.194975371393},30105.957933317426,65249.674983014935,29.6223044112492,12.958540004046259,7.0523092086080652,12.874269843645436,12.327204368702226,12.580243267290459,0.73196416917369334,{"$f":"IF('[1]MONE(M)CAPARD'!GS278=\"\",\"\",'[1]MONE(M)CAPARD'!GS278)","v":14441.128551665835},{"$f":"IF('[1]MONE(M)CARD'!HA278=\"\",\"\",'[1]MONE(M)CAPARD'!HA278)","v":7099.0310964407545},{"$f":"IF('[1]MONE(M)CAPARD'!HB278=\"\",\"\",'[1]MONE(M)CAPARD'!HB278)","v":7342.0974552250809},"n.d.",{"$f":"IF('[10]II.2.Balance OSD-Activos'!J136=\"\",\"\",'[10]II.2.Balance OSD-Activos'!J136)","v":841.49404452763508},{"$f":"IF('[10]II.2.Balance OSD-Activos'!N136=\"\",\"\",'[10]II.2.Balance OSD-Activos'!N136)","v":832.32648149611987},{"$f":"IF('[10]II.2.Balance OSD-Activos'!R136=\"\",\"\",'[10]II.2.Balance OSD-Activos'!R136)","v":44584.009246789785},{"$f":"IF('[10]II.2.Balance OSD-Activos'!S136=\"\",\"\",'[10]II.2.Balance OSD-Activos'!S136)","v":46457.533195481388},45425.503291317422,92715.362968294925,13.842977755614871,17.063035361617551,26.293131525907711,17.125564294503537,13.634051625221399,15.393950030990244,3.0633927775108418,{"$f":"IF('[1]MONE(M)CAPARD'!AS278=\"\",\"\",'[1]MONE(M)CAPARD'!AS278)","v":5},{"$f":"IF('[1]MONE(M)CAPARD'!AT278=\"\",\"\",'[1]MONE(M)CAPARD'!AT278)","v":"n.a."},{"$f":"IF('[1]MONE(M)CAPARD'!AU278=\"\",\"\",'[1]MONE(M)CAPARD'!AU278)","v":5.5},{"$f":"IF('[1]MONE(M)CAPARD'!AV278=\"\",\"\",'[1]MONE(M)CAPARD'!AV278)","v":7},{"$f":"IF('[1]MONE(M)CAPARD'!AW278=\"\",\"\",'[1]MONE(M)CAPARD'!AW278)","v":"n.a."},{"$f":"IF('[1]MONE(M)CAPARD'!AX278=\"\",\"\",'[1]MONE(M)CAPARD'!AX278)","v":6.75},{"$f":"IF('[1]MONE(M)CAPARD'!AY278=\"\",\"\",'[1]MONE(M)CAPARD'!AY278)","v":"n.a."},{"$f":"IF('[1]FISCAL(M)'!$K278=\"\",\"\",'[1]FISCAL(M)'!$K278)","v":-2421.5608779039667},{"$f":"IF('[1]FISCAL(M)'!$L278=\"\",\"\",'[1]FISCAL(M)'!$L278)","v":-2678.8597319039673},{"$f":"IF('[1]FISCAL(M)'!$AY278=\"\",\"\",'[1]FISCAL(M)'!$AY278)","v":78615.390751259532},{"$f":"IF('[1]FISCAL(M)'!$BI278=\"\",\"\",'[1]FISCAL(M)'!$BI278)","v":40472.121861587249},{"$f":"IF('[1]FISCAL(M)'!$BS278=\"\",\"\",'[1]FISCAL(M)'!$BS278)","v":38143.268889672283},{"$f":"IF('[1]FISCAL(M)'!$AZ278=\"\",\"\",'[1]FISCAL(M)'!$AZ278)","v":92544.922476549546},{"$f":"IF('[1]FISCAL(M)'!$BJ278=\"\",\"\",'[1]FISCAL(M)'!$BJ278)","v":43385.859029097242},{"$f":"IF('[1]FISCAL(M)'!$BT278=\"\",\"\",'[1]FISCAL(M)'!$BT278)","v":49159.063447452281},{"$f":"IF('[2]MONE(M)'!$AO278=\"\",\"\",'[2]MONE(M)'!$AO278)","v":11026360.641836453},{"$f":"IF('[3]MONE(M)'!$AO278=\"\",\"\",'[3]MONE(M)'!$AO278)","v":9080.1022871201203},{"$f":"IF('[4]MONE(M)'!$AO278=\"\",\"\",'[4]MONE(M)'!$AO278)","v":103053.9520652823},{"$f":"+'[5]MONE(M)'!$AO278","v":169139.0547785059},{"$f":"IF('[6]MONE(M)'!$AO278=\"\",\"\",'[6]MONE(M)'!$AO278)","v":55738.95479518269},{"$f":"IF('[7]MONE(M)'!$AO278=\"\",\"\",'[7]MONE(M)'!$AO278)","v":487152.81905006},{"$f":"IF('[8]MONE(M)'!$AO278=\"\",\"\",'[8]MONE(M)'!$AO278)","v":27802.603829249994},13.662202182965434,3.477026089669133,18.574452561475873,15.469787368446974,25.502765266920413,9.0826943553058204,21.792552773050232,{"$f":"IF('[1]FISCAL(M)'!$K278=\"\",\"\",'[1]FISCAL(M)'!$K278)","v":-2421.5608779039667},{"$f":"+'[1]REAL(A)'!$AO$32","v":208321.52269328738},-1.1624151199534196,{"$f":"IF('[1]FISCAL(M)'!$L278=\"\",\"\",'[1]FISCAL(M)'!$L278)","v":-2678.8597319039673},{"$f":"+'[1]REAL(A)'!$AP$32","v":248751.25969328737},-1.0769230817994757,93617.418646691396,{"$f":"'[1]Gráfico REM'!BG272","v":20326.046693442258},{"$f":"'[1]Gráfico REM'!BH272","v":68050.117674004287},{"$f":"'[1]Gráfico REM'!BI272","v":5241.2542792448494},{"$f":"+((CS271/CS259)-1)*100","v":8.9331017433199165},1.5671033865581885,11.857477872963473,2.9431787930307873,141236.17719365141,{"$f":"'[1]Gráfico REM'!BK272","v":21803.57261518226},{"$f":"'[1]Gráfico REM'!BL272","v":95852.721503254288},{"$f":"'[1]Gráfico REM'!BM272","v":23579.883075214857},{"$f":"+((DA271/DA259)-1)*100","v":12.490491327343744},3.8610688791829606,14.568267282708369,12.840882626997896]
[2012,"junio ","2012-junio ",{"$f":"IF('[1]REAL IPC(M)'!$AL279=\"\",\"\",+'[1]REAL IPC(M)'!$AL279)","v":3.3885322584673583},{"$f":"IF('[1]REAL IPC(M)'!$BE279=\"\",\"\",+'[1]REAL IPC(M)'!$BE279)","v":4.6966957246016738},{"$f":"IF('[1]REAL IPC(M)'!$AM279=\"\",\"\",+'[1]REAL IPC(M)'!$AM279)","v":3.6541835839643877},{"$f":"IF('[1]REAL IPC(M)'!$BI279=\"\",\"\",+'[1]REAL IPC(M)'!$BI279)","v":4.7564624069926564},{"$f":"IF('[1]REAL IMAE(M)'!BJ279=\"\",\"\",'[1]REAL IMAE(M)'!BJ279)","v":3.5885018749800324},{"$f":"IF('[1]REAL IMAE(M)'!BK279=\"\",\"\",'[1]REAL IMAE(M)'!BK279)","v":3.9000184148176631},{"$f":"IF('[1]REAL IMAE(M)'!BN279=\"\",\"\",'[1]REAL IMAE(M)'!BN279)","v":4.7742230287584286},{"$f":"IF('[1]REAL IMAE(M)'!BO279=\"\",\"\",'[1]REAL IMAE(M)'!BO279)","v":4.5622172360683111},{"$f":"IF('[1]EXT RIN(M)'!$K279=\"\",\"\",'[1]EXT RIN(M)'!$K279)","v":21975.220232061871},"",{"$f":"IF('[1]EXT RIN(M)'!$L279=\"\",\"\",'[1]EXT RIN(M)'!$L279)","v":24184.68649118187},"",{"$f":"IF('[1]MONE(M)CARD'!EG279=\"\",\"\",'[1]MONE(M)CARD'!EG279)","v":23824.084273255059},{"$f":"IF('[1]MONE(M)CARD'!EK279=\"\",\"\",'[1]MONE(M)CARD'!EK279)","v":40691.669980582221},{"$f":"IF('[1]MONE(M)CARD'!EP279=\"\",\"\",'[1]MONE(M)CARD'!EP279)","v":22640.544608263735},{"$f":"IF('[1]MONE(M)CARD'!ES279=\"\",\"\",'[1]MONE(M)CARD'!ES279)","v":6.4080322600883921},{"$f":"IF('[1]MONE(M)CARD'!EV279=\"\",\"\",'[1]MONE(M)CARD'!EV279)","v":9.0707445570612499},{"$f":"IF('[1]MONE(M)CARD'!EZ279=\"\",\"\",'[1]MONE(M)CARD'!EZ279)","v":8.1259695932856637},{"$f":"IF('[1]MONE(M)CAPARD'!FC279=\"\",\"\",'[1]MONE(M)CAPARD'!FC279)","v":30298.149433235063},{"$f":"IF('[1]MONE(M)CAPARD'!FG279=\"\",\"\",'[1]MONE(M)CAPARD'!FG279)","v":61862.774120912225},{"$f":"IF('[1]MONE(M)CAPARD'!FL279=\"\",\"\",'[1]MONE(M)CAPARD'!FL279)","v":22640.544608263735},{"$f":"IF('[1]MONE(M)CAPARD'!FO279=\"\",\"\",'[1]MONE(M)CAPARD'!FO279)","v":8.9735705950356746},{"$f":"IF('[1]MONE(M)CAPARD'!FR279=\"\",\"\",'[1]MONE(M)CAPARD'!FR279)","v":9.6194477327662842},{"$f":"IF('[1]MONE(M)CAPARD'!FV279=\"\",\"\",'[1]MONE(M)CAPARD'!FV279)","v":8.7862421311698071},{"$f":"IF('[1]MONE(M)CARD'!FV279=\"\",\"\",'[1]MONE(M)CARD'!FV279)","v":2591.1465368244021},{"$f":"IF('[1]MONE(M)CARD'!GD279=\"\",\"\",'[1]MONE(M)CARD'!GD279)","v":127.30975518748889},{"$f":"IF('[1]MONE(M)CARD'!GE279=\"\",\"\",'[1]MONE(M)CARD'!GE279)","v":6375.0701437749967},7.7269756875526729,{"$f":"IF('[9]II.2.Balance OSD-Activos'!J137=\"\",\"\",'[9]II.2.Balance OSD-Activos'!J137)","v":172.52315480065869},{"$f":"IF('[9]II.2.Balance OSD-Activos'!N137=\"\",\"\",'[9]II.2.Balance OSD-Activos'!N137)","v":457.76377605407055},{"$f":"IF('[9]II.2.Balance OSD-Activos'!R137=\"\",\"\",'[9]II.2.Balance OSD-Activos'!R137)","v":30090.882045815408},{"$f":"IF('[9]II.2.Balance OSD-Activos'!S137=\"\",\"\",'[9]II.2.Balance OSD-Activos'!S137)","v":35117.383272942694},30263.405200616067,65838.55224961284,18.389929816810756,12.653528113607848,12.813309878277469,12.622241293014348,12.555760524507086,12.602467437122723,2.2224169832263385E-2,{"$f":"IF('[1]MONE(M)CAPARD'!GS279=\"\",\"\",'[1]MONE(M)CAPARD'!GS279)","v":14385.274179696602},{"$f":"IF('[1]MONE(M)CARD'!HA279=\"\",\"\",'[1]MONE(M)CAPARD'!HA279)","v":6990.0068768849951},{"$f":"IF('[1]MONE(M)CAPARD'!HB279=\"\",\"\",'[1]MONE(M)CAPARD'!HB279)","v":7395.2673028116069},"n.d.",{"$f":"IF('[10]II.2.Balance OSD-Activos'!J137=\"\",\"\",'[10]II.2.Balance OSD-Activos'!J137)","v":896.80488477065853},{"$f":"IF('[10]II.2.Balance OSD-Activos'!N137=\"\",\"\",'[10]II.2.Balance OSD-Activos'!N137)","v":859.10053007407078},{"$f":"IF('[10]II.2.Balance OSD-Activos'!R137=\"\",\"\",'[10]II.2.Balance OSD-Activos'!R137)","v":45150.527689095412},{"$f":"IF('[10]II.2.Balance OSD-Activos'!S137=\"\",\"\",'[10]II.2.Balance OSD-Activos'!S137)","v":47009.325138732689},46047.332573866071,93915.758242672833,18.318215782928625,14.823117484472137,10.584106469101462,14.755786105397917,12.478352201446064,13.597934570196157,-1.7960154607940861,{"$f":"IF('[1]MONE(M)CAPARD'!AS279=\"\",\"\",'[1]MONE(M)CAPARD'!AS279)","v":5},{"$f":"IF('[1]MONE(M)CAPARD'!AT279=\"\",\"\",'[1]MONE(M)CAPARD'!AT279)","v":"n.a."},{"$f":"IF('[1]MONE(M)CAPARD'!AU279=\"\",\"\",'[1]MONE(M)CAPARD'!AU279)","v":5},{"$f":"IF('[1]MONE(M)CAPARD'!AV279=\"\",\"\",'[1]MONE(M)CAPARD'!AV279)","v":7},{"$f":"IF('[1]MONE(M)CAPARD'!AW279=\"\",\"\",'[1]MONE(M)CAPARD'!AW279)","v":"n.a."},{"$f":"IF('[1]MONE(M)CAPARD'!AX279=\"\",\"\",'[1]MONE(M)CAPARD'!AX279)","v":6},{"$f":"IF('[1]MONE(M)CAPARD'!AY279=\"\",\"\",'[1]MONE(M)CAPARD'!AY279)","v":"n.a."},{"$f":"IF('[1]FISCAL(M)'!$K279=\"\",\"\",'[1]FISCAL(M)'!$K279)","v":-3163.6801347451196},{"$f":"IF('[1]FISCAL(M)'!$L279=\"\",\"\",'[1]FISCAL(M)'!$L279)","v":-3344.6466317251193},{"$f":"IF('[1]FISCAL(M)'!$AY279=\"\",\"\",'[1]FISCAL(M)'!$AY279)","v":80061.332278014335},{"$f":"IF('[1]FISCAL(M)'!$BI279=\"\",\"\",'[1]FISCAL(M)'!$BI279)","v":40989.792254060187},{"$f":"IF('[1]FISCAL(M)'!$BS279=\"\",\"\",'[1]FISCAL(M)'!$BS279)","v":39071.540023954156},{"$f":"IF('[1]FISCAL(M)'!$AZ279=\"\",\"\",'[1]FISCAL(M)'!$AZ279)","v":94020.953290714344},{"$f":"IF('[1]FISCAL(M)'!$BJ279=\"\",\"\",'[1]FISCAL(M)'!$BJ279)","v":43944.515998690193},{"$f":"IF('[1]FISCAL(M)'!$BT279=\"\",\"\",'[1]FISCAL(M)'!$BT279)","v":50076.437292024159},{"$f":"IF('[2]MONE(M)'!$AO279=\"\",\"\",'[2]MONE(M)'!$AO279)","v":11169343.704898369},{"$f":"IF('[3]MONE(M)'!$AO279=\"\",\"\",'[3]MONE(M)'!$AO279)","v":9105.3619217801206},{"$f":"IF('[4]MONE(M)'!$AO279=\"\",\"\",'[4]MONE(M)'!$AO279)","v":104362.70012020315},{"$f":"+'[5]MONE(M)'!$AO279","v":169854.54610670128},{"$f":"IF('[6]MONE(M)'!$AO279=\"\",\"\",'[6]MONE(M)'!$AO279)","v":56853.005194361322},{"$f":"IF('[7]MONE(M)'!$AO279=\"\",\"\",'[7]MONE(M)'!$AO279)","v":489560.25266124},{"$f":"IF('[8]MONE(M)'!$AO279=\"\",\"\",'[8]MONE(M)'!$AO279)","v":28434.565056349998},14.267983672314299,3.8699488964188067,18.305870092304776,15.339436523678639,28.228214455755428,8.9512391513454581,15.880989384963694,{"$f":"IF('[1]FISCAL(M)'!$K279=\"\",\"\",'[1]FISCAL(M)'!$K279)","v":-3163.6801347451196},{"$f":"+'[1]REAL(A)'!$AO$32","v":208321.52269328738},-1.5186525587195419,{"$f":"IF('[1]FISCAL(M)'!$L279=\"\",\"\",'[1]FISCAL(M)'!$L279)","v":-3344.6466317251193},{"$f":"+'[1]REAL(A)'!$AP$32","v":248751.25969328737},-1.344574751440093,94255.206246159476,{"$f":"'[1]Gráfico REM'!BG273","v":20186.541222821361},{"$f":"'[1]Gráfico REM'!BH273","v":68735.104408967702},{"$f":"'[1]Gráfico REM'!BI273","v":5333.560614370419},8.3565652256363698,-2.6686836761851684,12.101564525308483,8.1617255581513337,142018.60836973949,{"$f":"'[1]Gráfico REM'!BK273","v":21710.52023201136},{"$f":"'[1]Gráfico REM'!BL273","v":97169.669465317696},{"$f":"'[1]Gráfico REM'!BM273","v":23138.418672410422},9.832175303612555,-0.22607810153917329,13.181768725075305,6.6648735206242593]
[2012,"julio","2012-julio",{"$f":"IF('[1]REAL IPC(M)'!$AL280=\"\",\"\",+'[1]REAL IPC(M)'!$AL280)","v":2.6733077705530794},{"$f":"IF('[1]REAL IPC(M)'!$BE280=\"\",\"\",+'[1]REAL IPC(M)'!$BE280)","v":4.6441460781535326},{"$f":"IF('[1]REAL IPC(M)'!$AM280=\"\",\"\",+'[1]REAL IPC(M)'!$AM280)","v":3.0420263146952564},{"$f":"IF('[1]REAL IPC(M)'!$BI280=\"\",\"\",+'[1]REAL IPC(M)'!$BI280)","v":4.7029664157998807},{"$f":"IF('[1]REAL IMAE(M)'!BJ280=\"\",\"\",'[1]REAL IMAE(M)'!BJ280)","v":3.3898933224822514},{"$f":"IF('[1]REAL IMAE(M)'!BK280=\"\",\"\",'[1]REAL IMAE(M)'!BK280)","v":3.9075063161941426},{"$f":"IF('[1]REAL IMAE(M)'!BN280=\"\",\"\",'[1]REAL IMAE(M)'!BN280)","v":4.6323440434752561},{"$f":"IF('[1]REAL IMAE(M)'!BO280=\"\",\"\",'[1]REAL IMAE(M)'!BO280)","v":4.5616374166651763},{"$f":"IF('[1]EXT RIN(M)'!$K280=\"\",\"\",'[1]EXT RIN(M)'!$K280)","v":21652.862193113695},"",{"$f":"IF('[1]EXT RIN(M)'!$L280=\"\",\"\",'[1]EXT RIN(M)'!$L280)","v":23787.481331853694},"",{"$f":"IF('[1]MONE(M)CARD'!EG280=\"\",\"\",'[1]MONE(M)CARD'!EG280)","v":23510.290319848777},{"$f":"IF('[1]MONE(M)CARD'!EK280=\"\",\"\",'[1]MONE(M)CARD'!EK280)","v":41166.007124510783},{"$f":"IF('[1]MONE(M)CARD'!EP280=\"\",\"\",'[1]MONE(M)CARD'!EP280)","v":22791.746069122077},{"$f":"IF('[1]MONE(M)CARD'!ES280=\"\",\"\",'[1]MONE(M)CARD'!ES280)","v":2.7069043239402291},{"$f":"IF('[1]MONE(M)CARD'!EV280=\"\",\"\",'[1]MONE(M)CARD'!EV280)","v":7.9874314612125241},{"$f":"IF('[1]MONE(M)CARD'!EZ280=\"\",\"\",'[1]MONE(M)CARD'!EZ280)","v":7.7428250662615161},{"$f":"IF('[1]MONE(M)CAPARD'!FC280=\"\",\"\",'[1]MONE(M)CAPARD'!FC280)","v":30069.995190028778},{"$f":"IF('[1]MONE(M)CAPARD'!FG280=\"\",\"\",'[1]MONE(M)CAPARD'!FG280)","v":62539.799245380789},{"$f":"IF('[1]MONE(M)CAPARD'!FL280=\"\",\"\",'[1]MONE(M)CAPARD'!FL280)","v":22791.746069122077},{"$f":"IF('[1]MONE(M)CAPARD'!FO280=\"\",\"\",'[1]MONE(M)CAPARD'!FO280)","v":5.586909204872792},{"$f":"IF('[1]MONE(M)CAPARD'!FR280=\"\",\"\",'[1]MONE(M)CAPARD'!FR280)","v":8.68335657917887},{"$f":"IF('[1]MONE(M)CAPARD'!FV280=\"\",\"\",'[1]MONE(M)CAPARD'!FV280)","v":8.3577822944056699},{"$f":"IF('[1]MONE(M)CARD'!FV280=\"\",\"\",'[1]MONE(M)CARD'!FV280)","v":2588.965563003544},{"$f":"IF('[1]MONE(M)CARD'!GD280=\"\",\"\",'[1]MONE(M)CARD'!GD280)","v":91.242672144220037},{"$f":"IF('[1]MONE(M)CARD'!GE280=\"\",\"\",'[1]MONE(M)CARD'!GE280)","v":6455.8228799104863},7.3788991357706557,{"$f":"IF('[9]II.2.Balance OSD-Activos'!J138=\"\",\"\",'[9]II.2.Balance OSD-Activos'!J138)","v":165.01103634561579},{"$f":"IF('[9]II.2.Balance OSD-Activos'!N138=\"\",\"\",'[9]II.2.Balance OSD-Activos'!N138)","v":443.7563532785336},{"$f":"IF('[9]II.2.Balance OSD-Activos'!R138=\"\",\"\",'[9]II.2.Balance OSD-Activos'!R138)","v":30333.418093183951},{"$f":"IF('[9]II.2.Balance OSD-Activos'!S138=\"\",\"\",'[9]II.2.Balance OSD-Activos'!S138)","v":35384.229306490764},30498.429129529566,66326.414789298869,10.334346506967208,12.753675606206283,4.8556073255220156,12.767126724052336,12.119012456524668,12.357747937890661,-0.24471949923206182,{"$f":"IF('[1]MONE(M)CAPARD'!GS280=\"\",\"\",'[1]MONE(M)CAPARD'!GS280)","v":14440.730819228504},{"$f":"IF('[1]MONE(M)CARD'!HA280=\"\",\"\",'[1]MONE(M)CAPARD'!HA280)","v":7071.6327260704866},{"$f":"IF('[1]MONE(M)CAPARD'!HB280=\"\",\"\",'[1]MONE(M)CAPARD'!HB280)","v":7369.098093158017},"n.d.",{"$f":"IF('[10]II.2.Balance OSD-Activos'!J138=\"\",\"\",'[10]II.2.Balance OSD-Activos'!J138)","v":891.07491065561578},{"$f":"IF('[10]II.2.Balance OSD-Activos'!N138=\"\",\"\",'[10]II.2.Balance OSD-Activos'!N138)","v":842.29954276853357},{"$f":"IF('[10]II.2.Balance OSD-Activos'!R138=\"\",\"\",'[10]II.2.Balance OSD-Activos'!R138)","v":45674.671298393951},{"$f":"IF('[10]II.2.Balance OSD-Activos'!S138=\"\",\"\",'[10]II.2.Balance OSD-Activos'!S138)","v":47420.977792820762},46565.746209049568,94829.023544638854,16.090185817786029,14.590680297297665,1.7347537646359656,14.561811331938635,12.477209356848151,13.397868656614232,-0.20006591358192516,{"$f":"IF('[1]MONE(M)CAPARD'!AS280=\"\",\"\",'[1]MONE(M)CAPARD'!AS280)","v":5},{"$f":"IF('[1]MONE(M)CAPARD'!AT280=\"\",\"\",'[1]MONE(M)CAPARD'!AT280)","v":"n.a."},{"$f":"IF('[1]MONE(M)CAPARD'!AU280=\"\",\"\",'[1]MONE(M)CAPARD'!AU280)","v":5},{"$f":"IF('[1]MONE(M)CAPARD'!AV280=\"\",\"\",'[1]MONE(M)CAPARD'!AV280)","v":7},{"$f":"IF('[1]MONE(M)CAPARD'!AW280=\"\",\"\",'[1]MONE(M)CAPARD'!AW280)","v":"n.a."},{"$f":"IF('[1]MONE(M)CAPARD'!AX280=\"\",\"\",'[1]MONE(M)CAPARD'!AX280)","v":6},{"$f":"IF('[1]MONE(M)CAPARD'!AY280=\"\",\"\",'[1]MONE(M)CAPARD'!AY280)","v":"n.a."},{"$f":"IF('[1]FISCAL(M)'!$K280=\"\",\"\",'[1]FISCAL(M)'!$K280)","v":-4638.8245953236838},{"$f":"IF('[1]FISCAL(M)'!$L280=\"\",\"\",'[1]FISCAL(M)'!$L280)","v":-5035.6092079036844},{"$f":"IF('[1]FISCAL(M)'!$AY280=\"\",\"\",'[1]FISCAL(M)'!$AY280)","v":80646.564498660009},{"$f":"IF('[1]FISCAL(M)'!$BI280=\"\",\"\",'[1]FISCAL(M)'!$BI280)","v":41529.593227695048},{"$f":"IF('[1]FISCAL(M)'!$BS280=\"\",\"\",'[1]FISCAL(M)'!$BS280)","v":39116.971270964954},{"$f":"IF('[1]FISCAL(M)'!$AZ280=\"\",\"\",'[1]FISCAL(M)'!$AZ280)","v":94834.533174190001},{"$f":"IF('[1]FISCAL(M)'!$BJ280=\"\",\"\",'[1]FISCAL(M)'!$BJ280)","v":44821.702780375039},{"$f":"IF('[1]FISCAL(M)'!$BT280=\"\",\"\",'[1]FISCAL(M)'!$BT280)","v":50012.830393814962},{"$f":"IF('[2]MONE(M)'!$AO280=\"\",\"\",'[2]MONE(M)'!$AO280)","v":11301671.195277303},{"$f":"IF('[3]MONE(M)'!$AO280=\"\",\"\",'[3]MONE(M)'!$AO280)","v":9159.5231738301209},{"$f":"IF('[4]MONE(M)'!$AO280=\"\",\"\",'[4]MONE(M)'!$AO280)","v":106524.34773947881},{"$f":"+'[5]MONE(M)'!$AO280","v":170609.70796187338},{"$f":"IF('[6]MONE(M)'!$AO280=\"\",\"\",'[6]MONE(M)'!$AO280)","v":57927.64767306453},{"$f":"IF('[7]MONE(M)'!$AO280=\"\",\"\",'[7]MONE(M)'!$AO280)","v":488069.76338648994},{"$f":"IF('[8]MONE(M)'!$AO280=\"\",\"\",'[8]MONE(M)'!$AO280)","v":28867.846379399998},14.259429526557454,3.9126728095621122,20.251560921546897,14.972457705732968,29.593259490418909,7.1548996286515232,15.934564067532264,{"$f":"IF('[1]FISCAL(M)'!$K280=\"\",\"\",'[1]FISCAL(M)'!$K280)","v":-4638.8245953236838},{"$f":"+'[1]REAL(A)'!$AO$32","v":208321.52269328738},-2.2267620432831823,{"$f":"IF('[1]FISCAL(M)'!$L280=\"\",\"\",'[1]FISCAL(M)'!$L280)","v":-5035.6092079036844},{"$f":"+'[1]REAL(A)'!$AP$32","v":248751.25969328737},-2.0243552591905014,94652.266960179055,{"$f":"'[1]Gráfico REM'!BG274","v":20218.69127041343},{"$f":"'[1]Gráfico REM'!BH274","v":69235.952938262562},{"$f":"'[1]Gráfico REM'!BI274","v":5197.6227515030587},8.7816864903549341,-0.48139714830067737,11.998075526580321,6.5994642679691573,142448.81436562905,{"$f":"'[1]Gráfico REM'!BK274","v":21707.934396523429},{"$f":"'[1]Gráfico REM'!BL274","v":98103.79931766256},{"$f":"'[1]Gráfico REM'!BM274","v":22637.080651443059},9.3371154049663119,1.3999969511053978,13.128381941533473,2.1675295921748994]
[2012,"agosto","2012-agosto",{"$f":"IF('[1]REAL IPC(M)'!$AL281=\"\",\"\",+'[1]REAL IPC(M)'!$AL281)","v":2.8256837183472827},{"$f":"IF('[1]REAL IPC(M)'!$BE281=\"\",\"\",+'[1]REAL IPC(M)'!$BE281)","v":4.5908552191407548},{"$f":"IF('[1]REAL IPC(M)'!$AM281=\"\",\"\",+'[1]REAL IPC(M)'!$AM281)","v":3.1827963300176787},{"$f":"IF('[1]REAL IPC(M)'!$BI281=\"\",\"\",+'[1]REAL IPC(M)'!$BI281)","v":4.6480344128943196},{"$f":"IF('[1]REAL IMAE(M)'!BJ281=\"\",\"\",'[1]REAL IMAE(M)'!BJ281)","v":3.3076165476767949},{"$f":"IF('[1]REAL IMAE(M)'!BK281=\"\",\"\",'[1]REAL IMAE(M)'!BK281)","v":3.916145016758521},{"$f":"IF('[1]REAL IMAE(M)'!BN281=\"\",\"\",'[1]REAL IMAE(M)'!BN281)","v":4.2804406525842387},{"$f":"IF('[1]REAL IMAE(M)'!BO281=\"\",\"\",'[1]REAL IMAE(M)'!BO281)","v":4.5604974920109731},{"$f":"IF('[1]EXT RIN(M)'!$K281=\"\",\"\",'[1]EXT RIN(M)'!$K281)","v":21529.859739189815},"",{"$f":"IF('[1]EXT RIN(M)'!$L281=\"\",\"\",'[1]EXT RIN(M)'!$L281)","v":23716.883535679815},"",{"$f":"IF('[1]MONE(M)CARD'!EG281=\"\",\"\",'[1]MONE(M)CARD'!EG281)","v":23489.007339482094},{"$f":"IF('[1]MONE(M)CARD'!EK281=\"\",\"\",'[1]MONE(M)CARD'!EK281)","v":41407.565358526699},{"$f":"IF('[1]MONE(M)CARD'!EP281=\"\",\"\",'[1]MONE(M)CARD'!EP281)","v":22982.255746211769},{"$f":"IF('[1]MONE(M)CARD'!ES281=\"\",\"\",'[1]MONE(M)CARD'!ES281)","v":5.3320993904525826},{"$f":"IF('[1]MONE(M)CARD'!EV281=\"\",\"\",'[1]MONE(M)CARD'!EV281)","v":8.9469898229979083},{"$f":"IF('[1]MONE(M)CARD'!EZ281=\"\",\"\",'[1]MONE(M)CARD'!EZ281)","v":8.8227659879064788},{"$f":"IF('[1]MONE(M)CAPARD'!FC281=\"\",\"\",'[1]MONE(M)CAPARD'!FC281)","v":29989.955001242091},{"$f":"IF('[1]MONE(M)CAPARD'!FG281=\"\",\"\",'[1]MONE(M)CAPARD'!FG281)","v":63224.690633366685},{"$f":"IF('[1]MONE(M)CAPARD'!FL281=\"\",\"\",'[1]MONE(M)CAPARD'!FL281)","v":22982.255746211769},{"$f":"IF('[1]MONE(M)CAPARD'!FO281=\"\",\"\",'[1]MONE(M)CAPARD'!FO281)","v":7.0895459981343167},{"$f":"IF('[1]MONE(M)CAPARD'!FR281=\"\",\"\",'[1]MONE(M)CAPARD'!FR281)","v":9.6773724096584033},{"$f":"IF('[1]MONE(M)CAPARD'!FV281=\"\",\"\",'[1]MONE(M)CAPARD'!FV281)","v":9.4371488276046467},{"$f":"IF('[1]MONE(M)CARD'!FV281=\"\",\"\",'[1]MONE(M)CARD'!FV281)","v":1020.2975458382991},{"$f":"IF('[1]MONE(M)CARD'!GD281=\"\",\"\",'[1]MONE(M)CARD'!GD281)","v":89.897931825229733},{"$f":"IF('[1]MONE(M)CARD'!GE281=\"\",\"\",'[1]MONE(M)CARD'!GE281)","v":6733.4022337329116},9.7750372894608528,{"$f":"IF('[9]II.2.Balance OSD-Activos'!J139=\"\",\"\",'[9]II.2.Balance OSD-Activos'!J139)","v":168.48481316537021},{"$f":"IF('[9]II.2.Balance OSD-Activos'!N139=\"\",\"\",'[9]II.2.Balance OSD-Activos'!N139)","v":447.50575196979594},{"$f":"IF('[9]II.2.Balance OSD-Activos'!R139=\"\",\"\",'[9]II.2.Balance OSD-Activos'!R139)","v":32551.216628541468},{"$f":"IF('[9]II.2.Balance OSD-Activos'!S139=\"\",\"\",'[9]II.2.Balance OSD-Activos'!S139)","v":35798.95680971002},32719.701441706839,{"$f":"IF(OR(AF274=\"\",AG274=\"\",AH274=\"\",AI274=\"\"),\"\",SUM(AF274:AI274))","v":68966.164003386657},9.3071900723615375,21.231464634367093,7.5027548446534142,21.299956250932397,12.45079943294456,16.416394194058448,4.058646256167787,{"$f":"IF('[1]MONE(M)CAPARD'!GS281=\"\",\"\",'[1]MONE(M)CAPARD'!GS281)","v":13163.908862126327},{"$f":"IF('[1]MONE(M)CARD'!HA281=\"\",\"\",'[1]MONE(M)CAPARD'!HA281)","v":7348.4362825629105},{"$f":"IF('[1]MONE(M)CAPARD'!HB281=\"\",\"\",'[1]MONE(M)CAPARD'!HB281)","v":5815.4725795634167},"n.d.",{"$f":"IF('[10]II.2.Balance OSD-Activos'!J139=\"\",\"\",'[10]II.2.Balance OSD-Activos'!J139)","v":891.69312724537031},{"$f":"IF('[10]II.2.Balance OSD-Activos'!N139=\"\",\"\",'[10]II.2.Balance OSD-Activos'!N139)","v":848.05498467979601},{"$f":"IF('[10]II.2.Balance OSD-Activos'!R139=\"\",\"\",'[10]II.2.Balance OSD-Activos'!R139)","v":48242.893986141469},{"$f":"IF('[10]II.2.Balance OSD-Activos'!S139=\"\",\"\",'[10]II.2.Balance OSD-Activos'!S139)","v":47979.569844330021},{"$f":"IFERROR(+AW274+AY274,\"n.d.\")","v":49134.587113386842},97962.211942396651,8.2430518707969913,19.533845182298503,3.994528077784687,19.764751339089592,12.825940306238826,16.005817085456876,2.6079484288426436,{"$f":"IF('[1]MONE(M)CAPARD'!AS281=\"\",\"\",'[1]MONE(M)CAPARD'!AS281)","v":5},{"$f":"IF('[1]MONE(M)CAPARD'!AT281=\"\",\"\",'[1]MONE(M)CAPARD'!AT281)","v":"n.a."},{"$f":"IF('[1]MONE(M)CAPARD'!AU281=\"\",\"\",'[1]MONE(M)CAPARD'!AU281)","v":5},{"$f":"IF('[1]MONE(M)CAPARD'!AV281=\"\",\"\",'[1]MONE(M)CAPARD'!AV281)","v":7},{"$f":"IF('[1]MONE(M)CAPARD'!AW281=\"\",\"\",'[1]MONE(M)CAPARD'!AW281)","v":"n.a."},{"$f":"IF('[1]MONE(M)CAPARD'!AX281=\"\",\"\",'[1]MONE(M)CAPARD'!AX281)","v":5.5},{"$f":"IF('[1]MONE(M)CAPARD'!AY281=\"\",\"\",'[1]MONE(M)CAPARD'!AY281)","v":"n.a."},{"$f":"IF('[1]FISCAL(M)'!$K281=\"\",\"\",'[1]FISCAL(M)'!$K281)","v":-6119.087415902779},{"$f":"IF('[1]FISCAL(M)'!$L281=\"\",\"\",'[1]FISCAL(M)'!$L281)","v":-6531.9869082227797},{"$f":"IF('[1]FISCAL(M)'!$AY281=\"\",\"\",'[1]FISCAL(M)'!$AY281)","v":81985.162512481824},{"$f":"IF('[1]FISCAL(M)'!$BI281=\"\",\"\",'[1]FISCAL(M)'!$BI281)","v":42693.699811545855},{"$f":"IF('[1]FISCAL(M)'!$BS281=\"\",\"\",'[1]FISCAL(M)'!$BS281)","v":39291.462700935968},{"$f":"IF('[1]FISCAL(M)'!$AZ281=\"\",\"\",'[1]FISCAL(M)'!$AZ281)","v":96272.966526171833},{"$f":"IF('[1]FISCAL(M)'!$BJ281=\"\",\"\",'[1]FISCAL(M)'!$BJ281)","v":46096.442531575856},{"$f":"IF('[1]FISCAL(M)'!$BT281=\"\",\"\",'[1]FISCAL(M)'!$BT281)","v":50176.523994595962},{"$f":"IF('[2]MONE(M)'!$AO281=\"\",\"\",'[2]MONE(M)'!$AO281)","v":11394018.173678463},{"$f":"IF('[3]MONE(M)'!$AO281=\"\",\"\",'[3]MONE(M)'!$AO281)","v":9186.5683978801189},{"$f":"IF('[4]MONE(M)'!$AO281=\"\",\"\",'[4]MONE(M)'!$AO281)","v":124248.56784418118},{"$f":"+'[5]MONE(M)'!$AO281","v":172713.77974529171},{"$f":"IF('[6]MONE(M)'!$AO281=\"\",\"\",'[6]MONE(M)'!$AO281)","v":59222.246191431223},{"$f":"IF('[7]MONE(M)'!$AO281=\"\",\"\",'[7]MONE(M)'!$AO281)","v":491197.43676501},{"$f":"IF('[8]MONE(M)'!$AO281=\"\",\"\",'[8]MONE(M)'!$AO281)","v":29367.925865220001},13.290052753979031,4.4125206000325878,39.60211478227167,15.560903968359764,29.494513297546888,6.81634788108052,14.898321025679785,{"$f":"IF('[1]FISCAL(M)'!$K281=\"\",\"\",'[1]FISCAL(M)'!$K281)","v":-6119.087415902779},{"$f":"+'[1]REAL(A)'!$AO$32","v":208321.52269328738},-2.9373284799343256,{"$f":"IF('[1]FISCAL(M)'!$L281=\"\",\"\",'[1]FISCAL(M)'!$L281)","v":-6531.9869082227797},{"$f":"+'[1]REAL(A)'!$AP$32","v":248751.25969328737},-2.6259110873556102,96015.305285166731,{"$f":"'[1]Gráfico REM'!BG275","v":18884.433079142982},{"$f":"'[1]Gráfico REM'!BH275","v":71787.489052388526},{"$f":"'[1]Gráfico REM'!BI275","v":5343.3831536352282},10.554718276751696,-5.8563007504853548,15.678521615766016,12.925822689917755,144450.76751156672,{"$f":"'[1]Gráfico REM'!BK275","v":20404.806195982983},{"$f":"'[1]Gráfico REM'!BL275","v":101155.41491760852},{"$f":"'[1]Gráfico REM'!BM275","v":22890.546397975231},10.388866542771268,-3.521476726761974,15.450920633649767,3.6286102391808406]
[2012,"septiembre","2012-septiembre",{"$f":"IF('[1]REAL IPC(M)'!$AL282=\"\",\"\",+'[1]REAL IPC(M)'!$AL282)","v":3.3502483155067653},{"$f":"IF('[1]REAL IPC(M)'!$BE282=\"\",\"\",+'[1]REAL IPC(M)'!$BE282)","v":4.5370050240580495},{"$f":"IF('[1]REAL IPC(M)'!$AM282=\"\",\"\",+'[1]REAL IPC(M)'!$AM282)","v":3.5716506892050637},{"$f":"IF('[1]REAL IPC(M)'!$BI282=\"\",\"\",+'[1]REAL IPC(M)'!$BI282)","v":4.5918809591432241},{"$f":"IF('[1]REAL IMAE(M)'!BJ282=\"\",\"\",'[1]REAL IMAE(M)'!BJ282)","v":3.2633439083467719},{"$f":"IF('[1]REAL IMAE(M)'!BK282=\"\",\"\",'[1]REAL IMAE(M)'!BK282)","v":3.926170342454216},{"$f":"IF('[1]REAL IMAE(M)'!BN282=\"\",\"\",'[1]REAL IMAE(M)'!BN282)","v":3.8832359317537923},{"$f":"IF('[1]REAL IMAE(M)'!BO282=\"\",\"\",'[1]REAL IMAE(M)'!BO282)","v":4.5591859103536247},{"$f":"IF('[1]EXT RIN(M)'!$K282=\"\",\"\",'[1]EXT RIN(M)'!$K282)","v":21490.879023364556},"",{"$f":"IF('[1]EXT RIN(M)'!$L282=\"\",\"\",'[1]EXT RIN(M)'!$L282)","v":23433.439613624556},"",{"$f":"IF('[1]MONE(M)CARD'!EG282=\"\",\"\",'[1]MONE(M)CARD'!EG282)","v":23350.101096062517},{"$f":"IF('[1]MONE(M)CARD'!EK282=\"\",\"\",'[1]MONE(M)CARD'!EK282)","v":41796.479054694661},{"$f":"IF('[1]MONE(M)CARD'!EP282=\"\",\"\",'[1]MONE(M)CARD'!EP282)","v":22916.902582453979},{"$f":"IF('[1]MONE(M)CARD'!ES282=\"\",\"\",'[1]MONE(M)CARD'!ES282)","v":5.0632740034654677},{"$f":"IF('[1]MONE(M)CARD'!EV282=\"\",\"\",'[1]MONE(M)CARD'!EV282)","v":9.6841836210751708},{"$f":"IF('[1]MONE(M)CARD'!EZ282=\"\",\"\",'[1]MONE(M)CARD'!EZ282)","v":9.628130902988886},{"$f":"IF('[1]MONE(M)CAPARD'!FC282=\"\",\"\",'[1]MONE(M)CAPARD'!FC282)","v":29977.144774072516},{"$f":"IF('[1]MONE(M)CAPARD'!FG282=\"\",\"\",'[1]MONE(M)CAPARD'!FG282)","v":63538.141421584674},{"$f":"IF('[1]MONE(M)CAPARD'!FL282=\"\",\"\",'[1]MONE(M)CAPARD'!FL282)","v":22916.902582453971},{"$f":"IF('[1]MONE(M)CAPARD'!FO282=\"\",\"\",'[1]MONE(M)CAPARD'!FO282)","v":7.3501793132768611},{"$f":"IF('[1]MONE(M)CAPARD'!FR282=\"\",\"\",'[1]MONE(M)CAPARD'!FR282)","v":10.296637495366689},{"$f":"IF('[1]MONE(M)CAPARD'!FV282=\"\",\"\",'[1]MONE(M)CAPARD'!FV282)","v":10.132769085754578},{"$f":"IF('[1]MONE(M)CARD'!FV282=\"\",\"\",'[1]MONE(M)CARD'!FV282)","v":956.3532670320983},{"$f":"IF('[1]MONE(M)CARD'!GD282=\"\",\"\",'[1]MONE(M)CARD'!GD282)","v":158.41584472925885},{"$f":"IF('[1]MONE(M)CARD'!GE282=\"\",\"\",'[1]MONE(M)CARD'!GE282)","v":6633.3672615777841},11.452039784653255,{"$f":"IF('[9]II.2.Balance OSD-Activos'!J140=\"\",\"\",'[9]II.2.Balance OSD-Activos'!J140)","v":165.48801664385223},{"$f":"IF('[9]II.2.Balance OSD-Activos'!N140=\"\",\"\",'[9]II.2.Balance OSD-Activos'!N140)","v":455.74199066107212},{"$f":"IF('[9]II.2.Balance OSD-Activos'!R140=\"\",\"\",'[9]II.2.Balance OSD-Activos'!R140)","v":32704.679200182294},{"$f":"IF('[9]II.2.Balance OSD-Activos'!S140=\"\",\"\",'[9]II.2.Balance OSD-Activos'!S140)","v":36205.606335122975},32870.167216826143,69531.515542610199,16.370047696070333,20.037876412373222,13.725939668934384,20.057023911792584,12.827447044221941,16.131165921991798,-0.28522827206665013,{"$f":"IF('[1]MONE(M)CAPARD'!GS282=\"\",\"\",'[1]MONE(M)CAPARD'!GS282)","v":13261.774432714139},{"$f":"IF('[1]MONE(M)CARD'!HA282=\"\",\"\",'[1]MONE(M)CAPARD'!HA282)","v":7247.797721447786},{"$f":"IF('[1]MONE(M)CAPARD'!HB282=\"\",\"\",'[1]MONE(M)CAPARD'!HB282)","v":6013.976711266353},"n.d.",{"$f":"IF('[10]II.2.Balance OSD-Activos'!J140=\"\",\"\",'[10]II.2.Balance OSD-Activos'!J140)","v":941.69737374385238},{"$f":"IF('[10]II.2.Balance OSD-Activos'!N140=\"\",\"\",'[10]II.2.Balance OSD-Activos'!N140)","v":868.12967439107217},{"$f":"IF('[10]II.2.Balance OSD-Activos'!R140=\"\",\"\",'[10]II.2.Balance OSD-Activos'!R140)","v":48784.768215412296},{"$f":"IF('[10]II.2.Balance OSD-Activos'!S140=\"\",\"\",'[10]II.2.Balance OSD-Activos'!S140)","v":48538.911092082984},49726.465589156149,99133.506355630205,16.126663772271964,18.814522388942901,9.1040689363738778,18.867631030427678,13.099962952218913,15.857961212346039,-0.14785587311083681,{"$f":"IF('[1]MONE(M)CAPARD'!AS282=\"\",\"\",'[1]MONE(M)CAPARD'!AS282)","v":5},{"$f":"IF('[1]MONE(M)CAPARD'!AT282=\"\",\"\",'[1]MONE(M)CAPARD'!AT282)","v":"n.a."},{"$f":"IF('[1]MONE(M)CAPARD'!AU282=\"\",\"\",'[1]MONE(M)CAPARD'!AU282)","v":5},{"$f":"IF('[1]MONE(M)CAPARD'!AV282=\"\",\"\",'[1]MONE(M)CAPARD'!AV282)","v":7},{"$f":"IF('[1]MONE(M)CAPARD'!AW282=\"\",\"\",'[1]MONE(M)CAPARD'!AW282)","v":"n.a."},{"$f":"IF('[1]MONE(M)CAPARD'!AX282=\"\",\"\",'[1]MONE(M)CAPARD'!AX282)","v":5},{"$f":"IF('[1]MONE(M)CAPARD'!AY282=\"\",\"\",'[1]MONE(M)CAPARD'!AY282)","v":"n.a."},{"$f":"IF('[1]FISCAL(M)'!$K282=\"\",\"\",'[1]FISCAL(M)'!$K282)","v":-6468.0166322183086},{"$f":"IF('[1]FISCAL(M)'!$L282=\"\",\"\",'[1]FISCAL(M)'!$L282)","v":-7019.6492989483095},{"$f":"IF('[1]FISCAL(M)'!$AY282=\"\",\"\",'[1]FISCAL(M)'!$AY282)","v":82592.132721789472},{"$f":"IF('[1]FISCAL(M)'!$BI282=\"\",\"\",'[1]FISCAL(M)'!$BI282)","v":43100.021274611441},{"$f":"IF('[1]FISCAL(M)'!$BS282=\"\",\"\",'[1]FISCAL(M)'!$BS282)","v":39492.111447178031},{"$f":"IF('[1]FISCAL(M)'!$AZ282=\"\",\"\",'[1]FISCAL(M)'!$AZ282)","v":96966.699309959484},{"$f":"IF('[1]FISCAL(M)'!$BJ282=\"\",\"\",'[1]FISCAL(M)'!$BJ282)","v":46603.969453541446},{"$f":"IF('[1]FISCAL(M)'!$BT282=\"\",\"\",'[1]FISCAL(M)'!$BT282)","v":50362.729856418038},{"$f":"IF('[2]MONE(M)'!$AO282=\"\",\"\",'[2]MONE(M)'!$AO282)","v":11529774.703146648},{"$f":"IF('[3]MONE(M)'!$AO282=\"\",\"\",'[3]MONE(M)'!$AO282)","v":9206.1153650501219},{"$f":"IF('[4]MONE(M)'!$AO282=\"\",\"\",'[4]MONE(M)'!$AO282)","v":126083.00880073145},{"$f":"+'[5]MONE(M)'!$AO282","v":175592.96405215855},{"$f":"IF('[6]MONE(M)'!$AO282=\"\",\"\",'[6]MONE(M)'!$AO282)","v":60349.46380635001},{"$f":"IF('[7]MONE(M)'!$AO282=\"\",\"\",'[7]MONE(M)'!$AO282)","v":493671.25274897006},{"$f":"IF('[8]MONE(M)'!$AO282=\"\",\"\",'[8]MONE(M)'!$AO282)","v":30018.166583800001},13.495197438190299,3.9096005408334245,39.396273288941309,16.341551847862835,28.037376534173418,5.7105424077370515,15.210448060397642,{"$f":"IF('[1]FISCAL(M)'!$K282=\"\",\"\",'[1]FISCAL(M)'!$K282)","v":-6468.0166322183086},{"$f":"+'[1]REAL(A)'!$AO$32","v":208321.52269328738},-3.1048239992663627,{"$f":"IF('[1]FISCAL(M)'!$L282=\"\",\"\",'[1]FISCAL(M)'!$L282)","v":-7019.6492989483095},{"$f":"+'[1]REAL(A)'!$AP$32","v":248751.25969328737},-2.8219552767706997,96695.321900369236,{"$f":"'[1]Gráfico REM'!BG276","v":18904.532958002397},{"$f":"'[1]Gráfico REM'!BH276","v":72472.672705290519},{"$f":"'[1]Gráfico REM'!BI276","v":5318.1162370763204},10.557100022927735,-5.7737427813310926,15.777470989934939,10.737678246866068,146431.48399176923,{"$f":"'[1]Gráfico REM'!BK276","v":20496.936388242397},{"$f":"'[1]Gráfico REM'!BL276","v":102490.83928909052},{"$f":"'[1]Gráfico REM'!BM276","v":23443.708314436313},11.009161827619618,-3.2833929374788684,15.610820592619756,6.2484326477728169]
[2012,"octubre","2012-octubre",{"$f":"IF('[1]REAL IPC(M)'!$AL283=\"\",\"\",+'[1]REAL IPC(M)'!$AL283)","v":3.5201427466917234},{"$f":"IF('[1]REAL IPC(M)'!$BE283=\"\",\"\",+'[1]REAL IPC(M)'!$BE283)","v":4.4826683819257251},{"$f":"IF('[1]REAL IPC(M)'!$AM283=\"\",\"\",+'[1]REAL IPC(M)'!$AM283)","v":3.7134100076544829},{"$f":"IF('[1]REAL IPC(M)'!$BI283=\"\",\"\",+'[1]REAL IPC(M)'!$BI283)","v":4.5346149049176443},{"$f":"IF('[1]REAL IMAE(M)'!BJ283=\"\",\"\",'[1]REAL IMAE(M)'!BJ283)","v":3.3146121965327069},{"$f":"IF('[1]REAL IMAE(M)'!BK283=\"\",\"\",'[1]REAL IMAE(M)'!BK283)","v":3.9377771621261548},{"$f":"IF('[1]REAL IMAE(M)'!BN283=\"\",\"\",'[1]REAL IMAE(M)'!BN283)","v":3.8545346594934804},{"$f":"IF('[1]REAL IMAE(M)'!BO283=\"\",\"\",'[1]REAL IMAE(M)'!BO283)","v":4.5580661013788104},{"$f":"IF('[1]EXT RIN(M)'!$K283=\"\",\"\",'[1]EXT RIN(M)'!$K283)","v":21796.266470937961},"",{"$f":"IF('[1]EXT RIN(M)'!$L283=\"\",\"\",'[1]EXT RIN(M)'!$L283)","v":23705.015087257962},"",{"$f":"IF('[1]MONE(M)CARD'!EG283=\"\",\"\",'[1]MONE(M)CARD'!EG283)","v":23366.437381945376},{"$f":"IF('[1]MONE(M)CARD'!EK283=\"\",\"\",'[1]MONE(M)CARD'!EK283)","v":41805.936886963304},{"$f":"IF('[1]MONE(M)CARD'!EP283=\"\",\"\",'[1]MONE(M)CARD'!EP283)","v":23045.21843734158},{"$f":"IF('[1]MONE(M)CARD'!ES283=\"\",\"\",'[1]MONE(M)CARD'!ES283)","v":5.1481856809570736},{"$f":"IF('[1]MONE(M)CARD'!EV283=\"\",\"\",'[1]MONE(M)CARD'!EV283)","v":8.942639690345878},{"$f":"IF('[1]MONE(M)CARD'!EZ283=\"\",\"\",'[1]MONE(M)CARD'!EZ283)","v":9.0407571894482572},{"$f":"IF('[1]MONE(M)CAPARD'!FC283=\"\",\"\",'[1]MONE(M)CAPARD'!FC283)","v":30129.877339875376},{"$f":"IF('[1]MONE(M)CAPARD'!FG283=\"\",\"\",'[1]MONE(M)CAPARD'!FG283)","v":63544.542109603302},{"$f":"IF('[1]MONE(M)CAPARD'!FL283=\"\",\"\",'[1]MONE(M)CAPARD'!FL283)","v":23045.218437341595},{"$f":"IF('[1]MONE(M)CAPARD'!FO283=\"\",\"\",'[1]MONE(M)CAPARD'!FO283)","v":8.0720355272341884},{"$f":"IF('[1]MONE(M)CAPARD'!FR283=\"\",\"\",'[1]MONE(M)CAPARD'!FR283)","v":9.805499317827703},{"$f":"IF('[1]MONE(M)CAPARD'!FV283=\"\",\"\",'[1]MONE(M)CAPARD'!FV283)","v":9.7091404483337307},{"$f":"IF('[1]MONE(M)CARD'!FV283=\"\",\"\",'[1]MONE(M)CARD'!FV283)","v":960.80837677895829},{"$f":"IF('[1]MONE(M)CARD'!GD283=\"\",\"\",'[1]MONE(M)CARD'!GD283)","v":90.433599423876444},{"$f":"IF('[1]MONE(M)CARD'!GE283=\"\",\"\",'[1]MONE(M)CARD'!GE283)","v":6797.1992664961672},7.4587543811488244,{"$f":"IF('[9]II.2.Balance OSD-Activos'!J141=\"\",\"\",'[9]II.2.Balance OSD-Activos'!J141)","v":166.78835380569683},{"$f":"IF('[9]II.2.Balance OSD-Activos'!N141=\"\",\"\",'[9]II.2.Balance OSD-Activos'!N141)","v":468.7611325891653},{"$f":"IF('[9]II.2.Balance OSD-Activos'!R141=\"\",\"\",'[9]II.2.Balance OSD-Activos'!R141)","v":33280.066975586582},{"$f":"IF('[9]II.2.Balance OSD-Activos'!S141=\"\",\"\",'[9]II.2.Balance OSD-Activos'!S141)","v":36675.439083880206},33446.855329392281,70591.055545861658,5.6339773096283796,20.728481179615187,18.225135497484079,20.815001397585053,12.966910148239318,16.551623322933896,0.42045740094209805,{"$f":"IF('[1]MONE(M)CAPARD'!GS283=\"\",\"\",'[1]MONE(M)CAPARD'!GS283)","v":13299.873509284302},{"$f":"IF('[1]MONE(M)CARD'!HA283=\"\",\"\",'[1]MONE(M)CAPARD'!HA283)","v":7408.5620274161674},{"$f":"IF('[1]MONE(M)CAPARD'!HB283=\"\",\"\",'[1]MONE(M)CAPARD'!HB283)","v":5891.3114818681343},"n.d.",{"$f":"IF('[10]II.2.Balance OSD-Activos'!J141=\"\",\"\",'[10]II.2.Balance OSD-Activos'!J141)","v":962.12445208569682},{"$f":"IF('[10]II.2.Balance OSD-Activos'!N141=\"\",\"\",'[10]II.2.Balance OSD-Activos'!N141)","v":866.35407247916521},{"$f":"IF('[10]II.2.Balance OSD-Activos'!R141=\"\",\"\",'[10]II.2.Balance OSD-Activos'!R141)","v":49590.597561216578},{"$f":"IF('[10]II.2.Balance OSD-Activos'!S141=\"\",\"\",'[10]II.2.Balance OSD-Activos'!S141)","v":49111.142825030212},50552.722013302278,100530.21891081164,19.429093628251447,18.796269519925101,11.720953821612557,18.784058190458495,13.104512789437784,15.884145514973657,2.6184302627617839E-2,{"$f":"IF('[1]MONE(M)CAPARD'!AS283=\"\",\"\",'[1]MONE(M)CAPARD'!AS283)","v":5},{"$f":"IF('[1]MONE(M)CAPARD'!AT283=\"\",\"\",'[1]MONE(M)CAPARD'!AT283)","v":"n.a."},{"$f":"IF('[1]MONE(M)CAPARD'!AU283=\"\",\"\",'[1]MONE(M)CAPARD'!AU283)","v":5},{"$f":"IF('[1]MONE(M)CAPARD'!AV283=\"\",\"\",'[1]MONE(M)CAPARD'!AV283)","v":7},{"$f":"IF('[1]MONE(M)CAPARD'!AW283=\"\",\"\",'[1]MONE(M)CAPARD'!AW283)","v":"n.a."},{"$f":"IF('[1]MONE(M)CAPARD'!AX283=\"\",\"\",'[1]MONE(M)CAPARD'!AX283)","v":5},{"$f":"IF('[1]MONE(M)CAPARD'!AY283=\"\",\"\",'[1]MONE(M)CAPARD'!AY283)","v":"n.a."},{"$f":"IF('[1]FISCAL(M)'!$K283=\"\",\"\",'[1]FISCAL(M)'!$K283)","v":-6656.6488060137144},{"$f":"IF('[1]FISCAL(M)'!$L283=\"\",\"\",'[1]FISCAL(M)'!$L283)","v":-7160.6103380737159},{"$f":"IF('[1]FISCAL(M)'!$AY283=\"\",\"\",'[1]FISCAL(M)'!$AY283)","v":83150.92388679857},{"$f":"IF('[1]FISCAL(M)'!$BI283=\"\",\"\",'[1]FISCAL(M)'!$BI283)","v":43432.150670996103},{"$f":"IF('[1]FISCAL(M)'!$BS283=\"\",\"\",'[1]FISCAL(M)'!$BS283)","v":39718.773215802466},{"$f":"IF('[1]FISCAL(M)'!$AZ283=\"\",\"\",'[1]FISCAL(M)'!$AZ283)","v":97541.016301088559},{"$f":"IF('[1]FISCAL(M)'!$BJ283=\"\",\"\",'[1]FISCAL(M)'!$BJ283)","v":46982.620207756103},{"$f":"IF('[1]FISCAL(M)'!$BT283=\"\",\"\",'[1]FISCAL(M)'!$BT283)","v":50558.396093332463},{"$f":"IF('[2]MONE(M)'!$AO283=\"\",\"\",'[2]MONE(M)'!$AO283)","v":11704337.732396938},{"$f":"IF('[3]MONE(M)'!$AO283=\"\",\"\",'[3]MONE(M)'!$AO283)","v":9306.8159702901212},{"$f":"IF('[4]MONE(M)'!$AO283=\"\",\"\",'[4]MONE(M)'!$AO283)","v":127363.9832840014},{"$f":"+'[5]MONE(M)'!$AO283","v":178852.90932677305},{"$f":"IF('[6]MONE(M)'!$AO283=\"\",\"\",'[6]MONE(M)'!$AO283)","v":62159.201039669999},{"$f":"IF('[7]MONE(M)'!$AO283=\"\",\"\",'[7]MONE(M)'!$AO283)","v":501876.99538866},{"$f":"IF('[8]MONE(M)'!$AO283=\"\",\"\",'[8]MONE(M)'!$AO283)","v":30342.233829719997},13.513257349732054,4.403518472460255,38.730837846143771,17.602361812441501,27.270744586671157,5.8773749637774486,14.256218205175596,{"$f":"IF('[1]FISCAL(M)'!$K283=\"\",\"\",'[1]FISCAL(M)'!$K283)","v":-6656.6488060137144},{"$f":"+'[1]REAL(A)'!$AO$32","v":208321.52269328738},-3.1953725759840594,{"$f":"IF('[1]FISCAL(M)'!$L283=\"\",\"\",'[1]FISCAL(M)'!$L283)","v":-7160.6103380737159},{"$f":"+'[1]REAL(A)'!$AP$32","v":248751.25969328737},-2.8786227442236134,97813.559961173029,{"$f":"'[1]Gráfico REM'!BG277","v":18784.59912825621},{"$f":"'[1]Gráfico REM'!BH277","v":73617.725147930498},{"$f":"'[1]Gráfico REM'!BI277","v":5411.2356849863218},10.974085839450609,-5.9031406774343491,16.193216789250631,12.270194420817869,147805.60699931305,{"$f":"'[1]Gráfico REM'!BK277","v":20439.329237156209},{"$f":"'[1]Gráfico REM'!BL277","v":103959.9589776505},{"$f":"'[1]Gráfico REM'!BM277","v":23406.318784506326},10.984913666353812,-3.4625506121179206,15.621121872994625,5.9611074765828942]
[2012,"noviembre","2012-noviembre",{"$f":"IF('[1]REAL IPC(M)'!$AL284=\"\",\"\",+'[1]REAL IPC(M)'!$AL284)","v":3.6162815236686185},{"$f":"IF('[1]REAL IPC(M)'!$BE284=\"\",\"\",+'[1]REAL IPC(M)'!$BE284)","v":4.4278415425753392},{"$f":"IF('[1]REAL IPC(M)'!$AM284=\"\",\"\",+'[1]REAL IPC(M)'!$AM284)","v":3.7137576998680588},{"$f":"IF('[1]REAL IPC(M)'!$BI284=\"\",\"\",+'[1]REAL IPC(M)'!$BI284)","v":4.4762700304187719},{"$f":"IF('[1]REAL IMAE(M)'!BJ284=\"\",\"\",'[1]REAL IMAE(M)'!BJ284)","v":3.4257826535295299},{"$f":"IF('[1]REAL IMAE(M)'!BK284=\"\",\"\",'[1]REAL IMAE(M)'!BK284)","v":3.9511193927314503},{"$f":"IF('[1]REAL IMAE(M)'!BN284=\"\",\"\",'[1]REAL IMAE(M)'!BN284)","v":4.1437300103962516},{"$f":"IF('[1]REAL IMAE(M)'!BO284=\"\",\"\",'[1]REAL IMAE(M)'!BO284)","v":4.5574492585915838},{"$f":"IF('[1]EXT RIN(M)'!$K284=\"\",\"\",'[1]EXT RIN(M)'!$K284)","v":22954.47374048892},"",{"$f":"IF('[1]EXT RIN(M)'!$L284=\"\",\"\",'[1]EXT RIN(M)'!$L284)","v":25060.578619708918},"",{"$f":"IF('[1]MONE(M)CARD'!EG284=\"\",\"\",'[1]MONE(M)CARD'!EG284)","v":24321.429441883021},{"$f":"IF('[1]MONE(M)CARD'!EK284=\"\",\"\",'[1]MONE(M)CARD'!EK284)","v":41050.068164628101},{"$f":"IF('[1]MONE(M)CARD'!EP284=\"\",\"\",'[1]MONE(M)CARD'!EP284)","v":22939.941700677155},{"$f":"IF('[1]MONE(M)CARD'!ES284=\"\",\"\",'[1]MONE(M)CARD'!ES284)","v":5.9537844455214373},{"$f":"IF('[1]MONE(M)CARD'!EV284=\"\",\"\",'[1]MONE(M)CARD'!EV284)","v":8.4366245133634656},{"$f":"IF('[1]MONE(M)CARD'!EZ284=\"\",\"\",'[1]MONE(M)CARD'!EZ284)","v":8.2413275926616514},{"$f":"IF('[1]MONE(M)CAPARD'!FC284=\"\",\"\",'[1]MONE(M)CAPARD'!FC284)","v":31215.63715496302},{"$f":"IF('[1]MONE(M)CAPARD'!FG284=\"\",\"\",'[1]MONE(M)CAPARD'!FG284)","v":63370.793138108107},{"$f":"IF('[1]MONE(M)CAPARD'!FL284=\"\",\"\",'[1]MONE(M)CAPARD'!FL284)","v":22939.941700677155},{"$f":"IF('[1]MONE(M)CAPARD'!FO284=\"\",\"\",'[1]MONE(M)CAPARD'!FO284)","v":7.7889622868422048},{"$f":"IF('[1]MONE(M)CAPARD'!FR284=\"\",\"\",'[1]MONE(M)CAPARD'!FR284)","v":9.5785816015534699},{"$f":"IF('[1]MONE(M)CAPARD'!FV284=\"\",\"\",'[1]MONE(M)CAPARD'!FV284)","v":9.204490258444963},{"$f":"IF('[1]MONE(M)CARD'!FV284=\"\",\"\",'[1]MONE(M)CARD'!FV284)","v":991.57732870855534},{"$f":"IF('[1]MONE(M)CARD'!GD284=\"\",\"\",'[1]MONE(M)CARD'!GD284)","v":86.609482333183024},{"$f":"IF('[1]MONE(M)CARD'!GE284=\"\",\"\",'[1]MONE(M)CARD'!GE284)","v":6841.4347900009634},8.9683659347259415,{"$f":"IF('[9]II.2.Balance OSD-Activos'!J142=\"\",\"\",'[9]II.2.Balance OSD-Activos'!J142)","v":170.73917146405631},{"$f":"IF('[9]II.2.Balance OSD-Activos'!N142=\"\",\"\",'[9]II.2.Balance OSD-Activos'!N142)","v":482.04155512686123},{"$f":"IF('[9]II.2.Balance OSD-Activos'!R142=\"\",\"\",'[9]II.2.Balance OSD-Activos'!R142)","v":33685.822586520357},{"$f":"IF('[9]II.2.Balance OSD-Activos'!S142=\"\",\"\",'[9]II.2.Balance OSD-Activos'!S142)","v":37116.464267462681},33856.561757984411,71455.067580573959,-0.18585055227108294,18.972217838183258,9.2256374317299041,19.08807259979821,12.244454950993443,15.312622645998598,-1.2390006769352979,{"$f":"IF('[1]MONE(M)CAPARD'!GS284=\"\",\"\",'[1]MONE(M)CAPARD'!GS284)","v":13395.678948848743},{"$f":"IF('[1]MONE(M)CARD'!HA284=\"\",\"\",'[1]MONE(M)CAPARD'!HA284)","v":7461.5721065909629},{"$f":"IF('[1]MONE(M)CAPARD'!HB284=\"\",\"\",'[1]MONE(M)CAPARD'!HB284)","v":5934.10684225778},"n.d.",{"$f":"IF('[10]II.2.Balance OSD-Activos'!J142=\"\",\"\",'[10]II.2.Balance OSD-Activos'!J142)","v":976.76516917405615},{"$f":"IF('[10]II.2.Balance OSD-Activos'!N142=\"\",\"\",'[10]II.2.Balance OSD-Activos'!N142)","v":872.03403293686119},{"$f":"IF('[10]II.2.Balance OSD-Activos'!R142=\"\",\"\",'[10]II.2.Balance OSD-Activos'!R142)","v":50213.752000390348},{"$f":"IF('[10]II.2.Balance OSD-Activos'!S142=\"\",\"\",'[10]II.2.Balance OSD-Activos'!S142)","v":49694.900229742685},51190.517169564402,101757.45143224395,19.530158009617395,17.858532184329935,11.900815726376845,17.826478941823165,12.584676159021214,15.171238759795402,-0.71290675517825441,{"$f":"IF('[1]MONE(M)CAPARD'!AS284=\"\",\"\",'[1]MONE(M)CAPARD'!AS284)","v":5},{"$f":"IF('[1]MONE(M)CAPARD'!AT284=\"\",\"\",'[1]MONE(M)CAPARD'!AT284)","v":"n.a."},{"$f":"IF('[1]MONE(M)CAPARD'!AU284=\"\",\"\",'[1]MONE(M)CAPARD'!AU284)","v":5},{"$f":"IF('[1]MONE(M)CAPARD'!AV284=\"\",\"\",'[1]MONE(M)CAPARD'!AV284)","v":7},{"$f":"IF('[1]MONE(M)CAPARD'!AW284=\"\",\"\",'[1]MONE(M)CAPARD'!AW284)","v":"n.a."},{"$f":"IF('[1]MONE(M)CAPARD'!AX284=\"\",\"\",'[1]MONE(M)CAPARD'!AX284)","v":5},{"$f":"IF('[1]MONE(M)CAPARD'!AY284=\"\",\"\",'[1]MONE(M)CAPARD'!AY284)","v":"n.a."},{"$f":"IF('[1]FISCAL(M)'!$K284=\"\",\"\",'[1]FISCAL(M)'!$K284)","v":-7463.3339811715305},{"$f":"IF('[1]FISCAL(M)'!$L284=\"\",\"\",'[1]FISCAL(M)'!$L284)","v":-8340.4978043515293},{"$f":"IF('[1]FISCAL(M)'!$AY284=\"\",\"\",'[1]FISCAL(M)'!$AY284)","v":84503.86335321072},{"$f":"IF('[1]FISCAL(M)'!$BI284=\"\",\"\",'[1]FISCAL(M)'!$BI284)","v":43475.336768676862},{"$f":"IF('[1]FISCAL(M)'!$BS284=\"\",\"\",'[1]FISCAL(M)'!$BS284)","v":41028.526584533858},{"$f":"IF('[1]FISCAL(M)'!$AZ284=\"\",\"\",'[1]FISCAL(M)'!$AZ284)","v":98963.600566230714},{"$f":"IF('[1]FISCAL(M)'!$BJ284=\"\",\"\",'[1]FISCAL(M)'!$BJ284)","v":47134.772078476861},{"$f":"IF('[1]FISCAL(M)'!$BT284=\"\",\"\",'[1]FISCAL(M)'!$BT284)","v":51828.828487753861},{"$f":"IF('[2]MONE(M)'!$AO284=\"\",\"\",'[2]MONE(M)'!$AO284)","v":11782941.795400169},{"$f":"IF('[3]MONE(M)'!$AO284=\"\",\"\",'[3]MONE(M)'!$AO284)","v":9403.6370155900022},{"$f":"IF('[4]MONE(M)'!$AO284=\"\",\"\",'[4]MONE(M)'!$AO284)","v":129533.56495994948},{"$f":"+'[5]MONE(M)'!$AO284","v":182105.83214406844},{"$f":"IF('[6]MONE(M)'!$AO284=\"\",\"\",'[6]MONE(M)'!$AO284)","v":64092.04351090001},{"$f":"IF('[7]MONE(M)'!$AO284=\"\",\"\",'[7]MONE(M)'!$AO284)","v":512239.56744278001},{"$f":"IF('[8]MONE(M)'!$AO284=\"\",\"\",'[8]MONE(M)'!$AO284)","v":30717.344848149995},13.685649982366144,4.5378708740040352,37.898275065483247,17.171558684633293,25.636888853021354,5.9303229719078088,14.616660632069657,{"$f":"IF('[1]FISCAL(M)'!$K284=\"\",\"\",'[1]FISCAL(M)'!$K284)","v":-7463.3339811715305},{"$f":"+'[1]REAL(A)'!$AO$32","v":208321.52269328738},-3.5826034125911357,{"$f":"IF('[1]FISCAL(M)'!$L284=\"\",\"\",'[1]FISCAL(M)'!$L284)","v":-8340.4978043515293},{"$f":"+'[1]REAL(A)'!$AP$32","v":248751.25969328737},-3.3529469618105412,98521.8970935447,{"$f":"'[1]Gráfico REM'!BG278","v":18717.467236477736},{"$f":"'[1]Gráfico REM'!BH278","v":74332.495543904035},{"$f":"'[1]Gráfico REM'!BI278","v":5471.9343131629266},10.430519036729869,-5.1298072102597843,15.065122550794285,11.986149392621503,149462.44133939469,{"$f":"'[1]Gráfico REM'!BK278","v":20405.108473167737},{"$f":"'[1]Gráfico REM'!BL278","v":105049.84039205403},{"$f":"'[1]Gráfico REM'!BM278","v":24007.492474172926},11.01612555066378,-2.94551277791677,14.933626349880447,8.1103750559313958]
[2012,"diciembre","2012-diciembre",{"$f":"IF('[1]REAL IPC(M)'!$AL285=\"\",\"\",+'[1]REAL IPC(M)'!$AL285)","v":3.8099304914016585},{"$f":"IF('[1]REAL IPC(M)'!$BE285=\"\",\"\",+'[1]REAL IPC(M)'!$BE285)","v":4.3724626825592638},{"$f":"IF('[1]REAL IPC(M)'!$AM285=\"\",\"\",+'[1]REAL IPC(M)'!$AM285)","v":3.900937605127397},{"$f":"IF('[1]REAL IPC(M)'!$BI285=\"\",\"\",+'[1]REAL IPC(M)'!$BI285)","v":4.4168211586770756},{"$f":"IF('[1]REAL IMAE(M)'!BJ285=\"\",\"\",'[1]REAL IMAE(M)'!BJ285)","v":3.3528727266066927},{"$f":"IF('[1]REAL IMAE(M)'!BK285=\"\",\"\",'[1]REAL IMAE(M)'!BK285)","v":3.9663095014361271},{"$f":"IF('[1]REAL IMAE(M)'!BN285=\"\",\"\",'[1]REAL IMAE(M)'!BN285)","v":4.1096349912465469},{"$f":"IF('[1]REAL IMAE(M)'!BO285=\"\",\"\",'[1]REAL IMAE(M)'!BO285)","v":4.5575936498718939},{"$f":"IF('[1]EXT RIN(M)'!$K285=\"\",\"\",'[1]EXT RIN(M)'!$K285)","v":24222.216760591709},24222.216760591709,{"$f":"IF('[1]EXT RIN(M)'!$L285=\"\",\"\",'[1]EXT RIN(M)'!$L285)","v":26640.773070751711},26640.773070751711,{"$f":"IF('[1]MONE(M)CARD'!EG285=\"\",\"\",'[1]MONE(M)CARD'!EG285)","v":25947.864539128721},{"$f":"IF('[1]MONE(M)CARD'!EK285=\"\",\"\",'[1]MONE(M)CARD'!EK285)","v":40932.812783652662},{"$f":"IF('[1]MONE(M)CARD'!EP285=\"\",\"\",'[1]MONE(M)CARD'!EP285)","v":22829.320543231806},{"$f":"IF('[1]MONE(M)CARD'!ES285=\"\",\"\",'[1]MONE(M)CARD'!ES285)","v":6.0109273847794409},{"$f":"IF('[1]MONE(M)CARD'!EV285=\"\",\"\",'[1]MONE(M)CARD'!EV285)","v":7.4085109049445652},{"$f":"IF('[1]MONE(M)CARD'!EZ285=\"\",\"\",'[1]MONE(M)CARD'!EZ285)","v":6.7694140069701092},{"$f":"IF('[1]MONE(M)CAPARD'!FC285=\"\",\"\",'[1]MONE(M)CAPARD'!FC285)","v":33017.10404165872},{"$f":"IF('[1]MONE(M)CAPARD'!FG285=\"\",\"\",'[1]MONE(M)CAPARD'!FG285)","v":63083.440668592666},{"$f":"IF('[1]MONE(M)CAPARD'!FL285=\"\",\"\",'[1]MONE(M)CAPARD'!FL285)","v":22829.320543231806},{"$f":"IF('[1]MONE(M)CAPARD'!FO285=\"\",\"\",'[1]MONE(M)CAPARD'!FO285)","v":7.5270163308797544},{"$f":"IF('[1]MONE(M)CAPARD'!FR285=\"\",\"\",'[1]MONE(M)CAPARD'!FR285)","v":8.5341206320846972},{"$f":"IF('[1]MONE(M)CAPARD'!FV285=\"\",\"\",'[1]MONE(M)CAPARD'!FV285)","v":7.8252679990189256},{"$f":"IF('[1]MONE(M)CARD'!FV285=\"\",\"\",'[1]MONE(M)CARD'!FV285)","v":788.87714469537786},{"$f":"IF('[1]MONE(M)CARD'!GD285=\"\",\"\",'[1]MONE(M)CARD'!GD285)","v":73.356155637949513},{"$f":"IF('[1]MONE(M)CARD'!GE285=\"\",\"\",'[1]MONE(M)CARD'!GE285)","v":6303.4638901078333},-7.0689342942209628,{"$f":"IF('[9]II.2.Balance OSD-Activos'!J143=\"\",\"\",'[9]II.2.Balance OSD-Activos'!J143)","v":175.21448136386198},{"$f":"IF('[9]II.2.Balance OSD-Activos'!N143=\"\",\"\",'[9]II.2.Balance OSD-Activos'!N143)","v":540.29311571850235},{"$f":"IF('[9]II.2.Balance OSD-Activos'!R143=\"\",\"\",'[9]II.2.Balance OSD-Activos'!R143)","v":34474.964233047562},{"$f":"IF('[9]II.2.Balance OSD-Activos'!S143=\"\",\"\",'[9]II.2.Balance OSD-Activos'!S143)","v":36939.227073373237},34650.178714411421,72129.698903503158,-0.1724731432417248,19.698391321450572,16.471243942889792,19.819607479495161,11.32429972200686,15.235253494951785,-7.73691510468133E-2,{"$f":"IF('[1]MONE(M)CAPARD'!GS285=\"\",\"\",'[1]MONE(M)CAPARD'!GS285)","v":13516.550576644242},{"$f":"IF('[1]MONE(M)CARD'!HA285=\"\",\"\",'[1]MONE(M)CAPARD'!HA285)","v":6914.5387421178339},{"$f":"IF('[1]MONE(M)CAPARD'!HB285=\"\",\"\",'[1]MONE(M)CAPARD'!HB285)","v":6602.0118345264082},"n.d.",{"$f":"IF('[10]II.2.Balance OSD-Activos'!J143=\"\",\"\",'[10]II.2.Balance OSD-Activos'!J143)","v":980.3696243538617},{"$f":"IF('[10]II.2.Balance OSD-Activos'!N143=\"\",\"\",'[10]II.2.Balance OSD-Activos'!N143)","v":917.23777068850211},{"$f":"IF('[10]II.2.Balance OSD-Activos'!R143=\"\",\"\",'[10]II.2.Balance OSD-Activos'!R143)","v":50665.414741617569},{"$f":"IF('[10]II.2.Balance OSD-Activos'!S143=\"\",\"\",'[10]II.2.Balance OSD-Activos'!S143)","v":49688.587301833235},51645.784365971434,102251.60943849318,21.621338620754017,18.846846685367268,12.858221690415439,18.794408466542567,11.795746816769427,15.259384098984906,8.8145339189503957E-2,{"$f":"IF('[1]MONE(M)CAPARD'!AS285=\"\",\"\",'[1]MONE(M)CAPARD'!AS285)","v":5},{"$f":"IF('[1]MONE(M)CAPARD'!AT285=\"\",\"\",'[1]MONE(M)CAPARD'!AT285)","v":"n.a."},{"$f":"IF('[1]MONE(M)CAPARD'!AU285=\"\",\"\",'[1]MONE(M)CAPARD'!AU285)","v":5},{"$f":"IF('[1]MONE(M)CAPARD'!AV285=\"\",\"\",'[1]MONE(M)CAPARD'!AV285)","v":7},{"$f":"IF('[1]MONE(M)CAPARD'!AW285=\"\",\"\",'[1]MONE(M)CAPARD'!AW285)","v":"n.a."},{"$f":"IF('[1]MONE(M)CAPARD'!AX285=\"\",\"\",'[1]MONE(M)CAPARD'!AX285)","v":5},{"$f":"IF('[1]MONE(M)CAPARD'!AY285=\"\",\"\",'[1]MONE(M)CAPARD'!AY285)","v":"n.a."},{"$f":"IF('[1]FISCAL(M)'!$K285=\"\",\"\",'[1]FISCAL(M)'!$K285)","v":-8707.6701324988298},{"$f":"IF('[1]FISCAL(M)'!$L285=\"\",\"\",'[1]FISCAL(M)'!$L285)","v":-9829.6770428688305},{"$f":"IF('[1]FISCAL(M)'!$AY285=\"\",\"\",'[1]FISCAL(M)'!$AY285)","v":86197.729152050655},{"$f":"IF('[1]FISCAL(M)'!$BI285=\"\",\"\",'[1]FISCAL(M)'!$BI285)","v":44433.144911554955},{"$f":"IF('[1]FISCAL(M)'!$BS285=\"\",\"\",'[1]FISCAL(M)'!$BS285)","v":41764.584240495693},{"$f":"IF('[1]FISCAL(M)'!$AZ285=\"\",\"\",'[1]FISCAL(M)'!$AZ285)","v":100398.69967453065},{"$f":"IF('[1]FISCAL(M)'!$BJ285=\"\",\"\",'[1]FISCAL(M)'!$BJ285)","v":47851.714232914965},{"$f":"IF('[1]FISCAL(M)'!$BT285=\"\",\"\",'[1]FISCAL(M)'!$BT285)","v":52546.985441615689},{"$f":"IF('[2]MONE(M)'!$AO285=\"\",\"\",'[2]MONE(M)'!$AO285)","v":11971531.492709562},{"$f":"IF('[3]MONE(M)'!$AO285=\"\",\"\",'[3]MONE(M)'!$AO285)","v":9465.4515203300016},{"$f":"IF('[4]MONE(M)'!$AO285=\"\",\"\",'[4]MONE(M)'!$AO285)","v":132826.68233067147},{"$f":"+'[5]MONE(M)'!$AO285","v":184805.87526401476},{"$f":"IF('[6]MONE(M)'!$AO285=\"\",\"\",'[6]MONE(M)'!$AO285)","v":66318.660793639996},{"$f":"IF('[7]MONE(M)'!$AO285=\"\",\"\",'[7]MONE(M)'!$AO285)","v":517987.74201143003},{"$f":"IF('[8]MONE(M)'!$AO285=\"\",\"\",'[8]MONE(M)'!$AO285)","v":30558.021913370001},14.049232257194166,3.5380271026113297,41.109297639245867,16.879082829856749,26.286194155104383,5.8899808902095563,15.211570560887466,{"$f":"IF('[1]FISCAL(M)'!$K285=\"\",\"\",'[1]FISCAL(M)'!$K285)","v":-8707.6701324988298},{"$f":"+'[1]REAL(A)'!$AO$32","v":208321.52269328738},-4.1799186276682363,{"$f":"IF('[1]FISCAL(M)'!$L285=\"\",\"\",'[1]FISCAL(M)'!$L285)","v":-9829.6770428688305},{"$f":"+'[1]REAL(A)'!$AP$32","v":248751.25969328737},-3.9516089506396526,99305.478421086678,{"$f":"'[1]Gráfico REM'!BG279","v":18704.708861375297},{"$f":"'[1]Gráfico REM'!BH279","v":74990.737682188148},{"$f":"'[1]Gráfico REM'!BI279","v":5610.0318775232299},10.935940064228355,-5.2272712434521029,15.586683439052852,14.459635627020795,150883.20897709668,{"$f":"'[1]Gráfico REM'!BK279","v":20476.394304265297},{"$f":"'[1]Gráfico REM'!BL279","v":105548.75959555815},{"$f":"'[1]Gráfico REM'!BM279","v":24858.055077273231},11.738362421556371,-3.1170863154388218,15.477831391925134,10.501626202053149]
[2013,"enero","2013-enero",{"$f":"IF('[1]REAL IPC(M)'!$AL286=\"\",\"\",+'[1]REAL IPC(M)'!$AL286)","v":4.4706454423725672},{"$f":"IF('[1]REAL IPC(M)'!$BE286=\"\",\"\",+'[1]REAL IPC(M)'!$BE286)","v":4.3164209084596283},{"$f":"IF('[1]REAL IPC(M)'!$AM286=\"\",\"\",+'[1]REAL IPC(M)'!$AM286)","v":4.4950690670786386},{"$f":"IF('[1]REAL IPC(M)'!$BI286=\"\",\"\",+'[1]REAL IPC(M)'!$BI286)","v":4.3561905500739018},{"$f":"IF('[1]REAL IMAE(M)'!BJ286=\"\",\"\",'[1]REAL IMAE(M)'!BJ286)","v":3.2489267977841463},{"$f":"IF('[1]REAL IMAE(M)'!BK286=\"\",\"\",'[1]REAL IMAE(M)'!BK286)","v":3.9834274952631477},{"$f":"IF('[1]REAL IMAE(M)'!BN286=\"\",\"\",'[1]REAL IMAE(M)'!BN286)","v":3.5027763886265273},{"$f":"IF('[1]REAL IMAE(M)'!BO286=\"\",\"\",'[1]REAL IMAE(M)'!BO286)","v":4.5587253337152189},{"$f":"IF('[1]EXT RIN(M)'!$K286=\"\",\"\",'[1]EXT RIN(M)'!$K286)","v":23785.550960329252},"",{"$f":"IF('[1]EXT RIN(M)'!$L286=\"\",\"\",'[1]EXT RIN(M)'!$L286)","v":26376.386333479251},"",{"$f":"IF('[1]MONE(M)CARD'!EG286=\"\",\"\",'[1]MONE(M)CARD'!EG286)","v":25375.412573301044},{"$f":"IF('[1]MONE(M)CARD'!EK286=\"\",\"\",'[1]MONE(M)CARD'!EK286)","v":41525.086977449493},{"$f":"IF('[1]MONE(M)CARD'!EP286=\"\",\"\",'[1]MONE(M)CARD'!EP286)","v":23218.413544207317},{"$f":"IF('[1]MONE(M)CARD'!ES286=\"\",\"\",'[1]MONE(M)CARD'!ES286)","v":5.0504156366026232},{"$f":"IF('[1]MONE(M)CARD'!EV286=\"\",\"\",'[1]MONE(M)CARD'!EV286)","v":7.3451632706936332},{"$f":"IF('[1]MONE(M)CARD'!EZ286=\"\",\"\",'[1]MONE(M)CARD'!EZ286)","v":6.9161801151698121},{"$f":"IF('[1]MONE(M)CAPARD'!FC286=\"\",\"\",'[1]MONE(M)CAPARD'!FC286)","v":32273.301768631041},{"$f":"IF('[1]MONE(M)CAPARD'!FG286=\"\",\"\",'[1]MONE(M)CAPARD'!FG286)","v":63883.698401479509},{"$f":"IF('[1]MONE(M)CAPARD'!FL286=\"\",\"\",'[1]MONE(M)CAPARD'!FL286)","v":23218.413544207317},{"$f":"IF('[1]MONE(M)CAPARD'!FO286=\"\",\"\",'[1]MONE(M)CAPARD'!FO286)","v":6.6008378444062821},{"$f":"IF('[1]MONE(M)CAPARD'!FR286=\"\",\"\",'[1]MONE(M)CAPARD'!FR286)","v":8.6061873394543973},{"$f":"IF('[1]MONE(M)CAPARD'!FV286=\"\",\"\",'[1]MONE(M)CAPARD'!FV286)","v":8.0282978109559977},{"$f":"IF('[1]MONE(M)CARD'!FV286=\"\",\"\",'[1]MONE(M)CARD'!FV286)","v":1024.9679829169734},{"$f":"IF('[1]MONE(M)CARD'!GD286=\"\",\"\",'[1]MONE(M)CARD'!GD286)","v":73.113681158428051},{"$f":"IF('[1]MONE(M)CARD'!GE286=\"\",\"\",'[1]MONE(M)CARD'!GE286)","v":6820.6302841836041},7.5655983655967596,{"$f":"IF('[9]II.2.Balance OSD-Activos'!J144=\"\",\"\",'[9]II.2.Balance OSD-Activos'!J144)","v":176.9086413334511},{"$f":"IF('[9]II.2.Balance OSD-Activos'!N144=\"\",\"\",'[9]II.2.Balance OSD-Activos'!N144)","v":567.99533306791227},{"$f":"IF('[9]II.2.Balance OSD-Activos'!R144=\"\",\"\",'[9]II.2.Balance OSD-Activos'!R144)","v":34705.566095524744},{"$f":"IF('[9]II.2.Balance OSD-Activos'!S144=\"\",\"\",'[9]II.2.Balance OSD-Activos'!S144)","v":37210.7671893433},34882.474736858196,72661.237259269401,7.3431932705881442,20.28518819354521,35.241327177646767,20.359158219402218,11.18305350722455,15.541041026233437,0.30578753128165204,{"$f":"IF('[1]MONE(M)CAPARD'!GS286=\"\",\"\",'[1]MONE(M)CAPARD'!GS286)","v":13879.41591104595},{"$f":"IF('[1]MONE(M)CARD'!HA286=\"\",\"\",'[1]MONE(M)CAPARD'!HA286)","v":7420.7068050536045},{"$f":"IF('[1]MONE(M)CAPARD'!HB286=\"\",\"\",'[1]MONE(M)CAPARD'!HB286)","v":6458.709105992345},"n.d.",{"$f":"IF('[10]II.2.Balance OSD-Activos'!J144=\"\",\"\",'[10]II.2.Balance OSD-Activos'!J144)","v":1085.7948584034509},{"$f":"IF('[10]II.2.Balance OSD-Activos'!N144=\"\",\"\",'[10]II.2.Balance OSD-Activos'!N144)","v":935.83018018791222},{"$f":"IF('[10]II.2.Balance OSD-Activos'!R144=\"\",\"\",'[10]II.2.Balance OSD-Activos'!R144)","v":50990.670180654735},{"$f":"IF('[10]II.2.Balance OSD-Activos'!S144=\"\",\"\",'[10]II.2.Balance OSD-Activos'!S144)","v":50050.5263484233},52076.465039058188,103062.82156766939,243.83745637364115,20.80250597268045,24.991471640522022,19.156637827364452,11.729835865401771,16.253523607428754,0.99413950844384757,{"$f":"IF('[1]MONE(M)CAPARD'!AS286=\"\",\"\",'[1]MONE(M)CAPARD'!AS286)","v":5},{"$f":"IF('[1]MONE(M)CAPARD'!AT286=\"\",\"\",'[1]MONE(M)CAPARD'!AT286)","v":"n.a."},{"$f":"IF('[1]MONE(M)CAPARD'!AU286=\"\",\"\",'[1]MONE(M)CAPARD'!AU286)","v":5},{"$f":"IF('[1]MONE(M)CAPARD'!AV286=\"\",\"\",'[1]MONE(M)CAPARD'!AV286)","v":7},{"$f":"IF('[1]MONE(M)CAPARD'!AW286=\"\",\"\",'[1]MONE(M)CAPARD'!AW286)","v":"n.a."},{"$f":"IF('[1]MONE(M)CAPARD'!AX286=\"\",\"\",'[1]MONE(M)CAPARD'!AX286)","v":5},{"$f":"IF('[1]MONE(M)CAPARD'!AY286=\"\",\"\",'[1]MONE(M)CAPARD'!AY286)","v":"n.a."},{"$f":"IF('[1]FISCAL(M)'!$K286=\"\",\"\",'[1]FISCAL(M)'!$K286)","v":-125.8875386061642},{"$f":"IF('[1]FISCAL(M)'!$L286=\"\",\"\",'[1]FISCAL(M)'!$L286)","v":-275.12151224616423},{"$f":"IF('[1]FISCAL(M)'!$AY286=\"\",\"\",'[1]FISCAL(M)'!$AY286)","v":86992.217089094745},{"$f":"IF('[1]FISCAL(M)'!$BI286=\"\",\"\",'[1]FISCAL(M)'!$BI286)","v":45345.01175797914},{"$f":"IF('[1]FISCAL(M)'!$BS286=\"\",\"\",'[1]FISCAL(M)'!$BS286)","v":41647.205331115598},{"$f":"IF('[1]FISCAL(M)'!$AZ286=\"\",\"\",'[1]FISCAL(M)'!$AZ286)","v":101148.38374626475},{"$f":"IF('[1]FISCAL(M)'!$BJ286=\"\",\"\",'[1]FISCAL(M)'!$BJ286)","v":48759.041757979146},{"$f":"IF('[1]FISCAL(M)'!$BT286=\"\",\"\",'[1]FISCAL(M)'!$BT286)","v":52389.341988285596},{"$f":"IF('[2]MONE(M)'!$AO286=\"\",\"\",'[2]MONE(M)'!$AO286)","v":12088018.892800894},{"$f":"IF('[3]MONE(M)'!$AO286=\"\",\"\",'[3]MONE(M)'!$AO286)","v":9494.2356777800014},{"$f":"IF('[4]MONE(M)'!$AO286=\"\",\"\",'[4]MONE(M)'!$AO286)","v":132670.58000179299},{"$f":"+'[5]MONE(M)'!$AO286","v":186311.15240360459},{"$f":"IF('[6]MONE(M)'!$AO286=\"\",\"\",'[6]MONE(M)'!$AO286)","v":67235.440435662706},{"$f":"IF('[7]MONE(M)'!$AO286=\"\",\"\",'[7]MONE(M)'!$AO286)","v":524643.84401137999},{"$f":"IF('[8]MONE(M)'!$AO286=\"\",\"\",'[8]MONE(M)'!$AO286)","v":30887.485873059995},14.398525332226786,3.9942376645738076,40.64299583443762,15.448290728615998,25.747361922451905,6.6944211394347031,19.130349014659508,{"$f":"IF('[1]FISCAL(M)'!$K286=\"\",\"\",'[1]FISCAL(M)'!$K286)","v":-125.8875386061642},{"$f":"+'[1]REAL(A)'!$AO$33","v":218144.23305243065},-5.7708396341565132E-2,{"$f":"IF('[1]FISCAL(M)'!$L286=\"\",\"\",'[1]FISCAL(M)'!$L286)","v":-275.12151224616423},{"$f":"+'[1]REAL(A)'!$AP$33","v":263744.22305243067},-0.10431375863405047,101009.96009906451,{"$f":"'[1]Gráfico REM'!BG280","v":19485.020714639944},{"$f":"'[1]Gráfico REM'!BH280","v":75768.409216585685},{"$f":"'[1]Gráfico REM'!BI280","v":5756.5301678388823},12.437694317838277,-0.20497656170708201,15.448108443167508,22.963308535388528,153669.9994836745,{"$f":"'[1]Gráfico REM'!BK280","v":21339.998864629946},{"$f":"'[1]Gráfico REM'!BL280","v":106655.89508964568},{"$f":"'[1]Gráfico REM'!BM280","v":25674.105529398879},13.920596510708005,1.9274936976663826,16.490856230818341,14.624526393935188]
[2013,"febrero","2013-febrero",{"$f":"IF('[1]REAL IPC(M)'!$AL287=\"\",\"\",+'[1]REAL IPC(M)'!$AL287)","v":4.6535853774746672},{"$f":"IF('[1]REAL IPC(M)'!$BE287=\"\",\"\",+'[1]REAL IPC(M)'!$BE287)","v":4.2595776098879101},{"$f":"IF('[1]REAL IPC(M)'!$AM287=\"\",\"\",+'[1]REAL IPC(M)'!$AM287)","v":4.6452652105907211},{"$f":"IF('[1]REAL IPC(M)'!$BI287=\"\",\"\",+'[1]REAL IPC(M)'!$BI287)","v":4.2942698236461352},{"$f":"IF('[1]REAL IMAE(M)'!BJ287=\"\",\"\",'[1]REAL IMAE(M)'!BJ287)","v":3.3180080872985185},{"$f":"IF('[1]REAL IMAE(M)'!BK287=\"\",\"\",'[1]REAL IMAE(M)'!BK287)","v":4.0025139291030465},{"$f":"IF('[1]REAL IMAE(M)'!BN287=\"\",\"\",'[1]REAL IMAE(M)'!BN287)","v":3.1805911851344071},{"$f":"IF('[1]REAL IMAE(M)'!BO287=\"\",\"\",'[1]REAL IMAE(M)'!BO287)","v":4.5610364023746852},{"$f":"IF('[1]EXT RIN(M)'!$K287=\"\",\"\",'[1]EXT RIN(M)'!$K287)","v":24364.237688892488},"",{"$f":"IF('[1]EXT RIN(M)'!$L287=\"\",\"\",'[1]EXT RIN(M)'!$L287)","v":26922.061170992489},"",{"$f":"IF('[1]MONE(M)CARD'!EG287=\"\",\"\",'[1]MONE(M)CARD'!EG287)","v":25236.747580552845},{"$f":"IF('[1]MONE(M)CARD'!EK287=\"\",\"\",'[1]MONE(M)CARD'!EK287)","v":41925.091446727769},{"$f":"IF('[1]MONE(M)CARD'!EP287=\"\",\"\",'[1]MONE(M)CARD'!EP287)","v":22957.255350601074},{"$f":"IF('[1]MONE(M)CARD'!ES287=\"\",\"\",'[1]MONE(M)CARD'!ES287)","v":4.3822788336606244},{"$f":"IF('[1]MONE(M)CARD'!EV287=\"\",\"\",'[1]MONE(M)CARD'!EV287)","v":6.7419879857694598},{"$f":"IF('[1]MONE(M)CARD'!EZ287=\"\",\"\",'[1]MONE(M)CARD'!EZ287)","v":6.2253531276164287},{"$f":"IF('[1]MONE(M)CAPARD'!FC287=\"\",\"\",'[1]MONE(M)CAPARD'!FC287)","v":32212.245797282842},{"$f":"IF('[1]MONE(M)CAPARD'!FG287=\"\",\"\",'[1]MONE(M)CAPARD'!FG287)","v":64301.149067367762},{"$f":"IF('[1]MONE(M)CAPARD'!FL287=\"\",\"\",'[1]MONE(M)CAPARD'!FL287)","v":22957.255350601074},{"$f":"IF('[1]MONE(M)CAPARD'!FO287=\"\",\"\",'[1]MONE(M)CAPARD'!FO287)","v":5.8166312580944179},{"$f":"IF('[1]MONE(M)CAPARD'!FR287=\"\",\"\",'[1]MONE(M)CAPARD'!FR287)","v":7.687485891845447},{"$f":"IF('[1]MONE(M)CAPARD'!FV287=\"\",\"\",'[1]MONE(M)CAPARD'!FV287)","v":7.1087469992599628},{"$f":"IF('[1]MONE(M)CARD'!FV287=\"\",\"\",'[1]MONE(M)CARD'!FV287)","v":1076.5820385780385},{"$f":"IF('[1]MONE(M)CARD'!GD287=\"\",\"\",'[1]MONE(M)CARD'!GD287)","v":85.895714821514716},{"$f":"IF('[1]MONE(M)CARD'!GE287=\"\",\"\",'[1]MONE(M)CARD'!GE287)","v":6804.4820282801275},0.2399032168455717,{"$f":"IF('[9]II.2.Balance OSD-Activos'!J145=\"\",\"\",'[9]II.2.Balance OSD-Activos'!J145)","v":176.21764982904307},{"$f":"IF('[9]II.2.Balance OSD-Activos'!N145=\"\",\"\",'[9]II.2.Balance OSD-Activos'!N145)","v":542.36376702150244},{"$f":"IF('[9]II.2.Balance OSD-Activos'!R145=\"\",\"\",'[9]II.2.Balance OSD-Activos'!R145)","v":34678.631214765162},{"$f":"IF('[9]II.2.Balance OSD-Activos'!S145=\"\",\"\",'[9]II.2.Balance OSD-Activos'!S145)","v":37423.92098232868},34854.848864594205,72821.133613944388,8.9787547191444439,18.794007641779476,27.286226068612308,18.848400321111836,11.09343645670493,14.762874550720785,-0.77816647551265206,{"$f":"IF('[1]MONE(M)CAPARD'!GS287=\"\",\"\",'[1]MONE(M)CAPARD'!GS287)","v":14420.576300706858},{"$f":"IF('[1]MONE(M)CARD'!HA287=\"\",\"\",'[1]MONE(M)CAPARD'!HA287)","v":7409.5377809901274},{"$f":"IF('[1]MONE(M)CAPARD'!HB287=\"\",\"\",'[1]MONE(M)CAPARD'!HB287)","v":7011.0385197167307},"n.d.",{"$f":"IF('[10]II.2.Balance OSD-Activos'!J145=\"\",\"\",'[10]II.2.Balance OSD-Activos'!J145)","v":1097.191236049043},{"$f":"IF('[10]II.2.Balance OSD-Activos'!N145=\"\",\"\",'[10]II.2.Balance OSD-Activos'!N145)","v":935.80982762150234},{"$f":"IF('[10]II.2.Balance OSD-Activos'!R145=\"\",\"\",'[10]II.2.Balance OSD-Activos'!R145)","v":51041.610957085155},{"$f":"IF('[10]II.2.Balance OSD-Activos'!S145=\"\",\"\",'[10]II.2.Balance OSD-Activos'!S145)","v":50345.012156788674},52138.802193134201,103419.62417754438,248.50901201991951,19.914249920716752,20.576603533666994,18.24700134446655,11.621855683682059,15.734505435517377,-0.51901817191137667,{"$f":"IF('[1]MONE(M)CAPARD'!AS287=\"\",\"\",'[1]MONE(M)CAPARD'!AS287)","v":5},{"$f":"IF('[1]MONE(M)CAPARD'!AT287=\"\",\"\",'[1]MONE(M)CAPARD'!AT287)","v":"n.a."},{"$f":"IF('[1]MONE(M)CAPARD'!AU287=\"\",\"\",'[1]MONE(M)CAPARD'!AU287)","v":5},{"$f":"IF('[1]MONE(M)CAPARD'!AV287=\"\",\"\",'[1]MONE(M)CAPARD'!AV287)","v":7},{"$f":"IF('[1]MONE(M)CAPARD'!AW287=\"\",\"\",'[1]MONE(M)CAPARD'!AW287)","v":"n.a."},{"$f":"IF('[1]MONE(M)CAPARD'!AX287=\"\",\"\",'[1]MONE(M)CAPARD'!AX287)","v":5},{"$f":"IF('[1]MONE(M)CAPARD'!AY287=\"\",\"\",'[1]MONE(M)CAPARD'!AY287)","v":"n.a."},{"$f":"IF('[1]FISCAL(M)'!$K287=\"\",\"\",'[1]FISCAL(M)'!$K287)","v":-612.91049589017325},{"$f":"IF('[1]FISCAL(M)'!$L287=\"\",\"\",'[1]FISCAL(M)'!$L287)","v":-1555.1617106901735},{"$f":"IF('[1]FISCAL(M)'!$AY287=\"\",\"\",'[1]FISCAL(M)'!$AY287)","v":87870.264394132493},{"$f":"IF('[1]FISCAL(M)'!$BI287=\"\",\"\",'[1]FISCAL(M)'!$BI287)","v":45637.49029008409},{"$f":"IF('[1]FISCAL(M)'!$BS287=\"\",\"\",'[1]FISCAL(M)'!$BS287)","v":42232.774104048411},{"$f":"IF('[1]FISCAL(M)'!$AZ287=\"\",\"\",'[1]FISCAL(M)'!$AZ287)","v":102129.97805937249},{"$f":"IF('[1]FISCAL(M)'!$BJ287=\"\",\"\",'[1]FISCAL(M)'!$BJ287)","v":49163.186190834094},{"$f":"IF('[1]FISCAL(M)'!$BT287=\"\",\"\",'[1]FISCAL(M)'!$BT287)","v":52966.791868538407},{"$f":"IF('[2]MONE(M)'!$AO287=\"\",\"\",'[2]MONE(M)'!$AO287)","v":12191646.071683703},{"$f":"IF('[3]MONE(M)'!$AO287=\"\",\"\",'[3]MONE(M)'!$AO287)","v":9528.9659244801187},{"$f":"IF('[4]MONE(M)'!$AO287=\"\",\"\",'[4]MONE(M)'!$AO287)","v":133399.00141158546},{"$f":"+'[5]MONE(M)'!$AO287","v":187241.11552109686},{"$f":"IF('[6]MONE(M)'!$AO287=\"\",\"\",'[6]MONE(M)'!$AO287)","v":67397.05495907327},{"$f":"IF('[7]MONE(M)'!$AO287=\"\",\"\",'[7]MONE(M)'!$AO287)","v":526596.78524873999},{"$f":"IF('[8]MONE(M)'!$AO287=\"\",\"\",'[8]MONE(M)'!$AO287)","v":31056.740394319993},12.952589264620773,5.7957128571072491,37.611295613252253,14.870383243426044,23.811493728583777,7.0563942613386388,19.166181768040214,{"$f":"IF('[1]FISCAL(M)'!$K287=\"\",\"\",'[1]FISCAL(M)'!$K287)","v":-612.91049589017325},{"$f":"+'[1]REAL(A)'!$AO$33","v":218144.23305243065},-0.28096571122412439,{"$f":"IF('[1]FISCAL(M)'!$L287=\"\",\"\",'[1]FISCAL(M)'!$L287)","v":-1555.1617106901735},{"$f":"+'[1]REAL(A)'!$AP$33","v":263744.22305243067},-0.58964768694896397,102243.43821360214,{"$f":"'[1]Gráfico REM'!BG281","v":20304.670047591706},{"$f":"'[1]Gráfico REM'!BH281","v":76116.976169063535},{"$f":"'[1]Gráfico REM'!BI281","v":5821.7919969469094},11.54021098845439,-0.4722315006606248,14.876158635740587,16.341512506764921,156528.70906406213,{"$f":"'[1]Gráfico REM'!BK281","v":22227.807834981708},{"$f":"'[1]Gráfico REM'!BL281","v":107173.71656338352},{"$f":"'[1]Gráfico REM'!BM281","v":27127.184665696906},14.594967557155192,2.1217370550419057,16.087198729609241,20.536989122137861]
[2013,"marzo","2013-marzo",{"$f":"IF('[1]REAL IPC(M)'!$AL288=\"\",\"\",+'[1]REAL IPC(M)'!$AL288)","v":4.7174339178158498},{"$f":"IF('[1]REAL IPC(M)'!$BE288=\"\",\"\",+'[1]REAL IPC(M)'!$BE288)","v":4.2017999309297727},{"$f":"IF('[1]REAL IPC(M)'!$AM288=\"\",\"\",+'[1]REAL IPC(M)'!$AM288)","v":4.6483053906746008},{"$f":"IF('[1]REAL IPC(M)'!$BI288=\"\",\"\",+'[1]REAL IPC(M)'!$BI288)","v":4.2309565123577864},{"$f":"IF('[1]REAL IMAE(M)'!BJ288=\"\",\"\",'[1]REAL IMAE(M)'!BJ288)","v":3.3391914832887837},{"$f":"IF('[1]REAL IMAE(M)'!BK288=\"\",\"\",'[1]REAL IMAE(M)'!BK288)","v":4.0235635501832068},{"$f":"IF('[1]REAL IMAE(M)'!BN288=\"\",\"\",'[1]REAL IMAE(M)'!BN288)","v":3.7420074691690619},{"$f":"IF('[1]REAL IMAE(M)'!BO288=\"\",\"\",'[1]REAL IMAE(M)'!BO288)","v":4.5646430655025716},{"$f":"IF('[1]EXT RIN(M)'!$K288=\"\",\"\",'[1]EXT RIN(M)'!$K288)","v":25494.450753308549},"",{"$f":"IF('[1]EXT RIN(M)'!$L288=\"\",\"\",'[1]EXT RIN(M)'!$L288)","v":27592.216851428548},"",{"$f":"IF('[1]MONE(M)CARD'!EG288=\"\",\"\",'[1]MONE(M)CARD'!EG288)","v":26002.426009283328},{"$f":"IF('[1]MONE(M)CARD'!EK288=\"\",\"\",'[1]MONE(M)CARD'!EK288)","v":41919.096779001804},{"$f":"IF('[1]MONE(M)CARD'!EP288=\"\",\"\",'[1]MONE(M)CARD'!EP288)","v":23429.806526054424},{"$f":"IF('[1]MONE(M)CARD'!ES288=\"\",\"\",'[1]MONE(M)CARD'!ES288)","v":7.6035956406867333},{"$f":"IF('[1]MONE(M)CARD'!EV288=\"\",\"\",'[1]MONE(M)CARD'!EV288)","v":6.5408724690720899},{"$f":"IF('[1]MONE(M)CARD'!EZ288=\"\",\"\",'[1]MONE(M)CARD'!EZ288)","v":5.978507815025691},{"$f":"IF('[1]MONE(M)CAPARD'!FC288=\"\",\"\",'[1]MONE(M)CAPARD'!FC288)","v":32909.277574213331},{"$f":"IF('[1]MONE(M)CAPARD'!FG288=\"\",\"\",'[1]MONE(M)CAPARD'!FG288)","v":64473.614564221811},{"$f":"IF('[1]MONE(M)CAPARD'!FL288=\"\",\"\",'[1]MONE(M)CAPARD'!FL288)","v":23429.806526054424},{"$f":"IF('[1]MONE(M)CAPARD'!FO288=\"\",\"\",'[1]MONE(M)CAPARD'!FO288)","v":7.6793548135994039},{"$f":"IF('[1]MONE(M)CAPARD'!FR288=\"\",\"\",'[1]MONE(M)CAPARD'!FR288)","v":7.3244278032915},{"$f":"IF('[1]MONE(M)CAPARD'!FV288=\"\",\"\",'[1]MONE(M)CAPARD'!FV288)","v":6.740749233913057},{"$f":"IF('[1]MONE(M)CARD'!FV288=\"\",\"\",'[1]MONE(M)CARD'!FV288)","v":1090.6882123147072},{"$f":"IF('[1]MONE(M)CARD'!GD288=\"\",\"\",'[1]MONE(M)CARD'!GD288)","v":102.87369887004716},{"$f":"IF('[1]MONE(M)CARD'!GE288=\"\",\"\",'[1]MONE(M)CARD'!GE288)","v":7326.1992866635192},12.351872533709972,{"$f":"IF('[9]II.2.Balance OSD-Activos'!J146=\"\",\"\",'[9]II.2.Balance OSD-Activos'!J146)","v":183.48045978401706},{"$f":"IF('[9]II.2.Balance OSD-Activos'!N146=\"\",\"\",'[9]II.2.Balance OSD-Activos'!N146)","v":560.86749029311841},{"$f":"IF('[9]II.2.Balance OSD-Activos'!R146=\"\",\"\",'[9]II.2.Balance OSD-Activos'!R146)","v":34836.328615554841},{"$f":"IF('[9]II.2.Balance OSD-Activos'!S146=\"\",\"\",'[9]II.2.Balance OSD-Activos'!S146)","v":37763.856946446547},35019.809075338861,73344.533512078517,11.965782255811996,17.725681480955547,30.543609784985758,17.75758774156062,11.066217333853977,14.28332734874893,-0.47954720197185452,{"$f":"IF('[1]MONE(M)CAPARD'!GS288=\"\",\"\",'[1]MONE(M)CAPARD'!GS288)","v":14286.136706778765},{"$f":"IF('[1]MONE(M)CARD'!HA288=\"\",\"\",'[1]MONE(M)CAPARD'!HA288)","v":7960.3368536035186},{"$f":"IF('[1]MONE(M)CAPARD'!HB288=\"\",\"\",'[1]MONE(M)CAPARD'!HB288)","v":6325.7998531752464},"n.d.",{"$f":"IF('[10]II.2.Balance OSD-Activos'!J146=\"\",\"\",'[10]II.2.Balance OSD-Activos'!J146)","v":1114.5909880340173},{"$f":"IF('[10]II.2.Balance OSD-Activos'!N146=\"\",\"\",'[10]II.2.Balance OSD-Activos'!N146)","v":964.06898406311859},{"$f":"IF('[10]II.2.Balance OSD-Activos'!R146=\"\",\"\",'[10]II.2.Balance OSD-Activos'!R146)","v":51387.311917664847},{"$f":"IF('[10]II.2.Balance OSD-Activos'!S146=\"\",\"\",'[10]II.2.Balance OSD-Activos'!S146)","v":50800.420204876544},52501.902905698866,104266.39209463852,250.97428760263963,19.250224262819728,23.084366476221451,17.56662199859904,11.605645914988049,15.431228502657902,-0.30327693285947532,{"$f":"IF('[1]MONE(M)CAPARD'!AS288=\"\",\"\",'[1]MONE(M)CAPARD'!AS288)","v":5},{"$f":"IF('[1]MONE(M)CAPARD'!AT288=\"\",\"\",'[1]MONE(M)CAPARD'!AT288)","v":"n.a."},{"$f":"IF('[1]MONE(M)CAPARD'!AU288=\"\",\"\",'[1]MONE(M)CAPARD'!AU288)","v":5},{"$f":"IF('[1]MONE(M)CAPARD'!AV288=\"\",\"\",'[1]MONE(M)CAPARD'!AV288)","v":7},{"$f":"IF('[1]MONE(M)CAPARD'!AW288=\"\",\"\",'[1]MONE(M)CAPARD'!AW288)","v":"n.a."},{"$f":"IF('[1]MONE(M)CAPARD'!AX288=\"\",\"\",'[1]MONE(M)CAPARD'!AX288)","v":5},{"$f":"IF('[1]MONE(M)CAPARD'!AY288=\"\",\"\",'[1]MONE(M)CAPARD'!AY288)","v":"n.a."},{"$f":"IF('[1]FISCAL(M)'!$K288=\"\",\"\",'[1]FISCAL(M)'!$K288)","v":-859.41015710433192},{"$f":"IF('[1]FISCAL(M)'!$L288=\"\",\"\",'[1]FISCAL(M)'!$L288)","v":-1972.5623193843321},{"$f":"IF('[1]FISCAL(M)'!$AY288=\"\",\"\",'[1]FISCAL(M)'!$AY288)","v":89270.255224999695},{"$f":"IF('[1]FISCAL(M)'!$BI288=\"\",\"\",'[1]FISCAL(M)'!$BI288)","v":46424.652658265586},{"$f":"IF('[1]FISCAL(M)'!$BS288=\"\",\"\",'[1]FISCAL(M)'!$BS288)","v":42845.602566734116},{"$f":"IF('[1]FISCAL(M)'!$AZ288=\"\",\"\",'[1]FISCAL(M)'!$AZ288)","v":104315.6093856197},{"$f":"IF('[1]FISCAL(M)'!$BJ288=\"\",\"\",'[1]FISCAL(M)'!$BJ288)","v":50449.284836895582},{"$f":"IF('[1]FISCAL(M)'!$BT288=\"\",\"\",'[1]FISCAL(M)'!$BT288)","v":53866.324548724107},{"$f":"IF('[2]MONE(M)'!$AO288=\"\",\"\",'[2]MONE(M)'!$AO288)","v":12222754.948980264},{"$f":"IF('[3]MONE(M)'!$AO288=\"\",\"\",'[3]MONE(M)'!$AO288)","v":9565.9889694901212},{"$f":"IF('[4]MONE(M)'!$AO288=\"\",\"\",'[4]MONE(M)'!$AO288)","v":133989.19945254573},{"$f":"+'[5]MONE(M)'!$AO288","v":189275.71298370665},{"$f":"IF('[6]MONE(M)'!$AO288=\"\",\"\",'[6]MONE(M)'!$AO288)","v":69031.301759118593},{"$f":"IF('[7]MONE(M)'!$AO288=\"\",\"\",'[7]MONE(M)'!$AO288)","v":527028.73258966999},{"$f":"IF('[8]MONE(M)'!$AO288=\"\",\"\",'[8]MONE(M)'!$AO288)","v":31378.984328330011},12.605333775988248,6.2132957534292155,35.670934207936014,14.789850088540767,27.521735274220195,7.1208658884623466,19.592131336681362,{"$f":"IF('[1]FISCAL(M)'!$K288=\"\",\"\",'[1]FISCAL(M)'!$K288)","v":-859.41015710433192},{"$f":"+'[1]REAL(A)'!$AO$33","v":218144.23305243065},-0.39396418831653185,{"$f":"IF('[1]FISCAL(M)'!$L288=\"\",\"\",'[1]FISCAL(M)'!$L288)","v":-1972.5623193843321},{"$f":"+'[1]REAL(A)'!$AP$33","v":263744.22305243067},-0.74790730828337404,103068.44549732763,{"$f":"'[1]Gráfico REM'!BG282","v":20615.500341427432},{"$f":"'[1]Gráfico REM'!BH282","v":76654.594426967466},{"$f":"'[1]Gráfico REM'!BI282","v":5798.3507289327345},11.054854892504039,-0.48096208478999314,14.520394622665989,12.411732143218845,158144.86741207764,{"$f":"'[1]Gráfico REM'!BK282","v":22339.757866267431},{"$f":"'[1]Gráfico REM'!BL282","v":108033.57875529748},{"$f":"'[1]Gráfico REM'!BM282","v":27771.530790512737},14.193413224883123,1.9659352099707261,15.948630163061672,18.651788411729918]
[2013,"abril","2013-abril",{"$f":"IF('[1]REAL IPC(M)'!$AL289=\"\",\"\",+'[1]REAL IPC(M)'!$AL289)","v":4.3882366642838955},{"$f":"IF('[1]REAL IPC(M)'!$BE289=\"\",\"\",+'[1]REAL IPC(M)'!$BE289)","v":4.1429827080336823},{"$f":"IF('[1]REAL IPC(M)'!$AM289=\"\",\"\",+'[1]REAL IPC(M)'!$AM289)","v":4.3131074963180804},{"$f":"IF('[1]REAL IPC(M)'!$BI289=\"\",\"\",+'[1]REAL IPC(M)'!$BI289)","v":4.1661751748645948},{"$f":"IF('[1]REAL IMAE(M)'!BJ289=\"\",\"\",'[1]REAL IMAE(M)'!BJ289)","v":3.3862956732566118},{"$f":"IF('[1]REAL IMAE(M)'!BK289=\"\",\"\",'[1]REAL IMAE(M)'!BK289)","v":4.0465345255114249},{"$f":"IF('[1]REAL IMAE(M)'!BN289=\"\",\"\",'[1]REAL IMAE(M)'!BN289)","v":4.1891026446600366},{"$f":"IF('[1]REAL IMAE(M)'!BO289=\"\",\"\",'[1]REAL IMAE(M)'!BO289)","v":4.5695635836533022},{"$f":"IF('[1]EXT RIN(M)'!$K289=\"\",\"\",'[1]EXT RIN(M)'!$K289)","v":27059.54053773659},"",{"$f":"IF('[1]EXT RIN(M)'!$L289=\"\",\"\",'[1]EXT RIN(M)'!$L289)","v":29922.541141676589},"",{"$f":"IF('[1]MONE(M)CARD'!EG289=\"\",\"\",'[1]MONE(M)CARD'!EG289)","v":25104.748173744923},{"$f":"IF('[1]MONE(M)CARD'!EK289=\"\",\"\",'[1]MONE(M)CARD'!EK289)","v":42479.03649587238},{"$f":"IF('[1]MONE(M)CARD'!EP289=\"\",\"\",'[1]MONE(M)CARD'!EP289)","v":24190.524420383808},{"$f":"IF('[1]MONE(M)CARD'!ES289=\"\",\"\",'[1]MONE(M)CARD'!ES289)","v":4.7009928340275398},{"$f":"IF('[1]MONE(M)CARD'!EV289=\"\",\"\",'[1]MONE(M)CARD'!EV289)","v":6.0031866422284752},{"$f":"IF('[1]MONE(M)CARD'!EZ289=\"\",\"\",'[1]MONE(M)CARD'!EZ289)","v":6.6636071974931932},{"$f":"IF('[1]MONE(M)CAPARD'!FC289=\"\",\"\",'[1]MONE(M)CAPARD'!FC289)","v":32328.779157594923},{"$f":"IF('[1]MONE(M)CAPARD'!FG289=\"\",\"\",'[1]MONE(M)CAPARD'!FG289)","v":65125.133879902394},{"$f":"IF('[1]MONE(M)CAPARD'!FL289=\"\",\"\",'[1]MONE(M)CAPARD'!FL289)","v":24190.524420383808},{"$f":"IF('[1]MONE(M)CAPARD'!FO289=\"\",\"\",'[1]MONE(M)CAPARD'!FO289)","v":6.4478325773503542},{"$f":"IF('[1]MONE(M)CAPARD'!FR289=\"\",\"\",'[1]MONE(M)CAPARD'!FR289)","v":7.1723442041526253},{"$f":"IF('[1]MONE(M)CAPARD'!FV289=\"\",\"\",'[1]MONE(M)CAPARD'!FV289)","v":7.4441161592233795},{"$f":"IF('[1]MONE(M)CARD'!FV289=\"\",\"\",'[1]MONE(M)CARD'!FV289)","v":1338.5706092840335},{"$f":"IF('[1]MONE(M)CARD'!GD289=\"\",\"\",'[1]MONE(M)CARD'!GD289)","v":212.66064487077176},{"$f":"IF('[1]MONE(M)CARD'!GE289=\"\",\"\",'[1]MONE(M)CARD'!GE289)","v":8664.2922710461989},30.686242714360557,{"$f":"IF('[9]II.2.Balance OSD-Activos'!J147=\"\",\"\",'[9]II.2.Balance OSD-Activos'!J147)","v":171.45814874556402},{"$f":"IF('[9]II.2.Balance OSD-Activos'!N147=\"\",\"\",'[9]II.2.Balance OSD-Activos'!N147)","v":578.80454624600134},{"$f":"IF('[9]II.2.Balance OSD-Activos'!R147=\"\",\"\",'[9]II.2.Balance OSD-Activos'!R147)","v":34938.366998766942},{"$f":"IF('[9]II.2.Balance OSD-Activos'!S147=\"\",\"\",'[9]II.2.Balance OSD-Activos'!S147)","v":38046.997851058288},35109.825147512507,73735.627544816787,-5.0763437329693346,17.137052666780829,31.911613806338025,17.271728404313148,10.824571285620399,{"$f":"IF(OR(AK282=\"\",AK270=\"\"),\"\",((AK282/AK270)-1)*100)","v":13.889902444387371},-0.39342490436155941,{"$f":"IF('[1]MONE(M)CAPARD'!GS289=\"\",\"\",'[1]MONE(M)CAPARD'!GS289)","v":14942.422259092371},{"$f":"IF('[1]MONE(M)CARD'!HA289=\"\",\"\",'[1]MONE(M)CAPARD'!HA289)","v":9309.832469716197},{"$f":"IF('[1]MONE(M)CAPARD'!HB289=\"\",\"\",'[1]MONE(M)CAPARD'!HB289)","v":5632.5897893761739},"n.d.",{"$f":"IF('[10]II.2.Balance OSD-Activos'!J147=\"\",\"\",'[10]II.2.Balance OSD-Activos'!J147)","v":1100.7629975655641},{"$f":"IF('[10]II.2.Balance OSD-Activos'!N147=\"\",\"\",'[10]II.2.Balance OSD-Activos'!N147)","v":947.85417123600143},{"$f":"IF('[10]II.2.Balance OSD-Activos'!R147=\"\",\"\",'[10]II.2.Balance OSD-Activos'!R147)","v":51665.728119336942},{"$f":"IF('[10]II.2.Balance OSD-Activos'!S147=\"\",\"\",'[10]II.2.Balance OSD-Activos'!S147)","v":51327.403640568285},52766.491116902507,105041.7489287068,183.42285493498505,18.39133070855301,18.055729812206177,16.940593981509402,11.723561001831984,15.033721193069116,-0.39750730958878577,{"$f":"IF('[1]MONE(M)CAPARD'!AS289=\"\",\"\",'[1]MONE(M)CAPARD'!AS289)","v":5},{"$f":"IF('[1]MONE(M)CAPARD'!AT289=\"\",\"\",'[1]MONE(M)CAPARD'!AT289)","v":"n.a."},{"$f":"IF('[1]MONE(M)CAPARD'!AU289=\"\",\"\",'[1]MONE(M)CAPARD'!AU289)","v":5.25},{"$f":"IF('[1]MONE(M)CAPARD'!AV289=\"\",\"\",'[1]MONE(M)CAPARD'!AV289)","v":7},{"$f":"IF('[1]MONE(M)CAPARD'!AW289=\"\",\"\",'[1]MONE(M)CAPARD'!AW289)","v":"n.a."},{"$f":"IF('[1]MONE(M)CAPARD'!AX289=\"\",\"\",'[1]MONE(M)CAPARD'!AX289)","v":5},{"$f":"IF('[1]MONE(M)CAPARD'!AY289=\"\",\"\",'[1]MONE(M)CAPARD'!AY289)","v":"n.a."},{"$f":"IF('[1]FISCAL(M)'!$K289=\"\",\"\",'[1]FISCAL(M)'!$K289)","v":-734.7293760926384},{"$f":"IF('[1]FISCAL(M)'!$L289=\"\",\"\",'[1]FISCAL(M)'!$L289)","v":-1136.5874541326391},{"$f":"IF('[1]FISCAL(M)'!$AY289=\"\",\"\",'[1]FISCAL(M)'!$AY289)","v":92526.510073356651},{"$f":"IF('[1]FISCAL(M)'!$BI289=\"\",\"\",'[1]FISCAL(M)'!$BI289)","v":47557.953773356647},{"$f":"IF('[1]FISCAL(M)'!$BS289=\"\",\"\",'[1]FISCAL(M)'!$BS289)","v":44968.556299999997},{"$f":"IF('[1]FISCAL(M)'!$AZ289=\"\",\"\",'[1]FISCAL(M)'!$AZ289)","v":108044.85435738665},{"$f":"IF('[1]FISCAL(M)'!$BJ289=\"\",\"\",'[1]FISCAL(M)'!$BJ289)","v":51087.366461826656},{"$f":"IF('[1]FISCAL(M)'!$BT289=\"\",\"\",'[1]FISCAL(M)'!$BT289)","v":56957.48789556},{"$f":"IF('[2]MONE(M)'!$AO289=\"\",\"\",'[2]MONE(M)'!$AO289)","v":12322039.081105549},{"$f":"IF('[3]MONE(M)'!$AO289=\"\",\"\",'[3]MONE(M)'!$AO289)","v":9592.0586392201403},{"$f":"IF('[4]MONE(M)'!$AO289=\"\",\"\",'[4]MONE(M)'!$AO289)","v":135454.25352682572},{"$f":"+'[5]MONE(M)'!$AO289","v":189944.42283914809},{"$f":"IF('[6]MONE(M)'!$AO289=\"\",\"\",'[6]MONE(M)'!$AO289)","v":69545.854347417218},{"$f":"IF('[7]MONE(M)'!$AO289=\"\",\"\",'[7]MONE(M)'!$AO289)","v":529715.02408700006},{"$f":"IF('[8]MONE(M)'!$AO289=\"\",\"\",'[8]MONE(M)'!$AO289)","v":31825.219003119993},12.822594625943996,5.3527616169467995,34.108020768899962,13.49322823449759,28.070876081166098,8.5420112477957666,18.851597996525136,{"$f":"IF('[1]FISCAL(M)'!$K289=\"\",\"\",'[1]FISCAL(M)'!$K289)","v":-734.7293760926384},{"$f":"+'[1]REAL(A)'!$AO$33","v":218144.23305243065},-0.33680898450157393,{"$f":"IF('[1]FISCAL(M)'!$L289=\"\",\"\",'[1]FISCAL(M)'!$L289)","v":-1136.5874541326391},{"$f":"+'[1]REAL(A)'!$AP$33","v":263744.22305243067},-0.43094307089588563,104282.28412517298,{"$f":"'[1]Gráfico REM'!BG283","v":21485.954685253106},{"$f":"'[1]Gráfico REM'!BH283","v":77089.336503256607},{"$f":"'[1]Gráfico REM'!BI283","v":5706.9929366632732},11.557386632178446,3.3376550470592292,14.237856395849558,9.6405758510118122,159654.38026549298,{"$f":"'[1]Gráfico REM'!BK283","v":23391.319287643106},{"$f":"'[1]Gráfico REM'!BL283","v":108914.55550637661},{"$f":"'[1]Gráfico REM'!BM283","v":27348.505471473276},14.814949885493455,5.6628668992083853,15.548540962810776,20.705276364563161]
[2013,"mayo ","2013-mayo ",{"$f":"IF('[1]REAL IPC(M)'!$AL290=\"\",\"\",+'[1]REAL IPC(M)'!$AL290)","v":4.4208823700343514},{"$f":"IF('[1]REAL IPC(M)'!$BE290=\"\",\"\",+'[1]REAL IPC(M)'!$BE290)","v":4.0830489670990122},{"$f":"IF('[1]REAL IPC(M)'!$AM290=\"\",\"\",+'[1]REAL IPC(M)'!$AM290)","v":4.3401896828144659},{"$f":"IF('[1]REAL IPC(M)'!$BI290=\"\",\"\",+'[1]REAL IPC(M)'!$BI290)","v":4.0998756148645121},{"$f":"IF('[1]REAL IMAE(M)'!BJ290=\"\",\"\",'[1]REAL IMAE(M)'!BJ290)","v":3.2049217799573704},{"$f":"IF('[1]REAL IMAE(M)'!BK290=\"\",\"\",'[1]REAL IMAE(M)'!BK290)","v":4.0713414127554914},{"$f":"IF('[1]REAL IMAE(M)'!BN290=\"\",\"\",'[1]REAL IMAE(M)'!BN290)","v":3.9760271310202988},{"$f":"IF('[1]REAL IMAE(M)'!BO290=\"\",\"\",'[1]REAL IMAE(M)'!BO290)","v":4.5757586369093994},{"$f":"IF('[1]EXT RIN(M)'!$K290=\"\",\"\",'[1]EXT RIN(M)'!$K290)","v":26830.963498782785},"",{"$f":"IF('[1]EXT RIN(M)'!$L290=\"\",\"\",'[1]EXT RIN(M)'!$L290)","v":29601.338524922787},"",{"$f":"IF('[1]MONE(M)CARD'!EG290=\"\",\"\",'[1]MONE(M)CARD'!EG290)","v":25143.243656943643},{"$f":"IF('[1]MONE(M)CARD'!EK290=\"\",\"\",'[1]MONE(M)CARD'!EK290)","v":42945.076194255395},{"$f":"IF('[1]MONE(M)CARD'!EP290=\"\",\"\",'[1]MONE(M)CARD'!EP290)","v":24754.677922077957},{"$f":"IF('[1]MONE(M)CARD'!ES290=\"\",\"\",'[1]MONE(M)CARD'!ES290)","v":6.6855880610604324},{"$f":"IF('[1]MONE(M)CARD'!EV290=\"\",\"\",'[1]MONE(M)CARD'!EV290)","v":6.7608873714163131},{"$f":"IF('[1]MONE(M)CARD'!EZ290=\"\",\"\",'[1]MONE(M)CARD'!EZ290)","v":7.2047173276499343},{"$f":"IF('[1]MONE(M)CAPARD'!FC290=\"\",\"\",'[1]MONE(M)CAPARD'!FC290)","v":32228.642167873644},{"$f":"IF('[1]MONE(M)CAPARD'!FG290=\"\",\"\",'[1]MONE(M)CAPARD'!FG290)","v":66014.068073485396},{"$f":"IF('[1]MONE(M)CAPARD'!FL290=\"\",\"\",'[1]MONE(M)CAPARD'!FL290)","v":24754.677922077957},{"$f":"IF('[1]MONE(M)CAPARD'!FO290=\"\",\"\",'[1]MONE(M)CAPARD'!FO290)","v":7.6987131108632978},{"$f":"IF('[1]MONE(M)CAPARD'!FR290=\"\",\"\",'[1]MONE(M)CAPARD'!FR290)","v":7.8861063961324973},{"$f":"IF('[1]MONE(M)CAPARD'!FV290=\"\",\"\",'[1]MONE(M)CAPARD'!FV290)","v":7.9980741404135358},{"$f":"IF('[1]MONE(M)CARD'!FV290=\"\",\"\",'[1]MONE(M)CARD'!FV290)","v":1274.6319880070753},{"$f":"IF('[1]MONE(M)CARD'!GD290=\"\",\"\",'[1]MONE(M)CARD'!GD290)","v":61.988387393946759},{"$f":"IF('[1]MONE(M)CARD'!GE290=\"\",\"\",'[1]MONE(M)CARD'!GE290)","v":8600.3460071878817},25.478886736656015,{"$f":"IF('[9]II.2.Balance OSD-Activos'!J148=\"\",\"\",'[9]II.2.Balance OSD-Activos'!J148)","v":173.35972422733136},{"$f":"IF('[9]II.2.Balance OSD-Activos'!N148=\"\",\"\",'[9]II.2.Balance OSD-Activos'!N148)","v":554.63510788943188},{"$f":"IF('[9]II.2.Balance OSD-Activos'!R148=\"\",\"\",'[9]II.2.Balance OSD-Activos'!R148)","v":35109.356331020274},{"$f":"IF('[9]II.2.Balance OSD-Activos'!S148=\"\",\"\",'[9]II.2.Balance OSD-Activos'!S148)","v":38379.714117816635},35282.716055247605,74217.06528095367,-0.2701611079162225,17.195128397496372,26.478264233731874,17.296557194976891,10.587807229012469,13.743195349667303,-0.14670709472006749,{"$f":"IF('[1]MONE(M)CAPARD'!GS290=\"\",\"\",'[1]MONE(M)CAPARD'!GS290)","v":15029.230882149626},{"$f":"IF('[1]MONE(M)CARD'!HA290=\"\",\"\",'[1]MONE(M)CAPARD'!HA290)","v":9248.1776651678811},{"$f":"IF('[1]MONE(M)CAPARD'!HB290=\"\",\"\",'[1]MONE(M)CAPARD'!HB290)","v":5781.0532169817452},"n.d.",{"$f":"IF('[10]II.2.Balance OSD-Activos'!J148=\"\",\"\",'[10]II.2.Balance OSD-Activos'!J148)","v":1100.1689046273314},{"$f":"IF('[10]II.2.Balance OSD-Activos'!N148=\"\",\"\",'[10]II.2.Balance OSD-Activos'!N148)","v":926.05622398943183},{"$f":"IF('[10]II.2.Balance OSD-Activos'!R148=\"\",\"\",'[10]II.2.Balance OSD-Activos'!R148)","v":52045.107533090282},{"$f":"IF('[10]II.2.Balance OSD-Activos'!S148=\"\",\"\",'[10]II.2.Balance OSD-Activos'!S148)","v":51822.658698566629},53145.276437717614,105893.99136027368,30.739951373619178,16.994359086992738,11.261175101004994,16.734920013586986,11.548451099437784,14.214071940251504,-0.81964925281761225,{"$f":"IF('[1]MONE(M)CAPARD'!AS290=\"\",\"\",'[1]MONE(M)CAPARD'!AS290)","v":5},{"$f":"IF('[1]MONE(M)CAPARD'!AT290=\"\",\"\",'[1]MONE(M)CAPARD'!AT290)","v":"n.a."},{"$f":"IF('[1]MONE(M)CAPARD'!AU290=\"\",\"\",'[1]MONE(M)CAPARD'!AU290)","v":5.25},{"$f":"IF('[1]MONE(M)CAPARD'!AV290=\"\",\"\",'[1]MONE(M)CAPARD'!AV290)","v":7},{"$f":"IF('[1]MONE(M)CAPARD'!AW290=\"\",\"\",'[1]MONE(M)CAPARD'!AW290)","v":"n.a."},{"$f":"IF('[1]MONE(M)CAPARD'!AX290=\"\",\"\",'[1]MONE(M)CAPARD'!AX290)","v":4.25},{"$f":"IF('[1]MONE(M)CAPARD'!AY290=\"\",\"\",'[1]MONE(M)CAPARD'!AY290)","v":"n.a."},{"$f":"IF('[1]FISCAL(M)'!$K290=\"\",\"\",'[1]FISCAL(M)'!$K290)","v":-1520.5133287999674},{"$f":"IF('[1]FISCAL(M)'!$L290=\"\",\"\",'[1]FISCAL(M)'!$L290)","v":-2235.3396366899674},{"$f":"IF('[1]FISCAL(M)'!$AY290=\"\",\"\",'[1]FISCAL(M)'!$AY290)","v":93506.504260116912},{"$f":"IF('[1]FISCAL(M)'!$BI290=\"\",\"\",'[1]FISCAL(M)'!$BI290)","v":47898.678818973851},{"$f":"IF('[1]FISCAL(M)'!$BS290=\"\",\"\",'[1]FISCAL(M)'!$BS290)","v":45607.825441143061},{"$f":"IF('[1]FISCAL(M)'!$AZ290=\"\",\"\",'[1]FISCAL(M)'!$AZ290)","v":108847.70485037692},{"$f":"IF('[1]FISCAL(M)'!$BJ290=\"\",\"\",'[1]FISCAL(M)'!$BJ290)","v":51280.253904063851},{"$f":"IF('[1]FISCAL(M)'!$BT290=\"\",\"\",'[1]FISCAL(M)'!$BT290)","v":57567.450946313067},{"$f":"IF('[2]MONE(M)'!$AO290=\"\",\"\",'[2]MONE(M)'!$AO290)","v":12527759.858086705},{"$f":"IF('[3]MONE(M)'!$AO290=\"\",\"\",'[3]MONE(M)'!$AO290)","v":9606.4954403901374},{"$f":"IF('[4]MONE(M)'!$AO290=\"\",\"\",'[4]MONE(M)'!$AO290)","v":136204.87675849444},{"$f":"+'[5]MONE(M)'!$AO290","v":190896.91385244398},{"$f":"IF('[6]MONE(M)'!$AO290=\"\",\"\",'[6]MONE(M)'!$AO290)","v":70241.341703639599},{"$f":"IF('[7]MONE(M)'!$AO290=\"\",\"\",'[7]MONE(M)'!$AO290)","v":540791.83832665998},{"$f":"IF('[8]MONE(M)'!$AO290=\"\",\"\",'[8]MONE(M)'!$AO290)","v":32157.871341670005},{"$f":"IF(BY283=\"\",\"\",((BY283/BY271)-1)*100)","v":13.616453016724407},5.7972161174515868,32.168513704561086,12.863888297372149,26.018404833293161,11.010717208040631,15.66496267460391,{"$f":"IF('[1]FISCAL(M)'!$K290=\"\",\"\",'[1]FISCAL(M)'!$K290)","v":-1520.5133287999674},{"$f":"+'[1]REAL(A)'!$AO$33","v":218144.23305243065},-0.6970220149869899,{"$f":"IF('[1]FISCAL(M)'!$L290=\"\",\"\",'[1]FISCAL(M)'!$L290)","v":-2235.3396366899674},{"$f":"+'[1]REAL(A)'!$AP$33","v":263744.22305243067},-0.84754070091825151,105469.28497734887,{"$f":"'[1]Gráfico REM'!BG284","v":21775.059068446077},{"$f":"'[1]Gráfico REM'!BH284","v":77844.541308953514},{"$f":"'[1]Gráfico REM'!BI284","v":5849.6845999492771},12.659894389297332,7.1288450570730522,14.392956205997542,11.608486982091026,160857.60038027886,{"$f":"'[1]Gráfico REM'!BK284","v":23629.239060706077},{"$f":"'[1]Gráfico REM'!BL284","v":110002.41265062352},{"$f":"'[1]Gráfico REM'!BM284","v":27225.948668949277},13.892632593506239,8.3732445033001923,14.761908608811725,15.462610998130222]
[2013,"junio ","2013-junio ",{"$f":"IF('[1]REAL IPC(M)'!$AL291=\"\",\"\",+'[1]REAL IPC(M)'!$AL291)","v":4.6637561896424984},{"$f":"IF('[1]REAL IPC(M)'!$BE291=\"\",\"\",+'[1]REAL IPC(M)'!$BE291)","v":4.0219406514719891},{"$f":"IF('[1]REAL IPC(M)'!$AM291=\"\",\"\",+'[1]REAL IPC(M)'!$AM291)","v":4.6038911475180466},{"$f":"IF('[1]REAL IPC(M)'!$BI291=\"\",\"\",+'[1]REAL IPC(M)'!$BI291)","v":4.0320221597177408},{"$f":"IF('[1]REAL IMAE(M)'!BJ291=\"\",\"\",'[1]REAL IMAE(M)'!BJ291)","v":3.0004370881329789},{"$f":"IF('[1]REAL IMAE(M)'!BK291=\"\",\"\",'[1]REAL IMAE(M)'!BK291)","v":4.0978592405376268},{"$f":"IF('[1]REAL IMAE(M)'!BN291=\"\",\"\",'[1]REAL IMAE(M)'!BN291)","v":3.7001221725112554},{"$f":"IF('[1]REAL IMAE(M)'!BO291=\"\",\"\",'[1]REAL IMAE(M)'!BO291)","v":4.5831625621343353},{"$f":"IF('[1]EXT RIN(M)'!$K291=\"\",\"\",'[1]EXT RIN(M)'!$K291)","v":26298.456872426334},"",{"$f":"IF('[1]EXT RIN(M)'!$L291=\"\",\"\",'[1]EXT RIN(M)'!$L291)","v":29088.922058286335},"",{"$f":"IF('[1]MONE(M)CARD'!EG291=\"\",\"\",'[1]MONE(M)CARD'!EG291)","v":25410.483303550016},{"$f":"IF('[1]MONE(M)CARD'!EK291=\"\",\"\",'[1]MONE(M)CARD'!EK291)","v":43161.646967987268},{"$f":"IF('[1]MONE(M)CARD'!EP291=\"\",\"\",'[1]MONE(M)CARD'!EP291)","v":24463.018806677865},{"$f":"IF('[1]MONE(M)CARD'!ES291=\"\",\"\",'[1]MONE(M)CARD'!ES291)","v":6.6588038058438714},{"$f":"IF('[1]MONE(M)CARD'!EV291=\"\",\"\",'[1]MONE(M)CARD'!EV291)","v":6.2874193514659948},{"$f":"IF('[1]MONE(M)CARD'!EZ291=\"\",\"\",'[1]MONE(M)CARD'!EZ291)","v":6.7451811204324752},{"$f":"IF('[1]MONE(M)CAPARD'!FC291=\"\",\"\",'[1]MONE(M)CAPARD'!FC291)","v":32370.918349410018},{"$f":"IF('[1]MONE(M)CAPARD'!FG291=\"\",\"\",'[1]MONE(M)CAPARD'!FG291)","v":66413.435888047272},{"$f":"IF('[1]MONE(M)CAPARD'!FL291=\"\",\"\",'[1]MONE(M)CAPARD'!FL291)","v":24463.018806677865},{"$f":"IF('[1]MONE(M)CAPARD'!FO291=\"\",\"\",'[1]MONE(M)CAPARD'!FO291)","v":6.8412393329252863},{"$f":"IF('[1]MONE(M)CAPARD'!FR291=\"\",\"\",'[1]MONE(M)CAPARD'!FR291)","v":7.1868102313650706},{"$f":"IF('[1]MONE(M)CAPARD'!FV291=\"\",\"\",'[1]MONE(M)CAPARD'!FV291)","v":7.3569659142125321},{"$f":"IF('[1]MONE(M)CARD'!FV291=\"\",\"\",'[1]MONE(M)CARD'!FV291)","v":1199.4018427766036},{"$f":"IF('[1]MONE(M)CARD'!GD291=\"\",\"\",'[1]MONE(M)CARD'!GD291)","v":116.15172000335764},{"$f":"IF('[1]MONE(M)CARD'!GE291=\"\",\"\",'[1]MONE(M)CARD'!GE291)","v":8575.6655766928034},33.323378453730058,{"$f":"IF('[9]II.2.Balance OSD-Activos'!J149=\"\",\"\",'[9]II.2.Balance OSD-Activos'!J149)","v":142.78692679554473},{"$f":"IF('[9]II.2.Balance OSD-Activos'!N149=\"\",\"\",'[9]II.2.Balance OSD-Activos'!N149)","v":588.6675285623204},{"$f":"IF('[9]II.2.Balance OSD-Activos'!R149=\"\",\"\",'[9]II.2.Balance OSD-Activos'!R149)","v":35422.263163449046},{"$f":"IF('[9]II.2.Balance OSD-Activos'!S149=\"\",\"\",'[9]II.2.Balance OSD-Activos'!S149)","v":38587.77025540296},35565.050090244593,74741.487874209881,-17.236079434944596,17.518335608580493,28.596354573234663,17.717596677678806,9.8822482173212869,13.522374536492631,-0.22082081317467228,{"$f":"IF('[1]MONE(M)CAPARD'!GS291=\"\",\"\",'[1]MONE(M)CAPARD'!GS291)","v":15038.927571320932},{"$f":"IF('[1]MONE(M)CARD'!HA291=\"\",\"\",'[1]MONE(M)CAPARD'!HA291)","v":9212.7497163228018},{"$f":"IF('[1]MONE(M)CAPARD'!HB291=\"\",\"\",'[1]MONE(M)CAPARD'!HB291)","v":5826.17785499813},"n.d.",{"$f":"IF('[10]II.2.Balance OSD-Activos'!J149=\"\",\"\",'[10]II.2.Balance OSD-Activos'!J149)","v":1083.3936344455444},{"$f":"IF('[10]II.2.Balance OSD-Activos'!N149=\"\",\"\",'[10]II.2.Balance OSD-Activos'!N149)","v":973.1471041923204},{"$f":"IF('[10]II.2.Balance OSD-Activos'!R149=\"\",\"\",'[10]II.2.Balance OSD-Activos'!R149)","v":52521.272683649047},{"$f":"IF('[10]II.2.Balance OSD-Activos'!S149=\"\",\"\",'[10]II.2.Balance OSD-Activos'!S149)","v":52224.401931042965},53604.666318094591,106802.21535332987,20.805947073158791,16.412098859593115,13.275113927402259,16.324825803384325,11.093706997323771,13.72129379753202,-0.49277814271948372,{"$f":"IF('[1]MONE(M)CAPARD'!AS291=\"\",\"\",'[1]MONE(M)CAPARD'!AS291)","v":4},{"$f":"IF('[1]MONE(M)CAPARD'!AT291=\"\",\"\",'[1]MONE(M)CAPARD'!AT291)","v":"n.a."},{"$f":"IF('[1]MONE(M)CAPARD'!AU291=\"\",\"\",'[1]MONE(M)CAPARD'!AU291)","v":5.25},{"$f":"IF('[1]MONE(M)CAPARD'!AV291=\"\",\"\",'[1]MONE(M)CAPARD'!AV291)","v":7},{"$f":"IF('[1]MONE(M)CAPARD'!AW291=\"\",\"\",'[1]MONE(M)CAPARD'!AW291)","v":"n.a."},{"$f":"IF('[1]MONE(M)CAPARD'!AX291=\"\",\"\",'[1]MONE(M)CAPARD'!AX291)","v":4.25},{"$f":"IF('[1]MONE(M)CAPARD'!AY291=\"\",\"\",'[1]MONE(M)CAPARD'!AY291)","v":"n.a."},{"$f":"IF('[1]FISCAL(M)'!$K291=\"\",\"\",'[1]FISCAL(M)'!$K291)","v":-2449.3076851474757},{"$f":"IF('[1]FISCAL(M)'!$L291=\"\",\"\",'[1]FISCAL(M)'!$L291)","v":-2925.5139329974754},{"$f":"IF('[1]FISCAL(M)'!$AY291=\"\",\"\",'[1]FISCAL(M)'!$AY291)","v":93621.858142077064},{"$f":"IF('[1]FISCAL(M)'!$BI291=\"\",\"\",'[1]FISCAL(M)'!$BI291)","v":48146.108591417928},{"$f":"IF('[1]FISCAL(M)'!$BS291=\"\",\"\",'[1]FISCAL(M)'!$BS291)","v":45475.749550659122},{"$f":"IF('[1]FISCAL(M)'!$AZ291=\"\",\"\",'[1]FISCAL(M)'!$AZ291)","v":109046.39882563706},{"$f":"IF('[1]FISCAL(M)'!$BJ291=\"\",\"\",'[1]FISCAL(M)'!$BJ291)","v":51518.210422687931},{"$f":"IF('[1]FISCAL(M)'!$BT291=\"\",\"\",'[1]FISCAL(M)'!$BT291)","v":57528.188402949134},{"$f":"IF('[2]MONE(M)'!$AO291=\"\",\"\",'[2]MONE(M)'!$AO291)","v":12627381.594313376},{"$f":"IF('[3]MONE(M)'!$AO291=\"\",\"\",'[3]MONE(M)'!$AO291)","v":9727.0155866901387},{"$f":"IF('[4]MONE(M)'!$AO291=\"\",\"\",'[4]MONE(M)'!$AO291)","v":137287.05585908607},{"$f":"+'[5]MONE(M)'!$AO291","v":191667.54271776177},{"$f":"IF('[6]MONE(M)'!$AO291=\"\",\"\",'[6]MONE(M)'!$AO291)","v":70875.445612273004},{"$f":"IF('[7]MONE(M)'!$AO291=\"\",\"\",'[7]MONE(M)'!$AO291)","v":552317.74049143994},{"$f":"IF('[8]MONE(M)'!$AO291=\"\",\"\",'[8]MONE(M)'!$AO291)","v":32525.451862620004},13.053926246137259,6.8273361372162,31.548010640737758,12.842162374245625,24.664378549513199,12.819155045584573,14.387020860572042,{"$f":"IF('[1]FISCAL(M)'!$K291=\"\",\"\",'[1]FISCAL(M)'!$K291)","v":-2449.3076851474757},{"$f":"+'[1]REAL(A)'!$AO$33","v":218144.23305243065},-1.1227927737877847,{"$f":"IF('[1]FISCAL(M)'!$L291=\"\",\"\",'[1]FISCAL(M)'!$L291)","v":-2925.5139329974754},{"$f":"+'[1]REAL(A)'!$AP$33","v":263744.22305243067},-1.1092238909118786,105989.12563318035,{"$f":"'[1]Gráfico REM'!BG285","v":21766.364999370933},{"$f":"'[1]Gráfico REM'!BH285","v":78336.640567578259},{"$f":"'[1]Gráfico REM'!BI285","v":5886.1200662311503},12.449094171388531,7.8261241443558616,13.968897321348761,10.360048226918984,161962.10623320035,{"$f":"'[1]Gráfico REM'!BK285","v":23641.052081390932},{"$f":"'[1]Gráfico REM'!BL285","v":110862.09243019826},{"$f":"'[1]Gráfico REM'!BM285","v":27458.961721611147},14.04287655849914,8.8921491919529139,14.09125197216785,18.672594313251032]
[2013,"julio","2013-julio",{"$f":"IF('[1]REAL IPC(M)'!$AL292=\"\",\"\",+'[1]REAL IPC(M)'!$AL292)","v":5.0105473265563916},{"$f":"IF('[1]REAL IPC(M)'!$BE292=\"\",\"\",+'[1]REAL IPC(M)'!$BE292)","v":3.9596205025120179},{"$f":"IF('[1]REAL IPC(M)'!$AM292=\"\",\"\",+'[1]REAL IPC(M)'!$AM292)","v":4.909461270197335},{"$f":"IF('[1]REAL IPC(M)'!$BI292=\"\",\"\",+'[1]REAL IPC(M)'!$BI292)","v":3.9625963236062711},{"$f":"IF('[1]REAL IMAE(M)'!BJ292=\"\",\"\",'[1]REAL IMAE(M)'!BJ292)","v":3.4795808082405566},{"$f":"IF('[1]REAL IMAE(M)'!BK292=\"\",\"\",'[1]REAL IMAE(M)'!BK292)","v":4.1259161247667375},{"$f":"IF('[1]REAL IMAE(M)'!BN292=\"\",\"\",'[1]REAL IMAE(M)'!BN292)","v":4.0339491094364188},{"$f":"IF('[1]REAL IMAE(M)'!BO292=\"\",\"\",'[1]REAL IMAE(M)'!BO292)","v":4.5916688234598046},{"$f":"IF('[1]EXT RIN(M)'!$K292=\"\",\"\",'[1]EXT RIN(M)'!$K292)","v":25259.959329278969},"",{"$f":"IF('[1]EXT RIN(M)'!$L292=\"\",\"\",'[1]EXT RIN(M)'!$L292)","v":27994.769473568969},"",{"$f":"IF('[1]MONE(M)CARD'!EG292=\"\",\"\",'[1]MONE(M)CARD'!EG292)","v":25178.252525773707},{"$f":"IF('[1]MONE(M)CARD'!EK292=\"\",\"\",'[1]MONE(M)CARD'!EK292)","v":43383.686805974146},{"$f":"IF('[1]MONE(M)CARD'!EP292=\"\",\"\",'[1]MONE(M)CARD'!EP292)","v":24770.715089932492},{"$f":"IF('[1]MONE(M)CARD'!ES292=\"\",\"\",'[1]MONE(M)CARD'!ES292)","v":7.0946048867662759},{"$f":"IF('[1]MONE(M)CARD'!EV292=\"\",\"\",'[1]MONE(M)CARD'!EV292)","v":6.0078298247222328},{"$f":"IF('[1]MONE(M)CARD'!EZ292=\"\",\"\",'[1]MONE(M)CARD'!EZ292)","v":6.7048611957289062},{"$f":"IF('[1]MONE(M)CAPARD'!FC292=\"\",\"\",'[1]MONE(M)CAPARD'!FC292)","v":32250.258717323708},{"$f":"IF('[1]MONE(M)CAPARD'!FG292=\"\",\"\",'[1]MONE(M)CAPARD'!FG292)","v":66806.965982754147},{"$f":"IF('[1]MONE(M)CAPARD'!FL292=\"\",\"\",'[1]MONE(M)CAPARD'!FL292)","v":24770.715089932477},{"$f":"IF('[1]MONE(M)CAPARD'!FO292=\"\",\"\",'[1]MONE(M)CAPARD'!FO292)","v":7.2506281212106893},{"$f":"IF('[1]MONE(M)CAPARD'!FR292=\"\",\"\",'[1]MONE(M)CAPARD'!FR292)","v":6.9619312989243731},{"$f":"IF('[1]MONE(M)CAPARD'!FV292=\"\",\"\",'[1]MONE(M)CAPARD'!FV292)","v":7.301808319575942},{"$f":"IF('[1]MONE(M)CARD'!FV292=\"\",\"\",'[1]MONE(M)CARD'!FV292)","v":1170.2560145547027},{"$f":"IF('[1]MONE(M)CARD'!GD292=\"\",\"\",'[1]MONE(M)CARD'!GD292)","v":73.77625663089222},{"$f":"IF('[1]MONE(M)CARD'!GE292=\"\",\"\",'[1]MONE(M)CARD'!GE292)","v":8323.5119474874373},30.563456711374638,{"$f":"IF('[9]II.2.Balance OSD-Activos'!J150=\"\",\"\",'[9]II.2.Balance OSD-Activos'!J150)","v":136.7076387158356},{"$f":"IF('[9]II.2.Balance OSD-Activos'!N150=\"\",\"\",'[9]II.2.Balance OSD-Activos'!N150)","v":614.35653000741945},{"$f":"IF('[9]II.2.Balance OSD-Activos'!R150=\"\",\"\",'[9]II.2.Balance OSD-Activos'!R150)","v":35737.281827689731},{"$f":"IF('[9]II.2.Balance OSD-Activos'!S150=\"\",\"\",'[9]II.2.Balance OSD-Activos'!S150)","v":38908.502949485075},35873.989466405568,75396.848945898062,-17.152427047666496,17.625695782709052,38.444559828488778,17.814885608687959,9.9600124464144457,13.675447686134579,0.15307314964194774,{"$f":"IF('[1]MONE(M)CAPARD'!GS292=\"\",\"\",'[1]MONE(M)CAPARD'!GS292)","v":15141.043160075311},{"$f":"IF('[1]MONE(M)CARD'!HA292=\"\",\"\",'[1]MONE(M)CAPARD'!HA292)","v":8954.3178921374365},{"$f":"IF('[1]MONE(M)CAPARD'!HB292=\"\",\"\",'[1]MONE(M)CAPARD'!HB292)","v":6186.7252679378744},"n.d.",{"$f":"IF('[10]II.2.Balance OSD-Activos'!J150=\"\",\"\",'[10]II.2.Balance OSD-Activos'!J150)","v":1104.6780191758355},{"$f":"IF('[10]II.2.Balance OSD-Activos'!N150=\"\",\"\",'[10]II.2.Balance OSD-Activos'!N150)","v":1004.9920014074194},{"$f":"IF('[10]II.2.Balance OSD-Activos'!R150=\"\",\"\",'[10]II.2.Balance OSD-Activos'!R150)","v":53155.517739809729},{"$f":"IF('[10]II.2.Balance OSD-Activos'!S150=\"\",\"\",'[10]II.2.Balance OSD-Activos'!S150)","v":52696.912958885077},54260.195758985566,107962.10071927807,23.971397462314314,16.523840325446471,19.315273293884982,16.378544669852559,11.125740994027034,13.849216920869246,0.12792312333722577,{"$f":"IF('[1]MONE(M)CAPARD'!AS292=\"\",\"\",'[1]MONE(M)CAPARD'!AS292)","v":4},{"$f":"IF('[1]MONE(M)CAPARD'!AT292=\"\",\"\",'[1]MONE(M)CAPARD'!AT292)","v":"n.a."},{"$f":"IF('[1]MONE(M)CAPARD'!AU292=\"\",\"\",'[1]MONE(M)CAPARD'!AU292)","v":5.25},{"$f":"IF('[1]MONE(M)CAPARD'!AV292=\"\",\"\",'[1]MONE(M)CAPARD'!AV292)","v":7},{"$f":"IF('[1]MONE(M)CAPARD'!AW292=\"\",\"\",'[1]MONE(M)CAPARD'!AW292)","v":"n.a."},{"$f":"IF('[1]MONE(M)CAPARD'!AX292=\"\",\"\",'[1]MONE(M)CAPARD'!AX292)","v":4.25},{"$f":"IF('[1]MONE(M)CAPARD'!AY292=\"\",\"\",'[1]MONE(M)CAPARD'!AY292)","v":"n.a."},{"$f":"IF('[1]FISCAL(M)'!$K292=\"\",\"\",'[1]FISCAL(M)'!$K292)","v":-3141.9639379187297},{"$f":"IF('[1]FISCAL(M)'!$L292=\"\",\"\",'[1]FISCAL(M)'!$L292)","v":-3973.4997734387307},{"$f":"IF('[1]FISCAL(M)'!$AY292=\"\",\"\",'[1]FISCAL(M)'!$AY292)","v":93461.408166098248},{"$f":"IF('[1]FISCAL(M)'!$BI292=\"\",\"\",'[1]FISCAL(M)'!$BI292)","v":48361.690089142576},{"$f":"IF('[1]FISCAL(M)'!$BS292=\"\",\"\",'[1]FISCAL(M)'!$BS292)","v":45099.718076955673},{"$f":"IF('[1]FISCAL(M)'!$AZ292=\"\",\"\",'[1]FISCAL(M)'!$AZ292)","v":108971.72312305824},{"$f":"IF('[1]FISCAL(M)'!$BJ292=\"\",\"\",'[1]FISCAL(M)'!$BJ292)","v":51802.109641642572},{"$f":"IF('[1]FISCAL(M)'!$BT292=\"\",\"\",'[1]FISCAL(M)'!$BT292)","v":57169.613481415669},{"$f":"IF('[2]MONE(M)'!$AO292=\"\",\"\",'[2]MONE(M)'!$AO292)","v":12702289.917784672},{"$f":"IF('[3]MONE(M)'!$AO292=\"\",\"\",'[3]MONE(M)'!$AO292)","v":9772.1998249500011},{"$f":"IF('[4]MONE(M)'!$AO292=\"\",\"\",'[4]MONE(M)'!$AO292)","v":139271.76641472339},{"$f":"+'[5]MONE(M)'!$AO292","v":193613.67906481031},{"$f":"IF('[6]MONE(M)'!$AO292=\"\",\"\",'[6]MONE(M)'!$AO292)","v":71281.678856350016},{"$f":"IF('[7]MONE(M)'!$AO292=\"\",\"\",'[7]MONE(M)'!$AO292)","v":555649.09522784001},{"$f":"IF('[8]MONE(M)'!$AO292=\"\",\"\",'[8]MONE(M)'!$AO292)","v":33073.522975320004},12.393023105225831,6.6889579238182728,30.741721841220084,13.483389296978142,23.05294918698193,13.846244309921673,14.568723072189972,{"$f":"IF('[1]FISCAL(M)'!$K292=\"\",\"\",'[1]FISCAL(M)'!$K292)","v":-3141.9639379187297},{"$f":"+'[1]REAL(A)'!$AO$33","v":218144.23305243065},-1.4403149209832944,{"$f":"IF('[1]FISCAL(M)'!$L292=\"\",\"\",'[1]FISCAL(M)'!$L292)","v":-3973.4997734387307},{"$f":"+'[1]REAL(A)'!$AP$33","v":263744.22305243067},-1.5065731971118186,106805.73451936942,{"$f":"'[1]Gráfico REM'!BG286","v":21955.928805048985},{"$f":"'[1]Gráfico REM'!BH286","v":78838.310032088542},{"$f":"'[1]Gráfico REM'!BI286","v":6011.4956822318863},12.840123062560593,8.5922353301754129,13.869032903162859,15.658561031453665,163882.13839745941,{"$f":"'[1]Gráfico REM'!BK286","v":23937.719448728985},{"$f":"'[1]Gráfico REM'!BL286","v":111911.83300740854},{"$f":"'[1]Gráfico REM'!BM286","v":28032.585941321882},15.046333749620832,10.27175138580969,14.074922465576712,23.834810561294152]
[2013,"agosto","2013-agosto",{"$f":"IF('[1]REAL IPC(M)'!$AL293=\"\",\"\",+'[1]REAL IPC(M)'!$AL293)","v":4.7215185804726723},{"$f":"IF('[1]REAL IPC(M)'!$BE293=\"\",\"\",+'[1]REAL IPC(M)'!$BE293)","v":3.8960920732697302},{"$f":"IF('[1]REAL IPC(M)'!$AM293=\"\",\"\",+'[1]REAL IPC(M)'!$AM293)","v":4.6273121579972987},{"$f":"IF('[1]REAL IPC(M)'!$BI293=\"\",\"\",+'[1]REAL IPC(M)'!$BI293)","v":3.8916203182289166},{"$f":"IF('[1]REAL IMAE(M)'!BJ293=\"\",\"\",'[1]REAL IMAE(M)'!BJ293)","v":4.2032052208013981},{"$f":"IF('[1]REAL IMAE(M)'!BK293=\"\",\"\",'[1]REAL IMAE(M)'!BK293)","v":4.1552757294558207},{"$f":"IF('[1]REAL IMAE(M)'!BN293=\"\",\"\",'[1]REAL IMAE(M)'!BN293)","v":4.7334210893998918},{"$f":"IF('[1]REAL IMAE(M)'!BO293=\"\",\"\",'[1]REAL IMAE(M)'!BO293)","v":4.6011112044973101},{"$f":"IF('[1]EXT RIN(M)'!$K293=\"\",\"\",'[1]EXT RIN(M)'!$K293)","v":25116.18261788338},"",{"$f":"IF('[1]EXT RIN(M)'!$L293=\"\",\"\",'[1]EXT RIN(M)'!$L293)","v":28009.111272093382},"",{"$f":"IF('[1]MONE(M)CARD'!EG293=\"\",\"\",'[1]MONE(M)CARD'!EG293)","v":25254.158748290778},{"$f":"IF('[1]MONE(M)CARD'!EK293=\"\",\"\",'[1]MONE(M)CARD'!EK293)","v":42865.918601929341},{"$f":"IF('[1]MONE(M)CARD'!EP293=\"\",\"\",'[1]MONE(M)CARD'!EP293)","v":24521.12421014659},{"$f":"IF('[1]MONE(M)CARD'!ES293=\"\",\"\",'[1]MONE(M)CARD'!ES293)","v":7.5147978085974065},{"$f":"IF('[1]MONE(M)CARD'!EV293=\"\",\"\",'[1]MONE(M)CARD'!EV293)","v":4.9671415888349779},{"$f":"IF('[1]MONE(M)CARD'!EZ293=\"\",\"\",'[1]MONE(M)CARD'!EZ293)","v":5.4192496650874},{"$f":"IF('[1]MONE(M)CAPARD'!FC293=\"\",\"\",'[1]MONE(M)CAPARD'!FC293)","v":32406.612810210783},{"$f":"IF('[1]MONE(M)CAPARD'!FG293=\"\",\"\",'[1]MONE(M)CAPARD'!FG293)","v":66411.178417089337},{"$f":"IF('[1]MONE(M)CAPARD'!FL293=\"\",\"\",'[1]MONE(M)CAPARD'!FL293)","v":24521.12421014659},{"$f":"IF('[1]MONE(M)CAPARD'!FO293=\"\",\"\",'[1]MONE(M)CAPARD'!FO293)","v":8.0582241916288275},{"$f":"IF('[1]MONE(M)CAPARD'!FR293=\"\",\"\",'[1]MONE(M)CAPARD'!FR293)","v":6.0110142076332806},{"$f":"IF('[1]MONE(M)CAPARD'!FV293=\"\",\"\",'[1]MONE(M)CAPARD'!FV293)","v":6.146475484074343},{"$f":"IF('[1]MONE(M)CARD'!FV293=\"\",\"\",'[1]MONE(M)CARD'!FV293)","v":1132.3012105182745},{"$f":"IF('[1]MONE(M)CARD'!GD293=\"\",\"\",'[1]MONE(M)CARD'!GD293)","v":85.673864013539713},{"$f":"IF('[1]MONE(M)CARD'!GE293=\"\",\"\",'[1]MONE(M)CARD'!GE293)","v":7944.8246595721293},23.064476943677992,{"$f":"IF('[9]II.2.Balance OSD-Activos'!J151=\"\",\"\",'[9]II.2.Balance OSD-Activos'!J151)","v":133.39160676228695},{"$f":"IF('[9]II.2.Balance OSD-Activos'!N151=\"\",\"\",'[9]II.2.Balance OSD-Activos'!N151)","v":638.55988240758563},{"$f":"IF('[9]II.2.Balance OSD-Activos'!R151=\"\",\"\",'[9]II.2.Balance OSD-Activos'!R151)","v":35970.122983742825},{"$f":"IF('[9]II.2.Balance OSD-Activos'!S151=\"\",\"\",'[9]II.2.Balance OSD-Activos'!S151)","v":38980.305469948624},36103.51459050511,75722.379942861327,-20.828706008439333,{"$f":"IF(OR(AJ286=\"\",AJ274=\"\"),\"\",((AJ286/AJ274)-1)*100)","v":10.341821592800438},42.693111674391339,10.503159971611019,8.8867077248901971,{"$f":"IF(OR(AK286=\"\",AK274=\"\"),\"\",((AK286/AK274)-1)*100)","v":9.7964212409187965},-3.8790264452157821,{"$f":"IF('[1]MONE(M)CAPARD'!GS293=\"\",\"\",'[1]MONE(M)CAPARD'!GS293)","v":14895.999433996707},{"$f":"IF('[1]MONE(M)CARD'!HA293=\"\",\"\",'[1]MONE(M)CAPARD'!HA293)","v":8649.0585270121283},{"$f":"IF('[1]MONE(M)CAPARD'!HB293=\"\",\"\",'[1]MONE(M)CAPARD'!HB293)","v":6246.9409069845788},"n.d.",{"$f":"IF('[10]II.2.Balance OSD-Activos'!J151=\"\",\"\",'[10]II.2.Balance OSD-Activos'!J151)","v":1102.4822965522872},{"$f":"IF('[10]II.2.Balance OSD-Activos'!N151=\"\",\"\",'[10]II.2.Balance OSD-Activos'!N151)","v":1029.5233540975858},{"$f":"IF('[10]II.2.Balance OSD-Activos'!R151=\"\",\"\",'[10]II.2.Balance OSD-Activos'!R151)","v":53530.200532042829},{"$f":"IF('[10]II.2.Balance OSD-Activos'!S151=\"\",\"\",'[10]II.2.Balance OSD-Activos'!S151)","v":52922.160106358628},54632.68282859512,108584.36628905134,{"$f":"IF(OR(AW286=\"\",AW274=\"\"),\"\",((AW286/AW274)-1)*100)","v":23.639205334921609},{"$f":"IF(OR(BA286=\"\",BA274=\"\"),\"\",((BA286/BA274)-1)*100)","v":11.18986855943338},21.398184397950047,10.959762379554228,10.301447632950577,{"$f":"IF(OR(BB286=\"\",BB274=\"\"),\"\",((BB286/BB274)-1)*100)","v":10.843114029418487},-3.0061028914507588,{"$f":"IF('[1]MONE(M)CAPARD'!AS293=\"\",\"\",'[1]MONE(M)CAPARD'!AS293)","v":4},{"$f":"IF('[1]MONE(M)CAPARD'!AT293=\"\",\"\",'[1]MONE(M)CAPARD'!AT293)","v":"n.a."},{"$f":"IF('[1]MONE(M)CAPARD'!AU293=\"\",\"\",'[1]MONE(M)CAPARD'!AU293)","v":5.25},{"$f":"IF('[1]MONE(M)CAPARD'!AV293=\"\",\"\",'[1]MONE(M)CAPARD'!AV293)","v":7},{"$f":"IF('[1]MONE(M)CAPARD'!AW293=\"\",\"\",'[1]MONE(M)CAPARD'!AW293)","v":"n.a."},{"$f":"IF('[1]MONE(M)CAPARD'!AX293=\"\",\"\",'[1]MONE(M)CAPARD'!AX293)","v":6.25},{"$f":"IF('[1]MONE(M)CAPARD'!AY293=\"\",\"\",'[1]MONE(M)CAPARD'!AY293)","v":"n.a."},{"$f":"IF('[1]FISCAL(M)'!$K293=\"\",\"\",'[1]FISCAL(M)'!$K293)","v":-3684.4880334785967},{"$f":"IF('[1]FISCAL(M)'!$L293=\"\",\"\",'[1]FISCAL(M)'!$L293)","v":-4768.3834651569578},{"$f":"IF('[1]FISCAL(M)'!$AY293=\"\",\"\",'[1]FISCAL(M)'!$AY293)","v":93232.740734048435},{"$f":"IF('[1]FISCAL(M)'!$BI293=\"\",\"\",'[1]FISCAL(M)'!$BI293)","v":48540.71779397098},{"$f":"IF('[1]FISCAL(M)'!$BS293=\"\",\"\",'[1]FISCAL(M)'!$BS293)","v":44692.022940077441},{"$f":"IF('[1]FISCAL(M)'!$AZ293=\"\",\"\",'[1]FISCAL(M)'!$AZ293)","v":108997.03414928843},{"$f":"IF('[1]FISCAL(M)'!$BJ293=\"\",\"\",'[1]FISCAL(M)'!$BJ293)","v":52142.561822510994},{"$f":"IF('[1]FISCAL(M)'!$BT293=\"\",\"\",'[1]FISCAL(M)'!$BT293)","v":56854.472326777439},{"$f":"IF('[2]MONE(M)'!$AO293=\"\",\"\",'[2]MONE(M)'!$AO293)","v":12851421.169613333},{"$f":"IF('[3]MONE(M)'!$AO293=\"\",\"\",'[3]MONE(M)'!$AO293)","v":9867.433120670139},{"$f":"IF('[4]MONE(M)'!$AO293=\"\",\"\",'[4]MONE(M)'!$AO293)","v":141398.62937413258},{"$f":"+'[5]MONE(M)'!$AO293","v":195914.97004054062},{"$f":"IF('[6]MONE(M)'!$AO293=\"\",\"\",'[6]MONE(M)'!$AO293)","v":72331.096404735537},{"$f":"IF('[7]MONE(M)'!$AO293=\"\",\"\",'[7]MONE(M)'!$AO293)","v":564716.33763188997},{"$f":"IF('[8]MONE(M)'!$AO293=\"\",\"\",'[8]MONE(M)'!$AO293)","v":33410.488901860008},12.790948493496735,7.4115240131139348,13.803025521758228,13.433317439676596,22.13501016312518,14.967281049158165,13.765231685726764,{"$f":"IF('[1]FISCAL(M)'!$K293=\"\",\"\",'[1]FISCAL(M)'!$K293)","v":-3684.4880334785967},{"$f":"+'[1]REAL(A)'!$AO$33","v":218144.23305243065},-1.6890146404159285,{"$f":"IF('[1]FISCAL(M)'!$L293=\"\",\"\",'[1]FISCAL(M)'!$L293)","v":-4768.3834651569578},{"$f":"+'[1]REAL(A)'!$AP$33","v":263744.22305243067},-1.807957501389152,{"$f":"+IF(OR(CT286=\"\",+CU286=\"\",+CV286=\"\"),\"\",(CT286+CU286+CV286))","v":106961.1978112386},{"$f":"'[1]Gráfico REM'!BG287","v":21794.95726345935},{"$f":"'[1]Gráfico REM'!BH287","v":79120.973343568461},{"$f":"'[1]Gráfico REM'!BI287","v":6045.2672042107906},{"$f":"IFERROR(+((CS286/CS274)-1)*100,\"\")","v":11.400153854182339},{"$f":"IFERROR(+((CT286/CT274)-1)*100,\"\")","v":15.412293141756606},10.215546452430125,13.135574043535581,{"$f":"+IF(OR(DB286=\"\",+DC286=\"\",+DD286=\"\"),\"\",(DB286+DC286+DD286))","v":163949.67532791861},{"$f":"'[1]Gráfico REM'!BK287","v":23901.409248269349},{"$f":"'[1]Gráfico REM'!BL287","v":112531.46224542847},{"$f":"'[1]Gráfico REM'!BM287","v":27516.803834220791},{"$f":"IFERROR(+((DA286/DA274)-1)*100,\"\")","v":13.498652968244373},{"$f":"IFERROR(+((DB286/DB274)-1)*100,\"\")","v":17.136173795047995},11.246108116985919,20.21034079227908]
[2013,"septiembre","2013-septiembre",{"$f":"IF('[1]REAL IPC(M)'!$AL294=\"\",\"\",+'[1]REAL IPC(M)'!$AL294)","v":4.5171034348246764},{"$f":"IF('[1]REAL IPC(M)'!$BE294=\"\",\"\",+'[1]REAL IPC(M)'!$BE294)","v":3.8314152643405652},{"$f":"IF('[1]REAL IPC(M)'!$AM294=\"\",\"\",+'[1]REAL IPC(M)'!$AM294)","v":4.446095255211957},{"$f":"IF('[1]REAL IPC(M)'!$BI294=\"\",\"\",+'[1]REAL IPC(M)'!$BI294)","v":3.8191743421105429},{"$f":"IF('[1]REAL IMAE(M)'!BJ294=\"\",\"\",'[1]REAL IMAE(M)'!BJ294)","v":4.7798822189921264},{"$f":"IF('[1]REAL IMAE(M)'!BK294=\"\",\"\",'[1]REAL IMAE(M)'!BK294)","v":4.1856683253884253},{"$f":"IF('[1]REAL IMAE(M)'!BN294=\"\",\"\",'[1]REAL IMAE(M)'!BN294)","v":5.4792678985454035},{"$f":"IF('[1]REAL IMAE(M)'!BO294=\"\",\"\",'[1]REAL IMAE(M)'!BO294)","v":4.6112868549517572},{"$f":"IF('[1]EXT RIN(M)'!$K294=\"\",\"\",'[1]EXT RIN(M)'!$K294)","v":24726.64213709188},"",{"$f":"IF('[1]EXT RIN(M)'!$L294=\"\",\"\",'[1]EXT RIN(M)'!$L294)","v":27152.135341421879},"",{"$f":"IF('[1]MONE(M)CARD'!EG294=\"\",\"\",'[1]MONE(M)CARD'!EG294)","v":25275.255221506181},{"$f":"IF('[1]MONE(M)CARD'!EK294=\"\",\"\",'[1]MONE(M)CARD'!EK294)","v":43492.813419893828},{"$f":"IF('[1]MONE(M)CARD'!EP294=\"\",\"\",'[1]MONE(M)CARD'!EP294)","v":24210.791365252095},{"$f":"IF('[1]MONE(M)CARD'!ES294=\"\",\"\",'[1]MONE(M)CARD'!ES294)","v":8.2447357188029322},{"$f":"IF('[1]MONE(M)CARD'!EV294=\"\",\"\",'[1]MONE(M)CARD'!EV294)","v":5.5589848035956013},{"$f":"IF('[1]MONE(M)CARD'!EZ294=\"\",\"\",'[1]MONE(M)CARD'!EZ294)","v":5.581629434679658},{"$f":"IF('[1]MONE(M)CAPARD'!FC294=\"\",\"\",'[1]MONE(M)CAPARD'!FC294)","v":32598.113360396179},{"$f":"IF('[1]MONE(M)CAPARD'!FG294=\"\",\"\",'[1]MONE(M)CAPARD'!FG294)","v":67154.002838373839},{"$f":"IF('[1]MONE(M)CAPARD'!FL294=\"\",\"\",'[1]MONE(M)CAPARD'!FL294)","v":24210.791365252095},{"$f":"IF('[1]MONE(M)CAPARD'!FO294=\"\",\"\",'[1]MONE(M)CAPARD'!FO294)","v":8.7432228989018377},{"$f":"IF('[1]MONE(M)CAPARD'!FR294=\"\",\"\",'[1]MONE(M)CAPARD'!FR294)","v":6.6693160624711423},{"$f":"IF('[1]MONE(M)CAPARD'!FV294=\"\",\"\",'[1]MONE(M)CAPARD'!FV294)","v":6.4679010718097008},{"$f":"IF('[1]MONE(M)CARD'!FV294=\"\",\"\",'[1]MONE(M)CARD'!FV294)","v":1141.0598593022096},{"$f":"IF('[1]MONE(M)CARD'!GD294=\"\",\"\",'[1]MONE(M)CARD'!GD294)","v":173.81801893659085},{"$f":"IF('[1]MONE(M)CARD'!GE294=\"\",\"\",'[1]MONE(M)CARD'!GE294)","v":8066.9889554640731},19.805540727244477,{"$f":"IF('[9]II.2.Balance OSD-Activos'!J152=\"\",\"\",'[9]II.2.Balance OSD-Activos'!J152)","v":131.306216100916},{"$f":"IF('[9]II.2.Balance OSD-Activos'!N152=\"\",\"\",'[9]II.2.Balance OSD-Activos'!N152)","v":653.35652117532254},{"$f":"IF('[9]II.2.Balance OSD-Activos'!R152=\"\",\"\",'[9]II.2.Balance OSD-Activos'!R152)","v":36576.379013735968},{"$f":"IF('[9]II.2.Balance OSD-Activos'!S152=\"\",\"\",'[9]II.2.Balance OSD-Activos'!S152)","v":39410.711556611277},36707.685229836883,76771.753307623483,-20.655151494442702,11.674774842783053,43.361053965556827,11.838366583128245,8.8525108289072776,10.412886456611648,0.61646521569285184,{"$f":"IF('[1]MONE(M)CAPARD'!GS294=\"\",\"\",'[1]MONE(M)CAPARD'!GS294)","v":15110.875794651543},{"$f":"IF('[1]MONE(M)CARD'!HA294=\"\",\"\",'[1]MONE(M)CAPARD'!HA294)","v":8850.9661900540741},{"$f":"IF('[1]MONE(M)CAPARD'!HB294=\"\",\"\",'[1]MONE(M)CAPARD'!HB294)","v":6259.9096045974693},"n.d.",{"$f":"IF('[10]II.2.Balance OSD-Activos'!J152=\"\",\"\",'[10]II.2.Balance OSD-Activos'!J152)","v":1140.3171506809158},{"$f":"IF('[10]II.2.Balance OSD-Activos'!N152=\"\",\"\",'[10]II.2.Balance OSD-Activos'!N152)","v":1091.5746672653227},{"$f":"IF('[10]II.2.Balance OSD-Activos'!R152=\"\",\"\",'[10]II.2.Balance OSD-Activos'!R152)","v":54227.099318235967},{"$f":"IF('[10]II.2.Balance OSD-Activos'!S152=\"\",\"\",'[10]II.2.Balance OSD-Activos'!S152)","v":53487.680532171275},55367.416468916883,109946.67166835349,21.091677907884797,11.343961033480031,25.73866548577324,11.155799857022398,10.195468601881075,10.907679663757964,{"$f":"IF(OR(BH287=\"\",BH286=\"\"),\"\",BH287-BH286)","v":6.4565634339476929E-2},{"$f":"IF('[1]MONE(M)CAPARD'!AS294=\"\",\"\",'[1]MONE(M)CAPARD'!AS294)","v":4},{"$f":"IF('[1]MONE(M)CAPARD'!AT294=\"\",\"\",'[1]MONE(M)CAPARD'!AT294)","v":"n.a."},{"$f":"IF('[1]MONE(M)CAPARD'!AU294=\"\",\"\",'[1]MONE(M)CAPARD'!AU294)","v":5.25},{"$f":"IF('[1]MONE(M)CAPARD'!AV294=\"\",\"\",'[1]MONE(M)CAPARD'!AV294)","v":7},{"$f":"IF('[1]MONE(M)CAPARD'!AW294=\"\",\"\",'[1]MONE(M)CAPARD'!AW294)","v":"n.a."},{"$f":"IF('[1]MONE(M)CAPARD'!AX294=\"\",\"\",'[1]MONE(M)CAPARD'!AX294)","v":6.25},{"$f":"IF('[1]MONE(M)CAPARD'!AY294=\"\",\"\",'[1]MONE(M)CAPARD'!AY294)","v":"n.a."},{"$f":"IF('[1]FISCAL(M)'!$K294=\"\",\"\",'[1]FISCAL(M)'!$K294)","v":-4194.2860005743632},{"$f":"IF('[1]FISCAL(M)'!$L294=\"\",\"\",'[1]FISCAL(M)'!$L294)","v":-5370.4119489043633},{"$f":"IF('[1]FISCAL(M)'!$AY294=\"\",\"\",'[1]FISCAL(M)'!$AY294)","v":93822.559080888372},{"$f":"IF('[1]FISCAL(M)'!$BI294=\"\",\"\",'[1]FISCAL(M)'!$BI294)","v":48846.326200147509},{"$f":"IF('[1]FISCAL(M)'!$BS294=\"\",\"\",'[1]FISCAL(M)'!$BS294)","v":44976.232880740885},{"$f":"IF('[1]FISCAL(M)'!$AZ294=\"\",\"\",'[1]FISCAL(M)'!$AZ294)","v":109766.30507096837},{"$f":"IF('[1]FISCAL(M)'!$BJ294=\"\",\"\",'[1]FISCAL(M)'!$BJ294)","v":52645.45252774749},{"$f":"IF('[1]FISCAL(M)'!$BT294=\"\",\"\",'[1]FISCAL(M)'!$BT294)","v":57120.852543220884},{"$f":"IF('[2]MONE(M)'!$AO294=\"\",\"\",'[2]MONE(M)'!$AO294)","v":12959079.200084295},{"$f":"IF('[3]MONE(M)'!$AO294=\"\",\"\",'[3]MONE(M)'!$AO294)","v":9860.6059330701391},{"$f":"IF('[4]MONE(M)'!$AO294=\"\",\"\",'[4]MONE(M)'!$AO294)","v":142408.2464256993},{"$f":"+'[5]MONE(M)'!$AO294","v":198361.363322288},{"$f":"IF('[6]MONE(M)'!$AO294=\"\",\"\",'[6]MONE(M)'!$AO294)","v":73576.075480810279},{"$f":"IF('[7]MONE(M)'!$AO294=\"\",\"\",'[7]MONE(M)'!$AO294)","v":572767.27826401999},{"$f":"IF('[8]MONE(M)'!$AO294=\"\",\"\",'[8]MONE(M)'!$AO294)","v":33689.777177019998},12.396638561788809,7.1093022634140635,12.948007650078486,12.966578355250192,21.916701226877432,16.022003524533758,12.231295282375655,{"$f":"IF('[1]FISCAL(M)'!$K294=\"\",\"\",'[1]FISCAL(M)'!$K294)","v":-4194.2860005743632},{"$f":"+'[1]REAL(A)'!$AO$33","v":218144.23305243065},-1.9227122999700264,{"$f":"IF('[1]FISCAL(M)'!$L294=\"\",\"\",'[1]FISCAL(M)'!$L294)","v":-5370.4119489043633},{"$f":"+'[1]REAL(A)'!$AP$33","v":263744.22305243067},-2.0362197460669158,{"$f":"+IF(OR(CT287=\"\",+CU287=\"\",+CV287=\"\"),\"\",(CT287+CU287+CV287))","v":107893.74830260492},{"$f":"'[1]Gráfico REM'!BG288","v":21634.418697789897},{"$f":"'[1]Gráfico REM'!BH288","v":80161.902317735614},{"$f":"'[1]Gráfico REM'!BI288","v":6097.4272870794048},{"$f":"IFERROR(+((CS287/CS275)-1)*100,\"\")","v":11.581145997708209},14.440376526900245,10.609833093521036,14.653892755670883,{"$f":"+IF(OR(DB287=\"\",+DC287=\"\",+DD287=\"\"),\"\",(DB287+DC287+DD287))","v":165038.17986973491},{"$f":"'[1]Gráfico REM'!BK288","v":23852.721527129896},{"$f":"'[1]Gráfico REM'!BL288","v":113851.6794947556},{"$f":"'[1]Gráfico REM'!BM288","v":27333.778847849408},{"$f":"IFERROR(+((DA287/DA275)-1)*100,\"\")","v":12.706759073077167},16.372130328766922,11.08473721599661,16.59323892465272]
[2013,"octubre","2013-octubre",{"$f":"IF('[1]REAL IPC(M)'!$AL295=\"\",\"\",+'[1]REAL IPC(M)'!$AL295)","v":4.1064862526330126},{"$f":"IF('[1]REAL IPC(M)'!$BE295=\"\",\"\",+'[1]REAL IPC(M)'!$BE295)","v":3.7657017522839897},{"$f":"IF('[1]REAL IPC(M)'!$AM295=\"\",\"\",+'[1]REAL IPC(M)'!$AM295)","v":4.082081382127134},{"$f":"IF('[1]REAL IPC(M)'!$BI295=\"\",\"\",+'[1]REAL IPC(M)'!$BI295)","v":3.7453914278702705},{"$f":"IF('[1]REAL IMAE(M)'!BJ295=\"\",\"\",'[1]REAL IMAE(M)'!BJ295)","v":4.7284109368441074},{"$f":"IF('[1]REAL IMAE(M)'!BK295=\"\",\"\",'[1]REAL IMAE(M)'!BK295)","v":4.2168309160948603},{"$f":"IF('[1]REAL IMAE(M)'!BN295=\"\",\"\",'[1]REAL IMAE(M)'!BN295)","v":5.6581505669902832},{"$f":"IF('[1]REAL IMAE(M)'!BO295=\"\",\"\",'[1]REAL IMAE(M)'!BO295)","v":4.622004805356994},{"$f":"IF('[1]EXT RIN(M)'!$K295=\"\",\"\",'[1]EXT RIN(M)'!$K295)","v":24843.964482748834},"",{"$f":"IF('[1]EXT RIN(M)'!$L295=\"\",\"\",'[1]EXT RIN(M)'!$L295)","v":27521.688168458833},"",{"$f":"IF('[1]MONE(M)CARD'!EG295=\"\",\"\",'[1]MONE(M)CARD'!EG295)","v":25168.552002177803},{"$f":"IF('[1]MONE(M)CARD'!EK295=\"\",\"\",'[1]MONE(M)CARD'!EK295)","v":43745.538209858321},{"$f":"IF('[1]MONE(M)CARD'!EP295=\"\",\"\",'[1]MONE(M)CARD'!EP295)","v":24455.23708334507},{"$f":"IF('[1]MONE(M)CARD'!ES295=\"\",\"\",'[1]MONE(M)CARD'!ES295)","v":7.7124064348160992},{"$f":"IF('[1]MONE(M)CARD'!EV295=\"\",\"\",'[1]MONE(M)CARD'!EV295)","v":5.7412607490540335},{"$f":"IF('[1]MONE(M)CARD'!EZ295=\"\",\"\",'[1]MONE(M)CARD'!EZ295)","v":5.8398040924618533},{"$f":"IF('[1]MONE(M)CAPARD'!FC295=\"\",\"\",'[1]MONE(M)CAPARD'!FC295)","v":32659.714334367804},{"$f":"IF('[1]MONE(M)CAPARD'!FG295=\"\",\"\",'[1]MONE(M)CAPARD'!FG295)","v":67665.090327028316},{"$f":"IF('[1]MONE(M)CAPARD'!FL295=\"\",\"\",'[1]MONE(M)CAPARD'!FL295)","v":24455.237083345084},{"$f":"IF('[1]MONE(M)CAPARD'!FO295=\"\",\"\",'[1]MONE(M)CAPARD'!FO295)","v":8.3964397397141575},{"$f":"IF('[1]MONE(M)CAPARD'!FR295=\"\",\"\",'[1]MONE(M)CAPARD'!FR295)","v":7.099467763986711},{"$f":"IF('[1]MONE(M)CAPARD'!FV295=\"\",\"\",'[1]MONE(M)CAPARD'!FV295)","v":6.9057820978993156},{"$f":"IF('[1]MONE(M)CARD'!FV295=\"\",\"\",'[1]MONE(M)CARD'!FV295)","v":1118.8763205690464},{"$f":"IF('[1]MONE(M)CARD'!GD295=\"\",\"\",'[1]MONE(M)CARD'!GD295)","v":77.012248750322811},{"$f":"IF('[1]MONE(M)CARD'!GE295=\"\",\"\",'[1]MONE(M)CARD'!GE295)","v":8539.290219291137},{"$f":"IF(AD288=\"\",\"\",((AD288/AD275)-1)*100)","v":28.732359939618625},{"$f":"IF('[9]II.2.Balance OSD-Activos'!J153=\"\",\"\",'[9]II.2.Balance OSD-Activos'!J153)","v":135.64587488221778},{"$f":"IF('[9]II.2.Balance OSD-Activos'!N153=\"\",\"\",'[9]II.2.Balance OSD-Activos'!N153)","v":645.84359514701532},{"$f":"IF('[9]II.2.Balance OSD-Activos'!R153=\"\",\"\",'[9]II.2.Balance OSD-Activos'!R153)","v":37264.463403768343},{"$f":"IF('[9]II.2.Balance OSD-Activos'!S153=\"\",\"\",'[9]II.2.Balance OSD-Activos'!S153)","v":39808.558814699012},37400.109278650561,77854.511688496597,{"$f":"IF(OR(AF288=\"\",AF276=\"\"),\"\",((AF288/AF276)-1)*100)","v":-18.671854606682579},11.819508621440589,37.776694833837631,11.972320942456683,8.5428281407976101,10.289485100440254,{"$f":"IF(OR(AQ288=\"\",AQ287=\"\"),\"\",AQ288-AQ287)","v":-0.12340135617139403},{"$f":"IF('[1]MONE(M)CAPARD'!GS295=\"\",\"\",'[1]MONE(M)CAPARD'!GS295)","v":15313.568087901587},{"$f":"IF('[1]MONE(M)CARD'!HA295=\"\",\"\",'[1]MONE(M)CAPARD'!HA295)","v":9163.9792622011355},{"$f":"IF('[1]MONE(M)CAPARD'!HB295=\"\",\"\",'[1]MONE(M)CAPARD'!HB295)","v":6149.5888257004517},"n.d.",{"$f":"IF('[10]II.2.Balance OSD-Activos'!J153=\"\",\"\",'[10]II.2.Balance OSD-Activos'!J153)","v":1221.1449091422176},{"$f":"IF('[10]II.2.Balance OSD-Activos'!N153=\"\",\"\",'[10]II.2.Balance OSD-Activos'!N153)","v":1082.9637814070154},{"$f":"IF('[10]II.2.Balance OSD-Activos'!R153=\"\",\"\",'[10]II.2.Balance OSD-Activos'!R153)","v":54898.438575298336},{"$f":"IF('[10]II.2.Balance OSD-Activos'!S153=\"\",\"\",'[10]II.2.Balance OSD-Activos'!S153)","v":54053.964515329018},56119.583484440554,111256.51178117658,26.921720625124458,11.011991539591936,25.002445975465704,10.703321345401307,10.064562553367473,10.669719997209093,-0.23795966654887124,{"$f":"IF('[1]MONE(M)CAPARD'!AS295=\"\",\"\",'[1]MONE(M)CAPARD'!AS295)","v":4},{"$f":"IF('[1]MONE(M)CAPARD'!AT295=\"\",\"\",'[1]MONE(M)CAPARD'!AT295)","v":"n.a."},{"$f":"IF('[1]MONE(M)CAPARD'!AU295=\"\",\"\",'[1]MONE(M)CAPARD'!AU295)","v":5},{"$f":"IF('[1]MONE(M)CAPARD'!AV295=\"\",\"\",'[1]MONE(M)CAPARD'!AV295)","v":7},{"$f":"IF('[1]MONE(M)CAPARD'!AW295=\"\",\"\",'[1]MONE(M)CAPARD'!AW295)","v":"n.a."},{"$f":"IF('[1]MONE(M)CAPARD'!AX295=\"\",\"\",'[1]MONE(M)CAPARD'!AX295)","v":6.25},{"$f":"IF('[1]MONE(M)CAPARD'!AY295=\"\",\"\",'[1]MONE(M)CAPARD'!AY295)","v":"n.a."},{"$f":"IF('[1]FISCAL(M)'!$K295=\"\",\"\",'[1]FISCAL(M)'!$K295)","v":-4213.3127212670634},{"$f":"IF('[1]FISCAL(M)'!$L295=\"\",\"\",'[1]FISCAL(M)'!$L295)","v":-5420.8381137570641},{"$f":"IF('[1]FISCAL(M)'!$AY295=\"\",\"\",'[1]FISCAL(M)'!$AY295)","v":95242.993993359647},{"$f":"IF('[1]FISCAL(M)'!$BI295=\"\",\"\",'[1]FISCAL(M)'!$BI295)","v":48701.60836398894},{"$f":"IF('[1]FISCAL(M)'!$BS295=\"\",\"\",'[1]FISCAL(M)'!$BS295)","v":46541.385629370707},{"$f":"IF('[1]FISCAL(M)'!$AZ295=\"\",\"\",'[1]FISCAL(M)'!$AZ295)","v":111331.67290577965},{"$f":"IF('[1]FISCAL(M)'!$BJ295=\"\",\"\",'[1]FISCAL(M)'!$BJ295)","v":52452.607731128934},{"$f":"IF('[1]FISCAL(M)'!$BT295=\"\",\"\",'[1]FISCAL(M)'!$BT295)","v":58879.065174650714},{"$f":"IF('[2]MONE(M)'!$AO295=\"\",\"\",'[2]MONE(M)'!$AO295)","v":13137982.485544669},{"$f":"IF('[3]MONE(M)'!$AO295=\"\",\"\",'[3]MONE(M)'!$AO295)","v":10005.759988781869},{"$f":"IF('[4]MONE(M)'!$AO295=\"\",\"\",'[4]MONE(M)'!$AO295)","v":143795.68885715446},{"$f":"+'[5]MONE(M)'!$AO295","v":204346.24668148829},{"$f":"IF('[6]MONE(M)'!$AO295=\"\",\"\",'[6]MONE(M)'!$AO295)","v":76133.186190912937},{"$f":"IF('[7]MONE(M)'!$AO295=\"\",\"\",'[7]MONE(M)'!$AO295)","v":577769.2080932},{"$f":"IF('[8]MONE(M)'!$AO295=\"\",\"\",'[8]MONE(M)'!$AO295)","v":33947.967127519994},12.248832748387661,7.5100229844768274,12.901375372748024,14.253800763250467,22.480960046968335,15.121675909007969,11.883545944689832,{"$f":"IF('[1]FISCAL(M)'!$K295=\"\",\"\",'[1]FISCAL(M)'!$K295)","v":-4213.3127212670634},{"$f":"+'[1]REAL(A)'!$AO$33","v":218144.23305243065},-1.9314343827986504,{"$f":"IF('[1]FISCAL(M)'!$L295=\"\",\"\",'[1]FISCAL(M)'!$L295)","v":-5420.8381137570641},{"$f":"+'[1]REAL(A)'!$AP$33","v":263744.22305243067},-2.0553390899028092,{"$f":"+IF(OR(CT288=\"\",+CU288=\"\",+CV288=\"\"),\"\",(CT288+CU288+CV288))","v":108572.65237307704},{"$f":"'[1]Gráfico REM'!BG289","v":21080.946130068594},{"$f":"'[1]Gráfico REM'!BH289","v":81357.779036503838},{"$f":"'[1]Gráfico REM'!BI289","v":6133.9272065046134},10.999591893163707,12.2246260680547,10.513845508021546,13.35538800358349,{"$f":"+IF(OR(DB288=\"\",+DC288=\"\",+DD288=\"\"),\"\",(DB288+DC288+DD288))","v":163756.39668568704},{"$f":"'[1]Gráfico REM'!BK289","v":23337.650096498593},{"$f":"'[1]Gráfico REM'!BL289","v":115305.74616402383},{"$f":"'[1]Gráfico REM'!BM289","v":25113.00042516461},10.791735178522766,14.180117291097737,10.913612604264756,7.2915423239813926]
[2013,"noviembre","2013-noviembre",{"$f":"IF('[1]REAL IPC(M)'!$AL296=\"\",\"\",+'[1]REAL IPC(M)'!$AL296)","v":3.975768414384051},{"$f":"IF('[1]REAL IPC(M)'!$BE296=\"\",\"\",+'[1]REAL IPC(M)'!$BE296)","v":3.6990997509179335},{"$f":"IF('[1]REAL IPC(M)'!$AM296=\"\",\"\",+'[1]REAL IPC(M)'!$AM296)","v":3.9577888153990548},{"$f":"IF('[1]REAL IPC(M)'!$BI296=\"\",\"\",+'[1]REAL IPC(M)'!$BI296)","v":3.6704422757330102},{"$f":"IF('[1]REAL IMAE(M)'!BJ296=\"\",\"\",'[1]REAL IMAE(M)'!BJ296)","v":3.770213635456332},{"$f":"IF('[1]REAL IMAE(M)'!BK296=\"\",\"\",'[1]REAL IMAE(M)'!BK296)","v":4.248541413670992},{"$f":"IF('[1]REAL IMAE(M)'!BN296=\"\",\"\",'[1]REAL IMAE(M)'!BN296)","v":4.5569834063325709},{"$f":"IF('[1]REAL IMAE(M)'!BO296=\"\",\"\",'[1]REAL IMAE(M)'!BO296)","v":4.6331360739156446},{"$f":"IF('[1]EXT RIN(M)'!$K296=\"\",\"\",'[1]EXT RIN(M)'!$K296)","v":24783.645243309606},"",{"$f":"IF('[1]EXT RIN(M)'!$L296=\"\",\"\",'[1]EXT RIN(M)'!$L296)","v":27931.943184259606},"",{"$f":"IF('[1]MONE(M)CARD'!EG296=\"\",\"\",'[1]MONE(M)CARD'!EG296)","v":25970.007250951265},{"$f":"IF('[1]MONE(M)CARD'!EK296=\"\",\"\",'[1]MONE(M)CARD'!EK296)","v":43372.089749407154},{"$f":"IF('[1]MONE(M)CARD'!EP296=\"\",\"\",'[1]MONE(M)CARD'!EP296)","v":24353.612898818348},{"$f":"IF('[1]MONE(M)CARD'!ES296=\"\",\"\",'[1]MONE(M)CARD'!ES296)","v":6.7782932455001665},{"$f":"IF('[1]MONE(M)CARD'!EV296=\"\",\"\",'[1]MONE(M)CARD'!EV296)","v":6.0739000011096778},{"$f":"IF('[1]MONE(M)CARD'!EZ296=\"\",\"\",'[1]MONE(M)CARD'!EZ296)","v":6.0969118318403792},{"$f":"IF('[1]MONE(M)CAPARD'!FC296=\"\",\"\",'[1]MONE(M)CAPARD'!FC296)","v":32313.92985597127},{"$f":"IF('[1]MONE(M)CAPARD'!FG296=\"\",\"\",'[1]MONE(M)CAPARD'!FG296)","v":63952.930409647153},{"$f":"IF('[1]MONE(M)CAPARD'!FL296=\"\",\"\",'[1]MONE(M)CAPARD'!FL296)","v":24353.612898818348},{"$f":"IF('[1]MONE(M)CAPARD'!FO296=\"\",\"\",'[1]MONE(M)CAPARD'!FO296)","v":3.5184055207844178},{"$f":"IF('[1]MONE(M)CAPARD'!FR296=\"\",\"\",'[1]MONE(M)CAPARD'!FR296)","v":1.7766078784668959},{"$f":"IF('[1]MONE(M)CAPARD'!FV296=\"\",\"\",'[1]MONE(M)CAPARD'!FV296)","v":2.6326867052894887},{"$f":"IF('[1]MONE(M)CARD'!FV296=\"\",\"\",'[1]MONE(M)CARD'!FV296)","v":1389.8084607167725},{"$f":"IF('[1]MONE(M)CARD'!GD296=\"\",\"\",'[1]MONE(M)CARD'!GD296)","v":119.39730045242997},{"$f":"IF('[1]MONE(M)CARD'!GE296=\"\",\"\",'[1]MONE(M)CARD'!GE296)","v":8293.7901476391817},22.017757939211926,{"$f":"IF('[9]II.2.Balance OSD-Activos'!J154=\"\",\"\",'[9]II.2.Balance OSD-Activos'!J154)","v":140.97061970659439},{"$f":"IF('[9]II.2.Balance OSD-Activos'!N154=\"\",\"\",'[9]II.2.Balance OSD-Activos'!N154)","v":689.64867456231468},{"$f":"IF('[9]II.2.Balance OSD-Activos'!R154=\"\",\"\",'[9]II.2.Balance OSD-Activos'!R154)","v":37860.222218575989},{"$f":"IF('[9]II.2.Balance OSD-Activos'!S154=\"\",\"\",'[9]II.2.Balance OSD-Activos'!S154)","v":40497.48403370232},38001.192838282586,79188.325546547218,-17.43510379147455,12.241736505688582,43.068303391564754,12.392155843408293,9.1092183292995834,10.822546570616698,0.53306147017644356,{"$f":"IF('[1]MONE(M)CAPARD'!GS296=\"\",\"\",'[1]MONE(M)CAPARD'!GS296)","v":15335.521965082073},{"$f":"IF('[1]MONE(M)CARD'!HA296=\"\",\"\",'[1]MONE(M)CAPARD'!HA296)","v":8939.4792544791835},{"$f":"IF('[1]MONE(M)CAPARD'!HB296=\"\",\"\",'[1]MONE(M)CAPARD'!HB296)","v":6396.0427106028892},"n.d.",{"$f":"IF('[10]II.2.Balance OSD-Activos'!J154=\"\",\"\",'[10]II.2.Balance OSD-Activos'!J154)","v":1393.0622591665947},{"$f":"IF('[10]II.2.Balance OSD-Activos'!N154=\"\",\"\",'[10]II.2.Balance OSD-Activos'!N154)","v":1118.0745259423147},{"$f":"IF('[10]II.2.Balance OSD-Activos'!R154=\"\",\"\",'[10]II.2.Balance OSD-Activos'!R154)","v":53092.795356895993},{"$f":"IF('[10]II.2.Balance OSD-Activos'!S154=\"\",\"\",'[10]II.2.Balance OSD-Activos'!S154)","v":52501.491670522322},54485.857616062589,108105.42381252722,42.619976953575822,6.437404091040233,28.214551693221335,5.7335754485808188,5.6476447840816402,6.2383366435922571,-4.4313833536168357,{"$f":"IF('[1]MONE(M)CAPARD'!AS296=\"\",\"\",'[1]MONE(M)CAPARD'!AS296)","v":4},{"$f":"IF('[1]MONE(M)CAPARD'!AT296=\"\",\"\",'[1]MONE(M)CAPARD'!AT296)","v":"n.a."},{"$f":"IF('[1]MONE(M)CAPARD'!AU296=\"\",\"\",'[1]MONE(M)CAPARD'!AU296)","v":5},{"$f":"IF('[1]MONE(M)CAPARD'!AV296=\"\",\"\",'[1]MONE(M)CAPARD'!AV296)","v":7},{"$f":"IF('[1]MONE(M)CAPARD'!AW296=\"\",\"\",'[1]MONE(M)CAPARD'!AW296)","v":"n.a."},{"$f":"IF('[1]MONE(M)CAPARD'!AX296=\"\",\"\",'[1]MONE(M)CAPARD'!AX296)","v":6.25},{"$f":"IF('[1]MONE(M)CAPARD'!AY296=\"\",\"\",'[1]MONE(M)CAPARD'!AY296)","v":"n.a."},{"$f":"IF('[1]FISCAL(M)'!$K296=\"\",\"\",'[1]FISCAL(M)'!$K296)","v":-5126.2661934168545},{"$f":"IF('[1]FISCAL(M)'!$L296=\"\",\"\",'[1]FISCAL(M)'!$L296)","v":-5905.9604383168562},{"$f":"IF('[1]FISCAL(M)'!$AY296=\"\",\"\",'[1]FISCAL(M)'!$AY296)","v":95487.284040610859},{"$f":"IF('[1]FISCAL(M)'!$BI296=\"\",\"\",'[1]FISCAL(M)'!$BI296)","v":49062.763540729968},{"$f":"IF('[1]FISCAL(M)'!$BS296=\"\",\"\",'[1]FISCAL(M)'!$BS296)","v":46424.520499880891},{"$f":"IF('[1]FISCAL(M)'!$AZ296=\"\",\"\",'[1]FISCAL(M)'!$AZ296)","v":111557.16681473085},{"$f":"IF('[1]FISCAL(M)'!$BJ296=\"\",\"\",'[1]FISCAL(M)'!$BJ296)","v":52911.202304489969},{"$f":"IF('[1]FISCAL(M)'!$BT296=\"\",\"\",'[1]FISCAL(M)'!$BT296)","v":58645.964510240883},{"$f":"IF('[2]MONE(M)'!$AO296=\"\",\"\",'[2]MONE(M)'!$AO296)","v":13339310.96530639},{"$f":"IF('[3]MONE(M)'!$AO296=\"\",\"\",'[3]MONE(M)'!$AO296)","v":10166.939819950137},{"$f":"IF('[4]MONE(M)'!$AO296=\"\",\"\",'[4]MONE(M)'!$AO296)","v":145016.95468086735},{"$f":"+'[5]MONE(M)'!$AO296","v":207119.06191180044},{"$f":"IF('[6]MONE(M)'!$AO296=\"\",\"\",'[6]MONE(M)'!$AO296)","v":78111.581153822539},{"$f":"IF('[7]MONE(M)'!$AO296=\"\",\"\",'[7]MONE(M)'!$AO296)","v":590296.91091129999},{"$f":"IF('[8]MONE(M)'!$AO296=\"\",\"\",'[8]MONE(M)'!$AO296)","v":29382.778042769998},13.208663820386501,8.1171019584728619,11.953187365533546,13.735545684195017,21.874068722022024,15.238444749241165,-4.3446684991081614,{"$f":"IF('[1]FISCAL(M)'!$K296=\"\",\"\",'[1]FISCAL(M)'!$K296)","v":-5126.2661934168545},{"$f":"+'[1]REAL(A)'!$AO$33","v":218144.23305243065},-2.3499434854116745,{"$f":"IF('[1]FISCAL(M)'!$L296=\"\",\"\",'[1]FISCAL(M)'!$L296)","v":-5905.9604383168562},{"$f":"+'[1]REAL(A)'!$AP$33","v":263744.22305243067},-2.2392757535935828,110267.64712819735,{"$f":"'[1]Gráfico REM'!BG290","v":21440.658678484819},{"$f":"'[1]Gráfico REM'!BH290","v":82643.181257629098},{"$f":"'[1]Gráfico REM'!BI290","v":6183.8071920834391},11.921969005022582,14.548931260849018,11.180420693418537,13.009528955932058,159932.72115857736,{"$f":"'[1]Gráfico REM'!BK290","v":23365.020259584817},{"$f":"'[1]Gráfico REM'!BL290","v":112025.95930039909},{"$f":"'[1]Gráfico REM'!BM290","v":24541.741598593442},7.0052915805162597,14.5057390423055,6.6407705926155192,2.2253432964532083]
[2013,"diciembre","2013-diciembre",{"$f":"IF('[1]REAL IPC(M)'!$AL297=\"\",\"\",+'[1]REAL IPC(M)'!$AL297)","v":3.8457167380635315},{"$f":"IF('[1]REAL IPC(M)'!$BE297=\"\",\"\",+'[1]REAL IPC(M)'!$BE297)","v":3.6317783774742818},{"$f":"IF('[1]REAL IPC(M)'!$AM297=\"\",\"\",+'[1]REAL IPC(M)'!$AM297)","v":3.8332154699465715},{"$f":"IF('[1]REAL IPC(M)'!$BI297=\"\",\"\",+'[1]REAL IPC(M)'!$BI297)","v":3.5945206324448975},{"$f":"IF('[1]REAL IMAE(M)'!BJ297=\"\",\"\",'[1]REAL IMAE(M)'!BJ297)","v":3.593953365252367},{"$f":"IF('[1]REAL IMAE(M)'!BK297=\"\",\"\",'[1]REAL IMAE(M)'!BK297)","v":4.2806106546148692},{"$f":"IF('[1]REAL IMAE(M)'!BN297=\"\",\"\",'[1]REAL IMAE(M)'!BN297)","v":4.0413489588932094},{"$f":"IF('[1]REAL IMAE(M)'!BO297=\"\",\"\",'[1]REAL IMAE(M)'!BO297)","v":4.6446239852589555},{"$f":"IF('[1]EXT RIN(M)'!$K297=\"\",\"\",'[1]EXT RIN(M)'!$K297)","v":26606.603817405314},26606.603817405314,{"$f":"IF('[1]EXT RIN(M)'!$L297=\"\",\"\",'[1]EXT RIN(M)'!$L297)","v":29355.255865725314},29355.255865725314,{"$f":"IF('[1]MONE(M)CARD'!EG297=\"\",\"\",'[1]MONE(M)CARD'!EG297)","v":28027.183861024743},{"$f":"IF('[1]MONE(M)CARD'!EK297=\"\",\"\",'[1]MONE(M)CARD'!EK297)","v":44317.645721954388},{"$f":"IF('[1]MONE(M)CARD'!EP297=\"\",\"\",'[1]MONE(M)CARD'!EP297)","v":24660.321508079927},{"$f":"IF('[1]MONE(M)CARD'!ES297=\"\",\"\",'[1]MONE(M)CARD'!ES297)","v":8.0134506589567778},{"$f":"IF('[1]MONE(M)CARD'!EV297=\"\",\"\",'[1]MONE(M)CARD'!EV297)","v":8.1700013799598672},{"$f":"IF('[1]MONE(M)CARD'!EZ297=\"\",\"\",'[1]MONE(M)CARD'!EZ297)","v":8.1319288803702641},{"$f":"IF('[1]MONE(M)CAPARD'!FC297=\"\",\"\",'[1]MONE(M)CAPARD'!FC297)","v":34373.687086994745},{"$f":"IF('[1]MONE(M)CAPARD'!FG297=\"\",\"\",'[1]MONE(M)CAPARD'!FG297)","v":63779.123446354395},{"$f":"IF('[1]MONE(M)CAPARD'!FL297=\"\",\"\",'[1]MONE(M)CAPARD'!FL297)","v":24660.321508079927},{"$f":"IF('[1]MONE(M)CAPARD'!FO297=\"\",\"\",'[1]MONE(M)CAPARD'!FO297)","v":4.1087281417061305},{"$f":"IF('[1]MONE(M)CAPARD'!FR297=\"\",\"\",'[1]MONE(M)CAPARD'!FR297)","v":2.1355402607607044},{"$f":"IF('[1]MONE(M)CAPARD'!FV297=\"\",\"\",'[1]MONE(M)CAPARD'!FV297)","v":3.2651737893330646},{"$f":"IF('[1]MONE(M)CARD'!FV297=\"\",\"\",'[1]MONE(M)CARD'!FV297)","v":811.76493106394366},{"$f":"IF('[1]MONE(M)CARD'!GD297=\"\",\"\",'[1]MONE(M)CARD'!GD297)","v":131.72594078272627},{"$f":"IF('[1]MONE(M)CARD'!GE297=\"\",\"\",'[1]MONE(M)CARD'!GE297)","v":7419.2279258074213},8.4454965009814309,{"$f":"IF('[9]II.2.Balance OSD-Activos'!J155=\"\",\"\",'[9]II.2.Balance OSD-Activos'!J155)","v":136.89522185579179},{"$f":"IF('[9]II.2.Balance OSD-Activos'!N155=\"\",\"\",'[9]II.2.Balance OSD-Activos'!N155)","v":698.26307548474256},{"$f":"IF('[9]II.2.Balance OSD-Activos'!R155=\"\",\"\",'[9]II.2.Balance OSD-Activos'!R155)","v":38444.805138561234},{"$f":"IF('[9]II.2.Balance OSD-Activos'!S155=\"\",\"\",'[9]II.2.Balance OSD-Activos'!S155)","v":40777.760249959407},38581.700360417024,80057.723685861172,-21.869915779674553,11.346324295783328,29.237825759849944,11.515141476805946,10.391482119973983,10.991346009865243,0.16879943924854501,{"$f":"IF('[1]MONE(M)CAPARD'!GS297=\"\",\"\",'[1]MONE(M)CAPARD'!GS297)","v":15134.749325465211},{"$f":"IF('[1]MONE(M)CARD'!HA297=\"\",\"\",'[1]MONE(M)CAPARD'!HA297)","v":8065.2690594474207},{"$f":"IF('[1]MONE(M)CAPARD'!HB297=\"\",\"\",'[1]MONE(M)CAPARD'!HB297)","v":7069.4802660177902},"n.d.",{"$f":"IF('[10]II.2.Balance OSD-Activos'!J155=\"\",\"\",'[10]II.2.Balance OSD-Activos'!J155)","v":1430.0296368257921},{"$f":"IF('[10]II.2.Balance OSD-Activos'!N155=\"\",\"\",'[10]II.2.Balance OSD-Activos'!N155)","v":1120.9899206147425},{"$f":"IF('[10]II.2.Balance OSD-Activos'!R155=\"\",\"\",'[10]II.2.Balance OSD-Activos'!R155)","v":52791.408292301232},{"$f":"IF('[10]II.2.Balance OSD-Activos'!S155=\"\",\"\",'[10]II.2.Balance OSD-Activos'!S155)","v":52141.603002949414},54221.437929127023,107484.03085269118,45.86637542633887,4.987151603515283,22.213667648389436,4.196143585374279,4.9367789150762897,5.1172020107374872,-1.12113463285477,{"$f":"IF('[1]MONE(M)CAPARD'!AS297=\"\",\"\",'[1]MONE(M)CAPARD'!AS297)","v":3.75},{"$f":"IF('[1]MONE(M)CAPARD'!AT297=\"\",\"\",'[1]MONE(M)CAPARD'!AT297)","v":"n.a."},{"$f":"IF('[1]MONE(M)CAPARD'!AU297=\"\",\"\",'[1]MONE(M)CAPARD'!AU297)","v":5},{"$f":"IF('[1]MONE(M)CAPARD'!AV297=\"\",\"\",'[1]MONE(M)CAPARD'!AV297)","v":7},{"$f":"IF('[1]MONE(M)CAPARD'!AW297=\"\",\"\",'[1]MONE(M)CAPARD'!AW297)","v":"n.a."},{"$f":"IF('[1]MONE(M)CAPARD'!AX297=\"\",\"\",'[1]MONE(M)CAPARD'!AX297)","v":6.25},{"$f":"IF('[1]MONE(M)CAPARD'!AY297=\"\",\"\",'[1]MONE(M)CAPARD'!AY297)","v":"n.a."},{"$f":"IF('[1]FISCAL(M)'!$K297=\"\",\"\",'[1]FISCAL(M)'!$K297)","v":-7769.6732570556997},{"$f":"IF('[1]FISCAL(M)'!$L297=\"\",\"\",'[1]FISCAL(M)'!$L297)","v":-7769.6685659357017},{"$f":"IF('[1]FISCAL(M)'!$AY297=\"\",\"\",'[1]FISCAL(M)'!$AY297)","v":97675.11414806523},{"$f":"IF('[1]FISCAL(M)'!$BI297=\"\",\"\",'[1]FISCAL(M)'!$BI297)","v":49240.560785879803},{"$f":"IF('[1]FISCAL(M)'!$BS297=\"\",\"\",'[1]FISCAL(M)'!$BS297)","v":48434.553362185427},{"$f":"IF('[1]FISCAL(M)'!$AZ297=\"\",\"\",'[1]FISCAL(M)'!$AZ297)","v":113493.16908971523},{"$f":"IF('[1]FISCAL(M)'!$BJ297=\"\",\"\",'[1]FISCAL(M)'!$BJ297)","v":52827.454989289807},{"$f":"IF('[1]FISCAL(M)'!$BT297=\"\",\"\",'[1]FISCAL(M)'!$BT297)","v":60665.714100425415},{"$f":"IF('[2]MONE(M)'!$AO297=\"\",\"\",'[2]MONE(M)'!$AO297)","v":13538153.534550853},{"$f":"IF('[3]MONE(M)'!$AO297=\"\",\"\",'[3]MONE(M)'!$AO297)","v":10221.262812630139},{"$f":"IF('[4]MONE(M)'!$AO297=\"\",\"\",'[4]MONE(M)'!$AO297)","v":146330.10747628048},{"$f":"+'[5]MONE(M)'!$AO297","v":209938.36744203139},{"$f":"IF('[6]MONE(M)'!$AO297=\"\",\"\",'[6]MONE(M)'!$AO297)","v":79746.703067121096},{"$f":"IF('[7]MONE(M)'!$AO297=\"\",\"\",'[7]MONE(M)'!$AO297)","v":596921.87667924003},{"$f":"IF('[8]MONE(M)'!$AO297=\"\",\"\",'[8]MONE(M)'!$AO297)","v":27903.680095200001},13.086229132800042,7.9849470537860512,10.166199221924632,13.599401069967175,20.247758493291013,15.238610543426368,-8.6862357311441318,{"$f":"IF('[1]FISCAL(M)'!$K297=\"\",\"\",'[1]FISCAL(M)'!$K297)","v":-7769.6732570556997},{"$f":"+'[1]REAL(A)'!$AO$33","v":218144.23305243065},-3.5617138020734518,{"$f":"IF('[1]FISCAL(M)'!$L297=\"\",\"\",'[1]FISCAL(M)'!$L297)","v":-7769.6685659357017},{"$f":"+'[1]REAL(A)'!$AP$33","v":263744.22305243067},-2.9459104264024547,110925.60468234547,{"$f":"'[1]Gráfico REM'!BG291","v":21353.396274068877},{"$f":"'[1]Gráfico REM'!BH291","v":83560.82509172686},{"$f":"'[1]Gráfico REM'!BI291","v":6011.3833165497381},11.7013949743898,14.160538035227299,11.428194566986228,7.154173947469622,158844.35596191548,{"$f":"'[1]Gráfico REM'!BK291","v":23307.180178078877},{"$f":"'[1]Gráfico REM'!BL291","v":111464.50518692686},{"$f":"'[1]Gráfico REM'!BM291","v":24072.670596909731},5.2763637775143479,13.824630605125222,5.6047514097149698,-3.1594767890008701]
[2014,"enero","2014-enero",{"$f":"IF('[1]REAL IPC(M)'!$AL298=\"\",\"\",+'[1]REAL IPC(M)'!$AL298)","v":3.4705157250378704},{"$f":"IF('[1]REAL IPC(M)'!$BE298=\"\",\"\",+'[1]REAL IPC(M)'!$BE298)","v":3.5639198073237344},{"$f":"IF('[1]REAL IPC(M)'!$AM298=\"\",\"\",+'[1]REAL IPC(M)'!$AM298)","v":3.4584553805894425},{"$f":"IF('[1]REAL IPC(M)'!$BI298=\"\",\"\",+'[1]REAL IPC(M)'!$BI298)","v":3.5178359428215122},{"$f":"IF('[1]REAL IMAE(M)'!BJ298=\"\",\"\",'[1]REAL IMAE(M)'!BJ298)","v":4.4788987038850259},{"$f":"IF('[1]REAL IMAE(M)'!BK298=\"\",\"\",'[1]REAL IMAE(M)'!BK298)","v":4.3128218821275599},{"$f":"IF('[1]REAL IMAE(M)'!BN298=\"\",\"\",'[1]REAL IMAE(M)'!BN298)","v":4.7174566681117636},{"$f":"IF('[1]REAL IMAE(M)'!BO298=\"\",\"\",'[1]REAL IMAE(M)'!BO298)","v":4.6564071273144325},{"$f":"IF('[1]EXT RIN(M)'!$K298=\"\",\"\",'[1]EXT RIN(M)'!$K298)","v":25728.181331847805},"",{"$f":"IF('[1]EXT RIN(M)'!$L298=\"\",\"\",'[1]EXT RIN(M)'!$L298)","v":28074.358038367805},"",{"$f":"IF('[1]MONE(M)CARD'!EG298=\"\",\"\",'[1]MONE(M)CARD'!EG298)","v":27295.898183601814},{"$f":"IF('[1]MONE(M)CARD'!EK298=\"\",\"\",'[1]MONE(M)CARD'!EK298)","v":44081.734057398768},{"$f":"IF('[1]MONE(M)CARD'!EP298=\"\",\"\",'[1]MONE(M)CARD'!EP298)","v":24821.533055721113},{"$f":"IF('[1]MONE(M)CARD'!ES298=\"\",\"\",'[1]MONE(M)CARD'!ES298)","v":7.5682931450006263},{"$f":"IF('[1]MONE(M)CARD'!EV298=\"\",\"\",'[1]MONE(M)CARD'!EV298)","v":6.6922260974354941},{"$f":"IF('[1]MONE(M)CARD'!EZ298=\"\",\"\",'[1]MONE(M)CARD'!EZ298)","v":6.7469213652822324},{"$f":"IF('[1]MONE(M)CAPARD'!FC298=\"\",\"\",'[1]MONE(M)CAPARD'!FC298)","v":35185.80897855181},{"$f":"IF('[1]MONE(M)CAPARD'!FG298=\"\",\"\",'[1]MONE(M)CAPARD'!FG298)","v":68595.099858808768},{"$f":"IF('[1]MONE(M)CAPARD'!FL298=\"\",\"\",'[1]MONE(M)CAPARD'!FL298)","v":24821.533055721113},{"$f":"IF('[1]MONE(M)CAPARD'!FO298=\"\",\"\",'[1]MONE(M)CAPARD'!FO298)","v":9.0245095800878481},{"$f":"IF('[1]MONE(M)CAPARD'!FR298=\"\",\"\",'[1]MONE(M)CAPARD'!FR298)","v":7.9286049416710469},{"$f":"IF('[1]MONE(M)CAPARD'!FV298=\"\",\"\",'[1]MONE(M)CAPARD'!FV298)","v":7.729420901397166},{"$f":"IF('[1]MONE(M)CARD'!FV298=\"\",\"\",'[1]MONE(M)CARD'!FV298)","v":1061.3100491058253},{"$f":"IF('[1]MONE(M)CARD'!GD298=\"\",\"\",'[1]MONE(M)CARD'!GD298)","v":91.532370041581316},{"$f":"IF('[1]MONE(M)CARD'!GE298=\"\",\"\",'[1]MONE(M)CARD'!GE298)","v":7965.9225853028165},26.373732350619417,{"$f":"IF('[9]II.2.Balance OSD-Activos'!J156=\"\",\"\",'[9]II.2.Balance OSD-Activos'!J156)","v":140.78946297658496},{"$f":"IF('[9]II.2.Balance OSD-Activos'!N156=\"\",\"\",'[9]II.2.Balance OSD-Activos'!N156)","v":673.92378276242903},{"$f":"IF('[9]II.2.Balance OSD-Activos'!R156=\"\",\"\",'[9]II.2.Balance OSD-Activos'!R156)","v":38166.479990297048},{"$f":"IF('[9]II.2.Balance OSD-Activos'!S156=\"\",\"\",'[9]II.2.Balance OSD-Activos'!S156)","v":40762.422872108378},38307.269453273635,79743.61610814443,-20.416853628300679,9.8180955974338282,18.64952817875556,9.9722156533807116,9.5446988896864973,9.7471211832021574,-1.2442248266630855,{"$f":"IF('[1]MONE(M)CAPARD'!GS298=\"\",\"\",'[1]MONE(M)CAPARD'!GS298)","v":16063.592002401858},{"$f":"IF('[1]MONE(M)CARD'!HA298=\"\",\"\",'[1]MONE(M)CAPARD'!HA298)","v":8642.1814408028149},{"$f":"IF('[1]MONE(M)CAPARD'!HB298=\"\",\"\",'[1]MONE(M)CAPARD'!HB298)","v":7421.4105615990429},"n.d.",{"$f":"IF('[10]II.2.Balance OSD-Activos'!J156=\"\",\"\",'[10]II.2.Balance OSD-Activos'!J156)","v":1479.4701213265848},{"$f":"IF('[10]II.2.Balance OSD-Activos'!N156=\"\",\"\",'[10]II.2.Balance OSD-Activos'!N156)","v":1091.1044500424291},{"$f":"IF('[10]II.2.Balance OSD-Activos'!R156=\"\",\"\",'[10]II.2.Balance OSD-Activos'!R156)","v":55312.35142176706},{"$f":"IF('[10]II.2.Balance OSD-Activos'!S156=\"\",\"\",'[10]II.2.Balance OSD-Activos'!S156)","v":55503.205024158386},56791.821543093647,113386.13101729445,36.256873006563396,9.0546785395261953,16.592141730600972,8.4754352625706844,10.894348318690273,10.016521275663838,4.8993192649263504,{"$f":"IF('[1]MONE(M)CAPARD'!AS298=\"\",\"\",'[1]MONE(M)CAPARD'!AS298)","v":3.75},{"$f":"IF('[1]MONE(M)CAPARD'!AT298=\"\",\"\",'[1]MONE(M)CAPARD'!AT298)","v":"n.a."},{"$f":"IF('[1]MONE(M)CAPARD'!AU298=\"\",\"\",'[1]MONE(M)CAPARD'!AU298)","v":5},{"$f":"IF('[1]MONE(M)CAPARD'!AV298=\"\",\"\",'[1]MONE(M)CAPARD'!AV298)","v":7},{"$f":"IF('[1]MONE(M)CAPARD'!AW298=\"\",\"\",'[1]MONE(M)CAPARD'!AW298)","v":"n.a."},{"$f":"IF('[1]MONE(M)CAPARD'!AX298=\"\",\"\",'[1]MONE(M)CAPARD'!AX298)","v":6.25},{"$f":"IF('[1]MONE(M)CAPARD'!AY298=\"\",\"\",'[1]MONE(M)CAPARD'!AY298)","v":"n.a."},{"$f":"IF('[1]FISCAL(M)'!$K298=\"\",\"\",'[1]FISCAL(M)'!$K298)","v":-21.035364648873781},{"$f":"IF('[1]FISCAL(M)'!$L298=\"\",\"\",'[1]FISCAL(M)'!$L298)","v":-674.4387019788735},{"$f":"IF('[1]FISCAL(M)'!$AY298=\"\",\"\",'[1]FISCAL(M)'!$AY298)","v":98908.400087637245},{"$f":"IF('[1]FISCAL(M)'!$BI298=\"\",\"\",'[1]FISCAL(M)'!$BI298)","v":50757.087841382607},{"$f":"IF('[1]FISCAL(M)'!$BS298=\"\",\"\",'[1]FISCAL(M)'!$BS298)","v":48151.312246254631},{"$f":"IF('[1]FISCAL(M)'!$AZ298=\"\",\"\",'[1]FISCAL(M)'!$AZ298)","v":115314.89879924724},{"$f":"IF('[1]FISCAL(M)'!$BJ298=\"\",\"\",'[1]FISCAL(M)'!$BJ298)","v":54916.6865529926},{"$f":"IF('[1]FISCAL(M)'!$BT298=\"\",\"\",'[1]FISCAL(M)'!$BT298)","v":60398.212246254632},{"$f":"IF('[2]MONE(M)'!$AO298=\"\",\"\",'[2]MONE(M)'!$AO298)","v":13727196.264739892},{"$f":"IF('[3]MONE(M)'!$AO298=\"\",\"\",'[3]MONE(M)'!$AO298)","v":10219.984388660137},{"$f":"IF('[4]MONE(M)'!$AO298=\"\",\"\",'[4]MONE(M)'!$AO298)","v":147022.1477756289},{"$f":"+'[5]MONE(M)'!$AO298","v":211513.8154728839},{"$f":"IF('[6]MONE(M)'!$AO298=\"\",\"\",'[6]MONE(M)'!$AO298)","v":80523.091926747715},{"$f":"IF('[7]MONE(M)'!$AO298=\"\",\"\",'[7]MONE(M)'!$AO298)","v":588151.18693446997},{"$f":"IF('[8]MONE(M)'!$AO298=\"\",\"\",'[8]MONE(M)'!$AO298)","v":34259.550486090011},13.560347534824114,7.6440983298808884,10.817445566034278,13.5271897275816,19.762868220964357,12.104848584044836,10.917251818061136,{"$f":"IF('[1]FISCAL(M)'!$K298=\"\",\"\",'[1]FISCAL(M)'!$K298)","v":-21.035364648873781},{"$f":"+'[1]REAL(A)'!$AO$34","v":231352.41217117693},-9.0923472340153424E-3,{"$f":"IF('[1]FISCAL(M)'!$L298=\"\",\"\",'[1]FISCAL(M)'!$L298)","v":-674.4387019788735},{"$f":"+'[1]REAL(A)'!$AP$34","v":281273.87517117691},-0.23978007256039166,111592.07287534377,{"$f":"'[1]Gráfico REM'!BG292","v":22300.487090833118},{"$f":"'[1]Gráfico REM'!BH292","v":83293.808578677039},{"$f":"'[1]Gráfico REM'!BI292","v":5997.777205833615},10.47630626316549,14.449388673617314,9.9321068502043364,4.1908412005300377,167328.5612870038,{"$f":"'[1]Gráfico REM'!BK292","v":24576.848990263119},{"$f":"'[1]Gráfico REM'!BL292","v":117553.35906476705},{"$f":"'[1]Gráfico REM'!BM292","v":25198.353231973611},8.8882422393580676,15.167995772474473,10.217404266273245,-1.8530433197779472]
[2014,"febrero","2014-febrero",{"$f":"IF('[1]REAL IPC(M)'!$AL299=\"\",\"\",+'[1]REAL IPC(M)'!$AL299)","v":3.1905664475746498},{"$f":"IF('[1]REAL IPC(M)'!$BE299=\"\",\"\",+'[1]REAL IPC(M)'!$BE299)","v":3.4957131161704069},{"$f":"IF('[1]REAL IPC(M)'!$AM299=\"\",\"\",+'[1]REAL IPC(M)'!$AM299)","v":3.2106256339384576},{"$f":"IF('[1]REAL IPC(M)'!$BI299=\"\",\"\",+'[1]REAL IPC(M)'!$BI299)","v":3.4406068949171642},{"$f":"IF('[1]REAL IMAE(M)'!BJ299=\"\",\"\",'[1]REAL IMAE(M)'!BJ299)","v":4.5049311310455753},{"$f":"IF('[1]REAL IMAE(M)'!BK299=\"\",\"\",'[1]REAL IMAE(M)'!BK299)","v":4.3449231867956906},{"$f":"IF('[1]REAL IMAE(M)'!BN299=\"\",\"\",'[1]REAL IMAE(M)'!BN299)","v":4.4322666731910543},{"$f":"IF('[1]REAL IMAE(M)'!BO299=\"\",\"\",'[1]REAL IMAE(M)'!BO299)","v":4.6683829631535279},{"$f":"IF('[1]EXT RIN(M)'!$K299=\"\",\"\",'[1]EXT RIN(M)'!$K299)","v":25535.468368069174},"",{"$f":"IF('[1]EXT RIN(M)'!$L299=\"\",\"\",'[1]EXT RIN(M)'!$L299)","v":27676.012536939175},"",{"$f":"IF('[1]MONE(M)CARD'!EG299=\"\",\"\",'[1]MONE(M)CARD'!EG299)","v":26917.325256337383},{"$f":"IF('[1]MONE(M)CARD'!EK299=\"\",\"\",'[1]MONE(M)CARD'!EK299)","v":43977.342728822259},{"$f":"IF('[1]MONE(M)CARD'!EP299=\"\",\"\",'[1]MONE(M)CARD'!EP299)","v":25904.556588086576},{"$f":"IF('[1]MONE(M)CARD'!ES299=\"\",\"\",'[1]MONE(M)CARD'!ES299)","v":6.6592482665221553},{"$f":"IF('[1]MONE(M)CARD'!EV299=\"\",\"\",'[1]MONE(M)CARD'!EV299)","v":5.5579612052653715},{"$f":"IF('[1]MONE(M)CARD'!EZ299=\"\",\"\",'[1]MONE(M)CARD'!EZ299)","v":7.4125580616176912},{"$f":"IF('[1]MONE(M)CAPARD'!FC299=\"\",\"\",'[1]MONE(M)CAPARD'!FC299)","v":34701.101932467376},{"$f":"IF('[1]MONE(M)CAPARD'!FG299=\"\",\"\",'[1]MONE(M)CAPARD'!FG299)","v":68683.941958272248},{"$f":"IF('[1]MONE(M)CAPARD'!FL299=\"\",\"\",'[1]MONE(M)CAPARD'!FL299)","v":25904.556588086562},{"$f":"IF('[1]MONE(M)CAPARD'!FO299=\"\",\"\",'[1]MONE(M)CAPARD'!FO299)","v":7.7264284857607501},{"$f":"IF('[1]MONE(M)CAPARD'!FR299=\"\",\"\",'[1]MONE(M)CAPARD'!FR299)","v":7.1198915297982834},{"$f":"IF('[1]MONE(M)CAPARD'!FV299=\"\",\"\",'[1]MONE(M)CAPARD'!FV299)","v":8.2187133374461485},{"$f":"IF('[1]MONE(M)CARD'!FV299=\"\",\"\",'[1]MONE(M)CARD'!FV299)","v":1191.4741341975744},{"$f":"IF('[1]MONE(M)CARD'!GD299=\"\",\"\",'[1]MONE(M)CARD'!GD299)","v":119.07915556418604},{"$f":"IF('[1]MONE(M)CARD'!GE299=\"\",\"\",'[1]MONE(M)CARD'!GE299)","v":7774.7481896130203},13.988705818609247,{"$f":"IF('[9]II.2.Balance OSD-Activos'!J157=\"\",\"\",'[9]II.2.Balance OSD-Activos'!J157)","v":198.29853679335466},{"$f":"IF('[9]II.2.Balance OSD-Activos'!N157=\"\",\"\",'[9]II.2.Balance OSD-Activos'!N157)","v":664.21825100733258},{"$f":"IF('[9]II.2.Balance OSD-Activos'!R157=\"\",\"\",'[9]II.2.Balance OSD-Activos'!R157)","v":38030.83481363106},{"$f":"IF('[9]II.2.Balance OSD-Activos'!S157=\"\",\"\",'[9]II.2.Balance OSD-Activos'!S157)","v":40482.186461821329},38229.133350424418,79375.538063253072,12.53046274634424,9.680961460882509,22.467298037812888,9.6664818692112178,8.1719536574928586,9.0006899426426923,-0.74643124055946508,{"$f":"IF('[1]MONE(M)CAPARD'!GS299=\"\",\"\",'[1]MONE(M)CAPARD'!GS299)","v":16675.517441746346},{"$f":"IF('[1]MONE(M)CARD'!HA299=\"\",\"\",'[1]MONE(M)CAPARD'!HA299)","v":8461.9879900430224},{"$f":"IF('[1]MONE(M)CAPARD'!HB299=\"\",\"\",'[1]MONE(M)CAPARD'!HB299)","v":8213.5294517033235},"n.d.",{"$f":"IF('[10]II.2.Balance OSD-Activos'!J157=\"\",\"\",'[10]II.2.Balance OSD-Activos'!J157)","v":1542.9016958633545},{"$f":"IF('[10]II.2.Balance OSD-Activos'!N157=\"\",\"\",'[10]II.2.Balance OSD-Activos'!N157)","v":1061.9355628473324},{"$f":"IF('[10]II.2.Balance OSD-Activos'!R157=\"\",\"\",'[10]II.2.Balance OSD-Activos'!R157)","v":55275.568402691068},{"$f":"IF('[10]II.2.Balance OSD-Activos'!S157=\"\",\"\",'[10]II.2.Balance OSD-Activos'!S157)","v":55368.839628761336},56818.470098554419,113249.24529016309,40.622860005636127,8.9754035546993229,13.477710054231551,8.2951093553174537,9.9787988059810928,9.5045995291414229,-0.51192174652241462,{"$f":"IF('[1]MONE(M)CAPARD'!AS299=\"\",\"\",'[1]MONE(M)CAPARD'!AS299)","v":3.75},{"$f":"IF('[1]MONE(M)CAPARD'!AT299=\"\",\"\",'[1]MONE(M)CAPARD'!AT299)","v":"n.a."},{"$f":"IF('[1]MONE(M)CAPARD'!AU299=\"\",\"\",'[1]MONE(M)CAPARD'!AU299)","v":5},{"$f":"IF('[1]MONE(M)CAPARD'!AV299=\"\",\"\",'[1]MONE(M)CAPARD'!AV299)","v":7},{"$f":"IF('[1]MONE(M)CAPARD'!AW299=\"\",\"\",'[1]MONE(M)CAPARD'!AW299)","v":"n.a."},{"$f":"IF('[1]MONE(M)CAPARD'!AX299=\"\",\"\",'[1]MONE(M)CAPARD'!AX299)","v":6.25},{"$f":"IF('[1]MONE(M)CAPARD'!AY299=\"\",\"\",'[1]MONE(M)CAPARD'!AY299)","v":"n.a."},{"$f":"IF('[1]FISCAL(M)'!$K299=\"\",\"\",'[1]FISCAL(M)'!$K299)","v":-826.94815900740036},{"$f":"IF('[1]FISCAL(M)'!$L299=\"\",\"\",'[1]FISCAL(M)'!$L299)","v":-2139.7455112774005},{"$f":"IF('[1]FISCAL(M)'!$AY299=\"\",\"\",'[1]FISCAL(M)'!$AY299)","v":97759.347404196902},{"$f":"IF('[1]FISCAL(M)'!$BI299=\"\",\"\",'[1]FISCAL(M)'!$BI299)","v":49879.271046729227},{"$f":"IF('[1]FISCAL(M)'!$BS299=\"\",\"\",'[1]FISCAL(M)'!$BS299)","v":47880.076357467668},{"$f":"IF('[1]FISCAL(M)'!$AZ299=\"\",\"\",'[1]FISCAL(M)'!$AZ299)","v":114243.55042522689},{"$f":"IF('[1]FISCAL(M)'!$BJ299=\"\",\"\",'[1]FISCAL(M)'!$BJ299)","v":54112.925897499226},{"$f":"IF('[1]FISCAL(M)'!$BT299=\"\",\"\",'[1]FISCAL(M)'!$BT299)","v":60130.624527727668},{"$f":"IF('[2]MONE(M)'!$AO299=\"\",\"\",'[2]MONE(M)'!$AO299)","v":14254049.135117486},{"$f":"IF('[3]MONE(M)'!$AO299=\"\",\"\",'[3]MONE(M)'!$AO299)","v":10245.004316930001},{"$f":"IF('[4]MONE(M)'!$AO299=\"\",\"\",'[4]MONE(M)'!$AO299)","v":147297.44250965086},{"$f":"+'[5]MONE(M)'!$AO299","v":213032.95185034373},{"$f":"IF('[6]MONE(M)'!$AO299=\"\",\"\",'[6]MONE(M)'!$AO299)","v":81892.844077341986},{"$f":"IF('[7]MONE(M)'!$AO299=\"\",\"\",'[7]MONE(M)'!$AO299)","v":591011.25803496013},{"$f":"IF('[8]MONE(M)'!$AO299=\"\",\"\",'[8]MONE(M)'!$AO299)","v":34519.436487220002},16.916526704494128,7.5143346940759193,10.418699503741834,13.774664959385397,21.50804531009738,12.232219145772749,11.149579926724385,{"$f":"IF('[1]FISCAL(M)'!$K299=\"\",\"\",'[1]FISCAL(M)'!$K299)","v":-826.94815900740036},{"$f":"+'[1]REAL(A)'!$AO$34","v":231352.41217117693},-0.35744090638464754,{"$f":"IF('[1]FISCAL(M)'!$L299=\"\",\"\",'[1]FISCAL(M)'!$L299)","v":-2139.7455112774005},{"$f":"+'[1]REAL(A)'!$AP$34","v":281273.87517117691},-0.76073382569753401,111851.98508710501,{"$f":"'[1]Gráfico REM'!BG293","v":22877.657643964332},{"$f":"'[1]Gráfico REM'!BH293","v":82935.134074975183},{"$f":"'[1]Gráfico REM'!BI293","v":6039.1933681654937},9.3977149452164852,12.671900554610605,8.9574734166630865,3.7342689558918396,167762.688013915,{"$f":"'[1]Gráfico REM'!BK293","v":25150.520247314333},{"$f":"'[1]Gráfico REM'!BL293","v":117454.57056219518},{"$f":"'[1]Gráfico REM'!BM293","v":25157.597204405494},7.1769447387796337,13.148900845421728,9.5927008304610428,-7.2605671600784021]
[2014,"marzo","2014-marzo",{"$f":"IF('[1]REAL IPC(M)'!$AL300=\"\",\"\",+'[1]REAL IPC(M)'!$AL300)","v":3.2055583885505889},{"$f":"IF('[1]REAL IPC(M)'!$BE300=\"\",\"\",+'[1]REAL IPC(M)'!$BE300)","v":3.4273392906702504},{"$f":"IF('[1]REAL IPC(M)'!$AM300=\"\",\"\",+'[1]REAL IPC(M)'!$AM300)","v":3.2266461152409498},{"$f":"IF('[1]REAL IPC(M)'!$BI300=\"\",\"\",+'[1]REAL IPC(M)'!$BI300)","v":3.3630453779799341},{"$f":"IF('[1]REAL IMAE(M)'!BJ300=\"\",\"\",'[1]REAL IMAE(M)'!BJ300)","v":4.4712153147181688},{"$f":"IF('[1]REAL IMAE(M)'!BK300=\"\",\"\",'[1]REAL IMAE(M)'!BK300)","v":4.3766766034431415},{"$f":"IF('[1]REAL IMAE(M)'!BN300=\"\",\"\",'[1]REAL IMAE(M)'!BN300)","v":4.2840884762026743},{"$f":"IF('[1]REAL IMAE(M)'!BO300=\"\",\"\",'[1]REAL IMAE(M)'!BO300)","v":4.6804549117158256},{"$f":"IF('[1]EXT RIN(M)'!$K300=\"\",\"\",'[1]EXT RIN(M)'!$K300)","v":25210.261352867295},"",{"$f":"IF('[1]EXT RIN(M)'!$L300=\"\",\"\",'[1]EXT RIN(M)'!$L300)","v":27280.285508717294},"",{"$f":"IF('[1]MONE(M)CARD'!EG300=\"\",\"\",'[1]MONE(M)CARD'!EG300)","v":26965.673786328665},{"$f":"IF('[1]MONE(M)CARD'!EK300=\"\",\"\",'[1]MONE(M)CARD'!EK300)","v":44532.659097574753},{"$f":"IF('[1]MONE(M)CARD'!EP300=\"\",\"\",'[1]MONE(M)CARD'!EP300)","v":26130.845069991832},{"$f":"IF('[1]MONE(M)CARD'!ES300=\"\",\"\",'[1]MONE(M)CARD'!ES300)","v":3.7044534871532475},{"$f":"IF('[1]MONE(M)CARD'!EV300=\"\",\"\",'[1]MONE(M)CARD'!EV300)","v":5.2660923206439225},{"$f":"IF('[1]MONE(M)CARD'!EZ300=\"\",\"\",'[1]MONE(M)CARD'!EZ300)","v":6.872202831284091},{"$f":"IF('[1]MONE(M)CAPARD'!FC300=\"\",\"\",'[1]MONE(M)CAPARD'!FC300)","v":34910.31829020867},{"$f":"IF('[1]MONE(M)CAPARD'!FG300=\"\",\"\",'[1]MONE(M)CAPARD'!FG300)","v":69356.506511984742},{"$f":"IF('[1]MONE(M)CAPARD'!FL300=\"\",\"\",'[1]MONE(M)CAPARD'!FL300)","v":26130.845069991847},{"$f":"IF('[1]MONE(M)CAPARD'!FO300=\"\",\"\",'[1]MONE(M)CAPARD'!FO300)","v":6.0804759736302838},{"$f":"IF('[1]MONE(M)CAPARD'!FR300=\"\",\"\",'[1]MONE(M)CAPARD'!FR300)","v":7.0689342990269521},{"$f":"IF('[1]MONE(M)CAPARD'!FV300=\"\",\"\",'[1]MONE(M)CAPARD'!FV300)","v":7.9337448079975781},{"$f":"IF('[1]MONE(M)CARD'!FV300=\"\",\"\",'[1]MONE(M)CARD'!FV300)","v":1172.3222817073661},{"$f":"IF('[1]MONE(M)CARD'!GD300=\"\",\"\",'[1]MONE(M)CARD'!GD300)","v":105.84079158150929},{"$f":"IF('[1]MONE(M)CARD'!GE300=\"\",\"\",'[1]MONE(M)CARD'!GE300)","v":7902.21762330605},16.132537208028765,{"$f":"IF('[9]II.2.Balance OSD-Activos'!J158=\"\",\"\",'[9]II.2.Balance OSD-Activos'!J158)","v":201.50162351251163},{"$f":"IF('[9]II.2.Balance OSD-Activos'!N158=\"\",\"\",'[9]II.2.Balance OSD-Activos'!N158)","v":814.18976833475926},{"$f":"IF('[9]II.2.Balance OSD-Activos'!R158=\"\",\"\",'[9]II.2.Balance OSD-Activos'!R158)","v":38619.737063213295},{"$f":"IF('[9]II.2.Balance OSD-Activos'!S158=\"\",\"\",'[9]II.2.Balance OSD-Activos'!S158)","v":40791.304687678356},38821.23868672581,80426.733142738929,9.8218435629102263,10.855083770470753,45.166154648979663,10.860525772997542,8.0167863826120076,9.6560701821003505,0.65538023945765822,{"$f":"IF('[1]MONE(M)CAPARD'!GS300=\"\",\"\",'[1]MONE(M)CAPARD'!GS300)","v":16510.078115759959},{"$f":"IF('[1]MONE(M)CARD'!HA300=\"\",\"\",'[1]MONE(M)CAPARD'!HA300)","v":8588.4530005360484},{"$f":"IF('[1]MONE(M)CAPARD'!HB300=\"\",\"\",'[1]MONE(M)CAPARD'!HB300)","v":7921.6251152239111},"n.d.",{"$f":"IF('[10]II.2.Balance OSD-Activos'!J158=\"\",\"\",'[10]II.2.Balance OSD-Activos'!J158)","v":1551.0715239825117},{"$f":"IF('[10]II.2.Balance OSD-Activos'!N158=\"\",\"\",'[10]II.2.Balance OSD-Activos'!N158)","v":1280.9638244747593},{"$f":"IF('[10]II.2.Balance OSD-Activos'!R158=\"\",\"\",'[10]II.2.Balance OSD-Activos'!R158)","v":56037.347592953309},{"$f":"IF('[10]II.2.Balance OSD-Activos'!S158=\"\",\"\",'[10]II.2.Balance OSD-Activos'!S158)","v":55821.767253678358},57588.419116935824,114691.15019508894,39.160601569045973,9.6882511484833067,32.87055653176094,9.0489957574332092,9.8844596728745024,9.9981958625635414,0.49359633342211851,{"$f":"IF('[1]MONE(M)CAPARD'!AS300=\"\",\"\",'[1]MONE(M)CAPARD'!AS300)","v":4.75},{"$f":"IF('[1]MONE(M)CAPARD'!AT300=\"\",\"\",'[1]MONE(M)CAPARD'!AT300)","v":"n.a."},{"$f":"IF('[1]MONE(M)CAPARD'!AU300=\"\",\"\",'[1]MONE(M)CAPARD'!AU300)","v":4.75},{"$f":"IF('[1]MONE(M)CAPARD'!AV300=\"\",\"\",'[1]MONE(M)CAPARD'!AV300)","v":7},{"$f":"IF('[1]MONE(M)CAPARD'!AW300=\"\",\"\",'[1]MONE(M)CAPARD'!AW300)","v":"n.a."},{"$f":"IF('[1]MONE(M)CAPARD'!AX300=\"\",\"\",'[1]MONE(M)CAPARD'!AX300)","v":6.25},{"$f":"IF('[1]MONE(M)CAPARD'!AY300=\"\",\"\",'[1]MONE(M)CAPARD'!AY300)","v":"n.a."},{"$f":"IF('[1]FISCAL(M)'!$K300=\"\",\"\",'[1]FISCAL(M)'!$K300)","v":-1210.7413135960842},{"$f":"IF('[1]FISCAL(M)'!$L300=\"\",\"\",'[1]FISCAL(M)'!$L300)","v":-2084.7636430060847},{"$f":"IF('[1]FISCAL(M)'!$AY300=\"\",\"\",'[1]FISCAL(M)'!$AY300)","v":97761.367474766623},{"$f":"IF('[1]FISCAL(M)'!$BI300=\"\",\"\",'[1]FISCAL(M)'!$BI300)","v":50157.578295552586},{"$f":"IF('[1]FISCAL(M)'!$BS300=\"\",\"\",'[1]FISCAL(M)'!$BS300)","v":47603.789179214029},{"$f":"IF('[1]FISCAL(M)'!$AZ300=\"\",\"\",'[1]FISCAL(M)'!$AZ300)","v":114823.99763356663},{"$f":"IF('[1]FISCAL(M)'!$BJ300=\"\",\"\",'[1]FISCAL(M)'!$BJ300)","v":54530.765409992593},{"$f":"IF('[1]FISCAL(M)'!$BT300=\"\",\"\",'[1]FISCAL(M)'!$BT300)","v":60293.232223574028},{"$f":"IF('[2]MONE(M)'!$AO300=\"\",\"\",'[2]MONE(M)'!$AO300)","v":14478762.989196805},{"$f":"IF('[3]MONE(M)'!$AO300=\"\",\"\",'[3]MONE(M)'!$AO300)","v":10353.425889730137},{"$f":"IF('[4]MONE(M)'!$AO300=\"\",\"\",'[4]MONE(M)'!$AO300)","v":148106.67709001634},{"$f":"+'[5]MONE(M)'!$AO300","v":214688.2906736632},{"$f":"IF('[6]MONE(M)'!$AO300=\"\",\"\",'[6]MONE(M)'!$AO300)","v":82746.862427795611},{"$f":"IF('[7]MONE(M)'!$AO300=\"\",\"\",'[7]MONE(M)'!$AO300)","v":598363.47290146002},{"$f":"IF('[8]MONE(M)'!$AO300=\"\",\"\",'[8]MONE(M)'!$AO300)","v":34936.032857100006},18.457443102095073,8.2316310707808213,10.536280308526313,13.426222144065637,19.868610788388153,13.535265897415361,11.335766930985635,{"$f":"IF('[1]FISCAL(M)'!$K300=\"\",\"\",'[1]FISCAL(M)'!$K300)","v":-1210.7413135960842},{"$f":"+'[1]REAL(A)'!$AO$34","v":231352.41217117693},-0.52333204665281829,{"$f":"IF('[1]FISCAL(M)'!$L300=\"\",\"\",'[1]FISCAL(M)'!$L300)","v":-2084.7636430060847},{"$f":"+'[1]REAL(A)'!$AP$34","v":281273.87517117691},-0.74118637635199669,113213.19453583623,{"$f":"'[1]Gráfico REM'!BG294","v":23124.563689194103},{"$f":"'[1]Gráfico REM'!BH294","v":83890.622512773087},{"$f":"'[1]Gráfico REM'!BI294","v":6198.008333869052},9.8427302260725611,12.170761350500126,9.4397839293243422,6.892608322951177,169404.93100367626,{"$f":"'[1]Gráfico REM'!BK294","v":25033.191482444105},{"$f":"'[1]Gráfico REM'!BL294","v":118826.6553698731},{"$f":"'[1]Gráfico REM'!BM294","v":25545.084151359053},7.1200942375564402,12.056682226819039,9.990483272818885,-8.0170108588838769]
[2014,"abril","2014-abril",{"$f":"IF('[1]REAL IPC(M)'!$AL301=\"\",\"\",+'[1]REAL IPC(M)'!$AL301)","v":3.4387455294696112},{"$f":"IF('[1]REAL IPC(M)'!$BE301=\"\",\"\",+'[1]REAL IPC(M)'!$BE301)","v":3.3589595186126253},{"$f":"IF('[1]REAL IPC(M)'!$AM301=\"\",\"\",+'[1]REAL IPC(M)'!$AM301)","v":3.4498497039355813},{"$f":"IF('[1]REAL IPC(M)'!$BI301=\"\",\"\",+'[1]REAL IPC(M)'!$BI301)","v":3.2853453038312441},{"$f":"IF('[1]REAL IMAE(M)'!BJ301=\"\",\"\",'[1]REAL IMAE(M)'!BJ301)","v":5.1695298158036085},{"$f":"IF('[1]REAL IMAE(M)'!BK301=\"\",\"\",'[1]REAL IMAE(M)'!BK301)","v":4.4078547493272113},{"$f":"IF('[1]REAL IMAE(M)'!BN301=\"\",\"\",'[1]REAL IMAE(M)'!BN301)","v":5.2308196768581228},{"$f":"IF('[1]REAL IMAE(M)'!BO301=\"\",\"\",'[1]REAL IMAE(M)'!BO301)","v":4.6925117243053815},{"$f":"IF('[1]EXT RIN(M)'!$K301=\"\",\"\",'[1]EXT RIN(M)'!$K301)","v":28071.08602368832},"",{"$f":"IF('[1]EXT RIN(M)'!$L301=\"\",\"\",'[1]EXT RIN(M)'!$L301)","v":30329.396696888318},"",{"$f":"IF('[1]MONE(M)CARD'!EG301=\"\",\"\",'[1]MONE(M)CARD'!EG301)","v":27012.32117875425},{"$f":"IF('[1]MONE(M)CARD'!EK301=\"\",\"\",'[1]MONE(M)CARD'!EK301)","v":44749.099652841702},{"$f":"IF('[1]MONE(M)CARD'!EP301=\"\",\"\",'[1]MONE(M)CARD'!EP301)","v":26047.528649531436},{"$f":"IF('[1]MONE(M)CARD'!ES301=\"\",\"\",'[1]MONE(M)CARD'!ES301)","v":7.5984550484529789},{"$f":"IF('[1]MONE(M)CARD'!EV301=\"\",\"\",'[1]MONE(M)CARD'!EV301)","v":6.1814178983923274},{"$f":"IF('[1]MONE(M)CARD'!EZ301=\"\",\"\",'[1]MONE(M)CARD'!EZ301)","v":6.5755225519684712},{"$f":"IF('[1]MONE(M)CAPARD'!FC301=\"\",\"\",'[1]MONE(M)CAPARD'!FC301)","v":35053.375279734246},{"$f":"IF('[1]MONE(M)CAPARD'!FG301=\"\",\"\",'[1]MONE(M)CAPARD'!FG301)","v":69661.968620141692},{"$f":"IF('[1]MONE(M)CAPARD'!FL301=\"\",\"\",'[1]MONE(M)CAPARD'!FL301)","v":26047.528649531436},{"$f":"IF('[1]MONE(M)CAPARD'!FO301=\"\",\"\",'[1]MONE(M)CAPARD'!FO301)","v":8.4277730032970908},{"$f":"IF('[1]MONE(M)CAPARD'!FR301=\"\",\"\",'[1]MONE(M)CAPARD'!FR301)","v":7.4511434544292099},{"$f":"IF('[1]MONE(M)CAPARD'!FV301=\"\",\"\",'[1]MONE(M)CAPARD'!FV301)","v":7.4959737428877293},{"$f":"IF('[1]MONE(M)CARD'!FV301=\"\",\"\",'[1]MONE(M)CARD'!FV301)","v":1125.676689155101},{"$f":"IF('[1]MONE(M)CARD'!GD301=\"\",\"\",'[1]MONE(M)CARD'!GD301)","v":210.15764986380657},{"$f":"IF('[1]MONE(M)CARD'!GE301=\"\",\"\",'[1]MONE(M)CARD'!GE301)","v":8496.1828141018068},15.969856697293295,{"$f":"IF('[9]II.2.Balance OSD-Activos'!J159=\"\",\"\",'[9]II.2.Balance OSD-Activos'!J159)","v":224.33755827634943},{"$f":"IF('[9]II.2.Balance OSD-Activos'!N159=\"\",\"\",'[9]II.2.Balance OSD-Activos'!N159)","v":735.72703421554229},{"$f":"IF('[9]II.2.Balance OSD-Activos'!R159=\"\",\"\",'[9]II.2.Balance OSD-Activos'!R159)","v":39007.23414828752},{"$f":"IF('[9]II.2.Balance OSD-Activos'!S159=\"\",\"\",'[9]II.2.Balance OSD-Activos'!S159)","v":41102.750894637749},39231.571706563867,81070.049635417163,30.841001094241371,11.73958156081385,27.111481585157815,11.645842376274128,8.031522107320388,9.9469175686373479,0.29084738653699738,{"$f":"IF('[1]MONE(M)CAPARD'!GS301=\"\",\"\",'[1]MONE(M)CAPARD'!GS301)","v":16296.881516751497},{"$f":"IF('[1]MONE(M)CARD'!HA301=\"\",\"\",'[1]MONE(M)CAPARD'!HA301)","v":9244.8386395518064},{"$f":"IF('[1]MONE(M)CAPARD'!HB301=\"\",\"\",'[1]MONE(M)CAPARD'!HB301)","v":7052.0428771996903},"n.d.",{"$f":"IF('[10]II.2.Balance OSD-Activos'!J159=\"\",\"\",'[10]II.2.Balance OSD-Activos'!J159)","v":1576.4448200463494},{"$f":"IF('[10]II.2.Balance OSD-Activos'!N159=\"\",\"\",'[10]II.2.Balance OSD-Activos'!N159)","v":1200.2688569255422},{"$f":"IF('[10]II.2.Balance OSD-Activos'!R159=\"\",\"\",'[10]II.2.Balance OSD-Activos'!R159)","v":56713.940776607516},{"$f":"IF('[10]II.2.Balance OSD-Activos'!S159=\"\",\"\",'[10]II.2.Balance OSD-Activos'!S159)","v":56268.104031007751},58290.385596653869,115758.75848458716,43.213827457209078,10.468565111736062,26.63011814996732,9.7709116681957262,9.6258529362557077,10.202619115904232,0.20442325334069089,{"$f":"IF('[1]MONE(M)CAPARD'!AS301=\"\",\"\",'[1]MONE(M)CAPARD'!AS301)","v":4.75},{"$f":"IF('[1]MONE(M)CAPARD'!AT301=\"\",\"\",'[1]MONE(M)CAPARD'!AT301)","v":"n.a."},{"$f":"IF('[1]MONE(M)CAPARD'!AU301=\"\",\"\",'[1]MONE(M)CAPARD'!AU301)","v":4.75},{"$f":"IF('[1]MONE(M)CAPARD'!AV301=\"\",\"\",'[1]MONE(M)CAPARD'!AV301)","v":7},{"$f":"IF('[1]MONE(M)CAPARD'!AW301=\"\",\"\",'[1]MONE(M)CAPARD'!AW301)","v":"n.a."},{"$f":"IF('[1]MONE(M)CAPARD'!AX301=\"\",\"\",'[1]MONE(M)CAPARD'!AX301)","v":6.25},{"$f":"IF('[1]MONE(M)CAPARD'!AY301=\"\",\"\",'[1]MONE(M)CAPARD'!AY301)","v":"n.a."},{"$f":"IF('[1]FISCAL(M)'!$K301=\"\",\"\",'[1]FISCAL(M)'!$K301)","v":-713.3093396513907},{"$f":"IF('[1]FISCAL(M)'!$L301=\"\",\"\",'[1]FISCAL(M)'!$L301)","v":-1142.5061245913912},{"$f":"IF('[1]FISCAL(M)'!$AY301=\"\",\"\",'[1]FISCAL(M)'!$AY301)","v":100470.63196424338},{"$f":"IF('[1]FISCAL(M)'!$BI301=\"\",\"\",'[1]FISCAL(M)'!$BI301)","v":50593.863073089276},{"$f":"IF('[1]FISCAL(M)'!$BS301=\"\",\"\",'[1]FISCAL(M)'!$BS301)","v":49876.768891154104},{"$f":"IF('[1]FISCAL(M)'!$AZ301=\"\",\"\",'[1]FISCAL(M)'!$AZ301)","v":117874.49503970338},{"$f":"IF('[1]FISCAL(M)'!$BJ301=\"\",\"\",'[1]FISCAL(M)'!$BJ301)","v":54860.973746259268},{"$f":"IF('[1]FISCAL(M)'!$BT301=\"\",\"\",'[1]FISCAL(M)'!$BT301)","v":63013.521293444108},{"$f":"IF('[2]MONE(M)'!$AO301=\"\",\"\",'[2]MONE(M)'!$AO301)","v":14605659.578297991},{"$f":"IF('[3]MONE(M)'!$AO301=\"\",\"\",'[3]MONE(M)'!$AO301)","v":10431.217142760137},{"$f":"IF('[4]MONE(M)'!$AO301=\"\",\"\",'[4]MONE(M)'!$AO301)","v":150020.83559005026},{"$f":"+'[5]MONE(M)'!$AO301","v":216342.49184802434},{"$f":"IF('[6]MONE(M)'!$AO301=\"\",\"\",'[6]MONE(M)'!$AO301)","v":84268.816125169935},{"$f":"IF('[7]MONE(M)'!$AO301=\"\",\"\",'[7]MONE(M)'!$AO301)","v":604285.18331176997},{"$f":"IF('[8]MONE(M)'!$AO301=\"\",\"\",'[8]MONE(M)'!$AO301)","v":35353.083501710011},18.532813296251561,8.7484713668120726,10.753875706339301,13.897785791389673,21.170150134620492,14.077410651755006,11.085122456640949,{"$f":"IF('[1]FISCAL(M)'!$K301=\"\",\"\",'[1]FISCAL(M)'!$K301)","v":-713.3093396513907},{"$f":"+'[1]REAL(A)'!$AO$34","v":231352.41217117693},-0.30832154847973464,{"$f":"IF('[1]FISCAL(M)'!$L301=\"\",\"\",'[1]FISCAL(M)'!$L301)","v":-1142.5061245913912},{"$f":"+'[1]REAL(A)'!$AP$34","v":281273.87517117691},-0.40618991859663039,113746.4455382981,{"$f":"'[1]Gráfico REM'!BG295","v":23080.69781985231},{"$f":"'[1]Gráfico REM'!BH295","v":84530.561945663445},{"$f":"'[1]Gráfico REM'!BI295","v":6135.185772782339},9.0755217844720413,7.422258670655002,9.6527299104364204,7.5029501678237409,170661.21972838813,{"$f":"'[1]Gráfico REM'!BK295","v":24838.422204642309},{"$f":"'[1]Gráfico REM'!BL295","v":119883.64544737345},{"$f":"'[1]Gráfico REM'!BM295","v":25939.152076372338},6.8941669151774132,6.1864955080308981,10.071280087402679,-5.1533104672612069]
[2014,"mayo ","2014-mayo ",{"$f":"IF('[1]REAL IPC(M)'!$AL302=\"\",\"\",+'[1]REAL IPC(M)'!$AL302)","v":3.6299235834403643},{"$f":"IF('[1]REAL IPC(M)'!$BE302=\"\",\"\",+'[1]REAL IPC(M)'!$BE302)","v":3.2907208707404934},{"$f":"IF('[1]REAL IPC(M)'!$AM302=\"\",\"\",+'[1]REAL IPC(M)'!$AM302)","v":3.582964468812877},{"$f":"IF('[1]REAL IPC(M)'!$BI302=\"\",\"\",+'[1]REAL IPC(M)'!$BI302)","v":3.207690283625575},{"$f":"IF('[1]REAL IMAE(M)'!BJ302=\"\",\"\",'[1]REAL IMAE(M)'!BJ302)","v":5.0479529990865801},{"$f":"IF('[1]REAL IMAE(M)'!BK302=\"\",\"\",'[1]REAL IMAE(M)'!BK302)","v":4.4382430072280377},{"$f":"IF('[1]REAL IMAE(M)'!BN302=\"\",\"\",'[1]REAL IMAE(M)'!BN302)","v":5.062054389272852},{"$f":"IF('[1]REAL IMAE(M)'!BO302=\"\",\"\",'[1]REAL IMAE(M)'!BO302)","v":4.7044163143829865},{"$f":"IF('[1]EXT RIN(M)'!$K302=\"\",\"\",'[1]EXT RIN(M)'!$K302)","v":27436.538089245314},"",{"$f":"IF('[1]EXT RIN(M)'!$L302=\"\",\"\",'[1]EXT RIN(M)'!$L302)","v":29684.044255625315},"",{"$f":"IF('[1]MONE(M)CARD'!EG302=\"\",\"\",'[1]MONE(M)CARD'!EG302)","v":26476.872994832658},{"$f":"IF('[1]MONE(M)CARD'!EK302=\"\",\"\",'[1]MONE(M)CARD'!EK302)","v":45163.670141485993},{"$f":"IF('[1]MONE(M)CARD'!EP302=\"\",\"\",'[1]MONE(M)CARD'!EP302)","v":26081.078188537693},{"$f":"IF('[1]MONE(M)CARD'!ES302=\"\",\"\",'[1]MONE(M)CARD'!ES302)","v":5.3041260550355185},{"$f":"IF('[1]MONE(M)CARD'!EV302=\"\",\"\",'[1]MONE(M)CARD'!EV302)","v":5.2170817151644844},{"$f":"IF('[1]MONE(M)CARD'!EZ302=\"\",\"\",'[1]MONE(M)CARD'!EZ302)","v":5.2547027439731941},{"$f":"IF('[1]MONE(M)CAPARD'!FC302=\"\",\"\",'[1]MONE(M)CAPARD'!FC302)","v":34422.399078702656},{"$f":"IF('[1]MONE(M)CAPARD'!FG302=\"\",\"\",'[1]MONE(M)CAPARD'!FG302)","v":70444.574026255985},{"$f":"IF('[1]MONE(M)CAPARD'!FL302=\"\",\"\",'[1]MONE(M)CAPARD'!FL302)","v":26081.078188537693},{"$f":"IF('[1]MONE(M)CAPARD'!FO302=\"\",\"\",'[1]MONE(M)CAPARD'!FO302)","v":6.806854906893367},{"$f":"IF('[1]MONE(M)CAPARD'!FR302=\"\",\"\",'[1]MONE(M)CAPARD'!FR302)","v":6.7427525638547259},{"$f":"IF('[1]MONE(M)CAPARD'!FV302=\"\",\"\",'[1]MONE(M)CAPARD'!FV302)","v":6.4640910256522188},{"$f":"IF('[1]MONE(M)CARD'!FV302=\"\",\"\",'[1]MONE(M)CARD'!FV302)","v":1090.946176892056},{"$f":"IF('[1]MONE(M)CARD'!GD302=\"\",\"\",'[1]MONE(M)CARD'!GD302)","v":83.084854178741224},{"$f":"IF('[1]MONE(M)CARD'!GE302=\"\",\"\",'[1]MONE(M)CARD'!GE302)","v":7895.8561149814468},-8.8690008603780068,{"$f":"IF('[9]II.2.Balance OSD-Activos'!J160=\"\",\"\",'[9]II.2.Balance OSD-Activos'!J160)","v":218.326435495076},{"$f":"IF('[9]II.2.Balance OSD-Activos'!N160=\"\",\"\",'[9]II.2.Balance OSD-Activos'!N160)","v":765.17701291830906},{"$f":"IF('[9]II.2.Balance OSD-Activos'!R160=\"\",\"\",'[9]II.2.Balance OSD-Activos'!R160)","v":39105.297717396083},{"$f":"IF('[9]II.2.Balance OSD-Activos'!S160=\"\",\"\",'[9]II.2.Balance OSD-Activos'!S160)","v":41326.451714000883},39323.624152891156,81415.252879810345,25.938384170926909,11.452939425967301,37.960435975655791,11.381414540047441,7.677851865020302,9.6988308168848505,-0.24808675175249739,{"$f":"IF('[1]MONE(M)CAPARD'!GS302=\"\",\"\",'[1]MONE(M)CAPARD'!GS302)","v":15873.429540767116},{"$f":"IF('[1]MONE(M)CARD'!HA302=\"\",\"\",'[1]MONE(M)CAPARD'!HA302)","v":8648.185117091447},{"$f":"IF('[1]MONE(M)CAPARD'!HB302=\"\",\"\",'[1]MONE(M)CAPARD'!HB302)","v":7225.2444236756692},"n.d.",{"$f":"IF('[10]II.2.Balance OSD-Activos'!J160=\"\",\"\",'[10]II.2.Balance OSD-Activos'!J160)","v":1571.6408204750765},{"$f":"IF('[10]II.2.Balance OSD-Activos'!N160=\"\",\"\",'[10]II.2.Balance OSD-Activos'!N160)","v":1224.4417515983091},{"$f":"IF('[10]II.2.Balance OSD-Activos'!R160=\"\",\"\",'[10]II.2.Balance OSD-Activos'!R160)","v":57057.894234126084},{"$f":"IF('[10]II.2.Balance OSD-Activos'!S160=\"\",\"\",'[10]II.2.Balance OSD-Activos'!S160)","v":56652.83110802088},58629.535054601161,116506.80791422035,42.854502964474392,10.319371700532409,32.221102766680666,9.6316194521236742,9.3205800913256596,10.022114019519424,-0.18050509638480783,{"$f":"IF('[1]MONE(M)CAPARD'!AS302=\"\",\"\",'[1]MONE(M)CAPARD'!AS302)","v":5.25},{"$f":"IF('[1]MONE(M)CAPARD'!AT302=\"\",\"\",'[1]MONE(M)CAPARD'!AT302)","v":"n.a."},{"$f":"IF('[1]MONE(M)CAPARD'!AU302=\"\",\"\",'[1]MONE(M)CAPARD'!AU302)","v":4.75},{"$f":"IF('[1]MONE(M)CAPARD'!AV302=\"\",\"\",'[1]MONE(M)CAPARD'!AV302)","v":7},{"$f":"IF('[1]MONE(M)CAPARD'!AW302=\"\",\"\",'[1]MONE(M)CAPARD'!AW302)","v":"n.a."},{"$f":"IF('[1]MONE(M)CAPARD'!AX302=\"\",\"\",'[1]MONE(M)CAPARD'!AX302)","v":6.25},{"$f":"IF('[1]MONE(M)CAPARD'!AY302=\"\",\"\",'[1]MONE(M)CAPARD'!AY302)","v":"n.a."},{"$f":"IF('[1]FISCAL(M)'!$K302=\"\",\"\",'[1]FISCAL(M)'!$K302)","v":-1225.4261870060222},{"$f":"IF('[1]FISCAL(M)'!$L302=\"\",\"\",'[1]FISCAL(M)'!$L302)","v":-1775.6867720860228},{"$f":"IF('[1]FISCAL(M)'!$AY302=\"\",\"\",'[1]FISCAL(M)'!$AY302)","v":100413.27848717492},{"$f":"IF('[1]FISCAL(M)'!$BI302=\"\",\"\",'[1]FISCAL(M)'!$BI302)","v":50372.737077174912},{"$f":"IF('[1]FISCAL(M)'!$BS302=\"\",\"\",'[1]FISCAL(M)'!$BS302)","v":50040.541410000005},{"$f":"IF('[1]FISCAL(M)'!$AZ302=\"\",\"\",'[1]FISCAL(M)'!$AZ302)","v":117877.79907890492},{"$f":"IF('[1]FISCAL(M)'!$BJ302=\"\",\"\",'[1]FISCAL(M)'!$BJ302)","v":54712.052461954911},{"$f":"IF('[1]FISCAL(M)'!$BT302=\"\",\"\",'[1]FISCAL(M)'!$BT302)","v":63165.746616950004},{"$f":"IF('[2]MONE(M)'!$AO302=\"\",\"\",'[2]MONE(M)'!$AO302)","v":14837907.284803541},{"$f":"IF('[3]MONE(M)'!$AO302=\"\",\"\",'[3]MONE(M)'!$AO302)","v":10429.735434620001},{"$f":"IF('[4]MONE(M)'!$AO302=\"\",\"\",'[4]MONE(M)'!$AO302)","v":151421.03097618069},{"$f":"+'[5]MONE(M)'!$AO302","v":217224.22236641537},{"$f":"IF('[6]MONE(M)'!$AO302=\"\",\"\",'[6]MONE(M)'!$AO302)","v":86012.717890607557},{"$f":"IF('[7]MONE(M)'!$AO302=\"\",\"\",'[7]MONE(M)'!$AO302)","v":613718.69300328998},{"$f":"IF('[8]MONE(M)'!$AO302=\"\",\"\",'[8]MONE(M)'!$AO302)","v":35779.634618009994},18.440227565709844,8.5696183310365548,11.171519390356387,13.791374612960695,22.453124904006149,13.485198834043665,11.262447187065284,{"$f":"IF('[1]FISCAL(M)'!$K302=\"\",\"\",'[1]FISCAL(M)'!$K302)","v":-1225.4261870060222},{"$f":"+'[1]REAL(A)'!$AO$34","v":231352.41217117693},-0.52967945114803183,{"$f":"IF('[1]FISCAL(M)'!$L302=\"\",\"\",'[1]FISCAL(M)'!$L302)","v":-1775.6867720860228},{"$f":"+'[1]REAL(A)'!$AP$34","v":281273.87517117691},-0.63130170585710454,113548.26437572375,{"$f":"'[1]Gráfico REM'!BG296","v":22367.727865087345},{"$f":"'[1]Gráfico REM'!BH296","v":84978.02676983444},{"$f":"'[1]Gráfico REM'!BI296","v":6202.5097408019647},7.6600305009273173,2.7217781351513981,9.1637581016364109,6.0315241757777249,171604.15171859376,{"$f":"'[1]Gráfico REM'!BK296","v":24176.200500077346},{"$f":"'[1]Gráfico REM'!BL296","v":120757.66138784443},{"$f":"'[1]Gráfico REM'!BM296","v":26670.289830671965},6.6807855599668731,2.314765354762649,9.7772844050070482,-2.0409163516532658]
[2014,"junio ","2014-junio ",{"$f":"IF('[1]REAL IPC(M)'!$AL303=\"\",\"\",+'[1]REAL IPC(M)'!$AL303)","v":3.759214527777166},{"$f":"IF('[1]REAL IPC(M)'!$BE303=\"\",\"\",+'[1]REAL IPC(M)'!$BE303)","v":3.2227732380101015},{"$f":"IF('[1]REAL IPC(M)'!$AM303=\"\",\"\",+'[1]REAL IPC(M)'!$AM303)","v":3.7102280312550473},{"$f":"IF('[1]REAL IPC(M)'!$BI303=\"\",\"\",+'[1]REAL IPC(M)'!$BI303)","v":3.130272082645047},{"$f":"IF('[1]REAL IMAE(M)'!BJ303=\"\",\"\",'[1]REAL IMAE(M)'!BJ303)","v":4.4983920070483352},{"$f":"IF('[1]REAL IMAE(M)'!BK303=\"\",\"\",'[1]REAL IMAE(M)'!BK303)","v":4.4676770797096976},{"$f":"IF('[1]REAL IMAE(M)'!BN303=\"\",\"\",'[1]REAL IMAE(M)'!BN303)","v":4.4834161534711203},{"$f":"IF('[1]REAL IMAE(M)'!BO303=\"\",\"\",'[1]REAL IMAE(M)'!BO303)","v":4.7160712766013413},{"$f":"IF('[1]EXT RIN(M)'!$K303=\"\",\"\",'[1]EXT RIN(M)'!$K303)","v":27034.576329538308},"",{"$f":"IF('[1]EXT RIN(M)'!$L303=\"\",\"\",'[1]EXT RIN(M)'!$L303)","v":29377.442458988306},"",{"$f":"IF('[1]MONE(M)CARD'!EG303=\"\",\"\",'[1]MONE(M)CARD'!EG303)","v":26758.77296918731},{"$f":"IF('[1]MONE(M)CARD'!EK303=\"\",\"\",'[1]MONE(M)CARD'!EK303)","v":45615.389198847479},{"$f":"IF('[1]MONE(M)CARD'!EP303=\"\",\"\",'[1]MONE(M)CARD'!EP303)","v":26110.905272690492},{"$f":"IF('[1]MONE(M)CARD'!ES303=\"\",\"\",'[1]MONE(M)CARD'!ES303)","v":5.3060370774172805},{"$f":"IF('[1]MONE(M)CARD'!EV303=\"\",\"\",'[1]MONE(M)CARD'!EV303)","v":5.5445731107403473},{"$f":"IF('[1]MONE(M)CARD'!EZ303=\"\",\"\",'[1]MONE(M)CARD'!EZ303)","v":5.8579132903074704},{"$f":"IF('[1]MONE(M)CAPARD'!FC303=\"\",\"\",'[1]MONE(M)CAPARD'!FC303)","v":34710.11824251731},{"$f":"IF('[1]MONE(M)CAPARD'!FG303=\"\",\"\",'[1]MONE(M)CAPARD'!FG303)","v":71072.574453787471},{"$f":"IF('[1]MONE(M)CAPARD'!FL303=\"\",\"\",'[1]MONE(M)CAPARD'!FL303)","v":26110.905272690492},{"$f":"IF('[1]MONE(M)CAPARD'!FO303=\"\",\"\",'[1]MONE(M)CAPARD'!FO303)","v":7.2262388970806724},{"$f":"IF('[1]MONE(M)CAPARD'!FR303=\"\",\"\",'[1]MONE(M)CAPARD'!FR303)","v":7.0844604015175561},{"$f":"IF('[1]MONE(M)CAPARD'!FV303=\"\",\"\",'[1]MONE(M)CAPARD'!FV303)","v":7.0153421621115486},{"$f":"IF('[1]MONE(M)CARD'!FV303=\"\",\"\",'[1]MONE(M)CARD'!FV303)","v":1056.5695076974919},{"$f":"IF('[1]MONE(M)CARD'!GD303=\"\",\"\",'[1]MONE(M)CARD'!GD303)","v":193.09717440058304},{"$f":"IF('[1]MONE(M)CARD'!GE303=\"\",\"\",'[1]MONE(M)CARD'!GE303)","v":8130.9828084275478},-5.4574920400650822,{"$f":"IF('[9]II.2.Balance OSD-Activos'!J161=\"\",\"\",'[9]II.2.Balance OSD-Activos'!J161)","v":209.46090574807096},{"$f":"IF('[9]II.2.Balance OSD-Activos'!N161=\"\",\"\",'[9]II.2.Balance OSD-Activos'!N161)","v":790.77287216776381},{"$f":"IF('[9]II.2.Balance OSD-Activos'!R161=\"\",\"\",'[9]II.2.Balance OSD-Activos'!R161)","v":39372.686789106592},{"$f":"IF('[9]II.2.Balance OSD-Activos'!S161=\"\",\"\",'[9]II.2.Balance OSD-Activos'!S161)","v":41908.934215516274},39582.147694854662,82281.854782538692,46.694736310135788,11.29507084741026,34.332680808645492,11.152375011808523,8.6067786195764828,10.088596203783462,0.38976538689861151,{"$f":"IF('[1]MONE(M)CAPARD'!GS303=\"\",\"\",'[1]MONE(M)CAPARD'!GS303)","v":15693.955508472349},{"$f":"IF('[1]MONE(M)CARD'!HA303=\"\",\"\",'[1]MONE(M)CAPARD'!HA303)","v":8877.4847481575489},{"$f":"IF('[1]MONE(M)CAPARD'!HB303=\"\",\"\",'[1]MONE(M)CAPARD'!HB303)","v":6816.4707603147999},"n.d.",{"$f":"IF('[10]II.2.Balance OSD-Activos'!J161=\"\",\"\",'[10]II.2.Balance OSD-Activos'!J161)","v":1562.7587694180713},{"$f":"IF('[10]II.2.Balance OSD-Activos'!N161=\"\",\"\",'[10]II.2.Balance OSD-Activos'!N161)","v":1286.3802028677642},{"$f":"IF('[10]II.2.Balance OSD-Activos'!R161=\"\",\"\",'[10]II.2.Balance OSD-Activos'!R161)","v":57394.961726446592},{"$f":"IF('[10]II.2.Balance OSD-Activos'!S161=\"\",\"\",'[10]II.2.Balance OSD-Activos'!S161)","v":57353.201522696276},58957.720495864662,117597.3022214287,44.246626501350519,9.9861719985431918,32.187641244169015,9.279457244216438,9.8206956939887355,10.107549578803997,8.5435559284572804E-2,{"$f":"IF('[1]MONE(M)CAPARD'!AS303=\"\",\"\",'[1]MONE(M)CAPARD'!AS303)","v":5.25},{"$f":"IF('[1]MONE(M)CAPARD'!AT303=\"\",\"\",'[1]MONE(M)CAPARD'!AT303)","v":"n.a."},{"$f":"IF('[1]MONE(M)CAPARD'!AU303=\"\",\"\",'[1]MONE(M)CAPARD'!AU303)","v":4.5},{"$f":"IF('[1]MONE(M)CAPARD'!AV303=\"\",\"\",'[1]MONE(M)CAPARD'!AV303)","v":7},{"$f":"IF('[1]MONE(M)CAPARD'!AW303=\"\",\"\",'[1]MONE(M)CAPARD'!AW303)","v":"n.a."},{"$f":"IF('[1]MONE(M)CAPARD'!AX303=\"\",\"\",'[1]MONE(M)CAPARD'!AX303)","v":6.25},{"$f":"IF('[1]MONE(M)CAPARD'!AY303=\"\",\"\",'[1]MONE(M)CAPARD'!AY303)","v":"n.a."},{"$f":"IF('[1]FISCAL(M)'!$K303=\"\",\"\",'[1]FISCAL(M)'!$K303)","v":-2099.9994619643167},{"$f":"IF('[1]FISCAL(M)'!$L303=\"\",\"\",'[1]FISCAL(M)'!$L303)","v":-2481.6643277443172},{"$f":"IF('[1]FISCAL(M)'!$AY303=\"\",\"\",'[1]FISCAL(M)'!$AY303)","v":100811.79923548938},{"$f":"IF('[1]FISCAL(M)'!$BI303=\"\",\"\",'[1]FISCAL(M)'!$BI303)","v":50652.459678627609},{"$f":"IF('[1]FISCAL(M)'!$BS303=\"\",\"\",'[1]FISCAL(M)'!$BS303)","v":50159.339556861771},{"$f":"IF('[1]FISCAL(M)'!$AZ303=\"\",\"\",'[1]FISCAL(M)'!$AZ303)","v":118492.53358189936},{"$f":"IF('[1]FISCAL(M)'!$BJ303=\"\",\"\",'[1]FISCAL(M)'!$BJ303)","v":55096.997892267602},{"$f":"IF('[1]FISCAL(M)'!$BT303=\"\",\"\",'[1]FISCAL(M)'!$BT303)","v":63395.535689631768},{"$f":"IF('[2]MONE(M)'!$AO303=\"\",\"\",'[2]MONE(M)'!$AO303)","v":14902810.655981675},{"$f":"IF('[3]MONE(M)'!$AO303=\"\",\"\",'[3]MONE(M)'!$AO303)","v":10481.641811309999},{"$f":"IF('[4]MONE(M)'!$AO303=\"\",\"\",'[4]MONE(M)'!$AO303)","v":151583.65360685406},{"$f":"+'[5]MONE(M)'!$AO303","v":219420.68135026947},{"$f":"IF('[6]MONE(M)'!$AO303=\"\",\"\",'[6]MONE(M)'!$AO303)","v":86685.860791585088},{"$f":"IF('[7]MONE(M)'!$AO303=\"\",\"\",'[7]MONE(M)'!$AO303)","v":622881.48003747},{"$f":"IF('[8]MONE(M)'!$AO303=\"\",\"\",'[8]MONE(M)'!$AO303)","v":35876.992916919997},18.019801212731366,7.7580447763694993,10.413653099562614,14.479832233971578,22.307323844993654,12.775932108073151,10.304364312773039,{"$f":"IF('[1]FISCAL(M)'!$K303=\"\",\"\",'[1]FISCAL(M)'!$K303)","v":-2099.9994619643167},{"$f":"+'[1]REAL(A)'!$AO$34","v":231352.41217117693},-0.90770588569032662,{"$f":"IF('[1]FISCAL(M)'!$L303=\"\",\"\",'[1]FISCAL(M)'!$L303)","v":-2481.6643277443172},{"$f":"+'[1]REAL(A)'!$AP$34","v":281273.87517117691},-0.88229464120478041,114524.59991868385,{"$f":"'[1]Gráfico REM'!BG297","v":22250.498279249958},{"$f":"'[1]Gráfico REM'!BH297","v":85847.274309399887},{"$f":"'[1]Gráfico REM'!BI297","v":6426.8273300339943},8.053160392174652,2.2242265986673226,9.5876382844659602,9.1861405767935,172804.65018884384,{"$f":"'[1]Gráfico REM'!BK297","v":24082.405332189959},{"$f":"'[1]Gráfico REM'!BL297","v":121724.26722631988},{"$f":"'[1]Gráfico REM'!BM297","v":26997.977630333997},6.6944942911719707,1.8668934414574512,9.7979160937817777,-1.6788110779670906]
[2014,"julio","2014-julio",{"$f":"IF('[1]REAL IPC(M)'!$AL304=\"\",\"\",+'[1]REAL IPC(M)'!$AL304)","v":4.0288620438419631},{"$f":"IF('[1]REAL IPC(M)'!$BE304=\"\",\"\",+'[1]REAL IPC(M)'!$BE304)","v":3.1552846094482723},{"$f":"IF('[1]REAL IPC(M)'!$AM304=\"\",\"\",+'[1]REAL IPC(M)'!$AM304)","v":3.8024940290360743},{"$f":"IF('[1]REAL IPC(M)'!$BI304=\"\",\"\",+'[1]REAL IPC(M)'!$BI304)","v":3.0533071683766844},{"$f":"IF('[1]REAL IMAE(M)'!BJ304=\"\",\"\",'[1]REAL IMAE(M)'!BJ304)","v":4.2318673558878972},{"$f":"IF('[1]REAL IMAE(M)'!BK304=\"\",\"\",'[1]REAL IMAE(M)'!BK304)","v":4.4960292727204365},{"$f":"IF('[1]REAL IMAE(M)'!BN304=\"\",\"\",'[1]REAL IMAE(M)'!BN304)","v":4.3988816360676752},{"$f":"IF('[1]REAL IMAE(M)'!BO304=\"\",\"\",'[1]REAL IMAE(M)'!BO304)","v":4.7274055720377461},{"$f":"IF('[1]EXT RIN(M)'!$K304=\"\",\"\",'[1]EXT RIN(M)'!$K304)","v":26748.668018820754},"",{"$f":"IF('[1]EXT RIN(M)'!$L304=\"\",\"\",'[1]EXT RIN(M)'!$L304)","v":28990.608711730754},"",{"$f":"IF('[1]MONE(M)CARD'!EG304=\"\",\"\",'[1]MONE(M)CARD'!EG304)","v":26720.393993785787},{"$f":"IF('[1]MONE(M)CARD'!EK304=\"\",\"\",'[1]MONE(M)CARD'!EK304)","v":45953.161918410544},{"$f":"IF('[1]MONE(M)CARD'!EP304=\"\",\"\",'[1]MONE(M)CARD'!EP304)","v":26644.045002234037},{"$f":"IF('[1]MONE(M)CARD'!ES304=\"\",\"\",'[1]MONE(M)CARD'!ES304)","v":6.1248947536508558},{"$f":"IF('[1]MONE(M)CARD'!EV304=\"\",\"\",'[1]MONE(M)CARD'!EV304)","v":5.996937397808666},{"$f":"IF('[1]MONE(M)CARD'!EZ304=\"\",\"\",'[1]MONE(M)CARD'!EZ304)","v":6.4124893155934615},{"$f":"IF('[1]MONE(M)CAPARD'!FC304=\"\",\"\",'[1]MONE(M)CAPARD'!FC304)","v":34870.146840305788},{"$f":"IF('[1]MONE(M)CAPARD'!FG304=\"\",\"\",'[1]MONE(M)CAPARD'!FG304)","v":71491.642198670539},{"$f":"IF('[1]MONE(M)CAPARD'!FL304=\"\",\"\",'[1]MONE(M)CAPARD'!FL304)","v":26644.045002234023},{"$f":"IF('[1]MONE(M)CAPARD'!FO304=\"\",\"\",'[1]MONE(M)CAPARD'!FO304)","v":8.1236189326281849},{"$f":"IF('[1]MONE(M)CAPARD'!FR304=\"\",\"\",'[1]MONE(M)CAPARD'!FR304)","v":7.3740853945938767},{"$f":"IF('[1]MONE(M)CAPARD'!FV304=\"\",\"\",'[1]MONE(M)CAPARD'!FV304)","v":7.4118121215325461},{"$f":"IF('[1]MONE(M)CARD'!FV304=\"\",\"\",'[1]MONE(M)CARD'!FV304)","v":992.82832063178523},{"$f":"IF('[1]MONE(M)CARD'!GD304=\"\",\"\",'[1]MONE(M)CARD'!GD304)","v":85.918968626400755},{"$f":"IF('[1]MONE(M)CARD'!GE304=\"\",\"\",'[1]MONE(M)CARD'!GE304)","v":8376.9703511057378},-2.3169656490230395,{"$f":"IF('[9]II.2.Balance OSD-Activos'!J162=\"\",\"\",'[9]II.2.Balance OSD-Activos'!J162)","v":200.52711010640024},{"$f":"IF('[9]II.2.Balance OSD-Activos'!N162=\"\",\"\",'[9]II.2.Balance OSD-Activos'!N162)","v":778.08593810376647},{"$f":"IF('[9]II.2.Balance OSD-Activos'!R162=\"\",\"\",'[9]II.2.Balance OSD-Activos'!R162)","v":39864.497258817399},{"$f":"IF('[9]II.2.Balance OSD-Activos'!S162=\"\",\"\",'[9]II.2.Balance OSD-Activos'!S162)","v":42307.06000989781},40065.024368923798,83150.170316925374,46.683178782146626,11.682656333617292,26.650552260650628,11.548767057963104,8.7347412590638172,10.283349343406645,0.19475313962318275,{"$f":"IF('[1]MONE(M)CAPARD'!GS304=\"\",\"\",'[1]MONE(M)CAPARD'!GS304)","v":15948.648799619983},{"$f":"IF('[1]MONE(M)CARD'!HA304=\"\",\"\",'[1]MONE(M)CAPARD'!HA304)","v":9138.9260246857375},{"$f":"IF('[1]MONE(M)CAPARD'!HB304=\"\",\"\",'[1]MONE(M)CAPARD'!HB304)","v":6809.7227749342455},"n.d.",{"$f":"IF('[10]II.2.Balance OSD-Activos'!J162=\"\",\"\",'[10]II.2.Balance OSD-Activos'!J162)","v":1632.9516415164005},{"$f":"IF('[10]II.2.Balance OSD-Activos'!N162=\"\",\"\",'[10]II.2.Balance OSD-Activos'!N162)","v":1296.0160306437665},{"$f":"IF('[10]II.2.Balance OSD-Activos'!R162=\"\",\"\",'[10]II.2.Balance OSD-Activos'!R162)","v":58216.994436597408},{"$f":"IF('[10]II.2.Balance OSD-Activos'!S162=\"\",\"\",'[10]II.2.Balance OSD-Activos'!S162)","v":57840.832372797806},59849.946078113811,118986.79448155538,47.821502118299854,10.301751110440049,28.957845319046193,9.5220156100501931,9.7613296967245411,10.211633238726625,0.1040836599226278,{"$f":"IF('[1]MONE(M)CAPARD'!AS304=\"\",\"\",'[1]MONE(M)CAPARD'!AS304)","v":5.25},{"$f":"IF('[1]MONE(M)CAPARD'!AT304=\"\",\"\",'[1]MONE(M)CAPARD'!AT304)","v":"n.a."},{"$f":"IF('[1]MONE(M)CAPARD'!AU304=\"\",\"\",'[1]MONE(M)CAPARD'!AU304)","v":4.5},{"$f":"IF('[1]MONE(M)CAPARD'!AV304=\"\",\"\",'[1]MONE(M)CAPARD'!AV304)","v":7},{"$f":"IF('[1]MONE(M)CAPARD'!AW304=\"\",\"\",'[1]MONE(M)CAPARD'!AW304)","v":"n.a."},{"$f":"IF('[1]MONE(M)CAPARD'!AX304=\"\",\"\",'[1]MONE(M)CAPARD'!AX304)","v":6.25},{"$f":"IF('[1]MONE(M)CAPARD'!AY304=\"\",\"\",'[1]MONE(M)CAPARD'!AY304)","v":"n.a."},{"$f":"IF('[1]FISCAL(M)'!$K304=\"\",\"\",'[1]FISCAL(M)'!$K304)","v":-2594.1305898002061},{"$f":"IF('[1]FISCAL(M)'!$L304=\"\",\"\",'[1]FISCAL(M)'!$L304)","v":-3409.1201349882058},{"$f":"IF('[1]FISCAL(M)'!$AY304=\"\",\"\",'[1]FISCAL(M)'!$AY304)","v":101772.87299412642},{"$f":"IF('[1]FISCAL(M)'!$BI304=\"\",\"\",'[1]FISCAL(M)'!$BI304)","v":51484.969579013152},{"$f":"IF('[1]FISCAL(M)'!$BS304=\"\",\"\",'[1]FISCAL(M)'!$BS304)","v":50287.903415113251},{"$f":"IF('[1]FISCAL(M)'!$AZ304=\"\",\"\",'[1]FISCAL(M)'!$AZ304)","v":119446.47049149641},{"$f":"IF('[1]FISCAL(M)'!$BJ304=\"\",\"\",'[1]FISCAL(M)'!$BJ304)","v":55928.867769083161},{"$f":"IF('[1]FISCAL(M)'!$BT304=\"\",\"\",'[1]FISCAL(M)'!$BT304)","v":63517.602722413256},{"$f":"IF('[2]MONE(M)'!$AO304=\"\",\"\",'[2]MONE(M)'!$AO304)","v":15074561.701025927},{"$f":"IF('[3]MONE(M)'!$AO304=\"\",\"\",'[3]MONE(M)'!$AO304)","v":10464.403429309998},{"$f":"IF('[4]MONE(M)'!$AO304=\"\",\"\",'[4]MONE(M)'!$AO304)","v":153597.38913352793},{"$f":"+'[5]MONE(M)'!$AO304","v":219544.5421503557},{"$f":"IF('[6]MONE(M)'!$AO304=\"\",\"\",'[6]MONE(M)'!$AO304)","v":87496.841681857011},{"$f":"IF('[7]MONE(M)'!$AO304=\"\",\"\",'[7]MONE(M)'!$AO304)","v":635111.60416732996},{"$f":"IF('[8]MONE(M)'!$AO304=\"\",\"\",'[8]MONE(M)'!$AO304)","v":36456.568238789994},18.675937949737719,7.0833959268074898,10.286092499283539,13.393094543110928,22.748009145778546,14.300843755879233,10.228862725009581,{"$f":"IF('[1]FISCAL(M)'!$K304=\"\",\"\",'[1]FISCAL(M)'!$K304)","v":-2594.1305898002061},{"$f":"+'[1]REAL(A)'!$AO$34","v":231352.41217117693},-1.1212896228118066,{"$f":"IF('[1]FISCAL(M)'!$L304=\"\",\"\",'[1]FISCAL(M)'!$L304)","v":-3409.1201349882058},{"$f":"+'[1]REAL(A)'!$AP$34","v":281273.87517117691},-1.2120287150427649,114573.73088410246,{"$f":"'[1]Gráfico REM'!BG298","v":21433.293418233668},{"$f":"'[1]Gráfico REM'!BH298","v":86786.352367343308},{"$f":"'[1]Gráfico REM'!BI298","v":6354.0850985254765},7.2730143186499951,-2.3803838655877319,10.081446865134192,5.6989048051082847,173311.65774417244,{"$f":"'[1]Gráfico REM'!BK298","v":23283.76226199367},{"$f":"'[1]Gráfico REM'!BL298","v":123242.9206061333},{"$f":"'[1]Gráfico REM'!BM298","v":26784.974876045479},5.7538420226393772,-2.7319109831493882,10.125012962636969,-4.4505742990957664]
[2014,"agosto","2014-agosto",{"$f":"IF('[1]REAL IPC(M)'!$AL305=\"\",\"\",+'[1]REAL IPC(M)'!$AL305)","v":4.0566729980793026},{"$f":"IF('[1]REAL IPC(M)'!$BE305=\"\",\"\",+'[1]REAL IPC(M)'!$BE305)","v":3.08845560564035},{"$f":"IF('[1]REAL IPC(M)'!$AM305=\"\",\"\",+'[1]REAL IPC(M)'!$AM305)","v":3.8137612631565343},{"$f":"IF('[1]REAL IPC(M)'!$BI305=\"\",\"\",+'[1]REAL IPC(M)'!$BI305)","v":2.9770492958164807},{"$f":"IF('[1]REAL IMAE(M)'!BJ305=\"\",\"\",'[1]REAL IMAE(M)'!BJ305)","v":3.9935775078669966},{"$f":"IF('[1]REAL IMAE(M)'!BK305=\"\",\"\",'[1]REAL IMAE(M)'!BK305)","v":4.5231757973424047},{"$f":"IF('[1]REAL IMAE(M)'!BN305=\"\",\"\",'[1]REAL IMAE(M)'!BN305)","v":4.1634228204315171},{"$f":"IF('[1]REAL IMAE(M)'!BO305=\"\",\"\",'[1]REAL IMAE(M)'!BO305)","v":4.7383330552561942},{"$f":"IF('[1]EXT RIN(M)'!$K305=\"\",\"\",'[1]EXT RIN(M)'!$K305)","v":26579.409698319658},"",{"$f":"IF('[1]EXT RIN(M)'!$L305=\"\",\"\",'[1]EXT RIN(M)'!$L305)","v":29037.740975099659},"",{"$f":"IF('[1]MONE(M)CARD'!EG305=\"\",\"\",'[1]MONE(M)CARD'!EG305)","v":26632.262882261388},{"$f":"IF('[1]MONE(M)CARD'!EK305=\"\",\"\",'[1]MONE(M)CARD'!EK305)","v":46378.403912808601},{"$f":"IF('[1]MONE(M)CARD'!EP305=\"\",\"\",'[1]MONE(M)CARD'!EP305)","v":26818.10408923206},{"$f":"IF('[1]MONE(M)CARD'!ES305=\"\",\"\",'[1]MONE(M)CARD'!ES305)","v":5.4569393805837363},{"$f":"IF('[1]MONE(M)CARD'!EV305=\"\",\"\",'[1]MONE(M)CARD'!EV305)","v":7.179365665876003},{"$f":"IF('[1]MONE(M)CARD'!EZ305=\"\",\"\",'[1]MONE(M)CARD'!EZ305)","v":7.7585018359803914},{"$f":"IF('[1]MONE(M)CAPARD'!FC305=\"\",\"\",'[1]MONE(M)CAPARD'!FC305)","v":34851.130090161387},{"$f":"IF('[1]MONE(M)CAPARD'!FG305=\"\",\"\",'[1]MONE(M)CAPARD'!FG305)","v":72158.960015648598},{"$f":"IF('[1]MONE(M)CAPARD'!FL305=\"\",\"\",'[1]MONE(M)CAPARD'!FL305)","v":26818.10408923206},{"$f":"IF('[1]MONE(M)CAPARD'!FO305=\"\",\"\",'[1]MONE(M)CAPARD'!FO305)","v":7.5432668457728447},{"$f":"IF('[1]MONE(M)CAPARD'!FR305=\"\",\"\",'[1]MONE(M)CAPARD'!FR305)","v":8.2903076225069317},{"$f":"IF('[1]MONE(M)CAPARD'!FV305=\"\",\"\",'[1]MONE(M)CAPARD'!FV305)","v":8.5044357009245175},{"$f":"IF('[1]MONE(M)CARD'!FV305=\"\",\"\",'[1]MONE(M)CARD'!FV305)","v":973.77214198331023},{"$f":"IF('[1]MONE(M)CARD'!GD305=\"\",\"\",'[1]MONE(M)CARD'!GD305)","v":95.827699166047765},{"$f":"IF('[1]MONE(M)CARD'!GE305=\"\",\"\",'[1]MONE(M)CARD'!GE305)","v":8192.4004170679509},-1.5751948365865465,{"$f":"IF('[9]II.2.Balance OSD-Activos'!J163=\"\",\"\",'[9]II.2.Balance OSD-Activos'!J163)","v":204.00389803270355},{"$f":"IF('[9]II.2.Balance OSD-Activos'!N163=\"\",\"\",'[9]II.2.Balance OSD-Activos'!N163)","v":790.24634030945151},{"$f":"IF('[9]II.2.Balance OSD-Activos'!R163=\"\",\"\",'[9]II.2.Balance OSD-Activos'!R163)","v":40008.712997250615},{"$f":"IF('[9]II.2.Balance OSD-Activos'!S163=\"\",\"\",'[9]II.2.Balance OSD-Activos'!S163)","v":42869.206287875786},40212.716895283316,83872.169523468561,52.936082699905221,11.381723777825471,23.754460948902214,11.227623590091929,9.9765786107686161,10.762722443162653,0.47937309975600861,{"$f":"IF('[1]MONE(M)CAPARD'!GS305=\"\",\"\",'[1]MONE(M)CAPARD'!GS305)","v":16177.080287311859},{"$f":"IF('[1]MONE(M)CARD'!HA305=\"\",\"\",'[1]MONE(M)CAPARD'!HA305)","v":8905.9230104979506},{"$f":"IF('[1]MONE(M)CAPARD'!HB305=\"\",\"\",'[1]MONE(M)CAPARD'!HB305)","v":7271.1572768139085},"n.d.",{"$f":"IF('[10]II.2.Balance OSD-Activos'!J163=\"\",\"\",'[10]II.2.Balance OSD-Activos'!J163)","v":1655.6151515327037},{"$f":"IF('[10]II.2.Balance OSD-Activos'!N163=\"\",\"\",'[10]II.2.Balance OSD-Activos'!N163)","v":1311.4391924294514},{"$f":"IF('[10]II.2.Balance OSD-Activos'!R163=\"\",\"\",'[10]II.2.Balance OSD-Activos'!R163)","v":58820.265611450617},{"$f":"IF('[10]II.2.Balance OSD-Activos'!S163=\"\",\"\",'[10]II.2.Balance OSD-Activos'!S163)","v":58586.340834755785},60475.880762983317,120373.66079016856,50.171586129789915,10.695425580180062,27.383141646065432,9.8823935401497032,10.702852485638825,10.857266938165067,0.64563369943844151,{"$f":"IF('[1]MONE(M)CAPARD'!AS305=\"\",\"\",'[1]MONE(M)CAPARD'!AS305)","v":5.25},{"$f":"IF('[1]MONE(M)CAPARD'!AT305=\"\",\"\",'[1]MONE(M)CAPARD'!AT305)","v":"n.a."},{"$f":"IF('[1]MONE(M)CAPARD'!AU305=\"\",\"\",'[1]MONE(M)CAPARD'!AU305)","v":4.5},{"$f":"IF('[1]MONE(M)CAPARD'!AV305=\"\",\"\",'[1]MONE(M)CAPARD'!AV305)","v":7},{"$f":"IF('[1]MONE(M)CAPARD'!AW305=\"\",\"\",'[1]MONE(M)CAPARD'!AW305)","v":"n.a."},{"$f":"IF('[1]MONE(M)CAPARD'!AX305=\"\",\"\",'[1]MONE(M)CAPARD'!AX305)","v":6.25},{"$f":"IF('[1]MONE(M)CAPARD'!AY305=\"\",\"\",'[1]MONE(M)CAPARD'!AY305)","v":"n.a."},{"$f":"IF('[1]FISCAL(M)'!$K305=\"\",\"\",'[1]FISCAL(M)'!$K305)","v":-3296.7742788991291},{"$f":"IF('[1]FISCAL(M)'!$L305=\"\",\"\",'[1]FISCAL(M)'!$L305)","v":-4153.6399395771286},{"$f":"IF('[1]FISCAL(M)'!$AY305=\"\",\"\",'[1]FISCAL(M)'!$AY305)","v":102457.44643727248},{"$f":"IF('[1]FISCAL(M)'!$BI305=\"\",\"\",'[1]FISCAL(M)'!$BI305)","v":52160.783088609853},{"$f":"IF('[1]FISCAL(M)'!$BS305=\"\",\"\",'[1]FISCAL(M)'!$BS305)","v":50296.663348662638},{"$f":"IF('[1]FISCAL(M)'!$AZ305=\"\",\"\",'[1]FISCAL(M)'!$AZ305)","v":120217.4488892825},{"$f":"IF('[1]FISCAL(M)'!$BJ305=\"\",\"\",'[1]FISCAL(M)'!$BJ305)","v":56696.918828879854},{"$f":"IF('[1]FISCAL(M)'!$BT305=\"\",\"\",'[1]FISCAL(M)'!$BT305)","v":63520.530060402649},{"$f":"IF('[2]MONE(M)'!$AO305=\"\",\"\",'[2]MONE(M)'!$AO305)","v":15281926.864320923},{"$f":"IF('[3]MONE(M)'!$AO305=\"\",\"\",'[3]MONE(M)'!$AO305)","v":10550.57398745},{"$f":"IF('[4]MONE(M)'!$AO305=\"\",\"\",'[4]MONE(M)'!$AO305)","v":153169.31628248544},{"$f":"+'[5]MONE(M)'!$AO305","v":222446.13957516354},{"$f":"IF('[6]MONE(M)'!$AO305=\"\",\"\",'[6]MONE(M)'!$AO305)","v":88768.106611034862},{"$f":"IF('[7]MONE(M)'!$AO305=\"\",\"\",'[7]MONE(M)'!$AO305)","v":643714.60320767004},{"$f":"IF('[8]MONE(M)'!$AO305=\"\",\"\",'[8]MONE(M)'!$AO305)","v":37119.742849839997},18.912349557529275,6.9231872000107941,8.3244703010580743,13.542185943796348,22.724680010827527,13.9890171952622,11.102064261542388,{"$f":"IF('[1]FISCAL(M)'!$K305=\"\",\"\",'[1]FISCAL(M)'!$K305)","v":-3296.7742788991291},{"$f":"+'[1]REAL(A)'!$AO$34","v":231352.41217117693},-1.4250010397383952,{"$f":"IF('[1]FISCAL(M)'!$L305=\"\",\"\",'[1]FISCAL(M)'!$L305)","v":-4153.6399395771286},{"$f":"+'[1]REAL(A)'!$AP$34","v":281273.87517117691},-1.47672439790198,115729.93036007641,{"$f":"'[1]Gráfico REM'!BG299","v":21532.285824157992},{"$f":"'[1]Gráfico REM'!BH299","v":87574.333613509007},{"$f":"'[1]Gráfico REM'!BI299","v":6623.3109224094133},8.198050067008932,-1.2051936423924214,10.68409539558286,9.5619217260734182,175466.11678909641,{"$f":"'[1]Gráfico REM'!BK299","v":23429.526459687993},{"$f":"'[1]Gráfico REM'!BL299","v":124694.076463349},{"$f":"'[1]Gráfico REM'!BM299","v":27342.513866059417},7.0243758873834716,-1.9742885604769222,10.808189972146764,-0.63339466753264961]
[2014,"septiembre","2014-septiembre",{"$f":"IF('[1]REAL IPC(M)'!$AL306=\"\",\"\",+'[1]REAL IPC(M)'!$AL306)","v":3.7877176439738758},{"$f":"IF('[1]REAL IPC(M)'!$BE306=\"\",\"\",+'[1]REAL IPC(M)'!$BE306)","v":3.0225354257880754},{"$f":"IF('[1]REAL IPC(M)'!$AM306=\"\",\"\",+'[1]REAL IPC(M)'!$AM306)","v":3.6106039499082643},{"$f":"IF('[1]REAL IPC(M)'!$BI306=\"\",\"\",+'[1]REAL IPC(M)'!$BI306)","v":2.9018007240698251},{"$f":"IF('[1]REAL IMAE(M)'!BJ306=\"\",\"\",'[1]REAL IMAE(M)'!BJ306)","v":4.1061868763806686},{"$f":"IF('[1]REAL IMAE(M)'!BK306=\"\",\"\",'[1]REAL IMAE(M)'!BK306)","v":4.5489795053576199},{"$f":"IF('[1]REAL IMAE(M)'!BN306=\"\",\"\",'[1]REAL IMAE(M)'!BN306)","v":4.227751513108835},{"$f":"IF('[1]REAL IMAE(M)'!BO306=\"\",\"\",'[1]REAL IMAE(M)'!BO306)","v":4.748746612421284},{"$f":"IF('[1]EXT RIN(M)'!$K306=\"\",\"\",'[1]EXT RIN(M)'!$K306)","v":26424.330832199164},"",{"$f":"IF('[1]EXT RIN(M)'!$L306=\"\",\"\",'[1]EXT RIN(M)'!$L306)","v":29817.364288359164},"",{"$f":"IF('[1]MONE(M)CARD'!EG306=\"\",\"\",'[1]MONE(M)CARD'!EG306)","v":26917.273380106584},{"$f":"IF('[1]MONE(M)CARD'!EK306=\"\",\"\",'[1]MONE(M)CARD'!EK306)","v":46680.502268668242},{"$f":"IF('[1]MONE(M)CARD'!EP306=\"\",\"\",'[1]MONE(M)CARD'!EP306)","v":26567.288928981114},{"$f":"IF('[1]MONE(M)CARD'!ES306=\"\",\"\",'[1]MONE(M)CARD'!ES306)","v":6.4965443245188048},{"$f":"IF('[1]MONE(M)CARD'!EV306=\"\",\"\",'[1]MONE(M)CARD'!EV306)","v":7.0231825653850333},{"$f":"IF('[1]MONE(M)CARD'!EZ306=\"\",\"\",'[1]MONE(M)CARD'!EZ306)","v":7.7288585497711004},{"$f":"IF('[1]MONE(M)CAPARD'!FC306=\"\",\"\",'[1]MONE(M)CAPARD'!FC306)","v":34991.557676726588},{"$f":"IF('[1]MONE(M)CAPARD'!FG306=\"\",\"\",'[1]MONE(M)CAPARD'!FG306)","v":72541.536739528237},{"$f":"IF('[1]MONE(M)CAPARD'!FL306=\"\",\"\",'[1]MONE(M)CAPARD'!FL306)","v":26567.288928981099},{"$f":"IF('[1]MONE(M)CAPARD'!FO306=\"\",\"\",'[1]MONE(M)CAPARD'!FO306)","v":7.3422786462183254},{"$f":"IF('[1]MONE(M)CAPARD'!FR306=\"\",\"\",'[1]MONE(M)CAPARD'!FR306)","v":7.8003139321677351},{"$f":"IF('[1]MONE(M)CAPARD'!FV306=\"\",\"\",'[1]MONE(M)CAPARD'!FV306)","v":8.177829949638916},{"$f":"IF('[1]MONE(M)CARD'!FV306=\"\",\"\",'[1]MONE(M)CARD'!FV306)","v":937.6189503643177},{"$f":"IF('[1]MONE(M)CARD'!GD306=\"\",\"\",'[1]MONE(M)CARD'!GD306)","v":203.08874616082781},{"$f":"IF('[1]MONE(M)CARD'!GE306=\"\",\"\",'[1]MONE(M)CARD'!GE306)","v":8288.7865719656456},4.329383304628398,{"$f":"IF('[9]II.2.Balance OSD-Activos'!J164=\"\",\"\",'[9]II.2.Balance OSD-Activos'!J164)","v":195.97702807381813},{"$f":"IF('[9]II.2.Balance OSD-Activos'!N164=\"\",\"\",'[9]II.2.Balance OSD-Activos'!N164)","v":845.24485662603342},{"$f":"IF('[9]II.2.Balance OSD-Activos'!R164=\"\",\"\",'[9]II.2.Balance OSD-Activos'!R164)","v":39949.131701339124},{"$f":"IF('[9]II.2.Balance OSD-Activos'!S164=\"\",\"\",'[9]II.2.Balance OSD-Activos'!S164)","v":43529.906484928404},40145.108729412939,{"$f":"IF(OR(AF299=\"\",AG299=\"\",AH299=\"\",AI299=\"\"),\"\",SUM(AF299:AI299))","v":84520.260070967372},49.251904360109712,9.364315614164731,29.369621214696551,9.2211224253131885,10.451967918417647,10.092913642724444,-0.66980880043820967,{"$f":"IF('[1]MONE(M)CAPARD'!GS306=\"\",\"\",'[1]MONE(M)CAPARD'!GS306)","v":15468.822615104198},{"$f":"IF('[1]MONE(M)CARD'!HA306=\"\",\"\",'[1]MONE(M)CAPARD'!HA306)","v":9103.6633505956452},{"$f":"IF('[1]MONE(M)CAPARD'!HB306=\"\",\"\",'[1]MONE(M)CAPARD'!HB306)","v":6365.159264508553},"n.d.",{"$f":"IF('[10]II.2.Balance OSD-Activos'!J164=\"\",\"\",'[10]II.2.Balance OSD-Activos'!J164)","v":1667.9221707538179},{"$f":"IF('[10]II.2.Balance OSD-Activos'!N164=\"\",\"\",'[10]II.2.Balance OSD-Activos'!N164)","v":1374.5515948360332},{"$f":"IF('[10]II.2.Balance OSD-Activos'!R164=\"\",\"\",'[10]II.2.Balance OSD-Activos'!R164)","v":59053.078414739117},{"$f":"IF('[10]II.2.Balance OSD-Activos'!S164=\"\",\"\",'[10]II.2.Balance OSD-Activos'!S164)","v":59430.240763198402},60721.000585492933,121525.79294352737,46.268270170088563,9.6691961771081303,25.923735320794972,8.8995707997979281,11.11014755529145,10.531579628077781,-0.32568731008728591,{"$f":"IF('[1]MONE(M)CAPARD'!AS306=\"\",\"\",'[1]MONE(M)CAPARD'!AS306)","v":5.25},{"$f":"IF('[1]MONE(M)CAPARD'!AT306=\"\",\"\",'[1]MONE(M)CAPARD'!AT306)","v":"n.a."},{"$f":"IF('[1]MONE(M)CAPARD'!AU306=\"\",\"\",'[1]MONE(M)CAPARD'!AU306)","v":4.5},{"$f":"IF('[1]MONE(M)CAPARD'!AV306=\"\",\"\",'[1]MONE(M)CAPARD'!AV306)","v":7},{"$f":"IF('[1]MONE(M)CAPARD'!AW306=\"\",\"\",'[1]MONE(M)CAPARD'!AW306)","v":"n.a."},{"$f":"IF('[1]MONE(M)CAPARD'!AX306=\"\",\"\",'[1]MONE(M)CAPARD'!AX306)","v":6.25},{"$f":"IF('[1]MONE(M)CAPARD'!AY306=\"\",\"\",'[1]MONE(M)CAPARD'!AY306)","v":"n.a."},{"$f":"IF('[1]FISCAL(M)'!$K306=\"\",\"\",'[1]FISCAL(M)'!$K306)","v":-3918.4792485454122},{"$f":"IF('[1]FISCAL(M)'!$L306=\"\",\"\",'[1]FISCAL(M)'!$L306)","v":-3458.0925173734126},{"$f":"IF('[1]FISCAL(M)'!$AY306=\"\",\"\",'[1]FISCAL(M)'!$AY306)","v":102476.10531022538},{"$f":"IF('[1]FISCAL(M)'!$BI306=\"\",\"\",'[1]FISCAL(M)'!$BI306)","v":51581.14583550689},{"$f":"IF('[1]FISCAL(M)'!$BS306=\"\",\"\",'[1]FISCAL(M)'!$BS306)","v":50894.959474718489},{"$f":"IF('[1]FISCAL(M)'!$AZ306=\"\",\"\",'[1]FISCAL(M)'!$AZ306)","v":120915.73404786538},{"$f":"IF('[1]FISCAL(M)'!$BJ306=\"\",\"\",'[1]FISCAL(M)'!$BJ306)","v":55584.214525246891},{"$f":"IF('[1]FISCAL(M)'!$BT306=\"\",\"\",'[1]FISCAL(M)'!$BT306)","v":65331.519522618481},{"$f":"IF('[2]MONE(M)'!$AO306=\"\",\"\",'[2]MONE(M)'!$AO306)","v":15338812.09906611},{"$f":"IF('[3]MONE(M)'!$AO306=\"\",\"\",'[3]MONE(M)'!$AO306)","v":10601.511676820001},{"$f":"IF('[4]MONE(M)'!$AO306=\"\",\"\",'[4]MONE(M)'!$AO306)","v":153714.61361493432},{"$f":"+'[5]MONE(M)'!$AO306","v":224797.59615872789},{"$f":"IF('[6]MONE(M)'!$AO306=\"\",\"\",'[6]MONE(M)'!$AO306)","v":89674.577212160846},{"$f":"IF('[7]MONE(M)'!$AO306=\"\",\"\",'[7]MONE(M)'!$AO306)","v":650573.89848040999},{"$f":"IF('[8]MONE(M)'!$AO306=\"\",\"\",'[8]MONE(M)'!$AO306)","v":37682.759860039994},{"$f":"IF(BY299=\"\",\"\",((BY299/BY287)-1)*100)","v":18.363441277265569},7.513795285795144,7.9394048259235239,13.327309509104124,21.880076677301563,13.584334016463263,11.852208644893135,{"$f":"IF('[1]FISCAL(M)'!$K306=\"\",\"\",'[1]FISCAL(M)'!$K306)","v":-3918.4792485454122},{"$f":"+'[1]REAL(A)'!$AO$34","v":231352.41217117693},-1.6937274229266048,{"$f":"IF('[1]FISCAL(M)'!$L306=\"\",\"\",'[1]FISCAL(M)'!$L306)","v":-3458.0925173734126},{"$f":"+'[1]REAL(A)'!$AP$34","v":281273.87517117691},-1.2294396396639737,116006.00071387735,{"$f":"'[1]Gráfico REM'!BG300","v":20841.408860916985},{"$f":"'[1]Gráfico REM'!BH300","v":88244.015781138529},{"$f":"'[1]Gráfico REM'!BI300","v":6920.5760718218407},7.5187418538100514,-3.6655010146120715,10.082237608793342,13.499936054780148,176618.59121116734,{"$f":"'[1]Gráfico REM'!BK300","v":22613.145201106985},{"$f":"'[1]Gráfico REM'!BL300","v":125926.77564117852},{"$f":"'[1]Gráfico REM'!BM300","v":28078.670368881838},7.0168074748357512,-5.1967920080441381,10.605988598507366,2.725168463456118]
[2014,"octubre","2014-octubre",{"$f":"IF('[1]REAL IPC(M)'!$AL307=\"\",\"\",+'[1]REAL IPC(M)'!$AL307)","v":3.9842547426678143},{"$f":"IF('[1]REAL IPC(M)'!$BE307=\"\",\"\",+'[1]REAL IPC(M)'!$BE307)","v":2.957825941483283},{"$f":"IF('[1]REAL IPC(M)'!$AM307=\"\",\"\",+'[1]REAL IPC(M)'!$AM307)","v":3.7532611629776058},{"$f":"IF('[1]REAL IPC(M)'!$BI307=\"\",\"\",+'[1]REAL IPC(M)'!$BI307)","v":2.8279151909348599},{"$f":"IF('[1]REAL IMAE(M)'!BJ307=\"\",\"\",'[1]REAL IMAE(M)'!BJ307)","v":4.3393570499360434},{"$f":"IF('[1]REAL IMAE(M)'!BK307=\"\",\"\",'[1]REAL IMAE(M)'!BK307)","v":4.5732719265066724},{"$f":"IF('[1]REAL IMAE(M)'!BN307=\"\",\"\",'[1]REAL IMAE(M)'!BN307)","v":4.3987404931404628},{"$f":"IF('[1]REAL IMAE(M)'!BO307=\"\",\"\",'[1]REAL IMAE(M)'!BO307)","v":4.7585008873032963},{"$f":"IF('[1]EXT RIN(M)'!$K307=\"\",\"\",'[1]EXT RIN(M)'!$K307)","v":26356.638916895186},"",{"$f":"IF('[1]EXT RIN(M)'!$L307=\"\",\"\",'[1]EXT RIN(M)'!$L307)","v":29773.351893185187},"",{"$f":"IF('[1]MONE(M)CARD'!EG307=\"\",\"\",'[1]MONE(M)CARD'!EG307)","v":26917.148015608502},{"$f":"IF('[1]MONE(M)CARD'!EK307=\"\",\"\",'[1]MONE(M)CARD'!EK307)","v":47123.296283856398},{"$f":"IF('[1]MONE(M)CARD'!EP307=\"\",\"\",'[1]MONE(M)CARD'!EP307)","v":26546.202497352046},{"$f":"IF('[1]MONE(M)CARD'!ES307=\"\",\"\",'[1]MONE(M)CARD'!ES307)","v":6.947543161320513},{"$f":"IF('[1]MONE(M)CARD'!EV307=\"\",\"\",'[1]MONE(M)CARD'!EV307)","v":7.4387604503751259},{"$f":"IF('[1]MONE(M)CARD'!EZ307=\"\",\"\",'[1]MONE(M)CARD'!EZ307)","v":7.7298613050977627},{"$f":"IF('[1]MONE(M)CAPARD'!FC307=\"\",\"\",'[1]MONE(M)CAPARD'!FC307)","v":34869.925733018506},{"$f":"IF('[1]MONE(M)CAPARD'!FG307=\"\",\"\",'[1]MONE(M)CAPARD'!FG307)","v":73208.578058306404},{"$f":"IF('[1]MONE(M)CAPARD'!FL307=\"\",\"\",'[1]MONE(M)CAPARD'!FL307)","v":26546.202497352031},{"$f":"IF('[1]MONE(M)CAPARD'!FO307=\"\",\"\",'[1]MONE(M)CAPARD'!FO307)","v":6.7673935418501197},{"$f":"IF('[1]MONE(M)CAPARD'!FR307=\"\",\"\",'[1]MONE(M)CAPARD'!FR307)","v":7.7285962889218851},{"$f":"IF('[1]MONE(M)CAPARD'!FV307=\"\",\"\",'[1]MONE(M)CAPARD'!FV307)","v":7.8896147222603741},{"$f":"IF('[1]MONE(M)CARD'!FV307=\"\",\"\",'[1]MONE(M)CARD'!FV307)","v":903.43346426385415},{"$f":"IF('[1]MONE(M)CARD'!GD307=\"\",\"\",'[1]MONE(M)CARD'!GD307)","v":97.261820773499636},{"$f":"IF('[1]MONE(M)CARD'!GE307=\"\",\"\",'[1]MONE(M)CARD'!GE307)","v":8215.3835876683133},1.8395293835592463,{"$f":"IF('[9]II.2.Balance OSD-Activos'!J165=\"\",\"\",'[9]II.2.Balance OSD-Activos'!J165)","v":196.90501713872658},{"$f":"IF('[9]II.2.Balance OSD-Activos'!N165=\"\",\"\",'[9]II.2.Balance OSD-Activos'!N165)","v":876.15332325612621},{"$f":"IF('[9]II.2.Balance OSD-Activos'!R165=\"\",\"\",'[9]II.2.Balance OSD-Activos'!R165)","v":40606.43305960804},{"$f":"IF('[9]II.2.Balance OSD-Activos'!S165=\"\",\"\",'[9]II.2.Balance OSD-Activos'!S165)","v":44074.073641822717},40803.338076746768,85753.565041825612,45.161080135832002,9.0995156531237686,35.660294510884597,8.9682484345172231,10.715069708950864,10.145915993839761,5.3002351115317481E-2,{"$f":"IF('[1]MONE(M)CAPARD'!GS307=\"\",\"\",'[1]MONE(M)CAPARD'!GS307)","v":15617.965264681901},{"$f":"IF('[1]MONE(M)CARD'!HA307=\"\",\"\",'[1]MONE(M)CAPARD'!HA307)","v":8981.8388381383138},{"$f":"IF('[1]MONE(M)CAPARD'!HB307=\"\",\"\",'[1]MONE(M)CAPARD'!HB307)","v":6636.1264265435875},"n.d.",{"$f":"IF('[10]II.2.Balance OSD-Activos'!J165=\"\",\"\",'[10]II.2.Balance OSD-Activos'!J165)","v":1667.2987965987268},{"$f":"IF('[10]II.2.Balance OSD-Activos'!N165=\"\",\"\",'[10]II.2.Balance OSD-Activos'!N165)","v":1404.6722341361265},{"$f":"IF('[10]II.2.Balance OSD-Activos'!R165=\"\",\"\",'[10]II.2.Balance OSD-Activos'!R165)","v":60019.532692208028},{"$f":"IF('[10]II.2.Balance OSD-Activos'!S165=\"\",\"\",'[10]II.2.Balance OSD-Activos'!S165)","v":60124.250707082712},61686.831488806754,123215.75443002558,36.535703839596408,9.9203302282343984,29.706298424046906,9.3283055944945126,11.230048056941765,10.749251848171259,0.21767222009347797,{"$f":"IF('[1]MONE(M)CAPARD'!AS307=\"\",\"\",'[1]MONE(M)CAPARD'!AS307)","v":5.25},{"$f":"IF('[1]MONE(M)CAPARD'!AT307=\"\",\"\",'[1]MONE(M)CAPARD'!AT307)","v":"n.a."},{"$f":"IF('[1]MONE(M)CAPARD'!AU307=\"\",\"\",'[1]MONE(M)CAPARD'!AU307)","v":4.5},{"$f":"IF('[1]MONE(M)CAPARD'!AV307=\"\",\"\",'[1]MONE(M)CAPARD'!AV307)","v":7},{"$f":"IF('[1]MONE(M)CAPARD'!AW307=\"\",\"\",'[1]MONE(M)CAPARD'!AW307)","v":"n.a."},{"$f":"IF('[1]MONE(M)CAPARD'!AX307=\"\",\"\",'[1]MONE(M)CAPARD'!AX307)","v":6.25},{"$f":"IF('[1]MONE(M)CAPARD'!AY307=\"\",\"\",'[1]MONE(M)CAPARD'!AY307)","v":"n.a."},{"$f":"IF('[1]FISCAL(M)'!$K307=\"\",\"\",'[1]FISCAL(M)'!$K307)","v":-4097.3713481987234},{"$f":"IF('[1]FISCAL(M)'!$L307=\"\",\"\",'[1]FISCAL(M)'!$L307)","v":-3716.8610310667236},{"$f":"IF('[1]FISCAL(M)'!$AY307=\"\",\"\",'[1]FISCAL(M)'!$AY307)","v":102793.94626785105},{"$f":"IF('[1]FISCAL(M)'!$BI307=\"\",\"\",'[1]FISCAL(M)'!$BI307)","v":51948.210967851068},{"$f":"IF('[1]FISCAL(M)'!$BS307=\"\",\"\",'[1]FISCAL(M)'!$BS307)","v":50845.7353},{"$f":"IF('[1]FISCAL(M)'!$AZ307=\"\",\"\",'[1]FISCAL(M)'!$AZ307)","v":121218.66322112107},{"$f":"IF('[1]FISCAL(M)'!$BJ307=\"\",\"\",'[1]FISCAL(M)'!$BJ307)","v":55979.936985131069},{"$f":"IF('[1]FISCAL(M)'!$BT307=\"\",\"\",'[1]FISCAL(M)'!$BT307)","v":65238.726235989991},{"$f":"IF('[2]MONE(M)'!$AO307=\"\",\"\",'[2]MONE(M)'!$AO307)","v":15589186.158845015},{"$f":"IF('[3]MONE(M)'!$AO307=\"\",\"\",'[3]MONE(M)'!$AO307)","v":10627.696646820004},{"$f":"IF('[4]MONE(M)'!$AO307=\"\",\"\",'[4]MONE(M)'!$AO307)","v":155019.64690529858},{"$f":"+'[5]MONE(M)'!$AO307","v":228154.24990210589},{"$f":"IF('[6]MONE(M)'!$AO307=\"\",\"\",'[6]MONE(M)'!$AO307)","v":91112.986098151363},{"$f":"IF('[7]MONE(M)'!$AO307=\"\",\"\",'[7]MONE(M)'!$AO307)","v":668563.70064499998},{"$f":"IF('[8]MONE(M)'!$AO307=\"\",\"\",'[8]MONE(M)'!$AO307)","v":38160.711866529993},18.657382714563163,6.2157862944486997,7.80548995407917,11.65081502951546,19.675782213652294,15.714664485400176,12.409416808922646,{"$f":"IF('[1]FISCAL(M)'!$K307=\"\",\"\",'[1]FISCAL(M)'!$K307)","v":-4097.3713481987234},{"$f":"+'[1]REAL(A)'!$AO$34","v":231352.41217117693},-1.7710519245276297,{"$f":"IF('[1]FISCAL(M)'!$L307=\"\",\"\",'[1]FISCAL(M)'!$L307)","v":-3716.8610310667236},{"$f":"+'[1]REAL(A)'!$AP$34","v":281273.87517117691},-1.3214384125808791,117045.7443631208,{"$f":"'[1]Gráfico REM'!BG301","v":20373.138539440399},{"$f":"'[1]Gráfico REM'!BH301","v":89629.004545342556},{"$f":"'[1]Gráfico REM'!BI301","v":7043.6012783378364},7.8040757086126566,-3.3575703209004493,10.166483902083367,14.830206508948706,178309.1000410608,{"$f":"'[1]Gráfico REM'!BK301","v":22295.983279890399},{"$f":"'[1]Gráfico REM'!BL301","v":127789.71641187255},{"$f":"'[1]Gráfico REM'!BM301","v":28223.400349297841},8.8867999357033369,-4.463460598222257,10.826841387496966,12.385616499318974]
[2014,"noviembre","2014-noviembre",{"$f":"IF('[1]REAL IPC(M)'!$AL308=\"\",\"\",+'[1]REAL IPC(M)'!$AL308)","v":3.8806685627666759},{"$f":"IF('[1]REAL IPC(M)'!$BE308=\"\",\"\",+'[1]REAL IPC(M)'!$BE308)","v":2.8946782637192081},{"$f":"IF('[1]REAL IPC(M)'!$AM308=\"\",\"\",+'[1]REAL IPC(M)'!$AM308)","v":3.6053355669807718},{"$f":"IF('[1]REAL IPC(M)'!$BI308=\"\",\"\",+'[1]REAL IPC(M)'!$BI308)","v":2.7557969042627528},{"$f":"IF('[1]REAL IMAE(M)'!BJ308=\"\",\"\",'[1]REAL IMAE(M)'!BJ308)","v":4.6736852133324458},{"$f":"IF('[1]REAL IMAE(M)'!BK308=\"\",\"\",'[1]REAL IMAE(M)'!BK308)","v":4.5958606473648134},{"$f":"IF('[1]REAL IMAE(M)'!BN308=\"\",\"\",'[1]REAL IMAE(M)'!BN308)","v":4.7090845896012423},{"$f":"IF('[1]REAL IMAE(M)'!BO308=\"\",\"\",'[1]REAL IMAE(M)'!BO308)","v":4.7674171032517254},{"$f":"IF('[1]EXT RIN(M)'!$K308=\"\",\"\",'[1]EXT RIN(M)'!$K308)","v":26346.914638817725},"",{"$f":"IF('[1]EXT RIN(M)'!$L308=\"\",\"\",'[1]EXT RIN(M)'!$L308)","v":30276.050594377724},"",{"$f":"IF('[1]MONE(M)CARD'!EG308=\"\",\"\",'[1]MONE(M)CARD'!EG308)","v":27884.898383176576},{"$f":"IF('[1]MONE(M)CARD'!EK308=\"\",\"\",'[1]MONE(M)CARD'!EK308)","v":46823.123341853716},{"$f":"IF('[1]MONE(M)CARD'!EP308=\"\",\"\",'[1]MONE(M)CARD'!EP308)","v":26705.905342407976},{"$f":"IF('[1]MONE(M)CARD'!ES308=\"\",\"\",'[1]MONE(M)CARD'!ES308)","v":7.3734716887888796},{"$f":"IF('[1]MONE(M)CARD'!EV308=\"\",\"\",'[1]MONE(M)CARD'!EV308)","v":7.7383363884194978},{"$f":"IF('[1]MONE(M)CARD'!EZ308=\"\",\"\",'[1]MONE(M)CARD'!EZ308)","v":8.2375352901075782},{"$f":"IF('[1]MONE(M)CAPARD'!FC308=\"\",\"\",'[1]MONE(M)CAPARD'!FC308)","v":36023.345381166575},{"$f":"IF('[1]MONE(M)CAPARD'!FG308=\"\",\"\",'[1]MONE(M)CAPARD'!FG308)","v":72914.828997893695},{"$f":"IF('[1]MONE(M)CAPARD'!FL308=\"\",\"\",'[1]MONE(M)CAPARD'!FL308)","v":26705.90534240799},{"$f":"IF('[1]MONE(M)CAPARD'!FO308=\"\",\"\",'[1]MONE(M)CAPARD'!FO308)","v":11.47930796943859},{"$f":"IF('[1]MONE(M)CAPARD'!FR308=\"\",\"\",'[1]MONE(M)CAPARD'!FR308)","v":13.162695945914638},{"$f":"IF('[1]MONE(M)CAPARD'!FV308=\"\",\"\",'[1]MONE(M)CAPARD'!FV308)","v":12.455270786867544},{"$f":"IF('[1]MONE(M)CARD'!FV308=\"\",\"\",'[1]MONE(M)CARD'!FV308)","v":878.98322763971441},{"$f":"IF('[1]MONE(M)CARD'!GD308=\"\",\"\",'[1]MONE(M)CARD'!GD308)","v":96.045669145538653},{"$f":"IF('[1]MONE(M)CARD'!GE308=\"\",\"\",'[1]MONE(M)CARD'!GE308)","v":8006.7947738736611},-6.2358279405296919,{"$f":"IF('[9]II.2.Balance OSD-Activos'!J166=\"\",\"\",'[9]II.2.Balance OSD-Activos'!J166)","v":178.95943375341824},{"$f":"IF('[9]II.2.Balance OSD-Activos'!N166=\"\",\"\",'[9]II.2.Balance OSD-Activos'!N166)","v":872.64235893422926},{"$f":"IF('[9]II.2.Balance OSD-Activos'!R166=\"\",\"\",'[9]II.2.Balance OSD-Activos'!R166)","v":41523.964645505956},{"$f":"IF('[9]II.2.Balance OSD-Activos'!S166=\"\",\"\",'[9]II.2.Balance OSD-Activos'!S166)","v":44638.493272732361},41702.924079259377,87214.059710925969,26.948036495754145,9.7410922249989262,26.534334237363886,9.6770230395857517,10.225349395986827,10.134996679101626,-1.0919314738135455E-2,{"$f":"IF('[1]MONE(M)CAPARD'!GS308=\"\",\"\",'[1]MONE(M)CAPARD'!GS308)","v":14982.264288350967},{"$f":"IF('[1]MONE(M)CARD'!HA308=\"\",\"\",'[1]MONE(M)CAPARD'!HA308)","v":8777.34781981366},{"$f":"IF('[1]MONE(M)CAPARD'!HB308=\"\",\"\",'[1]MONE(M)CAPARD'!HB308)","v":6204.9164685373071},"n.d.",{"$f":"IF('[10]II.2.Balance OSD-Activos'!J166=\"\",\"\",'[10]II.2.Balance OSD-Activos'!J166)","v":1649.4962405034182},{"$f":"IF('[10]II.2.Balance OSD-Activos'!N166=\"\",\"\",'[10]II.2.Balance OSD-Activos'!N166)","v":1431.3249416042295},{"$f":"IF('[10]II.2.Balance OSD-Activos'!R166=\"\",\"\",'[10]II.2.Balance OSD-Activos'!R166)","v":61168.281709665956},{"$f":"IF('[10]II.2.Balance OSD-Activos'!S166=\"\",\"\",'[10]II.2.Balance OSD-Activos'!S166)","v":60836.951244912372},62817.777950169373,125086.05413668597,18.407934006498472,15.291895362679409,28.01695310944563,15.210135948739566,15.87661475734814,15.707473062226729,4.9582212140554702,{"$f":"IF('[1]MONE(M)CAPARD'!AS308=\"\",\"\",'[1]MONE(M)CAPARD'!AS308)","v":5.25},{"$f":"IF('[1]MONE(M)CAPARD'!AT308=\"\",\"\",'[1]MONE(M)CAPARD'!AT308)","v":"n.a."},{"$f":"IF('[1]MONE(M)CAPARD'!AU308=\"\",\"\",'[1]MONE(M)CAPARD'!AU308)","v":4},{"$f":"IF('[1]MONE(M)CAPARD'!AV308=\"\",\"\",'[1]MONE(M)CAPARD'!AV308)","v":7},{"$f":"IF('[1]MONE(M)CAPARD'!AW308=\"\",\"\",'[1]MONE(M)CAPARD'!AW308)","v":"n.a."},{"$f":"IF('[1]MONE(M)CAPARD'!AX308=\"\",\"\",'[1]MONE(M)CAPARD'!AX308)","v":6.25},{"$f":"IF('[1]MONE(M)CAPARD'!AY308=\"\",\"\",'[1]MONE(M)CAPARD'!AY308)","v":"n.a."},{"$f":"IF('[1]FISCAL(M)'!$K308=\"\",\"\",'[1]FISCAL(M)'!$K308)","v":-5256.4409725844089},{"$f":"IF('[1]FISCAL(M)'!$L308=\"\",\"\",'[1]FISCAL(M)'!$L308)","v":-4833.4840149624097},{"$f":"IF('[1]FISCAL(M)'!$AY308=\"\",\"\",'[1]FISCAL(M)'!$AY308)","v":102574.25343391729},{"$f":"IF('[1]FISCAL(M)'!$BI308=\"\",\"\",'[1]FISCAL(M)'!$BI308)","v":51252.329003114079},{"$f":"IF('[1]FISCAL(M)'!$BS308=\"\",\"\",'[1]FISCAL(M)'!$BS308)","v":51321.924430803207},{"$f":"IF('[1]FISCAL(M)'!$AZ308=\"\",\"\",'[1]FISCAL(M)'!$AZ308)","v":120913.94708866728},{"$f":"IF('[1]FISCAL(M)'!$BJ308=\"\",\"\",'[1]FISCAL(M)'!$BJ308)","v":55247.494417014081},{"$f":"IF('[1]FISCAL(M)'!$BT308=\"\",\"\",'[1]FISCAL(M)'!$BT308)","v":65666.452671653213},{"$f":"IF('[2]MONE(M)'!$AO308=\"\",\"\",'[2]MONE(M)'!$AO308)","v":15765930.409410212},{"$f":"IF('[3]MONE(M)'!$AO308=\"\",\"\",'[3]MONE(M)'!$AO308)","v":10714.16986333},{"$f":"IF('[4]MONE(M)'!$AO308=\"\",\"\",'[4]MONE(M)'!$AO308)","v":156944.31941509101},{"$f":"+'[5]MONE(M)'!$AO308","v":231519.86374804506},{"$f":"IF('[6]MONE(M)'!$AO308=\"\",\"\",'[6]MONE(M)'!$AO308)","v":94489.953607852527},{"$f":"IF('[7]MONE(M)'!$AO308=\"\",\"\",'[7]MONE(M)'!$AO308)","v":687438.75309000001},{"$f":"IF('[8]MONE(M)'!$AO308=\"\",\"\",'[8]MONE(M)'!$AO308)","v":38531.707593690007},18.191490178279125,5.3824459775601019,8.2248070651267611,11.781050769067036,20.967918216604264,16.456437494943433,31.137047482721659,{"$f":"IF('[1]FISCAL(M)'!$K308=\"\",\"\",'[1]FISCAL(M)'!$K308)","v":-5256.4409725844089},{"$f":"+'[1]REAL(A)'!$AO$34","v":231352.41217117693},-2.2720493481153698,{"$f":"IF('[1]FISCAL(M)'!$L308=\"\",\"\",'[1]FISCAL(M)'!$L308)","v":-4833.4840149624097},{"$f":"+'[1]REAL(A)'!$AP$34","v":281273.87517117691},-1.7184262178707004,117313.54580687796,{"$f":"'[1]Gráfico REM'!BG302","v":19561.128921047399},{"$f":"'[1]Gráfico REM'!BH302","v":90992.320180542345},{"$f":"'[1]Gráfico REM'!BI302","v":6760.0967052882224},6.389815020256151,-8.7661941063568278,10.102634961359879,9.3193318501675559,179422.84528547799,{"$f":"'[1]Gráfico REM'!BK302","v":21459.251847117397},{"$f":"'[1]Gráfico REM'!BL302","v":129524.02777423235},{"$f":"'[1]Gráfico REM'!BM302","v":28439.565664128226},12.186451894090933,-8.1565022897235995,15.619655107716568,15.882426476848654]
[2014,"diciembre","2014-diciembre",{"$f":"IF('[1]REAL IPC(M)'!$AL309=\"\",\"\",+'[1]REAL IPC(M)'!$AL309)","v":3.1038844622701234},{"$f":"IF('[1]REAL IPC(M)'!$BE309=\"\",\"\",+'[1]REAL IPC(M)'!$BE309)","v":2.833499652868765},{"$f":"IF('[1]REAL IPC(M)'!$AM309=\"\",\"\",+'[1]REAL IPC(M)'!$AM309)","v":2.8463143272565494},{"$f":"IF('[1]REAL IPC(M)'!$BI309=\"\",\"\",+'[1]REAL IPC(M)'!$BI309)","v":2.6859076819716554},{"$f":"IF('[1]REAL IMAE(M)'!BJ309=\"\",\"\",'[1]REAL IMAE(M)'!BJ309)","v":4.9446740279835755},{"$f":"IF('[1]REAL IMAE(M)'!BK309=\"\",\"\",'[1]REAL IMAE(M)'!BK309)","v":4.6165428889032967},{"$f":"IF('[1]REAL IMAE(M)'!BN309=\"\",\"\",'[1]REAL IMAE(M)'!BN309)","v":5.176190479432341},{"$f":"IF('[1]REAL IMAE(M)'!BO309=\"\",\"\",'[1]REAL IMAE(M)'!BO309)","v":4.7752946414407527},{"$f":"IF('[1]EXT RIN(M)'!$K309=\"\",\"\",'[1]EXT RIN(M)'!$K309)","v":27526.147964282471},27526.147964282471,{"$f":"IF('[1]EXT RIN(M)'!$L309=\"\",\"\",'[1]EXT RIN(M)'!$L309)","v":31495.95714002247},31495.95714002247,{"$f":"IF('[1]MONE(M)CARD'!EG309=\"\",\"\",'[1]MONE(M)CARD'!EG309)","v":29526.033901290288},{"$f":"IF('[1]MONE(M)CARD'!EK309=\"\",\"\",'[1]MONE(M)CARD'!EK309)","v":47341.764017529014},{"$f":"IF('[1]MONE(M)CARD'!EP309=\"\",\"\",'[1]MONE(M)CARD'!EP309)","v":26976.482826233943},{"$f":"IF('[1]MONE(M)CARD'!ES309=\"\",\"\",'[1]MONE(M)CARD'!ES309)","v":5.347843892193116},{"$f":"IF('[1]MONE(M)CARD'!EV309=\"\",\"\",'[1]MONE(M)CARD'!EV309)","v":6.2519579656378221},{"$f":"IF('[1]MONE(M)CARD'!EZ309=\"\",\"\",'[1]MONE(M)CARD'!EZ309)","v":7.0502747298174517},{"$f":"IF('[1]MONE(M)CAPARD'!FC309=\"\",\"\",'[1]MONE(M)CAPARD'!FC309)","v":37842.580869280282},{"$f":"IF('[1]MONE(M)CAPARD'!FG309=\"\",\"\",'[1]MONE(M)CAPARD'!FG309)","v":73678.477463478994},{"$f":"IF('[1]MONE(M)CAPARD'!FL309=\"\",\"\",'[1]MONE(M)CAPARD'!FL309)","v":26976.482826233958},{"$f":"IF('[1]MONE(M)CAPARD'!FO309=\"\",\"\",'[1]MONE(M)CAPARD'!FO309)","v":10.09171280784129},{"$f":"IF('[1]MONE(M)CAPARD'!FR309=\"\",\"\",'[1]MONE(M)CAPARD'!FR309)","v":13.619831899635759},{"$f":"IF('[1]MONE(M)CAPARD'!FV309=\"\",\"\",'[1]MONE(M)CAPARD'!FV309)","v":12.770954422262658},{"$f":"IF('[1]MONE(M)CARD'!FV309=\"\",\"\",'[1]MONE(M)CARD'!FV309)","v":867.59623256862369},{"$f":"IF('[1]MONE(M)CARD'!GD309=\"\",\"\",'[1]MONE(M)CARD'!GD309)","v":118.32419786704634},{"$f":"IF('[1]MONE(M)CARD'!GE309=\"\",\"\",'[1]MONE(M)CARD'!GE309)","v":7523.1748436745202},-9.2914733824561058,{"$f":"IF('[9]II.2.Balance OSD-Activos'!J167=\"\",\"\",'[9]II.2.Balance OSD-Activos'!J167)","v":178.36396239179453},{"$f":"IF('[9]II.2.Balance OSD-Activos'!N167=\"\",\"\",'[9]II.2.Balance OSD-Activos'!N167)","v":865.17637956772785},{"$f":"IF('[9]II.2.Balance OSD-Activos'!R167=\"\",\"\",'[9]II.2.Balance OSD-Activos'!R167)","v":42356.952222422246},{"$f":"IF('[9]II.2.Balance OSD-Activos'!S167=\"\",\"\",'[9]II.2.Balance OSD-Activos'!S167)","v":44863.667675885677},42535.316184814037,88264.160240267447,30.292321363624186,10.247386163553408,{"$f":"IF(OR(AG302=\"\",AG290=\"\"),\"\",((AG302/AG290)-1)*100)","v":23.904071394167879},10.176009657900487,10.019940773795533,10.250649377201304,0.11565269809967837,{"$f":"IF('[1]MONE(M)CAPARD'!GS309=\"\",\"\",'[1]MONE(M)CAPARD'!GS309)","v":15339.222667551247},{"$f":"IF('[1]MONE(M)CARD'!HA309=\"\",\"\",'[1]MONE(M)CAPARD'!HA309)","v":8294.4084186045184},{"$f":"IF('[1]MONE(M)CAPARD'!HB309=\"\",\"\",'[1]MONE(M)CAPARD'!HB309)","v":7044.8142489467282},"n.d.",{"$f":"IF('[10]II.2.Balance OSD-Activos'!J167=\"\",\"\",'[10]II.2.Balance OSD-Activos'!J167)","v":1671.4427500017948},{"$f":"IF('[10]II.2.Balance OSD-Activos'!N167=\"\",\"\",'[10]II.2.Balance OSD-Activos'!N167)","v":1261.929114757728},{"$f":"IF('[10]II.2.Balance OSD-Activos'!R167=\"\",\"\",'[10]II.2.Balance OSD-Activos'!R167)","v":61944.934082832246},{"$f":"IF('[10]II.2.Balance OSD-Activos'!S167=\"\",\"\",'[10]II.2.Balance OSD-Activos'!S167)","v":61270.674595365679},63616.376832834037,126148.98054295745,16.881686012596386,17.326982209485408,12.572744103327494,17.339044527565495,17.508229641309402,17.365323520334776,1.6578504581080473,{"$f":"IF('[1]MONE(M)CAPARD'!AS309=\"\",\"\",'[1]MONE(M)CAPARD'!AS309)","v":5.25},{"$f":"IF('[1]MONE(M)CAPARD'!AT309=\"\",\"\",'[1]MONE(M)CAPARD'!AT309)","v":"n.a."},{"$f":"IF('[1]MONE(M)CAPARD'!AU309=\"\",\"\",'[1]MONE(M)CAPARD'!AU309)","v":4},{"$f":"IF('[1]MONE(M)CAPARD'!AV309=\"\",\"\",'[1]MONE(M)CAPARD'!AV309)","v":7},{"$f":"IF('[1]MONE(M)CAPARD'!AW309=\"\",\"\",'[1]MONE(M)CAPARD'!AW309)","v":"n.a."},{"$f":"IF('[1]MONE(M)CAPARD'!AX309=\"\",\"\",'[1]MONE(M)CAPARD'!AX309)","v":6.25},{"$f":"IF('[1]MONE(M)CAPARD'!AY309=\"\",\"\",'[1]MONE(M)CAPARD'!AY309)","v":"n.a."},{"$f":"IF('[1]FISCAL(M)'!$K309=\"\",\"\",'[1]FISCAL(M)'!$K309)","v":-7064.8193222270402},{"$f":"IF('[1]FISCAL(M)'!$L309=\"\",\"\",'[1]FISCAL(M)'!$L309)","v":-7063.6709941350427},{"$f":"IF('[1]FISCAL(M)'!$AY309=\"\",\"\",'[1]FISCAL(M)'!$AY309)","v":103142.26576528311},{"$f":"IF('[1]FISCAL(M)'!$BI309=\"\",\"\",'[1]FISCAL(M)'!$BI309)","v":50580.701688610789},{"$f":"IF('[1]FISCAL(M)'!$BS309=\"\",\"\",'[1]FISCAL(M)'!$BS309)","v":52561.564076672337},{"$f":"IF('[1]FISCAL(M)'!$AZ309=\"\",\"\",'[1]FISCAL(M)'!$AZ309)","v":121412.19152366313},{"$f":"IF('[1]FISCAL(M)'!$BJ309=\"\",\"\",'[1]FISCAL(M)'!$BJ309)","v":54498.399849830792},{"$f":"IF('[1]FISCAL(M)'!$BT309=\"\",\"\",'[1]FISCAL(M)'!$BT309)","v":66913.79167383234},{"$f":"IF('[2]MONE(M)'!$AO309=\"\",\"\",'[2]MONE(M)'!$AO309)","v":15934291.533761907},{"$f":"IF('[3]MONE(M)'!$AO309=\"\",\"\",'[3]MONE(M)'!$AO309)","v":10692.22788988},{"$f":"IF('[4]MONE(M)'!$AO309=\"\",\"\",'[4]MONE(M)'!$AO309)","v":158834.03245987653},{"$f":"+'[5]MONE(M)'!$AO309","v":234000.0265582242},{"$f":"IF('[6]MONE(M)'!$AO309=\"\",\"\",'[6]MONE(M)'!$AO309)","v":96172.139906775876},{"$f":"IF('[7]MONE(M)'!$AO309=\"\",\"\",'[7]MONE(M)'!$AO309)","v":713344.75143313},{"$f":"IF('[8]MONE(M)'!$AO309=\"\",\"\",'[8]MONE(M)'!$AO309)","v":38759.416334230002},17.699149245839529,4.607699517009789,8.5450118224117855,11.461296669765119,20.597010544536044,19.50387132761271,38.904317287157419,{"$f":"IF('[1]FISCAL(M)'!$K309=\"\",\"\",'[1]FISCAL(M)'!$K309)","v":-7064.8193222270402},{"$f":"+'[1]REAL(A)'!$AO$34","v":231352.41217117693},-3.0537046300601367,{"$f":"IF('[1]FISCAL(M)'!$L309=\"\",\"\",'[1]FISCAL(M)'!$L309)","v":-7063.6709941350427},{"$f":"+'[1]REAL(A)'!$AP$34","v":281273.87517117691},-2.5113142803739783,118608.83437769748,{"$f":"'[1]Gráfico REM'!BG303","v":19294.674165914446},{"$f":"'[1]Gráfico REM'!BH303","v":92109.464261855828},{"$f":"'[1]Gráfico REM'!BI303","v":7204.6959499272034},6.9264708696916921,-9.641192818842125,10.230438917692485,19.850882409913815,180889.60629534748,{"$f":"'[1]Gráfico REM'!BK303","v":21249.099077844447},{"$f":"'[1]Gráfico REM'!BL303","v":130868.88059608583},{"$f":"'[1]Gráfico REM'!BM303","v":28771.626621417206},13.878522910009817,-8.8302449481646015,17.408569101542849,19.51987838487139]
[2015,"enero","2015-enero",{"$f":"IF('[1]REAL IPC(M)'!$AL310=\"\",\"\",+'[1]REAL IPC(M)'!$AL310)","v":2.3012483167073272},{"$f":"IF('[1]REAL IPC(M)'!$BE310=\"\",\"\",+'[1]REAL IPC(M)'!$BE310)","v":2.774747485218132},{"$f":"IF('[1]REAL IPC(M)'!$AM310=\"\",\"\",+'[1]REAL IPC(M)'!$AM310)","v":2.1134533302717307},{"$f":"IF('[1]REAL IPC(M)'!$BI310=\"\",\"\",+'[1]REAL IPC(M)'!$BI310)","v":2.6187576918984101},{"$f":"IF('[1]REAL IMAE(M)'!BJ310=\"\",\"\",'[1]REAL IMAE(M)'!BJ310)","v":4.5330771356998589},{"$f":"IF('[1]REAL IMAE(M)'!BK310=\"\",\"\",'[1]REAL IMAE(M)'!BK310)","v":4.6351244928043656},{"$f":"IF('[1]REAL IMAE(M)'!BN310=\"\",\"\",'[1]REAL IMAE(M)'!BN310)","v":4.7492019830414289},{"$f":"IF('[1]REAL IMAE(M)'!BO310=\"\",\"\",'[1]REAL IMAE(M)'!BO310)","v":4.7819322227068639},{"$f":"IF('[1]EXT RIN(M)'!$K310=\"\",\"\",'[1]EXT RIN(M)'!$K310)","v":27587.291850048623},"",{"$f":"IF('[1]EXT RIN(M)'!$L310=\"\",\"\",'[1]EXT RIN(M)'!$L310)","v":31545.068455138622},"",{"$f":"IF('[1]MONE(M)CARD'!EG310=\"\",\"\",'[1]MONE(M)CARD'!EG310)","v":29242.440690727646},{"$f":"IF('[1]MONE(M)CARD'!EK310=\"\",\"\",'[1]MONE(M)CARD'!EK310)","v":47205.584111724675},{"$f":"IF('[1]MONE(M)CARD'!EP310=\"\",\"\",'[1]MONE(M)CARD'!EP310)","v":26832.54854687996},{"$f":"IF('[1]MONE(M)CARD'!ES310=\"\",\"\",'[1]MONE(M)CARD'!ES310)","v":7.1312638039338516},{"$f":"IF('[1]MONE(M)CARD'!EV310=\"\",\"\",'[1]MONE(M)CARD'!EV310)","v":7.1036155196798623},{"$f":"IF('[1]MONE(M)CARD'!EZ310=\"\",\"\",'[1]MONE(M)CARD'!EZ310)","v":7.3611949030621293},{"$f":"IF('[1]MONE(M)CAPARD'!FC310=\"\",\"\",'[1]MONE(M)CAPARD'!FC310)","v":37522.771782317643},{"$f":"IF('[1]MONE(M)CAPARD'!FG310=\"\",\"\",'[1]MONE(M)CAPARD'!FG310)","v":73483.846858214674},{"$f":"IF('[1]MONE(M)CAPARD'!FL310=\"\",\"\",'[1]MONE(M)CAPARD'!FL310)","v":26832.54854687996},{"$f":"IF('[1]MONE(M)CAPARD'!FO310=\"\",\"\",'[1]MONE(M)CAPARD'!FO310)","v":6.6417765332335454},{"$f":"IF('[1]MONE(M)CAPARD'!FR310=\"\",\"\",'[1]MONE(M)CAPARD'!FR310)","v":6.9624653359853017},{"$f":"IF('[1]MONE(M)CAPARD'!FV310=\"\",\"\",'[1]MONE(M)CAPARD'!FV310)","v":7.1823871758281754},{"$f":"IF('[1]MONE(M)CARD'!FV310=\"\",\"\",'[1]MONE(M)CARD'!FV310)","v":1250.8535317043525},{"$f":"IF('[1]MONE(M)CARD'!GD310=\"\",\"\",'[1]MONE(M)CARD'!GD310)","v":85.148140119098812},{"$f":"IF('[1]MONE(M)CARD'!GE310=\"\",\"\",'[1]MONE(M)CARD'!GE310)","v":7679.2673650430434},3.5049393526661587,{"$f":"IF('[9]II.2.Balance OSD-Activos'!J168=\"\",\"\",'[9]II.2.Balance OSD-Activos'!J168)","v":179.7695173842194},{"$f":"IF('[9]II.2.Balance OSD-Activos'!N168=\"\",\"\",'[9]II.2.Balance OSD-Activos'!N168)","v":842.86058057089565},{"$f":"IF('[9]II.2.Balance OSD-Activos'!R168=\"\",\"\",'[9]II.2.Balance OSD-Activos'!R168)","v":41976.452918547599},{"$f":"IF('[9]II.2.Balance OSD-Activos'!S168=\"\",\"\",'[9]II.2.Balance OSD-Activos'!S168)","v":44857.871310978226},42156.222435931821,87856.95432748094,27.68676972233164,10.047578534285906,25.06764149441214,9.9825106460410993,10.047117296533802,10.174279290687792,-7.6370086513511737E-2,{"$f":"IF('[1]MONE(M)CAPARD'!GS310=\"\",\"\",'[1]MONE(M)CAPARD'!GS310)","v":16722.791496220791},{"$f":"IF('[1]MONE(M)CARD'!HA310=\"\",\"\",'[1]MONE(M)CAPARD'!HA310)","v":8441.7228599530445},{"$f":"IF('[1]MONE(M)CAPARD'!HB310=\"\",\"\",'[1]MONE(M)CAPARD'!HB310)","v":8281.0686362677461},"n.d.",{"$f":"IF('[10]II.2.Balance OSD-Activos'!J168=\"\",\"\",'[10]II.2.Balance OSD-Activos'!J168)","v":1680.2507055142196},{"$f":"IF('[10]II.2.Balance OSD-Activos'!N168=\"\",\"\",'[10]II.2.Balance OSD-Activos'!N168)","v":1251.3759320208956},{"$f":"IF('[10]II.2.Balance OSD-Activos'!R168=\"\",\"\",'[10]II.2.Balance OSD-Activos'!R168)","v":61743.827016907599},{"$f":"IF('[10]II.2.Balance OSD-Activos'!S168=\"\",\"\",'[10]II.2.Balance OSD-Activos'!S168)","v":61414.725305728221},63424.077722421818,126090.17896017093,13.57111450196793,11.678188864387117,14.688922034204332,11.627557733171257,10.650772831941469,11.204234441105299,-6.1610890792294768,{"$f":"IF('[1]MONE(M)CAPARD'!AS310=\"\",\"\",'[1]MONE(M)CAPARD'!AS310)","v":5.25},{"$f":"IF('[1]MONE(M)CAPARD'!AT310=\"\",\"\",'[1]MONE(M)CAPARD'!AT310)","v":"n.a."},{"$f":"IF('[1]MONE(M)CAPARD'!AU310=\"\",\"\",'[1]MONE(M)CAPARD'!AU310)","v":4},{"$f":"IF('[1]MONE(M)CAPARD'!AV310=\"\",\"\",'[1]MONE(M)CAPARD'!AV310)","v":7},{"$f":"IF('[1]MONE(M)CAPARD'!AW310=\"\",\"\",'[1]MONE(M)CAPARD'!AW310)","v":"n.a."},{"$f":"IF('[1]MONE(M)CAPARD'!AX310=\"\",\"\",'[1]MONE(M)CAPARD'!AX310)","v":6.25},{"$f":"IF('[1]MONE(M)CAPARD'!AY310=\"\",\"\",'[1]MONE(M)CAPARD'!AY310)","v":"n.a."},{"$f":"IF('[1]FISCAL(M)'!$K310=\"\",\"\",'[1]FISCAL(M)'!$K310)","v":1998.0068540251998},{"$f":"IF('[1]FISCAL(M)'!$L310=\"\",\"\",'[1]FISCAL(M)'!$L310)","v":1528.4575350952},{"$f":"IF('[1]FISCAL(M)'!$AY310=\"\",\"\",'[1]FISCAL(M)'!$AY310)","v":102968.06037282679},{"$f":"IF('[1]FISCAL(M)'!$BI310=\"\",\"\",'[1]FISCAL(M)'!$BI310)","v":52308.519407730593},{"$f":"IF('[1]FISCAL(M)'!$BS310=\"\",\"\",'[1]FISCAL(M)'!$BS310)","v":50659.540965096196},{"$f":"IF('[1]FISCAL(M)'!$AZ310=\"\",\"\",'[1]FISCAL(M)'!$AZ310)","v":121219.80520062678},{"$f":"IF('[1]FISCAL(M)'!$BJ310=\"\",\"\",'[1]FISCAL(M)'!$BJ310)","v":56227.830767650594},{"$f":"IF('[1]FISCAL(M)'!$BT310=\"\",\"\",'[1]FISCAL(M)'!$BT310)","v":64991.974432976189},{"$f":"IF('[2]MONE(M)'!$AO310=\"\",\"\",'[2]MONE(M)'!$AO310)","v":16016954.383987797},{"$f":"IF('[3]MONE(M)'!$AO310=\"\",\"\",'[3]MONE(M)'!$AO310)","v":10748.30459143},{"$f":"IF('[4]MONE(M)'!$AO310=\"\",\"\",'[4]MONE(M)'!$AO310)","v":159927.81189756232},{"$f":"+'[5]MONE(M)'!$AO310","v":234535.21951968764},{"$f":"IF('[6]MONE(M)'!$AO310=\"\",\"\",'[6]MONE(M)'!$AO310)","v":97044.866656666534},{"$f":"IF('[7]MONE(M)'!$AO310=\"\",\"\",'[7]MONE(M)'!$AO310)","v":696334.82851400995},{"$f":"IF('[8]MONE(M)'!$AO310=\"\",\"\",'[8]MONE(M)'!$AO310)","v":39082.341256209998},16.680450072164057,5.169481504845308,8.7780408035045276,10.884113643042426,20.518058031041299,18.393849061736823,14.077215555055588,{"$f":"IF('[1]FISCAL(M)'!$K310=\"\",\"\",'[1]FISCAL(M)'!$K310)","v":1998.0068540251998},{"$f":"+'[1]REAL(A)'!$AO$35","v":247040.69555179874},0.80877640405050744,{"$f":"IF('[1]FISCAL(M)'!$L310=\"\",\"\",'[1]FISCAL(M)'!$L310)","v":1528.4575350952},{"$f":"+'[1]REAL(A)'!$AP$35","v":301132.41555179865},0.50756991149373143,119977.0678754996,{"$f":"'[1]Gráfico REM'!BG304","v":21158.835307495341},{"$f":"'[1]Gráfico REM'!BH304","v":91841.834035686072},{"$f":"'[1]Gráfico REM'!BI304","v":6976.3985323181851},{"$f":"IFERROR(+((CS303/CS291)-1)*100,\"\")","v":7.5139701092589828},-5.1194029022221033,10.262498021008138,16.316400107905537,182993.48996870962,{"$f":"'[1]Gráfico REM'!BK304","v":23271.633871325343},{"$f":"'[1]Gráfico REM'!BL304","v":130924.17529189607},{"$f":"'[1]Gráfico REM'!BM304","v":28797.680805488191},9.3617781454758067,-5.3107504524069649,11.374252793373806,14.283979355236109]
[2015,"febrero","2015-febrero",{"$f":"IF('[1]REAL IPC(M)'!$AL311=\"\",\"\",+'[1]REAL IPC(M)'!$AL311)","v":2.1162881187895444},{"$f":"IF('[1]REAL IPC(M)'!$BE311=\"\",\"\",+'[1]REAL IPC(M)'!$BE311)","v":2.7188898731050681},{"$f":"IF('[1]REAL IPC(M)'!$AM311=\"\",\"\",+'[1]REAL IPC(M)'!$AM311)","v":1.7797196323861231},{"$f":"IF('[1]REAL IPC(M)'!$BI311=\"\",\"\",+'[1]REAL IPC(M)'!$BI311)","v":2.5548635565498801},{"$f":"IF('[1]REAL IMAE(M)'!BJ311=\"\",\"\",'[1]REAL IMAE(M)'!BJ311)","v":4.1821089478458306},{"$f":"IF('[1]REAL IMAE(M)'!BK311=\"\",\"\",'[1]REAL IMAE(M)'!BK311)","v":4.6514323807278268},{"$f":"IF('[1]REAL IMAE(M)'!BN311=\"\",\"\",'[1]REAL IMAE(M)'!BN311)","v":4.2628756982949101},{"$f":"IF('[1]REAL IMAE(M)'!BO311=\"\",\"\",'[1]REAL IMAE(M)'!BO311)","v":4.7871593473831187},{"$f":"IF('[1]EXT RIN(M)'!$K311=\"\",\"\",'[1]EXT RIN(M)'!$K311)","v":27770.155223293394},"",{"$f":"IF('[1]EXT RIN(M)'!$L311=\"\",\"\",'[1]EXT RIN(M)'!$L311)","v":31823.405952363395},"",{"$f":"IF('[1]MONE(M)CARD'!EG311=\"\",\"\",'[1]MONE(M)CARD'!EG311)","v":28938.534034395794},{"$f":"IF('[1]MONE(M)CARD'!EK311=\"\",\"\",'[1]MONE(M)CARD'!EK311)","v":48059.344744936359},{"$f":"IF('[1]MONE(M)CARD'!EP311=\"\",\"\",'[1]MONE(M)CARD'!EP311)","v":27248.158666922158},{"$f":"IF('[1]MONE(M)CARD'!ES311=\"\",\"\",'[1]MONE(M)CARD'!ES311)","v":7.5089510521946901},{"$f":"IF('[1]MONE(M)CARD'!EV311=\"\",\"\",'[1]MONE(M)CARD'!EV311)","v":8.6088431861336865},{"$f":"IF('[1]MONE(M)CARD'!EZ311=\"\",\"\",'[1]MONE(M)CARD'!EZ311)","v":7.6930501311745836},{"$f":"IF('[1]MONE(M)CAPARD'!FC311=\"\",\"\",'[1]MONE(M)CAPARD'!FC311)","v":36988.475920015793},{"$f":"IF('[1]MONE(M)CAPARD'!FG311=\"\",\"\",'[1]MONE(M)CAPARD'!FG311)","v":74580.438529586361},{"$f":"IF('[1]MONE(M)CAPARD'!FL311=\"\",\"\",'[1]MONE(M)CAPARD'!FL311)","v":27248.158666922158},{"$f":"IF('[1]MONE(M)CAPARD'!FO311=\"\",\"\",'[1]MONE(M)CAPARD'!FO311)","v":6.5916465477088515},{"$f":"IF('[1]MONE(M)CAPARD'!FR311=\"\",\"\",'[1]MONE(M)CAPARD'!FR311)","v":7.9159134153983457},{"$f":"IF('[1]MONE(M)CAPARD'!FV311=\"\",\"\",'[1]MONE(M)CAPARD'!FV311)","v":7.3690943451081736},{"$f":"IF('[1]MONE(M)CARD'!FV311=\"\",\"\",'[1]MONE(M)CARD'!FV311)","v":1241.7925597668327},{"$f":"IF('[1]MONE(M)CARD'!GD311=\"\",\"\",'[1]MONE(M)CARD'!GD311)","v":86.582326653021099},{"$f":"IF('[1]MONE(M)CARD'!GE311=\"\",\"\",'[1]MONE(M)CARD'!GE311)","v":7884.1533866541058},-1.0264874880855035,{"$f":"IF('[9]II.2.Balance OSD-Activos'!J169=\"\",\"\",'[9]II.2.Balance OSD-Activos'!J169)","v":187.21716907620498},{"$f":"IF('[9]II.2.Balance OSD-Activos'!N169=\"\",\"\",'[9]II.2.Balance OSD-Activos'!N169)","v":865.74861978911053},{"$f":"IF('[9]II.2.Balance OSD-Activos'!R169=\"\",\"\",'[9]II.2.Balance OSD-Activos'!R169)","v":42177.558008962136},{"$f":"IF('[9]II.2.Balance OSD-Activos'!S169=\"\",\"\",'[9]II.2.Balance OSD-Activos'!S169)","v":45157.329485613343},42364.775178038341,88387.853283440796,-5.5882246517519611,10.818037096747336,{"$f":"IF(OR(AG304=\"\",AG292=\"\"),\"\",((AG304/AG292)-1)*100)","v":30.340986336365084},10.903581832089593,11.548642581845559,11.354020949131648,1.1797416584438558,{"$f":"IF('[1]MONE(M)CAPARD'!GS311=\"\",\"\",'[1]MONE(M)CAPARD'!GS311)","v":16881.261405419158},{"$f":"IF('[1]MONE(M)CARD'!HA311=\"\",\"\",'[1]MONE(M)CAPARD'!HA311)","v":8646.9395989741042},{"$f":"IF('[1]MONE(M)CAPARD'!HB311=\"\",\"\",'[1]MONE(M)CAPARD'!HB311)","v":8234.3218064450539},"n.d.",{"$f":"IF('[10]II.2.Balance OSD-Activos'!J169=\"\",\"\",'[10]II.2.Balance OSD-Activos'!J169)","v":1698.6118394962043},{"$f":"IF('[10]II.2.Balance OSD-Activos'!N169=\"\",\"\",'[10]II.2.Balance OSD-Activos'!N169)","v":1359.0596415291106},{"$f":"IF('[10]II.2.Balance OSD-Activos'!R169=\"\",\"\",'[10]II.2.Balance OSD-Activos'!R169)","v":62081.631345952133},{"$f":"IF('[10]II.2.Balance OSD-Activos'!S169=\"\",\"\",'[10]II.2.Balance OSD-Activos'!S169)","v":61869.350013303338},63780.243185448337,127008.65284028079,10.092032697243214,12.252658466196609,27.979482849704105,12.312967808269004,11.740376768100646,12.149668207380859,0.94543376627555986,{"$f":"IF('[1]MONE(M)CAPARD'!AS311=\"\",\"\",'[1]MONE(M)CAPARD'!AS311)","v":4.75},{"$f":"IF('[1]MONE(M)CAPARD'!AT311=\"\",\"\",'[1]MONE(M)CAPARD'!AT311)","v":"n.a."},{"$f":"IF('[1]MONE(M)CAPARD'!AU311=\"\",\"\",'[1]MONE(M)CAPARD'!AU311)","v":3.5},{"$f":"IF('[1]MONE(M)CAPARD'!AV311=\"\",\"\",'[1]MONE(M)CAPARD'!AV311)","v":6.75},{"$f":"IF('[1]MONE(M)CAPARD'!AW311=\"\",\"\",'[1]MONE(M)CAPARD'!AW311)","v":"n.a."},{"$f":"IF('[1]MONE(M)CAPARD'!AX311=\"\",\"\",'[1]MONE(M)CAPARD'!AX311)","v":6.25},{"$f":"IF('[1]MONE(M)CAPARD'!AY311=\"\",\"\",'[1]MONE(M)CAPARD'!AY311)","v":"n.a."},{"$f":"IF('[1]FISCAL(M)'!$K311=\"\",\"\",'[1]FISCAL(M)'!$K311)","v":1463.707219490112},{"$f":"IF('[1]FISCAL(M)'!$L311=\"\",\"\",'[1]FISCAL(M)'!$L311)","v":884.81661706011232},{"$f":"IF('[1]FISCAL(M)'!$AY311=\"\",\"\",'[1]FISCAL(M)'!$AY311)","v":104281.10056277945},{"$f":"IF('[1]FISCAL(M)'!$BI311=\"\",\"\",'[1]FISCAL(M)'!$BI311)","v":53366.719935169269},{"$f":"IF('[1]FISCAL(M)'!$BS311=\"\",\"\",'[1]FISCAL(M)'!$BS311)","v":50914.380627610168},{"$f":"IF('[1]FISCAL(M)'!$AZ311=\"\",\"\",'[1]FISCAL(M)'!$AZ311)","v":122560.88703386944},{"$f":"IF('[1]FISCAL(M)'!$BJ311=\"\",\"\",'[1]FISCAL(M)'!$BJ311)","v":57336.837193079271},{"$f":"IF('[1]FISCAL(M)'!$BT311=\"\",\"\",'[1]FISCAL(M)'!$BT311)","v":65224.049840790161},{"$f":"IF('[2]MONE(M)'!$AO311=\"\",\"\",'[2]MONE(M)'!$AO311)","v":16095633.810602704},{"$f":"IF('[3]MONE(M)'!$AO311=\"\",\"\",'[3]MONE(M)'!$AO311)","v":10783.257534080003},{"$f":"IF('[4]MONE(M)'!$AO311=\"\",\"\",'[4]MONE(M)'!$AO311)","v":160822.48014138773},{"$f":"+'[5]MONE(M)'!$AO311","v":236986.1719877563},{"$f":"IF('[6]MONE(M)'!$AO311=\"\",\"\",'[6]MONE(M)'!$AO311)","v":98313.366927354451},{"$f":"IF('[7]MONE(M)'!$AO311=\"\",\"\",'[7]MONE(M)'!$AO311)","v":695444.78068095003},{"$f":"IF('[8]MONE(M)'!$AO311=\"\",\"\",'[8]MONE(M)'!$AO311)","v":39361.710748519996},12.919730092329583,5.2538115211970382,9.1821265877380718,11.243903785476238,20.051230403604549,17.670310205801918,14.027674707531013,{"$f":"IF('[1]FISCAL(M)'!$K311=\"\",\"\",'[1]FISCAL(M)'!$K311)","v":1463.707219490112},{"$f":"+'[1]REAL(A)'!$AO$35","v":247040.69555179874},0.59249639668505805,{"$f":"IF('[1]FISCAL(M)'!$L311=\"\",\"\",'[1]FISCAL(M)'!$L311)","v":884.81661706011232},{"$f":"+'[1]REAL(A)'!$AP$35","v":301132.41555179865},0.29382974776686321,121586.07015660811,{"$f":"'[1]Gráfico REM'!BG305","v":22036.633594224932},{"$f":"'[1]Gráfico REM'!BH305","v":92394.242429985417},{"$f":"'[1]Gráfico REM'!BI305","v":7155.1941323977717},8.7026484705860607,-3.6761807647789579,11.405429629448705,18.479301724549391,184944.45468409811,{"$f":"'[1]Gráfico REM'!BK305","v":24176.81510345493},{"$f":"'[1]Gráfico REM'!BL305","v":131755.95317850541},{"$f":"'[1]Gráfico REM'!BM305","v":29011.686402137762},10.241709210547434,-3.8715109440464857,12.176097147907328,15.31978259456892]
[2015,"marzo","2015-marzo",{"$f":"IF('[1]REAL IPC(M)'!$AL312=\"\",\"\",+'[1]REAL IPC(M)'!$AL312)","v":1.9963493670394516},{"$f":"IF('[1]REAL IPC(M)'!$BE312=\"\",\"\",+'[1]REAL IPC(M)'!$BE312)","v":2.666366791375574},{"$f":"IF('[1]REAL IPC(M)'!$AM312=\"\",\"\",+'[1]REAL IPC(M)'!$AM312)","v":1.7344607209183849},{"$f":"IF('[1]REAL IPC(M)'!$BI312=\"\",\"\",+'[1]REAL IPC(M)'!$BI312)","v":2.4947049020840106},{"$f":"IF('[1]REAL IMAE(M)'!BJ312=\"\",\"\",'[1]REAL IMAE(M)'!BJ312)","v":4.4576218697371939},{"$f":"IF('[1]REAL IMAE(M)'!BK312=\"\",\"\",'[1]REAL IMAE(M)'!BK312)","v":4.6652861061452722},{"$f":"IF('[1]REAL IMAE(M)'!BN312=\"\",\"\",'[1]REAL IMAE(M)'!BN312)","v":4.5218510282066582},{"$f":"IF('[1]REAL IMAE(M)'!BO312=\"\",\"\",'[1]REAL IMAE(M)'!BO312)","v":4.7908058062382297},{"$f":"IF('[1]EXT RIN(M)'!$K312=\"\",\"\",'[1]EXT RIN(M)'!$K312)","v":29333.640571309636},"",{"$f":"IF('[1]EXT RIN(M)'!$L312=\"\",\"\",'[1]EXT RIN(M)'!$L312)","v":34075.053537069638},"",{"$f":"IF('[1]MONE(M)CARD'!EG312=\"\",\"\",'[1]MONE(M)CARD'!EG312)","v":29359.801353548697},{"$f":"IF('[1]MONE(M)CARD'!EK312=\"\",\"\",'[1]MONE(M)CARD'!EK312)","v":48706.920918730568},{"$f":"IF('[1]MONE(M)CARD'!EP312=\"\",\"\",'[1]MONE(M)CARD'!EP312)","v":27323.457466969558},{"$f":"IF('[1]MONE(M)CARD'!ES312=\"\",\"\",'[1]MONE(M)CARD'!ES312)","v":8.8784266478586282},{"$f":"IF('[1]MONE(M)CARD'!EV312=\"\",\"\",'[1]MONE(M)CARD'!EV312)","v":9.1867727867744442},{"$f":"IF('[1]MONE(M)CARD'!EZ312=\"\",\"\",'[1]MONE(M)CARD'!EZ312)","v":7.9494695622845946},{"$f":"IF('[1]MONE(M)CAPARD'!FC312=\"\",\"\",'[1]MONE(M)CAPARD'!FC312)","v":37332.958854968696},{"$f":"IF('[1]MONE(M)CAPARD'!FG312=\"\",\"\",'[1]MONE(M)CAPARD'!FG312)","v":75439.778641520563},{"$f":"IF('[1]MONE(M)CAPARD'!FL312=\"\",\"\",'[1]MONE(M)CAPARD'!FL312)","v":27323.457466969558},{"$f":"IF('[1]MONE(M)CAPARD'!FO312=\"\",\"\",'[1]MONE(M)CAPARD'!FO312)","v":6.9396117921947109},{"$f":"IF('[1]MONE(M)CAPARD'!FR312=\"\",\"\",'[1]MONE(M)CAPARD'!FR312)","v":8.1578322831183936},{"$f":"IF('[1]MONE(M)CAPARD'!FV312=\"\",\"\",'[1]MONE(M)CAPARD'!FV312)","v":7.4376521457630185},{"$f":"IF('[1]MONE(M)CARD'!FV312=\"\",\"\",'[1]MONE(M)CARD'!FV312)","v":1228.8657323485545},{"$f":"IF('[1]MONE(M)CARD'!GD312=\"\",\"\",'[1]MONE(M)CARD'!GD312)","v":88.657661681797123},{"$f":"IF('[1]MONE(M)CARD'!GE312=\"\",\"\",'[1]MONE(M)CARD'!GE312)","v":8074.4397363541329},3.8546784980315829,{"$f":"IF('[9]II.2.Balance OSD-Activos'!J170=\"\",\"\",'[9]II.2.Balance OSD-Activos'!J170)","v":192.64754448698659},{"$f":"IF('[9]II.2.Balance OSD-Activos'!N170=\"\",\"\",'[9]II.2.Balance OSD-Activos'!N170)","v":855.49255899436207},{"$f":"IF('[9]II.2.Balance OSD-Activos'!R170=\"\",\"\",'[9]II.2.Balance OSD-Activos'!R170)","v":42524.188638520005},{"$f":"IF('[9]II.2.Balance OSD-Activos'!S170=\"\",\"\",'[9]II.2.Balance OSD-Activos'!S170)","v":45413.153778179949},42716.836183006992,88985.482520181307,-4.394048480197621,10.034706846212016,5.0728702651322122,10.109990052277817,11.33047625195891,10.641672293530281,-0.7123486556013674,{"$f":"IF('[1]MONE(M)CAPARD'!GS312=\"\",\"\",'[1]MONE(M)CAPARD'!GS312)","v":17535.53730102097},{"$f":"IF('[1]MONE(M)CARD'!HA312=\"\",\"\",'[1]MONE(M)CAPARD'!HA312)","v":8831.5413440341326},{"$f":"IF('[1]MONE(M)CAPARD'!HB312=\"\",\"\",'[1]MONE(M)CAPARD'!HB312)","v":8703.995956986837},"n.d.",{"$f":"IF('[10]II.2.Balance OSD-Activos'!J170=\"\",\"\",'[10]II.2.Balance OSD-Activos'!J170)","v":1703.814865306987},{"$f":"IF('[10]II.2.Balance OSD-Activos'!N170=\"\",\"\",'[10]II.2.Balance OSD-Activos'!N170)","v":1338.6881866343622},{"$f":"IF('[10]II.2.Balance OSD-Activos'!R170=\"\",\"\",'[10]II.2.Balance OSD-Activos'!R170)","v":62633.835598100006},{"$f":"IF('[10]II.2.Balance OSD-Activos'!S170=\"\",\"\",'[10]II.2.Balance OSD-Activos'!S170)","v":62313.620987619943},64337.650463406993,127989.9596376613,9.8476014137822254,11.719771874214091,4.5063225874682145,11.771592140767574,11.629609833812292,11.595323109020338,-0.55434509836052115,{"$f":"IF('[1]MONE(M)CAPARD'!AS312=\"\",\"\",'[1]MONE(M)CAPARD'!AS312)","v":4.5},{"$f":"IF('[1]MONE(M)CAPARD'!AT312=\"\",\"\",'[1]MONE(M)CAPARD'!AT312)","v":"n.a."},{"$f":"IF('[1]MONE(M)CAPARD'!AU312=\"\",\"\",'[1]MONE(M)CAPARD'!AU312)","v":3.5},{"$f":"IF('[1]MONE(M)CAPARD'!AV312=\"\",\"\",'[1]MONE(M)CAPARD'!AV312)","v":6.5},{"$f":"IF('[1]MONE(M)CAPARD'!AW312=\"\",\"\",'[1]MONE(M)CAPARD'!AW312)","v":"n.a."},{"$f":"IF('[1]MONE(M)CAPARD'!AX312=\"\",\"\",'[1]MONE(M)CAPARD'!AX312)","v":6.25},{"$f":"IF('[1]MONE(M)CAPARD'!AY312=\"\",\"\",'[1]MONE(M)CAPARD'!AY312)","v":"n.a."},{"$f":"IF('[1]FISCAL(M)'!$K312=\"\",\"\",'[1]FISCAL(M)'!$K312)","v":659.97877197120465},{"$f":"IF('[1]FISCAL(M)'!$L312=\"\",\"\",'[1]FISCAL(M)'!$L312)","v":390.81248290120442},{"$f":"IF('[1]FISCAL(M)'!$AY312=\"\",\"\",'[1]FISCAL(M)'!$AY312)","v":106046.079905035},{"$f":"IF('[1]FISCAL(M)'!$BI312=\"\",\"\",'[1]FISCAL(M)'!$BI312)","v":54145.428883077315},{"$f":"IF('[1]FISCAL(M)'!$BS312=\"\",\"\",'[1]FISCAL(M)'!$BS312)","v":51900.651021957696},{"$f":"IF('[1]FISCAL(M)'!$AZ312=\"\",\"\",'[1]FISCAL(M)'!$AZ312)","v":125200.372589565},{"$f":"IF('[1]FISCAL(M)'!$BJ312=\"\",\"\",'[1]FISCAL(M)'!$BJ312)","v":58132.471418837318},{"$f":"IF('[1]FISCAL(M)'!$BT312=\"\",\"\",'[1]FISCAL(M)'!$BT312)","v":67067.901170727695},{"$f":"IF('[2]MONE(M)'!$AO312=\"\",\"\",'[2]MONE(M)'!$AO312)","v":16223409.784515252},{"$f":"IF('[3]MONE(M)'!$AO312=\"\",\"\",'[3]MONE(M)'!$AO312)","v":10804.044014160001},{"$f":"IF('[4]MONE(M)'!$AO312=\"\",\"\",'[4]MONE(M)'!$AO312)","v":162591.89929699866},{"$f":"+'[5]MONE(M)'!$AO312","v":238597.43918134741},{"$f":"IF('[6]MONE(M)'!$AO312=\"\",\"\",'[6]MONE(M)'!$AO312)","v":99278.412151932571},{"$f":"IF('[7]MONE(M)'!$AO312=\"\",\"\",'[7]MONE(M)'!$AO312)","v":696667.29320204002},{"$f":"IF('[8]MONE(M)'!$AO312=\"\",\"\",'[8]MONE(M)'!$AO312)","v":39769.500701409997},12.049695105999024,4.3523576565786426,9.7802627751741866,11.136680269175603,19.978461103056677,16.428780290331812,13.835193778527977,{"$f":"IF('[1]FISCAL(M)'!$K312=\"\",\"\",'[1]FISCAL(M)'!$K312)","v":659.97877197120465},{"$f":"+'[1]REAL(A)'!$AO$35","v":247040.69555179874},0.26715386729990093,{"$f":"IF('[1]FISCAL(M)'!$L312=\"\",\"\",'[1]FISCAL(M)'!$L312)","v":390.81248290120442},{"$f":"+'[1]REAL(A)'!$AP$35","v":301132.41555179865},0.12978094111358784,122907.46989523688,{"$f":"'[1]Gráfico REM'!BG306","v":22810.954941974996},{"$f":"'[1]Gráfico REM'!BH306","v":93016.278474139865},{"$f":"'[1]Gráfico REM'!BI306","v":7080.2364791220216},8.5628494091579022,-1.3561715214789216,10.878040581922388,14.234058712571084,186671.71266571686,{"$f":"'[1]Gráfico REM'!BK306","v":24842.074097974997},{"$f":"'[1]Gráfico REM'!BL306","v":132785.77917554986},{"$f":"'[1]Gráfico REM'!BM306","v":29043.859392192022},10.192608656513013,-0.76345592851450039,11.747468412896112,13.696471775556173]
[2015,"abril","2015-abril",{"$f":"IF('[1]REAL IPC(M)'!$AL313=\"\",\"\",+'[1]REAL IPC(M)'!$AL313)","v":1.6813021108614157},{"$f":"IF('[1]REAL IPC(M)'!$BE313=\"\",\"\",+'[1]REAL IPC(M)'!$BE313)","v":2.6175774014401076},{"$f":"IF('[1]REAL IPC(M)'!$AM313=\"\",\"\",+'[1]REAL IPC(M)'!$AM313)","v":1.4607425530987594},{"$f":"IF('[1]REAL IPC(M)'!$BI313=\"\",\"\",+'[1]REAL IPC(M)'!$BI313)","v":2.4387068971814418},{"$f":"IF('[1]REAL IMAE(M)'!BJ313=\"\",\"\",'[1]REAL IMAE(M)'!BJ313)","v":4.7606662928662447},{"$f":"IF('[1]REAL IMAE(M)'!BK313=\"\",\"\",'[1]REAL IMAE(M)'!BK313)","v":4.6764811650134019},{"$f":"IF('[1]REAL IMAE(M)'!BN313=\"\",\"\",'[1]REAL IMAE(M)'!BN313)","v":4.5872333236013807},{"$f":"IF('[1]REAL IMAE(M)'!BO313=\"\",\"\",'[1]REAL IMAE(M)'!BO313)","v":4.7926682370177387},{"$f":"IF('[1]EXT RIN(M)'!$K313=\"\",\"\",'[1]EXT RIN(M)'!$K313)","v":29442.456335022081},"",{"$f":"IF('[1]EXT RIN(M)'!$L313=\"\",\"\",'[1]EXT RIN(M)'!$L313)","v":33673.723568032081},"",{"$f":"IF('[1]MONE(M)CARD'!EG313=\"\",\"\",'[1]MONE(M)CARD'!EG313)","v":29437.251119205503},{"$f":"IF('[1]MONE(M)CARD'!EK313=\"\",\"\",'[1]MONE(M)CARD'!EK313)","v":48420.727417734575},{"$f":"IF('[1]MONE(M)CARD'!EP313=\"\",\"\",'[1]MONE(M)CARD'!EP313)","v":27649.067010105369},{"$f":"IF('[1]MONE(M)CARD'!ES313=\"\",\"\",'[1]MONE(M)CARD'!ES313)","v":8.9771253806892872},{"$f":"IF('[1]MONE(M)CARD'!EV313=\"\",\"\",'[1]MONE(M)CARD'!EV313)","v":8.4955922481677817},{"$f":"IF('[1]MONE(M)CARD'!EZ313=\"\",\"\",'[1]MONE(M)CARD'!EZ313)","v":7.8705436534756368},{"$f":"IF('[1]MONE(M)CAPARD'!FC313=\"\",\"\",'[1]MONE(M)CAPARD'!FC313)","v":37290.131162945501},{"$f":"IF('[1]MONE(M)CAPARD'!FG313=\"\",\"\",'[1]MONE(M)CAPARD'!FG313)","v":75277.752258644585},{"$f":"IF('[1]MONE(M)CAPARD'!FL313=\"\",\"\",'[1]MONE(M)CAPARD'!FL313)","v":27649.067010105355},{"$f":"IF('[1]MONE(M)CAPARD'!FO313=\"\",\"\",'[1]MONE(M)CAPARD'!FO313)","v":6.3810000188609939},{"$f":"IF('[1]MONE(M)CAPARD'!FR313=\"\",\"\",'[1]MONE(M)CAPARD'!FR313)","v":7.4989387698734866},{"$f":"IF('[1]MONE(M)CAPARD'!FV313=\"\",\"\",'[1]MONE(M)CAPARD'!FV313)","v":7.2299405006692075},{"$f":"IF('[1]MONE(M)CARD'!FV313=\"\",\"\",'[1]MONE(M)CARD'!FV313)","v":1187.3250317713982},{"$f":"IF('[1]MONE(M)CARD'!GD313=\"\",\"\",'[1]MONE(M)CARD'!GD313)","v":213.50647401268736},{"$f":"IF('[1]MONE(M)CARD'!GE313=\"\",\"\",'[1]MONE(M)CARD'!GE313)","v":8403.3682541919625},6.3418986261257304,{"$f":"IF('[9]II.2.Balance OSD-Activos'!J171=\"\",\"\",'[9]II.2.Balance OSD-Activos'!J171)","v":197.46304401424396},{"$f":"IF('[9]II.2.Balance OSD-Activos'!N171=\"\",\"\",'[9]II.2.Balance OSD-Activos'!N171)","v":880.99569336122693},{"$f":"IF('[9]II.2.Balance OSD-Activos'!R171=\"\",\"\",'[9]II.2.Balance OSD-Activos'!R171)","v":42623.228009386447},{"$f":"IF('[9]II.2.Balance OSD-Activos'!S171=\"\",\"\",'[9]II.2.Balance OSD-Activos'!S171)","v":45662.542092067131},42820.691053400689,{"$f":"IF(OR(AF306=\"\",AG306=\"\",AH306=\"\",AI306=\"\"),\"\",SUM(AF306:AI306))","v":89364.228838829047},-11.979498425760781,9.1485484539899797,19.744912500133303,9.2700596185635309,11.093639958838498,10.230879641386581,-0.41079265214369975,{"$f":"IF('[1]MONE(M)CAPARD'!GS313=\"\",\"\",'[1]MONE(M)CAPARD'!GS313)","v":17389.546156058452},{"$f":"IF('[1]MONE(M)CARD'!HA313=\"\",\"\",'[1]MONE(M)CAPARD'!HA313)","v":9213.4553743719625},{"$f":"IF('[1]MONE(M)CAPARD'!HB313=\"\",\"\",'[1]MONE(M)CAPARD'!HB313)","v":8176.0907816864892},"n.d.",{"$f":"IF('[10]II.2.Balance OSD-Activos'!J171=\"\",\"\",'[10]II.2.Balance OSD-Activos'!J171)","v":1686.2519035942439},{"$f":"IF('[10]II.2.Balance OSD-Activos'!N171=\"\",\"\",'[10]II.2.Balance OSD-Activos'!N171)","v":1357.2391444112268},{"$f":"IF('[10]II.2.Balance OSD-Activos'!R171=\"\",\"\",'[10]II.2.Balance OSD-Activos'!R171)","v":62855.169058486441},{"$f":"IF('[10]II.2.Balance OSD-Activos'!S171=\"\",\"\",'[10]II.2.Balance OSD-Activos'!S171)","v":62758.144672137125},64541.420962080687,128656.80477862904,6.9654885570093139,10.723956106040333,13.077927214387607,10.828428068627471,11.534137772889764,11.142177458441903,-0.45314565057843481,{"$f":"IF('[1]MONE(M)CAPARD'!AS313=\"\",\"\",'[1]MONE(M)CAPARD'!AS313)","v":4},{"$f":"IF('[1]MONE(M)CAPARD'!AT313=\"\",\"\",'[1]MONE(M)CAPARD'!AT313)","v":"n.a."},{"$f":"IF('[1]MONE(M)CAPARD'!AU313=\"\",\"\",'[1]MONE(M)CAPARD'!AU313)","v":3.5},{"$f":"IF('[1]MONE(M)CAPARD'!AV313=\"\",\"\",'[1]MONE(M)CAPARD'!AV313)","v":6.5},{"$f":"IF('[1]MONE(M)CAPARD'!AW313=\"\",\"\",'[1]MONE(M)CAPARD'!AW313)","v":"n.a."},{"$f":"IF('[1]MONE(M)CAPARD'!AX313=\"\",\"\",'[1]MONE(M)CAPARD'!AX313)","v":5.75},{"$f":"IF('[1]MONE(M)CAPARD'!AY313=\"\",\"\",'[1]MONE(M)CAPARD'!AY313)","v":"n.a."},{"$f":"IF('[1]FISCAL(M)'!$K313=\"\",\"\",'[1]FISCAL(M)'!$K313)","v":901.60880504291413},{"$f":"IF('[1]FISCAL(M)'!$L313=\"\",\"\",'[1]FISCAL(M)'!$L313)","v":308.8197984629146},{"$f":"IF('[1]FISCAL(M)'!$AY313=\"\",\"\",'[1]FISCAL(M)'!$AY313)","v":106524.1090889581},{"$f":"IF('[1]FISCAL(M)'!$BI313=\"\",\"\",'[1]FISCAL(M)'!$BI313)","v":54599.308417583023},{"$f":"IF('[1]FISCAL(M)'!$BS313=\"\",\"\",'[1]FISCAL(M)'!$BS313)","v":51924.800671375073},{"$f":"IF('[1]FISCAL(M)'!$AZ313=\"\",\"\",'[1]FISCAL(M)'!$AZ313)","v":125644.1838355081},{"$f":"IF('[1]FISCAL(M)'!$BJ313=\"\",\"\",'[1]FISCAL(M)'!$BJ313)","v":58607.350953343019},{"$f":"IF('[1]FISCAL(M)'!$BT313=\"\",\"\",'[1]FISCAL(M)'!$BT313)","v":67036.832882165065},{"$f":"IF('[2]MONE(M)'!$AO313=\"\",\"\",'[2]MONE(M)'!$AO313)","v":16365029.711580865},{"$f":"IF('[3]MONE(M)'!$AO313=\"\",\"\",'[3]MONE(M)'!$AO313)","v":10806.700211969997},{"$f":"IF('[4]MONE(M)'!$AO313=\"\",\"\",'[4]MONE(M)'!$AO313)","v":164592.73719979438},{"$f":"+'[5]MONE(M)'!$AO313","v":239946.86968677916},{"$f":"IF('[6]MONE(M)'!$AO313=\"\",\"\",'[6]MONE(M)'!$AO313)","v":100644.14816376864},{"$f":"IF('[7]MONE(M)'!$AO313=\"\",\"\",'[7]MONE(M)'!$AO313)","v":701553.19152820995},{"$f":"IF('[8]MONE(M)'!$AO313=\"\",\"\",'[8]MONE(M)'!$AO313)","v":40062.299558889994},12.045810898516752,3.5996093655328298,9.7132518642700774,10.910652658718734,19.432255953703393,16.096374841323268,13.320524239285092,{"$f":"IF('[1]FISCAL(M)'!$K313=\"\",\"\",'[1]FISCAL(M)'!$K313)","v":901.60880504291413},{"$f":"+'[1]REAL(A)'!$AO$35","v":247040.69555179874},0.36496367654286638,{"$f":"IF('[1]FISCAL(M)'!$L313=\"\",\"\",'[1]FISCAL(M)'!$L313)","v":308.8197984629146},{"$f":"+'[1]REAL(A)'!$AP$35","v":301132.41555179865},0.10255282477544952,123244.67383003459,{"$f":"'[1]Gráfico REM'!BG307","v":22634.916101518487},{"$f":"'[1]Gráfico REM'!BH307","v":93442.33844794656},{"$f":"'[1]Gráfico REM'!BI307","v":7167.4192805695293},8.3503517378382242,-1.9314048553176533,10.542667997418075,16.82481258133226,187333.16624735459,{"$f":"'[1]Gráfico REM'!BK307","v":24459.161857428488},{"$f":"'[1]Gráfico REM'!BL307","v":133504.63800683655},{"$f":"'[1]Gráfico REM'!BM307","v":29369.366383089524},9.7690304484523871,-1.5269099787785123,11.361843818340045,13.224080326980792]
[2015,"mayo ","2015-mayo ",{"$f":"IF('[1]REAL IPC(M)'!$AL314=\"\",\"\",+'[1]REAL IPC(M)'!$AL314)","v":1.5848647362189272},{"$f":"IF('[1]REAL IPC(M)'!$BE314=\"\",\"\",+'[1]REAL IPC(M)'!$BE314)","v":2.5728753793972325},{"$f":"IF('[1]REAL IPC(M)'!$AM314=\"\",\"\",+'[1]REAL IPC(M)'!$AM314)","v":1.4229822740576603},{"$f":"IF('[1]REAL IPC(M)'!$BI314=\"\",\"\",+'[1]REAL IPC(M)'!$BI314)","v":2.3872360633715228},{"$f":"IF('[1]REAL IMAE(M)'!BJ314=\"\",\"\",'[1]REAL IMAE(M)'!BJ314)","v":4.8761465209792965},{"$f":"IF('[1]REAL IMAE(M)'!BK314=\"\",\"\",'[1]REAL IMAE(M)'!BK314)","v":4.6848020064883311},{"$f":"IF('[1]REAL IMAE(M)'!BN314=\"\",\"\",'[1]REAL IMAE(M)'!BN314)","v":4.5958878724257302},{"$f":"IF('[1]REAL IMAE(M)'!BO314=\"\",\"\",'[1]REAL IMAE(M)'!BO314)","v":4.7925280423787076},{"$f":"IF('[1]EXT RIN(M)'!$K314=\"\",\"\",'[1]EXT RIN(M)'!$K314)","v":29778.760732230829},"",{"$f":"IF('[1]EXT RIN(M)'!$L314=\"\",\"\",'[1]EXT RIN(M)'!$L314)","v":33922.076066590831},"",{"$f":"IF('[1]MONE(M)CARD'!EG314=\"\",\"\",'[1]MONE(M)CARD'!EG314)","v":29773.672003487867},{"$f":"IF('[1]MONE(M)CARD'!EK314=\"\",\"\",'[1]MONE(M)CARD'!EK314)","v":49035.001215109063},{"$f":"IF('[1]MONE(M)CARD'!EP314=\"\",\"\",'[1]MONE(M)CARD'!EP314)","v":28137.750486512916},{"$f":"IF('[1]MONE(M)CARD'!ES314=\"\",\"\",'[1]MONE(M)CARD'!ES314)","v":12.451617716709329},{"$f":"IF('[1]MONE(M)CARD'!EV314=\"\",\"\",'[1]MONE(M)CARD'!EV314)","v":10.005689192834089},{"$f":"IF('[1]MONE(M)CARD'!EZ314=\"\",\"\",'[1]MONE(M)CARD'!EZ314)","v":9.4398785603315503},{"$f":"IF('[1]MONE(M)CAPARD'!FC314=\"\",\"\",'[1]MONE(M)CAPARD'!FC314)","v":37784.802266837869},{"$f":"IF('[1]MONE(M)CAPARD'!FG314=\"\",\"\",'[1]MONE(M)CAPARD'!FG314)","v":75918.98091248906},{"$f":"IF('[1]MONE(M)CAPARD'!FL314=\"\",\"\",'[1]MONE(M)CAPARD'!FL314)","v":28137.750486512887},{"$f":"IF('[1]MONE(M)CAPARD'!FO314=\"\",\"\",'[1]MONE(M)CAPARD'!FO314)","v":9.7680675319796286},{"$f":"IF('[1]MONE(M)CAPARD'!FR314=\"\",\"\",'[1]MONE(M)CAPARD'!FR314)","v":8.4266855547778121},{"$f":"IF('[1]MONE(M)CAPARD'!FV314=\"\",\"\",'[1]MONE(M)CAPARD'!FV314)","v":8.3189343138277962},{"$f":"IF('[1]MONE(M)CARD'!FV314=\"\",\"\",'[1]MONE(M)CARD'!FV314)","v":1186.1111970519432},{"$f":"IF('[1]MONE(M)CARD'!GD314=\"\",\"\",'[1]MONE(M)CARD'!GD314)","v":85.408201261800272},{"$f":"IF('[1]MONE(M)CARD'!GE314=\"\",\"\",'[1]MONE(M)CARD'!GE314)","v":8810.6628182155309},3.7014269936818778,{"$f":"IF('[9]II.2.Balance OSD-Activos'!J172=\"\",\"\",'[9]II.2.Balance OSD-Activos'!J172)","v":190.42003829612034},{"$f":"IF('[9]II.2.Balance OSD-Activos'!N172=\"\",\"\",'[9]II.2.Balance OSD-Activos'!N172)","v":863.39706870082364},{"$f":"IF('[9]II.2.Balance OSD-Activos'!R172=\"\",\"\",'[9]II.2.Balance OSD-Activos'!R172)","v":43148.095796979076},{"$f":"IF('[9]II.2.Balance OSD-Activos'!S172=\"\",\"\",'[9]II.2.Balance OSD-Activos'!S172)","v":46172.983689183995},43338.515835275197,90374.896593160025,-12.781959791390008,10.209871976128259,12.836252804813487,10.33823628910655,11.727433094724571,11.004871196035459,0.77399155464887848,{"$f":"IF('[1]MONE(M)CAPARD'!GS314=\"\",\"\",'[1]MONE(M)CAPARD'!GS314)","v":17126.385538812065},{"$f":"IF('[1]MONE(M)CARD'!HA314=\"\",\"\",'[1]MONE(M)CAPARD'!HA314)","v":9660.7724569655329},{"$f":"IF('[1]MONE(M)CAPARD'!HB314=\"\",\"\",'[1]MONE(M)CAPARD'!HB314)","v":7465.6130818465317},"n.d.",{"$f":"IF('[10]II.2.Balance OSD-Activos'!J172=\"\",\"\",'[10]II.2.Balance OSD-Activos'!J172)","v":1684.8500350361203},{"$f":"IF('[10]II.2.Balance OSD-Activos'!N172=\"\",\"\",'[10]II.2.Balance OSD-Activos'!N172)","v":1420.4551054208237},{"$f":"IF('[10]II.2.Balance OSD-Activos'!R172=\"\",\"\",'[10]II.2.Balance OSD-Activos'!R172)","v":63455.210171739069},{"$f":"IF('[10]II.2.Balance OSD-Activos'!S172=\"\",\"\",'[10]II.2.Balance OSD-Activos'!S172)","v":63479.66141967399},65140.06020677519,130040.17673187001,7.2032498193081329,11.10451438189104,16.008385336962828,11.21197342362974,12.050289770402255,11.615946793095366,0.47376933465346305,{"$f":"IF('[1]MONE(M)CAPARD'!AS314=\"\",\"\",'[1]MONE(M)CAPARD'!AS314)","v":3.75},{"$f":"IF('[1]MONE(M)CAPARD'!AT314=\"\",\"\",'[1]MONE(M)CAPARD'!AT314)","v":"n.a."},{"$f":"IF('[1]MONE(M)CAPARD'!AU314=\"\",\"\",'[1]MONE(M)CAPARD'!AU314)","v":3.5},{"$f":"IF('[1]MONE(M)CAPARD'!AV314=\"\",\"\",'[1]MONE(M)CAPARD'!AV314)","v":6.5},{"$f":"IF('[1]MONE(M)CAPARD'!AW314=\"\",\"\",'[1]MONE(M)CAPARD'!AW314)","v":"n.a."},{"$f":"IF('[1]MONE(M)CAPARD'!AX314=\"\",\"\",'[1]MONE(M)CAPARD'!AX314)","v":5.25},{"$f":"IF('[1]MONE(M)CAPARD'!AY314=\"\",\"\",'[1]MONE(M)CAPARD'!AY314)","v":"n.a."},{"$f":"IF('[1]FISCAL(M)'!$K314=\"\",\"\",'[1]FISCAL(M)'!$K314)","v":410.25264668365594},{"$f":"IF('[1]FISCAL(M)'!$L314=\"\",\"\",'[1]FISCAL(M)'!$L314)","v":-282.6883171663444},{"$f":"IF('[1]FISCAL(M)'!$AY314=\"\",\"\",'[1]FISCAL(M)'!$AY314)","v":107548.55466201296},{"$f":"IF('[1]FISCAL(M)'!$BI314=\"\",\"\",'[1]FISCAL(M)'!$BI314)","v":54879.071069737271},{"$f":"IF('[1]FISCAL(M)'!$BS314=\"\",\"\",'[1]FISCAL(M)'!$BS314)","v":52669.483592275676},{"$f":"IF('[1]FISCAL(M)'!$AZ314=\"\",\"\",'[1]FISCAL(M)'!$AZ314)","v":126693.45025970295},{"$f":"IF('[1]FISCAL(M)'!$BJ314=\"\",\"\",'[1]FISCAL(M)'!$BJ314)","v":58936.70443371727},{"$f":"IF('[1]FISCAL(M)'!$BT314=\"\",\"\",'[1]FISCAL(M)'!$BT314)","v":67756.745825985679},{"$f":"IF('[2]MONE(M)'!$AO314=\"\",\"\",'[2]MONE(M)'!$AO314)","v":16612726.332005436},{"$f":"IF('[3]MONE(M)'!$AO314=\"\",\"\",'[3]MONE(M)'!$AO314)","v":10798.7168084},{"$f":"IF('[4]MONE(M)'!$AO314=\"\",\"\",'[4]MONE(M)'!$AO314)","v":166425.83862976098},{"$f":"+'[5]MONE(M)'!$AO314","v":239934.98366946011},{"$f":"IF('[6]MONE(M)'!$AO314=\"\",\"\",'[6]MONE(M)'!$AO314)","v":102213.55756105974},{"$f":"IF('[7]MONE(M)'!$AO314=\"\",\"\",'[7]MONE(M)'!$AO314)","v":719231.44187603996},{"$f":"IF('[8]MONE(M)'!$AO314=\"\",\"\",'[8]MONE(M)'!$AO314)","v":40382.640984409991},11.961383860509777,3.537782680040169,9.9093286823153548,10.454985662112804,18.83540023820278,17.192363549562661,12.864878066929819,{"$f":"IF('[1]FISCAL(M)'!$K314=\"\",\"\",'[1]FISCAL(M)'!$K314)","v":410.25264668365594},{"$f":"+'[1]REAL(A)'!$AO$35","v":247040.69555179874},0.16606682788327698,{"$f":"IF('[1]FISCAL(M)'!$L314=\"\",\"\",'[1]FISCAL(M)'!$L314)","v":-282.6883171663444},{"$f":"+'[1]REAL(A)'!$AP$35","v":301132.41555179865},-9.3875087027194645E-2,124396.09635106831,{"$f":"'[1]Gráfico REM'!BG308","v":22546.104653757531},{"$f":"'[1]Gráfico REM'!BH308","v":94644.678026562397},{"$f":"'[1]Gráfico REM'!BI308","v":7205.3136707483754},9.5534987126265403,0.7974738862439601,11.375471547380567,16.16771229474525,189153.33301720829,{"$f":"'[1]Gráfico REM'!BK308","v":24420.615906247531},{"$f":"'[1]Gráfico REM'!BL308","v":135027.31901097239},{"$f":"'[1]Gráfico REM'!BM308","v":29705.398099988382},10.226548205775753,1.0109752612673883,11.816772086449468,11.380109809777593]
[2015,"junio ","2015-junio ",{"$f":"IF('[1]REAL IPC(M)'!$AL315=\"\",\"\",+'[1]REAL IPC(M)'!$AL315)","v":1.5202064673168536},{"$f":"IF('[1]REAL IPC(M)'!$BE315=\"\",\"\",+'[1]REAL IPC(M)'!$BE315)","v":2.5325587998418664},{"$f":"IF('[1]REAL IPC(M)'!$AM315=\"\",\"\",+'[1]REAL IPC(M)'!$AM315)","v":1.3207800442050832},{"$f":"IF('[1]REAL IPC(M)'!$BI315=\"\",\"\",+'[1]REAL IPC(M)'!$BI315)","v":2.3405938399403858},{"$f":"IF('[1]REAL IMAE(M)'!BJ315=\"\",\"\",'[1]REAL IMAE(M)'!BJ315)","v":5.409306137424541},{"$f":"IF('[1]REAL IMAE(M)'!BK315=\"\",\"\",'[1]REAL IMAE(M)'!BK315)","v":4.6900383652881628},{"$f":"IF('[1]REAL IMAE(M)'!BN315=\"\",\"\",'[1]REAL IMAE(M)'!BN315)","v":5.1671058612017928},{"$f":"IF('[1]REAL IMAE(M)'!BO315=\"\",\"\",'[1]REAL IMAE(M)'!BO315)","v":4.7901558561199487},{"$f":"IF('[1]EXT RIN(M)'!$K315=\"\",\"\",'[1]EXT RIN(M)'!$K315)","v":29798.822963986415},"",{"$f":"IF('[1]EXT RIN(M)'!$L315=\"\",\"\",'[1]EXT RIN(M)'!$L315)","v":34143.533038416412},"",{"$f":"IF('[1]MONE(M)CARD'!EG315=\"\",\"\",'[1]MONE(M)CARD'!EG315)","v":29874.970782532779},{"$f":"IF('[1]MONE(M)CARD'!EK315=\"\",\"\",'[1]MONE(M)CARD'!EK315)","v":49804.278185880787},{"$f":"IF('[1]MONE(M)CARD'!EP315=\"\",\"\",'[1]MONE(M)CARD'!EP315)","v":28188.193641829479},{"$f":"IF('[1]MONE(M)CARD'!ES315=\"\",\"\",'[1]MONE(M)CARD'!ES315)","v":11.645518338728644},{"$f":"IF('[1]MONE(M)CARD'!EV315=\"\",\"\",'[1]MONE(M)CARD'!EV315)","v":10.09350102515616},{"$f":"IF('[1]MONE(M)CARD'!EZ315=\"\",\"\",'[1]MONE(M)CARD'!EZ315)","v":9.5266982227175667},{"$f":"IF('[1]MONE(M)CAPARD'!FC315=\"\",\"\",'[1]MONE(M)CAPARD'!FC315)","v":37774.192273622779},{"$f":"IF('[1]MONE(M)CAPARD'!FG315=\"\",\"\",'[1]MONE(M)CAPARD'!FG315)","v":76677.435779770778},{"$f":"IF('[1]MONE(M)CAPARD'!FL315=\"\",\"\",'[1]MONE(M)CAPARD'!FL315)","v":28188.193641829464},{"$f":"IF('[1]MONE(M)CAPARD'!FO315=\"\",\"\",'[1]MONE(M)CAPARD'!FO315)","v":8.8276104670603104},{"$f":"IF('[1]MONE(M)CAPARD'!FR315=\"\",\"\",'[1]MONE(M)CAPARD'!FR315)","v":8.1950413022446877},{"$f":"IF('[1]MONE(M)CAPARD'!FV315=\"\",\"\",'[1]MONE(M)CAPARD'!FV315)","v":8.1476462024744336},{"$f":"IF('[1]MONE(M)CARD'!FV315=\"\",\"\",'[1]MONE(M)CARD'!FV315)","v":1188.6225507704485},{"$f":"IF('[1]MONE(M)CARD'!GD315=\"\",\"\",'[1]MONE(M)CARD'!GD315)","v":188.11786191723445},{"$f":"IF('[1]MONE(M)CARD'!GE315=\"\",\"\",'[1]MONE(M)CARD'!GE315)","v":8579.5124456542271},8.6584193115629926,{"$f":"IF('[9]II.2.Balance OSD-Activos'!J173=\"\",\"\",'[9]II.2.Balance OSD-Activos'!J173)","v":191.99916900044872},{"$f":"IF('[9]II.2.Balance OSD-Activos'!N173=\"\",\"\",'[9]II.2.Balance OSD-Activos'!N173)","v":928.38905570702684},{"$f":"IF('[9]II.2.Balance OSD-Activos'!R173=\"\",\"\",'[9]II.2.Balance OSD-Activos'!R173)","v":43203.294418519377},{"$f":"IF('[9]II.2.Balance OSD-Activos'!S173=\"\",\"\",'[9]II.2.Balance OSD-Activos'!S173)","v":46762.364827016128},43395.293587519824,91086.047470242978,-8.3365135299397259,9.6334992281402521,17.402744629063037,9.729098879969289,11.580897253414113,10.700041596014987,-0.30482960002047221,{"$f":"IF('[1]MONE(M)CAPARD'!GS315=\"\",\"\",'[1]MONE(M)CAPARD'!GS315)","v":17581.542086855745},{"$f":"IF('[1]MONE(M)CARD'!HA315=\"\",\"\",'[1]MONE(M)CAPARD'!HA315)","v":9633.1412393642277},{"$f":"IF('[1]MONE(M)CAPARD'!HB315=\"\",\"\",'[1]MONE(M)CAPARD'!HB315)","v":7948.4008474915172},"n.d.",{"$f":"IF('[10]II.2.Balance OSD-Activos'!J173=\"\",\"\",'[10]II.2.Balance OSD-Activos'!J173)","v":1673.283025260449},{"$f":"IF('[10]II.2.Balance OSD-Activos'!N173=\"\",\"\",'[10]II.2.Balance OSD-Activos'!N173)","v":1400.4644305770266},{"$f":"IF('[10]II.2.Balance OSD-Activos'!R173=\"\",\"\",'[10]II.2.Balance OSD-Activos'!R173)","v":63584.076180989374},{"$f":"IF('[10]II.2.Balance OSD-Activos'!S173=\"\",\"\",'[10]II.2.Balance OSD-Activos'!S173)","v":64283.761563626133},65257.359206249821,130941.58520045299,7.0723810997095793,10.685010643902061,8.8686243347753102,10.783375871981704,12.083998550956633,11.347439717535179,-0.26850707556018705,{"$f":"IF('[1]MONE(M)CAPARD'!AS315=\"\",\"\",'[1]MONE(M)CAPARD'!AS315)","v":3.5},{"$f":"IF('[1]MONE(M)CAPARD'!AT315=\"\",\"\",'[1]MONE(M)CAPARD'!AT315)","v":"n.a."},{"$f":"IF('[1]MONE(M)CAPARD'!AU315=\"\",\"\",'[1]MONE(M)CAPARD'!AU315)","v":3.25},{"$f":"IF('[1]MONE(M)CAPARD'!AV315=\"\",\"\",'[1]MONE(M)CAPARD'!AV315)","v":6.5},{"$f":"IF('[1]MONE(M)CAPARD'!AW315=\"\",\"\",'[1]MONE(M)CAPARD'!AW315)","v":"n.a."},{"$f":"IF('[1]MONE(M)CAPARD'!AX315=\"\",\"\",'[1]MONE(M)CAPARD'!AX315)","v":5},{"$f":"IF('[1]MONE(M)CAPARD'!AY315=\"\",\"\",'[1]MONE(M)CAPARD'!AY315)","v":"n.a."},{"$f":"IF('[1]FISCAL(M)'!$K315=\"\",\"\",'[1]FISCAL(M)'!$K315)","v":-574.66251459156592},{"$f":"IF('[1]FISCAL(M)'!$L315=\"\",\"\",'[1]FISCAL(M)'!$L315)","v":-1149.6782773015648},{"$f":"IF('[1]FISCAL(M)'!$AY315=\"\",\"\",'[1]FISCAL(M)'!$AY315)","v":107636.01472116716},{"$f":"IF('[1]FISCAL(M)'!$BI315=\"\",\"\",'[1]FISCAL(M)'!$BI315)","v":55048.718611897333},{"$f":"IF('[1]FISCAL(M)'!$BS315=\"\",\"\",'[1]FISCAL(M)'!$BS315)","v":52587.29610926981},{"$f":"IF('[1]FISCAL(M)'!$AZ315=\"\",\"\",'[1]FISCAL(M)'!$AZ315)","v":126934.08668832714},{"$f":"IF('[1]FISCAL(M)'!$BJ315=\"\",\"\",'[1]FISCAL(M)'!$BJ315)","v":59275.269307477327},{"$f":"IF('[1]FISCAL(M)'!$BT315=\"\",\"\",'[1]FISCAL(M)'!$BT315)","v":67658.81738084981},{"$f":"IF('[2]MONE(M)'!$AO315=\"\",\"\",'[2]MONE(M)'!$AO315)","v":16879297.920215342},{"$f":"IF('[3]MONE(M)'!$AO315=\"\",\"\",'[3]MONE(M)'!$AO315)","v":10803.257626639999},{"$f":"IF('[4]MONE(M)'!$AO315=\"\",\"\",'[4]MONE(M)'!$AO315)","v":167094.5914233845},{"$f":"+'[5]MONE(M)'!$AO315","v":241403.50627528783},{"$f":"IF('[6]MONE(M)'!$AO315=\"\",\"\",'[6]MONE(M)'!$AO315)","v":103599.55341927832},{"$f":"IF('[7]MONE(M)'!$AO315=\"\",\"\",'[7]MONE(M)'!$AO315)","v":723036.62825335003},{"$f":"IF('[8]MONE(M)'!$AO315=\"\",\"\",'[8]MONE(M)'!$AO315)","v":40594.058406819997},13.262513426890688,3.0683725042289334,10.232592662504004,10.018574725837425,19.511477965660461,16.079326713944852,13.147884218789629,{"$f":"IF('[1]FISCAL(M)'!$K315=\"\",\"\",'[1]FISCAL(M)'!$K315)","v":-574.66251459156592},{"$f":"+'[1]REAL(A)'!$AO$35","v":247040.69555179874},-0.23261856242267279,{"$f":"IF('[1]FISCAL(M)'!$L315=\"\",\"\",'[1]FISCAL(M)'!$L315)","v":-1149.6782773015648},{"$f":"+'[1]REAL(A)'!$AP$35","v":301132.41555179865},-0.3817849616737144,125704.69402762984,{"$f":"'[1]Gráfico REM'!BG309","v":22706.149481894641},{"$f":"'[1]Gráfico REM'!BH309","v":95589.225654606576},{"$f":"'[1]Gráfico REM'!BI309","v":7409.3188911286288},9.7621769618791312,2.0478247135238714,11.348003094537384,15.287349583879939,192009.93570155985,{"$f":"'[1]Gráfico REM'!BK309","v":24724.016223874642},{"$f":"'[1]Gráfico REM'!BL309","v":136183.28406142659},{"$f":"'[1]Gráfico REM'!BM309","v":31102.635416258629},11.113870773574753,2.6642309305668466,11.878499796777021,15.203575031163741]
[2015,"julio","2015-julio",{"$f":"IF('[1]REAL IPC(M)'!$AL316=\"\",\"\",+'[1]REAL IPC(M)'!$AL316)","v":1.1024941561930346},{"$f":"IF('[1]REAL IPC(M)'!$BE316=\"\",\"\",+'[1]REAL IPC(M)'!$BE316)","v":2.4968656764820629},{"$f":"IF('[1]REAL IPC(M)'!$AM316=\"\",\"\",+'[1]REAL IPC(M)'!$AM316)","v":1.0857242406969725},{"$f":"IF('[1]REAL IPC(M)'!$BI316=\"\",\"\",+'[1]REAL IPC(M)'!$BI316)","v":2.2990129628633227},{"$f":"IF('[1]REAL IMAE(M)'!BJ316=\"\",\"\",'[1]REAL IMAE(M)'!BJ316)","v":6.2331567265240695},{"$f":"IF('[1]REAL IMAE(M)'!BK316=\"\",\"\",'[1]REAL IMAE(M)'!BK316)","v":4.6919936033670284},{"$f":"IF('[1]REAL IMAE(M)'!BN316=\"\",\"\",'[1]REAL IMAE(M)'!BN316)","v":5.9765478278540618},{"$f":"IF('[1]REAL IMAE(M)'!BO316=\"\",\"\",'[1]REAL IMAE(M)'!BO316)","v":4.7853126744403562},{"$f":"IF('[1]EXT RIN(M)'!$K316=\"\",\"\",'[1]EXT RIN(M)'!$K316)","v":29516.055361870625},"",{"$f":"IF('[1]EXT RIN(M)'!$L316=\"\",\"\",'[1]EXT RIN(M)'!$L316)","v":33531.223176000625},"",{"$f":"IF('[1]MONE(M)CARD'!EG316=\"\",\"\",'[1]MONE(M)CARD'!EG316)","v":30000.572892902095},{"$f":"IF('[1]MONE(M)CARD'!EK316=\"\",\"\",'[1]MONE(M)CARD'!EK316)","v":50000.365192263052},{"$f":"IF('[1]MONE(M)CARD'!EP316=\"\",\"\",'[1]MONE(M)CARD'!EP316)","v":28229.416819429287},{"$f":"IF('[1]MONE(M)CARD'!ES316=\"\",\"\",'[1]MONE(M)CARD'!ES316)","v":12.275937622323841},{"$f":"IF('[1]MONE(M)CARD'!EV316=\"\",\"\",'[1]MONE(M)CARD'!EV316)","v":10.082597556973427},{"$f":"IF('[1]MONE(M)CARD'!EZ316=\"\",\"\",'[1]MONE(M)CARD'!EZ316)","v":8.9739924324622855},{"$f":"IF('[1]MONE(M)CAPARD'!FC316=\"\",\"\",'[1]MONE(M)CAPARD'!FC316)","v":37917.15566029209},{"$f":"IF('[1]MONE(M)CAPARD'!FG316=\"\",\"\",'[1]MONE(M)CAPARD'!FG316)","v":77358.084385733033},{"$f":"IF('[1]MONE(M)CAPARD'!FL316=\"\",\"\",'[1]MONE(M)CAPARD'!FL316)","v":28229.416819429272},{"$f":"IF('[1]MONE(M)CAPARD'!FO316=\"\",\"\",'[1]MONE(M)CAPARD'!FO316)","v":8.7381588438403703},{"$f":"IF('[1]MONE(M)CAPARD'!FR316=\"\",\"\",'[1]MONE(M)CAPARD'!FR316)","v":8.3803131628243488},{"$f":"IF('[1]MONE(M)CAPARD'!FV316=\"\",\"\",'[1]MONE(M)CAPARD'!FV316)","v":7.8935054991581044},{"$f":"IF('[1]MONE(M)CARD'!FV316=\"\",\"\",'[1]MONE(M)CARD'!FV316)","v":1211.9312487386073},{"$f":"IF('[1]MONE(M)CARD'!GD316=\"\",\"\",'[1]MONE(M)CARD'!GD316)","v":89.243576387806982},{"$f":"IF('[1]MONE(M)CARD'!GE316=\"\",\"\",'[1]MONE(M)CARD'!GE316)","v":8581.9031449764789},5.5457052016093744,{"$f":"IF('[9]II.2.Balance OSD-Activos'!J174=\"\",\"\",'[9]II.2.Balance OSD-Activos'!J174)","v":184.07038635432269},{"$f":"IF('[9]II.2.Balance OSD-Activos'!N174=\"\",\"\",'[9]II.2.Balance OSD-Activos'!N174)","v":928.49609745773512},{"$f":"IF('[9]II.2.Balance OSD-Activos'!R174=\"\",\"\",'[9]II.2.Balance OSD-Activos'!R174)","v":43535.52049870458},{"$f":"IF('[9]II.2.Balance OSD-Activos'!S174=\"\",\"\",'[9]II.2.Balance OSD-Activos'!S174)","v":47160.719054131681},43719.590885058904,91808.806036648311,-8.2067326175226718,9.1215881525077656,19.330790082201666,9.2087533828743027,11.472456472036452,10.413250732645164,-0.28679086336982351,{"$f":"IF('[1]MONE(M)CAPARD'!GS316=\"\",\"\",'[1]MONE(M)CAPARD'!GS316)","v":17952.201687399222},{"$f":"IF('[1]MONE(M)CARD'!HA316=\"\",\"\",'[1]MONE(M)CAPARD'!HA316)","v":9633.5430259864788},{"$f":"IF('[1]MONE(M)CAPARD'!HB316=\"\",\"\",'[1]MONE(M)CAPARD'!HB316)","v":8318.6586614127427},"n.d.",{"$f":"IF('[10]II.2.Balance OSD-Activos'!J174=\"\",\"\",'[10]II.2.Balance OSD-Activos'!J174)","v":1744.2456515443228},{"$f":"IF('[10]II.2.Balance OSD-Activos'!N174=\"\",\"\",'[10]II.2.Balance OSD-Activos'!N174)","v":1374.8431068777354},{"$f":"IF('[10]II.2.Balance OSD-Activos'!R174=\"\",\"\",'[10]II.2.Balance OSD-Activos'!R174)","v":64253.215228734582},{"$f":"IF('[10]II.2.Balance OSD-Activos'!S174=\"\",\"\",'[10]II.2.Balance OSD-Activos'!S174)","v":64896.741689111681},65997.460880278901,132269.04567626832,6.8155116905098234,10.27154609987717,6.0822608957092461,10.368485784182946,12.198837787874272,11.162794369396911,-0.18464534813826816,{"$f":"IF('[1]MONE(M)CAPARD'!AS316=\"\",\"\",'[1]MONE(M)CAPARD'!AS316)","v":3},{"$f":"IF('[1]MONE(M)CAPARD'!AT316=\"\",\"\",'[1]MONE(M)CAPARD'!AT316)","v":"n.a."},{"$f":"IF('[1]MONE(M)CAPARD'!AU316=\"\",\"\",'[1]MONE(M)CAPARD'!AU316)","v":3.25},{"$f":"IF('[1]MONE(M)CAPARD'!AV316=\"\",\"\",'[1]MONE(M)CAPARD'!AV316)","v":6.25},{"$f":"IF('[1]MONE(M)CAPARD'!AW316=\"\",\"\",'[1]MONE(M)CAPARD'!AW316)","v":"n.a."},{"$f":"IF('[1]MONE(M)CAPARD'!AX316=\"\",\"\",'[1]MONE(M)CAPARD'!AX316)","v":5},{"$f":"IF('[1]MONE(M)CAPARD'!AY316=\"\",\"\",'[1]MONE(M)CAPARD'!AY316)","v":"n.a."},{"$f":"IF('[1]FISCAL(M)'!$K316=\"\",\"\",'[1]FISCAL(M)'!$K316)","v":-1207.8710349750413},{"$f":"IF('[1]FISCAL(M)'!$L316=\"\",\"\",'[1]FISCAL(M)'!$L316)","v":-2095.6154172950405},{"$f":"IF('[1]FISCAL(M)'!$AY316=\"\",\"\",'[1]FISCAL(M)'!$AY316)","v":108801.61193606984},{"$f":"IF('[1]FISCAL(M)'!$BI316=\"\",\"\",'[1]FISCAL(M)'!$BI316)","v":56272.296714679484},{"$f":"IF('[1]FISCAL(M)'!$BS316=\"\",\"\",'[1]FISCAL(M)'!$BS316)","v":52529.315221390338},{"$f":"IF('[1]FISCAL(M)'!$AZ316=\"\",\"\",'[1]FISCAL(M)'!$AZ316)","v":128090.09798976983},{"$f":"IF('[1]FISCAL(M)'!$BJ316=\"\",\"\",'[1]FISCAL(M)'!$BJ316)","v":60520.421357699481},{"$f":"IF('[1]FISCAL(M)'!$BT316=\"\",\"\",'[1]FISCAL(M)'!$BT316)","v":67569.676632070332},{"$f":"IF('[2]MONE(M)'!$AO316=\"\",\"\",'[2]MONE(M)'!$AO316)","v":17073024.664252784},{"$f":"IF('[3]MONE(M)'!$AO316=\"\",\"\",'[3]MONE(M)'!$AO316)","v":10848.296703889999},{"$f":"IF('[4]MONE(M)'!$AO316=\"\",\"\",'[4]MONE(M)'!$AO316)","v":168251.97216642011},{"$f":"+'[5]MONE(M)'!$AO316","v":242222.3955461671},{"$f":"IF('[6]MONE(M)'!$AO316=\"\",\"\",'[6]MONE(M)'!$AO316)","v":105638.67330465179},{"$f":"IF('[7]MONE(M)'!$AO316=\"\",\"\",'[7]MONE(M)'!$AO316)","v":733560.25846168003},{"$f":"IF('[8]MONE(M)'!$AO316=\"\",\"\",'[8]MONE(M)'!$AO316)","v":41196.849325310002},13.257187856353037,3.6685634032872283,9.5409063367297264,10.329499961005828,20.734270259444809,15.501000713633983,13.002543342728345,{"$f":"IF('[1]FISCAL(M)'!$K316=\"\",\"\",'[1]FISCAL(M)'!$K316)","v":-1207.8710349750413},{"$f":"+'[1]REAL(A)'!$AO$35","v":247040.69555179874},-0.48893605657849132,{"$f":"IF('[1]FISCAL(M)'!$L316=\"\",\"\",'[1]FISCAL(M)'!$L316)","v":-2095.6154172950405},{"$f":"+'[1]REAL(A)'!$AP$35","v":301132.41555179865},-0.6959116020289644,126880.01975495624,{"$f":"'[1]Gráfico REM'!BG310","v":23110.942109797463},{"$f":"'[1]Gráfico REM'!BH310","v":96340.785837242467},{"$f":"'[1]Gráfico REM'!BI310","v":7428.2918079163028},10.740934048226336,7.8273024067154751,11.00914280791272,16.905765231883741,193660.09267857621,{"$f":"'[1]Gráfico REM'!BK310","v":25127.702854227464},{"$f":"'[1]Gráfico REM'!BL310","v":137537.63516255247},{"$f":"'[1]Gráfico REM'!BM310","v":30994.754661796302},11.740949916041066,7.9194271590879328,11.598811912371843,15.716945060552368]
[2015,"agosto","2015-agosto",{"$f":"IF('[1]REAL IPC(M)'!$AL317=\"\",\"\",+'[1]REAL IPC(M)'!$AL317)","v":0.82183582245334286},{"$f":"IF('[1]REAL IPC(M)'!$BE317=\"\",\"\",+'[1]REAL IPC(M)'!$BE317)","v":2.4659683870004834},{"$f":"IF('[1]REAL IPC(M)'!$AM317=\"\",\"\",+'[1]REAL IPC(M)'!$AM317)","v":0.76911803467876183},{"$f":"IF('[1]REAL IPC(M)'!$BI317=\"\",\"\",+'[1]REAL IPC(M)'!$BI317)","v":2.2626540741596424},{"$f":"IF('[1]REAL IMAE(M)'!BJ317=\"\",\"\",'[1]REAL IMAE(M)'!BJ317)","v":6.211210138249057},{"$f":"IF('[1]REAL IMAE(M)'!BK317=\"\",\"\",'[1]REAL IMAE(M)'!BK317)","v":4.6905184854143744},{"$f":"IF('[1]REAL IMAE(M)'!BN317=\"\",\"\",'[1]REAL IMAE(M)'!BN317)","v":5.9253610397289824},{"$f":"IF('[1]REAL IMAE(M)'!BO317=\"\",\"\",'[1]REAL IMAE(M)'!BO317)","v":4.7777893903740987},{"$f":"IF('[1]EXT RIN(M)'!$K317=\"\",\"\",'[1]EXT RIN(M)'!$K317)","v":29499.03659697589},"",{"$f":"IF('[1]EXT RIN(M)'!$L317=\"\",\"\",'[1]EXT RIN(M)'!$L317)","v":33953.271433475893},"",{"$f":"IF('[1]MONE(M)CARD'!EG317=\"\",\"\",'[1]MONE(M)CARD'!EG317)","v":29666.393181416301},{"$f":"IF('[1]MONE(M)CARD'!EK317=\"\",\"\",'[1]MONE(M)CARD'!EK317)","v":50167.391528834989},{"$f":"IF('[1]MONE(M)CARD'!EP317=\"\",\"\",'[1]MONE(M)CARD'!EP317)","v":28137.501628664846},{"$f":"IF('[1]MONE(M)CARD'!ES317=\"\",\"\",'[1]MONE(M)CARD'!ES317)","v":11.392686804604256},{"$f":"IF('[1]MONE(M)CARD'!EV317=\"\",\"\",'[1]MONE(M)CARD'!EV317)","v":9.3453713199644675},{"$f":"IF('[1]MONE(M)CARD'!EZ317=\"\",\"\",'[1]MONE(M)CARD'!EZ317)","v":8.1564817261458256},{"$f":"IF('[1]MONE(M)CAPARD'!FC317=\"\",\"\",'[1]MONE(M)CAPARD'!FC317)","v":37653.076376764664},{"$f":"IF('[1]MONE(M)CAPARD'!FG317=\"\",\"\",'[1]MONE(M)CAPARD'!FG317)","v":77403.342119024979},{"$f":"IF('[1]MONE(M)CAPARD'!FL317=\"\",\"\",'[1]MONE(M)CAPARD'!FL317)","v":28137.501628664846},{"$f":"IF('[1]MONE(M)CAPARD'!FO317=\"\",\"\",'[1]MONE(M)CAPARD'!FO317)","v":8.0397573316977713},{"$f":"IF('[1]MONE(M)CAPARD'!FR317=\"\",\"\",'[1]MONE(M)CAPARD'!FR317)","v":7.519224011514769},{"$f":"IF('[1]MONE(M)CAPARD'!FV317=\"\",\"\",'[1]MONE(M)CAPARD'!FV317)","v":6.9983204852654302},{"$f":"IF('[1]MONE(M)CARD'!FV317=\"\",\"\",'[1]MONE(M)CARD'!FV317)","v":1220.4687899919982},{"$f":"IF('[1]MONE(M)CARD'!GD317=\"\",\"\",'[1]MONE(M)CARD'!GD317)","v":98.183533056959448},{"$f":"IF('[1]MONE(M)CARD'!GE317=\"\",\"\",'[1]MONE(M)CARD'!GE317)","v":8361.9741175608306},-0.17901738834408265,{"$f":"IF('[9]II.2.Balance OSD-Activos'!J175=\"\",\"\",'[9]II.2.Balance OSD-Activos'!J175)","v":192.04664496118784},{"$f":"IF('[9]II.2.Balance OSD-Activos'!N175=\"\",\"\",'[9]II.2.Balance OSD-Activos'!N175)","v":954.00996734160753},{"$f":"IF('[9]II.2.Balance OSD-Activos'!R175=\"\",\"\",'[9]II.2.Balance OSD-Activos'!R175)","v":43953.381829214595},{"$f":"IF('[9]II.2.Balance OSD-Activos'!S175=\"\",\"\",'[9]II.2.Balance OSD-Activos'!S175)","v":47633.872041668263},44145.42847417578,92733.310483185662,-5.8612865669845471,9.7797708847515032,20.723111095715808,9.8595244296787463,11.114424936624069,10.565055142919167,0.15180441027400349,{"$f":"IF('[1]MONE(M)CAPARD'!GS317=\"\",\"\",'[1]MONE(M)CAPARD'!GS317)","v":17918.384044451086},{"$f":"IF('[1]MONE(M)CARD'!HA317=\"\",\"\",'[1]MONE(M)CAPARD'!HA317)","v":9430.5113513408287},{"$f":"IF('[1]MONE(M)CAPARD'!HB317=\"\",\"\",'[1]MONE(M)CAPARD'!HB317)","v":8487.8726931102574},"n.d.",{"$f":"IF('[10]II.2.Balance OSD-Activos'!J175=\"\",\"\",'[10]II.2.Balance OSD-Activos'!J175)","v":1817.764725111188},{"$f":"IF('[10]II.2.Balance OSD-Activos'!N175=\"\",\"\",'[10]II.2.Balance OSD-Activos'!N175)","v":1398.5207413616076},{"$f":"IF('[10]II.2.Balance OSD-Activos'!R175=\"\",\"\",'[10]II.2.Balance OSD-Activos'!R175)","v":64801.439768644595},{"$f":"IF('[10]II.2.Balance OSD-Activos'!S175=\"\",\"\",'[10]II.2.Balance OSD-Activos'!S175)","v":65707.278435758257},{"$f":"IFERROR(+AW310+AY310,\"\")","v":66619.20449375578},133725.00367087565,9.7939169877959031,10.15830386141765,6.6401514789898197,10.16856026578299,12.154603785696816,11.091581657536121,-7.1212711860789923E-2,{"$f":"IF('[1]MONE(M)CAPARD'!AS317=\"\",\"\",'[1]MONE(M)CAPARD'!AS317)","v":3},{"$f":"IF('[1]MONE(M)CAPARD'!AT317=\"\",\"\",'[1]MONE(M)CAPARD'!AT317)","v":"n.a."},{"$f":"IF('[1]MONE(M)CAPARD'!AU317=\"\",\"\",'[1]MONE(M)CAPARD'!AU317)","v":3.25},{"$f":"IF('[1]MONE(M)CAPARD'!AV317=\"\",\"\",'[1]MONE(M)CAPARD'!AV317)","v":6.25},{"$f":"IF('[1]MONE(M)CAPARD'!AW317=\"\",\"\",'[1]MONE(M)CAPARD'!AW317)","v":"n.a."},{"$f":"IF('[1]MONE(M)CAPARD'!AX317=\"\",\"\",'[1]MONE(M)CAPARD'!AX317)","v":5},{"$f":"IF('[1]MONE(M)CAPARD'!AY317=\"\",\"\",'[1]MONE(M)CAPARD'!AY317)","v":"n.a."},{"$f":"IF('[1]FISCAL(M)'!$K317=\"\",\"\",'[1]FISCAL(M)'!$K317)","v":-1801.7285429807503},{"$f":"IF('[1]FISCAL(M)'!$L317=\"\",\"\",'[1]FISCAL(M)'!$L317)","v":-2375.2999487995216},{"$f":"IF('[1]FISCAL(M)'!$AY317=\"\",\"\",'[1]FISCAL(M)'!$AY317)","v":108805.68466939198},{"$f":"IF('[1]FISCAL(M)'!$BI317=\"\",\"\",'[1]FISCAL(M)'!$BI317)","v":55825.092639721537},{"$f":"IF('[1]FISCAL(M)'!$BS317=\"\",\"\",'[1]FISCAL(M)'!$BS317)","v":52980.592029670443},{"$f":"IF('[1]FISCAL(M)'!$AZ317=\"\",\"\",'[1]FISCAL(M)'!$AZ317)","v":128705.82219024195},{"$f":"IF('[1]FISCAL(M)'!$BJ317=\"\",\"\",'[1]FISCAL(M)'!$BJ317)","v":60084.857722561545},{"$f":"IF('[1]FISCAL(M)'!$BT317=\"\",\"\",'[1]FISCAL(M)'!$BT317)","v":68620.964467680431},{"$f":"IF('[2]MONE(M)'!$AO317=\"\",\"\",'[2]MONE(M)'!$AO317)","v":17206340.55468791},{"$f":"IF('[3]MONE(M)'!$AO317=\"\",\"\",'[3]MONE(M)'!$AO317)","v":10913.55354683},{"$f":"IF('[4]MONE(M)'!$AO317=\"\",\"\",'[4]MONE(M)'!$AO317)","v":170251.55978541091},{"$f":"+'[5]MONE(M)'!$AO317","v":245499.32787126594},{"$f":"IF('[6]MONE(M)'!$AO317=\"\",\"\",'[6]MONE(M)'!$AO317)","v":106688.34104459877},{"$f":"IF('[7]MONE(M)'!$AO317=\"\",\"\",'[7]MONE(M)'!$AO317)","v":756803.84229941003},{"$f":"IF('[8]MONE(M)'!$AO317=\"\",\"\",'[8]MONE(M)'!$AO317)","v":41828.354848989999},12.592742443100956,3.4403773653620018,11.152523179917594,10.363492187425805,20.187694790074783,17.568226435785238,12.684926235070337,{"$f":"IF('[1]FISCAL(M)'!$K317=\"\",\"\",'[1]FISCAL(M)'!$K317)","v":-1801.7285429807503},{"$f":"+'[1]REAL(A)'!$AO$35","v":247040.69555179874},-0.72932459122022242,{"$f":"IF('[1]FISCAL(M)'!$L317=\"\",\"\",'[1]FISCAL(M)'!$L317)","v":-2375.2999487995216},{"$f":"+'[1]REAL(A)'!$AP$35","v":301132.41555179865},-0.78878919243781631,127579.16239526118,{"$f":"'[1]Gráfico REM'!BG311","v":22767.234045906986},{"$f":"'[1]Gráfico REM'!BH311","v":97482.73090699935},{"$f":"'[1]Gráfico REM'!BI311","v":7329.1974423548563},10.238692789598725,5.7353326620040113,11.314270842435391,10.657608078719893,195398.94499437121,{"$f":"'[1]Gráfico REM'!BK311","v":24838.754444876984},{"$f":"'[1]Gráfico REM'!BL311","v":139311.08575598936},{"$f":"'[1]Gráfico REM'!BM311","v":31249.104793504855},11.359930093644977,6.0147523152619398,11.722296445201795,14.287607008566749]
[2015,"septiembre","2015-septiembre",{"$f":"IF('[1]REAL IPC(M)'!$AL318=\"\",\"\",+'[1]REAL IPC(M)'!$AL318)","v":0.70926473162942205},{"$f":"IF('[1]REAL IPC(M)'!$BE318=\"\",\"\",+'[1]REAL IPC(M)'!$BE318)","v":2.4399562894589222},{"$f":"IF('[1]REAL IPC(M)'!$AM318=\"\",\"\",+'[1]REAL IPC(M)'!$AM318)","v":0.56456333675045656},{"$f":"IF('[1]REAL IPC(M)'!$BI318=\"\",\"\",+'[1]REAL IPC(M)'!$BI318)","v":2.2315933019774414},{"$f":"IF('[1]REAL IMAE(M)'!BJ318=\"\",\"\",'[1]REAL IMAE(M)'!BJ318)","v":5.6724810613043131},{"$f":"IF('[1]REAL IMAE(M)'!BK318=\"\",\"\",'[1]REAL IMAE(M)'!BK318)","v":4.6855577430362505},{"$f":"IF('[1]REAL IMAE(M)'!BN318=\"\",\"\",'[1]REAL IMAE(M)'!BN318)","v":5.4204530657020689},{"$f":"IF('[1]REAL IMAE(M)'!BO318=\"\",\"\",'[1]REAL IMAE(M)'!BO318)","v":4.7674617861191093},{"$f":"IF('[1]EXT RIN(M)'!$K318=\"\",\"\",'[1]EXT RIN(M)'!$K318)","v":29093.175021051367},"",{"$f":"IF('[1]EXT RIN(M)'!$L318=\"\",\"\",'[1]EXT RIN(M)'!$L318)","v":33155.489269461366},"",{"$f":"IF('[1]MONE(M)CARD'!EG318=\"\",\"\",'[1]MONE(M)CARD'!EG318)","v":29855.020104118739},{"$f":"IF('[1]MONE(M)CARD'!EK318=\"\",\"\",'[1]MONE(M)CARD'!EK318)","v":50078.935831281095},{"$f":"IF('[1]MONE(M)CARD'!EP318=\"\",\"\",'[1]MONE(M)CARD'!EP318)","v":28267.641714978265},{"$f":"IF('[1]MONE(M)CARD'!ES318=\"\",\"\",'[1]MONE(M)CARD'!ES318)","v":10.913983309257901},{"$f":"IF('[1]MONE(M)CARD'!EV318=\"\",\"\",'[1]MONE(M)CARD'!EV318)","v":8.6092007955005165},{"$f":"IF('[1]MONE(M)CARD'!EZ318=\"\",\"\",'[1]MONE(M)CARD'!EZ318)","v":8.0232894637466856},{"$f":"IF('[1]MONE(M)CAPARD'!FC318=\"\",\"\",'[1]MONE(M)CAPARD'!FC318)","v":37662.504829418744},{"$f":"IF('[1]MONE(M)CAPARD'!FG318=\"\",\"\",'[1]MONE(M)CAPARD'!FG318)","v":77526.28779662108},{"$f":"IF('[1]MONE(M)CAPARD'!FL318=\"\",\"\",'[1]MONE(M)CAPARD'!FL318)","v":28267.641714978265},{"$f":"IF('[1]MONE(M)CAPARD'!FO318=\"\",\"\",'[1]MONE(M)CAPARD'!FO318)","v":7.6331187578672521},{"$f":"IF('[1]MONE(M)CAPARD'!FR318=\"\",\"\",'[1]MONE(M)CAPARD'!FR318)","v":7.1193879905940394},{"$f":"IF('[1]MONE(M)CAPARD'!FV318=\"\",\"\",'[1]MONE(M)CAPARD'!FV318)","v":6.976901006834102},{"$f":"IF('[1]MONE(M)CARD'!FV318=\"\",\"\",'[1]MONE(M)CARD'!FV318)","v":1225.3622715503682},{"$f":"IF('[1]MONE(M)CARD'!GD318=\"\",\"\",'[1]MONE(M)CARD'!GD318)","v":195.06548628502003},{"$f":"IF('[1]MONE(M)CARD'!GE318=\"\",\"\",'[1]MONE(M)CARD'!GE318)","v":8547.734382755656},4.3373608173180367,{"$f":"IF('[9]II.2.Balance OSD-Activos'!J176=\"\",\"\",'[9]II.2.Balance OSD-Activos'!J176)","v":179.56121477542214},{"$f":"IF('[9]II.2.Balance OSD-Activos'!N176=\"\",\"\",'[9]II.2.Balance OSD-Activos'!N176)","v":980.66335245797291},{"$f":"IF('[9]II.2.Balance OSD-Activos'!R176=\"\",\"\",'[9]II.2.Balance OSD-Activos'!R176)","v":44707.770248119166},{"$f":"IF('[9]II.2.Balance OSD-Activos'!S176=\"\",\"\",'[9]II.2.Balance OSD-Activos'!S176)","v":48138.089232052509},44887.331462894588,94006.084047405078,-8.3763966928882549,11.812703673180458,16.021215008925328,11.911744621524601,10.586245455683718,11.223136285279933,0.65808114236076598,{"$f":"IF('[1]MONE(M)CAPARD'!GS318=\"\",\"\",'[1]MONE(M)CAPARD'!GS318)","v":17886.69678134927},{"$f":"IF('[1]MONE(M)CARD'!HA318=\"\",\"\",'[1]MONE(M)CAPARD'!HA318)","v":9723.2156037756577},{"$f":"IF('[1]MONE(M)CAPARD'!HB318=\"\",\"\",'[1]MONE(M)CAPARD'!HB318)","v":8163.4811775736125},"n.d.",{"$f":"IF('[10]II.2.Balance OSD-Activos'!J176=\"\",\"\",'[10]II.2.Balance OSD-Activos'!J176)","v":1834.7876120454225},{"$f":"IF('[10]II.2.Balance OSD-Activos'!N176=\"\",\"\",'[10]II.2.Balance OSD-Activos'!N176)","v":1454.5518115379732},{"$f":"IF('[10]II.2.Balance OSD-Activos'!R176=\"\",\"\",'[10]II.2.Balance OSD-Activos'!R176)","v":65945.829896749172},{"$f":"IF('[10]II.2.Balance OSD-Activos'!S176=\"\",\"\",'[10]II.2.Balance OSD-Activos'!S176)","v":66283.223344852508},67780.617508794589,135518.39266518509,10.004390145865717,11.626318498098476,5.8200955862615755,11.672128984709595,11.531137167961369,11.514098680401164,0.42251702286504234,{"$f":"IF('[1]MONE(M)CAPARD'!AS318=\"\",\"\",'[1]MONE(M)CAPARD'!AS318)","v":3},{"$f":"IF('[1]MONE(M)CAPARD'!AT318=\"\",\"\",'[1]MONE(M)CAPARD'!AT318)","v":"n.a."},{"$f":"IF('[1]MONE(M)CAPARD'!AU318=\"\",\"\",'[1]MONE(M)CAPARD'!AU318)","v":3.25},{"$f":"IF('[1]MONE(M)CAPARD'!AV318=\"\",\"\",'[1]MONE(M)CAPARD'!AV318)","v":6.25},{"$f":"IF('[1]MONE(M)CAPARD'!AW318=\"\",\"\",'[1]MONE(M)CAPARD'!AW318)","v":"n.a."},{"$f":"IF('[1]MONE(M)CAPARD'!AX318=\"\",\"\",'[1]MONE(M)CAPARD'!AX318)","v":5},{"$f":"IF('[1]MONE(M)CAPARD'!AY318=\"\",\"\",'[1]MONE(M)CAPARD'!AY318)","v":"n.a."},{"$f":"IF('[1]FISCAL(M)'!$K318=\"\",\"\",'[1]FISCAL(M)'!$K318)","v":-2417.0537304031236},{"$f":"IF('[1]FISCAL(M)'!$L318=\"\",\"\",'[1]FISCAL(M)'!$L318)","v":-3199.8731431108963},{"$f":"IF('[1]FISCAL(M)'!$AY318=\"\",\"\",'[1]FISCAL(M)'!$AY318)","v":109384.60442840474},{"$f":"IF('[1]FISCAL(M)'!$BI318=\"\",\"\",'[1]FISCAL(M)'!$BI318)","v":56265.534389553119},{"$f":"IF('[1]FISCAL(M)'!$BS318=\"\",\"\",'[1]FISCAL(M)'!$BS318)","v":53119.070038851642},{"$f":"IF('[1]FISCAL(M)'!$AZ318=\"\",\"\",'[1]FISCAL(M)'!$AZ318)","v":129354.64122886477},{"$f":"IF('[1]FISCAL(M)'!$BJ318=\"\",\"\",'[1]FISCAL(M)'!$BJ318)","v":60599.204081753116},{"$f":"IF('[1]FISCAL(M)'!$BT318=\"\",\"\",'[1]FISCAL(M)'!$BT318)","v":68755.437147111632},{"$f":"IF('[2]MONE(M)'!$AO318=\"\",\"\",'[2]MONE(M)'!$AO318)","v":17330279.213089805},{"$f":"IF('[3]MONE(M)'!$AO318=\"\",\"\",'[3]MONE(M)'!$AO318)","v":10968.478326539998},{"$f":"IF('[4]MONE(M)'!$AO318=\"\",\"\",'[4]MONE(M)'!$AO318)","v":171781.34326291041},{"$f":"+'[5]MONE(M)'!$AO318","v":247589.20337825787},{"$f":"IF('[6]MONE(M)'!$AO318=\"\",\"\",'[6]MONE(M)'!$AO318)","v":111100.72645336433},{"$f":"IF('[7]MONE(M)'!$AO318=\"\",\"\",'[7]MONE(M)'!$AO318)","v":780925.27624116908},{"$f":"IF('[8]MONE(M)'!$AO318=\"\",\"\",'[8]MONE(M)'!$AO318)","v":42358.296514170004},12.983189970395049,3.4614558839034526,11.753423583547162,10.138723727026422,23.893225825321053,20.036367592556314,12.407627974956515,{"$f":"IF('[1]FISCAL(M)'!$K318=\"\",\"\",'[1]FISCAL(M)'!$K318)","v":-2417.0537304031236},{"$f":"+'[1]REAL(A)'!$AO$35","v":247040.69555179874},-0.97840306229882812,{"$f":"IF('[1]FISCAL(M)'!$L318=\"\",\"\",'[1]FISCAL(M)'!$L318)","v":-3199.8731431108963},{"$f":"+'[1]REAL(A)'!$AP$35","v":301132.41555179865},-1.0626133148925234,128808.15630656696,{"$f":"'[1]Gráfico REM'!BG312","v":22899.358647263329},{"$f":"'[1]Gráfico REM'!BH312","v":98696.366033033701},{"$f":"'[1]Gráfico REM'!BI312","v":7212.4316262699322},11.035770144568158,9.8743314335410837,11.84482614415343,4.2172147436746688,197108.65204831696,{"$f":"'[1]Gráfico REM'!BK312","v":24993.78428758333},{"$f":"'[1]Gráfico REM'!BL312","v":141054.66254720371},{"$f":"'[1]Gráfico REM'!BM312","v":31060.205213529935},11.601304651247869,10.527677885161268,12.013240892573386,10.6185043859925]
[2015,"octubre","2015-octubre",{"$f":"IF('[1]REAL IPC(M)'!$AL319=\"\",\"\",+'[1]REAL IPC(M)'!$AL319)","v":1.2823312881348636},{"$f":"IF('[1]REAL IPC(M)'!$BE319=\"\",\"\",+'[1]REAL IPC(M)'!$BE319)","v":2.41881823909047},{"$f":"IF('[1]REAL IPC(M)'!$AM319=\"\",\"\",+'[1]REAL IPC(M)'!$AM319)","v":1.0631650736721676},{"$f":"IF('[1]REAL IPC(M)'!$BI319=\"\",\"\",+'[1]REAL IPC(M)'!$BI319)","v":2.2058029509057553},{"$f":"IF('[1]REAL IMAE(M)'!BJ319=\"\",\"\",'[1]REAL IMAE(M)'!BJ319)","v":5.4521263395370667},{"$f":"IF('[1]REAL IMAE(M)'!BK319=\"\",\"\",'[1]REAL IMAE(M)'!BK319)","v":4.6771472537022962},{"$f":"IF('[1]REAL IMAE(M)'!BN319=\"\",\"\",'[1]REAL IMAE(M)'!BN319)","v":5.3347362262187392},{"$f":"IF('[1]REAL IMAE(M)'!BO319=\"\",\"\",'[1]REAL IMAE(M)'!BO319)","v":4.7542864926855444},{"$f":"IF('[1]EXT RIN(M)'!$K319=\"\",\"\",'[1]EXT RIN(M)'!$K319)","v":28716.025055904123},"",{"$f":"IF('[1]EXT RIN(M)'!$L319=\"\",\"\",'[1]EXT RIN(M)'!$L319)","v":32620.078516714122},"",{"$f":"IF('[1]MONE(M)CARD'!EG319=\"\",\"\",'[1]MONE(M)CARD'!EG319)","v":30215.796294750344},{"$f":"IF('[1]MONE(M)CARD'!EK319=\"\",\"\",'[1]MONE(M)CARD'!EK319)","v":50093.732484493303},{"$f":"IF('[1]MONE(M)CARD'!EP319=\"\",\"\",'[1]MONE(M)CARD'!EP319)","v":28102.506985388405},{"$f":"IF('[1]MONE(M)CARD'!ES319=\"\",\"\",'[1]MONE(M)CARD'!ES319)","v":12.254820894208596},{"$f":"IF('[1]MONE(M)CARD'!EV319=\"\",\"\",'[1]MONE(M)CARD'!EV319)","v":8.4671081313649754},{"$f":"IF('[1]MONE(M)CARD'!EZ319=\"\",\"\",'[1]MONE(M)CARD'!EZ319)","v":7.779749317642759},{"$f":"IF('[1]MONE(M)CAPARD'!FC319=\"\",\"\",'[1]MONE(M)CAPARD'!FC319)","v":38163.691824130343},{"$f":"IF('[1]MONE(M)CAPARD'!FG319=\"\",\"\",'[1]MONE(M)CAPARD'!FG319)","v":77446.394271223311},{"$f":"IF('[1]MONE(M)CAPARD'!FL319=\"\",\"\",'[1]MONE(M)CAPARD'!FL319)","v":28102.506985388405},{"$f":"IF('[1]MONE(M)CAPARD'!FO319=\"\",\"\",'[1]MONE(M)CAPARD'!FO319)","v":9.4458649448540442},{"$f":"IF('[1]MONE(M)CAPARD'!FR319=\"\",\"\",'[1]MONE(M)CAPARD'!FR319)","v":6.9686219181665621},{"$f":"IF('[1]MONE(M)CAPARD'!FV319=\"\",\"\",'[1]MONE(M)CAPARD'!FV319)","v":6.7505341646412864},{"$f":"IF('[1]MONE(M)CARD'!FV319=\"\",\"\",'[1]MONE(M)CARD'!FV319)","v":1271.1046592257283},{"$f":"IF('[1]MONE(M)CARD'!GD319=\"\",\"\",'[1]MONE(M)CARD'!GD319)","v":98.133599289187657},{"$f":"IF('[1]MONE(M)CARD'!GE319=\"\",\"\",'[1]MONE(M)CARD'!GE319)","v":8748.5013455373337},5.5462252475716678,{"$f":"IF('[9]II.2.Balance OSD-Activos'!J177=\"\",\"\",'[9]II.2.Balance OSD-Activos'!J177)","v":174.55536431809296},{"$f":"IF('[9]II.2.Balance OSD-Activos'!N177=\"\",\"\",'[9]II.2.Balance OSD-Activos'!N177)","v":975.29978815864797},{"$f":"IF('[9]II.2.Balance OSD-Activos'!R177=\"\",\"\",'[9]II.2.Balance OSD-Activos'!R177)","v":45447.194394884078},{"$f":"IF('[9]II.2.Balance OSD-Activos'!S177=\"\",\"\",'[9]II.2.Balance OSD-Activos'!S177)","v":48655.215840437995},45621.749759202168,95252.265387798805,-11.350474023161883,11.808866405470253,11.316108981251706,11.921168569940788,10.394188283671934,11.076741056001893,-0.14639522927804016,{"$f":"IF('[1]MONE(M)CAPARD'!GS319=\"\",\"\",'[1]MONE(M)CAPARD'!GS319)","v":18398.182932061034},{"$f":"IF('[1]MONE(M)CARD'!HA319=\"\",\"\",'[1]MONE(M)CAPARD'!HA319)","v":9961.7662228473328},{"$f":"IF('[1]MONE(M)CAPARD'!HB319=\"\",\"\",'[1]MONE(M)CAPARD'!HB319)","v":8436.4167092137013},"n.d.",{"$f":"IF('[10]II.2.Balance OSD-Activos'!J177=\"\",\"\",'[10]II.2.Balance OSD-Activos'!J177)","v":1812.0590565480932},{"$f":"IF('[10]II.2.Balance OSD-Activos'!N177=\"\",\"\",'[10]II.2.Balance OSD-Activos'!N177)","v":1452.5474157186479},{"$f":"IF('[10]II.2.Balance OSD-Activos'!R177=\"\",\"\",'[10]II.2.Balance OSD-Activos'!R177)","v":66813.384130994091},{"$f":"IF('[10]II.2.Balance OSD-Activos'!S177=\"\",\"\",'[10]II.2.Balance OSD-Activos'!S177)","v":67041.374893597997},68625.443187542187,137119.36549685884,8.682322583371139,11.248124650387448,3.4082813356074215,11.319400758460208,11.504715826255518,11.283955636313658,-0.23014304408750519,{"$f":"IF('[1]MONE(M)CAPARD'!AS319=\"\",\"\",'[1]MONE(M)CAPARD'!AS319)","v":2.25},{"$f":"IF('[1]MONE(M)CAPARD'!AT319=\"\",\"\",'[1]MONE(M)CAPARD'!AT319)","v":"n.a."},{"$f":"IF('[1]MONE(M)CAPARD'!AU319=\"\",\"\",'[1]MONE(M)CAPARD'!AU319)","v":3},{"$f":"IF('[1]MONE(M)CAPARD'!AV319=\"\",\"\",'[1]MONE(M)CAPARD'!AV319)","v":6.25},{"$f":"IF('[1]MONE(M)CAPARD'!AW319=\"\",\"\",'[1]MONE(M)CAPARD'!AW319)","v":"n.a."},{"$f":"IF('[1]MONE(M)CAPARD'!AX319=\"\",\"\",'[1]MONE(M)CAPARD'!AX319)","v":5},{"$f":"IF('[1]MONE(M)CAPARD'!AY319=\"\",\"\",'[1]MONE(M)CAPARD'!AY319)","v":"n.a."},{"$f":"IF('[1]FISCAL(M)'!$K319=\"\",\"\",'[1]FISCAL(M)'!$K319)","v":-2532.4609604768216},{"$f":"IF('[1]FISCAL(M)'!$L319=\"\",\"\",'[1]FISCAL(M)'!$L319)","v":-3792.4729792245926},{"$f":"IF('[1]FISCAL(M)'!$AY319=\"\",\"\",'[1]FISCAL(M)'!$AY319)","v":109574.15821491796},{"$f":"IF('[1]FISCAL(M)'!$BI319=\"\",\"\",'[1]FISCAL(M)'!$BI319)","v":56484.653614859977},{"$f":"IF('[1]FISCAL(M)'!$BS319=\"\",\"\",'[1]FISCAL(M)'!$BS319)","v":53089.504600057982},{"$f":"IF('[1]FISCAL(M)'!$AZ319=\"\",\"\",'[1]FISCAL(M)'!$AZ319)","v":129576.33897752795},{"$f":"IF('[1]FISCAL(M)'!$BJ319=\"\",\"\",'[1]FISCAL(M)'!$BJ319)","v":60862.323302059973},{"$f":"IF('[1]FISCAL(M)'!$BT319=\"\",\"\",'[1]FISCAL(M)'!$BT319)","v":68714.015675467992},{"$f":"IF('[2]MONE(M)'!$AO319=\"\",\"\",'[2]MONE(M)'!$AO319)","v":17498558.119420163},{"$f":"IF('[3]MONE(M)'!$AO319=\"\",\"\",'[3]MONE(M)'!$AO319)","v":11045.564794469999},{"$f":"IF('[4]MONE(M)'!$AO319=\"\",\"\",'[4]MONE(M)'!$AO319)","v":173758.01663496601},{"$f":"+'[5]MONE(M)'!$AO319","v":250033.41217478993},{"$f":"IF('[6]MONE(M)'!$AO319=\"\",\"\",'[6]MONE(M)'!$AO319)","v":113555.30133992003},{"$f":"IF('[7]MONE(M)'!$AO319=\"\",\"\",'[7]MONE(M)'!$AO319)","v":798194.01647404593},{"$f":"IF('[8]MONE(M)'!$AO319=\"\",\"\",'[8]MONE(M)'!$AO319)","v":42737.173123350003},12.248054139066177,3.9318787648594533,12.087738621359833,9.5896360826378313,24.631302521017929,19.389373922632135,11.992599280711879,{"$f":"IF('[1]FISCAL(M)'!$K319=\"\",\"\",'[1]FISCAL(M)'!$K319)","v":-2532.4609604768216},{"$f":"+'[1]REAL(A)'!$AO$35","v":247040.69555179874},-1.0251189403511951,{"$f":"IF('[1]FISCAL(M)'!$L319=\"\",\"\",'[1]FISCAL(M)'!$L319)","v":-3792.4729792245926},{"$f":"+'[1]REAL(A)'!$AP$35","v":301132.41555179865},-1.2594037650431023,130190.83147805909,{"$f":"'[1]Gráfico REM'!BG313","v":23043.338217856392},{"$f":"'[1]Gráfico REM'!BH313","v":99902.085632507486},{"$f":"'[1]Gráfico REM'!BI313","v":7245.4076276952073},11.23072623141017,13.106471902926241,11.461781974793507,2.8651018333194722,198656.92082359907,{"$f":"'[1]Gráfico REM'!BK313","v":25159.963435486392},{"$f":"'[1]Gráfico REM'!BL313","v":142639.25875585747},{"$f":"'[1]Gráfico REM'!BM313","v":30857.6986322552},11.411543649680578,12.845274055166378,11.620295248268731,9.3337381405316666]
[2015,"noviembre","2015-noviembre",{"$f":"IF('[1]REAL IPC(M)'!$AL320=\"\",\"\",+'[1]REAL IPC(M)'!$AL320)","v":1.3406650072728565},{"$f":"IF('[1]REAL IPC(M)'!$BE320=\"\",\"\",+'[1]REAL IPC(M)'!$BE320)","v":2.402446672579317},{"$f":"IF('[1]REAL IPC(M)'!$AM320=\"\",\"\",+'[1]REAL IPC(M)'!$AM320)","v":1.1647915106527407},{"$f":"IF('[1]REAL IPC(M)'!$BI320=\"\",\"\",+'[1]REAL IPC(M)'!$BI320)","v":2.185149799704722},{"$f":"IF('[1]REAL IMAE(M)'!BJ320=\"\",\"\",'[1]REAL IMAE(M)'!BJ320)","v":4.8296688321741055},{"$f":"IF('[1]REAL IMAE(M)'!BK320=\"\",\"\",'[1]REAL IMAE(M)'!BK320)","v":4.6653775188860935},{"$f":"IF('[1]REAL IMAE(M)'!BN320=\"\",\"\",'[1]REAL IMAE(M)'!BN320)","v":4.6450634243939026},{"$f":"IF('[1]REAL IMAE(M)'!BO320=\"\",\"\",'[1]REAL IMAE(M)'!BO320)","v":4.7382661494504541},{"$f":"IF('[1]EXT RIN(M)'!$K320=\"\",\"\",'[1]EXT RIN(M)'!$K320)","v":28779.212581577587},"",{"$f":"IF('[1]EXT RIN(M)'!$L320=\"\",\"\",'[1]EXT RIN(M)'!$L320)","v":32382.343503027587},"",{"$f":"IF('[1]MONE(M)CARD'!EG320=\"\",\"\",'[1]MONE(M)CARD'!EG320)","v":31636.353762281069},{"$f":"IF('[1]MONE(M)CARD'!EK320=\"\",\"\",'[1]MONE(M)CARD'!EK320)","v":49673.440474535309},{"$f":"IF('[1]MONE(M)CARD'!EP320=\"\",\"\",'[1]MONE(M)CARD'!EP320)","v":28042.646826865515},{"$f":"IF('[1]MONE(M)CARD'!ES320=\"\",\"\",'[1]MONE(M)CARD'!ES320)","v":13.453358615672094},{"$f":"IF('[1]MONE(M)CARD'!EV320=\"\",\"\",'[1]MONE(M)CARD'!EV320)","v":8.8367652620819026},{"$f":"IF('[1]MONE(M)CARD'!EZ320=\"\",\"\",'[1]MONE(M)CARD'!EZ320)","v":7.8278341306758259},{"$f":"IF('[1]MONE(M)CAPARD'!FC320=\"\",\"\",'[1]MONE(M)CAPARD'!FC320)","v":39741.840074701067},{"$f":"IF('[1]MONE(M)CAPARD'!FG320=\"\",\"\",'[1]MONE(M)CAPARD'!FG320)","v":77208.855081175308},{"$f":"IF('[1]MONE(M)CAPARD'!FL320=\"\",\"\",'[1]MONE(M)CAPARD'!FL320)","v":28042.646826865544},{"$f":"IF('[1]MONE(M)CAPARD'!FO320=\"\",\"\",'[1]MONE(M)CAPARD'!FO320)","v":10.322457989919398},{"$f":"IF('[1]MONE(M)CAPARD'!FR320=\"\",\"\",'[1]MONE(M)CAPARD'!FR320)","v":7.3551083653520921},{"$f":"IF('[1]MONE(M)CAPARD'!FV320=\"\",\"\",'[1]MONE(M)CAPARD'!FV320)","v":6.8924956256634529},{"$f":"IF('[1]MONE(M)CARD'!FV320=\"\",\"\",'[1]MONE(M)CARD'!FV320)","v":1299.524175507333},{"$f":"IF('[1]MONE(M)CARD'!GD320=\"\",\"\",'[1]MONE(M)CARD'!GD320)","v":103.93896318705684},{"$f":"IF('[1]MONE(M)CARD'!GE320=\"\",\"\",'[1]MONE(M)CARD'!GE320)","v":8603.8771004508326},4.7288542115752952,{"$f":"IF('[9]II.2.Balance OSD-Activos'!J178=\"\",\"\",'[9]II.2.Balance OSD-Activos'!J178)","v":196.40656770145429},{"$f":"IF('[9]II.2.Balance OSD-Activos'!N178=\"\",\"\",'[9]II.2.Balance OSD-Activos'!N178)","v":1008.0734222070885},{"$f":"IF('[9]II.2.Balance OSD-Activos'!R178=\"\",\"\",'[9]II.2.Balance OSD-Activos'!R178)","v":46075.575975794767},{"$f":"IF('[9]II.2.Balance OSD-Activos'!S178=\"\",\"\",'[9]II.2.Balance OSD-Activos'!S178)","v":49383.908358630964},46271.982543496219,96663.964324334273,9.7492116409330087,10.956206465410002,15.519652683175167,10.961408355744329,10.630768957422143,10.835299543135978,-0.24144151286591509,{"$f":"IF('[1]MONE(M)CAPARD'!GS320=\"\",\"\",'[1]MONE(M)CAPARD'!GS320)","v":18596.869495803228},{"$f":"IF('[1]MONE(M)CARD'!HA320=\"\",\"\",'[1]MONE(M)CAPARD'!HA320)","v":9889.0649665008314},{"$f":"IF('[1]MONE(M)CAPARD'!HB320=\"\",\"\",'[1]MONE(M)CAPARD'!HB320)","v":8707.804529302397},"n.d.",{"$f":"IF('[10]II.2.Balance OSD-Activos'!J178=\"\",\"\",'[10]II.2.Balance OSD-Activos'!J178)","v":1839.3598676614545},{"$f":"IF('[10]II.2.Balance OSD-Activos'!N178=\"\",\"\",'[10]II.2.Balance OSD-Activos'!N178)","v":1487.6033182370884},{"$f":"IF('[10]II.2.Balance OSD-Activos'!R178=\"\",\"\",'[10]II.2.Balance OSD-Activos'!R178)","v":67729.241461374753},{"$f":"IF('[10]II.2.Balance OSD-Activos'!S178=\"\",\"\",'[10]II.2.Balance OSD-Activos'!S178)","v":68026.555996070965},69568.601329036203,139082.76064334426,11.510400720894687,10.746676496933659,3.9319077727928198,10.726081505526452,11.817825522214731,11.189661871789159,-9.4293764524499224E-2,{"$f":"IF('[1]MONE(M)CAPARD'!AS320=\"\",\"\",'[1]MONE(M)CAPARD'!AS320)","v":2.25},{"$f":"IF('[1]MONE(M)CAPARD'!AT320=\"\",\"\",'[1]MONE(M)CAPARD'!AT320)","v":"n.a."},{"$f":"IF('[1]MONE(M)CAPARD'!AU320=\"\",\"\",'[1]MONE(M)CAPARD'!AU320)","v":3},{"$f":"IF('[1]MONE(M)CAPARD'!AV320=\"\",\"\",'[1]MONE(M)CAPARD'!AV320)","v":6.25},{"$f":"IF('[1]MONE(M)CAPARD'!AW320=\"\",\"\",'[1]MONE(M)CAPARD'!AW320)","v":"n.a."},{"$f":"IF('[1]MONE(M)CAPARD'!AX320=\"\",\"\",'[1]MONE(M)CAPARD'!AX320)","v":5},{"$f":"IF('[1]MONE(M)CAPARD'!AY320=\"\",\"\",'[1]MONE(M)CAPARD'!AY320)","v":"n.a."},{"$f":"IF('[1]FISCAL(M)'!$K320=\"\",\"\",'[1]FISCAL(M)'!$K320)","v":-3344.4512097762736},{"$f":"IF('[1]FISCAL(M)'!$L320=\"\",\"\",'[1]FISCAL(M)'!$L320)","v":-5038.3947367840447},{"$f":"IF('[1]FISCAL(M)'!$AY320=\"\",\"\",'[1]FISCAL(M)'!$AY320)","v":109567.46128336029},{"$f":"IF('[1]FISCAL(M)'!$BI320=\"\",\"\",'[1]FISCAL(M)'!$BI320)","v":56305.801296422942},{"$f":"IF('[1]FISCAL(M)'!$BS320=\"\",\"\",'[1]FISCAL(M)'!$BS320)","v":53261.659986937353},{"$f":"IF('[1]FISCAL(M)'!$AZ320=\"\",\"\",'[1]FISCAL(M)'!$AZ320)","v":129868.45362582029},{"$f":"IF('[1]FISCAL(M)'!$BJ320=\"\",\"\",'[1]FISCAL(M)'!$BJ320)","v":60987.861811842944},{"$f":"IF('[1]FISCAL(M)'!$BT320=\"\",\"\",'[1]FISCAL(M)'!$BT320)","v":68880.591813977342},{"$f":"IF('[2]MONE(M)'!$AO320=\"\",\"\",'[2]MONE(M)'!$AO320)","v":17586581.520206105},{"$f":"IF('[3]MONE(M)'!$AO320=\"\",\"\",'[3]MONE(M)'!$AO320)","v":11172.61184942},{"$f":"IF('[4]MONE(M)'!$AO320=\"\",\"\",'[4]MONE(M)'!$AO320)","v":175555.66644840082},{"$f":"+'[5]MONE(M)'!$AO320","v":253693.16675238201},{"$f":"IF('[6]MONE(M)'!$AO320=\"\",\"\",'[6]MONE(M)'!$AO320)","v":116379.04009399176},{"$f":"IF('[7]MONE(M)'!$AO320=\"\",\"\",'[7]MONE(M)'!$AO320)","v":810454.71967745642},{"$f":"IF('[8]MONE(M)'!$AO320=\"\",\"\",'[8]MONE(M)'!$AO320)","v":43297.888723269985},11.548009305617635,4.2788381362054873,11.858566848849094,9.5772788759358463,23.165517232638532,17.894825689489615,12.369504045443591,{"$f":"IF('[1]FISCAL(M)'!$K320=\"\",\"\",'[1]FISCAL(M)'!$K320)","v":-3344.4512097762736},{"$f":"+'[1]REAL(A)'!$AO$35","v":247040.69555179874},-1.3538057777509047,{"$f":"IF('[1]FISCAL(M)'!$L320=\"\",\"\",'[1]FISCAL(M)'!$L320)","v":-5038.3947367840447},{"$f":"+'[1]REAL(A)'!$AP$35","v":301132.41555179865},-1.673149244843545,131404.50189560154,{"$f":"'[1]Gráfico REM'!BG314","v":22900.000072301089},{"$f":"'[1]Gráfico REM'!BH314","v":101146.30931908861},{"$f":"'[1]Gráfico REM'!BI314","v":7358.1925042118437},12.011363216248006,17.068908265622284,11.159171585469242,8.8474444227365723,200661.22806195152,{"$f":"'[1]Gráfico REM'!BK314","v":25063.583310201087},{"$f":"'[1]Gráfico REM'!BL314","v":144444.19804235859},{"$f":"'[1]Gráfico REM'!BM314","v":31153.446709391836},11.837056057539019,16.796165536254982,11.519229693916655,9.542624797138588]
[2015,"diciembre","2015-diciembre",{"$f":"IF('[1]REAL IPC(M)'!$AL321=\"\",\"\",+'[1]REAL IPC(M)'!$AL321)","v":1.9706674452442785},{"$f":"IF('[1]REAL IPC(M)'!$BE321=\"\",\"\",+'[1]REAL IPC(M)'!$BE321)","v":2.3906583825851646},{"$f":"IF('[1]REAL IPC(M)'!$AM321=\"\",\"\",+'[1]REAL IPC(M)'!$AM321)","v":1.7461960807569232},{"$f":"IF('[1]REAL IPC(M)'!$BI321=\"\",\"\",+'[1]REAL IPC(M)'!$BI321)","v":2.1694152088346241},{"$f":"IF('[1]REAL IMAE(M)'!BJ321=\"\",\"\",'[1]REAL IMAE(M)'!BJ321)","v":3.9234309473954898},{"$f":"IF('[1]REAL IMAE(M)'!BK321=\"\",\"\",'[1]REAL IMAE(M)'!BK321)","v":4.6503874540690049},{"$f":"IF('[1]REAL IMAE(M)'!BN321=\"\",\"\",'[1]REAL IMAE(M)'!BN321)","v":3.6667436031790679},{"$f":"IF('[1]REAL IMAE(M)'!BO321=\"\",\"\",'[1]REAL IMAE(M)'!BO321)","v":4.7194436860872768},{"$f":"IF('[1]EXT RIN(M)'!$K321=\"\",\"\",'[1]EXT RIN(M)'!$K321)","v":29674.007232887303},29674.007232887303,{"$f":"IF('[1]EXT RIN(M)'!$L321=\"\",\"\",'[1]EXT RIN(M)'!$L321)","v":33570.121339927304},33570.121339927304,{"$f":"IF('[1]MONE(M)CARD'!EG321=\"\",\"\",'[1]MONE(M)CARD'!EG321)","v":33118.16154321556},{"$f":"IF('[1]MONE(M)CARD'!EK321=\"\",\"\",'[1]MONE(M)CARD'!EK321)","v":50021.174624334984},{"$f":"IF('[1]MONE(M)CARD'!EP321=\"\",\"\",'[1]MONE(M)CARD'!EP321)","v":28082.726489088629},{"$f":"IF('[1]MONE(M)CARD'!ES321=\"\",\"\",'[1]MONE(M)CARD'!ES321)","v":12.165967342360528},{"$f":"IF('[1]MONE(M)CARD'!EV321=\"\",\"\",'[1]MONE(M)CARD'!EV321)","v":8.1588629029735849},{"$f":"IF('[1]MONE(M)CARD'!EZ321=\"\",\"\",'[1]MONE(M)CARD'!EZ321)","v":7.1046588783247655},{"$f":"IF('[1]MONE(M)CAPARD'!FC321=\"\",\"\",'[1]MONE(M)CAPARD'!FC321)","v":41332.833642135556},{"$f":"IF('[1]MONE(M)CAPARD'!FG321=\"\",\"\",'[1]MONE(M)CAPARD'!FG321)","v":77997.565344944975},{"$f":"IF('[1]MONE(M)CAPARD'!FL321=\"\",\"\",'[1]MONE(M)CAPARD'!FL321)","v":28082.726489088629},{"$f":"IF('[1]MONE(M)CAPARD'!FO321=\"\",\"\",'[1]MONE(M)CAPARD'!FO321)","v":9.2230833433683213},{"$f":"IF('[1]MONE(M)CAPARD'!FR321=\"\",\"\",'[1]MONE(M)CAPARD'!FR321)","v":7.0025704302586256},{"$f":"IF('[1]MONE(M)CAPARD'!FV321=\"\",\"\",'[1]MONE(M)CAPARD'!FV321)","v":6.4373592791376444},{"$f":"IF('[1]MONE(M)CARD'!FV321=\"\",\"\",'[1]MONE(M)CARD'!FV321)","v":1334.0231316324371},{"$f":"IF('[1]MONE(M)CARD'!GD321=\"\",\"\",'[1]MONE(M)CARD'!GD321)","v":154.10656703557314},{"$f":"IF('[1]MONE(M)CARD'!GE321=\"\",\"\",'[1]MONE(M)CARD'!GE321)","v":8062.258483798405},0.69270802476071314,{"$f":"IF('[9]II.2.Balance OSD-Activos'!J179=\"\",\"\",'[9]II.2.Balance OSD-Activos'!J179)","v":194.13875347433043},{"$f":"IF('[9]II.2.Balance OSD-Activos'!N179=\"\",\"\",'[9]II.2.Balance OSD-Activos'!N179)","v":1007.694402761087},{"$f":"IF('[9]II.2.Balance OSD-Activos'!R179=\"\",\"\",'[9]II.2.Balance OSD-Activos'!R179)","v":46497.328582384434},{"$f":"IF('[9]II.2.Balance OSD-Activos'!S179=\"\",\"\",'[9]II.2.Balance OSD-Activos'!S179)","v":49519.243381006534},{"$f":"IFERROR(+AF314+AH314,\" \")","v":46691.467335858768},97218.405119626375,8.8441582430676124,9.7710597306634348,16.472713143713658,9.7749628873685204,10.377162515456217,10.144825323193718,-0.69047421994225999,{"$f":"IF('[1]MONE(M)CAPARD'!GS321=\"\",\"\",'[1]MONE(M)CAPARD'!GS321)","v":18606.375397311142},{"$f":"IF('[1]MONE(M)CARD'!HA321=\"\",\"\",'[1]MONE(M)CAPARD'!HA321)","v":9358.6384510784046},{"$f":"IF('[1]MONE(M)CAPARD'!HB321=\"\",\"\",'[1]MONE(M)CAPARD'!HB321)","v":9247.736946232737},"n.d.",{"$f":"IF('[10]II.2.Balance OSD-Activos'!J179=\"\",\"\",'[10]II.2.Balance OSD-Activos'!J179)","v":1816.6722391443307},{"$f":"IF('[10]II.2.Balance OSD-Activos'!N179=\"\",\"\",'[10]II.2.Balance OSD-Activos'!N179)","v":1494.8546344510869},{"$f":"IF('[10]II.2.Balance OSD-Activos'!R179=\"\",\"\",'[10]II.2.Balance OSD-Activos'!R179)","v":67874.352478374436},{"$f":"IF('[10]II.2.Balance OSD-Activos'!S179=\"\",\"\",'[10]II.2.Balance OSD-Activos'!S179)","v":68355.605184106535},69691.024717518769,139541.48453607637,8.6888700879751859,9.5488743419751785,18.45789252101353,9.5720795951020232,11.563330476659605,10.616418726077924,-0.5732431457112348,{"$f":"IF('[1]MONE(M)CAPARD'!AS321=\"\",\"\",'[1]MONE(M)CAPARD'!AS321)","v":2.25},{"$f":"IF('[1]MONE(M)CAPARD'!AT321=\"\",\"\",'[1]MONE(M)CAPARD'!AT321)","v":"n.a."},{"$f":"IF('[1]MONE(M)CAPARD'!AU321=\"\",\"\",'[1]MONE(M)CAPARD'!AU321)","v":3},{"$f":"IF('[1]MONE(M)CAPARD'!AV321=\"\",\"\",'[1]MONE(M)CAPARD'!AV321)","v":6.25},{"$f":"IF('[1]MONE(M)CAPARD'!AW321=\"\",\"\",'[1]MONE(M)CAPARD'!AW321)","v":"n.a."},{"$f":"IF('[1]MONE(M)CAPARD'!AX321=\"\",\"\",'[1]MONE(M)CAPARD'!AX321)","v":5},{"$f":"IF('[1]MONE(M)CAPARD'!AY321=\"\",\"\",'[1]MONE(M)CAPARD'!AY321)","v":"n.a."},{"$f":"IF('[1]FISCAL(M)'!$K321=\"\",\"\",'[1]FISCAL(M)'!$K321)","v":-4992.0167934049123},{"$f":"IF('[1]FISCAL(M)'!$L321=\"\",\"\",'[1]FISCAL(M)'!$L321)","v":-4991.5458977426852},{"$f":"IF('[1]FISCAL(M)'!$AY321=\"\",\"\",'[1]FISCAL(M)'!$AY321)","v":110428.40130848231},{"$f":"IF('[1]FISCAL(M)'!$BI321=\"\",\"\",'[1]FISCAL(M)'!$BI321)","v":56135.037639575188},{"$f":"IF('[1]FISCAL(M)'!$BS321=\"\",\"\",'[1]FISCAL(M)'!$BS321)","v":54293.363668907128},{"$f":"IF('[1]FISCAL(M)'!$AZ321=\"\",\"\",'[1]FISCAL(M)'!$AZ321)","v":130651.24363401231},{"$f":"IF('[1]FISCAL(M)'!$BJ321=\"\",\"\",'[1]FISCAL(M)'!$BJ321)","v":60709.63580116519},{"$f":"IF('[1]FISCAL(M)'!$BT321=\"\",\"\",'[1]FISCAL(M)'!$BT321)","v":69941.607832847119},{"$f":"IF('[2]MONE(M)'!$AO321=\"\",\"\",'[2]MONE(M)'!$AO321)","v":17842699.45193876},{"$f":"IF('[3]MONE(M)'!$AO321=\"\",\"\",'[3]MONE(M)'!$AO321)","v":11199.988952619999},{"$f":"IF('[4]MONE(M)'!$AO321=\"\",\"\",'[4]MONE(M)'!$AO321)","v":177482.76659281901},{"$f":"+'[5]MONE(M)'!$AO321","v":256181.21010161462},{"$f":"IF('[6]MONE(M)'!$AO321=\"\",\"\",'[6]MONE(M)'!$AO321)","v":118867.25213424562},{"$f":"IF('[7]MONE(M)'!$AO321=\"\",\"\",'[7]MONE(M)'!$AO321)","v":819047.0566265299},{"$f":"IF('[8]MONE(M)'!$AO321=\"\",\"\",'[8]MONE(M)'!$AO321)","v":43157.608895640005},11.97673529527985,4.7488799151071737,11.741019128034402,9.4791371905555089,23.59842699712118,14.817842982799112,11.347416905052254,{"$f":"IF('[1]FISCAL(M)'!$K321=\"\",\"\",'[1]FISCAL(M)'!$K321)","v":-4992.0167934049123},{"$f":"+'[1]REAL(A)'!$AO$35","v":247040.69555179874},-2.0207264970067254,{"$f":"IF('[1]FISCAL(M)'!$L321=\"\",\"\",'[1]FISCAL(M)'!$L321)","v":-4991.5458977426852},{"$f":"+'[1]REAL(A)'!$AP$35","v":301132.41555179865},-1.6575916905511869,131845.0832414387,{"$f":"'[1]Gráfico REM'!BG315","v":22625.320270852964},{"$f":"'[1]Gráfico REM'!BH315","v":101736.96030072958},{"$f":"'[1]Gráfico REM'!BI315","v":7482.8026698561534},11.159580931039059,17.261997151640763,10.452233237948239,3.8600757320197632,201095.17946240871,{"$f":"'[1]Gráfico REM'!BK315","v":24763.972540752962},{"$f":"'[1]Gráfico REM'!BL315","v":144894.56919636959},{"$f":"'[1]Gráfico REM'!BM315","v":31436.637725286149},11.170112855500713,16.541282291696447,10.717359647609959,9.2626362038396017]
[2016,"enero","2016-enero",{"$f":"IF('[1]REAL IPC(M)'!$AL322=\"\",\"\",+'[1]REAL IPC(M)'!$AL322)","v":2.6592960171132551},{"$f":"IF('[1]REAL IPC(M)'!$BE322=\"\",\"\",+'[1]REAL IPC(M)'!$BE322)","v":2.3832134654772075},{"$f":"IF('[1]REAL IPC(M)'!$AM322=\"\",\"\",+'[1]REAL IPC(M)'!$AM322)","v":2.3449255375034506},{"$f":"IF('[1]REAL IPC(M)'!$BI322=\"\",\"\",+'[1]REAL IPC(M)'!$BI322)","v":2.1583177040120249},{"$f":"IF('[1]REAL IMAE(M)'!BJ322=\"\",\"\",'[1]REAL IMAE(M)'!BJ322)","v":3.6182847929142392},{"$f":"IF('[1]REAL IMAE(M)'!BK322=\"\",\"\",'[1]REAL IMAE(M)'!BK322)","v":4.6323261491802104},{"$f":"IF('[1]REAL IMAE(M)'!BN322=\"\",\"\",'[1]REAL IMAE(M)'!BN322)","v":3.9621879196940268},{"$f":"IF('[1]REAL IMAE(M)'!BO322=\"\",\"\",'[1]REAL IMAE(M)'!BO322)","v":4.6978549785240187},{"$f":"IF('[1]EXT RIN(M)'!$K322=\"\",\"\",'[1]EXT RIN(M)'!$K322)","v":29982.491288363257},"",{"$f":"IF('[1]EXT RIN(M)'!$L322=\"\",\"\",'[1]EXT RIN(M)'!$L322)","v":33788.574324923255},"",{"$f":"IF('[1]MONE(M)CARD'!EG322=\"\",\"\",'[1]MONE(M)CARD'!EG322)","v":32502.548275288307},{"$f":"IF('[1]MONE(M)CARD'!EK322=\"\",\"\",'[1]MONE(M)CARD'!EK322)","v":49791.233875204198},{"$f":"IF('[1]MONE(M)CARD'!EP322=\"\",\"\",'[1]MONE(M)CARD'!EP322)","v":28018.979875553254},{"$f":"IF('[1]MONE(M)CARD'!ES322=\"\",\"\",'[1]MONE(M)CARD'!ES322)","v":11.148548163404136},{"$f":"IF('[1]MONE(M)CARD'!EV322=\"\",\"\",'[1]MONE(M)CARD'!EV322)","v":7.6467081564842054},{"$f":"IF('[1]MONE(M)CARD'!EZ322=\"\",\"\",'[1]MONE(M)CARD'!EZ322)","v":6.8088203315139317},{"$f":"IF('[1]MONE(M)CAPARD'!FC322=\"\",\"\",'[1]MONE(M)CAPARD'!FC322)","v":40690.999657328306},{"$f":"IF('[1]MONE(M)CAPARD'!FG322=\"\",\"\",'[1]MONE(M)CAPARD'!FG322)","v":78283.962144894205},{"$f":"IF('[1]MONE(M)CAPARD'!FL322=\"\",\"\",'[1]MONE(M)CAPARD'!FL322)","v":28018.979875553254},{"$f":"IF('[1]MONE(M)CAPARD'!FO322=\"\",\"\",'[1]MONE(M)CAPARD'!FO322)","v":8.443480384100166},{"$f":"IF('[1]MONE(M)CAPARD'!FR322=\"\",\"\",'[1]MONE(M)CAPARD'!FR322)","v":7.1782595121591131},{"$f":"IF('[1]MONE(M)CAPARD'!FV322=\"\",\"\",'[1]MONE(M)CAPARD'!FV322)","v":6.641635086140818},{"$f":"IF('[1]MONE(M)CARD'!FV322=\"\",\"\",'[1]MONE(M)CARD'!FV322)","v":1345.9123855836619},{"$f":"IF('[1]MONE(M)CARD'!GD322=\"\",\"\",'[1]MONE(M)CARD'!GD322)","v":99.272230814880231},{"$f":"IF('[1]MONE(M)CARD'!GE322=\"\",\"\",'[1]MONE(M)CARD'!GE322)","v":8669.5305802310068},15.237659105056455,{"$f":"IF('[9]II.2.Balance OSD-Activos'!J180=\"\",\"\",'[9]II.2.Balance OSD-Activos'!J180)","v":205.29920400880792},{"$f":"IF('[9]II.2.Balance OSD-Activos'!N180=\"\",\"\",'[9]II.2.Balance OSD-Activos'!N180)","v":997.59283791307416},{"$f":"IF('[9]II.2.Balance OSD-Activos'!R180=\"\",\"\",'[9]II.2.Balance OSD-Activos'!R180)","v":46532.799219632063},{"$f":"IF('[9]II.2.Balance OSD-Activos'!S180=\"\",\"\",'[9]II.2.Balance OSD-Activos'!S180)","v":49561.900973727439},{"$f":"IFERROR(+AF315+AH315,\"\")","v":46738.098423640869},97297.592235281394,14.201343473612503,10.868801147143792,18.357989554734377,10.854529109274047,10.486520036000858,10.745464579401531,0.60063925620781333,{"$f":"IF('[1]MONE(M)CAPARD'!GS322=\"\",\"\",'[1]MONE(M)CAPARD'!GS322)","v":19032.475481960806},{"$f":"IF('[1]MONE(M)CARD'!HA322=\"\",\"\",'[1]MONE(M)CAPARD'!HA322)","v":9951.1975353710059},{"$f":"IF('[1]MONE(M)CAPARD'!HB322=\"\",\"\",'[1]MONE(M)CAPARD'!HB322)","v":9081.2779465898002},"n.d.",{"$f":"IF('[10]II.2.Balance OSD-Activos'!J180=\"\",\"\",'[10]II.2.Balance OSD-Activos'!J180)","v":1862.9917578188088},{"$f":"IF('[10]II.2.Balance OSD-Activos'!N180=\"\",\"\",'[10]II.2.Balance OSD-Activos'!N180)","v":1465.6235099030741},{"$f":"IF('[10]II.2.Balance OSD-Activos'!R180=\"\",\"\",'[10]II.2.Balance OSD-Activos'!R180)","v":68051.033784672065},{"$f":"IF('[10]II.2.Balance OSD-Activos'!S180=\"\",\"\",'[10]II.2.Balance OSD-Activos'!S180)","v":68578.35262187745},69914.025542490868,139958.00167427139,10.875820596585539,10.232624664204938,17.120960408450703,10.215121207237999,11.664348054132013,10.998336927161478,0.38191820108355401,{"$f":"IF('[1]MONE(M)CAPARD'!AS322=\"\",\"\",'[1]MONE(M)CAPARD'!AS322)","v":1.75},{"$f":"IF('[1]MONE(M)CAPARD'!AT322=\"\",\"\",'[1]MONE(M)CAPARD'!AT322)","v":"n.a."},{"$f":"IF('[1]MONE(M)CAPARD'!AU322=\"\",\"\",'[1]MONE(M)CAPARD'!AU322)","v":3},{"$f":"IF('[1]MONE(M)CAPARD'!AV322=\"\",\"\",'[1]MONE(M)CAPARD'!AV322)","v":6.25},{"$f":"IF('[1]MONE(M)CAPARD'!AW322=\"\",\"\",'[1]MONE(M)CAPARD'!AW322)","v":"n.a."},{"$f":"IF('[1]MONE(M)CAPARD'!AX322=\"\",\"\",'[1]MONE(M)CAPARD'!AX322)","v":5},{"$f":"IF('[1]MONE(M)CAPARD'!AY322=\"\",\"\",'[1]MONE(M)CAPARD'!AY322)","v":"n.a."},{"$f":"IF('[1]FISCAL(M)'!$K322=\"\",\"\",'[1]FISCAL(M)'!$K322)","v":-235.79817406690802},{"$f":"IF('[1]FISCAL(M)'!$L322=\"\",\"\",'[1]FISCAL(M)'!$L322)","v":"n.d."},{"$f":"IF('[1]FISCAL(M)'!$AY322=\"\",\"\",'[1]FISCAL(M)'!$AY322)","v":111972.73729737516},{"$f":"IF('[1]FISCAL(M)'!$BI322=\"\",\"\",'[1]FISCAL(M)'!$BI322)","v":56936.459509016277},{"$f":"IF('[1]FISCAL(M)'!$BS322=\"\",\"\",'[1]FISCAL(M)'!$BS322)","v":55036.277788358901},{"$f":"IF('[1]FISCAL(M)'!$AZ322=\"\",\"\",'[1]FISCAL(M)'!$AZ322)","v":132180.14881737519},{"$f":"IF('[1]FISCAL(M)'!$BJ322=\"\",\"\",'[1]FISCAL(M)'!$BJ322)","v":61533.753269016277},{"$f":"IF('[1]FISCAL(M)'!$BT322=\"\",\"\",'[1]FISCAL(M)'!$BT322)","v":70646.395548358894},{"$f":"IF('[2]MONE(M)'!$AO322=\"\",\"\",'[2]MONE(M)'!$AO322)","v":17925114.118212901},{"$f":"IF('[3]MONE(M)'!$AO322=\"\",\"\",'[3]MONE(M)'!$AO322)","v":11270.873962209998},{"$f":"IF('[4]MONE(M)'!$AO322=\"\",\"\",'[4]MONE(M)'!$AO322)","v":178076.80083938382},{"$f":"+'[5]MONE(M)'!$AO322","v":257730.20965706109},{"$f":"IF('[6]MONE(M)'!$AO322=\"\",\"\",'[6]MONE(M)'!$AO322)","v":118961.259238431},{"$f":"IF('[7]MONE(M)'!$AO322=\"\",\"\",'[7]MONE(M)'!$AO322)","v":820862.55325719016},{"$f":"IF('[8]MONE(M)'!$AO322=\"\",\"\",'[8]MONE(M)'!$AO322)","v":43498.951632920012},{"$f":"IF(BY315=\"\",\"\",((BY315/BY303)-1)*100)","v":11.913374343706051},4.8618772043049541,11.348238137245549,9.8897684470909084,22.583773193591085,17.883311252565726,11.300782488327087,{"$f":"IF('[1]FISCAL(M)'!$K322=\"\",\"\",'[1]FISCAL(M)'!$K322)","v":-235.79817406690802},{"$f":"+'[1]REAL(A)'!$AO$36","v":259854.16415340832},-9.0742503525054724E-2,{"$f":"IF('[1]FISCAL(M)'!$L322=\"\",\"\",'[1]FISCAL(M)'!$L322)","v":"n.d."},{"$f":"+'[1]REAL(A)'!$AP$36","v":317761.86015340831},"n.d.",132428.67941739739,{"$f":"'[1]Gráfico REM'!BG316","v":23184.43237032618},{"$f":"'[1]Gráfico REM'!BH316","v":101831.37163982868},{"$f":"'[1]Gráfico REM'!BI316","v":7412.8754072425472},10.378326260497417,9.5732918820597313,10.876892550143413,6.2564785096834941,201636.53536166743,{"$f":"'[1]Gráfico REM'!BK316","v":25401.715179476181},{"$f":"'[1]Gráfico REM'!BL316","v":145330.32327274868},{"$f":"'[1]Gráfico REM'!BM316","v":30904.496909442554},10.187818919758085,9.1531231538300553,11.003428472040433,7.315922827899568]
[2016,"febrero","2016-febrero",{"$f":"IF('[1]REAL IPC(M)'!$AL323=\"\",\"\",+'[1]REAL IPC(M)'!$AL323)","v":2.4045868618138622},{"$f":"IF('[1]REAL IPC(M)'!$BE323=\"\",\"\",+'[1]REAL IPC(M)'!$BE323)","v":2.3798502438610258},{"$f":"IF('[1]REAL IPC(M)'!$AM323=\"\",\"\",+'[1]REAL IPC(M)'!$AM323)","v":2.2421798658569303},{"$f":"IF('[1]REAL IPC(M)'!$BI323=\"\",\"\",+'[1]REAL IPC(M)'!$BI323)","v":2.1515493112027162},{"$f":"IF('[1]REAL IMAE(M)'!BJ323=\"\",\"\",'[1]REAL IMAE(M)'!BJ323)","v":3.9926891627048322},{"$f":"IF('[1]REAL IMAE(M)'!BK323=\"\",\"\",'[1]REAL IMAE(M)'!BK323)","v":4.6112959333935555},{"$f":"IF('[1]REAL IMAE(M)'!BN323=\"\",\"\",'[1]REAL IMAE(M)'!BN323)","v":4.8366342165408138},{"$f":"IF('[1]REAL IMAE(M)'!BO323=\"\",\"\",'[1]REAL IMAE(M)'!BO323)","v":4.6734629954047868},{"$f":"IF('[1]EXT RIN(M)'!$K323=\"\",\"\",'[1]EXT RIN(M)'!$K323)","v":29315.550582288204},"",{"$f":"IF('[1]EXT RIN(M)'!$L323=\"\",\"\",'[1]EXT RIN(M)'!$L323)","v":32894.030715528206},"",{"$f":"IF('[1]MONE(M)CARD'!EG323=\"\",\"\",'[1]MONE(M)CARD'!EG323)","v":32752.88876540857},{"$f":"IF('[1]MONE(M)CARD'!EK323=\"\",\"\",'[1]MONE(M)CARD'!EK323)","v":50394.127777094734},{"$f":"IF('[1]MONE(M)CARD'!EP323=\"\",\"\",'[1]MONE(M)CARD'!EP323)","v":28433.235982960294},{"$f":"IF('[1]MONE(M)CARD'!ES323=\"\",\"\",'[1]MONE(M)CARD'!ES323)","v":13.180884444523366},{"$f":"IF('[1]MONE(M)CARD'!EV323=\"\",\"\",'[1]MONE(M)CARD'!EV323)","v":7.9861132029285242},{"$f":"IF('[1]MONE(M)CARD'!EZ323=\"\",\"\",'[1]MONE(M)CARD'!EZ323)","v":7.0354857209709909},{"$f":"IF('[1]MONE(M)CAPARD'!FC323=\"\",\"\",'[1]MONE(M)CAPARD'!FC323)","v":40852.558919648574},{"$f":"IF('[1]MONE(M)CAPARD'!FG323=\"\",\"\",'[1]MONE(M)CAPARD'!FG323)","v":78991.258232174732},{"$f":"IF('[1]MONE(M)CAPARD'!FL323=\"\",\"\",'[1]MONE(M)CAPARD'!FL323)","v":28433.235982960279},{"$f":"IF('[1]MONE(M)CAPARD'!FO323=\"\",\"\",'[1]MONE(M)CAPARD'!FO323)","v":10.446721319333374},{"$f":"IF('[1]MONE(M)CAPARD'!FR323=\"\",\"\",'[1]MONE(M)CAPARD'!FR323)","v":7.4168532902227691},{"$f":"IF('[1]MONE(M)CAPARD'!FV323=\"\",\"\",'[1]MONE(M)CAPARD'!FV323)","v":6.8147093191616825},{"$f":"IF('[1]MONE(M)CARD'!FV323=\"\",\"\",'[1]MONE(M)CARD'!FV323)","v":1346.7490508175183},{"$f":"IF('[1]MONE(M)CARD'!GD323=\"\",\"\",'[1]MONE(M)CARD'!GD323)","v":106.46818143779997},{"$f":"IF('[1]MONE(M)CARD'!GE323=\"\",\"\",'[1]MONE(M)CARD'!GE323)","v":8781.9147050198735},14.358756995442224,{"$f":"IF('[9]II.2.Balance OSD-Activos'!J181=\"\",\"\",'[9]II.2.Balance OSD-Activos'!J181)","v":215.87619827608108},{"$f":"IF('[9]II.2.Balance OSD-Activos'!N181=\"\",\"\",'[9]II.2.Balance OSD-Activos'!N181)","v":987.96394269230586},{"$f":"IF('[9]II.2.Balance OSD-Activos'!R181=\"\",\"\",'[9]II.2.Balance OSD-Activos'!R181)","v":46737.05020574345},{"$f":"IF('[9]II.2.Balance OSD-Activos'!S181=\"\",\"\",'[9]II.2.Balance OSD-Activos'!S181)","v":49868.460147581609},{"$f":"IFERROR(+AF316+AH316,\"\")","v":46952.926404019534},97809.350494293438,15.307906503067947,10.83010875591679,14.116721656797559,10.81023276836579,10.432704315407282,10.65926692510557,-8.6197654295961712E-2,{"$f":"IF('[1]MONE(M)CAPARD'!GS323=\"\",\"\",'[1]MONE(M)CAPARD'!GS323)","v":19167.743586969402},{"$f":"IF('[1]MONE(M)CARD'!HA323=\"\",\"\",'[1]MONE(M)CAPARD'!HA323)","v":10084.742701669873},{"$f":"IF('[1]MONE(M)CAPARD'!HB323=\"\",\"\",'[1]MONE(M)CAPARD'!HB323)","v":9083.0008852995288},"n.d.",{"$f":"IF('[10]II.2.Balance OSD-Activos'!J181=\"\",\"\",'[10]II.2.Balance OSD-Activos'!J181)","v":1827.4438662960811},{"$f":"IF('[10]II.2.Balance OSD-Activos'!N181=\"\",\"\",'[10]II.2.Balance OSD-Activos'!N181)","v":1443.1681275923058},{"$f":"IF('[10]II.2.Balance OSD-Activos'!R181=\"\",\"\",'[10]II.2.Balance OSD-Activos'!R181)","v":68274.651948473445},{"$f":"IF('[10]II.2.Balance OSD-Activos'!S181=\"\",\"\",'[10]II.2.Balance OSD-Activos'!S181)","v":69042.629391011607},70102.09581476952,{"$f":"IF(OR(AW316=\"\",AX316=\"\",AY316=\"\",AZ316=\"\"),\"\",SUM(AW316:AZ316))","v":140587.89333337345},7.5845477939260997,9.9119293272991627,{"$f":"IF(OR(AX316=\"\",AX304=\"\"),\"\",((AX316/AX304)-1)*100)","v":6.1887266381159378},9.9756086756330298,11.594237495893921,10.691586903271212,-0.30675002389026673,{"$f":"IF('[1]MONE(M)CAPARD'!AS323=\"\",\"\",'[1]MONE(M)CAPARD'!AS323)","v":1.75},{"$f":"IF('[1]MONE(M)CAPARD'!AT323=\"\",\"\",'[1]MONE(M)CAPARD'!AT323)","v":"n.a."},{"$f":"IF('[1]MONE(M)CAPARD'!AU323=\"\",\"\",'[1]MONE(M)CAPARD'!AU323)","v":3},{"$f":"IF('[1]MONE(M)CAPARD'!AV323=\"\",\"\",'[1]MONE(M)CAPARD'!AV323)","v":6.25},{"$f":"IF('[1]MONE(M)CAPARD'!AW323=\"\",\"\",'[1]MONE(M)CAPARD'!AW323)","v":"n.a."},{"$f":"IF('[1]MONE(M)CAPARD'!AX323=\"\",\"\",'[1]MONE(M)CAPARD'!AX323)","v":5},{"$f":"IF('[1]MONE(M)CAPARD'!AY323=\"\",\"\",'[1]MONE(M)CAPARD'!AY323)","v":"n.a."},{"$f":"IF('[1]FISCAL(M)'!$K323=\"\",\"\",'[1]FISCAL(M)'!$K323)","v":-1033.3371061995545},{"$f":"IF('[1]FISCAL(M)'!$L323=\"\",\"\",'[1]FISCAL(M)'!$L323)","v":"n.d."},{"$f":"IF('[1]FISCAL(M)'!$AY323=\"\",\"\",'[1]FISCAL(M)'!$AY323)","v":112833.05458399002},{"$f":"IF('[1]FISCAL(M)'!$BI323=\"\",\"\",'[1]FISCAL(M)'!$BI323)","v":57975.147878690186},{"$f":"IF('[1]FISCAL(M)'!$BS323=\"\",\"\",'[1]FISCAL(M)'!$BS323)","v":54857.906705299822},{"$f":"IF('[1]FISCAL(M)'!$AZ323=\"\",\"\",'[1]FISCAL(M)'!$AZ323)","v":133062.81308399001},{"$f":"IF('[1]FISCAL(M)'!$BJ323=\"\",\"\",'[1]FISCAL(M)'!$BJ323)","v":62576.701558690191},{"$f":"IF('[1]FISCAL(M)'!$BT323=\"\",\"\",'[1]FISCAL(M)'!$BT323)","v":70486.111525299813},{"$f":"IF('[2]MONE(M)'!$AO323=\"\",\"\",'[2]MONE(M)'!$AO323)","v":18025543.771382667},{"$f":"IF('[3]MONE(M)'!$AO323=\"\",\"\",'[3]MONE(M)'!$AO323)","v":11262.777750770001},{"$f":"IF('[4]MONE(M)'!$AO323=\"\",\"\",'[4]MONE(M)'!$AO323)","v":178770.44330325976},{"$f":"+'[5]MONE(M)'!$AO323","v":261406.50253309781},{"$f":"IF('[6]MONE(M)'!$AO323=\"\",\"\",'[6]MONE(M)'!$AO323)","v":120215.08192463283},{"$f":"IF('[7]MONE(M)'!$AO323=\"\",\"\",'[7]MONE(M)'!$AO323)","v":824517.49564231001},{"$f":"IF('[8]MONE(M)'!$AO323=\"\",\"\",'[8]MONE(M)'!$AO323)","v":43633.674731430001},11.990270053911578,4.446895710081078,11.160108428929227,10.304538167991995,22.27745390254201,18.55973594840663,10.853095309305449,{"$f":"IF('[1]FISCAL(M)'!$K323=\"\",\"\",'[1]FISCAL(M)'!$K323)","v":-1033.3371061995545},{"$f":"+'[1]REAL(A)'!$AO$36","v":259854.16415340832},-0.39766039908042822,{"$f":"IF('[1]FISCAL(M)'!$L323=\"\",\"\",'[1]FISCAL(M)'!$L323)","v":"n.d."},{"$f":"+'[1]REAL(A)'!$AP$36","v":317761.86015340831},"n.d.",133644.83784288791,{"$f":"'[1]Gráfico REM'!BG317","v":23750.983593430195},{"$f":"'[1]Gráfico REM'!BH317","v":102454.29029418998},{"$f":"'[1]Gráfico REM'!BI317","v":7439.5639552677458},9.9178858817852813,7.7795457816866254,10.888176145637951,3.9743131717752345,203043.80424948793,{"$f":"'[1]Gráfico REM'!BK317","v":25965.229250120196},{"$f":"'[1]Gráfico REM'!BL317","v":146087.96502561998},{"$f":"'[1]Gráfico REM'!BM317","v":30990.609973747753},9.7863705058392583,7.3972280427031745,10.877695847031132,6.8211256118643648]
[2016,"marzo","2016-marzo",{"$f":"IF('[1]REAL IPC(M)'!$AL324=\"\",\"\",+'[1]REAL IPC(M)'!$AL324)","v":2.1091288688477539},{"$f":"IF('[1]REAL IPC(M)'!$BE324=\"\",\"\",+'[1]REAL IPC(M)'!$BE324)","v":2.3803177303778789},{"$f":"IF('[1]REAL IPC(M)'!$AM324=\"\",\"\",+'[1]REAL IPC(M)'!$AM324)","v":1.9067458905282164},{"$f":"IF('[1]REAL IPC(M)'!$BI324=\"\",\"\",+'[1]REAL IPC(M)'!$BI324)","v":2.1488116609805541},{"$f":"IF('[1]REAL IMAE(M)'!BJ324=\"\",\"\",'[1]REAL IMAE(M)'!BJ324)","v":4.7811409613131683},{"$f":"IF('[1]REAL IMAE(M)'!BK324=\"\",\"\",'[1]REAL IMAE(M)'!BK324)","v":4.5873387664706611},{"$f":"IF('[1]REAL IMAE(M)'!BN324=\"\",\"\",'[1]REAL IMAE(M)'!BN324)","v":5.0737426235980543},{"$f":"IF('[1]REAL IMAE(M)'!BO324=\"\",\"\",'[1]REAL IMAE(M)'!BO324)","v":4.6461806235413405},{"$f":"IF('[1]EXT RIN(M)'!$K324=\"\",\"\",'[1]EXT RIN(M)'!$K324)","v":29559.050440913721},"",{"$f":"IF('[1]EXT RIN(M)'!$L324=\"\",\"\",'[1]EXT RIN(M)'!$L324)","v":34258.137295753724},"",{"$f":"IF('[1]MONE(M)CARD'!EG324=\"\",\"\",'[1]MONE(M)CARD'!EG324)","v":32957.656725594985},{"$f":"IF('[1]MONE(M)CARD'!EK324=\"\",\"\",'[1]MONE(M)CARD'!EK324)","v":50760.587344006992},{"$f":"IF('[1]MONE(M)CARD'!EP324=\"\",\"\",'[1]MONE(M)CARD'!EP324)","v":28928.475818724895},{"$f":"IF('[1]MONE(M)CARD'!ES324=\"\",\"\",'[1]MONE(M)CARD'!ES324)","v":12.254358701958367},{"$f":"IF('[1]MONE(M)CARD'!EV324=\"\",\"\",'[1]MONE(M)CARD'!EV324)","v":7.2393481278892002},{"$f":"IF('[1]MONE(M)CARD'!EZ324=\"\",\"\",'[1]MONE(M)CARD'!EZ324)","v":6.8854044722495233},{"$f":"IF('[1]MONE(M)CAPARD'!FC324=\"\",\"\",'[1]MONE(M)CAPARD'!FC324)","v":41013.015366164982},{"$f":"IF('[1]MONE(M)CAPARD'!FG324=\"\",\"\",'[1]MONE(M)CAPARD'!FG324)","v":79647.41757950699},{"$f":"IF('[1]MONE(M)CAPARD'!FL324=\"\",\"\",'[1]MONE(M)CAPARD'!FL324)","v":28928.47581872491},{"$f":"IF('[1]MONE(M)CAPARD'!FO324=\"\",\"\",'[1]MONE(M)CAPARD'!FO324)","v":9.8573931026806338},{"$f":"IF('[1]MONE(M)CAPARD'!FR324=\"\",\"\",'[1]MONE(M)CAPARD'!FR324)","v":6.9943282607893398},{"$f":"IF('[1]MONE(M)CAPARD'!FV324=\"\",\"\",'[1]MONE(M)CAPARD'!FV324)","v":6.7758541218154056},{"$f":"IF('[1]MONE(M)CARD'!FV324=\"\",\"\",'[1]MONE(M)CARD'!FV324)","v":1303.1815702093445},{"$f":"IF('[1]MONE(M)CARD'!GD324=\"\",\"\",'[1]MONE(M)CARD'!GD324)","v":97.109012190295488},{"$f":"IF('[1]MONE(M)CARD'!GE324=\"\",\"\",'[1]MONE(M)CARD'!GE324)","v":9196.7838616226818},16.648971812122902,{"$f":"IF('[9]II.2.Balance OSD-Activos'!J182=\"\",\"\",'[9]II.2.Balance OSD-Activos'!J182)","v":209.68910244287466},{"$f":"IF('[9]II.2.Balance OSD-Activos'!N182=\"\",\"\",'[9]II.2.Balance OSD-Activos'!N182)","v":974.37678838016097},{"$f":"IF('[9]II.2.Balance OSD-Activos'!R182=\"\",\"\",'[9]II.2.Balance OSD-Activos'!R182)","v":46803.46166022835},{"$f":"IF('[9]II.2.Balance OSD-Activos'!S182=\"\",\"\",'[9]II.2.Balance OSD-Activos'!S182)","v":50095.16682041483},47013.150762671226,98082.694371466205,8.8459772489024591,10.057661015104236,13.89658251680741,10.063150312130876,10.309816986294585,10.223253943947208,-0.43601298115836151,{"$f":"IF('[1]MONE(M)CAPARD'!GS324=\"\",\"\",'[1]MONE(M)CAPARD'!GS324)","v":19258.363434865292},{"$f":"IF('[1]MONE(M)CARD'!HA324=\"\",\"\",'[1]MONE(M)CAPARD'!HA324)","v":10497.36332195268},{"$f":"IF('[1]MONE(M)CAPARD'!HB324=\"\",\"\",'[1]MONE(M)CAPARD'!HB324)","v":8761.0001129126122},"n.d.",{"$f":"IF('[10]II.2.Balance OSD-Activos'!J182=\"\",\"\",'[10]II.2.Balance OSD-Activos'!J182)","v":1915.2328095228745},{"$f":"IF('[10]II.2.Balance OSD-Activos'!N182=\"\",\"\",'[10]II.2.Balance OSD-Activos'!N182)","v":1426.206572670161},{"$f":"IF('[10]II.2.Balance OSD-Activos'!R182=\"\",\"\",'[10]II.2.Balance OSD-Activos'!R182)","v":68396.334190588357},{"$f":"IF('[10]II.2.Balance OSD-Activos'!S182=\"\",\"\",'[10]II.2.Balance OSD-Activos'!S182)","v":69469.794847074823},70311.56700011123,141207.56841985619,12.408504498978834,9.2852575337702081,6.5376229438336653,9.2002965129971415,11.484124571859855,10.327066919634831,-0.36451998363638083,{"$f":"IF('[1]MONE(M)CAPARD'!AS324=\"\",\"\",'[1]MONE(M)CAPARD'!AS324)","v":1.75},{"$f":"IF('[1]MONE(M)CAPARD'!AT324=\"\",\"\",'[1]MONE(M)CAPARD'!AT324)","v":"n.a."},{"$f":"IF('[1]MONE(M)CAPARD'!AU324=\"\",\"\",'[1]MONE(M)CAPARD'!AU324)","v":3},{"$f":"IF('[1]MONE(M)CAPARD'!AV324=\"\",\"\",'[1]MONE(M)CAPARD'!AV324)","v":5.75},{"$f":"IF('[1]MONE(M)CAPARD'!AW324=\"\",\"\",'[1]MONE(M)CAPARD'!AW324)","v":"n.a."},{"$f":"IF('[1]MONE(M)CAPARD'!AX324=\"\",\"\",'[1]MONE(M)CAPARD'!AX324)","v":5},{"$f":"IF('[1]MONE(M)CAPARD'!AY324=\"\",\"\",'[1]MONE(M)CAPARD'!AY324)","v":"n.a."},{"$f":"IF('[1]FISCAL(M)'!$K324=\"\",\"\",'[1]FISCAL(M)'!$K324)","v":-1526.0397170459341},{"$f":"IF('[1]FISCAL(M)'!$L324=\"\",\"\",'[1]FISCAL(M)'!$L324)","v":-2287.0397170459341},{"$f":"IF('[1]FISCAL(M)'!$AY324=\"\",\"\",'[1]FISCAL(M)'!$AY324)","v":113213.69275720698},{"$f":"IF('[1]FISCAL(M)'!$BI324=\"\",\"\",'[1]FISCAL(M)'!$BI324)","v":58302.596777797553},{"$f":"IF('[1]FISCAL(M)'!$BS324=\"\",\"\",'[1]FISCAL(M)'!$BS324)","v":54911.095979409452},{"$f":"IF('[1]FISCAL(M)'!$AZ324=\"\",\"\",'[1]FISCAL(M)'!$AZ324)","v":134529.81416720699},{"$f":"IF('[1]FISCAL(M)'!$BJ324=\"\",\"\",'[1]FISCAL(M)'!$BJ324)","v":62935.373777797555},{"$f":"IF('[1]FISCAL(M)'!$BT324=\"\",\"\",'[1]FISCAL(M)'!$BT324)","v":71594.440389409443},{"$f":"IF('[2]MONE(M)'!$AO324=\"\",\"\",'[2]MONE(M)'!$AO324)","v":18218143.522819348},{"$f":"IF('[3]MONE(M)'!$AO324=\"\",\"\",'[3]MONE(M)'!$AO324)","v":11300.019904299999},{"$f":"IF('[4]MONE(M)'!$AO324=\"\",\"\",'[4]MONE(M)'!$AO324)","v":179573.07219233573},{"$f":"+'[5]MONE(M)'!$AO324","v":261305.56384132121},{"$f":"IF('[6]MONE(M)'!$AO324=\"\",\"\",'[6]MONE(M)'!$AO324)","v":121530.09490498973},{"$f":"IF('[7]MONE(M)'!$AO324=\"\",\"\",'[7]MONE(M)'!$AO324)","v":826304.49293815007},{"$f":"IF('[8]MONE(M)'!$AO324=\"\",\"\",'[8]MONE(M)'!$AO324)","v":43996.195716560003},12.295403770223491,4.5906504035892581,10.444046086403347,9.5173379638472824,22.413415233720578,18.608193753472801,10.62798109255656,{"$f":"IF('[1]FISCAL(M)'!$K324=\"\",\"\",'[1]FISCAL(M)'!$K324)","v":-1526.0397170459341},{"$f":"+'[1]REAL(A)'!$AO$36","v":259854.16415340832},-0.58726775536489628,{"$f":"IF('[1]FISCAL(M)'!$L324=\"\",\"\",'[1]FISCAL(M)'!$L324)","v":-2287.0397170459341},{"$f":"+'[1]REAL(A)'!$AP$36","v":317761.86015340831},-0.71973386483255186,134465.60336790589,{"$f":"'[1]Gráfico REM'!BG318","v":24156.76941088149},{"$f":"'[1]Gráfico REM'!BH318","v":102898.41830979424},{"$f":"'[1]Gráfico REM'!BI318","v":7410.4156472301638},9.4039308453105939,5.8998602747227791,10.62409719864441,4.6633918101713689,204286.91757297589,{"$f":"'[1]Gráfico REM'!BK318","v":26349.702978851488},{"$f":"'[1]Gráfico REM'!BL318","v":146894.61402635425},{"$f":"'[1]Gráfico REM'!BM318","v":31042.600567770161},9.4364618268669034,6.0688526848866609,10.625260429546257,6.8818029607851328]
[2016,"abril","2016-abril",{"$f":"IF('[1]REAL IPC(M)'!$AL325=\"\",\"\",+'[1]REAL IPC(M)'!$AL325)","v":2.0958535288339908},{"$f":"IF('[1]REAL IPC(M)'!$BE325=\"\",\"\",+'[1]REAL IPC(M)'!$BE325)","v":2.3843705413154614},{"$f":"IF('[1]REAL IPC(M)'!$AM325=\"\",\"\",+'[1]REAL IPC(M)'!$AM325)","v":1.8948561242955853},{"$f":"IF('[1]REAL IPC(M)'!$BI325=\"\",\"\",+'[1]REAL IPC(M)'!$BI325)","v":2.1498144819680487},{"$f":"IF('[1]REAL IMAE(M)'!BJ325=\"\",\"\",'[1]REAL IMAE(M)'!BJ325)","v":4.8755791578418695},{"$f":"IF('[1]REAL IMAE(M)'!BK325=\"\",\"\",'[1]REAL IMAE(M)'!BK325)","v":4.5604563976807677},{"$f":"IF('[1]REAL IMAE(M)'!BN325=\"\",\"\",'[1]REAL IMAE(M)'!BN325)","v":4.7459988615934146},{"$f":"IF('[1]REAL IMAE(M)'!BO325=\"\",\"\",'[1]REAL IMAE(M)'!BO325)","v":4.6159333845869899},{"$f":"IF('[1]EXT RIN(M)'!$K325=\"\",\"\",'[1]EXT RIN(M)'!$K325)","v":29728.867960672265},"",{"$f":"IF('[1]EXT RIN(M)'!$L325=\"\",\"\",'[1]EXT RIN(M)'!$L325)","v":34220.537129222263},"",{"$f":"IF('[1]MONE(M)CARD'!EG325=\"\",\"\",'[1]MONE(M)CARD'!EG325)","v":32832.203937089813},{"$f":"IF('[1]MONE(M)CARD'!EK325=\"\",\"\",'[1]MONE(M)CARD'!EK325)","v":50856.865821426429},{"$f":"IF('[1]MONE(M)CARD'!EP325=\"\",\"\",'[1]MONE(M)CARD'!EP325)","v":28794.278159445254},{"$f":"IF('[1]MONE(M)CARD'!ES325=\"\",\"\",'[1]MONE(M)CARD'!ES325)","v":11.532845930948255},{"$f":"IF('[1]MONE(M)CARD'!EV325=\"\",\"\",'[1]MONE(M)CARD'!EV325)","v":7.4893945760607927},{"$f":"IF('[1]MONE(M)CARD'!EZ325=\"\",\"\",'[1]MONE(M)CARD'!EZ325)","v":6.6121673057419894},{"$f":"IF('[1]MONE(M)CAPARD'!FC325=\"\",\"\",'[1]MONE(M)CAPARD'!FC325)","v":40719.374354019805},{"$f":"IF('[1]MONE(M)CAPARD'!FG325=\"\",\"\",'[1]MONE(M)CAPARD'!FG325)","v":79966.007150806414},{"$f":"IF('[1]MONE(M)CAPARD'!FL325=\"\",\"\",'[1]MONE(M)CAPARD'!FL325)","v":28794.278159445239},{"$f":"IF('[1]MONE(M)CAPARD'!FO325=\"\",\"\",'[1]MONE(M)CAPARD'!FO325)","v":9.1961145861612756},{"$f":"IF('[1]MONE(M)CAPARD'!FR325=\"\",\"\",'[1]MONE(M)CAPARD'!FR325)","v":7.2112025530713941},{"$f":"IF('[1]MONE(M)CAPARD'!FV325=\"\",\"\",'[1]MONE(M)CAPARD'!FV325)","v":6.6059839442080825},{"$f":"IF('[1]MONE(M)CARD'!FV325=\"\",\"\",'[1]MONE(M)CARD'!FV325)","v":1300.6681159520376},{"$f":"IF('[1]MONE(M)CARD'!GD325=\"\",\"\",'[1]MONE(M)CARD'!GD325)","v":170.44068834327285},{"$f":"IF('[1]MONE(M)CARD'!GE325=\"\",\"\",'[1]MONE(M)CARD'!GE325)","v":9201.191830834905},13.954554511165828,{"$f":"IF('[9]II.2.Balance OSD-Activos'!J183=\"\",\"\",'[9]II.2.Balance OSD-Activos'!J183)","v":217.46842925848858},{"$f":"IF('[9]II.2.Balance OSD-Activos'!N183=\"\",\"\",'[9]II.2.Balance OSD-Activos'!N183)","v":937.97143987976074},{"$f":"IF('[9]II.2.Balance OSD-Activos'!R183=\"\",\"\",'[9]II.2.Balance OSD-Activos'!R183)","v":47014.839295195226},{"$f":"IF('[9]II.2.Balance OSD-Activos'!S183=\"\",\"\",'[9]II.2.Balance OSD-Activos'!S183)","v":50434.173347631659},47232.307724453713,98604.452511965137,10.131204724465581,10.302534972056844,{"$f":"IF(OR(AG318=\"\",AG306=\"\"),\"\",((AG318/AG306)-1)*100)","v":6.4671992096983599},10.30332870340478,10.449771381417449,10.339957937533484,0.1167039935862757,{"$f":"IF('[1]MONE(M)CAPARD'!GS325=\"\",\"\",'[1]MONE(M)CAPARD'!GS325)","v":19606.825433857994},{"$f":"IF('[1]MONE(M)CARD'!HA325=\"\",\"\",'[1]MONE(M)CAPARD'!HA325)","v":10558.702745204902},{"$f":"IF('[1]MONE(M)CAPARD'!HB325=\"\",\"\",'[1]MONE(M)CAPARD'!HB325)","v":9048.1226886530912},"n.d.",{"$f":"IF('[10]II.2.Balance OSD-Activos'!J183=\"\",\"\",'[10]II.2.Balance OSD-Activos'!J183)","v":1968.0458131284886},{"$f":"IF('[10]II.2.Balance OSD-Activos'!N183=\"\",\"\",'[10]II.2.Balance OSD-Activos'!N183)","v":1387.4753987397607},{"$f":"IF('[10]II.2.Balance OSD-Activos'!R183=\"\",\"\",'[10]II.2.Balance OSD-Activos'!R183)","v":68468.023449315224},{"$f":"IF('[10]II.2.Balance OSD-Activos'!S183=\"\",\"\",'[10]II.2.Balance OSD-Activos'!S183)","v":70050.000251211663},70436.069262443707,141873.54491239513,16.711258201316269,9.1331244532503177,2.2277764720417537,8.9298214846992963,11.618978886595288,10.272865206397142,-5.4201713237688409E-2,{"$f":"IF('[1]MONE(M)CAPARD'!AS325=\"\",\"\",'[1]MONE(M)CAPARD'!AS325)","v":1.75},{"$f":"IF('[1]MONE(M)CAPARD'!AT325=\"\",\"\",'[1]MONE(M)CAPARD'!AT325)","v":"n.a."},{"$f":"IF('[1]MONE(M)CAPARD'!AU325=\"\",\"\",'[1]MONE(M)CAPARD'!AU325)","v":3},{"$f":"IF('[1]MONE(M)CAPARD'!AV325=\"\",\"\",'[1]MONE(M)CAPARD'!AV325)","v":5.75},{"$f":"IF('[1]MONE(M)CAPARD'!AW325=\"\",\"\",'[1]MONE(M)CAPARD'!AW325)","v":"n.a."},{"$f":"IF('[1]MONE(M)CAPARD'!AX325=\"\",\"\",'[1]MONE(M)CAPARD'!AX325)","v":5},{"$f":"IF('[1]MONE(M)CAPARD'!AY325=\"\",\"\",'[1]MONE(M)CAPARD'!AY325)","v":"n.a."},{"$f":"IF('[1]FISCAL(M)'!$K325=\"\",\"\",'[1]FISCAL(M)'!$K325)","v":-1327.0758705454668},{"$f":"IF('[1]FISCAL(M)'!$L325=\"\",\"\",'[1]FISCAL(M)'!$L325)","v":"n.d."},{"$f":"IF('[1]FISCAL(M)'!$AY325=\"\",\"\",'[1]FISCAL(M)'!$AY325)","v":114358.97128052702},{"$f":"IF('[1]FISCAL(M)'!$BI325=\"\",\"\",'[1]FISCAL(M)'!$BI325)","v":58935.991765897001},{"$f":"IF('[1]FISCAL(M)'!$BS325=\"\",\"\",'[1]FISCAL(M)'!$BS325)","v":55422.979514630017},{"$f":"IF('[1]FISCAL(M)'!$AZ325=\"\",\"\",'[1]FISCAL(M)'!$AZ325)","v":135749.11128052702},{"$f":"IF('[1]FISCAL(M)'!$BJ325=\"\",\"\",'[1]FISCAL(M)'!$BJ325)","v":63630.051765896991},71600.277879409434,{"$f":"IF('[2]MONE(M)'!$AO325=\"\",\"\",'[2]MONE(M)'!$AO325)","v":18368919.491017371},{"$f":"IF('[3]MONE(M)'!$AO325=\"\",\"\",'[3]MONE(M)'!$AO325)","v":11350.710133280001},{"$f":"IF('[4]MONE(M)'!$AO325=\"\",\"\",'[4]MONE(M)'!$AO325)","v":180427.38552923407},{"$f":"+'[5]MONE(M)'!$AO325","v":261861.8368124438},{"$f":"IF('[6]MONE(M)'!$AO325=\"\",\"\",'[6]MONE(M)'!$AO325)","v":123412.1862852535},{"$f":"IF('[7]MONE(M)'!$AO325=\"\",\"\",'[7]MONE(M)'!$AO325)","v":836415.10969076992},{"$f":"IF('[8]MONE(M)'!$AO325=\"\",\"\",'[8]MONE(M)'!$AO325)","v":44185.614930219992},12.24495045076781,5.0340058541406885,9.6205024588773114,9.1332581893116114,22.622316882683123,19.223334708062122,10.292258349446183,{"$f":"IF('[1]FISCAL(M)'!$K325=\"\",\"\",'[1]FISCAL(M)'!$K325)","v":-1327.0758705454668},{"$f":"+'[1]REAL(A)'!$AO$36","v":259854.16415340832},-0.51070025176198841,{"$f":"IF('[1]FISCAL(M)'!$L325=\"\",\"\",'[1]FISCAL(M)'!$L325)","v":"n.d."},{"$f":"+'[1]REAL(A)'!$AP$36","v":317761.86015340831},"n.d.",135138.97297351615,{"$f":"'[1]Gráfico REM'!BG319","v":24299.760584544158},{"$f":"'[1]Gráfico REM'!BH319","v":103454.31721162467},{"$f":"'[1]Gráfico REM'!BI319","v":7384.8951773473163},9.6509640326403634,7.355205009635446,10.714606387184356,3.0342287546558433,205519.97586895613,{"$f":"'[1]Gráfico REM'!BK319","v":26547.099836974157},{"$f":"'[1]Gráfico REM'!BL319","v":147639.93214184465},{"$f":"'[1]Gráfico REM'!BM319","v":31332.943890137318},9.7082700228253707,8.5364248853504456,10.587867467409072,6.6858013939939731]
[2016,"mayo ","2016-mayo ",{"$f":"IF('[1]REAL IPC(M)'!$AL326=\"\",\"\",+'[1]REAL IPC(M)'!$AL326)","v":2.2153560468719302},{"$f":"IF('[1]REAL IPC(M)'!$BE326=\"\",\"\",+'[1]REAL IPC(M)'!$BE326)","v":2.3917514293139153},{"$f":"IF('[1]REAL IPC(M)'!$AM326=\"\",\"\",+'[1]REAL IPC(M)'!$AM326)","v":1.9595563508458369},{"$f":"IF('[1]REAL IPC(M)'!$BI326=\"\",\"\",+'[1]REAL IPC(M)'!$BI326)","v":2.154257193338327},{"$f":"IF('[1]REAL IMAE(M)'!BJ326=\"\",\"\",'[1]REAL IMAE(M)'!BJ326)","v":4.6840341834817556},{"$f":"IF('[1]REAL IMAE(M)'!BK326=\"\",\"\",'[1]REAL IMAE(M)'!BK326)","v":4.5306614735300954},{"$f":"IF('[1]REAL IMAE(M)'!BN326=\"\",\"\",'[1]REAL IMAE(M)'!BN326)","v":4.7157767773994719},{"$f":"IF('[1]REAL IMAE(M)'!BO326=\"\",\"\",'[1]REAL IMAE(M)'!BO326)","v":4.5826773045910096},{"$f":"IF('[1]EXT RIN(M)'!$K326=\"\",\"\",'[1]EXT RIN(M)'!$K326)","v":30495.104584422068},"",{"$f":"IF('[1]EXT RIN(M)'!$L326=\"\",\"\",'[1]EXT RIN(M)'!$L326)","v":35516.697338822065},"",{"$f":"IF('[1]MONE(M)CARD'!EG326=\"\",\"\",'[1]MONE(M)CARD'!EG326)","v":32774.886029404079},{"$f":"IF('[1]MONE(M)CARD'!EK326=\"\",\"\",'[1]MONE(M)CARD'!EK326)","v":51508.001348441845},{"$f":"IF('[1]MONE(M)CARD'!EP326=\"\",\"\",'[1]MONE(M)CARD'!EP326)","v":28955.660163740497},{"$f":"IF('[1]MONE(M)CARD'!ES326=\"\",\"\",'[1]MONE(M)CARD'!ES326)","v":10.080093666527357},{"$f":"IF('[1]MONE(M)CARD'!EV326=\"\",\"\",'[1]MONE(M)CARD'!EV326)","v":6.9462077404409461},{"$f":"IF('[1]MONE(M)CARD'!EZ326=\"\",\"\",'[1]MONE(M)CARD'!EZ326)","v":5.8834354796437616},{"$f":"IF('[1]MONE(M)CAPARD'!FC326=\"\",\"\",'[1]MONE(M)CAPARD'!FC326)","v":40721.185612104084},{"$f":"IF('[1]MONE(M)CAPARD'!FG326=\"\",\"\",'[1]MONE(M)CAPARD'!FG326)","v":80536.473259451857},{"$f":"IF('[1]MONE(M)CAPARD'!FL326=\"\",\"\",'[1]MONE(M)CAPARD'!FL326)","v":28955.660163740511},{"$f":"IF('[1]MONE(M)CAPARD'!FO326=\"\",\"\",'[1]MONE(M)CAPARD'!FO326)","v":7.7713344231084003},{"$f":"IF('[1]MONE(M)CAPARD'!FR326=\"\",\"\",'[1]MONE(M)CAPARD'!FR326)","v":6.6434690922424933},{"$f":"IF('[1]MONE(M)CAPARD'!FV326=\"\",\"\",'[1]MONE(M)CAPARD'!FV326)","v":5.9022101306232866},{"$f":"IF('[1]MONE(M)CARD'!FV326=\"\",\"\",'[1]MONE(M)CARD'!FV326)","v":1294.3494076865975},{"$f":"IF('[1]MONE(M)CARD'!GD326=\"\",\"\",'[1]MONE(M)CARD'!GD326)","v":70.06045718313689},{"$f":"IF('[1]MONE(M)CARD'!GE326=\"\",\"\",'[1]MONE(M)CARD'!GE326)","v":8840.469820495091},5.2015043620762924,{"$f":"IF('[9]II.2.Balance OSD-Activos'!J184=\"\",\"\",'[9]II.2.Balance OSD-Activos'!J184)","v":221.90661890823384},{"$f":"IF('[9]II.2.Balance OSD-Activos'!N184=\"\",\"\",'[9]II.2.Balance OSD-Activos'!N184)","v":971.69397042587468},{"$f":"IF('[9]II.2.Balance OSD-Activos'!R184=\"\",\"\",'[9]II.2.Balance OSD-Activos'!R184)","v":47289.905418281567},{"$f":"IF('[9]II.2.Balance OSD-Activos'!S184=\"\",\"\",'[9]II.2.Balance OSD-Activos'!S184)","v":51003.548294312168},47511.812037189804,{"$f":"IF(OR(AF319=\"\",AG319=\"\",AH319=\"\",AI319=\"\"),\"\",SUM(AF319:AI319))","v":99487.054301927841},{"$f":"IF(OR(AF319=\"\",AF307=\"\"),\"\",((AF319/AF307)-1)*100)","v":16.535329419033641},9.6295318874712663,12.543116678402466,9.599055403952427,10.461885325941655,10.08262034289007,-0.25733759464341333,{"$f":"IF('[1]MONE(M)CAPARD'!GS326=\"\",\"\",'[1]MONE(M)CAPARD'!GS326)","v":19763.946103756829},{"$f":"IF('[1]MONE(M)CARD'!HA326=\"\",\"\",'[1]MONE(M)CAPARD'!HA326)","v":10253.249869335088},{"$f":"IF('[1]MONE(M)CAPARD'!HB326=\"\",\"\",'[1]MONE(M)CAPARD'!HB326)","v":9510.6962344217409},"n.d.",{"$f":"IF('[10]II.2.Balance OSD-Activos'!J184=\"\",\"\",'[10]II.2.Balance OSD-Activos'!J184)","v":2023.7045126382338},{"$f":"IF('[10]II.2.Balance OSD-Activos'!N184=\"\",\"\",'[10]II.2.Balance OSD-Activos'!N184)","v":1441.9185296458745},{"$f":"IF('[10]II.2.Balance OSD-Activos'!R184=\"\",\"\",'[10]II.2.Balance OSD-Activos'!R184)","v":68892.091278761567},{"$f":"IF('[10]II.2.Balance OSD-Activos'!S184=\"\",\"\",'[10]II.2.Balance OSD-Activos'!S184)","v":70830.367769662174},70915.795791399796,143188.08209070785,20.111847971967968,8.8666414588666207,1.511024469773159,8.5680609871242819,11.579624379833264,10.110648638956787,-0.16221656744035506,{"$f":"IF('[1]MONE(M)CAPARD'!AS326=\"\",\"\",'[1]MONE(M)CAPARD'!AS326)","v":1.75},{"$f":"IF('[1]MONE(M)CAPARD'!AT326=\"\",\"\",'[1]MONE(M)CAPARD'!AT326)","v":"n.a."},{"$f":"IF('[1]MONE(M)CAPARD'!AU326=\"\",\"\",'[1]MONE(M)CAPARD'!AU326)","v":3},{"$f":"IF('[1]MONE(M)CAPARD'!AV326=\"\",\"\",'[1]MONE(M)CAPARD'!AV326)","v":5.75},{"$f":"IF('[1]MONE(M)CAPARD'!AW326=\"\",\"\",'[1]MONE(M)CAPARD'!AW326)","v":"n.a."},{"$f":"IF('[1]MONE(M)CAPARD'!AX326=\"\",\"\",'[1]MONE(M)CAPARD'!AX326)","v":5},{"$f":"IF('[1]MONE(M)CAPARD'!AY326=\"\",\"\",'[1]MONE(M)CAPARD'!AY326)","v":"n.a."},{"$f":"IF('[1]FISCAL(M)'!$K326=\"\",\"\",'[1]FISCAL(M)'!$K326)","v":-1700.5834199781357},{"$f":"IF('[1]FISCAL(M)'!$L326=\"\",\"\",'[1]FISCAL(M)'!$L326)","v":"n.d."},{"$f":"IF('[1]FISCAL(M)'!$AY326=\"\",\"\",'[1]FISCAL(M)'!$AY326)","v":115255.11585713876},{"$f":"IF('[1]FISCAL(M)'!$BI326=\"\",\"\",'[1]FISCAL(M)'!$BI326)","v":59242.939240034597},{"$f":"IF('[1]FISCAL(M)'!$BS326=\"\",\"\",'[1]FISCAL(M)'!$BS326)","v":56012.176617104167},{"$f":"IF('[1]FISCAL(M)'!$AZ326=\"\",\"\",'[1]FISCAL(M)'!$AZ326)","v":136670.17585713876},{"$f":"IF('[1]FISCAL(M)'!$BJ326=\"\",\"\",'[1]FISCAL(M)'!$BJ326)","v":63988.359240034595},71600.277879409434,{"$f":"IF('[2]MONE(M)'!$AO326=\"\",\"\",'[2]MONE(M)'!$AO326)","v":18645329.518738486},{"$f":"IF('[3]MONE(M)'!$AO326=\"\",\"\",'[3]MONE(M)'!$AO326)","v":11379.633864710002},{"$f":"IF('[4]MONE(M)'!$AO326=\"\",\"\",'[4]MONE(M)'!$AO326)","v":181069.46086367755},{"$f":"+'[5]MONE(M)'!$AO326","v":263141.53881638963},{"$f":"IF('[6]MONE(M)'!$AO326=\"\",\"\",'[6]MONE(M)'!$AO326)","v":126064.76540791124},{"$f":"IF('[7]MONE(M)'!$AO326=\"\",\"\",'[7]MONE(M)'!$AO326)","v":835977.87984633003},{"$f":"IF('[8]MONE(M)'!$AO326=\"\",\"\",'[8]MONE(M)'!$AO326)","v":44592.114583810006},12.235217423747692,5.3795007927064376,8.7988874531036423,9.6720181409224679,23.334681245786214,16.232109884652601,10.423968063468436,{"$f":"IF('[1]FISCAL(M)'!$K326=\"\",\"\",'[1]FISCAL(M)'!$K326)","v":-1700.5834199781357},{"$f":"+'[1]REAL(A)'!$AO$36","v":259854.16415340832},{"$f":"IF(OR(CM319=\"n.d.\",CM319=\"\",CN319=\"\",CN319=\"n.d.\"),\"\",(CM319/CN319)*100)","v":-0.65443762485721568},{"$f":"IF('[1]FISCAL(M)'!$L326=\"\",\"\",'[1]FISCAL(M)'!$L326)","v":"n.d."},{"$f":"+'[1]REAL(A)'!$AP$36","v":317761.86015340831},"n.d.",136505.0618096776,{"$f":"'[1]Gráfico REM'!BG320","v":24567.714845272632},{"$f":"'[1]Gráfico REM'!BH320","v":104430.9824925978},{"$f":"'[1]Gráfico REM'!BI320","v":7506.3644718071791},{"$f":"IFERROR(+((CS319/CS307)-1)*100,\"\")","v":9.7342005205980122},8.9665608430420374,10.34004729065574,4.1781775897000717,207137.2037415776,{"$f":"'[1]Gráfico REM'!BK320","v":26875.76185377263},{"$f":"'[1]Gráfico REM'!BL320","v":149023.09707640781},{"$f":"'[1]Gráfico REM'!BM320","v":31238.344811397168},9.5075621653112563,10.053579143747138,10.365145489038486,5.1604987963766336]
[2016,"junio ","2016-junio ",{"$f":"IF('[1]REAL IPC(M)'!$AL327=\"\",\"\",+'[1]REAL IPC(M)'!$AL327)","v":2.2496192482053035},{"$f":"IF('[1]REAL IPC(M)'!$BE327=\"\",\"\",+'[1]REAL IPC(M)'!$BE327)","v":2.4021886281974325},{"$f":"IF('[1]REAL IPC(M)'!$AM327=\"\",\"\",+'[1]REAL IPC(M)'!$AM327)","v":1.9635549088848681},{"$f":"IF('[1]REAL IPC(M)'!$BI327=\"\",\"\",+'[1]REAL IPC(M)'!$BI327)","v":2.1618244619750149},{"$f":"IF('[1]REAL IMAE(M)'!BJ327=\"\",\"\",'[1]REAL IMAE(M)'!BJ327)","v":4.6214452092713243},{"$f":"IF('[1]REAL IMAE(M)'!BK327=\"\",\"\",'[1]REAL IMAE(M)'!BK327)","v":4.4979894833605316},{"$f":"IF('[1]REAL IMAE(M)'!BN327=\"\",\"\",'[1]REAL IMAE(M)'!BN327)","v":4.8301485169743419},{"$f":"IF('[1]REAL IMAE(M)'!BO327=\"\",\"\",'[1]REAL IMAE(M)'!BO327)","v":4.5463776473507522},{"$f":"IF('[1]EXT RIN(M)'!$K327=\"\",\"\",'[1]EXT RIN(M)'!$K327)","v":31092.773042492219},"",{"$f":"IF('[1]EXT RIN(M)'!$L327=\"\",\"\",'[1]EXT RIN(M)'!$L327)","v":35863.322932512223},"",{"$f":"IF('[1]MONE(M)CARD'!EG327=\"\",\"\",'[1]MONE(M)CARD'!EG327)","v":32641.706445554282},{"$f":"IF('[1]MONE(M)CARD'!EK327=\"\",\"\",'[1]MONE(M)CARD'!EK327)","v":51920.786725887403},{"$f":"IF('[1]MONE(M)CARD'!EP327=\"\",\"\",'[1]MONE(M)CARD'!EP327)","v":28604.292218799514},{"$f":"IF('[1]MONE(M)CARD'!ES327=\"\",\"\",'[1]MONE(M)CARD'!ES327)","v":9.2610489334407973},{"$f":"IF('[1]MONE(M)CARD'!EV327=\"\",\"\",'[1]MONE(M)CARD'!EV327)","v":6.1286272978852141},{"$f":"IF('[1]MONE(M)CARD'!EZ327=\"\",\"\",'[1]MONE(M)CARD'!EZ327)","v":4.9128287940841009},{"$f":"IF('[1]MONE(M)CAPARD'!FC327=\"\",\"\",'[1]MONE(M)CAPARD'!FC327)","v":40554.029503234284},{"$f":"IF('[1]MONE(M)CAPARD'!FG327=\"\",\"\",'[1]MONE(M)CAPARD'!FG327)","v":81100.55788895741},{"$f":"IF('[1]MONE(M)CAPARD'!FL327=\"\",\"\",'[1]MONE(M)CAPARD'!FL327)","v":28604.292218799528},{"$f":"IF('[1]MONE(M)CAPARD'!FO327=\"\",\"\",'[1]MONE(M)CAPARD'!FO327)","v":7.3590911209308052},{"$f":"IF('[1]MONE(M)CAPARD'!FR327=\"\",\"\",'[1]MONE(M)CAPARD'!FR327)","v":6.2934529296847064},{"$f":"IF('[1]MONE(M)CAPARD'!FV327=\"\",\"\",'[1]MONE(M)CAPARD'!FV327)","v":5.3414662365799614},{"$f":"IF('[1]MONE(M)CARD'!FV327=\"\",\"\",'[1]MONE(M)CARD'!FV327)","v":1346.9082430395531},{"$f":"IF('[1]MONE(M)CARD'!GD327=\"\",\"\",'[1]MONE(M)CARD'!GD327)","v":176.43228603791272},{"$f":"IF('[1]MONE(M)CARD'!GE327=\"\",\"\",'[1]MONE(M)CARD'!GE327)","v":9087.3111145325238},3.1399260421706154,{"$f":"IF('[9]II.2.Balance OSD-Activos'!J185=\"\",\"\",'[9]II.2.Balance OSD-Activos'!J185)","v":212.25207121872219},{"$f":"IF('[9]II.2.Balance OSD-Activos'!N185=\"\",\"\",'[9]II.2.Balance OSD-Activos'!N185)","v":962.65876871631508},{"$f":"IF('[9]II.2.Balance OSD-Activos'!R185=\"\",\"\",'[9]II.2.Balance OSD-Activos'!R185)","v":47456.643374592648},{"$f":"IF('[9]II.2.Balance OSD-Activos'!S185=\"\",\"\",'[9]II.2.Balance OSD-Activos'!S185)","v":51180.080172029317},47668.895445811373,{"$f":"IF(OR(AF320=\"\",AG320=\"\",AH320=\"\",AI320=\"\"),\"\",SUM(AF320:AI320))","v":99811.634386557009},{"$f":"IF(OR(AF320=\"\",AF308=\"\"),\"\",((AF320/AF308)-1)*100)","v":10.548432226926007},9.8480768419564555,3.691309456808467,9.8449644021823666,9.4471598289676884,9.5794989009316822,-0.50312144195838826,{"$f":"IF('[1]MONE(M)CAPARD'!GS327=\"\",\"\",'[1]MONE(M)CAPARD'!GS327)","v":19973.078726639687},{"$f":"IF('[1]MONE(M)CARD'!HA327=\"\",\"\",'[1]MONE(M)CAPARD'!HA327)","v":10718.093958912523},{"$f":"IF('[1]MONE(M)CAPARD'!HB327=\"\",\"\",'[1]MONE(M)CAPARD'!HB327)","v":9254.9847677271646},"n.d.",{"$f":"IF('[10]II.2.Balance OSD-Activos'!J185=\"\",\"\",'[10]II.2.Balance OSD-Activos'!J185)","v":1978.6055850787222},{"$f":"IF('[10]II.2.Balance OSD-Activos'!N185=\"\",\"\",'[10]II.2.Balance OSD-Activos'!N185)","v":1426.0526452863151},{"$f":"IF('[10]II.2.Balance OSD-Activos'!R185=\"\",\"\",'[10]II.2.Balance OSD-Activos'!R185)","v":69167.410501422637},{"$f":"IF('[10]II.2.Balance OSD-Activos'!S185=\"\",\"\",'[10]II.2.Balance OSD-Activos'!S185)","v":71228.110969569316},71146.01608650136,143800.17970135697,18.246916702615181,9.0237437614355329,1.8271234992198515,8.7810260929804826,10.802649435923062,9.8200999180048996,-0.29054872095188777,{"$f":"IF('[1]MONE(M)CAPARD'!AS327=\"\",\"\",'[1]MONE(M)CAPARD'!AS327)","v":1.75},{"$f":"IF('[1]MONE(M)CAPARD'!AT327=\"\",\"\",'[1]MONE(M)CAPARD'!AT327)","v":"n.a."},{"$f":"IF('[1]MONE(M)CAPARD'!AU327=\"\",\"\",'[1]MONE(M)CAPARD'!AU327)","v":3},{"$f":"IF('[1]MONE(M)CAPARD'!AV327=\"\",\"\",'[1]MONE(M)CAPARD'!AV327)","v":5.5},{"$f":"IF('[1]MONE(M)CAPARD'!AW327=\"\",\"\",'[1]MONE(M)CAPARD'!AW327)","v":"n.a."},{"$f":"IF('[1]MONE(M)CAPARD'!AX327=\"\",\"\",'[1]MONE(M)CAPARD'!AX327)","v":5},{"$f":"IF('[1]MONE(M)CAPARD'!AY327=\"\",\"\",'[1]MONE(M)CAPARD'!AY327)","v":"n.a."},{"$f":"IF('[1]FISCAL(M)'!$K327=\"\",\"\",'[1]FISCAL(M)'!$K327)","v":-2326.9230790307452},{"$f":"IF('[1]FISCAL(M)'!$L327=\"\",\"\",'[1]FISCAL(M)'!$L327)","v":-3446.9230790307452},{"$f":"IF('[1]FISCAL(M)'!$AY327=\"\",\"\",'[1]FISCAL(M)'!$AY327)","v":115900.60225637263},{"$f":"IF('[1]FISCAL(M)'!$BI327=\"\",\"\",'[1]FISCAL(M)'!$BI327)","v":59826.352914431307},{"$f":"IF('[1]FISCAL(M)'!$BS327=\"\",\"\",'[1]FISCAL(M)'!$BS327)","v":56074.249341941308},{"$f":"IF('[1]FISCAL(M)'!$AZ327=\"\",\"\",'[1]FISCAL(M)'!$AZ327)","v":137567.58225637261},{"$f":"IF('[1]FISCAL(M)'!$BJ327=\"\",\"\",'[1]FISCAL(M)'!$BJ327)","v":64804.032914431315},{"$f":"IF('[1]FISCAL(M)'!$BT327=\"\",\"\",'[1]FISCAL(M)'!$BT327)","v":72763.549341941311},{"$f":"IF('[2]MONE(M)'!$AO327=\"\",\"\",'[2]MONE(M)'!$AO327)","v":18928564.92890469},{"$f":"IF('[3]MONE(M)'!$AO327=\"\",\"\",'[3]MONE(M)'!$AO327)","v":11378.265328050002},{"$f":"IF('[4]MONE(M)'!$AO327=\"\",\"\",'[4]MONE(M)'!$AO327)","v":181782.91227250372},{"$f":"+'[5]MONE(M)'!$AO327","v":264273.25575616962},{"$f":"IF('[6]MONE(M)'!$AO327=\"\",\"\",'[6]MONE(M)'!$AO327)","v":127961.47516669752},{"$f":"IF('[7]MONE(M)'!$AO327=\"\",\"\",'[7]MONE(M)'!$AO327)","v":845636.78794713016},{"$f":"IF('[8]MONE(M)'!$AO327=\"\",\"\",'[8]MONE(M)'!$AO327)","v":44862.944448989991},12.140712358865713,5.3225399345478763,8.7904226725698855,9.4736608567739466,23.515469848430648,16.956286155232149,10.516036606610403,{"$f":"IF('[1]FISCAL(M)'!$K327=\"\",\"\",'[1]FISCAL(M)'!$K327)","v":-2326.9230790307452},{"$f":"+'[1]REAL(A)'!$AO$36","v":259854.16415340832},{"$f":"IF(OR(CM320=\"n.d.\",CM320=\"\",CN320=\"\",CN320=\"n.d.\"),\"\",(CM320/CN320)*100)","v":-0.89547269200466439},{"$f":"IF('[1]FISCAL(M)'!$L327=\"\",\"\",'[1]FISCAL(M)'!$L327)","v":-3446.9230790307452},{"$f":"+'[1]REAL(A)'!$AP$36","v":317761.86015340831},-1.084750409431342,136792.49636328474,{"$f":"'[1]Gráfico REM'!BG321","v":24707.155673744113},{"$f":"'[1]Gráfico REM'!BH321","v":104626.72552974956},{"$f":"'[1]Gráfico REM'!BI321","v":7458.615159791063},8.8205157503647325,8.812617892104635,9.454517298631826,0.66532793886706632,207370.66588363473,{"$f":"'[1]Gráfico REM'!BK321","v":26992.136106054113},{"$f":"'[1]Gráfico REM'!BL321","v":149489.66997873955},{"$f":"'[1]Gráfico REM'!BM321","v":30888.859798841062},7.9999663173420332,9.17375179518476,9.7709392228425109,-0.68732316267262616]
[2016,"julio","2016-julio",{"$f":"IF('[1]REAL IPC(M)'!$AL328=\"\",\"\",+'[1]REAL IPC(M)'!$AL328)","v":2.5196269015093309},{"$f":"IF('[1]REAL IPC(M)'!$BE328=\"\",\"\",+'[1]REAL IPC(M)'!$BE328)","v":2.4154002838681299},{"$f":"IF('[1]REAL IPC(M)'!$AM328=\"\",\"\",+'[1]REAL IPC(M)'!$AM328)","v":2.1976748670547774},{"$f":"IF('[1]REAL IPC(M)'!$BI328=\"\",\"\",+'[1]REAL IPC(M)'!$BI328)","v":2.172189009549963},{"$f":"IF('[1]REAL IMAE(M)'!BJ328=\"\",\"\",'[1]REAL IMAE(M)'!BJ328)","v":3.9217298257700595},{"$f":"IF('[1]REAL IMAE(M)'!BK328=\"\",\"\",'[1]REAL IMAE(M)'!BK328)","v":4.462485292873053},{"$f":"IF('[1]REAL IMAE(M)'!BN328=\"\",\"\",'[1]REAL IMAE(M)'!BN328)","v":4.1388468847607829},{"$f":"IF('[1]REAL IMAE(M)'!BO328=\"\",\"\",'[1]REAL IMAE(M)'!BO328)","v":4.5070087172984108},{"$f":"IF('[1]EXT RIN(M)'!$K328=\"\",\"\",'[1]EXT RIN(M)'!$K328)","v":31403.958378224743},"",{"$f":"IF('[1]EXT RIN(M)'!$L328=\"\",\"\",'[1]EXT RIN(M)'!$L328)","v":35620.305135394745},"",{"$f":"IF('[1]MONE(M)CARD'!EG328=\"\",\"\",'[1]MONE(M)CARD'!EG328)","v":32964.696997824263},{"$f":"IF('[1]MONE(M)CARD'!EK328=\"\",\"\",'[1]MONE(M)CARD'!EK328)","v":51919.224382132837},{"$f":"IF('[1]MONE(M)CARD'!EP328=\"\",\"\",'[1]MONE(M)CARD'!EP328)","v":29101.326664912893},{"$f":"IF('[1]MONE(M)CARD'!ES328=\"\",\"\",'[1]MONE(M)CARD'!ES328)","v":9.8802250060479935},{"$f":"IF('[1]MONE(M)CARD'!EV328=\"\",\"\",'[1]MONE(M)CARD'!EV328)","v":6.1036575466074661},{"$f":"IF('[1]MONE(M)CARD'!EZ328=\"\",\"\",'[1]MONE(M)CARD'!EZ328)","v":5.3172634843048572},{"$f":"IF('[1]MONE(M)CAPARD'!FC328=\"\",\"\",'[1]MONE(M)CAPARD'!FC328)","v":40883.946012564273},{"$f":"IF('[1]MONE(M)CAPARD'!FG328=\"\",\"\",'[1]MONE(M)CAPARD'!FG328)","v":80881.547255232843},{"$f":"IF('[1]MONE(M)CAPARD'!FL328=\"\",\"\",'[1]MONE(M)CAPARD'!FL328)","v":29101.326664912893},{"$f":"IF('[1]MONE(M)CAPARD'!FO328=\"\",\"\",'[1]MONE(M)CAPARD'!FO328)","v":7.8244011203063124},{"$f":"IF('[1]MONE(M)CAPARD'!FR328=\"\",\"\",'[1]MONE(M)CAPARD'!FR328)","v":5.6302231243939849},{"$f":"IF('[1]MONE(M)CAPARD'!FV328=\"\",\"\",'[1]MONE(M)CAPARD'!FV328)","v":5.1302607372234243},{"$f":"IF('[1]MONE(M)CARD'!FV328=\"\",\"\",'[1]MONE(M)CARD'!FV328)","v":1361.042245445489},{"$f":"IF('[1]MONE(M)CARD'!GD328=\"\",\"\",'[1]MONE(M)CARD'!GD328)","v":72.146138519150526},{"$f":"IF('[1]MONE(M)CARD'!GE328=\"\",\"\",'[1]MONE(M)CARD'!GE328)","v":9224.6271306918898},7.5192464504720391,{"$f":"IF('[9]II.2.Balance OSD-Activos'!J186=\"\",\"\",'[9]II.2.Balance OSD-Activos'!J186)","v":214.92814616352501},{"$f":"IF('[9]II.2.Balance OSD-Activos'!N186=\"\",\"\",'[9]II.2.Balance OSD-Activos'!N186)","v":936.04380775772847},{"$f":"IF('[9]II.2.Balance OSD-Activos'!R186=\"\",\"\",'[9]II.2.Balance OSD-Activos'!R186)","v":47678.151022446516},{"$f":"IF('[9]II.2.Balance OSD-Activos'!S186=\"\",\"\",'[9]II.2.Balance OSD-Activos'!S186)","v":51671.227847593516},47893.079168610042,{"$f":"IF(OR(AF321=\"\",AG321=\"\",AH321=\"\",AI321=\"\"),\"\",SUM(AF321:AI321))","v":100500.35082396129},16.764108784888009,9.5460369117438937,0.81289628687286619,9.5155185381674769,9.5641221845761404,9.4670055766148167,-0.11249332431686554,{"$f":"IF('[1]MONE(M)CAPARD'!GS328=\"\",\"\",'[1]MONE(M)CAPARD'!GS328)","v":19656.394038155118},{"$f":"IF('[1]MONE(M)CARD'!HA328=\"\",\"\",'[1]MONE(M)CAPARD'!HA328)","v":11164.698621461888},{"$f":"IF('[1]MONE(M)CAPARD'!HB328=\"\",\"\",'[1]MONE(M)CAPARD'!HB328)","v":8491.6954166932301},"n.d.",{"$f":"IF('[10]II.2.Balance OSD-Activos'!J186=\"\",\"\",'[10]II.2.Balance OSD-Activos'!J186)","v":1994.667060793525},{"$f":"IF('[10]II.2.Balance OSD-Activos'!N186=\"\",\"\",'[10]II.2.Balance OSD-Activos'!N186)","v":1398.4598535777286},{"$f":"IF('[10]II.2.Balance OSD-Activos'!R186=\"\",\"\",'[10]II.2.Balance OSD-Activos'!R186)","v":69362.710884736516},{"$f":"IF('[10]II.2.Balance OSD-Activos'!S186=\"\",\"\",'[10]II.2.Balance OSD-Activos'!S186)","v":71427.080666843525},71357.377945530039,144182.91846595128,14.357003500480792,8.1213989049884194,1.7177775836274778,7.9521244778376854,10.062660786600786,9.0073022971999492,-0.81279762080495033,{"$f":"IF('[1]MONE(M)CAPARD'!AS328=\"\",\"\",'[1]MONE(M)CAPARD'!AS328)","v":1.75},{"$f":"IF('[1]MONE(M)CAPARD'!AT328=\"\",\"\",'[1]MONE(M)CAPARD'!AT328)","v":"n.a."},{"$f":"IF('[1]MONE(M)CAPARD'!AU328=\"\",\"\",'[1]MONE(M)CAPARD'!AU328)","v":3},{"$f":"IF('[1]MONE(M)CAPARD'!AV328=\"\",\"\",'[1]MONE(M)CAPARD'!AV328)","v":5.5},{"$f":"IF('[1]MONE(M)CAPARD'!AW328=\"\",\"\",'[1]MONE(M)CAPARD'!AW328)","v":"n.a."},{"$f":"IF('[1]MONE(M)CAPARD'!AX328=\"\",\"\",'[1]MONE(M)CAPARD'!AX328)","v":5},{"$f":"IF('[1]MONE(M)CAPARD'!AY328=\"\",\"\",'[1]MONE(M)CAPARD'!AY328)","v":"n.a."},{"$f":"IF('[1]FISCAL(M)'!$K328=\"\",\"\",'[1]FISCAL(M)'!$K328)","v":-2849.335596875002},{"$f":"IF('[1]FISCAL(M)'!$L328=\"\",\"\",'[1]FISCAL(M)'!$L328)","v":"n.d."},{"$f":"IF('[1]FISCAL(M)'!$AY328=\"\",\"\",'[1]FISCAL(M)'!$AY328)","v":117220.23305827573},{"$f":"IF('[1]FISCAL(M)'!$BI328=\"\",\"\",'[1]FISCAL(M)'!$BI328)","v":60682.709546274404},{"$f":"IF('[1]FISCAL(M)'!$BS328=\"\",\"\",'[1]FISCAL(M)'!$BS328)","v":56537.523512001339},{"$f":"IF('[1]FISCAL(M)'!$AZ328=\"\",\"\",'[1]FISCAL(M)'!$AZ328)","v":138789.64305827575},{"$f":"IF('[1]FISCAL(M)'!$BJ328=\"\",\"\",'[1]FISCAL(M)'!$BJ328)","v":65602.579546274399},{"$f":"IF('[1]FISCAL(M)'!$BT328=\"\",\"\",'[1]FISCAL(M)'!$BT328)","v":73187.063512001347},{"$f":"IF('[2]MONE(M)'!$AO328=\"\",\"\",'[2]MONE(M)'!$AO328)","v":19051753.053379461},{"$f":"IF('[3]MONE(M)'!$AO328=\"\",\"\",'[3]MONE(M)'!$AO328)","v":11441.96045602},{"$f":"IF('[4]MONE(M)'!$AO328=\"\",\"\",'[4]MONE(M)'!$AO328)","v":181941.72017472755},{"$f":"+'[5]MONE(M)'!$AO328","v":265711.79538980604},{"$f":"IF('[6]MONE(M)'!$AO328=\"\",\"\",'[6]MONE(M)'!$AO328)","v":128708.0549673115},{"$f":"IF('[7]MONE(M)'!$AO328=\"\",\"\",'[7]MONE(M)'!$AO328)","v":853573.90783634991},{"$f":"IF('[8]MONE(M)'!$AO328=\"\",\"\",'[8]MONE(M)'!$AO328)","v":44487.128291569999},11.589794005684917,5.4724144106155004,8.1364561924818002,9.6974517119586157,21.838007749425081,16.360435014070383,7.9867247620767801,{"$f":"IF('[1]FISCAL(M)'!$K328=\"\",\"\",'[1]FISCAL(M)'!$K328)","v":-2849.335596875002},{"$f":"+'[1]REAL(A)'!$AO$36","v":259854.16415340832},-1.0965133486153638,{"$f":"IF('[1]FISCAL(M)'!$L328=\"\",\"\",'[1]FISCAL(M)'!$L328)","v":"n.d."},{"$f":"+'[1]REAL(A)'!$AP$36","v":317761.86015340831},"n.d.",136929.99598796992,{"$f":"'[1]Gráfico REM'!BG322","v":24267.317128070197},{"$f":"'[1]Gráfico REM'!BH322","v":105260.58733825388},{"$f":"'[1]Gráfico REM'!BI322","v":7402.091521645847},7.9208501483710503,5.003582341121926,9.2585932567339491,-0.35270943775437269,207258.7094917199,{"$f":"'[1]Gráfico REM'!BK322","v":26531.312611530197},{"$f":"'[1]Gráfico REM'!BL322","v":149747.71562982388},{"$f":"'[1]Gráfico REM'!BM322","v":30979.681250365844},7.0218993624637793,5.5859055857411688,8.877628623496836,-4.86321366145126E-2]
[2016,"agosto","2016-agosto",{"$f":"IF('[1]REAL IPC(M)'!$AL329=\"\",\"\",+'[1]REAL IPC(M)'!$AL329)","v":2.4552659285675738},{"$f":"IF('[1]REAL IPC(M)'!$BE329=\"\",\"\",+'[1]REAL IPC(M)'!$BE329)","v":2.4311008524463773},{"$f":"IF('[1]REAL IPC(M)'!$AM329=\"\",\"\",+'[1]REAL IPC(M)'!$AM329)","v":2.1934142198580808},{"$f":"IF('[1]REAL IPC(M)'!$BI329=\"\",\"\",+'[1]REAL IPC(M)'!$BI329)","v":2.1850157430259642},{"$f":"IF('[1]REAL IMAE(M)'!BJ329=\"\",\"\",'[1]REAL IMAE(M)'!BJ329)","v":3.7813526776508288},{"$f":"IF('[1]REAL IMAE(M)'!BK329=\"\",\"\",'[1]REAL IMAE(M)'!BK329)","v":4.4241997064128125},{"$f":"IF('[1]REAL IMAE(M)'!BN329=\"\",\"\",'[1]REAL IMAE(M)'!BN329)","v":3.8478869906124036},{"$f":"IF('[1]REAL IMAE(M)'!BO329=\"\",\"\",'[1]REAL IMAE(M)'!BO329)","v":4.464564485388145},{"$f":"IF('[1]EXT RIN(M)'!$K329=\"\",\"\",'[1]EXT RIN(M)'!$K329)","v":31290.900717221724},"",{"$f":"IF('[1]EXT RIN(M)'!$L329=\"\",\"\",'[1]EXT RIN(M)'!$L329)","v":35621.300838331721},"",{"$f":"IF('[1]MONE(M)CARD'!EG329=\"\",\"\",'[1]MONE(M)CARD'!EG329)","v":32436.53761362045},{"$f":"IF('[1]MONE(M)CARD'!EK329=\"\",\"\",'[1]MONE(M)CARD'!EK329)","v":52473.975299244172},{"$f":"IF('[1]MONE(M)CARD'!EP329=\"\",\"\",'[1]MONE(M)CARD'!EP329)","v":29342.396856557913},{"$f":"IF('[1]MONE(M)CARD'!ES329=\"\",\"\",'[1]MONE(M)CARD'!ES329)","v":9.3376515819234562},{"$f":"IF('[1]MONE(M)CARD'!EV329=\"\",\"\",'[1]MONE(M)CARD'!EV329)","v":6.3591225457227285},{"$f":"IF('[1]MONE(M)CARD'!EZ329=\"\",\"\",'[1]MONE(M)CARD'!EZ329)","v":5.8178647708138964},{"$f":"IF('[1]MONE(M)CAPARD'!FC329=\"\",\"\",'[1]MONE(M)CAPARD'!FC329)","v":40013.252379627149},{"$f":"IF('[1]MONE(M)CAPARD'!FG329=\"\",\"\",'[1]MONE(M)CAPARD'!FG329)","v":81790.869426864199},{"$f":"IF('[1]MONE(M)CAPARD'!FL329=\"\",\"\",'[1]MONE(M)CAPARD'!FL329)","v":29342.396856557927},{"$f":"IF('[1]MONE(M)CAPARD'!FO329=\"\",\"\",'[1]MONE(M)CAPARD'!FO329)","v":6.2682155881396362},{"$f":"IF('[1]MONE(M)CAPARD'!FR329=\"\",\"\",'[1]MONE(M)CAPARD'!FR329)","v":5.8646909046179196},{"$f":"IF('[1]MONE(M)CAPARD'!FV329=\"\",\"\",'[1]MONE(M)CAPARD'!FV329)","v":5.5537263954244187},{"$f":"IF('[1]MONE(M)CARD'!FV329=\"\",\"\",'[1]MONE(M)CARD'!FV329)","v":1544.7166568573712},{"$f":"IF('[1]MONE(M)CARD'!GD329=\"\",\"\",'[1]MONE(M)CARD'!GD329)","v":80.022853778949212},{"$f":"IF('[1]MONE(M)CARD'!GE329=\"\",\"\",'[1]MONE(M)CARD'!GE329)","v":9271.624836654275},8.0369316691896397,{"$f":"IF('[9]II.2.Balance OSD-Activos'!J187=\"\",\"\",'[9]II.2.Balance OSD-Activos'!J187)","v":214.69787103088279},{"$f":"IF('[9]II.2.Balance OSD-Activos'!N187=\"\",\"\",'[9]II.2.Balance OSD-Activos'!N187)","v":967.23631299589738},{"$f":"IF('[9]II.2.Balance OSD-Activos'!R187=\"\",\"\",'[9]II.2.Balance OSD-Activos'!R187)","v":47990.363550784779},{"$f":"IF('[9]II.2.Balance OSD-Activos'!S187=\"\",\"\",'[9]II.2.Balance OSD-Activos'!S187)","v":52142.353462603845},48205.061421815662,{"$f":"IF(OR(AF322=\"\",AG322=\"\",AH322=\"\",AI322=\"\"),\"\",SUM(AF322:AI322))","v":101314.6511974154},11.794648156583376,9.1960438214223839,1.3863949127434827,9.1846896724722793,9.464864449801059,9.2537845025878696,-0.21322107402694712,{"$f":"IF('[1]MONE(M)CAPARD'!GS329=\"\",\"\",'[1]MONE(M)CAPARD'!GS329)","v":19884.167021325244},{"$f":"IF('[1]MONE(M)CARD'!HA329=\"\",\"\",'[1]MONE(M)CAPARD'!HA329)","v":11156.722875534277},{"$f":"IF('[1]MONE(M)CAPARD'!HB329=\"\",\"\",'[1]MONE(M)CAPARD'!HB329)","v":8727.444145790967},"n.d.",{"$f":"IF('[10]II.2.Balance OSD-Activos'!J187=\"\",\"\",'[10]II.2.Balance OSD-Activos'!J187)","v":2038.8292222708851},{"$f":"IF('[10]II.2.Balance OSD-Activos'!N187=\"\",\"\",'[10]II.2.Balance OSD-Activos'!N187)","v":1424.7192792658975},{"$f":"IF('[10]II.2.Balance OSD-Activos'!R187=\"\",\"\",'[10]II.2.Balance OSD-Activos'!R187)","v":70124.424546514783},{"$f":"IF('[10]II.2.Balance OSD-Activos'!S187=\"\",\"\",'[10]II.2.Balance OSD-Activos'!S187)","v":72576.217223183849},72163.253768785667,146164.19027123542,12.161337168987863,8.3219986146029878,1.8733034934314219,8.2143001712221562,10.453847657290094,9.3020648785885562,0.294762581388607,{"$f":"IF('[1]MONE(M)CAPARD'!AS329=\"\",\"\",'[1]MONE(M)CAPARD'!AS329)","v":1.75},{"$f":"IF('[1]MONE(M)CAPARD'!AT329=\"\",\"\",'[1]MONE(M)CAPARD'!AT329)","v":"n.a."},{"$f":"IF('[1]MONE(M)CAPARD'!AU329=\"\",\"\",'[1]MONE(M)CAPARD'!AU329)","v":3},{"$f":"IF('[1]MONE(M)CAPARD'!AV329=\"\",\"\",'[1]MONE(M)CAPARD'!AV329)","v":5.5},{"$f":"IF('[1]MONE(M)CAPARD'!AW329=\"\",\"\",'[1]MONE(M)CAPARD'!AW329)","v":"n.a."},{"$f":"IF('[1]MONE(M)CAPARD'!AX329=\"\",\"\",'[1]MONE(M)CAPARD'!AX329)","v":5},{"$f":"IF('[1]MONE(M)CAPARD'!AY329=\"\",\"\",'[1]MONE(M)CAPARD'!AY329)","v":"n.a."},{"$f":"IF('[1]FISCAL(M)'!$K329=\"\",\"\",'[1]FISCAL(M)'!$K329)","v":-3177.8241896973132},{"$f":"IF('[1]FISCAL(M)'!$L329=\"\",\"\",'[1]FISCAL(M)'!$L329)","v":"n.d."},{"$f":"IF('[1]FISCAL(M)'!$AY329=\"\",\"\",'[1]FISCAL(M)'!$AY329)","v":117416.5282382603},{"$f":"IF('[1]FISCAL(M)'!$BI329=\"\",\"\",'[1]FISCAL(M)'!$BI329)","v":60992.904438641308},{"$f":"IF('[1]FISCAL(M)'!$BS329=\"\",\"\",'[1]FISCAL(M)'!$BS329)","v":56423.623799618988},{"$f":"IF('[1]FISCAL(M)'!$AZ329=\"\",\"\",'[1]FISCAL(M)'!$AZ329)","v":139084.32823826029},{"$f":"IF('[1]FISCAL(M)'!$BJ329=\"\",\"\",'[1]FISCAL(M)'!$BJ329)","v":66036.074438641313},{"$f":"IF('[1]FISCAL(M)'!$BT329=\"\",\"\",'[1]FISCAL(M)'!$BT329)","v":73048.253799618979},{"$f":"IF('[2]MONE(M)'!$AO329=\"\",\"\",'[2]MONE(M)'!$AO329)","v":19220387.84031675},{"$f":"IF('[3]MONE(M)'!$AO329=\"\",\"\",'[3]MONE(M)'!$AO329)","v":11513.015814629998},{"$f":"IF('[4]MONE(M)'!$AO329=\"\",\"\",'[4]MONE(M)'!$AO329)","v":182956.81868094188},{"$f":"+'[5]MONE(M)'!$AO329","v":267339.93225504673},{"$f":"IF('[6]MONE(M)'!$AO329=\"\",\"\",'[6]MONE(M)'!$AO329)","v":130499.99058629271},{"$f":"IF('[7]MONE(M)'!$AO329=\"\",\"\",'[7]MONE(M)'!$AO329)","v":864902.17160924},{"$f":"IF('[8]MONE(M)'!$AO329=\"\",\"\",'[8]MONE(M)'!$AO329)","v":45715.706811360011},11.705262250433069,5.4928238105737881,7.4626387632189539,8.8964008875957123,22.318886308054964,14.283533363334012,9.2935808171376699,{"$f":"'[1]FISCAL(M)'!$K329","v":-3177.8241896973132},{"$f":"+'[1]REAL(A)'!$AO$36","v":259854.16415340832},-1.2229260208511581,{"$f":"IF('[1]FISCAL(M)'!$L329=\"\",\"\",'[1]FISCAL(M)'!$L329)","v":"n.d."},{"$f":"+'[1]REAL(A)'!$AP$36","v":317761.86015340831},"n.d.",138038.28829499157,{"$f":"'[1]Gráfico REM'!BG323","v":24498.708132834949},{"$f":"'[1]Gráfico REM'!BH323","v":105958.61131916351},{"$f":"'[1]Gráfico REM'!BI323","v":7580.9688429931057},8.1981459223930955,7.6051139257262701,8.6947506838419777,3.4351837649137629,209215.72129451158,{"$f":"'[1]Gráfico REM'!BK323","v":26758.031980964948},{"$f":"'[1]Gráfico REM'!BL323","v":151674.31813052352},{"$f":"'[1]Gráfico REM'!BM323","v":30783.371183023104},7.0710598261103152,7.7269475824453648,8.8745502968722754,-1.4903902481665843]
[2016,"septiembre","2016-septiembre",{"$f":"IF('[1]REAL IPC(M)'!$AL330=\"\",\"\",+'[1]REAL IPC(M)'!$AL330)","v":2.3681324449842389},{"$f":"IF('[1]REAL IPC(M)'!$BE330=\"\",\"\",+'[1]REAL IPC(M)'!$BE330)","v":2.4490095610057772},{"$f":"IF('[1]REAL IPC(M)'!$AM330=\"\",\"\",+'[1]REAL IPC(M)'!$AM330)","v":2.2087336020981896},{"$f":"IF('[1]REAL IPC(M)'!$BI330=\"\",\"\",+'[1]REAL IPC(M)'!$BI330)","v":2.1999702566049439},{"$f":"IF('[1]REAL IMAE(M)'!BJ330=\"\",\"\",'[1]REAL IMAE(M)'!BJ330)","v":4.1797338956333308},{"$f":"IF('[1]REAL IMAE(M)'!BK330=\"\",\"\",'[1]REAL IMAE(M)'!BK330)","v":4.3831485506299561},{"$f":"IF('[1]REAL IMAE(M)'!BN330=\"\",\"\",'[1]REAL IMAE(M)'!BN330)","v":4.2659575862484589},{"$f":"IF('[1]REAL IMAE(M)'!BO330=\"\",\"\",'[1]REAL IMAE(M)'!BO330)","v":4.4190130259078808},{"$f":"IF('[1]EXT RIN(M)'!$K330=\"\",\"\",'[1]EXT RIN(M)'!$K330)","v":30755.544114733566},"",{"$f":"IF('[1]EXT RIN(M)'!$L330=\"\",\"\",'[1]EXT RIN(M)'!$L330)","v":34855.727142193566},"",{"$f":"IF('[1]MONE(M)CARD'!EG330=\"\",\"\",'[1]MONE(M)CARD'!EG330)","v":32750.57055646096},{"$f":"IF('[1]MONE(M)CARD'!EK330=\"\",\"\",'[1]MONE(M)CARD'!EK330)","v":52140.181395142929},{"$f":"IF('[1]MONE(M)CARD'!EP330=\"\",\"\",'[1]MONE(M)CARD'!EP330)","v":29107.836659453009},{"$f":"IF('[1]MONE(M)CARD'!ES330=\"\",\"\",'[1]MONE(M)CARD'!ES330)","v":9.698705417862886},{"$f":"IF('[1]MONE(M)CARD'!EV330=\"\",\"\",'[1]MONE(M)CARD'!EV330)","v":6.20111435521844},{"$f":"IF('[1]MONE(M)CARD'!EZ330=\"\",\"\",'[1]MONE(M)CARD'!EZ330)","v":5.3575835168442554},{"$f":"IF('[1]MONE(M)CAPARD'!FC330=\"\",\"\",'[1]MONE(M)CAPARD'!FC330)","v":40547.309974940967},{"$f":"IF('[1]MONE(M)CAPARD'!FG330=\"\",\"\",'[1]MONE(M)CAPARD'!FG330)","v":81718.475195992942},{"$f":"IF('[1]MONE(M)CAPARD'!FL330=\"\",\"\",'[1]MONE(M)CAPARD'!FL330)","v":29107.836659453023},{"$f":"IF('[1]MONE(M)CAPARD'!FO330=\"\",\"\",'[1]MONE(M)CAPARD'!FO330)","v":7.659621043762499},{"$f":"IF('[1]MONE(M)CAPARD'!FR330=\"\",\"\",'[1]MONE(M)CAPARD'!FR330)","v":6.1438204043595901},{"$f":"IF('[1]MONE(M)CAPARD'!FV330=\"\",\"\",'[1]MONE(M)CAPARD'!FV330)","v":5.5188793209152598},{"$f":"IF('[1]MONE(M)CARD'!FV330=\"\",\"\",'[1]MONE(M)CARD'!FV330)","v":1537.0367574402962},{"$f":"IF('[1]MONE(M)CARD'!GD330=\"\",\"\",'[1]MONE(M)CARD'!GD330)","v":162.57692838669141},{"$f":"IF('[1]MONE(M)CARD'!GE330=\"\",\"\",'[1]MONE(M)CARD'!GE330)","v":9369.60223410449},12.050122403841911,{"$f":"IF('[9]II.2.Balance OSD-Activos'!J188=\"\",\"\",'[9]II.2.Balance OSD-Activos'!J188)","v":206.26588678574217},{"$f":"IF('[9]II.2.Balance OSD-Activos'!N188=\"\",\"\",'[9]II.2.Balance OSD-Activos'!N188)","v":968.56220915187544},{"$f":"IF('[9]II.2.Balance OSD-Activos'!R188=\"\",\"\",'[9]II.2.Balance OSD-Activos'!R188)","v":48288.411422684614},{"$f":"IF('[9]II.2.Balance OSD-Activos'!S188=\"\",\"\",'[9]II.2.Balance OSD-Activos'!S188)","v":52596.908522974802},48494.677309470353,102060.14804159704,14.872182750445106,8.0364453154398774,-1.233975275589394,8.0089907295613383,9.2625597776186943,8.5675986568385163,-0.68618584574935326,{"$f":"IF('[1]MONE(M)CAPARD'!GS330=\"\",\"\",'[1]MONE(M)CAPARD'!GS330)","v":19926.962292825337},{"$f":"IF('[1]MONE(M)CARD'!HA330=\"\",\"\",'[1]MONE(M)CAPARD'!HA330)","v":11242.466389414489},{"$f":"IF('[1]MONE(M)CAPARD'!HB330=\"\",\"\",'[1]MONE(M)CAPARD'!HB330)","v":8684.4959034108488},"n.d.",{"$f":"IF('[10]II.2.Balance OSD-Activos'!J188=\"\",\"\",'[10]II.2.Balance OSD-Activos'!J188)","v":2038.1004788857429},{"$f":"IF('[10]II.2.Balance OSD-Activos'!N188=\"\",\"\",'[10]II.2.Balance OSD-Activos'!N188)","v":1480.1630523418753},{"$f":"IF('[10]II.2.Balance OSD-Activos'!R188=\"\",\"\",'[10]II.2.Balance OSD-Activos'!R188)","v":70656.984515594595},{"$f":"IF('[10]II.2.Balance OSD-Activos'!S188=\"\",\"\",'[10]II.2.Balance OSD-Activos'!S188)","v":73212.167147644781},72695.084994480334,147387.415194467,11.081002809565899,7.2505498862533768,1.760765109963458,7.1439765429013979,10.45354081038421,8.7582373845045414,-0.54382749408401487,{"$f":"IF('[1]MONE(M)CAPARD'!AS330=\"\",\"\",'[1]MONE(M)CAPARD'!AS330)","v":1.75},{"$f":"IF('[1]MONE(M)CAPARD'!AT330=\"\",\"\",'[1]MONE(M)CAPARD'!AT330)","v":"n.a."},{"$f":"IF('[1]MONE(M)CAPARD'!AU330=\"\",\"\",'[1]MONE(M)CAPARD'!AU330)","v":3},{"$f":"IF('[1]MONE(M)CAPARD'!AV330=\"\",\"\",'[1]MONE(M)CAPARD'!AV330)","v":5.5},{"$f":"IF('[1]MONE(M)CAPARD'!AW330=\"\",\"\",'[1]MONE(M)CAPARD'!AW330)","v":"n.a."},{"$f":"IF('[1]MONE(M)CAPARD'!AX330=\"\",\"\",'[1]MONE(M)CAPARD'!AX330)","v":5},{"$f":"IF('[1]MONE(M)CAPARD'!AY330=\"\",\"\",'[1]MONE(M)CAPARD'!AY330)","v":"n.a."},{"$f":"IF('[1]FISCAL(M)'!$K330=\"\",\"\",'[1]FISCAL(M)'!$K330)","v":-3765.2952179425965},{"$f":"IF('[1]FISCAL(M)'!$L330=\"\",\"\",'[1]FISCAL(M)'!$L330)","v":-5805.2952179425965},{"$f":"IF('[1]FISCAL(M)'!$AY330=\"\",\"\",'[1]FISCAL(M)'!$AY330)","v":118153.92206270879},{"$f":"IF('[1]FISCAL(M)'!$BI330=\"\",\"\",'[1]FISCAL(M)'!$BI330)","v":61530.276909564374},{"$f":"IF('[1]FISCAL(M)'!$BS330=\"\",\"\",'[1]FISCAL(M)'!$BS330)","v":56623.645153144411},{"$f":"IF('[1]FISCAL(M)'!$AZ330=\"\",\"\",'[1]FISCAL(M)'!$AZ330)","v":139743.49206270877},{"$f":"IF('[1]FISCAL(M)'!$BJ330=\"\",\"\",'[1]FISCAL(M)'!$BJ330)","v":66511.266909564365},{"$f":"IF('[1]FISCAL(M)'!$BT330=\"\",\"\",'[1]FISCAL(M)'!$BT330)","v":73232.225153144405},{"$f":"IF('[2]MONE(M)'!$AO330=\"\",\"\",'[2]MONE(M)'!$AO330)","v":19455222.59875967},{"$f":"IF('[3]MONE(M)'!$AO330=\"\",\"\",'[3]MONE(M)'!$AO330)","v":11560.495396319999},{"$f":"IF('[4]MONE(M)'!$AO330=\"\",\"\",'[4]MONE(M)'!$AO330)","v":182901.08086232658},{"$f":"+'[5]MONE(M)'!$AO330","v":271203.31880345516},{"$f":"IF('[6]MONE(M)'!$AO330=\"\",\"\",'[6]MONE(M)'!$AO330)","v":132476.07889500394},{"$f":"IF('[7]MONE(M)'!$AO330=\"\",\"\",'[7]MONE(M)'!$AO330)","v":875127.70564855007},{"$f":"IF('[8]MONE(M)'!$AO330=\"\",\"\",'[8]MONE(M)'!$AO330)","v":46158.925015069966},12.261449221573217,5.3974403026126216,6.4731928323540133,9.5376192107700764,19.239615368862715,12.062924875579117,8.9725716416110934,{"$f":"'[1]FISCAL(M)'!$K330","v":-3765.2952179425965},{"$f":"+'[1]REAL(A)'!$AO$36","v":259854.16415340832},-1.4490032246393807,{"$f":"IF('[1]FISCAL(M)'!$L330=\"\",\"\",'[1]FISCAL(M)'!$L330)","v":-5805.2952179425965},{"$f":"+'[1]REAL(A)'!$AP$36","v":317761.86015340831},-1.8269326643354651,138479.59762247658,{"$f":"'[1]Gráfico REM'!BG324","v":24331.487668501275},{"$f":"'[1]Gráfico REM'!BH324","v":106745.7849502092},{"$f":"'[1]Gráfico REM'!BI324","v":7402.3250037661128},7.5084075366247172,6.2540136747851527,8.1557399129379871,2.6328620822487769,210205.75544851655,{"$f":"'[1]Gráfico REM'!BK324","v":26634.016769211274},{"$f":"'[1]Gráfico REM'!BL324","v":152904.70996527915},{"$f":"'[1]Gráfico REM'!BM324","v":30667.028714026117},6.6446111137673958,6.5625615663282844,8.4010320567105232,-1.265852871224904]
[2016,"octubre",{"$f":"A324&\"-\"&B324","v":"2016-octubre"},{"$f":"IF('[1]REAL IPC(M)'!$AL331=\"\",\"\",+'[1]REAL IPC(M)'!$AL331)","v":2.0934404852164246},{"$f":"IF('[1]REAL IPC(M)'!$BE331=\"\",\"\",+'[1]REAL IPC(M)'!$BE331)","v":2.4688514031004472},{"$f":"IF('[1]REAL IPC(M)'!$AM331=\"\",\"\",+'[1]REAL IPC(M)'!$AM331)","v":1.9965907967383512},{"$f":"IF('[1]REAL IPC(M)'!$BI331=\"\",\"\",+'[1]REAL IPC(M)'!$BI331)","v":2.2167232589842323},{"$f":"IF('[1]REAL IMAE(M)'!BJ331=\"\",\"\",'[1]REAL IMAE(M)'!BJ331)","v":3.9323520843382864},{"$f":"IF('[1]REAL IMAE(M)'!BK331=\"\",\"\",'[1]REAL IMAE(M)'!BK331)","v":4.3393101146778301},{"$f":"IF('[1]REAL IMAE(M)'!BN331=\"\",\"\",'[1]REAL IMAE(M)'!BN331)","v":3.979044950925692},{"$f":"IF('[1]REAL IMAE(M)'!BO331=\"\",\"\",'[1]REAL IMAE(M)'!BO331)","v":4.370279754802997},{"$f":"IF('[1]EXT RIN(M)'!$K331=\"\",\"\",'[1]EXT RIN(M)'!$K331)","v":31248.119180965379},{"$f":"IF(B324<>\"diciembre\",\"\",L324)","v":""},{"$f":"IF('[1]EXT RIN(M)'!$L331=\"\",\"\",'[1]EXT RIN(M)'!$L331)","v":35189.64248780538},{"$f":"IF(B324<>\"diciembre\",\"\",N324)","v":""},{"$f":"IF('[1]MONE(M)CARD'!EG331=\"\",\"\",'[1]MONE(M)CARD'!EG331)","v":33085.447861083143},{"$f":"IF('[1]MONE(M)CARD'!EK331=\"\",\"\",'[1]MONE(M)CARD'!EK331)","v":52057.930645190878},{"$f":"IF('[1]MONE(M)CARD'!EP331=\"\",\"\",'[1]MONE(M)CARD'!EP331)","v":29244.081753201826},{"$f":"IF('[1]MONE(M)CARD'!ES331=\"\",\"\",'[1]MONE(M)CARD'!ES331)","v":9.4971899411149039},{"$f":"IF('[1]MONE(M)CARD'!EV331=\"\",\"\",'[1]MONE(M)CARD'!EV331)","v":6.0190238948079955},{"$f":"IF('[1]MONE(M)CARD'!EZ331=\"\",\"\",'[1]MONE(M)CARD'!EZ331)","v":5.5117722425365612},{"$f":"IF('[1]MONE(M)CAPARD'!FC331=\"\",\"\",'[1]MONE(M)CAPARD'!FC331)","v":41099.457598883149},{"$f":"IF('[1]MONE(M)CAPARD'!FG331=\"\",\"\",'[1]MONE(M)CAPARD'!FG331)","v":81713.075767370887},{"$f":"IF('[1]MONE(M)CAPARD'!FL331=\"\",\"\",'[1]MONE(M)CAPARD'!FL331)","v":29244.081753201812},{"$f":"IF('[1]MONE(M)CAPARD'!FO331=\"\",\"\",'[1]MONE(M)CAPARD'!FO331)","v":7.6925623136296473},{"$f":"IF('[1]MONE(M)CAPARD'!FR331=\"\",\"\",'[1]MONE(M)CAPARD'!FR331)","v":6.2299471561329867},{"$f":"IF('[1]MONE(M)CAPARD'!FV331=\"\",\"\",'[1]MONE(M)CAPARD'!FV331)","v":5.8060479320875436},{"$f":"IF('[1]MONE(M)CARD'!FV331=\"\",\"\",'[1]MONE(M)CARD'!FV331)","v":1549.4123187369055},{"$f":"IF('[1]MONE(M)CARD'!GD331=\"\",\"\",'[1]MONE(M)CARD'!GD331)","v":71.733868380662798},{"$f":"IF('[1]MONE(M)CARD'!GE331=\"\",\"\",'[1]MONE(M)CARD'!GE331)","v":9551.2454867017568},11.740082915662441,{"$f":"IF('[9]II.2.Balance OSD-Activos'!J189=\"\",\"\",'[9]II.2.Balance OSD-Activos'!J189)","v":214.28258758456897},{"$f":"IF('[9]II.2.Balance OSD-Activos'!N189=\"\",\"\",'[9]II.2.Balance OSD-Activos'!N189)","v":946.6127411260718},{"$f":"IF('[9]II.2.Balance OSD-Activos'!R189=\"\",\"\",'[9]II.2.Balance OSD-Activos'!R189)","v":48836.603553940411},{"$f":"IF('[9]II.2.Balance OSD-Activos'!S189=\"\",\"\",'[9]II.2.Balance OSD-Activos'!S189)","v":53116.752440257558},49050.886141524978,103114.25132290862,22.759096188004246,7.5164508166001065,-2.9413568403143908,7.4579062672301522,9.1696985056050728,8.2538571687523099,-0.31374148808620639,{"$f":"IF('[1]MONE(M)CAPARD'!GS331=\"\",\"\",'[1]MONE(M)CAPARD'!GS331)","v":19807.526248805221},{"$f":"IF('[1]MONE(M)CARD'!HA331=\"\",\"\",'[1]MONE(M)CAPARD'!HA331)","v":11269.356354811758},{"$f":"IF('[1]MONE(M)CAPARD'!HB331=\"\",\"\",'[1]MONE(M)CAPARD'!HB331)","v":8538.1698939934631},"n.d.",{"$f":"IF('[10]II.2.Balance OSD-Activos'!J189=\"\",\"\",'[10]II.2.Balance OSD-Activos'!J189)","v":2048.0417976045687},{"$f":"IF('[10]II.2.Balance OSD-Activos'!N189=\"\",\"\",'[10]II.2.Balance OSD-Activos'!N189)","v":1473.628288836072},{"$f":"IF('[10]II.2.Balance OSD-Activos'!R189=\"\",\"\",'[10]II.2.Balance OSD-Activos'!R189)","v":71379.740865430416},{"$f":"IF('[10]II.2.Balance OSD-Activos'!S189=\"\",\"\",'[10]II.2.Balance OSD-Activos'!S189)","v":74018.087619277547},73427.782663034988,148919.49857114861,13.022905638959358,6.9978993977041215,1.4513036124878864,6.8344940071940474,10.406577634710445,8.6057378048180144,-0.15249957968652694,{"$f":"IF('[1]MONE(M)CAPARD'!AS331=\"\",\"\",'[1]MONE(M)CAPARD'!AS331)","v":1.75},{"$f":"IF('[1]MONE(M)CAPARD'!AT331=\"\",\"\",'[1]MONE(M)CAPARD'!AT331)","v":"n.a."},{"$f":"IF('[1]MONE(M)CAPARD'!AU331=\"\",\"\",'[1]MONE(M)CAPARD'!AU331)","v":3},{"$f":"IF('[1]MONE(M)CAPARD'!AV331=\"\",\"\",'[1]MONE(M)CAPARD'!AV331)","v":5.5},{"$f":"IF('[1]MONE(M)CAPARD'!AW331=\"\",\"\",'[1]MONE(M)CAPARD'!AW331)","v":"n.a."},{"$f":"IF('[1]MONE(M)CAPARD'!AX331=\"\",\"\",'[1]MONE(M)CAPARD'!AX331)","v":5},{"$f":"IF('[1]MONE(M)CAPARD'!AY331=\"\",\"\",'[1]MONE(M)CAPARD'!AY331)","v":"n.a."},{"$f":"IF('[1]FISCAL(M)'!$K331=\"\",\"\",'[1]FISCAL(M)'!$K331)","v":-4121.1893925282857},{"$f":"IF('[1]FISCAL(M)'!$L331=\"\",\"\",'[1]FISCAL(M)'!$L331)","v":"n.d."},{"$f":"IF('[1]FISCAL(M)'!$AY331=\"\",\"\",'[1]FISCAL(M)'!$AY331)","v":118410.1573687912},{"$f":"IF('[1]FISCAL(M)'!$BI331=\"\",\"\",'[1]FISCAL(M)'!$BI331)","v":61838.260817046736},{"$f":"IF('[1]FISCAL(M)'!$BS331=\"\",\"\",'[1]FISCAL(M)'!$BS331)","v":56571.896551744474},{"$f":"IF('[1]FISCAL(M)'!$AZ331=\"\",\"\",'[1]FISCAL(M)'!$AZ331)","v":139821.70736879122},{"$f":"IF('[1]FISCAL(M)'!$BJ331=\"\",\"\",'[1]FISCAL(M)'!$BJ331)","v":66661.170817046746},{"$f":"IF('[1]FISCAL(M)'!$BT331=\"\",\"\",'[1]FISCAL(M)'!$BT331)","v":73160.536551744459},{"$f":"IF('[2]MONE(M)'!$AO331=\"\",\"\",'[2]MONE(M)'!$AO331)","v":19662465.46634306},{"$f":"IF('[3]MONE(M)'!$AO331=\"\",\"\",'[3]MONE(M)'!$AO331)","v":11676.699460260001},{"$f":"IF('[4]MONE(M)'!$AO331=\"\",\"\",'[4]MONE(M)'!$AO331)","v":184127.28641310491},{"$f":"+'[5]MONE(M)'!$AO331","v":273067.22407620843},{"$f":"IF('[6]MONE(M)'!$AO331=\"\",\"\",'[6]MONE(M)'!$AO331)","v":135866.25819322138},{"$f":"IF('[7]MONE(M)'!$AO331=\"\",\"\",'[7]MONE(M)'!$AO331)","v":890865.70091500995},{"$f":"IF('[8]MONE(M)'!$AO331=\"\",\"\",'[8]MONE(M)'!$AO331)","v":46617.08338145},12.366203730359704,5.7139193652277598,5.9676497113355431,9.2122935495182254,19.647657652296679,11.610170275434207,9.0785374290003329,{"$f":"'[1]FISCAL(M)'!$K331","v":-4121.1893925282857},{"$f":"+'[1]REAL(A)'!$AO$36","v":259854.16415340832},-1.5859624208659158,{"$f":"IF('[1]FISCAL(M)'!$L331=\"\",\"\",'[1]FISCAL(M)'!$L331)","v":"n.d."},{"$f":"+'[1]REAL(A)'!$AP$36","v":317761.86015340831},{"$f":"IF(OR(CP324=\"n.d.\",CP324=\"\",CQ324=\"\",CQ324=\"n.d.\"),\"n.d.\",(CP324/CQ324)*100)","v":"n.d."},139354.1329956502,{"$f":"'[1]Gráfico REM'!BG325","v":24086.241321922094},{"$f":"'[1]Gráfico REM'!BH325","v":107785.83874851727},{"$f":"'[1]Gráfico REM'!BI325","v":7482.0529252108327},7.0383616215980549,4.5258334283248658,7.8914800087461545,3.2661419436369687,211640.1385136802,{"$f":"'[1]Gráfico REM'!BK325","v":26352.149836792094},{"$f":"'[1]Gráfico REM'!BL325","v":154402.92212996728},{"$f":"'[1]Gráfico REM'!BM325","v":30885.066546920832},6.5354972966735092,4.7384266052795887,8.2471428109736511,8.8690718617057129E-2]
[2016,"noviembre","2016-noviembre",{"$f":"IF('[1]REAL IPC(M)'!$AL332=\"\",\"\",+'[1]REAL IPC(M)'!$AL332)","v":2.0804671235858718},{"$f":"IF('[1]REAL IPC(M)'!$BE332=\"\",\"\",+'[1]REAL IPC(M)'!$BE332)","v":2.4903471397255794},{"$f":"IF('[1]REAL IPC(M)'!$AM332=\"\",\"\",+'[1]REAL IPC(M)'!$AM332)","v":1.9723911051354071},{"$f":"IF('[1]REAL IPC(M)'!$BI332=\"\",\"\",+'[1]REAL IPC(M)'!$BI332)","v":2.2349458137477685},{"$f":"IF('[1]REAL IMAE(M)'!BJ332=\"\",\"\",'[1]REAL IMAE(M)'!BJ332)","v":4.2476759396333996},{"$f":"IF('[1]REAL IMAE(M)'!BK332=\"\",\"\",'[1]REAL IMAE(M)'!BK332)","v":4.2926504795033349},{"$f":"IF('[1]REAL IMAE(M)'!BN332=\"\",\"\",'[1]REAL IMAE(M)'!BN332)","v":4.1199842370334805},{"$f":"IF('[1]REAL IMAE(M)'!BO332=\"\",\"\",'[1]REAL IMAE(M)'!BO332)","v":4.3182799132626348},{"$f":"IF('[1]EXT RIN(M)'!$K332=\"\",\"\",'[1]EXT RIN(M)'!$K332)","v":31300.353677951352},"",{"$f":"IF('[1]EXT RIN(M)'!$L332=\"\",\"\",'[1]EXT RIN(M)'!$L332)","v":35447.294872941355},"",{"$f":"IF('[1]MONE(M)CARD'!EG332=\"\",\"\",'[1]MONE(M)CARD'!EG332)","v":33629.40643301604},{"$f":"IF('[1]MONE(M)CARD'!EK332=\"\",\"\",'[1]MONE(M)CARD'!EK332)","v":51794.929891580505},{"$f":"IF('[1]MONE(M)CARD'!EP332=\"\",\"\",'[1]MONE(M)CARD'!EP332)","v":29449.42512187954},{"$f":"IF('[1]MONE(M)CARD'!ES332=\"\",\"\",'[1]MONE(M)CARD'!ES332)","v":6.2998810979007835},{"$f":"IF('[1]MONE(M)CARD'!EV332=\"\",\"\",'[1]MONE(M)CARD'!EV332)","v":5.0603277580514749},{"$f":"IF('[1]MONE(M)CARD'!EZ332=\"\",\"\",'[1]MONE(M)CARD'!EZ332)","v":5.0491057438569964},{"$f":"IF('[1]MONE(M)CAPARD'!FC332=\"\",\"\",'[1]MONE(M)CAPARD'!FC332)","v":41858.814911236026},{"$f":"IF('[1]MONE(M)CAPARD'!FG332=\"\",\"\",'[1]MONE(M)CAPARD'!FG332)","v":81557.651785300492},{"$f":"IF('[1]MONE(M)CAPARD'!FL332=\"\",\"\",'[1]MONE(M)CAPARD'!FL332)","v":29449.425121879554},{"$f":"IF('[1]MONE(M)CAPARD'!FO332=\"\",\"\",'[1]MONE(M)CAPARD'!FO332)","v":5.3268163541390301},{"$f":"IF('[1]MONE(M)CAPARD'!FR332=\"\",\"\",'[1]MONE(M)CAPARD'!FR332)","v":5.5286302762393102},{"$f":"IF('[1]MONE(M)CAPARD'!FV332=\"\",\"\",'[1]MONE(M)CAPARD'!FV332)","v":5.4295940268837883},{"$f":"IF('[1]MONE(M)CARD'!FV332=\"\",\"\",'[1]MONE(M)CARD'!FV332)","v":1560.4078513122427},{"$f":"IF('[1]MONE(M)CARD'!GD332=\"\",\"\",'[1]MONE(M)CARD'!GD332)","v":73.486073758707875},{"$f":"IF('[1]MONE(M)CARD'!GE332=\"\",\"\",'[1]MONE(M)CARD'!GE332)","v":9393.1736815566346},7.368945954933781,{"$f":"IF('[9]II.2.Balance OSD-Activos'!J190=\"\",\"\",'[9]II.2.Balance OSD-Activos'!J190)","v":205.62117486195609},{"$f":"IF('[9]II.2.Balance OSD-Activos'!N190=\"\",\"\",'[9]II.2.Balance OSD-Activos'!N190)","v":994.6929430621617},{"$f":"IF('[9]II.2.Balance OSD-Activos'!R190=\"\",\"\",'[9]II.2.Balance OSD-Activos'!R190)","v":49534.392766618599},{"$f":"IF('[9]II.2.Balance OSD-Activos'!S190=\"\",\"\",'[9]II.2.Balance OSD-Activos'!S190)","v":53712.295412973661},49740.013941480553,{"$f":"IF(OR(AF325=\"\",AG325=\"\",AH325=\"\",AI325=\"\"),\"\",SUM(AF325:AI325))","v":104447.00229751639},4.6915982842836268,7.4948839607733353,-1.3273318044266458,7.5068335394024688,8.7647721660859759,8.0516436787838366,-0.20221348996847333,{"$f":"IF('[1]MONE(M)CAPARD'!GS332=\"\",\"\",'[1]MONE(M)CAPARD'!GS332)","v":19850.28744750753},{"$f":"IF('[1]MONE(M)CARD'!HA332=\"\",\"\",'[1]MONE(M)CAPARD'!HA332)","v":11103.362324876634},{"$f":"IF('[1]MONE(M)CAPARD'!HB332=\"\",\"\",'[1]MONE(M)CAPARD'!HB332)","v":8746.9251226308952},"n.d.",{"$f":"IF('[10]II.2.Balance OSD-Activos'!J190=\"\",\"\",'[10]II.2.Balance OSD-Activos'!J190)","v":2055.5287359819563},{"$f":"IF('[10]II.2.Balance OSD-Activos'!N190=\"\",\"\",'[10]II.2.Balance OSD-Activos'!N190)","v":1504.8448894321616},{"$f":"IF('[10]II.2.Balance OSD-Activos'!R190=\"\",\"\",'[10]II.2.Balance OSD-Activos'!R190)","v":72055.651533058583},{"$f":"IF('[10]II.2.Balance OSD-Activos'!S190=\"\",\"\",'[10]II.2.Balance OSD-Activos'!S190)","v":74793.838422133675},74111.180269040546,150409.86358060635,11.752396696321155,6.5296395977827215,1.159016720633943,6.3878023411071849,9.9480009343021472,8.1441458918899876,-0.46159191292802682,{"$f":"IF('[1]MONE(M)CAPARD'!AS332=\"\",\"\",'[1]MONE(M)CAPARD'!AS332)","v":1.75},{"$f":"IF('[1]MONE(M)CAPARD'!AT332=\"\",\"\",'[1]MONE(M)CAPARD'!AT332)","v":"n.a."},{"$f":"IF('[1]MONE(M)CAPARD'!AU332=\"\",\"\",'[1]MONE(M)CAPARD'!AU332)","v":3},{"$f":"IF('[1]MONE(M)CAPARD'!AV332=\"\",\"\",'[1]MONE(M)CAPARD'!AV332)","v":5.5},{"$f":"IF('[1]MONE(M)CAPARD'!AW332=\"\",\"\",'[1]MONE(M)CAPARD'!AW332)","v":"n.a."},{"$f":"IF('[1]MONE(M)CAPARD'!AX332=\"\",\"\",'[1]MONE(M)CAPARD'!AX332)","v":5.5},{"$f":"IF('[1]MONE(M)CAPARD'!AY332=\"\",\"\",'[1]MONE(M)CAPARD'!AY332)","v":"n.a."},{"$f":"IF('[1]FISCAL(M)'!$K332=\"\",\"\",'[1]FISCAL(M)'!$K332)","v":-4801.0742766071589},{"$f":"IF('[1]FISCAL(M)'!$L332=\"\",\"\",'[1]FISCAL(M)'!$L332)","v":"n.d."},{"$f":"IF('[1]FISCAL(M)'!$AY332=\"\",\"\",'[1]FISCAL(M)'!$AY332)","v":118005.83784966861},{"$f":"IF('[1]FISCAL(M)'!$BI332=\"\",\"\",'[1]FISCAL(M)'!$BI332)","v":61170.302847340718},{"$f":"IF('[1]FISCAL(M)'!$BS332=\"\",\"\",'[1]FISCAL(M)'!$BS332)","v":56835.535002327873},{"$f":"IF('[1]FISCAL(M)'!$AZ332=\"\",\"\",'[1]FISCAL(M)'!$AZ332)","v":139524.53784966859},{"$f":"IF('[1]FISCAL(M)'!$BJ332=\"\",\"\",'[1]FISCAL(M)'!$BJ332)","v":65952.612847340715},{"$f":"IF('[1]FISCAL(M)'!$BT332=\"\",\"\",'[1]FISCAL(M)'!$BT332)","v":73571.925002327887},{"$f":"IF('[2]MONE(M)'!$AO332=\"\",\"\",'[2]MONE(M)'!$AO332)","v":19855927.539295241},{"$f":"IF('[3]MONE(M)'!$AO332=\"\",\"\",'[3]MONE(M)'!$AO332)","v":11780.790109060001},{"$f":"IF('[4]MONE(M)'!$AO332=\"\",\"\",'[4]MONE(M)'!$AO332)","v":186134.81745132068},{"$f":"+'[5]MONE(M)'!$AO332","v":278443.6087394738},{"$f":"IF('[6]MONE(M)'!$AO332=\"\",\"\",'[6]MONE(M)'!$AO332)","v":138146.11530837673},{"$f":"IF('[7]MONE(M)'!$AO332=\"\",\"\",'[7]MONE(M)'!$AO332)","v":905248.39266111003},{"$f":"IF('[8]MONE(M)'!$AO332=\"\",\"\",'[8]MONE(M)'!$AO332)","v":46778.290020079992},12.903849542799261,5.4434743445559874,6.0260948660573632,9.7560538598383104,18.703604357627569,11.696356462873014,8.0382702238769976,{"$f":"'[1]FISCAL(M)'!$K332","v":-4801.0742766071589},{"$f":"+'[1]REAL(A)'!$AO$36","v":259854.16415340832},-1.8476033633129625,{"$f":"IF('[1]FISCAL(M)'!$L332=\"\",\"\",'[1]FISCAL(M)'!$L332)","v":"n.d."},{"$f":"+'[1]REAL(A)'!$AP$36","v":317761.86015340831},"n.d.",140506.54583130765,{"$f":"'[1]Gráfico REM'!BG326","v":23867.795834297485},{"$f":"'[1]Gráfico REM'!BH326","v":109038.69250300527},{"$f":"'[1]Gráfico REM'!BI326","v":7600.0574940049009},6.92673675894111,4.226182353453356,7.8029373855039719,3.2870163379744799,212612.97602008766,{"$f":"'[1]Gráfico REM'!BK326","v":26067.312822857486},{"$f":"'[1]Gráfico REM'!BL326","v":155816.98252308526},{"$f":"'[1]Gráfico REM'!BM326","v":30728.6806741449},5.9561820056469372,4.0047326842043152,7.8734796100232263,-1.3634640147822896]
[2016,"diciembre","2016-diciembre",{"$f":"IF('[1]REAL IPC(M)'!$AL333=\"\",\"\",+'[1]REAL IPC(M)'!$AL333)","v":2.2270768132157892},{"$f":"IF('[1]REAL IPC(M)'!$BE333=\"\",\"\",+'[1]REAL IPC(M)'!$BE333)","v":2.5131996230160158},{"$f":"IF('[1]REAL IPC(M)'!$AM333=\"\",\"\",+'[1]REAL IPC(M)'!$AM333)","v":2.125610753605045},{"$f":"IF('[1]REAL IPC(M)'!$BI333=\"\",\"\",+'[1]REAL IPC(M)'!$BI333)","v":2.2542978202545472},{"$f":"IF('[1]REAL IMAE(M)'!BJ333=\"\",\"\",'[1]REAL IMAE(M)'!BJ333)","v":4.993260680912881},{"$f":"IF('[1]REAL IMAE(M)'!BK333=\"\",\"\",'[1]REAL IMAE(M)'!BK333)","v":4.2431078255702914},{"$f":"IF('[1]REAL IMAE(M)'!BN333=\"\",\"\",'[1]REAL IMAE(M)'!BN333)","v":4.8092398498874589},{"$f":"IF('[1]REAL IMAE(M)'!BO333=\"\",\"\",'[1]REAL IMAE(M)'!BO333)","v":4.2629020299143949},{"$f":"IF('[1]EXT RIN(M)'!$K333=\"\",\"\",'[1]EXT RIN(M)'!$K333)","v":31978.994991460706},31978.994991460706,{"$f":"IF('[1]EXT RIN(M)'!$L333=\"\",\"\",'[1]EXT RIN(M)'!$L333)","v":36481.172465990705},36481.172465990705,{"$f":"IF('[1]MONE(M)CARD'!EG333=\"\",\"\",'[1]MONE(M)CARD'!EG333)","v":35021.747758784149},{"$f":"IF('[1]MONE(M)CARD'!EK333=\"\",\"\",'[1]MONE(M)CARD'!EK333)","v":52579.28482115818},{"$f":"IF('[1]MONE(M)CARD'!EP333=\"\",\"\",'[1]MONE(M)CARD'!EP333)","v":29407.897357512018},{"$f":"IF('[1]MONE(M)CARD'!ES333=\"\",\"\",'[1]MONE(M)CARD'!ES333)","v":5.7478619792485031},{"$f":"IF('[1]MONE(M)CARD'!EV333=\"\",\"\",'[1]MONE(M)CARD'!EV333)","v":5.3665287913775783},{"$f":"IF('[1]MONE(M)CARD'!EZ333=\"\",\"\",'[1]MONE(M)CARD'!EZ333)","v":5.2029850396500876},{"$f":"IF('[1]MONE(M)CAPARD'!FC333=\"\",\"\",'[1]MONE(M)CAPARD'!FC333)","v":43243.223112224136},{"$f":"IF('[1]MONE(M)CAPARD'!FG333=\"\",\"\",'[1]MONE(M)CAPARD'!FG333)","v":82474.036753168155},{"$f":"IF('[1]MONE(M)CAPARD'!FL333=\"\",\"\",'[1]MONE(M)CAPARD'!FL333)","v":29407.897357512004},{"$f":"IF('[1]MONE(M)CAPARD'!FO333=\"\",\"\",'[1]MONE(M)CAPARD'!FO333)","v":4.6219658846256451},{"$f":"IF('[1]MONE(M)CAPARD'!FR333=\"\",\"\",'[1]MONE(M)CAPARD'!FR333)","v":5.3522496635607819},{"$f":"IF('[1]MONE(M)CAPARD'!FV333=\"\",\"\",'[1]MONE(M)CAPARD'!FV333)","v":5.2315773930061926},{"$f":"IF('[1]MONE(M)CARD'!FV333=\"\",\"\",'[1]MONE(M)CARD'!FV333)","v":1622.7497677285387},{"$f":"IF('[1]MONE(M)CARD'!GD333=\"\",\"\",'[1]MONE(M)CARD'!GD333)","v":111.37005601944571},{"$f":"IF('[1]MONE(M)CARD'!GE333=\"\",\"\",'[1]MONE(M)CARD'!GE333)","v":8928.8032698109055},3.7765087246893314,{"$f":"IF('[9]II.2.Balance OSD-Activos'!J191=\"\",\"\",'[9]II.2.Balance OSD-Activos'!J191)","v":196.87840810774156},{"$f":"IF('[9]II.2.Balance OSD-Activos'!N191=\"\",\"\",'[9]II.2.Balance OSD-Activos'!N191)","v":966.85785402861779},{"$f":"IF('[9]II.2.Balance OSD-Activos'!R191=\"\",\"\",'[9]II.2.Balance OSD-Activos'!R191)","v":50052.031455895791},{"$f":"IF('[9]II.2.Balance OSD-Activos'!S191=\"\",\"\",'[9]II.2.Balance OSD-Activos'!S191)","v":54200.653585344604},50248.90986400353,{"$f":"IF(OR(AF326=\"\",AG326=\"\",AH326=\"\",AI326=\"\"),\"\",SUM(AF326:AI326))","v":105416.42130337676},1.4111837973521224,7.6190420458529307,-4.052473509883237,7.6449615104512869,9.4537191699775924,8.4325762942344173,0.38093261545058077,{"$f":"IF('[1]MONE(M)CAPARD'!GS333=\"\",\"\",'[1]MONE(M)CAPARD'!GS333)","v":20089.214314559558},{"$f":"IF('[1]MONE(M)CARD'!HA333=\"\",\"\",'[1]MONE(M)CAPARD'!HA333)","v":10588.321411980907},{"$f":"IF('[1]MONE(M)CAPARD'!HB333=\"\",\"\",'[1]MONE(M)CAPARD'!HB333)","v":9500.892902578651},"n.d.",{"$f":"IF('[10]II.2.Balance OSD-Activos'!J191=\"\",\"\",'[10]II.2.Balance OSD-Activos'!J191)","v":2103.8598426777417},{"$f":"IF('[10]II.2.Balance OSD-Activos'!N191=\"\",\"\",'[10]II.2.Balance OSD-Activos'!N191)","v":1497.0163018486178},{"$f":"IF('[10]II.2.Balance OSD-Activos'!R191=\"\",\"\",'[10]II.2.Balance OSD-Activos'!R191)","v":72431.154651075776},{"$f":"IF('[10]II.2.Balance OSD-Activos'!S191=\"\",\"\",'[10]II.2.Balance OSD-Activos'!S191)","v":75443.31022355461},74535.014493753522,151475.34101915674,15.808443446500785,6.950665162220071,0.14460719776439035,6.7135847434466323,10.368871755810382,8.5521925775377881,0.40804668564780044,{"$f":"IF('[1]MONE(M)CAPARD'!AS333=\"\",\"\",'[1]MONE(M)CAPARD'!AS333)","v":1.75},{"$f":"IF('[1]MONE(M)CAPARD'!AT333=\"\",\"\",'[1]MONE(M)CAPARD'!AT333)","v":"n.a."},{"$f":"IF('[1]MONE(M)CAPARD'!AU333=\"\",\"\",'[1]MONE(M)CAPARD'!AU333)","v":3},{"$f":"IF('[1]MONE(M)CAPARD'!AV333=\"\",\"\",'[1]MONE(M)CAPARD'!AV333)","v":5.5},{"$f":"IF('[1]MONE(M)CAPARD'!AW333=\"\",\"\",'[1]MONE(M)CAPARD'!AW333)","v":"n.a."},{"$f":"IF('[1]MONE(M)CAPARD'!AX333=\"\",\"\",'[1]MONE(M)CAPARD'!AX333)","v":5.5},{"$f":"IF('[1]MONE(M)CAPARD'!AY333=\"\",\"\",'[1]MONE(M)CAPARD'!AY333)","v":"n.a."},{"$f":"IF('[1]FISCAL(M)'!$K333=\"\",\"\",'[1]FISCAL(M)'!$K333)","v":-6594.787543339723},{"$f":"IF('[1]FISCAL(M)'!$L333=\"\",\"\",'[1]FISCAL(M)'!$L333)","v":-8796.7875433397239},{"$f":"IF('[1]FISCAL(M)'!$AY333=\"\",\"\",'[1]FISCAL(M)'!$AY333)","v":118318.56217053559},{"$f":"IF('[1]FISCAL(M)'!$BI333=\"\",\"\",'[1]FISCAL(M)'!$BI333)","v":60759.11472310462},{"$f":"IF('[1]FISCAL(M)'!$BS333=\"\",\"\",'[1]FISCAL(M)'!$BS333)","v":57559.447447430968},{"$f":"IF('[1]FISCAL(M)'!$AZ333=\"\",\"\",'[1]FISCAL(M)'!$AZ333)","v":139920.2021705356},{"$f":"IF('[1]FISCAL(M)'!$BJ333=\"\",\"\",'[1]FISCAL(M)'!$BJ333)","v":65458.864723104634},{"$f":"IF('[1]FISCAL(M)'!$BT333=\"\",\"\",'[1]FISCAL(M)'!$BT333)","v":74461.337447430968},{"$f":"IF('[2]MONE(M)'!$AO333=\"\",\"\",'[2]MONE(M)'!$AO333)","v":20012089.320434459},{"$f":"IF('[3]MONE(M)'!$AO333=\"\",\"\",'[3]MONE(M)'!$AO333)","v":11756.41982241},{"$f":"IF('[4]MONE(M)'!$AO333=\"\",\"\",'[4]MONE(M)'!$AO333)","v":189345.88553657505},{"$f":"+'[5]MONE(M)'!$AO333","v":286224.65673334652},{"$f":"IF('[6]MONE(M)'!$AO333=\"\",\"\",'[6]MONE(M)'!$AO333)","v":139683.29761648248},{"$f":"IF('[7]MONE(M)'!$AO333=\"\",\"\",'[7]MONE(M)'!$AO333)","v":912477.50303400005},{"$f":"IF('[8]MONE(M)'!$AO333=\"\",\"\",'[8]MONE(M)'!$AO333)","v":46861.199803229989},12.158417364699691,4.9681376664200805,6.6840962486078404,11.727420063249427,17.512010337992635,11.407213499098457,8.5815479642203698,{"$f":"'[1]FISCAL(M)'!$K333","v":-6594.787543339723},{"$f":"+'[1]REAL(A)'!$AO$36","v":259854.16415340832},-2.537880262502318,{"$f":"IF('[1]FISCAL(M)'!$L333=\"\",\"\",'[1]FISCAL(M)'!$L333)","v":-8796.7875433397239},{"$f":"+'[1]REAL(A)'!$AP$36","v":317761.86015340831},{"$f":"IF(OR(CP326=\"n.d.\",CP326=\"\",CQ326=\"\",CQ326=\"n.d.\"),\"\",(CP326/CQ326)*100)","v":-2.7683585245544671},141540.01705284492,{"$f":"'[1]Gráfico REM'!BG327","v":23770.021656174773},{"$f":"'[1]Gráfico REM'!BH327","v":109950.1661004231},{"$f":"'[1]Gráfico REM'!BI327","v":7819.8292962470496},7.3532767192027615,5.0593820181032756,8.0729813190955078,4.504015958466745,213850.3761058349,{"$f":"'[1]Gráfico REM'!BK327","v":25952.997185814773},{"$f":"'[1]Gráfico REM'!BL327","v":156811.36590365309},{"$f":"'[1]Gráfico REM'!BM327","v":31086.013016367055},6.3428654418892005,4.8014293470285851,8.2244605670024562,-1.115337816922668]
[2017,"enero","2017-enero",{"$f":"IF('[1]REAL IPC(M)'!$AL334=\"\",\"\",+'[1]REAL IPC(M)'!$AL334)","v":2.4136010975971844},{"$f":"IF('[1]REAL IPC(M)'!$BE334=\"\",\"\",+'[1]REAL IPC(M)'!$BE334)","v":2.5370888225606514},{"$f":"IF('[1]REAL IPC(M)'!$AM334=\"\",\"\",+'[1]REAL IPC(M)'!$AM334)","v":2.3083578647495218},{"$f":"IF('[1]REAL IPC(M)'!$BI334=\"\",\"\",+'[1]REAL IPC(M)'!$BI334)","v":2.2744234827422938},{"$f":"IF('[1]REAL IMAE(M)'!BJ334=\"\",\"\",'[1]REAL IMAE(M)'!BJ334)","v":5.0510863854050569},{"$f":"IF('[1]REAL IMAE(M)'!BK334=\"\",\"\",'[1]REAL IMAE(M)'!BK334)","v":4.1906147502758007},{"$f":"IF('[1]REAL IMAE(M)'!BN334=\"\",\"\",'[1]REAL IMAE(M)'!BN334)","v":4.5131319773327405},{"$f":"IF('[1]REAL IMAE(M)'!BO334=\"\",\"\",'[1]REAL IMAE(M)'!BO334)","v":4.2040220382602467},{"$f":"IF('[1]EXT RIN(M)'!$K334=\"\",\"\",'[1]EXT RIN(M)'!$K334)","v":33044.776185614988},null,{"$f":"IF('[1]EXT RIN(M)'!$L334=\"\",\"\",'[1]EXT RIN(M)'!$L334)","v":37365.651209194984},{"$f":"IF(B327<>\"diciembre\",\"\",N327)","v":""},{"$f":"IF('[1]MONE(M)CARD'!EG334=\"\",\"\",'[1]MONE(M)CARD'!EG334)","v":34621.894627511487},{"$f":"IF('[1]MONE(M)CARD'!EK334=\"\",\"\",'[1]MONE(M)CARD'!EK334)","v":52453.63617047685},{"$f":"IF('[1]MONE(M)CARD'!EP334=\"\",\"\",'[1]MONE(M)CARD'!EP334)","v":29886.596062956174},{"$f":"IF('[1]MONE(M)CARD'!ES334=\"\",\"\",'[1]MONE(M)CARD'!ES334)","v":6.5205544324489662},{"$f":"IF('[1]MONE(M)CARD'!EV334=\"\",\"\",'[1]MONE(M)CARD'!EV334)","v":5.8105831601606761},{"$f":"IF('[1]MONE(M)CARD'!EZ334=\"\",\"\",'[1]MONE(M)CARD'!EZ334)","v":6.0277385071083378},{"$f":"IF('[1]MONE(M)CAPARD'!FC334=\"\",\"\",'[1]MONE(M)CAPARD'!FC334)","v":42742.888928811488},{"$f":"IF('[1]MONE(M)CAPARD'!FG334=\"\",\"\",'[1]MONE(M)CAPARD'!FG334)","v":82696.897745516864},{"$f":"IF('[1]MONE(M)CAPARD'!FL334=\"\",\"\",'[1]MONE(M)CAPARD'!FL334)","v":29886.596062956174},{"$f":"IF('[1]MONE(M)CAPARD'!FO334=\"\",\"\",'[1]MONE(M)CAPARD'!FO334)","v":5.0426120979154776},{"$f":"IF('[1]MONE(M)CAPARD'!FR334=\"\",\"\",'[1]MONE(M)CAPARD'!FR334)","v":5.4337692352888656},{"$f":"IF('[1]MONE(M)CAPARD'!FV334=\"\",\"\",'[1]MONE(M)CAPARD'!FV334)","v":5.6685608701984691},{"$f":"IF('[1]MONE(M)CARD'!FV334=\"\",\"\",'[1]MONE(M)CARD'!FV334)","v":1632.3338248399382},{"$f":"IF('[1]MONE(M)CARD'!GD334=\"\",\"\",'[1]MONE(M)CARD'!GD334)","v":83.881209104167795},{"$f":"IF('[1]MONE(M)CARD'!GE334=\"\",\"\",'[1]MONE(M)CARD'!GE334)","v":9825.8575882210989},21.874752688303811,{"$f":"IF('[9]II.2.Balance OSD-Activos'!J192=\"\",\"\",'[9]II.2.Balance OSD-Activos'!J192)","v":201.63967569520116},{"$f":"IF('[9]II.2.Balance OSD-Activos'!N192=\"\",\"\",'[9]II.2.Balance OSD-Activos'!N192)","v":1017.2983728446846},{"$f":"IF('[9]II.2.Balance OSD-Activos'!R192=\"\",\"\",'[9]II.2.Balance OSD-Activos'!R192)","v":50210.043035145012},{"$f":"IF('[9]II.2.Balance OSD-Activos'!S192=\"\",\"\",'[9]II.2.Balance OSD-Activos'!S192)","v":54370.14821352328},50411.682710840214,{"$f":"IF(OR(AF327=\"\",AG327=\"\",AH327=\"\",AI327=\"\"),\"\",SUM(AF327:AI327))","v":105799.12929720819},{"$f":"IF(OR(AF327=\"\",AF315=\"\"),\"\",((AF327/AF315)-1)*100)","v":-1.782534097623556},{"$f":"IF(OR(AJ327=\"\",AJ315=\"\"),\"\",((AJ327/AJ315)-1)*100)","v":7.8599352799967326},{"$f":"IF(OR(AG327=\"\",AG315=\"\"),\"\",((AG327/AG315)-1)*100)","v":1.9753083806048233},{"$f":"IF(OR(AH327=\"\",AH315=\"\"),\"\",((AH327/AH315)-1)*100)","v":7.902477128351082},{"$f":"IF(OR(AI327=\"\",AI315=\"\"),\"\",((AI327/AI315)-1)*100)","v":9.7014988233495636},{"$f":"IF(OR(AK327=\"\",AK315=\"\"),\"\",((AK327/AK315)-1)*100)","v":8.7376643826588172},{"$f":"IF(OR(AQ327=\"\",AQ326=\"\"),\"\",AQ327-AQ326)","v":0.30508808842439983},{"$f":"IF('[1]MONE(M)CAPARD'!GS334=\"\",\"\",'[1]MONE(M)CAPARD'!GS334)","v":20288.595434045623},{"$f":"IF('[1]MONE(M)CARD'!HA334=\"\",\"\",'[1]MONE(M)CAPARD'!HA334)","v":11619.759350361099},{"$f":"IF('[1]MONE(M)CAPARD'!HB334=\"\",\"\",'[1]MONE(M)CAPARD'!HB334)","v":8668.8360836845241},"n.d.",{"$f":"IF('[10]II.2.Balance OSD-Activos'!J192=\"\",\"\",'[10]II.2.Balance OSD-Activos'!J192)","v":2111.9245297452017},{"$f":"IF('[10]II.2.Balance OSD-Activos'!N192=\"\",\"\",'[10]II.2.Balance OSD-Activos'!N192)","v":1520.5508507546847},{"$f":"IF('[10]II.2.Balance OSD-Activos'!R192=\"\",\"\",'[10]II.2.Balance OSD-Activos'!R192)","v":72679.063191485009},{"$f":"IF('[10]II.2.Balance OSD-Activos'!S192=\"\",\"\",'[10]II.2.Balance OSD-Activos'!S192)","v":75757.929208043293},74790.987721230209,{"$f":"IF(OR(AW327=\"\",AX327=\"\",AY327=\"\",AZ327=\"\"),\"\",SUM(AW327:AZ327))","v":152069.46778002818},{"$f":"IF(OR(AW327=\"\",AW315=\"\"),\"\",((AW327/AW315)-1)*100)","v":13.361989975620903},{"$f":"IF(OR(BA327=\"\",BA315=\"\"),\"\",((BA327/BA315)-1)*100)","v":6.9756563735202448},{"$f":"IF(OR(AX327=\"\",AX315=\"\"),\"\",((AX327/AX315)-1)*100)","v":3.7477115016559148},{"$f":"IF(OR(AY327=\"\",AY315=\"\"),\"\",((AY327/AY315)-1)*100)","v":6.8008216031765434},{"$f":"IF(OR(AZ327=\"\",AZ315=\"\"),\"\",((AZ327/AZ315)-1)*100)","v":10.469158723820748},{"$f":"IF(OR(BB327=\"\",BB315=\"\"),\"\",((BB327/BB315)-1)*100)","v":8.6536432078704308},{"$f":"IF(OR(BH327=\"\",BH326=\"\"),\"\",BH327-BH326)","v":0.10145063033264279},{"$f":"IF('[1]MONE(M)CAPARD'!AS334=\"\",\"\",'[1]MONE(M)CAPARD'!AS334)","v":1.75},{"$f":"IF('[1]MONE(M)CAPARD'!AT334=\"\",\"\",'[1]MONE(M)CAPARD'!AT334)","v":"n.a."},{"$f":"IF('[1]MONE(M)CAPARD'!AU334=\"\",\"\",'[1]MONE(M)CAPARD'!AU334)","v":3},{"$f":"IF('[1]MONE(M)CAPARD'!AV334=\"\",\"\",'[1]MONE(M)CAPARD'!AV334)","v":5.5},{"$f":"IF('[1]MONE(M)CAPARD'!AW334=\"\",\"\",'[1]MONE(M)CAPARD'!AW334)","v":"n.a."},{"$f":"IF('[1]MONE(M)CAPARD'!AX334=\"\",\"\",'[1]MONE(M)CAPARD'!AX334)","v":5.5},{"$f":"IF('[1]MONE(M)CAPARD'!AY334=\"\",\"\",'[1]MONE(M)CAPARD'!AY334)","v":"n.a."},{"$f":"IF('[1]FISCAL(M)'!$K334=\"\",\"\",'[1]FISCAL(M)'!$K334)","v":-156.29895187211162},{"$f":"IF('[1]FISCAL(M)'!$L334=\"\",\"\",'[1]FISCAL(M)'!$L334)","v":"n.d."},{"$f":"IF('[1]FISCAL(M)'!$AY334=\"\",\"\",'[1]FISCAL(M)'!$AY334)","v":121178.29187048788},{"$f":"IF('[1]FISCAL(M)'!$BI334=\"\",\"\",'[1]FISCAL(M)'!$BI334)","v":61920.218788729937},{"$f":"IF('[1]FISCAL(M)'!$BS334=\"\",\"\",'[1]FISCAL(M)'!$BS334)","v":59258.073081757946},{"$f":"IF('[1]FISCAL(M)'!$AZ334=\"\",\"\",'[1]FISCAL(M)'!$AZ334)","v":143030.75187048787},{"$f":"IF('[1]FISCAL(M)'!$BJ334=\"\",\"\",'[1]FISCAL(M)'!$BJ334)","v":66594.458788729928},{"$f":"IF('[1]FISCAL(M)'!$BT334=\"\",\"\",'[1]FISCAL(M)'!$BT334)","v":76436.293081757947},{"$f":"IF('[2]MONE(M)'!$AO334=\"\",\"\",'[2]MONE(M)'!$AO334)","v":20175859.80472406},{"$f":"IF('[3]MONE(M)'!$AO334=\"\",\"\",'[3]MONE(M)'!$AO334)","v":11870.910147530001},{"$f":"IF('[4]MONE(M)'!$AO334=\"\",\"\",'[4]MONE(M)'!$AO334)","v":189078.5473289947},{"$f":"+'[5]MONE(M)'!$AO334","v":287906.55593196064},{"$f":"IF('[6]MONE(M)'!$AO334=\"\",\"\",'[6]MONE(M)'!$AO334)","v":141163.63279584007},{"$f":"IF('[7]MONE(M)'!$AO334=\"\",\"\",'[7]MONE(M)'!$AO334)","v":913799.20926712011},{"$f":"IF('[8]MONE(M)'!$AO334=\"\",\"\",'[8]MONE(M)'!$AO334)","v":47099.756926850008},12.556381352263069,5.3237769079120145,6.1780908224726483,11.708501814766903,18.663532732878551,11.321829171175658,8.2779128203285488,{"$f":"'[1]FISCAL(M)'!$K334","v":-156.29895187211162},{"$f":"+'[1]REAL(A)'!$AO$37","v":274097.38374315755},{"$f":"IF(OR(CM327=\"n.d.\",CM327=\"\",CN327=\"\",CN327=\"n.d.\"),\"\",(CM327/CN327)*100)","v":-5.7023146203603048E-2},{"$f":"IF('[1]FISCAL(M)'!$L334=\"\",\"\",'[1]FISCAL(M)'!$L334)","v":"n.d."},{"$f":"+'[1]REAL(A)'!$AP$37","v":336300.10894762212},"n.d.",{"$f":"+IF(OR(CT327=\"\",+CU327=\"\",+CV327=\"\"),\"\",(CT327+CU327+CV327))","v":142879.75886963404},{"$f":"'[1]Gráfico REM'!BG328","v":24672.607805914595},{"$f":"'[1]Gráfico REM'!BH328","v":110442.74975766535},{"$f":"'[1]Gráfico REM'!BI328","v":7764.4013060540765},{"$f":"IFERROR(+((CS327/CS315)-1)*100,\"\")","v":7.8918550711332358},{"$f":"IFERROR(+((CT327/CT315)-1)*100,\"\")","v":6.4188564628959277},{"$f":"IFERROR(+((CU327/CU315)-1)*100,\"\")","v":8.4565080280903935},{"$f":"IFERROR(+((CV327/CV315)-1)*100,\"\")","v":4.7420991113391819},{"$f":"+IF(OR(DB327=\"\",+DC327=\"\",+DD327=\"\"),\"\",(DB327+DC327+DD327))","v":214992.96813214404},{"$f":"'[1]Gráfico REM'!BK328","v":26884.039198164595},{"$f":"'[1]Gráfico REM'!BL328","v":157542.50668451536},{"$f":"'[1]Gráfico REM'!BM328","v":30566.422249464078},{"$f":"IFERROR(+((DA327/DA315)-1)*100,\"\")","v":6.624014217720875},{"$f":"IFERROR(+((DB327/DB315)-1)*100,\"\")","v":5.8355272792212309},{"$f":"IFERROR(+((DC327/DC315)-1)*100,\"\")","v":8.4030525335359485},{"$f":"IFERROR(+((DD327/DD315)-1)*100,\"\")","v":-1.093933549441406}]
[2017,"febrero","2017-febrero",{"$f":"IF('[1]REAL IPC(M)'!$AL335=\"\",\"\",+'[1]REAL IPC(M)'!$AL335)","v":2.8975743366056905},{"$f":"IF('[1]REAL IPC(M)'!$BE335=\"\",\"\",+'[1]REAL IPC(M)'!$BE335)","v":2.5616771031291563},{"$f":"IF('[1]REAL IPC(M)'!$AM335=\"\",\"\",+'[1]REAL IPC(M)'!$AM335)","v":2.7518788808523542},{"$f":"IF('[1]REAL IPC(M)'!$BI335=\"\",\"\",+'[1]REAL IPC(M)'!$BI335)","v":2.2949581277359687},{"$f":"IF('[1]REAL IMAE(M)'!BJ335=\"\",\"\",'[1]REAL IMAE(M)'!BJ335)","v":4.7988773759781722},{"$f":"IF('[1]REAL IMAE(M)'!BK335=\"\",\"\",'[1]REAL IMAE(M)'!BK335)","v":4.1351511649424522},{"$f":"IF('[1]REAL IMAE(M)'!BN335=\"\",\"\",'[1]REAL IMAE(M)'!BN335)","v":4.0106574573551601},{"$f":"IF('[1]REAL IMAE(M)'!BO335=\"\",\"\",'[1]REAL IMAE(M)'!BO335)","v":4.1415544185331887},{"$f":"IF('[1]EXT RIN(M)'!$K335=\"\",\"\",'[1]EXT RIN(M)'!$K335)","v":33412.314968429993},null,{"$f":"IF('[1]EXT RIN(M)'!$L335=\"\",\"\",'[1]EXT RIN(M)'!$L335)","v":37634.337514009996},"",{"$f":"IF('[1]MONE(M)CARD'!EG335=\"\",\"\",'[1]MONE(M)CARD'!EG335)","v":34692.093797233494},{"$f":"IF('[1]MONE(M)CARD'!EK335=\"\",\"\",'[1]MONE(M)CARD'!EK335)","v":53224.946331462226},{"$f":"IF('[1]MONE(M)CARD'!EP335=\"\",\"\",'[1]MONE(M)CARD'!EP335)","v":30516.833696575122},{"$f":"IF('[1]MONE(M)CARD'!ES335=\"\",\"\",'[1]MONE(M)CARD'!ES335)","v":5.9207144924358079},{"$f":"IF('[1]MONE(M)CARD'!EV335=\"\",\"\",'[1]MONE(M)CARD'!EV335)","v":5.7368547718775531},{"$f":"IF('[1]MONE(M)CARD'!EZ335=\"\",\"\",'[1]MONE(M)CARD'!EZ335)","v":6.1423246001734766},{"$f":"IF('[1]MONE(M)CAPARD'!FC335=\"\",\"\",'[1]MONE(M)CAPARD'!FC335)","v":42750.312507943498},{"$f":"IF('[1]MONE(M)CAPARD'!FG335=\"\",\"\",'[1]MONE(M)CAPARD'!FG335)","v":83766.388261192231},{"$f":"IF('[1]MONE(M)CAPARD'!FL335=\"\",\"\",'[1]MONE(M)CAPARD'!FL335)","v":30516.833696575137},{"$f":"IF('[1]MONE(M)CAPARD'!FO335=\"\",\"\",'[1]MONE(M)CAPARD'!FO335)","v":4.645372624093258},{"$f":"IF('[1]MONE(M)CAPARD'!FR335=\"\",\"\",'[1]MONE(M)CAPARD'!FR335)","v":5.5679832100632654},{"$f":"IF('[1]MONE(M)CAPARD'!FV335=\"\",\"\",'[1]MONE(M)CAPARD'!FV335)","v":5.9054864834463983},{"$f":"IF('[1]MONE(M)CARD'!FV335=\"\",\"\",'[1]MONE(M)CARD'!FV335)","v":1593.1131759978562},{"$f":"IF('[1]MONE(M)CARD'!GD335=\"\",\"\",'[1]MONE(M)CARD'!GD335)","v":89.611215369437545},{"$f":"IF('[1]MONE(M)CARD'!GE335=\"\",\"\",'[1]MONE(M)CARD'!GE335)","v":9948.9965844044364},14.758192411143645,{"$f":"IF('[9]II.2.Balance OSD-Activos'!J193=\"\",\"\",'[9]II.2.Balance OSD-Activos'!J193)","v":309.2152534492609},{"$f":"IF('[9]II.2.Balance OSD-Activos'!N193=\"\",\"\",'[9]II.2.Balance OSD-Activos'!N193)","v":980.54215442991017},{"$f":"IF('[9]II.2.Balance OSD-Activos'!R193=\"\",\"\",'[9]II.2.Balance OSD-Activos'!R193)","v":50387.398325352682},{"$f":"IF('[9]II.2.Balance OSD-Activos'!S193=\"\",\"\",'[9]II.2.Balance OSD-Activos'!S193)","v":54575.010506214079},50696.613578801946,{"$f":"IF(OR(AF328=\"\",AG328=\"\",AH328=\"\",AI328=\"\"),\"\",SUM(AF328:AI328))","v":106252.16623944594},{"$f":"IF(OR(AF328=\"\",AF316=\"\"),\"\",((AF328/AF316)-1)*100)","v":43.237307270813517},{"$f":"IF(OR(AJ328=\"\",AJ316=\"\"),\"\",((AJ328/AJ316)-1)*100)","v":7.9732776239947567},{"$f":"IF(OR(AG328=\"\",AG316=\"\"),\"\",((AG328/AG316)-1)*100)","v":-0.75122055994983894},{"$f":"IF(OR(AH328=\"\",AH316=\"\"),\"\",((AH328/AH316)-1)*100)","v":7.8103947586333655},{"$f":"IF(OR(AI328=\"\",AI316=\"\"),\"\",((AI328/AI316)-1)*100)","v":9.4379299956401717},{"$f":"IF(OR(AK328=\"\",AK316=\"\"),\"\",((AK328/AK316)-1)*100)","v":8.631910653210074},{"$f":"IF(OR(AQ328=\"\",AQ327=\"\"),\"\",AQ328-AQ327)","v":-0.10575372944874317},{"$f":"IF('[1]MONE(M)CAPARD'!GS335=\"\",\"\",'[1]MONE(M)CAPARD'!GS335)","v":20087.246931842106},{"$f":"IF('[1]MONE(M)CARD'!HA335=\"\",\"\",'[1]MONE(M)CAPARD'!HA335)","v":11738.482711894438},{"$f":"IF('[1]MONE(M)CAPARD'!HB335=\"\",\"\",'[1]MONE(M)CAPARD'!HB335)","v":8348.7642199476686},"n.d.",{"$f":"IF('[10]II.2.Balance OSD-Activos'!J193=\"\",\"\",'[10]II.2.Balance OSD-Activos'!J193)","v":2221.4049071192608},{"$f":"IF('[10]II.2.Balance OSD-Activos'!N193=\"\",\"\",'[10]II.2.Balance OSD-Activos'!N193)","v":1464.48253300991},{"$f":"IF('[10]II.2.Balance OSD-Activos'!R193=\"\",\"\",'[10]II.2.Balance OSD-Activos'!R193)","v":72970.245104172674},{"$f":"IF('[10]II.2.Balance OSD-Activos'!S193=\"\",\"\",'[10]II.2.Balance OSD-Activos'!S193)","v":76123.429359114074},75191.650011291931,{"$f":"IF(OR(AW328=\"\",AX328=\"\",AY328=\"\",AZ328=\"\"),\"\",SUM(AW328:AZ328))","v":152779.56190341592},{"$f":"IF(OR(AW328=\"\",AW316=\"\"),\"\",((AW328/AW316)-1)*100)","v":21.55803787405366},{"$f":"IF(OR(BA328=\"\",BA316=\"\"),\"\",((BA328/BA316)-1)*100)","v":7.2602026192919},{"$f":"IF(OR(AX328=\"\",AX316=\"\"),\"\",((AX328/AX316)-1)*100)","v":1.4769176931009209},{"$f":"IF(OR(AY328=\"\",AY316=\"\"),\"\",((AY328/AY316)-1)*100)","v":6.8775058117366505},{"$f":"IF(OR(AZ328=\"\",AZ316=\"\"),\"\",((AZ328/AZ316)-1)*100)","v":10.255692795246141},{"$f":"IF(OR(BB328=\"\",BB316=\"\"),\"\",((BB328/BB316)-1)*100)","v":8.6719192392566757},{"$f":"IF(OR(BH328=\"\",BH327=\"\"),\"\",BH328-BH327)","v":1.8276031386244895E-2},{"$f":"IF('[1]MONE(M)CAPARD'!AS335=\"\",\"\",'[1]MONE(M)CAPARD'!AS335)","v":1.75},{"$f":"IF('[1]MONE(M)CAPARD'!AT335=\"\",\"\",'[1]MONE(M)CAPARD'!AT335)","v":"n.a."},{"$f":"IF('[1]MONE(M)CAPARD'!AU335=\"\",\"\",'[1]MONE(M)CAPARD'!AU335)","v":3},{"$f":"IF('[1]MONE(M)CAPARD'!AV335=\"\",\"\",'[1]MONE(M)CAPARD'!AV335)","v":5.5},{"$f":"IF('[1]MONE(M)CAPARD'!AW335=\"\",\"\",'[1]MONE(M)CAPARD'!AW335)","v":"n.a."},{"$f":"IF('[1]MONE(M)CAPARD'!AX335=\"\",\"\",'[1]MONE(M)CAPARD'!AX335)","v":5.5},{"$f":"IF('[1]MONE(M)CAPARD'!AY335=\"\",\"\",'[1]MONE(M)CAPARD'!AY335)","v":"n.a."},{"$f":"IF('[1]FISCAL(M)'!$K335=\"\",\"\",'[1]FISCAL(M)'!$K335)","v":-743.21264408908723},{"$f":"IF('[1]FISCAL(M)'!$L335=\"\",\"\",'[1]FISCAL(M)'!$L335)","v":"n.d."},{"$f":"IF('[1]FISCAL(M)'!$AY335=\"\",\"\",'[1]FISCAL(M)'!$AY335)","v":121652.35837163788},{"$f":"IF('[1]FISCAL(M)'!$BI335=\"\",\"\",'[1]FISCAL(M)'!$BI335)","v":61896.956309231864},{"$f":"IF('[1]FISCAL(M)'!$BS335=\"\",\"\",'[1]FISCAL(M)'!$BS335)","v":59755.402062406007},{"$f":"IF('[1]FISCAL(M)'!$AZ335=\"\",\"\",'[1]FISCAL(M)'!$AZ335)","v":143494.98837163788},{"$f":"IF('[1]FISCAL(M)'!$BJ335=\"\",\"\",'[1]FISCAL(M)'!$BJ335)","v":66595.176309231858},{"$f":"IF('[1]FISCAL(M)'!$BT335=\"\",\"\",'[1]FISCAL(M)'!$BT335)","v":76899.81206240601},{"$f":"IF('[2]MONE(M)'!$AO335=\"\",\"\",'[2]MONE(M)'!$AO335)","v":20422912.976188079},{"$f":"IF('[3]MONE(M)'!$AO335=\"\",\"\",'[3]MONE(M)'!$AO335)","v":11928.326921799999},{"$f":"IF('[4]MONE(M)'!$AO335=\"\",\"\",'[4]MONE(M)'!$AO335)","v":189809.82006513659},{"$f":"+'[5]MONE(M)'!$AO335","v":287165.88838227803},{"$f":"IF('[6]MONE(M)'!$AO335=\"\",\"\",'[6]MONE(M)'!$AO335)","v":141120.77626893445},{"$f":"IF('[7]MONE(M)'!$AO335=\"\",\"\",'[7]MONE(M)'!$AO335)","v":922055.72451972007},{"$f":"IF('[8]MONE(M)'!$AO335=\"\",\"\",'[8]MONE(M)'!$AO335)","v":47395.471402990006},13.299844016974793,5.909280869761413,6.1751688690227402,9.8541488446404415,17.390242563248549,11.829734286162896,8.6213152908029667,{"$f":"'[1]FISCAL(M)'!$K335","v":-743.21264408908723},{"$f":"+'[1]REAL(A)'!$AO$37","v":274097.38374315755},-0.27114912004614872,{"$f":"IF('[1]FISCAL(M)'!$L335=\"\",\"\",'[1]FISCAL(M)'!$L335)","v":"n.d."},{"$f":"+'[1]REAL(A)'!$AP$37","v":336300.10894762212},"n.d.",143507.88884482204,{"$f":"'[1]Gráfico REM'!BG329","v":24696.260268247526},{"$f":"'[1]Gráfico REM'!BH329","v":111014.56934287587},{"$f":"'[1]Gráfico REM'!BI329","v":7797.0592336986483},7.3800463685167461,3.9799474876434315,8.3552177503798841,4.805325696242857,215888.00137707207,{"$f":"'[1]Gráfico REM'!BK329","v":26948.035164477526},{"$f":"'[1]Gráfico REM'!BL329","v":158410.04074586587},{"$f":"'[1]Gráfico REM'!BM329","v":30529.925466728655},6.3258256882352093,3.7850846795538295,8.4346959847684477,-1.4865293306887017]
[2017,"marzo","2017-marzo",{"$f":"IF('[1]REAL IPC(M)'!$AL336=\"\",\"\",+'[1]REAL IPC(M)'!$AL336)","v":2.9303632025166282},{"$f":"IF('[1]REAL IPC(M)'!$BE336=\"\",\"\",+'[1]REAL IPC(M)'!$BE336)","v":2.5866249939120234},{"$f":"IF('[1]REAL IPC(M)'!$AM336=\"\",\"\",+'[1]REAL IPC(M)'!$AM336)","v":2.7253441140574486},{"$f":"IF('[1]REAL IPC(M)'!$BI336=\"\",\"\",+'[1]REAL IPC(M)'!$BI336)","v":2.3155451884489864},{"$f":"IF('[1]REAL IMAE(M)'!BJ336=\"\",\"\",'[1]REAL IMAE(M)'!BJ336)","v":4.3046404735502364},{"$f":"IF('[1]REAL IMAE(M)'!BK336=\"\",\"\",'[1]REAL IMAE(M)'!BK336)","v":4.0767500115092892},{"$f":"IF('[1]REAL IMAE(M)'!BN336=\"\",\"\",'[1]REAL IMAE(M)'!BN336)","v":4.3050505748757129},{"$f":"IF('[1]REAL IMAE(M)'!BO336=\"\",\"\",'[1]REAL IMAE(M)'!BO336)","v":4.0754351288812218},{"$f":"IF('[1]EXT RIN(M)'!$K336=\"\",\"\",'[1]EXT RIN(M)'!$K336)","v":33175.574172114153},null,{"$f":"IF('[1]EXT RIN(M)'!$L336=\"\",\"\",'[1]EXT RIN(M)'!$L336)","v":36932.662457524151},{"$f":"IF(B329<>\"diciembre\",\"\",N329)","v":""},{"$f":"IF('[1]MONE(M)CARD'!EG336=\"\",\"\",'[1]MONE(M)CARD'!EG336)","v":34429.18329413826},{"$f":"IF('[1]MONE(M)CARD'!EK336=\"\",\"\",'[1]MONE(M)CARD'!EK336)","v":54142.6862944975},{"$f":"IF('[1]MONE(M)CARD'!EP336=\"\",\"\",'[1]MONE(M)CARD'!EP336)","v":30801.740346572871},{"$f":"IF('[1]MONE(M)CARD'!ES336=\"\",\"\",'[1]MONE(M)CARD'!ES336)","v":4.4649004654523372},{"$f":"IF('[1]MONE(M)CARD'!EV336=\"\",\"\",'[1]MONE(M)CARD'!EV336)","v":5.7975720501239447},{"$f":"IF('[1]MONE(M)CARD'!EZ336=\"\",\"\",'[1]MONE(M)CARD'!EZ336)","v":5.9716697064508439},{"$f":"IF('[1]MONE(M)CAPARD'!FC336=\"\",\"\",'[1]MONE(M)CAPARD'!FC336)","v":42423.052709548268},{"$f":"IF('[1]MONE(M)CAPARD'!FG336=\"\",\"\",'[1]MONE(M)CAPARD'!FG336)","v":84845.381609077493},{"$f":"IF('[1]MONE(M)CAPARD'!FL336=\"\",\"\",'[1]MONE(M)CAPARD'!FL336)","v":30801.740346572871},{"$f":"IF('[1]MONE(M)CAPARD'!FO336=\"\",\"\",'[1]MONE(M)CAPARD'!FO336)","v":3.4380240779529281},{"$f":"IF('[1]MONE(M)CAPARD'!FR336=\"\",\"\",'[1]MONE(M)CAPARD'!FR336)","v":5.4765271527983606},{"$f":"IF('[1]MONE(M)CAPARD'!FV336=\"\",\"\",'[1]MONE(M)CAPARD'!FV336)","v":5.6697157368530426},{"$f":"IF('[1]MONE(M)CARD'!FV336=\"\",\"\",'[1]MONE(M)CARD'!FV336)","v":1545.7958652720538},{"$f":"IF('[1]MONE(M)CARD'!GD336=\"\",\"\",'[1]MONE(M)CARD'!GD336)","v":72.589558218607522},{"$f":"IF('[1]MONE(M)CARD'!GE336=\"\",\"\",'[1]MONE(M)CARD'!GE336)","v":10334.146601576556},17.675324216818055,{"$f":"IF('[9]II.2.Balance OSD-Activos'!J194=\"\",\"\",'[9]II.2.Balance OSD-Activos'!J194)","v":230.74732191396811},{"$f":"IF('[9]II.2.Balance OSD-Activos'!N194=\"\",\"\",'[9]II.2.Balance OSD-Activos'!N194)","v":1010.1896914904434},{"$f":"IF('[9]II.2.Balance OSD-Activos'!R194=\"\",\"\",'[9]II.2.Balance OSD-Activos'!R194)","v":50470.518502415791},{"$f":"IF('[9]II.2.Balance OSD-Activos'!S194=\"\",\"\",'[9]II.2.Balance OSD-Activos'!S194)","v":54875.344905781283},50701.265824329756,106586.80042160148,{"$f":"IF(OR(AF329=\"\",AF317=\"\"),\"\",((AF329/AF317)-1)*100)","v":10.042591258089018},{"$f":"IF(OR(AJ329=\"\",AJ317=\"\"),\"\",((AJ329/AJ317)-1)*100)","v":7.8448583041724529},{"$f":"IF(OR(AG329=\"\",AG317=\"\"),\"\",((AG329/AG317)-1)*100)","v":3.6754675950172233},{"$f":"IF(OR(AH329=\"\",AH317=\"\"),\"\",((AH329/AH317)-1)*100)","v":7.8350120100273646},{"$f":"IF(OR(AI329=\"\",AI317=\"\"),\"\",((AI329/AI317)-1)*100)","v":9.5421941651633091},{"$f":"IF(OR(AK329=\"\",AK317=\"\"),\"\",((AK329/AK317)-1)*100)","v":8.6703430249661437},{"$f":"IF(OR(AQ329=\"\",AQ328=\"\"),\"\",AQ329-AQ328)","v":3.8432371756069728E-2},{"$f":"IF('[1]MONE(M)CAPARD'!GS336=\"\",\"\",'[1]MONE(M)CAPARD'!GS336)","v":20311.264391925608},{"$f":"IF('[1]MONE(M)CARD'!HA336=\"\",\"\",'[1]MONE(M)CAPARD'!HA336)","v":12151.106505796559},{"$f":"IF('[1]MONE(M)CAPARD'!HB336=\"\",\"\",'[1]MONE(M)CAPARD'!HB336)","v":8160.1578861290491},"n.d.",{"$f":"IF('[10]II.2.Balance OSD-Activos'!J194=\"\",\"\",'[10]II.2.Balance OSD-Activos'!J194)","v":2125.7733828839687},{"$f":"IF('[10]II.2.Balance OSD-Activos'!N194=\"\",\"\",'[10]II.2.Balance OSD-Activos'!N194)","v":1483.9514126604431},{"$f":"IF('[10]II.2.Balance OSD-Activos'!R194=\"\",\"\",'[10]II.2.Balance OSD-Activos'!R194)","v":73239.988915195805},{"$f":"IF('[10]II.2.Balance OSD-Activos'!S194=\"\",\"\",'[10]II.2.Balance OSD-Activos'!S194)","v":76566.299568791277},{"$f":"IFERROR(+AW329+AY329,\"\")","v":75365.762298079775},153416.0132795315,10.992949385278351,7.1882842519503942,4.0488412476021196,7.0817460934535781,10.215237769649566,8.6457439897099633,-2.6175249546712465E-2,{"$f":"IF('[1]MONE(M)CAPARD'!AS336=\"\",\"\",'[1]MONE(M)CAPARD'!AS336)","v":1.75},{"$f":"IF('[1]MONE(M)CAPARD'!AT336=\"\",\"\",'[1]MONE(M)CAPARD'!AT336)","v":"n.a."},{"$f":"IF('[1]MONE(M)CAPARD'!AU336=\"\",\"\",'[1]MONE(M)CAPARD'!AU336)","v":3},{"$f":"IF('[1]MONE(M)CAPARD'!AV336=\"\",\"\",'[1]MONE(M)CAPARD'!AV336)","v":5.5},{"$f":"IF('[1]MONE(M)CAPARD'!AW336=\"\",\"\",'[1]MONE(M)CAPARD'!AW336)","v":"n.a."},{"$f":"IF('[1]MONE(M)CAPARD'!AX336=\"\",\"\",'[1]MONE(M)CAPARD'!AX336)","v":5.5},{"$f":"IF('[1]MONE(M)CAPARD'!AY336=\"\",\"\",'[1]MONE(M)CAPARD'!AY336)","v":"n.a."},{"$f":"IF('[1]FISCAL(M)'!$K336=\"\",\"\",'[1]FISCAL(M)'!$K336)","v":-1150.1149249712589},{"$f":"IF('[1]FISCAL(M)'!$L336=\"\",\"\",'[1]FISCAL(M)'!$L336)","v":-1420.1149249712589},{"$f":"IF('[1]FISCAL(M)'!$AY336=\"\",\"\",'[1]FISCAL(M)'!$AY336)","v":122848.57453982861},{"$f":"IF('[1]FISCAL(M)'!$BI336=\"\",\"\",'[1]FISCAL(M)'!$BI336)","v":63068.048492843052},{"$f":"IF('[1]FISCAL(M)'!$BS336=\"\",\"\",'[1]FISCAL(M)'!$BS336)","v":59780.526046985557},{"$f":"IF('[1]FISCAL(M)'!$AZ336=\"\",\"\",'[1]FISCAL(M)'!$AZ336)","v":144812.36453982862},{"$f":"IF('[1]FISCAL(M)'!$BJ336=\"\",\"\",'[1]FISCAL(M)'!$BJ336)","v":67923.668492843048},{"$f":"IF('[1]FISCAL(M)'!$BT336=\"\",\"\",'[1]FISCAL(M)'!$BT336)","v":76888.696046985555},{"$f":"IF('[2]MONE(M)'!$AO336=\"\",\"\",'[2]MONE(M)'!$AO336)","v":20537179.358808219},{"$f":"IF('[3]MONE(M)'!$AO336=\"\",\"\",'[3]MONE(M)'!$AO336)","v":11910.683927940001},{"$f":"IF('[4]MONE(M)'!$AO336=\"\",\"\",'[4]MONE(M)'!$AO336)","v":190761.66439785584},{"$f":"+'[5]MONE(M)'!$AO336","v":287562.16556094284},{"$f":"IF('[6]MONE(M)'!$AO336=\"\",\"\",'[6]MONE(M)'!$AO336)","v":143686.22663045669},{"$f":"IF('[7]MONE(M)'!$AO336=\"\",\"\",'[7]MONE(M)'!$AO336)","v":917970.35812075995},{"$f":"IF('[8]MONE(M)'!$AO336=\"\",\"\",'[8]MONE(M)'!$AO336)","v":47702.197122609999},12.72926537813326,5.40409688488801,6.230662575921353,10.048236759155294,18.23098364465876,11.093472922634962,8.423458768856861,{"$f":"'[1]FISCAL(M)'!$K336","v":-1150.1149249712589},{"$f":"+'[1]REAL(A)'!$AO$37","v":274097.38374315755},-0.41960084013387444,{"$f":"IF('[1]FISCAL(M)'!$L336=\"\",\"\",'[1]FISCAL(M)'!$L336)","v":-1420.1149249712589},{"$f":"+'[1]REAL(A)'!$AP$37","v":336300.10894762212},-0.42227608234062103,144556.84422732322,{"$f":"'[1]Gráfico REM'!BG330","v":25235.566692692391},{"$f":"'[1]Gráfico REM'!BH330","v":111469.13558223943},{"$f":"'[1]Gráfico REM'!BI330","v":7852.1419523913892},7.5047005380306064,4.4658176905267633,8.3292993354295177,5.9608843307774828,216789.89886563324,{"$f":"'[1]Gráfico REM'!BK330","v":27487.79618433239},{"$f":"'[1]Gráfico REM'!BL330","v":159171.33270484942},{"$f":"'[1]Gráfico REM'!BM330","v":30130.769976451396},6.1203044429856801,4.3191879862719773,8.3575008926417347,-2.9373524596565836]
[2017,"abril","2017-abril",{"$f":"IF('[1]REAL IPC(M)'!$AL337=\"\",\"\",+'[1]REAL IPC(M)'!$AL337)","v":3.1365495723922443},{"$f":"IF('[1]REAL IPC(M)'!$BE337=\"\",\"\",+'[1]REAL IPC(M)'!$BE337)","v":2.6116104031398413},{"$f":"IF('[1]REAL IPC(M)'!$AM337=\"\",\"\",+'[1]REAL IPC(M)'!$AM337)","v":2.8346834912868157},{"$f":"IF('[1]REAL IPC(M)'!$BI337=\"\",\"\",+'[1]REAL IPC(M)'!$BI337)","v":2.3358556901224903},{"$f":"IF('[1]REAL IMAE(M)'!BJ337=\"\",\"\",'[1]REAL IMAE(M)'!BJ337)","v":4.0390835311051587},{"$f":"IF('[1]REAL IMAE(M)'!BK337=\"\",\"\",'[1]REAL IMAE(M)'!BK337)","v":4.0154847774449109},{"$f":"IF('[1]REAL IMAE(M)'!BN337=\"\",\"\",'[1]REAL IMAE(M)'!BN337)","v":4.8118923114658152},{"$f":"IF('[1]REAL IMAE(M)'!BO337=\"\",\"\",'[1]REAL IMAE(M)'!BO337)","v":4.0055904690945221},{"$f":"IF('[1]EXT RIN(M)'!$K337=\"\",\"\",'[1]EXT RIN(M)'!$K337)","v":33550.562067516235},null,{"$f":"IF('[1]EXT RIN(M)'!$L337=\"\",\"\",'[1]EXT RIN(M)'!$L337)","v":37347.724861346236},"",{"$f":"IF('[1]MONE(M)CARD'!EG337=\"\",\"\",'[1]MONE(M)CARD'!EG337)","v":34692.878258066463},{"$f":"IF('[1]MONE(M)CARD'!EK337=\"\",\"\",'[1]MONE(M)CARD'!EK337)","v":54371.701865953517},{"$f":"IF('[1]MONE(M)CARD'!EP337=\"\",\"\",'[1]MONE(M)CARD'!EP337)","v":30483.434738589393},{"$f":"IF('[1]MONE(M)CARD'!ES337=\"\",\"\",'[1]MONE(M)CARD'!ES337)","v":5.6672233290884444},{"$f":"IF('[1]MONE(M)CARD'!EV337=\"\",\"\",'[1]MONE(M)CARD'!EV337)","v":6.4231928745470679},{"$f":"IF('[1]MONE(M)CARD'!EZ337=\"\",\"\",'[1]MONE(M)CARD'!EZ337)","v":6.2806336008067731},{"$f":"IF('[1]MONE(M)CAPARD'!FC337=\"\",\"\",'[1]MONE(M)CAPARD'!FC337)","v":42652.810781126464},{"$f":"IF('[1]MONE(M)CAPARD'!FG337=\"\",\"\",'[1]MONE(M)CAPARD'!FG337)","v":85290.608017243503},{"$f":"IF('[1]MONE(M)CAPARD'!FL337=\"\",\"\",'[1]MONE(M)CAPARD'!FL337)","v":30483.434738589393},{"$f":"IF('[1]MONE(M)CAPARD'!FO337=\"\",\"\",'[1]MONE(M)CAPARD'!FO337)","v":4.7481977750863713},{"$f":"IF('[1]MONE(M)CAPARD'!FR337=\"\",\"\",'[1]MONE(M)CAPARD'!FR337)","v":6.0140152875545194},{"$f":"IF('[1]MONE(M)CAPARD'!FV337=\"\",\"\",'[1]MONE(M)CAPARD'!FV337)","v":5.9855594351653885},{"$f":"IF('[1]MONE(M)CARD'!FV337=\"\",\"\",'[1]MONE(M)CARD'!FV337)","v":1533.184828051463},{"$f":"IF('[1]MONE(M)CARD'!GD337=\"\",\"\",'[1]MONE(M)CARD'!GD337)","v":168.59567011832866},{"$f":"IF('[1]MONE(M)CARD'!GE337=\"\",\"\",'[1]MONE(M)CARD'!GE337)","v":11529.544051559489},25.364956108963234,{"$f":"IF('[9]II.2.Balance OSD-Activos'!J195=\"\",\"\",'[9]II.2.Balance OSD-Activos'!J195)","v":240.79439246965421},{"$f":"IF('[9]II.2.Balance OSD-Activos'!N195=\"\",\"\",'[9]II.2.Balance OSD-Activos'!N195)","v":980.96712030463027},{"$f":"IF('[9]II.2.Balance OSD-Activos'!R195=\"\",\"\",'[9]II.2.Balance OSD-Activos'!R195)","v":50709.672892127928},{"$f":"IF('[9]II.2.Balance OSD-Activos'!S195=\"\",\"\",'[9]II.2.Balance OSD-Activos'!S195)","v":55204.518314976274},50950.46728459758,107135.95271987849,10.726137716035922,7.8720683770842959,4.5839008094298972,7.8588668010406204,9.4585568687002741,8.6522464154223719,-1.8096609543771791E-2,{"$f":"IF('[1]MONE(M)CAPARD'!GS337=\"\",\"\",'[1]MONE(M)CAPARD'!GS337)","v":20633.338312638702},{"$f":"IF('[1]MONE(M)CARD'!HA337=\"\",\"\",'[1]MONE(M)CAPARD'!HA337)","v":13320.552628139489},{"$f":"IF('[1]MONE(M)CAPARD'!HB337=\"\",\"\",'[1]MONE(M)CAPARD'!HB337)","v":7312.7856844992129},"n.d.",{"$f":"IF('[10]II.2.Balance OSD-Activos'!J195=\"\",\"\",'[10]II.2.Balance OSD-Activos'!J195)","v":2121.0103225696539},{"$f":"IF('[10]II.2.Balance OSD-Activos'!N195=\"\",\"\",'[10]II.2.Balance OSD-Activos'!N195)","v":1491.6086507046302},{"$f":"IF('[10]II.2.Balance OSD-Activos'!R195=\"\",\"\",'[10]II.2.Balance OSD-Activos'!R195)","v":73698.356372627939},{"$f":"IF('[10]II.2.Balance OSD-Activos'!S195=\"\",\"\",'[10]II.2.Balance OSD-Activos'!S195)","v":77016.997759926278},{"$f":"IFERROR(+AW330+AY330,\"\")","v":75819.36669519759},154327.97310582851,7.7724059277871405,7.6428135316520818,7.5052323132686505,7.6390885260249508,9.9457494414414427,8.7785416238973966,0.13279763418743329,{"$f":"IF('[1]MONE(M)CAPARD'!AS337=\"\",\"\",'[1]MONE(M)CAPARD'!AS337)","v":2.5},{"$f":"IF('[1]MONE(M)CAPARD'!AT337=\"\",\"\",'[1]MONE(M)CAPARD'!AT337)","v":"n.a."},{"$f":"IF('[1]MONE(M)CAPARD'!AU337=\"\",\"\",'[1]MONE(M)CAPARD'!AU337)","v":3},{"$f":"IF('[1]MONE(M)CAPARD'!AV337=\"\",\"\",'[1]MONE(M)CAPARD'!AV337)","v":5.5},{"$f":"IF('[1]MONE(M)CAPARD'!AW337=\"\",\"\",'[1]MONE(M)CAPARD'!AW337)","v":"n.a."},{"$f":"IF('[1]MONE(M)CAPARD'!AX337=\"\",\"\",'[1]MONE(M)CAPARD'!AX337)","v":5.75},{"$f":"IF('[1]MONE(M)CAPARD'!AY337=\"\",\"\",'[1]MONE(M)CAPARD'!AY337)","v":"n.a."},{"$f":"IF('[1]FISCAL(M)'!$K337=\"\",\"\",'[1]FISCAL(M)'!$K337)","v":-895.25991254907626},{"$f":"IF('[1]FISCAL(M)'!$L337=\"\",\"\",'[1]FISCAL(M)'!$L337)","v":"n.d."},{"$f":"IF('[1]FISCAL(M)'!$AY337=\"\",\"\",'[1]FISCAL(M)'!$AY337)","v":123671.38451092865},{"$f":"IF('[1]FISCAL(M)'!$BI337=\"\",\"\",'[1]FISCAL(M)'!$BI337)","v":63985.317749506794},{"$f":"IF('[1]FISCAL(M)'!$BS337=\"\",\"\",'[1]FISCAL(M)'!$BS337)","v":59686.066761421847},{"$f":"IF('[1]FISCAL(M)'!$AZ337=\"\",\"\",'[1]FISCAL(M)'!$AZ337)","v":145594.21451092866},{"$f":"IF('[1]FISCAL(M)'!$BJ337=\"\",\"\",'[1]FISCAL(M)'!$BJ337)","v":68868.757749506796},{"$f":"IF('[1]FISCAL(M)'!$BT337=\"\",\"\",'[1]FISCAL(M)'!$BT337)","v":76725.456761421854},{"$f":"IF('[2]MONE(M)'!$AO337=\"\",\"\",'[2]MONE(M)'!$AO337)","v":20752100.19868546},{"$f":"IF('[3]MONE(M)'!$AO337=\"\",\"\",'[3]MONE(M)'!$AO337)","v":12007.872498230001},{"$f":"IF('[4]MONE(M)'!$AO337=\"\",\"\",'[4]MONE(M)'!$AO337)","v":191777.35181338125},{"$f":"+'[5]MONE(M)'!$AO337","v":286864.08975694829},{"$f":"IF('[6]MONE(M)'!$AO337=\"\",\"\",'[6]MONE(M)'!$AO337)","v":147908.98553853593},{"$f":"IF('[7]MONE(M)'!$AO337=\"\",\"\",'[7]MONE(M)'!$AO337)","v":920803.23175712},{"$f":"IF('[8]MONE(M)'!$AO337=\"\",\"\",'[8]MONE(M)'!$AO337)","v":48025.945719710013},12.973984173829557,5.7896145459940485,6.2906006484853672,9.5478796180644476,19.849578871134167,10.089263224518884,8.6913598363513866,{"$f":"'[1]FISCAL(M)'!$K337","v":-895.25991254907626},{"$f":"+'[1]REAL(A)'!$AO$37","v":274097.38374315755},-0.32662110828025193,{"$f":"IF('[1]FISCAL(M)'!$L337=\"\",\"\",'[1]FISCAL(M)'!$L337)","v":"n.d."},{"$f":"+'[1]REAL(A)'!$AP$37","v":336300.10894762212},"n.d.",145648.37286994836,{"$f":"'[1]Gráfico REM'!BG331","v":25902.725513855865},{"$f":"'[1]Gráfico REM'!BH331","v":111985.70167327111},{"$f":"'[1]Gráfico REM'!BI331","v":7759.9456828213806},7.7767350640527644,6.5966284883122395,8.2465233849978059,5.0786165066297295,217303.90622453834,{"$f":"'[1]Gráfico REM'!BK331","v":28129.711321875864},{"$f":"'[1]Gráfico REM'!BL331","v":160011.6473929811},{"$f":"'[1]Gráfico REM'!BM331","v":29162.547509681368},5.7337153265801799,5.9615230839546784,8.3796538454449898,-6.9268830533958381]
[2017,"mayo ","2017-mayo ",{"$f":"IF('[1]REAL IPC(M)'!$AL338=\"\",\"\",+'[1]REAL IPC(M)'!$AL338)","v":2.9551364783527045},{"$f":"IF('[1]REAL IPC(M)'!$BE338=\"\",\"\",+'[1]REAL IPC(M)'!$BE338)","v":2.6363388886743389},{"$f":"IF('[1]REAL IPC(M)'!$AM338=\"\",\"\",+'[1]REAL IPC(M)'!$AM338)","v":2.6514185653915501},{"$f":"IF('[1]REAL IPC(M)'!$BI338=\"\",\"\",+'[1]REAL IPC(M)'!$BI338)","v":2.3555954579734584},{"$f":"IF('[1]REAL IMAE(M)'!BJ338=\"\",\"\",'[1]REAL IMAE(M)'!BJ338)","v":3.8146744370000985},{"$f":"IF('[1]REAL IMAE(M)'!BK338=\"\",\"\",'[1]REAL IMAE(M)'!BK338)","v":3.9514421674873512},{"$f":"IF('[1]REAL IMAE(M)'!BN338=\"\",\"\",'[1]REAL IMAE(M)'!BN338)","v":4.4946589124772451},{"$f":"IF('[1]REAL IMAE(M)'!BO338=\"\",\"\",'[1]REAL IMAE(M)'!BO338)","v":3.9319616276415115},{"$f":"IF('[1]EXT RIN(M)'!$K338=\"\",\"\",'[1]EXT RIN(M)'!$K338)","v":33118.042297787382},null,{"$f":"IF('[1]EXT RIN(M)'!$L338=\"\",\"\",'[1]EXT RIN(M)'!$L338)","v":37691.95792857738},null,{"$f":"IF('[1]MONE(M)CARD'!EG338=\"\",\"\",'[1]MONE(M)CARD'!EG338)","v":33900.701034533457},{"$f":"IF('[1]MONE(M)CARD'!EK338=\"\",\"\",'[1]MONE(M)CARD'!EK338)","v":54373.044253813467},{"$f":"IF('[1]MONE(M)CARD'!EP338=\"\",\"\",'[1]MONE(M)CARD'!EP338)","v":30872.58733282797},{"$f":"IF('[1]MONE(M)CARD'!ES338=\"\",\"\",'[1]MONE(M)CARD'!ES338)","v":3.434992890957278},{"$f":"IF('[1]MONE(M)CARD'!EV338=\"\",\"\",'[1]MONE(M)CARD'!EV338)","v":4.7350749774502932},{"$f":"IF('[1]MONE(M)CARD'!EZ338=\"\",\"\",'[1]MONE(M)CARD'!EZ338)","v":5.2171148498870057},{"$f":"IF('[1]MONE(M)CAPARD'!FC338=\"\",\"\",'[1]MONE(M)CAPARD'!FC338)","v":41943.175022863456},{"$f":"IF('[1]MONE(M)CAPARD'!FG338=\"\",\"\",'[1]MONE(M)CAPARD'!FG338)","v":85246.11202359345},{"$f":"IF('[1]MONE(M)CAPARD'!FL338=\"\",\"\",'[1]MONE(M)CAPARD'!FL338)","v":30872.587332827941},{"$f":"IF('[1]MONE(M)CAPARD'!FO338=\"\",\"\",'[1]MONE(M)CAPARD'!FO338)","v":3.0008689393271171},{"$f":"IF('[1]MONE(M)CAPARD'!FR338=\"\",\"\",'[1]MONE(M)CAPARD'!FR338)","v":4.8917554817581976},{"$f":"IF('[1]MONE(M)CAPARD'!FV338=\"\",\"\",'[1]MONE(M)CAPARD'!FV338)","v":5.2249397020141641},{"$f":"IF('[1]MONE(M)CARD'!FV338=\"\",\"\",'[1]MONE(M)CARD'!FV338)","v":1521.9499904415379},{"$f":"IF('[1]MONE(M)CARD'!GD338=\"\",\"\",'[1]MONE(M)CARD'!GD338)","v":62.342971057254758},{"$f":"IF('[1]MONE(M)CARD'!GE338=\"\",\"\",'[1]MONE(M)CARD'!GE338)","v":11211.623694147736},{"$f":"IF(AD331=\"\",\"\",((AD331/AD318)-1)*100)","v":21.849689695366425},{"$f":"IF('[9]II.2.Balance OSD-Activos'!J196=\"\",\"\",'[9]II.2.Balance OSD-Activos'!J196)","v":253.77438593887751},{"$f":"IF('[9]II.2.Balance OSD-Activos'!N196=\"\",\"\",'[9]II.2.Balance OSD-Activos'!N196)","v":1028.6036633987667},{"$f":"IF('[9]II.2.Balance OSD-Activos'!R196=\"\",\"\",'[9]II.2.Balance OSD-Activos'!R196)","v":50784.010467380314},{"$f":"IF('[9]II.2.Balance OSD-Activos'!S196=\"\",\"\",'[9]II.2.Balance OSD-Activos'!S196)","v":55354.238110359671},{"$f":"IFERROR(+AF331+AH331,\"\")","v":51037.784853319194},{"$f":"IF(OR(AF331=\"\",AG331=\"\",AH331=\"\",AI331=\"\"),\"\",SUM(AF331:AI331))","v":107420.62662707764},{"$f":"IF(OR(AF331=\"\",AF319=\"\"),\"\",((AF331/AF319)-1)*100)","v":14.36089071494624},{"$f":"IF(OR(AJ331=\"\",AJ319=\"\"),\"\",((AJ331/AJ319)-1)*100)","v":7.4212551888558576},{"$f":"IF(OR(AG331=\"\",AG319=\"\"),\"\",((AG331/AG319)-1)*100)","v":5.8567506545244452},{"$f":"IF(OR(AH331=\"\",AH319=\"\"),\"\",((AH331/AH319)-1)*100)","v":7.3886911343831407},{"$f":"IF(OR(AI331=\"\",AI319=\"\"),\"\",((AI331/AI319)-1)*100)","v":8.5301708636861271},{"$f":"IF(OR(AK331=\"\",AK319=\"\"),\"\",((AK331/AK319)-1)*100)","v":7.9744770621840155},{"$f":"IF(OR(AQ331=\"\",AQ330=\"\"),\"\",AQ331-AQ330)","v":-0.67776935323835641},{"$f":"IF('[1]MONE(M)CAPARD'!GS338=\"\",\"\",'[1]MONE(M)CAPARD'!GS338)","v":20568.853895135944},{"$f":"IF('[1]MONE(M)CARD'!HA338=\"\",\"\",'[1]MONE(M)CAPARD'!HA338)","v":13104.107037947739},{"$f":"IF('[1]MONE(M)CAPARD'!HB338=\"\",\"\",'[1]MONE(M)CAPARD'!HB338)","v":7464.7468571882055},"n.d.",{"$f":"IF('[10]II.2.Balance OSD-Activos'!J196=\"\",\"\",'[10]II.2.Balance OSD-Activos'!J196)","v":2143.4751076988773},{"$f":"IF('[10]II.2.Balance OSD-Activos'!N196=\"\",\"\",'[10]II.2.Balance OSD-Activos'!N196)","v":1535.1000308287669},{"$f":"IF('[10]II.2.Balance OSD-Activos'!R196=\"\",\"\",'[10]II.2.Balance OSD-Activos'!R196)","v":73903.240488780313},{"$f":"IF('[10]II.2.Balance OSD-Activos'!S196=\"\",\"\",'[10]II.2.Balance OSD-Activos'!S196)","v":77346.29489425967},{"$f":"IFERROR(+AW331+AY331,\"\")","v":76046.715596479189},{"$f":"IF(OR(AW331=\"\",AX331=\"\",AY331=\"\",AZ331=\"\"),\"\",SUM(AW331:AZ331))","v":154928.11052156764},{"$f":"IF(OR(AW331=\"\",AW319=\"\"),\"\",((AW331/AW319)-1)*100)","v":5.9183835541535057},{"$f":"IF(OR(BA331=\"\",BA319=\"\"),\"\",((BA331/BA319)-1)*100)","v":7.2352284111315557},{"$f":"IF(OR(AX331=\"\",AX319=\"\"),\"\",((AX331/AX319)-1)*100)","v":6.4623277437025006},{"$f":"IF(OR(AY331=\"\",AY319=\"\"),\"\",((AY331/AY319)-1)*100)","v":7.2739107160238126},{"$f":"IF(OR(AZ331=\"\",AZ319=\"\"),\"\",((AZ331/AZ319)-1)*100)","v":9.1993410874090955},{"$f":"IF(OR(BB331=\"\",BB319=\"\"),\"\",((BB331/BB319)-1)*100)","v":8.1990262453705007},{"$f":"IF(OR(BH331=\"\",BH330=\"\"),\"\",BH331-BH330)","v":-0.57951537852689583},{"$f":"IF('[1]MONE(M)CAPARD'!AS338=\"\",\"\",'[1]MONE(M)CAPARD'!AS338)","v":4},{"$f":"IF('[1]MONE(M)CAPARD'!AT338=\"\",\"\",'[1]MONE(M)CAPARD'!AT338)","v":"n.a."},{"$f":"IF('[1]MONE(M)CAPARD'!AU338=\"\",\"\",'[1]MONE(M)CAPARD'!AU338)","v":3},{"$f":"IF('[1]MONE(M)CAPARD'!AV338=\"\",\"\",'[1]MONE(M)CAPARD'!AV338)","v":5.5},{"$f":"IF('[1]MONE(M)CAPARD'!AW338=\"\",\"\",'[1]MONE(M)CAPARD'!AW338)","v":"n.a."},{"$f":"IF('[1]MONE(M)CAPARD'!AX338=\"\",\"\",'[1]MONE(M)CAPARD'!AX338)","v":5.75},{"$f":"IF('[1]MONE(M)CAPARD'!AY338=\"\",\"\",'[1]MONE(M)CAPARD'!AY338)","v":"n.a."},{"$f":"IF('[1]FISCAL(M)'!$K338=\"\",\"\",'[1]FISCAL(M)'!$K338)","v":-1246.0490378367813},{"$f":"IF('[1]FISCAL(M)'!$L338=\"\",\"\",'[1]FISCAL(M)'!$L338)","v":"n.d."},{"$f":"IF('[1]FISCAL(M)'!$AY338=\"\",\"\",'[1]FISCAL(M)'!$AY338)","v":123725.04995651101},{"$f":"IF('[1]FISCAL(M)'!$BI338=\"\",\"\",'[1]FISCAL(M)'!$BI338)","v":63830.734260223195},{"$f":"IF('[1]FISCAL(M)'!$BS338=\"\",\"\",'[1]FISCAL(M)'!$BS338)","v":59894.315696287791},{"$f":"IF('[1]FISCAL(M)'!$AZ338=\"\",\"\",'[1]FISCAL(M)'!$AZ338)","v":146684.55995651099},{"$f":"IF('[1]FISCAL(M)'!$BJ338=\"\",\"\",'[1]FISCAL(M)'!$BJ338)","v":68692.084260223201},{"$f":"IF('[1]FISCAL(M)'!$BT338=\"\",\"\",'[1]FISCAL(M)'!$BT338)","v":77992.475696287787},{"$f":"IF('[2]MONE(M)'!$AO338=\"\",\"\",'[2]MONE(M)'!$AO338)","v":20986275.224153712},{"$f":"IF('[3]MONE(M)'!$AO338=\"\",\"\",'[3]MONE(M)'!$AO338)","v":12043.81936548},{"$f":"IF('[4]MONE(M)'!$AO338=\"\",\"\",'[4]MONE(M)'!$AO338)","v":191562.85416945867},{"$f":"+'[5]MONE(M)'!$AO338","v":289747.85155299638},{"$f":"IF('[6]MONE(M)'!$AO338=\"\",\"\",'[6]MONE(M)'!$AO338)","v":150597.28213215157},{"$f":"IF('[7]MONE(M)'!$AO338=\"\",\"\",'[7]MONE(M)'!$AO338)","v":936096.51271639008},{"$f":"IF('[8]MONE(M)'!$AO338=\"\",\"\",'[8]MONE(M)'!$AO338)","v":48352.285771890005},{"$f":"IF(BY331=\"\",\"\",((BY331/BY319)-1)*100)","v":12.55513185252417},5.8366157353246573,5.7952308775477634,10.11102726550963,19.460248583226083,11.976229907956881,8.4323679717247515,{"$f":"'[1]FISCAL(M)'!$K338","v":-1246.0490378367813},{"$f":"+'[1]REAL(A)'!$AO$37","v":274097.38374315755},-0.45460085055185684,{"$f":"IF('[1]FISCAL(M)'!$L338=\"\",\"\",'[1]FISCAL(M)'!$L338)","v":"n.d."},{"$f":"+'[1]REAL(A)'!$AP$37","v":336300.10894762212},"n.d.",{"$f":"+IF(OR(CT331=\"\",+CU331=\"\",+CV331=\"\"),\"\",(CT331+CU331+CV331))","v":146036.49512207924},{"$f":"'[1]Gráfico REM'!BG332","v":25917.065592196603},{"$f":"'[1]Gráfico REM'!BH332","v":112223.73155127934},{"$f":"'[1]Gráfico REM'!BI332","v":7895.6979786032934},{"$f":"IFERROR(+((CS331/CS319)-1)*100,\"\")","v":6.9824760972533539},{"$f":"IFERROR(+((CT331/CT319)-1)*100,\"\")","v":5.4923738549644385},{"$f":"IFERROR(+((CU331/CU319)-1)*100,\"\")","v":7.4621045140831566},{"$f":"IFERROR(+((CV331/CV319)-1)*100,\"\")","v":5.1867119996423572},{"$f":"+IF(OR(DB331=\"\",+DC331=\"\",+DD331=\"\"),\"\",(DB331+DC331+DD331))","v":217839.69338382923},{"$f":"'[1]Gráfico REM'!BK332","v":28162.377223666605},{"$f":"'[1]Gráfico REM'!BL332","v":160576.01732316933},{"$f":"'[1]Gráfico REM'!BM332","v":29101.298836993294},{"$f":"IFERROR(+((DA331/DA319)-1)*100,\"\")","v":5.1668601530432623},{"$f":"IFERROR(+((DB331/DB319)-1)*100,\"\")","v":4.7872703177467946},{"$f":"IFERROR(+((DC331/DC319)-1)*100,\"\")","v":7.7524360138871984},{"$f":"IFERROR(+((DD331/DD319)-1)*100,\"\")","v":-6.8410986155200586}]
[2017,"junio ","2017-junio ",{"$f":"IF('[1]REAL IPC(M)'!$AL339=\"\",\"\",+'[1]REAL IPC(M)'!$AL339)","v":2.8952337078528512},{"$f":"IF('[1]REAL IPC(M)'!$BE339=\"\",\"\",+'[1]REAL IPC(M)'!$BE339)","v":2.6605460232493883},{"$f":"IF('[1]REAL IPC(M)'!$AM339=\"\",\"\",+'[1]REAL IPC(M)'!$AM339)","v":2.5865257361433969},{"$f":"IF('[1]REAL IPC(M)'!$BI339=\"\",\"\",+'[1]REAL IPC(M)'!$BI339)","v":2.3745037670475089},{"$f":"IF('[1]REAL IMAE(M)'!BJ339=\"\",\"\",'[1]REAL IMAE(M)'!BJ339)","v":3.4919988008417224},{"$f":"IF('[1]REAL IMAE(M)'!BK339=\"\",\"\",'[1]REAL IMAE(M)'!BK339)","v":3.8847047485999431},{"$f":"IF('[1]REAL IMAE(M)'!BN339=\"\",\"\",'[1]REAL IMAE(M)'!BN339)","v":3.9066833243889487},{"$f":"IF('[1]REAL IMAE(M)'!BO339=\"\",\"\",'[1]REAL IMAE(M)'!BO339)","v":3.8545446797985106},{"$f":"IF('[1]EXT RIN(M)'!$K339=\"\",\"\",'[1]EXT RIN(M)'!$K339)","v":34446.184761731973},null,{"$f":"IF('[1]EXT RIN(M)'!$L339=\"\",\"\",'[1]EXT RIN(M)'!$L339)","v":38783.821901001975},null,{"$f":"IF('[1]MONE(M)CARD'!EG339=\"\",\"\",'[1]MONE(M)CARD'!EG339)","v":33725.950342249525},{"$f":"IF('[1]MONE(M)CARD'!EK339=\"\",\"\",'[1]MONE(M)CARD'!EK339)","v":55320.832178751392},{"$f":"IF('[1]MONE(M)CARD'!EP339=\"\",\"\",'[1]MONE(M)CARD'!EP339)","v":30926.748161739873},{"$f":"IF('[1]MONE(M)CARD'!ES339=\"\",\"\",'[1]MONE(M)CARD'!ES339)","v":3.3216520052459231},{"$f":"IF('[1]MONE(M)CARD'!EV339=\"\",\"\",'[1]MONE(M)CARD'!EV339)","v":5.3029294446981234},{"$f":"IF('[1]MONE(M)CARD'!EZ339=\"\",\"\",'[1]MONE(M)CARD'!EZ339)","v":6.0147907082695573},{"$f":"IF('[1]MONE(M)CAPARD'!FC339=\"\",\"\",'[1]MONE(M)CAPARD'!FC339)","v":41647.536866979528},{"$f":"IF('[1]MONE(M)CAPARD'!FG339=\"\",\"\",'[1]MONE(M)CAPARD'!FG339)","v":86504.276338271418},{"$f":"IF('[1]MONE(M)CAPARD'!FL339=\"\",\"\",'[1]MONE(M)CAPARD'!FL339)","v":30926.748161739873},{"$f":"IF('[1]MONE(M)CAPARD'!FO339=\"\",\"\",'[1]MONE(M)CAPARD'!FO339)","v":2.6964209898255209},{"$f":"IF('[1]MONE(M)CAPARD'!FR339=\"\",\"\",'[1]MONE(M)CAPARD'!FR339)","v":5.3407158351648665},{"$f":"IF('[1]MONE(M)CAPARD'!FV339=\"\",\"\",'[1]MONE(M)CAPARD'!FV339)","v":5.8696576061481931},{"$f":"IF('[1]MONE(M)CARD'!FV339=\"\",\"\",'[1]MONE(M)CARD'!FV339)","v":1596.3194545212079},{"$f":"IF('[1]MONE(M)CARD'!GD339=\"\",\"\",'[1]MONE(M)CARD'!GD339)","v":190.65488039359167},{"$f":"IF('[1]MONE(M)CARD'!GE339=\"\",\"\",'[1]MONE(M)CARD'!GE339)","v":11475.244476641761},{"$f":"IF(AD332=\"\",\"\",((AD332/AD319)-1)*100)","v":29.80355919589708},{"$f":"IF('[9]II.2.Balance OSD-Activos'!J197=\"\",\"\",'[9]II.2.Balance OSD-Activos'!J197)","v":253.2894004892139},{"$f":"IF('[9]II.2.Balance OSD-Activos'!N197=\"\",\"\",'[9]II.2.Balance OSD-Activos'!N197)","v":1046.5255676477102},{"$f":"IF('[9]II.2.Balance OSD-Activos'!R197=\"\",\"\",'[9]II.2.Balance OSD-Activos'!R197)","v":51222.659032055366},{"$f":"IF('[9]II.2.Balance OSD-Activos'!S197=\"\",\"\",'[9]II.2.Balance OSD-Activos'!S197)","v":55678.889282112388},{"$f":"IFERROR(+AF332+AH332,\"\")","v":51475.948432544581},{"$f":"IF(OR(AF332=\"\",AG332=\"\",AH332=\"\",AI332=\"\"),\"\",SUM(AF332:AI332))","v":108201.36328230468},{"$f":"IF(OR(AF332=\"\",AF320=\"\"),\"\",((AF332/AF320)-1)*100)","v":19.334242080588893},{"$f":"IF(OR(AJ332=\"\",AJ320=\"\"),\"\",((AJ332/AJ320)-1)*100)","v":7.9864510203744077},{"$f":"IF(OR(AG332=\"\",AG320=\"\"),\"\",((AG332/AG320)-1)*100)","v":8.7119965720802384},{"$f":"IF(OR(AH332=\"\",AH320=\"\"),\"\",((AH332/AH320)-1)*100)","v":7.9356974907310196},{"$f":"IF(OR(AI332=\"\",AI320=\"\"),\"\",((AI332/AI320)-1)*100)","v":8.7901564338340741},{"$f":"IF(OR(AK332=\"\",AK320=\"\"),\"\",((AK332/AK320)-1)*100)","v":8.4055620843311409},{"$f":"IF(OR(AQ332=\"\",AQ331=\"\"),\"\",AQ332-AQ331)","v":0.43108502214712541},{"$f":"IF('[1]MONE(M)CAPARD'!GS339=\"\",\"\",'[1]MONE(M)CAPARD'!GS339)","v":20793.213789142505},{"$f":"IF('[1]MONE(M)CARD'!HA339=\"\",\"\",'[1]MONE(M)CAPARD'!HA339)","v":13372.997851201761},{"$f":"IF('[1]MONE(M)CAPARD'!HB339=\"\",\"\",'[1]MONE(M)CAPARD'!HB339)","v":7420.215937940744},"n.d.",{"$f":"IF('[10]II.2.Balance OSD-Activos'!J197=\"\",\"\",'[10]II.2.Balance OSD-Activos'!J197)","v":2073.9994402092138},{"$f":"IF('[10]II.2.Balance OSD-Activos'!N197=\"\",\"\",'[10]II.2.Balance OSD-Activos'!N197)","v":1570.1039454077102},{"$f":"IF('[10]II.2.Balance OSD-Activos'!R197=\"\",\"\",'[10]II.2.Balance OSD-Activos'!R197)","v":74423.408577075374},{"$f":"IF('[10]II.2.Balance OSD-Activos'!S197=\"\",\"\",'[10]II.2.Balance OSD-Activos'!S197)","v":77841.511192612379},{"$f":"IFERROR(+AW332+AY332,\"\")","v":76497.408017284586},{"$f":"IF(OR(AW332=\"\",AX332=\"\",AY332=\"\",AZ332=\"\"),\"\",SUM(AW332:AZ332))","v":155909.02315530466},{"$f":"IF(OR(AW332=\"\",AW320=\"\"),\"\",((AW332/AW320)-1)*100)","v":4.8212668482231269},{"$f":"IF(OR(BA332=\"\",BA320=\"\"),\"\",((BA332/BA320)-1)*100)","v":7.5217028656627161},{"$f":"IF(OR(AX332=\"\",AX320=\"\"),\"\",((AX332/AX320)-1)*100)","v":10.101401276982536},{"$f":"IF(OR(AY332=\"\",AY320=\"\"),\"\",((AY332/AY320)-1)*100)","v":7.5989516414592728},{"$f":"IF(OR(AZ332=\"\",AZ320=\"\"),\"\",((AZ332/AZ320)-1)*100)","v":9.2848176555861528},{"$f":"IF(OR(BB332=\"\",BB320=\"\"),\"\",((BB332/BB320)-1)*100)","v":8.4206038400614247},{"$f":"IF(OR(BH332=\"\",BH331=\"\"),\"\",BH332-BH331)","v":0.22157759469092397},{"$f":"IF('[1]MONE(M)CAPARD'!AS339=\"\",\"\",'[1]MONE(M)CAPARD'!AS339)","v":4.5},{"$f":"IF('[1]MONE(M)CAPARD'!AT339=\"\",\"\",'[1]MONE(M)CAPARD'!AT339)","v":"n.a."},{"$f":"IF('[1]MONE(M)CAPARD'!AU339=\"\",\"\",'[1]MONE(M)CAPARD'!AU339)","v":3},{"$f":"IF('[1]MONE(M)CAPARD'!AV339=\"\",\"\",'[1]MONE(M)CAPARD'!AV339)","v":5.5},{"$f":"IF('[1]MONE(M)CAPARD'!AW339=\"\",\"\",'[1]MONE(M)CAPARD'!AW339)","v":"n.a."},{"$f":"IF('[1]MONE(M)CAPARD'!AX339=\"\",\"\",'[1]MONE(M)CAPARD'!AX339)","v":5.75},{"$f":"IF('[1]MONE(M)CAPARD'!AY339=\"\",\"\",'[1]MONE(M)CAPARD'!AY339)","v":"n.a."},{"$f":"IF('[1]FISCAL(M)'!$K339=\"\",\"\",'[1]FISCAL(M)'!$K339)","v":-1545.5946154472454},{"$f":"IF('[1]FISCAL(M)'!$L339=\"\",\"\",'[1]FISCAL(M)'!$L339)","v":-2364.5946154472454},{"$f":"IF('[1]FISCAL(M)'!$AY339=\"\",\"\",'[1]FISCAL(M)'!$AY339)","v":125615.63216946072},{"$f":"IF('[1]FISCAL(M)'!$BI339=\"\",\"\",'[1]FISCAL(M)'!$BI339)","v":64608.426117330971},{"$f":"IF('[1]FISCAL(M)'!$BS339=\"\",\"\",'[1]FISCAL(M)'!$BS339)","v":61007.206052129739},{"$f":"IF('[1]FISCAL(M)'!$AZ339=\"\",\"\",'[1]FISCAL(M)'!$AZ339)","v":148528.67216946071},{"$f":"IF('[1]FISCAL(M)'!$BJ339=\"\",\"\",'[1]FISCAL(M)'!$BJ339)","v":69471.426117330964},{"$f":"IF('[1]FISCAL(M)'!$BT339=\"\",\"\",'[1]FISCAL(M)'!$BT339)","v":79057.246052129747},{"$f":"IF('[2]MONE(M)'!$AO339=\"\",\"\",'[2]MONE(M)'!$AO339)","v":21162787.06265014},{"$f":"IF('[3]MONE(M)'!$AO339=\"\",\"\",'[3]MONE(M)'!$AO339)","v":12062.40328137},{"$f":"IF('[4]MONE(M)'!$AO339=\"\",\"\",'[4]MONE(M)'!$AO339)","v":191642.2262069037},{"$f":"+'[5]MONE(M)'!$AO339","v":291044.58541629446},{"$f":"IF('[6]MONE(M)'!$AO339=\"\",\"\",'[6]MONE(M)'!$AO339)","v":150793.23878056338},{"$f":"IF('[7]MONE(M)'!$AO339=\"\",\"\",'[7]MONE(M)'!$AO339)","v":948841.52813877002},{"$f":"IF('[8]MONE(M)'!$AO339=\"\",\"\",'[8]MONE(M)'!$AO339)","v":48529.737547619989},11.803441740761356,6.0126735806858234,5.423674761916164,10.130169843907799,17.842685530252389,12.204381557498213,8.1733224238083935,{"$f":"'[1]FISCAL(M)'!$K339","v":-1545.5946154472454},{"$f":"+'[1]REAL(A)'!$AO$37","v":274097.38374315755},-0.56388521274451198,{"$f":"IF('[1]FISCAL(M)'!$L339=\"\",\"\",'[1]FISCAL(M)'!$L339)","v":-2364.5946154472454},{"$f":"+'[1]REAL(A)'!$AP$37","v":336300.10894762212},-0.70312038341192595,{"$f":"+IF(OR(CT332=\"\",+CU332=\"\",+CV332=\"\"),\"\",(CT332+CU332+CV332))","v":147001.69505984028},{"$f":"'[1]Gráfico REM'!BG333","v":26032.825770151245},{"$f":"'[1]Gráfico REM'!BH333","v":112948.87338816817},{"$f":"'[1]Gráfico REM'!BI333","v":8019.9959015208715},{"$f":"IFERROR(+((CS332/CS320)-1)*100,\"\")","v":7.4632739133896786},{"$f":"IFERROR(+((CT332/CT320)-1)*100,\"\")","v":5.3655309980334964},{"$f":"IFERROR(+((CU332/CU320)-1)*100,\"\")","v":7.9541320023938766},{"$f":"IFERROR(+((CV332/CV320)-1)*100,\"\")","v":7.5266082201985496},{"$f":"+IF(OR(DB332=\"\",+DC332=\"\",+DD332=\"\"),\"\",(DB332+DC332+DD332))","v":219150.65257061028},{"$f":"'[1]Gráfico REM'!BK333","v":28245.318543401245},{"$f":"'[1]Gráfico REM'!BL333","v":161478.61093578817},{"$f":"'[1]Gráfico REM'!BM333","v":29426.72309142087},{"$f":"IFERROR(+((DA332/DA320)-1)*100,\"\")","v":5.6806427450958097},{"$f":"IFERROR(+((DB332/DB320)-1)*100,\"\")","v":4.6427686657450229},{"$f":"IFERROR(+((DC332/DC320)-1)*100,\"\")","v":8.0199126526626863},{"$f":"IFERROR(+((DD332/DD320)-1)*100,\"\")","v":-4.7335405610376409}]
[2017,"julio","2017-julio",{"$f":"IF('[1]REAL IPC(M)'!$AL340=\"\",\"\",+'[1]REAL IPC(M)'!$AL340)","v":3.0447629682487154},{"$f":"IF('[1]REAL IPC(M)'!$BE340=\"\",\"\",+'[1]REAL IPC(M)'!$BE340)","v":2.6839906465542018},{"$f":"IF('[1]REAL IPC(M)'!$AM340=\"\",\"\",+'[1]REAL IPC(M)'!$AM340)","v":2.6749302083929116},{"$f":"IF('[1]REAL IPC(M)'!$BI340=\"\",\"\",+'[1]REAL IPC(M)'!$BI340)","v":2.3923440635693405},{"$f":"IF('[1]REAL IMAE(M)'!BJ340=\"\",\"\",'[1]REAL IMAE(M)'!BJ340)","v":3.5437921352528212},{"$f":"IF('[1]REAL IMAE(M)'!BK340=\"\",\"\",'[1]REAL IMAE(M)'!BK340)","v":3.8153458337096602},{"$f":"IF('[1]REAL IMAE(M)'!BN340=\"\",\"\",'[1]REAL IMAE(M)'!BN340)","v":3.8139291741126513},{"$f":"IF('[1]REAL IMAE(M)'!BO340=\"\",\"\",'[1]REAL IMAE(M)'!BO340)","v":3.7733732850576907},{"$f":"IF('[1]EXT RIN(M)'!$K340=\"\",\"\",'[1]EXT RIN(M)'!$K340)","v":34507.517941837832},null,{"$f":"IF('[1]EXT RIN(M)'!$L340=\"\",\"\",'[1]EXT RIN(M)'!$L340)","v":38417.129475707829},null,{"$f":"IF('[1]MONE(M)CARD'!EG340=\"\",\"\",'[1]MONE(M)CARD'!EG340)","v":34100.808039713855},{"$f":"IF('[1]MONE(M)CARD'!EK340=\"\",\"\",'[1]MONE(M)CARD'!EK340)","v":55790.666096885485},{"$f":"IF('[1]MONE(M)CARD'!EP340=\"\",\"\",'[1]MONE(M)CARD'!EP340)","v":30682.197205300909},{"$f":"IF('[1]MONE(M)CARD'!ES340=\"\",\"\",'[1]MONE(M)CARD'!ES340)","v":3.4464477012016159},{"$f":"IF('[1]MONE(M)CARD'!EV340=\"\",\"\",'[1]MONE(M)CARD'!EV340)","v":5.8992947960397002},{"$f":"IF('[1]MONE(M)CARD'!EZ340=\"\",\"\",'[1]MONE(M)CARD'!EZ340)","v":5.780066640234649},{"$f":"IF('[1]MONE(M)CAPARD'!FC340=\"\",\"\",'[1]MONE(M)CAPARD'!FC340)","v":42191.626740123858},{"$f":"IF('[1]MONE(M)CAPARD'!FG340=\"\",\"\",'[1]MONE(M)CAPARD'!FG340)","v":87116.302828835484},{"$f":"IF('[1]MONE(M)CAPARD'!FL340=\"\",\"\",'[1]MONE(M)CAPARD'!FL340)","v":30682.197205300909},{"$f":"IF('[1]MONE(M)CAPARD'!FO340=\"\",\"\",'[1]MONE(M)CAPARD'!FO340)","v":3.1985188688922417},{"$f":"IF('[1]MONE(M)CAPARD'!FR340=\"\",\"\",'[1]MONE(M)CAPARD'!FR340)","v":6.1942313037522512},{"$f":"IF('[1]MONE(M)CAPARD'!FV340=\"\",\"\",'[1]MONE(M)CAPARD'!FV340)","v":6.0472586653708582},{"$f":"IF('[1]MONE(M)CARD'!FV340=\"\",\"\",'[1]MONE(M)CARD'!FV340)","v":1580.4518627753423},{"$f":"IF('[1]MONE(M)CARD'!GD340=\"\",\"\",'[1]MONE(M)CARD'!GD340)","v":82.702922406756201},{"$f":"IF('[1]MONE(M)CARD'!GE340=\"\",\"\",'[1]MONE(M)CARD'!GE340)","v":11594.827255522827},{"$f":"IF(AD333=\"\",\"\",((AD333/AD320)-1)*100)","v":27.593598473593104},{"$f":"IF('[9]II.2.Balance OSD-Activos'!J198=\"\",\"\",'[9]II.2.Balance OSD-Activos'!J198)","v":273.27494039862142},{"$f":"IF('[9]II.2.Balance OSD-Activos'!N198=\"\",\"\",'[9]II.2.Balance OSD-Activos'!N198)","v":1028.525460393827},{"$f":"IF('[9]II.2.Balance OSD-Activos'!R198=\"\",\"\",'[9]II.2.Balance OSD-Activos'!R198)","v":51060.879775189074},{"$f":"IF('[9]II.2.Balance OSD-Activos'!S198=\"\",\"\",'[9]II.2.Balance OSD-Activos'!S198)","v":56072.90654191764},{"$f":"IFERROR(+AF333+AH333,\"\")","v":51334.154715587698},{"$f":"IF(OR(AF333=\"\",AG333=\"\",AH333=\"\",AI333=\"\"),\"\",SUM(AF333:AI333))","v":108435.58671789916},{"$f":"IF(OR(AF333=\"\",AF321=\"\"),\"\",((AF333/AF321)-1)*100)","v":27.147116502230517},{"$f":"IF(OR(AJ333=\"\",AJ321=\"\"),\"\",((AJ333/AJ321)-1)*100)","v":7.1849119052528998},{"$f":"IF(OR(AG333=\"\",AG321=\"\"),\"\",((AG333/AG321)-1)*100)","v":9.8800560261849348},{"$f":"IF(OR(AH333=\"\",AH321=\"\"),\"\",((AH333/AH321)-1)*100)","v":7.0949243630483716},{"$f":"IF(OR(AI333=\"\",AI321=\"\"),\"\",((AI333/AI321)-1)*100)","v":8.5186260858887799},{"$f":"IF(OR(AK333=\"\",AK321=\"\"),\"\",((AK333/AK321)-1)*100)","v":7.8957295460962307},{"$f":"IF(OR(AQ333=\"\",AQ332=\"\"),\"\",AQ333-AQ332)","v":-0.50983253823491026},{"$f":"IF('[1]MONE(M)CAPARD'!GS340=\"\",\"\",'[1]MONE(M)CAPARD'!GS340)","v":20715.503608799067},{"$f":"IF('[1]MONE(M)CARD'!HA340=\"\",\"\",'[1]MONE(M)CAPARD'!HA340)","v":13472.028480672827},{"$f":"IF('[1]MONE(M)CAPARD'!HB340=\"\",\"\",'[1]MONE(M)CAPARD'!HB340)","v":7243.4751281262397},"n.d.",{"$f":"IF('[10]II.2.Balance OSD-Activos'!J198=\"\",\"\",'[10]II.2.Balance OSD-Activos'!J198)","v":2328.6472308286216},{"$f":"IF('[10]II.2.Balance OSD-Activos'!N198=\"\",\"\",'[10]II.2.Balance OSD-Activos'!N198)","v":1540.328309063827},{"$f":"IF('[10]II.2.Balance OSD-Activos'!R198=\"\",\"\",'[10]II.2.Balance OSD-Activos'!R198)","v":74397.807783679076},{"$f":"IF('[10]II.2.Balance OSD-Activos'!S198=\"\",\"\",'[10]II.2.Balance OSD-Activos'!S198)","v":78415.034972487629},{"$f":"IFERROR(+AW333+AY333,\"\")","v":76726.455014507694},{"$f":"IF(OR(AW333=\"\",AX333=\"\",AY333=\"\",AZ333=\"\"),\"\",SUM(AW333:AZ333))","v":156681.81829605915},{"$f":"IF(OR(AW333=\"\",AW321=\"\"),\"\",((AW333/AW321)-1)*100)","v":16.743654948722696},{"$f":"IF(OR(BA333=\"\",BA321=\"\"),\"\",((BA333/BA321)-1)*100)","v":7.5242073399559128},{"$f":"IF(OR(AX333=\"\",AX321=\"\"),\"\",((AX333/AX321)-1)*100)","v":10.144621250524377},{"$f":"IF(OR(AY333=\"\",AY321=\"\"),\"\",((AY333/AY321)-1)*100)","v":7.2590832087137347},{"$f":"IF(OR(AZ333=\"\",AZ321=\"\"),\"\",((AZ333/AZ321)-1)*100)","v":9.7833402127099909},{"$f":"IF(OR(BB333=\"\",BB321=\"\"),\"\",((BB333/BB321)-1)*100)","v":8.6687798825902274},{"$f":"IF(OR(BH333=\"\",BH332=\"\"),\"\",BH333-BH332)","v":0.24817604252880265},{"$f":"IF('[1]MONE(M)CAPARD'!AS340=\"\",\"\",'[1]MONE(M)CAPARD'!AS340)","v":4.5},{"$f":"IF('[1]MONE(M)CAPARD'!AT340=\"\",\"\",'[1]MONE(M)CAPARD'!AT340)","v":"n.a."},{"$f":"IF('[1]MONE(M)CAPARD'!AU340=\"\",\"\",'[1]MONE(M)CAPARD'!AU340)","v":3},{"$f":"IF('[1]MONE(M)CAPARD'!AV340=\"\",\"\",'[1]MONE(M)CAPARD'!AV340)","v":5.5},{"$f":"IF('[1]MONE(M)CAPARD'!AW340=\"\",\"\",'[1]MONE(M)CAPARD'!AW340)","v":"n.a."},{"$f":"IF('[1]MONE(M)CAPARD'!AX340=\"\",\"\",'[1]MONE(M)CAPARD'!AX340)","v":5.75},{"$f":"IF('[1]MONE(M)CAPARD'!AY340=\"\",\"\",'[1]MONE(M)CAPARD'!AY340)","v":"n.a."},{"$f":"IF('[1]FISCAL(M)'!$K340=\"\",\"\",'[1]FISCAL(M)'!$K340)","v":-2437.9465214414386},{"$f":"IF('[1]FISCAL(M)'!$L340=\"\",\"\",'[1]FISCAL(M)'!$L340)","v":"n.d."},{"$f":"IF('[1]FISCAL(M)'!$AY340=\"\",\"\",'[1]FISCAL(M)'!$AY340)","v":125951.27013737455},{"$f":"IF('[1]FISCAL(M)'!$BI340=\"\",\"\",'[1]FISCAL(M)'!$BI340)","v":64963.523414734496},{"$f":"IF('[1]FISCAL(M)'!$BS340=\"\",\"\",'[1]FISCAL(M)'!$BS340)","v":60987.746722640055},{"$f":"IF('[1]FISCAL(M)'!$AZ340=\"\",\"\",'[1]FISCAL(M)'!$AZ340)","v":149015.88013737457},{"$f":"IF('[1]FISCAL(M)'!$BJ340=\"\",\"\",'[1]FISCAL(M)'!$BJ340)","v":69991.343414734496},{"$f":"IF('[1]FISCAL(M)'!$BT340=\"\",\"\",'[1]FISCAL(M)'!$BT340)","v":79024.536722640056},{"$f":"IF('[2]MONE(M)'!$AO340=\"\",\"\",'[2]MONE(M)'!$AO340)","v":21121361.3444787},{"$f":"IF('[3]MONE(M)'!$AO340=\"\",\"\",'[3]MONE(M)'!$AO340)","v":12164.02189425},{"$f":"IF('[4]MONE(M)'!$AO340=\"\",\"\",'[4]MONE(M)'!$AO340)","v":191484.2450991465},{"$f":"+'[5]MONE(M)'!$AO340","v":293045.86610222008},{"$f":"IF('[6]MONE(M)'!$AO340=\"\",\"\",'[6]MONE(M)'!$AO340)","v":152144.66035176095},{"$f":"IF('[7]MONE(M)'!$AO340=\"\",\"\",'[7]MONE(M)'!$AO340)","v":942007.74326862989},{"$f":"IF('[8]MONE(M)'!$AO340=\"\",\"\",'[8]MONE(M)'!$AO340)","v":49112.423718860002},10.863085855147192,6.3106444127771777,5.2448250545585662,10.287112272270127,18.20912093683782,10.360419246699237,10.396929639907704,{"$f":"'[1]FISCAL(M)'!$K340","v":-2437.9465214414386},{"$f":"+'[1]REAL(A)'!$AO$37","v":274097.38374315755},-0.88944538183768718,{"$f":"IF('[1]FISCAL(M)'!$L340=\"\",\"\",'[1]FISCAL(M)'!$L340)","v":"n.d."},{"$f":"+'[1]REAL(A)'!$AP$37","v":336300.10894762212},"n.d.",{"$f":"+IF(OR(CT333=\"\",+CU333=\"\",+CV333=\"\"),\"\",(CT333+CU333+CV333))","v":147232.73611943558},{"$f":"'[1]Gráfico REM'!BG334","v":26300.854665053197},{"$f":"'[1]Gráfico REM'!BH334","v":113012.53836377872},{"$f":"'[1]Gráfico REM'!BI334","v":7919.3430906036519},{"$f":"IFERROR(+((CS333/CS321)-1)*100,\"\")","v":7.5240929185237171},{"$f":"IFERROR(+((CT333/CT321)-1)*100,\"\")","v":8.3797377610844048},{"$f":"IFERROR(+((CU333/CU321)-1)*100,\"\")","v":7.3645333182628114},{"$f":"IFERROR(+((CV333/CV321)-1)*100,\"\")","v":6.987911017382209},{"$f":"+IF(OR(DB333=\"\",+DC333=\"\",+DD333=\"\"),\"\",(DB333+DC333+DD333))","v":219796.19634577556},{"$f":"'[1]Gráfico REM'!BK334","v":28568.493478303197},{"$f":"'[1]Gráfico REM'!BL334","v":162124.96208263873},{"$f":"'[1]Gráfico REM'!BM334","v":29102.740784833659},{"$f":"IFERROR(+((DA333/DA321)-1)*100,\"\")","v":6.0491966223289451},{"$f":"IFERROR(+((DB333/DB321)-1)*100,\"\")","v":7.6784021077331399},{"$f":"IFERROR(+((DC333/DC321)-1)*100,\"\")","v":8.2653991753779863},{"$f":"IFERROR(+((DD333/DD321)-1)*100,\"\")","v":-6.058617744848549}]
[2017,"agosto","2017-agosto",{"$f":"IF('[1]REAL IPC(M)'!$AL341=\"\",\"\",+'[1]REAL IPC(M)'!$AL341)","v":3.1099531493230526},{"$f":"IF('[1]REAL IPC(M)'!$BE341=\"\",\"\",+'[1]REAL IPC(M)'!$BE341)","v":2.7064490298150279},{"$f":"IF('[1]REAL IPC(M)'!$AM341=\"\",\"\",+'[1]REAL IPC(M)'!$AM341)","v":2.7712902287303498},{"$f":"IF('[1]REAL IPC(M)'!$BI341=\"\",\"\",+'[1]REAL IPC(M)'!$BI341)","v":2.4088972744758852},{"$f":"IF('[1]REAL IMAE(M)'!BJ341=\"\",\"\",'[1]REAL IMAE(M)'!BJ341)","v":3.2936807695934434},{"$f":"IF('[1]REAL IMAE(M)'!BK341=\"\",\"\",'[1]REAL IMAE(M)'!BK341)","v":3.743411530588614},{"$f":"IF('[1]REAL IMAE(M)'!BN341=\"\",\"\",'[1]REAL IMAE(M)'!BN341)","v":3.6100547659763338},{"$f":"IF('[1]REAL IMAE(M)'!BO341=\"\",\"\",'[1]REAL IMAE(M)'!BO341)","v":3.6884822633656444},{"$f":"IF('[1]EXT RIN(M)'!$K341=\"\",\"\",'[1]EXT RIN(M)'!$K341)","v":34677.313132066774},null,{"$f":"IF('[1]EXT RIN(M)'!$L341=\"\",\"\",'[1]EXT RIN(M)'!$L341)","v":38248.688950976772},null,{"$f":"IF('[1]MONE(M)CARD'!EG341=\"\",\"\",'[1]MONE(M)CARD'!EG341)","v":34067.893273165777},{"$f":"IF('[1]MONE(M)CARD'!EK341=\"\",\"\",'[1]MONE(M)CARD'!EK341)","v":56118.427436946578},{"$f":"IF('[1]MONE(M)CARD'!EP341=\"\",\"\",'[1]MONE(M)CARD'!EP341)","v":30961.198159757434},{"$f":"IF('[1]MONE(M)CARD'!ES341=\"\",\"\",'[1]MONE(M)CARD'!ES341)","v":5.0293766831028819},{"$f":"IF('[1]MONE(M)CARD'!EV341=\"\",\"\",'[1]MONE(M)CARD'!EV341)","v":6.2133740761427081},{"$f":"IF('[1]MONE(M)CARD'!EZ341=\"\",\"\",'[1]MONE(M)CARD'!EZ341)","v":6.0345151071963921},{"$f":"IF('[1]MONE(M)CAPARD'!FC341=\"\",\"\",'[1]MONE(M)CAPARD'!FC341)","v":42148.786089345776},{"$f":"IF('[1]MONE(M)CAPARD'!FG341=\"\",\"\",'[1]MONE(M)CAPARD'!FG341)","v":87647.898289796576},{"$f":"IF('[1]MONE(M)CAPARD'!FL341=\"\",\"\",'[1]MONE(M)CAPARD'!FL341)","v":30961.198159757405},{"$f":"IF('[1]MONE(M)CAPARD'!FO341=\"\",\"\",'[1]MONE(M)CAPARD'!FO341)","v":5.3370660536606218},{"$f":"IF('[1]MONE(M)CAPARD'!FR341=\"\",\"\",'[1]MONE(M)CAPARD'!FR341)","v":6.5618161800375496},{"$f":"IF('[1]MONE(M)CAPARD'!FV341=\"\",\"\",'[1]MONE(M)CAPARD'!FV341)","v":6.3589713880721765},{"$f":"IF('[1]MONE(M)CARD'!FV341=\"\",\"\",'[1]MONE(M)CARD'!FV341)","v":1592.2531750397015},{"$f":"IF('[1]MONE(M)CARD'!GD341=\"\",\"\",'[1]MONE(M)CARD'!GD341)","v":83.164866979963833},{"$f":"IF('[1]MONE(M)CARD'!GE341=\"\",\"\",'[1]MONE(M)CARD'!GE341)","v":11526.824927568077},{"$f":"IF(AD334=\"\",\"\",((AD334/AD321)-1)*100)","v":24.957082430100485},{"$f":"IF('[9]II.2.Balance OSD-Activos'!J199=\"\",\"\",'[9]II.2.Balance OSD-Activos'!J199)","v":295.92035396073595},{"$f":"IF('[9]II.2.Balance OSD-Activos'!N199=\"\",\"\",'[9]II.2.Balance OSD-Activos'!N199)","v":999.98766050538711},{"$f":"IF('[9]II.2.Balance OSD-Activos'!R199=\"\",\"\",'[9]II.2.Balance OSD-Activos'!R199)","v":51290.148023716203},{"$f":"IF('[9]II.2.Balance OSD-Activos'!S199=\"\",\"\",'[9]II.2.Balance OSD-Activos'!S199)","v":56344.243785668368},{"$f":"IFERROR(+AF334+AH334,\"\")","v":51586.068377676937},{"$f":"IF(OR(AF334=\"\",AG334=\"\",AH334=\"\",AI334=\"\"),\"\",SUM(AF334:AI334))","v":108930.29982385068},{"$f":"IF(OR(AF334=\"\",AF322=\"\"),\"\",((AF334/AF322)-1)*100)","v":37.831061174411865},{"$f":"IF(OR(AJ334=\"\",AJ322=\"\"),\"\",((AJ334/AJ322)-1)*100)","v":7.0138007423659499},{"$f":"IF(OR(AG334=\"\",AG322=\"\"),\"\",((AG334/AG322)-1)*100)","v":3.3860750541970797},{"$f":"IF(OR(AH334=\"\",AH322=\"\"),\"\",((AH334/AH322)-1)*100)","v":6.8759313928503429},{"$f":"IF(OR(AI334=\"\",AI322=\"\"),\"\",((AI334/AI322)-1)*100)","v":8.0584976396933961},{"$f":"IF(OR(AK334=\"\",AK322=\"\"),\"\",((AK334/AK322)-1)*100)","v":7.5168285498964149},{"$f":"IF(OR(AQ334=\"\",AQ333=\"\"),\"\",AQ334-AQ333)","v":-0.37890099619981576},{"$f":"IF('[1]MONE(M)CAPARD'!GS341=\"\",\"\",'[1]MONE(M)CAPARD'!GS341)","v":20783.605543178499},{"$f":"IF('[1]MONE(M)CARD'!HA341=\"\",\"\",'[1]MONE(M)CAPARD'!HA341)","v":13453.855804988078},{"$f":"IF('[1]MONE(M)CAPARD'!HB341=\"\",\"\",'[1]MONE(M)CAPARD'!HB341)","v":7329.7497381904213},"n.d.",{"$f":"IF('[10]II.2.Balance OSD-Activos'!J199=\"\",\"\",'[10]II.2.Balance OSD-Activos'!J199)","v":2478.6155203207363},{"$f":"IF('[10]II.2.Balance OSD-Activos'!N199=\"\",\"\",'[10]II.2.Balance OSD-Activos'!N199)","v":1559.3408301453869},{"$f":"IF('[10]II.2.Balance OSD-Activos'!R199=\"\",\"\",'[10]II.2.Balance OSD-Activos'!R199)","v":74629.921420306215},{"$f":"IF('[10]II.2.Balance OSD-Activos'!S199=\"\",\"\",'[10]II.2.Balance OSD-Activos'!S199)","v":78840.23504675836},{"$f":"IFERROR(+AW334+AY334,\"\")","v":77108.536940626946},{"$f":"IF(OR(AW334=\"\",AX334=\"\",AY334=\"\",AZ334=\"\"),\"\",SUM(AW334:AZ334))","v":157508.11281753069},{"$f":"IF(OR(AW334=\"\",AW322=\"\"),\"\",((AW334/AW322)-1)*100)","v":21.570531422931506},{"$f":"IF(OR(BA334=\"\",BA322=\"\"),\"\",((BA334/BA322)-1)*100)","v":6.8529104683751951},{"$f":"IF(OR(AX334=\"\",AX322=\"\"),\"\",((AX334/AX322)-1)*100)","v":9.4489877998179761},{"$f":"IF(OR(AY334=\"\",AY322=\"\"),\"\",((AY334/AY322)-1)*100)","v":6.4250037029578211},{"$f":"IF(OR(AZ334=\"\",AZ322=\"\"),\"\",((AZ334/AZ322)-1)*100)","v":8.6309511066299027},{"$f":"IF(OR(BB334=\"\",BB322=\"\"),\"\",((BB334/BB322)-1)*100)","v":7.7610819211220372},{"$f":"IF(OR(BH334=\"\",BH333=\"\"),\"\",BH334-BH333)","v":-0.90769796146819015},{"$f":"IF('[1]MONE(M)CAPARD'!AS341=\"\",\"\",'[1]MONE(M)CAPARD'!AS341)","v":4.5},{"$f":"IF('[1]MONE(M)CAPARD'!AT341=\"\",\"\",'[1]MONE(M)CAPARD'!AT341)","v":"n.a."},{"$f":"IF('[1]MONE(M)CAPARD'!AU341=\"\",\"\",'[1]MONE(M)CAPARD'!AU341)","v":3},{"$f":"IF('[1]MONE(M)CAPARD'!AV341=\"\",\"\",'[1]MONE(M)CAPARD'!AV341)","v":5.5},{"$f":"IF('[1]MONE(M)CAPARD'!AW341=\"\",\"\",'[1]MONE(M)CAPARD'!AW341)","v":"n.a."},{"$f":"IF('[1]MONE(M)CAPARD'!AX341=\"\",\"\",'[1]MONE(M)CAPARD'!AX341)","v":5.25},{"$f":"IF('[1]MONE(M)CAPARD'!AY341=\"\",\"\",'[1]MONE(M)CAPARD'!AY341)","v":"n.a."},{"$f":"IF('[1]FISCAL(M)'!$K341=\"\",\"\",'[1]FISCAL(M)'!$K341)","v":-2883.5255577843541},{"$f":"IF('[1]FISCAL(M)'!$L341=\"\",\"\",'[1]FISCAL(M)'!$L341)","v":"n.d."},{"$f":"IF('[1]FISCAL(M)'!$AY341=\"\",\"\",'[1]FISCAL(M)'!$AY341)","v":125951.50996104047},{"$f":"IF('[1]FISCAL(M)'!$BI341=\"\",\"\",'[1]FISCAL(M)'!$BI341)","v":65481.13399647428},{"$f":"IF('[1]FISCAL(M)'!$BS341=\"\",\"\",'[1]FISCAL(M)'!$BS341)","v":60470.375964566178},{"$f":"IF('[1]FISCAL(M)'!$AZ341=\"\",\"\",'[1]FISCAL(M)'!$AZ341)","v":149005.89996104047},{"$f":"IF('[1]FISCAL(M)'!$BJ341=\"\",\"\",'[1]FISCAL(M)'!$BJ341)","v":70519.483996474271},{"$f":"IF('[1]FISCAL(M)'!$BT341=\"\",\"\",'[1]FISCAL(M)'!$BT341)","v":78486.415964566171},{"$f":"IF('[2]MONE(M)'!$AO341=\"\",\"\",'[2]MONE(M)'!$AO341)","v":21279663.753664903},{"$f":"IF('[3]MONE(M)'!$AO341=\"\",\"\",'[3]MONE(M)'!$AO341)","v":12164.323858629999},{"$f":"IF('[4]MONE(M)'!$AO341=\"\",\"\",'[4]MONE(M)'!$AO341)","v":191689.69312869001},{"$f":"+'[5]MONE(M)'!$AO341","v":295402.4640776192},{"$f":"IF('[6]MONE(M)'!$AO341=\"\",\"\",'[6]MONE(M)'!$AO341)","v":153947.64398992402},{"$f":"IF('[7]MONE(M)'!$AO341=\"\",\"\",'[7]MONE(M)'!$AO341)","v":954628.71069402993},{"$f":"IF('[8]MONE(M)'!$AO341=\"\",\"\",'[8]MONE(M)'!$AO341)","v":49428.905064760009},10.714018522709567,5.6571453951479889,4.7731888380598608,10.496947308193505,17.967551796968607,10.374183581692753,8.122368683310599,{"$f":"'[1]FISCAL(M)'!$K341","v":-2883.5255577843541},{"$f":"+'[1]REAL(A)'!$AO$37","v":274097.38374315755},-1.0520076909914458,{"$f":"IF('[1]FISCAL(M)'!$L341=\"\",\"\",'[1]FISCAL(M)'!$L341)","v":"n.d."},{"$f":"+'[1]REAL(A)'!$AP$37","v":336300.10894762212},"n.d.",147639.95918218218,{"$f":"'[1]Gráfico REM'!BG335","v":26336.579754626924},{"$f":"'[1]Gráfico REM'!BH335","v":113463.35906285248},{"$f":"'[1]Gráfico REM'!BI335","v":7840.0203647027674},{"$f":"IFERROR(+((CS334/CS322)-1)*100,\"\")","v":6.9558026296816955},{"$f":"IFERROR(+((CT334/CT322)-1)*100,\"\")","v":7.5019123940201826},{"$f":"IFERROR(+((CU334/CU322)-1)*100,\"\")","v":7.0827162136766209},{"$f":"IFERROR(+((CV334/CV322)-1)*100,\"\")","v":3.417129486676318},{"$f":"+IF(OR(DB334=\"\",+DC334=\"\",+DD334=\"\"),\"\",(DB334+DC334+DD334))","v":220035.5724874422},{"$f":"'[1]Gráfico REM'!BK335","v":28544.742320766927},{"$f":"'[1]Gráfico REM'!BL335","v":162892.26412761249},{"$f":"'[1]Gráfico REM'!BM335","v":28598.566039062771},{"$f":"IFERROR(+((DA334/DA322)-1)*100,\"\")","v":5.171624353076032},{"$f":"IFERROR(+((DB334/DB322)-1)*100,\"\")","v":6.6772860615197827},{"$f":"IFERROR(+((DC334/DC322)-1)*100,\"\")","v":7.3960747840219998},{"$f":"IFERROR(+((DD334/DD322)-1)*100,\"\")","v":-7.0973550329186956}]
[2017,"septiembre","2017-septiembre",{"$f":"IF('[1]REAL IPC(M)'!$AL342=\"\",\"\",+'[1]REAL IPC(M)'!$AL342)","v":3.3786978990147931},{"$f":"IF('[1]REAL IPC(M)'!$BE342=\"\",\"\",+'[1]REAL IPC(M)'!$BE342)","v":2.727718849300631},{"$f":"IF('[1]REAL IPC(M)'!$AM342=\"\",\"\",+'[1]REAL IPC(M)'!$AM342)","v":3.0158622627570519},{"$f":"IF('[1]REAL IPC(M)'!$BI342=\"\",\"\",+'[1]REAL IPC(M)'!$BI342)","v":2.423963989455169},{"$f":"IF('[1]REAL IMAE(M)'!BJ342=\"\",\"\",'[1]REAL IMAE(M)'!BJ342)","v":2.7469729635633433},{"$f":"IF('[1]REAL IMAE(M)'!BK342=\"\",\"\",'[1]REAL IMAE(M)'!BK342)","v":3.6689295693784096},{"$f":"IF('[1]REAL IMAE(M)'!BN342=\"\",\"\",'[1]REAL IMAE(M)'!BN342)","v":3.041172365115119},{"$f":"IF('[1]REAL IMAE(M)'!BO342=\"\",\"\",'[1]REAL IMAE(M)'!BO342)","v":3.5999069652323357},{"$f":"IF('[1]EXT RIN(M)'!$K342=\"\",\"\",'[1]EXT RIN(M)'!$K342)","v":34665.42727563584},null,{"$f":"IF('[1]EXT RIN(M)'!$L342=\"\",\"\",'[1]EXT RIN(M)'!$L342)","v":38236.803094545838},null,{"$f":"IF('[1]MONE(M)CARD'!EG342=\"\",\"\",'[1]MONE(M)CARD'!EG342)","v":34142.854864599576},{"$f":"IF('[1]MONE(M)CARD'!EK342=\"\",\"\",'[1]MONE(M)CARD'!EK342)","v":56148.213612952066},{"$f":"IF('[1]MONE(M)CARD'!EP342=\"\",\"\",'[1]MONE(M)CARD'!EP342)","v":30676.826618563806},{"$f":"IF('[1]MONE(M)CARD'!ES342=\"\",\"\",'[1]MONE(M)CARD'!ES342)","v":4.2511757336818334},{"$f":"IF('[1]MONE(M)CARD'!EV342=\"\",\"\",'[1]MONE(M)CARD'!EV342)","v":6.3614897992969377},{"$f":"IF('[1]MONE(M)CARD'!EZ342=\"\",\"\",'[1]MONE(M)CARD'!EZ342)","v":6.1135024301367524},{"$f":"IF('[1]MONE(M)CAPARD'!FC342=\"\",\"\",'[1]MONE(M)CAPARD'!FC342)","v":42225.90939227958},{"$f":"IF('[1]MONE(M)CAPARD'!FG342=\"\",\"\",'[1]MONE(M)CAPARD'!FG342)","v":87688.896701262071},{"$f":"IF('[1]MONE(M)CAPARD'!FL342=\"\",\"\",'[1]MONE(M)CAPARD'!FL342)","v":30676.82661856382},{"$f":"IF('[1]MONE(M)CAPARD'!FO342=\"\",\"\",'[1]MONE(M)CAPARD'!FO342)","v":4.1398539591800843},{"$f":"IF('[1]MONE(M)CAPARD'!FR342=\"\",\"\",'[1]MONE(M)CAPARD'!FR342)","v":6.256060035040889},{"$f":"IF('[1]MONE(M)CAPARD'!FV342=\"\",\"\",'[1]MONE(M)CAPARD'!FV342)","v":6.0895754294940874},{"$f":"IF('[1]MONE(M)CARD'!FV342=\"\",\"\",'[1]MONE(M)CARD'!FV342)","v":1637.834925174217},{"$f":"IF('[1]MONE(M)CARD'!GD342=\"\",\"\",'[1]MONE(M)CARD'!GD342)","v":199.90246352282887},{"$f":"IF('[1]MONE(M)CARD'!GE342=\"\",\"\",'[1]MONE(M)CARD'!GE342)","v":11869.454776888258},28.019144281634102,{"$f":"IF('[9]II.2.Balance OSD-Activos'!J200=\"\",\"\",'[9]II.2.Balance OSD-Activos'!J200)","v":284.48560478874617},{"$f":"IF('[9]II.2.Balance OSD-Activos'!N200=\"\",\"\",'[9]II.2.Balance OSD-Activos'!N200)","v":1032.2019664494678},{"$f":"IF('[9]II.2.Balance OSD-Activos'!R200=\"\",\"\",'[9]II.2.Balance OSD-Activos'!R200)","v":51371.054666343014},{"$f":"IF('[9]II.2.Balance OSD-Activos'!S200=\"\",\"\",'[9]II.2.Balance OSD-Activos'!S200)","v":56741.56979043613},51655.540271131758,109429.31202801736,37.921790763324047,6.5179585410791718,6.5705389593218477,6.3838158117793364,7.8800472952719414,7.2204127936565721,-0.29641575623984284,{"$f":"IF('[1]MONE(M)CAPARD'!GS342=\"\",\"\",'[1]MONE(M)CAPARD'!GS342)","v":21054.16507569297},{"$f":"IF('[1]MONE(M)CARD'!HA342=\"\",\"\",'[1]MONE(M)CAPARD'!HA342)","v":13796.485654308257},{"$f":"IF('[1]MONE(M)CAPARD'!HB342=\"\",\"\",'[1]MONE(M)CAPARD'!HB342)","v":7257.6794213847134},"n.d.",{"$f":"IF('[10]II.2.Balance OSD-Activos'!J200=\"\",\"\",'[10]II.2.Balance OSD-Activos'!J200)","v":2467.1807711487463},{"$f":"IF('[10]II.2.Balance OSD-Activos'!N200=\"\",\"\",'[10]II.2.Balance OSD-Activos'!N200)","v":1591.5551360894679},{"$f":"IF('[10]II.2.Balance OSD-Activos'!R200=\"\",\"\",'[10]II.2.Balance OSD-Activos'!R200)","v":74714.51862782301},{"$f":"IF('[10]II.2.Balance OSD-Activos'!S200=\"\",\"\",'[10]II.2.Balance OSD-Activos'!S200)","v":79244.292825596131},77181.699398971759,158017.54736065737,21.052950858320173,6.1718263412610108,7.5256630390382329,5.7425803550006815,8.2392393408960984,7.2123743754951342,-0.54870754562690305,{"$f":"IF('[1]MONE(M)CAPARD'!AS342=\"\",\"\",'[1]MONE(M)CAPARD'!AS342)","v":4.5},{"$f":"IF('[1]MONE(M)CAPARD'!AT342=\"\",\"\",'[1]MONE(M)CAPARD'!AT342)","v":"n.a."},{"$f":"IF('[1]MONE(M)CAPARD'!AU342=\"\",\"\",'[1]MONE(M)CAPARD'!AU342)","v":3},{"$f":"IF('[1]MONE(M)CAPARD'!AV342=\"\",\"\",'[1]MONE(M)CAPARD'!AV342)","v":5.5},{"$f":"IF('[1]MONE(M)CAPARD'!AW342=\"\",\"\",'[1]MONE(M)CAPARD'!AW342)","v":"n.a."},{"$f":"IF('[1]MONE(M)CAPARD'!AX342=\"\",\"\",'[1]MONE(M)CAPARD'!AX342)","v":5.25},{"$f":"IF('[1]MONE(M)CAPARD'!AY342=\"\",\"\",'[1]MONE(M)CAPARD'!AY342)","v":"n.a."},{"$f":"IF('[1]FISCAL(M)'!$K342=\"\",\"\",'[1]FISCAL(M)'!$K342)","v":-3543.8621473088961},{"$f":"IF('[1]FISCAL(M)'!$L342=\"\",\"\",'[1]FISCAL(M)'!$L342)","v":-5513.8621473088961},{"$f":"IF('[1]FISCAL(M)'!$AY342=\"\",\"\",'[1]FISCAL(M)'!$AY342)","v":126327.12494495645},{"$f":"IF('[1]FISCAL(M)'!$BI342=\"\",\"\",'[1]FISCAL(M)'!$BI342)","v":65944.229882635685},{"$f":"IF('[1]FISCAL(M)'!$BS342=\"\",\"\",'[1]FISCAL(M)'!$BS342)","v":60382.895062320771},{"$f":"IF('[1]FISCAL(M)'!$AZ342=\"\",\"\",'[1]FISCAL(M)'!$AZ342)","v":149707.32494495646},{"$f":"IF('[1]FISCAL(M)'!$BJ342=\"\",\"\",'[1]FISCAL(M)'!$BJ342)","v":71050.939882635692},{"$f":"IF('[1]FISCAL(M)'!$BT342=\"\",\"\",'[1]FISCAL(M)'!$BT342)","v":78656.385062320769},{"$f":"IF('[2]MONE(M)'!$AO342=\"\",\"\",'[2]MONE(M)'!$AO342)","v":21242025.294716924},{"$f":"IF('[3]MONE(M)'!$AO342=\"\",\"\",'[3]MONE(M)'!$AO342)","v":12213.186449140001},{"$f":"IF('[4]MONE(M)'!$AO342=\"\",\"\",'[4]MONE(M)'!$AO342)","v":192569.09123292693},{"$f":"+'[5]MONE(M)'!$AO342","v":298280.91440578352},{"$f":"IF('[6]MONE(M)'!$AO342=\"\",\"\",'[6]MONE(M)'!$AO342)","v":156009.53315301012},{"$f":"IF('[7]MONE(M)'!$AO342=\"\",\"\",'[7]MONE(M)'!$AO342)","v":963192.85069634998},{"$f":"IF('[8]MONE(M)'!$AO342=\"\",\"\",'[8]MONE(M)'!$AO342)","v":49439.32740372001},9.1841801700648151,5.6458744235802438,5.2859230382994227,9.9842419782303118,17.764304661113961,10.063119300118096,7.1067564670950656,{"$f":"'[1]FISCAL(M)'!$K342","v":-3543.8621473088961},{"$f":"+'[1]REAL(A)'!$AO$37","v":274097.38374315755},-1.2929208221227189,{"$f":"IF('[1]FISCAL(M)'!$L342=\"\",\"\",'[1]FISCAL(M)'!$L342)","v":-5513.8621473088961},{"$f":"+'[1]REAL(A)'!$AP$37","v":336300.10894762212},-1.6395659711688246,148083.09872028654,{"$f":"'[1]Gráfico REM'!BG336","v":26242.213167288879},{"$f":"'[1]Gráfico REM'!BH336","v":113895.35391011552},{"$f":"'[1]Gráfico REM'!BI336","v":7945.5316428821134},6.9349573963892075,7.8528922062631068,6.6977529494407495,7.3383246323233786,220541.64688935652,{"$f":"'[1]Gráfico REM'!BK336","v":28450.375733428882},{"$f":"'[1]Gráfico REM'!BL336","v":163334.68131383552},{"$f":"'[1]Gráfico REM'!BM336","v":28756.589842092111},4.9170354155081419,6.8196959548260994,6.8212230682264563,-6.229618427494521]
[2017,"octubre","2017-octubre",{"$f":"IF('[1]REAL IPC(M)'!$AL343=\"\",\"\",+'[1]REAL IPC(M)'!$AL343)","v":3.3837423170481884},{"$f":"IF('[1]REAL IPC(M)'!$BE343=\"\",\"\",+'[1]REAL IPC(M)'!$BE343)","v":2.7476271268421559},{"$f":"IF('[1]REAL IPC(M)'!$AM343=\"\",\"\",+'[1]REAL IPC(M)'!$AM343)","v":2.979981333825199},{"$f":"IF('[1]REAL IPC(M)'!$BI343=\"\",\"\",+'[1]REAL IPC(M)'!$BI343)","v":2.4373746145056829},{"$f":"IF('[1]REAL IMAE(M)'!BJ343=\"\",\"\",'[1]REAL IMAE(M)'!BJ343)","v":3.1557570713973249},{"$f":"IF('[1]REAL IMAE(M)'!BK343=\"\",\"\",'[1]REAL IMAE(M)'!BK343)","v":3.5919002452361903},{"$f":"IF('[1]REAL IMAE(M)'!BN343=\"\",\"\",'[1]REAL IMAE(M)'!BN343)","v":3.2416743823726835},{"$f":"IF('[1]REAL IMAE(M)'!BO343=\"\",\"\",'[1]REAL IMAE(M)'!BO343)","v":3.5076748948541514},{"$f":"IF('[1]EXT RIN(M)'!$K343=\"\",\"\",'[1]EXT RIN(M)'!$K343)","v":34569.499943348463},null,{"$f":"IF('[1]EXT RIN(M)'!$L343=\"\",\"\",'[1]EXT RIN(M)'!$L343)","v":38021.486226318462},null,{"$f":"IF('[1]MONE(M)CARD'!EG343=\"\",\"\",'[1]MONE(M)CARD'!EG343)","v":34552.713471716663},{"$f":"IF('[1]MONE(M)CARD'!EK343=\"\",\"\",'[1]MONE(M)CARD'!EK343)","v":56208.274970555562},{"$f":"IF('[1]MONE(M)CARD'!EP343=\"\",\"\",'[1]MONE(M)CARD'!EP343)","v":30771.674688001032},{"$f":"IF('[1]MONE(M)CARD'!ES343=\"\",\"\",'[1]MONE(M)CARD'!ES343)","v":4.4347763306519905},{"$f":"IF('[1]MONE(M)CARD'!EV343=\"\",\"\",'[1]MONE(M)CARD'!EV343)","v":6.5978236177041794},{"$f":"IF('[1]MONE(M)CARD'!EZ343=\"\",\"\",'[1]MONE(M)CARD'!EZ343)","v":6.2464914026321372},{"$f":"IF('[1]MONE(M)CAPARD'!FC343=\"\",\"\",'[1]MONE(M)CAPARD'!FC343)","v":42338.79261092667},{"$f":"IF('[1]MONE(M)CAPARD'!FG343=\"\",\"\",'[1]MONE(M)CAPARD'!FG343)","v":87890.613937045564},{"$f":"IF('[1]MONE(M)CAPARD'!FL343=\"\",\"\",'[1]MONE(M)CAPARD'!FL343)","v":30771.674688001018},{"$f":"IF('[1]MONE(M)CAPARD'!FO343=\"\",\"\",'[1]MONE(M)CAPARD'!FO343)","v":3.0154534498703534},{"$f":"IF('[1]MONE(M)CAPARD'!FR343=\"\",\"\",'[1]MONE(M)CAPARD'!FR343)","v":6.0391826293489492},{"$f":"IF('[1]MONE(M)CAPARD'!FV343=\"\",\"\",'[1]MONE(M)CAPARD'!FV343)","v":5.8823262042829283},{"$f":"IF('[1]MONE(M)CARD'!FV343=\"\",\"\",'[1]MONE(M)CARD'!FV343)","v":1622.5289544622065},{"$f":"IF('[1]MONE(M)CARD'!GD343=\"\",\"\",'[1]MONE(M)CARD'!GD343)","v":87.838474563917117},{"$f":"IF('[1]MONE(M)CARD'!GE343=\"\",\"\",'[1]MONE(M)CARD'!GE343)","v":12313.29706081877},{"$f":"IF(AD336=\"\",\"\",((AD336/AD323)-1)*100)","v":31.417500478296745},{"$f":"IF('[9]II.2.Balance OSD-Activos'!J201=\"\",\"\",'[9]II.2.Balance OSD-Activos'!J201)","v":301.24381051048397},{"$f":"IF('[9]II.2.Balance OSD-Activos'!N201=\"\",\"\",'[9]II.2.Balance OSD-Activos'!N201)","v":1096.2830476383624},{"$f":"IF('[9]II.2.Balance OSD-Activos'!R201=\"\",\"\",'[9]II.2.Balance OSD-Activos'!R201)","v":51711.145967440723},{"$f":"IF('[9]II.2.Balance OSD-Activos'!S201=\"\",\"\",'[9]II.2.Balance OSD-Activos'!S201)","v":57134.172346112697},{"$f":"IFERROR(+AF336+AH336,\"\")","v":52012.389777951204},{"$f":"IF(OR(AF336=\"\",AG336=\"\",AH336=\"\",AI336=\"\"),\"\",SUM(AF336:AI336))","v":110242.84517170227},{"$f":"IF(OR(AF336=\"\",AF324=\"\"),\"\",((AF336/AF324)-1)*100)","v":40.58249618233436},{"$f":"IF(OR(AJ336=\"\",AJ324=\"\"),\"\",((AJ336/AJ324)-1)*100)","v":6.0376149533394541},{"$f":"IF(OR(AG336=\"\",AG324=\"\"),\"\",((AG336/AG324)-1)*100)","v":15.81114430535191},{"$f":"IF(OR(AH336=\"\",AH324=\"\"),\"\",((AH336/AH324)-1)*100)","v":5.8860408061042868},{"$f":"IF(OR(AI336=\"\",AI324=\"\"),\"\",((AI336/AI324)-1)*100)","v":7.5633763761699946},{"$f":"IF(OR(AK336=\"\",AK324=\"\"),\"\",((AK336/AK324)-1)*100)","v":6.9132964234691618},{"$f":"IF(OR(AQ336=\"\",AQ335=\"\"),\"\",AQ336-AQ335)","v":-0.30711637018741023},{"$f":"IF('[1]MONE(M)CAPARD'!GS343=\"\",\"\",'[1]MONE(M)CAPARD'!GS343)","v":21273.434413083534},{"$f":"IF('[1]MONE(M)CARD'!HA343=\"\",\"\",'[1]MONE(M)CAPARD'!HA343)","v":14274.705133038768},{"$f":"IF('[1]MONE(M)CAPARD'!HB343=\"\",\"\",'[1]MONE(M)CAPARD'!HB343)","v":6998.7292800447667},"n.d.",{"$f":"IF('[10]II.2.Balance OSD-Activos'!J201=\"\",\"\",'[10]II.2.Balance OSD-Activos'!J201)","v":2402.267550940483},{"$f":"IF('[10]II.2.Balance OSD-Activos'!N201=\"\",\"\",'[10]II.2.Balance OSD-Activos'!N201)","v":1599.2438452683623},{"$f":"IF('[10]II.2.Balance OSD-Activos'!R201=\"\",\"\",'[10]II.2.Balance OSD-Activos'!R201)","v":75384.530938030715},{"$f":"IF('[10]II.2.Balance OSD-Activos'!S201=\"\",\"\",'[10]II.2.Balance OSD-Activos'!S201)","v":79994.627600912703},{"$f":"IFERROR(+AW336+AY336,\"\")","v":77786.798488971195},{"$f":"IF(OR(AW336=\"\",AX336=\"\",AY336=\"\",AZ336=\"\"),\"\",SUM(AW336:AZ336))","v":159380.66993515228},{"$f":"IF(OR(AW336=\"\",AW324=\"\"),\"\",((AW336/AW324)-1)*100)","v":17.295826371816435},{"$f":"IF(OR(BA336=\"\",BA324=\"\"),\"\",((BA336/BA324)-1)*100)","v":5.9364666449755354},{"$f":"IF(OR(AX336=\"\",AX324=\"\"),\"\",((AX336/AX324)-1)*100)","v":8.5242362259146276},{"$f":"IF(OR(AY336=\"\",AY324=\"\"),\"\",((AY336/AY324)-1)*100)","v":5.6105416243390049},{"$f":"IF(OR(AZ336=\"\",AZ324=\"\"),\"\",((AZ336/AZ324)-1)*100)","v":8.0744317691323388},{"$f":"IF(OR(BB336=\"\",BB324=\"\"),\"\",((BB336/BB324)-1)*100)","v":7.0247156781861442},{"$f":"IF(OR(BH336=\"\",BH335=\"\"),\"\",BH336-BH335)","v":-0.18765869730898999},{"$f":"IF('[1]MONE(M)CAPARD'!AS343=\"\",\"\",'[1]MONE(M)CAPARD'!AS343)","v":4.5},{"$f":"IF('[1]MONE(M)CAPARD'!AT343=\"\",\"\",'[1]MONE(M)CAPARD'!AT343)","v":"n.a."},{"$f":"IF('[1]MONE(M)CAPARD'!AU343=\"\",\"\",'[1]MONE(M)CAPARD'!AU343)","v":3},{"$f":"IF('[1]MONE(M)CAPARD'!AV343=\"\",\"\",'[1]MONE(M)CAPARD'!AV343)","v":5.5},{"$f":"IF('[1]MONE(M)CAPARD'!AW343=\"\",\"\",'[1]MONE(M)CAPARD'!AW343)","v":"n.a."},{"$f":"IF('[1]MONE(M)CAPARD'!AX343=\"\",\"\",'[1]MONE(M)CAPARD'!AX343)","v":5.25},{"$f":"IF('[1]MONE(M)CAPARD'!AY343=\"\",\"\",'[1]MONE(M)CAPARD'!AY343)","v":"n.a."},{"$f":"IF('[1]FISCAL(M)'!$K343=\"\",\"\",'[1]FISCAL(M)'!$K343)","v":-4025.1600757333731},{"$f":"IF('[1]FISCAL(M)'!$L343=\"\",\"\",'[1]FISCAL(M)'!$L343)","v":"n.d."},{"$f":"IF('[1]FISCAL(M)'!$AY343=\"\",\"\",'[1]FISCAL(M)'!$AY343)","v":127217.60793845502},{"$f":"IF('[1]FISCAL(M)'!$BI343=\"\",\"\",'[1]FISCAL(M)'!$BI343)","v":66768.974704694323},{"$f":"IF('[1]FISCAL(M)'!$BS343=\"\",\"\",'[1]FISCAL(M)'!$BS343)","v":60448.633233760702},{"$f":"IF('[1]FISCAL(M)'!$AZ343=\"\",\"\",'[1]FISCAL(M)'!$AZ343)","v":150636.30793845502},{"$f":"IF('[1]FISCAL(M)'!$BJ343=\"\",\"\",'[1]FISCAL(M)'!$BJ343)","v":71922.184704694315},{"$f":"IF('[1]FISCAL(M)'!$BT343=\"\",\"\",'[1]FISCAL(M)'!$BT343)","v":78714.123233760678},{"$f":"IF('[2]MONE(M)'!$AO343=\"\",\"\",'[2]MONE(M)'!$AO343)","v":21255751.591678791},{"$f":"IF('[3]MONE(M)'!$AO343=\"\",\"\",'[3]MONE(M)'!$AO343)","v":12277.975965770001},{"$f":"IF('[4]MONE(M)'!$AO343=\"\",\"\",'[4]MONE(M)'!$AO343)","v":193982.15318468469},{"$f":"+'[5]MONE(M)'!$AO343","v":300667.58244781557},{"$f":"IF('[6]MONE(M)'!$AO343=\"\",\"\",'[6]MONE(M)'!$AO343)","v":158415.80551325923},{"$f":"IF('[7]MONE(M)'!$AO343=\"\",\"\",'[7]MONE(M)'!$AO343)","v":989061.79507474008},{"$f":"IF('[8]MONE(M)'!$AO343=\"\",\"\",'[8]MONE(M)'!$AO343)","v":50054.290763560013},8.1031858800363352,5.1493703983421124,5.3522033390909662,10.107532482149661,16.596870790368822,11.022547400676963,7.3732784910300886,{"$f":"'[1]FISCAL(M)'!$K343","v":-4025.1600757333731},{"$f":"+'[1]REAL(A)'!$AO$37","v":274097.38374315755},-1.4685145916989641,{"$f":"IF('[1]FISCAL(M)'!$L343=\"\",\"\",'[1]FISCAL(M)'!$L343)","v":"n.d."},{"$f":"+'[1]REAL(A)'!$AP$37","v":336300.10894762212},"n.d.",{"$f":"+IF(OR(CT336=\"\",+CU336=\"\",+CV336=\"\"),\"\",(CT336+CU336+CV336))","v":149319.41970891881},{"$f":"'[1]Gráfico REM'!BG337","v":26407.990788107043},{"$f":"'[1]Gráfico REM'!BH337","v":114866.1499322788},{"$f":"'[1]Gráfico REM'!BI337","v":8045.2789885329548},{"$f":"IFERROR(+((CS336/CS324)-1)*100,\"\")","v":7.1510521425149687},{"$f":"IFERROR(+((CT336/CT324)-1)*100,\"\")","v":9.6393182944314759},{"$f":"IFERROR(+((CU336/CU324)-1)*100,\"\")","v":6.5688695898921345},{"$f":"IFERROR(+((CV336/CV324)-1)*100,\"\")","v":7.5276941897099992},{"$f":"+IF(OR(DB336=\"\",+DC336=\"\",+DD336=\"\"),\"\",(DB336+DC336+DD336))","v":223180.84636425882},{"$f":"'[1]Gráfico REM'!BK337","v":28708.269964597042},{"$f":"'[1]Gráfico REM'!BL337","v":164920.44069583883},{"$f":"'[1]Gráfico REM'!BM337","v":29552.135703822947},{"$f":"IFERROR(+((DA336/DA324)-1)*100,\"\")","v":5.452986343529842},{"$f":"IFERROR(+((DB336/DB324)-1)*100,\"\")","v":8.9409028955785619},{"$f":"IFERROR(+((DC336/DC324)-1)*100,\"\")","v":6.8117354391897589},{"$f":"IFERROR(+((DD336/DD324)-1)*100,\"\")","v":-4.315777792069464}]
[2017,"noviembre","2017-noviembre",{"$f":"IF('[1]REAL IPC(M)'!$AL344=\"\",\"\",+'[1]REAL IPC(M)'!$AL344)","v":3.8632351078706995},{"$f":"IF('[1]REAL IPC(M)'!$BE344=\"\",\"\",+'[1]REAL IPC(M)'!$BE344)","v":2.7660373552299111},{"$f":"IF('[1]REAL IPC(M)'!$AM344=\"\",\"\",+'[1]REAL IPC(M)'!$AM344)","v":3.379461605886469},{"$f":"IF('[1]REAL IPC(M)'!$BI344=\"\",\"\",+'[1]REAL IPC(M)'!$BI344)","v":2.4489976074286712},{"$f":"IF('[1]REAL IMAE(M)'!BJ344=\"\",\"\",'[1]REAL IMAE(M)'!BJ344)","v":4.0935684610588163},{"$f":"IF('[1]REAL IMAE(M)'!BK344=\"\",\"\",'[1]REAL IMAE(M)'!BK344)","v":3.5122699534275714},{"$f":"IF('[1]REAL IMAE(M)'!BN344=\"\",\"\",'[1]REAL IMAE(M)'!BN344)","v":4.0470816194858816},{"$f":"IF('[1]REAL IMAE(M)'!BO344=\"\",\"\",'[1]REAL IMAE(M)'!BO344)","v":3.4117726706376361},{"$f":"IF('[1]EXT RIN(M)'!$K344=\"\",\"\",'[1]EXT RIN(M)'!$K344)","v":35312.710180463109},null,{"$f":"IF('[1]EXT RIN(M)'!$L344=\"\",\"\",'[1]EXT RIN(M)'!$L344)","v":38577.649339733107},null,{"$f":"IF('[1]MONE(M)CARD'!EG344=\"\",\"\",'[1]MONE(M)CARD'!EG344)","v":35813.345263887597},{"$f":"IF('[1]MONE(M)CARD'!EK344=\"\",\"\",'[1]MONE(M)CARD'!EK344)","v":55846.760823203593},{"$f":"IF('[1]MONE(M)CARD'!EP344=\"\",\"\",'[1]MONE(M)CARD'!EP344)","v":30868.735900035885},{"$f":"IF('[1]MONE(M)CARD'!ES344=\"\",\"\",'[1]MONE(M)CARD'!ES344)","v":6.4941343381174077},{"$f":"IF('[1]MONE(M)CARD'!EV344=\"\",\"\",'[1]MONE(M)CARD'!EV344)","v":7.2997579270617674},{"$f":"IF('[1]MONE(M)CARD'!EZ344=\"\",\"\",'[1]MONE(M)CARD'!EZ344)","v":6.6639069220500557},{"$f":"IF('[1]MONE(M)CAPARD'!FC344=\"\",\"\",'[1]MONE(M)CAPARD'!FC344)","v":44062.386714337597},{"$f":"IF('[1]MONE(M)CAPARD'!FG344=\"\",\"\",'[1]MONE(M)CAPARD'!FG344)","v":87647.977335323609},{"$f":"IF('[1]MONE(M)CAPARD'!FL344=\"\",\"\",'[1]MONE(M)CAPARD'!FL344)","v":30868.735900035885},{"$f":"IF('[1]MONE(M)CAPARD'!FO344=\"\",\"\",'[1]MONE(M)CAPARD'!FO344)","v":5.2642957230737863},{"$f":"IF('[1]MONE(M)CAPARD'!FR344=\"\",\"\",'[1]MONE(M)CAPARD'!FR344)","v":6.7202518230555119},{"$f":"IF('[1]MONE(M)CAPARD'!FV344=\"\",\"\",'[1]MONE(M)CAPARD'!FV344)","v":6.3540715431922523},{"$f":"IF('[1]MONE(M)CARD'!FV344=\"\",\"\",'[1]MONE(M)CARD'!FV344)","v":1660.0897133486112},{"$f":"IF('[1]MONE(M)CARD'!GD344=\"\",\"\",'[1]MONE(M)CARD'!GD344)","v":65.072248633361184},{"$f":"IF('[1]MONE(M)CARD'!GE344=\"\",\"\",'[1]MONE(M)CARD'!GE344)","v":11501.640477704657},20.420321032669975,{"$f":"IF('[9]II.2.Balance OSD-Activos'!J202=\"\",\"\",'[9]II.2.Balance OSD-Activos'!J202)","v":301.23622686846818},{"$f":"IF('[9]II.2.Balance OSD-Activos'!N202=\"\",\"\",'[9]II.2.Balance OSD-Activos'!N202)","v":1077.7345661446943},{"$f":"IF('[9]II.2.Balance OSD-Activos'!R202=\"\",\"\",'[9]II.2.Balance OSD-Activos'!R202)","v":52295.347475744064},{"$f":"IF('[9]II.2.Balance OSD-Activos'!S202=\"\",\"\",'[9]II.2.Balance OSD-Activos'!S202)","v":57868.24792631944},{"$f":"IFERROR(+AF337+AH337,\"\")","v":52596.58370261253},{"$f":"IF(OR(AF337=\"\",AG337=\"\",AH337=\"\",AI337=\"\"),\"\",SUM(AF337:AI337))","v":111542.56619507667},46.500586367480537,5.7430015288953307,8.3484681038239916,5.5738135766268737,7.7374323353567753,6.7934586359392313,-0.11983778752993057,{"$f":"IF('[1]MONE(M)CAPARD'!GS344=\"\",\"\",'[1]MONE(M)CAPARD'!GS344)","v":21269.422165871285},{"$f":"IF('[1]MONE(M)CARD'!HA344=\"\",\"\",'[1]MONE(M)CAPARD'!HA344)","v":13252.382015604657},{"$f":"IF('[1]MONE(M)CAPARD'!HB344=\"\",\"\",'[1]MONE(M)CAPARD'!HB344)","v":8017.0401502666282},"n.d.",{"$f":"IF('[10]II.2.Balance OSD-Activos'!J202=\"\",\"\",'[10]II.2.Balance OSD-Activos'!J202)","v":2366.3099086984685},{"$f":"IF('[10]II.2.Balance OSD-Activos'!N202=\"\",\"\",'[10]II.2.Balance OSD-Activos'!N202)","v":1560.3676641846946},{"$f":"IF('[10]II.2.Balance OSD-Activos'!R202=\"\",\"\",'[10]II.2.Balance OSD-Activos'!R202)","v":76079.259196754065},{"$f":"IF('[10]II.2.Balance OSD-Activos'!S202=\"\",\"\",'[10]II.2.Balance OSD-Activos'!S202)","v":80903.74720793945},78445.569105452538,160909.68397757667,15.119281344809199,5.8484952212030095,3.6896011770013004,5.5840278702489865,8.1690001672620092,6.980805744394103,-4.3909933792041222E-2,{"$f":"IF('[1]MONE(M)CAPARD'!AS344=\"\",\"\",'[1]MONE(M)CAPARD'!AS344)","v":4.75},{"$f":"IF('[1]MONE(M)CAPARD'!AT344=\"\",\"\",'[1]MONE(M)CAPARD'!AT344)","v":"n.a."},{"$f":"IF('[1]MONE(M)CAPARD'!AU344=\"\",\"\",'[1]MONE(M)CAPARD'!AU344)","v":2.75},{"$f":"IF('[1]MONE(M)CAPARD'!AV344=\"\",\"\",'[1]MONE(M)CAPARD'!AV344)","v":5.5},{"$f":"IF('[1]MONE(M)CAPARD'!AW344=\"\",\"\",'[1]MONE(M)CAPARD'!AW344)","v":"n.a."},{"$f":"IF('[1]MONE(M)CAPARD'!AX344=\"\",\"\",'[1]MONE(M)CAPARD'!AX344)","v":5.25},{"$f":"IF('[1]MONE(M)CAPARD'!AY344=\"\",\"\",'[1]MONE(M)CAPARD'!AY344)","v":"n.a."},{"$f":"IF('[1]FISCAL(M)'!$K344=\"\",\"\",'[1]FISCAL(M)'!$K344)","v":-4982.1504544045783},{"$f":"IF('[1]FISCAL(M)'!$L344=\"\",\"\",'[1]FISCAL(M)'!$L344)","v":"n.d."},{"$f":"IF('[1]FISCAL(M)'!$AY344=\"\",\"\",'[1]FISCAL(M)'!$AY344)","v":127836.35191198118},{"$f":"IF('[1]FISCAL(M)'!$BI344=\"\",\"\",'[1]FISCAL(M)'!$BI344)","v":67175.888839698891},{"$f":"IF('[1]FISCAL(M)'!$BS344=\"\",\"\",'[1]FISCAL(M)'!$BS344)","v":60660.463072282277},{"$f":"IF('[1]FISCAL(M)'!$AZ344=\"\",\"\",'[1]FISCAL(M)'!$AZ344)","v":151301.87191198117},{"$f":"IF('[1]FISCAL(M)'!$BJ344=\"\",\"\",'[1]FISCAL(M)'!$BJ344)","v":72361.098839698883},{"$f":"IF('[1]FISCAL(M)'!$BT344=\"\",\"\",'[1]FISCAL(M)'!$BT344)","v":78940.773072282274},{"$f":"IF('[2]MONE(M)'!$AO344=\"\",\"\",'[2]MONE(M)'!$AO344)","v":21293709.595980667},{"$f":"IF('[3]MONE(M)'!$AO344=\"\",\"\",'[3]MONE(M)'!$AO344)","v":12387.01806979},{"$f":"IF('[4]MONE(M)'!$AO344=\"\",\"\",'[4]MONE(M)'!$AO344)","v":195264.96583115641},{"$f":"+'[5]MONE(M)'!$AO344","v":306042.73346379097},{"$f":"IF('[6]MONE(M)'!$AO344=\"\",\"\",'[6]MONE(M)'!$AO344)","v":161754.62509811853},{"$f":"IF('[7]MONE(M)'!$AO344=\"\",\"\",'[7]MONE(M)'!$AO344)","v":1007599.3219701201},{"$f":"IF('[8]MONE(M)'!$AO344=\"\",\"\",'[8]MONE(M)'!$AO344)","v":50294.687295940006},7.2410722382020509,5.145902398038471,4.9051265662446664,9.9119260985230042,17.089521292033226,11.30639171952954,7.5171565150213171,{"$f":"'[1]FISCAL(M)'!$K344","v":-4982.1504544045783},{"$f":"+'[1]REAL(A)'!$AO$37","v":274097.38374315755},-1.8176570627442008,{"$f":"IF('[1]FISCAL(M)'!$L344=\"\",\"\",'[1]FISCAL(M)'!$L344)","v":"n.d."},{"$f":"+'[1]REAL(A)'!$AP$37","v":336300.10894762212},"n.d.",150535.11752126171,{"$f":"'[1]Gráfico REM'!BG338","v":26373.38071091348},{"$f":"'[1]Gráfico REM'!BH338","v":116040.3670666417},{"$f":"'[1]Gráfico REM'!BI338","v":8121.3697437065248},7.1374409146705231,10.497763991325604,6.4212752399277484,6.8593198158414914,224769.64044718168,{"$f":"'[1]Gráfico REM'!BK338","v":28668.018967603479},{"$f":"'[1]Gráfico REM'!BL338","v":166335.05436258169},{"$f":"'[1]Gráfico REM'!BM338","v":29766.567116996517},5.7177434108939051,9.9768862345700917,6.7502730890954821,-3.1309953308796157]
[2017,"diciembre","2017-diciembre",{"$f":"IF('[1]REAL IPC(M)'!$AL345=\"\",\"\",+'[1]REAL IPC(M)'!$AL345)","v":4.268699351960259},{"$f":"IF('[1]REAL IPC(M)'!$BE345=\"\",\"\",+'[1]REAL IPC(M)'!$BE345)","v":2.7828572104017679},{"$f":"IF('[1]REAL IPC(M)'!$AM345=\"\",\"\",+'[1]REAL IPC(M)'!$AM345)","v":3.7418538233740861},{"$f":"IF('[1]REAL IPC(M)'!$BI345=\"\",\"\",+'[1]REAL IPC(M)'!$BI345)","v":2.4587451208759381},{"$f":"IF('[1]REAL IMAE(M)'!BJ345=\"\",\"\",'[1]REAL IMAE(M)'!BJ345)","v":4.2696853140483659},{"$f":"IF('[1]REAL IMAE(M)'!BK345=\"\",\"\",'[1]REAL IMAE(M)'!BK345)","v":3.4299583493478725},{"$f":"IF('[1]REAL IMAE(M)'!BN345=\"\",\"\",'[1]REAL IMAE(M)'!BN345)","v":4.1680118130335897},{"$f":"IF('[1]REAL IMAE(M)'!BO345=\"\",\"\",'[1]REAL IMAE(M)'!BO345)","v":3.3121670378558399},{"$f":"IF('[1]EXT RIN(M)'!$K345=\"\",\"\",'[1]EXT RIN(M)'!$K345)","v":36474.703866077441},{"$f":"IF(B338<>\"diciembre\",\"\",L338)","v":36474.703866077441},{"$f":"IF('[1]EXT RIN(M)'!$L345=\"\",\"\",'[1]EXT RIN(M)'!$L345)","v":39985.087701877441},{"$f":"IF(B338<>\"diciembre\",\"\",N338)","v":39985.087701877441},{"$f":"IF('[1]MONE(M)CARD'!EG345=\"\",\"\",'[1]MONE(M)CARD'!EG345)","v":37589.922073066358},{"$f":"IF('[1]MONE(M)CARD'!EK345=\"\",\"\",'[1]MONE(M)CARD'!EK345)","v":56216.881390609364},{"$f":"IF('[1]MONE(M)CARD'!EP345=\"\",\"\",'[1]MONE(M)CARD'!EP345)","v":30729.71278749012},{"$f":"IF('[1]MONE(M)CARD'!ES345=\"\",\"\",'[1]MONE(M)CARD'!ES345)","v":7.3330843793712797},{"$f":"IF('[1]MONE(M)CARD'!EV345=\"\",\"\",'[1]MONE(M)CARD'!EV345)","v":7.0841298338237824},{"$f":"IF('[1]MONE(M)CARD'!EZ345=\"\",\"\",'[1]MONE(M)CARD'!EZ345)","v":6.4333434360396957},{"$f":"IF('[1]MONE(M)CAPARD'!FC345=\"\",\"\",'[1]MONE(M)CAPARD'!FC345)","v":45936.880206206355},{"$f":"IF('[1]MONE(M)CAPARD'!FG345=\"\",\"\",'[1]MONE(M)CAPARD'!FG345)","v":87899.273701019381},{"$f":"IF('[1]MONE(M)CAPARD'!FL345=\"\",\"\",'[1]MONE(M)CAPARD'!FL345)","v":30729.712787490134},{"$f":"IF('[1]MONE(M)CAPARD'!FO345=\"\",\"\",'[1]MONE(M)CAPARD'!FO345)","v":6.229084929658657},{"$f":"IF('[1]MONE(M)CAPARD'!FR345=\"\",\"\",'[1]MONE(M)CAPARD'!FR345)","v":6.4580583847647421},{"$f":"IF('[1]MONE(M)CAPARD'!FV345=\"\",\"\",'[1]MONE(M)CAPARD'!FV345)","v":6.0858661746565845},{"$f":"IF('[1]MONE(M)CARD'!FV345=\"\",\"\",'[1]MONE(M)CARD'!FV345)","v":1833.1012734044857},{"$f":"IF('[1]MONE(M)CARD'!GD345=\"\",\"\",'[1]MONE(M)CARD'!GD345)","v":110.53156395915957},{"$f":"IF('[1]MONE(M)CARD'!GE345=\"\",\"\",'[1]MONE(M)CARD'!GE345)","v":10738.104296934425},14.318170417933862,{"$f":"IF('[9]II.2.Balance OSD-Activos'!J203=\"\",\"\",'[9]II.2.Balance OSD-Activos'!J203)","v":308.9290675771017},{"$f":"IF('[9]II.2.Balance OSD-Activos'!N203=\"\",\"\",'[9]II.2.Balance OSD-Activos'!N203)","v":1102.0460146477512},{"$f":"IF('[9]II.2.Balance OSD-Activos'!R203=\"\",\"\",'[9]II.2.Balance OSD-Activos'!R203)","v":52757.927409959564},{"$f":"IF('[9]II.2.Balance OSD-Activos'!S203=\"\",\"\",'[9]II.2.Balance OSD-Activos'!S203)","v":57893.080501618395},{"$f":"IFERROR(+AF338+AH338,\"\")","v":53066.856477536669},{"$f":"IF(OR(AF338=\"\",AG338=\"\",AH338=\"\",AI338=\"\"),\"\",SUM(AF338:AI338))","v":112061.98299380281},{"$f":"IF(OR(AF338=\"\",AF326=\"\"),\"\",((AF338/AF326)-1)*100)","v":56.913635449571757},{"$f":"IF(OR(AJ338=\"\",AJ326=\"\"),\"\",((AJ338/AJ326)-1)*100)","v":5.6079756180975604},{"$f":"IF(OR(AG338=\"\",AG326=\"\"),\"\",((AG338/AG326)-1)*100)","v":13.982216729775043},{"$f":"IF(OR(AH338=\"\",AH326=\"\"),\"\",((AH338/AH326)-1)*100)","v":5.4061660942735568},{"$f":"IF(OR(AI338=\"\",AI326=\"\"),\"\",((AI338/AI326)-1)*100)","v":6.8125136359466154},{"$f":"IF(OR(AK338=\"\",AK326=\"\"),\"\",((AK338/AK326)-1)*100)","v":6.3041048142782774},{"$f":"IF(OR(AQ338=\"\",AQ337=\"\"),\"\",AQ338-AQ337)","v":-0.48935382166095387},{"$f":"IF('[1]MONE(M)CAPARD'!GS345=\"\",\"\",'[1]MONE(M)CAPARD'!GS345)","v":21600.257642294331},{"$f":"IF('[1]MONE(M)CARD'!HA345=\"\",\"\",'[1]MONE(M)CAPARD'!HA345)","v":12754.041516444426},{"$f":"IF('[1]MONE(M)CAPARD'!HB345=\"\",\"\",'[1]MONE(M)CAPARD'!HB345)","v":8846.2161258499054},"n.d.",{"$f":"IF('[10]II.2.Balance OSD-Activos'!J203=\"\",\"\",'[10]II.2.Balance OSD-Activos'!J203)","v":2651.4619450871019},{"$f":"IF('[10]II.2.Balance OSD-Activos'!N203=\"\",\"\",'[10]II.2.Balance OSD-Activos'!N203)","v":1619.4853775577512},{"$f":"IF('[10]II.2.Balance OSD-Activos'!R203=\"\",\"\",'[10]II.2.Balance OSD-Activos'!R203)","v":76310.531928139564},{"$f":"IF('[10]II.2.Balance OSD-Activos'!S203=\"\",\"\",'[10]II.2.Balance OSD-Activos'!S203)","v":81090.044397028396},{"$f":"IFERROR(+AW338+AY338,\"\")","v":78961.99387322666},{"$f":"IF(OR(AW338=\"\",AX338=\"\",AY338=\"\",AZ338=\"\"),\"\",SUM(AW338:AZ338))","v":161671.52364781281},{"$f":"IF(OR(AW338=\"\",AW326=\"\"),\"\",((AW338/AW326)-1)*100)","v":26.028449771273053},{"$f":"IF(OR(BA338=\"\",BA326=\"\"),\"\",((BA338/BA326)-1)*100)","v":5.939462693529296},{"$f":"IF(OR(AX338=\"\",AX326=\"\"),\"\",((AX338/AX326)-1)*100)","v":8.1808778941084626},5.3559511728785703,7.4847380857776535,{"$f":"IF(OR(BB338=\"\",BB326=\"\"),\"\",((BB338/BB326)-1)*100)","v":6.7312491657414819},{"$f":"IF(OR(BH338=\"\",BH337=\"\"),\"\",BH338-BH337)","v":-0.24955657865262104},{"$f":"IF('[1]MONE(M)CAPARD'!AS345=\"\",\"\",'[1]MONE(M)CAPARD'!AS345)","v":4.75},{"$f":"IF('[1]MONE(M)CAPARD'!AT345=\"\",\"\",'[1]MONE(M)CAPARD'!AT345)","v":"n.a."},{"$f":"IF('[1]MONE(M)CAPARD'!AU345=\"\",\"\",'[1]MONE(M)CAPARD'!AU345)","v":2.75},{"$f":"IF('[1]MONE(M)CAPARD'!AV345=\"\",\"\",'[1]MONE(M)CAPARD'!AV345)","v":5.5},{"$f":"IF('[1]MONE(M)CAPARD'!AW345=\"\",\"\",'[1]MONE(M)CAPARD'!AW345)","v":"n.a."},{"$f":"IF('[1]MONE(M)CAPARD'!AX345=\"\",\"\",'[1]MONE(M)CAPARD'!AX345)","v":5.25},{"$f":"IF('[1]MONE(M)CAPARD'!AY345=\"\",\"\",'[1]MONE(M)CAPARD'!AY345)","v":"n.a."},{"$f":"IF('[1]FISCAL(M)'!$K345=\"\",\"\",'[1]FISCAL(M)'!$K345)","v":-7591.5968860678022},{"$f":"IF('[1]FISCAL(M)'!$L345=\"\",\"\",'[1]FISCAL(M)'!$L345)","v":-9534.5968860678022},{"$f":"IF('[1]FISCAL(M)'!$AY345=\"\",\"\",'[1]FISCAL(M)'!$AY345)","v":128286.62905123024},{"$f":"IF('[1]FISCAL(M)'!$BI345=\"\",\"\",'[1]FISCAL(M)'!$BI345)","v":67677.177882080243},{"$f":"IF('[1]FISCAL(M)'!$BS345=\"\",\"\",'[1]FISCAL(M)'!$BS345)","v":60609.451169150008},{"$f":"IF('[1]FISCAL(M)'!$AZ345=\"\",\"\",'[1]FISCAL(M)'!$AZ345)","v":151660.19905123021},{"$f":"IF('[1]FISCAL(M)'!$BJ345=\"\",\"\",'[1]FISCAL(M)'!$BJ345)","v":72660.707882080242},{"$f":"IF('[1]FISCAL(M)'!$BT345=\"\",\"\",'[1]FISCAL(M)'!$BT345)","v":78999.491169150002},{"$f":"IF('[2]MONE(M)'!$AO345=\"\",\"\",'[2]MONE(M)'!$AO345)","v":21399461.384278394},{"$f":"IF('[3]MONE(M)'!$AO345=\"\",\"\",'[3]MONE(M)'!$AO345)","v":12387.1523165},{"$f":"IF('[4]MONE(M)'!$AO345=\"\",\"\",'[4]MONE(M)'!$AO345)","v":196404.14799292589},{"$f":"+'[5]MONE(M)'!$AO345","v":309600.22961609007},{"$f":"IF('[6]MONE(M)'!$AO345=\"\",\"\",'[6]MONE(M)'!$AO345)","v":162304.82634707497},{"$f":"IF('[7]MONE(M)'!$AO345=\"\",\"\",'[7]MONE(M)'!$AO345)","v":1020323.4839092001},{"$f":"IF('[8]MONE(M)'!$AO345=\"\",\"\",'[8]MONE(M)'!$AO345)","v":50510.213475560013},6.9326697559124018,5.3650048536689976,3.727708387403772,8.1668620549768978,16.194870193215682,11.819029018974248,7.786854983765279,{"$f":"'[1]FISCAL(M)'!$K345","v":-7591.5968860678022},{"$f":"+'[1]REAL(A)'!$AO$37","v":274097.38374315755},-2.7696714147339305,{"$f":"IF('[1]FISCAL(M)'!$L345=\"\",\"\",'[1]FISCAL(M)'!$L345)","v":-9534.5968860678022},{"$f":"+'[1]REAL(A)'!$AP$37","v":336300.10894762212},-2.8351453455974918,150906.78873731423,{"$f":"'[1]Gráfico REM'!BG339","v":26059.870113092205},{"$f":"'[1]Gráfico REM'!BH339","v":116476.22339068883},{"$f":"'[1]Gráfico REM'!BI339","v":8370.6952335331771},6.6177550911076688,9.6333461114983763,5.9354683323580959,7.044475223397817,{"$f":"+IF(OR(DB338=\"\",+DC338=\"\",+DD338=\"\"),\"\",(DB338+DC338+DD338))","v":225420.87427529419},{"$f":"'[1]Gráfico REM'!BK339","v":28354.508369782205},{"$f":"'[1]Gráfico REM'!BL339","v":166986.43686624884},{"$f":"'[1]Gráfico REM'!BM339","v":30079.929039263148},{"$f":"IFERROR(+((DA338/DA326)-1)*100,\"\")","v":5.4105577835098284},{"$f":"IFERROR(+((DB338/DB326)-1)*100,\"\")","v":9.2533096149682201},{"$f":"IFERROR(+((DC338/DC326)-1)*100,\"\")","v":6.4887330736264737},{"$f":"IFERROR(+((DD338/DD326)-1)*100,\"\")","v":-3.2364522802399764}]
[2018,"enero",{"$f":"A339&\"-\"&B339","v":"2018-enero"},{"$f":"IF('[1]REAL IPC(M)'!$AL346=\"\",\"\",+'[1]REAL IPC(M)'!$AL346)","v":3.7628395549177407},{"$f":"IF('[1]REAL IPC(M)'!$BE346=\"\",\"\",+'[1]REAL IPC(M)'!$BE346)","v":2.7980614817152416},{"$f":"IF('[1]REAL IPC(M)'!$AM346=\"\",\"\",+'[1]REAL IPC(M)'!$AM346)","v":3.2841334672523592},{"$f":"IF('[1]REAL IPC(M)'!$BI346=\"\",\"\",+'[1]REAL IPC(M)'!$BI346)","v":2.4665944403780449},{"$f":"IF('[1]REAL IMAE(M)'!BJ346=\"\",\"\",'[1]REAL IMAE(M)'!BJ346)","v":3.9654373790281028},{"$f":"IF('[1]REAL IMAE(M)'!BK346=\"\",\"\",'[1]REAL IMAE(M)'!BK346)","v":3.3449195403843168},{"$f":"IF('[1]REAL IMAE(M)'!BN346=\"\",\"\",'[1]REAL IMAE(M)'!BN346)","v":3.8568822886627219},{"$f":"IF('[1]REAL IMAE(M)'!BO346=\"\",\"\",'[1]REAL IMAE(M)'!BO346)","v":3.2088664419127166},{"$f":"IF('[1]EXT RIN(M)'!$K346=\"\",\"\",'[1]EXT RIN(M)'!$K346)","v":36125.627438655705},null,{"$f":"IF('[1]EXT RIN(M)'!$L346=\"\",\"\",'[1]EXT RIN(M)'!$L346)","v":39345.605161375708},null,{"$f":"IF('[1]MONE(M)CARD'!EG346=\"\",\"\",'[1]MONE(M)CARD'!EG346)","v":36713.417290347134},{"$f":"IF('[1]MONE(M)CARD'!EK346=\"\",\"\",'[1]MONE(M)CARD'!EK346)","v":56099.426266521652},{"$f":"IF('[1]MONE(M)CARD'!EP346=\"\",\"\",'[1]MONE(M)CARD'!EP346)","v":30934.272786088986},{"$f":"IF('[1]MONE(M)CARD'!ES346=\"\",\"\",'[1]MONE(M)CARD'!ES346)","v":6.0410404610661272},{"$f":"IF('[1]MONE(M)CARD'!EV346=\"\",\"\",'[1]MONE(M)CARD'!EV346)","v":6.58889208748068},{"$f":"IF('[1]MONE(M)CARD'!EZ346=\"\",\"\",'[1]MONE(M)CARD'!EZ346)","v":5.8010141095329759},{"$f":"IF('[1]MONE(M)CAPARD'!FC346=\"\",\"\",'[1]MONE(M)CAPARD'!FC346)","v":44848.623157497132},{"$f":"IF('[1]MONE(M)CAPARD'!FG346=\"\",\"\",'[1]MONE(M)CAPARD'!FG346)","v":87895.593127641638},{"$f":"IF('[1]MONE(M)CAPARD'!FL346=\"\",\"\",'[1]MONE(M)CAPARD'!FL346)","v":30934.272786088957},{"$f":"IF('[1]MONE(M)CAPARD'!FO346=\"\",\"\",'[1]MONE(M)CAPARD'!FO346)","v":4.9265135826283446},{"$f":"IF('[1]MONE(M)CAPARD'!FR346=\"\",\"\",'[1]MONE(M)CAPARD'!FR346)","v":5.8230564675420426},{"$f":"IF('[1]MONE(M)CAPARD'!FV346=\"\",\"\",'[1]MONE(M)CAPARD'!FV346)","v":5.3771330966161601},{"$f":"IF('[1]MONE(M)CARD'!FV346=\"\",\"\",'[1]MONE(M)CARD'!FV346)","v":1780.9861402738056},{"$f":"IF('[1]MONE(M)CARD'!GD346=\"\",\"\",'[1]MONE(M)CARD'!GD346)","v":76.49058567026286},{"$f":"IF('[1]MONE(M)CARD'!GE346=\"\",\"\",'[1]MONE(M)CARD'!GE346)","v":11362.249665207552},{"$f":"IF(AD339=\"\",\"\",((AD339/AD326)-1)*100)","v":27.253891947920383},{"$f":"IF('[9]II.2.Balance OSD-Activos'!J204=\"\",\"\",'[9]II.2.Balance OSD-Activos'!J204)","v":281.2620828778791},{"$f":"IF('[9]II.2.Balance OSD-Activos'!N204=\"\",\"\",'[9]II.2.Balance OSD-Activos'!N204)","v":1130.2358987435546},{"$f":"IF('[9]II.2.Balance OSD-Activos'!R204=\"\",\"\",'[9]II.2.Balance OSD-Activos'!R204)","v":53012.562322527752},{"$f":"IF('[9]II.2.Balance OSD-Activos'!S204=\"\",\"\",'[9]II.2.Balance OSD-Activos'!S204)","v":57859.545143198178},{"$f":"IFERROR(+AF339+AH339,\"\")","v":53293.824405405634},{"$f":"IF(OR(AF339=\"\",AG339=\"\",AH339=\"\",AI339=\"\"),\"\",SUM(AF339:AI339))","v":112283.60544734736},{"$f":"IF(OR(AF339=\"\",AF327=\"\"),\"\",((AF339/AF327)-1)*100)","v":39.487470364232927},{"$f":"IF(OR(AJ339=\"\",AJ327=\"\"),\"\",((AJ339/AJ327)-1)*100)","v":5.7172098600582144},{"$f":"IF(OR(AG339=\"\",AG327=\"\"),\"\",((AG339/AG327)-1)*100)","v":11.101711052880315},{"$f":"IF(OR(AH339=\"\",AH327=\"\"),\"\",((AH339/AH327)-1)*100)","v":5.58159108810381},{"$f":"IF(OR(AI339=\"\",AI327=\"\"),\"\",((AI339/AI327)-1)*100)","v":6.4178543637057661},{"$f":"IF(OR(AK339=\"\",AK327=\"\"),\"\",((AK339/AK327)-1)*100)","v":6.1290449110626977},{"$f":"IF(OR(AQ339=\"\",AQ338=\"\"),\"\",AQ339-AQ338)","v":-0.17505990321557974},{"$f":"IF('[1]MONE(M)CAPARD'!GS346=\"\",\"\",'[1]MONE(M)CAPARD'!GS346)","v":22025.453651472566},{"$f":"IF('[1]MONE(M)CARD'!HA346=\"\",\"\",'[1]MONE(M)CAPARD'!HA346)","v":13365.772656977551},{"$f":"IF('[1]MONE(M)CAPARD'!HB346=\"\",\"\",'[1]MONE(M)CAPARD'!HB346)","v":8659.6809944950146},"n.d.",{"$f":"IF('[10]II.2.Balance OSD-Activos'!J204=\"\",\"\",'[10]II.2.Balance OSD-Activos'!J204)","v":2572.1970677978793},{"$f":"IF('[10]II.2.Balance OSD-Activos'!N204=\"\",\"\",'[10]II.2.Balance OSD-Activos'!N204)","v":1636.452904863555},{"$f":"IF('[10]II.2.Balance OSD-Activos'!R204=\"\",\"\",'[10]II.2.Balance OSD-Activos'!R204)","v":76634.588724197762},{"$f":"IF('[10]II.2.Balance OSD-Activos'!S204=\"\",\"\",'[10]II.2.Balance OSD-Activos'!S204)","v":81135.966209038175},{"$f":"IFERROR(+AW339+AY339,\"\")","v":79206.785791995644},{"$f":"IF(OR(AW339=\"\",AX339=\"\",AY339=\"\",AZ339=\"\"),\"\",SUM(AW339:AZ339))","v":161979.20490589738},{"$f":"IF(OR(AW339=\"\",AW327=\"\"),\"\",((AW339/AW327)-1)*100)","v":21.793986080942407},{"$f":"IF(OR(BA339=\"\",BA327=\"\"),\"\",((BA339/BA327)-1)*100)","v":5.9041847223953114},7.622372777033104,5.4424553083344929,7.0989757207142512,{"$f":"IF(OR(BB339=\"\",BB327=\"\"),\"\",((BB339/BB327)-1)*100)","v":6.5165856568945468},{"$f":"IF(OR(BH339=\"\",BH338=\"\"),\"\",BH339-BH338)","v":-0.21466350884693508},{"$f":"IF('[1]MONE(M)CAPARD'!AS346=\"\",\"\",'[1]MONE(M)CAPARD'!AS346)","v":4.75},{"$f":"IF('[1]MONE(M)CAPARD'!AT346=\"\",\"\",'[1]MONE(M)CAPARD'!AT346)","v":"n.a."},{"$f":"IF('[1]MONE(M)CAPARD'!AU346=\"\",\"\",'[1]MONE(M)CAPARD'!AU346)","v":2.75},{"$f":"IF('[1]MONE(M)CAPARD'!AV346=\"\",\"\",'[1]MONE(M)CAPARD'!AV346)","v":5.5},{"$f":"IF('[1]MONE(M)CAPARD'!AW346=\"\",\"\",'[1]MONE(M)CAPARD'!AW346)","v":"n.a."},{"$f":"IF('[1]MONE(M)CAPARD'!AX346=\"\",\"\",'[1]MONE(M)CAPARD'!AX346)","v":5.25},{"$f":"IF('[1]MONE(M)CAPARD'!AY346=\"\",\"\",'[1]MONE(M)CAPARD'!AY346)","v":"n.a."},{"$f":"IF('[1]FISCAL(M)'!$K346=\"\",\"\",'[1]FISCAL(M)'!$K346)","v":247.06145116413117},{"$f":"IF('[1]FISCAL(M)'!$L346=\"\",\"\",'[1]FISCAL(M)'!$L346)","v":"n.d."},{"$f":"IF('[1]FISCAL(M)'!$AY346=\"\",\"\",'[1]FISCAL(M)'!$AY346)","v":129839.27222936621},{"$f":"IF('[1]FISCAL(M)'!$BI346=\"\",\"\",'[1]FISCAL(M)'!$BI346)","v":69025.392329026974},{"$f":"IF('[1]FISCAL(M)'!$BS346=\"\",\"\",'[1]FISCAL(M)'!$BS346)","v":60813.879900339234},{"$f":"IF('[1]FISCAL(M)'!$AZ346=\"\",\"\",'[1]FISCAL(M)'!$AZ346)","v":153223.3622293662},{"$f":"IF('[1]FISCAL(M)'!$BJ346=\"\",\"\",'[1]FISCAL(M)'!$BJ346)","v":74037.772329026979},{"$f":"IF('[1]FISCAL(M)'!$BT346=\"\",\"\",'[1]FISCAL(M)'!$BT346)","v":79185.589900339226},{"$f":"IF('[2]MONE(M)'!$AO346=\"\",\"\",'[2]MONE(M)'!$AO346)","v":21417637.061319809},{"$f":"IF('[3]MONE(M)'!$AO346=\"\",\"\",'[3]MONE(M)'!$AO346)","v":12428.562464769999},{"$f":"IF('[4]MONE(M)'!$AO346=\"\",\"\",'[4]MONE(M)'!$AO346)","v":196801.54827932426},{"$f":"+'[5]MONE(M)'!$AO346","v":313207.12716802722},{"$f":"IF('[6]MONE(M)'!$AO346=\"\",\"\",'[6]MONE(M)'!$AO346)","v":163974.13918666716},{"$f":"IF('[7]MONE(M)'!$AO346=\"\",\"\",'[7]MONE(M)'!$AO346)","v":1021457.8907678099},{"$f":"IF('[8]MONE(M)'!$AO346=\"\",\"\",'[8]MONE(M)'!$AO346)","v":50541.883697339996},{"$f":"IF(BY339=\"\",\"\",((BY339/BY327)-1)*100)","v":6.1547674726853296},{"$f":"IF(BZ339=\"\",\"\",((BZ339/BZ327)-1)*100)","v":4.6976374204637406},{"$f":"IF(CA339=\"\",\"\",((CA339/CA327)-1)*100)","v":4.0845463747357869},{"$f":"IF(CB339=\"\",\"\",((CB339/CB327)-1)*100)","v":8.787771835958381},{"$f":"IF(CC339=\"\",\"\",((CC339/CC327)-1)*100)","v":16.158911427150024},{"$f":"IF(CD339=\"\",\"\",((CD339/CD327)-1)*100)","v":11.781437367081281},{"$f":"IF(CE339=\"\",\"\",((CE339/CE327)-1)*100)","v":7.3081624939931311},{"$f":"'[1]FISCAL(M)'!$K346","v":247.06145116413117},{"$f":"+'[1]REAL(A)'!$AO$38","v":284395.31118885882},{"$f":"IF(OR(CM339=\"n.d.\",CM339=\"\",CN339=\"\",CN339=\"n.d.\"),\"\",(CM339/CN339)*100)","v":8.6872547276303266E-2},{"$f":"IF('[1]FISCAL(M)'!$L346=\"\",\"\",'[1]FISCAL(M)'!$L346)","v":"n.d."},{"$f":"+'[1]REAL(A)'!$AP$38","v":349324.71961703547},"n.d.",{"$f":"+IF(OR(CT339=\"\",+CU339=\"\",+CV339=\"\"),\"\",(CT339+CU339+CV339))","v":152814.51590502294},{"$f":"'[1]Gráfico REM'!BG340","v":27684.515770531998},{"$f":"'[1]Gráfico REM'!BH340","v":116662.2396284453},{"$f":"'[1]Gráfico REM'!BI340","v":8467.7605060456572},{"$f":"IFERROR(+((CS339/CS327)-1)*100,\"\")","v":6.9532291445519201},{"$f":"IFERROR(+((CT339/CT327)-1)*100,\"\")","v":12.207497433227864},{"$f":"IFERROR(+((CU339/CU327)-1)*100,\"\")","v":5.6314152666669504},{"$f":"IFERROR(+((CV339/CV327)-1)*100,\"\")","v":9.058769276172729},{"$f":"+IF(OR(DB339=\"\",+DC339=\"\",+DD339=\"\"),\"\",(DB339+DC339+DD339))","v":227427.19653389297},{"$f":"'[1]Gráfico REM'!BK340","v":29880.369660892},{"$f":"'[1]Gráfico REM'!BL340","v":167204.1233257853},{"$f":"'[1]Gráfico REM'!BM340","v":30342.703547215664},{"$f":"IFERROR(+((DA339/DA327)-1)*100,\"\")","v":5.7835512062451855},{"$f":"IFERROR(+((DB339/DB327)-1)*100,\"\")","v":11.145387940559059},{"$f":"IFERROR(+((DC339/DC327)-1)*100,\"\")","v":6.1327046551427955},{"$f":"IFERROR(+((DD339/DD327)-1)*100,\"\")","v":-0.73191000380273818}]
[2018,"febrero","2018-febrero",{"$f":"IF('[1]REAL IPC(M)'!$AL347=\"\",\"\",+'[1]REAL IPC(M)'!$AL347)","v":3.3393482817142495},{"$f":"IF('[1]REAL IPC(M)'!$BE347=\"\",\"\",+'[1]REAL IPC(M)'!$BE347)","v":2.8117071282909079},{"$f":"IF('[1]REAL IPC(M)'!$AM347=\"\",\"\",+'[1]REAL IPC(M)'!$AM347)","v":2.9204769188015511},{"$f":"IF('[1]REAL IPC(M)'!$BI347=\"\",\"\",+'[1]REAL IPC(M)'!$BI347)","v":2.4726033548434723},{"$f":"IF('[1]REAL IMAE(M)'!BJ347=\"\",\"\",'[1]REAL IMAE(M)'!BJ347)","v":4.4411279137843263},{"$f":"IF('[1]REAL IMAE(M)'!BK347=\"\",\"\",'[1]REAL IMAE(M)'!BK347)","v":3.2571539381210934},{"$f":"IF('[1]REAL IMAE(M)'!BN347=\"\",\"\",'[1]REAL IMAE(M)'!BN347)","v":4.3967347321315797},{"$f":"IF('[1]REAL IMAE(M)'!BO347=\"\",\"\",'[1]REAL IMAE(M)'!BO347)","v":3.10193545329156},{"$f":"IF('[1]EXT RIN(M)'!$K347=\"\",\"\",'[1]EXT RIN(M)'!$K347)","v":37446.972792715576},null,{"$f":"IF('[1]EXT RIN(M)'!$L347=\"\",\"\",'[1]EXT RIN(M)'!$L347)","v":40271.882445475574},null,{"$f":"IF('[1]MONE(M)CARD'!EG347=\"\",\"\",'[1]MONE(M)CARD'!EG347)","v":36608.417247786325},{"$f":"IF('[1]MONE(M)CARD'!EK347=\"\",\"\",'[1]MONE(M)CARD'!EK347)","v":56168.936301162532},{"$f":"IF('[1]MONE(M)CARD'!EP347=\"\",\"\",'[1]MONE(M)CARD'!EP347)","v":31376.177354225525},{"$f":"IF('[1]MONE(M)CARD'!ES347=\"\",\"\",'[1]MONE(M)CARD'!ES347)","v":5.5238045352732357},{"$f":"IF('[1]MONE(M)CARD'!EV347=\"\",\"\",'[1]MONE(M)CARD'!EV347)","v":5.5282950985820811},{"$f":"IF('[1]MONE(M)CARD'!EZ347=\"\",\"\",'[1]MONE(M)CARD'!EZ347)","v":4.8294097737121344},{"$f":"IF('[1]MONE(M)CAPARD'!FC347=\"\",\"\",'[1]MONE(M)CAPARD'!FC347)","v":44754.435176136329},{"$f":"IF('[1]MONE(M)CAPARD'!FG347=\"\",\"\",'[1]MONE(M)CAPARD'!FG347)","v":88242.023110762559},{"$f":"IF('[1]MONE(M)CAPARD'!FL347=\"\",\"\",'[1]MONE(M)CAPARD'!FL347)","v":31376.17735422551},{"$f":"IF('[1]MONE(M)CAPARD'!FO347=\"\",\"\",'[1]MONE(M)CAPARD'!FO347)","v":4.6879719717146884},{"$f":"IF('[1]MONE(M)CAPARD'!FR347=\"\",\"\",'[1]MONE(M)CAPARD'!FR347)","v":5.1216617872348991},{"$f":"IF('[1]MONE(M)CAPARD'!FV347=\"\",\"\",'[1]MONE(M)CAPARD'!FV347)","v":4.6735884792913795},{"$f":"IF('[1]MONE(M)CARD'!FV347=\"\",\"\",'[1]MONE(M)CARD'!FV347)","v":1780.7397128588016},{"$f":"IF('[1]MONE(M)CARD'!GD347=\"\",\"\",'[1]MONE(M)CARD'!GD347)","v":64.388227705650024},{"$f":"IF('[1]MONE(M)CARD'!GE347=\"\",\"\",'[1]MONE(M)CARD'!GE347)","v":11640.462642328272},{"$f":"IF(AD340=\"\",\"\",((AD340/AD327)-1)*100)","v":18.467650663718736},{"$f":"IF('[9]II.2.Balance OSD-Activos'!J205=\"\",\"\",'[9]II.2.Balance OSD-Activos'!J205)","v":287.18719882082701},{"$f":"IF('[9]II.2.Balance OSD-Activos'!N205=\"\",\"\",'[9]II.2.Balance OSD-Activos'!N205)","v":1092.2198264332183},{"$f":"IF('[9]II.2.Balance OSD-Activos'!R205=\"\",\"\",'[9]II.2.Balance OSD-Activos'!R205)","v":52651.829583312516},{"$f":"IF('[9]II.2.Balance OSD-Activos'!S205=\"\",\"\",'[9]II.2.Balance OSD-Activos'!S205)","v":58202.49446005356},{"$f":"IFERROR(+AF340+AH340,\"\")","v":52939.016782133345},{"$f":"IF(OR(AF340=\"\",AG340=\"\",AH340=\"\",AI340=\"\"),\"\",SUM(AF340:AI340))","v":112233.73106862012},-7.1238576954769979,{"$f":"IF(OR(AJ340=\"\",AJ328=\"\"),\"\",((AJ340/AJ328)-1)*100)","v":4.4231814415884863},{"$f":"IF(OR(AG340=\"\",AG328=\"\"),\"\",((AG340/AG328)-1)*100)","v":11.389379997460459},{"$f":"IF(OR(AH340=\"\",AH328=\"\"),\"\",((AH340/AH328)-1)*100)","v":4.4940428226485141},{"$f":"IF(OR(AI340=\"\",AI328=\"\"),\"\",((AI340/AI328)-1)*100)","v":6.6467856262280467},{"$f":"IF(OR(AK340=\"\",AK328=\"\"),\"\",((AK340/AK328)-1)*100)","v":5.6295932976033081},{"$f":"IF(OR(AQ340=\"\",AQ339=\"\"),\"\",AQ340-AQ339)","v":-0.4994516134593896},{"$f":"IF('[1]MONE(M)CAPARD'!GS347=\"\",\"\",'[1]MONE(M)CAPARD'!GS347)","v":21559.297045994572},{"$f":"IF('[1]MONE(M)CARD'!HA347=\"\",\"\",'[1]MONE(M)CAPARD'!HA347)","v":13632.679264658273},{"$f":"IF('[1]MONE(M)CAPARD'!HB347=\"\",\"\",'[1]MONE(M)CAPARD'!HB347)","v":7926.6177813362992},"n.d.",{"$f":"IF('[10]II.2.Balance OSD-Activos'!J205=\"\",\"\",'[10]II.2.Balance OSD-Activos'!J205)","v":2580.3782518308276},{"$f":"IF('[10]II.2.Balance OSD-Activos'!N205=\"\",\"\",'[10]II.2.Balance OSD-Activos'!N205)","v":1656.7024506932185},{"$f":"IF('[10]II.2.Balance OSD-Activos'!R205=\"\",\"\",'[10]II.2.Balance OSD-Activos'!R205)","v":76352.855825482518},{"$f":"IF('[10]II.2.Balance OSD-Activos'!S205=\"\",\"\",'[10]II.2.Balance OSD-Activos'!S205)","v":81647.074893713565},{"$f":"IFERROR(+AW340+AY340,\"\")","v":78933.234077313347},{"$f":"IF(OR(AW340=\"\",AX340=\"\",AY340=\"\",AZ340=\"\"),\"\",SUM(AW340:AZ340))","v":162237.01142172015},{"$f":"IF(OR(AW340=\"\",AW328=\"\"),\"\",((AW340/AW328)-1)*100)","v":16.159743933270001},{"$f":"IF(OR(BA340=\"\",BA328=\"\"),\"\",((BA340/BA328)-1)*100)","v":4.9760632536452132},{"$f":"IF(OR(AX340=\"\",AX328=\"\"),\"\",((AX340/AX328)-1)*100)","v":13.125449662294319},{"$f":"IF(OR(AY340=\"\",AY328=\"\"),\"\",((AY340/AY328)-1)*100)","v":4.6356027946470757},{"$f":"IF(OR(AZ340=\"\",AZ328=\"\"),\"\",((AZ340/AZ328)-1)*100)","v":7.2561701188494254},{"$f":"IF(OR(BB340=\"\",BB328=\"\"),\"\",((BB340/BB328)-1)*100)","v":6.1902583044995518},{"$f":"IF(OR(BH340=\"\",BH339=\"\"),\"\",BH340-BH339)","v":-0.326327352394995},{"$f":"IF('[1]MONE(M)CAPARD'!AS347=\"\",\"\",'[1]MONE(M)CAPARD'!AS347)","v":5},{"$f":"IF('[1]MONE(M)CAPARD'!AT347=\"\",\"\",'[1]MONE(M)CAPARD'!AT347)","v":"n.a."},{"$f":"IF('[1]MONE(M)CAPARD'!AU347=\"\",\"\",'[1]MONE(M)CAPARD'!AU347)","v":2.75},{"$f":"IF('[1]MONE(M)CAPARD'!AV347=\"\",\"\",'[1]MONE(M)CAPARD'!AV347)","v":5.5},{"$f":"IF('[1]MONE(M)CAPARD'!AW347=\"\",\"\",'[1]MONE(M)CAPARD'!AW347)","v":"n.a."},{"$f":"IF('[1]MONE(M)CAPARD'!AX347=\"\",\"\",'[1]MONE(M)CAPARD'!AX347)","v":5.25},{"$f":"IF('[1]MONE(M)CAPARD'!AY347=\"\",\"\",'[1]MONE(M)CAPARD'!AY347)","v":"n.a."},{"$f":"IF('[1]FISCAL(M)'!$K347=\"\",\"\",'[1]FISCAL(M)'!$K347)","v":-363.11734660538912},{"$f":"IF('[1]FISCAL(M)'!$L347=\"\",\"\",'[1]FISCAL(M)'!$L347)","v":"n.d."},{"$f":"IF('[1]FISCAL(M)'!$AY347=\"\",\"\",'[1]FISCAL(M)'!$AY347)","v":132184.96896449564},{"$f":"IF('[1]FISCAL(M)'!$BI347=\"\",\"\",'[1]FISCAL(M)'!$BI347)","v":69678.398808648926},{"$f":"IF('[1]FISCAL(M)'!$BS347=\"\",\"\",'[1]FISCAL(M)'!$BS347)","v":62506.570155846726},{"$f":"IF('[1]FISCAL(M)'!$AZ347=\"\",\"\",'[1]FISCAL(M)'!$AZ347)","v":155511.13896449565},{"$f":"IF('[1]FISCAL(M)'!$BJ347=\"\",\"\",'[1]FISCAL(M)'!$BJ347)","v":74663.68880864892},{"$f":"IF('[1]FISCAL(M)'!$BT347=\"\",\"\",'[1]FISCAL(M)'!$BT347)","v":80847.450155846731},{"$f":"IF('[2]MONE(M)'!$AO347=\"\",\"\",'[2]MONE(M)'!$AO347)","v":21425531.55567161},{"$f":"IF('[3]MONE(M)'!$AO347=\"\",\"\",'[3]MONE(M)'!$AO347)","v":12515.20647085},{"$f":"IF('[4]MONE(M)'!$AO347=\"\",\"\",'[4]MONE(M)'!$AO347)","v":196545.94725095161},{"$f":"+'[5]MONE(M)'!$AO347","v":314855.52938514046},{"$f":"IF('[6]MONE(M)'!$AO347=\"\",\"\",'[6]MONE(M)'!$AO347)","v":164651.83950322599},{"$f":"IF('[7]MONE(M)'!$AO347=\"\",\"\",'[7]MONE(M)'!$AO347)","v":1028956.28682644},{"$f":"IF('[8]MONE(M)'!$AO347=\"\",\"\",'[8]MONE(M)'!$AO347)","v":50784.165615800004},4.9092829247841641,4.9200491644593614,3.5488823410208203,9.6423851589230836,16.674414537975824,11.593720364612704,7.1498270035061262,{"$f":"'[1]FISCAL(M)'!$K347","v":-363.11734660538912},{"$f":"+'[1]REAL(A)'!$AO$38","v":284395.31118885882},-0.12768049694189693,{"$f":"IF('[1]FISCAL(M)'!$L347=\"\",\"\",'[1]FISCAL(M)'!$L347)","v":"n.d."},{"$f":"+'[1]REAL(A)'!$AP$38","v":349324.71961703547},"n.d.",152618.32841605003,{"$f":"'[1]Gráfico REM'!BG341","v":27621.334176322503},{"$f":"'[1]Gráfico REM'!BH341","v":116616.54309059723},{"$f":"'[1]Gráfico REM'!BI341","v":8380.451149130311},6.3483893774503919,11.84419777044463,5.0461608605797403,7.4822044817905331,227216.10271860007,{"$f":"'[1]Gráfico REM'!BK341","v":29811.360604842503},{"$f":"'[1]Gráfico REM'!BL341","v":167400.70870639724},{"$f":"'[1]Gráfico REM'!BM341","v":30004.033407360315},5.247212105012844,10.625358854137779,5.6755669768148831,-1.7225461619336579]
[2018,"marzo","2018-marzo",{"$f":"IF('[1]REAL IPC(M)'!$AL348=\"\",\"\",+'[1]REAL IPC(M)'!$AL348)","v":3.543303921664176},{"$f":"IF('[1]REAL IPC(M)'!$BE348=\"\",\"\",+'[1]REAL IPC(M)'!$BE348)","v":2.8239107757422},{"$f":"IF('[1]REAL IPC(M)'!$AM348=\"\",\"\",+'[1]REAL IPC(M)'!$AM348)","v":3.1227040394485206},{"$f":"IF('[1]REAL IPC(M)'!$BI348=\"\",\"\",+'[1]REAL IPC(M)'!$BI348)","v":2.476887444104281},{"$f":"IF('[1]REAL IMAE(M)'!BJ348=\"\",\"\",'[1]REAL IMAE(M)'!BJ348)","v":4.9107055287708201},{"$f":"IF('[1]REAL IMAE(M)'!BK348=\"\",\"\",'[1]REAL IMAE(M)'!BK348)","v":3.1666946506971216},{"$f":"IF('[1]REAL IMAE(M)'!BN348=\"\",\"\",'[1]REAL IMAE(M)'!BN348)","v":4.625980337219926},{"$f":"IF('[1]REAL IMAE(M)'!BO348=\"\",\"\",'[1]REAL IMAE(M)'!BO348)","v":2.9914793927911854},{"$f":"IF('[1]EXT RIN(M)'!$K348=\"\",\"\",'[1]EXT RIN(M)'!$K348)","v":38876.111293439797},null,{"$f":"IF('[1]EXT RIN(M)'!$L348=\"\",\"\",'[1]EXT RIN(M)'!$L348)","v":41663.817642469796},null,{"$f":"IF('[1]MONE(M)CARD'!EG348=\"\",\"\",'[1]MONE(M)CARD'!EG348)","v":37389.908317416412},{"$f":"IF('[1]MONE(M)CARD'!EK348=\"\",\"\",'[1]MONE(M)CARD'!EK348)","v":56345.726613795661},{"$f":"IF('[1]MONE(M)CARD'!EP348=\"\",\"\",'[1]MONE(M)CARD'!EP348)","v":31305.327802960746},{"$f":"IF('[1]MONE(M)CARD'!ES348=\"\",\"\",'[1]MONE(M)CARD'!ES348)","v":8.5994634202729792},{"$f":"IF('[1]MONE(M)CARD'!EV348=\"\",\"\",'[1]MONE(M)CARD'!EV348)","v":5.8300286158110559},{"$f":"IF('[1]MONE(M)CARD'!EZ348=\"\",\"\",'[1]MONE(M)CARD'!EZ348)","v":4.7475759525411165},{"$f":"IF('[1]MONE(M)CAPARD'!FC348=\"\",\"\",'[1]MONE(M)CAPARD'!FC348)","v":45503.330620986409},{"$f":"IF('[1]MONE(M)CAPARD'!FG348=\"\",\"\",'[1]MONE(M)CAPARD'!FG348)","v":88532.529969545663},{"$f":"IF('[1]MONE(M)CAPARD'!FL348=\"\",\"\",'[1]MONE(M)CAPARD'!FL348)","v":31305.327802960732},{"$f":"IF('[1]MONE(M)CAPARD'!FO348=\"\",\"\",'[1]MONE(M)CAPARD'!FO348)","v":7.2608586952179754},{"$f":"IF('[1]MONE(M)CAPARD'!FR348=\"\",\"\",'[1]MONE(M)CAPARD'!FR348)","v":5.3174428585831102},{"$f":"IF('[1]MONE(M)CAPARD'!FV348=\"\",\"\",'[1]MONE(M)CAPARD'!FV348)","v":4.5998644233136154},{"$f":"IF('[1]MONE(M)CARD'!FV348=\"\",\"\",'[1]MONE(M)CARD'!FV348)","v":1688.7163155737157},{"$f":"IF('[1]MONE(M)CARD'!GD348=\"\",\"\",'[1]MONE(M)CARD'!GD348)","v":68.207969778381099},{"$f":"IF('[1]MONE(M)CARD'!GE348=\"\",\"\",'[1]MONE(M)CARD'!GE348)","v":11499.785157509112},{"$f":"IF(AD341=\"\",\"\",((AD341/AD328)-1)*100)","v":15.587386727377272},{"$f":"IF('[9]II.2.Balance OSD-Activos'!J206=\"\",\"\",'[9]II.2.Balance OSD-Activos'!J206)","v":273.81148827631984},{"$f":"IF('[9]II.2.Balance OSD-Activos'!N206=\"\",\"\",'[9]II.2.Balance OSD-Activos'!N206)","v":1103.5172790079421},{"$f":"IF('[9]II.2.Balance OSD-Activos'!R206=\"\",\"\",'[9]II.2.Balance OSD-Activos'!R206)","v":52933.152445035725},{"$f":"IF('[9]II.2.Balance OSD-Activos'!S206=\"\",\"\",'[9]II.2.Balance OSD-Activos'!S206)","v":58409.51113499338},{"$f":"IFERROR(+AF341+AH341,\"\")","v":53206.963933312043},{"$f":"IF(OR(AF341=\"\",AG341=\"\",AH341=\"\",AI341=\"\"),\"\",SUM(AF341:AI341))","v":112719.99234731337},18.662910583381674,{"$f":"IF(OR(AJ341=\"\",AJ329=\"\"),\"\",((AJ341/AJ329)-1)*100)","v":4.9420819544507166},{"$f":"IF(OR(AG341=\"\",AG329=\"\"),\"\",((AG341/AG329)-1)*100)","v":9.2386200635053317},{"$f":"IF(OR(AH341=\"\",AH329=\"\"),\"\",((AH341/AH329)-1)*100)","v":4.8793513831288715},{"$f":"IF(OR(AI341=\"\",AI329=\"\"),\"\",((AI341/AI329)-1)*100)","v":6.4403535600188189},{"$f":"IF(OR(AK341=\"\",AK329=\"\"),\"\",((AK341/AK329)-1)*100)","v":5.7541758467767101},{"$f":"IF(OR(AQ341=\"\",AQ340=\"\"),\"\",AQ341-AQ340)","v":0.12458254917340206},{"$f":"IF('[1]MONE(M)CAPARD'!GS348=\"\",\"\",'[1]MONE(M)CAPARD'!GS348)","v":21687.620685206668},{"$f":"IF('[1]MONE(M)CARD'!HA348=\"\",\"\",'[1]MONE(M)CAPARD'!HA348)","v":13392.849862619114},{"$f":"IF('[1]MONE(M)CAPARD'!HB348=\"\",\"\",'[1]MONE(M)CAPARD'!HB348)","v":8294.770822587554},"n.d.",{"$f":"IF('[10]II.2.Balance OSD-Activos'!J206=\"\",\"\",'[10]II.2.Balance OSD-Activos'!J206)","v":2547.9677249163201},{"$f":"IF('[10]II.2.Balance OSD-Activos'!N206=\"\",\"\",'[10]II.2.Balance OSD-Activos'!N206)","v":1658.8010249279419},{"$f":"IF('[10]II.2.Balance OSD-Activos'!R206=\"\",\"\",'[10]II.2.Balance OSD-Activos'!R206)","v":76725.378748085728},{"$f":"IF('[10]II.2.Balance OSD-Activos'!S206=\"\",\"\",'[10]II.2.Balance OSD-Activos'!S206)","v":81968.93237101339},{"$f":"IFERROR(+AW341+AY341,\"\")","v":79273.34647300205},{"$f":"IF(OR(AW341=\"\",AX341=\"\",AY341=\"\",AZ341=\"\"),\"\",SUM(AW341:AZ341))","v":162901.07986894337},{"$f":"IF(OR(AW341=\"\",AW329=\"\"),\"\",((AW341/AW329)-1)*100)","v":19.860740821750888},{"$f":"IF(OR(BA341=\"\",BA329=\"\"),\"\",((BA341/BA329)-1)*100)","v":5.184826711454682},{"$f":"IF(OR(AX341=\"\",AX329=\"\"),\"\",((AX341/AX329)-1)*100)","v":11.782704661066123},{"$f":"IF(OR(AY341=\"\",AY329=\"\"),\"\",((AY341/AY329)-1)*100)","v":4.7588617700715874},{"$f":"IF(OR(AZ341=\"\",AZ329=\"\"),\"\",((AZ341/AZ329)-1)*100)","v":7.0561498108813403},{"$f":"IF(OR(BB341=\"\",BB329=\"\"),\"\",((BB341/BB329)-1)*100)","v":6.1825792410141744},{"$f":"IF(OR(BH341=\"\",BH340=\"\"),\"\",BH341-BH340)","v":-7.6790634853773909E-3},{"$f":"IF('[1]MONE(M)CAPARD'!AS348=\"\",\"\",'[1]MONE(M)CAPARD'!AS348)","v":5},{"$f":"IF('[1]MONE(M)CAPARD'!AT348=\"\",\"\",'[1]MONE(M)CAPARD'!AT348)","v":"n.a."},{"$f":"IF('[1]MONE(M)CAPARD'!AU348=\"\",\"\",'[1]MONE(M)CAPARD'!AU348)","v":2.75},{"$f":"IF('[1]MONE(M)CAPARD'!AV348=\"\",\"\",'[1]MONE(M)CAPARD'!AV348)","v":5.5},{"$f":"IF('[1]MONE(M)CAPARD'!AW348=\"\",\"\",'[1]MONE(M)CAPARD'!AW348)","v":"n.a."},{"$f":"IF('[1]MONE(M)CAPARD'!AX348=\"\",\"\",'[1]MONE(M)CAPARD'!AX348)","v":5.25},{"$f":"IF('[1]MONE(M)CAPARD'!AY348=\"\",\"\",'[1]MONE(M)CAPARD'!AY348)","v":"n.a."},{"$f":"IF('[1]FISCAL(M)'!$K348=\"\",\"\",'[1]FISCAL(M)'!$K348)","v":-896.63724633367985},{"$f":"IF('[1]FISCAL(M)'!$L348=\"\",\"\",'[1]FISCAL(M)'!$L348)","v":-1801.6372463336797},{"$f":"IF('[1]FISCAL(M)'!$AY348=\"\",\"\",'[1]FISCAL(M)'!$AY348)","v":134042.66736864403},{"$f":"IF('[1]FISCAL(M)'!$BI348=\"\",\"\",'[1]FISCAL(M)'!$BI348)","v":70625.389107224561},{"$f":"IF('[1]FISCAL(M)'!$BS348=\"\",\"\",'[1]FISCAL(M)'!$BS348)","v":63417.278261419444},{"$f":"IF('[1]FISCAL(M)'!$AZ348=\"\",\"\",'[1]FISCAL(M)'!$AZ348)","v":157715.64966864401},{"$f":"IF('[1]FISCAL(M)'!$BJ348=\"\",\"\",'[1]FISCAL(M)'!$BJ348)","v":75828.961407224575},{"$f":"IF('[1]FISCAL(M)'!$BT348=\"\",\"\",'[1]FISCAL(M)'!$BT348)","v":81886.688261419447},{"$f":"IF('[2]MONE(M)'!$AO348=\"\",\"\",'[2]MONE(M)'!$AO348)","v":21334644.844102934},{"$f":"IF('[3]MONE(M)'!$AO348=\"\",\"\",'[3]MONE(M)'!$AO348)","v":12548.006143149998},{"$f":"IF('[4]MONE(M)'!$AO348=\"\",\"\",'[4]MONE(M)'!$AO348)","v":197925.36200012689},{"$f":"+'[5]MONE(M)'!$AO348","v":317330.05833544838},{"$f":"IF('[6]MONE(M)'!$AO348=\"\",\"\",'[6]MONE(M)'!$AO348)","v":166524.83952769733},{"$f":"IF('[7]MONE(M)'!$AO348=\"\",\"\",'[7]MONE(M)'!$AO348)","v":1035364.0489089899},{"$f":"IF('[8]MONE(M)'!$AO348=\"\",\"\",'[8]MONE(M)'!$AO348)","v":50957.433308420004},3.8830331632307979,5.3508448302869605,3.7553130105482335,10.35181130884788,15.894782285555277,12.788396678576275,6.8240801937131002,{"$f":"'[1]FISCAL(M)'!$K348","v":-896.63724633367985},{"$f":"+'[1]REAL(A)'!$AO$38","v":284395.31118885882},-0.31527849126114765,{"$f":"IF('[1]FISCAL(M)'!$L348=\"\",\"\",'[1]FISCAL(M)'!$L348)","v":-1801.6372463336797},{"$f":"+'[1]REAL(A)'!$AP$38","v":349324.71961703547},-0.51574857007222785,152953.76097790015,{"$f":"'[1]Gráfico REM'!BG342","v":27356.637150390558},{"$f":"'[1]Gráfico REM'!BH342","v":117043.31161268038},{"$f":"'[1]Gráfico REM'!BI342","v":8553.8122148292059},{"$f":"IFERROR(+((CS341/CS329)-1)*100,\"\")","v":5.8087299812469073},{"$f":"IFERROR(+((CT341/CT329)-1)*100,\"\")","v":8.4050835217121431},{"$f":"IFERROR(+((CU341/CU329)-1)*100,\"\")","v":5.0006452470679141},{"$f":"IFERROR(+((CV341/CV329)-1)*100,\"\")","v":8.9360363922626362},{"$f":"+IF(OR(DB341=\"\",+DC341=\"\",+DD341=\"\"),\"\",(DB341+DC341+DD341))","v":227226.48399530016},{"$f":"'[1]Gráfico REM'!BK342","v":29639.139839600557},{"$f":"'[1]Gráfico REM'!BL342","v":168000.74492110038},{"$f":"'[1]Gráfico REM'!BM342","v":29586.599234599202},{"$f":"IFERROR(+((DA341/DA329)-1)*100,\"\")","v":4.8141473307921734},{"$f":"IFERROR(+((DB341/DB329)-1)*100,\"\")","v":7.8265410614998698},{"$f":"IFERROR(+((DC341/DC329)-1)*100,\"\")","v":5.5471120749006397},{"$f":"IFERROR(+((DD341/DD329)-1)*100,\"\")","v":-1.8060299895339194}]
[2018,"abril","2018-abril",{"$f":"IF('[1]REAL IPC(M)'!$AL349=\"\",\"\",+'[1]REAL IPC(M)'!$AL349)","v":3.4630943722277152},{"$f":"IF('[1]REAL IPC(M)'!$BE349=\"\",\"\",+'[1]REAL IPC(M)'!$BE349)","v":2.8348259486541627},{"$f":"IF('[1]REAL IPC(M)'!$AM349=\"\",\"\",+'[1]REAL IPC(M)'!$AM349)","v":3.0809681437855785},{"$f":"IF('[1]REAL IPC(M)'!$BI349=\"\",\"\",+'[1]REAL IPC(M)'!$BI349)","v":2.4795984258785708},{"$f":"IF('[1]REAL IMAE(M)'!BJ349=\"\",\"\",'[1]REAL IMAE(M)'!BJ349)","v":4.3225840324708775},{"$f":"IF('[1]REAL IMAE(M)'!BK349=\"\",\"\",'[1]REAL IMAE(M)'!BK349)","v":3.0736413046750233},{"$f":"IF('[1]REAL IMAE(M)'!BN349=\"\",\"\",'[1]REAL IMAE(M)'!BN349)","v":3.6509630672395987},{"$f":"IF('[1]REAL IMAE(M)'!BO349=\"\",\"\",'[1]REAL IMAE(M)'!BO349)","v":2.8776875807165814},{"$f":"IF('[1]EXT RIN(M)'!$K349=\"\",\"\",'[1]EXT RIN(M)'!$K349)","v":38383.28818037254},null,{"$f":"IF('[1]EXT RIN(M)'!$L349=\"\",\"\",'[1]EXT RIN(M)'!$L349)","v":41727.930410402536},null,{"$f":"IF('[1]MONE(M)CARD'!EG349=\"\",\"\",'[1]MONE(M)CARD'!EG349)","v":36898.69880096399},{"$f":"IF('[1]MONE(M)CARD'!EK349=\"\",\"\",'[1]MONE(M)CARD'!EK349)","v":56674.270443296642},{"$f":"IF('[1]MONE(M)CARD'!EP349=\"\",\"\",'[1]MONE(M)CARD'!EP349)","v":31745.11248789198},{"$f":"IF('[1]MONE(M)CARD'!ES349=\"\",\"\",'[1]MONE(M)CARD'!ES349)","v":6.3581364638854998},{"$f":"IF('[1]MONE(M)CARD'!EV349=\"\",\"\",'[1]MONE(M)CARD'!EV349)","v":5.0619327166454342},{"$f":"IF('[1]MONE(M)CARD'!EZ349=\"\",\"\",'[1]MONE(M)CARD'!EZ349)","v":4.8265685349727416},{"$f":"IF('[1]MONE(M)CAPARD'!FC349=\"\",\"\",'[1]MONE(M)CAPARD'!FC349)","v":45351.617169774006},{"$f":"IF('[1]MONE(M)CAPARD'!FG349=\"\",\"\",'[1]MONE(M)CAPARD'!FG349)","v":88627.518230226633},{"$f":"IF('[1]MONE(M)CAPARD'!FL349=\"\",\"\",'[1]MONE(M)CAPARD'!FL349)","v":31745.112487891951},{"$f":"IF('[1]MONE(M)CAPARD'!FO349=\"\",\"\",'[1]MONE(M)CAPARD'!FO349)","v":6.3273822738119323},{"$f":"IF('[1]MONE(M)CAPARD'!FR349=\"\",\"\",'[1]MONE(M)CAPARD'!FR349)","v":4.7174889168332568},{"$f":"IF('[1]MONE(M)CAPARD'!FV349=\"\",\"\",'[1]MONE(M)CAPARD'!FV349)","v":4.6061599962476274},{"$f":"IF('[1]MONE(M)CARD'!FV349=\"\",\"\",'[1]MONE(M)CARD'!FV349)","v":1691.1942177467004},{"$f":"IF('[1]MONE(M)CARD'!GD349=\"\",\"\",'[1]MONE(M)CARD'!GD349)","v":141.57578360524906},{"$f":"IF('[1]MONE(M)CARD'!GE349=\"\",\"\",'[1]MONE(M)CARD'!GE349)","v":11999.469907383649},{"$f":"IF(AD342=\"\",\"\",((AD342/AD329)-1)*100)","v":16.114763705336198},{"$f":"IF('[9]II.2.Balance OSD-Activos'!J207=\"\",\"\",'[9]II.2.Balance OSD-Activos'!J207)","v":278.12774231133869},{"$f":"IF('[9]II.2.Balance OSD-Activos'!N207=\"\",\"\",'[9]II.2.Balance OSD-Activos'!N207)","v":1160.1418795778866},{"$f":"IF('[9]II.2.Balance OSD-Activos'!R207=\"\",\"\",'[9]II.2.Balance OSD-Activos'!R207)","v":54145.658176068813},{"$f":"IF('[9]II.2.Balance OSD-Activos'!S207=\"\",\"\",'[9]II.2.Balance OSD-Activos'!S207)","v":57656.242957148883},{"$f":"IFERROR(+AF342+AH342,\"\")","v":54423.785918380148},{"$f":"IF(OR(AF342=\"\",AG342=\"\",AH342=\"\",AI342=\"\"),\"\",SUM(AF342:AI342))","v":113240.17075510693},{"$f":"IF(OR(AF342=\"\",AF330=\"\"),\"\",((AF342/AF330)-1)*100)","v":15.504243873282618},{"$f":"IF(OR(AJ342=\"\",AJ330=\"\"),\"\",((AJ342/AJ330)-1)*100)","v":6.8170496148375115},{"$f":"IF(OR(AG342=\"\",AG330=\"\"),\"\",((AG342/AG330)-1)*100)","v":18.265113637816444},{"$f":"IF(OR(AH342=\"\",AH330=\"\"),\"\",((AH342/AH330)-1)*100)","v":6.7757985567173273},{"$f":"IF(OR(AI342=\"\",AI330=\"\"),\"\",((AI342/AI330)-1)*100)","v":4.4411666236882752},{"$f":"IF(OR(AK342=\"\",AK330=\"\"),\"\",((AK342/AK330)-1)*100)","v":5.6976373292621396},{"$f":"IF(OR(AQ342=\"\",AQ341=\"\"),\"\",AQ342-AQ341)","v":-5.6538517514570508E-2},{"$f":"IF('[1]MONE(M)CAPARD'!GS349=\"\",\"\",'[1]MONE(M)CAPARD'!GS349)","v":21539.827789875573},{"$f":"IF('[1]MONE(M)CARD'!HA349=\"\",\"\",'[1]MONE(M)CAPARD'!HA349)","v":13905.724416133649},{"$f":"IF('[1]MONE(M)CAPARD'!HB349=\"\",\"\",'[1]MONE(M)CAPARD'!HB349)","v":7634.1033737419239},"n.d.",{"$f":"IF('[10]II.2.Balance OSD-Activos'!J207=\"\",\"\",'[10]II.2.Balance OSD-Activos'!J207)","v":2524.3654399613388},{"$f":"IF('[10]II.2.Balance OSD-Activos'!N207=\"\",\"\",'[10]II.2.Balance OSD-Activos'!N207)","v":1785.5890851578865},{"$f":"IF('[10]II.2.Balance OSD-Activos'!R207=\"\",\"\",'[10]II.2.Balance OSD-Activos'!R207)","v":77982.49446060881},{"$f":"IF('[10]II.2.Balance OSD-Activos'!S207=\"\",\"\",'[10]II.2.Balance OSD-Activos'!S207)","v":81341.205945598893},{"$f":"IFERROR(+AW342+AY342,\"\")","v":80506.859900570154},{"$f":"IF(OR(AW342=\"\",AX342=\"\",AY342=\"\",AZ342=\"\"),\"\",SUM(AW342:AZ342))","v":163633.65493132692},{"$f":"IF(OR(AW342=\"\",AW330=\"\"),\"\",((AW342/AW330)-1)*100)","v":19.017121845169083},{"$f":"IF(OR(BA342=\"\",BA330=\"\"),\"\",((BA342/BA330)-1)*100)","v":6.1824483765695604},{"$f":"IF(OR(AX342=\"\",AX330=\"\"),\"\",((AX342/AX330)-1)*100)","v":19.708952097749034},{"$f":"IF(OR(AY342=\"\",AY330=\"\"),\"\",((AY342/AY330)-1)*100)","v":5.813071415486859},{"$f":"IF(OR(AZ342=\"\",AZ330=\"\"),\"\",((AZ342/AZ330)-1)*100)","v":5.6146153595234116},{"$f":"IF(OR(BB342=\"\",BB330=\"\"),\"\",((BB342/BB330)-1)*100)","v":6.0298088792478},{"$f":"IF(OR(BH342=\"\",BH341=\"\"),\"\",BH342-BH341)","v":-0.15277036176637449},{"$f":"IF('[1]MONE(M)CAPARD'!AS349=\"\",\"\",'[1]MONE(M)CAPARD'!AS349)","v":5},{"$f":"IF('[1]MONE(M)CAPARD'!AT349=\"\",\"\",'[1]MONE(M)CAPARD'!AT349)","v":"n.a."},{"$f":"IF('[1]MONE(M)CAPARD'!AU349=\"\",\"\",'[1]MONE(M)CAPARD'!AU349)","v":2.75},{"$f":"IF('[1]MONE(M)CAPARD'!AV349=\"\",\"\",'[1]MONE(M)CAPARD'!AV349)","v":5.5},{"$f":"IF('[1]MONE(M)CAPARD'!AW349=\"\",\"\",'[1]MONE(M)CAPARD'!AW349)","v":"n.a."},{"$f":"IF('[1]MONE(M)CAPARD'!AX349=\"\",\"\",'[1]MONE(M)CAPARD'!AX349)","v":5.25},{"$f":"IF('[1]MONE(M)CAPARD'!AY349=\"\",\"\",'[1]MONE(M)CAPARD'!AY349)","v":"n.a."},{"$f":"IF('[1]FISCAL(M)'!$K349=\"\",\"\",'[1]FISCAL(M)'!$K349)","v":-209.70235611360278},{"$f":"IF('[1]FISCAL(M)'!$L349=\"\",\"\",'[1]FISCAL(M)'!$L349)","v":"n.d."},{"$f":"IF('[1]FISCAL(M)'!$AY349=\"\",\"\",'[1]FISCAL(M)'!$AY349)","v":134356.67635913682},{"$f":"IF('[1]FISCAL(M)'!$BI349=\"\",\"\",'[1]FISCAL(M)'!$BI349)","v":71071.769910360017},{"$f":"IF('[1]FISCAL(M)'!$BS349=\"\",\"\",'[1]FISCAL(M)'!$BS349)","v":63284.906448776819},{"$f":"IF('[1]FISCAL(M)'!$AZ349=\"\",\"\",'[1]FISCAL(M)'!$AZ349)","v":159156.66665913683},{"$f":"IF('[1]FISCAL(M)'!$BJ349=\"\",\"\",'[1]FISCAL(M)'!$BJ349)","v":76217.342210360017},{"$f":"IF('[1]FISCAL(M)'!$BT349=\"\",\"\",'[1]FISCAL(M)'!$BT349)","v":82939.324448776824},{"$f":"IF('[2]MONE(M)'!$AO349=\"\",\"\",'[2]MONE(M)'!$AO349)","v":21373079.821764626},{"$f":"IF('[3]MONE(M)'!$AO349=\"\",\"\",'[3]MONE(M)'!$AO349)","v":12615.719560829999},{"$f":"IF('[4]MONE(M)'!$AO349=\"\",\"\",'[4]MONE(M)'!$AO349)","v":198391.13962014142},{"$f":"+'[5]MONE(M)'!$AO349","v":320291.90903164406},{"$f":"IF('[6]MONE(M)'!$AO349=\"\",\"\",'[6]MONE(M)'!$AO349)","v":168339.33452671391},{"$f":"IF('[7]MONE(M)'!$AO349=\"\",\"\",'[7]MONE(M)'!$AO349)","v":1045414.5419804598},{"$f":"IF('[8]MONE(M)'!$AO349=\"\",\"\",'[8]MONE(M)'!$AO349)","v":51130.021452860005},{"$f":"IF(BY342=\"\",\"\",((BY342/BY330)-1)*100)","v":2.9923700113904772},{"$f":"IF(BZ342=\"\",\"\",((BZ342/BZ330)-1)*100)","v":5.0620712594141581},{"$f":"IF(CA342=\"\",\"\",((CA342/CA330)-1)*100)","v":3.4486803286323697},{"$f":"IF(CB342=\"\",\"\",((CB342/CB330)-1)*100)","v":11.652842049005919},{"$f":"IF(CC342=\"\",\"\",((CC342/CC330)-1)*100)","v":13.812784202251937},{"$f":"IF(CD342=\"\",\"\",((CD342/CD330)-1)*100)","v":13.532892362416082},{"$f":"IF(CE342=\"\",\"\",((CE342/CE330)-1)*100)","v":6.4633307822110631},{"$f":"'[1]FISCAL(M)'!$K349","v":-209.70235611360278},{"$f":"+'[1]REAL(A)'!$AO$38","v":284395.31118885882},-7.3736221331140522E-2,{"$f":"IF('[1]FISCAL(M)'!$L349=\"\",\"\",'[1]FISCAL(M)'!$L349)","v":"n.d."},{"$f":"+'[1]REAL(A)'!$AP$38","v":349324.71961703547},"n.d.",{"$f":"+IF(OR(CT342=\"\",+CU342=\"\",+CV342=\"\"),\"\",(CT342+CU342+CV342))","v":154013.62530024891},{"$f":"'[1]Gráfico REM'!BG343","v":27750.056905136957},{"$f":"'[1]Gráfico REM'!BH343","v":117528.69328051952},{"$f":"'[1]Gráfico REM'!BI343","v":8734.875114592438},{"$f":"IFERROR(+((CS342/CS330)-1)*100,\"\")","v":5.7434575240809638},{"$f":"IFERROR(+((CT342/CT330)-1)*100,\"\")","v":7.1318031389898229},{"$f":"IFERROR(+((CU342/CU330)-1)*100,\"\")","v":4.9497315500336203},{"$f":"IFERROR(+((CV342/CV330)-1)*100,\"\")","v":12.563611546010067},{"$f":"+IF(OR(DB342=\"\",+DC342=\"\",+DD342=\"\"),\"\",(DB342+DC342+DD342))","v":228946.12226240896},{"$f":"'[1]Gráfico REM'!BK343","v":29975.486912706958},{"$f":"'[1]Gráfico REM'!BL343","v":168658.71473337954},{"$f":"'[1]Gráfico REM'!BM343","v":30311.920616322444},{"$f":"IFERROR(+((DA342/DA330)-1)*100,\"\")","v":5.3575732899346917},{"$f":"IFERROR(+((DB342/DB330)-1)*100,\"\")","v":6.5616584888152474},{"$f":"IFERROR(+((DC342/DC330)-1)*100,\"\")","v":5.4040236953261545},{"$f":"IFERROR(+((DD342/DD330)-1)*100,\"\")","v":3.9412644120322859}]
[2018,"mayo ","2018-mayo ",{"$f":"IF('[1]REAL IPC(M)'!$AL350=\"\",\"\",+'[1]REAL IPC(M)'!$AL350)","v":3.5768926485020947},{"$f":"IF('[1]REAL IPC(M)'!$BE350=\"\",\"\",+'[1]REAL IPC(M)'!$BE350)","v":2.8446432535448762},{"$f":"IF('[1]REAL IPC(M)'!$AM350=\"\",\"\",+'[1]REAL IPC(M)'!$AM350)","v":3.1786460883908463},{"$f":"IF('[1]REAL IPC(M)'!$BI350=\"\",\"\",+'[1]REAL IPC(M)'!$BI350)","v":2.480927073475403},{"$f":"IF('[1]REAL IMAE(M)'!BJ350=\"\",\"\",'[1]REAL IMAE(M)'!BJ350)","v":4.1291301957093518},{"$f":"IF('[1]REAL IMAE(M)'!BK350=\"\",\"\",'[1]REAL IMAE(M)'!BK350)","v":2.9781965843390434},{"$f":"IF('[1]REAL IMAE(M)'!BN350=\"\",\"\",'[1]REAL IMAE(M)'!BN350)","v":3.5524987490568538},{"$f":"IF('[1]REAL IMAE(M)'!BO350=\"\",\"\",'[1]REAL IMAE(M)'!BO350)","v":2.7608564904270327},{"$f":"IF('[1]EXT RIN(M)'!$K350=\"\",\"\",'[1]EXT RIN(M)'!$K350)","v":38062.624750515293},null,{"$f":"IF('[1]EXT RIN(M)'!$L350=\"\",\"\",'[1]EXT RIN(M)'!$L350)","v":41370.624140785294},null,{"$f":"IF('[1]MONE(M)CARD'!EG350=\"\",\"\",'[1]MONE(M)CARD'!EG350)","v":36079.054359687565},{"$f":"IF('[1]MONE(M)CARD'!EK350=\"\",\"\",'[1]MONE(M)CARD'!EK350)","v":56704.159913461408},{"$f":"IF('[1]MONE(M)CARD'!EP350=\"\",\"\",'[1]MONE(M)CARD'!EP350)","v":31865.544016366446},{"$f":"IF('[1]MONE(M)CARD'!ES350=\"\",\"\",'[1]MONE(M)CARD'!ES350)","v":6.4256881382337649},{"$f":"IF('[1]MONE(M)CARD'!EV350=\"\",\"\",'[1]MONE(M)CARD'!EV350)","v":5.1085053319895213},{"$f":"IF('[1]MONE(M)CARD'!EZ350=\"\",\"\",'[1]MONE(M)CARD'!EZ350)","v":4.6182081708175282},{"$f":"IF('[1]MONE(M)CAPARD'!FC350=\"\",\"\",'[1]MONE(M)CAPARD'!FC350)","v":44148.213569317581},{"$f":"IF('[1]MONE(M)CAPARD'!FG350=\"\",\"\",'[1]MONE(M)CAPARD'!FG350)","v":88864.091983591425},{"$f":"IF('[1]MONE(M)CAPARD'!FL350=\"\",\"\",'[1]MONE(M)CAPARD'!FL350)","v":31865.544016366417},{"$f":"IF('[1]MONE(M)CAPARD'!FO350=\"\",\"\",'[1]MONE(M)CAPARD'!FO350)","v":5.2572046471258904},{"$f":"IF('[1]MONE(M)CAPARD'!FR350=\"\",\"\",'[1]MONE(M)CAPARD'!FR350)","v":4.578230322436827},{"$f":"IF('[1]MONE(M)CAPARD'!FV350=\"\",\"\",'[1]MONE(M)CAPARD'!FV350)","v":4.3122196397816781},{"$f":"IF('[1]MONE(M)CARD'!FV350=\"\",\"\",'[1]MONE(M)CARD'!FV350)","v":1680.8692222678287},{"$f":"IF('[1]MONE(M)CARD'!GD350=\"\",\"\",'[1]MONE(M)CARD'!GD350)","v":64.880974362017668},{"$f":"IF('[1]MONE(M)CARD'!GE350=\"\",\"\",'[1]MONE(M)CARD'!GE350)","v":11488.096767928748},{"$f":"IF(AD343=\"\",\"\",((AD343/AD330)-1)*100)","v":-0.35948762106629006},{"$f":"IF('[9]II.2.Balance OSD-Activos'!J208=\"\",\"\",'[9]II.2.Balance OSD-Activos'!J208)","v":265.77980967084955},{"$f":"IF('[9]II.2.Balance OSD-Activos'!N208=\"\",\"\",'[9]II.2.Balance OSD-Activos'!N208)","v":1218.0138856034346},{"$f":"IF('[9]II.2.Balance OSD-Activos'!R208=\"\",\"\",'[9]II.2.Balance OSD-Activos'!R208)","v":53217.210937235533},{"$f":"IF('[9]II.2.Balance OSD-Activos'!S208=\"\",\"\",'[9]II.2.Balance OSD-Activos'!S208)","v":58733.025263255258},{"$f":"IFERROR(+AF343+AH343,\"\")","v":53482.990746906384},{"$f":"IF(OR(AF343=\"\",AG343=\"\",AH343=\"\",AI343=\"\"),\"\",SUM(AF343:AI343))","v":113434.02989576507},{"$f":"IF(OR(AF343=\"\",AF331=\"\"),\"\",((AF343/AF331)-1)*100)","v":4.7307468354444548},{"$f":"IF(OR(AJ343=\"\",AJ331=\"\"),\"\",((AJ343/AJ331)-1)*100)","v":4.7909718272739044},{"$f":"IF(OR(AG343=\"\",AG331=\"\"),\"\",((AG343/AG331)-1)*100)","v":18.41430562076831},{"$f":"IF(OR(AH343=\"\",AH331=\"\"),\"\",((AH343/AH331)-1)*100)","v":4.7912727794866106},{"$f":"IF(OR(AI343=\"\",AI331=\"\"),\"\",((AI343/AI331)-1)*100)","v":6.1039357928823978},{"$f":"IF(OR(AK343=\"\",AK331=\"\"),\"\",((AK343/AK331)-1)*100)","v":5.5979968256595791},{"$f":"IF(OR(AQ343=\"\",AQ342=\"\"),\"\",AQ343-AQ342)","v":-9.9640503602560493E-2},{"$f":"IF('[1]MONE(M)CAPARD'!GS350=\"\",\"\",'[1]MONE(M)CAPARD'!GS350)","v":21663.397802869629},{"$f":"IF('[1]MONE(M)CARD'!HA350=\"\",\"\",'[1]MONE(M)CAPARD'!HA350)","v":13412.72193212875},{"$f":"IF('[1]MONE(M)CAPARD'!HB350=\"\",\"\",'[1]MONE(M)CAPARD'!HB350)","v":8250.675870740879},"n.d.",{"$f":"IF('[10]II.2.Balance OSD-Activos'!J208=\"\",\"\",'[10]II.2.Balance OSD-Activos'!J208)","v":2511.2965674308484},{"$f":"IF('[10]II.2.Balance OSD-Activos'!N208=\"\",\"\",'[10]II.2.Balance OSD-Activos'!N208)","v":1816.6621542334344},{"$f":"IF('[10]II.2.Balance OSD-Activos'!R208=\"\",\"\",'[10]II.2.Balance OSD-Activos'!R208)","v":77066.005409095553},{"$f":"IF('[10]II.2.Balance OSD-Activos'!S208=\"\",\"\",'[10]II.2.Balance OSD-Activos'!S208)","v":82545.096512375269},{"$f":"IFERROR(+AW343+AY343,\"\")","v":79577.301976526403},{"$f":"IF(OR(AW343=\"\",AX343=\"\",AY343=\"\",AZ343=\"\"),\"\",SUM(AW343:AZ343))","v":163939.0606431351},{"$f":"IF(OR(AW343=\"\",AW331=\"\"),\"\",((AW343/AW331)-1)*100)","v":17.160052776486179},{"$f":"IF(OR(BA343=\"\",BA331=\"\"),\"\",((BA343/BA331)-1)*100)","v":4.6426546529389823},{"$f":"IF(OR(AX343=\"\",AX331=\"\"),\"\",((AX343/AX331)-1)*100)","v":18.341614080527258},{"$f":"IF(OR(AY343=\"\",AY331=\"\"),\"\",((AY343/AY331)-1)*100)","v":4.2796024902255869},{"$f":"IF(OR(AZ343=\"\",AZ331=\"\"),\"\",((AZ343/AZ331)-1)*100)","v":6.7214617393410947},{"$f":"IF(OR(BB343=\"\",BB331=\"\"),\"\",((BB343/BB331)-1)*100)","v":5.8162137853692064},{"$f":"IF(OR(BH343=\"\",BH342=\"\"),\"\",BH343-BH342)","v":-0.21359509387859354},{"$f":"IF('[1]MONE(M)CAPARD'!AS350=\"\",\"\",'[1]MONE(M)CAPARD'!AS350)","v":5},{"$f":"IF('[1]MONE(M)CAPARD'!AT350=\"\",\"\",'[1]MONE(M)CAPARD'!AT350)","v":"n.a."},{"$f":"IF('[1]MONE(M)CAPARD'!AU350=\"\",\"\",'[1]MONE(M)CAPARD'!AU350)","v":2.75},{"$f":"IF('[1]MONE(M)CAPARD'!AV350=\"\",\"\",'[1]MONE(M)CAPARD'!AV350)","v":5.5},{"$f":"IF('[1]MONE(M)CAPARD'!AW350=\"\",\"\",'[1]MONE(M)CAPARD'!AW350)","v":"n.a."},{"$f":"IF('[1]MONE(M)CAPARD'!AX350=\"\",\"\",'[1]MONE(M)CAPARD'!AX350)","v":5.25},{"$f":"IF('[1]MONE(M)CAPARD'!AY350=\"\",\"\",'[1]MONE(M)CAPARD'!AY350)","v":"n.a."},{"$f":"IF('[1]FISCAL(M)'!$K350=\"\",\"\",'[1]FISCAL(M)'!$K350)","v":-947.72401574037258},{"$f":"IF('[1]FISCAL(M)'!$L350=\"\",\"\",'[1]FISCAL(M)'!$L350)","v":"n.d."},{"$f":"IF('[1]FISCAL(M)'!$AY350=\"\",\"\",'[1]FISCAL(M)'!$AY350)","v":134046.53521055129},{"$f":"IF('[1]FISCAL(M)'!$BI350=\"\",\"\",'[1]FISCAL(M)'!$BI350)","v":70967.158987808827},{"$f":"IF('[1]FISCAL(M)'!$BS350=\"\",\"\",'[1]FISCAL(M)'!$BS350)","v":63079.37622274246},{"$f":"IF('[1]FISCAL(M)'!$AZ350=\"\",\"\",'[1]FISCAL(M)'!$AZ350)","v":158895.99401055131},{"$f":"IF('[1]FISCAL(M)'!$BJ350=\"\",\"\",'[1]FISCAL(M)'!$BJ350)","v":76167.731287808827},{"$f":"IF('[1]FISCAL(M)'!$BT350=\"\",\"\",'[1]FISCAL(M)'!$BT350)","v":82728.262722742467},{"$f":"IF('[2]MONE(M)'!$AO350=\"\",\"\",'[2]MONE(M)'!$AO350)","v":21424517.32481106},{"$f":"IF('[3]MONE(M)'!$AO350=\"\",\"\",'[3]MONE(M)'!$AO350)","v":12671.7997163},{"$f":"IF('[4]MONE(M)'!$AO350=\"\",\"\",'[4]MONE(M)'!$AO350)","v":198924.63618635177},{"$f":"+'[5]MONE(M)'!$AO350","v":324974.84604535275},{"$f":"IF('[6]MONE(M)'!$AO350=\"\",\"\",'[6]MONE(M)'!$AO350)","v":167029.4531335904},{"$f":"IF('[7]MONE(M)'!$AO350=\"\",\"\",'[7]MONE(M)'!$AO350)","v":1056564.0815769201},{"$f":"IF('[8]MONE(M)'!$AO350=\"\",\"\",'[8]MONE(M)'!$AO350)","v":51317.143930300008},{"$f":"IF(BY343=\"\",\"\",((BY343/BY331)-1)*100)","v":2.0882319324248666},{"$f":"IF(BZ343=\"\",\"\",((BZ343/BZ331)-1)*100)","v":5.2141296026069428},{"$f":"IF(CA343=\"\",\"\",((CA343/CA331)-1)*100)","v":3.8430112397368932},{"$f":"IF(CB343=\"\",\"\",((CB343/CB331)-1)*100)","v":12.15781042155999},{"$f":"IF(CC343=\"\",\"\",((CC343/CC331)-1)*100)","v":10.911333039210724},{"$f":"IF(CD343=\"\",\"\",((CD343/CD331)-1)*100)","v":12.869139797450369},{"$f":"IF(CE343=\"\",\"\",((CE343/CE331)-1)*100)","v":6.1317849013327264},{"$f":"'[1]FISCAL(M)'!$K350","v":-947.72401574037258},{"$f":"+'[1]REAL(A)'!$AO$38","v":284395.31118885882},-0.33324178650435488,{"$f":"IF('[1]FISCAL(M)'!$L350=\"\",\"\",'[1]FISCAL(M)'!$L350)","v":"n.d."},{"$f":"+'[1]REAL(A)'!$AP$38","v":349324.71961703547},"n.d.",{"$f":"+IF(OR(CT343=\"\",+CU343=\"\",+CV343=\"\"),\"\",(CT343+CU343+CV343))","v":153746.61624667031},{"$f":"'[1]Gráfico REM'!BG344","v":27238.306640269671},{"$f":"'[1]Gráfico REM'!BH344","v":117597.23962916152},{"$f":"'[1]Gráfico REM'!BI344","v":8911.0699772391363},{"$f":"IFERROR(+((CS343/CS331)-1)*100,\"\")","v":5.2795851599600319},{"$f":"IFERROR(+((CT343/CT331)-1)*100,\"\")","v":5.097957727401381},{"$f":"IFERROR(+((CU343/CU331)-1)*100,\"\")","v":4.7882101259721699},{"$f":"IFERROR(+((CV343/CV331)-1)*100,\"\")","v":12.859813044868474},{"$f":"+IF(OR(DB343=\"\",+DC343=\"\",+DD343=\"\"),\"\",(DB343+DC343+DD343))","v":228646.43265903031},{"$f":"'[1]Gráfico REM'!BK344","v":29472.307786089674},{"$f":"'[1]Gráfico REM'!BL344","v":168914.38355946151},{"$f":"'[1]Gráfico REM'!BM344","v":30259.741313479135},{"$f":"IFERROR(+((DA343/DA331)-1)*100,\"\")","v":4.9608678323650679},{"$f":"IFERROR(+((DB343/DB331)-1)*100,\"\")","v":4.6513493943339812},{"$f":"IFERROR(+((DC343/DC331)-1)*100,\"\")","v":5.1927843119378814},{"$f":"IFERROR(+((DD343/DD331)-1)*100,\"\")","v":3.9807243070994591}]
[2018,"junio ","2018-junio ",{"$f":"IF('[1]REAL IPC(M)'!$AL351=\"\",\"\",+'[1]REAL IPC(M)'!$AL351)","v":3.6092076132944406},{"$f":"IF('[1]REAL IPC(M)'!$BE351=\"\",\"\",+'[1]REAL IPC(M)'!$BE351)","v":2.8535926535387057},{"$f":"IF('[1]REAL IPC(M)'!$AM351=\"\",\"\",+'[1]REAL IPC(M)'!$AM351)","v":3.2631591196266685},{"$f":"IF('[1]REAL IPC(M)'!$BI351=\"\",\"\",+'[1]REAL IPC(M)'!$BI351)","v":2.4811071054672951},{"$f":"IF('[1]REAL IMAE(M)'!BJ351=\"\",\"\",'[1]REAL IMAE(M)'!BJ351)","v":4.2899742378695649},{"$f":"IF('[1]REAL IMAE(M)'!BK351=\"\",\"\",'[1]REAL IMAE(M)'!BK351)","v":2.8806347652457376},{"$f":"IF('[1]REAL IMAE(M)'!BN351=\"\",\"\",'[1]REAL IMAE(M)'!BN351)","v":3.8212371421648905},{"$f":"IF('[1]REAL IMAE(M)'!BO351=\"\",\"\",'[1]REAL IMAE(M)'!BO351)","v":2.641329880691079},{"$f":"IF('[1]EXT RIN(M)'!$K351=\"\",\"\",'[1]EXT RIN(M)'!$K351)","v":37562.589857708386},null,{"$f":"IF('[1]EXT RIN(M)'!$L351=\"\",\"\",'[1]EXT RIN(M)'!$L351)","v":40458.500935618387},null,{"$f":"IF('[1]MONE(M)CARD'!EG351=\"\",\"\",'[1]MONE(M)CARD'!EG351)","v":36302.603452548363},{"$f":"IF('[1]MONE(M)CARD'!EK351=\"\",\"\",'[1]MONE(M)CARD'!EK351)","v":57387.40414379516},{"$f":"IF('[1]MONE(M)CARD'!EP351=\"\",\"\",'[1]MONE(M)CARD'!EP351)","v":31222.57114485593},{"$f":"IF('[1]MONE(M)CARD'!ES351=\"\",\"\",'[1]MONE(M)CARD'!ES351)","v":7.639971844087623},{"$f":"IF('[1]MONE(M)CARD'!EV351=\"\",\"\",'[1]MONE(M)CARD'!EV351)","v":5.214365914060437},{"$f":"IF('[1]MONE(M)CARD'!EZ351=\"\",\"\",'[1]MONE(M)CARD'!EZ351)","v":4.1167814520017165},{"$f":"IF('[1]MONE(M)CAPARD'!FC351=\"\",\"\",'[1]MONE(M)CAPARD'!FC351)","v":44430.646619178355},{"$f":"IF('[1]MONE(M)CAPARD'!FG351=\"\",\"\",'[1]MONE(M)CAPARD'!FG351)","v":89525.496617055149},{"$f":"IF('[1]MONE(M)CAPARD'!FL351=\"\",\"\",'[1]MONE(M)CAPARD'!FL351)","v":31222.57114485596},{"$f":"IF('[1]MONE(M)CAPARD'!FO351=\"\",\"\",'[1]MONE(M)CAPARD'!FO351)","v":6.6825314569934013},{"$f":"IF('[1]MONE(M)CAPARD'!FR351=\"\",\"\",'[1]MONE(M)CAPARD'!FR351)","v":4.5292609490325431},{"$f":"IF('[1]MONE(M)CAPARD'!FV351=\"\",\"\",'[1]MONE(M)CAPARD'!FV351)","v":3.8346795204073469},{"$f":"IF('[1]MONE(M)CARD'!FV351=\"\",\"\",'[1]MONE(M)CARD'!FV351)","v":1672.4613176761522},{"$f":"IF('[1]MONE(M)CARD'!GD351=\"\",\"\",'[1]MONE(M)CARD'!GD351)","v":124.70820469819043},{"$f":"IF('[1]MONE(M)CARD'!GE351=\"\",\"\",'[1]MONE(M)CARD'!GE351)","v":11413.861511933676},{"$f":"IF(AD344=\"\",\"\",((AD344/AD331)-1)*100)","v":1.8038227406036},{"$f":"IF('[9]II.2.Balance OSD-Activos'!J209=\"\",\"\",'[9]II.2.Balance OSD-Activos'!J209)","v":268.1390564741439},{"$f":"IF('[9]II.2.Balance OSD-Activos'!N209=\"\",\"\",'[9]II.2.Balance OSD-Activos'!N209)","v":1591.4032987201053},{"$f":"IF('[9]II.2.Balance OSD-Activos'!R209=\"\",\"\",'[9]II.2.Balance OSD-Activos'!R209)","v":54296.411379189769},{"$f":"IF('[9]II.2.Balance OSD-Activos'!S209=\"\",\"\",'[9]II.2.Balance OSD-Activos'!S209)","v":58149.720816319204},{"$f":"IFERROR(+AF344+AH344,\"\")","v":54564.550435663914},{"$f":"IF(OR(AF344=\"\",AG344=\"\",AH344=\"\",AI344=\"\"),\"\",SUM(AF344:AI344))","v":114305.67455070323},{"$f":"IF(OR(AF344=\"\",AF332=\"\"),\"\",((AF344/AF332)-1)*100)","v":5.8627230181163226},{"$f":"IF(OR(AJ344=\"\",AJ332=\"\"),\"\",((AJ344/AJ332)-1)*100)","v":6.0000876082287657},{"$f":"IF(OR(AG344=\"\",AG332=\"\"),\"\",((AG344/AG332)-1)*100)","v":52.065400781093608},{"$f":"IF(OR(AH344=\"\",AH332=\"\"),\"\",((AH344/AH332)-1)*100)","v":6.0007668582976903},{"$f":"IF(OR(AI344=\"\",AI332=\"\"),\"\",((AI344/AI332)-1)*100)","v":4.4376451579119403},{"$f":"IF(OR(AK344=\"\",AK332=\"\"),\"\",((AK344/AK332)-1)*100)","v":5.6416214021924871},{"$f":"IF(OR(AQ344=\"\",AQ343=\"\"),\"\",AQ344-AQ343)","v":4.3624576532907966E-2},{"$f":"IF('[1]MONE(M)CAPARD'!GS351=\"\",\"\",'[1]MONE(M)CAPARD'!GS351)","v":21754.773376617424},{"$f":"IF('[1]MONE(M)CARD'!HA351=\"\",\"\",'[1]MONE(M)CAPARD'!HA351)","v":13249.881112393676},{"$f":"IF('[1]MONE(M)CAPARD'!HB351=\"\",\"\",'[1]MONE(M)CAPARD'!HB351)","v":8504.8922642237485},"n.d.",{"$f":"IF('[10]II.2.Balance OSD-Activos'!J209=\"\",\"\",'[10]II.2.Balance OSD-Activos'!J209)","v":2540.972263114144},{"$f":"IF('[10]II.2.Balance OSD-Activos'!N209=\"\",\"\",'[10]II.2.Balance OSD-Activos'!N209)","v":2126.3291079601049},{"$f":"IF('[10]II.2.Balance OSD-Activos'!R209=\"\",\"\",'[10]II.2.Balance OSD-Activos'!R209)","v":78110.022548289766},{"$f":"IF('[10]II.2.Balance OSD-Activos'!S209=\"\",\"\",'[10]II.2.Balance OSD-Activos'!S209)","v":82086.80811924921},80650.994811403914,164864.13203861323,22.515571308824669,5.4297091911674089,35.426008843507439,4.9535677573762538,5.4537699250624794,5.7438041122149563,-7.2409673154250065E-2,{"$f":"IF('[1]MONE(M)CAPARD'!AS351=\"\",\"\",'[1]MONE(M)CAPARD'!AS351)","v":5},{"$f":"IF('[1]MONE(M)CAPARD'!AT351=\"\",\"\",'[1]MONE(M)CAPARD'!AT351)","v":"n.a."},{"$f":"IF('[1]MONE(M)CAPARD'!AU351=\"\",\"\",'[1]MONE(M)CAPARD'!AU351)","v":2.75},{"$f":"IF('[1]MONE(M)CAPARD'!AV351=\"\",\"\",'[1]MONE(M)CAPARD'!AV351)","v":5.5},{"$f":"IF('[1]MONE(M)CAPARD'!AW351=\"\",\"\",'[1]MONE(M)CAPARD'!AW351)","v":"n.a."},{"$f":"IF('[1]MONE(M)CAPARD'!AX351=\"\",\"\",'[1]MONE(M)CAPARD'!AX351)","v":5.25},{"$f":"IF('[1]MONE(M)CAPARD'!AY351=\"\",\"\",'[1]MONE(M)CAPARD'!AY351)","v":"n.a."},{"$f":"IF('[1]FISCAL(M)'!$K351=\"\",\"\",'[1]FISCAL(M)'!$K351)","v":-1652.9336067769577},{"$f":"IF('[1]FISCAL(M)'!$L351=\"\",\"\",'[1]FISCAL(M)'!$L351)","v":-3329.9336067769577},{"$f":"IF('[1]FISCAL(M)'!$AY351=\"\",\"\",'[1]FISCAL(M)'!$AY351)","v":134494.36185208429},{"$f":"IF('[1]FISCAL(M)'!$BI351=\"\",\"\",'[1]FISCAL(M)'!$BI351)","v":71595.017871659322},{"$f":"IF('[1]FISCAL(M)'!$BS351=\"\",\"\",'[1]FISCAL(M)'!$BS351)","v":62899.343980425001},{"$f":"IF('[1]FISCAL(M)'!$AZ351=\"\",\"\",'[1]FISCAL(M)'!$AZ351)","v":158727.08015208429},{"$f":"IF('[1]FISCAL(M)'!$BJ351=\"\",\"\",'[1]FISCAL(M)'!$BJ351)","v":76224.276671659318},{"$f":"IF('[1]FISCAL(M)'!$BT351=\"\",\"\",'[1]FISCAL(M)'!$BT351)","v":82502.803480425006},{"$f":"IF('[2]MONE(M)'!$AO351=\"\",\"\",'[2]MONE(M)'!$AO351)","v":21480360.278876342},{"$f":"IF('[3]MONE(M)'!$AO351=\"\",\"\",'[3]MONE(M)'!$AO351)","v":12738.23255895},{"$f":"IF('[4]MONE(M)'!$AO351=\"\",\"\",'[4]MONE(M)'!$AO351)","v":199285.70229430648},{"$f":"+'[5]MONE(M)'!$AO351","v":327019.5109443221},{"$f":"IF('[6]MONE(M)'!$AO351=\"\",\"\",'[6]MONE(M)'!$AO351)","v":163978.14760418495},{"$f":"IF('[7]MONE(M)'!$AO351=\"\",\"\",'[7]MONE(M)'!$AO351)","v":1062061.6106490199},{"$f":"IF('[8]MONE(M)'!$AO351=\"\",\"\",'[8]MONE(M)'!$AO351)","v":51452.042798259994},{"$f":"IF(BY344=\"\",\"\",((BY344/BY332)-1)*100)","v":1.5006209498118483},{"$f":"IF(BZ344=\"\",\"\",((BZ344/BZ332)-1)*100)","v":5.602774686067713},{"$f":"IF(CA344=\"\",\"\",((CA344/CA332)-1)*100)","v":3.9884091510973274},{"$f":"IF(CB344=\"\",\"\",((CB344/CB332)-1)*100)","v":12.360623536964631},{"$f":"IF(CC344=\"\",\"\",((CC344/CC332)-1)*100)","v":8.7437002681588716},{"$f":"IF(CD344=\"\",\"\",((CD344/CD332)-1)*100)","v":11.932454382803037},{"$f":"IF(CE344=\"\",\"\",((CE344/CE332)-1)*100)","v":6.021679486258269},{"$f":"'[1]FISCAL(M)'!$K351","v":-1652.9336067769577},{"$f":"+'[1]REAL(A)'!$AO$38","v":284395.31118885882},-0.58120986589659052,{"$f":"IF('[1]FISCAL(M)'!$L351=\"\",\"\",'[1]FISCAL(M)'!$L351)","v":-3329.9336067769577},{"$f":"+'[1]REAL(A)'!$AP$38","v":349324.71961703547},-0.95324877392804108,{"$f":"+IF(OR(CT344=\"\",+CU344=\"\",+CV344=\"\"),\"\",(CT344+CU344+CV344))","v":154810.10129188359},{"$f":"'[1]Gráfico REM'!BG345","v":27635.700829989157},{"$f":"'[1]Gráfico REM'!BH345","v":117815.16205005423},{"$f":"'[1]Gráfico REM'!BI345","v":9359.238411840206},{"$f":"IFERROR(+((CS344/CS332)-1)*100,\"\")","v":5.3117797239444986},{"$f":"IFERROR(+((CT344/CT332)-1)*100,\"\")","v":6.1571305166407964},{"$f":"IFERROR(+((CU344/CU332)-1)*100,\"\")","v":4.3083994695212402},{"$f":"IFERROR(+((CV344/CV332)-1)*100,\"\")","v":16.698792951569551},{"$f":"+IF(OR(DB344=\"\",+DC344=\"\",+DD344=\"\"),\"\",(DB344+DC344+DD344))","v":229831.99505387357},{"$f":"'[1]Gráfico REM'!BK345","v":29642.59942961916},{"$f":"'[1]Gráfico REM'!BL345","v":169267.20484831423},{"$f":"'[1]Gráfico REM'!BM345","v":30922.190775940209},{"$f":"IFERROR(+((DA344/DA332)-1)*100,\"\")","v":4.8739724741735602},{"$f":"IFERROR(+((DB344/DB332)-1)*100,\"\")","v":4.9469468155258323},{"$f":"IFERROR(+((DC344/DC332)-1)*100,\"\")","v":4.8232975670215561},{"$f":"IFERROR(+((DD344/DD332)-1)*100,\"\")","v":5.0820054950506233}]
[2018,"julio","2018-julio",{"$f":"IF('[1]REAL IPC(M)'!$AL352=\"\",\"\",+'[1]REAL IPC(M)'!$AL352)","v":3.2162730937934425},{"$f":"IF('[1]REAL IPC(M)'!$BE352=\"\",\"\",+'[1]REAL IPC(M)'!$BE352)","v":2.8619465401517719},{"$f":"IF('[1]REAL IPC(M)'!$AM352=\"\",\"\",+'[1]REAL IPC(M)'!$AM352)","v":2.9454726142967846},{"$f":"IF('[1]REAL IPC(M)'!$BI352=\"\",\"\",+'[1]REAL IPC(M)'!$BI352)","v":2.4804200439946245},{"$f":"IF('[1]REAL IMAE(M)'!BJ352=\"\",\"\",'[1]REAL IMAE(M)'!BJ352)","v":4.2530017640738604},{"$f":"IF('[1]REAL IMAE(M)'!BK352=\"\",\"\",'[1]REAL IMAE(M)'!BK352)","v":2.7812940456598101},{"$f":"IF('[1]REAL IMAE(M)'!BN352=\"\",\"\",'[1]REAL IMAE(M)'!BN352)","v":3.7155004530176505},{"$f":"IF('[1]REAL IMAE(M)'!BO352=\"\",\"\",'[1]REAL IMAE(M)'!BO352)","v":2.5194996162910099},{"$f":"IF('[1]EXT RIN(M)'!$K352=\"\",\"\",'[1]EXT RIN(M)'!$K352)","v":38399.33678136456},null,{"$f":"IF('[1]EXT RIN(M)'!$L352=\"\",\"\",'[1]EXT RIN(M)'!$L352)","v":40925.743485954561},null,{"$f":"IF('[1]MONE(M)CARD'!EG352=\"\",\"\",'[1]MONE(M)CARD'!EG352)","v":36301.99336027207},{"$f":"IF('[1]MONE(M)CARD'!EK352=\"\",\"\",'[1]MONE(M)CARD'!EK352)","v":57246.666244726686},{"$f":"IF('[1]MONE(M)CARD'!EP352=\"\",\"\",'[1]MONE(M)CARD'!EP352)","v":31169.160608684106},{"$f":"IF('[1]MONE(M)CARD'!ES352=\"\",\"\",'[1]MONE(M)CARD'!ES352)","v":6.4549359592732003},{"$f":"IF('[1]MONE(M)CARD'!EV352=\"\",\"\",'[1]MONE(M)CARD'!EV352)","v":4.0684453153387423},{"$f":"IF('[1]MONE(M)CARD'!EZ352=\"\",\"\",'[1]MONE(M)CARD'!EZ352)","v":3.4370263637667708},{"$f":"IF('[1]MONE(M)CAPARD'!FC352=\"\",\"\",'[1]MONE(M)CAPARD'!FC352)","v":44284.49078009207},{"$f":"IF('[1]MONE(M)CAPARD'!FG352=\"\",\"\",'[1]MONE(M)CAPARD'!FG352)","v":89391.187985306693},{"$f":"IF('[1]MONE(M)CAPARD'!FL352=\"\",\"\",'[1]MONE(M)CAPARD'!FL352)","v":31169.160608684091},{"$f":"IF('[1]MONE(M)CAPARD'!FO352=\"\",\"\",'[1]MONE(M)CAPARD'!FO352)","v":4.9603776902441998},{"$f":"IF('[1]MONE(M)CAPARD'!FR352=\"\",\"\",'[1]MONE(M)CAPARD'!FR352)","v":3.3777891355921241},{"$f":"IF('[1]MONE(M)CAPARD'!FV352=\"\",\"\",'[1]MONE(M)CAPARD'!FV352)","v":3.0343826195427859},{"$f":"IF('[1]MONE(M)CARD'!FV352=\"\",\"\",'[1]MONE(M)CARD'!FV352)","v":1665.2371961423871},{"$f":"IF('[1]MONE(M)CARD'!GD352=\"\",\"\",'[1]MONE(M)CARD'!GD352)","v":99.246021168600464},{"$f":"IF('[1]MONE(M)CARD'!GE352=\"\",\"\",'[1]MONE(M)CARD'!GE352)","v":11786.054646224795},2.7085276502448297,{"$f":"IF('[9]II.2.Balance OSD-Activos'!J210=\"\",\"\",'[9]II.2.Balance OSD-Activos'!J210)","v":271.40978095973088},{"$f":"IF('[9]II.2.Balance OSD-Activos'!N210=\"\",\"\",'[9]II.2.Balance OSD-Activos'!N210)","v":1572.7021738321575},{"$f":"IF('[9]II.2.Balance OSD-Activos'!R210=\"\",\"\",'[9]II.2.Balance OSD-Activos'!R210)","v":54369.945669601118},{"$f":"IF('[9]II.2.Balance OSD-Activos'!S210=\"\",\"\",'[9]II.2.Balance OSD-Activos'!S210)","v":58463.989566405944},{"$f":"IFERROR(+AF345+AH345,\"\")","v":54641.355450560848},{"$f":"IF(OR(AF345=\"\",AG345=\"\",AH345=\"\",AI345=\"\"),\"\",SUM(AF345:AI345))","v":114678.04719079894},{"$f":"IF(OR(AF345=\"\",AF333=\"\"),\"\",((AF345/AF333)-1)*100)","v":-0.6825212133135472},6.4424957482915657,52.908433907894015,6.4806284360575228,4.2642394909577774,5.7568374570055703,0.11521605481308317,{"$f":"IF('[1]MONE(M)CAPARD'!GS352=\"\",\"\",'[1]MONE(M)CAPARD'!GS352)","v":21605.37491746297},{"$f":"IF('[1]MONE(M)CARD'!HA352=\"\",\"\",'[1]MONE(M)CAPARD'!HA352)","v":13560.570379734794},{"$f":"IF('[1]MONE(M)CAPARD'!HB352=\"\",\"\",'[1]MONE(M)CAPARD'!HB352)","v":8044.804537728176},"n.d.",{"$f":"IF('[10]II.2.Balance OSD-Activos'!J210=\"\",\"\",'[10]II.2.Balance OSD-Activos'!J210)","v":2505.2103493497302},{"$f":"IF('[10]II.2.Balance OSD-Activos'!N210=\"\",\"\",'[10]II.2.Balance OSD-Activos'!N210)","v":2084.8219874821575},{"$f":"IF('[10]II.2.Balance OSD-Activos'!R210=\"\",\"\",'[10]II.2.Balance OSD-Activos'!R210)","v":78342.20522145112},{"$f":"IF('[10]II.2.Balance OSD-Activos'!S210=\"\",\"\",'[10]II.2.Balance OSD-Activos'!S210)","v":82498.595814125933},{"$f":"IFERROR(+AW345+AY345,\"\")","v":80847.415570800847},165430.83337240893,{"$f":"IF(OR(AW345=\"\",AW333=\"\"),\"\",((AW345/AW333)-1)*100)","v":7.5822183877237936},{"$f":"IF(OR(BA345=\"\",BA333=\"\"),\"\",((BA345/BA333)-1)*100)","v":5.3709773969277563},{"$f":"IF(OR(AX345=\"\",AX333=\"\"),\"\",((AX345/AX333)-1)*100)","v":35.349196350826027},{"$f":"IF(OR(AY345=\"\",AY333=\"\"),\"\",((AY345/AY333)-1)*100)","v":5.3017656773447941},{"$f":"IF(OR(AZ345=\"\",AZ333=\"\"),\"\",((AZ345/AZ333)-1)*100)","v":5.2076248426988991},{"$f":"IF(OR(BB345=\"\",BB333=\"\"),\"\",((BB345/BB333)-1)*100)","v":5.5839376715797417},{"$f":"IF(OR(BH345=\"\",BH344=\"\"),\"\",BH345-BH344)","v":-0.1598664406352146},{"$f":"IF('[1]MONE(M)CAPARD'!AS352=\"\",\"\",'[1]MONE(M)CAPARD'!AS352)","v":5},{"$f":"IF('[1]MONE(M)CAPARD'!AT352=\"\",\"\",'[1]MONE(M)CAPARD'!AT352)","v":"n.a."},{"$f":"IF('[1]MONE(M)CAPARD'!AU352=\"\",\"\",'[1]MONE(M)CAPARD'!AU352)","v":2.75},{"$f":"IF('[1]MONE(M)CAPARD'!AV352=\"\",\"\",'[1]MONE(M)CAPARD'!AV352)","v":5.5},{"$f":"IF('[1]MONE(M)CAPARD'!AW352=\"\",\"\",'[1]MONE(M)CAPARD'!AW352)","v":"n.a."},{"$f":"IF('[1]MONE(M)CAPARD'!AX352=\"\",\"\",'[1]MONE(M)CAPARD'!AX352)","v":5.5},{"$f":"IF('[1]MONE(M)CAPARD'!AY352=\"\",\"\",'[1]MONE(M)CAPARD'!AY352)","v":"n.a."},{"$f":"IF('[1]FISCAL(M)'!$K352=\"\",\"\",'[1]FISCAL(M)'!$K352)","v":-2419.1419544970822},{"$f":"IF('[1]FISCAL(M)'!$L352=\"\",\"\",'[1]FISCAL(M)'!$L352)","v":"n.d."},{"$f":"IF('[1]FISCAL(M)'!$AY352=\"\",\"\",'[1]FISCAL(M)'!$AY352)","v":137283.607799183},{"$f":"IF('[1]FISCAL(M)'!$BI352=\"\",\"\",'[1]FISCAL(M)'!$BI352)","v":72691.100699182964},{"$f":"IF('[1]FISCAL(M)'!$BS352=\"\",\"\",'[1]FISCAL(M)'!$BS352)","v":64592.507100000003},{"$f":"IF('[1]FISCAL(M)'!$AZ352=\"\",\"\",'[1]FISCAL(M)'!$AZ352)","v":161692.81499918294},{"$f":"IF('[1]FISCAL(M)'!$BJ352=\"\",\"\",'[1]FISCAL(M)'!$BJ352)","v":77520.35949918296},{"$f":"IF('[1]FISCAL(M)'!$BT352=\"\",\"\",'[1]FISCAL(M)'!$BT352)","v":84172.455499999982},{"$f":"IF('[2]MONE(M)'!$AO352=\"\",\"\",'[2]MONE(M)'!$AO352)","v":21545531.561863597},{"$f":"IF('[3]MONE(M)'!$AO352=\"\",\"\",'[3]MONE(M)'!$AO352)","v":12845.441010859999},{"$f":"IF('[4]MONE(M)'!$AO352=\"\",\"\",'[4]MONE(M)'!$AO352)","v":198959.1061095878},{"$f":"+'[5]MONE(M)'!$AO352","v":330171.2641122542},{"$f":"IF('[6]MONE(M)'!$AO352=\"\",\"\",'[6]MONE(M)'!$AO352)","v":160978.38218384958},{"$f":"IF('[7]MONE(M)'!$AO352=\"\",\"\",'[7]MONE(M)'!$AO352)","v":1071031.7178051001},{"$f":"IF('[8]MONE(M)'!$AO352=\"\",\"\",'[8]MONE(M)'!$AO352)","v":51645.736701969996},{"$f":"IF(BY345=\"\",\"\",((BY345/BY333)-1)*100)","v":2.0082522639847777},{"$f":"IF(BZ345=\"\",\"\",((BZ345/BZ333)-1)*100)","v":5.6019228059110082},{"$f":"IF(CA345=\"\",\"\",((CA345/CA333)-1)*100)","v":3.9036428331589157},{"$f":"IF(CB345=\"\",\"\",((CB345/CB333)-1)*100)","v":12.668801134728881},{"$f":"IF(CC345=\"\",\"\",((CC345/CC333)-1)*100)","v":5.806133328415819},{"$f":"IF(CD345=\"\",\"\",((CD345/CD333)-1)*100)","v":13.696699996199158},{"$f":"IF(CE345=\"\",\"\",((CE345/CE333)-1)*100)","v":5.1581917390429277},{"$f":"'[1]FISCAL(M)'!$K352","v":-2419.1419544970822},{"$f":"+'[1]REAL(A)'!$AO$38","v":284395.31118885882},-0.85062652558663288,{"$f":"IF('[1]FISCAL(M)'!$L352=\"\",\"\",'[1]FISCAL(M)'!$L352)","v":"n.d."},{"$f":"+'[1]REAL(A)'!$AP$38","v":349324.71961703547},"n.d.",{"$f":"+IF(OR(CT345=\"\",+CU345=\"\",+CV345=\"\"),\"\",(CT345+CU345+CV345))","v":155375.91555510031},{"$f":"'[1]Gráfico REM'!BG346","v":27777.08295849483},{"$f":"'[1]Gráfico REM'!BH346","v":118112.91537423138},{"$f":"'[1]Gráfico REM'!BI346","v":9485.9172223741007},{"$f":"IFERROR(+((CS345/CS333)-1)*100,\"\")","v":5.5308212360184461},{"$f":"IFERROR(+((CT345/CT333)-1)*100,\"\")","v":5.6128529366885838},{"$f":"IFERROR(+((CU345/CU333)-1)*100,\"\")","v":4.5131072041183051},{"$f":"IFERROR(+((CV345/CV333)-1)*100,\"\")","v":19.78161716000406},230526.7658998603,{"$f":"'[1]Gráfico REM'!BK346","v":29810.70053322483},{"$f":"'[1]Gráfico REM'!BL346","v":169758.65207620137},{"$f":"'[1]Gráfico REM'!BM346","v":30957.413290434102},{"$f":"IFERROR(+((DA345/DA333)-1)*100,\"\")","v":4.882054254116297},{"$f":"IFERROR(+((DB345/DB333)-1)*100,\"\")","v":4.348171372302323},{"$f":"IFERROR(+((DC345/DC333)-1)*100,\"\")","v":4.7085223000216114},{"$f":"IFERROR(+((DD345/DD333)-1)*100,\"\")","v":6.3728448097471579}]
[2018,"agosto","2018-agosto",{"$f":"IF('[1]REAL IPC(M)'!$AL353=\"\",\"\",+'[1]REAL IPC(M)'!$AL353)","v":3.3249588502449745},{"$f":"IF('[1]REAL IPC(M)'!$BE353=\"\",\"\",+'[1]REAL IPC(M)'!$BE353)","v":2.8700150076256925},{"$f":"IF('[1]REAL IPC(M)'!$AM353=\"\",\"\",+'[1]REAL IPC(M)'!$AM353)","v":3.0068739748099871},{"$f":"IF('[1]REAL IPC(M)'!$BI353=\"\",\"\",+'[1]REAL IPC(M)'!$BI353)","v":2.4791939040079702},{"$f":"IF('[1]REAL IMAE(M)'!BJ353=\"\",\"\",'[1]REAL IMAE(M)'!BJ353)","v":4.3046030489846121},{"$f":"IF('[1]REAL IMAE(M)'!BK353=\"\",\"\",'[1]REAL IMAE(M)'!BK353)","v":2.6805905336434233},{"$f":"IF('[1]REAL IMAE(M)'!BN353=\"\",\"\",'[1]REAL IMAE(M)'!BN353)","v":3.8927935976026395},{"$f":"IF('[1]REAL IMAE(M)'!BO353=\"\",\"\",'[1]REAL IMAE(M)'!BO353)","v":2.3958328396163298},{"$f":"IF('[1]EXT RIN(M)'!$K353=\"\",\"\",'[1]EXT RIN(M)'!$K353)","v":38464.041854337032},null,{"$f":"IF('[1]EXT RIN(M)'!$L353=\"\",\"\",'[1]EXT RIN(M)'!$L353)","v":41252.022345677033},null,{"$f":"IF('[1]MONE(M)CARD'!EG353=\"\",\"\",'[1]MONE(M)CARD'!EG353)","v":35826.18894631185},{"$f":"IF('[1]MONE(M)CARD'!EK353=\"\",\"\",'[1]MONE(M)CARD'!EK353)","v":57132.330610953817},{"$f":"IF('[1]MONE(M)CARD'!EP353=\"\",\"\",'[1]MONE(M)CARD'!EP353)","v":31197.207887915327},{"$f":"IF('[1]MONE(M)CARD'!ES353=\"\",\"\",'[1]MONE(M)CARD'!ES353)","v":5.1611517596570344},{"$f":"IF('[1]MONE(M)CARD'!EV353=\"\",\"\",'[1]MONE(M)CARD'!EV353)","v":3.0738573492359755},{"$f":"IF('[1]MONE(M)CARD'!EZ353=\"\",\"\",'[1]MONE(M)CARD'!EZ353)","v":2.4830954883545475},{"$f":"IF('[1]MONE(M)CAPARD'!FC353=\"\",\"\",'[1]MONE(M)CAPARD'!FC353)","v":43781.825254461844},{"$f":"IF('[1]MONE(M)CAPARD'!FG353=\"\",\"\",'[1]MONE(M)CAPARD'!FG353)","v":89551.724449993839},{"$f":"IF('[1]MONE(M)CAPARD'!FL353=\"\",\"\",'[1]MONE(M)CAPARD'!FL353)","v":31197.207887915341},{"$f":"IF('[1]MONE(M)CAPARD'!FO353=\"\",\"\",'[1]MONE(M)CAPARD'!FO353)","v":3.8744631023403642},{"$f":"IF('[1]MONE(M)CAPARD'!FR353=\"\",\"\",'[1]MONE(M)CAPARD'!FR353)","v":2.7249273294084997},{"$f":"IF('[1]MONE(M)CAPARD'!FV353=\"\",\"\",'[1]MONE(M)CAPARD'!FV353)","v":2.3469300502625856},{"$f":"IF('[1]MONE(M)CARD'!FV353=\"\",\"\",'[1]MONE(M)CARD'!FV353)","v":1636.829274281507},{"$f":"IF('[1]MONE(M)CARD'!GD353=\"\",\"\",'[1]MONE(M)CARD'!GD353)","v":88.581638417687003},{"$f":"IF('[1]MONE(M)CARD'!GE353=\"\",\"\",'[1]MONE(M)CARD'!GE353)","v":11492.456876266968},{"$f":"IF(AD346=\"\",\"\",((AD346/AD333)-1)*100)","v":-0.88289697638314069},{"$f":"IF('[9]II.2.Balance OSD-Activos'!J211=\"\",\"\",'[9]II.2.Balance OSD-Activos'!J211)","v":277.80200852511564},{"$f":"IF('[9]II.2.Balance OSD-Activos'!N211=\"\",\"\",'[9]II.2.Balance OSD-Activos'!N211)","v":1571.4090393311758},{"$f":"IF('[9]II.2.Balance OSD-Activos'!R211=\"\",\"\",'[9]II.2.Balance OSD-Activos'!R211)","v":54284.349126537127},{"$f":"IF('[9]II.2.Balance OSD-Activos'!S211=\"\",\"\",'[9]II.2.Balance OSD-Activos'!S211)","v":58689.311797455375},54562.151135062246,114822.8719718488,{"$f":"IF(OR(AF346=\"\",AF334=\"\"),\"\",((AF346/AF334)-1)*100)","v":-6.1227101120676313},5.7691598739344263,57.142842996382193,5.8377704455764512,4.1620365351029864,5.4094885973203999,-0.34734885968517037,{"$f":"IF('[1]MONE(M)CAPARD'!GS353=\"\",\"\",'[1]MONE(M)CAPARD'!GS353)","v":21768.08239493681},{"$f":"IF('[1]MONE(M)CARD'!HA353=\"\",\"\",'[1]MONE(M)CAPARD'!HA353)","v":13275.980204456968},{"$f":"IF('[1]MONE(M)CAPARD'!HB353=\"\",\"\",'[1]MONE(M)CAPARD'!HB353)","v":8492.1021904798417},"n.d.",{"$f":"IF('[10]II.2.Balance OSD-Activos'!J211=\"\",\"\",'[10]II.2.Balance OSD-Activos'!J211)","v":2522.9014295451161},{"$f":"IF('[10]II.2.Balance OSD-Activos'!N211=\"\",\"\",'[10]II.2.Balance OSD-Activos'!N211)","v":2078.2299107511758},{"$f":"IF('[10]II.2.Balance OSD-Activos'!R211=\"\",\"\",'[10]II.2.Balance OSD-Activos'!R211)","v":78430.797575407123},{"$f":"IF('[10]II.2.Balance OSD-Activos'!S211=\"\",\"\",'[10]II.2.Balance OSD-Activos'!S211)","v":82855.562531675372},80953.699004952243,{"$f":"IF(OR(AW346=\"\",AX346=\"\",AY346=\"\",AZ346=\"\"),\"\",SUM(AW346:AZ346))","v":165887.49144737876},1.7867195965370675,4.9866878777456769,33.276181228282823,5.0929655060131473,5.0929927879281633,5.3199663686881893,-0.26397130289155246,{"$f":"IF('[1]MONE(M)CAPARD'!AS353=\"\",\"\",'[1]MONE(M)CAPARD'!AS353)","v":5},{"$f":"IF('[1]MONE(M)CAPARD'!AT353=\"\",\"\",'[1]MONE(M)CAPARD'!AT353)","v":"n.a."},{"$f":"IF('[1]MONE(M)CAPARD'!AU353=\"\",\"\",'[1]MONE(M)CAPARD'!AU353)","v":2.75},{"$f":"IF('[1]MONE(M)CAPARD'!AV353=\"\",\"\",'[1]MONE(M)CAPARD'!AV353)","v":5.5},{"$f":"IF('[1]MONE(M)CAPARD'!AW353=\"\",\"\",'[1]MONE(M)CAPARD'!AW353)","v":"n.a."},{"$f":"IF('[1]MONE(M)CAPARD'!AX353=\"\",\"\",'[1]MONE(M)CAPARD'!AX353)","v":5.5},{"$f":"IF('[1]MONE(M)CAPARD'!AY353=\"\",\"\",'[1]MONE(M)CAPARD'!AY353)","v":"n.a."},{"$f":"IF('[1]FISCAL(M)'!$K353=\"\",\"\",'[1]FISCAL(M)'!$K353)","v":-3194.5667574125141},{"$f":"IF('[1]FISCAL(M)'!$L353=\"\",\"\",'[1]FISCAL(M)'!$L353)","v":"n.d."},{"$f":"IF('[1]FISCAL(M)'!$AY353=\"\",\"\",'[1]FISCAL(M)'!$AY353)","v":137219.271879254},{"$f":"IF('[1]FISCAL(M)'!$BI353=\"\",\"\",'[1]FISCAL(M)'!$BI353)","v":72565.413625083413},{"$f":"IF('[1]FISCAL(M)'!$BS353=\"\",\"\",'[1]FISCAL(M)'!$BS353)","v":64653.858254170569},{"$f":"IF('[1]FISCAL(M)'!$AZ353=\"\",\"\",'[1]FISCAL(M)'!$AZ353)","v":161940.83897925398},{"$f":"IF('[1]FISCAL(M)'!$BJ353=\"\",\"\",'[1]FISCAL(M)'!$BJ353)","v":77659.014525083418},{"$f":"IF('[1]FISCAL(M)'!$BT353=\"\",\"\",'[1]FISCAL(M)'!$BT353)","v":84281.824454170564},{"$f":"IF('[2]MONE(M)'!$AO353=\"\",\"\",'[2]MONE(M)'!$AO353)","v":21702351.865697019},{"$f":"IF('[3]MONE(M)'!$AO353=\"\",\"\",'[3]MONE(M)'!$AO353)","v":12950.189451270071},{"$f":"IF('[4]MONE(M)'!$AO353=\"\",\"\",'[4]MONE(M)'!$AO353)","v":199785.09831934574},{"$f":"+'[5]MONE(M)'!$AO353","v":335761.83403283264},{"$f":"IF('[6]MONE(M)'!$AO353=\"\",\"\",'[6]MONE(M)'!$AO353)","v":158985.63534788016},{"$f":"IF('[7]MONE(M)'!$AO353=\"\",\"\",'[7]MONE(M)'!$AO353)","v":1082205.9812156302},{"$f":"IF('[8]MONE(M)'!$AO353=\"\",\"\",'[8]MONE(M)'!$AO353)","v":51982.767461390002},{"$f":"IF(BY346=\"\",\"\",((BY346/BY334)-1)*100)","v":1.9863477023189136},{"$f":"IF(BZ346=\"\",\"\",((BZ346/BZ334)-1)*100)","v":6.4604132689425109},{"$f":"IF(CA346=\"\",\"\",((CA346/CA334)-1)*100)","v":4.2231822997498947},{"$f":"IF(CB346=\"\",\"\",((CB346/CB334)-1)*100)","v":13.662502809932132},{"$f":"IF(CC346=\"\",\"\",((CC346/CC334)-1)*100)","v":3.2725355370075482},{"$f":"IF(CD346=\"\",\"\",((CD346/CD334)-1)*100)","v":13.364072240070124},{"$f":"IF(CE346=\"\",\"\",((CE346/CE334)-1)*100)","v":5.1667387600109915},{"$f":"'[1]FISCAL(M)'!$K353","v":-3194.5667574125141},{"$f":"+'[1]REAL(A)'!$AO$38","v":284395.31118885882},-1.123283905089101,{"$f":"IF('[1]FISCAL(M)'!$L353=\"\",\"\",'[1]FISCAL(M)'!$L353)","v":"n.d."},{"$f":"+'[1]REAL(A)'!$AP$38","v":349324.71961703547},"n.d.",154639.87255221535,{"$f":"'[1]Gráfico REM'!BG347","v":27516.673080755885},{"$f":"'[1]Gráfico REM'!BH347","v":118217.88203879063},{"$f":"'[1]Gráfico REM'!BI347","v":8905.3174326688422},4.7412051647857334,4.4808146582573594,4.1903597912207102,13.587937510497294,230199.99634047534,{"$f":"'[1]Gráfico REM'!BK347","v":29576.330818345887},{"$f":"'[1]Gráfico REM'!BL347","v":170200.64950018062},{"$f":"'[1]Gráfico REM'!BM347","v":30423.016021948843},{"$f":"IFERROR(+((DA346/DA334)-1)*100,\"\")","v":4.6194457278553092},{"$f":"IFERROR(+((DB346/DB334)-1)*100,\"\")","v":3.6139352248713674},{"$f":"IFERROR(+((DC346/DC334)-1)*100,\"\")","v":4.4866374788937957},{"$f":"IFERROR(+((DD346/DD334)-1)*100,\"\")","v":6.3795156036636769}]
[2018,"septiembre","2018-septiembre",{"$f":"IF('[1]REAL IPC(M)'!$AL354=\"\",\"\",+'[1]REAL IPC(M)'!$AL354)","v":3.4824859639965622},{"$f":"IF('[1]REAL IPC(M)'!$BE354=\"\",\"\",+'[1]REAL IPC(M)'!$BE354)","v":2.8781316837675597},{"$f":"IF('[1]REAL IPC(M)'!$AM354=\"\",\"\",+'[1]REAL IPC(M)'!$AM354)","v":3.0959444051446461},{"$f":"IF('[1]REAL IPC(M)'!$BI354=\"\",\"\",+'[1]REAL IPC(M)'!$BI354)","v":2.477790922470402},{"$f":"IF('[1]REAL IMAE(M)'!BJ354=\"\",\"\",'[1]REAL IMAE(M)'!BJ354)","v":3.9936241085664292},{"$f":"IF('[1]REAL IMAE(M)'!BK354=\"\",\"\",'[1]REAL IMAE(M)'!BK354)","v":2.5790231168898448},{"$f":"IF('[1]REAL IMAE(M)'!BN354=\"\",\"\",'[1]REAL IMAE(M)'!BN354)","v":3.5118625910320445},{"$f":"IF('[1]REAL IMAE(M)'!BO354=\"\",\"\",'[1]REAL IMAE(M)'!BO354)","v":2.2708722641535672},{"$f":"IF('[1]EXT RIN(M)'!$K354=\"\",\"\",'[1]EXT RIN(M)'!$K354)","v":37417.505900372038},null,{"$f":"IF('[1]EXT RIN(M)'!$L354=\"\",\"\",'[1]EXT RIN(M)'!$L354)","v":39617.686410122034},null,{"$f":"IF('[1]MONE(M)CARD'!EG354=\"\",\"\",'[1]MONE(M)CARD'!EG354)","v":35369.861369007231},{"$f":"IF('[1]MONE(M)CARD'!EK354=\"\",\"\",'[1]MONE(M)CARD'!EK354)","v":56814.660589634157},{"$f":"IF('[1]MONE(M)CARD'!EP354=\"\",\"\",'[1]MONE(M)CARD'!EP354)","v":31166.845615198821},{"$f":"IF('[1]MONE(M)CARD'!ES354=\"\",\"\",'[1]MONE(M)CARD'!ES354)","v":3.5937431397391917},{"$f":"IF('[1]MONE(M)CARD'!EV354=\"\",\"\",'[1]MONE(M)CARD'!EV354)","v":2.0970551273966853},{"$f":"IF('[1]MONE(M)CARD'!EZ354=\"\",\"\",'[1]MONE(M)CARD'!EZ354)","v":1.9703347535566795},{"$f":"IF('[1]MONE(M)CAPARD'!FC354=\"\",\"\",'[1]MONE(M)CAPARD'!FC354)","v":43212.484996967229},{"$f":"IF('[1]MONE(M)CAPARD'!FG354=\"\",\"\",'[1]MONE(M)CAPARD'!FG354)","v":89197.55523861415},{"$f":"IF('[1]MONE(M)CAPARD'!FL354=\"\",\"\",'[1]MONE(M)CAPARD'!FL354)","v":31166.845615198836},{"$f":"IF('[1]MONE(M)CAPARD'!FO354=\"\",\"\",'[1]MONE(M)CAPARD'!FO354)","v":2.3364223977329734},{"$f":"IF('[1]MONE(M)CAPARD'!FR354=\"\",\"\",'[1]MONE(M)CAPARD'!FR354)","v":1.9206695657484119},{"$f":"IF('[1]MONE(M)CAPARD'!FV354=\"\",\"\",'[1]MONE(M)CAPARD'!FV354)","v":1.8589095136895661},{"$f":"IF('[1]MONE(M)CARD'!FV354=\"\",\"\",'[1]MONE(M)CARD'!FV354)","v":1635.1254864152506},{"$f":"IF('[1]MONE(M)CARD'!GD354=\"\",\"\",'[1]MONE(M)CARD'!GD354)","v":164.00609293739632},{"$f":"IF('[1]MONE(M)CARD'!GE354=\"\",\"\",'[1]MONE(M)CARD'!GE354)","v":11441.531844770705},{"$f":"IF(AD347=\"\",\"\",((AD347/AD334)-1)*100)","v":-0.73995296478721606},{"$f":"IF('[9]II.2.Balance OSD-Activos'!J212=\"\",\"\",'[9]II.2.Balance OSD-Activos'!J212)","v":236.25175012837678},{"$f":"IF('[9]II.2.Balance OSD-Activos'!N212=\"\",\"\",'[9]II.2.Balance OSD-Activos'!N212)","v":1545.310593690981},{"$f":"IF('[9]II.2.Balance OSD-Activos'!R212=\"\",\"\",'[9]II.2.Balance OSD-Activos'!R212)","v":54402.30039305539},{"$f":"IF('[9]II.2.Balance OSD-Activos'!S212=\"\",\"\",'[9]II.2.Balance OSD-Activos'!S212)","v":58577.737478200463},{"$f":"IFERROR(+AF347+AH347,\"\")","v":54638.55214318377},{"$f":"IF(OR(AF347=\"\",AG347=\"\",AH347=\"\",AI347=\"\"),\"\",SUM(AF347:AI347))","v":114761.60021507522},{"$f":"IF(OR(AF347=\"\",AF335=\"\"),\"\",((AF347/AF335)-1)*100)","v":-16.954761101598436},{"$f":"IF(OR(AJ347=\"\",AJ335=\"\"),\"\",((AJ347/AJ335)-1)*100)","v":5.7748149693036765},{"$f":"IF(OR(AG347=\"\",AG335=\"\"),\"\",((AG347/AG335)-1)*100)","v":49.710099759496316},{"$f":"IF(OR(AH347=\"\",AH335=\"\"),\"\",((AH347/AH335)-1)*100)","v":5.9006881334253913},{"$f":"IF(OR(AI347=\"\",AI335=\"\"),\"\",((AI347/AI335)-1)*100)","v":3.2360184861748742},{"$f":"IF(OR(AK347=\"\",AK335=\"\"),\"\",((AK347/AK335)-1)*100)","v":4.8728152340870245},{"$f":"IF(OR(AQ347=\"\",AQ346=\"\"),\"\",AQ347-AQ346)","v":-0.53667336323337533},{"$f":"IF('[1]MONE(M)CAPARD'!GS354=\"\",\"\",'[1]MONE(M)CAPARD'!GS354)","v":22063.677161736428},{"$f":"IF('[1]MONE(M)CARD'!HA354=\"\",\"\",'[1]MONE(M)CAPARD'!HA354)","v":13282.422870210705},{"$f":"IF('[1]MONE(M)CAPARD'!HB354=\"\",\"\",'[1]MONE(M)CAPARD'!HB354)","v":8781.2542915257236},"n.d.",{"$f":"IF('[10]II.2.Balance OSD-Activos'!J212=\"\",\"\",'[10]II.2.Balance OSD-Activos'!J212)","v":2409.1268646983767},{"$f":"IF('[10]II.2.Balance OSD-Activos'!N212=\"\",\"\",'[10]II.2.Balance OSD-Activos'!N212)","v":2042.9891766309811},{"$f":"IF('[10]II.2.Balance OSD-Activos'!R212=\"\",\"\",'[10]II.2.Balance OSD-Activos'!R212)","v":78442.54412108539},{"$f":"IF('[10]II.2.Balance OSD-Activos'!S212=\"\",\"\",'[10]II.2.Balance OSD-Activos'!S212)","v":82891.74333874046},{"$f":"IFERROR(+AW347+AY347,\"\")","v":80851.67098578377},{"$f":"IF(OR(AW347=\"\",AX347=\"\",AY347=\"\",AZ347=\"\"),\"\",SUM(AW347:AZ347))","v":165786.4035011552},{"$f":"IF(OR(AW347=\"\",AW335=\"\"),\"\",((AW347/AW335)-1)*100)","v":-2.3530463243412458},{"$f":"IF(OR(BA347=\"\",BA335=\"\"),\"\",((BA347/BA335)-1)*100)","v":4.7549763938741441},{"$f":"IF(OR(AX347=\"\",AX335=\"\"),\"\",((AX347/AX335)-1)*100)","v":28.364335630288593},{"$f":"IF(OR(AY347=\"\",AY335=\"\"),\"\",((AY347/AY335)-1)*100)","v":4.9896935183814328},{"$f":"IF(OR(AZ347=\"\",AZ335=\"\"),\"\",((AZ347/AZ335)-1)*100)","v":4.6027926846060385},{"$f":"IF(OR(BB347=\"\",BB335=\"\"),\"\",((BB347/BB335)-1)*100)","v":4.9164515398826492},{"$f":"IF(OR(BH347=\"\",BH346=\"\"),\"\",BH347-BH346)","v":-0.40351482880554013},{"$f":"IF('[1]MONE(M)CAPARD'!AS354=\"\",\"\",'[1]MONE(M)CAPARD'!AS354)","v":5},{"$f":"IF('[1]MONE(M)CAPARD'!AT354=\"\",\"\",'[1]MONE(M)CAPARD'!AT354)","v":"n.a."},{"$f":"IF('[1]MONE(M)CAPARD'!AU354=\"\",\"\",'[1]MONE(M)CAPARD'!AU354)","v":2.75},{"$f":"IF('[1]MONE(M)CAPARD'!AV354=\"\",\"\",'[1]MONE(M)CAPARD'!AV354)","v":5.5},{"$f":"IF('[1]MONE(M)CAPARD'!AW354=\"\",\"\",'[1]MONE(M)CAPARD'!AW354)","v":"n.a."},{"$f":"IF('[1]MONE(M)CAPARD'!AX354=\"\",\"\",'[1]MONE(M)CAPARD'!AX354)","v":5.5},{"$f":"IF('[1]MONE(M)CAPARD'!AY354=\"\",\"\",'[1]MONE(M)CAPARD'!AY354)","v":"n.a."},{"$f":"IF('[1]FISCAL(M)'!$K354=\"\",\"\",'[1]FISCAL(M)'!$K354)","v":-3993.5134082143873},{"$f":"IF('[1]FISCAL(M)'!$L354=\"\",\"\",'[1]FISCAL(M)'!$L354)","v":-7352.5134082143868},{"$f":"IF('[1]FISCAL(M)'!$AY354=\"\",\"\",'[1]FISCAL(M)'!$AY354)","v":137145.45524427577},{"$f":"IF('[1]FISCAL(M)'!$BI354=\"\",\"\",'[1]FISCAL(M)'!$BI354)","v":72755.674030867463},{"$f":"IF('[1]FISCAL(M)'!$BS354=\"\",\"\",'[1]FISCAL(M)'!$BS354)","v":64389.781213408321},{"$f":"IF('[1]FISCAL(M)'!$AZ354=\"\",\"\",'[1]FISCAL(M)'!$AZ354)","v":162083.3419442758},{"$f":"IF('[1]FISCAL(M)'!$BJ354=\"\",\"\",'[1]FISCAL(M)'!$BJ354)","v":77912.535230867463},{"$f":"IF('[1]FISCAL(M)'!$BT354=\"\",\"\",'[1]FISCAL(M)'!$BT354)","v":84170.806713408325},{"$f":"IF('[2]MONE(M)'!$AO354=\"\",\"\",'[2]MONE(M)'!$AO354)","v":22023223.353797209},{"$f":"IF('[3]MONE(M)'!$AO354=\"\",\"\",'[3]MONE(M)'!$AO354)","v":13033.667922940063},{"$f":"IF('[4]MONE(M)'!$AO354=\"\",\"\",'[4]MONE(M)'!$AO354)","v":202141.65840643999},{"$f":"+'[5]MONE(M)'!$AO354","v":338936.96221790096},{"$f":"IF('[6]MONE(M)'!$AO354=\"\",\"\",'[6]MONE(M)'!$AO354)","v":156086.89726901299},{"$f":"IF('[7]MONE(M)'!$AO354=\"\",\"\",'[7]MONE(M)'!$AO354)","v":1090351.16395399},{"$f":"IF('[8]MONE(M)'!$AO354=\"\",\"\",'[8]MONE(M)'!$AO354)","v":51957.06643466001},3.6776062933818965,6.7179967915566907,4.970978007023108,13.630120416222358,4.9589351650070057E-2,13.201750113251954,5.0925835021585542,{"$f":"'[1]FISCAL(M)'!$K354","v":-3993.5134082143873},{"$f":"+'[1]REAL(A)'!$AO$38","v":284395.31118885882},-1.4042121128932428,{"$f":"IF('[1]FISCAL(M)'!$L354=\"\",\"\",'[1]FISCAL(M)'!$L354)","v":-7352.5134082143868},{"$f":"+'[1]REAL(A)'!$AP$38","v":349324.71961703547},-2.104779019439261,{"$f":"+IF(OR(CT347=\"\",+CU347=\"\",+CV347=\"\"),\"\",(CT347+CU347+CV347))","v":153918.61057058972},{"$f":"'[1]Gráfico REM'!BG348","v":27074.968337009552},{"$f":"'[1]Gráfico REM'!BH348","v":118190.20329635282},{"$f":"'[1]Gráfico REM'!BI348","v":8653.4389372273727},{"$f":"IFERROR(+((CS347/CS335)-1)*100,\"\")","v":3.9407007961967722},{"$f":"IFERROR(+((CT347/CT335)-1)*100,\"\")","v":3.1733419906774696},{"$f":"IFERROR(+((CU347/CU335)-1)*100,\"\")","v":3.7708732084249297},{"$f":"IFERROR(+((CV347/CV335)-1)*100,\"\")","v":8.9095019208617501},{"$f":"+IF(OR(DB347=\"\",+DC347=\"\",+DD347=\"\"),\"\",(DB347+DC347+DD347))","v":229778.43342692975},{"$f":"'[1]Gráfico REM'!BK348","v":29171.028700419552},{"$f":"'[1]Gráfico REM'!BL348","v":170147.26973101281},{"$f":"'[1]Gráfico REM'!BM348","v":30460.13499549737},{"$f":"IFERROR(+((DA347/DA335)-1)*100,\"\")","v":4.1882277872928197},{"$f":"IFERROR(+((DB347/DB335)-1)*100,\"\")","v":2.5330173975309345},{"$f":"IFERROR(+((DC347/DC335)-1)*100,\"\")","v":4.1709380778032212},{"$f":"IFERROR(+((DD347/DD335)-1)*100,\"\")","v":5.9240165915351861}]
[2018,"octubre","2018-octubre",{"$f":"IF('[1]REAL IPC(M)'!$AL355=\"\",\"\",+'[1]REAL IPC(M)'!$AL355)","v":3.4985826302450951},{"$f":"IF('[1]REAL IPC(M)'!$BE355=\"\",\"\",+'[1]REAL IPC(M)'!$BE355)","v":2.8866536948268795},{"$f":"IF('[1]REAL IPC(M)'!$AM355=\"\",\"\",+'[1]REAL IPC(M)'!$AM355)","v":3.1486125281206423},{"$f":"IF('[1]REAL IPC(M)'!$BI355=\"\",\"\",+'[1]REAL IPC(M)'!$BI355)","v":2.4766053870880267},{"$f":"IF('[1]REAL IMAE(M)'!BJ355=\"\",\"\",'[1]REAL IMAE(M)'!BJ355)","v":3.3693145967111926},{"$f":"IF('[1]REAL IMAE(M)'!BK355=\"\",\"\",'[1]REAL IMAE(M)'!BK355)","v":2.4771785192756024},{"$f":"IF('[1]REAL IMAE(M)'!BN355=\"\",\"\",'[1]REAL IMAE(M)'!BN355)","v":2.7298194703588408},{"$f":"IF('[1]REAL IMAE(M)'!BO355=\"\",\"\",'[1]REAL IMAE(M)'!BO355)","v":2.1452564293547249},{"$f":"IF('[1]EXT RIN(M)'!$K355=\"\",\"\",'[1]EXT RIN(M)'!$K355)","v":36353.402806299287},null,{"$f":"IF('[1]EXT RIN(M)'!$L355=\"\",\"\",'[1]EXT RIN(M)'!$L355)","v":38727.451202819284},null,{"$f":"IF('[1]MONE(M)CARD'!EG355=\"\",\"\",'[1]MONE(M)CARD'!EG355)","v":35023.361423292954},{"$f":"IF('[1]MONE(M)CARD'!EK355=\"\",\"\",'[1]MONE(M)CARD'!EK355)","v":56515.041265544045},{"$f":"IF('[1]MONE(M)CARD'!EP355=\"\",\"\",'[1]MONE(M)CARD'!EP355)","v":30970.284525836076},{"$f":"IF('[1]MONE(M)CARD'!ES355=\"\",\"\",'[1]MONE(M)CARD'!ES355)","v":1.362115748048387},{"$f":"IF('[1]MONE(M)CARD'!EV355=\"\",\"\",'[1]MONE(M)CARD'!EV355)","v":0.85655110186382277},{"$f":"IF('[1]MONE(M)CARD'!EZ355=\"\",\"\",'[1]MONE(M)CARD'!EZ355)","v":0.80309610540962861},{"$f":"IF('[1]MONE(M)CAPARD'!FC355=\"\",\"\",'[1]MONE(M)CAPARD'!FC355)","v":43020.846775792961},{"$f":"IF('[1]MONE(M)CAPARD'!FG355=\"\",\"\",'[1]MONE(M)CAPARD'!FG355)","v":88845.039025484046},{"$f":"IF('[1]MONE(M)CAPARD'!FL355=\"\",\"\",'[1]MONE(M)CAPARD'!FL355)","v":30970.284525836061},{"$f":"IF('[1]MONE(M)CAPARD'!FO355=\"\",\"\",'[1]MONE(M)CAPARD'!FO355)","v":1.6109438243410601},{"$f":"IF('[1]MONE(M)CAPARD'!FR355=\"\",\"\",'[1]MONE(M)CAPARD'!FR355)","v":1.2566126934640875},{"$f":"IF('[1]MONE(M)CAPARD'!FV355=\"\",\"\",'[1]MONE(M)CAPARD'!FV355)","v":1.1397992342984331},{"$f":"IF('[1]MONE(M)CARD'!FV355=\"\",\"\",'[1]MONE(M)CARD'!FV355)","v":1622.6937612803254},{"$f":"IF('[1]MONE(M)CARD'!GD355=\"\",\"\",'[1]MONE(M)CARD'!GD355)","v":87.81711704291142},{"$f":"IF('[1]MONE(M)CARD'!GE355=\"\",\"\",'[1]MONE(M)CARD'!GE355)","v":11597.542033213234},-2.290861280372225,{"$f":"IF('[9]II.2.Balance OSD-Activos'!J213=\"\",\"\",'[9]II.2.Balance OSD-Activos'!J213)","v":232.15056010528841},{"$f":"IF('[9]II.2.Balance OSD-Activos'!N213=\"\",\"\",'[9]II.2.Balance OSD-Activos'!N213)","v":1534.9789154828436},{"$f":"IF('[9]II.2.Balance OSD-Activos'!R213=\"\",\"\",'[9]II.2.Balance OSD-Activos'!R213)","v":54439.045482681671},{"$f":"IF('[9]II.2.Balance OSD-Activos'!S213=\"\",\"\",'[9]II.2.Balance OSD-Activos'!S213)","v":58204.583336651369},{"$f":"IFERROR(+AF348+AH348,\"\")","v":54671.196042786956},{"$f":"IF(OR(AF348=\"\",AG348=\"\",AH348=\"\",AI348=\"\"),\"\",SUM(AF348:AI348))","v":114410.75829492116},-22.935990050089661,5.1118709910976889,40.016660732785184,5.2752640928873218,1.8735039759642191,3.7806654179937116,-1.092149816093313,{"$f":"IF('[1]MONE(M)CAPARD'!GS355=\"\",\"\",'[1]MONE(M)CAPARD'!GS355)","v":21848.012330331505},{"$f":"IF('[1]MONE(M)CARD'!HA355=\"\",\"\",'[1]MONE(M)CAPARD'!HA355)","v":13498.705456993235},{"$f":"IF('[1]MONE(M)CAPARD'!HB355=\"\",\"\",'[1]MONE(M)CAPARD'!HB355)","v":8349.3068733382697},"n.d.",{"$f":"IF('[10]II.2.Balance OSD-Activos'!J213=\"\",\"\",'[10]II.2.Balance OSD-Activos'!J213)","v":2381.6757487052887},{"$f":"IF('[10]II.2.Balance OSD-Activos'!N213=\"\",\"\",'[10]II.2.Balance OSD-Activos'!N213)","v":2020.4682764628437},{"$f":"IF('[10]II.2.Balance OSD-Activos'!R213=\"\",\"\",'[10]II.2.Balance OSD-Activos'!R213)","v":78705.101469591667},{"$f":"IF('[10]II.2.Balance OSD-Activos'!S213=\"\",\"\",'[10]II.2.Balance OSD-Activos'!S213)","v":82650.39512424136},{"$f":"IFERROR(+AW348+AY348,\"\")","v":81086.777218296949},{"$f":"IF(OR(AW348=\"\",AX348=\"\",AY348=\"\",AZ348=\"\"),\"\",SUM(AW348:AZ348))","v":165757.64061900118},-0.85718188330574652,4.2423377660846029,26.338974662353486,4.4048433945826471,3.3199323541801995,4.001094164332164,-0.91535737555048513,{"$f":"IF('[1]MONE(M)CAPARD'!AS355=\"\",\"\",'[1]MONE(M)CAPARD'!AS355)","v":5},{"$f":"IF('[1]MONE(M)CAPARD'!AT355=\"\",\"\",'[1]MONE(M)CAPARD'!AT355)","v":"n.a."},{"$f":"IF('[1]MONE(M)CAPARD'!AU355=\"\",\"\",'[1]MONE(M)CAPARD'!AU355)","v":2.75},{"$f":"IF('[1]MONE(M)CAPARD'!AV355=\"\",\"\",'[1]MONE(M)CAPARD'!AV355)","v":5.5},{"$f":"IF('[1]MONE(M)CAPARD'!AW355=\"\",\"\",'[1]MONE(M)CAPARD'!AW355)","v":"n.a."},{"$f":"IF('[1]MONE(M)CAPARD'!AX355=\"\",\"\",'[1]MONE(M)CAPARD'!AX355)","v":5.5},{"$f":"IF('[1]MONE(M)CAPARD'!AY355=\"\",\"\",'[1]MONE(M)CAPARD'!AY355)","v":"n.a."},{"$f":"IF('[1]FISCAL(M)'!$K355=\"\",\"\",'[1]FISCAL(M)'!$K355)","v":-4322.387498954623},{"$f":"IF('[1]FISCAL(M)'!$L355=\"\",\"\",'[1]FISCAL(M)'!$L355)","v":"n.d."},{"$f":"IF('[1]FISCAL(M)'!$AY355=\"\",\"\",'[1]FISCAL(M)'!$AY355)","v":135309.37471962167},{"$f":"IF('[1]FISCAL(M)'!$BI355=\"\",\"\",'[1]FISCAL(M)'!$BI355)","v":71593.838907275203},{"$f":"IF('[1]FISCAL(M)'!$BS355=\"\",\"\",'[1]FISCAL(M)'!$BS355)","v":63715.535812346439},{"$f":"IF('[1]FISCAL(M)'!$AZ355=\"\",\"\",'[1]FISCAL(M)'!$AZ355)","v":161123.98471962166},{"$f":"IF('[1]FISCAL(M)'!$BJ355=\"\",\"\",'[1]FISCAL(M)'!$BJ355)","v":76859.708907275213},{"$f":"IF('[1]FISCAL(M)'!$BT355=\"\",\"\",'[1]FISCAL(M)'!$BT355)","v":84264.27581234643},{"$f":"IF('[2]MONE(M)'!$AO355=\"\",\"\",'[2]MONE(M)'!$AO355)","v":22343789.452976037},{"$f":"IF('[3]MONE(M)'!$AO355=\"\",\"\",'[3]MONE(M)'!$AO355)","v":13107.870034889998},{"$f":"IF('[4]MONE(M)'!$AO355=\"\",\"\",'[4]MONE(M)'!$AO355)","v":204019.30995471351},{"$f":"+'[5]MONE(M)'!$AO355","v":342633.44172754942},{"$f":"IF('[6]MONE(M)'!$AO355=\"\",\"\",'[6]MONE(M)'!$AO355)","v":153239.9007812487},{"$f":"IF('[7]MONE(M)'!$AO355=\"\",\"\",'[7]MONE(M)'!$AO355)","v":1101796.99283883},{"$f":"IF('[8]MONE(M)'!$AO355=\"\",\"\",'[8]MONE(M)'!$AO355)","v":52286.49654072999},{"$f":"IF(BY348=\"\",\"\",((BY348/BY336)-1)*100)","v":5.1187927023158775},{"$f":"IF(BZ348=\"\",\"\",((BZ348/BZ336)-1)*100)","v":6.7592091028168877},{"$f":"IF(CA348=\"\",\"\",((CA348/CA336)-1)*100)","v":5.1742681505719368},{"$f":"IF(CB348=\"\",\"\",((CB348/CB336)-1)*100)","v":13.957560352226373},{"$f":"IF(CC348=\"\",\"\",((CC348/CC336)-1)*100)","v":-3.2672906060357221},{"$f":"IF(CD348=\"\",\"\",((CD348/CD336)-1)*100)","v":11.398195575390812},4.4595692859063396,{"$f":"'[1]FISCAL(M)'!$K355","v":-4322.387498954623},{"$f":"+'[1]REAL(A)'!$AO$38","v":284395.31118885882},-1.5198518853513194,{"$f":"IF('[1]FISCAL(M)'!$L355=\"\",\"\",'[1]FISCAL(M)'!$L355)","v":"n.d."},{"$f":"+'[1]REAL(A)'!$AP$38","v":349324.71961703547},"n.d.",{"$f":"+IF(OR(CT348=\"\",+CU348=\"\",+CV348=\"\"),\"\",(CT348+CU348+CV348))","v":152204.58678741625},{"$f":"'[1]Gráfico REM'!BG349","v":26411.133487264611},{"$f":"'[1]Gráfico REM'!BH349","v":117559.39350454131},{"$f":"'[1]Gráfico REM'!BI349","v":8234.0597956103211},1.9322115530061357,1.190056139743767E-2,2.3446799373447735,2.3464793122331518,228389.02537170623,{"$f":"'[1]Gráfico REM'!BK349","v":28562.398188784609},{"$f":"'[1]Gráfico REM'!BL349","v":169845.89004527131},{"$f":"'[1]Gráfico REM'!BM349","v":29980.737137650314},2.3336137900234588,-0.50811761207596451,2.9865608705936131,1.4503230430547909]
[2018,"noviembre","2018-noviembre",{"$f":"IF('[1]REAL IPC(M)'!$AL356=\"\",\"\",+'[1]REAL IPC(M)'!$AL356)","v":2.8037647966323131},{"$f":"IF('[1]REAL IPC(M)'!$BE356=\"\",\"\",+'[1]REAL IPC(M)'!$BE356)","v":2.8959726502446159},{"$f":"IF('[1]REAL IPC(M)'!$AM356=\"\",\"\",+'[1]REAL IPC(M)'!$AM356)","v":2.5170787497123426},{"$f":"IF('[1]REAL IPC(M)'!$BI356=\"\",\"\",+'[1]REAL IPC(M)'!$BI356)","v":2.4760733506484556},{"$f":"IF('[1]REAL IMAE(M)'!BJ356=\"\",\"\",'[1]REAL IMAE(M)'!BJ356)","v":2.8671668099931935},{"$f":"IF('[1]REAL IMAE(M)'!BK356=\"\",\"\",'[1]REAL IMAE(M)'!BK356)","v":2.3757197902808391},{"$f":"IF('[1]REAL IMAE(M)'!BN356=\"\",\"\",'[1]REAL IMAE(M)'!BN356)","v":2.3955535302834674},{"$f":"IF('[1]REAL IMAE(M)'!BO356=\"\",\"\",'[1]REAL IMAE(M)'!BO356)","v":2.0197011426486666},{"$f":"IF('[1]EXT RIN(M)'!$K356=\"\",\"\",'[1]EXT RIN(M)'!$K356)","v":35691.162898871546},null,{"$f":"IF('[1]EXT RIN(M)'!$L356=\"\",\"\",'[1]EXT RIN(M)'!$L356)","v":38270.433953681546},null,{"$f":"IF('[1]MONE(M)CARD'!EG356=\"\",\"\",'[1]MONE(M)CARD'!EG356)","v":36042.70901644577},{"$f":"IF('[1]MONE(M)CARD'!EK356=\"\",\"\",'[1]MONE(M)CARD'!EK356)","v":56375.016046098746},{"$f":"IF('[1]MONE(M)CARD'!EP356=\"\",\"\",'[1]MONE(M)CARD'!EP356)","v":31435.445338071891},{"$f":"IF('[1]MONE(M)CARD'!ES356=\"\",\"\",'[1]MONE(M)CARD'!ES356)","v":0.64044213370217928},{"$f":"IF('[1]MONE(M)CARD'!EV356=\"\",\"\",'[1]MONE(M)CARD'!EV356)","v":0.82655258410182508},{"$f":"IF('[1]MONE(M)CARD'!EZ356=\"\",\"\",'[1]MONE(M)CARD'!EZ356)","v":1.0808299433928026},{"$f":"IF('[1]MONE(M)CAPARD'!FC356=\"\",\"\",'[1]MONE(M)CAPARD'!FC356)","v":44307.007064675774},{"$f":"IF('[1]MONE(M)CAPARD'!FG356=\"\",\"\",'[1]MONE(M)CAPARD'!FG356)","v":89326.149676968751},{"$f":"IF('[1]MONE(M)CAPARD'!FL356=\"\",\"\",'[1]MONE(M)CAPARD'!FL356)","v":31435.445338071877},{"$f":"IF('[1]MONE(M)CAPARD'!FO356=\"\",\"\",'[1]MONE(M)CAPARD'!FO356)","v":0.55516817989020861},{"$f":"IF('[1]MONE(M)CAPARD'!FR356=\"\",\"\",'[1]MONE(M)CAPARD'!FR356)","v":1.4598643818631629},{"$f":"IF('[1]MONE(M)CAPARD'!FV356=\"\",\"\",'[1]MONE(M)CAPARD'!FV356)","v":1.5312559429776496},{"$f":"IF('[1]MONE(M)CARD'!FV356=\"\",\"\",'[1]MONE(M)CARD'!FV356)","v":1642.5776339952677},{"$f":"IF('[1]MONE(M)CARD'!GD356=\"\",\"\",'[1]MONE(M)CARD'!GD356)","v":98.114467484784072},{"$f":"IF('[1]MONE(M)CARD'!GE356=\"\",\"\",'[1]MONE(M)CARD'!GE356)","v":11424.030570977859},-7.2220014302309066,{"$f":"IF('[9]II.2.Balance OSD-Activos'!J214=\"\",\"\",'[9]II.2.Balance OSD-Activos'!J214)","v":226.43172918169176},{"$f":"IF('[9]II.2.Balance OSD-Activos'!N214=\"\",\"\",'[9]II.2.Balance OSD-Activos'!N214)","v":1488.7309563983385},{"$f":"IF('[9]II.2.Balance OSD-Activos'!R214=\"\",\"\",'[9]II.2.Balance OSD-Activos'!R214)","v":54865.31495252013},{"$f":"IF('[9]II.2.Balance OSD-Activos'!S214=\"\",\"\",'[9]II.2.Balance OSD-Activos'!S214)","v":58961.794724826817},{"$f":"IFERROR(+AF349+AH349,\"\")","v":55091.746681701821},{"$f":"IF(OR(AF349=\"\",AG349=\"\",AH349=\"\",AI349=\"\"),\"\",SUM(AF349:AI349))","v":115542.27236292697},-24.832503867285215,4.7439639676927436,38.135214659011396,4.9143329202814501,1.8897181748093184,3.585811501642544,-0.19485391635116756,{"$f":"IF('[1]MONE(M)CAPARD'!GS356=\"\",\"\",'[1]MONE(M)CAPARD'!GS356)","v":22158.02470255299},{"$f":"IF('[1]MONE(M)CARD'!HA356=\"\",\"\",'[1]MONE(M)CAPARD'!HA356)","v":13301.737924587856},{"$f":"IF('[1]MONE(M)CAPARD'!HB356=\"\",\"\",'[1]MONE(M)CAPARD'!HB356)","v":8856.2867779651333},"n.d.",{"$f":"IF('[10]II.2.Balance OSD-Activos'!J214=\"\",\"\",'[10]II.2.Balance OSD-Activos'!J214)","v":2410.6819019216923},{"$f":"IF('[10]II.2.Balance OSD-Activos'!N214=\"\",\"\",'[10]II.2.Balance OSD-Activos'!N214)","v":1930.5185560883385},{"$f":"IF('[10]II.2.Balance OSD-Activos'!R214=\"\",\"\",'[10]II.2.Balance OSD-Activos'!R214)","v":79133.787586650127},{"$f":"IF('[10]II.2.Balance OSD-Activos'!S214=\"\",\"\",'[10]II.2.Balance OSD-Activos'!S214)","v":83603.011512446814},{"$f":"IFERROR(+AW349+AY349,\"\")","v":81544.46948857182},{"$f":"IF(OR(AW349=\"\",AX349=\"\",AY349=\"\",AZ349=\"\"),\"\",SUM(AW349:AZ349))","v":167077.99955710699},{"$f":"IF(OR(AW349=\"\",AW337=\"\"),\"\",((AW349/AW337)-1)*100)","v":1.8751556193089547},{"$f":"IF(OR(BA349=\"\",BA337=\"\"),\"\",((BA349/BA337)-1)*100)","v":3.9503829450883376},{"$f":"IF(OR(AX349=\"\",AX337=\"\"),\"\",((AX349/AX337)-1)*100)","v":23.722030416276986},{"$f":"IF(OR(AY349=\"\",AY337=\"\"),\"\",((AY349/AY337)-1)*100)","v":4.0149291964009848},{"$f":"IF(OR(AZ349=\"\",AZ337=\"\"),\"\",((AZ349/AZ337)-1)*100)","v":3.3363897194646608},{"$f":"IF(OR(BB349=\"\",BB337=\"\"),\"\",((BB349/BB337)-1)*100)","v":3.8334023329446687},{"$f":"IF(OR(BH349=\"\",BH348=\"\"),\"\",BH349-BH348)","v":-0.16769183138749533},{"$f":"IF('[1]MONE(M)CAPARD'!AS356=\"\",\"\",'[1]MONE(M)CAPARD'!AS356)","v":5.25},{"$f":"IF('[1]MONE(M)CAPARD'!AT356=\"\",\"\",'[1]MONE(M)CAPARD'!AT356)","v":"n.a."},{"$f":"IF('[1]MONE(M)CAPARD'!AU356=\"\",\"\",'[1]MONE(M)CAPARD'!AU356)","v":2.75},{"$f":"IF('[1]MONE(M)CAPARD'!AV356=\"\",\"\",'[1]MONE(M)CAPARD'!AV356)","v":5.5},{"$f":"IF('[1]MONE(M)CAPARD'!AW356=\"\",\"\",'[1]MONE(M)CAPARD'!AW356)","v":"n.a."},{"$f":"IF('[1]MONE(M)CAPARD'!AX356=\"\",\"\",'[1]MONE(M)CAPARD'!AX356)","v":5.5},{"$f":"IF('[1]MONE(M)CAPARD'!AY356=\"\",\"\",'[1]MONE(M)CAPARD'!AY356)","v":"n.a."},{"$f":"IF('[1]FISCAL(M)'!$K356=\"\",\"\",'[1]FISCAL(M)'!$K356)","v":-5287.9414963883364},{"$f":"IF('[1]FISCAL(M)'!$L356=\"\",\"\",'[1]FISCAL(M)'!$L356)","v":"n.d."},{"$f":"IF('[1]FISCAL(M)'!$AY356=\"\",\"\",'[1]FISCAL(M)'!$AY356)","v":135840.81379547098},{"$f":"IF('[1]FISCAL(M)'!$BI356=\"\",\"\",'[1]FISCAL(M)'!$BI356)","v":72050.808982375456},{"$f":"IF('[1]FISCAL(M)'!$BS356=\"\",\"\",'[1]FISCAL(M)'!$BS356)","v":63790.00481309554},{"$f":"IF('[1]FISCAL(M)'!$AZ356=\"\",\"\",'[1]FISCAL(M)'!$AZ356)","v":162016.50619547098},{"$f":"IF('[1]FISCAL(M)'!$BJ356=\"\",\"\",'[1]FISCAL(M)'!$BJ356)","v":77664.670182375456},{"$f":"IF('[1]FISCAL(M)'!$BT356=\"\",\"\",'[1]FISCAL(M)'!$BT356)","v":84351.836013095541},{"$f":"IF('[2]MONE(M)'!$AO356=\"\",\"\",'[2]MONE(M)'!$AO356)","v":22285236.430422902},{"$f":"IF('[3]MONE(M)'!$AO356=\"\",\"\",'[3]MONE(M)'!$AO356)","v":13234.59790574},{"$f":"IF('[4]MONE(M)'!$AO356=\"\",\"\",'[4]MONE(M)'!$AO356)","v":204893.92936122854},{"$f":"+'[5]MONE(M)'!$AO356","v":348896.01487894845},{"$f":"IF('[6]MONE(M)'!$AO356=\"\",\"\",'[6]MONE(M)'!$AO356)","v":151492.95698615874},{"$f":"IF('[7]MONE(M)'!$AO356=\"\",\"\",'[7]MONE(M)'!$AO356)","v":1119459.0879851398},{"$f":"IF('[8]MONE(M)'!$AO356=\"\",\"\",'[8]MONE(M)'!$AO356)","v":52540.32601651999},4.6564307171231167,6.8424848593473531,4.9312294650942112,14.00238487290455,-6.343971991981789,11.101611878450313,4.4649620890699238,{"$f":"'[1]FISCAL(M)'!$K356","v":-5287.9414963883364},{"$f":"+'[1]REAL(A)'!$AO$38","v":284395.31118885882},-1.8593631077401152,{"$f":"IF('[1]FISCAL(M)'!$L356=\"\",\"\",'[1]FISCAL(M)'!$L356)","v":"n.d."},{"$f":"+'[1]REAL(A)'!$AP$38","v":349324.71961703547},"n.d.",153715.51134189672,{"$f":"'[1]Gráfico REM'!BG350","v":26428.07145904507},{"$f":"'[1]Gráfico REM'!BH350","v":118621.90754591464},{"$f":"'[1]Gráfico REM'!BI350","v":8665.5323369369926},2.1127255041906157,0.20737101826675541,2.2246917555770684,6.7003794975860398,230551.56347082669,{"$f":"'[1]Gráfico REM'!BK350","v":28609.062719975071},{"$f":"'[1]Gráfico REM'!BL350","v":171162.23356243462},{"$f":"'[1]Gráfico REM'!BM350","v":30780.26718841699},2.5723772179115478,-0.2056516276727427,2.9020817159385537,3.4054987511195289]
[2018,"diciembre","2018-diciembre",{"$f":"IF('[1]REAL IPC(M)'!$AL357=\"\",\"\",+'[1]REAL IPC(M)'!$AL357)","v":2.0363399204808896},{"$f":"IF('[1]REAL IPC(M)'!$BE357=\"\",\"\",+'[1]REAL IPC(M)'!$BE357)","v":2.9065082288227684},{"$f":"IF('[1]REAL IPC(M)'!$AM357=\"\",\"\",+'[1]REAL IPC(M)'!$AM357)","v":1.7703126369728928},{"$f":"IF('[1]REAL IPC(M)'!$BI357=\"\",\"\",+'[1]REAL IPC(M)'!$BI357)","v":2.4766680157984666},{"$f":"IF('[1]REAL IMAE(M)'!BJ357=\"\",\"\",'[1]REAL IMAE(M)'!BJ357)","v":2.6542045026302086},{"$f":"IF('[1]REAL IMAE(M)'!BK357=\"\",\"\",'[1]REAL IMAE(M)'!BK357)","v":2.2753579892335063},{"$f":"IF('[1]REAL IMAE(M)'!BN357=\"\",\"\",'[1]REAL IMAE(M)'!BN357)","v":2.3578770824982609},{"$f":"IF('[1]REAL IMAE(M)'!BO357=\"\",\"\",'[1]REAL IMAE(M)'!BO357)","v":1.8949540772185802},{"$f":"IF('[1]EXT RIN(M)'!$K357=\"\",\"\",'[1]EXT RIN(M)'!$K357)","v":38123.294928362244},{"$f":"IF(B350<>\"diciembre\",\"\",L350)","v":38123.294928362244},{"$f":"IF('[1]EXT RIN(M)'!$L357=\"\",\"\",'[1]EXT RIN(M)'!$L357)","v":41030.353193532246},{"$f":"IF(B350<>\"diciembre\",\"\",N350)","v":41030.353193532246},{"$f":"IF('[1]MONE(M)CARD'!EG357=\"\",\"\",'[1]MONE(M)CARD'!EG357)","v":38065.895897271832},{"$f":"IF('[1]MONE(M)CARD'!EK357=\"\",\"\",'[1]MONE(M)CARD'!EK357)","v":56611.224199795201},{"$f":"IF('[1]MONE(M)CARD'!EP357=\"\",\"\",'[1]MONE(M)CARD'!EP357)","v":31066.798002062846},{"$f":"IF('[1]MONE(M)CARD'!ES357=\"\",\"\",'[1]MONE(M)CARD'!ES357)","v":1.2662272171788169},{"$f":"IF('[1]MONE(M)CARD'!EV357=\"\",\"\",'[1]MONE(M)CARD'!EV357)","v":0.92777559969658974},{"$f":"IF('[1]MONE(M)CARD'!EZ357=\"\",\"\",'[1]MONE(M)CARD'!EZ357)","v":0.9695163188353062},{"$f":"IF('[1]MONE(M)CAPARD'!FC357=\"\",\"\",'[1]MONE(M)CAPARD'!FC357)","v":46791.599745291824},{"$f":"IF('[1]MONE(M)CAPARD'!FG357=\"\",\"\",'[1]MONE(M)CAPARD'!FG357)","v":89105.910845285209},{"$f":"IF('[1]MONE(M)CAPARD'!FL357=\"\",\"\",'[1]MONE(M)CAPARD'!FL357)","v":31066.798002062831},{"$f":"IF('[1]MONE(M)CAPARD'!FO357=\"\",\"\",'[1]MONE(M)CAPARD'!FO357)","v":1.8606390665816042},{"$f":"IF('[1]MONE(M)CAPARD'!FR357=\"\",\"\",'[1]MONE(M)CAPARD'!FR357)","v":1.5402091461625744},{"$f":"IF('[1]MONE(M)CAPARD'!FV357=\"\",\"\",'[1]MONE(M)CAPARD'!FV357)","v":1.4574358256036923},{"$f":"IF('[1]MONE(M)CARD'!FV357=\"\",\"\",'[1]MONE(M)CARD'!FV357)","v":1934.9112747442043},{"$f":"IF('[1]MONE(M)CARD'!GD357=\"\",\"\",'[1]MONE(M)CARD'!GD357)","v":140.36107131378304},{"$f":"IF('[1]MONE(M)CARD'!GE357=\"\",\"\",'[1]MONE(M)CARD'!GE357)","v":11084.160036930181},{"$f":"IF(AD350=\"\",\"\",((AD350/AD337)-1)*100)","v":-3.6297469181352016},{"$f":"IF('[9]II.2.Balance OSD-Activos'!J215=\"\",\"\",'[9]II.2.Balance OSD-Activos'!J215)","v":196.42542109404496},{"$f":"IF('[9]II.2.Balance OSD-Activos'!N215=\"\",\"\",'[9]II.2.Balance OSD-Activos'!N215)","v":1475.4697305860514},{"$f":"IF('[9]II.2.Balance OSD-Activos'!R215=\"\",\"\",'[9]II.2.Balance OSD-Activos'!R215)","v":54741.038858737636},{"$f":"IF('[9]II.2.Balance OSD-Activos'!S215=\"\",\"\",'[9]II.2.Balance OSD-Activos'!S215)","v":58817.394984076105},{"$f":"IFERROR(+AF350+AH350,\"\")","v":54937.464279831678},{"$f":"IF(OR(AF350=\"\",AG350=\"\",AH350=\"\",AI350=\"\"),\"\",SUM(AF350:AI350))","v":115230.32899449384},{"$f":"IF(OR(AF350=\"\",AF338=\"\"),\"\",((AF350/AF338)-1)*100)","v":-36.417306848271366},{"$f":"IF(OR(AJ350=\"\",AJ338=\"\"),\"\",((AJ350/AJ338)-1)*100)","v":3.5250020944557869},{"$f":"IF(OR(AG350=\"\",AG338=\"\"),\"\",((AG350/AG338)-1)*100)","v":33.884584760978264},{"$f":"IF(OR(AH350=\"\",AH338=\"\"),\"\",((AH350/AH338)-1)*100)","v":3.7588880877903907},{"$f":"IF(OR(AI350=\"\",AI338=\"\"),\"\",((AI350/AI338)-1)*100)","v":1.5965888746097612},{"$f":"IF(OR(AK350=\"\",AK338=\"\"),\"\",((AK350/AK338)-1)*100)","v":2.8273156658902288},{"$f":"IF(OR(AQ350=\"\",AQ349=\"\"),\"\",AQ350-AQ349)","v":-0.75849583575231527},{"$f":"IF('[1]MONE(M)CAPARD'!GS357=\"\",\"\",'[1]MONE(M)CAPARD'!GS357)","v":22539.873329848779},{"$f":"IF('[1]MONE(M)CARD'!HA357=\"\",\"\",'[1]MONE(M)CAPARD'!HA357)","v":13078.646208290182},{"$f":"IF('[1]MONE(M)CAPARD'!HB357=\"\",\"\",'[1]MONE(M)CAPARD'!HB357)","v":9461.227121558597},"n.d.",{"$f":"IF('[10]II.2.Balance OSD-Activos'!J215=\"\",\"\",'[10]II.2.Balance OSD-Activos'!J215)","v":2294.8979907340458},{"$f":"IF('[10]II.2.Balance OSD-Activos'!N215=\"\",\"\",'[10]II.2.Balance OSD-Activos'!N215)","v":1980.8422607960515},{"$f":"IF('[10]II.2.Balance OSD-Activos'!R215=\"\",\"\",'[10]II.2.Balance OSD-Activos'!R215)","v":78697.20458832763},{"$f":"IF('[10]II.2.Balance OSD-Activos'!S215=\"\",\"\",'[10]II.2.Balance OSD-Activos'!S215)","v":83613.178791286104},80992.10257906167,166586.12363114383,-13.447824699642929,2.5709947358907081,22.313068598571782,3.1275796405606959,3.1115217817665464,3.0398674252845259,-0.79353490766014279,{"$f":"IF('[1]MONE(M)CAPARD'!AS357=\"\",\"\",'[1]MONE(M)CAPARD'!AS357)","v":5.25},{"$f":"IF('[1]MONE(M)CAPARD'!AT357=\"\",\"\",'[1]MONE(M)CAPARD'!AT357)","v":"n.a."},{"$f":"IF('[1]MONE(M)CAPARD'!AU357=\"\",\"\",'[1]MONE(M)CAPARD'!AU357)","v":2.75},{"$f":"IF('[1]MONE(M)CAPARD'!AV357=\"\",\"\",'[1]MONE(M)CAPARD'!AV357)","v":5.5},{"$f":"IF('[1]MONE(M)CAPARD'!AW357=\"\",\"\",'[1]MONE(M)CAPARD'!AW357)","v":"n.a."},{"$f":"IF('[1]MONE(M)CAPARD'!AX357=\"\",\"\",'[1]MONE(M)CAPARD'!AX357)","v":5.5},{"$f":"IF('[1]MONE(M)CAPARD'!AY357=\"\",\"\",'[1]MONE(M)CAPARD'!AY357)","v":"n.a."},{"$f":"IF('[1]FISCAL(M)'!$K357=\"\",\"\",'[1]FISCAL(M)'!$K357)","v":-7542.8764382229729},{"$f":"IF('[1]FISCAL(M)'!$L357=\"\",\"\",'[1]FISCAL(M)'!$L357)","v":-9351.8764382229729},{"$f":"IF('[1]FISCAL(M)'!$AY357=\"\",\"\",'[1]FISCAL(M)'!$AY357)","v":136075.40717569168},{"$f":"IF('[1]FISCAL(M)'!$BI357=\"\",\"\",'[1]FISCAL(M)'!$BI357)","v":71473.840193954558},{"$f":"IF('[1]FISCAL(M)'!$BS357=\"\",\"\",'[1]FISCAL(M)'!$BS357)","v":64601.566981737145},{"$f":"IF('[1]FISCAL(M)'!$AZ357=\"\",\"\",'[1]FISCAL(M)'!$AZ357)","v":161762.26697569172},{"$f":"IF('[1]FISCAL(M)'!$BJ357=\"\",\"\",'[1]FISCAL(M)'!$BJ357)","v":76585.921293954554},{"$f":"IF('[1]FISCAL(M)'!$BT357=\"\",\"\",'[1]FISCAL(M)'!$BT357)","v":85176.345681737148},{"$f":"IF('[2]MONE(M)'!$AO357=\"\",\"\",'[2]MONE(M)'!$AO357)","v":22350284.702658173},{"$f":"IF('[3]MONE(M)'!$AO357=\"\",\"\",'[3]MONE(M)'!$AO357)","v":13240.182238460002},{"$f":"IF('[4]MONE(M)'!$AO357=\"\",\"\",'[4]MONE(M)'!$AO357)","v":205320.44231235483},{"$f":"+'[5]MONE(M)'!$AO357","v":353576.84198791196},{"$f":"IF('[6]MONE(M)'!$AO357=\"\",\"\",'[6]MONE(M)'!$AO357)","v":147976.4229178922},{"$f":"IF('[7]MONE(M)'!$AO357=\"\",\"\",'[7]MONE(M)'!$AO357)","v":1126154.4775040201},{"$f":"IF('[8]MONE(M)'!$AO357=\"\",\"\",'[8]MONE(M)'!$AO357)","v":52204.380966039986},{"$f":"IF(BY350=\"\",\"\",((BY350/BY338)-1)*100)","v":4.4432114496036901},{"$f":"IF(BZ350=\"\",\"\",((BZ350/BZ338)-1)*100)","v":6.8864085962981436},4.5397688442660122,14.204321626748694,-8.828082165925677,10.372298125428436,3.3541087512918955,{"$f":"'[1]FISCAL(M)'!$K357","v":-7542.8764382229729},{"$f":"+'[1]REAL(A)'!$AO$38","v":284395.31118885882},-2.6522506319430716,{"$f":"IF('[1]FISCAL(M)'!$L357=\"\",\"\",'[1]FISCAL(M)'!$L357)","v":-9351.8764382229729},{"$f":"+'[1]REAL(A)'!$AP$38","v":349324.71961703547},-2.6771298774605561,153526.66755550573,{"$f":"'[1]Gráfico REM'!BG351","v":26496.315680818334},{"$f":"'[1]Gráfico REM'!BH351","v":118294.12126936101},{"$f":"'[1]Gráfico REM'!BI351","v":8736.2306053263874},{"$f":"IFERROR(+((CS350/CS338)-1)*100,\"\")","v":1.7360907617959942},{"$f":"IFERROR(+((CT350/CT338)-1)*100,\"\")","v":1.6747802879756524},{"$f":"IFERROR(+((CU350/CU338)-1)*100,\"\")","v":1.560745897962823},{"$f":"IFERROR(+((CV350/CV338)-1)*100,\"\")","v":4.3668460216884641},230779.69194622574,{"$f":"'[1]Gráfico REM'!BK351","v":28695.804595488335},{"$f":"'[1]Gráfico REM'!BL351","v":170498.50223540101},{"$f":"'[1]Gráfico REM'!BM351","v":31585.385115336387},2.3772499721508078,1.2036753424011115,2.1032039697722382,5.0048524852175591]
[2019,"enero",{"$f":"A351&\"-\"&B351","v":"2019-enero"},{"$f":"IF('[1]REAL IPC(M)'!$AL358=\"\",\"\",+'[1]REAL IPC(M)'!$AL358)","v":2.2254272941887754},{"$f":"IF('[1]REAL IPC(M)'!$BE358=\"\",\"\",+'[1]REAL IPC(M)'!$BE358)","v":2.9186686230512127},{"$f":"IF('[1]REAL IPC(M)'!$AM358=\"\",\"\",+'[1]REAL IPC(M)'!$AM358)","v":1.8609984542648172},{"$f":"IF('[1]REAL IPC(M)'!$BI358=\"\",\"\",+'[1]REAL IPC(M)'!$BI358)","v":2.4788590978976677},{"$f":"IF('[1]REAL IMAE(M)'!BJ358=\"\",\"\",'[1]REAL IMAE(M)'!BJ358)","v":2.9380537511069615},{"$f":"IF('[1]REAL IMAE(M)'!BK358=\"\",\"\",'[1]REAL IMAE(M)'!BK358)","v":2.176827928047409},{"$f":"IF('[1]REAL IMAE(M)'!BN358=\"\",\"\",'[1]REAL IMAE(M)'!BN358)","v":2.7896672065664152},{"$f":"IF('[1]REAL IMAE(M)'!BO358=\"\",\"\",'[1]REAL IMAE(M)'!BO358)","v":1.7717808104995347},{"$f":"IF('[1]EXT RIN(M)'!$K358=\"\",\"\",'[1]EXT RIN(M)'!$K358)","v":37314.542464646191},null,{"$f":"IF('[1]EXT RIN(M)'!$L358=\"\",\"\",'[1]EXT RIN(M)'!$L358)","v":40159.23565579619},null,{"$f":"IF('[1]MONE(M)CARD'!EG358=\"\",\"\",'[1]MONE(M)CARD'!EG358)","v":37337.543448307813},{"$f":"IF('[1]MONE(M)CARD'!EK358=\"\",\"\",'[1]MONE(M)CARD'!EK358)","v":56443.505920250958},{"$f":"IF('[1]MONE(M)CARD'!EP358=\"\",\"\",'[1]MONE(M)CARD'!EP358)","v":31171.377523849573},{"$f":"IF('[1]MONE(M)CARD'!ES358=\"\",\"\",'[1]MONE(M)CARD'!ES358)","v":1.6999947267910098},{"$f":"IF('[1]MONE(M)CARD'!EV358=\"\",\"\",'[1]MONE(M)CARD'!EV358)","v":1.043180851469927},{"$f":"IF('[1]MONE(M)CARD'!EZ358=\"\",\"\",'[1]MONE(M)CARD'!EZ358)","v":0.97401101946499313},{"$f":"IF('[1]MONE(M)CAPARD'!FC358=\"\",\"\",'[1]MONE(M)CAPARD'!FC358)","v":45558.894022327811},{"$f":"IF('[1]MONE(M)CAPARD'!FG358=\"\",\"\",'[1]MONE(M)CAPARD'!FG358)","v":89216.199364610948},{"$f":"IF('[1]MONE(M)CAPARD'!FL358=\"\",\"\",'[1]MONE(M)CAPARD'!FL358)","v":31171.377523849573},{"$f":"IF('[1]MONE(M)CAPARD'!FO358=\"\",\"\",'[1]MONE(M)CAPARD'!FO358)","v":1.5837071794520652},{"$f":"IF('[1]MONE(M)CAPARD'!FR358=\"\",\"\",'[1]MONE(M)CAPARD'!FR358)","v":1.5299175803167309},{"$f":"IF('[1]MONE(M)CAPARD'!FV358=\"\",\"\",'[1]MONE(M)CAPARD'!FV358)","v":1.3856321942058436},{"$f":"IF('[1]MONE(M)CARD'!FV358=\"\",\"\",'[1]MONE(M)CARD'!FV358)","v":1825.5519719088502},{"$f":"IF('[1]MONE(M)CARD'!GD358=\"\",\"\",'[1]MONE(M)CARD'!GD358)","v":106.25644710570292},{"$f":"IF('[1]MONE(M)CARD'!GE358=\"\",\"\",'[1]MONE(M)CARD'!GE358)","v":11960.682481131276},{"$f":"IF(AD351=\"\",\"\",((AD351/AD338)-1)*100)","v":11.38541916142386},{"$f":"IF('[9]II.2.Balance OSD-Activos'!J216=\"\",\"\",'[9]II.2.Balance OSD-Activos'!J216)","v":217.66976975512586},{"$f":"IF('[9]II.2.Balance OSD-Activos'!N216=\"\",\"\",'[9]II.2.Balance OSD-Activos'!N216)","v":1490.3764973484695},{"$f":"IF('[9]II.2.Balance OSD-Activos'!R216=\"\",\"\",'[9]II.2.Balance OSD-Activos'!R216)","v":54263.41474384343},{"$f":"IF('[9]II.2.Balance OSD-Activos'!S216=\"\",\"\",'[9]II.2.Balance OSD-Activos'!S216)","v":58783.460486493743},54481.084513598558,114754.92149744077,-22.609628881389011,2.2277630127675696,{"$f":"IF(OR(AG351=\"\",AG339=\"\"),\"\",((AG351/AG339)-1)*100)","v":31.864197465791968},{"$f":"IF(OR(AH351=\"\",AH339=\"\"),\"\",((AH351/AH339)-1)*100)","v":2.3595396383700784},{"$f":"IF(OR(AI351=\"\",AI339=\"\"),\"\",((AI351/AI339)-1)*100)","v":1.5968244150709188},2.2009589380813654,-0.62635672780886331,{"$f":"IF('[1]MONE(M)CAPARD'!GS358=\"\",\"\",'[1]MONE(M)CAPARD'!GS358)","v":22955.298544572353},{"$f":"IF('[1]MONE(M)CARD'!HA358=\"\",\"\",'[1]MONE(M)CAPARD'!HA358)","v":14041.484178221275},{"$f":"IF('[1]MONE(M)CAPARD'!HB358=\"\",\"\",'[1]MONE(M)CAPARD'!HB358)","v":8913.8143663510782},"n.d.",{"$f":"IF('[10]II.2.Balance OSD-Activos'!J216=\"\",\"\",'[10]II.2.Balance OSD-Activos'!J216)","v":2282.500013115126},{"$f":"IF('[10]II.2.Balance OSD-Activos'!N216=\"\",\"\",'[10]II.2.Balance OSD-Activos'!N216)","v":1991.2851219884697},{"$f":"IF('[10]II.2.Balance OSD-Activos'!R216=\"\",\"\",'[10]II.2.Balance OSD-Activos'!R216)","v":78198.780478433429},{"$f":"IF('[10]II.2.Balance OSD-Activos'!S216=\"\",\"\",'[10]II.2.Balance OSD-Activos'!S216)","v":83528.815748673747},{"$f":"IFERROR(+AW351+AY351,\"\")","v":80481.280491548561},{"$f":"IF(OR(AW351=\"\",AX351=\"\",AY351=\"\",AZ351=\"\"),\"\",SUM(AW351:AZ351))","v":166001.38136221078},{"$f":"IF(OR(AW351=\"\",AW339=\"\"),\"\",((AW351/AW339)-1)*100)","v":-11.262630624595571},{"$f":"IF(OR(BA351=\"\",BA339=\"\"),\"\",((BA351/BA339)-1)*100)","v":1.6090726151921642},{"$f":"IF(OR(AX351=\"\",AX339=\"\"),\"\",((AX351/AX339)-1)*100)","v":21.683008173981033},{"$f":"IF(OR(AY351=\"\",AY339=\"\"),\"\",((AY351/AY339)-1)*100)","v":2.0411041284048359},{"$f":"IF(OR(AZ351=\"\",AZ339=\"\"),\"\",((AZ351/AZ339)-1)*100)","v":2.9491847468367416},{"$f":"IF(OR(BB351=\"\",BB339=\"\"),\"\",((BB351/BB339)-1)*100)","v":2.4831437212265106},{"$f":"IF(OR(BH351=\"\",BH350=\"\"),\"\",BH351-BH350)","v":-0.5567237040580153},{"$f":"IF('[1]MONE(M)CAPARD'!AS358=\"\",\"\",'[1]MONE(M)CAPARD'!AS358)","v":5.25},{"$f":"IF('[1]MONE(M)CAPARD'!AT358=\"\",\"\",'[1]MONE(M)CAPARD'!AT358)","v":"n.a."},{"$f":"IF('[1]MONE(M)CAPARD'!AU358=\"\",\"\",'[1]MONE(M)CAPARD'!AU358)","v":2.75},{"$f":"IF('[1]MONE(M)CAPARD'!AV358=\"\",\"\",'[1]MONE(M)CAPARD'!AV358)","v":5.75},{"$f":"IF('[1]MONE(M)CAPARD'!AW358=\"\",\"\",'[1]MONE(M)CAPARD'!AW358)","v":"n.a."},{"$f":"IF('[1]MONE(M)CAPARD'!AX358=\"\",\"\",'[1]MONE(M)CAPARD'!AX358)","v":5.5},{"$f":"IF('[1]MONE(M)CAPARD'!AY358=\"\",\"\",'[1]MONE(M)CAPARD'!AY358)","v":"n.a."},{"$f":"IF('[1]FISCAL(M)'!$K358=\"\",\"\",'[1]FISCAL(M)'!$K358)","v":-187.83856794137427},{"$f":"IF('[1]FISCAL(M)'!$L358=\"\",\"\",'[1]FISCAL(M)'!$L358)","v":"n.d."},{"$f":"IF('[1]FISCAL(M)'!$AY358=\"\",\"\",'[1]FISCAL(M)'!$AY358)","v":137621.50868877256},{"$f":"IF('[1]FISCAL(M)'!$BI358=\"\",\"\",'[1]FISCAL(M)'!$BI358)","v":72924.994924211322},{"$f":"IF('[1]FISCAL(M)'!$BS358=\"\",\"\",'[1]FISCAL(M)'!$BS358)","v":64696.513764561263},{"$f":"IF('[1]FISCAL(M)'!$AZ358=\"\",\"\",'[1]FISCAL(M)'!$AZ358)","v":163223.94228877258},{"$f":"IF('[1]FISCAL(M)'!$BJ358=\"\",\"\",'[1]FISCAL(M)'!$BJ358)","v":77994.499324211312},{"$f":"IF('[1]FISCAL(M)'!$BT358=\"\",\"\",'[1]FISCAL(M)'!$BT358)","v":85229.442964561254},{"$f":"IF('[2]MONE(M)'!$AO358=\"\",\"\",'[2]MONE(M)'!$AO358)","v":22376322.748207457},{"$f":"IF('[3]MONE(M)'!$AO358=\"\",\"\",'[3]MONE(M)'!$AO358)","v":13336.49345133},{"$f":"IF('[4]MONE(M)'!$AO358=\"\",\"\",'[4]MONE(M)'!$AO358)","v":206000.61681531777},{"$f":"+'[5]MONE(M)'!$AO358","v":356164.15203521663},{"$f":"IF('[6]MONE(M)'!$AO358=\"\",\"\",'[6]MONE(M)'!$AO358)","v":144443.09945521521},{"$f":"IF('[7]MONE(M)'!$AO358=\"\",\"\",'[7]MONE(M)'!$AO358)","v":1123080.12822832},{"$f":"IF('[8]MONE(M)'!$AO358=\"\",\"\",'[8]MONE(M)'!$AO358)","v":52052.281296899993},{"$f":"IF(BY351=\"\",\"\",((BY351/BY339)-1)*100)","v":4.4761505862802808},{"$f":"IF(BZ351=\"\",\"\",((BZ351/BZ339)-1)*100)","v":7.3051971145787986},{"$f":"IF(CA351=\"\",\"\",((CA351/CA339)-1)*100)","v":4.6742866691968699},{"$f":"IF(CB351=\"\",\"\",((CB351/CB339)-1)*100)","v":13.71521307819541},{"$f":"IF(CC351=\"\",\"\",((CC351/CC339)-1)*100)","v":-11.911048796065293},{"$f":"IF(CD351=\"\",\"\",((CD351/CD339)-1)*100)","v":9.9487446696527648},{"$f":"IF(CE351=\"\",\"\",((CE351/CE339)-1)*100)","v":2.9884078096588329},{"$f":"'[1]FISCAL(M)'!$K358","v":-187.83856794137427},{"$f":"+'[1]REAL(A)'!$AO$39","v":295060.91053595644},{"$f":"IF(OR(CM351=\"n.d.\",CM351=\"\",CN351=\"\",CN351=\"n.d.\"),\"\",(CM351/CN351)*100)","v":-6.3660946345003577E-2},{"$f":"IF('[1]FISCAL(M)'!$L358=\"\",\"\",'[1]FISCAL(M)'!$L358)","v":"n.d."},{"$f":"+'[1]REAL(A)'!$AP$39","v":362045.31206438324},"n.d.",154551.70678429632,{"$f":"'[1]Gráfico REM'!BG352","v":27752.904085380927},{"$f":"'[1]Gráfico REM'!BH352","v":118073.19199982801},{"$f":"'[1]Gráfico REM'!BI352","v":8725.6106990873923},{"$f":"IFERROR(+((CS351/CS339)-1)*100,\"\")","v":1.1367970306911612},{"$f":"IFERROR(+((CT351/CT339)-1)*100,\"\")","v":0.24702731091914565},{"$f":"IFERROR(+((CU351/CU339)-1)*100,\"\")","v":1.2094336401190509},{"$f":"IFERROR(+((CV351/CV339)-1)*100,\"\")","v":3.0450813158643397},231382.6558042863,{"$f":"'[1]Gráfico REM'!BK352","v":30054.198985360927},{"$f":"'[1]Gráfico REM'!BL352","v":170125.47329672799},{"$f":"'[1]Gráfico REM'!BM352","v":31202.983522197395},{"$f":"IFERROR(+((DA351/DA339)-1)*100,\"\")","v":1.7392199924532115},{"$f":"IFERROR(+((DB351/DB339)-1)*100,\"\")","v":0.58175091687850955},{"$f":"IFERROR(+((DC351/DC339)-1)*100,\"\")","v":1.747175794971656},{"$f":"IFERROR(+((DD351/DD339)-1)*100,\"\")","v":2.8352120095134881}]
[2019,"febrero","2019-febrero",{"$f":"IF('[1]REAL IPC(M)'!$AL359=\"\",\"\",+'[1]REAL IPC(M)'!$AL359)","v":2.4697669822662416},{"$f":"IF('[1]REAL IPC(M)'!$BE359=\"\",\"\",+'[1]REAL IPC(M)'!$BE359)","v":2.9328122789013866},{"$f":"IF('[1]REAL IPC(M)'!$AM359=\"\",\"\",+'[1]REAL IPC(M)'!$AM359)","v":2.0419584859759254},{"$f":"IF('[1]REAL IPC(M)'!$BI359=\"\",\"\",+'[1]REAL IPC(M)'!$BI359)","v":2.4830702549977213},{"$f":"IF('[1]REAL IMAE(M)'!BJ359=\"\",\"\",'[1]REAL IMAE(M)'!BJ359)","v":2.8183099993227989},{"$f":"IF('[1]REAL IMAE(M)'!BK359=\"\",\"\",'[1]REAL IMAE(M)'!BK359)","v":2.0808813363160317},{"$f":"IF('[1]REAL IMAE(M)'!BN359=\"\",\"\",'[1]REAL IMAE(M)'!BN359)","v":2.5226384393652213},{"$f":"IF('[1]REAL IMAE(M)'!BO359=\"\",\"\",'[1]REAL IMAE(M)'!BO359)","v":1.6509712767991847},{"$f":"IF('[1]EXT RIN(M)'!$K359=\"\",\"\",'[1]EXT RIN(M)'!$K359)","v":37607.46481905636},null,{"$f":"IF('[1]EXT RIN(M)'!$L359=\"\",\"\",'[1]EXT RIN(M)'!$L359)","v":40087.90890632636},null,{"$f":"IF('[1]MONE(M)CARD'!EG359=\"\",\"\",'[1]MONE(M)CARD'!EG359)","v":37299.050669711731},{"$f":"IF('[1]MONE(M)CARD'!EK359=\"\",\"\",'[1]MONE(M)CARD'!EK359)","v":57082.074255396852},{"$f":"IF('[1]MONE(M)CARD'!EP359=\"\",\"\",'[1]MONE(M)CARD'!EP359)","v":31731.508585314223},{"$f":"IF('[1]MONE(M)CARD'!ES359=\"\",\"\",'[1]MONE(M)CARD'!ES359)","v":1.8865426965902765},{"$f":"IF('[1]MONE(M)CARD'!EV359=\"\",\"\",'[1]MONE(M)CARD'!EV359)","v":1.7286237587210262},{"$f":"IF('[1]MONE(M)CARD'!EZ359=\"\",\"\",'[1]MONE(M)CARD'!EZ359)","v":1.577967692901372},{"$f":"IF('[1]MONE(M)CAPARD'!FC359=\"\",\"\",'[1]MONE(M)CAPARD'!FC359)","v":45435.198244741725},{"$f":"IF('[1]MONE(M)CAPARD'!FG359=\"\",\"\",'[1]MONE(M)CAPARD'!FG359)","v":90005.847085836853},{"$f":"IF('[1]MONE(M)CAPARD'!FL359=\"\",\"\",'[1]MONE(M)CAPARD'!FL359)","v":31731.508585314208},{"$f":"IF('[1]MONE(M)CAPARD'!FO359=\"\",\"\",'[1]MONE(M)CAPARD'!FO359)","v":1.521107496779206},{"$f":"IF('[1]MONE(M)CAPARD'!FR359=\"\",\"\",'[1]MONE(M)CAPARD'!FR359)","v":1.8380843183103845},{"$f":"IF('[1]MONE(M)CAPARD'!FV359=\"\",\"\",'[1]MONE(M)CAPARD'!FV359)","v":1.703396836004667},{"$f":"IF('[1]MONE(M)CARD'!FV359=\"\",\"\",'[1]MONE(M)CARD'!FV359)","v":1836.2709535683321},{"$f":"IF('[1]MONE(M)CARD'!GD359=\"\",\"\",'[1]MONE(M)CARD'!GD359)","v":94.854109225773314},{"$f":"IF('[1]MONE(M)CARD'!GE359=\"\",\"\",'[1]MONE(M)CARD'!GE359)","v":12060.56957604096},6.145965204159709,{"$f":"IF('[9]II.2.Balance OSD-Activos'!J217=\"\",\"\",'[9]II.2.Balance OSD-Activos'!J217)","v":208.37463662814594},{"$f":"IF('[9]II.2.Balance OSD-Activos'!N217=\"\",\"\",'[9]II.2.Balance OSD-Activos'!N217)","v":1489.9119058344345},{"$f":"IF('[9]II.2.Balance OSD-Activos'!R217=\"\",\"\",'[9]II.2.Balance OSD-Activos'!R217)","v":54400.750621515268},{"$f":"IF('[9]II.2.Balance OSD-Activos'!S217=\"\",\"\",'[9]II.2.Balance OSD-Activos'!S217)","v":58951.117112158339},54609.125258143416,115050.15427613619,-27.442923123412399,3.1547780399535652,36.411358755492465,3.3216719191787591,1.2862380883324365,2.5094266943634702,0.30846775628210477,{"$f":"IF('[1]MONE(M)CAPARD'!GS359=\"\",\"\",'[1]MONE(M)CAPARD'!GS359)","v":23233.665470535623},{"$f":"IF('[1]MONE(M)CARD'!HA359=\"\",\"\",'[1]MONE(M)CAPARD'!HA359)","v":14163.41614862096},{"$f":"IF('[1]MONE(M)CAPARD'!HB359=\"\",\"\",'[1]MONE(M)CAPARD'!HB359)","v":9070.2493219146636},"n.d.",{"$f":"IF('[10]II.2.Balance OSD-Activos'!J217=\"\",\"\",'[10]II.2.Balance OSD-Activos'!J217)","v":2295.2946449081464},{"$f":"IF('[10]II.2.Balance OSD-Activos'!N217=\"\",\"\",'[10]II.2.Balance OSD-Activos'!N217)","v":1984.1394216744343},{"$f":"IF('[10]II.2.Balance OSD-Activos'!R217=\"\",\"\",'[10]II.2.Balance OSD-Activos'!R217)","v":78484.387181775266},{"$f":"IF('[10]II.2.Balance OSD-Activos'!S217=\"\",\"\",'[10]II.2.Balance OSD-Activos'!S217)","v":83861.764373048325},80779.681826683416,166625.58562140618,-11.048132448039693,2.3392526240107125,19.764380190552956,2.7916851743760907,2.7125153990118944,2.7050388571805861,0.22189513595407551,{"$f":"IF('[1]MONE(M)CAPARD'!AS359=\"\",\"\",'[1]MONE(M)CAPARD'!AS359)","v":5.25},{"$f":"IF('[1]MONE(M)CAPARD'!AT359=\"\",\"\",'[1]MONE(M)CAPARD'!AT359)","v":"n.a."},{"$f":"IF('[1]MONE(M)CAPARD'!AU359=\"\",\"\",'[1]MONE(M)CAPARD'!AU359)","v":2.75},{"$f":"IF('[1]MONE(M)CAPARD'!AV359=\"\",\"\",'[1]MONE(M)CAPARD'!AV359)","v":5.75},{"$f":"IF('[1]MONE(M)CAPARD'!AW359=\"\",\"\",'[1]MONE(M)CAPARD'!AW359)","v":"n.a."},{"$f":"IF('[1]MONE(M)CAPARD'!AX359=\"\",\"\",'[1]MONE(M)CAPARD'!AX359)","v":5.5},{"$f":"IF('[1]MONE(M)CAPARD'!AY359=\"\",\"\",'[1]MONE(M)CAPARD'!AY359)","v":"n.a."},{"$f":"IF('[1]FISCAL(M)'!$K359=\"\",\"\",'[1]FISCAL(M)'!$K359)","v":-994.34667542552006},{"$f":"IF('[1]FISCAL(M)'!$L359=\"\",\"\",'[1]FISCAL(M)'!$L359)","v":"n.d."},{"$f":"IF('[1]FISCAL(M)'!$AY359=\"\",\"\",'[1]FISCAL(M)'!$AY359)","v":138614.66625134408},{"$f":"IF('[1]FISCAL(M)'!$BI359=\"\",\"\",'[1]FISCAL(M)'!$BI359)","v":74024.725809377764},{"$f":"IF('[1]FISCAL(M)'!$BS359=\"\",\"\",'[1]FISCAL(M)'!$BS359)","v":64589.940441966319},{"$f":"IF('[1]FISCAL(M)'!$AZ359=\"\",\"\",'[1]FISCAL(M)'!$AZ359)","v":164319.13625134411},{"$f":"IF('[1]FISCAL(M)'!$BJ359=\"\",\"\",'[1]FISCAL(M)'!$BJ359)","v":79248.655809377786},{"$f":"IF('[1]FISCAL(M)'!$BT359=\"\",\"\",'[1]FISCAL(M)'!$BT359)","v":85070.480441966341},{"$f":"IF('[2]MONE(M)'!$AO359=\"\",\"\",'[2]MONE(M)'!$AO359)","v":22329382.033653934},{"$f":"IF('[3]MONE(M)'!$AO359=\"\",\"\",'[3]MONE(M)'!$AO359)","v":13397.301815500001},{"$f":"IF('[4]MONE(M)'!$AO359=\"\",\"\",'[4]MONE(M)'!$AO359)","v":204832.62430575467},{"$f":"+'[5]MONE(M)'!$AO359","v":359219.81528673053},{"$f":"IF('[6]MONE(M)'!$AO359=\"\",\"\",'[6]MONE(M)'!$AO359)","v":141435.93885392853},{"$f":"IF('[7]MONE(M)'!$AO359=\"\",\"\",'[7]MONE(M)'!$AO359)","v":1128088.1871721298},{"$f":"IF('[8]MONE(M)'!$AO359=\"\",\"\",'[8]MONE(M)'!$AO359)","v":52431.739503529985},4.218567346316604,7.0481885113485632,4.2161525947022271,14.090362646076438,-14.099994703577302,9.634218830756879,3.2442669240535515,{"$f":"'[1]FISCAL(M)'!$K359","v":-994.34667542552006},{"$f":"+'[1]REAL(A)'!$AO$39","v":295060.91053595644},-0.33699708769262671,{"$f":"IF('[1]FISCAL(M)'!$L359=\"\",\"\",'[1]FISCAL(M)'!$L359)","v":"n.d."},{"$f":"+'[1]REAL(A)'!$AP$39","v":362045.31206438324},"n.d.",155378.23588660275,{"$f":"'[1]Gráfico REM'!BG353","v":28098.801223108221},{"$f":"'[1]Gráfico REM'!BH353","v":118299.96409318456},{"$f":"'[1]Gráfico REM'!BI353","v":8979.4705703099607},1.8083722310396233,1.7286168862726825,1.4435524823262158,7.1478183038130805,232704.28424219269,{"$f":"'[1]Gráfico REM'!BK353","v":30435.033399658219},{"$f":"'[1]Gráfico REM'!BL353","v":170731.70359671453},{"$f":"'[1]Gráfico REM'!BM353","v":31537.547245819944},2.4154016629664543,2.0920641733957135,1.9898332068351676,5.1110256332518311]
[2019,"marzo","2019-marzo",{"$f":"IF('[1]REAL IPC(M)'!$AL360=\"\",\"\",+'[1]REAL IPC(M)'!$AL360)","v":2.6060624527549425},{"$f":"IF('[1]REAL IPC(M)'!$BE360=\"\",\"\",+'[1]REAL IPC(M)'!$BE360)","v":2.9492497798252915},{"$f":"IF('[1]REAL IPC(M)'!$AM360=\"\",\"\",+'[1]REAL IPC(M)'!$AM360)","v":2.2042034581087},{"$f":"IF('[1]REAL IPC(M)'!$BI360=\"\",\"\",+'[1]REAL IPC(M)'!$BI360)","v":2.48967632043815},{"$f":"IF('[1]REAL IMAE(M)'!BJ360=\"\",\"\",'[1]REAL IMAE(M)'!BJ360)","v":2.5445999650221429},{"$f":"IF('[1]REAL IMAE(M)'!BK360=\"\",\"\",'[1]REAL IMAE(M)'!BK360)","v":1.9883097556082863},{"$f":"IF('[1]REAL IMAE(M)'!BN360=\"\",\"\",'[1]REAL IMAE(M)'!BN360)","v":2.216146769956695},{"$f":"IF('[1]REAL IMAE(M)'!BO360=\"\",\"\",'[1]REAL IMAE(M)'!BO360)","v":1.5333788038546459},{"$f":"IF('[1]EXT RIN(M)'!$K360=\"\",\"\",'[1]EXT RIN(M)'!$K360)","v":38787.577114171581},null,{"$f":"IF('[1]EXT RIN(M)'!$L360=\"\",\"\",'[1]EXT RIN(M)'!$L360)","v":41484.629562651578},null,{"$f":"IF('[1]MONE(M)CARD'!EG360=\"\",\"\",'[1]MONE(M)CARD'!EG360)","v":37960.238722989889},{"$f":"IF('[1]MONE(M)CARD'!EK360=\"\",\"\",'[1]MONE(M)CARD'!EK360)","v":57645.370288711769},{"$f":"IF('[1]MONE(M)CARD'!EP360=\"\",\"\",'[1]MONE(M)CARD'!EP360)","v":31661.658804322375},{"$f":"IF('[1]MONE(M)CARD'!ES360=\"\",\"\",'[1]MONE(M)CARD'!ES360)","v":1.5253591978127812},{"$f":"IF('[1]MONE(M)CARD'!EV360=\"\",\"\",'[1]MONE(M)CARD'!EV360)","v":1.9949446993791309},{"$f":"IF('[1]MONE(M)CARD'!EZ360=\"\",\"\",'[1]MONE(M)CARD'!EZ360)","v":1.7804606052051586},{"$f":"IF('[1]MONE(M)CAPARD'!FC360=\"\",\"\",'[1]MONE(M)CAPARD'!FC360)","v":45821.650045799892},{"$f":"IF('[1]MONE(M)CAPARD'!FG360=\"\",\"\",'[1]MONE(M)CAPARD'!FG360)","v":90756.055311001764},{"$f":"IF('[1]MONE(M)CAPARD'!FL360=\"\",\"\",'[1]MONE(M)CAPARD'!FL360)","v":31661.65880432236},{"$f":"IF('[1]MONE(M)CAPARD'!FO360=\"\",\"\",'[1]MONE(M)CAPARD'!FO360)","v":0.69955192393471588},{"$f":"IF('[1]MONE(M)CAPARD'!FR360=\"\",\"\",'[1]MONE(M)CAPARD'!FR360)","v":1.8963915739196757},{"$f":"IF('[1]MONE(M)CAPARD'!FV360=\"\",\"\",'[1]MONE(M)CAPARD'!FV360)","v":1.7528456132381853},{"$f":"IF('[1]MONE(M)CARD'!FV360=\"\",\"\",'[1]MONE(M)CARD'!FV360)","v":1729.2718111409504},{"$f":"IF('[1]MONE(M)CARD'!GD360=\"\",\"\",'[1]MONE(M)CARD'!GD360)","v":116.21816853253794},{"$f":"IF('[1]MONE(M)CARD'!GE360=\"\",\"\",'[1]MONE(M)CARD'!GE360)","v":12167.245537096742},{"$f":"IF(AD353=\"\",\"\",((AD353/AD340)-1)*100)","v":4.5254463757559593},{"$f":"IF('[9]II.2.Balance OSD-Activos'!J218=\"\",\"\",'[9]II.2.Balance OSD-Activos'!J218)","v":214.45938535964274},{"$f":"IF('[9]II.2.Balance OSD-Activos'!N218=\"\",\"\",'[9]II.2.Balance OSD-Activos'!N218)","v":1503.6812383355775},{"$f":"IF('[9]II.2.Balance OSD-Activos'!R218=\"\",\"\",'[9]II.2.Balance OSD-Activos'!R218)","v":55158.240611801943},{"$f":"IF('[9]II.2.Balance OSD-Activos'!S218=\"\",\"\",'[9]II.2.Balance OSD-Activos'!S218)","v":58769.283809052198},{"$f":"IFERROR(+AF353+AH353,\"\")","v":55372.699997161588},{"$f":"IF(OR(AF353=\"\",AG353=\"\",AH353=\"\",AI353=\"\"),\"\",SUM(AF353:AI353))","v":115645.66504454936},-21.676264677682656,4.0703996314542801,36.262591165530388,4.2035814305159347,0.61594878482602589,{"$f":"IF(OR(AK353=\"\",AK341=\"\"),\"\",((AK353/AK341)-1)*100)","v":2.5955224413264588},{"$f":"IF(OR(AQ353=\"\",AQ352=\"\"),\"\",AQ353-AQ352)","v":8.6095746962988606E-2},{"$f":"IF('[1]MONE(M)CAPARD'!GS360=\"\",\"\",'[1]MONE(M)CAPARD'!GS360)","v":24090.825529956946},{"$f":"IF('[1]MONE(M)CARD'!HA360=\"\",\"\",'[1]MONE(M)CAPARD'!HA360)","v":14244.462834976743},{"$f":"IF('[1]MONE(M)CAPARD'!HB360=\"\",\"\",'[1]MONE(M)CAPARD'!HB360)","v":9846.3626949802037},"n.d.",{"$f":"IF('[10]II.2.Balance OSD-Activos'!J218=\"\",\"\",'[10]II.2.Balance OSD-Activos'!J218)","v":2383.4425575196433},{"$f":"IF('[10]II.2.Balance OSD-Activos'!N218=\"\",\"\",'[10]II.2.Balance OSD-Activos'!N218)","v":1997.2244208855777},{"$f":"IF('[10]II.2.Balance OSD-Activos'!R218=\"\",\"\",'[10]II.2.Balance OSD-Activos'!R218)","v":79276.922787271935},{"$f":"IF('[10]II.2.Balance OSD-Activos'!S218=\"\",\"\",'[10]II.2.Balance OSD-Activos'!S218)","v":83768.059008902201},81660.365344791571,167425.64877457934,-6.45711347862854,3.0111241394388033,20.401687174767513,3.3255541788379528,2.1948884606005192,2.7774947282584339,7.2455871077847789E-2,{"$f":"IF('[1]MONE(M)CAPARD'!AS360=\"\",\"\",'[1]MONE(M)CAPARD'!AS360)","v":5},{"$f":"IF('[1]MONE(M)CAPARD'!AT360=\"\",\"\",'[1]MONE(M)CAPARD'!AT360)","v":"n.a."},{"$f":"IF('[1]MONE(M)CAPARD'!AU360=\"\",\"\",'[1]MONE(M)CAPARD'!AU360)","v":2.75},{"$f":"IF('[1]MONE(M)CAPARD'!AV360=\"\",\"\",'[1]MONE(M)CAPARD'!AV360)","v":5.75},{"$f":"IF('[1]MONE(M)CAPARD'!AW360=\"\",\"\",'[1]MONE(M)CAPARD'!AW360)","v":"n.a."},{"$f":"IF('[1]MONE(M)CAPARD'!AX360=\"\",\"\",'[1]MONE(M)CAPARD'!AX360)","v":5.5},{"$f":"IF('[1]MONE(M)CAPARD'!AY360=\"\",\"\",'[1]MONE(M)CAPARD'!AY360)","v":"n.a."},{"$f":"IF('[1]FISCAL(M)'!$K360=\"\",\"\",'[1]FISCAL(M)'!$K360)","v":-1560.4738375683958},{"$f":"IF('[1]FISCAL(M)'!$L360=\"\",\"\",'[1]FISCAL(M)'!$L360)","v":-2870.6738375683954},{"$f":"IF('[1]FISCAL(M)'!$AY360=\"\",\"\",'[1]FISCAL(M)'!$AY360)","v":140461.42028816504},{"$f":"IF('[1]FISCAL(M)'!$BI360=\"\",\"\",'[1]FISCAL(M)'!$BI360)","v":75972.222144648957},{"$f":"IF('[1]FISCAL(M)'!$BS360=\"\",\"\",'[1]FISCAL(M)'!$BS360)","v":64489.198143516092},{"$f":"IF('[1]FISCAL(M)'!$AZ360=\"\",\"\",'[1]FISCAL(M)'!$AZ360)","v":166354.48028816504},{"$f":"IF('[1]FISCAL(M)'!$BJ360=\"\",\"\",'[1]FISCAL(M)'!$BJ360)","v":81404.912144648959},{"$f":"IF('[1]FISCAL(M)'!$BT360=\"\",\"\",'[1]FISCAL(M)'!$BT360)","v":84949.56814351611},{"$f":"IF('[2]MONE(M)'!$AO360=\"\",\"\",'[2]MONE(M)'!$AO360)","v":22245778.552107282},{"$f":"IF('[3]MONE(M)'!$AO360=\"\",\"\",'[3]MONE(M)'!$AO360)","v":13422.83540878},{"$f":"IF('[4]MONE(M)'!$AO360=\"\",\"\",'[4]MONE(M)'!$AO360)","v":206386.45032696461},{"$f":"+'[5]MONE(M)'!$AO360","v":361411.5891873634},{"$f":"IF('[6]MONE(M)'!$AO360=\"\",\"\",'[6]MONE(M)'!$AO360)","v":138522.68770312061},{"$f":"IF('[7]MONE(M)'!$AO360=\"\",\"\",'[7]MONE(M)'!$AO360)","v":1158290.71325079},{"$f":"IF('[8]MONE(M)'!$AO360=\"\",\"\",'[8]MONE(M)'!$AO360)","v":52719.492688639992},{"$f":"IF(BY353=\"\",\"\",((BY353/BY341)-1)*100)","v":4.2706767075909147},{"$f":"IF(BZ353=\"\",\"\",((BZ353/BZ341)-1)*100)","v":6.9718587610636096},{"$f":"IF(CA353=\"\",\"\",((CA353/CA341)-1)*100)","v":4.2748883929449644},{"$f":"IF(CB353=\"\",\"\",((CB353/CB341)-1)*100)","v":13.891382078062264},{"$f":"IF(CC353=\"\",\"\",((CC353/CC341)-1)*100)","v":-16.815600545838837},{"$f":"IF(CD353=\"\",\"\",((CD353/CD341)-1)*100)","v":11.87279628564788},{"$f":"IF(CE353=\"\",\"\",((CE353/CE341)-1)*100)","v":3.4579045014985654},{"$f":"'[1]FISCAL(M)'!$K360","v":-1560.4738375683958},{"$f":"+'[1]REAL(A)'!$AO$39","v":295060.91053595644},-0.52886498409223703,{"$f":"IF('[1]FISCAL(M)'!$L360=\"\",\"\",'[1]FISCAL(M)'!$L360)","v":-2870.6738375683954},{"$f":"+'[1]REAL(A)'!$AP$39","v":362045.31206438324},-0.79290457351865884,157010.32984553449,{"$f":"'[1]Gráfico REM'!BG354","v":28364.058636327802},{"$f":"'[1]Gráfico REM'!BH354","v":119598.60839016136},{"$f":"'[1]Gráfico REM'!BI354","v":9047.662819045323},2.6521537239090565,3.6825487007011715,2.1832061501617206,5.7734562299597725,234372.69558068446,{"$f":"'[1]Gráfico REM'!BK354","v":30732.1020833978},{"$f":"'[1]Gráfico REM'!BL354","v":172318.10107880135},{"$f":"'[1]Gráfico REM'!BM354","v":31322.492418485326},3.1449730065497672,3.6875639769307522,2.5698434609492837,5.8671602306227033]
[2019,"abril","2019-abril",{"$f":"IF('[1]REAL IPC(M)'!$AL361=\"\",\"\",+'[1]REAL IPC(M)'!$AL361)","v":3.0379873663636703},{"$f":"IF('[1]REAL IPC(M)'!$BE361=\"\",\"\",+'[1]REAL IPC(M)'!$BE361)","v":2.9682594307114396},{"$f":"IF('[1]REAL IPC(M)'!$AM361=\"\",\"\",+'[1]REAL IPC(M)'!$AM361)","v":2.5868938319088874},{"$f":"IF('[1]REAL IPC(M)'!$BI361=\"\",\"\",+'[1]REAL IPC(M)'!$BI361)","v":2.4990178399405094},{"$f":"IF('[1]REAL IMAE(M)'!BJ361=\"\",\"\",'[1]REAL IMAE(M)'!BJ361)","v":3.0374519769352126},{"$f":"IF('[1]REAL IMAE(M)'!BK361=\"\",\"\",'[1]REAL IMAE(M)'!BK361)","v":1.8999455903322415},{"$f":"IF('[1]REAL IMAE(M)'!BN361=\"\",\"\",'[1]REAL IMAE(M)'!BN361)","v":3.1712608169236267},{"$f":"IF('[1]REAL IMAE(M)'!BO361=\"\",\"\",'[1]REAL IMAE(M)'!BO361)","v":1.4199109875556504},{"$f":"IF('[1]EXT RIN(M)'!$K361=\"\",\"\",'[1]EXT RIN(M)'!$K361)","v":38892.683578244294},null,{"$f":"IF('[1]EXT RIN(M)'!$L361=\"\",\"\",'[1]EXT RIN(M)'!$L361)","v":41872.394911354291},null,{"$f":"IF('[1]MONE(M)CARD'!EG361=\"\",\"\",'[1]MONE(M)CARD'!EG361)","v":37770.377784105811},{"$f":"IF('[1]MONE(M)CARD'!EK361=\"\",\"\",'[1]MONE(M)CARD'!EK361)","v":58351.264802226149},{"$f":"IF('[1]MONE(M)CARD'!EP361=\"\",\"\",'[1]MONE(M)CARD'!EP361)","v":31605.874386568612},{"$f":"IF('[1]MONE(M)CARD'!ES361=\"\",\"\",'[1]MONE(M)CARD'!ES361)","v":2.3623569704822378},{"$f":"IF('[1]MONE(M)CARD'!EV361=\"\",\"\",'[1]MONE(M)CARD'!EV361)","v":2.7237281905828192},{"$f":"IF('[1]MONE(M)CARD'!EZ361=\"\",\"\",'[1]MONE(M)CARD'!EZ361)","v":1.9226556993569011},{"$f":"IF('[1]MONE(M)CAPARD'!FC361=\"\",\"\",'[1]MONE(M)CAPARD'!FC361)","v":45760.117720695809},{"$f":"IF('[1]MONE(M)CAPARD'!FG361=\"\",\"\",'[1]MONE(M)CAPARD'!FG361)","v":91476.742711356186},{"$f":"IF('[1]MONE(M)CAPARD'!FL361=\"\",\"\",'[1]MONE(M)CAPARD'!FL361)","v":31605.874386568612},{"$f":"IF('[1]MONE(M)CAPARD'!FO361=\"\",\"\",'[1]MONE(M)CAPARD'!FO361)","v":0.90074086970830525},{"$f":"IF('[1]MONE(M)CAPARD'!FR361=\"\",\"\",'[1]MONE(M)CAPARD'!FR361)","v":2.4315166852848291},{"$f":"IF('[1]MONE(M)CAPARD'!FV361=\"\",\"\",'[1]MONE(M)CAPARD'!FV361)","v":1.8817324383560097},{"$f":"IF('[1]MONE(M)CARD'!FV361=\"\",\"\",'[1]MONE(M)CARD'!FV361)","v":1765.2585106341903},{"$f":"IF('[1]MONE(M)CARD'!GD361=\"\",\"\",'[1]MONE(M)CARD'!GD361)","v":277.5253024758627},{"$f":"IF('[1]MONE(M)CARD'!GE361=\"\",\"\",'[1]MONE(M)CARD'!GE361)","v":13228.010733460327},{"$f":"IF(AD354=\"\",\"\",((AD354/AD341)-1)*100)","v":15.028329245113948},{"$f":"IF('[9]II.2.Balance OSD-Activos'!J219=\"\",\"\",'[9]II.2.Balance OSD-Activos'!J219)","v":200.8565105027379},{"$f":"IF('[9]II.2.Balance OSD-Activos'!N219=\"\",\"\",'[9]II.2.Balance OSD-Activos'!N219)","v":1480.1853598682337},{"$f":"IF('[9]II.2.Balance OSD-Activos'!R219=\"\",\"\",'[9]II.2.Balance OSD-Activos'!R219)","v":55271.941472137594},{"$f":"IF('[9]II.2.Balance OSD-Activos'!S219=\"\",\"\",'[9]II.2.Balance OSD-Activos'!S219)","v":59094.498964274302},{"$f":"IFERROR(+AF354+AH354,\"\")","v":55472.797982640332},{"$f":"IF(OR(AF354=\"\",AG354=\"\",AH354=\"\",AI354=\"\"),\"\",SUM(AF354:AI354))","v":116047.48230678287},{"$f":"IF(OR(AF354=\"\",AF342=\"\"),\"\",((AF354/AF342)-1)*100)","v":-27.782640870863816},{"$f":"IF(OR(AJ354=\"\",AJ342=\"\"),\"\",((AJ354/AJ342)-1)*100)","v":1.9274882233172752},{"$f":"IF(OR(AG354=\"\",AG342=\"\"),\"\",((AG354/AG342)-1)*100)","v":27.586581083237327},{"$f":"IF(OR(AH354=\"\",AH342=\"\"),\"\",((AH354/AH342)-1)*100)","v":2.0800990033335243},{"$f":"IF(OR(AI354=\"\",AI342=\"\"),\"\",((AI354/AI342)-1)*100)","v":2.4945364688336635},{"$f":"IF(OR(AK354=\"\",AK342=\"\"),\"\",((AK354/AK342)-1)*100)","v":2.4790774624907863},{"$f":"IF(OR(AQ354=\"\",AQ353=\"\"),\"\",AQ354-AQ353)","v":-0.11644497883567251},{"$f":"IF('[1]MONE(M)CAPARD'!GS361=\"\",\"\",'[1]MONE(M)CAPARD'!GS361)","v":24420.852659644199},{"$f":"IF('[1]MONE(M)CARD'!HA361=\"\",\"\",'[1]MONE(M)CAPARD'!HA361)","v":15441.726159040329},{"$f":"IF('[1]MONE(M)CAPARD'!HB361=\"\",\"\",'[1]MONE(M)CAPARD'!HB361)","v":8979.1265006038702},"n.d.",{"$f":"IF('[10]II.2.Balance OSD-Activos'!J219=\"\",\"\",'[10]II.2.Balance OSD-Activos'!J219)","v":2326.8851093527383},{"$f":"IF('[10]II.2.Balance OSD-Activos'!N219=\"\",\"\",'[10]II.2.Balance OSD-Activos'!N219)","v":1922.2940776882333},{"$f":"IF('[10]II.2.Balance OSD-Activos'!R219=\"\",\"\",'[10]II.2.Balance OSD-Activos'!R219)","v":79379.693925337575},{"$f":"IF('[10]II.2.Balance OSD-Activos'!S219=\"\",\"\",'[10]II.2.Balance OSD-Activos'!S219)","v":84196.279774744326},{"$f":"IFERROR(+AW354+AY354,\"\")","v":81706.579034690309},{"$f":"IF(OR(AW354=\"\",AX354=\"\",AY354=\"\",AZ354=\"\"),\"\",SUM(AW354:AZ354))","v":167825.15288712288},{"$f":"IF(OR(AW354=\"\",AW342=\"\"),\"\",((AW354/AW342)-1)*100)","v":-7.8229691898976768},{"$f":"IF(OR(BA354=\"\",BA342=\"\"),\"\",((BA354/BA342)-1)*100)","v":1.4902073383583181},{"$f":"IF(OR(AX354=\"\",AX342=\"\"),\"\",((AX354/AX342)-1)*100)","v":7.6560163627041211},{"$f":"IF(OR(AY354=\"\",AY342=\"\"),\"\",((AY354/AY342)-1)*100)","v":1.7916834725446362},{"$f":"IF(OR(AZ354=\"\",AZ342=\"\"),\"\",((AZ354/AZ342)-1)*100)","v":3.5099969270862674},{"$f":"IF(OR(BB354=\"\",BB342=\"\"),\"\",((BB354/BB342)-1)*100)","v":2.5615133742230567},{"$f":"IF(OR(BH354=\"\",BH353=\"\"),\"\",BH354-BH353)","v":-0.21598135403537722},{"$f":"IF('[1]MONE(M)CAPARD'!AS361=\"\",\"\",'[1]MONE(M)CAPARD'!AS361)","v":5},{"$f":"IF('[1]MONE(M)CAPARD'!AT361=\"\",\"\",'[1]MONE(M)CAPARD'!AT361)","v":"n.a."},{"$f":"IF('[1]MONE(M)CAPARD'!AU361=\"\",\"\",'[1]MONE(M)CAPARD'!AU361)","v":2.75},{"$f":"IF('[1]MONE(M)CAPARD'!AV361=\"\",\"\",'[1]MONE(M)CAPARD'!AV361)","v":5.75},{"$f":"IF('[1]MONE(M)CAPARD'!AW361=\"\",\"\",'[1]MONE(M)CAPARD'!AW361)","v":"n.a."},{"$f":"IF('[1]MONE(M)CAPARD'!AX361=\"\",\"\",'[1]MONE(M)CAPARD'!AX361)","v":5.5},{"$f":"IF('[1]MONE(M)CAPARD'!AY361=\"\",\"\",'[1]MONE(M)CAPARD'!AY361)","v":"n.a."},{"$f":"IF('[1]FISCAL(M)'!$K361=\"\",\"\",'[1]FISCAL(M)'!$K361)","v":-1310.1971799575956},{"$f":"IF('[1]FISCAL(M)'!$L361=\"\",\"\",'[1]FISCAL(M)'!$L361)","v":"n.d."},{"$f":"IF('[1]FISCAL(M)'!$AY361=\"\",\"\",'[1]FISCAL(M)'!$AY361)","v":140451.61883732455},{"$f":"IF('[1]FISCAL(M)'!$BI361=\"\",\"\",'[1]FISCAL(M)'!$BI361)","v":76229.053520332876},{"$f":"IF('[1]FISCAL(M)'!$BS361=\"\",\"\",'[1]FISCAL(M)'!$BS361)","v":64222.565316991677},{"$f":"IF('[1]FISCAL(M)'!$AZ361=\"\",\"\",'[1]FISCAL(M)'!$AZ361)","v":167423.36883732455},{"$f":"IF('[1]FISCAL(M)'!$BJ361=\"\",\"\",'[1]FISCAL(M)'!$BJ361)","v":82739.743520332879},{"$f":"IF('[1]FISCAL(M)'!$BT361=\"\",\"\",'[1]FISCAL(M)'!$BT361)","v":84683.625316991674},{"$f":"IF('[2]MONE(M)'!$AO361=\"\",\"\",'[2]MONE(M)'!$AO361)","v":22254279.521246675},{"$f":"IF('[3]MONE(M)'!$AO361=\"\",\"\",'[3]MONE(M)'!$AO361)","v":13492.689582529998},{"$f":"IF('[4]MONE(M)'!$AO361=\"\",\"\",'[4]MONE(M)'!$AO361)","v":207576.96406313614},{"$f":"+'[5]MONE(M)'!$AO361","v":362712.3042695066},{"$f":"IF('[6]MONE(M)'!$AO361=\"\",\"\",'[6]MONE(M)'!$AO361)","v":135262.83279765147},{"$f":"IF('[7]MONE(M)'!$AO361=\"\",\"\",'[7]MONE(M)'!$AO361)","v":1159637.5011751801},{"$f":"IF('[8]MONE(M)'!$AO361=\"\",\"\",'[8]MONE(M)'!$AO361)","v":52760.859422689995},{"$f":"IF(BY354=\"\",\"\",((BY354/BY342)-1)*100)","v":4.1229420693254859},{"$f":"IF(BZ354=\"\",\"\",((BZ354/BZ342)-1)*100)","v":6.9514070717207943},{"$f":"IF(CA354=\"\",\"\",((CA354/CA342)-1)*100)","v":4.6301586152399654},{"$f":"IF(CB354=\"\",\"\",((CB354/CB342)-1)*100)","v":13.244291860545099},{"$f":"IF(CC354=\"\",\"\",((CC354/CC342)-1)*100)","v":-19.648706478528645},{"$f":"IF(CD354=\"\",\"\",((CD354/CD342)-1)*100)","v":10.926092435861223},{"$f":"IF(CE354=\"\",\"\",((CE354/CE342)-1)*100)","v":3.1895898407427126},{"$f":"'[1]FISCAL(M)'!$K361","v":-1310.1971799575956},{"$f":"+'[1]REAL(A)'!$AO$39","v":295060.91053595644},-0.44404295288647982,{"$f":"IF('[1]FISCAL(M)'!$L361=\"\",\"\",'[1]FISCAL(M)'!$L361)","v":"n.d."},{"$f":"+'[1]REAL(A)'!$AP$39","v":362045.31206438324},"n.d.",{"$f":"+IF(OR(CT354=\"\",+CU354=\"\",+CV354=\"\"),\"\",(CT354+CU354+CV354))","v":158091.82594462467},{"$f":"'[1]Gráfico REM'!BG355","v":28788.093449406479},{"$f":"'[1]Gráfico REM'!BH355","v":120089.88741459329},{"$f":"'[1]Gráfico REM'!BI355","v":9213.845080624882},{"$f":"IFERROR(+((CS354/CS342)-1)*100,\"\")","v":2.6479479568287001},{"$f":"IFERROR(+((CT354/CT342)-1)*100,\"\")","v":3.7406645608620837},{"$f":"IFERROR(+((CU354/CU342)-1)*100,\"\")","v":2.1792075301651392},{"$f":"IFERROR(+((CV354/CV342)-1)*100,\"\")","v":5.4834208817969188},{"$f":"+IF(OR(DB354=\"\",+DC354=\"\",+DD354=\"\"),\"\",(DB354+DC354+DD354))","v":235355.92933023465},{"$f":"'[1]Gráfico REM'!BK355","v":31120.257524286477},{"$f":"'[1]Gráfico REM'!BL355","v":172850.74683728328},{"$f":"'[1]Gráfico REM'!BM355","v":31384.924968664884},{"$f":"IFERROR(+((DA354/DA342)-1)*100,\"\")","v":2.7997010844669434},{"$f":"IFERROR(+((DB354/DB342)-1)*100,\"\")","v":3.8190225730553085},{"$f":"IFERROR(+((DC354/DC342)-1)*100,\"\")","v":2.4855117095672341},{"$f":"IFERROR(+((DD354/DD342)-1)*100,\"\")","v":3.5398758327594981}]
[2019,"mayo ","2019-mayo ",{"$f":"IF('[1]REAL IPC(M)'!$AL362=\"\",\"\",+'[1]REAL IPC(M)'!$AL362)","v":2.9769623778775456},{"$f":"IF('[1]REAL IPC(M)'!$BE362=\"\",\"\",+'[1]REAL IPC(M)'!$BE362)","v":2.9901010453003307},{"$f":"IF('[1]REAL IPC(M)'!$AM362=\"\",\"\",+'[1]REAL IPC(M)'!$AM362)","v":2.547529550862726},{"$f":"IF('[1]REAL IPC(M)'!$BI362=\"\",\"\",+'[1]REAL IPC(M)'!$BI362)","v":2.5114169270038289},{"$f":"IF('[1]REAL IMAE(M)'!BJ362=\"\",\"\",'[1]REAL IMAE(M)'!BJ362)","v":3.0947630400896875},{"$f":"IF('[1]REAL IMAE(M)'!BK362=\"\",\"\",'[1]REAL IMAE(M)'!BK362)","v":1.8166459824229264},{"$f":"IF('[1]REAL IMAE(M)'!BN362=\"\",\"\",'[1]REAL IMAE(M)'!BN362)","v":3.329673178379644},{"$f":"IF('[1]REAL IMAE(M)'!BO362=\"\",\"\",'[1]REAL IMAE(M)'!BO362)","v":1.3115182296661754},{"$f":"IF('[1]EXT RIN(M)'!$K362=\"\",\"\",'[1]EXT RIN(M)'!$K362)","v":39532.157200000001},null,{"$f":"IF('[1]EXT RIN(M)'!$L362=\"\",\"\",'[1]EXT RIN(M)'!$L362)","v":42329.966554040002},null,{"$f":"IF('[1]MONE(M)CARD'!EG362=\"\",\"\",'[1]MONE(M)CARD'!EG362)","v":37552.263145737677},{"$f":"IF('[1]MONE(M)CARD'!EK362=\"\",\"\",'[1]MONE(M)CARD'!EK362)","v":58650.841009697477},{"$f":"IF('[1]MONE(M)CARD'!EP362=\"\",\"\",'[1]MONE(M)CARD'!EP362)","v":31751.311663675471},{"$f":"IF('[1]MONE(M)CARD'!ES362=\"\",\"\",'[1]MONE(M)CARD'!ES362)","v":4.0832799312394918},{"$f":"IF('[1]MONE(M)CARD'!EV362=\"\",\"\",'[1]MONE(M)CARD'!EV362)","v":3.685892873055896},{"$f":"IF('[1]MONE(M)CARD'!EZ362=\"\",\"\",'[1]MONE(M)CARD'!EZ362)","v":2.651977905722358},{"$f":"IF('[1]MONE(M)CAPARD'!FC362=\"\",\"\",'[1]MONE(M)CAPARD'!FC362)","v":45461.449842017682},{"$f":"IF('[1]MONE(M)CAPARD'!FG362=\"\",\"\",'[1]MONE(M)CAPARD'!FG362)","v":91871.682263507464},{"$f":"IF('[1]MONE(M)CAPARD'!FL362=\"\",\"\",'[1]MONE(M)CAPARD'!FL362)","v":31751.311663675471},{"$f":"IF('[1]MONE(M)CAPARD'!FO362=\"\",\"\",'[1]MONE(M)CAPARD'!FO362)","v":2.9746079547209314},{"$f":"IF('[1]MONE(M)CAPARD'!FR362=\"\",\"\",'[1]MONE(M)CAPARD'!FR362)","v":3.248441213506692},{"$f":"IF('[1]MONE(M)CAPARD'!FV362=\"\",\"\",'[1]MONE(M)CAPARD'!FV362)","v":2.5513398015042377},{"$f":"IF('[1]MONE(M)CARD'!FV362=\"\",\"\",'[1]MONE(M)CARD'!FV362)","v":1776.2769294017533},{"$f":"IF('[1]MONE(M)CARD'!GD362=\"\",\"\",'[1]MONE(M)CARD'!GD362)","v":127.77999492205164},{"$f":"IF('[1]MONE(M)CARD'!GE362=\"\",\"\",'[1]MONE(M)CARD'!GE362)","v":12032.044950342144},0.27147068337118885,{"$f":"IF('[9]II.2.Balance OSD-Activos'!J220=\"\",\"\",'[9]II.2.Balance OSD-Activos'!J220)","v":202.99913645742203},{"$f":"IF('[9]II.2.Balance OSD-Activos'!N220=\"\",\"\",'[9]II.2.Balance OSD-Activos'!N220)","v":1487.4231907463213},{"$f":"IF('[9]II.2.Balance OSD-Activos'!R220=\"\",\"\",'[9]II.2.Balance OSD-Activos'!R220)","v":55181.493439824408},{"$f":"IF('[9]II.2.Balance OSD-Activos'!S220=\"\",\"\",'[9]II.2.Balance OSD-Activos'!S220)","v":59454.161551398225},55384.492576281831,116326.07731842637,-23.621310170692489,3.5553393757910445,22.118738409079363,3.6910662321359755,1.2278207787027151,2.5495412843207665,7.0463821829980233E-2,{"$f":"IF('[1]MONE(M)CAPARD'!GS362=\"\",\"\",'[1]MONE(M)CAPARD'!GS362)","v":24847.919049623852},{"$f":"IF('[1]MONE(M)CARD'!HA362=\"\",\"\",'[1]MONE(M)CAPARD'!HA362)","v":14226.137655722145},{"$f":"IF('[1]MONE(M)CAPARD'!HB362=\"\",\"\",'[1]MONE(M)CAPARD'!HB362)","v":10621.781393901707},"n.d.",{"$f":"IF('[10]II.2.Balance OSD-Activos'!J220=\"\",\"\",'[10]II.2.Balance OSD-Activos'!J220)","v":2371.376354257422},{"$f":"IF('[10]II.2.Balance OSD-Activos'!N220=\"\",\"\",'[10]II.2.Balance OSD-Activos'!N220)","v":1925.5826632263211},{"$f":"IF('[10]II.2.Balance OSD-Activos'!R220=\"\",\"\",'[10]II.2.Balance OSD-Activos'!R220)","v":78807.106401254394},{"$f":"IF('[10]II.2.Balance OSD-Activos'!S220=\"\",\"\",'[10]II.2.Balance OSD-Activos'!S220)","v":84677.839380788209},81178.48275551181,167781.90479952635,-5.571632398501225,2.0121073964755931,5.9956392408497816,2.2592334751443399,2.5837305406665845,2.344068668757604,-0.21744470546545269,{"$f":"IF('[1]MONE(M)CAPARD'!AS362=\"\",\"\",'[1]MONE(M)CAPARD'!AS362)","v":4.75},{"$f":"IF('[1]MONE(M)CAPARD'!AT362=\"\",\"\",'[1]MONE(M)CAPARD'!AT362)","v":"n.a."},{"$f":"IF('[1]MONE(M)CAPARD'!AU362=\"\",\"\",'[1]MONE(M)CAPARD'!AU362)","v":2.75},{"$f":"IF('[1]MONE(M)CAPARD'!AV362=\"\",\"\",'[1]MONE(M)CAPARD'!AV362)","v":5.75},{"$f":"IF('[1]MONE(M)CAPARD'!AW362=\"\",\"\",'[1]MONE(M)CAPARD'!AW362)","v":"n.a."},{"$f":"IF('[1]MONE(M)CAPARD'!AX362=\"\",\"\",'[1]MONE(M)CAPARD'!AX362)","v":5.5},{"$f":"IF('[1]MONE(M)CAPARD'!AY362=\"\",\"\",'[1]MONE(M)CAPARD'!AY362)","v":"n.a."},{"$f":"IF('[1]FISCAL(M)'!$K362=\"\",\"\",'[1]FISCAL(M)'!$K362)","v":-2093.6414240708082},{"$f":"IF('[1]FISCAL(M)'!$L362=\"\",\"\",'[1]FISCAL(M)'!$L362)","v":"n.d."},{"$f":"IF('[1]FISCAL(M)'!$AY362=\"\",\"\",'[1]FISCAL(M)'!$AY362)","v":141934.36253904516},{"$f":"IF('[1]FISCAL(M)'!$BI362=\"\",\"\",'[1]FISCAL(M)'!$BI362)","v":77036.579430517391},{"$f":"IF('[1]FISCAL(M)'!$BS362=\"\",\"\",'[1]FISCAL(M)'!$BS362)","v":64897.783108527787},{"$f":"IF('[1]FISCAL(M)'!$AZ362=\"\",\"\",'[1]FISCAL(M)'!$AZ362)","v":169125.16433904518},{"$f":"IF('[1]FISCAL(M)'!$BJ362=\"\",\"\",'[1]FISCAL(M)'!$BJ362)","v":83773.7634305174},{"$f":"IF('[1]FISCAL(M)'!$BT362=\"\",\"\",'[1]FISCAL(M)'!$BT362)","v":85351.400908527794},{"$f":"IF('[2]MONE(M)'!$AO362=\"\",\"\",'[2]MONE(M)'!$AO362)","v":22187965.965359066},{"$f":"IF('[3]MONE(M)'!$AO362=\"\",\"\",'[3]MONE(M)'!$AO362)","v":13500.602585479999},{"$f":"IF('[4]MONE(M)'!$AO362=\"\",\"\",'[4]MONE(M)'!$AO362)","v":208256.80610456504},{"$f":"+'[5]MONE(M)'!$AO362","v":365566.54732490249},{"$f":"IF('[6]MONE(M)'!$AO362=\"\",\"\",'[6]MONE(M)'!$AO362)","v":131473.27400348475},{"$f":"IF('[7]MONE(M)'!$AO362=\"\",\"\",'[7]MONE(M)'!$AO362)","v":1167583.84940597},{"$f":"IF('[8]MONE(M)'!$AO362=\"\",\"\",'[8]MONE(M)'!$AO362)","v":52403.962509809993},3.5634344941058771,6.5405300567834335,4.6913092802999712,12.4907209814894,-21.287370857682063,10.507622752360945,2.1178469732963334,{"$f":"'[1]FISCAL(M)'!$K362","v":-2093.6414240708082},{"$f":"+'[1]REAL(A)'!$AO$39","v":295060.91053595644},-0.70956244941692292,{"$f":"IF('[1]FISCAL(M)'!$L362=\"\",\"\",'[1]FISCAL(M)'!$L362)","v":"n.d."},{"$f":"+'[1]REAL(A)'!$AP$39","v":362045.31206438324},"n.d.",158592.08930580362,{"$f":"'[1]Gráfico REM'!BG356","v":29026.706416055502},{"$f":"'[1]Gráfico REM'!BH356","v":120498.61352136303},{"$f":"'[1]Gráfico REM'!BI356","v":9066.7693683850812},3.1515965537473933,6.565752414071957,2.4672125819882318,1.747258090707815,235567.23550488363,{"$f":"'[1]Gráfico REM'!BK356","v":31618.139966445502},{"$f":"'[1]Gráfico REM'!BL356","v":172902.57603117303},{"$f":"'[1]Gráfico REM'!BM356","v":31046.519507265082},3.0268580031484582,7.2808420566529808,2.3610733364856307,2.6000823524406025]
[2019,"junio ","2019-junio ",{"$f":"IF('[1]REAL IPC(M)'!$AL363=\"\",\"\",+'[1]REAL IPC(M)'!$AL363)","v":2.8583034529248819},{"$f":"IF('[1]REAL IPC(M)'!$BE363=\"\",\"\",+'[1]REAL IPC(M)'!$BE363)","v":3.0150316777423303},{"$f":"IF('[1]REAL IPC(M)'!$AM363=\"\",\"\",+'[1]REAL IPC(M)'!$AM363)","v":2.3688120162466353},{"$f":"IF('[1]REAL IPC(M)'!$BI363=\"\",\"\",+'[1]REAL IPC(M)'!$BI363)","v":2.5271954305248645},{"$f":"IF('[1]REAL IMAE(M)'!BJ363=\"\",\"\",'[1]REAL IMAE(M)'!BJ363)","v":2.7801316135168452},{"$f":"IF('[1]REAL IMAE(M)'!BK363=\"\",\"\",'[1]REAL IMAE(M)'!BK363)","v":1.7393357093346662},{"$f":"IF('[1]REAL IMAE(M)'!BN363=\"\",\"\",'[1]REAL IMAE(M)'!BN363)","v":2.9971846274486236},{"$f":"IF('[1]REAL IMAE(M)'!BO363=\"\",\"\",'[1]REAL IMAE(M)'!BO363)","v":1.2092704482850714},{"$f":"IF('[1]EXT RIN(M)'!$K363=\"\",\"\",'[1]EXT RIN(M)'!$K363)","v":41583.267500000002},null,{"$f":"IF('[1]EXT RIN(M)'!$L363=\"\",\"\",'[1]EXT RIN(M)'!$L363)","v":44507.043855110001},null,{"$f":"IF('[1]MONE(M)CARD'!EG363=\"\",\"\",'[1]MONE(M)CARD'!EG363)","v":38019.202305879619},{"$f":"IF('[1]MONE(M)CARD'!EK363=\"\",\"\",'[1]MONE(M)CARD'!EK363)","v":59382.424475614593},{"$f":"IF('[1]MONE(M)CARD'!EP363=\"\",\"\",'[1]MONE(M)CARD'!EP363)","v":31175.364447715023},{"$f":"IF('[1]MONE(M)CARD'!ES363=\"\",\"\",'[1]MONE(M)CARD'!ES363)","v":4.7285833248159381},{"$f":"IF('[1]MONE(M)CARD'!EV363=\"\",\"\",'[1]MONE(M)CARD'!EV363)","v":3.9615955643230727},{"$f":"IF('[1]MONE(M)CARD'!EZ363=\"\",\"\",'[1]MONE(M)CARD'!EZ363)","v":2.9335816496126599},{"$f":"IF('[1]MONE(M)CAPARD'!FC363=\"\",\"\",'[1]MONE(M)CAPARD'!FC363)","v":45883.84839157961},{"$f":"IF('[1]MONE(M)CAPARD'!FG363=\"\",\"\",'[1]MONE(M)CAPARD'!FG363)","v":92728.0554392146},{"$f":"IF('[1]MONE(M)CAPARD'!FL363=\"\",\"\",'[1]MONE(M)CAPARD'!FL363)","v":31175.364447715023},{"$f":"IF('[1]MONE(M)CAPARD'!FO363=\"\",\"\",'[1]MONE(M)CAPARD'!FO363)","v":3.2707193862310024},{"$f":"IF('[1]MONE(M)CAPARD'!FR363=\"\",\"\",'[1]MONE(M)CAPARD'!FR363)","v":3.4755857268525592},{"$f":"IF('[1]MONE(M)CAPARD'!FV363=\"\",\"\",'[1]MONE(M)CAPARD'!FV363)","v":2.7900410259806385},{"$f":"IF('[1]MONE(M)CARD'!FV363=\"\",\"\",'[1]MONE(M)CARD'!FV363)","v":1800.5352849249848},{"$f":"IF('[1]MONE(M)CARD'!GD363=\"\",\"\",'[1]MONE(M)CARD'!GD363)","v":163.3773292928914},{"$f":"IF('[1]MONE(M)CARD'!GE363=\"\",\"\",'[1]MONE(M)CARD'!GE363)","v":12774.501954952533},11.197722416606325,{"$f":"IF('[9]II.2.Balance OSD-Activos'!J221=\"\",\"\",'[9]II.2.Balance OSD-Activos'!J221)","v":212.3643618096668},{"$f":"IF('[9]II.2.Balance OSD-Activos'!N221=\"\",\"\",'[9]II.2.Balance OSD-Activos'!N221)","v":1478.6421769088909},{"$f":"IF('[9]II.2.Balance OSD-Activos'!R221=\"\",\"\",'[9]II.2.Balance OSD-Activos'!R221)","v":55234.58665519498},{"$f":"IF('[9]II.2.Balance OSD-Activos'!S221=\"\",\"\",'[9]II.2.Balance OSD-Activos'!S221)","v":60171.54062238519},55446.951017004649,117097.13381629874,-20.800660447559729,1.6171682425591749,-7.0856408241646403,1.7278771325295761,3.4769209167012427,2.4421003389095031,-0.10744094541126348,{"$f":"IF('[1]MONE(M)CAPARD'!GS363=\"\",\"\",'[1]MONE(M)CAPARD'!GS363)","v":24483.159254289105},{"$f":"IF('[1]MONE(M)CARD'!HA363=\"\",\"\",'[1]MONE(M)CAPARD'!HA363)","v":14831.626103812532},{"$f":"IF('[1]MONE(M)CAPARD'!HB363=\"\",\"\",'[1]MONE(M)CAPARD'!HB363)","v":9651.5331504765727},"n.d.",{"$f":"IF('[10]II.2.Balance OSD-Activos'!J221=\"\",\"\",'[10]II.2.Balance OSD-Activos'!J221)","v":2397.1933207696666},{"$f":"IF('[10]II.2.Balance OSD-Activos'!N221=\"\",\"\",'[10]II.2.Balance OSD-Activos'!N221)","v":1870.7909110388907},{"$f":"IF('[10]II.2.Balance OSD-Activos'!R221=\"\",\"\",'[10]II.2.Balance OSD-Activos'!R221)","v":78970.887963704983},{"$f":"IF('[10]II.2.Balance OSD-Activos'!S221=\"\",\"\",'[10]II.2.Balance OSD-Activos'!S221)","v":85511.841703925194},81368.081284474654,168750.71389943874,-5.6584223461088046,0.88912291131384436,-12.01781022347782,1.1021190204919096,4.1724531178022772,2.3574453780615068,1.3376709303902778E-2,{"$f":"IF('[1]MONE(M)CAPARD'!AS363=\"\",\"\",'[1]MONE(M)CAPARD'!AS363)","v":4.5},{"$f":"IF('[1]MONE(M)CAPARD'!AT363=\"\",\"\",'[1]MONE(M)CAPARD'!AT363)","v":"n.a."},{"$f":"IF('[1]MONE(M)CAPARD'!AU363=\"\",\"\",'[1]MONE(M)CAPARD'!AU363)","v":2.75},{"$f":"IF('[1]MONE(M)CAPARD'!AV363=\"\",\"\",'[1]MONE(M)CAPARD'!AV363)","v":5.75},{"$f":"IF('[1]MONE(M)CAPARD'!AW363=\"\",\"\",'[1]MONE(M)CAPARD'!AW363)","v":"n.a."},{"$f":"IF('[1]MONE(M)CAPARD'!AX363=\"\",\"\",'[1]MONE(M)CAPARD'!AX363)","v":5.5},{"$f":"IF('[1]MONE(M)CAPARD'!AY363=\"\",\"\",'[1]MONE(M)CAPARD'!AY363)","v":"n.a."},{"$f":"IF('[1]FISCAL(M)'!$K363=\"\",\"\",'[1]FISCAL(M)'!$K363)","v":-2778.2854002512131},{"$f":"IF('[1]FISCAL(M)'!$L363=\"\",\"\",'[1]FISCAL(M)'!$L363)","v":-5360.4854002512129},{"$f":"IF('[1]FISCAL(M)'!$AY363=\"\",\"\",'[1]FISCAL(M)'!$AY363)","v":145941.32482932569},{"$f":"IF('[1]FISCAL(M)'!$BI363=\"\",\"\",'[1]FISCAL(M)'!$BI363)","v":78719.11657864161},{"$f":"IF('[1]FISCAL(M)'!$BS363=\"\",\"\",'[1]FISCAL(M)'!$BS363)","v":67222.208250684082},{"$f":"IF('[1]FISCAL(M)'!$AZ363=\"\",\"\",'[1]FISCAL(M)'!$AZ363)","v":172553.75482932568},{"$f":"IF('[1]FISCAL(M)'!$BJ363=\"\",\"\",'[1]FISCAL(M)'!$BJ363)","v":84725.286578641608},{"$f":"IF('[1]FISCAL(M)'!$BT363=\"\",\"\",'[1]FISCAL(M)'!$BT363)","v":87828.468250684076},{"$f":"IF('[2]MONE(M)'!$AO363=\"\",\"\",'[2]MONE(M)'!$AO363)","v":22127179.766031887},{"$f":"IF('[3]MONE(M)'!$AO363=\"\",\"\",'[3]MONE(M)'!$AO363)","v":13570.643642850002},{"$f":"IF('[4]MONE(M)'!$AO363=\"\",\"\",'[4]MONE(M)'!$AO363)","v":209043.58933239366},{"$f":"+'[5]MONE(M)'!$AO363","v":367000.30733914999},{"$f":"IF('[6]MONE(M)'!$AO363=\"\",\"\",'[6]MONE(M)'!$AO363)","v":130421.74285146568},{"$f":"IF('[7]MONE(M)'!$AO363=\"\",\"\",'[7]MONE(M)'!$AO363)","v":1184908.3448854799},{"$f":"IF('[8]MONE(M)'!$AO363=\"\",\"\",'[8]MONE(M)'!$AO363)","v":52638.698963910007},3.011213400324686,6.5347455390516007,4.8964310664277644,12.225813768535353,-20.463949156029415,11.566818064480167,2.3063344060075819,{"$f":"'[1]FISCAL(M)'!$K363","v":-2778.2854002512131},{"$f":"+'[1]REAL(A)'!$AO$39","v":295060.91053595644},-0.9415972434995411,{"$f":"IF('[1]FISCAL(M)'!$L363=\"\",\"\",'[1]FISCAL(M)'!$L363)","v":-5360.4854002512129},{"$f":"+'[1]REAL(A)'!$AP$39","v":362045.31206438324},-1.4806117415761337,{"$f":"+IF(OR(CT356=\"\",+CU356=\"\",+CV356=\"\"),\"\",(CT356+CU356+CV356))","v":159655.15919775431},{"$f":"'[1]Gráfico REM'!BG357","v":29238.62830803054},{"$f":"'[1]Gráfico REM'!BH357","v":121340.84615222373},{"$f":"'[1]Gráfico REM'!BI357","v":9075.6847375000361},{"$f":"IFERROR(+((CS356/CS344)-1)*100,\"\")","v":3.1296781446681576},{"$f":"IFERROR(+((CT356/CT344)-1)*100,\"\")","v":5.8002056394457435},{"$f":"IFERROR(+((CU356/CU344)-1)*100,\"\")","v":2.9925554918573294},{"$f":"IFERROR(+((CV356/CV344)-1)*100,\"\")","v":-3.0296661102408806},236149.31990154434,{"$f":"'[1]Gráfico REM'!BK357","v":31477.90857794054},{"$f":"'[1]Gráfico REM'!BL357","v":173979.54511613376},{"$f":"'[1]Gráfico REM'!BM357","v":30691.866207470041},2.7486707610878902,6.1914581839523919,2.7839653121479735,-0.74485203890980456]
[2019,"julio","2019-julio",{"$f":"IF('[1]REAL IPC(M)'!$AL364=\"\",\"\",+'[1]REAL IPC(M)'!$AL364)","v":2.9359888601998785},{"$f":"IF('[1]REAL IPC(M)'!$BE364=\"\",\"\",+'[1]REAL IPC(M)'!$BE364)","v":3.0433057588907131},{"$f":"IF('[1]REAL IPC(M)'!$AM364=\"\",\"\",+'[1]REAL IPC(M)'!$AM364)","v":2.4748725128602045},{"$f":"IF('[1]REAL IPC(M)'!$BI364=\"\",\"\",+'[1]REAL IPC(M)'!$BI364)","v":2.5466750193737342},{"$f":"IF('[1]REAL IMAE(M)'!BJ364=\"\",\"\",'[1]REAL IMAE(M)'!BJ364)","v":2.8464164562277405},{"$f":"IF('[1]REAL IMAE(M)'!BK364=\"\",\"\",'[1]REAL IMAE(M)'!BK364)","v":1.6690130010682536},{"$f":"IF('[1]REAL IMAE(M)'!BN364=\"\",\"\",'[1]REAL IMAE(M)'!BN364)","v":3.1967858678391137},{"$f":"IF('[1]REAL IMAE(M)'!BO364=\"\",\"\",'[1]REAL IMAE(M)'!BO364)","v":1.1143768643055996},{"$f":"IF('[1]EXT RIN(M)'!$K364=\"\",\"\",'[1]EXT RIN(M)'!$K364)","v":41214.443083205813},null,{"$f":"IF('[1]EXT RIN(M)'!$L364=\"\",\"\",'[1]EXT RIN(M)'!$L364)","v":45114.342480805812},null,{"$f":"IF('[1]MONE(M)CARD'!EG364=\"\",\"\",'[1]MONE(M)CARD'!EG364)","v":38747.27452373362},{"$f":"IF('[1]MONE(M)CARD'!EK364=\"\",\"\",'[1]MONE(M)CARD'!EK364)","v":59745.497932169194},{"$f":"IF('[1]MONE(M)CARD'!EP364=\"\",\"\",'[1]MONE(M)CARD'!EP364)","v":31434.40461614175},{"$f":"IF('[1]MONE(M)CARD'!ES364=\"\",\"\",'[1]MONE(M)CARD'!ES364)","v":6.7359418508891045},{"$f":"IF('[1]MONE(M)CARD'!EV364=\"\",\"\",'[1]MONE(M)CARD'!EV364)","v":5.2850707554551235},{"$f":"IF('[1]MONE(M)CARD'!EZ364=\"\",\"\",'[1]MONE(M)CARD'!EZ364)","v":4.1769146136745761},{"$f":"IF('[1]MONE(M)CAPARD'!FC364=\"\",\"\",'[1]MONE(M)CAPARD'!FC364)","v":46548.818400403623},{"$f":"IF('[1]MONE(M)CAPARD'!FG364=\"\",\"\",'[1]MONE(M)CAPARD'!FG364)","v":93103.156911789178},{"$f":"IF('[1]MONE(M)CAPARD'!FL364=\"\",\"\",'[1]MONE(M)CAPARD'!FL364)","v":31434.404616141779},{"$f":"IF('[1]MONE(M)CAPARD'!FO364=\"\",\"\",'[1]MONE(M)CAPARD'!FO364)","v":5.1131391158041106},{"$f":"IF('[1]MONE(M)CAPARD'!FR364=\"\",\"\",'[1]MONE(M)CAPARD'!FR364)","v":4.4707433708135236},{"$f":"IF('[1]MONE(M)CAPARD'!FV364=\"\",\"\",'[1]MONE(M)CAPARD'!FV364)","v":3.7863123758989925},{"$f":"IF('[1]MONE(M)CARD'!FV364=\"\",\"\",'[1]MONE(M)CARD'!FV364)","v":2144.7356432321249},{"$f":"IF('[1]MONE(M)CARD'!GD364=\"\",\"\",'[1]MONE(M)CARD'!GD364)","v":115.13013762660411},{"$f":"IF('[1]MONE(M)CARD'!GE364=\"\",\"\",'[1]MONE(M)CARD'!GE364)","v":13273.972541953441},{"$f":"IF(AD357=\"\",\"\",((AD357/AD344)-1)*100)","v":16.29694760248266},{"$f":"IF('[9]II.2.Balance OSD-Activos'!J222=\"\",\"\",'[9]II.2.Balance OSD-Activos'!J222)","v":222.46508322832662},{"$f":"IF('[9]II.2.Balance OSD-Activos'!N222=\"\",\"\",'[9]II.2.Balance OSD-Activos'!N222)","v":1310.2545967343053},{"$f":"IF('[9]II.2.Balance OSD-Activos'!R222=\"\",\"\",'[9]II.2.Balance OSD-Activos'!R222)","v":54344.204917298208},{"$f":"IF('[9]II.2.Balance OSD-Activos'!S222=\"\",\"\",'[9]II.2.Balance OSD-Activos'!S222)","v":61367.457379127904},{"$f":"IFERROR(+AF357+AH357,\"\")","v":54566.670000526537},117244.38197638874,-18.033505483233192,{"$f":"IF(OR(AJ357=\"\",AJ345=\"\"),\"\",((AJ357/AJ345)-1)*100)","v":-0.13668301128050286},{"$f":"IF(OR(AG357=\"\",AG345=\"\"),\"\",((AG357/AG345)-1)*100)","v":-16.687684512977675},{"$f":"IF(OR(AH357=\"\",AH345=\"\"),\"\",((AH357/AH345)-1)*100)","v":-4.7343715330039338E-2},{"$f":"IF(OR(AI357=\"\",AI345=\"\"),\"\",((AI357/AI345)-1)*100)","v":4.9662498817739431},{"$f":"IF(OR(AK357=\"\",AK345=\"\"),\"\",((AK357/AK345)-1)*100)","v":2.237860556973037},{"$f":"IF(OR(AQ357=\"\",AQ356=\"\"),\"\",AQ357-AQ356)","v":-0.20423978193646608},{"$f":"IF('[1]MONE(M)CAPARD'!GS364=\"\",\"\",'[1]MONE(M)CAPARD'!GS364)","v":24935.813509234995},{"$f":"IF('[1]MONE(M)CARD'!HA364=\"\",\"\",'[1]MONE(M)CAPARD'!HA364)","v":15752.032506313442},{"$f":"IF('[1]MONE(M)CAPARD'!HB364=\"\",\"\",'[1]MONE(M)CAPARD'!HB364)","v":9183.7810029215525},"n.d.",{"$f":"IF('[10]II.2.Balance OSD-Activos'!J222=\"\",\"\",'[10]II.2.Balance OSD-Activos'!J222)","v":2389.4505602383269},{"$f":"IF('[10]II.2.Balance OSD-Activos'!N222=\"\",\"\",'[10]II.2.Balance OSD-Activos'!N222)","v":1683.8659576443051},{"$f":"IF('[10]II.2.Balance OSD-Activos'!R222=\"\",\"\",'[10]II.2.Balance OSD-Activos'!R222)","v":77978.766021958203},{"$f":"IF('[10]II.2.Balance OSD-Activos'!S222=\"\",\"\",'[10]II.2.Balance OSD-Activos'!S222)","v":86820.788787687896},{"$f":"IFERROR(+AW357+AY357,\"\")","v":80368.216582196532},{"$f":"IF(OR(AW357=\"\",AX357=\"\",AY357=\"\",AZ357=\"\"),\"\",SUM(AW357:AZ357))","v":168872.87132752873},{"$f":"IF(OR(AW357=\"\",AW345=\"\"),\"\",((AW357/AW345)-1)*100)","v":-4.6207612523016532},{"$f":"IF(OR(BA357=\"\",BA345=\"\"),\"\",((BA357/BA345)-1)*100)","v":-0.5927202313408042},{"$f":"IF(OR(AX357=\"\",AX345=\"\"),\"\",((AX357/AX345)-1)*100)","v":-19.232147024796465},{"$f":"IF(OR(AY357=\"\",AY345=\"\"),\"\",((AY357/AY345)-1)*100)","v":-0.46391239366517789},{"$f":"IF(OR(AZ357=\"\",AZ345=\"\"),\"\",((AZ357/AZ345)-1)*100)","v":5.2391109580823825},{"$f":"IF(OR(BB357=\"\",BB345=\"\"),\"\",((BB357/BB345)-1)*100)","v":2.0806507982531031},{"$f":"IF(OR(BH357=\"\",BH356=\"\"),\"\",BH357-BH356)","v":-0.27679457980840372},{"$f":"IF('[1]MONE(M)CAPARD'!AS364=\"\",\"\",'[1]MONE(M)CAPARD'!AS364)","v":4},{"$f":"IF('[1]MONE(M)CAPARD'!AT364=\"\",\"\",'[1]MONE(M)CAPARD'!AT364)","v":"n.a."},{"$f":"IF('[1]MONE(M)CAPARD'!AU364=\"\",\"\",'[1]MONE(M)CAPARD'!AU364)","v":2.75},{"$f":"IF('[1]MONE(M)CAPARD'!AV364=\"\",\"\",'[1]MONE(M)CAPARD'!AV364)","v":5.75},{"$f":"IF('[1]MONE(M)CAPARD'!AW364=\"\",\"\",'[1]MONE(M)CAPARD'!AW364)","v":"n.a."},{"$f":"IF('[1]MONE(M)CAPARD'!AX364=\"\",\"\",'[1]MONE(M)CAPARD'!AX364)","v":5},{"$f":"IF('[1]MONE(M)CAPARD'!AY364=\"\",\"\",'[1]MONE(M)CAPARD'!AY364)","v":"n.a."},{"$f":"IF('[1]FISCAL(M)'!$K364=\"\",\"\",'[1]FISCAL(M)'!$K364)","v":-3689.3400905158974},{"$f":"IF('[1]FISCAL(M)'!$L364=\"\",\"\",'[1]FISCAL(M)'!$L364)","v":"n.d."},{"$f":"IF('[1]FISCAL(M)'!$AY364=\"\",\"\",'[1]FISCAL(M)'!$AY364)","v":146328.69289757119},{"$f":"IF('[1]FISCAL(M)'!$BI364=\"\",\"\",'[1]FISCAL(M)'!$BI364)","v":79056.482148199168},{"$f":"IF('[1]FISCAL(M)'!$BS364=\"\",\"\",'[1]FISCAL(M)'!$BS364)","v":67272.210749372054},{"$f":"IF('[1]FISCAL(M)'!$AZ364=\"\",\"\",'[1]FISCAL(M)'!$AZ364)","v":174913.81289757125},{"$f":"IF('[1]FISCAL(M)'!$BJ364=\"\",\"\",'[1]FISCAL(M)'!$BJ364)","v":85086.752148199157},{"$f":"IF('[1]FISCAL(M)'!$BT364=\"\",\"\",'[1]FISCAL(M)'!$BT364)","v":89827.060749372045},{"$f":"IF('[2]MONE(M)'!$AO364=\"\",\"\",'[2]MONE(M)'!$AO364)","v":21853660.006397165},{"$f":"IF('[3]MONE(M)'!$AO364=\"\",\"\",'[3]MONE(M)'!$AO364)","v":13623.162004269998},{"$f":"IF('[4]MONE(M)'!$AO364=\"\",\"\",'[4]MONE(M)'!$AO364)","v":208900.21952130328},{"$f":"+'[5]MONE(M)'!$AO364","v":368431.37437558349},{"$f":"IF('[6]MONE(M)'!$AO364=\"\",\"\",'[6]MONE(M)'!$AO364)","v":126893.60545700815},{"$f":"IF('[7]MONE(M)'!$AO364=\"\",\"\",'[7]MONE(M)'!$AO364)","v":1193446.5880739898},{"$f":"IF('[8]MONE(M)'!$AO364=\"\",\"\",'[8]MONE(M)'!$AO364)","v":52668.000938389996},{"$f":"IF(BY357=\"\",\"\",((BY357/BY345)-1)*100)","v":1.4301269089084245},{"$f":"IF(BZ357=\"\",\"\",((BZ357/BZ345)-1)*100)","v":6.0544514801203375},{"$f":"IF(CA357=\"\",\"\",((CA357/CA345)-1)*100)","v":4.996561155758239},{"$f":"IF(CB357=\"\",\"\",((CB357/CB345)-1)*100)","v":11.587958863167858},{"$f":"IF(CC357=\"\",\"\",((CC357/CC345)-1)*100)","v":-21.173511787386467},{"$f":"IF(CD357=\"\",\"\",((CD357/CD345)-1)*100)","v":11.429621385980848},{"$f":"IF(CE357=\"\",\"\",((CE357/CE345)-1)*100)","v":1.9793777796590195},{"$f":"'[1]FISCAL(M)'!$K364","v":-3689.3400905158974},{"$f":"+'[1]REAL(A)'!$AO$39","v":295060.91053595644},-1.2503655885201745,{"$f":"IF('[1]FISCAL(M)'!$L364=\"\",\"\",'[1]FISCAL(M)'!$L364)","v":"n.d."},{"$f":"+'[1]REAL(A)'!$AP$39","v":362045.31206438324},"n.d.",{"$f":"+IF(OR(CT357=\"\",+CU357=\"\",+CV357=\"\"),\"\",(CT357+CU357+CV357))","v":160518.89000226997},{"$f":"'[1]Gráfico REM'!BG358","v":29940.065855561756},{"$f":"'[1]Gráfico REM'!BH358","v":121637.34639481702},{"$f":"'[1]Gráfico REM'!BI358","v":8941.4777518911942},{"$f":"IFERROR(+((CS357/CS345)-1)*100,\"\")","v":3.3100203649939708},{"$f":"IFERROR(+((CT357/CT345)-1)*100,\"\")","v":7.7869332078494446},{"$f":"IFERROR(+((CU357/CU345)-1)*100,\"\")","v":2.9839505776474651},{"$f":"IFERROR(+((CV357/CV345)-1)*100,\"\")","v":-5.739449941633012},{"$f":"+IF(OR(DB357=\"\",+DC357=\"\",+DD357=\"\"),\"\",(DB357+DC357+DD357))","v":236957.82858288},{"$f":"'[1]Gráfico REM'!BK358","v":32215.054316571757},{"$f":"'[1]Gráfico REM'!BL358","v":174305.34733320703},{"$f":"'[1]Gráfico REM'!BM358","v":30437.426933101193},{"$f":"IFERROR(+((DA357/DA345)-1)*100,\"\")","v":2.7897249405794966},{"$f":"IFERROR(+((DB357/DB345)-1)*100,\"\")","v":8.065405174451401},{"$f":"IFERROR(+((DC357/DC345)-1)*100,\"\")","v":2.6783290285344208},{"$f":"IFERROR(+((DD357/DD345)-1)*100,\"\")","v":-1.6796828354311732}]
[2019,"agosto","2019-agosto",{"$f":"IF('[1]REAL IPC(M)'!$AL365=\"\",\"\",+'[1]REAL IPC(M)'!$AL365)","v":2.5667299295674351},{"$f":"IF('[1]REAL IPC(M)'!$BE365=\"\",\"\",+'[1]REAL IPC(M)'!$BE365)","v":3.0751684548723901},{"$f":"IF('[1]REAL IPC(M)'!$AM365=\"\",\"\",+'[1]REAL IPC(M)'!$AM365)","v":2.1098789358568348},{"$f":"IF('[1]REAL IPC(M)'!$BI365=\"\",\"\",+'[1]REAL IPC(M)'!$BI365)","v":2.5701683476358372},{"$f":"IF('[1]REAL IMAE(M)'!BJ365=\"\",\"\",'[1]REAL IMAE(M)'!BJ365)","v":3.0072582680621851},{"$f":"IF('[1]REAL IMAE(M)'!BK365=\"\",\"\",'[1]REAL IMAE(M)'!BK365)","v":1.606738297552579},{"$f":"IF('[1]REAL IMAE(M)'!BN365=\"\",\"\",'[1]REAL IMAE(M)'!BN365)","v":3.3207854793763536},{"$f":"IF('[1]REAL IMAE(M)'!BO365=\"\",\"\",'[1]REAL IMAE(M)'!BO365)","v":1.0281700607156941},{"$f":"IF('[1]EXT RIN(M)'!$K365=\"\",\"\",'[1]EXT RIN(M)'!$K365)","v":41942.503514983837},null,{"$f":"IF('[1]EXT RIN(M)'!$L365=\"\",\"\",'[1]EXT RIN(M)'!$L365)","v":45874.61088735384},null,{"$f":"IF('[1]MONE(M)CARD'!EG365=\"\",\"\",'[1]MONE(M)CARD'!EG365)","v":38741.974252587766},{"$f":"IF('[1]MONE(M)CARD'!EK365=\"\",\"\",'[1]MONE(M)CARD'!EK365)","v":60080.681749431082},{"$f":"IF('[1]MONE(M)CARD'!EP365=\"\",\"\",'[1]MONE(M)CARD'!EP365)","v":31750.953733146758},{"$f":"IF('[1]MONE(M)CARD'!ES365=\"\",\"\",'[1]MONE(M)CARD'!ES365)","v":8.1386979526218539},{"$f":"IF('[1]MONE(M)CARD'!EV365=\"\",\"\",'[1]MONE(M)CARD'!EV365)","v":6.308336742756171},{"$f":"IF('[1]MONE(M)CARD'!EZ365=\"\",\"\",'[1]MONE(M)CARD'!EZ365)","v":5.1692196743950758},{"$f":"IF('[1]MONE(M)CAPARD'!FC365=\"\",\"\",'[1]MONE(M)CAPARD'!FC365)","v":46612.688434967771},{"$f":"IF('[1]MONE(M)CAPARD'!FG365=\"\",\"\",'[1]MONE(M)CAPARD'!FG365)","v":93674.227661641082},{"$f":"IF('[1]MONE(M)CAPARD'!FL365=\"\",\"\",'[1]MONE(M)CAPARD'!FL365)","v":31750.953733146773},{"$f":"IF('[1]MONE(M)CAPARD'!FO365=\"\",\"\",'[1]MONE(M)CAPARD'!FO365)","v":6.4658409375416115},{"$f":"IF('[1]MONE(M)CAPARD'!FR365=\"\",\"\",'[1]MONE(M)CAPARD'!FR365)","v":5.2150163312728592},{"$f":"IF('[1]MONE(M)CAPARD'!FV365=\"\",\"\",'[1]MONE(M)CAPARD'!FV365)","v":4.5627409411094222},{"$f":"IF('[1]MONE(M)CARD'!FV365=\"\",\"\",'[1]MONE(M)CARD'!FV365)","v":2104.5368644164691},{"$f":"IF('[1]MONE(M)CARD'!GD365=\"\",\"\",'[1]MONE(M)CARD'!GD365)","v":131.64088408893693},{"$f":"IF('[1]MONE(M)CARD'!GE365=\"\",\"\",'[1]MONE(M)CARD'!GE365)","v":13142.375128001046},{"$f":"IF(AD358=\"\",\"\",((AD358/AD345)-1)*100)","v":11.507841448967792},{"$f":"IF('[9]II.2.Balance OSD-Activos'!J223=\"\",\"\",'[9]II.2.Balance OSD-Activos'!J223)","v":223.05695361747439},{"$f":"IF('[9]II.2.Balance OSD-Activos'!N223=\"\",\"\",'[9]II.2.Balance OSD-Activos'!N223)","v":1180.5350789198676},{"$f":"IF('[9]II.2.Balance OSD-Activos'!R223=\"\",\"\",'[9]II.2.Balance OSD-Activos'!R223)","v":54377.17832928514},{"$f":"IF('[9]II.2.Balance OSD-Activos'!S223=\"\",\"\",'[9]II.2.Balance OSD-Activos'!S223)","v":61603.435772768185},{"$f":"IFERROR(+AF358+AH358,\"\")","v":54600.235282902613},117384.20613459067,-19.706500755084289,{"$f":"IF(OR(AJ358=\"\",AJ346=\"\"),\"\",((AJ358/AJ346)-1)*100)","v":6.9799571769246782E-2},{"$f":"IF(OR(AG358=\"\",AG346=\"\"),\"\",((AG358/AG346)-1)*100)","v":-24.874106653839302},{"$f":"IF(OR(AH358=\"\",AH346=\"\"),\"\",((AH358/AH346)-1)*100)","v":0.17100546334567479},{"$f":"IF(OR(AI358=\"\",AI346=\"\"),\"\",((AI358/AI346)-1)*100)","v":4.9653401719376822},{"$f":"IF(OR(AK358=\"\",AK346=\"\"),\"\",((AK358/AK346)-1)*100)","v":2.2306828933610356},{"$f":"IF(OR(AQ358=\"\",AQ357=\"\"),\"\",AQ358-AQ357)","v":-7.1776636120013393E-3},{"$f":"IF('[1]MONE(M)CAPARD'!GS365=\"\",\"\",'[1]MONE(M)CAPARD'!GS365)","v":24918.322534767856},{"$f":"IF('[1]MONE(M)CARD'!HA365=\"\",\"\",'[1]MONE(M)CAPARD'!HA365)","v":15595.216235151047},{"$f":"IF('[1]MONE(M)CAPARD'!HB365=\"\",\"\",'[1]MONE(M)CAPARD'!HB365)","v":9323.1062996168093},"n.d.",{"$f":"IF('[10]II.2.Balance OSD-Activos'!J223=\"\",\"\",'[10]II.2.Balance OSD-Activos'!J223)","v":2420.5808482774742},{"$f":"IF('[10]II.2.Balance OSD-Activos'!N223=\"\",\"\",'[10]II.2.Balance OSD-Activos'!N223)","v":1662.0630262898676},{"$f":"IF('[10]II.2.Balance OSD-Activos'!R223=\"\",\"\",'[10]II.2.Balance OSD-Activos'!R223)","v":78173.37380124515},{"$f":"IF('[10]II.2.Balance OSD-Activos'!S223=\"\",\"\",'[10]II.2.Balance OSD-Activos'!S223)","v":87214.163213698179},80593.954649522624,169470.18088951067,-4.0556709853737942,-0.44438285075474315,-20.025064710520159,-0.32821771819223633,5.2604804660598692,2.1597104223306518,7.905962407754874E-2,{"$f":"IF('[1]MONE(M)CAPARD'!AS365=\"\",\"\",'[1]MONE(M)CAPARD'!AS365)","v":4},{"$f":"IF('[1]MONE(M)CAPARD'!AT365=\"\",\"\",'[1]MONE(M)CAPARD'!AT365)","v":"n.a."},{"$f":"IF('[1]MONE(M)CAPARD'!AU365=\"\",\"\",'[1]MONE(M)CAPARD'!AU365)","v":2.75},{"$f":"IF('[1]MONE(M)CAPARD'!AV365=\"\",\"\",'[1]MONE(M)CAPARD'!AV365)","v":5.75},{"$f":"IF('[1]MONE(M)CAPARD'!AW365=\"\",\"\",'[1]MONE(M)CAPARD'!AW365)","v":"n.a."},{"$f":"IF('[1]MONE(M)CAPARD'!AX365=\"\",\"\",'[1]MONE(M)CAPARD'!AX365)","v":4.75},{"$f":"IF('[1]MONE(M)CAPARD'!AY365=\"\",\"\",'[1]MONE(M)CAPARD'!AY365)","v":"n.a."},{"$f":"IF('[1]FISCAL(M)'!$K365=\"\",\"\",'[1]FISCAL(M)'!$K365)","v":-4520.453407458348},{"$f":"IF('[1]FISCAL(M)'!$L365=\"\",\"\",'[1]FISCAL(M)'!$L365)","v":"n.d."},{"$f":"IF('[1]FISCAL(M)'!$AY365=\"\",\"\",'[1]FISCAL(M)'!$AY365)","v":147649.08329008892},{"$f":"IF('[1]FISCAL(M)'!$BI365=\"\",\"\",'[1]FISCAL(M)'!$BI365)","v":79595.542962881547},{"$f":"IF('[1]FISCAL(M)'!$BS365=\"\",\"\",'[1]FISCAL(M)'!$BS365)","v":68053.54032720736},{"$f":"IF('[1]FISCAL(M)'!$AZ365=\"\",\"\",'[1]FISCAL(M)'!$AZ365)","v":176205.58329008892},{"$f":"IF('[1]FISCAL(M)'!$BJ365=\"\",\"\",'[1]FISCAL(M)'!$BJ365)","v":85615.812962881551},{"$f":"IF('[1]FISCAL(M)'!$BT365=\"\",\"\",'[1]FISCAL(M)'!$BT365)","v":90589.77032720737},{"$f":"IF('[2]MONE(M)'!$AO365=\"\",\"\",'[2]MONE(M)'!$AO365)","v":21873000.107930131},{"$f":"IF('[3]MONE(M)'!$AO365=\"\",\"\",'[3]MONE(M)'!$AO365)","v":13675.564226780001},{"$f":"IF('[4]MONE(M)'!$AO365=\"\",\"\",'[4]MONE(M)'!$AO365)","v":209601.34232143371},{"$f":"+'[5]MONE(M)'!$AO365","v":370547.69868757483},{"$f":"IF('[6]MONE(M)'!$AO365=\"\",\"\",'[6]MONE(M)'!$AO365)","v":125941.03436514412},{"$f":"IF('[7]MONE(M)'!$AO365=\"\",\"\",'[7]MONE(M)'!$AO365)","v":1203791.1929849698},{"$f":"IF('[8]MONE(M)'!$AO365=\"\",\"\",'[8]MONE(M)'!$AO365)","v":53008.527013740008},{"$f":"IF(BY358=\"\",\"\",((BY358/BY346)-1)*100)","v":0.78631220841480776},{"$f":"IF(BZ358=\"\",\"\",((BZ358/BZ346)-1)*100)","v":5.6012676744183754},{"$f":"IF(CA358=\"\",\"\",((CA358/CA346)-1)*100)","v":4.9134014922360469},{"$f":"IF(CB358=\"\",\"\",((CB358/CB346)-1)*100)","v":10.360279557962105},{"$f":"IF(CC358=\"\",\"\",((CC358/CC346)-1)*100)","v":-20.784645675963354},{"$f":"IF(CD358=\"\",\"\",((CD358/CD346)-1)*100)","v":11.234941765223304},{"$f":"IF(CE358=\"\",\"\",((CE358/CE346)-1)*100)","v":1.9732684549969015},{"$f":"'[1]FISCAL(M)'!$K365","v":-4520.453407458348},{"$f":"+'[1]REAL(A)'!$AO$39","v":295060.91053595644},-1.5320407570244654,{"$f":"IF('[1]FISCAL(M)'!$L365=\"\",\"\",'[1]FISCAL(M)'!$L365)","v":"n.d."},{"$f":"+'[1]REAL(A)'!$AP$39","v":362045.31206438324},"n.d.",{"$f":"+IF(OR(CT358=\"\",+CU358=\"\",+CV358=\"\"),\"\",(CT358+CU358+CV358))","v":161039.96400240398},{"$f":"'[1]Gráfico REM'!BG359","v":30086.912577310366},{"$f":"'[1]Gráfico REM'!BH359","v":121865.62116323851},{"$f":"'[1]Gráfico REM'!BI359","v":9087.4302618551046},{"$f":"IFERROR(+((CS358/CS346)-1)*100,\"\")","v":4.1387071423171218},{"$f":"IFERROR(+((CT358/CT346)-1)*100,\"\")","v":9.340662255976028},{"$f":"IFERROR(+((CU358/CU346)-1)*100,\"\")","v":3.0856068993445174},{"$f":"IFERROR(+((CV358/CV346)-1)*100,\"\")","v":2.0449897554262186},237741.49033371397,{"$f":"'[1]Gráfico REM'!BK359","v":32362.228820960365},{"$f":"'[1]Gráfico REM'!BL359","v":174874.14817697852},{"$f":"'[1]Gráfico REM'!BM359","v":30505.113335775099},3.2760617346337728,9.4193496134632682,2.7458759355633022,0.26985264632219952]
[2019,"septiembre","2019-septiembre",{"$f":"IF('[1]REAL IPC(M)'!$AL366=\"\",\"\",+'[1]REAL IPC(M)'!$AL366)","v":2.2323411620498446},{"$f":"IF('[1]REAL IPC(M)'!$BE366=\"\",\"\",+'[1]REAL IPC(M)'!$BE366)","v":3.1108509745113588},{"$f":"IF('[1]REAL IPC(M)'!$AM366=\"\",\"\",+'[1]REAL IPC(M)'!$AM366)","v":1.8219830018589844},{"$f":"IF('[1]REAL IPC(M)'!$BI366=\"\",\"\",+'[1]REAL IPC(M)'!$BI366)","v":2.5979738237154493},{"$f":"IF('[1]REAL IMAE(M)'!BJ366=\"\",\"\",'[1]REAL IMAE(M)'!BJ366)","v":3.3069649273345547},{"$f":"IF('[1]REAL IMAE(M)'!BK366=\"\",\"\",'[1]REAL IMAE(M)'!BK366)","v":1.5536387974950605},{"$f":"IF('[1]REAL IMAE(M)'!BN366=\"\",\"\",'[1]REAL IMAE(M)'!BN366)","v":3.4624592893309769},{"$f":"IF('[1]REAL IMAE(M)'!BO366=\"\",\"\",'[1]REAL IMAE(M)'!BO366)","v":0.95212752877935625},{"$f":"IF('[1]EXT RIN(M)'!$K366=\"\",\"\",'[1]EXT RIN(M)'!$K366)","v":41139.629934993405},null,{"$f":"IF('[1]EXT RIN(M)'!$L366=\"\",\"\",'[1]EXT RIN(M)'!$L366)","v":44427.411022193402},null,{"$f":"IF('[1]MONE(M)CARD'!EG366=\"\",\"\",'[1]MONE(M)CARD'!EG366)","v":38763.663509165337},{"$f":"IF('[1]MONE(M)CARD'!EK366=\"\",\"\",'[1]MONE(M)CARD'!EK366)","v":59749.401440205787},{"$f":"IF('[1]MONE(M)CARD'!EP366=\"\",\"\",'[1]MONE(M)CARD'!EP366)","v":31712.204568488523},{"$f":"IF('[1]MONE(M)CARD'!ES366=\"\",\"\",'[1]MONE(M)CARD'!ES366)","v":9.595180780470681},{"$f":"IF('[1]MONE(M)CARD'!EV366=\"\",\"\",'[1]MONE(M)CARD'!EV366)","v":6.8650819641599359},{"$f":"IF('[1]MONE(M)CARD'!EZ366=\"\",\"\",'[1]MONE(M)CARD'!EZ366)","v":5.5726191603871822},{"$f":"IF('[1]MONE(M)CAPARD'!FC366=\"\",\"\",'[1]MONE(M)CAPARD'!FC366)","v":46379.355169595343},{"$f":"IF('[1]MONE(M)CAPARD'!FG366=\"\",\"\",'[1]MONE(M)CAPARD'!FG366)","v":93329.423912665778},{"$f":"IF('[1]MONE(M)CAPARD'!FL366=\"\",\"\",'[1]MONE(M)CAPARD'!FL366)","v":31712.204568488523},{"$f":"IF('[1]MONE(M)CAPARD'!FO366=\"\",\"\",'[1]MONE(M)CAPARD'!FO366)","v":7.3285999933824009},{"$f":"IF('[1]MONE(M)CAPARD'!FR366=\"\",\"\",'[1]MONE(M)CAPARD'!FR366)","v":5.5122246271460673},{"$f":"IF('[1]MONE(M)CAPARD'!FV366=\"\",\"\",'[1]MONE(M)CAPARD'!FV366)","v":4.7953583167765323},{"$f":"IF('[1]MONE(M)CARD'!FV366=\"\",\"\",'[1]MONE(M)CARD'!FV366)","v":2217.1139344631406},{"$f":"IF('[1]MONE(M)CARD'!GD366=\"\",\"\",'[1]MONE(M)CARD'!GD366)","v":205.07877498718025},{"$f":"IF('[1]MONE(M)CARD'!GE366=\"\",\"\",'[1]MONE(M)CARD'!GE366)","v":13679.536859895672},{"$f":"IF(AD359=\"\",\"\",((AD359/AD346)-1)*100)","v":19.030569417625887},{"$f":"IF('[9]II.2.Balance OSD-Activos'!J224=\"\",\"\",'[9]II.2.Balance OSD-Activos'!J224)","v":222.65852824090109},{"$f":"IF('[9]II.2.Balance OSD-Activos'!N224=\"\",\"\",'[9]II.2.Balance OSD-Activos'!N224)","v":1160.6295513188479},{"$f":"IF('[9]II.2.Balance OSD-Activos'!R224=\"\",\"\",'[9]II.2.Balance OSD-Activos'!R224)","v":54468.156981133201},{"$f":"IF('[9]II.2.Balance OSD-Activos'!S224=\"\",\"\",'[9]II.2.Balance OSD-Activos'!S224)","v":61030.831648474676},{"$f":"IFERROR(+AF359+AH359,\"\")","v":54690.815509374101},{"$f":"IF(OR(AF359=\"\",AG359=\"\",AH359=\"\",AI359=\"\"),\"\",SUM(AF359:AI359))","v":116882.27670916764},{"$f":"IF(OR(AF359=\"\",AF347=\"\"),\"\",((AF359/AF347)-1)*100)","v":-5.7537020911334054},{"$f":"IF(OR(AJ359=\"\",AJ347=\"\"),\"\",((AJ359/AJ347)-1)*100)","v":9.5652911983057365E-2},{"$f":"IF(OR(AG359=\"\",AG347=\"\"),\"\",((AG359/AG347)-1)*100)","v":-24.893444977512303},{"$f":"IF(OR(AH359=\"\",AH347=\"\"),\"\",((AH359/AH347)-1)*100)","v":0.12105478555501925},{"$f":"IF(OR(AI359=\"\",AI347=\"\"),\"\",((AI359/AI347)-1)*100)","v":4.1877584827975323},{"$f":"IF(OR(AK359=\"\",AK347=\"\"),\"\",((AK359/AK347)-1)*100)","v":1.8478972845603847},{"$f":"IF(OR(AQ359=\"\",AQ358=\"\"),\"\",AQ359-AQ358)","v":-0.38278560880065093},{"$f":"IF('[1]MONE(M)CAPARD'!GS366=\"\",\"\",'[1]MONE(M)CAPARD'!GS366)","v":24927.270661974675},{"$f":"IF('[1]MONE(M)CARD'!HA366=\"\",\"\",'[1]MONE(M)CAPARD'!HA366)","v":16135.488559025673},{"$f":"IF('[1]MONE(M)CAPARD'!HB366=\"\",\"\",'[1]MONE(M)CAPARD'!HB366)","v":8791.7821029490024},"n.d.",{"$f":"IF('[10]II.2.Balance OSD-Activos'!J224=\"\",\"\",'[10]II.2.Balance OSD-Activos'!J224)","v":2457.6280258109018},{"$f":"IF('[10]II.2.Balance OSD-Activos'!N224=\"\",\"\",'[10]II.2.Balance OSD-Activos'!N224)","v":1650.645199358848},{"$f":"IF('[10]II.2.Balance OSD-Activos'!R224=\"\",\"\",'[10]II.2.Balance OSD-Activos'!R224)","v":78255.302427653194},{"$f":"IF('[10]II.2.Balance OSD-Activos'!S224=\"\",\"\",'[10]II.2.Balance OSD-Activos'!S224)","v":86719.451932534692},{"$f":"IFERROR(+AW359+AY359,\"\")","v":80712.930453464098},{"$f":"IF(OR(AW359=\"\",AX359=\"\",AY359=\"\",AZ359=\"\"),\"\",SUM(AW359:AZ359))","v":169083.02758535763},{"$f":"IF(OR(AW359=\"\",AW347=\"\"),\"\",((AW359/AW347)-1)*100)","v":2.0132256969620954},{"$f":"IF(OR(BA359=\"\",BA347=\"\"),\"\",((BA359/BA347)-1)*100)","v":-0.17159884344760679},{"$f":"IF(OR(AX359=\"\",AX347=\"\"),\"\",((AX359/AX347)-1)*100)","v":-19.20440801938722},{"$f":"IF(OR(AY359=\"\",AY347=\"\"),\"\",((AY359/AY347)-1)*100)","v":-0.2386991594040655},{"$f":"IF(OR(AZ359=\"\",AZ347=\"\"),\"\",((AZ359/AZ347)-1)*100)","v":4.6177199798442592},{"$f":"IF(OR(BB359=\"\",BB347=\"\"),\"\",((BB359/BB347)-1)*100)","v":1.9884767475394582},{"$f":"IF(OR(BH359=\"\",BH358=\"\"),\"\",BH359-BH358)","v":-0.17123367479119356},{"$f":"IF('[1]MONE(M)CAPARD'!AS366=\"\",\"\",'[1]MONE(M)CAPARD'!AS366)","v":3.75},{"$f":"IF('[1]MONE(M)CAPARD'!AT366=\"\",\"\",'[1]MONE(M)CAPARD'!AT366)","v":"n.a."},{"$f":"IF('[1]MONE(M)CAPARD'!AU366=\"\",\"\",'[1]MONE(M)CAPARD'!AU366)","v":2.75},{"$f":"IF('[1]MONE(M)CAPARD'!AV366=\"\",\"\",'[1]MONE(M)CAPARD'!AV366)","v":5.75},{"$f":"IF('[1]MONE(M)CAPARD'!AW366=\"\",\"\",'[1]MONE(M)CAPARD'!AW366)","v":"n.a."},{"$f":"IF('[1]MONE(M)CAPARD'!AX366=\"\",\"\",'[1]MONE(M)CAPARD'!AX366)","v":4.5},{"$f":"IF('[1]MONE(M)CAPARD'!AY366=\"\",\"\",'[1]MONE(M)CAPARD'!AY366)","v":"n.a."},{"$f":"IF('[1]FISCAL(M)'!$K366=\"\",\"\",'[1]FISCAL(M)'!$K366)","v":-5139.1625995955765},{"$f":"IF('[1]FISCAL(M)'!$L366=\"\",\"\",'[1]FISCAL(M)'!$L366)","v":-8490.3625995955772},{"$f":"IF('[1]FISCAL(M)'!$AY366=\"\",\"\",'[1]FISCAL(M)'!$AY366)","v":146948.93987167676},{"$f":"IF('[1]FISCAL(M)'!$BI366=\"\",\"\",'[1]FISCAL(M)'!$BI366)","v":79066.3074892656},{"$f":"IF('[1]FISCAL(M)'!$BS366=\"\",\"\",'[1]FISCAL(M)'!$BS366)","v":67882.632382411161},{"$f":"IF('[1]FISCAL(M)'!$AZ366=\"\",\"\",'[1]FISCAL(M)'!$AZ366)","v":175593.32987167675},{"$f":"IF('[1]FISCAL(M)'!$BJ366=\"\",\"\",'[1]FISCAL(M)'!$BJ366)","v":85079.727489265599},{"$f":"IF('[1]FISCAL(M)'!$BT366=\"\",\"\",'[1]FISCAL(M)'!$BT366)","v":90513.602382411162},{"$f":"IF('[2]MONE(M)'!$AO366=\"\",\"\",'[2]MONE(M)'!$AO366)","v":21984031.128369011},{"$f":"IF('[3]MONE(M)'!$AO366=\"\",\"\",'[3]MONE(M)'!$AO366)","v":13704.826792600003},{"$f":"IF('[4]MONE(M)'!$AO366=\"\",\"\",'[4]MONE(M)'!$AO366)","v":211056.97696443734},{"$f":"+'[5]MONE(M)'!$AO366","v":372464.95611156011},{"$f":"IF('[6]MONE(M)'!$AO366=\"\",\"\",'[6]MONE(M)'!$AO366)","v":125196.65111664357},{"$f":"IF('[7]MONE(M)'!$AO366=\"\",\"\",'[7]MONE(M)'!$AO366)","v":1221724.5182614101},{"$f":"IF('[8]MONE(M)'!$AO366=\"\",\"\",'[8]MONE(M)'!$AO366)","v":53096.578084360001},-0.17795862485061598,{"$f":"IF(BZ359=\"\",\"\",((BZ359/BZ347)-1)*100)","v":5.1494243495237235},{"$f":"IF(CA359=\"\",\"\",((CA359/CA347)-1)*100)","v":4.4104310948471559},{"$f":"IF(CB359=\"\",\"\",((CB359/CB347)-1)*100)","v":9.8921031433875086},{"$f":"IF(CC359=\"\",\"\",((CC359/CC347)-1)*100)","v":-19.790415911164306},12.048719591495182,2.1931793457450333,{"$f":"'[1]FISCAL(M)'!$K366","v":-5139.1625995955765},{"$f":"+'[1]REAL(A)'!$AO$39","v":295060.91053595644},-1.7417293908097369,{"$f":"IF('[1]FISCAL(M)'!$L366=\"\",\"\",'[1]FISCAL(M)'!$L366)","v":-8490.3625995955772},{"$f":"+'[1]REAL(A)'!$AP$39","v":362045.31206438324},-2.345110492160086,160415.89433477086,{"$f":"'[1]Gráfico REM'!BG360","v":30308.025366839389},{"$f":"'[1]Gráfico REM'!BH360","v":121268.89293553241},{"$f":"'[1]Gráfico REM'!BI360","v":8838.9760323990558},4.2212463717643534,11.94112949491608,2.6048602619457517,2.1440851032471731,{"$f":"+IF(OR(DB359=\"\",+DC359=\"\",+DD359=\"\"),\"\",(DB359+DC359+DD359))","v":237199.17250427086},{"$f":"'[1]Gráfico REM'!BK360","v":32544.641699949389},{"$f":"'[1]Gráfico REM'!BL360","v":174365.4710198924},{"$f":"'[1]Gráfico REM'!BM360","v":30289.059784429061},{"$f":"IFERROR(+((DA359/DA347)-1)*100,\"\")","v":3.2295193968675528},{"$f":"IFERROR(+((DB359/DB347)-1)*100,\"\")","v":11.564943540991113},{"$f":"IFERROR(+((DC359/DC347)-1)*100,\"\")","v":2.4791472090902156},{"$f":"IFERROR(+((DD359/DD347)-1)*100,\"\")","v":-0.56163641787404517}]
[2019,"octubre","2019-octubre",{"$f":"IF('[1]REAL IPC(M)'!$AL367=\"\",\"\",+'[1]REAL IPC(M)'!$AL367)","v":2.3232623717097667},{"$f":"IF('[1]REAL IPC(M)'!$BE367=\"\",\"\",+'[1]REAL IPC(M)'!$BE367)","v":3.1505512076572595},{"$f":"IF('[1]REAL IPC(M)'!$AM367=\"\",\"\",+'[1]REAL IPC(M)'!$AM367)","v":1.8807805696138047},{"$f":"IF('[1]REAL IPC(M)'!$BI367=\"\",\"\",+'[1]REAL IPC(M)'!$BI367)","v":2.6303561052620328},{"$f":"IF('[1]REAL IMAE(M)'!BJ367=\"\",\"\",'[1]REAL IMAE(M)'!BJ367)","v":3.8153360349537424},{"$f":"IF('[1]REAL IMAE(M)'!BK367=\"\",\"\",'[1]REAL IMAE(M)'!BK367)","v":1.5109247300063355},{"$f":"IF('[1]REAL IMAE(M)'!BN367=\"\",\"\",'[1]REAL IMAE(M)'!BN367)","v":3.8243774927520624},{"$f":"IF('[1]REAL IMAE(M)'!BO367=\"\",\"\",'[1]REAL IMAE(M)'!BO367)","v":0.88788689250540731},{"$f":"IF('[1]EXT RIN(M)'!$K367=\"\",\"\",'[1]EXT RIN(M)'!$K367)","v":41932.65},null,{"$f":"IF('[1]EXT RIN(M)'!$L367=\"\",\"\",'[1]EXT RIN(M)'!$L367)","v":45321.220355850004},null,{"$f":"IF('[1]MONE(M)CARD'!EG367=\"\",\"\",'[1]MONE(M)CARD'!EG367)","v":38458.608996354931},{"$f":"IF('[1]MONE(M)CARD'!EK367=\"\",\"\",'[1]MONE(M)CARD'!EK367)","v":59912.524634093264},{"$f":"IF('[1]MONE(M)CARD'!EP367=\"\",\"\",'[1]MONE(M)CARD'!EP367)","v":31675.148633754085},{"$f":"IF('[1]MONE(M)CARD'!ES367=\"\",\"\",'[1]MONE(M)CARD'!ES367)","v":9.8084462297707944},{"$f":"IF('[1]MONE(M)CARD'!EV367=\"\",\"\",'[1]MONE(M)CARD'!EV367)","v":7.4643327181898034},{"$f":"IF('[1]MONE(M)CARD'!EZ367=\"\",\"\",'[1]MONE(M)CARD'!EZ367)","v":6.1527024906576688},{"$f":"IF('[1]MONE(M)CAPARD'!FC367=\"\",\"\",'[1]MONE(M)CAPARD'!FC367)","v":46135.689738794928},{"$f":"IF('[1]MONE(M)CAPARD'!FG367=\"\",\"\",'[1]MONE(M)CAPARD'!FG367)","v":94068.985915263271},{"$f":"IF('[1]MONE(M)CAPARD'!FL367=\"\",\"\",'[1]MONE(M)CAPARD'!FL367)","v":31675.148633754114},{"$f":"IF('[1]MONE(M)CAPARD'!FO367=\"\",\"\",'[1]MONE(M)CAPARD'!FO367)","v":7.2403106782980231},{"$f":"IF('[1]MONE(M)CAPARD'!FR367=\"\",\"\",'[1]MONE(M)CAPARD'!FR367)","v":6.323690014374006},{"$f":"IF('[1]MONE(M)CAPARD'!FV367=\"\",\"\",'[1]MONE(M)CAPARD'!FV367)","v":5.5538360688119459},{"$f":"IF('[1]MONE(M)CARD'!FV367=\"\",\"\",'[1]MONE(M)CARD'!FV367)","v":2314.6179595074391},{"$f":"IF('[1]MONE(M)CARD'!GD367=\"\",\"\",'[1]MONE(M)CARD'!GD367)","v":117.62644724714592},{"$f":"IF('[1]MONE(M)CARD'!GE367=\"\",\"\",'[1]MONE(M)CARD'!GE367)","v":14024.026503716861},22.571231667081992,{"$f":"IF('[9]II.2.Balance OSD-Activos'!J225=\"\",\"\",'[9]II.2.Balance OSD-Activos'!J225)","v":212.8911266549996},{"$f":"IF('[9]II.2.Balance OSD-Activos'!N225=\"\",\"\",'[9]II.2.Balance OSD-Activos'!N225)","v":1130.3675726481729},{"$f":"IF('[9]II.2.Balance OSD-Activos'!R225=\"\",\"\",'[9]II.2.Balance OSD-Activos'!R225)","v":54876.060768208692},{"$f":"IF('[9]II.2.Balance OSD-Activos'!S225=\"\",\"\",'[9]II.2.Balance OSD-Activos'!S225)","v":61302.130613652822},55088.951894863691,117521.45008116469,-8.2960960514391946,0.76412422320117912,-26.359407204456353,0.80276074213323501,5.3218270786089983,2.7188804904386465,0.87098320587826183,{"$f":"IF('[1]MONE(M)CAPARD'!GS367=\"\",\"\",'[1]MONE(M)CAPARD'!GS367)","v":25086.554871019587},{"$f":"IF('[1]MONE(M)CARD'!HA367=\"\",\"\",'[1]MONE(M)CAPARD'!HA367)","v":16477.951948506859},{"$f":"IF('[1]MONE(M)CAPARD'!HB367=\"\",\"\",'[1]MONE(M)CAPARD'!HB367)","v":8608.6029225127277},"n.d.",{"$f":"IF('[10]II.2.Balance OSD-Activos'!J225=\"\",\"\",'[10]II.2.Balance OSD-Activos'!J225)","v":2584.624164545},{"$f":"IF('[10]II.2.Balance OSD-Activos'!N225=\"\",\"\",'[10]II.2.Balance OSD-Activos'!N225)","v":1610.1972061481729},{"$f":"IF('[10]II.2.Balance OSD-Activos'!R225=\"\",\"\",'[10]II.2.Balance OSD-Activos'!R225)","v":78742.404756058706},{"$f":"IF('[10]II.2.Balance OSD-Activos'!S225=\"\",\"\",'[10]II.2.Balance OSD-Activos'!S225)","v":87170.775050742814},81327.028920603712,170108.00117749471,8.5212445879770513,0.29628961780041596,-20.305741747795057,4.7396275172140179E-2,5.4692780593563306,2.624530937003966,0.63605418946450776,{"$f":"IF('[1]MONE(M)CAPARD'!AS367=\"\",\"\",'[1]MONE(M)CAPARD'!AS367)","v":3.25},{"$f":"IF('[1]MONE(M)CAPARD'!AT367=\"\",\"\",'[1]MONE(M)CAPARD'!AT367)","v":"n.a."},{"$f":"IF('[1]MONE(M)CAPARD'!AU367=\"\",\"\",'[1]MONE(M)CAPARD'!AU367)","v":2.75},{"$f":"IF('[1]MONE(M)CAPARD'!AV367=\"\",\"\",'[1]MONE(M)CAPARD'!AV367)","v":5.75},{"$f":"IF('[1]MONE(M)CAPARD'!AW367=\"\",\"\",'[1]MONE(M)CAPARD'!AW367)","v":"n.a."},{"$f":"IF('[1]MONE(M)CAPARD'!AX367=\"\",\"\",'[1]MONE(M)CAPARD'!AX367)","v":4.5},{"$f":"IF('[1]MONE(M)CAPARD'!AY367=\"\",\"\",'[1]MONE(M)CAPARD'!AY367)","v":"n.a."},{"$f":"IF('[1]FISCAL(M)'!$K367=\"\",\"\",'[1]FISCAL(M)'!$K367)","v":-5674.8460310684923},{"$f":"IF('[1]FISCAL(M)'!$L367=\"\",\"\",'[1]FISCAL(M)'!$L367)","v":"n.d."},{"$f":"IF('[1]FISCAL(M)'!$AY367=\"\",\"\",'[1]FISCAL(M)'!$AY367)","v":147623.68878761731},{"$f":"IF('[1]FISCAL(M)'!$BI367=\"\",\"\",'[1]FISCAL(M)'!$BI367)","v":79182.306157944957},{"$f":"IF('[1]FISCAL(M)'!$BS367=\"\",\"\",'[1]FISCAL(M)'!$BS367)","v":68441.382629672371},{"$f":"IF('[1]FISCAL(M)'!$AZ367=\"\",\"\",'[1]FISCAL(M)'!$AZ367)","v":176265.65878761734},{"$f":"IF('[1]FISCAL(M)'!$BJ367=\"\",\"\",'[1]FISCAL(M)'!$BJ367)","v":85194.726157944955},{"$f":"IF('[1]FISCAL(M)'!$BT367=\"\",\"\",'[1]FISCAL(M)'!$BT367)","v":91070.932629672388},{"$f":"IF('[2]MONE(M)'!$AO367=\"\",\"\",'[2]MONE(M)'!$AO367)","v":22084984.402671989},{"$f":"IF('[3]MONE(M)'!$AO367=\"\",\"\",'[3]MONE(M)'!$AO367)","v":13796.163614450001},{"$f":"IF('[4]MONE(M)'!$AO367=\"\",\"\",'[4]MONE(M)'!$AO367)","v":212406.02354226512},{"$f":"+'[5]MONE(M)'!$AO367","v":374315.59110231581},{"$f":"IF('[6]MONE(M)'!$AO367=\"\",\"\",'[6]MONE(M)'!$AO367)","v":125833.76462112449},{"$f":"IF('[7]MONE(M)'!$AO367=\"\",\"\",'[7]MONE(M)'!$AO367)","v":1239081.282865},{"$f":"IF('[8]MONE(M)'!$AO367=\"\",\"\",'[8]MONE(M)'!$AO367)","v":53545.438851780003},-1.1582862918070314,5.2509948430059961,4.110745002232008,9.2466599918051617,-17.884464829592073,12.46003491736265,2.4077771400677461,{"$f":"'[1]FISCAL(M)'!$K367","v":-5674.8460310684923},{"$f":"+'[1]REAL(A)'!$AO$39","v":295060.91053595644},-1.9232795088853185,{"$f":"IF('[1]FISCAL(M)'!$L367=\"\",\"\",'[1]FISCAL(M)'!$L367)","v":"n.d."},{"$f":"+'[1]REAL(A)'!$AP$39","v":362045.31206438324},"n.d.",160938.32868154248,{"$f":"'[1]Gráfico REM'!BG361","v":30175.936766195569},{"$f":"'[1]Gráfico REM'!BH361","v":121851.91243749931},{"$f":"'[1]Gráfico REM'!BI361","v":8910.4794778476116},5.7381594592314178,14.254606985142605,3.6513619243809581,8.214898835176033,237846.41682511251,{"$f":"'[1]Gráfico REM'!BK361","v":32536.978360375571},{"$f":"'[1]Gráfico REM'!BL361","v":175397.35128927932},{"$f":"'[1]Gráfico REM'!BM361","v":29912.087175457615},4.1409132676205607,13.915428758190318,3.2685284539580639,-0.2289802344669134]
[2019,"noviembre","2019-noviembre",{"$f":"IF('[1]REAL IPC(M)'!$AL368=\"\",\"\",+'[1]REAL IPC(M)'!$AL368)","v":2.7334613875716673},{"$f":"IF('[1]REAL IPC(M)'!$BE368=\"\",\"\",+'[1]REAL IPC(M)'!$BE368)","v":3.194413344355751},{"$f":"IF('[1]REAL IPC(M)'!$AM368=\"\",\"\",+'[1]REAL IPC(M)'!$AM368)","v":2.2924285843756387},{"$f":"IF('[1]REAL IPC(M)'!$BI368=\"\",\"\",+'[1]REAL IPC(M)'!$BI368)","v":2.6675244382580177},{"$f":"IF('[1]REAL IMAE(M)'!BJ368=\"\",\"\",'[1]REAL IMAE(M)'!BJ368)","v":4.0449992762556786},{"$f":"IF('[1]REAL IMAE(M)'!BK368=\"\",\"\",'[1]REAL IMAE(M)'!BK368)","v":1.4799092029383232},{"$f":"IF('[1]REAL IMAE(M)'!BN368=\"\",\"\",'[1]REAL IMAE(M)'!BN368)","v":3.8746544559821849},{"$f":"IF('[1]REAL IMAE(M)'!BO368=\"\",\"\",'[1]REAL IMAE(M)'!BO368)","v":0.83726100365939526},{"$f":"IF('[1]EXT RIN(M)'!$K368=\"\",\"\",'[1]EXT RIN(M)'!$K368)","v":42248.09647830898},null,{"$f":"IF('[1]EXT RIN(M)'!$L368=\"\",\"\",'[1]EXT RIN(M)'!$L368)","v":46817.968345138979},null,{"$f":"IF('[1]MONE(M)CARD'!EG368=\"\",\"\",'[1]MONE(M)CARD'!EG368)","v":40869.192641789137},{"$f":"IF('[1]MONE(M)CARD'!EK368=\"\",\"\",'[1]MONE(M)CARD'!EK368)","v":59944.209719395367},{"$f":"IF('[1]MONE(M)CARD'!EP368=\"\",\"\",'[1]MONE(M)CARD'!EP368)","v":31991.807276339707},{"$f":"IF('[1]MONE(M)CARD'!ES368=\"\",\"\",'[1]MONE(M)CARD'!ES368)","v":13.391012376847456},{"$f":"IF('[1]MONE(M)CARD'!EV368=\"\",\"\",'[1]MONE(M)CARD'!EV368)","v":9.0844881682146337},{"$f":"IF('[1]MONE(M)CARD'!EZ368=\"\",\"\",'[1]MONE(M)CARD'!EZ368)","v":7.2279451611545031},{"$f":"IF('[1]MONE(M)CAPARD'!FC368=\"\",\"\",'[1]MONE(M)CAPARD'!FC368)","v":48692.020763179142},{"$f":"IF('[1]MONE(M)CAPARD'!FG368=\"\",\"\",'[1]MONE(M)CAPARD'!FG368)","v":94240.986325715377},{"$f":"IF('[1]MONE(M)CAPARD'!FL368=\"\",\"\",'[1]MONE(M)CAPARD'!FL368)","v":31991.807276339707},{"$f":"IF('[1]MONE(M)CAPARD'!FO368=\"\",\"\",'[1]MONE(M)CAPARD'!FO368)","v":9.8968853664669343},{"$f":"IF('[1]MONE(M)CAPARD'!FR368=\"\",\"\",'[1]MONE(M)CAPARD'!FR368)","v":6.959238690461822},{"$f":"IF('[1]MONE(M)CAPARD'!FV368=\"\",\"\",'[1]MONE(M)CAPARD'!FV368)","v":5.970979436027446},{"$f":"IF('[1]MONE(M)CARD'!FV368=\"\",\"\",'[1]MONE(M)CARD'!FV368)","v":2346.748377402203},{"$f":"IF('[1]MONE(M)CARD'!GD368=\"\",\"\",'[1]MONE(M)CARD'!GD368)","v":143.76060734687584},{"$f":"IF('[1]MONE(M)CARD'!GE368=\"\",\"\",'[1]MONE(M)CARD'!GE368)","v":13651.490224931704},17.710202608762593,{"$f":"IF('[9]II.2.Balance OSD-Activos'!J226=\"\",\"\",'[9]II.2.Balance OSD-Activos'!J226)","v":250.4420987634397},{"$f":"IF('[9]II.2.Balance OSD-Activos'!N226=\"\",\"\",'[9]II.2.Balance OSD-Activos'!N226)","v":1203.7466575730286},{"$f":"IF('[9]II.2.Balance OSD-Activos'!R226=\"\",\"\",'[9]II.2.Balance OSD-Activos'!R226)","v":55623.354588925904},{"$f":"IF('[9]II.2.Balance OSD-Activos'!S226=\"\",\"\",'[9]II.2.Balance OSD-Activos'!S226)","v":62425.471025974301},55873.796687689341,119503.01437123667,10.603800831499942,1.4195411347291076,-19.142767039302221,1.381637264019675,5.874441775920114,3.4279592458323016,0.70907875539365506,{"$f":"IF('[1]MONE(M)CAPARD'!GS368=\"\",\"\",'[1]MONE(M)CAPARD'!GS368)","v":25677.697659811329},{"$f":"IF('[1]MONE(M)CARD'!HA368=\"\",\"\",'[1]MONE(M)CAPARD'!HA368)","v":16013.637149351704},{"$f":"IF('[1]MONE(M)CAPARD'!HB368=\"\",\"\",'[1]MONE(M)CAPARD'!HB368)","v":9664.0605104596252},"n.d.",{"$f":"IF('[10]II.2.Balance OSD-Activos'!J226=\"\",\"\",'[10]II.2.Balance OSD-Activos'!J226)","v":2682.2901441334402},{"$f":"IF('[10]II.2.Balance OSD-Activos'!N226=\"\",\"\",'[10]II.2.Balance OSD-Activos'!N226)","v":1680.6150534630287},{"$f":"IF('[10]II.2.Balance OSD-Activos'!R226=\"\",\"\",'[10]II.2.Balance OSD-Activos'!R226)","v":79288.045002675906},{"$f":"IF('[10]II.2.Balance OSD-Activos'!S226=\"\",\"\",'[10]II.2.Balance OSD-Activos'!S226)","v":88413.129385074295},{"$f":"IFERROR(+AW361+AY361,\"\")","v":81970.335146809346},{"$f":"IF(OR(AW361=\"\",AX361=\"\",AY361=\"\",AZ361=\"\"),\"\",SUM(AW361:AZ361))","v":172064.07958534668},{"$f":"IF(OR(AW361=\"\",AW349=\"\"),\"\",((AW361/AW349)-1)*100)","v":11.266863620423484},{"$f":"IF(OR(BA361=\"\",BA349=\"\"),\"\",((BA361/BA349)-1)*100)","v":0.52224959081645927},{"$f":"IF(OR(AX361=\"\",AX349=\"\"),\"\",((AX361/AX349)-1)*100)","v":-12.94488995390285},{"$f":"IF(OR(AY361=\"\",AY349=\"\"),\"\",((AY361/AY349)-1)*100)","v":0.19493243117785219},{"$f":"IF(OR(AZ361=\"\",AZ349=\"\"),\"\",((AZ361/AZ349)-1)*100)","v":5.7535222542926645},{"$f":"IF(OR(BB361=\"\",BB349=\"\"),\"\",((BB361/BB349)-1)*100)","v":2.9842828148869849},{"$f":"IF(OR(BH361=\"\",BH360=\"\"),\"\",BH361-BH360)","v":0.35975187788301888},{"$f":"IF('[1]MONE(M)CAPARD'!AS368=\"\",\"\",'[1]MONE(M)CAPARD'!AS368)","v":3.25},{"$f":"IF('[1]MONE(M)CAPARD'!AT368=\"\",\"\",'[1]MONE(M)CAPARD'!AT368)","v":"n.a."},{"$f":"IF('[1]MONE(M)CAPARD'!AU368=\"\",\"\",'[1]MONE(M)CAPARD'!AU368)","v":2.75},{"$f":"IF('[1]MONE(M)CAPARD'!AV368=\"\",\"\",'[1]MONE(M)CAPARD'!AV368)","v":5.75},{"$f":"IF('[1]MONE(M)CAPARD'!AW368=\"\",\"\",'[1]MONE(M)CAPARD'!AW368)","v":"n.a."},{"$f":"IF('[1]MONE(M)CAPARD'!AX368=\"\",\"\",'[1]MONE(M)CAPARD'!AX368)","v":4.5},{"$f":"IF('[1]MONE(M)CAPARD'!AY368=\"\",\"\",'[1]MONE(M)CAPARD'!AY368)","v":"n.a."},{"$f":"IF('[1]FISCAL(M)'!$K368=\"\",\"\",'[1]FISCAL(M)'!$K368)","v":-6915.7754963378402},{"$f":"IF('[1]FISCAL(M)'!$L368=\"\",\"\",'[1]FISCAL(M)'!$L368)","v":"n.d."},{"$f":"IF('[1]FISCAL(M)'!$AY368=\"\",\"\",'[1]FISCAL(M)'!$AY368)","v":149552.72227484634},{"$f":"IF('[1]FISCAL(M)'!$BI368=\"\",\"\",'[1]FISCAL(M)'!$BI368)","v":80322.698685259238},{"$f":"IF('[1]FISCAL(M)'!$BS368=\"\",\"\",'[1]FISCAL(M)'!$BS368)","v":69230.023589587101},{"$f":"IF('[1]FISCAL(M)'!$AZ368=\"\",\"\",'[1]FISCAL(M)'!$AZ368)","v":179923.14227484638},{"$f":"IF('[1]FISCAL(M)'!$BJ368=\"\",\"\",'[1]FISCAL(M)'!$BJ368)","v":86637.018685259245},{"$f":"IF('[1]FISCAL(M)'!$BT368=\"\",\"\",'[1]FISCAL(M)'!$BT368)","v":93286.123589587092},{"$f":"IF('[2]MONE(M)'!$AO368=\"\",\"\",'[2]MONE(M)'!$AO368)","v":21771057.566668939},{"$f":"IF('[3]MONE(M)'!$AO368=\"\",\"\",'[3]MONE(M)'!$AO368)","v":13874.821805390002},{"$f":"IF('[4]MONE(M)'!$AO368=\"\",\"\",'[4]MONE(M)'!$AO368)","v":214609.24647035153},{"$f":"+'[5]MONE(M)'!$AO368","v":378903.0455306482},{"$f":"IF('[6]MONE(M)'!$AO368=\"\",\"\",'[6]MONE(M)'!$AO368)","v":126250.28693509489},{"$f":"IF('[7]MONE(M)'!$AO368=\"\",\"\",'[7]MONE(M)'!$AO368)","v":1260731.1478180001},{"$f":"IF('[8]MONE(M)'!$AO368=\"\",\"\",'[8]MONE(M)'!$AO368)","v":53565.726717270001},-2.3072623230150135,4.8375017073418514,4.7416324824318457,8.6005656046575609,-16.662603036635005,12.619671531465171,1.951645104805011,{"$f":"'[1]FISCAL(M)'!$K368","v":-6915.7754963378402},{"$f":"+'[1]REAL(A)'!$AO$39","v":295060.91053595644},-2.3438467277064396,{"$f":"IF('[1]FISCAL(M)'!$L368=\"\",\"\",'[1]FISCAL(M)'!$L368)","v":"n.d."},{"$f":"+'[1]REAL(A)'!$AP$39","v":362045.31206438324},"n.d.",163471.73568687739,{"$f":"'[1]Gráfico REM'!BG362","v":30660.542448604796},{"$f":"'[1]Gráfico REM'!BH362","v":123679.51311437204},{"$f":"'[1]Gráfico REM'!BI362","v":9131.6801239005508},6.3469354912925491,16.015058064750143,4.2636353377640379,5.3793323807308946,{"$f":"+IF(OR(DB361=\"\",+DC361=\"\",+DD361=\"\"),\"\",(DB361+DC361+DD361))","v":240991.47669716738},{"$f":"'[1]Gráfico REM'!BK362","v":33017.514565364792},{"$f":"'[1]Gráfico REM'!BL362","v":177245.23983164204},{"$f":"'[1]Gráfico REM'!BM362","v":30728.722300160549},{"$f":"IFERROR(+((DA361/DA349)-1)*100,\"\")","v":4.5282335409803975},{"$f":"IFERROR(+((DB361/DB349)-1)*100,\"\")","v":15.409284423399527},{"$f":"IFERROR(+((DC361/DC349)-1)*100,\"\")","v":3.5539418612392293},{"$f":"IFERROR(+((DD361/DD349)-1)*100,\"\")","v":-0.16746082137921725}]
[2019,"diciembre","2019-diciembre",{"$f":"IF('[1]REAL IPC(M)'!$AL369=\"\",\"\",+'[1]REAL IPC(M)'!$AL369)","v":3.0479223025774438},{"$f":"IF('[1]REAL IPC(M)'!$BE369=\"\",\"\",+'[1]REAL IPC(M)'!$BE369)","v":3.24253015668583},{"$f":"IF('[1]REAL IPC(M)'!$AM369=\"\",\"\",+'[1]REAL IPC(M)'!$AM369)","v":2.5999120319337488},{"$f":"IF('[1]REAL IPC(M)'!$BI369=\"\",\"\",+'[1]REAL IPC(M)'!$BI369)","v":2.7096353901721049},{"$f":"IF('[1]REAL IMAE(M)'!BJ369=\"\",\"\",'[1]REAL IMAE(M)'!BJ369)","v":3.6796785326888015},{"$f":"IF('[1]REAL IMAE(M)'!BK369=\"\",\"\",'[1]REAL IMAE(M)'!BK369)","v":1.4620434115845571},{"$f":"IF('[1]REAL IMAE(M)'!BN369=\"\",\"\",'[1]REAL IMAE(M)'!BN369)","v":3.3182697029580766},{"$f":"IF('[1]REAL IMAE(M)'!BO369=\"\",\"\",'[1]REAL IMAE(M)'!BO369)","v":0.80226700323469124},{"$f":"IF('[1]EXT RIN(M)'!$K369=\"\",\"\",'[1]EXT RIN(M)'!$K369)","v":44436.54692909844},{"$f":"IF(B362<>\"diciembre\",\"\",L362)","v":44436.54692909844},{"$f":"IF('[1]EXT RIN(M)'!$L369=\"\",\"\",'[1]EXT RIN(M)'!$L369)","v":48578.88734922844},{"$f":"IF(B362<>\"diciembre\",\"\",N362)","v":48578.88734922844},{"$f":"IF('[1]MONE(M)CARD'!EG369=\"\",\"\",'[1]MONE(M)CARD'!EG369)","v":43763.987777737886},{"$f":"IF('[1]MONE(M)CARD'!EK369=\"\",\"\",'[1]MONE(M)CARD'!EK369)","v":60987.596937798604},{"$f":"IF('[1]MONE(M)CARD'!EP369=\"\",\"\",'[1]MONE(M)CARD'!EP369)","v":31901.527925203161},{"$f":"IF('[1]MONE(M)CARD'!ES369=\"\",\"\",'[1]MONE(M)CARD'!ES369)","v":14.969020815491785},{"$f":"IF('[1]MONE(M)CARD'!EV369=\"\",\"\",'[1]MONE(M)CARD'!EV369)","v":10.640865087722018},{"$f":"IF('[1]MONE(M)CARD'!EZ369=\"\",\"\",'[1]MONE(M)CARD'!EZ369)","v":8.6757234119343671},{"$f":"IF('[1]MONE(M)CAPARD'!FC369=\"\",\"\",'[1]MONE(M)CAPARD'!FC369)","v":51673.797867067879},{"$f":"IF('[1]MONE(M)CAPARD'!FG369=\"\",\"\",'[1]MONE(M)CAPARD'!FG369)","v":95322.989931658609},{"$f":"IF('[1]MONE(M)CAPARD'!FL369=\"\",\"\",'[1]MONE(M)CAPARD'!FL369)","v":31901.527925203176},{"$f":"IF('[1]MONE(M)CAPARD'!FO369=\"\",\"\",'[1]MONE(M)CAPARD'!FO369)","v":10.433920080424919},{"$f":"IF('[1]MONE(M)CAPARD'!FR369=\"\",\"\",'[1]MONE(M)CAPARD'!FR369)","v":8.167388173568991},{"$f":"IF('[1]MONE(M)CAPARD'!FV369=\"\",\"\",'[1]MONE(M)CAPARD'!FV369)","v":7.147639655374749},{"$f":"IF('[1]MONE(M)CARD'!FV369=\"\",\"\",'[1]MONE(M)CARD'!FV369)","v":1844.2684661341227},{"$f":"IF('[1]MONE(M)CARD'!GD369=\"\",\"\",'[1]MONE(M)CARD'!GD369)","v":170.9390430265575},{"$f":"IF('[1]MONE(M)CARD'!GE369=\"\",\"\",'[1]MONE(M)CARD'!GE369)","v":12985.955057205038},{"$f":"IF(AD362=\"\",\"\",((AD362/AD349)-1)*100)","v":13.672271590336639},{"$f":"IF('[9]II.2.Balance OSD-Activos'!J227=\"\",\"\",'[9]II.2.Balance OSD-Activos'!J227)","v":306.80767823024701},{"$f":"IF('[9]II.2.Balance OSD-Activos'!N227=\"\",\"\",'[9]II.2.Balance OSD-Activos'!N227)","v":1233.2323975589179},{"$f":"IF('[9]II.2.Balance OSD-Activos'!R227=\"\",\"\",'[9]II.2.Balance OSD-Activos'!R227)","v":55902.764215192816},{"$f":"IF('[9]II.2.Balance OSD-Activos'!S227=\"\",\"\",'[9]II.2.Balance OSD-Activos'!S227)","v":62209.317097102066},{"$f":"IFERROR(+AF362+AH362,\"\")","v":56209.571893423061},{"$f":"IF(OR(AF362=\"\",AG362=\"\",AH362=\"\",AI362=\"\"),\"\",SUM(AF362:AI362))","v":119652.12138808405},{"$f":"IF(OR(AF362=\"\",AF350=\"\"),\"\",((AF362/AF350)-1)*100)","v":56.195504900230311},{"$f":"IF(OR(AJ362=\"\",AJ350=\"\"),\"\",((AJ362/AJ350)-1)*100)","v":2.3155557510112335},{"$f":"IF(OR(AG362=\"\",AG350=\"\"),\"\",((AG362/AG350)-1)*100)","v":-16.41764165035887},{"$f":"IF(OR(AH362=\"\",AH350=\"\"),\"\",((AH362/AH350)-1)*100)","v":2.1222201490422421},{"$f":"IF(OR(AI362=\"\",AI350=\"\"),\"\",((AI362/AI350)-1)*100)","v":5.7668689916380522},{"$f":"IF(OR(AK362=\"\",AK350=\"\"),\"\",((AK362/AK350)-1)*100)","v":3.83735118364672},{"$f":"IF(OR(AQ362=\"\",AQ361=\"\"),\"\",AQ362-AQ361)","v":0.40939193781441841},{"$f":"IF('[1]MONE(M)CAPARD'!GS369=\"\",\"\",'[1]MONE(M)CAPARD'!GS369)","v":25901.005277673026},{"$f":"IF('[1]MONE(M)CARD'!HA369=\"\",\"\",'[1]MONE(M)CAPARD'!HA369)","v":15969.053531555035},{"$f":"IF('[1]MONE(M)CAPARD'!HB369=\"\",\"\",'[1]MONE(M)CAPARD'!HB369)","v":9931.9517461179912},"n.d.",{"$f":"IF('[10]II.2.Balance OSD-Activos'!J227=\"\",\"\",'[10]II.2.Balance OSD-Activos'!J227)","v":2759.3360958802464},{"$f":"IF('[10]II.2.Balance OSD-Activos'!N227=\"\",\"\",'[10]II.2.Balance OSD-Activos'!N227)","v":1814.2091299789181},{"$f":"IF('[10]II.2.Balance OSD-Activos'!R227=\"\",\"\",'[10]II.2.Balance OSD-Activos'!R227)","v":79213.25078156282},{"$f":"IF('[10]II.2.Balance OSD-Activos'!S227=\"\",\"\",'[10]II.2.Balance OSD-Activos'!S227)","v":88320.92058384206},{"$f":"IFERROR(+AW362+AY362,\"\")","v":81972.586877443071},{"$f":"IF(OR(AW362=\"\",AX362=\"\",AY362=\"\",AZ362=\"\"),\"\",SUM(AW362:AZ362))","v":172107.71659126406},{"$f":"IF(OR(AW362=\"\",AW350=\"\"),\"\",((AW362/AW350)-1)*100)","v":20.237854014489145},{"$f":"IF(OR(BA362=\"\",BA350=\"\"),\"\",((BA362/BA350)-1)*100)","v":1.2105924740307694},{"$f":"IF(OR(AX362=\"\",AX350=\"\"),\"\",((AX362/AX350)-1)*100)","v":-8.4122362550043572},{"$f":"IF(OR(AY362=\"\",AY350=\"\"),\"\",((AY362/AY350)-1)*100)","v":0.65573637073219615},{"$f":"IF(OR(AZ362=\"\",AZ350=\"\"),\"\",((AZ362/AZ350)-1)*100)","v":5.6303825074123237},{"$f":"IF(OR(BB362=\"\",BB350=\"\"),\"\",((BB362/BB350)-1)*100)","v":3.3145575632374857},{"$f":"IF(OR(BH362=\"\",BH361=\"\"),\"\",BH362-BH361)","v":0.33027474835050086},{"$f":"IF('[1]MONE(M)CAPARD'!AS369=\"\",\"\",'[1]MONE(M)CAPARD'!AS369)","v":2.75},{"$f":"IF('[1]MONE(M)CAPARD'!AT369=\"\",\"\",'[1]MONE(M)CAPARD'!AT369)","v":"n.a."},{"$f":"IF('[1]MONE(M)CAPARD'!AU369=\"\",\"\",'[1]MONE(M)CAPARD'!AU369)","v":2.75},{"$f":"IF('[1]MONE(M)CAPARD'!AV369=\"\",\"\",'[1]MONE(M)CAPARD'!AV369)","v":5.5},{"$f":"IF('[1]MONE(M)CAPARD'!AW369=\"\",\"\",'[1]MONE(M)CAPARD'!AW369)","v":"n.a."},{"$f":"IF('[1]MONE(M)CAPARD'!AX369=\"\",\"\",'[1]MONE(M)CAPARD'!AX369)","v":4.5},{"$f":"IF('[1]MONE(M)CAPARD'!AY369=\"\",\"\",'[1]MONE(M)CAPARD'!AY369)","v":"n.a."},{"$f":"IF('[1]FISCAL(M)'!$K369=\"\",\"\",'[1]FISCAL(M)'!$K369)","v":-9118.4765500619415},{"$f":"IF('[1]FISCAL(M)'!$L369=\"\",\"\",'[1]FISCAL(M)'!$L369)","v":-11666.576550061942},{"$f":"IF('[1]FISCAL(M)'!$AY369=\"\",\"\",'[1]FISCAL(M)'!$AY369)","v":151012.49558313415},{"$f":"IF('[1]FISCAL(M)'!$BI369=\"\",\"\",'[1]FISCAL(M)'!$BI369)","v":81153.047040213482},{"$f":"IF('[1]FISCAL(M)'!$BS369=\"\",\"\",'[1]FISCAL(M)'!$BS369)","v":69859.448542920654},{"$f":"IF('[1]FISCAL(M)'!$AZ369=\"\",\"\",'[1]FISCAL(M)'!$AZ369)","v":182030.97558313416},{"$f":"IF('[1]FISCAL(M)'!$BJ369=\"\",\"\",'[1]FISCAL(M)'!$BJ369)","v":87948.367040213489},{"$f":"IF('[1]FISCAL(M)'!$BT369=\"\",\"\",'[1]FISCAL(M)'!$BT369)","v":94082.608542920658},{"$f":"IF('[2]MONE(M)'!$AO369=\"\",\"\",'[2]MONE(M)'!$AO369)","v":21874299.761970032},{"$f":"IF('[3]MONE(M)'!$AO369=\"\",\"\",'[3]MONE(M)'!$AO369)","v":13981.318384759999},{"$f":"IF('[4]MONE(M)'!$AO369=\"\",\"\",'[4]MONE(M)'!$AO369)","v":215686.97627656333},{"$f":"+'[5]MONE(M)'!$AO369","v":385502.60272780299},{"$f":"IF('[6]MONE(M)'!$AO369=\"\",\"\",'[6]MONE(M)'!$AO369)","v":126086.99903374136},{"$f":"IF('[7]MONE(M)'!$AO369=\"\",\"\",'[7]MONE(M)'!$AO369)","v":1269853.82479244},{"$f":"IF('[8]MONE(M)'!$AO369=\"\",\"\",'[8]MONE(M)'!$AO369)","v":53345.007250070004},{"$f":"IF(BY362=\"\",\"\",((BY362/BY350)-1)*100)","v":-2.1296594071194552},{"$f":"IF(BZ362=\"\",\"\",((BZ362/BZ350)-1)*100)","v":5.597627985415099},{"$f":"IF(CA362=\"\",\"\",((CA362/CA350)-1)*100)","v":5.0489536489688014},{"$f":"IF(CB362=\"\",\"\",((CB362/CB350)-1)*100)","v":9.0293698423220103},{"$f":"IF(CC362=\"\",\"\",((CC362/CC350)-1)*100)","v":-14.792507787741727},{"$f":"IF(CD362=\"\",\"\",((CD362/CD350)-1)*100)","v":12.760180788599396},{"$f":"IF(CE362=\"\",\"\",((CE362/CE350)-1)*100)","v":2.1849244506356946},{"$f":"'[1]FISCAL(M)'!$K369","v":-9118.4765500619415},{"$f":"+'[1]REAL(A)'!$AO$39","v":295060.91053595644},-3.0903709113819584,{"$f":"IF('[1]FISCAL(M)'!$L369=\"\",\"\",'[1]FISCAL(M)'!$L369)","v":-11666.576550061942},{"$f":"+'[1]REAL(A)'!$AP$39","v":362045.31206438324},-3.2224078482163168,{"$f":"+IF(OR(CT362=\"\",+CU362=\"\",+CV362=\"\"),\"\",(CT362+CU362+CV362))","v":163428.78831934847},{"$f":"'[1]Gráfico REM'!BG363","v":30543.953744952018},{"$f":"'[1]Gráfico REM'!BH363","v":123745.29818564576},{"$f":"'[1]Gráfico REM'!BI363","v":9139.5363887506701},{"$f":"IFERROR(+((CS362/CS350)-1)*100,\"\")","v":6.4497724867653705},{"$f":"IFERROR(+((CT362/CT350)-1)*100,\"\")","v":15.27622977055605},{"$f":"IFERROR(+((CU362/CU350)-1)*100,\"\")","v":4.6081553823559718},{"$f":"IFERROR(+((CV362/CV350)-1)*100,\"\")","v":4.6164736445760912},{"$f":"+IF(OR(DB362=\"\",+DC362=\"\",+DD362=\"\"),\"\",(DB362+DC362+DD362))","v":241317.48646521845},{"$f":"'[1]Gráfico REM'!BK363","v":33144.489440202022},{"$f":"'[1]Gráfico REM'!BL363","v":177090.30543571577},{"$f":"'[1]Gráfico REM'!BM363","v":31082.691589300674},{"$f":"IFERROR(+((DA362/DA350)-1)*100,\"\")","v":4.5661706323137485},{"$f":"IFERROR(+((DB362/DB350)-1)*100,\"\")","v":15.502910294465577},{"$f":"IFERROR(+((DC362/DC350)-1)*100,\"\")","v":3.8661941975382863},{"$f":"IFERROR(+((DD362/DD350)-1)*100,\"\")","v":-1.5915383782723835}]
[2020,"enero","2020-enero",{"$f":"IF('[1]REAL IPC(M)'!$AL370=\"\",\"\",+'[1]REAL IPC(M)'!$AL370)","v":2.8101790353073364},{"$f":"IF('[1]REAL IPC(M)'!$BE370=\"\",\"\",+'[1]REAL IPC(M)'!$BE370)","v":3.2949638644196977},{"$f":"IF('[1]REAL IPC(M)'!$AM370=\"\",\"\",+'[1]REAL IPC(M)'!$AM370)","v":2.4503216885350287},{"$f":"IF('[1]REAL IPC(M)'!$BI370=\"\",\"\",+'[1]REAL IPC(M)'!$BI370)","v":2.7568162044102618},{"$f":"IF('[1]REAL IMAE(M)'!BJ370=\"\",\"\",'[1]REAL IMAE(M)'!BJ370)","v":3.0563274986015854},{"$f":"IF('[1]REAL IMAE(M)'!BK370=\"\",\"\",'[1]REAL IMAE(M)'!BK370)","v":1.4589299490326724},{"$f":"IF('[1]REAL IMAE(M)'!BN370=\"\",\"\",'[1]REAL IMAE(M)'!BN370)","v":3.3470493830575432},{"$f":"IF('[1]REAL IMAE(M)'!BO370=\"\",\"\",'[1]REAL IMAE(M)'!BO370)","v":0.78513390559304952},{"$f":"IF('[1]EXT RIN(M)'!$K370=\"\",\"\",'[1]EXT RIN(M)'!$K370)","v":45464.801424746962},null,{"$f":"IF('[1]EXT RIN(M)'!$L370=\"\",\"\",'[1]EXT RIN(M)'!$L370)","v":48809.163533406965},null,{"$f":"IF('[1]MONE(M)CARD'!EG370=\"\",\"\",'[1]MONE(M)CARD'!EG370)","v":42955.040811929648},{"$f":"IF('[1]MONE(M)CARD'!EK370=\"\",\"\",'[1]MONE(M)CARD'!EK370)","v":61479.411340187129},{"$f":"IF('[1]MONE(M)CARD'!EP370=\"\",\"\",'[1]MONE(M)CARD'!EP370)","v":32830.816993917309},{"$f":"IF('[1]MONE(M)CARD'!ES370=\"\",\"\",'[1]MONE(M)CARD'!ES370)","v":15.045171280212944},{"$f":"IF('[1]MONE(M)CARD'!EV370=\"\",\"\",'[1]MONE(M)CARD'!EV370)","v":11.359867324250361},{"$f":"IF('[1]MONE(M)CARD'!EZ370=\"\",\"\",'[1]MONE(M)CARD'!EZ370)","v":9.8540240952885725},{"$f":"IF('[1]MONE(M)CAPARD'!FC370=\"\",\"\",'[1]MONE(M)CAPARD'!FC370)","v":50758.277665589645},{"$f":"IF('[1]MONE(M)CAPARD'!FG370=\"\",\"\",'[1]MONE(M)CAPARD'!FG370)","v":95920.753968687146},{"$f":"IF('[1]MONE(M)CAPARD'!FL370=\"\",\"\",'[1]MONE(M)CAPARD'!FL370)","v":32830.81699391728},{"$f":"IF('[1]MONE(M)CAPARD'!FO370=\"\",\"\",'[1]MONE(M)CAPARD'!FO370)","v":11.412444825183176},{"$f":"IF('[1]MONE(M)CAPARD'!FR370=\"\",\"\",'[1]MONE(M)CAPARD'!FR370)","v":8.8324466696245274},{"$f":"IF('[1]MONE(M)CAPARD'!FV370=\"\",\"\",'[1]MONE(M)CAPARD'!FV370)","v":8.173345081075766},{"$f":"IF('[1]MONE(M)CARD'!FV370=\"\",\"\",'[1]MONE(M)CARD'!FV370)","v":1835.3888004325579},{"$f":"IF('[1]MONE(M)CARD'!GD370=\"\",\"\",'[1]MONE(M)CARD'!GD370)","v":132.25090267771469},{"$f":"IF('[1]MONE(M)CARD'!GE370=\"\",\"\",'[1]MONE(M)CARD'!GE370)","v":13472.248617963716},21.545056847581655,{"$f":"IF('[9]II.2.Balance OSD-Activos'!J228=\"\",\"\",'[9]II.2.Balance OSD-Activos'!J228)","v":303.70112947817165},{"$f":"IF('[9]II.2.Balance OSD-Activos'!N228=\"\",\"\",'[9]II.2.Balance OSD-Activos'!N228)","v":1231.8411345011605},{"$f":"IF('[9]II.2.Balance OSD-Activos'!R228=\"\",\"\",'[9]II.2.Balance OSD-Activos'!R228)","v":55995.495556034846},{"$f":"IF('[9]II.2.Balance OSD-Activos'!S228=\"\",\"\",'[9]II.2.Balance OSD-Activos'!S228)","v":62209.702062924182},56299.196685513016,119740.73988293836,39.523797824488604,3.3371438695583455,-17.346983349997103,3.191986387822987,5.8285809444948544,4.3447534279466904,0.50740224429997038,{"$f":"IF('[1]MONE(M)CAPARD'!GS370=\"\",\"\",'[1]MONE(M)CAPARD'!GS370)","v":25922.389658535158},{"$f":"IF('[1]MONE(M)CARD'!HA370=\"\",\"\",'[1]MONE(M)CAPARD'!HA370)","v":15978.284470943716},{"$f":"IF('[1]MONE(M)CAPARD'!HB370=\"\",\"\",'[1]MONE(M)CAPARD'!HB370)","v":9944.1051875914418},"n.d.",{"$f":"IF('[10]II.2.Balance OSD-Activos'!J228=\"\",\"\",'[10]II.2.Balance OSD-Activos'!J228)","v":2762.7255928381719},{"$f":"IF('[10]II.2.Balance OSD-Activos'!N228=\"\",\"\",'[10]II.2.Balance OSD-Activos'!N228)","v":1822.9684441211607},{"$f":"IF('[10]II.2.Balance OSD-Activos'!R228=\"\",\"\",'[10]II.2.Balance OSD-Activos'!R228)","v":79169.085303124841},{"$f":"IF('[10]II.2.Balance OSD-Activos'!S228=\"\",\"\",'[10]II.2.Balance OSD-Activos'!S228)","v":88415.005057704169},81931.810895963019,172169.78439778835,21.039455726777433,1.8023202359047641,-8.4526658693271592,1.2408183590011612,5.8497049972937143,3.7158745216211653,0.40131695838367953,{"$f":"IF('[1]MONE(M)CAPARD'!AS370=\"\",\"\",'[1]MONE(M)CAPARD'!AS370)","v":2.25},{"$f":"IF('[1]MONE(M)CAPARD'!AT370=\"\",\"\",'[1]MONE(M)CAPARD'!AT370)","v":"n.a."},{"$f":"IF('[1]MONE(M)CAPARD'!AU370=\"\",\"\",'[1]MONE(M)CAPARD'!AU370)","v":2.75},{"$f":"IF('[1]MONE(M)CAPARD'!AV370=\"\",\"\",'[1]MONE(M)CAPARD'!AV370)","v":5.5},{"$f":"IF('[1]MONE(M)CAPARD'!AW370=\"\",\"\",'[1]MONE(M)CAPARD'!AW370)","v":"n.a."},{"$f":"IF('[1]MONE(M)CAPARD'!AX370=\"\",\"\",'[1]MONE(M)CAPARD'!AX370)","v":4.5},{"$f":"IF('[1]MONE(M)CAPARD'!AY370=\"\",\"\",'[1]MONE(M)CAPARD'!AY370)","v":"n.a."},{"$f":"IF('[1]FISCAL(M)'!$K370=\"\",\"\",'[1]FISCAL(M)'!$K370)","v":-207.04758689708555},{"$f":"IF('[1]FISCAL(M)'!$L370=\"\",\"\",'[1]FISCAL(M)'!$L370)","v":"n.d."},{"$f":"IF('[1]FISCAL(M)'!$AY370=\"\",\"\",'[1]FISCAL(M)'!$AY370)","v":155166.27984339057},{"$f":"IF('[1]FISCAL(M)'!$BI370=\"\",\"\",'[1]FISCAL(M)'!$BI370)","v":83471.779829671897},{"$f":"IF('[1]FISCAL(M)'!$BS370=\"\",\"\",'[1]FISCAL(M)'!$BS370)","v":71694.500013718673},{"$f":"IF('[1]FISCAL(M)'!$AZ370=\"\",\"\",'[1]FISCAL(M)'!$AZ370)","v":185063.1898433906},{"$f":"IF('[1]FISCAL(M)'!$BJ370=\"\",\"\",'[1]FISCAL(M)'!$BJ370)","v":90330.099829671904},{"$f":"IF('[1]FISCAL(M)'!$BT370=\"\",\"\",'[1]FISCAL(M)'!$BT370)","v":94733.090013718684},{"$f":"IF('[2]MONE(M)'!$AO370=\"\",\"\",'[2]MONE(M)'!$AO370)","v":21893044.50148236},{"$f":"IF('[3]MONE(M)'!$AO370=\"\",\"\",'[3]MONE(M)'!$AO370)","v":14069.849257939997},{"$f":"IF('[4]MONE(M)'!$AO370=\"\",\"\",'[4]MONE(M)'!$AO370)","v":216234.59291585968},{"$f":"+'[5]MONE(M)'!$AO370","v":387558.82416650798},{"$f":"IF('[6]MONE(M)'!$AO370=\"\",\"\",'[6]MONE(M)'!$AO370)","v":125823.86578434633},{"$f":"IF('[7]MONE(M)'!$AO370=\"\",\"\",'[7]MONE(M)'!$AO370)","v":1273257.45037324},{"$f":"IF('[8]MONE(M)'!$AO370=\"\",\"\",'[8]MONE(M)'!$AO370)","v":53328.072230379985},-2.1597750987204178,5.4988652698424456,4.9679346881358111,8.8146636745707987,-12.890358723326756,13.371915179536442,2.450979864269609,{"$f":"'[1]FISCAL(M)'!$K370","v":-207.04758689708555},{"$f":"+'[1]REAL(A)'!$AO$40","v":279528.85554939549},{"$f":"IF(OR(CM363=\"n.d.\",CM363=\"\",CN363=\"\",CN363=\"n.d.\"),\"\",(CM363/CN363)*100)","v":-7.4070201621992543E-2},{"$f":"IF('[1]FISCAL(M)'!$L370=\"\",\"\",'[1]FISCAL(M)'!$L370)","v":"n.d."},{"$f":"+'[1]REAL(A)'!$AP$40","v":333505.88843652798},"n.d.",165000.31179015629,{"$f":"'[1]Gráfico REM'!BG364","v":32124.372741973439},{"$f":"'[1]Gráfico REM'!BH364","v":123868.78334479497},{"$f":"'[1]Gráfico REM'!BI364","v":9007.1557033879035},6.7605885585222403,15.751391793607716,4.9084735042780991,3.2266509933792653,242599.26636389631,{"$f":"'[1]Gráfico REM'!BK364","v":34334.677352973435},{"$f":"'[1]Gráfico REM'!BL364","v":177196.85557517497},{"$f":"'[1]Gráfico REM'!BM364","v":31067.733435747916},4.847645352077512,14.242530202510073,4.1565687615241931,-0.43345241762943187]
[2020,"febrero","2020-febrero",{"$f":"IF('[1]REAL IPC(M)'!$AL371=\"\",\"\",+'[1]REAL IPC(M)'!$AL371)","v":2.4762958449169092},{"$f":"IF('[1]REAL IPC(M)'!$BE371=\"\",\"\",+'[1]REAL IPC(M)'!$BE371)","v":3.3517590319175783},{"$f":"IF('[1]REAL IPC(M)'!$AM371=\"\",\"\",+'[1]REAL IPC(M)'!$AM371)","v":2.1153424103468765},{"$f":"IF('[1]REAL IPC(M)'!$BI371=\"\",\"\",+'[1]REAL IPC(M)'!$BI371)","v":2.8091811823870438},{"$f":"IF('[1]REAL IMAE(M)'!BJ371=\"\",\"\",'[1]REAL IMAE(M)'!BJ371)","v":0.3057317367309409},{"$f":"IF('[1]REAL IMAE(M)'!BK371=\"\",\"\",'[1]REAL IMAE(M)'!BK371)","v":1.4723026191774569},{"$f":"IF('[1]REAL IMAE(M)'!BN371=\"\",\"\",'[1]REAL IMAE(M)'!BN371)","v":1.8985210062322455},{"$f":"IF('[1]REAL IMAE(M)'!BO371=\"\",\"\",'[1]REAL IMAE(M)'!BO371)","v":0.78826694580456103},{"$f":"IF('[1]EXT RIN(M)'!$K371=\"\",\"\",'[1]EXT RIN(M)'!$K371)","v":45161.449199999995},null,{"$f":"IF('[1]EXT RIN(M)'!$L371=\"\",\"\",'[1]EXT RIN(M)'!$L371)","v":48536.206183649992},null,{"$f":"IF('[1]MONE(M)CARD'!EG371=\"\",\"\",'[1]MONE(M)CARD'!EG371)","v":43149.028755512183},{"$f":"IF('[1]MONE(M)CARD'!EK371=\"\",\"\",'[1]MONE(M)CARD'!EK371)","v":61424.7738287842},{"$f":"IF('[1]MONE(M)CARD'!EP371=\"\",\"\",'[1]MONE(M)CARD'!EP371)","v":33145.613220431813},{"$f":"IF('[1]MONE(M)CARD'!ES371=\"\",\"\",'[1]MONE(M)CARD'!ES371)","v":15.683986537895622},{"$f":"IF('[1]MONE(M)CARD'!EV371=\"\",\"\",'[1]MONE(M)CARD'!EV371)","v":10.799487362834137},{"$f":"IF('[1]MONE(M)CARD'!EZ371=\"\",\"\",'[1]MONE(M)CARD'!EZ371)","v":9.2035048125024943},{"$f":"IF('[1]MONE(M)CAPARD'!FC371=\"\",\"\",'[1]MONE(M)CAPARD'!FC371)","v":50983.077837442186},{"$f":"IF('[1]MONE(M)CAPARD'!FG371=\"\",\"\",'[1]MONE(M)CAPARD'!FG371)","v":95913.950492404198},{"$f":"IF('[1]MONE(M)CAPARD'!FL371=\"\",\"\",'[1]MONE(M)CAPARD'!FL371)","v":33145.613220431813},{"$f":"IF('[1]MONE(M)CAPARD'!FO371=\"\",\"\",'[1]MONE(M)CAPARD'!FO371)","v":12.210532378039151},{"$f":"IF('[1]MONE(M)CAPARD'!FR371=\"\",\"\",'[1]MONE(M)CAPARD'!FR371)","v":8.4582801109564407},{"$f":"IF('[1]MONE(M)CAPARD'!FV371=\"\",\"\",'[1]MONE(M)CAPARD'!FV371)","v":7.698684582434856},{"$f":"IF('[1]MONE(M)CARD'!FV371=\"\",\"\",'[1]MONE(M)CARD'!FV371)","v":1817.8336613955278},{"$f":"IF('[1]MONE(M)CARD'!GD371=\"\",\"\",'[1]MONE(M)CARD'!GD371)","v":121.09228448913959},{"$f":"IF('[1]MONE(M)CARD'!GE371=\"\",\"\",'[1]MONE(M)CARD'!GE371)","v":13414.873625993272},{"$f":"IF(AD364=\"\",\"\",((AD364/AD351)-1)*100)","v":12.158095051482842},{"$f":"IF('[9]II.2.Balance OSD-Activos'!J229=\"\",\"\",'[9]II.2.Balance OSD-Activos'!J229)","v":299.28990023124493},{"$f":"IF('[9]II.2.Balance OSD-Activos'!N229=\"\",\"\",'[9]II.2.Balance OSD-Activos'!N229)","v":1174.5122559455726},{"$f":"IF('[9]II.2.Balance OSD-Activos'!R229=\"\",\"\",'[9]II.2.Balance OSD-Activos'!R229)","v":56009.731548498436},{"$f":"IF('[9]II.2.Balance OSD-Activos'!S229=\"\",\"\",'[9]II.2.Balance OSD-Activos'!S229)","v":62280.749390602854},{"$f":"IFERROR(+AF364+AH364,\"\")","v":56309.021448729683},{"$f":"IF(OR(AF364=\"\",AG364=\"\",AH364=\"\",AI364=\"\"),\"\",SUM(AF364:AI364))","v":119764.28309527811},43.630676494155772,{"$f":"IF(OR(AJ364=\"\",AJ352=\"\"),\"\",((AJ364/AJ352)-1)*100)","v":3.1128427392870028},{"$f":"IF(OR(AG364=\"\",AG352=\"\"),\"\",((AG364/AG352)-1)*100)","v":-21.16901332580602},{"$f":"IF(OR(AH364=\"\",AH352=\"\"),\"\",((AH364/AH352)-1)*100)","v":2.9576447173999432},{"$f":"IF(OR(AI364=\"\",AI352=\"\"),\"\",((AI364/AI352)-1)*100)","v":5.6481241434486629},{"$f":"IF(OR(AK364=\"\",AK352=\"\"),\"\",((AK364/AK352)-1)*100)","v":4.0974554521911788},{"$f":"IF(OR(AQ364=\"\",AQ363=\"\"),\"\",AQ364-AQ363)","v":-0.2472979757555116},{"$f":"IF('[1]MONE(M)CAPARD'!GS371=\"\",\"\",'[1]MONE(M)CAPARD'!GS371)","v":26262.522650449093},{"$f":"IF('[1]MONE(M)CARD'!HA371=\"\",\"\",'[1]MONE(M)CAPARD'!HA371)","v":15716.850828293273},{"$f":"IF('[1]MONE(M)CAPARD'!HB371=\"\",\"\",'[1]MONE(M)CAPARD'!HB371)","v":10545.67182215582},"n.d.",{"$f":"IF('[10]II.2.Balance OSD-Activos'!J229=\"\",\"\",'[10]II.2.Balance OSD-Activos'!J229)","v":2775.3478275112438},{"$f":"IF('[10]II.2.Balance OSD-Activos'!N229=\"\",\"\",'[10]II.2.Balance OSD-Activos'!N229)","v":1752.6723628355726},{"$f":"IF('[10]II.2.Balance OSD-Activos'!R229=\"\",\"\",'[10]II.2.Balance OSD-Activos'!R229)","v":79054.138559538449},{"$f":"IF('[10]II.2.Balance OSD-Activos'!S229=\"\",\"\",'[10]II.2.Balance OSD-Activos'!S229)","v":88590.173478832847},{"$f":"IFERROR(+AW364+AY364,\"\")","v":81829.486387049692},{"$f":"IF(OR(AW364=\"\",AX364=\"\",AY364=\"\",AZ364=\"\"),\"\",SUM(AW364:AZ364))","v":172172.33222871809},{"$f":"IF(OR(AW364=\"\",AW352=\"\"),\"\",((AW364/AW352)-1)*100)","v":20.914664863094657},{"$f":"IF(OR(BA364=\"\",BA352=\"\"),\"\",((BA364/BA352)-1)*100)","v":1.2995898679307505},{"$f":"IF(OR(AX364=\"\",AX352=\"\"),\"\",((AX364/AX352)-1)*100)","v":-11.665866637714629},{"$f":"IF(OR(AY364=\"\",AY352=\"\"),\"\",((AY364/AY352)-1)*100)","v":0.72594231569089729},{"$f":"IF(OR(AZ364=\"\",AZ352=\"\"),\"\",((AZ364/AZ352)-1)*100)","v":5.6383372579078994},{"$f":"IF(OR(BB364=\"\",BB352=\"\"),\"\",((BB364/BB352)-1)*100)","v":3.3288684847684769},{"$f":"IF(OR(BH364=\"\",BH363=\"\"),\"\",BH364-BH363)","v":-0.38700603685268842},{"$f":"IF('[1]MONE(M)CAPARD'!AS371=\"\",\"\",'[1]MONE(M)CAPARD'!AS371)","v":2.25},{"$f":"IF('[1]MONE(M)CAPARD'!AT371=\"\",\"\",'[1]MONE(M)CAPARD'!AT371)","v":"n.a."},{"$f":"IF('[1]MONE(M)CAPARD'!AU371=\"\",\"\",'[1]MONE(M)CAPARD'!AU371)","v":2.75},{"$f":"IF('[1]MONE(M)CAPARD'!AV371=\"\",\"\",'[1]MONE(M)CAPARD'!AV371)","v":5.25},{"$f":"IF('[1]MONE(M)CAPARD'!AW371=\"\",\"\",'[1]MONE(M)CAPARD'!AW371)","v":"n.a."},{"$f":"IF('[1]MONE(M)CAPARD'!AX371=\"\",\"\",'[1]MONE(M)CAPARD'!AX371)","v":4.5},{"$f":"IF('[1]MONE(M)CAPARD'!AY371=\"\",\"\",'[1]MONE(M)CAPARD'!AY371)","v":"n.a."},{"$f":"IF('[1]FISCAL(M)'!$K371=\"\",\"\",'[1]FISCAL(M)'!$K371)","v":-988.91147632627644},{"$f":"IF('[1]FISCAL(M)'!$L371=\"\",\"\",'[1]FISCAL(M)'!$L371)","v":"n.d."},{"$f":"IF('[1]FISCAL(M)'!$AY371=\"\",\"\",'[1]FISCAL(M)'!$AY371)","v":156267.65853846661},{"$f":"IF('[1]FISCAL(M)'!$BI371=\"\",\"\",'[1]FISCAL(M)'!$BI371)","v":84758.82064776383},{"$f":"IF('[1]FISCAL(M)'!$BS371=\"\",\"\",'[1]FISCAL(M)'!$BS371)","v":71508.837890702765},{"$f":"IF('[1]FISCAL(M)'!$AZ371=\"\",\"\",'[1]FISCAL(M)'!$AZ371)","v":186099.91853846662},{"$f":"IF('[1]FISCAL(M)'!$BJ371=\"\",\"\",'[1]FISCAL(M)'!$BJ371)","v":91608.640647763823},{"$f":"IF('[1]FISCAL(M)'!$BT371=\"\",\"\",'[1]FISCAL(M)'!$BT371)","v":94491.277890702768},{"$f":"IF('[2]MONE(M)'!$AO371=\"\",\"\",'[2]MONE(M)'!$AO371)","v":21892731.591718059},{"$f":"IF('[3]MONE(M)'!$AO371=\"\",\"\",'[3]MONE(M)'!$AO371)","v":14116.425639100002},{"$f":"IF('[4]MONE(M)'!$AO371=\"\",\"\",'[4]MONE(M)'!$AO371)","v":216934.42896437462},{"$f":"+'[5]MONE(M)'!$AO371","v":389545.34931419813},{"$f":"IF('[6]MONE(M)'!$AO371=\"\",\"\",'[6]MONE(M)'!$AO371)","v":125488.80216099654},{"$f":"IF('[7]MONE(M)'!$AO371=\"\",\"\",'[7]MONE(M)'!$AO371)","v":1277813.36441686},{"$f":"IF('[8]MONE(M)'!$AO371=\"\",\"\",'[8]MONE(M)'!$AO371)","v":53395.190578830014},{"$f":"IF(BY364=\"\",\"\",((BY364/BY352)-1)*100)","v":-1.9554972066749166},{"$f":"IF(BZ364=\"\",\"\",((BZ364/BZ352)-1)*100)","v":5.3676765180285191},{"$f":"IF(CA364=\"\",\"\",((CA364/CA352)-1)*100)","v":5.9081431484056646},{"$f":"IF(CB364=\"\",\"\",((CB364/CB352)-1)*100)","v":8.4420549025842728},{"$f":"IF(CC364=\"\",\"\",((CC364/CC352)-1)*100)","v":-11.275165861062931},{"$f":"IF(CD364=\"\",\"\",((CD364/CD352)-1)*100)","v":13.272470977651007},{"$f":"IF(CE364=\"\",\"\",((CE364/CE352)-1)*100)","v":1.8375340670037543},{"$f":"'[1]FISCAL(M)'!$K371","v":-988.91147632627644},{"$f":"+'[1]REAL(A)'!$AO$40","v":279528.85554939549},{"$f":"IF(OR(CM364=\"n.d.\",CM364=\"\",CN364=\"\",CN364=\"n.d.\"),\"\",(CM364/CN364)*100)","v":-0.35377795769336096},{"$f":"IF('[1]FISCAL(M)'!$L371=\"\",\"\",'[1]FISCAL(M)'!$L371)","v":"n.d."},{"$f":"+'[1]REAL(A)'!$AP$40","v":333505.88843652798},"n.d.",{"$f":"+IF(OR(CT364=\"\",+CU364=\"\",+CV364=\"\"),\"\",(CT364+CU364+CV364))","v":165798.86029354911},{"$f":"'[1]Gráfico REM'!BG365","v":32658.320645883949},{"$f":"'[1]Gráfico REM'!BH365","v":123987.45995676516},{"$f":"'[1]Gráfico REM'!BI365","v":9153.0796908999801},{"$f":"IFERROR(+((CS364/CS352)-1)*100,\"\")","v":6.7066177881897726},{"$f":"IFERROR(+((CT364/CT352)-1)*100,\"\")","v":16.226740018453235},{"$f":"IFERROR(+((CU364/CU352)-1)*100,\"\")","v":4.8076902703880542},{"$f":"IFERROR(+((CV364/CV352)-1)*100,\"\")","v":1.9334004074142985},{"$f":"+IF(OR(DB364=\"\",+DC364=\"\",+DD364=\"\"),\"\",(DB364+DC364+DD364))","v":242994.77306536911},{"$f":"'[1]Gráfico REM'!BK365","v":34953.881260873946},{"$f":"'[1]Gráfico REM'!BL365","v":177382.65053559517},{"$f":"'[1]Gráfico REM'!BM365","v":30658.241268899979},{"$f":"IFERROR(+((DA364/DA352)-1)*100,\"\")","v":4.4221312283474479},{"$f":"IFERROR(+((DB364/DB352)-1)*100,\"\")","v":14.847520624920607},{"$f":"IFERROR(+((DC364/DC352)-1)*100,\"\")","v":3.8955547205168362},{"$f":"IFERROR(+((DD364/DD352)-1)*100,\"\")","v":-2.7881241685226765}]
[2020,"marzo","2020-marzo",{"$f":"IF('[1]REAL IPC(M)'!$AL372=\"\",\"\",+'[1]REAL IPC(M)'!$AL372)","v":2.1284693846644442},{"$f":"IF('[1]REAL IPC(M)'!$BE372=\"\",\"\",+'[1]REAL IPC(M)'!$BE372)","v":3.4129304707710917},{"$f":"IF('[1]REAL IPC(M)'!$AM372=\"\",\"\",+'[1]REAL IPC(M)'!$AM372)","v":1.6932788064468518},{"$f":"IF('[1]REAL IPC(M)'!$BI372=\"\",\"\",+'[1]REAL IPC(M)'!$BI372)","v":2.8668217336481394},{"$f":"IF('[1]REAL IMAE(M)'!BJ372=\"\",\"\",'[1]REAL IMAE(M)'!BJ372)","v":-7.5264620502843327},{"$f":"IF('[1]REAL IMAE(M)'!BK372=\"\",\"\",'[1]REAL IMAE(M)'!BK372)","v":1.5039891833314334},{"$f":"IF('[1]REAL IMAE(M)'!BN372=\"\",\"\",'[1]REAL IMAE(M)'!BN372)","v":-6.696413481533714},{"$f":"IF('[1]REAL IMAE(M)'!BO372=\"\",\"\",'[1]REAL IMAE(M)'!BO372)","v":0.81425151526814954},{"$f":"IF('[1]EXT RIN(M)'!$K372=\"\",\"\",'[1]EXT RIN(M)'!$K372)","v":45039.837708020001},null,{"$f":"IF('[1]EXT RIN(M)'!$L372=\"\",\"\",'[1]EXT RIN(M)'!$L372)","v":48263.564983589997},null,{"$f":"IF('[1]MONE(M)CARD'!EG372=\"\",\"\",'[1]MONE(M)CARD'!EG372)","v":43549.536903548251},{"$f":"IF('[1]MONE(M)CARD'!EK372=\"\",\"\",'[1]MONE(M)CARD'!EK372)","v":61266.072869300122},{"$f":"IF('[1]MONE(M)CARD'!EP372=\"\",\"\",'[1]MONE(M)CARD'!EP372)","v":34071.682365305343},{"$f":"IF('[1]MONE(M)CARD'!ES372=\"\",\"\",'[1]MONE(M)CARD'!ES372)","v":14.724085960959222},{"$f":"IF('[1]MONE(M)CARD'!EV372=\"\",\"\",'[1]MONE(M)CARD'!EV372)","v":9.6333268061913113},{"$f":"IF('[1]MONE(M)CARD'!EZ372=\"\",\"\",'[1]MONE(M)CARD'!EZ372)","v":9.1304107658910727},{"$f":"IF('[1]MONE(M)CAPARD'!FC372=\"\",\"\",'[1]MONE(M)CAPARD'!FC372)","v":51665.218893408251},{"$f":"IF('[1]MONE(M)CAPARD'!FG372=\"\",\"\",'[1]MONE(M)CAPARD'!FG372)","v":95685.282127060113},{"$f":"IF('[1]MONE(M)CAPARD'!FL372=\"\",\"\",'[1]MONE(M)CAPARD'!FL372)","v":34071.682365305343},{"$f":"IF('[1]MONE(M)CAPARD'!FO372=\"\",\"\",'[1]MONE(M)CAPARD'!FO372)","v":12.752855564493126},{"$f":"IF('[1]MONE(M)CAPARD'!FR372=\"\",\"\",'[1]MONE(M)CAPARD'!FR372)","v":7.8876677826175134},{"$f":"IF('[1]MONE(M)CAPARD'!FV372=\"\",\"\",'[1]MONE(M)CAPARD'!FV372)","v":7.8357519302227008},{"$f":"IF('[1]MONE(M)CARD'!FV372=\"\",\"\",'[1]MONE(M)CARD'!FV372)","v":1731.9444916799457},{"$f":"IF('[1]MONE(M)CARD'!GD372=\"\",\"\",'[1]MONE(M)CARD'!GD372)","v":119.488585842364},{"$f":"IF('[1]MONE(M)CARD'!GE372=\"\",\"\",'[1]MONE(M)CARD'!GE372)","v":13995.090983102018},16.040050139125263,{"$f":"IF('[9]II.2.Balance OSD-Activos'!J230=\"\",\"\",'[9]II.2.Balance OSD-Activos'!J230)","v":307.55819882269816},{"$f":"IF('[9]II.2.Balance OSD-Activos'!N230=\"\",\"\",'[9]II.2.Balance OSD-Activos'!N230)","v":1233.9018097126432},{"$f":"IF('[9]II.2.Balance OSD-Activos'!R230=\"\",\"\",'[9]II.2.Balance OSD-Activos'!R230)","v":56729.102651783724},{"$f":"IF('[9]II.2.Balance OSD-Activos'!S230=\"\",\"\",'[9]II.2.Balance OSD-Activos'!S230)","v":61761.283872816675},57036.660850606422,120031.84653313574,43.410929909610239,3.0050202600381271,-17.941264527683597,2.8479190462896486,5.091094990175149,3.7927763975387441,-0.30467905465243472,{"$f":"IF('[1]MONE(M)CAPARD'!GS372=\"\",\"\",'[1]MONE(M)CAPARD'!GS372)","v":27070.509310733236},{"$f":"IF('[1]MONE(M)CARD'!HA372=\"\",\"\",'[1]MONE(M)CAPARD'!HA372)","v":16346.245769262016},{"$f":"IF('[1]MONE(M)CAPARD'!HB372=\"\",\"\",'[1]MONE(M)CAPARD'!HB372)","v":10724.26354147122},"n.d.",{"$f":"IF('[10]II.2.Balance OSD-Activos'!J230=\"\",\"\",'[10]II.2.Balance OSD-Activos'!J230)","v":2666.6598607426977},{"$f":"IF('[10]II.2.Balance OSD-Activos'!N230=\"\",\"\",'[10]II.2.Balance OSD-Activos'!N230)","v":1851.9070750226431},{"$f":"IF('[10]II.2.Balance OSD-Activos'!R230=\"\",\"\",'[10]II.2.Balance OSD-Activos'!R230)","v":80118.173311243721},{"$f":"IF('[10]II.2.Balance OSD-Activos'!S230=\"\",\"\",'[10]II.2.Balance OSD-Activos'!S230)","v":88109.951842096692},82784.833171986422,172746.69208910575,11.882698927629608,1.3770056286756205,-7.275964801116352,1.0611543616913188,5.1832319914838498,3.178153021040786,-0.15071546372769085,{"$f":"IF('[1]MONE(M)CAPARD'!AS372=\"\",\"\",'[1]MONE(M)CAPARD'!AS372)","v":1.25},{"$f":"IF('[1]MONE(M)CAPARD'!AT372=\"\",\"\",'[1]MONE(M)CAPARD'!AT372)","v":"n.a."},{"$f":"IF('[1]MONE(M)CAPARD'!AU372=\"\",\"\",'[1]MONE(M)CAPARD'!AU372)","v":2},{"$f":"IF('[1]MONE(M)CAPARD'!AV372=\"\",\"\",'[1]MONE(M)CAPARD'!AV372)","v":4.5},{"$f":"IF('[1]MONE(M)CAPARD'!AW372=\"\",\"\",'[1]MONE(M)CAPARD'!AW372)","v":"n.a."},{"$f":"IF('[1]MONE(M)CAPARD'!AX372=\"\",\"\",'[1]MONE(M)CAPARD'!AX372)","v":3.5},{"$f":"IF('[1]MONE(M)CAPARD'!AY372=\"\",\"\",'[1]MONE(M)CAPARD'!AY372)","v":"n.a."},{"$f":"IF('[1]FISCAL(M)'!$K372=\"\",\"\",'[1]FISCAL(M)'!$K372)","v":-2125.863133584875},{"$f":"IF('[1]FISCAL(M)'!$L372=\"\",\"\",'[1]FISCAL(M)'!$L372)","v":-3305.363133584875},{"$f":"IF('[1]FISCAL(M)'!$AY372=\"\",\"\",'[1]FISCAL(M)'!$AY372)","v":156090.24538472181},{"$f":"IF('[1]FISCAL(M)'!$BI372=\"\",\"\",'[1]FISCAL(M)'!$BI372)","v":84213.246105638129},{"$f":"IF('[1]FISCAL(M)'!$BS372=\"\",\"\",'[1]FISCAL(M)'!$BS372)","v":71876.999279083699},{"$f":"IF('[1]FISCAL(M)'!$AZ372=\"\",\"\",'[1]FISCAL(M)'!$AZ372)","v":185935.44538472182},{"$f":"IF('[1]FISCAL(M)'!$BJ372=\"\",\"\",'[1]FISCAL(M)'!$BJ372)","v":91068.066105638136},{"$f":"IF('[1]FISCAL(M)'!$BT372=\"\",\"\",'[1]FISCAL(M)'!$BT372)","v":94867.379279083703},{"$f":"IF('[2]MONE(M)'!$AO372=\"\",\"\",'[2]MONE(M)'!$AO372)","v":22105003.91057907},{"$f":"IF('[3]MONE(M)'!$AO372=\"\",\"\",'[3]MONE(M)'!$AO372)","v":14274.276373519999},{"$f":"IF('[4]MONE(M)'!$AO372=\"\",\"\",'[4]MONE(M)'!$AO372)","v":222075.93682207522},{"$f":"+'[5]MONE(M)'!$AO372","v":391660.73697573331},{"$f":"IF('[6]MONE(M)'!$AO372=\"\",\"\",'[6]MONE(M)'!$AO372)","v":125749.82383803197},{"$f":"IF('[7]MONE(M)'!$AO372=\"\",\"\",'[7]MONE(M)'!$AO372)","v":1280219.9285854099},{"$f":"IF('[8]MONE(M)'!$AO372=\"\",\"\",'[8]MONE(M)'!$AO372)","v":53682.633953929995},-0.63281508084093163,6.3432273346886392,7.6019944479178703,8.369722691069569,-9.2207739229426604,10.526650515259718,1.8269167933354202,{"$f":"'[1]FISCAL(M)'!$K372","v":-2125.863133584875},{"$f":"+'[1]REAL(A)'!$AO$40","v":279528.85554939549},-0.76051652320710561,{"$f":"IF('[1]FISCAL(M)'!$L372=\"\",\"\",'[1]FISCAL(M)'!$L372)","v":-3305.363133584875},{"$f":"+'[1]REAL(A)'!$AP$40","v":333505.88843652798},-0.99109588411778327,165761.92722249977,{"$f":"'[1]Gráfico REM'!BG366","v":32748.693647047323},{"$f":"'[1]Gráfico REM'!BH366","v":124092.48917546833},{"$f":"'[1]Gráfico REM'!BI366","v":8920.7443999841071},5.5738991094248513,15.458418934107755,3.7574691259339543,-1.4027757399850516,242726.72939978977,{"$f":"'[1]Gráfico REM'!BK366","v":34972.273040247324},{"$f":"'[1]Gráfico REM'!BL366","v":177775.12312939833},{"$f":"'[1]Gráfico REM'!BM366","v":29979.333230144104},3.5644228088972829,13.797204452018796,3.1668304237530309,-4.2881619074111139]
[2020,"abril","2020-abril",{"$f":"IF('[1]REAL IPC(M)'!$AL373=\"\",\"\",+'[1]REAL IPC(M)'!$AL373)","v":1.3980926543085692},{"$f":"IF('[1]REAL IPC(M)'!$BE373=\"\",\"\",+'[1]REAL IPC(M)'!$BE373)","v":3.4784403687070364},{"$f":"IF('[1]REAL IPC(M)'!$AM373=\"\",\"\",+'[1]REAL IPC(M)'!$AM373)","v":0.84508351343350885},{"$f":"IF('[1]REAL IPC(M)'!$BI373=\"\",\"\",+'[1]REAL IPC(M)'!$BI373)","v":2.9297804833825491},{"$f":"IF('[1]REAL IMAE(M)'!BJ373=\"\",\"\",'[1]REAL IMAE(M)'!BJ373)","v":-14.109179835166808},{"$f":"IF('[1]REAL IMAE(M)'!BK373=\"\",\"\",'[1]REAL IMAE(M)'!BK373)","v":1.5557391191515224},{"$f":"IF('[1]REAL IMAE(M)'!BN373=\"\",\"\",'[1]REAL IMAE(M)'!BN373)","v":-15.658079561538196},{"$f":"IF('[1]REAL IMAE(M)'!BO373=\"\",\"\",'[1]REAL IMAE(M)'!BO373)","v":0.86575186790873726},{"$f":"IF('[1]EXT RIN(M)'!$K373=\"\",\"\",'[1]EXT RIN(M)'!$K373)","v":45983.061426110231},null,{"$f":"IF('[1]EXT RIN(M)'!$L373=\"\",\"\",'[1]EXT RIN(M)'!$L373)","v":51616.40378145023},null,{"$f":"IF('[1]MONE(M)CARD'!EG373=\"\",\"\",'[1]MONE(M)CARD'!EG373)","v":45401.791629676831},{"$f":"IF('[1]MONE(M)CARD'!EK373=\"\",\"\",'[1]MONE(M)CARD'!EK373)","v":61200.326568227167},{"$f":"IF('[1]MONE(M)CARD'!EP373=\"\",\"\",'[1]MONE(M)CARD'!EP373)","v":34310.607863787969},{"$f":"IF('[1]MONE(M)CARD'!ES373=\"\",\"\",'[1]MONE(M)CARD'!ES373)","v":20.204759108293601},{"$f":"IF('[1]MONE(M)CARD'!EV373=\"\",\"\",'[1]MONE(M)CARD'!EV373)","v":10.90334635319925},{"$f":"IF('[1]MONE(M)CARD'!EZ373=\"\",\"\",'[1]MONE(M)CARD'!EZ373)","v":10.322919760186711},{"$f":"IF('[1]MONE(M)CAPARD'!FC373=\"\",\"\",'[1]MONE(M)CAPARD'!FC373)","v":53475.789750066833},{"$f":"IF('[1]MONE(M)CAPARD'!FG373=\"\",\"\",'[1]MONE(M)CAPARD'!FG373)","v":95905.444150947165},{"$f":"IF('[1]MONE(M)CAPARD'!FL373=\"\",\"\",'[1]MONE(M)CAPARD'!FL373)","v":34310.607863787969},{"$f":"IF('[1]MONE(M)CAPARD'!FO373=\"\",\"\",'[1]MONE(M)CAPARD'!FO373)","v":16.861128016463734},{"$f":"IF('[1]MONE(M)CAPARD'!FR373=\"\",\"\",'[1]MONE(M)CAPARD'!FR373)","v":8.8492067151119791},{"$f":"IF('[1]MONE(M)CAPARD'!FV373=\"\",\"\",'[1]MONE(M)CAPARD'!FV373)","v":8.7946377806146216},{"$f":"IF('[1]MONE(M)CARD'!FV373=\"\",\"\",'[1]MONE(M)CARD'!FV373)","v":1861.6226465336183},{"$f":"IF('[1]MONE(M)CARD'!GD373=\"\",\"\",'[1]MONE(M)CARD'!GD373)","v":178.51354531071343},{"$f":"IF('[1]MONE(M)CARD'!GE373=\"\",\"\",'[1]MONE(M)CARD'!GE373)","v":14440.706639102629},{"$f":"IF(AD366=\"\",\"\",((AD366/AD353)-1)*100)","v":18.685092653668622},{"$f":"IF('[9]II.2.Balance OSD-Activos'!J231=\"\",\"\",'[9]II.2.Balance OSD-Activos'!J231)","v":353.60038146853788},{"$f":"IF('[9]II.2.Balance OSD-Activos'!N231=\"\",\"\",'[9]II.2.Balance OSD-Activos'!N231)","v":1218.1647161300134},{"$f":"IF('[9]II.2.Balance OSD-Activos'!R231=\"\",\"\",'[9]II.2.Balance OSD-Activos'!R231)","v":57627.425823011552},{"$f":"IF('[9]II.2.Balance OSD-Activos'!S231=\"\",\"\",'[9]II.2.Balance OSD-Activos'!S231)","v":61592.993644443399},{"$f":"IFERROR(+AF366+AH366,\"\")","v":57981.026204480091},{"$f":"IF(OR(AF366=\"\",AG366=\"\",AH366=\"\",AI366=\"\"),\"\",SUM(AF366:AI366))","v":120792.1845650535},{"$f":"IF(OR(AF366=\"\",AF354=\"\"),\"\",((AF366/AF354)-1)*100)","v":76.046263366562812},{"$f":"IF(OR(AJ366=\"\",AJ354=\"\"),\"\",((AJ366/AJ354)-1)*100)","v":4.5215462588072075},{"$f":"IF(OR(AG366=\"\",AG354=\"\"),\"\",((AG366/AG354)-1)*100)","v":-17.701880510529133},{"$f":"IF(OR(AH366=\"\",AH354=\"\"),\"\",((AH366/AH354)-1)*100)","v":4.2616276688260513},{"$f":"IF(OR(AI366=\"\",AI354=\"\"),\"\",((AI366/AI354)-1)*100)","v":4.2279649103710515},{"$f":"IF(OR(AK366=\"\",AK354=\"\"),\"\",((AK366/AK354)-1)*100)","v":4.0885869852200107},{"$f":"IF(OR(AQ366=\"\",AQ365=\"\"),\"\",AQ366-AQ365)","v":0.29581058768126667},{"$f":"IF('[1]MONE(M)CAPARD'!GS373=\"\",\"\",'[1]MONE(M)CAPARD'!GS373)","v":27438.993501407833},{"$f":"IF('[1]MONE(M)CARD'!HA373=\"\",\"\",'[1]MONE(M)CAPARD'!HA373)","v":16564.793199192631},{"$f":"IF('[1]MONE(M)CAPARD'!HB373=\"\",\"\",'[1]MONE(M)CAPARD'!HB373)","v":10874.200302215202},"n.d.",{"$f":"IF('[10]II.2.Balance OSD-Activos'!J231=\"\",\"\",'[10]II.2.Balance OSD-Activos'!J231)","v":2708.9469918785376},{"$f":"IF('[10]II.2.Balance OSD-Activos'!N231=\"\",\"\",'[10]II.2.Balance OSD-Activos'!N231)","v":1842.5213192700135},{"$f":"IF('[10]II.2.Balance OSD-Activos'!R231=\"\",\"\",'[10]II.2.Balance OSD-Activos'!R231)","v":81162.91193414155},{"$f":"IF('[10]II.2.Balance OSD-Activos'!S231=\"\",\"\",'[10]II.2.Balance OSD-Activos'!S231)","v":87852.46704015338},{"$f":"IFERROR(+AW366+AY366,\"\")","v":83871.858926020082},{"$f":"IF(OR(AW366=\"\",AX366=\"\",AY366=\"\",AZ366=\"\"),\"\",SUM(AW366:AZ366))","v":173566.84728544348},{"$f":"IF(OR(AW366=\"\",AW354=\"\"),\"\",((AW366/AW354)-1)*100)","v":16.419456250337873},{"$f":"IF(OR(BA366=\"\",BA354=\"\"),\"\",((BA366/BA354)-1)*100)","v":2.6500679834000396},{"$f":"IF(OR(AX366=\"\",AX354=\"\"),\"\",((AX366/AX354)-1)*100)","v":-4.1498727663019768},{"$f":"IF(OR(AY366=\"\",AY354=\"\"),\"\",((AY366/AY354)-1)*100)","v":2.2464410236719079},{"$f":"IF(OR(AZ366=\"\",AZ354=\"\"),\"\",((AZ366/AZ354)-1)*100)","v":4.342457024456059},{"$f":"IF(OR(BB366=\"\",BB354=\"\"),\"\",((BB366/BB354)-1)*100)","v":3.4212359110331825},{"$f":"IF(OR(BH366=\"\",BH365=\"\"),\"\",BH366-BH365)","v":0.24308288999239647},{"$f":"IF('[1]MONE(M)CAPARD'!AS373=\"\",\"\",'[1]MONE(M)CAPARD'!AS373)","v":1.25},{"$f":"IF('[1]MONE(M)CAPARD'!AT373=\"\",\"\",'[1]MONE(M)CAPARD'!AT373)","v":"n.a."},{"$f":"IF('[1]MONE(M)CAPARD'!AU373=\"\",\"\",'[1]MONE(M)CAPARD'!AU373)","v":2},{"$f":"IF('[1]MONE(M)CAPARD'!AV373=\"\",\"\",'[1]MONE(M)CAPARD'!AV373)","v":4.5},{"$f":"IF('[1]MONE(M)CAPARD'!AW373=\"\",\"\",'[1]MONE(M)CAPARD'!AW373)","v":6},{"$f":"IF('[1]MONE(M)CAPARD'!AX373=\"\",\"\",'[1]MONE(M)CAPARD'!AX373)","v":3.5},{"$f":"IF('[1]MONE(M)CAPARD'!AY373=\"\",\"\",'[1]MONE(M)CAPARD'!AY373)","v":"n.a."},{"$f":"IF('[1]FISCAL(M)'!$K373=\"\",\"\",'[1]FISCAL(M)'!$K373)","v":-3266.4708984483536},{"$f":"IF('[1]FISCAL(M)'!$L373=\"\",\"\",'[1]FISCAL(M)'!$L373)","v":"n.d."},{"$f":"IF('[1]FISCAL(M)'!$AY373=\"\",\"\",'[1]FISCAL(M)'!$AY373)","v":159451.79435133078},{"$f":"IF('[1]FISCAL(M)'!$BI373=\"\",\"\",'[1]FISCAL(M)'!$BI373)","v":85310.591162012497},{"$f":"IF('[1]FISCAL(M)'!$BS373=\"\",\"\",'[1]FISCAL(M)'!$BS373)","v":74141.203189318287},{"$f":"IF('[1]FISCAL(M)'!$AZ373=\"\",\"\",'[1]FISCAL(M)'!$AZ373)","v":191762.28435133077},{"$f":"IF('[1]FISCAL(M)'!$BJ373=\"\",\"\",'[1]FISCAL(M)'!$BJ373)","v":92130.41116201249},{"$f":"IF('[1]FISCAL(M)'!$BT373=\"\",\"\",'[1]FISCAL(M)'!$BT373)","v":99631.873189318285},{"$f":"IF('[2]MONE(M)'!$AO373=\"\",\"\",'[2]MONE(M)'!$AO373)","v":21807261.442182757},{"$f":"IF('[3]MONE(M)'!$AO373=\"\",\"\",'[3]MONE(M)'!$AO373)","v":14312.26813343},{"$f":"IF('[4]MONE(M)'!$AO373=\"\",\"\",'[4]MONE(M)'!$AO373)","v":223963.90581514587},{"$f":"+'[5]MONE(M)'!$AO373","v":394446.38297049538},{"$f":"IF('[6]MONE(M)'!$AO373=\"\",\"\",'[6]MONE(M)'!$AO373)","v":122152.09898141396},{"$f":"IF('[7]MONE(M)'!$AO373=\"\",\"\",'[7]MONE(M)'!$AO373)","v":1296522.0614603101},{"$f":"IF('[8]MONE(M)'!$AO373=\"\",\"\",'[8]MONE(M)'!$AO373)","v":53715.252187639991},-2.0086836719972911,6.0742415060164978,7.8943932078250789,8.7491045457915853,-9.6927837049300294,11.804081891661045,1.8089029924701183,{"$f":"'[1]FISCAL(M)'!$K373","v":-3266.4708984483536},{"$f":"+'[1]REAL(A)'!$AO$40","v":279528.85554939549},-1.1685630422763764,{"$f":"IF('[1]FISCAL(M)'!$L373=\"\",\"\",'[1]FISCAL(M)'!$L373)","v":"n.d."},{"$f":"+'[1]REAL(A)'!$AP$40","v":333505.88843652798},"n.d.",166406.07368154966,{"$f":"'[1]Gráfico REM'!BG367","v":32671.148732125883},{"$f":"'[1]Gráfico REM'!BH367","v":124778.90727494017},{"$f":"'[1]Gráfico REM'!BI367","v":8956.0176744836244},5.2591256298331723,13.488407245667954,3.9045917697954957,-2.7982607031609819,243223.92570915967,{"$f":"'[1]Gráfico REM'!BK367","v":34840.631168855885},{"$f":"'[1]Gráfico REM'!BL367","v":178494.15946258017},{"$f":"'[1]Gráfico REM'!BM367","v":29889.135077723622},3.3430202507816142,11.954829235156561,3.2649049706504396,-4.765950189253843]
[2020,"mayo ","2020-mayo ",{"$f":"IF('[1]REAL IPC(M)'!$AL374=\"\",\"\",+'[1]REAL IPC(M)'!$AL374)","v":1.1891832812939596},{"$f":"IF('[1]REAL IPC(M)'!$BE374=\"\",\"\",+'[1]REAL IPC(M)'!$BE374)","v":3.5481674977670297},{"$f":"IF('[1]REAL IPC(M)'!$AM374=\"\",\"\",+'[1]REAL IPC(M)'!$AM374)","v":0.65281473807843327},{"$f":"IF('[1]REAL IPC(M)'!$BI374=\"\",\"\",+'[1]REAL IPC(M)'!$BI374)","v":2.9980109995693782},{"$f":"IF('[1]REAL IMAE(M)'!BJ374=\"\",\"\",'[1]REAL IMAE(M)'!BJ374)","v":-13.079004184092479},{"$f":"IF('[1]REAL IMAE(M)'!BK374=\"\",\"\",'[1]REAL IMAE(M)'!BK374)","v":1.6287389694452648},{"$f":"IF('[1]REAL IMAE(M)'!BN374=\"\",\"\",'[1]REAL IMAE(M)'!BN374)","v":-16.103763277947237},{"$f":"IF('[1]REAL IMAE(M)'!BO374=\"\",\"\",'[1]REAL IMAE(M)'!BO374)","v":0.94490073650093098},{"$f":"IF('[1]EXT RIN(M)'!$K374=\"\",\"\",'[1]EXT RIN(M)'!$K374)","v":45626.928408744338},null,{"$f":"IF('[1]EXT RIN(M)'!$L374=\"\",\"\",'[1]EXT RIN(M)'!$L374)","v":51731.122347164339},null,{"$f":"IF('[1]MONE(M)CARD'!EG374=\"\",\"\",'[1]MONE(M)CARD'!EG374)","v":46107.606890247262},{"$f":"IF('[1]MONE(M)CARD'!EK374=\"\",\"\",'[1]MONE(M)CARD'!EK374)","v":61433.270711894991},{"$f":"IF('[1]MONE(M)CARD'!EP374=\"\",\"\",'[1]MONE(M)CARD'!EP374)","v":35510.476346152864},{"$f":"IF('[1]MONE(M)CARD'!ES374=\"\",\"\",'[1]MONE(M)CARD'!ES374)","v":22.782498384469928},{"$f":"IF('[1]MONE(M)CARD'!EV374=\"\",\"\",'[1]MONE(M)CARD'!EV374)","v":11.785247000334497},{"$f":"IF('[1]MONE(M)CARD'!EZ374=\"\",\"\",'[1]MONE(M)CARD'!EZ374)","v":11.798684736701116},{"$f":"IF('[1]MONE(M)CAPARD'!FC374=\"\",\"\",'[1]MONE(M)CAPARD'!FC374)","v":54184.740225177273},{"$f":"IF('[1]MONE(M)CAPARD'!FG374=\"\",\"\",'[1]MONE(M)CAPARD'!FG374)","v":96216.38660746497},{"$f":"IF('[1]MONE(M)CAPARD'!FL374=\"\",\"\",'[1]MONE(M)CAPARD'!FL374)","v":35510.476346152835},{"$f":"IF('[1]MONE(M)CAPARD'!FO374=\"\",\"\",'[1]MONE(M)CAPARD'!FO374)","v":19.188324203195783},{"$f":"IF('[1]MONE(M)CAPARD'!FR374=\"\",\"\",'[1]MONE(M)CAPARD'!FR374)","v":9.5155440837654481},{"$f":"IF('[1]MONE(M)CAPARD'!FV374=\"\",\"\",'[1]MONE(M)CAPARD'!FV374)","v":9.9519264069990001},{"$f":"IF('[1]MONE(M)CARD'!FV374=\"\",\"\",'[1]MONE(M)CARD'!FV374)","v":1899.6785695323836},{"$f":"IF('[1]MONE(M)CARD'!GD374=\"\",\"\",'[1]MONE(M)CARD'!GD374)","v":109.24319233752489},{"$f":"IF('[1]MONE(M)CARD'!GE374=\"\",\"\",'[1]MONE(M)CARD'!GE374)","v":13876.706172508506},4.9039530744203308,{"$f":"IF('[9]II.2.Balance OSD-Activos'!J232=\"\",\"\",'[9]II.2.Balance OSD-Activos'!J232)","v":363.75629617224376},{"$f":"IF('[9]II.2.Balance OSD-Activos'!N232=\"\",\"\",'[9]II.2.Balance OSD-Activos'!N232)","v":1152.5524962713673},{"$f":"IF('[9]II.2.Balance OSD-Activos'!R232=\"\",\"\",'[9]II.2.Balance OSD-Activos'!R232)","v":57532.762403144698},{"$f":"IF('[9]II.2.Balance OSD-Activos'!S232=\"\",\"\",'[9]II.2.Balance OSD-Activos'!S232)","v":61077.715683855386},57896.518699316941,120126.78687944369,79.191055942516144,{"$f":"IF(OR(AJ367=\"\",AJ355=\"\"),\"\",((AJ367/AJ355)-1)*100)","v":4.5356127792906209},{"$f":"IF(OR(AG367=\"\",AG355=\"\"),\"\",((AG367/AG355)-1)*100)","v":-22.513478111560914},{"$f":"IF(OR(AH367=\"\",AH355=\"\"),\"\",((AH367/AH355)-1)*100)","v":4.260973773543042},{"$f":"IF(OR(AI367=\"\",AI355=\"\"),\"\",((AI367/AI355)-1)*100)","v":2.7307661736236888},{"$f":"IF(OR(AK367=\"\",AK355=\"\"),\"\",((AK367/AK355)-1)*100)","v":3.2672893719380092},{"$f":"IF(OR(AQ367=\"\",AQ366=\"\"),\"\",AQ367-AQ366)","v":-0.82129761328200157},{"$f":"IF('[1]MONE(M)CAPARD'!GS374=\"\",\"\",'[1]MONE(M)CAPARD'!GS374)","v":27486.355987391016},{"$f":"IF('[1]MONE(M)CARD'!HA374=\"\",\"\",'[1]MONE(M)CAPARD'!HA374)","v":16055.616932938507},{"$f":"IF('[1]MONE(M)CAPARD'!HB374=\"\",\"\",'[1]MONE(M)CAPARD'!HB374)","v":11430.73905445251},"n.d.",{"$f":"IF('[10]II.2.Balance OSD-Activos'!J232=\"\",\"\",'[10]II.2.Balance OSD-Activos'!J232)","v":2722.0124778422437},{"$f":"IF('[10]II.2.Balance OSD-Activos'!N232=\"\",\"\",'[10]II.2.Balance OSD-Activos'!N232)","v":1770.7733645813671},{"$f":"IF('[10]II.2.Balance OSD-Activos'!R232=\"\",\"\",'[10]II.2.Balance OSD-Activos'!R232)","v":80956.223576934703},{"$f":"IF('[10]II.2.Balance OSD-Activos'!S232=\"\",\"\",'[10]II.2.Balance OSD-Activos'!S232)","v":87273.711115635379},83678.236054776949,172722.72053499368,14.78618621440293,3.0793299091259607,-8.0396080418365656,2.7270601267071815,3.0655856996702369,2.9447846246416498,-0.47645128639153267,{"$f":"IF('[1]MONE(M)CAPARD'!AS374=\"\",\"\",'[1]MONE(M)CAPARD'!AS374)","v":1.25},{"$f":"IF('[1]MONE(M)CAPARD'!AT374=\"\",\"\",'[1]MONE(M)CAPARD'!AT374)","v":"n.a."},{"$f":"IF('[1]MONE(M)CAPARD'!AU374=\"\",\"\",'[1]MONE(M)CAPARD'!AU374)","v":2},{"$f":"IF('[1]MONE(M)CAPARD'!AV374=\"\",\"\",'[1]MONE(M)CAPARD'!AV374)","v":4.5},{"$f":"IF('[1]MONE(M)CAPARD'!AW374=\"\",\"\",'[1]MONE(M)CAPARD'!AW374)","v":5.5},{"$f":"IF('[1]MONE(M)CAPARD'!AX374=\"\",\"\",'[1]MONE(M)CAPARD'!AX374)","v":3.5},{"$f":"IF('[1]MONE(M)CAPARD'!AY374=\"\",\"\",'[1]MONE(M)CAPARD'!AY374)","v":"n.a."},{"$f":"IF('[1]FISCAL(M)'!$K374=\"\",\"\",'[1]FISCAL(M)'!$K374)","v":-5485.8250659715814},{"$f":"IF('[1]FISCAL(M)'!$L374=\"\",\"\",'[1]FISCAL(M)'!$L374)","v":"n.d."},{"$f":"IF('[1]FISCAL(M)'!$AY374=\"\",\"\",'[1]FISCAL(M)'!$AY374)","v":160158.7410370466},{"$f":"IF('[1]FISCAL(M)'!$BI374=\"\",\"\",'[1]FISCAL(M)'!$BI374)","v":85491.959592933752},{"$f":"IF('[1]FISCAL(M)'!$BS374=\"\",\"\",'[1]FISCAL(M)'!$BS374)","v":74666.781444112843},{"$f":"IF('[1]FISCAL(M)'!$AZ374=\"\",\"\",'[1]FISCAL(M)'!$AZ374)","v":192909.0910370466},{"$f":"IF('[1]FISCAL(M)'!$BJ374=\"\",\"\",'[1]FISCAL(M)'!$BJ374)","v":92291.939592933748},{"$f":"IF('[1]FISCAL(M)'!$BT374=\"\",\"\",'[1]FISCAL(M)'!$BT374)","v":100617.15144411284},{"$f":"IF('[2]MONE(M)'!$AO374=\"\",\"\",'[2]MONE(M)'!$AO374)","v":21962843.53539509},{"$f":"IF('[3]MONE(M)'!$AO374=\"\",\"\",'[3]MONE(M)'!$AO374)","v":14335.814131730001},{"$f":"IF('[4]MONE(M)'!$AO374=\"\",\"\",'[4]MONE(M)'!$AO374)","v":224301.43059929917},{"$f":"+'[5]MONE(M)'!$AO374","v":396192.37985668948},{"$f":"IF('[6]MONE(M)'!$AO374=\"\",\"\",'[6]MONE(M)'!$AO374)","v":120997.29928182665},{"$f":"IF('[7]MONE(M)'!$AO374=\"\",\"\",'[7]MONE(M)'!$AO374)","v":1322004.8554127801},{"$f":"IF('[8]MONE(M)'!$AO374=\"\",\"\",'[8]MONE(M)'!$AO374)","v":53507.692154499993},-1.014614995874108,6.1864760551375575,7.7042497649167707,8.3776354143717313,-7.9681401418362992,13.225688766196498,2.1061950124160678,{"$f":"'[1]FISCAL(M)'!$K374","v":-5485.8250659715814},{"$f":"+'[1]REAL(A)'!$AO$40","v":279528.85554939549},-1.9625254985534695,{"$f":"IF('[1]FISCAL(M)'!$L374=\"\",\"\",'[1]FISCAL(M)'!$L374)","v":"n.d."},{"$f":"+'[1]REAL(A)'!$AP$40","v":333505.88843652798},"n.d.",166834.9474388682,{"$f":"'[1]Gráfico REM'!BG368","v":33496.130861352969},{"$f":"'[1]Gráfico REM'!BH368","v":124262.97090444056},{"$f":"'[1]Gráfico REM'!BI368","v":9075.8456730746821},5.1975216223870913,15.397628588082934,3.1239839804548142,0.10010516779273004,243707.21574350819,{"$f":"'[1]Gráfico REM'!BK368","v":35673.632735182968},{"$f":"'[1]Gráfico REM'!BL368","v":177770.66305894055},{"$f":"'[1]Gráfico REM'!BM368","v":30262.919949384683},3.4554806491566614,12.826474843369429,2.8155086751801006,-2.5239529915649039]
[2020,"junio ","2020-junio ",{"$f":"IF('[1]REAL IPC(M)'!$AL375=\"\",\"\",+'[1]REAL IPC(M)'!$AL375)","v":2.0264819445584337},{"$f":"IF('[1]REAL IPC(M)'!$BE375=\"\",\"\",+'[1]REAL IPC(M)'!$BE375)","v":3.6218663694326692},{"$f":"IF('[1]REAL IPC(M)'!$AM375=\"\",\"\",+'[1]REAL IPC(M)'!$AM375)","v":1.4894392729562167},{"$f":"IF('[1]REAL IPC(M)'!$BI375=\"\",\"\",+'[1]REAL IPC(M)'!$BI375)","v":3.0713247938855659},{"$f":"IF('[1]REAL IMAE(M)'!BJ375=\"\",\"\",'[1]REAL IMAE(M)'!BJ375)","v":-9.4886941626688088},{"$f":"IF('[1]REAL IMAE(M)'!BK375=\"\",\"\",'[1]REAL IMAE(M)'!BK375)","v":1.7231937074992487},{"$f":"IF('[1]REAL IMAE(M)'!BN375=\"\",\"\",'[1]REAL IMAE(M)'!BN375)","v":-12.913652699754575},{"$f":"IF('[1]REAL IMAE(M)'!BO375=\"\",\"\",'[1]REAL IMAE(M)'!BO375)","v":1.0526433306172089},{"$f":"IF('[1]EXT RIN(M)'!$K375=\"\",\"\",'[1]EXT RIN(M)'!$K375)","v":45766.896163788471},null,{"$f":"IF('[1]EXT RIN(M)'!$L375=\"\",\"\",'[1]EXT RIN(M)'!$L375)","v":51676.59941306847},null,{"$f":"IF('[1]MONE(M)CARD'!EG375=\"\",\"\",'[1]MONE(M)CARD'!EG375)","v":47207.380009145811},{"$f":"IF('[1]MONE(M)CARD'!EK375=\"\",\"\",'[1]MONE(M)CARD'!EK375)","v":62068.972606333831},{"$f":"IF('[1]MONE(M)CARD'!EP375=\"\",\"\",'[1]MONE(M)CARD'!EP375)","v":35753.735779825045},{"$f":"IF('[1]MONE(M)CARD'!ES375=\"\",\"\",'[1]MONE(M)CARD'!ES375)","v":24.167202744927806},{"$f":"IF('[1]MONE(M)CARD'!EV375=\"\",\"\",'[1]MONE(M)CARD'!EV375)","v":12.191506678450637},{"$f":"IF('[1]MONE(M)CARD'!EZ375=\"\",\"\",'[1]MONE(M)CARD'!EZ375)","v":12.796299718014993},{"$f":"IF('[1]MONE(M)CAPARD'!FC375=\"\",\"\",'[1]MONE(M)CAPARD'!FC375)","v":55451.516215455813},{"$f":"IF('[1]MONE(M)CAPARD'!FG375=\"\",\"\",'[1]MONE(M)CAPARD'!FG375)","v":97127.342847233842},{"$f":"IF('[1]MONE(M)CAPARD'!FL375=\"\",\"\",'[1]MONE(M)CAPARD'!FL375)","v":35753.735779825016},{"$f":"IF('[1]MONE(M)CAPARD'!FO375=\"\",\"\",'[1]MONE(M)CAPARD'!FO375)","v":20.851929729660633},{"$f":"IF('[1]MONE(M)CAPARD'!FR375=\"\",\"\",'[1]MONE(M)CAPARD'!FR375)","v":10.076302861365448},{"$f":"IF('[1]MONE(M)CAPARD'!FV375=\"\",\"\",'[1]MONE(M)CAPARD'!FV375)","v":10.922683869078309},{"$f":"IF('[1]MONE(M)CARD'!FV375=\"\",\"\",'[1]MONE(M)CARD'!FV375)","v":1907.9979425277852},{"$f":"IF('[1]MONE(M)CARD'!GD375=\"\",\"\",'[1]MONE(M)CARD'!GD375)","v":129.98080462929224},{"$f":"IF('[1]MONE(M)CARD'!GE375=\"\",\"\",'[1]MONE(M)CARD'!GE375)","v":14265.065981479152},{"$f":"IF(AD368=\"\",\"\",((AD368/AD355)-1)*100)","v":18.558948544100229},{"$f":"IF('[9]II.2.Balance OSD-Activos'!J233=\"\",\"\",'[9]II.2.Balance OSD-Activos'!J233)","v":373.02172446546558},{"$f":"IF('[9]II.2.Balance OSD-Activos'!N233=\"\",\"\",'[9]II.2.Balance OSD-Activos'!N233)","v":1110.4465021432873},{"$f":"IF('[9]II.2.Balance OSD-Activos'!R233=\"\",\"\",'[9]II.2.Balance OSD-Activos'!R233)","v":57269.777967730333},{"$f":"IF('[9]II.2.Balance OSD-Activos'!S233=\"\",\"\",'[9]II.2.Balance OSD-Activos'!S233)","v":60877.406007114259},{"$f":"IFERROR(+AF368+AH368,\"\")","v":57642.799692195797},{"$f":"IF(OR(AF368=\"\",AG368=\"\",AH368=\"\",AI368=\"\"),\"\",SUM(AF368:AI368))","v":119630.65220145334},75.651753093953289,3.9602694736410538,-24.900931443421868,3.6846321042287355,1.1730884358750693,2.1636040973719961,-1.1036852745660131,{"$f":"IF('[1]MONE(M)CAPARD'!GS375=\"\",\"\",'[1]MONE(M)CAPARD'!GS375)","v":28692.426206284948},{"$f":"IF('[1]MONE(M)CARD'!HA375=\"\",\"\",'[1]MONE(M)CAPARD'!HA375)","v":16552.671164359155},{"$f":"IF('[1]MONE(M)CAPARD'!HB375=\"\",\"\",'[1]MONE(M)CAPARD'!HB375)","v":12139.755041925793},"n.d.",{"$f":"IF('[10]II.2.Balance OSD-Activos'!J233=\"\",\"\",'[10]II.2.Balance OSD-Activos'!J233)","v":2749.8841106154655},{"$f":"IF('[10]II.2.Balance OSD-Activos'!N233=\"\",\"\",'[10]II.2.Balance OSD-Activos'!N233)","v":1710.0508532332874},{"$f":"IF('[10]II.2.Balance OSD-Activos'!R233=\"\",\"\",'[10]II.2.Balance OSD-Activos'!R233)","v":80516.009579780337},{"$f":"IF('[10]II.2.Balance OSD-Activos'!S233=\"\",\"\",'[10]II.2.Balance OSD-Activos'!S233)","v":87049.317914024257},{"$f":"IFERROR(+AW368+AY368,\"\")","v":83265.893690395809},{"$f":"IF(OR(AW368=\"\",AX368=\"\",AY368=\"\",AZ368=\"\"),\"\",SUM(AW368:AZ368))","v":172025.26245765336},{"$f":"IF(OR(AW368=\"\",AW356=\"\"),\"\",((AW368/AW356)-1)*100)","v":14.7126552869153},{"$f":"IF(OR(BA368=\"\",BA356=\"\"),\"\",((BA368/BA356)-1)*100)","v":2.3323794489956473},{"$f":"IF(OR(AX368=\"\",AX356=\"\"),\"\",((AX368/AX356)-1)*100)","v":-8.592091016539138},{"$f":"IF(OR(AY368=\"\",AY356=\"\"),\"\",((AY368/AY356)-1)*100)","v":1.956571156684328},{"$f":"IF(OR(AZ368=\"\",AZ356=\"\"),\"\",((AZ368/AZ356)-1)*100)","v":1.7979687718835402},{"$f":"IF(OR(BB368=\"\",BB356=\"\"),\"\",((BB368/BB356)-1)*100)","v":1.9404650105160348},{"$f":"IF(OR(BH368=\"\",BH367=\"\"),\"\",BH368-BH367)","v":-1.004319614125615},{"$f":"IF('[1]MONE(M)CAPARD'!AS375=\"\",\"\",'[1]MONE(M)CAPARD'!AS375)","v":0.75},{"$f":"IF('[1]MONE(M)CAPARD'!AT375=\"\",\"\",'[1]MONE(M)CAPARD'!AT375)","v":"n.a."},{"$f":"IF('[1]MONE(M)CAPARD'!AU375=\"\",\"\",'[1]MONE(M)CAPARD'!AU375)","v":1.75},{"$f":"IF('[1]MONE(M)CAPARD'!AV375=\"\",\"\",'[1]MONE(M)CAPARD'!AV375)","v":4.5},{"$f":"IF('[1]MONE(M)CAPARD'!AW375=\"\",\"\",'[1]MONE(M)CAPARD'!AW375)","v":4.5},{"$f":"IF('[1]MONE(M)CAPARD'!AX375=\"\",\"\",'[1]MONE(M)CAPARD'!AX375)","v":3.5},{"$f":"IF('[1]MONE(M)CAPARD'!AY375=\"\",\"\",'[1]MONE(M)CAPARD'!AY375)","v":"n.a."},{"$f":"IF('[1]FISCAL(M)'!$K375=\"\",\"\",'[1]FISCAL(M)'!$K375)","v":-8098.6889799146702},{"$f":"IF('[1]FISCAL(M)'!$L375=\"\",\"\",'[1]FISCAL(M)'!$L375)","v":-10848.488979914669},{"$f":"IF('[1]FISCAL(M)'!$AY375=\"\",\"\",'[1]FISCAL(M)'!$AY375)","v":160613.01178351726},{"$f":"IF('[1]FISCAL(M)'!$BI375=\"\",\"\",'[1]FISCAL(M)'!$BI375)","v":85091.806173738514},{"$f":"IF('[1]FISCAL(M)'!$BS375=\"\",\"\",'[1]FISCAL(M)'!$BS375)","v":75521.205609778728},{"$f":"IF('[1]FISCAL(M)'!$AZ375=\"\",\"\",'[1]FISCAL(M)'!$AZ375)","v":193657.60178351725},{"$f":"IF('[1]FISCAL(M)'!$BJ375=\"\",\"\",'[1]FISCAL(M)'!$BJ375)","v":91873.78617373851},{"$f":"IF('[1]FISCAL(M)'!$BT375=\"\",\"\",'[1]FISCAL(M)'!$BT375)","v":101783.81560977873},{"$f":"IF('[2]MONE(M)'!$AO375=\"\",\"\",'[2]MONE(M)'!$AO375)","v":22095634.528315797},{"$f":"IF('[3]MONE(M)'!$AO375=\"\",\"\",'[3]MONE(M)'!$AO375)","v":14327.95091824},{"$f":"IF('[4]MONE(M)'!$AO375=\"\",\"\",'[4]MONE(M)'!$AO375)","v":223800.74096534547},{"$f":"+'[5]MONE(M)'!$AO375","v":396250.69278605853},{"$f":"IF('[6]MONE(M)'!$AO375=\"\",\"\",'[6]MONE(M)'!$AO375)","v":120431.58566582217},{"$f":"IF('[7]MONE(M)'!$AO375=\"\",\"\",'[7]MONE(M)'!$AO375)","v":1341007.6719844202},{"$f":"IF('[8]MONE(M)'!$AO375=\"\",\"\",'[8]MONE(M)'!$AO375)","v":53295.340445430003},-0.14256330020202546,5.580481628732481,7.0593657906853791,7.9701255998888998,-7.6598862791007694,13.173957949804716,1.2474500594518823,{"$f":"'[1]FISCAL(M)'!$K375","v":-8098.6889799146702},{"$f":"+'[1]REAL(A)'!$AO$40","v":279528.85554939549},-2.8972640280722479,{"$f":"IF('[1]FISCAL(M)'!$L375=\"\",\"\",'[1]FISCAL(M)'!$L375)","v":-10848.488979914669},{"$f":"+'[1]REAL(A)'!$AP$40","v":333505.88843652798},-3.2528627997461359,167134.04267509971,{"$f":"'[1]Gráfico REM'!BG369","v":34244.262983595137},{"$f":"'[1]Gráfico REM'!BH369","v":123849.89902405307},{"$f":"'[1]Gráfico REM'!BI369","v":9039.8806674514981},4.6843982461486355,17.119936759104991,2.0677726844608335,-0.39450544046113478,244170.10671605973,{"$f":"'[1]Gráfico REM'!BK369","v":36400.171976725134},{"$f":"'[1]Gráfico REM'!BL369","v":177145.23946948309},{"$f":"'[1]Gráfico REM'!BM369","v":30624.695269851494},3.3964894829506376,15.637199614443498,1.8195784747202293,-0.21885582702754203]
[2020,"julio","2020-julio",{"$f":"IF('[1]REAL IPC(M)'!$AL376=\"\",\"\",+'[1]REAL IPC(M)'!$AL376)","v":2.5710448969811006},{"$f":"IF('[1]REAL IPC(M)'!$BE376=\"\",\"\",+'[1]REAL IPC(M)'!$BE376)","v":3.6991569135142788},{"$f":"IF('[1]REAL IPC(M)'!$AM376=\"\",\"\",+'[1]REAL IPC(M)'!$AM376)","v":1.8641880670982713},{"$f":"IF('[1]REAL IPC(M)'!$BI376=\"\",\"\",+'[1]REAL IPC(M)'!$BI376)","v":3.1493787799374617},{"$f":"IF('[1]REAL IMAE(M)'!BJ376=\"\",\"\",'[1]REAL IMAE(M)'!BJ376)","v":-7.5807727298939138},{"$f":"IF('[1]REAL IMAE(M)'!BK376=\"\",\"\",'[1]REAL IMAE(M)'!BK376)","v":1.8383943543914372},{"$f":"IF('[1]REAL IMAE(M)'!BN376=\"\",\"\",'[1]REAL IMAE(M)'!BN376)","v":-11.097118334070732},{"$f":"IF('[1]REAL IMAE(M)'!BO376=\"\",\"\",'[1]REAL IMAE(M)'!BO376)","v":1.1886983734913814},{"$f":"IF('[1]EXT RIN(M)'!$K376=\"\",\"\",'[1]EXT RIN(M)'!$K376)","v":46130.955335859893},null,{"$f":"IF('[1]EXT RIN(M)'!$L376=\"\",\"\",'[1]EXT RIN(M)'!$L376)","v":52703.267982909892},null,{"$f":"IF('[1]MONE(M)CARD'!EG376=\"\",\"\",'[1]MONE(M)CARD'!EG376)","v":47974.450819132675},{"$f":"IF('[1]MONE(M)CARD'!EK376=\"\",\"\",'[1]MONE(M)CARD'!EK376)","v":62256.163007669209},{"$f":"IF('[1]MONE(M)CARD'!EP376=\"\",\"\",'[1]MONE(M)CARD'!EP376)","v":36559.008477007796},{"$f":"IF('[1]MONE(M)CARD'!ES376=\"\",\"\",'[1]MONE(M)CARD'!ES376)","v":23.8137427956312},{"$f":"IF('[1]MONE(M)CARD'!EV376=\"\",\"\",'[1]MONE(M)CARD'!EV376)","v":11.917464681131129},{"$f":"IF('[1]MONE(M)CARD'!EZ376=\"\",\"\",'[1]MONE(M)CARD'!EZ376)","v":12.978381899588953},{"$f":"IF('[1]MONE(M)CAPARD'!FC376=\"\",\"\",'[1]MONE(M)CAPARD'!FC376)","v":56186.74904635267},{"$f":"IF('[1]MONE(M)CAPARD'!FG376=\"\",\"\",'[1]MONE(M)CAPARD'!FG376)","v":97368.415747299208},{"$f":"IF('[1]MONE(M)CAPARD'!FL376=\"\",\"\",'[1]MONE(M)CAPARD'!FL376)","v":36559.008477007796},{"$f":"IF('[1]MONE(M)CAPARD'!FO376=\"\",\"\",'[1]MONE(M)CAPARD'!FO376)","v":20.704995265498471},{"$f":"IF('[1]MONE(M)CAPARD'!FR376=\"\",\"\",'[1]MONE(M)CAPARD'!FR376)","v":9.9555981577621022},{"$f":"IF('[1]MONE(M)CAPARD'!FV376=\"\",\"\",'[1]MONE(M)CAPARD'!FV376)","v":11.121746424405909},{"$f":"IF('[1]MONE(M)CARD'!FV376=\"\",\"\",'[1]MONE(M)CARD'!FV376)","v":1938.3078901692215},{"$f":"IF('[1]MONE(M)CARD'!GD376=\"\",\"\",'[1]MONE(M)CARD'!GD376)","v":114.71522284302308},{"$f":"IF('[1]MONE(M)CARD'!GE376=\"\",\"\",'[1]MONE(M)CARD'!GE376)","v":13829.477959081774},{"$f":"IF(AD369=\"\",\"\",((AD369/AD356)-1)*100)","v":8.2584511540995109},{"$f":"IF('[9]II.2.Balance OSD-Activos'!J234=\"\",\"\",'[9]II.2.Balance OSD-Activos'!J234)","v":368.13581209553661},{"$f":"IF('[9]II.2.Balance OSD-Activos'!N234=\"\",\"\",'[9]II.2.Balance OSD-Activos'!N234)","v":1047.8545804456637},{"$f":"IF('[9]II.2.Balance OSD-Activos'!R234=\"\",\"\",'[9]II.2.Balance OSD-Activos'!R234)","v":56204.851602386494},{"$f":"IF('[9]II.2.Balance OSD-Activos'!S234=\"\",\"\",'[9]II.2.Balance OSD-Activos'!S234)","v":60826.162743747074},{"$f":"IFERROR(+AF369+AH369,\"\")","v":56572.987414482028},{"$f":"IF(OR(AF369=\"\",AG369=\"\",AH369=\"\",AI369=\"\"),\"\",SUM(AF369:AI369))","v":118447.00473867476},65.480266275180426,{"$f":"IF(OR(AJ369=\"\",AJ357=\"\"),\"\",((AJ369/AJ357)-1)*100)","v":3.6768184936631254},{"$f":"IF(OR(AG369=\"\",AG357=\"\"),\"\",((AG369/AG357)-1)*100)","v":-20.026643443392654},{"$f":"IF(OR(AH369=\"\",AH357=\"\"),\"\",((AH369/AH357)-1)*100)","v":3.4238180279200892},{"$f":"IF(OR(AI369=\"\",AI357=\"\"),\"\",((AI369/AI357)-1)*100)","v":-0.88205485203128875},{"$f":"IF(OR(AK369=\"\",AK357=\"\"),\"\",((AK369/AK357)-1)*100)","v":1.0257402035077634},{"$f":"IF(OR(AQ369=\"\",AQ368=\"\"),\"\",AQ369-AQ368)","v":-1.1378638938642327},{"$f":"IF('[1]MONE(M)CAPARD'!GS376=\"\",\"\",'[1]MONE(M)CAPARD'!GS376)","v":29689.440938329422},{"$f":"IF('[1]MONE(M)CARD'!HA376=\"\",\"\",'[1]MONE(M)CAPARD'!HA376)","v":16078.473166451773},{"$f":"IF('[1]MONE(M)CAPARD'!HB376=\"\",\"\",'[1]MONE(M)CAPARD'!HB376)","v":13610.967771877649},"n.d.",{"$f":"IF('[10]II.2.Balance OSD-Activos'!J234=\"\",\"\",'[10]II.2.Balance OSD-Activos'!J234)","v":2784.8390046855366},{"$f":"IF('[10]II.2.Balance OSD-Activos'!N234=\"\",\"\",'[10]II.2.Balance OSD-Activos'!N234)","v":1642.2397381456638},{"$f":"IF('[10]II.2.Balance OSD-Activos'!R234=\"\",\"\",'[10]II.2.Balance OSD-Activos'!R234)","v":79519.299114496505},{"$f":"IF('[10]II.2.Balance OSD-Activos'!S234=\"\",\"\",'[10]II.2.Balance OSD-Activos'!S234)","v":87014.290251557075},{"$f":"IFERROR(+AW369+AY369,\"\")","v":82304.13811918204},{"$f":"IF(OR(AW369=\"\",AX369=\"\",AY369=\"\",AZ369=\"\"),\"\",SUM(AW369:AZ369))","v":170960.66810888477},{"$f":"IF(OR(AW369=\"\",AW357=\"\"),\"\",((AW369/AW357)-1)*100)","v":16.547253625024695},{"$f":"IF(OR(BA369=\"\",BA357=\"\"),\"\",((BA369/BA357)-1)*100)","v":2.4088148515844621},{"$f":"IF(OR(AX369=\"\",AX357=\"\"),\"\",((AX369/AX357)-1)*100)","v":-2.4720625361935311},{"$f":"IF(OR(AY369=\"\",AY357=\"\"),\"\",((AY369/AY357)-1)*100)","v":1.9755802395032829},{"$f":"IF(OR(AZ369=\"\",AZ357=\"\"),\"\",((AZ369/AZ357)-1)*100)","v":0.22287457482375039},{"$f":"IF(OR(BB369=\"\",BB357=\"\"),\"\",((BB369/BB357)-1)*100)","v":1.236312715561505},{"$f":"IF(OR(BH369=\"\",BH368=\"\"),\"\",BH369-BH368)","v":-0.7041522949545298},{"$f":"IF('[1]MONE(M)CAPARD'!AS376=\"\",\"\",'[1]MONE(M)CAPARD'!AS376)","v":0.75},{"$f":"IF('[1]MONE(M)CAPARD'!AT376=\"\",\"\",'[1]MONE(M)CAPARD'!AT376)","v":"n.a."},{"$f":"IF('[1]MONE(M)CAPARD'!AU376=\"\",\"\",'[1]MONE(M)CAPARD'!AU376)","v":1.75},{"$f":"IF('[1]MONE(M)CAPARD'!AV376=\"\",\"\",'[1]MONE(M)CAPARD'!AV376)","v":4.5},{"$f":"IF('[1]MONE(M)CAPARD'!AW376=\"\",\"\",'[1]MONE(M)CAPARD'!AW376)","v":4.5},{"$f":"IF('[1]MONE(M)CAPARD'!AX376=\"\",\"\",'[1]MONE(M)CAPARD'!AX376)","v":3.5},{"$f":"IF('[1]MONE(M)CAPARD'!AY376=\"\",\"\",'[1]MONE(M)CAPARD'!AY376)","v":"n.a."},{"$f":"IF('[1]FISCAL(M)'!$K376=\"\",\"\",'[1]FISCAL(M)'!$K376)","v":-9904.5782821615339},{"$f":"IF('[1]FISCAL(M)'!$L376=\"\",\"\",'[1]FISCAL(M)'!$L376)","v":"n.d."},{"$f":"IF('[1]FISCAL(M)'!$AY376=\"\",\"\",'[1]FISCAL(M)'!$AY376)","v":162581.94266539402},{"$f":"IF('[1]FISCAL(M)'!$BI376=\"\",\"\",'[1]FISCAL(M)'!$BI376)","v":86188.999634662134},{"$f":"IF('[1]FISCAL(M)'!$BS376=\"\",\"\",'[1]FISCAL(M)'!$BS376)","v":76392.943030731869},{"$f":"IF('[1]FISCAL(M)'!$AZ376=\"\",\"\",'[1]FISCAL(M)'!$AZ376)","v":196048.362665394},{"$f":"IF('[1]FISCAL(M)'!$BJ376=\"\",\"\",'[1]FISCAL(M)'!$BJ376)","v":92989.629634662124},{"$f":"IF('[1]FISCAL(M)'!$BT376=\"\",\"\",'[1]FISCAL(M)'!$BT376)","v":103058.73303073188},{"$f":"IF('[2]MONE(M)'!$AO376=\"\",\"\",'[2]MONE(M)'!$AO376)","v":22170718.192790329},{"$f":"IF('[3]MONE(M)'!$AO376=\"\",\"\",'[3]MONE(M)'!$AO376)","v":14343.920235869999},{"$f":"IF('[4]MONE(M)'!$AO376=\"\",\"\",'[4]MONE(M)'!$AO376)","v":222470.44728606858},{"$f":"+'[5]MONE(M)'!$AO376","v":393716.58578186057},{"$f":"IF('[6]MONE(M)'!$AO376=\"\",\"\",'[6]MONE(M)'!$AO376)","v":119838.5669241743},{"$f":"IF('[7]MONE(M)'!$AO376=\"\",\"\",'[7]MONE(M)'!$AO376)","v":1311897.8496489399},{"$f":"IF('[8]MONE(M)'!$AO376=\"\",\"\",'[8]MONE(M)'!$AO376)","v":53663.978342709997},1.4508241928370413,5.290682378834588,6.4960332717034053,6.8629365371313478,-5.5598061915138057,9.9251414146743997,1.8910484289788698,{"$f":"'[1]FISCAL(M)'!$K376","v":-9904.5782821615339},{"$f":"+'[1]REAL(A)'!$AO$40","v":279528.85554939549},-3.5433115707123473,null,{"$f":"+'[1]REAL(A)'!$AP$40","v":333505.88843652798},"n.d.",{"$f":"+IF(OR(CT369=\"\",+CU369=\"\",+CV369=\"\"),\"\",(CT369+CU369+CV369))","v":166707.03722174725},{"$f":"'[1]Gráfico REM'!BG370","v":34929.668717308552},{"$f":"'[1]Gráfico REM'!BH370","v":122818.7266469977},{"$f":"'[1]Gráfico REM'!BI370","v":8958.6418574409909},{"$f":"IFERROR(+((CS369/CS357)-1)*100,\"\")","v":3.8550897152290098},{"$f":"IFERROR(+((CT369/CT357)-1)*100,\"\")","v":16.665303562850763},{"$f":"IFERROR(+((CU369/CU357)-1)*100,\"\")","v":0.97123152320841566},{"$f":"IFERROR(+((CV369/CV357)-1)*100,\"\")","v":0.19196050167620271},{"$f":"+IF(OR(DB369=\"\",+DC369=\"\",+DD369=\"\"),\"\",(DB369+DC369+DD369))","v":243458.08457937723},{"$f":"'[1]Gráfico REM'!BK370","v":37154.226206498555},{"$f":"'[1]Gráfico REM'!BL370","v":176482.70498970771},{"$f":"'[1]Gráfico REM'!BM370","v":29821.153383170986},{"$f":"IFERROR(+((DA369/DA357)-1)*100,\"\")","v":2.7432121721286284},{"$f":"IFERROR(+((DB369/DB357)-1)*100,\"\")","v":15.331875096004532},{"$f":"IFERROR(+((DC369/DC357)-1)*100,\"\")","v":1.2491628569136104},{"$f":"IFERROR(+((DD369/DD357)-1)*100,\"\")","v":-2.0247228889771929}]
[2020,"agosto","2020-agosto",{"$f":"IF('[1]REAL IPC(M)'!$AL377=\"\",\"\",+'[1]REAL IPC(M)'!$AL377)","v":3.0229861755508569},{"$f":"IF('[1]REAL IPC(M)'!$BE377=\"\",\"\",+'[1]REAL IPC(M)'!$BE377)","v":3.7795588547878012},{"$f":"IF('[1]REAL IPC(M)'!$AM377=\"\",\"\",+'[1]REAL IPC(M)'!$AM377)","v":2.2918412329121951},{"$f":"IF('[1]REAL IPC(M)'!$BI377=\"\",\"\",+'[1]REAL IPC(M)'!$BI377)","v":3.2317116259197975},{"$f":"IF('[1]REAL IMAE(M)'!BJ377=\"\",\"\",'[1]REAL IMAE(M)'!BJ377)","v":-5.7440463237901085},{"$f":"IF('[1]REAL IMAE(M)'!BK377=\"\",\"\",'[1]REAL IMAE(M)'!BK377)","v":1.9729364948045891},{"$f":"IF('[1]REAL IMAE(M)'!BN377=\"\",\"\",'[1]REAL IMAE(M)'!BN377)","v":-9.3837414034780302},{"$f":"IF('[1]REAL IMAE(M)'!BO377=\"\",\"\",'[1]REAL IMAE(M)'!BO377)","v":1.3517817392739939},{"$f":"IF('[1]EXT RIN(M)'!$K377=\"\",\"\",'[1]EXT RIN(M)'!$K377)","v":46573.956327584398},null,{"$f":"IF('[1]EXT RIN(M)'!$L377=\"\",\"\",'[1]EXT RIN(M)'!$L377)","v":53355.206943594399},null,{"$f":"IF('[1]MONE(M)CARD'!EG377=\"\",\"\",'[1]MONE(M)CARD'!EG377)","v":48736.589534115948},{"$f":"IF('[1]MONE(M)CARD'!EK377=\"\",\"\",'[1]MONE(M)CARD'!EK377)","v":62981.563071239842},{"$f":"IF('[1]MONE(M)CARD'!EP377=\"\",\"\",'[1]MONE(M)CARD'!EP377)","v":36750.185893307338},{"$f":"IF('[1]MONE(M)CARD'!ES377=\"\",\"\",'[1]MONE(M)CARD'!ES377)","v":25.797898724432166},{"$f":"IF('[1]MONE(M)CARD'!EV377=\"\",\"\",'[1]MONE(M)CARD'!EV377)","v":13.04912974922825},{"$f":"IF('[1]MONE(M)CARD'!EZ377=\"\",\"\",'[1]MONE(M)CARD'!EZ377)","v":13.704705567834342},{"$f":"IF('[1]MONE(M)CAPARD'!FC377=\"\",\"\",'[1]MONE(M)CAPARD'!FC377)","v":56938.949373755953},{"$f":"IF('[1]MONE(M)CAPARD'!FG377=\"\",\"\",'[1]MONE(M)CAPARD'!FG377)","v":98624.322331419855},{"$f":"IF('[1]MONE(M)CAPARD'!FL377=\"\",\"\",'[1]MONE(M)CAPARD'!FL377)","v":36750.185893307324},{"$f":"IF('[1]MONE(M)CAPARD'!FO377=\"\",\"\",'[1]MONE(M)CAPARD'!FO377)","v":22.153326241190708},{"$f":"IF('[1]MONE(M)CAPARD'!FR377=\"\",\"\",'[1]MONE(M)CAPARD'!FR377)","v":10.88936590355074},{"$f":"IF('[1]MONE(M)CAPARD'!FV377=\"\",\"\",'[1]MONE(M)CAPARD'!FV377)","v":11.785537561463478},{"$f":"IF('[1]MONE(M)CARD'!FV377=\"\",\"\",'[1]MONE(M)CARD'!FV377)","v":2160.7734728860778},{"$f":"IF('[1]MONE(M)CARD'!GD377=\"\",\"\",'[1]MONE(M)CARD'!GD377)","v":130.198014140461},{"$f":"IF('[1]MONE(M)CARD'!GE377=\"\",\"\",'[1]MONE(M)CARD'!GE377)","v":13804.269467726626},3.9950129781957999,{"$f":"IF('[9]II.2.Balance OSD-Activos'!J235=\"\",\"\",'[9]II.2.Balance OSD-Activos'!J235)","v":357.4051372076575},{"$f":"IF('[9]II.2.Balance OSD-Activos'!N235=\"\",\"\",'[9]II.2.Balance OSD-Activos'!N235)","v":1012.588178705542},{"$f":"IF('[9]II.2.Balance OSD-Activos'!R235=\"\",\"\",'[9]II.2.Balance OSD-Activos'!R235)","v":55915.188418447324},{"$f":"IF('[9]II.2.Balance OSD-Activos'!S235=\"\",\"\",'[9]II.2.Balance OSD-Activos'!S235)","v":60513.356659933583},56272.593555654981,117798.5383942941,60.23043954082685,3.0629140407313349,-14.226337125703115,2.8284109922891654,-1.7695102540311147,0.35297104554965486,-0.67276915795810854,{"$f":"IF('[1]MONE(M)CAPARD'!GS377=\"\",\"\",'[1]MONE(M)CAPARD'!GS377)","v":30655.974931043191},{"$f":"IF('[1]MONE(M)CARD'!HA377=\"\",\"\",'[1]MONE(M)CAPARD'!HA377)","v":15864.211921396625},{"$f":"IF('[1]MONE(M)CAPARD'!HB377=\"\",\"\",'[1]MONE(M)CAPARD'!HB377)","v":14791.763009646565},"n.d.",{"$f":"IF('[10]II.2.Balance OSD-Activos'!J235=\"\",\"\",'[10]II.2.Balance OSD-Activos'!J235)","v":2843.445359547658},{"$f":"IF('[10]II.2.Balance OSD-Activos'!N235=\"\",\"\",'[10]II.2.Balance OSD-Activos'!N235)","v":1615.1223041955418},{"$f":"IF('[10]II.2.Balance OSD-Activos'!R235=\"\",\"\",'[10]II.2.Balance OSD-Activos'!R235)","v":78491.268657737324},{"$f":"IF('[10]II.2.Balance OSD-Activos'!S235=\"\",\"\",'[10]II.2.Balance OSD-Activos'!S235)","v":86716.433496303594},81334.714017284976,169666.26981778414,17.469547095322223,0.91912522593498025,-2.8242444090167296,0.40665362262657379,-0.57069826626096054,0.11570703898717838,-1.1206056765743266,{"$f":"IF('[1]MONE(M)CAPARD'!AS377=\"\",\"\",'[1]MONE(M)CAPARD'!AS377)","v":0.75},{"$f":"IF('[1]MONE(M)CAPARD'!AT377=\"\",\"\",'[1]MONE(M)CAPARD'!AT377)","v":"n.a."},{"$f":"IF('[1]MONE(M)CAPARD'!AU377=\"\",\"\",'[1]MONE(M)CAPARD'!AU377)","v":1.75},{"$f":"IF('[1]MONE(M)CAPARD'!AV377=\"\",\"\",'[1]MONE(M)CAPARD'!AV377)","v":3.75},{"$f":"IF('[1]MONE(M)CAPARD'!AW377=\"\",\"\",'[1]MONE(M)CAPARD'!AW377)","v":4.25},{"$f":"IF('[1]MONE(M)CAPARD'!AX377=\"\",\"\",'[1]MONE(M)CAPARD'!AX377)","v":3.5},{"$f":"IF('[1]MONE(M)CAPARD'!AY377=\"\",\"\",'[1]MONE(M)CAPARD'!AY377)","v":"n.a."},{"$f":"IF('[1]FISCAL(M)'!$K377=\"\",\"\",'[1]FISCAL(M)'!$K377)","v":-11664.074522260404},{"$f":"IF('[1]FISCAL(M)'!$L377=\"\",\"\",'[1]FISCAL(M)'!$L377)","v":"n.d."},{"$f":"IF('[1]FISCAL(M)'!$AY377=\"\",\"\",'[1]FISCAL(M)'!$AY377)","v":164405.25539106701},{"$f":"IF('[1]FISCAL(M)'!$BI377=\"\",\"\",'[1]FISCAL(M)'!$BI377)","v":87662.460065332663},{"$f":"IF('[1]FISCAL(M)'!$BS377=\"\",\"\",'[1]FISCAL(M)'!$BS377)","v":76742.795325734347},{"$f":"IF('[1]FISCAL(M)'!$AZ377=\"\",\"\",'[1]FISCAL(M)'!$AZ377)","v":197984.655391067},{"$f":"IF('[1]FISCAL(M)'!$BJ377=\"\",\"\",'[1]FISCAL(M)'!$BJ377)","v":94461.690065332659},{"$f":"IF('[1]FISCAL(M)'!$BT377=\"\",\"\",'[1]FISCAL(M)'!$BT377)","v":103522.96532573435},{"$f":"IF('[2]MONE(M)'!$AO377=\"\",\"\",'[2]MONE(M)'!$AO377)","v":22303672.382524308},{"$f":"IF('[3]MONE(M)'!$AO377=\"\",\"\",'[3]MONE(M)'!$AO377)","v":14263.436860500002},{"$f":"IF('[4]MONE(M)'!$AO377=\"\",\"\",'[4]MONE(M)'!$AO377)","v":222719.48001334921},{"$f":"+'[5]MONE(M)'!$AO377","v":392053.75985785911},{"$f":"IF('[6]MONE(M)'!$AO377=\"\",\"\",'[6]MONE(M)'!$AO377)","v":119117.95275686838},{"$f":"IF('[7]MONE(M)'!$AO377=\"\",\"\",'[7]MONE(M)'!$AO377)","v":1307421.484529},{"$f":"IF('[8]MONE(M)'!$AO377=\"\",\"\",'[8]MONE(M)'!$AO377)","v":51982.96225781001},1.9689675511775473,4.2987084406272968,6.2586133975221392,5.8038577075112174,-5.4176795058657357,8.6086600523355159,-1.9347165705324465,{"$f":"'[1]FISCAL(M)'!$K377","v":-11664.074522260404},{"$f":"+'[1]REAL(A)'!$AO$40","v":279528.85554939549},-4.1727622357038721,null,{"$f":"+'[1]REAL(A)'!$AP$40","v":333505.88843652798},"n.d.",{"$f":"+IF(OR(CT370=\"\",+CU370=\"\",+CV370=\"\"),\"\",(CT370+CU370+CV370))","v":168540.67377726911},{"$f":"'[1]Gráfico REM'!BG371","v":37491.163599173844},{"$f":"'[1]Gráfico REM'!BH371","v":122236.55066485118},{"$f":"'[1]Gráfico REM'!BI371","v":8812.9595132440827},{"$f":"IFERROR(+((CS370/CS358)-1)*100,\"\")","v":4.6576698034738406},{"$f":"IFERROR(+((CT370/CT358)-1)*100,\"\")","v":24.609540785674678},{"$f":"IFERROR(+((CU370/CU358)-1)*100,\"\")","v":0.30437583468745366},{"$f":"IFERROR(+((CV370/CV358)-1)*100,\"\")","v":-3.0203340295564707},245003.09840539913,{"$f":"'[1]Gráfico REM'!BK371","v":40800.013839183841},{"$f":"'[1]Gráfico REM'!BL371","v":174219.5129226612},{"$f":"'[1]Gráfico REM'!BM371","v":29983.571643554082},3.0544134561839131,26.072941591583131,-0.37434650069305686,-1.7096861318963708]
[2020,"septiembre","2020-septiembre",{"$f":"IF('[1]REAL IPC(M)'!$AL378=\"\",\"\",+'[1]REAL IPC(M)'!$AL378)","v":3.3636768273741291},{"$f":"IF('[1]REAL IPC(M)'!$BE378=\"\",\"\",+'[1]REAL IPC(M)'!$BE378)","v":3.8625270302695247},{"$f":"IF('[1]REAL IPC(M)'!$AM378=\"\",\"\",+'[1]REAL IPC(M)'!$AM378)","v":2.5979949005959568},{"$f":"IF('[1]REAL IPC(M)'!$BI378=\"\",\"\",+'[1]REAL IPC(M)'!$BI378)","v":3.3177771731166983},{"$f":"IF('[1]REAL IMAE(M)'!BJ378=\"\",\"\",'[1]REAL IMAE(M)'!BJ378)","v":-3.8454623988670611},{"$f":"IF('[1]REAL IMAE(M)'!BK378=\"\",\"\",'[1]REAL IMAE(M)'!BK378)","v":2.1248344763808102},{"$f":"IF('[1]REAL IMAE(M)'!BN378=\"\",\"\",'[1]REAL IMAE(M)'!BN378)","v":-6.9491200785738894},{"$f":"IF('[1]REAL IMAE(M)'!BO378=\"\",\"\",'[1]REAL IMAE(M)'!BO378)","v":1.5397229276327806},{"$f":"IF('[1]EXT RIN(M)'!$K378=\"\",\"\",'[1]EXT RIN(M)'!$K378)","v":50486.732410726865},null,{"$f":"IF('[1]EXT RIN(M)'!$L378=\"\",\"\",'[1]EXT RIN(M)'!$L378)","v":59529.729615596865},null,{"$f":"IF('[1]MONE(M)CARD'!EG378=\"\",\"\",'[1]MONE(M)CARD'!EG378)","v":49282.276143394898},{"$f":"IF('[1]MONE(M)CARD'!EK378=\"\",\"\",'[1]MONE(M)CARD'!EK378)","v":63114.972125104025},{"$f":"IF('[1]MONE(M)CARD'!EP378=\"\",\"\",'[1]MONE(M)CARD'!EP378)","v":36359.049391742563},{"$f":"IF('[1]MONE(M)CARD'!ES378=\"\",\"\",'[1]MONE(M)CARD'!ES378)","v":27.135238731350885},{"$f":"IF('[1]MONE(M)CARD'!EV378=\"\",\"\",'[1]MONE(M)CARD'!EV378)","v":14.093748201076984},{"$f":"IF('[1]MONE(M)CARD'!EZ378=\"\",\"\",'[1]MONE(M)CARD'!EZ378)","v":14.229978721480329},{"$f":"IF('[1]MONE(M)CAPARD'!FC378=\"\",\"\",'[1]MONE(M)CAPARD'!FC378)","v":57521.4632486349},{"$f":"IF('[1]MONE(M)CAPARD'!FG378=\"\",\"\",'[1]MONE(M)CAPARD'!FG378)","v":99014.423573284017},{"$f":"IF('[1]MONE(M)CAPARD'!FL378=\"\",\"\",'[1]MONE(M)CAPARD'!FL378)","v":36359.049391742592},{"$f":"IF('[1]MONE(M)CAPARD'!FO378=\"\",\"\",'[1]MONE(M)CAPARD'!FO378)","v":24.023852936928989},{"$f":"IF('[1]MONE(M)CAPARD'!FR378=\"\",\"\",'[1]MONE(M)CAPARD'!FR378)","v":12.044416857833928},{"$f":"IF('[1]MONE(M)CAPARD'!FV378=\"\",\"\",'[1]MONE(M)CAPARD'!FV378)","v":12.527026800092656},{"$f":"IF('[1]MONE(M)CARD'!FV378=\"\",\"\",'[1]MONE(M)CARD'!FV378)","v":2187.9697417542338},{"$f":"IF('[1]MONE(M)CARD'!GD378=\"\",\"\",'[1]MONE(M)CARD'!GD378)","v":157.52826361291335},{"$f":"IF('[1]MONE(M)CARD'!GE378=\"\",\"\",'[1]MONE(M)CARD'!GE378)","v":14007.915801768715},6.5858770986041648,{"$f":"IF('[9]II.2.Balance OSD-Activos'!J236=\"\",\"\",'[9]II.2.Balance OSD-Activos'!J236)","v":338.98897949292308},{"$f":"IF('[9]II.2.Balance OSD-Activos'!N236=\"\",\"\",'[9]II.2.Balance OSD-Activos'!N236)","v":1102.4851545006268},{"$f":"IF('[9]II.2.Balance OSD-Activos'!R236=\"\",\"\",'[9]II.2.Balance OSD-Activos'!R236)","v":55677.507134120227},{"$f":"IF('[9]II.2.Balance OSD-Activos'!S236=\"\",\"\",'[9]II.2.Balance OSD-Activos'!S236)","v":60513.146978853743},56016.496113613153,117632.12824696752,52.246124220384907,2.4239547205358924,{"$f":"IF(OR(AG371=\"\",AG359=\"\"),\"\",((AG371/AG359)-1)*100)","v":-5.0097291381345999},{"$f":"IF(OR(AH371=\"\",AH359=\"\"),\"\",((AH371/AH359)-1)*100)","v":2.2202883666615048},{"$f":"IF(OR(AI371=\"\",AI359=\"\"),\"\",((AI371/AI359)-1)*100)","v":-0.84823466375600898},{"$f":"IF(OR(AK371=\"\",AK359=\"\"),\"\",((AK371/AK359)-1)*100)","v":0.64154426052609459},{"$f":"IF(OR(AQ371=\"\",AQ370=\"\"),\"\",AQ371-AQ370)","v":0.28857321497643973},{"$f":"IF('[1]MONE(M)CAPARD'!GS378=\"\",\"\",'[1]MONE(M)CAPARD'!GS378)","v":31170.405419502029},{"$f":"IF('[1]MONE(M)CARD'!HA378=\"\",\"\",'[1]MONE(M)CAPARD'!HA378)","v":16107.479066728712},{"$f":"IF('[1]MONE(M)CAPARD'!HB378=\"\",\"\",'[1]MONE(M)CAPARD'!HB378)","v":15062.926352773316},"n.d.",{"$f":"IF('[10]II.2.Balance OSD-Activos'!J236=\"\",\"\",'[10]II.2.Balance OSD-Activos'!J236)","v":2808.5898537129233},{"$f":"IF('[10]II.2.Balance OSD-Activos'!N236=\"\",\"\",'[10]II.2.Balance OSD-Activos'!N236)","v":1657.0804157706266},{"$f":"IF('[10]II.2.Balance OSD-Activos'!R236=\"\",\"\",'[10]II.2.Balance OSD-Activos'!R236)","v":78206.831459270237},{"$f":"IF('[10]II.2.Balance OSD-Activos'!S236=\"\",\"\",'[10]II.2.Balance OSD-Activos'!S236)","v":86733.90182874375},81015.421312983162,169406.40355749754,14.280510484747611,0.37477372933878428,{"$f":"IF(OR(AX371=\"\",AX359=\"\"),\"\",((AX371/AX359)-1)*100)","v":0.38986066868145208},{"$f":"IF(OR(AY371=\"\",AY359=\"\"),\"\",((AY371/AY359)-1)*100)","v":-6.1939532375798745E-2},{"$f":"IF(OR(AZ371=\"\",AZ359=\"\"),\"\",((AZ371/AZ359)-1)*100)","v":1.66628085014775E-2},{"$f":"IF(OR(BB371=\"\",BB359=\"\"),\"\",((BB371/BB359)-1)*100)","v":0.19125276898455112},{"$f":"IF(OR(BH371=\"\",BH370=\"\"),\"\",BH371-BH370)","v":7.5545729997372746E-2},{"$f":"IF('[1]MONE(M)CAPARD'!AS378=\"\",\"\",'[1]MONE(M)CAPARD'!AS378)","v":0.75},{"$f":"IF('[1]MONE(M)CAPARD'!AT378=\"\",\"\",'[1]MONE(M)CAPARD'!AT378)","v":"n.a."},{"$f":"IF('[1]MONE(M)CAPARD'!AU378=\"\",\"\",'[1]MONE(M)CAPARD'!AU378)","v":1.75},{"$f":"IF('[1]MONE(M)CAPARD'!AV378=\"\",\"\",'[1]MONE(M)CAPARD'!AV378)","v":3.75},{"$f":"IF('[1]MONE(M)CAPARD'!AW378=\"\",\"\",'[1]MONE(M)CAPARD'!AW378)","v":4.25},{"$f":"IF('[1]MONE(M)CAPARD'!AX378=\"\",\"\",'[1]MONE(M)CAPARD'!AX378)","v":3},{"$f":"IF('[1]MONE(M)CAPARD'!AY378=\"\",\"\",'[1]MONE(M)CAPARD'!AY378)","v":"n.a."},{"$f":"IF('[1]FISCAL(M)'!$K378=\"\",\"\",'[1]FISCAL(M)'!$K378)","v":-13575.148970972497},{"$f":"IF('[1]FISCAL(M)'!$L378=\"\",\"\",'[1]FISCAL(M)'!$L378)","v":-17635.348970972496},{"$f":"IF('[1]FISCAL(M)'!$AY378=\"\",\"\",'[1]FISCAL(M)'!$AY378)","v":169374.22791282952},{"$f":"IF('[1]FISCAL(M)'!$BI378=\"\",\"\",'[1]FISCAL(M)'!$BI378)","v":88586.149508101458},{"$f":"IF('[1]FISCAL(M)'!$BS378=\"\",\"\",'[1]FISCAL(M)'!$BS378)","v":80788.078404728105},{"$f":"IF('[1]FISCAL(M)'!$AZ378=\"\",\"\",'[1]FISCAL(M)'!$AZ378)","v":205481.45791282956},{"$f":"IF('[1]FISCAL(M)'!$BJ378=\"\",\"\",'[1]FISCAL(M)'!$BJ378)","v":95710.37950810144},{"$f":"IF('[1]FISCAL(M)'!$BT378=\"\",\"\",'[1]FISCAL(M)'!$BT378)","v":109771.0784047281},{"$f":"IF('[2]MONE(M)'!$AO378=\"\",\"\",'[2]MONE(M)'!$AO378)","v":22516681.389812436},{"$f":"IF('[3]MONE(M)'!$AO378=\"\",\"\",'[3]MONE(M)'!$AO378)","v":14327.33763708},{"$f":"IF('[4]MONE(M)'!$AO378=\"\",\"\",'[4]MONE(M)'!$AO378)","v":222781.0837701339},{"$f":"+'[5]MONE(M)'!$AO378","v":392093.62912490894},{"$f":"IF('[6]MONE(M)'!$AO378=\"\",\"\",'[6]MONE(M)'!$AO378)","v":119776.90645110408},{"$f":"IF('[7]MONE(M)'!$AO378=\"\",\"\",'[7]MONE(M)'!$AO378)","v":1313366.25284601},{"$f":"IF('[8]MONE(M)'!$AO378=\"\",\"\",'[8]MONE(M)'!$AO378)","v":51813.338749860006},{"$f":"IF(BY371=\"\",\"\",((BY371/BY359)-1)*100)","v":2.4228962301462209},{"$f":"IF(BZ371=\"\",\"\",((BZ371/BZ359)-1)*100)","v":4.5422744402441095},{"$f":"IF(CA371=\"\",\"\",((CA371/CA359)-1)*100)","v":5.5549487035778222},{"$f":"IF(CB371=\"\",\"\",((CB371/CB359)-1)*100)","v":5.2699382025807706},{"$f":"IF(CC371=\"\",\"\",((CC371/CC359)-1)*100)","v":-4.3289853340326196},{"$f":"IF(CD371=\"\",\"\",((CD371/CD359)-1)*100)","v":7.5010146080240592},{"$f":"IF(CE371=\"\",\"\",((CE371/CE359)-1)*100)","v":-2.4168023266229688},{"$f":"'[1]FISCAL(M)'!$K378","v":-13575.148970972497},{"$f":"+'[1]REAL(A)'!$AO$40","v":279528.85554939549},-4.8564392195902064,{"$f":"IF('[1]FISCAL(M)'!$L378=\"\",\"\",'[1]FISCAL(M)'!$L378)","v":-17635.348970972496},{"$f":"+'[1]REAL(A)'!$AP$40","v":333505.88843652798},-5.2878673458051439,{"$f":"+IF(OR(CT371=\"\",+CU371=\"\",+CV371=\"\"),\"\",(CT371+CU371+CV371))","v":169086.56695821392},{"$f":"'[1]Gráfico REM'!BG372","v":38234.70143718645},{"$f":"'[1]Gráfico REM'!BH372","v":122086.60442300673},{"$f":"'[1]Gráfico REM'!BI372","v":8765.2610980207373},{"$f":"IFERROR(+((CS371/CS359)-1)*100,\"\")","v":5.4051206455566714},{"$f":"IFERROR(+((CT371/CT359)-1)*100,\"\")","v":26.153719928648989},{"$f":"IFERROR(+((CU371/CU359)-1)*100,\"\")","v":0.67429615928713549},{"$f":"IFERROR(+((CV371/CV359)-1)*100,\"\")","v":-0.8339759504734312},{"$f":"+IF(OR(DB371=\"\",+DC371=\"\",+DD371=\"\"),\"\",(DB371+DC371+DD371))","v":245752.24857574393},{"$f":"'[1]Gráfico REM'!BK372","v":41816.759709596452},{"$f":"'[1]Gráfico REM'!BL372","v":173899.94317286674},{"$f":"'[1]Gráfico REM'!BM372","v":30035.545693280736},{"$f":"IFERROR(+((DA371/DA359)-1)*100,\"\")","v":3.6058625252240573},{"$f":"IFERROR(+((DB371/DB359)-1)*100,\"\")","v":28.490459643504028},{"$f":"IFERROR(+((DC371/DC359)-1)*100,\"\")","v":-0.26698396437248029},{"$f":"IFERROR(+((DD371/DD359)-1)*100,\"\")","v":-0.8369823723569314}]
[2020,"octubre","2020-octubre",{"$f":"IF('[1]REAL IPC(M)'!$AL379=\"\",\"\",+'[1]REAL IPC(M)'!$AL379)","v":3.5270835256956179},{"$f":"IF('[1]REAL IPC(M)'!$BE379=\"\",\"\",+'[1]REAL IPC(M)'!$BE379)","v":3.9474743943228807},{"$f":"IF('[1]REAL IPC(M)'!$AM379=\"\",\"\",+'[1]REAL IPC(M)'!$AM379)","v":2.7242032264213289},{"$f":"IF('[1]REAL IPC(M)'!$BI379=\"\",\"\",+'[1]REAL IPC(M)'!$BI379)","v":3.4069657419568466},{"$f":"IF('[1]REAL IMAE(M)'!BJ379=\"\",\"\",'[1]REAL IMAE(M)'!BJ379)","v":-3.0243112735857336},{"$f":"IF('[1]REAL IMAE(M)'!BK379=\"\",\"\",'[1]REAL IMAE(M)'!BK379)","v":2.2916254006383863},{"$f":"IF('[1]REAL IMAE(M)'!BN379=\"\",\"\",'[1]REAL IMAE(M)'!BN379)","v":-5.2353946613899804},{"$f":"IF('[1]REAL IMAE(M)'!BO379=\"\",\"\",'[1]REAL IMAE(M)'!BO379)","v":1.7495708444406954},{"$f":"IF('[1]EXT RIN(M)'!$K379=\"\",\"\",'[1]EXT RIN(M)'!$K379)","v":50228.972790499283},null,{"$f":"IF('[1]EXT RIN(M)'!$L379=\"\",\"\",'[1]EXT RIN(M)'!$L379)","v":58421.75265477928},null,{"$f":"IF('[1]MONE(M)CARD'!EG379=\"\",\"\",'[1]MONE(M)CARD'!EG379)","v":49642.000383937331},{"$f":"IF('[1]MONE(M)CARD'!EK379=\"\",\"\",'[1]MONE(M)CARD'!EK379)","v":63464.375631967087},{"$f":"IF('[1]MONE(M)CARD'!EP379=\"\",\"\",'[1]MONE(M)CARD'!EP379)","v":36938.740406658879},{"$f":"IF('[1]MONE(M)CARD'!ES379=\"\",\"\",'[1]MONE(M)CARD'!ES379)","v":29.079032444055251},{"$f":"IF('[1]MONE(M)CARD'!EV379=\"\",\"\",'[1]MONE(M)CARD'!EV379)","v":14.979234091997196},{"$f":"IF('[1]MONE(M)CARD'!EZ379=\"\",\"\",'[1]MONE(M)CARD'!EZ379)","v":15.378243660769432},{"$f":"IF('[1]MONE(M)CAPARD'!FC379=\"\",\"\",'[1]MONE(M)CAPARD'!FC379)","v":58114.831697357331},{"$f":"IF('[1]MONE(M)CAPARD'!FG379=\"\",\"\",'[1]MONE(M)CAPARD'!FG379)","v":99606.750526207092},{"$f":"IF('[1]MONE(M)CAPARD'!FL379=\"\",\"\",'[1]MONE(M)CAPARD'!FL379)","v":36938.74040665885},{"$f":"IF('[1]MONE(M)CAPARD'!FO379=\"\",\"\",'[1]MONE(M)CAPARD'!FO379)","v":25.965021930709952},{"$f":"IF('[1]MONE(M)CAPARD'!FR379=\"\",\"\",'[1]MONE(M)CAPARD'!FR379)","v":12.493810557878637},{"$f":"IF('[1]MONE(M)CAPARD'!FV379=\"\",\"\",'[1]MONE(M)CAPARD'!FV379)","v":13.253736112893089},{"$f":"IF('[1]MONE(M)CARD'!FV379=\"\",\"\",'[1]MONE(M)CARD'!FV379)","v":2375.5465416098682},{"$f":"IF('[1]MONE(M)CARD'!GD379=\"\",\"\",'[1]MONE(M)CARD'!GD379)","v":134.10316469277396},{"$f":"IF('[1]MONE(M)CARD'!GE379=\"\",\"\",'[1]MONE(M)CARD'!GE379)","v":14500.340702389261},{"$f":"IF(AD372=\"\",\"\",((AD372/AD359)-1)*100)","v":6.0002312278564229},{"$f":"IF('[9]II.2.Balance OSD-Activos'!J237=\"\",\"\",'[9]II.2.Balance OSD-Activos'!J237)","v":341.43808687989838},{"$f":"IF('[9]II.2.Balance OSD-Activos'!N237=\"\",\"\",'[9]II.2.Balance OSD-Activos'!N237)","v":968.27050823014986},{"$f":"IF('[9]II.2.Balance OSD-Activos'!R237=\"\",\"\",'[9]II.2.Balance OSD-Activos'!R237)","v":56048.022706453965},{"$f":"IF('[9]II.2.Balance OSD-Activos'!S237=\"\",\"\",'[9]II.2.Balance OSD-Activos'!S237)","v":60615.725361018813},{"$f":"IFERROR(+AF372+AH372,\"\")","v":56389.460793333863},117973.45666258282,60.381549125443534,2.360743586031866,-14.340208295100821,2.1356524536182198,-1.119708639427186,0.38461623908312426,-0.25692802144297033,{"$f":"IF('[1]MONE(M)CAPARD'!GS379=\"\",\"\",'[1]MONE(M)CAPARD'!GS379)","v":31701.223794083748},{"$f":"IF('[1]MONE(M)CARD'!HA379=\"\",\"\",'[1]MONE(M)CAPARD'!HA379)","v":16576.262938489261},{"$f":"IF('[1]MONE(M)CAPARD'!HB379=\"\",\"\",'[1]MONE(M)CAPARD'!HB379)","v":15124.960855594487},"n.d.",{"$f":"IF('[10]II.2.Balance OSD-Activos'!J237=\"\",\"\",'[10]II.2.Balance OSD-Activos'!J237)","v":2918.560120059899},{"$f":"IF('[10]II.2.Balance OSD-Activos'!N237=\"\",\"\",'[10]II.2.Balance OSD-Activos'!N237)","v":1527.0879180601498},{"$f":"IF('[10]II.2.Balance OSD-Activos'!R237=\"\",\"\",'[10]II.2.Balance OSD-Activos'!R237)","v":78542.072735973969},{"$f":"IF('[10]II.2.Balance OSD-Activos'!S237=\"\",\"\",'[10]II.2.Balance OSD-Activos'!S237)","v":86909.063113098819},{"$f":"IFERROR(+AW372+AY372,\"\")","v":81460.632856033873},169896.78388719284,12.920097246466987,0.16427986759555147,-5.1614353677108094,-0.25441440441825725,-0.30022899015369475,-0.12416658172443862,-0.31541935070898974,{"$f":"IF('[1]MONE(M)CAPARD'!AS379=\"\",\"\",'[1]MONE(M)CAPARD'!AS379)","v":0.75},{"$f":"IF('[1]MONE(M)CAPARD'!AT379=\"\",\"\",'[1]MONE(M)CAPARD'!AT379)","v":"n.a."},{"$f":"IF('[1]MONE(M)CAPARD'!AU379=\"\",\"\",'[1]MONE(M)CAPARD'!AU379)","v":1.75},{"$f":"IF('[1]MONE(M)CAPARD'!AV379=\"\",\"\",'[1]MONE(M)CAPARD'!AV379)","v":3.75},{"$f":"IF('[1]MONE(M)CAPARD'!AW379=\"\",\"\",'[1]MONE(M)CAPARD'!AW379)","v":4.25},{"$f":"IF('[1]MONE(M)CAPARD'!AX379=\"\",\"\",'[1]MONE(M)CAPARD'!AX379)","v":3},{"$f":"IF('[1]MONE(M)CAPARD'!AY379=\"\",\"\",'[1]MONE(M)CAPARD'!AY379)","v":"n.a."},{"$f":"IF('[1]FISCAL(M)'!$K379=\"\",\"\",'[1]FISCAL(M)'!$K379)","v":-14173.613464784459},{"$f":"IF('[1]FISCAL(M)'!$L379=\"\",\"\",'[1]FISCAL(M)'!$L379)","v":"n.d."},{"$f":"IF('[1]FISCAL(M)'!$AY379=\"\",\"\",'[1]FISCAL(M)'!$AY379)","v":170823.4222823375},{"$f":"IF('[1]FISCAL(M)'!$BI379=\"\",\"\",'[1]FISCAL(M)'!$BI379)","v":90012.147785062145},{"$f":"IF('[1]FISCAL(M)'!$BS379=\"\",\"\",'[1]FISCAL(M)'!$BS379)","v":80811.274497275357},{"$f":"IF('[1]FISCAL(M)'!$AZ379=\"\",\"\",'[1]FISCAL(M)'!$AZ379)","v":206570.20228233747},{"$f":"IF('[1]FISCAL(M)'!$BJ379=\"\",\"\",'[1]FISCAL(M)'!$BJ379)","v":96774.697785062133},{"$f":"IF('[1]FISCAL(M)'!$BT379=\"\",\"\",'[1]FISCAL(M)'!$BT379)","v":109795.50449727535},{"$f":"IF('[2]MONE(M)'!$AO379=\"\",\"\",'[2]MONE(M)'!$AO379)","v":22600208.665732775},{"$f":"IF('[3]MONE(M)'!$AO379=\"\",\"\",'[3]MONE(M)'!$AO379)","v":14281.540471080003},{"$f":"IF('[4]MONE(M)'!$AO379=\"\",\"\",'[4]MONE(M)'!$AO379)","v":226281.25096829396},{"$f":"+'[5]MONE(M)'!$AO379","v":391012.16670587298},{"$f":"IF('[6]MONE(M)'!$AO379=\"\",\"\",'[6]MONE(M)'!$AO379)","v":120210.35180215609},{"$f":"IF('[7]MONE(M)'!$AO379=\"\",\"\",'[7]MONE(M)'!$AO379)","v":1322080.8102400401},{"$f":"IF('[8]MONE(M)'!$AO379=\"\",\"\",'[8]MONE(M)'!$AO379)","v":52014.428685849998},2.3329165810886954,3.5182016551443374,6.5324076947695042,4.4605610881416125,-4.4689220225589299,6.6984731770888262,-2.8592727947715946,{"$f":"'[1]FISCAL(M)'!$K379","v":-14173.613464784459},{"$f":"+'[1]REAL(A)'!$AO$40","v":279528.85554939549},-5.0705367919627324,{"$f":"IF('[1]FISCAL(M)'!$L379=\"\",\"\",'[1]FISCAL(M)'!$L379)","v":"n.d."},{"$f":"+'[1]REAL(A)'!$AP$40","v":333505.88843652798},"n.d.",170853.57159540494,{"$f":"'[1]Gráfico REM'!BG373","v":39785.180453608133},{"$f":"'[1]Gráfico REM'!BH373","v":122375.3598056191},{"$f":"'[1]Gráfico REM'!BI373","v":8693.031336177708},6.1608959127954499,31.844060921340688,0.42957665386522681,-2.44036409275733,247840.50216571495,{"$f":"'[1]Gráfico REM'!BK373","v":43409.644820348134},{"$f":"'[1]Gráfico REM'!BL373","v":174389.78849146911},{"$f":"'[1]Gráfico REM'!BM373","v":30041.068853897705},4.2019070432122829,33.416337373274942,-0.57444584562081902,0.43120253589632451]
[2020,"noviembre","2020-noviembre",{"$f":"IF('[1]REAL IPC(M)'!$AL380=\"\",\"\",+'[1]REAL IPC(M)'!$AL380)","v":3.6139223401871368},{"$f":"IF('[1]REAL IPC(M)'!$BE380=\"\",\"\",+'[1]REAL IPC(M)'!$BE380)","v":4.033787492467078},{"$f":"IF('[1]REAL IPC(M)'!$AM380=\"\",\"\",+'[1]REAL IPC(M)'!$AM380)","v":2.7854481612963999},{"$f":"IF('[1]REAL IPC(M)'!$BI380=\"\",\"\",+'[1]REAL IPC(M)'!$BI380)","v":3.4986199151095132},{"$f":"IF('[1]REAL IMAE(M)'!BJ380=\"\",\"\",'[1]REAL IMAE(M)'!BJ380)","v":-2.7639447142982276},{"$f":"IF('[1]REAL IMAE(M)'!BK380=\"\",\"\",'[1]REAL IMAE(M)'!BK380)","v":2.4704760118368085},{"$f":"IF('[1]REAL IMAE(M)'!BN380=\"\",\"\",'[1]REAL IMAE(M)'!BN380)","v":-4.2385622717783233},{"$f":"IF('[1]REAL IMAE(M)'!BO380=\"\",\"\",'[1]REAL IMAE(M)'!BO380)","v":1.9777525000099327},{"$f":"IF('[1]EXT RIN(M)'!$K380=\"\",\"\",'[1]EXT RIN(M)'!$K380)","v":50072.119983109995},null,{"$f":"IF('[1]EXT RIN(M)'!$L380=\"\",\"\",'[1]EXT RIN(M)'!$L380)","v":57820.893073819992},null,{"$f":"IF('[1]MONE(M)CARD'!EG380=\"\",\"\",'[1]MONE(M)CARD'!EG380)","v":50568.034752531014},{"$f":"IF('[1]MONE(M)CARD'!EK380=\"\",\"\",'[1]MONE(M)CARD'!EK380)","v":63563.410982535475},{"$f":"IF('[1]MONE(M)CARD'!EP380=\"\",\"\",'[1]MONE(M)CARD'!EP380)","v":37577.702257909317},{"$f":"IF('[1]MONE(M)CARD'!ES380=\"\",\"\",'[1]MONE(M)CARD'!ES380)","v":23.731425760597769},{"$f":"IF('[1]MONE(M)CARD'!EV380=\"\",\"\",'[1]MONE(M)CARD'!EV380)","v":13.210588138040791},{"$f":"IF('[1]MONE(M)CARD'!EZ380=\"\",\"\",'[1]MONE(M)CARD'!EZ380)","v":14.234334938401606},{"$f":"IF('[1]MONE(M)CAPARD'!FC380=\"\",\"\",'[1]MONE(M)CAPARD'!FC380)","v":59233.874226581022},{"$f":"IF('[1]MONE(M)CAPARD'!FG380=\"\",\"\",'[1]MONE(M)CAPARD'!FG380)","v":99715.978409215517},{"$f":"IF('[1]MONE(M)CAPARD'!FL380=\"\",\"\",'[1]MONE(M)CAPARD'!FL380)","v":37577.702257909346},{"$f":"IF('[1]MONE(M)CAPARD'!FO380=\"\",\"\",'[1]MONE(M)CAPARD'!FO380)","v":21.650063600099379},{"$f":"IF('[1]MONE(M)CAPARD'!FR380=\"\",\"\",'[1]MONE(M)CAPARD'!FR380)","v":11.205841025187869},{"$f":"IF('[1]MONE(M)CAPARD'!FV380=\"\",\"\",'[1]MONE(M)CAPARD'!FV380)","v":12.349729000349964},{"$f":"IF('[1]MONE(M)CARD'!FV380=\"\",\"\",'[1]MONE(M)CARD'!FV380)","v":2406.2748122920148},{"$f":"IF('[1]MONE(M)CARD'!GD380=\"\",\"\",'[1]MONE(M)CARD'!GD380)","v":185.13568697996209},{"$f":"IF('[1]MONE(M)CARD'!GE380=\"\",\"\",'[1]MONE(M)CARD'!GE380)","v":14628.20626477587},4.3081761211652081,{"$f":"IF('[9]II.2.Balance OSD-Activos'!J238=\"\",\"\",'[9]II.2.Balance OSD-Activos'!J238)","v":338.70064788383434},{"$f":"IF('[9]II.2.Balance OSD-Activos'!N238=\"\",\"\",'[9]II.2.Balance OSD-Activos'!N238)","v":938.82079855057293},{"$f":"IF('[9]II.2.Balance OSD-Activos'!R238=\"\",\"\",'[9]II.2.Balance OSD-Activos'!R238)","v":56304.479360886835},{"$f":"IF('[9]II.2.Balance OSD-Activos'!S238=\"\",\"\",'[9]II.2.Balance OSD-Activos'!S238)","v":61179.156329363956},{"$f":"IFERROR(+AF373+AH373,\"\")","v":56643.180008770672},118761.1571366852,{"$f":"IF(OR(AF373=\"\",AF361=\"\"),\"\",((AF373/AF361)-1)*100)","v":35.241099462179903},{"$f":"IF(OR(AJ373=\"\",AJ361=\"\"),\"\",((AJ373/AJ361)-1)*100)","v":1.3770020415506234},{"$f":"IF(OR(AG373=\"\",AG361=\"\"),\"\",((AG373/AG361)-1)*100)","v":-22.008439845357021},{"$f":"IF(OR(AH373=\"\",AH361=\"\"),\"\",((AH373/AH361)-1)*100)","v":1.2245301941866904},{"$f":"IF(OR(AI373=\"\",AI361=\"\"),\"\",((AI373/AI361)-1)*100)","v":-1.9964842493407464},{"$f":"IF(OR(AK373=\"\",AK361=\"\"),\"\",((AK373/AK361)-1)*100)","v":-0.62078537387089128},{"$f":"IF(OR(AQ373=\"\",AQ372=\"\"),\"\",AQ373-AQ372)","v":-1.0054016129540155},{"$f":"IF('[1]MONE(M)CAPARD'!GS380=\"\",\"\",'[1]MONE(M)CAPARD'!GS380)","v":31838.853908325687},{"$f":"IF('[1]MONE(M)CARD'!HA380=\"\",\"\",'[1]MONE(M)CAPARD'!HA380)","v":16737.444482295872},{"$f":"IF('[1]MONE(M)CAPARD'!HB380=\"\",\"\",'[1]MONE(M)CAPARD'!HB380)","v":15101.409426029815},"n.d.",{"$f":"IF('[10]II.2.Balance OSD-Activos'!J238=\"\",\"\",'[10]II.2.Balance OSD-Activos'!J238)","v":2909.0782323438343},{"$f":"IF('[10]II.2.Balance OSD-Activos'!N238=\"\",\"\",'[10]II.2.Balance OSD-Activos'!N238)","v":1483.0434642205728},{"$f":"IF('[10]II.2.Balance OSD-Activos'!R238=\"\",\"\",'[10]II.2.Balance OSD-Activos'!R238)","v":78671.011282636828},{"$f":"IF('[10]II.2.Balance OSD-Activos'!S238=\"\",\"\",'[10]II.2.Balance OSD-Activos'!S238)","v":87548.452429573954},{"$f":"IFERROR(+AW373+AY373,\"\")","v":81580.08951498066},{"$f":"IF(OR(AW373=\"\",AX373=\"\",AY373=\"\",AZ373=\"\"),\"\",SUM(AW373:AZ373))","v":170611.58540877519},{"$f":"IF(OR(AW373=\"\",AW361=\"\"),\"\",((AW373/AW361)-1)*100)","v":8.4550170199302563},{"$f":"IF(OR(BA373=\"\",BA361=\"\"),\"\",((BA373/BA361)-1)*100)","v":-0.47608153746078186},{"$f":"IF(OR(AX373=\"\",AX361=\"\"),\"\",((AX373/AX361)-1)*100)","v":-11.755909768590101},{"$f":"IF(OR(AY373=\"\",AY361=\"\"),\"\",((AY373/AY361)-1)*100)","v":-0.77821785115052},{"$f":"IF(OR(AZ373=\"\",AZ361=\"\"),\"\",((AZ373/AZ361)-1)*100)","v":-0.97799609799391618},{"$f":"IF(OR(BB373=\"\",BB361=\"\"),\"\",((BB373/BB361)-1)*100)","v":-0.84415886225167602},{"$f":"IF(OR(BH373=\"\",BH372=\"\"),\"\",BH373-BH372)","v":-0.7199922805272374},{"$f":"IF('[1]MONE(M)CAPARD'!AS380=\"\",\"\",'[1]MONE(M)CAPARD'!AS380)","v":0.75},{"$f":"IF('[1]MONE(M)CAPARD'!AT380=\"\",\"\",'[1]MONE(M)CAPARD'!AT380)","v":"n.a."},{"$f":"IF('[1]MONE(M)CAPARD'!AU380=\"\",\"\",'[1]MONE(M)CAPARD'!AU380)","v":1.75},{"$f":"IF('[1]MONE(M)CAPARD'!AV380=\"\",\"\",'[1]MONE(M)CAPARD'!AV380)","v":3},{"$f":"IF('[1]MONE(M)CAPARD'!AW380=\"\",\"\",'[1]MONE(M)CAPARD'!AW380)","v":4.25},{"$f":"IF('[1]MONE(M)CAPARD'!AX380=\"\",\"\",'[1]MONE(M)CAPARD'!AX380)","v":3},{"$f":"IF('[1]MONE(M)CAPARD'!AY380=\"\",\"\",'[1]MONE(M)CAPARD'!AY380)","v":"n.a."},{"$f":"IF('[1]FISCAL(M)'!$K380=\"\",\"\",'[1]FISCAL(M)'!$K380)","v":-15764.496346639746},{"$f":"IF('[1]FISCAL(M)'!$L380=\"\",\"\",'[1]FISCAL(M)'!$L380)","v":"n.d."},{"$f":"IF('[1]FISCAL(M)'!$AY380=\"\",\"\",'[1]FISCAL(M)'!$AY380)","v":171875.88470131863},{"$f":"IF('[1]FISCAL(M)'!$BI380=\"\",\"\",'[1]FISCAL(M)'!$BI380)","v":90276.125273152909},{"$f":"IF('[1]FISCAL(M)'!$BS380=\"\",\"\",'[1]FISCAL(M)'!$BS380)","v":81599.759428165751},{"$f":"IF('[1]FISCAL(M)'!$AZ380=\"\",\"\",'[1]FISCAL(M)'!$AZ380)","v":207961.65470131865},{"$f":"IF('[1]FISCAL(M)'!$BJ380=\"\",\"\",'[1]FISCAL(M)'!$BJ380)","v":97398.675273152912},{"$f":"IF('[1]FISCAL(M)'!$BT380=\"\",\"\",'[1]FISCAL(M)'!$BT380)","v":110562.97942816575},{"$f":"IF('[2]MONE(M)'!$AO380=\"\",\"\",'[2]MONE(M)'!$AO380)","v":22595674.431345936},{"$f":"IF('[3]MONE(M)'!$AO380=\"\",\"\",'[3]MONE(M)'!$AO380)","v":14390.750813340001},{"$f":"IF('[4]MONE(M)'!$AO380=\"\",\"\",'[4]MONE(M)'!$AO380)","v":227316.9952330903},{"$f":"+'[5]MONE(M)'!$AO380","v":392401.9732853907},{"$f":"IF('[6]MONE(M)'!$AO380=\"\",\"\",'[6]MONE(M)'!$AO380)","v":121212.29724189983},{"$f":"IF('[7]MONE(M)'!$AO380=\"\",\"\",'[7]MONE(M)'!$AO380)","v":1331330.4879480998},{"$f":"IF('[8]MONE(M)'!$AO380=\"\",\"\",'[8]MONE(M)'!$AO380)","v":51993.249332569991},3.7876748162178009,3.7184550200823008,5.921342613024061,3.5626337433729116,-3.990477816327731,5.5998727605238496,-2.9356035679303671,{"$f":"'[1]FISCAL(M)'!$K380","v":-15764.496346639746},{"$f":"+'[1]REAL(A)'!$AO$40","v":279528.85554939549},-5.6396669015281695,{"$f":"IF('[1]FISCAL(M)'!$L380=\"\",\"\",'[1]FISCAL(M)'!$L380)","v":"n.d."},{"$f":"+'[1]REAL(A)'!$AP$40","v":333505.88843652798},"n.d.",172327.39085522844,{"$f":"'[1]Gráfico REM'!BG374","v":40442.934207111961},{"$f":"'[1]Gráfico REM'!BH374","v":123184.76693971656},{"$f":"'[1]Gráfico REM'!BI374","v":8699.6897083999102},5.417239335681634,31.905475171892505,-0.40002273795981536,-4.7306783597246493,249834.41485597839,{"$f":"'[1]Gráfico REM'!BK374","v":44073.672974181958},{"$f":"'[1]Gráfico REM'!BL374","v":175178.01627228654},{"$f":"'[1]Gráfico REM'!BM374","v":30582.725609509911},3.6693987189941879,33.48573796167873,-1.1663069548830118,-0.47511474517075714]
[2020,"diciembre","2020-diciembre",{"$f":"IF('[1]REAL IPC(M)'!$AL381=\"\",\"\",+'[1]REAL IPC(M)'!$AL381)","v":3.6843488043573958},{"$f":"IF('[1]REAL IPC(M)'!$BE381=\"\",\"\",+'[1]REAL IPC(M)'!$BE381)","v":4.1208327292221902},{"$f":"IF('[1]REAL IPC(M)'!$AM381=\"\",\"\",+'[1]REAL IPC(M)'!$AM381)","v":2.9130379556565389},{"$f":"IF('[1]REAL IPC(M)'!$BI381=\"\",\"\",+'[1]REAL IPC(M)'!$BI381)","v":3.5920383275265921},{"$f":"IF('[1]REAL IMAE(M)'!BJ381=\"\",\"\",'[1]REAL IMAE(M)'!BJ381)","v":-1.6406148212648186},{"$f":"IF('[1]REAL IMAE(M)'!BK381=\"\",\"\",'[1]REAL IMAE(M)'!BK381)","v":2.6582199922210226},{"$f":"IF('[1]REAL IMAE(M)'!BN381=\"\",\"\",'[1]REAL IMAE(M)'!BN381)","v":-2.4505595311896888},{"$f":"IF('[1]REAL IMAE(M)'!BO381=\"\",\"\",'[1]REAL IMAE(M)'!BO381)","v":2.220177836110504},{"$f":"IF('[1]EXT RIN(M)'!$K381=\"\",\"\",'[1]EXT RIN(M)'!$K381)","v":50582.038843558301},{"$f":"IF(B374<>\"diciembre\",\"\",L374)","v":50582.038843558301},{"$f":"IF('[1]EXT RIN(M)'!$L381=\"\",\"\",'[1]EXT RIN(M)'!$L381)","v":59254.370432578304},{"$f":"IF(B374<>\"diciembre\",\"\",N374)","v":59254.370432578304},{"$f":"IF('[1]MONE(M)CARD'!EG381=\"\",\"\",'[1]MONE(M)CARD'!EG381)","v":52959.762055646454},{"$f":"IF('[1]MONE(M)CARD'!EK381=\"\",\"\",'[1]MONE(M)CARD'!EK381)","v":64424.167058238207},{"$f":"IF('[1]MONE(M)CARD'!EP381=\"\",\"\",'[1]MONE(M)CARD'!EP381)","v":37511.275601666886},{"$f":"IF('[1]MONE(M)CARD'!ES381=\"\",\"\",'[1]MONE(M)CARD'!ES381)","v":21.01219460303918},{"$f":"IF('[1]MONE(M)CARD'!EV381=\"\",\"\",'[1]MONE(M)CARD'!EV381)","v":12.059334885150029},{"$f":"IF('[1]MONE(M)CARD'!EZ381=\"\",\"\",'[1]MONE(M)CARD'!EZ381)","v":13.34919616706447},{"$f":"IF('[1]MONE(M)CAPARD'!FC381=\"\",\"\",'[1]MONE(M)CAPARD'!FC381)","v":62070.934346046444},{"$f":"IF('[1]MONE(M)CAPARD'!FG381=\"\",\"\",'[1]MONE(M)CAPARD'!FG381)","v":100939.70310285821},{"$f":"IF('[1]MONE(M)CAPARD'!FL381=\"\",\"\",'[1]MONE(M)CAPARD'!FL381)","v":37511.275601666886},{"$f":"IF('[1]MONE(M)CAPARD'!FO381=\"\",\"\",'[1]MONE(M)CAPARD'!FO381)","v":20.120712833466303},{"$f":"IF('[1]MONE(M)CAPARD'!FR381=\"\",\"\",'[1]MONE(M)CAPARD'!FR381)","v":10.894013325042806},{"$f":"IF('[1]MONE(M)CAPARD'!FV381=\"\",\"\",'[1]MONE(M)CAPARD'!FV381)","v":12.087088265275092},{"$f":"IF('[1]MONE(M)CARD'!FV381=\"\",\"\",'[1]MONE(M)CARD'!FV381)","v":1971.3676927068},{"$f":"IF('[1]MONE(M)CARD'!GD381=\"\",\"\",'[1]MONE(M)CARD'!GD381)","v":131.03831828576762},{"$f":"IF('[1]MONE(M)CARD'!GE381=\"\",\"\",'[1]MONE(M)CARD'!GE381)","v":14162.675514105991},{"$f":"IF(AD374=\"\",\"\",((AD374/AD361)-1)*100)","v":3.744538367252459},{"$f":"IF('[9]II.2.Balance OSD-Activos'!J239=\"\",\"\",'[9]II.2.Balance OSD-Activos'!J239)","v":344.43239741211369},{"$f":"IF('[9]II.2.Balance OSD-Activos'!N239=\"\",\"\",'[9]II.2.Balance OSD-Activos'!N239)","v":1034.1857080718289},{"$f":"IF('[9]II.2.Balance OSD-Activos'!R239=\"\",\"\",'[9]II.2.Balance OSD-Activos'!R239)","v":56273.891793066519},{"$f":"IF('[9]II.2.Balance OSD-Activos'!S239=\"\",\"\",'[9]II.2.Balance OSD-Activos'!S239)","v":61352.6728664529},{"$f":"IFERROR(+AF374+AH374,\"\")","v":56618.324190478634},119005.18276500335,{"$f":"IF(OR(AF374=\"\",AF362=\"\"),\"\",((AF374/AF362)-1)*100)","v":12.263291257538489},{"$f":"IF(OR(AJ374=\"\",AJ362=\"\"),\"\",((AJ374/AJ362)-1)*100)","v":0.72719340013938094},{"$f":"IF(OR(AG374=\"\",AG362=\"\"),\"\",((AG374/AG362)-1)*100)","v":-16.140241683650668},{"$f":"IF(OR(AH374=\"\",AH362=\"\"),\"\",((AH374/AH362)-1)*100)","v":0.66388054881343361},{"$f":"IF(OR(AI374=\"\",AI362=\"\"),\"\",((AI374/AI362)-1)*100)","v":-1.3770352587411216},{"$f":"IF(OR(AK374=\"\",AK362=\"\"),\"\",((AK374/AK362)-1)*100)","v":-0.54068295285998325},{"$f":"IF(OR(AQ374=\"\",AQ373=\"\"),\"\",AQ374-AQ373)","v":8.0102421010908031E-2},{"$f":"IF('[1]MONE(M)CAPARD'!GS381=\"\",\"\",'[1]MONE(M)CAPARD'!GS381)","v":32106.488006092815},{"$f":"IF('[1]MONE(M)CARD'!HA381=\"\",\"\",'[1]MONE(M)CAPARD'!HA381)","v":16296.39637375599},{"$f":"IF('[1]MONE(M)CAPARD'!HB381=\"\",\"\",'[1]MONE(M)CAPARD'!HB381)","v":15810.091632336826},"n.d.",{"$f":"IF('[10]II.2.Balance OSD-Activos'!J239=\"\",\"\",'[10]II.2.Balance OSD-Activos'!J239)","v":2949.3679264021143},{"$f":"IF('[10]II.2.Balance OSD-Activos'!N239=\"\",\"\",'[10]II.2.Balance OSD-Activos'!N239)","v":1564.219097311829},{"$f":"IF('[10]II.2.Balance OSD-Activos'!R239=\"\",\"\",'[10]II.2.Balance OSD-Activos'!R239)","v":78079.969242006526},{"$f":"IF('[10]II.2.Balance OSD-Activos'!S239=\"\",\"\",'[10]II.2.Balance OSD-Activos'!S239)","v":87744.630711772901},81029.337168408645,170338.18697749337,{"$f":"IF(OR(AW374=\"\",AW362=\"\"),\"\",((AW374/AW362)-1)*100)","v":6.8868678522195914},{"$f":"IF(OR(BA374=\"\",BA362=\"\"),\"\",((BA374/BA362)-1)*100)","v":-1.1506892059471974},{"$f":"IF(OR(AX374=\"\",AX362=\"\"),\"\",((AX374/AX362)-1)*100)","v":-13.779559838836997},{"$f":"IF(OR(AY374=\"\",AY362=\"\"),\"\",((AY374/AY362)-1)*100)","v":-1.4306716721946056},{"$f":"IF(OR(AZ374=\"\",AZ362=\"\"),\"\",((AZ374/AZ362)-1)*100)","v":-0.65249531850394282},{"$f":"IF(OR(BB374=\"\",BB362=\"\"),\"\",((BB374/BB362)-1)*100)","v":-1.0281523971252926},{"$f":"IF(OR(BH374=\"\",BH373=\"\"),\"\",BH374-BH373)","v":-0.18399353487361658},{"$f":"IF('[1]MONE(M)CAPARD'!AS381=\"\",\"\",'[1]MONE(M)CAPARD'!AS381)","v":0.75},{"$f":"IF('[1]MONE(M)CAPARD'!AT381=\"\",\"\",'[1]MONE(M)CAPARD'!AT381)","v":"n.a."},{"$f":"IF('[1]MONE(M)CAPARD'!AU381=\"\",\"\",'[1]MONE(M)CAPARD'!AU381)","v":1.75},{"$f":"IF('[1]MONE(M)CAPARD'!AV381=\"\",\"\",'[1]MONE(M)CAPARD'!AV381)","v":3},{"$f":"IF('[1]MONE(M)CAPARD'!AW381=\"\",\"\",'[1]MONE(M)CAPARD'!AW381)","v":4},{"$f":"IF('[1]MONE(M)CAPARD'!AX381=\"\",\"\",'[1]MONE(M)CAPARD'!AX381)","v":3},{"$f":"IF('[1]MONE(M)CAPARD'!AY381=\"\",\"\",'[1]MONE(M)CAPARD'!AY381)","v":"n.a."},{"$f":"IF('[1]FISCAL(M)'!$K381=\"\",\"\",'[1]FISCAL(M)'!$K381)","v":-19370.04493222235},{"$f":"IF('[1]FISCAL(M)'!$L381=\"\",\"\",'[1]FISCAL(M)'!$L381)","v":-24256.34493222235},{"$f":"IF('[1]FISCAL(M)'!$AY381=\"\",\"\",'[1]FISCAL(M)'!$AY381)","v":171452.39968894806},{"$f":"IF('[1]FISCAL(M)'!$BI381=\"\",\"\",'[1]FISCAL(M)'!$BI381)","v":89093.80079930785},{"$f":"IF('[1]FISCAL(M)'!$BS381=\"\",\"\",'[1]FISCAL(M)'!$BS381)","v":82358.598889640212},{"$f":"IF('[1]FISCAL(M)'!$AZ381=\"\",\"\",'[1]FISCAL(M)'!$AZ381)","v":208412.33968894806},{"$f":"IF('[1]FISCAL(M)'!$BJ381=\"\",\"\",'[1]FISCAL(M)'!$BJ381)","v":96236.350799307838},{"$f":"IF('[1]FISCAL(M)'!$BT381=\"\",\"\",'[1]FISCAL(M)'!$BT381)","v":112175.98888964021},{"$f":"IF('[2]MONE(M)'!$AO381=\"\",\"\",'[2]MONE(M)'!$AO381)","v":22737170.456663206},{"$f":"IF('[3]MONE(M)'!$AO381=\"\",\"\",'[3]MONE(M)'!$AO381)","v":14355.025587390002},{"$f":"IF('[4]MONE(M)'!$AO381=\"\",\"\",'[4]MONE(M)'!$AO381)","v":228437.58019367466},{"$f":"+'[5]MONE(M)'!$AO381","v":396872.49237372872},{"$f":"IF('[6]MONE(M)'!$AO381=\"\",\"\",'[6]MONE(M)'!$AO381)","v":120945.47346676538},{"$f":"IF('[7]MONE(M)'!$AO381=\"\",\"\",'[7]MONE(M)'!$AO381)","v":1335093.4105642601},{"$f":"IF('[8]MONE(M)'!$AO381=\"\",\"\",'[8]MONE(M)'!$AO381)","v":51600.883864019997},{"$f":"IF(BY374=\"\",\"\",((BY374/BY362)-1)*100)","v":3.9446780197889275},{"$f":"IF(BZ374=\"\",\"\",((BZ374/BZ362)-1)*100)","v":2.6729038875000111},{"$f":"IF(CA374=\"\",\"\",((CA374/CA362)-1)*100)","v":5.9116243999646656},{"$f":"IF(CB374=\"\",\"\",((CB374/CB362)-1)*100)","v":2.9493678033488679},{"$f":"IF(CC374=\"\",\"\",((CC374/CC362)-1)*100)","v":-4.0777602816925551},{"$f":"IF(CD374=\"\",\"\",((CD374/CD362)-1)*100)","v":5.1375665842864793},-3.2695156978307827,{"$f":"'[1]FISCAL(M)'!$K381","v":-19370.04493222235},{"$f":"+'[1]REAL(A)'!$AO$40","v":279528.85554939549},-6.929533229816939,{"$f":"IF('[1]FISCAL(M)'!$L381=\"\",\"\",'[1]FISCAL(M)'!$L381)","v":-24256.34493222235},{"$f":"+'[1]REAL(A)'!$AP$40","v":333505.88843652798},-7.2731384282106184,{"$f":"+IF(OR(CT374=\"\",+CU374=\"\",+CV374=\"\"),\"\",(CT374+CU374+CV374))","v":171761.92636511693},{"$f":"'[1]Gráfico REM'!BG375","v":39321.554877457464},{"$f":"'[1]Gráfico REM'!BH375","v":123403.53725601517},{"$f":"'[1]Gráfico REM'!BI375","v":9036.8342316442759},{"$f":"IFERROR(+((CS374/CS362)-1)*100,\"\")","v":5.0989413379759485},{"$f":"IFERROR(+((CT374/CT362)-1)*100,\"\")","v":28.737606158652973},{"$f":"IFERROR(+((CU374/CU362)-1)*100,\"\")","v":-0.27618094153191164},{"$f":"IFERROR(+((CV374/CV362)-1)*100,\"\")","v":-1.1237129843129079},{"$f":"+IF(OR(DB374=\"\",+DC374=\"\",+DD374=\"\"),\"\",(DB374+DC374+DD374))","v":250052.45027652691},{"$f":"'[1]Gráfico REM'!BK375","v":43319.631147317465},{"$f":"'[1]Gráfico REM'!BL375","v":175004.42112003517},{"$f":"'[1]Gráfico REM'!BM375","v":31728.398009174278},{"$f":"IFERROR(+((DA374/DA362)-1)*100,\"\")","v":3.6196978259871893},{"$f":"IFERROR(+((DB374/DB362)-1)*100,\"\")","v":30.699346645459812},{"$f":"IFERROR(+((DC374/DC362)-1)*100,\"\")","v":-1.1778647682313625},{"$f":"IFERROR(+((DD374/DD362)-1)*100,\"\")","v":2.0773825780772137}]
[2021,"enero",{"$f":"A375&\"-\"&B375","v":"2021-enero"},{"$f":"IF('[1]REAL IPC(M)'!$AL382=\"\",\"\",+'[1]REAL IPC(M)'!$AL382)","v":4.1212902697470355},{"$f":"IF('[1]REAL IPC(M)'!$BE382=\"\",\"\",+'[1]REAL IPC(M)'!$BE382)","v":4.207955489962445},{"$f":"IF('[1]REAL IPC(M)'!$AM382=\"\",\"\",+'[1]REAL IPC(M)'!$AM382)","v":3.3903895535861928},{"$f":"IF('[1]REAL IPC(M)'!$BI382=\"\",\"\",+'[1]REAL IPC(M)'!$BI382)","v":3.6864738194573476},{"$f":"IF('[1]REAL IMAE(M)'!BJ382=\"\",\"\",'[1]REAL IMAE(M)'!BJ382)","v":-0.38806280900607337},{"$f":"IF('[1]REAL IMAE(M)'!BK382=\"\",\"\",'[1]REAL IMAE(M)'!BK382)","v":2.8513643516729026},{"$f":"IF('[1]REAL IMAE(M)'!BN382=\"\",\"\",'[1]REAL IMAE(M)'!BN382)","v":-1.9817933783245145},{"$f":"IF('[1]REAL IMAE(M)'!BO382=\"\",\"\",'[1]REAL IMAE(M)'!BO382)","v":2.4722913567181815},{"$f":"IF('[1]EXT RIN(M)'!$K382=\"\",\"\",'[1]EXT RIN(M)'!$K382)","v":52144.534202933362},null,{"$f":"IF('[1]EXT RIN(M)'!$L382=\"\",\"\",'[1]EXT RIN(M)'!$L382)","v":61821.123641323364},null,{"$f":"IF('[1]MONE(M)CARD'!EG382=\"\",\"\",'[1]MONE(M)CARD'!EG382)","v":52794.668343823643},{"$f":"IF('[1]MONE(M)CARD'!EK382=\"\",\"\",'[1]MONE(M)CARD'!EK382)","v":64562.012026915232},{"$f":"IF('[1]MONE(M)CARD'!EP382=\"\",\"\",'[1]MONE(M)CARD'!EP382)","v":38129.986006882013},{"$f":"IF('[1]MONE(M)CARD'!ES382=\"\",\"\",'[1]MONE(M)CARD'!ES382)","v":22.906805222173809},{"$f":"IF('[1]MONE(M)CARD'!EV382=\"\",\"\",'[1]MONE(M)CARD'!EV382)","v":12.373529953314533},{"$f":"IF('[1]MONE(M)CARD'!EZ382=\"\",\"\",'[1]MONE(M)CARD'!EZ382)","v":13.274586750856376},{"$f":"IF('[1]MONE(M)CAPARD'!FC382=\"\",\"\",'[1]MONE(M)CAPARD'!FC382)","v":61842.578943593639},{"$f":"IF('[1]MONE(M)CAPARD'!FG382=\"\",\"\",'[1]MONE(M)CAPARD'!FG382)","v":101191.96465634523},{"$f":"IF('[1]MONE(M)CAPARD'!FL382=\"\",\"\",'[1]MONE(M)CAPARD'!FL382)","v":38129.986006882013},{"$f":"IF('[1]MONE(M)CAPARD'!FO382=\"\",\"\",'[1]MONE(M)CAPARD'!FO382)","v":21.837425909189847},{"$f":"IF('[1]MONE(M)CAPARD'!FR382=\"\",\"\",'[1]MONE(M)CAPARD'!FR382)","v":11.150545366594855},{"$f":"IF('[1]MONE(M)CAPARD'!FV382=\"\",\"\",'[1]MONE(M)CAPARD'!FV382)","v":12.063227251379715},{"$f":"IF('[1]MONE(M)CARD'!FV382=\"\",\"\",'[1]MONE(M)CARD'!FV382)","v":1954.0046816006263},{"$f":"IF('[1]MONE(M)CARD'!GD382=\"\",\"\",'[1]MONE(M)CARD'!GD382)","v":165.71472286348174},{"$f":"IF('[1]MONE(M)CARD'!GE382=\"\",\"\",'[1]MONE(M)CARD'!GE382)","v":14687.979050493965},{"$f":"IF(AD375=\"\",\"\",((AD375/AD362)-1)*100)","v":13.10665242403244},{"$f":"IF('[9]II.2.Balance OSD-Activos'!J240=\"\",\"\",'[9]II.2.Balance OSD-Activos'!J240)","v":360.26940866018458},{"$f":"IF('[9]II.2.Balance OSD-Activos'!N240=\"\",\"\",'[9]II.2.Balance OSD-Activos'!N240)","v":1193.0386654264776},{"$f":"IF('[9]II.2.Balance OSD-Activos'!R240=\"\",\"\",'[9]II.2.Balance OSD-Activos'!R240)","v":56381.532574813653},{"$f":"IF('[9]II.2.Balance OSD-Activos'!S240=\"\",\"\",'[9]II.2.Balance OSD-Activos'!S240)","v":61316.624188474023},{"$f":"IFERROR(+AF375+AH375,\"\")","v":56741.801983473837},119251.46483737434,18.626298584799539,0.78616627592966726,-3.1499572459395164,0.68940727275552671,-1.4355925922082458,-0.40861201128566949,0.13207094157431376,{"$f":"IF('[1]MONE(M)CAPARD'!GS382=\"\",\"\",'[1]MONE(M)CAPARD'!GS382)","v":32896.978339445552},{"$f":"IF('[1]MONE(M)CARD'!HA382=\"\",\"\",'[1]MONE(M)CAPARD'!HA382)","v":16860.710740533967},{"$f":"IF('[1]MONE(M)CAPARD'!HB382=\"\",\"\",'[1]MONE(M)CAPARD'!HB382)","v":16036.267598911585},"n.d.",{"$f":"IF('[10]II.2.Balance OSD-Activos'!J240=\"\",\"\",'[10]II.2.Balance OSD-Activos'!J240)","v":2953.9345757001852},{"$f":"IF('[10]II.2.Balance OSD-Activos'!N240=\"\",\"\",'[10]II.2.Balance OSD-Activos'!N240)","v":1729.9760679264775},{"$f":"IF('[10]II.2.Balance OSD-Activos'!R240=\"\",\"\",'[10]II.2.Balance OSD-Activos'!R240)","v":78125.188993963646},{"$f":"IF('[10]II.2.Balance OSD-Activos'!S240=\"\",\"\",'[10]II.2.Balance OSD-Activos'!S240)","v":87738.000309154013},{"$f":"IFERROR(+AW375+AY375,\"\")","v":81079.123569663832},170547.09994674433,6.9210269509822231,-1.0407280358808779,-5.1011511743152553,-1.3185655804463292,-0.76571250333391516,-0.94249084223448909,8.5661554890803515E-2,{"$f":"IF('[1]MONE(M)CAPARD'!AS382=\"\",\"\",'[1]MONE(M)CAPARD'!AS382)","v":0.75},{"$f":"IF('[1]MONE(M)CAPARD'!AT382=\"\",\"\",'[1]MONE(M)CAPARD'!AT382)","v":"n.a."},{"$f":"IF('[1]MONE(M)CAPARD'!AU382=\"\",\"\",'[1]MONE(M)CAPARD'!AU382)","v":1.75},{"$f":"IF('[1]MONE(M)CAPARD'!AV382=\"\",\"\",'[1]MONE(M)CAPARD'!AV382)","v":3},{"$f":"IF('[1]MONE(M)CAPARD'!AW382=\"\",\"\",'[1]MONE(M)CAPARD'!AW382)","v":3.75},{"$f":"IF('[1]MONE(M)CAPARD'!AX382=\"\",\"\",'[1]MONE(M)CAPARD'!AX382)","v":3},{"$f":"IF('[1]MONE(M)CAPARD'!AY382=\"\",\"\",'[1]MONE(M)CAPARD'!AY382)","v":"n.a."},{"$f":"IF('[1]FISCAL(M)'!$K382=\"\",\"\",'[1]FISCAL(M)'!$K382)","v":-130.62834549317188},{"$f":"IF('[1]FISCAL(M)'!$L382=\"\",\"\",'[1]FISCAL(M)'!$L382)","v":"n.d."},{"$f":"IF('[1]FISCAL(M)'!$AY382=\"\",\"\",'[1]FISCAL(M)'!$AY382)","v":177118.45564206049},{"$f":"IF('[1]FISCAL(M)'!$BI382=\"\",\"\",'[1]FISCAL(M)'!$BI382)","v":92350.073745767513},{"$f":"IF('[1]FISCAL(M)'!$BS382=\"\",\"\",'[1]FISCAL(M)'!$BS382)","v":84768.381896292994},{"$f":"IF('[1]FISCAL(M)'!$AZ382=\"\",\"\",'[1]FISCAL(M)'!$AZ382)","v":216026.32564206049},{"$f":"IF('[1]FISCAL(M)'!$BJ382=\"\",\"\",'[1]FISCAL(M)'!$BJ382)","v":99429.623745767516},{"$f":"IF('[1]FISCAL(M)'!$BT382=\"\",\"\",'[1]FISCAL(M)'!$BT382)","v":116596.701896293},{"$f":"IF('[2]MONE(M)'!$AO382=\"\",\"\",'[2]MONE(M)'!$AO382)","v":22696180.662487213},{"$f":"IF('[3]MONE(M)'!$AO382=\"\",\"\",'[3]MONE(M)'!$AO382)","v":14364.358130569999},{"$f":"IF('[4]MONE(M)'!$AO382=\"\",\"\",'[4]MONE(M)'!$AO382)","v":229473.78707608837},{"$f":"+'[5]MONE(M)'!$AO382","v":397567.73673606658},{"$f":"IF('[6]MONE(M)'!$AO382=\"\",\"\",'[6]MONE(M)'!$AO382)","v":120304.863003438},{"$f":"IF('[7]MONE(M)'!$AO382=\"\",\"\",'[7]MONE(M)'!$AO382)","v":1327017.0076150002},{"$f":"IF('[8]MONE(M)'!$AO382=\"\",\"\",'[8]MONE(M)'!$AO382)","v":51572.005258420002},{"$f":"IF(BY375=\"\",\"\",((BY375/BY363)-1)*100)","v":3.6684535170541155},{"$f":"IF(BZ375=\"\",\"\",((BZ375/BZ363)-1)*100)","v":2.0931913855708251},{"$f":"IF(CA375=\"\",\"\",((CA375/CA363)-1)*100)","v":6.122606925053975},{"$f":"IF(CB375=\"\",\"\",((CB375/CB363)-1)*100)","v":2.5825531365680998},{"$f":"IF(CC375=\"\",\"\",((CC375/CC363)-1)*100)","v":-4.3862924942772992},{"$f":"IF(CD375=\"\",\"\",((CD375/CD363)-1)*100)","v":4.2222063751522709},{"$f":"IF(CE375=\"\",\"\",((CE375/CE363)-1)*100)","v":-3.2929504077583882},{"$f":"'[1]FISCAL(M)'!$K382","v":-130.62834549317188},{"$f":"+'[1]REAL(A)'!$AO$41","v":315762.79656609107},-4.1369137502501999E-2,{"$f":"IF('[1]FISCAL(M)'!$L382=\"\",\"\",'[1]FISCAL(M)'!$L382)","v":"n.d."},{"$f":"+'[1]REAL(A)'!$AP$41","v":379367.86234669382},"n.d.",174345.39135436749,{"$f":"'[1]Gráfico REM'!BG376","v":41771.995754262025},{"$f":"'[1]Gráfico REM'!BH376","v":123515.42495758709},{"$f":"'[1]Gráfico REM'!BI376","v":9057.9706425183704},5.6636738820809329,30.032097715274865,-0.28526831189120694,0.56416188199515105,252329.8707855175,{"$f":"'[1]Gráfico REM'!BK376","v":45803.708640182027},{"$f":"'[1]Gráfico REM'!BL376","v":175087.43021600711},{"$f":"'[1]Gráfico REM'!BM376","v":31438.731929328365},4.01097850272365,33.403637871131345,-1.1904417560462566,1.1941601544500191]
[2021,"febrero","2021-febrero",{"$f":"IF('[1]REAL IPC(M)'!$AL383=\"\",\"\",+'[1]REAL IPC(M)'!$AL383)","v":4.5808711928708501},{"$f":"IF('[1]REAL IPC(M)'!$BE383=\"\",\"\",+'[1]REAL IPC(M)'!$BE383)","v":4.2944840915720484},{"$f":"IF('[1]REAL IPC(M)'!$AM383=\"\",\"\",+'[1]REAL IPC(M)'!$AM383)","v":3.8982814318762049},{"$f":"IF('[1]REAL IPC(M)'!$BI383=\"\",\"\",+'[1]REAL IPC(M)'!$BI383)","v":3.7811402501739089},{"$f":"IF('[1]REAL IMAE(M)'!BJ383=\"\",\"\",'[1]REAL IMAE(M)'!BJ383)","v":2.6287410324557392},{"$f":"IF('[1]REAL IMAE(M)'!BK383=\"\",\"\",'[1]REAL IMAE(M)'!BK383)","v":3.0461484798612437},{"$f":"IF('[1]REAL IMAE(M)'!BN383=\"\",\"\",'[1]REAL IMAE(M)'!BN383)","v":-0.13232282591788547},{"$f":"IF('[1]REAL IMAE(M)'!BO383=\"\",\"\",'[1]REAL IMAE(M)'!BO383)","v":2.7291835312391211},{"$f":"IF('[1]EXT RIN(M)'!$K383=\"\",\"\",'[1]EXT RIN(M)'!$K383)","v":51550.395087251425},null,{"$f":"IF('[1]EXT RIN(M)'!$L383=\"\",\"\",'[1]EXT RIN(M)'!$L383)","v":60613.072001821427},null,{"$f":"IF('[1]MONE(M)CARD'!EG383=\"\",\"\",'[1]MONE(M)CARD'!EG383)","v":52970.395797882687},{"$f":"IF('[1]MONE(M)CARD'!EK383=\"\",\"\",'[1]MONE(M)CARD'!EK383)","v":65269.140678802061},{"$f":"IF('[1]MONE(M)CARD'!EP383=\"\",\"\",'[1]MONE(M)CARD'!EP383)","v":38531.650716494114},{"$f":"IF('[1]MONE(M)CARD'!ES383=\"\",\"\",'[1]MONE(M)CARD'!ES383)","v":22.761501998155275},{"$f":"IF('[1]MONE(M)CARD'!EV383=\"\",\"\",'[1]MONE(M)CARD'!EV383)","v":13.06802808607106},{"$f":"IF('[1]MONE(M)CARD'!EZ383=\"\",\"\",'[1]MONE(M)CARD'!EZ383)","v":13.83375849884818},{"$f":"IF('[1]MONE(M)CAPARD'!FC383=\"\",\"\",'[1]MONE(M)CAPARD'!FC383)","v":62064.704939372677},{"$f":"IF('[1]MONE(M)CAPARD'!FG383=\"\",\"\",'[1]MONE(M)CAPARD'!FG383)","v":101988.69230264206},{"$f":"IF('[1]MONE(M)CAPARD'!FL383=\"\",\"\",'[1]MONE(M)CAPARD'!FL383)","v":38531.650716494099},{"$f":"IF('[1]MONE(M)CAPARD'!FO383=\"\",\"\",'[1]MONE(M)CAPARD'!FO383)","v":21.73589271574361},{"$f":"IF('[1]MONE(M)CAPARD'!FR383=\"\",\"\",'[1]MONE(M)CAPARD'!FR383)","v":11.679180380453303},{"$f":"IF('[1]MONE(M)CAPARD'!FV383=\"\",\"\",'[1]MONE(M)CAPARD'!FV383)","v":12.520593018479742},{"$f":"IF('[1]MONE(M)CARD'!FV383=\"\",\"\",'[1]MONE(M)CARD'!FV383)","v":1945.8783818192528},{"$f":"IF('[1]MONE(M)CARD'!GD383=\"\",\"\",'[1]MONE(M)CARD'!GD383)","v":136.34823891235359},{"$f":"IF('[1]MONE(M)CARD'!GE383=\"\",\"\",'[1]MONE(M)CARD'!GE383)","v":14853.031016338644},10.249086381421213,{"$f":"IF('[9]II.2.Balance OSD-Activos'!J241=\"\",\"\",'[9]II.2.Balance OSD-Activos'!J241)","v":352.86296616909362},{"$f":"IF('[9]II.2.Balance OSD-Activos'!N241=\"\",\"\",'[9]II.2.Balance OSD-Activos'!N241)","v":1224.493177041214},{"$f":"IF('[9]II.2.Balance OSD-Activos'!R241=\"\",\"\",'[9]II.2.Balance OSD-Activos'!R241)","v":56842.841789835729},{"$f":"IF('[9]II.2.Balance OSD-Activos'!S241=\"\",\"\",'[9]II.2.Balance OSD-Activos'!S241)","v":61691.874123843503},57195.704756004823,120112.07205688953,17.900058069602665,1.5746736214950596,4.2554618602428151,1.4874383759827747,-0.94551731076023549,0.2903945588976109,0.69900657018328038,{"$f":"IF('[1]MONE(M)CAPARD'!GS383=\"\",\"\",'[1]MONE(M)CAPARD'!GS383)","v":33767.055402475104},{"$f":"IF('[1]MONE(M)CARD'!HA383=\"\",\"\",'[1]MONE(M)CAPARD'!HA383)","v":17052.863046628641},{"$f":"IF('[1]MONE(M)CAPARD'!HB383=\"\",\"\",'[1]MONE(M)CAPARD'!HB383)","v":16714.192355846462},"n.d.",{"$f":"IF('[10]II.2.Balance OSD-Activos'!J241=\"\",\"\",'[10]II.2.Balance OSD-Activos'!J241)","v":2978.798733629093},{"$f":"IF('[10]II.2.Balance OSD-Activos'!N241=\"\",\"\",'[10]II.2.Balance OSD-Activos'!N241)","v":1747.8579319212138},{"$f":"IF('[10]II.2.Balance OSD-Activos'!R241=\"\",\"\",'[10]II.2.Balance OSD-Activos'!R241)","v":78564.951975165721},{"$f":"IF('[10]II.2.Balance OSD-Activos'!S241=\"\",\"\",'[10]II.2.Balance OSD-Activos'!S241)","v":88167.637659393498},81543.750708794818,171459.24630010955,7.330645337535624,-0.3491842499210529,-0.27469086729762227,-0.61879946235111616,-0.47695562932869029,-0.41416987234700331,0.52832096988748578,{"$f":"IF('[1]MONE(M)CAPARD'!AS383=\"\",\"\",'[1]MONE(M)CAPARD'!AS383)","v":0.75},{"$f":"IF('[1]MONE(M)CAPARD'!AT383=\"\",\"\",'[1]MONE(M)CAPARD'!AT383)","v":"n.a."},{"$f":"IF('[1]MONE(M)CAPARD'!AU383=\"\",\"\",'[1]MONE(M)CAPARD'!AU383)","v":1.75},{"$f":"IF('[1]MONE(M)CAPARD'!AV383=\"\",\"\",'[1]MONE(M)CAPARD'!AV383)","v":3},{"$f":"IF('[1]MONE(M)CAPARD'!AW383=\"\",\"\",'[1]MONE(M)CAPARD'!AW383)","v":3.75},{"$f":"IF('[1]MONE(M)CAPARD'!AX383=\"\",\"\",'[1]MONE(M)CAPARD'!AX383)","v":3},{"$f":"IF('[1]MONE(M)CAPARD'!AY383=\"\",\"\",'[1]MONE(M)CAPARD'!AY383)","v":"n.a."},{"$f":"IF('[1]FISCAL(M)'!$K383=\"\",\"\",'[1]FISCAL(M)'!$K383)","v":-795.50697029209175},{"$f":"IF('[1]FISCAL(M)'!$L383=\"\",\"\",'[1]FISCAL(M)'!$L383)","v":"n.d."},{"$f":"IF('[1]FISCAL(M)'!$AY383=\"\",\"\",'[1]FISCAL(M)'!$AY383)","v":177992.51729022569},{"$f":"IF('[1]FISCAL(M)'!$BI383=\"\",\"\",'[1]FISCAL(M)'!$BI383)","v":93312.887010424165},{"$f":"IF('[1]FISCAL(M)'!$BS383=\"\",\"\",'[1]FISCAL(M)'!$BS383)","v":84679.630279801524},{"$f":"IF('[1]FISCAL(M)'!$AZ383=\"\",\"\",'[1]FISCAL(M)'!$AZ383)","v":216432.10729022569},{"$f":"IF('[1]FISCAL(M)'!$BJ383=\"\",\"\",'[1]FISCAL(M)'!$BJ383)","v":99969.507010424175},{"$f":"IF('[1]FISCAL(M)'!$BT383=\"\",\"\",'[1]FISCAL(M)'!$BT383)","v":116462.60027980153},{"$f":"IF('[2]MONE(M)'!$AO383=\"\",\"\",'[2]MONE(M)'!$AO383)","v":22670237.152413562},{"$f":"IF('[3]MONE(M)'!$AO383=\"\",\"\",'[3]MONE(M)'!$AO383)","v":14372.210108990954},{"$f":"IF('[4]MONE(M)'!$AO383=\"\",\"\",'[4]MONE(M)'!$AO383)","v":230672.50789236353},{"$f":"+'[5]MONE(M)'!$AO383","v":401077.51212584681},{"$f":"IF('[6]MONE(M)'!$AO383=\"\",\"\",'[6]MONE(M)'!$AO383)","v":120840.82856581564},{"$f":"IF('[7]MONE(M)'!$AO383=\"\",\"\",'[7]MONE(M)'!$AO383)","v":1335748.133712},{"$f":"IF('[8]MONE(M)'!$AO383=\"\",\"\",'[8]MONE(M)'!$AO383)","v":51681.814670609994},3.5514323895042388,1.8119634277849572,6.3328255425260327,2.9604159905775473,-3.703895100710064,4.5338991521331362,-3.2088581193290722,{"$f":"'[1]FISCAL(M)'!$K383","v":-795.50697029209175},{"$f":"+'[1]REAL(A)'!$AO$41","v":315762.79656609107},-0.25193182317334439,{"$f":"IF('[1]FISCAL(M)'!$L383=\"\",\"\",'[1]FISCAL(M)'!$L383)","v":"n.d."},{"$f":"+'[1]REAL(A)'!$AP$41","v":379367.86234669382},"n.d.",176377.80979802975,{"$f":"'[1]Gráfico REM'!BG377","v":42958.446242274462},{"$f":"'[1]Gráfico REM'!BH377","v":124330.98669153458},{"$f":"'[1]Gráfico REM'!BI377","v":9088.3768642207124},6.3805924152617655,31.539054650345832,0.27706570881378401,-0.70689679172787345,254876.50085658976,{"$f":"'[1]Gráfico REM'!BK377","v":47049.466779924463},{"$f":"'[1]Gráfico REM'!BL377","v":176012.80136214459},{"$f":"'[1]Gráfico REM'!BM377","v":31814.232714520716},4.8897050917322771,34.604413251783448,-0.77225657036604778,3.7705732546158277]
[2021,"marzo","2021-marzo",{"$f":"IF('[1]REAL IPC(M)'!$AL384=\"\",\"\",+'[1]REAL IPC(M)'!$AL384)","v":5.0181641321859649},{"$f":"IF('[1]REAL IPC(M)'!$BE384=\"\",\"\",+'[1]REAL IPC(M)'!$BE384)","v":4.3797478056303518},{"$f":"IF('[1]REAL IPC(M)'!$AM384=\"\",\"\",+'[1]REAL IPC(M)'!$AM384)","v":4.3932714803731177},{"$f":"IF('[1]REAL IPC(M)'!$BI384=\"\",\"\",+'[1]REAL IPC(M)'!$BI384)","v":3.8752365857352533},{"$f":"IF('[1]REAL IMAE(M)'!BJ384=\"\",\"\",'[1]REAL IMAE(M)'!BJ384)","v":11.525942803287293},{"$f":"IF('[1]REAL IMAE(M)'!BK384=\"\",\"\",'[1]REAL IMAE(M)'!BK384)","v":3.2386135364405932},{"$f":"IF('[1]REAL IMAE(M)'!BN384=\"\",\"\",'[1]REAL IMAE(M)'!BN384)","v":9.6852574075904094},{"$f":"IF('[1]REAL IMAE(M)'!BO384=\"\",\"\",'[1]REAL IMAE(M)'!BO384)","v":2.9856073398819349},{"$f":"IF('[1]EXT RIN(M)'!$K384=\"\",\"\",'[1]EXT RIN(M)'!$K384)","v":51971.14136282503},null,{"$f":"IF('[1]EXT RIN(M)'!$L384=\"\",\"\",'[1]EXT RIN(M)'!$L384)","v":59862.44055592503},null,{"$f":"IF('[1]MONE(M)CARD'!EG384=\"\",\"\",'[1]MONE(M)CARD'!EG384)","v":53540.700647215534},{"$f":"IF('[1]MONE(M)CARD'!EK384=\"\",\"\",'[1]MONE(M)CARD'!EK384)","v":66323.896401980441},{"$f":"IF('[1]MONE(M)CARD'!EP384=\"\",\"\",'[1]MONE(M)CARD'!EP384)","v":38691.146860312248},{"$f":"IF('[1]MONE(M)CARD'!ES384=\"\",\"\",'[1]MONE(M)CARD'!ES384)","v":22.94206656156943},{"$f":"IF('[1]MONE(M)CARD'!EV384=\"\",\"\",'[1]MONE(M)CARD'!EV384)","v":14.357582147316684},{"$f":"IF('[1]MONE(M)CARD'!EZ384=\"\",\"\",'[1]MONE(M)CARD'!EZ384)","v":14.161448083954253},{"$f":"IF('[1]MONE(M)CAPARD'!FC384=\"\",\"\",'[1]MONE(M)CAPARD'!FC384)","v":62765.784632405543},{"$f":"IF('[1]MONE(M)CAPARD'!FG384=\"\",\"\",'[1]MONE(M)CAPARD'!FG384)","v":103335.03796472041},{"$f":"IF('[1]MONE(M)CAPARD'!FL384=\"\",\"\",'[1]MONE(M)CAPARD'!FL384)","v":38691.146860312263},{"$f":"IF('[1]MONE(M)CAPARD'!FO384=\"\",\"\",'[1]MONE(M)CAPARD'!FO384)","v":21.4855680025263},{"$f":"IF('[1]MONE(M)CAPARD'!FR384=\"\",\"\",'[1]MONE(M)CAPARD'!FR384)","v":12.724979858774276},{"$f":"IF('[1]MONE(M)CAPARD'!FV384=\"\",\"\",'[1]MONE(M)CAPARD'!FV384)","v":12.881438000319578},{"$f":"IF('[1]MONE(M)CARD'!FV384=\"\",\"\",'[1]MONE(M)CARD'!FV384)","v":1911.9055911655114},{"$f":"IF('[1]MONE(M)CARD'!GD384=\"\",\"\",'[1]MONE(M)CARD'!GD384)","v":133.18813669907533},{"$f":"IF('[1]MONE(M)CARD'!GE384=\"\",\"\",'[1]MONE(M)CARD'!GE384)","v":14854.06055092755},10.728292826744523,{"$f":"IF('[9]II.2.Balance OSD-Activos'!J242=\"\",\"\",'[9]II.2.Balance OSD-Activos'!J242)","v":323.53461029305373},{"$f":"IF('[9]II.2.Balance OSD-Activos'!N242=\"\",\"\",'[9]II.2.Balance OSD-Activos'!N242)","v":1261.0767833194141},{"$f":"IF('[9]II.2.Balance OSD-Activos'!R242=\"\",\"\",'[9]II.2.Balance OSD-Activos'!R242)","v":57513.914468906114},{"$f":"IF('[9]II.2.Balance OSD-Activos'!S242=\"\",\"\",'[9]II.2.Balance OSD-Activos'!S242)","v":62208.995199330238},57837.44907919917,121307.52106184882,{"$f":"IF(OR(AF377=\"\",AF365=\"\"),\"\",((AF377/AF365)-1)*100)","v":5.1945978131981763},{"$f":"IF(OR(AJ377=\"\",AJ365=\"\"),\"\",((AJ377/AJ365)-1)*100)","v":1.4039886217922515},{"$f":"IF(OR(AG377=\"\",AG365=\"\"),\"\",((AG377/AG365)-1)*100)","v":2.2023611111405605},{"$f":"IF(OR(AH377=\"\",AH365=\"\"),\"\",((AH377/AH365)-1)*100)","v":1.383437742598792},{"$f":"IF(OR(AI377=\"\",AI365=\"\"),\"\",((AI377/AI365)-1)*100)","v":0.72490611988493825},{"$f":"IF(OR(AK377=\"\",AK365=\"\"),\"\",((AK377/AK365)-1)*100)","v":1.0627800584246838},{"$f":"IF(OR(AQ377=\"\",AQ376=\"\"),\"\",AQ377-AQ376)","v":0.77238549952707292},{"$f":"IF('[1]MONE(M)CAPARD'!GS384=\"\",\"\",'[1]MONE(M)CAPARD'!GS384)","v":35195.20933186906},{"$f":"IF('[1]MONE(M)CARD'!HA384=\"\",\"\",'[1]MONE(M)CAPARD'!HA384)","v":17127.722750557547},{"$f":"IF('[1]MONE(M)CAPARD'!HB384=\"\",\"\",'[1]MONE(M)CAPARD'!HB384)","v":18067.486581311514},"n.d.",{"$f":"IF('[10]II.2.Balance OSD-Activos'!J242=\"\",\"\",'[10]II.2.Balance OSD-Activos'!J242)","v":2922.4512480730536},{"$f":"IF('[10]II.2.Balance OSD-Activos'!N242=\"\",\"\",'[10]II.2.Balance OSD-Activos'!N242)","v":1776.2540504194142},{"$f":"IF('[10]II.2.Balance OSD-Activos'!R242=\"\",\"\",'[10]II.2.Balance OSD-Activos'!R242)","v":79231.921152476105},{"$f":"IF('[10]II.2.Balance OSD-Activos'!S242=\"\",\"\",'[10]II.2.Balance OSD-Activos'!S242)","v":88730.140945560241},82154.372400549153,172660.7673965288,{"$f":"IF(OR(AW377=\"\",AW365=\"\"),\"\",((AW377/AW365)-1)*100)","v":9.5922015063111488},{"$f":"IF(OR(BA377=\"\",BA365=\"\"),\"\",((BA377/BA365)-1)*100)","v":-0.7615655516602704},{"$f":"IF(OR(AX377=\"\",AX365=\"\"),\"\",((AX377/AX365)-1)*100)","v":-4.0851415075620849},{"$f":"IF(OR(AY377=\"\",AY365=\"\"),\"\",((AY377/AY365)-1)*100)","v":-1.1061811847914882},{"$f":"IF(OR(AZ377=\"\",AZ365=\"\"),\"\",((AZ377/AZ365)-1)*100)","v":0.7038808789443074},{"$f":"IF(OR(BB377=\"\",BB365=\"\"),\"\",((BB377/BB365)-1)*100)","v":-4.9740282455090767E-2},{"$f":"IF(OR(BH377=\"\",BH376=\"\"),\"\",BH377-BH376)","v":0.36442958989191254},{"$f":"IF('[1]MONE(M)CAPARD'!AS384=\"\",\"\",'[1]MONE(M)CAPARD'!AS384)","v":0.75},{"$f":"IF('[1]MONE(M)CAPARD'!AT384=\"\",\"\",'[1]MONE(M)CAPARD'!AT384)","v":"n.a."},{"$f":"IF('[1]MONE(M)CAPARD'!AU384=\"\",\"\",'[1]MONE(M)CAPARD'!AU384)","v":1.75},{"$f":"IF('[1]MONE(M)CAPARD'!AV384=\"\",\"\",'[1]MONE(M)CAPARD'!AV384)","v":3},{"$f":"IF('[1]MONE(M)CAPARD'!AW384=\"\",\"\",'[1]MONE(M)CAPARD'!AW384)","v":3.5},{"$f":"IF('[1]MONE(M)CAPARD'!AX384=\"\",\"\",'[1]MONE(M)CAPARD'!AX384)","v":3},{"$f":"IF('[1]MONE(M)CAPARD'!AY384=\"\",\"\",'[1]MONE(M)CAPARD'!AY384)","v":"n.a."},{"$f":"IF('[1]FISCAL(M)'!$K384=\"\",\"\",'[1]FISCAL(M)'!$K384)","v":-1025.1902737645148},{"$f":"IF('[1]FISCAL(M)'!$L384=\"\",\"\",'[1]FISCAL(M)'!$L384)","v":-2211.290273764515},{"$f":"IF('[1]FISCAL(M)'!$AY384=\"\",\"\",'[1]FISCAL(M)'!$AY384)","v":179382.10790490918},{"$f":"IF('[1]FISCAL(M)'!$BI384=\"\",\"\",'[1]FISCAL(M)'!$BI384)","v":94846.943731967345},{"$f":"IF('[1]FISCAL(M)'!$BS384=\"\",\"\",'[1]FISCAL(M)'!$BS384)","v":84535.164172941804},{"$f":"IF('[1]FISCAL(M)'!$AZ384=\"\",\"\",'[1]FISCAL(M)'!$AZ384)","v":217787.22790490917},{"$f":"IF('[1]FISCAL(M)'!$BJ384=\"\",\"\",'[1]FISCAL(M)'!$BJ384)","v":101503.56373196738},{"$f":"IF('[1]FISCAL(M)'!$BT384=\"\",\"\",'[1]FISCAL(M)'!$BT384)","v":116283.66417294179},{"$f":"IF('[2]MONE(M)'!$AO384=\"\",\"\",'[2]MONE(M)'!$AO384)","v":22723013.729293309},{"$f":"IF('[3]MONE(M)'!$AO384=\"\",\"\",'[3]MONE(M)'!$AO384)","v":14458.11228682},{"$f":"IF('[4]MONE(M)'!$AO384=\"\",\"\",'[4]MONE(M)'!$AO384)","v":232654.23092473234},{"$f":"+'[5]MONE(M)'!$AO384","v":403876.6382431442},{"$f":"IF('[6]MONE(M)'!$AO384=\"\",\"\",'[6]MONE(M)'!$AO384)","v":121341.48842988742},{"$f":"IF('[7]MONE(M)'!$AO384=\"\",\"\",'[7]MONE(M)'!$AO384)","v":1349606.7310360002},{"$f":"IF('[8]MONE(M)'!$AO384=\"\",\"\",'[8]MONE(M)'!$AO384)","v":52730.253232490002},2.7957914923438132,1.2878825412196315,4.7633679965661146,3.1190007356207916,-3.5056394304158744,5.4199126963489608,-1.7740946210972441,{"$f":"'[1]FISCAL(M)'!$K384","v":-1025.1902737645148},{"$f":"+'[1]REAL(A)'!$AO$41","v":315762.79656609107},-0.32467101410090793,{"$f":"IF('[1]FISCAL(M)'!$L384=\"\",\"\",'[1]FISCAL(M)'!$L384)","v":-2211.290273764515},{"$f":"+'[1]REAL(A)'!$AP$41","v":379367.86234669382},-0.58288813925510585,179234.61651624902,{"$f":"'[1]Gráfico REM'!BG378","v":44217.661616796635},{"$f":"'[1]Gráfico REM'!BH378","v":125542.57777998871},{"$f":"'[1]Gráfico REM'!BI378","v":9474.3771194636684},8.1277344680392503,35.021146471848262,1.1685546918717593,6.2061269178449674,257860.72817897901,{"$f":"'[1]Gráfico REM'!BK378","v":47297.566460346636},{"$f":"'[1]Gráfico REM'!BL378","v":178272.83101247871},{"$f":"'[1]Gráfico REM'!BM378","v":32290.330706153673},6.2349947270382344,35.243043556004871,0.27996486477925853,7.7086353397809004]
[2021,"abril","2021-abril",{"$f":"IF('[1]REAL IPC(M)'!$AL385=\"\",\"\",+'[1]REAL IPC(M)'!$AL385)","v":5.5001698064646387},{"$f":"IF('[1]REAL IPC(M)'!$BE385=\"\",\"\",+'[1]REAL IPC(M)'!$BE385)","v":4.4631005366144283},{"$f":"IF('[1]REAL IPC(M)'!$AM385=\"\",\"\",+'[1]REAL IPC(M)'!$AM385)","v":4.998794220692715},{"$f":"IF('[1]REAL IPC(M)'!$BI385=\"\",\"\",+'[1]REAL IPC(M)'!$BI385)","v":3.9679767284936496},{"$f":"IF('[1]REAL IMAE(M)'!BJ385=\"\",\"\",'[1]REAL IMAE(M)'!BJ385)","v":20.78376102258175},{"$f":"IF('[1]REAL IMAE(M)'!BK385=\"\",\"\",'[1]REAL IMAE(M)'!BK385)","v":3.4247834398555499},{"$f":"IF('[1]REAL IMAE(M)'!BN385=\"\",\"\",'[1]REAL IMAE(M)'!BN385)","v":21.87690562204132},{"$f":"IF('[1]REAL IMAE(M)'!BO385=\"\",\"\",'[1]REAL IMAE(M)'!BO385)","v":3.236100701981659},{"$f":"IF('[1]EXT RIN(M)'!$K385=\"\",\"\",'[1]EXT RIN(M)'!$K385)","v":52490.600404501572},null,{"$f":"IF('[1]EXT RIN(M)'!$L385=\"\",\"\",'[1]EXT RIN(M)'!$L385)","v":60935.77998565157},null,{"$f":"IF('[1]MONE(M)CARD'!EG385=\"\",\"\",'[1]MONE(M)CARD'!EG385)","v":53312.554713205245},{"$f":"IF('[1]MONE(M)CARD'!EK385=\"\",\"\",'[1]MONE(M)CARD'!EK385)","v":66416.113063396726},{"$f":"IF('[1]MONE(M)CARD'!EP385=\"\",\"\",'[1]MONE(M)CARD'!EP385)","v":39140.238107124984},{"$f":"IF('[1]MONE(M)CARD'!ES385=\"\",\"\",'[1]MONE(M)CARD'!ES385)","v":17.423900686680295},{"$f":"IF('[1]MONE(M)CARD'!EV385=\"\",\"\",'[1]MONE(M)CARD'!EV385)","v":12.313591700240778},{"$f":"IF('[1]MONE(M)CARD'!EZ385=\"\",\"\",'[1]MONE(M)CARD'!EZ385)","v":12.742766621499978},{"$f":"IF('[1]MONE(M)CAPARD'!FC385=\"\",\"\",'[1]MONE(M)CAPARD'!FC385)","v":62530.649550065238},{"$f":"IF('[1]MONE(M)CAPARD'!FG385=\"\",\"\",'[1]MONE(M)CAPARD'!FG385)","v":93388.074860436711},{"$f":"IF('[1]MONE(M)CAPARD'!FL385=\"\",\"\",'[1]MONE(M)CAPARD'!FL385)","v":39140.238107124984},{"$f":"IF('[1]MONE(M)CAPARD'!FO385=\"\",\"\",'[1]MONE(M)CAPARD'!FO385)","v":16.932634080429064},{"$f":"IF('[1]MONE(M)CAPARD'!FR385=\"\",\"\",'[1]MONE(M)CAPARD'!FR385)","v":4.3763800437074618},{"$f":"IF('[1]MONE(M)CAPARD'!FV385=\"\",\"\",'[1]MONE(M)CAPARD'!FV385)","v":6.1881467590593209},{"$f":"IF('[1]MONE(M)CARD'!FV385=\"\",\"\",'[1]MONE(M)CARD'!FV385)","v":1906.659299859808},{"$f":"IF('[1]MONE(M)CARD'!GD385=\"\",\"\",'[1]MONE(M)CARD'!GD385)","v":213.97724101039975},{"$f":"IF('[1]MONE(M)CARD'!GE385=\"\",\"\",'[1]MONE(M)CARD'!GE385)","v":16414.696163642529},{"$f":"IF(AD378=\"\",\"\",((AD378/AD365)-1)*100)","v":17.288956416660639},{"$f":"IF('[9]II.2.Balance OSD-Activos'!J243=\"\",\"\",'[9]II.2.Balance OSD-Activos'!J243)","v":325.24530426863089},{"$f":"IF('[9]II.2.Balance OSD-Activos'!N243=\"\",\"\",'[9]II.2.Balance OSD-Activos'!N243)","v":1205.2306311142615},{"$f":"IF('[9]II.2.Balance OSD-Activos'!R243=\"\",\"\",'[9]II.2.Balance OSD-Activos'!R243)","v":57558.437890088651},{"$f":"IF('[9]II.2.Balance OSD-Activos'!S243=\"\",\"\",'[9]II.2.Balance OSD-Activos'!S243)","v":62447.737825554505},{"$f":"IFERROR(+AF378+AH378,\"\")","v":57883.683194357283},121536.65165102604,-8.0189611453883369,{"$f":"IF(OR(AJ378=\"\",AJ366=\"\"),\"\",((AJ378/AJ366)-1)*100)","v":-0.16788769791605818},{"$f":"IF(OR(AG378=\"\",AG366=\"\"),\"\",((AG378/AG366)-1)*100)","v":-1.0617681537224422},{"$f":"IF(OR(AH378=\"\",AH366=\"\"),\"\",((AH378/AH366)-1)*100)","v":-0.11971371606078751},{"$f":"IF(OR(AI378=\"\",AI366=\"\"),\"\",((AI378/AI366)-1)*100)","v":1.3877295623025976},{"$f":"IF(OR(AK378=\"\",AK366=\"\"),\"\",((AK378/AK366)-1)*100)","v":0.61632057459115597},{"$f":"IF(OR(AQ378=\"\",AQ377=\"\"),\"\",AQ378-AQ377)","v":-0.44645948383352785},{"$f":"IF('[1]MONE(M)CAPARD'!GS385=\"\",\"\",'[1]MONE(M)CAPARD'!GS385)","v":36067.613651585612},{"$f":"IF('[1]MONE(M)CARD'!HA385=\"\",\"\",'[1]MONE(M)CAPARD'!HA385)","v":18509.728802172529},{"$f":"IF('[1]MONE(M)CAPARD'!HB385=\"\",\"\",'[1]MONE(M)CAPARD'!HB385)","v":17557.884849413083},"n.d.",{"$f":"IF('[10]II.2.Balance OSD-Activos'!J243=\"\",\"\",'[10]II.2.Balance OSD-Activos'!J243)","v":2845.1744488586314},{"$f":"IF('[10]II.2.Balance OSD-Activos'!N243=\"\",\"\",'[10]II.2.Balance OSD-Activos'!N243)","v":2015.2352761342618},{"$f":"IF('[10]II.2.Balance OSD-Activos'!R243=\"\",\"\",'[10]II.2.Balance OSD-Activos'!R243)","v":79056.177919486639},{"$f":"IF('[10]II.2.Balance OSD-Activos'!S243=\"\",\"\",'[10]II.2.Balance OSD-Activos'!S243)","v":89095.886514430502},{"$f":"IFERROR(+AW378+AY378,\"\")","v":81901.352368345266},173012.47415891004,{"$f":"IF(OR(AW378=\"\",AW366=\"\"),\"\",((AW378/AW366)-1)*100)","v":5.0287974400571755},{"$f":"IF(OR(BA378=\"\",BA366=\"\"),\"\",((BA378/BA366)-1)*100)","v":-2.3494251622739437},{"$f":"IF(OR(AX378=\"\",AX366=\"\"),\"\",((AX378/AX366)-1)*100)","v":9.3737833618487301},{"$f":"IF(OR(AY378=\"\",AY366=\"\"),\"\",((AY378/AY366)-1)*100)","v":-2.5956855963526704},{"$f":"IF(OR(AZ378=\"\",AZ366=\"\"),\"\",((AZ378/AZ366)-1)*100)","v":1.4153495242299918},{"$f":"IF(OR(BB378=\"\",BB366=\"\"),\"\",((BB378/BB366)-1)*100)","v":-0.31940035508147835},{"$f":"IF(OR(BH378=\"\",BH377=\"\"),\"\",BH378-BH377)","v":-0.26966007262638758},{"$f":"IF('[1]MONE(M)CAPARD'!AS385=\"\",\"\",'[1]MONE(M)CAPARD'!AS385)","v":0.75},{"$f":"IF('[1]MONE(M)CAPARD'!AT385=\"\",\"\",'[1]MONE(M)CAPARD'!AT385)","v":"n.a."},{"$f":"IF('[1]MONE(M)CAPARD'!AU385=\"\",\"\",'[1]MONE(M)CAPARD'!AU385)","v":1.75},{"$f":"IF('[1]MONE(M)CAPARD'!AV385=\"\",\"\",'[1]MONE(M)CAPARD'!AV385)","v":3},{"$f":"IF('[1]MONE(M)CAPARD'!AW385=\"\",\"\",'[1]MONE(M)CAPARD'!AW385)","v":3.5},{"$f":"IF('[1]MONE(M)CAPARD'!AX385=\"\",\"\",'[1]MONE(M)CAPARD'!AX385)","v":3},{"$f":"IF('[1]MONE(M)CAPARD'!AY385=\"\",\"\",'[1]MONE(M)CAPARD'!AY385)","v":"n.a."},{"$f":"IF('[1]FISCAL(M)'!$K385=\"\",\"\",'[1]FISCAL(M)'!$K385)","v":-357.39301526762102},{"$f":"IF('[1]FISCAL(M)'!$L385=\"\",\"\",'[1]FISCAL(M)'!$L385)","v":"n.d."},{"$f":"IF('[1]FISCAL(M)'!$AY385=\"\",\"\",'[1]FISCAL(M)'!$AY385)","v":181274.96255913744},{"$f":"IF('[1]FISCAL(M)'!$BI385=\"\",\"\",'[1]FISCAL(M)'!$BI385)","v":96972.55642797178},{"$f":"IF('[1]FISCAL(M)'!$BS385=\"\",\"\",'[1]FISCAL(M)'!$BS385)","v":84302.406131165626},{"$f":"IF('[1]FISCAL(M)'!$AZ385=\"\",\"\",'[1]FISCAL(M)'!$AZ385)","v":219668.97255913744},{"$f":"IF('[1]FISCAL(M)'!$BJ385=\"\",\"\",'[1]FISCAL(M)'!$BJ385)","v":103614.92642797178},{"$f":"IF('[1]FISCAL(M)'!$BT385=\"\",\"\",'[1]FISCAL(M)'!$BT385)","v":116054.04613116563},{"$f":"IF('[2]MONE(M)'!$AO385=\"\",\"\",'[2]MONE(M)'!$AO385)","v":22820328.703954734},{"$f":"IF('[3]MONE(M)'!$AO385=\"\",\"\",'[3]MONE(M)'!$AO385)","v":14581.997619930002},{"$f":"IF('[4]MONE(M)'!$AO385=\"\",\"\",'[4]MONE(M)'!$AO385)","v":233338.49621783255},{"$f":"+'[5]MONE(M)'!$AO385","v":403604.74887475237},{"$f":"IF('[6]MONE(M)'!$AO385=\"\",\"\",'[6]MONE(M)'!$AO385)","v":120295.1539209726},{"$f":"IF('[7]MONE(M)'!$AO385=\"\",\"\",'[7]MONE(M)'!$AO385)","v":1361257.9239449999},{"$f":"IF('[8]MONE(M)'!$AO385=\"\",\"\",'[8]MONE(M)'!$AO385)","v":52662.238904173995},{"$f":"IF(BY378=\"\",\"\",((BY378/BY366)-1)*100)","v":4.6455501276852385},{"$f":"IF(BZ378=\"\",\"\",((BZ378/BZ366)-1)*100)","v":1.8846033625514513},{"$f":"IF(CA378=\"\",\"\",((CA378/CA366)-1)*100)","v":4.185759472521533},{"$f":"IF(CB378=\"\",\"\",((CB378/CB366)-1)*100)","v":2.3218278325401798},{"$f":"IF(CC378=\"\",\"\",((CC378/CC366)-1)*100)","v":-1.5201908734486014},4.9930397953873662,-1.9603617977768661,{"$f":"'[1]FISCAL(M)'!$K385","v":-357.39301526762102},{"$f":"+'[1]REAL(A)'!$AO$41","v":315762.79656609107},-0.11318401634209511,{"$f":"IF('[1]FISCAL(M)'!$L385=\"\",\"\",'[1]FISCAL(M)'!$L385)","v":"n.d."},{"$f":"+'[1]REAL(A)'!$AP$41","v":379367.86234669382},"n.d.",{"$f":"+IF(OR(CT378=\"\",+CU378=\"\",+CV378=\"\"),\"\",(CT378+CU378+CV378))","v":180510.68110004306},{"$f":"'[1]Gráfico REM'!BG379","v":45453.753616340124},{"$f":"'[1]Gráfico REM'!BH379","v":125871.85923889151},{"$f":"'[1]Gráfico REM'!BI379","v":9185.0682448114276},{"$f":"IFERROR(+((CS378/CS366)-1)*100,\"\")","v":8.4760171948322629},{"$f":"IFERROR(+((CT378/CT366)-1)*100,\"\")","v":39.125054919311644},{"$f":"IFERROR(+((CU378/CU366)-1)*100,\"\")","v":0.8759108312618169},{"$f":"IFERROR(+((CV378/CV366)-1)*100,\"\")","v":2.5575046706348692},{"$f":"+IF(OR(DB378=\"\",+DC378=\"\",+DD378=\"\"),\"\",(DB378+DC378+DD378))","v":260117.80881724806},{"$f":"'[1]Gráfico REM'!BK379","v":48954.847042684123},{"$f":"'[1]Gráfico REM'!BL379","v":178534.09814306552},{"$f":"'[1]Gráfico REM'!BM379","v":32628.863631498421},{"$f":"IFERROR(+((DA378/DA366)-1)*100,\"\")","v":6.9458146680395405},{"$f":"IFERROR(+((DB378/DB366)-1)*100,\"\")","v":40.510792716192135},{"$f":"IFERROR(+((DC378/DC366)-1)*100,\"\")","v":2.2375343039571227E-2},{"$f":"IFERROR(+((DD378/DD366)-1)*100,\"\")","v":9.1663025599449952}]
[2021,"mayo ","2021-mayo ",{"$f":"IF('[1]REAL IPC(M)'!$AL386=\"\",\"\",+'[1]REAL IPC(M)'!$AL386)","v":5.812314200905111},{"$f":"IF('[1]REAL IPC(M)'!$BE386=\"\",\"\",+'[1]REAL IPC(M)'!$BE386)","v":4.5439435192248245},{"$f":"IF('[1]REAL IPC(M)'!$AM386=\"\",\"\",+'[1]REAL IPC(M)'!$AM386)","v":5.2985995079874337},{"$f":"IF('[1]REAL IPC(M)'!$BI386=\"\",\"\",+'[1]REAL IPC(M)'!$BI386)","v":4.0586196946257758},{"$f":"IF('[1]REAL IMAE(M)'!BJ386=\"\",\"\",'[1]REAL IMAE(M)'!BJ386)","v":20.054021581052073},{"$f":"IF('[1]REAL IMAE(M)'!BK386=\"\",\"\",'[1]REAL IMAE(M)'!BK386)","v":3.6011646526924457},{"$f":"IF('[1]REAL IMAE(M)'!BN386=\"\",\"\",'[1]REAL IMAE(M)'!BN386)","v":23.015528697380127},{"$f":"IF('[1]REAL IMAE(M)'!BO386=\"\",\"\",'[1]REAL IMAE(M)'!BO386)","v":3.4756403894074195},{"$f":"IF('[1]EXT RIN(M)'!$K386=\"\",\"\",'[1]EXT RIN(M)'!$K386)","v":53212.810244589753},null,{"$f":"IF('[1]EXT RIN(M)'!$L386=\"\",\"\",'[1]EXT RIN(M)'!$L386)","v":61499.473028939756},null,{"$f":"IF('[1]MONE(M)CARD'!EG386=\"\",\"\",'[1]MONE(M)CARD'!EG386)","v":54109.180036160382},{"$f":"IF('[1]MONE(M)CARD'!EK386=\"\",\"\",'[1]MONE(M)CARD'!EK386)","v":66639.809472186156},{"$f":"IF('[1]MONE(M)CARD'!EP386=\"\",\"\",'[1]MONE(M)CARD'!EP386)","v":39757.751735714584},{"$f":"IF('[1]MONE(M)CARD'!ES386=\"\",\"\",'[1]MONE(M)CARD'!ES386)","v":17.354128061687856},{"$f":"IF('[1]MONE(M)CARD'!EV386=\"\",\"\",'[1]MONE(M)CARD'!EV386)","v":12.281945433873954},{"$f":"IF('[1]MONE(M)CARD'!EZ386=\"\",\"\",'[1]MONE(M)CARD'!EZ386)","v":12.202182512774495},{"$f":"IF('[1]MONE(M)CAPARD'!FC386=\"\",\"\",'[1]MONE(M)CAPARD'!FC386)","v":63269.28555472038},{"$f":"IF('[1]MONE(M)CAPARD'!FG386=\"\",\"\",'[1]MONE(M)CAPARD'!FG386)","v":93798.02366776616},{"$f":"IF('[1]MONE(M)CAPARD'!FL386=\"\",\"\",'[1]MONE(M)CAPARD'!FL386)","v":39757.751735714613},{"$f":"IF('[1]MONE(M)CAPARD'!FO386=\"\",\"\",'[1]MONE(M)CAPARD'!FO386)","v":16.765874103650159},{"$f":"IF('[1]MONE(M)CAPARD'!FR386=\"\",\"\",'[1]MONE(M)CAPARD'!FR386)","v":4.4322689132921367},{"$f":"IF('[1]MONE(M)CAPARD'!FV386=\"\",\"\",'[1]MONE(M)CAPARD'!FV386)","v":5.8702402608568516},{"$f":"IF('[1]MONE(M)CARD'!FV386=\"\",\"\",'[1]MONE(M)CARD'!FV386)","v":1908.2004364064635},{"$f":"IF('[1]MONE(M)CARD'!GD386=\"\",\"\",'[1]MONE(M)CARD'!GD386)","v":125.27149684946571},{"$f":"IF('[1]MONE(M)CARD'!GE386=\"\",\"\",'[1]MONE(M)CARD'!GE386)","v":16233.508831923624},{"$f":"IF(AD379=\"\",\"\",((AD379/AD366)-1)*100)","v":12.414920111779249},{"$f":"IF('[9]II.2.Balance OSD-Activos'!J244=\"\",\"\",'[9]II.2.Balance OSD-Activos'!J244)","v":320.16218759938687},{"$f":"IF('[9]II.2.Balance OSD-Activos'!N244=\"\",\"\",'[9]II.2.Balance OSD-Activos'!N244)","v":1163.2292363642059},{"$f":"IF('[9]II.2.Balance OSD-Activos'!R244=\"\",\"\",'[9]II.2.Balance OSD-Activos'!R244)","v":57901.181011059045},{"$f":"IF('[9]II.2.Balance OSD-Activos'!S244=\"\",\"\",'[9]II.2.Balance OSD-Activos'!S244)","v":62780.472629726355},{"$f":"IFERROR(+AF379+AH379,\"\")","v":58221.343198658433},122165.04506474899,-11.984427219979843,0.56104323133563394,0.92635607726148095,0.64036314705828712,2.7878530275831093,1.6967557680127143,1.0804351934215584,{"$f":"IF('[1]MONE(M)CAPARD'!GS386=\"\",\"\",'[1]MONE(M)CAPARD'!GS386)","v":36281.619309499176},{"$f":"IF('[1]MONE(M)CARD'!HA386=\"\",\"\",'[1]MONE(M)CAPARD'!HA386)","v":18334.167116363624},{"$f":"IF('[1]MONE(M)CAPARD'!HB386=\"\",\"\",'[1]MONE(M)CAPARD'!HB386)","v":17947.452193135552},"n.d.",{"$f":"IF('[10]II.2.Balance OSD-Activos'!J244=\"\",\"\",'[10]II.2.Balance OSD-Activos'!J244)","v":2856.4688119293869},{"$f":"IF('[10]II.2.Balance OSD-Activos'!N244=\"\",\"\",'[10]II.2.Balance OSD-Activos'!N244)","v":1971.4446046442058},{"$f":"IF('[10]II.2.Balance OSD-Activos'!R244=\"\",\"\",'[10]II.2.Balance OSD-Activos'!R244)","v":79412.058482459062},{"$f":"IF('[10]II.2.Balance OSD-Activos'!S244=\"\",\"\",'[10]II.2.Balance OSD-Activos'!S244)","v":89523.480593326356},{"$f":"IFERROR(+AW379+AY379,\"\")","v":82268.527294388448},173763.45249235901,4.9395928630616481,-1.6846779125048505,11.332406736888089,-1.9074075176050975,2.5778317994408217,0.60254490789732884,0.92194526297880719,{"$f":"IF('[1]MONE(M)CAPARD'!AS386=\"\",\"\",'[1]MONE(M)CAPARD'!AS386)","v":0.75},{"$f":"IF('[1]MONE(M)CAPARD'!AT386=\"\",\"\",'[1]MONE(M)CAPARD'!AT386)","v":"n.a."},{"$f":"IF('[1]MONE(M)CAPARD'!AU386=\"\",\"\",'[1]MONE(M)CAPARD'!AU386)","v":1.75},{"$f":"IF('[1]MONE(M)CAPARD'!AV386=\"\",\"\",'[1]MONE(M)CAPARD'!AV386)","v":3},{"$f":"IF('[1]MONE(M)CAPARD'!AW386=\"\",\"\",'[1]MONE(M)CAPARD'!AW386)","v":3.5},{"$f":"IF('[1]MONE(M)CAPARD'!AX386=\"\",\"\",'[1]MONE(M)CAPARD'!AX386)","v":3},{"$f":"IF('[1]MONE(M)CAPARD'!AY386=\"\",\"\",'[1]MONE(M)CAPARD'!AY386)","v":"n.a."},{"$f":"IF('[1]FISCAL(M)'!$K386=\"\",\"\",'[1]FISCAL(M)'!$K386)","v":-1096.9604885396827},{"$f":"IF('[1]FISCAL(M)'!$L386=\"\",\"\",'[1]FISCAL(M)'!$L386)","v":"n.d."},{"$f":"IF('[1]FISCAL(M)'!$AY386=\"\",\"\",'[1]FISCAL(M)'!$AY386)","v":181695.28202388447},{"$f":"IF('[1]FISCAL(M)'!$BI386=\"\",\"\",'[1]FISCAL(M)'!$BI386)","v":97236.569943780967},{"$f":"IF('[1]FISCAL(M)'!$BS386=\"\",\"\",'[1]FISCAL(M)'!$BS386)","v":84458.712080103505},{"$f":"IF('[1]FISCAL(M)'!$AZ386=\"\",\"\",'[1]FISCAL(M)'!$AZ386)","v":220041.76202388448},{"$f":"IF('[1]FISCAL(M)'!$BJ386=\"\",\"\",'[1]FISCAL(M)'!$BJ386)","v":103848.27994378099},{"$f":"IF('[1]FISCAL(M)'!$BT386=\"\",\"\",'[1]FISCAL(M)'!$BT386)","v":116193.48208010351},{"$f":"IF('[2]MONE(M)'!$AO386=\"\",\"\",'[2]MONE(M)'!$AO386)","v":22804713.129415907},{"$f":"IF('[3]MONE(M)'!$AO386=\"\",\"\",'[3]MONE(M)'!$AO386)","v":14685.20682021},{"$f":"IF('[4]MONE(M)'!$AO386=\"\",\"\",'[4]MONE(M)'!$AO386)","v":234601.12358823887},{"$f":"+'[5]MONE(M)'!$AO386","v":406853.69134502974},{"$f":"IF('[6]MONE(M)'!$AO386=\"\",\"\",'[6]MONE(M)'!$AO386)","v":120582.37704555658},{"$f":"IF('[7]MONE(M)'!$AO386=\"\",\"\",'[7]MONE(M)'!$AO386)","v":1378373.2278419998},{"$f":"IF('[8]MONE(M)'!$AO386=\"\",\"\",'[8]MONE(M)'!$AO386)","v":52861.396346400012},{"$f":"IF(BY379=\"\",\"\",((BY379/BY367)-1)*100)","v":3.8331539022443462},{"$f":"IF(BZ379=\"\",\"\",((BZ379/BZ367)-1)*100)","v":2.4372015796903623},4.5918980371282059,2.6909430949168422,-0.34291859300399352,4.26385517408856,-1.2078558840359688,{"$f":"'[1]FISCAL(M)'!$K386","v":-1096.9604885396827},{"$f":"+'[1]REAL(A)'!$AO$41","v":315762.79656609107},-0.34740016888280956,{"$f":"IF('[1]FISCAL(M)'!$L386=\"\",\"\",'[1]FISCAL(M)'!$L386)","v":"n.d."},{"$f":"+'[1]REAL(A)'!$AP$41","v":379367.86234669382},"n.d.",{"$f":"+IF(OR(CT379=\"\",+CU379=\"\",+CV379=\"\"),\"\",(CT379+CU379+CV379))","v":182152.52043021756},{"$f":"'[1]Gráfico REM'!BG380","v":46713.446221287151},{"$f":"'[1]Gráfico REM'!BH380","v":126488.79615415825},{"$f":"'[1]Gráfico REM'!BI380","v":8950.2780547721632},{"$f":"IFERROR(+((CS379/CS367)-1)*100,\"\")","v":9.1812736039384326},{"$f":"IFERROR(+((CT379/CT367)-1)*100,\"\")","v":39.459230126139744},{"$f":"IFERROR(+((CU379/CU367)-1)*100,\"\")","v":1.7912216596119857},{"$f":"IFERROR(+((CV379/CV367)-1)*100,\"\")","v":-1.3835362876986834},{"$f":"+IF(OR(DB379=\"\",+DC379=\"\",+DD379=\"\"),\"\",(DB379+DC379+DD379))","v":262120.92848135059},{"$f":"'[1]Gráfico REM'!BK380","v":50198.886835478152},{"$f":"'[1]Gráfico REM'!BL380","v":179350.19250055827},{"$f":"'[1]Gráfico REM'!BM380","v":32571.849145314165},{"$f":"IFERROR(+((DA379/DA367)-1)*100,\"\")","v":7.5556698974486247},{"$f":"IFERROR(+((DB379/DB367)-1)*100,\"\")","v":40.717059033827276},{"$f":"IFERROR(+((DC379/DC367)-1)*100,\"\")","v":0.8885208697759106},{"$f":"IFERROR(+((DD379/DD367)-1)*100,\"\")","v":7.629565156935314}]
[2021,"junio ","2021-junio ",{"$f":"IF('[1]REAL IPC(M)'!$AL387=\"\",\"\",+'[1]REAL IPC(M)'!$AL387)","v":5.18808293118731},{"$f":"IF('[1]REAL IPC(M)'!$BE387=\"\",\"\",+'[1]REAL IPC(M)'!$BE387)","v":4.6217494571316076},{"$f":"IF('[1]REAL IPC(M)'!$AM387=\"\",\"\",+'[1]REAL IPC(M)'!$AM387)","v":4.7113969471352046},{"$f":"IF('[1]REAL IPC(M)'!$BI387=\"\",\"\",+'[1]REAL IPC(M)'!$BI387)","v":4.146502871291724},{"$f":"IF('[1]REAL IMAE(M)'!BJ387=\"\",\"\",'[1]REAL IMAE(M)'!BJ387)","v":15.282193692120071},{"$f":"IF('[1]REAL IMAE(M)'!BK387=\"\",\"\",'[1]REAL IMAE(M)'!BK387)","v":3.7652001492075593},{"$f":"IF('[1]REAL IMAE(M)'!BN387=\"\",\"\",'[1]REAL IMAE(M)'!BN387)","v":18.098563285683067},{"$f":"IF('[1]REAL IMAE(M)'!BO387=\"\",\"\",'[1]REAL IMAE(M)'!BO387)","v":3.7003391447617773},{"$f":"IF('[1]EXT RIN(M)'!$K387=\"\",\"\",'[1]EXT RIN(M)'!$K387)","v":53244.159786042132},null,{"$f":"IF('[1]EXT RIN(M)'!$L387=\"\",\"\",'[1]EXT RIN(M)'!$L387)","v":62145.361858332129},null,{"$f":"IF('[1]MONE(M)CARD'!EG387=\"\",\"\",'[1]MONE(M)CARD'!EG387)","v":54005.429309336148},{"$f":"IF('[1]MONE(M)CARD'!EK387=\"\",\"\",'[1]MONE(M)CARD'!EK387)","v":67413.81418881267},{"$f":"IF('[1]MONE(M)CARD'!EP387=\"\",\"\",'[1]MONE(M)CARD'!EP387)","v":39914.798387453644},{"$f":"IF('[1]MONE(M)CARD'!ES387=\"\",\"\",'[1]MONE(M)CARD'!ES387)","v":14.400395232426177},{"$f":"IF('[1]MONE(M)CARD'!EV387=\"\",\"\",'[1]MONE(M)CARD'!EV387)","v":11.112093872127527},{"$f":"IF('[1]MONE(M)CARD'!EZ387=\"\",\"\",'[1]MONE(M)CARD'!EZ387)","v":11.241773118043286},{"$f":"IF('[1]MONE(M)CAPARD'!FC387=\"\",\"\",'[1]MONE(M)CAPARD'!FC387)","v":63439.619305326152},{"$f":"IF('[1]MONE(M)CAPARD'!FG387=\"\",\"\",'[1]MONE(M)CAPARD'!FG387)","v":94674.730660972666},{"$f":"IF('[1]MONE(M)CAPARD'!FL387=\"\",\"\",'[1]MONE(M)CAPARD'!FL387)","v":39914.798387453659},{"$f":"IF('[1]MONE(M)CAPARD'!FO387=\"\",\"\",'[1]MONE(M)CAPARD'!FO387)","v":14.405562976551845},{"$f":"IF('[1]MONE(M)CAPARD'!FR387=\"\",\"\",'[1]MONE(M)CAPARD'!FR387)","v":3.627954054457061},{"$f":"IF('[1]MONE(M)CAPARD'!FV387=\"\",\"\",'[1]MONE(M)CAPARD'!FV387)","v":5.1486326726110088},{"$f":"IF('[1]MONE(M)CARD'!FV387=\"\",\"\",'[1]MONE(M)CARD'!FV387)","v":1955.3269758121535},{"$f":"IF('[1]MONE(M)CARD'!GD387=\"\",\"\",'[1]MONE(M)CARD'!GD387)","v":143.73557530095613},{"$f":"IF('[1]MONE(M)CARD'!GE387=\"\",\"\",'[1]MONE(M)CARD'!GE387)","v":16553.721667504818},{"$f":"IF(AD380=\"\",\"\",((AD380/AD367)-1)*100)","v":19.291433152197278},{"$f":"IF('[9]II.2.Balance OSD-Activos'!J245=\"\",\"\",'[9]II.2.Balance OSD-Activos'!J245)","v":327.81786352459704},{"$f":"IF('[9]II.2.Balance OSD-Activos'!N245=\"\",\"\",'[9]II.2.Balance OSD-Activos'!N245)","v":1628.6470206524032},{"$f":"IF('[9]II.2.Balance OSD-Activos'!R245=\"\",\"\",'[9]II.2.Balance OSD-Activos'!R245)","v":58078.466889130388},{"$f":"IF('[9]II.2.Balance OSD-Activos'!S245=\"\",\"\",'[9]II.2.Balance OSD-Activos'!S245)","v":63231.16346443395},{"$f":"IFERROR(+AF380+AH380,\"\")","v":58406.284752654989},{"$f":"IF(OR(AF380=\"\",AG380=\"\",AH380=\"\",AI380=\"\"),\"\",SUM(AF380:AI380))","v":123266.09523774133},{"$f":"IF(OR(AF380=\"\",AF368=\"\"),\"\",((AF380/AF368)-1)*100)","v":-12.118291771248701},{"$f":"IF(OR(AJ380=\"\",AJ368=\"\"),\"\",((AJ380/AJ368)-1)*100)","v":1.3245107186605987},{"$f":"IF(OR(AG380=\"\",AG368=\"\"),\"\",((AG380/AG368)-1)*100)","v":46.665959819669858},{"$f":"IF(OR(AH380=\"\",AH368=\"\"),\"\",((AH380/AH368)-1)*100)","v":1.412069245066272},{"$f":"IF(OR(AI380=\"\",AI368=\"\"),\"\",((AI380/AI368)-1)*100)","v":3.8663892102180242},{"$f":"IF(OR(AK380=\"\",AK368=\"\"),\"\",((AK380/AK368)-1)*100)","v":3.0388892557118741},{"$f":"IF(OR(AQ380=\"\",AQ379=\"\"),\"\",AQ380-AQ379)","v":1.3421334876991597},{"$f":"IF('[1]MONE(M)CAPARD'!GS387=\"\",\"\",'[1]MONE(M)CAPARD'!GS387)","v":37095.127073658026},{"$f":"IF('[1]MONE(M)CARD'!HA387=\"\",\"\",'[1]MONE(M)CAPARD'!HA387)","v":18632.577017974818},{"$f":"IF('[1]MONE(M)CAPARD'!HB387=\"\",\"\",'[1]MONE(M)CAPARD'!HB387)","v":18462.550055683208},"n.d.",{"$f":"IF('[10]II.2.Balance OSD-Activos'!J245=\"\",\"\",'[10]II.2.Balance OSD-Activos'!J245)","v":2843.0261636745968},{"$f":"IF('[10]II.2.Balance OSD-Activos'!N245=\"\",\"\",'[10]II.2.Balance OSD-Activos'!N245)","v":2433.528784512403},{"$f":"IF('[10]II.2.Balance OSD-Activos'!R245=\"\",\"\",'[10]II.2.Balance OSD-Activos'!R245)","v":79467.117854320386},{"$f":"IF('[10]II.2.Balance OSD-Activos'!S245=\"\",\"\",'[10]II.2.Balance OSD-Activos'!S245)","v":90088.427862633951},{"$f":"IFERROR(+AW380+AY380,\"\")","v":82310.144017994986},{"$f":"IF(OR(AW380=\"\",AX380=\"\",AY380=\"\",AZ380=\"\"),\"\",SUM(AW380:AZ380))","v":174832.10066514133},{"$f":"IF(OR(AW380=\"\",AW368=\"\"),\"\",((AW380/AW368)-1)*100)","v":3.3871264865152684},{"$f":"IF(OR(BA380=\"\",BA368=\"\"),\"\",((BA380/BA368)-1)*100)","v":-1.1478285166247604},{"$f":"IF(OR(AX380=\"\",AX368=\"\"),\"\",((AX380/AX368)-1)*100)","v":42.307392783740674},{"$f":"IF(OR(AY380=\"\",AY368=\"\"),\"\",((AY380/AY368)-1)*100)","v":-1.3027120083747401},{"$f":"IF(OR(AZ380=\"\",AZ368=\"\"),\"\",((AZ380/AZ368)-1)*100)","v":3.4912507316959385},{"$f":"IF(OR(BB380=\"\",BB368=\"\"),\"\",((BB380/BB368)-1)*100)","v":1.6316430316035246},{"$f":"IF(OR(BH380=\"\",BH379=\"\"),\"\",BH380-BH379)","v":1.0290981237061958},{"$f":"IF('[1]MONE(M)CAPARD'!AS387=\"\",\"\",'[1]MONE(M)CAPARD'!AS387)","v":0.75},{"$f":"IF('[1]MONE(M)CAPARD'!AT387=\"\",\"\",'[1]MONE(M)CAPARD'!AT387)","v":"n.a."},{"$f":"IF('[1]MONE(M)CAPARD'!AU387=\"\",\"\",'[1]MONE(M)CAPARD'!AU387)","v":1.75},{"$f":"IF('[1]MONE(M)CAPARD'!AV387=\"\",\"\",'[1]MONE(M)CAPARD'!AV387)","v":3},{"$f":"IF('[1]MONE(M)CAPARD'!AW387=\"\",\"\",'[1]MONE(M)CAPARD'!AW387)","v":3.5},{"$f":"IF('[1]MONE(M)CAPARD'!AX387=\"\",\"\",'[1]MONE(M)CAPARD'!AX387)","v":3},{"$f":"IF('[1]MONE(M)CAPARD'!AY387=\"\",\"\",'[1]MONE(M)CAPARD'!AY387)","v":"n.a."},{"$f":"IF('[1]FISCAL(M)'!$K387=\"\",\"\",'[1]FISCAL(M)'!$K387)","v":-1808.3795065532438},{"$f":"IF('[1]FISCAL(M)'!$L387=\"\",\"\",'[1]FISCAL(M)'!$L387)","v":-4501.5795065532448},{"$f":"IF('[1]FISCAL(M)'!$AY387=\"\",\"\",'[1]FISCAL(M)'!$AY387)","v":182415.73449384491},{"$f":"IF('[1]FISCAL(M)'!$BI387=\"\",\"\",'[1]FISCAL(M)'!$BI387)","v":97926.957498514501},{"$f":"IF('[1]FISCAL(M)'!$BS387=\"\",\"\",'[1]FISCAL(M)'!$BS387)","v":84488.776995330409},{"$f":"IF('[1]FISCAL(M)'!$AZ387=\"\",\"\",'[1]FISCAL(M)'!$AZ387)","v":222100.15449384492},{"$f":"IF('[1]FISCAL(M)'!$BJ387=\"\",\"\",'[1]FISCAL(M)'!$BJ387)","v":105486.15749851448},{"$f":"IF('[1]FISCAL(M)'!$BT387=\"\",\"\",'[1]FISCAL(M)'!$BT387)","v":116613.99699533042},{"$f":"IF('[2]MONE(M)'!$AO387=\"\",\"\",'[2]MONE(M)'!$AO387)","v":22763999.346320644},{"$f":"IF('[3]MONE(M)'!$AO387=\"\",\"\",'[3]MONE(M)'!$AO387)","v":14780.283926519998},{"$f":"IF('[4]MONE(M)'!$AO387=\"\",\"\",'[4]MONE(M)'!$AO387)","v":236337.47685391438},{"$f":"+'[5]MONE(M)'!$AO387","v":408117.32541854971},{"$f":"IF('[6]MONE(M)'!$AO387=\"\",\"\",'[6]MONE(M)'!$AO387)","v":122062.72916457108},{"$f":"IF('[7]MONE(M)'!$AO387=\"\",\"\",'[7]MONE(M)'!$AO387)","v":1380091.67129895},{"$f":"IF('[8]MONE(M)'!$AO387=\"\",\"\",'[8]MONE(M)'!$AO387)","v":52856.597586660006},3.0248727057298641,{"$f":"IF(BZ380=\"\",\"\",((BZ380/BZ368)-1)*100)","v":3.156997192837685},5.6017401168971803,2.9947285515278921,1.3544150313482106,2.9145246616444354,-0.82322930129179461,{"$f":"'[1]FISCAL(M)'!$K387","v":-1808.3795065532438},{"$f":"+'[1]REAL(A)'!$AO$41","v":315762.79656609107},-0.57270189085582757,{"$f":"IF('[1]FISCAL(M)'!$L387=\"\",\"\",'[1]FISCAL(M)'!$L387)","v":-4501.5795065532448},{"$f":"+'[1]REAL(A)'!$AP$41","v":379367.86234669382},-1.1866001191316979,{"$f":"+IF(OR(CT380=\"\",+CU380=\"\",+CV380=\"\"),\"\",(CT380+CU380+CV380))","v":183448.61550010086},{"$f":"'[1]Gráfico REM'!BG381","v":46958.978656979358},{"$f":"'[1]Gráfico REM'!BH381","v":126737.30617370953},{"$f":"'[1]Gráfico REM'!BI381","v":9752.3306694119692},{"$f":"IFERROR(+((CS380/CS368)-1)*100,\"\")","v":9.7613703132376486},{"$f":"IFERROR(+((CT380/CT368)-1)*100,\"\")","v":37.129476781191805},{"$f":"IFERROR(+((CU380/CU368)-1)*100,\"\")","v":2.3313762646634872},{"$f":"IFERROR(+((CV380/CV368)-1)*100,\"\")","v":7.8811881281318108},{"$f":"+IF(OR(DB380=\"\",+DC380=\"\",+DD380=\"\"),\"\",(DB380+DC380+DD380))","v":263124.30034550984},{"$f":"'[1]Gráfico REM'!BK381","v":50536.380538892357},{"$f":"'[1]Gráfico REM'!BL381","v":179593.90376036952},{"$f":"'[1]Gráfico REM'!BM381","v":32994.016046247969},{"$f":"IFERROR(+((DA380/DA368)-1)*100,\"\")","v":7.7627003093755143},{"$f":"IFERROR(+((DB380/DB368)-1)*100,\"\")","v":38.835554324320618},{"$f":"IFERROR(+((DC380/DC368)-1)*100,\"\")","v":1.3822918968749764},{"$f":"IFERROR(+((DD380/DD368)-1)*100,\"\")","v":7.7366346196069857}]
[2021,"julio","2021-julio",{"$f":"IF('[1]REAL IPC(M)'!$AL388=\"\",\"\",+'[1]REAL IPC(M)'!$AL388)","v":4.7005917342434866},{"$f":"IF('[1]REAL IPC(M)'!$BE388=\"\",\"\",+'[1]REAL IPC(M)'!$BE388)","v":4.6960665880408481},{"$f":"IF('[1]REAL IPC(M)'!$AM388=\"\",\"\",+'[1]REAL IPC(M)'!$AM388)","v":4.3929932300135865},{"$f":"IF('[1]REAL IPC(M)'!$BI388=\"\",\"\",+'[1]REAL IPC(M)'!$BI388)","v":4.2310481336859773},{"$f":"IF('[1]REAL IMAE(M)'!BJ388=\"\",\"\",'[1]REAL IMAE(M)'!BJ388)","v":13.06828391408188},{"$f":"IF('[1]REAL IMAE(M)'!BK388=\"\",\"\",'[1]REAL IMAE(M)'!BK388)","v":3.9152325625149809},{"$f":"IF('[1]REAL IMAE(M)'!BN388=\"\",\"\",'[1]REAL IMAE(M)'!BN388)","v":15.833204276431555},{"$f":"IF('[1]REAL IMAE(M)'!BO388=\"\",\"\",'[1]REAL IMAE(M)'!BO388)","v":3.9075069388591954},{"$f":"IF('[1]EXT RIN(M)'!$K388=\"\",\"\",'[1]EXT RIN(M)'!$K388)","v":53727.740481428176},null,{"$f":"IF('[1]EXT RIN(M)'!$L388=\"\",\"\",'[1]EXT RIN(M)'!$L388)","v":61937.95749934818},null,{"$f":"IF('[1]MONE(M)CARD'!EG388=\"\",\"\",'[1]MONE(M)CARD'!EG388)","v":54766.449657589961},{"$f":"IF('[1]MONE(M)CARD'!EK388=\"\",\"\",'[1]MONE(M)CARD'!EK388)","v":67343.560406246746},{"$f":"IF('[1]MONE(M)CARD'!EP388=\"\",\"\",'[1]MONE(M)CARD'!EP388)","v":40220.673029725629},{"$f":"IF('[1]MONE(M)CARD'!ES388=\"\",\"\",'[1]MONE(M)CARD'!ES388)","v":14.1575332755004},{"$f":"IF('[1]MONE(M)CARD'!EV388=\"\",\"\",'[1]MONE(M)CARD'!EV388)","v":10.776857557647412},{"$f":"IF('[1]MONE(M)CARD'!EZ388=\"\",\"\",'[1]MONE(M)CARD'!EZ388)","v":10.587302117030738},{"$f":"IF('[1]MONE(M)CAPARD'!FC388=\"\",\"\",'[1]MONE(M)CAPARD'!FC388)","v":63974.100127669961},{"$f":"IF('[1]MONE(M)CAPARD'!FG388=\"\",\"\",'[1]MONE(M)CAPARD'!FG388)","v":94736.647993606748},{"$f":"IF('[1]MONE(M)CAPARD'!FL388=\"\",\"\",'[1]MONE(M)CAPARD'!FL388)","v":40220.673029725614},{"$f":"IF('[1]MONE(M)CAPARD'!FO388=\"\",\"\",'[1]MONE(M)CAPARD'!FO388)","v":13.859764470254232},{"$f":"IF('[1]MONE(M)CAPARD'!FR388=\"\",\"\",'[1]MONE(M)CAPARD'!FR388)","v":3.3574795966992976},{"$f":"IF('[1]MONE(M)CAPARD'!FV388=\"\",\"\",'[1]MONE(M)CAPARD'!FV388)","v":4.6378698277217856},{"$f":"IF('[1]MONE(M)CARD'!FV388=\"\",\"\",'[1]MONE(M)CARD'!FV388)","v":1950.4344648665015},{"$f":"IF('[1]MONE(M)CARD'!GD388=\"\",\"\",'[1]MONE(M)CARD'!GD388)","v":129.64668776792806},{"$f":"IF('[1]MONE(M)CARD'!GE388=\"\",\"\",'[1]MONE(M)CARD'!GE388)","v":17130.820423221641},{"$f":"IF(AD381=\"\",\"\",((AD381/AD368)-1)*100)","v":20.089317816427908},{"$f":"IF('[9]II.2.Balance OSD-Activos'!J246=\"\",\"\",'[9]II.2.Balance OSD-Activos'!J246)","v":314.95459032277006},{"$f":"IF('[9]II.2.Balance OSD-Activos'!N246=\"\",\"\",'[9]II.2.Balance OSD-Activos'!N246)","v":1520.213408240196},{"$f":"IF('[9]II.2.Balance OSD-Activos'!R246=\"\",\"\",'[9]II.2.Balance OSD-Activos'!R246)","v":58340.021629747935},{"$f":"IF('[9]II.2.Balance OSD-Activos'!S246=\"\",\"\",'[9]II.2.Balance OSD-Activos'!S246)","v":63619.894986775238},58654.976220070705,123795.08461508615,-14.446087564815679,3.6801818336638092,45.078662307668019,3.7989069741993342,4.5929779506193702,4.5151668361818498,1.4762775804699757,{"$f":"IF('[1]MONE(M)CAPARD'!GS388=\"\",\"\",'[1]MONE(M)CAPARD'!GS388)","v":37507.528116860507},{"$f":"IF('[1]MONE(M)CARD'!HA388=\"\",\"\",'[1]MONE(M)CAPARD'!HA388)","v":19097.349820691645},{"$f":"IF('[1]MONE(M)CAPARD'!HB388=\"\",\"\",'[1]MONE(M)CAPARD'!HB388)","v":18410.178296168862},"n.d.",{"$f":"IF('[10]II.2.Balance OSD-Activos'!J246=\"\",\"\",'[10]II.2.Balance OSD-Activos'!J246)","v":2807.3747987227703},{"$f":"IF('[10]II.2.Balance OSD-Activos'!N246=\"\",\"\",'[10]II.2.Balance OSD-Activos'!N246)","v":2261.539714990196},{"$f":"IF('[10]II.2.Balance OSD-Activos'!R246=\"\",\"\",'[10]II.2.Balance OSD-Activos'!R246)","v":79873.676543677924},{"$f":"IF('[10]II.2.Balance OSD-Activos'!S246=\"\",\"\",'[10]II.2.Balance OSD-Activos'!S246)","v":90569.930832835234},82681.051342400693,175512.52189022611,0.80923148517084709,0.45795172859091071,37.710692443955551,0.44564958837371993,4.08627200313747,2.6625152040481437,1.030872172444619,{"$f":"IF('[1]MONE(M)CAPARD'!AS388=\"\",\"\",'[1]MONE(M)CAPARD'!AS388)","v":0.75},{"$f":"IF('[1]MONE(M)CAPARD'!AT388=\"\",\"\",'[1]MONE(M)CAPARD'!AT388)","v":"n.a."},{"$f":"IF('[1]MONE(M)CAPARD'!AU388=\"\",\"\",'[1]MONE(M)CAPARD'!AU388)","v":1.75},{"$f":"IF('[1]MONE(M)CAPARD'!AV388=\"\",\"\",'[1]MONE(M)CAPARD'!AV388)","v":3},{"$f":"IF('[1]MONE(M)CAPARD'!AW388=\"\",\"\",'[1]MONE(M)CAPARD'!AW388)","v":3.5},{"$f":"IF('[1]MONE(M)CAPARD'!AX388=\"\",\"\",'[1]MONE(M)CAPARD'!AX388)","v":3},{"$f":"IF('[1]MONE(M)CAPARD'!AY388=\"\",\"\",'[1]MONE(M)CAPARD'!AY388)","v":"n.a."},{"$f":"IF('[1]FISCAL(M)'!$K388=\"\",\"\",'[1]FISCAL(M)'!$K388)","v":-2523.7595091177973},{"$f":"IF('[1]FISCAL(M)'!$L388=\"\",\"\",'[1]FISCAL(M)'!$L388)","v":"n.d."},{"$f":"IF('[1]FISCAL(M)'!$AY388=\"\",\"\",'[1]FISCAL(M)'!$AY388)","v":183960.33375379429},{"$f":"IF('[1]FISCAL(M)'!$BI388=\"\",\"\",'[1]FISCAL(M)'!$BI388)","v":98651.041000147685},{"$f":"IF('[1]FISCAL(M)'!$BS388=\"\",\"\",'[1]FISCAL(M)'!$BS388)","v":85309.292753646587},{"$f":"IF('[1]FISCAL(M)'!$AZ388=\"\",\"\",'[1]FISCAL(M)'!$AZ388)","v":223603.57375379428},{"$f":"IF('[1]FISCAL(M)'!$BJ388=\"\",\"\",'[1]FISCAL(M)'!$BJ388)","v":106210.24100014771},{"$f":"IF('[1]FISCAL(M)'!$BT388=\"\",\"\",'[1]FISCAL(M)'!$BT388)","v":117393.33275364657},{"$f":"IF('[2]MONE(M)'!$AO388=\"\",\"\",'[2]MONE(M)'!$AO388)","v":22761139.859661773},{"$f":"IF('[3]MONE(M)'!$AO388=\"\",\"\",'[3]MONE(M)'!$AO388)","v":14856.548853231998},{"$f":"IF('[4]MONE(M)'!$AO388=\"\",\"\",'[4]MONE(M)'!$AO388)","v":238686.80146188417},{"$f":"+'[5]MONE(M)'!$AO388","v":409382.92854670697},{"$f":"IF('[6]MONE(M)'!$AO388=\"\",\"\",'[6]MONE(M)'!$AO388)","v":122446.99282004393},{"$f":"IF('[7]MONE(M)'!$AO388=\"\",\"\",'[7]MONE(M)'!$AO388)","v":1395707.5653553801},{"$f":"IF('[8]MONE(M)'!$AO388=\"\",\"\",'[8]MONE(M)'!$AO388)","v":53056.197528129996},2.6630696477096594,3.5738390128527309,7.2892172302613467,3.9790913897456148,2.1766163955549089,6.3884330421661639,-1.1325675683203751,{"$f":"'[1]FISCAL(M)'!$K388","v":-2523.7595091177973},{"$f":"+'[1]REAL(A)'!$AO$41","v":315762.79656609107},-0.79925803057345268,{"$f":"IF('[1]FISCAL(M)'!$L388=\"\",\"\",'[1]FISCAL(M)'!$L388)","v":"n.d."},{"$f":"+'[1]REAL(A)'!$AP$41","v":379367.86234669382},"n.d.",183838.80803771966,{"$f":"'[1]Gráfico REM'!BG382","v":47129.62817641224},{"$f":"'[1]Gráfico REM'!BH382","v":127423.82884948989},{"$f":"'[1]Gráfico REM'!BI382","v":9285.35101181756},10.276573263781529,34.927212043835667,3.7495114370694083,3.6468603118139598,263904.90176405216,{"$f":"'[1]Gráfico REM'!BK382","v":50794.165661956242},{"$f":"'[1]Gráfico REM'!BL382","v":180480.02637761988},{"$f":"'[1]Gráfico REM'!BM382","v":32630.709724476059},8.3984958725034318,36.711676834954396,2.2649932684028595,9.4213537122631585]
[2021,"agosto","2021-agosto",{"$f":"IF('[1]REAL IPC(M)'!$AL389=\"\",\"\",+'[1]REAL IPC(M)'!$AL389)","v":4.8620727452716395},{"$f":"IF('[1]REAL IPC(M)'!$BE389=\"\",\"\",+'[1]REAL IPC(M)'!$BE389)","v":4.76648567934983},{"$f":"IF('[1]REAL IPC(M)'!$AM389=\"\",\"\",+'[1]REAL IPC(M)'!$AM389)","v":4.5358241389702014},{"$f":"IF('[1]REAL IPC(M)'!$BI389=\"\",\"\",+'[1]REAL IPC(M)'!$BI389)","v":4.3117272194124201},{"$f":"IF('[1]REAL IMAE(M)'!BJ389=\"\",\"\",'[1]REAL IMAE(M)'!BJ389)","v":11.016280710708815},{"$f":"IF('[1]REAL IMAE(M)'!BK389=\"\",\"\",'[1]REAL IMAE(M)'!BK389)","v":4.0502650628280623},{"$f":"IF('[1]REAL IMAE(M)'!BN389=\"\",\"\",'[1]REAL IMAE(M)'!BN389)","v":13.937190865007976},{"$f":"IF('[1]REAL IMAE(M)'!BO389=\"\",\"\",'[1]REAL IMAE(M)'!BO389)","v":4.0953806186962316},{"$f":"IF('[1]EXT RIN(M)'!$K389=\"\",\"\",'[1]EXT RIN(M)'!$K389)","v":56547.099734611824},null,{"$f":"IF('[1]EXT RIN(M)'!$L389=\"\",\"\",'[1]EXT RIN(M)'!$L389)","v":64466.045801291824},null,{"$f":"IF('[1]MONE(M)CARD'!EG389=\"\",\"\",'[1]MONE(M)CARD'!EG389)","v":54659.010227930521},{"$f":"IF('[1]MONE(M)CARD'!EK389=\"\",\"\",'[1]MONE(M)CARD'!EK389)","v":67772.651415353874},{"$f":"IF('[1]MONE(M)CARD'!EP389=\"\",\"\",'[1]MONE(M)CARD'!EP389)","v":40736.942972557837},{"$f":"IF('[1]MONE(M)CARD'!ES389=\"\",\"\",'[1]MONE(M)CARD'!ES389)","v":12.151898092230763},{"$f":"IF('[1]MONE(M)CARD'!EV389=\"\",\"\",'[1]MONE(M)CARD'!EV389)","v":9.5897656630378201},{"$f":"IF('[1]MONE(M)CARD'!EZ389=\"\",\"\",'[1]MONE(M)CARD'!EZ389)","v":9.9012801421708208},{"$f":"IF('[1]MONE(M)CAPARD'!FC389=\"\",\"\",'[1]MONE(M)CAPARD'!FC389)","v":63908.054203660518},{"$f":"IF('[1]MONE(M)CAPARD'!FG389=\"\",\"\",'[1]MONE(M)CAPARD'!FG389)","v":95674.860308353847},{"$f":"IF('[1]MONE(M)CAPARD'!FL389=\"\",\"\",'[1]MONE(M)CAPARD'!FL389)","v":40736.942972557823},{"$f":"IF('[1]MONE(M)CAPARD'!FO389=\"\",\"\",'[1]MONE(M)CAPARD'!FO389)","v":12.239609101598091},{"$f":"IF('[1]MONE(M)CAPARD'!FR389=\"\",\"\",'[1]MONE(M)CAPARD'!FR389)","v":2.5839279174178165},{"$f":"IF('[1]MONE(M)CAPARD'!FV389=\"\",\"\",'[1]MONE(M)CAPARD'!FV389)","v":4.163203129967652},{"$f":"IF('[1]MONE(M)CARD'!FV389=\"\",\"\",'[1]MONE(M)CARD'!FV389)","v":1946.2776755931759},{"$f":"IF('[1]MONE(M)CARD'!GD389=\"\",\"\",'[1]MONE(M)CARD'!GD389)","v":157.33401445389327},{"$f":"IF('[1]MONE(M)CARD'!GE389=\"\",\"\",'[1]MONE(M)CARD'!GE389)","v":16930.6676843079},22.424488721857962,{"$f":"IF('[9]II.2.Balance OSD-Activos'!J247=\"\",\"\",'[9]II.2.Balance OSD-Activos'!J247)","v":333.48122181641338},{"$f":"IF('[9]II.2.Balance OSD-Activos'!N247=\"\",\"\",'[9]II.2.Balance OSD-Activos'!N247)","v":1345.7966108751716},{"$f":"IF('[9]II.2.Balance OSD-Activos'!R247=\"\",\"\",'[9]II.2.Balance OSD-Activos'!R247)","v":58562.225737855333},{"$f":"IF('[9]II.2.Balance OSD-Activos'!S247=\"\",\"\",'[9]II.2.Balance OSD-Activos'!S247)","v":63931.085904269596},58895.706959671748,124172.58947481652,-6.6937805030328867,4.6614403891344525,32.906608942995149,4.7340219970263275,5.6478923546459336,5.4109763732273608,0.89580953704551103,{"$f":"IF('[1]MONE(M)CAPARD'!GS389=\"\",\"\",'[1]MONE(M)CAPARD'!GS389)","v":37761.823868106389},{"$f":"IF('[1]MONE(M)CARD'!HA389=\"\",\"\",'[1]MONE(M)CAPARD'!HA389)","v":18866.248491717899},{"$f":"IF('[1]MONE(M)CAPARD'!HB389=\"\",\"\",'[1]MONE(M)CAPARD'!HB389)","v":18895.57537638849},"n.d.",{"$f":"IF('[10]II.2.Balance OSD-Activos'!J247=\"\",\"\",'[10]II.2.Balance OSD-Activos'!J247)","v":2817.2044800764138},{"$f":"IF('[10]II.2.Balance OSD-Activos'!N247=\"\",\"\",'[10]II.2.Balance OSD-Activos'!N247)","v":2129.7435981051717},{"$f":"IF('[10]II.2.Balance OSD-Activos'!R247=\"\",\"\",'[10]II.2.Balance OSD-Activos'!R247)","v":80028.036511355342},{"$f":"IF('[10]II.2.Balance OSD-Activos'!S247=\"\",\"\",'[10]II.2.Balance OSD-Activos'!S247)","v":91033.350107929597},82845.240991431754,176008.33469746652,-0.92285506324688571,1.8571737694015544,31.862682632319416,1.9578838256763653,4.9781989844059016,3.7379644678306123,1.0754492637824686,{"$f":"IF('[1]MONE(M)CAPARD'!AS389=\"\",\"\",'[1]MONE(M)CAPARD'!AS389)","v":0.75},{"$f":"IF('[1]MONE(M)CAPARD'!AT389=\"\",\"\",'[1]MONE(M)CAPARD'!AT389)","v":"n.a."},{"$f":"IF('[1]MONE(M)CAPARD'!AU389=\"\",\"\",'[1]MONE(M)CAPARD'!AU389)","v":1.75},{"$f":"IF('[1]MONE(M)CAPARD'!AV389=\"\",\"\",'[1]MONE(M)CAPARD'!AV389)","v":3},{"$f":"IF('[1]MONE(M)CAPARD'!AW389=\"\",\"\",'[1]MONE(M)CAPARD'!AW389)","v":3.5},{"$f":"IF('[1]MONE(M)CAPARD'!AX389=\"\",\"\",'[1]MONE(M)CAPARD'!AX389)","v":3},{"$f":"IF('[1]MONE(M)CAPARD'!AY389=\"\",\"\",'[1]MONE(M)CAPARD'!AY389)","v":"n.a."},{"$f":"IF('[1]FISCAL(M)'!$K389=\"\",\"\",'[1]FISCAL(M)'!$K389)","v":-3510.3750655021518},{"$f":"IF('[1]FISCAL(M)'!$L389=\"\",\"\",'[1]FISCAL(M)'!$L389)","v":"n.d."},{"$f":"IF('[1]FISCAL(M)'!$AY389=\"\",\"\",'[1]FISCAL(M)'!$AY389)","v":185518.87857564332},{"$f":"IF('[1]FISCAL(M)'!$BI389=\"\",\"\",'[1]FISCAL(M)'!$BI389)","v":98801.435833158233},{"$f":"IF('[1]FISCAL(M)'!$BS389=\"\",\"\",'[1]FISCAL(M)'!$BS389)","v":86717.442742485116},{"$f":"IF('[1]FISCAL(M)'!$AZ389=\"\",\"\",'[1]FISCAL(M)'!$AZ389)","v":225189.66857564333},{"$f":"IF('[1]FISCAL(M)'!$BJ389=\"\",\"\",'[1]FISCAL(M)'!$BJ389)","v":106402.63583315822},{"$f":"IF('[1]FISCAL(M)'!$BT389=\"\",\"\",'[1]FISCAL(M)'!$BT389)","v":118787.03274248511},{"$f":"IF('[2]MONE(M)'!$AO389=\"\",\"\",'[2]MONE(M)'!$AO389)","v":22830083.871424899},{"$f":"IF('[3]MONE(M)'!$AO389=\"\",\"\",'[3]MONE(M)'!$AO389)","v":14934.422738530002},{"$f":"IF('[4]MONE(M)'!$AO389=\"\",\"\",'[4]MONE(M)'!$AO389)","v":239665.91932258199},{"$f":"+'[5]MONE(M)'!$AO389","v":413361.21952381072},{"$f":"IF('[6]MONE(M)'!$AO389=\"\",\"\",'[6]MONE(M)'!$AO389)","v":122206.8924904126},{"$f":"IF('[7]MONE(M)'!$AO389=\"\",\"\",'[7]MONE(M)'!$AO389)","v":1406230.0459310298},{"$f":"IF('[8]MONE(M)'!$AO389=\"\",\"\",'[8]MONE(M)'!$AO389)","v":53169.440596170003},2.3602009564714255,4.7042370264082312,7.6088716210261698,5.4348310991015003,2.5931773188287099,7.5575139747398046,2.2824369501600161,{"$f":"'[1]FISCAL(M)'!$K389","v":-3510.3750655021518},{"$f":"+'[1]REAL(A)'!$AO$41","v":315762.79656609107},-1.1117126854959967,{"$f":"IF('[1]FISCAL(M)'!$L389=\"\",\"\",'[1]FISCAL(M)'!$L389)","v":"n.d."},{"$f":"+'[1]REAL(A)'!$AP$41","v":379367.86234669382},"n.d.",184883.53537685919,{"$f":"'[1]Gráfico REM'!BG383","v":47908.292691777737},{"$f":"'[1]Gráfico REM'!BH383","v":127914.92067870821},{"$f":"'[1]Gráfico REM'!BI383","v":9060.3220063732533},9.6966869974588921,27.785558229068783,4.6453945100479954,2.8068039204927064,265347.13970406016,{"$f":"'[1]Gráfico REM'!BK383","v":51539.513251528733},{"$f":"'[1]Gráfico REM'!BL383","v":181084.3612748782},{"$f":"'[1]Gráfico REM'!BM383","v":32723.265177653251},8.3035853142552352,26.322293552829159,3.940344130834772,9.1373154828542802]
[2021,"septiembre","2021-septiembre",{"$f":"IF('[1]REAL IPC(M)'!$AL390=\"\",\"\",+'[1]REAL IPC(M)'!$AL390)","v":5.0214126980600016},{"$f":"IF('[1]REAL IPC(M)'!$BE390=\"\",\"\",+'[1]REAL IPC(M)'!$BE390)","v":4.8326095098925048},{"$f":"IF('[1]REAL IPC(M)'!$AM390=\"\",\"\",+'[1]REAL IPC(M)'!$AM390)","v":4.6864305415109886},{"$f":"IF('[1]REAL IPC(M)'!$BI390=\"\",\"\",+'[1]REAL IPC(M)'!$BI390)","v":4.3880334409685195},{"$f":"IF('[1]REAL IMAE(M)'!BJ390=\"\",\"\",'[1]REAL IMAE(M)'!BJ390)","v":9.032537465563518},{"$f":"IF('[1]REAL IMAE(M)'!BK390=\"\",\"\",'[1]REAL IMAE(M)'!BK390)","v":4.1698428823519817},{"$f":"IF('[1]REAL IMAE(M)'!BN390=\"\",\"\",'[1]REAL IMAE(M)'!BN390)","v":11.304371887273756},{"$f":"IF('[1]REAL IMAE(M)'!BO390=\"\",\"\",'[1]REAL IMAE(M)'!BO390)","v":4.2629894290843628},{"$f":"IF('[1]EXT RIN(M)'!$K390=\"\",\"\",'[1]EXT RIN(M)'!$K390)","v":56548.521876394261},null,{"$f":"IF('[1]EXT RIN(M)'!$L390=\"\",\"\",'[1]EXT RIN(M)'!$L390)","v":64363.467815044263},null,{"$f":"IF('[1]MONE(M)CARD'!EG390=\"\",\"\",'[1]MONE(M)CARD'!EG390)","v":55090.866045408395},{"$f":"IF('[1]MONE(M)CARD'!EK390=\"\",\"\",'[1]MONE(M)CARD'!EK390)","v":67804.622964575101},{"$f":"IF('[1]MONE(M)CARD'!EP390=\"\",\"\",'[1]MONE(M)CARD'!EP390)","v":40869.845935385485},{"$f":"IF('[1]MONE(M)CARD'!ES390=\"\",\"\",'[1]MONE(M)CARD'!ES390)","v":11.786366938719395},{"$f":"IF('[1]MONE(M)CARD'!EV390=\"\",\"\",'[1]MONE(M)CARD'!EV390)","v":9.3403004995335603},{"$f":"IF('[1]MONE(M)CARD'!EZ390=\"\",\"\",'[1]MONE(M)CARD'!EZ390)","v":10.089681930245442},{"$f":"IF('[1]MONE(M)CAPARD'!FC390=\"\",\"\",'[1]MONE(M)CAPARD'!FC390)","v":64355.128038058385},{"$f":"IF('[1]MONE(M)CAPARD'!FG390=\"\",\"\",'[1]MONE(M)CAPARD'!FG390)","v":95814.883834205131},{"$f":"IF('[1]MONE(M)CAPARD'!FL390=\"\",\"\",'[1]MONE(M)CAPARD'!FL390)","v":40869.845935385441},{"$f":"IF('[1]MONE(M)CAPARD'!FO390=\"\",\"\",'[1]MONE(M)CAPARD'!FO390)","v":11.880199847985718},{"$f":"IF('[1]MONE(M)CAPARD'!FR390=\"\",\"\",'[1]MONE(M)CAPARD'!FR390)","v":2.3215922713485604},{"$f":"IF('[1]MONE(M)CAPARD'!FV390=\"\",\"\",'[1]MONE(M)CAPARD'!FV390)","v":4.2224652206347413},{"$f":"IF('[1]MONE(M)CARD'!FV390=\"\",\"\",'[1]MONE(M)CARD'!FV390)","v":1932.3956616389009},{"$f":"IF('[1]MONE(M)CARD'!GD390=\"\",\"\",'[1]MONE(M)CARD'!GD390)","v":160.40426563338025},{"$f":"IF('[1]MONE(M)CARD'!GE390=\"\",\"\",'[1]MONE(M)CARD'!GE390)","v":17149.898818188634},24.236192710406335,{"$f":"IF('[9]II.2.Balance OSD-Activos'!J248=\"\",\"\",'[9]II.2.Balance OSD-Activos'!J248)","v":329.72193125531817},{"$f":"IF('[9]II.2.Balance OSD-Activos'!N248=\"\",\"\",'[9]II.2.Balance OSD-Activos'!N248)","v":1419.6087045066495},{"$f":"IF('[9]II.2.Balance OSD-Activos'!R248=\"\",\"\",'[9]II.2.Balance OSD-Activos'!R248)","v":58681.361853034221},{"$f":"IF('[9]II.2.Balance OSD-Activos'!S248=\"\",\"\",'[9]II.2.Balance OSD-Activos'!S248)","v":64571.867023748971},59011.083784289542,125002.55951254515,{"$f":"IF(OR(AF383=\"\",AF371=\"\"),\"\",((AF383/AF371)-1)*100)","v":-2.7337314184865291},{"$f":"IF(OR(AJ383=\"\",AJ371=\"\"),\"\",((AJ383/AJ371)-1)*100)","v":5.3459032221557345},{"$f":"IF(OR(AG383=\"\",AG371=\"\"),\"\",((AG383/AG371)-1)*100)","v":28.764428138686782},{"$f":"IF(OR(AH383=\"\",AH371=\"\"),\"\",((AH383/AH371)-1)*100)","v":5.3950955664701095},{"$f":"IF(OR(AI383=\"\",AI371=\"\"),\"\",((AI383/AI371)-1)*100)","v":6.7071706687367394},{"$f":"IF(OR(AK383=\"\",AK371=\"\"),\"\",((AK383/AK371)-1)*100)","v":6.2656617502520051},{"$f":"IF(OR(AQ383=\"\",AQ382=\"\"),\"\",AQ383-AQ382)","v":0.85468537702464431},{"$f":"IF('[1]MONE(M)CAPARD'!GS390=\"\",\"\",'[1]MONE(M)CAPARD'!GS390)","v":38302.974850824583},{"$f":"IF('[1]MONE(M)CARD'!HA390=\"\",\"\",'[1]MONE(M)CAPARD'!HA390)","v":19030.675733708635},{"$f":"IF('[1]MONE(M)CAPARD'!HB390=\"\",\"\",'[1]MONE(M)CAPARD'!HB390)","v":19272.299117115948},"n.d.",{"$f":"IF('[10]II.2.Balance OSD-Activos'!J248=\"\",\"\",'[10]II.2.Balance OSD-Activos'!J248)","v":2765.7467575453179},{"$f":"IF('[10]II.2.Balance OSD-Activos'!N248=\"\",\"\",'[10]II.2.Balance OSD-Activos'!N248)","v":2187.2579502866497},{"$f":"IF('[10]II.2.Balance OSD-Activos'!R248=\"\",\"\",'[10]II.2.Balance OSD-Activos'!R248)","v":80227.627559204222},{"$f":"IF('[10]II.2.Balance OSD-Activos'!S248=\"\",\"\",'[10]II.2.Balance OSD-Activos'!S248)","v":91795.518331238971},82993.374316749541,176976.15059827516,{"$f":"IF(OR(AW383=\"\",AW371=\"\"),\"\",((AW383/AW371)-1)*100)","v":-1.5254308531723604},{"$f":"IF(OR(BA383=\"\",BA371=\"\"),\"\",((BA383/BA371)-1)*100)","v":2.4414524688145978},{"$f":"IF(OR(AX383=\"\",AX371=\"\"),\"\",((AX383/AX371)-1)*100)","v":31.994677474325449},{"$f":"IF(OR(AY383=\"\",AY371=\"\"),\"\",((AY383/AY371)-1)*100)","v":2.5839125076770442},{"$f":"IF(OR(AZ383=\"\",AZ371=\"\"),\"\",((AZ383/AZ371)-1)*100)","v":5.8357993769142302},{"$f":"IF(OR(BB383=\"\",BB371=\"\"),\"\",((BB383/BB371)-1)*100)","v":4.4683948669085538},{"$f":"IF(OR(BH383=\"\",BH382=\"\"),\"\",BH383-BH382)","v":0.73043039907794149},{"$f":"IF('[1]MONE(M)CAPARD'!AS390=\"\",\"\",'[1]MONE(M)CAPARD'!AS390)","v":0.75},{"$f":"IF('[1]MONE(M)CAPARD'!AT390=\"\",\"\",'[1]MONE(M)CAPARD'!AT390)","v":"n.a."},{"$f":"IF('[1]MONE(M)CAPARD'!AU390=\"\",\"\",'[1]MONE(M)CAPARD'!AU390)","v":1.75},{"$f":"IF('[1]MONE(M)CAPARD'!AV390=\"\",\"\",'[1]MONE(M)CAPARD'!AV390)","v":3},{"$f":"IF('[1]MONE(M)CAPARD'!AW390=\"\",\"\",'[1]MONE(M)CAPARD'!AW390)","v":3.5},{"$f":"IF('[1]MONE(M)CAPARD'!AX390=\"\",\"\",'[1]MONE(M)CAPARD'!AX390)","v":3},{"$f":"IF('[1]MONE(M)CAPARD'!AY390=\"\",\"\",'[1]MONE(M)CAPARD'!AY390)","v":"n.a."},{"$f":"IF('[1]FISCAL(M)'!$K390=\"\",\"\",'[1]FISCAL(M)'!$K390)","v":-4317.4199842316366},{"$f":"IF('[1]FISCAL(M)'!$L390=\"\",\"\",'[1]FISCAL(M)'!$L390)","v":-9089.2199842316368},{"$f":"IF('[1]FISCAL(M)'!$AY390=\"\",\"\",'[1]FISCAL(M)'!$AY390)","v":186018.87395906163},{"$f":"IF('[1]FISCAL(M)'!$BI390=\"\",\"\",'[1]FISCAL(M)'!$BI390)","v":99217.315348371805},{"$f":"IF('[1]FISCAL(M)'!$BS390=\"\",\"\",'[1]FISCAL(M)'!$BS390)","v":86801.558610689812},{"$f":"IF('[1]FISCAL(M)'!$AZ390=\"\",\"\",'[1]FISCAL(M)'!$AZ390)","v":226018.37395906163},{"$f":"IF('[1]FISCAL(M)'!$BJ390=\"\",\"\",'[1]FISCAL(M)'!$BJ390)","v":106836.83534837181},{"$f":"IF('[1]FISCAL(M)'!$BT390=\"\",\"\",'[1]FISCAL(M)'!$BT390)","v":119181.53861068981},{"$f":"IF('[2]MONE(M)'!$AO390=\"\",\"\",'[2]MONE(M)'!$AO390)","v":22892809.471379966},{"$f":"IF('[3]MONE(M)'!$AO390=\"\",\"\",'[3]MONE(M)'!$AO390)","v":15027.757311689998},{"$f":"IF('[4]MONE(M)'!$AO390=\"\",\"\",'[4]MONE(M)'!$AO390)","v":241057.99080781188},{"$f":"+'[5]MONE(M)'!$AO390","v":419983.80720666761},{"$f":"IF('[6]MONE(M)'!$AO390=\"\",\"\",'[6]MONE(M)'!$AO390)","v":122444.48764996402},{"$f":"IF('[7]MONE(M)'!$AO390=\"\",\"\",'[7]MONE(M)'!$AO390)","v":1416801.1351469697},{"$f":"IF('[8]MONE(M)'!$AO390=\"\",\"\",'[8]MONE(M)'!$AO390)","v":53241.109577019997},1.6704419050744601,4.888693854727566,8.2039761762431098,7.1131423746938038,2.2271248088619799,7.875555053803196,2.755604756630059,{"$f":"'[1]FISCAL(M)'!$K390","v":-4317.4199842316366},{"$f":"+'[1]REAL(A)'!$AO$41","v":315762.79656609107},-1.36729850102147,{"$f":"IF('[1]FISCAL(M)'!$L390=\"\",\"\",'[1]FISCAL(M)'!$L390)","v":-9089.2199842316368},{"$f":"+'[1]REAL(A)'!$AP$41","v":379367.86234669382},-2.3958855997995028,186469.61790072583,{"$f":"'[1]Gráfico REM'!BG384","v":49011.421628593154},{"$f":"'[1]Gráfico REM'!BH384","v":128633.06369140951},{"$f":"'[1]Gráfico REM'!BI384","v":8825.1325807231769},{"$f":"IFERROR(+((CS383/CS371)-1)*100,\"\")","v":10.280562941944261},{"$f":"IFERROR(+((CT383/CT371)-1)*100,\"\")","v":28.185705095961431},{"$f":"IFERROR(+((CU383/CU371)-1)*100,\"\")","v":5.3621437825566387},{"$f":"IFERROR(+((CV383/CV371)-1)*100,\"\")","v":0.68305418438658894},{"$f":"+IF(OR(DB383=\"\",+DC383=\"\",+DD383=\"\"),\"\",(DB383+DC383+DD383))","v":267273.35615026683},{"$f":"'[1]Gráfico REM'!BK384","v":52642.560253462158},{"$f":"'[1]Gráfico REM'!BL384","v":181874.1732684295},{"$f":"'[1]Gráfico REM'!BM384","v":32756.622628375175},{"$f":"IFERROR(+((DA383/DA371)-1)*100,\"\")","v":8.7572372986405522},{"$f":"IFERROR(+((DB383/DB371)-1)*100,\"\")","v":25.888664303612497},{"$f":"IFERROR(+((DC383/DC371)-1)*100,\"\")","v":4.5855277178761922},{"$f":"IFERROR(+((DD383/DD371)-1)*100,\"\")","v":9.0595222170482224}]
[2021,"octubre","2021-octubre",{"$f":"IF('[1]REAL IPC(M)'!$AL391=\"\",\"\",+'[1]REAL IPC(M)'!$AL391)","v":4.9792015597198258},{"$f":"IF('[1]REAL IPC(M)'!$BE391=\"\",\"\",+'[1]REAL IPC(M)'!$BE391)","v":4.894052531503057},{"$f":"IF('[1]REAL IPC(M)'!$AM391=\"\",\"\",+'[1]REAL IPC(M)'!$AM391)","v":4.7101826843985339},{"$f":"IF('[1]REAL IPC(M)'!$BI391=\"\",\"\",+'[1]REAL IPC(M)'!$BI391)","v":4.4594824066213956},{"$f":"IF('[1]REAL IMAE(M)'!BJ391=\"\",\"\",'[1]REAL IMAE(M)'!BJ391)","v":8.790157095962714},{"$f":"IF('[1]REAL IMAE(M)'!BK391=\"\",\"\",'[1]REAL IMAE(M)'!BK391)","v":4.2739339439454405},{"$f":"IF('[1]REAL IMAE(M)'!BN391=\"\",\"\",'[1]REAL IMAE(M)'!BN391)","v":10.038838028967634},{"$f":"IF('[1]REAL IMAE(M)'!BO391=\"\",\"\",'[1]REAL IMAE(M)'!BO391)","v":4.4100353013430738},{"$f":"IF('[1]EXT RIN(M)'!$K391=\"\",\"\",'[1]EXT RIN(M)'!$K391)","v":56606.557759491079},null,{"$f":"IF('[1]EXT RIN(M)'!$L391=\"\",\"\",'[1]EXT RIN(M)'!$L391)","v":64021.547654771079},null,{"$f":"IF('[1]MONE(M)CARD'!EG391=\"\",\"\",'[1]MONE(M)CARD'!EG391)","v":55560.870876648391},{"$f":"IF('[1]MONE(M)CARD'!EK391=\"\",\"\",'[1]MONE(M)CARD'!EK391)","v":67320.017316874888},{"$f":"IF('[1]MONE(M)CARD'!EP391=\"\",\"\",'[1]MONE(M)CARD'!EP391)","v":40365.059475271584},{"$f":"IF('[1]MONE(M)CARD'!ES391=\"\",\"\",'[1]MONE(M)CARD'!ES391)","v":11.92311036407434},{"$f":"IF('[1]MONE(M)CARD'!EV391=\"\",\"\",'[1]MONE(M)CARD'!EV391)","v":8.6418754821075972},{"$f":"IF('[1]MONE(M)CARD'!EZ391=\"\",\"\",'[1]MONE(M)CARD'!EZ391)","v":8.7979079632654269},{"$f":"IF('[1]MONE(M)CAPARD'!FC391=\"\",\"\",'[1]MONE(M)CAPARD'!FC391)","v":64880.221048418389},{"$f":"IF('[1]MONE(M)CAPARD'!FG391=\"\",\"\",'[1]MONE(M)CAPARD'!FG391)","v":95557.830074054902},{"$f":"IF('[1]MONE(M)CAPARD'!FL391=\"\",\"\",'[1]MONE(M)CAPARD'!FL391)","v":40365.059475271584},{"$f":"IF('[1]MONE(M)CAPARD'!FO391=\"\",\"\",'[1]MONE(M)CAPARD'!FO391)","v":11.641416061037479},{"$f":"IF('[1]MONE(M)CAPARD'!FR391=\"\",\"\",'[1]MONE(M)CAPARD'!FR391)","v":1.7223190768263841},{"$f":"IF('[1]MONE(M)CAPARD'!FV391=\"\",\"\",'[1]MONE(M)CAPARD'!FV391)","v":3.1556446041602682},{"$f":"IF('[1]MONE(M)CARD'!FV391=\"\",\"\",'[1]MONE(M)CARD'!FV391)","v":2084.532085004596},{"$f":"IF('[1]MONE(M)CARD'!GD391=\"\",\"\",'[1]MONE(M)CARD'!GD391)","v":152.95085946060206},{"$f":"IF('[1]MONE(M)CARD'!GE391=\"\",\"\",'[1]MONE(M)CARD'!GE391)","v":17802.438593271589},{"$f":"IF(AD384=\"\",\"\",((AD384/AD371)-1)*100)","v":27.088418043059328},{"$f":"IF('[9]II.2.Balance OSD-Activos'!J249=\"\",\"\",'[9]II.2.Balance OSD-Activos'!J249)","v":338.74510414745134},{"$f":"IF('[9]II.2.Balance OSD-Activos'!N249=\"\",\"\",'[9]II.2.Balance OSD-Activos'!N249)","v":1305.1273320777873},{"$f":"IF('[9]II.2.Balance OSD-Activos'!R249=\"\",\"\",'[9]II.2.Balance OSD-Activos'!R249)","v":59430.375771555351},{"$f":"IF('[9]II.2.Balance OSD-Activos'!S249=\"\",\"\",'[9]II.2.Balance OSD-Activos'!S249)","v":64846.105900375034},{"$f":"IFERROR(+AF384+AH384,\"\")","v":59769.1208757028},125920.35410815562,-0.78871773124545852,5.9934250741558115,34.789536703266947,6.0347411055268196,6.9790149571924864,6.7361741110136375,0.47051236076163239,{"$f":"IF('[1]MONE(M)CAPARD'!GS391=\"\",\"\",'[1]MONE(M)CAPARD'!GS391)","v":38942.88306443685},{"$f":"IF('[1]MONE(M)CARD'!HA391=\"\",\"\",'[1]MONE(M)CAPARD'!HA391)","v":19645.230802961589},{"$f":"IF('[1]MONE(M)CAPARD'!HB391=\"\",\"\",'[1]MONE(M)CAPARD'!HB391)","v":19297.652261475261},"n.d.",{"$f":"IF('[10]II.2.Balance OSD-Activos'!J249=\"\",\"\",'[10]II.2.Balance OSD-Activos'!J249)","v":2769.9350324274515},{"$f":"IF('[10]II.2.Balance OSD-Activos'!N249=\"\",\"\",'[10]II.2.Balance OSD-Activos'!N249)","v":2059.7007634877873},{"$f":"IF('[10]II.2.Balance OSD-Activos'!R249=\"\",\"\",'[10]II.2.Balance OSD-Activos'!R249)","v":81176.329730962345},{"$f":"IF('[10]II.2.Balance OSD-Activos'!S249=\"\",\"\",'[10]II.2.Balance OSD-Activos'!S249)","v":92075.257770699041},{"$f":"IFERROR(+AW384+AY384,\"\")","v":83946.264763389801},178081.22329757662,-5.0924113781626428,3.0513289919424036,34.877680527013275,3.3539438204587046,5.944368139002032,4.817300965401472,0.3489060984929182,{"$f":"IF('[1]MONE(M)CAPARD'!AS391=\"\",\"\",'[1]MONE(M)CAPARD'!AS391)","v":0.75},{"$f":"IF('[1]MONE(M)CAPARD'!AT391=\"\",\"\",'[1]MONE(M)CAPARD'!AT391)","v":"n.a."},{"$f":"IF('[1]MONE(M)CAPARD'!AU391=\"\",\"\",'[1]MONE(M)CAPARD'!AU391)","v":1.75},{"$f":"IF('[1]MONE(M)CAPARD'!AV391=\"\",\"\",'[1]MONE(M)CAPARD'!AV391)","v":3},{"$f":"IF('[1]MONE(M)CAPARD'!AW391=\"\",\"\",'[1]MONE(M)CAPARD'!AW391)","v":3.5},{"$f":"IF('[1]MONE(M)CAPARD'!AX391=\"\",\"\",'[1]MONE(M)CAPARD'!AX391)","v":3},{"$f":"IF('[1]MONE(M)CAPARD'!AY391=\"\",\"\",'[1]MONE(M)CAPARD'!AY391)","v":"n.a."},{"$f":"IF('[1]FISCAL(M)'!$K391=\"\",\"\",'[1]FISCAL(M)'!$K391)","v":-4300.0328074739473},{"$f":"IF('[1]FISCAL(M)'!$L391=\"\",\"\",'[1]FISCAL(M)'!$L391)","v":"n.d."},{"$f":"IF('[1]FISCAL(M)'!$AY391=\"\",\"\",'[1]FISCAL(M)'!$AY391)","v":187765.22765003867},{"$f":"IF('[1]FISCAL(M)'!$BI391=\"\",\"\",'[1]FISCAL(M)'!$BI391)","v":99584.681617827882},{"$f":"IF('[1]FISCAL(M)'!$BS391=\"\",\"\",'[1]FISCAL(M)'!$BS391)","v":88180.546032210812},{"$f":"IF('[1]FISCAL(M)'!$AZ391=\"\",\"\",'[1]FISCAL(M)'!$AZ391)","v":227891.83765003865},{"$f":"IF('[1]FISCAL(M)'!$BJ391=\"\",\"\",'[1]FISCAL(M)'!$BJ391)","v":107186.61161782788},{"$f":"IF('[1]FISCAL(M)'!$BT391=\"\",\"\",'[1]FISCAL(M)'!$BT391)","v":120705.2260322108},{"$f":"IF('[2]MONE(M)'!$AO391=\"\",\"\",'[2]MONE(M)'!$AO391)","v":23172043.731955346},{"$f":"IF('[3]MONE(M)'!$AO391=\"\",\"\",'[3]MONE(M)'!$AO391)","v":15126.02891288},{"$f":"IF('[4]MONE(M)'!$AO391=\"\",\"\",'[4]MONE(M)'!$AO391)","v":245701.03267337993},{"$f":"+'[5]MONE(M)'!$AO391","v":427725.86733790452},{"$f":"IF('[6]MONE(M)'!$AO391=\"\",\"\",'[6]MONE(M)'!$AO391)","v":124250.57860261521},{"$f":"IF('[7]MONE(M)'!$AO391=\"\",\"\",'[7]MONE(M)'!$AO391)","v":1423575.3557557999},{"$f":"IF('[8]MONE(M)'!$AO391=\"\",\"\",'[8]MONE(M)'!$AO391)","v":53396.613588890999},2.5302202943356278,5.9131467190817188,8.5821435147567904,9.3894010872680447,3.3609641265409218,7.676879108269663,2.6573105539406061,{"$f":"'[1]FISCAL(M)'!$K391","v":-4300.0328074739473},{"$f":"+'[1]REAL(A)'!$AO$41","v":315762.79656609107},-1.36179209654736,{"$f":"IF('[1]FISCAL(M)'!$L391=\"\",\"\",'[1]FISCAL(M)'!$L391)","v":"n.d."},{"$f":"+'[1]REAL(A)'!$AP$41","v":379367.86234669382},"n.d.",{"$f":"+IF(OR(CT384=\"\",+CU384=\"\",+CV384=\"\"),\"\",(CT384+CU384+CV384))","v":187598.75395929665},{"$f":"'[1]Gráfico REM'!BG385","v":49497.609495324752},{"$f":"'[1]Gráfico REM'!BH385","v":129519.68958028045},{"$f":"'[1]Gráfico REM'!BI385","v":8581.454883691451},{"$f":"IFERROR(+((CS384/CS372)-1)*100,\"\")","v":9.8008968776758465},{"$f":"IFERROR(+((CT384/CT372)-1)*100,\"\")","v":24.412177929020284},{"$f":"IFERROR(+((CU384/CU372)-1)*100,\"\")","v":5.8380459808325735},{"$f":"IFERROR(+((CV384/CV372)-1)*100,\"\")","v":-1.2835160506313836},{"$f":"+IF(OR(DB384=\"\",+DC384=\"\",+DD384=\"\"),\"\",(DB384+DC384+DD384))","v":268814.20632680866},{"$f":"'[1]Gráfico REM'!BK385","v":53112.415192572749},{"$f":"'[1]Gráfico REM'!BL385","v":182916.30316917144},{"$f":"'[1]Gráfico REM'!BM385","v":32785.487965064458},{"$f":"IFERROR(+((DA384/DA372)-1)*100,\"\")","v":8.4625813689926943},{"$f":"IFERROR(+((DB384/DB372)-1)*100,\"\")","v":22.351646534726942},{"$f":"IFERROR(+((DC384/DC372)-1)*100,\"\")","v":4.8893428631685332},{"$f":"IFERROR(+((DD384/DD372)-1)*100,\"\")","v":9.1355574747157284}]
[2021,"noviembre","2021-noviembre",{"$f":"IF('[1]REAL IPC(M)'!$AL392=\"\",\"\",+'[1]REAL IPC(M)'!$AL392)","v":5.3971201159445314},{"$f":"IF('[1]REAL IPC(M)'!$BE392=\"\",\"\",+'[1]REAL IPC(M)'!$BE392)","v":4.9504454663167996},{"$f":"IF('[1]REAL IPC(M)'!$AM392=\"\",\"\",+'[1]REAL IPC(M)'!$AM392)","v":5.1280403149085219},{"$f":"IF('[1]REAL IPC(M)'!$BI392=\"\",\"\",+'[1]REAL IPC(M)'!$BI392)","v":4.5256163055134691},{"$f":"IF('[1]REAL IMAE(M)'!BJ392=\"\",\"\",'[1]REAL IMAE(M)'!BJ392)","v":9.195013683074805},{"$f":"IF('[1]REAL IMAE(M)'!BK392=\"\",\"\",'[1]REAL IMAE(M)'!BK392)","v":4.3628099710747437},{"$f":"IF('[1]REAL IMAE(M)'!BN392=\"\",\"\",'[1]REAL IMAE(M)'!BN392)","v":10.105313483886679},{"$f":"IF('[1]REAL IMAE(M)'!BO392=\"\",\"\",'[1]REAL IMAE(M)'!BO392)","v":4.5367189814581765},{"$f":"IF('[1]EXT RIN(M)'!$K392=\"\",\"\",'[1]EXT RIN(M)'!$K392)","v":55896.125495637076},null,{"$f":"IF('[1]EXT RIN(M)'!$L392=\"\",\"\",'[1]EXT RIN(M)'!$L392)","v":64201.742371477078},null,{"$f":"IF('[1]MONE(M)CARD'!EG392=\"\",\"\",'[1]MONE(M)CARD'!EG392)","v":57307.643057152622},{"$f":"IF('[1]MONE(M)CARD'!EK392=\"\",\"\",'[1]MONE(M)CARD'!EK392)","v":67348.982872736291},{"$f":"IF('[1]MONE(M)CARD'!EP392=\"\",\"\",'[1]MONE(M)CARD'!EP392)","v":40885.403386456717},{"$f":"IF('[1]MONE(M)CARD'!ES392=\"\",\"\",'[1]MONE(M)CARD'!ES392)","v":13.32780349800775},{"$f":"IF('[1]MONE(M)CARD'!EV392=\"\",\"\",'[1]MONE(M)CARD'!EV392)","v":9.2219809597913418},{"$f":"IF('[1]MONE(M)CARD'!EZ392=\"\",\"\",'[1]MONE(M)CARD'!EZ392)","v":9.1180271634049959},{"$f":"IF('[1]MONE(M)CAPARD'!FC392=\"\",\"\",'[1]MONE(M)CAPARD'!FC392)","v":66678.074305652626},{"$f":"IF('[1]MONE(M)CAPARD'!FG392=\"\",\"\",'[1]MONE(M)CAPARD'!FG392)","v":95299.201726486281},{"$f":"IF('[1]MONE(M)CAPARD'!FL392=\"\",\"\",'[1]MONE(M)CAPARD'!FL392)","v":40885.403386456717},{"$f":"IF('[1]MONE(M)CAPARD'!FO392=\"\",\"\",'[1]MONE(M)CAPARD'!FO392)","v":12.567471191561941},{"$f":"IF('[1]MONE(M)CAPARD'!FR392=\"\",\"\",'[1]MONE(M)CAPARD'!FR392)","v":1.9046405807491729},{"$f":"IF('[1]MONE(M)CAPARD'!FV392=\"\",\"\",'[1]MONE(M)CAPARD'!FV392)","v":3.2235299158513309},{"$f":"IF('[1]MONE(M)CARD'!FV392=\"\",\"\",'[1]MONE(M)CARD'!FV392)","v":2117.3463126952101},{"$f":"IF('[1]MONE(M)CARD'!GD392=\"\",\"\",'[1]MONE(M)CARD'!GD392)","v":163.10365752125992},{"$f":"IF('[1]MONE(M)CARD'!GE392=\"\",\"\",'[1]MONE(M)CARD'!GE392)","v":17704.198260699202},22.095050206523979,{"$f":"IF('[9]II.2.Balance OSD-Activos'!J250=\"\",\"\",'[9]II.2.Balance OSD-Activos'!J250)","v":332.06101478000608},{"$f":"IF('[9]II.2.Balance OSD-Activos'!N250=\"\",\"\",'[9]II.2.Balance OSD-Activos'!N250)","v":1412.0984985466584},{"$f":"IF('[9]II.2.Balance OSD-Activos'!R250=\"\",\"\",'[9]II.2.Balance OSD-Activos'!R250)","v":60450.663914638084},{"$f":"IF('[9]II.2.Balance OSD-Activos'!S250=\"\",\"\",'[9]II.2.Balance OSD-Activos'!S250)","v":65995.846545470675},60782.724929418087,128190.66997343543,-1.960324890227394,7.308108266531721,50.411931726136629,7.3638626994062761,7.8730902894044386,7.9398963971844427,1.2037222861708052,{"$f":"IF('[1]MONE(M)CAPARD'!GS392=\"\",\"\",'[1]MONE(M)CAPARD'!GS392)","v":38841.501448789873},{"$f":"IF('[1]MONE(M)CARD'!HA392=\"\",\"\",'[1]MONE(M)CAPARD'!HA392)","v":19517.321797109198},{"$f":"IF('[1]MONE(M)CAPARD'!HB392=\"\",\"\",'[1]MONE(M)CAPARD'!HB392)","v":19324.179651680675},"n.d.",{"$f":"IF('[10]II.2.Balance OSD-Activos'!J250=\"\",\"\",'[10]II.2.Balance OSD-Activos'!J250)","v":2744.3935238000058},{"$f":"IF('[10]II.2.Balance OSD-Activos'!N250=\"\",\"\",'[10]II.2.Balance OSD-Activos'!N250)","v":2140.5217421966586},{"$f":"IF('[10]II.2.Balance OSD-Activos'!R250=\"\",\"\",'[10]II.2.Balance OSD-Activos'!R250)","v":81745.035294708083},{"$f":"IF('[10]II.2.Balance OSD-Activos'!S250=\"\",\"\",'[10]II.2.Balance OSD-Activos'!S250)","v":93426.00555043068},84489.428818508095,180055.95611113543,-5.6610615250158647,3.5662369590722109,44.333041737359302,3.9074418416046308,6.7134860271628183,5.5355975268221558,0.71829656142068377,{"$f":"IF('[1]MONE(M)CAPARD'!AS392=\"\",\"\",'[1]MONE(M)CAPARD'!AS392)","v":0.75},{"$f":"IF('[1]MONE(M)CAPARD'!AT392=\"\",\"\",'[1]MONE(M)CAPARD'!AT392)","v":"n.a."},{"$f":"IF('[1]MONE(M)CAPARD'!AU392=\"\",\"\",'[1]MONE(M)CAPARD'!AU392)","v":1.75},{"$f":"IF('[1]MONE(M)CAPARD'!AV392=\"\",\"\",'[1]MONE(M)CAPARD'!AV392)","v":3},{"$f":"IF('[1]MONE(M)CAPARD'!AW392=\"\",\"\",'[1]MONE(M)CAPARD'!AW392)","v":3.5},{"$f":"IF('[1]MONE(M)CAPARD'!AX392=\"\",\"\",'[1]MONE(M)CAPARD'!AX392)","v":3.5},{"$f":"IF('[1]MONE(M)CAPARD'!AY392=\"\",\"\",'[1]MONE(M)CAPARD'!AY392)","v":"n.a."},{"$f":"IF('[1]FISCAL(M)'!$K392=\"\",\"\",'[1]FISCAL(M)'!$K392)","v":-5936.0369855728914},{"$f":"IF('[1]FISCAL(M)'!$L392=\"\",\"\",'[1]FISCAL(M)'!$L392)","v":"n.d."},{"$f":"IF('[1]FISCAL(M)'!$AY392=\"\",\"\",'[1]FISCAL(M)'!$AY392)","v":185766.26548260468},{"$f":"IF('[1]FISCAL(M)'!$BI392=\"\",\"\",'[1]FISCAL(M)'!$BI392)","v":98029.611273228307},{"$f":"IF('[1]FISCAL(M)'!$BS392=\"\",\"\",'[1]FISCAL(M)'!$BS392)","v":87736.654209376371},{"$f":"IF('[1]FISCAL(M)'!$AZ392=\"\",\"\",'[1]FISCAL(M)'!$AZ392)","v":226151.79548260468},{"$f":"IF('[1]FISCAL(M)'!$BJ392=\"\",\"\",'[1]FISCAL(M)'!$BJ392)","v":105873.64127322831},{"$f":"IF('[1]FISCAL(M)'!$BT392=\"\",\"\",'[1]FISCAL(M)'!$BT392)","v":120278.15420937637},{"$f":"IF('[2]MONE(M)'!$AO392=\"\",\"\",'[2]MONE(M)'!$AO392)","v":23132262.549177878},{"$f":"IF('[3]MONE(M)'!$AO392=\"\",\"\",'[3]MONE(M)'!$AO392)","v":15265.960351550002},{"$f":"IF('[4]MONE(M)'!$AO392=\"\",\"\",'[4]MONE(M)'!$AO392)","v":250186.30303865304},{"$f":"+'[5]MONE(M)'!$AO392","v":438579.80537043122},{"$f":"IF('[6]MONE(M)'!$AO392=\"\",\"\",'[6]MONE(M)'!$AO392)","v":126969.34970320959},{"$f":"IF('[7]MONE(M)'!$AO392=\"\",\"\",'[7]MONE(M)'!$AO392)","v":1449386.9206497599},{"$f":"IF('[8]MONE(M)'!$AO392=\"\",\"\",'[8]MONE(M)'!$AO392)","v":52991.22136951},2.3747382246203541,6.0817503517516025,10.060535853077157,11.76799181166599,4.7495613830505823,8.8675527053852186,1.9194261750339336,{"$f":"'[1]FISCAL(M)'!$K392","v":-5936.0369855728914},{"$f":"+'[1]REAL(A)'!$AO$41","v":315762.79656609107},-1.8799038550858675,{"$f":"IF('[1]FISCAL(M)'!$L392=\"\",\"\",'[1]FISCAL(M)'!$L392)","v":"n.d."},{"$f":"+'[1]REAL(A)'!$AP$41","v":379367.86234669382},"n.d.",189725.17415641042,{"$f":"'[1]Gráfico REM'!BG386","v":49239.600369086736},{"$f":"'[1]Gráfico REM'!BH386","v":131607.02040146728},{"$f":"'[1]Gráfico REM'!BI386","v":8878.5533858564086},10.09577364041785,21.750810949883714,6.8370900647742872,2.0559776664654805,271058.60063615046,{"$f":"'[1]Gráfico REM'!BK386","v":52820.176434426736},{"$f":"'[1]Gráfico REM'!BL386","v":184598.24177097727},{"$f":"'[1]Gráfico REM'!BM386","v":33640.182430746412},8.4953010946898999,19.845188453815531,5.3775157974437215,9.9973326781762175]
[2021,"diciembre","2021-diciembre",{"$f":"IF('[1]REAL IPC(M)'!$AL393=\"\",\"\",+'[1]REAL IPC(M)'!$AL393)","v":5.5553391459174595},{"$f":"IF('[1]REAL IPC(M)'!$BE393=\"\",\"\",+'[1]REAL IPC(M)'!$BE393)","v":5.0014375372919195},{"$f":"IF('[1]REAL IPC(M)'!$AM393=\"\",\"\",+'[1]REAL IPC(M)'!$AM393)","v":5.1681000255455523},{"$f":"IF('[1]REAL IPC(M)'!$BI393=\"\",\"\",+'[1]REAL IPC(M)'!$BI393)","v":4.5860094265435913},{"$f":"IF('[1]REAL IMAE(M)'!BJ393=\"\",\"\",'[1]REAL IMAE(M)'!BJ393)","v":8.0498090010005185},{"$f":"IF('[1]REAL IMAE(M)'!BK393=\"\",\"\",'[1]REAL IMAE(M)'!BK393)","v":4.4370246206997921},{"$f":"IF('[1]REAL IMAE(M)'!BN393=\"\",\"\",'[1]REAL IMAE(M)'!BN393)","v":9.1539493957928819},{"$f":"IF('[1]REAL IMAE(M)'!BO393=\"\",\"\",'[1]REAL IMAE(M)'!BO393)","v":4.6436467052355823},{"$f":"IF('[1]EXT RIN(M)'!$K393=\"\",\"\",'[1]EXT RIN(M)'!$K393)","v":56866.1566551133},{"$f":"IF(B386<>\"diciembre\",\"\",L386)","v":56866.1566551133},{"$f":"IF('[1]EXT RIN(M)'!$L393=\"\",\"\",'[1]EXT RIN(M)'!$L393)","v":64965.622039543297},{"$f":"IF(B386<>\"diciembre\",\"\",N386)","v":64965.622039543297},{"$f":"IF('[1]MONE(M)CARD'!EG393=\"\",\"\",'[1]MONE(M)CARD'!EG393)","v":59634.463680625347},{"$f":"IF('[1]MONE(M)CARD'!EK393=\"\",\"\",'[1]MONE(M)CARD'!EK393)","v":67808.833555941703},{"$f":"IF('[1]MONE(M)CARD'!EP393=\"\",\"\",'[1]MONE(M)CARD'!EP393)","v":40928.416187212657},{"$f":"IF('[1]MONE(M)CARD'!ES393=\"\",\"\",'[1]MONE(M)CARD'!ES393)","v":12.603345192460601},{"$f":"IF('[1]MONE(M)CARD'!EV393=\"\",\"\",'[1]MONE(M)CARD'!EV393)","v":8.5696297598991436},{"$f":"IF('[1]MONE(M)CARD'!EZ393=\"\",\"\",'[1]MONE(M)CARD'!EZ393)","v":8.7004040783420713},{"$f":"IF('[1]MONE(M)CAPARD'!FC393=\"\",\"\",'[1]MONE(M)CAPARD'!FC393)","v":69163.835520675348},{"$f":"IF('[1]MONE(M)CAPARD'!FG393=\"\",\"\",'[1]MONE(M)CAPARD'!FG393)","v":96228.111415591702},{"$f":"IF('[1]MONE(M)CAPARD'!FL393=\"\",\"\",'[1]MONE(M)CAPARD'!FL393)","v":40928.416187212657},{"$f":"IF('[1]MONE(M)CAPARD'!FO393=\"\",\"\",'[1]MONE(M)CAPARD'!FO393)","v":11.427089424956716},{"$f":"IF('[1]MONE(M)CAPARD'!FR393=\"\",\"\",'[1]MONE(M)CAPARD'!FR393)","v":1.4608307314354363},{"$f":"IF('[1]MONE(M)CAPARD'!FV393=\"\",\"\",'[1]MONE(M)CAPARD'!FV393)","v":2.8916790113835633},{"$f":"IF('[1]MONE(M)CARD'!FV393=\"\",\"\",'[1]MONE(M)CARD'!FV393)","v":2271.2836292808583},{"$f":"IF('[1]MONE(M)CARD'!GD393=\"\",\"\",'[1]MONE(M)CARD'!GD393)","v":168.59580359572817},{"$f":"IF('[1]MONE(M)CARD'!GE393=\"\",\"\",'[1]MONE(M)CARD'!GE393)","v":16981.251060285307},16.085668693197697,{"$f":"IF('[9]II.2.Balance OSD-Activos'!J251=\"\",\"\",'[9]II.2.Balance OSD-Activos'!J251)","v":301.74352554543236},{"$f":"IF('[9]II.2.Balance OSD-Activos'!N251=\"\",\"\",'[9]II.2.Balance OSD-Activos'!N251)","v":1536.9284883915825},{"$f":"IF('[9]II.2.Balance OSD-Activos'!R251=\"\",\"\",'[9]II.2.Balance OSD-Activos'!R251)","v":60800.494338899625},{"$f":"IF('[9]II.2.Balance OSD-Activos'!S251=\"\",\"\",'[9]II.2.Balance OSD-Activos'!S251)","v":65778.435684555414},61102.237864445058,128417.60203739206,{"$f":"IF(OR(AF386=\"\",AF374=\"\"),\"\",((AF386/AF374)-1)*100)","v":-12.393976927670957},{"$f":"IF(OR(AJ386=\"\",AJ374=\"\"),\"\",((AJ386/AJ374)-1)*100)","v":7.9195450202329987},{"$f":"IF(OR(AG386=\"\",AG374=\"\"),\"\",((AG386/AG374)-1)*100)","v":48.612427767647695},{"$f":"IF(OR(AH386=\"\",AH374=\"\"),\"\",((AH386/AH374)-1)*100)","v":8.0438768345338261},{"$f":"IF(OR(AI386=\"\",AI374=\"\"),\"\",((AI386/AI374)-1)*100)","v":7.2136430432886423},{"$f":"IF(OR(AK386=\"\",AK374=\"\"),\"\",((AK386/AK374)-1)*100)","v":7.9092515583755629},{"$f":"IF(OR(AQ386=\"\",AQ385=\"\"),\"\",AQ386-AQ385)","v":-3.0644838808879804E-2},{"$f":"IF('[1]MONE(M)CAPARD'!GS393=\"\",\"\",'[1]MONE(M)CAPARD'!GS393)","v":38437.858333450306},{"$f":"IF('[1]MONE(M)CARD'!HA393=\"\",\"\",'[1]MONE(M)CAPARD'!HA393)","v":18766.318399995307},{"$f":"IF('[1]MONE(M)CAPARD'!HB393=\"\",\"\",'[1]MONE(M)CAPARD'!HB393)","v":19671.539933454998},"n.d.",{"$f":"IF('[10]II.2.Balance OSD-Activos'!J251=\"\",\"\",'[10]II.2.Balance OSD-Activos'!J251)","v":2741.8482746654327},{"$f":"IF('[10]II.2.Balance OSD-Activos'!N251=\"\",\"\",'[10]II.2.Balance OSD-Activos'!N251)","v":2297.2546214515824},{"$f":"IF('[10]II.2.Balance OSD-Activos'!R251=\"\",\"\",'[10]II.2.Balance OSD-Activos'!R251)","v":82249.57785551963},{"$f":"IF('[10]II.2.Balance OSD-Activos'!S251=\"\",\"\",'[10]II.2.Balance OSD-Activos'!S251)","v":93404.307505015429},84991.426130185064,180692.98825665208,{"$f":"IF(OR(AW386=\"\",AW374=\"\"),\"\",((AW386/AW374)-1)*100)","v":-7.036072030180085},{"$f":"IF(OR(BA386=\"\",BA374=\"\"),\"\",((BA386/BA374)-1)*100)","v":4.8896968681130248},{"$f":"IF(OR(AX386=\"\",AX374=\"\"),\"\",((AX386/AX374)-1)*100)","v":46.862714142763195},{"$f":"IF(OR(AY386=\"\",AY374=\"\"),\"\",((AY386/AY374)-1)*100)","v":5.3401770697290241},{"$f":"IF(OR(AZ386=\"\",AZ374=\"\"),\"\",((AZ386/AZ374)-1)*100)","v":6.4501687993122392},{"$f":"IF(OR(BB386=\"\",BB374=\"\"),\"\",((BB386/BB374)-1)*100)","v":6.0789664742215921},{"$f":"IF(OR(BH386=\"\",BH385=\"\"),\"\",BH386-BH385)","v":0.54336894739943631},{"$f":"IF('[1]MONE(M)CAPARD'!AS393=\"\",\"\",'[1]MONE(M)CAPARD'!AS393)","v":1.25},{"$f":"IF('[1]MONE(M)CAPARD'!AT393=\"\",\"\",'[1]MONE(M)CAPARD'!AT393)","v":"n.a."},{"$f":"IF('[1]MONE(M)CAPARD'!AU393=\"\",\"\",'[1]MONE(M)CAPARD'!AU393)","v":1.75},{"$f":"IF('[1]MONE(M)CAPARD'!AV393=\"\",\"\",'[1]MONE(M)CAPARD'!AV393)","v":3},{"$f":"IF('[1]MONE(M)CAPARD'!AW393=\"\",\"\",'[1]MONE(M)CAPARD'!AW393)","v":3.5},{"$f":"IF('[1]MONE(M)CAPARD'!AX393=\"\",\"\",'[1]MONE(M)CAPARD'!AX393)","v":3.5},{"$f":"IF('[1]MONE(M)CAPARD'!AY393=\"\",\"\",'[1]MONE(M)CAPARD'!AY393)","v":"n.a."},{"$f":"IF('[1]FISCAL(M)'!$K393=\"\",\"\",'[1]FISCAL(M)'!$K393)","v":-10052.416191002769},{"$f":"IF('[1]FISCAL(M)'!$L393=\"\",\"\",'[1]FISCAL(M)'!$L393)","v":-14033.716191002768},{"$f":"IF('[1]FISCAL(M)'!$AY393=\"\",\"\",'[1]FISCAL(M)'!$AY393)","v":184032.47040665126},{"$f":"IF('[1]FISCAL(M)'!$BI393=\"\",\"\",'[1]FISCAL(M)'!$BI393)","v":95439.327896961055},{"$f":"IF('[1]FISCAL(M)'!$BS393=\"\",\"\",'[1]FISCAL(M)'!$BS393)","v":88593.142509690195},{"$f":"IF('[1]FISCAL(M)'!$AZ393=\"\",\"\",'[1]FISCAL(M)'!$AZ393)","v":224520.33040665128},{"$f":"IF('[1]FISCAL(M)'!$BJ393=\"\",\"\",'[1]FISCAL(M)'!$BJ393)","v":103083.35789696107},{"$f":"IF('[1]FISCAL(M)'!$BT393=\"\",\"\",'[1]FISCAL(M)'!$BT393)","v":121436.97250969021},{"$f":"IF('[2]MONE(M)'!$AO393=\"\",\"\",'[2]MONE(M)'!$AO393)","v":23371909.188991945},{"$f":"IF('[3]MONE(M)'!$AO393=\"\",\"\",'[3]MONE(M)'!$AO393)","v":15175.85402819},{"$f":"IF('[4]MONE(M)'!$AO393=\"\",\"\",'[4]MONE(M)'!$AO393)","v":253094.17188786698},{"$f":"+'[5]MONE(M)'!$AO393","v":445099.83407511003},{"$f":"IF('[6]MONE(M)'!$AO393=\"\",\"\",'[6]MONE(M)'!$AO393)","v":127160.52296949446},{"$f":"IF('[7]MONE(M)'!$AO393=\"\",\"\",'[7]MONE(M)'!$AO393)","v":1467679.4145225598},{"$f":"IF('[8]MONE(M)'!$AO393=\"\",\"\",'[8]MONE(M)'!$AO393)","v":53435.287724610011},2.7916346650896706,5.718056270976235,10.793579442265111,12.15184791793693,5.1387202220816608,9.930841011511248,3.5549853475845161,{"$f":"'[1]FISCAL(M)'!$K393","v":-10052.416191002769},{"$f":"+'[1]REAL(A)'!$AO$41","v":315762.79656609107},-3.183534064279399,{"$f":"IF('[1]FISCAL(M)'!$L393=\"\",\"\",'[1]FISCAL(M)'!$L393)","v":-14033.716191002768},{"$f":"+'[1]REAL(A)'!$AP$41","v":379367.86234669382},-3.6992369633508235,{"$f":"+IF(OR(CT386=\"\",+CU386=\"\",+CV386=\"\"),\"\",(CT386+CU386+CV386))","v":188537.50321031152},{"$f":"'[1]Gráfico REM'!BG387","v":47176.405326773791},{"$f":"'[1]Gráfico REM'!BH387","v":131732.95581158606},{"$f":"'[1]Gráfico REM'!BI387","v":9628.1420719516809},{"$f":"IFERROR(+((CS386/CS374)-1)*100,\"\")","v":9.7667610047260887},{"$f":"IFERROR(+((CT386/CT374)-1)*100,\"\")","v":19.975940610170049},{"$f":"IFERROR(+((CU386/CU374)-1)*100,\"\")","v":6.7497405186129456},{"$f":"IFERROR(+((CV386/CV374)-1)*100,\"\")","v":6.5433073701498534},{"$f":"+IF(OR(DB386=\"\",+DC386=\"\",+DD386=\"\"),\"\",(DB386+DC386+DD386))","v":271249.32000873156},{"$f":"'[1]Gráfico REM'!BK387","v":50837.108044133791},{"$f":"'[1]Gráfico REM'!BL387","v":185168.24353619607},{"$f":"'[1]Gráfico REM'!BM387","v":35243.968428401684},{"$f":"IFERROR(+((DA386/DA374)-1)*100,\"\")","v":8.4769694153220776},{"$f":"IFERROR(+((DB386/DB374)-1)*100,\"\")","v":17.353510862665409},{"$f":"IFERROR(+((DC386/DC374)-1)*100,\"\")","v":5.8077517991328653},{"$f":"IFERROR(+((DD386/DD374)-1)*100,\"\")","v":11.08020145930746}]
[2022,"enero",{"$f":"A387&\"-\"&B387","v":"2022-enero"},{"$f":"IF('[1]REAL IPC(M)'!$AL394=\"\",\"\",+'[1]REAL IPC(M)'!$AL394)","v":5.7741306255348901},{"$f":"IF('[1]REAL IPC(M)'!$BE394=\"\",\"\",+'[1]REAL IPC(M)'!$BE394)","v":5.0467091764546446},{"$f":"IF('[1]REAL IPC(M)'!$AM394=\"\",\"\",+'[1]REAL IPC(M)'!$AM394)","v":5.3731645657519422},{"$f":"IF('[1]REAL IPC(M)'!$BI394=\"\",\"\",+'[1]REAL IPC(M)'!$BI394)","v":4.6402811546969902},{"$f":"IF('[1]REAL IMAE(M)'!BJ394=\"\",\"\",'[1]REAL IMAE(M)'!BJ394)","v":6.4698130596014591},{"$f":"IF('[1]REAL IMAE(M)'!BK394=\"\",\"\",'[1]REAL IMAE(M)'!BK394)","v":4.497425968774782},{"$f":"IF('[1]REAL IMAE(M)'!BN394=\"\",\"\",'[1]REAL IMAE(M)'!BN394)","v":7.6295690675551864},{"$f":"IF('[1]REAL IMAE(M)'!BO394=\"\",\"\",'[1]REAL IMAE(M)'!BO394)","v":4.7318224496675887},{"$f":"IF('[1]EXT RIN(M)'!$K394=\"\",\"\",'[1]EXT RIN(M)'!$K394)","v":55951.968078858146},null,{"$f":"IF('[1]EXT RIN(M)'!$L394=\"\",\"\",'[1]EXT RIN(M)'!$L394)","v":65995.147640328141},null,{"$f":"IF('[1]MONE(M)CARD'!EG394=\"\",\"\",'[1]MONE(M)CARD'!EG394)","v":58632.260149010115},{"$f":"IF('[1]MONE(M)CARD'!EK394=\"\",\"\",'[1]MONE(M)CARD'!EK394)","v":67879.606167403312},{"$f":"IF('[1]MONE(M)CARD'!EP394=\"\",\"\",'[1]MONE(M)CARD'!EP394)","v":41105.390302742162},{"$f":"IF('[1]MONE(M)CARD'!ES394=\"\",\"\",'[1]MONE(M)CARD'!ES394)","v":11.057161619369094},{"$f":"IF('[1]MONE(M)CARD'!EV394=\"\",\"\",'[1]MONE(M)CARD'!EV394)","v":7.8011630158186129},{"$f":"IF('[1]MONE(M)CARD'!EZ394=\"\",\"\",'[1]MONE(M)CARD'!EZ394)","v":7.8016916332065867},{"$f":"IF('[1]MONE(M)CAPARD'!FC394=\"\",\"\",'[1]MONE(M)CAPARD'!FC394)","v":68123.756661390114},{"$f":"IF('[1]MONE(M)CAPARD'!FG394=\"\",\"\",'[1]MONE(M)CAPARD'!FG394)","v":96122.971707413308},{"$f":"IF('[1]MONE(M)CAPARD'!FL394=\"\",\"\",'[1]MONE(M)CAPARD'!FL394)","v":41105.390302742162},{"$f":"IF('[1]MONE(M)CAPARD'!FO394=\"\",\"\",'[1]MONE(M)CAPARD'!FO394)","v":10.156720216221116},{"$f":"IF('[1]MONE(M)CAPARD'!FR394=\"\",\"\",'[1]MONE(M)CAPARD'!FR394)","v":0.74351406891970395},{"$f":"IF('[1]MONE(M)CAPARD'!FV394=\"\",\"\",'[1]MONE(M)CAPARD'!FV394)","v":2.081673679206486},{"$f":"IF('[1]MONE(M)CARD'!FV394=\"\",\"\",'[1]MONE(M)CARD'!FV394)","v":2234.889489574211},{"$f":"IF('[1]MONE(M)CARD'!GD394=\"\",\"\",'[1]MONE(M)CARD'!GD394)","v":184.46251962772385},{"$f":"IF('[1]MONE(M)CARD'!GE394=\"\",\"\",'[1]MONE(M)CARD'!GE394)","v":17035.676019212264},{"$f":"IF(AD387=\"\",\"\",((AD387/AD374)-1)*100)","v":20.285718628833727},{"$f":"IF('[9]II.2.Balance OSD-Activos'!J252=\"\",\"\",'[9]II.2.Balance OSD-Activos'!J252)","v":255.77775249084658},{"$f":"IF('[9]II.2.Balance OSD-Activos'!N252=\"\",\"\",'[9]II.2.Balance OSD-Activos'!N252)","v":1691.6413015092915},{"$f":"IF('[9]II.2.Balance OSD-Activos'!R252=\"\",\"\",'[9]II.2.Balance OSD-Activos'!R252)","v":61316.470135134019},{"$f":"IF('[9]II.2.Balance OSD-Activos'!S252=\"\",\"\",'[9]II.2.Balance OSD-Activos'!S252)","v":65974.346235989055},{"$f":"IFERROR(+AF387+AH387,\"\")","v":61572.247887624864},129238.23542512322,-29.003754872758915,8.5130287289041373,41.792663601944334,8.7527552639192763,7.5961814746979606,8.37454751718818,0.46529595881261709,{"$f":"IF('[1]MONE(M)CAPARD'!GS394=\"\",\"\",'[1]MONE(M)CAPARD'!GS394)","v":38451.920753454338},{"$f":"IF('[1]MONE(M)CARD'!HA394=\"\",\"\",'[1]MONE(M)CAPARD'!HA394)","v":18822.788967672266},{"$f":"IF('[1]MONE(M)CAPARD'!HB394=\"\",\"\",'[1]MONE(M)CAPARD'!HB394)","v":19629.131785782072},"n.d.",{"$f":"IF('[10]II.2.Balance OSD-Activos'!J252=\"\",\"\",'[10]II.2.Balance OSD-Activos'!J252)","v":2715.1463974408457},{"$f":"IF('[10]II.2.Balance OSD-Activos'!N252=\"\",\"\",'[10]II.2.Balance OSD-Activos'!N252)","v":2448.7608914492912},{"$f":"IF('[10]II.2.Balance OSD-Activos'!R252=\"\",\"\",'[10]II.2.Balance OSD-Activos'!R252)","v":82847.394761894015},{"$f":"IF('[10]II.2.Balance OSD-Activos'!S252=\"\",\"\",'[10]II.2.Balance OSD-Activos'!S252)","v":93647.987581039051},85562.541159334854,181659.28963182319,-8.0837328024686688,5.5296818617172505,41.548830463553067,6.0444087607842256,6.7359493618051269,6.5156133927512183,0.43664691852962623,{"$f":"IF('[1]MONE(M)CAPARD'!AS394=\"\",\"\",'[1]MONE(M)CAPARD'!AS394)","v":1.75},{"$f":"IF('[1]MONE(M)CAPARD'!AT394=\"\",\"\",'[1]MONE(M)CAPARD'!AT394)","v":"n.a."},{"$f":"IF('[1]MONE(M)CAPARD'!AU394=\"\",\"\",'[1]MONE(M)CAPARD'!AU394)","v":1.75},{"$f":"IF('[1]MONE(M)CAPARD'!AV394=\"\",\"\",'[1]MONE(M)CAPARD'!AV394)","v":3},{"$f":"IF('[1]MONE(M)CAPARD'!AW394=\"\",\"\",'[1]MONE(M)CAPARD'!AW394)","v":3.5},{"$f":"IF('[1]MONE(M)CAPARD'!AX394=\"\",\"\",'[1]MONE(M)CAPARD'!AX394)","v":4.5},{"$f":"IF('[1]MONE(M)CAPARD'!AY394=\"\",\"\",'[1]MONE(M)CAPARD'!AY394)","v":"n.a."},{"$f":"IF('[1]FISCAL(M)'!$K394=\"\",\"\",'[1]FISCAL(M)'!$K394)","v":179.90310795676723},{"$f":"IF('[1]FISCAL(M)'!$L394=\"\",\"\",'[1]FISCAL(M)'!$L394)","v":"n.d."},{"$f":"IF('[1]FISCAL(M)'!$AY394=\"\",\"\",'[1]FISCAL(M)'!$AY394)","v":188055.21054119646},{"$f":"IF('[1]FISCAL(M)'!$BI394=\"\",\"\",'[1]FISCAL(M)'!$BI394)","v":99152.621045649488},{"$f":"IF('[1]FISCAL(M)'!$BS394=\"\",\"\",'[1]FISCAL(M)'!$BS394)","v":88902.589495546956},{"$f":"IF('[1]FISCAL(M)'!$AZ394=\"\",\"\",'[1]FISCAL(M)'!$AZ394)","v":230963.60054119641},{"$f":"IF('[1]FISCAL(M)'!$BJ394=\"\",\"\",'[1]FISCAL(M)'!$BJ394)","v":106768.1510456495},{"$f":"IF('[1]FISCAL(M)'!$BT394=\"\",\"\",'[1]FISCAL(M)'!$BT394)","v":124195.44949554696},{"$f":"IF('[2]MONE(M)'!$AO394=\"\",\"\",'[2]MONE(M)'!$AO394)","v":23381688.461033866},{"$f":"IF('[3]MONE(M)'!$AO394=\"\",\"\",'[3]MONE(M)'!$AO394)","v":15255.180763940001},{"$f":"IF('[4]MONE(M)'!$AO394=\"\",\"\",'[4]MONE(M)'!$AO394)","v":254005.30803181257},{"$f":"+'[5]MONE(M)'!$AO394","v":454896.24475390028},{"$f":"IF('[6]MONE(M)'!$AO394=\"\",\"\",'[6]MONE(M)'!$AO394)","v":127259.62246254951},{"$f":"IF('[7]MONE(M)'!$AO394=\"\",\"\",'[7]MONE(M)'!$AO394)","v":1492831.3254825494},{"$f":"IF('[8]MONE(M)'!$AO394=\"\",\"\",'[8]MONE(M)'!$AO394)","v":53603.710900849983},3.0203663283297599,6.2016180971857571,10.690336908759912,14.419808933312005,5.7809462439708303,12.495266972166474,3.9395513753040845,{"$f":"'[1]FISCAL(M)'!$K394","v":179.90310795676723},{"$f":"+'[1]REAL(A)'!$AO$42","v":340542.71410212555},5.2828353245230775E-2,{"$f":"IF('[1]FISCAL(M)'!$L394=\"\",\"\",'[1]FISCAL(M)'!$L394)","v":"n.d."},{"$f":"+'[1]REAL(A)'!$AP$42","v":411034.78700529743},"n.d.",191450.09715018334,{"$f":"'[1]Gráfico REM'!BG388","v":49501.569361933318},{"$f":"'[1]Gráfico REM'!BH388","v":132565.95418374793},{"$f":"'[1]Gráfico REM'!BI388","v":9382.5736045020731},9.8108161408462458,18.504199926532451,7.327448558970362,3.5836168474647767,274043.05483195331,{"$f":"'[1]Gráfico REM'!BK388","v":53165.144395843316},{"$f":"'[1]Gráfico REM'!BL388","v":186169.66508459792},{"$f":"'[1]Gráfico REM'!BM388","v":34708.245351512072},8.6050787323916254,16.071702432416913,6.3295433915036226,10.399635168279996]
[2022,"febrero","2022-febrero",{"$f":"IF('[1]REAL IPC(M)'!$AL395=\"\",\"\",+'[1]REAL IPC(M)'!$AL395)","v":6.1383344185336641},{"$f":"IF('[1]REAL IPC(M)'!$BE395=\"\",\"\",+'[1]REAL IPC(M)'!$BE395)","v":5.0859833411035282},{"$f":"IF('[1]REAL IPC(M)'!$AM395=\"\",\"\",+'[1]REAL IPC(M)'!$AM395)","v":5.7049022192544818},{"$f":"IF('[1]REAL IPC(M)'!$BI395=\"\",\"\",+'[1]REAL IPC(M)'!$BI395)","v":4.6881029239133287},{"$f":"IF('[1]REAL IMAE(M)'!BJ395=\"\",\"\",'[1]REAL IMAE(M)'!BJ395)","v":5.7006753805934895},{"$f":"IF('[1]REAL IMAE(M)'!BK395=\"\",\"\",'[1]REAL IMAE(M)'!BK395)","v":4.5450806377710373},{"$f":"IF('[1]REAL IMAE(M)'!BN395=\"\",\"\",'[1]REAL IMAE(M)'!BN395)","v":6.8720970710647533},{"$f":"IF('[1]REAL IMAE(M)'!BO395=\"\",\"\",'[1]REAL IMAE(M)'!BO395)","v":4.802571664223021},{"$f":"IF('[1]EXT RIN(M)'!$K395=\"\",\"\",'[1]EXT RIN(M)'!$K395)","v":58085.864515372377},null,{"$f":"IF('[1]EXT RIN(M)'!$L395=\"\",\"\",'[1]EXT RIN(M)'!$L395)","v":67841.999704682385},null,{"$f":"IF('[1]MONE(M)CARD'!EG395=\"\",\"\",'[1]MONE(M)CARD'!EG395)","v":58535.477168987694},{"$f":"IF('[1]MONE(M)CARD'!EK395=\"\",\"\",'[1]MONE(M)CARD'!EK395)","v":69171.171507750798},{"$f":"IF('[1]MONE(M)CARD'!EP395=\"\",\"\",'[1]MONE(M)CARD'!EP395)","v":41718.682773475739},{"$f":"IF('[1]MONE(M)CARD'!ES395=\"\",\"\",'[1]MONE(M)CARD'!ES395)","v":10.506021877464345},{"$f":"IF('[1]MONE(M)CARD'!EV395=\"\",\"\",'[1]MONE(M)CARD'!EV395)","v":8.0067230320380425},{"$f":"IF('[1]MONE(M)CARD'!EZ395=\"\",\"\",'[1]MONE(M)CARD'!EZ395)","v":8.0717282834903195},{"$f":"IF('[1]MONE(M)CAPARD'!FC395=\"\",\"\",'[1]MONE(M)CAPARD'!FC395)","v":67897.208720047696},{"$f":"IF('[1]MONE(M)CAPARD'!FG395=\"\",\"\",'[1]MONE(M)CAPARD'!FG395)","v":98048.149088740814},{"$f":"IF('[1]MONE(M)CAPARD'!FL395=\"\",\"\",'[1]MONE(M)CAPARD'!FL395)","v":41718.682773475768},{"$f":"IF('[1]MONE(M)CAPARD'!FO395=\"\",\"\",'[1]MONE(M)CAPARD'!FO395)","v":9.3974567129134776},{"$f":"IF('[1]MONE(M)CAPARD'!FR395=\"\",\"\",'[1]MONE(M)CAPARD'!FR395)","v":1.1532589989482034},{"$f":"IF('[1]MONE(M)CAPARD'!FV395=\"\",\"\",'[1]MONE(M)CAPARD'!FV395)","v":2.5070915523813353},{"$f":"IF('[1]MONE(M)CARD'!FV395=\"\",\"\",'[1]MONE(M)CARD'!FV395)","v":2225.9907708120372},{"$f":"IF('[1]MONE(M)CARD'!GD395=\"\",\"\",'[1]MONE(M)CARD'!GD395)","v":187.31753677714534},{"$f":"IF('[1]MONE(M)CARD'!GE395=\"\",\"\",'[1]MONE(M)CARD'!GE395)","v":17226.602909060519},17.283683819532534,{"$f":"IF('[9]II.2.Balance OSD-Activos'!J253=\"\",\"\",'[9]II.2.Balance OSD-Activos'!J253)","v":272.54120090401545},{"$f":"IF('[9]II.2.Balance OSD-Activos'!N253=\"\",\"\",'[9]II.2.Balance OSD-Activos'!N253)","v":1795.2737164662808},{"$f":"IF('[9]II.2.Balance OSD-Activos'!R253=\"\",\"\",'[9]II.2.Balance OSD-Activos'!R253)","v":62158.99591454758},{"$f":"IF('[9]II.2.Balance OSD-Activos'!S253=\"\",\"\",'[9]II.2.Balance OSD-Activos'!S253)","v":67131.526843831016},62431.537115451596,131358.33767574889,{"$f":"IF(OR(AF388=\"\",AF376=\"\"),\"\",((AF388/AF376)-1)*100)","v":-22.762877651090086},{"$f":"IF(OR(AJ388=\"\",AJ376=\"\"),\"\",((AJ388/AJ376)-1)*100)","v":9.1542404832367641},{"$f":"IF(OR(AG388=\"\",AG376=\"\"),\"\",((AG388/AG376)-1)*100)","v":46.613615341186623},{"$f":"IF(OR(AH388=\"\",AH376=\"\"),\"\",((AH388/AH376)-1)*100)","v":9.3523721849924293},{"$f":"IF(OR(AI388=\"\",AI376=\"\"),\"\",((AI388/AI376)-1)*100)","v":8.8174541578485144},{"$f":"IF(OR(AK388=\"\",AK376=\"\"),\"\",((AK388/AK376)-1)*100)","v":9.3631434594956495},{"$f":"IF(OR(AQ388=\"\",AQ387=\"\"),\"\",AQ388-AQ387)","v":0.9885959423074695},{"$f":"IF('[1]MONE(M)CAPARD'!GS395=\"\",\"\",'[1]MONE(M)CAPARD'!GS395)","v":38771.822383625717},{"$f":"IF('[1]MONE(M)CARD'!HA395=\"\",\"\",'[1]MONE(M)CAPARD'!HA395)","v":19047.351968180516},{"$f":"IF('[1]MONE(M)CAPARD'!HB395=\"\",\"\",'[1]MONE(M)CAPARD'!HB395)","v":19724.470415445201},"n.d.",{"$f":"IF('[10]II.2.Balance OSD-Activos'!J253=\"\",\"\",'[10]II.2.Balance OSD-Activos'!J253)","v":2728.644391154015},{"$f":"IF('[10]II.2.Balance OSD-Activos'!N253=\"\",\"\",'[10]II.2.Balance OSD-Activos'!N253)","v":2546.1339822362811},{"$f":"IF('[10]II.2.Balance OSD-Activos'!R253=\"\",\"\",'[10]II.2.Balance OSD-Activos'!R253)","v":83702.511044077575},{"$f":"IF('[10]II.2.Balance OSD-Activos'!S253=\"\",\"\",'[10]II.2.Balance OSD-Activos'!S253)","v":94868.67254470101},{"$f":"IFERROR(+AW388+AY388,\"\")","v":86431.155435231587},183845.96196216886,{"$f":"IF(OR(AW388=\"\",AW376=\"\"),\"\",((AW388/AW376)-1)*100)","v":-8.3978262663725882},{"$f":"IF(OR(BA388=\"\",BA376=\"\"),\"\",((BA388/BA376)-1)*100)","v":5.9935981408194339},{"$f":"IF(OR(AX388=\"\",AX376=\"\"),\"\",((AX388/AX376)-1)*100)","v":45.67167821457987},{"$f":"IF(OR(AY388=\"\",AY376=\"\"),\"\",((AY388/AY376)-1)*100)","v":6.5392505687979385},{"$f":"IF(OR(AZ388=\"\",AZ376=\"\"),\"\",((AZ388/AZ376)-1)*100)","v":7.6003339356723432},{"$f":"IF(OR(BB388=\"\",BB376=\"\"),\"\",((BB388/BB376)-1)*100)","v":7.2242914449644369},{"$f":"IF(OR(BH388=\"\",BH387=\"\"),\"\",BH388-BH387)","v":0.70867805221321856},{"$f":"IF('[1]MONE(M)CAPARD'!AS395=\"\",\"\",'[1]MONE(M)CAPARD'!AS395)","v":1.75},{"$f":"IF('[1]MONE(M)CAPARD'!AT395=\"\",\"\",'[1]MONE(M)CAPARD'!AT395)","v":"n.a."},{"$f":"IF('[1]MONE(M)CAPARD'!AU395=\"\",\"\",'[1]MONE(M)CAPARD'!AU395)","v":1.75},{"$f":"IF('[1]MONE(M)CAPARD'!AV395=\"\",\"\",'[1]MONE(M)CAPARD'!AV395)","v":3},{"$f":"IF('[1]MONE(M)CAPARD'!AW395=\"\",\"\",'[1]MONE(M)CAPARD'!AW395)","v":3.5},{"$f":"IF('[1]MONE(M)CAPARD'!AX395=\"\",\"\",'[1]MONE(M)CAPARD'!AX395)","v":5},{"$f":"IF('[1]MONE(M)CAPARD'!AY395=\"\",\"\",'[1]MONE(M)CAPARD'!AY395)","v":"n.a."},{"$f":"IF('[1]FISCAL(M)'!$K395=\"\",\"\",'[1]FISCAL(M)'!$K395)","v":-554.7835173689831},{"$f":"IF('[1]FISCAL(M)'!$L395=\"\",\"\",'[1]FISCAL(M)'!$L395)","v":"n.d."},{"$f":"IF('[1]FISCAL(M)'!$AY395=\"\",\"\",'[1]FISCAL(M)'!$AY395)","v":192970.4782752677},{"$f":"IF('[1]FISCAL(M)'!$BI395=\"\",\"\",'[1]FISCAL(M)'!$BI395)","v":101247.51087067119},{"$f":"IF('[1]FISCAL(M)'!$BS395=\"\",\"\",'[1]FISCAL(M)'!$BS395)","v":91722.967404596508},{"$f":"IF('[1]FISCAL(M)'!$AZ395=\"\",\"\",'[1]FISCAL(M)'!$AZ395)","v":235849.76827526768},{"$f":"IF('[1]FISCAL(M)'!$BJ395=\"\",\"\",'[1]FISCAL(M)'!$BJ395)","v":108878.19087067117},{"$f":"IF('[1]FISCAL(M)'!$BT395=\"\",\"\",'[1]FISCAL(M)'!$BT395)","v":126971.57740459651},{"$f":"IF('[2]MONE(M)'!$AO395=\"\",\"\",'[2]MONE(M)'!$AO395)","v":23419861.094488807},{"$f":"IF('[3]MONE(M)'!$AO395=\"\",\"\",'[3]MONE(M)'!$AO395)","v":15355.145972509999},{"$f":"IF('[4]MONE(M)'!$AO395=\"\",\"\",'[4]MONE(M)'!$AO395)","v":256438.73704893491},{"$f":"+'[5]MONE(M)'!$AO395","v":461412.03370707255},{"$f":"IF('[6]MONE(M)'!$AO395=\"\",\"\",'[6]MONE(M)'!$AO395)","v":128367.27828883519},{"$f":"IF('[7]MONE(M)'!$AO395=\"\",\"\",'[7]MONE(M)'!$AO395)","v":1494170.2763486437},{"$f":"IF('[8]MONE(M)'!$AO395=\"\",\"\",'[8]MONE(M)'!$AO395)","v":53694.822842930007},3.3066435831062169,6.8391420391505475,11.170047697489128,15.043107568268365,6.2283996330927849,11.860180721076041,3.8950028847666518,{"$f":"'[1]FISCAL(M)'!$K395","v":-554.7835173689831},{"$f":"+'[1]REAL(A)'!$AO$42","v":340542.71410212555},-0.16291158036715733,{"$f":"IF('[1]FISCAL(M)'!$L395=\"\",\"\",'[1]FISCAL(M)'!$L395)","v":"n.d."},{"$f":"+'[1]REAL(A)'!$AP$42","v":411034.78700529743},{"$f":"IF(OR(CP388=\"n.d.\",CP388=\"\",CQ388=\"\",CQ388=\"n.d.\"),\"n.d.\",(CP388/CQ388)*100)","v":"n.d."},{"$f":"+IF(OR(CT388=\"\",+CU388=\"\",+CV388=\"\"),\"\",(CT388+CU388+CV388))","v":194621.86684784701},{"$f":"'[1]Gráfico REM'!BG389","v":50298.935077276183},{"$f":"'[1]Gráfico REM'!BH389","v":134704.41132850267},{"$f":"'[1]Gráfico REM'!BI389","v":9618.5204420681748},{"$f":"IFERROR(+((CS388/CS376)-1)*100,\"\")","v":10.343737157587185},{"$f":"IFERROR(+((CT388/CT376)-1)*100,\"\")","v":17.087416974076007},{"$f":"IFERROR(+((CU388/CU376)-1)*100,\"\")","v":8.3433944449460284},{"$f":"IFERROR(+((CV388/CV376)-1)*100,\"\")","v":5.8332041658015088},{"$f":"+IF(OR(DB388=\"\",+DC388=\"\",+DD388=\"\"),\"\",(DB388+DC388+DD388))","v":277716.45968046703},{"$f":"'[1]Gráfico REM'!BK389","v":54031.229949216184},{"$f":"'[1]Gráfico REM'!BL389","v":188399.23417143268},{"$f":"'[1]Gráfico REM'!BM389","v":35285.99555981817},{"$f":"IFERROR(+((DA388/DA376)-1)*100,\"\")","v":8.9611865931604751},{"$f":"IFERROR(+((DB388/DB376)-1)*100,\"\")","v":14.839197226079449},{"$f":"IFERROR(+((DC388/DC376)-1)*100,\"\")","v":7.0372340610630468},{"$f":"IFERROR(+((DD388/DD376)-1)*100,\"\")","v":10.912609071702883}]
[2022,"marzo","2022-marzo",{"$f":"IF('[1]REAL IPC(M)'!$AL396=\"\",\"\",+'[1]REAL IPC(M)'!$AL396)","v":6.7468150366101431},{"$f":"IF('[1]REAL IPC(M)'!$BE396=\"\",\"\",+'[1]REAL IPC(M)'!$BE396)","v":5.1190345641558999},{"$f":"IF('[1]REAL IPC(M)'!$AM396=\"\",\"\",+'[1]REAL IPC(M)'!$AM396)","v":6.2930595591951022},{"$f":"IF('[1]REAL IPC(M)'!$BI396=\"\",\"\",+'[1]REAL IPC(M)'!$BI396)","v":4.7292051690391412},{"$f":"IF('[1]REAL IMAE(M)'!BJ396=\"\",\"\",'[1]REAL IMAE(M)'!BJ396)","v":5.5286433187423212},{"$f":"IF('[1]REAL IMAE(M)'!BK396=\"\",\"\",'[1]REAL IMAE(M)'!BK396)","v":4.5811708404985829},{"$f":"IF('[1]REAL IMAE(M)'!BN396=\"\",\"\",'[1]REAL IMAE(M)'!BN396)","v":6.4725275340339117},{"$f":"IF('[1]REAL IMAE(M)'!BO396=\"\",\"\",'[1]REAL IMAE(M)'!BO396)","v":4.8574239085801718},{"$f":"IF('[1]EXT RIN(M)'!$K396=\"\",\"\",'[1]EXT RIN(M)'!$K396)","v":58420.036421759425},null,{"$f":"IF('[1]EXT RIN(M)'!$L396=\"\",\"\",'[1]EXT RIN(M)'!$L396)","v":67385.743877049419},null,{"$f":"IF('[1]MONE(M)CARD'!EG396=\"\",\"\",'[1]MONE(M)CARD'!EG396)","v":""},{"$f":"IF('[1]MONE(M)CARD'!EK396=\"\",\"\",'[1]MONE(M)CARD'!EK396)","v":""},{"$f":"IF('[1]MONE(M)CARD'!EP396=\"\",\"\",'[1]MONE(M)CARD'!EP396)","v":""},{"$f":"IF('[1]MONE(M)CARD'!ES396=\"\",\"\",'[1]MONE(M)CARD'!ES396)","v":""},{"$f":"IF('[1]MONE(M)CARD'!EV396=\"\",\"\",'[1]MONE(M)CARD'!EV396)","v":""},{"$f":"IF('[1]MONE(M)CARD'!EZ396=\"\",\"\",'[1]MONE(M)CARD'!EZ396)","v":""},{"$f":"IF('[1]MONE(M)CAPARD'!FC396=\"\",\"\",'[1]MONE(M)CAPARD'!FC396)","v":" "},{"$f":"IF('[1]MONE(M)CAPARD'!FG396=\"\",\"\",'[1]MONE(M)CAPARD'!FG396)","v":" "},{"$f":"IF('[1]MONE(M)CAPARD'!FL396=\"\",\"\",'[1]MONE(M)CAPARD'!FL396)","v":" "},{"$f":"IF('[1]MONE(M)CAPARD'!FO396=\"\",\"\",'[1]MONE(M)CAPARD'!FO396)","v":" "},{"$f":"IF('[1]MONE(M)CAPARD'!FR396=\"\",\"\",'[1]MONE(M)CAPARD'!FR396)","v":" "},{"$f":"IF('[1]MONE(M)CAPARD'!FV396=\"\",\"\",'[1]MONE(M)CAPARD'!FV396)","v":" "},{"$f":"IF('[1]MONE(M)CARD'!FV396=\"\",\"\",'[1]MONE(M)CARD'!FV396)","v":""},{"$f":"IF('[1]MONE(M)CARD'!GD396=\"\",\"\",'[1]MONE(M)CARD'!GD396)","v":""},{"$f":"IF('[1]MONE(M)CARD'!GE396=\"\",\"\",'[1]MONE(M)CARD'!GE396)","v":""},{"$f":"IF(AD389=\"\",\"\",((AD389/AD376)-1)*100)","v":""},{"$f":"IF('[9]II.2.Balance OSD-Activos'!J254=\"\",\"\",'[9]II.2.Balance OSD-Activos'!J254)","v":" "},{"$f":"IF('[9]II.2.Balance OSD-Activos'!N254=\"\",\"\",'[9]II.2.Balance OSD-Activos'!N254)","v":" "},{"$f":"IF('[9]II.2.Balance OSD-Activos'!R254=\"\",\"\",'[9]II.2.Balance OSD-Activos'!R254)","v":" "},{"$f":"IF('[9]II.2.Balance OSD-Activos'!S254=\"\",\"\",'[9]II.2.Balance OSD-Activos'!S254)","v":" "},{"$f":"IFERROR(+AF389+AH389,\"\")","v":""},null,null,null,null,null,null,null,null,{"$f":"IF('[1]MONE(M)CAPARD'!GS396=\"\",\"\",'[1]MONE(M)CAPARD'!GS396)","v":" "},{"$f":"IF('[1]MONE(M)CARD'!HA396=\"\",\"\",'[1]MONE(M)CAPARD'!HA396)","v":""},{"$f":"IF('[1]MONE(M)CAPARD'!HB396=\"\",\"\",'[1]MONE(M)CAPARD'!HB396)","v":" "},"n.d.",{"$f":"IF('[10]II.2.Balance OSD-Activos'!J254=\"\",\"\",'[10]II.2.Balance OSD-Activos'!J254)","v":" "},{"$f":"IF('[10]II.2.Balance OSD-Activos'!N254=\"\",\"\",'[10]II.2.Balance OSD-Activos'!N254)","v":" "},{"$f":"IF('[10]II.2.Balance OSD-Activos'!R254=\"\",\"\",'[10]II.2.Balance OSD-Activos'!R254)","v":" "},{"$f":"IF('[10]II.2.Balance OSD-Activos'!S254=\"\",\"\",'[10]II.2.Balance OSD-Activos'!S254)","v":" "},{"$f":"IFERROR(+AW389+AY389,\"\")","v":""},null,null,null,null,null,null,null,null,{"$f":"IF('[1]MONE(M)CAPARD'!AS396=\"\",\"\",'[1]MONE(M)CAPARD'!AS396)","v":2.5},{"$f":"IF('[1]MONE(M)CAPARD'!AT396=\"\",\"\",'[1]MONE(M)CAPARD'!AT396)","v":"n.a."},{"$f":"IF('[1]MONE(M)CAPARD'!AU396=\"\",\"\",'[1]MONE(M)CAPARD'!AU396)","v":1.75},{"$f":"IF('[1]MONE(M)CAPARD'!AV396=\"\",\"\",'[1]MONE(M)CAPARD'!AV396)","v":3},{"$f":"IF('[1]MONE(M)CAPARD'!AW396=\"\",\"\",'[1]MONE(M)CAPARD'!AW396)","v":3.5},{"$f":"IF('[1]MONE(M)CAPARD'!AX396=\"\",\"\",'[1]MONE(M)CAPARD'!AX396)","v":5},{"$f":"IF('[1]MONE(M)CAPARD'!AY396=\"\",\"\",'[1]MONE(M)CAPARD'!AY396)","v":"n.a."},{"$f":"IF('[1]FISCAL(M)'!$K396=\"\",\"\",'[1]FISCAL(M)'!$K396)","v":-545.56278892712442},{"$f":"IF('[1]FISCAL(M)'!$L396=\"\",\"\",'[1]FISCAL(M)'!$L396)","v":-2015.6627889271244},{"$f":"IF('[1]FISCAL(M)'!$AY396=\"\",\"\",'[1]FISCAL(M)'!$AY396)","v":191933.97514096918},{"$f":"IF('[1]FISCAL(M)'!$BI396=\"\",\"\",'[1]FISCAL(M)'!$BI396)","v":99800.47846844171},{"$f":"IF('[1]FISCAL(M)'!$BS396=\"\",\"\",'[1]FISCAL(M)'!$BS396)","v":92133.496672527472},{"$f":"IF('[1]FISCAL(M)'!$AZ396=\"\",\"\",'[1]FISCAL(M)'!$AZ396)","v":234746.72514096918},{"$f":"IF('[1]FISCAL(M)'!$BJ396=\"\",\"\",'[1]FISCAL(M)'!$BJ396)","v":107417.65846844172},{"$f":"IF('[1]FISCAL(M)'!$BT396=\"\",\"\",'[1]FISCAL(M)'!$BT396)","v":127329.06667252749},{"$f":"IF('[2]MONE(M)'!$AO396=\"\",\"\",'[2]MONE(M)'!$AO396)","v":""},{"$f":"IF('[3]MONE(M)'!$AO396=\"\",\"\",'[3]MONE(M)'!$AO396)","v":15508.70687021},{"$f":"IF('[4]MONE(M)'!$AO396=\"\",\"\",'[4]MONE(M)'!$AO396)","v":260565.69901925928},{"$f":"+'[5]MONE(M)'!$AO396","v":465380.89533495397},{"$f":"IF('[6]MONE(M)'!$AO396=\"\",\"\",'[6]MONE(M)'!$AO396)","v":129976.05742125931},{"$f":"IF('[7]MONE(M)'!$AO396=\"\",\"\",'[7]MONE(M)'!$AO396)","v":1521264.8357753132},{"$f":"IF('[8]MONE(M)'!$AO396=\"\",\"\",'[8]MONE(M)'!$AO396)","v":53961.613775769991},"",7.2664713245291557,11.996974215163437,15.228476041434869,7.1159247369551037,12.71912037720373,2.3352069595624192,{"$f":"'[1]FISCAL(M)'!$K396","v":-545.56278892712442},{"$f":"+'[1]REAL(A)'!$AO$42","v":340542.71410212555},-0.16020392342427719,{"$f":"IF('[1]FISCAL(M)'!$L396=\"\",\"\",'[1]FISCAL(M)'!$L396)","v":-2015.6627889271244},{"$f":"+'[1]REAL(A)'!$AP$42","v":411034.78700529743},-0.49038739606756115]
[2022,"abril","2022-abril",{"$f":"IF('[1]REAL IPC(M)'!$AL397=\"\",\"\",+'[1]REAL IPC(M)'!$AL397)","v":7.461794091163676},{"$f":"IF('[1]REAL IPC(M)'!$BE397=\"\",\"\",+'[1]REAL IPC(M)'!$BE397)","v":5.1457084336760772},{"$f":"IF('[1]REAL IPC(M)'!$AM397=\"\",\"\",+'[1]REAL IPC(M)'!$AM397)","v":6.9763258855786603},{"$f":"IF('[1]REAL IPC(M)'!$BI397=\"\",\"\",+'[1]REAL IPC(M)'!$BI397)","v":4.7633975899738168},{"$f":"IF('[1]REAL IMAE(M)'!BJ397=\"\",\"\",'[1]REAL IMAE(M)'!BJ397)","v":5.8040631841219659},{"$f":"IF('[1]REAL IMAE(M)'!BK397=\"\",\"\",'[1]REAL IMAE(M)'!BK397)","v":4.6069425104684925},{"$f":"IF('[1]REAL IMAE(M)'!BN397=\"\",\"\",'[1]REAL IMAE(M)'!BN397)","v":6.0948002643482768},{"$f":"IF('[1]REAL IMAE(M)'!BO397=\"\",\"\",'[1]REAL IMAE(M)'!BO397)","v":4.8980487071619949},{"$f":"IF('[1]EXT RIN(M)'!$K397=\"\",\"\",'[1]EXT RIN(M)'!$K397)","v":58408.401751667057},null,{"$f":"IF('[1]EXT RIN(M)'!$L397=\"\",\"\",'[1]EXT RIN(M)'!$L397)","v":67130.331210007062},null,null,null,null,null,null,null,null,null,null,null,null,null,null,null,null,null,null,null,null,null,null,null,null,null,null,null,null,null,null,null,null,null,null,null,null,null,null,null,null,null,null,null,null,null,null,null,{"$f":"IF('[1]MONE(M)CAPARD'!AS397=\"\",\"\",'[1]MONE(M)CAPARD'!AS397)","v":4},{"$f":"IF('[1]MONE(M)CAPARD'!AT397=\"\",\"\",'[1]MONE(M)CAPARD'!AT397)","v":"n.a."},{"$f":"IF('[1]MONE(M)CAPARD'!AU397=\"\",\"\",'[1]MONE(M)CAPARD'!AU397)","v":1.75},{"$f":"IF('[1]MONE(M)CAPARD'!AV397=\"\",\"\",'[1]MONE(M)CAPARD'!AV397)","v":3},{"$f":"IF('[1]MONE(M)CAPARD'!AW397=\"\",\"\",'[1]MONE(M)CAPARD'!AW397)","v":4},{"$f":"IF('[1]MONE(M)CAPARD'!AX397=\"\",\"\",'[1]MONE(M)CAPARD'!AX397)","v":5.5},{"$f":"IF('[1]MONE(M)CAPARD'!AY397=\"\",\"\",'[1]MONE(M)CAPARD'!AY397)","v":"n.a."},{"$f":"IF('[1]FISCAL(M)'!$K397=\"\",\"\",'[1]FISCAL(M)'!$K397)","v":""},{"$f":"IF('[1]FISCAL(M)'!$L397=\"\",\"\",'[1]FISCAL(M)'!$L397)","v":""},{"$f":"IF('[1]FISCAL(M)'!$AY397=\"\",\"\",'[1]FISCAL(M)'!$AY397)","v":191883.42478514198},{"$f":"IF('[1]FISCAL(M)'!$BI397=\"\",\"\",'[1]FISCAL(M)'!$BI397)","v":99870.620211293062},{"$f":"IF('[1]FISCAL(M)'!$BS397=\"\",\"\",'[1]FISCAL(M)'!$BS397)","v":92012.804573848902},{"$f":"IF('[1]FISCAL(M)'!$AZ397=\"\",\"\",'[1]FISCAL(M)'!$AZ397)","v":234823.31478514196},{"$f":"IF('[1]FISCAL(M)'!$BJ397=\"\",\"\",'[1]FISCAL(M)'!$BJ397)","v":107524.35021129306},{"$f":"IF('[1]FISCAL(M)'!$BT397=\"\",\"\",'[1]FISCAL(M)'!$BT397)","v":127298.96457384891},null,{"$f":"IF('[3]MONE(M)'!$AO397=\"\",\"\",'[3]MONE(M)'!$AO397)","v":15697.714560100005},{"$f":"IF('[4]MONE(M)'!$AO397=\"\",\"\",'[4]MONE(M)'!$AO397)","v":263210.71781858883},{"$f":"+'[5]MONE(M)'!$AO397","v":470125.12753077154},{"$f":"IF('[6]MONE(M)'!$AO397=\"\",\"\",'[6]MONE(M)'!$AO397)","v":131332.66804697816},{"$f":"IF('[7]MONE(M)'!$AO397=\"\",\"\",'[7]MONE(M)'!$AO397)","v":1535267.9445083402},{"$f":"IF('[8]MONE(M)'!$AO397=\"\",\"\",'[8]MONE(M)'!$AO397)","v":54156.260220459997},null,7.6513312458993399,12.80209741853704,16.481564907617564,9.1753605745885647,12.783030864499922,2.8369878443728513,null,{"$f":"+'[1]REAL(A)'!$AO$42","v":340542.71410212555},null,null,{"$f":"+'[1]REAL(A)'!$AP$42","v":411034.78700529743}]
[2022,"mayo ","2022-mayo ",{"$f":"IF('[1]REAL IPC(M)'!$AL398=\"\",\"\",+'[1]REAL IPC(M)'!$AL398)","v":8.1938464881587727},{"$f":"IF('[1]REAL IPC(M)'!$BE398=\"\",\"\",+'[1]REAL IPC(M)'!$BE398)","v":5.165953497370035},{"$f":"IF('[1]REAL IPC(M)'!$AM398=\"\",\"\",+'[1]REAL IPC(M)'!$AM398)","v":7.6876872731867829},{"$f":"IF('[1]REAL IPC(M)'!$BI398=\"\",\"\",+'[1]REAL IPC(M)'!$BI398)","v":4.7906038613610979},{"$f":"IF('[1]REAL IMAE(M)'!BJ398=\"\",\"\",'[1]REAL IMAE(M)'!BJ398)","v":""},{"$f":"IF('[1]REAL IMAE(M)'!BK398=\"\",\"\",'[1]REAL IMAE(M)'!BK398)","v":""},{"$f":"IF('[1]REAL IMAE(M)'!BN398=\"\",\"\",'[1]REAL IMAE(M)'!BN398)","v":""},{"$f":"IF('[1]REAL IMAE(M)'!BO398=\"\",\"\",'[1]REAL IMAE(M)'!BO398)","v":""},{"$f":"IF('[1]EXT RIN(M)'!$K398=\"\",\"\",'[1]EXT RIN(M)'!$K398)","v":58247.985306031653},null,{"$f":"IF('[1]EXT RIN(M)'!$L398=\"\",\"\",'[1]EXT RIN(M)'!$L398)","v":66498.758397201658},null,null,null,null,null,null,null,null,null,null,null,null,null,null,null,null,null,null,null,null,null,null,null,null,null,null,null,null,null,null,null,null,null,null,null,null,null,null,null,null,null,null,null,null,null,null,null,{"$f":"IF('[1]MONE(M)CAPARD'!AS398=\"\",\"\",'[1]MONE(M)CAPARD'!AS398)","v":4},{"$f":"IF('[1]MONE(M)CAPARD'!AT398=\"\",\"\",'[1]MONE(M)CAPARD'!AT398)","v":"n.a."},{"$f":"IF('[1]MONE(M)CAPARD'!AU398=\"\",\"\",'[1]MONE(M)CAPARD'!AU398)","v":2},{"$f":"IF('[1]MONE(M)CAPARD'!AV398=\"\",\"\",'[1]MONE(M)CAPARD'!AV398)","v":3},{"$f":"IF('[1]MONE(M)CAPARD'!AW398=\"\",\"\",'[1]MONE(M)CAPARD'!AW398)","v":4},{"$f":"IF('[1]MONE(M)CAPARD'!AX398=\"\",\"\",'[1]MONE(M)CAPARD'!AX398)","v":5.5},{"$f":"IF('[1]MONE(M)CAPARD'!AY398=\"\",\"\",'[1]MONE(M)CAPARD'!AY398)","v":"n.a."},null,null,{"$f":"IF('[1]FISCAL(M)'!$AY398=\"\",\"\",'[1]FISCAL(M)'!$AY398)","v":""},{"$f":"IF('[1]FISCAL(M)'!$BI398=\"\",\"\",'[1]FISCAL(M)'!$BI398)","v":""},{"$f":"IF('[1]FISCAL(M)'!$BS398=\"\",\"\",'[1]FISCAL(M)'!$BS398)","v":""},{"$f":"IF('[1]FISCAL(M)'!$AZ398=\"\",\"\",'[1]FISCAL(M)'!$AZ398)","v":""},{"$f":"IF('[1]FISCAL(M)'!$BJ398=\"\",\"\",'[1]FISCAL(M)'!$BJ398)","v":""},{"$f":"IF('[1]FISCAL(M)'!$BT398=\"\",\"\",'[1]FISCAL(M)'!$BT398)","v":""},null,{"$f":"IF('[3]MONE(M)'!$AO398=\"\",\"\",'[3]MONE(M)'!$AO398)","v":15820.163677170003},{"$f":"IF('[4]MONE(M)'!$AO398=\"\",\"\",'[4]MONE(M)'!$AO398)","v":266303.88312582904},{"$f":"+'[5]MONE(M)'!$AO398","v":""},{"$f":"IF('[6]MONE(M)'!$AO398=\"\",\"\",'[6]MONE(M)'!$AO398)","v":""},{"$f":"IF('[7]MONE(M)'!$AO398=\"\",\"\",'[7]MONE(M)'!$AO398)","v":1561176.5567286476},{"$f":"IF('[8]MONE(M)'!$AO398=\"\",\"\",'[8]MONE(M)'!$AO398)","v":54188.803599119987},null,7.7285725073892753,13.513473018668654,null,null,13.26225184835077,2.5111089461608005,null,{"$f":"+'[1]REAL(A)'!$AO$42","v":340542.71410212555},null,null,{"$f":"+'[1]REAL(A)'!$AP$42","v":411034.78700529743}]
[2022,"junio ","2022-junio ",{"$f":"IF('[1]REAL IPC(M)'!$AL399=\"\",\"\",+'[1]REAL IPC(M)'!$AL399)","v":9.0026259864254286},{"$f":"IF('[1]REAL IPC(M)'!$BE399=\"\",\"\",+'[1]REAL IPC(M)'!$BE399)","v":5.1798599581882598},{"$f":"IF('[1]REAL IPC(M)'!$AM399=\"\",\"\",+'[1]REAL IPC(M)'!$AM399)","v":8.5180686124241678},{"$f":"IF('[1]REAL IPC(M)'!$BI399=\"\",\"\",+'[1]REAL IPC(M)'!$BI399)","v":4.8109036593901866},{"$f":"IF('[1]REAL IMAE(M)'!BJ399=\"\",\"\",'[1]REAL IMAE(M)'!BJ399)","v":""},{"$f":"IF('[1]REAL IMAE(M)'!BK399=\"\",\"\",'[1]REAL IMAE(M)'!BK399)","v":""},{"$f":"IF('[1]REAL IMAE(M)'!BN399=\"\",\"\",'[1]REAL IMAE(M)'!BN399)","v":""},{"$f":"IF('[1]REAL IMAE(M)'!BO399=\"\",\"\",'[1]REAL IMAE(M)'!BO399)","v":""},{"$f":"IF('[1]EXT RIN(M)'!$K399=\"\",\"\",'[1]EXT RIN(M)'!$K399)","v":56642.633040231231},null,{"$f":"IF('[1]EXT RIN(M)'!$L399=\"\",\"\",'[1]EXT RIN(M)'!$L399)","v":""},null,null,null,null,null,null,null,null,null,null,null,null,null,null,null,null,null,null,null,null,null,null,null,null,null,null,null,null,null,null,null,null,null,null,null,null,null,null,null,null,null,null,null,null,null,null,null,{"$f":"IF('[1]MONE(M)CAPARD'!AS399=\"\",\"\",'[1]MONE(M)CAPARD'!AS399)","v":5.5},{"$f":"IF('[1]MONE(M)CAPARD'!AT399=\"\",\"\",'[1]MONE(M)CAPARD'!AT399)","v":"n.a."},{"$f":"IF('[1]MONE(M)CAPARD'!AU399=\"\",\"\",'[1]MONE(M)CAPARD'!AU399)","v":2.25},{"$f":"IF('[1]MONE(M)CAPARD'!AV399=\"\",\"\",'[1]MONE(M)CAPARD'!AV399)","v":3},{"$f":"IF('[1]MONE(M)CAPARD'!AW399=\"\",\"\",'[1]MONE(M)CAPARD'!AW399)","v":5},{"$f":"IF('[1]MONE(M)CAPARD'!AX399=\"\",\"\",'[1]MONE(M)CAPARD'!AX399)","v":6.5},{"$f":"IF('[1]MONE(M)CAPARD'!AY399=\"\",\"\",'[1]MONE(M)CAPARD'!AY399)","v":"n.a."},null,null,null,null,null,null,null,null,null,{"$f":"IF('[3]MONE(M)'!$AO399=\"\",\"\",'[3]MONE(M)'!$AO399)","v":""},{"$f":"IF('[4]MONE(M)'!$AO399=\"\",\"\",'[4]MONE(M)'!$AO399)","v":269116.77758940659},null,null,{"$f":"IF('[7]MONE(M)'!$AO399=\"\",\"\",'[7]MONE(M)'!$AO399)","v":1588055.1548164978},{"$f":"IF('[8]MONE(M)'!$AO399=\"\",\"\",'[8]MONE(M)'!$AO399)","v":""},null,null,13.869700722815882,null,null,15.068816647651495,null,null,{"$f":"+'[1]REAL(A)'!$AO$42","v":340542.71410212555},null,null,{"$f":"+'[1]REAL(A)'!$AP$42","v":411034.78700529743}]
[2022,"julio","2022-julio",null,null,null,null,null,null,null,null,{"$f":"IF('[1]EXT RIN(M)'!$K400=\"\",\"\",'[1]EXT RIN(M)'!$K400)","v":""},null,null,null,null,null,null,null,null,null,null,null,null,null,null,null,null,null,null,null,null,null,null,null,null,null,null,null,null,null,null,null,null,null,null,null,null,null,null,null,null,null,null,null,null,null,null,null,null,null,{"$f":"IF('[1]MONE(M)CAPARD'!AS400=\"\",\"\",'[1]MONE(M)CAPARD'!AS400)","v":7.5},{"$f":"IF('[1]MONE(M)CAPARD'!AT400=\"\",\"\",'[1]MONE(M)CAPARD'!AT400)","v":"n.a."},{"$f":"IF('[1]MONE(M)CAPARD'!AU400=\"\",\"\",'[1]MONE(M)CAPARD'!AU400)","v":2.25},{"$f":"IF('[1]MONE(M)CAPARD'!AV400=\"\",\"\",'[1]MONE(M)CAPARD'!AV400)","v":3},{"$f":"IF('[1]MONE(M)CAPARD'!AW400=\"\",\"\",'[1]MONE(M)CAPARD'!AW400)","v":5},{"$f":"IF('[1]MONE(M)CAPARD'!AX400=\"\",\"\",'[1]MONE(M)CAPARD'!AX400)","v":7.25},{"$f":"IF('[1]MONE(M)CAPARD'!AY400=\"\",\"\",'[1]MONE(M)CAPARD'!AY400)","v":"n.a."},null,null,null,null,null,null,null,null,null,null,{"$f":"IF('[4]MONE(M)'!$AO400=\"\",\"\",'[4]MONE(M)'!$AO400)","v":""},null,null,{"$f":"IF('[7]MONE(M)'!$AO400=\"\",\"\",'[7]MONE(M)'!$AO400)","v":""},null,null,null,null,null,null,null,null,null,{"$f":"+'[1]REAL(A)'!$AO$42","v":340542.71410212555},null,null,{"$f":"+'[1]REAL(A)'!$AP$42","v":411034.78700529743}]
[2022,"agosto","2022-agosto",null,null,null,null,null,null,null,null,null,null,null,null,null,null,null,null,null,null,null,null,null,null,null,null,null,null,null,null,null,null,null,null,null,null,null,null,null,null,null,null,null,null,null,null,null,null,null,null,null,null,null,null,null,null,null,null,null,null,null,null,null,null,null,null,null,null,null,null,null,null,null,null,null,null,null,null,null,null,null,null,null,null,null,null,null,null,null,null,{"$f":"+'[1]REAL(A)'!$AO$42","v":340542.71410212555},null,null,{"$f":"+'[1]REAL(A)'!$AP$42","v":411034.78700529743}]
[2022,"septiembre","2022-septiembre",null,null,null,null,null,null,null,null,null,null,null,null,null,null,null,null,null,null,null,null,null,null,null,null,null,null,null,null,null,null,null,null,null,null,null,null,null,null,null,null,null,null,null,null,null,null,null,null,null,null,null,null,null,null,null,null,null,null,null,null,null,null,null,null,null,null,null,null,null,null,null,null,null,null,null,null,null,null,null,null,null,null,null,null,null,null,null,null,{"$f":"+'[1]REAL(A)'!$AO$42","v":340542.71410212555},null,null,{"$f":"+'[1]REAL(A)'!$AP$42","v":411034.78700529743}]
[2022,"octubre","2022-octubre",null,null,null,null,null,null,null,null,null,null,null,null,null,null,null,null,null,null,null,null,null,null,null,null,null,null,null,null,null,null,null,null,null,null,null,null,null,null,null,null,null,null,null,null,null,null,null,null,null,null,null,null,null,null,null,null,null,null,null,null,null,null,null,null,null,null,null,null,null,null,null,null,null,null,null,null,null,null,null,null,null,null,null,null,null,null,null,null,{"$f":"+'[1]REAL(A)'!$AO$42","v":340542.71410212555},null,null,{"$f":"+'[1]REAL(A)'!$AP$42","v":411034.78700529743}]
[2022,"noviembre","2022-noviembre",null,null,null,null,null,null,null,null,null,null,null,null,null,null,null,null,null,null,null,null,null,null,null,null,null,null,null,null,null,null,null,null,null,null,null,null,null,null,null,null,null,null,null,null,null,null,null,null,null,null,null,null,null,null,null,null,null,null,null,null,null,null,null,null,null,null,null,null,null,null,null,null,null,null,null,null,null,null,null,null,null,null,null,null,null,null,null,null,{"$f":"+'[1]REAL(A)'!$AO$42","v":340542.71410212555},null,null,{"$f":"+'[1]REAL(A)'!$AP$42","v":411034.78700529743}]
[2022,"diciembre","2022-diciembre",null,null,null,null,null,null,null,null,null,null,null,null,null,null,null,null,null,null,null,null,null,null,null,null,null,null,null,null,null,null,null,null,null,null,null,null,null,null,null,null,null,null,null,null,null,null,null,null,null,null,null,null,null,null,null,null,null,null,null,null,null,null,null,null,null,null,null,null,null,null,null,null,null,null,null,null,null,null,null,null,null,null,null,null,null,null,null,null,{"$f":"+'[1]REAL(A)'!$AO$42","v":340542.71410212555},null,null,{"$f":"+'[1]REAL(A)'!$AP$42","v":411034.78700529743}]

{"sheet":"Datos Regional (T)","index":12,"n_rows":134,"n_cols":31,"rows_kept":134,"cut":false,"hidden":true,"merged":[[0,22,0,30],[0,11,0,19],[0,20,0,21],[0,0,1,1],[0,2,0,10]]}
["Variables Trimestrales",null,"Ingresos por IED no acumulados",null,null,null,null,null,null,null,null,"Ingresos por IED acumulados",null,null,null,null,null,null,null,null,"Ingresos Remesas Acumuladas",null,"Ingresos de Remesas, flujos trimestrales"]
[null,null,"CR","SV","GT","HO","NI","RD","PA","CARD","CAPARD","CR","SV","GT","HO","NI","RD","PA","CARD","CAPARD","CARD","CAPARD","CR","SV","GT","HN","NI","DO","PA","CARD","CAPARD"]
[1990,"I",{"$f":"IF(+'[1]EXT(T)'!M10=\"\",\"\",+'[1]EXT(T)'!M10)","v":"n.d."},{"$f":"IF(+'[1]EXT(T)'!N10=\"\",\"\",+'[1]EXT(T)'!N10)","v":"n.d."},{"$f":"IF(+'[1]EXT(T)'!O10=\"\",\"\",+'[1]EXT(T)'!O10)","v":"n.d."},{"$f":"IF(+'[1]EXT(T)'!P10=\"\",\"\",+'[1]EXT(T)'!P10)","v":"n.d."},{"$f":"IF(+'[1]EXT(T)'!Q10=\"\",\"\",+'[1]EXT(T)'!Q10)","v":"n.d."},{"$f":"IF(+'[1]EXT(T)'!R10=\"\",\"\",+'[1]EXT(T)'!R10)","v":"n.d."},{"$f":"IF(+'[1]EXT(T)'!S10=\"\",\"\",+'[1]EXT(T)'!S10)","v":"n.d."},{"$f":"IF(+'[1]EXT(T)'!U10=\"\",\"\",+'[1]EXT(T)'!U10)","v":"n.d."},{"$f":"IF(+'[1]EXT(T)'!V10=\"\",\"\",+'[1]EXT(T)'!V10)","v":"n.d."},{"$f":"IF(+'[1]EXT(T)'!W10=\"\",\"\",+'[1]EXT(T)'!W10)","v":"n.d."},{"$f":"IF(+'[1]EXT(T)'!X10=\"\",\"\",+'[1]EXT(T)'!X10)","v":"n.d."},{"$f":"IF(+'[1]EXT(T)'!Y10=\"\",\"\",+'[1]EXT(T)'!Y10)","v":"n.d."},{"$f":"IF(+'[1]EXT(T)'!Z10=\"\",\"\",+'[1]EXT(T)'!Z10)","v":"n.d."},{"$f":"IF(+'[1]EXT(T)'!AA10=\"\",\"\",+'[1]EXT(T)'!AA10)","v":"n.d."},{"$f":"IF(+'[1]EXT(T)'!AB10=\"\",\"\",+'[1]EXT(T)'!AB10)","v":"n.d."},{"$f":"IF(+'[1]EXT(T)'!AC10=\"\",\"\",+'[1]EXT(T)'!AC10)","v":"n.d."},{"$f":"IF(+'[1]EXT(T)'!AE10=\"\",\"\",+'[1]EXT(T)'!AE10)","v":"n.d."},{"$f":"IF(+'[1]EXT(T)'!AF10=\"\",\"\",+'[1]EXT(T)'!AF10)","v":"n.d."},{"$f":"IF(+'[1]EXT(T)'!AY10=\"\",\"\",+'[1]EXT(T)'!AY10)","v":"n.d."},{"$f":"IF(+'[1]EXT(T)'!AZ10=\"\",\"\",+'[1]EXT(T)'!AZ10)","v":"n.d."},"n.d.","n.d.","n.d.","n.d.","n.d.","n.d.","n.d.","n.d.","n.d."]
[null,"II",{"$f":"IF(+'[1]EXT(T)'!M11=\"\",\"\",+'[1]EXT(T)'!M11)","v":"n.d."},{"$f":"IF(+'[1]EXT(T)'!N11=\"\",\"\",+'[1]EXT(T)'!N11)","v":"n.d."},{"$f":"IF(+'[1]EXT(T)'!O11=\"\",\"\",+'[1]EXT(T)'!O11)","v":"n.d."},{"$f":"IF(+'[1]EXT(T)'!P11=\"\",\"\",+'[1]EXT(T)'!P11)","v":"n.d."},{"$f":"IF(+'[1]EXT(T)'!Q11=\"\",\"\",+'[1]EXT(T)'!Q11)","v":"n.d."},{"$f":"IF(+'[1]EXT(T)'!R11=\"\",\"\",+'[1]EXT(T)'!R11)","v":"n.d."},{"$f":"IF(+'[1]EXT(T)'!S11=\"\",\"\",+'[1]EXT(T)'!S11)","v":"n.d."},{"$f":"IF(+'[1]EXT(T)'!U11=\"\",\"\",+'[1]EXT(T)'!U11)","v":"n.d."},{"$f":"IF(+'[1]EXT(T)'!V11=\"\",\"\",+'[1]EXT(T)'!V11)","v":"n.d."},{"$f":"IF(+'[1]EXT(T)'!W11=\"\",\"\",+'[1]EXT(T)'!W11)","v":"n.d."},{"$f":"IF(+'[1]EXT(T)'!X11=\"\",\"\",+'[1]EXT(T)'!X11)","v":"n.d."},{"$f":"IF(+'[1]EXT(T)'!Y11=\"\",\"\",+'[1]EXT(T)'!Y11)","v":"n.d."},{"$f":"IF(+'[1]EXT(T)'!Z11=\"\",\"\",+'[1]EXT(T)'!Z11)","v":"n.d."},{"$f":"IF(+'[1]EXT(T)'!AA11=\"\",\"\",+'[1]EXT(T)'!AA11)","v":"n.d."},{"$f":"IF(+'[1]EXT(T)'!AB11=\"\",\"\",+'[1]EXT(T)'!AB11)","v":"n.d."},{"$f":"IF(+'[1]EXT(T)'!AC11=\"\",\"\",+'[1]EXT(T)'!AC11)","v":"n.d."},{"$f":"IF(+'[1]EXT(T)'!AE11=\"\",\"\",+'[1]EXT(T)'!AE11)","v":"n.d."},{"$f":"IF(+'[1]EXT(T)'!AF11=\"\",\"\",+'[1]EXT(T)'!AF11)","v":"n.d."},{"$f":"IF(+'[1]EXT(T)'!AY11=\"\",\"\",+'[1]EXT(T)'!AY11)","v":"n.d."},{"$f":"IF(+'[1]EXT(T)'!AZ11=\"\",\"\",+'[1]EXT(T)'!AZ11)","v":"n.d."},"n.d.","n.d.","n.d.","n.d.","n.d.","n.d.","n.d.","n.d.","n.d."]
[null,"III",{"$f":"IF(+'[1]EXT(T)'!M12=\"\",\"\",+'[1]EXT(T)'!M12)","v":"n.d."},{"$f":"IF(+'[1]EXT(T)'!N12=\"\",\"\",+'[1]EXT(T)'!N12)","v":"n.d."},{"$f":"IF(+'[1]EXT(T)'!O12=\"\",\"\",+'[1]EXT(T)'!O12)","v":"n.d."},{"$f":"IF(+'[1]EXT(T)'!P12=\"\",\"\",+'[1]EXT(T)'!P12)","v":"n.d."},{"$f":"IF(+'[1]EXT(T)'!Q12=\"\",\"\",+'[1]EXT(T)'!Q12)","v":"n.d."},{"$f":"IF(+'[1]EXT(T)'!R12=\"\",\"\",+'[1]EXT(T)'!R12)","v":"n.d."},{"$f":"IF(+'[1]EXT(T)'!S12=\"\",\"\",+'[1]EXT(T)'!S12)","v":"n.d."},{"$f":"IF(+'[1]EXT(T)'!U12=\"\",\"\",+'[1]EXT(T)'!U12)","v":"n.d."},{"$f":"IF(+'[1]EXT(T)'!V12=\"\",\"\",+'[1]EXT(T)'!V12)","v":"n.d."},{"$f":"IF(+'[1]EXT(T)'!W12=\"\",\"\",+'[1]EXT(T)'!W12)","v":"n.d."},{"$f":"IF(+'[1]EXT(T)'!X12=\"\",\"\",+'[1]EXT(T)'!X12)","v":"n.d."},{"$f":"IF(+'[1]EXT(T)'!Y12=\"\",\"\",+'[1]EXT(T)'!Y12)","v":"n.d."},{"$f":"IF(+'[1]EXT(T)'!Z12=\"\",\"\",+'[1]EXT(T)'!Z12)","v":"n.d."},{"$f":"IF(+'[1]EXT(T)'!AA12=\"\",\"\",+'[1]EXT(T)'!AA12)","v":"n.d."},{"$f":"IF(+'[1]EXT(T)'!AB12=\"\",\"\",+'[1]EXT(T)'!AB12)","v":"n.d."},{"$f":"IF(+'[1]EXT(T)'!AC12=\"\",\"\",+'[1]EXT(T)'!AC12)","v":"n.d."},{"$f":"IF(+'[1]EXT(T)'!AE12=\"\",\"\",+'[1]EXT(T)'!AE12)","v":"n.d."},{"$f":"IF(+'[1]EXT(T)'!AF12=\"\",\"\",+'[1]EXT(T)'!AF12)","v":"n.d."},{"$f":"IF(+'[1]EXT(T)'!AY12=\"\",\"\",+'[1]EXT(T)'!AY12)","v":"n.d."},{"$f":"IF(+'[1]EXT(T)'!AZ12=\"\",\"\",+'[1]EXT(T)'!AZ12)","v":"n.d."},"n.d.","n.d.","n.d.","n.d.","n.d.","n.d.","n.d.","n.d.","n.d."]
[null,"IV",{"$f":"IF(+'[1]EXT(T)'!M13=\"\",\"\",+'[1]EXT(T)'!M13)","v":"n.d."},{"$f":"IF(+'[1]EXT(T)'!N13=\"\",\"\",+'[1]EXT(T)'!N13)","v":"n.d."},{"$f":"IF(+'[1]EXT(T)'!O13=\"\",\"\",+'[1]EXT(T)'!O13)","v":"n.d."},{"$f":"IF(+'[1]EXT(T)'!P13=\"\",\"\",+'[1]EXT(T)'!P13)","v":"n.d."},{"$f":"IF(+'[1]EXT(T)'!Q13=\"\",\"\",+'[1]EXT(T)'!Q13)","v":"n.d."},{"$f":"IF(+'[1]EXT(T)'!R13=\"\",\"\",+'[1]EXT(T)'!R13)","v":"n.d."},{"$f":"IF(+'[1]EXT(T)'!S13=\"\",\"\",+'[1]EXT(T)'!S13)","v":"n.d."},{"$f":"IF(+'[1]EXT(T)'!U13=\"\",\"\",+'[1]EXT(T)'!U13)","v":"n.d."},{"$f":"IF(+'[1]EXT(T)'!V13=\"\",\"\",+'[1]EXT(T)'!V13)","v":"n.d."},{"$f":"IF(+'[1]EXT(T)'!W13=\"\",\"\",+'[1]EXT(T)'!W13)","v":"n.d."},{"$f":"IF(+'[1]EXT(T)'!X13=\"\",\"\",+'[1]EXT(T)'!X13)","v":"n.d."},{"$f":"IF(+'[1]EXT(T)'!Y13=\"\",\"\",+'[1]EXT(T)'!Y13)","v":"n.d."},{"$f":"IF(+'[1]EXT(T)'!Z13=\"\",\"\",+'[1]EXT(T)'!Z13)","v":"n.d."},{"$f":"IF(+'[1]EXT(T)'!AA13=\"\",\"\",+'[1]EXT(T)'!AA13)","v":"n.d."},{"$f":"IF(+'[1]EXT(T)'!AB13=\"\",\"\",+'[1]EXT(T)'!AB13)","v":"n.d."},{"$f":"IF(+'[1]EXT(T)'!AC13=\"\",\"\",+'[1]EXT(T)'!AC13)","v":"n.d."},{"$f":"IF(+'[1]EXT(T)'!AE13=\"\",\"\",+'[1]EXT(T)'!AE13)","v":"n.d."},{"$f":"IF(+'[1]EXT(T)'!AF13=\"\",\"\",+'[1]EXT(T)'!AF13)","v":"n.d."},{"$f":"IF(+'[1]EXT(T)'!AY13=\"\",\"\",+'[1]EXT(T)'!AY13)","v":"n.d."},{"$f":"IF(+'[1]EXT(T)'!AZ13=\"\",\"\",+'[1]EXT(T)'!AZ13)","v":"n.d."},"n.d.","n.d.","n.d.","n.d.","n.d.","n.d.","n.d.","n.d.","n.d."]
[1991,"I",{"$f":"IF(+'[1]EXT(T)'!M14=\"\",\"\",+'[1]EXT(T)'!M14)","v":"n.d."},{"$f":"IF(+'[1]EXT(T)'!N14=\"\",\"\",+'[1]EXT(T)'!N14)","v":"n.d."},{"$f":"IF(+'[1]EXT(T)'!O14=\"\",\"\",+'[1]EXT(T)'!O14)","v":"n.d."},{"$f":"IF(+'[1]EXT(T)'!P14=\"\",\"\",+'[1]EXT(T)'!P14)","v":"n.d."},{"$f":"IF(+'[1]EXT(T)'!Q14=\"\",\"\",+'[1]EXT(T)'!Q14)","v":"n.d."},{"$f":"IF(+'[1]EXT(T)'!R14=\"\",\"\",+'[1]EXT(T)'!R14)","v":"n.d."},{"$f":"IF(+'[1]EXT(T)'!S14=\"\",\"\",+'[1]EXT(T)'!S14)","v":"n.d."},{"$f":"IF(+'[1]EXT(T)'!U14=\"\",\"\",+'[1]EXT(T)'!U14)","v":"n.d."},{"$f":"IF(+'[1]EXT(T)'!V14=\"\",\"\",+'[1]EXT(T)'!V14)","v":"n.d."},{"$f":"IF(+'[1]EXT(T)'!W14=\"\",\"\",+'[1]EXT(T)'!W14)","v":"n.d."},{"$f":"IF(+'[1]EXT(T)'!X14=\"\",\"\",+'[1]EXT(T)'!X14)","v":"n.d."},{"$f":"IF(+'[1]EXT(T)'!Y14=\"\",\"\",+'[1]EXT(T)'!Y14)","v":"n.d."},{"$f":"IF(+'[1]EXT(T)'!Z14=\"\",\"\",+'[1]EXT(T)'!Z14)","v":"n.d."},{"$f":"IF(+'[1]EXT(T)'!AA14=\"\",\"\",+'[1]EXT(T)'!AA14)","v":"n.d."},{"$f":"IF(+'[1]EXT(T)'!AB14=\"\",\"\",+'[1]EXT(T)'!AB14)","v":"n.d."},{"$f":"IF(+'[1]EXT(T)'!AC14=\"\",\"\",+'[1]EXT(T)'!AC14)","v":"n.d."},{"$f":"IF(+'[1]EXT(T)'!AE14=\"\",\"\",+'[1]EXT(T)'!AE14)","v":"n.d."},{"$f":"IF(+'[1]EXT(T)'!AF14=\"\",\"\",+'[1]EXT(T)'!AF14)","v":"n.d."},{"$f":"IF(+'[1]EXT(T)'!AY14=\"\",\"\",+'[1]EXT(T)'!AY14)","v":"n.d."},{"$f":"IF(+'[1]EXT(T)'!AZ14=\"\",\"\",+'[1]EXT(T)'!AZ14)","v":"n.d."},"n.d.",{"$f":"IF(+'[1]EXT(T)'!AR14=\"\",\"\",+'[1]EXT(T)'!AR14)","v":189.1},"n.d.","n.d.","n.d.","n.d.","n.d.","n.d.","n.d."]
[null,"II",{"$f":"IF(+'[1]EXT(T)'!M15=\"\",\"\",+'[1]EXT(T)'!M15)","v":"n.d."},{"$f":"IF(+'[1]EXT(T)'!N15=\"\",\"\",+'[1]EXT(T)'!N15)","v":"n.d."},{"$f":"IF(+'[1]EXT(T)'!O15=\"\",\"\",+'[1]EXT(T)'!O15)","v":"n.d."},{"$f":"IF(+'[1]EXT(T)'!P15=\"\",\"\",+'[1]EXT(T)'!P15)","v":"n.d."},{"$f":"IF(+'[1]EXT(T)'!Q15=\"\",\"\",+'[1]EXT(T)'!Q15)","v":"n.d."},{"$f":"IF(+'[1]EXT(T)'!R15=\"\",\"\",+'[1]EXT(T)'!R15)","v":"n.d."},{"$f":"IF(+'[1]EXT(T)'!S15=\"\",\"\",+'[1]EXT(T)'!S15)","v":"n.d."},{"$f":"IF(+'[1]EXT(T)'!U15=\"\",\"\",+'[1]EXT(T)'!U15)","v":"n.d."},{"$f":"IF(+'[1]EXT(T)'!V15=\"\",\"\",+'[1]EXT(T)'!V15)","v":"n.d."},{"$f":"IF(+'[1]EXT(T)'!W15=\"\",\"\",+'[1]EXT(T)'!W15)","v":"n.d."},{"$f":"IF(+'[1]EXT(T)'!X15=\"\",\"\",+'[1]EXT(T)'!X15)","v":"n.d."},{"$f":"IF(+'[1]EXT(T)'!Y15=\"\",\"\",+'[1]EXT(T)'!Y15)","v":"n.d."},{"$f":"IF(+'[1]EXT(T)'!Z15=\"\",\"\",+'[1]EXT(T)'!Z15)","v":"n.d."},{"$f":"IF(+'[1]EXT(T)'!AA15=\"\",\"\",+'[1]EXT(T)'!AA15)","v":"n.d."},{"$f":"IF(+'[1]EXT(T)'!AB15=\"\",\"\",+'[1]EXT(T)'!AB15)","v":"n.d."},{"$f":"IF(+'[1]EXT(T)'!AC15=\"\",\"\",+'[1]EXT(T)'!AC15)","v":"n.d."},{"$f":"IF(+'[1]EXT(T)'!AE15=\"\",\"\",+'[1]EXT(T)'!AE15)","v":"n.d."},{"$f":"IF(+'[1]EXT(T)'!AF15=\"\",\"\",+'[1]EXT(T)'!AF15)","v":"n.d."},{"$f":"IF(+'[1]EXT(T)'!AY15=\"\",\"\",+'[1]EXT(T)'!AY15)","v":"n.d."},{"$f":"IF(+'[1]EXT(T)'!AZ15=\"\",\"\",+'[1]EXT(T)'!AZ15)","v":"n.d."},"n.d.",{"$f":"IF(+'[1]EXT(T)'!AR15=\"\",\"\",+'[1]EXT(T)'!AR15-'[1]EXT(T)'!AR14)","v":222.99999999999997},"n.d.","n.d.","n.d.","n.d.","n.d.","n.d.","n.d."]
[null,"III",{"$f":"IF(+'[1]EXT(T)'!M16=\"\",\"\",+'[1]EXT(T)'!M16)","v":"n.d."},{"$f":"IF(+'[1]EXT(T)'!N16=\"\",\"\",+'[1]EXT(T)'!N16)","v":"n.d."},{"$f":"IF(+'[1]EXT(T)'!O16=\"\",\"\",+'[1]EXT(T)'!O16)","v":"n.d."},{"$f":"IF(+'[1]EXT(T)'!P16=\"\",\"\",+'[1]EXT(T)'!P16)","v":"n.d."},{"$f":"IF(+'[1]EXT(T)'!Q16=\"\",\"\",+'[1]EXT(T)'!Q16)","v":"n.d."},{"$f":"IF(+'[1]EXT(T)'!R16=\"\",\"\",+'[1]EXT(T)'!R16)","v":"n.d."},{"$f":"IF(+'[1]EXT(T)'!S16=\"\",\"\",+'[1]EXT(T)'!S16)","v":"n.d."},{"$f":"IF(+'[1]EXT(T)'!U16=\"\",\"\",+'[1]EXT(T)'!U16)","v":"n.d."},{"$f":"IF(+'[1]EXT(T)'!V16=\"\",\"\",+'[1]EXT(T)'!V16)","v":"n.d."},{"$f":"IF(+'[1]EXT(T)'!W16=\"\",\"\",+'[1]EXT(T)'!W16)","v":"n.d."},{"$f":"IF(+'[1]EXT(T)'!X16=\"\",\"\",+'[1]EXT(T)'!X16)","v":"n.d."},{"$f":"IF(+'[1]EXT(T)'!Y16=\"\",\"\",+'[1]EXT(T)'!Y16)","v":"n.d."},{"$f":"IF(+'[1]EXT(T)'!Z16=\"\",\"\",+'[1]EXT(T)'!Z16)","v":"n.d."},{"$f":"IF(+'[1]EXT(T)'!AA16=\"\",\"\",+'[1]EXT(T)'!AA16)","v":"n.d."},{"$f":"IF(+'[1]EXT(T)'!AB16=\"\",\"\",+'[1]EXT(T)'!AB16)","v":"n.d."},{"$f":"IF(+'[1]EXT(T)'!AC16=\"\",\"\",+'[1]EXT(T)'!AC16)","v":"n.d."},{"$f":"IF(+'[1]EXT(T)'!AE16=\"\",\"\",+'[1]EXT(T)'!AE16)","v":"n.d."},{"$f":"IF(+'[1]EXT(T)'!AF16=\"\",\"\",+'[1]EXT(T)'!AF16)","v":"n.d."},{"$f":"IF(+'[1]EXT(T)'!AY16=\"\",\"\",+'[1]EXT(T)'!AY16)","v":"n.d."},{"$f":"IF(+'[1]EXT(T)'!AZ16=\"\",\"\",+'[1]EXT(T)'!AZ16)","v":"n.d."},"n.d.",{"$f":"IF(+'[1]EXT(T)'!AR16=\"\",\"\",+'[1]EXT(T)'!AR16-'[1]EXT(T)'!AR15)","v":176.59999999999997},"n.d.","n.d.","n.d.","n.d.","n.d.","n.d.","n.d."]
[null,"IV",{"$f":"IF(+'[1]EXT(T)'!M17=\"\",\"\",+'[1]EXT(T)'!M17)","v":"n.d."},{"$f":"IF(+'[1]EXT(T)'!N17=\"\",\"\",+'[1]EXT(T)'!N17)","v":"n.d."},{"$f":"IF(+'[1]EXT(T)'!O17=\"\",\"\",+'[1]EXT(T)'!O17)","v":"n.d."},{"$f":"IF(+'[1]EXT(T)'!P17=\"\",\"\",+'[1]EXT(T)'!P17)","v":"n.d."},{"$f":"IF(+'[1]EXT(T)'!Q17=\"\",\"\",+'[1]EXT(T)'!Q17)","v":"n.d."},{"$f":"IF(+'[1]EXT(T)'!R17=\"\",\"\",+'[1]EXT(T)'!R17)","v":"n.d."},{"$f":"IF(+'[1]EXT(T)'!S17=\"\",\"\",+'[1]EXT(T)'!S17)","v":"n.d."},{"$f":"IF(+'[1]EXT(T)'!U17=\"\",\"\",+'[1]EXT(T)'!U17)","v":"n.d."},{"$f":"IF(+'[1]EXT(T)'!V17=\"\",\"\",+'[1]EXT(T)'!V17)","v":"n.d."},{"$f":"IF(+'[1]EXT(T)'!W17=\"\",\"\",+'[1]EXT(T)'!W17)","v":"n.d."},{"$f":"IF(+'[1]EXT(T)'!X17=\"\",\"\",+'[1]EXT(T)'!X17)","v":"n.d."},{"$f":"IF(+'[1]EXT(T)'!Y17=\"\",\"\",+'[1]EXT(T)'!Y17)","v":"n.d."},{"$f":"IF(+'[1]EXT(T)'!Z17=\"\",\"\",+'[1]EXT(T)'!Z17)","v":"n.d."},{"$f":"IF(+'[1]EXT(T)'!AA17=\"\",\"\",+'[1]EXT(T)'!AA17)","v":"n.d."},{"$f":"IF(+'[1]EXT(T)'!AB17=\"\",\"\",+'[1]EXT(T)'!AB17)","v":"n.d."},{"$f":"IF(+'[1]EXT(T)'!AC17=\"\",\"\",+'[1]EXT(T)'!AC17)","v":"n.d."},{"$f":"IF(+'[1]EXT(T)'!AE17=\"\",\"\",+'[1]EXT(T)'!AE17)","v":"n.d."},{"$f":"IF(+'[1]EXT(T)'!AF17=\"\",\"\",+'[1]EXT(T)'!AF17)","v":"n.d."},{"$f":"IF(+'[1]EXT(T)'!AY17=\"\",\"\",+'[1]EXT(T)'!AY17)","v":"n.d."},{"$f":"IF(+'[1]EXT(T)'!AZ17=\"\",\"\",+'[1]EXT(T)'!AZ17)","v":"n.d."},"n.d.",{"$f":"IF(+'[1]EXT(T)'!AR17=\"\",\"\",+'[1]EXT(T)'!AR17-'[1]EXT(T)'!AR16)","v":201.39999999999998},"n.d.","n.d.","n.d.","n.d.","n.d.","n.d.","n.d."]
[1992,"I",{"$f":"IF(+'[1]EXT(T)'!M18=\"\",\"\",+'[1]EXT(T)'!M18)","v":"n.d."},{"$f":"IF(+'[1]EXT(T)'!N18=\"\",\"\",+'[1]EXT(T)'!N18)","v":"n.d."},{"$f":"IF(+'[1]EXT(T)'!O18=\"\",\"\",+'[1]EXT(T)'!O18)","v":"n.d."},{"$f":"IF(+'[1]EXT(T)'!P18=\"\",\"\",+'[1]EXT(T)'!P18)","v":"n.d."},{"$f":"IF(+'[1]EXT(T)'!Q18=\"\",\"\",+'[1]EXT(T)'!Q18)","v":"n.d."},{"$f":"IF(+'[1]EXT(T)'!R18=\"\",\"\",+'[1]EXT(T)'!R18)","v":"n.d."},{"$f":"IF(+'[1]EXT(T)'!S18=\"\",\"\",+'[1]EXT(T)'!S18)","v":"n.d."},{"$f":"IF(+'[1]EXT(T)'!U18=\"\",\"\",+'[1]EXT(T)'!U18)","v":"n.d."},{"$f":"IF(+'[1]EXT(T)'!V18=\"\",\"\",+'[1]EXT(T)'!V18)","v":"n.d."},{"$f":"IF(+'[1]EXT(T)'!W18=\"\",\"\",+'[1]EXT(T)'!W18)","v":"n.d."},{"$f":"IF(+'[1]EXT(T)'!X18=\"\",\"\",+'[1]EXT(T)'!X18)","v":"n.d."},{"$f":"IF(+'[1]EXT(T)'!Y18=\"\",\"\",+'[1]EXT(T)'!Y18)","v":"n.d."},{"$f":"IF(+'[1]EXT(T)'!Z18=\"\",\"\",+'[1]EXT(T)'!Z18)","v":"n.d."},{"$f":"IF(+'[1]EXT(T)'!AA18=\"\",\"\",+'[1]EXT(T)'!AA18)","v":"n.d."},{"$f":"IF(+'[1]EXT(T)'!AB18=\"\",\"\",+'[1]EXT(T)'!AB18)","v":"n.d."},{"$f":"IF(+'[1]EXT(T)'!AC18=\"\",\"\",+'[1]EXT(T)'!AC18)","v":"n.d."},{"$f":"IF(+'[1]EXT(T)'!AE18=\"\",\"\",+'[1]EXT(T)'!AE18)","v":"n.d."},{"$f":"IF(+'[1]EXT(T)'!AF18=\"\",\"\",+'[1]EXT(T)'!AF18)","v":"n.d."},{"$f":"IF(+'[1]EXT(T)'!AY18=\"\",\"\",+'[1]EXT(T)'!AY18)","v":"n.d."},{"$f":"IF(+'[1]EXT(T)'!AZ18=\"\",\"\",+'[1]EXT(T)'!AZ18)","v":"n.d."},"n.d.",{"$f":"IF(+'[1]EXT(T)'!AR18=\"\",\"\",+'[1]EXT(T)'!AR18)","v":206.6},"n.d.","n.d.","n.d.","n.d.","n.d.","n.d.","n.d."]
[null,"II",{"$f":"IF(+'[1]EXT(T)'!M19=\"\",\"\",+'[1]EXT(T)'!M19)","v":"n.d."},{"$f":"IF(+'[1]EXT(T)'!N19=\"\",\"\",+'[1]EXT(T)'!N19)","v":"n.d."},{"$f":"IF(+'[1]EXT(T)'!O19=\"\",\"\",+'[1]EXT(T)'!O19)","v":"n.d."},{"$f":"IF(+'[1]EXT(T)'!P19=\"\",\"\",+'[1]EXT(T)'!P19)","v":"n.d."},{"$f":"IF(+'[1]EXT(T)'!Q19=\"\",\"\",+'[1]EXT(T)'!Q19)","v":"n.d."},{"$f":"IF(+'[1]EXT(T)'!R19=\"\",\"\",+'[1]EXT(T)'!R19)","v":"n.d."},{"$f":"IF(+'[1]EXT(T)'!S19=\"\",\"\",+'[1]EXT(T)'!S19)","v":"n.d."},{"$f":"IF(+'[1]EXT(T)'!U19=\"\",\"\",+'[1]EXT(T)'!U19)","v":"n.d."},{"$f":"IF(+'[1]EXT(T)'!V19=\"\",\"\",+'[1]EXT(T)'!V19)","v":"n.d."},{"$f":"IF(+'[1]EXT(T)'!W19=\"\",\"\",+'[1]EXT(T)'!W19)","v":"n.d."},{"$f":"IF(+'[1]EXT(T)'!X19=\"\",\"\",+'[1]EXT(T)'!X19)","v":"n.d."},{"$f":"IF(+'[1]EXT(T)'!Y19=\"\",\"\",+'[1]EXT(T)'!Y19)","v":"n.d."},{"$f":"IF(+'[1]EXT(T)'!Z19=\"\",\"\",+'[1]EXT(T)'!Z19)","v":"n.d."},{"$f":"IF(+'[1]EXT(T)'!AA19=\"\",\"\",+'[1]EXT(T)'!AA19)","v":"n.d."},{"$f":"IF(+'[1]EXT(T)'!AB19=\"\",\"\",+'[1]EXT(T)'!AB19)","v":"n.d."},{"$f":"IF(+'[1]EXT(T)'!AC19=\"\",\"\",+'[1]EXT(T)'!AC19)","v":"n.d."},{"$f":"IF(+'[1]EXT(T)'!AE19=\"\",\"\",+'[1]EXT(T)'!AE19)","v":"n.d."},{"$f":"IF(+'[1]EXT(T)'!AF19=\"\",\"\",+'[1]EXT(T)'!AF19)","v":"n.d."},{"$f":"IF(+'[1]EXT(T)'!AY19=\"\",\"\",+'[1]EXT(T)'!AY19)","v":"n.d."},{"$f":"IF(+'[1]EXT(T)'!AZ19=\"\",\"\",+'[1]EXT(T)'!AZ19)","v":"n.d."},"n.d.",{"$f":"IF(+'[1]EXT(T)'!AR19=\"\",\"\",+'[1]EXT(T)'!AR19-'[1]EXT(T)'!AR18)","v":226.4},"n.d.","n.d.","n.d.","n.d.","n.d.","n.d.","n.d."]
[null,"III",{"$f":"IF(+'[1]EXT(T)'!M20=\"\",\"\",+'[1]EXT(T)'!M20)","v":"n.d."},{"$f":"IF(+'[1]EXT(T)'!N20=\"\",\"\",+'[1]EXT(T)'!N20)","v":"n.d."},{"$f":"IF(+'[1]EXT(T)'!O20=\"\",\"\",+'[1]EXT(T)'!O20)","v":"n.d."},{"$f":"IF(+'[1]EXT(T)'!P20=\"\",\"\",+'[1]EXT(T)'!P20)","v":"n.d."},{"$f":"IF(+'[1]EXT(T)'!Q20=\"\",\"\",+'[1]EXT(T)'!Q20)","v":"n.d."},{"$f":"IF(+'[1]EXT(T)'!R20=\"\",\"\",+'[1]EXT(T)'!R20)","v":"n.d."},{"$f":"IF(+'[1]EXT(T)'!S20=\"\",\"\",+'[1]EXT(T)'!S20)","v":"n.d."},{"$f":"IF(+'[1]EXT(T)'!U20=\"\",\"\",+'[1]EXT(T)'!U20)","v":"n.d."},{"$f":"IF(+'[1]EXT(T)'!V20=\"\",\"\",+'[1]EXT(T)'!V20)","v":"n.d."},{"$f":"IF(+'[1]EXT(T)'!W20=\"\",\"\",+'[1]EXT(T)'!W20)","v":"n.d."},{"$f":"IF(+'[1]EXT(T)'!X20=\"\",\"\",+'[1]EXT(T)'!X20)","v":"n.d."},{"$f":"IF(+'[1]EXT(T)'!Y20=\"\",\"\",+'[1]EXT(T)'!Y20)","v":"n.d."},{"$f":"IF(+'[1]EXT(T)'!Z20=\"\",\"\",+'[1]EXT(T)'!Z20)","v":"n.d."},{"$f":"IF(+'[1]EXT(T)'!AA20=\"\",\"\",+'[1]EXT(T)'!AA20)","v":"n.d."},{"$f":"IF(+'[1]EXT(T)'!AB20=\"\",\"\",+'[1]EXT(T)'!AB20)","v":"n.d."},{"$f":"IF(+'[1]EXT(T)'!AC20=\"\",\"\",+'[1]EXT(T)'!AC20)","v":"n.d."},{"$f":"IF(+'[1]EXT(T)'!AE20=\"\",\"\",+'[1]EXT(T)'!AE20)","v":"n.d."},{"$f":"IF(+'[1]EXT(T)'!AF20=\"\",\"\",+'[1]EXT(T)'!AF20)","v":"n.d."},{"$f":"IF(+'[1]EXT(T)'!AY20=\"\",\"\",+'[1]EXT(T)'!AY20)","v":"n.d."},{"$f":"IF(+'[1]EXT(T)'!AZ20=\"\",\"\",+'[1]EXT(T)'!AZ20)","v":"n.d."},"n.d.",{"$f":"IF(+'[1]EXT(T)'!AR20=\"\",\"\",+'[1]EXT(T)'!AR20-'[1]EXT(T)'!AR19)","v":200},"n.d.","n.d.","n.d.","n.d.","n.d.","n.d.","n.d."]
[null,"IV",{"$f":"IF(+'[1]EXT(T)'!M21=\"\",\"\",+'[1]EXT(T)'!M21)","v":"n.d."},{"$f":"IF(+'[1]EXT(T)'!N21=\"\",\"\",+'[1]EXT(T)'!N21)","v":"n.d."},{"$f":"IF(+'[1]EXT(T)'!O21=\"\",\"\",+'[1]EXT(T)'!O21)","v":"n.d."},{"$f":"IF(+'[1]EXT(T)'!P21=\"\",\"\",+'[1]EXT(T)'!P21)","v":"n.d."},{"$f":"IF(+'[1]EXT(T)'!Q21=\"\",\"\",+'[1]EXT(T)'!Q21)","v":"n.d."},{"$f":"IF(+'[1]EXT(T)'!R21=\"\",\"\",+'[1]EXT(T)'!R21)","v":"n.d."},{"$f":"IF(+'[1]EXT(T)'!S21=\"\",\"\",+'[1]EXT(T)'!S21)","v":"n.d."},{"$f":"IF(+'[1]EXT(T)'!U21=\"\",\"\",+'[1]EXT(T)'!U21)","v":"n.d."},{"$f":"IF(+'[1]EXT(T)'!V21=\"\",\"\",+'[1]EXT(T)'!V21)","v":"n.d."},{"$f":"IF(+'[1]EXT(T)'!W21=\"\",\"\",+'[1]EXT(T)'!W21)","v":"n.d."},{"$f":"IF(+'[1]EXT(T)'!X21=\"\",\"\",+'[1]EXT(T)'!X21)","v":"n.d."},{"$f":"IF(+'[1]EXT(T)'!Y21=\"\",\"\",+'[1]EXT(T)'!Y21)","v":"n.d."},{"$f":"IF(+'[1]EXT(T)'!Z21=\"\",\"\",+'[1]EXT(T)'!Z21)","v":"n.d."},{"$f":"IF(+'[1]EXT(T)'!AA21=\"\",\"\",+'[1]EXT(T)'!AA21)","v":"n.d."},{"$f":"IF(+'[1]EXT(T)'!AB21=\"\",\"\",+'[1]EXT(T)'!AB21)","v":"n.d."},{"$f":"IF(+'[1]EXT(T)'!AC21=\"\",\"\",+'[1]EXT(T)'!AC21)","v":"n.d."},{"$f":"IF(+'[1]EXT(T)'!AE21=\"\",\"\",+'[1]EXT(T)'!AE21)","v":"n.d."},{"$f":"IF(+'[1]EXT(T)'!AF21=\"\",\"\",+'[1]EXT(T)'!AF21)","v":"n.d."},{"$f":"IF(+'[1]EXT(T)'!AY21=\"\",\"\",+'[1]EXT(T)'!AY21)","v":"n.d."},{"$f":"IF(+'[1]EXT(T)'!AZ21=\"\",\"\",+'[1]EXT(T)'!AZ21)","v":"n.d."},"n.d.",{"$f":"IF(+'[1]EXT(T)'!AR21=\"\",\"\",+'[1]EXT(T)'!AR21-'[1]EXT(T)'!AR20)","v":225.29999999999995},"n.d.","n.d.","n.d.","n.d.","n.d.","n.d.","n.d."]
[1993,"I",{"$f":"IF(+'[1]EXT(T)'!M22=\"\",\"\",+'[1]EXT(T)'!M22)","v":"n.d."},{"$f":"IF(+'[1]EXT(T)'!N22=\"\",\"\",+'[1]EXT(T)'!N22)","v":"n.d."},{"$f":"IF(+'[1]EXT(T)'!O22=\"\",\"\",+'[1]EXT(T)'!O22)","v":"n.d."},{"$f":"IF(+'[1]EXT(T)'!P22=\"\",\"\",+'[1]EXT(T)'!P22)","v":"n.d."},{"$f":"IF(+'[1]EXT(T)'!Q22=\"\",\"\",+'[1]EXT(T)'!Q22)","v":"n.d."},{"$f":"IF(+'[1]EXT(T)'!R22=\"\",\"\",+'[1]EXT(T)'!R22)","v":"n.d."},{"$f":"IF(+'[1]EXT(T)'!S22=\"\",\"\",+'[1]EXT(T)'!S22)","v":"n.d."},{"$f":"IF(+'[1]EXT(T)'!U22=\"\",\"\",+'[1]EXT(T)'!U22)","v":"n.d."},{"$f":"IF(+'[1]EXT(T)'!V22=\"\",\"\",+'[1]EXT(T)'!V22)","v":"n.d."},{"$f":"IF(+'[1]EXT(T)'!W22=\"\",\"\",+'[1]EXT(T)'!W22)","v":"n.d."},{"$f":"IF(+'[1]EXT(T)'!X22=\"\",\"\",+'[1]EXT(T)'!X22)","v":"n.d."},{"$f":"IF(+'[1]EXT(T)'!Y22=\"\",\"\",+'[1]EXT(T)'!Y22)","v":"n.d."},{"$f":"IF(+'[1]EXT(T)'!Z22=\"\",\"\",+'[1]EXT(T)'!Z22)","v":"n.d."},{"$f":"IF(+'[1]EXT(T)'!AA22=\"\",\"\",+'[1]EXT(T)'!AA22)","v":"n.d."},{"$f":"IF(+'[1]EXT(T)'!AB22=\"\",\"\",+'[1]EXT(T)'!AB22)","v":"n.d."},{"$f":"IF(+'[1]EXT(T)'!AC22=\"\",\"\",+'[1]EXT(T)'!AC22)","v":"n.d."},{"$f":"IF(+'[1]EXT(T)'!AE22=\"\",\"\",+'[1]EXT(T)'!AE22)","v":"n.d."},{"$f":"IF(+'[1]EXT(T)'!AF22=\"\",\"\",+'[1]EXT(T)'!AF22)","v":"n.d."},{"$f":"IF(+'[1]EXT(T)'!AY22=\"\",\"\",+'[1]EXT(T)'!AY22)","v":"n.d."},{"$f":"IF(+'[1]EXT(T)'!AZ22=\"\",\"\",+'[1]EXT(T)'!AZ22)","v":"n.d."},"n.d.",{"$f":"IF(+'[1]EXT(T)'!AR22=\"\",\"\",+'[1]EXT(T)'!AR22)","v":204},"n.d.","n.d.","n.d.","n.d.","n.d.","n.d.","n.d."]
[null,"II",{"$f":"IF(+'[1]EXT(T)'!M23=\"\",\"\",+'[1]EXT(T)'!M23)","v":"n.d."},{"$f":"IF(+'[1]EXT(T)'!N23=\"\",\"\",+'[1]EXT(T)'!N23)","v":"n.d."},{"$f":"IF(+'[1]EXT(T)'!O23=\"\",\"\",+'[1]EXT(T)'!O23)","v":"n.d."},{"$f":"IF(+'[1]EXT(T)'!P23=\"\",\"\",+'[1]EXT(T)'!P23)","v":"n.d."},{"$f":"IF(+'[1]EXT(T)'!Q23=\"\",\"\",+'[1]EXT(T)'!Q23)","v":"n.d."},{"$f":"IF(+'[1]EXT(T)'!R23=\"\",\"\",+'[1]EXT(T)'!R23)","v":"n.d."},{"$f":"IF(+'[1]EXT(T)'!S23=\"\",\"\",+'[1]EXT(T)'!S23)","v":"n.d."},{"$f":"IF(+'[1]EXT(T)'!U23=\"\",\"\",+'[1]EXT(T)'!U23)","v":"n.d."},{"$f":"IF(+'[1]EXT(T)'!V23=\"\",\"\",+'[1]EXT(T)'!V23)","v":"n.d."},{"$f":"IF(+'[1]EXT(T)'!W23=\"\",\"\",+'[1]EXT(T)'!W23)","v":"n.d."},{"$f":"IF(+'[1]EXT(T)'!X23=\"\",\"\",+'[1]EXT(T)'!X23)","v":"n.d."},{"$f":"IF(+'[1]EXT(T)'!Y23=\"\",\"\",+'[1]EXT(T)'!Y23)","v":"n.d."},{"$f":"IF(+'[1]EXT(T)'!Z23=\"\",\"\",+'[1]EXT(T)'!Z23)","v":"n.d."},{"$f":"IF(+'[1]EXT(T)'!AA23=\"\",\"\",+'[1]EXT(T)'!AA23)","v":"n.d."},{"$f":"IF(+'[1]EXT(T)'!AB23=\"\",\"\",+'[1]EXT(T)'!AB23)","v":"n.d."},{"$f":"IF(+'[1]EXT(T)'!AC23=\"\",\"\",+'[1]EXT(T)'!AC23)","v":"n.d."},{"$f":"IF(+'[1]EXT(T)'!AE23=\"\",\"\",+'[1]EXT(T)'!AE23)","v":"n.d."},{"$f":"IF(+'[1]EXT(T)'!AF23=\"\",\"\",+'[1]EXT(T)'!AF23)","v":"n.d."},{"$f":"IF(+'[1]EXT(T)'!AY23=\"\",\"\",+'[1]EXT(T)'!AY23)","v":"n.d."},{"$f":"IF(+'[1]EXT(T)'!AZ23=\"\",\"\",+'[1]EXT(T)'!AZ23)","v":"n.d."},"n.d.",{"$f":"IF(+'[1]EXT(T)'!AR23=\"\",\"\",+'[1]EXT(T)'!AR23-'[1]EXT(T)'!AR22)","v":223.60000000000002},"n.d.","n.d.","n.d.","n.d.","n.d.","n.d.","n.d."]
[null,"III",{"$f":"IF(+'[1]EXT(T)'!M24=\"\",\"\",+'[1]EXT(T)'!M24)","v":"n.d."},{"$f":"IF(+'[1]EXT(T)'!N24=\"\",\"\",+'[1]EXT(T)'!N24)","v":"n.d."},{"$f":"IF(+'[1]EXT(T)'!O24=\"\",\"\",+'[1]EXT(T)'!O24)","v":"n.d."},{"$f":"IF(+'[1]EXT(T)'!P24=\"\",\"\",+'[1]EXT(T)'!P24)","v":"n.d."},{"$f":"IF(+'[1]EXT(T)'!Q24=\"\",\"\",+'[1]EXT(T)'!Q24)","v":"n.d."},{"$f":"IF(+'[1]EXT(T)'!R24=\"\",\"\",+'[1]EXT(T)'!R24)","v":"n.d."},{"$f":"IF(+'[1]EXT(T)'!S24=\"\",\"\",+'[1]EXT(T)'!S24)","v":"n.d."},{"$f":"IF(+'[1]EXT(T)'!U24=\"\",\"\",+'[1]EXT(T)'!U24)","v":"n.d."},{"$f":"IF(+'[1]EXT(T)'!V24=\"\",\"\",+'[1]EXT(T)'!V24)","v":"n.d."},{"$f":"IF(+'[1]EXT(T)'!W24=\"\",\"\",+'[1]EXT(T)'!W24)","v":"n.d."},{"$f":"IF(+'[1]EXT(T)'!X24=\"\",\"\",+'[1]EXT(T)'!X24)","v":"n.d."},{"$f":"IF(+'[1]EXT(T)'!Y24=\"\",\"\",+'[1]EXT(T)'!Y24)","v":"n.d."},{"$f":"IF(+'[1]EXT(T)'!Z24=\"\",\"\",+'[1]EXT(T)'!Z24)","v":"n.d."},{"$f":"IF(+'[1]EXT(T)'!AA24=\"\",\"\",+'[1]EXT(T)'!AA24)","v":"n.d."},{"$f":"IF(+'[1]EXT(T)'!AB24=\"\",\"\",+'[1]EXT(T)'!AB24)","v":"n.d."},{"$f":"IF(+'[1]EXT(T)'!AC24=\"\",\"\",+'[1]EXT(T)'!AC24)","v":"n.d."},{"$f":"IF(+'[1]EXT(T)'!AE24=\"\",\"\",+'[1]EXT(T)'!AE24)","v":"n.d."},{"$f":"IF(+'[1]EXT(T)'!AF24=\"\",\"\",+'[1]EXT(T)'!AF24)","v":"n.d."},{"$f":"IF(+'[1]EXT(T)'!AY24=\"\",\"\",+'[1]EXT(T)'!AY24)","v":"n.d."},{"$f":"IF(+'[1]EXT(T)'!AZ24=\"\",\"\",+'[1]EXT(T)'!AZ24)","v":"n.d."},"n.d.",{"$f":"IF(+'[1]EXT(T)'!AR24=\"\",\"\",+'[1]EXT(T)'!AR24-'[1]EXT(T)'!AR23)","v":207.60000000000002},"n.d.","n.d.","n.d.","n.d.","n.d.","n.d.","n.d."]
[null,"IV",{"$f":"IF(+'[1]EXT(T)'!M25=\"\",\"\",+'[1]EXT(T)'!M25)","v":"n.d."},{"$f":"IF(+'[1]EXT(T)'!N25=\"\",\"\",+'[1]EXT(T)'!N25)","v":"n.d."},{"$f":"IF(+'[1]EXT(T)'!O25=\"\",\"\",+'[1]EXT(T)'!O25)","v":"n.d."},{"$f":"IF(+'[1]EXT(T)'!P25=\"\",\"\",+'[1]EXT(T)'!P25)","v":"n.d."},{"$f":"IF(+'[1]EXT(T)'!Q25=\"\",\"\",+'[1]EXT(T)'!Q25)","v":"n.d."},{"$f":"IF(+'[1]EXT(T)'!R25=\"\",\"\",+'[1]EXT(T)'!R25)","v":"n.d."},{"$f":"IF(+'[1]EXT(T)'!S25=\"\",\"\",+'[1]EXT(T)'!S25)","v":"n.d."},{"$f":"IF(+'[1]EXT(T)'!U25=\"\",\"\",+'[1]EXT(T)'!U25)","v":"n.d."},{"$f":"IF(+'[1]EXT(T)'!V25=\"\",\"\",+'[1]EXT(T)'!V25)","v":"n.d."},{"$f":"IF(+'[1]EXT(T)'!W25=\"\",\"\",+'[1]EXT(T)'!W25)","v":"n.d."},{"$f":"IF(+'[1]EXT(T)'!X25=\"\",\"\",+'[1]EXT(T)'!X25)","v":"n.d."},{"$f":"IF(+'[1]EXT(T)'!Y25=\"\",\"\",+'[1]EXT(T)'!Y25)","v":"n.d."},{"$f":"IF(+'[1]EXT(T)'!Z25=\"\",\"\",+'[1]EXT(T)'!Z25)","v":"n.d."},{"$f":"IF(+'[1]EXT(T)'!AA25=\"\",\"\",+'[1]EXT(T)'!AA25)","v":"n.d."},{"$f":"IF(+'[1]EXT(T)'!AB25=\"\",\"\",+'[1]EXT(T)'!AB25)","v":"n.d."},{"$f":"IF(+'[1]EXT(T)'!AC25=\"\",\"\",+'[1]EXT(T)'!AC25)","v":"n.d."},{"$f":"IF(+'[1]EXT(T)'!AE25=\"\",\"\",+'[1]EXT(T)'!AE25)","v":"n.d."},{"$f":"IF(+'[1]EXT(T)'!AF25=\"\",\"\",+'[1]EXT(T)'!AF25)","v":"n.d."},{"$f":"IF(+'[1]EXT(T)'!AY25=\"\",\"\",+'[1]EXT(T)'!AY25)","v":"n.d."},{"$f":"IF(+'[1]EXT(T)'!AZ25=\"\",\"\",+'[1]EXT(T)'!AZ25)","v":"n.d."},"n.d.",{"$f":"IF(+'[1]EXT(T)'!AR25=\"\",\"\",+'[1]EXT(T)'!AR25-'[1]EXT(T)'!AR24)","v":228.90000000000009},"n.d.","n.d.","n.d.","n.d.","n.d.","n.d.","n.d."]
[1994,"I",{"$f":"IF(+'[1]EXT(T)'!M26=\"\",\"\",+'[1]EXT(T)'!M26)","v":"n.d."},{"$f":"IF(+'[1]EXT(T)'!N26=\"\",\"\",+'[1]EXT(T)'!N26)","v":"n.d."},{"$f":"IF(+'[1]EXT(T)'!O26=\"\",\"\",+'[1]EXT(T)'!O26)","v":"n.d."},{"$f":"IF(+'[1]EXT(T)'!P26=\"\",\"\",+'[1]EXT(T)'!P26)","v":"n.d."},{"$f":"IF(+'[1]EXT(T)'!Q26=\"\",\"\",+'[1]EXT(T)'!Q26)","v":"n.d."},{"$f":"IF(+'[1]EXT(T)'!R26=\"\",\"\",+'[1]EXT(T)'!R26)","v":"n.d."},{"$f":"IF(+'[1]EXT(T)'!S26=\"\",\"\",+'[1]EXT(T)'!S26)","v":"n.d."},{"$f":"IF(+'[1]EXT(T)'!U26=\"\",\"\",+'[1]EXT(T)'!U26)","v":"n.d."},{"$f":"IF(+'[1]EXT(T)'!V26=\"\",\"\",+'[1]EXT(T)'!V26)","v":"n.d."},{"$f":"IF(+'[1]EXT(T)'!W26=\"\",\"\",+'[1]EXT(T)'!W26)","v":"n.d."},{"$f":"IF(+'[1]EXT(T)'!X26=\"\",\"\",+'[1]EXT(T)'!X26)","v":"n.d."},{"$f":"IF(+'[1]EXT(T)'!Y26=\"\",\"\",+'[1]EXT(T)'!Y26)","v":"n.d."},{"$f":"IF(+'[1]EXT(T)'!Z26=\"\",\"\",+'[1]EXT(T)'!Z26)","v":"n.d."},{"$f":"IF(+'[1]EXT(T)'!AA26=\"\",\"\",+'[1]EXT(T)'!AA26)","v":"n.d."},{"$f":"IF(+'[1]EXT(T)'!AB26=\"\",\"\",+'[1]EXT(T)'!AB26)","v":"n.d."},{"$f":"IF(+'[1]EXT(T)'!AC26=\"\",\"\",+'[1]EXT(T)'!AC26)","v":"n.d."},{"$f":"IF(+'[1]EXT(T)'!AE26=\"\",\"\",+'[1]EXT(T)'!AE26)","v":"n.d."},{"$f":"IF(+'[1]EXT(T)'!AF26=\"\",\"\",+'[1]EXT(T)'!AF26)","v":"n.d."},{"$f":"IF(+'[1]EXT(T)'!AY26=\"\",\"\",+'[1]EXT(T)'!AY26)","v":"n.d."},{"$f":"IF(+'[1]EXT(T)'!AZ26=\"\",\"\",+'[1]EXT(T)'!AZ26)","v":"n.d."},"n.d.",{"$f":"IF(+'[1]EXT(T)'!AR26=\"\",\"\",+'[1]EXT(T)'!AR26)","v":223.4},{"$f":"IF(+'[1]EXT(T)'!AS26=\"\",\"\",+'[1]EXT(T)'!AS26)","v":58.029300000000006},"n.d.","n.d.","n.d.","n.d.","n.d.","n.d."]
[null,"II",{"$f":"IF(+'[1]EXT(T)'!M27=\"\",\"\",+'[1]EXT(T)'!M27)","v":"n.d."},{"$f":"IF(+'[1]EXT(T)'!N27=\"\",\"\",+'[1]EXT(T)'!N27)","v":"n.d."},{"$f":"IF(+'[1]EXT(T)'!O27=\"\",\"\",+'[1]EXT(T)'!O27)","v":"n.d."},{"$f":"IF(+'[1]EXT(T)'!P27=\"\",\"\",+'[1]EXT(T)'!P27)","v":"n.d."},{"$f":"IF(+'[1]EXT(T)'!Q27=\"\",\"\",+'[1]EXT(T)'!Q27)","v":"n.d."},{"$f":"IF(+'[1]EXT(T)'!R27=\"\",\"\",+'[1]EXT(T)'!R27)","v":"n.d."},{"$f":"IF(+'[1]EXT(T)'!S27=\"\",\"\",+'[1]EXT(T)'!S27)","v":"n.d."},{"$f":"IF(+'[1]EXT(T)'!U27=\"\",\"\",+'[1]EXT(T)'!U27)","v":"n.d."},{"$f":"IF(+'[1]EXT(T)'!V27=\"\",\"\",+'[1]EXT(T)'!V27)","v":"n.d."},{"$f":"IF(+'[1]EXT(T)'!W27=\"\",\"\",+'[1]EXT(T)'!W27)","v":"n.d."},{"$f":"IF(+'[1]EXT(T)'!X27=\"\",\"\",+'[1]EXT(T)'!X27)","v":"n.d."},{"$f":"IF(+'[1]EXT(T)'!Y27=\"\",\"\",+'[1]EXT(T)'!Y27)","v":"n.d."},{"$f":"IF(+'[1]EXT(T)'!Z27=\"\",\"\",+'[1]EXT(T)'!Z27)","v":"n.d."},{"$f":"IF(+'[1]EXT(T)'!AA27=\"\",\"\",+'[1]EXT(T)'!AA27)","v":"n.d."},{"$f":"IF(+'[1]EXT(T)'!AB27=\"\",\"\",+'[1]EXT(T)'!AB27)","v":"n.d."},{"$f":"IF(+'[1]EXT(T)'!AC27=\"\",\"\",+'[1]EXT(T)'!AC27)","v":"n.d."},{"$f":"IF(+'[1]EXT(T)'!AE27=\"\",\"\",+'[1]EXT(T)'!AE27)","v":"n.d."},{"$f":"IF(+'[1]EXT(T)'!AF27=\"\",\"\",+'[1]EXT(T)'!AF27)","v":"n.d."},{"$f":"IF(+'[1]EXT(T)'!AY27=\"\",\"\",+'[1]EXT(T)'!AY27)","v":"n.d."},{"$f":"IF(+'[1]EXT(T)'!AZ27=\"\",\"\",+'[1]EXT(T)'!AZ27)","v":"n.d."},"n.d.",{"$f":"IF(+'[1]EXT(T)'!AR27=\"\",\"\",+'[1]EXT(T)'!AR27-'[1]EXT(T)'!AR26)","v":244.29999999999993},{"$f":"IF(+'[1]EXT(T)'!AS27=\"\",\"\",+'[1]EXT(T)'!AS27-'[1]EXT(T)'!AS26)","v":84.6464},"n.d.","n.d.","n.d.","n.d.","n.d.","n.d."]
[null,"III",{"$f":"IF(+'[1]EXT(T)'!M28=\"\",\"\",+'[1]EXT(T)'!M28)","v":"n.d."},{"$f":"IF(+'[1]EXT(T)'!N28=\"\",\"\",+'[1]EXT(T)'!N28)","v":"n.d."},{"$f":"IF(+'[1]EXT(T)'!O28=\"\",\"\",+'[1]EXT(T)'!O28)","v":"n.d."},{"$f":"IF(+'[1]EXT(T)'!P28=\"\",\"\",+'[1]EXT(T)'!P28)","v":"n.d."},{"$f":"IF(+'[1]EXT(T)'!Q28=\"\",\"\",+'[1]EXT(T)'!Q28)","v":"n.d."},{"$f":"IF(+'[1]EXT(T)'!R28=\"\",\"\",+'[1]EXT(T)'!R28)","v":"n.d."},{"$f":"IF(+'[1]EXT(T)'!S28=\"\",\"\",+'[1]EXT(T)'!S28)","v":"n.d."},{"$f":"IF(+'[1]EXT(T)'!U28=\"\",\"\",+'[1]EXT(T)'!U28)","v":"n.d."},{"$f":"IF(+'[1]EXT(T)'!V28=\"\",\"\",+'[1]EXT(T)'!V28)","v":"n.d."},{"$f":"IF(+'[1]EXT(T)'!W28=\"\",\"\",+'[1]EXT(T)'!W28)","v":"n.d."},{"$f":"IF(+'[1]EXT(T)'!X28=\"\",\"\",+'[1]EXT(T)'!X28)","v":"n.d."},{"$f":"IF(+'[1]EXT(T)'!Y28=\"\",\"\",+'[1]EXT(T)'!Y28)","v":"n.d."},{"$f":"IF(+'[1]EXT(T)'!Z28=\"\",\"\",+'[1]EXT(T)'!Z28)","v":"n.d."},{"$f":"IF(+'[1]EXT(T)'!AA28=\"\",\"\",+'[1]EXT(T)'!AA28)","v":"n.d."},{"$f":"IF(+'[1]EXT(T)'!AB28=\"\",\"\",+'[1]EXT(T)'!AB28)","v":"n.d."},{"$f":"IF(+'[1]EXT(T)'!AC28=\"\",\"\",+'[1]EXT(T)'!AC28)","v":"n.d."},{"$f":"IF(+'[1]EXT(T)'!AE28=\"\",\"\",+'[1]EXT(T)'!AE28)","v":"n.d."},{"$f":"IF(+'[1]EXT(T)'!AF28=\"\",\"\",+'[1]EXT(T)'!AF28)","v":"n.d."},{"$f":"IF(+'[1]EXT(T)'!AY28=\"\",\"\",+'[1]EXT(T)'!AY28)","v":"n.d."},{"$f":"IF(+'[1]EXT(T)'!AZ28=\"\",\"\",+'[1]EXT(T)'!AZ28)","v":"n.d."},"n.d.",{"$f":"IF(+'[1]EXT(T)'!AR28=\"\",\"\",+'[1]EXT(T)'!AR28-'[1]EXT(T)'!AR27)","v":241.89999999999998},{"$f":"IF(+'[1]EXT(T)'!AS28=\"\",\"\",+'[1]EXT(T)'!AS28-'[1]EXT(T)'!AS27)","v":82.085599999999999},"n.d.","n.d.","n.d.","n.d.","n.d.","n.d."]
[null,"IV",{"$f":"IF(+'[1]EXT(T)'!M29=\"\",\"\",+'[1]EXT(T)'!M29)","v":"n.d."},{"$f":"IF(+'[1]EXT(T)'!N29=\"\",\"\",+'[1]EXT(T)'!N29)","v":"n.d."},{"$f":"IF(+'[1]EXT(T)'!O29=\"\",\"\",+'[1]EXT(T)'!O29)","v":"n.d."},{"$f":"IF(+'[1]EXT(T)'!P29=\"\",\"\",+'[1]EXT(T)'!P29)","v":"n.d."},{"$f":"IF(+'[1]EXT(T)'!Q29=\"\",\"\",+'[1]EXT(T)'!Q29)","v":"n.d."},{"$f":"IF(+'[1]EXT(T)'!R29=\"\",\"\",+'[1]EXT(T)'!R29)","v":"n.d."},{"$f":"IF(+'[1]EXT(T)'!S29=\"\",\"\",+'[1]EXT(T)'!S29)","v":"n.d."},{"$f":"IF(+'[1]EXT(T)'!U29=\"\",\"\",+'[1]EXT(T)'!U29)","v":"n.d."},{"$f":"IF(+'[1]EXT(T)'!V29=\"\",\"\",+'[1]EXT(T)'!V29)","v":"n.d."},{"$f":"IF(+'[1]EXT(T)'!W29=\"\",\"\",+'[1]EXT(T)'!W29)","v":"n.d."},{"$f":"IF(+'[1]EXT(T)'!X29=\"\",\"\",+'[1]EXT(T)'!X29)","v":"n.d."},{"$f":"IF(+'[1]EXT(T)'!Y29=\"\",\"\",+'[1]EXT(T)'!Y29)","v":"n.d."},{"$f":"IF(+'[1]EXT(T)'!Z29=\"\",\"\",+'[1]EXT(T)'!Z29)","v":"n.d."},{"$f":"IF(+'[1]EXT(T)'!AA29=\"\",\"\",+'[1]EXT(T)'!AA29)","v":"n.d."},{"$f":"IF(+'[1]EXT(T)'!AB29=\"\",\"\",+'[1]EXT(T)'!AB29)","v":"n.d."},{"$f":"IF(+'[1]EXT(T)'!AC29=\"\",\"\",+'[1]EXT(T)'!AC29)","v":"n.d."},{"$f":"IF(+'[1]EXT(T)'!AE29=\"\",\"\",+'[1]EXT(T)'!AE29)","v":"n.d."},{"$f":"IF(+'[1]EXT(T)'!AF29=\"\",\"\",+'[1]EXT(T)'!AF29)","v":"n.d."},{"$f":"IF(+'[1]EXT(T)'!AY29=\"\",\"\",+'[1]EXT(T)'!AY29)","v":"n.d."},{"$f":"IF(+'[1]EXT(T)'!AZ29=\"\",\"\",+'[1]EXT(T)'!AZ29)","v":"n.d."},"n.d.",{"$f":"IF(+'[1]EXT(T)'!AR29=\"\",\"\",+'[1]EXT(T)'!AR29-'[1]EXT(T)'!AR28)","v":252.89999999999998},{"$f":"IF(+'[1]EXT(T)'!AS29=\"\",\"\",+'[1]EXT(T)'!AS29-'[1]EXT(T)'!AS28)","v":77.286099999999976},"n.d.","n.d.","n.d.","n.d.","n.d.","n.d."]
[1995,"I",{"$f":"IF(+'[1]EXT(T)'!M30=\"\",\"\",+'[1]EXT(T)'!M30)","v":"n.d."},{"$f":"IF(+'[1]EXT(T)'!N30=\"\",\"\",+'[1]EXT(T)'!N30)","v":"n.d."},{"$f":"IF(+'[1]EXT(T)'!O30=\"\",\"\",+'[1]EXT(T)'!O30)","v":"n.d."},{"$f":"IF(+'[1]EXT(T)'!P30=\"\",\"\",+'[1]EXT(T)'!P30)","v":"n.d."},{"$f":"IF(+'[1]EXT(T)'!Q30=\"\",\"\",+'[1]EXT(T)'!Q30)","v":"n.d."},{"$f":"IF(+'[1]EXT(T)'!R30=\"\",\"\",+'[1]EXT(T)'!R30)","v":"n.d."},{"$f":"IF(+'[1]EXT(T)'!S30=\"\",\"\",+'[1]EXT(T)'!S30)","v":"n.d."},{"$f":"IF(+'[1]EXT(T)'!U30=\"\",\"\",+'[1]EXT(T)'!U30)","v":"n.d."},{"$f":"IF(+'[1]EXT(T)'!V30=\"\",\"\",+'[1]EXT(T)'!V30)","v":"n.d."},{"$f":"IF(+'[1]EXT(T)'!W30=\"\",\"\",+'[1]EXT(T)'!W30)","v":"n.d."},{"$f":"IF(+'[1]EXT(T)'!X30=\"\",\"\",+'[1]EXT(T)'!X30)","v":"n.d."},{"$f":"IF(+'[1]EXT(T)'!Y30=\"\",\"\",+'[1]EXT(T)'!Y30)","v":"n.d."},{"$f":"IF(+'[1]EXT(T)'!Z30=\"\",\"\",+'[1]EXT(T)'!Z30)","v":"n.d."},{"$f":"IF(+'[1]EXT(T)'!AA30=\"\",\"\",+'[1]EXT(T)'!AA30)","v":"n.d."},{"$f":"IF(+'[1]EXT(T)'!AB30=\"\",\"\",+'[1]EXT(T)'!AB30)","v":"n.d."},{"$f":"IF(+'[1]EXT(T)'!AC30=\"\",\"\",+'[1]EXT(T)'!AC30)","v":"n.d."},{"$f":"IF(+'[1]EXT(T)'!AE30=\"\",\"\",+'[1]EXT(T)'!AE30)","v":"n.d."},{"$f":"IF(+'[1]EXT(T)'!AF30=\"\",\"\",+'[1]EXT(T)'!AF30)","v":"n.d."},{"$f":"IF(+'[1]EXT(T)'!AY30=\"\",\"\",+'[1]EXT(T)'!AY30)","v":"n.d."},{"$f":"IF(+'[1]EXT(T)'!AZ30=\"\",\"\",+'[1]EXT(T)'!AZ30)","v":"n.d."},"n.d.",{"$f":"IF(+'[1]EXT(T)'!AR30=\"\",\"\",+'[1]EXT(T)'!AR30)","v":242.7},{"$f":"IF(+'[1]EXT(T)'!AS30=\"\",\"\",+'[1]EXT(T)'!AS30)","v":90.727499999999992},"n.d.","n.d.","n.d.","n.d.","n.d.","n.d."]
[null,"II",{"$f":"IF(+'[1]EXT(T)'!M31=\"\",\"\",+'[1]EXT(T)'!M31)","v":"n.d."},{"$f":"IF(+'[1]EXT(T)'!N31=\"\",\"\",+'[1]EXT(T)'!N31)","v":"n.d."},{"$f":"IF(+'[1]EXT(T)'!O31=\"\",\"\",+'[1]EXT(T)'!O31)","v":"n.d."},{"$f":"IF(+'[1]EXT(T)'!P31=\"\",\"\",+'[1]EXT(T)'!P31)","v":"n.d."},{"$f":"IF(+'[1]EXT(T)'!Q31=\"\",\"\",+'[1]EXT(T)'!Q31)","v":"n.d."},{"$f":"IF(+'[1]EXT(T)'!R31=\"\",\"\",+'[1]EXT(T)'!R31)","v":"n.d."},{"$f":"IF(+'[1]EXT(T)'!S31=\"\",\"\",+'[1]EXT(T)'!S31)","v":"n.d."},{"$f":"IF(+'[1]EXT(T)'!U31=\"\",\"\",+'[1]EXT(T)'!U31)","v":"n.d."},{"$f":"IF(+'[1]EXT(T)'!V31=\"\",\"\",+'[1]EXT(T)'!V31)","v":"n.d."},{"$f":"IF(+'[1]EXT(T)'!W31=\"\",\"\",+'[1]EXT(T)'!W31)","v":"n.d."},{"$f":"IF(+'[1]EXT(T)'!X31=\"\",\"\",+'[1]EXT(T)'!X31)","v":"n.d."},{"$f":"IF(+'[1]EXT(T)'!Y31=\"\",\"\",+'[1]EXT(T)'!Y31)","v":"n.d."},{"$f":"IF(+'[1]EXT(T)'!Z31=\"\",\"\",+'[1]EXT(T)'!Z31)","v":"n.d."},{"$f":"IF(+'[1]EXT(T)'!AA31=\"\",\"\",+'[1]EXT(T)'!AA31)","v":"n.d."},{"$f":"IF(+'[1]EXT(T)'!AB31=\"\",\"\",+'[1]EXT(T)'!AB31)","v":"n.d."},{"$f":"IF(+'[1]EXT(T)'!AC31=\"\",\"\",+'[1]EXT(T)'!AC31)","v":"n.d."},{"$f":"IF(+'[1]EXT(T)'!AE31=\"\",\"\",+'[1]EXT(T)'!AE31)","v":"n.d."},{"$f":"IF(+'[1]EXT(T)'!AF31=\"\",\"\",+'[1]EXT(T)'!AF31)","v":"n.d."},{"$f":"IF(+'[1]EXT(T)'!AY31=\"\",\"\",+'[1]EXT(T)'!AY31)","v":"n.d."},{"$f":"IF(+'[1]EXT(T)'!AZ31=\"\",\"\",+'[1]EXT(T)'!AZ31)","v":"n.d."},"n.d.",{"$f":"IF(+'[1]EXT(T)'!AR31=\"\",\"\",+'[1]EXT(T)'!AR31-'[1]EXT(T)'!AR30)","v":265.90000000000003},{"$f":"IF(+'[1]EXT(T)'!AS31=\"\",\"\",+'[1]EXT(T)'!AS31-'[1]EXT(T)'!AS30)","v":114.87860000000001},"n.d.","n.d.","n.d.","n.d.","n.d.","n.d."]
[null,"III",{"$f":"IF(+'[1]EXT(T)'!M32=\"\",\"\",+'[1]EXT(T)'!M32)","v":"n.d."},{"$f":"IF(+'[1]EXT(T)'!N32=\"\",\"\",+'[1]EXT(T)'!N32)","v":"n.d."},{"$f":"IF(+'[1]EXT(T)'!O32=\"\",\"\",+'[1]EXT(T)'!O32)","v":"n.d."},{"$f":"IF(+'[1]EXT(T)'!P32=\"\",\"\",+'[1]EXT(T)'!P32)","v":"n.d."},{"$f":"IF(+'[1]EXT(T)'!Q32=\"\",\"\",+'[1]EXT(T)'!Q32)","v":"n.d."},{"$f":"IF(+'[1]EXT(T)'!R32=\"\",\"\",+'[1]EXT(T)'!R32)","v":"n.d."},{"$f":"IF(+'[1]EXT(T)'!S32=\"\",\"\",+'[1]EXT(T)'!S32)","v":"n.d."},{"$f":"IF(+'[1]EXT(T)'!U32=\"\",\"\",+'[1]EXT(T)'!U32)","v":"n.d."},{"$f":"IF(+'[1]EXT(T)'!V32=\"\",\"\",+'[1]EXT(T)'!V32)","v":"n.d."},{"$f":"IF(+'[1]EXT(T)'!W32=\"\",\"\",+'[1]EXT(T)'!W32)","v":"n.d."},{"$f":"IF(+'[1]EXT(T)'!X32=\"\",\"\",+'[1]EXT(T)'!X32)","v":"n.d."},{"$f":"IF(+'[1]EXT(T)'!Y32=\"\",\"\",+'[1]EXT(T)'!Y32)","v":"n.d."},{"$f":"IF(+'[1]EXT(T)'!Z32=\"\",\"\",+'[1]EXT(T)'!Z32)","v":"n.d."},{"$f":"IF(+'[1]EXT(T)'!AA32=\"\",\"\",+'[1]EXT(T)'!AA32)","v":"n.d."},{"$f":"IF(+'[1]EXT(T)'!AB32=\"\",\"\",+'[1]EXT(T)'!AB32)","v":"n.d."},{"$f":"IF(+'[1]EXT(T)'!AC32=\"\",\"\",+'[1]EXT(T)'!AC32)","v":"n.d."},{"$f":"IF(+'[1]EXT(T)'!AE32=\"\",\"\",+'[1]EXT(T)'!AE32)","v":"n.d."},{"$f":"IF(+'[1]EXT(T)'!AF32=\"\",\"\",+'[1]EXT(T)'!AF32)","v":"n.d."},{"$f":"IF(+'[1]EXT(T)'!AY32=\"\",\"\",+'[1]EXT(T)'!AY32)","v":"n.d."},{"$f":"IF(+'[1]EXT(T)'!AZ32=\"\",\"\",+'[1]EXT(T)'!AZ32)","v":"n.d."},"n.d.",{"$f":"IF(+'[1]EXT(T)'!AR32=\"\",\"\",+'[1]EXT(T)'!AR32-'[1]EXT(T)'!AR31)","v":268.70000000000005},{"$f":"IF(+'[1]EXT(T)'!AS32=\"\",\"\",+'[1]EXT(T)'!AS32-'[1]EXT(T)'!AS31)","v":108.24109999999999},"n.d.","n.d.","n.d.","n.d.","n.d.","n.d."]
[null,"IV",{"$f":"IF(+'[1]EXT(T)'!M33=\"\",\"\",+'[1]EXT(T)'!M33)","v":"n.d."},{"$f":"IF(+'[1]EXT(T)'!N33=\"\",\"\",+'[1]EXT(T)'!N33)","v":"n.d."},{"$f":"IF(+'[1]EXT(T)'!O33=\"\",\"\",+'[1]EXT(T)'!O33)","v":"n.d."},{"$f":"IF(+'[1]EXT(T)'!P33=\"\",\"\",+'[1]EXT(T)'!P33)","v":"n.d."},{"$f":"IF(+'[1]EXT(T)'!Q33=\"\",\"\",+'[1]EXT(T)'!Q33)","v":"n.d."},{"$f":"IF(+'[1]EXT(T)'!R33=\"\",\"\",+'[1]EXT(T)'!R33)","v":"n.d."},{"$f":"IF(+'[1]EXT(T)'!S33=\"\",\"\",+'[1]EXT(T)'!S33)","v":"n.d."},{"$f":"IF(+'[1]EXT(T)'!U33=\"\",\"\",+'[1]EXT(T)'!U33)","v":"n.d."},{"$f":"IF(+'[1]EXT(T)'!V33=\"\",\"\",+'[1]EXT(T)'!V33)","v":"n.d."},{"$f":"IF(+'[1]EXT(T)'!W33=\"\",\"\",+'[1]EXT(T)'!W33)","v":"n.d."},{"$f":"IF(+'[1]EXT(T)'!X33=\"\",\"\",+'[1]EXT(T)'!X33)","v":"n.d."},{"$f":"IF(+'[1]EXT(T)'!Y33=\"\",\"\",+'[1]EXT(T)'!Y33)","v":"n.d."},{"$f":"IF(+'[1]EXT(T)'!Z33=\"\",\"\",+'[1]EXT(T)'!Z33)","v":"n.d."},{"$f":"IF(+'[1]EXT(T)'!AA33=\"\",\"\",+'[1]EXT(T)'!AA33)","v":"n.d."},{"$f":"IF(+'[1]EXT(T)'!AB33=\"\",\"\",+'[1]EXT(T)'!AB33)","v":"n.d."},{"$f":"IF(+'[1]EXT(T)'!AC33=\"\",\"\",+'[1]EXT(T)'!AC33)","v":"n.d."},{"$f":"IF(+'[1]EXT(T)'!AE33=\"\",\"\",+'[1]EXT(T)'!AE33)","v":"n.d."},{"$f":"IF(+'[1]EXT(T)'!AF33=\"\",\"\",+'[1]EXT(T)'!AF33)","v":"n.d."},{"$f":"IF(+'[1]EXT(T)'!AY33=\"\",\"\",+'[1]EXT(T)'!AY33)","v":"n.d."},{"$f":"IF(+'[1]EXT(T)'!AZ33=\"\",\"\",+'[1]EXT(T)'!AZ33)","v":"n.d."},"n.d.",{"$f":"IF(+'[1]EXT(T)'!AR33=\"\",\"\",+'[1]EXT(T)'!AR33-'[1]EXT(T)'!AR32)","v":284.10000000000002},{"$f":"IF(+'[1]EXT(T)'!AS33=\"\",\"\",+'[1]EXT(T)'!AS33-'[1]EXT(T)'!AS32)","v":102.60829999999999},"n.d.","n.d.","n.d.","n.d.","n.d.","n.d."]
[1996,"I",{"$f":"IF(+'[1]EXT(T)'!M34=\"\",\"\",+'[1]EXT(T)'!M34)","v":"n.d."},{"$f":"IF(+'[1]EXT(T)'!N34=\"\",\"\",+'[1]EXT(T)'!N34)","v":"n.d."},{"$f":"IF(+'[1]EXT(T)'!O34=\"\",\"\",+'[1]EXT(T)'!O34)","v":"n.d."},{"$f":"IF(+'[1]EXT(T)'!P34=\"\",\"\",+'[1]EXT(T)'!P34)","v":"n.d."},{"$f":"IF(+'[1]EXT(T)'!Q34=\"\",\"\",+'[1]EXT(T)'!Q34)","v":"n.d."},{"$f":"IF(+'[1]EXT(T)'!R34=\"\",\"\",+'[1]EXT(T)'!R34)","v":"n.d."},{"$f":"IF(+'[1]EXT(T)'!S34=\"\",\"\",+'[1]EXT(T)'!S34)","v":"n.d."},{"$f":"IF(+'[1]EXT(T)'!U34=\"\",\"\",+'[1]EXT(T)'!U34)","v":"n.d."},{"$f":"IF(+'[1]EXT(T)'!V34=\"\",\"\",+'[1]EXT(T)'!V34)","v":"n.d."},{"$f":"IF(+'[1]EXT(T)'!W34=\"\",\"\",+'[1]EXT(T)'!W34)","v":"n.d."},{"$f":"IF(+'[1]EXT(T)'!X34=\"\",\"\",+'[1]EXT(T)'!X34)","v":"n.d."},{"$f":"IF(+'[1]EXT(T)'!Y34=\"\",\"\",+'[1]EXT(T)'!Y34)","v":"n.d."},{"$f":"IF(+'[1]EXT(T)'!Z34=\"\",\"\",+'[1]EXT(T)'!Z34)","v":"n.d."},{"$f":"IF(+'[1]EXT(T)'!AA34=\"\",\"\",+'[1]EXT(T)'!AA34)","v":"n.d."},{"$f":"IF(+'[1]EXT(T)'!AB34=\"\",\"\",+'[1]EXT(T)'!AB34)","v":"n.d."},{"$f":"IF(+'[1]EXT(T)'!AC34=\"\",\"\",+'[1]EXT(T)'!AC34)","v":"n.d."},{"$f":"IF(+'[1]EXT(T)'!AE34=\"\",\"\",+'[1]EXT(T)'!AE34)","v":"n.d."},{"$f":"IF(+'[1]EXT(T)'!AF34=\"\",\"\",+'[1]EXT(T)'!AF34)","v":"n.d."},{"$f":"IF(+'[1]EXT(T)'!AY34=\"\",\"\",+'[1]EXT(T)'!AY34)","v":"n.d."},{"$f":"IF(+'[1]EXT(T)'!AZ34=\"\",\"\",+'[1]EXT(T)'!AZ34)","v":"n.d."},"n.d.",{"$f":"IF(+'[1]EXT(T)'!AR34=\"\",\"\",+'[1]EXT(T)'!AR34)","v":254.2},{"$f":"IF(+'[1]EXT(T)'!AS34=\"\",\"\",+'[1]EXT(T)'!AS34)","v":90.762900000000002},"n.d.","n.d.","n.d.","n.d.","n.d.","n.d."]
[null,"II",{"$f":"IF(+'[1]EXT(T)'!M35=\"\",\"\",+'[1]EXT(T)'!M35)","v":"n.d."},{"$f":"IF(+'[1]EXT(T)'!N35=\"\",\"\",+'[1]EXT(T)'!N35)","v":"n.d."},{"$f":"IF(+'[1]EXT(T)'!O35=\"\",\"\",+'[1]EXT(T)'!O35)","v":"n.d."},{"$f":"IF(+'[1]EXT(T)'!P35=\"\",\"\",+'[1]EXT(T)'!P35)","v":"n.d."},{"$f":"IF(+'[1]EXT(T)'!Q35=\"\",\"\",+'[1]EXT(T)'!Q35)","v":"n.d."},{"$f":"IF(+'[1]EXT(T)'!R35=\"\",\"\",+'[1]EXT(T)'!R35)","v":"n.d."},{"$f":"IF(+'[1]EXT(T)'!S35=\"\",\"\",+'[1]EXT(T)'!S35)","v":"n.d."},{"$f":"IF(+'[1]EXT(T)'!U35=\"\",\"\",+'[1]EXT(T)'!U35)","v":"n.d."},{"$f":"IF(+'[1]EXT(T)'!V35=\"\",\"\",+'[1]EXT(T)'!V35)","v":"n.d."},{"$f":"IF(+'[1]EXT(T)'!W35=\"\",\"\",+'[1]EXT(T)'!W35)","v":"n.d."},{"$f":"IF(+'[1]EXT(T)'!X35=\"\",\"\",+'[1]EXT(T)'!X35)","v":"n.d."},{"$f":"IF(+'[1]EXT(T)'!Y35=\"\",\"\",+'[1]EXT(T)'!Y35)","v":"n.d."},{"$f":"IF(+'[1]EXT(T)'!Z35=\"\",\"\",+'[1]EXT(T)'!Z35)","v":"n.d."},{"$f":"IF(+'[1]EXT(T)'!AA35=\"\",\"\",+'[1]EXT(T)'!AA35)","v":"n.d."},{"$f":"IF(+'[1]EXT(T)'!AB35=\"\",\"\",+'[1]EXT(T)'!AB35)","v":"n.d."},{"$f":"IF(+'[1]EXT(T)'!AC35=\"\",\"\",+'[1]EXT(T)'!AC35)","v":"n.d."},{"$f":"IF(+'[1]EXT(T)'!AE35=\"\",\"\",+'[1]EXT(T)'!AE35)","v":"n.d."},{"$f":"IF(+'[1]EXT(T)'!AF35=\"\",\"\",+'[1]EXT(T)'!AF35)","v":"n.d."},{"$f":"IF(+'[1]EXT(T)'!AY35=\"\",\"\",+'[1]EXT(T)'!AY35)","v":"n.d."},{"$f":"IF(+'[1]EXT(T)'!AZ35=\"\",\"\",+'[1]EXT(T)'!AZ35)","v":"n.d."},"n.d.",{"$f":"IF(+'[1]EXT(T)'!AR35=\"\",\"\",+'[1]EXT(T)'!AR35-'[1]EXT(T)'!AR34)","v":271.59999999999997},{"$f":"IF(+'[1]EXT(T)'!AS35=\"\",\"\",+'[1]EXT(T)'!AS35-'[1]EXT(T)'!AS34)","v":80.180299999999988},"n.d.","n.d.","n.d.","n.d.","n.d.","n.d."]
[null,"III",{"$f":"IF(+'[1]EXT(T)'!M36=\"\",\"\",+'[1]EXT(T)'!M36)","v":"n.d."},{"$f":"IF(+'[1]EXT(T)'!N36=\"\",\"\",+'[1]EXT(T)'!N36)","v":"n.d."},{"$f":"IF(+'[1]EXT(T)'!O36=\"\",\"\",+'[1]EXT(T)'!O36)","v":"n.d."},{"$f":"IF(+'[1]EXT(T)'!P36=\"\",\"\",+'[1]EXT(T)'!P36)","v":"n.d."},{"$f":"IF(+'[1]EXT(T)'!Q36=\"\",\"\",+'[1]EXT(T)'!Q36)","v":"n.d."},{"$f":"IF(+'[1]EXT(T)'!R36=\"\",\"\",+'[1]EXT(T)'!R36)","v":"n.d."},{"$f":"IF(+'[1]EXT(T)'!S36=\"\",\"\",+'[1]EXT(T)'!S36)","v":"n.d."},{"$f":"IF(+'[1]EXT(T)'!U36=\"\",\"\",+'[1]EXT(T)'!U36)","v":"n.d."},{"$f":"IF(+'[1]EXT(T)'!V36=\"\",\"\",+'[1]EXT(T)'!V36)","v":"n.d."},{"$f":"IF(+'[1]EXT(T)'!W36=\"\",\"\",+'[1]EXT(T)'!W36)","v":"n.d."},{"$f":"IF(+'[1]EXT(T)'!X36=\"\",\"\",+'[1]EXT(T)'!X36)","v":"n.d."},{"$f":"IF(+'[1]EXT(T)'!Y36=\"\",\"\",+'[1]EXT(T)'!Y36)","v":"n.d."},{"$f":"IF(+'[1]EXT(T)'!Z36=\"\",\"\",+'[1]EXT(T)'!Z36)","v":"n.d."},{"$f":"IF(+'[1]EXT(T)'!AA36=\"\",\"\",+'[1]EXT(T)'!AA36)","v":"n.d."},{"$f":"IF(+'[1]EXT(T)'!AB36=\"\",\"\",+'[1]EXT(T)'!AB36)","v":"n.d."},{"$f":"IF(+'[1]EXT(T)'!AC36=\"\",\"\",+'[1]EXT(T)'!AC36)","v":"n.d."},{"$f":"IF(+'[1]EXT(T)'!AE36=\"\",\"\",+'[1]EXT(T)'!AE36)","v":"n.d."},{"$f":"IF(+'[1]EXT(T)'!AF36=\"\",\"\",+'[1]EXT(T)'!AF36)","v":"n.d."},{"$f":"IF(+'[1]EXT(T)'!AY36=\"\",\"\",+'[1]EXT(T)'!AY36)","v":"n.d."},{"$f":"IF(+'[1]EXT(T)'!AZ36=\"\",\"\",+'[1]EXT(T)'!AZ36)","v":"n.d."},"n.d.",{"$f":"IF(+'[1]EXT(T)'!AR36=\"\",\"\",+'[1]EXT(T)'!AR36-'[1]EXT(T)'!AR35)","v":289.79999999999995},{"$f":"IF(+'[1]EXT(T)'!AS36=\"\",\"\",+'[1]EXT(T)'!AS36-'[1]EXT(T)'!AS35)","v":97.725300000000004},"n.d.","n.d.","n.d.","n.d.","n.d.","n.d."]
[null,"IV",{"$f":"IF(+'[1]EXT(T)'!M37=\"\",\"\",+'[1]EXT(T)'!M37)","v":"n.d."},{"$f":"IF(+'[1]EXT(T)'!N37=\"\",\"\",+'[1]EXT(T)'!N37)","v":"n.d."},{"$f":"IF(+'[1]EXT(T)'!O37=\"\",\"\",+'[1]EXT(T)'!O37)","v":"n.d."},{"$f":"IF(+'[1]EXT(T)'!P37=\"\",\"\",+'[1]EXT(T)'!P37)","v":"n.d."},{"$f":"IF(+'[1]EXT(T)'!Q37=\"\",\"\",+'[1]EXT(T)'!Q37)","v":"n.d."},{"$f":"IF(+'[1]EXT(T)'!R37=\"\",\"\",+'[1]EXT(T)'!R37)","v":"n.d."},{"$f":"IF(+'[1]EXT(T)'!S37=\"\",\"\",+'[1]EXT(T)'!S37)","v":"n.d."},{"$f":"IF(+'[1]EXT(T)'!U37=\"\",\"\",+'[1]EXT(T)'!U37)","v":"n.d."},{"$f":"IF(+'[1]EXT(T)'!V37=\"\",\"\",+'[1]EXT(T)'!V37)","v":"n.d."},{"$f":"IF(+'[1]EXT(T)'!W37=\"\",\"\",+'[1]EXT(T)'!W37)","v":"n.d."},{"$f":"IF(+'[1]EXT(T)'!X37=\"\",\"\",+'[1]EXT(T)'!X37)","v":"n.d."},{"$f":"IF(+'[1]EXT(T)'!Y37=\"\",\"\",+'[1]EXT(T)'!Y37)","v":"n.d."},{"$f":"IF(+'[1]EXT(T)'!Z37=\"\",\"\",+'[1]EXT(T)'!Z37)","v":"n.d."},{"$f":"IF(+'[1]EXT(T)'!AA37=\"\",\"\",+'[1]EXT(T)'!AA37)","v":"n.d."},{"$f":"IF(+'[1]EXT(T)'!AB37=\"\",\"\",+'[1]EXT(T)'!AB37)","v":"n.d."},{"$f":"IF(+'[1]EXT(T)'!AC37=\"\",\"\",+'[1]EXT(T)'!AC37)","v":"n.d."},{"$f":"IF(+'[1]EXT(T)'!AE37=\"\",\"\",+'[1]EXT(T)'!AE37)","v":"n.d."},{"$f":"IF(+'[1]EXT(T)'!AF37=\"\",\"\",+'[1]EXT(T)'!AF37)","v":"n.d."},{"$f":"IF(+'[1]EXT(T)'!AY37=\"\",\"\",+'[1]EXT(T)'!AY37)","v":"n.d."},{"$f":"IF(+'[1]EXT(T)'!AZ37=\"\",\"\",+'[1]EXT(T)'!AZ37)","v":"n.d."},"n.d.",{"$f":"IF(+'[1]EXT(T)'!AR37=\"\",\"\",+'[1]EXT(T)'!AR37-'[1]EXT(T)'!AR36)","v":270.90000000000009},{"$f":"IF(+'[1]EXT(T)'!AS37=\"\",\"\",+'[1]EXT(T)'!AS37-'[1]EXT(T)'!AS36)","v":106.74930000000001},"n.d.","n.d.","n.d.","n.d.","n.d.","n.d."]
[1997,"I",{"$f":"IF(+'[1]EXT(T)'!M38=\"\",\"\",+'[1]EXT(T)'!M38)","v":"n.d."},{"$f":"IF(+'[1]EXT(T)'!N38=\"\",\"\",+'[1]EXT(T)'!N38)","v":"n.d."},{"$f":"IF(+'[1]EXT(T)'!O38=\"\",\"\",+'[1]EXT(T)'!O38)","v":"n.d."},{"$f":"IF(+'[1]EXT(T)'!P38=\"\",\"\",+'[1]EXT(T)'!P38)","v":"n.d."},{"$f":"IF(+'[1]EXT(T)'!Q38=\"\",\"\",+'[1]EXT(T)'!Q38)","v":"n.d."},{"$f":"IF(+'[1]EXT(T)'!R38=\"\",\"\",+'[1]EXT(T)'!R38)","v":"n.d."},{"$f":"IF(+'[1]EXT(T)'!S38=\"\",\"\",+'[1]EXT(T)'!S38)","v":"n.d."},{"$f":"IF(+'[1]EXT(T)'!U38=\"\",\"\",+'[1]EXT(T)'!U38)","v":"n.d."},{"$f":"IF(+'[1]EXT(T)'!V38=\"\",\"\",+'[1]EXT(T)'!V38)","v":"n.d."},{"$f":"IF(+'[1]EXT(T)'!W38=\"\",\"\",+'[1]EXT(T)'!W38)","v":"n.d."},{"$f":"IF(+'[1]EXT(T)'!X38=\"\",\"\",+'[1]EXT(T)'!X38)","v":"n.d."},{"$f":"IF(+'[1]EXT(T)'!Y38=\"\",\"\",+'[1]EXT(T)'!Y38)","v":"n.d."},{"$f":"IF(+'[1]EXT(T)'!Z38=\"\",\"\",+'[1]EXT(T)'!Z38)","v":"n.d."},{"$f":"IF(+'[1]EXT(T)'!AA38=\"\",\"\",+'[1]EXT(T)'!AA38)","v":"n.d."},{"$f":"IF(+'[1]EXT(T)'!AB38=\"\",\"\",+'[1]EXT(T)'!AB38)","v":"n.d."},{"$f":"IF(+'[1]EXT(T)'!AC38=\"\",\"\",+'[1]EXT(T)'!AC38)","v":"n.d."},{"$f":"IF(+'[1]EXT(T)'!AE38=\"\",\"\",+'[1]EXT(T)'!AE38)","v":"n.d."},{"$f":"IF(+'[1]EXT(T)'!AF38=\"\",\"\",+'[1]EXT(T)'!AF38)","v":"n.d."},{"$f":"IF(+'[1]EXT(T)'!AY38=\"\",\"\",+'[1]EXT(T)'!AY38)","v":"n.d."},{"$f":"IF(+'[1]EXT(T)'!AZ38=\"\",\"\",+'[1]EXT(T)'!AZ38)","v":"n.d."},"n.d.",{"$f":"IF(+'[1]EXT(T)'!AR38=\"\",\"\",+'[1]EXT(T)'!AR38)","v":251.2},{"$f":"IF(+'[1]EXT(T)'!AS38=\"\",\"\",+'[1]EXT(T)'!AS38)","v":85.095500000000001},"n.d.","n.d.","n.d.","n.d.","n.d.","n.d."]
[null,"II",{"$f":"IF(+'[1]EXT(T)'!M39=\"\",\"\",+'[1]EXT(T)'!M39)","v":"n.d."},{"$f":"IF(+'[1]EXT(T)'!N39=\"\",\"\",+'[1]EXT(T)'!N39)","v":"n.d."},{"$f":"IF(+'[1]EXT(T)'!O39=\"\",\"\",+'[1]EXT(T)'!O39)","v":"n.d."},{"$f":"IF(+'[1]EXT(T)'!P39=\"\",\"\",+'[1]EXT(T)'!P39)","v":"n.d."},{"$f":"IF(+'[1]EXT(T)'!Q39=\"\",\"\",+'[1]EXT(T)'!Q39)","v":"n.d."},{"$f":"IF(+'[1]EXT(T)'!R39=\"\",\"\",+'[1]EXT(T)'!R39)","v":"n.d."},{"$f":"IF(+'[1]EXT(T)'!S39=\"\",\"\",+'[1]EXT(T)'!S39)","v":"n.d."},{"$f":"IF(+'[1]EXT(T)'!U39=\"\",\"\",+'[1]EXT(T)'!U39)","v":"n.d."},{"$f":"IF(+'[1]EXT(T)'!V39=\"\",\"\",+'[1]EXT(T)'!V39)","v":"n.d."},{"$f":"IF(+'[1]EXT(T)'!W39=\"\",\"\",+'[1]EXT(T)'!W39)","v":"n.d."},{"$f":"IF(+'[1]EXT(T)'!X39=\"\",\"\",+'[1]EXT(T)'!X39)","v":"n.d."},{"$f":"IF(+'[1]EXT(T)'!Y39=\"\",\"\",+'[1]EXT(T)'!Y39)","v":"n.d."},{"$f":"IF(+'[1]EXT(T)'!Z39=\"\",\"\",+'[1]EXT(T)'!Z39)","v":"n.d."},{"$f":"IF(+'[1]EXT(T)'!AA39=\"\",\"\",+'[1]EXT(T)'!AA39)","v":"n.d."},{"$f":"IF(+'[1]EXT(T)'!AB39=\"\",\"\",+'[1]EXT(T)'!AB39)","v":"n.d."},{"$f":"IF(+'[1]EXT(T)'!AC39=\"\",\"\",+'[1]EXT(T)'!AC39)","v":"n.d."},{"$f":"IF(+'[1]EXT(T)'!AE39=\"\",\"\",+'[1]EXT(T)'!AE39)","v":"n.d."},{"$f":"IF(+'[1]EXT(T)'!AF39=\"\",\"\",+'[1]EXT(T)'!AF39)","v":"n.d."},{"$f":"IF(+'[1]EXT(T)'!AY39=\"\",\"\",+'[1]EXT(T)'!AY39)","v":"n.d."},{"$f":"IF(+'[1]EXT(T)'!AZ39=\"\",\"\",+'[1]EXT(T)'!AZ39)","v":"n.d."},"n.d.",{"$f":"IF(+'[1]EXT(T)'!AR39=\"\",\"\",+'[1]EXT(T)'!AR39-'[1]EXT(T)'!AR38)","v":310.99999999999994},{"$f":"IF(+'[1]EXT(T)'!AS39=\"\",\"\",+'[1]EXT(T)'!AS39-'[1]EXT(T)'!AS38)","v":100.3942},"n.d.","n.d.","n.d.","n.d.","n.d.","n.d."]
[null,"III",{"$f":"IF(+'[1]EXT(T)'!M40=\"\",\"\",+'[1]EXT(T)'!M40)","v":"n.d."},{"$f":"IF(+'[1]EXT(T)'!N40=\"\",\"\",+'[1]EXT(T)'!N40)","v":"n.d."},{"$f":"IF(+'[1]EXT(T)'!O40=\"\",\"\",+'[1]EXT(T)'!O40)","v":"n.d."},{"$f":"IF(+'[1]EXT(T)'!P40=\"\",\"\",+'[1]EXT(T)'!P40)","v":"n.d."},{"$f":"IF(+'[1]EXT(T)'!Q40=\"\",\"\",+'[1]EXT(T)'!Q40)","v":"n.d."},{"$f":"IF(+'[1]EXT(T)'!R40=\"\",\"\",+'[1]EXT(T)'!R40)","v":"n.d."},{"$f":"IF(+'[1]EXT(T)'!S40=\"\",\"\",+'[1]EXT(T)'!S40)","v":"n.d."},{"$f":"IF(+'[1]EXT(T)'!U40=\"\",\"\",+'[1]EXT(T)'!U40)","v":"n.d."},{"$f":"IF(+'[1]EXT(T)'!V40=\"\",\"\",+'[1]EXT(T)'!V40)","v":"n.d."},{"$f":"IF(+'[1]EXT(T)'!W40=\"\",\"\",+'[1]EXT(T)'!W40)","v":"n.d."},{"$f":"IF(+'[1]EXT(T)'!X40=\"\",\"\",+'[1]EXT(T)'!X40)","v":"n.d."},{"$f":"IF(+'[1]EXT(T)'!Y40=\"\",\"\",+'[1]EXT(T)'!Y40)","v":"n.d."},{"$f":"IF(+'[1]EXT(T)'!Z40=\"\",\"\",+'[1]EXT(T)'!Z40)","v":"n.d."},{"$f":"IF(+'[1]EXT(T)'!AA40=\"\",\"\",+'[1]EXT(T)'!AA40)","v":"n.d."},{"$f":"IF(+'[1]EXT(T)'!AB40=\"\",\"\",+'[1]EXT(T)'!AB40)","v":"n.d."},{"$f":"IF(+'[1]EXT(T)'!AC40=\"\",\"\",+'[1]EXT(T)'!AC40)","v":"n.d."},{"$f":"IF(+'[1]EXT(T)'!AE40=\"\",\"\",+'[1]EXT(T)'!AE40)","v":"n.d."},{"$f":"IF(+'[1]EXT(T)'!AF40=\"\",\"\",+'[1]EXT(T)'!AF40)","v":"n.d."},{"$f":"IF(+'[1]EXT(T)'!AY40=\"\",\"\",+'[1]EXT(T)'!AY40)","v":"n.d."},{"$f":"IF(+'[1]EXT(T)'!AZ40=\"\",\"\",+'[1]EXT(T)'!AZ40)","v":"n.d."},"n.d.",{"$f":"IF(+'[1]EXT(T)'!AR40=\"\",\"\",+'[1]EXT(T)'!AR40-'[1]EXT(T)'!AR39)","v":321.10000000000002},{"$f":"IF(+'[1]EXT(T)'!AS40=\"\",\"\",+'[1]EXT(T)'!AS40-'[1]EXT(T)'!AS39)","v":105.59490000000002},"n.d.","n.d.","n.d.","n.d.","n.d.","n.d."]
[null,"IV",{"$f":"IF(+'[1]EXT(T)'!M41=\"\",\"\",+'[1]EXT(T)'!M41)","v":"n.d."},{"$f":"IF(+'[1]EXT(T)'!N41=\"\",\"\",+'[1]EXT(T)'!N41)","v":"n.d."},{"$f":"IF(+'[1]EXT(T)'!O41=\"\",\"\",+'[1]EXT(T)'!O41)","v":"n.d."},{"$f":"IF(+'[1]EXT(T)'!P41=\"\",\"\",+'[1]EXT(T)'!P41)","v":"n.d."},{"$f":"IF(+'[1]EXT(T)'!Q41=\"\",\"\",+'[1]EXT(T)'!Q41)","v":"n.d."},{"$f":"IF(+'[1]EXT(T)'!R41=\"\",\"\",+'[1]EXT(T)'!R41)","v":"n.d."},{"$f":"IF(+'[1]EXT(T)'!S41=\"\",\"\",+'[1]EXT(T)'!S41)","v":"n.d."},{"$f":"IF(+'[1]EXT(T)'!U41=\"\",\"\",+'[1]EXT(T)'!U41)","v":"n.d."},{"$f":"IF(+'[1]EXT(T)'!V41=\"\",\"\",+'[1]EXT(T)'!V41)","v":"n.d."},{"$f":"IF(+'[1]EXT(T)'!W41=\"\",\"\",+'[1]EXT(T)'!W41)","v":"n.d."},{"$f":"IF(+'[1]EXT(T)'!X41=\"\",\"\",+'[1]EXT(T)'!X41)","v":"n.d."},{"$f":"IF(+'[1]EXT(T)'!Y41=\"\",\"\",+'[1]EXT(T)'!Y41)","v":"n.d."},{"$f":"IF(+'[1]EXT(T)'!Z41=\"\",\"\",+'[1]EXT(T)'!Z41)","v":"n.d."},{"$f":"IF(+'[1]EXT(T)'!AA41=\"\",\"\",+'[1]EXT(T)'!AA41)","v":"n.d."},{"$f":"IF(+'[1]EXT(T)'!AB41=\"\",\"\",+'[1]EXT(T)'!AB41)","v":"n.d."},{"$f":"IF(+'[1]EXT(T)'!AC41=\"\",\"\",+'[1]EXT(T)'!AC41)","v":"n.d."},{"$f":"IF(+'[1]EXT(T)'!AE41=\"\",\"\",+'[1]EXT(T)'!AE41)","v":"n.d."},{"$f":"IF(+'[1]EXT(T)'!AF41=\"\",\"\",+'[1]EXT(T)'!AF41)","v":"n.d."},{"$f":"IF(+'[1]EXT(T)'!AY41=\"\",\"\",+'[1]EXT(T)'!AY41)","v":"n.d."},{"$f":"IF(+'[1]EXT(T)'!AZ41=\"\",\"\",+'[1]EXT(T)'!AZ41)","v":"n.d."},"n.d.",{"$f":"IF(+'[1]EXT(T)'!AR41=\"\",\"\",+'[1]EXT(T)'!AR41-'[1]EXT(T)'!AR40)","v":316.19999999999982},{"$f":"IF(+'[1]EXT(T)'!AS41=\"\",\"\",+'[1]EXT(T)'!AS41-'[1]EXT(T)'!AS40)","v":116.91210000000001},"n.d.","n.d.","n.d.","n.d.","n.d.","n.d."]
[1998,"I",{"$f":"IF(+'[1]EXT(T)'!M42=\"\",\"\",+'[1]EXT(T)'!M42)","v":"n.d."},{"$f":"IF(+'[1]EXT(T)'!N42=\"\",\"\",+'[1]EXT(T)'!N42)","v":"n.d."},{"$f":"IF(+'[1]EXT(T)'!O42=\"\",\"\",+'[1]EXT(T)'!O42)","v":"n.d."},{"$f":"IF(+'[1]EXT(T)'!P42=\"\",\"\",+'[1]EXT(T)'!P42)","v":"n.d."},{"$f":"IF(+'[1]EXT(T)'!Q42=\"\",\"\",+'[1]EXT(T)'!Q42)","v":"n.d."},{"$f":"IF(+'[1]EXT(T)'!R42=\"\",\"\",+'[1]EXT(T)'!R42)","v":"n.d."},{"$f":"IF(+'[1]EXT(T)'!S42=\"\",\"\",+'[1]EXT(T)'!S42)","v":116.2},{"$f":"IF(+'[1]EXT(T)'!U42=\"\",\"\",+'[1]EXT(T)'!U42)","v":"n.d."},{"$f":"IF(+'[1]EXT(T)'!V42=\"\",\"\",+'[1]EXT(T)'!V42)","v":"n.d."},{"$f":"IF(+'[1]EXT(T)'!W42=\"\",\"\",+'[1]EXT(T)'!W42)","v":"n.d."},{"$f":"IF(+'[1]EXT(T)'!X42=\"\",\"\",+'[1]EXT(T)'!X42)","v":"n.d."},{"$f":"IF(+'[1]EXT(T)'!Y42=\"\",\"\",+'[1]EXT(T)'!Y42)","v":"n.d."},{"$f":"IF(+'[1]EXT(T)'!Z42=\"\",\"\",+'[1]EXT(T)'!Z42)","v":"n.d."},{"$f":"IF(+'[1]EXT(T)'!AA42=\"\",\"\",+'[1]EXT(T)'!AA42)","v":"n.d."},{"$f":"IF(+'[1]EXT(T)'!AB42=\"\",\"\",+'[1]EXT(T)'!AB42)","v":"n.d."},{"$f":"IF(+'[1]EXT(T)'!AC42=\"\",\"\",+'[1]EXT(T)'!AC42)","v":116.2},{"$f":"IF(+'[1]EXT(T)'!AE42=\"\",\"\",+'[1]EXT(T)'!AE42)","v":"n.d."},{"$f":"IF(+'[1]EXT(T)'!AF42=\"\",\"\",+'[1]EXT(T)'!AF42)","v":"n.d."},{"$f":"IF(+'[1]EXT(T)'!AY42=\"\",\"\",+'[1]EXT(T)'!AY42)","v":"n.d."},{"$f":"IF(+'[1]EXT(T)'!AZ42=\"\",\"\",+'[1]EXT(T)'!AZ42)","v":"n.d."},"n.d.",{"$f":"IF(+'[1]EXT(T)'!AR42=\"\",\"\",+'[1]EXT(T)'!AR42)","v":295.7},{"$f":"IF(+'[1]EXT(T)'!AS42=\"\",\"\",+'[1]EXT(T)'!AS42)","v":108.2561},{"$f":"IF(+'[1]EXT(T)'!AT42=\"\",\"\",+'[1]EXT(T)'!AT42)","v":41.665372813721987},"n.d.",{"$f":"IF(+'[1]EXT(T)'!AV42=\"\",\"\",+'[1]EXT(T)'!AV42)","v":269.39999999999998},"n.d.","n.d.","n.d."]
[null,"II",{"$f":"IF(+'[1]EXT(T)'!M43=\"\",\"\",+'[1]EXT(T)'!M43)","v":"n.d."},{"$f":"IF(+'[1]EXT(T)'!N43=\"\",\"\",+'[1]EXT(T)'!N43)","v":"n.d."},{"$f":"IF(+'[1]EXT(T)'!O43=\"\",\"\",+'[1]EXT(T)'!O43)","v":"n.d."},{"$f":"IF(+'[1]EXT(T)'!P43=\"\",\"\",+'[1]EXT(T)'!P43)","v":"n.d."},{"$f":"IF(+'[1]EXT(T)'!Q43=\"\",\"\",+'[1]EXT(T)'!Q43)","v":"n.d."},{"$f":"IF(+'[1]EXT(T)'!R43=\"\",\"\",+'[1]EXT(T)'!R43)","v":"n.d."},{"$f":"IF(+'[1]EXT(T)'!S43=\"\",\"\",+'[1]EXT(T)'!S43)","v":110.4},{"$f":"IF(+'[1]EXT(T)'!U43=\"\",\"\",+'[1]EXT(T)'!U43)","v":"n.d."},{"$f":"IF(+'[1]EXT(T)'!V43=\"\",\"\",+'[1]EXT(T)'!V43)","v":"n.d."},{"$f":"IF(+'[1]EXT(T)'!W43=\"\",\"\",+'[1]EXT(T)'!W43)","v":"n.d."},{"$f":"IF(+'[1]EXT(T)'!X43=\"\",\"\",+'[1]EXT(T)'!X43)","v":"n.d."},{"$f":"IF(+'[1]EXT(T)'!Y43=\"\",\"\",+'[1]EXT(T)'!Y43)","v":"n.d."},{"$f":"IF(+'[1]EXT(T)'!Z43=\"\",\"\",+'[1]EXT(T)'!Z43)","v":"n.d."},{"$f":"IF(+'[1]EXT(T)'!AA43=\"\",\"\",+'[1]EXT(T)'!AA43)","v":"n.d."},{"$f":"IF(+'[1]EXT(T)'!AB43=\"\",\"\",+'[1]EXT(T)'!AB43)","v":"n.d."},{"$f":"IF(+'[1]EXT(T)'!AC43=\"\",\"\",+'[1]EXT(T)'!AC43)","v":226.60000000000002},{"$f":"IF(+'[1]EXT(T)'!AE43=\"\",\"\",+'[1]EXT(T)'!AE43)","v":"n.d."},{"$f":"IF(+'[1]EXT(T)'!AF43=\"\",\"\",+'[1]EXT(T)'!AF43)","v":"n.d."},{"$f":"IF(+'[1]EXT(T)'!AY43=\"\",\"\",+'[1]EXT(T)'!AY43)","v":"n.d."},{"$f":"IF(+'[1]EXT(T)'!AZ43=\"\",\"\",+'[1]EXT(T)'!AZ43)","v":"n.d."},"n.d.",{"$f":"IF(+'[1]EXT(T)'!AR43=\"\",\"\",+'[1]EXT(T)'!AR43-'[1]EXT(T)'!AR42)","v":336.89999999999992},{"$f":"IF(+'[1]EXT(T)'!AS43=\"\",\"\",+'[1]EXT(T)'!AS43-'[1]EXT(T)'!AS42)","v":116.66070000000002},{"$f":"IF(+'[1]EXT(T)'!AT43=\"\",\"\",+'[1]EXT(T)'!AT43-'[1]EXT(T)'!AT42)","v":49.888227112008181},"n.d.",{"$f":"IF(+'[1]EXT(T)'!AV43=\"\",\"\",+'[1]EXT(T)'!AV43-'[1]EXT(T)'!AV42)","v":273.39999999999998},"n.d.","n.d.","n.d."]
[null,"III",{"$f":"IF(+'[1]EXT(T)'!M44=\"\",\"\",+'[1]EXT(T)'!M44)","v":"n.d."},{"$f":"IF(+'[1]EXT(T)'!N44=\"\",\"\",+'[1]EXT(T)'!N44)","v":"n.d."},{"$f":"IF(+'[1]EXT(T)'!O44=\"\",\"\",+'[1]EXT(T)'!O44)","v":"n.d."},{"$f":"IF(+'[1]EXT(T)'!P44=\"\",\"\",+'[1]EXT(T)'!P44)","v":"n.d."},{"$f":"IF(+'[1]EXT(T)'!Q44=\"\",\"\",+'[1]EXT(T)'!Q44)","v":"n.d."},{"$f":"IF(+'[1]EXT(T)'!R44=\"\",\"\",+'[1]EXT(T)'!R44)","v":"n.d."},{"$f":"IF(+'[1]EXT(T)'!S44=\"\",\"\",+'[1]EXT(T)'!S44)","v":226.4},{"$f":"IF(+'[1]EXT(T)'!U44=\"\",\"\",+'[1]EXT(T)'!U44)","v":"n.d."},{"$f":"IF(+'[1]EXT(T)'!V44=\"\",\"\",+'[1]EXT(T)'!V44)","v":"n.d."},{"$f":"IF(+'[1]EXT(T)'!W44=\"\",\"\",+'[1]EXT(T)'!W44)","v":"n.d."},{"$f":"IF(+'[1]EXT(T)'!X44=\"\",\"\",+'[1]EXT(T)'!X44)","v":"n.d."},{"$f":"IF(+'[1]EXT(T)'!Y44=\"\",\"\",+'[1]EXT(T)'!Y44)","v":"n.d."},{"$f":"IF(+'[1]EXT(T)'!Z44=\"\",\"\",+'[1]EXT(T)'!Z44)","v":"n.d."},{"$f":"IF(+'[1]EXT(T)'!AA44=\"\",\"\",+'[1]EXT(T)'!AA44)","v":"n.d."},{"$f":"IF(+'[1]EXT(T)'!AB44=\"\",\"\",+'[1]EXT(T)'!AB44)","v":"n.d."},{"$f":"IF(+'[1]EXT(T)'!AC44=\"\",\"\",+'[1]EXT(T)'!AC44)","v":453},{"$f":"IF(+'[1]EXT(T)'!AE44=\"\",\"\",+'[1]EXT(T)'!AE44)","v":"n.d."},{"$f":"IF(+'[1]EXT(T)'!AF44=\"\",\"\",+'[1]EXT(T)'!AF44)","v":"n.d."},{"$f":"IF(+'[1]EXT(T)'!AY44=\"\",\"\",+'[1]EXT(T)'!AY44)","v":"n.d."},{"$f":"IF(+'[1]EXT(T)'!AZ44=\"\",\"\",+'[1]EXT(T)'!AZ44)","v":"n.d."},"n.d.",{"$f":"IF(+'[1]EXT(T)'!AR44=\"\",\"\",+'[1]EXT(T)'!AR44-'[1]EXT(T)'!AR43)","v":345.10000000000014},{"$f":"IF(+'[1]EXT(T)'!AS44=\"\",\"\",+'[1]EXT(T)'!AS44-'[1]EXT(T)'!AS43)","v":113.88240000000002},{"$f":"IF(+'[1]EXT(T)'!AT44=\"\",\"\",+'[1]EXT(T)'!AT44-'[1]EXT(T)'!AT43)","v":55.108254141529898},"n.d.",{"$f":"IF(+'[1]EXT(T)'!AV44=\"\",\"\",+'[1]EXT(T)'!AV44-'[1]EXT(T)'!AV43)","v":306.29999999999995},"n.d.","n.d.","n.d."]
[null,"IV",{"$f":"IF(+'[1]EXT(T)'!M45=\"\",\"\",+'[1]EXT(T)'!M45)","v":"n.d."},{"$f":"IF(+'[1]EXT(T)'!N45=\"\",\"\",+'[1]EXT(T)'!N45)","v":"n.d."},{"$f":"IF(+'[1]EXT(T)'!O45=\"\",\"\",+'[1]EXT(T)'!O45)","v":"n.d."},{"$f":"IF(+'[1]EXT(T)'!P45=\"\",\"\",+'[1]EXT(T)'!P45)","v":"n.d."},{"$f":"IF(+'[1]EXT(T)'!Q45=\"\",\"\",+'[1]EXT(T)'!Q45)","v":"n.d."},{"$f":"IF(+'[1]EXT(T)'!R45=\"\",\"\",+'[1]EXT(T)'!R45)","v":"n.d."},{"$f":"IF(+'[1]EXT(T)'!S45=\"\",\"\",+'[1]EXT(T)'!S45)","v":750.1},{"$f":"IF(+'[1]EXT(T)'!U45=\"\",\"\",+'[1]EXT(T)'!U45)","v":"n.d."},{"$f":"IF(+'[1]EXT(T)'!V45=\"\",\"\",+'[1]EXT(T)'!V45)","v":"n.d."},{"$f":"IF(+'[1]EXT(T)'!W45=\"\",\"\",+'[1]EXT(T)'!W45)","v":"n.d."},{"$f":"IF(+'[1]EXT(T)'!X45=\"\",\"\",+'[1]EXT(T)'!X45)","v":"n.d."},{"$f":"IF(+'[1]EXT(T)'!Y45=\"\",\"\",+'[1]EXT(T)'!Y45)","v":"n.d."},{"$f":"IF(+'[1]EXT(T)'!Z45=\"\",\"\",+'[1]EXT(T)'!Z45)","v":"n.d."},{"$f":"IF(+'[1]EXT(T)'!AA45=\"\",\"\",+'[1]EXT(T)'!AA45)","v":"n.d."},{"$f":"IF(+'[1]EXT(T)'!AB45=\"\",\"\",+'[1]EXT(T)'!AB45)","v":"n.d."},{"$f":"IF(+'[1]EXT(T)'!AC45=\"\",\"\",+'[1]EXT(T)'!AC45)","v":1203.0999999999999},{"$f":"IF(+'[1]EXT(T)'!AE45=\"\",\"\",+'[1]EXT(T)'!AE45)","v":"n.d."},{"$f":"IF(+'[1]EXT(T)'!AF45=\"\",\"\",+'[1]EXT(T)'!AF45)","v":"n.d."},{"$f":"IF(+'[1]EXT(T)'!AY45=\"\",\"\",+'[1]EXT(T)'!AY45)","v":"n.d."},{"$f":"IF(+'[1]EXT(T)'!AZ45=\"\",\"\",+'[1]EXT(T)'!AZ45)","v":"n.d."},"n.d.",{"$f":"IF(+'[1]EXT(T)'!AR45=\"\",\"\",+'[1]EXT(T)'!AR45-'[1]EXT(T)'!AR44)","v":360.59999999999991},{"$f":"IF(+'[1]EXT(T)'!AS45=\"\",\"\",+'[1]EXT(T)'!AS45-'[1]EXT(T)'!AS44)","v":117.6447},{"$f":"IF(+'[1]EXT(T)'!AT45=\"\",\"\",+'[1]EXT(T)'!AT45-'[1]EXT(T)'!AT44)","v":73.338145932739906},"n.d.",{"$f":"IF(+'[1]EXT(T)'!AV45=\"\",\"\",+'[1]EXT(T)'!AV45-'[1]EXT(T)'!AV44)","v":476.89999999999986},"n.d.","n.d.","n.d."]
[1999,"I",{"$f":"IF(+'[1]EXT(T)'!M46=\"\",\"\",+'[1]EXT(T)'!M46)","v":"n.d."},{"$f":"IF(+'[1]EXT(T)'!N46=\"\",\"\",+'[1]EXT(T)'!N46)","v":17.899999999999999},{"$f":"IF(+'[1]EXT(T)'!O46=\"\",\"\",+'[1]EXT(T)'!O46)","v":"n.d."},{"$f":"IF(+'[1]EXT(T)'!P46=\"\",\"\",+'[1]EXT(T)'!P46)","v":"n.d."},{"$f":"IF(+'[1]EXT(T)'!Q46=\"\",\"\",+'[1]EXT(T)'!Q46)","v":"n.d."},{"$f":"IF(+'[1]EXT(T)'!R46=\"\",\"\",+'[1]EXT(T)'!R46)","v":"n.d."},{"$f":"IF(+'[1]EXT(T)'!S46=\"\",\"\",+'[1]EXT(T)'!S46)","v":177.09999999999997},{"$f":"IF(+'[1]EXT(T)'!U46=\"\",\"\",+'[1]EXT(T)'!U46)","v":"n.d."},{"$f":"IF(+'[1]EXT(T)'!V46=\"\",\"\",+'[1]EXT(T)'!V46)","v":"n.d."},{"$f":"IF(+'[1]EXT(T)'!W46=\"\",\"\",+'[1]EXT(T)'!W46)","v":"n.d."},{"$f":"IF(+'[1]EXT(T)'!X46=\"\",\"\",+'[1]EXT(T)'!X46)","v":17.899999999999999},{"$f":"IF(+'[1]EXT(T)'!Y46=\"\",\"\",+'[1]EXT(T)'!Y46)","v":"n.d."},{"$f":"IF(+'[1]EXT(T)'!Z46=\"\",\"\",+'[1]EXT(T)'!Z46)","v":"n.d."},{"$f":"IF(+'[1]EXT(T)'!AA46=\"\",\"\",+'[1]EXT(T)'!AA46)","v":"n.d."},{"$f":"IF(+'[1]EXT(T)'!AB46=\"\",\"\",+'[1]EXT(T)'!AB46)","v":"n.d."},{"$f":"IF(+'[1]EXT(T)'!AC46=\"\",\"\",+'[1]EXT(T)'!AC46)","v":177.09999999999997},{"$f":"IF(+'[1]EXT(T)'!AE46=\"\",\"\",+'[1]EXT(T)'!AE46)","v":"n.d."},{"$f":"IF(+'[1]EXT(T)'!AF46=\"\",\"\",+'[1]EXT(T)'!AF46)","v":"n.d."},{"$f":"IF(+'[1]EXT(T)'!AY46=\"\",\"\",+'[1]EXT(T)'!AY46)","v":"n.d."},{"$f":"IF(+'[1]EXT(T)'!AZ46=\"\",\"\",+'[1]EXT(T)'!AZ46)","v":"n.d."},{"$f":"IF(+'[1]EXT(T)'!AQ46=\"\",\"\",+'[1]EXT(T)'!AQ46)","v":27.95348152},{"$f":"IF(+'[1]EXT(T)'!AR46=\"\",\"\",+'[1]EXT(T)'!AR46)","v":319.39999999999998},{"$f":"IF(+'[1]EXT(T)'!AS46=\"\",\"\",+'[1]EXT(T)'!AS46)","v":118.553},{"$f":"IF(+'[1]EXT(T)'!AT46=\"\",\"\",+'[1]EXT(T)'!AT46)","v":68.928244800699375},"n.d.",{"$f":"IF(+'[1]EXT(T)'!AV46=\"\",\"\",+'[1]EXT(T)'!AV46)","v":344.9},"n.d.","n.d.","n.d."]
[null,"II",{"$f":"IF(+'[1]EXT(T)'!M47=\"\",\"\",+'[1]EXT(T)'!M47)","v":"n.d."},{"$f":"IF(+'[1]EXT(T)'!N47=\"\",\"\",+'[1]EXT(T)'!N47)","v":12.799999999999999},{"$f":"IF(+'[1]EXT(T)'!O47=\"\",\"\",+'[1]EXT(T)'!O47)","v":"n.d."},{"$f":"IF(+'[1]EXT(T)'!P47=\"\",\"\",+'[1]EXT(T)'!P47)","v":"n.d."},{"$f":"IF(+'[1]EXT(T)'!Q47=\"\",\"\",+'[1]EXT(T)'!Q47)","v":"n.d."},{"$f":"IF(+'[1]EXT(T)'!R47=\"\",\"\",+'[1]EXT(T)'!R47)","v":"n.d."},{"$f":"IF(+'[1]EXT(T)'!S47=\"\",\"\",+'[1]EXT(T)'!S47)","v":255.2},{"$f":"IF(+'[1]EXT(T)'!U47=\"\",\"\",+'[1]EXT(T)'!U47)","v":"n.d."},{"$f":"IF(+'[1]EXT(T)'!V47=\"\",\"\",+'[1]EXT(T)'!V47)","v":"n.d."},{"$f":"IF(+'[1]EXT(T)'!W47=\"\",\"\",+'[1]EXT(T)'!W47)","v":"n.d."},{"$f":"IF(+'[1]EXT(T)'!X47=\"\",\"\",+'[1]EXT(T)'!X47)","v":30.699999999999996},{"$f":"IF(+'[1]EXT(T)'!Y47=\"\",\"\",+'[1]EXT(T)'!Y47)","v":"n.d."},{"$f":"IF(+'[1]EXT(T)'!Z47=\"\",\"\",+'[1]EXT(T)'!Z47)","v":"n.d."},{"$f":"IF(+'[1]EXT(T)'!AA47=\"\",\"\",+'[1]EXT(T)'!AA47)","v":"n.d."},{"$f":"IF(+'[1]EXT(T)'!AB47=\"\",\"\",+'[1]EXT(T)'!AB47)","v":"n.d."},{"$f":"IF(+'[1]EXT(T)'!AC47=\"\",\"\",+'[1]EXT(T)'!AC47)","v":432.29999999999995},{"$f":"IF(+'[1]EXT(T)'!AE47=\"\",\"\",+'[1]EXT(T)'!AE47)","v":"n.d."},{"$f":"IF(+'[1]EXT(T)'!AF47=\"\",\"\",+'[1]EXT(T)'!AF47)","v":"n.d."},{"$f":"IF(+'[1]EXT(T)'!AY47=\"\",\"\",+'[1]EXT(T)'!AY47)","v":"n.d."},{"$f":"IF(+'[1]EXT(T)'!AZ47=\"\",\"\",+'[1]EXT(T)'!AZ47)","v":"n.d."},{"$f":"IF(+'[1]EXT(T)'!AQ47=\"\",\"\",+'[1]EXT(T)'!AQ47-'[1]EXT(T)'!AQ46)","v":27.95348152},{"$f":"IF(+'[1]EXT(T)'!AR47=\"\",\"\",+'[1]EXT(T)'!AR47-'[1]EXT(T)'!AR46)","v":345.9},{"$f":"IF(+'[1]EXT(T)'!AS47=\"\",\"\",+'[1]EXT(T)'!AS47-'[1]EXT(T)'!AS46)","v":92.999099999999999},{"$f":"IF(+'[1]EXT(T)'!AT47=\"\",\"\",+'[1]EXT(T)'!AT47-'[1]EXT(T)'!AT46)","v":78.538422156649219},"n.d.",{"$f":"IF(+'[1]EXT(T)'!AV47=\"\",\"\",+'[1]EXT(T)'!AV47-'[1]EXT(T)'!AV46)","v":325.00000000000011},"n.d.","n.d.","n.d."]
[null,"III",{"$f":"IF(+'[1]EXT(T)'!M48=\"\",\"\",+'[1]EXT(T)'!M48)","v":"n.d."},{"$f":"IF(+'[1]EXT(T)'!N48=\"\",\"\",+'[1]EXT(T)'!N48)","v":150.6},{"$f":"IF(+'[1]EXT(T)'!O48=\"\",\"\",+'[1]EXT(T)'!O48)","v":"n.d."},{"$f":"IF(+'[1]EXT(T)'!P48=\"\",\"\",+'[1]EXT(T)'!P48)","v":"n.d."},{"$f":"IF(+'[1]EXT(T)'!Q48=\"\",\"\",+'[1]EXT(T)'!Q48)","v":"n.d."},{"$f":"IF(+'[1]EXT(T)'!R48=\"\",\"\",+'[1]EXT(T)'!R48)","v":"n.d."},{"$f":"IF(+'[1]EXT(T)'!S48=\"\",\"\",+'[1]EXT(T)'!S48)","v":198.29999999999998},{"$f":"IF(+'[1]EXT(T)'!U48=\"\",\"\",+'[1]EXT(T)'!U48)","v":"n.d."},{"$f":"IF(+'[1]EXT(T)'!V48=\"\",\"\",+'[1]EXT(T)'!V48)","v":"n.d."},{"$f":"IF(+'[1]EXT(T)'!W48=\"\",\"\",+'[1]EXT(T)'!W48)","v":"n.d."},{"$f":"IF(+'[1]EXT(T)'!X48=\"\",\"\",+'[1]EXT(T)'!X48)","v":181.29999999999998},{"$f":"IF(+'[1]EXT(T)'!Y48=\"\",\"\",+'[1]EXT(T)'!Y48)","v":"n.d."},{"$f":"IF(+'[1]EXT(T)'!Z48=\"\",\"\",+'[1]EXT(T)'!Z48)","v":"n.d."},{"$f":"IF(+'[1]EXT(T)'!AA48=\"\",\"\",+'[1]EXT(T)'!AA48)","v":"n.d."},{"$f":"IF(+'[1]EXT(T)'!AB48=\"\",\"\",+'[1]EXT(T)'!AB48)","v":"n.d."},{"$f":"IF(+'[1]EXT(T)'!AC48=\"\",\"\",+'[1]EXT(T)'!AC48)","v":630.59999999999991},{"$f":"IF(+'[1]EXT(T)'!AE48=\"\",\"\",+'[1]EXT(T)'!AE48)","v":"n.d."},{"$f":"IF(+'[1]EXT(T)'!AF48=\"\",\"\",+'[1]EXT(T)'!AF48)","v":"n.d."},{"$f":"IF(+'[1]EXT(T)'!AY48=\"\",\"\",+'[1]EXT(T)'!AY48)","v":"n.d."},{"$f":"IF(+'[1]EXT(T)'!AZ48=\"\",\"\",+'[1]EXT(T)'!AZ48)","v":"n.d."},{"$f":"IF(+'[1]EXT(T)'!AQ48=\"\",\"\",+'[1]EXT(T)'!AQ48-'[1]EXT(T)'!AQ47)","v":27.953481520000004},{"$f":"IF(+'[1]EXT(T)'!AR48=\"\",\"\",+'[1]EXT(T)'!AR48-'[1]EXT(T)'!AR47)","v":332},{"$f":"IF(+'[1]EXT(T)'!AS48=\"\",\"\",+'[1]EXT(T)'!AS48-'[1]EXT(T)'!AS47)","v":99.711999999999989},{"$f":"IF(+'[1]EXT(T)'!AT48=\"\",\"\",+'[1]EXT(T)'!AT48-'[1]EXT(T)'!AT47)","v":83.300489908068187},"n.d.",{"$f":"IF(+'[1]EXT(T)'!AV48=\"\",\"\",+'[1]EXT(T)'!AV48-'[1]EXT(T)'!AV47)","v":344.59999999999991},"n.d.","n.d.","n.d."]
[null,"IV",{"$f":"IF(+'[1]EXT(T)'!M49=\"\",\"\",+'[1]EXT(T)'!M49)","v":"n.d."},{"$f":"IF(+'[1]EXT(T)'!N49=\"\",\"\",+'[1]EXT(T)'!N49)","v":34.5},{"$f":"IF(+'[1]EXT(T)'!O49=\"\",\"\",+'[1]EXT(T)'!O49)","v":"n.d."},{"$f":"IF(+'[1]EXT(T)'!P49=\"\",\"\",+'[1]EXT(T)'!P49)","v":"n.d."},{"$f":"IF(+'[1]EXT(T)'!Q49=\"\",\"\",+'[1]EXT(T)'!Q49)","v":"n.d."},{"$f":"IF(+'[1]EXT(T)'!R49=\"\",\"\",+'[1]EXT(T)'!R49)","v":"n.d."},{"$f":"IF(+'[1]EXT(T)'!S49=\"\",\"\",+'[1]EXT(T)'!S49)","v":125},{"$f":"IF(+'[1]EXT(T)'!U49=\"\",\"\",+'[1]EXT(T)'!U49)","v":"n.d."},{"$f":"IF(+'[1]EXT(T)'!V49=\"\",\"\",+'[1]EXT(T)'!V49)","v":"n.d."},{"$f":"IF(+'[1]EXT(T)'!W49=\"\",\"\",+'[1]EXT(T)'!W49)","v":"n.d."},{"$f":"IF(+'[1]EXT(T)'!X49=\"\",\"\",+'[1]EXT(T)'!X49)","v":215.79999999999998},{"$f":"IF(+'[1]EXT(T)'!Y49=\"\",\"\",+'[1]EXT(T)'!Y49)","v":"n.d."},{"$f":"IF(+'[1]EXT(T)'!Z49=\"\",\"\",+'[1]EXT(T)'!Z49)","v":"n.d."},{"$f":"IF(+'[1]EXT(T)'!AA49=\"\",\"\",+'[1]EXT(T)'!AA49)","v":"n.d."},{"$f":"IF(+'[1]EXT(T)'!AB49=\"\",\"\",+'[1]EXT(T)'!AB49)","v":"n.d."},{"$f":"IF(+'[1]EXT(T)'!AC49=\"\",\"\",+'[1]EXT(T)'!AC49)","v":755.59999999999991},{"$f":"IF(+'[1]EXT(T)'!AE49=\"\",\"\",+'[1]EXT(T)'!AE49)","v":"n.d."},{"$f":"IF(+'[1]EXT(T)'!AF49=\"\",\"\",+'[1]EXT(T)'!AF49)","v":"n.d."},{"$f":"IF(+'[1]EXT(T)'!AY49=\"\",\"\",+'[1]EXT(T)'!AY49)","v":"n.d."},{"$f":"IF(+'[1]EXT(T)'!AZ49=\"\",\"\",+'[1]EXT(T)'!AZ49)","v":"n.d."},{"$f":"IF(+'[1]EXT(T)'!AQ49=\"\",\"\",+'[1]EXT(T)'!AQ49-'[1]EXT(T)'!AQ48)","v":27.953273670000002},{"$f":"IF(+'[1]EXT(T)'!AR49=\"\",\"\",+'[1]EXT(T)'!AR49-'[1]EXT(T)'!AR48)","v":376.5},{"$f":"IF(+'[1]EXT(T)'!AS49=\"\",\"\",+'[1]EXT(T)'!AS49-'[1]EXT(T)'!AS48)","v":154.25619999999992},{"$f":"IF(+'[1]EXT(T)'!AT49=\"\",\"\",+'[1]EXT(T)'!AT49-'[1]EXT(T)'!AT48)","v":89.23284313458322},"n.d.",{"$f":"IF(+'[1]EXT(T)'!AV49=\"\",\"\",+'[1]EXT(T)'!AV49-'[1]EXT(T)'!AV48)","v":504.20000000000005},"n.d.","n.d.","n.d."]
[2000,"I",{"$f":"IF(+'[1]EXT(T)'!M50=\"\",\"\",+'[1]EXT(T)'!M50)","v":213.54971564431659},{"$f":"IF(+'[1]EXT(T)'!N50=\"\",\"\",+'[1]EXT(T)'!N50)","v":4.0999999999999996},{"$f":"IF(+'[1]EXT(T)'!O50=\"\",\"\",+'[1]EXT(T)'!O50)","v":"n.d."},{"$f":"IF(+'[1]EXT(T)'!P50=\"\",\"\",+'[1]EXT(T)'!P50)","v":"n.d."},{"$f":"IF(+'[1]EXT(T)'!Q50=\"\",\"\",+'[1]EXT(T)'!Q50)","v":"n.d."},{"$f":"IF(+'[1]EXT(T)'!R50=\"\",\"\",+'[1]EXT(T)'!R50)","v":"n.d."},{"$f":"IF(+'[1]EXT(T)'!S50=\"\",\"\",+'[1]EXT(T)'!S50)","v":115.89999999999999},{"$f":"IF(+'[1]EXT(T)'!U50=\"\",\"\",+'[1]EXT(T)'!U50)","v":"n.d."},{"$f":"IF(+'[1]EXT(T)'!V50=\"\",\"\",+'[1]EXT(T)'!V50)","v":"n.d."},{"$f":"IF(+'[1]EXT(T)'!W50=\"\",\"\",+'[1]EXT(T)'!W50)","v":213.54971564431659},{"$f":"IF(+'[1]EXT(T)'!X50=\"\",\"\",+'[1]EXT(T)'!X50)","v":4.0999999999999996},{"$f":"IF(+'[1]EXT(T)'!Y50=\"\",\"\",+'[1]EXT(T)'!Y50)","v":"n.d."},{"$f":"IF(+'[1]EXT(T)'!Z50=\"\",\"\",+'[1]EXT(T)'!Z50)","v":"n.d."},{"$f":"IF(+'[1]EXT(T)'!AA50=\"\",\"\",+'[1]EXT(T)'!AA50)","v":"n.d."},{"$f":"IF(+'[1]EXT(T)'!AB50=\"\",\"\",+'[1]EXT(T)'!AB50)","v":"n.d."},{"$f":"IF(+'[1]EXT(T)'!AC50=\"\",\"\",+'[1]EXT(T)'!AC50)","v":115.89999999999999},{"$f":"IF(+'[1]EXT(T)'!AE50=\"\",\"\",+'[1]EXT(T)'!AE50)","v":"n.d."},{"$f":"IF(+'[1]EXT(T)'!AF50=\"\",\"\",+'[1]EXT(T)'!AF50)","v":"n.d."},{"$f":"IF(+'[1]EXT(T)'!AY50=\"\",\"\",+'[1]EXT(T)'!AY50)","v":1108.11624244},{"$f":"IF(+'[1]EXT(T)'!AZ50=\"\",\"\",+'[1]EXT(T)'!AZ50)","v":"n.d."},{"$f":"IF(+'[1]EXT(T)'!AQ50=\"\",\"\",+'[1]EXT(T)'!AQ50)","v":30.095942440000002},{"$f":"IF(+'[1]EXT(T)'!AR50=\"\",\"\",+'[1]EXT(T)'!AR50)","v":398.7},{"$f":"IF(+'[1]EXT(T)'!AS50=\"\",\"\",+'[1]EXT(T)'!AS50)","v":134.72809999999998},{"$f":"IF(+'[1]EXT(T)'!AT50=\"\",\"\",+'[1]EXT(T)'!AT50)","v":77.092200000000005},{"$f":"IF(+'[1]EXT(T)'!AU50=\"\",\"\",+'[1]EXT(T)'!AU50)","v":64},{"$f":"IF(+'[1]EXT(T)'!AV50=\"\",\"\",+'[1]EXT(T)'!AV50)","v":403.5},"n.d.",{"$f":"IF(OR(W43=\"\",X43=\"\",Y43=\"\",Z43=\"\",AA43=\"\",AB43=\"\"),\"\",W43+X43+Y43+Z43+AA43+AB43)","v":1108.11624244},"n.d."]
[null,"II",{"$f":"IF(+'[1]EXT(T)'!M51=\"\",\"\",+'[1]EXT(T)'!M51)","v":182.2847619857871},{"$f":"IF(+'[1]EXT(T)'!N51=\"\",\"\",+'[1]EXT(T)'!N51)","v":34.299999999999997},{"$f":"IF(+'[1]EXT(T)'!O51=\"\",\"\",+'[1]EXT(T)'!O51)","v":"n.d."},{"$f":"IF(+'[1]EXT(T)'!P51=\"\",\"\",+'[1]EXT(T)'!P51)","v":"n.d."},{"$f":"IF(+'[1]EXT(T)'!Q51=\"\",\"\",+'[1]EXT(T)'!Q51)","v":"n.d."},{"$f":"IF(+'[1]EXT(T)'!R51=\"\",\"\",+'[1]EXT(T)'!R51)","v":"n.d."},{"$f":"IF(+'[1]EXT(T)'!S51=\"\",\"\",+'[1]EXT(T)'!S51)","v":124.69999999999999},{"$f":"IF(+'[1]EXT(T)'!U51=\"\",\"\",+'[1]EXT(T)'!U51)","v":"n.d."},{"$f":"IF(+'[1]EXT(T)'!V51=\"\",\"\",+'[1]EXT(T)'!V51)","v":"n.d."},{"$f":"IF(+'[1]EXT(T)'!W51=\"\",\"\",+'[1]EXT(T)'!W51)","v":395.83447763010372},{"$f":"IF(+'[1]EXT(T)'!X51=\"\",\"\",+'[1]EXT(T)'!X51)","v":38.4},{"$f":"IF(+'[1]EXT(T)'!Y51=\"\",\"\",+'[1]EXT(T)'!Y51)","v":"n.d."},{"$f":"IF(+'[1]EXT(T)'!Z51=\"\",\"\",+'[1]EXT(T)'!Z51)","v":"n.d."},{"$f":"IF(+'[1]EXT(T)'!AA51=\"\",\"\",+'[1]EXT(T)'!AA51)","v":"n.d."},{"$f":"IF(+'[1]EXT(T)'!AB51=\"\",\"\",+'[1]EXT(T)'!AB51)","v":"n.d."},{"$f":"IF(+'[1]EXT(T)'!AC51=\"\",\"\",+'[1]EXT(T)'!AC51)","v":240.59999999999997},{"$f":"IF(+'[1]EXT(T)'!AE51=\"\",\"\",+'[1]EXT(T)'!AE51)","v":"n.d."},{"$f":"IF(+'[1]EXT(T)'!AF51=\"\",\"\",+'[1]EXT(T)'!AF51)","v":"n.d."},{"$f":"IF(+'[1]EXT(T)'!AY51=\"\",\"\",+'[1]EXT(T)'!AY51)","v":2208.93688488},{"$f":"IF(+'[1]EXT(T)'!AZ51=\"\",\"\",+'[1]EXT(T)'!AZ51)","v":"n.d."},{"$f":"IF(+'[1]EXT(T)'!AQ51=\"\",\"\",+'[1]EXT(T)'!AQ51-'[1]EXT(T)'!AQ50)","v":30.095942440000002},{"$f":"IF(+'[1]EXT(T)'!AR51=\"\",\"\",+'[1]EXT(T)'!AR51-'[1]EXT(T)'!AR50)","v":418.7},{"$f":"IF(+'[1]EXT(T)'!AS51=\"\",\"\",+'[1]EXT(T)'!AS51-'[1]EXT(T)'!AS50)","v":125.60769999999997},{"$f":"IF(+'[1]EXT(T)'!AT51=\"\",\"\",+'[1]EXT(T)'!AT51-'[1]EXT(T)'!AT50)","v":86.916999999999987},{"$f":"IF(+'[1]EXT(T)'!AU51=\"\",\"\",+'[1]EXT(T)'!AU51-'[1]EXT(T)'!AU50)","v":73.599999999999994},{"$f":"IF(+'[1]EXT(T)'!AV51=\"\",\"\",+'[1]EXT(T)'!AV51-'[1]EXT(T)'!AV50)","v":365.9},"n.d.",1100.82064244,"n.d."]
[null,"III",{"$f":"IF(+'[1]EXT(T)'!M52=\"\",\"\",+'[1]EXT(T)'!M52)","v":120.05479975209747},{"$f":"IF(+'[1]EXT(T)'!N52=\"\",\"\",+'[1]EXT(T)'!N52)","v":87.3},{"$f":"IF(+'[1]EXT(T)'!O52=\"\",\"\",+'[1]EXT(T)'!O52)","v":"n.d."},{"$f":"IF(+'[1]EXT(T)'!P52=\"\",\"\",+'[1]EXT(T)'!P52)","v":"n.d."},{"$f":"IF(+'[1]EXT(T)'!Q52=\"\",\"\",+'[1]EXT(T)'!Q52)","v":"n.d."},{"$f":"IF(+'[1]EXT(T)'!R52=\"\",\"\",+'[1]EXT(T)'!R52)","v":"n.d."},{"$f":"IF(+'[1]EXT(T)'!S52=\"\",\"\",+'[1]EXT(T)'!S52)","v":164.7},{"$f":"IF(+'[1]EXT(T)'!U52=\"\",\"\",+'[1]EXT(T)'!U52)","v":"n.d."},{"$f":"IF(+'[1]EXT(T)'!V52=\"\",\"\",+'[1]EXT(T)'!V52)","v":"n.d."},{"$f":"IF(+'[1]EXT(T)'!W52=\"\",\"\",+'[1]EXT(T)'!W52)","v":515.88927738220116},{"$f":"IF(+'[1]EXT(T)'!X52=\"\",\"\",+'[1]EXT(T)'!X52)","v":125.69999999999999},{"$f":"IF(+'[1]EXT(T)'!Y52=\"\",\"\",+'[1]EXT(T)'!Y52)","v":"n.d."},{"$f":"IF(+'[1]EXT(T)'!Z52=\"\",\"\",+'[1]EXT(T)'!Z52)","v":"n.d."},{"$f":"IF(+'[1]EXT(T)'!AA52=\"\",\"\",+'[1]EXT(T)'!AA52)","v":"n.d."},{"$f":"IF(+'[1]EXT(T)'!AB52=\"\",\"\",+'[1]EXT(T)'!AB52)","v":"n.d."},{"$f":"IF(+'[1]EXT(T)'!AC52=\"\",\"\",+'[1]EXT(T)'!AC52)","v":405.29999999999995},{"$f":"IF(+'[1]EXT(T)'!AE52=\"\",\"\",+'[1]EXT(T)'!AE52)","v":"n.d."},{"$f":"IF(+'[1]EXT(T)'!AF52=\"\",\"\",+'[1]EXT(T)'!AF52)","v":"n.d."},{"$f":"IF(+'[1]EXT(T)'!AY52=\"\",\"\",+'[1]EXT(T)'!AY52)","v":3353.5504273199999},{"$f":"IF(+'[1]EXT(T)'!AZ52=\"\",\"\",+'[1]EXT(T)'!AZ52)","v":"n.d."},{"$f":"IF(+'[1]EXT(T)'!AQ52=\"\",\"\",+'[1]EXT(T)'!AQ52-'[1]EXT(T)'!AQ51)","v":30.095942440000002},{"$f":"IF(+'[1]EXT(T)'!AR52=\"\",\"\",+'[1]EXT(T)'!AR52-'[1]EXT(T)'!AR51)","v":450.9},{"$f":"IF(+'[1]EXT(T)'!AS52=\"\",\"\",+'[1]EXT(T)'!AS52-'[1]EXT(T)'!AS51)","v":128.59849999999994},{"$f":"IF(+'[1]EXT(T)'!AT52=\"\",\"\",+'[1]EXT(T)'!AT52-'[1]EXT(T)'!AT51)","v":90.819099999999992},{"$f":"IF(+'[1]EXT(T)'!AU52=\"\",\"\",+'[1]EXT(T)'!AU52-'[1]EXT(T)'!AU51)","v":83.200000000000017},{"$f":"IF(+'[1]EXT(T)'!AV52=\"\",\"\",+'[1]EXT(T)'!AV52-'[1]EXT(T)'!AV51)","v":361.00000000000011},"n.d.",1144.6135424399999,"n.d."]
[null,"IV",{"$f":"IF(+'[1]EXT(T)'!M53=\"\",\"\",+'[1]EXT(T)'!M53)","v":151.0545043093195},{"$f":"IF(+'[1]EXT(T)'!N53=\"\",\"\",+'[1]EXT(T)'!N53)","v":47.699999999999996},{"$f":"IF(+'[1]EXT(T)'!O53=\"\",\"\",+'[1]EXT(T)'!O53)","v":"n.d."},{"$f":"IF(+'[1]EXT(T)'!P53=\"\",\"\",+'[1]EXT(T)'!P53)","v":"n.d."},{"$f":"IF(+'[1]EXT(T)'!Q53=\"\",\"\",+'[1]EXT(T)'!Q53)","v":"n.d."},{"$f":"IF(+'[1]EXT(T)'!R53=\"\",\"\",+'[1]EXT(T)'!R53)","v":"n.d."},{"$f":"IF(+'[1]EXT(T)'!S53=\"\",\"\",+'[1]EXT(T)'!S53)","v":218.6},{"$f":"IF(+'[1]EXT(T)'!U53=\"\",\"\",+'[1]EXT(T)'!U53)","v":"n.d."},{"$f":"IF(+'[1]EXT(T)'!V53=\"\",\"\",+'[1]EXT(T)'!V53)","v":"n.d."},{"$f":"IF(+'[1]EXT(T)'!W53=\"\",\"\",+'[1]EXT(T)'!W53)","v":666.9437816915206},{"$f":"IF(+'[1]EXT(T)'!X53=\"\",\"\",+'[1]EXT(T)'!X53)","v":173.39999999999998},{"$f":"IF(+'[1]EXT(T)'!Y53=\"\",\"\",+'[1]EXT(T)'!Y53)","v":"n.d."},{"$f":"IF(+'[1]EXT(T)'!Z53=\"\",\"\",+'[1]EXT(T)'!Z53)","v":"n.d."},{"$f":"IF(+'[1]EXT(T)'!AA53=\"\",\"\",+'[1]EXT(T)'!AA53)","v":"n.d."},{"$f":"IF(+'[1]EXT(T)'!AB53=\"\",\"\",+'[1]EXT(T)'!AB53)","v":"n.d."},{"$f":"IF(+'[1]EXT(T)'!AC53=\"\",\"\",+'[1]EXT(T)'!AC53)","v":623.9},{"$f":"IF(+'[1]EXT(T)'!AE53=\"\",\"\",+'[1]EXT(T)'!AE53)","v":"n.d."},{"$f":"IF(+'[1]EXT(T)'!AF53=\"\",\"\",+'[1]EXT(T)'!AF53)","v":"n.d."},{"$f":"IF(+'[1]EXT(T)'!AY53=\"\",\"\",+'[1]EXT(T)'!AY53)","v":4799.478969759999},{"$f":"IF(+'[1]EXT(T)'!AZ53=\"\",\"\",+'[1]EXT(T)'!AZ53)","v":"n.d."},{"$f":"IF(+'[1]EXT(T)'!AQ53=\"\",\"\",+'[1]EXT(T)'!AQ53-'[1]EXT(T)'!AQ52)","v":30.095942440000002},{"$f":"IF(+'[1]EXT(T)'!AR53=\"\",\"\",+'[1]EXT(T)'!AR53-'[1]EXT(T)'!AR52)","v":482.39999999999986},{"$f":"IF(+'[1]EXT(T)'!AS53=\"\",\"\",+'[1]EXT(T)'!AS53-'[1]EXT(T)'!AS52)","v":174.50440000000003},{"$f":"IF(+'[1]EXT(T)'!AT53=\"\",\"\",+'[1]EXT(T)'!AT53-'[1]EXT(T)'!AT52)","v":101.12819999999996},{"$f":"IF(+'[1]EXT(T)'!AU53=\"\",\"\",+'[1]EXT(T)'!AU53-'[1]EXT(T)'!AU52)","v":99.200000000000045},{"$f":"IF(+'[1]EXT(T)'!AV53=\"\",\"\",+'[1]EXT(T)'!AV53-'[1]EXT(T)'!AV52)","v":558.59999999999991},"n.d.",1445.92854244,"n.d."]
[2001,"I",{"$f":"IF(+'[1]EXT(T)'!M54=\"\",\"\",+'[1]EXT(T)'!M54)","v":257.57066087413909},{"$f":"IF(+'[1]EXT(T)'!N54=\"\",\"\",+'[1]EXT(T)'!N54)","v":109},{"$f":"IF(+'[1]EXT(T)'!O54=\"\",\"\",+'[1]EXT(T)'!O54)","v":"n.d."},{"$f":"IF(+'[1]EXT(T)'!P54=\"\",\"\",+'[1]EXT(T)'!P54)","v":"n.d."},{"$f":"IF(+'[1]EXT(T)'!Q54=\"\",\"\",+'[1]EXT(T)'!Q54)","v":"n.d."},{"$f":"IF(+'[1]EXT(T)'!R54=\"\",\"\",+'[1]EXT(T)'!R54)","v":"n.d."},{"$f":"IF(+'[1]EXT(T)'!S54=\"\",\"\",+'[1]EXT(T)'!S54)","v":29.599999999999994},{"$f":"IF(+'[1]EXT(T)'!U54=\"\",\"\",+'[1]EXT(T)'!U54)","v":"n.d."},{"$f":"IF(+'[1]EXT(T)'!V54=\"\",\"\",+'[1]EXT(T)'!V54)","v":"n.d."},{"$f":"IF(+'[1]EXT(T)'!W54=\"\",\"\",+'[1]EXT(T)'!W54)","v":257.57066087413909},{"$f":"IF(+'[1]EXT(T)'!X54=\"\",\"\",+'[1]EXT(T)'!X54)","v":109},{"$f":"IF(+'[1]EXT(T)'!Y54=\"\",\"\",+'[1]EXT(T)'!Y54)","v":"n.d."},{"$f":"IF(+'[1]EXT(T)'!Z54=\"\",\"\",+'[1]EXT(T)'!Z54)","v":"n.d."},{"$f":"IF(+'[1]EXT(T)'!AA54=\"\",\"\",+'[1]EXT(T)'!AA54)","v":"n.d."},{"$f":"IF(+'[1]EXT(T)'!AB54=\"\",\"\",+'[1]EXT(T)'!AB54)","v":"n.d."},{"$f":"IF(+'[1]EXT(T)'!AC54=\"\",\"\",+'[1]EXT(T)'!AC54)","v":29.599999999999994},{"$f":"IF(+'[1]EXT(T)'!AE54=\"\",\"\",+'[1]EXT(T)'!AE54)","v":"n.d."},{"$f":"IF(+'[1]EXT(T)'!AF54=\"\",\"\",+'[1]EXT(T)'!AF54)","v":"n.d."},{"$f":"IF(+'[1]EXT(T)'!AY54=\"\",\"\",+'[1]EXT(T)'!AY54)","v":1287.1616882799999},{"$f":"IF(+'[1]EXT(T)'!AZ54=\"\",\"\",+'[1]EXT(T)'!AZ54)","v":"n.d."},{"$f":"IF(+'[1]EXT(T)'!AQ54=\"\",\"\",+'[1]EXT(T)'!AQ54)","v":45.993488280000001},{"$f":"IF(+'[1]EXT(T)'!AR54=\"\",\"\",+'[1]EXT(T)'!AR54)","v":444.4},{"$f":"IF(+'[1]EXT(T)'!AS54=\"\",\"\",+'[1]EXT(T)'!AS54)","v":183.85640000000001},{"$f":"IF(+'[1]EXT(T)'!AT54=\"\",\"\",+'[1]EXT(T)'!AT54)","v":104.11180000000002},{"$f":"IF(+'[1]EXT(T)'!AU54=\"\",\"\",+'[1]EXT(T)'!AU54)","v":77.099999999999994},{"$f":"IF(+'[1]EXT(T)'!AV54=\"\",\"\",+'[1]EXT(T)'!AV54)","v":431.69999999999993},"n.d.",1287.1616882799999,"n.d."]
[null,"II",{"$f":"IF(+'[1]EXT(T)'!M55=\"\",\"\",+'[1]EXT(T)'!M55)","v":136.96063302419088},{"$f":"IF(+'[1]EXT(T)'!N55=\"\",\"\",+'[1]EXT(T)'!N55)","v":90.1},{"$f":"IF(+'[1]EXT(T)'!O55=\"\",\"\",+'[1]EXT(T)'!O55)","v":"n.d."},{"$f":"IF(+'[1]EXT(T)'!P55=\"\",\"\",+'[1]EXT(T)'!P55)","v":"n.d."},{"$f":"IF(+'[1]EXT(T)'!Q55=\"\",\"\",+'[1]EXT(T)'!Q55)","v":"n.d."},{"$f":"IF(+'[1]EXT(T)'!R55=\"\",\"\",+'[1]EXT(T)'!R55)","v":"n.d."},{"$f":"IF(+'[1]EXT(T)'!S55=\"\",\"\",+'[1]EXT(T)'!S55)","v":63.3},{"$f":"IF(+'[1]EXT(T)'!U55=\"\",\"\",+'[1]EXT(T)'!U55)","v":"n.d."},{"$f":"IF(+'[1]EXT(T)'!V55=\"\",\"\",+'[1]EXT(T)'!V55)","v":"n.d."},{"$f":"IF(+'[1]EXT(T)'!W55=\"\",\"\",+'[1]EXT(T)'!W55)","v":394.53129389832998},{"$f":"IF(+'[1]EXT(T)'!X55=\"\",\"\",+'[1]EXT(T)'!X55)","v":199.1},{"$f":"IF(+'[1]EXT(T)'!Y55=\"\",\"\",+'[1]EXT(T)'!Y55)","v":"n.d."},{"$f":"IF(+'[1]EXT(T)'!Z55=\"\",\"\",+'[1]EXT(T)'!Z55)","v":"n.d."},{"$f":"IF(+'[1]EXT(T)'!AA55=\"\",\"\",+'[1]EXT(T)'!AA55)","v":"n.d."},{"$f":"IF(+'[1]EXT(T)'!AB55=\"\",\"\",+'[1]EXT(T)'!AB55)","v":"n.d."},{"$f":"IF(+'[1]EXT(T)'!AC55=\"\",\"\",+'[1]EXT(T)'!AC55)","v":92.899999999999991},{"$f":"IF(+'[1]EXT(T)'!AE55=\"\",\"\",+'[1]EXT(T)'!AE55)","v":"n.d."},{"$f":"IF(+'[1]EXT(T)'!AF55=\"\",\"\",+'[1]EXT(T)'!AF55)","v":"n.d."},{"$f":"IF(+'[1]EXT(T)'!AY55=\"\",\"\",+'[1]EXT(T)'!AY55)","v":2539.8696765599998},{"$f":"IF(+'[1]EXT(T)'!AZ55=\"\",\"\",+'[1]EXT(T)'!AZ55)","v":"n.d."},{"$f":"IF(+'[1]EXT(T)'!AQ55=\"\",\"\",+'[1]EXT(T)'!AQ55-'[1]EXT(T)'!AQ54)","v":45.993488280000001},{"$f":"IF(+'[1]EXT(T)'!AR55=\"\",\"\",+'[1]EXT(T)'!AR55-'[1]EXT(T)'!AR54)","v":476.6},{"$f":"IF(+'[1]EXT(T)'!AS55=\"\",\"\",+'[1]EXT(T)'!AS55-'[1]EXT(T)'!AS54)","v":144.10489999999999},{"$f":"IF(+'[1]EXT(T)'!AT55=\"\",\"\",+'[1]EXT(T)'!AT55-'[1]EXT(T)'!AT54)","v":115.4496},{"$f":"IF(+'[1]EXT(T)'!AU55=\"\",\"\",+'[1]EXT(T)'!AU55-'[1]EXT(T)'!AU54)","v":79},{"$f":"IF(+'[1]EXT(T)'!AV55=\"\",\"\",+'[1]EXT(T)'!AV55-'[1]EXT(T)'!AV54)","v":391.56000000000006},"n.d.",1252.7079882800001,"n.d."]
[null,"III",{"$f":"IF(+'[1]EXT(T)'!M56=\"\",\"\",+'[1]EXT(T)'!M56)","v":89.344573370997381},{"$f":"IF(+'[1]EXT(T)'!N56=\"\",\"\",+'[1]EXT(T)'!N56)","v":33.4},{"$f":"IF(+'[1]EXT(T)'!O56=\"\",\"\",+'[1]EXT(T)'!O56)","v":"n.d."},{"$f":"IF(+'[1]EXT(T)'!P56=\"\",\"\",+'[1]EXT(T)'!P56)","v":"n.d."},{"$f":"IF(+'[1]EXT(T)'!Q56=\"\",\"\",+'[1]EXT(T)'!Q56)","v":"n.d."},{"$f":"IF(+'[1]EXT(T)'!R56=\"\",\"\",+'[1]EXT(T)'!R56)","v":"n.d."},{"$f":"IF(+'[1]EXT(T)'!S56=\"\",\"\",+'[1]EXT(T)'!S56)","v":85.3},{"$f":"IF(+'[1]EXT(T)'!U56=\"\",\"\",+'[1]EXT(T)'!U56)","v":"n.d."},{"$f":"IF(+'[1]EXT(T)'!V56=\"\",\"\",+'[1]EXT(T)'!V56)","v":"n.d."},{"$f":"IF(+'[1]EXT(T)'!W56=\"\",\"\",+'[1]EXT(T)'!W56)","v":483.87586726932739},{"$f":"IF(+'[1]EXT(T)'!X56=\"\",\"\",+'[1]EXT(T)'!X56)","v":232.5},{"$f":"IF(+'[1]EXT(T)'!Y56=\"\",\"\",+'[1]EXT(T)'!Y56)","v":"n.d."},{"$f":"IF(+'[1]EXT(T)'!Z56=\"\",\"\",+'[1]EXT(T)'!Z56)","v":"n.d."},{"$f":"IF(+'[1]EXT(T)'!AA56=\"\",\"\",+'[1]EXT(T)'!AA56)","v":"n.d."},{"$f":"IF(+'[1]EXT(T)'!AB56=\"\",\"\",+'[1]EXT(T)'!AB56)","v":"n.d."},{"$f":"IF(+'[1]EXT(T)'!AC56=\"\",\"\",+'[1]EXT(T)'!AC56)","v":178.2},{"$f":"IF(+'[1]EXT(T)'!AE56=\"\",\"\",+'[1]EXT(T)'!AE56)","v":"n.d."},{"$f":"IF(+'[1]EXT(T)'!AF56=\"\",\"\",+'[1]EXT(T)'!AF56)","v":"n.d."},{"$f":"IF(+'[1]EXT(T)'!AY56=\"\",\"\",+'[1]EXT(T)'!AY56)","v":3807.5348648400004},{"$f":"IF(+'[1]EXT(T)'!AZ56=\"\",\"\",+'[1]EXT(T)'!AZ56)","v":"n.d."},{"$f":"IF(+'[1]EXT(T)'!AQ56=\"\",\"\",+'[1]EXT(T)'!AQ56-'[1]EXT(T)'!AQ55)","v":45.993488279999994},{"$f":"IF(+'[1]EXT(T)'!AR56=\"\",\"\",+'[1]EXT(T)'!AR56-'[1]EXT(T)'!AR55)","v":476.40000000000009},{"$f":"IF(+'[1]EXT(T)'!AS56=\"\",\"\",+'[1]EXT(T)'!AS56-'[1]EXT(T)'!AS55)","v":131.49929999999995},{"$f":"IF(+'[1]EXT(T)'!AT56=\"\",\"\",+'[1]EXT(T)'!AT56-'[1]EXT(T)'!AT55)","v":124.72240000000002},{"$f":"IF(+'[1]EXT(T)'!AU56=\"\",\"\",+'[1]EXT(T)'!AU56-'[1]EXT(T)'!AU55)","v":87.300000000000011},{"$f":"IF(+'[1]EXT(T)'!AV56=\"\",\"\",+'[1]EXT(T)'!AV56-'[1]EXT(T)'!AV55)","v":401.75000000000023},"n.d.",1267.6651882800002,"n.d."]
[null,"IV",{"$f":"IF(+'[1]EXT(T)'!M57=\"\",\"\",+'[1]EXT(T)'!M57)","v":124.77261957733673},{"$f":"IF(+'[1]EXT(T)'!N57=\"\",\"\",+'[1]EXT(T)'!N57)","v":46.4},{"$f":"IF(+'[1]EXT(T)'!O57=\"\",\"\",+'[1]EXT(T)'!O57)","v":"n.d."},{"$f":"IF(+'[1]EXT(T)'!P57=\"\",\"\",+'[1]EXT(T)'!P57)","v":"n.d."},{"$f":"IF(+'[1]EXT(T)'!Q57=\"\",\"\",+'[1]EXT(T)'!Q57)","v":"n.d."},{"$f":"IF(+'[1]EXT(T)'!R57=\"\",\"\",+'[1]EXT(T)'!R57)","v":"n.d."},{"$f":"IF(+'[1]EXT(T)'!S57=\"\",\"\",+'[1]EXT(T)'!S57)","v":288.89999999999998},{"$f":"IF(+'[1]EXT(T)'!U57=\"\",\"\",+'[1]EXT(T)'!U57)","v":"n.d."},{"$f":"IF(+'[1]EXT(T)'!V57=\"\",\"\",+'[1]EXT(T)'!V57)","v":"n.d."},{"$f":"IF(+'[1]EXT(T)'!W57=\"\",\"\",+'[1]EXT(T)'!W57)","v":608.64848684666413},{"$f":"IF(+'[1]EXT(T)'!X57=\"\",\"\",+'[1]EXT(T)'!X57)","v":278.89999999999998},{"$f":"IF(+'[1]EXT(T)'!Y57=\"\",\"\",+'[1]EXT(T)'!Y57)","v":"n.d."},{"$f":"IF(+'[1]EXT(T)'!Z57=\"\",\"\",+'[1]EXT(T)'!Z57)","v":"n.d."},{"$f":"IF(+'[1]EXT(T)'!AA57=\"\",\"\",+'[1]EXT(T)'!AA57)","v":"n.d."},{"$f":"IF(+'[1]EXT(T)'!AB57=\"\",\"\",+'[1]EXT(T)'!AB57)","v":"n.d."},{"$f":"IF(+'[1]EXT(T)'!AC57=\"\",\"\",+'[1]EXT(T)'!AC57)","v":467.09999999999997},{"$f":"IF(+'[1]EXT(T)'!AE57=\"\",\"\",+'[1]EXT(T)'!AE57)","v":"n.d."},{"$f":"IF(+'[1]EXT(T)'!AF57=\"\",\"\",+'[1]EXT(T)'!AF57)","v":"n.d."},{"$f":"IF(+'[1]EXT(T)'!AY57=\"\",\"\",+'[1]EXT(T)'!AY57)","v":5312.6147531199995},{"$f":"IF(+'[1]EXT(T)'!AZ57=\"\",\"\",+'[1]EXT(T)'!AZ57)","v":"n.d."},{"$f":"IF(+'[1]EXT(T)'!AQ57=\"\",\"\",+'[1]EXT(T)'!AQ57-'[1]EXT(T)'!AQ56)","v":45.993488280000008},{"$f":"IF(+'[1]EXT(T)'!AR57=\"\",\"\",+'[1]EXT(T)'!AR57-'[1]EXT(T)'!AR56)","v":513.09999999999991},{"$f":"IF(+'[1]EXT(T)'!AS57=\"\",\"\",+'[1]EXT(T)'!AS57-'[1]EXT(T)'!AS56)","v":132.87849999999997},{"$f":"IF(+'[1]EXT(T)'!AT57=\"\",\"\",+'[1]EXT(T)'!AT57-'[1]EXT(T)'!AT56)","v":138.00790000000001},{"$f":"IF(+'[1]EXT(T)'!AU57=\"\",\"\",+'[1]EXT(T)'!AU57-'[1]EXT(T)'!AU56)","v":92.299999999999983},{"$f":"IF(+'[1]EXT(T)'!AV57=\"\",\"\",+'[1]EXT(T)'!AV57-'[1]EXT(T)'!AV56)","v":582.79999999999995},"n.d.",1505.07988828,"n.d."]
[2002,"I",{"$f":"IF(+'[1]EXT(T)'!M58=\"\",\"\",+'[1]EXT(T)'!M58)","v":219.84530603489802},{"$f":"IF(+'[1]EXT(T)'!N58=\"\",\"\",+'[1]EXT(T)'!N58)","v":343.8},{"$f":"IF(+'[1]EXT(T)'!O58=\"\",\"\",+'[1]EXT(T)'!O58)","v":"n.d."},{"$f":"IF(+'[1]EXT(T)'!P58=\"\",\"\",+'[1]EXT(T)'!P58)","v":"n.d."},{"$f":"IF(+'[1]EXT(T)'!Q58=\"\",\"\",+'[1]EXT(T)'!Q58)","v":"n.d."},{"$f":"IF(+'[1]EXT(T)'!R58=\"\",\"\",+'[1]EXT(T)'!R58)","v":"n.d."},{"$f":"IF(+'[1]EXT(T)'!S58=\"\",\"\",+'[1]EXT(T)'!S58)","v":97.1},{"$f":"IF(+'[1]EXT(T)'!U58=\"\",\"\",+'[1]EXT(T)'!U58)","v":"n.d."},{"$f":"IF(+'[1]EXT(T)'!V58=\"\",\"\",+'[1]EXT(T)'!V58)","v":"n.d."},{"$f":"IF(+'[1]EXT(T)'!W58=\"\",\"\",+'[1]EXT(T)'!W58)","v":219.84530603489802},{"$f":"IF(+'[1]EXT(T)'!X58=\"\",\"\",+'[1]EXT(T)'!X58)","v":343.8},{"$f":"IF(+'[1]EXT(T)'!Y58=\"\",\"\",+'[1]EXT(T)'!Y58)","v":"n.d."},{"$f":"IF(+'[1]EXT(T)'!Z58=\"\",\"\",+'[1]EXT(T)'!Z58)","v":"n.d."},{"$f":"IF(+'[1]EXT(T)'!AA58=\"\",\"\",+'[1]EXT(T)'!AA58)","v":"n.d."},{"$f":"IF(+'[1]EXT(T)'!AB58=\"\",\"\",+'[1]EXT(T)'!AB58)","v":"n.d."},{"$f":"IF(+'[1]EXT(T)'!AC58=\"\",\"\",+'[1]EXT(T)'!AC58)","v":97.1},{"$f":"IF(+'[1]EXT(T)'!AE58=\"\",\"\",+'[1]EXT(T)'!AE58)","v":"n.d."},{"$f":"IF(+'[1]EXT(T)'!AF58=\"\",\"\",+'[1]EXT(T)'!AF58)","v":"n.d."},{"$f":"IF(+'[1]EXT(T)'!AY58=\"\",\"\",+'[1]EXT(T)'!AY58)","v":1492.8324069600001},{"$f":"IF(+'[1]EXT(T)'!AZ58=\"\",\"\",+'[1]EXT(T)'!AZ58)","v":"n.d."},{"$f":"IF(+'[1]EXT(T)'!AQ58=\"\",\"\",+'[1]EXT(T)'!AQ58)","v":50.298906959999997},{"$f":"IF(+'[1]EXT(T)'!AR58=\"\",\"\",+'[1]EXT(T)'!AR58)","v":447.40000000000003},{"$f":"IF(+'[1]EXT(T)'!AS58=\"\",\"\",+'[1]EXT(T)'!AS58)","v":288.84879999999998},{"$f":"IF(+'[1]EXT(T)'!AT58=\"\",\"\",+'[1]EXT(T)'!AT58)","v":138.78469999999999},{"$f":"IF(+'[1]EXT(T)'!AU58=\"\",\"\",+'[1]EXT(T)'!AU58)","v":91.4},{"$f":"IF(+'[1]EXT(T)'!AV58=\"\",\"\",+'[1]EXT(T)'!AV58)","v":476.09999999999997},"n.d.",1492.8324069600001,"n.d."]
[null,"II",{"$f":"IF(+'[1]EXT(T)'!M59=\"\",\"\",+'[1]EXT(T)'!M59)","v":120.98063654560428},{"$f":"IF(+'[1]EXT(T)'!N59=\"\",\"\",+'[1]EXT(T)'!N59)","v":54.099999999999994},{"$f":"IF(+'[1]EXT(T)'!O59=\"\",\"\",+'[1]EXT(T)'!O59)","v":"n.d."},{"$f":"IF(+'[1]EXT(T)'!P59=\"\",\"\",+'[1]EXT(T)'!P59)","v":"n.d."},{"$f":"IF(+'[1]EXT(T)'!Q59=\"\",\"\",+'[1]EXT(T)'!Q59)","v":"n.d."},{"$f":"IF(+'[1]EXT(T)'!R59=\"\",\"\",+'[1]EXT(T)'!R59)","v":"n.d."},{"$f":"IF(+'[1]EXT(T)'!S59=\"\",\"\",+'[1]EXT(T)'!S59)","v":-306.7},{"$f":"IF(+'[1]EXT(T)'!U59=\"\",\"\",+'[1]EXT(T)'!U59)","v":"n.d."},{"$f":"IF(+'[1]EXT(T)'!V59=\"\",\"\",+'[1]EXT(T)'!V59)","v":"n.d."},{"$f":"IF(+'[1]EXT(T)'!W59=\"\",\"\",+'[1]EXT(T)'!W59)","v":340.82594258050233},{"$f":"IF(+'[1]EXT(T)'!X59=\"\",\"\",+'[1]EXT(T)'!X59)","v":397.9},{"$f":"IF(+'[1]EXT(T)'!Y59=\"\",\"\",+'[1]EXT(T)'!Y59)","v":"n.d."},{"$f":"IF(+'[1]EXT(T)'!Z59=\"\",\"\",+'[1]EXT(T)'!Z59)","v":"n.d."},{"$f":"IF(+'[1]EXT(T)'!AA59=\"\",\"\",+'[1]EXT(T)'!AA59)","v":"n.d."},{"$f":"IF(+'[1]EXT(T)'!AB59=\"\",\"\",+'[1]EXT(T)'!AB59)","v":"n.d."},{"$f":"IF(+'[1]EXT(T)'!AC59=\"\",\"\",+'[1]EXT(T)'!AC59)","v":-209.6},{"$f":"IF(+'[1]EXT(T)'!AE59=\"\",\"\",+'[1]EXT(T)'!AE59)","v":"n.d."},{"$f":"IF(+'[1]EXT(T)'!AF59=\"\",\"\",+'[1]EXT(T)'!AF59)","v":"n.d."},{"$f":"IF(+'[1]EXT(T)'!AY59=\"\",\"\",+'[1]EXT(T)'!AY59)","v":3110.6247054199998},{"$f":"IF(+'[1]EXT(T)'!AZ59=\"\",\"\",+'[1]EXT(T)'!AZ59)","v":"n.d."},{"$f":"IF(+'[1]EXT(T)'!AQ59=\"\",\"\",+'[1]EXT(T)'!AQ59-'[1]EXT(T)'!AQ58)","v":50.77779846},{"$f":"IF(+'[1]EXT(T)'!AR59=\"\",\"\",+'[1]EXT(T)'!AR59-'[1]EXT(T)'!AR58)","v":522.40000000000009},{"$f":"IF(+'[1]EXT(T)'!AS59=\"\",\"\",+'[1]EXT(T)'!AS59-'[1]EXT(T)'!AS58)","v":356.94010000000003},{"$f":"IF(+'[1]EXT(T)'!AT59=\"\",\"\",+'[1]EXT(T)'!AT59-'[1]EXT(T)'!AT58)","v":169.77440000000001},{"$f":"IF(+'[1]EXT(T)'!AU59=\"\",\"\",+'[1]EXT(T)'!AU59-'[1]EXT(T)'!AU58)","v":94.799999999999983},{"$f":"IF(+'[1]EXT(T)'!AV59=\"\",\"\",+'[1]EXT(T)'!AV59-'[1]EXT(T)'!AV58)","v":423.09999999999997},"n.d.",1617.79229846,"n.d."]
[null,"III",{"$f":"IF(+'[1]EXT(T)'!M60=\"\",\"\",+'[1]EXT(T)'!M60)","v":120.48359873325528},{"$f":"IF(+'[1]EXT(T)'!N60=\"\",\"\",+'[1]EXT(T)'!N60)","v":-51.099999999999994},{"$f":"IF(+'[1]EXT(T)'!O60=\"\",\"\",+'[1]EXT(T)'!O60)","v":"n.d."},{"$f":"IF(+'[1]EXT(T)'!P60=\"\",\"\",+'[1]EXT(T)'!P60)","v":"n.d."},{"$f":"IF(+'[1]EXT(T)'!Q60=\"\",\"\",+'[1]EXT(T)'!Q60)","v":"n.d."},{"$f":"IF(+'[1]EXT(T)'!R60=\"\",\"\",+'[1]EXT(T)'!R60)","v":"n.d."},{"$f":"IF(+'[1]EXT(T)'!S60=\"\",\"\",+'[1]EXT(T)'!S60)","v":141.6},{"$f":"IF(+'[1]EXT(T)'!U60=\"\",\"\",+'[1]EXT(T)'!U60)","v":"n.d."},{"$f":"IF(+'[1]EXT(T)'!V60=\"\",\"\",+'[1]EXT(T)'!V60)","v":"n.d."},{"$f":"IF(+'[1]EXT(T)'!W60=\"\",\"\",+'[1]EXT(T)'!W60)","v":461.30954131375762},{"$f":"IF(+'[1]EXT(T)'!X60=\"\",\"\",+'[1]EXT(T)'!X60)","v":346.79999999999995},{"$f":"IF(+'[1]EXT(T)'!Y60=\"\",\"\",+'[1]EXT(T)'!Y60)","v":"n.d."},{"$f":"IF(+'[1]EXT(T)'!Z60=\"\",\"\",+'[1]EXT(T)'!Z60)","v":"n.d."},{"$f":"IF(+'[1]EXT(T)'!AA60=\"\",\"\",+'[1]EXT(T)'!AA60)","v":"n.d."},{"$f":"IF(+'[1]EXT(T)'!AB60=\"\",\"\",+'[1]EXT(T)'!AB60)","v":"n.d."},{"$f":"IF(+'[1]EXT(T)'!AC60=\"\",\"\",+'[1]EXT(T)'!AC60)","v":-68},{"$f":"IF(+'[1]EXT(T)'!AE60=\"\",\"\",+'[1]EXT(T)'!AE60)","v":"n.d."},{"$f":"IF(+'[1]EXT(T)'!AF60=\"\",\"\",+'[1]EXT(T)'!AF60)","v":"n.d."},{"$f":"IF(+'[1]EXT(T)'!AY60=\"\",\"\",+'[1]EXT(T)'!AY60)","v":4787.5819602499996},{"$f":"IF(+'[1]EXT(T)'!AZ60=\"\",\"\",+'[1]EXT(T)'!AZ60)","v":"n.d."},{"$f":"IF(+'[1]EXT(T)'!AQ60=\"\",\"\",+'[1]EXT(T)'!AQ60-'[1]EXT(T)'!AQ59)","v":59.126854830000013},{"$f":"IF(+'[1]EXT(T)'!AR60=\"\",\"\",+'[1]EXT(T)'!AR60-'[1]EXT(T)'!AR59)","v":472.79999999999984},{"$f":"IF(+'[1]EXT(T)'!AS60=\"\",\"\",+'[1]EXT(T)'!AS60-'[1]EXT(T)'!AS59)","v":456.1721},{"$f":"IF(+'[1]EXT(T)'!AT60=\"\",\"\",+'[1]EXT(T)'!AT60-'[1]EXT(T)'!AT59)","v":167.6583},{"$f":"IF(+'[1]EXT(T)'!AU60=\"\",\"\",+'[1]EXT(T)'!AU60-'[1]EXT(T)'!AU59)","v":91.900000000000034},{"$f":"IF(+'[1]EXT(T)'!AV60=\"\",\"\",+'[1]EXT(T)'!AV60-'[1]EXT(T)'!AV59)","v":429.29999999999984},"n.d.",1676.9572548299998,"n.d."]
[null,"IV",{"$f":"IF(+'[1]EXT(T)'!M61=\"\",\"\",+'[1]EXT(T)'!M61)","v":363.3166271812097},{"$f":"IF(+'[1]EXT(T)'!N61=\"\",\"\",+'[1]EXT(T)'!N61)","v":123.19999999999999},{"$f":"IF(+'[1]EXT(T)'!O61=\"\",\"\",+'[1]EXT(T)'!O61)","v":"n.d."},{"$f":"IF(+'[1]EXT(T)'!P61=\"\",\"\",+'[1]EXT(T)'!P61)","v":"n.d."},{"$f":"IF(+'[1]EXT(T)'!Q61=\"\",\"\",+'[1]EXT(T)'!Q61)","v":"n.d."},{"$f":"IF(+'[1]EXT(T)'!R61=\"\",\"\",+'[1]EXT(T)'!R61)","v":"n.d."},{"$f":"IF(+'[1]EXT(T)'!S61=\"\",\"\",+'[1]EXT(T)'!S61)","v":166.6},{"$f":"IF(+'[1]EXT(T)'!U61=\"\",\"\",+'[1]EXT(T)'!U61)","v":"n.d."},{"$f":"IF(+'[1]EXT(T)'!V61=\"\",\"\",+'[1]EXT(T)'!V61)","v":"n.d."},{"$f":"IF(+'[1]EXT(T)'!W61=\"\",\"\",+'[1]EXT(T)'!W61)","v":824.62616849496726},{"$f":"IF(+'[1]EXT(T)'!X61=\"\",\"\",+'[1]EXT(T)'!X61)","v":469.99999999999994},{"$f":"IF(+'[1]EXT(T)'!Y61=\"\",\"\",+'[1]EXT(T)'!Y61)","v":"n.d."},{"$f":"IF(+'[1]EXT(T)'!Z61=\"\",\"\",+'[1]EXT(T)'!Z61)","v":"n.d."},{"$f":"IF(+'[1]EXT(T)'!AA61=\"\",\"\",+'[1]EXT(T)'!AA61)","v":"n.d."},{"$f":"IF(+'[1]EXT(T)'!AB61=\"\",\"\",+'[1]EXT(T)'!AB61)","v":"n.d."},{"$f":"IF(+'[1]EXT(T)'!AC61=\"\",\"\",+'[1]EXT(T)'!AC61)","v":98.6},{"$f":"IF(+'[1]EXT(T)'!AE61=\"\",\"\",+'[1]EXT(T)'!AE61)","v":"n.d."},{"$f":"IF(+'[1]EXT(T)'!AF61=\"\",\"\",+'[1]EXT(T)'!AF61)","v":"n.d."},{"$f":"IF(+'[1]EXT(T)'!AY61=\"\",\"\",+'[1]EXT(T)'!AY61)","v":6731.8335683799996},{"$f":"IF(+'[1]EXT(T)'!AZ61=\"\",\"\",+'[1]EXT(T)'!AZ61)","v":"n.d."},{"$f":"IF(+'[1]EXT(T)'!AQ61=\"\",\"\",+'[1]EXT(T)'!AQ61-'[1]EXT(T)'!AQ60)","v":74.051708130000009},{"$f":"IF(+'[1]EXT(T)'!AR61=\"\",\"\",+'[1]EXT(T)'!AR61-'[1]EXT(T)'!AR60)","v":492.60000000000014},{"$f":"IF(+'[1]EXT(T)'!AS61=\"\",\"\",+'[1]EXT(T)'!AS61-'[1]EXT(T)'!AS60)","v":477.43090000000007},{"$f":"IF(+'[1]EXT(T)'!AT61=\"\",\"\",+'[1]EXT(T)'!AT61-'[1]EXT(T)'!AT60)","v":170.66899999999998},{"$f":"IF(+'[1]EXT(T)'!AU61=\"\",\"\",+'[1]EXT(T)'!AU61-'[1]EXT(T)'!AU60)","v":98.399999999999977},{"$f":"IF(+'[1]EXT(T)'!AV61=\"\",\"\",+'[1]EXT(T)'!AV61-'[1]EXT(T)'!AV60)","v":631.09999999999991},"n.d.",1944.25160813,"n.d."]
[2003,"I",{"$f":"IF(+'[1]EXT(T)'!M62=\"\",\"\",+'[1]EXT(T)'!M62)","v":187.5502592122144},{"$f":"IF(+'[1]EXT(T)'!N62=\"\",\"\",+'[1]EXT(T)'!N62)","v":4.2000000000000028},{"$f":"IF(+'[1]EXT(T)'!O62=\"\",\"\",+'[1]EXT(T)'!O62)","v":"n.d."},{"$f":"IF(+'[1]EXT(T)'!P62=\"\",\"\",+'[1]EXT(T)'!P62)","v":"n.d."},{"$f":"IF(+'[1]EXT(T)'!Q62=\"\",\"\",+'[1]EXT(T)'!Q62)","v":"n.d."},{"$f":"IF(+'[1]EXT(T)'!R62=\"\",\"\",+'[1]EXT(T)'!R62)","v":"n.d."},{"$f":"IF(+'[1]EXT(T)'!S62=\"\",\"\",+'[1]EXT(T)'!S62)","v":222.8},{"$f":"IF(+'[1]EXT(T)'!U62=\"\",\"\",+'[1]EXT(T)'!U62)","v":"n.d."},{"$f":"IF(+'[1]EXT(T)'!V62=\"\",\"\",+'[1]EXT(T)'!V62)","v":"n.d."},{"$f":"IF(+'[1]EXT(T)'!W62=\"\",\"\",+'[1]EXT(T)'!W62)","v":187.5502592122144},{"$f":"IF(+'[1]EXT(T)'!X62=\"\",\"\",+'[1]EXT(T)'!X62)","v":4.2000000000000028},{"$f":"IF(+'[1]EXT(T)'!Y62=\"\",\"\",+'[1]EXT(T)'!Y62)","v":"n.d."},{"$f":"IF(+'[1]EXT(T)'!Z62=\"\",\"\",+'[1]EXT(T)'!Z62)","v":"n.d."},{"$f":"IF(+'[1]EXT(T)'!AA62=\"\",\"\",+'[1]EXT(T)'!AA62)","v":"n.d."},{"$f":"IF(+'[1]EXT(T)'!AB62=\"\",\"\",+'[1]EXT(T)'!AB62)","v":"n.d."},{"$f":"IF(+'[1]EXT(T)'!AC62=\"\",\"\",+'[1]EXT(T)'!AC62)","v":222.8},{"$f":"IF(+'[1]EXT(T)'!AE62=\"\",\"\",+'[1]EXT(T)'!AE62)","v":"n.d."},{"$f":"IF(+'[1]EXT(T)'!AF62=\"\",\"\",+'[1]EXT(T)'!AF62)","v":"n.d."},{"$f":"IF(+'[1]EXT(T)'!AY62=\"\",\"\",+'[1]EXT(T)'!AY62)","v":1757.6644434},{"$f":"IF(+'[1]EXT(T)'!AZ62=\"\",\"\",+'[1]EXT(T)'!AZ62)","v":"n.d."},{"$f":"IF(+'[1]EXT(T)'!AQ62=\"\",\"\",+'[1]EXT(T)'!AQ62)","v":64.134743400000005},{"$f":"IF(+'[1]EXT(T)'!AR62=\"\",\"\",+'[1]EXT(T)'!AR62)","v":465.20000000000005},{"$f":"IF(+'[1]EXT(T)'!AS62=\"\",\"\",+'[1]EXT(T)'!AS62)","v":470.27819999999997},{"$f":"IF(+'[1]EXT(T)'!AT62=\"\",\"\",+'[1]EXT(T)'!AT62)","v":165.95150000000001},{"$f":"IF(+'[1]EXT(T)'!AU62=\"\",\"\",+'[1]EXT(T)'!AU62)","v":100.9},{"$f":"IF(+'[1]EXT(T)'!AV62=\"\",\"\",+'[1]EXT(T)'!AV62)","v":491.19999999999993},"n.d.",1757.6644434,"n.d."]
[null,"II",{"$f":"IF(+'[1]EXT(T)'!M63=\"\",\"\",+'[1]EXT(T)'!M63)","v":238.24094368146069},{"$f":"IF(+'[1]EXT(T)'!N63=\"\",\"\",+'[1]EXT(T)'!N63)","v":69.399999999999991},{"$f":"IF(+'[1]EXT(T)'!O63=\"\",\"\",+'[1]EXT(T)'!O63)","v":"n.d."},{"$f":"IF(+'[1]EXT(T)'!P63=\"\",\"\",+'[1]EXT(T)'!P63)","v":"n.d."},{"$f":"IF(+'[1]EXT(T)'!Q63=\"\",\"\",+'[1]EXT(T)'!Q63)","v":"n.d."},{"$f":"IF(+'[1]EXT(T)'!R63=\"\",\"\",+'[1]EXT(T)'!R63)","v":"n.d."},{"$f":"IF(+'[1]EXT(T)'!S63=\"\",\"\",+'[1]EXT(T)'!S63)","v":287},{"$f":"IF(+'[1]EXT(T)'!U63=\"\",\"\",+'[1]EXT(T)'!U63)","v":"n.d."},{"$f":"IF(+'[1]EXT(T)'!V63=\"\",\"\",+'[1]EXT(T)'!V63)","v":"n.d."},{"$f":"IF(+'[1]EXT(T)'!W63=\"\",\"\",+'[1]EXT(T)'!W63)","v":425.79120289367506},{"$f":"IF(+'[1]EXT(T)'!X63=\"\",\"\",+'[1]EXT(T)'!X63)","v":73.599999999999994},{"$f":"IF(+'[1]EXT(T)'!Y63=\"\",\"\",+'[1]EXT(T)'!Y63)","v":"n.d."},{"$f":"IF(+'[1]EXT(T)'!Z63=\"\",\"\",+'[1]EXT(T)'!Z63)","v":"n.d."},{"$f":"IF(+'[1]EXT(T)'!AA63=\"\",\"\",+'[1]EXT(T)'!AA63)","v":"n.d."},{"$f":"IF(+'[1]EXT(T)'!AB63=\"\",\"\",+'[1]EXT(T)'!AB63)","v":"n.d."},{"$f":"IF(+'[1]EXT(T)'!AC63=\"\",\"\",+'[1]EXT(T)'!AC63)","v":509.8},{"$f":"IF(+'[1]EXT(T)'!AE63=\"\",\"\",+'[1]EXT(T)'!AE63)","v":"n.d."},{"$f":"IF(+'[1]EXT(T)'!AF63=\"\",\"\",+'[1]EXT(T)'!AF63)","v":"n.d."},{"$f":"IF(+'[1]EXT(T)'!AY63=\"\",\"\",+'[1]EXT(T)'!AY63)","v":3663.2375101999996},{"$f":"IF(+'[1]EXT(T)'!AZ63=\"\",\"\",+'[1]EXT(T)'!AZ63)","v":"n.d."},{"$f":"IF(+'[1]EXT(T)'!AQ63=\"\",\"\",+'[1]EXT(T)'!AQ63-'[1]EXT(T)'!AQ62)","v":73.303966799999998},{"$f":"IF(+'[1]EXT(T)'!AR63=\"\",\"\",+'[1]EXT(T)'!AR63-'[1]EXT(T)'!AR62)","v":541.6},{"$f":"IF(+'[1]EXT(T)'!AS63=\"\",\"\",+'[1]EXT(T)'!AS63-'[1]EXT(T)'!AS62)","v":529.95820000000003},{"$f":"IF(+'[1]EXT(T)'!AT63=\"\",\"\",+'[1]EXT(T)'!AT63-'[1]EXT(T)'!AT62)","v":191.61090000000002},{"$f":"IF(+'[1]EXT(T)'!AU63=\"\",\"\",+'[1]EXT(T)'!AU63-'[1]EXT(T)'!AU62)","v":102.4},{"$f":"IF(+'[1]EXT(T)'!AV63=\"\",\"\",+'[1]EXT(T)'!AV63-'[1]EXT(T)'!AV62)","v":466.69999999999993},"n.d.",1905.5730668000001,"n.d."]
[null,"III",{"$f":"IF(+'[1]EXT(T)'!M64=\"\",\"\",+'[1]EXT(T)'!M64)","v":82.59396719905935},{"$f":"IF(+'[1]EXT(T)'!N64=\"\",\"\",+'[1]EXT(T)'!N64)","v":27.2},{"$f":"IF(+'[1]EXT(T)'!O64=\"\",\"\",+'[1]EXT(T)'!O64)","v":"n.d."},{"$f":"IF(+'[1]EXT(T)'!P64=\"\",\"\",+'[1]EXT(T)'!P64)","v":"n.d."},{"$f":"IF(+'[1]EXT(T)'!Q64=\"\",\"\",+'[1]EXT(T)'!Q64)","v":"n.d."},{"$f":"IF(+'[1]EXT(T)'!R64=\"\",\"\",+'[1]EXT(T)'!R64)","v":"n.d."},{"$f":"IF(+'[1]EXT(T)'!S64=\"\",\"\",+'[1]EXT(T)'!S64)","v":1.5999999999999801},{"$f":"IF(+'[1]EXT(T)'!U64=\"\",\"\",+'[1]EXT(T)'!U64)","v":"n.d."},{"$f":"IF(+'[1]EXT(T)'!V64=\"\",\"\",+'[1]EXT(T)'!V64)","v":"n.d."},{"$f":"IF(+'[1]EXT(T)'!W64=\"\",\"\",+'[1]EXT(T)'!W64)","v":508.38517009273443},{"$f":"IF(+'[1]EXT(T)'!X64=\"\",\"\",+'[1]EXT(T)'!X64)","v":100.8},{"$f":"IF(+'[1]EXT(T)'!Y64=\"\",\"\",+'[1]EXT(T)'!Y64)","v":"n.d."},{"$f":"IF(+'[1]EXT(T)'!Z64=\"\",\"\",+'[1]EXT(T)'!Z64)","v":"n.d."},{"$f":"IF(+'[1]EXT(T)'!AA64=\"\",\"\",+'[1]EXT(T)'!AA64)","v":"n.d."},{"$f":"IF(+'[1]EXT(T)'!AB64=\"\",\"\",+'[1]EXT(T)'!AB64)","v":"n.d."},{"$f":"IF(+'[1]EXT(T)'!AC64=\"\",\"\",+'[1]EXT(T)'!AC64)","v":511.4},{"$f":"IF(+'[1]EXT(T)'!AE64=\"\",\"\",+'[1]EXT(T)'!AE64)","v":"n.d."},{"$f":"IF(+'[1]EXT(T)'!AF64=\"\",\"\",+'[1]EXT(T)'!AF64)","v":"n.d."},{"$f":"IF(+'[1]EXT(T)'!AY64=\"\",\"\",+'[1]EXT(T)'!AY64)","v":5682.9231279400001},{"$f":"IF(+'[1]EXT(T)'!AZ64=\"\",\"\",+'[1]EXT(T)'!AZ64)","v":"n.d."},{"$f":"IF(+'[1]EXT(T)'!AQ64=\"\",\"\",+'[1]EXT(T)'!AQ64-'[1]EXT(T)'!AQ63)","v":77.792117739999981},{"$f":"IF(+'[1]EXT(T)'!AR64=\"\",\"\",+'[1]EXT(T)'!AR64-'[1]EXT(T)'!AR63)","v":529.00000000000011},{"$f":"IF(+'[1]EXT(T)'!AS64=\"\",\"\",+'[1]EXT(T)'!AS64-'[1]EXT(T)'!AS63)","v":547.41849999999999},{"$f":"IF(+'[1]EXT(T)'!AT64=\"\",\"\",+'[1]EXT(T)'!AT64-'[1]EXT(T)'!AT63)","v":217.27499999999998},{"$f":"IF(+'[1]EXT(T)'!AU64=\"\",\"\",+'[1]EXT(T)'!AU64-'[1]EXT(T)'!AU63)","v":114.09999999999997},{"$f":"IF(+'[1]EXT(T)'!AV64=\"\",\"\",+'[1]EXT(T)'!AV64-'[1]EXT(T)'!AV63)","v":534.09999999999991},"n.d.",2019.68561774,"n.d."]
[null,"IV",{"$f":"IF(+'[1]EXT(T)'!M65=\"\",\"\",+'[1]EXT(T)'!M65)","v":183.72583801659462},{"$f":"IF(+'[1]EXT(T)'!N65=\"\",\"\",+'[1]EXT(T)'!N65)","v":40.4},{"$f":"IF(+'[1]EXT(T)'!O65=\"\",\"\",+'[1]EXT(T)'!O65)","v":"n.d."},{"$f":"IF(+'[1]EXT(T)'!P65=\"\",\"\",+'[1]EXT(T)'!P65)","v":"n.d."},{"$f":"IF(+'[1]EXT(T)'!Q65=\"\",\"\",+'[1]EXT(T)'!Q65)","v":"n.d."},{"$f":"IF(+'[1]EXT(T)'!R65=\"\",\"\",+'[1]EXT(T)'!R65)","v":"n.d."},{"$f":"IF(+'[1]EXT(T)'!S65=\"\",\"\",+'[1]EXT(T)'!S65)","v":306.09999999999997},{"$f":"IF(+'[1]EXT(T)'!U65=\"\",\"\",+'[1]EXT(T)'!U65)","v":"n.d."},{"$f":"IF(+'[1]EXT(T)'!V65=\"\",\"\",+'[1]EXT(T)'!V65)","v":"n.d."},{"$f":"IF(+'[1]EXT(T)'!W65=\"\",\"\",+'[1]EXT(T)'!W65)","v":692.11100810932908},{"$f":"IF(+'[1]EXT(T)'!X65=\"\",\"\",+'[1]EXT(T)'!X65)","v":141.19999999999999},{"$f":"IF(+'[1]EXT(T)'!Y65=\"\",\"\",+'[1]EXT(T)'!Y65)","v":"n.d."},{"$f":"IF(+'[1]EXT(T)'!Z65=\"\",\"\",+'[1]EXT(T)'!Z65)","v":"n.d."},{"$f":"IF(+'[1]EXT(T)'!AA65=\"\",\"\",+'[1]EXT(T)'!AA65)","v":"n.d."},{"$f":"IF(+'[1]EXT(T)'!AB65=\"\",\"\",+'[1]EXT(T)'!AB65)","v":"n.d."},{"$f":"IF(+'[1]EXT(T)'!AC65=\"\",\"\",+'[1]EXT(T)'!AC65)","v":817.5},{"$f":"IF(+'[1]EXT(T)'!AE65=\"\",\"\",+'[1]EXT(T)'!AE65)","v":"n.d."},{"$f":"IF(+'[1]EXT(T)'!AF65=\"\",\"\",+'[1]EXT(T)'!AF65)","v":"n.d."},{"$f":"IF(+'[1]EXT(T)'!AY65=\"\",\"\",+'[1]EXT(T)'!AY65)","v":7819.4178320100009},{"$f":"IF(+'[1]EXT(T)'!AZ65=\"\",\"\",+'[1]EXT(T)'!AZ65)","v":"n.d."},{"$f":"IF(+'[1]EXT(T)'!AQ65=\"\",\"\",+'[1]EXT(T)'!AQ65-'[1]EXT(T)'!AQ64)","v":90.740204070000004},{"$f":"IF(+'[1]EXT(T)'!AR65=\"\",\"\",+'[1]EXT(T)'!AR65-'[1]EXT(T)'!AR64)","v":569.5},{"$f":"IF(+'[1]EXT(T)'!AS65=\"\",\"\",+'[1]EXT(T)'!AS65-'[1]EXT(T)'!AS64)","v":558.84990000000016},{"$f":"IF(+'[1]EXT(T)'!AT65=\"\",\"\",+'[1]EXT(T)'!AT65-'[1]EXT(T)'!AT64)","v":227.5046000000001},{"$f":"IF(+'[1]EXT(T)'!AU65=\"\",\"\",+'[1]EXT(T)'!AU65-'[1]EXT(T)'!AU64)","v":121.40000000000003},{"$f":"IF(+'[1]EXT(T)'!AV65=\"\",\"\",+'[1]EXT(T)'!AV65-'[1]EXT(T)'!AV64)","v":568.50000000000023},"n.d.",2136.4947040700008,"n.d."]
[2004,"I",{"$f":"IF(+'[1]EXT(T)'!M66=\"\",\"\",+'[1]EXT(T)'!M66)","v":266.33139931866253},{"$f":"IF(+'[1]EXT(T)'!N66=\"\",\"\",+'[1]EXT(T)'!N66)","v":-69.900000000000006},{"$f":"IF(+'[1]EXT(T)'!O66=\"\",\"\",+'[1]EXT(T)'!O66)","v":"n.d."},{"$f":"IF(+'[1]EXT(T)'!P66=\"\",\"\",+'[1]EXT(T)'!P66)","v":"n.d."},{"$f":"IF(+'[1]EXT(T)'!Q66=\"\",\"\",+'[1]EXT(T)'!Q66)","v":"n.d."},{"$f":"IF(+'[1]EXT(T)'!R66=\"\",\"\",+'[1]EXT(T)'!R66)","v":"n.d."},{"$f":"IF(+'[1]EXT(T)'!S66=\"\",\"\",+'[1]EXT(T)'!S66)","v":186.4},{"$f":"IF(+'[1]EXT(T)'!U66=\"\",\"\",+'[1]EXT(T)'!U66)","v":"n.d."},{"$f":"IF(+'[1]EXT(T)'!V66=\"\",\"\",+'[1]EXT(T)'!V66)","v":"n.d."},{"$f":"IF(+'[1]EXT(T)'!W66=\"\",\"\",+'[1]EXT(T)'!W66)","v":266.33139931866253},{"$f":"IF(+'[1]EXT(T)'!X66=\"\",\"\",+'[1]EXT(T)'!X66)","v":-69.900000000000006},{"$f":"IF(+'[1]EXT(T)'!Y66=\"\",\"\",+'[1]EXT(T)'!Y66)","v":"n.d."},{"$f":"IF(+'[1]EXT(T)'!Z66=\"\",\"\",+'[1]EXT(T)'!Z66)","v":"n.d."},{"$f":"IF(+'[1]EXT(T)'!AA66=\"\",\"\",+'[1]EXT(T)'!AA66)","v":"n.d."},{"$f":"IF(+'[1]EXT(T)'!AB66=\"\",\"\",+'[1]EXT(T)'!AB66)","v":"n.d."},{"$f":"IF(+'[1]EXT(T)'!AC66=\"\",\"\",+'[1]EXT(T)'!AC66)","v":186.4},{"$f":"IF(+'[1]EXT(T)'!AE66=\"\",\"\",+'[1]EXT(T)'!AE66)","v":"n.d."},{"$f":"IF(+'[1]EXT(T)'!AF66=\"\",\"\",+'[1]EXT(T)'!AF66)","v":"n.d."},{"$f":"IF(+'[1]EXT(T)'!AY66=\"\",\"\",+'[1]EXT(T)'!AY66)","v":2116.1441984900002},{"$f":"IF(+'[1]EXT(T)'!AZ66=\"\",\"\",+'[1]EXT(T)'!AZ66)","v":"n.d."},{"$f":"IF(+'[1]EXT(T)'!AQ66=\"\",\"\",+'[1]EXT(T)'!AQ66)","v":68.557598490000004},{"$f":"IF(+'[1]EXT(T)'!AR66=\"\",\"\",+'[1]EXT(T)'!AR66)","v":560},{"$f":"IF(+'[1]EXT(T)'!AS66=\"\",\"\",+'[1]EXT(T)'!AS66)","v":606.37839999999994},{"$f":"IF(+'[1]EXT(T)'!AT66=\"\",\"\",+'[1]EXT(T)'!AT66)","v":215.90819999999999},{"$f":"IF(+'[1]EXT(T)'!AU66=\"\",\"\",+'[1]EXT(T)'!AU66)","v":117.5},{"$f":"IF(+'[1]EXT(T)'!AV66=\"\",\"\",+'[1]EXT(T)'!AV66)","v":547.79999999999995},"n.d.",2116.1441984900002,"n.d."]
[null,"II",{"$f":"IF(+'[1]EXT(T)'!M67=\"\",\"\",+'[1]EXT(T)'!M67)","v":277.00493115008675},{"$f":"IF(+'[1]EXT(T)'!N67=\"\",\"\",+'[1]EXT(T)'!N67)","v":104.8},{"$f":"IF(+'[1]EXT(T)'!O67=\"\",\"\",+'[1]EXT(T)'!O67)","v":"n.d."},{"$f":"IF(+'[1]EXT(T)'!P67=\"\",\"\",+'[1]EXT(T)'!P67)","v":"n.d."},{"$f":"IF(+'[1]EXT(T)'!Q67=\"\",\"\",+'[1]EXT(T)'!Q67)","v":"n.d."},{"$f":"IF(+'[1]EXT(T)'!R67=\"\",\"\",+'[1]EXT(T)'!R67)","v":"n.d."},{"$f":"IF(+'[1]EXT(T)'!S67=\"\",\"\",+'[1]EXT(T)'!S67)","v":139.19999999999999},{"$f":"IF(+'[1]EXT(T)'!U67=\"\",\"\",+'[1]EXT(T)'!U67)","v":"n.d."},{"$f":"IF(+'[1]EXT(T)'!V67=\"\",\"\",+'[1]EXT(T)'!V67)","v":"n.d."},{"$f":"IF(+'[1]EXT(T)'!W67=\"\",\"\",+'[1]EXT(T)'!W67)","v":543.33633046874934},{"$f":"IF(+'[1]EXT(T)'!X67=\"\",\"\",+'[1]EXT(T)'!X67)","v":34.899999999999991},{"$f":"IF(+'[1]EXT(T)'!Y67=\"\",\"\",+'[1]EXT(T)'!Y67)","v":"n.d."},{"$f":"IF(+'[1]EXT(T)'!Z67=\"\",\"\",+'[1]EXT(T)'!Z67)","v":"n.d."},{"$f":"IF(+'[1]EXT(T)'!AA67=\"\",\"\",+'[1]EXT(T)'!AA67)","v":"n.d."},{"$f":"IF(+'[1]EXT(T)'!AB67=\"\",\"\",+'[1]EXT(T)'!AB67)","v":"n.d."},{"$f":"IF(+'[1]EXT(T)'!AC67=\"\",\"\",+'[1]EXT(T)'!AC67)","v":325.60000000000002},{"$f":"IF(+'[1]EXT(T)'!AE67=\"\",\"\",+'[1]EXT(T)'!AE67)","v":"n.d."},{"$f":"IF(+'[1]EXT(T)'!AF67=\"\",\"\",+'[1]EXT(T)'!AF67)","v":"n.d."},{"$f":"IF(+'[1]EXT(T)'!AY67=\"\",\"\",+'[1]EXT(T)'!AY67)","v":4354.5140707499995},{"$f":"IF(+'[1]EXT(T)'!AZ67=\"\",\"\",+'[1]EXT(T)'!AZ67)","v":"n.d."},{"$f":"IF(+'[1]EXT(T)'!AQ67=\"\",\"\",+'[1]EXT(T)'!AQ67-'[1]EXT(T)'!AQ66)","v":68.395772260000001},{"$f":"IF(+'[1]EXT(T)'!AR67=\"\",\"\",+'[1]EXT(T)'!AR67-'[1]EXT(T)'!AR66)","v":646.89999999999986},{"$f":"IF(+'[1]EXT(T)'!AS67=\"\",\"\",+'[1]EXT(T)'!AS67-'[1]EXT(T)'!AS66)","v":626.92340000000002},{"$f":"IF(+'[1]EXT(T)'!AT67=\"\",\"\",+'[1]EXT(T)'!AT67-'[1]EXT(T)'!AT66)","v":259.45069999999998},{"$f":"IF(+'[1]EXT(T)'!AU67=\"\",\"\",+'[1]EXT(T)'!AU67-'[1]EXT(T)'!AU66)","v":124.9},{"$f":"IF(+'[1]EXT(T)'!AV67=\"\",\"\",+'[1]EXT(T)'!AV67-'[1]EXT(T)'!AV66)","v":511.79999999999995},"n.d.",2238.3698722600002,"n.d."]
[null,"III",{"$f":"IF(+'[1]EXT(T)'!M68=\"\",\"\",+'[1]EXT(T)'!M68)","v":211.51138279374806},{"$f":"IF(+'[1]EXT(T)'!N68=\"\",\"\",+'[1]EXT(T)'!N68)","v":22.689999999999998},{"$f":"IF(+'[1]EXT(T)'!O68=\"\",\"\",+'[1]EXT(T)'!O68)","v":"n.d."},{"$f":"IF(+'[1]EXT(T)'!P68=\"\",\"\",+'[1]EXT(T)'!P68)","v":"n.d."},{"$f":"IF(+'[1]EXT(T)'!Q68=\"\",\"\",+'[1]EXT(T)'!Q68)","v":"n.d."},{"$f":"IF(+'[1]EXT(T)'!R68=\"\",\"\",+'[1]EXT(T)'!R68)","v":"n.d."},{"$f":"IF(+'[1]EXT(T)'!S68=\"\",\"\",+'[1]EXT(T)'!S68)","v":221.79999999999998},{"$f":"IF(+'[1]EXT(T)'!U68=\"\",\"\",+'[1]EXT(T)'!U68)","v":"n.d."},{"$f":"IF(+'[1]EXT(T)'!V68=\"\",\"\",+'[1]EXT(T)'!V68)","v":"n.d."},{"$f":"IF(+'[1]EXT(T)'!W68=\"\",\"\",+'[1]EXT(T)'!W68)","v":754.84771326249734},{"$f":"IF(+'[1]EXT(T)'!X68=\"\",\"\",+'[1]EXT(T)'!X68)","v":57.589999999999989},{"$f":"IF(+'[1]EXT(T)'!Y68=\"\",\"\",+'[1]EXT(T)'!Y68)","v":"n.d."},{"$f":"IF(+'[1]EXT(T)'!Z68=\"\",\"\",+'[1]EXT(T)'!Z68)","v":"n.d."},{"$f":"IF(+'[1]EXT(T)'!AA68=\"\",\"\",+'[1]EXT(T)'!AA68)","v":"n.d."},{"$f":"IF(+'[1]EXT(T)'!AB68=\"\",\"\",+'[1]EXT(T)'!AB68)","v":"n.d."},{"$f":"IF(+'[1]EXT(T)'!AC68=\"\",\"\",+'[1]EXT(T)'!AC68)","v":547.4},{"$f":"IF(+'[1]EXT(T)'!AE68=\"\",\"\",+'[1]EXT(T)'!AE68)","v":"n.d."},{"$f":"IF(+'[1]EXT(T)'!AF68=\"\",\"\",+'[1]EXT(T)'!AF68)","v":"n.d."},{"$f":"IF(+'[1]EXT(T)'!AY68=\"\",\"\",+'[1]EXT(T)'!AY68)","v":6697.2038857099997},{"$f":"IF(+'[1]EXT(T)'!AZ68=\"\",\"\",+'[1]EXT(T)'!AZ68)","v":"n.d."},{"$f":"IF(+'[1]EXT(T)'!AQ68=\"\",\"\",+'[1]EXT(T)'!AQ68-'[1]EXT(T)'!AQ67)","v":80.398614960000003},{"$f":"IF(+'[1]EXT(T)'!AR68=\"\",\"\",+'[1]EXT(T)'!AR68-'[1]EXT(T)'!AR67)","v":648},{"$f":"IF(+'[1]EXT(T)'!AS68=\"\",\"\",+'[1]EXT(T)'!AS68-'[1]EXT(T)'!AS67)","v":631.17180000000008},{"$f":"IF(+'[1]EXT(T)'!AT68=\"\",\"\",+'[1]EXT(T)'!AT68-'[1]EXT(T)'!AT67)","v":289.21939999999995},{"$f":"IF(+'[1]EXT(T)'!AU68=\"\",\"\",+'[1]EXT(T)'!AU68-'[1]EXT(T)'!AU67)","v":135.1},{"$f":"IF(+'[1]EXT(T)'!AV68=\"\",\"\",+'[1]EXT(T)'!AV68-'[1]EXT(T)'!AV67)","v":558.79999999999995},"n.d.",2342.6898149600001,"n.d."]
[null,"IV",{"$f":"IF(+'[1]EXT(T)'!M69=\"\",\"\",+'[1]EXT(T)'!M69)","v":221.05993947437921},{"$f":"IF(+'[1]EXT(T)'!N69=\"\",\"\",+'[1]EXT(T)'!N69)","v":305.68},{"$f":"IF(+'[1]EXT(T)'!O69=\"\",\"\",+'[1]EXT(T)'!O69)","v":"n.d."},{"$f":"IF(+'[1]EXT(T)'!P69=\"\",\"\",+'[1]EXT(T)'!P69)","v":"n.d."},{"$f":"IF(+'[1]EXT(T)'!Q69=\"\",\"\",+'[1]EXT(T)'!Q69)","v":"n.d."},{"$f":"IF(+'[1]EXT(T)'!R69=\"\",\"\",+'[1]EXT(T)'!R69)","v":"n.d."},{"$f":"IF(+'[1]EXT(T)'!S69=\"\",\"\",+'[1]EXT(T)'!S69)","v":471.70000000000005},{"$f":"IF(+'[1]EXT(T)'!U69=\"\",\"\",+'[1]EXT(T)'!U69)","v":"n.d."},{"$f":"IF(+'[1]EXT(T)'!V69=\"\",\"\",+'[1]EXT(T)'!V69)","v":"n.d."},{"$f":"IF(+'[1]EXT(T)'!W69=\"\",\"\",+'[1]EXT(T)'!W69)","v":975.90765273687657},{"$f":"IF(+'[1]EXT(T)'!X69=\"\",\"\",+'[1]EXT(T)'!X69)","v":363.27},{"$f":"IF(+'[1]EXT(T)'!Y69=\"\",\"\",+'[1]EXT(T)'!Y69)","v":"n.d."},{"$f":"IF(+'[1]EXT(T)'!Z69=\"\",\"\",+'[1]EXT(T)'!Z69)","v":"n.d."},{"$f":"IF(+'[1]EXT(T)'!AA69=\"\",\"\",+'[1]EXT(T)'!AA69)","v":"n.d."},{"$f":"IF(+'[1]EXT(T)'!AB69=\"\",\"\",+'[1]EXT(T)'!AB69)","v":"n.d."},{"$f":"IF(+'[1]EXT(T)'!AC69=\"\",\"\",+'[1]EXT(T)'!AC69)","v":1019.1},{"$f":"IF(+'[1]EXT(T)'!AE69=\"\",\"\",+'[1]EXT(T)'!AE69)","v":"n.d."},{"$f":"IF(+'[1]EXT(T)'!AF69=\"\",\"\",+'[1]EXT(T)'!AF69)","v":"n.d."},{"$f":"IF(+'[1]EXT(T)'!AY69=\"\",\"\",+'[1]EXT(T)'!AY69)","v":9223.245952119998},{"$f":"IF(+'[1]EXT(T)'!AZ69=\"\",\"\",+'[1]EXT(T)'!AZ69)","v":"n.d."},{"$f":"IF(+'[1]EXT(T)'!AQ69=\"\",\"\",+'[1]EXT(T)'!AQ69-'[1]EXT(T)'!AQ68)","v":84.870366409999974},{"$f":"IF(+'[1]EXT(T)'!AR69=\"\",\"\",+'[1]EXT(T)'!AR69-'[1]EXT(T)'!AR68)","v":692.69999999999959},{"$f":"IF(+'[1]EXT(T)'!AS69=\"\",\"\",+'[1]EXT(T)'!AS69-'[1]EXT(T)'!AS68)","v":686.14949999999976},{"$f":"IF(+'[1]EXT(T)'!AT69=\"\",\"\",+'[1]EXT(T)'!AT69-'[1]EXT(T)'!AT68)","v":309.22219999999993},{"$f":"IF(+'[1]EXT(T)'!AU69=\"\",\"\",+'[1]EXT(T)'!AU69-'[1]EXT(T)'!AU68)","v":141.29999999999995},{"$f":"IF(+'[1]EXT(T)'!AV69=\"\",\"\",+'[1]EXT(T)'!AV69-'[1]EXT(T)'!AV68)","v":611.79999999999995},"n.d.",2526.0420664099993,"n.d."]
[2005,"I",{"$f":"IF(+'[1]EXT(T)'!M70=\"\",\"\",+'[1]EXT(T)'!M70)","v":393.98976909045177},{"$f":"IF(+'[1]EXT(T)'!N70=\"\",\"\",+'[1]EXT(T)'!N70)","v":-8.1000000000000085},{"$f":"IF(+'[1]EXT(T)'!O70=\"\",\"\",+'[1]EXT(T)'!O70)","v":"n.d."},{"$f":"IF(+'[1]EXT(T)'!P70=\"\",\"\",+'[1]EXT(T)'!P70)","v":"n.d."},{"$f":"IF(+'[1]EXT(T)'!Q70=\"\",\"\",+'[1]EXT(T)'!Q70)","v":"n.d."},{"$f":"IF(+'[1]EXT(T)'!R70=\"\",\"\",+'[1]EXT(T)'!R70)","v":"n.d."},{"$f":"IF(+'[1]EXT(T)'!S70=\"\",\"\",+'[1]EXT(T)'!S70)","v":186.6},{"$f":"IF(+'[1]EXT(T)'!U70=\"\",\"\",+'[1]EXT(T)'!U70)","v":"n.d."},{"$f":"IF(+'[1]EXT(T)'!V70=\"\",\"\",+'[1]EXT(T)'!V70)","v":"n.d."},{"$f":"IF(+'[1]EXT(T)'!W70=\"\",\"\",+'[1]EXT(T)'!W70)","v":393.98976909045177},{"$f":"IF(+'[1]EXT(T)'!X70=\"\",\"\",+'[1]EXT(T)'!X70)","v":-8.1000000000000085},{"$f":"IF(+'[1]EXT(T)'!Y70=\"\",\"\",+'[1]EXT(T)'!Y70)","v":"n.d."},{"$f":"IF(+'[1]EXT(T)'!Z70=\"\",\"\",+'[1]EXT(T)'!Z70)","v":"n.d."},{"$f":"IF(+'[1]EXT(T)'!AA70=\"\",\"\",+'[1]EXT(T)'!AA70)","v":"n.d."},{"$f":"IF(+'[1]EXT(T)'!AB70=\"\",\"\",+'[1]EXT(T)'!AB70)","v":"n.d."},{"$f":"IF(+'[1]EXT(T)'!AC70=\"\",\"\",+'[1]EXT(T)'!AC70)","v":186.6},{"$f":"IF(+'[1]EXT(T)'!AE70=\"\",\"\",+'[1]EXT(T)'!AE70)","v":"n.d."},{"$f":"IF(+'[1]EXT(T)'!AF70=\"\",\"\",+'[1]EXT(T)'!AF70)","v":"n.d."},{"$f":"IF(+'[1]EXT(T)'!AY70=\"\",\"\",+'[1]EXT(T)'!AY70)","v":2469.8099899999997},{"$f":"IF(+'[1]EXT(T)'!AZ70=\"\",\"\",+'[1]EXT(T)'!AZ70)","v":"n.d."},{"$f":"IF(+'[1]EXT(T)'!AQ70=\"\",\"\",+'[1]EXT(T)'!AQ70)","v":91.509789999999995},{"$f":"IF(+'[1]EXT(T)'!AR70=\"\",\"\",+'[1]EXT(T)'!AR70)","v":639.44999999999993},{"$f":"IF(+'[1]EXT(T)'!AS70=\"\",\"\",+'[1]EXT(T)'!AS70)","v":659.70349999999996},{"$f":"IF(+'[1]EXT(T)'!AT70=\"\",\"\",+'[1]EXT(T)'!AT70)","v":357.54670000000004},{"$f":"IF(+'[1]EXT(T)'!AU70=\"\",\"\",+'[1]EXT(T)'!AU70)","v":153.6},{"$f":"IF(+'[1]EXT(T)'!AV70=\"\",\"\",+'[1]EXT(T)'!AV70)","v":568},"n.d.",2469.8099899999997,"n.d."]
[null,"II",{"$f":"IF(+'[1]EXT(T)'!M71=\"\",\"\",+'[1]EXT(T)'!M71)","v":359.80004566263608},{"$f":"IF(+'[1]EXT(T)'!N71=\"\",\"\",+'[1]EXT(T)'!N71)","v":100.83999999999999},{"$f":"IF(+'[1]EXT(T)'!O71=\"\",\"\",+'[1]EXT(T)'!O71)","v":"n.d."},{"$f":"IF(+'[1]EXT(T)'!P71=\"\",\"\",+'[1]EXT(T)'!P71)","v":"n.d."},{"$f":"IF(+'[1]EXT(T)'!Q71=\"\",\"\",+'[1]EXT(T)'!Q71)","v":"n.d."},{"$f":"IF(+'[1]EXT(T)'!R71=\"\",\"\",+'[1]EXT(T)'!R71)","v":"n.d."},{"$f":"IF(+'[1]EXT(T)'!S71=\"\",\"\",+'[1]EXT(T)'!S71)","v":111.7},{"$f":"IF(+'[1]EXT(T)'!U71=\"\",\"\",+'[1]EXT(T)'!U71)","v":"n.d."},{"$f":"IF(+'[1]EXT(T)'!V71=\"\",\"\",+'[1]EXT(T)'!V71)","v":"n.d."},{"$f":"IF(+'[1]EXT(T)'!W71=\"\",\"\",+'[1]EXT(T)'!W71)","v":753.78981475308785},{"$f":"IF(+'[1]EXT(T)'!X71=\"\",\"\",+'[1]EXT(T)'!X71)","v":92.739999999999981},{"$f":"IF(+'[1]EXT(T)'!Y71=\"\",\"\",+'[1]EXT(T)'!Y71)","v":"n.d."},{"$f":"IF(+'[1]EXT(T)'!Z71=\"\",\"\",+'[1]EXT(T)'!Z71)","v":"n.d."},{"$f":"IF(+'[1]EXT(T)'!AA71=\"\",\"\",+'[1]EXT(T)'!AA71)","v":"n.d."},{"$f":"IF(+'[1]EXT(T)'!AB71=\"\",\"\",+'[1]EXT(T)'!AB71)","v":"n.d."},{"$f":"IF(+'[1]EXT(T)'!AC71=\"\",\"\",+'[1]EXT(T)'!AC71)","v":298.3},{"$f":"IF(+'[1]EXT(T)'!AE71=\"\",\"\",+'[1]EXT(T)'!AE71)","v":"n.d."},{"$f":"IF(+'[1]EXT(T)'!AF71=\"\",\"\",+'[1]EXT(T)'!AF71)","v":"n.d."},{"$f":"IF(+'[1]EXT(T)'!AY71=\"\",\"\",+'[1]EXT(T)'!AY71)","v":5235.7278699999997},{"$f":"IF(+'[1]EXT(T)'!AZ71=\"\",\"\",+'[1]EXT(T)'!AZ71)","v":"n.d."},{"$f":"IF(+'[1]EXT(T)'!AQ71=\"\",\"\",+'[1]EXT(T)'!AQ71-'[1]EXT(T)'!AQ70)","v":105.83968},{"$f":"IF(+'[1]EXT(T)'!AR71=\"\",\"\",+'[1]EXT(T)'!AR71-'[1]EXT(T)'!AR70)","v":768.44999999999993},{"$f":"IF(+'[1]EXT(T)'!AS71=\"\",\"\",+'[1]EXT(T)'!AS71-'[1]EXT(T)'!AS70)","v":788.47249999999997},{"$f":"IF(+'[1]EXT(T)'!AT71=\"\",\"\",+'[1]EXT(T)'!AT71-'[1]EXT(T)'!AT70)","v":401.05569999999994},{"$f":"IF(+'[1]EXT(T)'!AU71=\"\",\"\",+'[1]EXT(T)'!AU71-'[1]EXT(T)'!AU70)","v":148.9},{"$f":"IF(+'[1]EXT(T)'!AV71=\"\",\"\",+'[1]EXT(T)'!AV71-'[1]EXT(T)'!AV70)","v":553.20000000000005},"n.d.",2765.91788,"n.d."]
[null,"III",{"$f":"IF(+'[1]EXT(T)'!M72=\"\",\"\",+'[1]EXT(T)'!M72)","v":258.24938815868887},{"$f":"IF(+'[1]EXT(T)'!N72=\"\",\"\",+'[1]EXT(T)'!N72)","v":53.3},{"$f":"IF(+'[1]EXT(T)'!O72=\"\",\"\",+'[1]EXT(T)'!O72)","v":"n.d."},{"$f":"IF(+'[1]EXT(T)'!P72=\"\",\"\",+'[1]EXT(T)'!P72)","v":"n.d."},{"$f":"IF(+'[1]EXT(T)'!Q72=\"\",\"\",+'[1]EXT(T)'!Q72)","v":"n.d."},{"$f":"IF(+'[1]EXT(T)'!R72=\"\",\"\",+'[1]EXT(T)'!R72)","v":"n.d."},{"$f":"IF(+'[1]EXT(T)'!S72=\"\",\"\",+'[1]EXT(T)'!S72)","v":173.20000000000002},{"$f":"IF(+'[1]EXT(T)'!U72=\"\",\"\",+'[1]EXT(T)'!U72)","v":"n.d."},{"$f":"IF(+'[1]EXT(T)'!V72=\"\",\"\",+'[1]EXT(T)'!V72)","v":"n.d."},{"$f":"IF(+'[1]EXT(T)'!W72=\"\",\"\",+'[1]EXT(T)'!W72)","v":1012.0392029117768},{"$f":"IF(+'[1]EXT(T)'!X72=\"\",\"\",+'[1]EXT(T)'!X72)","v":146.03999999999996},{"$f":"IF(+'[1]EXT(T)'!Y72=\"\",\"\",+'[1]EXT(T)'!Y72)","v":"n.d."},{"$f":"IF(+'[1]EXT(T)'!Z72=\"\",\"\",+'[1]EXT(T)'!Z72)","v":"n.d."},{"$f":"IF(+'[1]EXT(T)'!AA72=\"\",\"\",+'[1]EXT(T)'!AA72)","v":"n.d."},{"$f":"IF(+'[1]EXT(T)'!AB72=\"\",\"\",+'[1]EXT(T)'!AB72)","v":"n.d."},{"$f":"IF(+'[1]EXT(T)'!AC72=\"\",\"\",+'[1]EXT(T)'!AC72)","v":471.5},{"$f":"IF(+'[1]EXT(T)'!AE72=\"\",\"\",+'[1]EXT(T)'!AE72)","v":"n.d."},{"$f":"IF(+'[1]EXT(T)'!AF72=\"\",\"\",+'[1]EXT(T)'!AF72)","v":"n.d."},{"$f":"IF(+'[1]EXT(T)'!AY72=\"\",\"\",+'[1]EXT(T)'!AY72)","v":8031.4402899999995},{"$f":"IF(+'[1]EXT(T)'!AZ72=\"\",\"\",+'[1]EXT(T)'!AZ72)","v":"n.d."},{"$f":"IF(+'[1]EXT(T)'!AQ72=\"\",\"\",+'[1]EXT(T)'!AQ72-'[1]EXT(T)'!AQ71)","v":102.14672000000002},{"$f":"IF(+'[1]EXT(T)'!AR72=\"\",\"\",+'[1]EXT(T)'!AR72-'[1]EXT(T)'!AR71)","v":758.31000000000017},{"$f":"IF(+'[1]EXT(T)'!AS72=\"\",\"\",+'[1]EXT(T)'!AS72-'[1]EXT(T)'!AS71)","v":729.31460000000015},{"$f":"IF(+'[1]EXT(T)'!AT72=\"\",\"\",+'[1]EXT(T)'!AT72-'[1]EXT(T)'!AT71)","v":456.94110000000001},{"$f":"IF(+'[1]EXT(T)'!AU72=\"\",\"\",+'[1]EXT(T)'!AU72-'[1]EXT(T)'!AU71)","v":150.5},{"$f":"IF(+'[1]EXT(T)'!AV72=\"\",\"\",+'[1]EXT(T)'!AV72-'[1]EXT(T)'!AV71)","v":598.5},"n.d.",2795.7124200000003,"n.d."]
[null,"IV",{"$f":"IF(+'[1]EXT(T)'!M73=\"\",\"\",+'[1]EXT(T)'!M73)","v":352.09471119356863},{"$f":"IF(+'[1]EXT(T)'!N73=\"\",\"\",+'[1]EXT(T)'!N73)","v":365.1},{"$f":"IF(+'[1]EXT(T)'!O73=\"\",\"\",+'[1]EXT(T)'!O73)","v":"n.d."},{"$f":"IF(+'[1]EXT(T)'!P73=\"\",\"\",+'[1]EXT(T)'!P73)","v":"n.d."},{"$f":"IF(+'[1]EXT(T)'!Q73=\"\",\"\",+'[1]EXT(T)'!Q73)","v":"n.d."},{"$f":"IF(+'[1]EXT(T)'!R73=\"\",\"\",+'[1]EXT(T)'!R73)","v":"n.d."},{"$f":"IF(+'[1]EXT(T)'!S73=\"\",\"\",+'[1]EXT(T)'!S73)","v":446.1},{"$f":"IF(+'[1]EXT(T)'!U73=\"\",\"\",+'[1]EXT(T)'!U73)","v":"n.d."},{"$f":"IF(+'[1]EXT(T)'!V73=\"\",\"\",+'[1]EXT(T)'!V73)","v":"n.d."},{"$f":"IF(+'[1]EXT(T)'!W73=\"\",\"\",+'[1]EXT(T)'!W73)","v":1364.1339141053454},{"$f":"IF(+'[1]EXT(T)'!X73=\"\",\"\",+'[1]EXT(T)'!X73)","v":511.14},{"$f":"IF(+'[1]EXT(T)'!Y73=\"\",\"\",+'[1]EXT(T)'!Y73)","v":"n.d."},{"$f":"IF(+'[1]EXT(T)'!Z73=\"\",\"\",+'[1]EXT(T)'!Z73)","v":"n.d."},{"$f":"IF(+'[1]EXT(T)'!AA73=\"\",\"\",+'[1]EXT(T)'!AA73)","v":"n.d."},{"$f":"IF(+'[1]EXT(T)'!AB73=\"\",\"\",+'[1]EXT(T)'!AB73)","v":"n.d."},{"$f":"IF(+'[1]EXT(T)'!AC73=\"\",\"\",+'[1]EXT(T)'!AC73)","v":917.6},{"$f":"IF(+'[1]EXT(T)'!AE73=\"\",\"\",+'[1]EXT(T)'!AE73)","v":"n.d."},{"$f":"IF(+'[1]EXT(T)'!AF73=\"\",\"\",+'[1]EXT(T)'!AF73)","v":"n.d."},{"$f":"IF(+'[1]EXT(T)'!AY73=\"\",\"\",+'[1]EXT(T)'!AY73)","v":11174.272410000001},{"$f":"IF(+'[1]EXT(T)'!AZ73=\"\",\"\",+'[1]EXT(T)'!AZ73)","v":"n.d."},{"$f":"IF(+'[1]EXT(T)'!AQ73=\"\",\"\",+'[1]EXT(T)'!AQ73-'[1]EXT(T)'!AQ72)","v":100.25722000000002},{"$f":"IF(+'[1]EXT(T)'!AR73=\"\",\"\",+'[1]EXT(T)'!AR73-'[1]EXT(T)'!AR72)","v":850.97000000000025},{"$f":"IF(+'[1]EXT(T)'!AS73=\"\",\"\",+'[1]EXT(T)'!AS73-'[1]EXT(T)'!AS72)","v":815.33190000000013},{"$f":"IF(+'[1]EXT(T)'!AT73=\"\",\"\",+'[1]EXT(T)'!AT73-'[1]EXT(T)'!AT72)","v":503.37300000000005},{"$f":"IF(+'[1]EXT(T)'!AU73=\"\",\"\",+'[1]EXT(T)'!AU73-'[1]EXT(T)'!AU72)","v":162.70000000000005},{"$f":"IF(+'[1]EXT(T)'!AV73=\"\",\"\",+'[1]EXT(T)'!AV73-'[1]EXT(T)'!AV72)","v":710.2},"n.d.",3142.83212,"n.d."]
[2006,"I",{"$f":"IF(+'[1]EXT(T)'!M74=\"\",\"\",+'[1]EXT(T)'!M74)","v":374.58803460043055},{"$f":"IF(+'[1]EXT(T)'!N74=\"\",\"\",+'[1]EXT(T)'!N74)","v":175.7},{"$f":"IF(+'[1]EXT(T)'!O74=\"\",\"\",+'[1]EXT(T)'!O74)","v":"n.d."},{"$f":"IF(+'[1]EXT(T)'!P74=\"\",\"\",+'[1]EXT(T)'!P74)","v":"n.d."},{"$f":"IF(+'[1]EXT(T)'!Q74=\"\",\"\",+'[1]EXT(T)'!Q74)","v":64.5},{"$f":"IF(+'[1]EXT(T)'!R74=\"\",\"\",+'[1]EXT(T)'!R74)","v":"n.d."},{"$f":"IF(+'[1]EXT(T)'!S74=\"\",\"\",+'[1]EXT(T)'!S74)","v":76.599999999999994},{"$f":"IF(+'[1]EXT(T)'!U74=\"\",\"\",+'[1]EXT(T)'!U74)","v":"n.d."},{"$f":"IF(+'[1]EXT(T)'!V74=\"\",\"\",+'[1]EXT(T)'!V74)","v":"n.d."},{"$f":"IF(+'[1]EXT(T)'!W74=\"\",\"\",+'[1]EXT(T)'!W74)","v":374.58803460043055},{"$f":"IF(+'[1]EXT(T)'!X74=\"\",\"\",+'[1]EXT(T)'!X74)","v":175.7},{"$f":"IF(+'[1]EXT(T)'!Y74=\"\",\"\",+'[1]EXT(T)'!Y74)","v":"n.d."},{"$f":"IF(+'[1]EXT(T)'!Z74=\"\",\"\",+'[1]EXT(T)'!Z74)","v":"n.d."},{"$f":"IF(+'[1]EXT(T)'!AA74=\"\",\"\",+'[1]EXT(T)'!AA74)","v":64.5},{"$f":"IF(+'[1]EXT(T)'!AB74=\"\",\"\",+'[1]EXT(T)'!AB74)","v":"n.d."},{"$f":"IF(+'[1]EXT(T)'!AC74=\"\",\"\",+'[1]EXT(T)'!AC74)","v":76.599999999999994},{"$f":"IF(+'[1]EXT(T)'!AE74=\"\",\"\",+'[1]EXT(T)'!AE74)","v":"n.d."},{"$f":"IF(+'[1]EXT(T)'!AF74=\"\",\"\",+'[1]EXT(T)'!AF74)","v":"n.d."},{"$f":"IF(+'[1]EXT(T)'!AY74=\"\",\"\",+'[1]EXT(T)'!AY74)","v":3007.7737926},{"$f":"IF(+'[1]EXT(T)'!AZ74=\"\",\"\",+'[1]EXT(T)'!AZ74)","v":"n.d."},{"$f":"IF(+'[1]EXT(T)'!AQ74=\"\",\"\",+'[1]EXT(T)'!AQ74)","v":108.9113926},{"$f":"IF(+'[1]EXT(T)'!AR74=\"\",\"\",+'[1]EXT(T)'!AR74)","v":796.77},{"$f":"IF(+'[1]EXT(T)'!AS74=\"\",\"\",+'[1]EXT(T)'!AS74)","v":792.66460000000006},{"$f":"IF(+'[1]EXT(T)'!AT74=\"\",\"\",+'[1]EXT(T)'!AT74)","v":507.42780000000005},{"$f":"IF(+'[1]EXT(T)'!AU74=\"\",\"\",+'[1]EXT(T)'!AU74)","v":173.6},{"$f":"IF(+'[1]EXT(T)'!AV74=\"\",\"\",+'[1]EXT(T)'!AV74)","v":628.40000000000009},"n.d.",{"$f":"IF(OR(W67=\"\",X67=\"\",Y67=\"\",Z67=\"\",AA67=\"\",AB67=\"\"),\"\",W67+X67+Y67+Z67+AA67+AB67)","v":3007.7737926},"n.d."]
[null,"II",{"$f":"IF(+'[1]EXT(T)'!M75=\"\",\"\",+'[1]EXT(T)'!M75)","v":354.40034469424143},{"$f":"IF(+'[1]EXT(T)'!N75=\"\",\"\",+'[1]EXT(T)'!N75)","v":2.9000000000000021},{"$f":"IF(+'[1]EXT(T)'!O75=\"\",\"\",+'[1]EXT(T)'!O75)","v":"n.d."},{"$f":"IF(+'[1]EXT(T)'!P75=\"\",\"\",+'[1]EXT(T)'!P75)","v":"n.d."},{"$f":"IF(+'[1]EXT(T)'!Q75=\"\",\"\",+'[1]EXT(T)'!Q75)","v":67.2},{"$f":"IF(+'[1]EXT(T)'!R75=\"\",\"\",+'[1]EXT(T)'!R75)","v":"n.d."},{"$f":"IF(+'[1]EXT(T)'!S75=\"\",\"\",+'[1]EXT(T)'!S75)","v":297.2},{"$f":"IF(+'[1]EXT(T)'!U75=\"\",\"\",+'[1]EXT(T)'!U75)","v":"n.d."},{"$f":"IF(+'[1]EXT(T)'!V75=\"\",\"\",+'[1]EXT(T)'!V75)","v":"n.d."},{"$f":"IF(+'[1]EXT(T)'!W75=\"\",\"\",+'[1]EXT(T)'!W75)","v":728.98837929467197},{"$f":"IF(+'[1]EXT(T)'!X75=\"\",\"\",+'[1]EXT(T)'!X75)","v":178.6},{"$f":"IF(+'[1]EXT(T)'!Y75=\"\",\"\",+'[1]EXT(T)'!Y75)","v":"n.d."},{"$f":"IF(+'[1]EXT(T)'!Z75=\"\",\"\",+'[1]EXT(T)'!Z75)","v":"n.d."},{"$f":"IF(+'[1]EXT(T)'!AA75=\"\",\"\",+'[1]EXT(T)'!AA75)","v":131.69999999999999},{"$f":"IF(+'[1]EXT(T)'!AB75=\"\",\"\",+'[1]EXT(T)'!AB75)","v":"n.d."},{"$f":"IF(+'[1]EXT(T)'!AC75=\"\",\"\",+'[1]EXT(T)'!AC75)","v":373.79999999999995},{"$f":"IF(+'[1]EXT(T)'!AE75=\"\",\"\",+'[1]EXT(T)'!AE75)","v":"n.d."},{"$f":"IF(+'[1]EXT(T)'!AF75=\"\",\"\",+'[1]EXT(T)'!AF75)","v":"n.d."},{"$f":"IF(+'[1]EXT(T)'!AY75=\"\",\"\",+'[1]EXT(T)'!AY75)","v":6375.4970493000001},{"$f":"IF(+'[1]EXT(T)'!AZ75=\"\",\"\",+'[1]EXT(T)'!AZ75)","v":"n.d."},{"$f":"IF(+'[1]EXT(T)'!AQ75=\"\",\"\",+'[1]EXT(T)'!AQ75-'[1]EXT(T)'!AQ74)","v":124.93905669999998},{"$f":"IF(+'[1]EXT(T)'!AR75=\"\",\"\",+'[1]EXT(T)'!AR75-'[1]EXT(T)'!AR74)","v":894.64999999999986},{"$f":"IF(+'[1]EXT(T)'!AS75=\"\",\"\",+'[1]EXT(T)'!AS75-'[1]EXT(T)'!AS74)","v":955.92790000000014},{"$f":"IF(+'[1]EXT(T)'!AT75=\"\",\"\",+'[1]EXT(T)'!AT75-'[1]EXT(T)'!AT74)","v":567.70629999999994},{"$f":"IF(+'[1]EXT(T)'!AU75=\"\",\"\",+'[1]EXT(T)'!AU75-'[1]EXT(T)'!AU74)","v":168.50000000000003},{"$f":"IF(+'[1]EXT(T)'!AV75=\"\",\"\",+'[1]EXT(T)'!AV75-'[1]EXT(T)'!AV74)","v":656},"n.d.",{"$f":"IF(OR(W68=\"\",X68=\"\",Y68=\"\",Z68=\"\",AA68=\"\",AB68=\"\"),\"\",W68+X68+Y68+Z68+AA68+AB68)","v":3367.7232567000001},"n.d."]
[null,"III",{"$f":"IF(+'[1]EXT(T)'!M76=\"\",\"\",+'[1]EXT(T)'!M76)","v":651.08589405223756},{"$f":"IF(+'[1]EXT(T)'!N76=\"\",\"\",+'[1]EXT(T)'!N76)","v":-22.599999999999994},{"$f":"IF(+'[1]EXT(T)'!O76=\"\",\"\",+'[1]EXT(T)'!O76)","v":"n.d."},{"$f":"IF(+'[1]EXT(T)'!P76=\"\",\"\",+'[1]EXT(T)'!P76)","v":"n.d."},{"$f":"IF(+'[1]EXT(T)'!Q76=\"\",\"\",+'[1]EXT(T)'!Q76)","v":73.2},{"$f":"IF(+'[1]EXT(T)'!R76=\"\",\"\",+'[1]EXT(T)'!R76)","v":"n.d."},{"$f":"IF(+'[1]EXT(T)'!S76=\"\",\"\",+'[1]EXT(T)'!S76)","v":488.4},{"$f":"IF(+'[1]EXT(T)'!U76=\"\",\"\",+'[1]EXT(T)'!U76)","v":"n.d."},{"$f":"IF(+'[1]EXT(T)'!V76=\"\",\"\",+'[1]EXT(T)'!V76)","v":"n.d."},{"$f":"IF(+'[1]EXT(T)'!W76=\"\",\"\",+'[1]EXT(T)'!W76)","v":1380.0742733469096},{"$f":"IF(+'[1]EXT(T)'!X76=\"\",\"\",+'[1]EXT(T)'!X76)","v":156},{"$f":"IF(+'[1]EXT(T)'!Y76=\"\",\"\",+'[1]EXT(T)'!Y76)","v":"n.d."},{"$f":"IF(+'[1]EXT(T)'!Z76=\"\",\"\",+'[1]EXT(T)'!Z76)","v":"n.d."},{"$f":"IF(+'[1]EXT(T)'!AA76=\"\",\"\",+'[1]EXT(T)'!AA76)","v":204.89999999999998},{"$f":"IF(+'[1]EXT(T)'!AB76=\"\",\"\",+'[1]EXT(T)'!AB76)","v":"n.d."},{"$f":"IF(+'[1]EXT(T)'!AC76=\"\",\"\",+'[1]EXT(T)'!AC76)","v":862.19999999999993},{"$f":"IF(+'[1]EXT(T)'!AE76=\"\",\"\",+'[1]EXT(T)'!AE76)","v":"n.d."},{"$f":"IF(+'[1]EXT(T)'!AF76=\"\",\"\",+'[1]EXT(T)'!AF76)","v":"n.d."},{"$f":"IF(+'[1]EXT(T)'!AY76=\"\",\"\",+'[1]EXT(T)'!AY76)","v":9750.1230493000003},{"$f":"IF(+'[1]EXT(T)'!AZ76=\"\",\"\",+'[1]EXT(T)'!AZ76)","v":"n.d."},{"$f":"IF(+'[1]EXT(T)'!AQ76=\"\",\"\",+'[1]EXT(T)'!AQ76-'[1]EXT(T)'!AQ75)","v":131.91399999999999},{"$f":"IF(+'[1]EXT(T)'!AR76=\"\",\"\",+'[1]EXT(T)'!AR76-'[1]EXT(T)'!AR75)","v":850.04000000000019},{"$f":"IF(+'[1]EXT(T)'!AS76=\"\",\"\",+'[1]EXT(T)'!AS76-'[1]EXT(T)'!AS75)","v":928.83199999999988},{"$f":"IF(+'[1]EXT(T)'!AT76=\"\",\"\",+'[1]EXT(T)'!AT76-'[1]EXT(T)'!AT75)","v":581.63999999999987},{"$f":"IF(+'[1]EXT(T)'!AU76=\"\",\"\",+'[1]EXT(T)'!AU76-'[1]EXT(T)'!AU75)","v":178.60000000000002},{"$f":"IF(+'[1]EXT(T)'!AV76=\"\",\"\",+'[1]EXT(T)'!AV76-'[1]EXT(T)'!AV75)","v":703.59999999999991},"n.d.",3374.6259999999997,"n.d."]
[null,"IV",{"$f":"IF(+'[1]EXT(T)'!M77=\"\",\"\",+'[1]EXT(T)'!M77)","v":322.42246308831182},{"$f":"IF(+'[1]EXT(T)'!N77=\"\",\"\",+'[1]EXT(T)'!N77)","v":85.13},{"$f":"IF(+'[1]EXT(T)'!O77=\"\",\"\",+'[1]EXT(T)'!O77)","v":"n.d."},{"$f":"IF(+'[1]EXT(T)'!P77=\"\",\"\",+'[1]EXT(T)'!P77)","v":"n.d."},{"$f":"IF(+'[1]EXT(T)'!Q77=\"\",\"\",+'[1]EXT(T)'!Q77)","v":81.900000000000006},{"$f":"IF(+'[1]EXT(T)'!R77=\"\",\"\",+'[1]EXT(T)'!R77)","v":"n.d."},{"$f":"IF(+'[1]EXT(T)'!S77=\"\",\"\",+'[1]EXT(T)'!S77)","v":1685.1},{"$f":"IF(+'[1]EXT(T)'!U77=\"\",\"\",+'[1]EXT(T)'!U77)","v":"n.d."},{"$f":"IF(+'[1]EXT(T)'!V77=\"\",\"\",+'[1]EXT(T)'!V77)","v":"n.d."},{"$f":"IF(+'[1]EXT(T)'!W77=\"\",\"\",+'[1]EXT(T)'!W77)","v":1702.4967364352215},{"$f":"IF(+'[1]EXT(T)'!X77=\"\",\"\",+'[1]EXT(T)'!X77)","v":241.13},{"$f":"IF(+'[1]EXT(T)'!Y77=\"\",\"\",+'[1]EXT(T)'!Y77)","v":"n.d."},{"$f":"IF(+'[1]EXT(T)'!Z77=\"\",\"\",+'[1]EXT(T)'!Z77)","v":"n.d."},{"$f":"IF(+'[1]EXT(T)'!AA77=\"\",\"\",+'[1]EXT(T)'!AA77)","v":286.79999999999995},{"$f":"IF(+'[1]EXT(T)'!AB77=\"\",\"\",+'[1]EXT(T)'!AB77)","v":"n.d."},{"$f":"IF(+'[1]EXT(T)'!AC77=\"\",\"\",+'[1]EXT(T)'!AC77)","v":2547.2999999999997},{"$f":"IF(+'[1]EXT(T)'!AE77=\"\",\"\",+'[1]EXT(T)'!AE77)","v":"n.d."},{"$f":"IF(+'[1]EXT(T)'!AF77=\"\",\"\",+'[1]EXT(T)'!AF77)","v":"n.d."},{"$f":"IF(+'[1]EXT(T)'!AY77=\"\",\"\",+'[1]EXT(T)'!AY77)","v":13257.584690899999},{"$f":"IF(+'[1]EXT(T)'!AZ77=\"\",\"\",+'[1]EXT(T)'!AZ77)","v":"n.d."},{"$f":"IF(+'[1]EXT(T)'!AQ77=\"\",\"\",+'[1]EXT(T)'!AQ77-'[1]EXT(T)'!AQ76)","v":124.06484159999997},{"$f":"IF(+'[1]EXT(T)'!AR77=\"\",\"\",+'[1]EXT(T)'!AR77-'[1]EXT(T)'!AR76)","v":929.43000000000029},{"$f":"IF(+'[1]EXT(T)'!AS77=\"\",\"\",+'[1]EXT(T)'!AS77-'[1]EXT(T)'!AS76)","v":932.38860000000022},{"$f":"IF(+'[1]EXT(T)'!AT77=\"\",\"\",+'[1]EXT(T)'!AT77-'[1]EXT(T)'!AT76)","v":594.97819999999979},{"$f":"IF(+'[1]EXT(T)'!AU77=\"\",\"\",+'[1]EXT(T)'!AU77-'[1]EXT(T)'!AU76)","v":176.79999999999995},{"$f":"IF(+'[1]EXT(T)'!AV77=\"\",\"\",+'[1]EXT(T)'!AV77-'[1]EXT(T)'!AV76)","v":749.80000000000018},"n.d.",3507.4616416000008,"n.d."]
[2007,"I",{"$f":"IF(+'[1]EXT(T)'!M78=\"\",\"\",+'[1]EXT(T)'!M78)","v":682.98028723471657},{"$f":"IF(+'[1]EXT(T)'!N78=\"\",\"\",+'[1]EXT(T)'!N78)","v":448.29999999999995},{"$f":"IF(+'[1]EXT(T)'!O78=\"\",\"\",+'[1]EXT(T)'!O78)","v":"n.d."},{"$f":"IF(+'[1]EXT(T)'!P78=\"\",\"\",+'[1]EXT(T)'!P78)","v":"n.d."},{"$f":"IF(+'[1]EXT(T)'!Q78=\"\",\"\",+'[1]EXT(T)'!Q78)","v":58.8},{"$f":"IF(+'[1]EXT(T)'!R78=\"\",\"\",+'[1]EXT(T)'!R78)","v":"n.d."},{"$f":"IF(+'[1]EXT(T)'!S78=\"\",\"\",+'[1]EXT(T)'!S78)","v":424.2},{"$f":"IF(+'[1]EXT(T)'!U78=\"\",\"\",+'[1]EXT(T)'!U78)","v":1190.0802872347165},{"$f":"IF(+'[1]EXT(T)'!V78=\"\",\"\",+'[1]EXT(T)'!V78)","v":1614.2802872347165},{"$f":"IF(+'[1]EXT(T)'!W78=\"\",\"\",+'[1]EXT(T)'!W78)","v":682.98028723471657},{"$f":"IF(+'[1]EXT(T)'!X78=\"\",\"\",+'[1]EXT(T)'!X78)","v":448.29999999999995},{"$f":"IF(+'[1]EXT(T)'!Y78=\"\",\"\",+'[1]EXT(T)'!Y78)","v":"n.d."},{"$f":"IF(+'[1]EXT(T)'!Z78=\"\",\"\",+'[1]EXT(T)'!Z78)","v":"n.d."},{"$f":"IF(+'[1]EXT(T)'!AA78=\"\",\"\",+'[1]EXT(T)'!AA78)","v":58.8},{"$f":"IF(+'[1]EXT(T)'!AB78=\"\",\"\",+'[1]EXT(T)'!AB78)","v":"n.d."},{"$f":"IF(+'[1]EXT(T)'!AC78=\"\",\"\",+'[1]EXT(T)'!AC78)","v":424.2},{"$f":"IF(+'[1]EXT(T)'!AE78=\"\",\"\",+'[1]EXT(T)'!AE78)","v":1190.0802872347165},{"$f":"IF(+'[1]EXT(T)'!AF78=\"\",\"\",+'[1]EXT(T)'!AF78)","v":1614.2802872347165},{"$f":"IF(+'[1]EXT(T)'!AY78=\"\",\"\",+'[1]EXT(T)'!AY78)","v":3348.0183873000001},{"$f":"IF(+'[1]EXT(T)'!AZ78=\"\",\"\",+'[1]EXT(T)'!AZ78)","v":"n.d."},{"$f":"IF(+'[1]EXT(T)'!AQ78=\"\",\"\",+'[1]EXT(T)'!AQ78)","v":123.4692873},{"$f":"IF(+'[1]EXT(T)'!AR78=\"\",\"\",+'[1]EXT(T)'!AR78)","v":860.12000000000012},{"$f":"IF(+'[1]EXT(T)'!AS78=\"\",\"\",+'[1]EXT(T)'!AS78)","v":886.68420000000015},{"$f":"IF(+'[1]EXT(T)'!AT78=\"\",\"\",+'[1]EXT(T)'!AT78)","v":568.64490000000001},{"$f":"IF(+'[1]EXT(T)'!AU78=\"\",\"\",+'[1]EXT(T)'!AU78)","v":165.1},{"$f":"IF(+'[1]EXT(T)'!AV78=\"\",\"\",+'[1]EXT(T)'!AV78)","v":744},"n.d.",{"$f":"IF(OR(W71=\"\",X71=\"\",Y71=\"\",Z71=\"\",AA71=\"\",AB71=\"\"),\"\",W71+X71+Y71+Z71+AA71+AB71)","v":3348.0183873000001},"n.d."]
[null,"II",{"$f":"IF(+'[1]EXT(T)'!M79=\"\",\"\",+'[1]EXT(T)'!M79)","v":538.23089726507942},{"$f":"IF(+'[1]EXT(T)'!N79=\"\",\"\",+'[1]EXT(T)'!N79)","v":714.8},{"$f":"IF(+'[1]EXT(T)'!O79=\"\",\"\",+'[1]EXT(T)'!O79)","v":"n.d."},{"$f":"IF(+'[1]EXT(T)'!P79=\"\",\"\",+'[1]EXT(T)'!P79)","v":"n.d."},{"$f":"IF(+'[1]EXT(T)'!Q79=\"\",\"\",+'[1]EXT(T)'!Q79)","v":107.6},{"$f":"IF(+'[1]EXT(T)'!R79=\"\",\"\",+'[1]EXT(T)'!R79)","v":"n.d."},{"$f":"IF(+'[1]EXT(T)'!S79=\"\",\"\",+'[1]EXT(T)'!S79)","v":341.40000000000003},{"$f":"IF(+'[1]EXT(T)'!U79=\"\",\"\",+'[1]EXT(T)'!U79)","v":1360.6308972650793},{"$f":"IF(+'[1]EXT(T)'!V79=\"\",\"\",+'[1]EXT(T)'!V79)","v":1702.0308972650794},{"$f":"IF(+'[1]EXT(T)'!W79=\"\",\"\",+'[1]EXT(T)'!W79)","v":1221.211184499796},{"$f":"IF(+'[1]EXT(T)'!X79=\"\",\"\",+'[1]EXT(T)'!X79)","v":1163.0999999999999},{"$f":"IF(+'[1]EXT(T)'!Y79=\"\",\"\",+'[1]EXT(T)'!Y79)","v":"n.d."},{"$f":"IF(+'[1]EXT(T)'!Z79=\"\",\"\",+'[1]EXT(T)'!Z79)","v":"n.d."},{"$f":"IF(+'[1]EXT(T)'!AA79=\"\",\"\",+'[1]EXT(T)'!AA79)","v":166.39999999999998},{"$f":"IF(+'[1]EXT(T)'!AB79=\"\",\"\",+'[1]EXT(T)'!AB79)","v":"n.d."},{"$f":"IF(+'[1]EXT(T)'!AC79=\"\",\"\",+'[1]EXT(T)'!AC79)","v":765.6},{"$f":"IF(+'[1]EXT(T)'!AE79=\"\",\"\",+'[1]EXT(T)'!AE79)","v":2550.7111844997958},{"$f":"IF(+'[1]EXT(T)'!AF79=\"\",\"\",+'[1]EXT(T)'!AF79)","v":3316.3111844997957},{"$f":"IF(+'[1]EXT(T)'!AY79=\"\",\"\",+'[1]EXT(T)'!AY79)","v":7058.9489211},{"$f":"IF(+'[1]EXT(T)'!AZ79=\"\",\"\",+'[1]EXT(T)'!AZ79)","v":"n.d."},{"$f":"IF(+'[1]EXT(T)'!AQ79=\"\",\"\",+'[1]EXT(T)'!AQ79-'[1]EXT(T)'!AQ78)","v":136.21073380000001},{"$f":"IF(+'[1]EXT(T)'!AR79=\"\",\"\",+'[1]EXT(T)'!AR79-'[1]EXT(T)'!AR78)","v":958.28},{"$f":"IF(+'[1]EXT(T)'!AS79=\"\",\"\",+'[1]EXT(T)'!AS79-'[1]EXT(T)'!AS78)","v":1083.0346},{"$f":"IF(+'[1]EXT(T)'!AT79=\"\",\"\",+'[1]EXT(T)'!AT79-'[1]EXT(T)'!AT78)","v":623.50519999999983},{"$f":"IF(+'[1]EXT(T)'!AU79=\"\",\"\",+'[1]EXT(T)'!AU79-'[1]EXT(T)'!AU78)","v":181.09999999999994},{"$f":"IF(+'[1]EXT(T)'!AV79=\"\",\"\",+'[1]EXT(T)'!AV79-'[1]EXT(T)'!AV78)","v":728.80000000000018},"n.d.",3710.9305337999999,"n.d."]
[null,"III",{"$f":"IF(+'[1]EXT(T)'!M80=\"\",\"\",+'[1]EXT(T)'!M80)","v":431.92687358303192},{"$f":"IF(+'[1]EXT(T)'!N80=\"\",\"\",+'[1]EXT(T)'!N80)","v":190.14999999999998},{"$f":"IF(+'[1]EXT(T)'!O80=\"\",\"\",+'[1]EXT(T)'!O80)","v":"n.d."},{"$f":"IF(+'[1]EXT(T)'!P80=\"\",\"\",+'[1]EXT(T)'!P80)","v":"n.d."},{"$f":"IF(+'[1]EXT(T)'!Q80=\"\",\"\",+'[1]EXT(T)'!Q80)","v":120.1},{"$f":"IF(+'[1]EXT(T)'!R80=\"\",\"\",+'[1]EXT(T)'!R80)","v":"n.d."},{"$f":"IF(+'[1]EXT(T)'!S80=\"\",\"\",+'[1]EXT(T)'!S80)","v":594.90000000000009},{"$f":"IF(+'[1]EXT(T)'!U80=\"\",\"\",+'[1]EXT(T)'!U80)","v":742.17687358303192},{"$f":"IF(+'[1]EXT(T)'!V80=\"\",\"\",+'[1]EXT(T)'!V80)","v":1337.076873583032},{"$f":"IF(+'[1]EXT(T)'!W80=\"\",\"\",+'[1]EXT(T)'!W80)","v":1653.1380580828279},{"$f":"IF(+'[1]EXT(T)'!X80=\"\",\"\",+'[1]EXT(T)'!X80)","v":1353.25},{"$f":"IF(+'[1]EXT(T)'!Y80=\"\",\"\",+'[1]EXT(T)'!Y80)","v":"n.d."},{"$f":"IF(+'[1]EXT(T)'!Z80=\"\",\"\",+'[1]EXT(T)'!Z80)","v":"n.d."},{"$f":"IF(+'[1]EXT(T)'!AA80=\"\",\"\",+'[1]EXT(T)'!AA80)","v":286.5},{"$f":"IF(+'[1]EXT(T)'!AB80=\"\",\"\",+'[1]EXT(T)'!AB80)","v":"n.d."},{"$f":"IF(+'[1]EXT(T)'!AC80=\"\",\"\",+'[1]EXT(T)'!AC80)","v":1360.5},{"$f":"IF(+'[1]EXT(T)'!AE80=\"\",\"\",+'[1]EXT(T)'!AE80)","v":3292.8880580828277},{"$f":"IF(+'[1]EXT(T)'!AF80=\"\",\"\",+'[1]EXT(T)'!AF80)","v":4653.3880580828281},{"$f":"IF(+'[1]EXT(T)'!AY80=\"\",\"\",+'[1]EXT(T)'!AY80)","v":10849.548957000001},{"$f":"IF(+'[1]EXT(T)'!AZ80=\"\",\"\",+'[1]EXT(T)'!AZ80)","v":"n.d."},{"$f":"IF(+'[1]EXT(T)'!AQ80=\"\",\"\",+'[1]EXT(T)'!AQ80-'[1]EXT(T)'!AQ79)","v":172.96873590000001},{"$f":"IF(+'[1]EXT(T)'!AR80=\"\",\"\",+'[1]EXT(T)'!AR80-'[1]EXT(T)'!AR79)","v":918.46},{"$f":"IF(+'[1]EXT(T)'!AS80=\"\",\"\",+'[1]EXT(T)'!AS80-'[1]EXT(T)'!AS79)","v":1089.3137000000002},{"$f":"IF(+'[1]EXT(T)'!AT80=\"\",\"\",+'[1]EXT(T)'!AT80-'[1]EXT(T)'!AT79)","v":664.95760000000018},{"$f":"IF(+'[1]EXT(T)'!AU80=\"\",\"\",+'[1]EXT(T)'!AU80-'[1]EXT(T)'!AU79)","v":189.70000000000005},{"$f":"IF(+'[1]EXT(T)'!AV80=\"\",\"\",+'[1]EXT(T)'!AV80-'[1]EXT(T)'!AV79)","v":755.19999999999982},"n.d.",3790.6000359,"n.d."]
[null,"IV",{"$f":"IF(+'[1]EXT(T)'!M81=\"\",\"\",+'[1]EXT(T)'!M81)","v":435.33136908501365},{"$f":"IF(+'[1]EXT(T)'!N81=\"\",\"\",+'[1]EXT(T)'!N81)","v":197.26},{"$f":"IF(+'[1]EXT(T)'!O81=\"\",\"\",+'[1]EXT(T)'!O81)","v":"n.d."},{"$f":"IF(+'[1]EXT(T)'!P81=\"\",\"\",+'[1]EXT(T)'!P81)","v":"n.d."},{"$f":"IF(+'[1]EXT(T)'!Q81=\"\",\"\",+'[1]EXT(T)'!Q81)","v":95.2},{"$f":"IF(+'[1]EXT(T)'!R81=\"\",\"\",+'[1]EXT(T)'!R81)","v":"n.d."},{"$f":"IF(+'[1]EXT(T)'!S81=\"\",\"\",+'[1]EXT(T)'!S81)","v":538.1},{"$f":"IF(+'[1]EXT(T)'!U81=\"\",\"\",+'[1]EXT(T)'!U81)","v":727.79136908501368},{"$f":"IF(+'[1]EXT(T)'!V81=\"\",\"\",+'[1]EXT(T)'!V81)","v":1265.8913690850136},{"$f":"IF(+'[1]EXT(T)'!W81=\"\",\"\",+'[1]EXT(T)'!W81)","v":2088.4694271678418},{"$f":"IF(+'[1]EXT(T)'!X81=\"\",\"\",+'[1]EXT(T)'!X81)","v":1550.51},{"$f":"IF(+'[1]EXT(T)'!Y81=\"\",\"\",+'[1]EXT(T)'!Y81)","v":"n.d."},{"$f":"IF(+'[1]EXT(T)'!Z81=\"\",\"\",+'[1]EXT(T)'!Z81)","v":"n.d."},{"$f":"IF(+'[1]EXT(T)'!AA81=\"\",\"\",+'[1]EXT(T)'!AA81)","v":381.7},{"$f":"IF(+'[1]EXT(T)'!AB81=\"\",\"\",+'[1]EXT(T)'!AB81)","v":"n.d."},{"$f":"IF(+'[1]EXT(T)'!AC81=\"\",\"\",+'[1]EXT(T)'!AC81)","v":1898.6},{"$f":"IF(+'[1]EXT(T)'!AE81=\"\",\"\",+'[1]EXT(T)'!AE81)","v":4020.6794271678414},{"$f":"IF(+'[1]EXT(T)'!AF81=\"\",\"\",+'[1]EXT(T)'!AF81)","v":5919.2794271678413},{"$f":"IF(+'[1]EXT(T)'!AY81=\"\",\"\",+'[1]EXT(T)'!AY81)","v":14714.647687500003},{"$f":"IF(+'[1]EXT(T)'!AZ81=\"\",\"\",+'[1]EXT(T)'!AZ81)","v":"n.d."},{"$f":"IF(+'[1]EXT(T)'!AQ81=\"\",\"\",+'[1]EXT(T)'!AQ81-'[1]EXT(T)'!AQ80)","v":162.98333049999997},{"$f":"IF(+'[1]EXT(T)'!AR81=\"\",\"\",+'[1]EXT(T)'!AR81-'[1]EXT(T)'!AR80)","v":958.40000000000009},{"$f":"IF(+'[1]EXT(T)'!AS81=\"\",\"\",+'[1]EXT(T)'!AS81-'[1]EXT(T)'!AS80)","v":1069.3751000000002},{"$f":"IF(+'[1]EXT(T)'!AT81=\"\",\"\",+'[1]EXT(T)'!AT81-'[1]EXT(T)'!AT80)","v":653.04030000000057},{"$f":"IF(+'[1]EXT(T)'!AU81=\"\",\"\",+'[1]EXT(T)'!AU81-'[1]EXT(T)'!AU80)","v":203.70000000000005},{"$f":"IF(+'[1]EXT(T)'!AV81=\"\",\"\",+'[1]EXT(T)'!AV81-'[1]EXT(T)'!AV80)","v":817.60000000000036},"n.d.",3865.0987305000008,"n.d."]
[2008,"I",{"$f":"IF(+'[1]EXT(T)'!M82=\"\",\"\",+'[1]EXT(T)'!M82)","v":616.44828151763886},{"$f":"IF(+'[1]EXT(T)'!N82=\"\",\"\",+'[1]EXT(T)'!N82)","v":486.55},{"$f":"IF(+'[1]EXT(T)'!O82=\"\",\"\",+'[1]EXT(T)'!O82)","v":179.74802},{"$f":"IF(+'[1]EXT(T)'!P82=\"\",\"\",+'[1]EXT(T)'!P82)","v":"n.d."},{"$f":"IF(+'[1]EXT(T)'!Q82=\"\",\"\",+'[1]EXT(T)'!Q82)","v":125},{"$f":"IF(+'[1]EXT(T)'!R82=\"\",\"\",+'[1]EXT(T)'!R82)","v":"n.d."},{"$f":"IF(+'[1]EXT(T)'!S82=\"\",\"\",+'[1]EXT(T)'!S82)","v":470.5},{"$f":"IF(+'[1]EXT(T)'!U82=\"\",\"\",+'[1]EXT(T)'!U82)","v":1407.7463015176388},{"$f":"IF(+'[1]EXT(T)'!V82=\"\",\"\",+'[1]EXT(T)'!V82)","v":1878.2463015176388},{"$f":"IF(+'[1]EXT(T)'!W82=\"\",\"\",+'[1]EXT(T)'!W82)","v":616.44828151763886},{"$f":"IF(+'[1]EXT(T)'!X82=\"\",\"\",+'[1]EXT(T)'!X82)","v":486.55},{"$f":"IF(+'[1]EXT(T)'!Y82=\"\",\"\",+'[1]EXT(T)'!Y82)","v":179.74802},{"$f":"IF(+'[1]EXT(T)'!Z82=\"\",\"\",+'[1]EXT(T)'!Z82)","v":"n.d."},{"$f":"IF(+'[1]EXT(T)'!AA82=\"\",\"\",+'[1]EXT(T)'!AA82)","v":125},{"$f":"IF(+'[1]EXT(T)'!AB82=\"\",\"\",+'[1]EXT(T)'!AB82)","v":"n.d."},{"$f":"IF(+'[1]EXT(T)'!AC82=\"\",\"\",+'[1]EXT(T)'!AC82)","v":470.5},{"$f":"IF(+'[1]EXT(T)'!AE82=\"\",\"\",+'[1]EXT(T)'!AE82)","v":1407.7463015176388},{"$f":"IF(+'[1]EXT(T)'!AF82=\"\",\"\",+'[1]EXT(T)'!AF82)","v":1878.2463015176388},{"$f":"IF(+'[1]EXT(T)'!AY82=\"\",\"\",+'[1]EXT(T)'!AY82)","v":3636.5639941500003},{"$f":"IF(+'[1]EXT(T)'!AZ82=\"\",\"\",+'[1]EXT(T)'!AZ82)","v":"n.d."},{"$f":"IF(+'[1]EXT(T)'!AQ82=\"\",\"\",+'[1]EXT(T)'!AQ82)","v":132.6662365},{"$f":"IF(+'[1]EXT(T)'!AR82=\"\",\"\",+'[1]EXT(T)'!AR82)","v":904.74},{"$f":"IF(+'[1]EXT(T)'!AS82=\"\",\"\",+'[1]EXT(T)'!AS82)","v":973.3732},{"$f":"IF(+'[1]EXT(T)'!AT82=\"\",\"\",+'[1]EXT(T)'!AT82)","v":621.28455765000012},{"$f":"IF(+'[1]EXT(T)'!AU82=\"\",\"\",+'[1]EXT(T)'!AU82)","v":195.7},{"$f":"IF(+'[1]EXT(T)'!AV82=\"\",\"\",+'[1]EXT(T)'!AV82)","v":808.8},"n.d.",{"$f":"IF(OR(W75=\"\",X75=\"\",Y75=\"\",Z75=\"\",AA75=\"\",AB75=\"\"),\"\",W75+X75+Y75+Z75+AA75+AB75)","v":3636.5639941500003},"n.d."]
[null,"II",{"$f":"IF(+'[1]EXT(T)'!M83=\"\",\"\",+'[1]EXT(T)'!M83)","v":834.94382114654343},{"$f":"IF(+'[1]EXT(T)'!N83=\"\",\"\",+'[1]EXT(T)'!N83)","v":53.849999999999994},{"$f":"IF(+'[1]EXT(T)'!O83=\"\",\"\",+'[1]EXT(T)'!O83)","v":186.93606000000003},{"$f":"IF(+'[1]EXT(T)'!P83=\"\",\"\",+'[1]EXT(T)'!P83)","v":"n.d."},{"$f":"IF(+'[1]EXT(T)'!Q83=\"\",\"\",+'[1]EXT(T)'!Q83)","v":129.5},{"$f":"IF(+'[1]EXT(T)'!R83=\"\",\"\",+'[1]EXT(T)'!R83)","v":"n.d."},{"$f":"IF(+'[1]EXT(T)'!S83=\"\",\"\",+'[1]EXT(T)'!S83)","v":653.79999999999995},{"$f":"IF(+'[1]EXT(T)'!U83=\"\",\"\",+'[1]EXT(T)'!U83)","v":1205.2298811465434},{"$f":"IF(+'[1]EXT(T)'!V83=\"\",\"\",+'[1]EXT(T)'!V83)","v":1859.0298811465434},{"$f":"IF(+'[1]EXT(T)'!W83=\"\",\"\",+'[1]EXT(T)'!W83)","v":1451.3921026641824},{"$f":"IF(+'[1]EXT(T)'!X83=\"\",\"\",+'[1]EXT(T)'!X83)","v":540.4},{"$f":"IF(+'[1]EXT(T)'!Y83=\"\",\"\",+'[1]EXT(T)'!Y83)","v":366.68407999999999},{"$f":"IF(+'[1]EXT(T)'!Z83=\"\",\"\",+'[1]EXT(T)'!Z83)","v":"n.d."},{"$f":"IF(+'[1]EXT(T)'!AA83=\"\",\"\",+'[1]EXT(T)'!AA83)","v":254.5},{"$f":"IF(+'[1]EXT(T)'!AB83=\"\",\"\",+'[1]EXT(T)'!AB83)","v":"n.d."},{"$f":"IF(+'[1]EXT(T)'!AC83=\"\",\"\",+'[1]EXT(T)'!AC83)","v":1124.3},{"$f":"IF(+'[1]EXT(T)'!AE83=\"\",\"\",+'[1]EXT(T)'!AE83)","v":2612.9761826641825},{"$f":"IF(+'[1]EXT(T)'!AF83=\"\",\"\",+'[1]EXT(T)'!AF83)","v":3737.2761826641822},{"$f":"IF(+'[1]EXT(T)'!AY83=\"\",\"\",+'[1]EXT(T)'!AY83)","v":7667.1390958300008},{"$f":"IF(+'[1]EXT(T)'!AZ83=\"\",\"\",+'[1]EXT(T)'!AZ83)","v":"n.d."},{"$f":"IF(+'[1]EXT(T)'!AQ83=\"\",\"\",+'[1]EXT(T)'!AQ83-'[1]EXT(T)'!AQ82)","v":145.30890439999999},{"$f":"IF(+'[1]EXT(T)'!AR83=\"\",\"\",+'[1]EXT(T)'!AR83-'[1]EXT(T)'!AR82)","v":1010.8799999999999},{"$f":"IF(+'[1]EXT(T)'!AS83=\"\",\"\",+'[1]EXT(T)'!AS83-'[1]EXT(T)'!AS82)","v":1167.5671000000002},{"$f":"IF(+'[1]EXT(T)'!AT83=\"\",\"\",+'[1]EXT(T)'!AT83-'[1]EXT(T)'!AT82)","v":704.5190972800001},{"$f":"IF(+'[1]EXT(T)'!AU83=\"\",\"\",+'[1]EXT(T)'!AU83-'[1]EXT(T)'!AU82)","v":208.10000000000002},{"$f":"IF(+'[1]EXT(T)'!AV83=\"\",\"\",+'[1]EXT(T)'!AV83-'[1]EXT(T)'!AV82)","v":794.2},"n.d.",4030.5751016800004,"n.d."]
[null,"III",{"$f":"IF(+'[1]EXT(T)'!M84=\"\",\"\",+'[1]EXT(T)'!M84)","v":390.69467712640392},{"$f":"IF(+'[1]EXT(T)'!N84=\"\",\"\",+'[1]EXT(T)'!N84)","v":31.800000000000011},{"$f":"IF(+'[1]EXT(T)'!O84=\"\",\"\",+'[1]EXT(T)'!O84)","v":182.06613999999999},{"$f":"IF(+'[1]EXT(T)'!P84=\"\",\"\",+'[1]EXT(T)'!P84)","v":"n.d."},{"$f":"IF(+'[1]EXT(T)'!Q84=\"\",\"\",+'[1]EXT(T)'!Q84)","v":202.3},{"$f":"IF(+'[1]EXT(T)'!R84=\"\",\"\",+'[1]EXT(T)'!R84)","v":"n.d."},{"$f":"IF(+'[1]EXT(T)'!S84=\"\",\"\",+'[1]EXT(T)'!S84)","v":413.40000000000003},{"$f":"IF(+'[1]EXT(T)'!U84=\"\",\"\",+'[1]EXT(T)'!U84)","v":806.86081712640384},{"$f":"IF(+'[1]EXT(T)'!V84=\"\",\"\",+'[1]EXT(T)'!V84)","v":1220.2608171264039},{"$f":"IF(+'[1]EXT(T)'!W84=\"\",\"\",+'[1]EXT(T)'!W84)","v":1842.0867797905862},{"$f":"IF(+'[1]EXT(T)'!X84=\"\",\"\",+'[1]EXT(T)'!X84)","v":572.20000000000005},{"$f":"IF(+'[1]EXT(T)'!Y84=\"\",\"\",+'[1]EXT(T)'!Y84)","v":548.75022000000001},{"$f":"IF(+'[1]EXT(T)'!Z84=\"\",\"\",+'[1]EXT(T)'!Z84)","v":"n.d."},{"$f":"IF(+'[1]EXT(T)'!AA84=\"\",\"\",+'[1]EXT(T)'!AA84)","v":456.8},{"$f":"IF(+'[1]EXT(T)'!AB84=\"\",\"\",+'[1]EXT(T)'!AB84)","v":"n.d."},{"$f":"IF(+'[1]EXT(T)'!AC84=\"\",\"\",+'[1]EXT(T)'!AC84)","v":1537.7},{"$f":"IF(+'[1]EXT(T)'!AE84=\"\",\"\",+'[1]EXT(T)'!AE84)","v":3419.8369997905866},{"$f":"IF(+'[1]EXT(T)'!AF84=\"\",\"\",+'[1]EXT(T)'!AF84)","v":4957.5369997905864},{"$f":"IF(+'[1]EXT(T)'!AY84=\"\",\"\",+'[1]EXT(T)'!AY84)","v":11645.350822230001},{"$f":"IF(+'[1]EXT(T)'!AZ84=\"\",\"\",+'[1]EXT(T)'!AZ84)","v":"n.d."},{"$f":"IF(+'[1]EXT(T)'!AQ84=\"\",\"\",+'[1]EXT(T)'!AQ84-'[1]EXT(T)'!AQ83)","v":152.13846619999998},{"$f":"IF(+'[1]EXT(T)'!AR84=\"\",\"\",+'[1]EXT(T)'!AR84-'[1]EXT(T)'!AR83)","v":931.44},{"$f":"IF(+'[1]EXT(T)'!AS84=\"\",\"\",+'[1]EXT(T)'!AS84-'[1]EXT(T)'!AS83)","v":1155.0393000000004},{"$f":"IF(+'[1]EXT(T)'!AT84=\"\",\"\",+'[1]EXT(T)'!AT84-'[1]EXT(T)'!AT83)","v":706.39396020000027},{"$f":"IF(+'[1]EXT(T)'!AU84=\"\",\"\",+'[1]EXT(T)'!AU84-'[1]EXT(T)'!AU83)","v":207.2},{"$f":"IF(+'[1]EXT(T)'!AV84=\"\",\"\",+'[1]EXT(T)'!AV84-'[1]EXT(T)'!AV83)","v":826},"n.d.",3978.2117264000008,"n.d."]
[null,"IV",{"$f":"IF(+'[1]EXT(T)'!M85=\"\",\"\",+'[1]EXT(T)'!M85)","v":477.85439710530824},{"$f":"IF(+'[1]EXT(T)'!N85=\"\",\"\",+'[1]EXT(T)'!N85)","v":330.85},{"$f":"IF(+'[1]EXT(T)'!O85=\"\",\"\",+'[1]EXT(T)'!O85)","v":188.86088999999998},{"$f":"IF(+'[1]EXT(T)'!P85=\"\",\"\",+'[1]EXT(T)'!P85)","v":"n.d."},{"$f":"IF(+'[1]EXT(T)'!Q85=\"\",\"\",+'[1]EXT(T)'!Q85)","v":170.5},{"$f":"IF(+'[1]EXT(T)'!R85=\"\",\"\",+'[1]EXT(T)'!R85)","v":"n.d."},{"$f":"IF(+'[1]EXT(T)'!S85=\"\",\"\",+'[1]EXT(T)'!S85)","v":609},{"$f":"IF(+'[1]EXT(T)'!U85=\"\",\"\",+'[1]EXT(T)'!U85)","v":1168.0652871053082},{"$f":"IF(+'[1]EXT(T)'!V85=\"\",\"\",+'[1]EXT(T)'!V85)","v":1777.0652871053082},{"$f":"IF(+'[1]EXT(T)'!W85=\"\",\"\",+'[1]EXT(T)'!W85)","v":2319.9411768958944},{"$f":"IF(+'[1]EXT(T)'!X85=\"\",\"\",+'[1]EXT(T)'!X85)","v":903.05000000000007},{"$f":"IF(+'[1]EXT(T)'!Y85=\"\",\"\",+'[1]EXT(T)'!Y85)","v":737.61111000000005},{"$f":"IF(+'[1]EXT(T)'!Z85=\"\",\"\",+'[1]EXT(T)'!Z85)","v":"n.d."},{"$f":"IF(+'[1]EXT(T)'!AA85=\"\",\"\",+'[1]EXT(T)'!AA85)","v":627.29999999999995},{"$f":"IF(+'[1]EXT(T)'!AB85=\"\",\"\",+'[1]EXT(T)'!AB85)","v":"n.d."},{"$f":"IF(+'[1]EXT(T)'!AC85=\"\",\"\",+'[1]EXT(T)'!AC85)","v":2146.6999999999998},{"$f":"IF(+'[1]EXT(T)'!AE85=\"\",\"\",+'[1]EXT(T)'!AE85)","v":4587.9022868958946},{"$f":"IF(+'[1]EXT(T)'!AF85=\"\",\"\",+'[1]EXT(T)'!AF85)","v":6734.6022868958944},{"$f":"IF(+'[1]EXT(T)'!AY85=\"\",\"\",+'[1]EXT(T)'!AY85)","v":15387.371437070002},{"$f":"IF(+'[1]EXT(T)'!AZ85=\"\",\"\",+'[1]EXT(T)'!AZ85)","v":"n.d."},{"$f":"IF(+'[1]EXT(T)'!AQ85=\"\",\"\",+'[1]EXT(T)'!AQ85-'[1]EXT(T)'!AQ84)","v":153.76619790000007},{"$f":"IF(+'[1]EXT(T)'!AR85=\"\",\"\",+'[1]EXT(T)'!AR85-'[1]EXT(T)'!AR84)","v":895.02000000000044},{"$f":"IF(+'[1]EXT(T)'!AS85=\"\",\"\",+'[1]EXT(T)'!AS85-'[1]EXT(T)'!AS84)","v":1018.7510000000002},{"$f":"IF(+'[1]EXT(T)'!AT85=\"\",\"\",+'[1]EXT(T)'!AT85-'[1]EXT(T)'!AT84)","v":674.88341693999973},{"$f":"IF(+'[1]EXT(T)'!AU85=\"\",\"\",+'[1]EXT(T)'!AU85-'[1]EXT(T)'!AU84)","v":207.10000000000002},{"$f":"IF(+'[1]EXT(T)'!AV85=\"\",\"\",+'[1]EXT(T)'!AV85-'[1]EXT(T)'!AV84)","v":792.5},"n.d.",3742.0206148400002,"n.d."]
[2009,"I",{"$f":"IF(+'[1]EXT(T)'!M86=\"\",\"\",+'[1]EXT(T)'!M86)","v":561.6165942573067},{"$f":"IF(+'[1]EXT(T)'!N86=\"\",\"\",+'[1]EXT(T)'!N86)","v":-192.7},{"$f":"IF(+'[1]EXT(T)'!O86=\"\",\"\",+'[1]EXT(T)'!O86)","v":130.73408999999998},{"$f":"IF(+'[1]EXT(T)'!P86=\"\",\"\",+'[1]EXT(T)'!P86)","v":131.73761397840568},{"$f":"IF(+'[1]EXT(T)'!Q86=\"\",\"\",+'[1]EXT(T)'!Q86)","v":127.1},{"$f":"IF(+'[1]EXT(T)'!R86=\"\",\"\",+'[1]EXT(T)'!R86)","v":"n.d."},{"$f":"IF(+'[1]EXT(T)'!S86=\"\",\"\",+'[1]EXT(T)'!S86)","v":483.79999999999995},{"$f":"IF(+'[1]EXT(T)'!U86=\"\",\"\",+'[1]EXT(T)'!U86)","v":758.48829823571236},{"$f":"IF(+'[1]EXT(T)'!V86=\"\",\"\",+'[1]EXT(T)'!V86)","v":1242.2882982357123},{"$f":"IF(+'[1]EXT(T)'!W86=\"\",\"\",+'[1]EXT(T)'!W86)","v":561.6165942573067},{"$f":"IF(+'[1]EXT(T)'!X86=\"\",\"\",+'[1]EXT(T)'!X86)","v":-192.7},{"$f":"IF(+'[1]EXT(T)'!Y86=\"\",\"\",+'[1]EXT(T)'!Y86)","v":130.73408999999998},{"$f":"IF(+'[1]EXT(T)'!Z86=\"\",\"\",+'[1]EXT(T)'!Z86)","v":131.73761397840568},{"$f":"IF(+'[1]EXT(T)'!AA86=\"\",\"\",+'[1]EXT(T)'!AA86)","v":127.1},{"$f":"IF(+'[1]EXT(T)'!AB86=\"\",\"\",+'[1]EXT(T)'!AB86)","v":"n.d."},{"$f":"IF(+'[1]EXT(T)'!AC86=\"\",\"\",+'[1]EXT(T)'!AC86)","v":483.79999999999995},{"$f":"IF(+'[1]EXT(T)'!AE86=\"\",\"\",+'[1]EXT(T)'!AE86)","v":758.48829823571236},{"$f":"IF(+'[1]EXT(T)'!AF86=\"\",\"\",+'[1]EXT(T)'!AF86)","v":1242.2882982357123},{"$f":"IF(+'[1]EXT(T)'!AY86=\"\",\"\",+'[1]EXT(T)'!AY86)","v":3416.3621594600008},{"$f":"IF(+'[1]EXT(T)'!AZ86=\"\",\"\",+'[1]EXT(T)'!AZ86)","v":3491.7621594600009},{"$f":"IF(+'[1]EXT(T)'!AQ86=\"\",\"\",+'[1]EXT(T)'!AQ86)","v":123.3475945},{"$f":"IF(+'[1]EXT(T)'!AR86=\"\",\"\",+'[1]EXT(T)'!AR86)","v":828.87000000000012},{"$f":"IF(+'[1]EXT(T)'!AS86=\"\",\"\",+'[1]EXT(T)'!AS86)","v":916.33730000000014},{"$f":"IF(+'[1]EXT(T)'!AT86=\"\",\"\",+'[1]EXT(T)'!AT86)","v":609.60726496000018},{"$f":"IF(+'[1]EXT(T)'!AU86=\"\",\"\",+'[1]EXT(T)'!AU86)","v":195.9},{"$f":"IF(+'[1]EXT(T)'!AV86=\"\",\"\",+'[1]EXT(T)'!AV86)","v":742.3},{"$f":"IF(+'[1]EXT(T)'!AW86=\"\",\"\",+'[1]EXT(T)'!AW86)","v":75.400000000000006},{"$f":"IF(OR(W79=\"\",X79=\"\",Y79=\"\",Z79=\"\",AA79=\"\",AB79=\"\"),\"\",W79+X79+Y79+Z79+AA79+AB79)","v":3416.3621594600008},{"$f":"IF(OR(X79=\"\",Y79=\"\",Z79=\"\",AA79=\"\",AB79=\"\",AC79=\"\",W79=\"\"),\"\",X79+W79+Y79+Z79+AA79+AB79+AC79)","v":3491.7621594600009}]
[null,"II",{"$f":"IF(+'[1]EXT(T)'!M87=\"\",\"\",+'[1]EXT(T)'!M87)","v":243.78942968760867},{"$f":"IF(+'[1]EXT(T)'!N87=\"\",\"\",+'[1]EXT(T)'!N87)","v":65.099999999999994},{"$f":"IF(+'[1]EXT(T)'!O87=\"\",\"\",+'[1]EXT(T)'!O87)","v":125.36618000000001},{"$f":"IF(+'[1]EXT(T)'!P87=\"\",\"\",+'[1]EXT(T)'!P87)","v":134.17853984758472},{"$f":"IF(+'[1]EXT(T)'!Q87=\"\",\"\",+'[1]EXT(T)'!Q87)","v":105.8},{"$f":"IF(+'[1]EXT(T)'!R87=\"\",\"\",+'[1]EXT(T)'!R87)","v":"n.d."},{"$f":"IF(+'[1]EXT(T)'!S87=\"\",\"\",+'[1]EXT(T)'!S87)","v":415},{"$f":"IF(+'[1]EXT(T)'!U87=\"\",\"\",+'[1]EXT(T)'!U87)","v":674.2341495351933},{"$f":"IF(+'[1]EXT(T)'!V87=\"\",\"\",+'[1]EXT(T)'!V87)","v":1089.2341495351934},{"$f":"IF(+'[1]EXT(T)'!W87=\"\",\"\",+'[1]EXT(T)'!W87)","v":805.40602394491543},{"$f":"IF(+'[1]EXT(T)'!X87=\"\",\"\",+'[1]EXT(T)'!X87)","v":-127.6},{"$f":"IF(+'[1]EXT(T)'!Y87=\"\",\"\",+'[1]EXT(T)'!Y87)","v":256.10027000000002},{"$f":"IF(+'[1]EXT(T)'!Z87=\"\",\"\",+'[1]EXT(T)'!Z87)","v":265.91615382599036},{"$f":"IF(+'[1]EXT(T)'!AA87=\"\",\"\",+'[1]EXT(T)'!AA87)","v":232.89999999999998},{"$f":"IF(+'[1]EXT(T)'!AB87=\"\",\"\",+'[1]EXT(T)'!AB87)","v":"n.d."},{"$f":"IF(+'[1]EXT(T)'!AC87=\"\",\"\",+'[1]EXT(T)'!AC87)","v":898.8},{"$f":"IF(+'[1]EXT(T)'!AE87=\"\",\"\",+'[1]EXT(T)'!AE87)","v":1432.7224477709055},{"$f":"IF(+'[1]EXT(T)'!AF87=\"\",\"\",+'[1]EXT(T)'!AF87)","v":2331.5224477709057},{"$f":"IF(+'[1]EXT(T)'!AY87=\"\",\"\",+'[1]EXT(T)'!AY87)","v":6985.7703709900006},{"$f":"IF(+'[1]EXT(T)'!AZ87=\"\",\"\",+'[1]EXT(T)'!AZ87)","v":7139.7683709900002},{"$f":"IF(+'[1]EXT(T)'!AQ87=\"\",\"\",+'[1]EXT(T)'!AQ87-'[1]EXT(T)'!AQ86)","v":130.67727739999998},{"$f":"IF(+'[1]EXT(T)'!AR87=\"\",\"\",+'[1]EXT(T)'!AR87-'[1]EXT(T)'!AR86)","v":865.03},{"$f":"IF(+'[1]EXT(T)'!AS87=\"\",\"\",+'[1]EXT(T)'!AS87-'[1]EXT(T)'!AS86)","v":1020.8684000000001},{"$f":"IF(+'[1]EXT(T)'!AT87=\"\",\"\",+'[1]EXT(T)'!AT87-'[1]EXT(T)'!AT86)","v":607.53253413000027},{"$f":"IF(+'[1]EXT(T)'!AU87=\"\",\"\",+'[1]EXT(T)'!AU87-'[1]EXT(T)'!AU86)","v":190.79999999999998},{"$f":"IF(+'[1]EXT(T)'!AV87=\"\",\"\",+'[1]EXT(T)'!AV87-'[1]EXT(T)'!AV86)","v":754.5},{"$f":"IF(+'[1]EXT(T)'!AW87=\"\",\"\",+'[1]EXT(T)'!AW87-'[1]EXT(T)'!AW86)","v":78.597999999999985},3569.4082115300007,3648.0062115300007]
[null,"III",{"$f":"IF(+'[1]EXT(T)'!M88=\"\",\"\",+'[1]EXT(T)'!M88)","v":244.25435564250077},{"$f":"IF(+'[1]EXT(T)'!N88=\"\",\"\",+'[1]EXT(T)'!N88)","v":143.96},{"$f":"IF(+'[1]EXT(T)'!O88=\"\",\"\",+'[1]EXT(T)'!O88)","v":127.84493999999999},{"$f":"IF(+'[1]EXT(T)'!P88=\"\",\"\",+'[1]EXT(T)'!P88)","v":127.97435825662515},{"$f":"IF(+'[1]EXT(T)'!Q88=\"\",\"\",+'[1]EXT(T)'!Q88)","v":58.9},{"$f":"IF(+'[1]EXT(T)'!R88=\"\",\"\",+'[1]EXT(T)'!R88)","v":"n.d."},{"$f":"IF(+'[1]EXT(T)'!S88=\"\",\"\",+'[1]EXT(T)'!S88)","v":135.39999999999995},{"$f":"IF(+'[1]EXT(T)'!U88=\"\",\"\",+'[1]EXT(T)'!U88)","v":702.93365389912583},{"$f":"IF(+'[1]EXT(T)'!V88=\"\",\"\",+'[1]EXT(T)'!V88)","v":838.33365389912581},{"$f":"IF(+'[1]EXT(T)'!W88=\"\",\"\",+'[1]EXT(T)'!W88)","v":1049.6603795874162},{"$f":"IF(+'[1]EXT(T)'!X88=\"\",\"\",+'[1]EXT(T)'!X88)","v":16.360000000000014},{"$f":"IF(+'[1]EXT(T)'!Y88=\"\",\"\",+'[1]EXT(T)'!Y88)","v":383.94521000000003},{"$f":"IF(+'[1]EXT(T)'!Z88=\"\",\"\",+'[1]EXT(T)'!Z88)","v":393.89051208261549},{"$f":"IF(+'[1]EXT(T)'!AA88=\"\",\"\",+'[1]EXT(T)'!AA88)","v":291.79999999999995},{"$f":"IF(+'[1]EXT(T)'!AB88=\"\",\"\",+'[1]EXT(T)'!AB88)","v":"n.d."},{"$f":"IF(+'[1]EXT(T)'!AC88=\"\",\"\",+'[1]EXT(T)'!AC88)","v":1034.1999999999998},{"$f":"IF(+'[1]EXT(T)'!AE88=\"\",\"\",+'[1]EXT(T)'!AE88)","v":2135.6561016700316},{"$f":"IF(+'[1]EXT(T)'!AF88=\"\",\"\",+'[1]EXT(T)'!AF88)","v":3169.8561016700314},{"$f":"IF(+'[1]EXT(T)'!AY88=\"\",\"\",+'[1]EXT(T)'!AY88)","v":10543.450799509999},{"$f":"IF(+'[1]EXT(T)'!AZ88=\"\",\"\",+'[1]EXT(T)'!AZ88)","v":10779.34479951},{"$f":"IF(+'[1]EXT(T)'!AQ88=\"\",\"\",+'[1]EXT(T)'!AQ88-'[1]EXT(T)'!AQ87)","v":121.57506319999999},{"$f":"IF(+'[1]EXT(T)'!AR88=\"\",\"\",+'[1]EXT(T)'!AR88-'[1]EXT(T)'!AR87)","v":829.98},{"$f":"IF(+'[1]EXT(T)'!AS88=\"\",\"\",+'[1]EXT(T)'!AS88-'[1]EXT(T)'!AS87)","v":1035.1042},{"$f":"IF(+'[1]EXT(T)'!AT88=\"\",\"\",+'[1]EXT(T)'!AT88-'[1]EXT(T)'!AT87)","v":595.82116532000009},{"$f":"IF(+'[1]EXT(T)'!AU88=\"\",\"\",+'[1]EXT(T)'!AU88-'[1]EXT(T)'!AU87)","v":184.2},{"$f":"IF(+'[1]EXT(T)'!AV88=\"\",\"\",+'[1]EXT(T)'!AV88-'[1]EXT(T)'!AV87)","v":790.99999999999977},{"$f":"IF(+'[1]EXT(T)'!AW88=\"\",\"\",+'[1]EXT(T)'!AW88-'[1]EXT(T)'!AW87)","v":81.896000000000015},3557.6804285199996,3639.5764285199998]
[null,"IV",{"$f":"IF(+'[1]EXT(T)'!M89=\"\",\"\",+'[1]EXT(T)'!M89)","v":393.90932196121139},{"$f":"IF(+'[1]EXT(T)'!N89=\"\",\"\",+'[1]EXT(T)'!N89)","v":349.47},{"$f":"IF(+'[1]EXT(T)'!O89=\"\",\"\",+'[1]EXT(T)'!O89)","v":138.37890999999999},{"$f":"IF(+'[1]EXT(T)'!P89=\"\",\"\",+'[1]EXT(T)'!P89)","v":114.95758641209315},{"$f":"IF(+'[1]EXT(T)'!Q89=\"\",\"\",+'[1]EXT(T)'!Q89)","v":142.1},{"$f":"IF(+'[1]EXT(T)'!R89=\"\",\"\",+'[1]EXT(T)'!R89)","v":"n.d."},{"$f":"IF(+'[1]EXT(T)'!S89=\"\",\"\",+'[1]EXT(T)'!S89)","v":225.09999999999997},{"$f":"IF(+'[1]EXT(T)'!U89=\"\",\"\",+'[1]EXT(T)'!U89)","v":1138.8158183733046},{"$f":"IF(+'[1]EXT(T)'!V89=\"\",\"\",+'[1]EXT(T)'!V89)","v":1363.9158183733045},{"$f":"IF(+'[1]EXT(T)'!W89=\"\",\"\",+'[1]EXT(T)'!W89)","v":1443.5697015486276},{"$f":"IF(+'[1]EXT(T)'!X89=\"\",\"\",+'[1]EXT(T)'!X89)","v":365.83000000000004},{"$f":"IF(+'[1]EXT(T)'!Y89=\"\",\"\",+'[1]EXT(T)'!Y89)","v":522.32411999999999},{"$f":"IF(+'[1]EXT(T)'!Z89=\"\",\"\",+'[1]EXT(T)'!Z89)","v":508.84809849470867},{"$f":"IF(+'[1]EXT(T)'!AA89=\"\",\"\",+'[1]EXT(T)'!AA89)","v":433.9},{"$f":"IF(+'[1]EXT(T)'!AB89=\"\",\"\",+'[1]EXT(T)'!AB89)","v":"n.d."},{"$f":"IF(+'[1]EXT(T)'!AC89=\"\",\"\",+'[1]EXT(T)'!AC89)","v":1259.2999999999997},{"$f":"IF(+'[1]EXT(T)'!AE89=\"\",\"\",+'[1]EXT(T)'!AE89)","v":3274.4719200433365},{"$f":"IF(+'[1]EXT(T)'!AF89=\"\",\"\",+'[1]EXT(T)'!AF89)","v":4533.7719200433357},{"$f":"IF(+'[1]EXT(T)'!AY89=\"\",\"\",+'[1]EXT(T)'!AY89)","v":14000.728877810001},{"$f":"IF(+'[1]EXT(T)'!AZ89=\"\",\"\",+'[1]EXT(T)'!AZ89)","v":14328.124877810002},{"$f":"IF(+'[1]EXT(T)'!AQ89=\"\",\"\",+'[1]EXT(T)'!AQ89-'[1]EXT(T)'!AQ88)","v":112.9579382},{"$f":"IF(+'[1]EXT(T)'!AR89=\"\",\"\",+'[1]EXT(T)'!AR89-'[1]EXT(T)'!AR88)","v":863.27000000000044},{"$f":"IF(+'[1]EXT(T)'!AS89=\"\",\"\",+'[1]EXT(T)'!AS89-'[1]EXT(T)'!AS88)","v":939.97690000000011},{"$f":"IF(+'[1]EXT(T)'!AT89=\"\",\"\",+'[1]EXT(T)'!AT89-'[1]EXT(T)'!AT88)","v":589.87324009999975},{"$f":"IF(+'[1]EXT(T)'!AU89=\"\",\"\",+'[1]EXT(T)'!AU89-'[1]EXT(T)'!AU88)","v":197.5},{"$f":"IF(+'[1]EXT(T)'!AV89=\"\",\"\",+'[1]EXT(T)'!AV89-'[1]EXT(T)'!AV88)","v":753.70000000000027},{"$f":"IF(+'[1]EXT(T)'!AW89=\"\",\"\",+'[1]EXT(T)'!AW89-'[1]EXT(T)'!AW88)","v":91.50200000000001},3457.2780783000003,3548.7800783000002]
[2010,"I",{"$f":"IF(+'[1]EXT(T)'!M90=\"\",\"\",+'[1]EXT(T)'!M90)","v":492.70524339345383},{"$f":"IF(+'[1]EXT(T)'!N90=\"\",\"\",+'[1]EXT(T)'!N90)","v":-275.54000000000002},{"$f":"IF(+'[1]EXT(T)'!O90=\"\",\"\",+'[1]EXT(T)'!O90)","v":171.79656},{"$f":"IF(+'[1]EXT(T)'!P90=\"\",\"\",+'[1]EXT(T)'!P90)","v":476.21133493471467},{"$f":"IF(+'[1]EXT(T)'!Q90=\"\",\"\",+'[1]EXT(T)'!Q90)","v":105.8},{"$f":"IF(+'[1]EXT(T)'!R90=\"\",\"\",+'[1]EXT(T)'!R90)","v":683.4},{"$f":"IF(+'[1]EXT(T)'!S90=\"\",\"\",+'[1]EXT(T)'!S90)","v":925.9},{"$f":"IF(+'[1]EXT(T)'!U90=\"\",\"\",+'[1]EXT(T)'!U90)","v":1654.3731383281684},{"$f":"IF(+'[1]EXT(T)'!V90=\"\",\"\",+'[1]EXT(T)'!V90)","v":2580.2731383281684},{"$f":"IF(+'[1]EXT(T)'!W90=\"\",\"\",+'[1]EXT(T)'!W90)","v":492.70524339345383},{"$f":"IF(+'[1]EXT(T)'!X90=\"\",\"\",+'[1]EXT(T)'!X90)","v":-275.54000000000002},{"$f":"IF(+'[1]EXT(T)'!Y90=\"\",\"\",+'[1]EXT(T)'!Y90)","v":171.79656},{"$f":"IF(+'[1]EXT(T)'!Z90=\"\",\"\",+'[1]EXT(T)'!Z90)","v":476.21133493471467},{"$f":"IF(+'[1]EXT(T)'!AA90=\"\",\"\",+'[1]EXT(T)'!AA90)","v":105.8},{"$f":"IF(+'[1]EXT(T)'!AB90=\"\",\"\",+'[1]EXT(T)'!AB90)","v":683.4},{"$f":"IF(+'[1]EXT(T)'!AC90=\"\",\"\",+'[1]EXT(T)'!AC90)","v":925.9},{"$f":"IF(+'[1]EXT(T)'!AE90=\"\",\"\",+'[1]EXT(T)'!AE90)","v":1654.3731383281684},{"$f":"IF(+'[1]EXT(T)'!AF90=\"\",\"\",+'[1]EXT(T)'!AF90)","v":2580.2731383281684},{"$f":"IF(+'[1]EXT(T)'!AY90=\"\",\"\",+'[1]EXT(T)'!AY90)","v":3538.7320745123257},{"$f":"IF(+'[1]EXT(T)'!AZ90=\"\",\"\",+'[1]EXT(T)'!AZ90)","v":3634.7320745123257},{"$f":"IF(+'[1]EXT(T)'!AQ90=\"\",\"\",+'[1]EXT(T)'!AQ90)","v":116.6630777},{"$f":"IF(+'[1]EXT(T)'!AR90=\"\",\"\",+'[1]EXT(T)'!AR90)","v":833.1400000000001},{"$f":"IF(+'[1]EXT(T)'!AS90=\"\",\"\",+'[1]EXT(T)'!AS90)","v":890.59530000000007},{"$f":"IF(+'[1]EXT(T)'!AT90=\"\",\"\",+'[1]EXT(T)'!AT90)","v":572.34156342000017},{"$f":"IF(+'[1]EXT(T)'!AU90=\"\",\"\",+'[1]EXT(T)'!AU90)","v":201.8},{"$f":"IF(+'[1]EXT(T)'!AV90=\"\",\"\",+'[1]EXT(T)'!AV90)","v":924.19213339232522},{"$f":"IF(+'[1]EXT(T)'!AW90=\"\",\"\",+'[1]EXT(T)'!AW90)","v":96},{"$f":"IF(OR(W83=\"\",X83=\"\",Y83=\"\",Z83=\"\",AA83=\"\",AB83=\"\"),\"\",W83+X83+Y83+Z83+AA83+AB83)","v":3538.7320745123257},3634.7320745123257]
[null,"II",{"$f":"IF(+'[1]EXT(T)'!M91=\"\",\"\",+'[1]EXT(T)'!M91)","v":443.00536426466795},{"$f":"IF(+'[1]EXT(T)'!N91=\"\",\"\",+'[1]EXT(T)'!N91)","v":13.32},{"$f":"IF(+'[1]EXT(T)'!O91=\"\",\"\",+'[1]EXT(T)'!O91)","v":148.92963999999998},{"$f":"IF(+'[1]EXT(T)'!P91=\"\",\"\",+'[1]EXT(T)'!P91)","v":59.900779574713582},{"$f":"IF(+'[1]EXT(T)'!Q91=\"\",\"\",+'[1]EXT(T)'!Q91)","v":101.1},{"$f":"IF(+'[1]EXT(T)'!R91=\"\",\"\",+'[1]EXT(T)'!R91)","v":212.3},{"$f":"IF(+'[1]EXT(T)'!S91=\"\",\"\",+'[1]EXT(T)'!S91)","v":771.1},{"$f":"IF(+'[1]EXT(T)'!U91=\"\",\"\",+'[1]EXT(T)'!U91)","v":978.55578383938155},{"$f":"IF(+'[1]EXT(T)'!V91=\"\",\"\",+'[1]EXT(T)'!V91)","v":1749.6557838393815},{"$f":"IF(+'[1]EXT(T)'!W91=\"\",\"\",+'[1]EXT(T)'!W91)","v":935.71060765812172},{"$f":"IF(+'[1]EXT(T)'!X91=\"\",\"\",+'[1]EXT(T)'!X91)","v":-262.22000000000003},{"$f":"IF(+'[1]EXT(T)'!Y91=\"\",\"\",+'[1]EXT(T)'!Y91)","v":320.72619999999995},{"$f":"IF(+'[1]EXT(T)'!Z91=\"\",\"\",+'[1]EXT(T)'!Z91)","v":536.11211450942824},{"$f":"IF(+'[1]EXT(T)'!AA91=\"\",\"\",+'[1]EXT(T)'!AA91)","v":206.89999999999998},{"$f":"IF(+'[1]EXT(T)'!AB91=\"\",\"\",+'[1]EXT(T)'!AB91)","v":895.7},{"$f":"IF(+'[1]EXT(T)'!AC91=\"\",\"\",+'[1]EXT(T)'!AC91)","v":1697},{"$f":"IF(+'[1]EXT(T)'!AE91=\"\",\"\",+'[1]EXT(T)'!AE91)","v":2632.9289221675499},{"$f":"IF(+'[1]EXT(T)'!AF91=\"\",\"\",+'[1]EXT(T)'!AF91)","v":4329.9289221675499},{"$f":"IF(+'[1]EXT(T)'!AY91=\"\",\"\",+'[1]EXT(T)'!AY91)","v":7420.5132580146983},{"$f":"IF(+'[1]EXT(T)'!AZ91=\"\",\"\",+'[1]EXT(T)'!AZ91)","v":7612.5132580146983},{"$f":"IF(+'[1]EXT(T)'!AQ91=\"\",\"\",+'[1]EXT(T)'!AQ91-'[1]EXT(T)'!AQ90)","v":131.40271490000001},{"$f":"IF(+'[1]EXT(T)'!AR91=\"\",\"\",+'[1]EXT(T)'!AR91-'[1]EXT(T)'!AR90)","v":915.61999999999989},{"$f":"IF(+'[1]EXT(T)'!AS91=\"\",\"\",+'[1]EXT(T)'!AS91-'[1]EXT(T)'!AS90)","v":1095.7157999999999},{"$f":"IF(+'[1]EXT(T)'!AT91=\"\",\"\",+'[1]EXT(T)'!AT91-'[1]EXT(T)'!AT90)","v":666.49505022000028},{"$f":"IF(+'[1]EXT(T)'!AU91=\"\",\"\",+'[1]EXT(T)'!AU91-'[1]EXT(T)'!AU90)","v":197.5},{"$f":"IF(+'[1]EXT(T)'!AV91=\"\",\"\",+'[1]EXT(T)'!AV91-'[1]EXT(T)'!AV90)","v":875.04761838237152},{"$f":"IF(+'[1]EXT(T)'!AW91=\"\",\"\",+'[1]EXT(T)'!AW91-'[1]EXT(T)'!AW90)","v":96},3881.7811835023722,3977.7811835023722]
[null,"III",{"$f":"IF(+'[1]EXT(T)'!M92=\"\",\"\",+'[1]EXT(T)'!M92)","v":317.35703802014143},{"$f":"IF(+'[1]EXT(T)'!N92=\"\",\"\",+'[1]EXT(T)'!N92)","v":-149.94},{"$f":"IF(+'[1]EXT(T)'!O92=\"\",\"\",+'[1]EXT(T)'!O92)","v":176.6019},{"$f":"IF(+'[1]EXT(T)'!P92=\"\",\"\",+'[1]EXT(T)'!P92)","v":167.35125183728988},{"$f":"IF(+'[1]EXT(T)'!Q92=\"\",\"\",+'[1]EXT(T)'!Q92)","v":116},{"$f":"IF(+'[1]EXT(T)'!R92=\"\",\"\",+'[1]EXT(T)'!R92)","v":639.1},{"$f":"IF(+'[1]EXT(T)'!S92=\"\",\"\",+'[1]EXT(T)'!S92)","v":403.6},{"$f":"IF(+'[1]EXT(T)'!U92=\"\",\"\",+'[1]EXT(T)'!U92)","v":1266.4701898574313},{"$f":"IF(+'[1]EXT(T)'!V92=\"\",\"\",+'[1]EXT(T)'!V92)","v":1670.0701898574312},{"$f":"IF(+'[1]EXT(T)'!W92=\"\",\"\",+'[1]EXT(T)'!W92)","v":1253.067645678263},{"$f":"IF(+'[1]EXT(T)'!X92=\"\",\"\",+'[1]EXT(T)'!X92)","v":-412.16},{"$f":"IF(+'[1]EXT(T)'!Y92=\"\",\"\",+'[1]EXT(T)'!Y92)","v":497.32809999999995},{"$f":"IF(+'[1]EXT(T)'!Z92=\"\",\"\",+'[1]EXT(T)'!Z92)","v":703.46336634671809},{"$f":"IF(+'[1]EXT(T)'!AA92=\"\",\"\",+'[1]EXT(T)'!AA92)","v":322.89999999999998},{"$f":"IF(+'[1]EXT(T)'!AB92=\"\",\"\",+'[1]EXT(T)'!AB92)","v":1534.8000000000002},{"$f":"IF(+'[1]EXT(T)'!AC92=\"\",\"\",+'[1]EXT(T)'!AC92)","v":2100.6},{"$f":"IF(+'[1]EXT(T)'!AE92=\"\",\"\",+'[1]EXT(T)'!AE92)","v":3899.3991120249812},{"$f":"IF(+'[1]EXT(T)'!AF92=\"\",\"\",+'[1]EXT(T)'!AF92)","v":5999.9991120249815},{"$f":"IF(+'[1]EXT(T)'!AY92=\"\",\"\",+'[1]EXT(T)'!AY92)","v":11303.228551891181},{"$f":"IF(+'[1]EXT(T)'!AZ92=\"\",\"\",+'[1]EXT(T)'!AZ92)","v":11587.228551891181},{"$f":"IF(+'[1]EXT(T)'!AQ92=\"\",\"\",+'[1]EXT(T)'!AQ92-'[1]EXT(T)'!AQ91)","v":129.270194},{"$f":"IF(+'[1]EXT(T)'!AR92=\"\",\"\",+'[1]EXT(T)'!AR92-'[1]EXT(T)'!AR91)","v":841.08000000000015},{"$f":"IF(+'[1]EXT(T)'!AS92=\"\",\"\",+'[1]EXT(T)'!AS92-'[1]EXT(T)'!AS91)","v":1121.2812000000001},{"$f":"IF(+'[1]EXT(T)'!AT92=\"\",\"\",+'[1]EXT(T)'!AT92-'[1]EXT(T)'!AT91)","v":644.90607769000007},{"$f":"IF(+'[1]EXT(T)'!AU92=\"\",\"\",+'[1]EXT(T)'!AU92-'[1]EXT(T)'!AU91)","v":200.89999999999992},{"$f":"IF(+'[1]EXT(T)'!AV92=\"\",\"\",+'[1]EXT(T)'!AV92-'[1]EXT(T)'!AV91)","v":945.27782218648463},{"$f":"IF(+'[1]EXT(T)'!AW92=\"\",\"\",+'[1]EXT(T)'!AW92-'[1]EXT(T)'!AW91)","v":92},3882.7152938764848,3974.7152938764848]
[null,"IV",{"$f":"IF(+'[1]EXT(T)'!M93=\"\",\"\",+'[1]EXT(T)'!M93)","v":430.4775988431357},{"$f":"IF(+'[1]EXT(T)'!N93=\"\",\"\",+'[1]EXT(T)'!N93)","v":181.83},{"$f":"IF(+'[1]EXT(T)'!O93=\"\",\"\",+'[1]EXT(T)'!O93)","v":160.97438},{"$f":"IF(+'[1]EXT(T)'!P93=\"\",\"\",+'[1]EXT(T)'!P93)","v":265.72694859350378},{"$f":"IF(+'[1]EXT(T)'!Q93=\"\",\"\",+'[1]EXT(T)'!Q93)","v":167},{"$f":"IF(+'[1]EXT(T)'!R93=\"\",\"\",+'[1]EXT(T)'!R93)","v":488.89999999999992},{"$f":"IF(+'[1]EXT(T)'!S93=\"\",\"\",+'[1]EXT(T)'!S93)","v":622.70000000000005},{"$f":"IF(+'[1]EXT(T)'!U93=\"\",\"\",+'[1]EXT(T)'!U93)","v":1694.9089274366393},{"$f":"IF(+'[1]EXT(T)'!V93=\"\",\"\",+'[1]EXT(T)'!V93)","v":2317.6089274366395},{"$f":"IF(+'[1]EXT(T)'!W93=\"\",\"\",+'[1]EXT(T)'!W93)","v":1683.5452445213987},{"$f":"IF(+'[1]EXT(T)'!X93=\"\",\"\",+'[1]EXT(T)'!X93)","v":-230.33},{"$f":"IF(+'[1]EXT(T)'!Y93=\"\",\"\",+'[1]EXT(T)'!Y93)","v":658.30247999999995},{"$f":"IF(+'[1]EXT(T)'!Z93=\"\",\"\",+'[1]EXT(T)'!Z93)","v":969.19031494022192},{"$f":"IF(+'[1]EXT(T)'!AA93=\"\",\"\",+'[1]EXT(T)'!AA93)","v":489.9},{"$f":"IF(+'[1]EXT(T)'!AB93=\"\",\"\",+'[1]EXT(T)'!AB93)","v":2023.7},{"$f":"IF(+'[1]EXT(T)'!AC93=\"\",\"\",+'[1]EXT(T)'!AC93)","v":2723.3},{"$f":"IF(+'[1]EXT(T)'!AE93=\"\",\"\",+'[1]EXT(T)'!AE93)","v":5594.3080394616209},{"$f":"IF(+'[1]EXT(T)'!AF93=\"\",\"\",+'[1]EXT(T)'!AF93)","v":8317.608039461622},{"$f":"IF(+'[1]EXT(T)'!AY93=\"\",\"\",+'[1]EXT(T)'!AY93)","v":15119.006126444629},{"$f":"IF(+'[1]EXT(T)'!AZ93=\"\",\"\",+'[1]EXT(T)'!AZ93)","v":15519.006126444629},{"$f":"IF(+'[1]EXT(T)'!AQ93=\"\",\"\",+'[1]EXT(T)'!AQ93-'[1]EXT(T)'!AQ92)","v":128.12979949999999},{"$f":"IF(+'[1]EXT(T)'!AR93=\"\",\"\",+'[1]EXT(T)'!AR93-'[1]EXT(T)'!AR92)","v":865.44999999999982},{"$f":"IF(+'[1]EXT(T)'!AS93=\"\",\"\",+'[1]EXT(T)'!AS93-'[1]EXT(T)'!AS92)","v":1019.1917999999996},{"$f":"IF(+'[1]EXT(T)'!AT93=\"\",\"\",+'[1]EXT(T)'!AT93-'[1]EXT(T)'!AT92)","v":641.99106592999988},{"$f":"IF(+'[1]EXT(T)'!AU93=\"\",\"\",+'[1]EXT(T)'!AU93-'[1]EXT(T)'!AU92)","v":222.60000000000002},{"$f":"IF(+'[1]EXT(T)'!AV93=\"\",\"\",+'[1]EXT(T)'!AV93-'[1]EXT(T)'!AV92)","v":938.41490912344807},{"$f":"IF(+'[1]EXT(T)'!AW93=\"\",\"\",+'[1]EXT(T)'!AW93-'[1]EXT(T)'!AW92)","v":116},3815.7775745534473,3931.7775745534473]
[2011,"I",{"$f":"IF(+'[1]EXT(T)'!M94=\"\",\"\",+'[1]EXT(T)'!M94)","v":676.81294711621854},{"$f":"IF(+'[1]EXT(T)'!N94=\"\",\"\",+'[1]EXT(T)'!N94)","v":180.14},{"$f":"IF(+'[1]EXT(T)'!O94=\"\",\"\",+'[1]EXT(T)'!O94)","v":380.09551999999996},{"$f":"IF(+'[1]EXT(T)'!P94=\"\",\"\",+'[1]EXT(T)'!P94)","v":275.99299845906535},{"$f":"IF(+'[1]EXT(T)'!Q94=\"\",\"\",+'[1]EXT(T)'!Q94)","v":163.80000000000001},{"$f":"IF(+'[1]EXT(T)'!R94=\"\",\"\",+'[1]EXT(T)'!R94)","v":546},{"$f":"IF(+'[1]EXT(T)'!S94=\"\",\"\",+'[1]EXT(T)'!S94)","v":727.59999999999991},{"$f":"IF(+'[1]EXT(T)'!U94=\"\",\"\",+'[1]EXT(T)'!U94)","v":2222.841465575284},{"$f":"IF(+'[1]EXT(T)'!V94=\"\",\"\",+'[1]EXT(T)'!V94)","v":2950.4414655752839},{"$f":"IF(+'[1]EXT(T)'!W94=\"\",\"\",+'[1]EXT(T)'!W94)","v":676.81294711621854},{"$f":"IF(+'[1]EXT(T)'!X94=\"\",\"\",+'[1]EXT(T)'!X94)","v":180.14},{"$f":"IF(+'[1]EXT(T)'!Y94=\"\",\"\",+'[1]EXT(T)'!Y94)","v":380.09551999999996},{"$f":"IF(+'[1]EXT(T)'!Z94=\"\",\"\",+'[1]EXT(T)'!Z94)","v":275.99299845906535},{"$f":"IF(+'[1]EXT(T)'!AA94=\"\",\"\",+'[1]EXT(T)'!AA94)","v":163.80000000000001},{"$f":"IF(+'[1]EXT(T)'!AB94=\"\",\"\",+'[1]EXT(T)'!AB94)","v":546},{"$f":"IF(+'[1]EXT(T)'!AC94=\"\",\"\",+'[1]EXT(T)'!AC94)","v":727.59999999999991},{"$f":"IF(+'[1]EXT(T)'!AE94=\"\",\"\",+'[1]EXT(T)'!AE94)","v":2222.841465575284},{"$f":"IF(+'[1]EXT(T)'!AF94=\"\",\"\",+'[1]EXT(T)'!AF94)","v":2950.4414655752839},{"$f":"IF(+'[1]EXT(T)'!AY94=\"\",\"\",+'[1]EXT(T)'!AY94)","v":3809.1281974800004},{"$f":"IF(+'[1]EXT(T)'!AZ94=\"\",\"\",+'[1]EXT(T)'!AZ94)","v":3858.4801974800002},{"$f":"IF(+'[1]EXT(T)'!AQ94=\"\",\"\",+'[1]EXT(T)'!AQ94)","v":131.5018001},{"$f":"IF(+'[1]EXT(T)'!AR94=\"\",\"\",+'[1]EXT(T)'!AR94)","v":860.02},{"$f":"IF(+'[1]EXT(T)'!AS94=\"\",\"\",+'[1]EXT(T)'!AS94)","v":972.08969999999999},{"$f":"IF(+'[1]EXT(T)'!AT94=\"\",\"\",+'[1]EXT(T)'!AT94)","v":643.27389717000017},{"$f":"IF(+'[1]EXT(T)'!AU94=\"\",\"\",+'[1]EXT(T)'!AU94)","v":214.2},{"$f":"IF(+'[1]EXT(T)'!AV94=\"\",\"\",+'[1]EXT(T)'!AV94)","v":988.04280021000045},{"$f":"IF(+'[1]EXT(T)'!AW94=\"\",\"\",+'[1]EXT(T)'!AW94)","v":49.351999999999997},{"$f":"IF(OR(W87=\"\",X87=\"\",Y87=\"\",Z87=\"\",AA87=\"\",AB87=\"\"),\"\",W87+X87+Y87+Z87+AA87+AB87)","v":3809.1281974800004},3858.4801974800002]
[null,"II",{"$f":"IF(+'[1]EXT(T)'!M95=\"\",\"\",+'[1]EXT(T)'!M95)","v":624.37833529911677},{"$f":"IF(+'[1]EXT(T)'!N95=\"\",\"\",+'[1]EXT(T)'!N95)","v":-30.67},{"$f":"IF(+'[1]EXT(T)'!O95=\"\",\"\",+'[1]EXT(T)'!O95)","v":323.36191999999994},{"$f":"IF(+'[1]EXT(T)'!P95=\"\",\"\",+'[1]EXT(T)'!P95)","v":209.73304848961919},{"$f":"IF(+'[1]EXT(T)'!Q95=\"\",\"\",+'[1]EXT(T)'!Q95)","v":349.4},{"$f":"IF(+'[1]EXT(T)'!R95=\"\",\"\",+'[1]EXT(T)'!R95)","v":545.79999999999995},{"$f":"IF(+'[1]EXT(T)'!S95=\"\",\"\",+'[1]EXT(T)'!S95)","v":1144.4000000000001},{"$f":"IF(+'[1]EXT(T)'!U95=\"\",\"\",+'[1]EXT(T)'!U95)","v":2022.0033037887358},{"$f":"IF(+'[1]EXT(T)'!V95=\"\",\"\",+'[1]EXT(T)'!V95)","v":3166.4033037887357},{"$f":"IF(+'[1]EXT(T)'!W95=\"\",\"\",+'[1]EXT(T)'!W95)","v":1301.1912824153353},{"$f":"IF(+'[1]EXT(T)'!X95=\"\",\"\",+'[1]EXT(T)'!X95)","v":149.46999999999997},{"$f":"IF(+'[1]EXT(T)'!Y95=\"\",\"\",+'[1]EXT(T)'!Y95)","v":703.45743999999991},{"$f":"IF(+'[1]EXT(T)'!Z95=\"\",\"\",+'[1]EXT(T)'!Z95)","v":485.72604694868454},{"$f":"IF(+'[1]EXT(T)'!AA95=\"\",\"\",+'[1]EXT(T)'!AA95)","v":513.20000000000005},{"$f":"IF(+'[1]EXT(T)'!AB95=\"\",\"\",+'[1]EXT(T)'!AB95)","v":1091.8},{"$f":"IF(+'[1]EXT(T)'!AC95=\"\",\"\",+'[1]EXT(T)'!AC95)","v":1872},{"$f":"IF(+'[1]EXT(T)'!AE95=\"\",\"\",+'[1]EXT(T)'!AE95)","v":4244.8447693640201},{"$f":"IF(+'[1]EXT(T)'!AF95=\"\",\"\",+'[1]EXT(T)'!AF95)","v":6116.8447693640192},{"$f":"IF(+'[1]EXT(T)'!AY95=\"\",\"\",+'[1]EXT(T)'!AY95)","v":8076.5868124600001},{"$f":"IF(+'[1]EXT(T)'!AZ95=\"\",\"\",+'[1]EXT(T)'!AZ95)","v":8223.8778124599994},{"$f":"IF(+'[1]EXT(T)'!AQ95=\"\",\"\",+'[1]EXT(T)'!AQ95-'[1]EXT(T)'!AQ94)","v":125.66937820000001},{"$f":"IF(+'[1]EXT(T)'!AR95=\"\",\"\",+'[1]EXT(T)'!AR95-'[1]EXT(T)'!AR94)","v":942.71},{"$f":"IF(+'[1]EXT(T)'!AS95=\"\",\"\",+'[1]EXT(T)'!AS95-'[1]EXT(T)'!AS94)","v":1202.9996999999998},{"$f":"IF(+'[1]EXT(T)'!AT95=\"\",\"\",+'[1]EXT(T)'!AT95-'[1]EXT(T)'!AT94)","v":736.58730960000014},{"$f":"IF(+'[1]EXT(T)'!AU95=\"\",\"\",+'[1]EXT(T)'!AU95-'[1]EXT(T)'!AU94)","v":221.20000000000005},{"$f":"IF(+'[1]EXT(T)'!AV95=\"\",\"\",+'[1]EXT(T)'!AV95-'[1]EXT(T)'!AV94)","v":1038.2922271799996},{"$f":"IF(+'[1]EXT(T)'!AW95=\"\",\"\",+'[1]EXT(T)'!AW95-'[1]EXT(T)'!AW94)","v":97.938999999999993},4267.4586149799998,4365.3976149800001]
[null,"III",{"$f":"IF(+'[1]EXT(T)'!M96=\"\",\"\",+'[1]EXT(T)'!M96)","v":525.2533982067049},{"$f":"IF(+'[1]EXT(T)'!N96=\"\",\"\",+'[1]EXT(T)'!N96)","v":77.92},{"$f":"IF(+'[1]EXT(T)'!O96=\"\",\"\",+'[1]EXT(T)'!O96)","v":233.92459000000002},{"$f":"IF(+'[1]EXT(T)'!P96=\"\",\"\",+'[1]EXT(T)'!P96)","v":233.12648910565784},{"$f":"IF(+'[1]EXT(T)'!Q96=\"\",\"\",+'[1]EXT(T)'!Q96)","v":217.3},{"$f":"IF(+'[1]EXT(T)'!R96=\"\",\"\",+'[1]EXT(T)'!R96)","v":807.9},{"$f":"IF(+'[1]EXT(T)'!S96=\"\",\"\",+'[1]EXT(T)'!S96)","v":797.7},{"$f":"IF(+'[1]EXT(T)'!U96=\"\",\"\",+'[1]EXT(T)'!U96)","v":2095.4244773123628},{"$f":"IF(+'[1]EXT(T)'!V96=\"\",\"\",+'[1]EXT(T)'!V96)","v":2893.1244773123626},{"$f":"IF(+'[1]EXT(T)'!W96=\"\",\"\",+'[1]EXT(T)'!W96)","v":1826.4446806220403},{"$f":"IF(+'[1]EXT(T)'!X96=\"\",\"\",+'[1]EXT(T)'!X96)","v":227.39},{"$f":"IF(+'[1]EXT(T)'!Y96=\"\",\"\",+'[1]EXT(T)'!Y96)","v":937.38202999999999},{"$f":"IF(+'[1]EXT(T)'!Z96=\"\",\"\",+'[1]EXT(T)'!Z96)","v":718.85253605434241},{"$f":"IF(+'[1]EXT(T)'!AA96=\"\",\"\",+'[1]EXT(T)'!AA96)","v":730.5},{"$f":"IF(+'[1]EXT(T)'!AB96=\"\",\"\",+'[1]EXT(T)'!AB96)","v":1899.6999999999998},{"$f":"IF(+'[1]EXT(T)'!AC96=\"\",\"\",+'[1]EXT(T)'!AC96)","v":2669.7},{"$f":"IF(+'[1]EXT(T)'!AE96=\"\",\"\",+'[1]EXT(T)'!AE96)","v":6340.2692466763829},{"$f":"IF(+'[1]EXT(T)'!AF96=\"\",\"\",+'[1]EXT(T)'!AF96)","v":9009.9692466763809},{"$f":"IF(+'[1]EXT(T)'!AY96=\"\",\"\",+'[1]EXT(T)'!AY96)","v":12162.892326809999},{"$f":"IF(+'[1]EXT(T)'!AZ96=\"\",\"\",+'[1]EXT(T)'!AZ96)","v":12420.207326809999},{"$f":"IF(+'[1]EXT(T)'!AQ96=\"\",\"\",+'[1]EXT(T)'!AQ96-'[1]EXT(T)'!AQ95)","v":109.9332814},{"$f":"IF(+'[1]EXT(T)'!AR96=\"\",\"\",+'[1]EXT(T)'!AR96-'[1]EXT(T)'!AR95)","v":889.17999999999984},{"$f":"IF(+'[1]EXT(T)'!AS96=\"\",\"\",+'[1]EXT(T)'!AS96-'[1]EXT(T)'!AS95)","v":1124.1705999999999},{"$f":"IF(+'[1]EXT(T)'!AT96=\"\",\"\",+'[1]EXT(T)'!AT96-'[1]EXT(T)'!AT95)","v":704.86990748000039},{"$f":"IF(+'[1]EXT(T)'!AU96=\"\",\"\",+'[1]EXT(T)'!AU96-'[1]EXT(T)'!AU95)","v":226.59999999999997},{"$f":"IF(+'[1]EXT(T)'!AV96=\"\",\"\",+'[1]EXT(T)'!AV96-'[1]EXT(T)'!AV95)","v":1031.5517254699989},{"$f":"IF(+'[1]EXT(T)'!AW96=\"\",\"\",+'[1]EXT(T)'!AW96-'[1]EXT(T)'!AW95)","v":110.024},4086.3055143499992,4196.329514349999]
[null,"IV",{"$f":"IF(+'[1]EXT(T)'!M97=\"\",\"\",+'[1]EXT(T)'!M97)","v":635.03851976873079},{"$f":"IF(+'[1]EXT(T)'!N97=\"\",\"\",+'[1]EXT(T)'!N97)","v":-8.9},{"$f":"IF(+'[1]EXT(T)'!O97=\"\",\"\",+'[1]EXT(T)'!O97)","v":281.84701999999999},{"$f":"IF(+'[1]EXT(T)'!P97=\"\",\"\",+'[1]EXT(T)'!P97)","v":295.56117170449352},{"$f":"IF(+'[1]EXT(T)'!Q97=\"\",\"\",+'[1]EXT(T)'!Q97)","v":205.8},{"$f":"IF(+'[1]EXT(T)'!R97=\"\",\"\",+'[1]EXT(T)'!R97)","v":377.00000000000006},{"$f":"IF(+'[1]EXT(T)'!S97=\"\",\"\",+'[1]EXT(T)'!S97)","v":482.99999999999994},{"$f":"IF(+'[1]EXT(T)'!U97=\"\",\"\",+'[1]EXT(T)'!U97)","v":1786.3467114732243},{"$f":"IF(+'[1]EXT(T)'!V97=\"\",\"\",+'[1]EXT(T)'!V97)","v":2269.3467114732243},{"$f":"IF(+'[1]EXT(T)'!W97=\"\",\"\",+'[1]EXT(T)'!W97)","v":2461.4832003907713},{"$f":"IF(+'[1]EXT(T)'!X97=\"\",\"\",+'[1]EXT(T)'!X97)","v":218.48999999999998},{"$f":"IF(+'[1]EXT(T)'!Y97=\"\",\"\",+'[1]EXT(T)'!Y97)","v":1219.2290499999999},{"$f":"IF(+'[1]EXT(T)'!Z97=\"\",\"\",+'[1]EXT(T)'!Z97)","v":1014.4137077588359},{"$f":"IF(+'[1]EXT(T)'!AA97=\"\",\"\",+'[1]EXT(T)'!AA97)","v":936.3},{"$f":"IF(+'[1]EXT(T)'!AB97=\"\",\"\",+'[1]EXT(T)'!AB97)","v":2276.6999999999998},{"$f":"IF(+'[1]EXT(T)'!AC97=\"\",\"\",+'[1]EXT(T)'!AC97)","v":3152.7},{"$f":"IF(+'[1]EXT(T)'!AE97=\"\",\"\",+'[1]EXT(T)'!AE97)","v":8126.6159581496067},{"$f":"IF(+'[1]EXT(T)'!AF97=\"\",\"\",+'[1]EXT(T)'!AF97)","v":11279.315958149606},{"$f":"IF(+'[1]EXT(T)'!AY97=\"\",\"\",+'[1]EXT(T)'!AY97)","v":16161.972032559999},{"$f":"IF(+'[1]EXT(T)'!AZ97=\"\",\"\",+'[1]EXT(T)'!AZ97)","v":16530.608032559998},{"$f":"IF(+'[1]EXT(T)'!AQ97=\"\",\"\",+'[1]EXT(T)'!AQ97-'[1]EXT(T)'!AQ96)","v":119.94421360000001},{"$f":"IF(+'[1]EXT(T)'!AR97=\"\",\"\",+'[1]EXT(T)'!AR97-'[1]EXT(T)'!AR96)","v":935.56999999999971},{"$f":"IF(+'[1]EXT(T)'!AS97=\"\",\"\",+'[1]EXT(T)'!AS97-'[1]EXT(T)'!AS96)","v":1078.7719000000002},{"$f":"IF(+'[1]EXT(T)'!AT97=\"\",\"\",+'[1]EXT(T)'!AT97-'[1]EXT(T)'!AT96)","v":664.68982799000059},{"$f":"IF(+'[1]EXT(T)'!AU97=\"\",\"\",+'[1]EXT(T)'!AU97-'[1]EXT(T)'!AU96)","v":249.60000000000002},{"$f":"IF(+'[1]EXT(T)'!AV97=\"\",\"\",+'[1]EXT(T)'!AV97-'[1]EXT(T)'!AV96)","v":950.50376415999972},{"$f":"IF(+'[1]EXT(T)'!AW97=\"\",\"\",+'[1]EXT(T)'!AW97-'[1]EXT(T)'!AW96)","v":111.32099999999997},3999.0797057500004,4110.4007057500003]
[2012,"I",{"$f":"IF(+'[1]EXT(T)'!M98=\"\",\"\",+'[1]EXT(T)'!M98)","v":617.25197709007693},{"$f":"IF(+'[1]EXT(T)'!N98=\"\",\"\",+'[1]EXT(T)'!N98)","v":134.09621670182227},{"$f":"IF(+'[1]EXT(T)'!O98=\"\",\"\",+'[1]EXT(T)'!O98)","v":397.76984000000004},{"$f":"IF(+'[1]EXT(T)'!P98=\"\",\"\",+'[1]EXT(T)'!P98)","v":340.09310324752158},{"$f":"IF(+'[1]EXT(T)'!Q98=\"\",\"\",+'[1]EXT(T)'!Q98)","v":255},{"$f":"IF(+'[1]EXT(T)'!R98=\"\",\"\",+'[1]EXT(T)'!R98)","v":676.3},{"$f":"IF(+'[1]EXT(T)'!S98=\"\",\"\",+'[1]EXT(T)'!S98)","v":941.89999999999986},{"$f":"IF(+'[1]EXT(T)'!U98=\"\",\"\",+'[1]EXT(T)'!U98)","v":2420.5111370394206},{"$f":"IF(+'[1]EXT(T)'!V98=\"\",\"\",+'[1]EXT(T)'!V98)","v":3362.4111370394203},{"$f":"IF(+'[1]EXT(T)'!W98=\"\",\"\",+'[1]EXT(T)'!W98)","v":617.25197709007693},{"$f":"IF(+'[1]EXT(T)'!X98=\"\",\"\",+'[1]EXT(T)'!X98)","v":134.09621670182227},{"$f":"IF(+'[1]EXT(T)'!Y98=\"\",\"\",+'[1]EXT(T)'!Y98)","v":397.76984000000004},{"$f":"IF(+'[1]EXT(T)'!Z98=\"\",\"\",+'[1]EXT(T)'!Z98)","v":340.09310324752158},{"$f":"IF(+'[1]EXT(T)'!AA98=\"\",\"\",+'[1]EXT(T)'!AA98)","v":255},{"$f":"IF(+'[1]EXT(T)'!AB98=\"\",\"\",+'[1]EXT(T)'!AB98)","v":676.3},{"$f":"IF(+'[1]EXT(T)'!AC98=\"\",\"\",+'[1]EXT(T)'!AC98)","v":941.89999999999986},{"$f":"IF(+'[1]EXT(T)'!AE98=\"\",\"\",+'[1]EXT(T)'!AE98)","v":2420.5111370394206},{"$f":"IF(+'[1]EXT(T)'!AF98=\"\",\"\",+'[1]EXT(T)'!AF98)","v":3362.4111370394203},{"$f":"IF(+'[1]EXT(T)'!AY98=\"\",\"\",+'[1]EXT(T)'!AY98)","v":4126.2643761699983},{"$f":"IF(+'[1]EXT(T)'!AZ98=\"\",\"\",+'[1]EXT(T)'!AZ98)","v":4227.4643761699981},{"$f":"IF(+'[1]EXT(T)'!AQ98=\"\",\"\",+'[1]EXT(T)'!AQ98)","v":122.25946260000001},{"$f":"IF(+'[1]EXT(T)'!AR98=\"\",\"\",+'[1]EXT(T)'!AR98)","v":947.59999999999991},{"$f":"IF(+'[1]EXT(T)'!AS98=\"\",\"\",+'[1]EXT(T)'!AS98)","v":1057.6105},{"$f":"IF(+'[1]EXT(T)'!AT98=\"\",\"\",+'[1]EXT(T)'!AT98)","v":672.56440024000017},{"$f":"IF(+'[1]EXT(T)'!AU98=\"\",\"\",+'[1]EXT(T)'!AU98)","v":250.10000000000002},{"$f":"IF(+'[1]EXT(T)'!AV98=\"\",\"\",+'[1]EXT(T)'!AV98)","v":1076.1300133299983},{"$f":"IF(+'[1]EXT(T)'!AW98=\"\",\"\",+'[1]EXT(T)'!AW98)","v":101.2},{"$f":"IF(OR(W91=\"\",X91=\"\",Y91=\"\",Z91=\"\",AA91=\"\",AB91=\"\"),\"\",W91+X91+Y91+Z91+AA91+AB91)","v":4126.2643761699983},4227.4643761699981]
[null,"II",{"$f":"IF(+'[1]EXT(T)'!M99=\"\",\"\",+'[1]EXT(T)'!M99)","v":556.10253236459585},{"$f":"IF(+'[1]EXT(T)'!N99=\"\",\"\",+'[1]EXT(T)'!N99)","v":128.82268434919649},{"$f":"IF(+'[1]EXT(T)'!O99=\"\",\"\",+'[1]EXT(T)'!O99)","v":338.10209999999995},{"$f":"IF(+'[1]EXT(T)'!P99=\"\",\"\",+'[1]EXT(T)'!P99)","v":127.85782283441692},{"$f":"IF(+'[1]EXT(T)'!Q99=\"\",\"\",+'[1]EXT(T)'!Q99)","v":196.39999999999998},{"$f":"IF(+'[1]EXT(T)'!R99=\"\",\"\",+'[1]EXT(T)'!R99)","v":1612},{"$f":"IF(+'[1]EXT(T)'!S99=\"\",\"\",+'[1]EXT(T)'!S99)","v":787.59999999999991},{"$f":"IF(+'[1]EXT(T)'!U99=\"\",\"\",+'[1]EXT(T)'!U99)","v":2959.2851395482094},{"$f":"IF(+'[1]EXT(T)'!V99=\"\",\"\",+'[1]EXT(T)'!V99)","v":3746.8851395482093},{"$f":"IF(+'[1]EXT(T)'!W99=\"\",\"\",+'[1]EXT(T)'!W99)","v":1173.3545094546728},{"$f":"IF(+'[1]EXT(T)'!X99=\"\",\"\",+'[1]EXT(T)'!X99)","v":262.91890105101879},{"$f":"IF(+'[1]EXT(T)'!Y99=\"\",\"\",+'[1]EXT(T)'!Y99)","v":735.87194},{"$f":"IF(+'[1]EXT(T)'!Z99=\"\",\"\",+'[1]EXT(T)'!Z99)","v":467.95092608193852},{"$f":"IF(+'[1]EXT(T)'!AA99=\"\",\"\",+'[1]EXT(T)'!AA99)","v":451.4},{"$f":"IF(+'[1]EXT(T)'!AB99=\"\",\"\",+'[1]EXT(T)'!AB99)","v":2288.3000000000002},{"$f":"IF(+'[1]EXT(T)'!AC99=\"\",\"\",+'[1]EXT(T)'!AC99)","v":1729.4999999999998},{"$f":"IF(+'[1]EXT(T)'!AE99=\"\",\"\",+'[1]EXT(T)'!AE99)","v":5379.79627658763},{"$f":"IF(+'[1]EXT(T)'!AF99=\"\",\"\",+'[1]EXT(T)'!AF99)","v":7109.2962765876291},{"$f":"IF(+'[1]EXT(T)'!AY99=\"\",\"\",+'[1]EXT(T)'!AY99)","v":8542.2227890429913},{"$f":"IF(+'[1]EXT(T)'!AZ99=\"\",\"\",+'[1]EXT(T)'!AZ99)","v":8728.3227890429916},{"$f":"IF(+'[1]EXT(T)'!AQ99=\"\",\"\",+'[1]EXT(T)'!AQ99-'[1]EXT(T)'!AQ98)","v":123.6096144},{"$f":"IF(+'[1]EXT(T)'!AR99=\"\",\"\",+'[1]EXT(T)'!AR99-'[1]EXT(T)'!AR98)","v":1001.6700000000001},{"$f":"IF(+'[1]EXT(T)'!AS99=\"\",\"\",+'[1]EXT(T)'!AS99-'[1]EXT(T)'!AS98)","v":1303.2027999999998},{"$f":"IF(+'[1]EXT(T)'!AT99=\"\",\"\",+'[1]EXT(T)'!AT99-'[1]EXT(T)'!AT98)","v":728.93665197000018},{"$f":"IF(+'[1]EXT(T)'!AU99=\"\",\"\",+'[1]EXT(T)'!AU99-'[1]EXT(T)'!AU98)","v":244.20000000000005},{"$f":"IF(+'[1]EXT(T)'!AV99=\"\",\"\",+'[1]EXT(T)'!AV99-'[1]EXT(T)'!AV98)","v":1014.3393465029935},{"$f":"IF(+'[1]EXT(T)'!AW99=\"\",\"\",+'[1]EXT(T)'!AW99-'[1]EXT(T)'!AW98)","v":84.90000000000002},4415.958412872993,4500.8584128729926]
[null,"III",{"$f":"IF(+'[1]EXT(T)'!M100=\"\",\"\",+'[1]EXT(T)'!M100)","v":584.51341459367154},{"$f":"IF(+'[1]EXT(T)'!N100=\"\",\"\",+'[1]EXT(T)'!N100)","v":216.27237344554084},{"$f":"IF(+'[1]EXT(T)'!O100=\"\",\"\",+'[1]EXT(T)'!O100)","v":240.63722000000001},{"$f":"IF(+'[1]EXT(T)'!P100=\"\",\"\",+'[1]EXT(T)'!P100)","v":247.08133537749271},{"$f":"IF(+'[1]EXT(T)'!Q100=\"\",\"\",+'[1]EXT(T)'!Q100)","v":182.6},{"$f":"IF(+'[1]EXT(T)'!R100=\"\",\"\",+'[1]EXT(T)'!R100)","v":730.59999999999991},{"$f":"IF(+'[1]EXT(T)'!S100=\"\",\"\",+'[1]EXT(T)'!S100)","v":1032.2},{"$f":"IF(+'[1]EXT(T)'!U100=\"\",\"\",+'[1]EXT(T)'!U100)","v":2201.7043434167049},{"$f":"IF(+'[1]EXT(T)'!V100=\"\",\"\",+'[1]EXT(T)'!V100)","v":3233.9043434167052},{"$f":"IF(+'[1]EXT(T)'!W100=\"\",\"\",+'[1]EXT(T)'!W100)","v":1757.8679240483443},{"$f":"IF(+'[1]EXT(T)'!X100=\"\",\"\",+'[1]EXT(T)'!X100)","v":479.19127449655963},{"$f":"IF(+'[1]EXT(T)'!Y100=\"\",\"\",+'[1]EXT(T)'!Y100)","v":976.50916000000007},{"$f":"IF(+'[1]EXT(T)'!Z100=\"\",\"\",+'[1]EXT(T)'!Z100)","v":715.0322614594312},{"$f":"IF(+'[1]EXT(T)'!AA100=\"\",\"\",+'[1]EXT(T)'!AA100)","v":634},{"$f":"IF(+'[1]EXT(T)'!AB100=\"\",\"\",+'[1]EXT(T)'!AB100)","v":3018.9},{"$f":"IF(+'[1]EXT(T)'!AC100=\"\",\"\",+'[1]EXT(T)'!AC100)","v":2761.7},{"$f":"IF(+'[1]EXT(T)'!AE100=\"\",\"\",+'[1]EXT(T)'!AE100)","v":7581.5006200043354},{"$f":"IF(+'[1]EXT(T)'!AF100=\"\",\"\",+'[1]EXT(T)'!AF100)","v":10343.200620004334},{"$f":"IF(+'[1]EXT(T)'!AY100=\"\",\"\",+'[1]EXT(T)'!AY100)","v":12878.580724327234},{"$f":"IF(+'[1]EXT(T)'!AZ100=\"\",\"\",+'[1]EXT(T)'!AZ100)","v":13163.880724327233},{"$f":"IF(+'[1]EXT(T)'!AQ100=\"\",\"\",+'[1]EXT(T)'!AQ100-'[1]EXT(T)'!AQ99)","v":140.59726110000003},{"$f":"IF(+'[1]EXT(T)'!AR100=\"\",\"\",+'[1]EXT(T)'!AR100-'[1]EXT(T)'!AR99)","v":949.46},{"$f":"IF(+'[1]EXT(T)'!AS100=\"\",\"\",+'[1]EXT(T)'!AS100-'[1]EXT(T)'!AS99)","v":1229.2888000000003},{"$f":"IF(+'[1]EXT(T)'!AT100=\"\",\"\",+'[1]EXT(T)'!AT100-'[1]EXT(T)'!AT99)","v":717.46550911000008},{"$f":"IF(+'[1]EXT(T)'!AU100=\"\",\"\",+'[1]EXT(T)'!AU100-'[1]EXT(T)'!AU99)","v":246.19999999999993},{"$f":"IF(+'[1]EXT(T)'!AV100=\"\",\"\",+'[1]EXT(T)'!AV100-'[1]EXT(T)'!AV99)","v":1053.3463650742424},{"$f":"IF(+'[1]EXT(T)'!AW100=\"\",\"\",+'[1]EXT(T)'!AW100-'[1]EXT(T)'!AW99)","v":99.199999999999989},4336.3579352842426,4435.5579352842424]
[null,"IV",{"$f":"IF(+'[1]EXT(T)'!M101=\"\",\"\",+'[1]EXT(T)'!M101)","v":500.22210837227851},{"$f":"IF(+'[1]EXT(T)'!N101=\"\",\"\",+'[1]EXT(T)'!N101)","v":-12.363196364135661},{"$f":"IF(+'[1]EXT(T)'!O101=\"\",\"\",+'[1]EXT(T)'!O101)","v":293.63596000000001},{"$f":"IF(+'[1]EXT(T)'!P101=\"\",\"\",+'[1]EXT(T)'!P101)","v":343.48860156963912},{"$f":"IF(+'[1]EXT(T)'!Q101=\"\",\"\",+'[1]EXT(T)'!Q101)","v":141.70000000000002},{"$f":"IF(+'[1]EXT(T)'!R101=\"\",\"\",+'[1]EXT(T)'!R101)","v":123.5},{"$f":"IF(+'[1]EXT(T)'!S101=\"\",\"\",+'[1]EXT(T)'!S101)","v":448.8},{"$f":"IF(+'[1]EXT(T)'!U101=\"\",\"\",+'[1]EXT(T)'!U101)","v":1390.183473577782},{"$f":"IF(+'[1]EXT(T)'!V101=\"\",\"\",+'[1]EXT(T)'!V101)","v":1838.983473577782},{"$f":"IF(+'[1]EXT(T)'!W101=\"\",\"\",+'[1]EXT(T)'!W101)","v":2258.0900324206227},{"$f":"IF(+'[1]EXT(T)'!X101=\"\",\"\",+'[1]EXT(T)'!X101)","v":466.82807813242397},{"$f":"IF(+'[1]EXT(T)'!Y101=\"\",\"\",+'[1]EXT(T)'!Y101)","v":1270.1451200000001},{"$f":"IF(+'[1]EXT(T)'!Z101=\"\",\"\",+'[1]EXT(T)'!Z101)","v":1058.5208630290704},{"$f":"IF(+'[1]EXT(T)'!AA101=\"\",\"\",+'[1]EXT(T)'!AA101)","v":775.7},{"$f":"IF(+'[1]EXT(T)'!AB101=\"\",\"\",+'[1]EXT(T)'!AB101)","v":3142.4},{"$f":"IF(+'[1]EXT(T)'!AC101=\"\",\"\",+'[1]EXT(T)'!AC101)","v":3210.5},{"$f":"IF(+'[1]EXT(T)'!AE101=\"\",\"\",+'[1]EXT(T)'!AE101)","v":8971.6840935821165},{"$f":"IF(+'[1]EXT(T)'!AF101=\"\",\"\",+'[1]EXT(T)'!AF101)","v":12182.184093582116},{"$f":"IF(+'[1]EXT(T)'!AY101=\"\",\"\",+'[1]EXT(T)'!AY101)","v":17097.558362629487},{"$f":"IF(+'[1]EXT(T)'!AZ101=\"\",\"\",+'[1]EXT(T)'!AZ101)","v":17478.658362629485},{"$f":"IF(+'[1]EXT(T)'!AQ101=\"\",\"\",+'[1]EXT(T)'!AQ101-'[1]EXT(T)'!AQ100)","v":140.32140700000002},{"$f":"IF(+'[1]EXT(T)'!AR101=\"\",\"\",+'[1]EXT(T)'!AR101-'[1]EXT(T)'!AR100)","v":987.89000000000033},{"$f":"IF(+'[1]EXT(T)'!AS101=\"\",\"\",+'[1]EXT(T)'!AS101-'[1]EXT(T)'!AS100)","v":1192.5900000000001},{"$f":"IF(+'[1]EXT(T)'!AT101=\"\",\"\",+'[1]EXT(T)'!AT101-'[1]EXT(T)'!AT100)","v":722.92037178000055},{"$f":"IF(+'[1]EXT(T)'!AU101=\"\",\"\",+'[1]EXT(T)'!AU101-'[1]EXT(T)'!AU100)","v":273.69999999999993},{"$f":"IF(+'[1]EXT(T)'!AV101=\"\",\"\",+'[1]EXT(T)'!AV101-'[1]EXT(T)'!AV100)","v":901.55585952224919},{"$f":"IF(+'[1]EXT(T)'!AW101=\"\",\"\",+'[1]EXT(T)'!AW101-'[1]EXT(T)'!AW100)","v":95.800000000000011},4218.9776383022499,4314.7776383022501]
[2013,"I",{"$f":"IF(+'[1]EXT(T)'!M102=\"\",\"\",+'[1]EXT(T)'!M102)","v":958.69478643540629},{"$f":"IF(+'[1]EXT(T)'!N102=\"\",\"\",+'[1]EXT(T)'!N102)","v":-22.449906272598618},{"$f":"IF(+'[1]EXT(T)'!O102=\"\",\"\",+'[1]EXT(T)'!O102)","v":408.26391000000001},{"$f":"IF(+'[1]EXT(T)'!P102=\"\",\"\",+'[1]EXT(T)'!P102)","v":300.59062243688567},{"$f":"IF(+'[1]EXT(T)'!Q102=\"\",\"\",+'[1]EXT(T)'!Q102)","v":241},{"$f":"IF(+'[1]EXT(T)'!R102=\"\",\"\",+'[1]EXT(T)'!R102)","v":543},{"$f":"IF(+'[1]EXT(T)'!S102=\"\",\"\",+'[1]EXT(T)'!S102)","v":1335.6999999999998},{"$f":"IF(+'[1]EXT(T)'!U102=\"\",\"\",+'[1]EXT(T)'!U102)","v":2429.0994125996931},{"$f":"IF(+'[1]EXT(T)'!V102=\"\",\"\",+'[1]EXT(T)'!V102)","v":3764.7994125996929},{"$f":"IF(+'[1]EXT(T)'!W102=\"\",\"\",+'[1]EXT(T)'!W102)","v":958.69478643540629},{"$f":"IF(+'[1]EXT(T)'!X102=\"\",\"\",+'[1]EXT(T)'!X102)","v":-22.449906272598618},{"$f":"IF(+'[1]EXT(T)'!Y102=\"\",\"\",+'[1]EXT(T)'!Y102)","v":408.26391000000001},{"$f":"IF(+'[1]EXT(T)'!Z102=\"\",\"\",+'[1]EXT(T)'!Z102)","v":300.59062243688567},{"$f":"IF(+'[1]EXT(T)'!AA102=\"\",\"\",+'[1]EXT(T)'!AA102)","v":241},{"$f":"IF(+'[1]EXT(T)'!AB102=\"\",\"\",+'[1]EXT(T)'!AB102)","v":543},{"$f":"IF(+'[1]EXT(T)'!AC102=\"\",\"\",+'[1]EXT(T)'!AC102)","v":1335.6999999999998},{"$f":"IF(+'[1]EXT(T)'!AE102=\"\",\"\",+'[1]EXT(T)'!AE102)","v":2429.0994125996931},{"$f":"IF(+'[1]EXT(T)'!AF102=\"\",\"\",+'[1]EXT(T)'!AF102)","v":3764.7994125996929},{"$f":"IF(+'[1]EXT(T)'!AY102=\"\",\"\",+'[1]EXT(T)'!AY102)","v":4247.2318979815363},{"$f":"IF(+'[1]EXT(T)'!AZ102=\"\",\"\",+'[1]EXT(T)'!AZ102)","v":4361.631897981536},{"$f":"IF(+'[1]EXT(T)'!AQ102=\"\",\"\",+'[1]EXT(T)'!AQ102)","v":134.27661689999999},{"$f":"IF(+'[1]EXT(T)'!AR102=\"\",\"\",+'[1]EXT(T)'!AR102)","v":916.44},{"$f":"IF(+'[1]EXT(T)'!AS102=\"\",\"\",+'[1]EXT(T)'!AS102)","v":1133.0899999999999},{"$f":"IF(+'[1]EXT(T)'!AT102=\"\",\"\",+'[1]EXT(T)'!AT102)","v":689.43898598999999},{"$f":"IF(+'[1]EXT(T)'!AU102=\"\",\"\",+'[1]EXT(T)'!AU102)","v":257.3},{"$f":"IF(+'[1]EXT(T)'!AV102=\"\",\"\",+'[1]EXT(T)'!AV102)","v":1116.6862950915365},{"$f":"IF(+'[1]EXT(T)'!AW102=\"\",\"\",+'[1]EXT(T)'!AW102)","v":114.4},{"$f":"IF(OR(W95=\"\",X95=\"\",Y95=\"\",Z95=\"\",AA95=\"\",AB95=\"\"),\"\",W95+X95+Y95+Z95+AA95+AB95)","v":4247.2318979815363},4361.631897981536]
[null,"II",{"$f":"IF(+'[1]EXT(T)'!M103=\"\",\"\",+'[1]EXT(T)'!M103)","v":411.20588742426503},{"$f":"IF(+'[1]EXT(T)'!N103=\"\",\"\",+'[1]EXT(T)'!N103)","v":132.02430364469677},{"$f":"IF(+'[1]EXT(T)'!O103=\"\",\"\",+'[1]EXT(T)'!O103)","v":393.01911000000001},{"$f":"IF(+'[1]EXT(T)'!P103=\"\",\"\",+'[1]EXT(T)'!P103)","v":236.41268404201429},{"$f":"IF(+'[1]EXT(T)'!Q103=\"\",\"\",+'[1]EXT(T)'!Q103)","v":182.2},{"$f":"IF(+'[1]EXT(T)'!R103=\"\",\"\",+'[1]EXT(T)'!R103)","v":438.80000000000007},{"$f":"IF(+'[1]EXT(T)'!S103=\"\",\"\",+'[1]EXT(T)'!S103)","v":687.7},{"$f":"IF(+'[1]EXT(T)'!U103=\"\",\"\",+'[1]EXT(T)'!U103)","v":1793.6619851109763},{"$f":"IF(+'[1]EXT(T)'!V103=\"\",\"\",+'[1]EXT(T)'!V103)","v":2481.3619851109761},{"$f":"IF(+'[1]EXT(T)'!W103=\"\",\"\",+'[1]EXT(T)'!W103)","v":1369.9006738596713},{"$f":"IF(+'[1]EXT(T)'!X103=\"\",\"\",+'[1]EXT(T)'!X103)","v":109.57439737209816},{"$f":"IF(+'[1]EXT(T)'!Y103=\"\",\"\",+'[1]EXT(T)'!Y103)","v":801.28302000000008},{"$f":"IF(+'[1]EXT(T)'!Z103=\"\",\"\",+'[1]EXT(T)'!Z103)","v":537.00330647889996},{"$f":"IF(+'[1]EXT(T)'!AA103=\"\",\"\",+'[1]EXT(T)'!AA103)","v":423.2},{"$f":"IF(+'[1]EXT(T)'!AB103=\"\",\"\",+'[1]EXT(T)'!AB103)","v":981.80000000000007},{"$f":"IF(+'[1]EXT(T)'!AC103=\"\",\"\",+'[1]EXT(T)'!AC103)","v":2023.3999999999999},{"$f":"IF(+'[1]EXT(T)'!AE103=\"\",\"\",+'[1]EXT(T)'!AE103)","v":4222.7613977106694},{"$f":"IF(+'[1]EXT(T)'!AF103=\"\",\"\",+'[1]EXT(T)'!AF103)","v":6246.161397710669},{"$f":"IF(+'[1]EXT(T)'!AY103=\"\",\"\",+'[1]EXT(T)'!AY103)","v":8783.4343644015207},{"$f":"IF(+'[1]EXT(T)'!AZ103=\"\",\"\",+'[1]EXT(T)'!AZ103)","v":8993.1343644015215},{"$f":"IF(+'[1]EXT(T)'!AQ103=\"\",\"\",+'[1]EXT(T)'!AQ103-'[1]EXT(T)'!AQ102)","v":137.3873169},{"$f":"IF(+'[1]EXT(T)'!AR103=\"\",\"\",+'[1]EXT(T)'!AR103-'[1]EXT(T)'!AR102)","v":1032.55},{"$f":"IF(+'[1]EXT(T)'!AS103=\"\",\"\",+'[1]EXT(T)'!AS103-'[1]EXT(T)'!AS102)","v":1345.4299999999996},{"$f":"IF(+'[1]EXT(T)'!AT103=\"\",\"\",+'[1]EXT(T)'!AT103-'[1]EXT(T)'!AT102)","v":822.18495387000007},{"$f":"IF(+'[1]EXT(T)'!AU103=\"\",\"\",+'[1]EXT(T)'!AU103-'[1]EXT(T)'!AU102)","v":264.3},{"$f":"IF(+'[1]EXT(T)'!AV103=\"\",\"\",+'[1]EXT(T)'!AV103-'[1]EXT(T)'!AV102)","v":934.35019564998493},{"$f":"IF(+'[1]EXT(T)'!AW103=\"\",\"\",+'[1]EXT(T)'!AW103-'[1]EXT(T)'!AW102)","v":95.299999999999983},4536.2024664199844,4631.5024664199846]
[null,"III",{"$f":"IF(+'[1]EXT(T)'!M104=\"\",\"\",+'[1]EXT(T)'!M104)","v":458.3588425775157},{"$f":"IF(+'[1]EXT(T)'!N104=\"\",\"\",+'[1]EXT(T)'!N104)","v":151.52552539054261},{"$f":"IF(+'[1]EXT(T)'!O104=\"\",\"\",+'[1]EXT(T)'!O104)","v":360.92783000000003},{"$f":"IF(+'[1]EXT(T)'!P104=\"\",\"\",+'[1]EXT(T)'!P104)","v":199.48749304794686},{"$f":"IF(+'[1]EXT(T)'!Q104=\"\",\"\",+'[1]EXT(T)'!Q104)","v":253.89999999999998},{"$f":"IF(+'[1]EXT(T)'!R104=\"\",\"\",+'[1]EXT(T)'!R104)","v":527},{"$f":"IF(+'[1]EXT(T)'!S104=\"\",\"\",+'[1]EXT(T)'!S104)","v":877.40000000000009},{"$f":"IF(+'[1]EXT(T)'!U104=\"\",\"\",+'[1]EXT(T)'!U104)","v":1951.1996910160051},{"$f":"IF(+'[1]EXT(T)'!V104=\"\",\"\",+'[1]EXT(T)'!V104)","v":2828.5996910160052},{"$f":"IF(+'[1]EXT(T)'!W104=\"\",\"\",+'[1]EXT(T)'!W104)","v":1828.2595164371869},{"$f":"IF(+'[1]EXT(T)'!X104=\"\",\"\",+'[1]EXT(T)'!X104)","v":261.09992276264074},{"$f":"IF(+'[1]EXT(T)'!Y104=\"\",\"\",+'[1]EXT(T)'!Y104)","v":1162.2108500000002},{"$f":"IF(+'[1]EXT(T)'!Z104=\"\",\"\",+'[1]EXT(T)'!Z104)","v":736.49079952684679},{"$f":"IF(+'[1]EXT(T)'!AA104=\"\",\"\",+'[1]EXT(T)'!AA104)","v":677.09999999999991},{"$f":"IF(+'[1]EXT(T)'!AB104=\"\",\"\",+'[1]EXT(T)'!AB104)","v":1508.8000000000002},{"$f":"IF(+'[1]EXT(T)'!AC104=\"\",\"\",+'[1]EXT(T)'!AC104)","v":2900.8},{"$f":"IF(+'[1]EXT(T)'!AE104=\"\",\"\",+'[1]EXT(T)'!AE104)","v":6173.9610887266745},{"$f":"IF(+'[1]EXT(T)'!AF104=\"\",\"\",+'[1]EXT(T)'!AF104)","v":9074.7610887266746},{"$f":"IF(+'[1]EXT(T)'!AY104=\"\",\"\",+'[1]EXT(T)'!AY104)","v":13359.672734172225},{"$f":"IF(+'[1]EXT(T)'!AZ104=\"\",\"\",+'[1]EXT(T)'!AZ104)","v":13679.572734172225},{"$f":"IF(+'[1]EXT(T)'!AQ104=\"\",\"\",+'[1]EXT(T)'!AQ104-'[1]EXT(T)'!AQ103)","v":139.78967369999998},{"$f":"IF(+'[1]EXT(T)'!AR104=\"\",\"\",+'[1]EXT(T)'!AR104-'[1]EXT(T)'!AR103)","v":970.02000000000021},{"$f":"IF(+'[1]EXT(T)'!AS104=\"\",\"\",+'[1]EXT(T)'!AS104-'[1]EXT(T)'!AS103)","v":1322.8000000000002},{"$f":"IF(+'[1]EXT(T)'!AT104=\"\",\"\",+'[1]EXT(T)'!AT104-'[1]EXT(T)'!AT103)","v":802.93862912000031},{"$f":"IF(+'[1]EXT(T)'!AU104=\"\",\"\",+'[1]EXT(T)'!AU104-'[1]EXT(T)'!AU103)","v":265.70000000000005},{"$f":"IF(+'[1]EXT(T)'!AV104=\"\",\"\",+'[1]EXT(T)'!AV104-'[1]EXT(T)'!AV103)","v":1074.990066950706},{"$f":"IF(+'[1]EXT(T)'!AW104=\"\",\"\",+'[1]EXT(T)'!AW104-'[1]EXT(T)'!AW103)","v":110.19999999999999},4576.2383697707064,4686.4383697707062]
[null,"IV",{"$f":"IF(+'[1]EXT(T)'!M105=\"\",\"\",+'[1]EXT(T)'!M105)","v":912.83226069790817},{"$f":"IF(+'[1]EXT(T)'!N105=\"\",\"\",+'[1]EXT(T)'!N105)","v":-81.219539322513171},{"$f":"IF(+'[1]EXT(T)'!O105=\"\",\"\",+'[1]EXT(T)'!O105)","v":317.10185999999999},{"$f":"IF(+'[1]EXT(T)'!P105=\"\",\"\",+'[1]EXT(T)'!P105)","v":323.20153669259241},{"$f":"IF(+'[1]EXT(T)'!Q105=\"\",\"\",+'[1]EXT(T)'!Q105)","v":288},{"$f":"IF(+'[1]EXT(T)'!R105=\"\",\"\",+'[1]EXT(T)'!R105)","v":481.7000000000001},{"$f":"IF(+'[1]EXT(T)'!S105=\"\",\"\",+'[1]EXT(T)'!S105)","v":666.40000000000009},{"$f":"IF(+'[1]EXT(T)'!U105=\"\",\"\",+'[1]EXT(T)'!U105)","v":2241.6161180679878},{"$f":"IF(+'[1]EXT(T)'!V105=\"\",\"\",+'[1]EXT(T)'!V105)","v":2908.0161180679879},{"$f":"IF(+'[1]EXT(T)'!W105=\"\",\"\",+'[1]EXT(T)'!W105)","v":2741.0917771350951},{"$f":"IF(+'[1]EXT(T)'!X105=\"\",\"\",+'[1]EXT(T)'!X105)","v":179.88038344012756},{"$f":"IF(+'[1]EXT(T)'!Y105=\"\",\"\",+'[1]EXT(T)'!Y105)","v":1479.3127100000002},{"$f":"IF(+'[1]EXT(T)'!Z105=\"\",\"\",+'[1]EXT(T)'!Z105)","v":1059.6923362194393},{"$f":"IF(+'[1]EXT(T)'!AA105=\"\",\"\",+'[1]EXT(T)'!AA105)","v":965.09999999999991},{"$f":"IF(+'[1]EXT(T)'!AB105=\"\",\"\",+'[1]EXT(T)'!AB105)","v":1990.5000000000002},{"$f":"IF(+'[1]EXT(T)'!AC105=\"\",\"\",+'[1]EXT(T)'!AC105)","v":3567.2000000000003},{"$f":"IF(+'[1]EXT(T)'!AE105=\"\",\"\",+'[1]EXT(T)'!AE105)","v":8415.5772067946618},{"$f":"IF(+'[1]EXT(T)'!AF105=\"\",\"\",+'[1]EXT(T)'!AF105)","v":11982.777206794663},{"$f":"IF(+'[1]EXT(T)'!AY105=\"\",\"\",+'[1]EXT(T)'!AY105)","v":18043.743945403796},{"$f":"IF(+'[1]EXT(T)'!AZ105=\"\",\"\",+'[1]EXT(T)'!AZ105)","v":18467.743945403796},{"$f":"IF(+'[1]EXT(T)'!AQ105=\"\",\"\",+'[1]EXT(T)'!AQ105-'[1]EXT(T)'!AQ104)","v":149.61328620000006},{"$f":"IF(+'[1]EXT(T)'!AR105=\"\",\"\",+'[1]EXT(T)'!AR105-'[1]EXT(T)'!AR104)","v":1025.1900000000005},{"$f":"IF(+'[1]EXT(T)'!AS105=\"\",\"\",+'[1]EXT(T)'!AS105-'[1]EXT(T)'!AS104)","v":1303.8864000000003},{"$f":"IF(+'[1]EXT(T)'!AT105=\"\",\"\",+'[1]EXT(T)'!AT105-'[1]EXT(T)'!AT104)","v":778.71499021},{"$f":"IF(+'[1]EXT(T)'!AU105=\"\",\"\",+'[1]EXT(T)'!AU105-'[1]EXT(T)'!AU104)","v":290.39999999999998},{"$f":"IF(+'[1]EXT(T)'!AV105=\"\",\"\",+'[1]EXT(T)'!AV105-'[1]EXT(T)'!AV104)","v":1136.2665348215642},{"$f":"IF(+'[1]EXT(T)'!AW105=\"\",\"\",+'[1]EXT(T)'!AW105-'[1]EXT(T)'!AW104)","v":104.10000000000002},4684.071211231565,4788.1712112315654]
[2014,"I",{"$f":"IF(+'[1]EXT(T)'!M106=\"\",\"\",+'[1]EXT(T)'!M106)","v":883.36135368174837},{"$f":"IF(+'[1]EXT(T)'!N106=\"\",\"\",+'[1]EXT(T)'!N106)","v":24.747843127200035},{"$f":"IF(+'[1]EXT(T)'!O106=\"\",\"\",+'[1]EXT(T)'!O106)","v":386.49795},{"$f":"IF(+'[1]EXT(T)'!P106=\"\",\"\",+'[1]EXT(T)'!P106)","v":922.20544063388911},{"$f":"IF(+'[1]EXT(T)'!Q106=\"\",\"\",+'[1]EXT(T)'!Q106)","v":185.5},{"$f":"IF(+'[1]EXT(T)'!R106=\"\",\"\",+'[1]EXT(T)'!R106)","v":504.50000000000011},{"$f":"IF(+'[1]EXT(T)'!S106=\"\",\"\",+'[1]EXT(T)'!S106)","v":1170.8},{"$f":"IF(+'[1]EXT(T)'!U106=\"\",\"\",+'[1]EXT(T)'!U106)","v":2906.8125874428374},{"$f":"IF(+'[1]EXT(T)'!V106=\"\",\"\",+'[1]EXT(T)'!V106)","v":4077.6125874428371},{"$f":"IF(+'[1]EXT(T)'!W106=\"\",\"\",+'[1]EXT(T)'!W106)","v":883.36135368174837},{"$f":"IF(+'[1]EXT(T)'!X106=\"\",\"\",+'[1]EXT(T)'!X106)","v":24.747843127200035},{"$f":"IF(+'[1]EXT(T)'!Y106=\"\",\"\",+'[1]EXT(T)'!Y106)","v":386.49795},{"$f":"IF(+'[1]EXT(T)'!Z106=\"\",\"\",+'[1]EXT(T)'!Z106)","v":922.20544063388911},{"$f":"IF(+'[1]EXT(T)'!AA106=\"\",\"\",+'[1]EXT(T)'!AA106)","v":185.5},{"$f":"IF(+'[1]EXT(T)'!AB106=\"\",\"\",+'[1]EXT(T)'!AB106)","v":504.50000000000011},{"$f":"IF(+'[1]EXT(T)'!AC106=\"\",\"\",+'[1]EXT(T)'!AC106)","v":1170.8},{"$f":"IF(+'[1]EXT(T)'!AE106=\"\",\"\",+'[1]EXT(T)'!AE106)","v":2906.8125874428374},{"$f":"IF(+'[1]EXT(T)'!AF106=\"\",\"\",+'[1]EXT(T)'!AF106)","v":4077.6125874428371},{"$f":"IF(+'[1]EXT(T)'!AY106=\"\",\"\",+'[1]EXT(T)'!AY106)","v":4532.8600254343291},{"$f":"IF(+'[1]EXT(T)'!AZ106=\"\",\"\",+'[1]EXT(T)'!AZ106)","v":4646.6600254343293},{"$f":"IF(+'[1]EXT(T)'!AQ106=\"\",\"\",+'[1]EXT(T)'!AQ106)","v":142.3071721},{"$f":"IF(+'[1]EXT(T)'!AR106=\"\",\"\",+'[1]EXT(T)'!AR106)","v":967.93000000000006},{"$f":"IF(+'[1]EXT(T)'!AS106=\"\",\"\",+'[1]EXT(T)'!AS106)","v":1237.3618999999999},{"$f":"IF(+'[1]EXT(T)'!AT106=\"\",\"\",+'[1]EXT(T)'!AT106)","v":736.05155693000029},{"$f":"IF(+'[1]EXT(T)'!AU106=\"\",\"\",+'[1]EXT(T)'!AU106)","v":277.2},{"$f":"IF(+'[1]EXT(T)'!AV106=\"\",\"\",+'[1]EXT(T)'!AV106)","v":1172.009396404329},{"$f":"IF(+'[1]EXT(T)'!AW106=\"\",\"\",+'[1]EXT(T)'!AW106)","v":113.8},{"$f":"IF(OR(W99=\"\",X99=\"\",Y99=\"\",Z99=\"\",AA99=\"\",AB99=\"\"),\"\",W99+X99+Y99+Z99+AA99+AB99)","v":4532.8600254343291},4646.6600254343293]
[null,"II",{"$f":"IF(+'[1]EXT(T)'!M107=\"\",\"\",+'[1]EXT(T)'!M107)","v":540.25365326792121},{"$f":"IF(+'[1]EXT(T)'!N107=\"\",\"\",+'[1]EXT(T)'!N107)","v":-10.816041675270032},{"$f":"IF(+'[1]EXT(T)'!O107=\"\",\"\",+'[1]EXT(T)'!O107)","v":358.33228000000003},{"$f":"IF(+'[1]EXT(T)'!P107=\"\",\"\",+'[1]EXT(T)'!P107)","v":314.18288119827071},{"$f":"IF(+'[1]EXT(T)'!Q107=\"\",\"\",+'[1]EXT(T)'!Q107)","v":203.5},{"$f":"IF(+'[1]EXT(T)'!R107=\"\",\"\",+'[1]EXT(T)'!R107)","v":677.69999999999982},{"$f":"IF(+'[1]EXT(T)'!S107=\"\",\"\",+'[1]EXT(T)'!S107)","v":991.7},{"$f":"IF(+'[1]EXT(T)'!U107=\"\",\"\",+'[1]EXT(T)'!U107)","v":2083.1527727909215},{"$f":"IF(+'[1]EXT(T)'!V107=\"\",\"\",+'[1]EXT(T)'!V107)","v":3074.8527727909213},{"$f":"IF(+'[1]EXT(T)'!W107=\"\",\"\",+'[1]EXT(T)'!W107)","v":1423.6150069496696},{"$f":"IF(+'[1]EXT(T)'!X107=\"\",\"\",+'[1]EXT(T)'!X107)","v":13.931801451930003},{"$f":"IF(+'[1]EXT(T)'!Y107=\"\",\"\",+'[1]EXT(T)'!Y107)","v":744.83023000000003},{"$f":"IF(+'[1]EXT(T)'!Z107=\"\",\"\",+'[1]EXT(T)'!Z107)","v":1236.3883218321598},{"$f":"IF(+'[1]EXT(T)'!AA107=\"\",\"\",+'[1]EXT(T)'!AA107)","v":389},{"$f":"IF(+'[1]EXT(T)'!AB107=\"\",\"\",+'[1]EXT(T)'!AB107)","v":1182.1999999999998},{"$f":"IF(+'[1]EXT(T)'!AC107=\"\",\"\",+'[1]EXT(T)'!AC107)","v":2162.5},{"$f":"IF(+'[1]EXT(T)'!AE107=\"\",\"\",+'[1]EXT(T)'!AE107)","v":4989.9653602337585},{"$f":"IF(+'[1]EXT(T)'!AF107=\"\",\"\",+'[1]EXT(T)'!AF107)","v":7152.4653602337585},{"$f":"IF(+'[1]EXT(T)'!AY107=\"\",\"\",+'[1]EXT(T)'!AY107)","v":9596.3820320896484},{"$f":"IF(+'[1]EXT(T)'!AZ107=\"\",\"\",+'[1]EXT(T)'!AZ107)","v":9858.3820320896484},{"$f":"IF(+'[1]EXT(T)'!AQ107=\"\",\"\",+'[1]EXT(T)'!AQ107-'[1]EXT(T)'!AQ106)","v":137.67937979999999},{"$f":"IF(+'[1]EXT(T)'!AR107=\"\",\"\",+'[1]EXT(T)'!AR107-'[1]EXT(T)'!AR106)","v":1090.9799999999998},{"$f":"IF(+'[1]EXT(T)'!AS107=\"\",\"\",+'[1]EXT(T)'!AS107-'[1]EXT(T)'!AS106)","v":1466.5990000000002},{"$f":"IF(+'[1]EXT(T)'!AT107=\"\",\"\",+'[1]EXT(T)'!AT107-'[1]EXT(T)'!AT106)","v":911.51896292000038},{"$f":"IF(+'[1]EXT(T)'!AU107=\"\",\"\",+'[1]EXT(T)'!AU107-'[1]EXT(T)'!AU106)","v":277.99999999999994},{"$f":"IF(+'[1]EXT(T)'!AV107=\"\",\"\",+'[1]EXT(T)'!AV107-'[1]EXT(T)'!AV106)","v":1178.7446639353193},{"$f":"IF(+'[1]EXT(T)'!AW107=\"\",\"\",+'[1]EXT(T)'!AW107-'[1]EXT(T)'!AW106)","v":148.19999999999999},5063.5220066553193,5211.7220066553191]
[null,"III",{"$f":"IF(+'[1]EXT(T)'!M108=\"\",\"\",+'[1]EXT(T)'!M108)","v":687.69151992790819},{"$f":"IF(+'[1]EXT(T)'!N108=\"\",\"\",+'[1]EXT(T)'!N108)","v":126.85010329655992},{"$f":"IF(+'[1]EXT(T)'!O108=\"\",\"\",+'[1]EXT(T)'!O108)","v":352.96994999999998},{"$f":"IF(+'[1]EXT(T)'!P108=\"\",\"\",+'[1]EXT(T)'!P108)","v":-194.6829663148518},{"$f":"IF(+'[1]EXT(T)'!Q108=\"\",\"\",+'[1]EXT(T)'!Q108)","v":279.3},{"$f":"IF(+'[1]EXT(T)'!R108=\"\",\"\",+'[1]EXT(T)'!R108)","v":457.1},{"$f":"IF(+'[1]EXT(T)'!S108=\"\",\"\",+'[1]EXT(T)'!S108)","v":1074.7},{"$f":"IF(+'[1]EXT(T)'!U108=\"\",\"\",+'[1]EXT(T)'!U108)","v":1709.2286069096162},{"$f":"IF(+'[1]EXT(T)'!V108=\"\",\"\",+'[1]EXT(T)'!V108)","v":2783.9286069096161},{"$f":"IF(+'[1]EXT(T)'!W108=\"\",\"\",+'[1]EXT(T)'!W108)","v":2111.3065268775777},{"$f":"IF(+'[1]EXT(T)'!X108=\"\",\"\",+'[1]EXT(T)'!X108)","v":140.78190474848992},{"$f":"IF(+'[1]EXT(T)'!Y108=\"\",\"\",+'[1]EXT(T)'!Y108)","v":1097.80018},{"$f":"IF(+'[1]EXT(T)'!Z108=\"\",\"\",+'[1]EXT(T)'!Z108)","v":1041.7053555173079},{"$f":"IF(+'[1]EXT(T)'!AA108=\"\",\"\",+'[1]EXT(T)'!AA108)","v":668.3},{"$f":"IF(+'[1]EXT(T)'!AB108=\"\",\"\",+'[1]EXT(T)'!AB108)","v":1639.2999999999997},{"$f":"IF(+'[1]EXT(T)'!AC108=\"\",\"\",+'[1]EXT(T)'!AC108)","v":3237.2},{"$f":"IF(+'[1]EXT(T)'!AE108=\"\",\"\",+'[1]EXT(T)'!AE108)","v":6699.1939671433747},{"$f":"IF(+'[1]EXT(T)'!AF108=\"\",\"\",+'[1]EXT(T)'!AF108)","v":9936.3939671433745},{"$f":"IF(+'[1]EXT(T)'!AY108=\"\",\"\",+'[1]EXT(T)'!AY108)","v":14486.447433329651},{"$f":"IF(+'[1]EXT(T)'!AZ108=\"\",\"\",+'[1]EXT(T)'!AZ108)","v":14938.347433329651},{"$f":"IF(+'[1]EXT(T)'!AQ108=\"\",\"\",+'[1]EXT(T)'!AQ108-'[1]EXT(T)'!AQ107)","v":138.52207650000003},{"$f":"IF(+'[1]EXT(T)'!AR108=\"\",\"\",+'[1]EXT(T)'!AR108-'[1]EXT(T)'!AR107)","v":1020.8699999999999},{"$f":"IF(+'[1]EXT(T)'!AS108=\"\",\"\",+'[1]EXT(T)'!AS108-'[1]EXT(T)'!AS107)","v":1445.2991999999995},{"$f":"IF(+'[1]EXT(T)'!AT108=\"\",\"\",+'[1]EXT(T)'!AT108-'[1]EXT(T)'!AT107)","v":868.19563705000041},{"$f":"IF(+'[1]EXT(T)'!AU108=\"\",\"\",+'[1]EXT(T)'!AU108-'[1]EXT(T)'!AU107)","v":279.50000000000011},{"$f":"IF(+'[1]EXT(T)'!AV108=\"\",\"\",+'[1]EXT(T)'!AV108-'[1]EXT(T)'!AV107)","v":1137.6784876900015},{"$f":"IF(+'[1]EXT(T)'!AW108=\"\",\"\",+'[1]EXT(T)'!AW108-'[1]EXT(T)'!AW107)","v":189.89999999999998},4890.0654012400009,5079.9654012400006]
[null,"IV",{"$f":"IF(+'[1]EXT(T)'!M109=\"\",\"\",+'[1]EXT(T)'!M109)","v":815.33924265482528},{"$f":"IF(+'[1]EXT(T)'!N109=\"\",\"\",+'[1]EXT(T)'!N109)","v":165.55751455143985},{"$f":"IF(+'[1]EXT(T)'!O109=\"\",\"\",+'[1]EXT(T)'!O109)","v":344.55346999999995},{"$f":"IF(+'[1]EXT(T)'!P109=\"\",\"\",+'[1]EXT(T)'!P109)","v":375.69917842670992},{"$f":"IF(+'[1]EXT(T)'!Q109=\"\",\"\",+'[1]EXT(T)'!Q109)","v":408.5},{"$f":"IF(+'[1]EXT(T)'!R109=\"\",\"\",+'[1]EXT(T)'!R109)","v":569.19999999999982},{"$f":"IF(+'[1]EXT(T)'!S109=\"\",\"\",+'[1]EXT(T)'!S109)","v":1221.5},{"$f":"IF(+'[1]EXT(T)'!U109=\"\",\"\",+'[1]EXT(T)'!U109)","v":2678.8494056329746},{"$f":"IF(+'[1]EXT(T)'!V109=\"\",\"\",+'[1]EXT(T)'!V109)","v":3900.3494056329746},{"$f":"IF(+'[1]EXT(T)'!W109=\"\",\"\",+'[1]EXT(T)'!W109)","v":2926.6457695324029},{"$f":"IF(+'[1]EXT(T)'!X109=\"\",\"\",+'[1]EXT(T)'!X109)","v":306.33941929992977},{"$f":"IF(+'[1]EXT(T)'!Y109=\"\",\"\",+'[1]EXT(T)'!Y109)","v":1442.35365},{"$f":"IF(+'[1]EXT(T)'!Z109=\"\",\"\",+'[1]EXT(T)'!Z109)","v":1417.4045339440179},{"$f":"IF(+'[1]EXT(T)'!AA109=\"\",\"\",+'[1]EXT(T)'!AA109)","v":1076.8},{"$f":"IF(+'[1]EXT(T)'!AB109=\"\",\"\",+'[1]EXT(T)'!AB109)","v":2208.4999999999995},{"$f":"IF(+'[1]EXT(T)'!AC109=\"\",\"\",+'[1]EXT(T)'!AC109)","v":4458.7},{"$f":"IF(+'[1]EXT(T)'!AE109=\"\",\"\",+'[1]EXT(T)'!AE109)","v":9378.0433727763484},{"$f":"IF(+'[1]EXT(T)'!AF109=\"\",\"\",+'[1]EXT(T)'!AF109)","v":13836.743372776349},{"$f":"IF(+'[1]EXT(T)'!AY109=\"\",\"\",+'[1]EXT(T)'!AY109)","v":19385.990982789648},{"$f":"IF(+'[1]EXT(T)'!AZ109=\"\",\"\",+'[1]EXT(T)'!AZ109)","v":20037.89098278965},{"$f":"IF(+'[1]EXT(T)'!AQ109=\"\",\"\",+'[1]EXT(T)'!AQ109-'[1]EXT(T)'!AQ108)","v":139.996756},{"$f":"IF(+'[1]EXT(T)'!AR109=\"\",\"\",+'[1]EXT(T)'!AR109-'[1]EXT(T)'!AR108)","v":1059.3900000000003},{"$f":"IF(+'[1]EXT(T)'!AS109=\"\",\"\",+'[1]EXT(T)'!AS109-'[1]EXT(T)'!AS108)","v":1394.8374999999996},{"$f":"IF(+'[1]EXT(T)'!AT109=\"\",\"\",+'[1]EXT(T)'!AT109-'[1]EXT(T)'!AT108)","v":921.33069462000003},{"$f":"IF(+'[1]EXT(T)'!AU109=\"\",\"\",+'[1]EXT(T)'!AU109-'[1]EXT(T)'!AU108)","v":301.09999999999991},{"$f":"IF(+'[1]EXT(T)'!AV109=\"\",\"\",+'[1]EXT(T)'!AV109-'[1]EXT(T)'!AV108)","v":1082.8885988400002},{"$f":"IF(+'[1]EXT(T)'!AW109=\"\",\"\",+'[1]EXT(T)'!AW109-'[1]EXT(T)'!AW108)","v":200},4899.5435494600006,5099.5435494600006]
[2015,"I",{"$f":"IF(+'[1]EXT(T)'!M110=\"\",\"\",+'[1]EXT(T)'!M110)","v":731.43639103016108},{"$f":"IF(+'[1]EXT(T)'!N110=\"\",\"\",+'[1]EXT(T)'!N110)","v":17.825847949000057},{"$f":"IF(+'[1]EXT(T)'!O110=\"\",\"\",+'[1]EXT(T)'!O110)","v":307.89872000000003},{"$f":"IF(+'[1]EXT(T)'!P110=\"\",\"\",+'[1]EXT(T)'!P110)","v":317.12993525301005},{"$f":"IF(+'[1]EXT(T)'!Q110=\"\",\"\",+'[1]EXT(T)'!Q110)","v":227.09999999999997},{"$f":"IF(+'[1]EXT(T)'!R110=\"\",\"\",+'[1]EXT(T)'!R110)","v":442.9},{"$f":"IF(+'[1]EXT(T)'!S110=\"\",\"\",+'[1]EXT(T)'!S110)","v":1231.8000000000002},{"$f":"IF(+'[1]EXT(T)'!U110=\"\",\"\",+'[1]EXT(T)'!U110)","v":2044.290894232171},{"$f":"IF(+'[1]EXT(T)'!V110=\"\",\"\",+'[1]EXT(T)'!V110)","v":3276.0908942321712},{"$f":"IF(+'[1]EXT(T)'!W110=\"\",\"\",+'[1]EXT(T)'!W110)","v":731.43639103016108},{"$f":"IF(+'[1]EXT(T)'!X110=\"\",\"\",+'[1]EXT(T)'!X110)","v":17.825847949000057},{"$f":"IF(+'[1]EXT(T)'!Y110=\"\",\"\",+'[1]EXT(T)'!Y110)","v":307.89872000000003},{"$f":"IF(+'[1]EXT(T)'!Z110=\"\",\"\",+'[1]EXT(T)'!Z110)","v":317.12993525301005},{"$f":"IF(+'[1]EXT(T)'!AA110=\"\",\"\",+'[1]EXT(T)'!AA110)","v":227.09999999999997},{"$f":"IF(+'[1]EXT(T)'!AB110=\"\",\"\",+'[1]EXT(T)'!AB110)","v":442.9},{"$f":"IF(+'[1]EXT(T)'!AC110=\"\",\"\",+'[1]EXT(T)'!AC110)","v":1231.8000000000002},{"$f":"IF(+'[1]EXT(T)'!AE110=\"\",\"\",+'[1]EXT(T)'!AE110)","v":2044.290894232171},{"$f":"IF(+'[1]EXT(T)'!AF110=\"\",\"\",+'[1]EXT(T)'!AF110)","v":3276.0908942321712},{"$f":"IF(+'[1]EXT(T)'!AY110=\"\",\"\",+'[1]EXT(T)'!AY110)","v":4841.908686699916},{"$f":"IF(+'[1]EXT(T)'!AZ110=\"\",\"\",+'[1]EXT(T)'!AZ110)","v":4949.7086866999161},{"$f":"IF(+'[1]EXT(T)'!AQ110=\"\",\"\",+'[1]EXT(T)'!AQ110)","v":120.38707943},{"$f":"IF(+'[1]EXT(T)'!AR110=\"\",\"\",+'[1]EXT(T)'!AR110)","v":980.83},{"$f":"IF(+'[1]EXT(T)'!AS110=\"\",\"\",+'[1]EXT(T)'!AS110)","v":1395.8903422000001},{"$f":"IF(+'[1]EXT(T)'!AT110=\"\",\"\",+'[1]EXT(T)'!AT110)","v":855.52044485000033},{"$f":"IF(+'[1]EXT(T)'!AU110=\"\",\"\",+'[1]EXT(T)'!AU110)","v":289.2},{"$f":"IF(+'[1]EXT(T)'!AV110=\"\",\"\",+'[1]EXT(T)'!AV110)","v":1200.0808202199153},{"$f":"IF(+'[1]EXT(T)'!AW110=\"\",\"\",+'[1]EXT(T)'!AW110)","v":107.8},{"$f":"IF(OR(W103=\"\",X103=\"\",Y103=\"\",Z103=\"\",AA103=\"\",AB103=\"\"),\"\",W103+X103+Y103+Z103+AA103+AB103)","v":4841.908686699916},4949.7086866999161]
[null,"II",{"$f":"IF(+'[1]EXT(T)'!M111=\"\",\"\",+'[1]EXT(T)'!M111)","v":639.16308711595218},{"$f":"IF(+'[1]EXT(T)'!N111=\"\",\"\",+'[1]EXT(T)'!N111)","v":113.77780540599994},{"$f":"IF(+'[1]EXT(T)'!O111=\"\",\"\",+'[1]EXT(T)'!O111)","v":213.69257000000002},{"$f":"IF(+'[1]EXT(T)'!P111=\"\",\"\",+'[1]EXT(T)'!P111)","v":229.66320250988326},{"$f":"IF(+'[1]EXT(T)'!Q111=\"\",\"\",+'[1]EXT(T)'!Q111)","v":222.7},{"$f":"IF(+'[1]EXT(T)'!R111=\"\",\"\",+'[1]EXT(T)'!R111)","v":695.50000000000011},{"$f":"IF(+'[1]EXT(T)'!S111=\"\",\"\",+'[1]EXT(T)'!S111)","v":1333.6},{"$f":"IF(+'[1]EXT(T)'!U111=\"\",\"\",+'[1]EXT(T)'!U111)","v":2114.4966650318356},{"$f":"IF(+'[1]EXT(T)'!V111=\"\",\"\",+'[1]EXT(T)'!V111)","v":3448.0966650318355},{"$f":"IF(+'[1]EXT(T)'!W111=\"\",\"\",+'[1]EXT(T)'!W111)","v":1370.5994781461131},{"$f":"IF(+'[1]EXT(T)'!X111=\"\",\"\",+'[1]EXT(T)'!X111)","v":131.60365335500001},{"$f":"IF(+'[1]EXT(T)'!Y111=\"\",\"\",+'[1]EXT(T)'!Y111)","v":521.59129000000007},{"$f":"IF(+'[1]EXT(T)'!Z111=\"\",\"\",+'[1]EXT(T)'!Z111)","v":546.79313776289337},{"$f":"IF(+'[1]EXT(T)'!AA111=\"\",\"\",+'[1]EXT(T)'!AA111)","v":449.79999999999995},{"$f":"IF(+'[1]EXT(T)'!AB111=\"\",\"\",+'[1]EXT(T)'!AB111)","v":1138.4000000000001},{"$f":"IF(+'[1]EXT(T)'!AC111=\"\",\"\",+'[1]EXT(T)'!AC111)","v":2565.4},{"$f":"IF(+'[1]EXT(T)'!AE111=\"\",\"\",+'[1]EXT(T)'!AE111)","v":4158.7875592640066},{"$f":"IF(+'[1]EXT(T)'!AF111=\"\",\"\",+'[1]EXT(T)'!AF111)","v":6724.1875592640063},{"$f":"IF(+'[1]EXT(T)'!AY111=\"\",\"\",+'[1]EXT(T)'!AY111)","v":10150.543213001125},{"$f":"IF(+'[1]EXT(T)'!AZ111=\"\",\"\",+'[1]EXT(T)'!AZ111)","v":10373.743213001126},{"$f":"IF(+'[1]EXT(T)'!AQ111=\"\",\"\",+'[1]EXT(T)'!AQ111-'[1]EXT(T)'!AQ110)","v":129.16809891},{"$f":"IF(+'[1]EXT(T)'!AR111=\"\",\"\",+'[1]EXT(T)'!AR111-'[1]EXT(T)'!AR110)","v":1099.94},{"$f":"IF(+'[1]EXT(T)'!AS111=\"\",\"\",+'[1]EXT(T)'!AS111-'[1]EXT(T)'!AS110)","v":1559.1044000000004},{"$f":"IF(+'[1]EXT(T)'!AT111=\"\",\"\",+'[1]EXT(T)'!AT111-'[1]EXT(T)'!AT110)","v":955.74376939000012},{"$f":"IF(+'[1]EXT(T)'!AU111=\"\",\"\",+'[1]EXT(T)'!AU111-'[1]EXT(T)'!AU110)","v":292.40000000000003},{"$f":"IF(+'[1]EXT(T)'!AV111=\"\",\"\",+'[1]EXT(T)'!AV111-'[1]EXT(T)'!AV110)","v":1272.2782580012079},{"$f":"IF(+'[1]EXT(T)'!AW111=\"\",\"\",+'[1]EXT(T)'!AW111-'[1]EXT(T)'!AW110)","v":115.39999999999999},5308.6345263012081,5424.0345263012077]
[null,"III",{"$f":"IF(+'[1]EXT(T)'!M112=\"\",\"\",+'[1]EXT(T)'!M112)","v":647.33808828210783},{"$f":"IF(+'[1]EXT(T)'!N112=\"\",\"\",+'[1]EXT(T)'!N112)","v":126.09946136900001},{"$f":"IF(+'[1]EXT(T)'!O112=\"\",\"\",+'[1]EXT(T)'!O112)","v":264.93295000000001},{"$f":"IF(+'[1]EXT(T)'!P112=\"\",\"\",+'[1]EXT(T)'!P112)","v":293.64401185537554},{"$f":"IF(+'[1]EXT(T)'!Q112=\"\",\"\",+'[1]EXT(T)'!Q112)","v":230.60000000000002},{"$f":"IF(+'[1]EXT(T)'!R112=\"\",\"\",+'[1]EXT(T)'!R112)","v":648.99999999999977},{"$f":"IF(+'[1]EXT(T)'!S112=\"\",\"\",+'[1]EXT(T)'!S112)","v":1089.3},{"$f":"IF(+'[1]EXT(T)'!U112=\"\",\"\",+'[1]EXT(T)'!U112)","v":2211.6145115064828},{"$f":"IF(+'[1]EXT(T)'!V112=\"\",\"\",+'[1]EXT(T)'!V112)","v":3300.914511506483},{"$f":"IF(+'[1]EXT(T)'!W112=\"\",\"\",+'[1]EXT(T)'!W112)","v":2017.9375664282211},{"$f":"IF(+'[1]EXT(T)'!X112=\"\",\"\",+'[1]EXT(T)'!X112)","v":257.70311472399999},{"$f":"IF(+'[1]EXT(T)'!Y112=\"\",\"\",+'[1]EXT(T)'!Y112)","v":786.52424000000008},{"$f":"IF(+'[1]EXT(T)'!Z112=\"\",\"\",+'[1]EXT(T)'!Z112)","v":840.4371496182689},{"$f":"IF(+'[1]EXT(T)'!AA112=\"\",\"\",+'[1]EXT(T)'!AA112)","v":680.4},{"$f":"IF(+'[1]EXT(T)'!AB112=\"\",\"\",+'[1]EXT(T)'!AB112)","v":1787.3999999999999},{"$f":"IF(+'[1]EXT(T)'!AC112=\"\",\"\",+'[1]EXT(T)'!AC112)","v":3654.7},{"$f":"IF(+'[1]EXT(T)'!AE112=\"\",\"\",+'[1]EXT(T)'!AE112)","v":6370.4020707704894},{"$f":"IF(+'[1]EXT(T)'!AF112=\"\",\"\",+'[1]EXT(T)'!AF112)","v":10025.102070770488},{"$f":"IF(+'[1]EXT(T)'!AY112=\"\",\"\",+'[1]EXT(T)'!AY112)","v":15495.075798931057},{"$f":"IF(+'[1]EXT(T)'!AZ112=\"\",\"\",+'[1]EXT(T)'!AZ112)","v":15839.075798931057},{"$f":"IF(+'[1]EXT(T)'!AQ112=\"\",\"\",+'[1]EXT(T)'!AQ112-'[1]EXT(T)'!AQ111)","v":131.50105795000002},{"$f":"IF(+'[1]EXT(T)'!AR112=\"\",\"\",+'[1]EXT(T)'!AR112-'[1]EXT(T)'!AR111)","v":1055.7900000000004},{"$f":"IF(+'[1]EXT(T)'!AS112=\"\",\"\",+'[1]EXT(T)'!AS112-'[1]EXT(T)'!AS111)","v":1639.4076999999997},{"$f":"IF(+'[1]EXT(T)'!AT112=\"\",\"\",+'[1]EXT(T)'!AT112-'[1]EXT(T)'!AT111)","v":963.23550287000035},{"$f":"IF(+'[1]EXT(T)'!AU112=\"\",\"\",+'[1]EXT(T)'!AU112-'[1]EXT(T)'!AU111)","v":292.90000000000009},{"$f":"IF(+'[1]EXT(T)'!AV112=\"\",\"\",+'[1]EXT(T)'!AV112-'[1]EXT(T)'!AV111)","v":1261.6983251099318},{"$f":"IF(+'[1]EXT(T)'!AW112=\"\",\"\",+'[1]EXT(T)'!AW112-'[1]EXT(T)'!AW111)","v":120.80000000000001},5344.5325859299319,5465.3325859299321]
[null,"IV",{"$f":"IF(+'[1]EXT(T)'!M113=\"\",\"\",+'[1]EXT(T)'!M113)","v":733.94091497156751},{"$f":"IF(+'[1]EXT(T)'!N113=\"\",\"\",+'[1]EXT(T)'!N113)","v":140.61117111829813},{"$f":"IF(+'[1]EXT(T)'!O113=\"\",\"\",+'[1]EXT(T)'!O113)","v":444.37046999999995},{"$f":"IF(+'[1]EXT(T)'!P113=\"\",\"\",+'[1]EXT(T)'!P113)","v":363.07470494648589},{"$f":"IF(+'[1]EXT(T)'!Q113=\"\",\"\",+'[1]EXT(T)'!Q113)","v":286.60000000000002},{"$f":"IF(+'[1]EXT(T)'!R113=\"\",\"\",+'[1]EXT(T)'!R113)","v":417.50000000000006},{"$f":"IF(+'[1]EXT(T)'!S113=\"\",\"\",+'[1]EXT(T)'!S113)","v":901.10000000000014},{"$f":"IF(+'[1]EXT(T)'!U113=\"\",\"\",+'[1]EXT(T)'!U113)","v":2386.0972610363515},{"$f":"IF(+'[1]EXT(T)'!V113=\"\",\"\",+'[1]EXT(T)'!V113)","v":3287.1972610363518},{"$f":"IF(+'[1]EXT(T)'!W113=\"\",\"\",+'[1]EXT(T)'!W113)","v":2751.8784813997886},{"$f":"IF(+'[1]EXT(T)'!X113=\"\",\"\",+'[1]EXT(T)'!X113)","v":398.31428584229809},{"$f":"IF(+'[1]EXT(T)'!Y113=\"\",\"\",+'[1]EXT(T)'!Y113)","v":1230.89471},{"$f":"IF(+'[1]EXT(T)'!Z113=\"\",\"\",+'[1]EXT(T)'!Z113)","v":1203.5118545647547},{"$f":"IF(+'[1]EXT(T)'!AA113=\"\",\"\",+'[1]EXT(T)'!AA113)","v":967},{"$f":"IF(+'[1]EXT(T)'!AB113=\"\",\"\",+'[1]EXT(T)'!AB113)","v":2204.9},{"$f":"IF(+'[1]EXT(T)'!AC113=\"\",\"\",+'[1]EXT(T)'!AC113)","v":4555.8},{"$f":"IF(+'[1]EXT(T)'!AE113=\"\",\"\",+'[1]EXT(T)'!AE113)","v":8756.4993318068409},{"$f":"IF(+'[1]EXT(T)'!AF113=\"\",\"\",+'[1]EXT(T)'!AF113)","v":13312.29933180684},{"$f":"IF(+'[1]EXT(T)'!AY113=\"\",\"\",+'[1]EXT(T)'!AY113)","v":20939.883254297314},{"$f":"IF(+'[1]EXT(T)'!AZ113=\"\",\"\",+'[1]EXT(T)'!AZ113)","v":21412.583254297315},{"$f":"IF(+'[1]EXT(T)'!AQ113=\"\",\"\",+'[1]EXT(T)'!AQ113-'[1]EXT(T)'!AQ112)","v":136.44827134000002},{"$f":"IF(+'[1]EXT(T)'!AR113=\"\",\"\",+'[1]EXT(T)'!AR113-'[1]EXT(T)'!AR112)","v":1120.0100000000002},{"$f":"IF(+'[1]EXT(T)'!AS113=\"\",\"\",+'[1]EXT(T)'!AS113-'[1]EXT(T)'!AS112)","v":1690.5753999999997},{"$f":"IF(+'[1]EXT(T)'!AT113=\"\",\"\",+'[1]EXT(T)'!AT113-'[1]EXT(T)'!AT112)","v":952.17695929000047},{"$f":"IF(+'[1]EXT(T)'!AU113=\"\",\"\",+'[1]EXT(T)'!AU113-'[1]EXT(T)'!AU112)","v":318.89999999999998},{"$f":"IF(+'[1]EXT(T)'!AV113=\"\",\"\",+'[1]EXT(T)'!AV113-'[1]EXT(T)'!AV112)","v":1226.6968247362593},{"$f":"IF(+'[1]EXT(T)'!AW113=\"\",\"\",+'[1]EXT(T)'!AW113-'[1]EXT(T)'!AW112)","v":128.69999999999999},5444.80745536626,{"$f":"IF(OR(X106=\"\",Y106=\"\",Z106=\"\",AA106=\"\",AB106=\"\",AC106=\"\",W106=\"\"),\"\",X106+W106+Y106+Z106+AA106+AB106+AC106)","v":5573.5074553662598}]
[2016,"I",{"$f":"IF(+'[1]EXT(T)'!M114=\"\",\"\",+'[1]EXT(T)'!M114)","v":516.13585379775668},{"$f":"IF(+'[1]EXT(T)'!N114=\"\",\"\",+'[1]EXT(T)'!N114)","v":128.04810531099983},{"$f":"IF(+'[1]EXT(T)'!O114=\"\",\"\",+'[1]EXT(T)'!O114)","v":270.44161000000003},{"$f":"IF(+'[1]EXT(T)'!P114=\"\",\"\",+'[1]EXT(T)'!P114)","v":314.47139430549578},{"$f":"IF(+'[1]EXT(T)'!Q114=\"\",\"\",+'[1]EXT(T)'!Q114)","v":283.10000000000002},{"$f":"IF(+'[1]EXT(T)'!R114=\"\",\"\",+'[1]EXT(T)'!R114)","v":157.60000000000008},{"$f":"IF(+'[1]EXT(T)'!S114=\"\",\"\",+'[1]EXT(T)'!S114)","v":1275.1678370899999},{"$f":"IF(+'[1]EXT(T)'!U114=\"\",\"\",+'[1]EXT(T)'!U114)","v":1669.7969634142526},{"$f":"IF(+'[1]EXT(T)'!V114=\"\",\"\",+'[1]EXT(T)'!V114)","v":2944.9648005042527},{"$f":"IF(+'[1]EXT(T)'!W114=\"\",\"\",+'[1]EXT(T)'!W114)","v":516.13585379775668},{"$f":"IF(+'[1]EXT(T)'!X114=\"\",\"\",+'[1]EXT(T)'!X114)","v":128.04810531099983},{"$f":"IF(+'[1]EXT(T)'!Y114=\"\",\"\",+'[1]EXT(T)'!Y114)","v":270.44161000000003},{"$f":"IF(+'[1]EXT(T)'!Z114=\"\",\"\",+'[1]EXT(T)'!Z114)","v":314.47139430549578},{"$f":"IF(+'[1]EXT(T)'!AA114=\"\",\"\",+'[1]EXT(T)'!AA114)","v":283.10000000000002},{"$f":"IF(+'[1]EXT(T)'!AB114=\"\",\"\",+'[1]EXT(T)'!AB114)","v":157.60000000000008},{"$f":"IF(+'[1]EXT(T)'!AC114=\"\",\"\",+'[1]EXT(T)'!AC114)","v":1275.1678370899999},{"$f":"IF(+'[1]EXT(T)'!AE114=\"\",\"\",+'[1]EXT(T)'!AE114)","v":1669.7969634142526},{"$f":"IF(+'[1]EXT(T)'!AF114=\"\",\"\",+'[1]EXT(T)'!AF114)","v":2944.9648005042527},{"$f":"IF(+'[1]EXT(T)'!AY114=\"\",\"\",+'[1]EXT(T)'!AY114)","v":5325.2413836345213},{"$f":"IF(+'[1]EXT(T)'!AZ114=\"\",\"\",+'[1]EXT(T)'!AZ114)","v":5426.6413836345209},{"$f":"IF(+'[1]EXT(T)'!AQ114=\"\",\"\",+'[1]EXT(T)'!AQ114)","v":118.83448905},{"$f":"IF(+'[1]EXT(T)'!AR114=\"\",\"\",+'[1]EXT(T)'!AR114)","v":1038.48},{"$f":"IF(+'[1]EXT(T)'!AS114=\"\",\"\",+'[1]EXT(T)'!AS114)","v":1662.9848},{"$f":"IF(+'[1]EXT(T)'!AT114=\"\",\"\",+'[1]EXT(T)'!AT114)","v":913.30912053000031},{"$f":"IF(+'[1]EXT(T)'!AU114=\"\",\"\",+'[1]EXT(T)'!AU114)","v":302.3},{"$f":"IF(+'[1]EXT(T)'!AV114=\"\",\"\",+'[1]EXT(T)'!AV114)","v":1289.3329740545207},{"$f":"IF(+'[1]EXT(T)'!AW114=\"\",\"\",+'[1]EXT(T)'!AW114)","v":101.4},{"$f":"IF(OR(W107=\"\",X107=\"\",Y107=\"\",Z107=\"\",AA107=\"\",AB107=\"\"),\"\",W107+X107+Y107+Z107+AA107+AB107)","v":5325.2413836345213},{"$f":"IF(OR(X107=\"\",Y107=\"\",Z107=\"\",AA107=\"\",AB107=\"\",AC107=\"\",W107=\"\"),\"\",X107+W107+Y107+Z107+AA107+AB107+AC107)","v":5426.6413836345209}]
[null,"II",{"$f":"IF(+'[1]EXT(T)'!M115=\"\",\"\",+'[1]EXT(T)'!M115)","v":571.6751935094187},{"$f":"IF(+'[1]EXT(T)'!N115=\"\",\"\",+'[1]EXT(T)'!N115)","v":20.604632342999849},{"$f":"IF(+'[1]EXT(T)'!O115=\"\",\"\",+'[1]EXT(T)'!O115)","v":341.21114999999998},{"$f":"IF(+'[1]EXT(T)'!P115=\"\",\"\",+'[1]EXT(T)'!P115)","v":246.27218045748299},{"$f":"IF(+'[1]EXT(T)'!Q115=\"\",\"\",+'[1]EXT(T)'!Q115)","v":345},{"$f":"IF(+'[1]EXT(T)'!R115=\"\",\"\",+'[1]EXT(T)'!R115)","v":869.2},{"$f":"IF(+'[1]EXT(T)'!S115=\"\",\"\",+'[1]EXT(T)'!S115)","v":1351.5417986699999},{"$f":"IF(+'[1]EXT(T)'!U115=\"\",\"\",+'[1]EXT(T)'!U115)","v":2393.9631563099015},{"$f":"IF(+'[1]EXT(T)'!V115=\"\",\"\",+'[1]EXT(T)'!V115)","v":3745.5049549799014},{"$f":"IF(+'[1]EXT(T)'!W115=\"\",\"\",+'[1]EXT(T)'!W115)","v":1087.8110473071754},{"$f":"IF(+'[1]EXT(T)'!X115=\"\",\"\",+'[1]EXT(T)'!X115)","v":148.65273765399968},{"$f":"IF(+'[1]EXT(T)'!Y115=\"\",\"\",+'[1]EXT(T)'!Y115)","v":611.65275999999994},{"$f":"IF(+'[1]EXT(T)'!Z115=\"\",\"\",+'[1]EXT(T)'!Z115)","v":560.74357476297882},{"$f":"IF(+'[1]EXT(T)'!AA115=\"\",\"\",+'[1]EXT(T)'!AA115)","v":628.1},{"$f":"IF(+'[1]EXT(T)'!AB115=\"\",\"\",+'[1]EXT(T)'!AB115)","v":1026.8000000000002},{"$f":"IF(+'[1]EXT(T)'!AC115=\"\",\"\",+'[1]EXT(T)'!AC115)","v":2626.7096357599999},{"$f":"IF(+'[1]EXT(T)'!AE115=\"\",\"\",+'[1]EXT(T)'!AE115)","v":4063.7601197241538},{"$f":"IF(+'[1]EXT(T)'!AF115=\"\",\"\",+'[1]EXT(T)'!AF115)","v":6690.4697554841541},{"$f":"IF(+'[1]EXT(T)'!AY115=\"\",\"\",+'[1]EXT(T)'!AY115)","v":11090.190816688204},{"$f":"IF(+'[1]EXT(T)'!AZ115=\"\",\"\",+'[1]EXT(T)'!AZ115)","v":11295.790816688204},{"$f":"IF(+'[1]EXT(T)'!AQ115=\"\",\"\",+'[1]EXT(T)'!AQ115-'[1]EXT(T)'!AQ114)","v":129.78073734},{"$f":"IF(+'[1]EXT(T)'!AR115=\"\",\"\",+'[1]EXT(T)'!AR115-'[1]EXT(T)'!AR114)","v":1167.1300000000001},{"$f":"IF(+'[1]EXT(T)'!AS115=\"\",\"\",+'[1]EXT(T)'!AS115-'[1]EXT(T)'!AS114)","v":1849.2740999999999},{"$f":"IF(+'[1]EXT(T)'!AT115=\"\",\"\",+'[1]EXT(T)'!AT115-'[1]EXT(T)'!AT114)","v":1011.5852947400002},{"$f":"IF(+'[1]EXT(T)'!AU115=\"\",\"\",+'[1]EXT(T)'!AU115-'[1]EXT(T)'!AU114)","v":306.40000000000003},{"$f":"IF(+'[1]EXT(T)'!AV115=\"\",\"\",+'[1]EXT(T)'!AV115-'[1]EXT(T)'!AV114)","v":1300.7793009736818},{"$f":"IF(+'[1]EXT(T)'!AW115=\"\",\"\",+'[1]EXT(T)'!AW115-'[1]EXT(T)'!AW114)","v":104.20000000000002},{"$f":"IF(OR(W108=\"\",X108=\"\",Y108=\"\",Z108=\"\",AA108=\"\",AB108=\"\"),\"\",W108+X108+Y108+Z108+AA108+AB108)","v":5764.9494330536809},5869.1494330536807]
[null,"III",{"$f":"IF(+'[1]EXT(T)'!M116=\"\",\"\",+'[1]EXT(T)'!M116)","v":429.8027601007588},{"$f":"IF(+'[1]EXT(T)'!N116=\"\",\"\",+'[1]EXT(T)'!N116)","v":265.07310696915579},{"$f":"IF(+'[1]EXT(T)'!O116=\"\",\"\",+'[1]EXT(T)'!O116)","v":299.88634999999999},{"$f":"IF(+'[1]EXT(T)'!P116=\"\",\"\",+'[1]EXT(T)'!P116)","v":169.41579960119591},{"$f":"IF(+'[1]EXT(T)'!Q116=\"\",\"\",+'[1]EXT(T)'!Q116)","v":280},{"$f":"IF(+'[1]EXT(T)'!R116=\"\",\"\",+'[1]EXT(T)'!R116)","v":667.60000000000014},{"$f":"IF(+'[1]EXT(T)'!S116=\"\",\"\",+'[1]EXT(T)'!S116)","v":1392.01408064},{"$f":"IF(+'[1]EXT(T)'!U116=\"\",\"\",+'[1]EXT(T)'!U116)","v":2111.7780166711109},{"$f":"IF(+'[1]EXT(T)'!V116=\"\",\"\",+'[1]EXT(T)'!V116)","v":3503.7920973111109},{"$f":"IF(+'[1]EXT(T)'!W116=\"\",\"\",+'[1]EXT(T)'!W116)","v":1517.6138074079342},{"$f":"IF(+'[1]EXT(T)'!X116=\"\",\"\",+'[1]EXT(T)'!X116)","v":413.72584462315547},{"$f":"IF(+'[1]EXT(T)'!Y116=\"\",\"\",+'[1]EXT(T)'!Y116)","v":911.53910999999994},{"$f":"IF(+'[1]EXT(T)'!Z116=\"\",\"\",+'[1]EXT(T)'!Z116)","v":730.15937436417471},{"$f":"IF(+'[1]EXT(T)'!AA116=\"\",\"\",+'[1]EXT(T)'!AA116)","v":908.1},{"$f":"IF(+'[1]EXT(T)'!AB116=\"\",\"\",+'[1]EXT(T)'!AB116)","v":1694.4000000000003},{"$f":"IF(+'[1]EXT(T)'!AC116=\"\",\"\",+'[1]EXT(T)'!AC116)","v":4018.7237163999998},{"$f":"IF(+'[1]EXT(T)'!AE116=\"\",\"\",+'[1]EXT(T)'!AE116)","v":6175.5381363952647},{"$f":"IF(+'[1]EXT(T)'!AF116=\"\",\"\",+'[1]EXT(T)'!AF116)","v":10194.261852795265},{"$f":"IF(+'[1]EXT(T)'!AY116=\"\",\"\",+'[1]EXT(T)'!AY116)","v":16728.773070796502},{"$f":"IF(+'[1]EXT(T)'!AZ116=\"\",\"\",+'[1]EXT(T)'!AZ116)","v":17040.373070796501},{"$f":"IF(+'[1]EXT(T)'!AQ116=\"\",\"\",+'[1]EXT(T)'!AQ116-'[1]EXT(T)'!AQ115)","v":133.19531875000004},{"$f":"IF(+'[1]EXT(T)'!AR116=\"\",\"\",+'[1]EXT(T)'!AR116-'[1]EXT(T)'!AR115)","v":1109.4299999999998},{"$f":"IF(+'[1]EXT(T)'!AS116=\"\",\"\",+'[1]EXT(T)'!AS116-'[1]EXT(T)'!AS115)","v":1763.0153},{"$f":"IF(+'[1]EXT(T)'!AT116=\"\",\"\",+'[1]EXT(T)'!AT116-'[1]EXT(T)'!AT115)","v":1002.1497073500004},{"$f":"IF(+'[1]EXT(T)'!AU116=\"\",\"\",+'[1]EXT(T)'!AU116-'[1]EXT(T)'!AU115)","v":312.89999999999998},{"$f":"IF(+'[1]EXT(T)'!AV116=\"\",\"\",+'[1]EXT(T)'!AV116-'[1]EXT(T)'!AV115)","v":1317.8919280082996},{"$f":"IF(+'[1]EXT(T)'!AW116=\"\",\"\",+'[1]EXT(T)'!AW116-'[1]EXT(T)'!AW115)","v":106},5638.5822541082998,5744.5822541082998]
[null,"IV",{"$f":"IF(+'[1]EXT(T)'!M117=\"\",\"\",+'[1]EXT(T)'!M117)","v":686.3345732151713},{"$f":"IF(+'[1]EXT(T)'!N117=\"\",\"\",+'[1]EXT(T)'!N117)","v":-68.671623869334397},{"$f":"IF(+'[1]EXT(T)'!O117=\"\",\"\",+'[1]EXT(T)'!O117)","v":262.83296000000001},{"$f":"IF(+'[1]EXT(T)'!P117=\"\",\"\",+'[1]EXT(T)'!P117)","v":409.197273918029},{"$f":"IF(+'[1]EXT(T)'!Q117=\"\",\"\",+'[1]EXT(T)'!Q117)","v":81},{"$f":"IF(+'[1]EXT(T)'!R117=\"\",\"\",+'[1]EXT(T)'!R117)","v":712.3},{"$f":"IF(+'[1]EXT(T)'!S117=\"\",\"\",+'[1]EXT(T)'!S117)","v":726.69883381},{"$f":"IF(+'[1]EXT(T)'!U117=\"\",\"\",+'[1]EXT(T)'!U117)","v":2082.9931832638658},{"$f":"IF(+'[1]EXT(T)'!V117=\"\",\"\",+'[1]EXT(T)'!V117)","v":2809.6920170738658},{"$f":"IF(+'[1]EXT(T)'!W117=\"\",\"\",+'[1]EXT(T)'!W117)","v":2203.9483806231055},{"$f":"IF(+'[1]EXT(T)'!X117=\"\",\"\",+'[1]EXT(T)'!X117)","v":345.05422075382108},{"$f":"IF(+'[1]EXT(T)'!Y117=\"\",\"\",+'[1]EXT(T)'!Y117)","v":1174.3720699999999},{"$f":"IF(+'[1]EXT(T)'!Z117=\"\",\"\",+'[1]EXT(T)'!Z117)","v":1139.3566482822037},{"$f":"IF(+'[1]EXT(T)'!AA117=\"\",\"\",+'[1]EXT(T)'!AA117)","v":989.1},{"$f":"IF(+'[1]EXT(T)'!AB117=\"\",\"\",+'[1]EXT(T)'!AB117)","v":2406.7000000000003},{"$f":"IF(+'[1]EXT(T)'!AC117=\"\",\"\",+'[1]EXT(T)'!AC117)","v":4745.4225502099998},{"$f":"IF(+'[1]EXT(T)'!AE117=\"\",\"\",+'[1]EXT(T)'!AE117)","v":8258.5313196591305},{"$f":"IF(+'[1]EXT(T)'!AF117=\"\",\"\",+'[1]EXT(T)'!AF117)","v":13003.953869869132},{"$f":"IF(+'[1]EXT(T)'!AY117=\"\",\"\",+'[1]EXT(T)'!AY117)","v":22692.590534253191},{"$f":"IF(+'[1]EXT(T)'!AZ117=\"\",\"\",+'[1]EXT(T)'!AZ117)","v":23118.69053425319},{"$f":"IF(+'[1]EXT(T)'!AQ117=\"\",\"\",+'[1]EXT(T)'!AQ117-'[1]EXT(T)'!AQ116)","v":132.98522796999998},{"$f":"IF(+'[1]EXT(T)'!AR117=\"\",\"\",+'[1]EXT(T)'!AR117-'[1]EXT(T)'!AR116)","v":1228.8099999999995},{"$f":"IF(+'[1]EXT(T)'!AS117=\"\",\"\",+'[1]EXT(T)'!AS117-'[1]EXT(T)'!AS116)","v":1884.6934999999994},{"$f":"IF(+'[1]EXT(T)'!AT117=\"\",\"\",+'[1]EXT(T)'!AT117-'[1]EXT(T)'!AT116)","v":1021.9863861700005},{"$f":"IF(+'[1]EXT(T)'!AU117=\"\",\"\",+'[1]EXT(T)'!AU117-'[1]EXT(T)'!AU116)","v":342.49999999999989},{"$f":"IF(+'[1]EXT(T)'!AV117=\"\",\"\",+'[1]EXT(T)'!AV117-'[1]EXT(T)'!AV116)","v":1352.8423493166893},{"$f":"IF(+'[1]EXT(T)'!AW117=\"\",\"\",+'[1]EXT(T)'!AW117-'[1]EXT(T)'!AW116)","v":114.5},5963.8174634566885,{"$f":"IF(OR(X110=\"\",Y110=\"\",Z110=\"\",AA110=\"\",AB110=\"\",AC110=\"\",W110=\"\"),\"\",X110+W110+Y110+Z110+AA110+AB110+AC110)","v":6078.3174634566885}]
[2017,"I",{"$f":"IF(+'[1]EXT(T)'!M118=\"\",\"\",+'[1]EXT(T)'!M118)","v":878.0174938692353},{"$f":"IF(+'[1]EXT(T)'!N118=\"\",\"\",+'[1]EXT(T)'!N118)","v":137.73629427626753},{"$f":"IF(+'[1]EXT(T)'!O118=\"\",\"\",+'[1]EXT(T)'!O118)","v":292.60000000000002},{"$f":"IF(+'[1]EXT(T)'!P118=\"\",\"\",+'[1]EXT(T)'!P118)","v":321.09681676777484},{"$f":"IF(+'[1]EXT(T)'!Q118=\"\",\"\",+'[1]EXT(T)'!Q118)","v":223.20000000000002},{"$f":"IF(+'[1]EXT(T)'!R118=\"\",\"\",+'[1]EXT(T)'!R118)","v":712.29999999999984},{"$f":"IF(+'[1]EXT(T)'!S118=\"\",\"\",+'[1]EXT(T)'!S118)","v":1291.27483463},{"$f":"IF(+'[1]EXT(T)'!U118=\"\",\"\",+'[1]EXT(T)'!U118)","v":2564.9506049132774},{"$f":"IF(+'[1]EXT(T)'!V118=\"\",\"\",+'[1]EXT(T)'!V118)","v":3856.2254395432774},{"$f":"IF(+'[1]EXT(T)'!W118=\"\",\"\",+'[1]EXT(T)'!W118)","v":878.0174938692353},{"$f":"IF(+'[1]EXT(T)'!X118=\"\",\"\",+'[1]EXT(T)'!X118)","v":137.73629427626753},{"$f":"IF(+'[1]EXT(T)'!Y118=\"\",\"\",+'[1]EXT(T)'!Y118)","v":292.60000000000002},{"$f":"IF(+'[1]EXT(T)'!Z118=\"\",\"\",+'[1]EXT(T)'!Z118)","v":321.09681676777484},{"$f":"IF(+'[1]EXT(T)'!AA118=\"\",\"\",+'[1]EXT(T)'!AA118)","v":223.20000000000002},{"$f":"IF(+'[1]EXT(T)'!AB118=\"\",\"\",+'[1]EXT(T)'!AB118)","v":712.29999999999984},{"$f":"IF(+'[1]EXT(T)'!AC118=\"\",\"\",+'[1]EXT(T)'!AC118)","v":1291.27483463},{"$f":"IF(+'[1]EXT(T)'!AE118=\"\",\"\",+'[1]EXT(T)'!AE118)","v":2564.9506049132774},{"$f":"IF(+'[1]EXT(T)'!AF118=\"\",\"\",+'[1]EXT(T)'!AF118)","v":3856.2254395432774},{"$f":"IF(+'[1]EXT(T)'!AY118=\"\",\"\",+'[1]EXT(T)'!AY118)","v":6047.5686435413481},{"$f":"IF(+'[1]EXT(T)'!AZ118=\"\",\"\",+'[1]EXT(T)'!AZ118)","v":6151.268643541348},{"$f":"IF(+'[1]EXT(T)'!AQ118=\"\",\"\",+'[1]EXT(T)'!AQ118)","v":126.76014153},{"$f":"IF(+'[1]EXT(T)'!AR118=\"\",\"\",+'[1]EXT(T)'!AR118)","v":1163.56},{"$f":"IF(+'[1]EXT(T)'!AS118=\"\",\"\",+'[1]EXT(T)'!AS118)","v":1941.35},{"$f":"IF(+'[1]EXT(T)'!AT118=\"\",\"\",+'[1]EXT(T)'!AT118)","v":1037.6895514800001},{"$f":"IF(+'[1]EXT(T)'!AU118=\"\",\"\",+'[1]EXT(T)'!AU118)","v":323.29999999999995},{"$f":"IF(+'[1]EXT(T)'!AV118=\"\",\"\",+'[1]EXT(T)'!AV118)","v":1454.9089505313482},{"$f":"IF(+'[1]EXT(T)'!AW118=\"\",\"\",+'[1]EXT(T)'!AW118)","v":103.7},{"$f":"IF(OR(W111=\"\",X111=\"\",Y111=\"\",Z111=\"\",AA111=\"\",AB111=\"\"),\"\",W111+X111+Y111+Z111+AA111+AB111)","v":6047.5686435413481},{"$f":"IF(OR(X111=\"\",Y111=\"\",Z111=\"\",AA111=\"\",AB111=\"\",AC111=\"\",W111=\"\"),\"\",X111+W111+Y111+Z111+AA111+AB111+AC111)","v":6151.268643541348}]
[null,"II",{"$f":"IF(+'[1]EXT(T)'!M119=\"\",\"\",+'[1]EXT(T)'!M119)","v":776.06582432054734},{"$f":"IF(+'[1]EXT(T)'!N119=\"\",\"\",+'[1]EXT(T)'!N119)","v":196.9727085065},{"$f":"IF(+'[1]EXT(T)'!O119=\"\",\"\",+'[1]EXT(T)'!O119)","v":219},{"$f":"IF(+'[1]EXT(T)'!P119=\"\",\"\",+'[1]EXT(T)'!P119)","v":287.65855807154389},{"$f":"IF(+'[1]EXT(T)'!Q119=\"\",\"\",+'[1]EXT(T)'!Q119)","v":326.5},{"$f":"IF(+'[1]EXT(T)'!R119=\"\",\"\",+'[1]EXT(T)'!R119)","v":614.39999999999986},{"$f":"IF(+'[1]EXT(T)'!S119=\"\",\"\",+'[1]EXT(T)'!S119)","v":1317.76530981},{"$f":"IF(+'[1]EXT(T)'!U119=\"\",\"\",+'[1]EXT(T)'!U119)","v":2420.597090898591},{"$f":"IF(+'[1]EXT(T)'!V119=\"\",\"\",+'[1]EXT(T)'!V119)","v":3738.3624007085909},{"$f":"IF(+'[1]EXT(T)'!W119=\"\",\"\",+'[1]EXT(T)'!W119)","v":1654.0833181897826},{"$f":"IF(+'[1]EXT(T)'!X119=\"\",\"\",+'[1]EXT(T)'!X119)","v":334.70900278276753},{"$f":"IF(+'[1]EXT(T)'!Y119=\"\",\"\",+'[1]EXT(T)'!Y119)","v":511.6},{"$f":"IF(+'[1]EXT(T)'!Z119=\"\",\"\",+'[1]EXT(T)'!Z119)","v":608.75537483931873},{"$f":"IF(+'[1]EXT(T)'!AA119=\"\",\"\",+'[1]EXT(T)'!AA119)","v":549.70000000000005},{"$f":"IF(+'[1]EXT(T)'!AB119=\"\",\"\",+'[1]EXT(T)'!AB119)","v":1326.6999999999998},{"$f":"IF(+'[1]EXT(T)'!AC119=\"\",\"\",+'[1]EXT(T)'!AC119)","v":2609.0401444399999},{"$f":"IF(+'[1]EXT(T)'!AE119=\"\",\"\",+'[1]EXT(T)'!AE119)","v":4985.5476958118688},{"$f":"IF(+'[1]EXT(T)'!AF119=\"\",\"\",+'[1]EXT(T)'!AF119)","v":7594.5878402518683},{"$f":"IF(+'[1]EXT(T)'!AY119=\"\",\"\",+'[1]EXT(T)'!AY119)","v":12496.05519875736},{"$f":"IF(+'[1]EXT(T)'!AZ119=\"\",\"\",+'[1]EXT(T)'!AZ119)","v":12708.15519875736},{"$f":"IF(+'[1]EXT(T)'!AQ119=\"\",\"\",+'[1]EXT(T)'!AQ119-'[1]EXT(T)'!AQ118)","v":132.32606936999997},{"$f":"IF(+'[1]EXT(T)'!AR119=\"\",\"\",+'[1]EXT(T)'!AR119-'[1]EXT(T)'!AR118)","v":1268.27},{"$f":"IF(+'[1]EXT(T)'!AS119=\"\",\"\",+'[1]EXT(T)'!AS119-'[1]EXT(T)'!AS118)","v":2111.02},{"$f":"IF(+'[1]EXT(T)'!AT119=\"\",\"\",+'[1]EXT(T)'!AT119-'[1]EXT(T)'!AT118)","v":1142.5560377100003},{"$f":"IF(+'[1]EXT(T)'!AU119=\"\",\"\",+'[1]EXT(T)'!AU119-'[1]EXT(T)'!AU118)","v":340.70000000000005},{"$f":"IF(+'[1]EXT(T)'!AV119=\"\",\"\",+'[1]EXT(T)'!AV119-'[1]EXT(T)'!AV118)","v":1453.6144481360111},{"$f":"IF(+'[1]EXT(T)'!AW119=\"\",\"\",+'[1]EXT(T)'!AW119-'[1]EXT(T)'!AW118)","v":108.40000000000002},{"$f":"IF(OR(W112=\"\",X112=\"\",Y112=\"\",Z112=\"\",AA112=\"\",AB112=\"\"),\"\",W112+X112+Y112+Z112+AA112+AB112)","v":6448.4865552160118},6556.8865552160114]
[null,"III",{"$f":"IF(+'[1]EXT(T)'!M120=\"\",\"\",+'[1]EXT(T)'!M120)","v":544.5533290761698},{"$f":"IF(+'[1]EXT(T)'!N120=\"\",\"\",+'[1]EXT(T)'!N120)","v":53.971530844307239},{"$f":"IF(+'[1]EXT(T)'!O120=\"\",\"\",+'[1]EXT(T)'!O120)","v":287.29999999999995},{"$f":"IF(+'[1]EXT(T)'!P120=\"\",\"\",+'[1]EXT(T)'!P120)","v":205.77410472209843},{"$f":"IF(+'[1]EXT(T)'!Q120=\"\",\"\",+'[1]EXT(T)'!Q120)","v":275},{"$f":"IF(+'[1]EXT(T)'!R120=\"\",\"\",+'[1]EXT(T)'!R120)","v":585.20000000000005},{"$f":"IF(+'[1]EXT(T)'!S120=\"\",\"\",+'[1]EXT(T)'!S120)","v":1214.07473218},{"$f":"IF(+'[1]EXT(T)'!U120=\"\",\"\",+'[1]EXT(T)'!U120)","v":1951.7989646425756},{"$f":"IF(+'[1]EXT(T)'!V120=\"\",\"\",+'[1]EXT(T)'!V120)","v":3165.8736968225758},{"$f":"IF(+'[1]EXT(T)'!W120=\"\",\"\",+'[1]EXT(T)'!W120)","v":2198.6366472659524},{"$f":"IF(+'[1]EXT(T)'!X120=\"\",\"\",+'[1]EXT(T)'!X120)","v":388.68053362707474},{"$f":"IF(+'[1]EXT(T)'!Y120=\"\",\"\",+'[1]EXT(T)'!Y120)","v":798.9},{"$f":"IF(+'[1]EXT(T)'!Z120=\"\",\"\",+'[1]EXT(T)'!Z120)","v":814.52947956141713},{"$f":"IF(+'[1]EXT(T)'!AA120=\"\",\"\",+'[1]EXT(T)'!AA120)","v":824.7},{"$f":"IF(+'[1]EXT(T)'!AB120=\"\",\"\",+'[1]EXT(T)'!AB120)","v":1911.8999999999999},{"$f":"IF(+'[1]EXT(T)'!AC120=\"\",\"\",+'[1]EXT(T)'!AC120)","v":3823.1148766199999},{"$f":"IF(+'[1]EXT(T)'!AE120=\"\",\"\",+'[1]EXT(T)'!AE120)","v":6937.3466604544446},{"$f":"IF(+'[1]EXT(T)'!AF120=\"\",\"\",+'[1]EXT(T)'!AF120)","v":10760.461537074443},{"$f":"IF(+'[1]EXT(T)'!AY120=\"\",\"\",+'[1]EXT(T)'!AY120)","v":18890.731494041458},{"$f":"IF(+'[1]EXT(T)'!AZ120=\"\",\"\",+'[1]EXT(T)'!AZ120)","v":19216.431494041459},{"$f":"IF(+'[1]EXT(T)'!AQ120=\"\",\"\",+'[1]EXT(T)'!AQ120-'[1]EXT(T)'!AQ119)","v":135.60000000000002},{"$f":"IF(+'[1]EXT(T)'!AR120=\"\",\"\",+'[1]EXT(T)'!AR120-'[1]EXT(T)'!AR119)","v":1225.5},{"$f":"IF(+'[1]EXT(T)'!AS120=\"\",\"\",+'[1]EXT(T)'!AS120-'[1]EXT(T)'!AS119)","v":2044.9700000000003},{"$f":"IF(+'[1]EXT(T)'!AT120=\"\",\"\",+'[1]EXT(T)'!AT120-'[1]EXT(T)'!AT119)","v":1126.2230793100002},{"$f":"IF(+'[1]EXT(T)'!AU120=\"\",\"\",+'[1]EXT(T)'!AU120-'[1]EXT(T)'!AU119)","v":355.59999999999991},{"$f":"IF(+'[1]EXT(T)'!AV120=\"\",\"\",+'[1]EXT(T)'!AV120-'[1]EXT(T)'!AV119)","v":1506.7832159741001},{"$f":"IF(+'[1]EXT(T)'!AW120=\"\",\"\",+'[1]EXT(T)'!AW120-'[1]EXT(T)'!AW119)","v":113.60000000000002},6394.6762952841009,6508.2762952841013]
[null,"IV",{"$f":"IF(+'[1]EXT(T)'!M121=\"\",\"\",+'[1]EXT(T)'!M121)","v":579.67737576905643},{"$f":"IF(+'[1]EXT(T)'!N121=\"\",\"\",+'[1]EXT(T)'!N121)","v":500.39238852623618},{"$f":"IF(+'[1]EXT(T)'!O121=\"\",\"\",+'[1]EXT(T)'!O121)","v":331.1},{"$f":"IF(+'[1]EXT(T)'!P121=\"\",\"\",+'[1]EXT(T)'!P121)","v":361.24766627304172},{"$f":"IF(+'[1]EXT(T)'!Q121=\"\",\"\",+'[1]EXT(T)'!Q121)","v":210.7},{"$f":"IF(+'[1]EXT(T)'!R121=\"\",\"\",+'[1]EXT(T)'!R121)","v":1658.8000000000002},{"$f":"IF(+'[1]EXT(T)'!S121=\"\",\"\",+'[1]EXT(T)'!S121)","v":458.72449601000005},{"$f":"IF(+'[1]EXT(T)'!U121=\"\",\"\",+'[1]EXT(T)'!U121)","v":3641.9174305683346},{"$f":"IF(+'[1]EXT(T)'!V121=\"\",\"\",+'[1]EXT(T)'!V121)","v":4100.6419265783343},{"$f":"IF(+'[1]EXT(T)'!W121=\"\",\"\",+'[1]EXT(T)'!W121)","v":2778.3140230350091},{"$f":"IF(+'[1]EXT(T)'!X121=\"\",\"\",+'[1]EXT(T)'!X121)","v":889.07292215331086},{"$f":"IF(+'[1]EXT(T)'!Y121=\"\",\"\",+'[1]EXT(T)'!Y121)","v":1130},{"$f":"IF(+'[1]EXT(T)'!Z121=\"\",\"\",+'[1]EXT(T)'!Z121)","v":1175.7771458344589},{"$f":"IF(+'[1]EXT(T)'!AA121=\"\",\"\",+'[1]EXT(T)'!AA121)","v":1035.4000000000001},{"$f":"IF(+'[1]EXT(T)'!AB121=\"\",\"\",+'[1]EXT(T)'!AB121)","v":3570.7},{"$f":"IF(+'[1]EXT(T)'!AC121=\"\",\"\",+'[1]EXT(T)'!AC121)","v":4281.8393726300001},{"$f":"IF(+'[1]EXT(T)'!AE121=\"\",\"\",+'[1]EXT(T)'!AE121)","v":10579.264091022778},{"$f":"IF(+'[1]EXT(T)'!AF121=\"\",\"\",+'[1]EXT(T)'!AF121)","v":14861.103463652777},{"$f":"IF(+'[1]EXT(T)'!AY121=\"\",\"\",+'[1]EXT(T)'!AY121)","v":25449.350853748791},{"$f":"IF(+'[1]EXT(T)'!AZ121=\"\",\"\",+'[1]EXT(T)'!AZ121)","v":25893.050853748791},{"$f":"IF(+'[1]EXT(T)'!AQ121=\"\",\"\",+'[1]EXT(T)'!AQ121-'[1]EXT(T)'!AQ120)","v":136.19999999999993},{"$f":"IF(+'[1]EXT(T)'!AR121=\"\",\"\",+'[1]EXT(T)'!AR121-'[1]EXT(T)'!AR120)","v":1328.04},{"$f":"IF(+'[1]EXT(T)'!AS121=\"\",\"\",+'[1]EXT(T)'!AS121-'[1]EXT(T)'!AS120)","v":2094.8760999999995},{"$f":"IF(+'[1]EXT(T)'!AT121=\"\",\"\",+'[1]EXT(T)'!AT121-'[1]EXT(T)'!AT120)","v":1131.8521937900005},{"$f":"IF(+'[1]EXT(T)'!AU121=\"\",\"\",+'[1]EXT(T)'!AU121-'[1]EXT(T)'!AU120)","v":371.20000000000005},{"$f":"IF(+'[1]EXT(T)'!AV121=\"\",\"\",+'[1]EXT(T)'!AV121-'[1]EXT(T)'!AV120)","v":1496.4510659173284},{"$f":"IF(+'[1]EXT(T)'!AW121=\"\",\"\",+'[1]EXT(T)'!AW121-'[1]EXT(T)'!AW120)","v":118},6558.6193597073279,{"$f":"IF(OR(X114=\"\",Y114=\"\",Z114=\"\",AA114=\"\",AB114=\"\",AC114=\"\",W114=\"\"),\"\",X114+W114+Y114+Z114+AA114+AB114+AC114)","v":6676.6193597073279}]
[2018,"I",{"$f":"IF(+'[1]EXT(T)'!M122=\"\",\"\",+'[1]EXT(T)'!M122)","v":354.80552249835949},{"$f":"IF(+'[1]EXT(T)'!N122=\"\",\"\",+'[1]EXT(T)'!N122)","v":388.18143594121597},{"$f":"IF(+'[1]EXT(T)'!O122=\"\",\"\",+'[1]EXT(T)'!O122)","v":258.67644999999999},{"$f":"IF(+'[1]EXT(T)'!P122=\"\",\"\",+'[1]EXT(T)'!P122)","v":304.68619878250672},{"$f":"IF(+'[1]EXT(T)'!Q122=\"\",\"\",+'[1]EXT(T)'!Q122)","v":286.3},{"$f":"IF(+'[1]EXT(T)'!R122=\"\",\"\",+'[1]EXT(T)'!R122)","v":627.39999999999986},{"$f":"IF(+'[1]EXT(T)'!S122=\"\",\"\",+'[1]EXT(T)'!S122)","v":839.38374444999999},{"$f":"IF(+'[1]EXT(T)'!U122=\"\",\"\",+'[1]EXT(T)'!U122)","v":2220.0496072220822},{"$f":"IF(+'[1]EXT(T)'!V122=\"\",\"\",+'[1]EXT(T)'!V122)","v":3059.4333516720822},{"$f":"IF(+'[1]EXT(T)'!W122=\"\",\"\",+'[1]EXT(T)'!W122)","v":354.80552249835949},{"$f":"IF(+'[1]EXT(T)'!X122=\"\",\"\",+'[1]EXT(T)'!X122)","v":388.18143594121597},{"$f":"IF(+'[1]EXT(T)'!Y122=\"\",\"\",+'[1]EXT(T)'!Y122)","v":258.67644999999999},{"$f":"IF(+'[1]EXT(T)'!Z122=\"\",\"\",+'[1]EXT(T)'!Z122)","v":304.68619878250672},{"$f":"IF(+'[1]EXT(T)'!AA122=\"\",\"\",+'[1]EXT(T)'!AA122)","v":286.3},{"$f":"IF(+'[1]EXT(T)'!AB122=\"\",\"\",+'[1]EXT(T)'!AB122)","v":627.39999999999986},{"$f":"IF(+'[1]EXT(T)'!AC122=\"\",\"\",+'[1]EXT(T)'!AC122)","v":839.38374444999999},{"$f":"IF(+'[1]EXT(T)'!AE122=\"\",\"\",+'[1]EXT(T)'!AE122)","v":2220.0496072220822},{"$f":"IF(+'[1]EXT(T)'!AF122=\"\",\"\",+'[1]EXT(T)'!AF122)","v":3059.4333516720822},{"$f":"IF(+'[1]EXT(T)'!AY122=\"\",\"\",+'[1]EXT(T)'!AY122)","v":6337.7212984919361},{"$f":"IF(+'[1]EXT(T)'!AZ122=\"\",\"\",+'[1]EXT(T)'!AZ122)","v":6443.2212984919361},{"$f":"IF(+'[1]EXT(T)'!AQ122=\"\",\"\",+'[1]EXT(T)'!AQ122)","v":111.48286081000001},{"$f":"IF(+'[1]EXT(T)'!AR122=\"\",\"\",+'[1]EXT(T)'!AR122)","v":1225.1500000000001},{"$f":"IF(+'[1]EXT(T)'!AS122=\"\",\"\",+'[1]EXT(T)'!AS122)","v":2019.17},{"$f":"IF(+'[1]EXT(T)'!AT122=\"\",\"\",+'[1]EXT(T)'!AT122)","v":1077.6079530900001},{"$f":"IF(+'[1]EXT(T)'!AU122=\"\",\"\",+'[1]EXT(T)'!AU122)","v":353.4},{"$f":"IF(+'[1]EXT(T)'!AV122=\"\",\"\",+'[1]EXT(T)'!AV122)","v":1550.9104845919367},{"$f":"IF(+'[1]EXT(T)'!AW122=\"\",\"\",+'[1]EXT(T)'!AW122)","v":105.5},{"$f":"IF(OR(W115=\"\",X115=\"\",Y115=\"\",Z115=\"\",AA115=\"\",AB115=\"\"),\"\",W115+X115+Y115+Z115+AA115+AB115)","v":6337.7212984919361},{"$f":"IF(OR(X115=\"\",Y115=\"\",Z115=\"\",AA115=\"\",AB115=\"\",AC115=\"\",W115=\"\"),\"\",X115+W115+Y115+Z115+AA115+AB115+AC115)","v":6443.2212984919361}]
[null,"II",{"$f":"IF(+'[1]EXT(T)'!M123=\"\",\"\",+'[1]EXT(T)'!M123)","v":280.49784956060887},{"$f":"IF(+'[1]EXT(T)'!N123=\"\",\"\",+'[1]EXT(T)'!N123)","v":102.27745065783225},{"$f":"IF(+'[1]EXT(T)'!O123=\"\",\"\",+'[1]EXT(T)'!O123)","v":187.25161999999997},{"$f":"IF(+'[1]EXT(T)'!P123=\"\",\"\",+'[1]EXT(T)'!P123)","v":106.3131267137462},{"$f":"IF(+'[1]EXT(T)'!Q123=\"\",\"\",+'[1]EXT(T)'!Q123)","v":267.8},{"$f":"IF(+'[1]EXT(T)'!R123=\"\",\"\",+'[1]EXT(T)'!R123)","v":618.20000000000005},{"$f":"IF(+'[1]EXT(T)'!S123=\"\",\"\",+'[1]EXT(T)'!S123)","v":2047.0074839499998},{"$f":"IF(+'[1]EXT(T)'!U123=\"\",\"\",+'[1]EXT(T)'!U123)","v":1562.3400469321873},{"$f":"IF(+'[1]EXT(T)'!V123=\"\",\"\",+'[1]EXT(T)'!V123)","v":3609.3475308821871},{"$f":"IF(+'[1]EXT(T)'!W123=\"\",\"\",+'[1]EXT(T)'!W123)","v":635.30337205896831},{"$f":"IF(+'[1]EXT(T)'!X123=\"\",\"\",+'[1]EXT(T)'!X123)","v":490.45888659904824},{"$f":"IF(+'[1]EXT(T)'!Y123=\"\",\"\",+'[1]EXT(T)'!Y123)","v":445.92806999999993},{"$f":"IF(+'[1]EXT(T)'!Z123=\"\",\"\",+'[1]EXT(T)'!Z123)","v":410.99932549625294},{"$f":"IF(+'[1]EXT(T)'!AA123=\"\",\"\",+'[1]EXT(T)'!AA123)","v":554.1},{"$f":"IF(+'[1]EXT(T)'!AB123=\"\",\"\",+'[1]EXT(T)'!AB123)","v":1245.5999999999999},{"$f":"IF(+'[1]EXT(T)'!AC123=\"\",\"\",+'[1]EXT(T)'!AC123)","v":2886.3912283999998},{"$f":"IF(+'[1]EXT(T)'!AE123=\"\",\"\",+'[1]EXT(T)'!AE123)","v":3782.3896541542695},{"$f":"IF(+'[1]EXT(T)'!AF123=\"\",\"\",+'[1]EXT(T)'!AF123)","v":6668.7808825542688},{"$f":"IF(+'[1]EXT(T)'!AY123=\"\",\"\",+'[1]EXT(T)'!AY123)","v":13585.539797484767},{"$f":"IF(+'[1]EXT(T)'!AZ123=\"\",\"\",+'[1]EXT(T)'!AZ123)","v":13816.739797484768},{"$f":"IF(+'[1]EXT(T)'!AQ123=\"\",\"\",+'[1]EXT(T)'!AQ123-'[1]EXT(T)'!AQ122)","v":125.45979474999999},{"$f":"IF(+'[1]EXT(T)'!AR123=\"\",\"\",+'[1]EXT(T)'!AR123-'[1]EXT(T)'!AR122)","v":1426.08},{"$f":"IF(+'[1]EXT(T)'!AS123=\"\",\"\",+'[1]EXT(T)'!AS123-'[1]EXT(T)'!AS122)","v":2379.92},{"$f":"IF(+'[1]EXT(T)'!AT123=\"\",\"\",+'[1]EXT(T)'!AT123-'[1]EXT(T)'!AT122)","v":1280.2613466700004},{"$f":"IF(+'[1]EXT(T)'!AU123=\"\",\"\",+'[1]EXT(T)'!AU123-'[1]EXT(T)'!AU122)","v":371.20000000000005},{"$f":"IF(+'[1]EXT(T)'!AV123=\"\",\"\",+'[1]EXT(T)'!AV123-'[1]EXT(T)'!AV122)","v":1664.8973575728289},{"$f":"IF(+'[1]EXT(T)'!AW123=\"\",\"\",+'[1]EXT(T)'!AW123-'[1]EXT(T)'!AW122)","v":125.69999999999999},{"$f":"IF(OR(W116=\"\",X116=\"\",Y116=\"\",Z116=\"\",AA116=\"\",AB116=\"\"),\"\",W116+X116+Y116+Z116+AA116+AB116)","v":7247.8184989928286},7373.5184989928284]
[null,"III",{"$f":"IF(+'[1]EXT(T)'!M124=\"\",\"\",+'[1]EXT(T)'!M124)","v":601.89835724444299},{"$f":"IF(+'[1]EXT(T)'!N124=\"\",\"\",+'[1]EXT(T)'!N124)","v":49.088739786097122},{"$f":"IF(+'[1]EXT(T)'!O124=\"\",\"\",+'[1]EXT(T)'!O124)","v":163.89299},{"$f":"IF(+'[1]EXT(T)'!P124=\"\",\"\",+'[1]EXT(T)'!P124)","v":163.25273007190134},{"$f":"IF(+'[1]EXT(T)'!Q124=\"\",\"\",+'[1]EXT(T)'!Q124)","v":78.300000000000011},{"$f":"IF(+'[1]EXT(T)'!R124=\"\",\"\",+'[1]EXT(T)'!R124)","v":460.59999999999991},{"$f":"IF(+'[1]EXT(T)'!S124=\"\",\"\",+'[1]EXT(T)'!S124)","v":1226.8646456800002},{"$f":"IF(+'[1]EXT(T)'!U124=\"\",\"\",+'[1]EXT(T)'!U124)","v":1517.0328171024414},{"$f":"IF(+'[1]EXT(T)'!V124=\"\",\"\",+'[1]EXT(T)'!V124)","v":2743.8974627824418},{"$f":"IF(+'[1]EXT(T)'!W124=\"\",\"\",+'[1]EXT(T)'!W124)","v":1237.2017293034114},{"$f":"IF(+'[1]EXT(T)'!X124=\"\",\"\",+'[1]EXT(T)'!X124)","v":539.54762638514535},{"$f":"IF(+'[1]EXT(T)'!Y124=\"\",\"\",+'[1]EXT(T)'!Y124)","v":609.82105999999999},{"$f":"IF(+'[1]EXT(T)'!Z124=\"\",\"\",+'[1]EXT(T)'!Z124)","v":574.25205556815422},{"$f":"IF(+'[1]EXT(T)'!AA124=\"\",\"\",+'[1]EXT(T)'!AA124)","v":632.40000000000009},{"$f":"IF(+'[1]EXT(T)'!AB124=\"\",\"\",+'[1]EXT(T)'!AB124)","v":1706.1999999999998},{"$f":"IF(+'[1]EXT(T)'!AC124=\"\",\"\",+'[1]EXT(T)'!AC124)","v":4113.2558740799996},{"$f":"IF(+'[1]EXT(T)'!AE124=\"\",\"\",+'[1]EXT(T)'!AE124)","v":5299.4224712567111},{"$f":"IF(+'[1]EXT(T)'!AF124=\"\",\"\",+'[1]EXT(T)'!AF124)","v":9412.6783453367098},{"$f":"IF(+'[1]EXT(T)'!AY124=\"\",\"\",+'[1]EXT(T)'!AY124)","v":20753.917882390073},{"$f":"IF(+'[1]EXT(T)'!AZ124=\"\",\"\",+'[1]EXT(T)'!AZ124)","v":21088.617882390074},{"$f":"IF(+'[1]EXT(T)'!AQ124=\"\",\"\",+'[1]EXT(T)'!AQ124-'[1]EXT(T)'!AQ123)","v":131.05921014},{"$f":"IF(+'[1]EXT(T)'!AR124=\"\",\"\",+'[1]EXT(T)'!AR124-'[1]EXT(T)'!AR123)","v":1331.85},{"$f":"IF(+'[1]EXT(T)'!AS124=\"\",\"\",+'[1]EXT(T)'!AS124-'[1]EXT(T)'!AS123)","v":2424.7600000000002},{"$f":"IF(+'[1]EXT(T)'!AT124=\"\",\"\",+'[1]EXT(T)'!AT124-'[1]EXT(T)'!AT123)","v":1257.2822278100007},{"$f":"IF(+'[1]EXT(T)'!AU124=\"\",\"\",+'[1]EXT(T)'!AU124-'[1]EXT(T)'!AU123)","v":372.80000000000007},{"$f":"IF(+'[1]EXT(T)'!AV124=\"\",\"\",+'[1]EXT(T)'!AV124-'[1]EXT(T)'!AV123)","v":1650.6266469553079},{"$f":"IF(+'[1]EXT(T)'!AW124=\"\",\"\",+'[1]EXT(T)'!AW124-'[1]EXT(T)'!AW123)","v":103.5},{"$f":"IF(OR(W117=\"\",X117=\"\",Y117=\"\",Z117=\"\",AA117=\"\",AB117=\"\"),\"\",W117+X117+Y117+Z117+AA117+AB117)","v":7168.3780849053092},{"$f":"IF(OR(X117=\"\",Y117=\"\",Z117=\"\",AA117=\"\",AB117=\"\",AC117=\"\",W117=\"\"),\"\",X117+W117+Y117+Z117+AA117+AB117+AC117)","v":7271.8780849053092}]
[null,"IV",{"$f":"IF(+'[1]EXT(T)'!M125=\"\",\"\",+'[1]EXT(T)'!M125)","v":1249.9786712088821},{"$f":"IF(+'[1]EXT(T)'!N125=\"\",\"\",+'[1]EXT(T)'!N125)","v":286.46193299552749},{"$f":"IF(+'[1]EXT(T)'!O125=\"\",\"\",+'[1]EXT(T)'!O125)","v":370.83088000000004},{"$f":"IF(+'[1]EXT(T)'!P125=\"\",\"\",+'[1]EXT(T)'!P125)","v":387.08172012767812},{"$f":"IF(+'[1]EXT(T)'!Q125=\"\",\"\",+'[1]EXT(T)'!Q125)","v":205.2},{"$f":"IF(+'[1]EXT(T)'!R125=\"\",\"\",+'[1]EXT(T)'!R125)","v":829.09999999999991},{"$f":"IF(+'[1]EXT(T)'!S125=\"\",\"\",+'[1]EXT(T)'!S125)","v":906.14802965000001},{"$f":"IF(+'[1]EXT(T)'!U125=\"\",\"\",+'[1]EXT(T)'!U125)","v":3328.6532043320876},{"$f":"IF(+'[1]EXT(T)'!V125=\"\",\"\",+'[1]EXT(T)'!V125)","v":4234.801233982088},{"$f":"IF(+'[1]EXT(T)'!W125=\"\",\"\",+'[1]EXT(T)'!W125)","v":2487.1804005122935},{"$f":"IF(+'[1]EXT(T)'!X125=\"\",\"\",+'[1]EXT(T)'!X125)","v":826.00955938067284},{"$f":"IF(+'[1]EXT(T)'!Y125=\"\",\"\",+'[1]EXT(T)'!Y125)","v":980.65193999999997},{"$f":"IF(+'[1]EXT(T)'!Z125=\"\",\"\",+'[1]EXT(T)'!Z125)","v":961.3337756958324},{"$f":"IF(+'[1]EXT(T)'!AA125=\"\",\"\",+'[1]EXT(T)'!AA125)","v":837.60000000000014},{"$f":"IF(+'[1]EXT(T)'!AB125=\"\",\"\",+'[1]EXT(T)'!AB125)","v":2535.2999999999997},{"$f":"IF(+'[1]EXT(T)'!AC125=\"\",\"\",+'[1]EXT(T)'!AC125)","v":5019.4039037299999},{"$f":"IF(+'[1]EXT(T)'!AE125=\"\",\"\",+'[1]EXT(T)'!AE125)","v":8628.0756755887996},{"$f":"IF(+'[1]EXT(T)'!AF125=\"\",\"\",+'[1]EXT(T)'!AF125)","v":13647.479579318799},{"$f":"IF(+'[1]EXT(T)'!AY125=\"\",\"\",+'[1]EXT(T)'!AY125)","v":28057.340931186034},{"$f":"IF(+'[1]EXT(T)'!AZ125=\"\",\"\",+'[1]EXT(T)'!AZ125)","v":28514.140931186033},{"$f":"IF(+'[1]EXT(T)'!AQ125=\"\",\"\",+'[1]EXT(T)'!AQ125-'[1]EXT(T)'!AQ124)","v":131.03645555999998},{"$f":"IF(+'[1]EXT(T)'!AR125=\"\",\"\",+'[1]EXT(T)'!AR125-'[1]EXT(T)'!AR124)","v":1407.6999999999989},{"$f":"IF(+'[1]EXT(T)'!AS125=\"\",\"\",+'[1]EXT(T)'!AS125-'[1]EXT(T)'!AS124)","v":2463.9400000000005},{"$f":"IF(+'[1]EXT(T)'!AT125=\"\",\"\",+'[1]EXT(T)'!AT125-'[1]EXT(T)'!AT124)","v":1269.31742811},{"$f":"IF(+'[1]EXT(T)'!AU125=\"\",\"\",+'[1]EXT(T)'!AU125-'[1]EXT(T)'!AU124)","v":403.80000000000018},{"$f":"IF(+'[1]EXT(T)'!AV125=\"\",\"\",+'[1]EXT(T)'!AV125-'[1]EXT(T)'!AV124)","v":1627.6291651259608},{"$f":"IF(+'[1]EXT(T)'!AW125=\"\",\"\",+'[1]EXT(T)'!AW125-'[1]EXT(T)'!AW124)","v":122.09999999999997},7303.4230487959603,{"$f":"IF(OR(X118=\"\",Y118=\"\",Z118=\"\",AA118=\"\",AB118=\"\",AC118=\"\",W118=\"\"),\"\",X118+W118+Y118+Z118+AA118+AB118+AC118)","v":7425.5230487959607}]
[2019,"I",{"$f":"IF(+'[1]EXT(T)'!M126=\"\",\"\",+'[1]EXT(T)'!M126)","v":705.18742760547354},{"$f":"IF(+'[1]EXT(T)'!N126=\"\",\"\",+'[1]EXT(T)'!N126)","v":242.89354726699293},{"$f":"IF(+'[1]EXT(T)'!O126=\"\",\"\",+'[1]EXT(T)'!O126)","v":287.62654000000003},{"$f":"IF(+'[1]EXT(T)'!P126=\"\",\"\",+'[1]EXT(T)'!P126)","v":301.97434331644104},{"$f":"IF(+'[1]EXT(T)'!Q126=\"\",\"\",+'[1]EXT(T)'!Q126)","v":254.89999999999998},{"$f":"IF(+'[1]EXT(T)'!R126=\"\",\"\",+'[1]EXT(T)'!R126)","v":967.80000000000018},{"$f":"IF(+'[1]EXT(T)'!S126=\"\",\"\",+'[1]EXT(T)'!S126)","v":1128.23115942},{"$f":"IF(+'[1]EXT(T)'!U126=\"\",\"\",+'[1]EXT(T)'!U126)","v":2760.3818581889077},{"$f":"IF(+'[1]EXT(T)'!V126=\"\",\"\",+'[1]EXT(T)'!V126)","v":3888.6130176089077},{"$f":"IF(+'[1]EXT(T)'!W126=\"\",\"\",+'[1]EXT(T)'!W126)","v":705.18742760547354},{"$f":"IF(+'[1]EXT(T)'!X126=\"\",\"\",+'[1]EXT(T)'!X126)","v":242.89354726699293},{"$f":"IF(+'[1]EXT(T)'!Y126=\"\",\"\",+'[1]EXT(T)'!Y126)","v":287.62654000000003},{"$f":"IF(+'[1]EXT(T)'!Z126=\"\",\"\",+'[1]EXT(T)'!Z126)","v":301.97434331644104},{"$f":"IF(+'[1]EXT(T)'!AA126=\"\",\"\",+'[1]EXT(T)'!AA126)","v":254.89999999999998},{"$f":"IF(+'[1]EXT(T)'!AB126=\"\",\"\",+'[1]EXT(T)'!AB126)","v":967.80000000000018},{"$f":"IF(+'[1]EXT(T)'!AC126=\"\",\"\",+'[1]EXT(T)'!AC126)","v":1128.23115942},{"$f":"IF(+'[1]EXT(T)'!AE126=\"\",\"\",+'[1]EXT(T)'!AE126)","v":2760.3818581889077},{"$f":"IF(+'[1]EXT(T)'!AF126=\"\",\"\",+'[1]EXT(T)'!AF126)","v":3888.6130176089077},{"$f":"IF(+'[1]EXT(T)'!AY126=\"\",\"\",+'[1]EXT(T)'!AY126)","v":6939.1419120368073},{"$f":"IF(+'[1]EXT(T)'!AZ126=\"\",\"\",+'[1]EXT(T)'!AZ126)","v":7056.4981100368077},{"$f":"IF(+'[1]EXT(T)'!AQ126=\"\",\"\",+'[1]EXT(T)'!AQ126)","v":118.72199291},{"$f":"IF(+'[1]EXT(T)'!AR126=\"\",\"\",+'[1]EXT(T)'!AR126)","v":1295.04},{"$f":"IF(+'[1]EXT(T)'!AS126=\"\",\"\",+'[1]EXT(T)'!AS126)","v":2205.3000000000002},{"$f":"IF(+'[1]EXT(T)'!AT126=\"\",\"\",+'[1]EXT(T)'!AT126)","v":1193.0782991000001},{"$f":"IF(+'[1]EXT(T)'!AU126=\"\",\"\",+'[1]EXT(T)'!AU126)","v":383.8},{"$f":"IF(+'[1]EXT(T)'!AV126=\"\",\"\",+'[1]EXT(T)'!AV126)","v":1743.2016200268065},{"$f":"IF(+'[1]EXT(T)'!AW126=\"\",\"\",+'[1]EXT(T)'!AW126)","v":117.35619800000001},{"$f":"IF(OR(W119=\"\",X119=\"\",Y119=\"\",Z119=\"\",AA119=\"\",AB119=\"\"),\"\",W119+X119+Y119+Z119+AA119+AB119)","v":6939.1419120368073},{"$f":"IF(OR(X119=\"\",Y119=\"\",Z119=\"\",AA119=\"\",AB119=\"\",AC119=\"\",W119=\"\"),\"\",X119+W119+Y119+Z119+AA119+AB119+AC119)","v":7056.4981100368077}]
[null,"II",{"$f":"IF(+'[1]EXT(T)'!M127=\"\",\"\",+'[1]EXT(T)'!M127)","v":406.61092406597987},{"$f":"IF(+'[1]EXT(T)'!N127=\"\",\"\",+'[1]EXT(T)'!N127)","v":141.56419542134984},{"$f":"IF(+'[1]EXT(T)'!O127=\"\",\"\",+'[1]EXT(T)'!O127)","v":164.67914999999999},{"$f":"IF(+'[1]EXT(T)'!P127=\"\",\"\",+'[1]EXT(T)'!P127)","v":-54.080213318592172},{"$f":"IF(+'[1]EXT(T)'!Q127=\"\",\"\",+'[1]EXT(T)'!Q127)","v":20.699999999999978},{"$f":"IF(+'[1]EXT(T)'!R127=\"\",\"\",+'[1]EXT(T)'!R127)","v":587.20000000000005},{"$f":"IF(+'[1]EXT(T)'!S127=\"\",\"\",+'[1]EXT(T)'!S127)","v":832.70461281000007},{"$f":"IF(+'[1]EXT(T)'!U127=\"\",\"\",+'[1]EXT(T)'!U127)","v":1266.6740561687375},{"$f":"IF(+'[1]EXT(T)'!V127=\"\",\"\",+'[1]EXT(T)'!V127)","v":2099.3786689787376},{"$f":"IF(+'[1]EXT(T)'!W127=\"\",\"\",+'[1]EXT(T)'!W127)","v":1111.7983516714535},{"$f":"IF(+'[1]EXT(T)'!X127=\"\",\"\",+'[1]EXT(T)'!X127)","v":384.45774268834276},{"$f":"IF(+'[1]EXT(T)'!Y127=\"\",\"\",+'[1]EXT(T)'!Y127)","v":452.30569000000003},{"$f":"IF(+'[1]EXT(T)'!Z127=\"\",\"\",+'[1]EXT(T)'!Z127)","v":247.89412999784886},{"$f":"IF(+'[1]EXT(T)'!AA127=\"\",\"\",+'[1]EXT(T)'!AA127)","v":275.59999999999997},{"$f":"IF(+'[1]EXT(T)'!AB127=\"\",\"\",+'[1]EXT(T)'!AB127)","v":1555.0000000000002},{"$f":"IF(+'[1]EXT(T)'!AC127=\"\",\"\",+'[1]EXT(T)'!AC127)","v":1960.9357722300001},{"$f":"IF(+'[1]EXT(T)'!AE127=\"\",\"\",+'[1]EXT(T)'!AE127)","v":4027.0559143576452},{"$f":"IF(+'[1]EXT(T)'!AF127=\"\",\"\",+'[1]EXT(T)'!AF127)","v":5987.9916865876457},{"$f":"IF(+'[1]EXT(T)'!AY127=\"\",\"\",+'[1]EXT(T)'!AY127)","v":14744.532288852728},{"$f":"IF(+'[1]EXT(T)'!AZ127=\"\",\"\",+'[1]EXT(T)'!AZ127)","v":14987.551086852727},{"$f":"IF(+'[1]EXT(T)'!AQ127=\"\",\"\",+'[1]EXT(T)'!AQ127-'[1]EXT(T)'!AQ126)","v":129.60714523000001},{"$f":"IF(+'[1]EXT(T)'!AR127=\"\",\"\",+'[1]EXT(T)'!AR127-'[1]EXT(T)'!AR126)","v":1447.4500000000003},{"$f":"IF(+'[1]EXT(T)'!AS127=\"\",\"\",+'[1]EXT(T)'!AS127-'[1]EXT(T)'!AS126)","v":2721.7},{"$f":"IF(+'[1]EXT(T)'!AT127=\"\",\"\",+'[1]EXT(T)'!AT127-'[1]EXT(T)'!AT126)","v":1379.6807416899996},{"$f":"IF(+'[1]EXT(T)'!AU127=\"\",\"\",+'[1]EXT(T)'!AU127-'[1]EXT(T)'!AU126)","v":412.7999999999999},{"$f":"IF(+'[1]EXT(T)'!AV127=\"\",\"\",+'[1]EXT(T)'!AV127-'[1]EXT(T)'!AV126)","v":1714.1524898959212},{"$f":"IF(+'[1]EXT(T)'!AW127=\"\",\"\",+'[1]EXT(T)'!AW127-'[1]EXT(T)'!AW126)","v":125.6626},{"$f":"IF(OR(W120=\"\",X120=\"\",Y120=\"\",Z120=\"\",AA120=\"\",AB120=\"\"),\"\",W120+X120+Y120+Z120+AA120+AB120)","v":7805.3903768159207},7931.0529768159204]
[null,"III",{"$f":"IF(+'[1]EXT(T)'!M128=\"\",\"\",+'[1]EXT(T)'!M128)","v":541.51965347338182},{"$f":"IF(+'[1]EXT(T)'!N128=\"\",\"\",+'[1]EXT(T)'!N128)","v":8.000920449207257},{"$f":"IF(+'[1]EXT(T)'!O128=\"\",\"\",+'[1]EXT(T)'!O128)","v":245.66655},{"$f":"IF(+'[1]EXT(T)'!P128=\"\",\"\",+'[1]EXT(T)'!P128)","v":-64.034757883800097},{"$f":"IF(+'[1]EXT(T)'!Q128=\"\",\"\",+'[1]EXT(T)'!Q128)","v":84.8},{"$f":"IF(+'[1]EXT(T)'!R128=\"\",\"\",+'[1]EXT(T)'!R128)","v":963.7},{"$f":"IF(+'[1]EXT(T)'!S128=\"\",\"\",+'[1]EXT(T)'!S128)","v":1438.7515216000002},{"$f":"IF(+'[1]EXT(T)'!U128=\"\",\"\",+'[1]EXT(T)'!U128)","v":1779.6523660387888},{"$f":"IF(+'[1]EXT(T)'!V128=\"\",\"\",+'[1]EXT(T)'!V128)","v":3218.403887638789},{"$f":"IF(+'[1]EXT(T)'!W128=\"\",\"\",+'[1]EXT(T)'!W128)","v":1653.3180051448353},{"$f":"IF(+'[1]EXT(T)'!X128=\"\",\"\",+'[1]EXT(T)'!X128)","v":392.45866313755005},{"$f":"IF(+'[1]EXT(T)'!Y128=\"\",\"\",+'[1]EXT(T)'!Y128)","v":697.97224000000006},{"$f":"IF(+'[1]EXT(T)'!Z128=\"\",\"\",+'[1]EXT(T)'!Z128)","v":183.85937211404877},{"$f":"IF(+'[1]EXT(T)'!AA128=\"\",\"\",+'[1]EXT(T)'!AA128)","v":360.4},{"$f":"IF(+'[1]EXT(T)'!AB128=\"\",\"\",+'[1]EXT(T)'!AB128)","v":2518.7000000000003},{"$f":"IF(+'[1]EXT(T)'!AC128=\"\",\"\",+'[1]EXT(T)'!AC128)","v":3399.6872938300003},{"$f":"IF(+'[1]EXT(T)'!AE128=\"\",\"\",+'[1]EXT(T)'!AE128)","v":5806.708280396434},{"$f":"IF(+'[1]EXT(T)'!AF128=\"\",\"\",+'[1]EXT(T)'!AF128)","v":9206.3955742264352},{"$f":"IF(+'[1]EXT(T)'!AY128=\"\",\"\",+'[1]EXT(T)'!AY128)","v":22870.388753805735},{"$f":"IF(+'[1]EXT(T)'!AZ128=\"\",\"\",+'[1]EXT(T)'!AZ128)","v":23235.692528805735},{"$f":"IF(+'[1]EXT(T)'!AQ128=\"\",\"\",+'[1]EXT(T)'!AQ128-'[1]EXT(T)'!AQ127)","v":135.01263093},{"$f":"IF(+'[1]EXT(T)'!AR128=\"\",\"\",+'[1]EXT(T)'!AR128-'[1]EXT(T)'!AR127)","v":1414.4199999999996},{"$f":"IF(+'[1]EXT(T)'!AS128=\"\",\"\",+'[1]EXT(T)'!AS128-'[1]EXT(T)'!AS127)","v":2820.7000000000007},{"$f":"IF(+'[1]EXT(T)'!AT128=\"\",\"\",+'[1]EXT(T)'!AT128-'[1]EXT(T)'!AT127)","v":1489.3590840800002},{"$f":"IF(+'[1]EXT(T)'!AU128=\"\",\"\",+'[1]EXT(T)'!AU128-'[1]EXT(T)'!AU127)","v":430.79999999999995},{"$f":"IF(+'[1]EXT(T)'!AV128=\"\",\"\",+'[1]EXT(T)'!AV128-'[1]EXT(T)'!AV127)","v":1835.5647499430061},{"$f":"IF(+'[1]EXT(T)'!AW128=\"\",\"\",+'[1]EXT(T)'!AW128-'[1]EXT(T)'!AW127)","v":122.28497699999997},{"$f":"IF(OR(W121=\"\",X121=\"\",Y121=\"\",Z121=\"\",AA121=\"\",AB121=\"\"),\"\",W121+X121+Y121+Z121+AA121+AB121)","v":8125.8564649530072},{"$f":"IF(OR(X121=\"\",Y121=\"\",Z121=\"\",AA121=\"\",AB121=\"\",AC121=\"\",W121=\"\"),\"\",X121+W121+Y121+Z121+AA121+AB121+AC121)","v":8248.1414419530065}]
[null,"IV",{"$f":"IF(+'[1]EXT(T)'!M129=\"\",\"\",+'[1]EXT(T)'!M129)","v":1158.9432824253245},{"$f":"IF(+'[1]EXT(T)'!N129=\"\",\"\",+'[1]EXT(T)'!N129)","v":243.70951134021703},{"$f":"IF(+'[1]EXT(T)'!O129=\"\",\"\",+'[1]EXT(T)'!O129)","v":278.16876999999999},{"$f":"IF(+'[1]EXT(T)'!P129=\"\",\"\",+'[1]EXT(T)'!P129)","v":314.20058053724847},{"$f":"IF(+'[1]EXT(T)'!Q129=\"\",\"\",+'[1]EXT(T)'!Q129)","v":142.60000000000002},{"$f":"IF(+'[1]EXT(T)'!R129=\"\",\"\",+'[1]EXT(T)'!R129)","v":502.30000000000007},{"$f":"IF(+'[1]EXT(T)'!S129=\"\",\"\",+'[1]EXT(T)'!S129)","v":663.26117164999994},{"$f":"IF(+'[1]EXT(T)'!U129=\"\",\"\",+'[1]EXT(T)'!U129)","v":2639.92214430279},{"$f":"IF(+'[1]EXT(T)'!V129=\"\",\"\",+'[1]EXT(T)'!V129)","v":3303.1833159527901},{"$f":"IF(+'[1]EXT(T)'!W129=\"\",\"\",+'[1]EXT(T)'!W129)","v":2812.2612875701598},{"$f":"IF(+'[1]EXT(T)'!X129=\"\",\"\",+'[1]EXT(T)'!X129)","v":636.16817447776702},{"$f":"IF(+'[1]EXT(T)'!Y129=\"\",\"\",+'[1]EXT(T)'!Y129)","v":976.14101000000005},{"$f":"IF(+'[1]EXT(T)'!Z129=\"\",\"\",+'[1]EXT(T)'!Z129)","v":498.05995265129724},{"$f":"IF(+'[1]EXT(T)'!AA129=\"\",\"\",+'[1]EXT(T)'!AA129)","v":503},{"$f":"IF(+'[1]EXT(T)'!AB129=\"\",\"\",+'[1]EXT(T)'!AB129)","v":3021.0000000000005},{"$f":"IF(+'[1]EXT(T)'!AC129=\"\",\"\",+'[1]EXT(T)'!AC129)","v":4062.9484654800003},{"$f":"IF(+'[1]EXT(T)'!AE129=\"\",\"\",+'[1]EXT(T)'!AE129)","v":8446.630424699224},{"$f":"IF(+'[1]EXT(T)'!AF129=\"\",\"\",+'[1]EXT(T)'!AF129)","v":12509.578890179226},{"$f":"IF(+'[1]EXT(T)'!AY129=\"\",\"\",+'[1]EXT(T)'!AY129)","v":30967.584513568774},{"$f":"IF(+'[1]EXT(T)'!AZ129=\"\",\"\",+'[1]EXT(T)'!AZ129)","v":31460.733372568775},{"$f":"IF(+'[1]EXT(T)'!AQ129=\"\",\"\",+'[1]EXT(T)'!AQ129-'[1]EXT(T)'!AQ128)","v":135.44347077000003},{"$f":"IF(+'[1]EXT(T)'!AR129=\"\",\"\",+'[1]EXT(T)'!AR129-'[1]EXT(T)'!AR128)","v":1492.0500000000011},{"$f":"IF(+'[1]EXT(T)'!AS129=\"\",\"\",+'[1]EXT(T)'!AS129-'[1]EXT(T)'!AS128)","v":2760.6999999999989},{"$f":"IF(+'[1]EXT(T)'!AT129=\"\",\"\",+'[1]EXT(T)'!AT129-'[1]EXT(T)'!AT128)","v":1459.8756143999994},{"$f":"IF(+'[1]EXT(T)'!AU129=\"\",\"\",+'[1]EXT(T)'!AU129-'[1]EXT(T)'!AU128)","v":455},{"$f":"IF(+'[1]EXT(T)'!AV129=\"\",\"\",+'[1]EXT(T)'!AV129-'[1]EXT(T)'!AV128)","v":1794.1266745930379},{"$f":"IF(+'[1]EXT(T)'!AW129=\"\",\"\",+'[1]EXT(T)'!AW129-'[1]EXT(T)'!AW128)","v":127.84508399999999},8097.195759763038,{"$f":"IF(OR(X122=\"\",Y122=\"\",Z122=\"\",AA122=\"\",AB122=\"\",AC122=\"\",W122=\"\"),\"\",X122+W122+Y122+Z122+AA122+AB122+AC122)","v":8225.0408437630376}]
[2020,"I",{"$f":"IF(+'[1]EXT(T)'!M130=\"\",\"\",+'[1]EXT(T)'!M130)","v":575.27903812155375},{"$f":"IF(+'[1]EXT(T)'!N130=\"\",\"\",+'[1]EXT(T)'!N130)","v":73.317711442671794},{"$f":"IF(+'[1]EXT(T)'!O130=\"\",\"\",+'[1]EXT(T)'!O130)","v":305.84846000000005},{"$f":"IF(+'[1]EXT(T)'!P130=\"\",\"\",+'[1]EXT(T)'!P130)","v":334.95275981215917},{"$f":"IF(+'[1]EXT(T)'!Q130=\"\",\"\",+'[1]EXT(T)'!Q130)","v":177.9},{"$f":"IF(+'[1]EXT(T)'!R130=\"\",\"\",+'[1]EXT(T)'!R130)","v":847.90000000000009},{"$f":"IF(+'[1]EXT(T)'!S130=\"\",\"\",+'[1]EXT(T)'!S130)","v":1028.0125002499999},{"$f":"IF(+'[1]EXT(T)'!U130=\"\",\"\",+'[1]EXT(T)'!U130)","v":2315.1979693763851},{"$f":"IF(+'[1]EXT(T)'!V130=\"\",\"\",+'[1]EXT(T)'!V130)","v":3343.210469626385},{"$f":"IF(+'[1]EXT(T)'!W130=\"\",\"\",+'[1]EXT(T)'!W130)","v":575.27903812155375},{"$f":"IF(+'[1]EXT(T)'!X130=\"\",\"\",+'[1]EXT(T)'!X130)","v":73.317711442671794},{"$f":"IF(+'[1]EXT(T)'!Y130=\"\",\"\",+'[1]EXT(T)'!Y130)","v":305.84846000000005},{"$f":"IF(+'[1]EXT(T)'!Z130=\"\",\"\",+'[1]EXT(T)'!Z130)","v":334.95275981215917},{"$f":"IF(+'[1]EXT(T)'!AA130=\"\",\"\",+'[1]EXT(T)'!AA130)","v":177.9},{"$f":"IF(+'[1]EXT(T)'!AB130=\"\",\"\",+'[1]EXT(T)'!AB130)","v":847.90000000000009},{"$f":"IF(+'[1]EXT(T)'!AC130=\"\",\"\",+'[1]EXT(T)'!AC130)","v":1028.0125002499999},{"$f":"IF(+'[1]EXT(T)'!AE130=\"\",\"\",+'[1]EXT(T)'!AE130)","v":2315.1979693763851},{"$f":"IF(+'[1]EXT(T)'!AF130=\"\",\"\",+'[1]EXT(T)'!AF130)","v":3343.210469626385},{"$f":"IF(+'[1]EXT(T)'!AY130=\"\",\"\",+'[1]EXT(T)'!AY130)","v":7149.7812315640922},{"$f":"IF(+'[1]EXT(T)'!AZ130=\"\",\"\",+'[1]EXT(T)'!AZ130)","v":7262.3466966440919},{"$f":"IF(+'[1]EXT(T)'!AQ130=\"\",\"\",+'[1]EXT(T)'!AQ130)","v":103.79581777},{"$f":"IF(+'[1]EXT(T)'!AR130=\"\",\"\",+'[1]EXT(T)'!AR130)","v":1307.75},{"$f":"IF(+'[1]EXT(T)'!AS130=\"\",\"\",+'[1]EXT(T)'!AS130)","v":2389.3999999999996},{"$f":"IF(+'[1]EXT(T)'!AT130=\"\",\"\",+'[1]EXT(T)'!AT130)","v":1221.1274000000001},{"$f":"IF(+'[1]EXT(T)'!AU130=\"\",\"\",+'[1]EXT(T)'!AU130)","v":424.5},{"$f":"IF(+'[1]EXT(T)'!AV130=\"\",\"\",+'[1]EXT(T)'!AV130)","v":1703.208013794092},{"$f":"IF(+'[1]EXT(T)'!AW130=\"\",\"\",+'[1]EXT(T)'!AW130)","v":112.56546508},{"$f":"IF(OR(W123=\"\",X123=\"\",Y123=\"\",Z123=\"\",AA123=\"\",AB123=\"\"),\"\",W123+X123+Y123+Z123+AA123+AB123)","v":7149.7812315640922},{"$f":"IF(OR(X123=\"\",Y123=\"\",Z123=\"\",AA123=\"\",AB123=\"\",AC123=\"\",W123=\"\"),\"\",X123+W123+Y123+Z123+AA123+AB123+AC123)","v":7262.3466966440919}]
[null,"II",{"$f":"IF(+'[1]EXT(T)'!M131=\"\",\"\",+'[1]EXT(T)'!M131)","v":260.98276073555968},{"$f":"IF(+'[1]EXT(T)'!N131=\"\",\"\",+'[1]EXT(T)'!N131)","v":285.29306778639773},{"$f":"IF(+'[1]EXT(T)'!O131=\"\",\"\",+'[1]EXT(T)'!O131)","v":165.85872000000001},{"$f":"IF(+'[1]EXT(T)'!P131=\"\",\"\",+'[1]EXT(T)'!P131)","v":-36.387275911375369},{"$f":"IF(+'[1]EXT(T)'!Q131=\"\",\"\",+'[1]EXT(T)'!Q131)","v":186.1},{"$f":"IF(+'[1]EXT(T)'!R131=\"\",\"\",+'[1]EXT(T)'!R131)","v":265.49999999999994},{"$f":"IF(+'[1]EXT(T)'!S131=\"\",\"\",+'[1]EXT(T)'!S131)","v":522.53693928000007},{"$f":"IF(+'[1]EXT(T)'!U131=\"\",\"\",+'[1]EXT(T)'!U131)","v":1127.347272610582},{"$f":"IF(+'[1]EXT(T)'!V131=\"\",\"\",+'[1]EXT(T)'!V131)","v":1649.884211890582},{"$f":"IF(+'[1]EXT(T)'!W131=\"\",\"\",+'[1]EXT(T)'!W131)","v":836.26179885711349},{"$f":"IF(+'[1]EXT(T)'!X131=\"\",\"\",+'[1]EXT(T)'!X131)","v":358.61077922906952},{"$f":"IF(+'[1]EXT(T)'!Y131=\"\",\"\",+'[1]EXT(T)'!Y131)","v":471.70718000000005},{"$f":"IF(+'[1]EXT(T)'!Z131=\"\",\"\",+'[1]EXT(T)'!Z131)","v":298.56548390078382},{"$f":"IF(+'[1]EXT(T)'!AA131=\"\",\"\",+'[1]EXT(T)'!AA131)","v":364},{"$f":"IF(+'[1]EXT(T)'!AB131=\"\",\"\",+'[1]EXT(T)'!AB131)","v":1113.4000000000001},{"$f":"IF(+'[1]EXT(T)'!AC131=\"\",\"\",+'[1]EXT(T)'!AC131)","v":1550.54943953},{"$f":"IF(+'[1]EXT(T)'!AE131=\"\",\"\",+'[1]EXT(T)'!AE131)","v":3442.5452419869671},{"$f":"IF(+'[1]EXT(T)'!AF131=\"\",\"\",+'[1]EXT(T)'!AF131)","v":4993.0946815169673},{"$f":"IF(+'[1]EXT(T)'!AY131=\"\",\"\",+'[1]EXT(T)'!AY131)","v":14424.154656304094},{"$f":"IF(+'[1]EXT(T)'!AZ131=\"\",\"\",+'[1]EXT(T)'!AZ131)","v":14621.902246304095},{"$f":"IF(+'[1]EXT(T)'!AQ131=\"\",\"\",+'[1]EXT(T)'!AQ131-'[1]EXT(T)'!AQ130)","v":118.62024963},{"$f":"IF(+'[1]EXT(T)'!AR131=\"\",\"\",+'[1]EXT(T)'!AR131-'[1]EXT(T)'!AR130)","v":1209.8499999999999},{"$f":"IF(+'[1]EXT(T)'!AS131=\"\",\"\",+'[1]EXT(T)'!AS131-'[1]EXT(T)'!AS130)","v":2490.9000000000005},{"$f":"IF(+'[1]EXT(T)'!AT131=\"\",\"\",+'[1]EXT(T)'!AT131-'[1]EXT(T)'!AT130)","v":1247.2605000000001},{"$f":"IF(+'[1]EXT(T)'!AU131=\"\",\"\",+'[1]EXT(T)'!AU131-'[1]EXT(T)'!AU130)","v":436.10000000000014},{"$f":"IF(+'[1]EXT(T)'!AV131=\"\",\"\",+'[1]EXT(T)'!AV131-'[1]EXT(T)'!AV130)","v":1771.6426751099998},{"$f":"IF(+'[1]EXT(T)'!AW131=\"\",\"\",+'[1]EXT(T)'!AW131-'[1]EXT(T)'!AW130)","v":85.182124920000007},{"$f":"IF(OR(W124=\"\",X124=\"\",Y124=\"\",Z124=\"\",AA124=\"\",AB124=\"\"),\"\",W124+X124+Y124+Z124+AA124+AB124)","v":7274.3734247400007},7359.5555496600009]
[null,"III",{"$f":"IF(+'[1]EXT(T)'!M132=\"\",\"\",+'[1]EXT(T)'!M132)","v":301.51372484479504},{"$f":"IF(+'[1]EXT(T)'!N132=\"\",\"\",+'[1]EXT(T)'!N132)","v":-73.893204959560848},{"$f":"IF(+'[1]EXT(T)'!O132=\"\",\"\",+'[1]EXT(T)'!O132)","v":242.63298999999998},{"$f":"IF(+'[1]EXT(T)'!P132=\"\",\"\",+'[1]EXT(T)'!P132)","v":24.940288695787878},{"$f":"IF(+'[1]EXT(T)'!Q132=\"\",\"\",+'[1]EXT(T)'!Q132)","v":165.10000000000002},{"$f":"IF(+'[1]EXT(T)'!R132=\"\",\"\",+'[1]EXT(T)'!R132)","v":716.30000000000007},{"$f":"IF(+'[1]EXT(T)'!S132=\"\",\"\",+'[1]EXT(T)'!S132)","v":-550.07837758000005},{"$f":"IF(+'[1]EXT(T)'!U132=\"\",\"\",+'[1]EXT(T)'!U132)","v":1376.5937985810222},{"$f":"IF(+'[1]EXT(T)'!V132=\"\",\"\",+'[1]EXT(T)'!V132)","v":826.5154210010221},{"$f":"IF(+'[1]EXT(T)'!W132=\"\",\"\",+'[1]EXT(T)'!W132)","v":1137.7755237019085},{"$f":"IF(+'[1]EXT(T)'!X132=\"\",\"\",+'[1]EXT(T)'!X132)","v":284.71757426950865},{"$f":"IF(+'[1]EXT(T)'!Y132=\"\",\"\",+'[1]EXT(T)'!Y132)","v":714.34017000000006},{"$f":"IF(+'[1]EXT(T)'!Z132=\"\",\"\",+'[1]EXT(T)'!Z132)","v":323.50577259657172},{"$f":"IF(+'[1]EXT(T)'!AA132=\"\",\"\",+'[1]EXT(T)'!AA132)","v":529.1},{"$f":"IF(+'[1]EXT(T)'!AB132=\"\",\"\",+'[1]EXT(T)'!AB132)","v":1829.7000000000003},{"$f":"IF(+'[1]EXT(T)'!AC132=\"\",\"\",+'[1]EXT(T)'!AC132)","v":1000.4710619499999},{"$f":"IF(+'[1]EXT(T)'!AE132=\"\",\"\",+'[1]EXT(T)'!AE132)","v":4819.1390405679895},{"$f":"IF(+'[1]EXT(T)'!AF132=\"\",\"\",+'[1]EXT(T)'!AF132)","v":5819.6101025179896},{"$f":"IF(+'[1]EXT(T)'!AY132=\"\",\"\",+'[1]EXT(T)'!AY132)","v":23858.375226654141},{"$f":"IF(+'[1]EXT(T)'!AZ132=\"\",\"\",+'[1]EXT(T)'!AZ132)","v":24149.33887865414},{"$f":"IF(+'[1]EXT(T)'!AQ132=\"\",\"\",+'[1]EXT(T)'!AQ132-'[1]EXT(T)'!AQ131)","v":138.43899707},{"$f":"IF(+'[1]EXT(T)'!AR132=\"\",\"\",+'[1]EXT(T)'!AR132-'[1]EXT(T)'!AR131)","v":1665.8799999999997},{"$f":"IF(+'[1]EXT(T)'!AS132=\"\",\"\",+'[1]EXT(T)'!AS132-'[1]EXT(T)'!AS131)","v":3180.2},{"$f":"IF(+'[1]EXT(T)'!AT132=\"\",\"\",+'[1]EXT(T)'!AT132-'[1]EXT(T)'!AT131)","v":1592.6037000000001},{"$f":"IF(+'[1]EXT(T)'!AU132=\"\",\"\",+'[1]EXT(T)'!AU132-'[1]EXT(T)'!AU131)","v":482.09999999999991},{"$f":"IF(+'[1]EXT(T)'!AV132=\"\",\"\",+'[1]EXT(T)'!AV132-'[1]EXT(T)'!AV131)","v":2374.9978732800455},{"$f":"IF(+'[1]EXT(T)'!AW132=\"\",\"\",+'[1]EXT(T)'!AW132-'[1]EXT(T)'!AW131)","v":93.216062000000022},9434.220570350044,9527.4366323500435]
[null,"IV",{"$f":"IF(+'[1]EXT(T)'!M133=\"\",\"\",+'[1]EXT(T)'!M133)","v":624.87986841047234},{"$f":"IF(+'[1]EXT(T)'!N133=\"\",\"\",+'[1]EXT(T)'!N133)","v":-4.7991433423501064},{"$f":"IF(+'[1]EXT(T)'!O133=\"\",\"\",+'[1]EXT(T)'!O133)","v":217.48251999999999},{"$f":"IF(+'[1]EXT(T)'!P133=\"\",\"\",+'[1]EXT(T)'!P133)","v":95.088352249462773},{"$f":"IF(+'[1]EXT(T)'!Q133=\"\",\"\",+'[1]EXT(T)'!Q133)","v":233.3},{"$f":"IF(+'[1]EXT(T)'!R133=\"\",\"\",+'[1]EXT(T)'!R133)","v":729.90000000000009},{"$f":"IF(+'[1]EXT(T)'!S133=\"\",\"\",+'[1]EXT(T)'!S133)","v":-393.77166866000005},{"$f":"IF(+'[1]EXT(T)'!U133=\"\",\"\",+'[1]EXT(T)'!U133)","v":1895.8515973175852},{"$f":"IF(+'[1]EXT(T)'!V133=\"\",\"\",+'[1]EXT(T)'!V133)","v":1502.0799286575852},{"$f":"IF(+'[1]EXT(T)'!W133=\"\",\"\",+'[1]EXT(T)'!W133)","v":1762.6553921123809},{"$f":"IF(+'[1]EXT(T)'!X133=\"\",\"\",+'[1]EXT(T)'!X133)","v":279.91843092715851},{"$f":"IF(+'[1]EXT(T)'!Y133=\"\",\"\",+'[1]EXT(T)'!Y133)","v":931.82269000000008},{"$f":"IF(+'[1]EXT(T)'!Z133=\"\",\"\",+'[1]EXT(T)'!Z133)","v":418.5941248460345},{"$f":"IF(+'[1]EXT(T)'!AA133=\"\",\"\",+'[1]EXT(T)'!AA133)","v":762.40000000000009},{"$f":"IF(+'[1]EXT(T)'!AB133=\"\",\"\",+'[1]EXT(T)'!AB133)","v":2559.6000000000004},{"$f":"IF(+'[1]EXT(T)'!AC133=\"\",\"\",+'[1]EXT(T)'!AC133)","v":606.69939328999988},{"$f":"IF(+'[1]EXT(T)'!AE133=\"\",\"\",+'[1]EXT(T)'!AE133)","v":6714.9906378855749},{"$f":"IF(+'[1]EXT(T)'!AF133=\"\",\"\",+'[1]EXT(T)'!AF133)","v":7321.6900311755744},{"$f":"IF(+'[1]EXT(T)'!AY133=\"\",\"\",+'[1]EXT(T)'!AY133)","v":33577.410257263764},{"$f":"IF(+'[1]EXT(T)'!AZ133=\"\",\"\",+'[1]EXT(T)'!AZ133)","v":33975.655257363767},{"$f":"IF(+'[1]EXT(T)'!AQ133=\"\",\"\",+'[1]EXT(T)'!AQ133-'[1]EXT(T)'!AQ132)","v":134.40566708},{"$f":"IF(+'[1]EXT(T)'!AR133=\"\",\"\",+'[1]EXT(T)'!AR133-'[1]EXT(T)'!AR132)","v":1746.46},{"$f":"IF(+'[1]EXT(T)'!AS133=\"\",\"\",+'[1]EXT(T)'!AS133-'[1]EXT(T)'!AS132)","v":3280},{"$f":"IF(+'[1]EXT(T)'!AT133=\"\",\"\",+'[1]EXT(T)'!AT133-'[1]EXT(T)'!AT132)","v":1680.0549999999994},{"$f":"IF(+'[1]EXT(T)'!AU133=\"\",\"\",+'[1]EXT(T)'!AU133-'[1]EXT(T)'!AU132)","v":508.70000000000005},{"$f":"IF(+'[1]EXT(T)'!AV133=\"\",\"\",+'[1]EXT(T)'!AV133-'[1]EXT(T)'!AV132)","v":2369.4143635296186},{"$f":"IF(+'[1]EXT(T)'!AW133=\"\",\"\",+'[1]EXT(T)'!AW133-'[1]EXT(T)'!AW132)","v":107.2813481},9719.0350306096188,{"$f":"IF(OR(X126=\"\",Y126=\"\",Z126=\"\",AA126=\"\",AB126=\"\",AC126=\"\",W126=\"\"),\"\",X126+W126+Y126+Z126+AA126+AB126+AC126)","v":9826.3163787096182}]
[2021,"I",{"$f":"IF(+'[1]EXT(T)'!M134=\"\",\"\",+'[1]EXT(T)'!M134)","v":747.18626729587629},{"$f":"IF(+'[1]EXT(T)'!N134=\"\",\"\",+'[1]EXT(T)'!N134)","v":175.92259141000022},{"$f":"IF(+'[1]EXT(T)'!O134=\"\",\"\",+'[1]EXT(T)'!O134)","v":305.56871999999998},{"$f":"IF(+'[1]EXT(T)'!P134=\"\",\"\",+'[1]EXT(T)'!P134)","v":287.31301895369006},{"$f":"IF(+'[1]EXT(T)'!Q134=\"\",\"\",+'[1]EXT(T)'!Q134)","v":549.09999999999991},{"$f":"IF(+'[1]EXT(T)'!R134=\"\",\"\",+'[1]EXT(T)'!R134)","v":896.39999999999986},{"$f":"IF(+'[1]EXT(T)'!S134=\"\",\"\",+'[1]EXT(T)'!S134)","v":236.09166432000006},{"$f":"IF(+'[1]EXT(T)'!U134=\"\",\"\",+'[1]EXT(T)'!U134)","v":2961.4905976595664},{"$f":"IF(+'[1]EXT(T)'!V134=\"\",\"\",+'[1]EXT(T)'!V134)","v":3197.5822619795663},{"$f":"IF(+'[1]EXT(T)'!W134=\"\",\"\",+'[1]EXT(T)'!W134)","v":747.18626729587629},{"$f":"IF(+'[1]EXT(T)'!X134=\"\",\"\",+'[1]EXT(T)'!X134)","v":175.92259141000022},{"$f":"IF(+'[1]EXT(T)'!Y134=\"\",\"\",+'[1]EXT(T)'!Y134)","v":305.56871999999998},{"$f":"IF(+'[1]EXT(T)'!Z134=\"\",\"\",+'[1]EXT(T)'!Z134)","v":287.31301895369006},{"$f":"IF(+'[1]EXT(T)'!AA134=\"\",\"\",+'[1]EXT(T)'!AA134)","v":549.09999999999991},{"$f":"IF(+'[1]EXT(T)'!AB134=\"\",\"\",+'[1]EXT(T)'!AB134)","v":896.39999999999986},{"$f":"IF(+'[1]EXT(T)'!AC134=\"\",\"\",+'[1]EXT(T)'!AC134)","v":236.09166432000006},{"$f":"IF(+'[1]EXT(T)'!AE134=\"\",\"\",+'[1]EXT(T)'!AE134)","v":2961.4905976595664},{"$f":"IF(+'[1]EXT(T)'!AF134=\"\",\"\",+'[1]EXT(T)'!AF134)","v":3197.5822619795663},{"$f":"IF(+'[1]EXT(T)'!AY134=\"\",\"\",+'[1]EXT(T)'!AY134)","v":9599.2830286516746},{"$f":"IF(+'[1]EXT(T)'!AZ134=\"\",\"\",+'[1]EXT(T)'!AZ134)","v":9705.8112969216745},{"$f":"IF(+'[1]EXT(T)'!AQ134=\"\",\"\",+'[1]EXT(T)'!AQ134)","v":126.55532961},{"$f":"IF(+'[1]EXT(T)'!AR134=\"\",\"\",+'[1]EXT(T)'!AR134)","v":1701.78},{"$f":"IF(+'[1]EXT(T)'!AS134=\"\",\"\",+'[1]EXT(T)'!AS134)","v":3135.2999999999997},{"$f":"IF(+'[1]EXT(T)'!AT134=\"\",\"\",+'[1]EXT(T)'!AT134)","v":1586.56},{"$f":"IF(+'[1]EXT(T)'!AU134=\"\",\"\",+'[1]EXT(T)'!AU134)","v":500.4},{"$f":"IF(+'[1]EXT(T)'!AV134=\"\",\"\",+'[1]EXT(T)'!AV134)","v":2548.6876990416754},{"$f":"IF(+'[1]EXT(T)'!AW134=\"\",\"\",+'[1]EXT(T)'!AW134)","v":106.52826827},{"$f":"IF(OR(W127=\"\",X127=\"\",Y127=\"\",Z127=\"\",AA127=\"\",AB127=\"\"),\"\",W127+X127+Y127+Z127+AA127+AB127)","v":9599.2830286516746},{"$f":"IF(OR(X127=\"\",Y127=\"\",Z127=\"\",AA127=\"\",AB127=\"\",AC127=\"\",W127=\"\"),\"\",X127+W127+Y127+Z127+AA127+AB127+AC127)","v":9705.8112969216745}]
[null,"II",{"$f":"IF(+'[1]EXT(T)'!M135=\"\",\"\",+'[1]EXT(T)'!M135)","v":712.85457227948564},{"$f":"IF(+'[1]EXT(T)'!N135=\"\",\"\",+'[1]EXT(T)'!N135)","v":237.96631214000047},{"$f":"IF(+'[1]EXT(T)'!O135=\"\",\"\",+'[1]EXT(T)'!O135)","v":280.73635999999999},{"$f":"IF(+'[1]EXT(T)'!P135=\"\",\"\",+'[1]EXT(T)'!P135)","v":140.28721755012637},{"$f":"IF(+'[1]EXT(T)'!Q135=\"\",\"\",+'[1]EXT(T)'!Q135)","v":170.7},{"$f":"IF(+'[1]EXT(T)'!R135=\"\",\"\",+'[1]EXT(T)'!R135)","v":835.6},{"$f":"IF(+'[1]EXT(T)'!S135=\"\",\"\",+'[1]EXT(T)'!S135)","v":324.71672712999998},{"$f":"IF(+'[1]EXT(T)'!U135=\"\",\"\",+'[1]EXT(T)'!U135)","v":2378.1444619696126},{"$f":"IF(+'[1]EXT(T)'!V135=\"\",\"\",+'[1]EXT(T)'!V135)","v":2702.8611890996126},{"$f":"IF(+'[1]EXT(T)'!W135=\"\",\"\",+'[1]EXT(T)'!W135)","v":1460.040839575362},{"$f":"IF(+'[1]EXT(T)'!X135=\"\",\"\",+'[1]EXT(T)'!X135)","v":413.88890355000069},{"$f":"IF(+'[1]EXT(T)'!Y135=\"\",\"\",+'[1]EXT(T)'!Y135)","v":586.30507999999998},{"$f":"IF(+'[1]EXT(T)'!Z135=\"\",\"\",+'[1]EXT(T)'!Z135)","v":427.6002365038164},{"$f":"IF(+'[1]EXT(T)'!AA135=\"\",\"\",+'[1]EXT(T)'!AA135)","v":719.8},{"$f":"IF(+'[1]EXT(T)'!AB135=\"\",\"\",+'[1]EXT(T)'!AB135)","v":1732},{"$f":"IF(+'[1]EXT(T)'!AC135=\"\",\"\",+'[1]EXT(T)'!AC135)","v":560.80839145000004},{"$f":"IF(+'[1]EXT(T)'!AE135=\"\",\"\",+'[1]EXT(T)'!AE135)","v":5339.6350596291795},{"$f":"IF(+'[1]EXT(T)'!AF135=\"\",\"\",+'[1]EXT(T)'!AF135)","v":5900.4434510791789},{"$f":"IF(+'[1]EXT(T)'!AY135=\"\",\"\",+'[1]EXT(T)'!AY135)","v":20658.568019312566},{"$f":"IF(+'[1]EXT(T)'!AZ135=\"\",\"\",+'[1]EXT(T)'!AZ135)","v":20896.223273582567},{"$f":"IF(+'[1]EXT(T)'!AQ135=\"\",\"\",+'[1]EXT(T)'!AQ135-'[1]EXT(T)'!AQ134)","v":139.81280549000002},{"$f":"IF(+'[1]EXT(T)'!AR135=\"\",\"\",+'[1]EXT(T)'!AR135-'[1]EXT(T)'!AR134)","v":1947.8700000000001},{"$f":"IF(+'[1]EXT(T)'!AS135=\"\",\"\",+'[1]EXT(T)'!AS135-'[1]EXT(T)'!AS134)","v":3830.9},{"$f":"IF(+'[1]EXT(T)'!AT135=\"\",\"\",+'[1]EXT(T)'!AT135-'[1]EXT(T)'!AT134)","v":1896.5180999999998},{"$f":"IF(+'[1]EXT(T)'!AU135=\"\",\"\",+'[1]EXT(T)'!AU135-'[1]EXT(T)'!AU134)","v":529.80000000000007},{"$f":"IF(+'[1]EXT(T)'!AV135=\"\",\"\",+'[1]EXT(T)'!AV135-'[1]EXT(T)'!AV134)","v":2714.3840851708906},{"$f":"IF(+'[1]EXT(T)'!AW135=\"\",\"\",+'[1]EXT(T)'!AW135-'[1]EXT(T)'!AW134)","v":131.12698599999999},{"$f":"IF(OR(W128=\"\",X128=\"\",Y128=\"\",Z128=\"\",AA128=\"\",AB128=\"\"),\"\",W128+X128+Y128+Z128+AA128+AB128)","v":11059.28499066089},11190.411976660889]
[null,"III",{"$f":"IF(+'[1]EXT(T)'!M136=\"\",\"\",+'[1]EXT(T)'!M136)","v":1100.2836864111237},{"$f":"IF(+'[1]EXT(T)'!N136=\"\",\"\",+'[1]EXT(T)'!N136)","v":-19.05893741999995},{"$f":"IF(+'[1]EXT(T)'!O136=\"\",\"\",+'[1]EXT(T)'!O136)","v":235.14592000000005},{"$f":"IF(+'[1]EXT(T)'!P136=\"\",\"\",+'[1]EXT(T)'!P136)","v":37.685439074712349},{"$f":"IF(+'[1]EXT(T)'!Q136=\"\",\"\",+'[1]EXT(T)'!Q136)","v":233.1},{"$f":"IF(+'[1]EXT(T)'!R136=\"\",\"\",+'[1]EXT(T)'!R136)","v":678.89999999999986},{"$f":"IF(+'[1]EXT(T)'!S136=\"\",\"\",+'[1]EXT(T)'!S136)","v":585.68349636000005},{"$f":"IF(+'[1]EXT(T)'!U136=\"\",\"\",+'[1]EXT(T)'!U136)","v":2266.0561080658358},{"$f":"IF(+'[1]EXT(T)'!V136=\"\",\"\",+'[1]EXT(T)'!V136)","v":2851.7396044258358},{"$f":"IF(+'[1]EXT(T)'!W136=\"\",\"\",+'[1]EXT(T)'!W136)","v":2560.3245259864857},{"$f":"IF(+'[1]EXT(T)'!X136=\"\",\"\",+'[1]EXT(T)'!X136)","v":394.82996613000074},{"$f":"IF(+'[1]EXT(T)'!Y136=\"\",\"\",+'[1]EXT(T)'!Y136)","v":821.45100000000002},{"$f":"IF(+'[1]EXT(T)'!Z136=\"\",\"\",+'[1]EXT(T)'!Z136)","v":465.28567557852875},{"$f":"IF(+'[1]EXT(T)'!AA136=\"\",\"\",+'[1]EXT(T)'!AA136)","v":952.9},{"$f":"IF(+'[1]EXT(T)'!AB136=\"\",\"\",+'[1]EXT(T)'!AB136)","v":2410.8999999999996},{"$f":"IF(+'[1]EXT(T)'!AC136=\"\",\"\",+'[1]EXT(T)'!AC136)","v":1146.4918878100002},{"$f":"IF(+'[1]EXT(T)'!AE136=\"\",\"\",+'[1]EXT(T)'!AE136)","v":7605.6911676950149},{"$f":"IF(+'[1]EXT(T)'!AF136=\"\",\"\",+'[1]EXT(T)'!AF136)","v":8752.1830555050146},{"$f":"IF(+'[1]EXT(T)'!AY136=\"\",\"\",+'[1]EXT(T)'!AY136)","v":31711.753590510038},{"$f":"IF(+'[1]EXT(T)'!AZ136=\"\",\"\",+'[1]EXT(T)'!AZ136)","v":32089.235248090037},{"$f":"IF(+'[1]EXT(T)'!AQ136=\"\",\"\",+'[1]EXT(T)'!AQ136-'[1]EXT(T)'!AQ135)","v":149.30488045000004},{"$f":"IF(+'[1]EXT(T)'!AR136=\"\",\"\",+'[1]EXT(T)'!AR136-'[1]EXT(T)'!AR135)","v":1835.1200000000003},{"$f":"IF(+'[1]EXT(T)'!AS136=\"\",\"\",+'[1]EXT(T)'!AS136-'[1]EXT(T)'!AS135)","v":4042.2},{"$f":"IF(+'[1]EXT(T)'!AT136=\"\",\"\",+'[1]EXT(T)'!AT136-'[1]EXT(T)'!AT135)","v":1901.2223000000004},{"$f":"IF(+'[1]EXT(T)'!AU136=\"\",\"\",+'[1]EXT(T)'!AU136-'[1]EXT(T)'!AU135)","v":527.09999999999991},{"$f":"IF(+'[1]EXT(T)'!AV136=\"\",\"\",+'[1]EXT(T)'!AV136-'[1]EXT(T)'!AV135)","v":2598.2383907474741},{"$f":"IF(+'[1]EXT(T)'!AW136=\"\",\"\",+'[1]EXT(T)'!AW136-'[1]EXT(T)'!AW135)","v":139.82640330999999},{"$f":"IF(OR(W129=\"\",X129=\"\",Y129=\"\",Z129=\"\",AA129=\"\",AB129=\"\"),\"\",W129+X129+Y129+Z129+AA129+AB129)","v":11053.185571197475},11193.011974507475]
[null,"IV",{"$f":"IF(+'[1]EXT(T)'!M137=\"\",\"\",+'[1]EXT(T)'!M137)","v":635.35131103145147},{"$f":"IF(+'[1]EXT(T)'!N137=\"\",\"\",+'[1]EXT(T)'!N137)","v":-80.642531639999774},{"$f":"IF(+'[1]EXT(T)'!O137=\"\",\"\",+'[1]EXT(T)'!O137)","v":2650.2124899999999},{"$f":"IF(+'[1]EXT(T)'!P137=\"\",\"\",+'[1]EXT(T)'!P137)","v":234.95912386397487},{"$f":"IF(+'[1]EXT(T)'!Q137=\"\",\"\",+'[1]EXT(T)'!Q137)","v":267.20000000000005},{"$f":"IF(+'[1]EXT(T)'!R137=\"\",\"\",+'[1]EXT(T)'!R137)","v":691.19999999999982},{"$f":"IF(+'[1]EXT(T)'!S137=\"\",\"\",+'[1]EXT(T)'!S137)","v":697.31402357000002},{"$f":"IF(+'[1]EXT(T)'!U137=\"\",\"\",+'[1]EXT(T)'!U137)","v":4398.2803932554261},{"$f":"IF(+'[1]EXT(T)'!V137=\"\",\"\",+'[1]EXT(T)'!V137)","v":5095.5944168254264},{"$f":"IF(+'[1]EXT(T)'!W137=\"\",\"\",+'[1]EXT(T)'!W137)","v":3195.6758370179373},{"$f":"IF(+'[1]EXT(T)'!X137=\"\",\"\",+'[1]EXT(T)'!X137)","v":314.18743449000095},{"$f":"IF(+'[1]EXT(T)'!Y137=\"\",\"\",+'[1]EXT(T)'!Y137)","v":3471.6634899999999},{"$f":"IF(+'[1]EXT(T)'!Z137=\"\",\"\",+'[1]EXT(T)'!Z137)","v":700.24479944250356},{"$f":"IF(+'[1]EXT(T)'!AA137=\"\",\"\",+'[1]EXT(T)'!AA137)","v":1220.0999999999999},{"$f":"IF(+'[1]EXT(T)'!AB137=\"\",\"\",+'[1]EXT(T)'!AB137)","v":3102.0999999999995},{"$f":"IF(+'[1]EXT(T)'!AC137=\"\",\"\",+'[1]EXT(T)'!AC137)","v":1843.8059113800002},{"$f":"IF(+'[1]EXT(T)'!AE137=\"\",\"\",+'[1]EXT(T)'!AE137)","v":12003.971560950442},{"$f":"IF(+'[1]EXT(T)'!AF137=\"\",\"\",+'[1]EXT(T)'!AF137)","v":13847.777472330441},{"$f":"IF(+'[1]EXT(T)'!AY137=\"\",\"\",+'[1]EXT(T)'!AY137)","v":43291.056744179834},{"$f":"IF(+'[1]EXT(T)'!AZ137=\"\",\"\",+'[1]EXT(T)'!AZ137)","v":43803.766612999832},{"$f":"IF(+'[1]EXT(T)'!AQ137=\"\",\"\",+'[1]EXT(T)'!AQ137-'[1]EXT(T)'!AQ136)","v":143.14142834999996},{"$f":"IF(+'[1]EXT(T)'!AR137=\"\",\"\",+'[1]EXT(T)'!AR137-'[1]EXT(T)'!AR136)","v":2032.37},{"$f":"IF(+'[1]EXT(T)'!AS137=\"\",\"\",+'[1]EXT(T)'!AS137-'[1]EXT(T)'!AS136)","v":4287.3000000000011},{"$f":"IF(+'[1]EXT(T)'!AT137=\"\",\"\",+'[1]EXT(T)'!AT137-'[1]EXT(T)'!AT136)","v":1985.7327000000005},{"$f":"IF(+'[1]EXT(T)'!AU137=\"\",\"\",+'[1]EXT(T)'!AU137-'[1]EXT(T)'!AU136)","v":589.59999999999968},{"$f":"IF(+'[1]EXT(T)'!AV137=\"\",\"\",+'[1]EXT(T)'!AV137-'[1]EXT(T)'!AV136)","v":2541.1590253197946},{"$f":"IF(+'[1]EXT(T)'!AW137=\"\",\"\",+'[1]EXT(T)'!AW137-'[1]EXT(T)'!AW136)","v":135.22821124000001},11579.303153669796,{"$f":"IF(OR(X130=\"\",Y130=\"\",Z130=\"\",AA130=\"\",AB130=\"\",AC130=\"\",W130=\"\"),\"\",X130+W130+Y130+Z130+AA130+AB130+AC130)","v":11714.531364909797}]
[2022,"I",{"$f":"IF(+'[1]EXT(T)'!M138=\"\",\"\",+'[1]EXT(T)'!M138)","v":853.62256925679344},{"$f":"IF(+'[1]EXT(T)'!N138=\"\",\"\",+'[1]EXT(T)'!N138)","v":165.71895380000024},{"$f":"IF(+'[1]EXT(T)'!O138=\"\",\"\",+'[1]EXT(T)'!O138)","v":236.23506000000003},{"$f":"IF(+'[1]EXT(T)'!P138=\"\",\"\",+'[1]EXT(T)'!P138)","v":330.54826482097917},{"$f":"IF(+'[1]EXT(T)'!Q138=\"\",\"\",+'[1]EXT(T)'!Q138)","v":480.8},{"$f":"IF(+'[1]EXT(T)'!R138=\"\",\"\",+'[1]EXT(T)'!R138)","v":1027.7},{"$f":"IF(+'[1]EXT(T)'!S138=\"\",\"\",+'[1]EXT(T)'!S138)","v":""},{"$f":"IF(+'[1]EXT(T)'!U138=\"\",\"\",+'[1]EXT(T)'!U138)","v":3094.6248478777734},{"$f":"IF(+'[1]EXT(T)'!V138=\"\",\"\",+'[1]EXT(T)'!V138)","v":""},{"$f":"IF(+'[1]EXT(T)'!W138=\"\",\"\",+'[1]EXT(T)'!W138)","v":853.62256925679344},{"$f":"IF(+'[1]EXT(T)'!X138=\"\",\"\",+'[1]EXT(T)'!X138)","v":165.71895380000024},{"$f":"IF(+'[1]EXT(T)'!Y138=\"\",\"\",+'[1]EXT(T)'!Y138)","v":236.23506000000003},{"$f":"IF(+'[1]EXT(T)'!Z138=\"\",\"\",+'[1]EXT(T)'!Z138)","v":330.54826482097917},{"$f":"IF(+'[1]EXT(T)'!AA138=\"\",\"\",+'[1]EXT(T)'!AA138)","v":480.8},{"$f":"IF(+'[1]EXT(T)'!AB138=\"\",\"\",+'[1]EXT(T)'!AB138)","v":1027.7},null,{"$f":"IF(+'[1]EXT(T)'!AE138=\"\",\"\",+'[1]EXT(T)'!AE138)","v":3094.6248478777734},{"$f":"IF(+'[1]EXT(T)'!AF138=\"\",\"\",+'[1]EXT(T)'!AF138)","v":""},{"$f":"IF(+'[1]EXT(T)'!AY138=\"\",\"\",+'[1]EXT(T)'!AY138)","v":10846.280569037139},{"$f":"IF(+'[1]EXT(T)'!AZ138=\"\",\"\",+'[1]EXT(T)'!AZ138)","v":""},{"$f":"IF(+'[1]EXT(T)'!AQ138=\"\",\"\",+'[1]EXT(T)'!AQ138)","v":141.17356319999999},{"$f":"IF(+'[1]EXT(T)'!AR138=\"\",\"\",+'[1]EXT(T)'!AR138)","v":1802.2600000000002},{"$f":"IF(+'[1]EXT(T)'!AS138=\"\",\"\",+'[1]EXT(T)'!AS138)","v":3936.5},{"$f":"IF(+'[1]EXT(T)'!AT138=\"\",\"\",+'[1]EXT(T)'!AT138)","v":1937.5436},{"$f":"IF(+'[1]EXT(T)'!AU138=\"\",\"\",+'[1]EXT(T)'!AU138)","v":632.59999999999991},{"$f":"IF(+'[1]EXT(T)'!AV138=\"\",\"\",+'[1]EXT(T)'!AV138)","v":2396.2034058371382},{"$f":"IF(+'[1]EXT(T)'!AW138=\"\",\"\",+'[1]EXT(T)'!AW138)","v":""},{"$f":"IF(OR(W131=\"\",X131=\"\",Y131=\"\",Z131=\"\",AA131=\"\",AB131=\"\"),\"\",W131+X131+Y131+Z131+AA131+AB131)","v":10846.280569037139},{"$f":"IF(OR(X131=\"\",Y131=\"\",Z131=\"\",AA131=\"\",AB131=\"\",AC131=\"\",W131=\"\"),\"\",X131+W131+Y131+Z131+AA131+AB131+AC131)","v":""}]
[null,"II",{"$f":"IF(+'[1]EXT(T)'!M139=\"\",\"\",+'[1]EXT(T)'!M139)","v":""},{"$f":"IF(+'[1]EXT(T)'!N139=\"\",\"\",+'[1]EXT(T)'!N139)","v":""},{"$f":"IF(+'[1]EXT(T)'!O139=\"\",\"\",+'[1]EXT(T)'!O139)","v":""},{"$f":"IF(+'[1]EXT(T)'!P139=\"\",\"\",+'[1]EXT(T)'!P139)","v":""},{"$f":"IF(+'[1]EXT(T)'!Q139=\"\",\"\",+'[1]EXT(T)'!Q139)","v":""},{"$f":"IF(+'[1]EXT(T)'!R139=\"\",\"\",+'[1]EXT(T)'!R139)","v":""},{"$f":"IF(+'[1]EXT(T)'!S139=\"\",\"\",+'[1]EXT(T)'!S139)","v":""},{"$f":"IF(+'[1]EXT(T)'!U139=\"\",\"\",+'[1]EXT(T)'!U139)","v":""},{"$f":"IF(+'[1]EXT(T)'!V139=\"\",\"\",+'[1]EXT(T)'!V139)","v":""},{"$f":"IF(+'[1]EXT(T)'!W139=\"\",\"\",+'[1]EXT(T)'!W139)","v":""},{"$f":"IF(+'[1]EXT(T)'!X139=\"\",\"\",+'[1]EXT(T)'!X139)","v":""},{"$f":"IF(+'[1]EXT(T)'!Y139=\"\",\"\",+'[1]EXT(T)'!Y139)","v":""},{"$f":"IF(+'[1]EXT(T)'!Z139=\"\",\"\",+'[1]EXT(T)'!Z139)","v":""},{"$f":"IF(+'[1]EXT(T)'!AA139=\"\",\"\",+'[1]EXT(T)'!AA139)","v":""},{"$f":"IF(+'[1]EXT(T)'!AB139=\"\",\"\",+'[1]EXT(T)'!AB139)","v":""},{"$f":"IF(+'[1]EXT(T)'!AC139=\"\",\"\",+'[1]EXT(T)'!AC139)","v":""},{"$f":"IF(+'[1]EXT(T)'!AE139=\"\",\"\",+'[1]EXT(T)'!AE139)","v":""},{"$f":"IF(+'[1]EXT(T)'!AF139=\"\",\"\",+'[1]EXT(T)'!AF139)","v":""},{"$f":"IF(+'[1]EXT(T)'!AY139=\"\",\"\",+'[1]EXT(T)'!AY139)","v":""},{"$f":"IF(+'[1]EXT(T)'!AZ139=\"\",\"\",+'[1]EXT(T)'!AZ139)","v":""},{"$f":"IF(+'[1]EXT(T)'!AQ139=\"\",\"\",+'[1]EXT(T)'!AQ139-'[1]EXT(T)'!AQ138)","v":""},{"$f":"IF(+'[1]EXT(T)'!AR139=\"\",\"\",+'[1]EXT(T)'!AR139-'[1]EXT(T)'!AR138)","v":""},{"$f":"IF(+'[1]EXT(T)'!AS139=\"\",\"\",+'[1]EXT(T)'!AS139-'[1]EXT(T)'!AS138)","v":""},{"$f":"IF(+'[1]EXT(T)'!AT139=\"\",\"\",+'[1]EXT(T)'!AT139-'[1]EXT(T)'!AT138)","v":""},{"$f":"IF(+'[1]EXT(T)'!AU139=\"\",\"\",+'[1]EXT(T)'!AU139-'[1]EXT(T)'!AU138)","v":""},{"$f":"IF(+'[1]EXT(T)'!AV139=\"\",\"\",+'[1]EXT(T)'!AV139-'[1]EXT(T)'!AV138)","v":""},{"$f":"IF(+'[1]EXT(T)'!AW139=\"\",\"\",+'[1]EXT(T)'!AW139-'[1]EXT(T)'!AW138)","v":""},{"$f":"IF(OR(W132=\"\",X132=\"\",Y132=\"\",Z132=\"\",AA132=\"\",AB132=\"\"),\"\",W132+X132+Y132+Z132+AA132+AB132)","v":""},{"$f":"IF(OR(X132=\"\",Y132=\"\",Z132=\"\",AA132=\"\",AB132=\"\",AC132=\"\",W132=\"\"),\"\",X132+W132+Y132+Z132+AA132+AB132+AC132)","v":""}]
[null,"III",{"$f":"IF(+'[1]EXT(T)'!M140=\"\",\"\",+'[1]EXT(T)'!M140)","v":""},{"$f":"IF(+'[1]EXT(T)'!N140=\"\",\"\",+'[1]EXT(T)'!N140)","v":""},{"$f":"IF(+'[1]EXT(T)'!O140=\"\",\"\",+'[1]EXT(T)'!O140)","v":""},{"$f":"IF(+'[1]EXT(T)'!P140=\"\",\"\",+'[1]EXT(T)'!P140)","v":""},{"$f":"IF(+'[1]EXT(T)'!Q140=\"\",\"\",+'[1]EXT(T)'!Q140)","v":""},{"$f":"IF(+'[1]EXT(T)'!R140=\"\",\"\",+'[1]EXT(T)'!R140)","v":""},{"$f":"IF(+'[1]EXT(T)'!S140=\"\",\"\",+'[1]EXT(T)'!S140)","v":""},{"$f":"IF(+'[1]EXT(T)'!U140=\"\",\"\",+'[1]EXT(T)'!U140)","v":""},{"$f":"IF(+'[1]EXT(T)'!V140=\"\",\"\",+'[1]EXT(T)'!V140)","v":""},{"$f":"IF(+'[1]EXT(T)'!W140=\"\",\"\",+'[1]EXT(T)'!W140)","v":""},{"$f":"IF(+'[1]EXT(T)'!X140=\"\",\"\",+'[1]EXT(T)'!X140)","v":""},{"$f":"IF(+'[1]EXT(T)'!Y140=\"\",\"\",+'[1]EXT(T)'!Y140)","v":""},{"$f":"IF(+'[1]EXT(T)'!Z140=\"\",\"\",+'[1]EXT(T)'!Z140)","v":""},{"$f":"IF(+'[1]EXT(T)'!AA140=\"\",\"\",+'[1]EXT(T)'!AA140)","v":""},{"$f":"IF(+'[1]EXT(T)'!AB140=\"\",\"\",+'[1]EXT(T)'!AB140)","v":""},{"$f":"IF(+'[1]EXT(T)'!AC140=\"\",\"\",+'[1]EXT(T)'!AC140)","v":""},{"$f":"IF(+'[1]EXT(T)'!AE140=\"\",\"\",+'[1]EXT(T)'!AE140)","v":""},{"$f":"IF(+'[1]EXT(T)'!AF140=\"\",\"\",+'[1]EXT(T)'!AF140)","v":""},{"$f":"IF(+'[1]EXT(T)'!AY140=\"\",\"\",+'[1]EXT(T)'!AY140)","v":""},{"$f":"IF(+'[1]EXT(T)'!AZ140=\"\",\"\",+'[1]EXT(T)'!AZ140)","v":""},{"$f":"IF(+'[1]EXT(T)'!AQ140=\"\",\"\",+'[1]EXT(T)'!AQ140-'[1]EXT(T)'!AQ139)","v":""},{"$f":"IF(+'[1]EXT(T)'!AR140=\"\",\"\",+'[1]EXT(T)'!AR140-'[1]EXT(T)'!AR139)","v":""},{"$f":"IF(+'[1]EXT(T)'!AS140=\"\",\"\",+'[1]EXT(T)'!AS140-'[1]EXT(T)'!AS139)","v":""},{"$f":"IF(+'[1]EXT(T)'!AT140=\"\",\"\",+'[1]EXT(T)'!AT140-'[1]EXT(T)'!AT139)","v":""},{"$f":"IF(+'[1]EXT(T)'!AU140=\"\",\"\",+'[1]EXT(T)'!AU140-'[1]EXT(T)'!AU139)","v":""},{"$f":"IF(+'[1]EXT(T)'!AV140=\"\",\"\",+'[1]EXT(T)'!AV140-'[1]EXT(T)'!AV139)","v":""},{"$f":"IF(+'[1]EXT(T)'!AW140=\"\",\"\",+'[1]EXT(T)'!AW140-'[1]EXT(T)'!AW139)","v":""},"",""]
[null,"IV",{"$f":"IF(+'[1]EXT(T)'!M141=\"\",\"\",+'[1]EXT(T)'!M141)","v":""},{"$f":"IF(+'[1]EXT(T)'!N141=\"\",\"\",+'[1]EXT(T)'!N141)","v":""},{"$f":"IF(+'[1]EXT(T)'!O141=\"\",\"\",+'[1]EXT(T)'!O141)","v":""},{"$f":"IF(+'[1]EXT(T)'!P141=\"\",\"\",+'[1]EXT(T)'!P141)","v":""},{"$f":"IF(+'[1]EXT(T)'!Q141=\"\",\"\",+'[1]EXT(T)'!Q141)","v":""},{"$f":"IF(+'[1]EXT(T)'!R141=\"\",\"\",+'[1]EXT(T)'!R141)","v":""},{"$f":"IF(+'[1]EXT(T)'!S141=\"\",\"\",+'[1]EXT(T)'!S141)","v":""},{"$f":"IF(+'[1]EXT(T)'!U141=\"\",\"\",+'[1]EXT(T)'!U141)","v":""},{"$f":"IF(+'[1]EXT(T)'!V141=\"\",\"\",+'[1]EXT(T)'!V141)","v":""},{"$f":"IF(+'[1]EXT(T)'!W141=\"\",\"\",+'[1]EXT(T)'!W141)","v":""},{"$f":"IF(+'[1]EXT(T)'!X141=\"\",\"\",+'[1]EXT(T)'!X141)","v":""},{"$f":"IF(+'[1]EXT(T)'!Y141=\"\",\"\",+'[1]EXT(T)'!Y141)","v":""},{"$f":"IF(+'[1]EXT(T)'!Z141=\"\",\"\",+'[1]EXT(T)'!Z141)","v":""},{"$f":"IF(+'[1]EXT(T)'!AA141=\"\",\"\",+'[1]EXT(T)'!AA141)","v":""},{"$f":"IF(+'[1]EXT(T)'!AB141=\"\",\"\",+'[1]EXT(T)'!AB141)","v":""},{"$f":"IF(+'[1]EXT(T)'!AC141=\"\",\"\",+'[1]EXT(T)'!AC141)","v":""},{"$f":"IF(+'[1]EXT(T)'!AE141=\"\",\"\",+'[1]EXT(T)'!AE141)","v":""},{"$f":"IF(+'[1]EXT(T)'!AF141=\"\",\"\",+'[1]EXT(T)'!AF141)","v":""},{"$f":"IF(+'[1]EXT(T)'!AY141=\"\",\"\",+'[1]EXT(T)'!AY141)","v":""},{"$f":"IF(+'[1]EXT(T)'!AZ141=\"\",\"\",+'[1]EXT(T)'!AZ141)","v":""},{"$f":"IF(+'[1]EXT(T)'!AQ141=\"\",\"\",+'[1]EXT(T)'!AQ141-'[1]EXT(T)'!AQ140)","v":""},{"$f":"IF(+'[1]EXT(T)'!AR141=\"\",\"\",+'[1]EXT(T)'!AR141-'[1]EXT(T)'!AR140)","v":""},{"$f":"IF(+'[1]EXT(T)'!AS141=\"\",\"\",+'[1]EXT(T)'!AS141-'[1]EXT(T)'!AS140)","v":""},{"$f":"IF(+'[1]EXT(T)'!AT141=\"\",\"\",+'[1]EXT(T)'!AT141-'[1]EXT(T)'!AT140)","v":""},{"$f":"IF(+'[1]EXT(T)'!AU141=\"\",\"\",+'[1]EXT(T)'!AU141-'[1]EXT(T)'!AU140)","v":""},{"$f":"IF(+'[1]EXT(T)'!AV141=\"\",\"\",+'[1]EXT(T)'!AV141-'[1]EXT(T)'!AV140)","v":""},{"$f":"IF(+'[1]EXT(T)'!AW141=\"\",\"\",+'[1]EXT(T)'!AW141-'[1]EXT(T)'!AW140)","v":""},"",{"$f":"IF(OR(X134=\"\",Y134=\"\",Z134=\"\",AA134=\"\",AB134=\"\",AC134=\"\",W134=\"\"),\"\",X134+W134+Y134+Z134+AA134+AB134+AC134)","v":""}]

{"sheet":"Saldo Operacional","index":13,"n_rows":15,"n_cols":8,"rows_kept":15,"cut":false,"hidden":true,"merged":[[14,5,15,5],[3,1,4,1],[3,2,4,2],[1,0,1,2],[0,0,0,2],[3,6,4,6],[0,4,0,6],[1,4,1,6],[3,5,4,5]]}
["CARD",null,null,null,"CAPARD"]
["Saldo operacional del GC / PIB Regional",null,null,null,"Saldo operacional del GC / PIB Regional"]
[]
[null,{"$f":"+COUNTIF('Datos_Regional (M)'!CO:CO,\"n.d.\")+COUNT('Datos_Regional (M)'!CO:CO)+2","v":389},{"$f":"INDEX('Datos_Regional (M)'!B:B,$B$4)","v":"marzo"},"oct",null,{"$f":"+COUNTIF('Datos_Regional (M)'!CR:CR,\"n.d.\")+COUNT('Datos_Regional (M)'!CR:CR)+2","v":389},{"$f":"INDEX('Datos_Regional (M)'!B:B,$F$4)","v":"marzo"},"set"]
[]
[{"$f":"B6&\"-\"&$C$4","v":"2016-marzo"},{"$f":"B7-1","v":2016},{"$f":"VLOOKUP(A6,'Datos_Regional (M)'!C:CR,91,0)/100","v":-5.8726775536489632E-3},null,{"$f":"F6&\"-\"&$G$4","v":"2016-marzo"},{"$f":"F7-1","v":2016},{"$f":"VLOOKUP(E6,'Datos_Regional (M)'!C:CR,94,0)/100","v":-7.1973386483255184E-3}]
["2017-marzo",2017,{"$f":"VLOOKUP(A7,'Datos_Regional (M)'!C:CR,91,0)/100","v":-4.1960084013387446E-3},null,"2017-marzo",2017,{"$f":"VLOOKUP(E7,'Datos_Regional (M)'!C:CR,94,0)/100","v":-4.2227608234062103E-3}]
["2018-marzo",2018,{"$f":"VLOOKUP(A8,'Datos_Regional (M)'!C:CR,91,0)/100","v":-3.1527849126114765E-3},null,"2018-marzo",2018,{"$f":"VLOOKUP(E8,'Datos_Regional (M)'!C:CR,94,0)/100","v":-5.1574857007222787E-3}]
["2019-marzo",2019,{"$f":"VLOOKUP(A9,'Datos_Regional (M)'!C:CR,91,0)/100","v":-5.2886498409223702E-3},null,"2019-marzo",2019,{"$f":"VLOOKUP(E9,'Datos_Regional (M)'!C:CR,94,0)/100","v":-7.9290457351865878E-3}]
["2020-marzo",2020,{"$f":"VLOOKUP(A10,'Datos_Regional (M)'!C:CR,91,0)/100","v":-7.6051652320710565E-3},null,"2020-marzo",2020,{"$f":"VLOOKUP(E10,'Datos_Regional (M)'!C:CR,94,0)/100","v":-9.9109588411778332E-3}]
["2021-marzo",{"$f":"B12-1","v":2021},{"$f":"VLOOKUP(A11,'Datos_Regional (M)'!C:CR,91,0)/100","v":-3.2467101410090793E-3},null,"2021-marzo",{"$f":"F12-1","v":2021},{"$f":"VLOOKUP(E11,'Datos_Regional (M)'!C:CR,94,0)/100","v":-5.8288813925510587E-3}]
["2022-marzo",{"$f":"INDEX('Datos_Regional (M)'!A:A,$B$4)","v":2022},{"$f":"VLOOKUP(A12,'Datos_Regional (M)'!C:CR,91,0)/100","v":-1.6020392342427719E-3},null,"2022-marzo",{"$f":"INDEX('Datos_Regional (M)'!A:A,$F$4)","v":2022},{"$f":"VLOOKUP(E12,'Datos_Regional (M)'!C:CR,94,0)/100","v":-4.9038739606756115E-3}]
[]
[]
[null,null,null,null,null,"=+CONTAR.SI('Datos_Regional (M)'!CR:CR;\"n.d.\")+CONTAR('Datos_Regional (M)'!CR:CR)+2"]

{"sheet":"Datos Gráfico-País","index":14,"n_rows":432,"n_cols":161,"rows_kept":432,"cut":false,"hidden":true,"merged":[[360,1,371,1],[348,1,359,1],[174,1,185,1],[408,1,419,1],[186,1,197,1],[372,1,383,1],[384,1,395,1],[198,1,209,1],[114,1,125,1],[336,1,347,1],[252,1,263,1],[264,1,275,1],[276,1,287,1],[288,1,299,1],[300,1,311,1],[228,1,239,1],[240,1,251,1],[223,1,227,1],[126,1,137,1],[312,1,323,1],[138,1,149,1],[150,1,161,1],[162,1,173,1],[324,1,335,1],[1,159,3,159],[223,159,225,159],[223,133,225,133],[223,2,227,2],[1,84,3,90],[1,93,3,99],[1,102,3,108],[1,134,3,134],[1,111,3,119],[1,122,3,130],[1,137,3,145],[1,133,3,133],[1,2,5,2],[1,57,3,63],[1,48,3,54],[1,66,3,72],[1,160,3,160],[223,3,225,9],[223,12,225,18],[223,21,225,27],[223,30,225,36],[223,39,225,45],[223,48,225,54],[223,57,225,63],[223,66,225,72],[223,75,225,81],[223,84,225,90],[223,93,225,99],[223,102,225,108],[223,134,225,134],[223,160,225,160],[1,39,3,45],[1,148,3,156],[223,111,225,119],[223,122,225,130],[223,137,225,145],[223,148,225,156],[420,1,431,1],[1,1,5,1],[6,1,17,1],[1,75,3,81],[30,1,41,1],[18,1,29,1],[1,3,3,9],[1,12,3,18],[1,21,3,27],[1,30,3,36],[42,1,53,1],[54,1,65,1],[66,1,77,1],[78,1,89,1],[90,1,101,1],[102,1,113,1]]}
[]
[null,"Año","Mes","Inflación",null,null,null,null,null,null,null,null,"T1,12 de la Tendencia Ciclo",null,null,null,null,null,null,null,null,"ITCER con USA",null,null,null,null,null,null,null,null,"Variación Interanual del Tipo de Cambio",null,null,null,null,null,null,null,null,"Reservas Internacionales Netas por país",null,null,null,null,null,null,null,null,"RIN a Base Monetaria Amplia por país",null,null,null,null,null,null,null,null,"Tasa de Interés pasiva Real en MN",null,null,null,null,null,null,null,null,"Tasa de Interés pasiva en ME (180 días)",null,null,null,null,null,null,null,null,"Tasa de Interés Activa Real en MN",null,null,null,null,null,null,null,null,"Tasa de Interés Activa en ME (180 días)",null,null,null,null,null,null,null,null,"Tasa de Interés de Política Monetaria",null,null,null,null,null,null,null,null,"Créditos de las OSD con el sector Privado, Variación Interanual ",null,null,null,null,null,null,null,null,"Promedio de Exportaciones Totales al mes por país y Región",null,null,null,null,null,null,null,null,null,null,"Promedio Móvil de Importaciones Totales al mes por país y Región",null,null,null,null,null,null,null,null,null,null,"CARD","CAPARD",null,null,"Exportaciones Totales al mes por país y Región",null,null,null,null,null,null,null,null,null,null,"Importaciones Totales al mes por país y Región",null,null,null,null,null,null,null,null,null,null,"CARD","CAPARD"]
[]
[]
[null,null,null,"Variación Interanual Costa Rica","Variación Interanual\nEl Salvador","Variación Interanual Guatemala","Variación Interanual Honduras","Variación Interanual Nicaragua","Variación Interanual Dominicana","Variación Interanual Panamá",null,null,"Variación Interanual Costa Rica","Variación Interanual\nEl Salvador","Variación Interanual Guatemala","Variación Interanual Honduras","Variación Interanual Nicaragua","Variación Interanual Dominicana","Variación Interanual Panamá",null,null,"Indice Original\nCosta Rica","Indice Original\nEl Salvador","Indice Original\nGuatemala","Indice Original\nHonduras","Indice Original\nNicaragua","Indice Original\nDominicana","Indice Original\nPanamá",null,null,"Variación Interanual Costa Rica","Variación Interanual\nEl Salvador","Variación Interanual Guatemala","Variación Interanual Honduras","Variación Interanual Nicaragua","Variación Interanual Dominicana","Variación Interanual Panamá",null,null,"RIN del BC Costa Rica","RIN del BC\nEl Salvador","RIN del BC\nGuatemala","RIN del BC\nHonduras","RIN del BC\nNicaragua","RIN del BC\nDominicana","RIN del BC\nPanmaná",null,null,"RIN del BC Costa Rica","RIN del BC\nEl Salvador","RIN del BC\nGuatemala","RIN del BC\nHonduras","RIN del BC\nNicaragua","RIN del BC\nDominicana","RIN del BC\nPanmaná",null,null,"Ti pasiva real MN\nCosta Rica","Ti pasiva real MN\nEl Salvador","Ti pasiva real MN\nGuatemala","Ti pasiva real MN\nHonduras","Ti pasiva real MN\nNicaragua","Ti pasiva real MN\nDominicana","Ti pasiva real MN\nPanamá",null,null,"Ti pasiva ME (prom nominal)\nCosta Rica","Ti pasiva ME (prom nominal)\nEl Salvador","Ti pasiva ME (prom nominal)\nGuatemala","Ti pasiva ME (prom nominal)\nHonduras","Ti pasiva ME (prom nominal)\nNicaragua","Ti pasiva ME (prom nominal)\nDominicana","Ti pasiva ME (prom nominal)\nPanamá",null,null,"Ti activa real MN\nCosta Rica","Ti activa real MN\nEl Salvador","Ti activa real MN\nGuatemala","Ti activa real MN\nHonduras","Ti activa real MN\nNicaragua","Ti activa real MN\nDominicana","Ti activa real MN\nPanamá",null,null,"Ti activa ME (prom nominal)\nCosta Rica","Ti activa ME (prom nominal)\nEl Salvador","Ti activa ME (prom nominal)\nGuatemala","Ti activa ME (prom nominal)\nHonduras","Ti activa ME (prom nominal)\nNicaragua","Ti activa ME (prom nominal)\nDominicana","Ti activa ME (prom nominal)\nPanamá",null,null,"Tasa de Política Monetaria\nCosta Rica","Tasa de Política Monetaria\nEl Salvador","Tasa de Política Monetaria\nGuatemala","Tasa de Política Monetaria\nHonduras","Tasa de Política Monetaria\nNicaragua","Tasa de Política Monetaria\nDominicana","Tasa de Política Monetaria\nPanamá",null,null,"Créditos de las OSD con el sector Privado Costa Rica","Créditos de las OSD con el sector Privado El Salvador","Créditos de las OSD con el sector Privado Guatemala","Créditos de las OSD con el sector Privado Honduras","Créditos de las OSD con el sector Privado Nicaragua","Créditos de las OSD con el sector Privado Dominicana","Créditos de las OSD con el sector Privado Panamá",null,null,"Exp Total FOB\nCosta Rica","Exp Total FOB\nEl Salvador","Exp Total FOB\nGuatemala","Exp Total FOB\nHonduras","Exp Total FOB\nNicaragua","Exp Total FOB\nDominicana","Exp Total FOB\nPanamá","Exp Total FOB\nRegional","Exp Total FOB\nCAPARD",null,null,"Imp Total CIF Costa Rica","Imp Total CIF El Salvador","Imp Total CIF Guatemala","Imp Total CIF Honduras","Imp Total CIF Nicaragua","Imp Total CIF Dominicana","Imp Total CIF  Panamá","Imp Total CIF Regional","Imp Total CIF CAPARD",null,null,"Saldo de Comercio Exterior Promedio Movil Regional al mes","Saldo de Comercio Exterior Promedio Movil Regional al mes",null,null,{"$f":"'[1]EXT Comercio(M)'!C8","v":"Exp Total FOB\nCosta Rica"},{"$f":"'[1]EXT Comercio(M)'!D8","v":"Exp Total FOB\nEl Salvador"},{"$f":"'[1]EXT Comercio(M)'!E8","v":"Exp Total FOB\nGuatemala"},{"$f":"'[1]EXT Comercio(M)'!F8","v":"Exp Total FOB\nHonduras"},{"$f":"'[1]EXT Comercio(M)'!G8","v":"Exp Total FOB\nNicaragua"},{"$f":"'[1]EXT Comercio(M)'!H8","v":"Exp Total FOB\nDominicana"},{"$f":"'[1]EXT Comercio(M)'!I8","v":"Exp Total FOB\nPanamá"},{"$f":"'[1]EXT Comercio(M)'!K8","v":"Exp Total FOB\nRegional"},{"$f":"'[1]EXT Comercio(M)'!L8","v":"Exp Total FOB\nCAPARD"},null,null,"Imp Total CIF\nCosta Rica","Imp Total CIF\nEl Salvador","Imp Total CIF\nGuatemala","Imp Total CIF\nHonduras","Imp Total CIF\nNicaragua","Imp Total CIF\nDominicana","Imp Total CIF\nPanamá","Imp Total CIF\nRegional","Imp Total CIF\nCAPARD",null,null,"Saldo de Comercio Regional al mes","Saldo de Comercio Regional al mes"]
[null,null,null,"%","%","%","%","%","%","%",null,null,"%","%","%","%","%","%","%",null,null,"Nivel","Nivel","Nivel","Nivel","Nivel","Nivel","Nivel",null,null,"%","%","%","%","%","%","%",null,null,"Millones US$","Millones US$","Millones US$","Millones US$","Millones US$","Millones US$","Millones US$",null,null,"Millones US$","Millones US$","Millones US$","Millones US$","Millones US$","Millones US$","Millones US$",null,null,"%","%","%","%","%","%","%",null,null,"%","%","%","%","%","%","%",null,null,"%","%","%","%","%","%","%",null,null,"%","%","%","%","%","%","%",null,null,"%","%","%","%","%","%","%",null,null,"%","%","%","%","%","%","%",null,null,"Millones US$","Millones US$","Millones US$","Millones US$","Millones US$","Millones US$","Millones US$","Millones US$","Millones US$",null,null,"Millones US$","Millones US$","Millones US$","Millones US$","Millones US$","Millones US$","Millones US$","Millones US$","Millones US$",null,null,"Millones US$","Millones US$",null,null,"Millones US$","Millones US$","Millones US$","Millones US$","Millones US$","Millones US$","Millones US$","Millones US$","Millones US$",null,null,"Millones US$","Millones US$","Millones US$","Millones US$","Millones US$","Millones US$","Millones US$","Millones US$","Millones US$",null,null,"Millones US$","Millones US$"]
[null,2006,"Enero",{"$f":"'[1]REAL IPC(M)'!AD202","v":13.195387319236479},{"$f":"'[1]REAL IPC(M)'!AE202","v":3.3321432821611303},{"$f":"'[1]REAL IPC(M)'!AF202","v":8.0834131604155832},{"$f":"'[1]REAL IPC(M)'!AG202","v":7.2930354796320787},{"$f":"'[1]REAL IPC(M)'!AH202","v":10.268771845245265},{"$f":"'[1]REAL IPC(M)'!AI202","v":8.2493088307041571},{"$f":"'[1]REAL IPC(M)'!AJ202","v":3.0481809242871103},null,null,{"$f":"'[1]REAL IMAE(M)'!AG202","v":5.2189412597003999},{"$f":"'[1]REAL IMAE(M)'!AH202","v":6.9914187371499725},{"$f":"'[1]REAL IMAE(M)'!AI202","v":3.4128069935503569},{"$f":"'[1]REAL IMAE(M)'!AJ202","v":7.1077199678452843},{"$f":"'[1]REAL IMAE(M)'!AK202","v":"n.d."},{"$f":"'[1]REAL IMAE(M)'!AL202","v":"n.d."},{"$f":"'[1]REAL IMAE(M)'!AM202","v":5.8222747168762554},null,null,{"$f":"'[1]EXT ITCER(M)'!C202","v":102.5426321690212},{"$f":"'[1]EXT ITCER(M)'!D202","v":97.145989647865065},{"$f":"'[1]EXT ITCER(M)'!E202","v":76.699496481890307},{"$f":"'[1]EXT ITCER(M)'!F202","v":96.135590735152789},{"$f":"'[1]EXT ITCER(M)'!G202","v":107.5572245831296},{"$f":"'[1]EXT ITCER(M)'!H202","v":103.2644110232113},{"$f":"'[1]EXT ITCER(M)'!I202","v":107.13452091600639},null,null,{"$f":"'[1]EXT TC(M)'!J202","v":8.2188905526177418},{"$f":"'[1]EXT TC(M)'!K202","v":0},{"$f":"'[1]EXT TC(M)'!L202","v":-1.8077581502633662},{"$f":"'[1]EXT TC(M)'!M202","v":1.2861736334405061},{"$f":"'[1]EXT TC(M)'!N202","v":5.7161451937718022},{"$f":"'[1]EXT TC(M)'!O202","v":15.851197897813357},{"$f":"'[1]EXT TC(M)'!P202","v":0},null,null,{"$f":"'[1]EXT RIN(M)'!C202","v":2350.1},{"$f":"'[1]EXT RIN(M)'!D202","v":1726.4},{"$f":"'[1]EXT RIN(M)'!E202","v":4087.8},{"$f":"'[1]EXT RIN(M)'!F202","v":2206.3262658537619},{"$f":"'[1]EXT RIN(M)'!G202","v":727.7},{"$f":"'[1]EXT RIN(M)'!H202","v":1476.5},{"$f":"'[1]EXT RIN(M)'!I202","v":1207.5531742798},null,null,{"$f":"'[1]EXT RIN(M)'!P202","v":55.332612936163692},{"$f":"'[1]EXT RIN(M)'!Q202","v":88.770053475935825},{"$f":"'[1]EXT RIN(M)'!R202","v":109.18065979452966},{"$f":"'[1]EXT RIN(M)'!S202","v":106.57212687030275},{"$f":"'[1]EXT RIN(M)'!T202","v":75.781538882375614},{"$f":"'[1]EXT RIN(M)'!U202","v":32.655446523979343},{"$f":"'[1]EXT RIN(M)'!V202","v":153.29313559107652},null,null,{"$f":"+'[1]MONE(M)CAPARD'!AE202","v":1.8151028318574947},{"$f":"'[1]MONE(M)CAPARD'!AF202","v":0.72176056513970366},{"$f":"'[1]MONE(M)CAPARD'!AG202","v":-3.2043891464412244},{"$f":"'[1]MONE(M)CAPARD'!AH202","v":3.1940232700550992},{"$f":"'[1]MONE(M)CAPARD'!AI202","v":1.6236165781056027},{"$f":"'[1]MONE(M)CAPARD'!AJ202","v":2.6704015023474397},{"$f":"'[1]MONE(M)CAPARD'!AK202","v":-0.24083969465648031},null,null,{"$f":"'[1]MONE(M)CAPARD'!AL202","v":3.33},{"$f":"'[1]MONE(M)CAPARD'!AM202","v":4.08},{"$f":"'[1]MONE(M)CAPARD'!AN202","v":3.33},{"$f":"'[1]MONE(M)CAPARD'!AO202","v":2.88},{"$f":"'[1]MONE(M)CAPARD'!AP202","v":4.7},{"$f":"'[1]MONE(M)CAPARD'!AQ202","v":3.23},{"$f":"'[1]MONE(M)CAPARD'!AR202","v":2.8},null,null,{"$f":"'[1]MONE(M)CAPARD'!J202","v":9.4214198416821624},{"$f":"'[1]MONE(M)CAPARD'!K202","v":4.314104572152484},{"$f":"'[1]MONE(M)CAPARD'!L202","v":4.2898227433869742},{"$f":"'[1]MONE(M)CAPARD'!M202","v":10.3426699326393},{"$f":"'[1]MONE(M)CAPARD'!N202","v":8.0469961165330179},{"$f":"'[1]MONE(M)CAPARD'!O202","v":11.862146103286408},{"$f":"'[1]MONE(M)CAPARD'!P202","v":4.6403721374045892},null,null,{"$f":"'[1]MONE(M)CAPARD'!Q202","v":10.48},{"$f":"'[1]MONE(M)CAPARD'!R202","v":7.79},{"$f":"'[1]MONE(M)CAPARD'!S202","v":7.31},{"$f":"'[1]MONE(M)CAPARD'!T202","v":8.84},{"$f":"'[1]MONE(M)CAPARD'!U202","v":10.199999999999999},{"$f":"'[1]MONE(M)CAPARD'!V202","v":9.1300000000000008},{"$f":"'[1]MONE(M)CAPARD'!W202","v":7.83},null,null,{"$f":"'[1]MONE(M)CAPARD'!AS202","v":"n.d."},{"$f":"'[1]MONE(M)CAPARD'!AT202","v":"n.a."},{"$f":"'[1]MONE(M)CAPARD'!AU202","v":4.25},{"$f":"'[1]MONE(M)CAPARD'!AV202","v":7},{"$f":"'[1]MONE(M)CAPARD'!AW202","v":"n.a."},{"$f":"'[1]MONE(M)CAPARD'!AX202","v":10},{"$f":"'[1]MONE(M)CAPARD'!AY202","v":"n.a."},null,null,{"$f":"+'Datos_Regional (M)'!CF195","v":28.663359416032286},{"$f":"+'Datos_Regional (M)'!CG195","v":10.056744831538357},{"$f":"+'Datos_Regional (M)'!CH195","v":5.5704972052809554},{"$f":"+'Datos_Regional (M)'!CI195","v":18.897940444016182},{"$f":"+'Datos_Regional (M)'!CJ195","v":33.219639618913476},{"$f":"+'Datos_Regional (M)'!CK195","v":15.191353953505837},{"$f":"+'Datos_Regional (M)'!CL195","v":18.007091781691955},null,null,null,null,null,null,null,null,null,null,null,null,null,null,null,null,null,null,null,null,null,null,null,null,null,null,null,null,{"$f":"'[1]EXT Comercio(M)'!C202","v":538.82476956999994},{"$f":"'[1]EXT Comercio(M)'!D202","v":303.18},{"$f":"'[1]EXT Comercio(M)'!E202","v":460.6},{"$f":"'[1]EXT Comercio(M)'!F202","v":174.29626059859416},{"$f":"'[1]EXT Comercio(M)'!G202","v":129.0736},{"$f":"'[1]EXT Comercio(M)'!H202","v":423.68849999999998},{"$f":"'[1]EXT Comercio(M)'!I202","v":617.28600000000006},{"$f":"'[1]EXT Comercio(M)'!K202","v":2029.6631301685941},{"$f":"'[1]EXT Comercio(M)'!L202","v":2646.9491301685939},null,null,{"$f":"'[1]EXT Comercio(M)'!AG202","v":923.31914477000009},{"$f":"'[1]EXT Comercio(M)'!AH202","v":545.83000000000004},{"$f":"'[1]EXT Comercio(M)'!AI202","v":927.1},{"$f":"'[1]EXT Comercio(M)'!AJ202","v":418.00248488743978},{"$f":"'[1]EXT Comercio(M)'!AK202","v":282.7},{"$f":"'[1]EXT Comercio(M)'!AL202","v":824.5},{"$f":"'[1]EXT Comercio(M)'!AM202","v":825.89502800000002},{"$f":"'[1]EXT Comercio(M)'!AO202","v":3921.4516296574393},{"$f":"'[1]EXT Comercio(M)'!AP202","v":4747.3466576574392},null,null,{"$f":"'[1]EXT Comercio(M)'!$BS202","v":-1891.7884994888457},{"$f":"'[1]EXT Comercio(M)'!$BT202","v":-2100.3975274888458}]
[null,null,"Febrero",{"$f":"'[1]REAL IPC(M)'!AD203","v":12.962452589513699},{"$f":"'[1]REAL IPC(M)'!AE203","v":3.7450957080014327},{"$f":"'[1]REAL IPC(M)'!AF203","v":7.2635505815229342},{"$f":"'[1]REAL IPC(M)'!AG203","v":6.7812337662337576},{"$f":"'[1]REAL IPC(M)'!AH203","v":10.489343969520185},{"$f":"'[1]REAL IPC(M)'!AI203","v":8.0752661952369262},{"$f":"'[1]REAL IPC(M)'!AJ203","v":2.3483365949119261},null,null,{"$f":"'[1]REAL IMAE(M)'!AG203","v":5.6649897426951634},{"$f":"'[1]REAL IMAE(M)'!AH203","v":5.5201766982716283},{"$f":"'[1]REAL IMAE(M)'!AI203","v":3.6274827192794623},{"$f":"'[1]REAL IMAE(M)'!AJ203","v":7.1367464251103714},{"$f":"'[1]REAL IMAE(M)'!AK203","v":"n.d."},{"$f":"'[1]REAL IMAE(M)'!AL203","v":"n.d."},{"$f":"'[1]REAL IMAE(M)'!AM203","v":6.6288009974371356},null,null,{"$f":"'[1]EXT ITCER(M)'!C203","v":102.29585017318929},{"$f":"'[1]EXT ITCER(M)'!D203","v":96.715776847211231},{"$f":"'[1]EXT ITCER(M)'!E203","v":76.629626908701027},{"$f":"'[1]EXT ITCER(M)'!F203","v":95.515220813011737},{"$f":"'[1]EXT ITCER(M)'!G203","v":106.6515873322063},{"$f":"'[1]EXT ITCER(M)'!H203","v":102.2698239451051},{"$f":"'[1]EXT ITCER(M)'!I203","v":107.3932252234779},null,null,{"$f":"'[1]EXT TC(M)'!J203","v":8.0871055590410599},{"$f":"'[1]EXT TC(M)'!K203","v":0},{"$f":"'[1]EXT TC(M)'!L203","v":-1.3945515557158745},{"$f":"'[1]EXT TC(M)'!M203","v":0.90763481046448546},{"$f":"'[1]EXT TC(M)'!N203","v":5.1752110005894103},{"$f":"'[1]EXT TC(M)'!O203","v":18.46329837940895},{"$f":"'[1]EXT TC(M)'!P203","v":0},null,null,{"$f":"'[1]EXT RIN(M)'!C203","v":2405.1999999999998},{"$f":"'[1]EXT RIN(M)'!D203","v":1855.6},{"$f":"'[1]EXT RIN(M)'!E203","v":4067.1},{"$f":"'[1]EXT RIN(M)'!F203","v":2270.2131867352559},{"$f":"'[1]EXT RIN(M)'!G203","v":703.4},{"$f":"'[1]EXT RIN(M)'!H203","v":1501.8},{"$f":"'[1]EXT RIN(M)'!I203","v":1113.42992807276},null,null,{"$f":"'[1]EXT RIN(M)'!P203","v":55.689856024431819},{"$f":"'[1]EXT RIN(M)'!Q203","v":88.42312725096329},{"$f":"'[1]EXT RIN(M)'!R203","v":110.26084499290828},{"$f":"'[1]EXT RIN(M)'!S203","v":108.74372710957549},{"$f":"'[1]EXT RIN(M)'!T203","v":72.204193537757462},{"$f":"'[1]EXT RIN(M)'!U203","v":32.693547603786485},{"$f":"'[1]EXT RIN(M)'!V203","v":142.26851713515128},null,null,{"$f":"+'[1]MONE(M)CAPARD'!AE203","v":2.025051119241239},{"$f":"'[1]MONE(M)CAPARD'!AF203","v":0.21955796396696795},{"$f":"'[1]MONE(M)CAPARD'!AG203","v":-2.4365691489361723},{"$f":"'[1]MONE(M)CAPARD'!AH203","v":3.6230769183991387},{"$f":"'[1]MONE(M)CAPARD'!AI203","v":0.61621694331956445},{"$f":"'[1]MONE(M)CAPARD'!AJ203","v":2.7339593126010673},{"$f":"'[1]MONE(M)CAPARD'!AK203","v":0.90051625239006861},null,null,{"$f":"'[1]MONE(M)CAPARD'!AL203","v":3.3600000000000003},{"$f":"'[1]MONE(M)CAPARD'!AM203","v":3.97},{"$f":"'[1]MONE(M)CAPARD'!AN203","v":3.34},{"$f":"'[1]MONE(M)CAPARD'!AO203","v":2.96},{"$f":"'[1]MONE(M)CAPARD'!AP203","v":4.8},{"$f":"'[1]MONE(M)CAPARD'!AQ203","v":2.98},{"$f":"'[1]MONE(M)CAPARD'!AR203","v":3.27},null,null,{"$f":"'[1]MONE(M)CAPARD'!J203","v":9.4788552877792984},{"$f":"'[1]MONE(M)CAPARD'!K203","v":3.6517352452853413},{"$f":"'[1]MONE(M)CAPARD'!L203","v":5.1056014729950885},{"$f":"'[1]MONE(M)CAPARD'!M203","v":10.899636409189572},{"$f":"'[1]MONE(M)CAPARD'!N203","v":6.9939714704741958},{"$f":"'[1]MONE(M)CAPARD'!O203","v":12.523433234309788},{"$f":"'[1]MONE(M)CAPARD'!P203","v":4.9064435946462837},null,null,{"$f":"'[1]MONE(M)CAPARD'!Q203","v":10.54},{"$f":"'[1]MONE(M)CAPARD'!R203","v":7.53},{"$f":"'[1]MONE(M)CAPARD'!S203","v":7.39},{"$f":"'[1]MONE(M)CAPARD'!T203","v":8.84},{"$f":"'[1]MONE(M)CAPARD'!U203","v":9.9},{"$f":"'[1]MONE(M)CAPARD'!V203","v":7.96},{"$f":"'[1]MONE(M)CAPARD'!W203","v":7.37},null,null,{"$f":"'[1]MONE(M)CAPARD'!AS203","v":"n.d."},{"$f":"'[1]MONE(M)CAPARD'!AT203","v":"n.a."},{"$f":"'[1]MONE(M)CAPARD'!AU203","v":4.25},{"$f":"'[1]MONE(M)CAPARD'!AV203","v":7},{"$f":"'[1]MONE(M)CAPARD'!AW203","v":"n.a."},{"$f":"'[1]MONE(M)CAPARD'!AX203","v":10},{"$f":"'[1]MONE(M)CAPARD'!AY203","v":"n.a."},null,null,{"$f":"+'Datos_Regional (M)'!CF196","v":28.314985229658095},{"$f":"+'Datos_Regional (M)'!CG196","v":11.127324148385686},{"$f":"+'Datos_Regional (M)'!CH196","v":7.0601135588099773},{"$f":"+'Datos_Regional (M)'!CI196","v":19.072651696269148},{"$f":"+'Datos_Regional (M)'!CJ196","v":35.861908009926658},{"$f":"+'Datos_Regional (M)'!CK196","v":15.161705146044335},{"$f":"+'Datos_Regional (M)'!CL196","v":17.320750903486658},null,null,null,null,null,null,null,null,null,null,null,null,null,null,null,null,null,null,null,null,null,null,null,null,null,null,null,null,{"$f":"'[1]EXT Comercio(M)'!C203","v":634.0564989500001},{"$f":"'[1]EXT Comercio(M)'!D203","v":293.33999999999997},{"$f":"'[1]EXT Comercio(M)'!E203","v":428.30000000000007},{"$f":"'[1]EXT Comercio(M)'!F203","v":179.35100965771059},{"$f":"'[1]EXT Comercio(M)'!G203","v":151.81209999999999},{"$f":"'[1]EXT Comercio(M)'!H203","v":497.19280000000003},{"$f":"'[1]EXT Comercio(M)'!I203","v":682.21600000000001},{"$f":"'[1]EXT Comercio(M)'!K203","v":2184.0524086077112},{"$f":"'[1]EXT Comercio(M)'!L203","v":2866.2684086077106},null,null,{"$f":"'[1]EXT Comercio(M)'!AG203","v":814.71968157999993},{"$f":"'[1]EXT Comercio(M)'!AH203","v":580.4799999999999},{"$f":"'[1]EXT Comercio(M)'!AI203","v":824.9},{"$f":"'[1]EXT Comercio(M)'!AJ203","v":365.87825691667001},{"$f":"'[1]EXT Comercio(M)'!AK203","v":259.90000000000003},{"$f":"'[1]EXT Comercio(M)'!AL203","v":868.8},{"$f":"'[1]EXT Comercio(M)'!AM203","v":768.52662899999996},{"$f":"'[1]EXT Comercio(M)'!AO203","v":3714.6779384966712},{"$f":"'[1]EXT Comercio(M)'!AP203","v":4483.2045674966721},null,null,{"$f":"'[1]EXT Comercio(M)'!$BS203","v":-1530.6255298889594},{"$f":"'[1]EXT Comercio(M)'!$BT203","v":-1616.9361588889592}]
[null,null,"Marzo",{"$f":"'[1]REAL IPC(M)'!AD204","v":12.21660233979196},{"$f":"'[1]REAL IPC(M)'!AE204","v":4.0394439824165271},{"$f":"'[1]REAL IPC(M)'!AF204","v":7.2806698216235848},{"$f":"'[1]REAL IPC(M)'!AG204","v":6.1855670103092928},{"$f":"'[1]REAL IPC(M)'!AH204","v":10.14031364225916},{"$f":"'[1]REAL IPC(M)'!AI204","v":8.2560598666015981},{"$f":"'[1]REAL IPC(M)'!AJ204","v":2.0408163265305994},null,null,{"$f":"'[1]REAL IMAE(M)'!AG204","v":6.184507329133158},{"$f":"'[1]REAL IMAE(M)'!AH204","v":4.1436090839490198},{"$f":"'[1]REAL IMAE(M)'!AI204","v":3.6959022335294218},{"$f":"'[1]REAL IMAE(M)'!AJ204","v":7.6064643547000337},{"$f":"'[1]REAL IMAE(M)'!AK204","v":"n.d."},{"$f":"'[1]REAL IMAE(M)'!AL204","v":"n.d."},{"$f":"'[1]REAL IMAE(M)'!AM204","v":7.4396736500034502},null,null,{"$f":"'[1]EXT ITCER(M)'!C204","v":102.8408861214003},{"$f":"'[1]EXT ITCER(M)'!D204","v":96.518395653514403},{"$f":"'[1]EXT ITCER(M)'!E204","v":76.483183016479344},{"$f":"'[1]EXT ITCER(M)'!F204","v":95.451760494862327},{"$f":"'[1]EXT ITCER(M)'!G204","v":106.4400531829221},{"$f":"'[1]EXT ITCER(M)'!H204","v":97.498828524559443},{"$f":"'[1]EXT ITCER(M)'!I204","v":107.14506721438821},null,null,{"$f":"'[1]EXT TC(M)'!J204","v":7.9570237908960726},{"$f":"'[1]EXT TC(M)'!K204","v":0},{"$f":"'[1]EXT TC(M)'!L204","v":7.0228598032013922E-2},{"$f":"'[1]EXT TC(M)'!M204","v":0.69259456579647849},{"$f":"'[1]EXT TC(M)'!N204","v":5.0675579975700797},{"$f":"'[1]EXT TC(M)'!O204","v":15.064615645573381},{"$f":"'[1]EXT TC(M)'!P204","v":0},null,null,{"$f":"'[1]EXT RIN(M)'!C204","v":2765.7},{"$f":"'[1]EXT RIN(M)'!D204","v":1763.7},{"$f":"'[1]EXT RIN(M)'!E204","v":4115.5},{"$f":"'[1]EXT RIN(M)'!F204","v":2386.1356907394475},{"$f":"'[1]EXT RIN(M)'!G204","v":766.5},{"$f":"'[1]EXT RIN(M)'!H204","v":1524.2},{"$f":"'[1]EXT RIN(M)'!I204","v":1137.2237359982},null,null,{"$f":"'[1]EXT RIN(M)'!P204","v":59.589120646112079},{"$f":"'[1]EXT RIN(M)'!Q204","v":86.286017330588408},{"$f":"'[1]EXT RIN(M)'!R204","v":111.36425811817583},{"$f":"'[1]EXT RIN(M)'!S204","v":109.04177308514507},{"$f":"'[1]EXT RIN(M)'!T204","v":79.856837221370455},{"$f":"'[1]EXT RIN(M)'!U204","v":33.358120831968563},{"$f":"'[1]EXT RIN(M)'!V204","v":146.83767313913012},null,null,{"$f":"+'[1]MONE(M)CAPARD'!AE204","v":2.7031629874364844},{"$f":"'[1]MONE(M)CAPARD'!AF204","v":7.6459913605915295E-2},{"$f":"'[1]MONE(M)CAPARD'!AG204","v":-2.4521377672208979},{"$f":"'[1]MONE(M)CAPARD'!AH204","v":4.1007766990291108},{"$f":"'[1]MONE(M)CAPARD'!AI204","v":0.92714709573714138},{"$f":"'[1]MONE(M)CAPARD'!AJ204","v":2.7194229468780482},{"$f":"'[1]MONE(M)CAPARD'!AK204","v":1.136000000000013},null,null,{"$f":"'[1]MONE(M)CAPARD'!AL204","v":3.3849999999999998},{"$f":"'[1]MONE(M)CAPARD'!AM204","v":4.12},{"$f":"'[1]MONE(M)CAPARD'!AN204","v":3.43},{"$f":"'[1]MONE(M)CAPARD'!AO204","v":3},{"$f":"'[1]MONE(M)CAPARD'!AP204","v":4.9000000000000004},{"$f":"'[1]MONE(M)CAPARD'!AQ204","v":3},{"$f":"'[1]MONE(M)CAPARD'!AR204","v":3.2},null,null,{"$f":"'[1]MONE(M)CAPARD'!J204","v":10.108484327354898},{"$f":"'[1]MONE(M)CAPARD'!K204","v":3.2611153514555422},{"$f":"'[1]MONE(M)CAPARD'!L204","v":5.1074720054292539},{"$f":"'[1]MONE(M)CAPARD'!M204","v":11.333398058252412},{"$f":"'[1]MONE(M)CAPARD'!N204","v":7.3185637832743771},{"$f":"'[1]MONE(M)CAPARD'!O204","v":12.196952438199711},{"$f":"'[1]MONE(M)CAPARD'!P204","v":5.2422000000000128},null,null,{"$f":"'[1]MONE(M)CAPARD'!Q204","v":10.88},{"$f":"'[1]MONE(M)CAPARD'!R204","v":7.43},{"$f":"'[1]MONE(M)CAPARD'!S204","v":7.4700000000000006},{"$f":"'[1]MONE(M)CAPARD'!T204","v":8.91},{"$f":"'[1]MONE(M)CAPARD'!U204","v":9.8000000000000007},{"$f":"'[1]MONE(M)CAPARD'!V204","v":8.6300000000000008},{"$f":"'[1]MONE(M)CAPARD'!W204","v":7.39},null,null,{"$f":"'[1]MONE(M)CAPARD'!AS204","v":8.51},{"$f":"'[1]MONE(M)CAPARD'!AT204","v":"n.a."},{"$f":"'[1]MONE(M)CAPARD'!AU204","v":4.25},{"$f":"'[1]MONE(M)CAPARD'!AV204","v":6.75},{"$f":"'[1]MONE(M)CAPARD'!AW204","v":"n.a."},{"$f":"'[1]MONE(M)CAPARD'!AX204","v":10},{"$f":"'[1]MONE(M)CAPARD'!AY204","v":"n.a."},null,null,{"$f":"+'Datos_Regional (M)'!CF197","v":28.531391372747095},{"$f":"+'Datos_Regional (M)'!CG197","v":10.922799190821063},{"$f":"+'Datos_Regional (M)'!CH197","v":8.2393467364412878},{"$f":"+'Datos_Regional (M)'!CI197","v":21.229670591680438},{"$f":"+'Datos_Regional (M)'!CJ197","v":34.888310903525891},{"$f":"+'Datos_Regional (M)'!CK197","v":18.195251345727016},{"$f":"+'Datos_Regional (M)'!CL197","v":17.031070937013769},null,null,null,null,null,null,null,null,null,null,null,null,null,null,null,null,null,null,null,null,null,null,null,null,null,null,null,null,{"$f":"'[1]EXT Comercio(M)'!C204","v":815.36940162999986},{"$f":"'[1]EXT Comercio(M)'!D204","v":338.25},{"$f":"'[1]EXT Comercio(M)'!E204","v":495.90000000000009},{"$f":"'[1]EXT Comercio(M)'!F204","v":206.75582121440425},{"$f":"'[1]EXT Comercio(M)'!G204","v":172.55569999999997},{"$f":"'[1]EXT Comercio(M)'!H204","v":596.0009},{"$f":"'[1]EXT Comercio(M)'!I204","v":810.74200000000008},{"$f":"'[1]EXT Comercio(M)'!K204","v":2624.8318228444041},{"$f":"'[1]EXT Comercio(M)'!L204","v":3435.5738228444052},null,null,{"$f":"'[1]EXT Comercio(M)'!AG204","v":976.88234908000004},{"$f":"'[1]EXT Comercio(M)'!AH204","v":672.33000000000015},{"$f":"'[1]EXT Comercio(M)'!AI204","v":983.1999999999997},{"$f":"'[1]EXT Comercio(M)'!AJ204","v":430.41950835667751},{"$f":"'[1]EXT Comercio(M)'!AK204","v":308.8},{"$f":"'[1]EXT Comercio(M)'!AL204","v":1027.9000000000001},{"$f":"'[1]EXT Comercio(M)'!AM204","v":841.15919899999994},{"$f":"'[1]EXT Comercio(M)'!AO204","v":4399.5318574366775},{"$f":"'[1]EXT Comercio(M)'!AP204","v":5240.6910564366772},null,null,{"$f":"'[1]EXT Comercio(M)'!$BS204","v":-1774.7000345922738},{"$f":"'[1]EXT Comercio(M)'!$BT204","v":-1805.1172335922738}]
[null,null,"Abril",{"$f":"'[1]REAL IPC(M)'!AD205","v":11.629027958973545},{"$f":"'[1]REAL IPC(M)'!AE205","v":4.2203570161957593},{"$f":"'[1]REAL IPC(M)'!AF205","v":7.4808276660396675},{"$f":"'[1]REAL IPC(M)'!AG205","v":5.8109833971902907},{"$f":"'[1]REAL IPC(M)'!AH205","v":9.8446196660482492},{"$f":"'[1]REAL IPC(M)'!AI205","v":8.5586863977295753},{"$f":"'[1]REAL IPC(M)'!AJ205","v":2.9069767441860583},null,null,{"$f":"'[1]REAL IMAE(M)'!AG205","v":6.544871576358255},{"$f":"'[1]REAL IMAE(M)'!AH205","v":2.9294986576273816},{"$f":"'[1]REAL IMAE(M)'!AI205","v":3.7815760562554388},{"$f":"'[1]REAL IMAE(M)'!AJ205","v":8.268757116388743},{"$f":"'[1]REAL IMAE(M)'!AK205","v":"n.d."},{"$f":"'[1]REAL IMAE(M)'!AL205","v":"n.d."},{"$f":"'[1]REAL IMAE(M)'!AM205","v":8.1433899709904622},null,null,{"$f":"'[1]EXT ITCER(M)'!C205","v":103.4405318063976},{"$f":"'[1]EXT ITCER(M)'!D205","v":96.352540528738643},{"$f":"'[1]EXT ITCER(M)'!E205","v":75.983240624503836},{"$f":"'[1]EXT ITCER(M)'!F205","v":95.408693637962969},{"$f":"'[1]EXT ITCER(M)'!G205","v":105.82936948216209},{"$f":"'[1]EXT ITCER(M)'!H205","v":96.048285708572237},{"$f":"'[1]EXT ITCER(M)'!I205","v":106.4648561327118},null,null,{"$f":"'[1]EXT TC(M)'!J205","v":7.8381253172890961},{"$f":"'[1]EXT TC(M)'!K205","v":0},{"$f":"'[1]EXT TC(M)'!L205","v":-0.14062271636213511},{"$f":"'[1]EXT TC(M)'!M205","v":0.47846889952153038},{"$f":"'[1]EXT TC(M)'!N205","v":5.1287312757251211},{"$f":"'[1]EXT TC(M)'!O205","v":13.662287456057429},{"$f":"'[1]EXT TC(M)'!P205","v":0},null,null,{"$f":"'[1]EXT RIN(M)'!C205","v":2740.9},{"$f":"'[1]EXT RIN(M)'!D205","v":2149.6},{"$f":"'[1]EXT RIN(M)'!E205","v":4141.6000000000004},{"$f":"'[1]EXT RIN(M)'!F205","v":2489.5851170323681},{"$f":"'[1]EXT RIN(M)'!G205","v":801.4},{"$f":"'[1]EXT RIN(M)'!H205","v":1571.7},{"$f":"'[1]EXT RIN(M)'!I205","v":1106.9278590550798},null,null,{"$f":"'[1]EXT RIN(M)'!P205","v":59.687169372967766},{"$f":"'[1]EXT RIN(M)'!Q205","v":106.56947044452201},{"$f":"'[1]EXT RIN(M)'!R205","v":115.17775149034952},{"$f":"'[1]EXT RIN(M)'!S205","v":110.18220226831099},{"$f":"'[1]EXT RIN(M)'!T205","v":79.946625788184761},{"$f":"'[1]EXT RIN(M)'!U205","v":34.152831126417745},{"$f":"'[1]EXT RIN(M)'!V205","v":143.50734827652013},null,null,{"$f":"+'[1]MONE(M)CAPARD'!AE205","v":3.2437548792033315},{"$f":"'[1]MONE(M)CAPARD'!AF205","v":-0.19144861451938872},{"$f":"'[1]MONE(M)CAPARD'!AG205","v":-2.5965818524502069},{"$f":"'[1]MONE(M)CAPARD'!AH205","v":4.1857815328907702},{"$f":"'[1]MONE(M)CAPARD'!AI205","v":0.39639578480145093},{"$f":"'[1]MONE(M)CAPARD'!AJ205","v":2.3962279653420988},{"$f":"'[1]MONE(M)CAPARD'!AK205","v":0.43050847457625974},null,null,{"$f":"'[1]MONE(M)CAPARD'!AL205","v":3.4450000000000003},{"$f":"'[1]MONE(M)CAPARD'!AM205","v":4.0199999999999996},{"$f":"'[1]MONE(M)CAPARD'!AN205","v":3.47},{"$f":"'[1]MONE(M)CAPARD'!AO205","v":3.6},{"$f":"'[1]MONE(M)CAPARD'!AP205","v":5.0999999999999996},{"$f":"'[1]MONE(M)CAPARD'!AQ205","v":2.96},{"$f":"'[1]MONE(M)CAPARD'!AR205","v":3.35},null,null,{"$f":"'[1]MONE(M)CAPARD'!J205","v":10.607430932192932},{"$f":"'[1]MONE(M)CAPARD'!K205","v":3.0047054649063427},{"$f":"'[1]MONE(M)CAPARD'!L205","v":4.8931260096930336},{"$f":"'[1]MONE(M)CAPARD'!M205","v":11.529064574532292},{"$f":"'[1]MONE(M)CAPARD'!N205","v":3.5547190077742474},{"$f":"'[1]MONE(M)CAPARD'!O205","v":10.714309456229463},{"$f":"'[1]MONE(M)CAPARD'!P205","v":4.3175141242937727},null,null,{"$f":"'[1]MONE(M)CAPARD'!Q205","v":11.12},{"$f":"'[1]MONE(M)CAPARD'!R205","v":7.35},{"$f":"'[1]MONE(M)CAPARD'!S205","v":7.5},{"$f":"'[1]MONE(M)CAPARD'!T205","v":8.94},{"$f":"'[1]MONE(M)CAPARD'!U205","v":10.7},{"$f":"'[1]MONE(M)CAPARD'!V205","v":8.34},{"$f":"'[1]MONE(M)CAPARD'!W205","v":7.35},null,null,{"$f":"'[1]MONE(M)CAPARD'!AS205","v":8.51},{"$f":"'[1]MONE(M)CAPARD'!AT205","v":"n.a."},{"$f":"'[1]MONE(M)CAPARD'!AU205","v":4.5},{"$f":"'[1]MONE(M)CAPARD'!AV205","v":6.5},{"$f":"'[1]MONE(M)CAPARD'!AW205","v":"n.a."},{"$f":"'[1]MONE(M)CAPARD'!AX205","v":10},{"$f":"'[1]MONE(M)CAPARD'!AY205","v":"n.a."},null,null,{"$f":"+'Datos_Regional (M)'!CF198","v":28.427447143515483},{"$f":"+'Datos_Regional (M)'!CG198","v":11.40928258867806},{"$f":"+'Datos_Regional (M)'!CH198","v":7.9690601288370688},{"$f":"+'Datos_Regional (M)'!CI198","v":23.180124138490179},{"$f":"+'Datos_Regional (M)'!CJ198","v":35.565596882865776},{"$f":"+'Datos_Regional (M)'!CK198","v":18.35592399818189},{"$f":"+'Datos_Regional (M)'!CL198","v":16.873481818690415},null,null,null,null,null,null,null,null,null,null,null,null,null,null,null,null,null,null,null,null,null,null,null,null,null,null,null,null,{"$f":"'[1]EXT Comercio(M)'!C205","v":560.88800568000011},{"$f":"'[1]EXT Comercio(M)'!D205","v":281.52},{"$f":"'[1]EXT Comercio(M)'!E205","v":394.29999999999995},{"$f":"'[1]EXT Comercio(M)'!F205","v":152.97518801633385},{"$f":"'[1]EXT Comercio(M)'!G205","v":145.28609999999998},{"$f":"'[1]EXT Comercio(M)'!H205","v":514.74340000000018},{"$f":"'[1]EXT Comercio(M)'!I205","v":603.60799999999995},{"$f":"'[1]EXT Comercio(M)'!K205","v":2049.7126936963341},{"$f":"'[1]EXT Comercio(M)'!L205","v":2653.3206936963343},null,null,{"$f":"'[1]EXT Comercio(M)'!AG205","v":848.22872828000027},{"$f":"'[1]EXT Comercio(M)'!AH205","v":502.64999999999986},{"$f":"'[1]EXT Comercio(M)'!AI205","v":882.10000000000036},{"$f":"'[1]EXT Comercio(M)'!AJ205","v":420.65743794337754},{"$f":"'[1]EXT Comercio(M)'!AK205","v":270.30000000000007},{"$f":"'[1]EXT Comercio(M)'!AL205","v":936.0999999999998},{"$f":"'[1]EXT Comercio(M)'!AM205","v":783.96233899999993},{"$f":"'[1]EXT Comercio(M)'!AO205","v":3860.0361662233772},{"$f":"'[1]EXT Comercio(M)'!AP205","v":4643.9985052233751},null,null,{"$f":"'[1]EXT Comercio(M)'!$BS205","v":-1810.3234725270431},{"$f":"'[1]EXT Comercio(M)'!$BT205","v":-1990.6778115270426}]
[null,null,"Mayo ",{"$f":"'[1]REAL IPC(M)'!AD206","v":11.864015532006505},{"$f":"'[1]REAL IPC(M)'!AE206","v":3.603286384976518},{"$f":"'[1]REAL IPC(M)'!AF206","v":7.6164423007702933},{"$f":"'[1]REAL IPC(M)'!AG206","v":6.1068702290076482},{"$f":"'[1]REAL IPC(M)'!AH206","v":9.9126034958601714},{"$f":"'[1]REAL IPC(M)'!AI206","v":9.507543410190733},{"$f":"'[1]REAL IPC(M)'!AJ206","v":3.1098153547132847},null,null,{"$f":"'[1]REAL IMAE(M)'!AG206","v":6.8055035793680023},{"$f":"'[1]REAL IMAE(M)'!AH206","v":2.0272340157942637},{"$f":"'[1]REAL IMAE(M)'!AI206","v":4.0912689965256801},{"$f":"'[1]REAL IMAE(M)'!AJ206","v":8.7682060725893063},{"$f":"'[1]REAL IMAE(M)'!AK206","v":"n.d."},{"$f":"'[1]REAL IMAE(M)'!AL206","v":"n.d."},{"$f":"'[1]REAL IMAE(M)'!AM206","v":8.784156776152372},null,null,{"$f":"'[1]EXT ITCER(M)'!C206","v":102.5489310669862},{"$f":"'[1]EXT ITCER(M)'!D206","v":96.520158744701604},{"$f":"'[1]EXT ITCER(M)'!E206","v":75.64522285242667},{"$f":"'[1]EXT ITCER(M)'!F206","v":95.062846400268313},{"$f":"'[1]EXT ITCER(M)'!G206","v":105.6438734825047},{"$f":"'[1]EXT ITCER(M)'!H206","v":96.940300472847127},{"$f":"'[1]EXT ITCER(M)'!I206","v":106.88378058024441},null,null,{"$f":"'[1]EXT TC(M)'!J206","v":7.5524724054266441},{"$f":"'[1]EXT TC(M)'!K206","v":0},{"$f":"'[1]EXT TC(M)'!L206","v":-9.6936925055224304E-2},{"$f":"'[1]EXT TC(M)'!M206","v":0.2652519893899053},{"$f":"'[1]EXT TC(M)'!N206","v":5.0127871096329617},{"$f":"'[1]EXT TC(M)'!O206","v":13.218230600369344},{"$f":"'[1]EXT TC(M)'!P206","v":0},null,null,{"$f":"'[1]EXT RIN(M)'!C206","v":2503.8000000000002},{"$f":"'[1]EXT RIN(M)'!D206","v":2109.6999999999998},{"$f":"'[1]EXT RIN(M)'!E206","v":4211.6000000000004},{"$f":"'[1]EXT RIN(M)'!F206","v":2497.1465653790383},{"$f":"'[1]EXT RIN(M)'!G206","v":795.9},{"$f":"'[1]EXT RIN(M)'!H206","v":1617.4},{"$f":"'[1]EXT RIN(M)'!I206","v":1168.69120848646},null,null,{"$f":"'[1]EXT RIN(M)'!P206","v":56.116102384432466},{"$f":"'[1]EXT RIN(M)'!Q206","v":105.8140817943805},{"$f":"'[1]EXT RIN(M)'!R206","v":116.04615472941164},{"$f":"'[1]EXT RIN(M)'!S206","v":115.41564344056023},{"$f":"'[1]EXT RIN(M)'!T206","v":83.043793597156039},{"$f":"'[1]EXT RIN(M)'!U206","v":34.657508173285848},{"$f":"'[1]EXT RIN(M)'!V206","v":149.17051518786872},null,null,{"$f":"+'[1]MONE(M)CAPARD'!AE206","v":1.6859617089768046},{"$f":"'[1]MONE(M)CAPARD'!AF206","v":0.50470246755937143},{"$f":"'[1]MONE(M)CAPARD'!AG206","v":-2.7100341159943899},{"$f":"'[1]MONE(M)CAPARD'!AH206","v":3.4805755395683318},{"$f":"'[1]MONE(M)CAPARD'!AI206","v":1.4656885228186862},{"$f":"'[1]MONE(M)CAPARD'!AJ206","v":1.3080894203275155},{"$f":"'[1]MONE(M)CAPARD'!AK206","v":0.17475023562679556},null,null,{"$f":"'[1]MONE(M)CAPARD'!AL206","v":3.59},{"$f":"'[1]MONE(M)CAPARD'!AM206","v":4.13},{"$f":"'[1]MONE(M)CAPARD'!AN206","v":3.48},{"$f":"'[1]MONE(M)CAPARD'!AO206","v":3.2},{"$f":"'[1]MONE(M)CAPARD'!AP206","v":4.8},{"$f":"'[1]MONE(M)CAPARD'!AQ206","v":2.9},{"$f":"'[1]MONE(M)CAPARD'!AR206","v":3.29},null,null,{"$f":"'[1]MONE(M)CAPARD'!J206","v":9.4811404878979264},{"$f":"'[1]MONE(M)CAPARD'!K206","v":3.8830510644138108},{"$f":"'[1]MONE(M)CAPARD'!L206","v":4.7237741654960086},{"$f":"'[1]MONE(M)CAPARD'!M206","v":10.878776978417251},{"$f":"'[1]MONE(M)CAPARD'!N206","v":3.6631563533505322},{"$f":"'[1]MONE(M)CAPARD'!O206","v":9.8828411749414986},{"$f":"'[1]MONE(M)CAPARD'!P206","v":4.1510933081998402},null,null,{"$f":"'[1]MONE(M)CAPARD'!Q206","v":11.15},{"$f":"'[1]MONE(M)CAPARD'!R206","v":7.63},{"$f":"'[1]MONE(M)CAPARD'!S206","v":7.48},{"$f":"'[1]MONE(M)CAPARD'!T206","v":8.9},{"$f":"'[1]MONE(M)CAPARD'!U206","v":10.3},{"$f":"'[1]MONE(M)CAPARD'!V206","v":8.85},{"$f":"'[1]MONE(M)CAPARD'!W206","v":7.39},null,null,{"$f":"'[1]MONE(M)CAPARD'!AS206","v":8.51},{"$f":"'[1]MONE(M)CAPARD'!AT206","v":"n.a."},{"$f":"'[1]MONE(M)CAPARD'!AU206","v":4.5},{"$f":"'[1]MONE(M)CAPARD'!AV206","v":6.5},{"$f":"'[1]MONE(M)CAPARD'!AW206","v":"n.a."},{"$f":"'[1]MONE(M)CAPARD'!AX206","v":10},{"$f":"'[1]MONE(M)CAPARD'!AY206","v":"n.a."},null,null,{"$f":"+'Datos_Regional (M)'!CF199","v":27.945206113279951},{"$f":"+'Datos_Regional (M)'!CG199","v":11.980956643146467},{"$f":"+'Datos_Regional (M)'!CH199","v":8.2071235896640218},{"$f":"+'Datos_Regional (M)'!CI199","v":24.987245255851832},{"$f":"+'Datos_Regional (M)'!CJ199","v":33.524058722373653},{"$f":"+'Datos_Regional (M)'!CK199","v":18.751213604780361},{"$f":"+'Datos_Regional (M)'!CL199","v":16.843773745597513},null,null,null,null,null,null,null,null,null,null,null,null,null,null,null,null,null,null,null,null,null,null,null,null,null,null,null,null,{"$f":"'[1]EXT Comercio(M)'!C206","v":766.52788651999981},{"$f":"'[1]EXT Comercio(M)'!D206","v":338.72},{"$f":"'[1]EXT Comercio(M)'!E206","v":483.79999999999995},{"$f":"'[1]EXT Comercio(M)'!F206","v":226.90800636623408},{"$f":"'[1]EXT Comercio(M)'!G206","v":179.68440000000004},{"$f":"'[1]EXT Comercio(M)'!H206","v":548.99959999999976},{"$f":"'[1]EXT Comercio(M)'!I206","v":730.09500000000003},{"$f":"'[1]EXT Comercio(M)'!K206","v":2544.6398928862327},{"$f":"'[1]EXT Comercio(M)'!L206","v":3274.734892886232},null,null,{"$f":"'[1]EXT Comercio(M)'!AG206","v":1042.3718409900002},{"$f":"'[1]EXT Comercio(M)'!AH206","v":765.95000000000027},{"$f":"'[1]EXT Comercio(M)'!AI206","v":1100.8999999999996},{"$f":"'[1]EXT Comercio(M)'!AJ206","v":480.31871327763292},{"$f":"'[1]EXT Comercio(M)'!AK206","v":337},{"$f":"'[1]EXT Comercio(M)'!AL206","v":1053.7},{"$f":"'[1]EXT Comercio(M)'!AM206","v":994.184978},{"$f":"'[1]EXT Comercio(M)'!AO206","v":4780.2405542676352},{"$f":"'[1]EXT Comercio(M)'!AP206","v":5774.4255322676363},null,null,{"$f":"'[1]EXT Comercio(M)'!$BS206","v":-2235.6006613813988},{"$f":"'[1]EXT Comercio(M)'!$BT206","v":-2499.6906393813988}]
[null,null,"Junio",{"$f":"'[1]REAL IPC(M)'!AD207","v":12.419859591990127},{"$f":"'[1]REAL IPC(M)'!AE207","v":4.423325120262831},{"$f":"'[1]REAL IPC(M)'!AF207","v":7.552567586897446},{"$f":"'[1]REAL IPC(M)'!AG207","v":5.6854074542008837},{"$f":"'[1]REAL IPC(M)'!AH207","v":9.4988012330174598},{"$f":"'[1]REAL IPC(M)'!AI207","v":10.274334484860798},{"$f":"'[1]REAL IPC(M)'!AJ207","v":3.2038834951456234},null,null,{"$f":"'[1]REAL IMAE(M)'!AG207","v":6.8846544002646892},{"$f":"'[1]REAL IMAE(M)'!AH207","v":1.646137852740567},{"$f":"'[1]REAL IMAE(M)'!AI207","v":4.802999908741155},{"$f":"'[1]REAL IMAE(M)'!AJ207","v":9.143769077336982},{"$f":"'[1]REAL IMAE(M)'!AK207","v":"n.d."},{"$f":"'[1]REAL IMAE(M)'!AL207","v":"n.d."},{"$f":"'[1]REAL IMAE(M)'!AM207","v":9.3532612438873279},null,null,{"$f":"'[1]EXT ITCER(M)'!C207","v":102.3846980795975},{"$f":"'[1]EXT ITCER(M)'!D207","v":95.96625219339866},{"$f":"'[1]EXT ITCER(M)'!E207","v":75.645581656867449},{"$f":"'[1]EXT ITCER(M)'!F207","v":95.014154110539934},{"$f":"'[1]EXT ITCER(M)'!G207","v":106.1361914324081},{"$f":"'[1]EXT ITCER(M)'!H207","v":97.259908277303722},{"$f":"'[1]EXT ITCER(M)'!I207","v":106.9476665235705},null,null,{"$f":"'[1]EXT TC(M)'!J207","v":7.38813611625425},{"$f":"'[1]EXT TC(M)'!K207","v":0},{"$f":"'[1]EXT TC(M)'!L207","v":-4.4972424802689412E-2},{"$f":"'[1]EXT TC(M)'!M207","v":0.21208907741250871},{"$f":"'[1]EXT TC(M)'!N207","v":5.4509161920953115},{"$f":"'[1]EXT TC(M)'!O207","v":13.379886914937064},{"$f":"'[1]EXT TC(M)'!P207","v":0},null,null,{"$f":"'[1]EXT RIN(M)'!C207","v":2613.6},{"$f":"'[1]EXT RIN(M)'!D207","v":2011},{"$f":"'[1]EXT RIN(M)'!E207","v":4062.4},{"$f":"'[1]EXT RIN(M)'!F207","v":2526.1261082221936},{"$f":"'[1]EXT RIN(M)'!G207","v":813.4},{"$f":"'[1]EXT RIN(M)'!H207","v":1579.8},{"$f":"'[1]EXT RIN(M)'!I207","v":1206.5475861353896},null,null,{"$f":"'[1]EXT RIN(M)'!P207","v":57.5850766914904},{"$f":"'[1]EXT RIN(M)'!Q207","v":104.62928662701401},{"$f":"'[1]EXT RIN(M)'!R207","v":112.563116570863},{"$f":"'[1]EXT RIN(M)'!S207","v":109.94387281875375},{"$f":"'[1]EXT RIN(M)'!T207","v":83.700001166394387},{"$f":"'[1]EXT RIN(M)'!U207","v":35.680205791948282},{"$f":"'[1]EXT RIN(M)'!V207","v":155.48732370098767},null,null,{"$f":"+'[1]MONE(M)CAPARD'!AE207","v":0.9608092484104408},{"$f":"'[1]MONE(M)CAPARD'!AF207","v":-3.6498511277098425E-2},{"$f":"'[1]MONE(M)CAPARD'!AG207","v":-2.6522542891341994},{"$f":"'[1]MONE(M)CAPARD'!AH207","v":3.5147638971906767},{"$f":"'[1]MONE(M)CAPARD'!AI207","v":2.0814565136228373},{"$f":"'[1]MONE(M)CAPARD'!AJ207","v":0.80314745881399274},{"$f":"'[1]MONE(M)CAPARD'!AK207","v":0.51947318908749596},null,null,{"$f":"'[1]MONE(M)CAPARD'!AL207","v":3.6},{"$f":"'[1]MONE(M)CAPARD'!AM207","v":4.3899999999999997},{"$f":"'[1]MONE(M)CAPARD'!AN207","v":3.88},{"$f":"'[1]MONE(M)CAPARD'!AO207","v":3.33},{"$f":"'[1]MONE(M)CAPARD'!AP207","v":5},{"$f":"'[1]MONE(M)CAPARD'!AQ207","v":2.83},{"$f":"'[1]MONE(M)CAPARD'!AR207","v":3.74},null,null,{"$f":"'[1]MONE(M)CAPARD'!J207","v":8.8864551550477717},{"$f":"'[1]MONE(M)CAPARD'!K207","v":2.6122768086460417},{"$f":"'[1]MONE(M)CAPARD'!L207","v":4.8045644367602023},{"$f":"'[1]MONE(M)CAPARD'!M207","v":11.273640167364018},{"$f":"'[1]MONE(M)CAPARD'!N207","v":7.3781358610277801},{"$f":"'[1]MONE(M)CAPARD'!O207","v":8.6109479231931623},{"$f":"'[1]MONE(M)CAPARD'!P207","v":4.0755409219191048},null,null,{"$f":"'[1]MONE(M)CAPARD'!Q207","v":11.14},{"$f":"'[1]MONE(M)CAPARD'!R207","v":7.15},{"$f":"'[1]MONE(M)CAPARD'!S207","v":7.57},{"$f":"'[1]MONE(M)CAPARD'!T207","v":8.91},{"$f":"'[1]MONE(M)CAPARD'!U207","v":10.4},{"$f":"'[1]MONE(M)CAPARD'!V207","v":8.35},{"$f":"'[1]MONE(M)CAPARD'!W207","v":7.41},null,null,{"$f":"'[1]MONE(M)CAPARD'!AS207","v":8.51},{"$f":"'[1]MONE(M)CAPARD'!AT207","v":"n.a."},{"$f":"'[1]MONE(M)CAPARD'!AU207","v":4.75},{"$f":"'[1]MONE(M)CAPARD'!AV207","v":6.5},{"$f":"'[1]MONE(M)CAPARD'!AW207","v":"n.a."},{"$f":"'[1]MONE(M)CAPARD'!AX207","v":10},{"$f":"'[1]MONE(M)CAPARD'!AY207","v":"n.a."},null,null,{"$f":"+'Datos_Regional (M)'!CF200","v":28.676773912451424},{"$f":"+'Datos_Regional (M)'!CG200","v":12.648099658012345},{"$f":"+'Datos_Regional (M)'!CH200","v":10.432409150206446},{"$f":"+'Datos_Regional (M)'!CI200","v":24.025631739942121},{"$f":"+'Datos_Regional (M)'!CJ200","v":32.383280222459},{"$f":"+'Datos_Regional (M)'!CK200","v":20.430382278475445},{"$f":"+'Datos_Regional (M)'!CL200","v":14.897359968446832},null,null,null,null,null,null,null,null,null,null,null,null,null,null,null,null,null,null,null,null,null,null,null,null,null,null,null,null,{"$f":"'[1]EXT Comercio(M)'!C207","v":748.31039812000063},{"$f":"'[1]EXT Comercio(M)'!D207","v":330.50000000000023},{"$f":"'[1]EXT Comercio(M)'!E207","v":543.70000000000027},{"$f":"'[1]EXT Comercio(M)'!F207","v":195.32250643696693},{"$f":"'[1]EXT Comercio(M)'!G207","v":174.15870000000001},{"$f":"'[1]EXT Comercio(M)'!H207","v":595.95899999999983},{"$f":"'[1]EXT Comercio(M)'!I207","v":696.54599999999994},{"$f":"'[1]EXT Comercio(M)'!K207","v":2587.9506045569688},{"$f":"'[1]EXT Comercio(M)'!L207","v":3284.496604556969},null,null,{"$f":"'[1]EXT Comercio(M)'!AG207","v":959.15423295999972},{"$f":"'[1]EXT Comercio(M)'!AH207","v":745.0300000000002},{"$f":"'[1]EXT Comercio(M)'!AI207","v":971.8},{"$f":"'[1]EXT Comercio(M)'!AJ207","v":510.63011593044484},{"$f":"'[1]EXT Comercio(M)'!AK207","v":306.50000000000011},{"$f":"'[1]EXT Comercio(M)'!AL207","v":995.59999999999991},{"$f":"'[1]EXT Comercio(M)'!AM207","v":1006.4809100000002},{"$f":"'[1]EXT Comercio(M)'!AO207","v":4488.7143488904439},{"$f":"'[1]EXT Comercio(M)'!AP207","v":5495.195258890446},null,null,{"$f":"'[1]EXT Comercio(M)'!$BS207","v":-1900.7637443334788},{"$f":"'[1]EXT Comercio(M)'!$BT207","v":-2210.6986543334788}]
[null,null,"Julio",{"$f":"'[1]REAL IPC(M)'!AD208","v":12.02600946663302},{"$f":"'[1]REAL IPC(M)'!AE208","v":5.552301745343807},{"$f":"'[1]REAL IPC(M)'!AF208","v":7.0355675216097628},{"$f":"'[1]REAL IPC(M)'!AG208","v":5.322479649342517},{"$f":"'[1]REAL IPC(M)'!AH208","v":9.1711956521739229},{"$f":"'[1]REAL IPC(M)'!AI208","v":10.601163542340007},{"$f":"'[1]REAL IPC(M)'!AJ208","v":2.8046421663442853},null,null,{"$f":"'[1]REAL IMAE(M)'!AG208","v":7.0685848251259022},{"$f":"'[1]REAL IMAE(M)'!AH208","v":1.4863965318741952},{"$f":"'[1]REAL IMAE(M)'!AI208","v":5.7772979341018393},{"$f":"'[1]REAL IMAE(M)'!AJ208","v":9.5579136554039117},{"$f":"'[1]REAL IMAE(M)'!AK208","v":"n.d."},{"$f":"'[1]REAL IMAE(M)'!AL208","v":"n.d."},{"$f":"'[1]REAL IMAE(M)'!AM208","v":9.857123231213075},null,null,{"$f":"'[1]EXT ITCER(M)'!C208","v":102.5711823072189},{"$f":"'[1]EXT ITCER(M)'!D208","v":95.300775911789557},{"$f":"'[1]EXT ITCER(M)'!E208","v":75.447304526632209},{"$f":"'[1]EXT ITCER(M)'!F208","v":95.020900294745559},{"$f":"'[1]EXT ITCER(M)'!G208","v":106.3806053840037},{"$f":"'[1]EXT ITCER(M)'!H208","v":96.890096520028735},{"$f":"'[1]EXT ITCER(M)'!I208","v":107.53063200016079},null,null,{"$f":"'[1]EXT TC(M)'!J208","v":7.2663951639162061},{"$f":"'[1]EXT TC(M)'!K208","v":0},{"$f":"'[1]EXT TC(M)'!L208","v":-7.9681695373191197E-2},{"$f":"'[1]EXT TC(M)'!M208","v":0.1589825119236756},{"$f":"'[1]EXT TC(M)'!N208","v":4.8793715099395145},{"$f":"'[1]EXT TC(M)'!O208","v":13.231237252393949},{"$f":"'[1]EXT TC(M)'!P208","v":0},null,null,{"$f":"'[1]EXT RIN(M)'!C208","v":2588.1},{"$f":"'[1]EXT RIN(M)'!D208","v":2257},{"$f":"'[1]EXT RIN(M)'!E208","v":4038.2},{"$f":"'[1]EXT RIN(M)'!F208","v":2495.5068193657653},{"$f":"'[1]EXT RIN(M)'!G208","v":853.3},{"$f":"'[1]EXT RIN(M)'!H208","v":1603.2},{"$f":"'[1]EXT RIN(M)'!I208","v":1170.0952668014199},null,null,{"$f":"'[1]EXT RIN(M)'!P208","v":56.717919357660548},{"$f":"'[1]EXT RIN(M)'!Q208","v":109.0473551547221},{"$f":"'[1]EXT RIN(M)'!R208","v":110.13940226151702},{"$f":"'[1]EXT RIN(M)'!S208","v":113.87922713777145},{"$f":"'[1]EXT RIN(M)'!T208","v":84.723603846593292},{"$f":"'[1]EXT RIN(M)'!U208","v":35.671129885585025},{"$f":"'[1]EXT RIN(M)'!V208","v":151.56518659495978},null,null,{"$f":"+'[1]MONE(M)CAPARD'!AE208","v":1.5389198826014336},{"$f":"'[1]MONE(M)CAPARD'!AF208","v":-0.96838580778900196},{"$f":"'[1]MONE(M)CAPARD'!AG208","v":-2.1913907460117947},{"$f":"'[1]MONE(M)CAPARD'!AH208","v":3.5771284185493459},{"$f":"'[1]MONE(M)CAPARD'!AI208","v":2.3131880079041438},{"$f":"'[1]MONE(M)CAPARD'!AJ208","v":-0.32654587960256631},{"$f":"'[1]MONE(M)CAPARD'!AK208","v":1.1432925682032071},null,null,{"$f":"'[1]MONE(M)CAPARD'!AL208","v":4},{"$f":"'[1]MONE(M)CAPARD'!AM208","v":4.53},{"$f":"'[1]MONE(M)CAPARD'!AN208","v":3.86},{"$f":"'[1]MONE(M)CAPARD'!AO208","v":3.37},{"$f":"'[1]MONE(M)CAPARD'!AP208","v":4.9000000000000004},{"$f":"'[1]MONE(M)CAPARD'!AQ208","v":2.7},{"$f":"'[1]MONE(M)CAPARD'!AR208","v":3.98},null,null,{"$f":"'[1]MONE(M)CAPARD'!J208","v":9.2246350490998807},{"$f":"'[1]MONE(M)CAPARD'!K208","v":1.7327765869511118},{"$f":"'[1]MONE(M)CAPARD'!L208","v":5.2921029986099022},{"$f":"'[1]MONE(M)CAPARD'!M208","v":11.324762187871581},{"$f":"'[1]MONE(M)CAPARD'!N208","v":7.8851738336867188},{"$f":"'[1]MONE(M)CAPARD'!O208","v":9.1037346580946892},{"$f":"'[1]MONE(M)CAPARD'!P208","v":4.4602634054562644},null,null,{"$f":"'[1]MONE(M)CAPARD'!Q208","v":11.06},{"$f":"'[1]MONE(M)CAPARD'!R208","v":7.38},{"$f":"'[1]MONE(M)CAPARD'!S208","v":7.55},{"$f":"'[1]MONE(M)CAPARD'!T208","v":9.0399999999999991},{"$f":"'[1]MONE(M)CAPARD'!U208","v":10.7},{"$f":"'[1]MONE(M)CAPARD'!V208","v":7.47},{"$f":"'[1]MONE(M)CAPARD'!W208","v":7.39},null,null,{"$f":"'[1]MONE(M)CAPARD'!AS208","v":9.1999999999999993},{"$f":"'[1]MONE(M)CAPARD'!AT208","v":"n.a."},{"$f":"'[1]MONE(M)CAPARD'!AU208","v":5},{"$f":"'[1]MONE(M)CAPARD'!AV208","v":6.5},{"$f":"'[1]MONE(M)CAPARD'!AW208","v":"n.a."},{"$f":"'[1]MONE(M)CAPARD'!AX208","v":10},{"$f":"'[1]MONE(M)CAPARD'!AY208","v":"n.a."},null,null,{"$f":"+'Datos_Regional (M)'!CF201","v":29.88101983577096},{"$f":"+'Datos_Regional (M)'!CG201","v":12.933105287067281},{"$f":"+'Datos_Regional (M)'!CH201","v":9.491381901729401},{"$f":"+'Datos_Regional (M)'!CI201","v":23.684151770169848},{"$f":"+'Datos_Regional (M)'!CJ201","v":34.20576039234917},{"$f":"+'Datos_Regional (M)'!CK201","v":20.631768338058865},{"$f":"+'Datos_Regional (M)'!CL201","v":14.851197703255782},null,null,null,null,null,null,null,null,null,null,null,null,null,null,null,null,null,null,null,null,null,null,null,null,null,null,null,null,{"$f":"'[1]EXT Comercio(M)'!C208","v":628.46014399999967},{"$f":"'[1]EXT Comercio(M)'!D208","v":328.89999999999964},{"$f":"'[1]EXT Comercio(M)'!E208","v":568.19999999999982},{"$f":"'[1]EXT Comercio(M)'!F208","v":179.08528911488315},{"$f":"'[1]EXT Comercio(M)'!G208","v":155.76930000000004},{"$f":"'[1]EXT Comercio(M)'!H208","v":534.09709999999995},{"$f":"'[1]EXT Comercio(M)'!I208","v":633.16300000000001},{"$f":"'[1]EXT Comercio(M)'!K208","v":2394.5118331148824},{"$f":"'[1]EXT Comercio(M)'!L208","v":3027.674833114881},null,null,{"$f":"'[1]EXT Comercio(M)'!AG208","v":970.95297905999996},{"$f":"'[1]EXT Comercio(M)'!AH208","v":710.60000000000036},{"$f":"'[1]EXT Comercio(M)'!AI208","v":1028.8999999999999},{"$f":"'[1]EXT Comercio(M)'!AJ208","v":478.96918852355384},{"$f":"'[1]EXT Comercio(M)'!AK208","v":308.00000000000006},{"$f":"'[1]EXT Comercio(M)'!AL208","v":1071.9999999999998},{"$f":"'[1]EXT Comercio(M)'!AM208","v":1033.4480789999998},{"$f":"'[1]EXT Comercio(M)'!AO208","v":4569.4221675835506},{"$f":"'[1]EXT Comercio(M)'!AP208","v":5602.8702465835522},null,null,{"$f":"'[1]EXT Comercio(M)'!$BS208","v":-2174.91033446867},{"$f":"'[1]EXT Comercio(M)'!$BT208","v":-2575.1954134686694}]
[null,null,"Agosto",{"$f":"'[1]REAL IPC(M)'!AD209","v":11.614065597123826},{"$f":"'[1]REAL IPC(M)'!AE209","v":4.7079439252336419},{"$f":"'[1]REAL IPC(M)'!AF209","v":6.9961171902576735},{"$f":"'[1]REAL IPC(M)'!AG209","v":4.8447204968944169},{"$f":"'[1]REAL IPC(M)'!AH209","v":8.6501687289088824},{"$f":"'[1]REAL IPC(M)'!AI209","v":9.3489614479926448},{"$f":"'[1]REAL IPC(M)'!AJ209","v":2.9013539651837639},null,null,{"$f":"'[1]REAL IMAE(M)'!AG209","v":7.5663050385286574},{"$f":"'[1]REAL IMAE(M)'!AH209","v":2.95797038354499},{"$f":"'[1]REAL IMAE(M)'!AI209","v":6.6939002046125813},{"$f":"'[1]REAL IMAE(M)'!AJ209","v":9.7328285709503852},{"$f":"'[1]REAL IMAE(M)'!AK209","v":"n.d."},{"$f":"'[1]REAL IMAE(M)'!AL209","v":"n.d."},{"$f":"'[1]REAL IMAE(M)'!AM209","v":10.236759271931032},null,null,{"$f":"'[1]EXT ITCER(M)'!C209","v":102.65021310829481},{"$f":"'[1]EXT ITCER(M)'!D209","v":96.243731574325736},{"$f":"'[1]EXT ITCER(M)'!E209","v":75.527838668642602},{"$f":"'[1]EXT ITCER(M)'!F209","v":95.103132673031027},{"$f":"'[1]EXT ITCER(M)'!G209","v":107.2121722552494},{"$f":"'[1]EXT ITCER(M)'!H209","v":96.77949611084486},{"$f":"'[1]EXT ITCER(M)'!I209","v":107.9060928479511},null,null,{"$f":"'[1]EXT TC(M)'!J209","v":7.1502751059285634},{"$f":"'[1]EXT TC(M)'!K209","v":0},{"$f":"'[1]EXT TC(M)'!L209","v":-7.2170253189606737E-2},{"$f":"'[1]EXT TC(M)'!M209","v":0.1589825119236756},{"$f":"'[1]EXT TC(M)'!N209","v":4.9273131014063685},{"$f":"'[1]EXT TC(M)'!O209","v":12.52853349884486},{"$f":"'[1]EXT TC(M)'!P209","v":0},null,null,{"$f":"'[1]EXT RIN(M)'!C209","v":2675.6},{"$f":"'[1]EXT RIN(M)'!D209","v":2070.3000000000002},{"$f":"'[1]EXT RIN(M)'!E209","v":4031.8},{"$f":"'[1]EXT RIN(M)'!F209","v":2597.6150644142435},{"$f":"'[1]EXT RIN(M)'!G209","v":830.4},{"$f":"'[1]EXT RIN(M)'!H209","v":1645},{"$f":"'[1]EXT RIN(M)'!I209","v":991.54574445036008},null,null,{"$f":"'[1]EXT RIN(M)'!P209","v":58.607651805603957},{"$f":"'[1]EXT RIN(M)'!Q209","v":100.75894069516518},{"$f":"'[1]EXT RIN(M)'!R209","v":113.43398387823622},{"$f":"'[1]EXT RIN(M)'!S209","v":116.38403829621112},{"$f":"'[1]EXT RIN(M)'!T209","v":84.816116199415731},{"$f":"'[1]EXT RIN(M)'!U209","v":35.4173370629034},{"$f":"'[1]EXT RIN(M)'!V209","v":124.83811126517543},null,null,{"$f":"+'[1]MONE(M)CAPARD'!AE209","v":1.9136785238035576},{"$f":"'[1]MONE(M)CAPARD'!AF209","v":-0.11698427048048278},{"$f":"'[1]MONE(M)CAPARD'!AG209","v":-2.1459817893903366},{"$f":"'[1]MONE(M)CAPARD'!AH209","v":3.7057464454976241},{"$f":"'[1]MONE(M)CAPARD'!AI209","v":1.9816572135735517},{"$f":"'[1]MONE(M)CAPARD'!AJ209","v":-0.86782849642699089},{"$f":"'[1]MONE(M)CAPARD'!AK209","v":1.0482330827067556},null,null,{"$f":"'[1]MONE(M)CAPARD'!AL209","v":4},{"$f":"'[1]MONE(M)CAPARD'!AM209","v":4.59},{"$f":"'[1]MONE(M)CAPARD'!AN209","v":3.94},{"$f":"'[1]MONE(M)CAPARD'!AO209","v":3.42},{"$f":"'[1]MONE(M)CAPARD'!AP209","v":5.2},{"$f":"'[1]MONE(M)CAPARD'!AQ209","v":2.5},{"$f":"'[1]MONE(M)CAPARD'!AR209","v":3.98},null,null,{"$f":"'[1]MONE(M)CAPARD'!J209","v":9.75319225640383},{"$f":"'[1]MONE(M)CAPARD'!K209","v":2.6621329742477826},{"$f":"'[1]MONE(M)CAPARD'!L209","v":5.3215789126418613},{"$f":"'[1]MONE(M)CAPARD'!M209","v":11.660367298578191},{"$f":"'[1]MONE(M)CAPARD'!N209","v":8.1623637113658898},{"$f":"'[1]MONE(M)CAPARD'!O209","v":9.5666556074085065},{"$f":"'[1]MONE(M)CAPARD'!P209","v":4.4106766917293125},null,null,{"$f":"'[1]MONE(M)CAPARD'!Q209","v":11.01},{"$f":"'[1]MONE(M)CAPARD'!R209","v":7.5},{"$f":"'[1]MONE(M)CAPARD'!S209","v":7.7399999999999993},{"$f":"'[1]MONE(M)CAPARD'!T209","v":9.0399999999999991},{"$f":"'[1]MONE(M)CAPARD'!U209","v":10.4},{"$f":"'[1]MONE(M)CAPARD'!V209","v":8.1999999999999993},{"$f":"'[1]MONE(M)CAPARD'!W209","v":7.44},null,null,{"$f":"'[1]MONE(M)CAPARD'!AS209","v":9.1999999999999993},{"$f":"'[1]MONE(M)CAPARD'!AT209","v":"n.a."},{"$f":"'[1]MONE(M)CAPARD'!AU209","v":5},{"$f":"'[1]MONE(M)CAPARD'!AV209","v":6.5},{"$f":"'[1]MONE(M)CAPARD'!AW209","v":"n.a."},{"$f":"'[1]MONE(M)CAPARD'!AX209","v":8},{"$f":"'[1]MONE(M)CAPARD'!AY209","v":"n.a."},null,null,{"$f":"+'Datos_Regional (M)'!CF202","v":29.442459616577409},{"$f":"+'Datos_Regional (M)'!CG202","v":13.180534372214336},{"$f":"+'Datos_Regional (M)'!CH202","v":9.7963922850724536},{"$f":"+'Datos_Regional (M)'!CI202","v":26.41370031961592},{"$f":"+'Datos_Regional (M)'!CJ202","v":34.231942963984707},{"$f":"+'Datos_Regional (M)'!CK202","v":20.392618218128099},{"$f":"+'Datos_Regional (M)'!CL202","v":15.144955284079176},null,null,null,null,null,null,null,null,null,null,null,null,null,null,null,null,null,null,null,null,null,null,null,null,null,null,null,null,{"$f":"'[1]EXT Comercio(M)'!C209","v":718.98630540999966},{"$f":"'[1]EXT Comercio(M)'!D209","v":308.55000000000018},{"$f":"'[1]EXT Comercio(M)'!E209","v":530.90000000000032},{"$f":"'[1]EXT Comercio(M)'!F209","v":162.20858367926917},{"$f":"'[1]EXT Comercio(M)'!G209","v":186.43639999999999},{"$f":"'[1]EXT Comercio(M)'!H209","v":596.3438000000001},{"$f":"'[1]EXT Comercio(M)'!I209","v":757.88799999999992},{"$f":"'[1]EXT Comercio(M)'!K209","v":2503.425089089269},{"$f":"'[1]EXT Comercio(M)'!L209","v":3261.3130890892717},null,null,{"$f":"'[1]EXT Comercio(M)'!AG209","v":1030.1968674199998},{"$f":"'[1]EXT Comercio(M)'!AH209","v":605.3799999999992},{"$f":"'[1]EXT Comercio(M)'!AI209","v":1060.1000000000008},{"$f":"'[1]EXT Comercio(M)'!AJ209","v":496.83527569275293},{"$f":"'[1]EXT Comercio(M)'!AK209","v":331.2000000000001},{"$f":"'[1]EXT Comercio(M)'!AL209","v":1169.0000000000002},{"$f":"'[1]EXT Comercio(M)'!AM209","v":1157.9029500000001},{"$f":"'[1]EXT Comercio(M)'!AO209","v":4692.7121431127525},{"$f":"'[1]EXT Comercio(M)'!AP209","v":5850.6150931127486},null,null,{"$f":"'[1]EXT Comercio(M)'!$BS209","v":-2189.2870540234817},{"$f":"'[1]EXT Comercio(M)'!$BT209","v":-2589.3020040234805}]
[null,null,"Setiembre",{"$f":"'[1]REAL IPC(M)'!AD210","v":11.239649756896396},{"$f":"'[1]REAL IPC(M)'!AE210","v":4.235020360674806},{"$f":"'[1]REAL IPC(M)'!AF210","v":5.6982849142457317},{"$f":"'[1]REAL IPC(M)'!AG210","v":4.4554455445544665},{"$f":"'[1]REAL IPC(M)'!AH210","v":7.4860335195530761},{"$f":"'[1]REAL IPC(M)'!AI210","v":4.7295471217327361},{"$f":"'[1]REAL IPC(M)'!AJ210","v":1.6299137104506298},null,null,{"$f":"'[1]REAL IMAE(M)'!AG210","v":8.1953577206623489},{"$f":"'[1]REAL IMAE(M)'!AH210","v":6.0063689186895965},{"$f":"'[1]REAL IMAE(M)'!AI210","v":7.3005378560715677},{"$f":"'[1]REAL IMAE(M)'!AJ210","v":10.140844564010141},{"$f":"'[1]REAL IMAE(M)'!AK210","v":"n.d."},{"$f":"'[1]REAL IMAE(M)'!AL210","v":"n.d."},{"$f":"'[1]REAL IMAE(M)'!AM210","v":10.422765334604128},null,null,{"$f":"'[1]EXT ITCER(M)'!C210","v":102.8336945657792},{"$f":"'[1]EXT ITCER(M)'!D210","v":95.803149986550167},{"$f":"'[1]EXT ITCER(M)'!E210","v":75.681330341729577},{"$f":"'[1]EXT ITCER(M)'!F210","v":94.636483346863074},{"$f":"'[1]EXT ITCER(M)'!G210","v":107.29390133134559},{"$f":"'[1]EXT ITCER(M)'!H210","v":98.317020156629411},{"$f":"'[1]EXT ITCER(M)'!I210","v":107.7818171248941},null,null,{"$f":"'[1]EXT TC(M)'!J210","v":7.0035757378140691},{"$f":"'[1]EXT TC(M)'!K210","v":0},{"$f":"'[1]EXT TC(M)'!L210","v":-0.19428750083744134},{"$f":"'[1]EXT TC(M)'!M210","v":0.10593220338982826},{"$f":"'[1]EXT TC(M)'!N210","v":4.6985060874582079},{"$f":"'[1]EXT TC(M)'!O210","v":8.3052841947486815},{"$f":"'[1]EXT TC(M)'!P210","v":0},null,null,{"$f":"'[1]EXT RIN(M)'!C210","v":2764.6},{"$f":"'[1]EXT RIN(M)'!D210","v":2017.3},{"$f":"'[1]EXT RIN(M)'!E210","v":4031.3},{"$f":"'[1]EXT RIN(M)'!F210","v":2552.4508792756892},{"$f":"'[1]EXT RIN(M)'!G210","v":824.7},{"$f":"'[1]EXT RIN(M)'!H210","v":1582.9},{"$f":"'[1]EXT RIN(M)'!I210","v":906.06812264791006},null,null,{"$f":"'[1]EXT RIN(M)'!P210","v":58.559557009563832},{"$f":"'[1]EXT RIN(M)'!Q210","v":94.516337603193506},{"$f":"'[1]EXT RIN(M)'!R210","v":109.52317551649166},{"$f":"'[1]EXT RIN(M)'!S210","v":117.7459844380077},{"$f":"'[1]EXT RIN(M)'!T210","v":85.182868558149082},{"$f":"'[1]EXT RIN(M)'!U210","v":35.370695825987589},{"$f":"'[1]EXT RIN(M)'!V210","v":113.60851123721952},null,null,{"$f":"+'[1]MONE(M)CAPARD'!AE210","v":2.0319645450550974},{"$f":"'[1]MONE(M)CAPARD'!AF210","v":0.33027052031187254},{"$f":"'[1]MONE(M)CAPARD'!AG210","v":-0.92554473806214177},{"$f":"'[1]MONE(M)CAPARD'!AH210","v":3.8337440758293742},{"$f":"'[1]MONE(M)CAPARD'!AI210","v":2.5107208802128045},{"$f":"'[1]MONE(M)CAPARD'!AJ210","v":2.6166950527169655},{"$f":"'[1]MONE(M)CAPARD'!AK210","v":2.469830188679238},null,null,{"$f":"'[1]MONE(M)CAPARD'!AL210","v":4.01},{"$f":"'[1]MONE(M)CAPARD'!AM210","v":4.58},{"$f":"'[1]MONE(M)CAPARD'!AN210","v":3.95},{"$f":"'[1]MONE(M)CAPARD'!AO210","v":3.5},{"$f":"'[1]MONE(M)CAPARD'!AP210","v":4.95},{"$f":"'[1]MONE(M)CAPARD'!AQ210","v":2.91},{"$f":"'[1]MONE(M)CAPARD'!AR210","v":4.1399999999999997},null,null,{"$f":"'[1]MONE(M)CAPARD'!J210","v":10.05068810225238},{"$f":"'[1]MONE(M)CAPARD'!K210","v":3.2331768286285931},{"$f":"'[1]MONE(M)CAPARD'!L210","v":6.6242466388502343},{"$f":"'[1]MONE(M)CAPARD'!M210","v":11.932890995260655},{"$f":"'[1]MONE(M)CAPARD'!N210","v":9.6798476920558656},{"$f":"'[1]MONE(M)CAPARD'!O210","v":12.251034431910359},{"$f":"'[1]MONE(M)CAPARD'!P210","v":5.726745283018861},null,null,{"$f":"'[1]MONE(M)CAPARD'!Q210","v":11},{"$f":"'[1]MONE(M)CAPARD'!R210","v":7.61},{"$f":"'[1]MONE(M)CAPARD'!S210","v":7.7299999999999995},{"$f":"'[1]MONE(M)CAPARD'!T210","v":9.06},{"$f":"'[1]MONE(M)CAPARD'!U210","v":10.6},{"$f":"'[1]MONE(M)CAPARD'!V210","v":8.15},{"$f":"'[1]MONE(M)CAPARD'!W210","v":7.45},null,null,{"$f":"'[1]MONE(M)CAPARD'!AS210","v":9.1999999999999993},{"$f":"'[1]MONE(M)CAPARD'!AT210","v":"n.a."},{"$f":"'[1]MONE(M)CAPARD'!AU210","v":5},{"$f":"'[1]MONE(M)CAPARD'!AV210","v":6},{"$f":"'[1]MONE(M)CAPARD'!AW210","v":"n.a."},{"$f":"'[1]MONE(M)CAPARD'!AX210","v":8},{"$f":"'[1]MONE(M)CAPARD'!AY210","v":"n.a."},null,null,{"$f":"+'Datos_Regional (M)'!CF203","v":28.76606106737345},{"$f":"+'Datos_Regional (M)'!CG203","v":10.478764499582226},{"$f":"+'Datos_Regional (M)'!CH203","v":10.555102234319214},{"$f":"+'Datos_Regional (M)'!CI203","v":25.766264714812625},{"$f":"+'Datos_Regional (M)'!CJ203","v":34.210318719132204},{"$f":"+'Datos_Regional (M)'!CK203","v":18.301422585889938},{"$f":"+'Datos_Regional (M)'!CL203","v":15.321998372030542},null,null,null,null,null,null,null,null,null,null,null,null,null,null,null,null,null,null,null,null,null,null,null,null,null,null,null,null,{"$f":"'[1]EXT Comercio(M)'!C210","v":713.49606009000036},{"$f":"'[1]EXT Comercio(M)'!D210","v":328.69000000000051},{"$f":"'[1]EXT Comercio(M)'!E210","v":593.89999999999986},{"$f":"'[1]EXT Comercio(M)'!F210","v":141.04834327899357},{"$f":"'[1]EXT Comercio(M)'!G210","v":164.37910000000002},{"$f":"'[1]EXT Comercio(M)'!H210","v":624.10519999999997},{"$f":"'[1]EXT Comercio(M)'!I210","v":805.48099999999988},{"$f":"'[1]EXT Comercio(M)'!K210","v":2565.6187033689966},{"$f":"'[1]EXT Comercio(M)'!L210","v":3371.0997033689928},null,null,{"$f":"'[1]EXT Comercio(M)'!AG210","v":969.2747209299996},{"$f":"'[1]EXT Comercio(M)'!AH210","v":639.75},{"$f":"'[1]EXT Comercio(M)'!AI210","v":1008.7},{"$f":"'[1]EXT Comercio(M)'!AJ210","v":465.54228456237934},{"$f":"'[1]EXT Comercio(M)'!AK210","v":310.4000000000002},{"$f":"'[1]EXT Comercio(M)'!AL210","v":1016.3999999999996},{"$f":"'[1]EXT Comercio(M)'!AM210","v":1109.3948429999998},{"$f":"'[1]EXT Comercio(M)'!AO210","v":4410.0670054923758},{"$f":"'[1]EXT Comercio(M)'!AP210","v":5519.4618484923776},null,null,{"$f":"'[1]EXT Comercio(M)'!$BS210","v":-1844.4483021233864},{"$f":"'[1]EXT Comercio(M)'!$BT210","v":-2148.3621451233885}]
[null,null,"Octubre",{"$f":"'[1]REAL IPC(M)'!AD211","v":10.085398343659078},{"$f":"'[1]REAL IPC(M)'!AE211","v":1.8837766868363959},{"$f":"'[1]REAL IPC(M)'!AF211","v":3.8509180721097915},{"$f":"'[1]REAL IPC(M)'!AG211","v":4.5145330859616646},{"$f":"'[1]REAL IPC(M)'!AH211","v":6.9744271006310168},{"$f":"'[1]REAL IPC(M)'!AI211","v":3.6847531406316039},{"$f":"'[1]REAL IPC(M)'!AJ211","v":1.3346043851286793},null,null,{"$f":"'[1]REAL IMAE(M)'!AG211","v":8.5474242362079114},{"$f":"'[1]REAL IMAE(M)'!AH211","v":7.6964094644194292},{"$f":"'[1]REAL IMAE(M)'!AI211","v":7.5494600205035765},{"$f":"'[1]REAL IMAE(M)'!AJ211","v":10.50079996387873},{"$f":"'[1]REAL IMAE(M)'!AK211","v":"n.d."},{"$f":"'[1]REAL IMAE(M)'!AL211","v":"n.d."},{"$f":"'[1]REAL IMAE(M)'!AM211","v":10.378634212305608},null,null,{"$f":"'[1]EXT ITCER(M)'!C211","v":102.0872367962845},{"$f":"'[1]EXT ITCER(M)'!D211","v":95.75844441796832},{"$f":"'[1]EXT ITCER(M)'!E211","v":75.434455146559998},{"$f":"'[1]EXT ITCER(M)'!F211","v":94.105000137982543},{"$f":"'[1]EXT ITCER(M)'!G211","v":106.8253597485363},{"$f":"'[1]EXT ITCER(M)'!H211","v":99.335369177861097},{"$f":"'[1]EXT ITCER(M)'!I211","v":107.0006633850787},null,null,{"$f":"'[1]EXT TC(M)'!J211","v":6.2123866763761075},{"$f":"'[1]EXT TC(M)'!K211","v":0},{"$f":"'[1]EXT TC(M)'!L211","v":-0.79417258904438459},{"$f":"'[1]EXT TC(M)'!M211","v":5.2938062466903177E-2},{"$f":"'[1]EXT TC(M)'!N211","v":4.8196879372582258},{"$f":"'[1]EXT TC(M)'!O211","v":3.293166494376127},{"$f":"'[1]EXT TC(M)'!P211","v":0},null,null,{"$f":"'[1]EXT RIN(M)'!C211","v":2882.3},{"$f":"'[1]EXT RIN(M)'!D211","v":2020.5},{"$f":"'[1]EXT RIN(M)'!E211","v":4036.3},{"$f":"'[1]EXT RIN(M)'!F211","v":2538.5154229952577},{"$f":"'[1]EXT RIN(M)'!G211","v":804.4},{"$f":"'[1]EXT RIN(M)'!H211","v":1717.2},{"$f":"'[1]EXT RIN(M)'!I211","v":921.9005963797199},null,null,{"$f":"'[1]EXT RIN(M)'!P211","v":59.319298653483735},{"$f":"'[1]EXT RIN(M)'!Q211","v":92.242457278799577},{"$f":"'[1]EXT RIN(M)'!R211","v":104.28778506152831},{"$f":"'[1]EXT RIN(M)'!S211","v":121.41518841790402},{"$f":"'[1]EXT RIN(M)'!T211","v":85.826123378218},{"$f":"'[1]EXT RIN(M)'!U211","v":37.882658799880637},{"$f":"'[1]EXT RIN(M)'!V211","v":114.0051858009642},null,null,{"$f":"+'[1]MONE(M)CAPARD'!AE211","v":2.8746788438388782},{"$f":"'[1]MONE(M)CAPARD'!AF211","v":2.6925386804357494},{"$f":"'[1]MONE(M)CAPARD'!AG211","v":0.92351800609433332},{"$f":"'[1]MONE(M)CAPARD'!AH211","v":3.5262721893491049},{"$f":"'[1]MONE(M)CAPARD'!AI211","v":3.7375068293501239},{"$f":"'[1]MONE(M)CAPARD'!AJ211","v":3.5639250202548012},{"$f":"'[1]MONE(M)CAPARD'!AK211","v":2.8177892756350102},null,null,{"$f":"'[1]MONE(M)CAPARD'!AL211","v":3.835},{"$f":"'[1]MONE(M)CAPARD'!AM211","v":4.63},{"$f":"'[1]MONE(M)CAPARD'!AN211","v":3.95},{"$f":"'[1]MONE(M)CAPARD'!AO211","v":3.57},{"$f":"'[1]MONE(M)CAPARD'!AP211","v":5.0599999999999996},{"$f":"'[1]MONE(M)CAPARD'!AQ211","v":2.73},{"$f":"'[1]MONE(M)CAPARD'!AR211","v":4.1900000000000004},null,null,{"$f":"'[1]MONE(M)CAPARD'!J211","v":10.87755673005716},{"$f":"'[1]MONE(M)CAPARD'!K211","v":5.6380587388865138},{"$f":"'[1]MONE(M)CAPARD'!L211","v":8.7231601762056208},{"$f":"'[1]MONE(M)CAPARD'!M211","v":11.678248520710051},{"$f":"'[1]MONE(M)CAPARD'!N211","v":10.135975891366355},{"$f":"'[1]MONE(M)CAPARD'!O211","v":12.967429108050334},{"$f":"'[1]MONE(M)CAPARD'!P211","v":6.064459078080918},null,null,{"$f":"'[1]MONE(M)CAPARD'!Q211","v":10.99},{"$f":"'[1]MONE(M)CAPARD'!R211","v":7.63},{"$f":"'[1]MONE(M)CAPARD'!S211","v":7.7200000000000006},{"$f":"'[1]MONE(M)CAPARD'!T211","v":9.06},{"$f":"'[1]MONE(M)CAPARD'!U211","v":10.8},{"$f":"'[1]MONE(M)CAPARD'!V211","v":8.06},{"$f":"'[1]MONE(M)CAPARD'!W211","v":7.48},null,null,{"$f":"'[1]MONE(M)CAPARD'!AS211","v":9.1999999999999993},{"$f":"'[1]MONE(M)CAPARD'!AT211","v":"n.a."},{"$f":"'[1]MONE(M)CAPARD'!AU211","v":5},{"$f":"'[1]MONE(M)CAPARD'!AV211","v":6},{"$f":"'[1]MONE(M)CAPARD'!AW211","v":"n.a."},{"$f":"'[1]MONE(M)CAPARD'!AX211","v":8},{"$f":"'[1]MONE(M)CAPARD'!AY211","v":"n.a."},null,null,{"$f":"+'Datos_Regional (M)'!CF204","v":27.87577257438436},{"$f":"+'Datos_Regional (M)'!CG204","v":10.148382736914208},{"$f":"+'Datos_Regional (M)'!CH204","v":11.203495106865979},{"$f":"+'Datos_Regional (M)'!CI204","v":28.150625084411594},{"$f":"+'Datos_Regional (M)'!CJ204","v":33.737539178871415},{"$f":"+'Datos_Regional (M)'!CK204","v":16.1962027309017},{"$f":"+'Datos_Regional (M)'!CL204","v":15.195246216398939},null,null,null,null,null,null,null,null,null,null,null,null,null,null,null,null,null,null,null,null,null,null,null,null,null,null,null,null,{"$f":"'[1]EXT Comercio(M)'!C211","v":705.68679489999977},{"$f":"'[1]EXT Comercio(M)'!D211","v":287},{"$f":"'[1]EXT Comercio(M)'!E211","v":533.19999999999982},{"$f":"'[1]EXT Comercio(M)'!F211","v":153.88775569585482},{"$f":"'[1]EXT Comercio(M)'!G211","v":183.32629999999995},{"$f":"'[1]EXT Comercio(M)'!H211","v":574.88709999999992},{"$f":"'[1]EXT Comercio(M)'!I211","v":957.74},{"$f":"'[1]EXT Comercio(M)'!K211","v":2437.9879505958525},{"$f":"'[1]EXT Comercio(M)'!L211","v":3395.7279505958541},null,null,{"$f":"'[1]EXT Comercio(M)'!AG211","v":1025.6791732399997},{"$f":"'[1]EXT Comercio(M)'!AH211","v":628.09000000000015},{"$f":"'[1]EXT Comercio(M)'!AI211","v":1078.7999999999995},{"$f":"'[1]EXT Comercio(M)'!AJ211","v":523.69304758456519},{"$f":"'[1]EXT Comercio(M)'!AK211","v":327.59999999999991},{"$f":"'[1]EXT Comercio(M)'!AL211","v":1116.2000000000003},{"$f":"'[1]EXT Comercio(M)'!AM211","v":1181.327949},{"$f":"'[1]EXT Comercio(M)'!AO211","v":4700.0622208245768},{"$f":"'[1]EXT Comercio(M)'!AP211","v":5881.3901698245754},null,null,{"$f":"'[1]EXT Comercio(M)'!$BS211","v":-2262.0742702287098},{"$f":"'[1]EXT Comercio(M)'!$BT211","v":-2485.6622192287105}]
[null,null,"Noviembre",{"$f":"'[1]REAL IPC(M)'!AD212","v":9.4247765712161744},{"$f":"'[1]REAL IPC(M)'!AE212","v":3.8510466057592092},{"$f":"'[1]REAL IPC(M)'!AF212","v":4.4010452482464757},{"$f":"'[1]REAL IPC(M)'!AG212","v":4.8765432098765462},{"$f":"'[1]REAL IPC(M)'!AH212","v":8.0937048961918592},{"$f":"'[1]REAL IPC(M)'!AI212","v":5.2331626169663901},{"$f":"'[1]REAL IPC(M)'!AJ212","v":2.0134228187919545},null,null,{"$f":"'[1]REAL IMAE(M)'!AG212","v":8.3839472289222705},{"$f":"'[1]REAL IMAE(M)'!AH212","v":5.677672126723099},{"$f":"'[1]REAL IMAE(M)'!AI212","v":7.4750773817250167},{"$f":"'[1]REAL IMAE(M)'!AJ212","v":10.784750223940454},{"$f":"'[1]REAL IMAE(M)'!AK212","v":"n.d."},{"$f":"'[1]REAL IMAE(M)'!AL212","v":"n.d."},{"$f":"'[1]REAL IMAE(M)'!AM212","v":10.14949386605887},null,null,{"$f":"'[1]EXT ITCER(M)'!C212","v":100.4765276744464},{"$f":"'[1]EXT ITCER(M)'!D212","v":95.203218563417948},{"$f":"'[1]EXT ITCER(M)'!E212","v":74.985667868720441},{"$f":"'[1]EXT ITCER(M)'!F212","v":93.65286676836233},{"$f":"'[1]EXT ITCER(M)'!G212","v":106.59012724727189},{"$f":"'[1]EXT ITCER(M)'!H212","v":99.003424482265174},{"$f":"'[1]EXT ITCER(M)'!I212","v":106.9530459042499},null,null,{"$f":"'[1]EXT TC(M)'!J212","v":4.8579419491384375},{"$f":"'[1]EXT TC(M)'!K212","v":0},{"$f":"'[1]EXT TC(M)'!L212","v":-2.2102907453289161E-2},{"$f":"'[1]EXT TC(M)'!M212","v":0},{"$f":"'[1]EXT TC(M)'!N212","v":4.888392328238286},{"$f":"'[1]EXT TC(M)'!O212","v":0.92446679257537701},{"$f":"'[1]EXT TC(M)'!P212","v":0},null,null,{"$f":"'[1]EXT RIN(M)'!C212","v":3122.5},{"$f":"'[1]EXT RIN(M)'!D212","v":2020.8},{"$f":"'[1]EXT RIN(M)'!E212","v":4053},{"$f":"'[1]EXT RIN(M)'!F212","v":2506.7516600872182},{"$f":"'[1]EXT RIN(M)'!G212","v":832.9},{"$f":"'[1]EXT RIN(M)'!H212","v":1760.9},{"$f":"'[1]EXT RIN(M)'!I212","v":1833.7288151269699},null,null,{"$f":"'[1]EXT RIN(M)'!P212","v":62.053801856516579},{"$f":"'[1]EXT RIN(M)'!Q212","v":93.518840751408703},{"$f":"'[1]EXT RIN(M)'!R212","v":104.21618642679569},{"$f":"'[1]EXT RIN(M)'!S212","v":118.73420027187332},{"$f":"'[1]EXT RIN(M)'!T212","v":87.126842281197199},{"$f":"'[1]EXT RIN(M)'!U212","v":38.124975778018012},{"$f":"'[1]EXT RIN(M)'!V212","v":218.85746297013347},null,null,{"$f":"+'[1]MONE(M)CAPARD'!AE212","v":1.6680165918327721},{"$f":"'[1]MONE(M)CAPARD'!AF212","v":0.85475036244738567},{"$f":"'[1]MONE(M)CAPARD'!AG212","v":0.42045053352652795},{"$f":"'[1]MONE(M)CAPARD'!AH212","v":3.0831077104178894},{"$f":"'[1]MONE(M)CAPARD'!AI212","v":3.6912705967432697},{"$f":"'[1]MONE(M)CAPARD'!AJ212","v":2.3726716188524528},{"$f":"'[1]MONE(M)CAPARD'!AK212","v":2.829605263157887},null,null,{"$f":"'[1]MONE(M)CAPARD'!AL212","v":3.8849999999999998},{"$f":"'[1]MONE(M)CAPARD'!AM212","v":4.74},{"$f":"'[1]MONE(M)CAPARD'!AN212","v":3.97},{"$f":"'[1]MONE(M)CAPARD'!AO212","v":3.68},{"$f":"'[1]MONE(M)CAPARD'!AP212","v":5.63},{"$f":"'[1]MONE(M)CAPARD'!AQ212","v":2.62},{"$f":"'[1]MONE(M)CAPARD'!AR212","v":4.9000000000000004},null,null,{"$f":"'[1]MONE(M)CAPARD'!J212","v":10.422889391381158},{"$f":"'[1]MONE(M)CAPARD'!K212","v":3.6939633771001317},{"$f":"'[1]MONE(M)CAPARD'!L212","v":8.1215228560136836},{"$f":"'[1]MONE(M)CAPARD'!M212","v":10.978104767510299},{"$f":"'[1]MONE(M)CAPARD'!N212","v":8.8729230858562076},{"$f":"'[1]MONE(M)CAPARD'!O212","v":11.78985509367681},{"$f":"'[1]MONE(M)CAPARD'!P212","v":5.3782894736842017},null,null,{"$f":"'[1]MONE(M)CAPARD'!Q212","v":10.97},{"$f":"'[1]MONE(M)CAPARD'!R212","v":7.69},{"$f":"'[1]MONE(M)CAPARD'!S212","v":7.7},{"$f":"'[1]MONE(M)CAPARD'!T212","v":9.0299999999999994},{"$f":"'[1]MONE(M)CAPARD'!U212","v":10.8},{"$f":"'[1]MONE(M)CAPARD'!V212","v":8.08},{"$f":"'[1]MONE(M)CAPARD'!W212","v":7.5},null,null,{"$f":"'[1]MONE(M)CAPARD'!AS212","v":9.1999999999999993},{"$f":"'[1]MONE(M)CAPARD'!AT212","v":"n.a."},{"$f":"'[1]MONE(M)CAPARD'!AU212","v":5},{"$f":"'[1]MONE(M)CAPARD'!AV212","v":6},{"$f":"'[1]MONE(M)CAPARD'!AW212","v":"n.a."},{"$f":"'[1]MONE(M)CAPARD'!AX212","v":8},{"$f":"'[1]MONE(M)CAPARD'!AY212","v":"n.a."},null,null,{"$f":"+'Datos_Regional (M)'!CF205","v":29.131079154238691},{"$f":"+'Datos_Regional (M)'!CG205","v":9.7526554424262724},{"$f":"+'Datos_Regional (M)'!CH205","v":26.868164288951913},{"$f":"+'Datos_Regional (M)'!CI205","v":28.173131882731226},{"$f":"+'Datos_Regional (M)'!CJ205","v":32.451389352511463},{"$f":"+'Datos_Regional (M)'!CK205","v":10.630842132732067},{"$f":"+'Datos_Regional (M)'!CL205","v":14.487487270522292},null,null,null,null,null,null,null,null,null,null,null,null,null,null,null,null,null,null,null,null,null,null,null,null,null,null,null,null,{"$f":"'[1]EXT Comercio(M)'!C212","v":730.81582707000143},{"$f":"'[1]EXT Comercio(M)'!D212","v":308.94999999999982},{"$f":"'[1]EXT Comercio(M)'!E212","v":495.89999999999964},{"$f":"'[1]EXT Comercio(M)'!F212","v":183.09850630385154},{"$f":"'[1]EXT Comercio(M)'!G212","v":169.35520000000002},{"$f":"'[1]EXT Comercio(M)'!H212","v":587.01040000000012},{"$f":"'[1]EXT Comercio(M)'!I212","v":846.86699999999996},{"$f":"'[1]EXT Comercio(M)'!K212","v":2475.1299333738534},{"$f":"'[1]EXT Comercio(M)'!L212","v":3321.9969333738518},null,null,{"$f":"'[1]EXT Comercio(M)'!AG212","v":1102.6326128600012},{"$f":"'[1]EXT Comercio(M)'!AH212","v":695.88000000000011},{"$f":"'[1]EXT Comercio(M)'!AI212","v":1082.2000000000007},{"$f":"'[1]EXT Comercio(M)'!AJ212","v":529.21041873303966},{"$f":"'[1]EXT Comercio(M)'!AK212","v":318.89999999999998},{"$f":"'[1]EXT Comercio(M)'!AL212","v":1083.2999999999997},{"$f":"'[1]EXT Comercio(M)'!AM212","v":958.30848700000024},{"$f":"'[1]EXT Comercio(M)'!AO212","v":4812.123031593037},{"$f":"'[1]EXT Comercio(M)'!AP212","v":5770.4315185930391},null,null,{"$f":"'[1]EXT Comercio(M)'!$BS212","v":-2336.9930982191909},{"$f":"'[1]EXT Comercio(M)'!$BT212","v":-2448.4345852191909}]
[null,null,"Diciembre",{"$f":"'[1]REAL IPC(M)'!AD213","v":9.4337156343225015},{"$f":"'[1]REAL IPC(M)'!AE213","v":4.8859557716799795},{"$f":"'[1]REAL IPC(M)'!AF213","v":5.7925151348376378},{"$f":"'[1]REAL IPC(M)'!AG213","v":5.2858020897357241},{"$f":"'[1]REAL IPC(M)'!AH213","v":9.4479477818342801},{"$f":"'[1]REAL IPC(M)'!AI213","v":5.000190701399756},{"$f":"'[1]REAL IPC(M)'!AJ213","v":2.1967526265520423},null,null,{"$f":"'[1]REAL IMAE(M)'!AG213","v":8.2715307194131498},{"$f":"'[1]REAL IMAE(M)'!AH213","v":2.1817018654857514},{"$f":"'[1]REAL IMAE(M)'!AI213","v":7.2141420802281395},{"$f":"'[1]REAL IMAE(M)'!AJ213","v":11.021633986324305},{"$f":"'[1]REAL IMAE(M)'!AK213","v":"n.d."},{"$f":"'[1]REAL IMAE(M)'!AL213","v":"n.d."},{"$f":"'[1]REAL IMAE(M)'!AM213","v":9.8427025950753393},null,null,{"$f":"'[1]EXT ITCER(M)'!C213","v":100.0893163090753},{"$f":"'[1]EXT ITCER(M)'!D213","v":94.889256325625638},{"$f":"'[1]EXT ITCER(M)'!E213","v":74.39006336466349},{"$f":"'[1]EXT ITCER(M)'!F213","v":93.39328377599314},{"$f":"'[1]EXT ITCER(M)'!G213","v":105.8768142487619},{"$f":"'[1]EXT ITCER(M)'!H213","v":97.418269851125416},{"$f":"'[1]EXT ITCER(M)'!I213","v":106.9324608819975},null,null,{"$f":"'[1]EXT TC(M)'!J213","v":4.2586928919512541},{"$f":"'[1]EXT TC(M)'!K213","v":0},{"$f":"'[1]EXT TC(M)'!L213","v":-9.5891528134761678E-2},{"$f":"'[1]EXT TC(M)'!M213","v":0},{"$f":"'[1]EXT TC(M)'!N213","v":5.1374387634603575},{"$f":"'[1]EXT TC(M)'!O213","v":-0.1120077771437786},{"$f":"'[1]EXT TC(M)'!P213","v":0},null,null,{"$f":"'[1]EXT RIN(M)'!C213","v":3114.5},{"$f":"'[1]EXT RIN(M)'!D213","v":1905.8},{"$f":"'[1]EXT RIN(M)'!E213","v":4061.1},{"$f":"'[1]EXT RIN(M)'!F213","v":2613.6789902959476},{"$f":"'[1]EXT RIN(M)'!G213","v":859},{"$f":"'[1]EXT RIN(M)'!H213","v":1817},{"$f":"'[1]EXT RIN(M)'!I213","v":1312.0485185115999},null,null,{"$f":"'[1]EXT RIN(M)'!P213","v":59.27734185079909},{"$f":"'[1]EXT RIN(M)'!Q213","v":89.48846294713708},{"$f":"'[1]EXT RIN(M)'!R213","v":98.45756816100058},{"$f":"'[1]EXT RIN(M)'!S213","v":113.45385516613189},{"$f":"'[1]EXT RIN(M)'!T213","v":85.437807647985395},{"$f":"'[1]EXT RIN(M)'!U213","v":39.38010735930709},{"$f":"'[1]EXT RIN(M)'!V213","v":156.18387412042162},null,null,{"$f":"+'[1]MONE(M)CAPARD'!AE213","v":1.6597118677270279},{"$f":"'[1]MONE(M)CAPARD'!AF213","v":-2.5045661601972025E-2},{"$f":"'[1]MONE(M)CAPARD'!AG213","v":-0.90036155546884555},{"$f":"'[1]MONE(M)CAPARD'!AH213","v":2.6159252772912871},{"$f":"'[1]MONE(M)CAPARD'!AI213","v":2.8819627939659651},{"$f":"'[1]MONE(M)CAPARD'!AJ213","v":2.7426705412277439},{"$f":"'[1]MONE(M)CAPARD'!AK213","v":2.8701962616822545},null,null,{"$f":"'[1]MONE(M)CAPARD'!AL213","v":3.8899999999999997},{"$f":"'[1]MONE(M)CAPARD'!AM213","v":4.8600000000000003},{"$f":"'[1]MONE(M)CAPARD'!AN213","v":3.81},{"$f":"'[1]MONE(M)CAPARD'!AO213","v":3.71},{"$f":"'[1]MONE(M)CAPARD'!AP213","v":5.9},{"$f":"'[1]MONE(M)CAPARD'!AQ213","v":2.73},{"$f":"'[1]MONE(M)CAPARD'!AR213","v":5.13},null,null,{"$f":"'[1]MONE(M)CAPARD'!J213","v":10.295076156715975},{"$f":"'[1]MONE(M)CAPARD'!K213","v":2.5928873978686933},{"$f":"'[1]MONE(M)CAPARD'!L213","v":6.7183248796982777},{"$f":"'[1]MONE(M)CAPARD'!M213","v":10.74617629889082},{"$f":"'[1]MONE(M)CAPARD'!N213","v":7.2047343399309272},{"$f":"'[1]MONE(M)CAPARD'!O213","v":10.895036687250265},{"$f":"'[1]MONE(M)CAPARD'!P213","v":5.1696822429906666},null,null,{"$f":"'[1]MONE(M)CAPARD'!Q213","v":10.81},{"$f":"'[1]MONE(M)CAPARD'!R213","v":7.61},{"$f":"'[1]MONE(M)CAPARD'!S213","v":7.66},{"$f":"'[1]MONE(M)CAPARD'!T213","v":9.19},{"$f":"'[1]MONE(M)CAPARD'!U213","v":10.7},{"$f":"'[1]MONE(M)CAPARD'!V213","v":8.99},{"$f":"'[1]MONE(M)CAPARD'!W213","v":7.48},null,null,{"$f":"'[1]MONE(M)CAPARD'!AS213","v":8.9700000000000006},{"$f":"'[1]MONE(M)CAPARD'!AT213","v":"n.a."},{"$f":"'[1]MONE(M)CAPARD'!AU213","v":5},{"$f":"'[1]MONE(M)CAPARD'!AV213","v":6},{"$f":"'[1]MONE(M)CAPARD'!AW213","v":"n.a."},{"$f":"'[1]MONE(M)CAPARD'!AX213","v":8},{"$f":"'[1]MONE(M)CAPARD'!AY213","v":"n.a."},null,null,{"$f":"+'Datos_Regional (M)'!CF206","v":27.626521905358679},{"$f":"+'Datos_Regional (M)'!CG206","v":8.8660099510984089},{"$f":"+'Datos_Regional (M)'!CH206","v":21.384571284804444},{"$f":"+'Datos_Regional (M)'!CI206","v":29.095485181319724},{"$f":"+'Datos_Regional (M)'!CJ206","v":30.737097637432441},{"$f":"+'Datos_Regional (M)'!CK206","v":11.950283584187593},{"$f":"+'Datos_Regional (M)'!CL206","v":12.439940561628671},null,null,null,null,null,null,null,null,null,null,null,null,null,null,null,null,null,null,null,null,null,null,null,null,null,null,null,null,{"$f":"'[1]EXT Comercio(M)'!C213","v":638.3577506699985},{"$f":"'[1]EXT Comercio(M)'!D213","v":282.39999999999964},{"$f":"'[1]EXT Comercio(M)'!E213","v":484.19999999999982},{"$f":"'[1]EXT Comercio(M)'!F213","v":141.0390037610382},{"$f":"'[1]EXT Comercio(M)'!G213","v":173.95400000000006},{"$f":"'[1]EXT Comercio(M)'!H213","v":517.17219999999907},{"$f":"'[1]EXT Comercio(M)'!I213","v":605.58899999999994},{"$f":"'[1]EXT Comercio(M)'!K213","v":2237.1229544310336},{"$f":"'[1]EXT Comercio(M)'!L213","v":2842.7119544310408},null,null,{"$f":"'[1]EXT Comercio(M)'!AG213","v":905.71290502999909},{"$f":"'[1]EXT Comercio(M)'!AH213","v":670.6899999999996},{"$f":"'[1]EXT Comercio(M)'!AI213","v":965.79999999999927},{"$f":"'[1]EXT Comercio(M)'!AJ213","v":522.94093123000675},{"$f":"'[1]EXT Comercio(M)'!AK213","v":319.00000000000023},{"$f":"'[1]EXT Comercio(M)'!AL213","v":1010.3999999999996},{"$f":"'[1]EXT Comercio(M)'!AM213","v":974.75948100000005},{"$f":"'[1]EXT Comercio(M)'!AO213","v":4394.5438362600034},{"$f":"'[1]EXT Comercio(M)'!AP213","v":5369.3033172599971},null,null,{"$f":"'[1]EXT Comercio(M)'!$BS213","v":-2157.4208818289662},{"$f":"'[1]EXT Comercio(M)'!$BT213","v":-2526.5913628289636}]
[null,2007,"Enero",{"$f":"'[1]REAL IPC(M)'!AD214","v":9.1933576822021337},{"$f":"'[1]REAL IPC(M)'!AE214","v":5.5395600598871404},{"$f":"'[1]REAL IPC(M)'!AF214","v":6.2244341423507068},{"$f":"'[1]REAL IPC(M)'!AG214","v":5.5725658297611718},{"$f":"'[1]REAL IPC(M)'!AH214","v":9.0829598863263783},{"$f":"'[1]REAL IPC(M)'!AI214","v":4.3643192488262876},{"$f":"'[1]REAL IPC(M)'!AJ214","v":2.2900763358778722},null,null,{"$f":"'[1]REAL IMAE(M)'!AG214","v":8.4575772314480187},{"$f":"'[1]REAL IMAE(M)'!AH214","v":2.4704392197644292E-2},{"$f":"'[1]REAL IMAE(M)'!AI214","v":6.9510034672611436},{"$f":"'[1]REAL IMAE(M)'!AJ214","v":11.11504398242376},{"$f":"'[1]REAL IMAE(M)'!AK214","v":2.3441023366568459},{"$f":"'[1]REAL IMAE(M)'!AL214","v":"n.d."},{"$f":"'[1]REAL IMAE(M)'!AM214","v":9.0735998949510819},null,null,{"$f":"'[1]EXT ITCER(M)'!C214","v":99.494999505432062},{"$f":"'[1]EXT ITCER(M)'!D214","v":93.957670675005915},{"$f":"'[1]EXT ITCER(M)'!E214","v":74.262379546209218},{"$f":"'[1]EXT ITCER(M)'!F214","v":92.951363907983136},{"$f":"'[1]EXT ITCER(M)'!G214","v":105.56873448764679},{"$f":"'[1]EXT ITCER(M)'!H214","v":98.476211455406698},{"$f":"'[1]EXT ITCER(M)'!I214","v":106.9100600099691},null,null,{"$f":"'[1]EXT TC(M)'!J214","v":3.7935508144188694},{"$f":"'[1]EXT TC(M)'!K214","v":0},{"$f":"'[1]EXT TC(M)'!L214","v":0.75767329789554017},{"$f":"'[1]EXT TC(M)'!M214","v":0},{"$f":"'[1]EXT TC(M)'!N214","v":4.8890127887932486},{"$f":"'[1]EXT TC(M)'!O214","v":-2.4987776617319923},{"$f":"'[1]EXT TC(M)'!P214","v":0},null,null,{"$f":"'[1]EXT RIN(M)'!C214","v":3164.1},{"$f":"'[1]EXT RIN(M)'!D214","v":1920.4},{"$f":"'[1]EXT RIN(M)'!E214","v":4037.2},{"$f":"'[1]EXT RIN(M)'!F214","v":2578.6904217183292},{"$f":"'[1]EXT RIN(M)'!G214","v":845.1},{"$f":"'[1]EXT RIN(M)'!H214","v":1882.4},{"$f":"'[1]EXT RIN(M)'!I214","v":1346.5704241083499},null,null,{"$f":"'[1]EXT RIN(M)'!P214","v":58.589941852934004},{"$f":"'[1]EXT RIN(M)'!Q214","v":86.387608839210372},{"$f":"'[1]EXT RIN(M)'!R214","v":99.99958288541221},{"$f":"'[1]EXT RIN(M)'!S214","v":116.4249349317178},{"$f":"'[1]EXT RIN(M)'!T214","v":87.117223411094315},{"$f":"'[1]EXT RIN(M)'!U214","v":40.886762841375123},{"$f":"'[1]EXT RIN(M)'!V214","v":164.5758907225802},null,null,{"$f":"+'[1]MONE(M)CAPARD'!AE214","v":1.4255833421006614},{"$f":"'[1]MONE(M)CAPARD'!AF214","v":-0.71969227411611059},{"$f":"'[1]MONE(M)CAPARD'!AG214","v":-1.2938964122970396},{"$f":"'[1]MONE(M)CAPARD'!AH214","v":2.2614153132250618},{"$f":"'[1]MONE(M)CAPARD'!AI214","v":3.0784476574154129},{"$f":"'[1]MONE(M)CAPARD'!AJ214","v":3.4548979738726771},{"$f":"'[1]MONE(M)CAPARD'!AK214","v":2.7958955223880504},null,null,{"$f":"'[1]MONE(M)CAPARD'!AL214","v":4.1050000000000004},{"$f":"'[1]MONE(M)CAPARD'!AM214","v":4.78},{"$f":"'[1]MONE(M)CAPARD'!AN214","v":3.88},{"$f":"'[1]MONE(M)CAPARD'!AO214","v":3.72},{"$f":"'[1]MONE(M)CAPARD'!AP214","v":6.3},{"$f":"'[1]MONE(M)CAPARD'!AQ214","v":3},{"$f":"'[1]MONE(M)CAPARD'!AR214","v":5.15},null,null,{"$f":"'[1]MONE(M)CAPARD'!J214","v":10.244801108100022},{"$f":"'[1]MONE(M)CAPARD'!K214","v":2.2270700567437753},{"$f":"'[1]MONE(M)CAPARD'!L214","v":6.3408818432706404},{"$f":"'[1]MONE(M)CAPARD'!M214","v":10.975800464037128},{"$f":"'[1]MONE(M)CAPARD'!N214","v":8.0785216109467424},{"$f":"'[1]MONE(M)CAPARD'!O214","v":12.126444020585168},{"$f":"'[1]MONE(M)CAPARD'!P214","v":5.0346268656716324},null,null,{"$f":"'[1]MONE(M)CAPARD'!Q214","v":10.72},{"$f":"'[1]MONE(M)CAPARD'!R214","v":7.89},{"$f":"'[1]MONE(M)CAPARD'!S214","v":7.62},{"$f":"'[1]MONE(M)CAPARD'!T214","v":9.61},{"$f":"'[1]MONE(M)CAPARD'!U214","v":10.8},{"$f":"'[1]MONE(M)CAPARD'!V214","v":7.99},{"$f":"'[1]MONE(M)CAPARD'!W214","v":7.44},null,null,{"$f":"'[1]MONE(M)CAPARD'!AS214","v":5.98},{"$f":"'[1]MONE(M)CAPARD'!AT214","v":"n.a."},{"$f":"'[1]MONE(M)CAPARD'!AU214","v":5},{"$f":"'[1]MONE(M)CAPARD'!AV214","v":6},{"$f":"'[1]MONE(M)CAPARD'!AW214","v":"n.a."},{"$f":"'[1]MONE(M)CAPARD'!AX214","v":8},{"$f":"'[1]MONE(M)CAPARD'!AY214","v":"n.a."},null,null,{"$f":"+'Datos_Regional (M)'!CF207","v":29.358918626217289},{"$f":"+'Datos_Regional (M)'!CG207","v":8.7510340740641457},{"$f":"+'Datos_Regional (M)'!CH207","v":21.412638655662452},{"$f":"+'Datos_Regional (M)'!CI207","v":29.18861974420366},{"$f":"+'Datos_Regional (M)'!CJ207","v":30.725134704000201},{"$f":"+'Datos_Regional (M)'!CK207","v":15.122931317549604},{"$f":"+'Datos_Regional (M)'!CL207","v":12.545041612789687},null,null,{"$f":"+AVERAGE(EH8:EH19)","v":696.52404626333339},{"$f":"+AVERAGE(EI8:EI19)","v":311.51},{"$f":"+AVERAGE(EJ8:EJ19)","v":508.0333333333333},{"$f":"+AVERAGE(EK8:EK19)","v":176.49736159452075},{"$f":"+AVERAGE(EL8:EL19)","v":169.50637449124142},{"$f":"+AVERAGE(EM8:EM19)","v":555.01356666666652},{"$f":"+AVERAGE(EN8:EN19)","v":733.35858333333329},{"$f":"+AVERAGE(EO8:EO19)","v":2417.0846823490956},{"$f":"+AVERAGE(EP8:EP19)","v":3150.4432656824297},null,null,{"$f":"+AVERAGE(ES8:ES19)","v":975.27570417166669},{"$f":"+AVERAGE(ET8:ET19)","v":655.63749999999993},{"$f":"+AVERAGE(EU8:EU19)","v":1006.7166666666667},{"$f":"+AVERAGE(EV8:EV19)","v":474.58373929043495},{"$f":"+AVERAGE(EW8:EW19)","v":308.44166666666666},{"$f":"+AVERAGE(EX8:EX19)","v":1020.7249999999999},{"$f":"+AVERAGE(EY8:EY19)","v":991.42098350000003},{"$f":"+AVERAGE(EZ8:EZ19)","v":4441.3802767954348},{"$f":"+AVERAGE(FA8:FA19)","v":5432.8012602954341},null,null,{"$f":"+AVERAGE(FD8:FD19)","v":-2024.2955944463392},{"$f":"+AVERAGE(FE8:FE19)","v":-2282.3579946130058},null,null,{"$f":"'[1]EXT Comercio(M)'!C214","v":697.33348211999999},{"$f":"'[1]EXT Comercio(M)'!D214","v":311.3},{"$f":"'[1]EXT Comercio(M)'!E214","v":544.09999999999991},{"$f":"'[1]EXT Comercio(M)'!F214","v":196.28832560870899},{"$f":"'[1]EXT Comercio(M)'!G214","v":177.35919389489658},{"$f":"'[1]EXT Comercio(M)'!H214","v":473.65129999999999},{"$f":"'[1]EXT Comercio(M)'!I214","v":670.36800000000005},{"$f":"'[1]EXT Comercio(M)'!K214","v":2400.0323016236057},{"$f":"'[1]EXT Comercio(M)'!L214","v":3070.4003016236056},null,null,{"$f":"'[1]EXT Comercio(M)'!AG214","v":1057.5023586299999},{"$f":"'[1]EXT Comercio(M)'!AH214","v":650.82000000000005},{"$f":"'[1]EXT Comercio(M)'!AI214","v":1093.2},{"$f":"'[1]EXT Comercio(M)'!AJ214","v":469.90969273411918},{"$f":"'[1]EXT Comercio(M)'!AK214","v":303.7},{"$f":"'[1]EXT Comercio(M)'!AL214","v":899.30000000000007},{"$f":"'[1]EXT Comercio(M)'!AM214","v":1087.5959580000001},{"$f":"'[1]EXT Comercio(M)'!AO214","v":4474.4320513641187},{"$f":"'[1]EXT Comercio(M)'!AP214","v":5562.0280093641186},null,null,{"$f":"'[1]EXT Comercio(M)'!$BS214","v":-2074.3997497405139},{"$f":"'[1]EXT Comercio(M)'!$BT214","v":-2491.6277077405139}]
[null,null,"Febrero",{"$f":"'[1]REAL IPC(M)'!AD215","v":8.6173790521659583},{"$f":"'[1]REAL IPC(M)'!AE215","v":4.7902819161127406},{"$f":"'[1]REAL IPC(M)'!AF215","v":6.6216584833606245},{"$f":"'[1]REAL IPC(M)'!AG215","v":5.8000000000000078},{"$f":"'[1]REAL IPC(M)'!AH215","v":8.8146551724138007},{"$f":"'[1]REAL IPC(M)'!AI215","v":4.8095363441507111},{"$f":"'[1]REAL IPC(M)'!AJ215","v":2.7724665391969316},null,null,{"$f":"'[1]REAL IMAE(M)'!AG215","v":8.4438323136705975},{"$f":"'[1]REAL IMAE(M)'!AH215","v":-1.0833608232539889},{"$f":"'[1]REAL IMAE(M)'!AI215","v":6.7878198369391729},{"$f":"'[1]REAL IMAE(M)'!AJ215","v":10.233453693885284},{"$f":"'[1]REAL IMAE(M)'!AK215","v":2.8021293949521855},{"$f":"'[1]REAL IMAE(M)'!AL215","v":"n.d."},{"$f":"'[1]REAL IMAE(M)'!AM215","v":8.847602962193065},null,null,{"$f":"'[1]EXT ITCER(M)'!C215","v":99.728893352735042},{"$f":"'[1]EXT ITCER(M)'!D215","v":94.528375201704122},{"$f":"'[1]EXT ITCER(M)'!E215","v":74.45620540655888},{"$f":"'[1]EXT ITCER(M)'!F215","v":92.464024804840463},{"$f":"'[1]EXT ITCER(M)'!G215","v":105.24954095439649},{"$f":"'[1]EXT ITCER(M)'!H215","v":97.564103393725887},{"$f":"'[1]EXT ITCER(M)'!I215","v":107.0251839236619},null,null,{"$f":"'[1]EXT TC(M)'!J215","v":3.3894977331953062},{"$f":"'[1]EXT TC(M)'!K215","v":0},{"$f":"'[1]EXT TC(M)'!L215","v":1.1495009178899693},{"$f":"'[1]EXT TC(M)'!M215","v":0},{"$f":"'[1]EXT TC(M)'!N215","v":4.8466115893465753},{"$f":"'[1]EXT TC(M)'!O215","v":-2.375803615060688},{"$f":"'[1]EXT TC(M)'!P215","v":0},null,null,{"$f":"'[1]EXT RIN(M)'!C215","v":3239.3},{"$f":"'[1]EXT RIN(M)'!D215","v":1912.7},{"$f":"'[1]EXT RIN(M)'!E215","v":4054.6},{"$f":"'[1]EXT RIN(M)'!F215","v":2648.2001819699285},{"$f":"'[1]EXT RIN(M)'!G215","v":819.7},{"$f":"'[1]EXT RIN(M)'!H215","v":1927.4},{"$f":"'[1]EXT RIN(M)'!I215","v":1270.3506655722399},null,null,{"$f":"'[1]EXT RIN(M)'!P215","v":58.581444258236395},{"$f":"'[1]EXT RIN(M)'!Q215","v":85.658024433159923},{"$f":"'[1]EXT RIN(M)'!R215","v":102.20812650892637},{"$f":"'[1]EXT RIN(M)'!S215","v":114.86508389258768},{"$f":"'[1]EXT RIN(M)'!T215","v":82.259905433024528},{"$f":"'[1]EXT RIN(M)'!U215","v":41.809736099415645},{"$f":"'[1]EXT RIN(M)'!V215","v":151.61416203992763},null,null,{"$f":"+'[1]MONE(M)CAPARD'!AE215","v":1.0427621783159349},{"$f":"'[1]MONE(M)CAPARD'!AF215","v":8.5616797900287075E-2},{"$f":"'[1]MONE(M)CAPARD'!AG215","v":-1.5959782539175051},{"$f":"'[1]MONE(M)CAPARD'!AH215","v":1.918714555765588},{"$f":"'[1]MONE(M)CAPARD'!AI215","v":3.3871899489228618},{"$f":"'[1]MONE(M)CAPARD'!AJ215","v":3.1871753013777324},{"$f":"'[1]MONE(M)CAPARD'!AK215","v":2.0604093023255898},null,null,{"$f":"'[1]MONE(M)CAPARD'!AL215","v":4.1400000000000006},{"$f":"'[1]MONE(M)CAPARD'!AM215","v":4.88},{"$f":"'[1]MONE(M)CAPARD'!AN215","v":3.7},{"$f":"'[1]MONE(M)CAPARD'!AO215","v":3.74},{"$f":"'[1]MONE(M)CAPARD'!AP215","v":6.5},{"$f":"'[1]MONE(M)CAPARD'!AQ215","v":2.64},{"$f":"'[1]MONE(M)CAPARD'!AR215","v":4.8899999999999997},null,null,{"$f":"'[1]MONE(M)CAPARD'!J215","v":9.8627135374800954},{"$f":"'[1]MONE(M)CAPARD'!K215","v":2.8816776027996749},{"$f":"'[1]MONE(M)CAPARD'!L215","v":5.9634614646626032},{"$f":"'[1]MONE(M)CAPARD'!M215","v":10.586011342155002},{"$f":"'[1]MONE(M)CAPARD'!N215","v":8.6866265259878901},{"$f":"'[1]MONE(M)CAPARD'!O215","v":12.193989308266366},{"$f":"'[1]MONE(M)CAPARD'!P215","v":4.6752302393357201},null,null,{"$f":"'[1]MONE(M)CAPARD'!Q215","v":10.48},{"$f":"'[1]MONE(M)CAPARD'!R215","v":7.81},{"$f":"'[1]MONE(M)CAPARD'!S215","v":7.68},{"$f":"'[1]MONE(M)CAPARD'!T215","v":9.56},{"$f":"'[1]MONE(M)CAPARD'!U215","v":10.7},{"$f":"'[1]MONE(M)CAPARD'!V215","v":7.97},{"$f":"'[1]MONE(M)CAPARD'!W215","v":7.5773159725486519},null,null,{"$f":"'[1]MONE(M)CAPARD'!AS215","v":5.98},{"$f":"'[1]MONE(M)CAPARD'!AT215","v":"n.a."},{"$f":"'[1]MONE(M)CAPARD'!AU215","v":5},{"$f":"'[1]MONE(M)CAPARD'!AV215","v":6},{"$f":"'[1]MONE(M)CAPARD'!AW215","v":"n.a."},{"$f":"'[1]MONE(M)CAPARD'!AX215","v":8},{"$f":"'[1]MONE(M)CAPARD'!AY215","v":"n.a."},null,null,{"$f":"+'Datos_Regional (M)'!CF208","v":30.88127372572178},{"$f":"+'Datos_Regional (M)'!CG208","v":7.7820471013881898},{"$f":"+'Datos_Regional (M)'!CH208","v":20.819311494565707},{"$f":"+'Datos_Regional (M)'!CI208","v":30.183824428992324},{"$f":"+'Datos_Regional (M)'!CJ208","v":29.263086504986614},{"$f":"+'Datos_Regional (M)'!CK208","v":16.18320684115535},{"$f":"+'Datos_Regional (M)'!CL208","v":13.170981854696183},null,null,701.78841915916655,312.3725,519.22499999999991,177.42515361593192,171.74367400339688,561.09114999999997,735.1246666666666,2443.6458967784952,3178.7705634451618,null,null,986.35672991916647,659.0625,1017.3166666666667,486.8961380093096,311.17500000000001,1027.7749999999999,1003.9579524166667,4488.5820345951433,5492.539987011809,null,null,-2044.9361378166475,-2313.7694235666472,null,null,{"$f":"'[1]EXT Comercio(M)'!C215","v":697.22897369999998},{"$f":"'[1]EXT Comercio(M)'!D215","v":303.69},{"$f":"'[1]EXT Comercio(M)'!E215","v":562.60000000000014},{"$f":"'[1]EXT Comercio(M)'!F215","v":190.48451391464437},{"$f":"'[1]EXT Comercio(M)'!G215","v":178.65969414586553},{"$f":"'[1]EXT Comercio(M)'!H215","v":570.12380000000007},{"$f":"'[1]EXT Comercio(M)'!I215","v":703.40899999999999},{"$f":"'[1]EXT Comercio(M)'!K215","v":2502.7869817605101},{"$f":"'[1]EXT Comercio(M)'!L215","v":3206.1959817605102},null,null,{"$f":"'[1]EXT Comercio(M)'!AG215","v":947.69199055000013},{"$f":"'[1]EXT Comercio(M)'!AH215","v":621.58000000000004},{"$f":"'[1]EXT Comercio(M)'!AI215","v":952.09999999999991},{"$f":"'[1]EXT Comercio(M)'!AJ215","v":513.62704154316509},{"$f":"'[1]EXT Comercio(M)'!AK215","v":292.7},{"$f":"'[1]EXT Comercio(M)'!AL215","v":953.4},{"$f":"'[1]EXT Comercio(M)'!AM215","v":918.97025600000006},{"$f":"'[1]EXT Comercio(M)'!AO215","v":4281.099032093166},{"$f":"'[1]EXT Comercio(M)'!AP215","v":5200.0692880931665},null,null,{"$f":"'[1]EXT Comercio(M)'!$BS215","v":-1778.3120503326545},{"$f":"'[1]EXT Comercio(M)'!$BT215","v":-1993.8733063326545}]
[null,null,"Marzo",{"$f":"'[1]REAL IPC(M)'!AD216","v":9.2185163291480752},{"$f":"'[1]REAL IPC(M)'!AE216","v":5.0588100947813253},{"$f":"'[1]REAL IPC(M)'!AF216","v":7.0240922972514541},{"$f":"'[1]REAL IPC(M)'!AG216","v":6.3106796116504711},{"$f":"'[1]REAL IPC(M)'!AH216","v":9.3137779680976376},{"$f":"'[1]REAL IPC(M)'!AI216","v":5.537606131189416},{"$f":"'[1]REAL IPC(M)'!AJ216","v":3.238095238095231},null,null,{"$f":"'[1]REAL IMAE(M)'!AG216","v":8.3328308266838462},{"$f":"'[1]REAL IMAE(M)'!AH216","v":-1.3644874965777867},{"$f":"'[1]REAL IMAE(M)'!AI216","v":6.7899034985537208},{"$f":"'[1]REAL IMAE(M)'!AJ216","v":10.063794980193947},{"$f":"'[1]REAL IMAE(M)'!AK216","v":3.5123966725149378},{"$f":"'[1]REAL IMAE(M)'!AL216","v":"n.d."},{"$f":"'[1]REAL IMAE(M)'!AM216","v":8.790784477765639},null,null,{"$f":"'[1]EXT ITCER(M)'!C216","v":99.475929182454678},{"$f":"'[1]EXT ITCER(M)'!D216","v":94.441552023353907},{"$f":"'[1]EXT ITCER(M)'!E216","v":74.179490207373661},{"$f":"'[1]EXT ITCER(M)'!F216","v":92.298054564602083},{"$f":"'[1]EXT ITCER(M)'!G216","v":104.8932874290051},{"$f":"'[1]EXT ITCER(M)'!H216","v":95.639483868724056},{"$f":"'[1]EXT ITCER(M)'!I216","v":106.6885216488141},null,null,{"$f":"'[1]EXT TC(M)'!J216","v":2.7691982094070386},{"$f":"'[1]EXT TC(M)'!K216","v":0},{"$f":"'[1]EXT TC(M)'!L216","v":0.97501931902412176},{"$f":"'[1]EXT TC(M)'!M216","v":0},{"$f":"'[1]EXT TC(M)'!N216","v":4.7929386398813616},{"$f":"'[1]EXT TC(M)'!O216","v":0.70697857259120978},{"$f":"'[1]EXT TC(M)'!P216","v":0},null,null,{"$f":"'[1]EXT RIN(M)'!C216","v":3491.6},{"$f":"'[1]EXT RIN(M)'!D216","v":1907.5},{"$f":"'[1]EXT RIN(M)'!E216","v":4249.5},{"$f":"'[1]EXT RIN(M)'!F216","v":2618.5479259358244},{"$f":"'[1]EXT RIN(M)'!G216","v":830.8},{"$f":"'[1]EXT RIN(M)'!H216","v":2046.5},{"$f":"'[1]EXT RIN(M)'!I216","v":1119.8790553072299},null,null,{"$f":"'[1]EXT RIN(M)'!P216","v":60.593250330847503},{"$f":"'[1]EXT RIN(M)'!Q216","v":83.448279784255021},{"$f":"'[1]EXT RIN(M)'!R216","v":103.83388690429918},{"$f":"'[1]EXT RIN(M)'!S216","v":112.26221755497947},{"$f":"'[1]EXT RIN(M)'!T216","v":84.262000809076341},{"$f":"'[1]EXT RIN(M)'!U216","v":43.857517838258417},{"$f":"'[1]EXT RIN(M)'!V216","v":131.64863007194953},null,null,{"$f":"+'[1]MONE(M)CAPARD'!AE216","v":-1.1156682677100964},{"$f":"'[1]MONE(M)CAPARD'!AF216","v":1.065108695651491E-2},{"$f":"'[1]MONE(M)CAPARD'!AG216","v":-1.9659987317691932},{"$f":"'[1]MONE(M)CAPARD'!AH216","v":1.3256621004566347},{"$f":"'[1]MONE(M)CAPARD'!AI216","v":2.7665792090159038},{"$f":"'[1]MONE(M)CAPARD'!AJ216","v":2.3805674213299213},{"$f":"'[1]MONE(M)CAPARD'!AK216","v":1.4547970479704868},null,null,{"$f":"'[1]MONE(M)CAPARD'!AL216","v":4.0650000000000004},{"$f":"'[1]MONE(M)CAPARD'!AM216","v":5.07},{"$f":"'[1]MONE(M)CAPARD'!AN216","v":3.7},{"$f":"'[1]MONE(M)CAPARD'!AO216","v":3.82},{"$f":"'[1]MONE(M)CAPARD'!AP216","v":6.4},{"$f":"'[1]MONE(M)CAPARD'!AQ216","v":2.92},{"$f":"'[1]MONE(M)CAPARD'!AR216","v":4.74},null,null,{"$f":"'[1]MONE(M)CAPARD'!J216","v":8.1776277237967783},{"$f":"'[1]MONE(M)CAPARD'!K216","v":2.5901586956521667},{"$f":"'[1]MONE(M)CAPARD'!L216","v":5.4809226379200906},{"$f":"'[1]MONE(M)CAPARD'!M216","v":9.9983561643835781},{"$f":"'[1]MONE(M)CAPARD'!N216","v":8.2308469468087146},{"$f":"'[1]MONE(M)CAPARD'!O216","v":10.586173287768766},{"$f":"'[1]MONE(M)CAPARD'!P216","v":4.0308739446710122},null,null,{"$f":"'[1]MONE(M)CAPARD'!Q216","v":10.46},{"$f":"'[1]MONE(M)CAPARD'!R216","v":7.78},{"$f":"'[1]MONE(M)CAPARD'!S216","v":7.66},{"$f":"'[1]MONE(M)CAPARD'!T216","v":9.56},{"$f":"'[1]MONE(M)CAPARD'!U216","v":10.5},{"$f":"'[1]MONE(M)CAPARD'!V216","v":7.38},{"$f":"'[1]MONE(M)CAPARD'!W216","v":7.3994927200222573},null,null,{"$f":"'[1]MONE(M)CAPARD'!AS216","v":5.98},{"$f":"'[1]MONE(M)CAPARD'!AT216","v":"n.a."},{"$f":"'[1]MONE(M)CAPARD'!AU216","v":5.25},{"$f":"'[1]MONE(M)CAPARD'!AV216","v":6},{"$f":"'[1]MONE(M)CAPARD'!AW216","v":"n.a."},{"$f":"'[1]MONE(M)CAPARD'!AX216","v":8},{"$f":"'[1]MONE(M)CAPARD'!AY216","v":"n.a."},null,null,{"$f":"+'Datos_Regional (M)'!CF209","v":30.308267238780708},{"$f":"+'Datos_Regional (M)'!CG209","v":8.5716971889342908},{"$f":"+'Datos_Regional (M)'!CH209","v":18.887427908567211},{"$f":"+'Datos_Regional (M)'!CI209","v":30.625405505892921},{"$f":"+'Datos_Regional (M)'!CJ209","v":28.142359592739673},{"$f":"+'Datos_Regional (M)'!CK209","v":15.998120714222019},{"$f":"+'Datos_Regional (M)'!CL209","v":13.407400263614221},null,null,705.28287478333334,314.68416666666667,528.29999999999995,179.29026528764416,175.58669301027189,567.84875833333319,743.15583333333325,2470.9927580812491,3214.1485914145833,null,null,988.18698235833335,664.70666666666659,1028.6083333333333,500.20413863408641,312.26666666666671,1040.0749999999998,1036.6783065833336,4534.0477876590876,5570.7260942424191,null,null,-2063.0550295778371,-2356.5775028278367,null,null,{"$f":"'[1]EXT Comercio(M)'!C216","v":857.30286911999997},{"$f":"'[1]EXT Comercio(M)'!D216","v":365.99},{"$f":"'[1]EXT Comercio(M)'!E216","v":604.79999999999995},{"$f":"'[1]EXT Comercio(M)'!F216","v":229.13716127495093},{"$f":"'[1]EXT Comercio(M)'!G216","v":218.6719280824999},{"$f":"'[1]EXT Comercio(M)'!H216","v":677.09220000000005},{"$f":"'[1]EXT Comercio(M)'!I216","v":907.11599999999999},{"$f":"'[1]EXT Comercio(M)'!K216","v":2952.9941584774506},{"$f":"'[1]EXT Comercio(M)'!L216","v":3860.1101584774506},null,null,{"$f":"'[1]EXT Comercio(M)'!AG216","v":998.84537835000015},{"$f":"'[1]EXT Comercio(M)'!AH216","v":740.06},{"$f":"'[1]EXT Comercio(M)'!AI216","v":1118.6999999999998},{"$f":"'[1]EXT Comercio(M)'!AJ216","v":590.11551585399957},{"$f":"'[1]EXT Comercio(M)'!AK216","v":321.90000000000009},{"$f":"'[1]EXT Comercio(M)'!AL216","v":1175.5},{"$f":"'[1]EXT Comercio(M)'!AM216","v":1233.803449},{"$f":"'[1]EXT Comercio(M)'!AO216","v":4945.1208942039993},{"$f":"'[1]EXT Comercio(M)'!AP216","v":6178.9243432040003},null,null,{"$f":"'[1]EXT Comercio(M)'!$BS216","v":-1992.1267357265492},{"$f":"'[1]EXT Comercio(M)'!$BT216","v":-2318.8141847265497}]
[null,null,"Abril",{"$f":"'[1]REAL IPC(M)'!AD217","v":9.7567789886713001},{"$f":"'[1]REAL IPC(M)'!AE217","v":4.4351179673321184},{"$f":"'[1]REAL IPC(M)'!AF217","v":6.4014539579967664},{"$f":"'[1]REAL IPC(M)'!AG217","v":6.3367531683765836},{"$f":"'[1]REAL IPC(M)'!AH217","v":8.8778634012456425},{"$f":"'[1]REAL IPC(M)'!AI217","v":5.7663579324768506},{"$f":"'[1]REAL IPC(M)'!AJ217","v":2.7306967984933999},null,null,{"$f":"'[1]REAL IMAE(M)'!AG217","v":8.3603827291005413},{"$f":"'[1]REAL IMAE(M)'!AH217","v":-0.31427816609478126},{"$f":"'[1]REAL IMAE(M)'!AI217","v":6.8950627507963675},{"$f":"'[1]REAL IMAE(M)'!AJ217","v":9.8718848758568907},{"$f":"'[1]REAL IMAE(M)'!AK217","v":4.2824124994200918},{"$f":"'[1]REAL IMAE(M)'!AL217","v":"n.d."},{"$f":"'[1]REAL IMAE(M)'!AM217","v":8.8842051478571875},null,null,{"$f":"'[1]EXT ITCER(M)'!C217","v":98.825655478722581},{"$f":"'[1]EXT ITCER(M)'!D217","v":94.652920718800175},{"$f":"'[1]EXT ITCER(M)'!E217","v":73.924928887986724},{"$f":"'[1]EXT ITCER(M)'!F217","v":92.049612542410259},{"$f":"'[1]EXT ITCER(M)'!G217","v":104.29908944235891},{"$f":"'[1]EXT ITCER(M)'!H217","v":93.519876016693502},{"$f":"'[1]EXT ITCER(M)'!I217","v":106.3220762201825},null,null,{"$f":"'[1]EXT TC(M)'!J217","v":2.2098853750119463},{"$f":"'[1]EXT TC(M)'!K217","v":0},{"$f":"'[1]EXT TC(M)'!L217","v":0.90280863542327938},{"$f":"'[1]EXT TC(M)'!M217","v":0},{"$f":"'[1]EXT TC(M)'!N217","v":4.5915230032669916},{"$f":"'[1]EXT TC(M)'!O217","v":0.37936479756309621},{"$f":"'[1]EXT TC(M)'!P217","v":0},null,null,{"$f":"'[1]EXT RIN(M)'!C217","v":3559.2},{"$f":"'[1]EXT RIN(M)'!D217","v":2042.6},{"$f":"'[1]EXT RIN(M)'!E217","v":4263.2},{"$f":"'[1]EXT RIN(M)'!F217","v":2659.9587131822532},{"$f":"'[1]EXT RIN(M)'!G217","v":883.8},{"$f":"'[1]EXT RIN(M)'!H217","v":2173},{"$f":"'[1]EXT RIN(M)'!I217","v":1648.3656573262797},null,null,{"$f":"'[1]EXT RIN(M)'!P217","v":60.858854254874473},{"$f":"'[1]EXT RIN(M)'!Q217","v":86.493160917252652},{"$f":"'[1]EXT RIN(M)'!R217","v":106.96201453905118},{"$f":"'[1]EXT RIN(M)'!S217","v":114.49762876302418},{"$f":"'[1]EXT RIN(M)'!T217","v":90.835450237115239},{"$f":"'[1]EXT RIN(M)'!U217","v":45.102996971494179},{"$f":"'[1]EXT RIN(M)'!V217","v":191.8748698809533},null,null,{"$f":"+'[1]MONE(M)CAPARD'!AE217","v":-2.0561636460780583},{"$f":"'[1]MONE(M)CAPARD'!AF217","v":0.53131747583360989},{"$f":"'[1]MONE(M)CAPARD'!AG217","v":-1.4017232871512597},{"$f":"'[1]MONE(M)CAPARD'!AH217","v":1.2255845629965949},{"$f":"'[1]MONE(M)CAPARD'!AI217","v":2.8836511272110248},{"$f":"'[1]MONE(M)CAPARD'!AJ217","v":1.9889519774011248},{"$f":"'[1]MONE(M)CAPARD'!AK217","v":2.0240329972502376},null,null,{"$f":"'[1]MONE(M)CAPARD'!AL217","v":4.125},{"$f":"'[1]MONE(M)CAPARD'!AM217","v":4.99},{"$f":"'[1]MONE(M)CAPARD'!AN217","v":3.72},{"$f":"'[1]MONE(M)CAPARD'!AO217","v":3.87},{"$f":"'[1]MONE(M)CAPARD'!AP217","v":6.3},{"$f":"'[1]MONE(M)CAPARD'!AQ217","v":2.52},{"$f":"'[1]MONE(M)CAPARD'!AR217","v":4.8099999999999996},null,null,{"$f":"'[1]MONE(M)CAPARD'!J217","v":7.3008893711756926},{"$f":"'[1]MONE(M)CAPARD'!K217","v":3.221983273596182},{"$f":"'[1]MONE(M)CAPARD'!L217","v":6.0229872841146364},{"$f":"'[1]MONE(M)CAPARD'!M217","v":9.7833030646992043},{"$f":"'[1]MONE(M)CAPARD'!N217","v":8.2439758077884218},{"$f":"'[1]MONE(M)CAPARD'!O217","v":10.384816384180786},{"$f":"'[1]MONE(M)CAPARD'!P217","v":4.5988542638000727},null,null,{"$f":"'[1]MONE(M)CAPARD'!Q217","v":10.47},{"$f":"'[1]MONE(M)CAPARD'!R217","v":7.8},{"$f":"'[1]MONE(M)CAPARD'!S217","v":7.6700000000000008},{"$f":"'[1]MONE(M)CAPARD'!T217","v":9.56},{"$f":"'[1]MONE(M)CAPARD'!U217","v":11.3},{"$f":"'[1]MONE(M)CAPARD'!V217","v":8.77},{"$f":"'[1]MONE(M)CAPARD'!W217","v":7.4551318284424379},null,null,{"$f":"'[1]MONE(M)CAPARD'!AS217","v":5.98},{"$f":"'[1]MONE(M)CAPARD'!AT217","v":"n.a."},{"$f":"'[1]MONE(M)CAPARD'!AU217","v":5.5},{"$f":"'[1]MONE(M)CAPARD'!AV217","v":6},{"$f":"'[1]MONE(M)CAPARD'!AW217","v":"n.a."},{"$f":"'[1]MONE(M)CAPARD'!AX217","v":7},{"$f":"'[1]MONE(M)CAPARD'!AY217","v":"n.a."},null,null,{"$f":"+'Datos_Regional (M)'!CF210","v":30.64422951138188},{"$f":"+'Datos_Regional (M)'!CG210","v":8.0040097431943291},{"$f":"+'Datos_Regional (M)'!CH210","v":16.884218131623019},{"$f":"+'Datos_Regional (M)'!CI210","v":30.364243355315246},{"$f":"+'Datos_Regional (M)'!CJ210","v":27.41491833764147},{"$f":"+'Datos_Regional (M)'!CK210","v":17.072849164885163},{"$f":"+'Datos_Regional (M)'!CL210","v":8.2444632926105257},null,null,719.53647165916664,315.01750000000004,539.75,182.62679142722948,177.89325270658864,573.99677499999996,750.35158333333322,2508.8207907929846,3259.1723741263181,null,null,995.0079961908333,680.00166666666667,1033.7666666666667,510.78432791330488,317.60833333333335,1042.958333333333,1054.7682180000002,4580.1273241041381,5634.8955421041383,null,null,-2071.3065333111531,-2375.7231679778201,null,null,{"$f":"'[1]EXT Comercio(M)'!C217","v":731.93116818999988},{"$f":"'[1]EXT Comercio(M)'!D217","v":285.52},{"$f":"'[1]EXT Comercio(M)'!E217","v":531.70000000000005},{"$f":"'[1]EXT Comercio(M)'!F217","v":193.01350169135787},{"$f":"'[1]EXT Comercio(M)'!G217","v":172.9648163558013},{"$f":"'[1]EXT Comercio(M)'!H217","v":588.51959999999985},{"$f":"'[1]EXT Comercio(M)'!I217","v":689.95699999999999},{"$f":"'[1]EXT Comercio(M)'!K217","v":2503.6490862371593},{"$f":"'[1]EXT Comercio(M)'!L217","v":3193.6060862371596},null,null,{"$f":"'[1]EXT Comercio(M)'!AG217","v":930.08089427000004},{"$f":"'[1]EXT Comercio(M)'!AH217","v":686.19},{"$f":"'[1]EXT Comercio(M)'!AI217","v":944.00000000000011},{"$f":"'[1]EXT Comercio(M)'!AJ217","v":547.61970929399968},{"$f":"'[1]EXT Comercio(M)'!AK217","v":334.4},{"$f":"'[1]EXT Comercio(M)'!AL217","v":970.69999999999982},{"$f":"'[1]EXT Comercio(M)'!AM217","v":1001.0412759999999},{"$f":"'[1]EXT Comercio(M)'!AO217","v":4412.9906035640015},{"$f":"'[1]EXT Comercio(M)'!AP217","v":5414.0318795640014},null,null,{"$f":"'[1]EXT Comercio(M)'!$BS217","v":-1909.3415173268404},{"$f":"'[1]EXT Comercio(M)'!$BT217","v":-2220.4257933268409}]
[null,null,"Mayo ",{"$f":"'[1]REAL IPC(M)'!AD218","v":9.1692343858474015},{"$f":"'[1]REAL IPC(M)'!AE218","v":3.8744760394244961},{"$f":"'[1]REAL IPC(M)'!AF218","v":5.4652485116061298},{"$f":"'[1]REAL IPC(M)'!AG218","v":6.0551558752997563},{"$f":"'[1]REAL IPC(M)'!AH218","v":8.7361372672107223},{"$f":"'[1]REAL IPC(M)'!AI218","v":6.2831891269635012},{"$f":"'[1]REAL IPC(M)'!AJ218","v":3.3930254476908721},null,null,{"$f":"'[1]REAL IMAE(M)'!AG218","v":8.328443349786351},{"$f":"'[1]REAL IMAE(M)'!AH218","v":1.9438370658520727},{"$f":"'[1]REAL IMAE(M)'!AI218","v":6.8652126659902706},{"$f":"'[1]REAL IMAE(M)'!AJ218","v":9.6312682051135727},{"$f":"'[1]REAL IMAE(M)'!AK218","v":4.8965378005307789},{"$f":"'[1]REAL IMAE(M)'!AL218","v":"n.d."},{"$f":"'[1]REAL IMAE(M)'!AM218","v":8.886774500475731},null,null,{"$f":"'[1]EXT ITCER(M)'!C218","v":98.217971218425916},{"$f":"'[1]EXT ITCER(M)'!D218","v":95.438021490191005},{"$f":"'[1]EXT ITCER(M)'!E218","v":74.247884821265487},{"$f":"'[1]EXT ITCER(M)'!F218","v":92.064303819658122},{"$f":"'[1]EXT ITCER(M)'!G218","v":104.1615473318767},{"$f":"'[1]EXT ITCER(M)'!H218","v":92.664219601707416},{"$f":"'[1]EXT ITCER(M)'!I218","v":106.1775767137779},null,null,{"$f":"'[1]EXT TC(M)'!J218","v":1.8000144885724763},{"$f":"'[1]EXT TC(M)'!K218","v":0},{"$f":"'[1]EXT TC(M)'!L218","v":0.78588496217771375},{"$f":"'[1]EXT TC(M)'!M218","v":0},{"$f":"'[1]EXT TC(M)'!N218","v":4.3817950982119616},{"$f":"'[1]EXT TC(M)'!O218","v":-1.0854812649072823},{"$f":"'[1]EXT TC(M)'!P218","v":0},null,null,{"$f":"'[1]EXT RIN(M)'!C218","v":3588.1},{"$f":"'[1]EXT RIN(M)'!D218","v":2163.8000000000002},{"$f":"'[1]EXT RIN(M)'!E218","v":4253.2},{"$f":"'[1]EXT RIN(M)'!F218","v":2639.7673840725906},{"$f":"'[1]EXT RIN(M)'!G218","v":929.3},{"$f":"'[1]EXT RIN(M)'!H218","v":2217.8000000000002},{"$f":"'[1]EXT RIN(M)'!I218","v":1682.1831294799003},null,null,{"$f":"'[1]EXT RIN(M)'!P218","v":60.459505609416041},{"$f":"'[1]EXT RIN(M)'!Q218","v":94.704587600868166},{"$f":"'[1]EXT RIN(M)'!R218","v":106.56985564801336},{"$f":"'[1]EXT RIN(M)'!S218","v":118.18629043538711},{"$f":"'[1]EXT RIN(M)'!T218","v":93.430251384744082},{"$f":"'[1]EXT RIN(M)'!U218","v":45.261862491371105},{"$f":"'[1]EXT RIN(M)'!V218","v":195.90091428819244},null,null,{"$f":"+'[1]MONE(M)CAPARD'!AE218","v":-1.7580359490880604},{"$f":"'[1]MONE(M)CAPARD'!AF218","v":0.94876431453811483},{"$f":"'[1]MONE(M)CAPARD'!AG218","v":-0.5264753266522918},{"$f":"'[1]MONE(M)CAPARD'!AH218","v":1.4566421707179229},{"$f":"'[1]MONE(M)CAPARD'!AI218","v":3.2911544849814232},{"$f":"'[1]MONE(M)CAPARD'!AJ218","v":1.4930026903322691},{"$f":"'[1]MONE(M)CAPARD'!AK218","v":1.3608021877848535},null,null,{"$f":"'[1]MONE(M)CAPARD'!AL218","v":4.1150000000000002},{"$f":"'[1]MONE(M)CAPARD'!AM218","v":4.8600000000000003},{"$f":"'[1]MONE(M)CAPARD'!AN218","v":3.8},{"$f":"'[1]MONE(M)CAPARD'!AO218","v":3.92},{"$f":"'[1]MONE(M)CAPARD'!AP218","v":6.4},{"$f":"'[1]MONE(M)CAPARD'!AQ218","v":2.4900000000000002},{"$f":"'[1]MONE(M)CAPARD'!AR218","v":4.8},null,null,{"$f":"'[1]MONE(M)CAPARD'!J218","v":6.7058871076058901},{"$f":"'[1]MONE(M)CAPARD'!K218","v":3.7117144726796787},{"$f":"'[1]MONE(M)CAPARD'!L218","v":6.9167347456552051},{"$f":"'[1]MONE(M)CAPARD'!M218","v":10.037083097795366},{"$f":"'[1]MONE(M)CAPARD'!N218","v":8.8588932955101569},{"$f":"'[1]MONE(M)CAPARD'!O218","v":9.0482897173404098},{"$f":"'[1]MONE(M)CAPARD'!P218","v":3.8947834586216818},null,null,{"$f":"'[1]MONE(M)CAPARD'!Q218","v":10.06},{"$f":"'[1]MONE(M)CAPARD'!R218","v":7.73},{"$f":"'[1]MONE(M)CAPARD'!S218","v":7.68},{"$f":"'[1]MONE(M)CAPARD'!T218","v":9.59},{"$f":"'[1]MONE(M)CAPARD'!U218","v":11},{"$f":"'[1]MONE(M)CAPARD'!V218","v":8.07},{"$f":"'[1]MONE(M)CAPARD'!W218","v":7.4199599001960426},null,null,{"$f":"'[1]MONE(M)CAPARD'!AS218","v":5.98},{"$f":"'[1]MONE(M)CAPARD'!AT218","v":"n.a."},{"$f":"'[1]MONE(M)CAPARD'!AU218","v":5.5},{"$f":"'[1]MONE(M)CAPARD'!AV218","v":6},{"$f":"'[1]MONE(M)CAPARD'!AW218","v":"n.a."},{"$f":"'[1]MONE(M)CAPARD'!AX218","v":7},{"$f":"'[1]MONE(M)CAPARD'!AY218","v":"n.a."},null,null,{"$f":"+'Datos_Regional (M)'!CF211","v":30.547584691232956},{"$f":"+'Datos_Regional (M)'!CG211","v":8.3651038955635073},{"$f":"+'Datos_Regional (M)'!CH211","v":16.586310051452834},{"$f":"+'Datos_Regional (M)'!CI211","v":29.807444212715239},{"$f":"+'Datos_Regional (M)'!CJ211","v":27.127831939484981},{"$f":"+'Datos_Regional (M)'!CK211","v":18.199274136549469},{"$f":"+'Datos_Regional (M)'!CL211","v":14.547809901707609},null,null,727.72995301333333,315.11333333333334,556.01666666666665,184.70758088836442,179.32975600355948,581.47249999999985,755.72741666666661,2544.3697899052572,3300.0972065719238,null,null,997.4461999350001,688.43916666666667,1039.7916666666667,521.3602789855272,319.81666666666666,1053.383333333333,1071.5232660833333,4620.2373122538602,5691.7605783371937,null,null,-2075.867522348603,-2391.6633717652699,null,null,{"$f":"'[1]EXT Comercio(M)'!C218","v":864.84966277000012},{"$f":"'[1]EXT Comercio(M)'!D218","v":339.86999999999989},{"$f":"'[1]EXT Comercio(M)'!E218","v":679},{"$f":"'[1]EXT Comercio(M)'!F218","v":251.87747989985348},{"$f":"'[1]EXT Comercio(M)'!G218","v":196.92243956365019},{"$f":"'[1]EXT Comercio(M)'!H218","v":638.70829999999978},{"$f":"'[1]EXT Comercio(M)'!I218","v":794.60500000000002},{"$f":"'[1]EXT Comercio(M)'!K218","v":2971.2278822335029},{"$f":"'[1]EXT Comercio(M)'!L218","v":3765.8328822335025},null,null,{"$f":"'[1]EXT Comercio(M)'!AG218","v":1071.63028592},{"$f":"'[1]EXT Comercio(M)'!AH218","v":867.20000000000027},{"$f":"'[1]EXT Comercio(M)'!AI218","v":1173.2000000000005},{"$f":"'[1]EXT Comercio(M)'!AJ218","v":607.23012614430081},{"$f":"'[1]EXT Comercio(M)'!AK218","v":363.50000000000006},{"$f":"'[1]EXT Comercio(M)'!AL218","v":1178.8},{"$f":"'[1]EXT Comercio(M)'!AM218","v":1195.2455549999997},{"$f":"'[1]EXT Comercio(M)'!AO218","v":5261.5604120643002},{"$f":"'[1]EXT Comercio(M)'!AP218","v":6456.8059670642979},null,null,{"$f":"'[1]EXT Comercio(M)'!$BS218","v":-2290.3325298307973},{"$f":"'[1]EXT Comercio(M)'!$BT218","v":-2690.9730848307972}]
[null,null,"Junio",{"$f":"'[1]REAL IPC(M)'!AD219","v":8.7507581935482559},{"$f":"'[1]REAL IPC(M)'!AE219","v":3.7078651685393225},{"$f":"'[1]REAL IPC(M)'!AF219","v":5.3132065434233393},{"$f":"'[1]REAL IPC(M)'!AG219","v":6.1566049013747657},{"$f":"'[1]REAL IPC(M)'!AH219","v":9.4567824001668317},{"$f":"'[1]REAL IPC(M)'!AI219","v":5.9079349869163158},{"$f":"'[1]REAL IPC(M)'!AJ219","v":3.668861712135481},null,null,{"$f":"'[1]REAL IMAE(M)'!AG219","v":8.1635733761720601},{"$f":"'[1]REAL IMAE(M)'!AH219","v":3.4407538784191489},{"$f":"'[1]REAL IMAE(M)'!AI219","v":6.6078382604703263},{"$f":"'[1]REAL IMAE(M)'!AJ219","v":9.1374859249861355},{"$f":"'[1]REAL IMAE(M)'!AK219","v":5.1806581124886959},{"$f":"'[1]REAL IMAE(M)'!AL219","v":"n.d."},{"$f":"'[1]REAL IMAE(M)'!AM219","v":8.7359072872708783},null,null,{"$f":"'[1]EXT ITCER(M)'!C219","v":97.871294650942261},{"$f":"'[1]EXT ITCER(M)'!D219","v":95.026927604278882},{"$f":"'[1]EXT ITCER(M)'!E219","v":74.426908525117284},{"$f":"'[1]EXT ITCER(M)'!F219","v":91.913887220127805},{"$f":"'[1]EXT ITCER(M)'!G219","v":103.550641900079},{"$f":"'[1]EXT ITCER(M)'!H219","v":93.300455755333985},{"$f":"'[1]EXT ITCER(M)'!I219","v":105.9406982618294},null,null,{"$f":"'[1]EXT TC(M)'!J219","v":1.2308130380235491},{"$f":"'[1]EXT TC(M)'!K219","v":0},{"$f":"'[1]EXT TC(M)'!L219","v":0.89959006688382859},{"$f":"'[1]EXT TC(M)'!M219","v":0},{"$f":"'[1]EXT TC(M)'!N219","v":3.9901310511850419},{"$f":"'[1]EXT TC(M)'!O219","v":-1.0675961080658805},{"$f":"'[1]EXT TC(M)'!P219","v":0},null,null,{"$f":"'[1]EXT RIN(M)'!C219","v":3734.1},{"$f":"'[1]EXT RIN(M)'!D219","v":2142},{"$f":"'[1]EXT RIN(M)'!E219","v":4392.3999999999996},{"$f":"'[1]EXT RIN(M)'!F219","v":2684.0973766622042},{"$f":"'[1]EXT RIN(M)'!G219","v":945.8},{"$f":"'[1]EXT RIN(M)'!H219","v":2240.9},{"$f":"'[1]EXT RIN(M)'!I219","v":1743.0560142500499},null,null,{"$f":"'[1]EXT RIN(M)'!P219","v":61.50905703381747},{"$f":"'[1]EXT RIN(M)'!Q219","v":92.210772646203793},{"$f":"'[1]EXT RIN(M)'!R219","v":110.16852994960024},{"$f":"'[1]EXT RIN(M)'!S219","v":111.8507006936556},{"$f":"'[1]EXT RIN(M)'!T219","v":95.040007782596462},{"$f":"'[1]EXT RIN(M)'!U219","v":46.381768112941764},{"$f":"'[1]EXT RIN(M)'!V219","v":201.15482970564739},null,null,{"$f":"+'[1]MONE(M)CAPARD'!AE219","v":-1.3799979130971152},{"$f":"'[1]MONE(M)CAPARD'!AF219","v":1.2459371614301227},{"$f":"'[1]MONE(M)CAPARD'!AG219","v":-0.37336869356571178},{"$f":"'[1]MONE(M)CAPARD'!AH219","v":1.3220045045045137},{"$f":"'[1]MONE(M)CAPARD'!AI219","v":2.1310771509153388},{"$f":"'[1]MONE(M)CAPARD'!AJ219","v":1.4560429426503203},{"$f":"'[1]MONE(M)CAPARD'!AK219","v":1.0911070780399124},null,null,{"$f":"'[1]MONE(M)CAPARD'!AL219","v":4.1099999999999994},{"$f":"'[1]MONE(M)CAPARD'!AM219","v":5},{"$f":"'[1]MONE(M)CAPARD'!AN219","v":3.84},{"$f":"'[1]MONE(M)CAPARD'!AO219","v":3.93},{"$f":"'[1]MONE(M)CAPARD'!AP219","v":6.4},{"$f":"'[1]MONE(M)CAPARD'!AQ219","v":2.83},{"$f":"'[1]MONE(M)CAPARD'!AR219","v":4.8},null,null,{"$f":"'[1]MONE(M)CAPARD'!J219","v":7.0797132216302181},{"$f":"'[1]MONE(M)CAPARD'!K219","v":3.9169014084507072},{"$f":"'[1]MONE(M)CAPARD'!L219","v":7.0805872324303722},{"$f":"'[1]MONE(M)CAPARD'!M219","v":9.8377252252252347},{"$f":"'[1]MONE(M)CAPARD'!N219","v":7.9264219938975353},{"$f":"'[1]MONE(M)CAPARD'!O219","v":8.7359507238307206},{"$f":"'[1]MONE(M)CAPARD'!P219","v":3.6378059929667423},null,null,{"$f":"'[1]MONE(M)CAPARD'!Q219","v":10.11},{"$f":"'[1]MONE(M)CAPARD'!R219","v":7.77},{"$f":"'[1]MONE(M)CAPARD'!S219","v":7.6700000000000008},{"$f":"'[1]MONE(M)CAPARD'!T219","v":9.52},{"$f":"'[1]MONE(M)CAPARD'!U219","v":11.2},{"$f":"'[1]MONE(M)CAPARD'!V219","v":8.17},{"$f":"'[1]MONE(M)CAPARD'!W219","v":7.44013377633995},null,null,{"$f":"'[1]MONE(M)CAPARD'!AS219","v":5.98},{"$f":"'[1]MONE(M)CAPARD'!AT219","v":"n.a."},{"$f":"'[1]MONE(M)CAPARD'!AU219","v":5.5},{"$f":"'[1]MONE(M)CAPARD'!AV219","v":6},{"$f":"'[1]MONE(M)CAPARD'!AW219","v":"n.a."},{"$f":"'[1]MONE(M)CAPARD'!AX219","v":7},{"$f":"'[1]MONE(M)CAPARD'!AY219","v":"n.a."},null,null,{"$f":"+'Datos_Regional (M)'!CF212","v":31.167661346131158},{"$f":"+'Datos_Regional (M)'!CG212","v":8.6634963409532482},{"$f":"+'Datos_Regional (M)'!CH212","v":12.992649198938079},{"$f":"+'Datos_Regional (M)'!CI212","v":31.75618058342744},{"$f":"+'Datos_Regional (M)'!CJ212","v":29.530484303184188},{"$f":"+'Datos_Regional (M)'!CK212","v":19.55947240448188},{"$f":"+'Datos_Regional (M)'!CL212","v":14.312721944849716},null,null,733.49178569249989,315.95750000000004,562.22499999999991,186.74370797768609,181.94890324244975,586.11114999999995,761.7890000000001,2566.4780469126349,3328.2670469126365,null,null,1000.9566693641667,686.72916666666663,1051.9916666666668,526.26208314109851,322.60833333333341,1059.9083333333333,1081.8010054166664,4648.4562525052643,5730.2572579219313,null,null,-2081.9782055926294,-2401.9902110092958,null,null,{"$f":"'[1]EXT Comercio(M)'!C219","v":817.45239027000025},{"$f":"'[1]EXT Comercio(M)'!D219","v":340.63000000000011},{"$f":"'[1]EXT Comercio(M)'!E219","v":618.20000000000027},{"$f":"'[1]EXT Comercio(M)'!F219","v":219.75603150882716},{"$f":"'[1]EXT Comercio(M)'!G219","v":205.58846686668289},{"$f":"'[1]EXT Comercio(M)'!H219","v":651.6228000000001},{"$f":"'[1]EXT Comercio(M)'!I219","v":769.28499999999997},{"$f":"'[1]EXT Comercio(M)'!K219","v":2853.2496886455101},{"$f":"'[1]EXT Comercio(M)'!L219","v":3622.5346886455118},null,null,{"$f":"'[1]EXT Comercio(M)'!AG219","v":1001.2798661099996},{"$f":"'[1]EXT Comercio(M)'!AH219","v":724.51000000000022},{"$f":"'[1]EXT Comercio(M)'!AI219","v":1118.1999999999998},{"$f":"'[1]EXT Comercio(M)'!AJ219","v":569.45176579729969},{"$f":"'[1]EXT Comercio(M)'!AK219","v":339.99999999999994},{"$f":"'[1]EXT Comercio(M)'!AL219","v":1073.9000000000001},{"$f":"'[1]EXT Comercio(M)'!AM219","v":1129.8137820000002},{"$f":"'[1]EXT Comercio(M)'!AO219","v":4827.341631907304},{"$f":"'[1]EXT Comercio(M)'!AP219","v":5957.155413907305},null,null,{"$f":"'[1]EXT Comercio(M)'!$BS219","v":-1974.0919432617884},{"$f":"'[1]EXT Comercio(M)'!$BT219","v":-2334.6207252617878}]
[null,null,"Julio",{"$f":"'[1]REAL IPC(M)'!AD220","v":8.752412111860421},{"$f":"'[1]REAL IPC(M)'!AE220","v":3.1628010209743413},{"$f":"'[1]REAL IPC(M)'!AF220","v":5.5868140597074278},{"$f":"'[1]REAL IPC(M)'!AG220","v":6.3020214030915715},{"$f":"'[1]REAL IPC(M)'!AH220","v":9.7593860194980255},{"$f":"'[1]REAL IPC(M)'!AI220","v":5.238164815897151},{"$f":"'[1]REAL IPC(M)'!AJ220","v":4.1392285983066959},null,null,{"$f":"'[1]REAL IMAE(M)'!AG220","v":7.7935708787456326},{"$f":"'[1]REAL IMAE(M)'!AH220","v":4.4522215933278595},{"$f":"'[1]REAL IMAE(M)'!AI220","v":6.1676703810207814},{"$f":"'[1]REAL IMAE(M)'!AJ220","v":8.3757786189465069},{"$f":"'[1]REAL IMAE(M)'!AK220","v":5.2308240045847416},{"$f":"'[1]REAL IMAE(M)'!AL220","v":"n.d."},{"$f":"'[1]REAL IMAE(M)'!AM220","v":8.5662477333833476},null,null,{"$f":"'[1]EXT ITCER(M)'!C220","v":97.127746209944959},{"$f":"'[1]EXT ITCER(M)'!D220","v":94.520256003597069},{"$f":"'[1]EXT ITCER(M)'!E220","v":74.038446290138893},{"$f":"'[1]EXT ITCER(M)'!F220","v":91.459578580556979},{"$f":"'[1]EXT ITCER(M)'!G220","v":103.3074316828976},{"$f":"'[1]EXT ITCER(M)'!H220","v":94.886823946366931},{"$f":"'[1]EXT ITCER(M)'!I220","v":105.64998020225489},null,null,{"$f":"'[1]EXT TC(M)'!J220","v":0.64802798002691142},{"$f":"'[1]EXT TC(M)'!K220","v":0},{"$f":"'[1]EXT TC(M)'!L220","v":1.2678700627927713},{"$f":"'[1]EXT TC(M)'!M220","v":0},{"$f":"'[1]EXT TC(M)'!N220","v":4.1739659406690048},{"$f":"'[1]EXT TC(M)'!O220","v":0.72753584251276904},{"$f":"'[1]EXT TC(M)'!P220","v":0},null,null,{"$f":"'[1]EXT RIN(M)'!C220","v":3839.3},{"$f":"'[1]EXT RIN(M)'!D220","v":2445},{"$f":"'[1]EXT RIN(M)'!E220","v":4441.3},{"$f":"'[1]EXT RIN(M)'!F220","v":2635.3969294642525},{"$f":"'[1]EXT RIN(M)'!G220","v":963.7},{"$f":"'[1]EXT RIN(M)'!H220","v":2366.1999999999998},{"$f":"'[1]EXT RIN(M)'!I220","v":1882.8632412773002},null,null,{"$f":"'[1]EXT RIN(M)'!P220","v":62.978328120279038},{"$f":"'[1]EXT RIN(M)'!Q220","v":93.384375819977834},{"$f":"'[1]EXT RIN(M)'!R220","v":107.67828979781112},{"$f":"'[1]EXT RIN(M)'!S220","v":115.64135934709093},{"$f":"'[1]EXT RIN(M)'!T220","v":95.742344629020323},{"$f":"'[1]EXT RIN(M)'!U220","v":46.102089988931674},{"$f":"'[1]EXT RIN(M)'!V220","v":199.38214756868945},null,null,{"$f":"+'[1]MONE(M)CAPARD'!AE220","v":-1.3814977366341741},{"$f":"'[1]MONE(M)CAPARD'!AF220","v":1.5870051635112103},{"$f":"'[1]MONE(M)CAPARD'!AG220","v":-0.65047332455646079},{"$f":"'[1]MONE(M)CAPARD'!AH220","v":1.2586577181207919},{"$f":"'[1]MONE(M)CAPARD'!AI220","v":2.0295552366933287},{"$f":"'[1]MONE(M)CAPARD'!AJ220","v":1.9116973273168893},{"$f":"'[1]MONE(M)CAPARD'!AK220","v":0.64411020776872796},null,null,{"$f":"'[1]MONE(M)CAPARD'!AL220","v":4.1099999999999994},{"$f":"'[1]MONE(M)CAPARD'!AM220","v":4.8},{"$f":"'[1]MONE(M)CAPARD'!AN220","v":3.92},{"$f":"'[1]MONE(M)CAPARD'!AO220","v":3.92},{"$f":"'[1]MONE(M)CAPARD'!AP220","v":6.4},{"$f":"'[1]MONE(M)CAPARD'!AQ220","v":2.7},{"$f":"'[1]MONE(M)CAPARD'!AR220","v":4.8099999999999996},null,null,{"$f":"'[1]MONE(M)CAPARD'!J220","v":7.0045231551317606},{"$f":"'[1]MONE(M)CAPARD'!K220","v":4.4756432874354797},{"$f":"'[1]MONE(M)CAPARD'!L220","v":6.8031088959939741},{"$f":"'[1]MONE(M)CAPARD'!M220","v":9.5181431767337674},{"$f":"'[1]MONE(M)CAPARD'!N220","v":7.6293168729397296},{"$f":"'[1]MONE(M)CAPARD'!O220","v":9.5705157931273703},{"$f":"'[1]MONE(M)CAPARD'!P220","v":3.1904644858693381},null,null,{"$f":"'[1]MONE(M)CAPARD'!Q220","v":10.220000000000001},{"$f":"'[1]MONE(M)CAPARD'!R220","v":7.78},{"$f":"'[1]MONE(M)CAPARD'!S220","v":7.68},{"$f":"'[1]MONE(M)CAPARD'!T220","v":9.66},{"$f":"'[1]MONE(M)CAPARD'!U220","v":10.7},{"$f":"'[1]MONE(M)CAPARD'!V220","v":7.84},{"$f":"'[1]MONE(M)CAPARD'!W220","v":7.4617537025939562},null,null,{"$f":"'[1]MONE(M)CAPARD'!AS220","v":5.98},{"$f":"'[1]MONE(M)CAPARD'!AT220","v":"n.a."},{"$f":"'[1]MONE(M)CAPARD'!AU220","v":5.5},{"$f":"'[1]MONE(M)CAPARD'!AV220","v":6},{"$f":"'[1]MONE(M)CAPARD'!AW220","v":"n.a."},{"$f":"'[1]MONE(M)CAPARD'!AX220","v":7},{"$f":"'[1]MONE(M)CAPARD'!AY220","v":"n.a."},null,null,{"$f":"+'Datos_Regional (M)'!CF213","v":31.989280715423106},{"$f":"+'Datos_Regional (M)'!CG213","v":8.4338463788141471},{"$f":"+'Datos_Regional (M)'!CH213","v":14.328907494976928},{"$f":"+'Datos_Regional (M)'!CI213","v":33.483131070674773},{"$f":"+'Datos_Regional (M)'!CJ213","v":28.604722123904658},{"$f":"+'Datos_Regional (M)'!CK213","v":19.252458062975641},{"$f":"+'Datos_Regional (M)'!CL213","v":14.586299845149986},null,null,742.18267684583327,320.70416666666659,563.125,191.12359321196553,186.07047390772513,590.51859166666657,773.26150000000007,2593.7245022988573,3366.9860022988578,null,null,1009.702258223333,694.75416666666672,1066.1666666666667,541.73380737729838,328.50833333333338,1070.8916666666667,1108.6010100000001,4711.7568989339643,5820.3579089339646,null,null,-2118.0323966351075,-2453.3719066351077,null,null,{"$f":"'[1]EXT Comercio(M)'!C220","v":732.7508378399998},{"$f":"'[1]EXT Comercio(M)'!D220","v":385.85999999999967},{"$f":"'[1]EXT Comercio(M)'!E220","v":579},{"$f":"'[1]EXT Comercio(M)'!F220","v":231.6439119262368},{"$f":"'[1]EXT Comercio(M)'!G220","v":205.22814798330501},{"$f":"'[1]EXT Comercio(M)'!H220","v":586.98639999999978},{"$f":"'[1]EXT Comercio(M)'!I220","v":770.83299999999997},{"$f":"'[1]EXT Comercio(M)'!K220","v":2721.4692977495433},{"$f":"'[1]EXT Comercio(M)'!L220","v":3492.302297749542},null,null,{"$f":"'[1]EXT Comercio(M)'!AG220","v":1075.90004537},{"$f":"'[1]EXT Comercio(M)'!AH220","v":806.89999999999964},{"$f":"'[1]EXT Comercio(M)'!AI220","v":1198.9999999999998},{"$f":"'[1]EXT Comercio(M)'!AJ220","v":664.62987935795172},{"$f":"'[1]EXT Comercio(M)'!AK220","v":378.80000000000007},{"$f":"'[1]EXT Comercio(M)'!AL220","v":1203.7999999999997},{"$f":"'[1]EXT Comercio(M)'!AM220","v":1355.0481339999999},{"$f":"'[1]EXT Comercio(M)'!AO220","v":5329.0299247279472},{"$f":"'[1]EXT Comercio(M)'!AP220","v":6684.0780587279442},null,null,{"$f":"'[1]EXT Comercio(M)'!$BS220","v":-2607.5606269784112},{"$f":"'[1]EXT Comercio(M)'!$BT220","v":-3191.7757609784112}]
[null,null,"Agosto",{"$f":"'[1]REAL IPC(M)'!AD221","v":8.5627158951680666},{"$f":"'[1]REAL IPC(M)'!AE221","v":3.5590762021644515},{"$f":"'[1]REAL IPC(M)'!AF221","v":6.2087622063869068},{"$f":"'[1]REAL IPC(M)'!AG221","v":6.6943127962085205},{"$f":"'[1]REAL IPC(M)'!AH221","v":9.8664458018428416},{"$f":"'[1]REAL IPC(M)'!AI221","v":4.3641534198629532},{"$f":"'[1]REAL IPC(M)'!AJ221","v":4.2293233082706738},null,null,{"$f":"'[1]REAL IMAE(M)'!AG221","v":7.1848947543583872},{"$f":"'[1]REAL IMAE(M)'!AH221","v":3.3278500401235034},{"$f":"'[1]REAL IMAE(M)'!AI221","v":5.6995880912089136},{"$f":"'[1]REAL IMAE(M)'!AJ221","v":7.5093010061682914},{"$f":"'[1]REAL IMAE(M)'!AK221","v":5.2221725223863977},{"$f":"'[1]REAL IMAE(M)'!AL221","v":"n.d."},{"$f":"'[1]REAL IMAE(M)'!AM221","v":8.5350713842333956},null,null,{"$f":"'[1]EXT ITCER(M)'!C221","v":96.477416278520025},{"$f":"'[1]EXT ITCER(M)'!D221","v":94.699480134094216},{"$f":"'[1]EXT ITCER(M)'!E221","v":73.230978868089011},{"$f":"'[1]EXT ITCER(M)'!F221","v":90.8273956479958},{"$f":"'[1]EXT ITCER(M)'!G221","v":103.8716859269183},{"$f":"'[1]EXT ITCER(M)'!H221","v":95.271230843686382},{"$f":"'[1]EXT ITCER(M)'!I221","v":105.4919593405928},null,null,{"$f":"'[1]EXT TC(M)'!J221","v":0.13437674888306969},{"$f":"'[1]EXT TC(M)'!K221","v":0},{"$f":"'[1]EXT TC(M)'!L221","v":1.0612860336183925},{"$f":"'[1]EXT TC(M)'!M221","v":0},{"$f":"'[1]EXT TC(M)'!N221","v":4.4611616515045576},{"$f":"'[1]EXT TC(M)'!O221","v":0.8245900031868264},{"$f":"'[1]EXT TC(M)'!P221","v":0},null,null,{"$f":"'[1]EXT RIN(M)'!C221","v":3902.8},{"$f":"'[1]EXT RIN(M)'!D221","v":2389},{"$f":"'[1]EXT RIN(M)'!E221","v":4263.1000000000004},{"$f":"'[1]EXT RIN(M)'!F221","v":2566.9299530724898},{"$f":"'[1]EXT RIN(M)'!G221","v":955.7},{"$f":"'[1]EXT RIN(M)'!H221","v":2360.6},{"$f":"'[1]EXT RIN(M)'!I221","v":1839.1799722968501},null,null,{"$f":"'[1]EXT RIN(M)'!P221","v":63.932936191032688},{"$f":"'[1]EXT RIN(M)'!Q221","v":93.351344528982096},{"$f":"'[1]EXT RIN(M)'!R221","v":105.57612904774093},{"$f":"'[1]EXT RIN(M)'!S221","v":116.32406800214838},{"$f":"'[1]EXT RIN(M)'!T221","v":96.077566684615235},{"$f":"'[1]EXT RIN(M)'!U221","v":48.772786526124492},{"$f":"'[1]EXT RIN(M)'!V221","v":194.7584285542319},null,null,{"$f":"+'[1]MONE(M)CAPARD'!AE221","v":-1.2091774642370505},{"$f":"'[1]MONE(M)CAPARD'!AF221","v":0.91824283559577891},{"$f":"'[1]MONE(M)CAPARD'!AG221","v":-1.2228390383301209},{"$f":"'[1]MONE(M)CAPARD'!AH221","v":0.94258745141589007},{"$f":"'[1]MONE(M)CAPARD'!AI221","v":2.2111418602783468},{"$f":"'[1]MONE(M)CAPARD'!AJ221","v":2.4010606113536732},{"$f":"'[1]MONE(M)CAPARD'!AK221","v":0.5571145175834108},null,null,{"$f":"'[1]MONE(M)CAPARD'!AL221","v":4.1150000000000002},{"$f":"'[1]MONE(M)CAPARD'!AM221","v":4.51},{"$f":"'[1]MONE(M)CAPARD'!AN221","v":4.03},{"$f":"'[1]MONE(M)CAPARD'!AO221","v":4.04},{"$f":"'[1]MONE(M)CAPARD'!AP221","v":6.52},{"$f":"'[1]MONE(M)CAPARD'!AQ221","v":2.57},{"$f":"'[1]MONE(M)CAPARD'!AR221","v":4.8099999999999996},null,null,{"$f":"'[1]MONE(M)CAPARD'!J221","v":6.795412259173486},{"$f":"'[1]MONE(M)CAPARD'!K221","v":3.8730780004309446},{"$f":"'[1]MONE(M)CAPARD'!L221","v":6.0176181897247956},{"$f":"'[1]MONE(M)CAPARD'!M221","v":8.9467629094947334},{"$f":"'[1]MONE(M)CAPARD'!N221","v":7.6307093821721743},{"$f":"'[1]MONE(M)CAPARD'!O221","v":10.880983755458473},{"$f":"'[1]MONE(M)CAPARD'!P221","v":3.1012892374299064},null,null,{"$f":"'[1]MONE(M)CAPARD'!Q221","v":10.32},{"$f":"'[1]MONE(M)CAPARD'!R221","v":7.57},{"$f":"'[1]MONE(M)CAPARD'!S221","v":7.59},{"$f":"'[1]MONE(M)CAPARD'!T221","v":9.67},{"$f":"'[1]MONE(M)CAPARD'!U221","v":11},{"$f":"'[1]MONE(M)CAPARD'!V221","v":7.85},{"$f":"'[1]MONE(M)CAPARD'!W221","v":7.4617760942760931},null,null,{"$f":"'[1]MONE(M)CAPARD'!AS221","v":5.52},{"$f":"'[1]MONE(M)CAPARD'!AT221","v":"n.a."},{"$f":"'[1]MONE(M)CAPARD'!AU221","v":5.5},{"$f":"'[1]MONE(M)CAPARD'!AV221","v":6.25},{"$f":"'[1]MONE(M)CAPARD'!AW221","v":"n.a."},{"$f":"'[1]MONE(M)CAPARD'!AX221","v":7},{"$f":"'[1]MONE(M)CAPARD'!AY221","v":"n.a."},null,null,{"$f":"+'Datos_Regional (M)'!CF214","v":31.689265485894545},{"$f":"+'Datos_Regional (M)'!CG214","v":8.4192556350793488},{"$f":"+'Datos_Regional (M)'!CH214","v":13.816194883087164},{"$f":"+'Datos_Regional (M)'!CI214","v":32.463644222153199},{"$f":"+'Datos_Regional (M)'!CJ214","v":29.438814747696206},{"$f":"+'Datos_Regional (M)'!CK214","v":19.491880465378351},{"$f":"+'Datos_Regional (M)'!CL214","v":14.677106039466414},null,null,749.40172186333314,324.09333333333331,567.94166666666661,195.40383427206052,187.85735933120131,593.2041499999998,778.37116666666668,2617.9020654665946,3396.2732321332619,null,null,1018.9361926274996,703.07499999999993,1082.8000000000002,556.85965429701048,333.35833333333341,1071.1249999999998,1120.8687069166667,4766.154180257844,5887.0228871745103,null,null,-2148.2521147912489,-2490.7496550412493,null,null,{"$f":"'[1]EXT Comercio(M)'!C221","v":805.61484561999987},{"$f":"'[1]EXT Comercio(M)'!D221","v":349.22000000000025},{"$f":"'[1]EXT Comercio(M)'!E221","v":588.70000000000027},{"$f":"'[1]EXT Comercio(M)'!F221","v":213.57147640040876},{"$f":"'[1]EXT Comercio(M)'!G221","v":207.87902508171402},{"$f":"'[1]EXT Comercio(M)'!H221","v":628.57049999999981},{"$f":"'[1]EXT Comercio(M)'!I221","v":819.20399999999995},{"$f":"'[1]EXT Comercio(M)'!K221","v":2793.5558471021213},{"$f":"'[1]EXT Comercio(M)'!L221","v":3612.7598471021192},null,null,{"$f":"'[1]EXT Comercio(M)'!AG221","v":1141.0040802699996},{"$f":"'[1]EXT Comercio(M)'!AH221","v":705.22999999999956},{"$f":"'[1]EXT Comercio(M)'!AI221","v":1259.7},{"$f":"'[1]EXT Comercio(M)'!AJ221","v":678.34543872930044},{"$f":"'[1]EXT Comercio(M)'!AK221","v":389.40000000000009},{"$f":"'[1]EXT Comercio(M)'!AL221","v":1171.8000000000002},{"$f":"'[1]EXT Comercio(M)'!AM221","v":1305.1153130000002},{"$f":"'[1]EXT Comercio(M)'!AO221","v":5345.4795189993019},{"$f":"'[1]EXT Comercio(M)'!AP221","v":6650.594831999304},null,null,{"$f":"'[1]EXT Comercio(M)'!$BS221","v":-2551.9236718971806},{"$f":"'[1]EXT Comercio(M)'!$BT221","v":-3037.8349848971811}]
[null,null,"Setiembre",{"$f":"'[1]REAL IPC(M)'!AD222","v":9.4300842523360817},{"$f":"'[1]REAL IPC(M)'!AE222","v":4.3085165755106649},{"$f":"'[1]REAL IPC(M)'!AF222","v":7.3316113649910584},{"$f":"'[1]REAL IPC(M)'!AG222","v":7.109004739336493},{"$f":"'[1]REAL IPC(M)'!AH222","v":11.55925155925155},{"$f":"'[1]REAL IPC(M)'!AI222","v":6.8126520681265443},{"$f":"'[1]REAL IPC(M)'!AJ222","v":5.1886792452830202},null,null,{"$f":"'[1]REAL IMAE(M)'!AG222","v":6.441957701000935},{"$f":"'[1]REAL IMAE(M)'!AH222","v":0.17115285457231436},{"$f":"'[1]REAL IMAE(M)'!AI222","v":5.2750535452480571},{"$f":"'[1]REAL IMAE(M)'!AJ222","v":6.9389930565208591},{"$f":"'[1]REAL IMAE(M)'!AK222","v":5.3922610119073564},{"$f":"'[1]REAL IMAE(M)'!AL222","v":"n.d."},{"$f":"'[1]REAL IMAE(M)'!AM222","v":8.7731196054254124},null,null,{"$f":"'[1]EXT ITCER(M)'!C222","v":96.237704849591907},{"$f":"'[1]EXT ITCER(M)'!D222","v":94.448706784458778},{"$f":"'[1]EXT ITCER(M)'!E222","v":73.393665346053524},{"$f":"'[1]EXT ITCER(M)'!F222","v":90.859136690875772},{"$f":"'[1]EXT ITCER(M)'!G222","v":103.61746481097251},{"$f":"'[1]EXT ITCER(M)'!H222","v":95.679360066960598},{"$f":"'[1]EXT ITCER(M)'!I222","v":105.3689118834169},null,null,{"$f":"'[1]EXT TC(M)'!J222","v":-0.41118717116599374},{"$f":"'[1]EXT TC(M)'!K222","v":0},{"$f":"'[1]EXT TC(M)'!L222","v":1.2188673144508635},{"$f":"'[1]EXT TC(M)'!M222","v":0},{"$f":"'[1]EXT TC(M)'!N222","v":4.7677268430074253},{"$f":"'[1]EXT TC(M)'!O222","v":1.0825657445484649},{"$f":"'[1]EXT TC(M)'!P222","v":0},null,null,{"$f":"'[1]EXT RIN(M)'!C222","v":3885.9},{"$f":"'[1]EXT RIN(M)'!D222","v":2416.6},{"$f":"'[1]EXT RIN(M)'!E222","v":4274.6000000000004},{"$f":"'[1]EXT RIN(M)'!F222","v":2523.4002776074221},{"$f":"'[1]EXT RIN(M)'!G222","v":971.1},{"$f":"'[1]EXT RIN(M)'!H222","v":2357.8000000000002},{"$f":"'[1]EXT RIN(M)'!I222","v":1719.7764627567501},null,null,{"$f":"'[1]EXT RIN(M)'!P222","v":63.592305120123505},{"$f":"'[1]EXT RIN(M)'!Q222","v":93.90944806923325},{"$f":"'[1]EXT RIN(M)'!R222","v":105.50155217724948},{"$f":"'[1]EXT RIN(M)'!S222","v":115.00448000806696},{"$f":"'[1]EXT RIN(M)'!T222","v":99.166704074689278},{"$f":"'[1]EXT RIN(M)'!U222","v":47.017569586709087},{"$f":"'[1]EXT RIN(M)'!V222","v":179.82101142795003},null,null,{"$f":"+'[1]MONE(M)CAPARD'!AE222","v":-1.9922165529078826},{"$f":"'[1]MONE(M)CAPARD'!AF222","v":0.20274799357944884},{"$f":"'[1]MONE(M)CAPARD'!AG222","v":-2.2468789337282482},{"$f":"'[1]MONE(M)CAPARD'!AH222","v":0.6357964601769911},{"$f":"'[1]MONE(M)CAPARD'!AI222","v":0.67385860513159712},{"$f":"'[1]MONE(M)CAPARD'!AJ222","v":0.10986332574029647},{"$f":"'[1]MONE(M)CAPARD'!AK222","v":-0.62618834080717589},null,null,{"$f":"'[1]MONE(M)CAPARD'!AL222","v":4.085},{"$f":"'[1]MONE(M)CAPARD'!AM222","v":4.5199999999999996},{"$f":"'[1]MONE(M)CAPARD'!AN222","v":4.03},{"$f":"'[1]MONE(M)CAPARD'!AO222","v":4.03},{"$f":"'[1]MONE(M)CAPARD'!AP222","v":6.6},{"$f":"'[1]MONE(M)CAPARD'!AQ222","v":2.74},{"$f":"'[1]MONE(M)CAPARD'!AR222","v":4.53},null,null,{"$f":"'[1]MONE(M)CAPARD'!J222","v":5.7661618290577303},{"$f":"'[1]MONE(M)CAPARD'!K222","v":3.5581787051899356},{"$f":"'[1]MONE(M)CAPARD'!L222","v":5.0948537578674582},{"$f":"'[1]MONE(M)CAPARD'!M222","v":8.5529646017699115},{"$f":"'[1]MONE(M)CAPARD'!N222","v":6.2146773156752175},{"$f":"'[1]MONE(M)CAPARD'!O222","v":7.3561958997721861},{"$f":"'[1]MONE(M)CAPARD'!P222","v":2.1408382809235991},null,null,{"$f":"'[1]MONE(M)CAPARD'!Q222","v":10.16},{"$f":"'[1]MONE(M)CAPARD'!R222","v":8.02},{"$f":"'[1]MONE(M)CAPARD'!S222","v":7.7},{"$f":"'[1]MONE(M)CAPARD'!T222","v":9.69},{"$f":"'[1]MONE(M)CAPARD'!U222","v":10.9},{"$f":"'[1]MONE(M)CAPARD'!V222","v":7.99},{"$f":"'[1]MONE(M)CAPARD'!W222","v":7.4405987577639756},null,null,{"$f":"'[1]MONE(M)CAPARD'!AS222","v":5.52},{"$f":"'[1]MONE(M)CAPARD'!AT222","v":"n.a."},{"$f":"'[1]MONE(M)CAPARD'!AU222","v":5.75},{"$f":"'[1]MONE(M)CAPARD'!AV222","v":6.25},{"$f":"'[1]MONE(M)CAPARD'!AW222","v":"n.a."},{"$f":"'[1]MONE(M)CAPARD'!AX222","v":7},{"$f":"'[1]MONE(M)CAPARD'!AY222","v":"n.a."},null,null,{"$f":"+'Datos_Regional (M)'!CF215","v":33.981181623606169},{"$f":"+'Datos_Regional (M)'!CG215","v":8.8158710874133739},{"$f":"+'Datos_Regional (M)'!CH215","v":12.266744086755853},{"$f":"+'Datos_Regional (M)'!CI215","v":33.910260447110254},{"$f":"+'Datos_Regional (M)'!CJ215","v":28.645484802856135},{"$f":"+'Datos_Regional (M)'!CK215","v":20.652440909919068},{"$f":"+'Datos_Regional (M)'!CL215","v":13.8769944163476},null,null,752.35653394166673,325.05166666666656,562.5333333333333,200.46630550783888,189.79740158079701,585.63991666666641,782.52441666666664,2615.8451576969687,3398.3695743636358,null,null,1028.7619396524999,710.82499999999993,1087.7166666666665,565.4558648346873,335.82500000000005,1084.1249999999998,1134.8115165000002,4812.7094711538539,5947.5209876538538,null,null,-2196.8643134568852,-2549.1514132902184,null,null,{"$f":"'[1]EXT Comercio(M)'!C222","v":748.95380502999978},{"$f":"'[1]EXT Comercio(M)'!D222","v":340.1899999999996},{"$f":"'[1]EXT Comercio(M)'!E222","v":528.99999999999955},{"$f":"'[1]EXT Comercio(M)'!F222","v":201.79799810833379},{"$f":"'[1]EXT Comercio(M)'!G222","v":187.65960699514869},{"$f":"'[1]EXT Comercio(M)'!H222","v":533.33439999999973},{"$f":"'[1]EXT Comercio(M)'!I222","v":855.31999999999994},{"$f":"'[1]EXT Comercio(M)'!K222","v":2540.9358101334838},{"$f":"'[1]EXT Comercio(M)'!L222","v":3396.2558101334835},null,null,{"$f":"'[1]EXT Comercio(M)'!AG222","v":1087.1836852300003},{"$f":"'[1]EXT Comercio(M)'!AH222","v":732.75},{"$f":"'[1]EXT Comercio(M)'!AI222","v":1067.7},{"$f":"'[1]EXT Comercio(M)'!AJ222","v":568.69681101449987},{"$f":"'[1]EXT Comercio(M)'!AK222","v":340.00000000000023},{"$f":"'[1]EXT Comercio(M)'!AL222","v":1172.4000000000001},{"$f":"'[1]EXT Comercio(M)'!AM222","v":1276.7085580000003},{"$f":"'[1]EXT Comercio(M)'!AO222","v":4968.7304962444978},{"$f":"'[1]EXT Comercio(M)'!AP222","v":6245.4390542444962},null,null,{"$f":"'[1]EXT Comercio(M)'!$BS222","v":-2427.7946861110177},{"$f":"'[1]EXT Comercio(M)'!$BT222","v":-2849.1832441110164}]
[null,null,"Octubre",{"$f":"'[1]REAL IPC(M)'!AD223","v":9.8439825044703593},{"$f":"'[1]REAL IPC(M)'!AE223","v":5.4571940833706893},{"$f":"'[1]REAL IPC(M)'!AF223","v":7.7172760996290375},{"$f":"'[1]REAL IPC(M)'!AG223","v":8.2840236686390547},{"$f":"'[1]REAL IPC(M)'!AH223","v":13.349891338093766},{"$f":"'[1]REAL IPC(M)'!AI223","v":7.2107240185607866},{"$f":"'[1]REAL IPC(M)'!AJ223","v":5.45625587958608},null,null,{"$f":"'[1]REAL IMAE(M)'!AG223","v":5.9464592272028387},{"$f":"'[1]REAL IMAE(M)'!AH223","v":-0.15518108758112886},{"$f":"'[1]REAL IMAE(M)'!AI223","v":4.9019115340893},{"$f":"'[1]REAL IMAE(M)'!AJ223","v":6.1901483470241931},{"$f":"'[1]REAL IMAE(M)'!AK223","v":5.8834811112983738},{"$f":"'[1]REAL IMAE(M)'!AL223","v":"n.d."},{"$f":"'[1]REAL IMAE(M)'!AM223","v":9.2679938744257235},null,null,{"$f":"'[1]EXT ITCER(M)'!C223","v":96.027101473569545},{"$f":"'[1]EXT ITCER(M)'!D223","v":94.081768311591745},{"$f":"'[1]EXT ITCER(M)'!E223","v":73.569195432026859},{"$f":"'[1]EXT ITCER(M)'!F223","v":90.043613578872595},{"$f":"'[1]EXT ITCER(M)'!G223","v":102.4942701726626},{"$f":"'[1]EXT ITCER(M)'!H223","v":95.946446572098949},{"$f":"'[1]EXT ITCER(M)'!I223","v":105.1280776700589},null,null,{"$f":"'[1]EXT TC(M)'!J223","v":-0.27729724546007056},{"$f":"'[1]EXT TC(M)'!K223","v":0},{"$f":"'[1]EXT TC(M)'!L223","v":1.3927752414213912},{"$f":"'[1]EXT TC(M)'!M223","v":0},{"$f":"'[1]EXT TC(M)'!N223","v":4.9643281807372253},{"$f":"'[1]EXT TC(M)'!O223","v":-5.5566011525464129E-2},{"$f":"'[1]EXT TC(M)'!P223","v":0},null,null,{"$f":"'[1]EXT RIN(M)'!C223","v":3830.9},{"$f":"'[1]EXT RIN(M)'!D223","v":2400.5},{"$f":"'[1]EXT RIN(M)'!E223","v":4288},{"$f":"'[1]EXT RIN(M)'!F223","v":2432.7214627310786},{"$f":"'[1]EXT RIN(M)'!G223","v":937},{"$f":"'[1]EXT RIN(M)'!H223","v":2349.4},{"$f":"'[1]EXT RIN(M)'!I223","v":1778.0790366305998},null,null,{"$f":"'[1]EXT RIN(M)'!P223","v":63.03120920626025},{"$f":"'[1]EXT RIN(M)'!Q223","v":91.211372904997688},{"$f":"'[1]EXT RIN(M)'!R223","v":108.84084445848478},{"$f":"'[1]EXT RIN(M)'!S223","v":114.72045926651218},{"$f":"'[1]EXT RIN(M)'!T223","v":102.35668617667295},{"$f":"'[1]EXT RIN(M)'!U223","v":46.033940308528813},{"$f":"'[1]EXT RIN(M)'!V223","v":181.85096832776759},null,null,{"$f":"+'[1]MONE(M)CAPARD'!AE223","v":-2.5891108822047824},{"$f":"'[1]MONE(M)CAPARD'!AF223","v":-0.9455913292955086},{"$f":"'[1]MONE(M)CAPARD'!AG223","v":-2.6061521431646235},{"$f":"'[1]MONE(M)CAPARD'!AH223","v":-0.38234972677595752},{"$f":"'[1]MONE(M)CAPARD'!AI223","v":-0.82319960390700753},{"$f":"'[1]MONE(M)CAPARD'!AJ223","v":-0.14991412475953575},{"$f":"'[1]MONE(M)CAPARD'!AK223","v":-0.83091882247993143},null,null,{"$f":"'[1]MONE(M)CAPARD'!AL223","v":4.0750000000000002},{"$f":"'[1]MONE(M)CAPARD'!AM223","v":4.46},{"$f":"'[1]MONE(M)CAPARD'!AN223","v":3.92},{"$f":"'[1]MONE(M)CAPARD'!AO223","v":4.01},{"$f":"'[1]MONE(M)CAPARD'!AP223","v":6.2},{"$f":"'[1]MONE(M)CAPARD'!AQ223","v":2.56},{"$f":"'[1]MONE(M)CAPARD'!AR223","v":4.58},null,null,{"$f":"'[1]MONE(M)CAPARD'!J223","v":5.5679131037339582},{"$f":"'[1]MONE(M)CAPARD'!K223","v":2.6672489639783192},{"$f":"'[1]MONE(M)CAPARD'!L223","v":4.755712440809301},{"$f":"'[1]MONE(M)CAPARD'!M223","v":7.3842622950819674},{"$f":"'[1]MONE(M)CAPARD'!N223","v":4.7329236675828037},{"$f":"'[1]MONE(M)CAPARD'!O223","v":6.9482563891179048},{"$f":"'[1]MONE(M)CAPARD'!P223","v":1.9382060910127283},null,null,{"$f":"'[1]MONE(M)CAPARD'!Q223","v":10.210000000000001},{"$f":"'[1]MONE(M)CAPARD'!R223","v":8.27},{"$f":"'[1]MONE(M)CAPARD'!S223","v":7.57},{"$f":"'[1]MONE(M)CAPARD'!T223","v":9.73},{"$f":"'[1]MONE(M)CAPARD'!U223","v":11.3},{"$f":"'[1]MONE(M)CAPARD'!V223","v":8.64},{"$f":"'[1]MONE(M)CAPARD'!W223","v":7.5002154543981856},null,null,{"$f":"'[1]MONE(M)CAPARD'!AS223","v":5.52},{"$f":"'[1]MONE(M)CAPARD'!AT223","v":"n.a."},{"$f":"'[1]MONE(M)CAPARD'!AU223","v":6},{"$f":"'[1]MONE(M)CAPARD'!AV223","v":6.75},{"$f":"'[1]MONE(M)CAPARD'!AW223","v":"n.a."},{"$f":"'[1]MONE(M)CAPARD'!AX223","v":7},{"$f":"'[1]MONE(M)CAPARD'!AY223","v":"n.a."},null,null,{"$f":"+'Datos_Regional (M)'!CF216","v":38.018408149057059},{"$f":"+'Datos_Regional (M)'!CG216","v":8.561781786937317},{"$f":"+'Datos_Regional (M)'!CH216","v":12.239782962650981},{"$f":"+'Datos_Regional (M)'!CI216","v":32.410606467544191},{"$f":"+'Datos_Regional (M)'!CJ216","v":30.522150238013456},{"$f":"+'Datos_Regional (M)'!CK216","v":21.35654644900271},{"$f":"+'Datos_Regional (M)'!CL216","v":14.977994436389652},null,null,764.85920802166675,330.22249999999991,564.58333333333337,203.64756627904345,191.50186369433834,586.69119999999987,793.65674999999999,2641.5056713283816,3435.1624213283831,null,null,1045.2035933408335,727.74249999999995,1103.9750000000001,577.3165859261361,343.80000000000013,1092.9416666666664,1166.6644004166667,4890.9793459336352,6057.6437463503025,null,null,-2249.4736746052545,-2622.4813250219208,null,null,{"$f":"'[1]EXT Comercio(M)'!C223","v":855.71888386000046},{"$f":"'[1]EXT Comercio(M)'!D223","v":349.05000000000018},{"$f":"'[1]EXT Comercio(M)'!E223","v":557.80000000000041},{"$f":"'[1]EXT Comercio(M)'!F223","v":192.06288495031004},{"$f":"'[1]EXT Comercio(M)'!G223","v":203.77984536249602},{"$f":"'[1]EXT Comercio(M)'!H223","v":587.5024999999996},{"$f":"'[1]EXT Comercio(M)'!I223","v":1091.328},{"$f":"'[1]EXT Comercio(M)'!K223","v":2745.9141141728032},{"$f":"'[1]EXT Comercio(M)'!L223","v":3837.2421141728082},null,null,{"$f":"'[1]EXT Comercio(M)'!AG223","v":1222.9790174999998},{"$f":"'[1]EXT Comercio(M)'!AH223","v":831.09999999999945},{"$f":"'[1]EXT Comercio(M)'!AI223","v":1273.9000000000001},{"$f":"'[1]EXT Comercio(M)'!AJ223","v":666.02170068195028},{"$f":"'[1]EXT Comercio(M)'!AK223","v":423.30000000000007},{"$f":"'[1]EXT Comercio(M)'!AL223","v":1221.9999999999991},{"$f":"'[1]EXT Comercio(M)'!AM223","v":1563.5625559999999},{"$f":"'[1]EXT Comercio(M)'!AO223","v":5639.3007181819485},{"$f":"'[1]EXT Comercio(M)'!AP223","v":7202.8632741819529},null,null,{"$f":"'[1]EXT Comercio(M)'!$BS223","v":-2893.3866040091416},{"$f":"'[1]EXT Comercio(M)'!$BT223","v":-3365.621160009141}]
[null,null,"Noviembre",{"$f":"'[1]REAL IPC(M)'!AD224","v":10.090655724292324},{"$f":"'[1]REAL IPC(M)'!AE224","v":6.2249443207127042},{"$f":"'[1]REAL IPC(M)'!AF224","v":9.1292319852456831},{"$f":"'[1]REAL IPC(M)'!AG224","v":9.5938787522071696},{"$f":"'[1]REAL IPC(M)'!AH224","v":17.337715694330317},{"$f":"'[1]REAL IPC(M)'!AI224","v":8.4455503512880767},{"$f":"'[1]REAL IPC(M)'!AJ224","v":6.4849624060150237},null,null,{"$f":"'[1]REAL IMAE(M)'!AG224","v":5.9127772219543955},{"$f":"'[1]REAL IMAE(M)'!AH224","v":2.5261733810545532},{"$f":"'[1]REAL IMAE(M)'!AI224","v":4.6614904714226517},{"$f":"'[1]REAL IMAE(M)'!AJ224","v":5.764832326089639},{"$f":"'[1]REAL IMAE(M)'!AK224","v":6.6679200108251377},{"$f":"'[1]REAL IMAE(M)'!AL224","v":"n.d."},{"$f":"'[1]REAL IMAE(M)'!AM224","v":9.8959284279715121},null,null,{"$f":"'[1]EXT ITCER(M)'!C224","v":94.616053146623202},{"$f":"'[1]EXT ITCER(M)'!D224","v":93.543668533111557},{"$f":"'[1]EXT ITCER(M)'!E224","v":72.007850415382435},{"$f":"'[1]EXT ITCER(M)'!F224","v":89.191621014073306},{"$f":"'[1]EXT ITCER(M)'!G224","v":99.457316145135209},{"$f":"'[1]EXT ITCER(M)'!H224","v":94.856680966878798},{"$f":"'[1]EXT ITCER(M)'!I224","v":104.8320682972041},null,null,{"$f":"'[1]EXT TC(M)'!J224","v":-0.6743560786589059},{"$f":"'[1]EXT TC(M)'!K224","v":0},{"$f":"'[1]EXT TC(M)'!L224","v":0.40455194543369533},{"$f":"'[1]EXT TC(M)'!M224","v":0},{"$f":"'[1]EXT TC(M)'!N224","v":4.8982167227560192},{"$f":"'[1]EXT TC(M)'!O224","v":-0.45025179534550963},{"$f":"'[1]EXT TC(M)'!P224","v":0},null,null,{"$f":"'[1]EXT RIN(M)'!C224","v":3798.9},{"$f":"'[1]EXT RIN(M)'!D224","v":2284.3000000000002},{"$f":"'[1]EXT RIN(M)'!E224","v":4301.8},{"$f":"'[1]EXT RIN(M)'!F224","v":2366.8284898989687},{"$f":"'[1]EXT RIN(M)'!G224","v":1042},{"$f":"'[1]EXT RIN(M)'!H224","v":2296.6999999999998},{"$f":"'[1]EXT RIN(M)'!I224","v":1784.0964512599999},null,null,{"$f":"'[1]EXT RIN(M)'!P224","v":60.098166460126166},{"$f":"'[1]EXT RIN(M)'!Q224","v":88.68843000940349},{"$f":"'[1]EXT RIN(M)'!R224","v":108.37753402131352},{"$f":"'[1]EXT RIN(M)'!S224","v":110.87934538333208},{"$f":"'[1]EXT RIN(M)'!T224","v":110.55186092174083},{"$f":"'[1]EXT RIN(M)'!U224","v":44.947834656126702},{"$f":"'[1]EXT RIN(M)'!V224","v":178.6015501537459},null,null,{"$f":"+'[1]MONE(M)CAPARD'!AE224","v":-2.8073733451388168},{"$f":"'[1]MONE(M)CAPARD'!AF224","v":-1.8027256525841373},{"$f":"'[1]MONE(M)CAPARD'!AG224","v":-3.8387807822308035},{"$f":"'[1]MONE(M)CAPARD'!AH224","v":-1.4817239527389807},{"$f":"'[1]MONE(M)CAPARD'!AI224","v":-3.771400514974895},{"$f":"'[1]MONE(M)CAPARD'!AJ224","v":-1.3606370630314673},{"$f":"'[1]MONE(M)CAPARD'!AK224","v":-1.7889496910856006},null,null,{"$f":"'[1]MONE(M)CAPARD'!AL224","v":3.9649999999999999},{"$f":"'[1]MONE(M)CAPARD'!AM224","v":4.3099999999999996},{"$f":"'[1]MONE(M)CAPARD'!AN224","v":3.67},{"$f":"'[1]MONE(M)CAPARD'!AO224","v":4.13},{"$f":"'[1]MONE(M)CAPARD'!AP224","v":6.94},{"$f":"'[1]MONE(M)CAPARD'!AQ224","v":2.52},{"$f":"'[1]MONE(M)CAPARD'!AR224","v":4.58},null,null,{"$f":"'[1]MONE(M)CAPARD'!J224","v":5.5402924395170183},{"$f":"'[1]MONE(M)CAPARD'!K224","v":1.3792011741272585},{"$f":"'[1]MONE(M)CAPARD'!L224","v":3.446160067600196},{"$f":"'[1]MONE(M)CAPARD'!M224","v":6.1646885069817525},{"$f":"'[1]MONE(M)CAPARD'!N224","v":1.020361778222185},{"$f":"'[1]MONE(M)CAPARD'!O224","v":6.126991496828162},{"$f":"'[1]MONE(M)CAPARD'!P224","v":0.94075450148656758},null,null,{"$f":"'[1]MONE(M)CAPARD'!Q224","v":10.32},{"$f":"'[1]MONE(M)CAPARD'!R224","v":7.69},{"$f":"'[1]MONE(M)CAPARD'!S224","v":7.53},{"$f":"'[1]MONE(M)CAPARD'!T224","v":9.81},{"$f":"'[1]MONE(M)CAPARD'!U224","v":11.4},{"$f":"'[1]MONE(M)CAPARD'!V224","v":7.96},{"$f":"'[1]MONE(M)CAPARD'!W224","v":7.4867244832558892},null,null,{"$f":"'[1]MONE(M)CAPARD'!AS224","v":5.52},{"$f":"'[1]MONE(M)CAPARD'!AT224","v":"n.a."},{"$f":"'[1]MONE(M)CAPARD'!AU224","v":6.25},{"$f":"'[1]MONE(M)CAPARD'!AV224","v":7},{"$f":"'[1]MONE(M)CAPARD'!AW224","v":"n.a."},{"$f":"'[1]MONE(M)CAPARD'!AX224","v":7},{"$f":"'[1]MONE(M)CAPARD'!AY224","v":"n.a."},null,null,{"$f":"+'Datos_Regional (M)'!CF217","v":36.685443095222148},{"$f":"+'Datos_Regional (M)'!CG217","v":8.3508424968524508},{"$f":"+'Datos_Regional (M)'!CH217","v":13.30830496851927},{"$f":"+'Datos_Regional (M)'!CI217","v":31.961848319293829},{"$f":"+'Datos_Regional (M)'!CJ217","v":31.999821293135099},{"$f":"+'Datos_Regional (M)'!CK217","v":29.586241076177778},{"$f":"+'Datos_Regional (M)'!CL217","v":15.398822307000891},null,null,771.72281219833314,330.65916666666658,568.22500000000014,205.51983036221691,193.50245955425467,585.25128333333305,804.41741666666655,2654.8805521148042,3459.2979687814727,null,null,1062.8402213533334,735.71833333333325,1114.675,591.83034734581599,358.05,1114.0499999999997,1190.8146709999999,4977.1639020324819,6167.9785730324811,null,null,-2322.2833499176772,-2708.6806042510111,null,null,{"$f":"'[1]EXT Comercio(M)'!C224","v":813.17907718999959},{"$f":"'[1]EXT Comercio(M)'!D224","v":314.1899999999996},{"$f":"'[1]EXT Comercio(M)'!E224","v":539.60000000000036},{"$f":"'[1]EXT Comercio(M)'!F224","v":205.56567530193252},{"$f":"'[1]EXT Comercio(M)'!G224","v":193.36235031899616},{"$f":"'[1]EXT Comercio(M)'!H224","v":569.73139999999967},{"$f":"'[1]EXT Comercio(M)'!I224","v":975.99499999999989},{"$f":"'[1]EXT Comercio(M)'!K224","v":2635.6285028109269},{"$f":"'[1]EXT Comercio(M)'!L224","v":3611.6235028109295},null,null,{"$f":"'[1]EXT Comercio(M)'!AG224","v":1314.2721490100012},{"$f":"'[1]EXT Comercio(M)'!AH224","v":791.58999999999924},{"$f":"'[1]EXT Comercio(M)'!AI224","v":1210.6000000000004},{"$f":"'[1]EXT Comercio(M)'!AJ224","v":703.37555576919931},{"$f":"'[1]EXT Comercio(M)'!AK224","v":489.9},{"$f":"'[1]EXT Comercio(M)'!AL224","v":1336.6000000000008},{"$f":"'[1]EXT Comercio(M)'!AM224","v":1248.1117340000001},{"$f":"'[1]EXT Comercio(M)'!AO224","v":5846.3377047791946},{"$f":"'[1]EXT Comercio(M)'!AP224","v":7094.4494387791929},null,null,{"$f":"'[1]EXT Comercio(M)'!$BS224","v":-3210.7092019682677},{"$f":"'[1]EXT Comercio(M)'!$BT224","v":-3482.8259359682706}]
[null,null,"Diciembre ",{"$f":"'[1]REAL IPC(M)'!AD225","v":10.805524297769391},{"$f":"'[1]REAL IPC(M)'!AE225","v":4.8570482393200036},{"$f":"'[1]REAL IPC(M)'!AF225","v":8.746260892183626},{"$f":"'[1]REAL IPC(M)'!AG225","v":8.8733216579100915},{"$f":"'[1]REAL IPC(M)'!AH225","v":16.870514505205698},{"$f":"'[1]REAL IPC(M)'!AI225","v":8.8775880857246747},{"$f":"'[1]REAL IPC(M)'!AJ225","v":6.3551401869158948},null,null,{"$f":"'[1]REAL IMAE(M)'!AG225","v":5.9809832388261768},{"$f":"'[1]REAL IMAE(M)'!AH225","v":4.6101128753676601},{"$f":"'[1]REAL IMAE(M)'!AI225","v":4.6247661177534347},{"$f":"'[1]REAL IMAE(M)'!AJ225","v":5.5896216924621385},{"$f":"'[1]REAL IMAE(M)'!AK225","v":7.3826597277734276},{"$f":"'[1]REAL IMAE(M)'!AL225","v":"n.d."},{"$f":"'[1]REAL IMAE(M)'!AM225","v":10.501510574018125},null,null,{"$f":"'[1]EXT ITCER(M)'!C225","v":90.492487710475729},{"$f":"'[1]EXT ITCER(M)'!D225","v":94.212149260610346},{"$f":"'[1]EXT ITCER(M)'!E225","v":71.400285326149998},{"$f":"'[1]EXT ITCER(M)'!F225","v":89.306212069938667},{"$f":"'[1]EXT ITCER(M)'!G225","v":98.804642715676437},{"$f":"'[1]EXT ITCER(M)'!H225","v":94.371348337157087},{"$f":"'[1]EXT ITCER(M)'!I225","v":104.6739404977573},null,null,{"$f":"'[1]EXT TC(M)'!J225","v":-3.7726067127003224},{"$f":"'[1]EXT TC(M)'!K225","v":0},{"$f":"'[1]EXT TC(M)'!L225","v":0.25634214583453679},{"$f":"'[1]EXT TC(M)'!M225","v":0},{"$f":"'[1]EXT TC(M)'!N225","v":4.7596276814607945},{"$f":"'[1]EXT TC(M)'!O225","v":1.3096331938970509},{"$f":"'[1]EXT TC(M)'!P225","v":0},null,null,{"$f":"'[1]EXT RIN(M)'!C225","v":4113.6000000000004},{"$f":"'[1]EXT RIN(M)'!D225","v":2196.1},{"$f":"'[1]EXT RIN(M)'!E225","v":4320.3},{"$f":"'[1]EXT RIN(M)'!F225","v":2514.3013647104272},{"$f":"'[1]EXT RIN(M)'!G225","v":1018.6},{"$f":"'[1]EXT RIN(M)'!H225","v":2394.9},{"$f":"'[1]EXT RIN(M)'!I225","v":2071.6448292949999},null,null,{"$f":"'[1]EXT RIN(M)'!P225","v":62.761004890056249},{"$f":"'[1]EXT RIN(M)'!Q225","v":84.362689264798803},{"$f":"'[1]EXT RIN(M)'!R225","v":104.48929136878658},{"$f":"'[1]EXT RIN(M)'!S225","v":109.25736672958514},{"$f":"'[1]EXT RIN(M)'!T225","v":102.81078639129224},{"$f":"'[1]EXT RIN(M)'!U225","v":46.002647914769852},{"$f":"'[1]EXT RIN(M)'!V225","v":205.64232963566442},null,null,{"$f":"+'[1]MONE(M)CAPARD'!AE225","v":-3.4344174822391951},{"$f":"'[1]MONE(M)CAPARD'!AF225","v":-0.46448784082534078},{"$f":"'[1]MONE(M)CAPARD'!AG225","v":-3.5277175147999644},{"$f":"'[1]MONE(M)CAPARD'!AH225","v":-0.73784986595173541},{"$f":"'[1]MONE(M)CAPARD'!AI225","v":-3.7832725992908696},{"$f":"'[1]MONE(M)CAPARD'!AJ225","v":-1.549986655101097},{"$f":"'[1]MONE(M)CAPARD'!AK225","v":-1.6690685413005335},null,null,{"$f":"'[1]MONE(M)CAPARD'!AL225","v":3.9450000000000003},{"$f":"'[1]MONE(M)CAPARD'!AM225","v":4.37},{"$f":"'[1]MONE(M)CAPARD'!AN225","v":3.63},{"$f":"'[1]MONE(M)CAPARD'!AO225","v":4.21},{"$f":"'[1]MONE(M)CAPARD'!AP225","v":6.58},{"$f":"'[1]MONE(M)CAPARD'!AQ225","v":3.09},{"$f":"'[1]MONE(M)CAPARD'!AR225","v":4.58},null,null,{"$f":"'[1]MONE(M)CAPARD'!J225","v":4.9225665749053391},{"$f":"'[1]MONE(M)CAPARD'!K225","v":2.6635803768817867},{"$f":"'[1]MONE(M)CAPARD'!L225","v":3.8104658255097901},{"$f":"'[1]MONE(M)CAPARD'!M225","v":6.9683538873994726},{"$f":"'[1]MONE(M)CAPARD'!N225","v":1.2005638488919501},{"$f":"'[1]MONE(M)CAPARD'!O225","v":5.935484086208036},{"$f":"'[1]MONE(M)CAPARD'!P225","v":1.0363330015964629},null,null,{"$f":"'[1]MONE(M)CAPARD'!Q225","v":10.1},{"$f":"'[1]MONE(M)CAPARD'!R225","v":7.65},{"$f":"'[1]MONE(M)CAPARD'!S225","v":7.5200000000000005},{"$f":"'[1]MONE(M)CAPARD'!T225","v":9.85},{"$f":"'[1]MONE(M)CAPARD'!U225","v":10.9},{"$f":"'[1]MONE(M)CAPARD'!V225","v":7.99},{"$f":"'[1]MONE(M)CAPARD'!W225","v":7.4573336035670863},null,null,{"$f":"'[1]MONE(M)CAPARD'!AS225","v":5.52},{"$f":"'[1]MONE(M)CAPARD'!AT225","v":"n.a."},{"$f":"'[1]MONE(M)CAPARD'!AU225","v":6.5},{"$f":"'[1]MONE(M)CAPARD'!AV225","v":7.5},{"$f":"'[1]MONE(M)CAPARD'!AW225","v":"n.a."},{"$f":"'[1]MONE(M)CAPARD'!AX225","v":7},{"$f":"'[1]MONE(M)CAPARD'!AY225","v":"n.a."},null,null,{"$f":"+'Datos_Regional (M)'!CF218","v":37.383995581672337},{"$f":"+'Datos_Regional (M)'!CG218","v":7.8059213377459358},{"$f":"+'Datos_Regional (M)'!CH218","v":13.004888400500914},{"$f":"+'Datos_Regional (M)'!CI218","v":32.422324099251384},{"$f":"+'Datos_Regional (M)'!CJ218","v":31.972200044493061},{"$f":"+'Datos_Regional (M)'!CK218","v":28.886715560482411},{"$f":"+'Datos_Regional (M)'!CL218","v":18.616500220957821},null,null,778.03571097583335,334.54583333333329,574.80833333333339,210.74938722034696,194.36391457778868,596.68333333333339,809.64208333333318,2689.1865127739688,3498.828596107302,null,null,1079.4224542308332,735.05083333333323,1131.3166666666666,602.02985110090015,363.62500000000006,1133.0833333333333,1208.6714899166666,5044.5281386650668,6253.1996285817331,null,null,-2355.3416258910975,-2754.3710324744311,null,null,{"$f":"'[1]EXT Comercio(M)'!C225","v":714.11253600000055},{"$f":"'[1]EXT Comercio(M)'!D225","v":329.04000000000042},{"$f":"'[1]EXT Comercio(M)'!E225","v":563.19999999999936},{"$f":"'[1]EXT Comercio(M)'!F225","v":203.79368605859872},{"$f":"'[1]EXT Comercio(M)'!G225","v":184.29146028240785},{"$f":"'[1]EXT Comercio(M)'!H225","v":654.35680000000229},{"$f":"'[1]EXT Comercio(M)'!I225","v":668.28499999999997},{"$f":"'[1]EXT Comercio(M)'!K225","v":2648.7944823410107},{"$f":"'[1]EXT Comercio(M)'!L225","v":3317.0794823410033},null,null,{"$f":"'[1]EXT Comercio(M)'!AG225","v":1104.6996995599984},{"$f":"'[1]EXT Comercio(M)'!AH225","v":662.68000000000029},{"$f":"'[1]EXT Comercio(M)'!AI225","v":1165.4999999999991},{"$f":"'[1]EXT Comercio(M)'!AJ225","v":645.33497629101657},{"$f":"'[1]EXT Comercio(M)'!AK225","v":385.89999999999986},{"$f":"'[1]EXT Comercio(M)'!AL225","v":1238.7999999999997},{"$f":"'[1]EXT Comercio(M)'!AM225","v":1189.0413080000001},{"$f":"'[1]EXT Comercio(M)'!AO225","v":5202.9146758510178},{"$f":"'[1]EXT Comercio(M)'!AP225","v":6391.9559838510177},null,null,{"$f":"'[1]EXT Comercio(M)'!$BS225","v":-2554.1201935100071},{"$f":"'[1]EXT Comercio(M)'!$BT225","v":-3074.8765015100071}]
[null,2008,"Enero",{"$f":"'[1]REAL IPC(M)'!AD226","v":10.562682399481172},{"$f":"'[1]REAL IPC(M)'!AE226","v":4.7468354430379858},{"$f":"'[1]REAL IPC(M)'!AF226","v":8.3884217957769032},{"$f":"'[1]REAL IPC(M)'!AG226","v":8.8747099767981332},{"$f":"'[1]REAL IPC(M)'!AH226","v":17.284569138276552},{"$f":"'[1]REAL IPC(M)'!AI226","v":9.0473962644402128},{"$f":"'[1]REAL IPC(M)'!AJ226","v":7.6492537313432738},null,null,{"$f":"'[1]REAL IMAE(M)'!AG226","v":5.9231839436664959},{"$f":"'[1]REAL IMAE(M)'!AH226","v":4.6327678621134076},{"$f":"'[1]REAL IMAE(M)'!AI226","v":4.758691718097003},{"$f":"'[1]REAL IMAE(M)'!AJ226","v":5.5406403703773588},{"$f":"'[1]REAL IMAE(M)'!AK226","v":7.7933558814409469},{"$f":"'[1]REAL IMAE(M)'!AL226","v":7.547252201651343},{"$f":"'[1]REAL IMAE(M)'!AM226","v":12.273520736772417},null,null,{"$f":"'[1]EXT ITCER(M)'!C226","v":89.937029969598598},{"$f":"'[1]EXT ITCER(M)'!D226","v":93.552102324341519},{"$f":"'[1]EXT ITCER(M)'!E226","v":71.698609611864981},{"$f":"'[1]EXT ITCER(M)'!F226","v":89.018109583712274},{"$f":"'[1]EXT ITCER(M)'!G226","v":98.257804136591517},{"$f":"'[1]EXT ITCER(M)'!H226","v":94.340186750071695},{"$f":"'[1]EXT ITCER(M)'!I226","v":103.5785366338193},null,null,{"$f":"'[1]EXT TC(M)'!J226","v":-4.1739397814222139},{"$f":"'[1]EXT TC(M)'!K226","v":0},{"$f":"'[1]EXT TC(M)'!L226","v":0.33733100386910347},{"$f":"'[1]EXT TC(M)'!M226","v":-2.5925925925921897E-2},{"$f":"'[1]EXT TC(M)'!N226","v":4.6671489467424001},{"$f":"'[1]EXT TC(M)'!O226","v":0.16557273924963459},{"$f":"'[1]EXT TC(M)'!P226","v":0},null,null,{"$f":"'[1]EXT RIN(M)'!C226","v":4397.3},{"$f":"'[1]EXT RIN(M)'!D226","v":2221.1999999999998},{"$f":"'[1]EXT RIN(M)'!E226","v":4319.6000000000004},{"$f":"'[1]EXT RIN(M)'!F226","v":2426.456912816021},{"$f":"'[1]EXT RIN(M)'!G226","v":985.7},{"$f":"'[1]EXT RIN(M)'!H226","v":2328.4},{"$f":"'[1]EXT RIN(M)'!I226","v":2103.9093223349996},null,null,{"$f":"'[1]EXT RIN(M)'!P226","v":63.238524256471329},{"$f":"'[1]EXT RIN(M)'!Q226","v":87.258533457943471},{"$f":"'[1]EXT RIN(M)'!R226","v":106.68222235657143},{"$f":"'[1]EXT RIN(M)'!S226","v":112.49310045941637},{"$f":"'[1]EXT RIN(M)'!T226","v":101.03547654863246},{"$f":"'[1]EXT RIN(M)'!U226","v":45.830523410385403},{"$f":"'[1]EXT RIN(M)'!V226","v":197.01581925100388},null,null,{"$f":"+'[1]MONE(M)CAPARD'!AE226","v":-2.9962029932594305},{"$f":"'[1]MONE(M)CAPARD'!AF226","v":-0.59842900302115853},{"$f":"'[1]MONE(M)CAPARD'!AG226","v":-3.181540738986258},{"$f":"'[1]MONE(M)CAPARD'!AH226","v":-0.63808204581778494},{"$f":"'[1]MONE(M)CAPARD'!AI226","v":-4.0558765237270702},{"$f":"'[1]MONE(M)CAPARD'!AJ226","v":-1.7949958747236128},{"$f":"'[1]MONE(M)CAPARD'!AK226","v":-3.3992374350086569},null,null,{"$f":"'[1]MONE(M)CAPARD'!AL226","v":3.855},{"$f":"'[1]MONE(M)CAPARD'!AM226","v":4.12},{"$f":"'[1]MONE(M)CAPARD'!AN226","v":3.57},{"$f":"'[1]MONE(M)CAPARD'!AO226","v":4.3},{"$f":"'[1]MONE(M)CAPARD'!AP226","v":6.88},{"$f":"'[1]MONE(M)CAPARD'!AQ226","v":2.67},{"$f":"'[1]MONE(M)CAPARD'!AR226","v":3.99},null,null,{"$f":"'[1]MONE(M)CAPARD'!J226","v":5.237100264436962},{"$f":"'[1]MONE(M)CAPARD'!K226","v":2.7334138972809563},{"$f":"'[1]MONE(M)CAPARD'!L226","v":4.0147998578872617},{"$f":"'[1]MONE(M)CAPARD'!M226","v":6.9118806606286718},{"$f":"'[1]MONE(M)CAPARD'!N226","v":2.6283527092492625},{"$f":"'[1]MONE(M)CAPARD'!O226","v":5.7796920893699806},{"$f":"'[1]MONE(M)CAPARD'!P226","v":-0.35422843010624872},null,null,{"$f":"'[1]MONE(M)CAPARD'!Q226","v":9.8310484430300811},{"$f":"'[1]MONE(M)CAPARD'!R226","v":7.61},{"$f":"'[1]MONE(M)CAPARD'!S226","v":7.4499999999999993},{"$f":"'[1]MONE(M)CAPARD'!T226","v":9.77},{"$f":"'[1]MONE(M)CAPARD'!U226","v":11.2},{"$f":"'[1]MONE(M)CAPARD'!V226","v":8.5500000000000007},{"$f":"'[1]MONE(M)CAPARD'!W226","v":7.2679294698296442},null,null,{"$f":"'[1]MONE(M)CAPARD'!AS226","v":5.99},{"$f":"'[1]MONE(M)CAPARD'!AT226","v":"n.a."},{"$f":"'[1]MONE(M)CAPARD'!AU226","v":6.5},{"$f":"'[1]MONE(M)CAPARD'!AV226","v":7.5},{"$f":"'[1]MONE(M)CAPARD'!AW226","v":"n.a."},{"$f":"'[1]MONE(M)CAPARD'!AX226","v":7},{"$f":"'[1]MONE(M)CAPARD'!AY226","v":"n.a."},null,null,{"$f":"+'Datos_Regional (M)'!CF219","v":39.171033006855495},{"$f":"+'Datos_Regional (M)'!CG219","v":8.1961879990541053},{"$f":"+'Datos_Regional (M)'!CH219","v":12.106578238569554},{"$f":"+'Datos_Regional (M)'!CI219","v":31.006310498154164},{"$f":"+'Datos_Regional (M)'!CJ219","v":30.773474301659554},{"$f":"+'Datos_Regional (M)'!CK219","v":29.125838582409958},{"$f":"+'Datos_Regional (M)'!CL219","v":18.228357774085158},null,null,780.13154925499987,336.33416666666659,578.93333333333339,212.3194966754545,197.84515160647152,600.14192500000001,817.44883358333334,2705.7056225369265,3523.1544561202591,null,null,1098.2299104000001,746.9649999999998,1135.8083333333332,617.40508347639025,371.67500000000013,1160.8083333333332,1231.9023992499999,5130.8916605430559,6362.7940597930565,null,null,-2425.1860380061303,-2839.639603672797,null,null,{"$f":"'[1]EXT Comercio(M)'!C226","v":722.48354146999998},{"$f":"'[1]EXT Comercio(M)'!D226","v":332.76},{"$f":"'[1]EXT Comercio(M)'!E226","v":593.6},{"$f":"'[1]EXT Comercio(M)'!F226","v":215.12963907},{"$f":"'[1]EXT Comercio(M)'!G226","v":219.13403823909101},{"$f":"'[1]EXT Comercio(M)'!H226","v":515.15440000000001},{"$f":"'[1]EXT Comercio(M)'!I226","v":764.04900300000008},{"$f":"'[1]EXT Comercio(M)'!K226","v":2598.2616187790904},{"$f":"'[1]EXT Comercio(M)'!L226","v":3362.3106217790914},null,null,{"$f":"'[1]EXT Comercio(M)'!AG226","v":1283.19183266},{"$f":"'[1]EXT Comercio(M)'!AH226","v":793.79},{"$f":"'[1]EXT Comercio(M)'!AI226","v":1147.0999999999999},{"$f":"'[1]EXT Comercio(M)'!AJ226","v":654.41248124000003},{"$f":"'[1]EXT Comercio(M)'!AK226","v":400.29999999999995},{"$f":"'[1]EXT Comercio(M)'!AL226","v":1232},{"$f":"'[1]EXT Comercio(M)'!AM226","v":1366.3668700000003},{"$f":"'[1]EXT Comercio(M)'!AO226","v":5510.7943138999999},{"$f":"'[1]EXT Comercio(M)'!AP226","v":6877.1611838999997},null,null,{"$f":"'[1]EXT Comercio(M)'!$BS226","v":-2912.532695120909},{"$f":"'[1]EXT Comercio(M)'!$BT226","v":-3514.8505621209092}]
[null,null,"Febrero",{"$f":"'[1]REAL IPC(M)'!AD227","v":11.399219030141698},{"$f":"'[1]REAL IPC(M)'!AE227","v":5.8180227471566131},{"$f":"'[1]REAL IPC(M)'!AF227","v":8.762392069075803},{"$f":"'[1]REAL IPC(M)'!AG227","v":9.0350200815664881},{"$f":"'[1]REAL IPC(M)'!AH227","v":18.350168350168349},{"$f":"'[1]REAL IPC(M)'!AI227","v":8.6789609644087449},{"$f":"'[1]REAL IPC(M)'!AJ227","v":8.3720930232558288},null,null,{"$f":"'[1]REAL IMAE(M)'!AG227","v":5.7898019399258303},{"$f":"'[1]REAL IMAE(M)'!AH227","v":4.8289846622996944},{"$f":"'[1]REAL IMAE(M)'!AI227","v":4.909420469250585},{"$f":"'[1]REAL IMAE(M)'!AJ227","v":6.2109649680911092},{"$f":"'[1]REAL IMAE(M)'!AK227","v":7.7544257263089982},{"$f":"'[1]REAL IMAE(M)'!AL227","v":7.4944999713069116},{"$f":"'[1]REAL IMAE(M)'!AM227","v":12.497015994270708},null,null,{"$f":"'[1]EXT ITCER(M)'!C227","v":88.964181619599216},{"$f":"'[1]EXT ITCER(M)'!D227","v":93.032023023816379},{"$f":"'[1]EXT ITCER(M)'!E227","v":71.549309941294865},{"$f":"'[1]EXT ITCER(M)'!F227","v":88.292556198253521},{"$f":"'[1]EXT ITCER(M)'!G227","v":96.940663017552183},{"$f":"'[1]EXT ITCER(M)'!H227","v":94.816408128235707},{"$f":"'[1]EXT ITCER(M)'!I227","v":102.84861221513781},null,null,{"$f":"'[1]EXT TC(M)'!J227","v":-4.5784602562767178},{"$f":"'[1]EXT TC(M)'!K227","v":0},{"$f":"'[1]EXT TC(M)'!L227","v":0.35832102230599738},{"$f":"'[1]EXT TC(M)'!M227","v":-2.5925925925884302E-2},{"$f":"'[1]EXT TC(M)'!N227","v":4.6706066414789085},{"$f":"'[1]EXT TC(M)'!O227","v":1.4165902319419212},{"$f":"'[1]EXT TC(M)'!P227","v":0},null,null,{"$f":"'[1]EXT RIN(M)'!C227","v":4554.7},{"$f":"'[1]EXT RIN(M)'!D227","v":2277.1999999999998},{"$f":"'[1]EXT RIN(M)'!E227","v":4348.3999999999996},{"$f":"'[1]EXT RIN(M)'!F227","v":2497.9126125206399},{"$f":"'[1]EXT RIN(M)'!G227","v":950.5},{"$f":"'[1]EXT RIN(M)'!H227","v":2216.9},{"$f":"'[1]EXT RIN(M)'!I227","v":2109.3915369452502},null,null,{"$f":"'[1]EXT RIN(M)'!P227","v":64.162679642461356},{"$f":"'[1]EXT RIN(M)'!Q227","v":89.2565974312663},{"$f":"'[1]EXT RIN(M)'!R227","v":109.76070940953262},{"$f":"'[1]EXT RIN(M)'!S227","v":110.70596808519497},{"$f":"'[1]EXT RIN(M)'!T227","v":94.632141842086185},{"$f":"'[1]EXT RIN(M)'!U227","v":43.621750791868493},{"$f":"'[1]EXT RIN(M)'!V227","v":207.57218016126052},null,null,{"$f":"+'[1]MONE(M)CAPARD'!AE227","v":-5.2955658769434679},{"$f":"'[1]MONE(M)CAPARD'!AF227","v":-1.9826705250103418},{"$f":"'[1]MONE(M)CAPARD'!AG227","v":-3.5144428109379691},{"$f":"'[1]MONE(M)CAPARD'!AH227","v":-0.61908557549814935},{"$f":"'[1]MONE(M)CAPARD'!AI227","v":-4.5716739227645684},{"$f":"'[1]MONE(M)CAPARD'!AJ227","v":-1.4068601234690343},{"$f":"'[1]MONE(M)CAPARD'!AK227","v":-4.0158798283261934},null,null,{"$f":"'[1]MONE(M)CAPARD'!AL227","v":3.36},{"$f":"'[1]MONE(M)CAPARD'!AM227","v":3.72},{"$f":"'[1]MONE(M)CAPARD'!AN227","v":3.54},{"$f":"'[1]MONE(M)CAPARD'!AO227","v":4.34},{"$f":"'[1]MONE(M)CAPARD'!AP227","v":6.71},{"$f":"'[1]MONE(M)CAPARD'!AQ227","v":2.31},{"$f":"'[1]MONE(M)CAPARD'!AR227","v":4.0199999999999996},null,null,{"$f":"'[1]MONE(M)CAPARD'!J227","v":2.8642532939357941},{"$f":"'[1]MONE(M)CAPARD'!K227","v":1.7690533278214069},{"$f":"'[1]MONE(M)CAPARD'!L227","v":3.6939311967068393},{"$f":"'[1]MONE(M)CAPARD'!M227","v":7.0023189913864075},{"$f":"'[1]MONE(M)CAPARD'!N227","v":-6.1159900578281322E-2},{"$f":"'[1]MONE(M)CAPARD'!O227","v":6.3039239378032885},{"$f":"'[1]MONE(M)CAPARD'!P227","v":-1.1120939285162508},null,null,{"$f":"'[1]MONE(M)CAPARD'!Q227","v":9.3830141843115911},{"$f":"'[1]MONE(M)CAPARD'!R227","v":7.69},{"$f":"'[1]MONE(M)CAPARD'!S227","v":7.48},{"$f":"'[1]MONE(M)CAPARD'!T227","v":9.7799999999999994},{"$f":"'[1]MONE(M)CAPARD'!U227","v":10.58},{"$f":"'[1]MONE(M)CAPARD'!V227","v":7.75},{"$f":"'[1]MONE(M)CAPARD'!W227","v":7.1668935565382172},null,null,{"$f":"'[1]MONE(M)CAPARD'!AS227","v":5.99},{"$f":"'[1]MONE(M)CAPARD'!AT227","v":"n.a."},{"$f":"'[1]MONE(M)CAPARD'!AU227","v":6.5},{"$f":"'[1]MONE(M)CAPARD'!AV227","v":7.75},{"$f":"'[1]MONE(M)CAPARD'!AW227","v":"n.a."},{"$f":"'[1]MONE(M)CAPARD'!AX227","v":8},{"$f":"'[1]MONE(M)CAPARD'!AY227","v":"n.a."},null,null,{"$f":"+'Datos_Regional (M)'!CF220","v":39.95423744097446},{"$f":"+'Datos_Regional (M)'!CG220","v":9.157166994826337},{"$f":"+'Datos_Regional (M)'!CH220","v":11.606532767833833},{"$f":"+'Datos_Regional (M)'!CI220","v":30.478026780464894},{"$f":"+'Datos_Regional (M)'!CJ220","v":32.151438223893635},{"$f":"+'Datos_Regional (M)'!CK220","v":29.413301621695442},{"$f":"+'Datos_Regional (M)'!CL220","v":18.784687923443787},null,null,792.71631719583331,343.38583333333327,585.57500000000005,218.26491378173421,202.15107974043224,596.76431666666679,825.05607558333338,2738.8574607179999,3563.9135363013334,null,null,1123.0927071266665,761.61,1154.4833333333333,630.06561745862655,379.81666666666678,1184.0333333333331,1261.1831490833333,5233.1016579186262,6494.28480700196,null,null,-2494.2441972006263,-2930.3712707006266,null,null,{"$f":"'[1]EXT Comercio(M)'!C227","v":848.24618898999995},{"$f":"'[1]EXT Comercio(M)'!D227","v":388.30999999999995},{"$f":"'[1]EXT Comercio(M)'!E227","v":642.30000000000007},{"$f":"'[1]EXT Comercio(M)'!F227","v":261.82951918999998},{"$f":"'[1]EXT Comercio(M)'!G227","v":230.33083175339399},{"$f":"'[1]EXT Comercio(M)'!H227","v":529.59250000000009},{"$f":"'[1]EXT Comercio(M)'!I227","v":794.69590400000004},{"$f":"'[1]EXT Comercio(M)'!K227","v":2900.6090399333948},{"$f":"'[1]EXT Comercio(M)'!L227","v":3695.304943933394},null,null,{"$f":"'[1]EXT Comercio(M)'!AG227","v":1246.0455512699998},{"$f":"'[1]EXT Comercio(M)'!AH227","v":797.31999999999994},{"$f":"'[1]EXT Comercio(M)'!AI227","v":1176.2000000000003},{"$f":"'[1]EXT Comercio(M)'!AJ227","v":665.55344933000015},{"$f":"'[1]EXT Comercio(M)'!AK227","v":390.4},{"$f":"'[1]EXT Comercio(M)'!AL227","v":1232.1000000000001},{"$f":"'[1]EXT Comercio(M)'!AM227","v":1270.3392539999998},{"$f":"'[1]EXT Comercio(M)'!AO227","v":5507.6190006000015},{"$f":"'[1]EXT Comercio(M)'!AP227","v":6777.958254600002},null,null,{"$f":"'[1]EXT Comercio(M)'!$BS227","v":-2607.0099606666054},{"$f":"'[1]EXT Comercio(M)'!$BT227","v":-3082.6533106666052}]
[null,null,"Marzo",{"$f":"'[1]REAL IPC(M)'!AD228","v":11.035531672346533},{"$f":"'[1]REAL IPC(M)'!AE228","v":5.9891304347826138},{"$f":"'[1]REAL IPC(M)'!AF228","v":9.0995561192137124},{"$f":"'[1]REAL IPC(M)'!AG228","v":9.2465753424657642},{"$f":"'[1]REAL IPC(M)'!AH228","v":18.910978356674178},{"$f":"'[1]REAL IPC(M)'!AI228","v":9.6717926811903645},{"$f":"'[1]REAL IPC(M)'!AJ228","v":8.7638376383763994},null,null,{"$f":"'[1]REAL IMAE(M)'!AG228","v":5.4796059433906326},{"$f":"'[1]REAL IMAE(M)'!AH228","v":6.1672096863621828},{"$f":"'[1]REAL IMAE(M)'!AI228","v":4.9496031722633438},{"$f":"'[1]REAL IMAE(M)'!AJ228","v":6.0270531603962345},{"$f":"'[1]REAL IMAE(M)'!AK228","v":7.1560752391566425},{"$f":"'[1]REAL IMAE(M)'!AL228","v":7.3112167587357124},{"$f":"'[1]REAL IMAE(M)'!AM228","v":12.398698609878721},null,null,{"$f":"'[1]EXT ITCER(M)'!C228","v":88.725189534370543},{"$f":"'[1]EXT ITCER(M)'!D228","v":92.646776348404956},{"$f":"'[1]EXT ITCER(M)'!E228","v":70.190409733054153},{"$f":"'[1]EXT ITCER(M)'!F228","v":87.830286747124859},{"$f":"'[1]EXT ITCER(M)'!G228","v":96.101296031855128},{"$f":"'[1]EXT ITCER(M)'!H228","v":93.783907562706801},{"$f":"'[1]EXT ITCER(M)'!I228","v":101.99096491265981},null,null,{"$f":"'[1]EXT TC(M)'!J228","v":-4.7505708485627549},{"$f":"'[1]EXT TC(M)'!K228","v":0},{"$f":"'[1]EXT TC(M)'!L228","v":-0.71391395974146266},{"$f":"'[1]EXT TC(M)'!M228","v":-1.5873015873016476E-2},{"$f":"'[1]EXT TC(M)'!N228","v":4.7791748746514084},{"$f":"'[1]EXT TC(M)'!O228","v":3.4326177980134931},{"$f":"'[1]EXT TC(M)'!P228","v":0},null,null,{"$f":"'[1]EXT RIN(M)'!C228","v":4890.5902181000001},{"$f":"'[1]EXT RIN(M)'!D228","v":2271.6999999999998},{"$f":"'[1]EXT RIN(M)'!E228","v":4338.3999999999996},{"$f":"'[1]EXT RIN(M)'!F228","v":2520.6142551523426},{"$f":"'[1]EXT RIN(M)'!G228","v":984.3},{"$f":"'[1]EXT RIN(M)'!H228","v":2245.1999999999998},{"$f":"'[1]EXT RIN(M)'!I228","v":2011.2491596709999},null,null,{"$f":"'[1]EXT RIN(M)'!P228","v":65.066332191708469},{"$f":"'[1]EXT RIN(M)'!Q228","v":89.116259510062605},{"$f":"'[1]EXT RIN(M)'!R228","v":106.82465662529704},{"$f":"'[1]EXT RIN(M)'!S228","v":108.77338660927651},{"$f":"'[1]EXT RIN(M)'!T228","v":97.840598294166227},{"$f":"'[1]EXT RIN(M)'!U228","v":43.823893178006188},{"$f":"'[1]EXT RIN(M)'!V228","v":194.73209627253433},null,null,{"$f":"+'[1]MONE(M)CAPARD'!AE228","v":-5.210522780598728},{"$f":"'[1]MONE(M)CAPARD'!AF228","v":-2.263562711516772},{"$f":"'[1]MONE(M)CAPARD'!AG228","v":-3.7851264167393337},{"$f":"'[1]MONE(M)CAPARD'!AH228","v":-0.69253918495298772},{"$f":"'[1]MONE(M)CAPARD'!AI228","v":-4.7734230666346384},{"$f":"'[1]MONE(M)CAPARD'!AJ228","v":-2.2264546074199005},{"$f":"'[1]MONE(M)CAPARD'!AK228","v":-4.453536895674314},null,null,{"$f":"'[1]MONE(M)CAPARD'!AL228","v":3.3149999999999999},{"$f":"'[1]MONE(M)CAPARD'!AM228","v":3.59},{"$f":"'[1]MONE(M)CAPARD'!AN228","v":3.52},{"$f":"'[1]MONE(M)CAPARD'!AO228","v":4.38},{"$f":"'[1]MONE(M)CAPARD'!AP228","v":6.7},{"$f":"'[1]MONE(M)CAPARD'!AQ228","v":1.97},{"$f":"'[1]MONE(M)CAPARD'!AR228","v":3.92},null,null,{"$f":"'[1]MONE(M)CAPARD'!J228","v":2.7959233237288466},{"$f":"'[1]MONE(M)CAPARD'!K228","v":1.4726694697979643},{"$f":"'[1]MONE(M)CAPARD'!L228","v":3.6576169718105054},{"$f":"'[1]MONE(M)CAPARD'!M228","v":6.8683385579937202},{"$f":"'[1]MONE(M)CAPARD'!N228","v":-0.65842247184592506},{"$f":"'[1]MONE(M)CAPARD'!O228","v":5.1136278360219505},{"$f":"'[1]MONE(M)CAPARD'!P228","v":-1.5602585340069717},null,null,{"$f":"'[1]MONE(M)CAPARD'!Q228","v":9.34},{"$f":"'[1]MONE(M)CAPARD'!R228","v":7.55},{"$f":"'[1]MONE(M)CAPARD'!S228","v":7.5399999999999991},{"$f":"'[1]MONE(M)CAPARD'!T228","v":9.74},{"$f":"'[1]MONE(M)CAPARD'!U228","v":10.119999999999999},{"$f":"'[1]MONE(M)CAPARD'!V228","v":7.62},{"$f":"'[1]MONE(M)CAPARD'!W228","v":7.0668405797101448},null,null,{"$f":"'[1]MONE(M)CAPARD'!AS228","v":5.99},{"$f":"'[1]MONE(M)CAPARD'!AT228","v":"n.a."},{"$f":"'[1]MONE(M)CAPARD'!AU228","v":6.75},{"$f":"'[1]MONE(M)CAPARD'!AV228","v":7.75},{"$f":"'[1]MONE(M)CAPARD'!AW228","v":"n.a."},{"$f":"'[1]MONE(M)CAPARD'!AX228","v":9},{"$f":"'[1]MONE(M)CAPARD'!AY228","v":"n.a."},null,null,{"$f":"+'Datos_Regional (M)'!CF221","v":40.711522786235534},{"$f":"+'Datos_Regional (M)'!CG221","v":8.6943036641364824},{"$f":"+'Datos_Regional (M)'!CH221","v":11.813534750254595},{"$f":"+'Datos_Regional (M)'!CI221","v":28.717908361377063},{"$f":"+'Datos_Regional (M)'!CJ221","v":31.318681356908495},{"$f":"+'Datos_Regional (M)'!CK221","v":30.917264622434693},{"$f":"+'Datos_Regional (M)'!CL221","v":18.305666513210173},null,null,791.03026995916673,342.565,588.72500000000002,222.65278168715494,204.96910281531348,592.56044166666675,825.06483724999987,2742.5025961283022,3567.5674333783013,null,null,1129.9465517716665,762.41166666666652,1158.5249999999999,637.8106179007932,388.25833333333338,1196.95,1254.7671233333335,5273.9021696724594,6528.6692930057934,null,null,-2531.3995735441576,-2961.1018596274912,null,null,{"$f":"'[1]EXT Comercio(M)'!C228","v":837.07030228000008},{"$f":"'[1]EXT Comercio(M)'!D228","v":356.1400000000001},{"$f":"'[1]EXT Comercio(M)'!E228","v":642.5999999999998},{"$f":"'[1]EXT Comercio(M)'!F228","v":281.79157613999996},{"$f":"'[1]EXT Comercio(M)'!G228","v":252.48820498107497},{"$f":"'[1]EXT Comercio(M)'!H228","v":626.64570000000003},{"$f":"'[1]EXT Comercio(M)'!I228","v":907.22113999999999},{"$f":"'[1]EXT Comercio(M)'!K228","v":2996.7357834010745},{"$f":"'[1]EXT Comercio(M)'!L228","v":3903.956923401076},null,null,{"$f":"'[1]EXT Comercio(M)'!AG228","v":1081.0915140900001},{"$f":"'[1]EXT Comercio(M)'!AH228","v":749.68000000000006},{"$f":"'[1]EXT Comercio(M)'!AI228","v":1167.1999999999998},{"$f":"'[1]EXT Comercio(M)'!AJ228","v":683.0555211599999},{"$f":"'[1]EXT Comercio(M)'!AK228","v":423.2},{"$f":"'[1]EXT Comercio(M)'!AL228","v":1330.5000000000002},{"$f":"'[1]EXT Comercio(M)'!AM228","v":1156.8111400000009},{"$f":"'[1]EXT Comercio(M)'!AO228","v":5434.7270352499982},{"$f":"'[1]EXT Comercio(M)'!AP228","v":6591.5381752499998},null,null,{"$f":"'[1]EXT Comercio(M)'!$BS228","v":-2437.9912518489264},{"$f":"'[1]EXT Comercio(M)'!$BT228","v":-2687.5812518489274}]
[null,null,"Abril",{"$f":"'[1]REAL IPC(M)'!AD229","v":10.946228468348087},{"$f":"'[1]REAL IPC(M)'!AE229","v":6.7883132399261426},{"$f":"'[1]REAL IPC(M)'!AF229","v":10.368823938761327},{"$f":"'[1]REAL IPC(M)'!AG229","v":9.7048808172531356},{"$f":"'[1]REAL IPC(M)'!AH229","v":19.352336629823537},{"$f":"'[1]REAL IPC(M)'!AI229","v":10.833333333333304},{"$f":"'[1]REAL IPC(M)'!AJ229","v":8.5242896425298049},null,null,{"$f":"'[1]REAL IMAE(M)'!AG229","v":4.9192960933811332},{"$f":"'[1]REAL IMAE(M)'!AH229","v":6.0353898812824376},{"$f":"'[1]REAL IMAE(M)'!AI229","v":4.8271121810254467},{"$f":"'[1]REAL IMAE(M)'!AJ229","v":6.985990345802243},{"$f":"'[1]REAL IMAE(M)'!AK229","v":6.307841309779219},{"$f":"'[1]REAL IMAE(M)'!AL229","v":6.8027953852873333},{"$f":"'[1]REAL IMAE(M)'!AM229","v":12.153918348193336},null,null,{"$f":"'[1]EXT ITCER(M)'!C229","v":87.992938752830568},{"$f":"'[1]EXT ITCER(M)'!D229","v":92.096168126086539},{"$f":"'[1]EXT ITCER(M)'!E229","v":68.483653737416063},{"$f":"'[1]EXT ITCER(M)'!F229","v":87.198697449767977},{"$f":"'[1]EXT ITCER(M)'!G229","v":95.313657764372607},{"$f":"'[1]EXT ITCER(M)'!H229","v":92.563216532332703},{"$f":"'[1]EXT ITCER(M)'!I229","v":101.7953089620904},null,null,{"$f":"'[1]EXT TC(M)'!J229","v":-4.9265192536198068},{"$f":"'[1]EXT TC(M)'!K229","v":0},{"$f":"'[1]EXT TC(M)'!L229","v":-1.5963620869363464},{"$f":"'[1]EXT TC(M)'!M229","v":1.904761904763105E-2},{"$f":"'[1]EXT TC(M)'!N229","v":4.9721947339884585},{"$f":"'[1]EXT TC(M)'!O229","v":5.5780514519937539},{"$f":"'[1]EXT TC(M)'!P229","v":0},null,null,{"$f":"'[1]EXT RIN(M)'!C229","v":4936.5400497700002},{"$f":"'[1]EXT RIN(M)'!D229","v":2312.3000000000002},{"$f":"'[1]EXT RIN(M)'!E229","v":4468.7},{"$f":"'[1]EXT RIN(M)'!F229","v":2593.063537103832},{"$f":"'[1]EXT RIN(M)'!G229","v":1030.5999999999999},{"$f":"'[1]EXT RIN(M)'!H229","v":2183.9},{"$f":"'[1]EXT RIN(M)'!I229","v":1957.96682021162},null,null,{"$f":"'[1]EXT RIN(M)'!P229","v":66.104659310164109},{"$f":"'[1]EXT RIN(M)'!Q229","v":90.068578791601652},{"$f":"'[1]EXT RIN(M)'!R229","v":110.87539005328935},{"$f":"'[1]EXT RIN(M)'!S229","v":109.3449405463862},{"$f":"'[1]EXT RIN(M)'!T229","v":100.9271208100288},{"$f":"'[1]EXT RIN(M)'!U229","v":44.730661731393361},{"$f":"'[1]EXT RIN(M)'!V229","v":190.52183488807387},null,null,{"$f":"+'[1]MONE(M)CAPARD'!AE229","v":-6.0355620563149266},{"$f":"'[1]MONE(M)CAPARD'!AF229","v":-2.8826312042310818},{"$f":"'[1]MONE(M)CAPARD'!AG229","v":-4.8734993694829924},{"$f":"'[1]MONE(M)CAPARD'!AH229","v":-0.93421624418004401},{"$f":"'[1]MONE(M)CAPARD'!AI229","v":-5.4785009944851462},{"$f":"'[1]MONE(M)CAPARD'!AJ229","v":-2.8451127819548616},{"$f":"'[1]MONE(M)CAPARD'!AK229","v":-4.5282854729729873},null,null,{"$f":"'[1]MONE(M)CAPARD'!AL229","v":3.2549999999999999},{"$f":"'[1]MONE(M)CAPARD'!AM229","v":3.71},{"$f":"'[1]MONE(M)CAPARD'!AN229","v":3.52},{"$f":"'[1]MONE(M)CAPARD'!AO229","v":4.38},{"$f":"'[1]MONE(M)CAPARD'!AP229","v":6.69},{"$f":"'[1]MONE(M)CAPARD'!AQ229","v":1.96},{"$f":"'[1]MONE(M)CAPARD'!AR229","v":3.61},null,null,{"$f":"'[1]MONE(M)CAPARD'!J229","v":3.0859737901128219},{"$f":"'[1]MONE(M)CAPARD'!K229","v":0.47915988608624938},{"$f":"'[1]MONE(M)CAPARD'!L229","v":2.5923770491803104},{"$f":"'[1]MONE(M)CAPARD'!M229","v":6.5950750129332514},{"$f":"'[1]MONE(M)CAPARD'!N229","v":-0.8610461719397603},{"$f":"'[1]MONE(M)CAPARD'!O229","v":4.7338345864661919},{"$f":"'[1]MONE(M)CAPARD'!P229","v":-1.2433600239723159},null,null,{"$f":"'[1]MONE(M)CAPARD'!Q229","v":9.36},{"$f":"'[1]MONE(M)CAPARD'!R229","v":7.3},{"$f":"'[1]MONE(M)CAPARD'!S229","v":7.4899999999999993},{"$f":"'[1]MONE(M)CAPARD'!T229","v":9.6999999999999993},{"$f":"'[1]MONE(M)CAPARD'!U229","v":11.11},{"$f":"'[1]MONE(M)CAPARD'!V229","v":9.19},{"$f":"'[1]MONE(M)CAPARD'!W229","v":7.1749420088146607},null,null,{"$f":"'[1]MONE(M)CAPARD'!AS229","v":5.99},{"$f":"'[1]MONE(M)CAPARD'!AT229","v":"n.a."},{"$f":"'[1]MONE(M)CAPARD'!AU229","v":6.75},{"$f":"'[1]MONE(M)CAPARD'!AV229","v":7.75},{"$f":"'[1]MONE(M)CAPARD'!AW229","v":"n.a."},{"$f":"'[1]MONE(M)CAPARD'!AX229","v":9},{"$f":"'[1]MONE(M)CAPARD'!AY229","v":"n.a."},null,null,{"$f":"+'Datos_Regional (M)'!CF222","v":41.541538378595064},{"$f":"+'Datos_Regional (M)'!CG222","v":8.6948252061132436},{"$f":"+'Datos_Regional (M)'!CH222","v":11.647547358662358},{"$f":"+'Datos_Regional (M)'!CI222","v":27.080951548609455},{"$f":"+'Datos_Regional (M)'!CJ222","v":30.12781965697371},{"$f":"+'Datos_Regional (M)'!CK222","v":30.30346700308144},{"$f":"+'Datos_Regional (M)'!CL222","v":23.934773177279279},null,null,803.95209933750004,354.40916666666664,604.7166666666667,227.44328976120846,212.34808099565225,594.61500000000001,844.6427427499998,2797.4843034276946,3642.1270461776944,null,null,1177.5409911258332,782.05833333333328,1195.8416666666665,653.77107082629334,403.35000000000008,1232.1583333333333,1279.2157099166668,5444.7203952854588,6723.9361052021268,null,null,-2647.2360918577656,-3081.8090590244324,null,null,{"$f":"'[1]EXT Comercio(M)'!C229","v":886.9931207300001},{"$f":"'[1]EXT Comercio(M)'!D229","v":427.65000000000009},{"$f":"'[1]EXT Comercio(M)'!E229","v":723.59999999999991},{"$f":"'[1]EXT Comercio(M)'!F229","v":250.49959858},{"$f":"'[1]EXT Comercio(M)'!G229","v":261.51255451986594},{"$f":"'[1]EXT Comercio(M)'!H229","v":613.17429999999968},{"$f":"'[1]EXT Comercio(M)'!I229","v":924.89186600000005},{"$f":"'[1]EXT Comercio(M)'!K229","v":3163.4295738298679},{"$f":"'[1]EXT Comercio(M)'!L229","v":4088.3214398298642},null,null,{"$f":"'[1]EXT Comercio(M)'!AG229","v":1501.2141665200002},{"$f":"'[1]EXT Comercio(M)'!AH229","v":921.95000000000027},{"$f":"'[1]EXT Comercio(M)'!AI229","v":1391.8000000000002},{"$f":"'[1]EXT Comercio(M)'!AJ229","v":739.14514439999994},{"$f":"'[1]EXT Comercio(M)'!AK229","v":515.5},{"$f":"'[1]EXT Comercio(M)'!AL229","v":1393.2},{"$f":"'[1]EXT Comercio(M)'!AM229","v":1294.4243149999998},{"$f":"'[1]EXT Comercio(M)'!AO229","v":6462.8093109200017},{"$f":"'[1]EXT Comercio(M)'!AP229","v":7757.2336259200019},null,null,{"$f":"'[1]EXT Comercio(M)'!$BS229","v":-3299.3797370901366},{"$f":"'[1]EXT Comercio(M)'!$BT229","v":-3668.9121860901359}]
[null,null,"Mayo ",{"$f":"'[1]REAL IPC(M)'!AD230","v":11.895754249466041},{"$f":"'[1]REAL IPC(M)'!AE230","v":8.3978623623077819},{"$f":"'[1]REAL IPC(M)'!AF230","v":12.241532411518467},{"$f":"'[1]REAL IPC(M)'!AG230","v":11.249293386093841},{"$f":"'[1]REAL IPC(M)'!AH230","v":21.745405561435575},{"$f":"'[1]REAL IPC(M)'!AI230","v":10.034589986373625},{"$f":"'[1]REAL IPC(M)'!AJ230","v":8.8422971741112093},null,null,{"$f":"'[1]REAL IMAE(M)'!AG230","v":4.2778544851157383},{"$f":"'[1]REAL IMAE(M)'!AH230","v":2.6940919733620405},{"$f":"'[1]REAL IMAE(M)'!AI230","v":4.6044696061836365},{"$f":"'[1]REAL IMAE(M)'!AJ230","v":6.4425184171172987},{"$f":"'[1]REAL IMAE(M)'!AK230","v":5.4386651943066173},{"$f":"'[1]REAL IMAE(M)'!AL230","v":5.7608477040683796},{"$f":"'[1]REAL IMAE(M)'!AM230","v":12.052895258068274},null,null,{"$f":"'[1]EXT ITCER(M)'!C230","v":89.736126278334993},{"$f":"'[1]EXT ITCER(M)'!D230","v":91.643802366950183},{"$f":"'[1]EXT ITCER(M)'!E230","v":66.957514977148037},{"$f":"'[1]EXT ITCER(M)'!F230","v":86.192599731083376},{"$f":"'[1]EXT ITCER(M)'!G230","v":93.71271200882039},{"$f":"'[1]EXT ITCER(M)'!H230","v":92.761245797938315},{"$f":"'[1]EXT ITCER(M)'!I230","v":101.5400798279822},null,null,{"$f":"'[1]EXT TC(M)'!J230","v":-1.7827937926815738},{"$f":"'[1]EXT TC(M)'!K230","v":0},{"$f":"'[1]EXT TC(M)'!L230","v":-2.7551886641566181},{"$f":"'[1]EXT TC(M)'!M230","v":6.3013353489417695E-2},{"$f":"'[1]EXT TC(M)'!N230","v":5.2304127548441057},{"$f":"'[1]EXT TC(M)'!O230","v":5.823309416984551},{"$f":"'[1]EXT TC(M)'!P230","v":0},null,null,{"$f":"'[1]EXT RIN(M)'!C230","v":4572.5978635600004},{"$f":"'[1]EXT RIN(M)'!D230","v":2404.9},{"$f":"'[1]EXT RIN(M)'!E230","v":4573.2},{"$f":"'[1]EXT RIN(M)'!F230","v":2512.6440159337553},{"$f":"'[1]EXT RIN(M)'!G230","v":1042.0999999999999},{"$f":"'[1]EXT RIN(M)'!H230","v":2193.1999999999998},{"$f":"'[1]EXT RIN(M)'!I230","v":1954.1300465132897},null,null,{"$f":"'[1]EXT RIN(M)'!P230","v":67.142608765097805},{"$f":"'[1]EXT RIN(M)'!Q230","v":93.582757642488119},{"$f":"'[1]EXT RIN(M)'!R230","v":110.15779183343813},{"$f":"'[1]EXT RIN(M)'!S230","v":109.52443778200514},{"$f":"'[1]EXT RIN(M)'!T230","v":104.74773712305117},{"$f":"'[1]EXT RIN(M)'!U230","v":45.37248757111292},{"$f":"'[1]EXT RIN(M)'!V230","v":201.64764739912582},null,null,{"$f":"+'[1]MONE(M)CAPARD'!AE230","v":-6.1626594286073608},{"$f":"'[1]MONE(M)CAPARD'!AF230","v":-4.2970057349834043},{"$f":"'[1]MONE(M)CAPARD'!AG230","v":-6.4071937160940404},{"$f":"'[1]MONE(M)CAPARD'!AH230","v":-2.1746595528455308},{"$f":"'[1]MONE(M)CAPARD'!AI230","v":-7.0307159131404555},{"$f":"'[1]MONE(M)CAPARD'!AJ230","v":-1.1674419712316872},{"$f":"'[1]MONE(M)CAPARD'!AK230","v":-4.9909798994974848},null,null,{"$f":"'[1]MONE(M)CAPARD'!AL230","v":3.4050000000000002},{"$f":"'[1]MONE(M)CAPARD'!AM230","v":3.74},{"$f":"'[1]MONE(M)CAPARD'!AN230","v":3.54},{"$f":"'[1]MONE(M)CAPARD'!AO230","v":4.3899999999999997},{"$f":"'[1]MONE(M)CAPARD'!AP230","v":6.88},{"$f":"'[1]MONE(M)CAPARD'!AQ230","v":2.27},{"$f":"'[1]MONE(M)CAPARD'!AR230","v":3.41},null,null,{"$f":"'[1]MONE(M)CAPARD'!J230","v":2.6247179955905486},{"$f":"'[1]MONE(M)CAPARD'!K230","v":-0.89287956534863222},{"$f":"'[1]MONE(M)CAPARD'!L230","v":0.96975474683543483},{"$f":"'[1]MONE(M)CAPARD'!M230","v":5.2051626016260126},{"$f":"'[1]MONE(M)CAPARD'!N230","v":-2.7003318179827462},{"$f":"'[1]MONE(M)CAPARD'!O230","v":6.0212066173435526},{"$f":"'[1]MONE(M)CAPARD'!P230","v":-1.5481346741540718},null,null,{"$f":"'[1]MONE(M)CAPARD'!Q230","v":9.329979941885906},{"$f":"'[1]MONE(M)CAPARD'!R230","v":7.43},{"$f":"'[1]MONE(M)CAPARD'!S230","v":7.51},{"$f":"'[1]MONE(M)CAPARD'!T230","v":9.75},{"$f":"'[1]MONE(M)CAPARD'!U230","v":10.5},{"$f":"'[1]MONE(M)CAPARD'!V230","v":7.98},{"$f":"'[1]MONE(M)CAPARD'!W230","v":7.1572718314129764},null,null,{"$f":"'[1]MONE(M)CAPARD'!AS230","v":7.0012000000000008},{"$f":"'[1]MONE(M)CAPARD'!AT230","v":"n.a."},{"$f":"'[1]MONE(M)CAPARD'!AU230","v":6.75},{"$f":"'[1]MONE(M)CAPARD'!AV230","v":8},{"$f":"'[1]MONE(M)CAPARD'!AW230","v":"n.a."},{"$f":"'[1]MONE(M)CAPARD'!AX230","v":9},{"$f":"'[1]MONE(M)CAPARD'!AY230","v":"n.a."},null,null,{"$f":"+'Datos_Regional (M)'!CF223","v":44.099437713414822},{"$f":"+'Datos_Regional (M)'!CG223","v":8.1486344696407809},{"$f":"+'Datos_Regional (M)'!CH223","v":11.904972439564965},{"$f":"+'Datos_Regional (M)'!CI223","v":25.342986887555831},{"$f":"+'Datos_Regional (M)'!CJ223","v":28.99678639715335},{"$f":"+'Datos_Regional (M)'!CK223","v":29.801814651017811},{"$f":"+'Datos_Regional (M)'!CL223","v":17.34116912013026},null,null,802.09680668500005,362.4108333333333,602.39166666666677,229.29545216788733,213.64698850416679,592.25172500000008,845.29144924999991,2802.093472357054,3647.3849216070544,null,null,1197.8683783583331,783.63666666666643,1208.6249999999998,674.56759208676829,409.77500000000003,1258.8166666666666,1299.1597400000003,5533.2893037784343,6832.4490437784334,null,null,-2731.1958314213803,-3185.0641221713809,null,null,{"$f":"'[1]EXT Comercio(M)'!C230","v":842.58615094000015},{"$f":"'[1]EXT Comercio(M)'!D230","v":435.88999999999987},{"$f":"'[1]EXT Comercio(M)'!E230","v":651.1},{"$f":"'[1]EXT Comercio(M)'!F230","v":274.10342878000006},{"$f":"'[1]EXT Comercio(M)'!G230","v":212.50932966582462},{"$f":"'[1]EXT Comercio(M)'!H230","v":610.34900000000016},{"$f":"'[1]EXT Comercio(M)'!I230","v":802.38947799999994},{"$f":"'[1]EXT Comercio(M)'!K230","v":3026.537909385821},{"$f":"'[1]EXT Comercio(M)'!L230","v":3828.9273873858274},null,null,{"$f":"'[1]EXT Comercio(M)'!AG230","v":1315.5589327099997},{"$f":"'[1]EXT Comercio(M)'!AH230","v":886.13999999999987},{"$f":"'[1]EXT Comercio(M)'!AI230","v":1326.5999999999995},{"$f":"'[1]EXT Comercio(M)'!AJ230","v":856.78838126999972},{"$f":"'[1]EXT Comercio(M)'!AK230","v":440.59999999999985},{"$f":"'[1]EXT Comercio(M)'!AL230","v":1498.6999999999996},{"$f":"'[1]EXT Comercio(M)'!AM230","v":1434.5739159999998},{"$f":"'[1]EXT Comercio(M)'!AO230","v":6324.387313979998},{"$f":"'[1]EXT Comercio(M)'!AP230","v":7758.9612299799919},null,null,{"$f":"'[1]EXT Comercio(M)'!$BS230","v":-3297.8494045941716},{"$f":"'[1]EXT Comercio(M)'!$BT230","v":-3930.0338425941718}]
[null,null,"Junio",{"$f":"'[1]REAL IPC(M)'!AD231","v":12.817967448777587},{"$f":"'[1]REAL IPC(M)'!AE231","v":9.0249187432286},{"$f":"'[1]REAL IPC(M)'!AF231","v":13.556860516511978},{"$f":"'[1]REAL IPC(M)'!AG231","v":12.162162162162158},{"$f":"'[1]REAL IPC(M)'!AH231","v":23.090112402362347},{"$f":"'[1]REAL IPC(M)'!AI231","v":12.204203786191515},{"$f":"'[1]REAL IPC(M)'!AJ231","v":9.6188747731397459},null,null,{"$f":"'[1]REAL IMAE(M)'!AG231","v":3.7286982075729447},{"$f":"'[1]REAL IMAE(M)'!AH231","v":-0.45228760740910845},{"$f":"'[1]REAL IMAE(M)'!AI231","v":4.3089080952226864},{"$f":"'[1]REAL IMAE(M)'!AJ231","v":6.0763840129702356},{"$f":"'[1]REAL IMAE(M)'!AK231","v":4.5907385202586397},{"$f":"'[1]REAL IMAE(M)'!AL231","v":4.1516570919667988},{"$f":"'[1]REAL IMAE(M)'!AM231","v":12.065569972196487},null,null,{"$f":"'[1]EXT ITCER(M)'!C231","v":90.995716905158687},{"$f":"'[1]EXT ITCER(M)'!D231","v":91.462966165744589},{"$f":"'[1]EXT ITCER(M)'!E231","v":67.09492396849113},{"$f":"'[1]EXT ITCER(M)'!F231","v":85.987251626151362},{"$f":"'[1]EXT ITCER(M)'!G231","v":93.147210369817586},{"$f":"'[1]EXT ITCER(M)'!H231","v":91.945373163719665},{"$f":"'[1]EXT ITCER(M)'!I231","v":101.4149209709623},null,null,{"$f":"'[1]EXT TC(M)'!J231","v":-4.1547609754369157E-2},{"$f":"'[1]EXT TC(M)'!K231","v":0},{"$f":"'[1]EXT TC(M)'!L231","v":-2.4451878590017322},{"$f":"'[1]EXT TC(M)'!M231","v":-5.7697152935095811E-3},{"$f":"'[1]EXT TC(M)'!N231","v":5.5154026438938182},{"$f":"'[1]EXT TC(M)'!O231","v":5.3733719158178062},{"$f":"'[1]EXT TC(M)'!P231","v":0},null,null,{"$f":"'[1]EXT RIN(M)'!C231","v":4334.2038455100001},{"$f":"'[1]EXT RIN(M)'!D231","v":2300.4},{"$f":"'[1]EXT RIN(M)'!E231","v":4771.3},{"$f":"'[1]EXT RIN(M)'!F231","v":2547.3266866087911},{"$f":"'[1]EXT RIN(M)'!G231","v":1035.7},{"$f":"'[1]EXT RIN(M)'!H231","v":1975},{"$f":"'[1]EXT RIN(M)'!I231","v":2516.4444039084201},null,null,{"$f":"'[1]EXT RIN(M)'!P231","v":66.558689524327775},{"$f":"'[1]EXT RIN(M)'!Q231","v":91.068342824567566},{"$f":"'[1]EXT RIN(M)'!R231","v":116.54173182293516},{"$f":"'[1]EXT RIN(M)'!S231","v":107.47799049236173},{"$f":"'[1]EXT RIN(M)'!T231","v":105.59940044694187},{"$f":"'[1]EXT RIN(M)'!U231","v":43.044906072348724},{"$f":"'[1]EXT RIN(M)'!V231","v":261.34255074032848},null,null,{"$f":"+'[1]MONE(M)CAPARD'!AE231","v":-6.4865265828336627},{"$f":"'[1]MONE(M)CAPARD'!AF231","v":-4.7282023253502912},{"$f":"'[1]MONE(M)CAPARD'!AG231","v":-7.4208290702847091},{"$f":"'[1]MONE(M)CAPARD'!AH231","v":-2.8460240963855381},{"$f":"'[1]MONE(M)CAPARD'!AI231","v":-8.0030654718505492},{"$f":"'[1]MONE(M)CAPARD'!AJ231","v":-1.5010166547777626},{"$f":"'[1]MONE(M)CAPARD'!AK231","v":-5.7370364238410598},null,null,{"$f":"'[1]MONE(M)CAPARD'!AL231","v":3.4050000000000002},{"$f":"'[1]MONE(M)CAPARD'!AM231","v":3.87},{"$f":"'[1]MONE(M)CAPARD'!AN231","v":3.57},{"$f":"'[1]MONE(M)CAPARD'!AO231","v":4.46},{"$f":"'[1]MONE(M)CAPARD'!AP231","v":6.47},{"$f":"'[1]MONE(M)CAPARD'!AQ231","v":2.06},{"$f":"'[1]MONE(M)CAPARD'!AR231","v":3.33},null,null,{"$f":"'[1]MONE(M)CAPARD'!J231","v":2.2088968695113778},{"$f":"'[1]MONE(M)CAPARD'!K231","v":-1.6738547152936478},{"$f":"'[1]MONE(M)CAPARD'!L231","v":-0.13813389679716395},{"$f":"'[1]MONE(M)CAPARD'!M231","v":4.5807228915662703},{"$f":"'[1]MONE(M)CAPARD'!N231","v":-3.5455173955704762},{"$f":"'[1]MONE(M)CAPARD'!O231","v":6.0209831591353371},{"$f":"'[1]MONE(M)CAPARD'!P231","v":-2.219960176922136},null,null,{"$f":"'[1]MONE(M)CAPARD'!Q231","v":9.6},{"$f":"'[1]MONE(M)CAPARD'!R231","v":7.2},{"$f":"'[1]MONE(M)CAPARD'!S231","v":7.4899999999999993},{"$f":"'[1]MONE(M)CAPARD'!T231","v":9.75},{"$f":"'[1]MONE(M)CAPARD'!U231","v":10.89},{"$f":"'[1]MONE(M)CAPARD'!V231","v":7.51},{"$f":"'[1]MONE(M)CAPARD'!W231","v":7.1853794067858985},null,null,{"$f":"'[1]MONE(M)CAPARD'!AS231","v":8},{"$f":"'[1]MONE(M)CAPARD'!AT231","v":"n.a."},{"$f":"'[1]MONE(M)CAPARD'!AU231","v":6.75},{"$f":"'[1]MONE(M)CAPARD'!AV231","v":8.5},{"$f":"'[1]MONE(M)CAPARD'!AW231","v":"n.a."},{"$f":"'[1]MONE(M)CAPARD'!AX231","v":9},{"$f":"'[1]MONE(M)CAPARD'!AY231","v":"n.a."},null,null,{"$f":"+'Datos_Regional (M)'!CF224","v":42.836680601841024},{"$f":"+'Datos_Regional (M)'!CG224","v":8.0828550962577239},{"$f":"+'Datos_Regional (M)'!CH224","v":12.319732653439619},{"$f":"+'Datos_Regional (M)'!CI224","v":25.046697395257866},{"$f":"+'Datos_Regional (M)'!CJ224","v":26.547056436769356},{"$f":"+'Datos_Regional (M)'!CK224","v":25.976049235231713},{"$f":"+'Datos_Regional (M)'!CL224","v":18.429525070705566},null,null,799.92494641249993,366.76249999999999,612.27499999999998,233.00984341548505,218.7073834520852,589.52339166666673,849.71352583333328,2820.2030649467365,3669.9165907800702,null,null,1221.8149682591666,796.65499999999975,1221.9166666666663,692.70684204865984,417.92500000000001,1293.9416666666668,1329.1763065833334,5644.9601436411585,6974.1364502244905,null,null,-2824.757078694422,-3304.2198594444221,null,null,{"$f":"'[1]EXT Comercio(M)'!C231","v":791.39006699999936},{"$f":"'[1]EXT Comercio(M)'!D231","v":392.85000000000036},{"$f":"'[1]EXT Comercio(M)'!E231","v":736.80000000000018},{"$f":"'[1]EXT Comercio(M)'!F231","v":264.32872648000011},{"$f":"'[1]EXT Comercio(M)'!G231","v":266.31320624170405},{"$f":"'[1]EXT Comercio(M)'!H231","v":618.88280000000032},{"$f":"'[1]EXT Comercio(M)'!I231","v":822.349919},{"$f":"'[1]EXT Comercio(M)'!K231","v":3070.5647997217056},{"$f":"'[1]EXT Comercio(M)'!L231","v":3892.9147187217022},null,null,{"$f":"'[1]EXT Comercio(M)'!AG231","v":1288.6389449200005},{"$f":"'[1]EXT Comercio(M)'!AH231","v":880.72999999999956},{"$f":"'[1]EXT Comercio(M)'!AI231","v":1277.6999999999994},{"$f":"'[1]EXT Comercio(M)'!AJ231","v":787.12276534000011},{"$f":"'[1]EXT Comercio(M)'!AK231","v":437.80000000000018},{"$f":"'[1]EXT Comercio(M)'!AL231","v":1495.4000000000008},{"$f":"'[1]EXT Comercio(M)'!AM231","v":1490.012580999999},{"$f":"'[1]EXT Comercio(M)'!AO231","v":6167.3917102599989},{"$f":"'[1]EXT Comercio(M)'!AP231","v":7657.404291259998},null,null,{"$f":"'[1]EXT Comercio(M)'!$BS231","v":-3096.8269105382915},{"$f":"'[1]EXT Comercio(M)'!$BT231","v":-3764.4895725382885}]
[null,null,"Julio",{"$f":"'[1]REAL IPC(M)'!AD232","v":14.169802634896744},{"$f":"'[1]REAL IPC(M)'!AE232","v":9.6385542168674778},{"$f":"'[1]REAL IPC(M)'!AF232","v":14.1558522976616},{"$f":"'[1]REAL IPC(M)'!AG232","v":13.758389261744963},{"$f":"'[1]REAL IPC(M)'!AH232","v":23.632240385523957},{"$f":"'[1]REAL IPC(M)'!AI232","v":13.727872266574062},{"$f":"'[1]REAL IPC(M)'!AJ232","v":9.5754290876242099},null,null,{"$f":"'[1]REAL IMAE(M)'!AG232","v":3.2451550160843912},{"$f":"'[1]REAL IMAE(M)'!AH232","v":-1.2210036917968516},{"$f":"'[1]REAL IMAE(M)'!AI232","v":3.9559277294869801},{"$f":"'[1]REAL IMAE(M)'!AJ232","v":4.8304507149281584},{"$f":"'[1]REAL IMAE(M)'!AK232","v":3.7994806195911264},{"$f":"'[1]REAL IMAE(M)'!AL232","v":2.2200568200428132},{"$f":"'[1]REAL IMAE(M)'!AM232","v":11.887346656683761},null,null,{"$f":"'[1]EXT ITCER(M)'!C232","v":92.471471058952943},{"$f":"'[1]EXT ITCER(M)'!D232","v":90.950231153753592},{"$f":"'[1]EXT ITCER(M)'!E232","v":66.296325668329658},{"$f":"'[1]EXT ITCER(M)'!F232","v":84.797405646569842},{"$f":"'[1]EXT ITCER(M)'!G232","v":93.005500775892031},{"$f":"'[1]EXT ITCER(M)'!H232","v":91.437233958149605},{"$f":"'[1]EXT ITCER(M)'!I232","v":101.7181511883562},null,null,{"$f":"'[1]EXT TC(M)'!J232","v":3.0323220389572176},{"$f":"'[1]EXT TC(M)'!K232","v":0},{"$f":"'[1]EXT TC(M)'!L232","v":-3.107954202284462},{"$f":"'[1]EXT TC(M)'!M232","v":-2.426961122616467E-2},{"$f":"'[1]EXT TC(M)'!N232","v":5.503433179598038},{"$f":"'[1]EXT TC(M)'!O232","v":3.8823739796985475},{"$f":"'[1]EXT TC(M)'!P232","v":0},null,null,{"$f":"'[1]EXT RIN(M)'!C232","v":4106.6158990900003},{"$f":"'[1]EXT RIN(M)'!D232","v":2262.6},{"$f":"'[1]EXT RIN(M)'!E232","v":4742.3},{"$f":"'[1]EXT RIN(M)'!F232","v":2441.1181316090333},{"$f":"'[1]EXT RIN(M)'!G232","v":1053.8},{"$f":"'[1]EXT RIN(M)'!H232","v":2078.5},{"$f":"'[1]EXT RIN(M)'!I232","v":2430.5744654860796},null,null,{"$f":"'[1]EXT RIN(M)'!P232","v":68.873563841179788},{"$f":"'[1]EXT RIN(M)'!Q232","v":88.358065338731308},{"$f":"'[1]EXT RIN(M)'!R232","v":109.17843992928955},{"$f":"'[1]EXT RIN(M)'!S232","v":109.47353812678482},{"$f":"'[1]EXT RIN(M)'!T232","v":101.46131585599383},{"$f":"'[1]EXT RIN(M)'!U232","v":45.951182117383773},{"$f":"'[1]EXT RIN(M)'!V232","v":247.26361674072871},null,null,{"$f":"+'[1]MONE(M)CAPARD'!AE232","v":-6.2799465965838914},{"$f":"'[1]MONE(M)CAPARD'!AF232","v":-5.079010989010996},{"$f":"'[1]MONE(M)CAPARD'!AG232","v":-7.8277653907408515},{"$f":"'[1]MONE(M)CAPARD'!AH232","v":-4.0070796460176972},{"$f":"'[1]MONE(M)CAPARD'!AI232","v":-8.7923432991855428},{"$f":"'[1]MONE(M)CAPARD'!AJ232","v":-0.85983518998927932},{"$f":"'[1]MONE(M)CAPARD'!AK232","v":-5.5627699917559772},null,null,{"$f":"'[1]MONE(M)CAPARD'!AL232","v":3.87},{"$f":"'[1]MONE(M)CAPARD'!AM232","v":4.07},{"$f":"'[1]MONE(M)CAPARD'!AN232","v":3.68},{"$f":"'[1]MONE(M)CAPARD'!AO232","v":4.42},{"$f":"'[1]MONE(M)CAPARD'!AP232","v":6.28},{"$f":"'[1]MONE(M)CAPARD'!AQ232","v":2.0099999999999998},{"$f":"'[1]MONE(M)CAPARD'!AR232","v":3.48},null,null,{"$f":"'[1]MONE(M)CAPARD'!J232","v":1.708155151445595},{"$f":"'[1]MONE(M)CAPARD'!K232","v":-2.0873626373626446},{"$f":"'[1]MONE(M)CAPARD'!L232","v":-0.59204349497502162},{"$f":"'[1]MONE(M)CAPARD'!M232","v":3.4561061946902703},{"$f":"'[1]MONE(M)CAPARD'!N232","v":-3.6721529903823424},{"$f":"'[1]MONE(M)CAPARD'!O232","v":6.9746558828018124},{"$f":"'[1]MONE(M)CAPARD'!P232","v":-2.3024625657058033},null,null,{"$f":"'[1]MONE(M)CAPARD'!Q232","v":9.86},{"$f":"'[1]MONE(M)CAPARD'!R232","v":7.35},{"$f":"'[1]MONE(M)CAPARD'!S232","v":7.51},{"$f":"'[1]MONE(M)CAPARD'!T232","v":9.8000000000000007},{"$f":"'[1]MONE(M)CAPARD'!U232","v":10.45},{"$f":"'[1]MONE(M)CAPARD'!V232","v":8.02},{"$f":"'[1]MONE(M)CAPARD'!W232","v":7.0524958516701544},null,null,{"$f":"'[1]MONE(M)CAPARD'!AS232","v":8.9976000000000003},{"$f":"'[1]MONE(M)CAPARD'!AT232","v":"n.a."},{"$f":"'[1]MONE(M)CAPARD'!AU232","v":7.25},{"$f":"'[1]MONE(M)CAPARD'!AV232","v":9},{"$f":"'[1]MONE(M)CAPARD'!AW232","v":"n.a."},{"$f":"'[1]MONE(M)CAPARD'!AX232","v":9},{"$f":"'[1]MONE(M)CAPARD'!AY232","v":"n.a."},null,null,{"$f":"+'Datos_Regional (M)'!CF225","v":44.483159397948711},{"$f":"+'Datos_Regional (M)'!CG225","v":7.4920309007296293},{"$f":"+'Datos_Regional (M)'!CH225","v":10.554711758621483},{"$f":"+'Datos_Regional (M)'!CI225","v":22.460381449836355},{"$f":"+'Datos_Regional (M)'!CJ225","v":26.140099248725267},{"$f":"+'Datos_Regional (M)'!CK225","v":23.636320650778742},{"$f":"+'Datos_Regional (M)'!CL225","v":18.393413784320135},null,null,805.40352346000009,371.95083333333338,626.13333333333333,234.36683907663198,221.70613312548929,595.55388333333337,863.32232133333321,2855.1145456621211,3718.4368669954542,null,null,1244.679815890833,805.89583333333303,1238.55,707.03401275883061,430.05,1334.2583333333334,1365.4783853333336,5760.4679953163295,7125.9463806496633,null,null,-2905.3534496542088,-3407.5095136542091,null,null,{"$f":"'[1]EXT Comercio(M)'!C232","v":798.49376241000027},{"$f":"'[1]EXT Comercio(M)'!D232","v":448.11999999999989},{"$f":"'[1]EXT Comercio(M)'!E232","v":745.3},{"$f":"'[1]EXT Comercio(M)'!F232","v":247.9278598599999},{"$f":"'[1]EXT Comercio(M)'!G232","v":241.21314406415402},{"$f":"'[1]EXT Comercio(M)'!H232","v":659.35229999999956},{"$f":"'[1]EXT Comercio(M)'!I232","v":934.13854600000002},{"$f":"'[1]EXT Comercio(M)'!K232","v":3140.4070663341518},{"$f":"'[1]EXT Comercio(M)'!L232","v":4074.5456123341537},null,null,{"$f":"'[1]EXT Comercio(M)'!AG232","v":1350.2782169499997},{"$f":"'[1]EXT Comercio(M)'!AH232","v":917.79},{"$f":"'[1]EXT Comercio(M)'!AI232","v":1398.6000000000001},{"$f":"'[1]EXT Comercio(M)'!AJ232","v":836.55592788000013},{"$f":"'[1]EXT Comercio(M)'!AK232","v":524.29999999999984},{"$f":"'[1]EXT Comercio(M)'!AL232","v":1687.5999999999992},{"$f":"'[1]EXT Comercio(M)'!AM232","v":1790.6730790000001},{"$f":"'[1]EXT Comercio(M)'!AO232","v":6715.1241448299988},{"$f":"'[1]EXT Comercio(M)'!AP232","v":8505.797223829999},null,null,{"$f":"'[1]EXT Comercio(M)'!$BS232","v":-3574.7170784958507},{"$f":"'[1]EXT Comercio(M)'!$BT232","v":-4431.2516114958526}]
[null,null,"Agosto",{"$f":"'[1]REAL IPC(M)'!AD233","v":15.402643306505363},{"$f":"'[1]REAL IPC(M)'!AE233","v":9.8901098901099047},{"$f":"'[1]REAL IPC(M)'!AF233","v":13.68577995899857},{"$f":"'[1]REAL IPC(M)'!AG233","v":13.99222654081067},{"$f":"'[1]REAL IPC(M)'!AH233","v":23.91632114587259},{"$f":"'[1]REAL IPC(M)'!AI233","v":14.567685589519607},{"$f":"'[1]REAL IPC(M)'!AJ233","v":9.8286744815148612},null,null,{"$f":"'[1]REAL IMAE(M)'!AG233","v":2.6971392681349711},{"$f":"'[1]REAL IMAE(M)'!AH233","v":0.38843295819627999},{"$f":"'[1]REAL IMAE(M)'!AI233","v":3.5815267773769608},{"$f":"'[1]REAL IMAE(M)'!AJ233","v":4.3861858434123056},{"$f":"'[1]REAL IMAE(M)'!AK233","v":3.0488835407798627},{"$f":"'[1]REAL IMAE(M)'!AL233","v":0.38299598382882599},{"$f":"'[1]REAL IMAE(M)'!AM233","v":11.301115241635699},null,null,{"$f":"'[1]EXT ITCER(M)'!C233","v":93.249116103199199},{"$f":"'[1]EXT ITCER(M)'!D233","v":90.750791760741023},{"$f":"'[1]EXT ITCER(M)'!E233","v":65.556691924783919},{"$f":"'[1]EXT ITCER(M)'!F233","v":83.886630350738614},{"$f":"'[1]EXT ITCER(M)'!G233","v":92.877778605105561},{"$f":"'[1]EXT ITCER(M)'!H233","v":92.286718087607454},{"$f":"'[1]EXT ITCER(M)'!I233","v":101.1498055234341},null,null,{"$f":"'[1]EXT TC(M)'!J233","v":5.9188801686540771},{"$f":"'[1]EXT TC(M)'!K233","v":0},{"$f":"'[1]EXT TC(M)'!L233","v":-3.3577792241937314},{"$f":"'[1]EXT TC(M)'!M233","v":-2.5396825396822604E-2},{"$f":"'[1]EXT TC(M)'!N233","v":5.2159825068851386},{"$f":"'[1]EXT TC(M)'!O233","v":5.3848374792955127},{"$f":"'[1]EXT TC(M)'!P233","v":0},null,null,{"$f":"'[1]EXT RIN(M)'!C233","v":4004.20506015},{"$f":"'[1]EXT RIN(M)'!D233","v":2304.3000000000002},{"$f":"'[1]EXT RIN(M)'!E233","v":4714.8999999999996},{"$f":"'[1]EXT RIN(M)'!F233","v":2386.9813027731525},{"$f":"'[1]EXT RIN(M)'!G233","v":1020.8},{"$f":"'[1]EXT RIN(M)'!H233","v":2111.1999999999998},{"$f":"'[1]EXT RIN(M)'!I233","v":2405.1473954663206},null,null,{"$f":"'[1]EXT RIN(M)'!P233","v":68.091590818016968},{"$f":"'[1]EXT RIN(M)'!Q233","v":89.869892825384952},{"$f":"'[1]EXT RIN(M)'!R233","v":109.66500853127637},{"$f":"'[1]EXT RIN(M)'!S233","v":108.56704527028094},{"$f":"'[1]EXT RIN(M)'!T233","v":101.52474323814442},{"$f":"'[1]EXT RIN(M)'!U233","v":44.894407981798054},{"$f":"'[1]EXT RIN(M)'!V233","v":243.97711180817691},null,null,{"$f":"+'[1]MONE(M)CAPARD'!AE233","v":-5.9813563266243257},{"$f":"'[1]MONE(M)CAPARD'!AF233","v":-5.2508000000000123},{"$f":"'[1]MONE(M)CAPARD'!AG233","v":-7.3938710382513628},{"$f":"'[1]MONE(M)CAPARD'!AH233","v":-3.8530930345835439},{"$f":"'[1]MONE(M)CAPARD'!AI233","v":-9.0116250936379796},{"$f":"'[1]MONE(M)CAPARD'!AJ233","v":-0.81845555724954266},{"$f":"'[1]MONE(M)CAPARD'!AK233","v":-5.8442610837438282},null,null,{"$f":"'[1]MONE(M)CAPARD'!AL233","v":3.89},{"$f":"'[1]MONE(M)CAPARD'!AM233","v":4.12},{"$f":"'[1]MONE(M)CAPARD'!AN233","v":3.67},{"$f":"'[1]MONE(M)CAPARD'!AO233","v":4.37},{"$f":"'[1]MONE(M)CAPARD'!AP233","v":7.25},{"$f":"'[1]MONE(M)CAPARD'!AQ233","v":2.35},{"$f":"'[1]MONE(M)CAPARD'!AR233","v":3.41},null,null,{"$f":"'[1]MONE(M)CAPARD'!J233","v":1.9127436168268477},{"$f":"'[1]MONE(M)CAPARD'!K233","v":-2.1841000000000128},{"$f":"'[1]MONE(M)CAPARD'!L233","v":-0.1018420765027306},{"$f":"'[1]MONE(M)CAPARD'!M233","v":4.0246371164149926},{"$f":"'[1]MONE(M)CAPARD'!N233","v":-3.4585831760604573},{"$f":"'[1]MONE(M)CAPARD'!O233","v":8.0060222594908161},{"$f":"'[1]MONE(M)CAPARD'!P233","v":-2.584529519157921},null,null,{"$f":"'[1]MONE(M)CAPARD'!Q233","v":10.43},{"$f":"'[1]MONE(M)CAPARD'!R233","v":7.49},{"$f":"'[1]MONE(M)CAPARD'!S233","v":7.5600000000000005},{"$f":"'[1]MONE(M)CAPARD'!T233","v":10.09},{"$f":"'[1]MONE(M)CAPARD'!U233","v":10.83},{"$f":"'[1]MONE(M)CAPARD'!V233","v":8.26},{"$f":"'[1]MONE(M)CAPARD'!W233","v":6.9901199690402471},null,null,{"$f":"'[1]MONE(M)CAPARD'!AS233","v":10},{"$f":"'[1]MONE(M)CAPARD'!AT233","v":"n.a."},{"$f":"'[1]MONE(M)CAPARD'!AU233","v":7.25},{"$f":"'[1]MONE(M)CAPARD'!AV233","v":9},{"$f":"'[1]MONE(M)CAPARD'!AW233","v":"n.a."},{"$f":"'[1]MONE(M)CAPARD'!AX233","v":9.5},{"$f":"'[1]MONE(M)CAPARD'!AY233","v":"n.a."},null,null,{"$f":"+'Datos_Regional (M)'!CF226","v":41.990596270935598},{"$f":"+'Datos_Regional (M)'!CG226","v":7.5957732425602664},{"$f":"+'Datos_Regional (M)'!CH226","v":10.98095856627188},{"$f":"+'Datos_Regional (M)'!CI226","v":20.634849799284403},{"$f":"+'Datos_Regional (M)'!CJ226","v":25.761831771668021},{"$f":"+'Datos_Regional (M)'!CK226","v":22.412121148538368},{"$f":"+'Datos_Regional (M)'!CL226","v":19.126106651075169},null,null,804.43549423833338,378.05916666666673,634.1583333333333,236.07527319826457,225.32304712980161,593.14105833333349,872.84756991666654,2871.1923728997331,3744.0399428163996,null,null,1263.8653700091663,811.84583333333319,1236.333333333333,720.44756931555548,434.06666666666661,1351.3416666666665,1394.3817409999999,5817.9004393247205,7212.2821803247207,null,null,-2946.7080664249884,-3468.2422375083211,null,null,{"$f":"'[1]EXT Comercio(M)'!C233","v":793.99849496000024},{"$f":"'[1]EXT Comercio(M)'!D233","v":422.52},{"$f":"'[1]EXT Comercio(M)'!E233","v":685.00000000000045},{"$f":"'[1]EXT Comercio(M)'!F233","v":234.07268586000009},{"$f":"'[1]EXT Comercio(M)'!G233","v":251.2819931334619},{"$f":"'[1]EXT Comercio(M)'!H233","v":599.61660000000029},{"$f":"'[1]EXT Comercio(M)'!I233","v":933.50698299999999},{"$f":"'[1]EXT Comercio(M)'!K233","v":2986.4897739534681},{"$f":"'[1]EXT Comercio(M)'!L233","v":3919.9967569534638},null,null,{"$f":"'[1]EXT Comercio(M)'!AG233","v":1371.2307296899999},{"$f":"'[1]EXT Comercio(M)'!AH233","v":776.63000000000011},{"$f":"'[1]EXT Comercio(M)'!AI233","v":1233.0999999999995},{"$f":"'[1]EXT Comercio(M)'!AJ233","v":839.3081174099998},{"$f":"'[1]EXT Comercio(M)'!AK233","v":437.5999999999998},{"$f":"'[1]EXT Comercio(M)'!AL233","v":1376.7999999999993},{"$f":"'[1]EXT Comercio(M)'!AM233","v":1651.9555809999995},{"$f":"'[1]EXT Comercio(M)'!AO233","v":6034.6688471000016},{"$f":"'[1]EXT Comercio(M)'!AP233","v":7686.6244281000036},null,null,{"$f":"'[1]EXT Comercio(M)'!$BS233","v":-3048.1790731465371},{"$f":"'[1]EXT Comercio(M)'!$BT233","v":-3766.6276711465362}]
[null,null,"Setiembre",{"$f":"'[1]REAL IPC(M)'!AD234","v":15.766820863465508},{"$f":"'[1]REAL IPC(M)'!AE234","v":8.6784376672017167},{"$f":"'[1]REAL IPC(M)'!AF234","v":12.748364803159332},{"$f":"'[1]REAL IPC(M)'!AG234","v":13.716814159292026},{"$f":"'[1]REAL IPC(M)'!AH234","v":22.791651136787188},{"$f":"'[1]REAL IPC(M)'!AI234","v":14.578587699316598},{"$f":"'[1]REAL IPC(M)'!AJ234","v":10.044843049327357},null,null,{"$f":"'[1]REAL IMAE(M)'!AG234","v":2.1723194481663843},{"$f":"'[1]REAL IMAE(M)'!AH234","v":2.3193646254317057},{"$f":"'[1]REAL IMAE(M)'!AI234","v":3.1487813643815414},{"$f":"'[1]REAL IMAE(M)'!AJ234","v":3.465486652670517},{"$f":"'[1]REAL IMAE(M)'!AK234","v":2.2537118023615439},{"$f":"'[1]REAL IMAE(M)'!AL234","v":-1.1301856605709344},{"$f":"'[1]REAL IMAE(M)'!AM234","v":10.174006688204946},null,null,{"$f":"'[1]EXT ITCER(M)'!C234","v":92.757899988679625},{"$f":"'[1]EXT ITCER(M)'!D234","v":91.211334536269405},{"$f":"'[1]EXT ITCER(M)'!E234","v":66.188452460165863},{"$f":"'[1]EXT ITCER(M)'!F234","v":83.835515725876945},{"$f":"'[1]EXT ITCER(M)'!G234","v":92.556681232094064},{"$f":"'[1]EXT ITCER(M)'!H234","v":91.655928952312095},{"$f":"'[1]EXT ITCER(M)'!I234","v":100.49373334866939},null,null,{"$f":"'[1]EXT TC(M)'!J234","v":6.3147634110128772},{"$f":"'[1]EXT TC(M)'!K234","v":0},{"$f":"'[1]EXT TC(M)'!L234","v":-3.1191989579150219},{"$f":"'[1]EXT TC(M)'!M234","v":-2.5799949609446409E-2},{"$f":"'[1]EXT TC(M)'!N234","v":4.5075027282833737},{"$f":"'[1]EXT TC(M)'!O234","v":4.5802283058409579},{"$f":"'[1]EXT TC(M)'!P234","v":0},null,null,{"$f":"'[1]EXT RIN(M)'!C234","v":3814.0297339700001},{"$f":"'[1]EXT RIN(M)'!D234","v":2259},{"$f":"'[1]EXT RIN(M)'!E234","v":4745.0700062100004},{"$f":"'[1]EXT RIN(M)'!F234","v":2358.4707795904228},{"$f":"'[1]EXT RIN(M)'!G234","v":1053},{"$f":"'[1]EXT RIN(M)'!H234","v":2099.1999999999998},{"$f":"'[1]EXT RIN(M)'!I234","v":2224.2239325130799},null,null,{"$f":"'[1]EXT RIN(M)'!P234","v":65.896672714668398},{"$f":"'[1]EXT RIN(M)'!Q234","v":89.602073976646352},{"$f":"'[1]EXT RIN(M)'!R234","v":107.52010803754504},{"$f":"'[1]EXT RIN(M)'!S234","v":109.26377360670192},{"$f":"'[1]EXT RIN(M)'!T234","v":100.20920832464182},{"$f":"'[1]EXT RIN(M)'!U234","v":43.949378141292506},{"$f":"'[1]EXT RIN(M)'!V234","v":223.51695737436086},null,null,{"$f":"+'[1]MONE(M)CAPARD'!AE234","v":-5.629264771079268},{"$f":"'[1]MONE(M)CAPARD'!AF234","v":-3.8907788499409257},{"$f":"'[1]MONE(M)CAPARD'!AG234","v":-6.5707070928196218},{"$f":"'[1]MONE(M)CAPARD'!AH234","v":-3.2421011673151678},{"$f":"'[1]MONE(M)CAPARD'!AI234","v":-8.8986670634963794},{"$f":"'[1]MONE(M)CAPARD'!AJ234","v":-0.47878727634192236},{"$f":"'[1]MONE(M)CAPARD'!AK234","v":-6.0473920130399366},null,null,{"$f":"'[1]MONE(M)CAPARD'!AL234","v":3.9849999999999999},{"$f":"'[1]MONE(M)CAPARD'!AM234","v":4.45},{"$f":"'[1]MONE(M)CAPARD'!AN234","v":3.73},{"$f":"'[1]MONE(M)CAPARD'!AO234","v":4.43},{"$f":"'[1]MONE(M)CAPARD'!AP234","v":6.53},{"$f":"'[1]MONE(M)CAPARD'!AQ234","v":2.79},{"$f":"'[1]MONE(M)CAPARD'!AR234","v":3.39},null,null,{"$f":"'[1]MONE(M)CAPARD'!J234","v":2.1881737078381938},{"$f":"'[1]MONE(M)CAPARD'!K234","v":-1.038327097282399},{"$f":"'[1]MONE(M)CAPARD'!L234","v":0.81742666374780382},{"$f":"'[1]MONE(M)CAPARD'!M234","v":4.6019455252918364},{"$f":"'[1]MONE(M)CAPARD'!N234","v":-4.1155066458660539},{"$f":"'[1]MONE(M)CAPARD'!O234","v":7.7600994035785567},{"$f":"'[1]MONE(M)CAPARD'!P234","v":-3.0970795979353456},null,null,{"$f":"'[1]MONE(M)CAPARD'!Q234","v":10.59},{"$f":"'[1]MONE(M)CAPARD'!R234","v":7.55},{"$f":"'[1]MONE(M)CAPARD'!S234","v":7.66},{"$f":"'[1]MONE(M)CAPARD'!T234","v":10.14},{"$f":"'[1]MONE(M)CAPARD'!U234","v":10.52},{"$f":"'[1]MONE(M)CAPARD'!V234","v":7.91},{"$f":"'[1]MONE(M)CAPARD'!W234","v":6.6366666666666667},null,null,{"$f":"'[1]MONE(M)CAPARD'!AS234","v":10},{"$f":"'[1]MONE(M)CAPARD'!AT234","v":"n.a."},{"$f":"'[1]MONE(M)CAPARD'!AU234","v":7.25},{"$f":"'[1]MONE(M)CAPARD'!AV234","v":9},{"$f":"'[1]MONE(M)CAPARD'!AW234","v":"n.a."},{"$f":"'[1]MONE(M)CAPARD'!AX234","v":9.5},{"$f":"'[1]MONE(M)CAPARD'!AY234","v":"n.a."},null,null,{"$f":"+'Datos_Regional (M)'!CF227","v":39.166562363655764},{"$f":"+'Datos_Regional (M)'!CG227","v":7.2704308649084171},{"$f":"+'Datos_Regional (M)'!CH227","v":10.835783331133708},{"$f":"+'Datos_Regional (M)'!CI227","v":18.88194961469982},{"$f":"+'Datos_Regional (M)'!CJ227","v":23.757716516697556},{"$f":"+'Datos_Regional (M)'!CK227","v":20.983410613861441},{"$f":"+'Datos_Regional (M)'!CL227","v":20.028507696367058},null,null,809.64569980416672,381.02333333333337,643.25833333333344,239.20898882257009,228.84783312458703,592.01935833333346,887.24102391666656,2894.0035467513239,3781.2445706679914,null,null,1287.043767578333,823.17583333333312,1246.5499999999995,738.16816918268057,440.49999999999994,1361.4416666666666,1441.9641643333334,5896.8794367610126,7338.8436010943478,null,null,-3002.8758900096886,-3557.5990304263546,null,null,{"$f":"'[1]EXT Comercio(M)'!C234","v":811.47627181999997},{"$f":"'[1]EXT Comercio(M)'!D234","v":375.76000000000022},{"$f":"'[1]EXT Comercio(M)'!E234","v":638.19999999999959},{"$f":"'[1]EXT Comercio(M)'!F234","v":239.40258559999984},{"$f":"'[1]EXT Comercio(M)'!G234","v":229.95703893257308},{"$f":"'[1]EXT Comercio(M)'!H234","v":519.8739999999998},{"$f":"'[1]EXT Comercio(M)'!I234","v":1028.0414479999999},{"$f":"'[1]EXT Comercio(M)'!K234","v":2814.6698963525705},{"$f":"'[1]EXT Comercio(M)'!L234","v":3842.7113443525704},null,null,{"$f":"'[1]EXT Comercio(M)'!AG234","v":1365.3244560599996},{"$f":"'[1]EXT Comercio(M)'!AH234","v":868.71},{"$f":"'[1]EXT Comercio(M)'!AI234","v":1190.3},{"$f":"'[1]EXT Comercio(M)'!AJ234","v":781.34400941999957},{"$f":"'[1]EXT Comercio(M)'!AK234","v":417.19999999999993},{"$f":"'[1]EXT Comercio(M)'!AL234","v":1293.6000000000008},{"$f":"'[1]EXT Comercio(M)'!AM234","v":1847.6976380000001},{"$f":"'[1]EXT Comercio(M)'!AO234","v":5916.4784654800023},{"$f":"'[1]EXT Comercio(M)'!AP234","v":7764.1761034800074},null,null,{"$f":"'[1]EXT Comercio(M)'!$BS234","v":-3101.8085691274209},{"$f":"'[1]EXT Comercio(M)'!$BT234","v":-3921.4647591274188}]
[null,null,"Octubre",{"$f":"'[1]REAL IPC(M)'!AD235","v":16.303829003855022},{"$f":"'[1]REAL IPC(M)'!AE235","v":7.4062267559239237},{"$f":"'[1]REAL IPC(M)'!AF235","v":12.926634278334644},{"$f":"'[1]REAL IPC(M)'!AG235","v":13.060109289617488},{"$f":"'[1]REAL IPC(M)'!AH235","v":20.286679448552906},{"$f":"'[1]REAL IPC(M)'!AI235","v":12.843500961802661},{"$f":"'[1]REAL IPC(M)'!AJ235","v":9.4558429973238383},null,null,{"$f":"'[1]REAL IMAE(M)'!AG235","v":1.8054755257365909},{"$f":"'[1]REAL IMAE(M)'!AH235","v":1.4164393792926995},{"$f":"'[1]REAL IMAE(M)'!AI235","v":2.5986862673909967},{"$f":"'[1]REAL IMAE(M)'!AJ235","v":2.6961685758671363},{"$f":"'[1]REAL IMAE(M)'!AK235","v":1.3199101664238939},{"$f":"'[1]REAL IMAE(M)'!AL235","v":-2.0745215549402727},{"$f":"'[1]REAL IMAE(M)'!AM235","v":8.5884067720596438},null,null,{"$f":"'[1]EXT ITCER(M)'!C235","v":91.228536238805461},{"$f":"'[1]EXT ITCER(M)'!D235","v":90.862528643675034},{"$f":"'[1]EXT ITCER(M)'!E235","v":65.843785299562072},{"$f":"'[1]EXT ITCER(M)'!F235","v":82.592412128859408},{"$f":"'[1]EXT ITCER(M)'!G235","v":92.792539077417231},{"$f":"'[1]EXT ITCER(M)'!H235","v":92.244984142776573},{"$f":"'[1]EXT ITCER(M)'!I235","v":99.629644357308067},null,null,{"$f":"'[1]EXT TC(M)'!J235","v":6.5177765774429259},{"$f":"'[1]EXT TC(M)'!K235","v":0},{"$f":"'[1]EXT TC(M)'!L235","v":-2.566935811082844},{"$f":"'[1]EXT TC(M)'!M235","v":-2.582514487271895E-2},{"$f":"'[1]EXT TC(M)'!N235","v":4.9837786946512184},{"$f":"'[1]EXT TC(M)'!O235","v":4.5879402542512215},{"$f":"'[1]EXT TC(M)'!P235","v":0},null,null,{"$f":"'[1]EXT RIN(M)'!C235","v":3625.18987436},{"$f":"'[1]EXT RIN(M)'!D235","v":2342.8000000000002},{"$f":"'[1]EXT RIN(M)'!E235","v":4787.33603958},{"$f":"'[1]EXT RIN(M)'!F235","v":2336.5118956681367},{"$f":"'[1]EXT RIN(M)'!G235","v":1017.2},{"$f":"'[1]EXT RIN(M)'!H235","v":2007.7},{"$f":"'[1]EXT RIN(M)'!I235","v":2373.8951024462003},null,null,{"$f":"'[1]EXT RIN(M)'!P235","v":65.366507693882184},{"$f":"'[1]EXT RIN(M)'!Q235","v":91.234011266785103},{"$f":"'[1]EXT RIN(M)'!R235","v":108.75473456555767},{"$f":"'[1]EXT RIN(M)'!S235","v":108.94739978786481},{"$f":"'[1]EXT RIN(M)'!T235","v":100.27315939094007},{"$f":"'[1]EXT RIN(M)'!U235","v":43.65050432148049},{"$f":"'[1]EXT RIN(M)'!V235","v":185.57028394158723},null,null,{"$f":"+'[1]MONE(M)CAPARD'!AE235","v":-4.9902303763899694},{"$f":"'[1]MONE(M)CAPARD'!AF235","v":-2.3706509695290898},{"$f":"'[1]MONE(M)CAPARD'!AG235","v":-6.647355007351722},{"$f":"'[1]MONE(M)CAPARD'!AH235","v":-2.167085548574192},{"$f":"'[1]MONE(M)CAPARD'!AI235","v":-5.9754369259809499},{"$f":"'[1]MONE(M)CAPARD'!AJ235","v":1.4059285866488365},{"$f":"'[1]MONE(M)CAPARD'!AK235","v":-5.6879951100244668},null,null,{"$f":"'[1]MONE(M)CAPARD'!AL235","v":4.1150000000000002},{"$f":"'[1]MONE(M)CAPARD'!AM235","v":4.8600000000000003},{"$f":"'[1]MONE(M)CAPARD'!AN235","v":3.78},{"$f":"'[1]MONE(M)CAPARD'!AO235","v":4.4400000000000004},{"$f":"'[1]MONE(M)CAPARD'!AP235","v":6.52},{"$f":"'[1]MONE(M)CAPARD'!AQ235","v":2.85},{"$f":"'[1]MONE(M)CAPARD'!AR235","v":3.23},null,null,{"$f":"'[1]MONE(M)CAPARD'!J235","v":3.2726102216452544},{"$f":"'[1]MONE(M)CAPARD'!K235","v":1.1021458250890337},{"$f":"'[1]MONE(M)CAPARD'!L235","v":0.73797091978436802},{"$f":"'[1]MONE(M)CAPARD'!M235","v":5.4837119381343644},{"$f":"'[1]MONE(M)CAPARD'!N235","v":-1.3933432089234989},{"$f":"'[1]MONE(M)CAPARD'!O235","v":10.196864631213694},{"$f":"'[1]MONE(M)CAPARD'!P235","v":-2.3959521869057503},null,null,{"$f":"'[1]MONE(M)CAPARD'!Q235","v":11.92},{"$f":"'[1]MONE(M)CAPARD'!R235","v":8.59},{"$f":"'[1]MONE(M)CAPARD'!S235","v":7.84},{"$f":"'[1]MONE(M)CAPARD'!T235","v":10.48},{"$f":"'[1]MONE(M)CAPARD'!U235","v":11.26},{"$f":"'[1]MONE(M)CAPARD'!V235","v":7.69},{"$f":"'[1]MONE(M)CAPARD'!W235","v":6.833333333333333},null,null,{"$f":"'[1]MONE(M)CAPARD'!AS235","v":10},{"$f":"'[1]MONE(M)CAPARD'!AT235","v":"n.a."},{"$f":"'[1]MONE(M)CAPARD'!AU235","v":7.25},{"$f":"'[1]MONE(M)CAPARD'!AV235","v":9},{"$f":"'[1]MONE(M)CAPARD'!AW235","v":"n.a."},{"$f":"'[1]MONE(M)CAPARD'!AX235","v":9.5},{"$f":"'[1]MONE(M)CAPARD'!AY235","v":"n.a."},null,null,{"$f":"+'Datos_Regional (M)'!CF228","v":34.832020144123788},{"$f":"+'Datos_Regional (M)'!CG228","v":7.030582101039573},{"$f":"+'Datos_Regional (M)'!CH228","v":9.6039807750441639},{"$f":"+'Datos_Regional (M)'!CI228","v":15.315869356785949},{"$f":"+'Datos_Regional (M)'!CJ228","v":17.990331566078609},{"$f":"+'Datos_Regional (M)'!CK228","v":18.635269939082487},{"$f":"+'Datos_Regional (M)'!CL228","v":19.276794903484884},null,null,813.74625185083335,385.98250000000007,648.7166666666667,240.53107061837758,230.69724236553225,589.7270583333335,906.69614016666662,2909.4007898347431,3816.0969300014108,null,null,1307.0606982074999,823.23333333333323,1248.2916666666663,743.8136945208513,448.70833333333326,1368.0166666666667,1479.60706725,5939.1243927283504,7418.7314599783504,null,null,-3029.7236028936072,-3602.6345299769405,null,null,{"$f":"'[1]EXT Comercio(M)'!C235","v":904.92550842000037},{"$f":"'[1]EXT Comercio(M)'!D235","v":408.55999999999995},{"$f":"'[1]EXT Comercio(M)'!E235","v":623.30000000000018},{"$f":"'[1]EXT Comercio(M)'!F235","v":207.92786650000016},{"$f":"'[1]EXT Comercio(M)'!G235","v":225.97275625383895},{"$f":"'[1]EXT Comercio(M)'!H235","v":559.99489999999969},{"$f":"'[1]EXT Comercio(M)'!I235","v":1324.789395},{"$f":"'[1]EXT Comercio(M)'!K235","v":2930.6810311738409},{"$f":"'[1]EXT Comercio(M)'!L235","v":4255.4704261738443},null,null,{"$f":"'[1]EXT Comercio(M)'!AG235","v":1463.18218505},{"$f":"'[1]EXT Comercio(M)'!AH235","v":831.79000000000087},{"$f":"'[1]EXT Comercio(M)'!AI235","v":1294.7999999999997},{"$f":"'[1]EXT Comercio(M)'!AJ235","v":733.76800473999992},{"$f":"'[1]EXT Comercio(M)'!AK235","v":521.79999999999984},{"$f":"'[1]EXT Comercio(M)'!AL235","v":1300.9000000000001},{"$f":"'[1]EXT Comercio(M)'!AM235","v":2015.277391000001},{"$f":"'[1]EXT Comercio(M)'!AO235","v":6146.2401897899981},{"$f":"'[1]EXT Comercio(M)'!AP235","v":8161.5175807899941},null,null,{"$f":"'[1]EXT Comercio(M)'!$BS235","v":-3215.5591586161609},{"$f":"'[1]EXT Comercio(M)'!$BT235","v":-3906.0471546161643}]
[null,null,"Noviembre",{"$f":"'[1]REAL IPC(M)'!AD236","v":16.297472991123708},{"$f":"'[1]REAL IPC(M)'!AE236","v":5.294055980710751},{"$f":"'[1]REAL IPC(M)'!AF236","v":10.846209560598744},{"$f":"'[1]REAL IPC(M)'!AG236","v":10.902255639097751},{"$f":"'[1]REAL IPC(M)'!AH236","v":15.423669467787132},{"$f":"'[1]REAL IPC(M)'!AI236","v":7.2141989472263441},{"$f":"'[1]REAL IPC(M)'!AJ236","v":7.6787290379523521},null,null,{"$f":"'[1]REAL IMAE(M)'!AG236","v":1.6113893930689942},{"$f":"'[1]REAL IMAE(M)'!AH236","v":-2.2496710425620727},{"$f":"'[1]REAL IMAE(M)'!AI236","v":1.8846549102090326},{"$f":"'[1]REAL IMAE(M)'!AJ236","v":1.8672680166757247},{"$f":"'[1]REAL IMAE(M)'!AK236","v":0.23257109479168825},{"$f":"'[1]REAL IMAE(M)'!AL236","v":-2.3910815424774174},{"$f":"'[1]REAL IMAE(M)'!AM236","v":6.8671429362574106},null,null,{"$f":"'[1]EXT ITCER(M)'!C236","v":88.262239260204225},{"$f":"'[1]EXT ITCER(M)'!D236","v":89.817578784587937},{"$f":"'[1]EXT ITCER(M)'!E236","v":65.598943005634567},{"$f":"'[1]EXT ITCER(M)'!F236","v":81.287209341438626},{"$f":"'[1]EXT ITCER(M)'!G236","v":91.465766573269946},{"$f":"'[1]EXT ITCER(M)'!H236","v":94.229547867076633},{"$f":"'[1]EXT ITCER(M)'!I236","v":98.427178216283053},null,null,{"$f":"'[1]EXT TC(M)'!J236","v":7.3073798760524058},{"$f":"'[1]EXT TC(M)'!K236","v":0},{"$f":"'[1]EXT TC(M)'!L236","v":-0.11804348014108808},{"$f":"'[1]EXT TC(M)'!M236","v":-2.5846560846531627E-2},{"$f":"'[1]EXT TC(M)'!N236","v":4.9943474777764143},{"$f":"'[1]EXT TC(M)'!O236","v":5.3466395672879798},{"$f":"'[1]EXT TC(M)'!P236","v":0},null,null,{"$f":"'[1]EXT RIN(M)'!C236","v":3753.9122622899999},{"$f":"'[1]EXT RIN(M)'!D236","v":2407.6},{"$f":"'[1]EXT RIN(M)'!E236","v":4727.00320663},{"$f":"'[1]EXT RIN(M)'!F236","v":2330.8160575153879},{"$f":"'[1]EXT RIN(M)'!G236","v":1012.8},{"$f":"'[1]EXT RIN(M)'!H236","v":1986.5},{"$f":"'[1]EXT RIN(M)'!I236","v":2352.9313784329697},null,null,{"$f":"'[1]EXT RIN(M)'!P236","v":63.576285808664053},{"$f":"'[1]EXT RIN(M)'!Q236","v":91.620262249491304},{"$f":"'[1]EXT RIN(M)'!R236","v":104.03167619691629},{"$f":"'[1]EXT RIN(M)'!S236","v":106.75175348852422},{"$f":"'[1]EXT RIN(M)'!T236","v":97.152063869333418},{"$f":"'[1]EXT RIN(M)'!U236","v":42.269402515413972},{"$f":"'[1]EXT RIN(M)'!V236","v":235.4018942976428},null,null,{"$f":"+'[1]MONE(M)CAPARD'!AE236","v":-4.555105846133074},{"$f":"'[1]MONE(M)CAPARD'!AF236","v":-0.39323775388290078},{"$f":"'[1]MONE(M)CAPARD'!AG236","v":-4.8681949360196022},{"$f":"'[1]MONE(M)CAPARD'!AH236","v":0.20535593220338458},{"$f":"'[1]MONE(M)CAPARD'!AI236","v":-2.231556846658644},{"$f":"'[1]MONE(M)CAPARD'!AJ236","v":6.8421917290866769},{"$f":"'[1]MONE(M)CAPARD'!AK236","v":-4.0664754098360776},null,null,{"$f":"'[1]MONE(M)CAPARD'!AL236","v":4.2850000000000001},{"$f":"'[1]MONE(M)CAPARD'!AM236","v":4.88},{"$f":"'[1]MONE(M)CAPARD'!AN236","v":3.77},{"$f":"'[1]MONE(M)CAPARD'!AO236","v":4.58},{"$f":"'[1]MONE(M)CAPARD'!AP236","v":6.96},{"$f":"'[1]MONE(M)CAPARD'!AQ236","v":3.1},{"$f":"'[1]MONE(M)CAPARD'!AR236","v":3.3},null,null,{"$f":"'[1]MONE(M)CAPARD'!J236","v":3.9489482365853408},{"$f":"'[1]MONE(M)CAPARD'!K236","v":3.6620718837116839},{"$f":"'[1]MONE(M)CAPARD'!L236","v":2.6557429893819759},{"$f":"'[1]MONE(M)CAPARD'!M236","v":7.8968135593220277},{"$f":"'[1]MONE(M)CAPARD'!N236","v":3.4446162578896371},{"$f":"'[1]MONE(M)CAPARD'!O236","v":15.954790709385035},{"$f":"'[1]MONE(M)CAPARD'!P236","v":-0.99251639344263476},null,null,{"$f":"'[1]MONE(M)CAPARD'!Q236","v":11.88},{"$f":"'[1]MONE(M)CAPARD'!R236","v":9.15},{"$f":"'[1]MONE(M)CAPARD'!S236","v":8.0500000000000007},{"$f":"'[1]MONE(M)CAPARD'!T236","v":10.72},{"$f":"'[1]MONE(M)CAPARD'!U236","v":11.96},{"$f":"'[1]MONE(M)CAPARD'!V236","v":8.69},{"$f":"'[1]MONE(M)CAPARD'!W236","v":6.61},null,null,{"$f":"'[1]MONE(M)CAPARD'!AS236","v":10},{"$f":"'[1]MONE(M)CAPARD'!AT236","v":"n.a."},{"$f":"'[1]MONE(M)CAPARD'!AU236","v":7.25},{"$f":"'[1]MONE(M)CAPARD'!AV236","v":9},{"$f":"'[1]MONE(M)CAPARD'!AW236","v":"n.a."},{"$f":"'[1]MONE(M)CAPARD'!AX236","v":9.5},{"$f":"'[1]MONE(M)CAPARD'!AY236","v":"n.a."},null,null,{"$f":"+'Datos_Regional (M)'!CF229","v":30.502748713499095},{"$f":"+'Datos_Regional (M)'!CG229","v":6.1315329171933719},{"$f":"+'Datos_Regional (M)'!CH229","v":9.8041638801219975},{"$f":"+'Datos_Regional (M)'!CI229","v":13.224243706789673},{"$f":"+'Datos_Regional (M)'!CJ229","v":15.319832533958945},{"$f":"+'Datos_Regional (M)'!CK229","v":17.005980941688303},{"$f":"+'Datos_Regional (M)'!CL229","v":18.383480606932913},null,null,800.82214952333334,390.36916666666667,646.9083333333333,237.2448977890499,230.07400226042603,579.39918333333355,909.0975698333333,2884.8177329061436,3793.9153027394755,null,null,1286.128622883333,817.22583333333341,1229.3916666666664,740.13419594758454,437.9666666666667,1351.7499999999998,1495.8232435833331,5862.5969854975847,7358.4202290809189,null,null,-2977.7792525914424,-3564.5049263414421,null,null,{"$f":"'[1]EXT Comercio(M)'!C236","v":658.08984925999903},{"$f":"'[1]EXT Comercio(M)'!D236","v":366.82999999999993},{"$f":"'[1]EXT Comercio(M)'!E236","v":517.89999999999964},{"$f":"'[1]EXT Comercio(M)'!F236","v":166.13160134999998},{"$f":"'[1]EXT Comercio(M)'!G236","v":185.88346905772192},{"$f":"'[1]EXT Comercio(M)'!H236","v":445.79690000000028},{"$f":"'[1]EXT Comercio(M)'!I236","v":1004.8121560000001},{"$f":"'[1]EXT Comercio(M)'!K236","v":2340.6318196677239},{"$f":"'[1]EXT Comercio(M)'!L236","v":3345.4439756677166},null,null,{"$f":"'[1]EXT Comercio(M)'!AG236","v":1063.0872451200012},{"$f":"'[1]EXT Comercio(M)'!AH236","v":719.5},{"$f":"'[1]EXT Comercio(M)'!AI236","v":983.79999999999882},{"$f":"'[1]EXT Comercio(M)'!AJ236","v":659.22157288999915},{"$f":"'[1]EXT Comercio(M)'!AK236","v":361},{"$f":"'[1]EXT Comercio(M)'!AL236","v":1141.4000000000001},{"$f":"'[1]EXT Comercio(M)'!AM236","v":1442.7058499999998},{"$f":"'[1]EXT Comercio(M)'!AO236","v":4928.0088180099992},{"$f":"'[1]EXT Comercio(M)'!AP236","v":6370.7146680099977},null,null,{"$f":"'[1]EXT Comercio(M)'!$BS236","v":-2587.3769983422862},{"$f":"'[1]EXT Comercio(M)'!$BT236","v":-3025.2706923422884}]
[null,null,"Diciembre ",{"$f":"'[1]REAL IPC(M)'!AD237","v":13.902332628419961},{"$f":"'[1]REAL IPC(M)'!AE237","v":5.4742604484682627},{"$f":"'[1]REAL IPC(M)'!AF237","v":9.4002272319559861},{"$f":"'[1]REAL IPC(M)'!AG237","v":10.831099195710451},{"$f":"'[1]REAL IPC(M)'!AH237","v":13.777893098079922},{"$f":"'[1]REAL IPC(M)'!AI237","v":4.5172482818442692},{"$f":"'[1]REAL IPC(M)'!AJ237","v":6.7662565905096752},null,null,{"$f":"'[1]REAL IMAE(M)'!AG237","v":-4.1152990160431502},{"$f":"'[1]REAL IMAE(M)'!AH237","v":-4.0696202511289554},{"$f":"'[1]REAL IMAE(M)'!AI237","v":1.0468092973595011},{"$f":"'[1]REAL IMAE(M)'!AJ237","v":1.1816976314246421},{"$f":"'[1]REAL IMAE(M)'!AK237","v":-0.86257769779392568},{"$f":"'[1]REAL IMAE(M)'!AL237","v":-2.4192760235568178},{"$f":"'[1]REAL IMAE(M)'!AM237","v":5.2165354330708613},null,null,{"$f":"'[1]EXT ITCER(M)'!C237","v":87.236933677317566},{"$f":"'[1]EXT ITCER(M)'!D237","v":89.302553420306566},{"$f":"'[1]EXT ITCER(M)'!E237","v":65.89123842132939},{"$f":"'[1]EXT ITCER(M)'!F237","v":80.539860575936189},{"$f":"'[1]EXT ITCER(M)'!G237","v":91.222727941369939},{"$f":"'[1]EXT ITCER(M)'!H237","v":94.953289174790896},{"$f":"'[1]EXT ITCER(M)'!I237","v":98.018490966641707},null,null,{"$f":"'[1]EXT TC(M)'!J237","v":9.8289997657531529},{"$f":"'[1]EXT TC(M)'!K237","v":0},{"$f":"'[1]EXT TC(M)'!L237","v":0.98165698380179278},{"$f":"'[1]EXT TC(M)'!M237","v":-2.5925925925921897E-2},{"$f":"'[1]EXT TC(M)'!N237","v":5.0703396991881178},{"$f":"'[1]EXT TC(M)'!O237","v":5.1851343570343875},{"$f":"'[1]EXT TC(M)'!P237","v":0},null,null,{"$f":"'[1]EXT RIN(M)'!C237","v":3799.0988521700001},{"$f":"'[1]EXT RIN(M)'!D237","v":2539.5},{"$f":"'[1]EXT RIN(M)'!E237","v":4658.8242851999994},{"$f":"'[1]EXT RIN(M)'!F237","v":2460.0103567114747},{"$f":"'[1]EXT RIN(M)'!G237","v":1029.8},{"$f":"'[1]EXT RIN(M)'!H237","v":2165.4},{"$f":"'[1]EXT RIN(M)'!I237","v":2611.5755368652699},null,null,{"$f":"'[1]EXT RIN(M)'!P237","v":65.628342679764373},{"$f":"'[1]EXT RIN(M)'!Q237","v":95.097400408924443},{"$f":"'[1]EXT RIN(M)'!R237","v":96.070211922545042},{"$f":"'[1]EXT RIN(M)'!S237","v":105.70758733369181},{"$f":"'[1]EXT RIN(M)'!T237","v":98.097638346079535},{"$f":"'[1]EXT RIN(M)'!U237","v":42.00070915185217},{"$f":"'[1]EXT RIN(M)'!V237","v":254.90494417062189},null,null,{"$f":"+'[1]MONE(M)CAPARD'!AE237","v":-2.1091162691610679},{"$f":"'[1]MONE(M)CAPARD'!AF237","v":-8.9368200419206303E-2},{"$f":"'[1]MONE(M)CAPARD'!AG237","v":-3.592522000546595},{"$f":"'[1]MONE(M)CAPARD'!AH237","v":0.91932752781809823},{"$f":"'[1]MONE(M)CAPARD'!AI237","v":-1.2442415527485853},{"$f":"'[1]MONE(M)CAPARD'!AJ237","v":9.551295965270679},{"$f":"'[1]MONE(M)CAPARD'!AK237","v":-3.2653168724279924},null,null,{"$f":"'[1]MONE(M)CAPARD'!AL237","v":4.0999999999999996},{"$f":"'[1]MONE(M)CAPARD'!AM237","v":5.38},{"$f":"'[1]MONE(M)CAPARD'!AN237","v":3.82},{"$f":"'[1]MONE(M)CAPARD'!AO237","v":4.82},{"$f":"'[1]MONE(M)CAPARD'!AP237","v":6.63},{"$f":"'[1]MONE(M)CAPARD'!AQ237","v":2.76},{"$f":"'[1]MONE(M)CAPARD'!AR237","v":3.28},null,null,{"$f":"'[1]MONE(M)CAPARD'!J237","v":5.9943174244321469},{"$f":"'[1]MONE(M)CAPARD'!K237","v":3.8926459726519584},{"$f":"'[1]MONE(M)CAPARD'!L237","v":4.0582847772615489},{"$f":"'[1]MONE(M)CAPARD'!M237","v":8.3089501693275309},{"$f":"'[1]MONE(M)CAPARD'!N237","v":4.887591588169232},{"$f":"'[1]MONE(M)CAPARD'!O237","v":18.583298008171596},{"$f":"'[1]MONE(M)CAPARD'!P237","v":0.14399999999999138},null,null,{"$f":"'[1]MONE(M)CAPARD'!Q237","v":11.52},{"$f":"'[1]MONE(M)CAPARD'!R237","v":9.58},{"$f":"'[1]MONE(M)CAPARD'!S237","v":8.129999999999999},{"$f":"'[1]MONE(M)CAPARD'!T237","v":10.7},{"$f":"'[1]MONE(M)CAPARD'!U237","v":12.63},{"$f":"'[1]MONE(M)CAPARD'!V237","v":8.9700000000000006},{"$f":"'[1]MONE(M)CAPARD'!W237","v":6.92},null,null,{"$f":"'[1]MONE(M)CAPARD'!AS237","v":10},{"$f":"'[1]MONE(M)CAPARD'!AT237","v":"n.a."},{"$f":"'[1]MONE(M)CAPARD'!AU237","v":7.25},{"$f":"'[1]MONE(M)CAPARD'!AV237","v":7.75},{"$f":"'[1]MONE(M)CAPARD'!AW237","v":"n.a."},{"$f":"'[1]MONE(M)CAPARD'!AX237","v":9.5},{"$f":"'[1]MONE(M)CAPARD'!AY237","v":"n.a."},null,null,{"$f":"+'Datos_Regional (M)'!CF230","v":33.873684582043808},{"$f":"+'Datos_Regional (M)'!CG230","v":4.4147711261212752},{"$f":"+'Datos_Regional (M)'!CH230","v":11.221711450122829},{"$f":"+'Datos_Regional (M)'!CI230","v":10.406254330647702},{"$f":"+'Datos_Regional (M)'!CJ230","v":11.58457913730382},{"$f":"+'Datos_Regional (M)'!CK230","v":13.614271082474684},{"$f":"+'Datos_Regional (M)'!CL230","v":16.017035050488349},null,null,791.97305865750002,386.75666666666672,644.78333333333342,236.08202375333335,229.25394011892786,562.29166666666663,903.92448191666665,2851.1406891964284,3755.0651711130945,null,null,1281.0406608666667,818.13916666666671,1212.208333333333,734.45614720833328,434.19166666666661,1332.7416666666666,1505.5099901666665,5812.7776414083319,7318.2876315749991,null,null,-2961.6369522119044,-3563.2224604619041,null,null,{"$f":"'[1]EXT Comercio(M)'!C237","v":607.92344561000027},{"$f":"'[1]EXT Comercio(M)'!D237","v":285.69000000000051},{"$f":"'[1]EXT Comercio(M)'!E237","v":537.70000000000027},{"$f":"'[1]EXT Comercio(M)'!F237","v":189.83919762999994},{"$f":"'[1]EXT Comercio(M)'!G237","v":174.45071458442939},{"$f":"'[1]EXT Comercio(M)'!H237","v":449.06660000000011},{"$f":"'[1]EXT Comercio(M)'!I237","v":606.20794499999988},{"$f":"'[1]EXT Comercio(M)'!K237","v":2244.6699578244297},{"$f":"'[1]EXT Comercio(M)'!L237","v":2850.8779028244317},null,null,{"$f":"'[1]EXT Comercio(M)'!AG237","v":1043.6441553599998},{"$f":"'[1]EXT Comercio(M)'!AH237","v":673.63999999999942},{"$f":"'[1]EXT Comercio(M)'!AI237","v":959.29999999999973},{"$f":"'[1]EXT Comercio(M)'!AJ237","v":577.19839142000092},{"$f":"'[1]EXT Comercio(M)'!AK237","v":340.60000000000036},{"$f":"'[1]EXT Comercio(M)'!AL237","v":1010.6999999999998},{"$f":"'[1]EXT Comercio(M)'!AM237","v":1305.2822669999994},{"$f":"'[1]EXT Comercio(M)'!AO237","v":4605.0825467799878},{"$f":"'[1]EXT Comercio(M)'!AP237","v":5910.3648137799901},null,null,{"$f":"'[1]EXT Comercio(M)'!$BS237","v":-2360.412588955558},{"$f":"'[1]EXT Comercio(M)'!$BT237","v":-3059.4869109555511}]
[null,2009,"Enero",{"$f":"'[1]REAL IPC(M)'!AD238","v":13.500969550722061},{"$f":"'[1]REAL IPC(M)'!AE238","v":3.812897176789261},{"$f":"'[1]REAL IPC(M)'!AF238","v":7.8813358597821086},{"$f":"'[1]REAL IPC(M)'!AG238","v":10.069259456579651},{"$f":"'[1]REAL IPC(M)'!AH238","v":12.456215292609993},{"$f":"'[1]REAL IPC(M)'!AI238","v":3.6797465430184007},{"$f":"'[1]REAL IPC(M)'!AJ238","v":4.9393414211438307},null,null,{"$f":"'[1]REAL IMAE(M)'!AG238","v":-4.4241155466736863},{"$f":"'[1]REAL IMAE(M)'!AH238","v":-2.1858466660822451},{"$f":"'[1]REAL IMAE(M)'!AI238","v":0.19227941279127808},{"$f":"'[1]REAL IMAE(M)'!AJ238","v":-0.63788694223643827},{"$f":"'[1]REAL IMAE(M)'!AK238","v":-1.843832465867407},{"$f":"'[1]REAL IMAE(M)'!AL238","v":-2.4750926118322254},{"$f":"'[1]REAL IMAE(M)'!AM238","v":3.1417542354707186},null,null,{"$f":"'[1]EXT ITCER(M)'!C238","v":88.222385810848763},{"$f":"'[1]EXT ITCER(M)'!D238","v":90.013710007982183},{"$f":"'[1]EXT ITCER(M)'!E238","v":67.683600620414012},{"$f":"'[1]EXT ITCER(M)'!F238","v":80.782770680767158},{"$f":"'[1]EXT ITCER(M)'!G238","v":91.952790057600865},{"$f":"'[1]EXT ITCER(M)'!H238","v":95.229575316712598},{"$f":"'[1]EXT ITCER(M)'!I238","v":98.591133216936385},null,null,{"$f":"'[1]EXT TC(M)'!J238","v":11.463687442321563},{"$f":"'[1]EXT TC(M)'!K238","v":0},{"$f":"'[1]EXT TC(M)'!L238","v":1.9559590130220801},{"$f":"'[1]EXT TC(M)'!M238","v":0},{"$f":"'[1]EXT TC(M)'!N238","v":5.3597905029247777},{"$f":"'[1]EXT TC(M)'!O238","v":4.7761945670527739},{"$f":"'[1]EXT TC(M)'!P238","v":0},null,null,{"$f":"'[1]EXT RIN(M)'!C238","v":3844.11383252},{"$f":"'[1]EXT RIN(M)'!D238","v":2370.6999999999998},{"$f":"'[1]EXT RIN(M)'!E238","v":4758.5618823800005},{"$f":"'[1]EXT RIN(M)'!F238","v":2421.723321083191},{"$f":"'[1]EXT RIN(M)'!G238","v":973.1},{"$f":"'[1]EXT RIN(M)'!H238","v":2085.4},{"$f":"'[1]EXT RIN(M)'!I238","v":2569.2381637559597},null,null,{"$f":"'[1]EXT RIN(M)'!P238","v":66.651464268674445},{"$f":"'[1]EXT RIN(M)'!Q238","v":87.59279970707567},{"$f":"'[1]EXT RIN(M)'!R238","v":97.995100378001837},{"$f":"'[1]EXT RIN(M)'!S238","v":103.63297445819109},{"$f":"'[1]EXT RIN(M)'!T238","v":94.678187920274411},{"$f":"'[1]EXT RIN(M)'!U238","v":44.22873124460768},{"$f":"'[1]EXT RIN(M)'!V238","v":249.31663585089194},null,null,{"$f":"+'[1]MONE(M)CAPARD'!AE238","v":-1.9832161431150888},{"$f":"'[1]MONE(M)CAPARD'!AF238","v":1.4324836929252265},{"$f":"'[1]MONE(M)CAPARD'!AG238","v":-2.2073659366595448},{"$f":"'[1]MONE(M)CAPARD'!AH238","v":1.908562439496609},{"$f":"'[1]MONE(M)CAPARD'!AI238","v":1.4002658408947768},{"$f":"'[1]MONE(M)CAPARD'!AJ238","v":9.2113009294626771},{"$f":"'[1]MONE(M)CAPARD'!AK238","v":-1.3334764657307852},null,null,{"$f":"'[1]MONE(M)CAPARD'!AL238","v":4.07},{"$f":"'[1]MONE(M)CAPARD'!AM238","v":5.3},{"$f":"'[1]MONE(M)CAPARD'!AN238","v":3.85},{"$f":"'[1]MONE(M)CAPARD'!AO238","v":4.91},{"$f":"'[1]MONE(M)CAPARD'!AP238","v":6.69},{"$f":"'[1]MONE(M)CAPARD'!AQ238","v":2.92},{"$f":"'[1]MONE(M)CAPARD'!AR238","v":3.54},null,null,{"$f":"'[1]MONE(M)CAPARD'!J238","v":6.4924823800600384},{"$f":"'[1]MONE(M)CAPARD'!K238","v":5.5360200702458489},{"$f":"'[1]MONE(M)CAPARD'!L238","v":5.5882364564465528},{"$f":"'[1]MONE(M)CAPARD'!M238","v":8.6406873184898298},{"$f":"'[1]MONE(M)CAPARD'!N238","v":6.5438254774697704},{"$f":"'[1]MONE(M)CAPARD'!O238","v":20.727532785841593},{"$f":"'[1]MONE(M)CAPARD'!P238","v":2.2114285714285877},null,null,{"$f":"'[1]MONE(M)CAPARD'!Q238","v":11.62},{"$f":"'[1]MONE(M)CAPARD'!R238","v":9.56},{"$f":"'[1]MONE(M)CAPARD'!S238","v":8.17},{"$f":"'[1]MONE(M)CAPARD'!T238","v":10.7},{"$f":"'[1]MONE(M)CAPARD'!U238","v":12.79},{"$f":"'[1]MONE(M)CAPARD'!V238","v":9.01},{"$f":"'[1]MONE(M)CAPARD'!W238","v":7.26},null,null,{"$f":"'[1]MONE(M)CAPARD'!AS238","v":10},{"$f":"'[1]MONE(M)CAPARD'!AT238","v":"n.a."},{"$f":"'[1]MONE(M)CAPARD'!AU238","v":7},{"$f":"'[1]MONE(M)CAPARD'!AV238","v":6.75},{"$f":"'[1]MONE(M)CAPARD'!AW238","v":"n.a."},{"$f":"'[1]MONE(M)CAPARD'!AX238","v":8.5},{"$f":"'[1]MONE(M)CAPARD'!AY238","v":"n.a."},null,null,{"$f":"+'Datos_Regional (M)'!CF231","v":32.017584369039788},{"$f":"+'Datos_Regional (M)'!CG231","v":3.2480113609204775},{"$f":"+'Datos_Regional (M)'!CH231","v":7.8572985171677212},{"$f":"+'Datos_Regional (M)'!CI231","v":9.6690389001451891},{"$f":"+'Datos_Regional (M)'!CJ231","v":8.6436038048413053},{"$f":"+'Datos_Regional (M)'!CK231","v":9.5296777957637033},{"$f":"+'Datos_Regional (M)'!CL231","v":15.920851067399155},null,null,783.35939617500014,385.42750000000007,644.37500000000011,233.00087980916669,226.43865159723478,549.8288,891.69803058333343,2822.4302275814021,3714.1282581647351,null,null,1245.6694817091666,801.00500000000011,1186.7249999999995,721.17134566749985,428.02500000000003,1306.4416666666664,1494.9247555000002,5689.0374940433321,7183.9622495433323,null,null,-2866.607266461931,-3469.8339913785967,null,null,{"$f":"'[1]EXT Comercio(M)'!C238","v":619.11959167999998},{"$f":"'[1]EXT Comercio(M)'!D238","v":316.81},{"$f":"'[1]EXT Comercio(M)'!E238","v":588.70000000000005},{"$f":"'[1]EXT Comercio(M)'!F238","v":178.15591174000002},{"$f":"'[1]EXT Comercio(M)'!G238","v":185.35057597877471},{"$f":"'[1]EXT Comercio(M)'!H238","v":365.6},{"$f":"'[1]EXT Comercio(M)'!I238","v":617.33158700000013},{"$f":"'[1]EXT Comercio(M)'!K238","v":2253.7360793987746},{"$f":"'[1]EXT Comercio(M)'!L238","v":2871.0676663987751},null,null,{"$f":"'[1]EXT Comercio(M)'!AG238","v":858.73768276999999},{"$f":"'[1]EXT Comercio(M)'!AH238","v":588.17999999999995},{"$f":"'[1]EXT Comercio(M)'!AI238","v":841.3},{"$f":"'[1]EXT Comercio(M)'!AJ238","v":494.99486274999998},{"$f":"'[1]EXT Comercio(M)'!AK238","v":326.3},{"$f":"'[1]EXT Comercio(M)'!AL238","v":916.39999999999986},{"$f":"'[1]EXT Comercio(M)'!AM238","v":1239.3440539999997},{"$f":"'[1]EXT Comercio(M)'!AO238","v":4025.9125455199992},{"$f":"'[1]EXT Comercio(M)'!AP238","v":5265.2565995199984},null,null,{"$f":"'[1]EXT Comercio(M)'!$BS238","v":-1772.1764661212246},{"$f":"'[1]EXT Comercio(M)'!$BT238","v":-2394.1889331212242}]
[null,null,"Febrero",{"$f":"'[1]REAL IPC(M)'!AD239","v":12.748404472680134},{"$f":"'[1]REAL IPC(M)'!AE239","v":2.8627532038032202},{"$f":"'[1]REAL IPC(M)'!AF239","v":6.4980887974125228},{"$f":"'[1]REAL IPC(M)'!AG239","v":9.7522403795466541},{"$f":"'[1]REAL IPC(M)'!AH239","v":10.777340808300545},{"$f":"'[1]REAL IPC(M)'!AI239","v":4.0309002674061665},{"$f":"'[1]REAL IPC(M)'!AJ239","v":4.2918454935622314},null,null,{"$f":"'[1]REAL IMAE(M)'!AG239","v":-4.6466940513686819},{"$f":"'[1]REAL IMAE(M)'!AH239","v":-2.1789760830065599},{"$f":"'[1]REAL IMAE(M)'!AI239","v":-0.47814111231478335},{"$f":"'[1]REAL IMAE(M)'!AJ239","v":-2.9359716581267472},{"$f":"'[1]REAL IMAE(M)'!AK239","v":-2.7270842236197113},{"$f":"'[1]REAL IMAE(M)'!AL239","v":-2.639024901663455},{"$f":"'[1]REAL IMAE(M)'!AM239","v":1.8355437665782535},null,null,{"$f":"'[1]EXT ITCER(M)'!C239","v":89.189369431549494},{"$f":"'[1]EXT ITCER(M)'!D239","v":90.450521259579119},{"$f":"'[1]EXT ITCER(M)'!E239","v":69.093439101881359},{"$f":"'[1]EXT ITCER(M)'!F239","v":80.453964507810241},{"$f":"'[1]EXT ITCER(M)'!G239","v":92.135215001916393},{"$f":"'[1]EXT ITCER(M)'!H239","v":95.793654548461262},{"$f":"'[1]EXT ITCER(M)'!I239","v":98.624505061824266},null,null,{"$f":"'[1]EXT TC(M)'!J239","v":13.024229957862781},{"$f":"'[1]EXT TC(M)'!K239","v":0},{"$f":"'[1]EXT TC(M)'!L239","v":2.8339270724055421},{"$f":"'[1]EXT TC(M)'!M239","v":0},{"$f":"'[1]EXT TC(M)'!N239","v":5.2770847462501571},{"$f":"'[1]EXT TC(M)'!O239","v":5.094223630388},{"$f":"'[1]EXT TC(M)'!P239","v":0},null,null,{"$f":"'[1]EXT RIN(M)'!C239","v":4077.23960304},{"$f":"'[1]EXT RIN(M)'!D239","v":2411.1999999999998},{"$f":"'[1]EXT RIN(M)'!E239","v":4742.3425540299995},{"$f":"'[1]EXT RIN(M)'!F239","v":2437.42831220364},{"$f":"'[1]EXT RIN(M)'!G239","v":971.4},{"$f":"'[1]EXT RIN(M)'!H239","v":2095.6},{"$f":"'[1]EXT RIN(M)'!I239","v":2527.6139956297602},null,null,{"$f":"'[1]EXT RIN(M)'!P239","v":70.609184475371734},{"$f":"'[1]EXT RIN(M)'!Q239","v":87.957979198988497},{"$f":"'[1]EXT RIN(M)'!R239","v":101.78057197975461},{"$f":"'[1]EXT RIN(M)'!S239","v":102.71484167979953},{"$f":"'[1]EXT RIN(M)'!T239","v":91.297261711037422},{"$f":"'[1]EXT RIN(M)'!U239","v":44.813694700109977},{"$f":"'[1]EXT RIN(M)'!V239","v":240.08142219102305},null,null,{"$f":"+'[1]MONE(M)CAPARD'!AE239","v":-0.66378276143276027},{"$f":"'[1]MONE(M)CAPARD'!AF239","v":2.2527559529790051},{"$f":"'[1]MONE(M)CAPARD'!AG239","v":-0.890240198785199},{"$f":"'[1]MONE(M)CAPARD'!AH239","v":2.2029250720461082},{"$f":"'[1]MONE(M)CAPARD'!AI239","v":1.9819024512420731},{"$f":"'[1]MONE(M)CAPARD'!AJ239","v":7.8333453922315242},{"$f":"'[1]MONE(M)CAPARD'!AK239","v":-0.70172839506172802},null,null,{"$f":"'[1]MONE(M)CAPARD'!AL239","v":4.7650000000000006},{"$f":"'[1]MONE(M)CAPARD'!AM239","v":5.18},{"$f":"'[1]MONE(M)CAPARD'!AN239","v":3.84},{"$f":"'[1]MONE(M)CAPARD'!AO239","v":4.91},{"$f":"'[1]MONE(M)CAPARD'!AP239","v":6.74},{"$f":"'[1]MONE(M)CAPARD'!AQ239","v":2.96},{"$f":"'[1]MONE(M)CAPARD'!AR239","v":3.56},null,null,{"$f":"'[1]MONE(M)CAPARD'!J239","v":7.8684887549513203},{"$f":"'[1]MONE(M)CAPARD'!K239","v":6.5205787199839289},{"$f":"'[1]MONE(M)CAPARD'!L239","v":6.9972252898950886},{"$f":"'[1]MONE(M)CAPARD'!M239","v":9.2825072046109511},{"$f":"'[1]MONE(M)CAPARD'!N239","v":9.1475304866755458},{"$f":"'[1]MONE(M)CAPARD'!O239","v":18.618602437166786},{"$f":"'[1]MONE(M)CAPARD'!P239","v":3.028189300411523},null,null,{"$f":"'[1]MONE(M)CAPARD'!Q239","v":11.7},{"$f":"'[1]MONE(M)CAPARD'!R239","v":9.57},{"$f":"'[1]MONE(M)CAPARD'!S239","v":8.2100000000000009},{"$f":"'[1]MONE(M)CAPARD'!T239","v":10.53},{"$f":"'[1]MONE(M)CAPARD'!U239","v":13.12},{"$f":"'[1]MONE(M)CAPARD'!V239","v":9.4499999999999993},{"$f":"'[1]MONE(M)CAPARD'!W239","v":7.45},null,null,{"$f":"'[1]MONE(M)CAPARD'!AS239","v":10},{"$f":"'[1]MONE(M)CAPARD'!AT239","v":"n.a."},{"$f":"'[1]MONE(M)CAPARD'!AU239","v":6.5},{"$f":"'[1]MONE(M)CAPARD'!AV239","v":6.75},{"$f":"'[1]MONE(M)CAPARD'!AW239","v":"n.a."},{"$f":"'[1]MONE(M)CAPARD'!AX239","v":6},{"$f":"'[1]MONE(M)CAPARD'!AY239","v":"n.a."},null,null,{"$f":"+'Datos_Regional (M)'!CF232","v":30.114857246898019},{"$f":"+'Datos_Regional (M)'!CG232","v":2.0790668190203254},{"$f":"+'Datos_Regional (M)'!CH232","v":7.2574770262722632},{"$f":"+'Datos_Regional (M)'!CI232","v":7.5942103229184488},{"$f":"+'Datos_Regional (M)'!CJ232","v":5.7227148663661298},{"$f":"+'Datos_Regional (M)'!CK232","v":8.1191016349958733},{"$f":"+'Datos_Regional (M)'!CL232","v":14.695887194110057},null,null,769.86674730416678,379.80166666666679,641.05833333333328,227.64976429666669,225.04825621489977,540.90442500000006,883.01920299999995,2784.3291928157337,3667.3483958157326,null,null,1211.1044516741665,783.21583333333353,1162.5666666666664,707.17295374749995,422.05,1270.4999999999998,1479.7207896666666,5556.6099054216647,7036.3306950883316,null,null,-2772.2807126059324,-3368.9822992725985,null,null,{"$f":"'[1]EXT Comercio(M)'!C239","v":686.33440253999993},{"$f":"'[1]EXT Comercio(M)'!D239","v":320.80000000000013},{"$f":"'[1]EXT Comercio(M)'!E239","v":602.5},{"$f":"'[1]EXT Comercio(M)'!F239","v":197.61613303999997},{"$f":"'[1]EXT Comercio(M)'!G239","v":213.6460871653735},{"$f":"'[1]EXT Comercio(M)'!H239","v":422.50000000000006},{"$f":"'[1]EXT Comercio(M)'!I239","v":690.54997300000002},{"$f":"'[1]EXT Comercio(M)'!K239","v":2443.3966227453748},{"$f":"'[1]EXT Comercio(M)'!L239","v":3133.946595745374},null,null,{"$f":"'[1]EXT Comercio(M)'!AG239","v":831.26519084999995},{"$f":"'[1]EXT Comercio(M)'!AH239","v":583.85},{"$f":"'[1]EXT Comercio(M)'!AI239","v":886.3},{"$f":"'[1]EXT Comercio(M)'!AJ239","v":497.57274629},{"$f":"'[1]EXT Comercio(M)'!AK239","v":318.7},{"$f":"'[1]EXT Comercio(M)'!AL239","v":800.8},{"$f":"'[1]EXT Comercio(M)'!AM239","v":1087.8916639999998},{"$f":"'[1]EXT Comercio(M)'!AO239","v":3918.4879371400002},{"$f":"'[1]EXT Comercio(M)'!AP239","v":5006.3796011400009},null,null,{"$f":"'[1]EXT Comercio(M)'!$BS239","v":-1475.0913143946264},{"$f":"'[1]EXT Comercio(M)'!$BT239","v":-1872.433005394626}]
[null,null,"Marzo",{"$f":"'[1]REAL IPC(M)'!AD240","v":12.321919570610815},{"$f":"'[1]REAL IPC(M)'!AE240","v":2.5535842477694537},{"$f":"'[1]REAL IPC(M)'!AF240","v":4.998546934030812},{"$f":"'[1]REAL IPC(M)'!AG240","v":8.7774294670846302},{"$f":"'[1]REAL IPC(M)'!AH240","v":8.4582441113490336},{"$f":"'[1]REAL IPC(M)'!AI240","v":2.4408452075692333},{"$f":"'[1]REAL IPC(M)'!AJ240","v":3.7319762510601997},null,null,{"$f":"'[1]REAL IMAE(M)'!AG240","v":-4.5780716214899435},{"$f":"'[1]REAL IMAE(M)'!AH240","v":-3.8444307292626259},{"$f":"'[1]REAL IMAE(M)'!AI240","v":-0.79906532804271191},{"$f":"'[1]REAL IMAE(M)'!AJ240","v":-3.1411332665294105},{"$f":"'[1]REAL IMAE(M)'!AK240","v":-3.3670339539644671},{"$f":"'[1]REAL IMAE(M)'!AL240","v":-2.7198969721559796},{"$f":"'[1]REAL IMAE(M)'!AM240","v":0.9473185621809439},null,null,{"$f":"'[1]EXT ITCER(M)'!C240","v":89.556353415886605},{"$f":"'[1]EXT ITCER(M)'!D240","v":89.936523271824868},{"$f":"'[1]EXT ITCER(M)'!E240","v":70.346867087590738},{"$f":"'[1]EXT ITCER(M)'!F240","v":80.374533687911139},{"$f":"'[1]EXT ITCER(M)'!G240","v":92.675907481206622},{"$f":"'[1]EXT ITCER(M)'!H240","v":95.84313475507453},{"$f":"'[1]EXT ITCER(M)'!I240","v":97.882640029576223},null,null,{"$f":"'[1]EXT TC(M)'!J240","v":13.882595586491403},{"$f":"'[1]EXT TC(M)'!K240","v":0},{"$f":"'[1]EXT TC(M)'!L240","v":5.7045414138887862},{"$f":"'[1]EXT TC(M)'!M240","v":-1.0054506006183345E-2},{"$f":"'[1]EXT TC(M)'!N240","v":5.0614876593412648},{"$f":"'[1]EXT TC(M)'!O240","v":5.1596696632062482},{"$f":"'[1]EXT TC(M)'!P240","v":0},null,null,{"$f":"'[1]EXT RIN(M)'!C240","v":4167.2698822599996},{"$f":"'[1]EXT RIN(M)'!D240","v":2516.1999999999998},{"$f":"'[1]EXT RIN(M)'!E240","v":5029.7989562299999},{"$f":"'[1]EXT RIN(M)'!F240","v":2552.9074220040643},{"$f":"'[1]EXT RIN(M)'!G240","v":970.2},{"$f":"'[1]EXT RIN(M)'!H240","v":2103.8000000000002},{"$f":"'[1]EXT RIN(M)'!I240","v":2855.6692107751196},null,null,{"$f":"'[1]EXT RIN(M)'!P240","v":71.139594237171565},{"$f":"'[1]EXT RIN(M)'!Q240","v":91.509229477886066},{"$f":"'[1]EXT RIN(M)'!R240","v":106.08711876102772},{"$f":"'[1]EXT RIN(M)'!S240","v":103.05592734085489},{"$f":"'[1]EXT RIN(M)'!T240","v":89.652756602972303},{"$f":"'[1]EXT RIN(M)'!U240","v":44.545407375055198},{"$f":"'[1]EXT RIN(M)'!V240","v":280.3169105965531},null,null,{"$f":"+'[1]MONE(M)CAPARD'!AE240","v":-0.50917894992996404},{"$f":"'[1]MONE(M)CAPARD'!AF240","v":2.4635080000000058},{"$f":"'[1]MONE(M)CAPARD'!AG240","v":0.57282037088291582},{"$f":"'[1]MONE(M)CAPARD'!AH240","v":2.8797982708933803},{"$f":"'[1]MONE(M)CAPARD'!AI240","v":3.8620235753552814},{"$f":"'[1]MONE(M)CAPARD'!AJ240","v":8.5309280441050479},{"$f":"'[1]MONE(M)CAPARD'!AK240","v":-0.15614881439082229},null,null,{"$f":"'[1]MONE(M)CAPARD'!AL240","v":4.3550000000000004},{"$f":"'[1]MONE(M)CAPARD'!AM240","v":5.08},{"$f":"'[1]MONE(M)CAPARD'!AN240","v":3.91},{"$f":"'[1]MONE(M)CAPARD'!AO240","v":4.93},{"$f":"'[1]MONE(M)CAPARD'!AP240","v":6.73},{"$f":"'[1]MONE(M)CAPARD'!AQ240","v":2.83},{"$f":"'[1]MONE(M)CAPARD'!AR240","v":3.57},null,null,{"$f":"'[1]MONE(M)CAPARD'!J240","v":8.6876011972487674},{"$f":"'[1]MONE(M)CAPARD'!K240","v":6.9392170000000055},{"$f":"'[1]MONE(M)CAPARD'!L240","v":8.4110240797121438},{"$f":"'[1]MONE(M)CAPARD'!M240","v":10.372161383285309},{"$f":"'[1]MONE(M)CAPARD'!N240","v":10.884963986858031},{"$f":"'[1]MONE(M)CAPARD'!O240","v":17.843619657171804},{"$f":"'[1]MONE(M)CAPARD'!P240","v":3.3625347506132663},null,null,{"$f":"'[1]MONE(M)CAPARD'!Q240","v":11.71},{"$f":"'[1]MONE(M)CAPARD'!R240","v":9.67},{"$f":"'[1]MONE(M)CAPARD'!S240","v":8.24},{"$f":"'[1]MONE(M)CAPARD'!T240","v":10.36},{"$f":"'[1]MONE(M)CAPARD'!U240","v":12.56},{"$f":"'[1]MONE(M)CAPARD'!V240","v":8.7799999999999994},{"$f":"'[1]MONE(M)CAPARD'!W240","v":7.22},null,null,{"$f":"'[1]MONE(M)CAPARD'!AS240","v":10},{"$f":"'[1]MONE(M)CAPARD'!AT240","v":"n.a."},{"$f":"'[1]MONE(M)CAPARD'!AU240","v":6.25},{"$f":"'[1]MONE(M)CAPARD'!AV240","v":5.75},{"$f":"'[1]MONE(M)CAPARD'!AW240","v":"n.a."},{"$f":"'[1]MONE(M)CAPARD'!AX240","v":6},{"$f":"'[1]MONE(M)CAPARD'!AY240","v":"n.a."},null,null,{"$f":"+'Datos_Regional (M)'!CF233","v":27.25950451576702},{"$f":"+'Datos_Regional (M)'!CG233","v":0.74743671383639132},{"$f":"+'Datos_Regional (M)'!CH233","v":7.5502774910768844},{"$f":"+'Datos_Regional (M)'!CI233","v":6.3568584289452001},{"$f":"+'Datos_Regional (M)'!CJ233","v":4.3063380781609206},{"$f":"+'Datos_Regional (M)'!CK233","v":5.6221184625666165},{"$f":"+'Datos_Regional (M)'!CL233","v":13.850052149296799},null,null,764.49113144166677,379.08750000000003,641.69999999999993,223.7423315325,224.02118599056396,529.05061666666666,892.42940558333339,2762.0927656313979,3654.5221712147304,null,null,1191.0609915091666,771.69333333333327,1140.6666666666663,694.05017595083336,415.38333333333327,1244.0916666666665,1497.9382996666664,5456.9461674599988,6954.8844671266661,null,null,-2694.8534018286018,-3300.3622959119343,null,null,{"$f":"'[1]EXT Comercio(M)'!C240","v":772.56291193000015},{"$f":"'[1]EXT Comercio(M)'!D240","v":347.56999999999994},{"$f":"'[1]EXT Comercio(M)'!E240","v":650.30000000000007},{"$f":"'[1]EXT Comercio(M)'!F240","v":234.90238296999996},{"$f":"'[1]EXT Comercio(M)'!G240","v":240.16336228904541},{"$f":"'[1]EXT Comercio(M)'!H240","v":484.39999999999992},{"$f":"'[1]EXT Comercio(M)'!I240","v":1020.143571},{"$f":"'[1]EXT Comercio(M)'!K240","v":2729.8986571890446},{"$f":"'[1]EXT Comercio(M)'!L240","v":3750.0422281890451},null,null,{"$f":"'[1]EXT Comercio(M)'!AG240","v":840.56999211000016},{"$f":"'[1]EXT Comercio(M)'!AH240","v":611.41000000000008},{"$f":"'[1]EXT Comercio(M)'!AI240","v":904.40000000000009},{"$f":"'[1]EXT Comercio(M)'!AJ240","v":525.5821876},{"$f":"'[1]EXT Comercio(M)'!AK240","v":343.19999999999993},{"$f":"'[1]EXT Comercio(M)'!AL240","v":1013.5999999999998},{"$f":"'[1]EXT Comercio(M)'!AM240","v":1375.4212599999996},{"$f":"'[1]EXT Comercio(M)'!AO240","v":4238.7621797100001},{"$f":"'[1]EXT Comercio(M)'!AP240","v":5614.1834397099992},null,null,{"$f":"'[1]EXT Comercio(M)'!$BS240","v":-1508.8635225209546},{"$f":"'[1]EXT Comercio(M)'!$BT240","v":-1864.1412115209541}]
[null,null,"Abril",{"$f":"'[1]REAL IPC(M)'!AD241","v":11.750730438363346},{"$f":"'[1]REAL IPC(M)'!AE241","v":1.7900732302685161},{"$f":"'[1]REAL IPC(M)'!AF241","v":3.6226069012954087},{"$f":"'[1]REAL IPC(M)'!AG241","v":8.0703569580962196},{"$f":"'[1]REAL IPC(M)'!AH241","v":6.8805848903330622},{"$f":"'[1]REAL IPC(M)'!AI241","v":0.69453294252585696},{"$f":"'[1]REAL IPC(M)'!AJ241","v":3.7162162162161949},null,null,{"$f":"'[1]REAL IMAE(M)'!AG241","v":-4.3925625121889498},{"$f":"'[1]REAL IMAE(M)'!AH241","v":-3.6640503330193792},{"$f":"'[1]REAL IMAE(M)'!AI241","v":-0.79767925950456131},{"$f":"'[1]REAL IMAE(M)'!AJ241","v":-4.5254748983045392},{"$f":"'[1]REAL IMAE(M)'!AK241","v":-3.7785743866118398},{"$f":"'[1]REAL IMAE(M)'!AL241","v":-2.3636624128497332},{"$f":"'[1]REAL IMAE(M)'!AM241","v":0.40271966527197189},null,null,{"$f":"'[1]EXT ITCER(M)'!C241","v":90.049918334322939},{"$f":"'[1]EXT ITCER(M)'!D241","v":89.955132666151599},{"$f":"'[1]EXT ITCER(M)'!E241","v":70.500302130240229},{"$f":"'[1]EXT ITCER(M)'!F241","v":80.185880375602153},{"$f":"'[1]EXT ITCER(M)'!G241","v":92.751185926036797},{"$f":"'[1]EXT ITCER(M)'!H241","v":96.229335767194669},{"$f":"'[1]EXT ITCER(M)'!I241","v":97.582269606407024},null,null,{"$f":"'[1]EXT TC(M)'!J241","v":15.026010444888142},{"$f":"'[1]EXT TC(M)'!K241","v":0},{"$f":"'[1]EXT TC(M)'!L241","v":7.2923493173073091},{"$f":"'[1]EXT TC(M)'!M241","v":-4.4964980215379084E-2},{"$f":"'[1]EXT TC(M)'!N241","v":4.6100337417267552},{"$f":"'[1]EXT TC(M)'!O241","v":5.289515602866075},{"$f":"'[1]EXT TC(M)'!P241","v":0},null,null,{"$f":"'[1]EXT RIN(M)'!C241","v":4270.68760372},{"$f":"'[1]EXT RIN(M)'!D241","v":2673.8},{"$f":"'[1]EXT RIN(M)'!E241","v":5001.00000507},{"$f":"'[1]EXT RIN(M)'!F241","v":2589.0663725737131},{"$f":"'[1]EXT RIN(M)'!G241","v":1012.8},{"$f":"'[1]EXT RIN(M)'!H241","v":2038.9},{"$f":"'[1]EXT RIN(M)'!I241","v":2843.7327772075},null,null,{"$f":"'[1]EXT RIN(M)'!P241","v":74.44841969993783},{"$f":"'[1]EXT RIN(M)'!Q241","v":92.459780099396525},{"$f":"'[1]EXT RIN(M)'!R241","v":104.57828706650527},{"$f":"'[1]EXT RIN(M)'!S241","v":101.64577796076715},{"$f":"'[1]EXT RIN(M)'!T241","v":91.050189092455327},{"$f":"'[1]EXT RIN(M)'!U241","v":43.989528511517797},{"$f":"'[1]EXT RIN(M)'!V241","v":277.92363104019569},null,null,{"$f":"+'[1]MONE(M)CAPARD'!AE241","v":-0.22436581611575057},{"$f":"'[1]MONE(M)CAPARD'!AF241","v":3.1731254996003142},{"$f":"'[1]MONE(M)CAPARD'!AG241","v":1.9468658037393682},{"$f":"'[1]MONE(M)CAPARD'!AH241","v":2.9699569171852596},{"$f":"'[1]MONE(M)CAPARD'!AI241","v":5.8133313868211136},{"$f":"'[1]MONE(M)CAPARD'!AJ241","v":8.3574220084793467},{"$f":"'[1]MONE(M)CAPARD'!AK241","v":-6.3843648208448622E-2},null,null,{"$f":"'[1]MONE(M)CAPARD'!AL241","v":3.88},{"$f":"'[1]MONE(M)CAPARD'!AM241","v":5.0199999999999996},{"$f":"'[1]MONE(M)CAPARD'!AN241","v":3.94},{"$f":"'[1]MONE(M)CAPARD'!AO241","v":4.8899999999999997},{"$f":"'[1]MONE(M)CAPARD'!AP241","v":6.87},{"$f":"'[1]MONE(M)CAPARD'!AQ241","v":2.86},{"$f":"'[1]MONE(M)CAPARD'!AR241","v":3.65},null,null,{"$f":"'[1]MONE(M)CAPARD'!J241","v":9.2699792842520683},{"$f":"'[1]MONE(M)CAPARD'!K241","v":7.6431095123900832},{"$f":"'[1]MONE(M)CAPARD'!L241","v":9.8698473282442922},{"$f":"'[1]MONE(M)CAPARD'!M241","v":10.983255146002877},{"$f":"'[1]MONE(M)CAPARD'!N241","v":11.93055755616375},{"$f":"'[1]MONE(M)CAPARD'!O241","v":18.099758273745433},{"$f":"'[1]MONE(M)CAPARD'!P241","v":3.1082736156352011},null,null,{"$f":"'[1]MONE(M)CAPARD'!Q241","v":12.37},{"$f":"'[1]MONE(M)CAPARD'!R241","v":9.57},{"$f":"'[1]MONE(M)CAPARD'!S241","v":8.2199999999999989},{"$f":"'[1]MONE(M)CAPARD'!T241","v":10.42},{"$f":"'[1]MONE(M)CAPARD'!U241","v":13.39},{"$f":"'[1]MONE(M)CAPARD'!V241","v":8.86},{"$f":"'[1]MONE(M)CAPARD'!W241","v":6.94},null,null,{"$f":"'[1]MONE(M)CAPARD'!AS241","v":10},{"$f":"'[1]MONE(M)CAPARD'!AT241","v":"n.a."},{"$f":"'[1]MONE(M)CAPARD'!AU241","v":5.75},{"$f":"'[1]MONE(M)CAPARD'!AV241","v":4.5},{"$f":"'[1]MONE(M)CAPARD'!AW241","v":"n.a."},{"$f":"'[1]MONE(M)CAPARD'!AX241","v":5},{"$f":"'[1]MONE(M)CAPARD'!AY241","v":"n.a."},null,null,{"$f":"+'Datos_Regional (M)'!CF234","v":26.034349863958163},{"$f":"+'Datos_Regional (M)'!CG234","v":-0.52989003840799853},{"$f":"+'Datos_Regional (M)'!CH234","v":7.2769292530270757},{"$f":"+'Datos_Regional (M)'!CI234","v":4.9064276594758205},{"$f":"+'Datos_Regional (M)'!CJ234","v":1.2811321421830835},{"$f":"+'Datos_Regional (M)'!CK234","v":4.0878600728111669},{"$f":"+'Datos_Regional (M)'!CL234","v":12.753610935807981},null,null,751.6544517133334,369.19750000000005,634.09166666666658,218.71941284583332,219.27617480523352,516.60275833333333,889.50710041666662,2709.5419643644004,3599.049064781067,null,null,1135.8620673766666,741.26166666666677,1098.1083333333329,674.91882522083336,399.79999999999995,1210.0999999999997,1482.8013018333331,5260.0508925974991,6742.8521944308313,null,null,-2550.5089282330987,-3143.8031296497647,null,null,{"$f":"'[1]EXT Comercio(M)'!C241","v":732.95296399000017},{"$f":"'[1]EXT Comercio(M)'!D241","v":308.97000000000003},{"$f":"'[1]EXT Comercio(M)'!E241","v":632.30000000000007},{"$f":"'[1]EXT Comercio(M)'!F241","v":190.22457434},{"$f":"'[1]EXT Comercio(M)'!G241","v":204.57242029590071},{"$f":"'[1]EXT Comercio(M)'!H241","v":463.79999999999984},{"$f":"'[1]EXT Comercio(M)'!I241","v":889.8242039999999},{"$f":"'[1]EXT Comercio(M)'!K241","v":2532.8199586259016},{"$f":"'[1]EXT Comercio(M)'!L241","v":3422.6441626259002},null,null,{"$f":"'[1]EXT Comercio(M)'!AG241","v":838.82707692999975},{"$f":"'[1]EXT Comercio(M)'!AH241","v":556.77},{"$f":"'[1]EXT Comercio(M)'!AI241","v":881.09999999999957},{"$f":"'[1]EXT Comercio(M)'!AJ241","v":509.56893564000006},{"$f":"'[1]EXT Comercio(M)'!AK241","v":328.5},{"$f":"'[1]EXT Comercio(M)'!AL241","v":985.30000000000007},{"$f":"'[1]EXT Comercio(M)'!AM241","v":1112.7803410000004},{"$f":"'[1]EXT Comercio(M)'!AO241","v":4100.0660125700015},{"$f":"'[1]EXT Comercio(M)'!AP241","v":5212.846353570003},null,null,{"$f":"'[1]EXT Comercio(M)'!$BS241","v":-1567.2460539440981},{"$f":"'[1]EXT Comercio(M)'!$BT241","v":-1790.2021909440991}]
[null,null,"Mayo ",{"$f":"'[1]REAL IPC(M)'!AD242","v":9.5237291520749743},{"$f":"'[1]REAL IPC(M)'!AE242","v":0.97595331522287265},{"$f":"'[1]REAL IPC(M)'!AF242","v":2.2943037974683538},{"$f":"'[1]REAL IPC(M)'!AG242","v":6.1483739837398339},{"$f":"'[1]REAL IPC(M)'!AH242","v":4.093890776890861},{"$f":"'[1]REAL IPC(M)'!AI242","v":0.47312101101834053},{"$f":"'[1]REAL IPC(M)'!AJ242","v":2.5125628140703617},null,null,{"$f":"'[1]REAL IMAE(M)'!AG242","v":-4.1841634492736697},{"$f":"'[1]REAL IMAE(M)'!AH242","v":-1.9561771404342805},{"$f":"'[1]REAL IMAE(M)'!AI242","v":-0.48871435570184818},{"$f":"'[1]REAL IMAE(M)'!AJ242","v":-4.6805415024710157},{"$f":"'[1]REAL IMAE(M)'!AK242","v":-4.0217528478702134},{"$f":"'[1]REAL IMAE(M)'!AL242","v":-1.498756240614463},{"$f":"'[1]REAL IMAE(M)'!AM242","v":0.10917598128412163},null,null,{"$f":"'[1]EXT ITCER(M)'!C242","v":91.036733752761137},{"$f":"'[1]EXT ITCER(M)'!D242","v":89.836160918416823},{"$f":"'[1]EXT ITCER(M)'!E242","v":70.590412522625897},{"$f":"'[1]EXT ITCER(M)'!F242","v":80.30387341095819},{"$f":"'[1]EXT ITCER(M)'!G242","v":93.523237538416183},{"$f":"'[1]EXT ITCER(M)'!H242","v":96.590980430737048},{"$f":"'[1]EXT ITCER(M)'!I242","v":98.045226882605633},null,null,{"$f":"'[1]EXT TC(M)'!J242","v":12.251337850033662},{"$f":"'[1]EXT TC(M)'!K242","v":0},{"$f":"'[1]EXT TC(M)'!L242","v":8.9511446446919702},{"$f":"'[1]EXT TC(M)'!M242","v":-8.8883271085537507E-2},{"$f":"'[1]EXT TC(M)'!N242","v":4.949463199779637},{"$f":"'[1]EXT TC(M)'!O242","v":5.6948552544146995},{"$f":"'[1]EXT TC(M)'!P242","v":0},null,null,{"$f":"'[1]EXT RIN(M)'!C242","v":3900.5751640499998},{"$f":"'[1]EXT RIN(M)'!D242","v":2928.9},{"$f":"'[1]EXT RIN(M)'!E242","v":5007.5742491400006},{"$f":"'[1]EXT RIN(M)'!F242","v":2534.2079799180215},{"$f":"'[1]EXT RIN(M)'!G242","v":1020.3},{"$f":"'[1]EXT RIN(M)'!H242","v":2073},{"$f":"'[1]EXT RIN(M)'!I242","v":2750.9609279830502},null,null,{"$f":"'[1]EXT RIN(M)'!P242","v":68.946206400912146},{"$f":"'[1]EXT RIN(M)'!Q242","v":106.51126425077733},{"$f":"'[1]EXT RIN(M)'!R242","v":103.9715316319803},{"$f":"'[1]EXT RIN(M)'!S242","v":101.00720677011998},{"$f":"'[1]EXT RIN(M)'!T242","v":90.353162156206608},{"$f":"'[1]EXT RIN(M)'!U242","v":46.009365570511704},{"$f":"'[1]EXT RIN(M)'!V242","v":269.27841766847916},null,null,{"$f":"+'[1]MONE(M)CAPARD'!AE242","v":1.5761614960426324},{"$f":"'[1]MONE(M)CAPARD'!AF242","v":3.8465065763252162},{"$f":"'[1]MONE(M)CAPARD'!AG242","v":3.3195359628770311},{"$f":"'[1]MONE(M)CAPARD'!AH242","v":4.1749353757778875},{"$f":"'[1]MONE(M)CAPARD'!AI242","v":8.5045543524609251},{"$f":"'[1]MONE(M)CAPARD'!AJ242","v":7.2923772201504118},{"$f":"'[1]MONE(M)CAPARD'!AK242","v":1.0998039215686177},null,null,{"$f":"'[1]MONE(M)CAPARD'!AL242","v":3.0249999999999999},{"$f":"'[1]MONE(M)CAPARD'!AM242","v":4.8600000000000003},{"$f":"'[1]MONE(M)CAPARD'!AN242","v":3.98},{"$f":"'[1]MONE(M)CAPARD'!AO242","v":4.8499999999999996},{"$f":"'[1]MONE(M)CAPARD'!AP242","v":6.67},{"$f":"'[1]MONE(M)CAPARD'!AQ242","v":2.96},{"$f":"'[1]MONE(M)CAPARD'!AR242","v":3.64},null,null,{"$f":"'[1]MONE(M)CAPARD'!J242","v":11.500951387835743},{"$f":"'[1]MONE(M)CAPARD'!K242","v":8.3228198485452243},{"$f":"'[1]MONE(M)CAPARD'!L242","v":11.296519721577726},{"$f":"'[1]MONE(M)CAPARD'!M242","v":12.879731929152708},{"$f":"'[1]MONE(M)CAPARD'!N242","v":14.926910896088271},{"$f":"'[1]MONE(M)CAPARD'!O242","v":17.87232128184057},{"$f":"'[1]MONE(M)CAPARD'!P242","v":3.577549019607833},null,null,{"$f":"'[1]MONE(M)CAPARD'!Q242","v":11.88},{"$f":"'[1]MONE(M)CAPARD'!R242","v":9.3800000000000008},{"$f":"'[1]MONE(M)CAPARD'!S242","v":8.19},{"$f":"'[1]MONE(M)CAPARD'!T242","v":10.39},{"$f":"'[1]MONE(M)CAPARD'!U242","v":12.73},{"$f":"'[1]MONE(M)CAPARD'!V242","v":7.95},{"$f":"'[1]MONE(M)CAPARD'!W242","v":6.18},null,null,{"$f":"'[1]MONE(M)CAPARD'!AS242","v":10},{"$f":"'[1]MONE(M)CAPARD'!AT242","v":"n.a."},{"$f":"'[1]MONE(M)CAPARD'!AU242","v":5.75},{"$f":"'[1]MONE(M)CAPARD'!AV242","v":4.5},{"$f":"'[1]MONE(M)CAPARD'!AW242","v":"n.a."},{"$f":"'[1]MONE(M)CAPARD'!AX242","v":5},{"$f":"'[1]MONE(M)CAPARD'!AY242","v":"n.a."},null,null,{"$f":"+'Datos_Regional (M)'!CF235","v":21.553702912780825},{"$f":"+'Datos_Regional (M)'!CG235","v":-1.7276770595137658},{"$f":"+'Datos_Regional (M)'!CH235","v":6.6666450993285276},{"$f":"+'Datos_Regional (M)'!CI235","v":4.2958599916558038},{"$f":"+'Datos_Regional (M)'!CJ235","v":-0.22263314117164645},{"$f":"+'Datos_Regional (M)'!CK235","v":3.4379300023831494},{"$f":"+'Datos_Regional (M)'!CL235","v":11.16420211061644},null,null,744.73560864916669,360.93333333333345,630.17500000000007,215.18837963166663,218.80935391120715,505.0153416666667,894.82164533333344,2674.857017192041,3569.6786625253735,null,null,1100.1522380383333,717.75999999999988,1061.5333333333331,644.06632935749997,391.75833333333338,1164.3499999999997,1476.5161136666666,5079.6202340624986,6556.1363477291643,null,null,-2404.763216870459,-2986.4576852037912,null,null,{"$f":"'[1]EXT Comercio(M)'!C242","v":759.56003417000011},{"$f":"'[1]EXT Comercio(M)'!D242","v":336.72000000000025},{"$f":"'[1]EXT Comercio(M)'!E242","v":604.09999999999991},{"$f":"'[1]EXT Comercio(M)'!F242","v":231.73103021000009},{"$f":"'[1]EXT Comercio(M)'!G242","v":206.90747893750796},{"$f":"'[1]EXT Comercio(M)'!H242","v":471.29999999999984},{"$f":"'[1]EXT Comercio(M)'!I242","v":866.16401700000006},{"$f":"'[1]EXT Comercio(M)'!K242","v":2610.3185433175058},{"$f":"'[1]EXT Comercio(M)'!L242","v":3476.4825603175086},null,null,{"$f":"'[1]EXT Comercio(M)'!AG242","v":887.04098064999971},{"$f":"'[1]EXT Comercio(M)'!AH242","v":604.11999999999989},{"$f":"'[1]EXT Comercio(M)'!AI242","v":887.70000000000027},{"$f":"'[1]EXT Comercio(M)'!AJ242","v":486.55843090999997},{"$f":"'[1]EXT Comercio(M)'!AK242","v":344.10000000000014},{"$f":"'[1]EXT Comercio(M)'!AL242","v":949.69999999999993},{"$f":"'[1]EXT Comercio(M)'!AM242","v":1359.151658},{"$f":"'[1]EXT Comercio(M)'!AO242","v":4159.2194115599959},{"$f":"'[1]EXT Comercio(M)'!AP242","v":5518.3710695599948},null,null,{"$f":"'[1]EXT Comercio(M)'!$BS242","v":-1548.9008682424928},{"$f":"'[1]EXT Comercio(M)'!$BT242","v":-2041.8885092424916}]
[null,null,"Junio",{"$f":"'[1]REAL IPC(M)'!AD243","v":8.196070831866594},{"$f":"'[1]REAL IPC(M)'!AE243","v":-0.22856007154922967},{"$f":"'[1]REAL IPC(M)'!AF243","v":0.61721530249109913},{"$f":"'[1]REAL IPC(M)'!AG243","v":5.4216867469879579},{"$f":"'[1]REAL IPC(M)'!AH243","v":1.9579012536759026},{"$f":"'[1]REAL IPC(M)'!AI243","v":0.25742021524054126},{"$f":"'[1]REAL IPC(M)'!AJ243","v":1.8211920529801224},null,null,{"$f":"'[1]REAL IMAE(M)'!AG243","v":-3.8723448880312983},{"$f":"'[1]REAL IMAE(M)'!AH243","v":-0.12267370335870163},{"$f":"'[1]REAL IMAE(M)'!AI243","v":-2.7984943692736061E-2},{"$f":"'[1]REAL IMAE(M)'!AJ243","v":-5.0411086166555883},{"$f":"'[1]REAL IMAE(M)'!AK243","v":-4.0224357854835047},{"$f":"'[1]REAL IMAE(M)'!AL243","v":-0.26224097923534184},{"$f":"'[1]REAL IMAE(M)'!AM243","v":-3.1012560086836345E-2},null,null,{"$f":"'[1]EXT ITCER(M)'!C243","v":91.984699120815421},{"$f":"'[1]EXT ITCER(M)'!D243","v":90.545677866689275},{"$f":"'[1]EXT ITCER(M)'!E243","v":71.471108909793756},{"$f":"'[1]EXT ITCER(M)'!F243","v":80.546233941864472},{"$f":"'[1]EXT ITCER(M)'!G243","v":94.778713666182853},{"$f":"'[1]EXT ITCER(M)'!H243","v":95.265311300351868},{"$f":"'[1]EXT ITCER(M)'!I243","v":98.376725398371391},null,null,{"$f":"'[1]EXT TC(M)'!J243","v":10.733097325713075},{"$f":"'[1]EXT TC(M)'!K243","v":0},{"$f":"'[1]EXT TC(M)'!L243","v":8.5136735215632129},{"$f":"'[1]EXT TC(M)'!M243","v":-2.0157373655426494E-2},{"$f":"'[1]EXT TC(M)'!N243","v":5.0347875789289471},{"$f":"'[1]EXT TC(M)'!O243","v":5.1702130151183292},{"$f":"'[1]EXT TC(M)'!P243","v":0},null,null,{"$f":"'[1]EXT RIN(M)'!C243","v":3935.8131411099998},{"$f":"'[1]EXT RIN(M)'!D243","v":2781.5},{"$f":"'[1]EXT RIN(M)'!E243","v":5137.2821378400004},{"$f":"'[1]EXT RIN(M)'!F243","v":2444.222793169075},{"$f":"'[1]EXT RIN(M)'!G243","v":1030.9000000000001},{"$f":"'[1]EXT RIN(M)'!H243","v":2047.1},{"$f":"'[1]EXT RIN(M)'!I243","v":2705.4254256132299},null,null,{"$f":"'[1]EXT RIN(M)'!P243","v":69.162905270247265},{"$f":"'[1]EXT RIN(M)'!Q243","v":99.033272901021547},{"$f":"'[1]EXT RIN(M)'!R243","v":105.71208246632288},{"$f":"'[1]EXT RIN(M)'!S243","v":95.133024266402927},{"$f":"'[1]EXT RIN(M)'!T243","v":89.2348601708687},{"$f":"'[1]EXT RIN(M)'!U243","v":46.865895920709086},{"$f":"'[1]EXT RIN(M)'!V243","v":262.94309314142248},null,null,{"$f":"+'[1]MONE(M)CAPARD'!AE243","v":2.5915258720352483},{"$f":"'[1]MONE(M)CAPARD'!AF243","v":4.9899651394422202},{"$f":"'[1]MONE(M)CAPARD'!AG243","v":5.0814213871235197},{"$f":"'[1]MONE(M)CAPARD'!AH243","v":4.4377142857142795},{"$f":"'[1]MONE(M)CAPARD'!AI243","v":11.197414147055508},{"$f":"'[1]MONE(M)CAPARD'!AJ243","v":6.874882447565402},{"$f":"'[1]MONE(M)CAPARD'!AK243","v":1.6684227642276523},null,null,{"$f":"'[1]MONE(M)CAPARD'!AL243","v":2.6799999999999997},{"$f":"'[1]MONE(M)CAPARD'!AM243","v":4.75},{"$f":"'[1]MONE(M)CAPARD'!AN243","v":3.98},{"$f":"'[1]MONE(M)CAPARD'!AO243","v":4.8},{"$f":"'[1]MONE(M)CAPARD'!AP243","v":6.64},{"$f":"'[1]MONE(M)CAPARD'!AQ243","v":2.92},{"$f":"'[1]MONE(M)CAPARD'!AR243","v":3.52},null,null,{"$f":"'[1]MONE(M)CAPARD'!J243","v":12.407039428440784},{"$f":"'[1]MONE(M)CAPARD'!K243","v":9.7608695219123405},{"$f":"'[1]MONE(M)CAPARD'!L243","v":13.121794970986466},{"$f":"'[1]MONE(M)CAPARD'!M243","v":13.449142857142851},{"$f":"'[1]MONE(M)CAPARD'!N243","v":17.58451779456103},{"$f":"'[1]MONE(M)CAPARD'!O243","v":17.407768669182676},{"$f":"'[1]MONE(M)CAPARD'!P243","v":4.7915447154471646},null,null,{"$f":"'[1]MONE(M)CAPARD'!Q243","v":11.89},{"$f":"'[1]MONE(M)CAPARD'!R243","v":9.51},{"$f":"'[1]MONE(M)CAPARD'!S243","v":8.19},{"$f":"'[1]MONE(M)CAPARD'!T243","v":10.38},{"$f":"'[1]MONE(M)CAPARD'!U243","v":13.1},{"$f":"'[1]MONE(M)CAPARD'!V243","v":8.3800000000000008},{"$f":"'[1]MONE(M)CAPARD'!W243","v":6.7},null,null,{"$f":"'[1]MONE(M)CAPARD'!AS243","v":10},{"$f":"'[1]MONE(M)CAPARD'!AT243","v":"n.a."},{"$f":"'[1]MONE(M)CAPARD'!AU243","v":5.25},{"$f":"'[1]MONE(M)CAPARD'!AV243","v":3.5},{"$f":"'[1]MONE(M)CAPARD'!AW243","v":"n.a."},{"$f":"'[1]MONE(M)CAPARD'!AX243","v":5},{"$f":"'[1]MONE(M)CAPARD'!AY243","v":"n.a."},null,null,{"$f":"+'Datos_Regional (M)'!CF236","v":19.343395537355423},{"$f":"+'Datos_Regional (M)'!CG236","v":-3.6012317784486214},{"$f":"+'Datos_Regional (M)'!CH236","v":3.6638144214194535},{"$f":"+'Datos_Regional (M)'!CI236","v":2.781974780178853},{"$f":"+'Datos_Regional (M)'!CJ236","v":-2.5010110642093464},{"$f":"+'Datos_Regional (M)'!CK236","v":4.4587341232797062},{"$f":"+'Datos_Regional (M)'!CL236","v":8.6314873635808596},null,null,741.06604578083341,355.69583333333344,620.6,211.23475491333332,214.79058004085996,495.44177500000001,918.17510016666677,2638.8289890683604,3557.0040892350262,null,null,1077.31086048,696.95000000000016,1038.0416666666667,623.23496731666671,388.74999999999994,1124.9416666666666,1485.34047775,4949.2291611299997,6434.5696388799988,null,null,-2310.4001720616398,-2877.5655496449726,null,null,{"$f":"'[1]EXT Comercio(M)'!C243","v":747.35531257999992},{"$f":"'[1]EXT Comercio(M)'!D243","v":330},{"$f":"'[1]EXT Comercio(M)'!E243","v":621.90000000000009},{"$f":"'[1]EXT Comercio(M)'!F243","v":216.88522985999998},{"$f":"'[1]EXT Comercio(M)'!G243","v":218.08791979753801},{"$f":"'[1]EXT Comercio(M)'!H243","v":503.99999999999989},{"$f":"'[1]EXT Comercio(M)'!I243","v":1102.591377},{"$f":"'[1]EXT Comercio(M)'!K243","v":2638.2284622375373},{"$f":"'[1]EXT Comercio(M)'!L243","v":3740.819839237538},null,null,{"$f":"'[1]EXT Comercio(M)'!AG243","v":1014.5424142200009},{"$f":"'[1]EXT Comercio(M)'!AH243","v":631.01000000000022},{"$f":"'[1]EXT Comercio(M)'!AI243","v":995.80000000000041},{"$f":"'[1]EXT Comercio(M)'!AJ243","v":537.14642085000014},{"$f":"'[1]EXT Comercio(M)'!AK243","v":401.69999999999993},{"$f":"'[1]EXT Comercio(M)'!AL243","v":1022.5000000000003},{"$f":"'[1]EXT Comercio(M)'!AM243","v":1595.9049500000001},{"$f":"'[1]EXT Comercio(M)'!AO243","v":4602.6988350700049},{"$f":"'[1]EXT Comercio(M)'!AP243","v":6198.603785070005},null,null,{"$f":"'[1]EXT Comercio(M)'!$BS243","v":-1964.4703728324648},{"$f":"'[1]EXT Comercio(M)'!$BT243","v":-2457.7839458324652}]
[null,null,"Julio",{"$f":"'[1]REAL IPC(M)'!AD244","v":6.9027168627060487},{"$f":"'[1]REAL IPC(M)'!AE244","v":-1.8936420722135072},{"$f":"'[1]REAL IPC(M)'!AF244","v":-0.30204843758580524},{"$f":"'[1]REAL IPC(M)'!AG244","v":3.9823008849557495},{"$f":"'[1]REAL IPC(M)'!AH244","v":7.642922653622311E-2},{"$f":"'[1]REAL IPC(M)'!AI244","v":-1.2208148939416876},{"$f":"'[1]REAL IPC(M)'!AJ244","v":1.8961253091508559},null,null,{"$f":"'[1]REAL IMAE(M)'!AG244","v":-3.441306646264465},{"$f":"'[1]REAL IMAE(M)'!AH244","v":-0.86175185915479591},{"$f":"'[1]REAL IMAE(M)'!AI244","v":0.4740015686593404},{"$f":"'[1]REAL IMAE(M)'!AJ244","v":-4.5426775291685315},{"$f":"'[1]REAL IMAE(M)'!AK244","v":-3.8593199881876012},{"$f":"'[1]REAL IMAE(M)'!AL244","v":1.2222851498220177},{"$f":"'[1]REAL IMAE(M)'!AM244","v":0.14927677973953365},null,null,{"$f":"'[1]EXT ITCER(M)'!C244","v":91.966376102095992},{"$f":"'[1]EXT ITCER(M)'!D244","v":90.889862162365645},{"$f":"'[1]EXT ITCER(M)'!E244","v":71.628065770939543},{"$f":"'[1]EXT ITCER(M)'!F244","v":79.951154273268671},{"$f":"'[1]EXT ITCER(M)'!G244","v":95.793576159814151},{"$f":"'[1]EXT ITCER(M)'!H244","v":95.272302221227179},{"$f":"'[1]EXT ITCER(M)'!I244","v":97.869997908718076},null,null,{"$f":"'[1]EXT TC(M)'!J244","v":8.4429338784623464},{"$f":"'[1]EXT TC(M)'!K244","v":0},{"$f":"'[1]EXT TC(M)'!L244","v":9.8679974297222461},{"$f":"'[1]EXT TC(M)'!M244","v":-1.6567167784784821E-3},{"$f":"'[1]EXT TC(M)'!N244","v":5.1358332986173059},{"$f":"'[1]EXT TC(M)'!O244","v":4.978467391811769},{"$f":"'[1]EXT TC(M)'!P244","v":0},null,null,{"$f":"'[1]EXT RIN(M)'!C244","v":3884.3575550800001},{"$f":"'[1]EXT RIN(M)'!D244","v":2676.3},{"$f":"'[1]EXT RIN(M)'!E244","v":5035.4762010599998},{"$f":"'[1]EXT RIN(M)'!F244","v":2204.9730131065198},{"$f":"'[1]EXT RIN(M)'!G244","v":1102.3},{"$f":"'[1]EXT RIN(M)'!H244","v":2059.3000000000002},{"$f":"'[1]EXT RIN(M)'!I244","v":2486.8558421243306},null,null,{"$f":"'[1]EXT RIN(M)'!P244","v":70.676061190090877},{"$f":"'[1]EXT RIN(M)'!Q244","v":93.777495433414771},{"$f":"'[1]EXT RIN(M)'!R244","v":102.69189442600724},{"$f":"'[1]EXT RIN(M)'!S244","v":94.431673088392102},{"$f":"'[1]EXT RIN(M)'!T244","v":89.095655740334507},{"$f":"'[1]EXT RIN(M)'!U244","v":45.554744272304319},{"$f":"'[1]EXT RIN(M)'!V244","v":246.30407128266279},null,null,{"$f":"+'[1]MONE(M)CAPARD'!AE244","v":4.7681511629309989},{"$f":"'[1]MONE(M)CAPARD'!AF244","v":6.4864726472647334},{"$f":"'[1]MONE(M)CAPARD'!AG244","v":6.0001718629503094},{"$f":"'[1]MONE(M)CAPARD'!AH244","v":5.6718297872340457},{"$f":"'[1]MONE(M)CAPARD'!AI244","v":13.796161103303087},{"$f":"'[1]MONE(M)CAPARD'!AJ244","v":8.5350115865904321},{"$f":"'[1]MONE(M)CAPARD'!AK244","v":1.5740291262136019},null,null,{"$f":"'[1]MONE(M)CAPARD'!AL244","v":2.4},{"$f":"'[1]MONE(M)CAPARD'!AM244","v":4.47},{"$f":"'[1]MONE(M)CAPARD'!AN244","v":3.97},{"$f":"'[1]MONE(M)CAPARD'!AO244","v":4.72},{"$f":"'[1]MONE(M)CAPARD'!AP244","v":6.85},{"$f":"'[1]MONE(M)CAPARD'!AQ244","v":2.77},{"$f":"'[1]MONE(M)CAPARD'!AR244","v":3.5},null,null,{"$f":"'[1]MONE(M)CAPARD'!J244","v":14.0756788778521},{"$f":"'[1]MONE(M)CAPARD'!K244","v":11.389314931493157},{"$f":"'[1]MONE(M)CAPARD'!L244","v":14.235045169108732},{"$f":"'[1]MONE(M)CAPARD'!M244","v":14.750297872340429},{"$f":"'[1]MONE(M)CAPARD'!N244","v":19.742304676463132},{"$f":"'[1]MONE(M)CAPARD'!O244","v":19.073669086976654},{"$f":"'[1]MONE(M)CAPARD'!P244","v":4.3022977346278415},null,null,{"$f":"'[1]MONE(M)CAPARD'!Q244","v":11.75},{"$f":"'[1]MONE(M)CAPARD'!R244","v":9.2799999999999994},{"$f":"'[1]MONE(M)CAPARD'!S244","v":8.18},{"$f":"'[1]MONE(M)CAPARD'!T244","v":10.27},{"$f":"'[1]MONE(M)CAPARD'!U244","v":13.01},{"$f":"'[1]MONE(M)CAPARD'!V244","v":8.5399999999999991},{"$f":"'[1]MONE(M)CAPARD'!W244","v":6.28},null,null,{"$f":"'[1]MONE(M)CAPARD'!AS244","v":9},{"$f":"'[1]MONE(M)CAPARD'!AT244","v":"n.a."},{"$f":"'[1]MONE(M)CAPARD'!AU244","v":4.75},{"$f":"'[1]MONE(M)CAPARD'!AV244","v":4},{"$f":"'[1]MONE(M)CAPARD'!AW244","v":"n.a."},{"$f":"'[1]MONE(M)CAPARD'!AX244","v":5},{"$f":"'[1]MONE(M)CAPARD'!AY244","v":"n.a."},null,null,{"$f":"+'Datos_Regional (M)'!CF237","v":16.159577350848188},{"$f":"+'Datos_Regional (M)'!CG237","v":-3.8519661001622407},{"$f":"+'Datos_Regional (M)'!CH237","v":3.6861062050727256},{"$f":"+'Datos_Regional (M)'!CI237","v":3.1286260190423576},{"$f":"+'Datos_Regional (M)'!CJ237","v":-4.6859187722143698},{"$f":"+'Datos_Regional (M)'!CK237","v":5.350022954087752},{"$f":"+'Datos_Regional (M)'!CL237","v":6.8282020722149506},null,null,736.17801880250011,349.44250000000011,609.51666666666665,208.16840627666667,213.38226265167938,479.81241666666671,933.98922725,2596.5002710641802,3530.4894983141799,null,null,1045.833766275,675.81500000000017,1012.6749999999998,597.48407812833329,375.09166666666664,1076.7416666666668,1446.1744527499998,4783.6411777366666,6229.8156304866652,null,null,-2187.1409066724864,-2699.3261321724863,null,null,{"$f":"'[1]EXT Comercio(M)'!C244","v":739.83743867000067},{"$f":"'[1]EXT Comercio(M)'!D244","v":373.07999999999947},{"$f":"'[1]EXT Comercio(M)'!E244","v":612.30000000000041},{"$f":"'[1]EXT Comercio(M)'!F244","v":211.13167621999992},{"$f":"'[1]EXT Comercio(M)'!G244","v":224.31333539398696},{"$f":"'[1]EXT Comercio(M)'!H244","v":471.79999999999984},{"$f":"'[1]EXT Comercio(M)'!I244","v":1123.9080709999998},{"$f":"'[1]EXT Comercio(M)'!K244","v":2632.4624502839906},{"$f":"'[1]EXT Comercio(M)'!L244","v":3756.370521283985},null,null,{"$f":"'[1]EXT Comercio(M)'!AG244","v":972.55308648999926},{"$f":"'[1]EXT Comercio(M)'!AH244","v":664.17000000000007},{"$f":"'[1]EXT Comercio(M)'!AI244","v":1094.1999999999996},{"$f":"'[1]EXT Comercio(M)'!AJ244","v":527.54525762000003},{"$f":"'[1]EXT Comercio(M)'!AK244","v":360.4},{"$f":"'[1]EXT Comercio(M)'!AL244","v":1109.2000000000003},{"$f":"'[1]EXT Comercio(M)'!AM244","v":1320.6807789999998},{"$f":"'[1]EXT Comercio(M)'!AO244","v":4728.0683441100009},{"$f":"'[1]EXT Comercio(M)'!AP244","v":6048.7491231099993},null,null,{"$f":"'[1]EXT Comercio(M)'!$BS244","v":-2095.6058938260121},{"$f":"'[1]EXT Comercio(M)'!$BT244","v":-2292.3786018260125}]
[null,null,"Agosto",{"$f":"'[1]REAL IPC(M)'!AD245","v":5.7116567660008748},{"$f":"'[1]REAL IPC(M)'!AE245","v":-2.1568627450980458},{"$f":"'[1]REAL IPC(M)'!AF245","v":-0.73224043715847198},{"$f":"'[1]REAL IPC(M)'!AG245","v":3.117389186556248},{"$f":"'[1]REAL IPC(M)'!AH245","v":-0.12167300380227877},{"$f":"'[1]REAL IPC(M)'!AI245","v":-0.46958377801490836},{"$f":"'[1]REAL IPC(M)'!AJ245","v":1.8062397372742276},null,null,{"$f":"'[1]REAL IMAE(M)'!AG245","v":-2.9025335920978663},{"$f":"'[1]REAL IMAE(M)'!AH245","v":-3.43381287360529},{"$f":"'[1]REAL IMAE(M)'!AI245","v":0.94680609982207264},{"$f":"'[1]REAL IMAE(M)'!AJ245","v":-4.5142550492105267},{"$f":"'[1]REAL IMAE(M)'!AK245","v":-3.5759710034249883},{"$f":"'[1]REAL IMAE(M)'!AL245","v":2.6790382302829525},{"$f":"'[1]REAL IMAE(M)'!AM245","v":0.6268948152715681},null,null,{"$f":"'[1]EXT ITCER(M)'!C245","v":92.469950515333949},{"$f":"'[1]EXT ITCER(M)'!D245","v":91.375033287163788},{"$f":"'[1]EXT ITCER(M)'!E245","v":72.555422206608796},{"$f":"'[1]EXT ITCER(M)'!F245","v":80.143081565933045},{"$f":"'[1]EXT ITCER(M)'!G245","v":96.407855219117252},{"$f":"'[1]EXT ITCER(M)'!H245","v":94.906846560278481},{"$f":"'[1]EXT ITCER(M)'!I245","v":97.880944224013675},null,null,{"$f":"'[1]EXT TC(M)'!J245","v":6.4072662613609142},{"$f":"'[1]EXT TC(M)'!K245","v":0},{"$f":"'[1]EXT TC(M)'!L245","v":11.520207399372996},{"$f":"'[1]EXT TC(M)'!M245","v":-5.2923493793482742E-4},{"$f":"'[1]EXT TC(M)'!N245","v":5.2360081125526508},{"$f":"'[1]EXT TC(M)'!O245","v":3.8978754329450584},{"$f":"'[1]EXT TC(M)'!P245","v":0},null,null,{"$f":"'[1]EXT RIN(M)'!C245","v":4052.1901452900001},{"$f":"'[1]EXT RIN(M)'!D245","v":2977.5},{"$f":"'[1]EXT RIN(M)'!E245","v":5169.9563626600002},{"$f":"'[1]EXT RIN(M)'!F245","v":2253.0741964783074},{"$f":"'[1]EXT RIN(M)'!G245","v":1252},{"$f":"'[1]EXT RIN(M)'!H245","v":2272.6999999999998},{"$f":"'[1]EXT RIN(M)'!I245","v":2736.8132973672004},null,null,{"$f":"'[1]EXT RIN(M)'!P245","v":74.771124243712023},{"$f":"'[1]EXT RIN(M)'!Q245","v":100.8485845295731},{"$f":"'[1]EXT RIN(M)'!R245","v":107.42127337101044},{"$f":"'[1]EXT RIN(M)'!S245","v":101.25664797093259},{"$f":"'[1]EXT RIN(M)'!T245","v":101.04319676813836},{"$f":"'[1]EXT RIN(M)'!U245","v":49.68427811180586},{"$f":"'[1]EXT RIN(M)'!V245","v":262.50022358290846},null,null,{"$f":"+'[1]MONE(M)CAPARD'!AE245","v":5.4755959854190648},{"$f":"'[1]MONE(M)CAPARD'!AF245","v":6.4867735470941961},{"$f":"'[1]MONE(M)CAPARD'!AG245","v":6.4393922712760121},{"$f":"'[1]MONE(M)CAPARD'!AH245","v":6.6260510155881081},{"$f":"'[1]MONE(M)CAPARD'!AI245","v":13.666907492497083},{"$f":"'[1]MONE(M)CAPARD'!AJ245","v":7.6957216384301601},{"$f":"'[1]MONE(M)CAPARD'!AK245","v":1.6538870967741861},null,null,{"$f":"'[1]MONE(M)CAPARD'!AL245","v":2.0949999999999998},{"$f":"'[1]MONE(M)CAPARD'!AM245","v":4.1900000000000004},{"$f":"'[1]MONE(M)CAPARD'!AN245","v":3.98},{"$f":"'[1]MONE(M)CAPARD'!AO245","v":4.7},{"$f":"'[1]MONE(M)CAPARD'!AP245","v":6.66},{"$f":"'[1]MONE(M)CAPARD'!AQ245","v":2.73},{"$f":"'[1]MONE(M)CAPARD'!AR245","v":3.49},null,null,{"$f":"'[1]MONE(M)CAPARD'!J245","v":15.796122910987872},{"$f":"'[1]MONE(M)CAPARD'!K245","v":11.862725450901809},{"$f":"'[1]MONE(M)CAPARD'!L245","v":14.790542772211825},{"$f":"'[1]MONE(M)CAPARD'!M245","v":15.470340103920655},{"$f":"'[1]MONE(M)CAPARD'!N245","v":19.472475348296676},{"$f":"'[1]MONE(M)CAPARD'!O245","v":17.632382586317778},{"$f":"'[1]MONE(M)CAPARD'!P245","v":3.8934354838709595},null,null,{"$f":"'[1]MONE(M)CAPARD'!Q245","v":11.13},{"$f":"'[1]MONE(M)CAPARD'!R245","v":9.4499999999999993},{"$f":"'[1]MONE(M)CAPARD'!S245","v":8.14},{"$f":"'[1]MONE(M)CAPARD'!T245","v":10.38},{"$f":"'[1]MONE(M)CAPARD'!U245","v":12.66},{"$f":"'[1]MONE(M)CAPARD'!V245","v":8.3699999999999992},{"$f":"'[1]MONE(M)CAPARD'!W245","v":5.77},null,null,{"$f":"'[1]MONE(M)CAPARD'!AS245","v":9},{"$f":"'[1]MONE(M)CAPARD'!AT245","v":"n.a."},{"$f":"'[1]MONE(M)CAPARD'!AU245","v":4.75},{"$f":"'[1]MONE(M)CAPARD'!AV245","v":4.5},{"$f":"'[1]MONE(M)CAPARD'!AW245","v":"n.a."},{"$f":"'[1]MONE(M)CAPARD'!AX245","v":5},{"$f":"'[1]MONE(M)CAPARD'!AY245","v":"n.a."},null,null,{"$f":"+'Datos_Regional (M)'!CF238","v":15.457909905457591},{"$f":"+'Datos_Regional (M)'!CG238","v":-5.2337645942481359},{"$f":"+'Datos_Regional (M)'!CH238","v":2.6864241630131014},{"$f":"+'Datos_Regional (M)'!CI238","v":0.89330562994243135},{"$f":"+'Datos_Regional (M)'!CJ238","v":-7.220567762662955},{"$f":"+'Datos_Regional (M)'!CK238","v":4.2568713411206272},{"$f":"+'Datos_Regional (M)'!CL238","v":4.860769023204381},null,null,731.98027525750001,339.36000000000007,598.76666666666665,204.07553325916669,212.52320605160685,469.3610333333333,939.66850633333343,2556.0667145682737,3495.7352209016076,null,null,1013.4889709183334,657.80000000000007,987.94999999999982,570.47214933499993,368.98333333333329,1049.625,1417.286102916667,4648.319453586666,6065.6055565033339,null,null,-2092.2527390183918,-2569.8703356017254,null,null,{"$f":"'[1]EXT Comercio(M)'!C245","v":743.62557242000003},{"$f":"'[1]EXT Comercio(M)'!D245","v":301.5300000000002},{"$f":"'[1]EXT Comercio(M)'!E245","v":555.99999999999977},{"$f":"'[1]EXT Comercio(M)'!F245","v":184.95820965000007},{"$f":"'[1]EXT Comercio(M)'!G245","v":240.97331393259105},{"$f":"'[1]EXT Comercio(M)'!H245","v":474.20000000000005},{"$f":"'[1]EXT Comercio(M)'!I245","v":1001.6583320000001},{"$f":"'[1]EXT Comercio(M)'!K245","v":2501.2870960025866},{"$f":"'[1]EXT Comercio(M)'!L245","v":3502.945428002593},null,null,{"$f":"'[1]EXT Comercio(M)'!AG245","v":983.09318540999993},{"$f":"'[1]EXT Comercio(M)'!AH245","v":560.44999999999982},{"$f":"'[1]EXT Comercio(M)'!AI245","v":936.39999999999941},{"$f":"'[1]EXT Comercio(M)'!AJ245","v":515.16497188999983},{"$f":"'[1]EXT Comercio(M)'!AK245","v":364.3},{"$f":"'[1]EXT Comercio(M)'!AL245","v":1051.4000000000003},{"$f":"'[1]EXT Comercio(M)'!AM245","v":1305.2953830000006},{"$f":"'[1]EXT Comercio(M)'!AO245","v":4410.8081573000018},{"$f":"'[1]EXT Comercio(M)'!AP245","v":5716.103540300006},null,null,{"$f":"'[1]EXT Comercio(M)'!$BS245","v":-1909.521061297406},{"$f":"'[1]EXT Comercio(M)'!$BT245","v":-2213.1581122974076}]
[null,null,"Setiembre",{"$f":"'[1]REAL IPC(M)'!AD246","v":4.8338258929422064},{"$f":"'[1]REAL IPC(M)'!AE246","v":-1.8018905080740413},{"$f":"'[1]REAL IPC(M)'!AF246","v":3.2837127845881657E-2},{"$f":"'[1]REAL IPC(M)'!AG246","v":3.0642023346303562},{"$f":"'[1]REAL IPC(M)'!AH246","v":7.5884049172794841E-3},{"$f":"'[1]REAL IPC(M)'!AI246","v":-1.5693716488944636},{"$f":"'[1]REAL IPC(M)'!AJ246","v":0.48899755501220976},null,null,{"$f":"'[1]REAL IMAE(M)'!AG246","v":-2.4163526655822514},{"$f":"'[1]REAL IMAE(M)'!AH246","v":-5.3949030111692577},{"$f":"'[1]REAL IMAE(M)'!AI246","v":1.3921006602893655},{"$f":"'[1]REAL IMAE(M)'!AJ246","v":-3.6779481120051569},{"$f":"'[1]REAL IMAE(M)'!AK246","v":-3.1399411582956458},{"$f":"'[1]REAL IMAE(M)'!AL246","v":4.0010194506614729},{"$f":"'[1]REAL IMAE(M)'!AM246","v":1.3478752958123288},null,null,{"$f":"'[1]EXT ITCER(M)'!C246","v":92.536034025939003},{"$f":"'[1]EXT ITCER(M)'!D246","v":91.605118395155657},{"$f":"'[1]EXT ITCER(M)'!E246","v":72.723959712209648},{"$f":"'[1]EXT ITCER(M)'!F246","v":80.22208285755444},{"$f":"'[1]EXT ITCER(M)'!G246","v":96.652828888467283},{"$f":"'[1]EXT ITCER(M)'!H246","v":95.061799781886918},{"$f":"'[1]EXT ITCER(M)'!I246","v":98.62670494656544},null,null,{"$f":"'[1]EXT TC(M)'!J246","v":6.0443056805362074},{"$f":"'[1]EXT TC(M)'!K246","v":0},{"$f":"'[1]EXT TC(M)'!L246","v":11.445829172969933},{"$f":"'[1]EXT TC(M)'!M246","v":-7.3085119453832712E-5},{"$f":"'[1]EXT TC(M)'!N246","v":5.8926199209406267},{"$f":"'[1]EXT TC(M)'!O246","v":3.5146145608741559},{"$f":"'[1]EXT TC(M)'!P246","v":0},null,null,{"$f":"'[1]EXT RIN(M)'!C246","v":4059.3971229499998},{"$f":"'[1]EXT RIN(M)'!D246","v":2743.5},{"$f":"'[1]EXT RIN(M)'!E246","v":5087.2152935399999},{"$f":"'[1]EXT RIN(M)'!F246","v":2205.5372715607355},{"$f":"'[1]EXT RIN(M)'!G246","v":1280.0999999999999},{"$f":"'[1]EXT RIN(M)'!H246","v":2210.9},{"$f":"'[1]EXT RIN(M)'!I246","v":2717.1761630798001},null,null,{"$f":"'[1]EXT RIN(M)'!P246","v":73.329865259358243},{"$f":"'[1]EXT RIN(M)'!Q246","v":96.976805099421099},{"$f":"'[1]EXT RIN(M)'!R246","v":109.82146155057293},{"$f":"'[1]EXT RIN(M)'!S246","v":97.532801271093874},{"$f":"'[1]EXT RIN(M)'!T246","v":102.70387497543925},{"$f":"'[1]EXT RIN(M)'!U246","v":47.874038797009526},{"$f":"'[1]EXT RIN(M)'!V246","v":260.12001097223407},null,null,{"$f":"+'[1]MONE(M)CAPARD'!AE246","v":6.3588007499272088},{"$f":"'[1]MONE(M)CAPARD'!AF246","v":5.8778020655770549},{"$f":"'[1]MONE(M)CAPARD'!AG246","v":5.6253156800525259},{"$f":"'[1]MONE(M)CAPARD'!AH246","v":6.797508258612547},{"$f":"'[1]MONE(M)CAPARD'!AI246","v":15.234193822729273},{"$f":"'[1]MONE(M)CAPARD'!AJ246","v":8.035478165070181},{"$f":"'[1]MONE(M)CAPARD'!AK246","v":2.9565450121654653},null,null,{"$f":"'[1]MONE(M)CAPARD'!AL246","v":1.89},{"$f":"'[1]MONE(M)CAPARD'!AM246","v":3.97},{"$f":"'[1]MONE(M)CAPARD'!AN246","v":4},{"$f":"'[1]MONE(M)CAPARD'!AO246","v":4.67},{"$f":"'[1]MONE(M)CAPARD'!AP246","v":6.8},{"$f":"'[1]MONE(M)CAPARD'!AQ246","v":3.09},{"$f":"'[1]MONE(M)CAPARD'!AR246","v":3.46},null,null,{"$f":"'[1]MONE(M)CAPARD'!J246","v":16.317418506243264},{"$f":"'[1]MONE(M)CAPARD'!K246","v":11.224137170359969},{"$f":"'[1]MONE(M)CAPARD'!L246","v":13.942584527847689},{"$f":"'[1]MONE(M)CAPARD'!M246","v":15.520226521944306},{"$f":"'[1]MONE(M)CAPARD'!N246","v":20.920196035612253},{"$f":"'[1]MONE(M)CAPARD'!O246","v":17.443119013373263},{"$f":"'[1]MONE(M)CAPARD'!P246","v":4.7975425790754409},null,null,{"$f":"'[1]MONE(M)CAPARD'!Q246","v":11.11},{"$f":"'[1]MONE(M)CAPARD'!R246","v":9.2200000000000006},{"$f":"'[1]MONE(M)CAPARD'!S246","v":8.129999999999999},{"$f":"'[1]MONE(M)CAPARD'!T246","v":10.43},{"$f":"'[1]MONE(M)CAPARD'!U246","v":13.08},{"$f":"'[1]MONE(M)CAPARD'!V246","v":8.14},{"$f":"'[1]MONE(M)CAPARD'!W246","v":5.31},null,null,{"$f":"'[1]MONE(M)CAPARD'!AS246","v":9},{"$f":"'[1]MONE(M)CAPARD'!AT246","v":"n.a."},{"$f":"'[1]MONE(M)CAPARD'!AU246","v":4.5},{"$f":"'[1]MONE(M)CAPARD'!AV246","v":4.5},{"$f":"'[1]MONE(M)CAPARD'!AW246","v":"n.a."},{"$f":"'[1]MONE(M)CAPARD'!AX246","v":4},{"$f":"'[1]MONE(M)CAPARD'!AY246","v":"n.a."},null,null,{"$f":"+'Datos_Regional (M)'!CF239","v":14.29106524772228},{"$f":"+'Datos_Regional (M)'!CG239","v":-5.6510718937310305},{"$f":"+'Datos_Regional (M)'!CH239","v":2.1441244553151773},{"$f":"+'Datos_Regional (M)'!CI239","v":0.47572555459829413},{"$f":"+'Datos_Regional (M)'!CJ239","v":-7.8327441879963438},{"$f":"+'Datos_Regional (M)'!CK239","v":4.7104014368545055},{"$f":"+'Datos_Regional (M)'!CL239","v":2.7135054903900224},null,null,{"$f":"+AVERAGE(EH40:EH51)","v":726.6382226991667},{"$f":"+AVERAGE(EI40:EI51)","v":333.45666666666671},{"$f":"+AVERAGE(EJ40:EJ51)","v":591.40833333333342},{"$f":"+AVERAGE(EK40:EK51)","v":198.45256931000003},{"$f":"+AVERAGE(EL40:EL51)","v":214.85622915827557},{"$f":"+AVERAGE(EM40:EM51)","v":464.32153333333326},{"$f":"+AVERAGE(EN40:EN51)","v":976.90275724999992},{"$f":"+AVERAGE(EO40:EO51)","v":2529.1335545007764},{"$f":"+AVERAGE(EP40:EP51)","v":3506.0363117507763},null,null,{"$f":"+AVERAGE(ES40:ES51)","v":978.05828336916682},{"$f":"+AVERAGE(ET40:ET51)","v":634.87083333333328},{"$f":"+AVERAGE(EU40:EU51)","v":965.30833333333305},{"$f":"+AVERAGE(EV40:EV51)","v":545.48998906000008},{"$f":"+AVERAGE(EW40:EW51)","v":362.99166666666662},{"$f":"+AVERAGE(EX40:EX51)","v":1023.9833333333332},{"$f":"+AVERAGE(EY40:EY51)","v":1389.860042},{"$f":"+AVERAGE(EZ40:EZ51)","v":4510.7024390958322},{"$f":"+AVERAGE(FA40:FA51)","v":5900.5624810958316},null,null,{"$f":"+AVERAGE(FD40:FD51)","v":-1981.5688845950574},{"$f":"+AVERAGE(FE40:FE51)","v":-2394.526169345057},null,null,{"$f":"'[1]EXT Comercio(M)'!C246","v":747.37164112000028},{"$f":"'[1]EXT Comercio(M)'!D246","v":304.92000000000007},{"$f":"'[1]EXT Comercio(M)'!E246","v":549.89999999999964},{"$f":"'[1]EXT Comercio(M)'!F246","v":171.92701820999991},{"$f":"'[1]EXT Comercio(M)'!G246","v":257.95331621259805},{"$f":"'[1]EXT Comercio(M)'!H246","v":459.40000000000009},{"$f":"'[1]EXT Comercio(M)'!I246","v":1474.8524589999997},{"$f":"'[1]EXT Comercio(M)'!K246","v":2491.4719755426013},{"$f":"'[1]EXT Comercio(M)'!L246","v":3966.3244345425992},null,null,{"$f":"'[1]EXT Comercio(M)'!AG246","v":940.15620547000071},{"$f":"'[1]EXT Comercio(M)'!AH246","v":593.5600000000004},{"$f":"'[1]EXT Comercio(M)'!AI246","v":918.60000000000036},{"$f":"'[1]EXT Comercio(M)'!AJ246","v":481.55808611999964},{"$f":"'[1]EXT Comercio(M)'!AK246","v":345.29999999999984},{"$f":"'[1]EXT Comercio(M)'!AL246","v":985.90000000000009},{"$f":"'[1]EXT Comercio(M)'!AM246","v":1518.5849069999995},{"$f":"'[1]EXT Comercio(M)'!AO246","v":4265.0742915899973},{"$f":"'[1]EXT Comercio(M)'!AP246","v":5783.659198589994},null,null,{"$f":"'[1]EXT Comercio(M)'!$BS246","v":-1773.6023160474033},{"$f":"'[1]EXT Comercio(M)'!$BT246","v":-1817.3347640473985}]
[null,null,"Octubre",{"$f":"'[1]REAL IPC(M)'!AD247","v":4.0001465418616435},{"$f":"'[1]REAL IPC(M)'!AE247","v":-2.0280965571824279},{"$f":"'[1]REAL IPC(M)'!AF247","v":-0.65348799215814191},{"$f":"'[1]REAL IPC(M)'!AG247","v":2.6582890285161911},{"$f":"'[1]REAL IPC(M)'!AH247","v":0.4250474383301725},{"$f":"'[1]REAL IPC(M)'!AI247","v":-0.30136068917227432},{"$f":"'[1]REAL IPC(M)'!AJ247","v":0.73349633251832314},null,null,{"$f":"'[1]REAL IMAE(M)'!AG247","v":-2.1372008021253484},{"$f":"'[1]REAL IMAE(M)'!AH247","v":-5.8699751318175206},{"$f":"'[1]REAL IMAE(M)'!AI247","v":1.8564185498345442},{"$f":"'[1]REAL IMAE(M)'!AJ247","v":-2.6168860141417114},{"$f":"'[1]REAL IMAE(M)'!AK247","v":-2.5550143520456157},{"$f":"'[1]REAL IMAE(M)'!AL247","v":5.2011468435777122},{"$f":"'[1]REAL IMAE(M)'!AM247","v":2.2354155911202955},null,null,{"$f":"'[1]EXT ITCER(M)'!C247","v":91.855854665834244},{"$f":"'[1]EXT ITCER(M)'!D247","v":92.535739535895331},{"$f":"'[1]EXT ITCER(M)'!E247","v":73.369969534204344},{"$f":"'[1]EXT ITCER(M)'!F247","v":80.273490463037504},{"$f":"'[1]EXT ITCER(M)'!G247","v":96.936427139283353},{"$f":"'[1]EXT ITCER(M)'!H247","v":95.231726317176808},{"$f":"'[1]EXT ITCER(M)'!I247","v":98.682671764102366},null,null,{"$f":"'[1]EXT TC(M)'!J247","v":4.9503423944808889},{"$f":"'[1]EXT TC(M)'!K247","v":0},{"$f":"'[1]EXT TC(M)'!L247","v":10.950674138348019},{"$f":"'[1]EXT TC(M)'!M247","v":-4.7883366205993903E-5},{"$f":"'[1]EXT TC(M)'!N247","v":5.1452767567756945},{"$f":"'[1]EXT TC(M)'!O247","v":3.1577593598170925},{"$f":"'[1]EXT TC(M)'!P247","v":0},null,null,{"$f":"'[1]EXT RIN(M)'!C247","v":4066.7415792299998},{"$f":"'[1]EXT RIN(M)'!D247","v":2928.6},{"$f":"'[1]EXT RIN(M)'!E247","v":5091.3049877000003},{"$f":"'[1]EXT RIN(M)'!F247","v":2147.3992722455691},{"$f":"'[1]EXT RIN(M)'!G247","v":1287.2},{"$f":"'[1]EXT RIN(M)'!H247","v":2074.6},{"$f":"'[1]EXT RIN(M)'!I247","v":2679.3982361406001},null,null,{"$f":"'[1]EXT RIN(M)'!P247","v":70.697676389270285},{"$f":"'[1]EXT RIN(M)'!Q247","v":102.20312898058607},{"$f":"'[1]EXT RIN(M)'!R247","v":107.31574607692107},{"$f":"'[1]EXT RIN(M)'!S247","v":94.637831456738581},{"$f":"'[1]EXT RIN(M)'!T247","v":106.48783595663673},{"$f":"'[1]EXT RIN(M)'!U247","v":44.505917261988913},{"$f":"'[1]EXT RIN(M)'!V247","v":253.28258737339661},null,null,{"$f":"+'[1]MONE(M)CAPARD'!AE247","v":4.8075446279547682},{"$f":"'[1]MONE(M)CAPARD'!AF247","v":5.8568797334141145},{"$f":"'[1]MONE(M)CAPARD'!AG247","v":6.3550172668968896},{"$f":"'[1]MONE(M)CAPARD'!AH247","v":7.531501883239172},{"$f":"'[1]MONE(M)CAPARD'!AI247","v":11.181196560136426},{"$f":"'[1]MONE(M)CAPARD'!AJ247","v":5.678473375671663},{"$f":"'[1]MONE(M)CAPARD'!AK247","v":2.5775970873786553},null,null,{"$f":"'[1]MONE(M)CAPARD'!AL247","v":1.7999999999999998},{"$f":"'[1]MONE(M)CAPARD'!AM247","v":3.71},{"$f":"'[1]MONE(M)CAPARD'!AN247","v":3.97},{"$f":"'[1]MONE(M)CAPARD'!AO247","v":4.68},{"$f":"'[1]MONE(M)CAPARD'!AP247","v":6.51},{"$f":"'[1]MONE(M)CAPARD'!AQ247","v":2.66},{"$f":"'[1]MONE(M)CAPARD'!AR247","v":3.33},null,null,{"$f":"'[1]MONE(M)CAPARD'!J247","v":16.43252824769764},{"$f":"'[1]MONE(M)CAPARD'!K247","v":11.287007977380588},{"$f":"'[1]MONE(M)CAPARD'!L247","v":14.679416214438412},{"$f":"'[1]MONE(M)CAPARD'!M247","v":16.035442561205276},{"$f":"'[1]MONE(M)CAPARD'!N247","v":19.075595487186316},{"$f":"'[1]MONE(M)CAPARD'!O247","v":15.006584636052702},{"$f":"'[1]MONE(M)CAPARD'!P247","v":5.2049919093851287},null,null,{"$f":"'[1]MONE(M)CAPARD'!Q247","v":11.05},{"$f":"'[1]MONE(M)CAPARD'!R247","v":9.0299999999999994},{"$f":"'[1]MONE(M)CAPARD'!S247","v":8.09},{"$f":"'[1]MONE(M)CAPARD'!T247","v":10.63},{"$f":"'[1]MONE(M)CAPARD'!U247","v":12.39},{"$f":"'[1]MONE(M)CAPARD'!V247","v":8.3699999999999992},{"$f":"'[1]MONE(M)CAPARD'!W247","v":5.9766666666666666},null,null,{"$f":"'[1]MONE(M)CAPARD'!AS247","v":9},{"$f":"'[1]MONE(M)CAPARD'!AT247","v":"n.a."},{"$f":"'[1]MONE(M)CAPARD'!AU247","v":4.5},{"$f":"'[1]MONE(M)CAPARD'!AV247","v":4.5},{"$f":"'[1]MONE(M)CAPARD'!AW247","v":"n.a."},{"$f":"'[1]MONE(M)CAPARD'!AX247","v":4},{"$f":"'[1]MONE(M)CAPARD'!AY247","v":"n.a."},null,null,{"$f":"+'Datos_Regional (M)'!CF240","v":13.576656802550202},{"$f":"+'Datos_Regional (M)'!CG240","v":-6.2531006899954278},{"$f":"+'Datos_Regional (M)'!CH240","v":1.0204816305484199},{"$f":"+'Datos_Regional (M)'!CI240","v":1.9247812348975213},{"$f":"+'Datos_Regional (M)'!CJ240","v":-7.9257226098780169},{"$f":"+'Datos_Regional (M)'!CK240","v":6.0006077528596879},{"$f":"+'Datos_Regional (M)'!CL240","v":1.9027380954190987},null,null,717.23092837416664,328.03916666666674,590.98333333333323,196.28193630249999,214.69732676129729,457.58862499999992,981.7919886666665,2504.8213164379645,3486.6133051046295,null,null,945.0123494825001,618.37249999999995,951.12499999999989,527.91298009499997,352.97500000000008,1008.5083333333332,1359.5736138333334,4403.9061629108319,5763.479776744166,null,null,-1899.0848464728685,-2276.8664716395356,null,null,{"$f":"'[1]EXT Comercio(M)'!C247","v":792.03797651999957},{"$f":"'[1]EXT Comercio(M)'!D247","v":343.55000000000018},{"$f":"'[1]EXT Comercio(M)'!E247","v":618.19999999999982},{"$f":"'[1]EXT Comercio(M)'!F247","v":181.88027041000009},{"$f":"'[1]EXT Comercio(M)'!G247","v":224.06592749009991},{"$f":"'[1]EXT Comercio(M)'!H247","v":479.20000000000005},{"$f":"'[1]EXT Comercio(M)'!I247","v":1383.4601720000001},{"$f":"'[1]EXT Comercio(M)'!K247","v":2638.934174420101},{"$f":"'[1]EXT Comercio(M)'!L247","v":4022.3943464200966},null,null,{"$f":"'[1]EXT Comercio(M)'!AG247","v":1066.6309784099994},{"$f":"'[1]EXT Comercio(M)'!AH247","v":633.80999999999949},{"$f":"'[1]EXT Comercio(M)'!AI247","v":1124.6000000000004},{"$f":"'[1]EXT Comercio(M)'!AJ247","v":522.84389715999987},{"$f":"'[1]EXT Comercio(M)'!AK247","v":401.60000000000019},{"$f":"'[1]EXT Comercio(M)'!AL247","v":1115.1999999999998},{"$f":"'[1]EXT Comercio(M)'!AM247","v":1651.8402530000012},{"$f":"'[1]EXT Comercio(M)'!AO247","v":4864.6848755699975},{"$f":"'[1]EXT Comercio(M)'!AP247","v":6516.5251285699997},null,null,{"$f":"'[1]EXT Comercio(M)'!$BS247","v":-2225.7507011498983},{"$f":"'[1]EXT Comercio(M)'!$BT247","v":-2494.1307821499031}]
[null,null,"Noviembre",{"$f":"'[1]REAL IPC(M)'!AD248","v":2.56654859369926},{"$f":"'[1]REAL IPC(M)'!AE248","v":-2.9868578255772948E-2},{"$f":"'[1]REAL IPC(M)'!AF248","v":-0.6098557037843747},{"$f":"'[1]REAL IPC(M)'!AG248","v":3.0992736077481866},{"$f":"'[1]REAL IPC(M)'!AH248","v":0.46261186106475438},{"$f":"'[1]REAL IPC(M)'!AI248","v":4.1795178447787746},{"$f":"'[1]REAL IPC(M)'!AJ248","v":1.3934426229508079},null,null,{"$f":"'[1]REAL IMAE(M)'!AG248","v":-1.989661307810368},{"$f":"'[1]REAL IMAE(M)'!AH248","v":-2.3169757969191243},{"$f":"'[1]REAL IMAE(M)'!AI248","v":2.3174176211343136},{"$f":"'[1]REAL IMAE(M)'!AJ248","v":-2.2542030115499454},{"$f":"'[1]REAL IMAE(M)'!AK248","v":-1.8212800547061079},{"$f":"'[1]REAL IMAE(M)'!AL248","v":6.3176580238288729},{"$f":"'[1]REAL IMAE(M)'!AM248","v":3.0833808363994346},null,null,{"$f":"'[1]EXT ITCER(M)'!C248","v":89.895970729521849},{"$f":"'[1]EXT ITCER(M)'!D248","v":91.564563661769867},{"$f":"'[1]EXT ITCER(M)'!E248","v":73.194199538130277},{"$f":"'[1]EXT ITCER(M)'!F248","v":80.353138295832835},{"$f":"'[1]EXT ITCER(M)'!G248","v":97.459619560135963},{"$f":"'[1]EXT ITCER(M)'!H248","v":94.535610865781891},{"$f":"'[1]EXT ITCER(M)'!I248","v":98.933076687840682},null,null,{"$f":"'[1]EXT TC(M)'!J248","v":2.5025517023500123},{"$f":"'[1]EXT TC(M)'!K248","v":0},{"$f":"'[1]EXT TC(M)'!L248","v":8.814506179090781},{"$f":"'[1]EXT TC(M)'!M248","v":-2.6461865926904145E-5},{"$f":"'[1]EXT TC(M)'!N248","v":5.0350504789669301},{"$f":"'[1]EXT TC(M)'!O248","v":2.5544054259094588},{"$f":"'[1]EXT TC(M)'!P248","v":0},null,null,{"$f":"'[1]EXT RIN(M)'!C248","v":4059.79113474},{"$f":"'[1]EXT RIN(M)'!D248","v":2731.1},{"$f":"'[1]EXT RIN(M)'!E248","v":5111.03923614},{"$f":"'[1]EXT RIN(M)'!F248","v":2066.7989592252898},{"$f":"'[1]EXT RIN(M)'!G248","v":1307.7},{"$f":"'[1]EXT RIN(M)'!H248","v":2222.9},{"$f":"'[1]EXT RIN(M)'!I248","v":3026.8883949599999},null,null,{"$f":"'[1]EXT RIN(M)'!P248","v":68.968896821279259},{"$f":"'[1]EXT RIN(M)'!Q248","v":99.163189183438647},{"$f":"'[1]EXT RIN(M)'!R248","v":104.15564099024861},{"$f":"'[1]EXT RIN(M)'!S248","v":90.115674561314222},{"$f":"'[1]EXT RIN(M)'!T248","v":107.24464415491141},{"$f":"'[1]EXT RIN(M)'!U248","v":45.25132867871136},{"$f":"'[1]EXT RIN(M)'!V248","v":279.65670934222254},null,null,{"$f":"+'[1]MONE(M)CAPARD'!AE248","v":6.516209717435407},{"$f":"'[1]MONE(M)CAPARD'!AF248","v":3.6609620555722557},{"$f":"'[1]MONE(M)CAPARD'!AG248","v":6.2982660384594338},{"$f":"'[1]MONE(M)CAPARD'!AH248","v":7.2752465946453713},{"$f":"'[1]MONE(M)CAPARD'!AI248","v":12.099993258481819},{"$f":"'[1]MONE(M)CAPARD'!AJ248","v":0.70117636396589977},{"$f":"'[1]MONE(M)CAPARD'!AK248","v":1.9000808407437466},null,null,{"$f":"'[1]MONE(M)CAPARD'!AL248","v":1.7949999999999999},{"$f":"'[1]MONE(M)CAPARD'!AM248","v":3.63},{"$f":"'[1]MONE(M)CAPARD'!AN248","v":3.9},{"$f":"'[1]MONE(M)CAPARD'!AO248","v":4.62},{"$f":"'[1]MONE(M)CAPARD'!AP248","v":6.29},{"$f":"'[1]MONE(M)CAPARD'!AQ248","v":2.76},{"$f":"'[1]MONE(M)CAPARD'!AR248","v":3.32},null,null,{"$f":"'[1]MONE(M)CAPARD'!J248","v":17.075207898120304},{"$f":"'[1]MONE(M)CAPARD'!K248","v":9.1526023304452817},{"$f":"'[1]MONE(M)CAPARD'!L248","v":14.377537938968938},{"$f":"'[1]MONE(M)CAPARD'!M248","v":15.393635509628933},{"$f":"'[1]MONE(M)CAPARD'!N248","v":18.603089304627655},{"$f":"'[1]MONE(M)CAPARD'!O248","v":9.9064406984471969},{"$f":"'[1]MONE(M)CAPARD'!P248","v":4.553112368633804},null,null,{"$f":"'[1]MONE(M)CAPARD'!Q248","v":10.58},{"$f":"'[1]MONE(M)CAPARD'!R248","v":9.1199999999999992},{"$f":"'[1]MONE(M)CAPARD'!S248","v":8.09},{"$f":"'[1]MONE(M)CAPARD'!T248","v":10.41},{"$f":"'[1]MONE(M)CAPARD'!U248","v":12.68},{"$f":"'[1]MONE(M)CAPARD'!V248","v":7.92},{"$f":"'[1]MONE(M)CAPARD'!W248","v":6.01},null,null,{"$f":"'[1]MONE(M)CAPARD'!AS248","v":9},{"$f":"'[1]MONE(M)CAPARD'!AT248","v":"n.a."},{"$f":"'[1]MONE(M)CAPARD'!AU248","v":4.5},{"$f":"'[1]MONE(M)CAPARD'!AV248","v":4.5},{"$f":"'[1]MONE(M)CAPARD'!AW248","v":"n.a."},{"$f":"'[1]MONE(M)CAPARD'!AX248","v":4},{"$f":"'[1]MONE(M)CAPARD'!AY248","v":"n.a."},null,null,{"$f":"+'Datos_Regional (M)'!CF241","v":12.47795754911898},{"$f":"+'Datos_Regional (M)'!CG241","v":-6.280643711607981},{"$f":"+'Datos_Regional (M)'!CH241","v":-0.3778745585305221},{"$f":"+'Datos_Regional (M)'!CI241","v":2.1396956222186958},{"$f":"+'Datos_Regional (M)'!CJ241","v":-8.2262893153439265},{"$f":"+'Datos_Regional (M)'!CK241","v":6.3891772772979305},{"$f":"+'Datos_Regional (M)'!CL241","v":1.2092512216758777},null,null,725.03746686916691,321.0266666666667,592.64166666666677,196.02821800416666,216.65594608087773,457.72221666666672,980.36904358333322,2509.112180954211,3489.4812245375456,null,null,948.51602288166669,615.58166666666659,950.20833333333337,518.80922558416671,355.00000000000006,1006.7833333333332,1341.8403479166666,4394.8985817991661,5736.7389297158325,null,null,-1885.7864008449544,-2247.2577051782873,null,null,{"$f":"'[1]EXT Comercio(M)'!C248","v":751.76831120000043},{"$f":"'[1]EXT Comercio(M)'!D248","v":282.67999999999984},{"$f":"'[1]EXT Comercio(M)'!E248","v":537.80000000000064},{"$f":"'[1]EXT Comercio(M)'!F248","v":163.08698176999997},{"$f":"'[1]EXT Comercio(M)'!G248","v":209.38690089268704},{"$f":"'[1]EXT Comercio(M)'!H248","v":447.40000000000009},{"$f":"'[1]EXT Comercio(M)'!I248","v":987.73681499999998},{"$f":"'[1]EXT Comercio(M)'!K248","v":2392.1221938626841},{"$f":"'[1]EXT Comercio(M)'!L248","v":3379.8590088626952},null,null,{"$f":"'[1]EXT Comercio(M)'!AG248","v":1105.1313259100007},{"$f":"'[1]EXT Comercio(M)'!AH248","v":686.00999999999931},{"$f":"'[1]EXT Comercio(M)'!AI248","v":972.79999999999927},{"$f":"'[1]EXT Comercio(M)'!AJ248","v":549.97651875999964},{"$f":"'[1]EXT Comercio(M)'!AK248","v":385.30000000000007},{"$f":"'[1]EXT Comercio(M)'!AL248","v":1120.6999999999998},{"$f":"'[1]EXT Comercio(M)'!AM248","v":1229.9066589999989},{"$f":"'[1]EXT Comercio(M)'!AO248","v":4819.9178446700025},{"$f":"'[1]EXT Comercio(M)'!AP248","v":6049.8245036700027},null,null,{"$f":"'[1]EXT Comercio(M)'!$BS248","v":-2427.7956508073148},{"$f":"'[1]EXT Comercio(M)'!$BT248","v":-2669.9654948073112}]
[null,null,"Diciembre ",{"$f":"'[1]REAL IPC(M)'!AD249","v":4.0470413162490413},{"$f":"'[1]REAL IPC(M)'!AE249","v":-0.18963968459925915},{"$f":"'[1]REAL IPC(M)'!AF249","v":-0.27876468980595154},{"$f":"'[1]REAL IPC(M)'!AG249","v":2.9511369134010756},{"$f":"'[1]REAL IPC(M)'!AH249","v":0.93379779551500885},{"$f":"'[1]REAL IPC(M)'!AI249","v":5.7648110316649825},{"$f":"'[1]REAL IPC(M)'!AJ249","v":1.8930041152263277},null,null,{"$f":"'[1]REAL IMAE(M)'!AG249","v":3.8181790258528485},{"$f":"'[1]REAL IMAE(M)'!AH249","v":1.616390562834958},{"$f":"'[1]REAL IMAE(M)'!AI249","v":2.7060790512382127},{"$f":"'[1]REAL IMAE(M)'!AJ249","v":-0.95925216742311736},{"$f":"'[1]REAL IMAE(M)'!AK249","v":-1.053702104486665},{"$f":"'[1]REAL IMAE(M)'!AL249","v":7.4562165934822042},{"$f":"'[1]REAL IMAE(M)'!AM249","v":3.804178359837866},null,null,{"$f":"'[1]EXT ITCER(M)'!C249","v":89.077302930222629},{"$f":"'[1]EXT ITCER(M)'!D249","v":91.990086936451775},{"$f":"'[1]EXT ITCER(M)'!E249","v":73.455570040251573},{"$f":"'[1]EXT ITCER(M)'!F249","v":80.432715677247458},{"$f":"'[1]EXT ITCER(M)'!G249","v":97.548473758761887},{"$f":"'[1]EXT ITCER(M)'!H249","v":94.484013436073141},{"$f":"'[1]EXT ITCER(M)'!I249","v":98.904584138072678},null,null,{"$f":"'[1]EXT TC(M)'!J249","v":3.3340916738945312},{"$f":"'[1]EXT TC(M)'!K249","v":0},{"$f":"'[1]EXT TC(M)'!L249","v":8.1264481505124646},{"$f":"'[1]EXT TC(M)'!M249","v":5.2923773924069472E-5},{"$f":"'[1]EXT TC(M)'!N249","v":4.9787173587837028},{"$f":"'[1]EXT TC(M)'!O249","v":2.3615235599272748},{"$f":"'[1]EXT TC(M)'!P249","v":0},null,null,{"$f":"'[1]EXT RIN(M)'!C249","v":4066.2656085899998},{"$f":"'[1]EXT RIN(M)'!D249","v":2983.4},{"$f":"'[1]EXT RIN(M)'!E249","v":5212.5943903699999},{"$f":"'[1]EXT RIN(M)'!F249","v":2116.3361415778572},{"$f":"'[1]EXT RIN(M)'!G249","v":1422.8},{"$f":"'[1]EXT RIN(M)'!H249","v":2851.9},{"$f":"'[1]EXT RIN(M)'!I249","v":3204.5331848385295},null,null,{"$f":"'[1]EXT RIN(M)'!P249","v":67.864031627670755},{"$f":"'[1]EXT RIN(M)'!Q249","v":109.47352970855617},{"$f":"'[1]EXT RIN(M)'!R249","v":101.40223427143657},{"$f":"'[1]EXT RIN(M)'!S249","v":84.393086823148195},{"$f":"'[1]EXT RIN(M)'!T249","v":107.9785240937761},{"$f":"'[1]EXT RIN(M)'!U249","v":54.90819686292938},{"$f":"'[1]EXT RIN(M)'!V249","v":254.12570304778791},null,null,{"$f":"+'[1]MONE(M)CAPARD'!AE249","v":4.0394792880041095},{"$f":"'[1]MONE(M)CAPARD'!AF249","v":3.8469349999999976},{"$f":"'[1]MONE(M)CAPARD'!AG249","v":5.9052263757947756},{"$f":"'[1]MONE(M)CAPARD'!AH249","v":7.5558787593984844},{"$f":"'[1]MONE(M)CAPARD'!AI249","v":11.267220973842255},{"$f":"'[1]MONE(M)CAPARD'!AJ249","v":-0.82712862920264929},{"$f":"'[1]MONE(M)CAPARD'!AK249","v":1.3710420032310275},null,null,{"$f":"'[1]MONE(M)CAPARD'!AL249","v":1.7850000000000001},{"$f":"'[1]MONE(M)CAPARD'!AM249","v":3.65},{"$f":"'[1]MONE(M)CAPARD'!AN249","v":3.88},{"$f":"'[1]MONE(M)CAPARD'!AO249","v":4.6399999999999997},{"$f":"'[1]MONE(M)CAPARD'!AP249","v":6.46},{"$f":"'[1]MONE(M)CAPARD'!AQ249","v":2.64},{"$f":"'[1]MONE(M)CAPARD'!AR249","v":3.29},null,null,{"$f":"'[1]MONE(M)CAPARD'!J249","v":15.515057881064335},{"$f":"'[1]MONE(M)CAPARD'!K249","v":8.6259979999999974},{"$f":"'[1]MONE(M)CAPARD'!L249","v":13.88747807498355},{"$f":"'[1]MONE(M)CAPARD'!M249","v":15.530535714285703},{"$f":"'[1]MONE(M)CAPARD'!N249","v":18.849367551700816},{"$f":"'[1]MONE(M)CAPARD'!O249","v":7.6161332769964201},{"$f":"'[1]MONE(M)CAPARD'!P249","v":4.1877221324717393},null,null,{"$f":"'[1]MONE(M)CAPARD'!Q249","v":10.56},{"$f":"'[1]MONE(M)CAPARD'!R249","v":8.42},{"$f":"'[1]MONE(M)CAPARD'!S249","v":8.1199999999999992},{"$f":"'[1]MONE(M)CAPARD'!T249","v":10.26},{"$f":"'[1]MONE(M)CAPARD'!U249","v":12.45},{"$f":"'[1]MONE(M)CAPARD'!V249","v":8.09},{"$f":"'[1]MONE(M)CAPARD'!W249","v":6.16},null,null,{"$f":"'[1]MONE(M)CAPARD'!AS249","v":9},{"$f":"'[1]MONE(M)CAPARD'!AT249","v":"n.a."},{"$f":"'[1]MONE(M)CAPARD'!AU249","v":4.5},{"$f":"'[1]MONE(M)CAPARD'!AV249","v":4.5},{"$f":"'[1]MONE(M)CAPARD'!AW249","v":"n.a."},{"$f":"'[1]MONE(M)CAPARD'!AX249","v":4},{"$f":"'[1]MONE(M)CAPARD'!AY249","v":"n.a."},null,null,{"$f":"+'Datos_Regional (M)'!CF242","v":7.3667687370214452},{"$f":"+'Datos_Regional (M)'!CG242","v":-4.4170215289603076},{"$f":"+'Datos_Regional (M)'!CH242","v":-2.6987739204442196},{"$f":"+'Datos_Regional (M)'!CI242","v":2.5058362240420573},{"$f":"+'Datos_Regional (M)'!CJ242","v":-7.3137881303383834},{"$f":"+'Datos_Regional (M)'!CK242","v":7.9854357463250425},{"$f":"+'Datos_Regional (M)'!CL242","v":2.0864406026152249},null,null,731.97497315333351,322.17416666666668,601.14166666666654,196.82933375499999,218.80900444027588,456.90833333333336,988.23281725000004,2527.8374780152758,3516.0702952652769,null,null,949.55567407499996,610.44749999999988,960.94166666666649,518.64481135583321,360.58333333333331,1024.6583333333335,1337.4061076666667,4424.831318764167,5762.2374264308337,null,null,-1896.9938407488905,-2246.1671311655573,null,null,{"$f":"'[1]EXT Comercio(M)'!C249","v":691.17352102000132},{"$f":"'[1]EXT Comercio(M)'!D249","v":299.46000000000004},{"$f":"'[1]EXT Comercio(M)'!E249","v":639.69999999999936},{"$f":"'[1]EXT Comercio(M)'!F249","v":199.45258663999994},{"$f":"'[1]EXT Comercio(M)'!G249","v":200.28741489720724},{"$f":"'[1]EXT Comercio(M)'!H249","v":439.30000000000018},{"$f":"'[1]EXT Comercio(M)'!I249","v":700.5732290000002},{"$f":"'[1]EXT Comercio(M)'!K249","v":2469.3735225572091},{"$f":"'[1]EXT Comercio(M)'!L249","v":3169.9467515572105},null,null,{"$f":"'[1]EXT Comercio(M)'!AG249","v":1056.1199696799995},{"$f":"'[1]EXT Comercio(M)'!AH249","v":612.02999999999975},{"$f":"'[1]EXT Comercio(M)'!AI249","v":1088.099999999999},{"$f":"'[1]EXT Comercio(M)'!AJ249","v":575.22542067999984},{"$f":"'[1]EXT Comercio(M)'!AK249","v":407.59999999999991},{"$f":"'[1]EXT Comercio(M)'!AL249","v":1225.1999999999998},{"$f":"'[1]EXT Comercio(M)'!AM249","v":1252.0713840000003},{"$f":"'[1]EXT Comercio(M)'!AO249","v":4964.2753903600023},{"$f":"'[1]EXT Comercio(M)'!AP249","v":6216.3467743599977},null,null,{"$f":"'[1]EXT Comercio(M)'!$BS249","v":-2494.9018678027896},{"$f":"'[1]EXT Comercio(M)'!$BT249","v":-3046.4000228027944}]
[null,2010,"Enero",{"$f":"'[1]REAL IPC(M)'!AD250","v":5.3430509509209418},{"$f":"'[1]REAL IPC(M)'!AE250","v":0.79277471149022205},{"$f":"'[1]REAL IPC(M)'!AF250","v":1.4325703935452141},{"$f":"'[1]REAL IPC(M)'!AG250","v":3.5818005808325295},{"$f":"'[1]REAL IPC(M)'!AH250","v":1.8504656993086652},{"$f":"'[1]REAL IPC(M)'!AI250","v":6.8531958237840795},{"$f":"'[1]REAL IPC(M)'!AJ250","v":3.0553261767134727},null,null,{"$f":"'[1]REAL IMAE(M)'!AG250","v":4.0243893634883534},{"$f":"'[1]REAL IMAE(M)'!AH250","v":1.7843276980671723},{"$f":"'[1]REAL IMAE(M)'!AI250","v":3.0559556054955399},{"$f":"'[1]REAL IMAE(M)'!AJ250","v":1.5782003737272441},{"$f":"'[1]REAL IMAE(M)'!AK250","v":-0.33714912482638421},{"$f":"'[1]REAL IMAE(M)'!AL250","v":8.6413545941148744},{"$f":"'[1]REAL IMAE(M)'!AM250","v":4.3091797484145919},null,null,{"$f":"'[1]EXT ITCER(M)'!C250","v":87.149755555664257},{"$f":"'[1]EXT ITCER(M)'!D250","v":91.646519184585429},{"$f":"'[1]EXT ITCER(M)'!E250","v":72.935272059823092},{"$f":"'[1]EXT ITCER(M)'!F250","v":80.033577802715314},{"$f":"'[1]EXT ITCER(M)'!G250","v":97.310700396493345},{"$f":"'[1]EXT ITCER(M)'!H250","v":93.373162685361763},{"$f":"'[1]EXT ITCER(M)'!I250","v":98.175727923772698},null,null,{"$f":"'[1]EXT TC(M)'!J250","v":1.4043425142300792},{"$f":"'[1]EXT TC(M)'!K250","v":0},{"$f":"'[1]EXT TC(M)'!L250","v":6.511100117246432},{"$f":"'[1]EXT TC(M)'!M250","v":5.2923773924069472E-5},{"$f":"'[1]EXT TC(M)'!N250","v":5.0320863805486331},{"$f":"'[1]EXT TC(M)'!O250","v":2.0941890283381257},{"$f":"'[1]EXT TC(M)'!P250","v":0},null,null,{"$f":"'[1]EXT RIN(M)'!C250","v":4072.4222186000002},{"$f":"'[1]EXT RIN(M)'!D250","v":3013.5},{"$f":"'[1]EXT RIN(M)'!E250","v":5526.1660629600001},{"$f":"'[1]EXT RIN(M)'!F250","v":2077.2321656241356},{"$f":"'[1]EXT RIN(M)'!G250","v":1348.8},{"$f":"'[1]EXT RIN(M)'!H250","v":2615.7731839341236},{"$f":"'[1]EXT RIN(M)'!I250","v":3025.1108189890301},null,null,{"$f":"'[1]EXT RIN(M)'!P250","v":67.714424980642264},{"$f":"'[1]EXT RIN(M)'!Q250","v":106.01590572798996},{"$f":"'[1]EXT RIN(M)'!R250","v":107.14559616339592},{"$f":"'[1]EXT RIN(M)'!S250","v":83.231953567140934},{"$f":"'[1]EXT RIN(M)'!T250","v":105.11754664533153},{"$f":"'[1]EXT RIN(M)'!U250","v":51.888946277011719},{"$f":"'[1]EXT RIN(M)'!V250","v":268.62018595358586},null,null,{"$f":"+'[1]MONE(M)CAPARD'!AE250","v":2.5221872967367576},{"$f":"'[1]MONE(M)CAPARD'!AF250","v":2.8347520908004715},{"$f":"'[1]MONE(M)CAPARD'!AG250","v":4.1282889610389466},{"$f":"'[1]MONE(M)CAPARD'!AH250","v":6.9685981308411185},{"$f":"'[1]MONE(M)CAPARD'!AI250","v":7.4447034174301541},{"$f":"'[1]MONE(M)CAPARD'!AJ250","v":-1.9308695522655019},{"$f":"'[1]MONE(M)CAPARD'!AK250","v":0.24712339743588507},null,null,{"$f":"'[1]MONE(M)CAPARD'!AL250","v":1.7850000000000001},{"$f":"'[1]MONE(M)CAPARD'!AM250","v":3.65},{"$f":"'[1]MONE(M)CAPARD'!AN250","v":3.9},{"$f":"'[1]MONE(M)CAPARD'!AO250","v":4.57},{"$f":"'[1]MONE(M)CAPARD'!AP250","v":5.97},{"$f":"'[1]MONE(M)CAPARD'!AQ250","v":2.5},{"$f":"'[1]MONE(M)CAPARD'!AR250","v":3.31},null,null,{"$f":"'[1]MONE(M)CAPARD'!J250","v":13.647743177456709},{"$f":"'[1]MONE(M)CAPARD'!K250","v":6.9620320589406548},{"$f":"'[1]MONE(M)CAPARD'!L250","v":11.916714285714271},{"$f":"'[1]MONE(M)CAPARD'!M250","v":14.952626168224295},{"$f":"'[1]MONE(M)CAPARD'!N250","v":17.519900196279309},{"$f":"'[1]MONE(M)CAPARD'!O250","v":5.9023074860734406},{"$f":"'[1]MONE(M)CAPARD'!P250","v":3.2261057692307564},null,null,{"$f":"'[1]MONE(M)CAPARD'!Q250","v":10.57},{"$f":"'[1]MONE(M)CAPARD'!R250","v":7.81},{"$f":"'[1]MONE(M)CAPARD'!S250","v":8.1100000000000012},{"$f":"'[1]MONE(M)CAPARD'!T250","v":10.32},{"$f":"'[1]MONE(M)CAPARD'!U250","v":12.89},{"$f":"'[1]MONE(M)CAPARD'!V250","v":8.48},{"$f":"'[1]MONE(M)CAPARD'!W250","v":6.38},null,null,{"$f":"'[1]MONE(M)CAPARD'!AS250","v":9},{"$f":"'[1]MONE(M)CAPARD'!AT250","v":"n.a."},{"$f":"'[1]MONE(M)CAPARD'!AU250","v":4.5},{"$f":"'[1]MONE(M)CAPARD'!AV250","v":4.5},{"$f":"'[1]MONE(M)CAPARD'!AW250","v":"n.a."},{"$f":"'[1]MONE(M)CAPARD'!AX250","v":4},{"$f":"'[1]MONE(M)CAPARD'!AY250","v":"n.a."},null,null,{"$f":"+'Datos_Regional (M)'!CF243","v":6.3611273081439101},{"$f":"+'Datos_Regional (M)'!CG243","v":-4.6878230264896796},{"$f":"+'Datos_Regional (M)'!CH243","v":0.68490266692415869},{"$f":"+'Datos_Regional (M)'!CI243","v":1.9444348866115568},{"$f":"+'Datos_Regional (M)'!CJ243","v":-6.6741122536062019},{"$f":"+'Datos_Regional (M)'!CK243","v":10.827182775303257},{"$f":"+'Datos_Regional (M)'!CL243","v":1.5022583036576886},null,null,740.74932155000022,323.26916666666665,608.01666666666665,200.08065294583332,222.62945788069669,459.17500000000001,991.57369949999986,2553.9202657098635,3545.4939652098642,null,null,965.88366715333348,614.63166666666666,967.85833333333312,519.74026435916664,360.62042822750004,1032.241666666667,1338.2338819166666,4460.9760264066672,5799.2099083233334,null,null,-1907.055760696803,-2253.7159431134701,null,null,{"$f":"'[1]EXT Comercio(M)'!C250","v":724.41177244000005},{"$f":"'[1]EXT Comercio(M)'!D250","v":329.95},{"$f":"'[1]EXT Comercio(M)'!E250","v":671.2},{"$f":"'[1]EXT Comercio(M)'!F250","v":217.17174202999999},{"$f":"'[1]EXT Comercio(M)'!G250","v":231.19601726382402},{"$f":"'[1]EXT Comercio(M)'!H250","v":392.79999999999995},{"$f":"'[1]EXT Comercio(M)'!I250","v":657.42217399999993},{"$f":"'[1]EXT Comercio(M)'!K250","v":2566.7295317338239},{"$f":"'[1]EXT Comercio(M)'!L250","v":3224.1517057338242},null,null,{"$f":"'[1]EXT Comercio(M)'!AG250","v":1054.67359971},{"$f":"'[1]EXT Comercio(M)'!AH250","v":638.39},{"$f":"'[1]EXT Comercio(M)'!AI250","v":924.3},{"$f":"'[1]EXT Comercio(M)'!AJ250","v":508.14029879000003},{"$f":"'[1]EXT Comercio(M)'!AK250","v":326.74513873000001},{"$f":"'[1]EXT Comercio(M)'!AL250","v":1007.4},{"$f":"'[1]EXT Comercio(M)'!AM250","v":1249.2773450000004},{"$f":"'[1]EXT Comercio(M)'!AO250","v":4459.6490372299995},{"$f":"'[1]EXT Comercio(M)'!AP250","v":5708.9263822299999},null,null,{"$f":"'[1]EXT Comercio(M)'!$BS250","v":-1892.919505496176},{"$f":"'[1]EXT Comercio(M)'!$BT250","v":-2484.7746764961767}]
[null,null,"Febrero",{"$f":"'[1]REAL IPC(M)'!AD251","v":5.5994495137550935},{"$f":"'[1]REAL IPC(M)'!AE251","v":1.0449110820857952},{"$f":"'[1]REAL IPC(M)'!AF251","v":2.4848150193263336},{"$f":"'[1]REAL IPC(M)'!AG251","v":3.5062439961575467},{"$f":"'[1]REAL IPC(M)'!AH251","v":2.7426097137246073},{"$f":"'[1]REAL IPC(M)'!AI251","v":6.6768215283067107},{"$f":"'[1]REAL IPC(M)'!AJ251","v":2.9629629629629575},null,null,{"$f":"'[1]REAL IMAE(M)'!AG251","v":4.3239457342715655},{"$f":"'[1]REAL IMAE(M)'!AH251","v":2.874643670418668},{"$f":"'[1]REAL IMAE(M)'!AI251","v":3.3260256663352341},{"$f":"'[1]REAL IMAE(M)'!AJ251","v":4.7519237400426464},{"$f":"'[1]REAL IMAE(M)'!AK251","v":0.39584796051663673},{"$f":"'[1]REAL IMAE(M)'!AL251","v":9.5574532706375237},{"$f":"'[1]REAL IMAE(M)'!AM251","v":5.1625338612210854},null,null,{"$f":"'[1]EXT ITCER(M)'!C251","v":84.862501994960127},{"$f":"'[1]EXT ITCER(M)'!D251","v":91.440939696860355},{"$f":"'[1]EXT ITCER(M)'!E251","v":70.636940275316803},{"$f":"'[1]EXT ITCER(M)'!F251","v":79.400813637112464},{"$f":"'[1]EXT ITCER(M)'!G251","v":96.372800861033681},{"$f":"'[1]EXT ITCER(M)'!H251","v":93.365404884754156},{"$f":"'[1]EXT ITCER(M)'!I251","v":97.847077238079166},null,null,{"$f":"'[1]EXT TC(M)'!J251","v":-1.6395877820072453},{"$f":"'[1]EXT TC(M)'!K251","v":0},{"$f":"'[1]EXT TC(M)'!L251","v":2.5676813557500902},{"$f":"'[1]EXT TC(M)'!M251","v":6.7190024562947988E-10},{"$f":"'[1]EXT TC(M)'!N251","v":5.2047545986273116},{"$f":"'[1]EXT TC(M)'!O251","v":1.7830024185837234},{"$f":"'[1]EXT TC(M)'!P251","v":0},null,null,{"$f":"'[1]EXT RIN(M)'!C251","v":4113.3952816999999},{"$f":"'[1]EXT RIN(M)'!D251","v":2842.8},{"$f":"'[1]EXT RIN(M)'!E251","v":5565.4613587100002},{"$f":"'[1]EXT RIN(M)'!F251","v":2139.2136788249127},{"$f":"'[1]EXT RIN(M)'!G251","v":1365.3},{"$f":"'[1]EXT RIN(M)'!H251","v":2430.1143302571368},{"$f":"'[1]EXT RIN(M)'!I251","v":2698.6626112100003},null,null,{"$f":"'[1]EXT RIN(M)'!P251","v":67.53921132226634},{"$f":"'[1]EXT RIN(M)'!Q251","v":101.31107825307883},{"$f":"'[1]EXT RIN(M)'!R251","v":109.21978820344793},{"$f":"'[1]EXT RIN(M)'!S251","v":82.212047674641838},{"$f":"'[1]EXT RIN(M)'!T251","v":100.2529709008644},{"$f":"'[1]EXT RIN(M)'!U251","v":48.967696565438928},{"$f":"'[1]EXT RIN(M)'!V251","v":245.38156063317626},null,null,{"$f":"+'[1]MONE(M)CAPARD'!AE251","v":2.2732604168852393},{"$f":"'[1]MONE(M)CAPARD'!AF251","v":2.5583563686984272},{"$f":"'[1]MONE(M)CAPARD'!AG251","v":3.059170258620695},{"$f":"'[1]MONE(M)CAPARD'!AH251","v":6.9983758700695988},{"$f":"'[1]MONE(M)CAPARD'!AI251","v":6.8301854299558782},{"$f":"'[1]MONE(M)CAPARD'!AJ251","v":-1.7218562589243531},{"$f":"'[1]MONE(M)CAPARD'!AK251","v":0.34676258992806269},null,null,{"$f":"'[1]MONE(M)CAPARD'!AL251","v":1.7749999999999999},{"$f":"'[1]MONE(M)CAPARD'!AM251","v":3.63},{"$f":"'[1]MONE(M)CAPARD'!AN251","v":3.92},{"$f":"'[1]MONE(M)CAPARD'!AO251","v":4.47},{"$f":"'[1]MONE(M)CAPARD'!AP251","v":4.84},{"$f":"'[1]MONE(M)CAPARD'!AQ251","v":2.52},{"$f":"'[1]MONE(M)CAPARD'!AR251","v":3.32},null,null,{"$f":"'[1]MONE(M)CAPARD'!J251","v":13.939987901478075},{"$f":"'[1]MONE(M)CAPARD'!K251","v":7.2592363527891113},{"$f":"'[1]MONE(M)CAPARD'!L251","v":10.748114224137936},{"$f":"'[1]MONE(M)CAPARD'!M251","v":15.026877030162403},{"$f":"'[1]MONE(M)CAPARD'!N251","v":16.67048143284935},{"$f":"'[1]MONE(M)CAPARD'!O251","v":5.9836601618276681},{"$f":"'[1]MONE(M)CAPARD'!P251","v":2.9496402877697894},null,null,{"$f":"'[1]MONE(M)CAPARD'!Q251","v":10.83},{"$f":"'[1]MONE(M)CAPARD'!R251","v":8.3800000000000008},{"$f":"'[1]MONE(M)CAPARD'!S251","v":8.09},{"$f":"'[1]MONE(M)CAPARD'!T251","v":10.29},{"$f":"'[1]MONE(M)CAPARD'!U251","v":12.17},{"$f":"'[1]MONE(M)CAPARD'!V251","v":8.0399999999999991},{"$f":"'[1]MONE(M)CAPARD'!W251","v":6},null,null,{"$f":"'[1]MONE(M)CAPARD'!AS251","v":9},{"$f":"'[1]MONE(M)CAPARD'!AT251","v":"n.a."},{"$f":"'[1]MONE(M)CAPARD'!AU251","v":4.5},{"$f":"'[1]MONE(M)CAPARD'!AV251","v":4.5},{"$f":"'[1]MONE(M)CAPARD'!AW251","v":"n.a."},{"$f":"'[1]MONE(M)CAPARD'!AX251","v":4},{"$f":"'[1]MONE(M)CAPARD'!AY251","v":"n.a."},null,null,{"$f":"+'Datos_Regional (M)'!CF244","v":4.8475397809677023},{"$f":"+'Datos_Regional (M)'!CG244","v":-5.6008322384257685},{"$f":"+'Datos_Regional (M)'!CH244","v":-0.4549456724735057},{"$f":"+'Datos_Regional (M)'!CI244","v":1.7579687403344479},{"$f":"+'Datos_Regional (M)'!CJ244","v":-6.9173471035634542},{"$f":"+'Datos_Regional (M)'!CK244","v":12.957411814775433},{"$f":"+'Datos_Regional (M)'!CL244","v":1.7389908128091935},null,null,746.97530377000021,327.1658333333333,609.6583333333333,204.95634860416666,224.87732325550863,468.82500000000005,999.02322791666654,2582.458142296342,3581.4813702130091,null,null,976.07669970333336,616.54,976.49166666666633,522.41650837999998,364.05623364000007,1050.916666666667,1352.3180196666667,4506.4977750566668,5858.815794723334,null,null,-1924.0396327603246,-2277.3344245103249,null,null,{"$f":"'[1]EXT Comercio(M)'!C251","v":761.04618918000006},{"$f":"'[1]EXT Comercio(M)'!D251","v":367.56},{"$f":"'[1]EXT Comercio(M)'!E251","v":622.20000000000005},{"$f":"'[1]EXT Comercio(M)'!F251","v":256.12448094000001},{"$f":"'[1]EXT Comercio(M)'!G251","v":240.62047166311703},{"$f":"'[1]EXT Comercio(M)'!H251","v":538.29999999999995},{"$f":"'[1]EXT Comercio(M)'!I251","v":779.94431400000008},{"$f":"'[1]EXT Comercio(M)'!K251","v":2785.8511417831169},{"$f":"'[1]EXT Comercio(M)'!L251","v":3565.7954557831172},null,null,{"$f":"'[1]EXT Comercio(M)'!AG251","v":953.58158144999993},{"$f":"'[1]EXT Comercio(M)'!AH251","v":606.74999999999989},{"$f":"'[1]EXT Comercio(M)'!AI251","v":989.89999999999986},{"$f":"'[1]EXT Comercio(M)'!AJ251","v":529.68767453999999},{"$f":"'[1]EXT Comercio(M)'!AK251","v":359.92966495000007},{"$f":"'[1]EXT Comercio(M)'!AL251","v":1024.9000000000001},{"$f":"'[1]EXT Comercio(M)'!AM251","v":1256.9013170000003},{"$f":"'[1]EXT Comercio(M)'!AO251","v":4464.7489209399992},{"$f":"'[1]EXT Comercio(M)'!AP251","v":5721.650237939999},null,null,{"$f":"'[1]EXT Comercio(M)'!$BS251","v":-1678.8977791568827},{"$f":"'[1]EXT Comercio(M)'!$BT251","v":-2155.8547821568827}]
[null,null,"Marzo",{"$f":"'[1]REAL IPC(M)'!AD252","v":5.8416234406492622},{"$f":"'[1]REAL IPC(M)'!AE252","v":0.88999999999998625},{"$f":"'[1]REAL IPC(M)'!AF252","v":3.9299999999999913},{"$f":"'[1]REAL IPC(M)'!AG252","v":3.9865513928914562},{"$f":"'[1]REAL IPC(M)'!AH252","v":4.4243070848204091},{"$f":"'[1]REAL IPC(M)'!AI252","v":7.4268876144609477},{"$f":"'[1]REAL IPC(M)'!AJ252","v":2.6982829108749091},null,null,{"$f":"'[1]REAL IMAE(M)'!AG252","v":4.4778347617211658},{"$f":"'[1]REAL IMAE(M)'!AH252","v":3.5267488847977146},{"$f":"'[1]REAL IMAE(M)'!AI252","v":3.3792559063849841},{"$f":"'[1]REAL IMAE(M)'!AJ252","v":4.0789912023823742},{"$f":"'[1]REAL IMAE(M)'!AK252","v":1.1236109011670843},{"$f":"'[1]REAL IMAE(M)'!AL252","v":9.9615762307611515},{"$f":"'[1]REAL IMAE(M)'!AM252","v":5.9121005161357614},null,null,{"$f":"'[1]EXT ITCER(M)'!C252","v":82.216045252714466},{"$f":"'[1]EXT ITCER(M)'!D252","v":91.181114461680949},{"$f":"'[1]EXT ITCER(M)'!E252","v":68.776949175571986},{"$f":"'[1]EXT ITCER(M)'!F252","v":79.06027069560416},{"$f":"'[1]EXT ITCER(M)'!G252","v":95.73268908303136},{"$f":"'[1]EXT ITCER(M)'!H252","v":92.869668739942981},{"$f":"'[1]EXT ITCER(M)'!I252","v":97.489852948058086},null,null,{"$f":"'[1]EXT TC(M)'!J252","v":-5.0052180236404942},{"$f":"'[1]EXT TC(M)'!K252","v":0},{"$f":"'[1]EXT TC(M)'!L252","v":-0.66045864780634},{"$f":"'[1]EXT TC(M)'!M252","v":1.9092906117310185E-5},{"$f":"'[1]EXT TC(M)'!N252","v":5.4576500843545697},{"$f":"'[1]EXT TC(M)'!O252","v":1.7674650726584078},{"$f":"'[1]EXT TC(M)'!P252","v":0},null,null,{"$f":"'[1]EXT RIN(M)'!C252","v":4155.1881406399998},{"$f":"'[1]EXT RIN(M)'!D252","v":2605.4},{"$f":"'[1]EXT RIN(M)'!E252","v":5547.3303416799999},{"$f":"'[1]EXT RIN(M)'!F252","v":2194.4289586800073},{"$f":"'[1]EXT RIN(M)'!G252","v":1339.6},{"$f":"'[1]EXT RIN(M)'!H252","v":2295.5093843614832},{"$f":"'[1]EXT RIN(M)'!I252","v":2863.5467707600001},null,null,{"$f":"'[1]EXT RIN(M)'!P252","v":64.968712507060246},{"$f":"'[1]EXT RIN(M)'!Q252","v":93.956580332443437},{"$f":"'[1]EXT RIN(M)'!R252","v":103.8636744728084},{"$f":"'[1]EXT RIN(M)'!S252","v":78.436689878235924},{"$f":"'[1]EXT RIN(M)'!T252","v":99.264380680039309},{"$f":"'[1]EXT RIN(M)'!U252","v":46.904040003770156},{"$f":"'[1]EXT RIN(M)'!V252","v":260.47024859669506},null,null,{"$f":"+'[1]MONE(M)CAPARD'!AE252","v":2.0392511841629566},{"$f":"'[1]MONE(M)CAPARD'!AF252","v":2.5473287739121955},{"$f":"'[1]MONE(M)CAPARD'!AG252","v":1.6260944866737315},{"$f":"'[1]MONE(M)CAPARD'!AH252","v":6.4176073903002244},{"$f":"'[1]MONE(M)CAPARD'!AI252","v":3.8172694779370362},{"$f":"'[1]MONE(M)CAPARD'!AJ252","v":-2.3987361746055722},{"$f":"'[1]MONE(M)CAPARD'!AK252","v":0.52748407643311013},null,null,{"$f":"'[1]MONE(M)CAPARD'!AL252","v":1.605},{"$f":"'[1]MONE(M)CAPARD'!AM252","v":3.46},{"$f":"'[1]MONE(M)CAPARD'!AN252","v":3.81},{"$f":"'[1]MONE(M)CAPARD'!AO252","v":4.37},{"$f":"'[1]MONE(M)CAPARD'!AP252","v":4.1500000000000004},{"$f":"'[1]MONE(M)CAPARD'!AQ252","v":2.2599999999999998},{"$f":"'[1]MONE(M)CAPARD'!AR252","v":3.24},null,null,{"$f":"'[1]MONE(M)CAPARD'!J252","v":13.632043888141471},{"$f":"'[1]MONE(M)CAPARD'!K252","v":6.630984240261685},{"$f":"'[1]MONE(M)CAPARD'!L252","v":9.1888771288367277},{"$f":"'[1]MONE(M)CAPARD'!M252","v":14.332092378752881},{"$f":"'[1]MONE(M)CAPARD'!N252","v":14.855428577099016},{"$f":"'[1]MONE(M)CAPARD'!O252","v":4.4989783217813875},{"$f":"'[1]MONE(M)CAPARD'!P252","v":3.2733917197452111},null,null,{"$f":"'[1]MONE(M)CAPARD'!Q252","v":10.24},{"$f":"'[1]MONE(M)CAPARD'!R252","v":7.58},{"$f":"'[1]MONE(M)CAPARD'!S252","v":8},{"$f":"'[1]MONE(M)CAPARD'!T252","v":10.220000000000001},{"$f":"'[1]MONE(M)CAPARD'!U252","v":10.7},{"$f":"'[1]MONE(M)CAPARD'!V252","v":8.1199999999999992},{"$f":"'[1]MONE(M)CAPARD'!W252","v":6.06},null,null,{"$f":"'[1]MONE(M)CAPARD'!AS252","v":9},{"$f":"'[1]MONE(M)CAPARD'!AT252","v":"n.a."},{"$f":"'[1]MONE(M)CAPARD'!AU252","v":4.5},{"$f":"'[1]MONE(M)CAPARD'!AV252","v":4.5},{"$f":"'[1]MONE(M)CAPARD'!AW252","v":"n.a."},{"$f":"'[1]MONE(M)CAPARD'!AX252","v":4},{"$f":"'[1]MONE(M)CAPARD'!AY252","v":"n.a."},null,null,{"$f":"+'Datos_Regional (M)'!CF245","v":1.8847691291064006},{"$f":"+'Datos_Regional (M)'!CG245","v":-4.9806637359641197},{"$f":"+'Datos_Regional (M)'!CH245","v":-1.785619035943975},{"$f":"+'Datos_Regional (M)'!CI245","v":1.9369577592874609},{"$f":"+'Datos_Regional (M)'!CJ245","v":-7.8151813763154498},{"$f":"+'Datos_Regional (M)'!CK245","v":15.459624810257754},{"$f":"+'Datos_Regional (M)'!CL245","v":2.5564165107037518},null,null,759.83754886250028,330.89916666666664,627.34166666666658,208.55448270499997,233.92925656717225,480.2,1013.698034,2640.7621214680057,3654.4601554680066,null,null,1002.8045951283334,624.51666666666654,996.35833333333323,531.81034234166657,370.82632915583343,1072.2833333333335,1367.7006346666667,4598.5995999591669,5966.3002346258336,null,null,-1957.8374784911609,-2311.8400791578279,null,null,{"$f":"'[1]EXT Comercio(M)'!C252","v":926.90985303999992},{"$f":"'[1]EXT Comercio(M)'!D252","v":392.36999999999989},{"$f":"'[1]EXT Comercio(M)'!E252","v":862.49999999999989},{"$f":"'[1]EXT Comercio(M)'!F252","v":278.07999217999998},{"$f":"'[1]EXT Comercio(M)'!G252","v":348.78656202900902},{"$f":"'[1]EXT Comercio(M)'!H252","v":620.9},{"$f":"'[1]EXT Comercio(M)'!I252","v":1196.2412440000003},{"$f":"'[1]EXT Comercio(M)'!K252","v":3429.5464072490086},{"$f":"'[1]EXT Comercio(M)'!L252","v":4625.7876512490084},null,null,{"$f":"'[1]EXT Comercio(M)'!AG252","v":1161.3047372100002},{"$f":"'[1]EXT Comercio(M)'!AH252","v":707.13000000000011},{"$f":"'[1]EXT Comercio(M)'!AI252","v":1142.8000000000002},{"$f":"'[1]EXT Comercio(M)'!AJ252","v":638.30819513999995},{"$f":"'[1]EXT Comercio(M)'!AK252","v":424.44114618999998},{"$f":"'[1]EXT Comercio(M)'!AL252","v":1270},{"$f":"'[1]EXT Comercio(M)'!AM252","v":1560.0126400000001},{"$f":"'[1]EXT Comercio(M)'!AO252","v":5343.9840785400029},{"$f":"'[1]EXT Comercio(M)'!AP252","v":6903.9967185400055},null,null,{"$f":"'[1]EXT Comercio(M)'!$BS252","v":-1914.4376712909916},{"$f":"'[1]EXT Comercio(M)'!$BT252","v":-2278.2090672909917}]
[null,null,"Abril",{"$f":"'[1]REAL IPC(M)'!AD253","v":5.5560336650257307},{"$f":"'[1]REAL IPC(M)'!AE253","v":0.62949640287767905},{"$f":"'[1]REAL IPC(M)'!AF253","v":3.7504148689014145},{"$f":"'[1]REAL IPC(M)'!AG253","v":4.16467209191},{"$f":"'[1]REAL IPC(M)'!AH253","v":4.8483392870715258},{"$f":"'[1]REAL IPC(M)'!AI253","v":7.6567740302474556},{"$f":"'[1]REAL IPC(M)'!AJ253","v":2.6058631921824214},null,null,{"$f":"'[1]REAL IMAE(M)'!AG253","v":4.4215148394011674},{"$f":"'[1]REAL IMAE(M)'!AH253","v":2.336854452146913},{"$f":"'[1]REAL IMAE(M)'!AI253","v":3.2264307013816405},{"$f":"'[1]REAL IMAE(M)'!AJ253","v":4.6791338728638454},{"$f":"'[1]REAL IMAE(M)'!AK253","v":1.822085394490621},{"$f":"'[1]REAL IMAE(M)'!AL253","v":9.8333183139717857},{"$f":"'[1]REAL IMAE(M)'!AM253","v":6.4541334583528762},null,null,{"$f":"'[1]EXT ITCER(M)'!C253","v":78.890247920047742},{"$f":"'[1]EXT ITCER(M)'!D253","v":91.365096229974739},{"$f":"'[1]EXT ITCER(M)'!E253","v":68.705958822725236},{"$f":"'[1]EXT ITCER(M)'!F253","v":78.678704529251291},{"$f":"'[1]EXT ITCER(M)'!G253","v":95.737740999608647},{"$f":"'[1]EXT ITCER(M)'!H253","v":92.877676201600153},{"$f":"'[1]EXT ITCER(M)'!I253","v":97.20271677353378},null,null,{"$f":"'[1]EXT TC(M)'!J253","v":-9.5219163222317746},{"$f":"'[1]EXT TC(M)'!K253","v":0},{"$f":"'[1]EXT TC(M)'!L253","v":-1.0732818611348862},{"$f":"'[1]EXT TC(M)'!M253","v":1.9092906136112487E-5},{"$f":"'[1]EXT TC(M)'!N253","v":5.8877191630336512},{"$f":"'[1]EXT TC(M)'!O253","v":1.6636148452503139},{"$f":"'[1]EXT TC(M)'!P253","v":0},null,null,{"$f":"'[1]EXT RIN(M)'!C253","v":4193.8890468099999},{"$f":"'[1]EXT RIN(M)'!D253","v":2734.9},{"$f":"'[1]EXT RIN(M)'!E253","v":5601.6},{"$f":"'[1]EXT RIN(M)'!F253","v":2144.4307483213433},{"$f":"'[1]EXT RIN(M)'!G253","v":1401.4},{"$f":"'[1]EXT RIN(M)'!H253","v":2294.334554135256},{"$f":"'[1]EXT RIN(M)'!I253","v":2722.5123906899998},null,null,{"$f":"'[1]EXT RIN(M)'!P253","v":64.39192553967797},{"$f":"'[1]EXT RIN(M)'!Q253","v":94.214858381450114},{"$f":"'[1]EXT RIN(M)'!R253","v":106.05832560456916},{"$f":"'[1]EXT RIN(M)'!S253","v":78.60838862677663},{"$f":"'[1]EXT RIN(M)'!T253","v":100.79181641529063},{"$f":"'[1]EXT RIN(M)'!U253","v":46.190016049097245},{"$f":"'[1]EXT RIN(M)'!V253","v":256.23249447958756},null,null,{"$f":"+'[1]MONE(M)CAPARD'!AE253","v":2.0784850081963664},{"$f":"'[1]MONE(M)CAPARD'!AF253","v":2.6239857015192327},{"$f":"'[1]MONE(M)CAPARD'!AG253","v":1.7634484964811383},{"$f":"'[1]MONE(M)CAPARD'!AH253","v":6.0532306985294166},{"$f":"'[1]MONE(M)CAPARD'!AI253","v":5.1218623263328755},{"$f":"'[1]MONE(M)CAPARD'!AJ253","v":-2.4306636101804813},{"$f":"'[1]MONE(M)CAPARD'!AK253","v":0.66676190476189412},null,null,{"$f":"'[1]MONE(M)CAPARD'!AL253","v":1.4899999999999998},{"$f":"'[1]MONE(M)CAPARD'!AM253","v":3.27},{"$f":"'[1]MONE(M)CAPARD'!AN253","v":3.69},{"$f":"'[1]MONE(M)CAPARD'!AO253","v":4.4000000000000004},{"$f":"'[1]MONE(M)CAPARD'!AP253","v":3.69},{"$f":"'[1]MONE(M)CAPARD'!AQ253","v":2.29},{"$f":"'[1]MONE(M)CAPARD'!AR253","v":3.29},null,null,{"$f":"'[1]MONE(M)CAPARD'!J253","v":13.996325763677667},{"$f":"'[1]MONE(M)CAPARD'!K253","v":6.6983378016085986},{"$f":"'[1]MONE(M)CAPARD'!L253","v":9.3200447856685997},{"$f":"'[1]MONE(M)CAPARD'!M253","v":14.213386948529417},{"$f":"'[1]MONE(M)CAPARD'!N253","v":15.03920969922739},{"$f":"'[1]MONE(M)CAPARD'!O253","v":3.3934009287015487},{"$f":"'[1]MONE(M)CAPARD'!P253","v":2.7816507936507828},null,null,{"$f":"'[1]MONE(M)CAPARD'!Q253","v":9.7799999999999994},{"$f":"'[1]MONE(M)CAPARD'!R253","v":7.37},{"$f":"'[1]MONE(M)CAPARD'!S253","v":7.9},{"$f":"'[1]MONE(M)CAPARD'!T253","v":10.17},{"$f":"'[1]MONE(M)CAPARD'!U253","v":10.55},{"$f":"'[1]MONE(M)CAPARD'!V253","v":7.51},{"$f":"'[1]MONE(M)CAPARD'!W253","v":5.46},null,null,{"$f":"'[1]MONE(M)CAPARD'!AS253","v":9},{"$f":"'[1]MONE(M)CAPARD'!AT253","v":"n.a."},{"$f":"'[1]MONE(M)CAPARD'!AU253","v":4.5},{"$f":"'[1]MONE(M)CAPARD'!AV253","v":4.5},{"$f":"'[1]MONE(M)CAPARD'!AW253","v":"n.a."},{"$f":"'[1]MONE(M)CAPARD'!AX253","v":4},{"$f":"'[1]MONE(M)CAPARD'!AY253","v":"n.a."},null,null,{"$f":"+'Datos_Regional (M)'!CF246","v":-0.70208311149574376},{"$f":"+'Datos_Regional (M)'!CG246","v":-4.2525353940711224},{"$f":"+'Datos_Regional (M)'!CH246","v":-1.5121892429780792},{"$f":"+'Datos_Regional (M)'!CI246","v":2.6701679870077211},{"$f":"+'Datos_Regional (M)'!CJ246","v":-6.6670096316224221},{"$f":"+'Datos_Regional (M)'!CK246","v":16.027784085319663},{"$f":"+'Datos_Regional (M)'!CL246","v":3.1975802509886186},null,null,764.64965827916694,334.53666666666663,633.50833333333333,212.49888553999997,238.62498522400813,490.1583333333333,1018.2844233333334,2673.9768623765085,3692.2612857098425,null,null,1026.8914441525001,637.65333333333331,1020.2749999999997,540.61201921916665,378.3718872975,1105.4083333333331,1395.08469625,4709.2120173358344,6104.2967135858344,null,null,-2035.2351549593247,-2412.0354278759919,null,null,{"$f":"'[1]EXT Comercio(M)'!C253","v":790.69827699000007},{"$f":"'[1]EXT Comercio(M)'!D253","v":352.62000000000012},{"$f":"'[1]EXT Comercio(M)'!E253","v":706.29999999999984},{"$f":"'[1]EXT Comercio(M)'!F253","v":237.55740835999995},{"$f":"'[1]EXT Comercio(M)'!G253","v":260.92116417793102},{"$f":"'[1]EXT Comercio(M)'!H253","v":583.30000000000007},{"$f":"'[1]EXT Comercio(M)'!I253","v":944.86087599999996},{"$f":"'[1]EXT Comercio(M)'!K253","v":2931.3968495279332},{"$f":"'[1]EXT Comercio(M)'!L253","v":3876.2577255279302},null,null,{"$f":"'[1]EXT Comercio(M)'!AG253","v":1127.8692652200002},{"$f":"'[1]EXT Comercio(M)'!AH253","v":714.40999999999985},{"$f":"'[1]EXT Comercio(M)'!AI253","v":1168.1000000000004},{"$f":"'[1]EXT Comercio(M)'!AJ253","v":615.18905816999995},{"$f":"'[1]EXT Comercio(M)'!AK253","v":419.04669769999998},{"$f":"'[1]EXT Comercio(M)'!AL253","v":1382.8},{"$f":"'[1]EXT Comercio(M)'!AM253","v":1441.3890799999997},{"$f":"'[1]EXT Comercio(M)'!AO253","v":5427.4150210900007},{"$f":"'[1]EXT Comercio(M)'!AP253","v":6868.8041010899979},null,null,{"$f":"'[1]EXT Comercio(M)'!$BS253","v":-2496.0181715620693},{"$f":"'[1]EXT Comercio(M)'!$BT253","v":-2992.5463755620694}]
[null,null,"Mayo ",{"$f":"'[1]REAL IPC(M)'!AD254","v":6.2329852044837493},{"$f":"'[1]REAL IPC(M)'!AE254","v":0.13949780789159083},{"$f":"'[1]REAL IPC(M)'!AF254","v":3.507899679593423},{"$f":"'[1]REAL IPC(M)'!AG254","v":4.3561512685495423},{"$f":"'[1]REAL IPC(M)'!AH254","v":4.6758180851871396},{"$f":"'[1]REAL IPC(M)'!AI254","v":7.9008912205297195},{"$f":"'[1]REAL IPC(M)'!AJ254","v":3.1862745098039174},null,null,{"$f":"'[1]REAL IMAE(M)'!AG254","v":4.4277561304890547},{"$f":"'[1]REAL IMAE(M)'!AH254","v":1.4132022902997849},{"$f":"'[1]REAL IMAE(M)'!AI254","v":2.8982904437023964},{"$f":"'[1]REAL IMAE(M)'!AJ254","v":5.1700559967005937},{"$f":"'[1]REAL IMAE(M)'!AK254","v":2.6397681500155064},{"$f":"'[1]REAL IMAE(M)'!AL254","v":9.3246832768598722},{"$f":"'[1]REAL IMAE(M)'!AM254","v":6.6213128375571255},null,null,{"$f":"'[1]EXT ITCER(M)'!C254","v":80.148884019928076},{"$f":"'[1]EXT ITCER(M)'!D254","v":91.508420118447404},{"$f":"'[1]EXT ITCER(M)'!E254","v":68.698239710558582},{"$f":"'[1]EXT ITCER(M)'!F254","v":78.493504993309458},{"$f":"'[1]EXT ITCER(M)'!G254","v":96.095518054321644},{"$f":"'[1]EXT ITCER(M)'!H254","v":93.216594008732073},{"$f":"'[1]EXT ITCER(M)'!I254","v":96.92142821423397},null,null,{"$f":"'[1]EXT TC(M)'!J254","v":-8.3093786890954302},{"$f":"'[1]EXT TC(M)'!K254","v":0},{"$f":"'[1]EXT TC(M)'!L254","v":-1.2452251202102969},{"$f":"'[1]EXT TC(M)'!M254","v":0},{"$f":"'[1]EXT TC(M)'!N254","v":5.4422540973620146},{"$f":"'[1]EXT TC(M)'!O254","v":2.0860513570878085},{"$f":"'[1]EXT TC(M)'!P254","v":0},null,null,{"$f":"'[1]EXT RIN(M)'!C254","v":4042.17194599},{"$f":"'[1]EXT RIN(M)'!D254","v":2628.3},{"$f":"'[1]EXT RIN(M)'!E254","v":5675.55},{"$f":"'[1]EXT RIN(M)'!F254","v":2146.6131234051436},{"$f":"'[1]EXT RIN(M)'!G254","v":1383.8},{"$f":"'[1]EXT RIN(M)'!H254","v":2655.5062605782509},{"$f":"'[1]EXT RIN(M)'!I254","v":2751.2950950999998},null,null,{"$f":"'[1]EXT RIN(M)'!P254","v":65.533011765943556},{"$f":"'[1]EXT RIN(M)'!Q254","v":94.034836144754223},{"$f":"'[1]EXT RIN(M)'!R254","v":106.015568928267},{"$f":"'[1]EXT RIN(M)'!S254","v":78.056593525436483},{"$f":"'[1]EXT RIN(M)'!T254","v":99.45435832261596},{"$f":"'[1]EXT RIN(M)'!U254","v":52.949797564043102},{"$f":"'[1]EXT RIN(M)'!V254","v":253.77729633410294},null,null,{"$f":"+'[1]MONE(M)CAPARD'!AE254","v":2.1340027216147246},{"$f":"'[1]MONE(M)CAPARD'!AF254","v":3.0262805970149245},{"$f":"'[1]MONE(M)CAPARD'!AG254","v":1.9535710092330609},{"$f":"'[1]MONE(M)CAPARD'!AH254","v":5.6574036697247738},{"$f":"'[1]MONE(M)CAPARD'!AI254","v":4.9327324137393616},{"$f":"'[1]MONE(M)CAPARD'!AJ254","v":-2.6421387147794899},{"$f":"'[1]MONE(M)CAPARD'!AK254","v":-0.10299287410925952},null,null,{"$f":"'[1]MONE(M)CAPARD'!AL254","v":1.4899999999999998},{"$f":"'[1]MONE(M)CAPARD'!AM254","v":3.17},{"$f":"'[1]MONE(M)CAPARD'!AN254","v":3.58},{"$f":"'[1]MONE(M)CAPARD'!AO254","v":4.33},{"$f":"'[1]MONE(M)CAPARD'!AP254","v":3.78},{"$f":"'[1]MONE(M)CAPARD'!AQ254","v":2.2400000000000002},{"$f":"'[1]MONE(M)CAPARD'!AR254","v":3.08},null,null,{"$f":"'[1]MONE(M)CAPARD'!J254","v":13.100464764995474},{"$f":"'[1]MONE(M)CAPARD'!K254","v":7.510025870646766},{"$f":"'[1]MONE(M)CAPARD'!L254","v":9.5182110263115671},{"$f":"'[1]MONE(M)CAPARD'!M254","v":13.821752293577987},{"$f":"'[1]MONE(M)CAPARD'!N254","v":13.807239206146415},{"$f":"'[1]MONE(M)CAPARD'!O254","v":3.7248151836447354},{"$f":"'[1]MONE(M)CAPARD'!P254","v":2.1744418052256571},null,null,{"$f":"'[1]MONE(M)CAPARD'!Q254","v":9.57},{"$f":"'[1]MONE(M)CAPARD'!R254","v":7.66},{"$f":"'[1]MONE(M)CAPARD'!S254","v":7.89},{"$f":"'[1]MONE(M)CAPARD'!T254","v":9.83},{"$f":"'[1]MONE(M)CAPARD'!U254","v":9.99},{"$f":"'[1]MONE(M)CAPARD'!V254","v":7.58},{"$f":"'[1]MONE(M)CAPARD'!W254","v":5.43},null,null,{"$f":"'[1]MONE(M)CAPARD'!AS254","v":9},{"$f":"'[1]MONE(M)CAPARD'!AT254","v":"n.a."},{"$f":"'[1]MONE(M)CAPARD'!AU254","v":4.5},{"$f":"'[1]MONE(M)CAPARD'!AV254","v":4.5},{"$f":"'[1]MONE(M)CAPARD'!AW254","v":"n.a."},{"$f":"'[1]MONE(M)CAPARD'!AX254","v":4},{"$f":"'[1]MONE(M)CAPARD'!AY254","v":"n.a."},null,null,{"$f":"+'Datos_Regional (M)'!CF247","v":2.210087298394714},{"$f":"+'Datos_Regional (M)'!CG247","v":-3.7511532452851104},{"$f":"+'Datos_Regional (M)'!CH247","v":-1.9025357703262857},{"$f":"+'Datos_Regional (M)'!CI247","v":2.7376112088785653},{"$f":"+'Datos_Regional (M)'!CJ247","v":-6.4562158384815156},{"$f":"+'Datos_Regional (M)'!CK247","v":15.978112131633093},{"$f":"+'Datos_Regional (M)'!CL247","v":4.4699929453112075},null,null,771.85909534500024,337.34583333333325,645.49166666666656,215.89572839416664,244.07324890280915,499.42500000000001,1028.7927299166668,2714.0905726419755,3742.8833025586432,null,null,1045.4012230116668,644.10500000000002,1040.5416666666667,551.62420898333312,387.17961178666661,1129.5250000000001,1410.2732475833334,4798.3767104483341,6208.6499580316668,null,null,-2084.2861378063571,-2465.7666554730245,null,null,{"$f":"'[1]EXT Comercio(M)'!C254","v":846.0732789599997},{"$f":"'[1]EXT Comercio(M)'!D254","v":370.42999999999984},{"$f":"'[1]EXT Comercio(M)'!E254","v":747.89999999999986},{"$f":"'[1]EXT Comercio(M)'!F254","v":272.49314445999994},{"$f":"'[1]EXT Comercio(M)'!G254","v":272.28664308312},{"$f":"'[1]EXT Comercio(M)'!H254","v":582.5},{"$f":"'[1]EXT Comercio(M)'!I254","v":992.26369599999998},{"$f":"'[1]EXT Comercio(M)'!K254","v":3091.6830665031157},{"$f":"'[1]EXT Comercio(M)'!L254","v":4083.9467625031193},null,null,{"$f":"'[1]EXT Comercio(M)'!AG254","v":1109.1583269599996},{"$f":"'[1]EXT Comercio(M)'!AH254","v":681.54000000000042},{"$f":"'[1]EXT Comercio(M)'!AI254","v":1130.8999999999996},{"$f":"'[1]EXT Comercio(M)'!AJ254","v":618.70470807999982},{"$f":"'[1]EXT Comercio(M)'!AK254","v":449.79269386999988},{"$f":"'[1]EXT Comercio(M)'!AL254","v":1239.0999999999999},{"$f":"'[1]EXT Comercio(M)'!AM254","v":1541.4142740000002},{"$f":"'[1]EXT Comercio(M)'!AO254","v":5229.1957289099992},{"$f":"'[1]EXT Comercio(M)'!AP254","v":6770.610002909998},null,null,{"$f":"'[1]EXT Comercio(M)'!$BS254","v":-2137.5126624068798},{"$f":"'[1]EXT Comercio(M)'!$BT254","v":-2686.6632404068805}]
[null,null,"Junio",{"$f":"'[1]REAL IPC(M)'!AD255","v":6.311904234143169},{"$f":"'[1]REAL IPC(M)'!AE255","v":0.55776892430277691},{"$f":"'[1]REAL IPC(M)'!AF255","v":4.0674219397623776},{"$f":"'[1]REAL IPC(M)'!AG255","v":4.2380952380952408},{"$f":"'[1]REAL IPC(M)'!AH255","v":4.6325738140417316},{"$f":"'[1]REAL IPC(M)'!AI255","v":5.4383468415517209},{"$f":"'[1]REAL IPC(M)'!AJ255","v":2.7642276422764342},null,null,{"$f":"'[1]REAL IMAE(M)'!AG255","v":4.5164550437565785},{"$f":"'[1]REAL IMAE(M)'!AH255","v":0.38907517921142115},{"$f":"'[1]REAL IMAE(M)'!AI255","v":2.5015112667613191},{"$f":"'[1]REAL IMAE(M)'!AJ255","v":5.4077780931975514},{"$f":"'[1]REAL IMAE(M)'!AK255","v":3.6034501670905614},{"$f":"'[1]REAL IMAE(M)'!AL255","v":8.7437028583611696},{"$f":"'[1]REAL IMAE(M)'!AM255","v":6.5611912517449964},null,null,{"$f":"'[1]EXT ITCER(M)'!C255","v":81.071230578584789},{"$f":"'[1]EXT ITCER(M)'!D255","v":91.053335300427392},{"$f":"'[1]EXT ITCER(M)'!E255","v":68.414239721107165},{"$f":"'[1]EXT ITCER(M)'!F255","v":78.138044038237382},{"$f":"'[1]EXT ITCER(M)'!G255","v":96.412117065938602},{"$f":"'[1]EXT ITCER(M)'!H255","v":93.409107512590523},{"$f":"'[1]EXT ITCER(M)'!I255","v":96.804191756752203},null,null,{"$f":"'[1]EXT TC(M)'!J255","v":-7.3406377172459569},{"$f":"'[1]EXT TC(M)'!K255","v":0},{"$f":"'[1]EXT TC(M)'!L255","v":-1.4884806788092335},{"$f":"'[1]EXT TC(M)'!M255","v":-5.640690462819195E-14},{"$f":"'[1]EXT TC(M)'!N255","v":5.2552953769316444},{"$f":"'[1]EXT TC(M)'!O255","v":2.2372728487439848},{"$f":"'[1]EXT TC(M)'!P255","v":0},null,null,{"$f":"'[1]EXT RIN(M)'!C255","v":4064.9799089600001},{"$f":"'[1]EXT RIN(M)'!D255","v":2681.5},{"$f":"'[1]EXT RIN(M)'!E255","v":5847.6420291099994},{"$f":"'[1]EXT RIN(M)'!F255","v":2207.9432334304947},{"$f":"'[1]EXT RIN(M)'!G255","v":1411.5},{"$f":"'[1]EXT RIN(M)'!H255","v":2511.3163564168599},{"$f":"'[1]EXT RIN(M)'!I255","v":2529.4983001400001},null,null,{"$f":"'[1]EXT RIN(M)'!P255","v":65.890207088387427},{"$f":"'[1]EXT RIN(M)'!Q255","v":96.465127757386341},{"$f":"'[1]EXT RIN(M)'!R255","v":113.96696512368504},{"$f":"'[1]EXT RIN(M)'!S255","v":74.274145151234123},{"$f":"'[1]EXT RIN(M)'!T255","v":99.383636437644782},{"$f":"'[1]EXT RIN(M)'!U255","v":50.36689169943768},{"$f":"'[1]EXT RIN(M)'!V255","v":232.88693090531427},null,null,{"$f":"+'[1]MONE(M)CAPARD'!AE255","v":1.8230279852652584},{"$f":"'[1]MONE(M)CAPARD'!AF255","v":2.4883518225039745},{"$f":"'[1]MONE(M)CAPARD'!AG255","v":1.3765864797408409},{"$f":"'[1]MONE(M)CAPARD'!AH255","v":5.5947921425308333},{"$f":"'[1]MONE(M)CAPARD'!AI255","v":5.1621706091279851},{"$f":"'[1]MONE(M)CAPARD'!AJ255","v":-0.5105797441615102},{"$f":"'[1]MONE(M)CAPARD'!AK255","v":0.33647151898733041},null,null,{"$f":"'[1]MONE(M)CAPARD'!AL255","v":1.2749999999999999},{"$f":"'[1]MONE(M)CAPARD'!AM255","v":3.06},{"$f":"'[1]MONE(M)CAPARD'!AN255","v":3.48},{"$f":"'[1]MONE(M)CAPARD'!AO255","v":4.18},{"$f":"'[1]MONE(M)CAPARD'!AP255","v":3.8},{"$f":"'[1]MONE(M)CAPARD'!AQ255","v":2.2999999999999998},{"$f":"'[1]MONE(M)CAPARD'!AR255","v":3.11},null,null,{"$f":"'[1]MONE(M)CAPARD'!J255","v":13.11997547813395},{"$f":"'[1]MONE(M)CAPARD'!K255","v":6.794334389857382},{"$f":"'[1]MONE(M)CAPARD'!L255","v":8.9293824013594474},{"$f":"'[1]MONE(M)CAPARD'!M255","v":14.056190041114661},{"$f":"'[1]MONE(M)CAPARD'!N255","v":17.68626687929866},{"$f":"'[1]MONE(M)CAPARD'!O255","v":5.9576552047881428},{"$f":"'[1]MONE(M)CAPARD'!P255","v":2.0296677215189756},null,null,{"$f":"'[1]MONE(M)CAPARD'!Q255","v":9.75},{"$f":"'[1]MONE(M)CAPARD'!R255","v":7.39},{"$f":"'[1]MONE(M)CAPARD'!S255","v":7.84},{"$f":"'[1]MONE(M)CAPARD'!T255","v":10.16},{"$f":"'[1]MONE(M)CAPARD'!U255","v":10.75},{"$f":"'[1]MONE(M)CAPARD'!V255","v":8.1199999999999992},{"$f":"'[1]MONE(M)CAPARD'!W255","v":4.8499999999999996},null,null,{"$f":"'[1]MONE(M)CAPARD'!AS255","v":9},{"$f":"'[1]MONE(M)CAPARD'!AT255","v":"n.a."},{"$f":"'[1]MONE(M)CAPARD'!AU255","v":4.5},{"$f":"'[1]MONE(M)CAPARD'!AV255","v":4.5},{"$f":"'[1]MONE(M)CAPARD'!AW255","v":"n.a."},{"$f":"'[1]MONE(M)CAPARD'!AX255","v":4},{"$f":"'[1]MONE(M)CAPARD'!AY255","v":"n.a."},null,null,{"$f":"+'Datos_Regional (M)'!CF248","v":3.6693041549463734},{"$f":"+'Datos_Regional (M)'!CG248","v":-2.5213424631794989},{"$f":"+'Datos_Regional (M)'!CH248","v":-3.144465354728565E-2},{"$f":"+'Datos_Regional (M)'!CI248","v":2.2532038116427344},{"$f":"+'Datos_Regional (M)'!CJ248","v":-4.7213197540997172},{"$f":"+'Datos_Regional (M)'!CK248","v":15.583381978274446},{"$f":"+'Datos_Regional (M)'!CL248","v":8.3730793533143277},null,null,775.37384546999999,342.17833333333328,656.01666666666665,219.98337833333335,253.52739810678395,508.30833333333339,1017.5262684166669,2755.3879552434505,3772.9142236601183,null,null,1053.9856390450002,655.83416666666665,1055.1166666666666,556.93771797833324,392.28984622416664,1154.0083333333332,1432.2438571666669,4868.1723699141667,6300.4162270808329,null,null,-2112.7844146707157,-2527.5020034207159,null,null,{"$f":"'[1]EXT Comercio(M)'!C255","v":789.53231408000011},{"$f":"'[1]EXT Comercio(M)'!D255","v":387.99000000000024},{"$f":"'[1]EXT Comercio(M)'!E255","v":748.2000000000005},{"$f":"'[1]EXT Comercio(M)'!F255","v":265.93702912999993},{"$f":"'[1]EXT Comercio(M)'!G255","v":331.53771024523598},{"$f":"'[1]EXT Comercio(M)'!H255","v":610.59999999999991},{"$f":"'[1]EXT Comercio(M)'!I255","v":967.39383899999996},{"$f":"'[1]EXT Comercio(M)'!K255","v":3133.7970534552369},{"$f":"'[1]EXT Comercio(M)'!L255","v":4101.1908924552408},null,null,{"$f":"'[1]EXT Comercio(M)'!AG255","v":1117.5554066200002},{"$f":"'[1]EXT Comercio(M)'!AH255","v":771.75999999999931},{"$f":"'[1]EXT Comercio(M)'!AI255","v":1170.7000000000003},{"$f":"'[1]EXT Comercio(M)'!AJ255","v":600.90852878999976},{"$f":"'[1]EXT Comercio(M)'!AK255","v":463.0228132499999},{"$f":"'[1]EXT Comercio(M)'!AL255","v":1316.2999999999995},{"$f":"'[1]EXT Comercio(M)'!AM255","v":1859.5522649999994},{"$f":"'[1]EXT Comercio(M)'!AO255","v":5440.2467486599999},{"$f":"'[1]EXT Comercio(M)'!AP255","v":7299.7990136599983},null,null,{"$f":"'[1]EXT Comercio(M)'!$BS255","v":-2306.449695204763},{"$f":"'[1]EXT Comercio(M)'!$BT255","v":-3198.6081212047611}]
[null,null,"Julio",{"$f":"'[1]REAL IPC(M)'!AD256","v":5.6820735037581009},{"$f":"'[1]REAL IPC(M)'!AE256","v":0.99009900990098487},{"$f":"'[1]REAL IPC(M)'!AF256","v":4.1199999999999948},{"$f":"'[1]REAL IPC(M)'!AG256","v":4.1607565011820382},{"$f":"'[1]REAL IPC(M)'!AH256","v":6.1978150297846364},{"$f":"'[1]REAL IPC(M)'!AI256","v":5.6727946856172213},{"$f":"'[1]REAL IPC(M)'!AJ256","v":3.3980582524271816},null,null,{"$f":"'[1]REAL IMAE(M)'!AG256","v":4.5527472421448589},{"$f":"'[1]REAL IMAE(M)'!AH256","v":1.1584151317148079},{"$f":"'[1]REAL IMAE(M)'!AI256","v":2.2130517634690441},{"$f":"'[1]REAL IMAE(M)'!AJ256","v":5.8387575598763695},{"$f":"'[1]REAL IMAE(M)'!AK256","v":4.57119846206351},{"$f":"'[1]REAL IMAE(M)'!AL256","v":8.3185428402837029},{"$f":"'[1]REAL IMAE(M)'!AM256","v":6.3887746710526354},null,null,{"$f":"'[1]EXT ITCER(M)'!C256","v":79.25134870003788},{"$f":"'[1]EXT ITCER(M)'!D256","v":91.205469425421825},{"$f":"'[1]EXT ITCER(M)'!E256","v":68.245317433556593},{"$f":"'[1]EXT ITCER(M)'!F256","v":77.786610683594944},{"$f":"'[1]EXT ITCER(M)'!G256","v":96.135209277179996},{"$f":"'[1]EXT ITCER(M)'!H256","v":93.43954642834052},{"$f":"'[1]EXT ITCER(M)'!I256","v":95.922708275034978},null,null,{"$f":"'[1]EXT TC(M)'!J256","v":-10.134151821142829},{"$f":"'[1]EXT TC(M)'!K256","v":0},{"$f":"'[1]EXT TC(M)'!L256","v":-2.1097229287426105},{"$f":"'[1]EXT TC(M)'!M256","v":5.6406904628191988E-14},{"$f":"'[1]EXT TC(M)'!N256","v":5.166503424941248},{"$f":"'[1]EXT TC(M)'!O256","v":2.2687667280898451},{"$f":"'[1]EXT TC(M)'!P256","v":0},null,null,{"$f":"'[1]EXT RIN(M)'!C256","v":4097.8259955900003},{"$f":"'[1]EXT RIN(M)'!D256","v":2609.1999999999998},{"$f":"'[1]EXT RIN(M)'!E256","v":5732.0343297200006},{"$f":"'[1]EXT RIN(M)'!F256","v":2129.0175306460383},{"$f":"'[1]EXT RIN(M)'!G256","v":1446.6},{"$f":"'[1]EXT RIN(M)'!H256","v":2470},{"$f":"'[1]EXT RIN(M)'!I256","v":2375.3658111100003},null,null,{"$f":"'[1]EXT RIN(M)'!P256","v":64.334413433338696},{"$f":"'[1]EXT RIN(M)'!Q256","v":92.024723797095575},{"$f":"'[1]EXT RIN(M)'!R256","v":111.75178746240313},{"$f":"'[1]EXT RIN(M)'!S256","v":74.415013576593381},{"$f":"'[1]EXT RIN(M)'!T256","v":97.610695276453441},{"$f":"'[1]EXT RIN(M)'!U256","v":48.053191739798216},{"$f":"'[1]EXT RIN(M)'!V256","v":217.24243320568584},null,null,{"$f":"+'[1]MONE(M)CAPARD'!AE256","v":2.1933014932371404},{"$f":"'[1]MONE(M)CAPARD'!AF256","v":2.0100000000000051},{"$f":"'[1]MONE(M)CAPARD'!AG256","v":1.2677679600461063},{"$f":"'[1]MONE(M)CAPARD'!AH256","v":5.3467771221062144},{"$f":"'[1]MONE(M)CAPARD'!AI256","v":2.9405174480906093},{"$f":"'[1]MONE(M)CAPARD'!AJ256","v":-0.49472968626652297},{"$f":"'[1]MONE(M)CAPARD'!AK256","v":-0.39464788732394074},null,null,{"$f":"'[1]MONE(M)CAPARD'!AL256","v":1.4550000000000001},{"$f":"'[1]MONE(M)CAPARD'!AM256","v":3.02},{"$f":"'[1]MONE(M)CAPARD'!AN256","v":3.38},{"$f":"'[1]MONE(M)CAPARD'!AO256","v":4.13},{"$f":"'[1]MONE(M)CAPARD'!AP256","v":3.22},{"$f":"'[1]MONE(M)CAPARD'!AQ256","v":2.31},{"$f":"'[1]MONE(M)CAPARD'!AR256","v":2.99},null,null,{"$f":"'[1]MONE(M)CAPARD'!J256","v":13.548112770263488},{"$f":"'[1]MONE(M)CAPARD'!K256","v":6.198529411764711},{"$f":"'[1]MONE(M)CAPARD'!L256","v":8.8071456012293563},{"$f":"'[1]MONE(M)CAPARD'!M256","v":14.131275533363588},{"$f":"'[1]MONE(M)CAPARD'!N256","v":11.645155720035909},{"$f":"'[1]MONE(M)CAPARD'!O256","v":5.4292169819595504},{"$f":"'[1]MONE(M)CAPARD'!P256","v":2.0618779342723035},null,null,{"$f":"'[1]MONE(M)CAPARD'!Q256","v":9.5500000000000007},{"$f":"'[1]MONE(M)CAPARD'!R256","v":7.25},{"$f":"'[1]MONE(M)CAPARD'!S256","v":7.7399999999999993},{"$f":"'[1]MONE(M)CAPARD'!T256","v":10.220000000000001},{"$f":"'[1]MONE(M)CAPARD'!U256","v":10.84},{"$f":"'[1]MONE(M)CAPARD'!V256","v":6.84},{"$f":"'[1]MONE(M)CAPARD'!W256","v":5.53},null,null,{"$f":"'[1]MONE(M)CAPARD'!AS256","v":9},{"$f":"'[1]MONE(M)CAPARD'!AT256","v":"n.a."},{"$f":"'[1]MONE(M)CAPARD'!AU256","v":4.5},{"$f":"'[1]MONE(M)CAPARD'!AV256","v":4.5},{"$f":"'[1]MONE(M)CAPARD'!AW256","v":"n.a."},{"$f":"'[1]MONE(M)CAPARD'!AX256","v":4},{"$f":"'[1]MONE(M)CAPARD'!AY256","v":"n.a."},null,null,{"$f":"+'Datos_Regional (M)'!CF249","v":1.8357025025104168},{"$f":"+'Datos_Regional (M)'!CG249","v":-1.5340336661330389},{"$f":"+'Datos_Regional (M)'!CH249","v":-0.5508553785808723},{"$f":"+'Datos_Regional (M)'!CI249","v":1.0552534649739265},{"$f":"+'Datos_Regional (M)'!CJ249","v":-3.9996526908895658},{"$f":"+'Datos_Regional (M)'!CK249","v":15.699043023716651},{"$f":"+'Datos_Regional (M)'!CL249","v":8.4325793101126081},null,null,779.07588752166669,346.33666666666676,662.11666666666667,219.78872625416662,259.57359466281417,517.86666666666667,993.32786308333345,2784.7582084386481,3778.0860715219819,null,null,1074.6699955983333,659.5374999999998,1067.3,559.44792197416655,402.05302538333331,1176.1166666666666,1448.7628929166667,4939.1251096224996,6387.8880025391663,null,null,-2154.3669011838524,-2609.8019310171858,null,null,{"$f":"'[1]EXT Comercio(M)'!C256","v":784.26194329000009},{"$f":"'[1]EXT Comercio(M)'!D256","v":422.98},{"$f":"'[1]EXT Comercio(M)'!E256","v":685.50000000000023},{"$f":"'[1]EXT Comercio(M)'!F256","v":208.79585126999996},{"$f":"'[1]EXT Comercio(M)'!G256","v":296.86769406634903},{"$f":"'[1]EXT Comercio(M)'!H256","v":586.50000000000023},{"$f":"'[1]EXT Comercio(M)'!I256","v":833.52720699999998},{"$f":"'[1]EXT Comercio(M)'!K256","v":2984.9054886263548},{"$f":"'[1]EXT Comercio(M)'!L256","v":3818.4326956263467},null,null,{"$f":"'[1]EXT Comercio(M)'!AG256","v":1220.7653651299997},{"$f":"'[1]EXT Comercio(M)'!AH256","v":708.61000000000058},{"$f":"'[1]EXT Comercio(M)'!AI256","v":1240.3999999999999},{"$f":"'[1]EXT Comercio(M)'!AJ256","v":557.66770557000018},{"$f":"'[1]EXT Comercio(M)'!AK256","v":477.55814990999994},{"$f":"'[1]EXT Comercio(M)'!AL256","v":1374.5000000000005},{"$f":"'[1]EXT Comercio(M)'!AM256","v":1518.909208},{"$f":"'[1]EXT Comercio(M)'!AO256","v":5579.5012206099964},{"$f":"'[1]EXT Comercio(M)'!AP256","v":7098.4104286100046},null,null,{"$f":"'[1]EXT Comercio(M)'!$BS256","v":-2594.5957319836507},{"$f":"'[1]EXT Comercio(M)'!$BT256","v":-3279.9777329836543}]
[null,null,"Agosto",{"$f":"'[1]REAL IPC(M)'!AD257","v":5.2062429651685243},{"$f":"'[1]REAL IPC(M)'!AE257","v":1.0199999999999991},{"$f":"'[1]REAL IPC(M)'!AF257","v":4.0955631399317429},{"$f":"'[1]REAL IPC(M)'!AG257","v":4.534718941898924},{"$f":"'[1]REAL IPC(M)'!AH257","v":5.34067077813308},{"$f":"'[1]REAL IPC(M)'!AI257","v":5.0090377133053732},{"$f":"'[1]REAL IPC(M)'!AJ257","v":3.6290322580645138},null,null,{"$f":"'[1]REAL IMAE(M)'!AG257","v":4.4984733468753912},{"$f":"'[1]REAL IMAE(M)'!AH257","v":2.6057975637167163},{"$f":"'[1]REAL IMAE(M)'!AI257","v":2.1187146258034795},{"$f":"'[1]REAL IMAE(M)'!AJ257","v":6.0350623580564724},{"$f":"'[1]REAL IMAE(M)'!AK257","v":5.3837461252608971},{"$f":"'[1]REAL IMAE(M)'!AL257","v":8.143461385662377},{"$f":"'[1]REAL IMAE(M)'!AM257","v":6.2707450339580255},null,null,{"$f":"'[1]EXT ITCER(M)'!C257","v":77.396828160844265},{"$f":"'[1]EXT ITCER(M)'!D257","v":91.492782020148169},{"$f":"'[1]EXT ITCER(M)'!E257","v":68.371238684063911},{"$f":"'[1]EXT ITCER(M)'!F257","v":77.548271853533947},{"$f":"'[1]EXT ITCER(M)'!G257","v":97.247862715807074},{"$f":"'[1]EXT ITCER(M)'!H257","v":93.617226182805013},{"$f":"'[1]EXT ITCER(M)'!I257","v":95.539586448502234},null,null,{"$f":"'[1]EXT TC(M)'!J257","v":-12.944262280549134},{"$f":"'[1]EXT TC(M)'!K257","v":0},{"$f":"'[1]EXT TC(M)'!L257","v":-3.0229108944355678},{"$f":"'[1]EXT TC(M)'!M257","v":-1.5582399130525351E-6},{"$f":"'[1]EXT TC(M)'!N257","v":5.0502461033333352},{"$f":"'[1]EXT TC(M)'!O257","v":2.4043145538472621},{"$f":"'[1]EXT TC(M)'!P257","v":0},null,null,{"$f":"'[1]EXT RIN(M)'!C257","v":4048.3305481699999},{"$f":"'[1]EXT RIN(M)'!D257","v":2567.6},{"$f":"'[1]EXT RIN(M)'!E257","v":5681.8764391300001},{"$f":"'[1]EXT RIN(M)'!F257","v":2113.5463745553056},{"$f":"'[1]EXT RIN(M)'!G257","v":1398.3},{"$f":"'[1]EXT RIN(M)'!H257","v":2407},{"$f":"'[1]EXT RIN(M)'!I257","v":2505.8207950399997},null,null,{"$f":"'[1]EXT RIN(M)'!P257","v":62.832929381481748},{"$f":"'[1]EXT RIN(M)'!Q257","v":96.141676795317366},{"$f":"'[1]EXT RIN(M)'!R257","v":113.09414412342311},{"$f":"'[1]EXT RIN(M)'!S257","v":74.802038080503522},{"$f":"'[1]EXT RIN(M)'!T257","v":100.04895865534836},{"$f":"'[1]EXT RIN(M)'!U257","v":46.111874928953505},{"$f":"'[1]EXT RIN(M)'!V257","v":222.75453230764649},null,null,{"$f":"+'[1]MONE(M)CAPARD'!AE257","v":2.8931334767264687},{"$f":"'[1]MONE(M)CAPARD'!AF257","v":1.851118590378144},{"$f":"'[1]MONE(M)CAPARD'!AG257","v":1.2723278688524569},{"$f":"'[1]MONE(M)CAPARD'!AH257","v":4.7307546317216351},{"$f":"'[1]MONE(M)CAPARD'!AI257","v":2.905504733630317},{"$f":"'[1]MONE(M)CAPARD'!AJ257","v":3.9008344030788546E-2},{"$f":"'[1]MONE(M)CAPARD'!AK257","v":-0.59735408560311076},null,null,{"$f":"'[1]MONE(M)CAPARD'!AL257","v":1.21},{"$f":"'[1]MONE(M)CAPARD'!AM257","v":2.89},{"$f":"'[1]MONE(M)CAPARD'!AN257","v":3.31},{"$f":"'[1]MONE(M)CAPARD'!AO257","v":4},{"$f":"'[1]MONE(M)CAPARD'!AP257","v":3.2},{"$f":"'[1]MONE(M)CAPARD'!AQ257","v":2.33},{"$f":"'[1]MONE(M)CAPARD'!AR257","v":3.01},null,null,{"$f":"'[1]MONE(M)CAPARD'!J257","v":13.690971779688249},{"$f":"'[1]MONE(M)CAPARD'!K257","v":6.0582062957830143},{"$f":"'[1]MONE(M)CAPARD'!L257","v":8.8134754098360641},{"$f":"'[1]MONE(M)CAPARD'!M257","v":13.493393583370981},{"$f":"'[1]MONE(M)CAPARD'!N257","v":12.738320671934371},{"$f":"'[1]MONE(M)CAPARD'!O257","v":5.4575895670439758},{"$f":"'[1]MONE(M)CAPARD'!P257","v":1.6221011673151768},null,null,{"$f":"'[1]MONE(M)CAPARD'!Q257","v":9.39},{"$f":"'[1]MONE(M)CAPARD'!R257","v":7.14},{"$f":"'[1]MONE(M)CAPARD'!S257","v":7.6300000000000008},{"$f":"'[1]MONE(M)CAPARD'!T257","v":10.19},{"$f":"'[1]MONE(M)CAPARD'!U257","v":10.93},{"$f":"'[1]MONE(M)CAPARD'!V257","v":7.12},{"$f":"'[1]MONE(M)CAPARD'!W257","v":5.31},null,null,{"$f":"'[1]MONE(M)CAPARD'!AS257","v":7.5},{"$f":"'[1]MONE(M)CAPARD'!AT257","v":"n.a."},{"$f":"'[1]MONE(M)CAPARD'!AU257","v":4.5},{"$f":"'[1]MONE(M)CAPARD'!AV257","v":4.5},{"$f":"'[1]MONE(M)CAPARD'!AW257","v":"n.a."},{"$f":"'[1]MONE(M)CAPARD'!AX257","v":4},{"$f":"'[1]MONE(M)CAPARD'!AY257","v":"n.a."},null,null,{"$f":"+'Datos_Regional (M)'!CF250","v":1.7237543757345763},{"$f":"+'Datos_Regional (M)'!CG250","v":-1.4200035095007446},{"$f":"+'Datos_Regional (M)'!CH250","v":-0.24439180601587562},{"$f":"+'Datos_Regional (M)'!CI250","v":1.7200458566081656},{"$f":"+'Datos_Regional (M)'!CJ250","v":-3.2249351086832245},{"$f":"+'Datos_Regional (M)'!CK250","v":17.855962361618573},{"$f":"+'Datos_Regional (M)'!CL250","v":10.245898363318439},null,null,779.90521572416685,352.96499999999997,667.94166666666661,222.21519018249998,263.97402690883916,527.91666666666674,992.05397658333322,2814.9177661488393,3806.9717427321725,null,null,1086.6425654224997,669.19083333333322,1088.4083333333333,564.76781490416658,411.56125224499993,1197.3333333333333,1490.2968657499998,5017.9041325716653,6508.2009983216658,null,null,-2202.9863664228274,-2701.2292555894942,null,null,{"$f":"'[1]EXT Comercio(M)'!C257","v":753.57751085000018},{"$f":"'[1]EXT Comercio(M)'!D257","v":381.07000000000016},{"$f":"'[1]EXT Comercio(M)'!E257","v":625.89999999999918},{"$f":"'[1]EXT Comercio(M)'!F257","v":214.07577678999996},{"$f":"'[1]EXT Comercio(M)'!G257","v":293.77850088489197},{"$f":"'[1]EXT Comercio(M)'!H257","v":594.79999999999995},{"$f":"'[1]EXT Comercio(M)'!I257","v":986.37169399999993},{"$f":"'[1]EXT Comercio(M)'!K257","v":2863.2017885248897},{"$f":"'[1]EXT Comercio(M)'!L257","v":3849.5734825248874},null,null,{"$f":"'[1]EXT Comercio(M)'!AG257","v":1126.7640232999993},{"$f":"'[1]EXT Comercio(M)'!AH257","v":676.29},{"$f":"'[1]EXT Comercio(M)'!AI257","v":1189.700000000001},{"$f":"'[1]EXT Comercio(M)'!AJ257","v":579.00368704999983},{"$f":"'[1]EXT Comercio(M)'!AK257","v":478.39872234000001},{"$f":"'[1]EXT Comercio(M)'!AL257","v":1306.0000000000011},{"$f":"'[1]EXT Comercio(M)'!AM257","v":1803.7030569999993},{"$f":"'[1]EXT Comercio(M)'!AO257","v":5356.156432689997},{"$f":"'[1]EXT Comercio(M)'!AP257","v":7159.8594896899885},null,null,{"$f":"'[1]EXT Comercio(M)'!$BS257","v":-2492.9546441651091},{"$f":"'[1]EXT Comercio(M)'!$BT257","v":-3310.2860071651085}]
[null,null,"Setiembre",{"$f":"'[1]REAL IPC(M)'!AD258","v":5.0007323677593041},{"$f":"'[1]REAL IPC(M)'!AE258","v":1.3800000000000103},{"$f":"'[1]REAL IPC(M)'!AF258","v":3.7566363934785136},{"$f":"'[1]REAL IPC(M)'!AG258","v":5.0495516753185408},{"$f":"'[1]REAL IPC(M)'!AH258","v":5.4260702632976869},{"$f":"'[1]REAL IPC(M)'!AI258","v":5.7012577654007481},{"$f":"'[1]REAL IPC(M)'!AJ258","v":4.2173560421735603},null,null,{"$f":"'[1]REAL IMAE(M)'!AG258","v":4.4120035513967872},{"$f":"'[1]REAL IMAE(M)'!AH258","v":3.2321907064486135},{"$f":"'[1]REAL IMAE(M)'!AI258","v":2.2921176019407667},{"$f":"'[1]REAL IMAE(M)'!AJ258","v":5.8961675374738318},{"$f":"'[1]REAL IMAE(M)'!AK258","v":5.8212739097882702},{"$f":"'[1]REAL IMAE(M)'!AL258","v":8.1216913127093839},{"$f":"'[1]REAL IMAE(M)'!AM258","v":6.3908629441624383},null,null,{"$f":"'[1]EXT ITCER(M)'!C258","v":77.312739964825667},{"$f":"'[1]EXT ITCER(M)'!D258","v":91.368662116059539},{"$f":"'[1]EXT ITCER(M)'!E258","v":68.853023126015813},{"$f":"'[1]EXT ITCER(M)'!F258","v":77.219913850300699},{"$f":"'[1]EXT ITCER(M)'!G258","v":97.394051863778657},{"$f":"'[1]EXT ITCER(M)'!H258","v":93.282773319112849},{"$f":"'[1]EXT ITCER(M)'!I258","v":95.693906710383146},null,null,{"$f":"'[1]EXT TC(M)'!J258","v":-13.243365033521973},{"$f":"'[1]EXT TC(M)'!K258","v":0},{"$f":"'[1]EXT TC(M)'!L258","v":-2.852513625382052},{"$f":"'[1]EXT TC(M)'!M258","v":-5.2923745914825832E-5},{"$f":"'[1]EXT TC(M)'!N258","v":5.0596792793452536},{"$f":"'[1]EXT TC(M)'!O258","v":2.5760000443755264},{"$f":"'[1]EXT TC(M)'!P258","v":0},null,null,{"$f":"'[1]EXT RIN(M)'!C258","v":4571.2699859100003},{"$f":"'[1]EXT RIN(M)'!D258","v":2529.6999999999998},{"$f":"'[1]EXT RIN(M)'!E258","v":5659.2212569399999},{"$f":"'[1]EXT RIN(M)'!F258","v":2069.7490058293315},{"$f":"'[1]EXT RIN(M)'!G258","v":1417.8},{"$f":"'[1]EXT RIN(M)'!H258","v":2274.3000000000002},{"$f":"'[1]EXT RIN(M)'!I258","v":2309.5924205599999},null,null,{"$f":"'[1]EXT RIN(M)'!P258","v":70.60057223441639},{"$f":"'[1]EXT RIN(M)'!Q258","v":93.770943425321306},{"$f":"'[1]EXT RIN(M)'!R258","v":111.84151851842985},{"$f":"'[1]EXT RIN(M)'!S258","v":72.5615084756638},{"$f":"'[1]EXT RIN(M)'!T258","v":100.65945022285901},{"$f":"'[1]EXT RIN(M)'!U258","v":46.982905147778261},{"$f":"'[1]EXT RIN(M)'!V258","v":206.52619924660692},null,null,{"$f":"+'[1]MONE(M)CAPARD'!AE258","v":2.380238285850377},{"$f":"'[1]MONE(M)CAPARD'!AF258","v":1.3118958374432725},{"$f":"'[1]MONE(M)CAPARD'!AG258","v":1.603139485182882},{"$f":"'[1]MONE(M)CAPARD'!AH258","v":3.9128661275831149},{"$f":"'[1]MONE(M)CAPARD'!AI258","v":3.2299899765509292},{"$f":"'[1]MONE(M)CAPARD'!AJ258","v":-0.45529994209612773},{"$f":"'[1]MONE(M)CAPARD'!AK258","v":-1.254451361867704},null,null,{"$f":"'[1]MONE(M)CAPARD'!AL258","v":1.0549999999999999},{"$f":"'[1]MONE(M)CAPARD'!AM258","v":2.71},{"$f":"'[1]MONE(M)CAPARD'!AN258","v":3.23},{"$f":"'[1]MONE(M)CAPARD'!AO258","v":3.91},{"$f":"'[1]MONE(M)CAPARD'!AP258","v":3.49},{"$f":"'[1]MONE(M)CAPARD'!AQ258","v":2.29},{"$f":"'[1]MONE(M)CAPARD'!AR258","v":2.91},null,null,{"$f":"'[1]MONE(M)CAPARD'!J258","v":13.589683910263947},{"$f":"'[1]MONE(M)CAPARD'!K258","v":5.513908068652583},{"$f":"'[1]MONE(M)CAPARD'!L258","v":9.1689205984316544},{"$f":"'[1]MONE(M)CAPARD'!M258","v":12.93717879604673},{"$f":"'[1]MONE(M)CAPARD'!N258","v":13.035792673425755},{"$f":"'[1]MONE(M)CAPARD'!O258","v":5.0318627678054346},{"$f":"'[1]MONE(M)CAPARD'!P258","v":0.71259143968871597},null,null,{"$f":"'[1]MONE(M)CAPARD'!Q258","v":9.3699999999999992},{"$f":"'[1]MONE(M)CAPARD'!R258","v":6.97},{"$f":"'[1]MONE(M)CAPARD'!S258","v":7.51},{"$f":"'[1]MONE(M)CAPARD'!T258","v":10.130000000000001},{"$f":"'[1]MONE(M)CAPARD'!U258","v":10.49},{"$f":"'[1]MONE(M)CAPARD'!V258","v":7.03},{"$f":"'[1]MONE(M)CAPARD'!W258","v":4.96},null,null,{"$f":"'[1]MONE(M)CAPARD'!AS258","v":7.5},{"$f":"'[1]MONE(M)CAPARD'!AT258","v":"n.a."},{"$f":"'[1]MONE(M)CAPARD'!AU258","v":4.5},{"$f":"'[1]MONE(M)CAPARD'!AV258","v":4.5},{"$f":"'[1]MONE(M)CAPARD'!AW258","v":"n.a."},{"$f":"'[1]MONE(M)CAPARD'!AX258","v":4},{"$f":"'[1]MONE(M)CAPARD'!AY258","v":"n.a."},null,null,{"$f":"+'Datos_Regional (M)'!CF251","v":1.008876677512327},{"$f":"+'Datos_Regional (M)'!CG251","v":-1.3380359155180321},{"$f":"+'Datos_Regional (M)'!CH251","v":-0.95469893754525081},{"$f":"+'Datos_Regional (M)'!CI251","v":1.6382402935991358},{"$f":"+'Datos_Regional (M)'!CJ251","v":-2.030285639580276},{"$f":"+'Datos_Regional (M)'!CK251","v":17.498784569528336},{"$f":"+'Datos_Regional (M)'!CL251","v":12.381713473520906},null,null,781.19487687083347,358.06083333333328,672.77499999999998,224.2646064208333,266.94228176471478,536.65833333333342,968.61446008333326,2839.8959317230488,3808.5103918063819,null,null,1104.1697302383332,679.36500000000001,1106.2083333333333,572.90629091249991,419.76275457333332,1222.3166666666668,1515.5205973333334,5104.7287757241666,6620.2493730574997,null,null,-2264.8328440011192,-2811.7389812511192,null,null,{"$f":"'[1]EXT Comercio(M)'!C258","v":762.84757488000014},{"$f":"'[1]EXT Comercio(M)'!D258","v":366.06999999999971},{"$f":"'[1]EXT Comercio(M)'!E258","v":607.90000000000032},{"$f":"'[1]EXT Comercio(M)'!F258","v":196.52001306999978},{"$f":"'[1]EXT Comercio(M)'!G258","v":293.57237448310502},{"$f":"'[1]EXT Comercio(M)'!H258","v":564.29999999999995},{"$f":"'[1]EXT Comercio(M)'!I258","v":1193.5782609999999},{"$f":"'[1]EXT Comercio(M)'!K258","v":2791.2099624331058},{"$f":"'[1]EXT Comercio(M)'!L258","v":3984.7882234331119},null,null,{"$f":"'[1]EXT Comercio(M)'!AG258","v":1150.482183260001},{"$f":"'[1]EXT Comercio(M)'!AH258","v":715.65000000000055},{"$f":"'[1]EXT Comercio(M)'!AI258","v":1132.200000000001},{"$f":"'[1]EXT Comercio(M)'!AJ258","v":579.21979822000048},{"$f":"'[1]EXT Comercio(M)'!AK258","v":443.71802793999996},{"$f":"'[1]EXT Comercio(M)'!AL258","v":1285.7},{"$f":"'[1]EXT Comercio(M)'!AM258","v":1821.2696860000001},{"$f":"'[1]EXT Comercio(M)'!AO258","v":5306.9700094200016},{"$f":"'[1]EXT Comercio(M)'!AP258","v":7128.2396954200085},null,null,{"$f":"'[1]EXT Comercio(M)'!$BS258","v":-2515.7600469868994},{"$f":"'[1]EXT Comercio(M)'!$BT258","v":-3143.4514719868966}]
[null,null,"Octubre",{"$f":"'[1]REAL IPC(M)'!AD259","v":5.2529068483650256},{"$f":"'[1]REAL IPC(M)'!AE259","v":2.7800000000000025},{"$f":"'[1]REAL IPC(M)'!AF259","v":4.5057282245244652},{"$f":"'[1]REAL IPC(M)'!AG259","v":5.7909604519773925},{"$f":"'[1]REAL IPC(M)'!AH259","v":7.2600680220693814},{"$f":"'[1]REAL IPC(M)'!AI259","v":6.1706155349291931},{"$f":"'[1]REAL IPC(M)'!AJ259","v":4.1262135922330092},null,null,{"$f":"'[1]REAL IMAE(M)'!AG259","v":4.3190909955409671},{"$f":"'[1]REAL IMAE(M)'!AH259","v":3.547284897618054},{"$f":"'[1]REAL IMAE(M)'!AI259","v":2.6604533629194931},{"$f":"'[1]REAL IMAE(M)'!AJ259","v":6.0235060298666241},{"$f":"'[1]REAL IMAE(M)'!AK259","v":5.9169472604324849},{"$f":"'[1]REAL IMAE(M)'!AL259","v":8.0117066545316398},{"$f":"'[1]REAL IMAE(M)'!AM259","v":6.7666515174468547},null,null,{"$f":"'[1]EXT ITCER(M)'!C259","v":77.215800456986045},{"$f":"'[1]EXT ITCER(M)'!D259","v":91.083235571208874},{"$f":"'[1]EXT ITCER(M)'!E259","v":68.545582241001014},{"$f":"'[1]EXT ITCER(M)'!F259","v":76.764587499532411},{"$f":"'[1]EXT ITCER(M)'!G259","v":96.131011270532014},{"$f":"'[1]EXT ITCER(M)'!H259","v":93.492951667536758},{"$f":"'[1]EXT ITCER(M)'!I259","v":95.877871925093132},null,null,{"$f":"'[1]EXT TC(M)'!J259","v":-12.542739088929109},{"$f":"'[1]EXT TC(M)'!K259","v":0},{"$f":"'[1]EXT TC(M)'!L259","v":-3.4919225761222563},{"$f":"'[1]EXT TC(M)'!M259","v":-5.2923745877221248E-5},{"$f":"'[1]EXT TC(M)'!N259","v":5.1421873007909307},{"$f":"'[1]EXT TC(M)'!O259","v":3.0300679597394597},{"$f":"'[1]EXT TC(M)'!P259","v":0},null,null,{"$f":"'[1]EXT RIN(M)'!C259","v":4617.2830663300001},{"$f":"'[1]EXT RIN(M)'!D259","v":2781.7},{"$f":"'[1]EXT RIN(M)'!E259","v":5650.5295661},{"$f":"'[1]EXT RIN(M)'!F259","v":2113.1830398339143},{"$f":"'[1]EXT RIN(M)'!G259","v":1407.8},{"$f":"'[1]EXT RIN(M)'!H259","v":2418.1999999999998},{"$f":"'[1]EXT RIN(M)'!I259","v":2317.7089598300004},null,null,{"$f":"'[1]EXT RIN(M)'!P259","v":72.460140169250934},{"$f":"'[1]EXT RIN(M)'!Q259","v":99.754924989259578},{"$f":"'[1]EXT RIN(M)'!R259","v":110.55481808540134},{"$f":"'[1]EXT RIN(M)'!S259","v":73.696931023307926},{"$f":"'[1]EXT RIN(M)'!T259","v":102.55164301180709},{"$f":"'[1]EXT RIN(M)'!U259","v":51.822104767210561},{"$f":"'[1]EXT RIN(M)'!V259","v":197.36368823027291},null,null,{"$f":"+'[1]MONE(M)CAPARD'!AE259","v":1.8974232745059778},{"$f":"'[1]MONE(M)CAPARD'!AF259","v":-0.30161510021405163},{"$f":"'[1]MONE(M)CAPARD'!AG259","v":0.86528441152312696},{"$f":"'[1]MONE(M)CAPARD'!AH259","v":2.986114819759687},{"$f":"'[1]MONE(M)CAPARD'!AI259","v":0.42709544757761403},{"$f":"'[1]MONE(M)CAPARD'!AJ259","v":-0.65989589624136358},{"$f":"'[1]MONE(M)CAPARD'!AK259","v":-1.2256410256410251},null,null,{"$f":"'[1]MONE(M)CAPARD'!AL259","v":1},{"$f":"'[1]MONE(M)CAPARD'!AM259","v":2.4700000000000002},{"$f":"'[1]MONE(M)CAPARD'!AN259","v":3.18},{"$f":"'[1]MONE(M)CAPARD'!AO259","v":3.75},{"$f":"'[1]MONE(M)CAPARD'!AP259","v":2.96},{"$f":"'[1]MONE(M)CAPARD'!AQ259","v":2.48},{"$f":"'[1]MONE(M)CAPARD'!AR259","v":2.85},null,null,{"$f":"'[1]MONE(M)CAPARD'!J259","v":12.728478056131786},{"$f":"'[1]MONE(M)CAPARD'!K259","v":4.0182914964000753},{"$f":"'[1]MONE(M)CAPARD'!L259","v":8.328990116957911},{"$f":"'[1]MONE(M)CAPARD'!M259","v":12.107877169559423},{"$f":"'[1]MONE(M)CAPARD'!N259","v":10.994241264316399},{"$f":"'[1]MONE(M)CAPARD'!O259","v":5.7825646334799714},{"$f":"'[1]MONE(M)CAPARD'!P259","v":0.45501165501165514},null,null,{"$f":"'[1]MONE(M)CAPARD'!Q259","v":9.49},{"$f":"'[1]MONE(M)CAPARD'!R259","v":6.91},{"$f":"'[1]MONE(M)CAPARD'!S259","v":7.41},{"$f":"'[1]MONE(M)CAPARD'!T259","v":10.039999999999999},{"$f":"'[1]MONE(M)CAPARD'!U259","v":10.24},{"$f":"'[1]MONE(M)CAPARD'!V259","v":6.92},{"$f":"'[1]MONE(M)CAPARD'!W259","v":4.5999999999999996},null,null,{"$f":"'[1]MONE(M)CAPARD'!AS259","v":6.5},{"$f":"'[1]MONE(M)CAPARD'!AT259","v":"n.a."},{"$f":"'[1]MONE(M)CAPARD'!AU259","v":4.5},{"$f":"'[1]MONE(M)CAPARD'!AV259","v":4.5},{"$f":"'[1]MONE(M)CAPARD'!AW259","v":"n.a."},{"$f":"'[1]MONE(M)CAPARD'!AX259","v":4.75},{"$f":"'[1]MONE(M)CAPARD'!AY259","v":"n.a."},null,null,{"$f":"+'Datos_Regional (M)'!CF252","v":2.0922076279112911},{"$f":"+'Datos_Regional (M)'!CG252","v":-0.85164261970959165},{"$f":"+'Datos_Regional (M)'!CH252","v":0.35824314205923358},{"$f":"+'Datos_Regional (M)'!CI252","v":1.8195686803927247},{"$f":"+'Datos_Regional (M)'!CJ252","v":-0.44640047530903892},{"$f":"+'Datos_Regional (M)'!CK252","v":19.511237668723513},{"$f":"+'Datos_Regional (M)'!CL252","v":12.884656380812597},null,null,779.99908956000002,361.86999999999995,675.59166666666658,223.83090798333333,271.07256397755299,546.9666666666667,976.71297933333335,2859.3308948542194,3836.0438741875537,null,null,1114.7359447783333,685.38166666666666,1112.4083333333333,579.65933369083325,427.91957485083327,1238.7166666666669,1532.2275756666666,5158.8215199866663,6691.0490956533322,null,null,-2299.4906251324478,-2855.0052214657808,null,null,{"$f":"'[1]EXT Comercio(M)'!C259","v":777.68852878999951},{"$f":"'[1]EXT Comercio(M)'!D259","v":389.25999999999976},{"$f":"'[1]EXT Comercio(M)'!E259","v":651.99999999999955},{"$f":"'[1]EXT Comercio(M)'!F259","v":176.67588916000022},{"$f":"'[1]EXT Comercio(M)'!G259","v":273.62931404415895},{"$f":"'[1]EXT Comercio(M)'!H259","v":602.90000000000009},{"$f":"'[1]EXT Comercio(M)'!I259","v":1480.6424029999998},{"$f":"'[1]EXT Comercio(M)'!K259","v":2872.1537319941526},{"$f":"'[1]EXT Comercio(M)'!L259","v":4352.7961349941543},null,null,{"$f":"'[1]EXT Comercio(M)'!AG259","v":1193.4255528899994},{"$f":"'[1]EXT Comercio(M)'!AH259","v":706.01000000000022},{"$f":"'[1]EXT Comercio(M)'!AI259","v":1198.9999999999998},{"$f":"'[1]EXT Comercio(M)'!AJ259","v":603.88041049999993},{"$f":"'[1]EXT Comercio(M)'!AK259","v":499.48184333},{"$f":"'[1]EXT Comercio(M)'!AL259","v":1312.0000000000002},{"$f":"'[1]EXT Comercio(M)'!AM259","v":1852.3239929999991},{"$f":"'[1]EXT Comercio(M)'!AO259","v":5513.797806720002},{"$f":"'[1]EXT Comercio(M)'!AP259","v":7366.1217997200001},null,null,{"$f":"'[1]EXT Comercio(M)'!$BS259","v":-2641.6440747258384},{"$f":"'[1]EXT Comercio(M)'!$BT259","v":-3013.3256647258386}]
[null,null,"Noviembre",{"$f":"'[1]REAL IPC(M)'!AD260","v":6.1128648439259585},{"$f":"'[1]REAL IPC(M)'!AE260","v":1.8200000000001011},{"$f":"'[1]REAL IPC(M)'!AF260","v":5.2580748370130994},{"$f":"'[1]REAL IPC(M)'!AG260","v":6.4349459840300547},{"$f":"'[1]REAL IPC(M)'!AH260","v":8.7899199818826812},{"$f":"'[1]REAL IPC(M)'!AI260","v":5.3742976255211445},{"$f":"'[1]REAL IPC(M)'!AJ260","v":4.284559417946646},null,null,{"$f":"'[1]REAL IMAE(M)'!AG260","v":4.1533010532832124},{"$f":"'[1]REAL IMAE(M)'!AH260","v":2.4064502660119826},{"$f":"'[1]REAL IMAE(M)'!AI260","v":3.1259991468053623},{"$f":"'[1]REAL IMAE(M)'!AJ260","v":7.1193361805351225},{"$f":"'[1]REAL IMAE(M)'!AK260","v":5.7598402290160564},{"$f":"'[1]REAL IMAE(M)'!AL260","v":7.5088194790243561},{"$f":"'[1]REAL IMAE(M)'!AM260","v":7.3597426100945178},null,null,{"$f":"'[1]EXT ITCER(M)'!C260","v":77.263102352018194},{"$f":"'[1]EXT ITCER(M)'!D260","v":90.903184398134343},{"$f":"'[1]EXT ITCER(M)'!E260","v":67.742146421199905},{"$f":"'[1]EXT ITCER(M)'!F260","v":76.31380870446344},{"$f":"'[1]EXT ITCER(M)'!G260","v":94.995966405038928},{"$f":"'[1]EXT ITCER(M)'!H260","v":93.507728894547355},{"$f":"'[1]EXT ITCER(M)'!I260","v":95.897274497357969},null,null,{"$f":"'[1]EXT TC(M)'!J260","v":-9.7774295246839316},{"$f":"'[1]EXT TC(M)'!K260","v":0},{"$f":"'[1]EXT TC(M)'!L260","v":-3.6275387640000405},{"$f":"'[1]EXT TC(M)'!M260","v":-5.292374585841896E-5},{"$f":"'[1]EXT TC(M)'!N260","v":4.9021407950735529},{"$f":"'[1]EXT TC(M)'!O260","v":3.1102897783786885},{"$f":"'[1]EXT TC(M)'!P260","v":0},null,null,{"$f":"'[1]EXT RIN(M)'!C260","v":4603.3299308200003},{"$f":"'[1]EXT RIN(M)'!D260","v":2908.8},{"$f":"'[1]EXT RIN(M)'!E260","v":5594.9317196000002},{"$f":"'[1]EXT RIN(M)'!F260","v":2270.1680266072053},{"$f":"'[1]EXT RIN(M)'!G260","v":1420.2},{"$f":"'[1]EXT RIN(M)'!H260","v":2656.1},{"$f":"'[1]EXT RIN(M)'!I260","v":2425.1758079899996},null,null,{"$f":"'[1]EXT RIN(M)'!P260","v":69.305309974725546},{"$f":"'[1]EXT RIN(M)'!Q260","v":107.12770470937633},{"$f":"'[1]EXT RIN(M)'!R260","v":108.18881507629557},{"$f":"'[1]EXT RIN(M)'!S260","v":75.951719553374488},{"$f":"'[1]EXT RIN(M)'!T260","v":101.3525460505694},{"$f":"'[1]EXT RIN(M)'!U260","v":53.542451708130592},{"$f":"'[1]EXT RIN(M)'!V260","v":204.47800854691752},null,null,{"$f":"+'[1]MONE(M)CAPARD'!AE260","v":0.83602978524693194},{"$f":"'[1]MONE(M)CAPARD'!AF260","v":0.36338636810046993},{"$f":"'[1]MONE(M)CAPARD'!AG260","v":0.13483541591147757},{"$f":"'[1]MONE(M)CAPARD'!AH260","v":2.1844836716681435},{"$f":"'[1]MONE(M)CAPARD'!AI260","v":8.0900831013412278E-2},{"$f":"'[1]MONE(M)CAPARD'!AJ260","v":0.74562999913990624},{"$f":"'[1]MONE(M)CAPARD'!AK260","v":-1.5290465116279077},null,null,{"$f":"'[1]MONE(M)CAPARD'!AL260","v":1},{"$f":"'[1]MONE(M)CAPARD'!AM260","v":2.19},{"$f":"'[1]MONE(M)CAPARD'!AN260","v":3.11},{"$f":"'[1]MONE(M)CAPARD'!AO260","v":3.69},{"$f":"'[1]MONE(M)CAPARD'!AP260","v":3.4},{"$f":"'[1]MONE(M)CAPARD'!AQ260","v":2.99},{"$f":"'[1]MONE(M)CAPARD'!AR260","v":2.69},null,null,{"$f":"'[1]MONE(M)CAPARD'!J260","v":12.125895549987662},{"$f":"'[1]MONE(M)CAPARD'!K260","v":4.792771557650652},{"$f":"'[1]MONE(M)CAPARD'!L260","v":7.5546937138077643},{"$f":"'[1]MONE(M)CAPARD'!M260","v":11.83357016769639},{"$f":"'[1]MONE(M)CAPARD'!N260","v":7.7178671532181182},{"$f":"'[1]MONE(M)CAPARD'!O260","v":7.3411662509675457},{"$f":"'[1]MONE(M)CAPARD'!P260","v":1.0120775193798439},null,null,{"$f":"'[1]MONE(M)CAPARD'!Q260","v":9.4499999999999993},{"$f":"'[1]MONE(M)CAPARD'!R260","v":6.7},{"$f":"'[1]MONE(M)CAPARD'!S260","v":7.2900000000000009},{"$f":"'[1]MONE(M)CAPARD'!T260","v":9.98},{"$f":"'[1]MONE(M)CAPARD'!U260","v":9.9499999999999993},{"$f":"'[1]MONE(M)CAPARD'!V260","v":7.03},{"$f":"'[1]MONE(M)CAPARD'!W260","v":5.34},null,null,{"$f":"'[1]MONE(M)CAPARD'!AS260","v":6.5},{"$f":"'[1]MONE(M)CAPARD'!AT260","v":"n.a."},{"$f":"'[1]MONE(M)CAPARD'!AU260","v":4.5},{"$f":"'[1]MONE(M)CAPARD'!AV260","v":4.5},{"$f":"'[1]MONE(M)CAPARD'!AW260","v":"n.a."},{"$f":"'[1]MONE(M)CAPARD'!AX260","v":5},{"$f":"'[1]MONE(M)CAPARD'!AY260","v":"n.a."},null,null,{"$f":"+'Datos_Regional (M)'!CF253","v":4.3916362669841558},{"$f":"+'Datos_Regional (M)'!CG253","v":9.4309375401269158E-2},{"$f":"+'Datos_Regional (M)'!CH253","v":1.5030495807406563},{"$f":"+'Datos_Regional (M)'!CI253","v":2.2584513919664317},{"$f":"+'Datos_Regional (M)'!CJ253","v":1.1142770907059285},{"$f":"+'Datos_Regional (M)'!CK253","v":19.991569162932365},{"$f":"+'Datos_Regional (M)'!CL253","v":14.017632302613414},null,null,783.31214392583354,368.31666666666666,684.33333333333337,227.43964567916666,278.03235934968149,559.04166666666663,998.8660157500002,2900.4758156213484,3899.3418313713487,null,null,1118.1438110149998,689.24750000000006,1137.2,588.36439773500001,436.37657166749995,1259.2583333333334,1579.4352070833331,5228.5906137508346,6808.0258208341666,null,null,-2328.1147981294857,-2908.6839894628188,null,null,{"$f":"'[1]EXT Comercio(M)'!C260","v":791.52496359000088},{"$f":"'[1]EXT Comercio(M)'!D260","v":360.04000000000042},{"$f":"'[1]EXT Comercio(M)'!E260","v":642.70000000000027},{"$f":"'[1]EXT Comercio(M)'!F260","v":206.39183412000011},{"$f":"'[1]EXT Comercio(M)'!G260","v":292.90444535822883},{"$f":"'[1]EXT Comercio(M)'!H260","v":592.29999999999973},{"$f":"'[1]EXT Comercio(M)'!I260","v":1253.5732519999999},{"$f":"'[1]EXT Comercio(M)'!K260","v":2885.8612430682333},{"$f":"'[1]EXT Comercio(M)'!L260","v":4139.4344950682353},null,null,{"$f":"'[1]EXT Comercio(M)'!AG260","v":1146.0257207499999},{"$f":"'[1]EXT Comercio(M)'!AH260","v":732.39999999999964},{"$f":"'[1]EXT Comercio(M)'!AI260","v":1270.3000000000002},{"$f":"'[1]EXT Comercio(M)'!AJ260","v":654.43728729000031},{"$f":"'[1]EXT Comercio(M)'!AK260","v":486.78396179999993},{"$f":"'[1]EXT Comercio(M)'!AL260","v":1367.2000000000003},{"$f":"'[1]EXT Comercio(M)'!AM260","v":1796.3982360000009},{"$f":"'[1]EXT Comercio(M)'!AO260","v":5657.1469698400106},{"$f":"'[1]EXT Comercio(M)'!AP260","v":7453.5452058400115},null,null,{"$f":"'[1]EXT Comercio(M)'!$BS260","v":-2771.2857267717736},{"$f":"'[1]EXT Comercio(M)'!$BT260","v":-3314.1107107717726}]
[null,null,"Diciembre ",{"$f":"'[1]REAL IPC(M)'!AD261","v":5.8243157684466969},{"$f":"'[1]REAL IPC(M)'!AE261","v":2.1299999999999955},{"$f":"'[1]REAL IPC(M)'!AF261","v":5.3899999999999988},{"$f":"'[1]REAL IPC(M)'!AG261","v":6.4849624060150299},{"$f":"'[1]REAL IPC(M)'!AH261","v":9.2303838460606329},{"$f":"'[1]REAL IPC(M)'!AI261","v":6.2383050642844422},{"$f":"'[1]REAL IPC(M)'!AJ261","v":4.9273021001615538},null,null,{"$f":"'[1]REAL IMAE(M)'!AG261","v":4.01086955984076},{"$f":"'[1]REAL IMAE(M)'!AH261","v":2.2402793777510697},{"$f":"'[1]REAL IMAE(M)'!AI261","v":3.5741464371526774},{"$f":"'[1]REAL IMAE(M)'!AJ261","v":6.9832803333242657},{"$f":"'[1]REAL IMAE(M)'!AK261","v":5.5543160965080993},{"$f":"'[1]REAL IMAE(M)'!AL261","v":6.6810957341548143},{"$f":"'[1]REAL IMAE(M)'!AM261","v":8.1205567237408633},null,null,{"$f":"'[1]EXT ITCER(M)'!C261","v":76.049544904873187},{"$f":"'[1]EXT ITCER(M)'!D261","v":91.366605294777528},{"$f":"'[1]EXT ITCER(M)'!E261","v":67.689493744144954},{"$f":"'[1]EXT ITCER(M)'!F261","v":76.620328943442175},{"$f":"'[1]EXT ITCER(M)'!G261","v":95.029130644405129},{"$f":"'[1]EXT ITCER(M)'!H261","v":93.264825693829252},{"$f":"'[1]EXT ITCER(M)'!I261","v":95.615369250315524},null,null,{"$f":"'[1]EXT TC(M)'!J261","v":-10.933325383047105},{"$f":"'[1]EXT TC(M)'!K261","v":0},{"$f":"'[1]EXT TC(M)'!L261","v":-4.2593998742885582},{"$f":"'[1]EXT TC(M)'!M261","v":-5.292374585841896E-5},{"$f":"'[1]EXT TC(M)'!N261","v":4.9010766278558293},{"$f":"'[1]EXT TC(M)'!O261","v":3.3810388063009968},{"$f":"'[1]EXT TC(M)'!P261","v":0},null,null,{"$f":"'[1]EXT RIN(M)'!C261","v":4627.2341165400003},{"$f":"'[1]EXT RIN(M)'!D261","v":2880.7},{"$f":"'[1]EXT RIN(M)'!E261","v":5953.8343435200004},{"$f":"'[1]EXT RIN(M)'!F261","v":2719.3488686918827},{"$f":"'[1]EXT RIN(M)'!G261","v":1631.6},{"$f":"'[1]EXT RIN(M)'!H261","v":3342.7},{"$f":"'[1]EXT RIN(M)'!I261","v":2546.6231461599996},null,null,{"$f":"'[1]EXT RIN(M)'!P261","v":68.896302701952195},{"$f":"'[1]EXT RIN(M)'!Q261","v":106.78015231749293},{"$f":"'[1]EXT RIN(M)'!R261","v":106.21055299615728},{"$f":"'[1]EXT RIN(M)'!S261","v":80.728690351560502},{"$f":"'[1]EXT RIN(M)'!T261","v":104.0477837213144},{"$f":"'[1]EXT RIN(M)'!U261","v":59.637861692518257},{"$f":"'[1]EXT RIN(M)'!V261","v":215.98626907143822},null,null,{"$f":"+'[1]MONE(M)CAPARD'!AE261","v":2.0559398052843543},{"$f":"'[1]MONE(M)CAPARD'!AF261","v":-3.9165769117786742E-2},{"$f":"'[1]MONE(M)CAPARD'!AG261","v":-4.7442831388176232E-2},{"$f":"'[1]MONE(M)CAPARD'!AH261","v":2.1177052074139526},{"$f":"'[1]MONE(M)CAPARD'!AI261","v":-0.56377088855290269},{"$f":"'[1]MONE(M)CAPARD'!AJ261","v":-0.12077100082386001},{"$f":"'[1]MONE(M)CAPARD'!AK261","v":-2.1036489607390325},null,null,{"$f":"'[1]MONE(M)CAPARD'!AL261","v":1},{"$f":"'[1]MONE(M)CAPARD'!AM261","v":2.09},{"$f":"'[1]MONE(M)CAPARD'!AN261","v":3.08},{"$f":"'[1]MONE(M)CAPARD'!AO261","v":3.72},{"$f":"'[1]MONE(M)CAPARD'!AP261","v":3.29},{"$f":"'[1]MONE(M)CAPARD'!AQ261","v":2.06},{"$f":"'[1]MONE(M)CAPARD'!AR261","v":2.72},null,null,{"$f":"'[1]MONE(M)CAPARD'!J261","v":12.422177394765551},{"$f":"'[1]MONE(M)CAPARD'!K261","v":4.2788602761186771},{"$f":"'[1]MONE(M)CAPARD'!L261","v":7.4580130942214637},{"$f":"'[1]MONE(M)CAPARD'!M261","v":11.715304501323928},{"$f":"'[1]MONE(M)CAPARD'!N261","v":5.7938477778347552},{"$f":"'[1]MONE(M)CAPARD'!O261","v":6.9482423794778336},{"$f":"'[1]MONE(M)CAPARD'!P261","v":0.70782140107774927},null,null,{"$f":"'[1]MONE(M)CAPARD'!Q261","v":9.5399999999999991},{"$f":"'[1]MONE(M)CAPARD'!R261","v":6.5},{"$f":"'[1]MONE(M)CAPARD'!S261","v":7.12},{"$f":"'[1]MONE(M)CAPARD'!T261","v":9.8000000000000007},{"$f":"'[1]MONE(M)CAPARD'!U261","v":9.77},{"$f":"'[1]MONE(M)CAPARD'!V261","v":7.36},{"$f":"'[1]MONE(M)CAPARD'!W261","v":5.67},null,null,{"$f":"'[1]MONE(M)CAPARD'!AS261","v":6.5},{"$f":"'[1]MONE(M)CAPARD'!AT261","v":"n.a."},{"$f":"'[1]MONE(M)CAPARD'!AU261","v":4.5},{"$f":"'[1]MONE(M)CAPARD'!AV261","v":4.5},{"$f":"'[1]MONE(M)CAPARD'!AW261","v":"n.a."},{"$f":"'[1]MONE(M)CAPARD'!AX261","v":5},{"$f":"'[1]MONE(M)CAPARD'!AY261","v":"n.a."},null,null,{"$f":"+'Datos_Regional (M)'!CF254","v":4.8732915685316902},{"$f":"+'Datos_Regional (M)'!CG254","v":-0.33722280891428369},{"$f":"+'Datos_Regional (M)'!CH254","v":2.3312663598876737},{"$f":"+'Datos_Regional (M)'!CI254","v":2.6918617399883882},{"$f":"+'Datos_Regional (M)'!CJ254","v":5.6515140688908838},{"$f":"+'Datos_Regional (M)'!CK254","v":20.403388847884152},{"$f":"+'Datos_Regional (M)'!CL254","v":14.799033755551871},null,null,787.34133073333339,374.93666666666667,705.46666666666658,234.90092942249998,286.27940936643068,567.89166666666677,1017.9884786666667,2956.816669522264,3974.8051481889306,null,null,1130.7968822041666,701.34749999999997,1153.0250000000003,593.9732953058334,441.17966907416661,1267.491666666667,1613.8191036666667,5287.8140132508333,6901.6331169175,null,null,-2330.9973437285698,-2926.8279687285699,null,null,{"$f":"'[1]EXT Comercio(M)'!C261","v":739.52376270999957},{"$f":"'[1]EXT Comercio(M)'!D261","v":378.89999999999964},{"$f":"'[1]EXT Comercio(M)'!E261","v":893.29999999999973},{"$f":"'[1]EXT Comercio(M)'!F261","v":288.98799155999995},{"$f":"'[1]EXT Comercio(M)'!G261","v":299.25201509819703},{"$f":"'[1]EXT Comercio(M)'!H261","v":545.49999999999955},{"$f":"'[1]EXT Comercio(M)'!I261","v":930.04278399999987},{"$f":"'[1]EXT Comercio(M)'!K261","v":3145.4637693681943},{"$f":"'[1]EXT Comercio(M)'!L261","v":4075.5065533681918},null,null,{"$f":"'[1]EXT Comercio(M)'!AG261","v":1207.9568239500004},{"$f":"'[1]EXT Comercio(M)'!AH261","v":757.22999999999956},{"$f":"'[1]EXT Comercio(M)'!AI261","v":1277.9999999999995},{"$f":"'[1]EXT Comercio(M)'!AJ261","v":642.53219153000009},{"$f":"'[1]EXT Comercio(M)'!AK261","v":465.23716888000001},{"$f":"'[1]EXT Comercio(M)'!AL261","v":1324},{"$f":"'[1]EXT Comercio(M)'!AM261","v":1664.6781430000001},{"$f":"'[1]EXT Comercio(M)'!AO261","v":5674.9561843599949},{"$f":"'[1]EXT Comercio(M)'!AP261","v":7339.6343273599923},null,null,{"$f":"'[1]EXT Comercio(M)'!$BS261","v":-2529.4924149918043},{"$f":"'[1]EXT Comercio(M)'!$BT261","v":-3264.1277739918041}]
[null,2011,"Enero",{"$f":"'[1]REAL IPC(M)'!AD262","v":4.8352713305312252},{"$f":"'[1]REAL IPC(M)'!AE262","v":2.3197929111907589},{"$f":"'[1]REAL IPC(M)'!AF262","v":4.9006346894183688},{"$f":"'[1]REAL IPC(M)'!AG262","v":6.355140186915885},{"$f":"'[1]REAL IPC(M)'!AH262","v":8.0194207368431236},{"$f":"'[1]REAL IPC(M)'!AI262","v":6.1657923590217392},{"$f":"'[1]REAL IPC(M)'!AJ262","v":4.8076923076923102},null,null,{"$f":"'[1]REAL IMAE(M)'!AG262","v":3.9427766747356254},{"$f":"'[1]REAL IMAE(M)'!AH262","v":3.355457507114127},{"$f":"'[1]REAL IMAE(M)'!AI262","v":3.8423175683638204},{"$f":"'[1]REAL IMAE(M)'!AJ262","v":6.8546508379655409},{"$f":"'[1]REAL IMAE(M)'!AK262","v":5.5489472369701458},{"$f":"'[1]REAL IMAE(M)'!AL262","v":5.7097541099281415},{"$f":"'[1]REAL IMAE(M)'!AM262","v":6.6078636567498972},null,null,{"$f":"'[1]EXT ITCER(M)'!C262","v":75.89635136353553},{"$f":"'[1]EXT ITCER(M)'!D262","v":91.092080428966625},{"$f":"'[1]EXT ITCER(M)'!E262","v":67.187450869365989},{"$f":"'[1]EXT ITCER(M)'!F262","v":76.53107547169806},{"$f":"'[1]EXT ITCER(M)'!G262","v":96.179246707551656},{"$f":"'[1]EXT ITCER(M)'!H262","v":92.756746259281101},{"$f":"'[1]EXT ITCER(M)'!I262","v":95.265416400772125},null,null,{"$f":"'[1]EXT TC(M)'!J262","v":-10.228630679775661},{"$f":"'[1]EXT TC(M)'!K262","v":0},{"$f":"'[1]EXT TC(M)'!L262","v":-4.982330580214982},{"$f":"'[1]EXT TC(M)'!M262","v":-5.2923745877221248E-5},{"$f":"'[1]EXT TC(M)'!N262","v":4.9780057250899921},{"$f":"'[1]EXT TC(M)'!O262","v":3.7011908058709526},{"$f":"'[1]EXT TC(M)'!P262","v":0},null,null,{"$f":"'[1]EXT RIN(M)'!C262","v":4633.1754411700003},{"$f":"'[1]EXT RIN(M)'!D262","v":2768.1},{"$f":"'[1]EXT RIN(M)'!E262","v":5910.0665015100003},{"$f":"'[1]EXT RIN(M)'!F262","v":2802.6250040996561},{"$f":"'[1]EXT RIN(M)'!G262","v":1510.4},{"$f":"'[1]EXT RIN(M)'!H262","v":2705.3},{"$f":"'[1]EXT RIN(M)'!I262","v":2922.56265231},null,null,{"$f":"'[1]EXT RIN(M)'!P262","v":67.202666594712284},{"$f":"'[1]EXT RIN(M)'!Q262","v":103.97596018405484},{"$f":"'[1]EXT RIN(M)'!R262","v":102.67929698738673},{"$f":"'[1]EXT RIN(M)'!S262","v":80.71669010293742},{"$f":"'[1]EXT RIN(M)'!T262","v":102.67921119674396},{"$f":"'[1]EXT RIN(M)'!U262","v":53.838460701807634},{"$f":"'[1]EXT RIN(M)'!V262","v":247.13696553377241},null,null,{"$f":"+'[1]MONE(M)CAPARD'!AE262","v":2.7802939148972441},{"$f":"'[1]MONE(M)CAPARD'!AF262","v":-0.3907288119100889},{"$f":"'[1]MONE(M)CAPARD'!AG262","v":0.4283723467566013},{"$f":"'[1]MONE(M)CAPARD'!AH262","v":2.2235500878734658},{"$f":"'[1]MONE(M)CAPARD'!AI262","v":0.10963117536113445},{"$f":"'[1]MONE(M)CAPARD'!AJ262","v":-9.964825455640236E-2},{"$f":"'[1]MONE(M)CAPARD'!AK262","v":-2.0491743119266075},null,null,{"$f":"'[1]MONE(M)CAPARD'!AL262","v":1.0349999999999999},{"$f":"'[1]MONE(M)CAPARD'!AM262","v":1.92},{"$f":"'[1]MONE(M)CAPARD'!AN262","v":3.03},{"$f":"'[1]MONE(M)CAPARD'!AO262","v":3.69},{"$f":"'[1]MONE(M)CAPARD'!AP262","v":3.82},{"$f":"'[1]MONE(M)CAPARD'!AQ262","v":2.1},{"$f":"'[1]MONE(M)CAPARD'!AR262","v":2.66},null,null,{"$f":"'[1]MONE(M)CAPARD'!J262","v":13.301562053006911},{"$f":"'[1]MONE(M)CAPARD'!K262","v":4.1147533326846375},{"$f":"'[1]MONE(M)CAPARD'!L262","v":7.987907161277529},{"$f":"'[1]MONE(M)CAPARD'!M262","v":11.861072056239019},{"$f":"'[1]MONE(M)CAPARD'!N262","v":8.0398766893009874},{"$f":"'[1]MONE(M)CAPARD'!O262","v":6.5974241658669799},{"$f":"'[1]MONE(M)CAPARD'!P262","v":0.12623853211008976},null,null,{"$f":"'[1]MONE(M)CAPARD'!Q262","v":9.59},{"$f":"'[1]MONE(M)CAPARD'!R262","v":6.53},{"$f":"'[1]MONE(M)CAPARD'!S262","v":7.04},{"$f":"'[1]MONE(M)CAPARD'!T262","v":9.74},{"$f":"'[1]MONE(M)CAPARD'!U262","v":9.2899999999999991},{"$f":"'[1]MONE(M)CAPARD'!V262","v":6.61},{"$f":"'[1]MONE(M)CAPARD'!W262","v":4.9400000000000004},null,null,{"$f":"'[1]MONE(M)CAPARD'!AS262","v":6.5},{"$f":"'[1]MONE(M)CAPARD'!AT262","v":"n.a."},{"$f":"'[1]MONE(M)CAPARD'!AU262","v":4.5},{"$f":"'[1]MONE(M)CAPARD'!AV262","v":4.5},{"$f":"'[1]MONE(M)CAPARD'!AW262","v":"n.a."},{"$f":"'[1]MONE(M)CAPARD'!AX262","v":5},{"$f":"'[1]MONE(M)CAPARD'!AY262","v":"n.a."},null,null,{"$f":"+'Datos_Regional (M)'!CF255","v":4.7256729771370409},{"$f":"+'Datos_Regional (M)'!CG255","v":-0.26516546969647115},{"$f":"+'Datos_Regional (M)'!CH255","v":2.2014088185220215},{"$f":"+'Datos_Regional (M)'!CI255","v":4.4391401626546978},{"$f":"+'Datos_Regional (M)'!CJ255","v":6.4565561600332888},{"$f":"+'Datos_Regional (M)'!CK255","v":19.788831083214141},{"$f":"+'Datos_Regional (M)'!CL255","v":15.243579209077751},null,null,785.92406170249944,381.49499999999989,713.30000000000007,245.53436185249998,293.06670103147309,576.44999999999993,1035.3383879166665,2995.7701245864723,4031.1085125031386,null,null,1143.0881957225001,705.57,1175.325,605.0369592466667,454.17415187333336,1279.8916666666669,1659.4215199166665,5363.0859735091681,7022.5074934258337,null,null,-2367.3158489226948,-2991.3989809226946,null,null,{"$f":"'[1]EXT Comercio(M)'!C262","v":707.40454406999424},{"$f":"'[1]EXT Comercio(M)'!D262","v":408.65},{"$f":"'[1]EXT Comercio(M)'!E262","v":765.2},{"$f":"'[1]EXT Comercio(M)'!F262","v":344.77293119000001},{"$f":"'[1]EXT Comercio(M)'!G262","v":312.643517244333},{"$f":"'[1]EXT Comercio(M)'!H262","v":495.5},{"$f":"'[1]EXT Comercio(M)'!I262","v":865.62108499999999},{"$f":"'[1]EXT Comercio(M)'!K262","v":3034.1709925043274},{"$f":"'[1]EXT Comercio(M)'!L262","v":3899.7920775043272},null,null,{"$f":"'[1]EXT Comercio(M)'!AG262","v":1202.1693619300031},{"$f":"'[1]EXT Comercio(M)'!AH262","v":689.06},{"$f":"'[1]EXT Comercio(M)'!AI262","v":1191.9000000000001},{"$f":"'[1]EXT Comercio(M)'!AJ262","v":640.90426608000007},{"$f":"'[1]EXT Comercio(M)'!AK262","v":482.67893232000011},{"$f":"'[1]EXT Comercio(M)'!AL262","v":1156.2},{"$f":"'[1]EXT Comercio(M)'!AM262","v":1796.5063399999995},{"$f":"'[1]EXT Comercio(M)'!AO262","v":5362.9125603300035},{"$f":"'[1]EXT Comercio(M)'!AP262","v":7159.4189003300035},null,null,{"$f":"'[1]EXT Comercio(M)'!$BS262","v":-2328.7415678256762},{"$f":"'[1]EXT Comercio(M)'!$BT262","v":-3259.6268228256758}]
[null,null,"Febrero",{"$f":"'[1]REAL IPC(M)'!AD263","v":4.5743345812437415},{"$f":"'[1]REAL IPC(M)'!AE263","v":2.3764542109973159},{"$f":"'[1]REAL IPC(M)'!AF263","v":5.2315342380607035},{"$f":"'[1]REAL IPC(M)'!AG263","v":6.3573085846867698},{"$f":"'[1]REAL IPC(M)'!AH263","v":7.2231863180537674},{"$f":"'[1]REAL IPC(M)'!AI263","v":7.2920532187053775},{"$f":"'[1]REAL IPC(M)'!AJ263","v":4.9560351718625135},null,null,{"$f":"'[1]REAL IMAE(M)'!AG263","v":3.7675635622872772},{"$f":"'[1]REAL IMAE(M)'!AH263","v":2.9184562667137133},{"$f":"'[1]REAL IMAE(M)'!AI263","v":3.9211766349292376},{"$f":"'[1]REAL IMAE(M)'!AJ263","v":6.1702744138773182},{"$f":"'[1]REAL IMAE(M)'!AK263","v":5.8583716947896596},{"$f":"'[1]REAL IMAE(M)'!AL263","v":4.8206534649564698},{"$f":"'[1]REAL IMAE(M)'!AM263","v":7.2323772725021023},null,null,{"$f":"'[1]EXT ITCER(M)'!C263","v":75.104380796630636},{"$f":"'[1]EXT ITCER(M)'!D263","v":91.216254043819248},{"$f":"'[1]EXT ITCER(M)'!E263","v":65.666293886535541},{"$f":"'[1]EXT ITCER(M)'!F263","v":76.241116999108897},{"$f":"'[1]EXT ITCER(M)'!G263","v":96.264194405419502},{"$f":"'[1]EXT ITCER(M)'!H263","v":92.394049157979723},{"$f":"'[1]EXT ITCER(M)'!I263","v":95.207700854309721},null,null,{"$f":"'[1]EXT TC(M)'!J263","v":-9.3760659502612889},{"$f":"'[1]EXT TC(M)'!K263","v":0},{"$f":"'[1]EXT TC(M)'!L263","v":-4.2089590281074303},{"$f":"'[1]EXT TC(M)'!M263","v":-6.7190024562496533E-10},{"$f":"'[1]EXT TC(M)'!N263","v":4.8738887719424291},{"$f":"'[1]EXT TC(M)'!O263","v":3.9666224580017708},{"$f":"'[1]EXT TC(M)'!P263","v":0},null,null,{"$f":"'[1]EXT RIN(M)'!C263","v":4427.5760043199998},{"$f":"'[1]EXT RIN(M)'!D263","v":3376.2},{"$f":"'[1]EXT RIN(M)'!E263","v":6042.4738115600003},{"$f":"'[1]EXT RIN(M)'!F263","v":2912.4082053079055},{"$f":"'[1]EXT RIN(M)'!G263","v":1492.7},{"$f":"'[1]EXT RIN(M)'!H263","v":2635},{"$f":"'[1]EXT RIN(M)'!I263","v":2508.7846144300001},null,null,{"$f":"'[1]EXT RIN(M)'!P263","v":64.20024938705555},{"$f":"'[1]EXT RIN(M)'!Q263","v":128.11775206129857},{"$f":"'[1]EXT RIN(M)'!R263","v":105.35357857464851},{"$f":"'[1]EXT RIN(M)'!S263","v":80.072655322949359},{"$f":"'[1]EXT RIN(M)'!T263","v":99.43368460976005},{"$f":"'[1]EXT RIN(M)'!U263","v":52.814734426019925},{"$f":"'[1]EXT RIN(M)'!V263","v":216.14955556797489},null,null,{"$f":"+'[1]MONE(M)CAPARD'!AE263","v":2.7976897299626713},{"$f":"'[1]MONE(M)CAPARD'!AF263","v":-0.45562645687645748},{"$f":"'[1]MONE(M)CAPARD'!AG263","v":9.3570584760782616E-2},{"$f":"'[1]MONE(M)CAPARD'!AH263","v":2.2120636998254857},{"$f":"'[1]MONE(M)CAPARD'!AI263","v":1.3398686309268018},{"$f":"'[1]MONE(M)CAPARD'!AJ263","v":-0.84074560197540626},{"$f":"'[1]MONE(M)CAPARD'!AK263","v":-2.263838537699927},null,null,{"$f":"'[1]MONE(M)CAPARD'!AL263","v":1.03},{"$f":"'[1]MONE(M)CAPARD'!AM263","v":1.91},{"$f":"'[1]MONE(M)CAPARD'!AN263","v":2.93},{"$f":"'[1]MONE(M)CAPARD'!AO263","v":3.68},{"$f":"'[1]MONE(M)CAPARD'!AP263","v":3.45},{"$f":"'[1]MONE(M)CAPARD'!AQ263","v":2.11},{"$f":"'[1]MONE(M)CAPARD'!AR263","v":2.58},null,null,{"$f":"'[1]MONE(M)CAPARD'!J263","v":13.555587492400624},{"$f":"'[1]MONE(M)CAPARD'!K263","v":3.930147630147629},{"$f":"'[1]MONE(M)CAPARD'!L263","v":7.7338659184878935},{"$f":"'[1]MONE(M)CAPARD'!M263","v":11.868193717277492},{"$f":"'[1]MONE(M)CAPARD'!N263","v":8.5875129370282135},{"$f":"'[1]MONE(M)CAPARD'!O263","v":5.9444726705842239},{"$f":"'[1]MONE(M)CAPARD'!P263","v":0.11811119573495481},null,null,{"$f":"'[1]MONE(M)CAPARD'!Q263","v":9.61},{"$f":"'[1]MONE(M)CAPARD'!R263","v":6.4},{"$f":"'[1]MONE(M)CAPARD'!S263","v":6.9099999999999993},{"$f":"'[1]MONE(M)CAPARD'!T263","v":9.7100000000000009},{"$f":"'[1]MONE(M)CAPARD'!U263","v":10.31},{"$f":"'[1]MONE(M)CAPARD'!V263","v":7.62},{"$f":"'[1]MONE(M)CAPARD'!W263","v":5.08},null,null,{"$f":"'[1]MONE(M)CAPARD'!AS263","v":6.5},{"$f":"'[1]MONE(M)CAPARD'!AT263","v":"n.a."},{"$f":"'[1]MONE(M)CAPARD'!AU263","v":4.5},{"$f":"'[1]MONE(M)CAPARD'!AV263","v":4.5},{"$f":"'[1]MONE(M)CAPARD'!AW263","v":"n.a."},{"$f":"'[1]MONE(M)CAPARD'!AX263","v":5},{"$f":"'[1]MONE(M)CAPARD'!AY263","v":"n.a."},null,null,{"$f":"+'Datos_Regional (M)'!CF256","v":5.9049630909127737},{"$f":"+'Datos_Regional (M)'!CG256","v":0.98042012787240562},{"$f":"+'Datos_Regional (M)'!CH256","v":4.3274836895145441},{"$f":"+'Datos_Regional (M)'!CI256","v":4.7077548899875143},{"$f":"+'Datos_Regional (M)'!CJ256","v":5.4502219293966148},{"$f":"+'Datos_Regional (M)'!CK256","v":18.271011012419436},{"$f":"+'Datos_Regional (M)'!CL256","v":15.544414564792653},null,null,791.72224830416587,388.69666666666654,736.54166666666652,257.86446320833329,300.97600771303536,582.08333333333337,1079.6081506666667,3057.884385892201,4137.4925365588679,null,null,1161.9080174333337,718.24416666666673,1191.2833333333335,613.14115989916661,465.72908758916668,1293.6333333333334,1709.5166319999998,5443.9390982550012,7153.4557302550011,null,null,-2386.0547123627998,-3015.9631936961327,null,null,{"$f":"'[1]EXT Comercio(M)'!C263","v":830.6244283999954},{"$f":"'[1]EXT Comercio(M)'!D263","v":453.98},{"$f":"'[1]EXT Comercio(M)'!E263","v":901.10000000000014},{"$f":"'[1]EXT Comercio(M)'!F263","v":404.08569721000003},{"$f":"'[1]EXT Comercio(M)'!G263","v":335.53215184186467},{"$f":"'[1]EXT Comercio(M)'!H263","v":605.90000000000009},{"$f":"'[1]EXT Comercio(M)'!I263","v":1311.1814670000001},{"$f":"'[1]EXT Comercio(M)'!K263","v":3531.2222774518609},{"$f":"'[1]EXT Comercio(M)'!L263","v":4842.4037444518599},null,null,{"$f":"'[1]EXT Comercio(M)'!AG263","v":1179.4194419800031},{"$f":"'[1]EXT Comercio(M)'!AH263","v":758.84000000000015},{"$f":"'[1]EXT Comercio(M)'!AI263","v":1181.4000000000001},{"$f":"'[1]EXT Comercio(M)'!AJ263","v":626.93808236999985},{"$f":"'[1]EXT Comercio(M)'!AK263","v":498.58889354000002},{"$f":"'[1]EXT Comercio(M)'!AL263","v":1189.8000000000002},{"$f":"'[1]EXT Comercio(M)'!AM263","v":1858.0426620000007},{"$f":"'[1]EXT Comercio(M)'!AO263","v":5434.9864178900043},{"$f":"'[1]EXT Comercio(M)'!AP263","v":7293.0290798900041},null,null,{"$f":"'[1]EXT Comercio(M)'!$BS263","v":-1903.7641404381434},{"$f":"'[1]EXT Comercio(M)'!$BT263","v":-2450.6253354381442}]
[null,null,"Marzo",{"$f":"'[1]REAL IPC(M)'!AD264","v":4.5830833926969508},{"$f":"'[1]REAL IPC(M)'!AE264","v":2.7158291208246554},{"$f":"'[1]REAL IPC(M)'!AF264","v":4.9979516591560786},{"$f":"'[1]REAL IPC(M)'!AG264","v":6.605080831408781},{"$f":"'[1]REAL IPC(M)'!AH264","v":6.7409312796723908},{"$f":"'[1]REAL IPC(M)'!AI264","v":7.6067731897950086},{"$f":"'[1]REAL IPC(M)'!AJ264","v":5.4936305732484128},null,null,{"$f":"'[1]REAL IMAE(M)'!AG264","v":3.7155888944788988},{"$f":"'[1]REAL IMAE(M)'!AH264","v":3.4025718184850646},{"$f":"'[1]REAL IMAE(M)'!AI264","v":3.9740657366101688},{"$f":"'[1]REAL IMAE(M)'!AJ264","v":6.9414514074215523},{"$f":"'[1]REAL IMAE(M)'!AK264","v":6.443959098664692},{"$f":"'[1]REAL IMAE(M)'!AL264","v":4.1518035856528481},{"$f":"'[1]REAL IMAE(M)'!AM264","v":7.7873492493231566},null,null,{"$f":"'[1]EXT ITCER(M)'!C264","v":74.988576500604253},{"$f":"'[1]EXT ITCER(M)'!D264","v":91.095373383199899},{"$f":"'[1]EXT ITCER(M)'!E264","v":64.540685467982925},{"$f":"'[1]EXT ITCER(M)'!F264","v":76.104285087400825},{"$f":"'[1]EXT ITCER(M)'!G264","v":96.42655631649798},{"$f":"'[1]EXT ITCER(M)'!H264","v":92.141495344823127},{"$f":"'[1]EXT ITCER(M)'!I264","v":94.833543125992563},null,null,{"$f":"'[1]EXT TC(M)'!J264","v":-7.045339615614048},{"$f":"'[1]EXT TC(M)'!K264","v":0},{"$f":"'[1]EXT TC(M)'!L264","v":-3.9842026796603918},{"$f":"'[1]EXT TC(M)'!M264","v":-1.9092902528327135E-5},{"$f":"'[1]EXT TC(M)'!N264","v":4.7703961665038932},{"$f":"'[1]EXT TC(M)'!O264","v":4.0380413970185058},{"$f":"'[1]EXT TC(M)'!P264","v":0},null,null,{"$f":"'[1]EXT RIN(M)'!C264","v":4641.6707590899996},{"$f":"'[1]EXT RIN(M)'!D264","v":3247.3},{"$f":"'[1]EXT RIN(M)'!E264","v":6191.0129805900006},{"$f":"'[1]EXT RIN(M)'!F264","v":2991.0261667820446},{"$f":"'[1]EXT RIN(M)'!G264","v":1542.2},{"$f":"'[1]EXT RIN(M)'!H264","v":2594.9},{"$f":"'[1]EXT RIN(M)'!I264","v":2176.8393456399999},null,null,{"$f":"'[1]EXT RIN(M)'!P264","v":65.12516901121181},{"$f":"'[1]EXT RIN(M)'!Q264","v":127.33196536984619},{"$f":"'[1]EXT RIN(M)'!R264","v":100.74020615299241},{"$f":"'[1]EXT RIN(M)'!S264","v":81.132322342518449},{"$f":"'[1]EXT RIN(M)'!T264","v":108.02221662533213},{"$f":"'[1]EXT RIN(M)'!U264","v":52.111726470288403},{"$f":"'[1]EXT RIN(M)'!V264","v":185.64508310610927},null,null,{"$f":"+'[1]MONE(M)CAPARD'!AE264","v":2.7890902741415422},{"$f":"'[1]MONE(M)CAPARD'!AF264","v":-0.89161439737527237},{"$f":"'[1]MONE(M)CAPARD'!AG264","v":0.28767069840031667},{"$f":"'[1]MONE(M)CAPARD'!AH264","v":1.8994584055459232},{"$f":"'[1]MONE(M)CAPARD'!AI264","v":1.3439106676747423},{"$f":"'[1]MONE(M)CAPARD'!AJ264","v":-0.74044891987391337},{"$f":"'[1]MONE(M)CAPARD'!AK264","v":-2.6291924528301931},null,null,{"$f":"'[1]MONE(M)CAPARD'!AL264","v":0.98499999999999999},{"$f":"'[1]MONE(M)CAPARD'!AM264","v":1.8},{"$f":"'[1]MONE(M)CAPARD'!AN264","v":2.9},{"$f":"'[1]MONE(M)CAPARD'!AO264","v":3.71},{"$f":"'[1]MONE(M)CAPARD'!AP264","v":3.29},{"$f":"'[1]MONE(M)CAPARD'!AQ264","v":2.69},{"$f":"'[1]MONE(M)CAPARD'!AR264","v":2.72},null,null,{"$f":"'[1]MONE(M)CAPARD'!J264","v":13.421785007615533},{"$f":"'[1]MONE(M)CAPARD'!K264","v":3.4212554279648804},{"$f":"'[1]MONE(M)CAPARD'!L264","v":7.9735349200156111},{"$f":"'[1]MONE(M)CAPARD'!M264","v":11.561286828422871},{"$f":"'[1]MONE(M)CAPARD'!N264","v":9.0980694499956041},{"$f":"'[1]MONE(M)CAPARD'!O264","v":6.4245275694788821},{"$f":"'[1]MONE(M)CAPARD'!P264","v":-0.19934591194969048},null,null,{"$f":"'[1]MONE(M)CAPARD'!Q264","v":9.66},{"$f":"'[1]MONE(M)CAPARD'!R264","v":6.23},{"$f":"'[1]MONE(M)CAPARD'!S264","v":6.8500000000000005},{"$f":"'[1]MONE(M)CAPARD'!T264","v":9.64},{"$f":"'[1]MONE(M)CAPARD'!U264","v":9.36},{"$f":"'[1]MONE(M)CAPARD'!V264","v":7.72},{"$f":"'[1]MONE(M)CAPARD'!W264","v":5.2833333333333332},null,null,{"$f":"'[1]MONE(M)CAPARD'!AS264","v":6.5},{"$f":"'[1]MONE(M)CAPARD'!AT264","v":"n.a."},{"$f":"'[1]MONE(M)CAPARD'!AU264","v":4.75},{"$f":"'[1]MONE(M)CAPARD'!AV264","v":4.5},{"$f":"'[1]MONE(M)CAPARD'!AW264","v":"n.a."},{"$f":"'[1]MONE(M)CAPARD'!AX264","v":6},{"$f":"'[1]MONE(M)CAPARD'!AY264","v":"n.a."},null,null,{"$f":"+'Datos_Regional (M)'!CF257","v":10.486937129435315},{"$f":"+'Datos_Regional (M)'!CG257","v":0.78434086831640215},{"$f":"+'Datos_Regional (M)'!CH257","v":5.1611650946535192},{"$f":"+'Datos_Regional (M)'!CI257","v":4.8176151042000237},{"$f":"+'Datos_Regional (M)'!CJ257","v":6.0429494176976739},{"$f":"+'Datos_Regional (M)'!CK257","v":18.222418199924185},{"$f":"+'Datos_Regional (M)'!CL257","v":16.820923346148664},null,null,795.51277396666501,400.33166666666665,752.31666666666661,268.5351828808333,308.40541333808937,595.81666666666672,1077.5260688333333,3120.9183701855877,4198.444439018921,null,null,1188.2340622666682,738.24916666666661,1219.5000000000002,624.34861781749987,478.4531214475,1315.325,1734.1434914999998,5564.1099681983351,7298.2534596983351,null,null,-2443.1915980127474,-3099.8090206794145,null,null,{"$f":"'[1]EXT Comercio(M)'!C264","v":972.39616098999159},{"$f":"'[1]EXT Comercio(M)'!D264","v":531.9899999999999},{"$f":"'[1]EXT Comercio(M)'!E264","v":1051.7999999999997},{"$f":"'[1]EXT Comercio(M)'!F264","v":406.12862825000002},{"$f":"'[1]EXT Comercio(M)'!G264","v":437.93942952965699},{"$f":"'[1]EXT Comercio(M)'!H264","v":785.69999999999993},{"$f":"'[1]EXT Comercio(M)'!I264","v":1171.2562620000001},{"$f":"'[1]EXT Comercio(M)'!K264","v":4185.9542187696479},{"$f":"'[1]EXT Comercio(M)'!L264","v":5357.2104807696469},null,null,{"$f":"'[1]EXT Comercio(M)'!AG264","v":1477.2172752100121},{"$f":"'[1]EXT Comercio(M)'!AH264","v":947.19},{"$f":"'[1]EXT Comercio(M)'!AI264","v":1481.3999999999999},{"$f":"'[1]EXT Comercio(M)'!AJ264","v":772.79769016},{"$f":"'[1]EXT Comercio(M)'!AK264","v":577.12955249000004},{"$f":"'[1]EXT Comercio(M)'!AL264","v":1530.3000000000002},{"$f":"'[1]EXT Comercio(M)'!AM264","v":1855.5349539999997},{"$f":"'[1]EXT Comercio(M)'!AO264","v":6786.034517860011},{"$f":"'[1]EXT Comercio(M)'!AP264","v":8641.5694718600134},null,null,{"$f":"'[1]EXT Comercio(M)'!$BS264","v":-2600.080299090363},{"$f":"'[1]EXT Comercio(M)'!$BT264","v":-3284.3589910903629}]
[null,null,"Abril",{"$f":"'[1]REAL IPC(M)'!AD265","v":4.6819017627088382},{"$f":"'[1]REAL IPC(M)'!AE265","v":5.9577003276735185},{"$f":"'[1]REAL IPC(M)'!AF265","v":5.7611481291645363},{"$f":"'[1]REAL IPC(M)'!AG265","v":7.261029411764711},{"$f":"'[1]REAL IPC(M)'!AH265","v":7.11320404300257},{"$f":"'[1]REAL IPC(M)'!AI265","v":8.1603641333098214},{"$f":"'[1]REAL IPC(M)'!AJ265","v":6.2698412698412778},null,null,{"$f":"'[1]REAL IMAE(M)'!AG265","v":3.9624297018461831},{"$f":"'[1]REAL IMAE(M)'!AH265","v":4.9833135473881764},{"$f":"'[1]REAL IMAE(M)'!AI265","v":4.1429166382169686},{"$f":"'[1]REAL IMAE(M)'!AJ265","v":6.3969491595235173},{"$f":"'[1]REAL IMAE(M)'!AK265","v":7.1564917426017143},{"$f":"'[1]REAL IMAE(M)'!AL265","v":3.7051235538309779},{"$f":"'[1]REAL IMAE(M)'!AM265","v":8.1914268937169599},null,null,{"$f":"'[1]EXT ITCER(M)'!C265","v":75.130056738848708},{"$f":"'[1]EXT ITCER(M)'!D265","v":88.881331088194273},{"$f":"'[1]EXT ITCER(M)'!E265","v":63.699207315919153},{"$f":"'[1]EXT ITCER(M)'!F265","v":75.609769630395036},{"$f":"'[1]EXT ITCER(M)'!G265","v":96.392073775055877},{"$f":"'[1]EXT ITCER(M)'!H265","v":91.948387947703466},{"$f":"'[1]EXT ITCER(M)'!I265","v":94.282508619679277},null,null,{"$f":"'[1]EXT TC(M)'!J265","v":-3.2837961619829779},{"$f":"'[1]EXT TC(M)'!K265","v":0},{"$f":"'[1]EXT TC(M)'!L265","v":-4.8731705600127846},{"$f":"'[1]EXT TC(M)'!M265","v":-1.9092902490722538E-5},{"$f":"'[1]EXT TC(M)'!N265","v":4.6257057323033335},{"$f":"'[1]EXT TC(M)'!O265","v":3.8814879082742073},{"$f":"'[1]EXT TC(M)'!P265","v":0},null,null,{"$f":"'[1]EXT RIN(M)'!C265","v":4810.6397858399996},{"$f":"'[1]EXT RIN(M)'!D265","v":3383.8},{"$f":"'[1]EXT RIN(M)'!E265","v":6393.1173355999999},{"$f":"'[1]EXT RIN(M)'!F265","v":3105.2064007493946},{"$f":"'[1]EXT RIN(M)'!G265","v":1575.8},{"$f":"'[1]EXT RIN(M)'!H265","v":2568.4},{"$f":"'[1]EXT RIN(M)'!I265","v":2392.6901641499999},null,null,{"$f":"'[1]EXT RIN(M)'!P265","v":66.000735033252809},{"$f":"'[1]EXT RIN(M)'!Q265","v":128.30045313514847},{"$f":"'[1]EXT RIN(M)'!R265","v":102.56136852308271},{"$f":"'[1]EXT RIN(M)'!S265","v":81.541562640754194},{"$f":"'[1]EXT RIN(M)'!T265","v":105.71255556016305},{"$f":"'[1]EXT RIN(M)'!U265","v":52.017905072282922},{"$f":"'[1]EXT RIN(M)'!V265","v":198.6044075068861},null,null,{"$f":"+'[1]MONE(M)CAPARD'!AE265","v":2.2144212115536339},{"$f":"'[1]MONE(M)CAPARD'!AF265","v":-3.9428001124543162},{"$f":"'[1]MONE(M)CAPARD'!AG265","v":-0.46439371910439625},{"$f":"'[1]MONE(M)CAPARD'!AH265","v":1.0991602399314429},{"$f":"'[1]MONE(M)CAPARD'!AI265","v":-0.232005204445344},{"$f":"'[1]MONE(M)CAPARD'!AJ265","v":-0.77696126491776174},{"$f":"'[1]MONE(M)CAPARD'!AK265","v":-3.7356235997012774},null,null,{"$f":"'[1]MONE(M)CAPARD'!AL265","v":0.96},{"$f":"'[1]MONE(M)CAPARD'!AM265","v":1.78},{"$f":"'[1]MONE(M)CAPARD'!AN265","v":2.85},{"$f":"'[1]MONE(M)CAPARD'!AO265","v":3.56},{"$f":"'[1]MONE(M)CAPARD'!AP265","v":3.1},{"$f":"'[1]MONE(M)CAPARD'!AQ265","v":2.89},{"$f":"'[1]MONE(M)CAPARD'!AR265","v":2.2999999999999998},null,null,{"$f":"'[1]MONE(M)CAPARD'!J265","v":12.416757833417117},{"$f":"'[1]MONE(M)CAPARD'!K265","v":8.7109924093336441E-2},{"$f":"'[1]MONE(M)CAPARD'!L265","v":7.2605602403799505},{"$f":"'[1]MONE(M)CAPARD'!M265","v":10.841748071979429},{"$f":"'[1]MONE(M)CAPARD'!N265","v":6.8593952480289664},{"$f":"'[1]MONE(M)CAPARD'!O265","v":5.6301917208641976},{"$f":"'[1]MONE(M)CAPARD'!P265","v":-1.1541448842419795},null,null,{"$f":"'[1]MONE(M)CAPARD'!Q265","v":9.49},{"$f":"'[1]MONE(M)CAPARD'!R265","v":6.05},{"$f":"'[1]MONE(M)CAPARD'!S265","v":6.78},{"$f":"'[1]MONE(M)CAPARD'!T265","v":9.3800000000000008},{"$f":"'[1]MONE(M)CAPARD'!U265","v":9.2100000000000009},{"$f":"'[1]MONE(M)CAPARD'!V265","v":7.44},{"$f":"'[1]MONE(M)CAPARD'!W265","v":5.043333333333333},null,null,{"$f":"'[1]MONE(M)CAPARD'!AS265","v":6.5},{"$f":"'[1]MONE(M)CAPARD'!AT265","v":"n.a."},{"$f":"'[1]MONE(M)CAPARD'!AU265","v":4.75},{"$f":"'[1]MONE(M)CAPARD'!AV265","v":4.5},{"$f":"'[1]MONE(M)CAPARD'!AW265","v":"n.a."},{"$f":"'[1]MONE(M)CAPARD'!AX265","v":6.25},{"$f":"'[1]MONE(M)CAPARD'!AY265","v":"n.a."},null,null,{"$f":"+'Datos_Regional (M)'!CF258","v":12.248126368470214},{"$f":"+'Datos_Regional (M)'!CG258","v":1.8541273725346308},{"$f":"+'Datos_Regional (M)'!CH258","v":4.5230361161579191},{"$f":"+'Datos_Regional (M)'!CI258","v":4.1763012771780517},{"$f":"+'Datos_Regional (M)'!CJ258","v":6.6318456087626876},{"$f":"+'Datos_Regional (M)'!CK258","v":17.41064347457959},{"$f":"+'Datos_Regional (M)'!CL258","v":17.205784273167257},null,null,806.45282300499809,406.73499999999996,771.4666666666667,281.9135747366667,316.11244180383159,611.62499999999989,1088.5678403333334,3194.3055062121625,4282.8733465454961,null,null,1198.1343029508348,744.79666666666662,1238.575,630.63674714083334,486.34969020916657,1330.1916666666668,1763.0665634999998,5628.6840736341692,7391.7506371341688,null,null,-2434.3785674220057,-3108.8772905886726,null,null,{"$f":"'[1]EXT Comercio(M)'!C265","v":921.97886544999483},{"$f":"'[1]EXT Comercio(M)'!D265","v":429.46000000000004},{"$f":"'[1]EXT Comercio(M)'!E265","v":936.10000000000036},{"$f":"'[1]EXT Comercio(M)'!F265","v":398.09811063000006},{"$f":"'[1]EXT Comercio(M)'!G265","v":353.40550576683796},{"$f":"'[1]EXT Comercio(M)'!H265","v":773},{"$f":"'[1]EXT Comercio(M)'!I265","v":1077.362134},{"$f":"'[1]EXT Comercio(M)'!K265","v":3812.0424818468346},{"$f":"'[1]EXT Comercio(M)'!L265","v":4889.4046158468373},null,null,{"$f":"'[1]EXT Comercio(M)'!AG265","v":1246.6721534300009},{"$f":"'[1]EXT Comercio(M)'!AH265","v":792.98},{"$f":"'[1]EXT Comercio(M)'!AI265","v":1397.0000000000005},{"$f":"'[1]EXT Comercio(M)'!AJ265","v":690.64661004999971},{"$f":"'[1]EXT Comercio(M)'!AK265","v":513.80552283999998},{"$f":"'[1]EXT Comercio(M)'!AL265","v":1561.2000000000003},{"$f":"'[1]EXT Comercio(M)'!AM265","v":1788.465944},{"$f":"'[1]EXT Comercio(M)'!AO265","v":6202.3042863200026},{"$f":"'[1]EXT Comercio(M)'!AP265","v":7990.7702303199985},null,null,{"$f":"'[1]EXT Comercio(M)'!$BS265","v":-2390.261804473168},{"$f":"'[1]EXT Comercio(M)'!$BT265","v":-3101.3656144731685}]
[null,null,"Mayo ",{"$f":"'[1]REAL IPC(M)'!AD266","v":4.8451392400321609},{"$f":"'[1]REAL IPC(M)'!AE266","v":6.6965174129353269},{"$f":"'[1]REAL IPC(M)'!AF266","v":6.3930220625962066},{"$f":"'[1]REAL IPC(M)'!AG266","v":7.7064220183486283},{"$f":"'[1]REAL IPC(M)'!AH266","v":8.2891165974087677},{"$f":"'[1]REAL IPC(M)'!AI266","v":8.0300152305078765},{"$f":"'[1]REAL IPC(M)'!AJ266","v":6.4133016627078305},null,null,{"$f":"'[1]REAL IMAE(M)'!AG266","v":4.0549266334767387},{"$f":"'[1]REAL IMAE(M)'!AH266","v":5.0858059156028856},{"$f":"'[1]REAL IMAE(M)'!AI266","v":4.4369814403442831},{"$f":"'[1]REAL IMAE(M)'!AJ266","v":6.1453882059256637},{"$f":"'[1]REAL IMAE(M)'!AK266","v":7.6339156470944411},{"$f":"'[1]REAL IMAE(M)'!AL266","v":3.4063582643983437},{"$f":"'[1]REAL IMAE(M)'!AM266","v":8.4944717743899467},null,null,{"$f":"'[1]EXT ITCER(M)'!C266","v":75.36231677909916},{"$f":"'[1]EXT ITCER(M)'!D266","v":88.731734581919341},{"$f":"'[1]EXT ITCER(M)'!E266","v":63.977770442111201},{"$f":"'[1]EXT ITCER(M)'!F266","v":75.398079090886156},{"$f":"'[1]EXT ITCER(M)'!G266","v":96.081331436530533},{"$f":"'[1]EXT ITCER(M)'!H266","v":92.174205211679364},{"$f":"'[1]EXT ITCER(M)'!I266","v":94.230619289081091},null,null,{"$f":"'[1]EXT TC(M)'!J266","v":-4.7122869461154782},{"$f":"'[1]EXT TC(M)'!K266","v":0},{"$f":"'[1]EXT TC(M)'!L266","v":-4.2302223726484494},{"$f":"'[1]EXT TC(M)'!M266","v":0},{"$f":"'[1]EXT TC(M)'!N266","v":4.6532049039534495},{"$f":"'[1]EXT TC(M)'!O266","v":3.2505681477565704},{"$f":"'[1]EXT TC(M)'!P266","v":0},null,null,{"$f":"'[1]EXT RIN(M)'!C266","v":4650.3994588400001},{"$f":"'[1]EXT RIN(M)'!D266","v":3319.9},{"$f":"'[1]EXT RIN(M)'!E266","v":6421.0835425200003},{"$f":"'[1]EXT RIN(M)'!F266","v":3056.8442059287977},{"$f":"'[1]EXT RIN(M)'!G266","v":1556.6},{"$f":"'[1]EXT RIN(M)'!H266","v":2599.6999999999998},{"$f":"'[1]EXT RIN(M)'!I266","v":2274.29516298},null,null,{"$f":"'[1]EXT RIN(M)'!P266","v":65.043499402122407},{"$f":"'[1]EXT RIN(M)'!Q266","v":130.87955682531825},{"$f":"'[1]EXT RIN(M)'!R266","v":110.44715444818374},{"$f":"'[1]EXT RIN(M)'!S266","v":81.32993660420307},{"$f":"'[1]EXT RIN(M)'!T266","v":108.65418511495182},{"$f":"'[1]EXT RIN(M)'!U266","v":51.784665227875401},{"$f":"'[1]EXT RIN(M)'!V266","v":182.29563616560074},null,null,{"$f":"+'[1]MONE(M)CAPARD'!AE266","v":2.2937265164598215},{"$f":"'[1]MONE(M)CAPARD'!AF266","v":-4.579828406229602},{"$f":"'[1]MONE(M)CAPARD'!AG266","v":-1.0461419753086449},{"$f":"'[1]MONE(M)CAPARD'!AH266","v":0.55110732538330143},{"$f":"'[1]MONE(M)CAPARD'!AI266","v":-1.6566902967870984},{"$f":"'[1]MONE(M)CAPARD'!AJ266","v":-0.59244204413213419},{"$f":"'[1]MONE(M)CAPARD'!AK266","v":-3.9217857142857064},null,null,{"$f":"'[1]MONE(M)CAPARD'!AL266","v":0.96499999999999997},{"$f":"'[1]MONE(M)CAPARD'!AM266","v":1.81},{"$f":"'[1]MONE(M)CAPARD'!AN266","v":2.81},{"$f":"'[1]MONE(M)CAPARD'!AO266","v":3.55},{"$f":"'[1]MONE(M)CAPARD'!AP266","v":3.14},{"$f":"'[1]MONE(M)CAPARD'!AQ266","v":2.67},{"$f":"'[1]MONE(M)CAPARD'!AR266","v":2.2400000000000002},null,null,{"$f":"'[1]MONE(M)CAPARD'!J266","v":12.184504548867173},{"$f":"'[1]MONE(M)CAPARD'!K266","v":-0.47472722185955707},{"$f":"'[1]MONE(M)CAPARD'!L266","v":6.5577401620370335},{"$f":"'[1]MONE(M)CAPARD'!M266","v":10.309114139693349},{"$f":"'[1]MONE(M)CAPARD'!N266","v":6.2969795033057006},{"$f":"'[1]MONE(M)CAPARD'!O266","v":5.7854150590984226},{"$f":"'[1]MONE(M)CAPARD'!P266","v":-1.2122247023809443},null,null,{"$f":"'[1]MONE(M)CAPARD'!Q266","v":9.51},{"$f":"'[1]MONE(M)CAPARD'!R266","v":6.19},{"$f":"'[1]MONE(M)CAPARD'!S266","v":6.7299999999999995},{"$f":"'[1]MONE(M)CAPARD'!T266","v":9.35},{"$f":"'[1]MONE(M)CAPARD'!U266","v":9.5500000000000007},{"$f":"'[1]MONE(M)CAPARD'!V266","v":7.27},{"$f":"'[1]MONE(M)CAPARD'!W266","v":5.123333333333334},null,null,{"$f":"'[1]MONE(M)CAPARD'!AS266","v":6.5},{"$f":"'[1]MONE(M)CAPARD'!AT266","v":"n.a."},{"$f":"'[1]MONE(M)CAPARD'!AU266","v":4.75},{"$f":"'[1]MONE(M)CAPARD'!AV266","v":4.5},{"$f":"'[1]MONE(M)CAPARD'!AW266","v":"n.a."},{"$f":"'[1]MONE(M)CAPARD'!AX266","v":6.75},{"$f":"'[1]MONE(M)CAPARD'!AY266","v":"n.a."},null,null,{"$f":"+'Datos_Regional (M)'!CF259","v":9.9189117859887599},{"$f":"+'Datos_Regional (M)'!CG259","v":2.3722622544603222},{"$f":"+'Datos_Regional (M)'!CH259","v":6.9443552921351515},{"$f":"+'Datos_Regional (M)'!CI259","v":4.7168295188808385},{"$f":"+'Datos_Regional (M)'!CJ259","v":7.5702476260840923},{"$f":"+'Datos_Regional (M)'!CK259","v":16.658556288729322},{"$f":"+'Datos_Regional (M)'!CL259","v":10.374920475472749},null,null,813.77440387416402,416.16666666666669,783.30000000000007,293.34380198583335,324.93697222543091,624.18333333333328,1122.2147805,3255.7051780854285,4377.9199585854285,null,null,1217.2658349533347,765.42333333333329,1272.3583333333333,649.71770731666663,498.53859517249992,1349.5416666666667,1818.8746549166663,5752.8454707758356,7571.7201256925009,null,null,-2497.1402926904066,-3193.8001671070729,null,null,{"$f":"'[1]EXT Comercio(M)'!C266","v":933.93224938999219},{"$f":"'[1]EXT Comercio(M)'!D266","v":483.61000000000013},{"$f":"'[1]EXT Comercio(M)'!E266","v":889.89999999999986},{"$f":"'[1]EXT Comercio(M)'!F266","v":409.65587144999995},{"$f":"'[1]EXT Comercio(M)'!G266","v":378.18100814231201},{"$f":"'[1]EXT Comercio(M)'!H266","v":733.2},{"$f":"'[1]EXT Comercio(M)'!I266","v":1396.0269780000001},{"$f":"'[1]EXT Comercio(M)'!K266","v":3828.4791289823024},{"$f":"'[1]EXT Comercio(M)'!L266","v":5224.5061069823023},null,null,{"$f":"'[1]EXT Comercio(M)'!AG266","v":1338.7367109899967},{"$f":"'[1]EXT Comercio(M)'!AH266","v":929.06},{"$f":"'[1]EXT Comercio(M)'!AI266","v":1536.3000000000002},{"$f":"'[1]EXT Comercio(M)'!AJ266","v":847.67623018999984},{"$f":"'[1]EXT Comercio(M)'!AK266","v":596.05955342999994},{"$f":"'[1]EXT Comercio(M)'!AL266","v":1471.2999999999997},{"$f":"'[1]EXT Comercio(M)'!AM266","v":2211.1113709999981},{"$f":"'[1]EXT Comercio(M)'!AO266","v":6719.1324946099958},{"$f":"'[1]EXT Comercio(M)'!AP266","v":8930.2438656099912},null,null,{"$f":"'[1]EXT Comercio(M)'!$BS266","v":-2890.6533656276915},{"$f":"'[1]EXT Comercio(M)'!$BT266","v":-3705.7377586276889}]
[null,null,"Junio",{"$f":"'[1]REAL IPC(M)'!AD267","v":5.1759635575723602},{"$f":"'[1]REAL IPC(M)'!AE267","v":6.2698098256735477},{"$f":"'[1]REAL IPC(M)'!AF267","v":6.4222993669593693},{"$f":"'[1]REAL IPC(M)'!AG267","v":7.7204202832343558},{"$f":"'[1]REAL IPC(M)'!AH267","v":9.014750131400449},{"$f":"'[1]REAL IPC(M)'!AI267","v":9.3189135664828093},{"$f":"'[1]REAL IPC(M)'!AJ267","v":6.4873417721518916},null,null,{"$f":"'[1]REAL IMAE(M)'!AG267","v":3.8834955494209811},{"$f":"'[1]REAL IMAE(M)'!AH267","v":5.29249093024373},{"$f":"'[1]REAL IMAE(M)'!AI267","v":4.8384291731897129},{"$f":"'[1]REAL IMAE(M)'!AJ267","v":6.4944520339590941},{"$f":"'[1]REAL IMAE(M)'!AK267","v":7.5816071299743086},{"$f":"'[1]REAL IMAE(M)'!AL267","v":3.223319661843437},{"$f":"'[1]REAL IMAE(M)'!AM267","v":8.7093643862202903},null,null,{"$f":"'[1]EXT ITCER(M)'!C267","v":75.309873296940268},{"$f":"'[1]EXT ITCER(M)'!D267","v":88.682112957584224},{"$f":"'[1]EXT ITCER(M)'!E267","v":64.596189895546004},{"$f":"'[1]EXT ITCER(M)'!F267","v":75.078324726633028},{"$f":"'[1]EXT ITCER(M)'!G267","v":96.098663986765104},{"$f":"'[1]EXT ITCER(M)'!H267","v":91.57692265012092},{"$f":"'[1]EXT ITCER(M)'!I267","v":94.090603510048268},null,null,{"$f":"'[1]EXT TC(M)'!J267","v":-5.6044384616352243},{"$f":"'[1]EXT TC(M)'!K267","v":0},{"$f":"'[1]EXT TC(M)'!L267","v":-2.9170512827255362},{"$f":"'[1]EXT TC(M)'!M267","v":0},{"$f":"'[1]EXT TC(M)'!N267","v":4.9834685580174298},{"$f":"'[1]EXT TC(M)'!O267","v":3.5480805622037268},{"$f":"'[1]EXT TC(M)'!P267","v":0},null,null,{"$f":"'[1]EXT RIN(M)'!C267","v":4842.7701523799997},{"$f":"'[1]EXT RIN(M)'!D267","v":3056.3},{"$f":"'[1]EXT RIN(M)'!E267","v":6382.5368342399997},{"$f":"'[1]EXT RIN(M)'!F267","v":3049.1118222188197},{"$f":"'[1]EXT RIN(M)'!G267","v":1603.7},{"$f":"'[1]EXT RIN(M)'!H267","v":2606.5},{"$f":"'[1]EXT RIN(M)'!I267","v":2348.4792351200003},null,null,{"$f":"'[1]EXT RIN(M)'!P267","v":67.626049572486764},{"$f":"'[1]EXT RIN(M)'!Q267","v":128.35076635440234},{"$f":"'[1]EXT RIN(M)'!R267","v":108.80979077670692},{"$f":"'[1]EXT RIN(M)'!S267","v":78.820286530101384},{"$f":"'[1]EXT RIN(M)'!T267","v":109.65738952334358},{"$f":"'[1]EXT RIN(M)'!U267","v":52.163040887208268},{"$f":"'[1]EXT RIN(M)'!V267","v":193.28485455758843},null,null,{"$f":"+'[1]MONE(M)CAPARD'!AE267","v":1.9719680925883141},{"$f":"'[1]MONE(M)CAPARD'!AF267","v":-4.1308155466492806},{"$f":"'[1]MONE(M)CAPARD'!AG267","v":-1.0921577281013206},{"$f":"'[1]MONE(M)CAPARD'!AH267","v":0.3616581849024571},{"$f":"'[1]MONE(M)CAPARD'!AI267","v":-0.71255866490376374},{"$f":"'[1]MONE(M)CAPARD'!AJ267","v":-1.0692692859336996},{"$f":"'[1]MONE(M)CAPARD'!AK267","v":-3.9791976225854317},null,null,{"$f":"'[1]MONE(M)CAPARD'!AL267","v":0.94499999999999995},{"$f":"'[1]MONE(M)CAPARD'!AM267","v":1.88},{"$f":"'[1]MONE(M)CAPARD'!AN267","v":2.74},{"$f":"'[1]MONE(M)CAPARD'!AO267","v":3.52},{"$f":"'[1]MONE(M)CAPARD'!AP267","v":3.33},{"$f":"'[1]MONE(M)CAPARD'!AQ267","v":2.57},{"$f":"'[1]MONE(M)CAPARD'!AR267","v":2.25},null,null,{"$f":"'[1]MONE(M)CAPARD'!J267","v":12.002777075122644},{"$f":"'[1]MONE(M)CAPARD'!K267","v":-0.73380184546557314},{"$f":"'[1]MONE(M)CAPARD'!L267","v":6.5472186510601498},{"$f":"'[1]MONE(M)CAPARD'!M267","v":10.174096692111956},{"$f":"'[1]MONE(M)CAPARD'!N267","v":5.7300502830282962},{"$f":"'[1]MONE(M)CAPARD'!O267","v":5.2882765158486471},{"$f":"'[1]MONE(M)CAPARD'!P267","v":-1.4718573551262937},null,null,{"$f":"'[1]MONE(M)CAPARD'!Q267","v":9.5299999999999994},{"$f":"'[1]MONE(M)CAPARD'!R267","v":5.49},{"$f":"'[1]MONE(M)CAPARD'!S267","v":6.64},{"$f":"'[1]MONE(M)CAPARD'!T267","v":9.3000000000000007},{"$f":"'[1]MONE(M)CAPARD'!U267","v":9.4700000000000006},{"$f":"'[1]MONE(M)CAPARD'!V267","v":7.43},{"$f":"'[1]MONE(M)CAPARD'!W267","v":4.92},null,null,{"$f":"'[1]MONE(M)CAPARD'!AS267","v":5},{"$f":"'[1]MONE(M)CAPARD'!AT267","v":"n.a."},{"$f":"'[1]MONE(M)CAPARD'!AU267","v":4.75},{"$f":"'[1]MONE(M)CAPARD'!AV267","v":4.5},{"$f":"'[1]MONE(M)CAPARD'!AW267","v":"n.a."},{"$f":"'[1]MONE(M)CAPARD'!AX267","v":6.75},{"$f":"'[1]MONE(M)CAPARD'!AY267","v":"n.a."},null,null,{"$f":"+'Datos_Regional (M)'!CF260","v":9.0644657584439727},{"$f":"+'Datos_Regional (M)'!CG260","v":2.3851982295741259},{"$f":"+'Datos_Regional (M)'!CH260","v":7.9500860240427906},{"$f":"+'Datos_Regional (M)'!CI260","v":5.9140927376796215},{"$f":"+'Datos_Regional (M)'!CJ260","v":6.5484375648153348},{"$f":"+'Datos_Regional (M)'!CK260","v":15.623846410260356},{"$f":"+'Datos_Regional (M)'!CL260","v":14.375454097222097},null,null,820.99454245416348,422.64583333333331,793.9,303.72113218166669,328.50771683792692,639.84166666666658,1154.7923344999999,3309.6108914737574,4464.4032259737569,null,null,1232.3014649358338,773.30583333333334,1296.5416666666667,670.21215831833331,506.19589730666661,1361.5250000000001,1852.3270678333331,5840.0820205608334,7692.4090883941681,null,null,-2530.4711290870769,-3228.0058624204107,null,null,{"$f":"'[1]EXT Comercio(M)'!C267","v":876.17397703999359},{"$f":"'[1]EXT Comercio(M)'!D267","v":465.74000000000024},{"$f":"'[1]EXT Comercio(M)'!E267","v":875.39999999999964},{"$f":"'[1]EXT Comercio(M)'!F267","v":390.46499148000021},{"$f":"'[1]EXT Comercio(M)'!G267","v":374.38664559518804},{"$f":"'[1]EXT Comercio(M)'!H267","v":798.5},{"$f":"'[1]EXT Comercio(M)'!I267","v":1358.3244870000001},{"$f":"'[1]EXT Comercio(M)'!K267","v":3780.6656141151798},{"$f":"'[1]EXT Comercio(M)'!L267","v":5138.9901011151778},null,null,{"$f":"'[1]EXT Comercio(M)'!AG267","v":1297.9829664099902},{"$f":"'[1]EXT Comercio(M)'!AH267","v":866.35000000000036},{"$f":"'[1]EXT Comercio(M)'!AI267","v":1460.8999999999999},{"$f":"'[1]EXT Comercio(M)'!AJ267","v":846.84194080999987},{"$f":"'[1]EXT Comercio(M)'!AK267","v":554.91043886},{"$f":"'[1]EXT Comercio(M)'!AL267","v":1460.1000000000004},{"$f":"'[1]EXT Comercio(M)'!AM267","v":2260.9812200000015},{"$f":"'[1]EXT Comercio(M)'!AO267","v":6487.0853460799881},{"$f":"'[1]EXT Comercio(M)'!AP267","v":8748.0665660799932},null,null,{"$f":"'[1]EXT Comercio(M)'!$BS267","v":-2706.4197319648101},{"$f":"'[1]EXT Comercio(M)'!$BT267","v":-3609.0764649648117}]
[null,null,"Julio",{"$f":"'[1]REAL IPC(M)'!AD268","v":5.1938669485476003},{"$f":"'[1]REAL IPC(M)'!AE268","v":6.526044761338869},{"$f":"'[1]REAL IPC(M)'!AF268","v":7.0396744659206529},{"$f":"'[1]REAL IPC(M)'!AG268","v":7.7621425329096656},{"$f":"'[1]REAL IPC(M)'!AH268","v":8.456406866099897},{"$f":"'[1]REAL IPC(M)'!AI268","v":9.8712537645098148},{"$f":"'[1]REAL IPC(M)'!AJ268","v":5.3990610328638553},null,null,{"$f":"'[1]REAL IMAE(M)'!AG268","v":3.6531120084688924},{"$f":"'[1]REAL IMAE(M)'!AH268","v":5.3532038369439698},{"$f":"'[1]REAL IMAE(M)'!AI268","v":5.1748482530521498},{"$f":"'[1]REAL IMAE(M)'!AJ268","v":6.8320558263874824},{"$f":"'[1]REAL IMAE(M)'!AK268","v":7.0945723731439703},{"$f":"'[1]REAL IMAE(M)'!AL268","v":3.0612177373687786},{"$f":"'[1]REAL IMAE(M)'!AM268","v":8.8893183245567311},null,null,{"$f":"'[1]EXT ITCER(M)'!C268","v":75.132529876097806},{"$f":"'[1]EXT ITCER(M)'!D268","v":88.683022904884552},{"$f":"'[1]EXT ITCER(M)'!E268","v":63.986936347484708},{"$f":"'[1]EXT ITCER(M)'!F268","v":74.677918999742445},{"$f":"'[1]EXT ITCER(M)'!G268","v":96.486628549046713},{"$f":"'[1]EXT ITCER(M)'!H268","v":91.077230788059182},{"$f":"'[1]EXT ITCER(M)'!I268","v":94.267089372092215},null,null,{"$f":"'[1]EXT TC(M)'!J268","v":-3.7199375118160414},{"$f":"'[1]EXT TC(M)'!K268","v":0},{"$f":"'[1]EXT TC(M)'!L268","v":-3.1080200228453645},{"$f":"'[1]EXT TC(M)'!M268","v":-0.12008404295293887},{"$f":"'[1]EXT TC(M)'!N268","v":5.0907423974236732},{"$f":"'[1]EXT TC(M)'!O268","v":3.3921981074132774},{"$f":"'[1]EXT TC(M)'!P268","v":0},null,null,{"$f":"'[1]EXT RIN(M)'!C268","v":4806.5703396600002},{"$f":"'[1]EXT RIN(M)'!D268","v":2877.2},{"$f":"'[1]EXT RIN(M)'!E268","v":6333.8110733200001},{"$f":"'[1]EXT RIN(M)'!F268","v":3105.83635293826},{"$f":"'[1]EXT RIN(M)'!G268","v":1771.4},{"$f":"'[1]EXT RIN(M)'!H268","v":3239.2},{"$f":"'[1]EXT RIN(M)'!I268","v":2115.7969825499999},null,null,{"$f":"'[1]EXT RIN(M)'!P268","v":65.153271663029017},{"$f":"'[1]EXT RIN(M)'!Q268","v":101.30329584280456},{"$f":"'[1]EXT RIN(M)'!R268","v":107.67193611978567},{"$f":"'[1]EXT RIN(M)'!S268","v":79.630913681096331},{"$f":"'[1]EXT RIN(M)'!T268","v":119.24490585722826},{"$f":"'[1]EXT RIN(M)'!U268","v":66.494955213824852},{"$f":"'[1]EXT RIN(M)'!V268","v":169.05792700871592},null,null,{"$f":"+'[1]MONE(M)CAPARD'!AE268","v":1.9546130502628019},{"$f":"'[1]MONE(M)CAPARD'!AF268","v":-4.3614167518824862},{"$f":"'[1]MONE(M)CAPARD'!AG268","v":-1.6813153392891103},{"$f":"'[1]MONE(M)CAPARD'!AH268","v":0.21144481887110667},{"$f":"'[1]MONE(M)CAPARD'!AI268","v":-0.2471461881621532},{"$f":"'[1]MONE(M)CAPARD'!AJ268","v":-0.84758636367779883},{"$f":"'[1]MONE(M)CAPARD'!AK268","v":-2.8833853006681567},null,null,{"$f":"'[1]MONE(M)CAPARD'!AL268","v":0.92999999999999994},{"$f":"'[1]MONE(M)CAPARD'!AM268","v":1.88},{"$f":"'[1]MONE(M)CAPARD'!AN268","v":2.71},{"$f":"'[1]MONE(M)CAPARD'!AO268","v":3.56},{"$f":"'[1]MONE(M)CAPARD'!AP268","v":3.2063541321037601},{"$f":"'[1]MONE(M)CAPARD'!AQ268","v":2.62},{"$f":"'[1]MONE(M)CAPARD'!AR268","v":2.36},null,null,{"$f":"'[1]MONE(M)CAPARD'!J268","v":11.841120982409496},{"$f":"'[1]MONE(M)CAPARD'!K268","v":-0.9256372594589477},{"$f":"'[1]MONE(M)CAPARD'!L268","v":5.9139992396882706},{"$f":"'[1]MONE(M)CAPARD'!M268","v":9.7231339511373243},{"$f":"'[1]MONE(M)CAPARD'!N268","v":6.6667358360936015},{"$f":"'[1]MONE(M)CAPARD'!O268","v":6.3517489756218968},{"$f":"'[1]MONE(M)CAPARD'!P268","v":-0.12244988864143105},null,null,{"$f":"'[1]MONE(M)CAPARD'!Q268","v":9.51},{"$f":"'[1]MONE(M)CAPARD'!R268","v":5.54},{"$f":"'[1]MONE(M)CAPARD'!S268","v":6.5699999999999994},{"$f":"'[1]MONE(M)CAPARD'!T268","v":9.16},{"$f":"'[1]MONE(M)CAPARD'!U268","v":9.3012276764760706},{"$f":"'[1]MONE(M)CAPARD'!V268","v":7.51},{"$f":"'[1]MONE(M)CAPARD'!W268","v":5.27},null,null,{"$f":"'[1]MONE(M)CAPARD'!AS268","v":5},{"$f":"'[1]MONE(M)CAPARD'!AT268","v":"n.a."},{"$f":"'[1]MONE(M)CAPARD'!AU268","v":5},{"$f":"'[1]MONE(M)CAPARD'!AV268","v":4.5},{"$f":"'[1]MONE(M)CAPARD'!AW268","v":"n.a."},{"$f":"'[1]MONE(M)CAPARD'!AX268","v":6.75},{"$f":"'[1]MONE(M)CAPARD'!AY268","v":"n.a."},null,null,{"$f":"+'Datos_Regional (M)'!CF261","v":11.188723328922091},{"$f":"+'Datos_Regional (M)'!CG261","v":1.9031267247356265},{"$f":"+'Datos_Regional (M)'!CH261","v":8.5819012190139645},{"$f":"+'Datos_Regional (M)'!CI261","v":7.0671663460430523},{"$f":"+'Datos_Regional (M)'!CJ261","v":7.264639259770922},{"$f":"+'Datos_Regional (M)'!CK261","v":16.368136076046035},{"$f":"+'Datos_Regional (M)'!CL261","v":15.733142299677215},null,null,826.35550932832984,426.70833333333331,805.43333333333339,309.26457862833337,333.13709653171696,652.01666666666665,1205.3234183333334,3352.9155178217129,4558.2389361550458,null,null,1249.2608611908347,790.30583333333334,1303.875,688.07998835500018,515.80966231083335,1370.1750000000002,1925.8646934999997,5917.5063451900023,7843.3710386900011,null,null,-2564.5908273682885,-3285.1321025349548,null,null,{"$f":"'[1]EXT Comercio(M)'!C268","v":848.59354577999511},{"$f":"'[1]EXT Comercio(M)'!D268","v":471.72999999999956},{"$f":"'[1]EXT Comercio(M)'!E268","v":823.90000000000077},{"$f":"'[1]EXT Comercio(M)'!F268","v":275.3172086300001},{"$f":"'[1]EXT Comercio(M)'!G268","v":352.42025039182903},{"$f":"'[1]EXT Comercio(M)'!H268","v":732.6},{"$f":"'[1]EXT Comercio(M)'!I268","v":1439.9002130000001},{"$f":"'[1]EXT Comercio(M)'!K268","v":3504.5610048018279},{"$f":"'[1]EXT Comercio(M)'!L268","v":4944.4612178018215},null,null,{"$f":"'[1]EXT Comercio(M)'!AG268","v":1424.2781201900093},{"$f":"'[1]EXT Comercio(M)'!AH268","v":912.61000000000058},{"$f":"'[1]EXT Comercio(M)'!AI268","v":1328.3999999999994},{"$f":"'[1]EXT Comercio(M)'!AJ268","v":772.08166600999994},{"$f":"'[1]EXT Comercio(M)'!AK268","v":592.92332995999993},{"$f":"'[1]EXT Comercio(M)'!AL268","v":1478.3000000000004},{"$f":"'[1]EXT Comercio(M)'!AM268","v":2401.360716000001},{"$f":"'[1]EXT Comercio(M)'!AO268","v":6508.5931161600165},{"$f":"'[1]EXT Comercio(M)'!AP268","v":8909.9538321600194},null,null,{"$f":"'[1]EXT Comercio(M)'!$BS268","v":-3004.0321113581849},{"$f":"'[1]EXT Comercio(M)'!$BT268","v":-3965.4926143581833}]
[null,null,"Agosto",{"$f":"'[1]REAL IPC(M)'!AD269","v":5.2518141392544386},{"$f":"'[1]REAL IPC(M)'!AE269","v":6.824719769864096},{"$f":"'[1]REAL IPC(M)'!AF269","v":7.6258261311642093},{"$f":"'[1]REAL IPC(M)'!AG269","v":7.6818798011748752},{"$f":"'[1]REAL IPC(M)'!AH269","v":9.6949778343574202},{"$f":"'[1]REAL IPC(M)'!AI269","v":10.175145291165828},{"$f":"'[1]REAL IPC(M)'!AJ269","v":5.2918287937743402},null,null,{"$f":"'[1]REAL IMAE(M)'!AG269","v":3.5738543092338357},{"$f":"'[1]REAL IMAE(M)'!AH269","v":4.4178104070582158},{"$f":"'[1]REAL IMAE(M)'!AI269","v":5.2488664846808444},{"$f":"'[1]REAL IMAE(M)'!AJ269","v":7.1818638000659867},{"$f":"'[1]REAL IMAE(M)'!AK269","v":6.4153724052637164},{"$f":"'[1]REAL IMAE(M)'!AL269","v":2.8396615372793326},{"$f":"'[1]REAL IMAE(M)'!AM269","v":9.1057613761952751},null,null,{"$f":"'[1]EXT ITCER(M)'!C269","v":75.294382952137454},{"$f":"'[1]EXT ITCER(M)'!D269","v":88.863638077306689},{"$f":"'[1]EXT ITCER(M)'!E269","v":64.38676831194978},{"$f":"'[1]EXT ITCER(M)'!F269","v":74.536057981910716},{"$f":"'[1]EXT ITCER(M)'!G269","v":96.571265365129378},{"$f":"'[1]EXT ITCER(M)'!H269","v":90.955216351305637},{"$f":"'[1]EXT ITCER(M)'!I269","v":94.145096787662183},null,null,{"$f":"'[1]EXT TC(M)'!J269","v":-1.3129907804244254},{"$f":"'[1]EXT TC(M)'!K269","v":0},{"$f":"'[1]EXT TC(M)'!L269","v":-2.3143750000000018},{"$f":"'[1]EXT TC(M)'!M269","v":-0.24655420091285735},{"$f":"'[1]EXT TC(M)'!N269","v":4.989431298042116},{"$f":"'[1]EXT TC(M)'!O269","v":3.1683431319135575},{"$f":"'[1]EXT TC(M)'!P269","v":0},null,null,{"$f":"'[1]EXT RIN(M)'!C269","v":4808.17325514},{"$f":"'[1]EXT RIN(M)'!D269","v":2760.9},{"$f":"'[1]EXT RIN(M)'!E269","v":6398.5615988},{"$f":"'[1]EXT RIN(M)'!F269","v":2709.512438380465},{"$f":"'[1]EXT RIN(M)'!G269","v":1584.1},{"$f":"'[1]EXT RIN(M)'!H269","v":3032.9759568159898},{"$f":"'[1]EXT RIN(M)'!I269","v":1914.01566071},null,null,{"$f":"'[1]EXT RIN(M)'!P269","v":65.038266127030411},{"$f":"'[1]EXT RIN(M)'!Q269","v":101.89319317006704},{"$f":"'[1]EXT RIN(M)'!R269","v":109.5841152908074},{"$f":"'[1]EXT RIN(M)'!S269","v":77.056359900959066},{"$f":"'[1]EXT RIN(M)'!T269","v":107.80874250008634},{"$f":"'[1]EXT RIN(M)'!U269","v":62.302786062016544},{"$f":"'[1]EXT RIN(M)'!V269","v":152.47030115650782},null,null,{"$f":"+'[1]MONE(M)CAPARD'!AE269","v":1.8984811588157922},{"$f":"'[1]MONE(M)CAPARD'!AF269","v":-4.6568994335592864},{"$f":"'[1]MONE(M)CAPARD'!AG269","v":-2.2074870099196975},{"$f":"'[1]MONE(M)CAPARD'!AH269","v":0.18398657154846867},{"$f":"'[1]MONE(M)CAPARD'!AI269","v":-1.2556468776968459},{"$f":"'[1]MONE(M)CAPARD'!AJ269","v":-0.97585103094212722},{"$f":"'[1]MONE(M)CAPARD'!AK269","v":-3.0694013303769596},null,null,{"$f":"'[1]MONE(M)CAPARD'!AL269","v":0.91499999999999992},{"$f":"'[1]MONE(M)CAPARD'!AM269","v":1.85},{"$f":"'[1]MONE(M)CAPARD'!AN269","v":2.69},{"$f":"'[1]MONE(M)CAPARD'!AO269","v":3.53},{"$f":"'[1]MONE(M)CAPARD'!AP269","v":3.11},{"$f":"'[1]MONE(M)CAPARD'!AQ269","v":2.9},{"$f":"'[1]MONE(M)CAPARD'!AR269","v":2.06},null,null,{"$f":"'[1]MONE(M)CAPARD'!J269","v":11.9600654522597},{"$f":"'[1]MONE(M)CAPARD'!K269","v":-1.3992264834246404},{"$f":"'[1]MONE(M)CAPARD'!L269","v":5.4115021256495037},{"$f":"'[1]MONE(M)CAPARD'!M269","v":9.8792110784725136},{"$f":"'[1]MONE(M)CAPARD'!N269","v":5.0899483651147257},{"$f":"'[1]MONE(M)CAPARD'!O269","v":5.8042625602481781},{"$f":"'[1]MONE(M)CAPARD'!P269","v":0.30218033998519817},null,null,{"$f":"'[1]MONE(M)CAPARD'!Q269","v":9.5399999999999991},{"$f":"'[1]MONE(M)CAPARD'!R269","v":5.33},{"$f":"'[1]MONE(M)CAPARD'!S269","v":6.47},{"$f":"'[1]MONE(M)CAPARD'!T269","v":9.16},{"$f":"'[1]MONE(M)CAPARD'!U269","v":9.61},{"$f":"'[1]MONE(M)CAPARD'!V269","v":7.52},{"$f":"'[1]MONE(M)CAPARD'!W269","v":5.61},null,null,{"$f":"'[1]MONE(M)CAPARD'!AS269","v":5},{"$f":"'[1]MONE(M)CAPARD'!AT269","v":"n.a."},{"$f":"'[1]MONE(M)CAPARD'!AU269","v":5},{"$f":"'[1]MONE(M)CAPARD'!AV269","v":4.5},{"$f":"'[1]MONE(M)CAPARD'!AW269","v":"n.a."},{"$f":"'[1]MONE(M)CAPARD'!AX269","v":6.75},{"$f":"'[1]MONE(M)CAPARD'!AY269","v":"n.a."},null,null,{"$f":"+'Datos_Regional (M)'!CF262","v":12.781213977722183},{"$f":"+'Datos_Regional (M)'!CG262","v":1.9043279685367231},{"$f":"+'Datos_Regional (M)'!CH262","v":8.4466687554852093},{"$f":"+'Datos_Regional (M)'!CI262","v":8.130804879939312},{"$f":"+'Datos_Regional (M)'!CJ262","v":9.2512799660430911},{"$f":"+'Datos_Regional (M)'!CK262","v":15.268418555126217},{"$f":"+'Datos_Regional (M)'!CL262","v":16.596655138466907},null,null,832.83760365249611,430.03166666666658,824.25,311.76668287000001,339.17054849848466,660.52499999999998,1248.7678185,3398.5815016876463,4647.3493201876481,null,null,1276.9328824716674,805.39,1330.0166666666667,703.30198733583336,522.28992888416667,1385.9083333333335,1980.2181778333331,6023.839798691668,8004.0579765250004,null,null,-2625.2582970040203,-3356.7086563373537,null,null,{"$f":"'[1]EXT Comercio(M)'!C269","v":831.36264273999768},{"$f":"'[1]EXT Comercio(M)'!D269","v":420.95000000000027},{"$f":"'[1]EXT Comercio(M)'!E269","v":851.69999999999982},{"$f":"'[1]EXT Comercio(M)'!F269","v":244.10102769000014},{"$f":"'[1]EXT Comercio(M)'!G269","v":366.17992448610505},{"$f":"'[1]EXT Comercio(M)'!H269","v":696.9},{"$f":"'[1]EXT Comercio(M)'!I269","v":1507.7044960000001},{"$f":"'[1]EXT Comercio(M)'!K269","v":3411.1935949160979},{"$f":"'[1]EXT Comercio(M)'!L269","v":4918.898090916111},null,null,{"$f":"'[1]EXT Comercio(M)'!AG269","v":1458.828278669992},{"$f":"'[1]EXT Comercio(M)'!AH269","v":857.29999999999927},{"$f":"'[1]EXT Comercio(M)'!AI269","v":1503.4},{"$f":"'[1]EXT Comercio(M)'!AJ269","v":761.66767481999977},{"$f":"'[1]EXT Comercio(M)'!AK269","v":556.16192121999995},{"$f":"'[1]EXT Comercio(M)'!AL269","v":1494.8000000000004},{"$f":"'[1]EXT Comercio(M)'!AM269","v":2455.9448689999995},{"$f":"'[1]EXT Comercio(M)'!AO269","v":6632.157874709992},{"$f":"'[1]EXT Comercio(M)'!AP269","v":9088.1027437099838},null,null,{"$f":"'[1]EXT Comercio(M)'!$BS269","v":-3220.9642797938905},{"$f":"'[1]EXT Comercio(M)'!$BT269","v":-4169.2046527938946}]
[null,null,"Setiembre",{"$f":"'[1]REAL IPC(M)'!AD270","v":5.1747094413399868},{"$f":"'[1]REAL IPC(M)'!AE270","v":6.2209474829393789},{"$f":"'[1]REAL IPC(M)'!AF270","v":7.2493156240494834},{"$f":"'[1]REAL IPC(M)'!AG270","v":6.8283917340521194},{"$f":"'[1]REAL IPC(M)'!AH270","v":9.4958588830837414},{"$f":"'[1]REAL IPC(M)'!AI270","v":9.5674438332368226},{"$f":"'[1]REAL IPC(M)'!AJ270","v":6.0700389105058452},null,null,{"$f":"'[1]REAL IMAE(M)'!AG270","v":3.8275723095664875},{"$f":"'[1]REAL IMAE(M)'!AH270","v":3.1999349344460049},{"$f":"'[1]REAL IMAE(M)'!AI270","v":4.9841767165862878},{"$f":"'[1]REAL IMAE(M)'!AJ270","v":7.0640070454989283},{"$f":"'[1]REAL IMAE(M)'!AK270","v":5.844950156822744},{"$f":"'[1]REAL IMAE(M)'!AL270","v":2.5888974302646681},{"$f":"'[1]REAL IMAE(M)'!AM270","v":9.3659048618731777},null,null,{"$f":"'[1]EXT ITCER(M)'!C270","v":76.377865420144374},{"$f":"'[1]EXT ITCER(M)'!D270","v":89.297079150578341},{"$f":"'[1]EXT ITCER(M)'!E270","v":64.77634311252524},{"$f":"'[1]EXT ITCER(M)'!F270","v":75.155144785028369},{"$f":"'[1]EXT ITCER(M)'!G270","v":96.853000200923745},{"$f":"'[1]EXT ITCER(M)'!H270","v":91.157504684692185},{"$f":"'[1]EXT ITCER(M)'!I270","v":93.657317727720184},null,null,{"$f":"'[1]EXT TC(M)'!J270","v":8.6986594296586284E-2},{"$f":"'[1]EXT TC(M)'!K270","v":0},{"$f":"'[1]EXT TC(M)'!L270","v":-2.8063741898372121},{"$f":"'[1]EXT TC(M)'!M270","v":0.15345468809814744},{"$f":"'[1]EXT TC(M)'!N270","v":4.8885737246379186},{"$f":"'[1]EXT TC(M)'!O270","v":3.1388655308817031},{"$f":"'[1]EXT TC(M)'!P270","v":0},null,null,{"$f":"'[1]EXT RIN(M)'!C270","v":4762.9319688599999},{"$f":"'[1]EXT RIN(M)'!D270","v":2662},{"$f":"'[1]EXT RIN(M)'!E270","v":6303},{"$f":"'[1]EXT RIN(M)'!F270","v":2534.7089758304983},{"$f":"'[1]EXT RIN(M)'!G270","v":1534.4},{"$f":"'[1]EXT RIN(M)'!H270","v":2912.3201727212545},{"$f":"'[1]EXT RIN(M)'!I270","v":1798.1285319399999},null,null,{"$f":"'[1]EXT RIN(M)'!P270","v":65.49881517605229},{"$f":"'[1]EXT RIN(M)'!Q270","v":101.5097574443031},{"$f":"'[1]EXT RIN(M)'!R270","v":108.9735787298425},{"$f":"'[1]EXT RIN(M)'!S270","v":74.856741592929424},{"$f":"'[1]EXT RIN(M)'!T270","v":108.33218624357261},{"$f":"'[1]EXT RIN(M)'!U270","v":57.733585596091885},{"$f":"'[1]EXT RIN(M)'!V270","v":153.46975087639581},null,null,{"$f":"+'[1]MONE(M)CAPARD'!AE270","v":2.4485834782328086},{"$f":"'[1]MONE(M)CAPARD'!AF270","v":-3.8419422718808254},{"$f":"'[1]MONE(M)CAPARD'!AG270","v":-1.8734997163925176},{"$f":"'[1]MONE(M)CAPARD'!AH270","v":0.93758620689654426},{"$f":"'[1]MONE(M)CAPARD'!AI270","v":-3.0390597351799333},{"$f":"'[1]MONE(M)CAPARD'!AJ270","v":-0.46313376992636485},{"$f":"'[1]MONE(M)CAPARD'!AK270","v":-3.7145634629493847},null,null,{"$f":"'[1]MONE(M)CAPARD'!AL270","v":0.93499999999999994},{"$f":"'[1]MONE(M)CAPARD'!AM270","v":2.14},{"$f":"'[1]MONE(M)CAPARD'!AN270","v":2.66},{"$f":"'[1]MONE(M)CAPARD'!AO270","v":3.63},{"$f":"'[1]MONE(M)CAPARD'!AP270","v":3.83},{"$f":"'[1]MONE(M)CAPARD'!AQ270","v":2.81},{"$f":"'[1]MONE(M)CAPARD'!AR270","v":2.13},null,null,{"$f":"'[1]MONE(M)CAPARD'!J270","v":12.108700491122324},{"$f":"'[1]MONE(M)CAPARD'!K270","v":-0.55633798882682139},{"$f":"'[1]MONE(M)CAPARD'!L270","v":5.8375051994705931},{"$f":"'[1]MONE(M)CAPARD'!M270","v":10.700908326324637},{"$f":"'[1]MONE(M)CAPARD'!N270","v":7.3735605046797152},{"$f":"'[1]MONE(M)CAPARD'!O270","v":6.5736280000522491},{"$f":"'[1]MONE(M)CAPARD'!P270","v":-0.54684519442407253},null,null,{"$f":"'[1]MONE(M)CAPARD'!Q270","v":9.5399999999999991},{"$f":"'[1]MONE(M)CAPARD'!R270","v":5.63},{"$f":"'[1]MONE(M)CAPARD'!S270","v":6.419999999999999},{"$f":"'[1]MONE(M)CAPARD'!T270","v":9.17},{"$f":"'[1]MONE(M)CAPARD'!U270","v":9.81},{"$f":"'[1]MONE(M)CAPARD'!V270","v":7.04},{"$f":"'[1]MONE(M)CAPARD'!W270","v":5.49},null,null,{"$f":"'[1]MONE(M)CAPARD'!AS270","v":5},{"$f":"'[1]MONE(M)CAPARD'!AT270","v":"n.a."},{"$f":"'[1]MONE(M)CAPARD'!AU270","v":5.5},{"$f":"'[1]MONE(M)CAPARD'!AV270","v":5},{"$f":"'[1]MONE(M)CAPARD'!AW270","v":"n.a."},{"$f":"'[1]MONE(M)CAPARD'!AX270","v":6.75},{"$f":"'[1]MONE(M)CAPARD'!AY270","v":"n.a."},null,null,{"$f":"+'Datos_Regional (M)'!CF263","v":13.894679281044041},{"$f":"+'Datos_Regional (M)'!CG263","v":2.9328333948684948},{"$f":"+'Datos_Regional (M)'!CH263","v":10.624365865542229},{"$f":"+'Datos_Regional (M)'!CI263","v":8.7335855180680646},{"$f":"+'Datos_Regional (M)'!CJ263","v":11.766833792486974},{"$f":"+'Datos_Regional (M)'!CK263","v":15.697645493323131},{"$f":"+'Datos_Regional (M)'!CL263","v":16.385830525640532},null,null,843.47109693999573,436.09,841.80000000000018,315.9670704483334,344.23252377836656,673.38333333333321,1287.8131789166666,3454.9440245000283,4742.7572034166951,null,null,1293.4136240583346,815.34666666666669,1353.875,716.89055940333321,529.24538305143335,1398.9583333333337,2027.1554517499999,6107.7295665131014,8134.8850182631022,null,null,-2652.7855420130727,-3392.1278148464062,null,null,{"$f":"'[1]EXT Comercio(M)'!C270","v":890.4494943299942},{"$f":"'[1]EXT Comercio(M)'!D270","v":438.77},{"$f":"'[1]EXT Comercio(M)'!E270","v":818.49999999999909},{"$f":"'[1]EXT Comercio(M)'!F270","v":246.92466401000001},{"$f":"'[1]EXT Comercio(M)'!G270","v":354.31607784168705},{"$f":"'[1]EXT Comercio(M)'!H270","v":718.59999999999991},{"$f":"'[1]EXT Comercio(M)'!I270","v":1662.122586},{"$f":"'[1]EXT Comercio(M)'!K270","v":3467.5602361816855},{"$f":"'[1]EXT Comercio(M)'!L270","v":5129.6828221816832},null,null,{"$f":"'[1]EXT Comercio(M)'!AG270","v":1348.2510823000073},{"$f":"'[1]EXT Comercio(M)'!AH270","v":835.13000000000011},{"$f":"'[1]EXT Comercio(M)'!AI270","v":1418.5000000000009},{"$f":"'[1]EXT Comercio(M)'!AJ270","v":742.28266302999964},{"$f":"'[1]EXT Comercio(M)'!AK270","v":527.18347794720012},{"$f":"'[1]EXT Comercio(M)'!AL270","v":1442.3000000000011},{"$f":"'[1]EXT Comercio(M)'!AM270","v":2384.5169730000007},{"$f":"'[1]EXT Comercio(M)'!AO270","v":6313.6472232772066},{"$f":"'[1]EXT Comercio(M)'!AP270","v":8698.1641962772119},null,null,{"$f":"'[1]EXT Comercio(M)'!$BS270","v":-2846.0869870955285},{"$f":"'[1]EXT Comercio(M)'!$BT270","v":-3568.4813740955287}]
[null,null,"Octubre",{"$f":"'[1]REAL IPC(M)'!AD271","v":4.9263243475468812},{"$f":"'[1]REAL IPC(M)'!AE271","v":5.4431125957948439},{"$f":"'[1]REAL IPC(M)'!AF271","v":6.646495209278859},{"$f":"'[1]REAL IPC(M)'!AG271","v":5.919003115264803},{"$f":"'[1]REAL IPC(M)'!AH271","v":7.6586118715072331},{"$f":"'[1]REAL IPC(M)'!AI271","v":8.8636453570298581},{"$f":"'[1]REAL IPC(M)'!AJ271","v":6.138306138306131},null,null,{"$f":"'[1]REAL IMAE(M)'!AG271","v":4.2163887826640742},{"$f":"'[1]REAL IMAE(M)'!AH271","v":2.5964255081341108},{"$f":"'[1]REAL IMAE(M)'!AI271","v":4.4914452994570162},{"$f":"'[1]REAL IMAE(M)'!AJ271","v":6.4182347569331402},{"$f":"'[1]REAL IMAE(M)'!AK271","v":5.5042563305747061},{"$f":"'[1]REAL IMAE(M)'!AL271","v":2.3327451484500319},{"$f":"'[1]REAL IMAE(M)'!AM271","v":9.6438537577448731},null,null,{"$f":"'[1]EXT ITCER(M)'!C271","v":76.855729251018644},{"$f":"'[1]EXT ITCER(M)'!D271","v":89.423983253953793},{"$f":"'[1]EXT ITCER(M)'!E271","v":64.761951872200669},{"$f":"'[1]EXT ITCER(M)'!F271","v":75.42200762467867},{"$f":"'[1]EXT ITCER(M)'!G271","v":96.710563131505822},{"$f":"'[1]EXT ITCER(M)'!H271","v":91.562966689965393},{"$f":"'[1]EXT ITCER(M)'!I271","v":93.514727400051939},null,null,{"$f":"'[1]EXT TC(M)'!J271","v":0.88364161259004059},{"$f":"'[1]EXT TC(M)'!K271","v":0},{"$f":"'[1]EXT TC(M)'!L271","v":-2.668533118862499},{"$f":"'[1]EXT TC(M)'!M271","v":0.52573888938869717},{"$f":"'[1]EXT TC(M)'!N271","v":4.6225734360283779},{"$f":"'[1]EXT TC(M)'!O271","v":2.9888191542569484},{"$f":"'[1]EXT TC(M)'!P271","v":0},null,null,{"$f":"'[1]EXT RIN(M)'!C271","v":4732.9333521400004},{"$f":"'[1]EXT RIN(M)'!D271","v":2727.9},{"$f":"'[1]EXT RIN(M)'!E271","v":6574},{"$f":"'[1]EXT RIN(M)'!F271","v":2489.0699817320224},{"$f":"'[1]EXT RIN(M)'!G271","v":1572.6},{"$f":"'[1]EXT RIN(M)'!H271","v":2668.8},{"$f":"'[1]EXT RIN(M)'!I271","v":1707.8027485099999},null,null,{"$f":"'[1]EXT RIN(M)'!P271","v":64.075867816760365},{"$f":"'[1]EXT RIN(M)'!Q271","v":103.64082123924467},{"$f":"'[1]EXT RIN(M)'!R271","v":114.55608718729411},{"$f":"'[1]EXT RIN(M)'!S271","v":75.765494034988706},{"$f":"'[1]EXT RIN(M)'!T271","v":110.17350788143985},{"$f":"'[1]EXT RIN(M)'!U271","v":54.682753955892863},{"$f":"'[1]EXT RIN(M)'!V271","v":141.46422205234262},null,null,{"$f":"+'[1]MONE(M)CAPARD'!AE271","v":2.9293656015931715},{"$f":"'[1]MONE(M)CAPARD'!AF271","v":-3.3981475959746481},{"$f":"'[1]MONE(M)CAPARD'!AG271","v":-1.3188386608662648},{"$f":"'[1]MONE(M)CAPARD'!AH271","v":1.8042058823529359},{"$f":"'[1]MONE(M)CAPARD'!AI271","v":-0.46830638957958159},{"$f":"'[1]MONE(M)CAPARD'!AJ271","v":0.64884345977353342},{"$f":"'[1]MONE(M)CAPARD'!AK271","v":-3.5974816983894518},null,null,{"$f":"'[1]MONE(M)CAPARD'!AL271","v":0.99499999999999988},{"$f":"'[1]MONE(M)CAPARD'!AM271","v":1.86},{"$f":"'[1]MONE(M)CAPARD'!AN271","v":2.63},{"$f":"'[1]MONE(M)CAPARD'!AO271","v":3.52},{"$f":"'[1]MONE(M)CAPARD'!AP271","v":2.21},{"$f":"'[1]MONE(M)CAPARD'!AQ271","v":2.63},{"$f":"'[1]MONE(M)CAPARD'!AR271","v":2.3199999999999998},null,null,{"$f":"'[1]MONE(M)CAPARD'!J271","v":12.32643546114603},{"$f":"'[1]MONE(M)CAPARD'!K271","v":-5.0370853522169592E-2},{"$f":"'[1]MONE(M)CAPARD'!L271","v":6.4545063362965864},{"$f":"'[1]MONE(M)CAPARD'!M271","v":11.689117647058817},{"$f":"'[1]MONE(M)CAPARD'!N271","v":6.59667518186893},{"$f":"'[1]MONE(M)CAPARD'!O271","v":7.7862123899774245},{"$f":"'[1]MONE(M)CAPARD'!P271","v":-0.65792093704245258},null,null,{"$f":"'[1]MONE(M)CAPARD'!Q271","v":9.44},{"$f":"'[1]MONE(M)CAPARD'!R271","v":5.39},{"$f":"'[1]MONE(M)CAPARD'!S271","v":6.4},{"$f":"'[1]MONE(M)CAPARD'!T271","v":9.27},{"$f":"'[1]MONE(M)CAPARD'!U271","v":9.11},{"$f":"'[1]MONE(M)CAPARD'!V271","v":7.57},{"$f":"'[1]MONE(M)CAPARD'!W271","v":5.44},null,null,{"$f":"'[1]MONE(M)CAPARD'!AS271","v":5},{"$f":"'[1]MONE(M)CAPARD'!AT271","v":"n.a."},{"$f":"'[1]MONE(M)CAPARD'!AU271","v":5.5},{"$f":"'[1]MONE(M)CAPARD'!AV271","v":5},{"$f":"'[1]MONE(M)CAPARD'!AW271","v":"n.a."},{"$f":"'[1]MONE(M)CAPARD'!AX271","v":6.75},{"$f":"'[1]MONE(M)CAPARD'!AY271","v":"n.a."},null,null,{"$f":"+'Datos_Regional (M)'!CF264","v":13.893718866212602},{"$f":"+'Datos_Regional (M)'!CG264","v":3.6555618207015916},{"$f":"+'Datos_Regional (M)'!CH264","v":10.802643260211987},{"$f":"+'Datos_Regional (M)'!CI264","v":8.2261908174947163},{"$f":"+'Datos_Regional (M)'!CJ264","v":14.450218883538479},{"$f":"+'Datos_Regional (M)'!CK264","v":13.013982805232583},{"$f":"+'Datos_Regional (M)'!CL264","v":17.156721049757806},null,null,851.0692777758286,436.05833333333334,848.5,321.05195295000004,351.39525437307822,679.61666666666656,1304.3803661666668,3487.6914850989065,4792.071851265574,null,null,1310.7421948991675,818.13583333333315,1370.6833333333334,728.23312786416648,536.17434228103673,1411.7500000000002,2064.8027996666665,6175.7188317110367,8240.5216313777037,null,null,-2688.0273466121312,-3448.4497801121311,null,null,{"$f":"'[1]EXT Comercio(M)'!C271","v":868.86669881999478},{"$f":"'[1]EXT Comercio(M)'!D271","v":388.88000000000011},{"$f":"'[1]EXT Comercio(M)'!E271","v":732.40000000000055},{"$f":"'[1]EXT Comercio(M)'!F271","v":237.69447918000014},{"$f":"'[1]EXT Comercio(M)'!G271","v":359.58208118070002},{"$f":"'[1]EXT Comercio(M)'!H271","v":677.7},{"$f":"'[1]EXT Comercio(M)'!I271","v":1679.44865},{"$f":"'[1]EXT Comercio(M)'!K271","v":3265.1232591806911},{"$f":"'[1]EXT Comercio(M)'!L271","v":4944.5719091806895},null,null,{"$f":"'[1]EXT Comercio(M)'!AG271","v":1401.3684029799954},{"$f":"'[1]EXT Comercio(M)'!AH271","v":739.47999999999956},{"$f":"'[1]EXT Comercio(M)'!AI271","v":1400.6999999999994},{"$f":"'[1]EXT Comercio(M)'!AJ271","v":739.99123202999999},{"$f":"'[1]EXT Comercio(M)'!AK271","v":582.62935408523992},{"$f":"'[1]EXT Comercio(M)'!AL271","v":1465.4999999999995},{"$f":"'[1]EXT Comercio(M)'!AM271","v":2304.0921679999988},{"$f":"'[1]EXT Comercio(M)'!AO271","v":6329.668989095233},{"$f":"'[1]EXT Comercio(M)'!AP271","v":8633.7611570952286},null,null,{"$f":"'[1]EXT Comercio(M)'!$BS271","v":-3064.5457299145419},{"$f":"'[1]EXT Comercio(M)'!$BT271","v":-3689.189247914539}]
[null,null,"Noviembre",{"$f":"'[1]REAL IPC(M)'!AD272","v":4.5554336715375801},{"$f":"'[1]REAL IPC(M)'!AE272","v":5.1251956181533744},{"$f":"'[1]REAL IPC(M)'!AF272","v":6.0548438751000768},{"$f":"'[1]REAL IPC(M)'!AG272","v":5.4280670785525205},{"$f":"'[1]REAL IPC(M)'!AH272","v":7.3423765116738595},{"$f":"'[1]REAL IPC(M)'!AI272","v":8.6274946245806969},{"$f":"'[1]REAL IPC(M)'!AJ272","v":6.8217054263566004},null,null,{"$f":"'[1]REAL IMAE(M)'!AG272","v":4.5025033160753765},{"$f":"'[1]REAL IMAE(M)'!AH272","v":3.407366795725232},{"$f":"'[1]REAL IMAE(M)'!AI272","v":3.9364438082950071},{"$f":"'[1]REAL IMAE(M)'!AJ272","v":5.4771963690241483},{"$f":"'[1]REAL IMAE(M)'!AK272","v":5.4402776845116163},{"$f":"'[1]REAL IMAE(M)'!AL272","v":2.2068263484624024},{"$f":"'[1]REAL IMAE(M)'!AM272","v":9.786476868327405},null,null,{"$f":"'[1]EXT ITCER(M)'!C272","v":75.66668223806748},{"$f":"'[1]EXT ITCER(M)'!D272","v":89.455858451019068},{"$f":"'[1]EXT ITCER(M)'!E272","v":64.500791260581622},{"$f":"'[1]EXT ITCER(M)'!F272","v":75.235111870028064},{"$f":"'[1]EXT ITCER(M)'!G272","v":95.843324981548989},{"$f":"'[1]EXT ITCER(M)'!H272","v":91.985530357134238},{"$f":"'[1]EXT ITCER(M)'!I272","v":92.871672031729076},null,null,{"$f":"'[1]EXT TC(M)'!J272","v":-1.0210939363062814},{"$f":"'[1]EXT TC(M)'!K272","v":0},{"$f":"'[1]EXT TC(M)'!L272","v":-2.3887014048166941},{"$f":"'[1]EXT TC(M)'!M272","v":0.47017961847726591},{"$f":"'[1]EXT TC(M)'!N272","v":4.6866747423808697},{"$f":"'[1]EXT TC(M)'!O272","v":3.2940398810179654},{"$f":"'[1]EXT TC(M)'!P272","v":0},null,null,{"$f":"'[1]EXT RIN(M)'!C272","v":4722.8858149099997},{"$f":"'[1]EXT RIN(M)'!D272","v":2681.7},{"$f":"'[1]EXT RIN(M)'!E272","v":6037.6159582700002},{"$f":"'[1]EXT RIN(M)'!F272","v":2471.2306353119156},{"$f":"'[1]EXT RIN(M)'!G272","v":1668},{"$f":"'[1]EXT RIN(M)'!H272","v":3039},{"$f":"'[1]EXT RIN(M)'!I272","v":2212.23838329},null,null,{"$f":"'[1]EXT RIN(M)'!P272","v":62.496292622784253},{"$f":"'[1]EXT RIN(M)'!Q272","v":103.52567121633494},{"$f":"'[1]EXT RIN(M)'!R272","v":111.24747098830916},{"$f":"'[1]EXT RIN(M)'!S272","v":75.076594046062482},{"$f":"'[1]EXT RIN(M)'!T272","v":110.12105579351905},{"$f":"'[1]EXT RIN(M)'!U272","v":58.210991233043096},{"$f":"'[1]EXT RIN(M)'!V272","v":176.93706333432303},null,null,{"$f":"+'[1]MONE(M)CAPARD'!AE272","v":3.2944881078907624},{"$f":"'[1]MONE(M)CAPARD'!AF272","v":-3.0299069594343226},{"$f":"'[1]MONE(M)CAPARD'!AG272","v":-0.75889402661130212},{"$f":"'[1]MONE(M)CAPARD'!AH272","v":2.2592967768940926},{"$f":"'[1]MONE(M)CAPARD'!AI272","v":0.42556883894799524},{"$f":"'[1]MONE(M)CAPARD'!AJ272","v":0.73876818957555923},{"$f":"'[1]MONE(M)CAPARD'!AK272","v":-4.3920899854862219},null,null,{"$f":"'[1]MONE(M)CAPARD'!AL272","v":1},{"$f":"'[1]MONE(M)CAPARD'!AM272","v":1.94},{"$f":"'[1]MONE(M)CAPARD'!AN272","v":2.65},{"$f":"'[1]MONE(M)CAPARD'!AO272","v":3.55},{"$f":"'[1]MONE(M)CAPARD'!AP272","v":2.8258079129184899},{"$f":"'[1]MONE(M)CAPARD'!AQ272","v":2.62},{"$f":"'[1]MONE(M)CAPARD'!AR272","v":2.13},null,null,{"$f":"'[1]MONE(M)CAPARD'!J272","v":12.65794216878197},{"$f":"'[1]MONE(M)CAPARD'!K272","v":0.21384443617416227},{"$f":"'[1]MONE(M)CAPARD'!L272","v":7.0672454468245771},{"$f":"'[1]MONE(M)CAPARD'!M272","v":12.133327752197566},{"$f":"'[1]MONE(M)CAPARD'!N272","v":6.3868409789572977},{"$f":"'[1]MONE(M)CAPARD'!O272","v":7.5786571382052434},{"$f":"'[1]MONE(M)CAPARD'!P272","v":-1.4151669085631455},null,null,{"$f":"'[1]MONE(M)CAPARD'!Q272","v":10.27},{"$f":"'[1]MONE(M)CAPARD'!R272","v":5.35},{"$f":"'[1]MONE(M)CAPARD'!S272","v":6.36},{"$f":"'[1]MONE(M)CAPARD'!T272","v":9.18},{"$f":"'[1]MONE(M)CAPARD'!U272","v":9.4621816751736798},{"$f":"'[1]MONE(M)CAPARD'!V272","v":6.72},{"$f":"'[1]MONE(M)CAPARD'!W272","v":5.31},null,null,{"$f":"'[1]MONE(M)CAPARD'!AS272","v":5},{"$f":"'[1]MONE(M)CAPARD'!AT272","v":"n.a."},{"$f":"'[1]MONE(M)CAPARD'!AU272","v":5.5},{"$f":"'[1]MONE(M)CAPARD'!AV272","v":5.5},{"$f":"'[1]MONE(M)CAPARD'!AW272","v":"n.a."},{"$f":"'[1]MONE(M)CAPARD'!AX272","v":6.75},{"$f":"'[1]MONE(M)CAPARD'!AY272","v":"n.a."},null,null,{"$f":"+'Datos_Regional (M)'!CF265","v":13.839861215734949},{"$f":"+'Datos_Regional (M)'!CG265","v":3.6768016409141291},{"$f":"+'Datos_Regional (M)'!CH265","v":11.960756174166033},{"$f":"+'Datos_Regional (M)'!CI265","v":9.3952886367667521},{"$f":"+'Datos_Regional (M)'!CJ265","v":17.048666835840699},{"$f":"+'Datos_Regional (M)'!CK265","v":12.902369114453194},{"$f":"+'Datos_Regional (M)'!CL265","v":17.212504679816565},null,null,860.38952883332843,438.45333333333332,860.77499999999998,325.97087066833336,355.44205368260447,686.98333333333323,1323.5688861666667,3528.0141198509332,4851.5830060175986,null,null,1339.5907155408338,822.05916666666656,1382.5083333333332,740.19850260833334,544.28455473370343,1424.5916666666669,2094.8864274166667,6253.2329395495362,8348.1193669662025,null,null,-2725.2188196986044,-3496.5363609486044,null,null,{"$f":"'[1]EXT Comercio(M)'!C272","v":903.3679762799984},{"$f":"'[1]EXT Comercio(M)'!D272","v":388.77999999999975},{"$f":"'[1]EXT Comercio(M)'!E272","v":790},{"$f":"'[1]EXT Comercio(M)'!F272","v":265.41884673999994},{"$f":"'[1]EXT Comercio(M)'!G272","v":341.46603707254303},{"$f":"'[1]EXT Comercio(M)'!H272","v":680.7},{"$f":"'[1]EXT Comercio(M)'!I272","v":1483.8354919999999},{"$f":"'[1]EXT Comercio(M)'!K272","v":3369.7328600925466},{"$f":"'[1]EXT Comercio(M)'!L272","v":4853.5683520925377},null,null,{"$f":"'[1]EXT Comercio(M)'!AG272","v":1492.2079684499956},{"$f":"'[1]EXT Comercio(M)'!AH272","v":779.47999999999956},{"$f":"'[1]EXT Comercio(M)'!AI272","v":1412.2000000000003},{"$f":"'[1]EXT Comercio(M)'!AJ272","v":798.02178421999997},{"$f":"'[1]EXT Comercio(M)'!AK272","v":584.106511232},{"$f":"'[1]EXT Comercio(M)'!AL272","v":1521.2999999999993},{"$f":"'[1]EXT Comercio(M)'!AM272","v":2157.4017689999996},{"$f":"'[1]EXT Comercio(M)'!AO272","v":6587.3162639019865},{"$f":"'[1]EXT Comercio(M)'!AP272","v":8744.7180329019902},null,null,{"$f":"'[1]EXT Comercio(M)'!$BS272","v":-3217.5834038094508},{"$f":"'[1]EXT Comercio(M)'!$BT272","v":-3891.1496808094525}]
[null,null,"Diciembre ",{"$f":"'[1]REAL IPC(M)'!AD273","v":4.735748650300641},{"$f":"'[1]REAL IPC(M)'!AE273","v":5.0523842161950565},{"$f":"'[1]REAL IPC(M)'!AF273","v":6.2000000000000028},{"$f":"'[1]REAL IPC(M)'!AG273","v":5.6045895851721168},{"$f":"'[1]REAL IPC(M)'!AH273","v":7.9504211029485123},{"$f":"'[1]REAL IPC(M)'!AI273","v":7.7599999999999936},{"$f":"'[1]REAL IPC(M)'!AJ273","v":6.3125481139337882},null,null,{"$f":"'[1]REAL IMAE(M)'!AG273","v":4.7249539061834245},{"$f":"'[1]REAL IMAE(M)'!AH273","v":3.4610796049932584},{"$f":"'[1]REAL IMAE(M)'!AI273","v":3.4896333429051225},{"$f":"'[1]REAL IMAE(M)'!AJ273","v":4.6421640312468408},{"$f":"'[1]REAL IMAE(M)'!AK273","v":5.6788192695903028},{"$f":"'[1]REAL IMAE(M)'!AL273","v":2.2177440223015688},{"$f":"'[1]REAL IMAE(M)'!AM273","v":9.645304686052965},null,null,{"$f":"'[1]EXT ITCER(M)'!C273","v":74.637823870599391},{"$f":"'[1]EXT ITCER(M)'!D273","v":89.635578020876494},{"$f":"'[1]EXT ITCER(M)'!E273","v":64.250282775125996},{"$f":"'[1]EXT ITCER(M)'!F273","v":75.230438569278476},{"$f":"'[1]EXT ITCER(M)'!G273","v":95.02597989268628},{"$f":"'[1]EXT ITCER(M)'!H273","v":92.157642126212352},{"$f":"'[1]EXT ITCER(M)'!I273","v":92.691951714819439},null,null,{"$f":"'[1]EXT TC(M)'!J273","v":-0.26250807865708492},{"$f":"'[1]EXT TC(M)'!K273","v":0},{"$f":"'[1]EXT TC(M)'!L273","v":-2.1908586153016985},{"$f":"'[1]EXT TC(M)'!M273","v":0.60823425045015989},{"$f":"'[1]EXT TC(M)'!N273","v":4.7396440310127197},{"$f":"'[1]EXT TC(M)'!O273","v":3.3170998426682621},{"$f":"'[1]EXT TC(M)'!P273","v":0},null,null,{"$f":"'[1]EXT RIN(M)'!C273","v":4755.8138503999999},{"$f":"'[1]EXT RIN(M)'!D273","v":2502},{"$f":"'[1]EXT RIN(M)'!E273","v":6187.94},{"$f":"'[1]EXT RIN(M)'!F273","v":2820.6863589035297},{"$f":"'[1]EXT RIN(M)'!G273","v":1710.5},{"$f":"'[1]EXT RIN(M)'!H273","v":3637.9},{"$f":"'[1]EXT RIN(M)'!I273","v":2216.8830439200001},null,null,{"$f":"'[1]EXT RIN(M)'!P273","v":61.384967788271346},{"$f":"'[1]EXT RIN(M)'!Q273","v":99.094799503337811},{"$f":"'[1]EXT RIN(M)'!R273","v":101.20645566057867},{"$f":"'[1]EXT RIN(M)'!S273","v":77.83158027029944},{"$f":"'[1]EXT RIN(M)'!T273","v":107.69346015674539},{"$f":"'[1]EXT RIN(M)'!U273","v":62.353859680592464},{"$f":"'[1]EXT RIN(M)'!V273","v":181.20210990236697},null,null,{"$f":"+'[1]MONE(M)CAPARD'!AE273","v":3.1166544296143619},{"$f":"'[1]MONE(M)CAPARD'!AF273","v":-2.6580874266008121},{"$f":"'[1]MONE(M)CAPARD'!AG273","v":-0.96045197740113286},{"$f":"'[1]MONE(M)CAPARD'!AH273","v":2.1925282072712005},{"$f":"'[1]MONE(M)CAPARD'!AI273","v":-1.1546142526802705},{"$f":"'[1]MONE(M)CAPARD'!AJ273","v":1.6982182628062421},{"$f":"'[1]MONE(M)CAPARD'!AK273","v":-3.9812309920347513},null,null,{"$f":"'[1]MONE(M)CAPARD'!AL273","v":1.335},{"$f":"'[1]MONE(M)CAPARD'!AM273","v":2.2599999999999998},{"$f":"'[1]MONE(M)CAPARD'!AN273","v":2.67},{"$f":"'[1]MONE(M)CAPARD'!AO273","v":3.63},{"$f":"'[1]MONE(M)CAPARD'!AP273","v":3.0499790356984802},{"$f":"'[1]MONE(M)CAPARD'!AQ273","v":3.51},{"$f":"'[1]MONE(M)CAPARD'!AR273","v":2.08},null,null,{"$f":"'[1]MONE(M)CAPARD'!J273","v":12.549918742249453},{"$f":"'[1]MONE(M)CAPARD'!K273","v":4.5325752633039819E-2},{"$f":"'[1]MONE(M)CAPARD'!L273","v":6.9397363465160051},{"$f":"'[1]MONE(M)CAPARD'!M273","v":11.832260760551602},{"$f":"'[1]MONE(M)CAPARD'!N273","v":9.8229053396360655},{"$f":"'[1]MONE(M)CAPARD'!O273","v":8.7787676317743184},{"$f":"'[1]MONE(M)CAPARD'!P273","v":-0.35983345401882066},null,null,{"$f":"'[1]MONE(M)CAPARD'!Q273","v":10.33},{"$f":"'[1]MONE(M)CAPARD'!R273","v":5.0999999999999996},{"$f":"'[1]MONE(M)CAPARD'!S273","v":6.29},{"$f":"'[1]MONE(M)CAPARD'!T273","v":8.93},{"$f":"'[1]MONE(M)CAPARD'!U273","v":8.4326140388319502},{"$f":"'[1]MONE(M)CAPARD'!V273","v":7.19},{"$f":"'[1]MONE(M)CAPARD'!W273","v":5.93},null,null,{"$f":"'[1]MONE(M)CAPARD'!AS273","v":5},{"$f":"'[1]MONE(M)CAPARD'!AT273","v":"n.a."},{"$f":"'[1]MONE(M)CAPARD'!AU273","v":5.5},{"$f":"'[1]MONE(M)CAPARD'!AV273","v":5.5},{"$f":"'[1]MONE(M)CAPARD'!AW273","v":"n.a."},{"$f":"'[1]MONE(M)CAPARD'!AX273","v":6.75},{"$f":"'[1]MONE(M)CAPARD'!AY273","v":"n.a."},null,null,{"$f":"+'Datos_Regional (M)'!CF266","v":13.035915987640134},{"$f":"+'Datos_Regional (M)'!CG266","v":4.7577572478238794},{"$f":"+'Datos_Regional (M)'!CH266","v":10.767210602795153},{"$f":"+'Datos_Regional (M)'!CI266","v":10.924792310914899},{"$f":"+'Datos_Regional (M)'!CJ266","v":15.700619726814047},{"$f":"+'Datos_Regional (M)'!CK266","v":12.568603972673609},{"$f":"+'Datos_Regional (M)'!CL266","v":16.510572406124837},null,null,868.8049639698279,442.34750000000003,866.75833333333333,329.98389427250004,358.62961212938234,696.82499999999993,1335.9675567500001,3563.3493037050434,4899.3168604550438,null,null,1352.4292401933344,830.37583333333339,1384.3916666666667,751.34773024833328,550.13676540787003,1441.8000000000002,2115.211804,6310.4812358495392,8425.6930398495388,null,null,-2747.1319321444948,-3526.3761793944946,null,null,{"$f":"'[1]EXT Comercio(M)'!C273","v":840.50898434799274},{"$f":"'[1]EXT Comercio(M)'!D273","v":425.63000000000011},{"$f":"'[1]EXT Comercio(M)'!E273","v":965.10000000000036},{"$f":"'[1]EXT Comercio(M)'!F273","v":337.14427480999984},{"$f":"'[1]EXT Comercio(M)'!G273","v":337.50271645953097},{"$f":"'[1]EXT Comercio(M)'!H273","v":663.6},{"$f":"'[1]EXT Comercio(M)'!I273","v":1078.8268310000001},{"$f":"'[1]EXT Comercio(M)'!K273","v":3569.485975617521},{"$f":"'[1]EXT Comercio(M)'!L273","v":4648.3128066175268},null,null,{"$f":"'[1]EXT Comercio(M)'!AG273","v":1362.0191197800073},{"$f":"'[1]EXT Comercio(M)'!AH273","v":857.03000000000065},{"$f":"'[1]EXT Comercio(M)'!AI273","v":1300.6000000000004},{"$f":"'[1]EXT Comercio(M)'!AJ273","v":776.32292321000023},{"$f":"'[1]EXT Comercio(M)'!AK273","v":535.46369697},{"$f":"'[1]EXT Comercio(M)'!AL273","v":1530.5000000000005},{"$f":"'[1]EXT Comercio(M)'!AM273","v":1908.5826620000007},{"$f":"'[1]EXT Comercio(M)'!AO273","v":6361.9357399600267},{"$f":"'[1]EXT Comercio(M)'!AP273","v":8270.5184019600274},null,null,{"$f":"'[1]EXT Comercio(M)'!$BS273","v":-2792.4497643424875},{"$f":"'[1]EXT Comercio(M)'!$BT273","v":-3622.205595342486}]
[null,2012,"Enero",{"$f":"'[1]REAL IPC(M)'!AD274","v":4.2138538820197748},{"$f":"'[1]REAL IPC(M)'!AE274","v":4.7484674515909413},{"$f":"'[1]REAL IPC(M)'!AF274","v":5.4354294782781238},{"$f":"'[1]REAL IPC(M)'!AG274","v":5.3602811950790938},{"$f":"'[1]REAL IPC(M)'!AH274","v":8.2541404339734434},{"$f":"'[1]REAL IPC(M)'!AI274","v":6.9004787458379759},{"$f":"'[1]REAL IPC(M)'!AJ274","v":6.1162079510703444},null,null,{"$f":"'[1]REAL IMAE(M)'!AG274","v":4.9421371179375733},{"$f":"'[1]REAL IMAE(M)'!AH274","v":2.2956874523501378},{"$f":"'[1]REAL IMAE(M)'!AI274","v":3.2606215174871362},{"$f":"'[1]REAL IMAE(M)'!AJ274","v":3.9783392995986016},{"$f":"'[1]REAL IMAE(M)'!AK274","v":5.928374927081185},{"$f":"'[1]REAL IMAE(M)'!AL274","v":2.2727091388523619},{"$f":"'[1]REAL IMAE(M)'!AM274","v":11.354181274248582},null,null,{"$f":"'[1]EXT ITCER(M)'!C274","v":75.352054660770236},{"$f":"'[1]EXT ITCER(M)'!D274","v":89.579189619025684},{"$f":"'[1]EXT ITCER(M)'!E274","v":64.451613105120529},{"$f":"'[1]EXT ITCER(M)'!F274","v":75.585718965743112},{"$f":"'[1]EXT ITCER(M)'!G274","v":95.912615843665748},{"$f":"'[1]EXT ITCER(M)'!H274","v":92.749958589877295},{"$f":"'[1]EXT ITCER(M)'!I274","v":92.475722677942215},null,null,{"$f":"'[1]EXT TC(M)'!J274","v":0.4443404600495347},{"$f":"'[1]EXT TC(M)'!K274","v":0},{"$f":"'[1]EXT TC(M)'!L274","v":-1.8120906801007586},{"$f":"'[1]EXT TC(M)'!M274","v":1.019372637232101},{"$f":"'[1]EXT TC(M)'!N274","v":4.8008233099919071},{"$f":"'[1]EXT TC(M)'!O274","v":3.7704458360594524},{"$f":"'[1]EXT TC(M)'!P274","v":0},null,null,{"$f":"'[1]EXT RIN(M)'!C274","v":4646.3623359599997},{"$f":"'[1]EXT RIN(M)'!D274","v":2578.6999999999998},{"$f":"'[1]EXT RIN(M)'!E274","v":6185.7},{"$f":"'[1]EXT RIN(M)'!F274","v":2880.4390615127977},{"$f":"'[1]EXT RIN(M)'!G274","v":1624.8},{"$f":"'[1]EXT RIN(M)'!H274","v":3046.8},{"$f":"'[1]EXT RIN(M)'!I274","v":2082.7013444499999},null,null,{"$f":"'[1]EXT RIN(M)'!P274","v":59.756291335107846},{"$f":"'[1]EXT RIN(M)'!Q274","v":98.958417279328529},{"$f":"'[1]EXT RIN(M)'!R274","v":99.820789789363687},{"$f":"'[1]EXT RIN(M)'!S274","v":77.886682281179944},{"$f":"'[1]EXT RIN(M)'!T274","v":106.0529268895631},{"$f":"'[1]EXT RIN(M)'!U274","v":57.466687929524255},{"$f":"'[1]EXT RIN(M)'!V274","v":181.80623674379575},null,null,{"$f":"+'[1]MONE(M)CAPARD'!AE274","v":4.3527284991452131},{"$f":"'[1]MONE(M)CAPARD'!AF274","v":-2.3279266140269486},{"$f":"'[1]MONE(M)CAPARD'!AG274","v":-0.22329256820320248},{"$f":"'[1]MONE(M)CAPARD'!AH274","v":2.4864386989157561},{"$f":"'[1]MONE(M)CAPARD'!AI274","v":-0.23517230035137776},{"$f":"'[1]MONE(M)CAPARD'!AJ274","v":3.1800804767624866},{"$f":"'[1]MONE(M)CAPARD'!AK274","v":-4.0580115273775288},null,null,{"$f":"'[1]MONE(M)CAPARD'!AL274","v":1.3484834265379795},{"$f":"'[1]MONE(M)CAPARD'!AM274","v":2.31},{"$f":"'[1]MONE(M)CAPARD'!AN274","v":2.64},{"$f":"'[1]MONE(M)CAPARD'!AO274","v":3.57},{"$f":"'[1]MONE(M)CAPARD'!AP274","v":2.7315146174798404},{"$f":"'[1]MONE(M)CAPARD'!AQ274","v":2.74},{"$f":"'[1]MONE(M)CAPARD'!AR274","v":1.81},null,null,{"$f":"'[1]MONE(M)CAPARD'!J274","v":13.468599034702725},{"$f":"'[1]MONE(M)CAPARD'!K274","v":0.57426381792846182},{"$f":"'[1]MONE(M)CAPARD'!L274","v":7.7057309501411053},{"$f":"'[1]MONE(M)CAPARD'!M274","v":12.120050041701409},{"$f":"'[1]MONE(M)CAPARD'!N274","v":6.6778725039674738},{"$f":"'[1]MONE(M)CAPARD'!O274","v":9.6159730758570099},{"$f":"'[1]MONE(M)CAPARD'!P274","v":0.33340057636886822},null,null,{"$f":"'[1]MONE(M)CAPARD'!Q274","v":10.89},{"$f":"'[1]MONE(M)CAPARD'!R274","v":5.35},{"$f":"'[1]MONE(M)CAPARD'!S274","v":6.2},{"$f":"'[1]MONE(M)CAPARD'!T274","v":8.91},{"$f":"'[1]MONE(M)CAPARD'!U274","v":9.8081726268401095},{"$f":"'[1]MONE(M)CAPARD'!V274","v":7.59},{"$f":"'[1]MONE(M)CAPARD'!W274","v":6.47},null,null,{"$f":"'[1]MONE(M)CAPARD'!AS274","v":5},{"$f":"'[1]MONE(M)CAPARD'!AT274","v":"n.a."},{"$f":"'[1]MONE(M)CAPARD'!AU274","v":5.5},{"$f":"'[1]MONE(M)CAPARD'!AV274","v":6},{"$f":"'[1]MONE(M)CAPARD'!AW274","v":"n.a."},{"$f":"'[1]MONE(M)CAPARD'!AX274","v":6.75},{"$f":"'[1]MONE(M)CAPARD'!AY274","v":"n.a."},null,null,{"$f":"+'Datos_Regional (M)'!CF267","v":14.173766041645086},{"$f":"+'Datos_Regional (M)'!CG267","v":5.0481650781197152},{"$f":"+'Datos_Regional (M)'!CH267","v":10.637370396312651},{"$f":"+'Datos_Regional (M)'!CI267","v":11.062361108234553},{"$f":"+'Datos_Regional (M)'!CJ267","v":17.660522635394017},{"$f":"+'Datos_Regional (M)'!CK267","v":13.253731988072248},{"$f":"+'Datos_Regional (M)'!CL267","v":12.955649532005697},null,null,883.16433071399467,445.68416666666661,865.00833333333333,329.80009541333334,365.23252968280667,704.30000000000007,1350.240045,3593.1894558101344,4943.4295008101353,null,null,1374.9807937641679,841.34416666666664,1396.7833333333331,759.62250331833332,552.09281317370335,1456.0833333333337,2121.8704113333333,6380.906943589539,8502.7773549228732,null,null,-2787.7174877794037,-3559.3478541127374,null,null,{"$f":"'[1]EXT Comercio(M)'!C274","v":879.71694499999444},{"$f":"'[1]EXT Comercio(M)'!D274","v":448.69},{"$f":"'[1]EXT Comercio(M)'!E274","v":744.19999999999993},{"$f":"'[1]EXT Comercio(M)'!F274","v":342.56734488000001},{"$f":"'[1]EXT Comercio(M)'!G274","v":391.878527885425},{"$f":"'[1]EXT Comercio(M)'!H274","v":585.20000000000005},{"$f":"'[1]EXT Comercio(M)'!I274","v":1036.890944},{"$f":"'[1]EXT Comercio(M)'!K274","v":3392.2528177654194},{"$f":"'[1]EXT Comercio(M)'!L274","v":4429.1437617654192},null,null,{"$f":"'[1]EXT Comercio(M)'!AG274","v":1472.7880047800049},{"$f":"'[1]EXT Comercio(M)'!AH274","v":820.68},{"$f":"'[1]EXT Comercio(M)'!AI274","v":1340.6000000000001},{"$f":"'[1]EXT Comercio(M)'!AJ274","v":740.20154291999995},{"$f":"'[1]EXT Comercio(M)'!AK274","v":506.15150551000033},{"$f":"'[1]EXT Comercio(M)'!AL274","v":1327.5999999999997},{"$f":"'[1]EXT Comercio(M)'!AM274","v":1876.4096279999999},{"$f":"'[1]EXT Comercio(M)'!AO274","v":6208.0210532100054},{"$f":"'[1]EXT Comercio(M)'!AP274","v":8084.4306812100058},null,null,{"$f":"'[1]EXT Comercio(M)'!$BS274","v":-2815.7682354445856},{"$f":"'[1]EXT Comercio(M)'!$BT274","v":-3655.2869194445857}]
[null,null,"Febrero",{"$f":"'[1]REAL IPC(M)'!AD275","v":4.0533296379370327},{"$f":"'[1]REAL IPC(M)'!AE275","v":4.8951048951049012},{"$f":"'[1]REAL IPC(M)'!AF275","v":5.1683402244536323},{"$f":"'[1]REAL IPC(M)'!AG275","v":5.6282722513089034},{"$f":"'[1]REAL IPC(M)'!AH275","v":8.8085488426911773},{"$f":"'[1]REAL IPC(M)'!AI275","v":6.001307814680688},{"$f":"'[1]REAL IPC(M)'!AJ275","v":6.3975628332063907},null,null,{"$f":"'[1]REAL IMAE(M)'!AG275","v":5.0236739701122382},{"$f":"'[1]REAL IMAE(M)'!AH275","v":2.4204439356203657},{"$f":"'[1]REAL IMAE(M)'!AI275","v":3.212486369367503},{"$f":"'[1]REAL IMAE(M)'!AJ275","v":4.1057909379353195},{"$f":"'[1]REAL IMAE(M)'!AK275","v":5.978338482548252},{"$f":"'[1]REAL IMAE(M)'!AL275","v":2.476861108587729},{"$f":"'[1]REAL IMAE(M)'!AM275","v":10.763616205478826},null,null,{"$f":"'[1]EXT ITCER(M)'!C275","v":75.443444544162688},{"$f":"'[1]EXT ITCER(M)'!D275","v":89.479736874560444},{"$f":"'[1]EXT ITCER(M)'!E275","v":64.067790693032066},{"$f":"'[1]EXT ITCER(M)'!F275","v":75.323261723603181},{"$f":"'[1]EXT ITCER(M)'!G275","v":95.42541159201032},{"$f":"'[1]EXT ITCER(M)'!H275","v":92.823464461270532},{"$f":"'[1]EXT ITCER(M)'!I275","v":92.076347716254929},null,null,{"$f":"'[1]EXT TC(M)'!J275","v":1.5791405954741329},{"$f":"'[1]EXT TC(M)'!K275","v":0},{"$f":"'[1]EXT TC(M)'!L275","v":-0.28176676486589108},{"$f":"'[1]EXT TC(M)'!M275","v":1.4173730171731007},{"$f":"'[1]EXT TC(M)'!N275","v":4.8225191312483089},{"$f":"'[1]EXT TC(M)'!O275","v":3.4945093495200372},{"$f":"'[1]EXT TC(M)'!P275","v":0},null,null,{"$f":"'[1]EXT RIN(M)'!C275","v":4708.1602812800002},{"$f":"'[1]EXT RIN(M)'!D275","v":2616.6999999999998},{"$f":"'[1]EXT RIN(M)'!E275","v":6126.9},{"$f":"'[1]EXT RIN(M)'!F275","v":3016.4715980587525},{"$f":"'[1]EXT RIN(M)'!G275","v":1595.7},{"$f":"'[1]EXT RIN(M)'!H275","v":2980.1},{"$f":"'[1]EXT RIN(M)'!I275","v":2008.5231295799999},null,null,{"$f":"'[1]EXT RIN(M)'!P275","v":61.974589235185007},{"$f":"'[1]EXT RIN(M)'!Q275","v":99.720544673028115},{"$f":"'[1]EXT RIN(M)'!R275","v":102.00323386867431},{"$f":"'[1]EXT RIN(M)'!S275","v":79.428699703726892},{"$f":"'[1]EXT RIN(M)'!T275","v":105.91510693618056},{"$f":"'[1]EXT RIN(M)'!U275","v":56.099179484576652},{"$f":"'[1]EXT RIN(M)'!V275","v":169.85415332145735},null,null,{"$f":"+'[1]MONE(M)CAPARD'!AE275","v":4.7539760421654496},{"$f":"'[1]MONE(M)CAPARD'!AF275","v":-2.3691333333333389},{"$f":"'[1]MONE(M)CAPARD'!AG275","v":3.0103903397922412E-2},{"$f":"'[1]MONE(M)CAPARD'!AH275","v":2.3305576208178409},{"$f":"'[1]MONE(M)CAPARD'!AI275","v":-0.86017822107624065},{"$f":"'[1]MONE(M)CAPARD'!AJ275","v":4.1496584108277519},{"$f":"'[1]MONE(M)CAPARD'!AK275","v":-3.8981746599856777},null,null,{"$f":"'[1]MONE(M)CAPARD'!AL275","v":1.7514468120655697},{"$f":"'[1]MONE(M)CAPARD'!AM275","v":2.41},{"$f":"'[1]MONE(M)CAPARD'!AN275","v":2.62},{"$f":"'[1]MONE(M)CAPARD'!AO275","v":3.58},{"$f":"'[1]MONE(M)CAPARD'!AP275","v":3.0049386295903551},{"$f":"'[1]MONE(M)CAPARD'!AQ275","v":3.1},{"$f":"'[1]MONE(M)CAPARD'!AR275","v":2.25},null,null,{"$f":"'[1]MONE(M)CAPARD'!J275","v":14.056897951231152},{"$f":"'[1]MONE(M)CAPARD'!K275","v":0.40506666666666113},{"$f":"'[1]MONE(M)CAPARD'!L275","v":7.9127042965459156},{"$f":"'[1]MONE(M)CAPARD'!M275","v":11.892391573729862},{"$f":"'[1]MONE(M)CAPARD'!N275","v":6.2691301232623333},{"$f":"'[1]MONE(M)CAPARD'!O275","v":11.423153577018711},{"$f":"'[1]MONE(M)CAPARD'!P275","v":-3.5304223335712689E-2},null,null,{"$f":"'[1]MONE(M)CAPARD'!Q275","v":10.97},{"$f":"'[1]MONE(M)CAPARD'!R275","v":5.32},{"$f":"'[1]MONE(M)CAPARD'!S275","v":6.2},{"$f":"'[1]MONE(M)CAPARD'!T275","v":8.85},{"$f":"'[1]MONE(M)CAPARD'!U275","v":9.1959083486448154},{"$f":"'[1]MONE(M)CAPARD'!V275","v":6.98},{"$f":"'[1]MONE(M)CAPARD'!W275","v":6.36},null,null,{"$f":"'[1]MONE(M)CAPARD'!AS275","v":5},{"$f":"'[1]MONE(M)CAPARD'!AT275","v":"n.a."},{"$f":"'[1]MONE(M)CAPARD'!AU275","v":5.5},{"$f":"'[1]MONE(M)CAPARD'!AV275","v":6},{"$f":"'[1]MONE(M)CAPARD'!AW275","v":"n.a."},{"$f":"'[1]MONE(M)CAPARD'!AX275","v":6.75},{"$f":"'[1]MONE(M)CAPARD'!AY275","v":"n.a."},null,null,{"$f":"+'Datos_Regional (M)'!CF268","v":15.566298696552462},{"$f":"+'Datos_Regional (M)'!CG268","v":3.5877731539462721},{"$f":"+'Datos_Regional (M)'!CH268","v":12.715636419225396},{"$f":"+'Datos_Regional (M)'!CI268","v":11.942699378676714},{"$f":"+'Datos_Regional (M)'!CJ268","v":21.597833032270831},{"$f":"+'Datos_Regional (M)'!CK268","v":13.059626560899829},{"$f":"+'Datos_Regional (M)'!CL268","v":12.700918936018812},null,null,893.12500576732816,445.36833333333328,861.57499999999993,332.16625053083334,369.03539225023479,710.6,1358.3092338333333,3611.869981881729,4970.179215715063,null,null,1387.112337162501,846.39833333333343,1407.625,771.17335797833323,557.1683635228701,1470.5500000000002,2144.7053688333331,6440.0273919970386,8584.7327608303731,null,null,-2828.1574101153092,-3614.5535451153096,null,null,{"$f":"'[1]EXT Comercio(M)'!C275","v":950.15252903999612},{"$f":"'[1]EXT Comercio(M)'!D275","v":450.18999999999988},{"$f":"'[1]EXT Comercio(M)'!E275","v":859.9},{"$f":"'[1]EXT Comercio(M)'!F275","v":432.47955861999998},{"$f":"'[1]EXT Comercio(M)'!G275","v":381.16650265100299},{"$f":"'[1]EXT Comercio(M)'!H275","v":681.5},{"$f":"'[1]EXT Comercio(M)'!I275","v":1408.011733},{"$f":"'[1]EXT Comercio(M)'!K275","v":3755.3885903109986},{"$f":"'[1]EXT Comercio(M)'!L275","v":5163.4003233109979},null,null,{"$f":"'[1]EXT Comercio(M)'!AG275","v":1324.9979627600053},{"$f":"'[1]EXT Comercio(M)'!AH275","v":819.4899999999999},{"$f":"'[1]EXT Comercio(M)'!AI275","v":1311.4999999999998},{"$f":"'[1]EXT Comercio(M)'!AJ275","v":765.54833828999983},{"$f":"'[1]EXT Comercio(M)'!AK275","v":559.49549773000001},{"$f":"'[1]EXT Comercio(M)'!AL275","v":1363.4},{"$f":"'[1]EXT Comercio(M)'!AM275","v":2132.062152},{"$f":"'[1]EXT Comercio(M)'!AO275","v":6144.4317987800068},{"$f":"'[1]EXT Comercio(M)'!AP275","v":8276.4939507800063},null,null,{"$f":"'[1]EXT Comercio(M)'!$BS275","v":-2389.0432084690069},{"$f":"'[1]EXT Comercio(M)'!$BT275","v":-3113.0936274690066}]
[null,null,"Marzo",{"$f":"'[1]REAL IPC(M)'!AD276","v":4.2080604447938468},{"$f":"'[1]REAL IPC(M)'!AE276","v":4.3713210460291432},{"$f":"'[1]REAL IPC(M)'!AF276","v":4.5454545454545556},{"$f":"'[1]REAL IPC(M)'!AG276","v":5.6759098786828392},{"$f":"'[1]REAL IPC(M)'!AH276","v":8.5485341154628731},{"$f":"'[1]REAL IPC(M)'!AI276","v":4.9447633749818829},{"$f":"'[1]REAL IPC(M)'!AJ276","v":6.3396226415094281},null,null,{"$f":"'[1]REAL IMAE(M)'!AG276","v":4.7497924605034818},{"$f":"'[1]REAL IMAE(M)'!AH276","v":2.7569749708326752},{"$f":"'[1]REAL IMAE(M)'!AI276","v":3.2216156569300241},{"$f":"'[1]REAL IMAE(M)'!AJ276","v":4.5949389719931935},{"$f":"'[1]REAL IMAE(M)'!AK276","v":5.7765087415840402},{"$f":"'[1]REAL IMAE(M)'!AL276","v":2.8738958813708875},{"$f":"'[1]REAL IMAE(M)'!AM276","v":10.188610311914875},null,null,{"$f":"'[1]EXT ITCER(M)'!C276","v":75.032224846180057},{"$f":"'[1]EXT ITCER(M)'!D276","v":89.534416473985047},{"$f":"'[1]EXT ITCER(M)'!E276","v":63.495669231986163},{"$f":"'[1]EXT ITCER(M)'!F276","v":75.226673582209983},{"$f":"'[1]EXT ITCER(M)'!G276","v":95.378964070621763},{"$f":"'[1]EXT ITCER(M)'!H276","v":93.004744669568026},{"$f":"'[1]EXT ITCER(M)'!I276","v":91.483280505672084},null,null,{"$f":"'[1]EXT TC(M)'!J276","v":1.643394367738829},{"$f":"'[1]EXT TC(M)'!K276","v":0},{"$f":"'[1]EXT TC(M)'!L276","v":0.26302855998689079},{"$f":"'[1]EXT TC(M)'!M276","v":1.8272173497602258},{"$f":"'[1]EXT TC(M)'!N276","v":4.665858342337045},{"$f":"'[1]EXT TC(M)'!O276","v":3.2608638084897938},{"$f":"'[1]EXT TC(M)'!P276","v":0},null,null,{"$f":"'[1]EXT RIN(M)'!C276","v":4745.4197414500004},{"$f":"'[1]EXT RIN(M)'!D276","v":2648.9},{"$f":"'[1]EXT RIN(M)'!E276","v":6140.8},{"$f":"'[1]EXT RIN(M)'!F276","v":3068.3124150705976},{"$f":"'[1]EXT RIN(M)'!G276","v":1753.1},{"$f":"'[1]EXT RIN(M)'!H276","v":3031},{"$f":"'[1]EXT RIN(M)'!I276","v":1712.1733605899999},null,null,{"$f":"'[1]EXT RIN(M)'!P276","v":61.054566378998906},{"$f":"'[1]EXT RIN(M)'!Q276","v":101.60756212813931},{"$f":"'[1]EXT RIN(M)'!R276","v":99.696896744376204},{"$f":"'[1]EXT RIN(M)'!S276","v":78.151439955030199},{"$f":"'[1]EXT RIN(M)'!T276","v":107.31794538751274},{"$f":"'[1]EXT RIN(M)'!U276","v":57.607903083224741},{"$f":"'[1]EXT RIN(M)'!V276","v":149.17989274003111},null,null,{"$f":"+'[1]MONE(M)CAPARD'!AE276","v":4.8383393124154868},{"$f":"'[1]MONE(M)CAPARD'!AF276","v":-1.8504326923076932},{"$f":"'[1]MONE(M)CAPARD'!AG276","v":0.63565217391303364},{"$f":"'[1]MONE(M)CAPARD'!AH276","v":2.3601312013120159},{"$f":"'[1]MONE(M)CAPARD'!AI276","v":-2.0541730664836448},{"$f":"'[1]MONE(M)CAPARD'!AJ276","v":4.6931704514112607},{"$f":"'[1]MONE(M)CAPARD'!AK276","v":-3.6765436479772835},null,null,{"$f":"'[1]MONE(M)CAPARD'!AL276","v":1.9718244942589092},{"$f":"'[1]MONE(M)CAPARD'!AM276","v":2.44},{"$f":"'[1]MONE(M)CAPARD'!AN276","v":2.61},{"$f":"'[1]MONE(M)CAPARD'!AO276","v":3.67},{"$f":"'[1]MONE(M)CAPARD'!AP276","v":2.9713866785694685},{"$f":"'[1]MONE(M)CAPARD'!AQ276","v":2.89},{"$f":"'[1]MONE(M)CAPARD'!AR276","v":2.4300000000000002},null,null,{"$f":"'[1]MONE(M)CAPARD'!J276","v":13.973909017259379},{"$f":"'[1]MONE(M)CAPARD'!K276","v":0.82271542159763245},{"$f":"'[1]MONE(M)CAPARD'!L276","v":8.4599999999999902},{"$f":"'[1]MONE(M)CAPARD'!M276","v":11.794637146371466},{"$f":"'[1]MONE(M)CAPARD'!N276","v":6.6033612757000046},{"$f":"'[1]MONE(M)CAPARD'!O276","v":11.658739542153196},{"$f":"'[1]MONE(M)CAPARD'!P276","v":1.9162526614626099E-2},null,null,{"$f":"'[1]MONE(M)CAPARD'!Q276","v":10.86},{"$f":"'[1]MONE(M)CAPARD'!R276","v":5.23},{"$f":"'[1]MONE(M)CAPARD'!S276","v":6.29},{"$f":"'[1]MONE(M)CAPARD'!T276","v":8.7899999999999991},{"$f":"'[1]MONE(M)CAPARD'!U276","v":8.3274279489590253},{"$f":"'[1]MONE(M)CAPARD'!V276","v":7.53},{"$f":"'[1]MONE(M)CAPARD'!W276","v":6.36},null,null,{"$f":"'[1]MONE(M)CAPARD'!AS276","v":5},{"$f":"'[1]MONE(M)CAPARD'!AT276","v":"n.a."},{"$f":"'[1]MONE(M)CAPARD'!AU276","v":5.5},{"$f":"'[1]MONE(M)CAPARD'!AV276","v":6},{"$f":"'[1]MONE(M)CAPARD'!AW276","v":"n.a."},{"$f":"'[1]MONE(M)CAPARD'!AX276","v":6.75},{"$f":"'[1]MONE(M)CAPARD'!AY276","v":"n.a."},null,null,{"$f":"+'Datos_Regional (M)'!CF269","v":14.179958530408964},{"$f":"+'Datos_Regional (M)'!CG269","v":3.5172612133246295},{"$f":"+'Datos_Regional (M)'!CH269","v":14.809406924471169},{"$f":"+'Datos_Regional (M)'!CI269","v":12.928872439948336},{"$f":"+'Datos_Regional (M)'!CJ269","v":21.900516367140121},{"$f":"+'Datos_Regional (M)'!CK269","v":11.495022723145087},{"$f":"+'Datos_Regional (M)'!CL269","v":11.176262533197523},null,null,904.69025696816163,443.00333333333327,860.05000000000007,340.31394517749999,370.75994571461894,711.47499999999991,1406.4982486666668,3630.2924811936136,5036.7907298602795,null,null,1395.8355493500001,842.20166666666671,1407.125,780.27792660499983,563.5666151853701,1465.9333333333334,2179.3231988333332,6454.9400911403709,8634.2632899737055,null,null,-2824.6476099467568,-3597.4725601134232,null,null,{"$f":"'[1]EXT Comercio(M)'!C276","v":1111.1791753999951},{"$f":"'[1]EXT Comercio(M)'!D276","v":503.61000000000013},{"$f":"'[1]EXT Comercio(M)'!E276","v":1033.5},{"$f":"'[1]EXT Comercio(M)'!F276","v":503.90096400999994},{"$f":"'[1]EXT Comercio(M)'!G276","v":458.63407110226598},{"$f":"'[1]EXT Comercio(M)'!H276","v":796.2},{"$f":"'[1]EXT Comercio(M)'!I276","v":1749.5244400000001},{"$f":"'[1]EXT Comercio(M)'!K276","v":4407.0242105122607},{"$f":"'[1]EXT Comercio(M)'!L276","v":6156.5486505122608},null,null,{"$f":"'[1]EXT Comercio(M)'!AG276","v":1581.8958214599961},{"$f":"'[1]EXT Comercio(M)'!AH276","v":896.83000000000015},{"$f":"'[1]EXT Comercio(M)'!AI276","v":1475.4},{"$f":"'[1]EXT Comercio(M)'!AJ276","v":882.05251368000017},{"$f":"'[1]EXT Comercio(M)'!AK276","v":653.90857243999949},{"$f":"'[1]EXT Comercio(M)'!AL276","v":1474.9000000000003},{"$f":"'[1]EXT Comercio(M)'!AM276","v":2270.9489140000001},{"$f":"'[1]EXT Comercio(M)'!AO276","v":6964.9869075799943},{"$f":"'[1]EXT Comercio(M)'!AP276","v":9235.9358215799948},null,null,{"$f":"'[1]EXT Comercio(M)'!$BS276","v":-2557.9626970677355},{"$f":"'[1]EXT Comercio(M)'!$BT276","v":-3079.3871710677367}]
[null,null,"Abril",{"$f":"'[1]REAL IPC(M)'!AD277","v":4.7073967209458161},{"$f":"'[1]REAL IPC(M)'!AE277","v":1.9866929060069389},{"$f":"'[1]REAL IPC(M)'!AF277","v":4.2744984006978735},{"$f":"'[1]REAL IPC(M)'!AG277","v":5.6555269922879123},{"$f":"'[1]REAL IPC(M)'!AH277","v":8.9766105663035489},{"$f":"'[1]REAL IPC(M)'!AI277","v":4.0459110473457569},{"$f":"'[1]REAL IPC(M)'!AJ277","v":5.9746079163554811},null,null,{"$f":"'[1]REAL IMAE(M)'!AG277","v":4.2281354387173167},{"$f":"'[1]REAL IMAE(M)'!AH277","v":2.3044696433167373},{"$f":"'[1]REAL IMAE(M)'!AI277","v":3.14886745538255},{"$f":"'[1]REAL IMAE(M)'!AJ277","v":5.1485491906723864},{"$f":"'[1]REAL IMAE(M)'!AK277","v":5.3383895236576997},{"$f":"'[1]REAL IMAE(M)'!AL277","v":3.3115993807217636},{"$f":"'[1]REAL IMAE(M)'!AM277","v":9.8733604703754008},null,null,{"$f":"'[1]EXT ITCER(M)'!C277","v":74.145666345254767},{"$f":"'[1]EXT ITCER(M)'!D277","v":89.130989899546606},{"$f":"'[1]EXT ITCER(M)'!E277","v":63.568095623853189},{"$f":"'[1]EXT ITCER(M)'!F277","v":74.775789808985863},{"$f":"'[1]EXT ITCER(M)'!G277","v":94.754032570576953},{"$f":"'[1]EXT ITCER(M)'!H277","v":93.206062512092018},{"$f":"'[1]EXT ITCER(M)'!I277","v":90.98944168771547},null,null,{"$f":"'[1]EXT TC(M)'!J277","v":1.0386950824269232},{"$f":"'[1]EXT TC(M)'!K277","v":0},{"$f":"'[1]EXT TC(M)'!L277","v":1.7469953993902709},{"$f":"'[1]EXT TC(M)'!M277","v":2.1677020692359568},{"$f":"'[1]EXT TC(M)'!N277","v":4.743717878119674},{"$f":"'[1]EXT TC(M)'!O277","v":3.1248595887967192},{"$f":"'[1]EXT TC(M)'!P277","v":0},null,null,{"$f":"'[1]EXT RIN(M)'!C277","v":4765.5887301000002},{"$f":"'[1]EXT RIN(M)'!D277","v":2709.9},{"$f":"'[1]EXT RIN(M)'!E277","v":6183.3},{"$f":"'[1]EXT RIN(M)'!F277","v":2978.3443822345153},{"$f":"'[1]EXT RIN(M)'!G277","v":1707.9},{"$f":"'[1]EXT RIN(M)'!H277","v":3125.5},{"$f":"'[1]EXT RIN(M)'!I277","v":2019.5000679399998},null,null,{"$f":"'[1]EXT RIN(M)'!P277","v":60.687214854315584},{"$f":"'[1]EXT RIN(M)'!Q277","v":100.68823505588405},{"$f":"'[1]EXT RIN(M)'!R277","v":105.68021433962545},{"$f":"'[1]EXT RIN(M)'!S277","v":77.87613214642316},{"$f":"'[1]EXT RIN(M)'!T277","v":114.28850341724331},{"$f":"'[1]EXT RIN(M)'!U277","v":59.61942828969368},{"$f":"'[1]EXT RIN(M)'!V277","v":168.51779670928505},null,null,{"$f":"+'[1]MONE(M)CAPARD'!AE277","v":4.5771391794095333},{"$f":"'[1]MONE(M)CAPARD'!AF277","v":0.47389230910594099},{"$f":"'[1]MONE(M)CAPARD'!AG277","v":0.91633296151701471},{"$f":"'[1]MONE(M)CAPARD'!AH277","v":2.4272019464720254},{"$f":"'[1]MONE(M)CAPARD'!AI277","v":-2.3727289960094979},{"$f":"'[1]MONE(M)CAPARD'!AJ277","v":5.8955598455598563},{"$f":"'[1]MONE(M)CAPARD'!AK277","v":-3.5334954193093653},null,null,{"$f":"'[1]MONE(M)CAPARD'!AL277","v":1.9749292888336507},{"$f":"'[1]MONE(M)CAPARD'!AM277","v":2.4700000000000002},{"$f":"'[1]MONE(M)CAPARD'!AN277","v":2.63},{"$f":"'[1]MONE(M)CAPARD'!AO277","v":3.67},{"$f":"'[1]MONE(M)CAPARD'!AP277","v":1.936089779043209},{"$f":"'[1]MONE(M)CAPARD'!AQ277","v":3.19},{"$f":"'[1]MONE(M)CAPARD'!AR277","v":2.23},null,null,{"$f":"'[1]MONE(M)CAPARD'!J277","v":13.821949291342722},{"$f":"'[1]MONE(M)CAPARD'!K277","v":2.9742185059266695},{"$f":"'[1]MONE(M)CAPARD'!L277","v":8.7610122699386555},{"$f":"'[1]MONE(M)CAPARD'!M277","v":11.806739659367402},{"$f":"'[1]MONE(M)CAPARD'!N277","v":8.0056000665259415},{"$f":"'[1]MONE(M)CAPARD'!O277","v":12.565692222835093},{"$f":"'[1]MONE(M)CAPARD'!P277","v":0.25986610288936635},null,null,{"$f":"'[1]MONE(M)CAPARD'!Q277","v":10.84},{"$f":"'[1]MONE(M)CAPARD'!R277","v":5.0199999999999996},{"$f":"'[1]MONE(M)CAPARD'!S277","v":6.2},{"$f":"'[1]MONE(M)CAPARD'!T277","v":8.74},{"$f":"'[1]MONE(M)CAPARD'!U277","v":8.5998449167314739},{"$f":"'[1]MONE(M)CAPARD'!V277","v":6.59},{"$f":"'[1]MONE(M)CAPARD'!W277","v":6.25},null,null,{"$f":"'[1]MONE(M)CAPARD'!AS277","v":5},{"$f":"'[1]MONE(M)CAPARD'!AT277","v":"n.a."},{"$f":"'[1]MONE(M)CAPARD'!AU277","v":5.5},{"$f":"'[1]MONE(M)CAPARD'!AV277","v":6},{"$f":"'[1]MONE(M)CAPARD'!AW277","v":"n.a."},{"$f":"'[1]MONE(M)CAPARD'!AX277","v":6.75},{"$f":"'[1]MONE(M)CAPARD'!AY277","v":"n.a."},null,null,{"$f":"+'Datos_Regional (M)'!CF270","v":14.403474022616102},{"$f":"+'Datos_Regional (M)'!CG270","v":3.511745200431915},{"$f":"+'Datos_Regional (M)'!CH270","v":18.548804053184842},{"$f":"+'Datos_Regional (M)'!CI270","v":14.760343788421416},{"$f":"+'Datos_Regional (M)'!CJ270","v":22.739708313613495},{"$f":"+'Datos_Regional (M)'!CK270","v":10.327808254772064},{"$f":"+'Datos_Regional (M)'!CL270","v":12.236350982984856},null,null,907.46980457149505,441.85083333333336,854.97500000000002,339.92202612416662,376.46745608357293,710.91666666666663,1418.617505416667,3631.6017867792348,5050.2192921959013,null,null,1401.7478577933327,844.16333333333341,1400.9750000000001,785.22175332916675,569.25957660120332,1451.3916666666667,2196.4460036666665,6452.7591877237037,8649.2051913903688,null,null,-2821.1574009444689,-3598.9858991944689,null,null,{"$f":"'[1]EXT Comercio(M)'!C277","v":955.33343668999578},{"$f":"'[1]EXT Comercio(M)'!D277","v":415.62999999999988},{"$f":"'[1]EXT Comercio(M)'!E277","v":875.2},{"$f":"'[1]EXT Comercio(M)'!F277","v":393.39508199000011},{"$f":"'[1]EXT Comercio(M)'!G277","v":421.89563019428601},{"$f":"'[1]EXT Comercio(M)'!H277","v":766.3},{"$f":"'[1]EXT Comercio(M)'!I277","v":1222.7932149999999},{"$f":"'[1]EXT Comercio(M)'!K277","v":3827.7541488742827},{"$f":"'[1]EXT Comercio(M)'!L277","v":5050.5473638742842},null,null,{"$f":"'[1]EXT Comercio(M)'!AG277","v":1317.6198547499937},{"$f":"'[1]EXT Comercio(M)'!AH277","v":816.52000000000044},{"$f":"'[1]EXT Comercio(M)'!AI277","v":1323.2000000000003},{"$f":"'[1]EXT Comercio(M)'!AJ277","v":749.97253073999991},{"$f":"'[1]EXT Comercio(M)'!AK277","v":582.12105982999992},{"$f":"'[1]EXT Comercio(M)'!AL277","v":1386.7000000000007},{"$f":"'[1]EXT Comercio(M)'!AM277","v":1993.9396020000001},{"$f":"'[1]EXT Comercio(M)'!AO277","v":6176.1334453199961},{"$f":"'[1]EXT Comercio(M)'!AP277","v":8170.0730473199947},null,null,{"$f":"'[1]EXT Comercio(M)'!$BS277","v":-2348.3792964457098},{"$f":"'[1]EXT Comercio(M)'!$BT277","v":-3119.5256834457105}]
[null,null,"Mayo ",{"$f":"'[1]REAL IPC(M)'!AD278","v":5.0352968067359258},{"$f":"'[1]REAL IPC(M)'!AE278","v":1.2123472908700896},{"$f":"'[1]REAL IPC(M)'!AF278","v":3.8966049382715973},{"$f":"'[1]REAL IPC(M)'!AG278","v":5.1533219761499121},{"$f":"'[1]REAL IPC(M)'!AH278","v":7.5269721128235769},{"$f":"'[1]REAL IPC(M)'!AI278","v":3.540752051918298},{"$f":"'[1]REAL IPC(M)'!AJ278","v":6.0267857142857233},null,null,{"$f":"'[1]REAL IMAE(M)'!AG278","v":3.8302948355092146},{"$f":"'[1]REAL IMAE(M)'!AH278","v":3.5060724209654883},{"$f":"'[1]REAL IMAE(M)'!AI278","v":2.9972143492979875},{"$f":"'[1]REAL IMAE(M)'!AJ278","v":5.5792490678318751},{"$f":"'[1]REAL IMAE(M)'!AK278","v":4.8923230633977051},{"$f":"'[1]REAL IMAE(M)'!AL278","v":3.5586381815552821},{"$f":"'[1]REAL IMAE(M)'!AM278","v":9.849607182940515},null,null,{"$f":"'[1]EXT ITCER(M)'!C278","v":73.223354490664022},{"$f":"'[1]EXT ITCER(M)'!D278","v":89.192518415705351},{"$f":"'[1]EXT ITCER(M)'!E278","v":63.642525839376461},{"$f":"'[1]EXT ITCER(M)'!F278","v":74.812678737248874},{"$f":"'[1]EXT ITCER(M)'!G278","v":95.158502187370559},{"$f":"'[1]EXT ITCER(M)'!H278","v":93.272920628365043},{"$f":"'[1]EXT ITCER(M)'!I278","v":90.418938041077709},null,null,{"$f":"'[1]EXT TC(M)'!J278","v":0.31080010938923325},{"$f":"'[1]EXT TC(M)'!K278","v":0},{"$f":"'[1]EXT TC(M)'!L278","v":1.5866666666666585},{"$f":"'[1]EXT TC(M)'!M278","v":2.554558396813821},{"$f":"'[1]EXT TC(M)'!N278","v":4.6750191864769679},{"$f":"'[1]EXT TC(M)'!O278","v":2.9851337121381971},{"$f":"'[1]EXT TC(M)'!P278","v":0},null,null,{"$f":"'[1]EXT RIN(M)'!C278","v":4858.1739648499997},{"$f":"'[1]EXT RIN(M)'!D278","v":2651.4},{"$f":"'[1]EXT RIN(M)'!E278","v":6112.7},{"$f":"'[1]EXT RIN(M)'!F278","v":2860.6851934678953},{"$f":"'[1]EXT RIN(M)'!G278","v":1690.3},{"$f":"'[1]EXT RIN(M)'!H278","v":3012.3},{"$f":"'[1]EXT RIN(M)'!I278","v":2041.8728008699998},null,null,{"$f":"'[1]EXT RIN(M)'!P278","v":61.558086662579861},{"$f":"'[1]EXT RIN(M)'!Q278","v":100.09264062008059},{"$f":"'[1]EXT RIN(M)'!R278","v":107.02095929874027},{"$f":"'[1]EXT RIN(M)'!S278","v":77.898803330209176},{"$f":"'[1]EXT RIN(M)'!T278","v":116.46177781206566},{"$f":"'[1]EXT RIN(M)'!U278","v":56.868564999604018},{"$f":"'[1]EXT RIN(M)'!V278","v":175.77998498341466},null,null,{"$f":"+'[1]MONE(M)CAPARD'!AE278","v":4.7266998277722641},{"$f":"'[1]MONE(M)CAPARD'!AF278","v":1.2327080070026746},{"$f":"'[1]MONE(M)CAPARD'!AG278","v":1.302636464909031},{"$f":"'[1]MONE(M)CAPARD'!AH278","v":3.0590360469825861},{"$f":"'[1]MONE(M)CAPARD'!AI278","v":-0.97652652578999422},{"$f":"'[1]MONE(M)CAPARD'!AJ278","v":6.0258862567978673},{"$f":"'[1]MONE(M)CAPARD'!AK278","v":-3.7696000000000085},null,null,{"$f":"'[1]MONE(M)CAPARD'!AL278","v":1.9867261475528928},{"$f":"'[1]MONE(M)CAPARD'!AM278","v":2.46},{"$f":"'[1]MONE(M)CAPARD'!AN278","v":2.67},{"$f":"'[1]MONE(M)CAPARD'!AO278","v":3.65},{"$f":"'[1]MONE(M)CAPARD'!AP278","v":2.3004809037473035},{"$f":"'[1]MONE(M)CAPARD'!AQ278","v":2.6},{"$f":"'[1]MONE(M)CAPARD'!AR278","v":2.0299999999999998},null,null,{"$f":"'[1]MONE(M)CAPARD'!J278","v":13.961690630766727},{"$f":"'[1]MONE(M)CAPARD'!K278","v":4.2955754169354119},{"$f":"'[1]MONE(M)CAPARD'!L278","v":9.1758484961010112},{"$f":"'[1]MONE(M)CAPARD'!M278","v":12.255131632239777},{"$f":"'[1]MONE(M)CAPARD'!N278","v":10.985431745393202},{"$f":"'[1]MONE(M)CAPARD'!O278","v":12.361555903769938},{"$f":"'[1]MONE(M)CAPARD'!P278","v":0.37086315789472823},null,null,{"$f":"'[1]MONE(M)CAPARD'!Q278","v":10.97},{"$f":"'[1]MONE(M)CAPARD'!R278","v":5.56},{"$f":"'[1]MONE(M)CAPARD'!S278","v":6.3},{"$f":"'[1]MONE(M)CAPARD'!T278","v":8.69},{"$f":"'[1]MONE(M)CAPARD'!U278","v":8.3744368675031939},{"$f":"'[1]MONE(M)CAPARD'!V278","v":7.3},{"$f":"'[1]MONE(M)CAPARD'!W278","v":6.42},null,null,{"$f":"'[1]MONE(M)CAPARD'!AS278","v":5},{"$f":"'[1]MONE(M)CAPARD'!AT278","v":"n.a."},{"$f":"'[1]MONE(M)CAPARD'!AU278","v":5.5},{"$f":"'[1]MONE(M)CAPARD'!AV278","v":7},{"$f":"'[1]MONE(M)CAPARD'!AW278","v":"n.a."},{"$f":"'[1]MONE(M)CAPARD'!AX278","v":6.75},{"$f":"'[1]MONE(M)CAPARD'!AY278","v":"n.a."},null,null,{"$f":"+'Datos_Regional (M)'!CF271","v":13.662202182965434},{"$f":"+'Datos_Regional (M)'!CG271","v":3.477026089669133},{"$f":"+'Datos_Regional (M)'!CH271","v":18.574452561475873},{"$f":"+'Datos_Regional (M)'!CI271","v":15.469787368446974},{"$f":"+'Datos_Regional (M)'!CJ271","v":25.502765266920413},{"$f":"+'Datos_Regional (M)'!CK271","v":9.0826943553058204},{"$f":"+'Datos_Regional (M)'!CL271","v":21.792552773050232},null,null,{"$f":"+AVERAGE(EH72:EH83)","v":919.30583368149519},{"$f":"+AVERAGE(EI72:EI83)","v":439.98166666666674},{"$f":"+AVERAGE(EJ72:EJ83)","v":853.43333333333328},{"$f":"+AVERAGE(EK72:EK83)","v":340.41978561916665},{"$f":"+AVERAGE(EL72:EL83)","v":377.63267447844413},{"$f":"+AVERAGE(EM72:EM83)","v":716.5333333333333},{"$f":"+AVERAGE(EN72:EN83)","v":1429.1767017499999},{"$f":"+AVERAGE(EO72:EO83)","v":3647.3066271124394},{"$f":"+AVERAGE(EP72:EP83)","v":5076.4833288624386},null,null,{"$f":"+AVERAGE(ES72:ES83)","v":1416.6842692683324},{"$f":"+AVERAGE(ET72:ET83)","v":849.22000000000014},{"$f":"+AVERAGE(EU72:EU83)","v":1404.1333333333334},{"$f":"+AVERAGE(EV72:EV83)","v":782.69490482916672},{"$f":"+AVERAGE(EW72:EW83)","v":576.81800287203657},{"$f":"+AVERAGE(EX72:EX83)","v":1454.8416666666669},{"$f":"+AVERAGE(EY72:EY83)","v":2219.9356451666667},{"$f":"+AVERAGE(EZ72:EZ83)","v":6484.3921769695371},{"$f":"+AVERAGE(FA72:FA83)","v":8704.3278221362034},null,null,{"$f":"+AVERAGE(FD72:FD83)","v":-2837.0855498570977},{"$f":"+AVERAGE(FE72:FE83)","v":-3627.8444932737643},null,null,{"$f":"'[1]EXT Comercio(M)'!C278","v":1075.9645987099934},{"$f":"'[1]EXT Comercio(M)'!D278","v":461.18000000000029},{"$f":"'[1]EXT Comercio(M)'!E278","v":871.40000000000032},{"$f":"'[1]EXT Comercio(M)'!F278","v":415.6289853899998},{"$f":"'[1]EXT Comercio(M)'!G278","v":392.16362888076696},{"$f":"'[1]EXT Comercio(M)'!H278","v":800.59999999999991},{"$f":"'[1]EXT Comercio(M)'!I278","v":1522.7373339999999},{"$f":"'[1]EXT Comercio(M)'!K278","v":4016.9372129807634},{"$f":"'[1]EXT Comercio(M)'!L278","v":5539.6745469807611},null,null,{"$f":"'[1]EXT Comercio(M)'!AG278","v":1517.973648689996},{"$f":"'[1]EXT Comercio(M)'!AH278","v":989.73999999999978},{"$f":"'[1]EXT Comercio(M)'!AI278","v":1574.1999999999998},{"$f":"'[1]EXT Comercio(M)'!AJ278","v":817.35404818999996},{"$f":"'[1]EXT Comercio(M)'!AK278","v":686.76066868000021},{"$f":"'[1]EXT Comercio(M)'!AL278","v":1512.6999999999998},{"$f":"'[1]EXT Comercio(M)'!AM278","v":2492.9870689999998},{"$f":"'[1]EXT Comercio(M)'!AO278","v":7098.7283655599967},{"$f":"'[1]EXT Comercio(M)'!AP278","v":9591.7154345599993},null,null,{"$f":"'[1]EXT Comercio(M)'!$BS278","v":-3081.791152579237},{"$f":"'[1]EXT Comercio(M)'!$BT278","v":-4052.0408875792382}]
[null,null,"Junio",{"$f":"'[1]REAL IPC(M)'!AD279","v":4.6149100459102517},{"$f":"'[1]REAL IPC(M)'!AE279","v":0.60583465374218604},{"$f":"'[1]REAL IPC(M)'!AF279","v":3.4730883622757265},{"$f":"'[1]REAL IPC(M)'!AG279","v":4.7073791348600489},{"$f":"'[1]REAL IPC(M)'!AH279","v":6.4643678423417246},{"$f":"'[1]REAL IPC(M)'!AI279","v":2.7113840340104058},{"$f":"'[1]REAL IPC(M)'!AJ279","v":5.7949479940564714},null,null,{"$f":"'[1]REAL IMAE(M)'!AG279","v":3.6466851851271382},{"$f":"'[1]REAL IMAE(M)'!AH279","v":4.0803002420919654},{"$f":"'[1]REAL IMAE(M)'!AI279","v":2.8209935199883853},{"$f":"'[1]REAL IMAE(M)'!AJ279","v":5.7285933377929688},{"$f":"'[1]REAL IMAE(M)'!AK279","v":4.7076892836252142},{"$f":"'[1]REAL IMAE(M)'!AL279","v":3.4538118349848177},{"$f":"'[1]REAL IMAE(M)'!AM279","v":9.9442088819459951},null,null,{"$f":"'[1]EXT ITCER(M)'!C279","v":72.382938376473348},{"$f":"'[1]EXT ITCER(M)'!D279","v":89.60593640218103},{"$f":"'[1]EXT ITCER(M)'!E279","v":64.047044205048763},{"$f":"'[1]EXT ITCER(M)'!F279","v":75.053010479860788},{"$f":"'[1]EXT ITCER(M)'!G279","v":95.943264583162716},{"$f":"'[1]EXT ITCER(M)'!H279","v":93.101640403606041},{"$f":"'[1]EXT ITCER(M)'!I279","v":90.40766313482122},null,null,{"$f":"'[1]EXT TC(M)'!J279","v":-1.0868667052279113},{"$f":"'[1]EXT TC(M)'!K279","v":0},{"$f":"'[1]EXT TC(M)'!L279","v":0.92428511819825432},{"$f":"'[1]EXT TC(M)'!M279","v":2.969099320534351},{"$f":"'[1]EXT TC(M)'!N279","v":4.562871810592962},{"$f":"'[1]EXT TC(M)'!O279","v":2.7225874309755338},{"$f":"'[1]EXT TC(M)'!P279","v":0},null,null,{"$f":"'[1]EXT RIN(M)'!C279","v":4869.4577913100002},{"$f":"'[1]EXT RIN(M)'!D279","v":2601.4},{"$f":"'[1]EXT RIN(M)'!E279","v":6811.6},{"$f":"'[1]EXT RIN(M)'!F279","v":2784.4624407518713},{"$f":"'[1]EXT RIN(M)'!G279","v":1689.1},{"$f":"'[1]EXT RIN(M)'!H279","v":3219.2},{"$f":"'[1]EXT RIN(M)'!I279","v":2209.4662591199999},null,null,{"$f":"'[1]EXT RIN(M)'!P279","v":60.556086704608894},{"$f":"'[1]EXT RIN(M)'!Q279","v":98.510415278164885},{"$f":"'[1]EXT RIN(M)'!R279","v":116.64650235092971},{"$f":"'[1]EXT RIN(M)'!S279","v":75.001706335630075},{"$f":"'[1]EXT RIN(M)'!T279","v":116.77518976257666},{"$f":"'[1]EXT RIN(M)'!U279","v":58.371261440626988},{"$f":"'[1]EXT RIN(M)'!V279","v":192.18532799622844},null,null,{"$f":"+'[1]MONE(M)CAPARD'!AE279","v":4.9085641347263156},{"$f":"'[1]MONE(M)CAPARD'!AF279","v":2.0914943487122559},{"$f":"'[1]MONE(M)CAPARD'!AG279","v":1.6689476124246736},{"$f":"'[1]MONE(M)CAPARD'!AH279","v":3.6412150668286767},{"$f":"'[1]MONE(M)CAPARD'!AI279","v":0.53748070481872801},{"$f":"'[1]MONE(M)CAPARD'!AJ279","v":6.2394407652685642},{"$f":"'[1]MONE(M)CAPARD'!AK279","v":-3.5492696629213558},null,null,{"$f":"'[1]MONE(M)CAPARD'!AL279","v":2.0056829169914554},{"$f":"'[1]MONE(M)CAPARD'!AM279","v":2.71},{"$f":"'[1]MONE(M)CAPARD'!AN279","v":2.66},{"$f":"'[1]MONE(M)CAPARD'!AO279","v":3.75},{"$f":"'[1]MONE(M)CAPARD'!AP279","v":1.9469250399295202},{"$f":"'[1]MONE(M)CAPARD'!AQ279","v":3.26},{"$f":"'[1]MONE(M)CAPARD'!AR279","v":2.04},null,null,{"$f":"'[1]MONE(M)CAPARD'!J279","v":14.314489156008383},{"$f":"'[1]MONE(M)CAPARD'!K279","v":4.6161988141560206},{"$f":"'[1]MONE(M)CAPARD'!L279","v":9.6516995827538334},{"$f":"'[1]MONE(M)CAPARD'!M279","v":12.857375455650065},{"$f":"'[1]MONE(M)CAPARD'!N279","v":10.578465748162245},{"$f":"'[1]MONE(M)CAPARD'!O279","v":13.132542310522426},{"$f":"'[1]MONE(M)CAPARD'!P279","v":0.67588483146066658},null,null,{"$f":"'[1]MONE(M)CAPARD'!Q279","v":10.74},{"$f":"'[1]MONE(M)CAPARD'!R279","v":5.25},{"$f":"'[1]MONE(M)CAPARD'!S279","v":6.3},{"$f":"'[1]MONE(M)CAPARD'!T279","v":8.66},{"$f":"'[1]MONE(M)CAPARD'!U279","v":8.3744368675031939},{"$f":"'[1]MONE(M)CAPARD'!V279","v":7.38},{"$f":"'[1]MONE(M)CAPARD'!W279","v":6.51},null,null,{"$f":"'[1]MONE(M)CAPARD'!AS279","v":5},{"$f":"'[1]MONE(M)CAPARD'!AT279","v":"n.a."},{"$f":"'[1]MONE(M)CAPARD'!AU279","v":5},{"$f":"'[1]MONE(M)CAPARD'!AV279","v":7},{"$f":"'[1]MONE(M)CAPARD'!AW279","v":"n.a."},{"$f":"'[1]MONE(M)CAPARD'!AX279","v":6},{"$f":"'[1]MONE(M)CAPARD'!AY279","v":"n.a."},null,null,{"$f":"+'Datos_Regional (M)'!CF272","v":14.267983672314299},{"$f":"+'Datos_Regional (M)'!CG272","v":3.8699488964188067},{"$f":"+'Datos_Regional (M)'!CH272","v":18.305870092304776},{"$f":"+'Datos_Regional (M)'!CI272","v":15.339436523678639},{"$f":"+'Datos_Regional (M)'!CJ272","v":28.228214455755428},{"$f":"+'Datos_Regional (M)'!CK272","v":8.9512391513454581},{"$f":"+'Datos_Regional (M)'!CL272","v":15.880989384963694},null,null,925.8977621631617,433.86333333333329,849.76666666666654,339.94844490916665,378.87340226912102,710.7833333333333,1421.3003142500002,3639.1329426747834,5060.4332569247827,null,null,1425.9916067241672,834.2258333333333,1403.2250000000001,773.92988520666677,579.38714542953664,1462.45,2208.5943003333332,6479.209470693705,8687.8037710270364,null,null,-2840.0765280189221,-3627.3705141022547,null,null,{"$f":"'[1]EXT Comercio(M)'!C279","v":955.27711881999221},{"$f":"'[1]EXT Comercio(M)'!D279","v":392.31999999999971},{"$f":"'[1]EXT Comercio(M)'!E279","v":831.40000000000009},{"$f":"'[1]EXT Comercio(M)'!F279","v":384.80890296000007},{"$f":"'[1]EXT Comercio(M)'!G279","v":389.27537908330999},{"$f":"'[1]EXT Comercio(M)'!H279","v":729.5},{"$f":"'[1]EXT Comercio(M)'!I279","v":1263.8078369999998},{"$f":"'[1]EXT Comercio(M)'!K279","v":3682.5814008632988},{"$f":"'[1]EXT Comercio(M)'!L279","v":4946.3892378633027},null,null,{"$f":"'[1]EXT Comercio(M)'!AG279","v":1409.6710158800024},{"$f":"'[1]EXT Comercio(M)'!AH279","v":686.42000000000007},{"$f":"'[1]EXT Comercio(M)'!AI279","v":1450.0000000000002},{"$f":"'[1]EXT Comercio(M)'!AJ279","v":741.66170534000003},{"$f":"'[1]EXT Comercio(M)'!AK279","v":585.74014954999984},{"$f":"'[1]EXT Comercio(M)'!AL279","v":1551.4},{"$f":"'[1]EXT Comercio(M)'!AM279","v":2124.8850820000011},{"$f":"'[1]EXT Comercio(M)'!AO279","v":6424.8928707699961},{"$f":"'[1]EXT Comercio(M)'!AP279","v":8549.7779527699968},null,null,{"$f":"'[1]EXT Comercio(M)'!$BS279","v":-2742.3114699067028},{"$f":"'[1]EXT Comercio(M)'!$BT279","v":-3603.3887149067014}]
[null,null,"Julio",{"$f":"'[1]REAL IPC(M)'!AD280","v":3.9486456636426319},{"$f":"'[1]REAL IPC(M)'!AE280","v":3.7185088779405275E-2},{"$f":"'[1]REAL IPC(M)'!AF280","v":2.8606728758791151},{"$f":"'[1]REAL IPC(M)'!AG280","v":4.0859309182813766},{"$f":"'[1]REAL IPC(M)'!AH280","v":6.369628450408217},{"$f":"'[1]REAL IPC(M)'!AI280","v":1.6393442622950924},{"$f":"'[1]REAL IPC(M)'!AJ280","v":6.013363028953238},null,null,{"$f":"'[1]REAL IMAE(M)'!AG280","v":3.6385825301589945},{"$f":"'[1]REAL IMAE(M)'!AH280","v":2.9299548545378067},{"$f":"'[1]REAL IMAE(M)'!AI280","v":2.6940035425491864},{"$f":"'[1]REAL IMAE(M)'!AJ280","v":5.6363221509704697},{"$f":"'[1]REAL IMAE(M)'!AK280","v":4.8805994109935051},{"$f":"'[1]REAL IMAE(M)'!AL280","v":2.9724404600093948},{"$f":"'[1]REAL IMAE(M)'!AM280","v":9.8939615777097529},null,null,{"$f":"'[1]EXT ITCER(M)'!C280","v":72.692318630104751},{"$f":"'[1]EXT ITCER(M)'!D280","v":89.906683055323441},{"$f":"'[1]EXT ITCER(M)'!E280","v":63.636375277427099},{"$f":"'[1]EXT ITCER(M)'!F280","v":75.316719887113976},{"$f":"'[1]EXT ITCER(M)'!G280","v":96.452398908770689},{"$f":"'[1]EXT ITCER(M)'!H280","v":93.353908952900952},{"$f":"'[1]EXT ITCER(M)'!I280","v":90.180457872606695},null,null,{"$f":"'[1]EXT TC(M)'!J280","v":-0.8331783113977117},{"$f":"'[1]EXT TC(M)'!K280","v":0},{"$f":"'[1]EXT TC(M)'!L280","v":0.86733079818450587},{"$f":"'[1]EXT TC(M)'!M280","v":3.5090377964445958},{"$f":"'[1]EXT TC(M)'!N280","v":4.8456929784925364},{"$f":"'[1]EXT TC(M)'!O280","v":2.7239225746758975},{"$f":"'[1]EXT TC(M)'!P280","v":0},null,null,{"$f":"'[1]EXT RIN(M)'!C280","v":4911.8982414900001},{"$f":"'[1]EXT RIN(M)'!D280","v":2526},{"$f":"'[1]EXT RIN(M)'!E280","v":6778.1},{"$f":"'[1]EXT RIN(M)'!F280","v":2690.4639516236912},{"$f":"'[1]EXT RIN(M)'!G280","v":1618.7},{"$f":"'[1]EXT RIN(M)'!H280","v":3127.7},{"$f":"'[1]EXT RIN(M)'!I280","v":2134.6191387399999},null,null,{"$f":"'[1]EXT RIN(M)'!P280","v":61.184830226206479},{"$f":"'[1]EXT RIN(M)'!Q280","v":97.340065186244757},{"$f":"'[1]EXT RIN(M)'!R280","v":113.90566873835175},{"$f":"'[1]EXT RIN(M)'!S280","v":74.620126488487699},{"$f":"'[1]EXT RIN(M)'!T280","v":112.60141166161904},{"$f":"'[1]EXT RIN(M)'!U280","v":54.960668911353054},{"$f":"'[1]EXT RIN(M)'!V280","v":179.70200221824973},null,null,{"$f":"+'[1]MONE(M)CAPARD'!AE280","v":6.0619879134811541},{"$f":"'[1]MONE(M)CAPARD'!AF280","v":2.4918883003438279},{"$f":"'[1]MONE(M)CAPARD'!AG280","v":2.4103742030860156},{"$f":"'[1]MONE(M)CAPARD'!AH280","v":4.5578389316066419},{"$f":"'[1]MONE(M)CAPARD'!AI280","v":1.0609812312789346},{"$f":"'[1]MONE(M)CAPARD'!AJ280","v":6.7303225806451508},{"$f":"'[1]MONE(M)CAPARD'!AK280","v":-3.7479831932773191},null,null,{"$f":"'[1]MONE(M)CAPARD'!AL280","v":2.1150000000000002},{"$f":"'[1]MONE(M)CAPARD'!AM280","v":2.5299999999999998},{"$f":"'[1]MONE(M)CAPARD'!AN280","v":2.68},{"$f":"'[1]MONE(M)CAPARD'!AO280","v":3.8},{"$f":"'[1]MONE(M)CAPARD'!AP280","v":2.7407337275071901},{"$f":"'[1]MONE(M)CAPARD'!AQ280","v":2.42},{"$f":"'[1]MONE(M)CAPARD'!AR280","v":2.04},null,null,{"$f":"'[1]MONE(M)CAPARD'!J280","v":15.38389868791773},{"$f":"'[1]MONE(M)CAPARD'!K280","v":5.3308326363720777},{"$f":"'[1]MONE(M)CAPARD'!L280","v":10.353157165296121},{"$f":"'[1]MONE(M)CAPARD'!M280","v":13.608053419668154},{"$f":"'[1]MONE(M)CAPARD'!N280","v":11.029255101179551},{"$f":"'[1]MONE(M)CAPARD'!O280","v":14.08967741935483},{"$f":"'[1]MONE(M)CAPARD'!P280","v":0.3709943977590951},null,null,{"$f":"'[1]MONE(M)CAPARD'!Q280","v":10.79},{"$f":"'[1]MONE(M)CAPARD'!R280","v":5.37},{"$f":"'[1]MONE(M)CAPARD'!S280","v":6.22},{"$f":"'[1]MONE(M)CAPARD'!T280","v":8.75},{"$f":"'[1]MONE(M)CAPARD'!U280","v":8.3394512614496801},{"$f":"'[1]MONE(M)CAPARD'!V280","v":6.78},{"$f":"'[1]MONE(M)CAPARD'!W280","v":6.4066666666666663},null,null,{"$f":"'[1]MONE(M)CAPARD'!AS280","v":5},{"$f":"'[1]MONE(M)CAPARD'!AT280","v":"n.a."},{"$f":"'[1]MONE(M)CAPARD'!AU280","v":5},{"$f":"'[1]MONE(M)CAPARD'!AV280","v":7},{"$f":"'[1]MONE(M)CAPARD'!AW280","v":"n.a."},{"$f":"'[1]MONE(M)CAPARD'!AX280","v":6},{"$f":"'[1]MONE(M)CAPARD'!AY280","v":"n.a."},null,null,{"$f":"+'Datos_Regional (M)'!CF273","v":14.259429526557454},{"$f":"+'Datos_Regional (M)'!CG273","v":3.9126728095621122},{"$f":"+'Datos_Regional (M)'!CH273","v":20.251560921546897},{"$f":"+'Datos_Regional (M)'!CI273","v":14.972457705732968},{"$f":"+'Datos_Regional (M)'!CJ273","v":29.593259490418909},{"$f":"+'Datos_Regional (M)'!CK273","v":7.1548996286515232},{"$f":"+'Datos_Regional (M)'!CL273","v":15.934564067532264},null,null,931.11966015649466,438.28500000000003,846.4,348.95651216750002,384.0878721620191,715.19999999999993,1410.8370857500001,3664.0490444860147,5074.8861302360137,null,null,1426.3020568758336,843.76333333333332,1411.3416666666669,772.12470664416662,578.66070007370342,1469.2833333333335,2219.6929264999999,6501.4757969270368,8721.1687234270357,null,null,-2837.4267524410225,-3646.2825931910229,null,null,{"$f":"'[1]EXT Comercio(M)'!C280","v":911.25632169999244},{"$f":"'[1]EXT Comercio(M)'!D280","v":524.79},{"$f":"'[1]EXT Comercio(M)'!E280","v":783.50000000000023},{"$f":"'[1]EXT Comercio(M)'!F280","v":383.41401572999985},{"$f":"'[1]EXT Comercio(M)'!G280","v":414.99388910660707},{"$f":"'[1]EXT Comercio(M)'!H280","v":785.6},{"$f":"'[1]EXT Comercio(M)'!I280","v":1314.341471},{"$f":"'[1]EXT Comercio(M)'!K280","v":3803.5542265366021},{"$f":"'[1]EXT Comercio(M)'!L280","v":5117.8956975366018},null,null,{"$f":"'[1]EXT Comercio(M)'!AG280","v":1428.0035220100031},{"$f":"'[1]EXT Comercio(M)'!AH280","v":1027.0599999999995},{"$f":"'[1]EXT Comercio(M)'!AI280","v":1425.7999999999997},{"$f":"'[1]EXT Comercio(M)'!AJ280","v":750.41952325999955},{"$f":"'[1]EXT Comercio(M)'!AK280","v":584.20598569000003},{"$f":"'[1]EXT Comercio(M)'!AL280","v":1560.2999999999997},{"$f":"'[1]EXT Comercio(M)'!AM280","v":2534.5442300000004},{"$f":"'[1]EXT Comercio(M)'!AO280","v":6775.7890309600043},{"$f":"'[1]EXT Comercio(M)'!AP280","v":9310.3332609600038},null,null,{"$f":"'[1]EXT Comercio(M)'!$BS280","v":-2972.2348044233968},{"$f":"'[1]EXT Comercio(M)'!$BT280","v":-4192.4375634233947}]
[null,null,"Agosto",{"$f":"'[1]REAL IPC(M)'!AD281","v":4.230869108776063},{"$f":"'[1]REAL IPC(M)'!AE281","v":0.10214504596527017},{"$f":"'[1]REAL IPC(M)'!AF281","v":2.7113840340103965},{"$f":"'[1]REAL IPC(M)'!AG281","v":4.3222828367603787},{"$f":"'[1]REAL IPC(M)'!AH281","v":5.9664513046565943},{"$f":"'[1]REAL IPC(M)'!AI281","v":2.1625652498135697},{"$f":"'[1]REAL IPC(M)'!AJ281","v":6.0606060606060375},null,null,{"$f":"'[1]REAL IMAE(M)'!AG281","v":3.7035738555509443},{"$f":"'[1]REAL IMAE(M)'!AH281","v":2.9975514002088541},{"$f":"'[1]REAL IMAE(M)'!AI281","v":2.7484109304843307},{"$f":"'[1]REAL IMAE(M)'!AJ281","v":5.4936194554936018},{"$f":"'[1]REAL IMAE(M)'!AK281","v":5.4322809276835766},{"$f":"'[1]REAL IMAE(M)'!AL281","v":2.3863677412843685},{"$f":"'[1]REAL IMAE(M)'!AM281","v":9.5877741566105907},null,null,{"$f":"'[1]EXT ITCER(M)'!C281","v":72.547312500221793},{"$f":"'[1]EXT ITCER(M)'!D281","v":90.269615238841297},{"$f":"'[1]EXT ITCER(M)'!E281","v":64.218423580862734},{"$f":"'[1]EXT ITCER(M)'!F281","v":75.615532680488911},{"$f":"'[1]EXT ITCER(M)'!G281","v":97.2991602759069},{"$f":"'[1]EXT ITCER(M)'!H281","v":93.025692739214733},{"$f":"'[1]EXT ITCER(M)'!I281","v":90.261903454441565},null,null,{"$f":"'[1]EXT TC(M)'!J281","v":-1.2370114124154099},{"$f":"'[1]EXT TC(M)'!K281","v":0},{"$f":"'[1]EXT TC(M)'!L281","v":0.74435209888866072},{"$f":"'[1]EXT TC(M)'!M281","v":4.0784441997269445},{"$f":"'[1]EXT TC(M)'!N281","v":4.9950137625653879},{"$f":"'[1]EXT TC(M)'!O281","v":2.75576690662604},{"$f":"'[1]EXT TC(M)'!P281","v":0},null,null,{"$f":"'[1]EXT RIN(M)'!C281","v":4898.2062223599996},{"$f":"'[1]EXT RIN(M)'!D281","v":2499.4},{"$f":"'[1]EXT RIN(M)'!E281","v":6765.7},{"$f":"'[1]EXT RIN(M)'!F281","v":2505.9990309376426},{"$f":"'[1]EXT RIN(M)'!G281","v":1615.4},{"$f":"'[1]EXT RIN(M)'!H281","v":3245.1544858921702},{"$f":"'[1]EXT RIN(M)'!I281","v":2187.0237964900002},null,null,{"$f":"'[1]EXT RIN(M)'!P281","v":59.813244739086443},{"$f":"'[1]EXT RIN(M)'!Q281","v":96.754837935452912},{"$f":"'[1]EXT RIN(M)'!R281","v":111.5901711639949},{"$f":"'[1]EXT RIN(M)'!S281","v":72.855633576028382},{"$f":"'[1]EXT RIN(M)'!T281","v":113.35455967272412},{"$f":"'[1]EXT RIN(M)'!U281","v":55.305006944136935},{"$f":"'[1]EXT RIN(M)'!V281","v":188.81015051763254},null,null,{"$f":"+'[1]MONE(M)CAPARD'!AE281","v":6.0146585602019957},{"$f":"'[1]MONE(M)CAPARD'!AF281","v":2.6451530612244909},{"$f":"'[1]MONE(M)CAPARD'!AG281","v":2.5592255334804959},{"$f":"'[1]MONE(M)CAPARD'!AH281","v":4.6276950925181097},{"$f":"'[1]MONE(M)CAPARD'!AI281","v":1.6488672342539528},{"$f":"'[1]MONE(M)CAPARD'!AJ281","v":4.2926828512594861},{"$f":"'[1]MONE(M)CAPARD'!AK281","v":-3.6399999999999788},null,null,{"$f":"'[1]MONE(M)CAPARD'!AL281","v":2.1150000000000002},{"$f":"'[1]MONE(M)CAPARD'!AM281","v":2.75},{"$f":"'[1]MONE(M)CAPARD'!AN281","v":2.69},{"$f":"'[1]MONE(M)CAPARD'!AO281","v":3.84},{"$f":"'[1]MONE(M)CAPARD'!AP281","v":2.53039119923453},{"$f":"'[1]MONE(M)CAPARD'!AQ281","v":2.4025630982605106},{"$f":"'[1]MONE(M)CAPARD'!AR281","v":2.2000000000000002},null,null,{"$f":"'[1]MONE(M)CAPARD'!J281","v":15.292140445063115},{"$f":"'[1]MONE(M)CAPARD'!K281","v":5.3923469387755114},{"$f":"'[1]MONE(M)CAPARD'!L281","v":10.49408112582781},{"$f":"'[1]MONE(M)CAPARD'!M281","v":13.532791633145624},{"$f":"'[1]MONE(M)CAPARD'!N281","v":12.955103011143606},{"$f":"'[1]MONE(M)CAPARD'!O281","v":12.344084317190621},{"$f":"'[1]MONE(M)CAPARD'!P281","v":0.13142857142859346},null,null,{"$f":"'[1]MONE(M)CAPARD'!Q281","v":10.88},{"$f":"'[1]MONE(M)CAPARD'!R281","v":5.5},{"$f":"'[1]MONE(M)CAPARD'!S281","v":6.2},{"$f":"'[1]MONE(M)CAPARD'!T281","v":8.76},{"$f":"'[1]MONE(M)CAPARD'!U281","v":8.7967658973220306},{"$f":"'[1]MONE(M)CAPARD'!V281","v":7.011313887152685},{"$f":"'[1]MONE(M)CAPARD'!W281","v":6.2},null,null,{"$f":"'[1]MONE(M)CAPARD'!AS281","v":5},{"$f":"'[1]MONE(M)CAPARD'!AT281","v":"n.a."},{"$f":"'[1]MONE(M)CAPARD'!AU281","v":5},{"$f":"'[1]MONE(M)CAPARD'!AV281","v":7},{"$f":"'[1]MONE(M)CAPARD'!AW281","v":"n.a."},{"$f":"'[1]MONE(M)CAPARD'!AX281","v":5.5},{"$f":"'[1]MONE(M)CAPARD'!AY281","v":"n.a."},null,null,{"$f":"+'Datos_Regional (M)'!CF274","v":13.290052753979031},{"$f":"+'Datos_Regional (M)'!CG274","v":4.4125206000325878},{"$f":"+'Datos_Regional (M)'!CH274","v":39.60211478227167},{"$f":"+'Datos_Regional (M)'!CI274","v":15.560903968359764},{"$f":"+'Datos_Regional (M)'!CJ274","v":29.494513297546888},{"$f":"+'Datos_Regional (M)'!CK274","v":6.81634788108052},{"$f":"+'Datos_Regional (M)'!CL274","v":14.898321025679785},null,null,938.08962028066105,440.93833333333333,844.58333333333337,362.49490264333326,387.33956670779907,718.25,1416.8282256666664,3691.6957562984612,5108.5239819651269,null,null,1437.4036852841675,843.22833333333335,1406.0333333333335,778.82234853833336,581.81472743453674,1475.6833333333334,2228.7361237499999,6522.9857612570377,8751.7218850070403,null,null,-2831.2900049585774,-3643.1979030419111,null,null,{"$f":"'[1]EXT Comercio(M)'!C281","v":915.00216422999438},{"$f":"'[1]EXT Comercio(M)'!D281","v":452.78999999999996},{"$f":"'[1]EXT Comercio(M)'!E281","v":829.90000000000032},{"$f":"'[1]EXT Comercio(M)'!F281","v":406.56171339999992},{"$f":"'[1]EXT Comercio(M)'!G281","v":405.200259035464},{"$f":"'[1]EXT Comercio(M)'!H281","v":733.5},{"$f":"'[1]EXT Comercio(M)'!I281","v":1579.5981750000001},{"$f":"'[1]EXT Comercio(M)'!K281","v":3742.9541366654594},{"$f":"'[1]EXT Comercio(M)'!L281","v":5322.5523116654585},null,null,{"$f":"'[1]EXT Comercio(M)'!AG281","v":1592.0478195700027},{"$f":"'[1]EXT Comercio(M)'!AH281","v":850.88000000000102},{"$f":"'[1]EXT Comercio(M)'!AI281","v":1439.6999999999996},{"$f":"'[1]EXT Comercio(M)'!AJ281","v":842.0393775499997},{"$f":"'[1]EXT Comercio(M)'!AK281","v":594.01024955000025},{"$f":"'[1]EXT Comercio(M)'!AL281","v":1571.5999999999992},{"$f":"'[1]EXT Comercio(M)'!AM281","v":2564.4632359999987},{"$f":"'[1]EXT Comercio(M)'!AO281","v":6890.2774466700066},{"$f":"'[1]EXT Comercio(M)'!AP281","v":9454.7406826700026},null,null,{"$f":"'[1]EXT Comercio(M)'!$BS281","v":-3147.3233100045472},{"$f":"'[1]EXT Comercio(M)'!$BT281","v":-4132.1883710045477}]
[null,null,"Setiembre",{"$f":"'[1]REAL IPC(M)'!AD282","v":4.466305312334117},{"$f":"'[1]REAL IPC(M)'!AE282","v":0.78212290502792292},{"$f":"'[1]REAL IPC(M)'!AF282","v":3.2803932690489686},{"$f":"'[1]REAL IPC(M)'!AG282","v":5.2985702270815782},{"$f":"'[1]REAL IPC(M)'!AH282","v":6.4054942745756058},{"$f":"'[1]REAL IPC(M)'!AI282","v":2.6044088921960737},{"$f":"'[1]REAL IPC(M)'!AJ282","v":5.3558327219368946},null,null,{"$f":"'[1]REAL IMAE(M)'!AG282","v":3.505966602133558},{"$f":"'[1]REAL IMAE(M)'!AH282","v":3.4961861952622764},{"$f":"'[1]REAL IMAE(M)'!AI282","v":2.9880715891369225},{"$f":"'[1]REAL IMAE(M)'!AJ282","v":5.3353433239165984},{"$f":"'[1]REAL IMAE(M)'!AK282","v":6.2129629528171009},{"$f":"'[1]REAL IMAE(M)'!AL282","v":1.9435660381914206},{"$f":"'[1]REAL IMAE(M)'!AM282","v":9.0480760841113383},null,null,{"$f":"'[1]EXT ITCER(M)'!C282","v":72.638663828747312},{"$f":"'[1]EXT ITCER(M)'!D282","v":90.331615139958089},{"$f":"'[1]EXT ITCER(M)'!E282","v":64.92185542754828},{"$f":"'[1]EXT ITCER(M)'!F282","v":75.734910915175007},{"$f":"'[1]EXT ITCER(M)'!G282","v":97.452724696594416},{"$f":"'[1]EXT ITCER(M)'!H282","v":93.090423617259518},{"$f":"'[1]EXT ITCER(M)'!I282","v":90.629410646814506},null,null,{"$f":"'[1]EXT TC(M)'!J282","v":-2.5480483272600942},{"$f":"'[1]EXT TC(M)'!K282","v":0},{"$f":"'[1]EXT TC(M)'!L282","v":1.5327982081426943},{"$f":"'[1]EXT TC(M)'!M282","v":4.081574454208762},{"$f":"'[1]EXT TC(M)'!N282","v":5.0168378373397919},{"$f":"'[1]EXT TC(M)'!O282","v":2.7762048571788029},{"$f":"'[1]EXT TC(M)'!P282","v":0},null,null,{"$f":"'[1]EXT RIN(M)'!C282","v":5139.7594487200004},{"$f":"'[1]EXT RIN(M)'!D282","v":2485.6},{"$f":"'[1]EXT RIN(M)'!E282","v":6753.7},{"$f":"'[1]EXT RIN(M)'!F282","v":2466.3195746445567},{"$f":"'[1]EXT RIN(M)'!G282","v":1643.1},{"$f":"'[1]EXT RIN(M)'!H282","v":3002.4},{"$f":"'[1]EXT RIN(M)'!I282","v":1942.56059026},null,null,{"$f":"'[1]EXT RIN(M)'!P282","v":61.101273502184185},{"$f":"'[1]EXT RIN(M)'!Q282","v":99.197353885841622},{"$f":"'[1]EXT RIN(M)'!R282","v":110.4928029358711},{"$f":"'[1]EXT RIN(M)'!S282","v":72.588809234040625},{"$f":"'[1]EXT RIN(M)'!T282","v":115.17870493531042},{"$f":"'[1]EXT RIN(M)'!U282","v":52.922873145032625},{"$f":"'[1]EXT RIN(M)'!V282","v":165.20887193305981},null,null,{"$f":"+'[1]MONE(M)CAPARD'!AE282","v":5.7757328256477516},{"$f":"'[1]MONE(M)CAPARD'!AF282","v":2.1411308203991228},{"$f":"'[1]MONE(M)CAPARD'!AG282","v":2.0329189931350125},{"$f":"'[1]MONE(M)CAPARD'!AH282","v":3.9140415335463286},{"$f":"'[1]MONE(M)CAPARD'!AI282","v":1.5945715899414072},{"$f":"'[1]MONE(M)CAPARD'!AJ282","v":2.6944158760965746},{"$f":"'[1]MONE(M)CAPARD'!AK282","v":-3.0048955431754791},null,null,{"$f":"'[1]MONE(M)CAPARD'!AL282","v":2.12},{"$f":"'[1]MONE(M)CAPARD'!AM282","v":2.94},{"$f":"'[1]MONE(M)CAPARD'!AN282","v":2.72},{"$f":"'[1]MONE(M)CAPARD'!AO282","v":3.95},{"$f":"'[1]MONE(M)CAPARD'!AP282","v":3.0989768766090302},{"$f":"'[1]MONE(M)CAPARD'!AQ282","v":2.4109215332598599},{"$f":"'[1]MONE(M)CAPARD'!AR282","v":2.19},null,null,{"$f":"'[1]MONE(M)CAPARD'!J282","v":15.27161761868328},{"$f":"'[1]MONE(M)CAPARD'!K282","v":4.6018847006651988},{"$f":"'[1]MONE(M)CAPARD'!L282","v":9.914376201372999},{"$f":"'[1]MONE(M)CAPARD'!M282","v":12.831541533546329},{"$f":"'[1]MONE(M)CAPARD'!N282","v":11.315480548550408},{"$f":"'[1]MONE(M)CAPARD'!O282","v":10.589491483077534},{"$f":"'[1]MONE(M)CAPARD'!P282","v":0.469045961002794},null,null,{"$f":"'[1]MONE(M)CAPARD'!Q282","v":10.88},{"$f":"'[1]MONE(M)CAPARD'!R282","v":5.42},{"$f":"'[1]MONE(M)CAPARD'!S282","v":6.18},{"$f":"'[1]MONE(M)CAPARD'!T282","v":8.81},{"$f":"'[1]MONE(M)CAPARD'!U282","v":8.1959132044136194},{"$f":"'[1]MONE(M)CAPARD'!V282","v":6.1213131312324967},{"$f":"'[1]MONE(M)CAPARD'!W282","v":5.85},null,null,{"$f":"'[1]MONE(M)CAPARD'!AS282","v":5},{"$f":"'[1]MONE(M)CAPARD'!AT282","v":"n.a."},{"$f":"'[1]MONE(M)CAPARD'!AU282","v":5},{"$f":"'[1]MONE(M)CAPARD'!AV282","v":7},{"$f":"'[1]MONE(M)CAPARD'!AW282","v":"n.a."},{"$f":"'[1]MONE(M)CAPARD'!AX282","v":5},{"$f":"'[1]MONE(M)CAPARD'!AY282","v":"n.a."},null,null,{"$f":"+'Datos_Regional (M)'!CF275","v":13.495197438190299},{"$f":"+'Datos_Regional (M)'!CG275","v":3.9096005408334245},{"$f":"+'Datos_Regional (M)'!CH275","v":39.396273288941309},{"$f":"+'Datos_Regional (M)'!CI275","v":16.341551847862835},{"$f":"+'Datos_Regional (M)'!CJ275","v":28.037376534173418},{"$f":"+'Datos_Regional (M)'!CK275","v":5.7105424077370515},{"$f":"+'Datos_Regional (M)'!CL275","v":15.210448060397642},null,null,939.48917512566106,438.53583333333336,841.80833333333339,367.70980691416662,389.99394296631414,719.94999999999993,1384.8525230000002,3697.4870916728087,5082.3396146728082,null,null,1433.7883305200005,839.47166666666669,1394.6000000000001,781.6071125366667,586.54339084976993,1476.4083333333331,2235.4235635833334,6512.4188339064376,8747.8423974897723,null,null,-2814.931742233628,-3665.5027828169623,null,null,{"$f":"'[1]EXT Comercio(M)'!C282","v":907.24415246999524},{"$f":"'[1]EXT Comercio(M)'!D282","v":409.94000000000005},{"$f":"'[1]EXT Comercio(M)'!E282","v":785.19999999999982},{"$f":"'[1]EXT Comercio(M)'!F282","v":309.50351525999986},{"$f":"'[1]EXT Comercio(M)'!G282","v":386.16859294386802},{"$f":"'[1]EXT Comercio(M)'!H282","v":739},{"$f":"'[1]EXT Comercio(M)'!I282","v":1278.4141540000001},{"$f":"'[1]EXT Comercio(M)'!K282","v":3537.0562606738604},{"$f":"'[1]EXT Comercio(M)'!L282","v":4815.4704146738586},null,null,{"$f":"'[1]EXT Comercio(M)'!AG282","v":1304.8668251300016},{"$f":"'[1]EXT Comercio(M)'!AH282","v":790.05000000000018},{"$f":"'[1]EXT Comercio(M)'!AI282","v":1281.3},{"$f":"'[1]EXT Comercio(M)'!AJ282","v":775.6998310099998},{"$f":"'[1]EXT Comercio(M)'!AK282","v":583.92743892999988},{"$f":"'[1]EXT Comercio(M)'!AL282","v":1451.0000000000007},{"$f":"'[1]EXT Comercio(M)'!AM282","v":2464.766251},{"$f":"'[1]EXT Comercio(M)'!AO282","v":6186.8440950700024},{"$f":"'[1]EXT Comercio(M)'!AP282","v":8651.6103460700106},null,null,{"$f":"'[1]EXT Comercio(M)'!$BS282","v":-2649.7878343961384},{"$f":"'[1]EXT Comercio(M)'!$BT282","v":-3836.139931396141}]
[null,null,"Octubre",{"$f":"'[1]REAL IPC(M)'!AD283","v":4.6840231310456026},{"$f":"'[1]REAL IPC(M)'!AE283","v":0.94111069698099625},{"$f":"'[1]REAL IPC(M)'!AF283","v":3.3478343105731097},{"$f":"'[1]REAL IPC(M)'!AG283","v":5.6722689075630255},{"$f":"'[1]REAL IPC(M)'!AH283","v":6.4684304258566057},{"$f":"'[1]REAL IPC(M)'!AI283","v":2.8175562581364852},{"$f":"'[1]REAL IPC(M)'!AJ283","v":5.2708638360175915},null,null,{"$f":"'[1]REAL IMAE(M)'!AG283","v":3.1831412254232863},{"$f":"'[1]REAL IMAE(M)'!AH283","v":3.6544439335491772},{"$f":"'[1]REAL IMAE(M)'!AI283","v":3.3033011556875054},{"$f":"'[1]REAL IMAE(M)'!AJ283","v":5.1110070520533117},{"$f":"'[1]REAL IMAE(M)'!AK283","v":6.9699963998672327},{"$f":"'[1]REAL IMAE(M)'!AL283","v":1.7363734632081365},{"$f":"'[1]REAL IMAE(M)'!AM283","v":8.3901302734880581},null,null,{"$f":"'[1]EXT ITCER(M)'!C283","v":72.480022668259409},{"$f":"'[1]EXT ITCER(M)'!D283","v":90.499971528107494},{"$f":"'[1]EXT ITCER(M)'!E283","v":64.25373077299966},{"$f":"'[1]EXT ITCER(M)'!F283","v":75.890348778569802},{"$f":"'[1]EXT ITCER(M)'!G283","v":97.437185539024966},{"$f":"'[1]EXT ITCER(M)'!H283","v":93.653332010090736},{"$f":"'[1]EXT ITCER(M)'!I283","v":90.747430371484796},null,null,{"$f":"'[1]EXT TC(M)'!J283","v":-3.3593223236246583},{"$f":"'[1]EXT TC(M)'!K283","v":0},{"$f":"'[1]EXT TC(M)'!L283","v":0.373088842984313},{"$f":"'[1]EXT TC(M)'!M283","v":4.0847208559403327},{"$f":"'[1]EXT TC(M)'!N283","v":5.0048018425171215},{"$f":"'[1]EXT TC(M)'!O283","v":2.9456842149237201},{"$f":"'[1]EXT TC(M)'!P283","v":0},null,null,{"$f":"'[1]EXT RIN(M)'!C283","v":5365.96608913},{"$f":"'[1]EXT RIN(M)'!D283","v":2548.6999999999998},{"$f":"'[1]EXT RIN(M)'!E283","v":6804.2},{"$f":"'[1]EXT RIN(M)'!F283","v":2398.500381807964},{"$f":"'[1]EXT RIN(M)'!G283","v":1684.1},{"$f":"'[1]EXT RIN(M)'!H283","v":2994.8},{"$f":"'[1]EXT RIN(M)'!I283","v":1908.7486163199999},null,null,{"$f":"'[1]EXT RIN(M)'!P283","v":63.146759894356663},{"$f":"'[1]EXT RIN(M)'!Q283","v":98.830107760375668},{"$f":"'[1]EXT RIN(M)'!R283","v":108.03640676924063},{"$f":"'[1]EXT RIN(M)'!S283","v":75.208677183355505},{"$f":"'[1]EXT RIN(M)'!T283","v":111.13950072473887},{"$f":"'[1]EXT RIN(M)'!U283","v":55.33834199794849},{"$f":"'[1]EXT RIN(M)'!V283","v":159.43826343268881},null,null,{"$f":"+'[1]MONE(M)CAPARD'!AE283","v":5.3169306093507629},{"$f":"'[1]MONE(M)CAPARD'!AF283","v":2.0793205944798254},{"$f":"'[1]MONE(M)CAPARD'!AG283","v":1.9856881405563636},{"$f":"'[1]MONE(M)CAPARD'!AH283","v":3.9156262425447319},{"$f":"'[1]MONE(M)CAPARD'!AI283","v":1.4249399453782414},{"$f":"'[1]MONE(M)CAPARD'!AJ283","v":2.0499697059670061},{"$f":"'[1]MONE(M)CAPARD'!AK283","v":-2.9931015299026629},null,null,{"$f":"'[1]MONE(M)CAPARD'!AL283","v":2.15},{"$f":"'[1]MONE(M)CAPARD'!AM283","v":3.04},{"$f":"'[1]MONE(M)CAPARD'!AN283","v":2.73},{"$f":"'[1]MONE(M)CAPARD'!AO283","v":3.92},{"$f":"'[1]MONE(M)CAPARD'!AP283","v":3.4381887188681901},{"$f":"'[1]MONE(M)CAPARD'!AQ283","v":2.5531292063992899},{"$f":"'[1]MONE(M)CAPARD'!AR283","v":2.12},null,null,{"$f":"'[1]MONE(M)CAPARD'!J283","v":15.280246584457597},{"$f":"'[1]MONE(M)CAPARD'!K283","v":4.6649866149727632},{"$f":"'[1]MONE(M)CAPARD'!L283","v":9.9103825036603173},{"$f":"'[1]MONE(M)CAPARD'!M283","v":12.508230616302185},{"$f":"'[1]MONE(M)CAPARD'!N283","v":9.5723076974709684},{"$f":"'[1]MONE(M)CAPARD'!O283","v":9.9323505788186885},{"$f":"'[1]MONE(M)CAPARD'!P283","v":0.89528048215111544},null,null,{"$f":"'[1]MONE(M)CAPARD'!Q283","v":10.8},{"$f":"'[1]MONE(M)CAPARD'!R283","v":5.65},{"$f":"'[1]MONE(M)CAPARD'!S283","v":6.17},{"$f":"'[1]MONE(M)CAPARD'!T283","v":8.85},{"$f":"'[1]MONE(M)CAPARD'!U283","v":8.9289823895589606},{"$f":"'[1]MONE(M)CAPARD'!V283","v":6.3022872373723722},{"$f":"'[1]MONE(M)CAPARD'!W283","v":6.2133333333333338},null,null,{"$f":"'[1]MONE(M)CAPARD'!AS283","v":5},{"$f":"'[1]MONE(M)CAPARD'!AT283","v":"n.a."},{"$f":"'[1]MONE(M)CAPARD'!AU283","v":5},{"$f":"'[1]MONE(M)CAPARD'!AV283","v":7},{"$f":"'[1]MONE(M)CAPARD'!AW283","v":"n.a."},{"$f":"'[1]MONE(M)CAPARD'!AX283","v":5},{"$f":"'[1]MONE(M)CAPARD'!AY283","v":"n.a."},null,null,{"$f":"+'Datos_Regional (M)'!CF276","v":13.513257349732054},{"$f":"+'Datos_Regional (M)'!CG276","v":4.403518472460255},{"$f":"+'Datos_Regional (M)'!CH276","v":38.730837846143771},{"$f":"+'Datos_Regional (M)'!CI276","v":17.602361812441501},{"$f":"+'Datos_Regional (M)'!CJ276","v":27.270744586671157},{"$f":"+'Datos_Regional (M)'!CK276","v":5.8773749637774486},{"$f":"+'Datos_Regional (M)'!CL276","v":14.256218205175596},null,null,943.71777948899444,443.21166666666659,841.81666666666661,370.89283751083332,396.36832769378401,726.55833333333339,1381.2353620833335,3722.5656113602786,5103.8009734436118,null,null,1451.6897303433332,849.81083333333333,1405.5166666666664,787.5454540574998,592.76438449350019,1480.8916666666667,2267.1862459166673,6568.2187355610004,8835.4049814776681,null,null,-2845.6531242007209,-3731.6040080340549,null,null,{"$f":"'[1]EXT Comercio(M)'!C283","v":919.609951179993},{"$f":"'[1]EXT Comercio(M)'!D283","v":444.99000000000024},{"$f":"'[1]EXT Comercio(M)'!E283","v":732.5},{"$f":"'[1]EXT Comercio(M)'!F283","v":275.89084633999983},{"$f":"'[1]EXT Comercio(M)'!G283","v":436.07469791033805},{"$f":"'[1]EXT Comercio(M)'!H283","v":757},{"$f":"'[1]EXT Comercio(M)'!I283","v":1636.042719},{"$f":"'[1]EXT Comercio(M)'!K283","v":3566.0654954303318},{"$f":"'[1]EXT Comercio(M)'!L283","v":5202.1082144303291},null,null,{"$f":"'[1]EXT Comercio(M)'!AG283","v":1616.1852008599869},{"$f":"'[1]EXT Comercio(M)'!AH283","v":863.55000000000018},{"$f":"'[1]EXT Comercio(M)'!AI283","v":1531.7000000000003},{"$f":"'[1]EXT Comercio(M)'!AJ283","v":811.25133027999982},{"$f":"'[1]EXT Comercio(M)'!AK283","v":657.28127781000035},{"$f":"'[1]EXT Comercio(M)'!AL283","v":1519.3000000000002},{"$f":"'[1]EXT Comercio(M)'!AM283","v":2685.244356000002},{"$f":"'[1]EXT Comercio(M)'!AO283","v":6999.2678089499823},{"$f":"'[1]EXT Comercio(M)'!AP283","v":9684.5121649499779},null,null,{"$f":"'[1]EXT Comercio(M)'!$BS283","v":-3433.2023135196541},{"$f":"'[1]EXT Comercio(M)'!$BT283","v":-4482.4039505196561}]
[null,null,"Noviembre",{"$f":"'[1]REAL IPC(M)'!AD284","v":5.2163663222012522},{"$f":"'[1]REAL IPC(M)'!AE284","v":0.65128395980647824},{"$f":"'[1]REAL IPC(M)'!AF284","v":3.1140888930829456},{"$f":"'[1]REAL IPC(M)'!AG284","v":5.4416073670992047},{"$f":"'[1]REAL IPC(M)'!AH284","v":6.1635032457332173},{"$f":"'[1]REAL IPC(M)'!AI284","v":3.3723522853957482},{"$f":"'[1]REAL IPC(M)'!AJ284","v":4.4992743105950526},null,null,{"$f":"'[1]REAL IMAE(M)'!AG284","v":3.1090647532084175},{"$f":"'[1]REAL IMAE(M)'!AH284","v":3.0899909700035941},{"$f":"'[1]REAL IMAE(M)'!AI284","v":3.607139148968602},{"$f":"'[1]REAL IMAE(M)'!AJ284","v":4.7807029371602034},{"$f":"'[1]REAL IMAE(M)'!AK284","v":7.4892378741038614},{"$f":"'[1]REAL IMAE(M)'!AL284","v":1.7885375629095801},{"$f":"'[1]REAL IMAE(M)'!AM284","v":7.8478205237567193},null,null,{"$f":"'[1]EXT ITCER(M)'!C284","v":72.072466843941285},{"$f":"'[1]EXT ITCER(M)'!D284","v":90.473265428986252},{"$f":"'[1]EXT ITCER(M)'!E284","v":64.140514125936321},{"$f":"'[1]EXT ITCER(M)'!F284","v":75.941831436747762},{"$f":"'[1]EXT ITCER(M)'!G284","v":96.803626269832492},{"$f":"'[1]EXT ITCER(M)'!H284","v":94.103025300126063},{"$f":"'[1]EXT ITCER(M)'!I284","v":90.469207737554441},null,null,{"$f":"'[1]EXT TC(M)'!J284","v":-1.5496652170911633},{"$f":"'[1]EXT TC(M)'!K284","v":0},{"$f":"'[1]EXT TC(M)'!L284","v":0.72901938112189735},{"$f":"'[1]EXT TC(M)'!M284","v":4.5542560254875797},{"$f":"'[1]EXT TC(M)'!N284","v":5.3353635780372368},{"$f":"'[1]EXT TC(M)'!O284","v":3.8861545825355774},{"$f":"'[1]EXT TC(M)'!P284","v":0},null,null,{"$f":"'[1]EXT RIN(M)'!C284","v":6530.7613680000004},{"$f":"'[1]EXT RIN(M)'!D284","v":2514.6},{"$f":"'[1]EXT RIN(M)'!E284","v":6711.2},{"$f":"'[1]EXT RIN(M)'!F284","v":2376.1123724889212},{"$f":"'[1]EXT RIN(M)'!G284","v":1702.5},{"$f":"'[1]EXT RIN(M)'!H284","v":3119.3},{"$f":"'[1]EXT RIN(M)'!I284","v":2106.1048792199999},null,null,{"$f":"'[1]EXT RIN(M)'!P284","v":75.365066629609785},{"$f":"'[1]EXT RIN(M)'!Q284","v":99.663191837970615},{"$f":"'[1]EXT RIN(M)'!R284","v":105.71411976243461},{"$f":"'[1]EXT RIN(M)'!S284","v":73.883324366367262},{"$f":"'[1]EXT RIN(M)'!T284","v":111.49331023499469},{"$f":"'[1]EXT RIN(M)'!U284","v":56.11320788733051},{"$f":"'[1]EXT RIN(M)'!V284","v":136.91898306608931},null,null,{"$f":"+'[1]MONE(M)CAPARD'!AE284","v":4.0712617509343474},{"$f":"'[1]MONE(M)CAPARD'!AF284","v":2.6315770012941369},{"$f":"'[1]MONE(M)CAPARD'!AG284","v":2.2265736249656838},{"$f":"'[1]MONE(M)CAPARD'!AH284","v":4.5033386264390627},{"$f":"'[1]MONE(M)CAPARD'!AI284","v":2.1724784172249403},{"$f":"'[1]MONE(M)CAPARD'!AJ284","v":1.4998954035247489},{"$f":"'[1]MONE(M)CAPARD'!AK284","v":-2.2768333333333213},null,null,{"$f":"'[1]MONE(M)CAPARD'!AL284","v":2.15},{"$f":"'[1]MONE(M)CAPARD'!AM284","v":3.3},{"$f":"'[1]MONE(M)CAPARD'!AN284","v":2.76},{"$f":"'[1]MONE(M)CAPARD'!AO284","v":3.98},{"$f":"'[1]MONE(M)CAPARD'!AP284","v":1.92275526041191},{"$f":"'[1]MONE(M)CAPARD'!AQ284","v":2.4133867878690398},{"$f":"'[1]MONE(M)CAPARD'!AR284","v":2.12},null,null,{"$f":"'[1]MONE(M)CAPARD'!J284","v":14.706489321646268},{"$f":"'[1]MONE(M)CAPARD'!K284","v":4.8670179330745027},{"$f":"'[1]MONE(M)CAPARD'!L284","v":10.120742198224583},{"$f":"'[1]MONE(M)CAPARD'!M284","v":12.820738388249305},{"$f":"'[1]MONE(M)CAPARD'!N284","v":10.431999812145555},{"$f":"'[1]MONE(M)CAPARD'!O284","v":9.8645490666499178},{"$f":"'[1]MONE(M)CAPARD'!P284","v":1.6530185185185309},null,null,{"$f":"'[1]MONE(M)CAPARD'!Q284","v":11.1},{"$f":"'[1]MONE(M)CAPARD'!R284","v":5.55},{"$f":"'[1]MONE(M)CAPARD'!S284","v":6.2},{"$f":"'[1]MONE(M)CAPARD'!T284","v":8.74},{"$f":"'[1]MONE(M)CAPARD'!U284","v":8.4761685189420692},{"$f":"'[1]MONE(M)CAPARD'!V284","v":5.8745883164269106},{"$f":"'[1]MONE(M)CAPARD'!W284","v":6.2266666666666666},null,null,{"$f":"'[1]MONE(M)CAPARD'!AS284","v":5},{"$f":"'[1]MONE(M)CAPARD'!AT284","v":"n.a."},{"$f":"'[1]MONE(M)CAPARD'!AU284","v":5},{"$f":"'[1]MONE(M)CAPARD'!AV284","v":7},{"$f":"'[1]MONE(M)CAPARD'!AW284","v":"n.a."},{"$f":"'[1]MONE(M)CAPARD'!AX284","v":5},{"$f":"'[1]MONE(M)CAPARD'!AY284","v":"n.a."},null,null,{"$f":"+'Datos_Regional (M)'!CF277","v":13.685649982366144},{"$f":"+'Datos_Regional (M)'!CG277","v":4.5378708740040352},{"$f":"+'Datos_Regional (M)'!CH277","v":37.898275065483247},{"$f":"+'Datos_Regional (M)'!CI277","v":17.171558684633293},{"$f":"+'Datos_Regional (M)'!CJ277","v":25.636888853021354},{"$f":"+'Datos_Regional (M)'!CK277","v":5.9303229719078088},{"$f":"+'Datos_Regional (M)'!CL277","v":14.616660632069657},null,null,950.36903455066067,445.54333333333335,843.3416666666667,369.58294994333323,401.10602193832887,742.85833333333323,1400.0135364166665,3752.8013397656559,5152.8148761823222,null,null,1456.6213977450009,856.59333333333336,1407.0916666666665,784.54099858583322,593.08006422916674,1477.1083333333329,2275.3033097500006,6575.0357938933366,8850.3391036433368,null,null,-2822.234454127678,-3697.5242274610118,null,null,{"$f":"'[1]EXT Comercio(M)'!C284","v":983.18303701999321},{"$f":"'[1]EXT Comercio(M)'!D284","v":416.76000000000022},{"$f":"'[1]EXT Comercio(M)'!E284","v":808.29999999999973},{"$f":"'[1]EXT Comercio(M)'!F284","v":249.70019592999961},{"$f":"'[1]EXT Comercio(M)'!G284","v":398.31836800708095},{"$f":"'[1]EXT Comercio(M)'!H284","v":876.3},{"$f":"'[1]EXT Comercio(M)'!I284","v":1709.1735840000001},{"$f":"'[1]EXT Comercio(M)'!K284","v":3732.5616009570731},{"$f":"'[1]EXT Comercio(M)'!L284","v":5441.7351849570696},null,null,{"$f":"'[1]EXT Comercio(M)'!AG284","v":1551.3879772700107},{"$f":"'[1]EXT Comercio(M)'!AH284","v":860.8700000000008},{"$f":"'[1]EXT Comercio(M)'!AI284","v":1431.0999999999997},{"$f":"'[1]EXT Comercio(M)'!AJ284","v":761.96831855999972},{"$f":"'[1]EXT Comercio(M)'!AK284","v":587.89466806000007},{"$f":"'[1]EXT Comercio(M)'!AL284","v":1475.8999999999996},{"$f":"'[1]EXT Comercio(M)'!AM284","v":2254.8065350000006},{"$f":"'[1]EXT Comercio(M)'!AO284","v":6669.1209638900182},{"$f":"'[1]EXT Comercio(M)'!AP284","v":8923.9274988900142},null,null,{"$f":"'[1]EXT Comercio(M)'!$BS284","v":-2936.5593629329378},{"$f":"'[1]EXT Comercio(M)'!$BT284","v":-3482.1923139329374}]
[null,null,"Diciembre ",{"$f":"'[1]REAL IPC(M)'!AD285","v":4.5505304856303015},{"$f":"'[1]REAL IPC(M)'!AE285","v":0.78292478329759441},{"$f":"'[1]REAL IPC(M)'!AF285","v":3.4463276836158157},{"$f":"'[1]REAL IPC(M)'!AG285","v":5.3907229419139053},{"$f":"'[1]REAL IPC(M)'!AH285","v":6.6186108228091536},{"$f":"'[1]REAL IPC(M)'!AI285","v":3.9068299925760788},{"$f":"'[1]REAL IPC(M)'!AJ285","v":4.6343229543808873},null,null,{"$f":"'[1]REAL IMAE(M)'!AG285","v":2.8800435983217461},{"$f":"'[1]REAL IMAE(M)'!AH285","v":2.2860510756543722},{"$f":"'[1]REAL IMAE(M)'!AI285","v":3.8455461724763391},{"$f":"'[1]REAL IMAE(M)'!AJ285","v":4.3767043761831932},{"$f":"'[1]REAL IMAE(M)'!AK285","v":7.5451278721050317},{"$f":"'[1]REAL IMAE(M)'!AL285","v":2.0274277760490493},{"$f":"'[1]REAL IMAE(M)'!AM285","v":7.5341019468727577},null,null,{"$f":"'[1]EXT ITCER(M)'!C285","v":71.849626987776276},{"$f":"'[1]EXT ITCER(M)'!D285","v":90.504141128918391},{"$f":"'[1]EXT ITCER(M)'!E285","v":63.937206648167987},{"$f":"'[1]EXT ITCER(M)'!F285","v":76.141314783066917},{"$f":"'[1]EXT ITCER(M)'!G285","v":95.609406247864584},{"$f":"'[1]EXT ITCER(M)'!H285","v":94.053386471937614},{"$f":"'[1]EXT ITCER(M)'!I285","v":90.145249243058203},null,null,{"$f":"'[1]EXT TC(M)'!J285","v":-1.0953286373159281},{"$f":"'[1]EXT TC(M)'!K285","v":0},{"$f":"'[1]EXT TC(M)'!L285","v":1.1623029286473625},{"$f":"'[1]EXT TC(M)'!M285","v":4.8224186163205651},{"$f":"'[1]EXT TC(M)'!N285","v":5.4183704095367222},{"$f":"'[1]EXT TC(M)'!O285","v":4.2106710457022949},{"$f":"'[1]EXT TC(M)'!P285","v":0},null,null,{"$f":"'[1]EXT RIN(M)'!C285","v":6856.6761120399997},{"$f":"'[1]EXT RIN(M)'!D285","v":3172.9},{"$f":"'[1]EXT RIN(M)'!E285","v":6693.8},{"$f":"'[1]EXT RIN(M)'!F285","v":2570.9308349226294},{"$f":"'[1]EXT RIN(M)'!G285","v":1718.1},{"$f":"'[1]EXT RIN(M)'!H285","v":3209.8098136290778},{"$f":"'[1]EXT RIN(M)'!I285","v":2418.5563101600001},null,null,{"$f":"'[1]EXT RIN(M)'!P285","v":75.528614572263805},{"$f":"'[1]EXT RIN(M)'!Q285","v":131.27881511859943},{"$f":"'[1]EXT RIN(M)'!R285","v":101.67566131039575},{"$f":"'[1]EXT RIN(M)'!S285","v":74.670903759849566},{"$f":"'[1]EXT RIN(M)'!T285","v":115.30061075949349},{"$f":"'[1]EXT RIN(M)'!U285","v":56.259014451288678},{"$f":"'[1]EXT RIN(M)'!V285","v":193.37093950180434},null,null,{"$f":"+'[1]MONE(M)CAPARD'!AE285","v":4.4471027480905354},{"$f":"'[1]MONE(M)CAPARD'!AF285","v":2.7455793951724878},{"$f":"'[1]MONE(M)CAPARD'!AG285","v":1.8692517749863498},{"$f":"'[1]MONE(M)CAPARD'!AH285","v":4.8479381443299072},{"$f":"'[1]MONE(M)CAPARD'!AI285","v":1.5425221116799057},{"$f":"'[1]MONE(M)CAPARD'!AJ285","v":1.2926676788425631},{"$f":"'[1]MONE(M)CAPARD'!AK285","v":-2.3934048442906612},null,null,{"$f":"'[1]MONE(M)CAPARD'!AL285","v":2.15},{"$f":"'[1]MONE(M)CAPARD'!AM285","v":3.55},{"$f":"'[1]MONE(M)CAPARD'!AN285","v":2.77},{"$f":"'[1]MONE(M)CAPARD'!AO285","v":4.1100000000000003},{"$f":"'[1]MONE(M)CAPARD'!AP285","v":2.9963724161366301},{"$f":"'[1]MONE(M)CAPARD'!AQ285","v":2.46},{"$f":"'[1]MONE(M)CAPARD'!AR285","v":2.13},null,null,{"$f":"'[1]MONE(M)CAPARD'!J285","v":15.236144130860328},{"$f":"'[1]MONE(M)CAPARD'!K285","v":4.3926838065291882},{"$f":"'[1]MONE(M)CAPARD'!L285","v":9.6897323866739544},{"$f":"'[1]MONE(M)CAPARD'!M285","v":13.140888183980978},{"$f":"'[1]MONE(M)CAPARD'!N285","v":10.809478337601952},{"$f":"'[1]MONE(M)CAPARD'!O285","v":8.6165365722961678},{"$f":"'[1]MONE(M)CAPARD'!P285","v":1.5536747404844251},null,null,{"$f":"'[1]MONE(M)CAPARD'!Q285","v":11.1},{"$f":"'[1]MONE(M)CAPARD'!R285","v":5.21},{"$f":"'[1]MONE(M)CAPARD'!S285","v":6.1899999999999995},{"$f":"'[1]MONE(M)CAPARD'!T285","v":8.75},{"$f":"'[1]MONE(M)CAPARD'!U285","v":8.3290553009836703},{"$f":"'[1]MONE(M)CAPARD'!V285","v":6.82},{"$f":"'[1]MONE(M)CAPARD'!W285","v":6.26},null,null,{"$f":"'[1]MONE(M)CAPARD'!AS285","v":5},{"$f":"'[1]MONE(M)CAPARD'!AT285","v":"n.a."},{"$f":"'[1]MONE(M)CAPARD'!AU285","v":5},{"$f":"'[1]MONE(M)CAPARD'!AV285","v":7},{"$f":"'[1]MONE(M)CAPARD'!AW285","v":"n.a."},{"$f":"'[1]MONE(M)CAPARD'!AX285","v":5},{"$f":"'[1]MONE(M)CAPARD'!AY285","v":"n.a."},null,null,{"$f":"+'Datos_Regional (M)'!CF278","v":14.049232257194166},{"$f":"+'Datos_Regional (M)'!CG278","v":3.5380271026113297},{"$f":"+'Datos_Regional (M)'!CH278","v":41.109297639245867},{"$f":"+'Datos_Regional (M)'!CI278","v":16.879082829856749},{"$f":"+'Datos_Regional (M)'!CJ278","v":26.286194155104383},{"$f":"+'Datos_Regional (M)'!CK278","v":5.8899808902095563},{"$f":"+'Datos_Regional (M)'!CL278","v":15.211570560887466},null,null,953.71615834832721,444.92333333333335,831.55833333333339,365.92236845999992,402.35795059053493,744.62499999999989,1409.7487818333332,3743.1031440655292,5152.8519258988626,null,null,1465.8858827616671,854.78416666666681,1416.1666666666667,782.10712010499992,601.35438007833341,1472.7749999999999,2268.2019118333337,6593.0732162783343,8861.2751281116671,null,null,-2849.970072212805,-3708.4232022128053,null,null,{"$f":"'[1]EXT Comercio(M)'!C285","v":880.67446991999168},{"$f":"'[1]EXT Comercio(M)'!D285","v":418.1899999999996},{"$f":"'[1]EXT Comercio(M)'!E285","v":823.69999999999982},{"$f":"'[1]EXT Comercio(M)'!F285","v":293.21729701000004},{"$f":"'[1]EXT Comercio(M)'!G285","v":352.52586028600399},{"$f":"'[1]EXT Comercio(M)'!H285","v":684.8},{"$f":"'[1]EXT Comercio(M)'!I285","v":1195.649776},{"$f":"'[1]EXT Comercio(M)'!K285","v":3453.1076272159989},{"$f":"'[1]EXT Comercio(M)'!L285","v":4648.7574032160046},null,null,{"$f":"'[1]EXT Comercio(M)'!AG285","v":1473.1929399800003},{"$f":"'[1]EXT Comercio(M)'!AH285","v":835.31999999999971},{"$f":"'[1]EXT Comercio(M)'!AI285","v":1409.4999999999993},{"$f":"'[1]EXT Comercio(M)'!AJ285","v":747.11638144000062},{"$f":"'[1]EXT Comercio(M)'!AK285","v":634.75548716000014},{"$f":"'[1]EXT Comercio(M)'!AL285","v":1478.5000000000005},{"$f":"'[1]EXT Comercio(M)'!AM285","v":1823.3658869999999},{"$f":"'[1]EXT Comercio(M)'!AO285","v":6578.3848085799982},{"$f":"'[1]EXT Comercio(M)'!AP285","v":8401.7506955800054},null,null,{"$f":"'[1]EXT Comercio(M)'!$BS285","v":-3125.2771813640065},{"$f":"'[1]EXT Comercio(M)'!$BT285","v":-3752.9932923640081}]
[null,2013,"Enero",{"$f":"'[1]REAL IPC(M)'!AD286","v":5.7367026519222346},{"$f":"'[1]REAL IPC(M)'!AE286","v":0.87320018578727132},{"$f":"'[1]REAL IPC(M)'!AF286","v":3.857008466603959},{"$f":"'[1]REAL IPC(M)'!AG286","v":5.6713928273561276},{"$f":"'[1]REAL IPC(M)'!AH286","v":7.7431221581462317},{"$f":"'[1]REAL IPC(M)'!AI286","v":4.758384921001551},{"$f":"'[1]REAL IPC(M)'!AJ286","v":4.6829971181556225},null,null,{"$f":"'[1]REAL IMAE(M)'!AG286","v":2.3067322626343123},{"$f":"'[1]REAL IMAE(M)'!AH286","v":2.3691499694489768},{"$f":"'[1]REAL IMAE(M)'!AI286","v":4.0057328112054913},{"$f":"'[1]REAL IMAE(M)'!AJ286","v":3.8533931674972988},{"$f":"'[1]REAL IMAE(M)'!AK286","v":7.2063674924188543},{"$f":"'[1]REAL IMAE(M)'!AL286","v":2.3339424725196798},{"$f":"'[1]REAL IMAE(M)'!AM286","v":8.08496347913694},null,null,{"$f":"'[1]EXT ITCER(M)'!C286","v":71.205571356458677},{"$f":"'[1]EXT ITCER(M)'!D286","v":90.299265147167631},{"$f":"'[1]EXT ITCER(M)'!E286","v":63.681858391970778},{"$f":"'[1]EXT ITCER(M)'!F286","v":76.216118929873275},{"$f":"'[1]EXT ITCER(M)'!G286","v":95.286887136546284},{"$f":"'[1]EXT ITCER(M)'!H286","v":94.006493164856536},{"$f":"'[1]EXT ITCER(M)'!I286","v":89.826498621022907},null,null,{"$f":"'[1]EXT TC(M)'!J286","v":-1.7366074913835243},{"$f":"'[1]EXT TC(M)'!K286","v":0},{"$f":"'[1]EXT TC(M)'!L286","v":0.91712287650779423},{"$f":"'[1]EXT TC(M)'!M286","v":4.7880183605774009},{"$f":"'[1]EXT TC(M)'!N286","v":5.2674431116844094},{"$f":"'[1]EXT TC(M)'!O286","v":4.4191217342968265},{"$f":"'[1]EXT TC(M)'!P286","v":0},null,null,{"$f":"'[1]EXT RIN(M)'!C286","v":6748.7871541100003},{"$f":"'[1]EXT RIN(M)'!D286","v":3116},{"$f":"'[1]EXT RIN(M)'!E286","v":6649.7},{"$f":"'[1]EXT RIN(M)'!F286","v":2535.3638062192508},{"$f":"'[1]EXT RIN(M)'!G286","v":1717.9},{"$f":"'[1]EXT RIN(M)'!H286","v":3017.8},{"$f":"'[1]EXT RIN(M)'!I286","v":2590.8353731500001},null,null,{"$f":"'[1]EXT RIN(M)'!P286","v":71.343228895754351},{"$f":"'[1]EXT RIN(M)'!Q286","v":115.52537164801244},{"$f":"'[1]EXT RIN(M)'!R286","v":103.08884859816045},{"$f":"'[1]EXT RIN(M)'!S286","v":73.937711462219013},{"$f":"'[1]EXT RIN(M)'!T286","v":114.21335335326681},{"$f":"'[1]EXT RIN(M)'!U286","v":56.588836462159783},{"$f":"'[1]EXT RIN(M)'!V286","v":217.3229183104186},null,null,{"$f":"+'[1]MONE(M)CAPARD'!AE286","v":2.4242266722804477},{"$f":"'[1]MONE(M)CAPARD'!AF286","v":2.4950133529790985},{"$f":"'[1]MONE(M)CAPARD'!AG286","v":1.5049456521739053},{"$f":"'[1]MONE(M)CAPARD'!AH286","v":5.1183267561168133},{"$f":"'[1]MONE(M)CAPARD'!AI286","v":0.6527348585987377},{"$f":"'[1]MONE(M)CAPARD'!AJ286","v":1.0897600987828735},{"$f":"'[1]MONE(M)CAPARD'!AK286","v":-2.4292360633172772},null,null,{"$f":"'[1]MONE(M)CAPARD'!AL286","v":2.1550000000000002},{"$f":"'[1]MONE(M)CAPARD'!AM286","v":3.39},{"$f":"'[1]MONE(M)CAPARD'!AN286","v":2.78},{"$f":"'[1]MONE(M)CAPARD'!AO286","v":4.17},{"$f":"'[1]MONE(M)CAPARD'!AP286","v":3.2650459696615299},{"$f":"'[1]MONE(M)CAPARD'!AQ286","v":2.11},{"$f":"'[1]MONE(M)CAPARD'!AR286","v":2.14},null,null,{"$f":"'[1]MONE(M)CAPARD'!J286","v":13.621852192130868},{"$f":"'[1]MONE(M)CAPARD'!K286","v":4.4677870890505593},{"$f":"'[1]MONE(M)CAPARD'!L286","v":9.3041304347825999},{"$f":"'[1]MONE(M)CAPARD'!M286","v":13.08642462509866},{"$f":"'[1]MONE(M)CAPARD'!N286","v":12.606536286991251},{"$f":"'[1]MONE(M)CAPARD'!O286","v":7.9149894161227943},{"$f":"'[1]MONE(M)CAPARD'!P286","v":1.5160082587749451},null,null,{"$f":"'[1]MONE(M)CAPARD'!Q286","v":11.21},{"$f":"'[1]MONE(M)CAPARD'!R286","v":5.38},{"$f":"'[1]MONE(M)CAPARD'!S286","v":6.18},{"$f":"'[1]MONE(M)CAPARD'!T286","v":8.75},{"$f":"'[1]MONE(M)CAPARD'!U286","v":8.7767559505213004},{"$f":"'[1]MONE(M)CAPARD'!V286","v":7.02},{"$f":"'[1]MONE(M)CAPARD'!W286","v":6.27},null,null,{"$f":"'[1]MONE(M)CAPARD'!AS286","v":5},{"$f":"'[1]MONE(M)CAPARD'!AT286","v":"n.a."},{"$f":"'[1]MONE(M)CAPARD'!AU286","v":5},{"$f":"'[1]MONE(M)CAPARD'!AV286","v":7},{"$f":"'[1]MONE(M)CAPARD'!AW286","v":"n.a."},{"$f":"'[1]MONE(M)CAPARD'!AX286","v":5},{"$f":"'[1]MONE(M)CAPARD'!AY286","v":"n.a."},null,null,{"$f":"+'Datos_Regional (M)'!CF279","v":14.398525332226786},{"$f":"+'Datos_Regional (M)'!CG279","v":3.9942376645738076},{"$f":"+'Datos_Regional (M)'!CH279","v":40.64299583443762},{"$f":"+'Datos_Regional (M)'!CI279","v":15.448290728615998},{"$f":"+'Datos_Regional (M)'!CJ279","v":25.747361922451905},{"$f":"+'Datos_Regional (M)'!CK279","v":6.6944211394347031},{"$f":"+'Datos_Regional (M)'!CL279","v":19.130349014659508},null,null,956.36932721666028,447.435,838.55833333333339,369.00561891104627,402.61895697153568,752.26666666666654,1414.722404833333,3766.2539030992425,5180.9763079325758,null,null,1473.3947740641661,860.16333333333341,1426.5833333333333,787.70891689485882,605.27615858333343,1466.5916666666665,2294.8526542500003,6619.718182875692,8914.5708371256915,null,null,-2853.4642797764495,-3733.5945291931166,null,null,{"$f":"'[1]EXT Comercio(M)'!C286","v":911.55497141999081},{"$f":"'[1]EXT Comercio(M)'!D286","v":478.83},{"$f":"'[1]EXT Comercio(M)'!E286","v":828.19999999999993},{"$f":"'[1]EXT Comercio(M)'!F286","v":379.56635029255699},{"$f":"'[1]EXT Comercio(M)'!G286","v":395.01060445743303},{"$f":"'[1]EXT Comercio(M)'!H286","v":676.9},{"$f":"'[1]EXT Comercio(M)'!I286","v":1096.5744199999999},{"$f":"'[1]EXT Comercio(M)'!K286","v":3670.0619261699808},{"$f":"'[1]EXT Comercio(M)'!L286","v":4766.6363461699812},null,null,{"$f":"'[1]EXT Comercio(M)'!AG286","v":1562.8947004099925},{"$f":"'[1]EXT Comercio(M)'!AH286","v":885.23},{"$f":"'[1]EXT Comercio(M)'!AI286","v":1465.6},{"$f":"'[1]EXT Comercio(M)'!AJ286","v":807.42310439830715},{"$f":"'[1]EXT Comercio(M)'!AK286","v":553.21284757000012},{"$f":"'[1]EXT Comercio(M)'!AL286","v":1253.4000000000001},{"$f":"'[1]EXT Comercio(M)'!AM286","v":2196.2185369999997},{"$f":"'[1]EXT Comercio(M)'!AO286","v":6527.7606523782997},{"$f":"'[1]EXT Comercio(M)'!AP286","v":8723.9791893783004},null,null,{"$f":"'[1]EXT Comercio(M)'!$BS286","v":-2857.6987262083189},{"$f":"'[1]EXT Comercio(M)'!$BT286","v":-3957.3428432083188}]
[null,null,"Febrero",{"$f":"'[1]REAL IPC(M)'!AD287","v":6.515785305324914},{"$f":"'[1]REAL IPC(M)'!AE287","v":0.97222222222221966},{"$f":"'[1]REAL IPC(M)'!AF287","v":4.1842179163156406},{"$f":"'[1]REAL IPC(M)'!AG287","v":5.7827344072697349},{"$f":"'[1]REAL IPC(M)'!AH287","v":7.0810337818385873},{"$f":"'[1]REAL IPC(M)'!AI287","v":4.7325292330356179},{"$f":"'[1]REAL IPC(M)'!AJ287","v":4.581245526127419},null,null,{"$f":"'[1]REAL IMAE(M)'!AG287","v":1.9815142320138639},{"$f":"'[1]REAL IMAE(M)'!AH287","v":2.2214139862662434},{"$f":"'[1]REAL IMAE(M)'!AI287","v":4.002025189115761},{"$f":"'[1]REAL IMAE(M)'!AJ287","v":3.2968670602556336},{"$f":"'[1]REAL IMAE(M)'!AK287","v":6.6497323491242062},{"$f":"'[1]REAL IMAE(M)'!AL287","v":2.5126154161892256},{"$f":"'[1]REAL IMAE(M)'!AM287","v":8.1619885723818513},null,null,{"$f":"'[1]EXT ITCER(M)'!C287","v":70.994412601822845},{"$f":"'[1]EXT ITCER(M)'!D287","v":90.40661051719573},{"$f":"'[1]EXT ITCER(M)'!E287","v":63.080293874600507},{"$f":"'[1]EXT ITCER(M)'!F287","v":76.120981358381584},{"$f":"'[1]EXT ITCER(M)'!G287","v":95.743572727351918},{"$f":"'[1]EXT ITCER(M)'!H287","v":94.632831879865762},{"$f":"'[1]EXT ITCER(M)'!I287","v":89.819716048418428},null,null,{"$f":"'[1]EXT TC(M)'!J287","v":-1.7484904415029727},{"$f":"'[1]EXT TC(M)'!K287","v":0},{"$f":"'[1]EXT TC(M)'!L287","v":0.54917058257373952},{"$f":"'[1]EXT TC(M)'!M287","v":4.7882641892950648},{"$f":"'[1]EXT TC(M)'!N287","v":5.3126981243704279},{"$f":"'[1]EXT TC(M)'!O287","v":4.6618124562867456},{"$f":"'[1]EXT TC(M)'!P287","v":0},null,null,{"$f":"'[1]EXT RIN(M)'!C287","v":6816.2660269300004},{"$f":"'[1]EXT RIN(M)'!D287","v":3070.5},{"$f":"'[1]EXT RIN(M)'!E287","v":7276.7},{"$f":"'[1]EXT RIN(M)'!F287","v":2465.0716619624882},{"$f":"'[1]EXT RIN(M)'!G287","v":1700.5},{"$f":"'[1]EXT RIN(M)'!H287","v":3035.2},{"$f":"'[1]EXT RIN(M)'!I287","v":2557.8234821000001},null,null,{"$f":"'[1]EXT RIN(M)'!P287","v":71.131019357072205},{"$f":"'[1]EXT RIN(M)'!Q287","v":115.57018955317753},{"$f":"'[1]EXT RIN(M)'!R287","v":116.62432027240175},{"$f":"'[1]EXT RIN(M)'!S287","v":73.209400009069768},{"$f":"'[1]EXT RIN(M)'!T287","v":109.10278853943447},{"$f":"'[1]EXT RIN(M)'!U287","v":55.760209931013073},{"$f":"'[1]EXT RIN(M)'!V287","v":214.10694252294218},null,null,{"$f":"+'[1]MONE(M)CAPARD'!AE287","v":0.78318410016302242},{"$f":"'[1]MONE(M)CAPARD'!AF287","v":2.3845942228335653},{"$f":"'[1]MONE(M)CAPARD'!AG287","v":1.2149460916442061},{"$f":"'[1]MONE(M)CAPARD'!AH287","v":5.3858180398281812},{"$f":"'[1]MONE(M)CAPARD'!AI287","v":1.7390651926532481},{"$f":"'[1]MONE(M)CAPARD'!AJ287","v":1.6685081318681461},{"$f":"'[1]MONE(M)CAPARD'!AK287","v":-2.3343052703627678},null,null,{"$f":"'[1]MONE(M)CAPARD'!AL287","v":2.17},{"$f":"'[1]MONE(M)CAPARD'!AM287","v":3.38},{"$f":"'[1]MONE(M)CAPARD'!AN287","v":2.8},{"$f":"'[1]MONE(M)CAPARD'!AO287","v":4.2300000000000004},{"$f":"'[1]MONE(M)CAPARD'!AP287","v":3.0114232713399698},{"$f":"'[1]MONE(M)CAPARD'!AQ287","v":1.79},{"$f":"'[1]MONE(M)CAPARD'!AR287","v":2.14},null,null,{"$f":"'[1]MONE(M)CAPARD'!J287","v":11.861354313315548},{"$f":"'[1]MONE(M)CAPARD'!K287","v":4.4445667125171964},{"$f":"'[1]MONE(M)CAPARD'!L287","v":8.9416442048517535},{"$f":"'[1]MONE(M)CAPARD'!M287","v":13.128102303787571},{"$f":"'[1]MONE(M)CAPARD'!N287","v":13.099070437694637},{"$f":"'[1]MONE(M)CAPARD'!O287","v":8.2758153846153988},{"$f":"'[1]MONE(M)CAPARD'!P287","v":1.6721492128678959},null,null,{"$f":"'[1]MONE(M)CAPARD'!Q287","v":11.13},{"$f":"'[1]MONE(M)CAPARD'!R287","v":5.46},{"$f":"'[1]MONE(M)CAPARD'!S287","v":6.16},{"$f":"'[1]MONE(M)CAPARD'!T287","v":8.7799999999999994},{"$f":"'[1]MONE(M)CAPARD'!U287","v":8.9046228229723798},{"$f":"'[1]MONE(M)CAPARD'!V287","v":6.12},{"$f":"'[1]MONE(M)CAPARD'!W287","v":6.33},null,null,{"$f":"'[1]MONE(M)CAPARD'!AS287","v":5},{"$f":"'[1]MONE(M)CAPARD'!AT287","v":"n.a."},{"$f":"'[1]MONE(M)CAPARD'!AU287","v":5},{"$f":"'[1]MONE(M)CAPARD'!AV287","v":7},{"$f":"'[1]MONE(M)CAPARD'!AW287","v":"n.a."},{"$f":"'[1]MONE(M)CAPARD'!AX287","v":5},{"$f":"'[1]MONE(M)CAPARD'!AY287","v":"n.a."},null,null,{"$f":"+'Datos_Regional (M)'!CF280","v":12.952589264620773},{"$f":"+'Datos_Regional (M)'!CG280","v":5.7957128571072491},{"$f":"+'Datos_Regional (M)'!CH280","v":37.611295613252253},{"$f":"+'Datos_Regional (M)'!CI280","v":14.870383243426044},{"$f":"+'Datos_Regional (M)'!CJ280","v":23.811493728583777},{"$f":"+'Datos_Regional (M)'!CK280","v":7.0563942613386388},{"$f":"+'Datos_Regional (M)'!CL280","v":19.166181768040214},null,null,955.21577805749337,446.11999999999995,833.23333333333358,362.83588986221451,400.4786283180818,755.42500000000007,1402.3911987499998,3753.3086295711232,5155.6998283211233,null,null,1475.8170084324984,861.47916666666686,1428.75,784.4048618713349,606.23542646250007,1469.1999999999998,2288.7330466666672,6625.8864634330012,8914.6195100996665,null,null,-2872.577833861877,-3758.9196817785437,null,null,{"$f":"'[1]EXT Comercio(M)'!C287","v":936.30993912999338},{"$f":"'[1]EXT Comercio(M)'!D287","v":434.41},{"$f":"'[1]EXT Comercio(M)'!E287","v":796.00000000000011},{"$f":"'[1]EXT Comercio(M)'!F287","v":358.44281003401807},{"$f":"'[1]EXT Comercio(M)'!G287","v":355.48255880955696},{"$f":"'[1]EXT Comercio(M)'!H287","v":719.40000000000009},{"$f":"'[1]EXT Comercio(M)'!I287","v":1260.0372600000001},{"$f":"'[1]EXT Comercio(M)'!K287","v":3600.0453079735685},{"$f":"'[1]EXT Comercio(M)'!L287","v":4860.082567973569},null,null,{"$f":"'[1]EXT Comercio(M)'!AG287","v":1354.0647751799925},{"$f":"'[1]EXT Comercio(M)'!AH287","v":835.28},{"$f":"'[1]EXT Comercio(M)'!AI287","v":1337.5000000000002},{"$f":"'[1]EXT Comercio(M)'!AJ287","v":725.89967800771285},{"$f":"'[1]EXT Comercio(M)'!AK287","v":571.00671228000022},{"$f":"'[1]EXT Comercio(M)'!AL287","v":1394.6999999999998},{"$f":"'[1]EXT Comercio(M)'!AM287","v":2058.6268610000002},{"$f":"'[1]EXT Comercio(M)'!AO287","v":6218.4511654677062},{"$f":"'[1]EXT Comercio(M)'!AP287","v":8277.0780264677051},null,null,{"$f":"'[1]EXT Comercio(M)'!$BS287","v":-2618.4058574941369},{"$f":"'[1]EXT Comercio(M)'!$BT287","v":-3416.9954584941365}]
[null,null,"Marzo",{"$f":"'[1]REAL IPC(M)'!AD288","v":6.2058775162663231},{"$f":"'[1]REAL IPC(M)'!AE288","v":1.2758875739645059},{"$f":"'[1]REAL IPC(M)'!AF288","v":4.3384959880574652},{"$f":"'[1]REAL IPC(M)'!AG288","v":5.5760557605576029},{"$f":"'[1]REAL IPC(M)'!AH288","v":6.7943130672651559},{"$f":"'[1]REAL IPC(M)'!AI288","v":4.9737979222211788},{"$f":"'[1]REAL IPC(M)'!AJ288","v":4.1163946061036061},null,null,{"$f":"'[1]REAL IMAE(M)'!AG288","v":1.9299871694198878},{"$f":"'[1]REAL IMAE(M)'!AH288","v":1.6219778083727483},{"$f":"'[1]REAL IMAE(M)'!AI288","v":3.9085627634739968},{"$f":"'[1]REAL IMAE(M)'!AJ288","v":2.7760656959933523},{"$f":"'[1]REAL IMAE(M)'!AK288","v":6.0421802438258911},{"$f":"'[1]REAL IMAE(M)'!AL288","v":2.5274498198466442},{"$f":"'[1]REAL IMAE(M)'!AM288","v":8.1482095490716162},null,null,{"$f":"'[1]EXT ITCER(M)'!C288","v":70.330669772650609},{"$f":"'[1]EXT ITCER(M)'!D288","v":89.749120083157251},{"$f":"'[1]EXT ITCER(M)'!E288","v":62.460993287464511},{"$f":"'[1]EXT ITCER(M)'!F288","v":75.76297862992196},{"$f":"'[1]EXT ITCER(M)'!G288","v":95.54929173682946},{"$f":"'[1]EXT ITCER(M)'!H288","v":94.549412471488253},{"$f":"'[1]EXT ITCER(M)'!I288","v":89.200822460094884},null,null,{"$f":"'[1]EXT TC(M)'!J288","v":-1.9383422558612331},{"$f":"'[1]EXT TC(M)'!K288","v":0},{"$f":"'[1]EXT TC(M)'!L288","v":1.1027814627934478},{"$f":"'[1]EXT TC(M)'!M288","v":4.7380214281315514},{"$f":"'[1]EXT TC(M)'!N288","v":5.3845020359552853},{"$f":"'[1]EXT TC(M)'!O288","v":5.1207352850665746},{"$f":"'[1]EXT TC(M)'!P288","v":0},null,null,{"$f":"'[1]EXT RIN(M)'!C288","v":6936.8452548100004},{"$f":"'[1]EXT RIN(M)'!D288","v":3027.5},{"$f":"'[1]EXT RIN(M)'!E288","v":7279.8},{"$f":"'[1]EXT RIN(M)'!F288","v":3051.1054984985508},{"$f":"'[1]EXT RIN(M)'!G288","v":1698.7},{"$f":"'[1]EXT RIN(M)'!H288","v":3500.5},{"$f":"'[1]EXT RIN(M)'!I288","v":2097.7660981199997},null,null,{"$f":"'[1]EXT RIN(M)'!P288","v":69.99884117194199},{"$f":"'[1]EXT RIN(M)'!Q288","v":116.83185204823315},{"$f":"'[1]EXT RIN(M)'!R288","v":112.65838593079258},{"$f":"'[1]EXT RIN(M)'!S288","v":85.098560824183551},{"$f":"'[1]EXT RIN(M)'!T288","v":112.25490608233638},{"$f":"'[1]EXT RIN(M)'!U288","v":63.152142661460388},{"$f":"'[1]EXT RIN(M)'!V288","v":170.63246904014437},null,null,{"$f":"+'[1]MONE(M)CAPARD'!AE288","v":0.70064152863828877},{"$f":"'[1]MONE(M)CAPARD'!AF288","v":2.1171006025196184},{"$f":"'[1]MONE(M)CAPARD'!AG288","v":1.0748707860144942},{"$f":"'[1]MONE(M)CAPARD'!AH288","v":5.8194485436893242},{"$f":"'[1]MONE(M)CAPARD'!AI288","v":1.9954996092299531},{"$f":"'[1]MONE(M)CAPARD'!AJ288","v":1.3395743562795799},{"$f":"'[1]MONE(M)CAPARD'!AK288","v":-1.9750920245398647},null,null,{"$f":"'[1]MONE(M)CAPARD'!AL288","v":2.3250000000000002},{"$f":"'[1]MONE(M)CAPARD'!AM288","v":3.42},{"$f":"'[1]MONE(M)CAPARD'!AN288","v":2.79},{"$f":"'[1]MONE(M)CAPARD'!AO288","v":4.25},{"$f":"'[1]MONE(M)CAPARD'!AP288","v":3.6305639918334198},{"$f":"'[1]MONE(M)CAPARD'!AQ288","v":2.0299999999999998},{"$f":"'[1]MONE(M)CAPARD'!AR288","v":2.06},null,null,{"$f":"'[1]MONE(M)CAPARD'!J288","v":11.839384766448395},{"$f":"'[1]MONE(M)CAPARD'!K288","v":3.9339200292130632},{"$f":"'[1]MONE(M)CAPARD'!L288","v":8.7805597782348297},{"$f":"'[1]MONE(M)CAPARD'!M288","v":13.444283495145635},{"$f":"'[1]MONE(M)CAPARD'!N288","v":15.184176702172985},{"$f":"'[1]MONE(M)CAPARD'!O288","v":8.2841644771413794},{"$f":"'[1]MONE(M)CAPARD'!P288","v":2.1549011588275531},null,null,{"$f":"'[1]MONE(M)CAPARD'!Q288","v":11.16},{"$f":"'[1]MONE(M)CAPARD'!R288","v":5.26},{"$f":"'[1]MONE(M)CAPARD'!S288","v":6.15},{"$f":"'[1]MONE(M)CAPARD'!T288","v":8.65},{"$f":"'[1]MONE(M)CAPARD'!U288","v":8.3938901801492793},{"$f":"'[1]MONE(M)CAPARD'!V288","v":7.7},{"$f":"'[1]MONE(M)CAPARD'!W288","v":6.36},null,null,{"$f":"'[1]MONE(M)CAPARD'!AS288","v":5},{"$f":"'[1]MONE(M)CAPARD'!AT288","v":"n.a."},{"$f":"'[1]MONE(M)CAPARD'!AU288","v":5},{"$f":"'[1]MONE(M)CAPARD'!AV288","v":7},{"$f":"'[1]MONE(M)CAPARD'!AW288","v":"n.a."},{"$f":"'[1]MONE(M)CAPARD'!AX288","v":5},{"$f":"'[1]MONE(M)CAPARD'!AY288","v":"n.a."},null,null,{"$f":"+'Datos_Regional (M)'!CF281","v":12.605333775988248},{"$f":"+'Datos_Regional (M)'!CG281","v":6.2132957534292155},{"$f":"+'Datos_Regional (M)'!CH281","v":35.670934207936014},{"$f":"+'Datos_Regional (M)'!CI281","v":14.789850088540767},{"$f":"+'Datos_Regional (M)'!CJ281","v":27.521735274220195},{"$f":"+'Datos_Regional (M)'!CK281","v":7.1208658884623466},{"$f":"+'Datos_Regional (M)'!CL281","v":19.592131336681362},null,null,947.54609697082651,441.565,828.95000000000016,352.62224571764091,395.05406198469626,756.94166666666661,1367.6868590833335,3722.6790713398309,5090.3659304231633,null,null,1467.3662931749984,855.48250000000019,1417.9666666666669,767.52394132586824,593.07020074666673,1456.9083333333335,2260.1270238333341,6558.3179352475336,8818.4449590808672,null,null,-2835.6388639077031,-3728.079028657703,null,null,{"$f":"'[1]EXT Comercio(M)'!C288","v":1019.1430023599917},{"$f":"'[1]EXT Comercio(M)'!D288","v":448.95000000000005},{"$f":"'[1]EXT Comercio(M)'!E288","v":982.1},{"$f":"'[1]EXT Comercio(M)'!F288","v":381.33723427511586},{"$f":"'[1]EXT Comercio(M)'!G288","v":393.53927510163999},{"$f":"'[1]EXT Comercio(M)'!H288","v":814.40000000000009},{"$f":"'[1]EXT Comercio(M)'!I288","v":1333.0723640000001},{"$f":"'[1]EXT Comercio(M)'!K288","v":4039.4695117367492},{"$f":"'[1]EXT Comercio(M)'!L288","v":5372.5418757367461},null,null,{"$f":"'[1]EXT Comercio(M)'!AG288","v":1480.4872383699999},{"$f":"'[1]EXT Comercio(M)'!AH288","v":824.87000000000012},{"$f":"'[1]EXT Comercio(M)'!AI288","v":1346},{"$f":"'[1]EXT Comercio(M)'!AJ288","v":679.48146713439883},{"$f":"'[1]EXT Comercio(M)'!AK288","v":495.92586384999981},{"$f":"'[1]EXT Comercio(M)'!AL288","v":1327.4},{"$f":"'[1]EXT Comercio(M)'!AM288","v":1927.6766400000001},{"$f":"'[1]EXT Comercio(M)'!AO288","v":6154.1645693543996},{"$f":"'[1]EXT Comercio(M)'!AP288","v":8081.8412093543993},null,null,{"$f":"'[1]EXT Comercio(M)'!$BS288","v":-2114.6950576176514},{"$f":"'[1]EXT Comercio(M)'!$BT288","v":-2709.2993336176514}]
[null,null,"Abril",{"$f":"'[1]REAL IPC(M)'!AD289","v":6.307269239954584},{"$f":"'[1]REAL IPC(M)'!AE289","v":1.8377285674902159E-2},{"$f":"'[1]REAL IPC(M)'!AF289","v":4.1271611823759038},{"$f":"'[1]REAL IPC(M)'!AG289","v":4.6634225466342372},{"$f":"'[1]REAL IPC(M)'!AH289","v":6.343806475904783},{"$f":"'[1]REAL IPC(M)'!AI289","v":4.8997977569405649},{"$f":"'[1]REAL IPC(M)'!AJ289","v":3.735024665257209},null,null,{"$f":"'[1]REAL IMAE(M)'!AG289","v":1.9430757740606115},{"$f":"'[1]REAL IMAE(M)'!AH289","v":1.241935320161569},{"$f":"'[1]REAL IMAE(M)'!AI289","v":3.8073333778051048},{"$f":"'[1]REAL IMAE(M)'!AJ289","v":2.3906477550315808},{"$f":"'[1]REAL IMAE(M)'!AK289","v":5.66390648253208},{"$f":"'[1]REAL IMAE(M)'!AL289","v":2.5676016319218364},{"$f":"'[1]REAL IMAE(M)'!AM289","v":7.9899559543901404},null,null,{"$f":"'[1]EXT ITCER(M)'!C289","v":69.673732641999052},{"$f":"'[1]EXT ITCER(M)'!D289","v":90.129457437537013},{"$f":"'[1]EXT ITCER(M)'!E289","v":62.12006266944379},{"$f":"'[1]EXT ITCER(M)'!F289","v":75.677316525165296},{"$f":"'[1]EXT ITCER(M)'!G289","v":94.757329703626624},{"$f":"'[1]EXT ITCER(M)'!H289","v":94.551520059709162},{"$f":"'[1]EXT ITCER(M)'!I289","v":88.712213708974531},null,null,{"$f":"'[1]EXT TC(M)'!J289","v":-1.2292306717236545},{"$f":"'[1]EXT TC(M)'!K289","v":0},{"$f":"'[1]EXT TC(M)'!L289","v":0.60947471423196953},{"$f":"'[1]EXT TC(M)'!M289","v":4.7325833837483176},{"$f":"'[1]EXT TC(M)'!N289","v":5.150049667852568},{"$f":"'[1]EXT TC(M)'!O289","v":5.2158513081276139},{"$f":"'[1]EXT TC(M)'!P289","v":0},null,null,{"$f":"'[1]EXT RIN(M)'!C289","v":7960.4042082599999},{"$f":"'[1]EXT RIN(M)'!D289","v":3093.3},{"$f":"'[1]EXT RIN(M)'!E289","v":7220.8},{"$f":"'[1]EXT RIN(M)'!F289","v":2954.9363294765917},{"$f":"'[1]EXT RIN(M)'!G289","v":1730.5},{"$f":"'[1]EXT RIN(M)'!H289","v":4099.6000000000004},{"$f":"'[1]EXT RIN(M)'!I289","v":2863.0006039399996},null,null,{"$f":"'[1]EXT RIN(M)'!P289","v":80.78236878194889},{"$f":"'[1]EXT RIN(M)'!Q289","v":114.55745964120663},{"$f":"'[1]EXT RIN(M)'!R289","v":113.11595109632979},{"$f":"'[1]EXT RIN(M)'!S289","v":80.928500852674077},{"$f":"'[1]EXT RIN(M)'!T289","v":114.68911016069991},{"$f":"'[1]EXT RIN(M)'!U289","v":66.448025951827788},{"$f":"'[1]EXT RIN(M)'!V289","v":233.95434328169796},null,null,{"$f":"+'[1]MONE(M)CAPARD'!AE289","v":0.4164632985220354},{"$f":"'[1]MONE(M)CAPARD'!AF289","v":3.4609866789159431},{"$f":"'[1]MONE(M)CAPARD'!AG289","v":1.2704070701660444},{"$f":"'[1]MONE(M)CAPARD'!AH289","v":7.0192406044168809},{"$f":"'[1]MONE(M)CAPARD'!AI289","v":2.5033450150208014},{"$f":"'[1]MONE(M)CAPARD'!AJ289","v":2.2499588116729949},{"$f":"'[1]MONE(M)CAPARD'!AK289","v":-1.5183152173912904},null,null,{"$f":"'[1]MONE(M)CAPARD'!AL289","v":2.2850000000000001},{"$f":"'[1]MONE(M)CAPARD'!AM289","v":3.48},{"$f":"'[1]MONE(M)CAPARD'!AN289","v":2.79},{"$f":"'[1]MONE(M)CAPARD'!AO289","v":4.28},{"$f":"'[1]MONE(M)CAPARD'!AP289","v":3.8423504726768072},{"$f":"'[1]MONE(M)CAPARD'!AQ289","v":2.4},{"$f":"'[1]MONE(M)CAPARD'!AR289","v":2.16},null,null,{"$f":"'[1]MONE(M)CAPARD'!J289","v":10.425186197784559},{"$f":"'[1]MONE(M)CAPARD'!K289","v":5.4406228755167696},{"$f":"'[1]MONE(M)CAPARD'!L289","v":9.0301499732190695},{"$f":"'[1]MONE(M)CAPARD'!M289","v":14.82521503293296},{"$f":"'[1]MONE(M)CAPARD'!N289","v":12.955078709454712},{"$f":"'[1]MONE(M)CAPARD'!O289","v":8.9706581368855129},{"$f":"'[1]MONE(M)CAPARD'!P289","v":2.5111820652174051},null,null,{"$f":"'[1]MONE(M)CAPARD'!Q289","v":11.02},{"$f":"'[1]MONE(M)CAPARD'!R289","v":5.46},{"$f":"'[1]MONE(M)CAPARD'!S289","v":6.1400000000000006},{"$f":"'[1]MONE(M)CAPARD'!T289","v":8.6},{"$f":"'[1]MONE(M)CAPARD'!U289","v":9.3830128967005439},{"$f":"'[1]MONE(M)CAPARD'!V289","v":6.12},{"$f":"'[1]MONE(M)CAPARD'!W289","v":6.34},null,null,{"$f":"'[1]MONE(M)CAPARD'!AS289","v":5},{"$f":"'[1]MONE(M)CAPARD'!AT289","v":"n.a."},{"$f":"'[1]MONE(M)CAPARD'!AU289","v":5.25},{"$f":"'[1]MONE(M)CAPARD'!AV289","v":7},{"$f":"'[1]MONE(M)CAPARD'!AW289","v":"n.a."},{"$f":"'[1]MONE(M)CAPARD'!AX289","v":5},{"$f":"'[1]MONE(M)CAPARD'!AY289","v":"n.a."},null,null,{"$f":"+'Datos_Regional (M)'!CF282","v":12.822594625943996},{"$f":"+'Datos_Regional (M)'!CG282","v":5.3527616169467995},{"$f":"+'Datos_Regional (M)'!CH282","v":34.108020768899962},{"$f":"+'Datos_Regional (M)'!CI282","v":13.49322823449759},{"$f":"+'Datos_Regional (M)'!CJ282","v":28.070876081166098},{"$f":"+'Datos_Regional (M)'!CK282","v":8.5420112477957666},{"$f":"+'Datos_Regional (M)'!CL282","v":18.851597996525136},null,null,951.36211507915971,448.30666666666662,830.08333333333337,349.39458764483078,395.49393553479467,762.44999999999993,1371.09383,3737.0906382587855,5108.1844682587844,null,null,1491.3797618716662,867.38166666666677,1441.875,771.29572128585949,596.16512932333342,1455.3999999999999,2276.343409666667,6623.4972791475257,8899.8406888141926,null,null,-2886.4066408887406,-3791.6562205554073,null,null,{"$f":"'[1]EXT Comercio(M)'!C289","v":1001.125653989995},{"$f":"'[1]EXT Comercio(M)'!D289","v":496.52999999999975},{"$f":"'[1]EXT Comercio(M)'!E289","v":888.79999999999984},{"$f":"'[1]EXT Comercio(M)'!F289","v":354.66318511627901},{"$f":"'[1]EXT Comercio(M)'!G289","v":427.17411279546701},{"$f":"'[1]EXT Comercio(M)'!H289","v":832.40000000000009},{"$f":"'[1]EXT Comercio(M)'!I289","v":1263.676866},{"$f":"'[1]EXT Comercio(M)'!K289","v":4000.6929519017394},{"$f":"'[1]EXT Comercio(M)'!L289","v":5264.369817901741},null,null,{"$f":"'[1]EXT Comercio(M)'!AG289","v":1605.781479110005},{"$f":"'[1]EXT Comercio(M)'!AH289","v":959.30999999999949},{"$f":"'[1]EXT Comercio(M)'!AI289","v":1610.1},{"$f":"'[1]EXT Comercio(M)'!AJ289","v":795.23389025989491},{"$f":"'[1]EXT Comercio(M)'!AK289","v":619.26020274999996},{"$f":"'[1]EXT Comercio(M)'!AL289","v":1368.6},{"$f":"'[1]EXT Comercio(M)'!AM289","v":2188.5362319999995},{"$f":"'[1]EXT Comercio(M)'!AO289","v":6958.2855721198976},{"$f":"'[1]EXT Comercio(M)'!AP289","v":9146.8218041198961},null,null,{"$f":"'[1]EXT Comercio(M)'!$BS289","v":-2957.5926202181581},{"$f":"'[1]EXT Comercio(M)'!$BT289","v":-3882.4519862181569}]
[null,null,"Mayo ",{"$f":"'[1]REAL IPC(M)'!AD290","v":5.2840368710750312},{"$f":"'[1]REAL IPC(M)'!AE290","v":0.14742467520500929},{"$f":"'[1]REAL IPC(M)'!AF290","v":4.2703304864463369},{"$f":"'[1]REAL IPC(M)'!AG290","v":4.8197650870797917},{"$f":"'[1]REAL IPC(M)'!AH290","v":7.7284868220783665},{"$f":"'[1]REAL IPC(M)'!AI290","v":4.9866347128767048},{"$f":"'[1]REAL IPC(M)'!AJ290","v":3.7192982456140355},null,null,{"$f":"'[1]REAL IMAE(M)'!AG290","v":2.2396419227337354},{"$f":"'[1]REAL IMAE(M)'!AH290","v":0.49929753198722215},{"$f":"'[1]REAL IMAE(M)'!AI290","v":3.6811796185456549},{"$f":"'[1]REAL IMAE(M)'!AJ290","v":2.1490354557895244},{"$f":"'[1]REAL IMAE(M)'!AK290","v":5.5406433196295328},{"$f":"'[1]REAL IMAE(M)'!AL290","v":2.9802036425505696},{"$f":"'[1]REAL IMAE(M)'!AM290","v":7.7935346765294833},null,null,{"$f":"'[1]EXT ITCER(M)'!C290","v":69.706050805474007},{"$f":"'[1]EXT ITCER(M)'!D290","v":90.299517456775206},{"$f":"'[1]EXT ITCER(M)'!E290","v":61.920795350926468},{"$f":"'[1]EXT ITCER(M)'!F290","v":75.810106065642572},{"$f":"'[1]EXT ITCER(M)'!G290","v":94.347375342217219},{"$f":"'[1]EXT ITCER(M)'!H290","v":94.862491538275918},{"$f":"'[1]EXT ITCER(M)'!I290","v":88.388674436293911},null,null,{"$f":"'[1]EXT TC(M)'!J290","v":-1.1477411477411512},{"$f":"'[1]EXT TC(M)'!K290","v":0},{"$f":"'[1]EXT TC(M)'!L290","v":5.8290805494003929E-2},{"$f":"'[1]EXT TC(M)'!M290","v":4.7606760599589801},{"$f":"'[1]EXT TC(M)'!N290","v":5.3455018972351782},{"$f":"'[1]EXT TC(M)'!O290","v":5.3115918630933283},{"$f":"'[1]EXT TC(M)'!P290","v":0},null,null,{"$f":"'[1]EXT RIN(M)'!C290","v":7885.1966123700004},{"$f":"'[1]EXT RIN(M)'!D290","v":3058.7},{"$f":"'[1]EXT RIN(M)'!E290","v":7252.9},{"$f":"'[1]EXT RIN(M)'!F290","v":2839.7668864127813},{"$f":"'[1]EXT RIN(M)'!G290","v":1727},{"$f":"'[1]EXT RIN(M)'!H290","v":4067.4},{"$f":"'[1]EXT RIN(M)'!I290","v":2770.37502614},null,null,{"$f":"'[1]EXT RIN(M)'!P290","v":77.691798084357998},{"$f":"'[1]EXT RIN(M)'!Q290","v":116.41023962538031},{"$f":"'[1]EXT RIN(M)'!R290","v":110.8384576929452},{"$f":"'[1]EXT RIN(M)'!S290","v":80.424071827956197},{"$f":"'[1]EXT RIN(M)'!T290","v":116.54574083664251},{"$f":"'[1]EXT RIN(M)'!U290","v":66.75890985335559},{"$f":"'[1]EXT RIN(M)'!V290","v":231.38414623298104},null,null,{"$f":"+'[1]MONE(M)CAPARD'!AE290","v":1.2974076313179856},{"$f":"'[1]MONE(M)CAPARD'!AF290","v":3.3176842395804615},{"$f":"'[1]MONE(M)CAPARD'!AG290","v":1.1217663817663874},{"$f":"'[1]MONE(M)CAPARD'!AH290","v":6.9740996908809869},{"$f":"'[1]MONE(M)CAPARD'!AI290","v":1.1432051024636158},{"$f":"'[1]MONE(M)CAPARD'!AJ290","v":0.72710711150137264},{"$f":"'[1]MONE(M)CAPARD'!AK290","v":-1.5130243572395135},null,null,{"$f":"'[1]MONE(M)CAPARD'!AL290","v":2.0499999999999998},{"$f":"'[1]MONE(M)CAPARD'!AM290","v":3.47},{"$f":"'[1]MONE(M)CAPARD'!AN290","v":2.89},{"$f":"'[1]MONE(M)CAPARD'!AO290","v":4.32},{"$f":"'[1]MONE(M)CAPARD'!AP290","v":3.4490119720693002},{"$f":"'[1]MONE(M)CAPARD'!AQ290","v":1.9221571562034878},{"$f":"'[1]MONE(M)CAPARD'!AR290","v":2.15},null,null,{"$f":"'[1]MONE(M)CAPARD'!J290","v":10.928497302031198},{"$f":"'[1]MONE(M)CAPARD'!K290","v":5.4245781580642225},{"$f":"'[1]MONE(M)CAPARD'!L290","v":8.9379878917378974},{"$f":"'[1]MONE(M)CAPARD'!M290","v":14.692109737248837},{"$f":"'[1]MONE(M)CAPARD'!N290","v":12.086720439459887},{"$f":"'[1]MONE(M)CAPARD'!O290","v":7.744006415384602},{"$f":"'[1]MONE(M)CAPARD'!P290","v":2.50744248985115},null,null,{"$f":"'[1]MONE(M)CAPARD'!Q290","v":10.84},{"$f":"'[1]MONE(M)CAPARD'!R290","v":5.58},{"$f":"'[1]MONE(M)CAPARD'!S290","v":6.09},{"$f":"'[1]MONE(M)CAPARD'!T290","v":8.59},{"$f":"'[1]MONE(M)CAPARD'!U290","v":8.41823119777027},{"$f":"'[1]MONE(M)CAPARD'!V290","v":6.7064413023315241},{"$f":"'[1]MONE(M)CAPARD'!W290","v":6.32},null,null,{"$f":"'[1]MONE(M)CAPARD'!AS290","v":5},{"$f":"'[1]MONE(M)CAPARD'!AT290","v":"n.a."},{"$f":"'[1]MONE(M)CAPARD'!AU290","v":5.25},{"$f":"'[1]MONE(M)CAPARD'!AV290","v":7},{"$f":"'[1]MONE(M)CAPARD'!AW290","v":"n.a."},{"$f":"'[1]MONE(M)CAPARD'!AX290","v":4.25},{"$f":"'[1]MONE(M)CAPARD'!AY290","v":"n.a."},null,null,{"$f":"+'Datos_Regional (M)'!CF283","v":13.616453016724407},{"$f":"+'Datos_Regional (M)'!CG283","v":5.7972161174515868},{"$f":"+'Datos_Regional (M)'!CH283","v":32.168513704561086},{"$f":"+'Datos_Regional (M)'!CI283","v":12.863888297372149},{"$f":"+'Datos_Regional (M)'!CJ283","v":26.018404833293161},{"$f":"+'Datos_Regional (M)'!CK283","v":11.010717208040631},{"$f":"+'Datos_Regional (M)'!CL283","v":15.66496267460391},null,null,947.7950062466598,453.46083333333326,837.90833333333319,344.18697943114171,395.61617894761366,771.76666666666654,1362.1340636666669,3750.7339979587487,5112.868061625416,null,null,1488.8459558483337,862.80333333333328,1443.7083333333333,768.55949454657332,588.63557365083341,1446.8666666666666,2250.3972938333336,6599.4193573790735,8849.816651212408,null,null,-2848.6853594203253,-3736.9485895869911,null,null,{"$f":"'[1]EXT Comercio(M)'!C290","v":1033.1592927199954},{"$f":"'[1]EXT Comercio(M)'!D290","v":523.0300000000002},{"$f":"'[1]EXT Comercio(M)'!E290","v":965.29999999999973},{"$f":"'[1]EXT Comercio(M)'!F290","v":353.13768682573095},{"$f":"'[1]EXT Comercio(M)'!G290","v":393.630549834595},{"$f":"'[1]EXT Comercio(M)'!H290","v":912.4},{"$f":"'[1]EXT Comercio(M)'!I290","v":1415.2201380000001},{"$f":"'[1]EXT Comercio(M)'!K290","v":4180.6575293803216},{"$f":"'[1]EXT Comercio(M)'!L290","v":5595.8776673803222},null,null,{"$f":"'[1]EXT Comercio(M)'!AG290","v":1487.5679764100048},{"$f":"'[1]EXT Comercio(M)'!AH290","v":934.80000000000018},{"$f":"'[1]EXT Comercio(M)'!AI290","v":1596.1999999999998},{"$f":"'[1]EXT Comercio(M)'!AJ290","v":784.51932731856641},{"$f":"'[1]EXT Comercio(M)'!AK290","v":596.40600061000021},{"$f":"'[1]EXT Comercio(M)'!AL290","v":1410.3},{"$f":"'[1]EXT Comercio(M)'!AM290","v":2181.6336790000005},{"$f":"'[1]EXT Comercio(M)'!AO290","v":6809.7933043385747},{"$f":"'[1]EXT Comercio(M)'!AP290","v":8991.426983338577},null,null,{"$f":"'[1]EXT Comercio(M)'!$BS290","v":-2629.1357749582512},{"$f":"'[1]EXT Comercio(M)'!$BT290","v":-3395.5493159582511}]
[null,null,"Junio",{"$f":"'[1]REAL IPC(M)'!AD291","v":5.1379035832886322},{"$f":"'[1]REAL IPC(M)'!AE291","v":0.89864739670187033},{"$f":"'[1]REAL IPC(M)'!AF291","v":4.7936949466852123},{"$f":"'[1]REAL IPC(M)'!AG291","v":5.2652895909274893},{"$f":"'[1]REAL IPC(M)'!AH291","v":8.2852699778671468},{"$f":"'[1]REAL IPC(M)'!AI291","v":4.8013245033111804},{"$f":"'[1]REAL IPC(M)'!AJ291","v":4.1432584269662938},null,null,{"$f":"'[1]REAL IMAE(M)'!AG291","v":2.6641960470244945},{"$f":"'[1]REAL IMAE(M)'!AH291","v":0.35537462267496078},{"$f":"'[1]REAL IMAE(M)'!AI291","v":3.5390170278828794},{"$f":"'[1]REAL IMAE(M)'!AJ291","v":1.9985933704077381},{"$f":"'[1]REAL IMAE(M)'!AK291","v":5.4530968910051341},{"$f":"'[1]REAL IMAE(M)'!AL291","v":3.8208573461384883},{"$f":"'[1]REAL IMAE(M)'!AM291","v":7.6929322453618969},null,null,{"$f":"'[1]EXT ITCER(M)'!C291","v":69.822023880323314},{"$f":"'[1]EXT ITCER(M)'!D291","v":90.331626449431681},{"$f":"'[1]EXT ITCER(M)'!E291","v":61.915163064636182},{"$f":"'[1]EXT ITCER(M)'!F291","v":75.966153360318032},{"$f":"'[1]EXT ITCER(M)'!G291","v":94.962948610103723},{"$f":"'[1]EXT ITCER(M)'!H291","v":95.905432835208316},{"$f":"'[1]EXT ITCER(M)'!I291","v":88.300359865762516},null,null,{"$f":"'[1]EXT TC(M)'!J291","v":-0.29265650453334202},{"$f":"'[1]EXT TC(M)'!K291","v":0},{"$f":"'[1]EXT TC(M)'!L291","v":-0.40335907124053261},{"$f":"'[1]EXT TC(M)'!M291","v":4.7487422242585495},{"$f":"'[1]EXT TC(M)'!N291","v":5.3709004596895884},{"$f":"'[1]EXT TC(M)'!O291","v":6.1363764354134487},{"$f":"'[1]EXT TC(M)'!P291","v":0},null,null,{"$f":"'[1]EXT RIN(M)'!C291","v":7877.81888385},{"$f":"'[1]EXT RIN(M)'!D291","v":2887.6},{"$f":"'[1]EXT RIN(M)'!E291","v":7070.9},{"$f":"'[1]EXT RIN(M)'!F291","v":2915.737988576333},{"$f":"'[1]EXT RIN(M)'!G291","v":1705},{"$f":"'[1]EXT RIN(M)'!H291","v":3841.4},{"$f":"'[1]EXT RIN(M)'!I291","v":2790.4651858599996},null,null,{"$f":"'[1]EXT RIN(M)'!P291","v":77.427497617368275},{"$f":"'[1]EXT RIN(M)'!Q291","v":111.86251710807733},{"$f":"'[1]EXT RIN(M)'!R291","v":108.52804007925457},{"$f":"'[1]EXT RIN(M)'!S291","v":78.795258896750354},{"$f":"'[1]EXT RIN(M)'!T291","v":115.82504135130822},{"$f":"'[1]EXT RIN(M)'!U291","v":65.408033753520229},{"$f":"'[1]EXT RIN(M)'!V291","v":228.66128058846354},null,null,{"$f":"+'[1]MONE(M)CAPARD'!AE291","v":1.3906463481584614},{"$f":"'[1]MONE(M)CAPARD'!AF291","v":2.8358681480121208},{"$f":"'[1]MONE(M)CAPARD'!AG291","v":0.63582551760750161},{"$f":"'[1]MONE(M)CAPARD'!AH291","v":6.3408464794151707},{"$f":"'[1]MONE(M)CAPARD'!AI291","v":-7.4077558146578171E-3},{"$f":"'[1]MONE(M)CAPARD'!AJ291","v":-0.12530805687196378},{"$f":"'[1]MONE(M)CAPARD'!AK291","v":-1.9043560350640607},null,null,{"$f":"'[1]MONE(M)CAPARD'!AL291","v":1.97},{"$f":"'[1]MONE(M)CAPARD'!AM291","v":3.76},{"$f":"'[1]MONE(M)CAPARD'!AN291","v":2.89},{"$f":"'[1]MONE(M)CAPARD'!AO291","v":4.28},{"$f":"'[1]MONE(M)CAPARD'!AP291","v":3.3319376986991398},{"$f":"'[1]MONE(M)CAPARD'!AQ291","v":1.98},{"$f":"'[1]MONE(M)CAPARD'!AR291","v":2.16},null,null,{"$f":"'[1]MONE(M)CAPARD'!J291","v":11.149258276226997},{"$f":"'[1]MONE(M)CAPARD'!K291","v":4.1738444587273911},{"$f":"'[1]MONE(M)CAPARD'!L291","v":8.4225535303486083},{"$f":"'[1]MONE(M)CAPARD'!M291","v":14.159188149288202},{"$f":"'[1]MONE(M)CAPARD'!N291","v":10.025850105218534},{"$f":"'[1]MONE(M)CAPARD'!O291","v":7.1742180094787527},{"$f":"'[1]MONE(M)CAPARD'!P291","v":2.0613351314902206},null,null,{"$f":"'[1]MONE(M)CAPARD'!Q291","v":10.72},{"$f":"'[1]MONE(M)CAPARD'!R291","v":5.1100000000000003},{"$f":"'[1]MONE(M)CAPARD'!S291","v":6.09},{"$f":"'[1]MONE(M)CAPARD'!T291","v":8.5299999999999994},{"$f":"'[1]MONE(M)CAPARD'!U291","v":8.2373225753929091},{"$f":"'[1]MONE(M)CAPARD'!V291","v":6.73},{"$f":"'[1]MONE(M)CAPARD'!W291","v":6.29},null,null,{"$f":"'[1]MONE(M)CAPARD'!AS291","v":4},{"$f":"'[1]MONE(M)CAPARD'!AT291","v":"n.a."},{"$f":"'[1]MONE(M)CAPARD'!AU291","v":5.25},{"$f":"'[1]MONE(M)CAPARD'!AV291","v":7},{"$f":"'[1]MONE(M)CAPARD'!AW291","v":"n.a."},{"$f":"'[1]MONE(M)CAPARD'!AX291","v":4.25},{"$f":"'[1]MONE(M)CAPARD'!AY291","v":"n.a."},null,null,{"$f":"+'Datos_Regional (M)'!CF284","v":13.053926246137259},{"$f":"+'Datos_Regional (M)'!CG284","v":6.8273361372162},{"$f":"+'Datos_Regional (M)'!CH284","v":31.548010640737758},{"$f":"+'Datos_Regional (M)'!CI284","v":12.842162374245625},{"$f":"+'Datos_Regional (M)'!CJ284","v":24.664378549513199},{"$f":"+'Datos_Regional (M)'!CK284","v":12.819155045584573},{"$f":"+'Datos_Regional (M)'!CL284","v":14.387020860572042},null,null,948.39523927999323,458.75333333333327,835.95833333333337,338.78549366637873,395.74529793483134,775.54999999999984,1351.2846897500001,3753.1876975478699,5104.4723872978711,null,null,1487.1181843149996,885.3183333333335,1438.0833333333333,764.05027446213535,590.37190535666673,1434.4833333333333,2246.613388416667,6599.4253641338028,8846.0387525504684,null,null,-2846.2376665859315,-3741.5663652525968,null,null,{"$f":"'[1]EXT Comercio(M)'!C291","v":962.47991521999302},{"$f":"'[1]EXT Comercio(M)'!D291","v":455.82999999999993},{"$f":"'[1]EXT Comercio(M)'!E291","v":807.99999999999977},{"$f":"'[1]EXT Comercio(M)'!F291","v":319.99107378284498},{"$f":"'[1]EXT Comercio(M)'!G291","v":390.82480692992203},{"$f":"'[1]EXT Comercio(M)'!H291","v":774.90000000000009},{"$f":"'[1]EXT Comercio(M)'!I291","v":1133.61535},{"$f":"'[1]EXT Comercio(M)'!K291","v":3712.025795932761},{"$f":"'[1]EXT Comercio(M)'!L291","v":4845.641145932761},null,null,{"$f":"'[1]EXT Comercio(M)'!AG291","v":1388.9377574799896},{"$f":"'[1]EXT Comercio(M)'!AH291","v":956.60000000000036},{"$f":"'[1]EXT Comercio(M)'!AI291","v":1382.5000000000002},{"$f":"'[1]EXT Comercio(M)'!AJ291","v":687.55106432674484},{"$f":"'[1]EXT Comercio(M)'!AK291","v":606.57613002000016},{"$f":"'[1]EXT Comercio(M)'!AL291","v":1402.7999999999997},{"$f":"'[1]EXT Comercio(M)'!AM291","v":2079.4782169999999},{"$f":"'[1]EXT Comercio(M)'!AO291","v":6424.9649518267324},{"$f":"'[1]EXT Comercio(M)'!AP291","v":8504.4431688267287},null,null,{"$f":"'[1]EXT Comercio(M)'!$BS291","v":-2712.9391558939733},{"$f":"'[1]EXT Comercio(M)'!$BT291","v":-3658.8020228939713}]
[null,null,"Julio",{"$f":"'[1]REAL IPC(M)'!AD292","v":5.8141562841761356},{"$f":"'[1]REAL IPC(M)'!AE292","v":1.0872595483691123},{"$f":"'[1]REAL IPC(M)'!AF292","v":4.7399057562598133},{"$f":"'[1]REAL IPC(M)'!AG292","v":5.6252529340348065},{"$f":"'[1]REAL IPC(M)'!AH292","v":7.6558827286991598},{"$f":"'[1]REAL IPC(M)'!AI292","v":5.6682027649768818},{"$f":"'[1]REAL IPC(M)'!AJ292","v":4.1316526610644129},null,null,{"$f":"'[1]REAL IMAE(M)'!AG292","v":2.9184151682518524},{"$f":"'[1]REAL IMAE(M)'!AH292","v":1.2905371996378783},{"$f":"'[1]REAL IMAE(M)'!AI292","v":3.4210631549578681},{"$f":"'[1]REAL IMAE(M)'!AJ292","v":1.8688473230565779},{"$f":"'[1]REAL IMAE(M)'!AK292","v":5.2541469226016},{"$f":"'[1]REAL IMAE(M)'!AL292","v":4.8706374281767966},{"$f":"'[1]REAL IMAE(M)'!AM292","v":7.8404457184383771},null,null,{"$f":"'[1]EXT ITCER(M)'!C292","v":69.685105235509681},{"$f":"'[1]EXT ITCER(M)'!D292","v":90.616610465818056},{"$f":"'[1]EXT ITCER(M)'!E292","v":61.890470270641927},{"$f":"'[1]EXT ITCER(M)'!F292","v":76.077856811118949},{"$f":"'[1]EXT ITCER(M)'!G292","v":96.004904793546686},{"$f":"'[1]EXT ITCER(M)'!H292","v":96.523250766066184},{"$f":"'[1]EXT ITCER(M)'!I292","v":88.235212475547783},null,null,{"$f":"'[1]EXT TC(M)'!J292","v":-0.44044398734029599},{"$f":"'[1]EXT TC(M)'!K292","v":0},{"$f":"'[1]EXT TC(M)'!L292","v":-1.8818119672992493E-2},{"$f":"'[1]EXT TC(M)'!M292","v":4.7182492558651949},{"$f":"'[1]EXT TC(M)'!N292","v":5.173394968447969},{"$f":"'[1]EXT TC(M)'!O292","v":7.2337496513624329},{"$f":"'[1]EXT TC(M)'!P292","v":0},null,null,{"$f":"'[1]EXT RIN(M)'!C292","v":7723.7136800400003},{"$f":"'[1]EXT RIN(M)'!D292","v":2864.6},{"$f":"'[1]EXT RIN(M)'!E292","v":6727.1},{"$f":"'[1]EXT RIN(M)'!F292","v":2779.6456492389716},{"$f":"'[1]EXT RIN(M)'!G292","v":1711.1},{"$f":"'[1]EXT RIN(M)'!H292","v":3453.8},{"$f":"'[1]EXT RIN(M)'!I292","v":2734.8101442900002},null,null,{"$f":"'[1]EXT RIN(M)'!P292","v":75.732017445787662},{"$f":"'[1]EXT RIN(M)'!Q292","v":107.52248246838528},{"$f":"'[1]EXT RIN(M)'!R292","v":100.81528564746709},{"$f":"'[1]EXT RIN(M)'!S292","v":78.072214170492956},{"$f":"'[1]EXT RIN(M)'!T292","v":110.75783759433936},{"$f":"'[1]EXT RIN(M)'!U292","v":62.665455584936048},{"$f":"'[1]EXT RIN(M)'!V292","v":231.42975789090184},null,null,{"$f":"+'[1]MONE(M)CAPARD'!AE292","v":0.69541140964888559},{"$f":"'[1]MONE(M)CAPARD'!AF292","v":2.31754274682846},{"$f":"'[1]MONE(M)CAPARD'!AG292","v":0.67795959774171166},{"$f":"'[1]MONE(M)CAPARD'!AH292","v":5.9405747126436763},{"$f":"'[1]MONE(M)CAPARD'!AI292","v":1.6018149633610581},{"$f":"'[1]MONE(M)CAPARD'!AJ292","v":-0.98251199302216985},{"$f":"'[1]MONE(M)CAPARD'!AK292","v":-1.9798520511096047},null,null,{"$f":"'[1]MONE(M)CAPARD'!AL292","v":1.95},{"$f":"'[1]MONE(M)CAPARD'!AM292","v":3.43},{"$f":"'[1]MONE(M)CAPARD'!AN292","v":2.9},{"$f":"'[1]MONE(M)CAPARD'!AO292","v":4.26},{"$f":"'[1]MONE(M)CAPARD'!AP292","v":3.53},{"$f":"'[1]MONE(M)CAPARD'!AQ292","v":1.8},{"$f":"'[1]MONE(M)CAPARD'!AR292","v":2.0699999999999998},null,null,{"$f":"'[1]MONE(M)CAPARD'!J292","v":10.287700718029328},{"$f":"'[1]MONE(M)CAPARD'!K292","v":4.5829123000551562},{"$f":"'[1]MONE(M)CAPARD'!L292","v":8.4782339449541304},{"$f":"'[1]MONE(M)CAPARD'!M292","v":13.760674329501914},{"$f":"'[1]MONE(M)CAPARD'!N292","v":12.651012340626561},{"$f":"'[1]MONE(M)CAPARD'!O292","v":6.7965547317924893},{"$f":"'[1]MONE(M)CAPARD'!P292","v":2.0727101546738527},null,null,{"$f":"'[1]MONE(M)CAPARD'!Q292","v":10.65},{"$f":"'[1]MONE(M)CAPARD'!R292","v":5.72},{"$f":"'[1]MONE(M)CAPARD'!S292","v":6.08},{"$f":"'[1]MONE(M)CAPARD'!T292","v":8.5},{"$f":"'[1]MONE(M)CAPARD'!U292","v":8.57},{"$f":"'[1]MONE(M)CAPARD'!V292","v":6.3},{"$f":"'[1]MONE(M)CAPARD'!W292","v":6.29},null,null,{"$f":"'[1]MONE(M)CAPARD'!AS292","v":4},{"$f":"'[1]MONE(M)CAPARD'!AT292","v":"n.a."},{"$f":"'[1]MONE(M)CAPARD'!AU292","v":5.25},{"$f":"'[1]MONE(M)CAPARD'!AV292","v":7},{"$f":"'[1]MONE(M)CAPARD'!AW292","v":"n.a."},{"$f":"'[1]MONE(M)CAPARD'!AX292","v":4.25},{"$f":"'[1]MONE(M)CAPARD'!AY292","v":"n.a."},null,null,{"$f":"+'Datos_Regional (M)'!CF285","v":12.393023105225831},{"$f":"+'Datos_Regional (M)'!CG285","v":6.6889579238182728},{"$f":"+'Datos_Regional (M)'!CH285","v":30.741721841220084},{"$f":"+'Datos_Regional (M)'!CI285","v":13.483389296978142},{"$f":"+'Datos_Regional (M)'!CJ285","v":23.05294918698193},{"$f":"+'Datos_Regional (M)'!CK285","v":13.846244309921673},{"$f":"+'Datos_Regional (M)'!CL285","v":14.568723072189972},null,null,951.57139153332639,455.96083333333337,839.65,332.53107450996066,395.39473898813708,781.14999999999975,1369.0313333333336,3756.2580383647564,5125.2893716980916,null,null,1496.1863176566656,880.15083333333348,1446.958333333333,768.55643913010954,593.52920729666664,1425.2833333333331,2240.1511520833337,6610.6644640834429,8850.8156161667739,null,null,-2854.4064257186856,-3725.526244468685,null,null,{"$f":"'[1]EXT Comercio(M)'!C292","v":949.37014873999033},{"$f":"'[1]EXT Comercio(M)'!D292","v":491.2800000000002},{"$f":"'[1]EXT Comercio(M)'!E292","v":827.79999999999973},{"$f":"'[1]EXT Comercio(M)'!F292","v":308.36098585298305},{"$f":"'[1]EXT Comercio(M)'!G292","v":410.78718174627591},{"$f":"'[1]EXT Comercio(M)'!H292","v":852.80000000000007},{"$f":"'[1]EXT Comercio(M)'!I292","v":1527.3011940000001},{"$f":"'[1]EXT Comercio(M)'!K292","v":3840.3983163392477},{"$f":"'[1]EXT Comercio(M)'!L292","v":5367.6995103392474},null,null,{"$f":"'[1]EXT Comercio(M)'!AG292","v":1536.8211221100003},{"$f":"'[1]EXT Comercio(M)'!AH292","v":965.05000000000018},{"$f":"'[1]EXT Comercio(M)'!AI292","v":1532.2999999999997},{"$f":"'[1]EXT Comercio(M)'!AJ292","v":804.49349927568892},{"$f":"'[1]EXT Comercio(M)'!AK292","v":622.09360896999988},{"$f":"'[1]EXT Comercio(M)'!AL292","v":1449.9},{"$f":"'[1]EXT Comercio(M)'!AM292","v":2456.997394},{"$f":"'[1]EXT Comercio(M)'!AO292","v":6910.6582303556934},{"$f":"'[1]EXT Comercio(M)'!AP292","v":9367.6556243556915},null,null,{"$f":"'[1]EXT Comercio(M)'!$BS292","v":-3070.2599140164457},{"$f":"'[1]EXT Comercio(M)'!$BT292","v":-3999.9561140164478}]
[null,null,"Agosto",{"$f":"'[1]REAL IPC(M)'!AD293","v":5.3070005331345174},{"$f":"'[1]REAL IPC(M)'!AE293","v":0.99257884972171373},{"$f":"'[1]REAL IPC(M)'!AF293","v":4.4150110375275915},{"$f":"'[1]REAL IPC(M)'!AG293","v":5.3901850362027375},{"$f":"'[1]REAL IPC(M)'!AH293","v":7.9357436536217438},{"$f":"'[1]REAL IPC(M)'!AI293","v":5.3010948905108846},{"$f":"'[1]REAL IPC(M)'!AJ293","v":3.9024390243902451},null,null,{"$f":"'[1]REAL IMAE(M)'!AG293","v":3.0135972878937913},{"$f":"'[1]REAL IMAE(M)'!AH293","v":2.0777899054963771},{"$f":"'[1]REAL IMAE(M)'!AI293","v":3.2796415330634749},{"$f":"'[1]REAL IMAE(M)'!AJ293","v":1.722386490325339},{"$f":"'[1]REAL IMAE(M)'!AK293","v":4.7752241574749288},{"$f":"'[1]REAL IMAE(M)'!AL293","v":5.8368185447105123},{"$f":"'[1]REAL IMAE(M)'!AM293","v":8.2023871719647943},null,null,{"$f":"'[1]EXT ITCER(M)'!C293","v":69.829535990601158},{"$f":"'[1]EXT ITCER(M)'!D293","v":90.757849425598764},{"$f":"'[1]EXT ITCER(M)'!E293","v":62.562470686647757},{"$f":"'[1]EXT ITCER(M)'!F293","v":75.979119568041327},{"$f":"'[1]EXT ITCER(M)'!G293","v":96.137438417396567},{"$f":"'[1]EXT ITCER(M)'!H293","v":97.176834329560762},{"$f":"'[1]EXT ITCER(M)'!I293","v":88.208576285562913},null,null,{"$f":"'[1]EXT TC(M)'!J293","v":-0.17415311761504193},{"$f":"'[1]EXT TC(M)'!K293","v":0},{"$f":"'[1]EXT TC(M)'!L293","v":0.18094465168568796},{"$f":"'[1]EXT TC(M)'!M293","v":4.292082778285609},{"$f":"'[1]EXT TC(M)'!N293","v":5.0308003598337763},{"$f":"'[1]EXT TC(M)'!O293","v":8.3329711154690802},{"$f":"'[1]EXT TC(M)'!P293","v":0},null,null,{"$f":"'[1]EXT RIN(M)'!C293","v":7719.44312145},{"$f":"'[1]EXT RIN(M)'!D293","v":2855.7},{"$f":"'[1]EXT RIN(M)'!E293","v":6745.8},{"$f":"'[1]EXT RIN(M)'!F293","v":2655.8394964333825},{"$f":"'[1]EXT RIN(M)'!G293","v":1746.8},{"$f":"'[1]EXT RIN(M)'!H293","v":3392.6},{"$f":"'[1]EXT RIN(M)'!I293","v":2892.9286542099999},null,null,{"$f":"'[1]EXT RIN(M)'!P293","v":74.734311830849038},{"$f":"'[1]EXT RIN(M)'!Q293","v":106.5124113422272},{"$f":"'[1]EXT RIN(M)'!R293","v":101.98904422521086},{"$f":"'[1]EXT RIN(M)'!S293","v":74.773042463771461},{"$f":"'[1]EXT RIN(M)'!T293","v":112.64170145244994},{"$f":"'[1]EXT RIN(M)'!U293","v":67.590781539782824},{"$f":"'[1]EXT RIN(M)'!V293","v":235.00448915984103},null,null,{"$f":"+'[1]MONE(M)CAPARD'!AE293","v":1.1803578684917311},{"$f":"'[1]MONE(M)CAPARD'!AF293","v":2.3837604482410146},{"$f":"'[1]MONE(M)CAPARD'!AG293","v":1.0103805496828773},{"$f":"'[1]MONE(M)CAPARD'!AH293","v":6.0345419847328223},{"$f":"'[1]MONE(M)CAPARD'!AI293","v":0.79705031659961978},{"$f":"'[1]MONE(M)CAPARD'!AJ293","v":-5.8019235768069735E-2},{"$f":"'[1]MONE(M)CAPARD'!AK293","v":-1.7636150234741796},null,null,{"$f":"'[1]MONE(M)CAPARD'!AL293","v":1.95},{"$f":"'[1]MONE(M)CAPARD'!AM293","v":3.4},{"$f":"'[1]MONE(M)CAPARD'!AN293","v":2.89},{"$f":"'[1]MONE(M)CAPARD'!AO293","v":4.26},{"$f":"'[1]MONE(M)CAPARD'!AP293","v":3.3927653005273783},{"$f":"'[1]MONE(M)CAPARD'!AQ293","v":2.06},{"$f":"'[1]MONE(M)CAPARD'!AR293","v":2.0699999999999998},null,null,{"$f":"'[1]MONE(M)CAPARD'!J293","v":9.9072230849294503},{"$f":"'[1]MONE(M)CAPARD'!K293","v":4.779976118306231},{"$f":"'[1]MONE(M)CAPARD'!L293","v":8.8157716701902764},{"$f":"'[1]MONE(M)CAPARD'!M293","v":14.128274809160303},{"$f":"'[1]MONE(M)CAPARD'!N293","v":12.002240520174732},{"$f":"'[1]MONE(M)CAPARD'!O293","v":7.2163590676718439},{"$f":"'[1]MONE(M)CAPARD'!P293","v":2.3363849765258204},null,null,{"$f":"'[1]MONE(M)CAPARD'!Q293","v":10.28},{"$f":"'[1]MONE(M)CAPARD'!R293","v":5.82},{"$f":"'[1]MONE(M)CAPARD'!S293","v":6.0699999999999994},{"$f":"'[1]MONE(M)CAPARD'!T293","v":8.5299999999999994},{"$f":"'[1]MONE(M)CAPARD'!U293","v":9},{"$f":"'[1]MONE(M)CAPARD'!V293","v":6.54},{"$f":"'[1]MONE(M)CAPARD'!W293","v":6.33},null,null,{"$f":"'[1]MONE(M)CAPARD'!AS293","v":4},{"$f":"'[1]MONE(M)CAPARD'!AT293","v":"n.a."},{"$f":"'[1]MONE(M)CAPARD'!AU293","v":5.25},{"$f":"'[1]MONE(M)CAPARD'!AV293","v":7},{"$f":"'[1]MONE(M)CAPARD'!AW293","v":"n.a."},{"$f":"'[1]MONE(M)CAPARD'!AX293","v":6.25},{"$f":"'[1]MONE(M)CAPARD'!AY293","v":"n.a."},null,null,{"$f":"+'Datos_Regional (M)'!CF286","v":12.790948493496735},{"$f":"+'Datos_Regional (M)'!CG286","v":7.4115240131139348},{"$f":"+'Datos_Regional (M)'!CH286","v":13.803025521758228},{"$f":"+'Datos_Regional (M)'!CI286","v":13.433317439676596},{"$f":"+'Datos_Regional (M)'!CJ286","v":22.13501016312518},{"$f":"+'Datos_Regional (M)'!CK286","v":14.967281049158165},{"$f":"+'Datos_Regional (M)'!CL286","v":13.765231685726764},null,null,{"$f":"IF(EH98=\"\",\"\",+AVERAGE(EH87:EH98))","v":954.57556837499305},{"$f":"IF(EI98=\"\",\"\",+AVERAGE(EI87:EI98))","v":458.34416666666658},{"$f":"IF(EJ98=\"\",\"\",+AVERAGE(EJ87:EJ98))","v":837.52499999999998},{"$f":"IF(EK98=\"\",\"\",+AVERAGE(EK87:EK98))","v":322.58531189050899},{"$f":"IF(EL98=\"\",\"\",+AVERAGE(EL87:EL98))","v":398.03430950425917},{"$f":"IF(EM98=\"\",\"\",+AVERAGE(EM87:EM98))","v":786.21666666666658},{"$f":"IF(EN98=\"\",\"\",+AVERAGE(EN87:EN98))","v":1343.8384170833335},{"$f":"IF(EO98=\"\",\"\",+AVERAGE(EO87:EO98))","v":3757.2810231030944},{"$f":"IF(EP98=\"\",\"\",+AVERAGE(EP87:EP98))","v":5101.1194401864277},null,null,{"$f":"IF(ES98=\"\",\"\",+AVERAGE(ES87:ES98))","v":1490.6308708083316},{"$f":"IF(ET98=\"\",\"\",+AVERAGE(ET87:ET98))","v":884.71500000000003},{"$f":"IF(EU98=\"\",\"\",+AVERAGE(EU87:EU98))","v":1442.5833333333333},{"$f":"IF(EV98=\"\",\"\",+AVERAGE(EV87:EV98))","v":762.30741861478145},{"$f":"IF(EW98=\"\",\"\",+AVERAGE(EW87:EW98))","v":597.77212851000002},{"$f":"IF(EX98=\"\",\"\",+AVERAGE(EX87:EX98))","v":1412.9999999999998},{"$f":"IF(EY98=\"\",\"\",+AVERAGE(EY87:EY98))","v":2211.2395205000007},{"$f":"IF(EZ98=\"\",\"\",+AVERAGE(EZ87:EZ98))","v":6591.0087512664468},{"$f":"IF(FA98=\"\",\"\",+AVERAGE(FA87:FA98))","v":8802.2482717664461},null,null,{"$f":"IF(FD98=\"\",\"\",+AVERAGE(FD87:FD98))","v":-2833.7277281633524},{"$f":"IF(FE98=\"\",\"\",+AVERAGE(FE87:FE98))","v":-3701.128831580018},null,null,{"$f":"'[1]EXT Comercio(M)'!C293","v":951.05228632999388},{"$f":"'[1]EXT Comercio(M)'!D293","v":481.38999999999987},{"$f":"'[1]EXT Comercio(M)'!E293","v":804.39999999999964},{"$f":"'[1]EXT Comercio(M)'!F293","v":287.21256196657896},{"$f":"'[1]EXT Comercio(M)'!G293","v":436.87510522892899},{"$f":"'[1]EXT Comercio(M)'!H293","v":794.30000000000007},{"$f":"'[1]EXT Comercio(M)'!I293","v":1277.2831799999999},{"$f":"'[1]EXT Comercio(M)'!K293","v":3755.2299535255006},{"$f":"'[1]EXT Comercio(M)'!L293","v":5032.5131335254991},null,null,{"$f":"'[1]EXT Comercio(M)'!AG293","v":1525.3824573899974},{"$f":"'[1]EXT Comercio(M)'!AH293","v":905.64999999999964},{"$f":"'[1]EXT Comercio(M)'!AI293","v":1387.1999999999994},{"$f":"'[1]EXT Comercio(M)'!AJ293","v":767.05113136606542},{"$f":"'[1]EXT Comercio(M)'!AK293","v":644.9253041100003},{"$f":"'[1]EXT Comercio(M)'!AL293","v":1424.2000000000003},{"$f":"'[1]EXT Comercio(M)'!AM293","v":2217.5236569999988},{"$f":"'[1]EXT Comercio(M)'!AO293","v":6654.4088928660567},{"$f":"'[1]EXT Comercio(M)'!AP293","v":8871.9325498660619},null,null,{"$f":"'[1]EXT Comercio(M)'!$BS293","v":-2899.1789393405561},{"$f":"'[1]EXT Comercio(M)'!$BT293","v":-3839.4194163405518}]
[null,null,"Setiembre",{"$f":"'[1]REAL IPC(M)'!AD294","v":5.3718385431013242},{"$f":"'[1]REAL IPC(M)'!AE294","v":0.75757575757576445},{"$f":"'[1]REAL IPC(M)'!AF294","v":4.210526315789469},{"$f":"'[1]REAL IPC(M)'!AG294","v":4.9520766773162954},{"$f":"'[1]REAL IPC(M)'!AH294","v":7.3518468085529021},{"$f":"'[1]REAL IPC(M)'!AI294","v":5.1309944701295827},{"$f":"'[1]REAL IPC(M)'!AJ294","v":3.8997214484679681},null,null,{"$f":"'[1]REAL IMAE(M)'!AG294","v":3.0222875138941152},{"$f":"'[1]REAL IMAE(M)'!AH294","v":2.8392089843437973},{"$f":"'[1]REAL IMAE(M)'!AI294","v":3.1111699388268672},{"$f":"'[1]REAL IMAE(M)'!AJ294","v":1.6929423051275778},{"$f":"'[1]REAL IMAE(M)'!AK294","v":4.0980504614696285},{"$f":"'[1]REAL IMAE(M)'!AL294","v":6.4273652806402186},{"$f":"'[1]REAL IMAE(M)'!AM294","v":8.5253640582493091},null,null,{"$f":"'[1]EXT ITCER(M)'!C294","v":70.044362580257996},{"$f":"'[1]EXT ITCER(M)'!D294","v":90.633885794432871},{"$f":"'[1]EXT ITCER(M)'!E294","v":62.73302873339739},{"$f":"'[1]EXT ITCER(M)'!F294","v":76.022105078223831},{"$f":"'[1]EXT ITCER(M)'!G294","v":96.49634419666458},{"$f":"'[1]EXT ITCER(M)'!H294","v":97.300480588886913},{"$f":"'[1]EXT ITCER(M)'!I294","v":88.182682725136445},null,null,{"$f":"'[1]EXT TC(M)'!J294","v":0.50816962174181002},{"$f":"'[1]EXT TC(M)'!K294","v":0},{"$f":"'[1]EXT TC(M)'!L294","v":-0.39333775539943705},{"$f":"'[1]EXT TC(M)'!M294","v":4.2092509661377484},{"$f":"'[1]EXT TC(M)'!N294","v":5.1472357570324849},{"$f":"'[1]EXT TC(M)'!O294","v":8.6956632640047395},{"$f":"'[1]EXT TC(M)'!P294","v":0},null,null,{"$f":"'[1]EXT RIN(M)'!C294","v":7617.35809264},{"$f":"'[1]EXT RIN(M)'!D294","v":2889},{"$f":"'[1]EXT RIN(M)'!E294","v":6583.6},{"$f":"'[1]EXT RIN(M)'!F294","v":2561.1840444518798},{"$f":"'[1]EXT RIN(M)'!G294","v":1731.7},{"$f":"'[1]EXT RIN(M)'!H294","v":3343.8},{"$f":"'[1]EXT RIN(M)'!I294","v":2425.49320433},null,null,{"$f":"'[1]EXT RIN(M)'!P294","v":72.076200277111312},{"$f":"'[1]EXT RIN(M)'!Q294","v":106.20507468359968},{"$f":"'[1]EXT RIN(M)'!R294","v":101.48287811173591},{"$f":"'[1]EXT RIN(M)'!S294","v":73.398923906610648},{"$f":"'[1]EXT RIN(M)'!T294","v":111.98363388794186},{"$f":"'[1]EXT RIN(M)'!U294","v":65.34049423502222},{"$f":"'[1]EXT RIN(M)'!V294","v":192.60210367374592},null,null,{"$f":"+'[1]MONE(M)CAPARD'!AE294","v":1.1180989846891207},{"$f":"'[1]MONE(M)CAPARD'!AF294","v":2.7615037593984897},{"$f":"'[1]MONE(M)CAPARD'!AG294","v":1.2373737373737419},{"$f":"'[1]MONE(M)CAPARD'!AH294","v":6.3151902587519011},{"$f":"'[1]MONE(M)CAPARD'!AI294","v":1.9995593821264486},{"$f":"'[1]MONE(M)CAPARD'!AJ294","v":1.7302276450806746},{"$f":"'[1]MONE(M)CAPARD'!AK294","v":-1.7802949061662214},null,null,{"$f":"'[1]MONE(M)CAPARD'!AL294","v":1.9650000000000001},{"$f":"'[1]MONE(M)CAPARD'!AM294","v":3.54},{"$f":"'[1]MONE(M)CAPARD'!AN294","v":2.92},{"$f":"'[1]MONE(M)CAPARD'!AO294","v":4.22},{"$f":"'[1]MONE(M)CAPARD'!AP294","v":3.7918328285247744},{"$f":"'[1]MONE(M)CAPARD'!AQ294","v":1.61},{"$f":"'[1]MONE(M)CAPARD'!AR294","v":2.0499999999999998},null,null,{"$f":"'[1]MONE(M)CAPARD'!J294","v":9.9724571595098581},{"$f":"'[1]MONE(M)CAPARD'!K294","v":5.0640601503759335},{"$f":"'[1]MONE(M)CAPARD'!L294","v":9.038888888888895},{"$f":"'[1]MONE(M)CAPARD'!M294","v":14.461765601217653},{"$f":"'[1]MONE(M)CAPARD'!N294","v":13.472204834616125},{"$f":"'[1]MONE(M)CAPARD'!O294","v":8.4837069931879476},{"$f":"'[1]MONE(M)CAPARD'!P294","v":2.3101876675603199},null,null,{"$f":"'[1]MONE(M)CAPARD'!Q294","v":10.31},{"$f":"'[1]MONE(M)CAPARD'!R294","v":5.86},{"$f":"'[1]MONE(M)CAPARD'!S294","v":6.09},{"$f":"'[1]MONE(M)CAPARD'!T294","v":8.5500000000000007},{"$f":"'[1]MONE(M)CAPARD'!U294","v":8.4371588097991239},{"$f":"'[1]MONE(M)CAPARD'!V294","v":6.33},{"$f":"'[1]MONE(M)CAPARD'!W294","v":6.3},null,null,{"$f":"'[1]MONE(M)CAPARD'!AS294","v":4},{"$f":"'[1]MONE(M)CAPARD'!AT294","v":"n.a."},{"$f":"'[1]MONE(M)CAPARD'!AU294","v":5.25},{"$f":"'[1]MONE(M)CAPARD'!AV294","v":7},{"$f":"'[1]MONE(M)CAPARD'!AW294","v":"n.a."},{"$f":"'[1]MONE(M)CAPARD'!AX294","v":6.25},{"$f":"'[1]MONE(M)CAPARD'!AY294","v":"n.a."},null,null,{"$f":"+'Datos_Regional (M)'!CF287","v":12.396638561788809},{"$f":"+'Datos_Regional (M)'!CG287","v":7.1093022634140635},{"$f":"+'Datos_Regional (M)'!CH287","v":12.948007650078486},{"$f":"+'Datos_Regional (M)'!CI287","v":12.966578355250192},{"$f":"+'Datos_Regional (M)'!CJ287","v":21.916701226877432},{"$f":"+'Datos_Regional (M)'!CK287","v":16.022003524533758},{"$f":"+'Datos_Regional (M)'!CL287","v":12.231295282375655},null,null,960.17756597916002,459.73166666666674,833.07499999999982,320.95641491749387,399.18790651647487,785.50833333333333,1373.5021268333333,3758.636887413129,5132.1390142464625,null,null,1506.943693496665,889.60083333333341,1458.625,758.77058631297348,595.80796747166664,1406.7,2192.1532306666672,6616.4480806146385,8808.6013112813034,null,null,-2857.8111932015108,-3676.4622970348441,null,null,{"$f":"'[1]EXT Comercio(M)'!C294","v":974.4681237199984},{"$f":"'[1]EXT Comercio(M)'!D294","v":426.59000000000015},{"$f":"'[1]EXT Comercio(M)'!E294","v":731.7999999999995},{"$f":"'[1]EXT Comercio(M)'!F294","v":289.95675158381891},{"$f":"'[1]EXT Comercio(M)'!G294","v":400.01175709045697},{"$f":"'[1]EXT Comercio(M)'!H294","v":730.5},{"$f":"'[1]EXT Comercio(M)'!I294","v":1634.3786709999999},{"$f":"'[1]EXT Comercio(M)'!K294","v":3553.3266323942735},{"$f":"'[1]EXT Comercio(M)'!L294","v":5187.7053033942721},null,null,{"$f":"'[1]EXT Comercio(M)'!AG294","v":1500.6206973900016},{"$f":"'[1]EXT Comercio(M)'!AH294","v":848.68000000000029},{"$f":"'[1]EXT Comercio(M)'!AI294","v":1473.8000000000006},{"$f":"'[1]EXT Comercio(M)'!AJ294","v":733.25784338830363},{"$f":"'[1]EXT Comercio(M)'!AK294","v":560.35750647000009},{"$f":"'[1]EXT Comercio(M)'!AL294","v":1375.4},{"$f":"'[1]EXT Comercio(M)'!AM294","v":2235.7307730000002},{"$f":"'[1]EXT Comercio(M)'!AO294","v":6492.1160472483025},{"$f":"'[1]EXT Comercio(M)'!AP294","v":8727.8468202482909},null,null,{"$f":"'[1]EXT Comercio(M)'!$BS294","v":-2938.7894148540363},{"$f":"'[1]EXT Comercio(M)'!$BT294","v":-3540.141516854037}]
[null,null,"Octubre",{"$f":"'[1]REAL IPC(M)'!AD295","v":4.1061599231433501},{"$f":"'[1]REAL IPC(M)'!AE295","v":0.53540108926428354},{"$f":"'[1]REAL IPC(M)'!AF295","v":4.1544655929721745},{"$f":"'[1]REAL IPC(M)'!AG295","v":4.6123260437375837},{"$f":"'[1]REAL IPC(M)'!AH295","v":6.8305985700632972},{"$f":"'[1]REAL IPC(M)'!AI295","v":4.7390793162702032},{"$f":"'[1]REAL IPC(M)'!AJ295","v":3.8942976356050076},null,null,{"$f":"'[1]REAL IMAE(M)'!AG295","v":2.9517939249733258},{"$f":"'[1]REAL IMAE(M)'!AH295","v":2.9993060886063851},{"$f":"'[1]REAL IMAE(M)'!AI295","v":2.9875673486664551},{"$f":"'[1]REAL IMAE(M)'!AJ295","v":1.861207947539804},{"$f":"'[1]REAL IMAE(M)'!AK295","v":3.480810155526306},{"$f":"'[1]REAL IMAE(M)'!AL295","v":6.6606616163354451},{"$f":"'[1]REAL IMAE(M)'!AM295","v":8.5445934651967992},null,null,{"$f":"'[1]EXT ITCER(M)'!C295","v":70.454019832400959},{"$f":"'[1]EXT ITCER(M)'!D295","v":90.807291276698834},{"$f":"'[1]EXT ITCER(M)'!E295","v":62.913723414930907},{"$f":"'[1]EXT ITCER(M)'!F295","v":75.996915767587026},{"$f":"'[1]EXT ITCER(M)'!G295","v":97.058239379242451},{"$f":"'[1]EXT ITCER(M)'!H295","v":97.087398571905041},{"$f":"'[1]EXT ITCER(M)'!I295","v":88.111768544600068},null,null,{"$f":"'[1]EXT TC(M)'!J295","v":0.31655064613806655},{"$f":"'[1]EXT TC(M)'!K295","v":0},{"$f":"'[1]EXT TC(M)'!L295","v":1.0959228311530642},{"$f":"'[1]EXT TC(M)'!M295","v":3.8486807564108596},{"$f":"'[1]EXT TC(M)'!N295","v":5.4901831566368777},{"$f":"'[1]EXT TC(M)'!O295","v":7.6358858992145233},{"$f":"'[1]EXT TC(M)'!P295","v":0},null,null,{"$f":"'[1]EXT RIN(M)'!C295","v":7441.1258433399998},{"$f":"'[1]EXT RIN(M)'!D295","v":2847.7},{"$f":"'[1]EXT RIN(M)'!E295","v":6657.8},{"$f":"'[1]EXT RIN(M)'!F295","v":2499.9386394088324},{"$f":"'[1]EXT RIN(M)'!G295","v":1749.2},{"$f":"'[1]EXT RIN(M)'!H295","v":3648.2},{"$f":"'[1]EXT RIN(M)'!I295","v":2677.7236857100006},null,null,{"$f":"'[1]EXT RIN(M)'!P295","v":70.565282784660454},{"$f":"'[1]EXT RIN(M)'!Q295","v":105.58393175474659},{"$f":"'[1]EXT RIN(M)'!R295","v":103.06835281079569},{"$f":"'[1]EXT RIN(M)'!S295","v":73.8593629860585},{"$f":"'[1]EXT RIN(M)'!T295","v":110.85737377179802},{"$f":"'[1]EXT RIN(M)'!U295","v":65.732115796516183},{"$f":"'[1]EXT RIN(M)'!V295","v":215.9522940385815},null,null,{"$f":"+'[1]MONE(M)CAPARD'!AE295","v":2.3474500247255503},{"$f":"'[1]MONE(M)CAPARD'!AF295","v":3.1079588651179892},{"$f":"'[1]MONE(M)CAPARD'!AG295","v":1.2630609734668843},{"$f":"'[1]MONE(M)CAPARD'!AH295","v":6.5457620676548762},{"$f":"'[1]MONE(M)CAPARD'!AI295","v":2.6160016062897684},{"$f":"'[1]MONE(M)CAPARD'!AJ295","v":2.7505690354891956},{"$f":"'[1]MONE(M)CAPARD'!AK295","v":-1.7077911646586352},null,null,{"$f":"'[1]MONE(M)CAPARD'!AL295","v":1.9550000000000001},{"$f":"'[1]MONE(M)CAPARD'!AM295","v":3.66},{"$f":"'[1]MONE(M)CAPARD'!AN295","v":2.92},{"$f":"'[1]MONE(M)CAPARD'!AO295","v":4.18},{"$f":"'[1]MONE(M)CAPARD'!AP295","v":3.79075888533814},{"$f":"'[1]MONE(M)CAPARD'!AQ295","v":1.57},{"$f":"'[1]MONE(M)CAPARD'!AR295","v":2.12},null,null,{"$f":"'[1]MONE(M)CAPARD'!J295","v":11.520778487758202},{"$f":"'[1]MONE(M)CAPARD'!K295","v":5.0873611238637428},{"$f":"'[1]MONE(M)CAPARD'!L295","v":9.1263820066772183},{"$f":"'[1]MONE(M)CAPARD'!M295","v":14.948213606993528},{"$f":"'[1]MONE(M)CAPARD'!N295","v":15.235752108097826},{"$f":"'[1]MONE(M)CAPARD'!O295","v":9.5388662464381664},{"$f":"'[1]MONE(M)CAPARD'!P295","v":2.286653279785809},null,null,{"$f":"'[1]MONE(M)CAPARD'!Q295","v":10.56},{"$f":"'[1]MONE(M)CAPARD'!R295","v":5.65},{"$f":"'[1]MONE(M)CAPARD'!S295","v":6.07},{"$f":"'[1]MONE(M)CAPARD'!T295","v":8.6},{"$f":"'[1]MONE(M)CAPARD'!U295","v":8.8000000000000007},{"$f":"'[1]MONE(M)CAPARD'!V295","v":7.06},{"$f":"'[1]MONE(M)CAPARD'!W295","v":6.27},null,null,{"$f":"'[1]MONE(M)CAPARD'!AS295","v":4},{"$f":"'[1]MONE(M)CAPARD'!AT295","v":"n.a."},{"$f":"'[1]MONE(M)CAPARD'!AU295","v":5},{"$f":"'[1]MONE(M)CAPARD'!AV295","v":7},{"$f":"'[1]MONE(M)CAPARD'!AW295","v":"n.a."},{"$f":"'[1]MONE(M)CAPARD'!AX295","v":6.25},{"$f":"'[1]MONE(M)CAPARD'!AY295","v":"n.a."},null,null,{"$f":"+'Datos_Regional (M)'!CF288","v":12.248832748387661},{"$f":"+'Datos_Regional (M)'!CG288","v":7.5100229844768274},{"$f":"+'Datos_Regional (M)'!CH288","v":12.901375372748024},{"$f":"+'Datos_Regional (M)'!CI288","v":14.253800763250467},{"$f":"+'Datos_Regional (M)'!CJ288","v":22.480960046968335},{"$f":"+'Datos_Regional (M)'!CK288","v":15.121675909007969},{"$f":"+'Datos_Regional (M)'!CL288","v":11.883545944689832},null,null,968.23796949249379,460.36166666666662,835.95833333333303,320.4087637134383,399.71873799240262,791.58333333333337,1370.0661808333334,3776.2688045316681,5146.3349853650025,null,null,1506.4297822583333,893.8950000000001,1464.7250000000001,757.63866712968229,594.13862683583341,1412.6666666666667,2169.5671064166663,6629.4937428905168,8799.0608493071832,null,null,-2853.2249383588482,-3652.7258639421816,null,null,{"$f":"'[1]EXT Comercio(M)'!C295","v":1016.3347933399982},{"$f":"'[1]EXT Comercio(M)'!D295","v":452.55000000000018},{"$f":"'[1]EXT Comercio(M)'!E295","v":767.09999999999945},{"$f":"'[1]EXT Comercio(M)'!F295","v":269.319031891333},{"$f":"'[1]EXT Comercio(M)'!G295","v":442.44467562146997},{"$f":"'[1]EXT Comercio(M)'!H295","v":829.9},{"$f":"'[1]EXT Comercio(M)'!I295","v":1594.8113669999998},{"$f":"'[1]EXT Comercio(M)'!K295","v":3777.6485008528034},{"$f":"'[1]EXT Comercio(M)'!L295","v":5372.4598678528127},null,null,{"$f":"'[1]EXT Comercio(M)'!AG295","v":1610.0182660000046},{"$f":"'[1]EXT Comercio(M)'!AH295","v":915.08000000000084},{"$f":"'[1]EXT Comercio(M)'!AI295","v":1604.9000000000003},{"$f":"'[1]EXT Comercio(M)'!AJ295","v":797.66830008050692},{"$f":"'[1]EXT Comercio(M)'!AK295","v":637.24919018000026},{"$f":"'[1]EXT Comercio(M)'!AL295","v":1590.9},{"$f":"'[1]EXT Comercio(M)'!AM295","v":2414.210865},{"$f":"'[1]EXT Comercio(M)'!AO295","v":7155.8157562605193},{"$f":"'[1]EXT Comercio(M)'!AP295","v":9570.0266212605347},null,null,{"$f":"'[1]EXT Comercio(M)'!$BS295","v":-3378.1672554077122},{"$f":"'[1]EXT Comercio(M)'!$BT295","v":-4197.5667534077111}]
[null,null,"Noviembre",{"$f":"'[1]REAL IPC(M)'!AD296","v":3.4431410651304986},{"$f":"'[1]REAL IPC(M)'!AE296","v":0.75799593270474497},{"$f":"'[1]REAL IPC(M)'!AF296","v":4.6307312162533201},{"$f":"'[1]REAL IPC(M)'!AG296","v":4.7240968638348573},{"$f":"'[1]REAL IPC(M)'!AH296","v":6.2944611064371863},{"$f":"'[1]REAL IPC(M)'!AI296","v":4.1430754021748495},{"$f":"'[1]REAL IPC(M)'!AJ296","v":3.8194444444444455},null,null,{"$f":"'[1]REAL IMAE(M)'!AG296","v":2.8430131232673714},{"$f":"'[1]REAL IMAE(M)'!AH296","v":2.6419424336814772},{"$f":"'[1]REAL IMAE(M)'!AI296","v":2.9716210504239178},{"$f":"'[1]REAL IMAE(M)'!AJ296","v":2.18258267787908},{"$f":"'[1]REAL IMAE(M)'!AK296","v":3.1405820245090177},{"$f":"'[1]REAL IMAE(M)'!AL296","v":6.625805585812711},{"$f":"'[1]REAL IMAE(M)'!AM296","v":8.174483904136661},null,null,{"$f":"'[1]EXT ITCER(M)'!C296","v":70.411951609590616},{"$f":"'[1]EXT ITCER(M)'!D296","v":90.899667570955046},{"$f":"'[1]EXT ITCER(M)'!E296","v":62.239367502190639},{"$f":"'[1]EXT ITCER(M)'!F296","v":76.005842186739841},{"$f":"'[1]EXT ITCER(M)'!G296","v":97.048409486772258},{"$f":"'[1]EXT ITCER(M)'!H296","v":97.258110799890886},{"$f":"'[1]EXT ITCER(M)'!I296","v":88.215243422433588},null,null,{"$f":"'[1]EXT TC(M)'!J296","v":-0.17090271691501532},{"$f":"'[1]EXT TC(M)'!K296","v":0},{"$f":"'[1]EXT TC(M)'!L296","v":0.29295880759910992},{"$f":"'[1]EXT TC(M)'!M296","v":3.5359046398111702},{"$f":"'[1]EXT TC(M)'!N296","v":5.2654569485915896},{"$f":"'[1]EXT TC(M)'!O296","v":6.3239473651262683},{"$f":"'[1]EXT TC(M)'!P296","v":0},null,null,{"$f":"'[1]EXT RIN(M)'!C296","v":7398.0345456100004},{"$f":"'[1]EXT RIN(M)'!D296","v":2747.7},{"$f":"'[1]EXT RIN(M)'!E296","v":6957.6},{"$f":"'[1]EXT RIN(M)'!F296","v":2383.4106976996054},{"$f":"'[1]EXT RIN(M)'!G296","v":1754.9},{"$f":"'[1]EXT RIN(M)'!H296","v":3542},{"$f":"'[1]EXT RIN(M)'!I296","v":3148.2979409499999},null,null,{"$f":"'[1]EXT RIN(M)'!P296","v":68.239359648146078},{"$f":"'[1]EXT RIN(M)'!Q296","v":104.22988917347446},{"$f":"'[1]EXT RIN(M)'!R296","v":107.94972485796843},{"$f":"'[1]EXT RIN(M)'!S296","v":69.536208082678669},{"$f":"'[1]EXT RIN(M)'!T296","v":110.44094342326775},{"$f":"'[1]EXT RIN(M)'!U296","v":64.374015176560718},{"$f":"'[1]EXT RIN(M)'!V296","v":266.77768268683968},null,null,{"$f":"+'[1]MONE(M)CAPARD'!AE296","v":3.0034460505345075},{"$f":"'[1]MONE(M)CAPARD'!AF296","v":3.1779155963302821},{"$f":"'[1]MONE(M)CAPARD'!AG296","v":0.83079681623370694},{"$f":"'[1]MONE(M)CAPARD'!AH296","v":6.3747536012130386},{"$f":"'[1]MONE(M)CAPARD'!AI296","v":2.8671441521711718},{"$f":"'[1]MONE(M)CAPARD'!AJ296","v":2.9065058681394946},{"$f":"'[1]MONE(M)CAPARD'!AK296","v":-1.608026755852844},null,null,{"$f":"'[1]MONE(M)CAPARD'!AL296","v":1.855},{"$f":"'[1]MONE(M)CAPARD'!AM296","v":3.96},{"$f":"'[1]MONE(M)CAPARD'!AN296","v":2.93},{"$f":"'[1]MONE(M)CAPARD'!AO296","v":4.16},{"$f":"'[1]MONE(M)CAPARD'!AP296","v":3.4646361978997793},{"$f":"'[1]MONE(M)CAPARD'!AQ296","v":1.69},{"$f":"'[1]MONE(M)CAPARD'!AR296","v":2.15},null,null,{"$f":"'[1]MONE(M)CAPARD'!J296","v":12.245238112881854},{"$f":"'[1]MONE(M)CAPARD'!K296","v":4.3887376146789059},{"$f":"'[1]MONE(M)CAPARD'!L296","v":8.6487676025540061},{"$f":"'[1]MONE(M)CAPARD'!M296","v":14.815981804397266},{"$f":"'[1]MONE(M)CAPARD'!N296","v":13.391560530559151},{"$f":"'[1]MONE(M)CAPARD'!O296","v":10.07933034173287},{"$f":"'[1]MONE(M)CAPARD'!P296","v":2.4374581939799316},null,null,{"$f":"'[1]MONE(M)CAPARD'!Q296","v":10.47},{"$f":"'[1]MONE(M)CAPARD'!R296","v":5.18},{"$f":"'[1]MONE(M)CAPARD'!S296","v":6.07},{"$f":"'[1]MONE(M)CAPARD'!T296","v":8.5299999999999994},{"$f":"'[1]MONE(M)CAPARD'!U296","v":8.5},{"$f":"'[1]MONE(M)CAPARD'!V296","v":5.68},{"$f":"'[1]MONE(M)CAPARD'!W296","v":6.35},null,null,{"$f":"'[1]MONE(M)CAPARD'!AS296","v":4},{"$f":"'[1]MONE(M)CAPARD'!AT296","v":"n.a."},{"$f":"'[1]MONE(M)CAPARD'!AU296","v":5},{"$f":"'[1]MONE(M)CAPARD'!AV296","v":7},{"$f":"'[1]MONE(M)CAPARD'!AW296","v":"n.a."},{"$f":"'[1]MONE(M)CAPARD'!AX296","v":6.25},{"$f":"'[1]MONE(M)CAPARD'!AY296","v":"n.a."},null,null,{"$f":"+'Datos_Regional (M)'!CF289","v":13.208663820386501},{"$f":"+'Datos_Regional (M)'!CG289","v":8.1171019584728619},{"$f":"+'Datos_Regional (M)'!CH289","v":11.953187365533546},{"$f":"+'Datos_Regional (M)'!CI289","v":13.735545684195017},{"$f":"+'Datos_Regional (M)'!CJ289","v":21.874068722022024},{"$f":"+'Datos_Regional (M)'!CK289","v":15.238444749241165},{"$f":"+'Datos_Regional (M)'!CL289","v":-4.3446684991081614},null,null,968.96319880832743,459.26499999999993,835.51666666666642,323.67159110031918,400.17871728921256,781.54166666666663,1341.7389346666666,3769.1368405311928,5110.8757751978601,null,null,1503.403291557499,899.43916666666689,1465.7583333333332,761.39202402219507,595.8950592975001,1407.6333333333332,2149.2692059999995,6633.5212082105281,8782.7904142105272,null,null,-2864.3843676793363,-3671.9146390126684,null,null,{"$f":"'[1]EXT Comercio(M)'!C296","v":991.88578880999739},{"$f":"'[1]EXT Comercio(M)'!D296","v":403.59999999999945},{"$f":"'[1]EXT Comercio(M)'!E296","v":803},{"$f":"'[1]EXT Comercio(M)'!F296","v":288.85412457257007},{"$f":"'[1]EXT Comercio(M)'!G296","v":403.83811956880101},{"$f":"'[1]EXT Comercio(M)'!H296","v":755.8},{"$f":"'[1]EXT Comercio(M)'!I296","v":1369.2466300000001},{"$f":"'[1]EXT Comercio(M)'!K296","v":3646.9780329513669},{"$f":"'[1]EXT Comercio(M)'!L296","v":5016.2246629513611},null,null,{"$f":"'[1]EXT Comercio(M)'!AG296","v":1515.0700888600047},{"$f":"'[1]EXT Comercio(M)'!AH296","v":927.39999999999964},{"$f":"'[1]EXT Comercio(M)'!AI296","v":1443.5000000000009},{"$f":"'[1]EXT Comercio(M)'!AJ296","v":807.00860127015039},{"$f":"'[1]EXT Comercio(M)'!AK296","v":608.97185760000002},{"$f":"'[1]EXT Comercio(M)'!AL296","v":1415.5},{"$f":"'[1]EXT Comercio(M)'!AM296","v":2011.2317300000004},{"$f":"'[1]EXT Comercio(M)'!AO296","v":6717.4505477301573},{"$f":"'[1]EXT Comercio(M)'!AP296","v":8728.6822777301422},null,null,{"$f":"'[1]EXT Comercio(M)'!$BS296","v":-3070.4725147787867},{"$f":"'[1]EXT Comercio(M)'!$BT296","v":-3712.4576147787884}]
[null,null,"Diciembre ",{"$f":"'[1]REAL IPC(M)'!AD297","v":3.6795406730651412},{"$f":"'[1]REAL IPC(M)'!AE297","v":0.78609081660964453},{"$f":"'[1]REAL IPC(M)'!AF297","v":4.3874021481886105},{"$f":"'[1]REAL IPC(M)'!AG297","v":4.9167327517843118},{"$f":"'[1]REAL IPC(M)'!AH297","v":5.6748063186391358},{"$f":"'[1]REAL IPC(M)'!AI297","v":3.8760382245243932},{"$f":"'[1]REAL IPC(M)'!AJ297","v":3.7370242214532876},null,null,{"$f":"'[1]REAL IMAE(M)'!AG297","v":2.9620154965667198},{"$f":"'[1]REAL IMAE(M)'!AH297","v":2.7631006393239526},{"$f":"'[1]REAL IMAE(M)'!AI297","v":3.105970529354265},{"$f":"'[1]REAL IMAE(M)'!AJ297","v":2.5382652513763402},{"$f":"'[1]REAL IMAE(M)'!AK297","v":3.2273006881502391},{"$f":"'[1]REAL IMAE(M)'!AL297","v":6.4309447730466758},{"$f":"'[1]REAL IMAE(M)'!AM297","v":7.4892981973844375},null,null,{"$f":"'[1]EXT ITCER(M)'!C297","v":70.230680041166508},{"$f":"'[1]EXT ITCER(M)'!D297","v":91.156747677210291},{"$f":"'[1]EXT ITCER(M)'!E297","v":61.932366806798193},{"$f":"'[1]EXT ITCER(M)'!F297","v":76.137407742410645},{"$f":"'[1]EXT ITCER(M)'!G297","v":96.356493360117994},{"$f":"'[1]EXT ITCER(M)'!H297","v":97.483713753861863},{"$f":"'[1]EXT ITCER(M)'!I297","v":88.212479436528639},null,null,{"$f":"'[1]EXT TC(M)'!J297","v":-0.16692475400134169},{"$f":"'[1]EXT TC(M)'!K297","v":0},{"$f":"'[1]EXT TC(M)'!L297","v":-0.39270705044374349},{"$f":"'[1]EXT TC(M)'!M297","v":3.3478630343798441},{"$f":"'[1]EXT TC(M)'!N297","v":4.9133741864135017},{"$f":"'[1]EXT TC(M)'!O297","v":6.0601006379489926},{"$f":"'[1]EXT TC(M)'!P297","v":0},null,null,{"$f":"'[1]EXT RIN(M)'!C297","v":7330.8633171600004},{"$f":"'[1]EXT RIN(M)'!D297","v":2720.7},{"$f":"'[1]EXT RIN(M)'!E297","v":7272.6},{"$f":"'[1]EXT RIN(M)'!F297","v":3055.9363093790512},{"$f":"'[1]EXT RIN(M)'!G297","v":1840},{"$f":"'[1]EXT RIN(M)'!H297","v":4386.5041908662597},{"$f":"'[1]EXT RIN(M)'!I297","v":2748.6520483199997},null,null,{"$f":"'[1]EXT RIN(M)'!P297","v":67.018715700381037},{"$f":"'[1]EXT RIN(M)'!Q297","v":102.02968074801515},{"$f":"'[1]EXT RIN(M)'!R297","v":99.520485668955246},{"$f":"'[1]EXT RIN(M)'!S297","v":82.706719369155394},{"$f":"'[1]EXT RIN(M)'!T297","v":112.84486146522967},{"$f":"'[1]EXT RIN(M)'!U297","v":73.433376910943338},{"$f":"'[1]EXT RIN(M)'!V297","v":232.01845812774121},null,null,{"$f":"+'[1]MONE(M)CAPARD'!AE297","v":2.7203624829209763},{"$f":"'[1]MONE(M)CAPARD'!AF297","v":3.1888419893558368},{"$f":"'[1]MONE(M)CAPARD'!AG297","v":1.0275165678409421},{"$f":"'[1]MONE(M)CAPARD'!AH297","v":6.1222524565381571},{"$f":"'[1]MONE(M)CAPARD'!AI297","v":2.8634456795500021},{"$f":"'[1]MONE(M)CAPARD'!AJ297","v":3.3250803886166604},{"$f":"'[1]MONE(M)CAPARD'!AK297","v":-1.5684122748499005},null,null,{"$f":"'[1]MONE(M)CAPARD'!AL297","v":1.8599999999999999},{"$f":"'[1]MONE(M)CAPARD'!AM297","v":4},{"$f":"'[1]MONE(M)CAPARD'!AN297","v":2.94},{"$f":"'[1]MONE(M)CAPARD'!AO297","v":4.18},{"$f":"'[1]MONE(M)CAPARD'!AP297","v":3.08},{"$f":"'[1]MONE(M)CAPARD'!AQ297","v":1.79},{"$f":"'[1]MONE(M)CAPARD'!AR297","v":2.11},null,null,{"$f":"'[1]MONE(M)CAPARD'!J297","v":12.018243180905561},{"$f":"'[1]MONE(M)CAPARD'!K297","v":4.7664406313084884},{"$f":"'[1]MONE(M)CAPARD'!L297","v":8.9211893965817861},{"$f":"'[1]MONE(M)CAPARD'!M297","v":14.643295540438384},{"$f":"'[1]MONE(M)CAPARD'!N297","v":12.652400166572139},{"$f":"'[1]MONE(M)CAPARD'!O297","v":9.8039566675264727},{"$f":"'[1]MONE(M)CAPARD'!P297","v":2.4802868579052695},null,null,{"$f":"'[1]MONE(M)CAPARD'!Q297","v":10.53},{"$f":"'[1]MONE(M)CAPARD'!R297","v":5.59},{"$f":"'[1]MONE(M)CAPARD'!S297","v":6.06},{"$f":"'[1]MONE(M)CAPARD'!T297","v":8.48},{"$f":"'[1]MONE(M)CAPARD'!U297","v":8.0299999999999994},{"$f":"'[1]MONE(M)CAPARD'!V297","v":7.17},{"$f":"'[1]MONE(M)CAPARD'!W297","v":6.31},null,null,{"$f":"'[1]MONE(M)CAPARD'!AS297","v":3.75},{"$f":"'[1]MONE(M)CAPARD'!AT297","v":"n.a."},{"$f":"'[1]MONE(M)CAPARD'!AU297","v":5},{"$f":"'[1]MONE(M)CAPARD'!AV297","v":7},{"$f":"'[1]MONE(M)CAPARD'!AW297","v":"n.a."},{"$f":"'[1]MONE(M)CAPARD'!AX297","v":6.25},{"$f":"'[1]MONE(M)CAPARD'!AY297","v":"n.a."},null,null,{"$f":"+'Datos_Regional (M)'!CF290","v":13.086229132800042},{"$f":"+'Datos_Regional (M)'!CG290","v":7.9849470537860512},{"$f":"+'Datos_Regional (M)'!CH290","v":10.166199221924632},{"$f":"+'Datos_Regional (M)'!CI290","v":13.599401069967175},{"$f":"+'Datos_Regional (M)'!CJ290","v":20.247758493291013},{"$f":"+'Datos_Regional (M)'!CK290","v":15.238610543426368},{"$f":"+'Datos_Regional (M)'!CL290","v":-8.6862357311441318},null,null,969.59492761499439,459.94166666666666,835.68333333333305,327.44879043828752,399.53038132293705,785.36666666666679,1313.669114,3777.5657660428856,5091.2348800428854,null,null,1496.8095505191657,895.62833333333344,1459.6250000000002,762.68996295340912,593.22580926166677,1400.1000000000001,2143.3555729999994,6608.078656067576,8751.4342290675759,null,null,-2830.5128900246896,-3660.1993490246896,null,null,{"$f":"'[1]EXT Comercio(M)'!C297","v":888.2552155999947},{"$f":"'[1]EXT Comercio(M)'!D297","v":426.3100000000004},{"$f":"'[1]EXT Comercio(M)'!E297","v":825.70000000000027},{"$f":"'[1]EXT Comercio(M)'!F297","v":338.54368906562013},{"$f":"'[1]EXT Comercio(M)'!G297","v":344.74582869069798},{"$f":"'[1]EXT Comercio(M)'!H297","v":730.7},{"$f":"'[1]EXT Comercio(M)'!I297","v":858.81192800000008},{"$f":"'[1]EXT Comercio(M)'!K297","v":3554.2547333563125},{"$f":"'[1]EXT Comercio(M)'!L297","v":4413.066661356308},null,null,{"$f":"'[1]EXT Comercio(M)'!AG297","v":1394.0680475199924},{"$f":"'[1]EXT Comercio(M)'!AH297","v":789.59000000000015},{"$f":"'[1]EXT Comercio(M)'!AI297","v":1335.9000000000005},{"$f":"'[1]EXT Comercio(M)'!AJ297","v":762.6916486145692},{"$f":"'[1]EXT Comercio(M)'!AK297","v":602.72448673000042},{"$f":"'[1]EXT Comercio(M)'!AL297","v":1388.1},{"$f":"'[1]EXT Comercio(M)'!AM297","v":1752.4022910000003},{"$f":"'[1]EXT Comercio(M)'!AO297","v":6273.0741828645696},{"$f":"'[1]EXT Comercio(M)'!AP297","v":8025.4764738645754},null,null,{"$f":"'[1]EXT Comercio(M)'!$BS297","v":-2718.8194495082498},{"$f":"'[1]EXT Comercio(M)'!$BT297","v":-3612.4098125082528}]
[null,2014,"Enero",{"$f":"'[1]REAL IPC(M)'!AD298","v":3.1040330797733393},{"$f":"'[1]REAL IPC(M)'!AE298","v":0.84722350124320989},{"$f":"'[1]REAL IPC(M)'!AF298","v":4.1394927536231823},{"$f":"'[1]REAL IPC(M)'!AG298","v":5.9984214680347341},{"$f":"'[1]REAL IPC(M)'!AH298","v":5.1922326714335245},{"$f":"'[1]REAL IPC(M)'!AI298","v":2.8223672605397527},{"$f":"'[1]REAL IPC(M)'!AJ298","v":3.3723331039228013},null,null,{"$f":"'[1]REAL IMAE(M)'!AG298","v":3.3376357861455195},{"$f":"'[1]REAL IMAE(M)'!AH298","v":3.2346205092560982},{"$f":"'[1]REAL IMAE(M)'!AI298","v":3.3735802141289994},{"$f":"'[1]REAL IMAE(M)'!AJ298","v":2.8163505470830512},{"$f":"'[1]REAL IMAE(M)'!AK298","v":3.7681888705713624},{"$f":"'[1]REAL IMAE(M)'!AL298","v":6.324391473308391},{"$f":"'[1]REAL IMAE(M)'!AM298","v":5.7596706540313747},null,null,{"$f":"'[1]EXT ITCER(M)'!C298","v":70.289556556184621},{"$f":"'[1]EXT ITCER(M)'!D298","v":90.935483108473122},{"$f":"'[1]EXT ITCER(M)'!E298","v":61.822578987097373},{"$f":"'[1]EXT ITCER(M)'!F298","v":75.304292183204154},{"$f":"'[1]EXT ITCER(M)'!G298","v":96.533732731463829},{"$f":"'[1]EXT ITCER(M)'!H298","v":98.08646458388327},{"$f":"'[1]EXT ITCER(M)'!I298","v":88.249704795128608},null,null,{"$f":"'[1]EXT TC(M)'!J298","v":0.21653281790923695},{"$f":"'[1]EXT TC(M)'!K298","v":0},{"$f":"'[1]EXT TC(M)'!L298","v":-0.45172491808195159},{"$f":"'[1]EXT TC(M)'!M298","v":3.1238670923439034},{"$f":"'[1]EXT TC(M)'!N298","v":4.9340717145808313},{"$f":"'[1]EXT TC(M)'!O298","v":5.6393497569968067},{"$f":"'[1]EXT TC(M)'!P298","v":0},null,null,{"$f":"'[1]EXT RIN(M)'!C298","v":7258.3436738500004},{"$f":"'[1]EXT RIN(M)'!D298","v":2751.3},{"$f":"'[1]EXT RIN(M)'!E298","v":7164.6},{"$f":"'[1]EXT RIN(M)'!F298","v":2925.7112050424298},{"$f":"'[1]EXT RIN(M)'!G298","v":1874.4},{"$f":"'[1]EXT RIN(M)'!H298","v":3753.8264529553708},{"$f":"'[1]EXT RIN(M)'!I298","v":2346.1767065199997},null,null,{"$f":"'[1]EXT RIN(M)'!P298","v":68.699381693964042},{"$f":"'[1]EXT RIN(M)'!Q298","v":102.76889195016234},{"$f":"'[1]EXT RIN(M)'!R298","v":99.602853777760842},{"$f":"'[1]EXT RIN(M)'!S298","v":79.974841100943195},{"$f":"'[1]EXT RIN(M)'!T298","v":112.12883509730503},{"$f":"'[1]EXT RIN(M)'!U298","v":69.099456168666521},{"$f":"'[1]EXT RIN(M)'!V298","v":194.38421274223074},null,null,{"$f":"+'[1]MONE(M)CAPARD'!AE298","v":3.3422232063031498},{"$f":"'[1]MONE(M)CAPARD'!AF298","v":2.650322344991324},{"$f":"'[1]MONE(M)CAPARD'!AG298","v":1.8441680438375285},{"$f":"'[1]MONE(M)CAPARD'!AH298","v":4.8506180193596373},{"$f":"'[1]MONE(M)CAPARD'!AI298","v":3.8243172150106512},{"$f":"'[1]MONE(M)CAPARD'!AJ298","v":4.0435100360267882},{"$f":"'[1]MONE(M)CAPARD'!AK298","v":-1.1534354194406338},null,null,{"$f":"'[1]MONE(M)CAPARD'!AL298","v":1.875},{"$f":"'[1]MONE(M)CAPARD'!AM298","v":3.52},{"$f":"'[1]MONE(M)CAPARD'!AN298","v":2.94},{"$f":"'[1]MONE(M)CAPARD'!AO298","v":4.17},{"$f":"'[1]MONE(M)CAPARD'!AP298","v":3.6302273824629938},{"$f":"'[1]MONE(M)CAPARD'!AQ298","v":1.46},{"$f":"'[1]MONE(M)CAPARD'!AR298","v":2.1800000000000002},null,null,{"$f":"'[1]MONE(M)CAPARD'!J298","v":12.944175432885986},{"$f":"'[1]MONE(M)CAPARD'!K298","v":4.8417560040178973},{"$f":"'[1]MONE(M)CAPARD'!L298","v":9.2573019048447485},{"$f":"'[1]MONE(M)CAPARD'!M298","v":13.728108711839159},{"$f":"'[1]MONE(M)CAPARD'!N298","v":14.917278153774664},{"$f":"'[1]MONE(M)CAPARD'!O298","v":11.561329559101074},{"$f":"'[1]MONE(M)CAPARD'!P298","v":2.8224833555260815},null,null,{"$f":"'[1]MONE(M)CAPARD'!Q298","v":10.07},{"$f":"'[1]MONE(M)CAPARD'!R298","v":5.73},{"$f":"'[1]MONE(M)CAPARD'!S298","v":6.06},{"$f":"'[1]MONE(M)CAPARD'!T298","v":8.51},{"$f":"'[1]MONE(M)CAPARD'!U298","v":8.8520728691260526},{"$f":"'[1]MONE(M)CAPARD'!V298","v":8.09},{"$f":"'[1]MONE(M)CAPARD'!W298","v":6.29},null,null,{"$f":"'[1]MONE(M)CAPARD'!AS298","v":3.75},{"$f":"'[1]MONE(M)CAPARD'!AT298","v":"n.a."},{"$f":"'[1]MONE(M)CAPARD'!AU298","v":5},{"$f":"'[1]MONE(M)CAPARD'!AV298","v":7},{"$f":"'[1]MONE(M)CAPARD'!AW298","v":"n.a."},{"$f":"'[1]MONE(M)CAPARD'!AX298","v":6.25},{"$f":"'[1]MONE(M)CAPARD'!AY298","v":"n.a."},null,null,{"$f":"+'Datos_Regional (M)'!CF291","v":13.560347534824114},{"$f":"+'Datos_Regional (M)'!CG291","v":7.6440983298808884},{"$f":"+'Datos_Regional (M)'!CH291","v":10.817445566034278},{"$f":"+'Datos_Regional (M)'!CI291","v":13.5271897275816},{"$f":"+'Datos_Regional (M)'!CJ291","v":19.762868220964357},{"$f":"+'Datos_Regional (M)'!CK291","v":12.104848584044836},{"$f":"+'Datos_Regional (M)'!CL291","v":10.917251818061136},null,null,964.87548666416126,453.76416666666665,836.2833333333333,324.24326124724104,402.76878047981768,790.0916666666667,1299.0811794166668,3772.0266950578862,5071.1078744745528,null,null,1493.0538260341661,896.51250000000016,1466.4833333333336,752.09333278555414,597.46177749333344,1404.7916666666667,2124.3110816666663,6610.3964363130544,8734.7075179797212,null,null,-2838.3697412551678,-3663.5996435051675,null,null,{"$f":"'[1]EXT Comercio(M)'!C298","v":854.92168000999231},{"$f":"'[1]EXT Comercio(M)'!D298","v":404.7},{"$f":"'[1]EXT Comercio(M)'!E298","v":835.4},{"$f":"'[1]EXT Comercio(M)'!F298","v":341.1},{"$f":"'[1]EXT Comercio(M)'!G298","v":433.87139433999994},{"$f":"'[1]EXT Comercio(M)'!H298","v":733.60000000000014},{"$f":"'[1]EXT Comercio(M)'!I298","v":921.51920499999994},{"$f":"'[1]EXT Comercio(M)'!K298","v":3603.5930743499921},{"$f":"'[1]EXT Comercio(M)'!L298","v":4525.1122793499926},null,null,{"$f":"'[1]EXT Comercio(M)'!AG298","v":1517.826006589999},{"$f":"'[1]EXT Comercio(M)'!AH298","v":895.84},{"$f":"'[1]EXT Comercio(M)'!AI298","v":1547.8999999999999},{"$f":"'[1]EXT Comercio(M)'!AJ298","v":680.2635423840469},{"$f":"'[1]EXT Comercio(M)'!AK298","v":604.04446634999999},{"$f":"'[1]EXT Comercio(M)'!AL298","v":1309.7},{"$f":"'[1]EXT Comercio(M)'!AM298","v":1967.6846409999971},{"$f":"'[1]EXT Comercio(M)'!AO298","v":6555.5740153240458},{"$f":"'[1]EXT Comercio(M)'!AP298","v":8523.2586563240438},null,null,{"$f":"'[1]EXT Comercio(M)'!$BS298","v":-2951.9809409740537},{"$f":"'[1]EXT Comercio(M)'!$BT298","v":-3998.1463769740508}]
[null,null,"Febrero",{"$f":"'[1]REAL IPC(M)'!AD299","v":2.7396626608914247},{"$f":"'[1]REAL IPC(M)'!AE299","v":0.61439706556625562},{"$f":"'[1]REAL IPC(M)'!AF299","v":3.5040431266846408},{"$f":"'[1]REAL IPC(M)'!AG299","v":5.7399453338539583},{"$f":"'[1]REAL IPC(M)'!AH299","v":5.2528405814158781},{"$f":"'[1]REAL IPC(M)'!AI299","v":2.8395604395603988},{"$f":"'[1]REAL IPC(M)'!AJ299","v":3.3538672142368378},null,null,{"$f":"'[1]REAL IMAE(M)'!AG299","v":3.4793350363790889},{"$f":"'[1]REAL IMAE(M)'!AH299","v":3.2530359756689644},{"$f":"'[1]REAL IMAE(M)'!AI299","v":3.8238890833104922},{"$f":"'[1]REAL IMAE(M)'!AJ299","v":2.9827132932894673},{"$f":"'[1]REAL IMAE(M)'!AK299","v":4.5460183810916881},{"$f":"'[1]REAL IMAE(M)'!AL299","v":6.4735263230657187},{"$f":"'[1]REAL IMAE(M)'!AM299","v":5.0936993907611781},null,null,{"$f":"'[1]EXT ITCER(M)'!C299","v":73.050280960779418},{"$f":"'[1]EXT ITCER(M)'!D299","v":90.861344223554909},{"$f":"'[1]EXT ITCER(M)'!E299","v":61.082445549120038},{"$f":"'[1]EXT ITCER(M)'!F299","v":74.945646904232163},{"$f":"'[1]EXT ITCER(M)'!G299","v":96.595239132818094},{"$f":"'[1]EXT ITCER(M)'!H299","v":98.367098496987538},{"$f":"'[1]EXT ITCER(M)'!I299","v":87.878785411577155},null,null,{"$f":"'[1]EXT TC(M)'!J299","v":4.543432761484679},{"$f":"'[1]EXT TC(M)'!K299","v":0},{"$f":"'[1]EXT TC(M)'!L299","v":-0.88464885339885801},{"$f":"'[1]EXT TC(M)'!M299","v":2.953713518373644},{"$f":"'[1]EXT TC(M)'!N299","v":5.012456697821956},{"$f":"'[1]EXT TC(M)'!O299","v":5.713179974292391},{"$f":"'[1]EXT TC(M)'!P299","v":0},null,null,{"$f":"'[1]EXT RIN(M)'!C299","v":7275.1072810599999},{"$f":"'[1]EXT RIN(M)'!D299","v":2824.6},{"$f":"'[1]EXT RIN(M)'!E299","v":7163.9},{"$f":"'[1]EXT RIN(M)'!F299","v":3006.1140247603885},{"$f":"'[1]EXT RIN(M)'!G299","v":1816.2},{"$f":"'[1]EXT RIN(M)'!H299","v":3449.5470622487833},{"$f":"'[1]EXT RIN(M)'!I299","v":2140.5441688699998},null,null,{"$f":"'[1]EXT RIN(M)'!P299","v":72.235924194068375},{"$f":"'[1]EXT RIN(M)'!Q299","v":102.44079352990244},{"$f":"'[1]EXT RIN(M)'!R299","v":101.45375757065314},{"$f":"'[1]EXT RIN(M)'!S299","v":79.247365042204592},{"$f":"'[1]EXT RIN(M)'!T299","v":106.56142995792506},{"$f":"'[1]EXT RIN(M)'!U299","v":67.032893930253607},{"$f":"'[1]EXT RIN(M)'!V299","v":173.62127295780755},null,null,{"$f":"+'[1]MONE(M)CAPARD'!AE299","v":3.6600639341401826},{"$f":"'[1]MONE(M)CAPARD'!AF299","v":2.8481042654028421},{"$f":"'[1]MONE(M)CAPARD'!AG299","v":2.4790885416666621},{"$f":"'[1]MONE(M)CAPARD'!AH299","v":5.2014918759231961},{"$f":"'[1]MONE(M)CAPARD'!AI299","v":4.0954227280460387},{"$f":"'[1]MONE(M)CAPARD'!AJ299","v":4.0358394597367484},{"$f":"'[1]MONE(M)CAPARD'!AK299","v":-1.1164238410596157},null,null,{"$f":"'[1]MONE(M)CAPARD'!AL299","v":1.9650000000000001},{"$f":"'[1]MONE(M)CAPARD'!AM299","v":3.48},{"$f":"'[1]MONE(M)CAPARD'!AN299","v":2.95},{"$f":"'[1]MONE(M)CAPARD'!AO299","v":4.1100000000000003},{"$f":"'[1]MONE(M)CAPARD'!AP299","v":3.3233665434587873},{"$f":"'[1]MONE(M)CAPARD'!AQ299","v":1.66},{"$f":"'[1]MONE(M)CAPARD'!AR299","v":2.2000000000000002},null,null,{"$f":"'[1]MONE(M)CAPARD'!J299","v":13.237669841294544},{"$f":"'[1]MONE(M)CAPARD'!K299","v":5.332838133430549},{"$f":"'[1]MONE(M)CAPARD'!L299","v":9.9570572916666613},{"$f":"'[1]MONE(M)CAPARD'!M299","v":13.826425406203846},{"$f":"'[1]MONE(M)CAPARD'!N299","v":13.540095509043965},{"$f":"'[1]MONE(M)CAPARD'!O299","v":12.0233256246413},{"$f":"'[1]MONE(M)CAPARD'!P299","v":2.6376688741721721},null,null,{"$f":"'[1]MONE(M)CAPARD'!Q299","v":10.15},{"$f":"'[1]MONE(M)CAPARD'!R299","v":5.98},{"$f":"'[1]MONE(M)CAPARD'!S299","v":6.07},{"$f":"'[1]MONE(M)CAPARD'!T299","v":8.4700000000000006},{"$f":"'[1]MONE(M)CAPARD'!U299","v":8.6497021245682202},{"$f":"'[1]MONE(M)CAPARD'!V299","v":7.34},{"$f":"'[1]MONE(M)CAPARD'!W299","v":6.08},null,null,{"$f":"'[1]MONE(M)CAPARD'!AS299","v":3.75},{"$f":"'[1]MONE(M)CAPARD'!AT299","v":"n.a."},{"$f":"'[1]MONE(M)CAPARD'!AU299","v":5},{"$f":"'[1]MONE(M)CAPARD'!AV299","v":7},{"$f":"'[1]MONE(M)CAPARD'!AW299","v":"n.a."},{"$f":"'[1]MONE(M)CAPARD'!AX299","v":6.25},{"$f":"'[1]MONE(M)CAPARD'!AY299","v":"n.a."},null,null,{"$f":"+'Datos_Regional (M)'!CF292","v":16.916526704494128},{"$f":"+'Datos_Regional (M)'!CG292","v":7.5143346940759193},{"$f":"+'Datos_Regional (M)'!CH292","v":10.418699503741834},{"$f":"+'Datos_Regional (M)'!CI292","v":13.774664959385397},{"$f":"+'Datos_Regional (M)'!CJ292","v":21.50804531009738},{"$f":"+'Datos_Regional (M)'!CK292","v":12.232219145772749},{"$f":"+'Datos_Regional (M)'!CL292","v":11.149579926724385},null,null,967.5681033316614,452.17750000000001,837.09166666666658,321.7313604110729,406.56363059402128,795.7166666666667,1272.0191094166669,3780.8489276700889,5052.8680370867542,null,null,1495.5699071691668,896.47583333333341,1468.0500000000002,749.84001069507678,595.2176418708334,1387.4916666666668,2100.9521643333323,6592.6450597350777,8693.5972240684114,null,null,-2811.7961320649883,-3640.7291869816545,null,null,{"$f":"'[1]EXT Comercio(M)'!C299","v":968.62133913999537},{"$f":"'[1]EXT Comercio(M)'!D299","v":415.36999999999995},{"$f":"'[1]EXT Comercio(M)'!E299","v":805.69999999999993},{"$f":"'[1]EXT Comercio(M)'!F299","v":328.3},{"$f":"'[1]EXT Comercio(M)'!G299","v":401.02076018000002},{"$f":"'[1]EXT Comercio(M)'!H299","v":786.90000000000009},{"$f":"'[1]EXT Comercio(M)'!I299","v":935.29241999999988},{"$f":"'[1]EXT Comercio(M)'!K299","v":3705.9120993199949},{"$f":"'[1]EXT Comercio(M)'!L299","v":4641.2045193199956},null,null,{"$f":"'[1]EXT Comercio(M)'!AG299","v":1384.2577487999972},{"$f":"'[1]EXT Comercio(M)'!AH299","v":834.84},{"$f":"'[1]EXT Comercio(M)'!AI299","v":1356.3000000000002},{"$f":"'[1]EXT Comercio(M)'!AJ299","v":698.8598129219846},{"$f":"'[1]EXT Comercio(M)'!AK299","v":544.07708480999997},{"$f":"'[1]EXT Comercio(M)'!AL299","v":1187.0999999999999},{"$f":"'[1]EXT Comercio(M)'!AM299","v":1778.3198529999988},{"$f":"'[1]EXT Comercio(M)'!AO299","v":6005.4346465319813},{"$f":"'[1]EXT Comercio(M)'!AP299","v":7783.7544995319804},null,null,{"$f":"'[1]EXT Comercio(M)'!$BS299","v":-2299.5225472119864},{"$f":"'[1]EXT Comercio(M)'!$BT299","v":-3142.5499802119853}]
[null,null,"Marzo",{"$f":"'[1]REAL IPC(M)'!AD300","v":3.2591887870732568},{"$f":"'[1]REAL IPC(M)'!AE300","v":0.4108088369545268},{"$f":"'[1]REAL IPC(M)'!AF300","v":3.2459983904140168},{"$f":"'[1]REAL IPC(M)'!AG300","v":5.7864077669902825},{"$f":"'[1]REAL IPC(M)'!AH300","v":5.1012817348377988},{"$f":"'[1]REAL IPC(M)'!AI300","v":2.9865125240847448},{"$f":"'[1]REAL IPC(M)'!AJ300","v":3.3772324471711217},null,null,{"$f":"'[1]REAL IMAE(M)'!AG300","v":3.3808741524388388},{"$f":"'[1]REAL IMAE(M)'!AH300","v":2.9520069709183447},{"$f":"'[1]REAL IMAE(M)'!AI300","v":4.259681130773445},{"$f":"'[1]REAL IMAE(M)'!AJ300","v":2.97659281826378},{"$f":"'[1]REAL IMAE(M)'!AK300","v":5.1952930077711903},{"$f":"'[1]REAL IMAE(M)'!AL300","v":6.7138768253650127},{"$f":"'[1]REAL IMAE(M)'!AM300","v":4.7022303977925883},null,null,{"$f":"'[1]EXT ITCER(M)'!C300","v":76.010513219781174},{"$f":"'[1]EXT ITCER(M)'!D300","v":90.823389069724939},{"$f":"'[1]EXT ITCER(M)'!E300","v":60.839982407843728},{"$f":"'[1]EXT ITCER(M)'!F300","v":74.861736958561067},{"$f":"'[1]EXT ITCER(M)'!G300","v":97.106474341064839},{"$f":"'[1]EXT ITCER(M)'!H300","v":98.121962357922371},{"$f":"'[1]EXT ITCER(M)'!I300","v":87.678260910516855},null,null,{"$f":"'[1]EXT TC(M)'!J300","v":9.8271340570615955},{"$f":"'[1]EXT TC(M)'!K300","v":0},{"$f":"'[1]EXT TC(M)'!L300","v":-1.0295711509725645},{"$f":"'[1]EXT TC(M)'!M300","v":2.8690570907294251},{"$f":"'[1]EXT TC(M)'!N300","v":5.1188877430416317},{"$f":"'[1]EXT TC(M)'!O300","v":5.181599953160684},{"$f":"'[1]EXT TC(M)'!P300","v":0},null,null,{"$f":"'[1]EXT RIN(M)'!C300","v":6785.6091915899997},{"$f":"'[1]EXT RIN(M)'!D300","v":2801.1},{"$f":"'[1]EXT RIN(M)'!E300","v":7110.7},{"$f":"'[1]EXT RIN(M)'!F300","v":3069.0782040609893},{"$f":"'[1]EXT RIN(M)'!G300","v":1858.9},{"$f":"'[1]EXT RIN(M)'!H300","v":3584.8739572163063},{"$f":"'[1]EXT RIN(M)'!I300","v":2070.0241558499997},null,null,{"$f":"'[1]EXT RIN(M)'!P300","v":68.381360111903277},{"$f":"'[1]EXT RIN(M)'!Q300","v":102.6564382822647},{"$f":"'[1]EXT RIN(M)'!R300","v":100.60894711659618},{"$f":"'[1]EXT RIN(M)'!S300","v":77.295660290568208},{"$f":"'[1]EXT RIN(M)'!T300","v":108.53483621494691},{"$f":"'[1]EXT RIN(M)'!U300","v":68.206550413915195},{"$f":"'[1]EXT RIN(M)'!V300","v":170.8864051814931},null,null,{"$f":"+'[1]MONE(M)CAPARD'!AE300","v":3.2353645735254606},{"$f":"'[1]MONE(M)CAPARD'!AF300","v":3.3354886807891733},{"$f":"'[1]MONE(M)CAPARD'!AG300","v":2.1831370171488005},{"$f":"'[1]MONE(M)CAPARD'!AH300","v":5.0796622613803315},{"$f":"'[1]MONE(M)CAPARD'!AI300","v":3.7135799714422419},{"$f":"'[1]MONE(M)CAPARD'!AJ300","v":4.3146304957904915},{"$f":"'[1]MONE(M)CAPARD'!AK300","v":-1.1387734216745673},null,null,{"$f":"'[1]MONE(M)CAPARD'!AL300","v":1.9750000000000001},{"$f":"'[1]MONE(M)CAPARD'!AM300","v":3.76},{"$f":"'[1]MONE(M)CAPARD'!AN300","v":2.92},{"$f":"'[1]MONE(M)CAPARD'!AO300","v":4.1100000000000003},{"$f":"'[1]MONE(M)CAPARD'!AP300","v":3.2777717216382856},{"$f":"'[1]MONE(M)CAPARD'!AQ300","v":1.41},{"$f":"'[1]MONE(M)CAPARD'!AR300","v":2.2000000000000002},null,null,{"$f":"'[1]MONE(M)CAPARD'!J300","v":12.968154573187102},{"$f":"'[1]MONE(M)CAPARD'!K300","v":5.2675515955996115},{"$f":"'[1]MONE(M)CAPARD'!L300","v":10.222189502858139},{"$f":"'[1]MONE(M)CAPARD'!M300","v":14.022209985315721},{"$f":"'[1]MONE(M)CAPARD'!N300","v":14.919247437416834},{"$f":"'[1]MONE(M)CAPARD'!O300","v":10.735708414176459},{"$f":"'[1]MONE(M)CAPARD'!P300","v":2.5854508672349521},null,null,{"$f":"'[1]MONE(M)CAPARD'!Q300","v":10.35},{"$f":"'[1]MONE(M)CAPARD'!R300","v":5.7},{"$f":"'[1]MONE(M)CAPARD'!S300","v":6.08},{"$f":"'[1]MONE(M)CAPARD'!T300","v":8.42},{"$f":"'[1]MONE(M)CAPARD'!U300","v":7.8324688408574854},{"$f":"'[1]MONE(M)CAPARD'!V300","v":5.94},{"$f":"'[1]MONE(M)CAPARD'!W300","v":6.05},null,null,{"$f":"'[1]MONE(M)CAPARD'!AS300","v":4.75},{"$f":"'[1]MONE(M)CAPARD'!AT300","v":"n.a."},{"$f":"'[1]MONE(M)CAPARD'!AU300","v":4.75},{"$f":"'[1]MONE(M)CAPARD'!AV300","v":7},{"$f":"'[1]MONE(M)CAPARD'!AW300","v":"n.a."},{"$f":"'[1]MONE(M)CAPARD'!AX300","v":6.25},{"$f":"'[1]MONE(M)CAPARD'!AY300","v":"n.a."},null,null,{"$f":"+'Datos_Regional (M)'!CF293","v":18.457443102095073},{"$f":"+'Datos_Regional (M)'!CG293","v":8.2316310707808213},{"$f":"+'Datos_Regional (M)'!CH293","v":10.536280308526313},{"$f":"+'Datos_Regional (M)'!CI293","v":13.426222144065637},{"$f":"+'Datos_Regional (M)'!CJ293","v":19.868610788388153},{"$f":"+'Datos_Regional (M)'!CK293","v":13.535265897415361},{"$f":"+'Datos_Regional (M)'!CL293","v":11.335766930985635},null,null,970.09537779332834,454.4883333333334,841.60833333333312,319.8532575548133,413.17566146638461,799.44166666666672,1241.7298379166668,3798.6626301478591,5040.392468064525,null,null,1507.5623495675,902.32333333333338,1478.8416666666669,759.12323612288571,601.44295823083348,1400.1333333333332,2085.7839469166661,6649.4268772545538,8735.2108241712194,null,null,-2850.7642471066933,-3694.818356106694,null,null,{"$f":"'[1]EXT Comercio(M)'!C300","v":1049.4702958999947},{"$f":"'[1]EXT Comercio(M)'!D300","v":476.68000000000006},{"$f":"'[1]EXT Comercio(M)'!E300","v":1036.3},{"$f":"'[1]EXT Comercio(M)'!F300","v":358.8},{"$f":"'[1]EXT Comercio(M)'!G300","v":472.88364557000011},{"$f":"'[1]EXT Comercio(M)'!H300","v":859.09999999999991},{"$f":"'[1]EXT Comercio(M)'!I300","v":969.60110599999985},{"$f":"'[1]EXT Comercio(M)'!K300","v":4253.2339414699954},{"$f":"'[1]EXT Comercio(M)'!L300","v":5222.8350474699946},null,null,{"$f":"'[1]EXT Comercio(M)'!AG300","v":1624.3965471500019},{"$f":"'[1]EXT Comercio(M)'!AH300","v":895.04000000000019},{"$f":"'[1]EXT Comercio(M)'!AI300","v":1475.4999999999998},{"$f":"'[1]EXT Comercio(M)'!AJ300","v":790.88017226810598},{"$f":"'[1]EXT Comercio(M)'!AK300","v":570.62966017000008},{"$f":"'[1]EXT Comercio(M)'!AL300","v":1479.1000000000001},{"$f":"'[1]EXT Comercio(M)'!AM300","v":1745.6580310000031},{"$f":"'[1]EXT Comercio(M)'!AO300","v":6835.5463795881078},{"$f":"'[1]EXT Comercio(M)'!AP300","v":8581.2044105881105},null,null,{"$f":"'[1]EXT Comercio(M)'!$BS300","v":-2582.3124381181133},{"$f":"'[1]EXT Comercio(M)'!$BT300","v":-3358.3693631181177}]
[null,null,"Abril",{"$f":"'[1]REAL IPC(M)'!AD301","v":3.6792927951940326},{"$f":"'[1]REAL IPC(M)'!AE301","v":0.56959118052366065},{"$f":"'[1]REAL IPC(M)'!AF301","v":3.2672737011248087},{"$f":"'[1]REAL IPC(M)'!AG301","v":5.9666795815575258},{"$f":"'[1]REAL IPC(M)'!AH301","v":4.9007181576330803},{"$f":"'[1]REAL IPC(M)'!AI301","v":3.4878625887301609},{"$f":"'[1]REAL IPC(M)'!AJ301","v":3.5291440217391536},null,null,{"$f":"'[1]REAL IMAE(M)'!AG301","v":3.3133786951185606},{"$f":"'[1]REAL IMAE(M)'!AH301","v":2.8372721463293797},{"$f":"'[1]REAL IMAE(M)'!AI301","v":4.594610492112678},{"$f":"'[1]REAL IMAE(M)'!AJ301","v":2.8326482134767041},{"$f":"'[1]REAL IMAE(M)'!AK301","v":5.4018317827314259},{"$f":"'[1]REAL IMAE(M)'!AL301","v":6.8505461240267653},{"$f":"'[1]REAL IMAE(M)'!AM301","v":4.5856522070595522},null,null,{"$f":"'[1]EXT ITCER(M)'!C301","v":75.032748588341363},{"$f":"'[1]EXT ITCER(M)'!D301","v":91.424930598872706},{"$f":"'[1]EXT ITCER(M)'!E301","v":60.992879967771202},{"$f":"'[1]EXT ITCER(M)'!F301","v":74.859217431315386},{"$f":"'[1]EXT ITCER(M)'!G301","v":96.856055217893527},{"$f":"'[1]EXT ITCER(M)'!H301","v":97.876845200828598},{"$f":"'[1]EXT ITCER(M)'!I301","v":87.414878998526248},null,null,{"$f":"'[1]EXT TC(M)'!J301","v":9.4483545877012833},{"$f":"'[1]EXT TC(M)'!K301","v":0},{"$f":"'[1]EXT TC(M)'!L301","v":-0.60938005889516833},{"$f":"'[1]EXT TC(M)'!M301","v":2.7505884383069859},{"$f":"'[1]EXT TC(M)'!N301","v":5.1060844369380973},{"$f":"'[1]EXT TC(M)'!O301","v":5.0113634425993858},{"$f":"'[1]EXT TC(M)'!P301","v":0},null,null,{"$f":"'[1]EXT RIN(M)'!C301","v":7775.8436125999997},{"$f":"'[1]EXT RIN(M)'!D301","v":2841.1},{"$f":"'[1]EXT RIN(M)'!E301","v":7214.9},{"$f":"'[1]EXT RIN(M)'!F301","v":3161.2609550678944},{"$f":"'[1]EXT RIN(M)'!G301","v":1916},{"$f":"'[1]EXT RIN(M)'!H301","v":5161.981456020425},{"$f":"'[1]EXT RIN(M)'!I301","v":2258.3106731999997},null,null,{"$f":"'[1]EXT RIN(M)'!P301","v":78.503087337660361},{"$f":"'[1]EXT RIN(M)'!Q301","v":101.69179700726671},{"$f":"'[1]EXT RIN(M)'!R301","v":103.56388966180276},{"$f":"'[1]EXT RIN(M)'!S301","v":78.73674893022816},{"$f":"'[1]EXT RIN(M)'!T301","v":112.58873414912513},{"$f":"'[1]EXT RIN(M)'!U301","v":96.154288753213351},{"$f":"'[1]EXT RIN(M)'!V301","v":178.74878048472891},null,null,{"$f":"+'[1]MONE(M)CAPARD'!AE301","v":2.9135106185311384},{"$f":"'[1]MONE(M)CAPARD'!AF301","v":3.2817164519959761},{"$f":"'[1]MONE(M)CAPARD'!AG301","v":2.1620850622406547},{"$f":"'[1]MONE(M)CAPARD'!AH301","v":4.7876563071298079},{"$f":"'[1]MONE(M)CAPARD'!AI301","v":4.4220102821174825},{"$f":"'[1]MONE(M)CAPARD'!AJ301","v":3.7802862223727791},{"$f":"'[1]MONE(M)CAPARD'!AK301","v":-1.3224720774776804},null,null,{"$f":"'[1]MONE(M)CAPARD'!AL301","v":1.97},{"$f":"'[1]MONE(M)CAPARD'!AM301","v":3.87},{"$f":"'[1]MONE(M)CAPARD'!AN301","v":2.88},{"$f":"'[1]MONE(M)CAPARD'!AO301","v":4.0599999999999996},{"$f":"'[1]MONE(M)CAPARD'!AP301","v":3.987221648857421},{"$f":"'[1]MONE(M)CAPARD'!AQ301","v":1.53},{"$f":"'[1]MONE(M)CAPARD'!AR301","v":2.16},null,null,{"$f":"'[1]MONE(M)CAPARD'!J301","v":12.770830942068049},{"$f":"'[1]MONE(M)CAPARD'!K301","v":4.9820316068329173},{"$f":"'[1]MONE(M)CAPARD'!L301","v":10.209164937759326},{"$f":"'[1]MONE(M)CAPARD'!M301","v":13.799923217550287},{"$f":"'[1]MONE(M)CAPARD'!N301","v":15.76619501875331},{"$f":"'[1]MONE(M)CAPARD'!O301","v":11.15313150986537},{"$f":"'[1]MONE(M)CAPARD'!P301","v":2.4252648874732454},null,null,{"$f":"'[1]MONE(M)CAPARD'!Q301","v":10.29},{"$f":"'[1]MONE(M)CAPARD'!R301","v":5.58},{"$f":"'[1]MONE(M)CAPARD'!S301","v":6.06},{"$f":"'[1]MONE(M)CAPARD'!T301","v":8.4499999999999993},{"$f":"'[1]MONE(M)CAPARD'!U301","v":8.6483290360719263},{"$f":"'[1]MONE(M)CAPARD'!V301","v":5.94},{"$f":"'[1]MONE(M)CAPARD'!W301","v":6.04},null,null,{"$f":"'[1]MONE(M)CAPARD'!AS301","v":4.75},{"$f":"'[1]MONE(M)CAPARD'!AT301","v":"n.a."},{"$f":"'[1]MONE(M)CAPARD'!AU301","v":4.75},{"$f":"'[1]MONE(M)CAPARD'!AV301","v":7},{"$f":"'[1]MONE(M)CAPARD'!AW301","v":"n.a."},{"$f":"'[1]MONE(M)CAPARD'!AX301","v":6.25},{"$f":"'[1]MONE(M)CAPARD'!AY301","v":"n.a."},null,null,{"$f":"+'Datos_Regional (M)'!CF294","v":18.532813296251561},{"$f":"+'Datos_Regional (M)'!CG294","v":8.7484713668120726},{"$f":"+'Datos_Regional (M)'!CH294","v":10.753875706339301},{"$f":"+'Datos_Regional (M)'!CI294","v":13.897785791389673},{"$f":"+'Datos_Regional (M)'!CJ294","v":21.170150134620492},{"$f":"+'Datos_Regional (M)'!CK294","v":14.077410651755006},{"$f":"+'Datos_Regional (M)'!CL294","v":11.085122456640949},null,null,968.9786256258285,448.44666666666672,845.84166666666658,320.4979921284567,412.42918411676237,795.97500000000002,1247.68283675,3792.1691352043804,5039.8519719543801,null,null,1498.0023230216657,899.27916666666681,1471.4416666666668,757.13215062150221,597.4460954291668,1414.4250000000002,2091.4320843333326,6637.7264024056685,8729.1584867390011,null,null,-2845.5572672012877,-3689.306514784621,null,null,{"$f":"'[1]EXT Comercio(M)'!C301","v":987.72462797999742},{"$f":"'[1]EXT Comercio(M)'!D301","v":424.03},{"$f":"'[1]EXT Comercio(M)'!E301","v":939.6},{"$f":"'[1]EXT Comercio(M)'!F301","v":362.4},{"$f":"'[1]EXT Comercio(M)'!G301","v":418.21638459999997},{"$f":"'[1]EXT Comercio(M)'!H301","v":790.8},{"$f":"'[1]EXT Comercio(M)'!I301","v":1335.112852},{"$f":"'[1]EXT Comercio(M)'!K301","v":3922.7710125799967},{"$f":"'[1]EXT Comercio(M)'!L301","v":5257.8838645799951},null,null,{"$f":"'[1]EXT Comercio(M)'!AG301","v":1491.0611605599952},{"$f":"'[1]EXT Comercio(M)'!AH301","v":922.77999999999975},{"$f":"'[1]EXT Comercio(M)'!AI301","v":1521.2999999999997},{"$f":"'[1]EXT Comercio(M)'!AJ301","v":771.34086424329325},{"$f":"'[1]EXT Comercio(M)'!AK301","v":571.29784913000003},{"$f":"'[1]EXT Comercio(M)'!AL301","v":1540.1},{"$f":"'[1]EXT Comercio(M)'!AM301","v":2256.3138809999946},{"$f":"'[1]EXT Comercio(M)'!AO301","v":6817.8798739332888},{"$f":"'[1]EXT Comercio(M)'!AP301","v":9074.1937549332833},null,null,{"$f":"'[1]EXT Comercio(M)'!$BS301","v":-2895.1088613532911},{"$f":"'[1]EXT Comercio(M)'!$BT301","v":-3816.3098903532864}]
[null,null,"Mayo ",{"$f":"'[1]REAL IPC(M)'!AD302","v":4.2102988382663771},{"$f":"'[1]REAL IPC(M)'!AE302","v":0.94764927776244468},{"$f":"'[1]REAL IPC(M)'!AF302","v":3.2229344729344773},{"$f":"'[1]REAL IPC(M)'!AG302","v":6.2210200927356896},{"$f":"'[1]REAL IPC(M)'!AH302","v":4.8473220695518888},{"$f":"'[1]REAL IPC(M)'!AI302","v":3.696224758560144},{"$f":"'[1]REAL IPC(M)'!AJ302","v":3.2476319350473597},null,null,{"$f":"'[1]REAL IMAE(M)'!AG302","v":3.0479193753142613},{"$f":"'[1]REAL IMAE(M)'!AH302","v":2.4440979394546605},{"$f":"'[1]REAL IMAE(M)'!AI302","v":4.8089999747926013},{"$f":"'[1]REAL IMAE(M)'!AJ302","v":2.5928843183778425},{"$f":"'[1]REAL IMAE(M)'!AK302","v":5.1449175569865186},{"$f":"'[1]REAL IMAE(M)'!AL302","v":6.8024311550500718},{"$f":"'[1]REAL IMAE(M)'!AM302","v":4.6329996966939753},null,null,{"$f":"'[1]EXT ITCER(M)'!C302","v":75.557169067472259},{"$f":"'[1]EXT ITCER(M)'!D302","v":91.390202170930564},{"$f":"'[1]EXT ITCER(M)'!E302","v":60.876936158933162},{"$f":"'[1]EXT ITCER(M)'!F302","v":74.787302991038828},{"$f":"'[1]EXT ITCER(M)'!G302","v":96.661730542709932},{"$f":"'[1]EXT ITCER(M)'!H302","v":98.190844370215331},{"$f":"'[1]EXT ITCER(M)'!I302","v":87.463517642168867},null,null,{"$f":"'[1]EXT TC(M)'!J302","v":10.561881757533905},{"$f":"'[1]EXT TC(M)'!K302","v":0},{"$f":"'[1]EXT TC(M)'!L302","v":-0.66963223596980437},{"$f":"'[1]EXT TC(M)'!M302","v":2.5653854986426459},{"$f":"'[1]EXT TC(M)'!N302","v":5.1408943522645183},{"$f":"'[1]EXT TC(M)'!O302","v":5.0579674525711456},{"$f":"'[1]EXT TC(M)'!P302","v":0},null,null,{"$f":"'[1]EXT RIN(M)'!C302","v":7704.4670957600001},{"$f":"'[1]EXT RIN(M)'!D302","v":2816.4},{"$f":"'[1]EXT RIN(M)'!E302","v":7174.4},{"$f":"'[1]EXT RIN(M)'!F302","v":3211.5809867864473},{"$f":"'[1]EXT RIN(M)'!G302","v":1931.6},{"$f":"'[1]EXT RIN(M)'!H302","v":4598.0900066988679},{"$f":"'[1]EXT RIN(M)'!I302","v":2247.5061663799997},null,null,{"$f":"'[1]EXT RIN(M)'!P302","v":77.674198193046337},{"$f":"'[1]EXT RIN(M)'!Q302","v":104.27291632805613},{"$f":"'[1]EXT RIN(M)'!R302","v":106.8620823697711},{"$f":"'[1]EXT RIN(M)'!S302","v":82.447734470870998},{"$f":"'[1]EXT RIN(M)'!T302","v":114.09286313854292},{"$f":"'[1]EXT RIN(M)'!U302","v":84.341376832753795},{"$f":"'[1]EXT RIN(M)'!V302","v":179.37036534540061},null,null,{"$f":"+'[1]MONE(M)CAPARD'!AE302","v":2.5330520986514196},{"$f":"'[1]MONE(M)CAPARD'!AF302","v":2.9543538096974102},{"$f":"'[1]MONE(M)CAPARD'!AG302","v":2.2156563739865405},{"$f":"'[1]MONE(M)CAPARD'!AH302","v":4.4426045834849166},{"$f":"'[1]MONE(M)CAPARD'!AI302","v":3.886932626571888},{"$f":"'[1]MONE(M)CAPARD'!AJ302","v":3.4174583015832662},{"$f":"'[1]MONE(M)CAPARD'!AK302","v":-1.082477064220182},null,null,{"$f":"'[1]MONE(M)CAPARD'!AL302","v":2.0750000000000002},{"$f":"'[1]MONE(M)CAPARD'!AM302","v":3.93},{"$f":"'[1]MONE(M)CAPARD'!AN302","v":2.88},{"$f":"'[1]MONE(M)CAPARD'!AO302","v":4.0599999999999996},{"$f":"'[1]MONE(M)CAPARD'!AP302","v":3.582997096907107},{"$f":"'[1]MONE(M)CAPARD'!AQ302","v":1.41},{"$f":"'[1]MONE(M)CAPARD'!AR302","v":2.13},null,null,{"$f":"'[1]MONE(M)CAPARD'!J302","v":11.956304991573807},{"$f":"'[1]MONE(M)CAPARD'!K302","v":4.7473623769595328},{"$f":"'[1]MONE(M)CAPARD'!L302","v":10.275880627910984},{"$f":"'[1]MONE(M)CAPARD'!M302","v":13.621578755911258},{"$f":"'[1]MONE(M)CAPARD'!N302","v":13.869573363027602},{"$f":"'[1]MONE(M)CAPARD'!O302","v":9.5218271103208831},{"$f":"'[1]MONE(M)CAPARD'!P302","v":2.7142201834862401},null,null,{"$f":"'[1]MONE(M)CAPARD'!Q302","v":9.93},{"$f":"'[1]MONE(M)CAPARD'!R302","v":5.74},{"$f":"'[1]MONE(M)CAPARD'!S302","v":6.06},{"$f":"'[1]MONE(M)CAPARD'!T302","v":8.48},{"$f":"'[1]MONE(M)CAPARD'!U302","v":8.7371739596041031},{"$f":"'[1]MONE(M)CAPARD'!V302","v":6.2},{"$f":"'[1]MONE(M)CAPARD'!W302","v":6.05},null,null,{"$f":"'[1]MONE(M)CAPARD'!AS302","v":5.25},{"$f":"'[1]MONE(M)CAPARD'!AT302","v":"n.a."},{"$f":"'[1]MONE(M)CAPARD'!AU302","v":4.75},{"$f":"'[1]MONE(M)CAPARD'!AV302","v":7},{"$f":"'[1]MONE(M)CAPARD'!AW302","v":"n.a."},{"$f":"'[1]MONE(M)CAPARD'!AX302","v":6.25},{"$f":"'[1]MONE(M)CAPARD'!AY302","v":"n.a."},null,null,{"$f":"+'Datos_Regional (M)'!CF295","v":18.440227565709844},{"$f":"+'Datos_Regional (M)'!CG295","v":8.5696183310365548},{"$f":"+'Datos_Regional (M)'!CH295","v":11.171519390356387},{"$f":"+'Datos_Regional (M)'!CI295","v":13.791374612960695},{"$f":"+'Datos_Regional (M)'!CJ295","v":22.453124904006149},{"$f":"+'Datos_Regional (M)'!CK295","v":13.485198834043665},{"$f":"+'Datos_Regional (M)'!CL295","v":11.262447187065284},null,null,970.7326444158283,445.71499999999997,844.27499999999975,325.43651822631244,416.50764355054616,794.23333333333346,1221.998947,3796.9001395260202,5018.8990865260193,null,null,1503.3453885066654,902.4725000000002,1477.4416666666668,764.43722849958738,600.86580225333341,1428.1083333333336,2075.2130077499992,6676.6709192595872,8751.883927009585,null,null,-2879.7707797335665,-3732.9848404835661,null,null,{"$f":"'[1]EXT Comercio(M)'!C302","v":1054.2075181999944},{"$f":"'[1]EXT Comercio(M)'!D302","v":490.24999999999977},{"$f":"'[1]EXT Comercio(M)'!E302","v":946.5},{"$f":"'[1]EXT Comercio(M)'!F302","v":412.4},{"$f":"'[1]EXT Comercio(M)'!G302","v":442.57206303999999},{"$f":"'[1]EXT Comercio(M)'!H302","v":891.50000000000011},{"$f":"'[1]EXT Comercio(M)'!I302","v":1107.013461},{"$f":"'[1]EXT Comercio(M)'!K302","v":4237.4295812399941},{"$f":"'[1]EXT Comercio(M)'!L302","v":5344.4430422399928},null,null,{"$f":"'[1]EXT Comercio(M)'!AG302","v":1551.6847622299961},{"$f":"'[1]EXT Comercio(M)'!AH302","v":973.11999999999989},{"$f":"'[1]EXT Comercio(M)'!AI302","v":1668.1999999999998},{"$f":"'[1]EXT Comercio(M)'!AJ302","v":872.18026185558938},{"$f":"'[1]EXT Comercio(M)'!AK302","v":637.44248249999998},{"$f":"'[1]EXT Comercio(M)'!AL302","v":1574.5},{"$f":"'[1]EXT Comercio(M)'!AM302","v":1987.00476},{"$f":"'[1]EXT Comercio(M)'!AO302","v":7277.127506585588},{"$f":"'[1]EXT Comercio(M)'!AP302","v":9264.1322665855914},null,null,{"$f":"'[1]EXT Comercio(M)'!$BS302","v":-3039.6979253455902},{"$f":"'[1]EXT Comercio(M)'!$BT302","v":-3919.6892243455914}]
[null,null,"Junio",{"$f":"'[1]REAL IPC(M)'!AD303","v":4.5891347708327457},{"$f":"'[1]REAL IPC(M)'!AE303","v":1.138554769993581},{"$f":"'[1]REAL IPC(M)'!AF303","v":3.1321889930985725},{"$f":"'[1]REAL IPC(M)'!AG303","v":6.2331666025394563},{"$f":"'[1]REAL IPC(M)'!AH303","v":6.0528388698858784},{"$f":"'[1]REAL IPC(M)'!AI303","v":3.6773740565209732},{"$f":"'[1]REAL IPC(M)'!AJ303","v":3.3604180714767362},null,null,{"$f":"'[1]REAL IMAE(M)'!AG303","v":2.7783645281621494},{"$f":"'[1]REAL IMAE(M)'!AH303","v":2.2221250085580602},{"$f":"'[1]REAL IMAE(M)'!AI303","v":4.8211888144399477},{"$f":"'[1]REAL IMAE(M)'!AJ303","v":2.281905996196683},{"$f":"'[1]REAL IMAE(M)'!AK303","v":4.704495498619746},{"$f":"'[1]REAL IMAE(M)'!AL303","v":6.5769527854539991},{"$f":"'[1]REAL IMAE(M)'!AM303","v":4.7383896260555076},null,null,{"$f":"'[1]EXT ITCER(M)'!C303","v":75.236209079630044},{"$f":"'[1]EXT ITCER(M)'!D303","v":91.15370326589526},{"$f":"'[1]EXT ITCER(M)'!E303","v":61.184357234669797},{"$f":"'[1]EXT ITCER(M)'!F303","v":74.914608010037085},{"$f":"'[1]EXT ITCER(M)'!G303","v":96.180687421103116},{"$f":"'[1]EXT ITCER(M)'!H303","v":98.733885772913879},{"$f":"'[1]EXT ITCER(M)'!I303","v":87.188548375781565},null,null,{"$f":"'[1]EXT TC(M)'!J303","v":10.425610983858007},{"$f":"'[1]EXT TC(M)'!K303","v":0},{"$f":"'[1]EXT TC(M)'!L303","v":-0.14119009670625096},{"$f":"'[1]EXT TC(M)'!M303","v":2.6491297558054452},{"$f":"'[1]EXT TC(M)'!N303","v":5.2457950663664006},{"$f":"'[1]EXT TC(M)'!O303","v":4.5817194290758314},{"$f":"'[1]EXT TC(M)'!P303","v":0},null,null,{"$f":"'[1]EXT RIN(M)'!C303","v":7494.0057608999996},{"$f":"'[1]EXT RIN(M)'!D303","v":2660.2},{"$f":"'[1]EXT RIN(M)'!E303","v":7096.4},{"$f":"'[1]EXT RIN(M)'!F303","v":3172.9837429338422},{"$f":"'[1]EXT RIN(M)'!G303","v":1944.4},{"$f":"'[1]EXT RIN(M)'!H303","v":4666.5868257044622},{"$f":"'[1]EXT RIN(M)'!I303","v":2342.8661294499998},null,null,{"$f":"'[1]EXT RIN(M)'!P303","v":75.033481572145192},{"$f":"'[1]EXT RIN(M)'!Q303","v":103.96397332938349},{"$f":"'[1]EXT RIN(M)'!R303","v":101.6258509039103},{"$f":"'[1]EXT RIN(M)'!S303","v":79.877551713247001},{"$f":"'[1]EXT RIN(M)'!T303","v":113.44811748732486},{"$f":"'[1]EXT RIN(M)'!U303","v":80.146515619513281},{"$f":"'[1]EXT RIN(M)'!V303","v":189.30646638883479},null,null,{"$f":"+'[1]MONE(M)CAPARD'!AE303","v":2.2572758005314717},{"$f":"'[1]MONE(M)CAPARD'!AF303","v":2.8490077167498775},{"$f":"'[1]MONE(M)CAPARD'!AG303","v":2.2958991077556568},{"$f":"'[1]MONE(M)CAPARD'!AH303","v":4.3647700108656098},{"$f":"'[1]MONE(M)CAPARD'!AI303","v":2.8899220337058344},{"$f":"'[1]MONE(M)CAPARD'!AJ303","v":2.790026242275462},{"$f":"'[1]MONE(M)CAPARD'!AK303","v":-1.1807402623243857},null,null,{"$f":"'[1]MONE(M)CAPARD'!AL303","v":2.1550000000000002},{"$f":"'[1]MONE(M)CAPARD'!AM303","v":4.0199999999999996},{"$f":"'[1]MONE(M)CAPARD'!AN303","v":2.87},{"$f":"'[1]MONE(M)CAPARD'!AO303","v":4.08},{"$f":"'[1]MONE(M)CAPARD'!AP303","v":3.2976456399744682},{"$f":"'[1]MONE(M)CAPARD'!AQ303","v":1.67},{"$f":"'[1]MONE(M)CAPARD'!AR303","v":2.14},null,null,{"$f":"'[1]MONE(M)CAPARD'!J303","v":11.512539285796965},{"$f":"'[1]MONE(M)CAPARD'!K303","v":4.2233599636858745},{"$f":"'[1]MONE(M)CAPARD'!L303","v":10.382608098833211},{"$f":"'[1]MONE(M)CAPARD'!M303","v":13.505041651575496},{"$f":"'[1]MONE(M)CAPARD'!N303","v":13.651876945653461},{"$f":"'[1]MONE(M)CAPARD'!O303","v":8.8376331160585817},{"$f":"'[1]MONE(M)CAPARD'!P303","v":2.6214889404273785},null,null,{"$f":"'[1]MONE(M)CAPARD'!Q303","v":9.86},{"$f":"'[1]MONE(M)CAPARD'!R303","v":5.41},{"$f":"'[1]MONE(M)CAPARD'!S303","v":6.05},{"$f":"'[1]MONE(M)CAPARD'!T303","v":8.4700000000000006},{"$f":"'[1]MONE(M)CAPARD'!U303","v":8.7552409420964779},{"$f":"'[1]MONE(M)CAPARD'!V303","v":6.09},{"$f":"'[1]MONE(M)CAPARD'!W303","v":6.07},null,null,{"$f":"'[1]MONE(M)CAPARD'!AS303","v":5.25},{"$f":"'[1]MONE(M)CAPARD'!AT303","v":"n.a."},{"$f":"'[1]MONE(M)CAPARD'!AU303","v":4.5},{"$f":"'[1]MONE(M)CAPARD'!AV303","v":7},{"$f":"'[1]MONE(M)CAPARD'!AW303","v":"n.a."},{"$f":"'[1]MONE(M)CAPARD'!AX303","v":6.25},{"$f":"'[1]MONE(M)CAPARD'!AY303","v":"n.a."},null,null,{"$f":"+'Datos_Regional (M)'!CF296","v":18.019801212731366},{"$f":"+'Datos_Regional (M)'!CG296","v":7.7580447763694993},{"$f":"+'Datos_Regional (M)'!CH296","v":10.413653099562614},{"$f":"+'Datos_Regional (M)'!CI296","v":14.479832233971578},{"$f":"+'Datos_Regional (M)'!CJ296","v":22.307323844993654},{"$f":"+'Datos_Regional (M)'!CK296","v":12.775932108073151},{"$f":"+'Datos_Regional (M)'!CL296","v":10.304364312773039},null,null,972.6613579541621,447.03666666666669,851.21666666666658,331.22892874440873,422.39804893138597,800.96666666666681,1236.8452528333335,3825.508335629956,5062.3535884632884,null,null,1500.8286418591661,894.81,1482.4583333333337,772.76285969051276,603.28126310166681,1424.5500000000002,2080.9570379999991,6678.6910979846798,8759.6481359846784,null,null,-2853.1827623547229,-3697.2945475213892,null,null,{"$f":"'[1]EXT Comercio(M)'!C303","v":985.62447767999765},{"$f":"'[1]EXT Comercio(M)'!D303","v":471.69000000000005},{"$f":"'[1]EXT Comercio(M)'!E303","v":891.3},{"$f":"'[1]EXT Comercio(M)'!F303","v":389.5},{"$f":"'[1]EXT Comercio(M)'!G303","v":461.50967149999997},{"$f":"'[1]EXT Comercio(M)'!H303","v":855.7},{"$f":"'[1]EXT Comercio(M)'!I303","v":1311.7710199999999},{"$f":"'[1]EXT Comercio(M)'!K303","v":4055.3241491799999},{"$f":"'[1]EXT Comercio(M)'!L303","v":5367.0951691799964},null,null,{"$f":"'[1]EXT Comercio(M)'!AG303","v":1358.736797710003},{"$f":"'[1]EXT Comercio(M)'!AH303","v":864.64999999999964},{"$f":"'[1]EXT Comercio(M)'!AI303","v":1442.7},{"$f":"'[1]EXT Comercio(M)'!AJ303","v":787.45863861784983},{"$f":"'[1]EXT Comercio(M)'!AK303","v":635.56166019999989},{"$f":"'[1]EXT Comercio(M)'!AL303","v":1360.1},{"$f":"'[1]EXT Comercio(M)'!AM303","v":2148.4065799999989},{"$f":"'[1]EXT Comercio(M)'!AO303","v":6449.2070965278472},{"$f":"'[1]EXT Comercio(M)'!AP303","v":8597.6136765278425},null,null,{"$f":"'[1]EXT Comercio(M)'!$BS303","v":-2393.8829473478545},{"$f":"'[1]EXT Comercio(M)'!$BT303","v":-3230.5185073478497}]
[null,null,"Julio",{"$f":"'[1]REAL IPC(M)'!AD304","v":5.1860001486131093},{"$f":"'[1]REAL IPC(M)'!AE304","v":1.8293804008089676},{"$f":"'[1]REAL IPC(M)'!AF304","v":3.4139026111503221},{"$f":"'[1]REAL IPC(M)'!AG304","v":6.5900383141762413},{"$f":"'[1]REAL IPC(M)'!AH304","v":6.9365963772630739},{"$f":"'[1]REAL IPC(M)'!AI304","v":3.4103794156127263},{"$f":"'[1]REAL IPC(M)'!AJ304","v":2.1860121049092203},null,null,{"$f":"'[1]REAL IMAE(M)'!AG304","v":2.8332963656976138},{"$f":"'[1]REAL IMAE(M)'!AH304","v":1.6370262385445695},{"$f":"'[1]REAL IMAE(M)'!AI304","v":4.6215561499983489},{"$f":"'[1]REAL IMAE(M)'!AJ304","v":1.9966674556032398},{"$f":"'[1]REAL IMAE(M)'!AK304","v":4.3724037072733388},{"$f":"'[1]REAL IMAE(M)'!AL304","v":6.4266600635069437},{"$f":"'[1]REAL IMAE(M)'!AM304","v":4.8070083486204087},null,null,{"$f":"'[1]EXT ITCER(M)'!C304","v":73.031903459386129},{"$f":"'[1]EXT ITCER(M)'!D304","v":90.74551720017152},{"$f":"'[1]EXT ITCER(M)'!E304","v":60.643714899476727},{"$f":"'[1]EXT ITCER(M)'!F304","v":74.59293885216357},{"$f":"'[1]EXT ITCER(M)'!G304","v":96.289923895477699},{"$f":"'[1]EXT ITCER(M)'!H304","v":98.730444707756106},{"$f":"'[1]EXT ITCER(M)'!I304","v":88.052350416446103},null,null,{"$f":"'[1]EXT TC(M)'!J304","v":8.1035938991446805},{"$f":"'[1]EXT TC(M)'!K304","v":0},{"$f":"'[1]EXT TC(M)'!L304","v":-0.63110183543209863},{"$f":"'[1]EXT TC(M)'!M304","v":2.486249083148226},{"$f":"'[1]EXT TC(M)'!N304","v":5.1776131850202454},{"$f":"'[1]EXT TC(M)'!O304","v":3.7272386697432802},{"$f":"'[1]EXT TC(M)'!P304","v":0},null,null,{"$f":"'[1]EXT RIN(M)'!C304","v":7338.8224336200001},{"$f":"'[1]EXT RIN(M)'!D304","v":2697.5},{"$f":"'[1]EXT RIN(M)'!E304","v":7132.7},{"$f":"'[1]EXT RIN(M)'!F304","v":3148.2774924910527},{"$f":"'[1]EXT RIN(M)'!G304","v":1893.3},{"$f":"'[1]EXT RIN(M)'!H304","v":4538.0680927097028},{"$f":"'[1]EXT RIN(M)'!I304","v":2241.9406929100001},null,null,{"$f":"'[1]EXT RIN(M)'!P304","v":73.146186100125064},{"$f":"'[1]EXT RIN(M)'!Q304","v":102.52552971206956},{"$f":"'[1]EXT RIN(M)'!R304","v":99.02878079806581},{"$f":"'[1]EXT RIN(M)'!S304","v":82.695540457170907},{"$f":"'[1]EXT RIN(M)'!T304","v":115.2226013469021},{"$f":"'[1]EXT RIN(M)'!U304","v":79.006215103559313},{"$f":"'[1]EXT RIN(M)'!V304","v":178.42977724168071},null,null,{"$f":"+'[1]MONE(M)CAPARD'!AE304","v":1.7245639617667397},{"$f":"'[1]MONE(M)CAPARD'!AF304","v":2.0432409497156314},{"$f":"'[1]MONE(M)CAPARD'!AG304","v":1.9785515652989802},{"$f":"'[1]MONE(M)CAPARD'!AH304","v":3.8840043134435702},{"$f":"'[1]MONE(M)CAPARD'!AI304","v":2.0332755574637527},{"$f":"'[1]MONE(M)CAPARD'!AJ304","v":2.1367493252361753},{"$f":"'[1]MONE(M)CAPARD'!AK304","v":-4.5027791927119962E-2},null,null,{"$f":"'[1]MONE(M)CAPARD'!AL304","v":2.0300000000000002},{"$f":"'[1]MONE(M)CAPARD'!AM304","v":3.91},{"$f":"'[1]MONE(M)CAPARD'!AN304","v":2.89},{"$f":"'[1]MONE(M)CAPARD'!AO304","v":4.07},{"$f":"'[1]MONE(M)CAPARD'!AP304","v":3.1511898271855556},{"$f":"'[1]MONE(M)CAPARD'!AQ304","v":1.59},{"$f":"'[1]MONE(M)CAPARD'!AR304","v":2.14},null,null,{"$f":"'[1]MONE(M)CAPARD'!J304","v":10.917802592703978},{"$f":"'[1]MONE(M)CAPARD'!K304","v":4.0564123860251016},{"$f":"'[1]MONE(M)CAPARD'!L304","v":10.110920412863596},{"$f":"'[1]MONE(M)CAPARD'!M304","v":13.031200575125814},{"$f":"'[1]MONE(M)CAPARD'!N304","v":11.239635954553693},{"$f":"'[1]MONE(M)CAPARD'!O304","v":9.5441295546558784},{"$f":"'[1]MONE(M)CAPARD'!P304","v":3.8008997661081882},null,null,{"$f":"'[1]MONE(M)CAPARD'!Q304","v":10.27},{"$f":"'[1]MONE(M)CAPARD'!R304","v":5.96},{"$f":"'[1]MONE(M)CAPARD'!S304","v":6.06},{"$f":"'[1]MONE(M)CAPARD'!T304","v":8.5500000000000007},{"$f":"'[1]MONE(M)CAPARD'!U304","v":8.8135420345241116},{"$f":"'[1]MONE(M)CAPARD'!V304","v":6.11},{"$f":"'[1]MONE(M)CAPARD'!W304","v":6.07},null,null,{"$f":"'[1]MONE(M)CAPARD'!AS304","v":5.25},{"$f":"'[1]MONE(M)CAPARD'!AT304","v":"n.a."},{"$f":"'[1]MONE(M)CAPARD'!AU304","v":4.5},{"$f":"'[1]MONE(M)CAPARD'!AV304","v":7},{"$f":"'[1]MONE(M)CAPARD'!AW304","v":"n.a."},{"$f":"'[1]MONE(M)CAPARD'!AX304","v":6.25},{"$f":"'[1]MONE(M)CAPARD'!AY304","v":"n.a."},null,null,{"$f":"+'Datos_Regional (M)'!CF297","v":18.675937949737719},{"$f":"+'Datos_Regional (M)'!CG297","v":7.0833959268074898},{"$f":"+'Datos_Regional (M)'!CH297","v":10.286092499283539},{"$f":"+'Datos_Regional (M)'!CI297","v":13.393094543110928},{"$f":"+'Datos_Regional (M)'!CJ297","v":22.748009145778546},{"$f":"+'Datos_Regional (M)'!CK297","v":14.300843755879233},{"$f":"+'Datos_Regional (M)'!CL297","v":10.228862725009581},null,null,972.78184377499565,446.88083333333333,861.2833333333333,335.68636640853407,426.69775509502955,801.94166666666672,1226.9944818333333,3845.2717986118928,5072.2662804452257,null,null,1489.3766956983329,892.2700000000001,1489.791666666667,771.80269728644146,603.06233202500005,1430.4583333333337,2058.8183471666657,6676.7617250097765,8735.5800721764408,null,null,-2831.4899263978823,-3663.3137917312156,null,null,{"$f":"'[1]EXT Comercio(M)'!C304","v":950.81597858999521},{"$f":"'[1]EXT Comercio(M)'!D304","v":489.41000000000031},{"$f":"'[1]EXT Comercio(M)'!E304","v":948.6},{"$f":"'[1]EXT Comercio(M)'!F304","v":361.85023782248754},{"$f":"'[1]EXT Comercio(M)'!G304","v":462.38365571000003},{"$f":"'[1]EXT Comercio(M)'!H304","v":864.5},{"$f":"'[1]EXT Comercio(M)'!I304","v":1409.091942},{"$f":"'[1]EXT Comercio(M)'!K304","v":4077.5598721224815},{"$f":"'[1]EXT Comercio(M)'!L304","v":5486.6518141224842},null,null,{"$f":"'[1]EXT Comercio(M)'!AG304","v":1399.3977681800038},{"$f":"'[1]EXT Comercio(M)'!AH304","v":934.57000000000062},{"$f":"'[1]EXT Comercio(M)'!AI304","v":1620.3},{"$f":"'[1]EXT Comercio(M)'!AJ304","v":792.97155042683426},{"$f":"'[1]EXT Comercio(M)'!AK304","v":619.46643604999997},{"$f":"'[1]EXT Comercio(M)'!AL304","v":1520.8000000000002},{"$f":"'[1]EXT Comercio(M)'!AM304","v":2191.3331039999994},{"$f":"'[1]EXT Comercio(M)'!AO304","v":6887.5057546568423},{"$f":"'[1]EXT Comercio(M)'!AP304","v":9078.8388586568399},null,null,{"$f":"'[1]EXT Comercio(M)'!$BS304","v":-2809.9458825343572},{"$f":"'[1]EXT Comercio(M)'!$BT304","v":-3592.1870445343593}]
[null,null,"Agosto",{"$f":"'[1]REAL IPC(M)'!AD305","v":5.4857470660008785},{"$f":"'[1]REAL IPC(M)'!AE305","v":1.9932029025443203},{"$f":"'[1]REAL IPC(M)'!AF305","v":3.6997885835095161},{"$f":"'[1]REAL IPC(M)'!AG305","v":6.335877862595428},{"$f":"'[1]REAL IPC(M)'!AH305","v":6.7292712327953934},{"$f":"'[1]REAL IPC(M)'!AI305","v":3.1279785113941574},{"$f":"'[1]REAL IPC(M)'!AJ305","v":2.0791415157612425},null,null,{"$f":"'[1]REAL IMAE(M)'!AG305","v":2.969175064990762},{"$f":"'[1]REAL IMAE(M)'!AH305","v":0.51643642107065602},{"$f":"'[1]REAL IMAE(M)'!AI305","v":4.4177663664732894},{"$f":"'[1]REAL IMAE(M)'!AJ305","v":1.797061938444779},{"$f":"'[1]REAL IMAE(M)'!AK305","v":4.3524502560792575},{"$f":"'[1]REAL IMAE(M)'!AL305","v":6.5214785991821289},{"$f":"'[1]REAL IMAE(M)'!AM305","v":4.7986926162531622},null,null,{"$f":"'[1]EXT ITCER(M)'!C305","v":72.935426988357989},{"$f":"'[1]EXT ITCER(M)'!D305","v":90.510380275295915},{"$f":"'[1]EXT ITCER(M)'!E305","v":60.623594205272887},{"$f":"'[1]EXT ITCER(M)'!F305","v":74.772356688597739},{"$f":"'[1]EXT ITCER(M)'!G305","v":96.243216711059375},{"$f":"'[1]EXT ITCER(M)'!H305","v":98.38560668117492},{"$f":"'[1]EXT ITCER(M)'!I305","v":87.893999487289591},null,null,{"$f":"'[1]EXT TC(M)'!J305","v":8.3197710015542121},{"$f":"'[1]EXT TC(M)'!K305","v":0},{"$f":"'[1]EXT TC(M)'!L305","v":-1.208350408477818},{"$f":"'[1]EXT TC(M)'!M305","v":2.8824291328873706},{"$f":"'[1]EXT TC(M)'!N305","v":5.0450771464176727},{"$f":"'[1]EXT TC(M)'!O305","v":2.6502242152466398},{"$f":"'[1]EXT TC(M)'!P305","v":0},null,null,{"$f":"'[1]EXT RIN(M)'!C305","v":7342.8691060199999},{"$f":"'[1]EXT RIN(M)'!D305","v":2567.3000000000002},{"$f":"'[1]EXT RIN(M)'!E305","v":7248.1},{"$f":"'[1]EXT RIN(M)'!F305","v":3153.0439987387831},{"$f":"'[1]EXT RIN(M)'!G305","v":2018.6},{"$f":"'[1]EXT RIN(M)'!H305","v":4249.4965935608752},{"$f":"'[1]EXT RIN(M)'!I305","v":2458.3312767800003},null,null,{"$f":"'[1]EXT RIN(M)'!P305","v":72.746918649949279},{"$f":"'[1]EXT RIN(M)'!Q305","v":101.77948584173733},{"$f":"'[1]EXT RIN(M)'!R305","v":98.096372322605291},{"$f":"'[1]EXT RIN(M)'!S305","v":83.498866388261007},{"$f":"'[1]EXT RIN(M)'!T305","v":118.94837465577169},{"$f":"'[1]EXT RIN(M)'!U305","v":76.484728394753589},{"$f":"'[1]EXT RIN(M)'!V305","v":191.58180734447603},null,null,{"$f":"+'[1]MONE(M)CAPARD'!AE305","v":1.5303043102013649},{"$f":"'[1]MONE(M)CAPARD'!AF305","v":1.6832465778097969},{"$f":"'[1]MONE(M)CAPARD'!AG305","v":1.6974108053007111},{"$f":"'[1]MONE(M)CAPARD'!AH305","v":4.0570710696338761},{"$f":"'[1]MONE(M)CAPARD'!AI305","v":2.4753059049991029},{"$f":"'[1]MONE(M)CAPARD'!AJ305","v":2.0867484456393912},{"$f":"'[1]MONE(M)CAPARD'!AK305","v":0.23968088116621777},null,null,{"$f":"'[1]MONE(M)CAPARD'!AL305","v":1.9950000000000001},{"$f":"'[1]MONE(M)CAPARD'!AM305","v":3.71},{"$f":"'[1]MONE(M)CAPARD'!AN305","v":2.9},{"$f":"'[1]MONE(M)CAPARD'!AO305","v":4.08},{"$f":"'[1]MONE(M)CAPARD'!AP305","v":3.259807114781601},{"$f":"'[1]MONE(M)CAPARD'!AQ305","v":1.25},{"$f":"'[1]MONE(M)CAPARD'!AR305","v":2.3238057016331295},null,null,{"$f":"'[1]MONE(M)CAPARD'!J305","v":10.223421868787234},{"$f":"'[1]MONE(M)CAPARD'!K305","v":3.634356988472621},{"$f":"'[1]MONE(M)CAPARD'!L305","v":9.6819979612640132},{"$f":"'[1]MONE(M)CAPARD'!M305","v":13.357788944723611},{"$f":"'[1]MONE(M)CAPARD'!N305","v":11.807719486553735},{"$f":"'[1]MONE(M)CAPARD'!O305","v":9.8828869097630694},{"$f":"'[1]MONE(M)CAPARD'!P305","v":3.9095729303547877},null,null,{"$f":"'[1]MONE(M)CAPARD'!Q305","v":9.7899999999999991},{"$f":"'[1]MONE(M)CAPARD'!R305","v":5.7},{"$f":"'[1]MONE(M)CAPARD'!S305","v":6.06},{"$f":"'[1]MONE(M)CAPARD'!T305","v":8.59},{"$f":"'[1]MONE(M)CAPARD'!U305","v":8.937041737786096},{"$f":"'[1]MONE(M)CAPARD'!V305","v":5.88},{"$f":"'[1]MONE(M)CAPARD'!W305","v":6.07},null,null,{"$f":"'[1]MONE(M)CAPARD'!AS305","v":5.25},{"$f":"'[1]MONE(M)CAPARD'!AT305","v":"n.a."},{"$f":"'[1]MONE(M)CAPARD'!AU305","v":4.5},{"$f":"'[1]MONE(M)CAPARD'!AV305","v":7},{"$f":"'[1]MONE(M)CAPARD'!AW305","v":"n.a."},{"$f":"'[1]MONE(M)CAPARD'!AX305","v":6.25},{"$f":"'[1]MONE(M)CAPARD'!AY305","v":"n.a."},null,null,{"$f":"+'Datos_Regional (M)'!CF298","v":18.912349557529275},{"$f":"+'Datos_Regional (M)'!CG298","v":6.9231872000107941},{"$f":"+'Datos_Regional (M)'!CH298","v":8.3244703010580743},{"$f":"+'Datos_Regional (M)'!CI298","v":13.542185943796348},{"$f":"+'Datos_Regional (M)'!CJ298","v":22.724680010827527},{"$f":"+'Datos_Regional (M)'!CK298","v":13.9890171952622},{"$f":"+'Datos_Regional (M)'!CL298","v":11.102064261542388},null,null,973.15959110582924,443.07499999999999,867.08333333333337,336.99825188762412,427.52490675678541,805.98333333333323,1217.3039364166668,3853.824416416905,5071.1283528335716,null,null,1481.8615655233334,880.7791666666667,1496.0833333333337,775.58095279830195,601.31256648416672,1435.6499999999999,2045.4064366666653,6671.2675848058034,8716.6740214724687,null,null,-2817.4431683888979,-3645.5456686388975,null,null,{"$f":"'[1]EXT Comercio(M)'!C305","v":955.58525429999463},{"$f":"'[1]EXT Comercio(M)'!D305","v":435.7199999999998},{"$f":"'[1]EXT Comercio(M)'!E305","v":874},{"$f":"'[1]EXT Comercio(M)'!F305","v":302.95518771565958},{"$f":"'[1]EXT Comercio(M)'!G305","v":446.80092516999997},{"$f":"'[1]EXT Comercio(M)'!H305","v":842.8},{"$f":"'[1]EXT Comercio(M)'!I305","v":1160.9966349999997},{"$f":"'[1]EXT Comercio(M)'!K305","v":3857.861367185651},{"$f":"'[1]EXT Comercio(M)'!L305","v":5018.8580021856542},null,null,{"$f":"'[1]EXT Comercio(M)'!AG305","v":1435.2008952900021},{"$f":"'[1]EXT Comercio(M)'!AH305","v":767.76000000000022},{"$f":"'[1]EXT Comercio(M)'!AI305","v":1462.6999999999998},{"$f":"'[1]EXT Comercio(M)'!AJ305","v":812.39019750839088},{"$f":"'[1]EXT Comercio(M)'!AK305","v":623.92811762000008},{"$f":"'[1]EXT Comercio(M)'!AL305","v":1486.5},{"$f":"'[1]EXT Comercio(M)'!AM305","v":2056.5807309999905},{"$f":"'[1]EXT Comercio(M)'!AO305","v":6588.4792104183944},{"$f":"'[1]EXT Comercio(M)'!AP305","v":8645.0599414183816},null,null,{"$f":"'[1]EXT Comercio(M)'!$BS305","v":-2730.6178432327433},{"$f":"'[1]EXT Comercio(M)'!$BT305","v":-3626.2019392327347}]
[null,null,"Setiembre",{"$f":"'[1]REAL IPC(M)'!AD306","v":5.2030039783020205},{"$f":"'[1]REAL IPC(M)'!AE306","v":1.696313955620754},{"$f":"'[1]REAL IPC(M)'!AF306","v":3.4519104084321537},{"$f":"'[1]REAL IPC(M)'!AG306","v":6.1263318112633049},{"$f":"'[1]REAL IPC(M)'!AH306","v":6.4946284249925217},{"$f":"'[1]REAL IPC(M)'!AI306","v":2.8283176683625091},{"$f":"'[1]REAL IPC(M)'!AJ306","v":2.3458445040212177},null,null,{"$f":"'[1]REAL IMAE(M)'!AG306","v":3.17517505757111},{"$f":"'[1]REAL IMAE(M)'!AH306","v":0.10121127791812987},{"$f":"'[1]REAL IMAE(M)'!AI306","v":4.3991285521497918},{"$f":"'[1]REAL IMAE(M)'!AJ306","v":1.6977429866600062},{"$f":"'[1]REAL IMAE(M)'!AK306","v":4.6324160030826507},{"$f":"'[1]REAL IMAE(M)'!AL306","v":6.8941121852837917},{"$f":"'[1]REAL IMAE(M)'!AM306","v":4.8217642938769645},null,null,{"$f":"'[1]EXT ITCER(M)'!C306","v":73.052645452344024},{"$f":"'[1]EXT ITCER(M)'!D306","v":90.622956765707855},{"$f":"'[1]EXT ITCER(M)'!E306","v":59.939514724121452},{"$f":"'[1]EXT ITCER(M)'!F306","v":75.109392300257241},{"$f":"'[1]EXT ITCER(M)'!G306","v":96.559344569658109},{"$f":"'[1]EXT ITCER(M)'!H306","v":98.559326305676279},{"$f":"'[1]EXT ITCER(M)'!I306","v":87.612471697772222},null,null,{"$f":"'[1]EXT TC(M)'!J306","v":7.904128485764085},{"$f":"'[1]EXT TC(M)'!K306","v":0},{"$f":"'[1]EXT TC(M)'!L306","v":-2.7918580057184124},{"$f":"'[1]EXT TC(M)'!M306","v":3.1156706459651695},{"$f":"'[1]EXT TC(M)'!N306","v":4.7992831161460252},{"$f":"'[1]EXT TC(M)'!O306","v":2.4336461435328394},{"$f":"'[1]EXT TC(M)'!P306","v":0},null,null,{"$f":"'[1]EXT RIN(M)'!C306","v":7195.0737996799999},{"$f":"'[1]EXT RIN(M)'!D306","v":3026.5},{"$f":"'[1]EXT RIN(M)'!E306","v":7149.2},{"$f":"'[1]EXT RIN(M)'!F306","v":3028.3087496503927},{"$f":"'[1]EXT RIN(M)'!G306","v":2001.9},{"$f":"'[1]EXT RIN(M)'!H306","v":4023.3482828687684},{"$f":"'[1]EXT RIN(M)'!I306","v":3393.0334561599998},null,null,{"$f":"'[1]EXT RIN(M)'!P306","v":71.098251798859152},{"$f":"'[1]EXT RIN(M)'!Q306","v":102.43189877907541},{"$f":"'[1]EXT RIN(M)'!R306","v":96.370820502866295},{"$f":"'[1]EXT RIN(M)'!S306","v":82.205914054414038},{"$f":"'[1]EXT RIN(M)'!T306","v":120.46892847759236},{"$f":"'[1]EXT RIN(M)'!U306","v":75.373227874928801},{"$f":"'[1]EXT RIN(M)'!V306","v":272.85669528352116},null,null,{"$f":"+'[1]MONE(M)CAPARD'!AE306","v":1.8507038279054704},{"$f":"'[1]MONE(M)CAPARD'!AF306","v":2.2652601208186871},{"$f":"'[1]MONE(M)CAPARD'!AG306","v":1.9604177279673911},{"$f":"'[1]MONE(M)CAPARD'!AH306","v":4.1965722481176178},{"$f":"'[1]MONE(M)CAPARD'!AI306","v":1.8973781389538968},{"$f":"'[1]MONE(M)CAPARD'!AJ306","v":2.8024209643605853},{"$f":"'[1]MONE(M)CAPARD'!AK306","v":-0.50165283063914934},null,null,{"$f":"'[1]MONE(M)CAPARD'!AL306","v":1.9950000000000001},{"$f":"'[1]MONE(M)CAPARD'!AM306","v":4},{"$f":"'[1]MONE(M)CAPARD'!AN306","v":2.91},{"$f":"'[1]MONE(M)CAPARD'!AO306","v":4.07},{"$f":"'[1]MONE(M)CAPARD'!AP306","v":3.1332034575731758},{"$f":"'[1]MONE(M)CAPARD'!AQ306","v":1.1200000000000001},{"$f":"'[1]MONE(M)CAPARD'!AR306","v":1.832423678025253},null,null,{"$f":"'[1]MONE(M)CAPARD'!J306","v":10.899875087277007},{"$f":"'[1]MONE(M)CAPARD'!K306","v":3.91723739969345},{"$f":"'[1]MONE(M)CAPARD'!L306","v":9.9351375445746246},{"$f":"'[1]MONE(M)CAPARD'!M306","v":13.741799928289725},{"$f":"'[1]MONE(M)CAPARD'!N306","v":11.072734102998506},{"$f":"'[1]MONE(M)CAPARD'!O306","v":9.6001593291404586},{"$f":"'[1]MONE(M)CAPARD'!P306","v":3.6485658153243978},null,null,{"$f":"'[1]MONE(M)CAPARD'!Q306","v":9.98},{"$f":"'[1]MONE(M)CAPARD'!R306","v":5.68},{"$f":"'[1]MONE(M)CAPARD'!S306","v":6.04},{"$f":"'[1]MONE(M)CAPARD'!T306","v":8.6999999999999993},{"$f":"'[1]MONE(M)CAPARD'!U306","v":8.6048569535009278},{"$f":"'[1]MONE(M)CAPARD'!V306","v":6.2},{"$f":"'[1]MONE(M)CAPARD'!W306","v":6.08},null,null,{"$f":"'[1]MONE(M)CAPARD'!AS306","v":5.25},{"$f":"'[1]MONE(M)CAPARD'!AT306","v":"n.a."},{"$f":"'[1]MONE(M)CAPARD'!AU306","v":4.5},{"$f":"'[1]MONE(M)CAPARD'!AV306","v":7},{"$f":"'[1]MONE(M)CAPARD'!AW306","v":"n.a."},{"$f":"'[1]MONE(M)CAPARD'!AX306","v":6.25},{"$f":"'[1]MONE(M)CAPARD'!AY306","v":"n.a."},null,null,{"$f":"+'Datos_Regional (M)'!CF299","v":18.363441277265569},{"$f":"+'Datos_Regional (M)'!CG299","v":7.513795285795144},{"$f":"+'Datos_Regional (M)'!CH299","v":7.9394048259235239},{"$f":"+'Datos_Regional (M)'!CI299","v":13.327309509104124},{"$f":"+'Datos_Regional (M)'!CJ299","v":21.880076677301563},{"$f":"+'Datos_Regional (M)'!CK299","v":13.584334016463263},{"$f":"+'Datos_Regional (M)'!CL299","v":11.852208644893135},null,null,968.16115743582884,443.7949999999999,879.72500000000002,336.5738594669661,430.45093894508068,815,1195.8912709166666,3873.7059558478759,5069.5972267645411,null,null,1473.7290117908333,880.31916666666666,1501.8000000000002,779.77788766146466,601.53548121083338,1439.4416666666668,2063.7909170833314,6676.6032139964664,8740.3941310797982,null,null,-2802.8972581485891,-3670.7969043152548,null,null,{"$f":"'[1]EXT Comercio(M)'!C306","v":914.48691967999366},{"$f":"'[1]EXT Comercio(M)'!D306","v":435.23},{"$f":"'[1]EXT Comercio(M)'!E306","v":883.49999999999989},{"$f":"'[1]EXT Comercio(M)'!F306","v":284.86404253592264},{"$f":"'[1]EXT Comercio(M)'!G306","v":435.12414335},{"$f":"'[1]EXT Comercio(M)'!H306","v":838.7},{"$f":"'[1]EXT Comercio(M)'!I306","v":1377.4266849999999},{"$f":"'[1]EXT Comercio(M)'!K306","v":3791.905105565922},{"$f":"'[1]EXT Comercio(M)'!L306","v":5169.3317905659133},null,null,{"$f":"'[1]EXT Comercio(M)'!AG306","v":1403.0300525999992},{"$f":"'[1]EXT Comercio(M)'!AH306","v":843.15999999999985},{"$f":"'[1]EXT Comercio(M)'!AI306","v":1542.4},{"$f":"'[1]EXT Comercio(M)'!AJ306","v":783.62106174625478},{"$f":"'[1]EXT Comercio(M)'!AK306","v":563.03248318999999},{"$f":"'[1]EXT Comercio(M)'!AL306","v":1420.9},{"$f":"'[1]EXT Comercio(M)'!AM306","v":2456.3445379999989},{"$f":"'[1]EXT Comercio(M)'!AO306","v":6556.1435975362474},{"$f":"'[1]EXT Comercio(M)'!AP306","v":9012.4881355362595},null,null,{"$f":"'[1]EXT Comercio(M)'!$BS306","v":-2764.2384919703291},{"$f":"'[1]EXT Comercio(M)'!$BT306","v":-3843.1563449703244}]
[null,null,"Octubre",{"$f":"'[1]REAL IPC(M)'!AD307","v":5.7025699091009443},{"$f":"'[1]REAL IPC(M)'!AE307","v":1.8914700211183566},{"$f":"'[1]REAL IPC(M)'!AF307","v":3.6373220875065901},{"$f":"'[1]REAL IPC(M)'!AG307","v":6.3093880653743692},{"$f":"'[1]REAL IPC(M)'!AH307","v":6.6820460918601778},{"$f":"'[1]REAL IPC(M)'!AI307","v":2.8840341939383509},{"$f":"'[1]REAL IPC(M)'!AJ307","v":2.1037483266398893},null,null,{"$f":"'[1]REAL IMAE(M)'!AG307","v":3.5657590058295447},{"$f":"'[1]REAL IMAE(M)'!AH307","v":0.14264781545442856},{"$f":"'[1]REAL IMAE(M)'!AI307","v":4.6105672917473219},{"$f":"'[1]REAL IMAE(M)'!AJ307","v":1.7248481530428759},{"$f":"'[1]REAL IMAE(M)'!AK307","v":5.0374667564923499},{"$f":"'[1]REAL IMAE(M)'!AL307","v":7.3603509551157797},{"$f":"'[1]REAL IMAE(M)'!AM307","v":4.9497690107794972},null,null,{"$f":"'[1]EXT ITCER(M)'!C307","v":73.192617879965098},{"$f":"'[1]EXT ITCER(M)'!D307","v":90.5560322952131},{"$f":"'[1]EXT ITCER(M)'!E307","v":59.206744078562373},{"$f":"'[1]EXT ITCER(M)'!F307","v":75.317552919836828},{"$f":"'[1]EXT ITCER(M)'!G307","v":96.821963839813634},{"$f":"'[1]EXT ITCER(M)'!H307","v":98.968278801618297},{"$f":"'[1]EXT ITCER(M)'!I307","v":87.685286457274202},null,null,{"$f":"'[1]EXT TC(M)'!J307","v":8.0718428823876742},{"$f":"'[1]EXT TC(M)'!K307","v":0},{"$f":"'[1]EXT TC(M)'!L307","v":-4.0140914205450784},{"$f":"'[1]EXT TC(M)'!M307","v":3.6901158352918073},{"$f":"'[1]EXT TC(M)'!N307","v":4.7365639839323164},{"$f":"'[1]EXT TC(M)'!O307","v":3.2159098942010944},{"$f":"'[1]EXT TC(M)'!P307","v":0},null,null,{"$f":"'[1]EXT RIN(M)'!C307","v":7081.9497149600002},{"$f":"'[1]EXT RIN(M)'!D307","v":2902.3},{"$f":"'[1]EXT RIN(M)'!E307","v":7097.5},{"$f":"'[1]EXT RIN(M)'!F307","v":3018.38467049055},{"$f":"'[1]EXT RIN(M)'!G307","v":2042.1},{"$f":"'[1]EXT RIN(M)'!H307","v":4214.4045314446339},{"$f":"'[1]EXT RIN(M)'!I307","v":3416.7129762899995},null,null,{"$f":"'[1]EXT RIN(M)'!P307","v":69.160187865646989},{"$f":"'[1]EXT RIN(M)'!Q307","v":100.56211251466955},{"$f":"'[1]EXT RIN(M)'!R307","v":95.225415763414716},{"$f":"'[1]EXT RIN(M)'!S307","v":83.246838429204644},{"$f":"'[1]EXT RIN(M)'!T307","v":122.59127385256951},{"$f":"'[1]EXT RIN(M)'!U307","v":74.256989443886923},{"$f":"'[1]EXT RIN(M)'!V307","v":264.21301258489774},null,null,{"$f":"+'[1]MONE(M)CAPARD'!AE307","v":1.4166449237580248},{"$f":"'[1]MONE(M)CAPARD'!AF307","v":2.089016851401277},{"$f":"'[1]MONE(M)CAPARD'!AG307","v":1.7876551373346889},{"$f":"'[1]MONE(M)CAPARD'!AH307","v":3.9701215588130259},{"$f":"'[1]MONE(M)CAPARD'!AI307","v":1.0499921270427357},{"$f":"'[1]MONE(M)CAPARD'!AJ307","v":3.9811481326059552},{"$f":"'[1]MONE(M)CAPARD'!AK307","v":9.4268501340609295E-2},null,null,{"$f":"'[1]MONE(M)CAPARD'!AL307","v":2.0049999999999999},{"$f":"'[1]MONE(M)CAPARD'!AM307","v":4.0199999999999996},{"$f":"'[1]MONE(M)CAPARD'!AN307","v":2.88},{"$f":"'[1]MONE(M)CAPARD'!AO307","v":4.07},{"$f":"'[1]MONE(M)CAPARD'!AP307","v":1.6764860763201166},{"$f":"'[1]MONE(M)CAPARD'!AQ307","v":1.47},{"$f":"'[1]MONE(M)CAPARD'!AR307","v":2.2000000000000002},null,null,{"$f":"'[1]MONE(M)CAPARD'!J307","v":10.385206433806776},{"$f":"'[1]MONE(M)CAPARD'!K307","v":3.806530593854192},{"$f":"'[1]MONE(M)CAPARD'!L307","v":9.7384587995930811},{"$f":"'[1]MONE(M)CAPARD'!M307","v":13.687043260636409},{"$f":"'[1]MONE(M)CAPARD'!N307","v":8.9532797952461962},{"$f":"'[1]MONE(M)CAPARD'!O307","v":10.308660511959712},{"$f":"'[1]MONE(M)CAPARD'!P307","v":3.8943248788866129},null,null,{"$f":"'[1]MONE(M)CAPARD'!Q307","v":9.77},{"$f":"'[1]MONE(M)CAPARD'!R307","v":5.77},{"$f":"'[1]MONE(M)CAPARD'!S307","v":6.01},{"$f":"'[1]MONE(M)CAPARD'!T307","v":8.73},{"$f":"'[1]MONE(M)CAPARD'!U307","v":9.1931244131397474},{"$f":"'[1]MONE(M)CAPARD'!V307","v":6.38},{"$f":"'[1]MONE(M)CAPARD'!W307","v":6.08},null,null,{"$f":"'[1]MONE(M)CAPARD'!AS307","v":5.25},{"$f":"'[1]MONE(M)CAPARD'!AT307","v":"n.a."},{"$f":"'[1]MONE(M)CAPARD'!AU307","v":4.5},{"$f":"'[1]MONE(M)CAPARD'!AV307","v":7},{"$f":"'[1]MONE(M)CAPARD'!AW307","v":"n.a."},{"$f":"'[1]MONE(M)CAPARD'!AX307","v":6.25},{"$f":"'[1]MONE(M)CAPARD'!AY307","v":"n.a."},null,null,{"$f":"+'Datos_Regional (M)'!CF300","v":18.657382714563163},{"$f":"+'Datos_Regional (M)'!CG300","v":6.2157862944486997},{"$f":"+'Datos_Regional (M)'!CH300","v":7.80548995407917},{"$f":"+'Datos_Regional (M)'!CI300","v":11.65081502951546},{"$f":"+'Datos_Regional (M)'!CJ300","v":19.675782213652294},{"$f":"+'Datos_Regional (M)'!CK300","v":15.714664485400176},{"$f":"+'Datos_Regional (M)'!CL300","v":12.409416808922646},null,null,964.15950445166175,441.67499999999995,889.40833333333342,339.15580486887416,430.09189261329158,818.36666666666667,1191.3496108333334,3882.8572019338276,5074.2068127671591,null,null,1456.0698582624993,878.39583333333337,1499.3250000000005,779.03927281914582,607.2216464991667,1438.3666666666668,2066.731110499999,6658.4182775808122,8725.1493880808121,null,null,-2775.5610756469846,-3650.9425753136511,null,null,{"$f":"'[1]EXT Comercio(M)'!C307","v":968.31495752999399},{"$f":"'[1]EXT Comercio(M)'!D307","v":427.10999999999967},{"$f":"'[1]EXT Comercio(M)'!E307","v":883.30000000000007},{"$f":"'[1]EXT Comercio(M)'!F307","v":300.30237671422998},{"$f":"'[1]EXT Comercio(M)'!G307","v":438.13611964000006},{"$f":"'[1]EXT Comercio(M)'!H307","v":870.3},{"$f":"'[1]EXT Comercio(M)'!I307","v":1540.3114459999999},{"$f":"'[1]EXT Comercio(M)'!K307","v":3887.463453884222},{"$f":"'[1]EXT Comercio(M)'!L307","v":5427.7748998842289},null,null,{"$f":"'[1]EXT Comercio(M)'!AG307","v":1398.1084236600004},{"$f":"'[1]EXT Comercio(M)'!AH307","v":892},{"$f":"'[1]EXT Comercio(M)'!AI307","v":1575.2},{"$f":"'[1]EXT Comercio(M)'!AJ307","v":788.80492197267995},{"$f":"'[1]EXT Comercio(M)'!AK307","v":705.48317364000013},{"$f":"'[1]EXT Comercio(M)'!AL307","v":1578},{"$f":"'[1]EXT Comercio(M)'!AM307","v":2449.4931860000079},{"$f":"'[1]EXT Comercio(M)'!AO307","v":6937.5965192726944},{"$f":"'[1]EXT Comercio(M)'!AP307","v":9387.0897052726941},null,null,{"$f":"'[1]EXT Comercio(M)'!$BS307","v":-3050.1330653884615},{"$f":"'[1]EXT Comercio(M)'!$BT307","v":-3959.3148053884725}]
[null,null,"Noviembre",{"$f":"'[1]REAL IPC(M)'!AD308","v":5.8861964728978622},{"$f":"'[1]REAL IPC(M)'!AE308","v":1.2844036697247758},{"$f":"'[1]REAL IPC(M)'!AF308","v":3.3761917257062879},{"$f":"'[1]REAL IPC(M)'!AG308","v":6.4063684609552602},{"$f":"'[1]REAL IPC(M)'!AH308","v":7.6707930200482384},{"$f":"'[1]REAL IPC(M)'!AI308","v":2.675181221953757},{"$f":"'[1]REAL IPC(M)'!AJ308","v":1.6391973244147207},null,null,{"$f":"'[1]REAL IMAE(M)'!AG308","v":3.8659056671381573},{"$f":"'[1]REAL IMAE(M)'!AH308","v":-0.27586371224804562},{"$f":"'[1]REAL IMAE(M)'!AI308","v":4.8948527042905408},{"$f":"'[1]REAL IMAE(M)'!AJ308","v":1.9037668647098345},{"$f":"'[1]REAL IMAE(M)'!AK308","v":5.2919333406345697},{"$f":"'[1]REAL IMAE(M)'!AL308","v":7.7002308091084641},{"$f":"'[1]REAL IMAE(M)'!AM308","v":5.1731071546082825},null,null,{"$f":"'[1]EXT ITCER(M)'!C308","v":72.472767457065899},{"$f":"'[1]EXT ITCER(M)'!D308","v":90.85221056576809},{"$f":"'[1]EXT ITCER(M)'!E308","v":58.798765792813072},{"$f":"'[1]EXT ITCER(M)'!F308","v":75.139291494249818},{"$f":"'[1]EXT ITCER(M)'!G308","v":95.58851402323981},{"$f":"'[1]EXT ITCER(M)'!H308","v":99.419249363995405},{"$f":"'[1]EXT ITCER(M)'!I308","v":87.861414238185787},null,null,{"$f":"'[1]EXT TC(M)'!J308","v":7.6594192866525042},{"$f":"'[1]EXT TC(M)'!K308","v":0},{"$f":"'[1]EXT TC(M)'!L308","v":-3.5265544781100342},{"$f":"'[1]EXT TC(M)'!M308","v":3.913497445993293},{"$f":"'[1]EXT TC(M)'!N308","v":4.7609481965252307},{"$f":"'[1]EXT TC(M)'!O308","v":3.6798473893690682},{"$f":"'[1]EXT TC(M)'!P308","v":0},null,null,{"$f":"'[1]EXT RIN(M)'!C308","v":7252.1965410499997},{"$f":"'[1]EXT RIN(M)'!D308","v":2766.3},{"$f":"'[1]EXT RIN(M)'!E308","v":7053.5},{"$f":"'[1]EXT RIN(M)'!F308","v":3066.9136443693001},{"$f":"'[1]EXT RIN(M)'!G308","v":1999.9},{"$f":"'[1]EXT RIN(M)'!H308","v":4208.1044533984232},{"$f":"'[1]EXT RIN(M)'!I308","v":3929.1359555600002},null,null,{"$f":"'[1]EXT RIN(M)'!P308","v":68.420754326800733},{"$f":"'[1]EXT RIN(M)'!Q308","v":99.526204465673132},{"$f":"'[1]EXT RIN(M)'!R308","v":95.275108695118305},{"$f":"'[1]EXT RIN(M)'!S308","v":83.941997023633391},{"$f":"'[1]EXT RIN(M)'!T308","v":120.52416540746822},{"$f":"'[1]EXT RIN(M)'!U308","v":72.018701868038917},{"$f":"'[1]EXT RIN(M)'!V308","v":298.53350137229751},null,null,{"$f":"+'[1]MONE(M)CAPARD'!AE308","v":1.2407694023067617},{"$f":"'[1]MONE(M)CAPARD'!AF308","v":2.8490036231884006},{"$f":"'[1]MONE(M)CAPARD'!AG308","v":2.0447728234199181},{"$f":"'[1]MONE(M)CAPARD'!AH308","v":3.8377698610616404},{"$f":"'[1]MONE(M)CAPARD'!AI308","v":0.89294637744071947},{"$f":"'[1]MONE(M)CAPARD'!AJ308","v":4.7478063540090645},{"$f":"'[1]MONE(M)CAPARD'!AK308","v":0.57143571660789294},null,null,{"$f":"'[1]MONE(M)CAPARD'!AL308","v":1.99},{"$f":"'[1]MONE(M)CAPARD'!AM308","v":4.17},{"$f":"'[1]MONE(M)CAPARD'!AN308","v":2.91},{"$f":"'[1]MONE(M)CAPARD'!AO308","v":4.03},{"$f":"'[1]MONE(M)CAPARD'!AP308","v":1.4779276643903798},{"$f":"'[1]MONE(M)CAPARD'!AQ308","v":1.51},{"$f":"'[1]MONE(M)CAPARD'!AR308","v":2.2200000000000002},null,null,{"$f":"'[1]MONE(M)CAPARD'!J308","v":10.023783912021809},{"$f":"'[1]MONE(M)CAPARD'!K308","v":4.0732789855072404},{"$f":"'[1]MONE(M)CAPARD'!L308","v":9.9866401556815294},{"$f":"'[1]MONE(M)CAPARD'!M308","v":13.451856074100471},{"$f":"'[1]MONE(M)CAPARD'!N308","v":9.2056576024198637},{"$f":"'[1]MONE(M)CAPARD'!O308","v":11.429070432005366},{"$f":"'[1]MONE(M)CAPARD'!P308","v":4.3691831424160181},null,null,{"$f":"'[1]MONE(M)CAPARD'!Q308","v":9.8699999999999992},{"$f":"'[1]MONE(M)CAPARD'!R308","v":5.41},{"$f":"'[1]MONE(M)CAPARD'!S308","v":6.02},{"$f":"'[1]MONE(M)CAPARD'!T308","v":8.7200000000000006},{"$f":"'[1]MONE(M)CAPARD'!U308","v":8.8734313551955513},{"$f":"'[1]MONE(M)CAPARD'!V308","v":7.02},{"$f":"'[1]MONE(M)CAPARD'!W308","v":6.08},null,null,{"$f":"'[1]MONE(M)CAPARD'!AS308","v":5.25},{"$f":"'[1]MONE(M)CAPARD'!AT308","v":"n.a."},{"$f":"'[1]MONE(M)CAPARD'!AU308","v":4},{"$f":"'[1]MONE(M)CAPARD'!AV308","v":7},{"$f":"'[1]MONE(M)CAPARD'!AW308","v":"n.a."},{"$f":"'[1]MONE(M)CAPARD'!AX308","v":6.25},{"$f":"'[1]MONE(M)CAPARD'!AY308","v":"n.a."},null,null,{"$f":"+'Datos_Regional (M)'!CF301","v":18.191490178279125},{"$f":"+'Datos_Regional (M)'!CG301","v":5.3824459775601019},{"$f":"+'Datos_Regional (M)'!CH301","v":8.2248070651267611},{"$f":"+'Datos_Regional (M)'!CI301","v":11.781050769067036},{"$f":"+'Datos_Regional (M)'!CJ301","v":20.967918216604264},{"$f":"+'Datos_Regional (M)'!CK301","v":16.456437494943433},{"$f":"+'Datos_Regional (M)'!CL301","v":31.137047482721659},null,null,949.76055213916152,443.56333333333333,892.42500000000007,337.36793866457577,428.87945696505818,816.52500000000009,1166.542095,3868.5212811021283,5035.0633761021281,null,null,1440.0730863341653,873.5383333333333,1508.708333333333,775.23611185568723,611.70602182499999,1438.5916666666665,2055.744708249998,6647.8535533481872,8703.5982615981848,null,null,-2779.3322722460575,-3668.5348854960557,null,null,{"$f":"'[1]EXT Comercio(M)'!C308","v":819.0983610599942},{"$f":"'[1]EXT Comercio(M)'!D308","v":426.26000000000022},{"$f":"'[1]EXT Comercio(M)'!E308","v":839.19999999999993},{"$f":"'[1]EXT Comercio(M)'!F308","v":267.39973012098972},{"$f":"'[1]EXT Comercio(M)'!G308","v":389.28889178999998},{"$f":"'[1]EXT Comercio(M)'!H308","v":733.7},{"$f":"'[1]EXT Comercio(M)'!I308","v":1071.5564400000001},{"$f":"'[1]EXT Comercio(M)'!K308","v":3474.9469829709778},{"$f":"'[1]EXT Comercio(M)'!L308","v":4546.5034229709781},null,null,{"$f":"'[1]EXT Comercio(M)'!AG308","v":1323.1088257199947},{"$f":"'[1]EXT Comercio(M)'!AH308","v":869.10999999999876},{"$f":"'[1]EXT Comercio(M)'!AI308","v":1556.1},{"$f":"'[1]EXT Comercio(M)'!AJ308","v":761.37066970864726},{"$f":"'[1]EXT Comercio(M)'!AK308","v":662.78436150999994},{"$f":"'[1]EXT Comercio(M)'!AL308","v":1418.2000000000003},{"$f":"'[1]EXT Comercio(M)'!AM308","v":1879.3949029999876},{"$f":"'[1]EXT Comercio(M)'!AO308","v":6590.6738569386362},{"$f":"'[1]EXT Comercio(M)'!AP308","v":8470.0687599386147},null,null,{"$f":"'[1]EXT Comercio(M)'!$BS308","v":-3115.7268739676583},{"$f":"'[1]EXT Comercio(M)'!$BT308","v":-3923.5653369676438}]
[null,null,"Diciembre ",{"$f":"'[1]REAL IPC(M)'!AD309","v":5.127185268704018},{"$f":"'[1]REAL IPC(M)'!AE309","v":0.47715177096714623},{"$f":"'[1]REAL IPC(M)'!AF309","v":2.9473317056156221},{"$f":"'[1]REAL IPC(M)'!AG309","v":5.8201058201058107},{"$f":"'[1]REAL IPC(M)'!AH309","v":6.4796923391486985},{"$f":"'[1]REAL IPC(M)'!AI309","v":1.5819791935345335},{"$f":"'[1]REAL IPC(M)'!AJ309","v":1.007019726376557},null,null,{"$f":"'[1]REAL IMAE(M)'!AG309","v":3.9411260444167748},{"$f":"'[1]REAL IMAE(M)'!AH309","v":-0.53999522638202402},{"$f":"'[1]REAL IMAE(M)'!AI309","v":5.0056489701866953},{"$f":"'[1]REAL IMAE(M)'!AJ309","v":2.1672975739466374},{"$f":"'[1]REAL IMAE(M)'!AK309","v":5.2177275013814484},{"$f":"'[1]REAL IMAE(M)'!AL309","v":7.8677837358973237},{"$f":"'[1]REAL IMAE(M)'!AM309","v":5.4658385093167841},null,null,{"$f":"'[1]EXT ITCER(M)'!C309","v":72.119800309036961},{"$f":"'[1]EXT ITCER(M)'!D309","v":91.31639410485262},{"$f":"'[1]EXT ITCER(M)'!E309","v":58.722924952111242},{"$f":"'[1]EXT ITCER(M)'!F309","v":75.519192844573752},{"$f":"'[1]EXT ITCER(M)'!G309","v":95.551694769427627},{"$f":"'[1]EXT ITCER(M)'!H309","v":100.0809031649051},{"$f":"'[1]EXT ITCER(M)'!I309","v":87.903409337918617},null,null,{"$f":"'[1]EXT TC(M)'!J309","v":7.2544773441386061},{"$f":"'[1]EXT TC(M)'!K309","v":0},{"$f":"'[1]EXT TC(M)'!L309","v":-3.0209670408671845},{"$f":"'[1]EXT TC(M)'!M309","v":4.279801850197841},{"$f":"'[1]EXT TC(M)'!N309","v":4.9051835323080777},{"$f":"'[1]EXT TC(M)'!O309","v":3.6116459582378662},{"$f":"'[1]EXT TC(M)'!P309","v":0},null,null,{"$f":"'[1]EXT RIN(M)'!C309","v":7211.4158651300004},{"$f":"'[1]EXT RIN(M)'!D309","v":2661.2},{"$f":"'[1]EXT RIN(M)'!E309","v":7333.4},{"$f":"'[1]EXT RIN(M)'!F309","v":3516.4834622255066},{"$f":"'[1]EXT RIN(M)'!G309","v":2153.1999999999998},{"$f":"'[1]EXT RIN(M)'!H309","v":4650.4486369269598},{"$f":"'[1]EXT RIN(M)'!I309","v":3969.8091757400002},null,null,{"$f":"'[1]EXT RIN(M)'!P309","v":67.562552295822115},{"$f":"'[1]EXT RIN(M)'!Q309","v":99.133863870117182},{"$f":"'[1]EXT RIN(M)'!R309","v":93.108592957703152},{"$f":"'[1]EXT RIN(M)'!S309","v":85.486224566856862},{"$f":"'[1]EXT RIN(M)'!T309","v":117.84863909039451},{"$f":"'[1]EXT RIN(M)'!U309","v":69.917130498146236},{"$f":"'[1]EXT RIN(M)'!V309","v":295.60101374910232},null,null,{"$f":"+'[1]MONE(M)CAPARD'!AE309","v":1.9717209454413611},{"$f":"'[1]MONE(M)CAPARD'!AF309","v":3.8843141552511455},{"$f":"'[1]MONE(M)CAPARD'!AG309","v":2.4407318312722381},{"$f":"'[1]MONE(M)CAPARD'!AH309","v":4.4319500000000094},{"$f":"'[1]MONE(M)CAPARD'!AI309","v":1.7307145351728779},{"$f":"'[1]MONE(M)CAPARD'!AJ309","v":6.8595048666948655},{"$f":"'[1]MONE(M)CAPARD'!AK309","v":1.1711861975812008},null,null,{"$f":"'[1]MONE(M)CAPARD'!AL309","v":1.9750000000000001},{"$f":"'[1]MONE(M)CAPARD'!AM309","v":4.38},{"$f":"'[1]MONE(M)CAPARD'!AN309","v":2.93},{"$f":"'[1]MONE(M)CAPARD'!AO309","v":4.07},{"$f":"'[1]MONE(M)CAPARD'!AP309","v":2.3846510474335099},{"$f":"'[1]MONE(M)CAPARD'!AQ309","v":1.53},{"$f":"'[1]MONE(M)CAPARD'!AR309","v":2.19},null,null,{"$f":"'[1]MONE(M)CAPARD'!J309","v":11.303274886437443},{"$f":"'[1]MONE(M)CAPARD'!K309","v":5.2079981735159855},{"$f":"'[1]MONE(M)CAPARD'!L309","v":10.386542436049471},{"$f":"'[1]MONE(M)CAPARD'!M309","v":14.014250000000008},{"$f":"'[1]MONE(M)CAPARD'!N309","v":10.574557395533191},{"$f":"'[1]MONE(M)CAPARD'!O309","v":12.46089208633092},{"$f":"'[1]MONE(M)CAPARD'!P309","v":5.0224036778492396},null,null,{"$f":"'[1]MONE(M)CAPARD'!Q309","v":9.85},{"$f":"'[1]MONE(M)CAPARD'!R309","v":5.71},{"$f":"'[1]MONE(M)CAPARD'!S309","v":5.98},{"$f":"'[1]MONE(M)CAPARD'!T309","v":8.65},{"$f":"'[1]MONE(M)CAPARD'!U309","v":8.7287822913177706},{"$f":"'[1]MONE(M)CAPARD'!V309","v":7.04},{"$f":"'[1]MONE(M)CAPARD'!W309","v":6.08},null,null,{"$f":"'[1]MONE(M)CAPARD'!AS309","v":5.25},{"$f":"'[1]MONE(M)CAPARD'!AT309","v":"n.a."},{"$f":"'[1]MONE(M)CAPARD'!AU309","v":4},{"$f":"'[1]MONE(M)CAPARD'!AV309","v":7},{"$f":"'[1]MONE(M)CAPARD'!AW309","v":"n.a."},{"$f":"'[1]MONE(M)CAPARD'!AX309","v":6.25},{"$f":"'[1]MONE(M)CAPARD'!AY309","v":"n.a."},null,null,{"$f":"+'Datos_Regional (M)'!CF302","v":17.699149245839529},{"$f":"+'Datos_Regional (M)'!CG302","v":4.607699517009789},{"$f":"+'Datos_Regional (M)'!CH302","v":8.5450118224117855},{"$f":"+'Datos_Regional (M)'!CI302","v":11.461296669765119},{"$f":"+'Datos_Regional (M)'!CJ302","v":20.597010544536044},{"$f":"+'Datos_Regional (M)'!CK302","v":19.50387132761271},{"$f":"+'Datos_Regional (M)'!CL302","v":38.904317287157419},null,null,941.67862765582856,441.79416666666657,900.29166666666686,339.38115969107946,432.97788835166665,824.9083333333333,1165.4758718333335,3881.0318423652411,5046.5077141985748,null,null,1432.3780676283329,876.18249999999989,1523.4833333333333,775.90356321831939,614.10667864833329,1439.4250000000002,2064.5656675833316,6661.4791428283179,8726.0448104116495,null,null,-2780.4473004630777,-3679.537096213076,null,null,{"$f":"'[1]EXT Comercio(M)'!C309","v":791.27212179999879},{"$f":"'[1]EXT Comercio(M)'!D309","v":405.07999999999902},{"$f":"'[1]EXT Comercio(M)'!E309","v":920.1},{"$f":"'[1]EXT Comercio(M)'!F309","v":362.70234138366413},{"$f":"'[1]EXT Comercio(M)'!G309","v":393.92700533000004},{"$f":"'[1]EXT Comercio(M)'!H309","v":831.3},{"$f":"'[1]EXT Comercio(M)'!I309","v":846.0172500000001},{"$f":"'[1]EXT Comercio(M)'!K309","v":3704.3814685136676},{"$f":"'[1]EXT Comercio(M)'!L309","v":4550.3987185136721},null,null,{"$f":"'[1]EXT Comercio(M)'!AG309","v":1301.7278230500024},{"$f":"'[1]EXT Comercio(M)'!AH309","v":821.31999999999971},{"$f":"'[1]EXT Comercio(M)'!AI309","v":1513.2},{"$f":"'[1]EXT Comercio(M)'!AJ309","v":770.70106496615517},{"$f":"'[1]EXT Comercio(M)'!AK309","v":631.53236861000016},{"$f":"'[1]EXT Comercio(M)'!AL309","v":1398.1},{"$f":"'[1]EXT Comercio(M)'!AM309","v":1858.2538030000048},{"$f":"'[1]EXT Comercio(M)'!AO309","v":6436.5812566261448},{"$f":"'[1]EXT Comercio(M)'!AP309","v":8294.8350596261589},null,null,{"$f":"'[1]EXT Comercio(M)'!$BS309","v":-2732.1997881124917},{"$f":"'[1]EXT Comercio(M)'!$BT309","v":-3744.4363411124941}]
[null,2015,"Enero",{"$f":"'[1]REAL IPC(M)'!AD310","v":4.3859265811975288},{"$f":"'[1]REAL IPC(M)'!AE310","v":-0.74879006483426835},{"$f":"'[1]REAL IPC(M)'!AF310","v":2.3223449595546679},{"$f":"'[1]REAL IPC(M)'!AG310","v":3.8346984363365428},{"$f":"'[1]REAL IPC(M)'!AH310","v":5.4492658379268457},{"$f":"'[1]REAL IPC(M)'!AI310","v":1.1580030880082688},{"$f":"'[1]REAL IPC(M)'!AJ310","v":0.86970705725709541},null,null,{"$f":"'[1]REAL IMAE(M)'!AG310","v":4.0050147404473622},{"$f":"'[1]REAL IMAE(M)'!AH310","v":-4.9952285478600193E-2},{"$f":"'[1]REAL IMAE(M)'!AI310","v":4.7648835968403622},{"$f":"'[1]REAL IMAE(M)'!AJ310","v":2.5020421165814186},{"$f":"'[1]REAL IMAE(M)'!AK310","v":4.7669409255196626},{"$f":"'[1]REAL IMAE(M)'!AL310","v":7.7482179431863418},{"$f":"'[1]REAL IMAE(M)'!AM310","v":5.3688810546803296},null,null,{"$f":"'[1]EXT ITCER(M)'!C310","v":71.928804002710748},{"$f":"'[1]EXT ITCER(M)'!D310","v":91.410869773669788},{"$f":"'[1]EXT ITCER(M)'!E310","v":58.696006144170688},{"$f":"'[1]EXT ITCER(M)'!F310","v":75.792984409712517},{"$f":"'[1]EXT ITCER(M)'!G310","v":95.804128647328142},{"$f":"'[1]EXT ITCER(M)'!H310","v":100.348378918281},{"$f":"'[1]EXT ITCER(M)'!I310","v":87.28764458059878},null,null,{"$f":"'[1]EXT TC(M)'!J310","v":7.0665265655937812},{"$f":"'[1]EXT TC(M)'!K310","v":0},{"$f":"'[1]EXT TC(M)'!L310","v":-2.6285482272908345},{"$f":"'[1]EXT TC(M)'!M310","v":4.7493919385957337},{"$f":"'[1]EXT TC(M)'!N310","v":4.8934605174955434},{"$f":"'[1]EXT TC(M)'!O310","v":3.7292540558699918},{"$f":"'[1]EXT TC(M)'!P310","v":0},null,null,{"$f":"'[1]EXT RIN(M)'!C310","v":7323.6687877000004},{"$f":"'[1]EXT RIN(M)'!D310","v":2672.6},{"$f":"'[1]EXT RIN(M)'!E310","v":7656},{"$f":"'[1]EXT RIN(M)'!F310","v":3407.6230623486281},{"$f":"'[1]EXT RIN(M)'!G310","v":2157.6},{"$f":"'[1]EXT RIN(M)'!H310","v":4369.8},{"$f":"'[1]EXT RIN(M)'!I310","v":3957.7766050899995},null,null,{"$f":"'[1]EXT RIN(M)'!P310","v":68.803001206105165},{"$f":"'[1]EXT RIN(M)'!Q310","v":98.506806943465648},{"$f":"'[1]EXT RIN(M)'!R310","v":101.11261165666197},{"$f":"'[1]EXT RIN(M)'!S310","v":84.995025802949101},{"$f":"'[1]EXT RIN(M)'!T310","v":118.42733582466975},{"$f":"'[1]EXT RIN(M)'!U310","v":73.67405473804196},{"$f":"'[1]EXT RIN(M)'!V310","v":312.54423122365955},null,null,{"$f":"+'[1]MONE(M)CAPARD'!AE310","v":2.6958360297865629},{"$f":"'[1]MONE(M)CAPARD'!AF310","v":5.026427454227627},{"$f":"'[1]MONE(M)CAPARD'!AG310","v":3.0566686501190055},{"$f":"'[1]MONE(M)CAPARD'!AH310","v":6.3324704195052162},{"$f":"'[1]MONE(M)CAPARD'!AI310","v":2.9146797647675968},{"$f":"'[1]MONE(M)CAPARD'!AJ310","v":5.794891885016499},{"$f":"'[1]MONE(M)CAPARD'!AK310","v":1.289081708153285},null,null,{"$f":"'[1]MONE(M)CAPARD'!AL310","v":1.95},{"$f":"'[1]MONE(M)CAPARD'!AM310","v":4.24},{"$f":"'[1]MONE(M)CAPARD'!AN310","v":2.94},{"$f":"'[1]MONE(M)CAPARD'!AO310","v":4.0999999999999996},{"$f":"'[1]MONE(M)CAPARD'!AP310","v":3.28},{"$f":"'[1]MONE(M)CAPARD'!AQ310","v":1.79},{"$f":"'[1]MONE(M)CAPARD'!AR310","v":2.17},null,null,{"$f":"'[1]MONE(M)CAPARD'!J310","v":11.873318391403684},{"$f":"'[1]MONE(M)CAPARD'!K310","v":6.4168387156132187},{"$f":"'[1]MONE(M)CAPARD'!L310","v":11.021693301598093},{"$f":"'[1]MONE(M)CAPARD'!M310","v":16.319498027967033},{"$f":"'[1]MONE(M)CAPARD'!N310","v":11.37982498802463},{"$f":"'[1]MONE(M)CAPARD'!O310","v":12.823500381582258},{"$f":"'[1]MONE(M)CAPARD'!P310","v":5.3041622691596553},null,null,{"$f":"'[1]MONE(M)CAPARD'!Q310","v":9.5500000000000007},{"$f":"'[1]MONE(M)CAPARD'!R310","v":5.62},{"$f":"'[1]MONE(M)CAPARD'!S310","v":5.96},{"$f":"'[1]MONE(M)CAPARD'!T310","v":8.68},{"$f":"'[1]MONE(M)CAPARD'!U310","v":9.08},{"$f":"'[1]MONE(M)CAPARD'!V310","v":7.17},{"$f":"'[1]MONE(M)CAPARD'!W310","v":6.22},null,null,{"$f":"'[1]MONE(M)CAPARD'!AS310","v":5.25},{"$f":"'[1]MONE(M)CAPARD'!AT310","v":"n.a."},{"$f":"'[1]MONE(M)CAPARD'!AU310","v":4},{"$f":"'[1]MONE(M)CAPARD'!AV310","v":7},{"$f":"'[1]MONE(M)CAPARD'!AW310","v":"n.a."},{"$f":"'[1]MONE(M)CAPARD'!AX310","v":6.25},{"$f":"'[1]MONE(M)CAPARD'!AY310","v":"n.a."},null,null,{"$f":"+'Datos_Regional (M)'!CF303","v":16.680450072164057},{"$f":"+'Datos_Regional (M)'!CG303","v":5.169481504845308},{"$f":"+'Datos_Regional (M)'!CH303","v":8.7780408035045276},{"$f":"+'Datos_Regional (M)'!CI303","v":10.884113643042426},{"$f":"+'Datos_Regional (M)'!CJ303","v":20.518058031041299},{"$f":"+'Datos_Regional (M)'!CK303","v":18.393849061736823},{"$f":"+'Datos_Regional (M)'!CL303","v":14.077215555055588},null,null,931.39071035166182,443.54083333333324,903.94166666666672,338.51159638696373,429.51955958958337,821.41666666666663,1180.1143381666668,3868.3210329948756,5048.4353711615431,null,null,1406.2399529108327,872.9649999999998,1507.7333333333336,780.25084998680552,609.17029510500004,1435.125,2076.4710520833319,6611.4844313359708,8687.9554834193023,null,null,-2743.1633983410957,-3639.5201122577614,null,null,{"$f":"'[1]EXT Comercio(M)'!C310","v":731.46667235999394},{"$f":"'[1]EXT Comercio(M)'!D310","v":425.66000000000008},{"$f":"'[1]EXT Comercio(M)'!E310","v":879.2},{"$f":"'[1]EXT Comercio(M)'!F310","v":330.6652403506111},{"$f":"'[1]EXT Comercio(M)'!G310","v":392.37144919500003},{"$f":"'[1]EXT Comercio(M)'!H310","v":691.7},{"$f":"'[1]EXT Comercio(M)'!I310","v":1097.180801},{"$f":"'[1]EXT Comercio(M)'!K310","v":3451.0633619056052},{"$f":"'[1]EXT Comercio(M)'!L310","v":4548.2441629056048},null,null,{"$f":"'[1]EXT Comercio(M)'!AG310","v":1204.1686299800003},{"$f":"'[1]EXT Comercio(M)'!AH310","v":857.23},{"$f":"'[1]EXT Comercio(M)'!AI310","v":1358.9},{"$f":"'[1]EXT Comercio(M)'!AJ310","v":732.4309836058801},{"$f":"'[1]EXT Comercio(M)'!AK310","v":544.80786382999997},{"$f":"'[1]EXT Comercio(M)'!AL310","v":1258.0999999999999},{"$f":"'[1]EXT Comercio(M)'!AM310","v":2110.5492549999999},{"$f":"'[1]EXT Comercio(M)'!AO310","v":5955.6374774158812},{"$f":"'[1]EXT Comercio(M)'!AP310","v":8066.1867324158811},null,null,{"$f":"'[1]EXT Comercio(M)'!$BS310","v":-2504.5741155102751},{"$f":"'[1]EXT Comercio(M)'!$BT310","v":-3517.942569510275}]
[null,null,"Febrero",{"$f":"'[1]REAL IPC(M)'!AD311","v":3.5270960116658623},{"$f":"'[1]REAL IPC(M)'!AE311","v":-1.0572366022602959},{"$f":"'[1]REAL IPC(M)'!AF311","v":2.4392361111111129},{"$f":"'[1]REAL IPC(M)'!AG311","v":3.6558345642540533},{"$f":"'[1]REAL IPC(M)'!AH311","v":5.5092102810453287},{"$f":"'[1]REAL IPC(M)'!AI311","v":1.0172679090443146},{"$f":"'[1]REAL IPC(M)'!AJ311","v":-0.44933774834437845},null,null,{"$f":"'[1]REAL IMAE(M)'!AG311","v":4.3160240157872716},{"$f":"'[1]REAL IMAE(M)'!AH311","v":0.59333752419255359},{"$f":"'[1]REAL IMAE(M)'!AI311","v":4.2191966028795624},{"$f":"'[1]REAL IMAE(M)'!AJ311","v":2.8745276288623378},{"$f":"'[1]REAL IMAE(M)'!AK311","v":4.1133261186088959},{"$f":"'[1]REAL IMAE(M)'!AL311","v":7.4599025746362804},{"$f":"'[1]REAL IMAE(M)'!AM311","v":5.1843698403962559},null,null,{"$f":"'[1]EXT ITCER(M)'!C311","v":72.146043099886128},{"$f":"'[1]EXT ITCER(M)'!D311","v":91.752305220644772},{"$f":"'[1]EXT ITCER(M)'!E311","v":58.673588989430122},{"$f":"'[1]EXT ITCER(M)'!F311","v":76.089695475120578},{"$f":"'[1]EXT ITCER(M)'!G311","v":95.612038308991188},{"$f":"'[1]EXT ITCER(M)'!H311","v":101.04533826193121},{"$f":"'[1]EXT ITCER(M)'!I311","v":88.198612880210732},null,null,{"$f":"'[1]EXT TC(M)'!J311","v":2.3346705320820891},{"$f":"'[1]EXT TC(M)'!K311","v":0},{"$f":"'[1]EXT TC(M)'!L311","v":-1.5148600371581615},{"$f":"'[1]EXT TC(M)'!M311","v":5.3298154821087271},{"$f":"'[1]EXT TC(M)'!N311","v":4.5262487548145725},{"$f":"'[1]EXT TC(M)'!O311","v":3.8580529864342705},{"$f":"'[1]EXT TC(M)'!P311","v":0},null,null,{"$f":"'[1]EXT RIN(M)'!C311","v":7255.1285616499999},{"$f":"'[1]EXT RIN(M)'!D311","v":2666.7},{"$f":"'[1]EXT RIN(M)'!E311","v":7625.4},{"$f":"'[1]EXT RIN(M)'!F311","v":3477.8266616433898},{"$f":"'[1]EXT RIN(M)'!G311","v":2169.4},{"$f":"'[1]EXT RIN(M)'!H311","v":4575.7},{"$f":"'[1]EXT RIN(M)'!I311","v":4053.25072907},null,null,{"$f":"'[1]EXT RIN(M)'!P311","v":68.418103079881348},{"$f":"'[1]EXT RIN(M)'!Q311","v":99.5268304808056},{"$f":"'[1]EXT RIN(M)'!R311","v":97.485743074460871},{"$f":"'[1]EXT RIN(M)'!S311","v":82.879555371271636},{"$f":"'[1]EXT RIN(M)'!T311","v":114.07312522972923},{"$f":"'[1]EXT RIN(M)'!U311","v":77.510893599556766},{"$f":"'[1]EXT RIN(M)'!V311","v":310.08063107940063},null,null,{"$f":"+'[1]MONE(M)CAPARD'!AE311","v":3.4994741743030198},{"$f":"'[1]MONE(M)CAPARD'!AF311","v":5.3336256448047124},{"$f":"'[1]MONE(M)CAPARD'!AG311","v":2.9390729599186489},{"$f":"'[1]MONE(M)CAPARD'!AH311","v":6.4677164232276541},{"$f":"'[1]MONE(M)CAPARD'!AI311","v":3.4106070133024069},{"$f":"'[1]MONE(M)CAPARD'!AJ311","v":6.3184564610306841},{"$f":"'[1]MONE(M)CAPARD'!AK311","v":2.6612959556683586},null,null,{"$f":"'[1]MONE(M)CAPARD'!AL311","v":1.92},{"$f":"'[1]MONE(M)CAPARD'!AM311","v":4.22},{"$f":"'[1]MONE(M)CAPARD'!AN311","v":2.9},{"$f":"'[1]MONE(M)CAPARD'!AO311","v":4.08},{"$f":"'[1]MONE(M)CAPARD'!AP311","v":3.32043},{"$f":"'[1]MONE(M)CAPARD'!AQ311","v":1.57},{"$f":"'[1]MONE(M)CAPARD'!AR311","v":2.2000000000000002},null,null,{"$f":"'[1]MONE(M)CAPARD'!J311","v":12.762749557705408},{"$f":"'[1]MONE(M)CAPARD'!K311","v":6.9507221812822371},{"$f":"'[1]MONE(M)CAPARD'!L311","v":10.777866282518429},{"$f":"'[1]MONE(M)CAPARD'!M311","v":16.578097613110092},{"$f":"'[1]MONE(M)CAPARD'!N311","v":10.708897045445708},{"$f":"'[1]MONE(M)CAPARD'!O311","v":14.326988237285232},{"$f":"'[1]MONE(M)CAPARD'!P311","v":6.6994408650791879},null,null,{"$f":"'[1]MONE(M)CAPARD'!Q311","v":9.91},{"$f":"'[1]MONE(M)CAPARD'!R311","v":5.82},{"$f":"'[1]MONE(M)CAPARD'!S311","v":5.94},{"$f":"'[1]MONE(M)CAPARD'!T311","v":8.6},{"$f":"'[1]MONE(M)CAPARD'!U311","v":8.9786240588999995},{"$f":"'[1]MONE(M)CAPARD'!V311","v":5.14},{"$f":"'[1]MONE(M)CAPARD'!W311","v":6.22},null,null,{"$f":"'[1]MONE(M)CAPARD'!AS311","v":4.75},{"$f":"'[1]MONE(M)CAPARD'!AT311","v":"n.a."},{"$f":"'[1]MONE(M)CAPARD'!AU311","v":3.5},{"$f":"'[1]MONE(M)CAPARD'!AV311","v":6.75},{"$f":"'[1]MONE(M)CAPARD'!AW311","v":"n.a."},{"$f":"'[1]MONE(M)CAPARD'!AX311","v":6.25},{"$f":"'[1]MONE(M)CAPARD'!AY311","v":"n.a."},null,null,{"$f":"+'Datos_Regional (M)'!CF304","v":12.919730092329583},{"$f":"+'Datos_Regional (M)'!CG304","v":5.2538115211970382},{"$f":"+'Datos_Regional (M)'!CH304","v":9.1821265877380718},{"$f":"+'Datos_Regional (M)'!CI304","v":11.243903785476238},{"$f":"+'Datos_Regional (M)'!CJ304","v":20.051230403604549},{"$f":"+'Datos_Regional (M)'!CK304","v":17.670310205801918},{"$f":"+'Datos_Regional (M)'!CL304","v":14.027674707531013},null,null,915.38878358749525,448.96083333333326,910.55833333333351,342.87362405160678,428.48498027041632,818.33333333333337,1172.24486475,3864.5998879095182,5036.8447526595191,null,null,1390.3407266833337,870.64333333333309,1502.5249999999999,788.70994940279843,614.30189829583344,1437.4833333333333,2061.6044126666657,6604.0042410486303,8665.6086537152969,null,null,-2739.404353139113,-3628.7639010557791,null,null,{"$f":"'[1]EXT Comercio(M)'!C311","v":776.59821796999529},{"$f":"'[1]EXT Comercio(M)'!D311","v":480.41000000000008},{"$f":"'[1]EXT Comercio(M)'!E311","v":885.1},{"$f":"'[1]EXT Comercio(M)'!F311","v":380.64433197571651},{"$f":"'[1]EXT Comercio(M)'!G311","v":388.60580834999604},{"$f":"'[1]EXT Comercio(M)'!H311","v":749.90000000000009},{"$f":"'[1]EXT Comercio(M)'!I311","v":840.85873900000013},{"$f":"'[1]EXT Comercio(M)'!K311","v":3661.2583582957077},{"$f":"'[1]EXT Comercio(M)'!L311","v":4502.1170972957098},null,null,{"$f":"'[1]EXT Comercio(M)'!AG311","v":1193.4670340700052},{"$f":"'[1]EXT Comercio(M)'!AH311","v":806.98},{"$f":"'[1]EXT Comercio(M)'!AI311","v":1293.8},{"$f":"'[1]EXT Comercio(M)'!AJ311","v":800.36900591390008},{"$f":"'[1]EXT Comercio(M)'!AK311","v":605.65632310000001},{"$f":"'[1]EXT Comercio(M)'!AL311","v":1215.4000000000001},{"$f":"'[1]EXT Comercio(M)'!AM311","v":1599.9201800000001},{"$f":"'[1]EXT Comercio(M)'!AO311","v":5915.6723630839042},{"$f":"'[1]EXT Comercio(M)'!AP311","v":7515.5925430839052},null,null,{"$f":"'[1]EXT Comercio(M)'!$BS311","v":-2254.4140047881974},{"$f":"'[1]EXT Comercio(M)'!$BT311","v":-3013.4754457881968}]
[null,null,"Marzo",{"$f":"'[1]REAL IPC(M)'!AD312","v":3.0463139339173573},{"$f":"'[1]REAL IPC(M)'!AE312","v":-0.80916446949722765},{"$f":"'[1]REAL IPC(M)'!AF312","v":2.425082279577353},{"$f":"'[1]REAL IPC(M)'!AG312","v":3.7444933920705017},{"$f":"'[1]REAL IPC(M)'!AH312","v":5.9242221154388943},{"$f":"'[1]REAL IPC(M)'!AI312","v":0.63780933752872937},{"$f":"'[1]REAL IPC(M)'!AJ312","v":0},null,null,{"$f":"'[1]REAL IMAE(M)'!AG312","v":4.9187734841051736},{"$f":"'[1]REAL IMAE(M)'!AH312","v":1.1780564828401432},{"$f":"'[1]REAL IMAE(M)'!AI312","v":3.6083523034176936},{"$f":"'[1]REAL IMAE(M)'!AJ312","v":3.2125594346974902},{"$f":"'[1]REAL IMAE(M)'!AK312","v":3.5960292868251775},{"$f":"'[1]REAL IMAE(M)'!AL312","v":7.2762570863973339},{"$f":"'[1]REAL IMAE(M)'!AM312","v":4.9449141685882836},null,null,{"$f":"'[1]EXT ITCER(M)'!C312","v":71.75976654770065},{"$f":"'[1]EXT ITCER(M)'!D312","v":91.544122019853404},{"$f":"'[1]EXT ITCER(M)'!E312","v":58.584603717937497},{"$f":"'[1]EXT ITCER(M)'!F312","v":75.991770644886728},{"$f":"'[1]EXT ITCER(M)'!G312","v":95.787794584561894},{"$f":"'[1]EXT ITCER(M)'!H312","v":100.964001290442},{"$f":"'[1]EXT ITCER(M)'!I312","v":87.658944263477736},null,null,{"$f":"'[1]EXT TC(M)'!J312","v":-2.6949220835413348},{"$f":"'[1]EXT TC(M)'!K312","v":0},{"$f":"'[1]EXT TC(M)'!L312","v":-1.3501499446617302},{"$f":"'[1]EXT TC(M)'!M312","v":5.3337170243737706},{"$f":"'[1]EXT TC(M)'!N312","v":4.5088243564176915},{"$f":"'[1]EXT TC(M)'!O312","v":3.5755371655471748},{"$f":"'[1]EXT TC(M)'!P312","v":0},null,null,{"$f":"'[1]EXT RIN(M)'!C312","v":8341.9202438100001},{"$f":"'[1]EXT RIN(M)'!D312","v":2617.5},{"$f":"'[1]EXT RIN(M)'!E312","v":7770.3},{"$f":"'[1]EXT RIN(M)'!F312","v":3583.9203274996353},{"$f":"'[1]EXT RIN(M)'!G312","v":2222.1999999999998},{"$f":"'[1]EXT RIN(M)'!H312","v":4797.8},{"$f":"'[1]EXT RIN(M)'!I312","v":4741.4129657599997},null,null,{"$f":"'[1]EXT RIN(M)'!P312","v":77.704080610033898},{"$f":"'[1]EXT RIN(M)'!Q312","v":97.369081829087961},{"$f":"'[1]EXT RIN(M)'!R312","v":99.138944402531536},{"$f":"'[1]EXT RIN(M)'!S312","v":82.341474316300094},{"$f":"'[1]EXT RIN(M)'!T312","v":115.13209560214779},{"$f":"'[1]EXT RIN(M)'!U312","v":79.411575902641701},{"$f":"'[1]EXT RIN(M)'!V312","v":368.67019090437026},null,null,{"$f":"+'[1]MONE(M)CAPARD'!AE312","v":3.9338486854388921},{"$f":"'[1]MONE(M)CAPARD'!AF312","v":5.3020669110907432},{"$f":"'[1]MONE(M)CAPARD'!AG312","v":2.953297818366301},{"$f":"'[1]MONE(M)CAPARD'!AH312","v":6.0779193205944626},{"$f":"'[1]MONE(M)CAPARD'!AI312","v":2.4129868650223774},{"$f":"'[1]MONE(M)CAPARD'!AJ312","v":6.4609819165117166},{"$f":"'[1]MONE(M)CAPARD'!AK312","v":2.12},null,null,{"$f":"'[1]MONE(M)CAPARD'!AL312","v":1.74},{"$f":"'[1]MONE(M)CAPARD'!AM312","v":4.45},{"$f":"'[1]MONE(M)CAPARD'!AN312","v":2.92},{"$f":"'[1]MONE(M)CAPARD'!AO312","v":4.05},{"$f":"'[1]MONE(M)CAPARD'!AP312","v":3.96},{"$f":"'[1]MONE(M)CAPARD'!AQ312","v":1.56},{"$f":"'[1]MONE(M)CAPARD'!AR312","v":2.12},null,null,{"$f":"'[1]MONE(M)CAPARD'!J312","v":12.852168661341631},{"$f":"'[1]MONE(M)CAPARD'!K312","v":6.8848744271310727},{"$f":"'[1]MONE(M)CAPARD'!L312","v":10.685778792491108},{"$f":"'[1]MONE(M)CAPARD'!M312","v":16.314607218683634},{"$f":"'[1]MONE(M)CAPARD'!N312","v":9.3391830865296708},{"$f":"'[1]MONE(M)CAPARD'!O312","v":15.01641456819331},{"$f":"'[1]MONE(M)CAPARD'!P312","v":6.16},null,null,{"$f":"'[1]MONE(M)CAPARD'!Q312","v":9.64},{"$f":"'[1]MONE(M)CAPARD'!R312","v":6.02},{"$f":"'[1]MONE(M)CAPARD'!S312","v":5.94},{"$f":"'[1]MONE(M)CAPARD'!T312","v":8.5},{"$f":"'[1]MONE(M)CAPARD'!U312","v":8.0500000000000007},{"$f":"'[1]MONE(M)CAPARD'!V312","v":6.34},{"$f":"'[1]MONE(M)CAPARD'!W312","v":6.16},null,null,{"$f":"'[1]MONE(M)CAPARD'!AS312","v":4.5},{"$f":"'[1]MONE(M)CAPARD'!AT312","v":"n.a."},{"$f":"'[1]MONE(M)CAPARD'!AU312","v":3.5},{"$f":"'[1]MONE(M)CAPARD'!AV312","v":6.5},{"$f":"'[1]MONE(M)CAPARD'!AW312","v":"n.a."},{"$f":"'[1]MONE(M)CAPARD'!AX312","v":6.25},{"$f":"'[1]MONE(M)CAPARD'!AY312","v":"n.a."},null,null,{"$f":"+'Datos_Regional (M)'!CF305","v":12.049695105999024},{"$f":"+'Datos_Regional (M)'!CG305","v":4.3523576565786426},{"$f":"+'Datos_Regional (M)'!CH305","v":9.7802627751741866},{"$f":"+'Datos_Regional (M)'!CI305","v":11.136680269175603},{"$f":"+'Datos_Regional (M)'!CJ305","v":19.978461103056677},{"$f":"+'Datos_Regional (M)'!CK305","v":16.428780290331812},{"$f":"+'Datos_Regional (M)'!CL305","v":13.835193778527977},null,null,901.65993863666188,453.33999999999986,907.95000000000016,349.78940505727115,428.31822517124959,815.42500000000007,1185.2906303333334,3856.4825688651831,5041.7731991985165,null,null,1362.7557677400005,868.55583333333323,1507.2416666666668,795.9207733015146,618.59748276250014,1436,2082.9344223333319,6589.0715238040129,8672.0059461373476,null,null,-2732.5889549388316,-3630.2327469388297,null,null,{"$f":"'[1]EXT Comercio(M)'!C312","v":884.72415648999436},{"$f":"'[1]EXT Comercio(M)'!D312","v":529.22999999999979},{"$f":"'[1]EXT Comercio(M)'!E312","v":1005},{"$f":"'[1]EXT Comercio(M)'!F312","v":441.78937206797332},{"$f":"'[1]EXT Comercio(M)'!G312","v":470.88258437999991},{"$f":"'[1]EXT Comercio(M)'!H312","v":824.19999999999993},{"$f":"'[1]EXT Comercio(M)'!I312","v":1126.1502929999999},{"$f":"'[1]EXT Comercio(M)'!K312","v":4155.8261129379662},{"$f":"'[1]EXT Comercio(M)'!L312","v":5281.9764059379686},null,null,{"$f":"'[1]EXT Comercio(M)'!AG312","v":1293.3770398300014},{"$f":"'[1]EXT Comercio(M)'!AH312","v":869.99000000000024},{"$f":"'[1]EXT Comercio(M)'!AI312","v":1532.1},{"$f":"'[1]EXT Comercio(M)'!AJ312","v":877.41005905269992},{"$f":"'[1]EXT Comercio(M)'!AK312","v":622.17667376999998},{"$f":"'[1]EXT Comercio(M)'!AL312","v":1461.3},{"$f":"'[1]EXT Comercio(M)'!AM312","v":2001.6181469999999},{"$f":"'[1]EXT Comercio(M)'!AO312","v":6656.3537726527011},{"$f":"'[1]EXT Comercio(M)'!AP312","v":8657.9719196527003},null,null,{"$f":"'[1]EXT Comercio(M)'!$BS312","v":-2500.5276597147331},{"$f":"'[1]EXT Comercio(M)'!$BT312","v":-3375.9955137147335}]
[null,null,"Abril",{"$f":"'[1]REAL IPC(M)'!AD313","v":1.8050494903583385},{"$f":"'[1]REAL IPC(M)'!AE313","v":-0.32885722115648069},{"$f":"'[1]REAL IPC(M)'!AF313","v":2.5760719225449424},{"$f":"'[1]REAL IPC(M)'!AG313","v":3.5831809872029297},{"$f":"'[1]REAL IPC(M)'!AH313","v":5.6685386031132463},{"$f":"'[1]REAL IPC(M)'!AI313","v":-4.2340587687331697E-2},{"$f":"'[1]REAL IPC(M)'!AJ313","v":0},null,null,{"$f":"'[1]REAL IMAE(M)'!AG313","v":5.6958605120357042},{"$f":"'[1]REAL IMAE(M)'!AH313","v":1.6429643492632953},{"$f":"'[1]REAL IMAE(M)'!AI313","v":3.2727274627333478},{"$f":"'[1]REAL IMAE(M)'!AJ313","v":3.4822578975934042},{"$f":"'[1]REAL IMAE(M)'!AK313","v":3.4570038562086869},{"$f":"'[1]REAL IMAE(M)'!AL313","v":7.3368980189292303},{"$f":"'[1]REAL IMAE(M)'!AM313","v":4.7162590662244401},null,null,{"$f":"'[1]EXT ITCER(M)'!C313","v":71.723546286556797},{"$f":"'[1]EXT ITCER(M)'!D313","v":91.63115601239393},{"$f":"'[1]EXT ITCER(M)'!E313","v":59.055882726389449},{"$f":"'[1]EXT ITCER(M)'!F313","v":76.246115106288755},{"$f":"'[1]EXT ITCER(M)'!G313","v":96.002689204463351},{"$f":"'[1]EXT ITCER(M)'!H313","v":101.41597504907919},{"$f":"'[1]EXT ITCER(M)'!I313","v":87.323940435026586},null,null,{"$f":"'[1]EXT TC(M)'!J313","v":-2.5835600832160268},{"$f":"'[1]EXT TC(M)'!K313","v":0},{"$f":"'[1]EXT TC(M)'!L313","v":-0.57808474525879705},{"$f":"'[1]EXT TC(M)'!M313","v":5.6121095492427298},{"$f":"'[1]EXT TC(M)'!N313","v":4.846601729930569},{"$f":"'[1]EXT TC(M)'!O313","v":3.6798886569241422},{"$f":"'[1]EXT TC(M)'!P313","v":0},null,null,{"$f":"'[1]EXT RIN(M)'!C313","v":8444.1724583100004},{"$f":"'[1]EXT RIN(M)'!D313","v":2739.6},{"$f":"'[1]EXT RIN(M)'!E313","v":7721.3},{"$f":"'[1]EXT RIN(M)'!F313","v":3649.1838767120794},{"$f":"'[1]EXT RIN(M)'!G313","v":2264.4},{"$f":"'[1]EXT RIN(M)'!H313","v":4623.8},{"$f":"'[1]EXT RIN(M)'!I313","v":4231.2672330100004},null,null,{"$f":"'[1]EXT RIN(M)'!P313","v":78.118463224647769},{"$f":"'[1]EXT RIN(M)'!Q313","v":98.429390852275091},{"$f":"'[1]EXT RIN(M)'!R313","v":102.44089972858576},{"$f":"'[1]EXT RIN(M)'!S313","v":84.636655173603501},{"$f":"'[1]EXT RIN(M)'!T313","v":119.82029020613498},{"$f":"'[1]EXT RIN(M)'!U313","v":77.790152227284921},{"$f":"'[1]EXT RIN(M)'!V313","v":329.60079964358448},null,null,{"$f":"+'[1]MONE(M)CAPARD'!AE313","v":5.201068646544031},{"$f":"'[1]MONE(M)CAPARD'!AF313","v":4.814690679131151},{"$f":"'[1]MONE(M)CAPARD'!AG313","v":2.7822551828754514},{"$f":"'[1]MONE(M)CAPARD'!AH313","v":6.3203494528768047},{"$f":"'[1]MONE(M)CAPARD'!AI313","v":3.1017418219135195},{"$f":"'[1]MONE(M)CAPARD'!AJ313","v":6.9352770247373501},{"$f":"'[1]MONE(M)CAPARD'!AK313","v":2.19},null,null,{"$f":"'[1]MONE(M)CAPARD'!AL313","v":1.7349999999999999},{"$f":"'[1]MONE(M)CAPARD'!AM313","v":4.47},{"$f":"'[1]MONE(M)CAPARD'!AN313","v":2.93},{"$f":"'[1]MONE(M)CAPARD'!AO313","v":4.09},{"$f":"'[1]MONE(M)CAPARD'!AP313","v":3.19},{"$f":"'[1]MONE(M)CAPARD'!AQ313","v":1.33},{"$f":"'[1]MONE(M)CAPARD'!AR313","v":2.19},null,null,{"$f":"'[1]MONE(M)CAPARD'!J313","v":14.002203801287582},{"$f":"'[1]MONE(M)CAPARD'!K313","v":6.219309870772614},{"$f":"'[1]MONE(M)CAPARD'!L313","v":10.444860947244237},{"$f":"'[1]MONE(M)CAPARD'!M313","v":16.505400635368861},{"$f":"'[1]MONE(M)CAPARD'!N313","v":11.535625042838035},{"$f":"'[1]MONE(M)CAPARD'!O313","v":15.718996103015897},{"$f":"'[1]MONE(M)CAPARD'!P313","v":6.22},null,null,{"$f":"'[1]MONE(M)CAPARD'!Q313","v":9.48},{"$f":"'[1]MONE(M)CAPARD'!R313","v":5.87},{"$f":"'[1]MONE(M)CAPARD'!S313","v":5.93},{"$f":"'[1]MONE(M)CAPARD'!T313","v":8.52},{"$f":"'[1]MONE(M)CAPARD'!U313","v":8.8699999999999992},{"$f":"'[1]MONE(M)CAPARD'!V313","v":6.79},{"$f":"'[1]MONE(M)CAPARD'!W313","v":6.22},null,null,{"$f":"'[1]MONE(M)CAPARD'!AS313","v":4},{"$f":"'[1]MONE(M)CAPARD'!AT313","v":"n.a."},{"$f":"'[1]MONE(M)CAPARD'!AU313","v":3.5},{"$f":"'[1]MONE(M)CAPARD'!AV313","v":6.5},{"$f":"'[1]MONE(M)CAPARD'!AW313","v":"n.a."},{"$f":"'[1]MONE(M)CAPARD'!AX313","v":5.75},{"$f":"'[1]MONE(M)CAPARD'!AY313","v":"n.a."},null,null,{"$f":"+'Datos_Regional (M)'!CF306","v":12.045810898516752},{"$f":"+'Datos_Regional (M)'!CG306","v":3.5996093655328298},{"$f":"+'Datos_Regional (M)'!CH306","v":9.7132518642700774},{"$f":"+'Datos_Regional (M)'!CI306","v":10.910652658718734},{"$f":"+'Datos_Regional (M)'!CJ306","v":19.432255953703393},{"$f":"+'Datos_Regional (M)'!CK306","v":16.096374841323268},{"$f":"+'Datos_Regional (M)'!CL306","v":13.320524239285092},null,null,887.28054768999516,453.6749999999999,905.86666666666667,353.00349379529763,426.45549220254958,819.45833333333348,1160.2945385,3845.7395336878421,5006.0340721878429,null,null,1347.512769547501,859.98166666666646,1499.675,797.75746751435815,617.05875376583333,1418.7083333333333,2040.5149770833323,6540.6939908276909,8581.2089679110231,null,null,-2694.9544571398492,-3575.1748957231812,null,null,{"$f":"'[1]EXT Comercio(M)'!C313","v":815.17193661999522},{"$f":"'[1]EXT Comercio(M)'!D313","v":428.04999999999995},{"$f":"'[1]EXT Comercio(M)'!E313","v":914.59999999999991},{"$f":"'[1]EXT Comercio(M)'!F313","v":400.96906485631712},{"$f":"'[1]EXT Comercio(M)'!G313","v":395.86358897560001},{"$f":"'[1]EXT Comercio(M)'!H313","v":839.19999999999993},{"$f":"'[1]EXT Comercio(M)'!I313","v":1035.15975},{"$f":"'[1]EXT Comercio(M)'!K313","v":3793.8545904519124},{"$f":"'[1]EXT Comercio(M)'!L313","v":4829.0143404519076},null,null,{"$f":"'[1]EXT Comercio(M)'!AG313","v":1308.1451822500019},{"$f":"'[1]EXT Comercio(M)'!AH313","v":819.88999999999987},{"$f":"'[1]EXT Comercio(M)'!AI313","v":1430.5},{"$f":"'[1]EXT Comercio(M)'!AJ313","v":793.38119479741533},{"$f":"'[1]EXT Comercio(M)'!AK313","v":552.83310116999996},{"$f":"'[1]EXT Comercio(M)'!AL313","v":1332.6},{"$f":"'[1]EXT Comercio(M)'!AM313","v":1747.280538},{"$f":"'[1]EXT Comercio(M)'!AO313","v":6237.3494782174166},{"$f":"'[1]EXT Comercio(M)'!AP313","v":7984.6300162174157},null,null,{"$f":"'[1]EXT Comercio(M)'!$BS313","v":-2443.4948877655061},{"$f":"'[1]EXT Comercio(M)'!$BT313","v":-3155.6156757655062}]
[null,null,"Mayo ",{"$f":"'[1]REAL IPC(M)'!AD314","v":0.97250322824646762},{"$f":"'[1]REAL IPC(M)'!AE314","v":-0.35545023696682515},{"$f":"'[1]REAL IPC(M)'!AF314","v":2.5530446782818772},{"$f":"'[1]REAL IPC(M)'!AG314","v":3.4921789741724352},{"$f":"'[1]REAL IPC(M)'!AH314","v":5.2210601157111061},{"$f":"'[1]REAL IPC(M)'!AI314","v":0.22860045720094072},{"$f":"'[1]REAL IPC(M)'!AJ314","v":0.35085190039319236},null,null,{"$f":"'[1]REAL IMAE(M)'!AG314","v":6.4559034562756592},{"$f":"'[1]REAL IMAE(M)'!AH314","v":1.6501337831499916},{"$f":"'[1]REAL IMAE(M)'!AI314","v":3.4141552852512165},{"$f":"'[1]REAL IMAE(M)'!AJ314","v":3.7071329085811282},{"$f":"'[1]REAL IMAE(M)'!AK314","v":3.7731373800601098},{"$f":"'[1]REAL IMAE(M)'!AL314","v":7.5039287344274532},{"$f":"'[1]REAL IMAE(M)'!AM314","v":4.540184071309505},null,null,{"$f":"'[1]EXT ITCER(M)'!C314","v":72.275206084565681},{"$f":"'[1]EXT ITCER(M)'!D314","v":91.748338787544469},{"$f":"'[1]EXT ITCER(M)'!E314","v":58.923686415585543},{"$f":"'[1]EXT ITCER(M)'!F314","v":76.166160537982861},{"$f":"'[1]EXT ITCER(M)'!G314","v":96.286413305156827},{"$f":"'[1]EXT ITCER(M)'!H314","v":101.6036842442084},{"$f":"'[1]EXT ITCER(M)'!I314","v":87.188257269638299},null,null,{"$f":"'[1]EXT TC(M)'!J314","v":-3.4472465296413595},{"$f":"'[1]EXT TC(M)'!K314","v":0},{"$f":"'[1]EXT TC(M)'!L314","v":-0.77215478311306174},{"$f":"'[1]EXT TC(M)'!M314","v":5.3633576958517493},{"$f":"'[1]EXT TC(M)'!N314","v":4.7758024600819589},{"$f":"'[1]EXT TC(M)'!O314","v":3.6759460285792924},{"$f":"'[1]EXT TC(M)'!P314","v":0},null,null,{"$f":"'[1]EXT RIN(M)'!C314","v":8309.7627848400007},{"$f":"'[1]EXT RIN(M)'!D314","v":2798.2},{"$f":"'[1]EXT RIN(M)'!E314","v":7649.8},{"$f":"'[1]EXT RIN(M)'!F314","v":3754.532509567844},{"$f":"'[1]EXT RIN(M)'!G314","v":2340.5},{"$f":"'[1]EXT RIN(M)'!H314","v":4925.9654378229834},{"$f":"'[1]EXT RIN(M)'!I314","v":4143.3153343599997},null,null,{"$f":"'[1]EXT RIN(M)'!P314","v":76.304912098592609},{"$f":"'[1]EXT RIN(M)'!Q314","v":101.25635023363648},{"$f":"'[1]EXT RIN(M)'!R314","v":97.987587610573243},{"$f":"'[1]EXT RIN(M)'!S314","v":88.713528243128394},{"$f":"'[1]EXT RIN(M)'!T314","v":121.24863455208626},{"$f":"'[1]EXT RIN(M)'!U314","v":78.385439146867171},{"$f":"'[1]EXT RIN(M)'!V314","v":315.28332358909262},null,null,{"$f":"+'[1]MONE(M)CAPARD'!AE314","v":5.8704068753792669},{"$f":"'[1]MONE(M)CAPARD'!AF314","v":4.7924851367419743},{"$f":"'[1]MONE(M)CAPARD'!AG314","v":2.8638402018502873},{"$f":"'[1]MONE(M)CAPARD'!AH314","v":6.2495746924428737},{"$f":"'[1]MONE(M)CAPARD'!AI314","v":3.1616020873344888},{"$f":"'[1]MONE(M)CAPARD'!AJ314","v":5.8979168778509603},{"$f":"'[1]MONE(M)CAPARD'!AK314","v":1.8327179737669983},null,null,{"$f":"'[1]MONE(M)CAPARD'!AL314","v":1.635},{"$f":"'[1]MONE(M)CAPARD'!AM314","v":4.42},{"$f":"'[1]MONE(M)CAPARD'!AN314","v":3},{"$f":"'[1]MONE(M)CAPARD'!AO314","v":4.0599999999999996},{"$f":"'[1]MONE(M)CAPARD'!AP314","v":3.63},{"$f":"'[1]MONE(M)CAPARD'!AQ314","v":1.7},{"$f":"'[1]MONE(M)CAPARD'!AR314","v":2.19},null,null,{"$f":"'[1]MONE(M)CAPARD'!J314","v":14.744109827702918},{"$f":"'[1]MONE(M)CAPARD'!K314","v":6.2175505350772893},{"$f":"'[1]MONE(M)CAPARD'!L314","v":10.391651808242214},{"$f":"'[1]MONE(M)CAPARD'!M314","v":17.158611599297},{"$f":"'[1]MONE(M)CAPARD'!N314","v":11.75508303341266},{"$f":"'[1]MONE(M)CAPARD'!O314","v":14.248826659908739},{"$f":"'[1]MONE(M)CAPARD'!P314","v":5.8286980018989656},null,null,{"$f":"'[1]MONE(M)CAPARD'!Q314","v":9.39},{"$f":"'[1]MONE(M)CAPARD'!R314","v":5.84},{"$f":"'[1]MONE(M)CAPARD'!S314","v":5.92},{"$f":"'[1]MONE(M)CAPARD'!T314","v":8.57},{"$f":"'[1]MONE(M)CAPARD'!U314","v":8.49},{"$f":"'[1]MONE(M)CAPARD'!V314","v":7.18},{"$f":"'[1]MONE(M)CAPARD'!W314","v":6.2},null,null,{"$f":"'[1]MONE(M)CAPARD'!AS314","v":3.75},{"$f":"'[1]MONE(M)CAPARD'!AT314","v":"n.a."},{"$f":"'[1]MONE(M)CAPARD'!AU314","v":3.5},{"$f":"'[1]MONE(M)CAPARD'!AV314","v":6.5},{"$f":"'[1]MONE(M)CAPARD'!AW314","v":"n.a."},{"$f":"'[1]MONE(M)CAPARD'!AX314","v":5.25},{"$f":"'[1]MONE(M)CAPARD'!AY314","v":"n.a."},null,null,{"$f":"+'Datos_Regional (M)'!CF307","v":11.961383860509777},{"$f":"+'Datos_Regional (M)'!CG307","v":3.537782680040169},{"$f":"+'Datos_Regional (M)'!CH307","v":9.9093286823153548},{"$f":"+'Datos_Regional (M)'!CI307","v":10.454985662112804},{"$f":"+'Datos_Regional (M)'!CJ307","v":18.83540023820278},{"$f":"+'Datos_Regional (M)'!CK307","v":17.192363549562661},{"$f":"+'Datos_Regional (M)'!CL307","v":12.864878066929819},null,null,873.1065198074956,454.42083333333329,910.14166666666654,349.95090461803733,423.73664556171633,813.4,1146.7640900833333,3824.7565699872489,4971.5206600705824,null,null,1322.9926869350013,852.44833333333315,1489.3416666666665,795.17777963534593,619.31536452166677,1409.2583333333332,2013.7485544999993,6488.5341644253458,8502.2827189253458,null,null,-2663.7775944380978,-3530.7620588547638,null,null,{"$f":"'[1]EXT Comercio(M)'!C314","v":884.11918360999812},{"$f":"'[1]EXT Comercio(M)'!D314","v":499.20000000000027},{"$f":"'[1]EXT Comercio(M)'!E314","v":997.8},{"$f":"'[1]EXT Comercio(M)'!F314","v":375.76892987287624},{"$f":"'[1]EXT Comercio(M)'!G314","v":409.94590334999998},{"$f":"'[1]EXT Comercio(M)'!H314","v":818.80000000000007},{"$f":"'[1]EXT Comercio(M)'!I314","v":944.64807999999994},{"$f":"'[1]EXT Comercio(M)'!K314","v":3985.6340168328752},{"$f":"'[1]EXT Comercio(M)'!L314","v":4930.2820968328779},null,null,{"$f":"'[1]EXT Comercio(M)'!AG314","v":1257.4437708800001},{"$f":"'[1]EXT Comercio(M)'!AH314","v":882.72000000000025},{"$f":"'[1]EXT Comercio(M)'!AI314","v":1544.2000000000003},{"$f":"'[1]EXT Comercio(M)'!AJ314","v":841.22400730744403},{"$f":"'[1]EXT Comercio(M)'!AK314","v":664.52181156999995},{"$f":"'[1]EXT Comercio(M)'!AL314","v":1461.1},{"$f":"'[1]EXT Comercio(M)'!AM314","v":1665.8076890000002},{"$f":"'[1]EXT Comercio(M)'!AO314","v":6651.2095897574472},{"$f":"'[1]EXT Comercio(M)'!AP314","v":8317.0172787574484},null,null,{"$f":"'[1]EXT Comercio(M)'!$BS314","v":-2665.575572924572},{"$f":"'[1]EXT Comercio(M)'!$BT314","v":-3386.7351819245705}]
[null,null,"Junio",{"$f":"'[1]REAL IPC(M)'!AD315","v":1.0205076673946956},{"$f":"'[1]REAL IPC(M)'!AE315","v":-0.82614616432138965},{"$f":"'[1]REAL IPC(M)'!AF315","v":2.3850377487989025},{"$f":"'[1]REAL IPC(M)'!AG315","v":3.6218761318362906},{"$f":"'[1]REAL IPC(M)'!AH315","v":3.8222189581524764},{"$f":"'[1]REAL IPC(M)'!AI315","v":0.61796326081439501},{"$f":"'[1]REAL IPC(M)'!AJ315","v":0},null,null,{"$f":"'[1]REAL IMAE(M)'!AG315","v":6.9470905206328339},{"$f":"'[1]REAL IMAE(M)'!AH315","v":1.5728379141214559},{"$f":"'[1]REAL IMAE(M)'!AI315","v":4.0299535920164598},{"$f":"'[1]REAL IMAE(M)'!AJ315","v":3.9384912952584594},{"$f":"'[1]REAL IMAE(M)'!AK315","v":4.4431838239002754},{"$f":"'[1]REAL IMAE(M)'!AL315","v":7.7759448408078997},{"$f":"'[1]REAL IMAE(M)'!AM315","v":4.4340471477415839},null,null,{"$f":"'[1]EXT ITCER(M)'!C315","v":72.54293358794466},{"$f":"'[1]EXT ITCER(M)'!D315","v":92.078089222803186},{"$f":"'[1]EXT ITCER(M)'!E315","v":58.623523967870732},{"$f":"'[1]EXT ITCER(M)'!F315","v":75.904545397927436},{"$f":"'[1]EXT ITCER(M)'!G315","v":97.050639858150703},{"$f":"'[1]EXT ITCER(M)'!H315","v":101.5915791204791},{"$f":"'[1]EXT ITCER(M)'!I315","v":87.345114429999114},null,null,{"$f":"'[1]EXT TC(M)'!J315","v":-2.7703807407262753},{"$f":"'[1]EXT TC(M)'!K315","v":0},{"$f":"'[1]EXT TC(M)'!L315","v":-2.0760681852590306},{"$f":"'[1]EXT TC(M)'!M315","v":4.8029608255845266},{"$f":"'[1]EXT TC(M)'!N315","v":4.573504364222317},{"$f":"'[1]EXT TC(M)'!O315","v":3.3446104104256595},{"$f":"'[1]EXT TC(M)'!P315","v":0},null,null,{"$f":"'[1]EXT RIN(M)'!C315","v":8270.9554906800004},{"$f":"'[1]EXT RIN(M)'!D315","v":2773.4},{"$f":"'[1]EXT RIN(M)'!E315","v":7717.7},{"$f":"'[1]EXT RIN(M)'!F315","v":3872.492136512335},{"$f":"'[1]EXT RIN(M)'!G315","v":2240.3000000000002},{"$f":"'[1]EXT RIN(M)'!H315","v":4923.9753367940812},{"$f":"'[1]EXT RIN(M)'!I315","v":4344.7100744299996},null,null,{"$f":"'[1]EXT RIN(M)'!P315","v":74.862004719832569},{"$f":"'[1]EXT RIN(M)'!Q315","v":100.3662677565313},{"$f":"'[1]EXT RIN(M)'!R315","v":97.955110481408255},{"$f":"'[1]EXT RIN(M)'!S315","v":86.947330530246376},{"$f":"'[1]EXT RIN(M)'!T315","v":120.9037243308001},{"$f":"'[1]EXT RIN(M)'!U315","v":78.658493115873895},{"$f":"'[1]EXT RIN(M)'!V315","v":331.66118811947547},null,null,{"$f":"+'[1]MONE(M)CAPARD'!AE315","v":5.721107986938665},{"$f":"'[1]MONE(M)CAPARD'!AF315","v":5.3402645551080292},{"$f":"'[1]MONE(M)CAPARD'!AG315","v":3.032632813809284},{"$f":"'[1]MONE(M)CAPARD'!AH315","v":5.9718315274379599},{"$f":"'[1]MONE(M)CAPARD'!AI315","v":4.1885195672343354},{"$f":"'[1]MONE(M)CAPARD'!AJ315","v":5.4781835773178127},{"$f":"'[1]MONE(M)CAPARD'!AK315","v":2.13},null,null,{"$f":"'[1]MONE(M)CAPARD'!AL315","v":1.55},{"$f":"'[1]MONE(M)CAPARD'!AM315","v":4.47},{"$f":"'[1]MONE(M)CAPARD'!AN315","v":2.99},{"$f":"'[1]MONE(M)CAPARD'!AO315","v":4},{"$f":"'[1]MONE(M)CAPARD'!AP315","v":3.21},{"$f":"'[1]MONE(M)CAPARD'!AQ315","v":1.32},{"$f":"'[1]MONE(M)CAPARD'!AR315","v":2.13},null,null,{"$f":"'[1]MONE(M)CAPARD'!J315","v":14.798472783195477},{"$f":"'[1]MONE(M)CAPARD'!K315","v":6.9535930062248372},{"$f":"'[1]MONE(M)CAPARD'!L315","v":10.51419473772415},{"$f":"'[1]MONE(M)CAPARD'!M315","v":16.654903879762319},{"$f":"'[1]MONE(M)CAPARD'!N315","v":12.296771525047921},{"$f":"'[1]MONE(M)CAPARD'!O315","v":12.802919400975894},{"$f":"'[1]MONE(M)CAPARD'!P315","v":6.18},null,null,{"$f":"'[1]MONE(M)CAPARD'!Q315","v":9.4700000000000006},{"$f":"'[1]MONE(M)CAPARD'!R315","v":6.07},{"$f":"'[1]MONE(M)CAPARD'!S315","v":5.93},{"$f":"'[1]MONE(M)CAPARD'!T315","v":8.5500000000000007},{"$f":"'[1]MONE(M)CAPARD'!U315","v":8.39},{"$f":"'[1]MONE(M)CAPARD'!V315","v":5.74},{"$f":"'[1]MONE(M)CAPARD'!W315","v":6.18},null,null,{"$f":"'[1]MONE(M)CAPARD'!AS315","v":3.5},{"$f":"'[1]MONE(M)CAPARD'!AT315","v":"n.a."},{"$f":"'[1]MONE(M)CAPARD'!AU315","v":3.25},{"$f":"'[1]MONE(M)CAPARD'!AV315","v":6.5},{"$f":"'[1]MONE(M)CAPARD'!AW315","v":"n.a."},{"$f":"'[1]MONE(M)CAPARD'!AX315","v":5},{"$f":"'[1]MONE(M)CAPARD'!AY315","v":"n.a."},null,null,{"$f":"+'Datos_Regional (M)'!CF308","v":13.262513426890688},{"$f":"+'Datos_Regional (M)'!CG308","v":3.0683725042289334},{"$f":"+'Datos_Regional (M)'!CH308","v":10.232592662504004},{"$f":"+'Datos_Regional (M)'!CI308","v":10.018574725837425},{"$f":"+'Datos_Regional (M)'!CJ308","v":19.511477965660461},{"$f":"+'Datos_Regional (M)'!CK308","v":16.079326713944852},{"$f":"+'Datos_Regional (M)'!CL308","v":13.147884218789629},null,null,861.80213313582851,454.96749999999992,911.73333333333323,348.73110304593973,421.60140773754966,812.73333333333323,1120.1775725833334,3811.5688105859845,4931.7463831693185,null,null,1313.9695340500014,855.06916666666655,1489.9499999999998,795.45895443951815,621.27765366916674,1419.9000000000003,1990.0453114166658,6495.6253088253534,8485.6706202420173,null,null,-2684.0564982393685,-3553.924237072702,null,null,{"$f":"'[1]EXT Comercio(M)'!C315","v":849.9718376199944},{"$f":"'[1]EXT Comercio(M)'!D315","v":478.24999999999955},{"$f":"'[1]EXT Comercio(M)'!E315","v":910.4},{"$f":"'[1]EXT Comercio(M)'!F315","v":374.86238113482904},{"$f":"'[1]EXT Comercio(M)'!G315","v":435.88681760999998},{"$f":"'[1]EXT Comercio(M)'!H315","v":847.70000000000016},{"$f":"'[1]EXT Comercio(M)'!I315","v":992.73280999999997},{"$f":"'[1]EXT Comercio(M)'!K315","v":3897.071036364825},{"$f":"'[1]EXT Comercio(M)'!L315","v":4889.803846364819},null,null,{"$f":"'[1]EXT Comercio(M)'!AG315","v":1250.4589630900059},{"$f":"'[1]EXT Comercio(M)'!AH315","v":896.09999999999945},{"$f":"'[1]EXT Comercio(M)'!AI315","v":1449.9999999999998},{"$f":"'[1]EXT Comercio(M)'!AJ315","v":790.83273626791777},{"$f":"'[1]EXT Comercio(M)'!AK315","v":659.10912997000014},{"$f":"'[1]EXT Comercio(M)'!AL315","v":1487.8000000000002},{"$f":"'[1]EXT Comercio(M)'!AM315","v":1863.9676629999999},{"$f":"'[1]EXT Comercio(M)'!AO315","v":6534.3008293279199},{"$f":"'[1]EXT Comercio(M)'!AP315","v":8398.2684923279157},null,null,{"$f":"'[1]EXT Comercio(M)'!$BS315","v":-2637.2297929631004},{"$f":"'[1]EXT Comercio(M)'!$BT315","v":-3508.464645963104}]
[null,null,"Julio",{"$f":"'[1]REAL IPC(M)'!AD316","v":-0.32170012984744362},{"$f":"'[1]REAL IPC(M)'!AE316","v":-1.4534621287352167},{"$f":"'[1]REAL IPC(M)'!AF316","v":2.3202251983280719},{"$f":"'[1]REAL IPC(M)'!AG316","v":3.1991373112868566},{"$f":"'[1]REAL IPC(M)'!AH316","v":3.0784704090957198},{"$f":"'[1]REAL IPC(M)'!AI316","v":0.4976383265857548},{"$f":"'[1]REAL IPC(M)'!AJ316","v":0.97465886939571167},null,null,{"$f":"'[1]REAL IMAE(M)'!AG316","v":7.0701588708984051},{"$f":"'[1]REAL IMAE(M)'!AH316","v":2.1753844400805975},{"$f":"'[1]REAL IMAE(M)'!AI316","v":4.7860445927504554},{"$f":"'[1]REAL IMAE(M)'!AJ316","v":4.1391648195261785},{"$f":"'[1]REAL IMAE(M)'!AK316","v":5.1690966007899037},{"$f":"'[1]REAL IMAE(M)'!AL316","v":8.0072929142591054},{"$f":"'[1]REAL IMAE(M)'!AM316","v":4.3364886586890474},null,null,{"$f":"'[1]EXT ITCER(M)'!C316","v":72.787766334149907},{"$f":"'[1]EXT ITCER(M)'!D316","v":92.291742757819222},{"$f":"'[1]EXT ITCER(M)'!E316","v":58.415852961427433},{"$f":"'[1]EXT ITCER(M)'!F316","v":75.740875040431433},{"$f":"'[1]EXT ITCER(M)'!G316","v":98.137533078956892},{"$f":"'[1]EXT ITCER(M)'!H316","v":101.7891228770027},{"$f":"'[1]EXT ITCER(M)'!I316","v":87.399228014157757},null,null,{"$f":"'[1]EXT TC(M)'!J316","v":-0.87861624296239704},{"$f":"'[1]EXT TC(M)'!K316","v":0},{"$f":"'[1]EXT TC(M)'!L316","v":-1.6606407021902168},{"$f":"'[1]EXT TC(M)'!M316","v":4.551346181284857},{"$f":"'[1]EXT TC(M)'!N316","v":4.8197744183154629},{"$f":"'[1]EXT TC(M)'!O316","v":3.3777550799752456},{"$f":"'[1]EXT TC(M)'!P316","v":0},null,null,{"$f":"'[1]EXT RIN(M)'!C316","v":8349.2951866599997},{"$f":"'[1]EXT RIN(M)'!D316","v":2783.6},{"$f":"'[1]EXT RIN(M)'!E316","v":7584.5},{"$f":"'[1]EXT RIN(M)'!F316","v":3795.8601752106215},{"$f":"'[1]EXT RIN(M)'!G316","v":2266.4},{"$f":"'[1]EXT RIN(M)'!H316","v":4736.3999999999996},{"$f":"'[1]EXT RIN(M)'!I316","v":4015.1678141299999},null,null,{"$f":"'[1]EXT RIN(M)'!P316","v":74.489506736513349},{"$f":"'[1]EXT RIN(M)'!Q316","v":98.923202672447488},{"$f":"'[1]EXT RIN(M)'!R316","v":95.286277206793159},{"$f":"'[1]EXT RIN(M)'!S316","v":87.499333982752759},{"$f":"'[1]EXT RIN(M)'!T316","v":118.1033003320489},{"$f":"'[1]EXT RIN(M)'!U316","v":78.505651779746913},{"$f":"'[1]EXT RIN(M)'!V316","v":305.43682196253422},null,null,{"$f":"+'[1]MONE(M)CAPARD'!AE316","v":7.0945232202590747},{"$f":"'[1]MONE(M)CAPARD'!AF316","v":5.8180249175522176},{"$f":"'[1]MONE(M)CAPARD'!AG316","v":3.0881233847436449},{"$f":"'[1]MONE(M)CAPARD'!AH316","v":6.2702681992337039},{"$f":"'[1]MONE(M)CAPARD'!AI316","v":5.7975471230822153},{"$f":"'[1]MONE(M)CAPARD'!AJ316","v":5.6144221569449639},{"$f":"'[1]MONE(M)CAPARD'!AK316","v":1.1937065637065636},null,null,{"$f":"'[1]MONE(M)CAPARD'!AL316","v":1.5699999999999998},{"$f":"'[1]MONE(M)CAPARD'!AM316","v":4.28},{"$f":"'[1]MONE(M)CAPARD'!AN316","v":2.97},{"$f":"'[1]MONE(M)CAPARD'!AO316","v":4.01},{"$f":"'[1]MONE(M)CAPARD'!AP316","v":3.1},{"$f":"'[1]MONE(M)CAPARD'!AQ316","v":1.47},{"$f":"'[1]MONE(M)CAPARD'!AR316","v":2.1800000000000002},null,null,{"$f":"'[1]MONE(M)CAPARD'!J316","v":16.34427969886131},{"$f":"'[1]MONE(M)CAPARD'!K316","v":7.7257530230853781},{"$f":"'[1]MONE(M)CAPARD'!L316","v":10.554877865777408},{"$f":"'[1]MONE(M)CAPARD'!M316","v":17.045552072448608},{"$f":"'[1]MONE(M)CAPARD'!N316","v":14.380123994658691},{"$f":"'[1]MONE(M)CAPARD'!O316","v":13.186739404112396},{"$f":"'[1]MONE(M)CAPARD'!P316","v":5.2046138996139},null,null,{"$f":"'[1]MONE(M)CAPARD'!Q316","v":9.4700000000000006},{"$f":"'[1]MONE(M)CAPARD'!R316","v":6.16},{"$f":"'[1]MONE(M)CAPARD'!S316","v":5.93},{"$f":"'[1]MONE(M)CAPARD'!T316","v":8.6},{"$f":"'[1]MONE(M)CAPARD'!U316","v":8.6999999999999993},{"$f":"'[1]MONE(M)CAPARD'!V316","v":7.09},{"$f":"'[1]MONE(M)CAPARD'!W316","v":6.23},null,null,{"$f":"'[1]MONE(M)CAPARD'!AS316","v":3},{"$f":"'[1]MONE(M)CAPARD'!AT316","v":"n.a."},{"$f":"'[1]MONE(M)CAPARD'!AU316","v":3.25},{"$f":"'[1]MONE(M)CAPARD'!AV316","v":6.25},{"$f":"'[1]MONE(M)CAPARD'!AW316","v":"n.a."},{"$f":"'[1]MONE(M)CAPARD'!AX316","v":5},{"$f":"'[1]MONE(M)CAPARD'!AY316","v":"n.a."},null,null,{"$f":"+'Datos_Regional (M)'!CF309","v":13.257187856353037},{"$f":"+'Datos_Regional (M)'!CG309","v":3.6685634032872283},{"$f":"+'Datos_Regional (M)'!CH309","v":9.5409063367297264},{"$f":"+'Datos_Regional (M)'!CI309","v":10.329499961005828},{"$f":"+'Datos_Regional (M)'!CJ309","v":20.734270259444809},{"$f":"+'Datos_Regional (M)'!CK309","v":15.501000713633983},{"$f":"+'Datos_Regional (M)'!CL309","v":13.002543342728345},null,null,848.61282133416182,459.27916666666653,913.11666666666667,344.34872026264389,420.45340902671632,814.2833333333333,1091.1438900833334,3800.0941172901889,4891.2380073735212,null,null,1317.2128800150003,855.79833333333283,1491.6499999999999,798.9031783554201,622.61155900083338,1419.7916666666667,1978.1309818333327,6505.9676173712533,8484.0985992045844,null,null,-2705.8735000810648,-3592.8605918310641,null,null,{"$f":"'[1]EXT Comercio(M)'!C316","v":792.54423696999515},{"$f":"'[1]EXT Comercio(M)'!D316","v":541.15000000000009},{"$f":"'[1]EXT Comercio(M)'!E316","v":965.19999999999993},{"$f":"'[1]EXT Comercio(M)'!F316","v":309.26164442293742},{"$f":"'[1]EXT Comercio(M)'!G316","v":448.60767118000001},{"$f":"'[1]EXT Comercio(M)'!H316","v":883.10000000000014},{"$f":"'[1]EXT Comercio(M)'!I316","v":1060.687752},{"$f":"'[1]EXT Comercio(M)'!K316","v":3939.8635525729333},{"$f":"'[1]EXT Comercio(M)'!L316","v":5000.5513045729313},null,null,{"$f":"'[1]EXT Comercio(M)'!AG316","v":1438.3179197599895},{"$f":"'[1]EXT Comercio(M)'!AH316","v":943.32000000000062},{"$f":"'[1]EXT Comercio(M)'!AI316","v":1640.7},{"$f":"'[1]EXT Comercio(M)'!AJ316","v":834.30223741765587},{"$f":"'[1]EXT Comercio(M)'!AK316","v":635.47330003000002},{"$f":"'[1]EXT Comercio(M)'!AL316","v":1519.5},{"$f":"'[1]EXT Comercio(M)'!AM316","v":2048.3611490000003},{"$f":"'[1]EXT Comercio(M)'!AO316","v":7011.613457207648},{"$f":"'[1]EXT Comercio(M)'!AP316","v":9059.974606207652},null,null,{"$f":"'[1]EXT Comercio(M)'!$BS316","v":-3071.7499046347129},{"$f":"'[1]EXT Comercio(M)'!$BT316","v":-4059.4233016347134}]
[null,null,"Agosto",{"$f":"'[1]REAL IPC(M)'!AD317","v":-0.73828535940538575},{"$f":"'[1]REAL IPC(M)'!AE317","v":-1.9992795389049109},{"$f":"'[1]REAL IPC(M)'!AF317","v":1.9622833843017349},{"$f":"'[1]REAL IPC(M)'!AG317","v":3.086862885857848},{"$f":"'[1]REAL IPC(M)'!AH317","v":2.7469084290107375},{"$f":"'[1]REAL IPC(M)'!AI317","v":0.42849941186361984},{"$f":"'[1]REAL IPC(M)'!AJ317","v":0.41997371879107026},null,null,{"$f":"'[1]REAL IMAE(M)'!AG317","v":6.7960242003385529},{"$f":"'[1]REAL IMAE(M)'!AH317","v":2.5088303336835143},{"$f":"'[1]REAL IMAE(M)'!AI317","v":5.2667816741176763},{"$f":"'[1]REAL IMAE(M)'!AJ317","v":4.2837165283160274},{"$f":"'[1]REAL IMAE(M)'!AK317","v":5.6571538182442991},{"$f":"'[1]REAL IMAE(M)'!AL317","v":7.8669225990085483},{"$f":"'[1]REAL IMAE(M)'!AM317","v":4.21037709101219},null,null,{"$f":"'[1]EXT ITCER(M)'!C317","v":72.806848975206435},{"$f":"'[1]EXT ITCER(M)'!D317","v":92.579712510364914},{"$f":"'[1]EXT ITCER(M)'!E317","v":58.380498024487792},{"$f":"'[1]EXT ITCER(M)'!F317","v":75.927024637434684},{"$f":"'[1]EXT ITCER(M)'!G317","v":98.544346806467857},{"$f":"'[1]EXT ITCER(M)'!H317","v":101.64347033127549},{"$f":"'[1]EXT ITCER(M)'!I317","v":87.737616117548782},null,null,{"$f":"'[1]EXT TC(M)'!J317","v":-1.1517985038032916},{"$f":"'[1]EXT TC(M)'!K317","v":0},{"$f":"'[1]EXT TC(M)'!L317","v":-2.0467250858577337},{"$f":"'[1]EXT TC(M)'!M317","v":4.4267902063658857},{"$f":"'[1]EXT TC(M)'!N317","v":4.9502897022629186},{"$f":"'[1]EXT TC(M)'!O317","v":3.5042501189849471},{"$f":"'[1]EXT TC(M)'!P317","v":0},null,null,{"$f":"'[1]EXT RIN(M)'!C317","v":8190.3024225500003},{"$f":"'[1]EXT RIN(M)'!D317","v":2827.3},{"$f":"'[1]EXT RIN(M)'!E317","v":7572.6},{"$f":"'[1]EXT RIN(M)'!F317","v":3743.6341744258889},{"$f":"'[1]EXT RIN(M)'!G317","v":2281.1999999999998},{"$f":"'[1]EXT RIN(M)'!H317","v":4884},{"$f":"'[1]EXT RIN(M)'!I317","v":4454.2348364999998},null,null,{"$f":"'[1]EXT RIN(M)'!P317","v":73.031993275050823},{"$f":"'[1]EXT RIN(M)'!Q317","v":98.527197346773718},{"$f":"'[1]EXT RIN(M)'!R317","v":97.548251547874685},{"$f":"'[1]EXT RIN(M)'!S317","v":87.006340542526161},{"$f":"'[1]EXT RIN(M)'!T317","v":122.24291556191167},{"$f":"'[1]EXT RIN(M)'!U317","v":78.203554780631094},{"$f":"'[1]EXT RIN(M)'!V317","v":337.44335898795111},null,null,{"$f":"+'[1]MONE(M)CAPARD'!AE317","v":7.3424939170099011},{"$f":"'[1]MONE(M)CAPARD'!AF317","v":6.2135048704282427},{"$f":"'[1]MONE(M)CAPARD'!AG317","v":3.4500174956260921},{"$f":"'[1]MONE(M)CAPARD'!AH317","v":6.1143941504178416},{"$f":"'[1]MONE(M)CAPARD'!AI317","v":5.893176736805426},{"$f":"'[1]MONE(M)CAPARD'!AJ317","v":6.6231205555090051},{"$f":"'[1]MONE(M)CAPARD'!AK317","v":1.6630419421195546},null,null,{"$f":"'[1]MONE(M)CAPARD'!AL317","v":1.63},{"$f":"'[1]MONE(M)CAPARD'!AM317","v":4.09},{"$f":"'[1]MONE(M)CAPARD'!AN317","v":2.99},{"$f":"'[1]MONE(M)CAPARD'!AO317","v":3.95},{"$f":"'[1]MONE(M)CAPARD'!AP317","v":3.41},{"$f":"'[1]MONE(M)CAPARD'!AQ317","v":1.41},{"$f":"'[1]MONE(M)CAPARD'!AR317","v":2.09},null,null,{"$f":"'[1]MONE(M)CAPARD'!J317","v":16.792260157662671},{"$f":"'[1]MONE(M)CAPARD'!K317","v":7.8563499356736015},{"$f":"'[1]MONE(M)CAPARD'!L317","v":10.913561609597599},{"$f":"'[1]MONE(M)CAPARD'!M317","v":17.231232590529263},{"$f":"'[1]MONE(M)CAPARD'!N317","v":15.831834107781754},{"$f":"'[1]MONE(M)CAPARD'!O317","v":14.041333556429271},{"$f":"'[1]MONE(M)CAPARD'!P317","v":5.775769566969724},null,null,{"$f":"'[1]MONE(M)CAPARD'!Q317","v":9.49},{"$f":"'[1]MONE(M)CAPARD'!R317","v":5.7},{"$f":"'[1]MONE(M)CAPARD'!S317","v":5.92},{"$f":"'[1]MONE(M)CAPARD'!T317","v":8.57},{"$f":"'[1]MONE(M)CAPARD'!U317","v":8.32},{"$f":"'[1]MONE(M)CAPARD'!V317","v":6.92},{"$f":"'[1]MONE(M)CAPARD'!W317","v":6.22},null,null,{"$f":"'[1]MONE(M)CAPARD'!AS317","v":3},{"$f":"'[1]MONE(M)CAPARD'!AT317","v":"n.a."},{"$f":"'[1]MONE(M)CAPARD'!AU317","v":3.25},{"$f":"'[1]MONE(M)CAPARD'!AV317","v":6.25},{"$f":"'[1]MONE(M)CAPARD'!AW317","v":"n.a."},{"$f":"'[1]MONE(M)CAPARD'!AX317","v":5},{"$f":"'[1]MONE(M)CAPARD'!AY317","v":"n.a."},null,null,{"$f":"+'Datos_Regional (M)'!CF310","v":12.592742443100956},{"$f":"+'Datos_Regional (M)'!CG310","v":3.4403773653620018},{"$f":"+'Datos_Regional (M)'!CH310","v":11.152523179917594},{"$f":"+'Datos_Regional (M)'!CI310","v":10.363492187425805},{"$f":"+'Datos_Regional (M)'!CJ310","v":20.187694790074783},{"$f":"+'Datos_Regional (M)'!CK310","v":17.568226435785238},{"$f":"+'Datos_Regional (M)'!CL310","v":12.684926235070337},null,null,831.41866992666212,457.85416666666657,913.47499999999991,340.97385064046188,417.54973016188296,808.14166666666677,1067.1306165833334,3769.4130840623402,4836.5437006456741,null,null,1304.7068460491666,858.99249999999972,1490.9666666666669,790.68555090288316,622.74940492166672,1412.2416666666668,1961.0816888333336,6480.3426352070501,8441.4243240403812,null,null,-2710.9295511447099,-3604.8806233947093,null,null,{"$f":"'[1]EXT Comercio(M)'!C317","v":749.25543740999797},{"$f":"'[1]EXT Comercio(M)'!D317","v":418.61999999999989},{"$f":"'[1]EXT Comercio(M)'!E317","v":878.30000000000007},{"$f":"'[1]EXT Comercio(M)'!F317","v":262.45675224947496},{"$f":"'[1]EXT Comercio(M)'!G317","v":411.95677879200002},{"$f":"'[1]EXT Comercio(M)'!H317","v":769.09999999999991},{"$f":"'[1]EXT Comercio(M)'!I317","v":872.83735300000001},{"$f":"'[1]EXT Comercio(M)'!K317","v":3489.6889684514717},{"$f":"'[1]EXT Comercio(M)'!L317","v":4362.526321451478},null,null,{"$f":"'[1]EXT Comercio(M)'!AG317","v":1285.1284877000001},{"$f":"'[1]EXT Comercio(M)'!AH317","v":806.09000000000015},{"$f":"'[1]EXT Comercio(M)'!AI317","v":1454.5},{"$f":"'[1]EXT Comercio(M)'!AJ317","v":713.77866807794851},{"$f":"'[1]EXT Comercio(M)'!AK317","v":625.58226866999996},{"$f":"'[1]EXT Comercio(M)'!AL317","v":1395.9},{"$f":"'[1]EXT Comercio(M)'!AM317","v":1851.9892150000001},{"$f":"'[1]EXT Comercio(M)'!AO317","v":6280.979424447949},{"$f":"'[1]EXT Comercio(M)'!AP317","v":8132.9686394479431},null,null,{"$f":"'[1]EXT Comercio(M)'!$BS317","v":-2791.2904559964772},{"$f":"'[1]EXT Comercio(M)'!$BT317","v":-3770.442317996476}]
[null,null,"Setiembre",{"$f":"'[1]REAL IPC(M)'!AD318","v":-0.86419232992965966},{"$f":"'[1]REAL IPC(M)'!AE318","v":-2.2540798845911101},{"$f":"'[1]REAL IPC(M)'!AF318","v":1.8763796909492221},{"$f":"'[1]REAL IPC(M)'!AG318","v":2.7608461814270511},{"$f":"'[1]REAL IPC(M)'!AH318","v":2.7703850726177008},{"$f":"'[1]REAL IPC(M)'!AI318","v":0.39412997903569447},{"$f":"'[1]REAL IPC(M)'!AJ318","v":-0.3937786509493364},null,null,{"$f":"'[1]REAL IMAE(M)'!AG318","v":6.183014389193386},{"$f":"'[1]REAL IMAE(M)'!AH318","v":2.8712748657454807},{"$f":"'[1]REAL IMAE(M)'!AI318","v":5.2093533681884114},{"$f":"'[1]REAL IMAE(M)'!AJ318","v":4.363888751678874},{"$f":"'[1]REAL IMAE(M)'!AK318","v":5.7940164654137778},{"$f":"'[1]REAL IMAE(M)'!AL318","v":7.3481618240465698},{"$f":"'[1]REAL IMAE(M)'!AM318","v":4.0407947951468088},null,null,{"$f":"'[1]EXT ITCER(M)'!C318","v":72.941211531073421},{"$f":"'[1]EXT ITCER(M)'!D318","v":92.720975373701705},{"$f":"'[1]EXT ITCER(M)'!E318","v":58.578882713129588},{"$f":"'[1]EXT ITCER(M)'!F318","v":75.801917507624211},{"$f":"'[1]EXT ITCER(M)'!G318","v":98.700812833830867},{"$f":"'[1]EXT ITCER(M)'!H318","v":101.451776666596},{"$f":"'[1]EXT ITCER(M)'!I318","v":87.966612976897466},null,null,{"$f":"'[1]EXT TC(M)'!J318","v":-1.0241656933505086},{"$f":"'[1]EXT TC(M)'!K318","v":0},{"$f":"'[1]EXT TC(M)'!L318","v":-0.44502627990466309},{"$f":"'[1]EXT TC(M)'!M318","v":3.6991538322783248},{"$f":"'[1]EXT TC(M)'!N318","v":5.0403115182667264},{"$f":"'[1]EXT TC(M)'!O318","v":3.3312893320697978},{"$f":"'[1]EXT TC(M)'!P318","v":0},null,null,{"$f":"'[1]EXT RIN(M)'!C318","v":8051.9971898699996},{"$f":"'[1]EXT RIN(M)'!D318","v":2791.8},{"$f":"'[1]EXT RIN(M)'!E318","v":7536.1},{"$f":"'[1]EXT RIN(M)'!F318","v":3672.5778311813669},{"$f":"'[1]EXT RIN(M)'!G318","v":2320.5},{"$f":"'[1]EXT RIN(M)'!H318","v":4720.2},{"$f":"'[1]EXT RIN(M)'!I318","v":4062.3142484099999},null,null,{"$f":"'[1]EXT RIN(M)'!P318","v":70.359329536643799},{"$f":"'[1]EXT RIN(M)'!Q318","v":98.470042611096247},{"$f":"'[1]EXT RIN(M)'!R318","v":97.847257024983961},{"$f":"'[1]EXT RIN(M)'!S318","v":85.242838078869525},{"$f":"'[1]EXT RIN(M)'!T318","v":125.56366276835651},{"$f":"'[1]EXT RIN(M)'!U318","v":78.929606058065616},{"$f":"'[1]EXT RIN(M)'!V318","v":305.30526109029284},null,null,{"$f":"+'[1]MONE(M)CAPARD'!AE318","v":7.4788237511561082},{"$f":"'[1]MONE(M)CAPARD'!AF318","v":6.7563739507425513},{"$f":"'[1]MONE(M)CAPARD'!AG318","v":3.5470639219935047},{"$f":"'[1]MONE(M)CAPARD'!AH318","v":6.2661549197487618},{"$f":"'[1]MONE(M)CAPARD'!AI318","v":6.3175271398425696},{"$f":"'[1]MONE(M)CAPARD'!AJ318","v":6.6695831941195536},{"$f":"'[1]MONE(M)CAPARD'!AK318","v":2.5939932425455492},null,null,{"$f":"'[1]MONE(M)CAPARD'!AL318","v":1.6949999999999998},{"$f":"'[1]MONE(M)CAPARD'!AM318","v":4.3499999999999996},{"$f":"'[1]MONE(M)CAPARD'!AN318","v":3.01},{"$f":"'[1]MONE(M)CAPARD'!AO318","v":3.9},{"$f":"'[1]MONE(M)CAPARD'!AP318","v":3.42},{"$f":"'[1]MONE(M)CAPARD'!AQ318","v":1.6},{"$f":"'[1]MONE(M)CAPARD'!AR318","v":2.19},null,null,{"$f":"'[1]MONE(M)CAPARD'!J318","v":16.789284034808578},{"$f":"'[1]MONE(M)CAPARD'!K318","v":8.6081136426528921},{"$f":"'[1]MONE(M)CAPARD'!L318","v":11.046348862405207},{"$f":"'[1]MONE(M)CAPARD'!M318","v":17.46691905094206},{"$f":"'[1]MONE(M)CAPARD'!N318","v":15.271012409454363},{"$f":"'[1]MONE(M)CAPARD'!O318","v":14.020610591379825},{"$f":"'[1]MONE(M)CAPARD'!P318","v":6.6399252590585007},null,null,{"$f":"'[1]MONE(M)CAPARD'!Q318","v":9.4600000000000009},{"$f":"'[1]MONE(M)CAPARD'!R318","v":6.16},{"$f":"'[1]MONE(M)CAPARD'!S318","v":5.93},{"$f":"'[1]MONE(M)CAPARD'!T318","v":8.5500000000000007},{"$f":"'[1]MONE(M)CAPARD'!U318","v":8.11},{"$f":"'[1]MONE(M)CAPARD'!V318","v":6},{"$f":"'[1]MONE(M)CAPARD'!W318","v":6.22},null,null,{"$f":"'[1]MONE(M)CAPARD'!AS318","v":3},{"$f":"'[1]MONE(M)CAPARD'!AT318","v":"n.a."},{"$f":"'[1]MONE(M)CAPARD'!AU318","v":3.25},{"$f":"'[1]MONE(M)CAPARD'!AV318","v":6.25},{"$f":"'[1]MONE(M)CAPARD'!AW318","v":"n.a."},{"$f":"'[1]MONE(M)CAPARD'!AX318","v":5},{"$f":"'[1]MONE(M)CAPARD'!AY318","v":"n.a."},null,null,{"$f":"+'Datos_Regional (M)'!CF311","v":12.983189970395049},{"$f":"+'Datos_Regional (M)'!CG311","v":3.4614558839034526},{"$f":"+'Datos_Regional (M)'!CH311","v":11.753423583547162},{"$f":"+'Datos_Regional (M)'!CI311","v":10.138723727026422},{"$f":"+'Datos_Regional (M)'!CJ311","v":23.893225825321053},{"$f":"+'Datos_Regional (M)'!CK311","v":20.036367592556314},{"$f":"+'Datos_Regional (M)'!CL311","v":12.407627974956515},null,null,816.82576017582903,458.45749999999998,907.73333333333346,337.68495576615959,414.01900073154962,806.60833333333323,1048.3221635833333,3741.3288833402039,4789.6510469235382,null,null,1290.8221605975007,861.04583333333323,1490.4666666666669,788.09699850864524,627.11670398500007,1416.1166666666666,1936.5842287500006,6473.6650297578135,8410.2492585078126,null,null,-2732.3361464176087,-3620.5982115842758,null,null,{"$f":"'[1]EXT Comercio(M)'!C318","v":739.37200266999548},{"$f":"'[1]EXT Comercio(M)'!D318","v":442.47000000000025},{"$f":"'[1]EXT Comercio(M)'!E318","v":814.6},{"$f":"'[1]EXT Comercio(M)'!F318","v":245.39730404429517},{"$f":"'[1]EXT Comercio(M)'!G318","v":392.755390186},{"$f":"'[1]EXT Comercio(M)'!H318","v":820.3},{"$f":"'[1]EXT Comercio(M)'!I318","v":1151.7252490000001},{"$f":"'[1]EXT Comercio(M)'!K318","v":3454.89469690029},{"$f":"'[1]EXT Comercio(M)'!L318","v":4606.6199459002892},null,null,{"$f":"'[1]EXT Comercio(M)'!AG318","v":1236.4138271800052},{"$f":"'[1]EXT Comercio(M)'!AH318","v":867.80000000000018},{"$f":"'[1]EXT Comercio(M)'!AI318","v":1536.3999999999999},{"$f":"'[1]EXT Comercio(M)'!AJ318","v":752.55843301540017},{"$f":"'[1]EXT Comercio(M)'!AK318","v":615.44007195000006},{"$f":"'[1]EXT Comercio(M)'!AL318","v":1467.4},{"$f":"'[1]EXT Comercio(M)'!AM318","v":2162.3750170000003},{"$f":"'[1]EXT Comercio(M)'!AO318","v":6476.0123321454157},{"$f":"'[1]EXT Comercio(M)'!AP318","v":8638.3873491454287},null,null,{"$f":"'[1]EXT Comercio(M)'!$BS318","v":-3021.1176352451148},{"$f":"'[1]EXT Comercio(M)'!$BT318","v":-4031.7674032451141}]
[null,null,"Octubre",{"$f":"'[1]REAL IPC(M)'!AD319","v":-0.85644268394147927},{"$f":"'[1]REAL IPC(M)'!AE319","v":-0.18924033522573105},{"$f":"'[1]REAL IPC(M)'!AF319","v":2.2295693455408694},{"$f":"'[1]REAL IPC(M)'!AG319","v":2.5384340364676521},{"$f":"'[1]REAL IPC(M)'!AH319","v":3.0303933883283189},{"$f":"'[1]REAL IPC(M)'!AI319","v":1.2253462022661101},{"$f":"'[1]REAL IPC(M)'!AJ319","v":-0.38834951456311234},null,null,{"$f":"'[1]REAL IMAE(M)'!AG319","v":5.4741238204365361},{"$f":"'[1]REAL IMAE(M)'!AH319","v":3.7904640432203367},{"$f":"'[1]REAL IMAE(M)'!AI319","v":4.6453384113403438},{"$f":"'[1]REAL IMAE(M)'!AJ319","v":4.3875601508602688},{"$f":"'[1]REAL IMAE(M)'!AK319","v":5.5305005389869724},{"$f":"'[1]REAL IMAE(M)'!AL319","v":6.6946270478687442},{"$f":"'[1]REAL IMAE(M)'!AM319","v":3.8708775852431465},null,null,{"$f":"'[1]EXT ITCER(M)'!C319","v":73.160517071351947},{"$f":"'[1]EXT ITCER(M)'!D319","v":90.843509350734081},{"$f":"'[1]EXT ITCER(M)'!E319","v":58.269057279889417},{"$f":"'[1]EXT ITCER(M)'!F319","v":76.295659543483794},{"$f":"'[1]EXT ITCER(M)'!G319","v":98.938883035141075},{"$f":"'[1]EXT ITCER(M)'!H319","v":101.07544412630889},{"$f":"'[1]EXT ITCER(M)'!I319","v":88.139476633710515},null,null,{"$f":"'[1]EXT TC(M)'!J319","v":-1.026231970845136},{"$f":"'[1]EXT TC(M)'!K319","v":0},{"$f":"'[1]EXT TC(M)'!L319","v":0.48227653406028015},{"$f":"'[1]EXT TC(M)'!M319","v":3.7376564768159608},{"$f":"'[1]EXT TC(M)'!N319","v":5.1488665624626},{"$f":"'[1]EXT TC(M)'!O319","v":3.2488048982051736},{"$f":"'[1]EXT TC(M)'!P319","v":0},null,null,{"$f":"'[1]EXT RIN(M)'!C319","v":7909.9839506099997},{"$f":"'[1]EXT RIN(M)'!D319","v":2689.1},{"$f":"'[1]EXT RIN(M)'!E319","v":7564.4},{"$f":"'[1]EXT RIN(M)'!F319","v":3581.5278330797746},{"$f":"'[1]EXT RIN(M)'!G319","v":2349.6999999999998},{"$f":"'[1]EXT RIN(M)'!H319","v":4621.3132722143491},{"$f":"'[1]EXT RIN(M)'!I319","v":3904.0534608100002},null,null,{"$f":"'[1]EXT RIN(M)'!P319","v":69.023524972719898},{"$f":"'[1]EXT RIN(M)'!Q319","v":94.619886045159006},{"$f":"'[1]EXT RIN(M)'!R319","v":97.775116178283554},{"$f":"'[1]EXT RIN(M)'!S319","v":87.420115230058727},{"$f":"'[1]EXT RIN(M)'!T319","v":126.93019465507354},{"$f":"'[1]EXT RIN(M)'!U319","v":78.541471735727399},{"$f":"'[1]EXT RIN(M)'!V319","v":285.30970433785706},null,null,{"$f":"+'[1]MONE(M)CAPARD'!AE319","v":7.167831048554107},{"$f":"'[1]MONE(M)CAPARD'!AF319","v":4.5278087757313052},{"$f":"'[1]MONE(M)CAPARD'!AG319","v":3.1893224977195378},{"$f":"'[1]MONE(M)CAPARD'!AH319","v":6.3796234309623339},{"$f":"'[1]MONE(M)CAPARD'!AI319","v":6.3833446617973877},{"$f":"'[1]MONE(M)CAPARD'!AJ319","v":6.3172456678550075},{"$f":"'[1]MONE(M)CAPARD'!AK319","v":2.417738791423008},null,null,{"$f":"'[1]MONE(M)CAPARD'!AL319","v":1.7949999999999999},{"$f":"'[1]MONE(M)CAPARD'!AM319","v":4.33},{"$f":"'[1]MONE(M)CAPARD'!AN319","v":2.98},{"$f":"'[1]MONE(M)CAPARD'!AO319","v":3.86},{"$f":"'[1]MONE(M)CAPARD'!AP319","v":3.19},{"$f":"'[1]MONE(M)CAPARD'!AQ319","v":2.21},{"$f":"'[1]MONE(M)CAPARD'!AR319","v":2.02},null,null,{"$f":"'[1]MONE(M)CAPARD'!J319","v":16.739809558208492},{"$f":"'[1]MONE(M)CAPARD'!K319","v":6.2009750812567654},{"$f":"'[1]MONE(M)CAPARD'!L319","v":10.652916493904959},{"$f":"'[1]MONE(M)CAPARD'!M319","v":17.302357043235695},{"$f":"'[1]MONE(M)CAPARD'!N319","v":14.404959100033444},{"$f":"'[1]MONE(M)CAPARD'!O319","v":12.906504435784695},{"$f":"'[1]MONE(M)CAPARD'!P319","v":6.5738791423002008},null,null,{"$f":"'[1]MONE(M)CAPARD'!Q319","v":9.5399999999999991},{"$f":"'[1]MONE(M)CAPARD'!R319","v":6},{"$f":"'[1]MONE(M)CAPARD'!S319","v":5.91},{"$f":"'[1]MONE(M)CAPARD'!T319","v":8.6999999999999993},{"$f":"'[1]MONE(M)CAPARD'!U319","v":8.5500000000000007},{"$f":"'[1]MONE(M)CAPARD'!V319","v":5.87},{"$f":"'[1]MONE(M)CAPARD'!W319","v":6.16},null,null,{"$f":"'[1]MONE(M)CAPARD'!AS319","v":2.25},{"$f":"'[1]MONE(M)CAPARD'!AT319","v":"n.a."},{"$f":"'[1]MONE(M)CAPARD'!AU319","v":3},{"$f":"'[1]MONE(M)CAPARD'!AV319","v":6.25},{"$f":"'[1]MONE(M)CAPARD'!AW319","v":"n.a."},{"$f":"'[1]MONE(M)CAPARD'!AX319","v":5},{"$f":"'[1]MONE(M)CAPARD'!AY319","v":"n.a."},null,null,{"$f":"+'Datos_Regional (M)'!CF312","v":12.248054139066177},{"$f":"+'Datos_Regional (M)'!CG312","v":3.9318787648594533},{"$f":"+'Datos_Regional (M)'!CH312","v":12.087738621359833},{"$f":"+'Datos_Regional (M)'!CI312","v":9.5896360826378313},{"$f":"+'Datos_Regional (M)'!CJ312","v":24.631302521017929},{"$f":"+'Datos_Regional (M)'!CK312","v":19.389373922632135},{"$f":"+'Datos_Regional (M)'!CL312","v":11.992599280711879},null,null,803.92479219832887,462.37499999999994,902.875,334.80157746786125,413.86819199154974,799.51666666666677,1023.0752578333335,3717.3612283244056,4740.4364861577405,null,null,1287.835189924167,860.57499999999982,1488.2250000000001,786.36320152870758,624.18536846250004,1406.0166666666667,1907.1251086666662,6453.2004265820406,8360.3255352487049,null,null,-2735.8391982576345,-3619.8890490909671,null,null,{"$f":"'[1]EXT Comercio(M)'!C319","v":813.50334179999447},{"$f":"'[1]EXT Comercio(M)'!D319","v":474.11999999999989},{"$f":"'[1]EXT Comercio(M)'!E319","v":825},{"$f":"'[1]EXT Comercio(M)'!F319","v":265.70183713465093},{"$f":"'[1]EXT Comercio(M)'!G319","v":436.32641476000003},{"$f":"'[1]EXT Comercio(M)'!H319","v":785.2},{"$f":"'[1]EXT Comercio(M)'!I319","v":1237.348577},{"$f":"'[1]EXT Comercio(M)'!K319","v":3599.8515936946424},{"$f":"'[1]EXT Comercio(M)'!L319","v":4837.2001706946467},null,null,{"$f":"'[1]EXT Comercio(M)'!AG319","v":1362.2647755799967},{"$f":"'[1]EXT Comercio(M)'!AH319","v":886.34999999999854},{"$f":"'[1]EXT Comercio(M)'!AI319","v":1548.3},{"$f":"'[1]EXT Comercio(M)'!AJ319","v":767.99935821342888},{"$f":"'[1]EXT Comercio(M)'!AK319","v":670.30714737000005},{"$f":"'[1]EXT Comercio(M)'!AL319","v":1456.8},{"$f":"'[1]EXT Comercio(M)'!AM319","v":2095.983745},{"$f":"'[1]EXT Comercio(M)'!AO319","v":6692.0212811634192},{"$f":"'[1]EXT Comercio(M)'!AP319","v":8788.0050261634169},null,null,{"$f":"'[1]EXT Comercio(M)'!$BS319","v":-3092.1696874687768},{"$f":"'[1]EXT Comercio(M)'!$BT319","v":-3950.8048554687775}]
[null,null,"Noviembre",{"$f":"'[1]REAL IPC(M)'!AD320","v":-1.2037736769680414},{"$f":"'[1]REAL IPC(M)'!AE320","v":0.26268115942028264},{"$f":"'[1]REAL IPC(M)'!AF320","v":2.5129029528724924},{"$f":"'[1]REAL IPC(M)'!AG320","v":2.1018881368008673},{"$f":"'[1]REAL IPC(M)'!AH320","v":1.9860749754835074},{"$f":"'[1]REAL IPC(M)'!AI320","v":1.5380736258195324},{"$f":"'[1]REAL IPC(M)'!AJ320","v":0},null,null,{"$f":"'[1]REAL IMAE(M)'!AG320","v":4.9395704518085282},{"$f":"'[1]REAL IMAE(M)'!AH320","v":3.6406698108272817},{"$f":"'[1]REAL IMAE(M)'!AI320","v":3.8115266978727034},{"$f":"'[1]REAL IMAE(M)'!AJ320","v":4.3268190977028516},{"$f":"'[1]REAL IMAE(M)'!AK320","v":5.028787496606844},{"$f":"'[1]REAL IMAE(M)'!AL320","v":6.1681035448029071},{"$f":"'[1]REAL IMAE(M)'!AM320","v":3.7367908787541713},null,null,{"$f":"'[1]EXT ITCER(M)'!C320","v":73.100765128596407},{"$f":"'[1]EXT ITCER(M)'!D320","v":91.009550368847613},{"$f":"'[1]EXT ITCER(M)'!E320","v":57.778023556298571},{"$f":"'[1]EXT ITCER(M)'!F320","v":76.649679684633},{"$f":"'[1]EXT ITCER(M)'!G320","v":99.0125405326596},{"$f":"'[1]EXT ITCER(M)'!H320","v":101.2578508480192},{"$f":"'[1]EXT ITCER(M)'!I320","v":88.244769594149219},null,null,{"$f":"'[1]EXT TC(M)'!J320","v":-0.78058792497471963},{"$f":"'[1]EXT TC(M)'!K320","v":0},{"$f":"'[1]EXT TC(M)'!L320","v":0.29567820530694811},{"$f":"'[1]EXT TC(M)'!M320","v":3.7017864663268569},{"$f":"'[1]EXT TC(M)'!N320","v":5.1803441903773892},{"$f":"'[1]EXT TC(M)'!O320","v":2.9665973854873071},{"$f":"'[1]EXT TC(M)'!P320","v":0},null,null,{"$f":"'[1]EXT RIN(M)'!C320","v":7895.1279943199997},{"$f":"'[1]EXT RIN(M)'!D320","v":2714.4},{"$f":"'[1]EXT RIN(M)'!E320","v":7421.7},{"$f":"'[1]EXT RIN(M)'!F320","v":3543.4519604293264},{"$f":"'[1]EXT RIN(M)'!G320","v":2328.6999999999998},{"$f":"'[1]EXT RIN(M)'!H320","v":4875.8326268282563},{"$f":"'[1]EXT RIN(M)'!I320","v":3603.1309214500002},null,null,{"$f":"'[1]EXT RIN(M)'!P320","v":67.900323711987767},{"$f":"'[1]EXT RIN(M)'!Q320","v":95.527212093356539},{"$f":"'[1]EXT RIN(M)'!R320","v":97.57769355080282},{"$f":"'[1]EXT RIN(M)'!S320","v":85.947248947707749},{"$f":"'[1]EXT RIN(M)'!T320","v":125.58313735891318},{"$f":"'[1]EXT RIN(M)'!U320","v":78.783908521375324},{"$f":"'[1]EXT RIN(M)'!V320","v":254.64428777005352},null,null,{"$f":"+'[1]MONE(M)CAPARD'!AE320","v":7.2915474052764058},{"$f":"'[1]MONE(M)CAPARD'!AF320","v":4.1364531574668071},{"$f":"'[1]MONE(M)CAPARD'!AG320","v":2.9138742159128435},{"$f":"'[1]MONE(M)CAPARD'!AH320","v":7.1478715980460441},{"$f":"'[1]MONE(M)CAPARD'!AI320","v":6.8963844128067571},{"$f":"'[1]MONE(M)CAPARD'!AJ320","v":6.9844996275142099},{"$f":"'[1]MONE(M)CAPARD'!AK320","v":2.04},null,null,{"$f":"'[1]MONE(M)CAPARD'!AL320","v":1.855},{"$f":"'[1]MONE(M)CAPARD'!AM320","v":4.41},{"$f":"'[1]MONE(M)CAPARD'!AN320","v":2.98},{"$f":"'[1]MONE(M)CAPARD'!AO320","v":3.9},{"$f":"'[1]MONE(M)CAPARD'!AP320","v":3.43},{"$f":"'[1]MONE(M)CAPARD'!AQ320","v":1.64},{"$f":"'[1]MONE(M)CAPARD'!AR320","v":2.04},null,null,{"$f":"'[1]MONE(M)CAPARD'!J320","v":16.664375037095837},{"$f":"'[1]MONE(M)CAPARD'!K320","v":5.5826542596440589},{"$f":"'[1]MONE(M)CAPARD'!L320","v":10.347084846483988},{"$f":"'[1]MONE(M)CAPARD'!M320","v":17.656981856245622},{"$f":"'[1]MONE(M)CAPARD'!N320","v":14.837553346512596},{"$f":"'[1]MONE(M)CAPARD'!O320","v":13.9966476285075},{"$f":"'[1]MONE(M)CAPARD'!P320","v":6.1},null,null,{"$f":"'[1]MONE(M)CAPARD'!Q320","v":9.74},{"$f":"'[1]MONE(M)CAPARD'!R320","v":5.86},{"$f":"'[1]MONE(M)CAPARD'!S320","v":5.91},{"$f":"'[1]MONE(M)CAPARD'!T320","v":8.51},{"$f":"'[1]MONE(M)CAPARD'!U320","v":8.6},{"$f":"'[1]MONE(M)CAPARD'!V320","v":5.94},{"$f":"'[1]MONE(M)CAPARD'!W320","v":6.1},null,null,{"$f":"'[1]MONE(M)CAPARD'!AS320","v":2.25},{"$f":"'[1]MONE(M)CAPARD'!AT320","v":"n.a."},{"$f":"'[1]MONE(M)CAPARD'!AU320","v":3},{"$f":"'[1]MONE(M)CAPARD'!AV320","v":6.25},{"$f":"'[1]MONE(M)CAPARD'!AW320","v":"n.a."},{"$f":"'[1]MONE(M)CAPARD'!AX320","v":5},{"$f":"'[1]MONE(M)CAPARD'!AY320","v":"n.a."},null,null,{"$f":"+'Datos_Regional (M)'!CF313","v":11.548009305617635},{"$f":"+'Datos_Regional (M)'!CG313","v":4.2788381362054873},{"$f":"+'Datos_Regional (M)'!CH313","v":11.858566848849094},{"$f":"+'Datos_Regional (M)'!CI313","v":9.5772788759358463},{"$f":"+'Datos_Regional (M)'!CJ313","v":23.165517232638532},{"$f":"+'Datos_Regional (M)'!CK313","v":17.894825689489615},{"$f":"+'Datos_Regional (M)'!CL313","v":12.369504045443591},null,null,803.1661574983292,460.91583333333324,898.47499999999991,334.07336990891679,412.26507599071641,800.69166666666661,1017.5868812500001,3709.5871033979633,4727.1739846479632,null,null,1292.2420072083339,859.18083333333334,1480.3916666666667,784.80800315262616,629.70783977000008,1407.1666666666667,1891.1332082500005,6453.4970167976253,8344.6302250476256,null,null,-2743.9099133996642,-3617.4562403996642,null,null,{"$f":"'[1]EXT Comercio(M)'!C320","v":809.99474465999822},{"$f":"'[1]EXT Comercio(M)'!D320","v":408.75},{"$f":"'[1]EXT Comercio(M)'!E320","v":786.4},{"$f":"'[1]EXT Comercio(M)'!F320","v":258.66123941365538},{"$f":"'[1]EXT Comercio(M)'!G320","v":370.05149977999997},{"$f":"'[1]EXT Comercio(M)'!H320","v":747.8},{"$f":"'[1]EXT Comercio(M)'!I320","v":1005.695921},{"$f":"'[1]EXT Comercio(M)'!K320","v":3381.6574838536617},{"$f":"'[1]EXT Comercio(M)'!L320","v":4387.353404853653},null,null,{"$f":"'[1]EXT Comercio(M)'!AG320","v":1375.9906331299981},{"$f":"'[1]EXT Comercio(M)'!AH320","v":852.38000000000102},{"$f":"'[1]EXT Comercio(M)'!AI320","v":1462.1000000000001},{"$f":"'[1]EXT Comercio(M)'!AJ320","v":742.70828919566816},{"$f":"'[1]EXT Comercio(M)'!AK320","v":729.05401719999986},{"$f":"'[1]EXT Comercio(M)'!AL320","v":1432},{"$f":"'[1]EXT Comercio(M)'!AM320","v":1687.4920979999999},{"$f":"'[1]EXT Comercio(M)'!AO320","v":6594.2329395256602},{"$f":"'[1]EXT Comercio(M)'!AP320","v":8281.7250375256554},null,null,{"$f":"'[1]EXT Comercio(M)'!$BS320","v":-3212.575455672013},{"$f":"'[1]EXT Comercio(M)'!$BT320","v":-3894.3716326720096}]
[null,null,"Diciembre ",{"$f":"'[1]REAL IPC(M)'!AD321","v":-0.80758133239945784},{"$f":"'[1]REAL IPC(M)'!AE321","v":1.0136986301369859},{"$f":"'[1]REAL IPC(M)'!AF321","v":3.0662375063527056},{"$f":"'[1]REAL IPC(M)'!AG321","v":2.3571428571428652},{"$f":"'[1]REAL IPC(M)'!AH321","v":3.0522004919302783},{"$f":"'[1]REAL IPC(M)'!AI321","v":2.3444773592891033},{"$f":"'[1]REAL IPC(M)'!AJ321","v":0.25954604670277082},null,null,{"$f":"'[1]REAL IMAE(M)'!AG321","v":4.9021467721708003},{"$f":"'[1]REAL IMAE(M)'!AH321","v":2.3924085926540011},{"$f":"'[1]REAL IMAE(M)'!AI321","v":2.9461503001235081},{"$f":"'[1]REAL IMAE(M)'!AJ321","v":4.1624782899920341},{"$f":"'[1]REAL IMAE(M)'!AK321","v":4.5611147084887493},{"$f":"'[1]REAL IMAE(M)'!AL321","v":5.8389241286446421},{"$f":"'[1]REAL IMAE(M)'!AM321","v":3.6201759855885771},null,null,{"$f":"'[1]EXT ITCER(M)'!C321","v":72.998922579020558},{"$f":"'[1]EXT ITCER(M)'!D321","v":90.977417679460231},{"$f":"'[1]EXT ITCER(M)'!E321","v":57.269209454236069},{"$f":"'[1]EXT ITCER(M)'!F321","v":77.070029297075564},{"$f":"'[1]EXT ITCER(M)'!G321","v":98.204314673857667},{"$f":"'[1]EXT ITCER(M)'!H321","v":101.3010459072102},{"$f":"'[1]EXT ITCER(M)'!I321","v":88.235857490912352},null,null,{"$f":"'[1]EXT TC(M)'!J321","v":-0.2356701057315925},{"$f":"'[1]EXT TC(M)'!K321","v":0},{"$f":"'[1]EXT TC(M)'!L321","v":-0.12315707982340751},{"$f":"'[1]EXT TC(M)'!M321","v":3.7961426664371767},{"$f":"'[1]EXT TC(M)'!N321","v":5.2408433510006649},{"$f":"'[1]EXT TC(M)'!O321","v":2.9347469049803414},{"$f":"'[1]EXT TC(M)'!P321","v":0},null,null,{"$f":"'[1]EXT RIN(M)'!C321","v":7834.0881326400004},{"$f":"'[1]EXT RIN(M)'!D321","v":2670.2},{"$f":"'[1]EXT RIN(M)'!E321","v":7751.2},{"$f":"'[1]EXT RIN(M)'!F321","v":3822.2649997223657},{"$f":"'[1]EXT RIN(M)'!G321","v":2401.1999999999998},{"$f":"'[1]EXT RIN(M)'!H321","v":5195.054100524937},{"$f":"'[1]EXT RIN(M)'!I321","v":3896.1141070399995},null,null,{"$f":"'[1]EXT RIN(M)'!P321","v":67.059877439721845},{"$f":"'[1]EXT RIN(M)'!Q321","v":94.548065769365323},{"$f":"'[1]EXT RIN(M)'!R321","v":94.657959325991925},{"$f":"'[1]EXT RIN(M)'!S321","v":87.398820775023395},{"$f":"'[1]EXT RIN(M)'!T321","v":119.70372807580168},{"$f":"'[1]EXT RIN(M)'!U321","v":76.938277147091355},{"$f":"'[1]EXT RIN(M)'!V321","v":256.18303271039099},null,null,{"$f":"+'[1]MONE(M)CAPARD'!AE321","v":6.8125986070009024},{"$f":"'[1]MONE(M)CAPARD'!AF321","v":3.4711147274206673},{"$f":"'[1]MONE(M)CAPARD'!AG321","v":2.2934401709401668},{"$f":"'[1]MONE(M)CAPARD'!AH321","v":6.4312630844382337},{"$f":"'[1]MONE(M)CAPARD'!AI321","v":5.218171360665691},{"$f":"'[1]MONE(M)CAPARD'!AJ321","v":5.8874917300694003},{"$f":"'[1]MONE(M)CAPARD'!AK321","v":1.8356894937863686},null,null,{"$f":"'[1]MONE(M)CAPARD'!AL321","v":1.885},{"$f":"'[1]MONE(M)CAPARD'!AM321","v":4.5199999999999996},{"$f":"'[1]MONE(M)CAPARD'!AN321","v":2.98},{"$f":"'[1]MONE(M)CAPARD'!AO321","v":3.95},{"$f":"'[1]MONE(M)CAPARD'!AP321","v":3.38},{"$f":"'[1]MONE(M)CAPARD'!AQ321","v":1.38},{"$f":"'[1]MONE(M)CAPARD'!AR321","v":2.1},null,null,{"$f":"'[1]MONE(M)CAPARD'!J321","v":16.400024871772764},{"$f":"'[1]MONE(M)CAPARD'!K321","v":4.6194738269595881},{"$f":"'[1]MONE(M)CAPARD'!L321","v":9.69644641683103},{"$f":"'[1]MONE(M)CAPARD'!M321","v":17.256106071179335},{"$f":"'[1]MONE(M)CAPARD'!N321","v":13.939545556725903},{"$f":"'[1]MONE(M)CAPARD'!O321","v":14.007128680119015},{"$f":"'[1]MONE(M)CAPARD'!P321","v":5.8452827529932359},null,null,{"$f":"'[1]MONE(M)CAPARD'!Q321","v":9.61},{"$f":"'[1]MONE(M)CAPARD'!R321","v":5.68},{"$f":"'[1]MONE(M)CAPARD'!S321","v":5.91},{"$f":"'[1]MONE(M)CAPARD'!T321","v":8.32},{"$f":"'[1]MONE(M)CAPARD'!U321","v":10.4},{"$f":"'[1]MONE(M)CAPARD'!V321","v":6.19},{"$f":"'[1]MONE(M)CAPARD'!W321","v":6.12},null,null,{"$f":"'[1]MONE(M)CAPARD'!AS321","v":2.25},{"$f":"'[1]MONE(M)CAPARD'!AT321","v":"n.a."},{"$f":"'[1]MONE(M)CAPARD'!AU321","v":3},{"$f":"'[1]MONE(M)CAPARD'!AV321","v":6.25},{"$f":"'[1]MONE(M)CAPARD'!AW321","v":"n.a."},{"$f":"'[1]MONE(M)CAPARD'!AX321","v":5},{"$f":"'[1]MONE(M)CAPARD'!AY321","v":"n.a."},null,null,{"$f":"+'Datos_Regional (M)'!CF314","v":11.97673529527985},{"$f":"+'Datos_Regional (M)'!CG314","v":4.7488799151071737},{"$f":"+'Datos_Regional (M)'!CH314","v":11.741019128034402},{"$f":"+'Datos_Regional (M)'!CI314","v":9.4791371905555089},{"$f":"+'Datos_Regional (M)'!CJ314","v":23.59842699712118},{"$f":"+'Datos_Regional (M)'!CK314","v":14.817842982799112},{"$f":"+'Datos_Regional (M)'!CL314","v":11.347416905052254},null,null,803.70322583749612,459.08666666666659,889.56666666666661,329.92671436931442,409.64443767904964,786.81666666666661,1023.3885624999999,3675.6563895708591,4699.0449520708598,null,null,1290.0730219541672,857.78249999999991,1470.075,785.35728008840499,627.51854136833333,1408.8749999999998,1875.7976124166669,6439.5783439842389,8315.3759564009069,null,null,-2763.9219544133789,-3616.3310043300457,null,null,{"$f":"'[1]EXT Comercio(M)'!C321","v":797.71694187000003},{"$f":"'[1]EXT Comercio(M)'!D321","v":383.1299999999992},{"$f":"'[1]EXT Comercio(M)'!E321","v":813.19999999999993},{"$f":"'[1]EXT Comercio(M)'!F321","v":312.94247490843611},{"$f":"'[1]EXT Comercio(M)'!G321","v":362.47934558999998},{"$f":"'[1]EXT Comercio(M)'!H321","v":664.8},{"$f":"'[1]EXT Comercio(M)'!I321","v":915.63742499999989},{"$f":"'[1]EXT Comercio(M)'!K321","v":3297.2129025884205},{"$f":"'[1]EXT Comercio(M)'!L321","v":4212.8503275884286},null,null,{"$f":"'[1]EXT Comercio(M)'!AG321","v":1275.7},{"$f":"'[1]EXT Comercio(M)'!AH321","v":804.53999999999905},{"$f":"'[1]EXT Comercio(M)'!AI321","v":1389.4},{"$f":"'[1]EXT Comercio(M)'!AJ321","v":777.29238819550039},{"$f":"'[1]EXT Comercio(M)'!AK321","v":605.26078778999999},{"$f":"'[1]EXT Comercio(M)'!AL321","v":1418.6},{"$f":"'[1]EXT Comercio(M)'!AM321","v":1674.2266529999999},{"$f":"'[1]EXT Comercio(M)'!AO321","v":6269.5571828655084},{"$f":"'[1]EXT Comercio(M)'!AP321","v":7943.7838358655135},null,null,{"$f":"'[1]EXT Comercio(M)'!$BS321","v":-2972.344280277066},{"$f":"'[1]EXT Comercio(M)'!$BT321","v":-3730.9335082770704}]
[null,2016,"Enero",{"$f":"'[1]REAL IPC(M)'!AD322","v":-0.17270016448184974},{"$f":"'[1]REAL IPC(M)'!AE322","v":1.8216947281258662},{"$f":"'[1]REAL IPC(M)'!AF322","v":4.37776266575995},{"$f":"'[1]REAL IPC(M)'!AG322","v":3.0835424883470863},{"$f":"'[1]REAL IPC(M)'!AH322","v":3.191793097632492},{"$f":"'[1]REAL IPC(M)'!AI322","v":2.5269227507844021},{"$f":"'[1]REAL IPC(M)'!AJ322","v":0.29325513196480663},null,null,{"$f":"'[1]REAL IMAE(M)'!AG322","v":5.1505512318171638},{"$f":"'[1]REAL IMAE(M)'!AH322","v":0.97903117032037712},{"$f":"'[1]REAL IMAE(M)'!AI322","v":2.36557962561039},{"$f":"'[1]REAL IMAE(M)'!AJ322","v":3.9323813973071982},{"$f":"'[1]REAL IMAE(M)'!AK322","v":4.3216240880351746},{"$f":"'[1]REAL IMAE(M)'!AL322","v":5.8793737220641242},{"$f":"'[1]REAL IMAE(M)'!AM322","v":4.34600773707872},null,null,{"$f":"'[1]EXT ITCER(M)'!C322","v":72.748463686798473},{"$f":"'[1]EXT ITCER(M)'!D322","v":90.886408659716693},{"$f":"'[1]EXT ITCER(M)'!E322","v":56.980569570298883},{"$f":"'[1]EXT ITCER(M)'!F322","v":77.359647780920909},{"$f":"'[1]EXT ITCER(M)'!G322","v":98.956279229162831},{"$f":"'[1]EXT ITCER(M)'!H322","v":101.45552599513169},{"$f":"'[1]EXT ITCER(M)'!I322","v":88.109445894993854},null,null,{"$f":"'[1]EXT TC(M)'!J322","v":-0.26929508052452106},{"$f":"'[1]EXT TC(M)'!K322","v":0},{"$f":"'[1]EXT TC(M)'!L322","v":8.8641671288882382E-2},{"$f":"'[1]EXT TC(M)'!M322","v":3.9281957314064089},{"$f":"'[1]EXT TC(M)'!N322","v":5.2841192468076876},{"$f":"'[1]EXT TC(M)'!O322","v":2.3910144099607953},{"$f":"'[1]EXT TC(M)'!P322","v":0},null,null,{"$f":"'[1]EXT RIN(M)'!C322","v":7786.8334580000001},{"$f":"'[1]EXT RIN(M)'!D322","v":2788.3},{"$f":"'[1]EXT RIN(M)'!E322","v":7680.4},{"$f":"'[1]EXT RIN(M)'!F322","v":3737.2183544755526},{"$f":"'[1]EXT RIN(M)'!G322","v":2351.8000000000002},{"$f":"'[1]EXT RIN(M)'!H322","v":5637.939475887707},{"$f":"'[1]EXT RIN(M)'!I322","v":3806.0830365599995},null,null,{"$f":"'[1]EXT RIN(M)'!P322","v":67.663062410310687},{"$f":"'[1]EXT RIN(M)'!Q322","v":97.058348486915918},{"$f":"'[1]EXT RIN(M)'!R322","v":97.294785672873616},{"$f":"'[1]EXT RIN(M)'!S322","v":88.262895877801526},{"$f":"'[1]EXT RIN(M)'!T322","v":118.80350245759277},{"$f":"'[1]EXT RIN(M)'!U322","v":83.359723661614098},{"$f":"'[1]EXT RIN(M)'!V322","v":242.69706475062924},null,null,{"$f":"+'[1]MONE(M)CAPARD'!AE322","v":6.1332923704938453},{"$f":"'[1]MONE(M)CAPARD'!AF322","v":2.4830712930333387},{"$f":"'[1]MONE(M)CAPARD'!AG322","v":1.0751689877025774},{"$f":"'[1]MONE(M)CAPARD'!AH322","v":5.9043930434782519},{"$f":"'[1]MONE(M)CAPARD'!AI322","v":5.996483055606471},{"$f":"'[1]MONE(M)CAPARD'!AJ322","v":4.6164237862872808},{"$f":"'[1]MONE(M)CAPARD'!AK322","v":1.7017543859649149},null,null,{"$f":"'[1]MONE(M)CAPARD'!AL322","v":2.8491396400000002},{"$f":"'[1]MONE(M)CAPARD'!AM322","v":4.3499999999999996},{"$f":"'[1]MONE(M)CAPARD'!AN322","v":2.95},{"$f":"'[1]MONE(M)CAPARD'!AO322","v":3.94},{"$f":"'[1]MONE(M)CAPARD'!AP322","v":3.25},{"$f":"'[1]MONE(M)CAPARD'!AQ322","v":1.65},{"$f":"'[1]MONE(M)CAPARD'!AR322","v":2},null,null,{"$f":"'[1]MONE(M)CAPARD'!J322","v":15.830038667297815},{"$f":"'[1]MONE(M)CAPARD'!K322","v":3.9464136622390855},{"$f":"'[1]MONE(M)CAPARD'!L322","v":8.3372522192360883},{"$f":"'[1]MONE(M)CAPARD'!M322","v":16.420135652173908},{"$f":"'[1]MONE(M)CAPARD'!N322","v":15.995188743785734},{"$f":"'[1]MONE(M)CAPARD'!O322","v":12.448512943511659},{"$f":"'[1]MONE(M)CAPARD'!P322","v":5.7598538011695934},null,null,{"$f":"'[1]MONE(M)CAPARD'!Q322","v":9.68},{"$f":"'[1]MONE(M)CAPARD'!R322","v":5.84},{"$f":"'[1]MONE(M)CAPARD'!S322","v":5.94},{"$f":"'[1]MONE(M)CAPARD'!T322","v":8.3800000000000008},{"$f":"'[1]MONE(M)CAPARD'!U322","v":8.8699999999999992},{"$f":"'[1]MONE(M)CAPARD'!V322","v":6.81},{"$f":"'[1]MONE(M)CAPARD'!W322","v":6.07},null,null,{"$f":"'[1]MONE(M)CAPARD'!AS322","v":1.75},{"$f":"'[1]MONE(M)CAPARD'!AT322","v":"n.a."},{"$f":"'[1]MONE(M)CAPARD'!AU322","v":3},{"$f":"'[1]MONE(M)CAPARD'!AV322","v":6.25},{"$f":"'[1]MONE(M)CAPARD'!AW322","v":"n.a."},{"$f":"'[1]MONE(M)CAPARD'!AX322","v":5},{"$f":"'[1]MONE(M)CAPARD'!AY322","v":"n.a."},null,null,{"$f":"+'Datos_Regional (M)'!CF315","v":11.913374343706051},{"$f":"+'Datos_Regional (M)'!CG315","v":4.8618772043049541},{"$f":"+'Datos_Regional (M)'!CH315","v":11.348238137245549},{"$f":"+'Datos_Regional (M)'!CI315","v":9.8897684470909084},{"$f":"+'Datos_Regional (M)'!CJ315","v":22.583773193591085},{"$f":"+'Datos_Regional (M)'!CK315","v":17.883311252565726},{"$f":"+'Datos_Regional (M)'!CL315","v":11.300782488327087},null,null,804.22258594082962,457.83333333333326,885.77500000000009,329.39525245620536,407.86626566129968,781.1,988.52802933333339,3663.1044490766672,4651.6324784100007,null,null,1291.0012362850009,851.68833333333339,1463.05,778.2604887125309,627.83498714583345,1398.3083333333334,1816.6452306666667,6410.0403793833657,8226.6856100500318,null,null,-2746.9359303066972,-3575.0531316400306,null,null,{"$f":"'[1]EXT Comercio(M)'!C322","v":737.69899359999806},{"$f":"'[1]EXT Comercio(M)'!D322","v":410.62},{"$f":"'[1]EXT Comercio(M)'!E322","v":833.7},{"$f":"'[1]EXT Comercio(M)'!F322","v":324.28769739330204},{"$f":"'[1]EXT Comercio(M)'!G322","v":371.03338498200003},{"$f":"'[1]EXT Comercio(M)'!H322","v":623.09999999999991},{"$f":"'[1]EXT Comercio(M)'!I322","v":678.85440300000005},{"$f":"'[1]EXT Comercio(M)'!K322","v":3300.4400759752998},{"$f":"'[1]EXT Comercio(M)'!L322","v":3979.2944789753001},null,null,{"$f":"'[1]EXT Comercio(M)'!AG322","v":1215.3072019500044},{"$f":"'[1]EXT Comercio(M)'!AH322","v":784.10000000000014},{"$f":"'[1]EXT Comercio(M)'!AI322","v":1274.5999999999999},{"$f":"'[1]EXT Comercio(M)'!AJ322","v":647.26948709539215},{"$f":"'[1]EXT Comercio(M)'!AK322","v":548.60521315999995},{"$f":"'[1]EXT Comercio(M)'!AL322","v":1131.3},{"$f":"'[1]EXT Comercio(M)'!AM322","v":1400.7206740000001},{"$f":"'[1]EXT Comercio(M)'!AO322","v":5601.1819022053969},{"$f":"'[1]EXT Comercio(M)'!AP322","v":7001.9025762053971},null,null,{"$f":"'[1]EXT Comercio(M)'!$BS322","v":-2300.7418262300962},{"$f":"'[1]EXT Comercio(M)'!$BT322","v":-3022.6080972300961}]
[null,null,"Febrero",{"$f":"'[1]REAL IPC(M)'!AD323","v":-3.233718437322243E-2},{"$f":"'[1]REAL IPC(M)'!AE323","v":1.6672807663964648},{"$f":"'[1]REAL IPC(M)'!AF323","v":4.2708245063977559},{"$f":"'[1]REAL IPC(M)'!AG323","v":2.921268257926608},{"$f":"'[1]REAL IPC(M)'!AH323","v":3.4037852986557207},{"$f":"'[1]REAL IPC(M)'!AI323","v":1.7432512482018083},{"$f":"'[1]REAL IPC(M)'!AJ323","v":1.1822660098522195},null,null,{"$f":"'[1]REAL IMAE(M)'!AG323","v":5.0327099275038698},{"$f":"'[1]REAL IMAE(M)'!AH323","v":0.47818393184634383},{"$f":"'[1]REAL IMAE(M)'!AI323","v":2.2553524157190386},{"$f":"'[1]REAL IMAE(M)'!AJ323","v":3.6218160705332534},{"$f":"'[1]REAL IMAE(M)'!AK323","v":4.436744244754169},{"$f":"'[1]REAL IMAE(M)'!AL323","v":6.1936857707438762},{"$f":"'[1]REAL IMAE(M)'!AM323","v":4.3358448444258428},null,null,{"$f":"'[1]EXT ITCER(M)'!C323","v":72.713511467545359},{"$f":"'[1]EXT ITCER(M)'!D323","v":91.01227182776185},{"$f":"'[1]EXT ITCER(M)'!E323","v":56.895487372176277},{"$f":"'[1]EXT ITCER(M)'!F323","v":77.33667986895567},{"$f":"'[1]EXT ITCER(M)'!G323","v":98.368736379598317},{"$f":"'[1]EXT ITCER(M)'!H323","v":102.20052831317329},{"$f":"'[1]EXT ITCER(M)'!I323","v":87.906609981915381},null,null,{"$f":"'[1]EXT TC(M)'!J323","v":-9.2530045935107913E-2},{"$f":"'[1]EXT TC(M)'!K323","v":0},{"$f":"'[1]EXT TC(M)'!L323","v":0.26140740488257735},{"$f":"'[1]EXT TC(M)'!M323","v":3.7291043545787996},{"$f":"'[1]EXT TC(M)'!N323","v":5.4913315783649903},{"$f":"'[1]EXT TC(M)'!O323","v":2.0418424628146421},{"$f":"'[1]EXT TC(M)'!P323","v":0},null,null,{"$f":"'[1]EXT RIN(M)'!C323","v":7784.1073550000001},{"$f":"'[1]EXT RIN(M)'!D323","v":2740.1},{"$f":"'[1]EXT RIN(M)'!E323","v":7636},{"$f":"'[1]EXT RIN(M)'!F323","v":3775.0887417362956},{"$f":"'[1]EXT RIN(M)'!G323","v":2315.13},{"$f":"'[1]EXT RIN(M)'!H323","v":5065.1244855519062},{"$f":"'[1]EXT RIN(M)'!I323","v":3578.4801332400002},null,null,{"$f":"'[1]EXT RIN(M)'!P323","v":66.481469159834887},{"$f":"'[1]EXT RIN(M)'!Q323","v":97.177452674711773},{"$f":"'[1]EXT RIN(M)'!R323","v":96.438745441925988},{"$f":"'[1]EXT RIN(M)'!S323","v":87.982659207650954},{"$f":"'[1]EXT RIN(M)'!T323","v":114.08762107074031},{"$f":"'[1]EXT RIN(M)'!U323","v":78.594292287887285},{"$f":"'[1]EXT RIN(M)'!V323","v":226.39144267049446},null,null,{"$f":"+'[1]MONE(M)CAPARD'!AE323","v":5.7341914604380984},{"$f":"'[1]MONE(M)CAPARD'!AF323","v":2.6092162725378256},{"$f":"'[1]MONE(M)CAPARD'!AG323","v":1.1788297440065083},{"$f":"'[1]MONE(M)CAPARD'!AH323","v":5.7993181031498846},{"$f":"'[1]MONE(M)CAPARD'!AI323","v":6.5178600404706755},{"$f":"'[1]MONE(M)CAPARD'!AJ323","v":5.3927397488147051},{"$f":"'[1]MONE(M)CAPARD'!AK323","v":0.87736124634858514},null,null,{"$f":"'[1]MONE(M)CAPARD'!AL323","v":2.9509443700000002},{"$f":"'[1]MONE(M)CAPARD'!AM323","v":4.32},{"$f":"'[1]MONE(M)CAPARD'!AN323","v":2.95},{"$f":"'[1]MONE(M)CAPARD'!AO323","v":3.91},{"$f":"'[1]MONE(M)CAPARD'!AP323","v":3.82},{"$f":"'[1]MONE(M)CAPARD'!AQ323","v":1.69},{"$f":"'[1]MONE(M)CAPARD'!AR323","v":2.0699999999999998},null,null,{"$f":"'[1]MONE(M)CAPARD'!J323","v":15.377309773386283},{"$f":"'[1]MONE(M)CAPARD'!K323","v":4.0452731720576223},{"$f":"'[1]MONE(M)CAPARD'!L323","v":8.438770418529062},{"$f":"'[1]MONE(M)CAPARD'!M323","v":16.35107303565248},{"$f":"'[1]MONE(M)CAPARD'!N323","v":13.965234605123817},{"$f":"'[1]MONE(M)CAPARD'!O323","v":13.835560176328631},{"$f":"'[1]MONE(M)CAPARD'!P323","v":4.8800389483933753},null,null,{"$f":"'[1]MONE(M)CAPARD'!Q323","v":9.67},{"$f":"'[1]MONE(M)CAPARD'!R323","v":5.78},{"$f":"'[1]MONE(M)CAPARD'!S323","v":5.94},{"$f":"'[1]MONE(M)CAPARD'!T323","v":8.35},{"$f":"'[1]MONE(M)CAPARD'!U323","v":7.82},{"$f":"'[1]MONE(M)CAPARD'!V323","v":6.01},{"$f":"'[1]MONE(M)CAPARD'!W323","v":6.12},null,null,{"$f":"'[1]MONE(M)CAPARD'!AS323","v":1.75},{"$f":"'[1]MONE(M)CAPARD'!AT323","v":"n.a."},{"$f":"'[1]MONE(M)CAPARD'!AU323","v":3},{"$f":"'[1]MONE(M)CAPARD'!AV323","v":6.25},{"$f":"'[1]MONE(M)CAPARD'!AW323","v":"n.a."},{"$f":"'[1]MONE(M)CAPARD'!AX323","v":5},{"$f":"'[1]MONE(M)CAPARD'!AY323","v":"n.a."},null,null,{"$f":"+'Datos_Regional (M)'!CF316","v":11.990270053911578},{"$f":"+'Datos_Regional (M)'!CG316","v":4.446895710081078},{"$f":"+'Datos_Regional (M)'!CH316","v":11.160108428929227},{"$f":"+'Datos_Regional (M)'!CI316","v":10.304538167991995},{"$f":"+'Datos_Regional (M)'!CJ316","v":22.27745390254201},{"$f":"+'Datos_Regional (M)'!CK316","v":18.55973594840663},{"$f":"+'Datos_Regional (M)'!CL316","v":10.853095309305449},null,null,812.34701445916289,452.55666666666662,882.20833333333337,327.24494926270171,409.60368294879999,785.81666666666672,979.18988725000008,3666.6893250223306,4645.8792122723307,null,null,1290.7427763775004,847.51166666666677,1460.9833333333333,766.73939155898631,626.15290008416673,1402.6333333333332,1805.5514471666668,6394.6604019273209,8200.2118490939883,null,null,-2727.9710769049889,-3554.3326368216563,null,null,{"$f":"'[1]EXT Comercio(M)'!C323","v":874.09136018999402},{"$f":"'[1]EXT Comercio(M)'!D323","v":417.09000000000003},{"$f":"'[1]EXT Comercio(M)'!E323","v":842.30000000000007},{"$f":"'[1]EXT Comercio(M)'!F323","v":354.84069365367316},{"$f":"'[1]EXT Comercio(M)'!G323","v":409.45481580000001},{"$f":"'[1]EXT Comercio(M)'!H323","v":806.5},{"$f":"'[1]EXT Comercio(M)'!I323","v":728.80103399999996},{"$f":"'[1]EXT Comercio(M)'!K323","v":3704.2768696436679},{"$f":"'[1]EXT Comercio(M)'!L323","v":4433.077903643667},null,null,{"$f":"'[1]EXT Comercio(M)'!AG323","v":1190.3655151800001},{"$f":"'[1]EXT Comercio(M)'!AH323","v":756.8599999999999},{"$f":"'[1]EXT Comercio(M)'!AI323","v":1269},{"$f":"'[1]EXT Comercio(M)'!AJ323","v":662.1158400713648},{"$f":"'[1]EXT Comercio(M)'!AK323","v":585.47127835999993},{"$f":"'[1]EXT Comercio(M)'!AL323","v":1267.2999999999997},{"$f":"'[1]EXT Comercio(M)'!AM323","v":1466.794778},{"$f":"'[1]EXT Comercio(M)'!AO323","v":5731.1126336113648},{"$f":"'[1]EXT Comercio(M)'!AP323","v":7197.9074116113643},null,null,{"$f":"'[1]EXT Comercio(M)'!$BS323","v":-2026.8357639676979},{"$f":"'[1]EXT Comercio(M)'!$BT323","v":-2764.8295079676982}]
[null,null,"Marzo",{"$f":"'[1]REAL IPC(M)'!AD324","v":-1.0860925989431325},{"$f":"'[1]REAL IPC(M)'!AE324","v":1.1182401466544445},{"$f":"'[1]REAL IPC(M)'!AF324","v":4.2617960426179531},{"$f":"'[1]REAL IPC(M)'!AG324","v":2.4769992922859161},{"$f":"'[1]REAL IPC(M)'!AH324","v":3.6579044731442725},{"$f":"'[1]REAL IPC(M)'!AI324","v":1.5886428933581953},{"$f":"'[1]REAL IPC(M)'!AJ324","v":0.58593749999999445},null,null,{"$f":"'[1]REAL IMAE(M)'!AG324","v":4.5693406431094354},{"$f":"'[1]REAL IMAE(M)'!AH324","v":1.3890707680411873},{"$f":"'[1]REAL IMAE(M)'!AI324","v":2.5573375431661898},{"$f":"'[1]REAL IMAE(M)'!AJ324","v":3.3136201180422722},{"$f":"'[1]REAL IMAE(M)'!AK324","v":4.8457454422010047},{"$f":"'[1]REAL IMAE(M)'!AL324","v":6.5686675749372121},{"$f":"'[1]REAL IMAE(M)'!AM324","v":4.1643415178571415},null,null,{"$f":"'[1]EXT ITCER(M)'!C324","v":73.431021679788415},{"$f":"'[1]EXT ITCER(M)'!D324","v":91.338955279756817},{"$f":"'[1]EXT ITCER(M)'!E324","v":57.349789339492453},{"$f":"'[1]EXT ITCER(M)'!F324","v":77.523832245478047},{"$f":"'[1]EXT ITCER(M)'!G324","v":98.211276346958911},{"$f":"'[1]EXT ITCER(M)'!H324","v":102.64776517963899},{"$f":"'[1]EXT ITCER(M)'!I324","v":87.925337993294193},null,null,{"$f":"'[1]EXT TC(M)'!J324","v":0.32307450469961324},{"$f":"'[1]EXT TC(M)'!K324","v":0},{"$f":"'[1]EXT TC(M)'!L324","v":1.1622438255386238},{"$f":"'[1]EXT TC(M)'!M324","v":3.6191416831946612},{"$f":"'[1]EXT TC(M)'!N324","v":5.3412644991944234},{"$f":"'[1]EXT TC(M)'!O324","v":2.3700757779330495},{"$f":"'[1]EXT TC(M)'!P324","v":0},null,null,{"$f":"'[1]EXT RIN(M)'!C324","v":7811.9661759999999},{"$f":"'[1]EXT RIN(M)'!D324","v":2807.3},{"$f":"'[1]EXT RIN(M)'!E324","v":7586.1},{"$f":"'[1]EXT RIN(M)'!F324","v":3825.1130705644573},{"$f":"'[1]EXT RIN(M)'!G324","v":2394.5},{"$f":"'[1]EXT RIN(M)'!H324","v":5134.0711943492624},{"$f":"'[1]EXT RIN(M)'!I324","v":4699.0868548400003},null,null,{"$f":"'[1]EXT RIN(M)'!P324","v":67.362700721068052},{"$f":"'[1]EXT RIN(M)'!Q324","v":98.460642749167889},{"$f":"'[1]EXT RIN(M)'!R324","v":96.106674588550689},{"$f":"'[1]EXT RIN(M)'!S324","v":85.715528448975675},{"$f":"'[1]EXT RIN(M)'!T324","v":119.20628844150671},{"$f":"'[1]EXT RIN(M)'!U324","v":76.601861936329215},{"$f":"'[1]EXT RIN(M)'!V324","v":293.82672584836001},null,null,{"$f":"+'[1]MONE(M)CAPARD'!AE324","v":6.8606051234314345},{"$f":"'[1]MONE(M)CAPARD'!AF324","v":3.2949147933285001},{"$f":"'[1]MONE(M)CAPARD'!AG324","v":1.1780000000000073},{"$f":"'[1]MONE(M)CAPARD'!AH324","v":6.1994406077348083},{"$f":"'[1]MONE(M)CAPARD'!AI324","v":5.9531377998429313},{"$f":"'[1]MONE(M)CAPARD'!AJ324","v":5.6909482615204672},{"$f":"'[1]MONE(M)CAPARD'!AK324","v":1.5052427184466075},null,null,{"$f":"'[1]MONE(M)CAPARD'!AL324","v":3.3385818999999999},{"$f":"'[1]MONE(M)CAPARD'!AM324","v":4.45},{"$f":"'[1]MONE(M)CAPARD'!AN324","v":2.93},{"$f":"'[1]MONE(M)CAPARD'!AO324","v":3.85},{"$f":"'[1]MONE(M)CAPARD'!AP324","v":3.35},{"$f":"'[1]MONE(M)CAPARD'!AQ324","v":1.87},{"$f":"'[1]MONE(M)CAPARD'!AR324","v":2.1},null,null,{"$f":"'[1]MONE(M)CAPARD'!J324","v":16.717661887418725},{"$f":"'[1]MONE(M)CAPARD'!K324","v":4.6893219724438016},{"$f":"'[1]MONE(M)CAPARD'!L324","v":8.4865255474452628},{"$f":"'[1]MONE(M)CAPARD'!M324","v":16.757907458563533},{"$f":"'[1]MONE(M)CAPARD'!N324","v":11.816840131562628},{"$f":"'[1]MONE(M)CAPARD'!O324","v":13.664280485775993},{"$f":"'[1]MONE(M)CAPARD'!P324","v":5.2731650485436941},null,null,{"$f":"'[1]MONE(M)CAPARD'!Q324","v":9.82},{"$f":"'[1]MONE(M)CAPARD'!R324","v":5.86},{"$f":"'[1]MONE(M)CAPARD'!S324","v":5.97},{"$f":"'[1]MONE(M)CAPARD'!T324","v":8.33},{"$f":"'[1]MONE(M)CAPARD'!U324","v":7.95},{"$f":"'[1]MONE(M)CAPARD'!V324","v":5.67},{"$f":"'[1]MONE(M)CAPARD'!W324","v":5.89},null,null,{"$f":"'[1]MONE(M)CAPARD'!AS324","v":1.75},{"$f":"'[1]MONE(M)CAPARD'!AT324","v":"n.a."},{"$f":"'[1]MONE(M)CAPARD'!AU324","v":3},{"$f":"'[1]MONE(M)CAPARD'!AV324","v":5.75},{"$f":"'[1]MONE(M)CAPARD'!AW324","v":"n.a."},{"$f":"'[1]MONE(M)CAPARD'!AX324","v":5},{"$f":"'[1]MONE(M)CAPARD'!AY324","v":"n.a."},null,null,{"$f":"+'Datos_Regional (M)'!CF317","v":12.295403770223491},{"$f":"+'Datos_Regional (M)'!CG317","v":4.5906504035892581},{"$f":"+'Datos_Regional (M)'!CH317","v":10.444046086403347},{"$f":"+'Datos_Regional (M)'!CI317","v":9.5173379638472824},{"$f":"+'Datos_Regional (M)'!CJ317","v":22.413415233720578},{"$f":"+'Datos_Regional (M)'!CK317","v":18.608193753472801},{"$f":"+'Datos_Regional (M)'!CL317","v":10.62798109255656},null,null,811.47882009332989,447.73916666666656,876.68333333333328,319.90104044782225,404.81808349171666,785.86666666666667,963.26785291666658,3643.3991223845346,4606.6669753012011,null,null,1287.769098766667,840.38333333333321,1448.9916666666666,753.60322797995298,627.41188901499993,1403.5083333333332,1788.4069420833337,6361.5645496682873,8149.9714917516212,null,null,-2718.1654272837513,-3543.3045164504179,null,null,{"$f":"'[1]EXT Comercio(M)'!C324","v":874.30582409999647},{"$f":"'[1]EXT Comercio(M)'!D324","v":471.41999999999985},{"$f":"'[1]EXT Comercio(M)'!E324","v":938.69999999999993},{"$f":"'[1]EXT Comercio(M)'!F324","v":353.66246628941906},{"$f":"'[1]EXT Comercio(M)'!G324","v":413.45539089499999},{"$f":"'[1]EXT Comercio(M)'!H324","v":824.8},{"$f":"'[1]EXT Comercio(M)'!I324","v":935.08588100000009},{"$f":"'[1]EXT Comercio(M)'!K324","v":3876.3436812844157},{"$f":"'[1]EXT Comercio(M)'!L324","v":4811.4295622844165},null,null,{"$f":"'[1]EXT Comercio(M)'!AG324","v":1257.6929084999997},{"$f":"'[1]EXT Comercio(M)'!AH324","v":784.44999999999982},{"$f":"'[1]EXT Comercio(M)'!AI324","v":1388.2},{"$f":"'[1]EXT Comercio(M)'!AJ324","v":719.77609610429965},{"$f":"'[1]EXT Comercio(M)'!AK324","v":637.28454094000017},{"$f":"'[1]EXT Comercio(M)'!AL324","v":1471.8000000000002},{"$f":"'[1]EXT Comercio(M)'!AM324","v":1795.884086},{"$f":"'[1]EXT Comercio(M)'!AO324","v":6259.2035455442983},{"$f":"'[1]EXT Comercio(M)'!AP324","v":8055.0876315442965},null,null,{"$f":"'[1]EXT Comercio(M)'!$BS324","v":-2382.8598642598827},{"$f":"'[1]EXT Comercio(M)'!$BT324","v":-3243.6580692598818}]
[null,null,"Abril",{"$f":"'[1]REAL IPC(M)'!AD325","v":-0.91805692862924793},{"$f":"'[1]REAL IPC(M)'!AE325","v":0.86151590138392242},{"$f":"'[1]REAL IPC(M)'!AF325","v":4.0873082757458361},{"$f":"'[1]REAL IPC(M)'!AG325","v":2.4355806565478209},{"$f":"'[1]REAL IPC(M)'!AH325","v":3.5963791107405827},{"$f":"'[1]REAL IPC(M)'!AI325","v":1.7536428329380471},{"$f":"'[1]REAL IPC(M)'!AJ325","v":0.58309037900874083},null,null,{"$f":"'[1]REAL IMAE(M)'!AG325","v":4.025826619591764},{"$f":"'[1]REAL IMAE(M)'!AH325","v":2.2017150337093812},{"$f":"'[1]REAL IMAE(M)'!AI325","v":2.9020456102886594},{"$f":"'[1]REAL IMAE(M)'!AJ325","v":3.0435489368319755},{"$f":"'[1]REAL IMAE(M)'!AK325","v":5.2861336179595382},{"$f":"'[1]REAL IMAE(M)'!AL325","v":6.9033276416046823},{"$f":"'[1]REAL IMAE(M)'!AM325","v":4.6221850962375042},null,null,{"$f":"'[1]EXT ITCER(M)'!C325","v":73.743324544318796},{"$f":"'[1]EXT ITCER(M)'!D325","v":91.913794587207676},{"$f":"'[1]EXT ITCER(M)'!E325","v":57.578542886314963},{"$f":"'[1]EXT ITCER(M)'!F325","v":77.536854339710501},{"$f":"'[1]EXT ITCER(M)'!G325","v":98.566311984163335},{"$f":"'[1]EXT ITCER(M)'!H325","v":103.2549102090323},{"$f":"'[1]EXT ITCER(M)'!I325","v":87.835761571737208},null,null,{"$f":"'[1]EXT TC(M)'!J325","v":0.69141677721473671},{"$f":"'[1]EXT TC(M)'!K325","v":0},{"$f":"'[1]EXT TC(M)'!L325","v":0.3072354401216032},{"$f":"'[1]EXT TC(M)'!M325","v":2.9623080808911944},{"$f":"'[1]EXT TC(M)'!N325","v":5.129999724725633},{"$f":"'[1]EXT TC(M)'!O325","v":2.397955987506831},{"$f":"'[1]EXT TC(M)'!P325","v":0},null,null,{"$f":"'[1]EXT RIN(M)'!C325","v":7898.7532970000002},{"$f":"'[1]EXT RIN(M)'!D325","v":2804.3},{"$f":"'[1]EXT RIN(M)'!E325","v":7675.3},{"$f":"'[1]EXT RIN(M)'!F325","v":3899.5999396380557},{"$f":"'[1]EXT RIN(M)'!G325","v":2435.5},{"$f":"'[1]EXT RIN(M)'!H325","v":5015.4147240342054},{"$f":"'[1]EXT RIN(M)'!I325","v":4491.66916855},null,null,{"$f":"'[1]EXT RIN(M)'!P325","v":67.96310848389308},{"$f":"'[1]EXT RIN(M)'!Q325","v":97.927641170606009},{"$f":"'[1]EXT RIN(M)'!R325","v":97.182208374588001},{"$f":"'[1]EXT RIN(M)'!S325","v":86.899856491430128},{"$f":"'[1]EXT RIN(M)'!T325","v":120.66240092444293},{"$f":"'[1]EXT RIN(M)'!U325","v":76.537075795545505},{"$f":"'[1]EXT RIN(M)'!V325","v":320.48777060381815},null,null,{"$f":"+'[1]MONE(M)CAPARD'!AE325","v":6.5279875708232469},{"$f":"'[1]MONE(M)CAPARD'!AF325","v":3.567747387551115},{"$f":"'[1]MONE(M)CAPARD'!AG325","v":1.3380034005343626},{"$f":"'[1]MONE(M)CAPARD'!AH325","v":6.515723638869753},{"$f":"'[1]MONE(M)CAPARD'!AI325","v":4.6770125045920459},{"$f":"'[1]MONE(M)CAPARD'!AJ325","v":5.2836999417200277},{"$f":"'[1]MONE(M)CAPARD'!AK325","v":1.5280000000000058},null,null,{"$f":"'[1]MONE(M)CAPARD'!AL325","v":3.4562638400000001},{"$f":"'[1]MONE(M)CAPARD'!AM325","v":4.46},{"$f":"'[1]MONE(M)CAPARD'!AN325","v":2.92},{"$f":"'[1]MONE(M)CAPARD'!AO325","v":3.8},{"$f":"'[1]MONE(M)CAPARD'!AP325","v":3.27},{"$f":"'[1]MONE(M)CAPARD'!AQ325","v":2.56},{"$f":"'[1]MONE(M)CAPARD'!AR325","v":2.12},null,null,{"$f":"'[1]MONE(M)CAPARD'!J325","v":15.954528583722245},{"$f":"'[1]MONE(M)CAPARD'!K325","v":5.0053621081326689},{"$f":"'[1]MONE(M)CAPARD'!L325","v":8.6876026232693651},{"$f":"'[1]MONE(M)CAPARD'!M325","v":16.795354927636122},{"$f":"'[1]MONE(M)CAPARD'!N325","v":13.576841876044025},{"$f":"'[1]MONE(M)CAPARD'!O325","v":14.000832570143968},{"$f":"'[1]MONE(M)CAPARD'!P325","v":5.2562608695652226},null,null,{"$f":"'[1]MONE(M)CAPARD'!Q325","v":9.81},{"$f":"'[1]MONE(M)CAPARD'!R325","v":5.91},{"$f":"'[1]MONE(M)CAPARD'!S325","v":5.97},{"$f":"'[1]MONE(M)CAPARD'!T325","v":8.33},{"$f":"'[1]MONE(M)CAPARD'!U325","v":8.01},{"$f":"'[1]MONE(M)CAPARD'!V325","v":5.43},{"$f":"'[1]MONE(M)CAPARD'!W325","v":5.87},null,null,{"$f":"'[1]MONE(M)CAPARD'!AS325","v":1.75},{"$f":"'[1]MONE(M)CAPARD'!AT325","v":"n.a."},{"$f":"'[1]MONE(M)CAPARD'!AU325","v":3},{"$f":"'[1]MONE(M)CAPARD'!AV325","v":5.75},{"$f":"'[1]MONE(M)CAPARD'!AW325","v":"n.a."},{"$f":"'[1]MONE(M)CAPARD'!AX325","v":5},{"$f":"'[1]MONE(M)CAPARD'!AY325","v":"n.a."},null,null,{"$f":"+'Datos_Regional (M)'!CF318","v":12.24495045076781},{"$f":"+'Datos_Regional (M)'!CG318","v":5.0340058541406885},{"$f":"+'Datos_Regional (M)'!CH318","v":9.6205024588773114},{"$f":"+'Datos_Regional (M)'!CI318","v":9.1332581893116114},{"$f":"+'Datos_Regional (M)'!CJ318","v":22.622316882683123},{"$f":"+'Datos_Regional (M)'!CK318","v":19.223334708062122},{"$f":"+'Datos_Regional (M)'!CL318","v":10.292258349446183},null,null,820.84047646666329,454.87916666666661,876.65000000000009,318.73349332233403,409.19246733974995,785.37499999999989,944.7212459166667,3662.5826154804131,4607.3038613970803,null,null,1293.2233257750001,844.36583333333328,1450.0083333333332,748.68477013985091,634.04492074583334,1411.8083333333332,1782.3828809166671,6382.032517234019,8164.4153981506852,null,null,-2719.4499017536041,-3557.111536753604,null,null,{"$f":"'[1]EXT Comercio(M)'!C325","v":927.51181309999686},{"$f":"'[1]EXT Comercio(M)'!D325","v":513.73},{"$f":"'[1]EXT Comercio(M)'!E325","v":914.19999999999993},{"$f":"'[1]EXT Comercio(M)'!F325","v":386.95849935045851},{"$f":"'[1]EXT Comercio(M)'!G325","v":448.35619515200005},{"$f":"'[1]EXT Comercio(M)'!H325","v":833.3},{"$f":"'[1]EXT Comercio(M)'!I325","v":812.60046599999998},{"$f":"'[1]EXT Comercio(M)'!K325","v":4024.0565076024559},{"$f":"'[1]EXT Comercio(M)'!L325","v":4836.6569736024558},null,null,{"$f":"'[1]EXT Comercio(M)'!AG325","v":1373.5959063499995},{"$f":"'[1]EXT Comercio(M)'!AH325","v":867.68000000000029},{"$f":"'[1]EXT Comercio(M)'!AI325","v":1442.6999999999998},{"$f":"'[1]EXT Comercio(M)'!AJ325","v":734.35970071618988},{"$f":"'[1]EXT Comercio(M)'!AK325","v":632.42948193999996},{"$f":"'[1]EXT Comercio(M)'!AL325","v":1432.2},{"$f":"'[1]EXT Comercio(M)'!AM325","v":1674.991804},{"$f":"'[1]EXT Comercio(M)'!AO325","v":6482.9650890061894},{"$f":"'[1]EXT Comercio(M)'!AP325","v":8157.9568930061905},null,null,{"$f":"'[1]EXT Comercio(M)'!$BS325","v":-2458.9085814037353},{"$f":"'[1]EXT Comercio(M)'!$BT325","v":-3321.2999194037366}]
[null,null,"Mayo ",{"$f":"'[1]REAL IPC(M)'!AD326","v":-0.43272306743848038},{"$f":"'[1]REAL IPC(M)'!AE326","v":0.73172962590322621},{"$f":"'[1]REAL IPC(M)'!AF326","v":4.3566021867115161},{"$f":"'[1]REAL IPC(M)'!AG326","v":2.3550087873462173},{"$f":"'[1]REAL IPC(M)'!AH326","v":3.6513019423440927},{"$f":"'[1]REAL IPC(M)'!AI326","v":1.7148166920088324},{"$f":"'[1]REAL IPC(M)'!AJ326","v":0.2901353965183725},null,null,{"$f":"'[1]REAL IMAE(M)'!AG326","v":3.543527634870554},{"$f":"'[1]REAL IMAE(M)'!AH326","v":2.9454417487923421},{"$f":"'[1]REAL IMAE(M)'!AI326","v":2.9376887660267559},{"$f":"'[1]REAL IMAE(M)'!AJ326","v":2.8295427031425144},{"$f":"'[1]REAL IMAE(M)'!AK326","v":5.5127418638760517},{"$f":"'[1]REAL IMAE(M)'!AL326","v":7.0893656835893752},{"$f":"'[1]REAL IMAE(M)'!AM326","v":4.3430037087102802},null,null,{"$f":"'[1]EXT ITCER(M)'!C326","v":73.976244719580819},{"$f":"'[1]EXT ITCER(M)'!D326","v":92.064162275548668},{"$f":"'[1]EXT ITCER(M)'!E326","v":56.81701410006233},{"$f":"'[1]EXT ITCER(M)'!F326","v":77.51413781381234},{"$f":"'[1]EXT ITCER(M)'!G326","v":98.763984369428854},{"$f":"'[1]EXT ITCER(M)'!H326","v":103.3388217541671},{"$f":"'[1]EXT ITCER(M)'!I326","v":87.873609656216942},null,null,{"$f":"'[1]EXT TC(M)'!J326","v":0.82329468476595391},{"$f":"'[1]EXT TC(M)'!K326","v":0},{"$f":"'[1]EXT TC(M)'!L326","v":-0.44805720101250307},{"$f":"'[1]EXT TC(M)'!M326","v":3.0550479332694902},{"$f":"'[1]EXT TC(M)'!N326","v":5.183996254650963},{"$f":"'[1]EXT TC(M)'!O326","v":2.3480524122831556},{"$f":"'[1]EXT TC(M)'!P326","v":0},null,null,{"$f":"'[1]EXT RIN(M)'!C326","v":7760.4476640000003},{"$f":"'[1]EXT RIN(M)'!D326","v":2840.4},{"$f":"'[1]EXT RIN(M)'!E326","v":8549.2000000000007},{"$f":"'[1]EXT RIN(M)'!F326","v":3892.589118566304},{"$f":"'[1]EXT RIN(M)'!G326","v":2441.4},{"$f":"'[1]EXT RIN(M)'!H326","v":5011.0678018557619},{"$f":"'[1]EXT RIN(M)'!I326","v":5021.5927543999996},null,null,{"$f":"'[1]EXT RIN(M)'!P326","v":67.034211186976918},{"$f":"'[1]EXT RIN(M)'!Q326","v":103.53013560173339},{"$f":"'[1]EXT RIN(M)'!R326","v":105.28060620819579},{"$f":"'[1]EXT RIN(M)'!S326","v":91.92504833199861},{"$f":"'[1]EXT RIN(M)'!T326","v":126.31202685787271},{"$f":"'[1]EXT RIN(M)'!U326","v":75.380001902674564},{"$f":"'[1]EXT RIN(M)'!V326","v":350.54168404890009},null,null,{"$f":"+'[1]MONE(M)CAPARD'!AE326","v":5.8580722975773218},{"$f":"'[1]MONE(M)CAPARD'!AF326","v":3.7607518387360415},{"$f":"'[1]MONE(M)CAPARD'!AG326","v":1.0764990328820179},{"$f":"'[1]MONE(M)CAPARD'!AH326","v":6.1403846153846198},{"$f":"'[1]MONE(M)CAPARD'!AI326","v":5.1826750604538931},{"$f":"'[1]MONE(M)CAPARD'!AJ326","v":4.4193987210364103},{"$f":"'[1]MONE(M)CAPARD'!AK326","v":1.7647444551591156},null,null,{"$f":"'[1]MONE(M)CAPARD'!AL326","v":3.2240356700000001},{"$f":"'[1]MONE(M)CAPARD'!AM326","v":4.5199999999999996},{"$f":"'[1]MONE(M)CAPARD'!AN326","v":2.88},{"$f":"'[1]MONE(M)CAPARD'!AO326","v":3.79},{"$f":"'[1]MONE(M)CAPARD'!AP326","v":3.1},{"$f":"'[1]MONE(M)CAPARD'!AQ326","v":1.67},{"$f":"'[1]MONE(M)CAPARD'!AR326","v":2.06},null,null,{"$f":"'[1]MONE(M)CAPARD'!J326","v":14.776665105950059},{"$f":"'[1]MONE(M)CAPARD'!K326","v":5.4980395895759591},{"$f":"'[1]MONE(M)CAPARD'!L326","v":8.426297549967769},{"$f":"'[1]MONE(M)CAPARD'!M326","v":16.799364697802201},{"$f":"'[1]MONE(M)CAPARD'!N326","v":13.767773285359235},{"$f":"'[1]MONE(M)CAPARD'!O326","v":12.717108213603469},{"$f":"'[1]MONE(M)CAPARD'!P326","v":5.6634329797492802},null,null,{"$f":"'[1]MONE(M)CAPARD'!Q326","v":9.5500000000000007},{"$f":"'[1]MONE(M)CAPARD'!R326","v":6.27},{"$f":"'[1]MONE(M)CAPARD'!S326","v":5.98},{"$f":"'[1]MONE(M)CAPARD'!T326","v":8.06},{"$f":"'[1]MONE(M)CAPARD'!U326","v":8.17},{"$f":"'[1]MONE(M)CAPARD'!V326","v":5.0199999999999996},{"$f":"'[1]MONE(M)CAPARD'!W326","v":5.97},null,null,{"$f":"'[1]MONE(M)CAPARD'!AS326","v":1.75},{"$f":"'[1]MONE(M)CAPARD'!AT326","v":"n.a."},{"$f":"'[1]MONE(M)CAPARD'!AU326","v":3},{"$f":"'[1]MONE(M)CAPARD'!AV326","v":5.75},{"$f":"'[1]MONE(M)CAPARD'!AW326","v":"n.a."},{"$f":"'[1]MONE(M)CAPARD'!AX326","v":5},{"$f":"'[1]MONE(M)CAPARD'!AY326","v":"n.a."},null,null,{"$f":"+'Datos_Regional (M)'!CF319","v":12.235217423747692},{"$f":"+'Datos_Regional (M)'!CG319","v":5.3795007927064376},{"$f":"+'Datos_Regional (M)'!CH319","v":8.7988874531036423},{"$f":"+'Datos_Regional (M)'!CI319","v":9.6720181409224679},{"$f":"+'Datos_Regional (M)'!CJ319","v":23.334681245786214},{"$f":"+'Datos_Regional (M)'!CK319","v":16.232109884652601},{"$f":"+'Datos_Regional (M)'!CL319","v":10.423968063468436},null,null,828.9287615891634,454.21666666666653,869.9,317.986307390668,410.45528151358332,782.36666666666679,965.28606016666674,3660.7656955117473,4626.0517556784134,null,null,1302.7293300916656,839.83749999999998,1440,739.53827990695675,629.92387879916657,1411.8916666666667,1792.6231995833339,6363.8176560377897,8156.4408556211238,null,null,-2703.0519605260415,-3530.3890999427081,null,null,{"$f":"'[1]EXT Comercio(M)'!C326","v":981.17860507999853},{"$f":"'[1]EXT Comercio(M)'!D326","v":491.25000000000023},{"$f":"'[1]EXT Comercio(M)'!E326","v":916.8},{"$f":"'[1]EXT Comercio(M)'!F326","v":366.80269869288384},{"$f":"'[1]EXT Comercio(M)'!G326","v":425.09967343599999},{"$f":"'[1]EXT Comercio(M)'!H326","v":782.7},{"$f":"'[1]EXT Comercio(M)'!I326","v":1191.425851},{"$f":"'[1]EXT Comercio(M)'!K326","v":3963.8309772088833},{"$f":"'[1]EXT Comercio(M)'!L326","v":5155.2568282088832},null,null,{"$f":"'[1]EXT Comercio(M)'!AG326","v":1371.5158226799886},{"$f":"'[1]EXT Comercio(M)'!AH326","v":828.38000000000011},{"$f":"'[1]EXT Comercio(M)'!AI326","v":1424.1},{"$f":"'[1]EXT Comercio(M)'!AJ326","v":731.46612451271517},{"$f":"'[1]EXT Comercio(M)'!AK326","v":615.06930821000003},{"$f":"'[1]EXT Comercio(M)'!AL326","v":1462.1},{"$f":"'[1]EXT Comercio(M)'!AM326","v":1788.6915129999998},{"$f":"'[1]EXT Comercio(M)'!AO326","v":6432.6312554027063},{"$f":"'[1]EXT Comercio(M)'!AP326","v":8221.3227684027042},null,null,{"$f":"'[1]EXT Comercio(M)'!$BS326","v":-2468.8002781938212},{"$f":"'[1]EXT Comercio(M)'!$BT326","v":-3066.065940193821}]
[null,null,"Junio",{"$f":"'[1]REAL IPC(M)'!AD327","v":-0.87839426663984221},{"$f":"'[1]REAL IPC(M)'!AE327","v":0.91541559868180156},{"$f":"'[1]REAL IPC(M)'!AF327","v":4.4327132562426614},{"$f":"'[1]REAL IPC(M)'!AG327","v":2.4466969591052079},{"$f":"'[1]REAL IPC(M)'!AH327","v":3.5641154287860957},{"$f":"'[1]REAL IPC(M)'!AI327","v":1.9098098603399516},{"$f":"'[1]REAL IPC(M)'!AJ327","v":9.6618357487917222E-2},null,null,{"$f":"'[1]REAL IMAE(M)'!AG327","v":3.2445543060466071},{"$f":"'[1]REAL IMAE(M)'!AH327","v":3.8546147904841384},{"$f":"'[1]REAL IMAE(M)'!AI327","v":2.6479352872928947},{"$f":"'[1]REAL IMAE(M)'!AJ327","v":2.7614323714242532},{"$f":"'[1]REAL IMAE(M)'!AK327","v":5.3988587447004104},{"$f":"'[1]REAL IMAE(M)'!AL327","v":6.970104474191988},{"$f":"'[1]REAL IMAE(M)'!AM327","v":3.9769790123031195},null,null,{"$f":"'[1]EXT ITCER(M)'!C327","v":75.017800560118644},{"$f":"'[1]EXT ITCER(M)'!D327","v":92.227609715653855},{"$f":"'[1]EXT ITCER(M)'!E327","v":56.682636549578874},{"$f":"'[1]EXT ITCER(M)'!F327","v":77.682168595675137},{"$f":"'[1]EXT ITCER(M)'!G327","v":99.535327958223178},{"$f":"'[1]EXT ITCER(M)'!H327","v":103.13047949402601},{"$f":"'[1]EXT ITCER(M)'!I327","v":88.202598586827961},null,null,{"$f":"'[1]EXT TC(M)'!J327","v":1.4087370013568035},{"$f":"'[1]EXT TC(M)'!K327","v":0},{"$f":"'[1]EXT TC(M)'!L327","v":-0.10298404795440373},{"$f":"'[1]EXT TC(M)'!M327","v":3.7264107425517579},{"$f":"'[1]EXT TC(M)'!N327","v":5.0814316284438066},{"$f":"'[1]EXT TC(M)'!O327","v":2.3488929452877052},{"$f":"'[1]EXT TC(M)'!P327","v":0},null,null,{"$f":"'[1]EXT RIN(M)'!C327","v":7787.4259480000001},{"$f":"'[1]EXT RIN(M)'!D327","v":2970.08},{"$f":"'[1]EXT RIN(M)'!E327","v":8696.4},{"$f":"'[1]EXT RIN(M)'!F327","v":3955.6458092543835},{"$f":"'[1]EXT RIN(M)'!G327","v":2382.1999999999998},{"$f":"'[1]EXT RIN(M)'!H327","v":5301.0212852378345},{"$f":"'[1]EXT RIN(M)'!I327","v":4770.54989002},null,null,{"$f":"'[1]EXT RIN(M)'!P327","v":68.72626109259491},{"$f":"'[1]EXT RIN(M)'!Q327","v":99.720153168715584},{"$f":"'[1]EXT RIN(M)'!R327","v":106.79361906071185},{"$f":"'[1]EXT RIN(M)'!S327","v":90.58843803446517},{"$f":"'[1]EXT RIN(M)'!T327","v":126.022275832064},{"$f":"'[1]EXT RIN(M)'!U327","v":78.787287560026158},{"$f":"'[1]EXT RIN(M)'!V327","v":324.22250605679881},null,null,{"$f":"+'[1]MONE(M)CAPARD'!AE327","v":6.1827027733241033},{"$f":"'[1]MONE(M)CAPARD'!AF327","v":3.7007075471698121},{"$f":"'[1]MONE(M)CAPARD'!AG327","v":0.98368290138811509},{"$f":"'[1]MONE(M)CAPARD'!AH327","v":5.9477789150460589},{"$f":"'[1]MONE(M)CAPARD'!AI327","v":4.9757908061748601},{"$f":"'[1]MONE(M)CAPARD'!AJ327","v":4.7396714273920013},{"$f":"'[1]MONE(M)CAPARD'!AK327","v":2.0547349016576852},null,null,{"$f":"'[1]MONE(M)CAPARD'!AL327","v":3.0431958899999998},{"$f":"'[1]MONE(M)CAPARD'!AM327","v":4.6500000000000004},{"$f":"'[1]MONE(M)CAPARD'!AN327","v":2.84},{"$f":"'[1]MONE(M)CAPARD'!AO327","v":3.73},{"$f":"'[1]MONE(M)CAPARD'!AP327","v":3.03},{"$f":"'[1]MONE(M)CAPARD'!AQ327","v":2.2400000000000002},{"$f":"'[1]MONE(M)CAPARD'!AR327","v":2.1533385102583149},null,null,{"$f":"'[1]MONE(M)CAPARD'!J327","v":15.262458829950393},{"$f":"'[1]MONE(M)CAPARD'!K327","v":5.4051052249637159},{"$f":"'[1]MONE(M)CAPARD'!L327","v":8.3377003931637734},{"$f":"'[1]MONE(M)CAPARD'!M327","v":16.538652337086322},{"$f":"'[1]MONE(M)CAPARD'!N327","v":13.478566052219199},{"$f":"'[1]MONE(M)CAPARD'!O327","v":12.108932551803786},{"$f":"'[1]MONE(M)CAPARD'!P327","v":5.8876930501930573},null,null,{"$f":"'[1]MONE(M)CAPARD'!Q327","v":9.77},{"$f":"'[1]MONE(M)CAPARD'!R327","v":6.37},{"$f":"'[1]MONE(M)CAPARD'!S327","v":5.98},{"$f":"'[1]MONE(M)CAPARD'!T327","v":8.3800000000000008},{"$f":"'[1]MONE(M)CAPARD'!U327","v":8.17},{"$f":"'[1]MONE(M)CAPARD'!V327","v":5.18},{"$f":"'[1]MONE(M)CAPARD'!W327","v":5.99},null,null,{"$f":"'[1]MONE(M)CAPARD'!AS327","v":1.75},{"$f":"'[1]MONE(M)CAPARD'!AT327","v":"n.a."},{"$f":"'[1]MONE(M)CAPARD'!AU327","v":3},{"$f":"'[1]MONE(M)CAPARD'!AV327","v":5.5},{"$f":"'[1]MONE(M)CAPARD'!AW327","v":"n.a."},{"$f":"'[1]MONE(M)CAPARD'!AX327","v":5},{"$f":"'[1]MONE(M)CAPARD'!AY327","v":"n.a."},null,null,{"$f":"+'Datos_Regional (M)'!CF320","v":12.140712358865713},{"$f":"+'Datos_Regional (M)'!CG320","v":5.3225399345478763},{"$f":"+'Datos_Regional (M)'!CH320","v":8.7904226725698855},{"$f":"+'Datos_Regional (M)'!CI320","v":9.4736608567739466},{"$f":"+'Datos_Regional (M)'!CJ320","v":23.515469848430648},{"$f":"+'Datos_Regional (M)'!CK320","v":16.956286155232149},{"$f":"+'Datos_Regional (M)'!CL320","v":10.516036606610403},null,null,831.56442050583018,452.90916666666652,868.83333333333337,316.78251526769128,407.72974152608339,784.52500000000009,965.88300041666673,3659.2561889846038,4625.1391894012704,null,null,1314.6546131758307,837.22833333333335,1442.1083333333336,736.9084424111802,627.40814827749989,1410.05,1789.0043524166667,6368.2548711045129,8157.2592235211805,null,null,-2708.9986821199068,-3532.120034119906,null,null,{"$f":"'[1]EXT Comercio(M)'!C327","v":881.59974461999673},{"$f":"'[1]EXT Comercio(M)'!D327","v":462.55999999999995},{"$f":"'[1]EXT Comercio(M)'!E327","v":897.60000000000014},{"$f":"'[1]EXT Comercio(M)'!F327","v":360.41687565910883},{"$f":"'[1]EXT Comercio(M)'!G327","v":403.18033775999993},{"$f":"'[1]EXT Comercio(M)'!H327","v":873.59999999999991},{"$f":"'[1]EXT Comercio(M)'!I327","v":999.89609299999995},{"$f":"'[1]EXT Comercio(M)'!K327","v":3878.9569580391035},{"$f":"'[1]EXT Comercio(M)'!L327","v":4878.8530510391029},null,null,{"$f":"'[1]EXT Comercio(M)'!AG327","v":1393.5623600999884},{"$f":"'[1]EXT Comercio(M)'!AH327","v":864.78999999999905},{"$f":"'[1]EXT Comercio(M)'!AI327","v":1475.3},{"$f":"'[1]EXT Comercio(M)'!AJ327","v":759.27468631859995},{"$f":"'[1]EXT Comercio(M)'!AK327","v":628.92036371000006},{"$f":"'[1]EXT Comercio(M)'!AL327","v":1465.7},{"$f":"'[1]EXT Comercio(M)'!AM327","v":1820.5414970000002},{"$f":"'[1]EXT Comercio(M)'!AO327","v":6587.5474101285909},{"$f":"'[1]EXT Comercio(M)'!AP327","v":8408.0889071285928},null,null,{"$f":"'[1]EXT Comercio(M)'!$BS327","v":-2708.5904520894819},{"$f":"'[1]EXT Comercio(M)'!$BT327","v":-3529.2358560894791}]
[null,null,"Julio",{"$f":"'[1]REAL IPC(M)'!AD328","v":0.47552710755759564},{"$f":"'[1]REAL IPC(M)'!AE328","v":0.87944301942104075},{"$f":"'[1]REAL IPC(M)'!AF328","v":4.6185910796164995},{"$f":"'[1]REAL IPC(M)'!AG328","v":2.4033437826541193},{"$f":"'[1]REAL IPC(M)'!AH328","v":4.114878333974656},{"$f":"'[1]REAL IPC(M)'!AI328","v":1.8548048678137172},{"$f":"'[1]REAL IPC(M)'!AJ328","v":9.6525096525104756E-2},null,null,{"$f":"'[1]REAL IMAE(M)'!AG328","v":3.0842020068546216},{"$f":"'[1]REAL IMAE(M)'!AH328","v":3.8284973138265741},{"$f":"'[1]REAL IMAE(M)'!AI328","v":2.2905245943500403},{"$f":"'[1]REAL IMAE(M)'!AJ328","v":2.8870820379692579},{"$f":"'[1]REAL IMAE(M)'!AK328","v":4.9842708437913812},{"$f":"'[1]REAL IMAE(M)'!AL328","v":6.5600056657882888},{"$f":"'[1]REAL IMAE(M)'!AM328","v":4.440412201718658},null,null,{"$f":"'[1]EXT ITCER(M)'!C328","v":74.944026435030608},{"$f":"'[1]EXT ITCER(M)'!D328","v":92.281606275988025},{"$f":"'[1]EXT ITCER(M)'!E328","v":55.933297357128069},{"$f":"'[1]EXT ITCER(M)'!F328","v":77.73799489631044},{"$f":"'[1]EXT ITCER(M)'!G328","v":99.824195106204058},{"$f":"'[1]EXT ITCER(M)'!H328","v":103.0184422176135},{"$f":"'[1]EXT ITCER(M)'!I328","v":88.073158171405325},null,null,{"$f":"'[1]EXT TC(M)'!J328","v":2.5614020305851786},{"$f":"'[1]EXT TC(M)'!K328","v":0},{"$f":"'[1]EXT TC(M)'!L328","v":-0.68986029837605378},{"$f":"'[1]EXT TC(M)'!M328","v":4.198671081276486},{"$f":"'[1]EXT TC(M)'!N328","v":4.9925544479373727},{"$f":"'[1]EXT TC(M)'!O328","v":2.1974720726333996},{"$f":"'[1]EXT TC(M)'!P328","v":0},null,null,{"$f":"'[1]EXT RIN(M)'!C328","v":7960.5164569999997},{"$f":"'[1]EXT RIN(M)'!D328","v":3019.77},{"$f":"'[1]EXT RIN(M)'!E328","v":8861},{"$f":"'[1]EXT RIN(M)'!F328","v":3845.271290093568},{"$f":"'[1]EXT RIN(M)'!G328","v":2383.8000000000002},{"$f":"'[1]EXT RIN(M)'!H328","v":5333.600631131173},{"$f":"'[1]EXT RIN(M)'!I328","v":4216.3467571700003},null,null,{"$f":"'[1]EXT RIN(M)'!P328","v":69.735893469870035},{"$f":"'[1]EXT RIN(M)'!Q328","v":103.66572055909602},{"$f":"'[1]EXT RIN(M)'!R328","v":104.17503963750221},{"$f":"'[1]EXT RIN(M)'!S328","v":90.908139273731805},{"$f":"'[1]EXT RIN(M)'!T328","v":121.73599660270365},{"$f":"'[1]EXT RIN(M)'!U328","v":76.688338064451813},{"$f":"'[1]EXT RIN(M)'!V328","v":281.65423714249533},null,null,{"$f":"+'[1]MONE(M)CAPARD'!AE328","v":4.7021130701657574},{"$f":"'[1]MONE(M)CAPARD'!AF328","v":3.6782092262985753},{"$f":"'[1]MONE(M)CAPARD'!AG328","v":0.80426328791139434},{"$f":"'[1]MONE(M)CAPARD'!AH328","v":5.9340408163265401},{"$f":"'[1]MONE(M)CAPARD'!AI328","v":5.1086465759954915},{"$f":"'[1]MONE(M)CAPARD'!AJ328","v":5.4049439683585652},{"$f":"'[1]MONE(M)CAPARD'!AK328","v":1.971571841851486},null,null,{"$f":"'[1]MONE(M)CAPARD'!AL328","v":2.9494445200000001},{"$f":"'[1]MONE(M)CAPARD'!AM328","v":4.59},{"$f":"'[1]MONE(M)CAPARD'!AN328","v":2.87},{"$f":"'[1]MONE(M)CAPARD'!AO328","v":3.75},{"$f":"'[1]MONE(M)CAPARD'!AP328","v":3.57},{"$f":"'[1]MONE(M)CAPARD'!AQ328","v":1.85},{"$f":"'[1]MONE(M)CAPARD'!AR328","v":2.0699999999999998},null,null,{"$f":"'[1]MONE(M)CAPARD'!J328","v":13.729186887146776},{"$f":"'[1]MONE(M)CAPARD'!K328","v":5.2543479840174268},{"$f":"'[1]MONE(M)CAPARD'!L328","v":8.1165391664674527},{"$f":"'[1]MONE(M)CAPARD'!M328","v":16.431744897959195},{"$f":"'[1]MONE(M)CAPARD'!N328","v":12.046644162514236},{"$f":"'[1]MONE(M)CAPARD'!O328","v":12.522919413315714},{"$f":"'[1]MONE(M)CAPARD'!P328","v":5.8678109932497495},null,null,{"$f":"'[1]MONE(M)CAPARD'!Q328","v":9.89},{"$f":"'[1]MONE(M)CAPARD'!R328","v":6.18},{"$f":"'[1]MONE(M)CAPARD'!S328","v":5.99},{"$f":"'[1]MONE(M)CAPARD'!T328","v":8.43},{"$f":"'[1]MONE(M)CAPARD'!U328","v":8.35},{"$f":"'[1]MONE(M)CAPARD'!V328","v":6.03},{"$f":"'[1]MONE(M)CAPARD'!W328","v":5.97},null,null,{"$f":"'[1]MONE(M)CAPARD'!AS328","v":1.75},{"$f":"'[1]MONE(M)CAPARD'!AT328","v":"n.a."},{"$f":"'[1]MONE(M)CAPARD'!AU328","v":3},{"$f":"'[1]MONE(M)CAPARD'!AV328","v":5.5},{"$f":"'[1]MONE(M)CAPARD'!AW328","v":"n.a."},{"$f":"'[1]MONE(M)CAPARD'!AX328","v":5},{"$f":"'[1]MONE(M)CAPARD'!AY328","v":"n.a."},null,null,{"$f":"+'Datos_Regional (M)'!CF321","v":11.589794005684917},{"$f":"+'Datos_Regional (M)'!CG321","v":5.4724144106155004},{"$f":"+'Datos_Regional (M)'!CH321","v":8.1364561924818002},{"$f":"+'Datos_Regional (M)'!CI321","v":9.6974517119586157},{"$f":"+'Datos_Regional (M)'!CJ321","v":21.838007749425081},{"$f":"+'Datos_Regional (M)'!CK321","v":16.360435014070383},{"$f":"+'Datos_Regional (M)'!CL321","v":7.9867247620767801},null,null,833.22847053749717,448.74166666666662,858.7833333333333,315.34740590534778,404.80397135191669,781.77499999999998,954.17664424999987,3639.5918594797604,4593.7685037297606,null,null,1300.1308058499983,827.14583333333337,1414.675,728.94621576179941,627.21923227416653,1400.9916666666668,1766.7739977499998,6299.0057544592973,8065.7797522092987,null,null,-2659.4138949795365,-3472.0112484795368,null,null,{"$f":"'[1]EXT Comercio(M)'!C328","v":812.51283734999879},{"$f":"'[1]EXT Comercio(M)'!D328","v":491.13999999999987},{"$f":"'[1]EXT Comercio(M)'!E328","v":844.59999999999991},{"$f":"'[1]EXT Comercio(M)'!F328","v":292.04033207481513},{"$f":"'[1]EXT Comercio(M)'!G328","v":413.49842909000006},{"$f":"'[1]EXT Comercio(M)'!H328","v":850.10000000000014},{"$f":"'[1]EXT Comercio(M)'!I328","v":920.21147799999994},{"$f":"'[1]EXT Comercio(M)'!K328","v":3703.8915985148124},{"$f":"'[1]EXT Comercio(M)'!L328","v":4624.1030765148134},null,null,{"$f":"'[1]EXT Comercio(M)'!AG328","v":1264.032231850003},{"$f":"'[1]EXT Comercio(M)'!AH328","v":822.33000000000084},{"$f":"'[1]EXT Comercio(M)'!AI328","v":1311.4999999999998},{"$f":"'[1]EXT Comercio(M)'!AJ328","v":738.75551762508485},{"$f":"'[1]EXT Comercio(M)'!AK328","v":633.20630799000003},{"$f":"'[1]EXT Comercio(M)'!AL328","v":1410.7999999999997},{"$f":"'[1]EXT Comercio(M)'!AM328","v":1781.5968929999999},{"$f":"'[1]EXT Comercio(M)'!AO328","v":6180.6240574650801},{"$f":"'[1]EXT Comercio(M)'!AP328","v":7962.2209504650818},null,null,{"$f":"'[1]EXT Comercio(M)'!$BS328","v":-2476.7324589502732},{"$f":"'[1]EXT Comercio(M)'!$BT328","v":-3338.1178739502757}]
[null,null,"Agosto",{"$f":"'[1]REAL IPC(M)'!AD329","v":0.59586675348913609},{"$f":"'[1]REAL IPC(M)'!AE329","v":0.94651718434111476},{"$f":"'[1]REAL IPC(M)'!AF329","v":4.7404815462800949},{"$f":"'[1]REAL IPC(M)'!AG329","v":2.506963788300832},{"$f":"'[1]REAL IPC(M)'!AH329","v":3.7504713807529804},{"$f":"'[1]REAL IPC(M)'!AI329","v":1.4724336986530946},{"$f":"'[1]REAL IPC(M)'!AJ329","v":0.48449612403100772},null,null,{"$f":"'[1]REAL IMAE(M)'!AG329","v":3.2452504673433684},{"$f":"'[1]REAL IMAE(M)'!AH329","v":3.7654638487661902},{"$f":"'[1]REAL IMAE(M)'!AI329","v":2.1264572595015787},{"$f":"'[1]REAL IMAE(M)'!AJ329","v":3.1885995568564107},{"$f":"'[1]REAL IMAE(M)'!AK329","v":4.4880739871365751},{"$f":"'[1]REAL IMAE(M)'!AL329","v":6.1131865993047967},{"$f":"'[1]REAL IMAE(M)'!AM329","v":4.2273160114270185},null,null,{"$f":"'[1]EXT ITCER(M)'!C329","v":75.395321152623836},{"$f":"'[1]EXT ITCER(M)'!D329","v":92.67949356626211},{"$f":"'[1]EXT ITCER(M)'!E329","v":55.477991874278842},{"$f":"'[1]EXT ITCER(M)'!F329","v":77.944706971671735},{"$f":"'[1]EXT ITCER(M)'!G329","v":100.83685578678229},{"$f":"'[1]EXT ITCER(M)'!H329","v":103.3058379773319},{"$f":"'[1]EXT ITCER(M)'!I329","v":88.236024974242895},null,null,{"$f":"'[1]EXT TC(M)'!J329","v":3.0844440480212776},{"$f":"'[1]EXT TC(M)'!K329","v":0},{"$f":"'[1]EXT TC(M)'!L329","v":-1.5063255979707835},{"$f":"'[1]EXT TC(M)'!M329","v":4.1320584511637417},{"$f":"'[1]EXT TC(M)'!N329","v":5.0554276431424929},{"$f":"'[1]EXT TC(M)'!O329","v":2.0550014438989725},{"$f":"'[1]EXT TC(M)'!P329","v":0},null,null,{"$f":"'[1]EXT RIN(M)'!C329","v":8007.6259069999996},{"$f":"'[1]EXT RIN(M)'!D329","v":3050.86},{"$f":"'[1]EXT RIN(M)'!E329","v":8919.2999999999993},{"$f":"'[1]EXT RIN(M)'!F329","v":3776.6892372229431},{"$f":"'[1]EXT RIN(M)'!G329","v":2405.1},{"$f":"'[1]EXT RIN(M)'!H329","v":5131.3255729987877},{"$f":"'[1]EXT RIN(M)'!I329","v":4330.4001211100003},null,null,{"$f":"'[1]EXT RIN(M)'!P329","v":70.63051576081412},{"$f":"'[1]EXT RIN(M)'!Q329","v":104.74602643799788},{"$f":"'[1]EXT RIN(M)'!R329","v":106.09211314551894},{"$f":"'[1]EXT RIN(M)'!S329","v":88.89905841332299},{"$f":"'[1]EXT RIN(M)'!T329","v":123.47622793899752},{"$f":"'[1]EXT RIN(M)'!U329","v":74.481682733863437},{"$f":"'[1]EXT RIN(M)'!V329","v":288.39965592214151},null,null,{"$f":"+'[1]MONE(M)CAPARD'!AE329","v":4.378045926383062},{"$f":"'[1]MONE(M)CAPARD'!AF329","v":3.5796012744651784},{"$f":"'[1]MONE(M)CAPARD'!AG329","v":0.69650095450206961},{"$f":"'[1]MONE(M)CAPARD'!AH329","v":5.8269565217391346},{"$f":"'[1]MONE(M)CAPARD'!AI329","v":4.7511769830786319},{"$f":"'[1]MONE(M)CAPARD'!AJ329","v":6.0386511666254048},{"$f":"'[1]MONE(M)CAPARD'!AK329","v":1.6873288331726135},null,null,{"$f":"'[1]MONE(M)CAPARD'!AL329","v":3.2133761199999999},{"$f":"'[1]MONE(M)CAPARD'!AM329","v":4.5599999999999996},{"$f":"'[1]MONE(M)CAPARD'!AN329","v":2.84},{"$f":"'[1]MONE(M)CAPARD'!AO329","v":3.75},{"$f":"'[1]MONE(M)CAPARD'!AP329","v":4.33},{"$f":"'[1]MONE(M)CAPARD'!AQ329","v":2.02},{"$f":"'[1]MONE(M)CAPARD'!AR329","v":2.1800000000000002},null,null,{"$f":"'[1]MONE(M)CAPARD'!J329","v":13.503669370232553},{"$f":"'[1]MONE(M)CAPARD'!K329","v":4.9466618115612189},{"$f":"'[1]MONE(M)CAPARD'!L329","v":7.9811724467069691},{"$f":"'[1]MONE(M)CAPARD'!M329","v":16.22625},{"$f":"'[1]MONE(M)CAPARD'!N329","v":12.81129654601056},{"$f":"'[1]MONE(M)CAPARD'!O329","v":12.956786214856914},{"$f":"'[1]MONE(M)CAPARD'!P329","v":5.4889103182256509},null,null,{"$f":"'[1]MONE(M)CAPARD'!Q329","v":9.94},{"$f":"'[1]MONE(M)CAPARD'!R329","v":5.94},{"$f":"'[1]MONE(M)CAPARD'!S329","v":5.97},{"$f":"'[1]MONE(M)CAPARD'!T329","v":8.3800000000000008},{"$f":"'[1]MONE(M)CAPARD'!U329","v":8.18},{"$f":"'[1]MONE(M)CAPARD'!V329","v":7.03},{"$f":"'[1]MONE(M)CAPARD'!W329","v":6},null,null,{"$f":"'[1]MONE(M)CAPARD'!AS329","v":1.75},{"$f":"'[1]MONE(M)CAPARD'!AT329","v":"n.a."},{"$f":"'[1]MONE(M)CAPARD'!AU329","v":3},{"$f":"'[1]MONE(M)CAPARD'!AV329","v":5.5},{"$f":"'[1]MONE(M)CAPARD'!AW329","v":"n.a."},{"$f":"'[1]MONE(M)CAPARD'!AX329","v":5},{"$f":"'[1]MONE(M)CAPARD'!AY329","v":"n.a."},null,null,{"$f":"+'Datos_Regional (M)'!CF322","v":11.705262250433069},{"$f":"+'Datos_Regional (M)'!CG322","v":5.4928238105737881},{"$f":"+'Datos_Regional (M)'!CH322","v":7.4626387632189539},{"$f":"+'Datos_Regional (M)'!CI322","v":8.8964008875957123},{"$f":"+'Datos_Regional (M)'!CJ322","v":22.318886308054964},{"$f":"+'Datos_Regional (M)'!CK322","v":14.283533363334012},{"$f":"+'Datos_Regional (M)'!CL322","v":9.2935808171376699},null,null,837.88542906749683,450.46499999999986,859.63333333333333,319.92029475558013,407.8616331134167,791.8416666666667,962.50015733333328,3664.519368621493,4627.0195259548273,null,null,1307.6705566558317,829.11916666666673,1419.8333333333333,735.94462979874527,628.93718281666668,1416.5333333333335,1780.6143695833332,6337.9352031779117,8118.5495727612433,null,null,-2673.4158345564169,-3491.5300468064161,null,null,{"$f":"'[1]EXT Comercio(M)'!C329","v":805.13893976999589},{"$f":"'[1]EXT Comercio(M)'!D329","v":439.29999999999973},{"$f":"'[1]EXT Comercio(M)'!E329","v":888.5},{"$f":"'[1]EXT Comercio(M)'!F329","v":317.33141845226311},{"$f":"'[1]EXT Comercio(M)'!G329","v":448.64871992999997},{"$f":"'[1]EXT Comercio(M)'!H329","v":889.9},{"$f":"'[1]EXT Comercio(M)'!I329","v":972.71951000000001},{"$f":"'[1]EXT Comercio(M)'!K329","v":3788.8190781522608},{"$f":"'[1]EXT Comercio(M)'!L329","v":4761.5385881522634},null,null,{"$f":"'[1]EXT Comercio(M)'!AG329","v":1375.6054973699952},{"$f":"'[1]EXT Comercio(M)'!AH329","v":829.76999999999953},{"$f":"'[1]EXT Comercio(M)'!AI329","v":1516.4},{"$f":"'[1]EXT Comercio(M)'!AJ329","v":797.75963652129997},{"$f":"'[1]EXT Comercio(M)'!AK329","v":646.19767518000003},{"$f":"'[1]EXT Comercio(M)'!AL329","v":1582.4},{"$f":"'[1]EXT Comercio(M)'!AM329","v":2018.0736769999999},{"$f":"'[1]EXT Comercio(M)'!AO329","v":6748.1328090712923},{"$f":"'[1]EXT Comercio(M)'!AP329","v":8766.2064860712926},null,null,{"$f":"'[1]EXT Comercio(M)'!$BS329","v":-2959.3137309190352},{"$f":"'[1]EXT Comercio(M)'!$BT329","v":-4004.6678979190365}]
[null,null,"Setiembre",{"$f":"'[1]REAL IPC(M)'!AD330","v":0.38575471814753798},{"$f":"'[1]REAL IPC(M)'!AE330","v":1.0146665436767903},{"$f":"'[1]REAL IPC(M)'!AF330","v":4.5587132261021743},{"$f":"'[1]REAL IPC(M)'!AG330","v":2.8960223307745827},{"$f":"'[1]REAL IPC(M)'!AH330","v":3.5228490136803452},{"$f":"'[1]REAL IPC(M)'!AI330","v":1.3531573671901365},{"$f":"'[1]REAL IPC(M)'!AJ330","v":1.1684518013631966},null,null,{"$f":"'[1]REAL IMAE(M)'!AG330","v":3.8084784844448638},{"$f":"'[1]REAL IMAE(M)'!AH330","v":3.4855199590008441},{"$f":"'[1]REAL IMAE(M)'!AI330","v":2.2977084254271762},{"$f":"'[1]REAL IMAE(M)'!AJ330","v":3.6163299082352434},{"$f":"'[1]REAL IMAE(M)'!AK330","v":4.104679785504203},{"$f":"'[1]REAL IMAE(M)'!AL330","v":5.7012111162281958},{"$f":"'[1]REAL IMAE(M)'!AM330","v":4.0494862087614987},null,null,{"$f":"'[1]EXT ITCER(M)'!C330","v":76.172857630712969},{"$f":"'[1]EXT ITCER(M)'!D330","v":93.211111804125622},{"$f":"'[1]EXT ITCER(M)'!E330","v":55.658792242046907},{"$f":"'[1]EXT ITCER(M)'!F330","v":78.277825549703849},{"$f":"'[1]EXT ITCER(M)'!G330","v":101.90267433881959},{"$f":"'[1]EXT ITCER(M)'!H330","v":103.8455950622488},{"$f":"'[1]EXT ITCER(M)'!I330","v":88.297193053518782},null,null,{"$f":"'[1]EXT TC(M)'!J330","v":3.2345890227459129},{"$f":"'[1]EXT TC(M)'!K330","v":0},{"$f":"'[1]EXT TC(M)'!L330","v":-2.1684818802284953},{"$f":"'[1]EXT TC(M)'!M330","v":4.6364547213523144},{"$f":"'[1]EXT TC(M)'!N330","v":5.2511711217672623},{"$f":"'[1]EXT TC(M)'!O330","v":2.1625144939906762},{"$f":"'[1]EXT TC(M)'!P330","v":0},null,null,{"$f":"'[1]EXT RIN(M)'!C330","v":7699.1623669999999},{"$f":"'[1]EXT RIN(M)'!D330","v":2979.43},{"$f":"'[1]EXT RIN(M)'!E330","v":9014.7999999999993},{"$f":"'[1]EXT RIN(M)'!F330","v":3706.3937006078863},{"$f":"'[1]EXT RIN(M)'!G330","v":2417.1999999999998},{"$f":"'[1]EXT RIN(M)'!H330","v":4938.5580471256781},{"$f":"'[1]EXT RIN(M)'!I330","v":4100.1830274599997},null,null,{"$f":"'[1]EXT RIN(M)'!P330","v":68.158936024871679},{"$f":"'[1]EXT RIN(M)'!Q330","v":104.24410663203328},{"$f":"'[1]EXT RIN(M)'!R330","v":104.58897923210624},{"$f":"'[1]EXT RIN(M)'!S330","v":88.168551258689192},{"$f":"'[1]EXT RIN(M)'!T330","v":124.77100287125577},{"$f":"'[1]EXT RIN(M)'!U330","v":77.332252652090133},{"$f":"'[1]EXT RIN(M)'!V330","v":270.69471597254017},null,null,{"$f":"+'[1]MONE(M)CAPARD'!AE330","v":4.2976668292882207},{"$f":"'[1]MONE(M)CAPARD'!AF330","v":3.5592192493836103},{"$f":"'[1]MONE(M)CAPARD'!AG330","v":0.88111908177905429},{"$f":"'[1]MONE(M)CAPARD'!AH330","v":5.4559715157680735},{"$f":"'[1]MONE(M)CAPARD'!AI330","v":6.0412967049394428},{"$f":"'[1]MONE(M)CAPARD'!AJ330","v":5.6306510631283722},{"$f":"'[1]MONE(M)CAPARD'!AK330","v":0.98998075072184499},null,null,{"$f":"'[1]MONE(M)CAPARD'!AL330","v":3.4453385999999999},{"$f":"'[1]MONE(M)CAPARD'!AM330","v":4.6100000000000003},{"$f":"'[1]MONE(M)CAPARD'!AN330","v":2.85},{"$f":"'[1]MONE(M)CAPARD'!AO330","v":3.74},{"$f":"'[1]MONE(M)CAPARD'!AP330","v":3.04},{"$f":"'[1]MONE(M)CAPARD'!AQ330","v":2.0099999999999998},{"$f":"'[1]MONE(M)CAPARD'!AR330","v":2.17},null,null,{"$f":"'[1]MONE(M)CAPARD'!J330","v":13.691429944858305},{"$f":"'[1]MONE(M)CAPARD'!K330","v":4.9748552643594115},{"$f":"'[1]MONE(M)CAPARD'!L330","v":8.1880184919496255},{"$f":"'[1]MONE(M)CAPARD'!M330","v":15.650729060698563},{"$f":"'[1]MONE(M)CAPARD'!N330","v":13.259831763473224},{"$f":"'[1]MONE(M)CAPARD'!O330","v":13.141863881221651},{"$f":"'[1]MONE(M)CAPARD'!P330","v":4.7658614051973025},null,null,{"$f":"'[1]MONE(M)CAPARD'!Q330","v":9.89},{"$f":"'[1]MONE(M)CAPARD'!R330","v":6.04},{"$f":"'[1]MONE(M)CAPARD'!S330","v":5.99},{"$f":"'[1]MONE(M)CAPARD'!T330","v":8.36},{"$f":"'[1]MONE(M)CAPARD'!U330","v":8.49},{"$f":"'[1]MONE(M)CAPARD'!V330","v":5},{"$f":"'[1]MONE(M)CAPARD'!W330","v":5.99},null,null,{"$f":"'[1]MONE(M)CAPARD'!AS330","v":1.75},{"$f":"'[1]MONE(M)CAPARD'!AT330","v":"n.a."},{"$f":"'[1]MONE(M)CAPARD'!AU330","v":3},{"$f":"'[1]MONE(M)CAPARD'!AV330","v":5.5},{"$f":"'[1]MONE(M)CAPARD'!AW330","v":"n.a."},{"$f":"'[1]MONE(M)CAPARD'!AX330","v":5},{"$f":"'[1]MONE(M)CAPARD'!AY330","v":"n.a."},null,null,{"$f":"+'Datos_Regional (M)'!CF323","v":12.261449221573217},{"$f":"+'Datos_Regional (M)'!CG323","v":5.3974403026126216},{"$f":"+'Datos_Regional (M)'!CH323","v":6.4731928323540133},{"$f":"+'Datos_Regional (M)'!CI323","v":9.5376192107700764},{"$f":"+'Datos_Regional (M)'!CJ323","v":19.239615368862715},{"$f":"+'Datos_Regional (M)'!CK323","v":12.062924875579117},{"$f":"+'Datos_Regional (M)'!CL323","v":8.9725716416110934},null,null,848.56720226416383,450.67083333333329,861.38333333333333,320.21694741843072,408.21501056541666,796.72499999999991,960.08295825000005,3682.6903385996775,4642.7732968496775,null,null,1314.2579081422846,822.92083333333312,1413.6333333333332,739.95558574822041,627.93913429166662,1421.7333333333333,1750.6745240833334,6340.3371287555046,8091.0116528388389,null,null,-2657.6467901558267,-3448.23835598916,null,null,{"$f":"'[1]EXT Comercio(M)'!C330","v":867.55328102999965},{"$f":"'[1]EXT Comercio(M)'!D330","v":444.94000000000051},{"$f":"'[1]EXT Comercio(M)'!E330","v":835.6},{"$f":"'[1]EXT Comercio(M)'!F330","v":248.95713599850268},{"$f":"'[1]EXT Comercio(M)'!G330","v":396.99591960999999},{"$f":"'[1]EXT Comercio(M)'!H330","v":878.9},{"$f":"'[1]EXT Comercio(M)'!I330","v":1122.7188599999999},{"$f":"'[1]EXT Comercio(M)'!K330","v":3672.9463366385062},{"$f":"'[1]EXT Comercio(M)'!L330","v":4795.6651966385034},null,null,{"$f":"'[1]EXT Comercio(M)'!AG330","v":1315.4620450174421},{"$f":"'[1]EXT Comercio(M)'!AH330","v":793.42000000000007},{"$f":"'[1]EXT Comercio(M)'!AI330","v":1461.9999999999998},{"$f":"'[1]EXT Comercio(M)'!AJ330","v":800.68990440909977},{"$f":"'[1]EXT Comercio(M)'!AK330","v":603.46348965000004},{"$f":"'[1]EXT Comercio(M)'!AL330","v":1529.8000000000002},{"$f":"'[1]EXT Comercio(M)'!AM330","v":1803.096871},{"$f":"'[1]EXT Comercio(M)'!AO330","v":6504.8354390765453},{"$f":"'[1]EXT Comercio(M)'!AP330","v":8307.9323100765469},null,null,{"$f":"'[1]EXT Comercio(M)'!$BS330","v":-2831.8891024380428},{"$f":"'[1]EXT Comercio(M)'!$BT330","v":-3512.2671134380435}]
[null,null,"Octubre",{"$f":"'[1]REAL IPC(M)'!AD331","v":0.55180099133034877},{"$f":"'[1]REAL IPC(M)'!AE331","v":-0.8757674250631986},{"$f":"'[1]REAL IPC(M)'!AF331","v":4.7599303424827886},{"$f":"'[1]REAL IPC(M)'!AG331","v":2.8242677824267663},{"$f":"'[1]REAL IPC(M)'!AH331","v":3.3961025778788416},{"$f":"'[1]REAL IPC(M)'!AI331","v":0.91203051156621784},{"$f":"'[1]REAL IPC(M)'!AJ331","v":1.3645224171540018},null,null,{"$f":"'[1]REAL IMAE(M)'!AG331","v":4.3016673833786294},{"$f":"'[1]REAL IMAE(M)'!AH331","v":2.2732558983979816},{"$f":"'[1]REAL IMAE(M)'!AI331","v":2.7752165448660686},{"$f":"'[1]REAL IMAE(M)'!AJ331","v":4.0806499125741729},{"$f":"'[1]REAL IMAE(M)'!AK331","v":4.0795526485692442},{"$f":"'[1]REAL IMAE(M)'!AL331","v":5.3644854363354426},{"$f":"'[1]REAL IMAE(M)'!AM331","v":4.2008610251580825},null,null,{"$f":"'[1]EXT ITCER(M)'!C331","v":76.616538488442117},{"$f":"'[1]EXT ITCER(M)'!D331","v":93.19120093591188},{"$f":"'[1]EXT ITCER(M)'!E331","v":55.201123207675373},{"$f":"'[1]EXT ITCER(M)'!F331","v":78.857052170396841},{"$f":"'[1]EXT ITCER(M)'!G331","v":102.22477648935271},{"$f":"'[1]EXT ITCER(M)'!H331","v":104.36786783529971},{"$f":"'[1]EXT ITCER(M)'!I331","v":88.418945739764425},null,null,{"$f":"'[1]EXT TC(M)'!J331","v":3.5558817172658195},{"$f":"'[1]EXT TC(M)'!K331","v":0},{"$f":"'[1]EXT TC(M)'!L331","v":-2.4012444033819138},{"$f":"'[1]EXT TC(M)'!M331","v":4.5142452636535895},{"$f":"'[1]EXT TC(M)'!N331","v":5.058813525022984},{"$f":"'[1]EXT TC(M)'!O331","v":2.4715379563932141},{"$f":"'[1]EXT TC(M)'!P331","v":0},null,null,{"$f":"'[1]EXT RIN(M)'!C331","v":7715.316143},{"$f":"'[1]EXT RIN(M)'!D331","v":2954.13},{"$f":"'[1]EXT RIN(M)'!E331","v":9063.2000000000007},{"$f":"'[1]EXT RIN(M)'!F331","v":3732.618613722248},{"$f":"'[1]EXT RIN(M)'!G331","v":2332.6},{"$f":"'[1]EXT RIN(M)'!H331","v":5450.2544242431322},{"$f":"'[1]EXT RIN(M)'!I331","v":3941.5233068399998},null,null,{"$f":"'[1]EXT RIN(M)'!P331","v":67.855403608305309},{"$f":"'[1]EXT RIN(M)'!Q331","v":103.20050724625027},{"$f":"'[1]EXT RIN(M)'!R331","v":102.26249400013347},{"$f":"'[1]EXT RIN(M)'!S331","v":89.351963366313655},{"$f":"'[1]EXT RIN(M)'!T331","v":123.00939567947663},{"$f":"'[1]EXT RIN(M)'!U331","v":77.55257980344949},{"$f":"'[1]EXT RIN(M)'!V331","v":255.91515338072378},null,null,{"$f":"+'[1]MONE(M)CAPARD'!AE331","v":4.0757092048734185},{"$f":"'[1]MONE(M)CAPARD'!AF331","v":5.433350942708806},{"$f":"'[1]MONE(M)CAPARD'!AG331","v":0.69689780733001316},{"$f":"'[1]MONE(M)CAPARD'!AH331","v":5.519837232960338},{"$f":"'[1]MONE(M)CAPARD'!AI331","v":6.078854604322248},{"$f":"'[1]MONE(M)CAPARD'!AJ331","v":6.3599646701174803},{"$f":"'[1]MONE(M)CAPARD'!AK331","v":0.78476923076922511},null,null,{"$f":"'[1]MONE(M)CAPARD'!AL331","v":3.40221478},{"$f":"'[1]MONE(M)CAPARD'!AM331","v":4.51},{"$f":"'[1]MONE(M)CAPARD'!AN331","v":2.85},{"$f":"'[1]MONE(M)CAPARD'!AO331","v":3.74},{"$f":"'[1]MONE(M)CAPARD'!AP331","v":3.15},{"$f":"'[1]MONE(M)CAPARD'!AQ331","v":2.06},{"$f":"'[1]MONE(M)CAPARD'!AR331","v":2.16},null,null,{"$f":"'[1]MONE(M)CAPARD'!J331","v":13.851764833004385},{"$f":"'[1]MONE(M)CAPARD'!K331","v":7.0777520721377165},{"$f":"'[1]MONE(M)CAPARD'!L331","v":7.9611256233673764},{"$f":"'[1]MONE(M)CAPARD'!M331","v":15.643906408952201},{"$f":"'[1]MONE(M)CAPARD'!N331","v":11.281189236258351},{"$f":"'[1]MONE(M)CAPARD'!O331","v":14.287661654753087},{"$f":"'[1]MONE(M)CAPARD'!P331","v":4.651999999999993},null,null,{"$f":"'[1]MONE(M)CAPARD'!Q331","v":9.9700000000000006},{"$f":"'[1]MONE(M)CAPARD'!R331","v":6.14},{"$f":"'[1]MONE(M)CAPARD'!S331","v":6.01},{"$f":"'[1]MONE(M)CAPARD'!T331","v":8.42},{"$f":"'[1]MONE(M)CAPARD'!U331","v":7.95},{"$f":"'[1]MONE(M)CAPARD'!V331","v":6.29},{"$f":"'[1]MONE(M)CAPARD'!W331","v":6.08},null,null,{"$f":"'[1]MONE(M)CAPARD'!AS331","v":1.75},{"$f":"'[1]MONE(M)CAPARD'!AT331","v":"n.a."},{"$f":"'[1]MONE(M)CAPARD'!AU331","v":3},{"$f":"'[1]MONE(M)CAPARD'!AV331","v":5.5},{"$f":"'[1]MONE(M)CAPARD'!AW331","v":"n.a."},{"$f":"'[1]MONE(M)CAPARD'!AX331","v":5},{"$f":"'[1]MONE(M)CAPARD'!AY331","v":"n.a."},null,null,{"$f":"+'Datos_Regional (M)'!CF324","v":12.366203730359704},{"$f":"+'Datos_Regional (M)'!CG324","v":5.7139193652277598},{"$f":"+'Datos_Regional (M)'!CH324","v":5.9676497113355431},{"$f":"+'Datos_Regional (M)'!CI324","v":9.2122935495182254},{"$f":"+'Datos_Regional (M)'!CJ324","v":19.647657652296679},{"$f":"+'Datos_Regional (M)'!CK324","v":11.610170275434207},{"$f":"+'Datos_Regional (M)'!CL324","v":9.0785374290003329},null,null,851.91175380999766,447.98833333333329,851.7166666666667,319.90138994473091,405.3381525429167,803.43333333333339,946.25308499999994,3677.2016413159768,4623.4547263159775,null,null,1310.5441087997854,817.01249999999982,1401.3833333333332,737.73860502834248,624.69227506833329,1426.1916666666666,1746.0984532499999,6317.4594894697939,8063.5579427197954,null,null,-2640.2578481538162,-3440.1032164038156,null,null,{"$f":"'[1]EXT Comercio(M)'!C331","v":853.63796034999746},{"$f":"'[1]EXT Comercio(M)'!D331","v":441.92999999999938},{"$f":"'[1]EXT Comercio(M)'!E331","v":709},{"$f":"'[1]EXT Comercio(M)'!F331","v":261.91514745025268},{"$f":"'[1]EXT Comercio(M)'!G331","v":401.80411848999995},{"$f":"'[1]EXT Comercio(M)'!H331","v":865.69999999999993},{"$f":"'[1]EXT Comercio(M)'!I331","v":1071.3900980000001},{"$f":"'[1]EXT Comercio(M)'!K331","v":3533.9872262902427},{"$f":"'[1]EXT Comercio(M)'!L331","v":4605.3773242902389},null,null,{"$f":"'[1]EXT Comercio(M)'!AG331","v":1317.6991834700036},{"$f":"'[1]EXT Comercio(M)'!AH331","v":815.44999999999982},{"$f":"'[1]EXT Comercio(M)'!AI331","v":1401.3},{"$f":"'[1]EXT Comercio(M)'!AJ331","v":741.39558957489282},{"$f":"'[1]EXT Comercio(M)'!AK331","v":631.34483669000008},{"$f":"'[1]EXT Comercio(M)'!AL331","v":1510.3000000000002},{"$f":"'[1]EXT Comercio(M)'!AM331","v":2041.0708949999998},{"$f":"'[1]EXT Comercio(M)'!AO331","v":6417.4896097348974},{"$f":"'[1]EXT Comercio(M)'!AP331","v":8458.5605047348945},null,null,{"$f":"'[1]EXT Comercio(M)'!$BS331","v":-2883.5023834446474},{"$f":"'[1]EXT Comercio(M)'!$BT331","v":-3853.183180444641}]
[null,null,"Noviembre",{"$f":"'[1]REAL IPC(M)'!AD332","v":0.56037233607343251},{"$f":"'[1]REAL IPC(M)'!AE332","v":-0.82211581895383201},{"$f":"'[1]REAL IPC(M)'!AF332","v":4.6715087487619646},{"$f":"'[1]REAL IPC(M)'!AG332","v":3.0355896720167439},{"$f":"'[1]REAL IPC(M)'!AH332","v":3.3063565881557109},{"$f":"'[1]REAL IPC(M)'!AI332","v":0.87741081036338087},{"$f":"'[1]REAL IPC(M)'!AJ332","v":1.2670565302144361},null,null,{"$f":"'[1]REAL IMAE(M)'!AG332","v":4.4451837880960428},{"$f":"'[1]REAL IMAE(M)'!AH332","v":2.2485216604793634},{"$f":"'[1]REAL IMAE(M)'!AI332","v":3.4044502990211161},{"$f":"'[1]REAL IMAE(M)'!AJ332","v":4.4787738484146615},{"$f":"'[1]REAL IMAE(M)'!AK332","v":4.4702133881443418},{"$f":"'[1]REAL IMAE(M)'!AL332","v":5.2099190241033222},{"$f":"'[1]REAL IMAE(M)'!AM332","v":4.1584291123546455},null,null,{"$f":"'[1]EXT ITCER(M)'!C332","v":76.834120644381386},{"$f":"'[1]EXT ITCER(M)'!D332","v":93.309567402621965},{"$f":"'[1]EXT ITCER(M)'!E332","v":55.112070198782959},{"$f":"'[1]EXT ITCER(M)'!F332","v":79.1811655628984},{"$f":"'[1]EXT ITCER(M)'!G332","v":102.4103602716598},{"$f":"'[1]EXT ITCER(M)'!H332","v":104.68022317554041},{"$f":"'[1]EXT ITCER(M)'!I332","v":88.608387426489116},null,null,{"$f":"'[1]EXT TC(M)'!J332","v":3.9453411719632756},{"$f":"'[1]EXT TC(M)'!K332","v":0},{"$f":"'[1]EXT TC(M)'!L332","v":-1.8119847770722313},{"$f":"'[1]EXT TC(M)'!M332","v":4.6754317166622306},{"$f":"'[1]EXT TC(M)'!N332","v":5.0816028794594548},{"$f":"'[1]EXT TC(M)'!O332","v":2.5594811325957623},{"$f":"'[1]EXT TC(M)'!P332","v":0},null,null,{"$f":"'[1]EXT RIN(M)'!C332","v":7583.0048699999998},{"$f":"'[1]EXT RIN(M)'!D332","v":3028.36},{"$f":"'[1]EXT RIN(M)'!E332","v":9003.6},{"$f":"'[1]EXT RIN(M)'!F332","v":3679.9548910651647},{"$f":"'[1]EXT RIN(M)'!G332","v":2296.1},{"$f":"'[1]EXT RIN(M)'!H332","v":5709.3339168861885},{"$f":"'[1]EXT RIN(M)'!I332","v":4146.9411949899995},null,null,{"$f":"'[1]EXT RIN(M)'!P332","v":64.424380479162167},{"$f":"'[1]EXT RIN(M)'!Q332","v":103.67264972977451},{"$f":"'[1]EXT RIN(M)'!R332","v":105.96905138072084},{"$f":"'[1]EXT RIN(M)'!S332","v":87.809876410777093},{"$f":"'[1]EXT RIN(M)'!T332","v":122.70843659922288},{"$f":"'[1]EXT RIN(M)'!U332","v":80.223642450946016},{"$f":"'[1]EXT RIN(M)'!V332","v":256.95672039036259},null,null,{"$f":"+'[1]MONE(M)CAPARD'!AE332","v":4.0171168523780967},{"$f":"'[1]MONE(M)CAPARD'!AF332","v":5.5477245399890656},{"$f":"'[1]MONE(M)CAPARD'!AG332","v":0.78196183567260991},{"$f":"'[1]MONE(M)CAPARD'!AH332","v":5.2160717913985817},{"$f":"'[1]MONE(M)CAPARD'!AI332","v":5.5430418308140634},{"$f":"'[1]MONE(M)CAPARD'!AJ332","v":7.9230713054894544},{"$f":"'[1]MONE(M)CAPARD'!AK332","v":0.9015206929740025},null,null,{"$f":"'[1]MONE(M)CAPARD'!AL332","v":3.41506775},{"$f":"'[1]MONE(M)CAPARD'!AM332","v":4.68},{"$f":"'[1]MONE(M)CAPARD'!AN332","v":2.86},{"$f":"'[1]MONE(M)CAPARD'!AO332","v":3.63},{"$f":"'[1]MONE(M)CAPARD'!AP332","v":3.49},{"$f":"'[1]MONE(M)CAPARD'!AQ332","v":2.39},{"$f":"'[1]MONE(M)CAPARD'!AR332","v":2.1800000000000002},null,null,{"$f":"'[1]MONE(M)CAPARD'!J332","v":13.613342259887167},{"$f":"'[1]MONE(M)CAPARD'!K332","v":7.1105729641100348},{"$f":"'[1]MONE(M)CAPARD'!L332","v":8.0332187352152697},{"$f":"'[1]MONE(M)CAPARD'!M332","v":15.43584151710126},{"$f":"'[1]MONE(M)CAPARD'!N332","v":13.283814270410184},{"$f":"'[1]MONE(M)CAPARD'!O332","v":14.832447690161645},{"$f":"'[1]MONE(M)CAPARD'!P332","v":4.7625986525505173},null,null,{"$f":"'[1]MONE(M)CAPARD'!Q332","v":9.7899999999999991},{"$f":"'[1]MONE(M)CAPARD'!R332","v":6.23},{"$f":"'[1]MONE(M)CAPARD'!S332","v":6},{"$f":"'[1]MONE(M)CAPARD'!T332","v":8.35},{"$f":"'[1]MONE(M)CAPARD'!U332","v":8.6199999999999992},{"$f":"'[1]MONE(M)CAPARD'!V332","v":6.74},{"$f":"'[1]MONE(M)CAPARD'!W332","v":6.09},null,null,{"$f":"'[1]MONE(M)CAPARD'!AS332","v":1.75},{"$f":"'[1]MONE(M)CAPARD'!AT332","v":"n.a."},{"$f":"'[1]MONE(M)CAPARD'!AU332","v":3},{"$f":"'[1]MONE(M)CAPARD'!AV332","v":5.5},{"$f":"'[1]MONE(M)CAPARD'!AW332","v":"n.a."},{"$f":"'[1]MONE(M)CAPARD'!AX332","v":5.5},{"$f":"'[1]MONE(M)CAPARD'!AY332","v":"n.a."},null,null,{"$f":"+'Datos_Regional (M)'!CF325","v":12.903849542799261},{"$f":"+'Datos_Regional (M)'!CG325","v":5.4434743445559874},{"$f":"+'Datos_Regional (M)'!CH325","v":6.0260948660573632},{"$f":"+'Datos_Regional (M)'!CI325","v":9.7560538598383104},{"$f":"+'Datos_Regional (M)'!CJ325","v":18.703604357627569},{"$f":"+'Datos_Regional (M)'!CK325","v":11.696356462873014},{"$f":"+'Datos_Regional (M)'!CL325","v":8.0382702238769976},null,null,861.01585181249766,450.10083333333318,857.33333333333337,324.0637743232852,405.34422214958335,812.44166666666661,943.26246524999988,3707.2116933036978,4650.4741585536985,null,null,1319.2694454372847,818.13249999999982,1409.0999999999997,742.36272558065957,617.75571485916669,1440.5249999999999,1745.9876356666666,6347.0423864504455,8093.0300221171119,null,null,-2639.830693146745,-3442.555863563412,null,null,{"$f":"'[1]EXT Comercio(M)'!C332","v":919.24392068999737},{"$f":"'[1]EXT Comercio(M)'!D332","v":434.10000000000036},{"$f":"'[1]EXT Comercio(M)'!E332","v":853.80000000000007},{"$f":"'[1]EXT Comercio(M)'!F332","v":308.6098519563069},{"$f":"'[1]EXT Comercio(M)'!G332","v":370.12433506000002},{"$f":"'[1]EXT Comercio(M)'!H332","v":855.90000000000009},{"$f":"'[1]EXT Comercio(M)'!I332","v":969.80848400000002},{"$f":"'[1]EXT Comercio(M)'!K332","v":3741.7781077063119},{"$f":"'[1]EXT Comercio(M)'!L332","v":4711.5865917063129},null,null,{"$f":"'[1]EXT Comercio(M)'!AG332","v":1480.6946727799905},{"$f":"'[1]EXT Comercio(M)'!AH332","v":865.81999999999971},{"$f":"'[1]EXT Comercio(M)'!AI332","v":1554.7},{"$f":"'[1]EXT Comercio(M)'!AJ332","v":798.19773582347398},{"$f":"'[1]EXT Comercio(M)'!AK332","v":645.81529468999997},{"$f":"'[1]EXT Comercio(M)'!AL332","v":1603.9999999999998},{"$f":"'[1]EXT Comercio(M)'!AM332","v":1686.1622870000001},{"$f":"'[1]EXT Comercio(M)'!AO332","v":6949.2277032934653},{"$f":"'[1]EXT Comercio(M)'!AP332","v":8635.3899902934645},null,null,{"$f":"'[1]EXT Comercio(M)'!$BS332","v":-3207.4495955871607},{"$f":"'[1]EXT Comercio(M)'!$BT332","v":-3923.8033985871662}]
[null,null,"Diciembre ",{"$f":"'[1]REAL IPC(M)'!AD333","v":0.76519109124868812},{"$f":"'[1]REAL IPC(M)'!AE333","v":-0.93119971069523655},{"$f":"'[1]REAL IPC(M)'!AF333","v":4.2324128862590324},{"$f":"'[1]REAL IPC(M)'!AG333","v":3.3147243545010467},{"$f":"'[1]REAL IPC(M)'!AH333","v":3.1296532012614322},{"$f":"'[1]REAL IPC(M)'!AI333","v":1.6953357591796103},{"$f":"'[1]REAL IPC(M)'!AJ333","v":1.4634146341463417},null,null,{"$f":"'[1]REAL IMAE(M)'!AG333","v":4.184041858874175},{"$f":"'[1]REAL IMAE(M)'!AH333","v":3.1176485079331875},{"$f":"'[1]REAL IMAE(M)'!AI333","v":3.9821652530187781},{"$f":"'[1]REAL IMAE(M)'!AJ333","v":4.7609094391241351},{"$f":"'[1]REAL IMAE(M)'!AK333","v":5.0344242085107034},{"$f":"'[1]REAL IMAE(M)'!AL333","v":5.315603244979938},{"$f":"'[1]REAL IMAE(M)'!AM333","v":4.0854535120858442},null,null,{"$f":"'[1]EXT ITCER(M)'!C333","v":76.466959521635459},{"$f":"'[1]EXT ITCER(M)'!D333","v":93.715863419994832},{"$f":"'[1]EXT ITCER(M)'!E333","v":55.245369747816959},{"$f":"'[1]EXT ITCER(M)'!F333","v":80.107722257573329},{"$f":"'[1]EXT ITCER(M)'!G333","v":102.2030045092886},{"$f":"'[1]EXT ITCER(M)'!H333","v":104.22072659287549},{"$f":"'[1]EXT ITCER(M)'!I333","v":88.746665801246863},null,null,{"$f":"'[1]EXT TC(M)'!J333","v":3.4311838952807183},{"$f":"'[1]EXT TC(M)'!K333","v":0},{"$f":"'[1]EXT TC(M)'!L333","v":-1.4716797389061356},{"$f":"'[1]EXT TC(M)'!M333","v":5.2288130433529458},{"$f":"'[1]EXT TC(M)'!N333","v":5.1720265242132593},{"$f":"'[1]EXT TC(M)'!O333","v":2.5238231475164485},{"$f":"'[1]EXT TC(M)'!P333","v":0},null,null,{"$f":"'[1]EXT RIN(M)'!C333","v":7573.8},{"$f":"'[1]EXT RIN(M)'!D333","v":2922.99},{"$f":"'[1]EXT RIN(M)'!E333","v":9160.4},{"$f":"'[1]EXT RIN(M)'!F333","v":3887.6050145088475},{"$f":"'[1]EXT RIN(M)'!G333","v":2387.5},{"$f":"'[1]EXT RIN(M)'!H333","v":6046.699976951857},{"$f":"'[1]EXT RIN(M)'!I333","v":4502.1774745299999},null,null,{"$f":"'[1]EXT RIN(M)'!P333","v":65.431752834127167},{"$f":"'[1]EXT RIN(M)'!Q333","v":101.17474561715942},{"$f":"'[1]EXT RIN(M)'!R333","v":100.23957162416191},{"$f":"'[1]EXT RIN(M)'!S333","v":81.977400691635239},{"$f":"'[1]EXT RIN(M)'!T333","v":122.32108072957088},{"$f":"'[1]EXT RIN(M)'!U333","v":80.01081823949751},{"$f":"'[1]EXT RIN(M)'!V333","v":275.42153380223914},null,null,{"$f":"+'[1]MONE(M)CAPARD'!AE333","v":3.6568271928492697},{"$f":"'[1]MONE(M)CAPARD'!AF333","v":5.6942243110056587},{"$f":"'[1]MONE(M)CAPARD'!AG333","v":1.1585523929669714},{"$f":"'[1]MONE(M)CAPARD'!AH333","v":4.6995001688618707},{"$f":"'[1]MONE(M)CAPARD'!AI333","v":6.5389174686972371},{"$f":"'[1]MONE(M)CAPARD'!AJ333","v":5.0490656257623945},{"$f":"'[1]MONE(M)CAPARD'!AK333","v":0.71610576923076896},null,null,{"$f":"'[1]MONE(M)CAPARD'!AL333","v":3.28515902},{"$f":"'[1]MONE(M)CAPARD'!AM333","v":4.71},{"$f":"'[1]MONE(M)CAPARD'!AN333","v":2.88},{"$f":"'[1]MONE(M)CAPARD'!AO333","v":3.55},{"$f":"'[1]MONE(M)CAPARD'!AP333","v":3.54},{"$f":"'[1]MONE(M)CAPARD'!AQ333","v":2.0699999999999998},{"$f":"'[1]MONE(M)CAPARD'!AR333","v":2.19},null,null,{"$f":"'[1]MONE(M)CAPARD'!J333","v":13.382407915586684},{"$f":"'[1]MONE(M)CAPARD'!K333","v":7.0468196751231984},{"$f":"'[1]MONE(M)CAPARD'!L333","v":8.4403563825593384},{"$f":"'[1]MONE(M)CAPARD'!M333","v":14.978770685579196},{"$f":"'[1]MONE(M)CAPARD'!N333","v":13.351207778746993},{"$f":"'[1]MONE(M)CAPARD'!O333","v":12.551867935268779},{"$f":"'[1]MONE(M)CAPARD'!P333","v":4.5697115384615374},null,null,{"$f":"'[1]MONE(M)CAPARD'!Q333","v":9.82},{"$f":"'[1]MONE(M)CAPARD'!R333","v":6.05},{"$f":"'[1]MONE(M)CAPARD'!S333","v":5.93},{"$f":"'[1]MONE(M)CAPARD'!T333","v":8.18},{"$f":"'[1]MONE(M)CAPARD'!U333","v":7.64},{"$f":"'[1]MONE(M)CAPARD'!V333","v":6.98},{"$f":"'[1]MONE(M)CAPARD'!W333","v":6.1},null,null,{"$f":"'[1]MONE(M)CAPARD'!AS333","v":1.75},{"$f":"'[1]MONE(M)CAPARD'!AT333","v":"n.a."},{"$f":"'[1]MONE(M)CAPARD'!AU333","v":3},{"$f":"'[1]MONE(M)CAPARD'!AV333","v":5.5},{"$f":"'[1]MONE(M)CAPARD'!AW333","v":"n.a."},{"$f":"'[1]MONE(M)CAPARD'!AX333","v":5.5},{"$f":"'[1]MONE(M)CAPARD'!AY333","v":"n.a."},null,null,{"$f":"+'Datos_Regional (M)'!CF326","v":12.158417364699691},{"$f":"+'Datos_Regional (M)'!CG326","v":4.9681376664200805},{"$f":"+'Datos_Regional (M)'!CH326","v":6.6840962486078404},{"$f":"+'Datos_Regional (M)'!CI326","v":11.727420063249427},{"$f":"+'Datos_Regional (M)'!CJ326","v":17.512010337992635},{"$f":"+'Datos_Regional (M)'!CK326","v":11.407213499098457},{"$f":"+'Datos_Regional (M)'!CL326","v":8.5815479642203698},null,null,864.91980560166382,451.67916666666662,870.77499999999998,325.59544521185927,403.26302208791668,819.9666666666667,{"$f":"IF(EN138=\"\",\"\",+AVERAGE(EN127:EN138))","v":932.91222266666671},3736.1991062347729,4669.1113289014393,null,null,1328.6999549697844,818.8158333333331,1416.8999999999999,742.72923263123448,616.88287529666673,1449.8833333333332,1744.5847155833333,6373.9112295643527,8118.4959451476852,null,null,-2637.7121233295793,-3449.3846162462455,null,null,{"$f":"'[1]EXT Comercio(M)'!C333","v":844.56438733999425},{"$f":"'[1]EXT Comercio(M)'!D333","v":402.06999999999971},{"$f":"'[1]EXT Comercio(M)'!E333","v":974.50000000000023},{"$f":"'[1]EXT Comercio(M)'!F333","v":331.32252557132506},{"$f":"'[1]EXT Comercio(M)'!G333","v":337.50494485000002},{"$f":"'[1]EXT Comercio(M)'!H333","v":755.09999999999991},{"$f":"'[1]EXT Comercio(M)'!I333","v":791.43451399999992},{"$f":"'[1]EXT Comercio(M)'!K333","v":3645.0618577613131},{"$f":"'[1]EXT Comercio(M)'!L333","v":4436.4963717613136},null,null,{"$f":"'[1]EXT Comercio(M)'!AG333","v":1388.8661143899972},{"$f":"'[1]EXT Comercio(M)'!AH333","v":812.73999999999796},{"$f":"'[1]EXT Comercio(M)'!AI333","v":1483},{"$f":"'[1]EXT Comercio(M)'!AJ333","v":781.69047280240011},{"$f":"'[1]EXT Comercio(M)'!AK333","v":594.78671304000011},{"$f":"'[1]EXT Comercio(M)'!AL333","v":1530.9},{"$f":"'[1]EXT Comercio(M)'!AM333","v":1657.3916119999999},{"$f":"'[1]EXT Comercio(M)'!AO333","v":6591.9833002324012},{"$f":"'[1]EXT Comercio(M)'!AP333","v":8249.3749122323934},null,null,{"$f":"'[1]EXT Comercio(M)'!$BS333","v":-2946.9214424710772},{"$f":"'[1]EXT Comercio(M)'!$BT333","v":-3812.8785404710725}]
[null,2017,"Enero",{"$f":"'[1]REAL IPC(M)'!AD334","v":0.65571453973752936},{"$f":"'[1]REAL IPC(M)'!AE334","v":-0.25300442757748359},{"$f":"'[1]REAL IPC(M)'!AF334","v":3.827673263295047},{"$f":"'[1]REAL IPC(M)'!AG334","v":3.4434782608695569},{"$f":"'[1]REAL IPC(M)'!AH334","v":3.8815156361188228},{"$f":"'[1]REAL IPC(M)'!AI334","v":2.3323132908775168},{"$f":"'[1]REAL IPC(M)'!AJ334","v":1.6569200779727127},null,null,{"$f":"'[1]REAL IMAE(M)'!AG334","v":3.6248501550349284},{"$f":"'[1]REAL IMAE(M)'!AH334","v":3.1285074493221892},{"$f":"'[1]REAL IMAE(M)'!AI334","v":4.3680885036628982},{"$f":"'[1]REAL IMAE(M)'!AJ334","v":4.9104341611887774},{"$f":"'[1]REAL IMAE(M)'!AK334","v":5.525328215199889},{"$f":"'[1]REAL IMAE(M)'!AL334","v":5.5524058782767405},{"$f":"'[1]REAL IMAE(M)'!AM334","v":4.7962591850367451},null,null,{"$f":"'[1]EXT ITCER(M)'!C334","v":76.6587744038723},{"$f":"'[1]EXT ITCER(M)'!D334","v":93.40433211297497},{"$f":"'[1]EXT ITCER(M)'!E334","v":55.269651899721879},{"$f":"'[1]EXT ITCER(M)'!F334","v":80.528495828854091},{"$f":"'[1]EXT ITCER(M)'!G334","v":102.4475176016755},{"$f":"'[1]EXT ITCER(M)'!H334","v":104.22571261992741},{"$f":"'[1]EXT ITCER(M)'!I334","v":88.84917966691286},null,null,{"$f":"'[1]EXT TC(M)'!J334","v":3.4686020796032864},{"$f":"'[1]EXT TC(M)'!K334","v":0},{"$f":"'[1]EXT TC(M)'!L334","v":-1.7561971290336555},{"$f":"'[1]EXT TC(M)'!M334","v":5.0437744599621999},{"$f":"'[1]EXT TC(M)'!N334","v":4.9127955366307328},{"$f":"'[1]EXT TC(M)'!O334","v":2.5519819705043769},{"$f":"'[1]EXT TC(M)'!P334","v":0},null,null,{"$f":"'[1]EXT RIN(M)'!C334","v":7523.8},{"$f":"'[1]EXT RIN(M)'!D334","v":2903.89},{"$f":"'[1]EXT RIN(M)'!E334","v":9065.2000000000007},{"$f":"'[1]EXT RIN(M)'!F334","v":4445.9861856149864},{"$f":"'[1]EXT RIN(M)'!G334","v":2398.9},{"$f":"'[1]EXT RIN(M)'!H334","v":6707},{"$f":"'[1]EXT RIN(M)'!I334","v":4320.8750235799998},null,null,{"$f":"'[1]EXT RIN(M)'!P334","v":66.425655942158599},{"$f":"'[1]EXT RIN(M)'!Q334","v":101.29999609296512},{"$f":"'[1]EXT RIN(M)'!R334","v":100.19886947647763},{"$f":"'[1]EXT RIN(M)'!S334","v":100.60671451113909},{"$f":"'[1]EXT RIN(M)'!T334","v":123.58945069165821},{"$f":"'[1]EXT RIN(M)'!U334","v":94.445259274215715},{"$f":"'[1]EXT RIN(M)'!V334","v":282.00464541856991},null,null,{"$f":"+'[1]MONE(M)CAPARD'!AE334","v":3.8689164128133613},{"$f":"'[1]MONE(M)CAPARD'!AF334","v":4.8051616994292967},{"$f":"'[1]MONE(M)CAPARD'!AG334","v":1.5625186289120812},{"$f":"'[1]MONE(M)CAPARD'!AH334","v":4.8978648285137947},{"$f":"'[1]MONE(M)CAPARD'!AI334","v":5.0627539735370517},{"$f":"'[1]MONE(M)CAPARD'!AJ334","v":3.6427269053584372},{"$f":"'[1]MONE(M)CAPARD'!AK334","v":0.52439117929050505},null,null,{"$f":"'[1]MONE(M)CAPARD'!AL334","v":3.3116097899999999},{"$f":"'[1]MONE(M)CAPARD'!AM334","v":4.54},{"$f":"'[1]MONE(M)CAPARD'!AN334","v":2.91},{"$f":"'[1]MONE(M)CAPARD'!AO334","v":3.65},{"$f":"'[1]MONE(M)CAPARD'!AP334","v":3.79},{"$f":"'[1]MONE(M)CAPARD'!AQ334","v":1.77},{"$f":"'[1]MONE(M)CAPARD'!AR334","v":2.19},null,null,{"$f":"'[1]MONE(M)CAPARD'!J334","v":13.505726448244156},{"$f":"'[1]MONE(M)CAPARD'!K334","v":6.1385351934052013},{"$f":"'[1]MONE(M)CAPARD'!L334","v":8.8823397913561948},{"$f":"'[1]MONE(M)CAPARD'!M334","v":15.792703429724288},{"$f":"'[1]MONE(M)CAPARD'!N334","v":12.516018650310142},{"$f":"'[1]MONE(M)CAPARD'!O334","v":14.030452598399739},{"$f":"'[1]MONE(M)CAPARD'!P334","v":4.2837679769894512},null,null,{"$f":"'[1]MONE(M)CAPARD'!Q334","v":9.84},{"$f":"'[1]MONE(M)CAPARD'!R334","v":5.87},{"$f":"'[1]MONE(M)CAPARD'!S334","v":6},{"$f":"'[1]MONE(M)CAPARD'!T334","v":8.43},{"$f":"'[1]MONE(M)CAPARD'!U334","v":7.87},{"$f":"'[1]MONE(M)CAPARD'!V334","v":6.94},{"$f":"'[1]MONE(M)CAPARD'!W334","v":6.0116666666666667},null,null,{"$f":"'[1]MONE(M)CAPARD'!AS334","v":1.75},{"$f":"'[1]MONE(M)CAPARD'!AT334","v":"n.a."},{"$f":"'[1]MONE(M)CAPARD'!AU334","v":3},{"$f":"'[1]MONE(M)CAPARD'!AV334","v":5.5},{"$f":"'[1]MONE(M)CAPARD'!AW334","v":"n.a."},{"$f":"'[1]MONE(M)CAPARD'!AX334","v":5.5},{"$f":"'[1]MONE(M)CAPARD'!AY334","v":"n.a."},null,null,{"$f":"+'Datos_Regional (M)'!CF327","v":12.556381352263069},{"$f":"+'Datos_Regional (M)'!CG327","v":5.3237769079120145},{"$f":"+'Datos_Regional (M)'!CH327","v":6.1780908224726483},{"$f":"+'Datos_Regional (M)'!CI327","v":11.708501814766903},{"$f":"+'Datos_Regional (M)'!CJ327","v":18.663532732878551},{"$f":"+'Datos_Regional (M)'!CK327","v":11.321829171175658},{"$f":"+'Datos_Regional (M)'!CL327","v":8.2779128203285488},null,null,{"$f":"IF(EH139=\"\",\"\",+AVERAGE(EH128:EH139))","v":870.68665473166402},{"$f":"IF(EI139=\"\",\"\",+AVERAGE(EI128:EI139))","v":452.97499999999997},{"$f":"IF(EJ139=\"\",\"\",+AVERAGE(EJ128:EJ139))","v":874.55000000000007},{"$f":"IF(EK139=\"\",\"\",+AVERAGE(EK128:EK139))","v":331.28842354017934},{"$f":"IF(EL139=\"\",\"\",+AVERAGE(EL128:EL139))","v":406.90297818775002},{"$f":"IF(EM139=\"\",\"\",+AVERAGE(EM128:EM139))","v":824},{"$f":"IF(EN139=\"\",\"\",+AVERAGE(EN128:EN139))","v":937.85479633333341},{"$f":"IF(EO139=\"\",\"\",+AVERAGE(EO128:EO139))","v":3760.4030564595923},{"$f":"IF(EP139=\"\",\"\",+AVERAGE(EP128:EP139))","v":4698.2578527929263},null,null,{"$f":"IF(ES139=\"\",\"\",+AVERAGE(ES128:ES139))","v":1339.3102291372841},{"$f":"IF(ET139=\"\",\"\",+AVERAGE(ET128:ET139))","v":824.04999999999973},{"$f":"IF(EU139=\"\",\"\",+AVERAGE(EU128:EU139))","v":1430},{"$f":"IF(EV139=\"\",\"\",+AVERAGE(EV128:EV139))","v":747.80940352131518},{"$f":"IF(EW139=\"\",\"\",+AVERAGE(EW128:EW139))","v":620.02290115999995},{"$f":"IF(EX139=\"\",\"\",+AVERAGE(EX128:EX139))","v":1466.2416666666666},{"$f":"IF(EY139=\"\",\"\",+AVERAGE(EY128:EY139))","v":1764.7853749166663},{"$f":"IF(EZ139=\"\",\"\",+AVERAGE(EZ128:EZ139))","v":6427.434200485266},{"$f":"IF(FA139=\"\",\"\",+AVERAGE(FA128:FA139))","v":8192.2195754019322},null,null,{"$f":"IF(FD139=\"\",\"\",+AVERAGE(FD128:FD139))","v":-2667.0311440256728},{"$f":"IF(FE139=\"\",\"\",+AVERAGE(FE128:FE139))","v":-3493.9617226090063},null,null,{"$f":"'[1]EXT Comercio(M)'!C334","v":806.90118316000007},{"$f":"'[1]EXT Comercio(M)'!D334","v":426.17},{"$f":"'[1]EXT Comercio(M)'!E334","v":879},{"$f":"'[1]EXT Comercio(M)'!F334","v":392.60343733314249},{"$f":"'[1]EXT Comercio(M)'!G334","v":414.71285817999996},{"$f":"'[1]EXT Comercio(M)'!H334","v":671.5},{"$f":"'[1]EXT Comercio(M)'!I334","v":738.16528700000003},{"$f":"'[1]EXT Comercio(M)'!K334","v":3590.8874786731426},{"$f":"'[1]EXT Comercio(M)'!L334","v":4329.0527656731429},null,null,{"$f":"'[1]EXT Comercio(M)'!AG334","v":1342.6304919600002},{"$f":"'[1]EXT Comercio(M)'!AH334","v":846.91},{"$f":"'[1]EXT Comercio(M)'!AI334","v":1431.8000000000002},{"$f":"'[1]EXT Comercio(M)'!AJ334","v":708.23153777636014},{"$f":"'[1]EXT Comercio(M)'!AK334","v":586.28552351999997},{"$f":"'[1]EXT Comercio(M)'!AL334","v":1327.6},{"$f":"'[1]EXT Comercio(M)'!AM334","v":1643.1285859999998},{"$f":"'[1]EXT Comercio(M)'!AO334","v":6243.4575532563613},{"$f":"'[1]EXT Comercio(M)'!AP334","v":7886.5861392563611},null,null,{"$f":"'[1]EXT Comercio(M)'!$BS334","v":-2652.5700745832178},{"$f":"'[1]EXT Comercio(M)'!$BT334","v":-3557.5333735832173}]
[null,null,"Febrero",{"$f":"'[1]REAL IPC(M)'!AD335","v":1.0854653797116591},{"$f":"'[1]REAL IPC(M)'!AE335","v":0.28993385883844625},{"$f":"'[1]REAL IPC(M)'!AF335","v":3.9577407557903328},{"$f":"'[1]REAL IPC(M)'!AG335","v":3.8421599169262799},{"$f":"'[1]REAL IPC(M)'!AH335","v":3.6910327222805419},{"$f":"'[1]REAL IPC(M)'!AI335","v":3.3435914497213495},{"$f":"'[1]REAL IPC(M)'!AJ335","v":1.8500486854917151},null,null,{"$f":"'[1]REAL IMAE(M)'!AG335","v":3.2301848893086587},{"$f":"'[1]REAL IMAE(M)'!AH335","v":3.114857261584516},{"$f":"'[1]REAL IMAE(M)'!AI335","v":4.3950769836604033},{"$f":"'[1]REAL IMAE(M)'!AJ335","v":5.0354312312448029},{"$f":"'[1]REAL IMAE(M)'!AK335","v":5.7282398285680003},{"$f":"'[1]REAL IMAE(M)'!AL335","v":5.6738774077657244},{"$f":"'[1]REAL IMAE(M)'!AM335","v":5.6634682892581312},null,null,{"$f":"'[1]EXT ITCER(M)'!C335","v":77.246165121675304},{"$f":"'[1]EXT ITCER(M)'!D335","v":93.29953888714266},{"$f":"'[1]EXT ITCER(M)'!E335","v":54.341620164960688},{"$f":"'[1]EXT ITCER(M)'!F335","v":79.889621253706096},{"$f":"'[1]EXT ITCER(M)'!G335","v":102.29588508540721},{"$f":"'[1]EXT ITCER(M)'!H335","v":104.70051383251921},{"$f":"'[1]EXT ITCER(M)'!I335","v":88.735454553667623},null,null,{"$f":"'[1]EXT TC(M)'!J335","v":4.4512491086021555},{"$f":"'[1]EXT TC(M)'!K335","v":0},{"$f":"'[1]EXT TC(M)'!L335","v":-3.4227786000826295},{"$f":"'[1]EXT TC(M)'!M335","v":4.337797454344221},{"$f":"'[1]EXT TC(M)'!N335","v":4.8830684723851592},{"$f":"'[1]EXT TC(M)'!O335","v":2.9774979468929654},{"$f":"'[1]EXT TC(M)'!P335","v":0},null,null,{"$f":"'[1]EXT RIN(M)'!C335","v":7454.1},{"$f":"'[1]EXT RIN(M)'!D335","v":3510.89},{"$f":"'[1]EXT RIN(M)'!E335","v":9267.5},{"$f":"'[1]EXT RIN(M)'!F335","v":4508.2249684299941},{"$f":"'[1]EXT RIN(M)'!G335","v":2372.5},{"$f":"'[1]EXT RIN(M)'!H335","v":6299.1},{"$f":"'[1]EXT RIN(M)'!I335","v":4222.02254558},null,null,{"$f":"'[1]EXT RIN(M)'!P335","v":66.498184998381603},{"$f":"'[1]EXT RIN(M)'!Q335","v":121.61061699837859},{"$f":"'[1]EXT RIN(M)'!R335","v":102.56628821147807},{"$f":"'[1]EXT RIN(M)'!S335","v":89.503656251236862},{"$f":"'[1]EXT RIN(M)'!T335","v":120.10964311875291},{"$f":"'[1]EXT RIN(M)'!U335","v":86.510814808614697},{"$f":"'[1]EXT RIN(M)'!V335","v":255.90067428885615},null,null,{"$f":"+'[1]MONE(M)CAPARD'!AE335","v":3.4767952119392671},{"$f":"'[1]MONE(M)CAPARD'!AF335","v":4.2976059264612942},{"$f":"'[1]MONE(M)CAPARD'!AG335","v":1.4354479362101278},{"$f":"'[1]MONE(M)CAPARD'!AH335","v":4.504759999999993},{"$f":"'[1]MONE(M)CAPARD'!AI335","v":5.6406459042062744},{"$f":"'[1]MONE(M)CAPARD'!AJ335","v":3.6155203219316081},{"$f":"'[1]MONE(M)CAPARD'!AK335","v":0.20613766730402358},null,null,{"$f":"'[1]MONE(M)CAPARD'!AL335","v":3.5570540300000002},{"$f":"'[1]MONE(M)CAPARD'!AM335","v":4.5999999999999996},{"$f":"'[1]MONE(M)CAPARD'!AN335","v":2.95},{"$f":"'[1]MONE(M)CAPARD'!AO335","v":3.62},{"$f":"'[1]MONE(M)CAPARD'!AP335","v":3.94},{"$f":"'[1]MONE(M)CAPARD'!AQ335","v":2.2400000000000002},{"$f":"'[1]MONE(M)CAPARD'!AR335","v":2.06},null,null,{"$f":"'[1]MONE(M)CAPARD'!J335","v":13.112206161884664},{"$f":"'[1]MONE(M)CAPARD'!K335","v":5.7533851296413472},{"$f":"'[1]MONE(M)CAPARD'!L335","v":8.7461108505315792},{"$f":"'[1]MONE(M)CAPARD'!M335","v":15.319249999999993},{"$f":"'[1]MONE(M)CAPARD'!N335","v":13.317900810496269},{"$f":"'[1]MONE(M)CAPARD'!O335","v":11.937274849094587},{"$f":"'[1]MONE(M)CAPARD'!P335","v":4.3396653919694153},null,null,{"$f":"'[1]MONE(M)CAPARD'!Q335","v":9.9},{"$f":"'[1]MONE(M)CAPARD'!R335","v":6.06},{"$f":"'[1]MONE(M)CAPARD'!S335","v":5.98},{"$f":"'[1]MONE(M)CAPARD'!T335","v":8.42},{"$f":"'[1]MONE(M)CAPARD'!U335","v":8.1300000000000008},{"$f":"'[1]MONE(M)CAPARD'!V335","v":5.82},{"$f":"'[1]MONE(M)CAPARD'!W335","v":6.27},null,null,{"$f":"'[1]MONE(M)CAPARD'!AS335","v":1.75},{"$f":"'[1]MONE(M)CAPARD'!AT335","v":"n.a."},{"$f":"'[1]MONE(M)CAPARD'!AU335","v":3},{"$f":"'[1]MONE(M)CAPARD'!AV335","v":5.5},{"$f":"'[1]MONE(M)CAPARD'!AW335","v":"n.a."},{"$f":"'[1]MONE(M)CAPARD'!AX335","v":5.5},{"$f":"'[1]MONE(M)CAPARD'!AY335","v":"n.a."},null,null,{"$f":"+'Datos_Regional (M)'!CF328","v":13.299844016974793},{"$f":"+'Datos_Regional (M)'!CG328","v":5.909280869761413},{"$f":"+'Datos_Regional (M)'!CH328","v":6.1751688690227402},{"$f":"+'Datos_Regional (M)'!CI328","v":9.8541488446404415},{"$f":"+'Datos_Regional (M)'!CJ328","v":17.390242563248549},{"$f":"+'Datos_Regional (M)'!CK328","v":11.829734286162896},{"$f":"+'Datos_Regional (M)'!CL328","v":8.6213152908029667},null,null,871.49856134666425,455.83083333333326,882.85833333333346,336.90705540455326,410.03311236608329,821.76666666666677,958.9518519999998,3778.8945624506341,4737.8464144506333,null,null,1344.8442732639498,824.33916666666653,1436.95,754.48362281060975,618.66881360333343,1472.0083333333332,1773.6419804999998,6451.2942096778934,8224.9361901778921,null,null,-2672.3996472272588,-3487.0897757272592,null,null,{"$f":"'[1]EXT Comercio(M)'!C335","v":883.83423957000002},{"$f":"'[1]EXT Comercio(M)'!D335","v":451.35999999999996},{"$f":"'[1]EXT Comercio(M)'!E335","v":942},{"$f":"'[1]EXT Comercio(M)'!F335","v":422.26427602616059},{"$f":"'[1]EXT Comercio(M)'!G335","v":447.01642594000003},{"$f":"'[1]EXT Comercio(M)'!H335","v":779.7},{"$f":"'[1]EXT Comercio(M)'!I335","v":981.96570200000008},{"$f":"'[1]EXT Comercio(M)'!K335","v":3926.1749415361596},{"$f":"'[1]EXT Comercio(M)'!L335","v":4908.1406435361605},null,null,{"$f":"'[1]EXT Comercio(M)'!AG335","v":1256.7740446999896},{"$f":"'[1]EXT Comercio(M)'!AH335","v":760.33},{"$f":"'[1]EXT Comercio(M)'!AI335","v":1352.4},{"$f":"'[1]EXT Comercio(M)'!AJ335","v":742.20647154290009},{"$f":"'[1]EXT Comercio(M)'!AK335","v":569.22222768000006},{"$f":"'[1]EXT Comercio(M)'!AL335","v":1336.5},{"$f":"'[1]EXT Comercio(M)'!AM335","v":1573.0740449999998},{"$f":"'[1]EXT Comercio(M)'!AO335","v":6017.4327439228909},{"$f":"'[1]EXT Comercio(M)'!AP335","v":7590.5067889228912},null,null,{"$f":"'[1]EXT Comercio(M)'!$BS335","v":-2091.2578023867295},{"$f":"'[1]EXT Comercio(M)'!$BT335","v":-2682.3661453867298}]
[null,null,"Marzo",{"$f":"'[1]REAL IPC(M)'!AD336","v":1.5816604303683284},{"$f":"'[1]REAL IPC(M)'!AE336","v":0.5438723712835466},{"$f":"'[1]REAL IPC(M)'!AF336","v":3.9983779399837736},{"$f":"'[1]REAL IPC(M)'!AG336","v":3.9364640883977819},{"$f":"'[1]REAL IPC(M)'!AH336","v":3.1655557282095037},{"$f":"'[1]REAL IPC(M)'!AI336","v":3.1442355681250778},{"$f":"'[1]REAL IPC(M)'!AJ336","v":1.4563106796116505},null,null,{"$f":"'[1]REAL IMAE(M)'!AG336","v":3.2243742674983684},{"$f":"'[1]REAL IMAE(M)'!AH336","v":2.6995850808422346},{"$f":"'[1]REAL IMAE(M)'!AI336","v":4.0587336096105338},{"$f":"'[1]REAL IMAE(M)'!AJ336","v":5.2378478796244101},{"$f":"'[1]REAL IMAE(M)'!AK336","v":5.5711875160130839},{"$f":"'[1]REAL IMAE(M)'!AL336","v":5.6414890191810407},{"$f":"'[1]REAL IMAE(M)'!AM336","v":6.5927810888635889},null,null,{"$f":"'[1]EXT ITCER(M)'!C336","v":77.480162094469776},{"$f":"'[1]EXT ITCER(M)'!D336","v":93.062576775472337},{"$f":"'[1]EXT ITCER(M)'!E336","v":53.851276646844738},{"$f":"'[1]EXT ITCER(M)'!F336","v":79.339471840934706},{"$f":"'[1]EXT ITCER(M)'!G336","v":102.3552859070969},{"$f":"'[1]EXT ITCER(M)'!H336","v":105.2916542322871},{"$f":"'[1]EXT ITCER(M)'!I336","v":88.778871843473141},null,null,{"$f":"'[1]EXT TC(M)'!J336","v":4.6288895432810078},{"$f":"'[1]EXT TC(M)'!K336","v":0},{"$f":"'[1]EXT TC(M)'!L336","v":-4.672961520530567},{"$f":"'[1]EXT TC(M)'!M336","v":3.8358611013782928},{"$f":"'[1]EXT TC(M)'!N336","v":4.9564182065029012},{"$f":"'[1]EXT TC(M)'!O336","v":3.279653156936857},{"$f":"'[1]EXT TC(M)'!P336","v":0},null,null,{"$f":"'[1]EXT RIN(M)'!C336","v":7273.8},{"$f":"'[1]EXT RIN(M)'!D336","v":3136.38},{"$f":"'[1]EXT RIN(M)'!E336","v":9424.5},{"$f":"'[1]EXT RIN(M)'!F336","v":4480.3941721141564},{"$f":"'[1]EXT RIN(M)'!G336","v":2404.1},{"$f":"'[1]EXT RIN(M)'!H336","v":6456.4},{"$f":"'[1]EXT RIN(M)'!I336","v":3757.08828541},null,null,{"$f":"'[1]EXT RIN(M)'!P336","v":65.006597998694716},{"$f":"'[1]EXT RIN(M)'!Q336","v":100.28345187792864},{"$f":"'[1]EXT RIN(M)'!R336","v":102.76811868983131},{"$f":"'[1]EXT RIN(M)'!S336","v":86.445024245278319},{"$f":"'[1]EXT RIN(M)'!T336","v":123.921921718804},{"$f":"'[1]EXT RIN(M)'!U336","v":86.015874936279275},{"$f":"'[1]EXT RIN(M)'!V336","v":228.79233267044364},null,null,{"$f":"+'[1]MONE(M)CAPARD'!AE336","v":2.872900046393827},{"$f":"'[1]MONE(M)CAPARD'!AF336","v":4.1734294987378213},{"$f":"'[1]MONE(M)CAPARD'!AG336","v":1.3861966778445043},{"$f":"'[1]MONE(M)CAPARD'!AH336","v":3.9673621262458552},{"$f":"'[1]MONE(M)CAPARD'!AI336","v":6.3750687931510486},{"$f":"'[1]MONE(M)CAPARD'!AJ336","v":2.7784048387097031},{"$f":"'[1]MONE(M)CAPARD'!AK336","v":0.63444976076555026},null,null,{"$f":"'[1]MONE(M)CAPARD'!AL336","v":3.5658683799999999},{"$f":"'[1]MONE(M)CAPARD'!AM336","v":4.74},{"$f":"'[1]MONE(M)CAPARD'!AN336","v":2.97},{"$f":"'[1]MONE(M)CAPARD'!AO336","v":3.54},{"$f":"'[1]MONE(M)CAPARD'!AP336","v":4.1100000000000003},{"$f":"'[1]MONE(M)CAPARD'!AQ336","v":2.11},{"$f":"'[1]MONE(M)CAPARD'!AR336","v":2.1},null,null,{"$f":"'[1]MONE(M)CAPARD'!J336","v":12.323424835344838},{"$f":"'[1]MONE(M)CAPARD'!K336","v":5.3569924269743874},{"$f":"'[1]MONE(M)CAPARD'!L336","v":8.7324651017702628},{"$f":"'[1]MONE(M)CAPARD'!M336","v":15.166511627906985},{"$f":"'[1]MONE(M)CAPARD'!N336","v":11.787419271149922},{"$f":"'[1]MONE(M)CAPARD'!O336","v":12.289358064516156},{"$f":"'[1]MONE(M)CAPARD'!P336","v":4.764306220095694},null,null,{"$f":"'[1]MONE(M)CAPARD'!Q336","v":9.89},{"$f":"'[1]MONE(M)CAPARD'!R336","v":5.93},{"$f":"'[1]MONE(M)CAPARD'!S336","v":5.98},{"$f":"'[1]MONE(M)CAPARD'!T336","v":8.36},{"$f":"'[1]MONE(M)CAPARD'!U336","v":8.0500000000000007},{"$f":"'[1]MONE(M)CAPARD'!V336","v":5.82},{"$f":"'[1]MONE(M)CAPARD'!W336","v":6.29},null,null,{"$f":"'[1]MONE(M)CAPARD'!AS336","v":1.75},{"$f":"'[1]MONE(M)CAPARD'!AT336","v":"n.a."},{"$f":"'[1]MONE(M)CAPARD'!AU336","v":3},{"$f":"'[1]MONE(M)CAPARD'!AV336","v":5.5},{"$f":"'[1]MONE(M)CAPARD'!AW336","v":"n.a."},{"$f":"'[1]MONE(M)CAPARD'!AX336","v":5.5},{"$f":"'[1]MONE(M)CAPARD'!AY336","v":"n.a."},null,null,{"$f":"+'Datos_Regional (M)'!CF329","v":12.72926537813326},{"$f":"+'Datos_Regional (M)'!CG329","v":5.40409688488801},{"$f":"+'Datos_Regional (M)'!CH329","v":6.230662575921353},{"$f":"+'Datos_Regional (M)'!CI329","v":10.048236759155294},{"$f":"+'Datos_Regional (M)'!CJ329","v":18.23098364465876},{"$f":"+'Datos_Regional (M)'!CK329","v":11.093472922634962},{"$f":"+'Datos_Regional (M)'!CL329","v":8.423458768856861},null,null,881.04120809833114,463.21833333333325,895.20833333333348,343.37676423487187,420.448080334,833.22499999999991,964.43337866666661,3836.5177193338695,4800.9510980005361,null,null,1362.4855997322829,832.60583333333307,1454.8999999999999,762.27259766323459,620.13269004916674,1476.1416666666667,1786.5760871666664,6508.5383874446852,8295.1144746113514,null,null,-2672.0206681108143,-3494.1633766108148,null,null,{"$f":"'[1]EXT Comercio(M)'!C336","v":988.81758511999999},{"$f":"'[1]EXT Comercio(M)'!D336","v":560.07000000000016},{"$f":"'[1]EXT Comercio(M)'!E336","v":1086.9000000000001},{"$f":"'[1]EXT Comercio(M)'!F336","v":431.29897225324214},{"$f":"'[1]EXT Comercio(M)'!G336","v":538.43500650999999},{"$f":"'[1]EXT Comercio(M)'!H336","v":962.30000000000007},{"$f":"'[1]EXT Comercio(M)'!I336","v":1000.864201},{"$f":"'[1]EXT Comercio(M)'!K336","v":4567.8215638832426},{"$f":"'[1]EXT Comercio(M)'!L336","v":5568.6857648832411},null,null,{"$f":"'[1]EXT Comercio(M)'!AG336","v":1469.3888261199968},{"$f":"'[1]EXT Comercio(M)'!AH336","v":883.65000000000032},{"$f":"'[1]EXT Comercio(M)'!AI336","v":1603.6},{"$f":"'[1]EXT Comercio(M)'!AJ336","v":813.24379433579895},{"$f":"'[1]EXT Comercio(M)'!AK336","v":654.85105829000008},{"$f":"'[1]EXT Comercio(M)'!AL336","v":1521.4},{"$f":"'[1]EXT Comercio(M)'!AM336","v":1951.0933660000001},{"$f":"'[1]EXT Comercio(M)'!AO336","v":6946.1336787457949},{"$f":"'[1]EXT Comercio(M)'!AP336","v":8897.2270447457959},null,null,{"$f":"'[1]EXT Comercio(M)'!$BS336","v":-2378.3121148625542},{"$f":"'[1]EXT Comercio(M)'!$BT336","v":-3328.541279862553}]
[null,null,"Abril",{"$f":"'[1]REAL IPC(M)'!AD337","v":1.6438548141513163},{"$f":"'[1]REAL IPC(M)'!AE337","v":0.86324398000908931},{"$f":"'[1]REAL IPC(M)'!AF337","v":4.0887377540280117},{"$f":"'[1]REAL IPC(M)'!AG337","v":4.1006202618883654},{"$f":"'[1]REAL IPC(M)'!AH337","v":3.3548896941638962},{"$f":"'[1]REAL IPC(M)'!AI337","v":3.5134460078261385},{"$f":"'[1]REAL IPC(M)'!AJ337","v":0.96618357487922701},null,null,{"$f":"'[1]REAL IMAE(M)'!AG337","v":3.3812611404248147},{"$f":"'[1]REAL IMAE(M)'!AH337","v":2.309709368176863},{"$f":"'[1]REAL IMAE(M)'!AI337","v":3.6139272677842538},{"$f":"'[1]REAL IMAE(M)'!AJ337","v":5.5318674092521256},{"$f":"'[1]REAL IMAE(M)'!AK337","v":5.1634428980598841},{"$f":"'[1]REAL IMAE(M)'!AL337","v":5.3699728913882048},{"$f":"'[1]REAL IMAE(M)'!AM337","v":6.5271632456169559},null,null,{"$f":"'[1]EXT ITCER(M)'!C337","v":77.754905526730084},{"$f":"'[1]EXT ITCER(M)'!D337","v":93.110275312537212},{"$f":"'[1]EXT ITCER(M)'!E337","v":53.634935680263759},{"$f":"'[1]EXT ITCER(M)'!F337","v":79.041439945048012},{"$f":"'[1]EXT ITCER(M)'!G337","v":102.27202480877131},{"$f":"'[1]EXT ITCER(M)'!H337","v":105.2967793739048},{"$f":"'[1]EXT ITCER(M)'!I337","v":88.888438538669732},null,null,{"$f":"'[1]EXT TC(M)'!J337","v":4.8905507193855637},{"$f":"'[1]EXT TC(M)'!K337","v":0},{"$f":"'[1]EXT TC(M)'!L337","v":-5.1055114844195604},{"$f":"'[1]EXT TC(M)'!M337","v":3.8604347436987352},{"$f":"'[1]EXT TC(M)'!N337","v":4.9565455747047462},{"$f":"'[1]EXT TC(M)'!O337","v":3.3121250125633126},{"$f":"'[1]EXT TC(M)'!P337","v":0},null,null,{"$f":"'[1]EXT RIN(M)'!C337","v":7300.6},{"$f":"'[1]EXT RIN(M)'!D337","v":3256.02},{"$f":"'[1]EXT RIN(M)'!E337","v":9792.7000000000007},{"$f":"'[1]EXT RIN(M)'!F337","v":4440.4420675162419},{"$f":"'[1]EXT RIN(M)'!G337","v":2444.3000000000002},{"$f":"'[1]EXT RIN(M)'!H337","v":6316.5},{"$f":"'[1]EXT RIN(M)'!I337","v":3797.1627938300003},null,null,{"$f":"'[1]EXT RIN(M)'!P337","v":65.190337602843911},{"$f":"'[1]EXT RIN(M)'!Q337","v":101.30355972797548},{"$f":"'[1]EXT RIN(M)'!R337","v":103.57412897941394},{"$f":"'[1]EXT RIN(M)'!S337","v":86.228945105611388},{"$f":"'[1]EXT RIN(M)'!T337","v":124.49684043751294},{"$f":"'[1]EXT RIN(M)'!U337","v":85.668890292996394},{"$f":"'[1]EXT RIN(M)'!V337","v":226.73573962664238},null,null,{"$f":"+'[1]MONE(M)CAPARD'!AE337","v":2.9083363586060247},{"$f":"'[1]MONE(M)CAPARD'!AF337","v":3.556058558558556},{"$f":"'[1]MONE(M)CAPARD'!AG337","v":1.2789685749844453},{"$f":"'[1]MONE(M)CAPARD'!AH337","v":4.0723866269447084},{"$f":"'[1]MONE(M)CAPARD'!AI337","v":6.2818807349457355},{"$f":"'[1]MONE(M)CAPARD'!AJ337","v":3.1073779457894521},{"$f":"'[1]MONE(M)CAPARD'!AK337","v":1.1229665071770336},null,null,{"$f":"'[1]MONE(M)CAPARD'!AL337","v":3.43425403},{"$f":"'[1]MONE(M)CAPARD'!AM337","v":4.45},{"$f":"'[1]MONE(M)CAPARD'!AN337","v":2.97},{"$f":"'[1]MONE(M)CAPARD'!AO337","v":3.65},{"$f":"'[1]MONE(M)CAPARD'!AP337","v":3.88},{"$f":"'[1]MONE(M)CAPARD'!AQ337","v":1.6},{"$f":"'[1]MONE(M)CAPARD'!AR337","v":2.1},null,null,{"$f":"'[1]MONE(M)CAPARD'!J337","v":12.343240236990649},{"$f":"'[1]MONE(M)CAPARD'!K337","v":5.2514234234234198},{"$f":"'[1]MONE(M)CAPARD'!L337","v":8.6380740510267611},{"$f":"'[1]MONE(M)CAPARD'!M337","v":14.994511751075791},{"$f":"'[1]MONE(M)CAPARD'!N337","v":14.812052702971187},{"$f":"'[1]MONE(M)CAPARD'!O337","v":11.009732968712321},{"$f":"'[1]MONE(M)CAPARD'!P337","v":5.3223923444976071},null,null,{"$f":"'[1]MONE(M)CAPARD'!Q337","v":9.86},{"$f":"'[1]MONE(M)CAPARD'!R337","v":6.16},{"$f":"'[1]MONE(M)CAPARD'!S337","v":5.99},{"$f":"'[1]MONE(M)CAPARD'!T337","v":8.4700000000000006},{"$f":"'[1]MONE(M)CAPARD'!U337","v":8.2899999999999991},{"$f":"'[1]MONE(M)CAPARD'!V337","v":6.13},{"$f":"'[1]MONE(M)CAPARD'!W337","v":6.34},null,null,{"$f":"'[1]MONE(M)CAPARD'!AS337","v":2.5},{"$f":"'[1]MONE(M)CAPARD'!AT337","v":"n.a."},{"$f":"'[1]MONE(M)CAPARD'!AU337","v":3},{"$f":"'[1]MONE(M)CAPARD'!AV337","v":5.5},{"$f":"'[1]MONE(M)CAPARD'!AW337","v":"n.a."},{"$f":"'[1]MONE(M)CAPARD'!AX337","v":5.75},{"$f":"'[1]MONE(M)CAPARD'!AY337","v":"n.a."},null,null,{"$f":"+'Datos_Regional (M)'!CF330","v":12.973984173829557},{"$f":"+'Datos_Regional (M)'!CG330","v":5.7896145459940485},{"$f":"+'Datos_Regional (M)'!CH330","v":6.2906006484853672},{"$f":"+'Datos_Regional (M)'!CI330","v":9.5478796180644476},{"$f":"+'Datos_Regional (M)'!CJ330","v":19.849578871134167},{"$f":"+'Datos_Regional (M)'!CK330","v":10.089263224518884},{"$f":"+'Datos_Regional (M)'!CL330","v":8.6913598363513866},null,null,880.88199635583157,457.60499999999996,897.95000000000016,345.89262938911543,418.37343684299998,830.3416666666667,973.56182999999999,3831.0447292546137,4804.606559254612,null,null,1348.3576153089502,829.07333333333293,1446.9083333333331,761.12546236819787,613.12253926666665,1473.8999999999999,1778.8343538333331,6472.4872836104814,8251.3216374438143,null,null,-2641.4425543558682,-3446.715078189201,null,null,{"$f":"'[1]EXT Comercio(M)'!C337","v":925.60127219000003},{"$f":"'[1]EXT Comercio(M)'!D337","v":446.36999999999989},{"$f":"'[1]EXT Comercio(M)'!E337","v":947.09999999999991},{"$f":"'[1]EXT Comercio(M)'!F337","v":417.14888120138204},{"$f":"'[1]EXT Comercio(M)'!G337","v":423.46047325999996},{"$f":"'[1]EXT Comercio(M)'!H337","v":798.69999999999993},{"$f":"'[1]EXT Comercio(M)'!I337","v":922.14188200000001},{"$f":"'[1]EXT Comercio(M)'!K337","v":3958.3806266513839},{"$f":"'[1]EXT Comercio(M)'!L337","v":4880.5225086513856},null,null,{"$f":"'[1]EXT Comercio(M)'!AG337","v":1204.0600932700058},{"$f":"'[1]EXT Comercio(M)'!AH337","v":825.28999999999951},{"$f":"'[1]EXT Comercio(M)'!AI337","v":1346.8},{"$f":"'[1]EXT Comercio(M)'!AJ337","v":720.59407717574993},{"$f":"'[1]EXT Comercio(M)'!AK337","v":548.30767255000001},{"$f":"'[1]EXT Comercio(M)'!AL337","v":1405.3000000000002},{"$f":"'[1]EXT Comercio(M)'!AM337","v":1582.0910039999999},{"$f":"'[1]EXT Comercio(M)'!AO337","v":6050.3518429957549},{"$f":"'[1]EXT Comercio(M)'!AP337","v":7632.4428469957529},null,null,{"$f":"'[1]EXT Comercio(M)'!$BS337","v":-2091.9712163443755},{"$f":"'[1]EXT Comercio(M)'!$BT337","v":-2751.9203383443764}]
[null,null,"Mayo ",{"$f":"'[1]REAL IPC(M)'!AD338","v":1.6711599502232679},{"$f":"'[1]REAL IPC(M)'!AE338","v":0.96249886497775572},{"$f":"'[1]REAL IPC(M)'!AF338","v":3.932946486137983},{"$f":"'[1]REAL IPC(M)'!AG338","v":4.0521978021978065},{"$f":"'[1]REAL IPC(M)'!AH338","v":2.9072008795424518},{"$f":"'[1]REAL IPC(M)'!AI338","v":3.1060543144257062},{"$f":"'[1]REAL IPC(M)'!AJ338","v":0.77145612343297698},null,null,{"$f":"'[1]REAL IMAE(M)'!AG338","v":3.3469193689301382},{"$f":"'[1]REAL IMAE(M)'!AH338","v":2.7529762356416145},{"$f":"'[1]REAL IMAE(M)'!AI338","v":3.3419630399672924},{"$f":"'[1]REAL IMAE(M)'!AJ338","v":5.8412009053088143},{"$f":"'[1]REAL IMAE(M)'!AK338","v":4.6326797089984186},{"$f":"'[1]REAL IMAE(M)'!AL338","v":4.9369220119632846},{"$f":"'[1]REAL IMAE(M)'!AM338","v":7.0223226149348879},null,null,{"$f":"'[1]EXT ITCER(M)'!C338","v":79.21203940480288},{"$f":"'[1]EXT ITCER(M)'!D338","v":92.879227550018427},{"$f":"'[1]EXT ITCER(M)'!E338","v":53.440837753576488},{"$f":"'[1]EXT ITCER(M)'!F338","v":78.772988726680083},{"$f":"'[1]EXT ITCER(M)'!G338","v":102.7209722819843},{"$f":"'[1]EXT ITCER(M)'!H338","v":105.4886085275236},{"$f":"'[1]EXT ITCER(M)'!I338","v":88.819640846336981},null,null,{"$f":"'[1]EXT TC(M)'!J338","v":6.8829942588583322},{"$f":"'[1]EXT TC(M)'!K338","v":0},{"$f":"'[1]EXT TC(M)'!L338","v":-4.0245823645518994},{"$f":"'[1]EXT TC(M)'!M338","v":3.8148737909884547},{"$f":"'[1]EXT TC(M)'!N338","v":5.0795500863547716},{"$f":"'[1]EXT TC(M)'!O338","v":3.3327876188293208},{"$f":"'[1]EXT TC(M)'!P338","v":0},null,null,{"$f":"'[1]EXT RIN(M)'!C338","v":6832.9},{"$f":"'[1]EXT RIN(M)'!D338","v":3367.89},{"$f":"'[1]EXT RIN(M)'!E338","v":9916},{"$f":"'[1]EXT RIN(M)'!F338","v":4412.9522977873821},{"$f":"'[1]EXT RIN(M)'!G338","v":2501.1},{"$f":"'[1]EXT RIN(M)'!H338","v":6087.2},{"$f":"'[1]EXT RIN(M)'!I338","v":4573.9156307900003},null,null,{"$f":"'[1]EXT RIN(M)'!P338","v":61.971745547247927},{"$f":"'[1]EXT RIN(M)'!Q338","v":107.82903417184244},{"$f":"'[1]EXT RIN(M)'!R338","v":107.39545028922142},{"$f":"'[1]EXT RIN(M)'!S338","v":87.754098600852416},{"$f":"'[1]EXT RIN(M)'!T338","v":130.63606781407998},{"$f":"'[1]EXT RIN(M)'!U338","v":86.21737619120762},{"$f":"'[1]EXT RIN(M)'!V338","v":274.77050770350326},null,null,{"$f":"+'[1]MONE(M)CAPARD'!AE338","v":2.8315208080503562},{"$f":"'[1]MONE(M)CAPARD'!AF338","v":3.4938726504182016},{"$f":"'[1]MONE(M)CAPARD'!AG338","v":1.4211600496277843},{"$f":"'[1]MONE(M)CAPARD'!AH338","v":4.1112079207920749},{"$f":"'[1]MONE(M)CAPARD'!AI338","v":5.7767629515751784},{"$f":"'[1]MONE(M)CAPARD'!AJ338","v":3.9027249295207471},{"$f":"'[1]MONE(M)CAPARD'!AK338","v":1.3580669856459362},null,null,{"$f":"'[1]MONE(M)CAPARD'!AL338","v":3.38393415},{"$f":"'[1]MONE(M)CAPARD'!AM338","v":4.49},{"$f":"'[1]MONE(M)CAPARD'!AN338","v":2.95},{"$f":"'[1]MONE(M)CAPARD'!AO338","v":3.54},{"$f":"'[1]MONE(M)CAPARD'!AP338","v":3.72},{"$f":"'[1]MONE(M)CAPARD'!AQ338","v":2.2799999999999998},{"$f":"'[1]MONE(M)CAPARD'!AR338","v":2.14},null,null,{"$f":"'[1]MONE(M)CAPARD'!J338","v":12.273726448961723},{"$f":"'[1]MONE(M)CAPARD'!K338","v":5.2668081662019945},{"$f":"'[1]MONE(M)CAPARD'!L338","v":8.7624317617865923},{"$f":"'[1]MONE(M)CAPARD'!M338","v":14.89425742574257},{"$f":"'[1]MONE(M)CAPARD'!N338","v":14.507251640019687},{"$f":"'[1]MONE(M)CAPARD'!O338","v":11.167089810712852},{"$f":"'[1]MONE(M)CAPARD'!P338","v":5.5358373205741653},null,null,{"$f":"'[1]MONE(M)CAPARD'!Q338","v":9.3800000000000008},{"$f":"'[1]MONE(M)CAPARD'!R338","v":6.28},{"$f":"'[1]MONE(M)CAPARD'!S338","v":5.99},{"$f":"'[1]MONE(M)CAPARD'!T338","v":8.44},{"$f":"'[1]MONE(M)CAPARD'!U338","v":8.19},{"$f":"'[1]MONE(M)CAPARD'!V338","v":5.97},{"$f":"'[1]MONE(M)CAPARD'!W338","v":6.35},null,null,{"$f":"'[1]MONE(M)CAPARD'!AS338","v":4},{"$f":"'[1]MONE(M)CAPARD'!AT338","v":"n.a."},{"$f":"'[1]MONE(M)CAPARD'!AU338","v":3},{"$f":"'[1]MONE(M)CAPARD'!AV338","v":5.5},{"$f":"'[1]MONE(M)CAPARD'!AW338","v":"n.a."},{"$f":"'[1]MONE(M)CAPARD'!AX338","v":5.75},{"$f":"'[1]MONE(M)CAPARD'!AY338","v":"n.a."},null,null,{"$f":"+'Datos_Regional (M)'!CF331","v":12.55513185252417},{"$f":"+'Datos_Regional (M)'!CG331","v":5.8366157353246573},{"$f":"+'Datos_Regional (M)'!CH331","v":5.7952308775477634},{"$f":"+'Datos_Regional (M)'!CI331","v":10.11102726550963},{"$f":"+'Datos_Regional (M)'!CJ331","v":19.460248583226083},{"$f":"+'Datos_Regional (M)'!CK331","v":11.976229907956881},{"$f":"+'Datos_Regional (M)'!CL331","v":8.4323679717247515},null,null,885.24054067999839,458.99916666666655,903.05000000000007,353.96037766418357,421.2764602433333,843.75833333333355,969.99499733333323,3866.2848785875144,4836.2798759208472,null,null,1358.3473298389508,836.48166666666646,1457.8916666666667,770.69350158764746,617.00588211666661,1477.5916666666669,1805.467686916666,6518.0117135432665,8323.4794004599316,null,null,-2651.7268349557503,-3487.1995245390831,null,null,{"$f":"'[1]EXT Comercio(M)'!C338","v":1033.4811369700001},{"$f":"'[1]EXT Comercio(M)'!D338","v":507.97999999999979},{"$f":"'[1]EXT Comercio(M)'!E338","v":978},{"$f":"'[1]EXT Comercio(M)'!F338","v":463.61567799370096},{"$f":"'[1]EXT Comercio(M)'!G338","v":459.93595424},{"$f":"'[1]EXT Comercio(M)'!H338","v":943.69999999999993},{"$f":"'[1]EXT Comercio(M)'!I338","v":1148.6238589999998},{"$f":"'[1]EXT Comercio(M)'!K338","v":4386.7127692036956},{"$f":"'[1]EXT Comercio(M)'!L338","v":5535.336628203695},null,null,{"$f":"'[1]EXT Comercio(M)'!AG338","v":1491.3923970399983},{"$f":"'[1]EXT Comercio(M)'!AH338","v":917.2800000000002},{"$f":"'[1]EXT Comercio(M)'!AI338","v":1555.9},{"$f":"'[1]EXT Comercio(M)'!AJ338","v":846.28259514611079},{"$f":"'[1]EXT Comercio(M)'!AK338","v":661.66942240999992},{"$f":"'[1]EXT Comercio(M)'!AL338","v":1506.4},{"$f":"'[1]EXT Comercio(M)'!AM338","v":2108.29151},{"$f":"'[1]EXT Comercio(M)'!AO338","v":6978.9244145961056},{"$f":"'[1]EXT Comercio(M)'!AP338","v":9087.2159245961047},null,null,{"$f":"'[1]EXT Comercio(M)'!$BS338","v":-2592.2116453924082},{"$f":"'[1]EXT Comercio(M)'!$BT338","v":-3551.8792963924079}]
[null,null,"Junio",{"$f":"'[1]REAL IPC(M)'!AD339","v":1.7743170392902428},{"$f":"'[1]REAL IPC(M)'!AE339","v":0.92525399129173636},{"$f":"'[1]REAL IPC(M)'!AF339","v":4.3649201636845048},{"$f":"'[1]REAL IPC(M)'!AG339","v":3.6506311838962766},{"$f":"'[1]REAL IPC(M)'!AH339","v":3.06106757003983},{"$f":"'[1]REAL IPC(M)'!AI339","v":2.5509782877899596},{"$f":"'[1]REAL IPC(M)'!AJ339","v":0.67567567567567854},null,null,{"$f":"'[1]REAL IMAE(M)'!AG339","v":3.0551031133091366},{"$f":"'[1]REAL IMAE(M)'!AH339","v":2.6230438386574817},{"$f":"'[1]REAL IMAE(M)'!AI339","v":3.2053906104048164},{"$f":"'[1]REAL IMAE(M)'!AJ339","v":6.0101337764484448},{"$f":"'[1]REAL IMAE(M)'!AK339","v":4.112244652103354},{"$f":"'[1]REAL IMAE(M)'!AL339","v":4.5379943446142255},{"$f":"'[1]REAL IMAE(M)'!AM339","v":5.1042391700639804},null,null,{"$f":"'[1]EXT ITCER(M)'!C339","v":78.689821661329717},{"$f":"'[1]EXT ITCER(M)'!D339","v":92.881276628820515},{"$f":"'[1]EXT ITCER(M)'!E339","v":53.033643010716872},{"$f":"'[1]EXT ITCER(M)'!F339","v":78.527047096738073},{"$f":"'[1]EXT ITCER(M)'!G339","v":103.3413340480579},{"$f":"'[1]EXT ITCER(M)'!H339","v":105.6607748796818},{"$f":"'[1]EXT ITCER(M)'!I339","v":89.047944958962162},null,null,{"$f":"'[1]EXT TC(M)'!J339","v":5.0329000240165085},{"$f":"'[1]EXT TC(M)'!K339","v":0},{"$f":"'[1]EXT TC(M)'!L339","v":-3.9297570035111007},{"$f":"'[1]EXT TC(M)'!M339","v":3.0867393031945807},{"$f":"'[1]EXT TC(M)'!N339","v":5.2747878027508825},{"$f":"'[1]EXT TC(M)'!O339","v":3.3711833808639207},{"$f":"'[1]EXT TC(M)'!P339","v":0},null,null,{"$f":"'[1]EXT RIN(M)'!C339","v":6812.6},{"$f":"'[1]EXT RIN(M)'!D339","v":3282.88},{"$f":"'[1]EXT RIN(M)'!E339","v":10793.9},{"$f":"'[1]EXT RIN(M)'!F339","v":4522.4190168291079},{"$f":"'[1]EXT RIN(M)'!G339","v":2521.6},{"$f":"'[1]EXT RIN(M)'!H339","v":6512.7857449028688},{"$f":"'[1]EXT RIN(M)'!I339","v":4337.6371392700003},null,null,{"$f":"'[1]EXT RIN(M)'!P339","v":61.267789064762056},{"$f":"'[1]EXT RIN(M)'!Q339","v":105.92737433772803},{"$f":"'[1]EXT RIN(M)'!R339","v":112.25872668115838},{"$f":"'[1]EXT RIN(M)'!S339","v":88.11569946313719},{"$f":"'[1]EXT RIN(M)'!T339","v":132.6322195101616},{"$f":"'[1]EXT RIN(M)'!U339","v":93.608941854442449},{"$f":"'[1]EXT RIN(M)'!V339","v":250.72276883254472},null,null,{"$f":"+'[1]MONE(M)CAPARD'!AE339","v":3.857243236713872},{"$f":"'[1]MONE(M)CAPARD'!AF339","v":3.6905985978788336},{"$f":"'[1]MONE(M)CAPARD'!AG339","v":0.99178903667256257},{"$f":"'[1]MONE(M)CAPARD'!AH339","v":4.2444206714944093},{"$f":"'[1]MONE(M)CAPARD'!AI339","v":6.2849621990578468},{"$f":"'[1]MONE(M)CAPARD'!AJ339","v":4.4846200289808591},{"$f":"'[1]MONE(M)CAPARD'!AK339","v":1.4842953020134197},null,null,{"$f":"'[1]MONE(M)CAPARD'!AL339","v":3.2246542300000001},{"$f":"'[1]MONE(M)CAPARD'!AM339","v":4.6500000000000004},{"$f":"'[1]MONE(M)CAPARD'!AN339","v":2.97},{"$f":"'[1]MONE(M)CAPARD'!AO339","v":3.55},{"$f":"'[1]MONE(M)CAPARD'!AP339","v":3.46},{"$f":"'[1]MONE(M)CAPARD'!AQ339","v":1.82},{"$f":"'[1]MONE(M)CAPARD'!AR339","v":2.17},null,null,{"$f":"'[1]MONE(M)CAPARD'!J339","v":12.739641333780035},{"$f":"'[1]MONE(M)CAPARD'!K339","v":5.5137300017975823},{"$f":"'[1]MONE(M)CAPARD'!L339","v":8.3218382409471836},{"$f":"'[1]MONE(M)CAPARD'!M339","v":15.185019749835423},{"$f":"'[1]MONE(M)CAPARD'!N339","v":14.681525286768133},{"$f":"'[1]MONE(M)CAPARD'!O339","v":10.33536870069234},{"$f":"'[1]MONE(M)CAPARD'!P339","v":5.6362416107382511},null,null,{"$f":"'[1]MONE(M)CAPARD'!Q339","v":9.67},{"$f":"'[1]MONE(M)CAPARD'!R339","v":6.49},{"$f":"'[1]MONE(M)CAPARD'!S339","v":6},{"$f":"'[1]MONE(M)CAPARD'!T339","v":8.42},{"$f":"'[1]MONE(M)CAPARD'!U339","v":7.98},{"$f":"'[1]MONE(M)CAPARD'!V339","v":5.6},{"$f":"'[1]MONE(M)CAPARD'!W339","v":6.35},null,null,{"$f":"'[1]MONE(M)CAPARD'!AS339","v":4.5},{"$f":"'[1]MONE(M)CAPARD'!AT339","v":"n.a."},{"$f":"'[1]MONE(M)CAPARD'!AU339","v":3},{"$f":"'[1]MONE(M)CAPARD'!AV339","v":5.5},{"$f":"'[1]MONE(M)CAPARD'!AW339","v":"n.a."},{"$f":"'[1]MONE(M)CAPARD'!AX339","v":5.75},{"$f":"'[1]MONE(M)CAPARD'!AY339","v":"n.a."},null,null,{"$f":"+'Datos_Regional (M)'!CF332","v":11.803441740761356},{"$f":"+'Datos_Regional (M)'!CG332","v":6.0126735806858234},{"$f":"+'Datos_Regional (M)'!CH332","v":5.423674761916164},{"$f":"+'Datos_Regional (M)'!CI332","v":10.130169843907799},{"$f":"+'Datos_Regional (M)'!CJ332","v":17.842685530252389},{"$f":"+'Datos_Regional (M)'!CK332","v":12.204381557498213},{"$f":"+'Datos_Regional (M)'!CL332","v":8.1733224238083935},null,null,894.91594539499874,461.565,903.3416666666667,359.00591067787701,426.42646554999993,843.15000000000009,962.47588683333333,3888.404988289542,4850.8808751228753,null,null,1358.9310719647849,837.16999999999973,1460.7833333333335,777.68526942187384,620.49279954666667,1475.8416666666665,1805.3282388333328,6530.9041409333258,8336.2323797666595,null,null,-2642.499152643783,-3485.3515046437838,null,null,{"$f":"'[1]EXT Comercio(M)'!C339","v":997.70460120000098},{"$f":"'[1]EXT Comercio(M)'!D339","v":493.35000000000036},{"$f":"'[1]EXT Comercio(M)'!E339","v":901.09999999999991},{"$f":"'[1]EXT Comercio(M)'!F339","v":420.96327182343003},{"$f":"'[1]EXT Comercio(M)'!G339","v":464.98040143999998},{"$f":"'[1]EXT Comercio(M)'!H339","v":866.3},{"$f":"'[1]EXT Comercio(M)'!I339","v":909.66676700000005},{"$f":"'[1]EXT Comercio(M)'!K339","v":4144.3982744634341},{"$f":"'[1]EXT Comercio(M)'!L339","v":5054.0650414634329},null,null,{"$f":"'[1]EXT Comercio(M)'!AG339","v":1400.5672656099996},{"$f":"'[1]EXT Comercio(M)'!AH339","v":873.05000000000018},{"$f":"'[1]EXT Comercio(M)'!AI339","v":1510},{"$f":"'[1]EXT Comercio(M)'!AJ339","v":843.17590032931503},{"$f":"'[1]EXT Comercio(M)'!AK339","v":670.76337287000001},{"$f":"'[1]EXT Comercio(M)'!AL339","v":1444.7000000000003},{"$f":"'[1]EXT Comercio(M)'!AM339","v":1818.8681200000001},{"$f":"'[1]EXT Comercio(M)'!AO339","v":6742.2565388093208},{"$f":"'[1]EXT Comercio(M)'!AP339","v":8561.12465880932},null,null,{"$f":"'[1]EXT Comercio(M)'!$BS339","v":-2597.8582643458813},{"$f":"'[1]EXT Comercio(M)'!$BT339","v":-3507.0596173458835}]
[null,null,"Julio",{"$f":"'[1]REAL IPC(M)'!AD340","v":1.1631081312736706},{"$f":"'[1]REAL IPC(M)'!AE340","v":1.0170722847802309},{"$f":"'[1]REAL IPC(M)'!AF340","v":5.2195394055303188},{"$f":"'[1]REAL IPC(M)'!AG340","v":3.639455782312921},{"$f":"'[1]REAL IPC(M)'!AH340","v":3.1288235822280464},{"$f":"'[1]REAL IPC(M)'!AI340","v":2.5379037574159393},{"$f":"'[1]REAL IPC(M)'!AJ340","v":0.38572806171648166},null,null,{"$f":"'[1]REAL IMAE(M)'!AG340","v":2.6727139055138993},{"$f":"'[1]REAL IMAE(M)'!AH340","v":1.8288352003528949},{"$f":"'[1]REAL IMAE(M)'!AI340","v":3.0807849927374025},{"$f":"'[1]REAL IMAE(M)'!AJ340","v":5.9410243177325874},{"$f":"'[1]REAL IMAE(M)'!AK340","v":3.8119065925330329},{"$f":"'[1]REAL IMAE(M)'!AL340","v":4.329634484435064},{"$f":"'[1]REAL IMAE(M)'!AM340","v":5.0055726742280147},null,null,{"$f":"'[1]EXT ITCER(M)'!C340","v":79.090691431278074},{"$f":"'[1]EXT ITCER(M)'!D340","v":92.928413906628919},{"$f":"'[1]EXT ITCER(M)'!E340","v":51.955649227841747},{"$f":"'[1]EXT ITCER(M)'!F340","v":78.291606479574455},{"$f":"'[1]EXT ITCER(M)'!G340","v":103.3426416040534},{"$f":"'[1]EXT ITCER(M)'!H340","v":105.5726246340859},{"$f":"'[1]EXT ITCER(M)'!I340","v":89.248259116968086},null,null,{"$f":"'[1]EXT TC(M)'!J340","v":4.9499793130750174},{"$f":"'[1]EXT TC(M)'!K340","v":0},{"$f":"'[1]EXT TC(M)'!L340","v":-3.9205312342911496},{"$f":"'[1]EXT TC(M)'!M340","v":2.6074363434010017},{"$f":"'[1]EXT TC(M)'!N340","v":4.9531912196147294},{"$f":"'[1]EXT TC(M)'!O340","v":3.298167684619651},{"$f":"'[1]EXT TC(M)'!P340","v":0},null,null,{"$f":"'[1]EXT RIN(M)'!C340","v":6865.4},{"$f":"'[1]EXT RIN(M)'!D340","v":3323.66},{"$f":"'[1]EXT RIN(M)'!E340","v":11024.9},{"$f":"'[1]EXT RIN(M)'!F340","v":4472.8121381178662},{"$f":"'[1]EXT RIN(M)'!G340","v":2572},{"$f":"'[1]EXT RIN(M)'!H340","v":6248.7458037199667},{"$f":"'[1]EXT RIN(M)'!I340","v":3909.6115338700001},null,null,{"$f":"'[1]EXT RIN(M)'!P340","v":63.026444678724978},{"$f":"'[1]EXT RIN(M)'!Q340","v":104.12788362549978},{"$f":"'[1]EXT RIN(M)'!R340","v":111.13590273592003},{"$f":"'[1]EXT RIN(M)'!S340","v":87.125828833093848},{"$f":"'[1]EXT RIN(M)'!T340","v":129.74927490291466},{"$f":"'[1]EXT RIN(M)'!U340","v":83.773793607274456},{"$f":"'[1]EXT RIN(M)'!V340","v":222.47815299021622},null,null,{"$f":"+'[1]MONE(M)CAPARD'!AE340","v":4.7318552752596821},{"$f":"'[1]MONE(M)CAPARD'!AF340","v":3.5567529665588009},{"$f":"'[1]MONE(M)CAPARD'!AG340","v":0.14299681914571574},{"$f":"'[1]MONE(M)CAPARD'!AH340","v":4.4486380045946872},{"$f":"'[1]MONE(M)CAPARD'!AI340","v":5.3716414229665483},{"$f":"'[1]MONE(M)CAPARD'!AJ340","v":3.2398714239794413},{"$f":"'[1]MONE(M)CAPARD'!AK340","v":1.7276080691642737},null,null,{"$f":"'[1]MONE(M)CAPARD'!AL340","v":3.2197600300000002},{"$f":"'[1]MONE(M)CAPARD'!AM340","v":4.6100000000000003},{"$f":"'[1]MONE(M)CAPARD'!AN340","v":2.95},{"$f":"'[1]MONE(M)CAPARD'!AO340","v":3.57},{"$f":"'[1]MONE(M)CAPARD'!AP340","v":3.69},{"$f":"'[1]MONE(M)CAPARD'!AQ340","v":1.62},{"$f":"'[1]MONE(M)CAPARD'!AR340","v":2.12},null,null,{"$f":"'[1]MONE(M)CAPARD'!J340","v":13.974355009319881},{"$f":"'[1]MONE(M)CAPARD'!K340","v":5.2495361380798364},{"$f":"'[1]MONE(M)CAPARD'!L340","v":7.4515252953650428},{"$f":"'[1]MONE(M)CAPARD'!M340","v":15.158844765342964},{"$f":"'[1]MONE(M)CAPARD'!N340","v":12.149458033715607},{"$f":"'[1]MONE(M)CAPARD'!O340","v":10.83706203792994},{"$f":"'[1]MONE(M)CAPARD'!P340","v":5.9513160422670595},null,null,{"$f":"'[1]MONE(M)CAPARD'!Q340","v":9.6300000000000008},{"$f":"'[1]MONE(M)CAPARD'!R340","v":6.32},{"$f":"'[1]MONE(M)CAPARD'!S340","v":6.04},{"$f":"'[1]MONE(M)CAPARD'!T340","v":8.41},{"$f":"'[1]MONE(M)CAPARD'!U340","v":8.25},{"$f":"'[1]MONE(M)CAPARD'!V340","v":5.34},{"$f":"'[1]MONE(M)CAPARD'!W340","v":6.36},null,null,{"$f":"'[1]MONE(M)CAPARD'!AS340","v":4.5},{"$f":"'[1]MONE(M)CAPARD'!AT340","v":"n.a."},{"$f":"'[1]MONE(M)CAPARD'!AU340","v":3},{"$f":"'[1]MONE(M)CAPARD'!AV340","v":5.5},{"$f":"'[1]MONE(M)CAPARD'!AW340","v":"n.a."},{"$f":"'[1]MONE(M)CAPARD'!AX340","v":5.75},{"$f":"'[1]MONE(M)CAPARD'!AY340","v":"n.a."},null,null,{"$f":"+'Datos_Regional (M)'!CF333","v":10.863085855147192},{"$f":"+'Datos_Regional (M)'!CG333","v":6.3106444127771777},{"$f":"+'Datos_Regional (M)'!CH333","v":5.2448250545585662},{"$f":"+'Datos_Regional (M)'!CI333","v":10.287112272270127},{"$f":"+'Datos_Regional (M)'!CJ333","v":18.20912093683782},{"$f":"+'Datos_Regional (M)'!CK333","v":10.360419246699237},{"$f":"+'Datos_Regional (M)'!CL333","v":10.396929639907704},null,null,901.74499135666565,466.45416666666671,908.47500000000025,366.78220409742613,428.57922429833326,840.62499999999989,963.07587041666682,3912.6605864190919,4875.736456835758,null,null,1354.9262477839518,841.9991666666665,1477.9916666666668,781.42324381221795,620.91706312166673,1480.575,1809.9783749999999,6557.8323880511707,8367.8107630511677,null,null,-2645.1718016320783,-3492.0743062154111,null,null,{"$f":"'[1]EXT Comercio(M)'!C340","v":894.46138889000201},{"$f":"'[1]EXT Comercio(M)'!D340","v":549.80999999999995},{"$f":"'[1]EXT Comercio(M)'!E340","v":906.2},{"$f":"'[1]EXT Comercio(M)'!F340","v":385.35585310940513},{"$f":"'[1]EXT Comercio(M)'!G340","v":439.33153406999998},{"$f":"'[1]EXT Comercio(M)'!H340","v":819.8},{"$f":"'[1]EXT Comercio(M)'!I340","v":927.41128100000003},{"$f":"'[1]EXT Comercio(M)'!K340","v":3994.9587760694085},{"$f":"'[1]EXT Comercio(M)'!L340","v":4922.3700570694054},null,null,{"$f":"'[1]EXT Comercio(M)'!AG340","v":1215.9743416800029},{"$f":"'[1]EXT Comercio(M)'!AH340","v":880.27999999999975},{"$f":"'[1]EXT Comercio(M)'!AI340","v":1518},{"$f":"'[1]EXT Comercio(M)'!AJ340","v":783.61121030921311},{"$f":"'[1]EXT Comercio(M)'!AK340","v":638.29747089},{"$f":"'[1]EXT Comercio(M)'!AL340","v":1467.6},{"$f":"'[1]EXT Comercio(M)'!AM340","v":1837.3985269999998},{"$f":"'[1]EXT Comercio(M)'!AO340","v":6503.7630228792113},{"$f":"'[1]EXT Comercio(M)'!AP340","v":8341.1615498792162},null,null,{"$f":"'[1]EXT Comercio(M)'!$BS340","v":-2508.8042468098101},{"$f":"'[1]EXT Comercio(M)'!$BT340","v":-3418.7914928098107}]
[null,null,"Agosto",{"$f":"'[1]REAL IPC(M)'!AD341","v":0.90944211777957451},{"$f":"'[1]REAL IPC(M)'!AE341","v":1.1379153390987711},{"$f":"'[1]REAL IPC(M)'!AF341","v":4.7168310531339541},{"$f":"'[1]REAL IPC(M)'!AG341","v":3.8383152173913082},{"$f":"'[1]REAL IPC(M)'!AH341","v":3.4704581014840974},{"$f":"'[1]REAL IPC(M)'!AI341","v":3.1824552724874091},{"$f":"'[1]REAL IPC(M)'!AJ341","v":0.67502410800386003},null,null,{"$f":"'[1]REAL IMAE(M)'!AG341","v":2.4259087834716442},{"$f":"'[1]REAL IMAE(M)'!AH341","v":1.4616105166470603},{"$f":"'[1]REAL IMAE(M)'!AI341","v":2.8218683423043398},{"$f":"'[1]REAL IMAE(M)'!AJ341","v":5.6661027056314079},{"$f":"'[1]REAL IMAE(M)'!AK341","v":3.7607758028558167},{"$f":"'[1]REAL IMAE(M)'!AL341","v":4.4030762305111857},{"$f":"'[1]REAL IMAE(M)'!AM341","v":5.2435801220347811},null,null,{"$f":"'[1]EXT ITCER(M)'!C341","v":80.000664889578943},{"$f":"'[1]EXT ITCER(M)'!D341","v":93.403612823317928},{"$f":"'[1]EXT ITCER(M)'!E341","v":52.127800629020882},{"$f":"'[1]EXT ITCER(M)'!F341","v":78.12645777329179},{"$f":"'[1]EXT ITCER(M)'!G341","v":104.1722699019288},{"$f":"'[1]EXT ITCER(M)'!H341","v":105.45899397782171},{"$f":"'[1]EXT ITCER(M)'!I341","v":89.334294766682874},null,null,{"$f":"'[1]EXT TC(M)'!J341","v":5.047805815875436},{"$f":"'[1]EXT TC(M)'!K341","v":0},{"$f":"'[1]EXT TC(M)'!L341","v":-3.4680366238288949},{"$f":"'[1]EXT TC(M)'!M341","v":2.1116085759820318},{"$f":"'[1]EXT TC(M)'!N341","v":4.8709454471570037},{"$f":"'[1]EXT TC(M)'!O341","v":3.3405090320207256},{"$f":"'[1]EXT TC(M)'!P341","v":0},null,null,{"$f":"'[1]EXT RIN(M)'!C341","v":6868.5},{"$f":"'[1]EXT RIN(M)'!D341","v":3262.97},{"$f":"'[1]EXT RIN(M)'!E341","v":11277.9},{"$f":"'[1]EXT RIN(M)'!F341","v":4470.4148977895729},{"$f":"'[1]EXT RIN(M)'!G341","v":2518.4},{"$f":"'[1]EXT RIN(M)'!H341","v":6279.1282342772065},{"$f":"'[1]EXT RIN(M)'!I341","v":3571.3758189099999},null,null,{"$f":"'[1]EXT RIN(M)'!P341","v":62.775593092606684},{"$f":"'[1]EXT RIN(M)'!Q341","v":102.96070764917053},{"$f":"'[1]EXT RIN(M)'!R341","v":112.83118126912206},{"$f":"'[1]EXT RIN(M)'!S341","v":86.938338320046597},{"$f":"'[1]EXT RIN(M)'!T341","v":129.57379318287451},{"$f":"'[1]EXT RIN(M)'!U341","v":82.653808032321834},{"$f":"'[1]EXT RIN(M)'!V341","v":198.50845450805906},null,null,{"$f":"+'[1]MONE(M)CAPARD'!AE341","v":4.9951300655662951},{"$f":"'[1]MONE(M)CAPARD'!AF341","v":3.3638073807380739},{"$f":"'[1]MONE(M)CAPARD'!AG341","v":0.60464868970755203},{"$f":"'[1]MONE(M)CAPARD'!AH341","v":4.2100883218841973},{"$f":"'[1]MONE(M)CAPARD'!AI341","v":6.3299717497185393},{"$f":"'[1]MONE(M)CAPARD'!AJ341","v":2.9244746304434854},{"$f":"'[1]MONE(M)CAPARD'!AK341","v":1.3955555555555528},null,null,{"$f":"'[1]MONE(M)CAPARD'!AL341","v":3.0750366200000001},{"$f":"'[1]MONE(M)CAPARD'!AM341","v":4.54},{"$f":"'[1]MONE(M)CAPARD'!AN341","v":2.95},{"$f":"'[1]MONE(M)CAPARD'!AO341","v":3.5},{"$f":"'[1]MONE(M)CAPARD'!AP341","v":3.42},{"$f":"'[1]MONE(M)CAPARD'!AQ341","v":1.84},{"$f":"'[1]MONE(M)CAPARD'!AR341","v":2.08},null,null,{"$f":"'[1]MONE(M)CAPARD'!J341","v":13.725730309810174},{"$f":"'[1]MONE(M)CAPARD'!K341","v":5.2918676867686774},{"$f":"'[1]MONE(M)CAPARD'!L341","v":7.9673619445499382},{"$f":"'[1]MONE(M)CAPARD'!M341","v":14.957566241413147},{"$f":"'[1]MONE(M)CAPARD'!N341","v":12.178069519195974},{"$f":"'[1]MONE(M)CAPARD'!O341","v":9.9702461046744091},{"$f":"'[1]MONE(M)CAPARD'!P341","v":5.6369252873563189},null,null,{"$f":"'[1]MONE(M)CAPARD'!Q341","v":9.39},{"$f":"'[1]MONE(M)CAPARD'!R341","v":6.49},{"$f":"'[1]MONE(M)CAPARD'!S341","v":6.03},{"$f":"'[1]MONE(M)CAPARD'!T341","v":8.36},{"$f":"'[1]MONE(M)CAPARD'!U341","v":7.92},{"$f":"'[1]MONE(M)CAPARD'!V341","v":5.78},{"$f":"'[1]MONE(M)CAPARD'!W341","v":6.35},null,null,{"$f":"'[1]MONE(M)CAPARD'!AS341","v":4.5},{"$f":"'[1]MONE(M)CAPARD'!AT341","v":"n.a."},{"$f":"'[1]MONE(M)CAPARD'!AU341","v":3},{"$f":"'[1]MONE(M)CAPARD'!AV341","v":5.5},{"$f":"'[1]MONE(M)CAPARD'!AW341","v":"n.a."},{"$f":"'[1]MONE(M)CAPARD'!AX341","v":5.25},{"$f":"'[1]MONE(M)CAPARD'!AY341","v":"n.a."},null,null,{"$f":"+'Datos_Regional (M)'!CF334","v":10.714018522709567},{"$f":"+'Datos_Regional (M)'!CG334","v":5.6571453951479889},{"$f":"+'Datos_Regional (M)'!CH334","v":4.7731888380598608},{"$f":"+'Datos_Regional (M)'!CI334","v":10.496947308193505},{"$f":"+'Datos_Regional (M)'!CJ334","v":17.967551796968607},{"$f":"+'Datos_Regional (M)'!CK334","v":10.374183581692753},{"$f":"+'Datos_Regional (M)'!CL334","v":8.122368683310599},null,null,909.26810702749947,469.74166666666662,908.63333333333355,368.62800536641083,427.29625412416658,839.30833333333328,954.17760550000014,3922.8756998514109,4877.05330535141,null,null,1359.9144899272849,850.89666666666653,1484.9666666666665,785.72353040875942,623.57773376083344,1480.9583333333333,1797.1376067499998,6586.0374207635468,8383.1750275135437,null,null,-2663.1617209121346,-3506.121722162135,null,null,{"$f":"'[1]EXT Comercio(M)'!C341","v":895.41632782000102},{"$f":"'[1]EXT Comercio(M)'!D341","v":478.75},{"$f":"'[1]EXT Comercio(M)'!E341","v":890.4},{"$f":"'[1]EXT Comercio(M)'!F341","v":339.48103368007844},{"$f":"'[1]EXT Comercio(M)'!G341","v":433.25307783999995},{"$f":"'[1]EXT Comercio(M)'!H341","v":874.10000000000014},{"$f":"'[1]EXT Comercio(M)'!I341","v":865.94033100000001},{"$f":"'[1]EXT Comercio(M)'!K341","v":3911.4004393400792},{"$f":"'[1]EXT Comercio(M)'!L341","v":4777.3407703400808},null,null,{"$f":"'[1]EXT Comercio(M)'!AG341","v":1435.4644030899933},{"$f":"'[1]EXT Comercio(M)'!AH341","v":936.54000000000087},{"$f":"'[1]EXT Comercio(M)'!AI341","v":1600.1},{"$f":"'[1]EXT Comercio(M)'!AJ341","v":849.36307567980009},{"$f":"'[1]EXT Comercio(M)'!AK341","v":678.12572284999987},{"$f":"'[1]EXT Comercio(M)'!AL341","v":1587},{"$f":"'[1]EXT Comercio(M)'!AM341","v":1863.9844579999999},{"$f":"'[1]EXT Comercio(M)'!AO341","v":7086.5932016197985},{"$f":"'[1]EXT Comercio(M)'!AP341","v":8950.5776596198048},null,null,{"$f":"'[1]EXT Comercio(M)'!$BS341","v":-3175.192762279712},{"$f":"'[1]EXT Comercio(M)'!$BT341","v":-4173.2368892797131}]
[null,null,"Setiembre",{"$f":"'[1]REAL IPC(M)'!AD342","v":1.6412002719537446},{"$f":"'[1]REAL IPC(M)'!AE342","v":1.5615012327641253},{"$f":"'[1]REAL IPC(M)'!AF342","v":4.3599553642595357},{"$f":"'[1]REAL IPC(M)'!AG342","v":3.6622583926754873},{"$f":"'[1]REAL IPC(M)'!AH342","v":4.1228479442557164},{"$f":"'[1]REAL IPC(M)'!AI342","v":3.7992417999010977},{"$f":"'[1]REAL IPC(M)'!AJ342","v":0.76997112608276908},null,null,{"$f":"'[1]REAL IMAE(M)'!AG342","v":2.414963825555783},{"$f":"'[1]REAL IMAE(M)'!AH342","v":1.3310317702023005},{"$f":"'[1]REAL IMAE(M)'!AI342","v":2.4055182875773014},{"$f":"'[1]REAL IMAE(M)'!AJ342","v":5.2402951580481849},{"$f":"'[1]REAL IMAE(M)'!AK342","v":3.8358371447917561},{"$f":"'[1]REAL IMAE(M)'!AL342","v":4.7918300893261465},{"$f":"'[1]REAL IMAE(M)'!AM342","v":4.5123773633941866},null,null,{"$f":"'[1]EXT ITCER(M)'!C342","v":80.378139931933759},{"$f":"'[1]EXT ITCER(M)'!D342","v":93.77927634279871},{"$f":"'[1]EXT ITCER(M)'!E342","v":52.898590312267679},{"$f":"'[1]EXT ITCER(M)'!F342","v":78.560843743945853},{"$f":"'[1]EXT ITCER(M)'!G342","v":104.8779721599645},{"$f":"'[1]EXT ITCER(M)'!H342","v":105.64591471443219},{"$f":"'[1]EXT ITCER(M)'!I342","v":89.533191223952628},null,null,{"$f":"'[1]EXT TC(M)'!J342","v":4.9637135800056491},{"$f":"'[1]EXT TC(M)'!K342","v":0},{"$f":"'[1]EXT TC(M)'!L342","v":-2.9320395592215975},{"$f":"'[1]EXT TC(M)'!M342","v":1.8168722189277169},{"$f":"'[1]EXT TC(M)'!N342","v":4.8760778750159774},{"$f":"'[1]EXT TC(M)'!O342","v":3.3452473182683256},{"$f":"'[1]EXT TC(M)'!P342","v":0},null,null,{"$f":"'[1]EXT RIN(M)'!C342","v":6898.1},{"$f":"'[1]EXT RIN(M)'!D342","v":3320.04},{"$f":"'[1]EXT RIN(M)'!E342","v":11268.4},{"$f":"'[1]EXT RIN(M)'!F342","v":4516.842434066446},{"$f":"'[1]EXT RIN(M)'!G342","v":2492.9},{"$f":"'[1]EXT RIN(M)'!H342","v":6169.144841569394},{"$f":"'[1]EXT RIN(M)'!I342","v":3571.3758189099999},null,null,{"$f":"'[1]EXT RIN(M)'!P342","v":63.173052271464705},{"$f":"'[1]EXT RIN(M)'!Q342","v":103.41724461777353},{"$f":"'[1]EXT RIN(M)'!R342","v":111.23655207106931},{"$f":"'[1]EXT RIN(M)'!S342","v":87.341399988178551},{"$f":"'[1]EXT RIN(M)'!T342","v":132.42813668508035},{"$f":"'[1]EXT RIN(M)'!U342","v":81.028453650831338},{"$f":"'[1]EXT RIN(M)'!V342","v":198.50841451299249},null,null,{"$f":"+'[1]MONE(M)CAPARD'!AE342","v":4.1408402466569516},{"$f":"'[1]MONE(M)CAPARD'!AF342","v":3.0213208056105074},{"$f":"'[1]MONE(M)CAPARD'!AG342","v":0.94868250210034832},{"$f":"'[1]MONE(M)CAPARD'!AH342","v":4.3291952894995056},{"$f":"'[1]MONE(M)CAPARD'!AI342","v":5.497694439841565},{"$f":"'[1]MONE(M)CAPARD'!AJ342","v":2.370689956331884},{"$f":"'[1]MONE(M)CAPARD'!AK342","v":1.5282617000955139},null,null,{"$f":"'[1]MONE(M)CAPARD'!AL342","v":3.3017964200000001},{"$f":"'[1]MONE(M)CAPARD'!AM342","v":4.63},{"$f":"'[1]MONE(M)CAPARD'!AN342","v":2.96},{"$f":"'[1]MONE(M)CAPARD'!AO342","v":3.38},{"$f":"'[1]MONE(M)CAPARD'!AP342","v":4.24},{"$f":"'[1]MONE(M)CAPARD'!AQ342","v":1.65},{"$f":"'[1]MONE(M)CAPARD'!AR342","v":2.31},null,null,{"$f":"'[1]MONE(M)CAPARD'!J342","v":12.906970493210693},{"$f":"'[1]MONE(M)CAPARD'!K342","v":4.6951834202481626},{"$f":"'[1]MONE(M)CAPARD'!L342","v":8.3269915221874182},{"$f":"'[1]MONE(M)CAPARD'!M342","v":15.094926398429829},{"$f":"'[1]MONE(M)CAPARD'!N342","v":8.7208434011504252},{"$f":"'[1]MONE(M)CAPARD'!O342","v":8.7387518856689219},{"$f":"'[1]MONE(M)CAPARD'!P342","v":5.5473161413562595},null,null,{"$f":"'[1]MONE(M)CAPARD'!Q342","v":9.6300000000000008},{"$f":"'[1]MONE(M)CAPARD'!R342","v":6.33},{"$f":"'[1]MONE(M)CAPARD'!S342","v":6.04},{"$f":"'[1]MONE(M)CAPARD'!T342","v":8.32},{"$f":"'[1]MONE(M)CAPARD'!U342","v":7.42},{"$f":"'[1]MONE(M)CAPARD'!V342","v":5.86},{"$f":"'[1]MONE(M)CAPARD'!W342","v":6.36},null,null,{"$f":"'[1]MONE(M)CAPARD'!AS342","v":4.5},{"$f":"'[1]MONE(M)CAPARD'!AT342","v":"n.a."},{"$f":"'[1]MONE(M)CAPARD'!AU342","v":3},{"$f":"'[1]MONE(M)CAPARD'!AV342","v":5.5},{"$f":"'[1]MONE(M)CAPARD'!AW342","v":"n.a."},{"$f":"'[1]MONE(M)CAPARD'!AX342","v":5.25},{"$f":"'[1]MONE(M)CAPARD'!AY342","v":"n.a."},null,null,{"$f":"+'Datos_Regional (M)'!CF335","v":9.1841801700648151},{"$f":"+'Datos_Regional (M)'!CG335","v":5.6458744235802438},{"$f":"+'Datos_Regional (M)'!CH335","v":5.2859230382994227},{"$f":"+'Datos_Regional (M)'!CI335","v":9.9842419782303118},{"$f":"+'Datos_Regional (M)'!CJ335","v":17.764304661113961},{"$f":"+'Datos_Regional (M)'!CK335","v":10.063119300118096},{"$f":"+'Datos_Regional (M)'!CL335","v":7.1067564670950656},null,null,914.45189929749949,472.11666666666662,908.75833333333355,374.0074061095101,427.43252159083323,831.14166666666654,928.50165941666683,3927.9084936645086,4856.4101530811749,null,null,1363.9600842408306,853.67666666666662,1485.1666666666667,791.53843657730749,622.63456035749994,1463.6333333333334,1792.6907245833333,6580.6097478423062,8373.3004724256371,null,null,-2652.7012541777958,-3516.8903193444617,null,null,{"$f":"'[1]EXT Comercio(M)'!C342","v":929.75878826999906},{"$f":"'[1]EXT Comercio(M)'!D342","v":473.44000000000005},{"$f":"'[1]EXT Comercio(M)'!E342","v":837.09999999999991},{"$f":"'[1]EXT Comercio(M)'!F342","v":313.50994491569429},{"$f":"'[1]EXT Comercio(M)'!G342","v":398.63112921000004},{"$f":"'[1]EXT Comercio(M)'!H342","v":780.90000000000009},{"$f":"'[1]EXT Comercio(M)'!I342","v":814.60750700000006},{"$f":"'[1]EXT Comercio(M)'!K342","v":3733.3398623956891},{"$f":"'[1]EXT Comercio(M)'!L342","v":4547.9473693956897},null,null,{"$f":"'[1]EXT Comercio(M)'!AG342","v":1364.0091767799913},{"$f":"'[1]EXT Comercio(M)'!AH342","v":826.77999999999975},{"$f":"'[1]EXT Comercio(M)'!AI342","v":1464.4},{"$f":"'[1]EXT Comercio(M)'!AJ342","v":870.46877843167613},{"$f":"'[1]EXT Comercio(M)'!AK342","v":592.14540881000005},{"$f":"'[1]EXT Comercio(M)'!AL342","v":1321.9},{"$f":"'[1]EXT Comercio(M)'!AM342","v":1749.7342849999998},{"$f":"'[1]EXT Comercio(M)'!AO342","v":6439.7033640216687},{"$f":"'[1]EXT Comercio(M)'!AP342","v":8189.4376490216528},null,null,{"$f":"'[1]EXT Comercio(M)'!$BS342","v":-2706.3635016259759},{"$f":"'[1]EXT Comercio(M)'!$BT342","v":-3641.4902796259739}]
[null,null,"Octubre",{"$f":"'[1]REAL IPC(M)'!AD343","v":2.325431601228714},{"$f":"'[1]REAL IPC(M)'!AE343","v":1.4300027324892914},{"$f":"'[1]REAL IPC(M)'!AF343","v":4.2032771313227171},{"$f":"'[1]REAL IPC(M)'!AG343","v":3.967446592065123},{"$f":"'[1]REAL IPC(M)'!AH343","v":4.3733083811180258},{"$f":"'[1]REAL IPC(M)'!AI343","v":3.4836907402842843},{"$f":"'[1]REAL IPC(M)'!AJ343","v":0.48076923076923078},null,null,{"$f":"'[1]REAL IMAE(M)'!AG343","v":2.649698873056066},{"$f":"'[1]REAL IMAE(M)'!AH343","v":1.6468962763592325},{"$f":"'[1]REAL IMAE(M)'!AI343","v":1.9118562786067999},{"$f":"'[1]REAL IMAE(M)'!AJ343","v":4.7582146703590347},{"$f":"'[1]REAL IMAE(M)'!AK343","v":3.9419365079406332},{"$f":"'[1]REAL IMAE(M)'!AL343","v":5.355104925696506},{"$f":"'[1]REAL IMAE(M)'!AM343","v":4.4252929214679906},null,null,{"$f":"'[1]EXT ITCER(M)'!C343","v":79.359284508289164},{"$f":"'[1]EXT ITCER(M)'!D343","v":93.733971007385293},{"$f":"'[1]EXT ITCER(M)'!E343","v":52.924823017730283},{"$f":"'[1]EXT ITCER(M)'!F343","v":78.670172864528283},{"$f":"'[1]EXT ITCER(M)'!G343","v":104.64992940336271},{"$f":"'[1]EXT ITCER(M)'!H343","v":105.9782293454835},{"$f":"'[1]EXT ITCER(M)'!I343","v":89.774072324095954},null,null,{"$f":"'[1]EXT TC(M)'!J343","v":3.8891653322705078},{"$f":"'[1]EXT TC(M)'!K343","v":0},{"$f":"'[1]EXT TC(M)'!L343","v":-2.0725755772753387},{"$f":"'[1]EXT TC(M)'!M343","v":1.6666232711026865},{"$f":"'[1]EXT TC(M)'!N343","v":4.7330316271886606},{"$f":"'[1]EXT TC(M)'!O343","v":2.9990484348803577},{"$f":"'[1]EXT TC(M)'!P343","v":0},null,null,{"$f":"'[1]EXT RIN(M)'!C343","v":6847.5},{"$f":"'[1]EXT RIN(M)'!D343","v":3332.08},{"$f":"'[1]EXT RIN(M)'!E343","v":11494.4},{"$f":"'[1]EXT RIN(M)'!F343","v":4521.7909723722523},{"$f":"'[1]EXT RIN(M)'!G343","v":2551.9},{"$f":"'[1]EXT RIN(M)'!H343","v":5821.8289709762084},{"$f":"'[1]EXT RIN(M)'!I343","v":3451.9862829700005},null,null,{"$f":"'[1]EXT RIN(M)'!P343","v":62.124047873877053},{"$f":"'[1]EXT RIN(M)'!Q343","v":102.7671519409171},{"$f":"'[1]EXT RIN(M)'!R343","v":110.5630881242804},{"$f":"'[1]EXT RIN(M)'!S343","v":91.203760973212468},{"$f":"'[1]EXT RIN(M)'!T343","v":126.85641139901469},{"$f":"'[1]EXT RIN(M)'!U343","v":80.550955006448902},{"$f":"'[1]EXT RIN(M)'!V343","v":203.41585082909353},null,null,{"$f":"+'[1]MONE(M)CAPARD'!AE343","v":3.4933333217705806},{"$f":"'[1]MONE(M)CAPARD'!AF343","v":2.9872790948275925},{"$f":"'[1]MONE(M)CAPARD'!AG343","v":1.0812739288970008},{"$f":"'[1]MONE(M)CAPARD'!AH343","v":4.1576027397260109},{"$f":"'[1]MONE(M)CAPARD'!AI343","v":4.9404356100000033},{"$f":"'[1]MONE(M)CAPARD'!AJ343","v":2.1803525208416019},{"$f":"'[1]MONE(M)CAPARD'!AK343","v":1.8503349282296648},null,null,{"$f":"'[1]MONE(M)CAPARD'!AL343","v":3.2704807300000001},{"$f":"'[1]MONE(M)CAPARD'!AM343","v":4.46},{"$f":"'[1]MONE(M)CAPARD'!AN343","v":2.95},{"$f":"'[1]MONE(M)CAPARD'!AO343","v":3.44},{"$f":"'[1]MONE(M)CAPARD'!AP343","v":4.05},{"$f":"'[1]MONE(M)CAPARD'!AQ343","v":1.74},{"$f":"'[1]MONE(M)CAPARD'!AR343","v":2.34},null,null,{"$f":"'[1]MONE(M)CAPARD'!J343","v":12.210618810252106},{"$f":"'[1]MONE(M)CAPARD'!K343","v":4.7816199712643739},{"$f":"'[1]MONE(M)CAPARD'!L343","v":8.5186599817684705},{"$f":"'[1]MONE(M)CAPARD'!M343","v":13.977984344422683},{"$f":"'[1]MONE(M)CAPARD'!N343","v":8.6331187525205646},{"$f":"'[1]MONE(M)CAPARD'!O343","v":8.9060500198491432},{"$f":"'[1]MONE(M)CAPARD'!P343","v":5.9307177033492824},null,null,{"$f":"'[1]MONE(M)CAPARD'!Q343","v":9.56},{"$f":"'[1]MONE(M)CAPARD'!R343","v":6.28},{"$f":"'[1]MONE(M)CAPARD'!S343","v":6.04},{"$f":"'[1]MONE(M)CAPARD'!T343","v":8.3699999999999992},{"$f":"'[1]MONE(M)CAPARD'!U343","v":7.98},{"$f":"'[1]MONE(M)CAPARD'!V343","v":5.55},{"$f":"'[1]MONE(M)CAPARD'!W343","v":6.44},null,null,{"$f":"'[1]MONE(M)CAPARD'!AS343","v":4.5},{"$f":"'[1]MONE(M)CAPARD'!AT343","v":"n.a."},{"$f":"'[1]MONE(M)CAPARD'!AU343","v":3},{"$f":"'[1]MONE(M)CAPARD'!AV343","v":5.5},{"$f":"'[1]MONE(M)CAPARD'!AW343","v":"n.a."},{"$f":"'[1]MONE(M)CAPARD'!AX343","v":5.25},{"$f":"'[1]MONE(M)CAPARD'!AY343","v":"n.a."},null,null,{"$f":"+'Datos_Regional (M)'!CF336","v":8.1031858800363352},{"$f":"+'Datos_Regional (M)'!CG336","v":5.1493703983421124},{"$f":"+'Datos_Regional (M)'!CH336","v":5.3522033390909662},{"$f":"+'Datos_Regional (M)'!CI336","v":10.107532482149661},{"$f":"+'Datos_Regional (M)'!CJ336","v":16.596870790368822},{"$f":"+'Datos_Regional (M)'!CK336","v":11.022547400676963},{"$f":"+'Datos_Regional (M)'!CL336","v":7.3732784910300886},null,null,920.19595552166629,474.41500000000013,920.6500000000002,376.30032428492041,428.20830648250006,835.47500000000002,926.34705616666668,3955.2445862890877,4881.5916424557536,null,null,1373.7030464016636,864.78833333333307,1509.5416666666667,798.44268293256653,630.80502844916657,1477.075,1791.8475345833331,6654.3557577833972,8446.2032923667284,null,null,-2699.1111714943104,-3564.6116499109771,null,null,{"$f":"'[1]EXT Comercio(M)'!C343","v":922.56663504000107},{"$f":"'[1]EXT Comercio(M)'!D343","v":469.51000000000022},{"$f":"'[1]EXT Comercio(M)'!E343","v":851.7},{"$f":"'[1]EXT Comercio(M)'!F343","v":289.43016555517636},{"$f":"'[1]EXT Comercio(M)'!G343","v":411.11353718999999},{"$f":"'[1]EXT Comercio(M)'!H343","v":917.69999999999993},{"$f":"'[1]EXT Comercio(M)'!I343","v":1045.5348590000001},{"$f":"'[1]EXT Comercio(M)'!K343","v":3862.0203377851867},{"$f":"'[1]EXT Comercio(M)'!L343","v":4907.5551967851861},null,null,{"$f":"'[1]EXT Comercio(M)'!AG343","v":1434.6147294000011},{"$f":"'[1]EXT Comercio(M)'!AH343","v":948.78999999999905},{"$f":"'[1]EXT Comercio(M)'!AI343","v":1693.8},{"$f":"'[1]EXT Comercio(M)'!AJ343","v":824.24654583799997},{"$f":"'[1]EXT Comercio(M)'!AK343","v":729.39045379000004},{"$f":"'[1]EXT Comercio(M)'!AL343","v":1671.6},{"$f":"'[1]EXT Comercio(M)'!AM343","v":2030.9526149999997},{"$f":"'[1]EXT Comercio(M)'!AO343","v":7302.4417290279962},{"$f":"'[1]EXT Comercio(M)'!AP343","v":9333.3943440279982},null,null,{"$f":"'[1]EXT Comercio(M)'!$BS343","v":-3440.4213912428204},{"$f":"'[1]EXT Comercio(M)'!$BT343","v":-4425.8391472428266}]
[null,null,"Noviembre",{"$f":"'[1]REAL IPC(M)'!AD344","v":2.4913167908647074},{"$f":"'[1]REAL IPC(M)'!AE344","v":1.6760794315904568},{"$f":"'[1]REAL IPC(M)'!AF344","v":4.6916890080429088},{"$f":"'[1]REAL IPC(M)'!AG344","v":4.3345750084659702},{"$f":"'[1]REAL IPC(M)'!AH344","v":5.3467286613125937},{"$f":"'[1]REAL IPC(M)'!AI344","v":4.1355542791499014},{"$f":"'[1]REAL IPC(M)'!AJ344","v":0.38498556304137771},null,null,{"$f":"'[1]REAL IMAE(M)'!AG344","v":3.0362004151611566},{"$f":"'[1]REAL IMAE(M)'!AH344","v":2.530157815562291},{"$f":"'[1]REAL IMAE(M)'!AI344","v":1.5824410989006572},{"$f":"'[1]REAL IMAE(M)'!AJ344","v":4.3194676525692319},{"$f":"'[1]REAL IMAE(M)'!AK344","v":3.9839894787748111},{"$f":"'[1]REAL IMAE(M)'!AL344","v":5.9143982201573468},{"$f":"'[1]REAL IMAE(M)'!AM344","v":4.7226869128812279},null,null,{"$f":"'[1]EXT ITCER(M)'!C344","v":78.959055171320315},{"$f":"'[1]EXT ITCER(M)'!D344","v":93.765133905845531},{"$f":"'[1]EXT ITCER(M)'!E344","v":52.526814237029853},{"$f":"'[1]EXT ITCER(M)'!F344","v":78.837556576094428},{"$f":"'[1]EXT ITCER(M)'!G344","v":103.9109231819024},{"$f":"'[1]EXT ITCER(M)'!H344","v":105.77000617457141},{"$f":"'[1]EXT ITCER(M)'!I344","v":90.186195374532588},null,null,{"$f":"'[1]EXT TC(M)'!J344","v":3.0862868459210064},{"$f":"'[1]EXT TC(M)'!K344","v":0},{"$f":"'[1]EXT TC(M)'!L344","v":-2.3409378977637783},{"$f":"'[1]EXT TC(M)'!M344","v":1.6729729654271448},{"$f":"'[1]EXT TC(M)'!N344","v":4.6175076347281001},{"$f":"'[1]EXT TC(M)'!O344","v":2.9823810435429743},{"$f":"'[1]EXT TC(M)'!P344","v":0},null,null,{"$f":"'[1]EXT RIN(M)'!C344","v":6837.1},{"$f":"'[1]EXT RIN(M)'!D344","v":3416.98},{"$f":"'[1]EXT RIN(M)'!E344","v":11572.6},{"$f":"'[1]EXT RIN(M)'!F344","v":4481.3185652269458},{"$f":"'[1]EXT RIN(M)'!G344","v":2660.2},{"$f":"'[1]EXT RIN(M)'!H344","v":6344.5116152361661},{"$f":"'[1]EXT RIN(M)'!I344","v":3264.9391592700003},null,null,{"$f":"'[1]EXT RIN(M)'!P344","v":60.328603634311008},{"$f":"'[1]EXT RIN(M)'!Q344","v":102.73263802242272},{"$f":"'[1]EXT RIN(M)'!R344","v":112.65175616516969},{"$f":"'[1]EXT RIN(M)'!S344","v":88.669732404204765},{"$f":"'[1]EXT RIN(M)'!T344","v":129.05275410591128},{"$f":"'[1]EXT RIN(M)'!U344","v":83.28483304639181},{"$f":"'[1]EXT RIN(M)'!V344","v":189.69245143211131},null,null,{"$f":"+'[1]MONE(M)CAPARD'!AE344","v":3.325826339113946},{"$f":"'[1]MONE(M)CAPARD'!AF344","v":2.7675344920265159},{"$f":"'[1]MONE(M)CAPARD'!AG344","v":0.60015364916772107},{"$f":"'[1]MONE(M)CAPARD'!AH344","v":3.8486043492372568},{"$f":"'[1]MONE(M)CAPARD'!AI344","v":3.4092012959190336},{"$f":"'[1]MONE(M)CAPARD'!AJ344","v":1.0509817981246676},{"$f":"'[1]MONE(M)CAPARD'!AK344","v":1.818015340364342},null,null,{"$f":"'[1]MONE(M)CAPARD'!AL344","v":3.2447617700000002},{"$f":"'[1]MONE(M)CAPARD'!AM344","v":4.49},{"$f":"'[1]MONE(M)CAPARD'!AN344","v":2.95},{"$f":"'[1]MONE(M)CAPARD'!AO344","v":3.45},{"$f":"'[1]MONE(M)CAPARD'!AP344","v":4.03},{"$f":"'[1]MONE(M)CAPARD'!AQ344","v":1.63},{"$f":"'[1]MONE(M)CAPARD'!AR344","v":2.21},null,null,{"$f":"'[1]MONE(M)CAPARD'!J344","v":12.058273418765218},{"$f":"'[1]MONE(M)CAPARD'!K344","v":4.6460490951442361},{"$f":"'[1]MONE(M)CAPARD'!L344","v":7.9837387964148396},{"$f":"'[1]MONE(M)CAPARD'!M344","v":13.529000324569941},{"$f":"'[1]MONE(M)CAPARD'!N344","v":9.7450382715068873},{"$f":"'[1]MONE(M)CAPARD'!O344","v":7.7537837837837973},{"$f":"'[1]MONE(M)CAPARD'!P344","v":6.0517162032598364},null,null,{"$f":"'[1]MONE(M)CAPARD'!Q344","v":9.49},{"$f":"'[1]MONE(M)CAPARD'!R344","v":6.4},{"$f":"'[1]MONE(M)CAPARD'!S344","v":6.03},{"$f":"'[1]MONE(M)CAPARD'!T344","v":8.31},{"$f":"'[1]MONE(M)CAPARD'!U344","v":8.56},{"$f":"'[1]MONE(M)CAPARD'!V344","v":5.58},{"$f":"'[1]MONE(M)CAPARD'!W344","v":6.46},null,null,{"$f":"'[1]MONE(M)CAPARD'!AS344","v":4.75},{"$f":"'[1]MONE(M)CAPARD'!AT344","v":"n.a."},{"$f":"'[1]MONE(M)CAPARD'!AU344","v":2.75},{"$f":"'[1]MONE(M)CAPARD'!AV344","v":5.5},{"$f":"'[1]MONE(M)CAPARD'!AW344","v":"n.a."},{"$f":"'[1]MONE(M)CAPARD'!AX344","v":5.25},{"$f":"'[1]MONE(M)CAPARD'!AY344","v":"n.a."},null,null,{"$f":"+'Datos_Regional (M)'!CF337","v":7.2410722382020509},{"$f":"+'Datos_Regional (M)'!CG337","v":5.145902398038471},{"$f":"+'Datos_Regional (M)'!CH337","v":4.9051265662446664},{"$f":"+'Datos_Regional (M)'!CI337","v":9.9119260985230042},{"$f":"+'Datos_Regional (M)'!CJ337","v":17.089521292033226},{"$f":"+'Datos_Regional (M)'!CK337","v":11.30639171952954},{"$f":"+'Datos_Regional (M)'!CL337","v":7.5171565150213171},null,null,922.98753905583271,478.42083333333335,922.45000000000016,377.06848006973604,430.65486741916669,839.50000000000011,924.27726574999986,3971.0817198780678,4895.3589856280687,null,null,1383.5891485933314,878.30999999999983,1510.7416666666668,806.21833461196036,638.10865672583338,1477.9333333333334,1801.2156299999995,6694.9011399311248,8496.1167699311245,null,null,-2723.8194200530565,-3600.7577843030563,null,null,{"$f":"'[1]EXT Comercio(M)'!C344","v":952.74292309999544},{"$f":"'[1]EXT Comercio(M)'!D344","v":482.16999999999916},{"$f":"'[1]EXT Comercio(M)'!E344","v":875.4},{"$f":"'[1]EXT Comercio(M)'!F344","v":317.82772137409438},{"$f":"'[1]EXT Comercio(M)'!G344","v":399.48306629999996},{"$f":"'[1]EXT Comercio(M)'!H344","v":904.2},{"$f":"'[1]EXT Comercio(M)'!I344","v":944.97099900000001},{"$f":"'[1]EXT Comercio(M)'!K344","v":3931.8237107740788},{"$f":"'[1]EXT Comercio(M)'!L344","v":4876.7947097740907},null,null,{"$f":"'[1]EXT Comercio(M)'!AG344","v":1599.3278990800002},{"$f":"'[1]EXT Comercio(M)'!AH344","v":1028.08},{"$f":"'[1]EXT Comercio(M)'!AI344","v":1569.1},{"$f":"'[1]EXT Comercio(M)'!AJ344","v":891.50555597619996},{"$f":"'[1]EXT Comercio(M)'!AK344","v":733.45883401000015},{"$f":"'[1]EXT Comercio(M)'!AL344","v":1614.2999999999997},{"$f":"'[1]EXT Comercio(M)'!AM344","v":1798.579432},{"$f":"'[1]EXT Comercio(M)'!AO344","v":7435.7722890661971},{"$f":"'[1]EXT Comercio(M)'!AP344","v":9234.3517210661958},null,null,{"$f":"'[1]EXT Comercio(M)'!$BS344","v":-3503.9485782921147},{"$f":"'[1]EXT Comercio(M)'!$BT344","v":-4357.5570112921123}]
[null,null,"Diciembre ",{"$f":"'[1]REAL IPC(M)'!AD345","v":2.5741099538031378},{"$f":"'[1]REAL IPC(M)'!AE345","v":2.0350428910385143},{"$f":"'[1]REAL IPC(M)'!AF345","v":5.6768903256327397},{"$f":"'[1]REAL IPC(M)'!AG345","v":4.7281323877068555},{"$f":"'[1]REAL IPC(M)'!AH345","v":5.6784984336508488},{"$f":"'[1]REAL IPC(M)'!AI345","v":4.2042774660486009},{"$f":"'[1]REAL IPC(M)'!AJ345","v":0.48076923076923078},null,null,{"$f":"'[1]REAL IMAE(M)'!AG345","v":3.2414903017934296},{"$f":"'[1]REAL IMAE(M)'!AH345","v":2.8502169019207648},{"$f":"'[1]REAL IMAE(M)'!AI345","v":1.6471757806467326},{"$f":"'[1]REAL IMAE(M)'!AJ345","v":4.0300053948904173},{"$f":"'[1]REAL IMAE(M)'!AK345","v":3.9640153090338663},{"$f":"'[1]REAL IMAE(M)'!AL345","v":6.3577668575993851},{"$f":"'[1]REAL IMAE(M)'!AM345","v":4.6831336523945781},null,null,{"$f":"'[1]EXT ITCER(M)'!C345","v":78.568225534679726},{"$f":"'[1]EXT ITCER(M)'!D345","v":93.80301479980767},{"$f":"'[1]EXT ITCER(M)'!E345","v":52.22094434998013},{"$f":"'[1]EXT ITCER(M)'!F345","v":78.459786874165047},{"$f":"'[1]EXT ITCER(M)'!G345","v":103.35442167158971},{"$f":"'[1]EXT ITCER(M)'!H345","v":105.4957539036165},{"$f":"'[1]EXT ITCER(M)'!I345","v":90.203238881028753},null,null,{"$f":"'[1]EXT TC(M)'!J345","v":3.1948068515917925},{"$f":"'[1]EXT TC(M)'!K345","v":0},{"$f":"'[1]EXT TC(M)'!L345","v":-2.1916743355456307},{"$f":"'[1]EXT TC(M)'!M345","v":0.43453246929667944},{"$f":"'[1]EXT TC(M)'!N345","v":4.6403044566958052},{"$f":"'[1]EXT TC(M)'!O345","v":3.2793254596894394},{"$f":"'[1]EXT TC(M)'!P345","v":0},null,null,{"$f":"'[1]EXT RIN(M)'!C345","v":7149.8},{"$f":"'[1]EXT RIN(M)'!D345","v":3273.16},{"$f":"'[1]EXT RIN(M)'!E345","v":11769.5},{"$f":"'[1]EXT RIN(M)'!F345","v":4785.6407855964271},{"$f":"'[1]EXT RIN(M)'!G345","v":2716.2},{"$f":"'[1]EXT RIN(M)'!H345","v":6780.4030804810109},{"$f":"'[1]EXT RIN(M)'!I345","v":3510.3838357999998},null,null,{"$f":"'[1]EXT RIN(M)'!P345","v":63.251838212023173},{"$f":"'[1]EXT RIN(M)'!Q345","v":99.497158101250491},{"$f":"'[1]EXT RIN(M)'!R345","v":105.92515915287497},{"$f":"'[1]EXT RIN(M)'!S345","v":85.606543162928986},{"$f":"'[1]EXT RIN(M)'!T345","v":130.52511384000408},{"$f":"'[1]EXT RIN(M)'!U345","v":82.61753779113198},{"$f":"'[1]EXT RIN(M)'!V345","v":196.45468000134809},null,null,{"$f":"+'[1]MONE(M)CAPARD'!AE345","v":3.2911716686767063},{"$f":"'[1]MONE(M)CAPARD'!AF345","v":2.44519631517753},{"$f":"'[1]MONE(M)CAPARD'!AG345","v":-0.37556964858613995},{"$f":"'[1]MONE(M)CAPARD'!AH345","v":3.1146049661399551},{"$f":"'[1]MONE(M)CAPARD'!AI345","v":3.8298470167812364},{"$f":"'[1]MONE(M)CAPARD'!AJ345","v":0.96514515373812682},{"$f":"'[1]MONE(M)CAPARD'!AK345","v":1.7010526315789474},null,null,{"$f":"'[1]MONE(M)CAPARD'!AL345","v":3.2129622900000001},{"$f":"'[1]MONE(M)CAPARD'!AM345","v":4.53},{"$f":"'[1]MONE(M)CAPARD'!AN345","v":2.96},{"$f":"'[1]MONE(M)CAPARD'!AO345","v":3.43},{"$f":"'[1]MONE(M)CAPARD'!AP345","v":4.05},{"$f":"'[1]MONE(M)CAPARD'!AQ345","v":2},{"$f":"'[1]MONE(M)CAPARD'!AR345","v":2.19},null,null,{"$f":"'[1]MONE(M)CAPARD'!J345","v":11.987323167351516},{"$f":"'[1]MONE(M)CAPARD'!K345","v":4.2779000089437407},{"$f":"'[1]MONE(M)CAPARD'!L345","v":6.9297172274863801},{"$f":"'[1]MONE(M)CAPARD'!M345","v":12.901851015801352},{"$f":"'[1]MONE(M)CAPARD'!N345","v":10.711569663802315},{"$f":"'[1]MONE(M)CAPARD'!O345","v":6.6654869673794579},{"$f":"'[1]MONE(M)CAPARD'!P345","v":5.9406698564593308},null,null,{"$f":"'[1]MONE(M)CAPARD'!Q345","v":9.7899999999999991},{"$f":"'[1]MONE(M)CAPARD'!R345","v":6.4},{"$f":"'[1]MONE(M)CAPARD'!S345","v":6.03},{"$f":"'[1]MONE(M)CAPARD'!T345","v":8.17},{"$f":"'[1]MONE(M)CAPARD'!U345","v":8.5},{"$f":"'[1]MONE(M)CAPARD'!V345","v":6.39},{"$f":"'[1]MONE(M)CAPARD'!W345","v":6.45},null,null,{"$f":"'[1]MONE(M)CAPARD'!AS345","v":4.75},{"$f":"'[1]MONE(M)CAPARD'!AT345","v":"n.a."},{"$f":"'[1]MONE(M)CAPARD'!AU345","v":2.75},{"$f":"'[1]MONE(M)CAPARD'!AV345","v":5.5},{"$f":"'[1]MONE(M)CAPARD'!AW345","v":"n.a."},{"$f":"'[1]MONE(M)CAPARD'!AX345","v":5.25},{"$f":"'[1]MONE(M)CAPARD'!AY345","v":"n.a."},null,null,{"$f":"+'Datos_Regional (M)'!CF338","v":6.9326697559124018},{"$f":"+'Datos_Regional (M)'!CG338","v":5.3650048536689976},{"$f":"+'Datos_Regional (M)'!CH338","v":3.727708387403772},{"$f":"+'Datos_Regional (M)'!CI338","v":8.1668620549768978},{"$f":"+'Datos_Regional (M)'!CJ338","v":16.194870193215682},{"$f":"+'Datos_Regional (M)'!CK338","v":11.819029018974248},{"$f":"+'Datos_Regional (M)'!CL338","v":7.786854983765279},null,null,922.02983838166608,480.00083333333333,915.18333333333328,378.73585466346748,432.19693858833335,844.55000000000018,{"$f":"IF(EN150=\"\",\"\",+AVERAGE(EN139:EN150))","v":938.40921274999982},3972.6967983001337,4911.1060110501339,null,null,1382.569244979165,880.95833333333337,1532.5416666666663,806.91537956338982,639.34544834250005,1477.8583333333336,1828.2458631666666,6720.1884062183881,8548.434269385054,null,null,-2747.4916079182544,-3637.328258334921,null,null,{"$f":"'[1]EXT Comercio(M)'!C345","v":833.07197924999286},{"$f":"'[1]EXT Comercio(M)'!D345","v":421.03000000000065},{"$f":"'[1]EXT Comercio(M)'!E345","v":887.3},{"$f":"'[1]EXT Comercio(M)'!F345","v":351.33102069610322},{"$f":"'[1]EXT Comercio(M)'!G345","v":356.00979888000001},{"$f":"'[1]EXT Comercio(M)'!H345","v":815.7},{"$f":"'[1]EXT Comercio(M)'!I345","v":961.01787800000011},{"$f":"'[1]EXT Comercio(M)'!K345","v":3664.4427988261014},{"$f":"'[1]EXT Comercio(M)'!L345","v":4625.4606768260928},null,null,{"$f":"'[1]EXT Comercio(M)'!AG345","v":1376.6272710200001},{"$f":"'[1]EXT Comercio(M)'!AH345","v":844.52000000000044},{"$f":"'[1]EXT Comercio(M)'!AI345","v":1744.6000000000001},{"$f":"'[1]EXT Comercio(M)'!AJ345","v":790.05501221955546},{"$f":"'[1]EXT Comercio(M)'!AK345","v":609.62821244000008},{"$f":"'[1]EXT Comercio(M)'!AL345","v":1530},{"$f":"'[1]EXT Comercio(M)'!AM345","v":1981.75441},{"$f":"'[1]EXT Comercio(M)'!AO345","v":6895.4304956795531},{"$f":"'[1]EXT Comercio(M)'!AP345","v":8877.1849056795618},null,null,{"$f":"'[1]EXT Comercio(M)'!$BS345","v":-3230.9876968534518},{"$f":"'[1]EXT Comercio(M)'!$BT345","v":-4251.7242288534471}]
[null,2018,"Enero",{"$f":"'[1]REAL IPC(M)'!AD346","v":2.4078251769652224},{"$f":"'[1]REAL IPC(M)'!AE346","v":1.422230274481378},{"$f":"'[1]REAL IPC(M)'!AF346","v":4.7140952231547617},{"$f":"'[1]REAL IPC(M)'!AG346","v":4.5729657027572372},{"$f":"'[1]REAL IPC(M)'!AH346","v":5.3590959201744264},{"$f":"'[1]REAL IPC(M)'!AI346","v":3.8632506263638304},{"$f":"'[1]REAL IPC(M)'!AJ346","v":0.38350910834132856},null,null,{"$f":"'[1]REAL IMAE(M)'!AG346","v":3.225314205100748},{"$f":"'[1]REAL IMAE(M)'!AH346","v":2.9172104256117422},{"$f":"'[1]REAL IMAE(M)'!AI346","v":2.0713572307576822},{"$f":"'[1]REAL IMAE(M)'!AJ346","v":3.9119314900390978},{"$f":"'[1]REAL IMAE(M)'!AK346","v":3.8432258327717239},{"$f":"'[1]REAL IMAE(M)'!AL346","v":6.661589425888625},{"$f":"'[1]REAL IMAE(M)'!AM346","v":3.2543350864128628},null,null,{"$f":"'[1]EXT ITCER(M)'!C346","v":78.898394518797431},{"$f":"'[1]EXT ITCER(M)'!D346","v":94.031931567813956},{"$f":"'[1]EXT ITCER(M)'!E346","v":52.642599137417889},{"$f":"'[1]EXT ITCER(M)'!F346","v":78.635689819470016},{"$f":"'[1]EXT ITCER(M)'!G346","v":104.0403032849046},{"$f":"'[1]EXT ITCER(M)'!H346","v":106.0754193394994},{"$f":"'[1]EXT ITCER(M)'!I346","v":90.371719052162419},null,null,{"$f":"'[1]EXT TC(M)'!J346","v":3.2281022048072447},{"$f":"'[1]EXT TC(M)'!K346","v":0},{"$f":"'[1]EXT TC(M)'!L346","v":-2.3180671350007698},{"$f":"'[1]EXT TC(M)'!M346","v":1.1063215374145426E-2},{"$f":"'[1]EXT TC(M)'!N346","v":4.7926229730830858},{"$f":"'[1]EXT TC(M)'!O346","v":3.5285902774208018},{"$f":"'[1]EXT TC(M)'!P346","v":0},null,null,{"$f":"'[1]EXT RIN(M)'!C346","v":7120.0502999999999},{"$f":"'[1]EXT RIN(M)'!D346","v":3441.87},{"$f":"'[1]EXT RIN(M)'!E346","v":11345.9},{"$f":"'[1]EXT RIN(M)'!F346","v":4674.0289756200364},{"$f":"'[1]EXT RIN(M)'!G346","v":2739.8},{"$f":"'[1]EXT RIN(M)'!H346","v":6803.9781630356683},{"$f":"'[1]EXT RIN(M)'!I346","v":3219.9777227200002},null,null,{"$f":"'[1]EXT RIN(M)'!P346","v":62.809300808576538},{"$f":"'[1]EXT RIN(M)'!Q346","v":103.02149944147187},{"$f":"'[1]EXT RIN(M)'!R346","v":105.48346903062252},{"$f":"'[1]EXT RIN(M)'!S346","v":87.959663681286344},{"$f":"'[1]EXT RIN(M)'!T346","v":135.84042485887485},{"$f":"'[1]EXT RIN(M)'!U346","v":87.794403967967739},{"$f":"'[1]EXT RIN(M)'!V346","v":197.2166538553343},null,null,{"$f":"+'[1]MONE(M)CAPARD'!AE346","v":3.6053639618403541},{"$f":"'[1]MONE(M)CAPARD'!AF346","v":2.9162933190425213},{"$f":"'[1]MONE(M)CAPARD'!AG346","v":0.53087865168538861},{"$f":"'[1]MONE(M)CAPARD'!AH346","v":3.5927395498392203},{"$f":"'[1]MONE(M)CAPARD'!AI346","v":3.0131462929911548},{"$f":"'[1]MONE(M)CAPARD'!AJ346","v":1.7588024278266543},{"$f":"'[1]MONE(M)CAPARD'!AK346","v":1.42602196752626},null,null,{"$f":"'[1]MONE(M)CAPARD'!AL346","v":3.6385876599999998},{"$f":"'[1]MONE(M)CAPARD'!AM346","v":4.38},{"$f":"'[1]MONE(M)CAPARD'!AN346","v":2.96},{"$f":"'[1]MONE(M)CAPARD'!AO346","v":3.5},{"$f":"'[1]MONE(M)CAPARD'!AP346","v":4.03},{"$f":"'[1]MONE(M)CAPARD'!AQ346","v":1.69},{"$f":"'[1]MONE(M)CAPARD'!AR346","v":1.8149999999999999},null,null,{"$f":"'[1]MONE(M)CAPARD'!J346","v":12.374225115255307},{"$f":"'[1]MONE(M)CAPARD'!K346","v":4.8093694176491661},{"$f":"'[1]MONE(M)CAPARD'!L346","v":7.9797325842696596},{"$f":"'[1]MONE(M)CAPARD'!M346","v":12.925935691318317},{"$f":"'[1]MONE(M)CAPARD'!N346","v":12.292982683003792},{"$f":"'[1]MONE(M)CAPARD'!O346","v":7.8629826472648308},{"$f":"'[1]MONE(M)CAPARD'!P346","v":5.9935052531041011},null,null,{"$f":"'[1]MONE(M)CAPARD'!Q346","v":10.130000000000001},{"$f":"'[1]MONE(M)CAPARD'!R346","v":6.3},{"$f":"'[1]MONE(M)CAPARD'!S346","v":6.08},{"$f":"'[1]MONE(M)CAPARD'!T346","v":8.18},{"$f":"'[1]MONE(M)CAPARD'!U346","v":8.76},{"$f":"'[1]MONE(M)CAPARD'!V346","v":6.62},{"$f":"'[1]MONE(M)CAPARD'!W346","v":6.4},null,null,{"$f":"'[1]MONE(M)CAPARD'!AS346","v":4.75},{"$f":"'[1]MONE(M)CAPARD'!AT346","v":"n.a."},{"$f":"'[1]MONE(M)CAPARD'!AU346","v":2.75},{"$f":"'[1]MONE(M)CAPARD'!AV346","v":5.5},{"$f":"'[1]MONE(M)CAPARD'!AW346","v":"n.a."},{"$f":"'[1]MONE(M)CAPARD'!AX346","v":5.25},{"$f":"'[1]MONE(M)CAPARD'!AY346","v":"n.a."},null,null,{"$f":"+'Datos_Regional (M)'!CF339","v":6.1547674726853296},{"$f":"+'Datos_Regional (M)'!CG339","v":4.6976374204637406},{"$f":"+'Datos_Regional (M)'!CH339","v":4.0845463747357869},{"$f":"+'Datos_Regional (M)'!CI339","v":8.787771835958381},{"$f":"+'Datos_Regional (M)'!CJ339","v":16.158911427150024},{"$f":"+'Datos_Regional (M)'!CK339","v":11.781437367081281},{"$f":"+'Datos_Regional (M)'!CL339","v":7.3081624939931311},null,null,{"$f":"IF(EH151=\"\",\"\",+AVERAGE(EH140:EH151))","v":923.43033296666579},{"$f":"IF(EI151=\"\",\"\",+AVERAGE(EI140:EI151))","v":486.15500000000003},{"$f":"IF(EJ151=\"\",\"\",+AVERAGE(EJ140:EJ151))","v":915.21666666666658},{"$f":"IF(EK151=\"\",\"\",+AVERAGE(EK140:EK151))","v":379.38354471061069},{"$f":"IF(EL151=\"\",\"\",+AVERAGE(EL140:EL151))","v":436.43552980333334},{"$f":"IF(EM151=\"\",\"\",+AVERAGE(EM140:EM151))","v":852.7166666666667},{"$f":"IF(EN151=\"\",\"\",+AVERAGE(EN140:EN151))","v":955.9954388333332},{"$f":"IF(EO151=\"\",\"\",+AVERAGE(EO140:EO151))","v":3993.3377408139427},{"$f":"IF(EP151=\"\",\"\",+AVERAGE(EP140:EP151))","v":4949.3331796472767},null,null,{"$f":"IF(ES151=\"\",\"\",+AVERAGE(ES140:ES151))","v":1385.7700677483326},{"$f":"IF(ET151=\"\",\"\",+AVERAGE(ET140:ET151))","v":885.2791666666667},{"$f":"IF(EU151=\"\",\"\",+AVERAGE(EU140:EU151))","v":1543.7583333333334},{"$f":"IF(EV151=\"\",\"\",+AVERAGE(EV140:EV151))","v":817.38936686210138},{"$f":"IF(EW151=\"\",\"\",+AVERAGE(EW140:EW151))","v":646.22841355000003},{"$f":"IF(EX151=\"\",\"\",+AVERAGE(EX140:EX151))","v":1498.3166666666666},{"$f":"IF(EY151=\"\",\"\",+AVERAGE(EY140:EY151))","v":1860.2551476666667},{"$f":"IF(EZ151=\"\",\"\",+AVERAGE(EZ140:EZ151))","v":6776.7420148271003},{"$f":"IF(FA151=\"\",\"\",+AVERAGE(FA140:FA151))","v":8636.9971624937662},null,null,{"$f":"IF(FD151=\"\",\"\",+AVERAGE(FD140:FD151))","v":-2783.4042740131572},{"$f":"IF(FE151=\"\",\"\",+AVERAGE(FE140:FE151))","v":-3687.6639828464904},null,null,{"$f":"'[1]EXT Comercio(M)'!C346","v":823.70711817999563},{"$f":"'[1]EXT Comercio(M)'!D346","v":500.02},{"$f":"'[1]EXT Comercio(M)'!E346","v":879.4},{"$f":"'[1]EXT Comercio(M)'!F346","v":400.37571789886067},{"$f":"'[1]EXT Comercio(M)'!G346","v":465.57595276000001},{"$f":"'[1]EXT Comercio(M)'!H346","v":769.50000000000011},{"$f":"'[1]EXT Comercio(M)'!I346","v":949.2},{"$f":"'[1]EXT Comercio(M)'!K346","v":3838.5787888388563},{"$f":"'[1]EXT Comercio(M)'!L346","v":4787.7787888388566},null,null,{"$f":"'[1]EXT Comercio(M)'!AG346","v":1381.0403651900108},{"$f":"'[1]EXT Comercio(M)'!AH346","v":898.76},{"$f":"'[1]EXT Comercio(M)'!AI346","v":1566.4},{"$f":"'[1]EXT Comercio(M)'!AJ346","v":833.91938536089776},{"$f":"'[1]EXT Comercio(M)'!AK346","v":668.88110600999994},{"$f":"'[1]EXT Comercio(M)'!AL346","v":1573.1},{"$f":"'[1]EXT Comercio(M)'!AM346","v":2027.24},{"$f":"'[1]EXT Comercio(M)'!AO346","v":6922.1008565609081},{"$f":"'[1]EXT Comercio(M)'!AP346","v":8949.3408565609079},null,null,{"$f":"'[1]EXT Comercio(M)'!$BS346","v":-3083.5220677220523},{"$f":"'[1]EXT Comercio(M)'!$BT346","v":-4161.5620677220522}]
[null,null,"Febrero",{"$f":"'[1]REAL IPC(M)'!AD347","v":2.212488153872779},{"$f":"'[1]REAL IPC(M)'!AE347","v":1.2286566085463904},{"$f":"'[1]REAL IPC(M)'!AF347","v":4.1510318949343246},{"$f":"'[1]REAL IPC(M)'!AG347","v":4.3333333333333339},{"$f":"'[1]REAL IPC(M)'!AH347","v":4.8161039269698067},{"$f":"'[1]REAL IPC(M)'!AI347","v":3.3158953722333822},{"$f":"'[1]REAL IPC(M)'!AJ347","v":0.38240917782027312},null,null,{"$f":"'[1]REAL IMAE(M)'!AG347","v":3.386907897704833},{"$f":"'[1]REAL IMAE(M)'!AH347","v":3.0752738260477757},{"$f":"'[1]REAL IMAE(M)'!AI347","v":2.7824235797062866},{"$f":"'[1]REAL IMAE(M)'!AJ347","v":3.9371737987138369},{"$f":"'[1]REAL IMAE(M)'!AK347","v":3.5880522157970858},{"$f":"'[1]REAL IMAE(M)'!AL347","v":6.9474103467880912},{"$f":"'[1]REAL IMAE(M)'!AM347","v":2.660142226132252},null,null,{"$f":"'[1]EXT ITCER(M)'!C347","v":79.152154975194776},{"$f":"'[1]EXT ITCER(M)'!D347","v":94.219300383887969},{"$f":"'[1]EXT ITCER(M)'!E347","v":53.031268116446718},{"$f":"'[1]EXT ITCER(M)'!F347","v":78.264843382374082},{"$f":"'[1]EXT ITCER(M)'!G347","v":104.40884174555509},{"$f":"'[1]EXT ITCER(M)'!H347","v":107.39042367840661},{"$f":"'[1]EXT ITCER(M)'!I347","v":90.365657942990694},null,null,{"$f":"'[1]EXT TC(M)'!J347","v":2.4532936216300127},{"$f":"'[1]EXT TC(M)'!K347","v":0},{"$f":"'[1]EXT TC(M)'!L347","v":-0.57418587050558789},{"$f":"'[1]EXT TC(M)'!M347","v":-1.4829870201496826E-2},{"$f":"'[1]EXT TC(M)'!N347","v":4.6509741082928571},{"$f":"'[1]EXT TC(M)'!O347","v":3.6621078173879966},{"$f":"'[1]EXT TC(M)'!P347","v":0},null,null,{"$f":"'[1]EXT RIN(M)'!C347","v":7015.9},{"$f":"'[1]EXT RIN(M)'!D347","v":3370.66},{"$f":"'[1]EXT RIN(M)'!E347","v":11475.2},{"$f":"'[1]EXT RIN(M)'!F347","v":4764.165179075585},{"$f":"'[1]EXT RIN(M)'!G347","v":2770.9},{"$f":"'[1]EXT RIN(M)'!H347","v":8050.147613639987},{"$f":"'[1]EXT RIN(M)'!I347","v":2824.90965276},null,null,{"$f":"'[1]EXT RIN(M)'!P347","v":62.202851221090647},{"$f":"'[1]EXT RIN(M)'!Q347","v":101.56120531052058},{"$f":"'[1]EXT RIN(M)'!R347","v":106.915234733948},{"$f":"'[1]EXT RIN(M)'!S347","v":86.815176685527689},{"$f":"'[1]EXT RIN(M)'!T347","v":129.08715280548532},{"$f":"'[1]EXT RIN(M)'!U347","v":106.38407819138267},{"$f":"'[1]EXT RIN(M)'!V347","v":169.35715355580464},null,null,{"$f":"+'[1]MONE(M)CAPARD'!AE347","v":3.7055274893860553},{"$f":"'[1]MONE(M)CAPARD'!AF347","v":3.2118804105310144},{"$f":"'[1]MONE(M)CAPARD'!AG347","v":1.0743706372438726},{"$f":"'[1]MONE(M)CAPARD'!AH347","v":3.8498402555910531},{"$f":"'[1]MONE(M)CAPARD'!AI347","v":4.914454433083443},{"$f":"'[1]MONE(M)CAPARD'!AJ347","v":2.497807136983853},{"$f":"'[1]MONE(M)CAPARD'!AK347","v":1.4121904761904709},null,null,{"$f":"'[1]MONE(M)CAPARD'!AL347","v":3.28750594},{"$f":"'[1]MONE(M)CAPARD'!AM347","v":4.4800000000000004},{"$f":"'[1]MONE(M)CAPARD'!AN347","v":2.94},{"$f":"'[1]MONE(M)CAPARD'!AO347","v":3.46},{"$f":"'[1]MONE(M)CAPARD'!AP347","v":4.51},{"$f":"'[1]MONE(M)CAPARD'!AQ347","v":1.7456538739512792},{"$f":"'[1]MONE(M)CAPARD'!AR347","v":1.8},null,null,{"$f":"'[1]MONE(M)CAPARD'!J347","v":12.579198567958993},{"$f":"'[1]MONE(M)CAPARD'!K347","v":4.8517322623828658},{"$f":"'[1]MONE(M)CAPARD'!L347","v":8.5442918261652885},{"$f":"'[1]MONE(M)CAPARD'!M347","v":13.252396166134183},{"$f":"'[1]MONE(M)CAPARD'!N347","v":8.309097991062929},{"$f":"'[1]MONE(M)CAPARD'!O347","v":8.7819058191166359},{"$f":"'[1]MONE(M)CAPARD'!P347","v":5.6758857142857089},null,null,{"$f":"'[1]MONE(M)CAPARD'!Q347","v":9.81},{"$f":"'[1]MONE(M)CAPARD'!R347","v":6.14},{"$f":"'[1]MONE(M)CAPARD'!S347","v":6.08},{"$f":"'[1]MONE(M)CAPARD'!T347","v":8.1999999999999993},{"$f":"'[1]MONE(M)CAPARD'!U347","v":8.35},{"$f":"'[1]MONE(M)CAPARD'!V347","v":5.5015999999999998},{"$f":"'[1]MONE(M)CAPARD'!W347","v":6.08},null,null,{"$f":"'[1]MONE(M)CAPARD'!AS347","v":5},{"$f":"'[1]MONE(M)CAPARD'!AT347","v":"n.a."},{"$f":"'[1]MONE(M)CAPARD'!AU347","v":2.75},{"$f":"'[1]MONE(M)CAPARD'!AV347","v":5.5},{"$f":"'[1]MONE(M)CAPARD'!AW347","v":"n.a."},{"$f":"'[1]MONE(M)CAPARD'!AX347","v":5.25},{"$f":"'[1]MONE(M)CAPARD'!AY347","v":"n.a."},null,null,{"$f":"+'Datos_Regional (M)'!CF340","v":4.9092829247841641},{"$f":"+'Datos_Regional (M)'!CG340","v":4.9200491644593614},{"$f":"+'Datos_Regional (M)'!CH340","v":3.5488823410208203},{"$f":"+'Datos_Regional (M)'!CI340","v":9.6423851589230836},{"$f":"+'Datos_Regional (M)'!CJ340","v":16.674414537975824},{"$f":"+'Datos_Regional (M)'!CK340","v":11.593720364612704},{"$f":"+'Datos_Regional (M)'!CL340","v":7.1498270035061262},null,null,925.75611620749851,489.27333333333331,914.07499999999982,380.00254856400102,437.35154586499999,856.05833333333339,951.34236591666684,4002.5168773031669,4953.8592432198329,null,null,1388.5321310616666,890.76666666666677,1549.8583333333333,817.67572167075934,649.33146130166665,1502.4750000000001,1868.8690682500003,6798.6393140340924,8667.5083822840934,null,null,-2796.122436730926,-3713.6491390642591,null,null,{"$f":"'[1]EXT Comercio(M)'!C347","v":911.74363845999505},{"$f":"'[1]EXT Comercio(M)'!D347","v":488.78},{"$f":"'[1]EXT Comercio(M)'!E347","v":928.30000000000007},{"$f":"'[1]EXT Comercio(M)'!F347","v":429.69232226684454},{"$f":"'[1]EXT Comercio(M)'!G347","v":458.00861867999993},{"$f":"'[1]EXT Comercio(M)'!H347","v":819.8},{"$f":"'[1]EXT Comercio(M)'!I347","v":926.128827},{"$f":"'[1]EXT Comercio(M)'!K347","v":4036.3245794068403},{"$f":"'[1]EXT Comercio(M)'!L347","v":4962.4534064068403},null,null,{"$f":"'[1]EXT Comercio(M)'!AG347","v":1289.9188044600012},{"$f":"'[1]EXT Comercio(M)'!AH347","v":826.18000000000006},{"$f":"'[1]EXT Comercio(M)'!AI347","v":1425.6},{"$f":"'[1]EXT Comercio(M)'!AJ347","v":745.64272924679528},{"$f":"'[1]EXT Comercio(M)'!AK347","v":606.45880070000021},{"$f":"'[1]EXT Comercio(M)'!AL347","v":1386.4},{"$f":"'[1]EXT Comercio(M)'!AM347","v":1676.441092},{"$f":"'[1]EXT Comercio(M)'!AO347","v":6280.200334406798},{"$f":"'[1]EXT Comercio(M)'!AP347","v":7956.6414264067989},null,null,{"$f":"'[1]EXT Comercio(M)'!$BS347","v":-2243.8757549999573},{"$f":"'[1]EXT Comercio(M)'!$BT347","v":-2994.1880199999569}]
[null,null,"Marzo",{"$f":"'[1]REAL IPC(M)'!AD348","v":2.6129676904971761},{"$f":"'[1]REAL IPC(M)'!AE348","v":0.9105661738189732},{"$f":"'[1]REAL IPC(M)'!AF348","v":4.1409966466505521},{"$f":"'[1]REAL IPC(M)'!AG348","v":4.3521594684385452},{"$f":"'[1]REAL IPC(M)'!AH348","v":4.8384299879093637},{"$f":"'[1]REAL IPC(M)'!AI348","v":3.9112903225806317},{"$f":"'[1]REAL IPC(M)'!AJ348","v":0.57416267942583188},null,null,{"$f":"'[1]REAL IMAE(M)'!AG348","v":3.6378720466370722},{"$f":"'[1]REAL IMAE(M)'!AH348","v":3.1738140044955023},{"$f":"'[1]REAL IMAE(M)'!AI348","v":3.6045155742086594},{"$f":"'[1]REAL IMAE(M)'!AJ348","v":3.9179005611365914},{"$f":"'[1]REAL IMAE(M)'!AK348","v":3.291798662694327},{"$f":"'[1]REAL IMAE(M)'!AL348","v":7.2341952827346763},{"$f":"'[1]REAL IMAE(M)'!AM348","v":1.979428207645038},null,null,{"$f":"'[1]EXT ITCER(M)'!C348","v":78.758650323732553},{"$f":"'[1]EXT ITCER(M)'!D348","v":94.374007194986717},{"$f":"'[1]EXT ITCER(M)'!E348","v":53.17112056978484},{"$f":"'[1]EXT ITCER(M)'!F348","v":78.209032947472949},{"$f":"'[1]EXT ITCER(M)'!G348","v":104.5918856649681},{"$f":"'[1]EXT ITCER(M)'!H348","v":107.8478313031529},{"$f":"'[1]EXT ITCER(M)'!I348","v":90.331071483201981},null,null,{"$f":"'[1]EXT TC(M)'!J348","v":1.9285924893451545},{"$f":"'[1]EXT TC(M)'!K348","v":0},{"$f":"'[1]EXT TC(M)'!L348","v":0.48183875225968809},{"$f":"'[1]EXT TC(M)'!M348","v":0.5206032447254485},{"$f":"'[1]EXT TC(M)'!N348","v":4.6873629746557972},{"$f":"'[1]EXT TC(M)'!O348","v":4.0078789354965085},{"$f":"'[1]EXT TC(M)'!P348","v":0},null,null,{"$f":"'[1]EXT RIN(M)'!C348","v":8473.9},{"$f":"'[1]EXT RIN(M)'!D348","v":3400.37},{"$f":"'[1]EXT RIN(M)'!E348","v":11740.8},{"$f":"'[1]EXT RIN(M)'!F348","v":4832.1434372273143},{"$f":"'[1]EXT RIN(M)'!G348","v":2852.1},{"$f":"'[1]EXT RIN(M)'!H348","v":7576.7978562124863},{"$f":"'[1]EXT RIN(M)'!I348","v":2787.7063490299997},null,null,{"$f":"'[1]EXT RIN(M)'!P348","v":75.606783334985423},{"$f":"'[1]EXT RIN(M)'!Q348","v":100.99064007733851},{"$f":"'[1]EXT RIN(M)'!R348","v":108.05976691663111},{"$f":"'[1]EXT RIN(M)'!S348","v":87.586873199233423},{"$f":"'[1]EXT RIN(M)'!T348","v":127.26086931481539},{"$f":"'[1]EXT RIN(M)'!U348","v":104.28371667786256},{"$f":"'[1]EXT RIN(M)'!V348","v":165.12133991951404},null,null,{"$f":"+'[1]MONE(M)CAPARD'!AE348","v":3.3007838928495308},{"$f":"'[1]MONE(M)CAPARD'!AF348","v":3.4975859912445237},{"$f":"'[1]MONE(M)CAPARD'!AG348","v":1.0649056462483129},{"$f":"'[1]MONE(M)CAPARD'!AH348","v":3.6586119070359691},{"$f":"'[1]MONE(M)CAPARD'!AI348","v":4.8786569437957805},{"$f":"'[1]MONE(M)CAPARD'!AJ348","v":1.8162700814901183},{"$f":"'[1]MONE(M)CAPARD'!AK348","v":1.1740960989533831},null,null,{"$f":"'[1]MONE(M)CAPARD'!AL348","v":3.4417385500000002},{"$f":"'[1]MONE(M)CAPARD'!AM348","v":4.4400000000000004},{"$f":"'[1]MONE(M)CAPARD'!AN348","v":3.03},{"$f":"'[1]MONE(M)CAPARD'!AO348","v":3.36},{"$f":"'[1]MONE(M)CAPARD'!AP348","v":4.38},{"$f":"'[1]MONE(M)CAPARD'!AQ348","v":1.8187},{"$f":"'[1]MONE(M)CAPARD'!AR348","v":1.7549999999999999},null,null,{"$f":"'[1]MONE(M)CAPARD'!J348","v":12.061859809799694},{"$f":"'[1]MONE(M)CAPARD'!K348","v":5.3408022871437453},{"$f":"'[1]MONE(M)CAPARD'!L348","v":8.5163419200239616},{"$f":"'[1]MONE(M)CAPARD'!M348","v":13.260713148678759},{"$f":"'[1]MONE(M)CAPARD'!N348","v":7.8943052725614962},{"$f":"'[1]MONE(M)CAPARD'!O348","v":7.8218734963135557},{"$f":"'[1]MONE(M)CAPARD'!P348","v":5.5241198858230316},null,null,{"$f":"'[1]MONE(M)CAPARD'!Q348","v":10.33},{"$f":"'[1]MONE(M)CAPARD'!R348","v":6.3},{"$f":"'[1]MONE(M)CAPARD'!S348","v":6.11},{"$f":"'[1]MONE(M)CAPARD'!T348","v":8.23},{"$f":"'[1]MONE(M)CAPARD'!U348","v":7.61},{"$f":"'[1]MONE(M)CAPARD'!V348","v":5.6927000000000003},{"$f":"'[1]MONE(M)CAPARD'!W348","v":6.13},null,null,{"$f":"'[1]MONE(M)CAPARD'!AS348","v":5},{"$f":"'[1]MONE(M)CAPARD'!AT348","v":"n.a."},{"$f":"'[1]MONE(M)CAPARD'!AU348","v":2.75},{"$f":"'[1]MONE(M)CAPARD'!AV348","v":5.5},{"$f":"'[1]MONE(M)CAPARD'!AW348","v":"n.a."},{"$f":"'[1]MONE(M)CAPARD'!AX348","v":5.25},{"$f":"'[1]MONE(M)CAPARD'!AY348","v":"n.a."},null,null,{"$f":"+'Datos_Regional (M)'!CF341","v":3.8830331632307979},{"$f":"+'Datos_Regional (M)'!CG341","v":5.3508448302869605},{"$f":"+'Datos_Regional (M)'!CH341","v":3.7553130105482335},{"$f":"+'Datos_Regional (M)'!CI341","v":10.35181130884788},{"$f":"+'Datos_Regional (M)'!CJ341","v":15.894782285555277},{"$f":"+'Datos_Regional (M)'!CK341","v":12.788396678576275},{"$f":"+'Datos_Regional (M)'!CL341","v":6.8240801937131002},null,null,936.05638832249781,483.74,912.27499999999975,378.85901375953472,435.07595586999997,853.4083333333333,959.82118627500006,3999.4146912853666,4959.2358775603661,null,null,1384.7116176499997,889.6674999999999,1540.1249999999998,819.38038797179115,646.99000090666675,1511.75,1871.5825422500002,6792.6245065284556,8664.2070487784567,null,null,-2793.2098152430913,-3704.9711712180911,null,null,{"$f":"'[1]EXT Comercio(M)'!C348","v":1112.420850499992},{"$f":"'[1]EXT Comercio(M)'!D348","v":493.66999999999985},{"$f":"'[1]EXT Comercio(M)'!E348","v":1065.3},{"$f":"'[1]EXT Comercio(M)'!F348","v":417.57655459964616},{"$f":"'[1]EXT Comercio(M)'!G348","v":511.12792657},{"$f":"'[1]EXT Comercio(M)'!H348","v":930.5},{"$f":"'[1]EXT Comercio(M)'!I348","v":1102.6100452999999},{"$f":"'[1]EXT Comercio(M)'!K348","v":4530.5953316696368},{"$f":"'[1]EXT Comercio(M)'!L348","v":5633.2053769696358},null,null,{"$f":"'[1]EXT Comercio(M)'!AG348","v":1423.5426651799933},{"$f":"'[1]EXT Comercio(M)'!AH348","v":870.46},{"$f":"'[1]EXT Comercio(M)'!AI348","v":1486.8},{"$f":"'[1]EXT Comercio(M)'!AJ348","v":833.69978994817711},{"$f":"'[1]EXT Comercio(M)'!AK348","v":626.75353355000016},{"$f":"'[1]EXT Comercio(M)'!AL348","v":1632.7},{"$f":"'[1]EXT Comercio(M)'!AM348","v":1983.6550540000001},{"$f":"'[1]EXT Comercio(M)'!AO348","v":6873.9559886781699},{"$f":"'[1]EXT Comercio(M)'!AP348","v":8857.611042678167},null,null,{"$f":"'[1]EXT Comercio(M)'!$BS348","v":-2343.3606570085321},{"$f":"'[1]EXT Comercio(M)'!$BT348","v":-3224.4056657085321}]
[null,null,"Abril",{"$f":"'[1]REAL IPC(M)'!AD349","v":2.3754301980577606},{"$f":"'[1]REAL IPC(M)'!AE349","v":0.87387387387387294},{"$f":"'[1]REAL IPC(M)'!AF349","v":3.9203484754200311},{"$f":"'[1]REAL IPC(M)'!AG349","v":4.2039059913935741},{"$f":"'[1]REAL IPC(M)'!AH349","v":4.8240941781801796},{"$f":"'[1]REAL IPC(M)'!AI349","v":4.0456848709080599},{"$f":"'[1]REAL IPC(M)'!AJ349","v":0.76555023923444698},null,null,{"$f":"'[1]REAL IMAE(M)'!AG349","v":3.7778110797293549},{"$f":"'[1]REAL IMAE(M)'!AH349","v":3.0450935241186299},{"$f":"'[1]REAL IMAE(M)'!AI349","v":4.2087268296225533},{"$f":"'[1]REAL IMAE(M)'!AJ349","v":3.8649033390785079},{"$f":"'[1]REAL IMAE(M)'!AK349","v":3.1183545230449186},{"$f":"'[1]REAL IMAE(M)'!AL349","v":7.4775779884535822},{"$f":"'[1]REAL IMAE(M)'!AM349","v":1.4570358698007566},null,null,{"$f":"'[1]EXT ITCER(M)'!C349","v":78.705648708851029},{"$f":"'[1]EXT ITCER(M)'!D349","v":94.553860162711771},{"$f":"'[1]EXT ITCER(M)'!E349","v":53.395236103154083},{"$f":"'[1]EXT ITCER(M)'!F349","v":78.328051469694131},{"$f":"'[1]EXT ITCER(M)'!G349","v":104.8233183209901},{"$f":"'[1]EXT ITCER(M)'!H349","v":108.0455635359114},{"$f":"'[1]EXT ITCER(M)'!I349","v":90.363605048047759},null,null,{"$f":"'[1]EXT TC(M)'!J349","v":1.161088161003597},{"$f":"'[1]EXT TC(M)'!K349","v":0},{"$f":"'[1]EXT TC(M)'!L349","v":0.99386415914939263},{"$f":"'[1]EXT TC(M)'!M349","v":0.80594044929493069},{"$f":"'[1]EXT TC(M)'!N349","v":4.88220649321336},{"$f":"'[1]EXT TC(M)'!O349","v":4.2210806592490897},{"$f":"'[1]EXT TC(M)'!P349","v":0},null,null,{"$f":"'[1]EXT RIN(M)'!C349","v":8128.2201999999997},{"$f":"'[1]EXT RIN(M)'!D349","v":3401.03},{"$f":"'[1]EXT RIN(M)'!E349","v":11845.9},{"$f":"'[1]EXT RIN(M)'!F349","v":4873.4576251489889},{"$f":"'[1]EXT RIN(M)'!G349","v":2932.5},{"$f":"'[1]EXT RIN(M)'!H349","v":7202.1803552235524},{"$f":"'[1]EXT RIN(M)'!I349","v":3344.6422300300001},null,null,{"$f":"'[1]EXT RIN(M)'!P349","v":71.758541917123722},{"$f":"'[1]EXT RIN(M)'!Q349","v":101.44636603888395},{"$f":"'[1]EXT RIN(M)'!R349","v":108.63128769400574},{"$f":"'[1]EXT RIN(M)'!S349","v":91.373148050940685},{"$f":"'[1]EXT RIN(M)'!T349","v":131.89225865730467},{"$f":"'[1]EXT RIN(M)'!U349","v":100.22814653691236},{"$f":"'[1]EXT RIN(M)'!V349","v":204.86484645578491},null,null,{"$f":"+'[1]MONE(M)CAPARD'!AE349","v":3.6869879761578277},{"$f":"'[1]MONE(M)CAPARD'!AF349","v":3.3567919978565692},{"$f":"'[1]MONE(M)CAPARD'!AG349","v":1.2794910179640782},{"$f":"'[1]MONE(M)CAPARD'!AH349","v":3.9404415501906018},{"$f":"'[1]MONE(M)CAPARD'!AI349","v":4.6880047132254345},{"$f":"'[1]MONE(M)CAPARD'!AJ349","v":2.0847718305504093},{"$f":"'[1]MONE(M)CAPARD'!AK349","v":1.0067426400759765},null,null,{"$f":"'[1]MONE(M)CAPARD'!AL349","v":3.4717663399999998},{"$f":"'[1]MONE(M)CAPARD'!AM349","v":4.26},{"$f":"'[1]MONE(M)CAPARD'!AN349","v":3.05},{"$f":"'[1]MONE(M)CAPARD'!AO349","v":3.52},{"$f":"'[1]MONE(M)CAPARD'!AP349","v":4.21},{"$f":"'[1]MONE(M)CAPARD'!AQ349","v":1.9897},{"$f":"'[1]MONE(M)CAPARD'!AR349","v":1.78},null,null,{"$f":"'[1]MONE(M)CAPARD'!J349","v":12.243728575980178},{"$f":"'[1]MONE(M)CAPARD'!K349","v":5.3890327766365989},{"$f":"'[1]MONE(M)CAPARD'!L349","v":8.7563712574850374},{"$f":"'[1]MONE(M)CAPARD'!M349","v":13.258710292249051},{"$f":"'[1]MONE(M)CAPARD'!N349","v":10.491220113557171},{"$f":"'[1]MONE(M)CAPARD'!O349","v":7.8291715213358142},{"$f":"'[1]MONE(M)CAPARD'!P349","v":5.3236942070275441},null,null,{"$f":"'[1]MONE(M)CAPARD'!Q349","v":10.48},{"$f":"'[1]MONE(M)CAPARD'!R349","v":6.31},{"$f":"'[1]MONE(M)CAPARD'!S349","v":6.2},{"$f":"'[1]MONE(M)CAPARD'!T349","v":8.27},{"$f":"'[1]MONE(M)CAPARD'!U349","v":7.21},{"$f":"'[1]MONE(M)CAPARD'!V349","v":5.7499000000000002},{"$f":"'[1]MONE(M)CAPARD'!W349","v":6.13},null,null,{"$f":"'[1]MONE(M)CAPARD'!AS349","v":5},{"$f":"'[1]MONE(M)CAPARD'!AT349","v":"n.a."},{"$f":"'[1]MONE(M)CAPARD'!AU349","v":2.75},{"$f":"'[1]MONE(M)CAPARD'!AV349","v":5.5},{"$f":"'[1]MONE(M)CAPARD'!AW349","v":"n.a."},{"$f":"'[1]MONE(M)CAPARD'!AX349","v":5.25},{"$f":"'[1]MONE(M)CAPARD'!AY349","v":"n.a."},null,null,{"$f":"+'Datos_Regional (M)'!CF342","v":2.9923700113904772},{"$f":"+'Datos_Regional (M)'!CG342","v":5.0620712594141581},{"$f":"+'Datos_Regional (M)'!CH342","v":3.4486803286323697},{"$f":"+'Datos_Regional (M)'!CI342","v":11.652842049005919},{"$f":"+'Datos_Regional (M)'!CJ342","v":13.812784202251937},{"$f":"+'Datos_Regional (M)'!CK342","v":13.532892362416082},{"$f":"+'Datos_Regional (M)'!CL342","v":6.4633307822110631},null,null,939.73862931833082,489.87249999999995,912.00833333333321,376.92034493843062,441.86641886166666,859.95833333333337,975.34309619166686,4020.3645597850955,4995.707655976762,null,null,1410.4154892008326,904.29750000000013,1566.0249999999999,833.63965739995331,659.5266813208334,1528.6000000000001,1899.7166955833334,6902.5043279216179,8802.2210235049515,null,null,-2882.1397681365233,-3806.51336752819,null,null,{"$f":"'[1]EXT Comercio(M)'!C349","v":969.78816413999698},{"$f":"'[1]EXT Comercio(M)'!D349","v":519.96000000000026},{"$f":"'[1]EXT Comercio(M)'!E349","v":943.9},{"$f":"'[1]EXT Comercio(M)'!F349","v":393.88485534813287},{"$f":"'[1]EXT Comercio(M)'!G349","v":504.94602915999997},{"$f":"'[1]EXT Comercio(M)'!H349","v":877.30000000000018},{"$f":"'[1]EXT Comercio(M)'!I349","v":1108.4048010000001},{"$f":"'[1]EXT Comercio(M)'!K349","v":4209.7790486481317},{"$f":"'[1]EXT Comercio(M)'!L349","v":5318.1838496481341},null,null,{"$f":"'[1]EXT Comercio(M)'!AG349","v":1512.5065518799952},{"$f":"'[1]EXT Comercio(M)'!AH349","v":1000.8499999999999},{"$f":"'[1]EXT Comercio(M)'!AI349","v":1657.6000000000001},{"$f":"'[1]EXT Comercio(M)'!AJ349","v":891.70531031369887},{"$f":"'[1]EXT Comercio(M)'!AK349","v":698.74783752000019},{"$f":"'[1]EXT Comercio(M)'!AL349","v":1607.5},{"$f":"'[1]EXT Comercio(M)'!AM349","v":1919.700844},{"$f":"'[1]EXT Comercio(M)'!AO349","v":7368.9096997136949},{"$f":"'[1]EXT Comercio(M)'!AP349","v":9288.6105437136939},null,null,{"$f":"'[1]EXT Comercio(M)'!$BS349","v":-3159.1306510655641},{"$f":"'[1]EXT Comercio(M)'!$BT349","v":-3970.4266940655634}]
[null,null,"Mayo ",{"$f":"'[1]REAL IPC(M)'!AD350","v":2.0359031201269446},{"$f":"'[1]REAL IPC(M)'!AE350","v":0.82741253709866147},{"$f":"'[1]REAL IPC(M)'!AF350","v":4.0865384615384475},{"$f":"'[1]REAL IPC(M)'!AG350","v":3.9933993399340006},{"$f":"'[1]REAL IPC(M)'!AH350","v":5.2647100235690694},{"$f":"'[1]REAL IPC(M)'!AI350","v":4.4703987112363661},{"$f":"'[1]REAL IPC(M)'!AJ350","v":0.76555023923444698},null,null,{"$f":"'[1]REAL IMAE(M)'!AG350","v":4.0067957765603692},{"$f":"'[1]REAL IMAE(M)'!AH350","v":2.2087386607790531},{"$f":"'[1]REAL IMAE(M)'!AI350","v":4.4349800816563159},{"$f":"'[1]REAL IMAE(M)'!AJ350","v":3.7778870919039345},{"$f":"'[1]REAL IMAE(M)'!AK350","v":-4.4286796702739588},{"$f":"'[1]REAL IMAE(M)'!AL350","v":7.6664968091867625},{"$f":"'[1]REAL IMAE(M)'!AM350","v":1.0151110838782582},null,null,{"$f":"'[1]EXT ITCER(M)'!C350","v":78.983576028280254},{"$f":"'[1]EXT ITCER(M)'!D350","v":94.674755650397003},{"$f":"'[1]EXT ITCER(M)'!E350","v":53.527576674707852},{"$f":"'[1]EXT ITCER(M)'!F350","v":78.949602508962428},{"$f":"'[1]EXT ITCER(M)'!G350","v":105.38081293356041},{"$f":"'[1]EXT ITCER(M)'!H350","v":108.1025460674331},{"$f":"'[1]EXT ITCER(M)'!I350","v":90.592272154439272},null,null,{"$f":"'[1]EXT TC(M)'!J350","v":-1.0070217697586545},{"$f":"'[1]EXT TC(M)'!K350","v":0},{"$f":"'[1]EXT TC(M)'!L350","v":1.4389324287600729},{"$f":"'[1]EXT TC(M)'!M350","v":1.410792983677474},{"$f":"'[1]EXT TC(M)'!N350","v":5.0729682688445541},{"$f":"'[1]EXT TC(M)'!O350","v":4.1668162988531563},{"$f":"'[1]EXT TC(M)'!P350","v":0},null,null,{"$f":"'[1]EXT RIN(M)'!C350","v":8010.7},{"$f":"'[1]EXT RIN(M)'!D350","v":3532.18},{"$f":"'[1]EXT RIN(M)'!E350","v":11849.5},{"$f":"'[1]EXT RIN(M)'!F350","v":4890.554671413397},{"$f":"'[1]EXT RIN(M)'!G350","v":2868.5},{"$f":"'[1]EXT RIN(M)'!H350","v":6911.1900791018998},{"$f":"'[1]EXT RIN(M)'!I350","v":3307.9993902700003},null,null,{"$f":"'[1]EXT RIN(M)'!P350","v":71.680043227924685},{"$f":"'[1]EXT RIN(M)'!Q350","v":105.58798630176298},{"$f":"'[1]EXT RIN(M)'!R350","v":111.62097914797744},{"$f":"'[1]EXT RIN(M)'!S350","v":93.903400898586213},{"$f":"'[1]EXT RIN(M)'!T350","v":131.38920877546411},{"$f":"'[1]EXT RIN(M)'!U350","v":97.528749036899157},{"$f":"'[1]EXT RIN(M)'!V350","v":203.31132245574528},null,null,{"$f":"+'[1]MONE(M)CAPARD'!AE350","v":3.8359996434441186},{"$f":"'[1]MONE(M)CAPARD'!AF350","v":3.424254749799303},{"$f":"'[1]MONE(M)CAPARD'!AG350","v":1.0889607390300364},{"$f":"'[1]MONE(M)CAPARD'!AH350","v":4.1412250079339818},{"$f":"'[1]MONE(M)CAPARD'!AI350","v":3.8405072940444644},{"$f":"'[1]MONE(M)CAPARD'!AJ350","v":1.5021492289900171},{"$f":"'[1]MONE(M)CAPARD'!AK350","v":0.94223646723647003},null,null,{"$f":"'[1]MONE(M)CAPARD'!AL350","v":3.2165026499999998},{"$f":"'[1]MONE(M)CAPARD'!AM350","v":4.28},{"$f":"'[1]MONE(M)CAPARD'!AN350","v":3.01},{"$f":"'[1]MONE(M)CAPARD'!AO350","v":3.47},{"$f":"'[1]MONE(M)CAPARD'!AP350","v":3.88},{"$f":"'[1]MONE(M)CAPARD'!AQ350","v":1.9204000000000001},{"$f":"'[1]MONE(M)CAPARD'!AR350","v":1.7149999999999999},null,null,{"$f":"'[1]MONE(M)CAPARD'!J350","v":13.779482433805684},{"$f":"'[1]MONE(M)CAPARD'!K350","v":5.6359548657568448},{"$f":"'[1]MONE(M)CAPARD'!L350","v":8.5442956120092521},{"$f":"'[1]MONE(M)CAPARD'!M350","v":13.487972072357971},{"$f":"'[1]MONE(M)CAPARD'!N350","v":9.3704160742906009},{"$f":"'[1]MONE(M)CAPARD'!O350","v":7.6717437548188547},{"$f":"'[1]MONE(M)CAPARD'!P350","v":5.3137701804368511},null,null,{"$f":"'[1]MONE(M)CAPARD'!Q350","v":10.539722330577412},{"$f":"'[1]MONE(M)CAPARD'!R350","v":6.51},{"$f":"'[1]MONE(M)CAPARD'!S350","v":6.22},{"$f":"'[1]MONE(M)CAPARD'!T350","v":8.1999999999999993},{"$f":"'[1]MONE(M)CAPARD'!U350","v":8.34},{"$f":"'[1]MONE(M)CAPARD'!V350","v":5.3033000000000001},{"$f":"'[1]MONE(M)CAPARD'!W350","v":6.12},null,null,{"$f":"'[1]MONE(M)CAPARD'!AS350","v":5},{"$f":"'[1]MONE(M)CAPARD'!AT350","v":"n.a."},{"$f":"'[1]MONE(M)CAPARD'!AU350","v":2.75},{"$f":"'[1]MONE(M)CAPARD'!AV350","v":5.5},{"$f":"'[1]MONE(M)CAPARD'!AW350","v":"n.a."},{"$f":"'[1]MONE(M)CAPARD'!AX350","v":5.25},{"$f":"'[1]MONE(M)CAPARD'!AY350","v":"n.a."},null,null,{"$f":"+'Datos_Regional (M)'!CF343","v":2.0882319324248666},{"$f":"+'Datos_Regional (M)'!CG343","v":5.2141296026069428},{"$f":"+'Datos_Regional (M)'!CH343","v":3.8430112397368932},{"$f":"+'Datos_Regional (M)'!CI343","v":12.15781042155999},{"$f":"+'Datos_Regional (M)'!CJ343","v":10.911333039210724},{"$f":"+'Datos_Regional (M)'!CK343","v":12.869139797450369},{"$f":"+'Datos_Regional (M)'!CL343","v":6.1317849013327264},null,null,945.14442625082995,490.27416666666676,910.24166666666645,372.20916586196898,442.65992481416657,862.66666666666663,955.43864960833344,4023.196016926966,4978.6346665353003,null,null,1416.2296428874981,908.95500000000004,1593.1249999999998,844.27322300200103,659.01678349666656,1545.4750000000004,1884.6697071666665,6967.0746493861652,8851.7443565528338,null,null,-2943.8786324592002,-3873.109690017533,null,null,{"$f":"'[1]EXT Comercio(M)'!C350","v":1098.3507001599889},{"$f":"'[1]EXT Comercio(M)'!D350","v":512.79999999999995},{"$f":"'[1]EXT Comercio(M)'!E350","v":956.8},{"$f":"'[1]EXT Comercio(M)'!F350","v":407.08152907616119},{"$f":"'[1]EXT Comercio(M)'!G350","v":469.45802566999998},{"$f":"'[1]EXT Comercio(M)'!H350","v":976.2},{"$f":"'[1]EXT Comercio(M)'!I350","v":909.77050000000008},{"$f":"'[1]EXT Comercio(M)'!K350","v":4420.6902549061451},{"$f":"'[1]EXT Comercio(M)'!L350","v":5330.4607549061438},null,null,{"$f":"'[1]EXT Comercio(M)'!AG350","v":1561.1622412799893},{"$f":"'[1]EXT Comercio(M)'!AH350","v":973.17000000000007},{"$f":"'[1]EXT Comercio(M)'!AI350","v":1881.1},{"$f":"'[1]EXT Comercio(M)'!AJ350","v":973.88538237068292},{"$f":"'[1]EXT Comercio(M)'!AK350","v":655.55064851999987},{"$f":"'[1]EXT Comercio(M)'!AL350","v":1708.9},{"$f":"'[1]EXT Comercio(M)'!AM350","v":1927.7276489999999},{"$f":"'[1]EXT Comercio(M)'!AO350","v":7753.7682721706697},{"$f":"'[1]EXT Comercio(M)'!AP350","v":9681.4959211706737},null,null,{"$f":"'[1]EXT Comercio(M)'!$BS350","v":-3333.0780172645245},{"$f":"'[1]EXT Comercio(M)'!$BT350","v":-4351.0351662645262}]
[null,null,"Junio",{"$f":"'[1]REAL IPC(M)'!AD351","v":2.1341316063528097},{"$f":"'[1]REAL IPC(M)'!AE351","v":0.89879561387740425},{"$f":"'[1]REAL IPC(M)'!AF351","v":3.7902667794264682},{"$f":"'[1]REAL IPC(M)'!AG351","v":4.1474654377880071},{"$f":"'[1]REAL IPC(M)'!AH351","v":5.6707510633995986},{"$f":"'[1]REAL IPC(M)'!AI351","v":4.6288842376428629},{"$f":"'[1]REAL IPC(M)'!AJ351","v":1.1663470757430454},null,null,{"$f":"'[1]REAL IMAE(M)'!AG351","v":4.1508377909868424},{"$f":"'[1]REAL IMAE(M)'!AH351","v":1.7320256573443504},{"$f":"'[1]REAL IMAE(M)'!AI351","v":4.2884791597977516},{"$f":"'[1]REAL IMAE(M)'!AJ351","v":3.6859083238660357},{"$f":"'[1]REAL IMAE(M)'!AK351","v":-4.2587167528565564},{"$f":"'[1]REAL IMAE(M)'!AL351","v":7.735753481152198},{"$f":"'[1]REAL IMAE(M)'!AM351","v":2.8996008024742199},null,null,{"$f":"'[1]EXT ITCER(M)'!C351","v":79.245506687253183},{"$f":"'[1]EXT ITCER(M)'!D351","v":94.676061947411284},{"$f":"'[1]EXT ITCER(M)'!E351","v":53.594187268299677},{"$f":"'[1]EXT ITCER(M)'!F351","v":79.231031892113947},{"$f":"'[1]EXT ITCER(M)'!G351","v":105.8219459087145},{"$f":"'[1]EXT ITCER(M)'!H351","v":108.0452702902649},{"$f":"'[1]EXT ITCER(M)'!I351","v":90.528604124164417},null,null,{"$f":"'[1]EXT TC(M)'!J351","v":6.6765258668008845E-3},{"$f":"'[1]EXT TC(M)'!K351","v":0},{"$f":"'[1]EXT TC(M)'!L351","v":1.9823148030586626},{"$f":"'[1]EXT TC(M)'!M351","v":2.1707918646831055},{"$f":"'[1]EXT TC(M)'!N351","v":5.2103541563372433},{"$f":"'[1]EXT TC(M)'!O351","v":4.0268796112327383},{"$f":"'[1]EXT TC(M)'!P351","v":0},null,null,{"$f":"'[1]EXT RIN(M)'!C351","v":8070.9},{"$f":"'[1]EXT RIN(M)'!D351","v":3457.39},{"$f":"'[1]EXT RIN(M)'!E351","v":11979.2},{"$f":"'[1]EXT RIN(M)'!F351","v":4884.7412109127436},{"$f":"'[1]EXT RIN(M)'!G351","v":2572.4},{"$f":"'[1]EXT RIN(M)'!H351","v":6597.9586467956469},{"$f":"'[1]EXT RIN(M)'!I351","v":2895.9110779099997},null,null,{"$f":"'[1]EXT RIN(M)'!P351","v":71.560793235375812},{"$f":"'[1]EXT RIN(M)'!Q351","v":104.44513925706404},{"$f":"'[1]EXT RIN(M)'!R351","v":111.18345185041005},{"$f":"'[1]EXT RIN(M)'!S351","v":92.358597644868311},{"$f":"'[1]EXT RIN(M)'!T351","v":117.081529820464},{"$f":"'[1]EXT RIN(M)'!U351","v":96.050877547897571},{"$f":"'[1]EXT RIN(M)'!V351","v":174.56980874737422},null,null,{"$f":"+'[1]MONE(M)CAPARD'!AE351","v":3.736134369217901},{"$f":"'[1]MONE(M)CAPARD'!AF351","v":3.4204614288259396},{"$f":"'[1]MONE(M)CAPARD'!AG351","v":1.3678866666666614},{"$f":"'[1]MONE(M)CAPARD'!AH351","v":3.862345132743374},{"$f":"'[1]MONE(M)CAPARD'!AI351","v":4.2338761273548542},{"$f":"'[1]MONE(M)CAPARD'!AJ351","v":1.8193979379857166},{"$f":"'[1]MONE(M)CAPARD'!AK351","v":0.6115204731013667},null,null,{"$f":"'[1]MONE(M)CAPARD'!AL351","v":3.2757069099999998},{"$f":"'[1]MONE(M)CAPARD'!AM351","v":4.3499999999999996},{"$f":"'[1]MONE(M)CAPARD'!AN351","v":3.07},{"$f":"'[1]MONE(M)CAPARD'!AO351","v":3.4},{"$f":"'[1]MONE(M)CAPARD'!AP351","v":4.1100000000000003},{"$f":"'[1]MONE(M)CAPARD'!AQ351","v":1.8028},{"$f":"'[1]MONE(M)CAPARD'!AR351","v":1.7849999999999999},null,null,{"$f":"'[1]MONE(M)CAPARD'!J351","v":13.659904439202084},{"$f":"'[1]MONE(M)CAPARD'!K351","v":5.4224674861927671},{"$f":"'[1]MONE(M)CAPARD'!L351","v":8.8155985185185113},{"$f":"'[1]MONE(M)CAPARD'!M351","v":13.022433628318597},{"$f":"'[1]MONE(M)CAPARD'!N351","v":9.8692160727252656},{"$f":"'[1]MONE(M)CAPARD'!O351","v":7.1497615757482791},{"$f":"'[1]MONE(M)CAPARD'!P351","v":4.9163116668957025},null,null,{"$f":"'[1]MONE(M)CAPARD'!Q351","v":10.541406350781061},{"$f":"'[1]MONE(M)CAPARD'!R351","v":6.37},{"$f":"'[1]MONE(M)CAPARD'!S351","v":6.29},{"$f":"'[1]MONE(M)CAPARD'!T351","v":8.1999999999999993},{"$f":"'[1]MONE(M)CAPARD'!U351","v":9.08},{"$f":"'[1]MONE(M)CAPARD'!V351","v":5.3677000000000001},{"$f":"'[1]MONE(M)CAPARD'!W351","v":6.14},null,null,{"$f":"'[1]MONE(M)CAPARD'!AS351","v":5},{"$f":"'[1]MONE(M)CAPARD'!AT351","v":"n.a."},{"$f":"'[1]MONE(M)CAPARD'!AU351","v":2.75},{"$f":"'[1]MONE(M)CAPARD'!AV351","v":5.5},{"$f":"'[1]MONE(M)CAPARD'!AW351","v":"n.a."},{"$f":"'[1]MONE(M)CAPARD'!AX351","v":5.25},{"$f":"'[1]MONE(M)CAPARD'!AY351","v":"n.a."},null,null,{"$f":"+'Datos_Regional (M)'!CF344","v":1.5006209498118483},{"$f":"+'Datos_Regional (M)'!CG344","v":5.602774686067713},{"$f":"+'Datos_Regional (M)'!CH344","v":3.9884091510973274},{"$f":"+'Datos_Regional (M)'!CI344","v":12.360623536964631},{"$f":"+'Datos_Regional (M)'!CJ344","v":8.7437002681588716},{"$f":"+'Datos_Regional (M)'!CK344","v":11.932454382803037},{"$f":"+'Datos_Regional (M)'!CL344","v":6.021679486258269},null,null,945.96864793749592,493.52833333333336,910.72499999999991,368.63949124387045,435.93976429249989,866.81666666666672,971.08744077500012,4021.6179034738657,4992.7053442488659,null,null,1419.0991880883312,918.98583333333329,1601.0583333333334,850.22359656850733,641.61093426249988,1570.75,1891.228930333333,7001.7278855860059,8892.9568159193386,null,null,-2980.1099821121384,-3900.2514716704718,null,null,{"$f":"'[1]EXT Comercio(M)'!C351","v":1007.595261439993},{"$f":"'[1]EXT Comercio(M)'!D351","v":532.40000000000009},{"$f":"'[1]EXT Comercio(M)'!E351","v":906.9},{"$f":"'[1]EXT Comercio(M)'!F351","v":378.12717640624828},{"$f":"'[1]EXT Comercio(M)'!G351","v":384.33847517999993},{"$f":"'[1]EXT Comercio(M)'!H351","v":916.1},{"$f":"'[1]EXT Comercio(M)'!I351","v":1097.4522610000001},{"$f":"'[1]EXT Comercio(M)'!K351","v":4125.4609130262434},{"$f":"'[1]EXT Comercio(M)'!L351","v":5222.9131740262419},null,null,{"$f":"'[1]EXT Comercio(M)'!AG351","v":1435.0018080199939},{"$f":"'[1]EXT Comercio(M)'!AH351","v":993.42000000000007},{"$f":"'[1]EXT Comercio(M)'!AI351","v":1605.2},{"$f":"'[1]EXT Comercio(M)'!AJ351","v":914.58038312739166},{"$f":"'[1]EXT Comercio(M)'!AK351","v":461.89318206000007},{"$f":"'[1]EXT Comercio(M)'!AL351","v":1747.9999999999998},{"$f":"'[1]EXT Comercio(M)'!AM351","v":1897.578798},{"$f":"'[1]EXT Comercio(M)'!AO351","v":7158.0953732073904},{"$f":"'[1]EXT Comercio(M)'!AP351","v":9055.6741712073854},null,null,{"$f":"'[1]EXT Comercio(M)'!$BS351","v":-3032.6344601811434},{"$f":"'[1]EXT Comercio(M)'!$BT351","v":-3832.7609971811435}]
[null,null,"Julio",{"$f":"'[1]REAL IPC(M)'!AD352","v":2.084340184925372},{"$f":"'[1]REAL IPC(M)'!AE352","v":1.0607695073714551},{"$f":"'[1]REAL IPC(M)'!AF352","v":2.6052711299606166},{"$f":"'[1]REAL IPC(M)'!AG352","v":4.2336724647194073},{"$f":"'[1]REAL IPC(M)'!AH352","v":5.171925852311821},{"$f":"'[1]REAL IPC(M)'!AI352","v":4.4278367084538361},{"$f":"'[1]REAL IPC(M)'!AJ352","v":1.3046109510086528},null,null,{"$f":"'[1]REAL IMAE(M)'!AG352","v":4.0622266511572862},{"$f":"'[1]REAL IMAE(M)'!AH352","v":2.5156825975860833},{"$f":"'[1]REAL IMAE(M)'!AI352","v":3.9720868626897268},{"$f":"'[1]REAL IMAE(M)'!AJ352","v":3.6718988203279457},{"$f":"'[1]REAL IMAE(M)'!AK352","v":-4.1678239027012047},{"$f":"'[1]REAL IMAE(M)'!AL352","v":7.5680468242930825},{"$f":"'[1]REAL IMAE(M)'!AM352","v":2.1178761177382821},null,null,{"$f":"'[1]EXT ITCER(M)'!C352","v":79.047336385904984},{"$f":"'[1]EXT ITCER(M)'!D352","v":94.618494464255789},{"$f":"'[1]EXT ITCER(M)'!E352","v":53.417278307716948},{"$f":"'[1]EXT ITCER(M)'!F352","v":79.106814591468989},{"$f":"'[1]EXT ITCER(M)'!G352","v":106.5149576156094},{"$f":"'[1]EXT ITCER(M)'!H352","v":108.5206981590435},{"$f":"'[1]EXT ITCER(M)'!I352","v":90.65268043789419},null,null,{"$f":"'[1]EXT TC(M)'!J352","v":-0.84585256004833831},{"$f":"'[1]EXT TC(M)'!K352","v":0},{"$f":"'[1]EXT TC(M)'!L352","v":2.5199871467060695},{"$f":"'[1]EXT TC(M)'!M352","v":2.3520681590878554},{"$f":"'[1]EXT TC(M)'!N352","v":5.3466567098565303},{"$f":"'[1]EXT TC(M)'!O352","v":4.3199649242625568},{"$f":"'[1]EXT TC(M)'!P352","v":0},null,null,{"$f":"'[1]EXT RIN(M)'!C352","v":7900.4038},{"$f":"'[1]EXT RIN(M)'!D352","v":3752.4},{"$f":"'[1]EXT RIN(M)'!E352","v":12127.1},{"$f":"'[1]EXT RIN(M)'!F352","v":4813.8329813645632},{"$f":"'[1]EXT RIN(M)'!G352","v":2414.6},{"$f":"'[1]EXT RIN(M)'!H352","v":7391},{"$f":"'[1]EXT RIN(M)'!I352","v":2526.4067045899997},null,null,{"$f":"'[1]EXT RIN(M)'!P352","v":69.752972077510279},{"$f":"'[1]EXT RIN(M)'!Q352","v":108.84367948721297},{"$f":"'[1]EXT RIN(M)'!R352","v":110.753957818901},{"$f":"'[1]EXT RIN(M)'!S352","v":93.040202913732131},{"$f":"'[1]EXT RIN(M)'!T352","v":113.01767173018879},{"$f":"'[1]EXT RIN(M)'!U352","v":113.48047206625857},{"$f":"'[1]EXT RIN(M)'!V352","v":154.00965066020674},null,null,{"$f":"+'[1]MONE(M)CAPARD'!AE352","v":3.835710558525848},{"$f":"'[1]MONE(M)CAPARD'!AF352","v":3.215125422522676},{"$f":"'[1]MONE(M)CAPARD'!AG352","v":2.4996073221139667},{"$f":"'[1]MONE(M)CAPARD'!AH352","v":3.9683217884130859},{"$f":"'[1]MONE(M)CAPARD'!AI352","v":3.6218700790777842},{"$f":"'[1]MONE(M)CAPARD'!AJ352","v":1.7213449480569809},{"$f":"'[1]MONE(M)CAPARD'!AK352","v":0.47913816008442456},null,null,{"$f":"'[1]MONE(M)CAPARD'!AL352","v":3.4577165299999999},{"$f":"'[1]MONE(M)CAPARD'!AM352","v":4.3099999999999996},{"$f":"'[1]MONE(M)CAPARD'!AN352","v":3.08},{"$f":"'[1]MONE(M)CAPARD'!AO352","v":3.57},{"$f":"'[1]MONE(M)CAPARD'!AP352","v":4.78},{"$f":"'[1]MONE(M)CAPARD'!AQ352","v":1.7159},{"$f":"'[1]MONE(M)CAPARD'!AR352","v":1.79},null,null,{"$f":"'[1]MONE(M)CAPARD'!J352","v":13.730393836973336},{"$f":"'[1]MONE(M)CAPARD'!K352","v":5.2436078989503585},{"$f":"'[1]MONE(M)CAPARD'!L352","v":10.091809861234134},{"$f":"'[1]MONE(M)CAPARD'!M352","v":12.775456549118374},{"$f":"'[1]MONE(M)CAPARD'!N352","v":11.354695956414464},{"$f":"'[1]MONE(M)CAPARD'!O352","v":8.4928152981916494},{"$f":"'[1]MONE(M)CAPARD'!P352","v":4.7632472043399154},null,null,{"$f":"'[1]MONE(M)CAPARD'!Q352","v":10.489836757804584},{"$f":"'[1]MONE(M)CAPARD'!R352","v":6.36},{"$f":"'[1]MONE(M)CAPARD'!S352","v":6.36},{"$f":"'[1]MONE(M)CAPARD'!T352","v":8.17},{"$f":"'[1]MONE(M)CAPARD'!U352","v":9.7899999999999991},{"$f":"'[1]MONE(M)CAPARD'!V352","v":5.7885999999999997},{"$f":"'[1]MONE(M)CAPARD'!W352","v":6.13},null,null,{"$f":"'[1]MONE(M)CAPARD'!AS352","v":5},{"$f":"'[1]MONE(M)CAPARD'!AT352","v":"n.a."},{"$f":"'[1]MONE(M)CAPARD'!AU352","v":2.75},{"$f":"'[1]MONE(M)CAPARD'!AV352","v":5.5},{"$f":"'[1]MONE(M)CAPARD'!AW352","v":"n.a."},{"$f":"'[1]MONE(M)CAPARD'!AX352","v":5.5},{"$f":"'[1]MONE(M)CAPARD'!AY352","v":"n.a."},null,null,{"$f":"+'Datos_Regional (M)'!CF345","v":2.0082522639847777},{"$f":"+'Datos_Regional (M)'!CG345","v":5.6019228059110082},{"$f":"+'Datos_Regional (M)'!CH345","v":3.9036428331589157},{"$f":"+'Datos_Regional (M)'!CI345","v":12.668801134728881},{"$f":"+'Datos_Regional (M)'!CJ345","v":5.806133328415819},{"$f":"+'Datos_Regional (M)'!CK345","v":13.696699996199158},{"$f":"+'Datos_Regional (M)'!CL345","v":5.1581917390429277},null,null,951.30342668666219,490.34833333333336,910.12499999999989,366.49755850824505,439.75694323166664,876.39166666666688,979.36236702500003,4034.4229284265734,5013.7852954515738,null,null,1441.904807293331,924.42916666666679,1612.75,861.61668279092999,630.90490513833322,1595.9583333333333,1914.6629169999999,7067.5638952225954,8982.2268122225942,null,null,-3033.1409667960202,-3968.441516771019,null,null,{"$f":"'[1]EXT Comercio(M)'!C352","v":958.47873387999823},{"$f":"'[1]EXT Comercio(M)'!D352","v":511.65000000000009},{"$f":"'[1]EXT Comercio(M)'!E352","v":899},{"$f":"'[1]EXT Comercio(M)'!F352","v":359.6526602819003},{"$f":"'[1]EXT Comercio(M)'!G352","v":485.13768133999997},{"$f":"'[1]EXT Comercio(M)'!H352","v":934.69999999999993},{"$f":"'[1]EXT Comercio(M)'!I352","v":1026.7103959999999},{"$f":"'[1]EXT Comercio(M)'!K352","v":4148.6190755019052},{"$f":"'[1]EXT Comercio(M)'!L352","v":5175.3294715019038},null,null,{"$f":"'[1]EXT Comercio(M)'!AG352","v":1489.6417721400026},{"$f":"'[1]EXT Comercio(M)'!AH352","v":945.60000000000127},{"$f":"'[1]EXT Comercio(M)'!AI352","v":1658.3000000000002},{"$f":"'[1]EXT Comercio(M)'!AJ352","v":920.32824497828517},{"$f":"'[1]EXT Comercio(M)'!AK352","v":509.82512139999994},{"$f":"'[1]EXT Comercio(M)'!AL352","v":1770.1000000000004},{"$f":"'[1]EXT Comercio(M)'!AM352","v":2118.6063669999999},{"$f":"'[1]EXT Comercio(M)'!AO352","v":7293.7951385182896},{"$f":"'[1]EXT Comercio(M)'!AP352","v":9412.4015055182899},null,null,{"$f":"'[1]EXT Comercio(M)'!$BS352","v":-3145.1760630163881},{"$f":"'[1]EXT Comercio(M)'!$BT352","v":-4237.0720340163862}]
[null,null,"Agosto",{"$f":"'[1]REAL IPC(M)'!AD353","v":2.2403361755443707},{"$f":"'[1]REAL IPC(M)'!AE353","v":1.4491449144914488},{"$f":"'[1]REAL IPC(M)'!AF353","v":3.3649829092290218},{"$f":"'[1]REAL IPC(M)'!AG353","v":4.3506705920837465},{"$f":"'[1]REAL IPC(M)'!AH353","v":4.9511530243974669},{"$f":"'[1]REAL IPC(M)'!AI353","v":3.8673591689971794},{"$f":"'[1]REAL IPC(M)'!AJ353","v":1.0795019157088077},null,null,{"$f":"'[1]REAL IMAE(M)'!AG353","v":3.7037665588754765},{"$f":"'[1]REAL IMAE(M)'!AH353","v":2.8437857659862855},{"$f":"'[1]REAL IMAE(M)'!AI353","v":3.6699669252449536},{"$f":"'[1]REAL IMAE(M)'!AJ353","v":3.6962275030142244},{"$f":"'[1]REAL IMAE(M)'!AK353","v":-4.2738659593494326},{"$f":"'[1]REAL IMAE(M)'!AL353","v":7.1651813232234813},{"$f":"'[1]REAL IMAE(M)'!AM353","v":1.6048356372942767},null,null,{"$f":"'[1]EXT ITCER(M)'!C353","v":79.342033373755072},{"$f":"'[1]EXT ITCER(M)'!D353","v":94.535011974379316},{"$f":"'[1]EXT ITCER(M)'!E353","v":53.452426779163602},{"$f":"'[1]EXT ITCER(M)'!F353","v":78.93080929501491},{"$f":"'[1]EXT ITCER(M)'!G353","v":107.3525110702891},{"$f":"'[1]EXT ITCER(M)'!H353","v":109.0075963665055},{"$f":"'[1]EXT ITCER(M)'!I353","v":90.747050759511836},null,null,{"$f":"'[1]EXT TC(M)'!J353","v":-1.2460219089082725},{"$f":"'[1]EXT TC(M)'!K353","v":0},{"$f":"'[1]EXT TC(M)'!L353","v":3.227180024253113},{"$f":"'[1]EXT TC(M)'!M353","v":2.6753676542399076},{"$f":"'[1]EXT TC(M)'!N353","v":5.3343196973648572},{"$f":"'[1]EXT TC(M)'!O353","v":4.562228288342947},{"$f":"'[1]EXT TC(M)'!P353","v":0},null,null,{"$f":"'[1]EXT RIN(M)'!C353","v":7799.9912000000004},{"$f":"'[1]EXT RIN(M)'!D353","v":3655.86},{"$f":"'[1]EXT RIN(M)'!E353","v":12535.8},{"$f":"'[1]EXT RIN(M)'!F353","v":4726.7085381577817},{"$f":"'[1]EXT RIN(M)'!G353","v":2315},{"$f":"'[1]EXT RIN(M)'!H353","v":7430.6821161792477},{"$f":"'[1]EXT RIN(M)'!I353","v":2787.9804913400003},null,null,{"$f":"'[1]EXT RIN(M)'!P353","v":68.527826125852599},{"$f":"'[1]EXT RIN(M)'!Q353","v":109.7611942090947},{"$f":"'[1]EXT RIN(M)'!R353","v":114.4307880831048},{"$f":"'[1]EXT RIN(M)'!S353","v":92.550887982708105},{"$f":"'[1]EXT RIN(M)'!T353","v":111.52177924691181},{"$f":"'[1]EXT RIN(M)'!U353","v":108.89523874930094},{"$f":"'[1]EXT RIN(M)'!V353","v":170.04835559024571},null,null,{"$f":"+'[1]MONE(M)CAPARD'!AE353","v":3.6283760042476967},{"$f":"'[1]MONE(M)CAPARD'!AF353","v":2.8397036642711391},{"$f":"'[1]MONE(M)CAPARD'!AG353","v":1.726906966490295},{"$f":"'[1]MONE(M)CAPARD'!AH353","v":3.7463385579937261},{"$f":"'[1]MONE(M)CAPARD'!AI353","v":5.493746608160075},{"$f":"'[1]MONE(M)CAPARD'!AJ353","v":2.4615440803138942},{"$f":"'[1]MONE(M)CAPARD'!AK353","v":0.71280335838221964},null,null,{"$f":"'[1]MONE(M)CAPARD'!AL353","v":3.5732170399999998},{"$f":"'[1]MONE(M)CAPARD'!AM353","v":4.33},{"$f":"'[1]MONE(M)CAPARD'!AN353","v":3.07},{"$f":"'[1]MONE(M)CAPARD'!AO353","v":3.57},{"$f":"'[1]MONE(M)CAPARD'!AP353","v":4.8499999999999996},{"$f":"'[1]MONE(M)CAPARD'!AQ353","v":2.0482999999999998},{"$f":"'[1]MONE(M)CAPARD'!AR353","v":1.8},null,null,{"$f":"'[1]MONE(M)CAPARD'!J353","v":13.571387311747221},{"$f":"'[1]MONE(M)CAPARD'!K353","v":5.0871351255434307},{"$f":"'[1]MONE(M)CAPARD'!L353","v":9.2439594356260955},{"$f":"'[1]MONE(M)CAPARD'!M353","v":12.639429467084636},{"$f":"'[1]MONE(M)CAPARD'!N353","v":10.572220186671069},{"$f":"'[1]MONE(M)CAPARD'!O353","v":8.2099332256327653},{"$f":"'[1]MONE(M)CAPARD'!P353","v":5.4417542429899504},null,null,{"$f":"'[1]MONE(M)CAPARD'!Q353","v":10.49066799339545},{"$f":"'[1]MONE(M)CAPARD'!R353","v":6.61},{"$f":"'[1]MONE(M)CAPARD'!S353","v":6.37},{"$f":"'[1]MONE(M)CAPARD'!T353","v":8.17},{"$f":"'[1]MONE(M)CAPARD'!U353","v":9.89},{"$f":"'[1]MONE(M)CAPARD'!V353","v":5.4657},{"$f":"'[1]MONE(M)CAPARD'!W353","v":6.58},null,null,{"$f":"'[1]MONE(M)CAPARD'!AS353","v":5},{"$f":"'[1]MONE(M)CAPARD'!AT353","v":"n.a."},{"$f":"'[1]MONE(M)CAPARD'!AU353","v":2.75},{"$f":"'[1]MONE(M)CAPARD'!AV353","v":5.5},{"$f":"'[1]MONE(M)CAPARD'!AW353","v":"n.a."},{"$f":"'[1]MONE(M)CAPARD'!AX353","v":5.5},{"$f":"'[1]MONE(M)CAPARD'!AY353","v":"n.a."},null,null,{"$f":"+'Datos_Regional (M)'!CF346","v":1.9863477023189136},{"$f":"+'Datos_Regional (M)'!CG346","v":6.4604132689425109},{"$f":"+'Datos_Regional (M)'!CH346","v":4.2231822997498947},{"$f":"+'Datos_Regional (M)'!CI346","v":13.662502809932132},{"$f":"+'Datos_Regional (M)'!CJ346","v":3.2725355370075482},{"$f":"+'Datos_Regional (M)'!CK346","v":13.364072240070124},{"$f":"+'Datos_Regional (M)'!CL346","v":5.1667387600109915},null,null,958.29494695249502,491.66833333333335,913.89166666666654,368.11632318565404,444.75968046083335,877.94999999999993,992.64215377500022,4054.6809505989822,5047.3231043739825,null,null,1444.365989516665,930.7791666666667,1625.3916666666667,871.57928944334492,622.76231312250013,1613.4750000000001,1928.1255158333333,7108.353425415843,9036.4789412491755,null,null,-3053.6724748168604,-3989.1558368751935,null,null,{"$f":"'[1]EXT Comercio(M)'!C353","v":979.31457100999285},{"$f":"'[1]EXT Comercio(M)'!D353","v":494.58999999999969},{"$f":"'[1]EXT Comercio(M)'!E353","v":935.6},{"$f":"'[1]EXT Comercio(M)'!F353","v":358.90620980898598},{"$f":"'[1]EXT Comercio(M)'!G353","v":493.28592459000004},{"$f":"'[1]EXT Comercio(M)'!H353","v":892.8},{"$f":"'[1]EXT Comercio(M)'!I353","v":1025.2977719999999},{"$f":"'[1]EXT Comercio(M)'!K353","v":4154.496705408972},{"$f":"'[1]EXT Comercio(M)'!L353","v":5179.7944774089774},null,null,{"$f":"'[1]EXT Comercio(M)'!AG353","v":1464.9985897700026},{"$f":"'[1]EXT Comercio(M)'!AH353","v":1012.7399999999998},{"$f":"'[1]EXT Comercio(M)'!AI353","v":1751.8},{"$f":"'[1]EXT Comercio(M)'!AJ353","v":968.91435550877986},{"$f":"'[1]EXT Comercio(M)'!AK353","v":580.41461865999997},{"$f":"'[1]EXT Comercio(M)'!AL353","v":1797.2000000000003},{"$f":"'[1]EXT Comercio(M)'!AM353","v":2025.535644},{"$f":"'[1]EXT Comercio(M)'!AO353","v":7576.0675639387773},{"$f":"'[1]EXT Comercio(M)'!AP353","v":9601.6032079387733},null,null,{"$f":"'[1]EXT Comercio(M)'!$BS353","v":-3421.5708585298053},{"$f":"'[1]EXT Comercio(M)'!$BT353","v":-4421.8087305298031}]
[null,null,"Setiembre",{"$f":"'[1]REAL IPC(M)'!AD354","v":2.211752846119865},{"$f":"'[1]REAL IPC(M)'!AE354","v":1.3846430498111908},{"$f":"'[1]REAL IPC(M)'!AF354","v":4.5520507141220339},{"$f":"'[1]REAL IPC(M)'!AG354","v":4.3833824010467888},{"$f":"'[1]REAL IPC(M)'!AH354","v":5.1374086584802514},{"$f":"'[1]REAL IPC(M)'!AI354","v":3.2870186581976699},{"$f":"'[1]REAL IPC(M)'!AJ354","v":0.75377268385863794},null,null,{"$f":"'[1]REAL IMAE(M)'!AG354","v":2.9916950221707141},{"$f":"'[1]REAL IMAE(M)'!AH354","v":2.0837679559964686},{"$f":"'[1]REAL IMAE(M)'!AI354","v":3.4137449223158409},{"$f":"'[1]REAL IMAE(M)'!AJ354","v":3.7099358107996543},{"$f":"'[1]REAL IMAE(M)'!AK354","v":-4.6379889312376674},{"$f":"'[1]REAL IMAE(M)'!AL354","v":6.5986171772143374},{"$f":"'[1]REAL IMAE(M)'!AM354","v":1.884914289275758},null,null,{"$f":"'[1]EXT ITCER(M)'!C354","v":80.896442364682258},{"$f":"'[1]EXT ITCER(M)'!D354","v":94.677013052444238},{"$f":"'[1]EXT ITCER(M)'!E354","v":54.354816947761222},{"$f":"'[1]EXT ITCER(M)'!F354","v":79.196963443108245},{"$f":"'[1]EXT ITCER(M)'!G354","v":107.5079243863397},{"$f":"'[1]EXT ITCER(M)'!H354","v":109.37082111109061},{"$f":"'[1]EXT ITCER(M)'!I354","v":90.956260015203654},null,null,{"$f":"'[1]EXT TC(M)'!J354","v":0.50379474959777826},{"$f":"'[1]EXT TC(M)'!K354","v":0},{"$f":"'[1]EXT TC(M)'!L354","v":4.9582659724261777},{"$f":"'[1]EXT TC(M)'!M354","v":2.8072895227810735},{"$f":"'[1]EXT TC(M)'!N354","v":5.2939982085484658},{"$f":"'[1]EXT TC(M)'!O354","v":4.4683317304259749},{"$f":"'[1]EXT TC(M)'!P354","v":0},null,null,{"$f":"'[1]EXT RIN(M)'!C354","v":7468.7727000000004},{"$f":"'[1]EXT RIN(M)'!D354","v":3558.55},{"$f":"'[1]EXT RIN(M)'!E354","v":12309.2},{"$f":"'[1]EXT RIN(M)'!F354","v":4629.7832003720378},{"$f":"'[1]EXT RIN(M)'!G354","v":2122.6},{"$f":"'[1]EXT RIN(M)'!H354","v":7328.6},{"$f":"'[1]EXT RIN(M)'!I354","v":2200.1805097499996},null,null,{"$f":"'[1]EXT RIN(M)'!P354","v":67.422867663872623},{"$f":"'[1]EXT RIN(M)'!Q354","v":108.30103521370017},{"$f":"'[1]EXT RIN(M)'!R354","v":118.99380288220995},{"$f":"'[1]EXT RIN(M)'!S354","v":92.277565662114597},{"$f":"'[1]EXT RIN(M)'!T354","v":111.29132510121791},{"$f":"'[1]EXT RIN(M)'!U354","v":106.60068076099671},{"$f":"'[1]EXT RIN(M)'!V354","v":133.04346936665473},null,null,{"$f":"+'[1]MONE(M)CAPARD'!AE354","v":3.6084374361848615},{"$f":"'[1]MONE(M)CAPARD'!AF354","v":3.0432192266761202},{"$f":"'[1]MONE(M)CAPARD'!AG354","v":0.55278617868362989},{"$f":"'[1]MONE(M)CAPARD'!AH354","v":3.7904669382638563},{"$f":"'[1]MONE(M)CAPARD'!AI354","v":5.5669955421510142},{"$f":"'[1]MONE(M)CAPARD'!AJ354","v":4.3811714197863303},{"$f":"'[1]MONE(M)CAPARD'!AK354","v":1.1277268194279662},null,null,{"$f":"'[1]MONE(M)CAPARD'!AL354","v":3.6225425200000001},{"$f":"'[1]MONE(M)CAPARD'!AM354","v":4.47},{"$f":"'[1]MONE(M)CAPARD'!AN354","v":3.13},{"$f":"'[1]MONE(M)CAPARD'!AO354","v":3.59},{"$f":"'[1]MONE(M)CAPARD'!AP354","v":5.27},{"$f":"'[1]MONE(M)CAPARD'!AQ354","v":2.1789875477662557},{"$f":"'[1]MONE(M)CAPARD'!AR354","v":1.89},null,null,{"$f":"'[1]MONE(M)CAPARD'!J354","v":13.266695232171843},{"$f":"'[1]MONE(M)CAPARD'!K354","v":4.9863142958495867},{"$f":"'[1]MONE(M)CAPARD'!L354","v":7.9557973555409607},{"$f":"'[1]MONE(M)CAPARD'!M354","v":12.699931056095258},{"$f":"'[1]MONE(M)CAPARD'!N354","v":12.226899918920809},{"$f":"'[1]MONE(M)CAPARD'!O354","v":9.7170107917938537},{"$f":"'[1]MONE(M)CAPARD'!P354","v":5.8024897335461887},null,null,{"$f":"'[1]MONE(M)CAPARD'!Q354","v":10.523450251057346},{"$f":"'[1]MONE(M)CAPARD'!R354","v":6.44},{"$f":"'[1]MONE(M)CAPARD'!S354","v":6.36},{"$f":"'[1]MONE(M)CAPARD'!T354","v":8.17},{"$f":"'[1]MONE(M)CAPARD'!U354","v":10.52},{"$f":"'[1]MONE(M)CAPARD'!V354","v":5.8731681699515201},{"$f":"'[1]MONE(M)CAPARD'!W354","v":6.6},null,null,{"$f":"'[1]MONE(M)CAPARD'!AS354","v":5},{"$f":"'[1]MONE(M)CAPARD'!AT354","v":"n.a."},{"$f":"'[1]MONE(M)CAPARD'!AU354","v":2.75},{"$f":"'[1]MONE(M)CAPARD'!AV354","v":5.5},{"$f":"'[1]MONE(M)CAPARD'!AW354","v":"n.a."},{"$f":"'[1]MONE(M)CAPARD'!AX354","v":5.5},{"$f":"'[1]MONE(M)CAPARD'!AY354","v":"n.a."},null,null,{"$f":"+'Datos_Regional (M)'!CF347","v":3.6776062933818965},{"$f":"+'Datos_Regional (M)'!CG347","v":6.7179967915566907},{"$f":"+'Datos_Regional (M)'!CH347","v":4.970978007023108},{"$f":"+'Datos_Regional (M)'!CI347","v":13.630120416222358},{"$f":"+'Datos_Regional (M)'!CJ347","v":4.9589351650070057E-2},{"$f":"+'Datos_Regional (M)'!CK347","v":13.201750113251954},{"$f":"+'Datos_Regional (M)'!CL347","v":5.0925835021585542},null,null,958.86072742249462,490.88499999999999,913.88333333333333,365.79451633371053,445.66717773000005,887.9666666666667,999.91716777500017,4063.0574214862058,5062.9745892612054,null,null,1428.9877817699987,946.64583333333337,1634.9499999999998,874.09830216883563,615.87996735833337,1638.3500000000001,1929.6463110000002,7138.9118846305,9068.5581956305014,null,null,-3075.8544631442951,-4005.583606369295,null,null,{"$f":"'[1]EXT Comercio(M)'!C354","v":936.54815390999465},{"$f":"'[1]EXT Comercio(M)'!D354","v":464.03999999999996},{"$f":"'[1]EXT Comercio(M)'!E354","v":837},{"$f":"'[1]EXT Comercio(M)'!F354","v":285.64826269237142},{"$f":"'[1]EXT Comercio(M)'!G354","v":409.52109643999995},{"$f":"'[1]EXT Comercio(M)'!H354","v":901.1},{"$f":"'[1]EXT Comercio(M)'!I354","v":901.90767500000004},{"$f":"'[1]EXT Comercio(M)'!K354","v":3833.8575130423706},{"$f":"'[1]EXT Comercio(M)'!L354","v":4735.7651880423728},null,null,{"$f":"'[1]EXT Comercio(M)'!AG354","v":1179.4706838199954},{"$f":"'[1]EXT Comercio(M)'!AH354","v":1017.1799999999994},{"$f":"'[1]EXT Comercio(M)'!AI354","v":1579.1},{"$f":"'[1]EXT Comercio(M)'!AJ354","v":900.69693113756273},{"$f":"'[1]EXT Comercio(M)'!AK354","v":509.55725964000004},{"$f":"'[1]EXT Comercio(M)'!AL354","v":1620.3999999999999},{"$f":"'[1]EXT Comercio(M)'!AM354","v":1767.983827},{"$f":"'[1]EXT Comercio(M)'!AO354","v":6806.4048745975597},{"$f":"'[1]EXT Comercio(M)'!AP354","v":8574.3887015975633},null,null,{"$f":"'[1]EXT Comercio(M)'!$BS354","v":-2972.5473615551891},{"$f":"'[1]EXT Comercio(M)'!$BT354","v":-3838.6235135551906}]
[null,null,"Octubre",{"$f":"'[1]REAL IPC(M)'!AD355","v":2.0269004078892925},{"$f":"'[1]REAL IPC(M)'!AE355","v":1.4906609195402269},{"$f":"'[1]REAL IPC(M)'!AF355","v":4.337587359465215},{"$f":"'[1]REAL IPC(M)'!AG355","v":4.6640574037834153},{"$f":"'[1]REAL IPC(M)'!AH355","v":5.1042985286963898},{"$f":"'[1]REAL IPC(M)'!AI355","v":3.5172687574433867},{"$f":"'[1]REAL IPC(M)'!AJ355","v":1.0280382775119559},null,null,{"$f":"'[1]REAL IMAE(M)'!AG355","v":2.1679475073780612},{"$f":"'[1]REAL IMAE(M)'!AH355","v":1.6260698714079078},{"$f":"'[1]REAL IMAE(M)'!AI355","v":3.2557510783637666},{"$f":"'[1]REAL IMAE(M)'!AJ355","v":3.6960995164812487},{"$f":"'[1]REAL IMAE(M)'!AK355","v":-5.3979811979771544},{"$f":"'[1]REAL IMAE(M)'!AL355","v":6.0809422452750974},{"$f":"'[1]REAL IMAE(M)'!AM355","v":1.1571122232675031},null,null,{"$f":"'[1]EXT ITCER(M)'!C355","v":82.632792973447209},{"$f":"'[1]EXT ITCER(M)'!D355","v":94.692513578874795},{"$f":"'[1]EXT ITCER(M)'!E355","v":54.738308040565173},{"$f":"'[1]EXT ITCER(M)'!F355","v":79.061343608138245},{"$f":"'[1]EXT ITCER(M)'!G355","v":107.70720214446609},{"$f":"'[1]EXT ITCER(M)'!H355","v":109.7256061456485},{"$f":"'[1]EXT ITCER(M)'!I355","v":91.107413081988426},null,null,{"$f":"'[1]EXT TC(M)'!J355","v":3.6154868527235227},{"$f":"'[1]EXT TC(M)'!K355","v":0},{"$f":"'[1]EXT TC(M)'!L355","v":5.2514373799338889},{"$f":"'[1]EXT TC(M)'!M355","v":2.5904520239291897},{"$f":"'[1]EXT TC(M)'!N355","v":5.5070726579191795},{"$f":"'[1]EXT TC(M)'!O355","v":4.5344467116096014},{"$f":"'[1]EXT TC(M)'!P355","v":0},null,null,{"$f":"'[1]EXT RIN(M)'!C355","v":6866.1754000000001},{"$f":"'[1]EXT RIN(M)'!D355","v":3499.76},{"$f":"'[1]EXT RIN(M)'!E355","v":12357.4},{"$f":"'[1]EXT RIN(M)'!F355","v":4612.6674062992843},{"$f":"'[1]EXT RIN(M)'!G355","v":2032.9},{"$f":"'[1]EXT RIN(M)'!H355","v":6984.5},{"$f":"'[1]EXT RIN(M)'!I355","v":2374.0483965200001},null,null,{"$f":"'[1]EXT RIN(M)'!P355","v":63.768238947704567},{"$f":"'[1]EXT RIN(M)'!Q355","v":103.87007870627178},{"$f":"'[1]EXT RIN(M)'!R355","v":120.78836757538858},{"$f":"'[1]EXT RIN(M)'!S355","v":94.160096359125916},{"$f":"'[1]EXT RIN(M)'!T355","v":109.61898653263074},{"$f":"'[1]EXT RIN(M)'!U355","v":102.19483109125488},{"$f":"'[1]EXT RIN(M)'!V355","v":143.82099059361624},null,null,{"$f":"+'[1]MONE(M)CAPARD'!AE355","v":3.6981419380833707},{"$f":"'[1]MONE(M)CAPARD'!AF355","v":2.708957706600605},{"$f":"'[1]MONE(M)CAPARD'!AG355","v":0.74030141973060892},{"$f":"'[1]MONE(M)CAPARD'!AH355","v":3.5216889996883918},{"$f":"'[1]MONE(M)CAPARD'!AI355","v":6.2355551170822006},{"$f":"'[1]MONE(M)CAPARD'!AJ355","v":4.565258820371267},{"$f":"'[1]MONE(M)CAPARD'!AK355","v":0.91258005025844924},null,null,{"$f":"'[1]MONE(M)CAPARD'!AL355","v":3.6663670599999998},{"$f":"'[1]MONE(M)CAPARD'!AM355","v":4.24},{"$f":"'[1]MONE(M)CAPARD'!AN355","v":3.14},{"$f":"'[1]MONE(M)CAPARD'!AO355","v":3.64},{"$f":"'[1]MONE(M)CAPARD'!AP355","v":5.0599999999999996},{"$f":"'[1]MONE(M)CAPARD'!AQ355","v":1.7476},{"$f":"'[1]MONE(M)CAPARD'!AR355","v":1.95},null,null,{"$f":"'[1]MONE(M)CAPARD'!J355","v":13.400819765336456},{"$f":"'[1]MONE(M)CAPARD'!K355","v":4.6894354981419246},{"$f":"'[1]MONE(M)CAPARD'!L355","v":8.1585293046960246},{"$f":"'[1]MONE(M)CAPARD'!M355","v":12.407260828918682},{"$f":"'[1]MONE(M)CAPARD'!N355","v":12.529582619530535},{"$f":"'[1]MONE(M)CAPARD'!O355","v":9.8943213683080682},{"$f":"'[1]MONE(M)CAPARD'!P355","v":5.4261785301915388},null,null,{"$f":"'[1]MONE(M)CAPARD'!Q355","v":10.660239715476584},{"$f":"'[1]MONE(M)CAPARD'!R355","v":6.25},{"$f":"'[1]MONE(M)CAPARD'!S355","v":6.39},{"$f":"'[1]MONE(M)CAPARD'!T355","v":8.24},{"$f":"'[1]MONE(M)CAPARD'!U355","v":10.87},{"$f":"'[1]MONE(M)CAPARD'!V355","v":5.9096000000000002},{"$f":"'[1]MONE(M)CAPARD'!W355","v":6.51},null,null,{"$f":"'[1]MONE(M)CAPARD'!AS355","v":5},{"$f":"'[1]MONE(M)CAPARD'!AT355","v":"n.a."},{"$f":"'[1]MONE(M)CAPARD'!AU355","v":2.75},{"$f":"'[1]MONE(M)CAPARD'!AV355","v":5.5},{"$f":"'[1]MONE(M)CAPARD'!AW355","v":"n.a."},{"$f":"'[1]MONE(M)CAPARD'!AX355","v":5.5},{"$f":"'[1]MONE(M)CAPARD'!AY355","v":"n.a."},null,null,{"$f":"+'Datos_Regional (M)'!CF348","v":5.1187927023158775},{"$f":"+'Datos_Regional (M)'!CG348","v":6.7592091028168877},{"$f":"+'Datos_Regional (M)'!CH348","v":5.1742681505719368},{"$f":"+'Datos_Regional (M)'!CI348","v":13.957560352226373},{"$f":"+'Datos_Regional (M)'!CJ348","v":-3.2672906060357221},{"$f":"+'Datos_Regional (M)'!CK348","v":11.398195575390812},{"$f":"+'Datos_Regional (M)'!CL348","v":4.4595692859063396},null,null,967.59276480916105,492.64416666666665,914.43333333333328,366.20754711527428,448.24492954333328,885.54166666666663,994.97627152500024,4074.6644081344343,5069.6406796594338,null,null,1444.9277461224983,955.25166666666667,1647.6416666666664,878.30513456649805,604.37499824166673,1659.625,1941.3903399999999,7190.1262122639964,9131.5165522639982,null,null,-3115.4618041295612,-4061.8758726045603,null,null,{"$f":"'[1]EXT Comercio(M)'!C355","v":1027.3510836799951},{"$f":"'[1]EXT Comercio(M)'!D355","v":490.61999999999989},{"$f":"'[1]EXT Comercio(M)'!E355","v":858.30000000000007},{"$f":"'[1]EXT Comercio(M)'!F355","v":294.38653493394088},{"$f":"'[1]EXT Comercio(M)'!G355","v":442.04655895000008},{"$f":"'[1]EXT Comercio(M)'!H355","v":888.59999999999991},{"$f":"'[1]EXT Comercio(M)'!I355","v":986.24410399999999},{"$f":"'[1]EXT Comercio(M)'!K355","v":4001.3041775639285},{"$f":"'[1]EXT Comercio(M)'!L355","v":4987.5482815639261},null,null,{"$f":"'[1]EXT Comercio(M)'!AG355","v":1625.8943016299975},{"$f":"'[1]EXT Comercio(M)'!AH355","v":1052.0600000000013},{"$f":"'[1]EXT Comercio(M)'!AI355","v":1846.1000000000001},{"$f":"'[1]EXT Comercio(M)'!AJ355","v":874.72853460994941},{"$f":"'[1]EXT Comercio(M)'!AK355","v":591.33082439000009},{"$f":"'[1]EXT Comercio(M)'!AL355","v":1926.8999999999996},{"$f":"'[1]EXT Comercio(M)'!AM355","v":2171.8809630000001},{"$f":"'[1]EXT Comercio(M)'!AO355","v":7917.0136606299493},{"$f":"'[1]EXT Comercio(M)'!AP355","v":10088.894623629953},null,null,{"$f":"'[1]EXT Comercio(M)'!$BS355","v":-3915.7094830660135},{"$f":"'[1]EXT Comercio(M)'!$BT355","v":-5101.3463420660119}]
[null,null,"Noviembre",{"$f":"'[1]REAL IPC(M)'!AD356","v":2.2924130467923365},{"$f":"'[1]REAL IPC(M)'!AE356","v":1.0750761512273685},{"$f":"'[1]REAL IPC(M)'!AF356","v":3.1483015741507705},{"$f":"'[1]REAL IPC(M)'!AG356","v":4.7062641999350854},{"$f":"'[1]REAL IPC(M)'!AH356","v":4.3957333820349653},{"$f":"'[1]REAL IPC(M)'!AI356","v":2.3717595146166177},{"$f":"'[1]REAL IPC(M)'!AJ356","v":0.77996164908917043},null,null,{"$f":"'[1]REAL IMAE(M)'!AG356","v":1.5341101629262273},{"$f":"'[1]REAL IMAE(M)'!AH356","v":1.5845984428682216},{"$f":"'[1]REAL IMAE(M)'!AI356","v":3.2331521624187598},{"$f":"'[1]REAL IMAE(M)'!AJ356","v":3.654036625014097},{"$f":"'[1]REAL IMAE(M)'!AK356","v":-6.4997770946034912},{"$f":"'[1]REAL IMAE(M)'!AL356","v":5.6881924235974051},{"$f":"'[1]REAL IMAE(M)'!AM356","v":0.3350949339103681},null,null,{"$f":"'[1]EXT ITCER(M)'!C356","v":84.836618825575002},{"$f":"'[1]EXT ITCER(M)'!D356","v":94.783473242591626},{"$f":"'[1]EXT ITCER(M)'!E356","v":54.64532849271901},{"$f":"'[1]EXT ITCER(M)'!F356","v":79.065238961173876},{"$f":"'[1]EXT ITCER(M)'!G356","v":107.7586553170476},{"$f":"'[1]EXT ITCER(M)'!H356","v":110.3940464738512},{"$f":"'[1]EXT ITCER(M)'!I356","v":91.432626438294562},null,null,{"$f":"'[1]EXT TC(M)'!J356","v":7.5695901850684155},{"$f":"'[1]EXT TC(M)'!K356","v":0},{"$f":"'[1]EXT TC(M)'!L356","v":5.0264637098428642},{"$f":"'[1]EXT TC(M)'!M356","v":2.7755427565705055},{"$f":"'[1]EXT TC(M)'!N356","v":5.9591319268513052},{"$f":"'[1]EXT TC(M)'!O356","v":4.5750239556347712},{"$f":"'[1]EXT TC(M)'!P356","v":0},null,null,{"$f":"'[1]EXT RIN(M)'!C356","v":6537.8323},{"$f":"'[1]EXT RIN(M)'!D356","v":3503.95},{"$f":"'[1]EXT RIN(M)'!E356","v":12472.4},{"$f":"'[1]EXT RIN(M)'!F356","v":4462.9558556984221},{"$f":"'[1]EXT RIN(M)'!G356","v":2026.7},{"$f":"'[1]EXT RIN(M)'!H356","v":6687.3247431731197},{"$f":"'[1]EXT RIN(M)'!I356","v":2579.2710548099999},null,null,{"$f":"'[1]EXT RIN(M)'!P356","v":58.564255756974227},{"$f":"'[1]EXT RIN(M)'!Q356","v":102.34984458900722},{"$f":"'[1]EXT RIN(M)'!R356","v":121.24234876853002},{"$f":"'[1]EXT RIN(M)'!S356","v":93.379420255402025},{"$f":"'[1]EXT RIN(M)'!T356","v":105.31579113571074},{"$f":"'[1]EXT RIN(M)'!U356","v":96.365383402432116},{"$f":"'[1]EXT RIN(M)'!V356","v":150.17160703671473},null,null,{"$f":"+'[1]MONE(M)CAPARD'!AE356","v":3.4778600359933747},{"$f":"'[1]MONE(M)CAPARD'!AF356","v":3.2697713171423608},{"$f":"'[1]MONE(M)CAPARD'!AG356","v":1.8824337349397751},{"$f":"'[1]MONE(M)CAPARD'!AH356","v":3.479959702417855},{"$f":"'[1]MONE(M)CAPARD'!AI356","v":6.8261917801732386},{"$f":"'[1]MONE(M)CAPARD'!AJ356","v":5.6173113685345237},{"$f":"'[1]MONE(M)CAPARD'!AK356","v":1.1709057352290571},null,null,{"$f":"'[1]MONE(M)CAPARD'!AL356","v":3.5975362099999999},{"$f":"'[1]MONE(M)CAPARD'!AM356","v":4.38},{"$f":"'[1]MONE(M)CAPARD'!AN356","v":3.15},{"$f":"'[1]MONE(M)CAPARD'!AO356","v":3.64},{"$f":"'[1]MONE(M)CAPARD'!AP356","v":5.58},{"$f":"'[1]MONE(M)CAPARD'!AQ356","v":1.9041999999999999},{"$f":"'[1]MONE(M)CAPARD'!AR356","v":1.96},null,null,{"$f":"'[1]MONE(M)CAPARD'!J356","v":13.241182043357032},{"$f":"'[1]MONE(M)CAPARD'!K356","v":5.4463712107782412},{"$f":"'[1]MONE(M)CAPARD'!L356","v":9.3668032128514245},{"$f":"'[1]MONE(M)CAPARD'!M356","v":12.352399256044638},{"$f":"'[1]MONE(M)CAPARD'!N356","v":13.778775283205887},{"$f":"'[1]MONE(M)CAPARD'!O356","v":9.7198099676724574},{"$f":"'[1]MONE(M)CAPARD'!P356","v":5.7253825626584547},null,null,{"$f":"'[1]MONE(M)CAPARD'!Q356","v":10.732079455605849},{"$f":"'[1]MONE(M)CAPARD'!R356","v":6.58},{"$f":"'[1]MONE(M)CAPARD'!S356","v":6.42},{"$f":"'[1]MONE(M)CAPARD'!T356","v":8.2799999999999994},{"$f":"'[1]MONE(M)CAPARD'!U356","v":11.02},{"$f":"'[1]MONE(M)CAPARD'!V356","v":5.9271000000000003},{"$f":"'[1]MONE(M)CAPARD'!W356","v":6.55},null,null,{"$f":"'[1]MONE(M)CAPARD'!AS356","v":5.25},{"$f":"'[1]MONE(M)CAPARD'!AT356","v":"n.a."},{"$f":"'[1]MONE(M)CAPARD'!AU356","v":2.75},{"$f":"'[1]MONE(M)CAPARD'!AV356","v":5.5},{"$f":"'[1]MONE(M)CAPARD'!AW356","v":"n.a."},{"$f":"'[1]MONE(M)CAPARD'!AX356","v":5.5},{"$f":"'[1]MONE(M)CAPARD'!AY356","v":"n.a."},null,null,{"$f":"+'Datos_Regional (M)'!CF349","v":4.6564307171231167},{"$f":"+'Datos_Regional (M)'!CG349","v":6.8424848593473531},{"$f":"+'Datos_Regional (M)'!CH349","v":4.9312294650942112},{"$f":"+'Datos_Regional (M)'!CI349","v":14.00238487290455},{"$f":"+'Datos_Regional (M)'!CJ349","v":-6.343971991981789},{"$f":"+'Datos_Regional (M)'!CK349","v":11.101611878450313},{"$f":"+'Datos_Regional (M)'!CL349","v":4.4649620890699238},null,null,969.74392856832753,492.36916666666679,913.13333333333321,364.72659450344531,450.58781918749997,885.80000000000007,988.03861360833343,4076.3608422592733,5064.399455867605,null,null,1443.411815844999,951.9675000000002,1658.0000000000002,885.40239789358748,591.47365299833336,1675.7833333333335,1934.6553272499998,7206.0387000702531,9140.6940273202545,null,null,-3129.6778578109793,-4076.2945714526454,null,null,{"$f":"'[1]EXT Comercio(M)'!C356","v":978.5568882099958},{"$f":"'[1]EXT Comercio(M)'!D356","v":478.86999999999989},{"$f":"'[1]EXT Comercio(M)'!E356","v":859.8},{"$f":"'[1]EXT Comercio(M)'!F356","v":300.05629003214779},{"$f":"'[1]EXT Comercio(M)'!G356","v":427.59774202999995},{"$f":"'[1]EXT Comercio(M)'!H356","v":907.3},{"$f":"'[1]EXT Comercio(M)'!I356","v":861.7191039999999},{"$f":"'[1]EXT Comercio(M)'!K356","v":3952.1809202721488},{"$f":"'[1]EXT Comercio(M)'!L356","v":4813.9000242721449},null,null,{"$f":"'[1]EXT Comercio(M)'!AG356","v":1581.1367357500037},{"$f":"'[1]EXT Comercio(M)'!AH356","v":988.67000000000007},{"$f":"'[1]EXT Comercio(M)'!AI356","v":1693.4},{"$f":"'[1]EXT Comercio(M)'!AJ356","v":976.67271590127291},{"$f":"'[1]EXT Comercio(M)'!AK356","v":578.64269109000008},{"$f":"'[1]EXT Comercio(M)'!AL356","v":1808.2},{"$f":"'[1]EXT Comercio(M)'!AM356","v":1717.7592789999999},{"$f":"'[1]EXT Comercio(M)'!AO356","v":7626.7221427412733},{"$f":"'[1]EXT Comercio(M)'!AP356","v":9344.4814217412641},null,null,{"$f":"'[1]EXT Comercio(M)'!$BS356","v":-3674.5412224691318},{"$f":"'[1]EXT Comercio(M)'!$BT356","v":-4530.5813974691337}]
[null,null,"Diciembre ",{"$f":"'[1]REAL IPC(M)'!AD357","v":2.0272621475774466},{"$f":"'[1]REAL IPC(M)'!AE357","v":0.43824344870762438},{"$f":"'[1]REAL IPC(M)'!AF357","v":2.3129150190255872},{"$f":"'[1]REAL IPC(M)'!AG357","v":4.2244437278297209},{"$f":"'[1]REAL IPC(M)'!AH357","v":3.8850547509849016},{"$f":"'[1]REAL IPC(M)'!AI357","v":1.1705946620883314},{"$f":"'[1]REAL IPC(M)'!AJ357","v":0.15837320574162145},null,null,{"$f":"'[1]REAL IMAE(M)'!AG357","v":1.3160234907520441},{"$f":"'[1]REAL IMAE(M)'!AH357","v":1.8742115971586371},{"$f":"'[1]REAL IMAE(M)'!AI357","v":3.3332607259582212},{"$f":"'[1]REAL IMAE(M)'!AJ357","v":3.5757813507070475},{"$f":"'[1]REAL IMAE(M)'!AK357","v":-7.715996887281551},{"$f":"'[1]REAL IMAE(M)'!AL357","v":5.4793840732471502},{"$f":"'[1]REAL IMAE(M)'!AM357","v":8.2993808161138383E-2},null,null,{"$f":"'[1]EXT ITCER(M)'!C357","v":83.257254376830232},{"$f":"'[1]EXT ITCER(M)'!D357","v":95.182414071877446},{"$f":"'[1]EXT ITCER(M)'!E357","v":54.791511994429598},{"$f":"'[1]EXT ITCER(M)'!F357","v":79.231371383984651},{"$f":"'[1]EXT ITCER(M)'!G357","v":107.2111637028907},{"$f":"'[1]EXT ITCER(M)'!H357","v":110.76415193270741},{"$f":"'[1]EXT ITCER(M)'!I357","v":91.785461799128157},null,null,{"$f":"'[1]EXT TC(M)'!J357","v":6.0846005172708146},{"$f":"'[1]EXT TC(M)'!K357","v":0},{"$f":"'[1]EXT TC(M)'!L357","v":5.3319185894074517},{"$f":"'[1]EXT TC(M)'!M357","v":3.2715290467338232},{"$f":"'[1]EXT TC(M)'!N357","v":5.7365154921040622},{"$f":"'[1]EXT TC(M)'!O357","v":4.2268282290833037},{"$f":"'[1]EXT TC(M)'!P357","v":0},null,null,{"$f":"'[1]EXT RIN(M)'!C357","v":7494.9984000000004},{"$f":"'[1]EXT RIN(M)'!D357","v":3353.55},{"$f":"'[1]EXT RIN(M)'!E357","v":12755.6},{"$f":"'[1]EXT RIN(M)'!F357","v":4853.1386447195428},{"$f":"'[1]EXT RIN(M)'!G357","v":2038.9},{"$f":"'[1]EXT RIN(M)'!H357","v":7627.1078836426968},{"$f":"'[1]EXT RIN(M)'!I357","v":2907.0582651700001},null,null,{"$f":"'[1]EXT RIN(M)'!P357","v":68.517783645481785},{"$f":"'[1]EXT RIN(M)'!Q357","v":99.118893904611426},{"$f":"'[1]EXT RIN(M)'!R357","v":113.55932336120256},{"$f":"'[1]EXT RIN(M)'!S357","v":91.23046266398174},{"$f":"'[1]EXT RIN(M)'!T357","v":107.34241795445925},{"$f":"'[1]EXT RIN(M)'!U357","v":98.937327768798227},{"$f":"'[1]EXT RIN(M)'!V357","v":160.07850169838505},null,null,{"$f":"+'[1]MONE(M)CAPARD'!AE357","v":3.8938003125832998},{"$f":"'[1]MONE(M)CAPARD'!AF357","v":4.004208370436336},{"$f":"'[1]MONE(M)CAPARD'!AG357","v":2.6752096550718334},{"$f":"'[1]MONE(M)CAPARD'!AH357","v":3.8911757425742679},{"$f":"'[1]MONE(M)CAPARD'!AI357","v":8.6321639385310416},{"$f":"'[1]MONE(M)CAPARD'!AJ357","v":6.9632933970996715},{"$f":"'[1]MONE(M)CAPARD'!AK357","v":1.818746387300501},null,null,{"$f":"'[1]MONE(M)CAPARD'!AL357","v":3.6468646100000002},{"$f":"'[1]MONE(M)CAPARD'!AM357","v":4.46},{"$f":"'[1]MONE(M)CAPARD'!AN357","v":3.14},{"$f":"'[1]MONE(M)CAPARD'!AO357","v":3.65},{"$f":"'[1]MONE(M)CAPARD'!AP357","v":5.24},{"$f":"'[1]MONE(M)CAPARD'!AQ357","v":2.1215999999999999},{"$f":"'[1]MONE(M)CAPARD'!AR357","v":1.98},null,null,{"$f":"'[1]MONE(M)CAPARD'!J357","v":13.585275868991921},{"$f":"'[1]MONE(M)CAPARD'!K357","v":5.7167034728406101},{"$f":"'[1]MONE(M)CAPARD'!L357","v":10.171819441405969},{"$f":"'[1]MONE(M)CAPARD'!M357","v":12.670306311881198},{"$f":"'[1]MONE(M)CAPARD'!N357","v":15.380325157611544},{"$f":"'[1]MONE(M)CAPARD'!O357","v":10.766721714193455},{"$f":"'[1]MONE(M)CAPARD'!P357","v":6.3915043639021514},null,null,{"$f":"'[1]MONE(M)CAPARD'!Q357","v":10.812962593964714},{"$f":"'[1]MONE(M)CAPARD'!R357","v":6.18},{"$f":"'[1]MONE(M)CAPARD'!S357","v":6.45},{"$f":"'[1]MONE(M)CAPARD'!T357","v":8.1199999999999992},{"$f":"'[1]MONE(M)CAPARD'!U357","v":11.03},{"$f":"'[1]MONE(M)CAPARD'!V357","v":6.0841000000000003},{"$f":"'[1]MONE(M)CAPARD'!W357","v":6.56},null,null,{"$f":"'[1]MONE(M)CAPARD'!AS357","v":5.25},{"$f":"'[1]MONE(M)CAPARD'!AT357","v":"n.a."},{"$f":"'[1]MONE(M)CAPARD'!AU357","v":2.75},{"$f":"'[1]MONE(M)CAPARD'!AV357","v":5.5},{"$f":"'[1]MONE(M)CAPARD'!AW357","v":"n.a."},{"$f":"'[1]MONE(M)CAPARD'!AX357","v":5.5},{"$f":"'[1]MONE(M)CAPARD'!AY357","v":"n.a."},null,null,{"$f":"+'Datos_Regional (M)'!CF350","v":4.4432114496036901},{"$f":"+'Datos_Regional (M)'!CG350","v":6.8864085962981436},{"$f":"+'Datos_Regional (M)'!CH350","v":4.5397688442660122},{"$f":"+'Datos_Regional (M)'!CI350","v":14.204321626748694},{"$f":"+'Datos_Regional (M)'!CJ350","v":-8.828082165925677},{"$f":"+'Datos_Regional (M)'!CK350","v":10.372298125428436},{"$f":"+'Datos_Regional (M)'!CL350","v":3.3541087512918955},null,null,971.77817671749438,492.11583333333328,914.13333333333321,361.11242562398814,451.34094328791667,886.50833333333333,{"$f":"IF(EN162=\"\",\"\",+AVERAGE(EN151:EN162))","v":968.88348602500002},4076.9890456293992,5045.8725316543996,null,null,1438.8386851849984,955.35916666666697,1639.5250000000003,893.70157420729174,583.23084561666667,1683.1083333333336,1917.1636025833332,7193.7636050089577,9110.9272075922909,null,null,-3116.7745593795576,-4065.0546759378908,null,null,{"$f":"'[1]EXT Comercio(M)'!C357","v":857.48295703999338},{"$f":"'[1]EXT Comercio(M)'!D357","v":417.98999999999978},{"$f":"'[1]EXT Comercio(M)'!E357","v":899.3},{"$f":"'[1]EXT Comercio(M)'!F357","v":307.96099414261738},{"$f":"'[1]EXT Comercio(M)'!G357","v":365.04728808499999},{"$f":"'[1]EXT Comercio(M)'!H357","v":824.2},{"$f":"'[1]EXT Comercio(M)'!I357","v":731.15634699999998},{"$f":"'[1]EXT Comercio(M)'!K357","v":3671.9812392676104},{"$f":"'[1]EXT Comercio(M)'!L357","v":4403.1375862676141},null,null,{"$f":"'[1]EXT Comercio(M)'!AG357","v":1321.749703099993},{"$f":"'[1]EXT Comercio(M)'!AH357","v":885.22000000000116},{"$f":"'[1]EXT Comercio(M)'!AI357","v":1522.8999999999999},{"$f":"'[1]EXT Comercio(M)'!AJ357","v":889.64512798400642},{"$f":"'[1]EXT Comercio(M)'!AK357","v":510.71452385999993},{"$f":"'[1]EXT Comercio(M)'!AL357","v":1617.9},{"$f":"'[1]EXT Comercio(M)'!AM357","v":1771.8537139999999},{"$f":"'[1]EXT Comercio(M)'!AO357","v":6748.1293549440161},{"$f":"'[1]EXT Comercio(M)'!AP357","v":8519.9830689440278},null,null,{"$f":"'[1]EXT Comercio(M)'!$BS357","v":-3076.1481156763912},{"$f":"'[1]EXT Comercio(M)'!$BT357","v":-4116.8454826763918}]
[null,2019,"Enero",{"$f":"'[1]REAL IPC(M)'!AD358","v":1.6663756337366431},{"$f":"'[1]REAL IPC(M)'!AE358","v":0.24984360485888271},{"$f":"'[1]REAL IPC(M)'!AF358","v":4.1048689138576702},{"$f":"'[1]REAL IPC(M)'!AG358","v":3.9549839228295856},{"$f":"'[1]REAL IPC(M)'!AH358","v":3.3048488318587941},{"$f":"'[1]REAL IPC(M)'!AI358","v":0.70811609991439906},{"$f":"'[1]REAL IPC(M)'!AJ358","v":-0.30477554918817584},null,null,{"$f":"'[1]REAL IMAE(M)'!AG358","v":1.4573990659514535},{"$f":"'[1]REAL IMAE(M)'!AH358","v":2.5140987114582658},{"$f":"'[1]REAL IMAE(M)'!AI358","v":3.5260694408248381},{"$f":"'[1]REAL IMAE(M)'!AJ358","v":3.4405697368942381},{"$f":"'[1]REAL IMAE(M)'!AK358","v":-8.8165775605759293},{"$f":"'[1]REAL IMAE(M)'!AL358","v":5.3812513708294594},{"$f":"'[1]REAL IMAE(M)'!AM358","v":0.71888110593530374},null,null,{"$f":"'[1]EXT ITCER(M)'!C358","v":83.843155665429563},{"$f":"'[1]EXT ITCER(M)'!D358","v":95.20298504362583},{"$f":"'[1]EXT ITCER(M)'!E358","v":54.043567089464062},{"$f":"'[1]EXT ITCER(M)'!F358","v":79.209306518748818},{"$f":"'[1]EXT ITCER(M)'!G358","v":108.28129520851439},{"$f":"'[1]EXT ITCER(M)'!H358","v":111.2327471288548},{"$f":"'[1]EXT ITCER(M)'!I358","v":92.006201308326709},null,null,{"$f":"'[1]EXT TC(M)'!J358","v":6.4431894195015449},{"$f":"'[1]EXT TC(M)'!K358","v":0},{"$f":"'[1]EXT TC(M)'!L358","v":5.2976823492953589},{"$f":"'[1]EXT TC(M)'!M358","v":3.1675016378280603},{"$f":"'[1]EXT TC(M)'!N358","v":5.9286961769362607},{"$f":"'[1]EXT TC(M)'!O358","v":4.0455392991671291},{"$f":"'[1]EXT TC(M)'!P358","v":0},null,null,{"$f":"'[1]EXT RIN(M)'!C358","v":7571.5874999999996},{"$f":"'[1]EXT RIN(M)'!D358","v":3493.55},{"$f":"'[1]EXT RIN(M)'!E358","v":12452.4},{"$f":"'[1]EXT RIN(M)'!F358","v":4788.8999999999996},{"$f":"'[1]EXT RIN(M)'!G358","v":1961.6000000000001},{"$f":"'[1]EXT RIN(M)'!H358","v":7046.5049646461903},{"$f":"'[1]EXT RIN(M)'!I358","v":2844.6931911500001},null,null,{"$f":"'[1]EXT RIN(M)'!P358","v":71.081034112191006},{"$f":"'[1]EXT RIN(M)'!Q358","v":99.927461738641441},{"$f":"'[1]EXT RIN(M)'!R358","v":116.29543082487007},{"$f":"'[1]EXT RIN(M)'!S358","v":94.433264908578437},{"$f":"'[1]EXT RIN(M)'!T358","v":109.80240371966769},{"$f":"'[1]EXT RIN(M)'!U358","v":95.72633541805429},{"$f":"'[1]EXT RIN(M)'!V358","v":168.4498577955948},null,null,{"$f":"+'[1]MONE(M)CAPARD'!AE358","v":4.5084958893157809},{"$f":"'[1]MONE(M)CAPARD'!AF358","v":4.0699877909269491},{"$f":"'[1]MONE(M)CAPARD'!AG358","v":0.90786444092675944},{"$f":"'[1]MONE(M)CAPARD'!AH358","v":4.2181874420043268},{"$f":"'[1]MONE(M)CAPARD'!AI358","v":9.9212425899130565},{"$f":"'[1]MONE(M)CAPARD'!AJ358","v":7.1115260392520527},{"$f":"'[1]MONE(M)CAPARD'!AK358","v":2.3419131277848919},null,null,{"$f":"'[1]MONE(M)CAPARD'!AL358","v":3.6397709100000002},{"$f":"'[1]MONE(M)CAPARD'!AM358","v":4.33},{"$f":"'[1]MONE(M)CAPARD'!AN358","v":3.16},{"$f":"'[1]MONE(M)CAPARD'!AO358","v":3.69},{"$f":"'[1]MONE(M)CAPARD'!AP358","v":5.1583060550661974},{"$f":"'[1]MONE(M)CAPARD'!AQ358","v":2.2852999999999999},{"$f":"'[1]MONE(M)CAPARD'!AR358","v":2.0299999999999998},null,null,{"$f":"'[1]MONE(M)CAPARD'!J358","v":11.790722912606283},{"$f":"'[1]MONE(M)CAPARD'!K358","v":6.2844550860084958},{"$f":"'[1]MONE(M)CAPARD'!L358","v":8.2946467117570961},{"$f":"'[1]MONE(M)CAPARD'!M358","v":12.933498298793685},{"$f":"'[1]MONE(M)CAPARD'!N358","v":15.714175368554594},{"$f":"'[1]MONE(M)CAPARD'!O358","v":11.830311559264416},{"$f":"'[1]MONE(M)CAPARD'!P358","v":6.8682081683526599},null,null,{"$f":"'[1]MONE(M)CAPARD'!Q358","v":8.3605535300000007},{"$f":"'[1]MONE(M)CAPARD'!R358","v":6.55},{"$f":"'[1]MONE(M)CAPARD'!S358","v":6.55},{"$f":"'[1]MONE(M)CAPARD'!T358","v":8.18},{"$f":"'[1]MONE(M)CAPARD'!U358","v":11.072876283627158},{"$f":"'[1]MONE(M)CAPARD'!V358","v":6.1733000000000002},{"$f":"'[1]MONE(M)CAPARD'!W358","v":6.5424999999999995},null,null,{"$f":"'[1]MONE(M)CAPARD'!AS358","v":5.25},{"$f":"'[1]MONE(M)CAPARD'!AT358","v":"n.a."},{"$f":"'[1]MONE(M)CAPARD'!AU358","v":2.75},{"$f":"'[1]MONE(M)CAPARD'!AV358","v":5.75},{"$f":"'[1]MONE(M)CAPARD'!AW358","v":"n.a."},{"$f":"'[1]MONE(M)CAPARD'!AX358","v":5.5},{"$f":"'[1]MONE(M)CAPARD'!AY358","v":"n.a."},null,null,{"$f":"+'Datos_Regional (M)'!CF351","v":4.4761505862802808},{"$f":"+'Datos_Regional (M)'!CG351","v":7.3051971145787986},{"$f":"+'Datos_Regional (M)'!CH351","v":4.6742866691968699},{"$f":"+'Datos_Regional (M)'!CI351","v":13.71521307819541},{"$f":"+'Datos_Regional (M)'!CJ351","v":-11.911048796065293},{"$f":"+'Datos_Regional (M)'!CK351","v":9.9487446696527648},{"$f":"+'Datos_Regional (M)'!CL351","v":2.9884078096588329},null,null,974.80280721082715,490.77083333333331,912.16666666666652,358.01014767695443,448.92931076791666,892.43333333333339,{"$f":"IF(EN163=\"\",\"\",+AVERAGE(EN152:EN163))","v":957.65706935833339},4077.1130989890316,5034.7701683473651,null,null,1442.4188867733308,958.97583333333353,1649.4583333333333,894.70935874853865,572.06335748749996,1687.9666666666669,1900.4697692500001,7205.5924363427039,9106.0622055927051,null,null,-3128.4793373536709,-4071.2920372453377,null,null,{"$f":"'[1]EXT Comercio(M)'!C358","v":860.00268409999148},{"$f":"'[1]EXT Comercio(M)'!D358","v":483.88},{"$f":"'[1]EXT Comercio(M)'!E358","v":855.80000000000007},{"$f":"'[1]EXT Comercio(M)'!F358","v":363.14838253445589},{"$f":"'[1]EXT Comercio(M)'!G358","v":436.63636252000003},{"$f":"'[1]EXT Comercio(M)'!H358","v":840.59999999999991},{"$f":"'[1]EXT Comercio(M)'!I358","v":814.48300000000006},{"$f":"'[1]EXT Comercio(M)'!K358","v":3840.0674291544474},{"$f":"'[1]EXT Comercio(M)'!L358","v":4654.5504291544476},null,null,{"$f":"'[1]EXT Comercio(M)'!AG358","v":1424.002784249999},{"$f":"'[1]EXT Comercio(M)'!AH358","v":942.16},{"$f":"'[1]EXT Comercio(M)'!AI358","v":1685.6000000000001},{"$f":"'[1]EXT Comercio(M)'!AJ358","v":846.01279985586075},{"$f":"'[1]EXT Comercio(M)'!AK358","v":534.87124846000006},{"$f":"'[1]EXT Comercio(M)'!AL358","v":1631.4},{"$f":"'[1]EXT Comercio(M)'!AM358","v":1826.914},{"$f":"'[1]EXT Comercio(M)'!AO358","v":7064.0468325658603},{"$f":"'[1]EXT Comercio(M)'!AP358","v":8890.960832565861},null,null,{"$f":"'[1]EXT Comercio(M)'!$BS358","v":-3223.9794034114125},{"$f":"'[1]EXT Comercio(M)'!$BT358","v":-4236.4104034114125}]
[null,null,"Febrero",{"$f":"'[1]REAL IPC(M)'!AD359","v":1.5354770355484519},{"$f":"'[1]REAL IPC(M)'!AE359","v":0.34841535029005516},{"$f":"'[1]REAL IPC(M)'!AF359","v":4.4584553028597149},{"$f":"'[1]REAL IPC(M)'!AG359","v":4.089456869009588},{"$f":"'[1]REAL IPC(M)'!AH359","v":3.3579926806237168},{"$f":"'[1]REAL IPC(M)'!AI359","v":1.1918672587053112},{"$f":"'[1]REAL IPC(M)'!AJ359","v":-0.50047619047618463},null,null,{"$f":"'[1]REAL IMAE(M)'!AG359","v":1.4215448686825349},{"$f":"'[1]REAL IMAE(M)'!AH359","v":2.7034465859587393},{"$f":"'[1]REAL IMAE(M)'!AI359","v":3.7100924094347545},{"$f":"'[1]REAL IMAE(M)'!AJ359","v":3.2430703061770862},{"$f":"'[1]REAL IMAE(M)'!AK359","v":-9.6372398617113877},{"$f":"'[1]REAL IMAE(M)'!AL359","v":5.2628176472515644},{"$f":"'[1]REAL IMAE(M)'!AM359","v":0.87647561637385996},null,null,{"$f":"'[1]EXT ITCER(M)'!C359","v":84.578655623898925},{"$f":"'[1]EXT ITCER(M)'!D359","v":95.283389349138872},{"$f":"'[1]EXT ITCER(M)'!E359","v":54.118745037162689},{"$f":"'[1]EXT ITCER(M)'!F359","v":78.95851599956913},{"$f":"'[1]EXT ITCER(M)'!G359","v":108.64657761084101},{"$f":"'[1]EXT ITCER(M)'!H359","v":111.3506660692303},{"$f":"'[1]EXT ITCER(M)'!I359","v":92.165896849374676},null,null,{"$f":"'[1]EXT TC(M)'!J359","v":6.9123823726509661},{"$f":"'[1]EXT TC(M)'!K359","v":0},{"$f":"'[1]EXT TC(M)'!L359","v":5.0440513637539688},{"$f":"'[1]EXT TC(M)'!M359","v":3.4787463230153115},{"$f":"'[1]EXT TC(M)'!N359","v":5.9827045671758574},{"$f":"'[1]EXT TC(M)'!O359","v":3.3915467664156624},{"$f":"'[1]EXT TC(M)'!P359","v":0},null,null,{"$f":"'[1]EXT RIN(M)'!C359","v":7525.2952999999998},{"$f":"'[1]EXT RIN(M)'!D359","v":3615.3},{"$f":"'[1]EXT RIN(M)'!E359","v":12557.2},{"$f":"'[1]EXT RIN(M)'!F359","v":4838.3999999999996},{"$f":"'[1]EXT RIN(M)'!G359","v":1937.4},{"$f":"'[1]EXT RIN(M)'!H359","v":7133.8695190563603},{"$f":"'[1]EXT RIN(M)'!I359","v":2480.4440872700002},null,null,{"$f":"'[1]EXT RIN(M)'!P359","v":70.603425737943297},{"$f":"'[1]EXT RIN(M)'!Q359","v":100.41713399117069},{"$f":"'[1]EXT RIN(M)'!R359","v":116.13530442341171},{"$f":"'[1]EXT RIN(M)'!S359","v":95.019913805810859},{"$f":"'[1]EXT RIN(M)'!T359","v":109.09972242715232},{"$f":"'[1]EXT RIN(M)'!U359","v":97.141760608923676},{"$f":"'[1]EXT RIN(M)'!V359","v":147.83037335399897},null,null,{"$f":"+'[1]MONE(M)CAPARD'!AE359","v":4.6432272759214523},{"$f":"'[1]MONE(M)CAPARD'!AF359","v":3.9777256429773873},{"$f":"'[1]MONE(M)CAPARD'!AG359","v":0.5471502478982555},{"$f":"'[1]MONE(M)CAPARD'!AH359","v":4.1027624309392223},{"$f":"'[1]MONE(M)CAPARD'!AI359","v":10.391810478580974},{"$f":"'[1]MONE(M)CAPARD'!AJ359","v":5.9860865357967601},{"$f":"'[1]MONE(M)CAPARD'!AK359","v":2.5934558193626134},null,null,{"$f":"'[1]MONE(M)CAPARD'!AL359","v":4.0652984300000004},{"$f":"'[1]MONE(M)CAPARD'!AM359","v":4.34},{"$f":"'[1]MONE(M)CAPARD'!AN359","v":3.15},{"$f":"'[1]MONE(M)CAPARD'!AO359","v":3.69},{"$f":"'[1]MONE(M)CAPARD'!AP359","v":5.3094594696521398},{"$f":"'[1]MONE(M)CAPARD'!AQ359","v":2.3952},{"$f":"'[1]MONE(M)CAPARD'!AR359","v":2.08},null,null,{"$f":"'[1]MONE(M)CAPARD'!J359","v":11.995065330896596},{"$f":"'[1]MONE(M)CAPARD'!K359","v":6.2298787956813255},{"$f":"'[1]MONE(M)CAPARD'!L359","v":7.9567945677947849},{"$f":"'[1]MONE(M)CAPARD'!M359","v":12.816421117249842},{"$f":"'[1]MONE(M)CAPARD'!N359","v":14.667742021612719},{"$f":"'[1]MONE(M)CAPARD'!O359","v":12.066911177829093},{"$f":"'[1]MONE(M)CAPARD'!P359","v":7.1311659783009187},null,null,{"$f":"'[1]MONE(M)CAPARD'!Q359","v":8.6145363600000007},{"$f":"'[1]MONE(M)CAPARD'!R359","v":6.6},{"$f":"'[1]MONE(M)CAPARD'!S359","v":6.56},{"$f":"'[1]MONE(M)CAPARD'!T359","v":8.1999999999999993},{"$f":"'[1]MONE(M)CAPARD'!U359","v":12.604218208320511},{"$f":"'[1]MONE(M)CAPARD'!V359","v":6.3169000000000004},{"$f":"'[1]MONE(M)CAPARD'!W359","v":6.5949999999999998},null,null,{"$f":"'[1]MONE(M)CAPARD'!AS359","v":5.25},{"$f":"'[1]MONE(M)CAPARD'!AT359","v":"n.a."},{"$f":"'[1]MONE(M)CAPARD'!AU359","v":2.75},{"$f":"'[1]MONE(M)CAPARD'!AV359","v":5.75},{"$f":"'[1]MONE(M)CAPARD'!AW359","v":"n.a."},{"$f":"'[1]MONE(M)CAPARD'!AX359","v":5.5},{"$f":"'[1]MONE(M)CAPARD'!AY359","v":"n.a."},null,null,{"$f":"+'Datos_Regional (M)'!CF352","v":4.218567346316604},{"$f":"+'Datos_Regional (M)'!CG352","v":7.0481885113485632},{"$f":"+'Datos_Regional (M)'!CH352","v":4.2161525947022271},{"$f":"+'Datos_Regional (M)'!CI352","v":14.090362646076438},{"$f":"+'Datos_Regional (M)'!CJ352","v":-14.099994703577302},{"$f":"+'Datos_Regional (M)'!CK352","v":9.634218830756879},{"$f":"+'Datos_Regional (M)'!CL352","v":3.2442669240535515},null,null,976.31050225332729,489.04333333333329,909.32499999999993,353.40479365605597,447.4112899120833,893.38333333333355,944.70416710833342,4068.8782524881335,5013.5824195964669,null,null,1441.1228891649971,962.60083333333353,1652.2833333333331,901.1339245868711,564.36626491750008,1694.5666666666668,1902.8768449166666,7216.0739120027019,9118.9507569193702,null,null,-3147.1956595145689,-4105.3683373229023,null,null,{"$f":"'[1]EXT Comercio(M)'!C359","v":929.83597896999458},{"$f":"'[1]EXT Comercio(M)'!D359","v":468.05000000000007},{"$f":"'[1]EXT Comercio(M)'!E359","v":894.2},{"$f":"'[1]EXT Comercio(M)'!F359","v":374.42807401606376},{"$f":"'[1]EXT Comercio(M)'!G359","v":439.79236840999999},{"$f":"'[1]EXT Comercio(M)'!H359","v":831.2},{"$f":"'[1]EXT Comercio(M)'!I359","v":770.69400000000007},{"$f":"'[1]EXT Comercio(M)'!K359","v":3937.5064213960586},{"$f":"'[1]EXT Comercio(M)'!L359","v":4708.200421396059},null,null,{"$f":"'[1]EXT Comercio(M)'!AG359","v":1274.3668331600018},{"$f":"'[1]EXT Comercio(M)'!AH359","v":869.67999999999972},{"$f":"'[1]EXT Comercio(M)'!AI359","v":1459.5},{"$f":"'[1]EXT Comercio(M)'!AJ359","v":822.73751930678566},{"$f":"'[1]EXT Comercio(M)'!AK359","v":514.09368986000004},{"$f":"'[1]EXT Comercio(M)'!AL359","v":1465.6},{"$f":"'[1]EXT Comercio(M)'!AM359","v":1705.326},{"$f":"'[1]EXT Comercio(M)'!AO359","v":6405.9780423267875},{"$f":"'[1]EXT Comercio(M)'!AP359","v":8111.3040423267867},null,null,{"$f":"'[1]EXT Comercio(M)'!$BS359","v":-2468.4716209307276},{"$f":"'[1]EXT Comercio(M)'!$BT359","v":-3403.1036209307276}]
[null,null,"Marzo",{"$f":"'[1]REAL IPC(M)'!AD360","v":1.4201372317598189},{"$f":"'[1]REAL IPC(M)'!AE360","v":0.68222728491020856},{"$f":"'[1]REAL IPC(M)'!AF360","v":4.1710348959113537},{"$f":"'[1]REAL IPC(M)'!AG360","v":4.1388092964024192},{"$f":"'[1]REAL IPC(M)'!AH360","v":5.0875154396655624},{"$f":"'[1]REAL IPC(M)'!AI360","v":1.4745828482731846},{"$f":"'[1]REAL IPC(M)'!AJ360","v":-0.18401522359658529},null,null,{"$f":"'[1]REAL IMAE(M)'!AG360","v":1.1485098440998236},{"$f":"'[1]REAL IMAE(M)'!AH360","v":2.9244624967497113},{"$f":"'[1]REAL IMAE(M)'!AI360","v":3.8498535482206968},{"$f":"'[1]REAL IMAE(M)'!AJ360","v":3.1026415168168766},{"$f":"'[1]REAL IMAE(M)'!AK360","v":-10.17552146416803},{"$f":"'[1]REAL IMAE(M)'!AL360","v":5.0789820029124595},{"$f":"'[1]REAL IMAE(M)'!AM360","v":1.4355580643723114},null,null,{"$f":"'[1]EXT ITCER(M)'!C360","v":84.209476649667465},{"$f":"'[1]EXT ITCER(M)'!D360","v":95.496687636673343},{"$f":"'[1]EXT ITCER(M)'!E360","v":54.071336236500628},{"$f":"'[1]EXT ITCER(M)'!F360","v":79.125895601540606},{"$f":"'[1]EXT ITCER(M)'!G360","v":107.2460479678833},{"$f":"'[1]EXT ITCER(M)'!H360","v":111.2138736899762},{"$f":"'[1]EXT ITCER(M)'!I360","v":92.198911214599022},null,null,{"$f":"'[1]EXT TC(M)'!J360","v":6.4383590619585362},{"$f":"'[1]EXT TC(M)'!K360","v":0},{"$f":"'[1]EXT TC(M)'!L360","v":3.9799349240780826},{"$f":"'[1]EXT TC(M)'!M360","v":3.4154923662152821},{"$f":"'[1]EXT TC(M)'!N360","v":5.7659079958260344},{"$f":"'[1]EXT TC(M)'!O360","v":2.7107971081107372},{"$f":"'[1]EXT TC(M)'!P360","v":0},null,null,{"$f":"'[1]EXT RIN(M)'!C360","v":8336.4212000000007},{"$f":"'[1]EXT RIN(M)'!D360","v":3594.41},{"$f":"'[1]EXT RIN(M)'!E360","v":12759.2},{"$f":"'[1]EXT RIN(M)'!F360","v":4830.8999999999996},{"$f":"'[1]EXT RIN(M)'!G360","v":1913.1000000000001},{"$f":"'[1]EXT RIN(M)'!H360","v":7353.5459141715801},{"$f":"'[1]EXT RIN(M)'!I360","v":2697.0524484800003},null,null,{"$f":"'[1]EXT RIN(M)'!P360","v":77.483024719104662},{"$f":"'[1]EXT RIN(M)'!Q360","v":103.75867227142066},{"$f":"'[1]EXT RIN(M)'!R360","v":114.000060682773},{"$f":"'[1]EXT RIN(M)'!S360","v":96.794360473132485},{"$f":"'[1]EXT RIN(M)'!T360","v":112.13094091830871},{"$f":"'[1]EXT RIN(M)'!U360","v":97.992932795370365},{"$f":"'[1]EXT RIN(M)'!V360","v":162.27434706308412},null,null,{"$f":"+'[1]MONE(M)CAPARD'!AE360","v":4.7129326568721721},{"$f":"'[1]MONE(M)CAPARD'!AF360","v":3.6031907645665533},{"$f":"'[1]MONE(M)CAPARD'!AG360","v":0.81497232406008024},{"$f":"'[1]MONE(M)CAPARD'!AH360","v":4.0726322225619089},{"$f":"'[1]MONE(M)CAPARD'!AI360","v":6.6573165560866041},{"$f":"'[1]MONE(M)CAPARD'!AJ360","v":5.5968864244741887},{"$f":"'[1]MONE(M)CAPARD'!AK360","v":2.2882259076168818},null,null,{"$f":"'[1]MONE(M)CAPARD'!AL360","v":3.9689317599999998},{"$f":"'[1]MONE(M)CAPARD'!AM360","v":4.3099999999999996},{"$f":"'[1]MONE(M)CAPARD'!AN360","v":3.12},{"$f":"'[1]MONE(M)CAPARD'!AO360","v":3.74},{"$f":"'[1]MONE(M)CAPARD'!AP360","v":5.8845742684087234},{"$f":"'[1]MONE(M)CAPARD'!AQ360","v":2.0144000000000002},{"$f":"'[1]MONE(M)CAPARD'!AR360","v":2.1},null,null,{"$f":"'[1]MONE(M)CAPARD'!J360","v":11.682388795397801},{"$f":"'[1]MONE(M)CAPARD'!K360","v":5.7485545077499856},{"$f":"'[1]MONE(M)CAPARD'!L360","v":8.273859535619275},{"$f":"'[1]MONE(M)CAPARD'!M360","v":12.734148578416384},{"$f":"'[1]MONE(M)CAPARD'!N360","v":13.605009069912398},{"$f":"'[1]MONE(M)CAPARD'!O360","v":11.109991128107076},{"$f":"'[1]MONE(M)CAPARD'!P360","v":6.8315863825536356},null,null,{"$f":"'[1]MONE(M)CAPARD'!Q360","v":9.02676634},{"$f":"'[1]MONE(M)CAPARD'!R360","v":6.47},{"$f":"'[1]MONE(M)CAPARD'!S360","v":6.59},{"$f":"'[1]MONE(M)CAPARD'!T360","v":8.19},{"$f":"'[1]MONE(M)CAPARD'!U360","v":11.419850272378261},{"$f":"'[1]MONE(M)CAPARD'!V360","v":5.8235000000000001},{"$f":"'[1]MONE(M)CAPARD'!W360","v":6.6349999999999998},null,null,{"$f":"'[1]MONE(M)CAPARD'!AS360","v":5},{"$f":"'[1]MONE(M)CAPARD'!AT360","v":"n.a."},{"$f":"'[1]MONE(M)CAPARD'!AU360","v":2.75},{"$f":"'[1]MONE(M)CAPARD'!AV360","v":5.75},{"$f":"'[1]MONE(M)CAPARD'!AW360","v":"n.a."},{"$f":"'[1]MONE(M)CAPARD'!AX360","v":5.5},{"$f":"'[1]MONE(M)CAPARD'!AY360","v":"n.a."},null,null,{"$f":"+'Datos_Regional (M)'!CF353","v":4.2706767075909147},{"$f":"+'Datos_Regional (M)'!CG353","v":6.9718587610636096},{"$f":"+'Datos_Regional (M)'!CH353","v":4.2748883929449644},{"$f":"+'Datos_Regional (M)'!CI353","v":13.891382078062264},{"$f":"+'Datos_Regional (M)'!CJ353","v":-16.815600545838837},{"$f":"+'Datos_Regional (M)'!CK353","v":11.87279628564788},{"$f":"+'Datos_Regional (M)'!CL353","v":3.4579045014985654},null,null,974.33922555332776,490.81083333333339,909.25833333333333,352.48706121509923,445.2254869645833,898.00000000000011,928.23582999999996,4070.1209403996777,4998.3567703996778,null,null,1448.5622575894956,973.39000000000033,1663.9416666666666,904.66472849726642,556.62448314500011,1700.0833333333333,1886.45267375,7247.2664692317639,9133.7191429817631,null,null,-3177.1455288320853,-4135.3623725820862,null,null,{"$f":"'[1]EXT Comercio(M)'!C360","v":1088.7655300999984},{"$f":"'[1]EXT Comercio(M)'!D360","v":514.87999999999988},{"$f":"'[1]EXT Comercio(M)'!E360","v":1064.5},{"$f":"'[1]EXT Comercio(M)'!F360","v":406.56376530816522},{"$f":"'[1]EXT Comercio(M)'!G360","v":484.89829120000002},{"$f":"'[1]EXT Comercio(M)'!H360","v":985.9},{"$f":"'[1]EXT Comercio(M)'!I360","v":904.99},{"$f":"'[1]EXT Comercio(M)'!K360","v":4545.5075866081652},{"$f":"'[1]EXT Comercio(M)'!L360","v":5450.4975866081641},null,null,{"$f":"'[1]EXT Comercio(M)'!AG360","v":1512.8150862739735},{"$f":"'[1]EXT Comercio(M)'!AH360","v":999.92999999999984},{"$f":"'[1]EXT Comercio(M)'!AI360","v":1626.7},{"$f":"'[1]EXT Comercio(M)'!AJ360","v":876.0694368729221},{"$f":"'[1]EXT Comercio(M)'!AK360","v":533.85215228000004},{"$f":"'[1]EXT Comercio(M)'!AL360","v":1698.9},{"$f":"'[1]EXT Comercio(M)'!AM360","v":1786.5650000000001},{"$f":"'[1]EXT Comercio(M)'!AO360","v":7248.2666754268957},{"$f":"'[1]EXT Comercio(M)'!AP360","v":9034.8316754268963},null,null,{"$f":"'[1]EXT Comercio(M)'!$BS360","v":-2702.7590888187342},{"$f":"'[1]EXT Comercio(M)'!$BT360","v":-3584.3340888187349}]
[null,null,"Abril",{"$f":"'[1]REAL IPC(M)'!AD361","v":2.070072322870216},{"$f":"'[1]REAL IPC(M)'!AE361","v":0.8047791372689137},{"$f":"'[1]REAL IPC(M)'!AF361","v":4.7529940119760434},{"$f":"'[1]REAL IPC(M)'!AG361","v":4.8602287166454925},{"$f":"'[1]REAL IPC(M)'!AH361","v":5.7699592597319818},{"$f":"'[1]REAL IPC(M)'!AI361","v":1.6079158936301692},{"$f":"'[1]REAL IPC(M)'!AJ361","v":-9.3922127255461008E-2},null,null,{"$f":"'[1]REAL IMAE(M)'!AG361","v":0.94162913466970677},{"$f":"'[1]REAL IMAE(M)'!AH361","v":3.5866817015117132},{"$f":"'[1]REAL IMAE(M)'!AI361","v":3.9316799731245071},{"$f":"'[1]REAL IMAE(M)'!AJ361","v":2.9944158657738082},{"$f":"'[1]REAL IMAE(M)'!AK361","v":-10.510820927270084},{"$f":"'[1]REAL IMAE(M)'!AL361","v":4.8837692787133387},{"$f":"'[1]REAL IMAE(M)'!AM361","v":2.2717780534955874},null,null,{"$f":"'[1]EXT ITCER(M)'!C361","v":83.487339863468321},{"$f":"'[1]EXT ITCER(M)'!D361","v":95.68024488192826},{"$f":"'[1]EXT ITCER(M)'!E361","v":53.618530736565191},{"$f":"'[1]EXT ITCER(M)'!F361","v":78.713970519352188},{"$f":"'[1]EXT ITCER(M)'!G361","v":106.3757233342246},{"$f":"'[1]EXT ITCER(M)'!H361","v":111.05590733220789},{"$f":"'[1]EXT ITCER(M)'!I361","v":92.262618470770576},null,null,{"$f":"'[1]EXT TC(M)'!J361","v":6.1424251408241499},{"$f":"'[1]EXT TC(M)'!K361","v":0},{"$f":"'[1]EXT TC(M)'!L361","v":3.1228021769944125},{"$f":"'[1]EXT TC(M)'!M361","v":3.3049568235262421},{"$f":"'[1]EXT TC(M)'!N361","v":5.225942062071522},{"$f":"'[1]EXT TC(M)'!O361","v":2.3854237867395689},{"$f":"'[1]EXT TC(M)'!P361","v":0},null,null,{"$f":"'[1]EXT RIN(M)'!C361","v":8138.8918999999996},{"$f":"'[1]EXT RIN(M)'!D361","v":3712.89},{"$f":"'[1]EXT RIN(M)'!E361","v":12845.9},{"$f":"'[1]EXT RIN(M)'!F361","v":4950.8},{"$f":"'[1]EXT RIN(M)'!G361","v":1968.8000000000002},{"$f":"'[1]EXT RIN(M)'!H361","v":7275.4016782442932},{"$f":"'[1]EXT RIN(M)'!I361","v":2979.7113331100004},null,null,{"$f":"'[1]EXT RIN(M)'!P361","v":75.55809632803637},{"$f":"'[1]EXT RIN(M)'!Q361","v":100.92463074299364},{"$f":"'[1]EXT RIN(M)'!R361","v":114.27460359814248},{"$f":"'[1]EXT RIN(M)'!S361","v":97.992487804463451},{"$f":"'[1]EXT RIN(M)'!T361","v":115.17211213908493},{"$f":"'[1]EXT RIN(M)'!U361","v":94.491658896647124},{"$f":"'[1]EXT RIN(M)'!V361","v":181.79646453501937},null,null,{"$f":"+'[1]MONE(M)CAPARD'!AE361","v":3.9971830961616948},{"$f":"'[1]MONE(M)CAPARD'!AF361","v":3.407795634424478},{"$f":"'[1]MONE(M)CAPARD'!AG361","v":0.24534476598785687},{"$f":"'[1]MONE(M)CAPARD'!AH361","v":3.356631323841258},{"$f":"'[1]MONE(M)CAPARD'!AI361","v":7.6158335572850691},{"$f":"'[1]MONE(M)CAPARD'!AJ361","v":5.2871708460134013},{"$f":"'[1]MONE(M)CAPARD'!AK361","v":2.2260128458732851},null,null,{"$f":"'[1]MONE(M)CAPARD'!AL361","v":4.2974513300000003},{"$f":"'[1]MONE(M)CAPARD'!AM361","v":4.24},{"$f":"'[1]MONE(M)CAPARD'!AN361","v":3.14},{"$f":"'[1]MONE(M)CAPARD'!AO361","v":3.74},{"$f":"'[1]MONE(M)CAPARD'!AP361","v":6.1803796302169323},{"$f":"'[1]MONE(M)CAPARD'!AQ361","v":1.9298999999999999},{"$f":"'[1]MONE(M)CAPARD'!AR361","v":2.13},null,null,{"$f":"'[1]MONE(M)CAPARD'!J361","v":11.257476002155407},{"$f":"'[1]MONE(M)CAPARD'!K361","v":5.719193982738072},{"$f":"'[1]MONE(M)CAPARD'!L361","v":7.6341550553769251},{"$f":"'[1]MONE(M)CAPARD'!M361","v":11.872729475916385},{"$f":"'[1]MONE(M)CAPARD'!N361","v":12.374495538853806},{"$f":"'[1]MONE(M)CAPARD'!O361","v":11.591699330493011},{"$f":"'[1]MONE(M)CAPARD'!P361","v":6.6501681066072509},null,null,{"$f":"'[1]MONE(M)CAPARD'!Q361","v":7.8117478399999998},{"$f":"'[1]MONE(M)CAPARD'!R361","v":6.57},{"$f":"'[1]MONE(M)CAPARD'!S361","v":6.6},{"$f":"'[1]MONE(M)CAPARD'!T361","v":8.17},{"$f":"'[1]MONE(M)CAPARD'!U361","v":11.494728606171783},{"$f":"'[1]MONE(M)CAPARD'!V361","v":5.4684999999999997},{"$f":"'[1]MONE(M)CAPARD'!W361","v":6.55},null,null,{"$f":"'[1]MONE(M)CAPARD'!AS361","v":5},{"$f":"'[1]MONE(M)CAPARD'!AT361","v":"n.a."},{"$f":"'[1]MONE(M)CAPARD'!AU361","v":2.75},{"$f":"'[1]MONE(M)CAPARD'!AV361","v":5.75},{"$f":"'[1]MONE(M)CAPARD'!AW361","v":"n.a."},{"$f":"'[1]MONE(M)CAPARD'!AX361","v":5.5},{"$f":"'[1]MONE(M)CAPARD'!AY361","v":"n.a."},null,null,{"$f":"+'Datos_Regional (M)'!CF354","v":4.1229420693254859},{"$f":"+'Datos_Regional (M)'!CG354","v":6.9514070717207943},{"$f":"+'Datos_Regional (M)'!CH354","v":4.6301586152399654},{"$f":"+'Datos_Regional (M)'!CI354","v":13.244291860545099},{"$f":"+'Datos_Regional (M)'!CJ354","v":-19.648706478528645},{"$f":"+'Datos_Regional (M)'!CK354","v":10.926092435861223},{"$f":"+'Datos_Regional (M)'!CL354","v":3.1895898407427126},null,null,976.54889646166146,486.32333333333327,907.00833333333333,351.87705680810922,441.46080580291664,896.28333333333342,905.96326325000007,4059.5017590726875,4965.4650223226881,null,null,1438.4503316561631,969.04083333333358,1661.0083333333334,902.12405329505452,546.83950224333341,1699.7666666666667,1888.2019367499997,7217.2297205278874,9105.4316572778862,null,null,-3157.7279614551976,-4139.9666349551981,null,null,{"$f":"'[1]EXT Comercio(M)'!C361","v":996.30421503999946},{"$f":"'[1]EXT Comercio(M)'!D361","v":466.11000000000013},{"$f":"'[1]EXT Comercio(M)'!E361","v":916.9},{"$f":"'[1]EXT Comercio(M)'!F361","v":386.56480246425178},{"$f":"'[1]EXT Comercio(M)'!G361","v":459.76985521999995},{"$f":"'[1]EXT Comercio(M)'!H361","v":856.7},{"$f":"'[1]EXT Comercio(M)'!I361","v":841.13400000000001},{"$f":"'[1]EXT Comercio(M)'!K361","v":4082.3488727242511},{"$f":"'[1]EXT Comercio(M)'!L361","v":4923.4828727242511},null,null,{"$f":"'[1]EXT Comercio(M)'!AG361","v":1391.1634406800067},{"$f":"'[1]EXT Comercio(M)'!AH361","v":948.65999999999985},{"$f":"'[1]EXT Comercio(M)'!AI361","v":1622.4},{"$f":"'[1]EXT Comercio(M)'!AJ361","v":861.21720788715618},{"$f":"'[1]EXT Comercio(M)'!AK361","v":581.32806670000002},{"$f":"'[1]EXT Comercio(M)'!AL361","v":1603.7000000000003},{"$f":"'[1]EXT Comercio(M)'!AM361","v":1940.692},{"$f":"'[1]EXT Comercio(M)'!AO361","v":7008.468715267165},{"$f":"'[1]EXT Comercio(M)'!AP361","v":8949.1607152671677},null,null,{"$f":"'[1]EXT Comercio(M)'!$BS361","v":-2926.119842542912},{"$f":"'[1]EXT Comercio(M)'!$BT361","v":-4025.6778425429111}]
[null,null,"Mayo ",{"$f":"'[1]REAL IPC(M)'!AD362","v":2.3219000529435876},{"$f":"'[1]REAL IPC(M)'!AE362","v":0.8050263134421497},{"$f":"'[1]REAL IPC(M)'!AF362","v":4.5369887506518696},{"$f":"'[1]REAL IPC(M)'!AG362","v":5.1412250079339854},{"$f":"'[1]REAL IPC(M)'!AH362","v":5.9949961396103735},{"$f":"'[1]REAL IPC(M)'!AI362","v":1.3107170393215433},{"$f":"'[1]REAL IPC(M)'!AJ362","v":-4.5584045584074308E-3},null,null,{"$f":"'[1]REAL IMAE(M)'!AG362","v":0.77379030505863744},{"$f":"'[1]REAL IMAE(M)'!AH362","v":3.3087303160011765},{"$f":"'[1]REAL IMAE(M)'!AI362","v":3.921588239130505},{"$f":"'[1]REAL IMAE(M)'!AJ362","v":2.9558950994348603},{"$f":"'[1]REAL IMAE(M)'!AK362","v":-3.5879817754215995},{"$f":"'[1]REAL IMAE(M)'!AL362","v":4.7230735001938289},{"$f":"'[1]REAL IMAE(M)'!AM362","v":3.1318469408696092},null,null,{"$f":"'[1]EXT ITCER(M)'!C362","v":82.319350963698753},{"$f":"'[1]EXT ITCER(M)'!D362","v":95.621197867725385},{"$f":"'[1]EXT ITCER(M)'!E362","v":53.706277187097577},{"$f":"'[1]EXT ITCER(M)'!F362","v":78.557035586997984},{"$f":"'[1]EXT ITCER(M)'!G362","v":106.0884615838163},{"$f":"'[1]EXT ITCER(M)'!H362","v":111.1837841101412},{"$f":"'[1]EXT ITCER(M)'!I362","v":92.238689509018869},null,null,{"$f":"'[1]EXT TC(M)'!J362","v":4.7445816791141917},{"$f":"'[1]EXT TC(M)'!K362","v":0},{"$f":"'[1]EXT TC(M)'!L362","v":3.018513333046136},{"$f":"'[1]EXT TC(M)'!M362","v":2.7557177720583468},{"$f":"'[1]EXT TC(M)'!N362","v":4.8068808565630867},{"$f":"'[1]EXT TC(M)'!O362","v":2.343141338470339},{"$f":"'[1]EXT TC(M)'!P362","v":0},null,null,{"$f":"'[1]EXT RIN(M)'!C362","v":7739.3371999999999},{"$f":"'[1]EXT RIN(M)'!D362","v":3765.82},{"$f":"'[1]EXT RIN(M)'!E362","v":14070.1},{"$f":"'[1]EXT RIN(M)'!F362","v":5028.6000000000004},{"$f":"'[1]EXT RIN(M)'!G362","v":1947.8000000000002},{"$f":"'[1]EXT RIN(M)'!H362","v":6980.5},{"$f":"'[1]EXT RIN(M)'!I362","v":2797.80935404},null,null,{"$f":"'[1]EXT RIN(M)'!P362","v":72.003811441648466},{"$f":"'[1]EXT RIN(M)'!Q362","v":106.36945067975476},{"$f":"'[1]EXT RIN(M)'!R362","v":127.64470902345639},{"$f":"'[1]EXT RIN(M)'!S362","v":99.891590463079055},{"$f":"'[1]EXT RIN(M)'!T362","v":114.38543145820013},{"$f":"'[1]EXT RIN(M)'!U362","v":101.07868122683858},{"$f":"'[1]EXT RIN(M)'!V362","v":173.57469265135131},null,null,{"$f":"+'[1]MONE(M)CAPARD'!AE362","v":3.8878284560764178},{"$f":"'[1]MONE(M)CAPARD'!AF362","v":3.4075420762028048},{"$f":"'[1]MONE(M)CAPARD'!AG362","v":0.5385761117445802},{"$f":"'[1]MONE(M)CAPARD'!AH362","v":3.1089375188650807},{"$f":"'[1]MONE(M)CAPARD'!AI362","v":5.241411760583035},{"$f":"'[1]MONE(M)CAPARD'!AJ362","v":5.3019888888888547},{"$f":"'[1]MONE(M)CAPARD'!AK362","v":2.1946584459690501},null,null,{"$f":"'[1]MONE(M)CAPARD'!AL362","v":3.8924265299999998},{"$f":"'[1]MONE(M)CAPARD'!AM362","v":4.24},{"$f":"'[1]MONE(M)CAPARD'!AN362","v":3.17},{"$f":"'[1]MONE(M)CAPARD'!AO362","v":3.75},{"$f":"'[1]MONE(M)CAPARD'!AP362","v":6.1536541328112122},{"$f":"'[1]MONE(M)CAPARD'!AQ362","v":1.5387},{"$f":"'[1]MONE(M)CAPARD'!AR362","v":2.19},null,null,{"$f":"'[1]MONE(M)CAPARD'!J362","v":11.600586571315276},{"$f":"'[1]MONE(M)CAPARD'!K362","v":5.8776570010852405},{"$f":"'[1]MONE(M)CAPARD'!L362","v":7.8469940136830063},{"$f":"'[1]MONE(M)CAPARD'!M362","v":11.573742831270753},{"$f":"'[1]MONE(M)CAPARD'!N362","v":11.997769591071775},{"$f":"'[1]MONE(M)CAPARD'!O362","v":10.938411339421577},{"$f":"'[1]MONE(M)CAPARD'!P362","v":6.6248603924965277},null,null,{"$f":"'[1]MONE(M)CAPARD'!Q362","v":9.0250436100000009},{"$f":"'[1]MONE(M)CAPARD'!R362","v":6.73},{"$f":"'[1]MONE(M)CAPARD'!S362","v":6.59},{"$f":"'[1]MONE(M)CAPARD'!T362","v":8.2100000000000009},{"$f":"'[1]MONE(M)CAPARD'!U362","v":12.406844829981461},{"$f":"'[1]MONE(M)CAPARD'!V362","v":5.7721},{"$f":"'[1]MONE(M)CAPARD'!W362","v":6.62},null,null,{"$f":"'[1]MONE(M)CAPARD'!AS362","v":4.75},{"$f":"'[1]MONE(M)CAPARD'!AT362","v":"n.a."},{"$f":"'[1]MONE(M)CAPARD'!AU362","v":2.75},{"$f":"'[1]MONE(M)CAPARD'!AV362","v":5.75},{"$f":"'[1]MONE(M)CAPARD'!AW362","v":"n.a."},{"$f":"'[1]MONE(M)CAPARD'!AX362","v":5.5},{"$f":"'[1]MONE(M)CAPARD'!AY362","v":"n.a."},null,null,{"$f":"+'Datos_Regional (M)'!CF355","v":3.5634344941058771},{"$f":"+'Datos_Regional (M)'!CG355","v":6.5405300567834335},{"$f":"+'Datos_Regional (M)'!CH355","v":4.6913092802999712},{"$f":"+'Datos_Regional (M)'!CI355","v":12.4907209814894},{"$f":"+'Datos_Regional (M)'!CJ355","v":-21.287370857682063},{"$f":"+'Datos_Regional (M)'!CK355","v":10.507622752360945},{"$f":"+'Datos_Regional (M)'!CL355","v":2.1178469732963334},null,null,977.42142356249542,489.15916666666664,906.29166666666686,352.50802424500893,441.86871128708327,899.61666666666679,913.3683049166666,4066.865659094588,4980.233964011255,null,null,1433.0682045844978,977.57916666666699,1652.1833333333334,896.58125712842582,536.29586444083338,1716.9333333333336,1882.0056326666665,7212.6411594870915,9094.6467921537569,null,null,-3145.7755003925026,-4114.4128281425028,null,null,{"$f":"'[1]EXT Comercio(M)'!C362","v":1108.8210253699976},{"$f":"'[1]EXT Comercio(M)'!D362","v":546.82999999999993},{"$f":"'[1]EXT Comercio(M)'!E362","v":948.19999999999993},{"$f":"'[1]EXT Comercio(M)'!F362","v":414.6531383189573},{"$f":"'[1]EXT Comercio(M)'!G362","v":474.35289147999993},{"$f":"'[1]EXT Comercio(M)'!H362","v":1016.1999999999999},{"$f":"'[1]EXT Comercio(M)'!I362","v":998.63100000000009},{"$f":"'[1]EXT Comercio(M)'!K362","v":4509.0570551689561},{"$f":"'[1]EXT Comercio(M)'!L362","v":5507.6880551689574},null,null,{"$f":"'[1]EXT Comercio(M)'!AG362","v":1496.5767164200049},{"$f":"'[1]EXT Comercio(M)'!AH362","v":1075.6300000000001},{"$f":"'[1]EXT Comercio(M)'!AI362","v":1775.2},{"$f":"'[1]EXT Comercio(M)'!AJ362","v":907.37182837113698},{"$f":"'[1]EXT Comercio(M)'!AK362","v":529.02699489000008},{"$f":"'[1]EXT Comercio(M)'!AL362","v":1914.9},{"$f":"'[1]EXT Comercio(M)'!AM362","v":1853.3720000000001},{"$f":"'[1]EXT Comercio(M)'!AO362","v":7698.7055396811338},{"$f":"'[1]EXT Comercio(M)'!AP362","v":9552.0775396811296},null,null,{"$f":"'[1]EXT Comercio(M)'!$BS362","v":-3189.6484845121831},{"$f":"'[1]EXT Comercio(M)'!$BT362","v":-4044.3894845121831}]
[null,null,"Junio",{"$f":"'[1]REAL IPC(M)'!AD363","v":2.4213709456570536},{"$f":"'[1]REAL IPC(M)'!AE363","v":0.52955460538036259},{"$f":"'[1]REAL IPC(M)'!AF363","v":4.7999999999999927},{"$f":"'[1]REAL IPC(M)'!AG363","v":4.8040455120101289},{"$f":"'[1]REAL IPC(M)'!AH363","v":5.625585579852407},{"$f":"'[1]REAL IPC(M)'!AI363","v":0.91559590674772584},{"$f":"'[1]REAL IPC(M)'!AJ363","v":-0.54019987395336977},null,null,{"$f":"'[1]REAL IMAE(M)'!AG363","v":0.76143505070126205},{"$f":"'[1]REAL IMAE(M)'!AH363","v":2.4514336116297599},{"$f":"'[1]REAL IMAE(M)'!AI363","v":3.9214860806309537},{"$f":"'[1]REAL IMAE(M)'!AJ363","v":2.9406172680724243},{"$f":"'[1]REAL IMAE(M)'!AK363","v":-3.5488056363788232},{"$f":"'[1]REAL IMAE(M)'!AL363","v":4.6277364709905306},{"$f":"'[1]REAL IMAE(M)'!AM363","v":3.88059207118248},null,null,{"$f":"'[1]EXT ITCER(M)'!C363","v":81.304540814733457},{"$f":"'[1]EXT ITCER(M)'!D363","v":95.768603215790478},{"$f":"'[1]EXT ITCER(M)'!E363","v":53.492392611686093},{"$f":"'[1]EXT ITCER(M)'!F363","v":78.650539817043779},{"$f":"'[1]EXT ITCER(M)'!G363","v":106.551322743364},{"$f":"'[1]EXT ITCER(M)'!H363","v":111.72787519126},{"$f":"'[1]EXT ITCER(M)'!I363","v":92.558214530980294},null,null,{"$f":"'[1]EXT TC(M)'!J363","v":3.3365630594170601},{"$f":"'[1]EXT TC(M)'!K363","v":0},{"$f":"'[1]EXT TC(M)'!L363","v":2.8629298377369707},{"$f":"'[1]EXT TC(M)'!M363","v":2.3075574259162024},{"$f":"'[1]EXT TC(M)'!N363","v":4.586470077768527},{"$f":"'[1]EXT TC(M)'!O363","v":2.621259783197246},{"$f":"'[1]EXT TC(M)'!P363","v":0},null,null,{"$f":"'[1]EXT RIN(M)'!C363","v":7793.1674999999996},{"$f":"'[1]EXT RIN(M)'!D363","v":3757},{"$f":"'[1]EXT RIN(M)'!E363","v":14279.8},{"$f":"'[1]EXT RIN(M)'!F363","v":5062.8999999999996},{"$f":"'[1]EXT RIN(M)'!G363","v":1978.8000000000002},{"$f":"'[1]EXT RIN(M)'!H363","v":8711.6},{"$f":"'[1]EXT RIN(M)'!I363","v":2923.7763551100002},null,null,{"$f":"'[1]EXT RIN(M)'!P363","v":71.455351000241151},{"$f":"'[1]EXT RIN(M)'!Q363","v":106.29698591317374},{"$f":"'[1]EXT RIN(M)'!R363","v":125.13672073527692},{"$f":"'[1]EXT RIN(M)'!S363","v":97.467565845873111},{"$f":"'[1]EXT RIN(M)'!T363","v":119.31034301606552},{"$f":"'[1]EXT RIN(M)'!U363","v":123.55040261874409},{"$f":"'[1]EXT RIN(M)'!V363","v":172.27840008683063},null,null,{"$f":"+'[1]MONE(M)CAPARD'!AE363","v":4.031023033790011},{"$f":"'[1]MONE(M)CAPARD'!AF363","v":3.7704786512769175},{"$f":"'[1]MONE(M)CAPARD'!AG363","v":0.26717557251909102},{"$f":"'[1]MONE(M)CAPARD'!AH363","v":3.4406634499396715},{"$f":"'[1]MONE(M)CAPARD'!AI363","v":5.8953142759041057},{"$f":"'[1]MONE(M)CAPARD'!AJ363","v":5.0052759911558251},{"$f":"'[1]MONE(M)CAPARD'!AK363","v":2.7751914546935899},null,null,{"$f":"'[1]MONE(M)CAPARD'!AL363","v":3.7180350999999998},{"$f":"'[1]MONE(M)CAPARD'!AM363","v":4.32},{"$f":"'[1]MONE(M)CAPARD'!AN363","v":3.19},{"$f":"'[1]MONE(M)CAPARD'!AO363","v":3.76},{"$f":"'[1]MONE(M)CAPARD'!AP363","v":5.9114598359687873},{"$f":"'[1]MONE(M)CAPARD'!AQ363","v":1.7053},{"$f":"'[1]MONE(M)CAPARD'!AR363","v":2.2200000000000002},null,null,{"$f":"'[1]MONE(M)CAPARD'!J363","v":10.616546062552013},{"$f":"'[1]MONE(M)CAPARD'!K363","v":5.9588898191527724},{"$f":"'[1]MONE(M)CAPARD'!L363","v":7.585877862595428},{"$f":"'[1]MONE(M)CAPARD'!M363","v":11.989951749095281},{"$f":"'[1]MONE(M)CAPARD'!N363","v":12.586404845838635},{"$f":"'[1]MONE(M)CAPARD'!O363","v":10.807055138761802},{"$f":"'[1]MONE(M)CAPARD'!P363","v":7.2795238526296808},null,null,{"$f":"'[1]MONE(M)CAPARD'!Q363","v":8.7755948799999999},{"$f":"'[1]MONE(M)CAPARD'!R363","v":6.52},{"$f":"'[1]MONE(M)CAPARD'!S363","v":6.57},{"$f":"'[1]MONE(M)CAPARD'!T363","v":8.2100000000000009},{"$f":"'[1]MONE(M)CAPARD'!U363","v":11.697538437867497},{"$f":"'[1]MONE(M)CAPARD'!V363","v":5.5815000000000001},{"$f":"'[1]MONE(M)CAPARD'!W363","v":6.7},null,null,{"$f":"'[1]MONE(M)CAPARD'!AS363","v":4.5},{"$f":"'[1]MONE(M)CAPARD'!AT363","v":"n.a."},{"$f":"'[1]MONE(M)CAPARD'!AU363","v":2.75},{"$f":"'[1]MONE(M)CAPARD'!AV363","v":5.75},{"$f":"'[1]MONE(M)CAPARD'!AW363","v":"n.a."},{"$f":"'[1]MONE(M)CAPARD'!AX363","v":5.5},{"$f":"'[1]MONE(M)CAPARD'!AY363","v":"n.a."},null,null,{"$f":"+'Datos_Regional (M)'!CF356","v":3.011213400324686},{"$f":"+'Datos_Regional (M)'!CG356","v":6.5347455390516007},{"$f":"+'Datos_Regional (M)'!CH356","v":4.8964310664277644},{"$f":"+'Datos_Regional (M)'!CI356","v":12.225813768535353},{"$f":"+'Datos_Regional (M)'!CJ356","v":-20.463949156029415},{"$f":"+'Datos_Regional (M)'!CK356","v":11.566818064480167},{"$f":"+'Datos_Regional (M)'!CL356","v":2.3063344060075819},null,null,978.37566391249527,488.97166666666664,910.07499999999993,351.57371645850509,450.27475919958334,901.91666666666663,897.90619983333318,4081.1874729039168,4979.0936727372509,null,null,1422.0860908836655,972.17083333333358,1645.5250000000003,886.34784571826356,542.3157748491667,1706.3166666666666,1879.8798161666664,7174.7622114510959,9054.6420276177651,null,null,-3093.5747385471786,-4075.5483548805119,null,null,{"$f":"'[1]EXT Comercio(M)'!C363","v":1019.0461456399908},{"$f":"'[1]EXT Comercio(M)'!D363","v":530.14999999999964},{"$f":"'[1]EXT Comercio(M)'!E363","v":952.30000000000007},{"$f":"'[1]EXT Comercio(M)'!F363","v":366.91548296820326},{"$f":"'[1]EXT Comercio(M)'!G363","v":485.21105012999999},{"$f":"'[1]EXT Comercio(M)'!H363","v":943.7},{"$f":"'[1]EXT Comercio(M)'!I363","v":911.90700000000004},{"$f":"'[1]EXT Comercio(M)'!K363","v":4297.32267873819},{"$f":"'[1]EXT Comercio(M)'!L363","v":5209.2296787381892},null,null,{"$f":"'[1]EXT Comercio(M)'!AG363","v":1303.2164436100059},{"$f":"'[1]EXT Comercio(M)'!AH363","v":928.51999999999953},{"$f":"'[1]EXT Comercio(M)'!AI363","v":1525.3000000000002},{"$f":"'[1]EXT Comercio(M)'!AJ363","v":791.77944620544406},{"$f":"'[1]EXT Comercio(M)'!AK363","v":534.1321069600001},{"$f":"'[1]EXT Comercio(M)'!AL363","v":1620.6},{"$f":"'[1]EXT Comercio(M)'!AM363","v":1872.069},{"$f":"'[1]EXT Comercio(M)'!AO363","v":6703.5479967754582},{"$f":"'[1]EXT Comercio(M)'!AP363","v":8575.6169967754613},null,null,{"$f":"'[1]EXT Comercio(M)'!$BS363","v":-2406.2253180372591},{"$f":"'[1]EXT Comercio(M)'!$BT363","v":-3366.3873180372575}]
[null,null,"Julio",{"$f":"'[1]REAL IPC(M)'!AD364","v":2.8892280164944131},{"$f":"'[1]REAL IPC(M)'!AE364","v":0.12787884718021925},{"$f":"'[1]REAL IPC(M)'!AF364","v":4.3696486566282964},{"$f":"'[1]REAL IPC(M)'!AG364","v":4.6914357682619574},{"$f":"'[1]REAL IPC(M)'!AH364","v":6.0848492114204475},{"$f":"'[1]REAL IPC(M)'!AI364","v":1.400538668718774},{"$f":"'[1]REAL IPC(M)'!AJ364","v":-0.26550829191878211},null,null,{"$f":"'[1]REAL IMAE(M)'!AG364","v":0.95065348547647177},{"$f":"'[1]REAL IMAE(M)'!AH364","v":1.9617258084916249},{"$f":"'[1]REAL IMAE(M)'!AI364","v":3.8526232387341617},{"$f":"'[1]REAL IMAE(M)'!AJ364","v":2.8466270292273625},{"$f":"'[1]REAL IMAE(M)'!AK364","v":-3.2552721466920529},{"$f":"'[1]REAL IMAE(M)'!AL364","v":4.7689328537838405},{"$f":"'[1]REAL IMAE(M)'!AM364","v":4.4596895051906307},null,null,{"$f":"'[1]EXT ITCER(M)'!C364","v":79.582858286293586},{"$f":"'[1]EXT ITCER(M)'!D364","v":96.218607670697551},{"$f":"'[1]EXT ITCER(M)'!E364","v":53.435154390972052},{"$f":"'[1]EXT ITCER(M)'!F364","v":78.584488413652068},{"$f":"'[1]EXT ITCER(M)'!G364","v":106.6494180209514},{"$f":"'[1]EXT ITCER(M)'!H364","v":111.88708413998241},{"$f":"'[1]EXT ITCER(M)'!I364","v":92.549339145906032},null,null,{"$f":"'[1]EXT TC(M)'!J364","v":1.733538591441989},{"$f":"'[1]EXT TC(M)'!K364","v":0},{"$f":"'[1]EXT TC(M)'!L364","v":2.5372068757207873},{"$f":"'[1]EXT TC(M)'!M364","v":2.1400434741659877},{"$f":"'[1]EXT TC(M)'!N364","v":4.3189491769875046},{"$f":"'[1]EXT TC(M)'!O364","v":2.6761529519420986},{"$f":"'[1]EXT TC(M)'!P364","v":0},null,null,{"$f":"'[1]EXT RIN(M)'!C364","v":7877.6172999999999},{"$f":"'[1]EXT RIN(M)'!D364","v":3693.67},{"$f":"'[1]EXT RIN(M)'!E364","v":14386.4},{"$f":"'[1]EXT RIN(M)'!F364","v":5068.3},{"$f":"'[1]EXT RIN(M)'!G364","v":1973.5},{"$f":"'[1]EXT RIN(M)'!H364","v":8214.9557832058163},{"$f":"'[1]EXT RIN(M)'!I364","v":3899.8993976000002},null,null,{"$f":"'[1]EXT RIN(M)'!P364","v":71.433442487750398},{"$f":"'[1]EXT RIN(M)'!Q364","v":100.99991742095243},{"$f":"'[1]EXT RIN(M)'!R364","v":124.69034724443659},{"$f":"'[1]EXT RIN(M)'!S364","v":97.307472153331545},{"$f":"'[1]EXT RIN(M)'!T364","v":122.95836414740091},{"$f":"'[1]EXT RIN(M)'!U364","v":111.36410420412291},{"$f":"'[1]EXT RIN(M)'!V364","v":235.12441442141369},null,null,{"$f":"+'[1]MONE(M)CAPARD'!AE364","v":3.1206104326012247},{"$f":"'[1]MONE(M)CAPARD'!AF364","v":4.1767799347899164},{"$f":"'[1]MONE(M)CAPARD'!AG364","v":0.63270438472417556},{"$f":"'[1]MONE(M)CAPARD'!AH364","v":3.5805834586466232},{"$f":"'[1]MONE(M)CAPARD'!AI364","v":6.3847760896161319},{"$f":"'[1]MONE(M)CAPARD'!AJ364","v":4.4158161189951821},{"$f":"'[1]MONE(M)CAPARD'!AK364","v":2.4520186046334755},null,null,{"$f":"'[1]MONE(M)CAPARD'!AL364","v":3.4831547999999999},{"$f":"'[1]MONE(M)CAPARD'!AM364","v":4.3099999999999996},{"$f":"'[1]MONE(M)CAPARD'!AN364","v":3.19},{"$f":"'[1]MONE(M)CAPARD'!AO364","v":3.75},{"$f":"'[1]MONE(M)CAPARD'!AP364","v":5.7018070665093505},{"$f":"'[1]MONE(M)CAPARD'!AQ364","v":1.7402},{"$f":"'[1]MONE(M)CAPARD'!AR364","v":2.1800000000000002},null,null,{"$f":"'[1]MONE(M)CAPARD'!J364","v":10.446947577235614},{"$f":"'[1]MONE(M)CAPARD'!K364","v":6.4938169345858388},{"$f":"'[1]MONE(M)CAPARD'!L364","v":8.048653465346522},{"$f":"'[1]MONE(M)CAPARD'!M364","v":12.033996992481208},{"$f":"'[1]MONE(M)CAPARD'!N364","v":9.4126896039681309},{"$f":"'[1]MONE(M)CAPARD'!O364","v":11.081855657585148},{"$f":"'[1]MONE(M)CAPARD'!P364","v":8.0869798941034308},null,null,{"$f":"'[1]MONE(M)CAPARD'!Q364","v":8.7188317699999995},{"$f":"'[1]MONE(M)CAPARD'!R364","v":6.63},{"$f":"'[1]MONE(M)CAPARD'!S364","v":6.53},{"$f":"'[1]MONE(M)CAPARD'!T364","v":8.24},{"$f":"'[1]MONE(M)CAPARD'!U364","v":11.577063060639652},{"$f":"'[1]MONE(M)CAPARD'!V364","v":5.4332000000000003},{"$f":"'[1]MONE(M)CAPARD'!W364","v":7.8},null,null,{"$f":"'[1]MONE(M)CAPARD'!AS364","v":4},{"$f":"'[1]MONE(M)CAPARD'!AT364","v":"n.a."},{"$f":"'[1]MONE(M)CAPARD'!AU364","v":2.75},{"$f":"'[1]MONE(M)CAPARD'!AV364","v":5.75},{"$f":"'[1]MONE(M)CAPARD'!AW364","v":"n.a."},{"$f":"'[1]MONE(M)CAPARD'!AX364","v":5},{"$f":"'[1]MONE(M)CAPARD'!AY364","v":"n.a."},null,null,{"$f":"+'Datos_Regional (M)'!CF357","v":1.4301269089084245},{"$f":"+'Datos_Regional (M)'!CG357","v":6.0544514801203375},{"$f":"+'Datos_Regional (M)'!CH357","v":4.996561155758239},{"$f":"+'Datos_Regional (M)'!CI357","v":11.587958863167858},{"$f":"+'Datos_Regional (M)'!CJ357","v":-21.173511787386467},{"$f":"+'Datos_Regional (M)'!CK357","v":11.429621385980848},{"$f":"+'Datos_Regional (M)'!CL357","v":1.9793777796590195},null,null,980.90297706916181,491.59499999999986,911.66666666666663,351.41757950094171,451.87782203375008,906.22500000000002,900.06116683333323,4093.6850452705198,4993.7462121038552,null,null,1417.0868420519982,979.79083333333347,1649.3333333333333,883.60565576328952,545.45197277833347,1710.2916666666667,1865.4391189166665,7185.5603039269554,9050.9994228436208,null,null,-3091.8752586564337,-4057.2532107397687,null,null,{"$f":"'[1]EXT Comercio(M)'!C364","v":988.80649175999633},{"$f":"'[1]EXT Comercio(M)'!D364","v":543.13000000000011},{"$f":"'[1]EXT Comercio(M)'!E364","v":918.1},{"$f":"'[1]EXT Comercio(M)'!F364","v":357.77901679114007},{"$f":"'[1]EXT Comercio(M)'!G364","v":504.37443535000006},{"$f":"'[1]EXT Comercio(M)'!H364","v":986.4},{"$f":"'[1]EXT Comercio(M)'!I364","v":1052.57},{"$f":"'[1]EXT Comercio(M)'!K364","v":4298.5899439011409},{"$f":"'[1]EXT Comercio(M)'!L364","v":5351.1599439011443},null,null,{"$f":"'[1]EXT Comercio(M)'!AG364","v":1429.6507861599969},{"$f":"'[1]EXT Comercio(M)'!AH364","v":1037.0400000000009},{"$f":"'[1]EXT Comercio(M)'!AI364","v":1704},{"$f":"'[1]EXT Comercio(M)'!AJ364","v":887.42196551859536},{"$f":"'[1]EXT Comercio(M)'!AK364","v":547.45949654999993},{"$f":"'[1]EXT Comercio(M)'!AL364","v":1817.8000000000002},{"$f":"'[1]EXT Comercio(M)'!AM364","v":1945.3180000000002},{"$f":"'[1]EXT Comercio(M)'!AO364","v":7423.3722482285884},{"$f":"'[1]EXT Comercio(M)'!AP364","v":9368.6902482285877},null,null,{"$f":"'[1]EXT Comercio(M)'!$BS364","v":-3124.7823043274548},{"$f":"'[1]EXT Comercio(M)'!$BT364","v":-4017.530304327458}]
[null,null,"Agosto",{"$f":"'[1]REAL IPC(M)'!AD365","v":2.8558096363562626},{"$f":"'[1]REAL IPC(M)'!AE365","v":-0.48806414692572797},{"$f":"'[1]REAL IPC(M)'!AF365","v":3.0129335684891196},{"$f":"'[1]REAL IPC(M)'!AG365","v":4.2946708463949808},{"$f":"'[1]REAL IPC(M)'!AH365","v":6.3016169456871536},{"$f":"'[1]REAL IPC(M)'!AI365","v":1.7155165781983328},{"$f":"'[1]REAL IPC(M)'!AJ365","v":-0.60515318354545367},null,null,{"$f":"'[1]REAL IMAE(M)'!AG365","v":1.2609351184148694},{"$f":"'[1]REAL IMAE(M)'!AH365","v":2.0037441751641234},{"$f":"'[1]REAL IMAE(M)'!AI365","v":3.8247192620483927},{"$f":"'[1]REAL IMAE(M)'!AJ365","v":2.6877856761765342},{"$f":"'[1]REAL IMAE(M)'!AK365","v":-2.7481143471447034},{"$f":"'[1]REAL IMAE(M)'!AL365","v":5.1370952625335953},{"$f":"'[1]REAL IMAE(M)'!AM365","v":4.7956410155578419},null,null,{"$f":"'[1]EXT ITCER(M)'!C365","v":78.564120820672116},{"$f":"'[1]EXT ITCER(M)'!D365","v":96.670347691580119},{"$f":"'[1]EXT ITCER(M)'!E365","v":53.943393686318863},{"$f":"'[1]EXT ITCER(M)'!F365","v":78.754929331034035},{"$f":"'[1]EXT ITCER(M)'!G365","v":107.059806398695},{"$f":"'[1]EXT ITCER(M)'!H365","v":112.1658137834555},{"$f":"'[1]EXT ITCER(M)'!I365","v":92.906141295743751},null,null,{"$f":"'[1]EXT TC(M)'!J365","v":8.6150014139244002E-2},{"$f":"'[1]EXT TC(M)'!K365","v":0},{"$f":"'[1]EXT TC(M)'!L365","v":2.1613965577313516},{"$f":"'[1]EXT TC(M)'!M365","v":2.2627662230626711},{"$f":"'[1]EXT TC(M)'!N365","v":4.1785587537698152},{"$f":"'[1]EXT TC(M)'!O365","v":2.8525788231123146},{"$f":"'[1]EXT TC(M)'!P365","v":0},null,null,{"$f":"'[1]EXT RIN(M)'!C365","v":7707.7112999999999},{"$f":"'[1]EXT RIN(M)'!D365","v":4575.57},{"$f":"'[1]EXT RIN(M)'!E365","v":14700.1},{"$f":"'[1]EXT RIN(M)'!F365","v":5063.6000000000004},{"$f":"'[1]EXT RIN(M)'!G365","v":1995.8},{"$f":"'[1]EXT RIN(M)'!H365","v":7899.7222149838335},{"$f":"'[1]EXT RIN(M)'!I365","v":3932.1073723700001},null,null,{"$f":"'[1]EXT RIN(M)'!P365","v":69.7087590764895},{"$f":"'[1]EXT RIN(M)'!Q365","v":125.44947127235977},{"$f":"'[1]EXT RIN(M)'!R365","v":125.61745432092557},{"$f":"'[1]EXT RIN(M)'!S365","v":97.761454315972045},{"$f":"'[1]EXT RIN(M)'!T365","v":126.378574783812},{"$f":"'[1]EXT RIN(M)'!U365","v":107.68050490078073},{"$f":"'[1]EXT RIN(M)'!V365","v":231.74242641412906},null,null,{"$f":"+'[1]MONE(M)CAPARD'!AE365","v":2.9110561418257372},{"$f":"'[1]MONE(M)CAPARD'!AF365","v":4.9019889977097932},{"$f":"'[1]MONE(M)CAPARD'!AG365","v":1.928948494792414},{"$f":"'[1]MONE(M)CAPARD'!AH365","v":3.936278929966941},{"$f":"'[1]MONE(M)CAPARD'!AI365","v":5.377538908549802},{"$f":"'[1]MONE(M)CAPARD'!AJ365","v":4.2615753895023349},{"$f":"'[1]MONE(M)CAPARD'!AK365","v":2.8423537779201618},null,null,{"$f":"'[1]MONE(M)CAPARD'!AL365","v":3.1644786300000001},{"$f":"'[1]MONE(M)CAPARD'!AM365","v":4.3899999999999997},{"$f":"'[1]MONE(M)CAPARD'!AN365","v":3.19},{"$f":"'[1]MONE(M)CAPARD'!AO365","v":3.74},{"$f":"'[1]MONE(M)CAPARD'!AP365","v":5.9390031513538801},{"$f":"'[1]MONE(M)CAPARD'!AQ365","v":1.7349000000000001},{"$f":"'[1]MONE(M)CAPARD'!AR365","v":2.2200000000000002},null,null,{"$f":"'[1]MONE(M)CAPARD'!J365","v":9.8585651598036055},{"$f":"'[1]MONE(M)CAPARD'!K365","v":7.1529752545818113},{"$f":"'[1]MONE(M)CAPARD'!L365","v":9.4911057212155843},{"$f":"'[1]MONE(M)CAPARD'!M365","v":12.412263300270515},{"$f":"'[1]MONE(M)CAPARD'!N365","v":10.714148561672269},{"$f":"'[1]MONE(M)CAPARD'!O365","v":10.144551951293289},{"$f":"'[1]MONE(M)CAPARD'!P365","v":9.2410758482348978},null,null,{"$f":"'[1]MONE(M)CAPARD'!Q365","v":8.9039776499999999},{"$f":"'[1]MONE(M)CAPARD'!R365","v":6.63},{"$f":"'[1]MONE(M)CAPARD'!S365","v":6.52},{"$f":"'[1]MONE(M)CAPARD'!T365","v":8.23},{"$f":"'[1]MONE(M)CAPARD'!U365","v":11.90008179653824},{"$f":"'[1]MONE(M)CAPARD'!V365","v":5.5617000000000001},{"$f":"'[1]MONE(M)CAPARD'!W365","v":8.58},null,null,{"$f":"'[1]MONE(M)CAPARD'!AS365","v":4},{"$f":"'[1]MONE(M)CAPARD'!AT365","v":"n.a."},{"$f":"'[1]MONE(M)CAPARD'!AU365","v":2.75},{"$f":"'[1]MONE(M)CAPARD'!AV365","v":5.75},{"$f":"'[1]MONE(M)CAPARD'!AW365","v":"n.a."},{"$f":"'[1]MONE(M)CAPARD'!AX365","v":4.75},{"$f":"'[1]MONE(M)CAPARD'!AY365","v":"n.a."},null,null,{"$f":"+'Datos_Regional (M)'!CF358","v":0.78631220841480776},{"$f":"+'Datos_Regional (M)'!CG358","v":5.6012676744183754},{"$f":"+'Datos_Regional (M)'!CH358","v":4.9134014922360469},{"$f":"+'Datos_Regional (M)'!CI358","v":10.360279557962105},{"$f":"+'Datos_Regional (M)'!CJ358","v":-20.784645675963354},{"$f":"+'Datos_Regional (M)'!CK358","v":11.234941765223304},{"$f":"+'Datos_Regional (M)'!CL358","v":1.9732684549969015},null,null,984.45843969666169,490.93250000000006,913.54166666666663,348.79010564960481,451.61233138291664,908.49999999999989,891.69426916666669,4097.8350433958503,4989.5293125625167,null,null,1409.0628664778317,977.30666666666696,1648.1166666666668,876.44817455958128,544.16796094250014,1708.6666666666667,1843.0804819166667,7163.769001979912,9006.8494838965835,null,null,-3065.9339585840626,-4017.3201713340636,null,null,{"$f":"'[1]EXT Comercio(M)'!C365","v":1021.9801225399915},{"$f":"'[1]EXT Comercio(M)'!D365","v":486.63999999999987},{"$f":"'[1]EXT Comercio(M)'!E365","v":958.1},{"$f":"'[1]EXT Comercio(M)'!F365","v":327.37652359294191},{"$f":"'[1]EXT Comercio(M)'!G365","v":490.10003677999998},{"$f":"'[1]EXT Comercio(M)'!H365","v":920.1},{"$f":"'[1]EXT Comercio(M)'!I365","v":924.89499999999998},{"$f":"'[1]EXT Comercio(M)'!K365","v":4204.2966829129327},{"$f":"'[1]EXT Comercio(M)'!L365","v":5129.1916829129259},null,null,{"$f":"'[1]EXT Comercio(M)'!AG365","v":1368.7108828800042},{"$f":"'[1]EXT Comercio(M)'!AH365","v":982.92999999999938},{"$f":"'[1]EXT Comercio(M)'!AI365","v":1737.2},{"$f":"'[1]EXT Comercio(M)'!AJ365","v":883.02458106428219},{"$f":"'[1]EXT Comercio(M)'!AK365","v":565.00647663000007},{"$f":"'[1]EXT Comercio(M)'!AL365","v":1777.7000000000003},{"$f":"'[1]EXT Comercio(M)'!AM365","v":1757.232},{"$f":"'[1]EXT Comercio(M)'!AO365","v":7314.5719405742784},{"$f":"'[1]EXT Comercio(M)'!AP365","v":9071.803940574282},null,null,{"$f":"'[1]EXT Comercio(M)'!$BS365","v":-3110.2752576613493},{"$f":"'[1]EXT Comercio(M)'!$BT365","v":-3942.6122576613488}]
[null,null,"Setiembre",{"$f":"'[1]REAL IPC(M)'!AD366","v":2.5290714175627027},{"$f":"'[1]REAL IPC(M)'!AE366","v":-0.67894466122739006},{"$f":"'[1]REAL IPC(M)'!AF366","v":1.8043684710351577},{"$f":"'[1]REAL IPC(M)'!AG366","v":4.4186775305546737},{"$f":"'[1]REAL IPC(M)'!AH366","v":5.6241457216649771},{"$f":"'[1]REAL IPC(M)'!AI366","v":2.0216773003305586},{"$f":"'[1]REAL IPC(M)'!AJ366","v":-0.61674560049748905},null,null,{"$f":"'[1]REAL IMAE(M)'!AG366","v":1.6954833182738844},{"$f":"'[1]REAL IMAE(M)'!AH366","v":2.3553723261399999},{"$f":"'[1]REAL IMAE(M)'!AI366","v":4.0720697622370086},{"$f":"'[1]REAL IMAE(M)'!AJ366","v":2.5727171477239676},{"$f":"'[1]REAL IMAE(M)'!AK366","v":-2.0370852358218112},{"$f":"'[1]REAL IMAE(M)'!AL366","v":5.4997767082840969},{"$f":"'[1]REAL IMAE(M)'!AM366","v":4.9438852420581503},null,null,{"$f":"'[1]EXT ITCER(M)'!C366","v":80.079695604343058},{"$f":"'[1]EXT ITCER(M)'!D366","v":96.970775435287365},{"$f":"'[1]EXT ITCER(M)'!E366","v":54.625310611213969},{"$f":"'[1]EXT ITCER(M)'!F366","v":78.973237871695318},{"$f":"'[1]EXT ITCER(M)'!G366","v":107.6844227423972},{"$f":"'[1]EXT ITCER(M)'!H366","v":112.9650515699347},{"$f":"'[1]EXT ITCER(M)'!I366","v":93.101574676451577},null,null,{"$f":"'[1]EXT TC(M)'!J366","v":-0.22944940247074655},{"$f":"'[1]EXT TC(M)'!K366","v":0},{"$f":"'[1]EXT TC(M)'!L366","v":0.57375152165754684},{"$f":"'[1]EXT TC(M)'!M366","v":2.3556820443365973},{"$f":"'[1]EXT TC(M)'!N366","v":4.0011090424467888},{"$f":"'[1]EXT TC(M)'!O366","v":3.5851371968072421},{"$f":"'[1]EXT TC(M)'!P366","v":0},null,null,{"$f":"'[1]EXT RIN(M)'!C366","v":7462.5070999999998},{"$f":"'[1]EXT RIN(M)'!D366","v":4466.62},{"$f":"'[1]EXT RIN(M)'!E366","v":14516},{"$f":"'[1]EXT RIN(M)'!F366","v":5055.5},{"$f":"'[1]EXT RIN(M)'!G366","v":2051.1999999999998},{"$f":"'[1]EXT RIN(M)'!H366","v":7587.8028349934102},{"$f":"'[1]EXT RIN(M)'!I366","v":3287.7810872},null,null,{"$f":"'[1]EXT RIN(M)'!P366","v":67.902159182623436},{"$f":"'[1]EXT RIN(M)'!Q366","v":123.11915154949827},{"$f":"'[1]EXT RIN(M)'!R366","v":125.24900268815647},{"$f":"'[1]EXT RIN(M)'!S366","v":96.420951541849604},{"$f":"'[1]EXT RIN(M)'!T366","v":128.64811123218135},{"$f":"'[1]EXT RIN(M)'!U366","v":106.7064983106772},{"$f":"'[1]EXT RIN(M)'!V366","v":188.71594664369411},null,null,{"$f":"+'[1]MONE(M)CAPARD'!AE366","v":3.0927116949331244},{"$f":"'[1]MONE(M)CAPARD'!AF366","v":5.0733901729498685},{"$f":"'[1]MONE(M)CAPARD'!AG366","v":3.1291697761193831},{"$f":"'[1]MONE(M)CAPARD'!AH366","v":3.8607292917166975},{"$f":"'[1]MONE(M)CAPARD'!AI366","v":4.1950019391965201},{"$f":"'[1]MONE(M)CAPARD'!AJ366","v":3.2028709840265033},{"$f":"'[1]MONE(M)CAPARD'!AK366","v":2.864411733846119},null,null,{"$f":"'[1]MONE(M)CAPARD'!AL366","v":3.3582352900000001},{"$f":"'[1]MONE(M)CAPARD'!AM366","v":4.3600000000000003},{"$f":"'[1]MONE(M)CAPARD'!AN366","v":3.16},{"$f":"'[1]MONE(M)CAPARD'!AO366","v":3.71},{"$f":"'[1]MONE(M)CAPARD'!AP366","v":5.8458874799401324},{"$f":"'[1]MONE(M)CAPARD'!AQ366","v":1.7259},{"$f":"'[1]MONE(M)CAPARD'!AR366","v":2.23},null,null,{"$f":"'[1]MONE(M)CAPARD'!J366","v":9.3134059641952547},{"$f":"'[1]MONE(M)CAPARD'!K366","v":7.5200013086366075},{"$f":"'[1]MONE(M)CAPARD'!L366","v":10.781100746268635},{"$f":"'[1]MONE(M)CAPARD'!M366","v":12.336224489795931},{"$f":"'[1]MONE(M)CAPARD'!N366","v":10.165412516564942},{"$f":"'[1]MONE(M)CAPARD'!O366","v":9.917228345388768},{"$f":"'[1]MONE(M)CAPARD'!P366","v":8.921770225851926},null,null,{"$f":"'[1]MONE(M)CAPARD'!Q366","v":7.5227256799999997},{"$f":"'[1]MONE(M)CAPARD'!R366","v":6.79},{"$f":"'[1]MONE(M)CAPARD'!S366","v":6.51},{"$f":"'[1]MONE(M)CAPARD'!T366","v":8.23},{"$f":"'[1]MONE(M)CAPARD'!U366","v":12.82178287773236},{"$f":"'[1]MONE(M)CAPARD'!V366","v":5.4379999999999997},{"$f":"'[1]MONE(M)CAPARD'!W366","v":8.25},null,null,{"$f":"'[1]MONE(M)CAPARD'!AS366","v":3.75},{"$f":"'[1]MONE(M)CAPARD'!AT366","v":"n.a."},{"$f":"'[1]MONE(M)CAPARD'!AU366","v":2.75},{"$f":"'[1]MONE(M)CAPARD'!AV366","v":5.75},{"$f":"'[1]MONE(M)CAPARD'!AW366","v":"n.a."},{"$f":"'[1]MONE(M)CAPARD'!AX366","v":4.5},{"$f":"'[1]MONE(M)CAPARD'!AY366","v":"n.a."},null,null,{"$f":"+'Datos_Regional (M)'!CF359","v":-0.17795862485061598},{"$f":"+'Datos_Regional (M)'!CG359","v":5.1494243495237235},{"$f":"+'Datos_Regional (M)'!CH359","v":4.4104310948471559},{"$f":"+'Datos_Regional (M)'!CI359","v":9.8921031433875086},{"$f":"+'Datos_Regional (M)'!CJ359","v":-19.790415911164306},{"$f":"+'Datos_Regional (M)'!CK359","v":12.048719591495182},{"$f":"+'Datos_Regional (M)'!CL359","v":2.1931793457450333},null,null,988.56040778832823,490.77666666666664,916.86666666666667,350.35548508492064,454.89305008541663,908.50833333333333,904.45012958333336,4109.9606096253319,5014.4107392086662,null,null,1421.7306322778329,968.375,1648.0666666666668,870.46969212715487,545.42984430666672,1713.0500000000002,1835.2776629999998,7167.1218353783215,9002.3994983783214,null,null,-3057.1612257529887,-3987.9887591696556,null,null,{"$f":"'[1]EXT Comercio(M)'!C366","v":985.7717710099954},{"$f":"'[1]EXT Comercio(M)'!D366","v":462.17000000000053},{"$f":"'[1]EXT Comercio(M)'!E366","v":876.90000000000009},{"$f":"'[1]EXT Comercio(M)'!F366","v":304.43281591616181},{"$f":"'[1]EXT Comercio(M)'!G366","v":448.88972087000002},{"$f":"'[1]EXT Comercio(M)'!H366","v":901.2},{"$f":"'[1]EXT Comercio(M)'!I366","v":1054.9780000000001},{"$f":"'[1]EXT Comercio(M)'!K366","v":3979.3643077961533},{"$f":"'[1]EXT Comercio(M)'!L366","v":5034.3423077961561},null,null,{"$f":"'[1]EXT Comercio(M)'!AG366","v":1331.4838734200046},{"$f":"'[1]EXT Comercio(M)'!AH366","v":910},{"$f":"'[1]EXT Comercio(M)'!AI366","v":1578.5},{"$f":"'[1]EXT Comercio(M)'!AJ366","v":828.9551419484452},{"$f":"'[1]EXT Comercio(M)'!AK366","v":524.69986000999995},{"$f":"'[1]EXT Comercio(M)'!AL366","v":1673},{"$f":"'[1]EXT Comercio(M)'!AM366","v":1674.35},{"$f":"'[1]EXT Comercio(M)'!AO366","v":6846.6388753784486},{"$f":"'[1]EXT Comercio(M)'!AP366","v":8520.9888753784471},null,null,{"$f":"'[1]EXT Comercio(M)'!$BS366","v":-2867.2745675822916},{"$f":"'[1]EXT Comercio(M)'!$BT366","v":-3486.646567582291}]
[null,null,"Octubre",{"$f":"'[1]REAL IPC(M)'!AD367","v":2.0724345977549929},{"$f":"'[1]REAL IPC(M)'!AE367","v":-0.86772907450008852},{"$f":"'[1]REAL IPC(M)'!AF367","v":2.1696396068438428},{"$f":"'[1]REAL IPC(M)'!AG367","v":4.0822686195076425},{"$f":"'[1]REAL IPC(M)'!AH367","v":5.4396854509802495},{"$f":"'[1]REAL IPC(M)'!AI367","v":2.4773738303421302},{"$f":"'[1]REAL IPC(M)'!AJ367","v":-0.74885649253653375},null,null,{"$f":"'[1]REAL IMAE(M)'!AG367","v":2.1313501482666983},{"$f":"'[1]REAL IMAE(M)'!AH367","v":2.6019145796569956},{"$f":"'[1]REAL IMAE(M)'!AI367","v":4.4783670468043715},{"$f":"'[1]REAL IMAE(M)'!AJ367","v":2.5522598777922516},{"$f":"'[1]REAL IMAE(M)'!AK367","v":-1.1202667573239067},{"$f":"'[1]REAL IMAE(M)'!AL367","v":5.4155798426038686},{"$f":"'[1]REAL IMAE(M)'!AM367","v":4.9333403977359103},null,null,{"$f":"'[1]EXT ITCER(M)'!C367","v":80.812583256455781},{"$f":"'[1]EXT ITCER(M)'!D367","v":97.199772111933754},{"$f":"'[1]EXT ITCER(M)'!E367","v":54.732908469351337},{"$f":"'[1]EXT ITCER(M)'!F367","v":79.096113187364082},{"$f":"'[1]EXT ITCER(M)'!G367","v":108.0459209374677},{"$f":"'[1]EXT ITCER(M)'!H367","v":114.8897620760944},{"$f":"'[1]EXT ITCER(M)'!I367","v":93.407737580286422},null,null,{"$f":"'[1]EXT TC(M)'!J367","v":-1.8996912625155788},{"$f":"'[1]EXT TC(M)'!K367","v":0},{"$f":"'[1]EXT TC(M)'!L367","v":0.39552661859118254},{"$f":"'[1]EXT TC(M)'!M367","v":2.3300166328949672},{"$f":"'[1]EXT TC(M)'!N367","v":3.9448736612924273},{"$f":"'[1]EXT TC(M)'!O367","v":5.4475932431647198},{"$f":"'[1]EXT TC(M)'!P367","v":0},null,null,{"$f":"'[1]EXT RIN(M)'!C367","v":7692.7},{"$f":"'[1]EXT RIN(M)'!D367","v":4861.3500000000004},{"$f":"'[1]EXT RIN(M)'!E367","v":14631},{"$f":"'[1]EXT RIN(M)'!F367","v":5137.6000000000004},{"$f":"'[1]EXT RIN(M)'!G367","v":2118.4},{"$f":"'[1]EXT RIN(M)'!H367","v":7491.6},{"$f":"'[1]EXT RIN(M)'!I367","v":3388.5703558499995},null,null,{"$f":"'[1]EXT RIN(M)'!P367","v":70.412471695428664},{"$f":"'[1]EXT RIN(M)'!Q367","v":122.69697870662819},{"$f":"'[1]EXT RIN(M)'!R367","v":124.67590346082112},{"$f":"'[1]EXT RIN(M)'!S367","v":100.71408433876239},{"$f":"'[1]EXT RIN(M)'!T367","v":130.54661001598603},{"$f":"'[1]EXT RIN(M)'!U367","v":109.23754628842136},{"$f":"'[1]EXT RIN(M)'!V367","v":175.09032348958118},null,null,{"$f":"+'[1]MONE(M)CAPARD'!AE367","v":3.5049280604929289},{"$f":"'[1]MONE(M)CAPARD'!AF367","v":5.1726133444009266},{"$f":"'[1]MONE(M)CAPARD'!AG367","v":2.7311052519062078},{"$f":"'[1]MONE(M)CAPARD'!AH367","v":4.2156377245508914},{"$f":"'[1]MONE(M)CAPARD'!AI367","v":5.5967529262535196},{"$f":"'[1]MONE(M)CAPARD'!AJ367","v":4.0769254846193617},{"$f":"'[1]MONE(M)CAPARD'!AK367","v":3.0114076139704915},null,null,{"$f":"'[1]MONE(M)CAPARD'!AL367","v":3.4131705999999999},{"$f":"'[1]MONE(M)CAPARD'!AM367","v":4.26},{"$f":"'[1]MONE(M)CAPARD'!AN367","v":3.16},{"$f":"'[1]MONE(M)CAPARD'!AO367","v":3.71},{"$f":"'[1]MONE(M)CAPARD'!AP367","v":6.0909202590264462},{"$f":"'[1]MONE(M)CAPARD'!AQ367","v":1.4930000000000001},{"$f":"'[1]MONE(M)CAPARD'!AR367","v":2.2400000000000002},null,null,{"$f":"'[1]MONE(M)CAPARD'!J367","v":10.081098557897363},{"$f":"'[1]MONE(M)CAPARD'!K367","v":7.6238837302334064},{"$f":"'[1]MONE(M)CAPARD'!L367","v":10.306741252761332},{"$f":"'[1]MONE(M)CAPARD'!M367","v":12.670488023952087},{"$f":"'[1]MONE(M)CAPARD'!N367","v":10.436365719573363},{"$f":"'[1]MONE(M)CAPARD'!O367","v":9.5991200808322148},{"$f":"'[1]MONE(M)CAPARD'!P367","v":9.1372816191831348},null,null,{"$f":"'[1]MONE(M)CAPARD'!Q367","v":7.0445676099999996},{"$f":"'[1]MONE(M)CAPARD'!R367","v":6.69},{"$f":"'[1]MONE(M)CAPARD'!S367","v":6.47},{"$f":"'[1]MONE(M)CAPARD'!T367","v":8.31},{"$f":"'[1]MONE(M)CAPARD'!U367","v":10.341874284685677},{"$f":"'[1]MONE(M)CAPARD'!V367","v":4.9420000000000002},{"$f":"'[1]MONE(M)CAPARD'!W367","v":8.32},null,null,{"$f":"'[1]MONE(M)CAPARD'!AS367","v":3.25},{"$f":"'[1]MONE(M)CAPARD'!AT367","v":"n.a."},{"$f":"'[1]MONE(M)CAPARD'!AU367","v":2.75},{"$f":"'[1]MONE(M)CAPARD'!AV367","v":5.75},{"$f":"'[1]MONE(M)CAPARD'!AW367","v":"n.a."},{"$f":"'[1]MONE(M)CAPARD'!AX367","v":4.5},{"$f":"'[1]MONE(M)CAPARD'!AY367","v":"n.a."},null,null,{"$f":"+'Datos_Regional (M)'!CF360","v":-1.1582862918070314},{"$f":"+'Datos_Regional (M)'!CG360","v":5.2509948430059961},{"$f":"+'Datos_Regional (M)'!CH360","v":4.110745002232008},{"$f":"+'Datos_Regional (M)'!CI360","v":9.2466599918051617},{"$f":"+'Datos_Regional (M)'!CJ360","v":-17.884464829592073},{"$f":"+'Datos_Regional (M)'!CK360","v":12.46003491736265},{"$f":"+'Datos_Regional (M)'!CL360","v":2.4077771400677461},null,null,989.27746589582841,490.96833333333319,918.32499999999993,347.49463900263027,458.27624324125003,914.41666666666663,925.52312091666647,4118.7583481397087,5044.2814690563755,null,null,1413.4696467028323,968.20833333333348,1649.95,874.72844517288411,546.21776825916675,1696.3833333333334,1817.9089994166661,7148.9575268015506,8966.8665262182167,null,null,-3030.1991786618405,-3922.5850571618416,null,null,{"$f":"'[1]EXT Comercio(M)'!C367","v":1035.9557809699957},{"$f":"'[1]EXT Comercio(M)'!D367","v":492.91999999999916},{"$f":"'[1]EXT Comercio(M)'!E367","v":875.8},{"$f":"'[1]EXT Comercio(M)'!F367","v":260.05638194645712},{"$f":"'[1]EXT Comercio(M)'!G367","v":482.64487681999998},{"$f":"'[1]EXT Comercio(M)'!H367","v":959.5},{"$f":"'[1]EXT Comercio(M)'!I367","v":1239.1199999999999},{"$f":"'[1]EXT Comercio(M)'!K367","v":4106.8770397364497},{"$f":"'[1]EXT Comercio(M)'!L367","v":5345.9970397364523},null,null,{"$f":"'[1]EXT Comercio(M)'!AG367","v":1526.7624747299942},{"$f":"'[1]EXT Comercio(M)'!AH367","v":1050.0599999999995},{"$f":"'[1]EXT Comercio(M)'!AI367","v":1868.7},{"$f":"'[1]EXT Comercio(M)'!AJ367","v":925.83357115870012},{"$f":"'[1]EXT Comercio(M)'!AK367","v":600.78591181999991},{"$f":"'[1]EXT Comercio(M)'!AL367","v":1726.9},{"$f":"'[1]EXT Comercio(M)'!AM367","v":1963.4570000000001},{"$f":"'[1]EXT Comercio(M)'!AO367","v":7699.0419577087014},{"$f":"'[1]EXT Comercio(M)'!AP367","v":9662.4989577086963},null,null,{"$f":"'[1]EXT Comercio(M)'!$BS367","v":-3592.1649179722481},{"$f":"'[1]EXT Comercio(M)'!$BT367","v":-4316.5019179722512}]
[null,null,"Noviembre",{"$f":"'[1]REAL IPC(M)'!AD368","v":1.8558595617916422},{"$f":"'[1]REAL IPC(M)'!AE368","v":-0.5731572650942458},{"$f":"'[1]REAL IPC(M)'!AF368","v":2.9207740051113547},{"$f":"'[1]REAL IPC(M)'!AG368","v":3.8437693738375627},{"$f":"'[1]REAL IPC(M)'!AH368","v":5.7188934302477552},{"$f":"'[1]REAL IPC(M)'!AI368","v":3.2250615763547361},{"$f":"'[1]REAL IPC(M)'!AJ368","v":-0.32859718304499225},null,null,{"$f":"'[1]REAL IMAE(M)'!AG368","v":2.331325495848279},{"$f":"'[1]REAL IMAE(M)'!AH368","v":2.4734780926904971},{"$f":"'[1]REAL IMAE(M)'!AI368","v":4.5784100664275567},{"$f":"'[1]REAL IMAE(M)'!AJ368","v":2.6516257955158955},{"$f":"'[1]REAL IMAE(M)'!AK368","v":-6.5429930873220521E-2},{"$f":"'[1]REAL IMAE(M)'!AL368","v":4.4764928937112636},{"$f":"'[1]REAL IMAE(M)'!AM368","v":4.7134743630381157},null,null,{"$f":"'[1]EXT ITCER(M)'!C368","v":80.14671210528283},{"$f":"'[1]EXT ITCER(M)'!D368","v":97.265837855942962},{"$f":"'[1]EXT ITCER(M)'!E368","v":54.211255290746713},{"$f":"'[1]EXT ITCER(M)'!F368","v":79.014062682018135},{"$f":"'[1]EXT ITCER(M)'!G368","v":107.77664429758801},{"$f":"'[1]EXT ITCER(M)'!H368","v":114.9962230546459},{"$f":"'[1]EXT ITCER(M)'!I368","v":93.597012432585061},null,null,{"$f":"'[1]EXT TC(M)'!J368","v":-5.690158365890853},{"$f":"'[1]EXT TC(M)'!K368","v":0},{"$f":"'[1]EXT TC(M)'!L368","v":7.0968808882947473E-2},{"$f":"'[1]EXT TC(M)'!M368","v":1.7109912085451606},{"$f":"'[1]EXT TC(M)'!N368","v":3.6319668341306954},{"$f":"'[1]EXT TC(M)'!O368","v":5.3881334129099816},{"$f":"'[1]EXT TC(M)'!P368","v":0},null,null,{"$f":"'[1]EXT RIN(M)'!C368","v":9150.2999999999993},{"$f":"'[1]EXT RIN(M)'!D368","v":4062.36},{"$f":"'[1]EXT RIN(M)'!E368","v":14604.1},{"$f":"'[1]EXT RIN(M)'!F368","v":5124.0364783089844},{"$f":"'[1]EXT RIN(M)'!G368","v":2161.6999999999998},{"$f":"'[1]EXT RIN(M)'!H368","v":7145.6},{"$f":"'[1]EXT RIN(M)'!I368","v":4569.8718668299989},null,null,{"$f":"'[1]EXT RIN(M)'!P368","v":79.409872052348121},{"$f":"'[1]EXT RIN(M)'!Q368","v":101.61804008128723},{"$f":"'[1]EXT RIN(M)'!R368","v":123.32886156918912},{"$f":"'[1]EXT RIN(M)'!S368","v":96.956944408187013},{"$f":"'[1]EXT RIN(M)'!T368","v":122.36246243331959},{"$f":"'[1]EXT RIN(M)'!U368","v":98.850700519679194},{"$f":"'[1]EXT RIN(M)'!V368","v":227.9671560010276},null,null,{"$f":"+'[1]MONE(M)CAPARD'!AE368","v":4.706789043687718},{"$f":"'[1]MONE(M)CAPARD'!AF368","v":4.8409032537895245},{"$f":"'[1]MONE(M)CAPARD'!AG368","v":1.9716388790351189},{"$f":"'[1]MONE(M)CAPARD'!AH368","v":4.4646208955223949},{"$f":"'[1]MONE(M)CAPARD'!AI368","v":3.7319782117548188},{"$f":"'[1]MONE(M)CAPARD'!AJ368","v":3.2791827604204942},{"$f":"'[1]MONE(M)CAPARD'!AK368","v":2.5569994110802794},null,null,{"$f":"'[1]MONE(M)CAPARD'!AL368","v":3.1670308399999998},{"$f":"'[1]MONE(M)CAPARD'!AM368","v":4.24},{"$f":"'[1]MONE(M)CAPARD'!AN368","v":3.21},{"$f":"'[1]MONE(M)CAPARD'!AO368","v":3.7},{"$f":"'[1]MONE(M)CAPARD'!AP368","v":5.826547800697413},{"$f":"'[1]MONE(M)CAPARD'!AQ368","v":1.8753},{"$f":"'[1]MONE(M)CAPARD'!AR368","v":2.2200000000000002},null,null,{"$f":"'[1]MONE(M)CAPARD'!J368","v":10.569819512128406},{"$f":"'[1]MONE(M)CAPARD'!K368","v":7.2748536171257738},{"$f":"'[1]MONE(M)CAPARD'!L368","v":9.4725540971975875},{"$f":"'[1]MONE(M)CAPARD'!M368","v":13.01592835820896},{"$f":"'[1]MONE(M)CAPARD'!N368","v":10.229876815470128},{"$f":"'[1]MONE(M)CAPARD'!O368","v":8.4153385728133028},{"$f":"'[1]MONE(M)CAPARD'!P368","v":8.9981648994302645},null,null,{"$f":"'[1]MONE(M)CAPARD'!Q368","v":7.2599393399999999},{"$f":"'[1]MONE(M)CAPARD'!R368","v":6.66},{"$f":"'[1]MONE(M)CAPARD'!S368","v":6.44},{"$f":"'[1]MONE(M)CAPARD'!T368","v":8.2899999999999991},{"$f":"'[1]MONE(M)CAPARD'!U368","v":9.6679047855137057},{"$f":"'[1]MONE(M)CAPARD'!V368","v":5.9779},{"$f":"'[1]MONE(M)CAPARD'!W368","v":8.64},null,null,{"$f":"'[1]MONE(M)CAPARD'!AS368","v":3.25},{"$f":"'[1]MONE(M)CAPARD'!AT368","v":"n.a."},{"$f":"'[1]MONE(M)CAPARD'!AU368","v":2.75},{"$f":"'[1]MONE(M)CAPARD'!AV368","v":5.75},{"$f":"'[1]MONE(M)CAPARD'!AW368","v":"n.a."},{"$f":"'[1]MONE(M)CAPARD'!AX368","v":4.5},{"$f":"'[1]MONE(M)CAPARD'!AY368","v":"n.a."},null,null,{"$f":"+'Datos_Regional (M)'!CF361","v":-2.3072623230150135},{"$f":"+'Datos_Regional (M)'!CG361","v":4.8375017073418514},{"$f":"+'Datos_Regional (M)'!CH361","v":4.7416324824318457},{"$f":"+'Datos_Regional (M)'!CI361","v":8.6005656046575609},{"$f":"+'Datos_Regional (M)'!CJ361","v":-16.662603036635005},{"$f":"+'Datos_Regional (M)'!CK361","v":12.619671531465171},{"$f":"+'Datos_Regional (M)'!CL361","v":1.951645104805011},null,null,992.97566022166154,489.53833333333324,923.07499999999982,347.5284918435612,459.65918213374994,921.70833333333337,936.96236224999984,4134.4850008656394,5071.4473631156397,null,null,1402.9131374286651,967.58166666666659,1654.991666666667,864.36983876504439,543.13051060833334,1691.4000000000003,1803.650892833333,7124.3868201353771,8928.0377129687131,null,null,-2989.9018192697367,-3856.5903498530702,null,null,{"$f":"'[1]EXT Comercio(M)'!C368","v":1022.9352201199933},{"$f":"'[1]EXT Comercio(M)'!D368","v":461.71000000000004},{"$f":"'[1]EXT Comercio(M)'!E368","v":916.8},{"$f":"'[1]EXT Comercio(M)'!F368","v":300.4625241233191},{"$f":"'[1]EXT Comercio(M)'!G368","v":444.19300874000004},{"$f":"'[1]EXT Comercio(M)'!H368","v":994.80000000000007},{"$f":"'[1]EXT Comercio(M)'!I368","v":998.99},{"$f":"'[1]EXT Comercio(M)'!K368","v":4140.9007529833179},{"$f":"'[1]EXT Comercio(M)'!L368","v":5139.8907529833232},null,null,{"$f":"'[1]EXT Comercio(M)'!AG368","v":1454.4586244599971},{"$f":"'[1]EXT Comercio(M)'!AH368","v":981.14999999999964},{"$f":"'[1]EXT Comercio(M)'!AI368","v":1753.9},{"$f":"'[1]EXT Comercio(M)'!AJ368","v":852.36943900719848},{"$f":"'[1]EXT Comercio(M)'!AK368","v":541.59559927999999},{"$f":"'[1]EXT Comercio(M)'!AL368","v":1748.3999999999996},{"$f":"'[1]EXT Comercio(M)'!AM368","v":1546.662},{"$f":"'[1]EXT Comercio(M)'!AO368","v":7331.8736627471953},{"$f":"'[1]EXT Comercio(M)'!AP368","v":8878.5356627472065},null,null,{"$f":"'[1]EXT Comercio(M)'!$BS368","v":-3190.9729097638774},{"$f":"'[1]EXT Comercio(M)'!$BT368","v":-3738.6449097638761}]
[null,null,"Diciembre ",{"$f":"'[1]REAL IPC(M)'!AD369","v":1.5224291145129978},{"$f":"'[1]REAL IPC(M)'!AE369","v":-8.1930382300786069E-3},{"$f":"'[1]REAL IPC(M)'!AF369","v":3.4055276015459901},{"$f":"'[1]REAL IPC(M)'!AG369","v":4.0841584158415811},{"$f":"'[1]REAL IPC(M)'!AH369","v":6.1297243704681899},{"$f":"'[1]REAL IPC(M)'!AI369","v":3.6562789262573676},{"$f":"'[1]REAL IPC(M)'!AJ369","v":-6.2580315385681165E-2},null,null,{"$f":"'[1]REAL IMAE(M)'!AG369","v":2.2824437639693085},{"$f":"'[1]REAL IMAE(M)'!AH369","v":1.5191124317523401},{"$f":"'[1]REAL IMAE(M)'!AI369","v":3.8346544310975257},{"$f":"'[1]REAL IMAE(M)'!AJ369","v":2.8017576184978572},{"$f":"'[1]REAL IMAE(M)'!AK369","v":0.92673937648048765},{"$f":"'[1]REAL IMAE(M)'!AL369","v":2.4474909907052411},{"$f":"'[1]REAL IMAE(M)'!AM369","v":4.3163691957876242},null,null,{"$f":"'[1]EXT ITCER(M)'!C369","v":79.258726491097235},{"$f":"'[1]EXT ITCER(M)'!D369","v":97.343150456641936},{"$f":"'[1]EXT ITCER(M)'!E369","v":53.879929819765643},{"$f":"'[1]EXT ITCER(M)'!F369","v":78.857609655524115},{"$f":"'[1]EXT ITCER(M)'!G369","v":107.0130659009392},{"$f":"'[1]EXT ITCER(M)'!H369","v":115.14638488419919},{"$f":"'[1]EXT ITCER(M)'!I369","v":93.920168763857674},null,null,{"$f":"'[1]EXT TC(M)'!J369","v":-5.4908392498758856},{"$f":"'[1]EXT TC(M)'!K369","v":0},{"$f":"'[1]EXT TC(M)'!L369","v":-0.56382911142139969},{"$f":"'[1]EXT TC(M)'!M369","v":1.3019887588865635},{"$f":"'[1]EXT TC(M)'!N369","v":3.5906919389496008},{"$f":"'[1]EXT TC(M)'!O369","v":5.3740315381674142},{"$f":"'[1]EXT TC(M)'!P369","v":0},null,null,{"$f":"'[1]EXT RIN(M)'!C369","v":8912.2999999999993},{"$f":"'[1]EXT RIN(M)'!D369","v":3936.49},{"$f":"'[1]EXT RIN(M)'!E369","v":14789},{"$f":"'[1]EXT RIN(M)'!F369","v":5808.8569290984369},{"$f":"'[1]EXT RIN(M)'!G369","v":2208.5},{"$f":"'[1]EXT RIN(M)'!H369","v":8781.4},{"$f":"'[1]EXT RIN(M)'!I369","v":4142.34042013},null,null,{"$f":"'[1]EXT RIN(M)'!P369","v":74.25707316498314},{"$f":"'[1]EXT RIN(M)'!Q369","v":99.466947780793632},{"$f":"'[1]EXT RIN(M)'!R369","v":116.063651270137},{"$f":"'[1]EXT RIN(M)'!S369","v":100.07267971769384},{"$f":"'[1]EXT RIN(M)'!T369","v":122.21584848858622},{"$f":"'[1]EXT RIN(M)'!U369","v":98.925752495713681},{"$f":"'[1]EXT RIN(M)'!V369","v":198.85952730442332},null,null,{"$f":"+'[1]MONE(M)CAPARD'!AE369","v":4.1641742838111977},{"$f":"'[1]MONE(M)CAPARD'!AF369","v":4.2585419421994475},{"$f":"'[1]MONE(M)CAPARD'!AG369","v":1.4549245416078869},{"$f":"'[1]MONE(M)CAPARD'!AH369","v":4.2425683709869233},{"$f":"'[1]MONE(M)CAPARD'!AI369","v":3.4233928809168725},{"$f":"'[1]MONE(M)CAPARD'!AJ369","v":2.8338091084982491},{"$f":"'[1]MONE(M)CAPARD'!AK369","v":2.2339783460803062},null,null,{"$f":"'[1]MONE(M)CAPARD'!AL369","v":3.0921123700000002},{"$f":"'[1]MONE(M)CAPARD'!AM369","v":4.25},{"$f":"'[1]MONE(M)CAPARD'!AN369","v":3.2},{"$f":"'[1]MONE(M)CAPARD'!AO369","v":3.72},{"$f":"'[1]MONE(M)CAPARD'!AP369","v":5.2920828330410599},{"$f":"'[1]MONE(M)CAPARD'!AQ369","v":1.6742999999999999},{"$f":"'[1]MONE(M)CAPARD'!AR369","v":2.17},null,null,{"$f":"'[1]MONE(M)CAPARD'!J369","v":9.4525602659315737},{"$f":"'[1]MONE(M)CAPARD'!K369","v":6.4587222038094119},{"$f":"'[1]MONE(M)CAPARD'!L369","v":8.9303469675599292},{"$f":"'[1]MONE(M)CAPARD'!M369","v":12.783733650416174},{"$f":"'[1]MONE(M)CAPARD'!N369","v":8.7475349671168292},{"$f":"'[1]MONE(M)CAPARD'!O369","v":8.4649199880934241},{"$f":"'[1]MONE(M)CAPARD'!P369","v":8.5279171128107087},null,null,{"$f":"'[1]MONE(M)CAPARD'!Q369","v":6.9869658399999999},{"$f":"'[1]MONE(M)CAPARD'!R369","v":6.45},{"$f":"'[1]MONE(M)CAPARD'!S369","v":6.41},{"$f":"'[1]MONE(M)CAPARD'!T369","v":8.19},{"$f":"'[1]MONE(M)CAPARD'!U369","v":9.4358010174230582},{"$f":"'[1]MONE(M)CAPARD'!V369","v":6.0696000000000003},{"$f":"'[1]MONE(M)CAPARD'!W369","v":8.4600000000000009},null,null,{"$f":"'[1]MONE(M)CAPARD'!AS369","v":2.75},{"$f":"'[1]MONE(M)CAPARD'!AT369","v":"n.a."},{"$f":"'[1]MONE(M)CAPARD'!AU369","v":2.75},{"$f":"'[1]MONE(M)CAPARD'!AV369","v":5.5},{"$f":"'[1]MONE(M)CAPARD'!AW369","v":"n.a."},{"$f":"'[1]MONE(M)CAPARD'!AX369","v":4.5},{"$f":"'[1]MONE(M)CAPARD'!AY369","v":"n.a."},null,null,{"$f":"+'Datos_Regional (M)'!CF362","v":-2.1296594071194552},{"$f":"+'Datos_Regional (M)'!CG362","v":5.597627985415099},{"$f":"+'Datos_Regional (M)'!CH362","v":5.0489536489688014},{"$f":"+'Datos_Regional (M)'!CI362","v":9.0293698423220103},{"$f":"+'Datos_Regional (M)'!CJ362","v":-14.792507787741727},{"$f":"+'Datos_Regional (M)'!CK362","v":12.760180788599396},{"$f":"+'Datos_Regional (M)'!CL362","v":2.1849244506356946},null,null,997.67632499916169,492.08166666666665,930.67500000000007,352.74675362437716,465.89832368166662,932.72499999999991,956.24676124999985,4171.8030689718717,5128.0498302218721,null,null,1402.6711818978329,966.84250000000009,1656.8000000000002,862.84805799644971,544.82641620333322,1688.9833333333336,1790.9813271666669,7122.9714894309482,8913.9528165976153,null,null,-2951.1684204590765,-3785.9029863757437,null,null,{"$f":"'[1]EXT Comercio(M)'!C369","v":913.89093436999542},{"$f":"'[1]EXT Comercio(M)'!D369","v":448.51000000000022},{"$f":"'[1]EXT Comercio(M)'!E369","v":990.5},{"$f":"'[1]EXT Comercio(M)'!F369","v":370.58013551240953},{"$f":"'[1]EXT Comercio(M)'!G369","v":439.91698666000002},{"$f":"'[1]EXT Comercio(M)'!H369","v":956.4},{"$f":"'[1]EXT Comercio(M)'!I369","v":962.56913499999996},{"$f":"'[1]EXT Comercio(M)'!K369","v":4119.7980565423932},{"$f":"'[1]EXT Comercio(M)'!L369","v":5082.3671915423984},null,null,{"$f":"'[1]EXT Comercio(M)'!AG369","v":1318.8462367300044},{"$f":"'[1]EXT Comercio(M)'!AH369","v":876.35000000000218},{"$f":"'[1]EXT Comercio(M)'!AI369","v":1544.6},{"$f":"'[1]EXT Comercio(M)'!AJ369","v":871.38375876087093},{"$f":"'[1]EXT Comercio(M)'!AK369","v":531.06539099999998},{"$f":"'[1]EXT Comercio(M)'!AL369","v":1588.9},{"$f":"'[1]EXT Comercio(M)'!AM369","v":1619.8189259999999},{"$f":"'[1]EXT Comercio(M)'!AO369","v":6731.145386490869},{"$f":"'[1]EXT Comercio(M)'!AP369","v":8350.9643124908616},null,null,{"$f":"'[1]EXT Comercio(M)'!$BS369","v":-2611.3473299484685},{"$f":"'[1]EXT Comercio(M)'!$BT369","v":-3268.5971209484705}]
[null,2020,"Enero",{"$f":"'[1]REAL IPC(M)'!AD370","v":1.5827643368556139},{"$f":"'[1]REAL IPC(M)'!AE370","v":-7.8489390220480085E-2},{"$f":"'[1]REAL IPC(M)'!AF370","v":1.7844294143042296},{"$f":"'[1]REAL IPC(M)'!AG370","v":4.2994123105474724},{"$f":"'[1]REAL IPC(M)'!AH370","v":6.4152757000630558},{"$f":"'[1]REAL IPC(M)'!AI370","v":4.1724617524339518},{"$f":"'[1]REAL IPC(M)'!AJ370","v":0.3558122223510457},null,null,{"$f":"'[1]REAL IMAE(M)'!AG370","v":2.2825258006570968},{"$f":"'[1]REAL IMAE(M)'!AH370","v":0.39017033866503742},{"$f":"'[1]REAL IMAE(M)'!AI370","v":1.9576787721089264},{"$f":"'[1]REAL IMAE(M)'!AJ370","v":2.8234663140017227},{"$f":"'[1]REAL IMAE(M)'!AK370","v":1.735077814615535},{"$f":"'[1]REAL IMAE(M)'!AL370","v":-0.55855935666119072},{"$f":"'[1]REAL IMAE(M)'!AM370","v":3.7537575477984952},null,null,{"$f":"'[1]EXT ITCER(M)'!C370","v":79.526983954400791},{"$f":"'[1]EXT ITCER(M)'!D370","v":97.62206827468161},{"$f":"'[1]EXT ITCER(M)'!E370","v":54.113981961647177},{"$f":"'[1]EXT ITCER(M)'!F370","v":78.811276155763693},{"$f":"'[1]EXT ITCER(M)'!G370","v":107.54111950923399},{"$f":"'[1]EXT ITCER(M)'!H370","v":115.3910183805056},{"$f":"'[1]EXT ITCER(M)'!I370","v":93.935770066729546},null,null,{"$f":"'[1]EXT TC(M)'!J370","v":-5.9604605812882241},{"$f":"'[1]EXT TC(M)'!K370","v":0},{"$f":"'[1]EXT TC(M)'!L370","v":-0.53039290043625931},{"$f":"'[1]EXT TC(M)'!M370","v":1.283238706455323},{"$f":"'[1]EXT TC(M)'!N370","v":3.1498630705926391},{"$f":"'[1]EXT TC(M)'!O370","v":5.4716743337854092},{"$f":"'[1]EXT TC(M)'!P370","v":0},null,null,{"$f":"'[1]EXT RIN(M)'!C370","v":8211.4246999999996},{"$f":"'[1]EXT RIN(M)'!D370","v":3948.04},{"$f":"'[1]EXT RIN(M)'!E370","v":14895.4},{"$f":"'[1]EXT RIN(M)'!F370","v":5764},{"$f":"'[1]EXT RIN(M)'!G370","v":2237.6},{"$f":"'[1]EXT RIN(M)'!H370","v":10408.336724746965},{"$f":"'[1]EXT RIN(M)'!I370","v":3344.3621086600001},null,null,{"$f":"'[1]EXT RIN(M)'!P370","v":68.625238380409868},{"$f":"'[1]EXT RIN(M)'!Q370","v":98.043325373395248},{"$f":"'[1]EXT RIN(M)'!R370","v":117.8539329124912},{"$f":"'[1]EXT RIN(M)'!S370","v":101.95948154232725},{"$f":"'[1]EXT RIN(M)'!T370","v":126.10420005877252},{"$f":"'[1]EXT RIN(M)'!U370","v":126.06642811943291},{"$f":"'[1]EXT RIN(M)'!V370","v":175.58676762204635},null,null,{"$f":"+'[1]MONE(M)CAPARD'!AE370","v":4.1023058294865242},{"$f":"'[1]MONE(M)CAPARD'!AF370","v":4.4219601597856881},{"$f":"'[1]MONE(M)CAPARD'!AG370","v":3.0314760356284332},{"$f":"'[1]MONE(M)CAPARD'!AH370","v":4.0178440094899237},{"$f":"'[1]MONE(M)CAPARD'!AI370","v":3.442330288033189},{"$f":"'[1]MONE(M)CAPARD'!AJ370","v":2.1733558077436426},{"$f":"'[1]MONE(M)CAPARD'!AK370","v":1.797791017476444},null,null,{"$f":"'[1]MONE(M)CAPARD'!AL370","v":3.1871662700000001},{"$f":"'[1]MONE(M)CAPARD'!AM370","v":4.34},{"$f":"'[1]MONE(M)CAPARD'!AN370","v":3.21},{"$f":"'[1]MONE(M)CAPARD'!AO370","v":3.73},{"$f":"'[1]MONE(M)CAPARD'!AP370","v":5.7631311041882727},{"$f":"'[1]MONE(M)CAPARD'!AQ370","v":1.6912},{"$f":"'[1]MONE(M)CAPARD'!AR370","v":2.16},null,null,{"$f":"'[1]MONE(M)CAPARD'!J370","v":12.332630072559581},{"$f":"'[1]MONE(M)CAPARD'!K370","v":6.1032798173325542},{"$f":"'[1]MONE(M)CAPARD'!L370","v":10.675081295065729},{"$f":"'[1]MONE(M)CAPARD'!M370","v":12.541381969157777},{"$f":"'[1]MONE(M)CAPARD'!N370","v":8.3532718198630604},{"$f":"'[1]MONE(M)CAPARD'!O370","v":8.0130949265687423},{"$f":"'[1]MONE(M)CAPARD'!P370","v":8.1352415937406395},null,null,{"$f":"'[1]MONE(M)CAPARD'!Q370","v":6.9145027700000004},{"$f":"'[1]MONE(M)CAPARD'!R370","v":6.02},{"$f":"'[1]MONE(M)CAPARD'!S370","v":6.37},{"$f":"'[1]MONE(M)CAPARD'!T370","v":8.17},{"$f":"'[1]MONE(M)CAPARD'!U370","v":10.043156409826043},{"$f":"'[1]MONE(M)CAPARD'!V370","v":5.1388999999999996},{"$f":"'[1]MONE(M)CAPARD'!W370","v":8.52},null,null,{"$f":"'[1]MONE(M)CAPARD'!AS370","v":2.25},{"$f":"'[1]MONE(M)CAPARD'!AT370","v":"n.a."},{"$f":"'[1]MONE(M)CAPARD'!AU370","v":2.75},{"$f":"'[1]MONE(M)CAPARD'!AV370","v":5.5},{"$f":"'[1]MONE(M)CAPARD'!AW370","v":"n.a."},{"$f":"'[1]MONE(M)CAPARD'!AX370","v":4.5},{"$f":"'[1]MONE(M)CAPARD'!AY370","v":"n.a."},null,null,{"$f":"+'Datos_Regional (M)'!CF363","v":-2.1597750987204178},{"$f":"+'Datos_Regional (M)'!CG363","v":5.4988652698424456},{"$f":"+'Datos_Regional (M)'!CH363","v":4.9679346881358111},{"$f":"+'Datos_Regional (M)'!CI363","v":8.8146636745707987},{"$f":"+'Datos_Regional (M)'!CJ363","v":-12.890358723326756},{"$f":"+'Datos_Regional (M)'!CK363","v":13.371915179536442},{"$f":"+'Datos_Regional (M)'!CL363","v":2.450979864269609},null,null,{"$f":"IF(EH175=\"\",\"\",+AVERAGE(EH164:EH175))","v":1002.7499171024957},{"$f":"IF(EI175=\"\",\"\",+AVERAGE(EI164:EI175))","v":494.24833333333328},{"$f":"IF(EJ175=\"\",\"\",+AVERAGE(EJ164:EJ175))","v":943.50833333333321},{"$f":"IF(EK175=\"\",\"\",+AVERAGE(EK164:EK175))","v":356.82109593483921},{"$f":"IF(EL175=\"\",\"\",+AVERAGE(EL164:EL175))","v":470.61771574333335},{"$f":"IF(EM175=\"\",\"\",+AVERAGE(EM164:EM175))","v":934.64166666666654},960.89443258333324,{"$f":"IF(EO175=\"\",\"\",+AVERAGE(EO164:EO175))","v":4202.5870621140011},{"$f":"IF(EP175=\"\",\"\",+AVERAGE(EP164:EP175))","v":5163.4814946973347},null,null,{"$f":"IF(ES175=\"\",\"\",+AVERAGE(ES164:ES175))","v":1417.1289698386663},{"$f":"IF(ET175=\"\",\"\",+AVERAGE(ET164:ET175))","v":968.9575000000001},{"$f":"IF(EU175=\"\",\"\",+AVERAGE(EU164:EU175))","v":1661.0249999999999},{"$f":"IF(EV175=\"\",\"\",+AVERAGE(EV164:EV175))","v":864.66261340364451},{"$f":"IF(EW175=\"\",\"\",+AVERAGE(EW164:EW175))","v":543.28489725916654},{"$f":"IF(EX175=\"\",\"\",+AVERAGE(EX164:EX175))","v":1685.0916666666669},{"$f":"IF(EY175=\"\",\"\",+AVERAGE(EY164:EY175))","v":1767.9955643333335},{"$f":"IF(EZ175=\"\",\"\",+AVERAGE(EZ164:EZ175))","v":7140.1506471681432},{"$f":"IF(FA175=\"\",\"\",+AVERAGE(FA164:FA175))","v":8908.1462115014783},null,null,{"$f":"IF(FD175=\"\",\"\",+AVERAGE(FD164:FD175))","v":-2937.5635850541421},{"$f":"IF(FE175=\"\",\"\",+AVERAGE(FE164:FE175))","v":-3744.6647168041422},null,null,{"$f":"'[1]EXT Comercio(M)'!C370","v":920.88578933999997},{"$f":"'[1]EXT Comercio(M)'!D370","v":509.88},{"$f":"'[1]EXT Comercio(M)'!E370","v":1009.8},{"$f":"'[1]EXT Comercio(M)'!F370","v":412.04049026000001},{"$f":"'[1]EXT Comercio(M)'!G370","v":493.26906725999999},{"$f":"'[1]EXT Comercio(M)'!H370","v":863.6},{"$f":"'[1]EXT Comercio(M)'!I370","v":870.25505600000008},{"$f":"'[1]EXT Comercio(M)'!K370","v":4209.4753468600002},{"$f":"'[1]EXT Comercio(M)'!L370","v":5079.7304028600001},null,null,{"$f":"'[1]EXT Comercio(M)'!AG370","v":1597.49623954},{"$f":"'[1]EXT Comercio(M)'!AH370","v":967.54},{"$f":"'[1]EXT Comercio(M)'!AI370","v":1736.3},{"$f":"'[1]EXT Comercio(M)'!AJ370","v":867.78746474219827},{"$f":"'[1]EXT Comercio(M)'!AK370","v":516.37302112999998},{"$f":"'[1]EXT Comercio(M)'!AL370","v":1584.6999999999998},{"$f":"'[1]EXT Comercio(M)'!AM370","v":1551.084846},{"$f":"'[1]EXT Comercio(M)'!AO370","v":7270.1967254121982},{"$f":"'[1]EXT Comercio(M)'!AP370","v":8821.2815714121989},null,null,{"$f":"'[1]EXT Comercio(M)'!$BS370","v":-3060.7213785521985},{"$f":"'[1]EXT Comercio(M)'!$BT370","v":-3741.5511685521983}]
[null,null,"Febrero",{"$f":"'[1]REAL IPC(M)'!AD371","v":1.7900762599195572},{"$f":"'[1]REAL IPC(M)'!AE371","v":-0.38958257461608103},{"$f":"'[1]REAL IPC(M)'!AF371","v":1.2358985413523023},{"$f":"'[1]REAL IPC(M)'!AG371","v":3.9901780233271942},{"$f":"'[1]REAL IPC(M)'!AH371","v":6.4136214583747391},{"$f":"'[1]REAL IPC(M)'!AI371","v":3.656658968437263},{"$f":"'[1]REAL IPC(M)'!AJ371","v":1.4453287644329923E-2},null,null,{"$f":"'[1]REAL IMAE(M)'!AG371","v":2.5175555446419144},{"$f":"'[1]REAL IMAE(M)'!AH371","v":-2.344841092519657},{"$f":"'[1]REAL IMAE(M)'!AI371","v":-0.86693352038583438},{"$f":"'[1]REAL IMAE(M)'!AJ371","v":2.0897745231957026},{"$f":"'[1]REAL IMAE(M)'!AK371","v":2.2688827913196716},{"$f":"'[1]REAL IMAE(M)'!AL371","v":-3.9787896699904466},{"$f":"'[1]REAL IMAE(M)'!AM371","v":2.9820444728150113},null,null,{"$f":"'[1]EXT ITCER(M)'!C371","v":79.554326233642172},{"$f":"'[1]EXT ITCER(M)'!D371","v":97.874992362629868},{"$f":"'[1]EXT ITCER(M)'!E371","v":54.088050451194547},{"$f":"'[1]EXT ITCER(M)'!F371","v":78.60741735798149},{"$f":"'[1]EXT ITCER(M)'!G371","v":107.7286183549635},{"$f":"'[1]EXT ITCER(M)'!H371","v":116.22470110584619},{"$f":"'[1]EXT ITCER(M)'!I371","v":94.290251095478439},null,null,{"$f":"'[1]EXT TC(M)'!J371","v":-6.427300260559524},{"$f":"'[1]EXT TC(M)'!K371","v":0},{"$f":"'[1]EXT TC(M)'!L371","v":-1.1153572928603723},{"$f":"'[1]EXT TC(M)'!M371","v":1.1806740041331067},{"$f":"'[1]EXT TC(M)'!N371","v":3.1223873541202312},{"$f":"'[1]EXT TC(M)'!O371","v":5.7410263273403519},{"$f":"'[1]EXT TC(M)'!P371","v":0},null,null,{"$f":"'[1]EXT RIN(M)'!C371","v":8102.0591999999997},{"$f":"'[1]EXT RIN(M)'!D371","v":3867.49},{"$f":"'[1]EXT RIN(M)'!E371","v":15203.2},{"$f":"'[1]EXT RIN(M)'!F371","v":5855.5},{"$f":"'[1]EXT RIN(M)'!G371","v":2269.6},{"$f":"'[1]EXT RIN(M)'!H371","v":9863.6},{"$f":"'[1]EXT RIN(M)'!I371","v":3374.7569836500002},null,null,{"$f":"'[1]EXT RIN(M)'!P371","v":68.451107723882515},{"$f":"'[1]EXT RIN(M)'!Q371","v":97.447412906228251},{"$f":"'[1]EXT RIN(M)'!R371","v":120.87432594614089},{"$f":"'[1]EXT RIN(M)'!S371","v":103.07115717296288},{"$f":"'[1]EXT RIN(M)'!T371","v":129.93656653816805},{"$f":"'[1]EXT RIN(M)'!U371","v":129.60021268105325},{"$f":"'[1]EXT RIN(M)'!V371","v":167.55119415543166},null,null,{"$f":"+'[1]MONE(M)CAPARD'!AE371","v":2.956991340093551},{"$f":"'[1]MONE(M)CAPARD'!AF371","v":4.8183540423483793},{"$f":"'[1]MONE(M)CAPARD'!AG371","v":3.560102207395841},{"$f":"'[1]MONE(M)CAPARD'!AH371","v":4.3175442739079104},{"$f":"'[1]MONE(M)CAPARD'!AI371","v":2.5831415859658504},{"$f":"'[1]MONE(M)CAPARD'!AJ371","v":4.022550092833268},{"$f":"'[1]MONE(M)CAPARD'!AK371","v":2.1552352100113552},null,null,{"$f":"'[1]MONE(M)CAPARD'!AL371","v":2.8954608199999998},{"$f":"'[1]MONE(M)CAPARD'!AM371","v":4.41},{"$f":"'[1]MONE(M)CAPARD'!AN371","v":3.21},{"$f":"'[1]MONE(M)CAPARD'!AO371","v":3.72},{"$f":"'[1]MONE(M)CAPARD'!AP371","v":5.5631029999044586},{"$f":"'[1]MONE(M)CAPARD'!AQ371","v":2.202},{"$f":"'[1]MONE(M)CAPARD'!AR371","v":2.17},null,null,{"$f":"'[1]MONE(M)CAPARD'!J371","v":11.671256851939637},{"$f":"'[1]MONE(M)CAPARD'!K371","v":6.5250028487078495},{"$f":"'[1]MONE(M)CAPARD'!L371","v":11.304390659379658},{"$f":"'[1]MONE(M)CAPARD'!M371","v":12.885661157024794},{"$f":"'[1]MONE(M)CAPARD'!N371","v":8.9098127942033667},{"$f":"'[1]MONE(M)CAPARD'!O371","v":8.6306476791682112},{"$f":"'[1]MONE(M)CAPARD'!P371","v":8.3932225046533322},null,null,{"$f":"'[1]MONE(M)CAPARD'!Q371","v":6.6049045099999999},{"$f":"'[1]MONE(M)CAPARD'!R371","v":6.11},{"$f":"'[1]MONE(M)CAPARD'!S371","v":6.37},{"$f":"'[1]MONE(M)CAPARD'!T371","v":8.14},{"$f":"'[1]MONE(M)CAPARD'!U371","v":10.182828917217801},{"$f":"'[1]MONE(M)CAPARD'!V371","v":5.4591000000000003},{"$f":"'[1]MONE(M)CAPARD'!W371","v":8.4088888888888889},null,null,{"$f":"'[1]MONE(M)CAPARD'!AS371","v":2.25},{"$f":"'[1]MONE(M)CAPARD'!AT371","v":"n.a."},{"$f":"'[1]MONE(M)CAPARD'!AU371","v":2.75},{"$f":"'[1]MONE(M)CAPARD'!AV371","v":5.25},{"$f":"'[1]MONE(M)CAPARD'!AW371","v":"n.a."},{"$f":"'[1]MONE(M)CAPARD'!AX371","v":4.5},{"$f":"'[1]MONE(M)CAPARD'!AY371","v":"n.a."},null,null,{"$f":"+'Datos_Regional (M)'!CF364","v":-1.9554972066749166},{"$f":"+'Datos_Regional (M)'!CG364","v":5.3676765180285191},{"$f":"+'Datos_Regional (M)'!CH364","v":5.9081431484056646},{"$f":"+'Datos_Regional (M)'!CI364","v":8.4420549025842728},{"$f":"+'Datos_Regional (M)'!CJ364","v":-11.275165861062931},{"$f":"+'Datos_Regional (M)'!CK364","v":13.272470977651007},{"$f":"+'Datos_Regional (M)'!CL364","v":1.8375340670037543},null,null,{"$f":"IF(EH176=\"\",\"\",+AVERAGE(EH165:EH176))","v":1024.7540052608294},{"$f":"IF(EI176=\"\",\"\",+AVERAGE(EI165:EI176))","v":497.3533333333333},{"$f":"IF(EJ176=\"\",\"\",+AVERAGE(EJ165:EJ176))","v":954.98333333333323},{"$f":"IF(EK176=\"\",\"\",+AVERAGE(EK165:EK176))","v":359.05822639933393},{"$f":"IF(EL176=\"\",\"\",+AVERAGE(EL165:EL176))","v":473.72092797249996},{"$f":"IF(EM176=\"\",\"\",+AVERAGE(EM165:EM176))","v":944.80833333333339},{"$f":"IF(EN176=\"\",\"\",+AVERAGE(EN165:EN176))","v":969.6073255},4254.6781596326628,5224.2854851326629,null,null,{"$f":"IF(ES176=\"\",\"\",+AVERAGE(ES165:ES176))","v":1446.768591121999},{"$f":"IF(ET176=\"\",\"\",+AVERAGE(ET165:ET176))","v":970.51499999999999},{"$f":"IF(EU176=\"\",\"\",+AVERAGE(EU165:EU176))","v":1667.175},{"$f":"IF(EV176=\"\",\"\",+AVERAGE(EV165:EV176))","v":862.30195307669158},{"$f":"IF(EW176=\"\",\"\",+AVERAGE(EW165:EW176))","v":547.15277014083335},{"$f":"IF(EX176=\"\",\"\",+AVERAGE(EX165:EX176))","v":1690.866666666667},{"$f":"IF(EY176=\"\",\"\",+AVERAGE(EY165:EY176))","v":1732.1622538333334},7184.7799810061915,8916.9422348395237,null,null,-2930.1018213735274,-3692.6567497068609,null,null,{"$f":"'[1]EXT Comercio(M)'!C371","v":1193.88503687},{"$f":"'[1]EXT Comercio(M)'!D371","v":505.31000000000006},{"$f":"'[1]EXT Comercio(M)'!E371","v":1031.9000000000001},{"$f":"'[1]EXT Comercio(M)'!F371","v":401.27363958999979},{"$f":"'[1]EXT Comercio(M)'!G371","v":477.03091515999995},{"$f":"'[1]EXT Comercio(M)'!H371","v":953.2},{"$f":"'[1]EXT Comercio(M)'!I371","v":875.24871499999995},{"$f":"'[1]EXT Comercio(M)'!K371","v":4562.59959162},{"$f":"'[1]EXT Comercio(M)'!L371","v":5437.8483066199997},null,null,{"$f":"'[1]EXT Comercio(M)'!AG371","v":1630.0422885600001},{"$f":"'[1]EXT Comercio(M)'!AH371","v":888.36999999999989},{"$f":"'[1]EXT Comercio(M)'!AI371","v":1533.3},{"$f":"'[1]EXT Comercio(M)'!AJ371","v":794.4095953833488},{"$f":"'[1]EXT Comercio(M)'!AK371","v":560.50816443999997},{"$f":"'[1]EXT Comercio(M)'!AL371","v":1534.8999999999999},{"$f":"'[1]EXT Comercio(M)'!AM371","v":1275.326274},{"$f":"'[1]EXT Comercio(M)'!AO371","v":6941.5300483833498},{"$f":"'[1]EXT Comercio(M)'!AP371","v":8216.8563223833498},null,null,{"$f":"'[1]EXT Comercio(M)'!$BS371","v":-2378.9304567633485},{"$f":"'[1]EXT Comercio(M)'!$BT371","v":-2779.0080157633488}]
[null,null,"Marzo",{"$f":"'[1]REAL IPC(M)'!AD372","v":1.9069285766384596},{"$f":"'[1]REAL IPC(M)'!AE372","v":-0.53324188465219202},{"$f":"'[1]REAL IPC(M)'!AF372","v":1.7683847315074255},{"$f":"'[1]REAL IPC(M)'!AG372","v":3.8826047080403505},{"$f":"'[1]REAL IPC(M)'!AH372","v":4.4185378473396941},{"$f":"'[1]REAL IPC(M)'!AI372","v":2.4474187380497057},{"$f":"'[1]REAL IPC(M)'!AJ372","v":-0.83969931348454996},null,null,{"$f":"'[1]REAL IMAE(M)'!AG372","v":-7.2033919893360556},{"$f":"'[1]REAL IMAE(M)'!AH372","v":-9.5666355402723973},{"$f":"'[1]REAL IMAE(M)'!AI372","v":-4.0189027514821509},{"$f":"'[1]REAL IMAE(M)'!AJ372","v":-9.9979638330430571},{"$f":"'[1]REAL IMAE(M)'!AK372","v":2.473729013590809},{"$f":"'[1]REAL IMAE(M)'!AL372","v":-7.1491752990375117},{"$f":"'[1]REAL IMAE(M)'!AM372","v":2.0177945392708252},null,null,{"$f":"'[1]EXT ITCER(M)'!C372","v":79.298633710477745},{"$f":"'[1]EXT ITCER(M)'!D372","v":97.478191084468506},{"$f":"'[1]EXT ITCER(M)'!E372","v":53.955075506094111},{"$f":"'[1]EXT ITCER(M)'!F372","v":78.259991944030944},{"$f":"'[1]EXT ITCER(M)'!G372","v":107.6834819071086},{"$f":"'[1]EXT ITCER(M)'!H372","v":117.2540261688366},{"$f":"'[1]EXT ITCER(M)'!I372","v":94.402843114731752},null,null,{"$f":"'[1]EXT TC(M)'!J372","v":-5.4826945387359221},{"$f":"'[1]EXT TC(M)'!K372","v":0},{"$f":"'[1]EXT TC(M)'!L372","v":1.8645137400320779E-2},{"$f":"'[1]EXT TC(M)'!M372","v":1.1968219695093847},{"$f":"'[1]EXT TC(M)'!N372","v":3.2638430092212429},{"$f":"'[1]EXT TC(M)'!O372","v":6.3831143137867254},{"$f":"'[1]EXT TC(M)'!P372","v":0},null,null,{"$f":"'[1]EXT RIN(M)'!C372","v":8032.8577080200002},{"$f":"'[1]EXT RIN(M)'!D372","v":3864.18},{"$f":"'[1]EXT RIN(M)'!E372","v":15337.7},{"$f":"'[1]EXT RIN(M)'!F372","v":6086.2},{"$f":"'[1]EXT RIN(M)'!G372","v":2394.5},{"$f":"'[1]EXT RIN(M)'!H372","v":9324.4},{"$f":"'[1]EXT RIN(M)'!I372","v":3223.7272755699996},null,null,{"$f":"'[1]EXT RIN(M)'!P372","v":68.798368610386504},{"$f":"'[1]EXT RIN(M)'!Q372","v":105.28532793053671},{"$f":"'[1]EXT RIN(M)'!R372","v":122.19212355324709},{"$f":"'[1]EXT RIN(M)'!S372","v":106.56003581661604},{"$f":"'[1]EXT RIN(M)'!T372","v":135.71187063050547},{"$f":"'[1]EXT RIN(M)'!U372","v":111.88858718077945},{"$f":"'[1]EXT RIN(M)'!V372","v":158.92421513372054},null,null,{"$f":"+'[1]MONE(M)CAPARD'!AE372","v":2.2010980555406037},{"$f":"'[1]MONE(M)CAPARD'!AF372","v":4.7787240428003477},{"$f":"'[1]MONE(M)CAPARD'!AG372","v":2.9985886840432445},{"$f":"'[1]MONE(M)CAPARD'!AH372","v":4.37743672748676},{"$f":"'[1]MONE(M)CAPARD'!AI372","v":4.5443538279748967},{"$f":"'[1]MONE(M)CAPARD'!AJ372","v":4.1439611795446138},{"$f":"'[1]MONE(M)CAPARD'!AK372","v":3.0049317043768822},null,null,{"$f":"'[1]MONE(M)CAPARD'!AL372","v":3.3148440099999998},{"$f":"'[1]MONE(M)CAPARD'!AM372","v":4.22},{"$f":"'[1]MONE(M)CAPARD'!AN372","v":3.14},{"$f":"'[1]MONE(M)CAPARD'!AO372","v":3.7},{"$f":"'[1]MONE(M)CAPARD'!AP372","v":5.3477499691828321},{"$f":"'[1]MONE(M)CAPARD'!AQ372","v":1.8828},{"$f":"'[1]MONE(M)CAPARD'!AR372","v":2.14},null,null,{"$f":"'[1]MONE(M)CAPARD'!J372","v":9.3429794385385918},{"$f":"'[1]MONE(M)CAPARD'!K372","v":6.6788563440946547},{"$f":"'[1]MONE(M)CAPARD'!L372","v":10.682703962703981},{"$f":"'[1]MONE(M)CAPARD'!M372","v":12.896668628605067},{"$f":"'[1]MONE(M)CAPARD'!N372","v":9.2420441988261199},{"$f":"'[1]MONE(M)CAPARD'!O372","v":10.572917693169101},{"$f":"'[1]MONE(M)CAPARD'!P372","v":9.312339408007384},null,null,{"$f":"'[1]MONE(M)CAPARD'!Q372","v":6.7416474500000003},{"$f":"'[1]MONE(M)CAPARD'!R372","v":6.11},{"$f":"'[1]MONE(M)CAPARD'!S372","v":6.31},{"$f":"'[1]MONE(M)CAPARD'!T372","v":8.0399999999999991},{"$f":"'[1]MONE(M)CAPARD'!U372","v":9.3968483871347832},{"$f":"'[1]MONE(M)CAPARD'!V372","v":5.0694999999999997},{"$f":"'[1]MONE(M)CAPARD'!W372","v":8.3944444444444439},null,null,{"$f":"'[1]MONE(M)CAPARD'!AS372","v":1.25},{"$f":"'[1]MONE(M)CAPARD'!AT372","v":"n.a."},{"$f":"'[1]MONE(M)CAPARD'!AU372","v":2},{"$f":"'[1]MONE(M)CAPARD'!AV372","v":4.5},{"$f":"'[1]MONE(M)CAPARD'!AW372","v":"n.a."},{"$f":"'[1]MONE(M)CAPARD'!AX372","v":3.5},{"$f":"'[1]MONE(M)CAPARD'!AY372","v":"n.a."},null,null,{"$f":"+'Datos_Regional (M)'!CF365","v":-0.63281508084093163},{"$f":"+'Datos_Regional (M)'!CG365","v":6.3432273346886392},{"$f":"+'Datos_Regional (M)'!CH365","v":7.6019944479178703},{"$f":"+'Datos_Regional (M)'!CI365","v":8.369722691069569},{"$f":"+'Datos_Regional (M)'!CJ365","v":-9.2207739229426604},{"$f":"+'Datos_Regional (M)'!CK365","v":10.526650515259718},{"$f":"+'Datos_Regional (M)'!CL365","v":1.8269167933354202},null,null,1037.7348745224965,490.91083333333336,949.9083333333333,358.93262476115342,475.85036749,935.50833333333333,965.28322733333334,4248.8453667736485,5214.1285941069827,null,null,1460.2057185416681,960.64083333333338,1654.0333333333335,849.42764281047619,547.60700978249997,1674.7250000000001,1683.0829135000004,7146.6395378013103,8829.7224513013098,null,null,-2897.7941710276605,-3615.5938571943279,null,null,{"$f":"'[1]EXT Comercio(M)'!C372","v":1244.53596124},{"$f":"'[1]EXT Comercio(M)'!D372","v":437.56999999999994},{"$f":"'[1]EXT Comercio(M)'!E372","v":1003.6},{"$f":"'[1]EXT Comercio(M)'!F372","v":405.05654565000003},{"$f":"'[1]EXT Comercio(M)'!G372","v":510.45156541000006},{"$f":"'[1]EXT Comercio(M)'!H372","v":874.3},{"$f":"'[1]EXT Comercio(M)'!I372","v":853.10082199999999},{"$f":"'[1]EXT Comercio(M)'!K372","v":4475.5140722999986},{"$f":"'[1]EXT Comercio(M)'!L372","v":5328.6148942999989},null,null,{"$f":"'[1]EXT Comercio(M)'!AG372","v":1674.0606153100002},{"$f":"'[1]EXT Comercio(M)'!AH372","v":881.44000000000051},{"$f":"'[1]EXT Comercio(M)'!AI372","v":1469},{"$f":"'[1]EXT Comercio(M)'!AJ372","v":721.57771367833698},{"$f":"'[1]EXT Comercio(M)'!AK372","v":539.30302798000002},{"$f":"'[1]EXT Comercio(M)'!AL372","v":1505.2000000000003},{"$f":"'[1]EXT Comercio(M)'!AM372","v":1197.612916},{"$f":"'[1]EXT Comercio(M)'!AO372","v":6790.5813569683378},{"$f":"'[1]EXT Comercio(M)'!AP372","v":7988.194272968336},null,null,{"$f":"'[1]EXT Comercio(M)'!$BS372","v":-2315.0672846683365},{"$f":"'[1]EXT Comercio(M)'!$BT372","v":-2659.5793786683371}]
[null,null,"Abril",{"$f":"'[1]REAL IPC(M)'!AD373","v":0.8911626229277152},{"$f":"'[1]REAL IPC(M)'!AE373","v":-1.0492710830404626},{"$f":"'[1]REAL IPC(M)'!AF373","v":1.8792425866381024},{"$f":"'[1]REAL IPC(M)'!AG373","v":3.3323235383217207},{"$f":"'[1]REAL IPC(M)'!AH373","v":3.2463383911215602},{"$f":"'[1]REAL IPC(M)'!AI373","v":1.0727328058429724},{"$f":"'[1]REAL IPC(M)'!AJ373","v":-2.3736443820454518},null,null,{"$f":"'[1]REAL IMAE(M)'!AG373","v":-7.7799160944769312},{"$f":"'[1]REAL IMAE(M)'!AH373","v":-17.439528555192432},{"$f":"'[1]REAL IMAE(M)'!AI373","v":-6.4295020185819522},{"$f":"'[1]REAL IMAE(M)'!AJ373","v":-9.7003328087938883},{"$f":"'[1]REAL IMAE(M)'!AK373","v":2.3628837529429028},{"$f":"'[1]REAL IMAE(M)'!AL373","v":-9.4093912826609429},{"$f":"'[1]REAL IMAE(M)'!AM373","v":-25.00526573627625},null,null,{"$f":"'[1]EXT ITCER(M)'!C373","v":78.727324395430301},{"$f":"'[1]EXT ITCER(M)'!D373","v":97.047641264002507},{"$f":"'[1]EXT ITCER(M)'!E373","v":53.280419055460918},{"$f":"'[1]EXT ITCER(M)'!F373","v":77.619800428298191},{"$f":"'[1]EXT ITCER(M)'!G373","v":107.21228227975941},{"$f":"'[1]EXT ITCER(M)'!H373","v":118.28924817253829},{"$f":"'[1]EXT ITCER(M)'!I373","v":94.850669897465821},null,null,{"$f":"'[1]EXT TC(M)'!J373","v":-5.2069949477456738},{"$f":"'[1]EXT TC(M)'!K373","v":0},{"$f":"'[1]EXT TC(M)'!L373","v":0.86877030442372005},{"$f":"'[1]EXT TC(M)'!M373","v":1.5255131120407039},{"$f":"'[1]EXT TC(M)'!N373","v":3.6799954371974217},{"$f":"'[1]EXT TC(M)'!O373","v":7.2644749297418878},{"$f":"'[1]EXT TC(M)'!P373","v":0},null,null,{"$f":"'[1]EXT RIN(M)'!C373","v":8530.9281593100004},{"$f":"'[1]EXT RIN(M)'!D373","v":3663.53},{"$f":"'[1]EXT RIN(M)'!E373","v":16549.400000000001},{"$f":"'[1]EXT RIN(M)'!F373","v":6131},{"$f":"'[1]EXT RIN(M)'!G373","v":2494.5},{"$f":"'[1]EXT RIN(M)'!H373","v":8613.7032668002321},{"$f":"'[1]EXT RIN(M)'!I373","v":5633.3423553399989},null,null,{"$f":"'[1]EXT RIN(M)'!P373","v":71.48710870131076},{"$f":"'[1]EXT RIN(M)'!Q373","v":117.0856007463247},{"$f":"'[1]EXT RIN(M)'!R373","v":128.59034645586601},{"$f":"'[1]EXT RIN(M)'!S373","v":107.13517164208103},{"$f":"'[1]EXT RIN(M)'!T373","v":133.08309190197963},{"$f":"'[1]EXT RIN(M)'!U373","v":105.12361531985621},{"$f":"'[1]EXT RIN(M)'!V373","v":274.83710857233399},null,null,{"$f":"+'[1]MONE(M)CAPARD'!AE373","v":2.9822605854167454},{"$f":"'[1]MONE(M)CAPARD'!AF373","v":5.3453583828364444},{"$f":"'[1]MONE(M)CAPARD'!AG373","v":2.8079884976854927},{"$f":"'[1]MONE(M)CAPARD'!AH373","v":4.8655408970976257},{"$f":"'[1]MONE(M)CAPARD'!AI373","v":5.7526517457354265},{"$f":"'[1]MONE(M)CAPARD'!AJ373","v":4.987860775310498},{"$f":"'[1]MONE(M)CAPARD'!AK373","v":4.633630287038498},null,null,{"$f":"'[1]MONE(M)CAPARD'!AL373","v":3.1547401599999998},{"$f":"'[1]MONE(M)CAPARD'!AM373","v":4.24},{"$f":"'[1]MONE(M)CAPARD'!AN373","v":3.09},{"$f":"'[1]MONE(M)CAPARD'!AO373","v":3.67},{"$f":"'[1]MONE(M)CAPARD'!AP373","v":5.4317625865585297},{"$f":"'[1]MONE(M)CAPARD'!AQ373","v":1.0955999999999999},{"$f":"'[1]MONE(M)CAPARD'!AR373","v":2.15},null,null,{"$f":"'[1]MONE(M)CAPARD'!J373","v":9.3895149592809659},{"$f":"'[1]MONE(M)CAPARD'!K373","v":8.0638830763305922},{"$f":"'[1]MONE(M)CAPARD'!L373","v":10.542635713283751},{"$f":"'[1]MONE(M)CAPARD'!M373","v":13.246267956610966},{"$f":"'[1]MONE(M)CAPARD'!N373","v":12.563699708698509},{"$f":"'[1]MONE(M)CAPARD'!O373","v":9.1847394806172353},{"$f":"'[1]MONE(M)CAPARD'!P373","v":11.004860638339323},null,null,{"$f":"'[1]MONE(M)CAPARD'!Q373","v":7.7222214899999999},{"$f":"'[1]MONE(M)CAPARD'!R373","v":6.93},{"$f":"'[1]MONE(M)CAPARD'!S373","v":6.21},{"$f":"'[1]MONE(M)CAPARD'!T373","v":7.94},{"$f":"'[1]MONE(M)CAPARD'!U373","v":10.3068899661298},{"$f":"'[1]MONE(M)CAPARD'!V373","v":4.4138000000000002},{"$f":"'[1]MONE(M)CAPARD'!W373","v":8.3699999999999992},null,null,{"$f":"'[1]MONE(M)CAPARD'!AS373","v":1.25},{"$f":"'[1]MONE(M)CAPARD'!AT373","v":"n.a."},{"$f":"'[1]MONE(M)CAPARD'!AU373","v":2},{"$f":"'[1]MONE(M)CAPARD'!AV373","v":4.5},{"$f":"'[1]MONE(M)CAPARD'!AW373","v":6},{"$f":"'[1]MONE(M)CAPARD'!AX373","v":3.5},{"$f":"'[1]MONE(M)CAPARD'!AY373","v":"n.a."},null,null,{"$f":"+'Datos_Regional (M)'!CF366","v":-2.0086836719972911},{"$f":"+'Datos_Regional (M)'!CG366","v":6.0742415060164978},{"$f":"+'Datos_Regional (M)'!CH366","v":7.8943932078250789},{"$f":"+'Datos_Regional (M)'!CI366","v":8.7491045457915853},{"$f":"+'Datos_Regional (M)'!CJ366","v":-9.6927837049300294},{"$f":"+'Datos_Regional (M)'!CK366","v":11.804081891661045},{"$f":"+'Datos_Regional (M)'!CL366","v":1.8089029924701183},null,null,{"$f":"IF(EH178=\"\",\"\",+AVERAGE(EH167:EH178))","v":1030.1086606383299},{"$f":"IF(EI178=\"\",\"\",+AVERAGE(EI167:EI178))","v":471.0625},{"$f":"IF(EJ178=\"\",\"\",+AVERAGE(EJ167:EJ178))","v":942.41666666666663},{"$f":"IF(EK178=\"\",\"\",+AVERAGE(EK167:EK178))","v":356.69153088636807},468.11341600249995,{"$f":"IF(EM178=\"\",\"\",+AVERAGE(EM167:EM178))","v":910.38333333333333},{"$f":"IF(EN178=\"\",\"\",+AVERAGE(EN167:EN178))","v":928.50051166666663},4178.7761075271965,5107.2766191938645,null,null,{"$f":"IF(ES178=\"\",\"\",+AVERAGE(ES167:ES178))","v":1460.7205384483343},{"$f":"IF(ET178=\"\",\"\",+AVERAGE(ET167:ET178))","v":935.43416666666678},{"$f":"IF(EU178=\"\",\"\",+AVERAGE(EU167:EU178))","v":1632.4083333333335},{"$f":"IF(EV178=\"\",\"\",+AVERAGE(EV167:EV178))","v":828.18465261795689},{"$f":"IF(EW178=\"\",\"\",+AVERAGE(EW167:EW178))","v":535.68897410416662},{"$f":"IF(EX178=\"\",\"\",+AVERAGE(EX167:EX178))","v":1641.1083333333333},{"$f":"IF(EY178=\"\",\"\",+AVERAGE(EY167:EY178))","v":1604.7047293333335},7033.5449985037912,8638.2497278371229,null,null,-2854.768890976593,-3530.9731086432598,null,null,{"$f":"'[1]EXT Comercio(M)'!C373","v":904.78964842999994},{"$f":"'[1]EXT Comercio(M)'!D373","v":227.93000000000006},{"$f":"'[1]EXT Comercio(M)'!E373","v":827},{"$f":"'[1]EXT Comercio(M)'!F373","v":359.6716759668268},{"$f":"'[1]EXT Comercio(M)'!G373","v":366.92643736999997},{"$f":"'[1]EXT Comercio(M)'!H373","v":555.19999999999993},{"$f":"'[1]EXT Comercio(M)'!I373","v":399.74141200000003},{"$f":"'[1]EXT Comercio(M)'!K373","v":3241.5177617668287},{"$f":"'[1]EXT Comercio(M)'!L373","v":3641.2591737668281},null,null,{"$f":"'[1]EXT Comercio(M)'!AG373","v":1397.34127956},{"$f":"'[1]EXT Comercio(M)'!AH373","v":646.17999999999984},{"$f":"'[1]EXT Comercio(M)'!AI373","v":1362.8999999999999},{"$f":"'[1]EXT Comercio(M)'!AJ373","v":606.30132557692298},{"$f":"'[1]EXT Comercio(M)'!AK373","v":438.31163856000001},{"$f":"'[1]EXT Comercio(M)'!AL373","v":1200.3},{"$f":"'[1]EXT Comercio(M)'!AM373","v":1000.15379},{"$f":"'[1]EXT Comercio(M)'!AO373","v":5651.3342436969215},{"$f":"'[1]EXT Comercio(M)'!AP373","v":6651.4880336969218},null,null,{"$f":"'[1]EXT Comercio(M)'!$BS373","v":-2409.8164819300964},{"$f":"'[1]EXT Comercio(M)'!$BT373","v":-3010.2288599300955}]
[null,null,"Mayo ",{"$f":"'[1]REAL IPC(M)'!AD374","v":0.60875081100752826},{"$f":"'[1]REAL IPC(M)'!AE374","v":-0.94696974525974364},{"$f":"'[1]REAL IPC(M)'!AF374","v":1.8030216647662494},{"$f":"'[1]REAL IPC(M)'!AG374","v":2.2939933594928963},{"$f":"'[1]REAL IPC(M)'!AH374","v":2.9330826341760647},{"$f":"'[1]REAL IPC(M)'!AI374","v":0.98934550989343406},{"$f":"'[1]REAL IPC(M)'!AJ374","v":-2.4690584186173612},null,null,{"$f":"'[1]REAL IMAE(M)'!AG374","v":-8.2065883937935347},{"$f":"'[1]REAL IMAE(M)'!AH374","v":-19.635243747727596},{"$f":"'[1]REAL IMAE(M)'!AI374","v":-7.2873303985011946},{"$f":"'[1]REAL IMAE(M)'!AJ374","v":-9.6490826506402385},{"$f":"'[1]REAL IMAE(M)'!AK374","v":2.0625006613079715},{"$f":"'[1]REAL IMAE(M)'!AL374","v":-10.384115944868162},{"$f":"'[1]REAL IMAE(M)'!AM374","v":-25.726834702724727},null,null,{"$f":"'[1]EXT ITCER(M)'!C374","v":78.924549903178459},{"$f":"'[1]EXT ITCER(M)'!D374","v":96.769395075004837},{"$f":"'[1]EXT ITCER(M)'!E374","v":53.071304309051577},{"$f":"'[1]EXT ITCER(M)'!F374","v":78.155230445314288},{"$f":"'[1]EXT ITCER(M)'!G374","v":107.1305869075203},{"$f":"'[1]EXT ITCER(M)'!H374","v":120.9551317112515},{"$f":"'[1]EXT ITCER(M)'!I374","v":94.803052140535598},null,null,{"$f":"'[1]EXT TC(M)'!J374","v":-3.7735818044049187},{"$f":"'[1]EXT TC(M)'!K374","v":0},{"$f":"'[1]EXT TC(M)'!L374","v":0.35609836416906165},{"$f":"'[1]EXT TC(M)'!M374","v":1.5246455357014324},{"$f":"'[1]EXT TC(M)'!N374","v":3.692823276242243},{"$f":"'[1]EXT TC(M)'!O374","v":9.5990507985927049},{"$f":"'[1]EXT TC(M)'!P374","v":0},null,null,{"$f":"'[1]EXT RIN(M)'!C374","v":8552.7344102400002},{"$f":"'[1]EXT RIN(M)'!D374","v":3441.4},{"$f":"'[1]EXT RIN(M)'!E374","v":16708.099999999999},{"$f":"'[1]EXT RIN(M)'!F374","v":6353.3},{"$f":"'[1]EXT RIN(M)'!G374","v":2562.5},{"$f":"'[1]EXT RIN(M)'!H374","v":8008.8939985043398},{"$f":"'[1]EXT RIN(M)'!I374","v":6104.1939384200004},null,null,{"$f":"'[1]EXT RIN(M)'!P374","v":70.082257135543529},{"$f":"'[1]EXT RIN(M)'!Q374","v":115.87989624887072},{"$f":"'[1]EXT RIN(M)'!R374","v":125.27648575294803},{"$f":"'[1]EXT RIN(M)'!S374","v":106.25139824407775},{"$f":"'[1]EXT RIN(M)'!T374","v":132.78755110386163},{"$f":"'[1]EXT RIN(M)'!U374","v":102.32182980941525},{"$f":"'[1]EXT RIN(M)'!V374","v":285.61823583953856},null,null,{"$f":"+'[1]MONE(M)CAPARD'!AE374","v":3.2216374449188061},{"$f":"'[1]MONE(M)CAPARD'!AF374","v":5.3879924031948923},{"$f":"'[1]MONE(M)CAPARD'!AG374","v":2.8751389569478469},{"$f":"'[1]MONE(M)CAPARD'!AH374","v":5.8615432280908921},{"$f":"'[1]MONE(M)CAPARD'!AI374","v":5.9779292130649972},{"$f":"'[1]MONE(M)CAPARD'!AJ374","v":3.6363781461944451},{"$f":"'[1]MONE(M)CAPARD'!AK374","v":4.7359928487546545},null,null,{"$f":"'[1]MONE(M)CAPARD'!AL374","v":2.92022001},{"$f":"'[1]MONE(M)CAPARD'!AM374","v":4.3899999999999997},{"$f":"'[1]MONE(M)CAPARD'!AN374","v":3.07},{"$f":"'[1]MONE(M)CAPARD'!AO374","v":3.64},{"$f":"'[1]MONE(M)CAPARD'!AP374","v":5.5605955600218904},{"$f":"'[1]MONE(M)CAPARD'!AQ374","v":1.7024999999999999},{"$f":"'[1]MONE(M)CAPARD'!AR374","v":2.15},null,null,{"$f":"'[1]MONE(M)CAPARD'!J374","v":10.653359496657023},{"$f":"'[1]MONE(M)CAPARD'!K374","v":8.325812672313555},{"$f":"'[1]MONE(M)CAPARD'!L374","v":10.664691634581729},{"$f":"'[1]MONE(M)CAPARD'!M374","v":14.405544408380067},{"$f":"'[1]MONE(M)CAPARD'!N374","v":13.227734046005395},{"$f":"'[1]MONE(M)CAPARD'!O374","v":9.5950265259985166},{"$f":"'[1]MONE(M)CAPARD'!P374","v":11.082696673852954},null,null,{"$f":"'[1]MONE(M)CAPARD'!Q374","v":7.6261134999999998},{"$f":"'[1]MONE(M)CAPARD'!R374","v":7.3},{"$f":"'[1]MONE(M)CAPARD'!S374","v":6.22},{"$f":"'[1]MONE(M)CAPARD'!T374","v":7.96},{"$f":"'[1]MONE(M)CAPARD'!U374","v":10.6040722984696},{"$f":"'[1]MONE(M)CAPARD'!V374","v":4.8818999999999999},{"$f":"'[1]MONE(M)CAPARD'!W374","v":8.34},null,null,{"$f":"'[1]MONE(M)CAPARD'!AS374","v":1.25},{"$f":"'[1]MONE(M)CAPARD'!AT374","v":"n.a."},{"$f":"'[1]MONE(M)CAPARD'!AU374","v":2},{"$f":"'[1]MONE(M)CAPARD'!AV374","v":4.5},{"$f":"'[1]MONE(M)CAPARD'!AW374","v":5.5},{"$f":"'[1]MONE(M)CAPARD'!AX374","v":3.5},{"$f":"'[1]MONE(M)CAPARD'!AY374","v":"n.a."},null,null,{"$f":"+'Datos_Regional (M)'!CF367","v":-1.014614995874108},{"$f":"+'Datos_Regional (M)'!CG367","v":6.1864760551375575},{"$f":"+'Datos_Regional (M)'!CH367","v":7.7042497649167707},{"$f":"+'Datos_Regional (M)'!CI367","v":8.3776354143717313},{"$f":"+'Datos_Regional (M)'!CJ367","v":-7.9681401418362992},{"$f":"+'Datos_Regional (M)'!CK367","v":13.225688766196498},{"$f":"+'Datos_Regional (M)'!CL367","v":2.1061950124160678},null,null,1016.8784439899965,443.88083333333333,936.91666666666686,352.25869990800396,457.65137629083341,882.7166666666667,883.48691658333325,4090.3026868555003,4973.7896034388332,null,null,1440.5468652258339,895.81916666666677,1592.325,801.18262123085287,524.68352430916661,1573.9083333333331,1524.0939991666664,6828.4655107658546,8352.5595099325201,null,null,-2738.162823910352,-3378.769906493686,null,null,{"$f":"'[1]EXT Comercio(M)'!C374","v":950.05842558999996},{"$f":"'[1]EXT Comercio(M)'!D374","v":220.65000000000009},{"$f":"'[1]EXT Comercio(M)'!E374","v":882.2},{"$f":"'[1]EXT Comercio(M)'!F374","v":361.45916657858874},{"$f":"'[1]EXT Comercio(M)'!G374","v":348.80841493999998},{"$f":"'[1]EXT Comercio(M)'!H374","v":684.2},{"$f":"'[1]EXT Comercio(M)'!I374","v":458.46785899999998},{"$f":"'[1]EXT Comercio(M)'!K374","v":3447.376007108589},{"$f":"'[1]EXT Comercio(M)'!L374","v":3905.8438661085893},null,null,{"$f":"'[1]EXT Comercio(M)'!AG374","v":1254.4926377500001},{"$f":"'[1]EXT Comercio(M)'!AH374","v":600.25000000000045},{"$f":"'[1]EXT Comercio(M)'!AI374","v":1294.2},{"$f":"'[1]EXT Comercio(M)'!AJ374","v":583.34745172589066},{"$f":"'[1]EXT Comercio(M)'!AK374","v":396.96159735000003},{"$f":"'[1]EXT Comercio(M)'!AL374","v":1108.5},{"$f":"'[1]EXT Comercio(M)'!AM374","v":886.04323799999997},{"$f":"'[1]EXT Comercio(M)'!AO374","v":5237.7516868258936},{"$f":"'[1]EXT Comercio(M)'!AP374","v":6123.7949248258919},null,null,{"$f":"'[1]EXT Comercio(M)'!$BS374","v":-1790.375679717301},{"$f":"'[1]EXT Comercio(M)'!$BT374","v":-2217.9510587173008}]
[null,null,"Junio",{"$f":"'[1]REAL IPC(M)'!AD375","v":0.31161483621358926},{"$f":"'[1]REAL IPC(M)'!AE375","v":-0.2306266023124347},{"$f":"'[1]REAL IPC(M)'!AF375","v":2.3890302516256887},{"$f":"'[1]REAL IPC(M)'!AG375","v":2.6537997587454627},{"$f":"'[1]REAL IPC(M)'!AH375","v":3.6214635934798296},{"$f":"'[1]REAL IPC(M)'!AI375","v":2.8972247636474506},{"$f":"'[1]REAL IPC(M)'!AJ375","v":-1.6363575726679735},null,null,{"$f":"'[1]REAL IMAE(M)'!AG375","v":-8.2587667664754516},{"$f":"'[1]REAL IMAE(M)'!AH375","v":-16.706422587551753},{"$f":"'[1]REAL IMAE(M)'!AI375","v":-6.3723589822931164},{"$f":"'[1]REAL IMAE(M)'!AJ375","v":-9.2486281226157132},{"$f":"'[1]REAL IMAE(M)'!AK375","v":1.7078125222138136},{"$f":"'[1]REAL IMAE(M)'!AL375","v":-10.130505767716961},{"$f":"'[1]REAL IMAE(M)'!AM375","v":-26.225956726035378},null,null,{"$f":"'[1]EXT ITCER(M)'!C375","v":80.366427745945245},{"$f":"'[1]EXT ITCER(M)'!D375","v":96.687650462748906},{"$f":"'[1]EXT ITCER(M)'!E375","v":52.607474827271389},{"$f":"'[1]EXT ITCER(M)'!F375","v":78.024908576599515},{"$f":"'[1]EXT ITCER(M)'!G375","v":107.3805300771989},{"$f":"'[1]EXT ITCER(M)'!H375","v":125.0237276222696},{"$f":"'[1]EXT ITCER(M)'!I375","v":94.781911764783317},null,null,{"$f":"'[1]EXT TC(M)'!J375","v":-1.561273465840711},{"$f":"'[1]EXT TC(M)'!K375","v":0},{"$f":"'[1]EXT TC(M)'!L375","v":-3.1364566889171747E-2},{"$f":"'[1]EXT TC(M)'!M375","v":1.102406260429049},{"$f":"'[1]EXT TC(M)'!N375","v":3.6743501825004321},{"$f":"'[1]EXT TC(M)'!O375","v":14.311379860760882},{"$f":"'[1]EXT TC(M)'!P375","v":0},null,null,{"$f":"'[1]EXT RIN(M)'!C375","v":8565.13666715},{"$f":"'[1]EXT RIN(M)'!D375","v":3103.77},{"$f":"'[1]EXT RIN(M)'!E375","v":16991.8},{"$f":"'[1]EXT RIN(M)'!F375","v":7389},{"$f":"'[1]EXT RIN(M)'!G375","v":2574.6999999999998},{"$f":"'[1]EXT RIN(M)'!H375","v":7142.4894966384772},{"$f":"'[1]EXT RIN(M)'!I375","v":5909.7032492800008},null,null,{"$f":"'[1]EXT RIN(M)'!P375","v":67.931640810969469},{"$f":"'[1]EXT RIN(M)'!Q375","v":104.42767107690941},{"$f":"'[1]EXT RIN(M)'!R375","v":125.99771610897963},{"$f":"'[1]EXT RIN(M)'!S375","v":117.82251518300515},{"$f":"'[1]EXT RIN(M)'!T375","v":134.08598431692312},{"$f":"'[1]EXT RIN(M)'!U375","v":87.429804264629524},{"$f":"'[1]EXT RIN(M)'!V375","v":277.10863568251989},null,null,{"$f":"+'[1]MONE(M)CAPARD'!AE375","v":3.6270826361703774},{"$f":"'[1]MONE(M)CAPARD'!AF375","v":4.5711689339106742},{"$f":"'[1]MONE(M)CAPARD'!AG375","v":2.2375148419163153},{"$f":"'[1]MONE(M)CAPARD'!AH375","v":5.4417861339600613},{"$f":"'[1]MONE(M)CAPARD'!AI375","v":5.8480415299275483},{"$f":"'[1]MONE(M)CAPARD'!AJ375","v":2.3297763781861325},{"$f":"'[1]MONE(M)CAPARD'!AK375","v":3.7985148581990318},null,null,{"$f":"'[1]MONE(M)CAPARD'!AL375","v":2.9190898199999999},{"$f":"'[1]MONE(M)CAPARD'!AM375","v":4.33},{"$f":"'[1]MONE(M)CAPARD'!AN375","v":3.05},{"$f":"'[1]MONE(M)CAPARD'!AO375","v":3.65},{"$f":"'[1]MONE(M)CAPARD'!AP375","v":5.7943498338608004},{"$f":"'[1]MONE(M)CAPARD'!AQ375","v":1.5757000000000001},{"$f":"'[1]MONE(M)CAPARD'!AR375","v":2.1},null,null,{"$f":"'[1]MONE(M)CAPARD'!J375","v":11.830880435095962},{"$f":"'[1]MONE(M)CAPARD'!K375","v":7.2673871303280011},{"$f":"'[1]MONE(M)CAPARD'!L375","v":10.021551843158893},{"$f":"'[1]MONE(M)CAPARD'!M375","v":13.858425381903658},{"$f":"'[1]MONE(M)CAPARD'!N375","v":11.655116558068565},{"$f":"'[1]MONE(M)CAPARD'!O375","v":7.9088384113811534},{"$f":"'[1]MONE(M)CAPARD'!P375","v":10.111823156626222},null,null,{"$f":"'[1]MONE(M)CAPARD'!Q375","v":7.2081683200000004},{"$f":"'[1]MONE(M)CAPARD'!R375","v":7.02},{"$f":"'[1]MONE(M)CAPARD'!S375","v":6.21},{"$f":"'[1]MONE(M)CAPARD'!T375","v":7.97},{"$f":"'[1]MONE(M)CAPARD'!U375","v":10.058727307113299},{"$f":"'[1]MONE(M)CAPARD'!V375","v":4.1985000000000001},{"$f":"'[1]MONE(M)CAPARD'!W375","v":8.31},null,null,{"$f":"'[1]MONE(M)CAPARD'!AS375","v":0.75},{"$f":"'[1]MONE(M)CAPARD'!AT375","v":"n.a."},{"$f":"'[1]MONE(M)CAPARD'!AU375","v":1.75},{"$f":"'[1]MONE(M)CAPARD'!AV375","v":4.5},{"$f":"'[1]MONE(M)CAPARD'!AW375","v":4.5},{"$f":"'[1]MONE(M)CAPARD'!AX375","v":3.5},{"$f":"'[1]MONE(M)CAPARD'!AY375","v":"n.a."},null,null,{"$f":"+'Datos_Regional (M)'!CF368","v":-0.14256330020202546},{"$f":"+'Datos_Regional (M)'!CG368","v":5.580481628732481},{"$f":"+'Datos_Regional (M)'!CH368","v":7.0593657906853791},{"$f":"+'Datos_Regional (M)'!CI368","v":7.9701255998888998},{"$f":"+'Datos_Regional (M)'!CJ368","v":-7.6598862791007694},{"$f":"+'Datos_Regional (M)'!CK368","v":13.173957949804716},{"$f":"+'Datos_Regional (M)'!CL368","v":1.2474500594518823},null,null,1014.9446313091639,424.17333333333335,921.16666666666686,353.13511316343488,450.02927815499999,871.90833333333342,873.30929800000001,4035.3573559609308,4908.6666539609323,null,null,1458.4001128341667,882.61000000000013,1573.2416666666666,792.38770860716306,520.25837544916669,1540.9666666666662,1468.6120890000002,6767.8645302238292,8236.4766192238294,null,null,-2732.507174262897,-3327.8099652628975,null,null,{"$f":"'[1]EXT Comercio(M)'!C375","v":995.84039347000009},{"$f":"'[1]EXT Comercio(M)'!D375","v":293.65999999999985},{"$f":"'[1]EXT Comercio(M)'!E375","v":763.3},{"$f":"'[1]EXT Comercio(M)'!F375","v":377.43244203337372},{"$f":"'[1]EXT Comercio(M)'!G375","v":393.74587250000002},{"$f":"'[1]EXT Comercio(M)'!H375","v":814},{"$f":"'[1]EXT Comercio(M)'!I375","v":789.775577},{"$f":"'[1]EXT Comercio(M)'!K375","v":3637.9787080033711},{"$f":"'[1]EXT Comercio(M)'!L375","v":4427.7542850033715},null,null,{"$f":"'[1]EXT Comercio(M)'!AG375","v":1517.4554149099999},{"$f":"'[1]EXT Comercio(M)'!AH375","v":770.01000000000022},{"$f":"'[1]EXT Comercio(M)'!AI375","v":1296.3},{"$f":"'[1]EXT Comercio(M)'!AJ375","v":686.24049472116644},{"$f":"'[1]EXT Comercio(M)'!AK375","v":481.03032064000001},{"$f":"'[1]EXT Comercio(M)'!AL375","v":1225.3},{"$f":"'[1]EXT Comercio(M)'!AM375","v":1206.2860780000001},{"$f":"'[1]EXT Comercio(M)'!AO375","v":5976.3362302711612},{"$f":"'[1]EXT Comercio(M)'!AP375","v":7182.6223082711658},null,null,{"$f":"'[1]EXT Comercio(M)'!$BS375","v":-2338.3575222677937},{"$f":"'[1]EXT Comercio(M)'!$BT375","v":-2754.8680232677925}]
[null,null,"Julio",{"$f":"'[1]REAL IPC(M)'!AD376","v":-0.16512011017254632},{"$f":"'[1]REAL IPC(M)'!AE376","v":-6.1945569849340534E-2},{"$f":"'[1]REAL IPC(M)'!AF376","v":2.8783592644978735},{"$f":"'[1]REAL IPC(M)'!AG376","v":3.0977443609022588},{"$f":"'[1]REAL IPC(M)'!AH376","v":3.4448288508614771},{"$f":"'[1]REAL IPC(M)'!AI376","v":4.3484859983304061},{"$f":"'[1]REAL IPC(M)'!AJ376","v":-2.24999310693007},null,null,{"$f":"'[1]REAL IMAE(M)'!AG376","v":-8.1185145567916326},{"$f":"'[1]REAL IMAE(M)'!AH376","v":-12.563684635792752},{"$f":"'[1]REAL IMAE(M)'!AI376","v":-4.134307717366303},{"$f":"'[1]REAL IMAE(M)'!AJ376","v":-8.7165244072435399},{"$f":"'[1]REAL IMAE(M)'!AK376","v":1.4079518884465878},{"$f":"'[1]REAL IMAE(M)'!AL376","v":-9.0976879121838472},{"$f":"'[1]REAL IMAE(M)'!AM376","v":-26.333047560850382},null,null,{"$f":"'[1]EXT ITCER(M)'!C376","v":81.255428482010075},{"$f":"'[1]EXT ITCER(M)'!D376","v":97.272633902951739},{"$f":"'[1]EXT ITCER(M)'!E376","v":52.643846205259898},{"$f":"'[1]EXT ITCER(M)'!F376","v":77.57505826262387},{"$f":"'[1]EXT ITCER(M)'!G376","v":108.2694032967481},{"$f":"'[1]EXT ITCER(M)'!H376","v":124.22601979759391},{"$f":"'[1]EXT ITCER(M)'!I376","v":95.657499296749506},null,null,{"$f":"'[1]EXT TC(M)'!J376","v":0.89105269728167324},{"$f":"'[1]EXT TC(M)'!K376","v":0},{"$f":"'[1]EXT TC(M)'!L376","v":0.31874133748567923},{"$f":"'[1]EXT TC(M)'!M376","v":0.73304121240534836},{"$f":"'[1]EXT TC(M)'!N376","v":3.942591592889523},{"$f":"'[1]EXT TC(M)'!O376","v":14.671704760685705},{"$f":"'[1]EXT TC(M)'!P376","v":0},null,null,{"$f":"'[1]EXT RIN(M)'!C376","v":8340.1769999999997},{"$f":"'[1]EXT RIN(M)'!D376","v":3578.9},{"$f":"'[1]EXT RIN(M)'!E376","v":17398.099999999999},{"$f":"'[1]EXT RIN(M)'!F376","v":7513.7},{"$f":"'[1]EXT RIN(M)'!G376","v":2610.9},{"$f":"'[1]EXT RIN(M)'!H376","v":6689.1783358598996},{"$f":"'[1]EXT RIN(M)'!I376","v":6572.3126470500001},null,null,{"$f":"'[1]EXT RIN(M)'!P376","v":67.325528084427617},{"$f":"'[1]EXT RIN(M)'!Q376","v":114.4577003177657},{"$f":"'[1]EXT RIN(M)'!R376","v":127.49987497643242},{"$f":"'[1]EXT RIN(M)'!S376","v":112.66959734409849},{"$f":"'[1]EXT RIN(M)'!T376","v":134.97307699907367},{"$f":"'[1]EXT RIN(M)'!U376","v":80.647935690621466},{"$f":"'[1]EXT RIN(M)'!V376","v":315.41021606214025},null,null,{"$f":"+'[1]MONE(M)CAPARD'!AE376","v":3.8715127563010947},{"$f":"'[1]MONE(M)CAPARD'!AF376","v":4.3246244831292593},{"$f":"'[1]MONE(M)CAPARD'!AG376","v":1.6734721935794368},{"$f":"'[1]MONE(M)CAPARD'!AH376","v":4.9392502917152816},{"$f":"'[1]MONE(M)CAPARD'!AI376","v":5.1846698887233318},{"$f":"'[1]MONE(M)CAPARD'!AJ376","v":1.5983116436363816},{"$f":"'[1]MONE(M)CAPARD'!AK376","v":4.3682790852394247},null,null,{"$f":"'[1]MONE(M)CAPARD'!AL376","v":2.79259426},{"$f":"'[1]MONE(M)CAPARD'!AM376","v":4.26},{"$f":"'[1]MONE(M)CAPARD'!AN376","v":2.99},{"$f":"'[1]MONE(M)CAPARD'!AO376","v":3.64},{"$f":"'[1]MONE(M)CAPARD'!AP376","v":4.9913844318855096},{"$f":"'[1]MONE(M)CAPARD'!AQ376","v":1.1791},{"$f":"'[1]MONE(M)CAPARD'!AR376","v":2.02},null,null,{"$f":"'[1]MONE(M)CAPARD'!J376","v":10.187883294292332},{"$f":"'[1]MONE(M)CAPARD'!K376","v":7.1363662325786477},{"$f":"'[1]MONE(M)CAPARD'!L376","v":9.3135629339382753},{"$f":"'[1]MONE(M)CAPARD'!M376","v":13.455440490081676},{"$f":"'[1]MONE(M)CAPARD'!N376","v":10.556829137891141},{"$f":"'[1]MONE(M)CAPARD'!O376","v":6.5942633818182008},{"$f":"'[1]MONE(M)CAPARD'!P376","v":10.792831061864632},null,null,{"$f":"'[1]MONE(M)CAPARD'!Q376","v":7.1565871799999998},{"$f":"'[1]MONE(M)CAPARD'!R376","v":7.07},{"$f":"'[1]MONE(M)CAPARD'!S376","v":6.18},{"$f":"'[1]MONE(M)CAPARD'!T376","v":7.99},{"$f":"'[1]MONE(M)CAPARD'!U376","v":9.6822137211558505},{"$f":"'[1]MONE(M)CAPARD'!V376","v":4},{"$f":"'[1]MONE(M)CAPARD'!W376","v":8.3000000000000007},null,null,{"$f":"'[1]MONE(M)CAPARD'!AS376","v":0.75},{"$f":"'[1]MONE(M)CAPARD'!AT376","v":"n.a."},{"$f":"'[1]MONE(M)CAPARD'!AU376","v":1.75},{"$f":"'[1]MONE(M)CAPARD'!AV376","v":4.5},{"$f":"'[1]MONE(M)CAPARD'!AW376","v":4.5},{"$f":"'[1]MONE(M)CAPARD'!AX376","v":3.5},{"$f":"'[1]MONE(M)CAPARD'!AY376","v":"n.a."},null,null,{"$f":"+'Datos_Regional (M)'!CF369","v":1.4508241928370413},{"$f":"+'Datos_Regional (M)'!CG369","v":5.290682378834588},{"$f":"+'Datos_Regional (M)'!CH369","v":6.4960332717034053},{"$f":"+'Datos_Regional (M)'!CI369","v":6.8629365371313478},{"$f":"+'Datos_Regional (M)'!CJ369","v":-5.5598061915138057},{"$f":"+'Datos_Regional (M)'!CK369","v":9.9251414146743997},{"$f":"+'Datos_Regional (M)'!CL369","v":1.8910484289788698},null,null,1018.9056476391643,417.6733333333334,920.45000000000016,350.94122569514258,447.96823370416672,863.86666666666667,847.32050724999999,4019.8051070384718,4867.1256142884731,null,null,1459.3157613433334,867.89083333333338,1551.3749999999998,775.70478660232891,519.30562296416667,1497.1083333333333,1397.873921666667,6670.7003375764953,8068.5742592431607,null,null,-2650.8952305380221,-3201.4486449546889,null,null,{"$f":"'[1]EXT Comercio(M)'!C376","v":1036.3386877200001},{"$f":"'[1]EXT Comercio(M)'!D376","v":465.13000000000011},{"$f":"'[1]EXT Comercio(M)'!E376","v":909.5},{"$f":"'[1]EXT Comercio(M)'!F376","v":331.45236717163226},{"$f":"'[1]EXT Comercio(M)'!G376","v":479.64190194000003},{"$f":"'[1]EXT Comercio(M)'!H376","v":889.9},{"$f":"'[1]EXT Comercio(M)'!I376","v":740.70451099999991},{"$f":"'[1]EXT Comercio(M)'!K376","v":4111.9629568316304},{"$f":"'[1]EXT Comercio(M)'!L376","v":4852.6674678316303},null,null,{"$f":"'[1]EXT Comercio(M)'!AG376","v":1440.6385682700002},{"$f":"'[1]EXT Comercio(M)'!AH376","v":860.40999999999985},{"$f":"'[1]EXT Comercio(M)'!AI376","v":1441.6000000000001},{"$f":"'[1]EXT Comercio(M)'!AJ376","v":687.2269014605854},{"$f":"'[1]EXT Comercio(M)'!AK376","v":536.02646673000004},{"$f":"'[1]EXT Comercio(M)'!AL376","v":1291.5},{"$f":"'[1]EXT Comercio(M)'!AM376","v":1096.4599920000001},{"$f":"'[1]EXT Comercio(M)'!AO376","v":6257.401936460592},{"$f":"'[1]EXT Comercio(M)'!AP376","v":7353.8619284605884},null,null,{"$f":"'[1]EXT Comercio(M)'!$BS376","v":-2145.4389796289543},{"$f":"'[1]EXT Comercio(M)'!$BT376","v":-2501.1944606289544}]
[null,null,"Agosto",{"$f":"'[1]REAL IPC(M)'!AD377","v":-7.0774520073274394E-2},{"$f":"'[1]REAL IPC(M)'!AE377","v":-0.30234406357643451},{"$f":"'[1]REAL IPC(M)'!AF377","v":4.1874732486802717},{"$f":"'[1]REAL IPC(M)'!AG377","v":3.2161106101592991},{"$f":"'[1]REAL IPC(M)'!AH377","v":2.8702854223144829},{"$f":"'[1]REAL IPC(M)'!AI377","v":4.8026017243987225},{"$f":"'[1]REAL IPC(M)'!AJ377","v":-1.9637061867661447},null,null,{"$f":"'[1]REAL IMAE(M)'!AG377","v":-7.5800921080529395},{"$f":"'[1]REAL IMAE(M)'!AH377","v":-8.6640355217441627},{"$f":"'[1]REAL IMAE(M)'!AI377","v":-1.6128719868807979},{"$f":"'[1]REAL IMAE(M)'!AJ377","v":-8.1747721403756906},{"$f":"'[1]REAL IMAE(M)'!AK377","v":1.2473107431768597},{"$f":"'[1]REAL IMAE(M)'!AL377","v":-7.7964936175680455},{"$f":"'[1]REAL IMAE(M)'!AM377","v":-25.933837934440895},null,null,{"$f":"'[1]EXT ITCER(M)'!C377","v":83.05668531734851},{"$f":"'[1]EXT ITCER(M)'!D377","v":98.250786419889778},{"$f":"'[1]EXT ITCER(M)'!E377","v":52.709948229128528},{"$f":"'[1]EXT ITCER(M)'!F377","v":77.311976601850063},{"$f":"'[1]EXT ITCER(M)'!G377","v":109.6874767826768},{"$f":"'[1]EXT ITCER(M)'!H377","v":123.9487405268823},{"$f":"'[1]EXT ITCER(M)'!I377","v":96.025204354685656},null,null,{"$f":"'[1]EXT TC(M)'!J377","v":4.2593851512293082},{"$f":"'[1]EXT TC(M)'!K377","v":0},{"$f":"'[1]EXT TC(M)'!L377","v":0.47132459590482684},{"$f":"'[1]EXT TC(M)'!M377","v":-2.5745799313873184E-3},{"$f":"'[1]EXT TC(M)'!N377","v":4.014248413637544},{"$f":"'[1]EXT TC(M)'!O377","v":14.294667531027885},{"$f":"'[1]EXT TC(M)'!P377","v":0},null,null,{"$f":"'[1]EXT RIN(M)'!C377","v":7934.06931136},{"$f":"'[1]EXT RIN(M)'!D377","v":3801.75},{"$f":"'[1]EXT RIN(M)'!E377","v":17623},{"$f":"'[1]EXT RIN(M)'!F377","v":7510.3814209851453},{"$f":"'[1]EXT RIN(M)'!G377","v":2686.2},{"$f":"'[1]EXT RIN(M)'!H377","v":7018.555595239256},{"$f":"'[1]EXT RIN(M)'!I377","v":6781.2506160100002},null,null,{"$f":"'[1]EXT RIN(M)'!P377","v":65.734566994870178},{"$f":"'[1]EXT RIN(M)'!Q377","v":120.20549471987465},{"$f":"'[1]EXT RIN(M)'!R377","v":122.74499794825462},{"$f":"'[1]EXT RIN(M)'!S377","v":109.70975021424178},{"$f":"'[1]EXT RIN(M)'!T377","v":129.88282961968528},{"$f":"'[1]EXT RIN(M)'!U377","v":81.966550087864817},{"$f":"'[1]EXT RIN(M)'!V377","v":317.95522050201856},null,null,{"$f":"+'[1]MONE(M)CAPARD'!AE377","v":3.7234097454509785},{"$f":"'[1]MONE(M)CAPARD'!AF377","v":4.4959372629932153},{"$f":"'[1]MONE(M)CAPARD'!AG377","v":0.35755426223895553},{"$f":"'[1]MONE(M)CAPARD'!AH377","v":4.7123354688410055},{"$f":"'[1]MONE(M)CAPARD'!AI377","v":6.2532904128650966},{"$f":"'[1]MONE(M)CAPARD'!AJ377","v":0.30237634408602848},{"$f":"'[1]MONE(M)CAPARD'!AK377","v":3.9920992874557606},null,null,{"$f":"'[1]MONE(M)CAPARD'!AL377","v":2.8151272000000001},{"$f":"'[1]MONE(M)CAPARD'!AM377","v":4.18},{"$f":"'[1]MONE(M)CAPARD'!AN377","v":2.8},{"$f":"'[1]MONE(M)CAPARD'!AO377","v":3.61},{"$f":"'[1]MONE(M)CAPARD'!AP377","v":4.7185675631812698},{"$f":"'[1]MONE(M)CAPARD'!AQ377","v":1.3156000000000001},{"$f":"'[1]MONE(M)CAPARD'!AR377","v":1.95},null,null,{"$f":"'[1]MONE(M)CAPARD'!J377","v":10.223637290299518},{"$f":"'[1]MONE(M)CAPARD'!K377","v":7.1539736783026031},{"$f":"'[1]MONE(M)CAPARD'!L377","v":7.959235878123927},{"$f":"'[1]MONE(M)CAPARD'!M377","v":13.267201514269079},{"$f":"'[1]MONE(M)CAPARD'!N377","v":12.706751743613344},{"$f":"'[1]MONE(M)CAPARD'!O377","v":5.178304914483661},{"$f":"'[1]MONE(M)CAPARD'!P377","v":10.448891719918683},null,null,{"$f":"'[1]MONE(M)CAPARD'!Q377","v":6.8480416100000001},{"$f":"'[1]MONE(M)CAPARD'!R377","v":6.83},{"$f":"'[1]MONE(M)CAPARD'!S377","v":6.16},{"$f":"'[1]MONE(M)CAPARD'!T377","v":7.98},{"$f":"'[1]MONE(M)CAPARD'!U377","v":11.597661468183},{"$f":"'[1]MONE(M)CAPARD'!V377","v":3.911},{"$f":"'[1]MONE(M)CAPARD'!W377","v":8.2799999999999994},null,null,{"$f":"'[1]MONE(M)CAPARD'!AS377","v":0.75},{"$f":"'[1]MONE(M)CAPARD'!AT377","v":"n.a."},{"$f":"'[1]MONE(M)CAPARD'!AU377","v":1.75},{"$f":"'[1]MONE(M)CAPARD'!AV377","v":3.75},{"$f":"'[1]MONE(M)CAPARD'!AW377","v":4.25},{"$f":"'[1]MONE(M)CAPARD'!AX377","v":3.5},{"$f":"'[1]MONE(M)CAPARD'!AY377","v":"n.a."},null,null,{"$f":"+'Datos_Regional (M)'!CF370","v":1.9689675511775473},{"$f":"+'Datos_Regional (M)'!CG370","v":4.2987084406272968},{"$f":"+'Datos_Regional (M)'!CH370","v":6.2586133975221392},{"$f":"+'Datos_Regional (M)'!CI370","v":5.8038577075112174},{"$f":"+'Datos_Regional (M)'!CJ370","v":-5.4176795058657357},{"$f":"+'Datos_Regional (M)'!CK370","v":8.6086600523355159},{"$f":"+'Datos_Regional (M)'!CL370","v":-1.9347165705324465},null,null,1019.9580325974981,413.07666666666665,915.4666666666667,349.4488203056485,445.71692332416666,861.61666666666667,849.23184508333327,4005.283776227312,4854.5156213106466,null,null,1470.6054178083334,851.70916666666687,1526.925,763.69182801102852,513.6072241508333,1460.7249999999997,1362.2247015833336,6587.2636366368633,7949.4883382201951,null,null,-2581.9798604095481,-3094.9727169095481,null,null,{"$f":"'[1]EXT Comercio(M)'!C377","v":1034.6087420399999},{"$f":"'[1]EXT Comercio(M)'!D377","v":431.48},{"$f":"'[1]EXT Comercio(M)'!E377","v":898.3},{"$f":"'[1]EXT Comercio(M)'!F377","v":309.46765891901327},{"$f":"'[1]EXT Comercio(M)'!G377","v":463.08431222000002},{"$f":"'[1]EXT Comercio(M)'!H377","v":893.09999999999991},{"$f":"'[1]EXT Comercio(M)'!I377","v":947.83105399999999},{"$f":"'[1]EXT Comercio(M)'!K377","v":4030.0407131790125},{"$f":"'[1]EXT Comercio(M)'!L377","v":4977.8717671790146},null,null,{"$f":"'[1]EXT Comercio(M)'!AG377","v":1504.1867604600002},{"$f":"'[1]EXT Comercio(M)'!AH377","v":788.74999999999909},{"$f":"'[1]EXT Comercio(M)'!AI377","v":1443.8},{"$f":"'[1]EXT Comercio(M)'!AJ377","v":738.86907796867922},{"$f":"'[1]EXT Comercio(M)'!AK377","v":496.62569086999997},{"$f":"'[1]EXT Comercio(M)'!AL377","v":1341.1000000000001},{"$f":"'[1]EXT Comercio(M)'!AM377","v":1329.4413590000001},{"$f":"'[1]EXT Comercio(M)'!AO377","v":6313.3315292986736},{"$f":"'[1]EXT Comercio(M)'!AP377","v":7642.7728882986776},null,null,{"$f":"'[1]EXT Comercio(M)'!$BS377","v":-2283.2908161196647},{"$f":"'[1]EXT Comercio(M)'!$BT377","v":-2664.901121119663}]
[null,null,"Setiembre",{"$f":"'[1]REAL IPC(M)'!AD378","v":0.29896291812436576},{"$f":"'[1]REAL IPC(M)'!AE378","v":-0.38986000115775277},{"$f":"'[1]REAL IPC(M)'!AF378","v":4.9655568312284633},{"$f":"'[1]REAL IPC(M)'!AG378","v":3.39135654261705},{"$f":"'[1]REAL IPC(M)'!AH378","v":2.8060939220446968},{"$f":"'[1]REAL IPC(M)'!AI378","v":5.0331525015069349},{"$f":"'[1]REAL IPC(M)'!AJ378","v":-1.8585711751206504},null,null,{"$f":"'[1]REAL IMAE(M)'!AG378","v":-6.7548480663602319},{"$f":"'[1]REAL IMAE(M)'!AH378","v":-5.1661903777527902},{"$f":"'[1]REAL IMAE(M)'!AI378","v":0.24127504934197075},{"$f":"'[1]REAL IMAE(M)'!AJ378","v":-3.3888815320283872},{"$f":"'[1]REAL IMAE(M)'!AK378","v":1.2473895150111012},{"$f":"'[1]REAL IMAE(M)'!AL378","v":-6.362031021738777},{"$f":"'[1]REAL IMAE(M)'!AM378","v":-25.007215773481466},null,null,{"$f":"'[1]EXT ITCER(M)'!C378","v":83.820823748393167},{"$f":"'[1]EXT ITCER(M)'!D378","v":98.713837883607354},{"$f":"'[1]EXT ITCER(M)'!E378","v":53.12052683155801},{"$f":"'[1]EXT ITCER(M)'!F378","v":77.066103932629829},{"$f":"'[1]EXT ITCER(M)'!G378","v":110.24646069707011},{"$f":"'[1]EXT ITCER(M)'!H378","v":123.4710732775838},{"$f":"'[1]EXT ITCER(M)'!I378","v":96.193420764567364},null,null,{"$f":"'[1]EXT TC(M)'!J378","v":3.5345342731993226},{"$f":"'[1]EXT TC(M)'!K378","v":0},{"$f":"'[1]EXT TC(M)'!L378","v":0.66408469289982952},{"$f":"'[1]EXT TC(M)'!M378","v":-0.49910803321966113},{"$f":"'[1]EXT TC(M)'!N378","v":3.7982212343090342},{"$f":"'[1]EXT TC(M)'!O378","v":13.215737514940566},{"$f":"'[1]EXT TC(M)'!P378","v":0},null,null,{"$f":"'[1]EXT RIN(M)'!C378","v":8238.1380160200006},{"$f":"'[1]EXT RIN(M)'!D378","v":3809.72},{"$f":"'[1]EXT RIN(M)'!E378","v":17611.2},{"$f":"'[1]EXT RIN(M)'!F378","v":7519.8230610380815},{"$f":"'[1]EXT RIN(M)'!G378","v":2755.9},{"$f":"'[1]EXT RIN(M)'!H378","v":10551.95133366878},{"$f":"'[1]EXT RIN(M)'!I378","v":9042.9972048700001},null,null,{"$f":"'[1]EXT RIN(M)'!P378","v":69.790738408972317},{"$f":"'[1]EXT RIN(M)'!Q378","v":115.44529097078747},{"$f":"'[1]EXT RIN(M)'!R378","v":118.40311414580762},{"$f":"'[1]EXT RIN(M)'!S378","v":107.67879583632694},{"$f":"'[1]EXT RIN(M)'!T378","v":129.0053457885916},{"$f":"'[1]EXT RIN(M)'!U378","v":114.33594366945346},{"$f":"'[1]EXT RIN(M)'!V378","v":419.0792944265433},null,null,{"$f":"+'[1]MONE(M)CAPARD'!AE378","v":3.1416447291163676},{"$f":"'[1]MONE(M)CAPARD'!AF378","v":4.4070412923912921},{"$f":"'[1]MONE(M)CAPARD'!AG378","v":-0.43400601585998549},{"$f":"'[1]MONE(M)CAPARD'!AH378","v":4.4478026124818548},{"$f":"'[1]MONE(M)CAPARD'!AI378","v":4.8577257339868423},{"$f":"'[1]MONE(M)CAPARD'!AJ378","v":-0.46257061692970169},{"$f":"'[1]MONE(M)CAPARD'!AK378","v":3.8806966851038527},null,null,{"$f":"'[1]MONE(M)CAPARD'!AL378","v":3.0105601200000001},{"$f":"'[1]MONE(M)CAPARD'!AM378","v":4},{"$f":"'[1]MONE(M)CAPARD'!AN378","v":2.8},{"$f":"'[1]MONE(M)CAPARD'!AO378","v":3.56},{"$f":"'[1]MONE(M)CAPARD'!AP378","v":4.0987836287339796},{"$f":"'[1]MONE(M)CAPARD'!AQ378","v":1.121},{"$f":"'[1]MONE(M)CAPARD'!AR378","v":1.95},null,null,{"$f":"'[1]MONE(M)CAPARD'!J378","v":8.8368279033062826},{"$f":"'[1]MONE(M)CAPARD'!K378","v":6.5052212568249246},{"$f":"'[1]MONE(M)CAPARD'!L378","v":7.1589608969100462},{"$f":"'[1]MONE(M)CAPARD'!M378","v":13.046200290275758},{"$f":"'[1]MONE(M)CAPARD'!N378","v":11.711612294478662},{"$f":"'[1]MONE(M)CAPARD'!O378","v":4.6814242754662816},{"$f":"'[1]MONE(M)CAPARD'!P378","v":10.310193458845935},null,null,{"$f":"'[1]MONE(M)CAPARD'!Q378","v":6.34995391},{"$f":"'[1]MONE(M)CAPARD'!R378","v":6.09},{"$f":"'[1]MONE(M)CAPARD'!S378","v":6.15},{"$f":"'[1]MONE(M)CAPARD'!T378","v":7.92},{"$f":"'[1]MONE(M)CAPARD'!U378","v":9.8166302978062205},{"$f":"'[1]MONE(M)CAPARD'!V378","v":4.0023},{"$f":"'[1]MONE(M)CAPARD'!W378","v":8.26},null,null,{"$f":"'[1]MONE(M)CAPARD'!AS378","v":0.75},{"$f":"'[1]MONE(M)CAPARD'!AT378","v":"n.a."},{"$f":"'[1]MONE(M)CAPARD'!AU378","v":1.75},{"$f":"'[1]MONE(M)CAPARD'!AV378","v":3.75},{"$f":"'[1]MONE(M)CAPARD'!AW378","v":4.25},{"$f":"'[1]MONE(M)CAPARD'!AX378","v":3},{"$f":"'[1]MONE(M)CAPARD'!AY378","v":"n.a."},null,null,{"$f":"+'Datos_Regional (M)'!CF371","v":2.4228962301462209},{"$f":"+'Datos_Regional (M)'!CG371","v":4.5422744402441095},{"$f":"+'Datos_Regional (M)'!CH371","v":5.5549487035778222},{"$f":"+'Datos_Regional (M)'!CI371","v":5.2699382025807706},{"$f":"+'Datos_Regional (M)'!CJ371","v":-4.3289853340326196},{"$f":"+'Datos_Regional (M)'!CK371","v":7.5010146080240592},{"$f":"+'Datos_Regional (M)'!CL371","v":-2.4168023266229688},null,null,{"$f":"IF(EH183=\"\",\"\",+AVERAGE(EH172:EH183))","v":1029.8181037149986},{"$f":"IF(EI183=\"\",\"\",+AVERAGE(EI172:EI183))","v":414.97749999999996},{"$f":"IF(EJ183=\"\",\"\",+AVERAGE(EJ172:EJ183))","v":916.9083333333333},{"$f":"IF(EK183=\"\",\"\",+AVERAGE(EK172:EK183))","v":353.02949012633076},{"$f":"IF(EL183=\"\",\"\",+AVERAGE(EL172:EL183))","v":446.73846067166664},{"$f":"IF(EM183=\"\",\"\",+AVERAGE(EM172:EM183))","v":863.65833333333342},{"$f":"IF(EN183=\"\",\"\",+AVERAGE(EN172:EN183))","v":839.9166709166667},4025.1302211796628,4865.0468920963303,null,null,{"$f":"IF(ES183=\"\",\"\",+AVERAGE(ES172:ES183))","v":1479.0380132749997},{"$f":"IF(ET183=\"\",\"\",+AVERAGE(ET172:ET183))","v":847.47083333333342},{"$f":"IF(EU183=\"\",\"\",+AVERAGE(EU172:EU183))","v":1519.9666666666669},{"$f":"IF(EV183=\"\",\"\",+AVERAGE(EV172:EV183))","v":756.64614291760643},{"$f":"IF(EW183=\"\",\"\",+AVERAGE(EW172:EW183))","v":514.38724557000012},{"$f":"IF(EX183=\"\",\"\",+AVERAGE(EX172:EX183))","v":1440.9749999999997},{"$f":"IF(EY183=\"\",\"\",+AVERAGE(EY172:EY183))","v":1317.9144805000001},6558.4839017626045,7876.398382262606,null,null,-2533.3536805829426,-3011.3514901662766,null,null,{"$f":"'[1]EXT Comercio(M)'!C378","v":1104.09262442},{"$f":"'[1]EXT Comercio(M)'!D378","v":484.98},{"$f":"'[1]EXT Comercio(M)'!E378","v":894.2},{"$f":"'[1]EXT Comercio(M)'!F378","v":347.40085376434871},{"$f":"'[1]EXT Comercio(M)'!G378","v":461.14816903999997},{"$f":"'[1]EXT Comercio(M)'!H378","v":925.7},{"$f":"'[1]EXT Comercio(M)'!I378","v":943.19591000000014},{"$f":"'[1]EXT Comercio(M)'!K378","v":4217.5216472243555},{"$f":"'[1]EXT Comercio(M)'!L378","v":5160.7175572243577},null,null,{"$f":"'[1]EXT Comercio(M)'!AG378","v":1432.67501902},{"$f":"'[1]EXT Comercio(M)'!AH378","v":859.14000000000033},{"$f":"'[1]EXT Comercio(M)'!AI378","v":1495},{"$f":"'[1]EXT Comercio(M)'!AJ378","v":744.40692082737735},{"$f":"'[1]EXT Comercio(M)'!AK378","v":534.06011704000002},{"$f":"'[1]EXT Comercio(M)'!AL378","v":1436},{"$f":"'[1]EXT Comercio(M)'!AM378","v":1142.6273470000001},{"$f":"'[1]EXT Comercio(M)'!AO378","v":6501.2820568873794},{"$f":"'[1]EXT Comercio(M)'!AP378","v":7643.9094038873736},null,null,{"$f":"'[1]EXT Comercio(M)'!$BS378","v":-2283.7604096630275},{"$f":"'[1]EXT Comercio(M)'!$BT378","v":-2483.1918466630304}]
[null,null,"Octubre",{"$f":"'[1]REAL IPC(M)'!AD379","v":0.45245635372738391},{"$f":"'[1]REAL IPC(M)'!AE379","v":-0.20823273737451958},{"$f":"'[1]REAL IPC(M)'!AF379","v":5.3445450010689086},{"$f":"'[1]REAL IPC(M)'!AG379","v":3.6526946107784397},{"$f":"'[1]REAL IPC(M)'!AH379","v":2.6898395334267886},{"$f":"'[1]REAL IPC(M)'!AI379","v":5.0250240673017377},{"$f":"'[1]REAL IPC(M)'!AJ379","v":-1.9488718188039107},null,null,{"$f":"'[1]REAL IMAE(M)'!AG379","v":-5.8930589964797848},{"$f":"'[1]REAL IMAE(M)'!AH379","v":-3.4149860024968781},{"$f":"'[1]REAL IMAE(M)'!AI379","v":1.1729314659848717},{"$f":"'[1]REAL IMAE(M)'!AJ379","v":-3.1688645140078604},{"$f":"'[1]REAL IMAE(M)'!AK379","v":1.4178704784198097},{"$f":"'[1]REAL IMAE(M)'!AL379","v":-4.7561630471802125},{"$f":"'[1]REAL IMAE(M)'!AM379","v":-13.42906848536466},null,null,{"$f":"'[1]EXT ITCER(M)'!C379","v":84.544259727499224},{"$f":"'[1]EXT ITCER(M)'!D379","v":98.556035549164164},{"$f":"'[1]EXT ITCER(M)'!E379","v":52.742195229374978},{"$f":"'[1]EXT ITCER(M)'!F379","v":76.469695850491036},{"$f":"'[1]EXT ITCER(M)'!G379","v":110.1416771419315},{"$f":"'[1]EXT ITCER(M)'!H379","v":122.71806410579821},{"$f":"'[1]EXT ITCER(M)'!I379","v":96.392434898746686},null,null,{"$f":"'[1]EXT TC(M)'!J379","v":3.8611206953345039},{"$f":"'[1]EXT TC(M)'!K379","v":0},{"$f":"'[1]EXT TC(M)'!L379","v":0.3249689890427952},{"$f":"'[1]EXT TC(M)'!M379","v":-0.96194007449827612},{"$f":"'[1]EXT TC(M)'!N379","v":3.4565739361123922},{"$f":"'[1]EXT TC(M)'!O379","v":10.868267911375314},{"$f":"'[1]EXT TC(M)'!P379","v":0},null,null,{"$f":"'[1]EXT RIN(M)'!C379","v":7809.1955475900004},{"$f":"'[1]EXT RIN(M)'!D379","v":3689.85},{"$f":"'[1]EXT RIN(M)'!E379","v":18314.8},{"$f":"'[1]EXT RIN(M)'!F379","v":7760.4},{"$f":"'[1]EXT RIN(M)'!G379","v":2781},{"$f":"'[1]EXT RIN(M)'!H379","v":9873.7272429092845},{"$f":"'[1]EXT RIN(M)'!I379","v":8192.7798642800008},null,null,{"$f":"'[1]EXT RIN(M)'!P379","v":69.502492397224714},{"$f":"'[1]EXT RIN(M)'!Q379","v":108.37919810231766},{"$f":"'[1]EXT RIN(M)'!R379","v":124.10487163940826},{"$f":"'[1]EXT RIN(M)'!S379","v":105.22324622943178},{"$f":"'[1]EXT RIN(M)'!T379","v":128.38012712053353},{"$f":"'[1]EXT RIN(M)'!U379","v":105.6166927526556},{"$f":"'[1]EXT RIN(M)'!V379","v":372.35248332376199},null,null,{"$f":"+'[1]MONE(M)CAPARD'!AE379","v":2.8844925763381788},{"$f":"'[1]MONE(M)CAPARD'!AF379","v":4.1268261404133897},{"$f":"'[1]MONE(M)CAPARD'!AG379","v":-0.8396685381857536},{"$f":"'[1]MONE(M)CAPARD'!AH379","v":4.0493934142114414},{"$f":"'[1]MONE(M)CAPARD'!AI379","v":5.684779750242881},{"$f":"'[1]MONE(M)CAPARD'!AJ379","v":-0.63396706948152315},{"$f":"'[1]MONE(M)CAPARD'!AK379","v":3.9355710539840092},null,null,{"$f":"'[1]MONE(M)CAPARD'!AL379","v":2.9459493800000001},{"$f":"'[1]MONE(M)CAPARD'!AM379","v":3.91},{"$f":"'[1]MONE(M)CAPARD'!AN379","v":2.81},{"$f":"'[1]MONE(M)CAPARD'!AO379","v":3.46},{"$f":"'[1]MONE(M)CAPARD'!AP379","v":3.8245428233254701},{"$f":"'[1]MONE(M)CAPARD'!AQ379","v":0.95550000000000002},{"$f":"'[1]MONE(M)CAPARD'!AR379","v":1.91},null,null,{"$f":"'[1]MONE(M)CAPARD'!J379","v":9.1703937670119497},{"$f":"'[1]MONE(M)CAPARD'!K379","v":6.9527105568888565},{"$f":"'[1]MONE(M)CAPARD'!L379","v":6.6310552661841307},{"$f":"'[1]MONE(M)CAPARD'!M379","v":12.732235701906417},{"$f":"'[1]MONE(M)CAPARD'!N379","v":11.293255744121831},{"$f":"'[1]MONE(M)CAPARD'!O379","v":4.9257555317322685},{"$f":"'[1]MONE(M)CAPARD'!P379","v":10.411784145857215},null,null,{"$f":"'[1]MONE(M)CAPARD'!Q379","v":6.5543736800000003},{"$f":"'[1]MONE(M)CAPARD'!R379","v":6.73},{"$f":"'[1]MONE(M)CAPARD'!S379","v":6.12},{"$f":"'[1]MONE(M)CAPARD'!T379","v":7.79},{"$f":"'[1]MONE(M)CAPARD'!U379","v":10.7827456663529},{"$f":"'[1]MONE(M)CAPARD'!V379","v":4.4279000000000002},{"$f":"'[1]MONE(M)CAPARD'!W379","v":8.26},null,null,{"$f":"'[1]MONE(M)CAPARD'!AS379","v":0.75},{"$f":"'[1]MONE(M)CAPARD'!AT379","v":"n.a."},{"$f":"'[1]MONE(M)CAPARD'!AU379","v":1.75},{"$f":"'[1]MONE(M)CAPARD'!AV379","v":3.75},{"$f":"'[1]MONE(M)CAPARD'!AW379","v":4.25},{"$f":"'[1]MONE(M)CAPARD'!AX379","v":3},{"$f":"'[1]MONE(M)CAPARD'!AY379","v":"n.a."},null,null,{"$f":"+'Datos_Regional (M)'!CF372","v":2.3329165810886954},{"$f":"+'Datos_Regional (M)'!CG372","v":3.5182016551443374},{"$f":"+'Datos_Regional (M)'!CH372","v":6.5324076947695042},{"$f":"+'Datos_Regional (M)'!CI372","v":4.4605610881416125},{"$f":"+'Datos_Regional (M)'!CJ372","v":-4.4689220225589299},{"$f":"+'Datos_Regional (M)'!CK372","v":6.6984731770888262},{"$f":"+'Datos_Regional (M)'!CL372","v":-2.8592727947715946},null,null,1039.7703303141659,416.27666666666681,920,359.75089680666537,447.9463852975,864.54166666666663,820.45009824916679,4048.2859457516643,4868.7360440008315,null,null,{"$f":"IF(ES184=\"\",\"\",+AVERAGE(ES173:ES184))","v":1483.8115028058335},{"$f":"IF(ET184=\"\",\"\",+AVERAGE(ET173:ET184))","v":840.52250000000004},{"$f":"IF(EU184=\"\",\"\",+AVERAGE(EU173:EU184))","v":1503.4833333333333},{"$f":"IF(EV184=\"\",\"\",+AVERAGE(EV173:EV184))","v":750.17230290211739},{"$f":"IF(EW184=\"\",\"\",+AVERAGE(EW173:EW184))","v":511.55682141666665},{"$f":"IF(EX184=\"\",\"\",+AVERAGE(EX173:EX184))","v":1429.6666666666667},{"$f":"IF(EY184=\"\",\"\",+AVERAGE(EY173:EY184))","v":1261.5024991666667},6519.2131271246171,7780.7156262912831,null,null,-2470.927181372952,-2911.9795822904525,null,null,{"$f":"'[1]EXT Comercio(M)'!C379","v":1155.3825001600001},{"$f":"'[1]EXT Comercio(M)'!D379","v":508.51000000000022},{"$f":"'[1]EXT Comercio(M)'!E379","v":912.90000000000009},{"$f":"'[1]EXT Comercio(M)'!F379","v":340.71326211047165},{"$f":"'[1]EXT Comercio(M)'!G379","v":497.13997233000009},{"$f":"'[1]EXT Comercio(M)'!H379","v":970.10000000000014},{"$f":"'[1]EXT Comercio(M)'!I379","v":1005.52112799},{"$f":"'[1]EXT Comercio(M)'!K379","v":4384.745734600474},{"$f":"'[1]EXT Comercio(M)'!L379","v":5390.2668625904698},null,null,{"$f":"'[1]EXT Comercio(M)'!AG379","v":1584.0443491000001},{"$f":"'[1]EXT Comercio(M)'!AH379","v":966.68000000000029},{"$f":"'[1]EXT Comercio(M)'!AI379","v":1670.8999999999999},{"$f":"'[1]EXT Comercio(M)'!AJ379","v":848.147490972833},{"$f":"'[1]EXT Comercio(M)'!AK379","v":566.82082198000001},{"$f":"'[1]EXT Comercio(M)'!AL379","v":1591.2},{"$f":"'[1]EXT Comercio(M)'!AM379","v":1286.513224},{"$f":"'[1]EXT Comercio(M)'!AO379","v":7227.7926620528306},{"$f":"'[1]EXT Comercio(M)'!AP379","v":8514.3058860528399},null,null,{"$f":"'[1]EXT Comercio(M)'!$BS379","v":-2843.0469274523603},{"$f":"'[1]EXT Comercio(M)'!$BT379","v":-3124.0390234623592}]
[null,null,"Noviembre",{"$f":"'[1]REAL IPC(M)'!AD380","v":0.24451285840510067},{"$f":"'[1]REAL IPC(M)'!AE380","v":-0.17613054069237558},{"$f":"'[1]REAL IPC(M)'!AF380","v":5.4629301170628013},{"$f":"'[1]REAL IPC(M)'!AG380","v":3.8208955223880632},{"$f":"'[1]REAL IPC(M)'!AH380","v":2.6430348771900971},{"$f":"'[1]REAL IPC(M)'!AI380","v":5.2585709374322578},{"$f":"'[1]REAL IPC(M)'!AJ380","v":-2.0365931996476068},null,null,{"$f":"'[1]REAL IMAE(M)'!AG380","v":-4.900841385029862},{"$f":"'[1]REAL IMAE(M)'!AH380","v":-3.3525853426279895},{"$f":"'[1]REAL IMAE(M)'!AI380","v":1.5973750992655689},{"$f":"'[1]REAL IMAE(M)'!AJ380","v":-3.0673878605852396},{"$f":"'[1]REAL IMAE(M)'!AK380","v":1.7152937424852552},{"$f":"'[1]REAL IMAE(M)'!AL380","v":-2.7277020358383863},{"$f":"'[1]REAL IMAE(M)'!AM380","v":-11.468279330122057},null,null,{"$f":"'[1]EXT ITCER(M)'!C380","v":85.204135646345321},{"$f":"'[1]EXT ITCER(M)'!D380","v":98.546056053085479},{"$f":"'[1]EXT ITCER(M)'!E380","v":52.554276005140572},{"$f":"'[1]EXT ITCER(M)'!F380","v":75.873374714365852},{"$f":"'[1]EXT ITCER(M)'!G380","v":109.5756359117287},{"$f":"'[1]EXT ITCER(M)'!H380","v":122.0639487243033},{"$f":"'[1]EXT ITCER(M)'!I380","v":96.629876110439056},null,null,{"$f":"'[1]EXT TC(M)'!J380","v":5.371280549899633},{"$f":"'[1]EXT TC(M)'!K380","v":0},{"$f":"'[1]EXT TC(M)'!L380","v":1.0892818105162339},{"$f":"'[1]EXT TC(M)'!M380","v":-1.4273429718816626},{"$f":"'[1]EXT TC(M)'!N380","v":3.1823727884680171},{"$f":"'[1]EXT TC(M)'!O380","v":10.470925362272137},{"$f":"'[1]EXT TC(M)'!P380","v":0},null,null,{"$f":"'[1]EXT RIN(M)'!C380","v":7457.5999831099998},{"$f":"'[1]EXT RIN(M)'!D380","v":3473.22},{"$f":"'[1]EXT RIN(M)'!E380","v":18249.400000000001},{"$f":"'[1]EXT RIN(M)'!F380","v":8195},{"$f":"'[1]EXT RIN(M)'!G380","v":2793.1},{"$f":"'[1]EXT RIN(M)'!H380","v":9903.7999999999993},{"$f":"'[1]EXT RIN(M)'!I380","v":7748.7730907100004},null,null,{"$f":"'[1]EXT RIN(M)'!P380","v":65.595948682956703},{"$f":"'[1]EXT RIN(M)'!Q380","v":105.70683353065242},{"$f":"'[1]EXT RIN(M)'!R380","v":124.32583120038494},{"$f":"'[1]EXT RIN(M)'!S380","v":106.05372421919141},{"$f":"'[1]EXT RIN(M)'!T380","v":121.32006319428473},{"$f":"'[1]EXT RIN(M)'!U380","v":101.01588705513271},{"$f":"'[1]EXT RIN(M)'!V380","v":347.21022141760687},null,null,{"$f":"+'[1]MONE(M)CAPARD'!AE380","v":3.1477903893373296},{"$f":"'[1]MONE(M)CAPARD'!AF380","v":4.1233930952459037},{"$f":"'[1]MONE(M)CAPARD'!AG380","v":-0.98890682811975672},{"$f":"'[1]MONE(M)CAPARD'!AH380","v":3.7267107533064947},{"$f":"'[1]MONE(M)CAPARD'!AI380","v":3.8177046165265272},{"$f":"'[1]MONE(M)CAPARD'!AJ380","v":-1.5392294641690691},{"$f":"'[1]MONE(M)CAPARD'!AK380","v":4.0490559987684485},null,null,{"$f":"'[1]MONE(M)CAPARD'!AL380","v":2.4621751600000001},{"$f":"'[1]MONE(M)CAPARD'!AM380","v":3.94},{"$f":"'[1]MONE(M)CAPARD'!AN380","v":2.8},{"$f":"'[1]MONE(M)CAPARD'!AO380","v":3.34},{"$f":"'[1]MONE(M)CAPARD'!AP380","v":3.9115694840639899},{"$f":"'[1]MONE(M)CAPARD'!AQ380","v":0.8125},{"$f":"'[1]MONE(M)CAPARD'!AR380","v":1.93},null,null,{"$f":"'[1]MONE(M)CAPARD'!J380","v":9.261157231327191},{"$f":"'[1]MONE(M)CAPARD'!K380","v":6.4374688894542755},{"$f":"'[1]MONE(M)CAPARD'!L380","v":6.5018768920282408},{"$f":"'[1]MONE(M)CAPARD'!M380","v":12.5399654974123},{"$f":"'[1]MONE(M)CAPARD'!N380","v":11.086509498985784},{"$f":"'[1]MONE(M)CAPARD'!O380","v":4.3382016513240114},{"$f":"'[1]MONE(M)CAPARD'!P380","v":10.510652432322891},null,null,{"$f":"'[1]MONE(M)CAPARD'!Q380","v":6.3058676},{"$f":"'[1]MONE(M)CAPARD'!R380","v":6.25},{"$f":"'[1]MONE(M)CAPARD'!S380","v":6.11},{"$f":"'[1]MONE(M)CAPARD'!T380","v":7.77},{"$f":"'[1]MONE(M)CAPARD'!U380","v":10.321818284015899},{"$f":"'[1]MONE(M)CAPARD'!V380","v":3.8077999999999999},{"$f":"'[1]MONE(M)CAPARD'!W380","v":8.26},null,null,{"$f":"'[1]MONE(M)CAPARD'!AS380","v":0.75},{"$f":"'[1]MONE(M)CAPARD'!AT380","v":"n.a."},{"$f":"'[1]MONE(M)CAPARD'!AU380","v":1.75},{"$f":"'[1]MONE(M)CAPARD'!AV380","v":3},{"$f":"'[1]MONE(M)CAPARD'!AW380","v":4.25},{"$f":"'[1]MONE(M)CAPARD'!AX380","v":3},{"$f":"'[1]MONE(M)CAPARD'!AY380","v":"n.a."},null,null,{"$f":"+'Datos_Regional (M)'!CF373","v":3.7876748162178009},{"$f":"+'Datos_Regional (M)'!CG373","v":3.7184550200823008},{"$f":"+'Datos_Regional (M)'!CH373","v":5.921342613024061},{"$f":"+'Datos_Regional (M)'!CI373","v":3.5626337433729116},{"$f":"+'Datos_Regional (M)'!CJ373","v":-3.990477816327731},{"$f":"+'Datos_Regional (M)'!CK373","v":5.5998727605238496},{"$f":"+'Datos_Regional (M)'!CL373","v":-2.9356035679303671},null,null,1052.2253658858328,414.80333333333334,917.29166666666652,357.38478930770856,444.55946318583341,857.80000000000007,812.20686866583344,4044.0646183793738,4856.2714870452073,null,null,1493.4304711141669,838.71833333333359,1497.5666666666666,741.58345906484055,510.87726408166668,1410.4583333333333,1242.7984380833334,6492.6345275940075,7735.4329656773407,null,null,-2448.5699092146319,-2879.161478632132,null,null,{"$f":"'[1]EXT Comercio(M)'!C380","v":1172.39564698},{"$f":"'[1]EXT Comercio(M)'!D380","v":444.02999999999975},{"$f":"'[1]EXT Comercio(M)'!E380","v":884.3},{"$f":"'[1]EXT Comercio(M)'!F380","v":272.06923413583741},{"$f":"'[1]EXT Comercio(M)'!G380","v":403.54994339999996},{"$f":"'[1]EXT Comercio(M)'!H380","v":913.90000000000009},{"$f":"'[1]EXT Comercio(M)'!I380","v":900.07124499999998},{"$f":"'[1]EXT Comercio(M)'!K380","v":4090.2448245158303},{"$f":"'[1]EXT Comercio(M)'!L380","v":4990.3160695158294},null,null,{"$f":"'[1]EXT Comercio(M)'!AG380","v":1569.8862441599999},{"$f":"'[1]EXT Comercio(M)'!AH380","v":959.5},{"$f":"'[1]EXT Comercio(M)'!AI380","v":1682.8999999999999},{"$f":"'[1]EXT Comercio(M)'!AJ380","v":749.30331295987583},{"$f":"'[1]EXT Comercio(M)'!AK380","v":533.44091125999989},{"$f":"'[1]EXT Comercio(M)'!AL380","v":1517.9},{"$f":"'[1]EXT Comercio(M)'!AM380","v":1322.2132670000001},{"$f":"'[1]EXT Comercio(M)'!AO380","v":7012.9304683798837},{"$f":"'[1]EXT Comercio(M)'!AP380","v":8335.1437353798829},null,null,{"$f":"'[1]EXT Comercio(M)'!$BS380","v":-2922.6856438640352},{"$f":"'[1]EXT Comercio(M)'!$BT380","v":-3344.8276658640352}]
[null,null,"Diciembre ",{"$f":"'[1]REAL IPC(M)'!AD381","v":0.89244852204476821},{"$f":"'[1]REAL IPC(M)'!AE381","v":-8.5308433546244525E-2},{"$f":"'[1]REAL IPC(M)'!AF381","v":4.8236953455571046},{"$f":"'[1]REAL IPC(M)'!AG381","v":4.0130796670630211},{"$f":"'[1]REAL IPC(M)'!AH381","v":2.9305695911470475},{"$f":"'[1]REAL IPC(M)'!AI381","v":5.5536478118097348},{"$f":"'[1]REAL IPC(M)'!AJ381","v":-1.5762906309751652},null,null,{"$f":"'[1]REAL IMAE(M)'!AG381","v":-3.9409750507956698},{"$f":"'[1]REAL IMAE(M)'!AH381","v":-2.5366808593170798},{"$f":"'[1]REAL IMAE(M)'!AI381","v":2.2712547593830283},{"$f":"'[1]REAL IMAE(M)'!AJ381","v":-2.9356483642641162},{"$f":"'[1]REAL IMAE(M)'!AK381","v":2.1566502474456724},{"$f":"'[1]REAL IMAE(M)'!AL381","v":2.7107330976989381E-2},{"$f":"'[1]REAL IMAE(M)'!AM381","v":-9.4278335445372399},null,null,{"$f":"'[1]EXT ITCER(M)'!C381","v":84.886707974275197},{"$f":"'[1]EXT ITCER(M)'!D381","v":98.671521384970077},{"$f":"'[1]EXT ITCER(M)'!E381","v":52.818970336843257},{"$f":"'[1]EXT ITCER(M)'!F381","v":75.236498399123107},{"$f":"'[1]EXT ITCER(M)'!G381","v":108.69028585132931},{"$f":"'[1]EXT ITCER(M)'!H381","v":121.4264243659626},{"$f":"'[1]EXT ITCER(M)'!I381","v":96.644003950132785},null,null,{"$f":"'[1]EXT TC(M)'!J381","v":6.6928913610353886},{"$f":"'[1]EXT TC(M)'!K381","v":0},{"$f":"'[1]EXT TC(M)'!L381","v":1.46274237793748},{"$f":"'[1]EXT TC(M)'!M381","v":-2.0155536956402598},{"$f":"'[1]EXT TC(M)'!N381","v":3.2244366975818917},{"$f":"'[1]EXT TC(M)'!O381","v":9.9057380384201235},{"$f":"'[1]EXT TC(M)'!P381","v":0},null,null,{"$f":"'[1]EXT RIN(M)'!C381","v":7224.6663515199998},{"$f":"'[1]EXT RIN(M)'!D381","v":2915.2},{"$f":"'[1]EXT RIN(M)'!E381","v":18468.2},{"$f":"'[1]EXT RIN(M)'!F381","v":8148.8},{"$f":"'[1]EXT RIN(M)'!G381","v":3073.5},{"$f":"'[1]EXT RIN(M)'!H381","v":10751.6724920383},{"$f":"'[1]EXT RIN(M)'!I381","v":8672.3315890199992},null,null,{"$f":"'[1]EXT RIN(M)'!P381","v":63.927514840187861},{"$f":"'[1]EXT RIN(M)'!Q381","v":101.53051540180165},{"$f":"'[1]EXT RIN(M)'!R381","v":114.63593455606562},{"$f":"'[1]EXT RIN(M)'!S381","v":97.308673779973972},{"$f":"'[1]EXT RIN(M)'!T381","v":130.77506414980675},{"$f":"'[1]EXT RIN(M)'!U381","v":98.781919430615929},{"$f":"'[1]EXT RIN(M)'!V381","v":374.0109298069558},null,null,{"$f":"+'[1]MONE(M)CAPARD'!AE381","v":2.5844862684499996},{"$f":"'[1]MONE(M)CAPARD'!AF381","v":4.1388392124453794},{"$f":"'[1]MONE(M)CAPARD'!AG381","v":-0.45189720129169458},{"$f":"'[1]MONE(M)CAPARD'!AH381","v":3.3235438696770498},{"$f":"'[1]MONE(M)CAPARD'!AI381","v":3.9512784325713119},{"$f":"'[1]MONE(M)CAPARD'!AJ381","v":-1.5144410874930307},{"$f":"'[1]MONE(M)CAPARD'!AK381","v":3.5421248125325624},null,null,{"$f":"'[1]MONE(M)CAPARD'!AL381","v":2.71850418},{"$f":"'[1]MONE(M)CAPARD'!AM381","v":4.05},{"$f":"'[1]MONE(M)CAPARD'!AN381","v":2.66},{"$f":"'[1]MONE(M)CAPARD'!AO381","v":3.32},{"$f":"'[1]MONE(M)CAPARD'!AP381","v":3.4236455304849698},{"$f":"'[1]MONE(M)CAPARD'!AQ381","v":0.8821},{"$f":"'[1]MONE(M)CAPARD'!AR381","v":1.91},null,null,{"$f":"'[1]MONE(M)CAPARD'!J381","v":8.3088589193308771},{"$f":"'[1]MONE(M)CAPARD'!K381","v":6.5809225154570736},{"$f":"'[1]MONE(M)CAPARD'!L381","v":7.1608853606028173},{"$f":"'[1]MONE(M)CAPARD'!M381","v":12.178199485567305},{"$f":"'[1]MONE(M)CAPARD'!N381","v":10.584955070117875},{"$f":"'[1]MONE(M)CAPARD'!O381","v":4.0710598612864644},{"$f":"'[1]MONE(M)CAPARD'!P381","v":10.071716826354001},null,null,{"$f":"'[1]MONE(M)CAPARD'!Q381","v":6.8315155699999996},{"$f":"'[1]MONE(M)CAPARD'!R381","v":6.49},{"$f":"'[1]MONE(M)CAPARD'!S381","v":6.07},{"$f":"'[1]MONE(M)CAPARD'!T381","v":7.66},{"$f":"'[1]MONE(M)CAPARD'!U381","v":10.4107123181848},{"$f":"'[1]MONE(M)CAPARD'!V381","v":4.8220999999999998},{"$f":"'[1]MONE(M)CAPARD'!W381","v":8.3366666666666678},null,null,{"$f":"'[1]MONE(M)CAPARD'!AS381","v":0.75},{"$f":"'[1]MONE(M)CAPARD'!AT381","v":"n.a."},{"$f":"'[1]MONE(M)CAPARD'!AU381","v":1.75},{"$f":"'[1]MONE(M)CAPARD'!AV381","v":3},{"$f":"'[1]MONE(M)CAPARD'!AW381","v":4},{"$f":"'[1]MONE(M)CAPARD'!AX381","v":3},{"$f":"'[1]MONE(M)CAPARD'!AY381","v":"n.a."},null,null,{"$f":"+'Datos_Regional (M)'!CF374","v":3.9446780197889275},{"$f":"+'Datos_Regional (M)'!CG374","v":2.6729038875000111},{"$f":"+'Datos_Regional (M)'!CH374","v":5.9116243999646656},{"$f":"+'Datos_Regional (M)'!CI374","v":2.9493678033488679},{"$f":"+'Datos_Regional (M)'!CJ374","v":-4.0777602816925551},{"$f":"+'Datos_Regional (M)'!CK374","v":5.1375665842864793},{"$f":"+'Datos_Regional (M)'!CL374","v":-3.2695156978307827},null,null,1079.2094685299999,419.0266666666667,925.10833333333323,354.90478204599987,443.42499999999995,858.49166666666667,804.73052408249987,4080.1659172426666,4884.896441325167,null,null,1520.3973215608332,853.99416666666673,1517.2333333333333,746.47661464324995,521.28828274749992,1425.4166666666667,1228.2934444166669,6584.8063856182498,7813.0998300349165,null,null,-2504.6404683755836,-2928.20338870975,null,null,{"$f":"'[1]EXT Comercio(M)'!C381","v":1237.7001660999999},{"$f":"'[1]EXT Comercio(M)'!D381","v":499.19000000000051},{"$f":"'[1]EXT Comercio(M)'!E381","v":1084.3},{"$f":"'[1]EXT Comercio(M)'!F381","v":340.82004837190686},{"$f":"'[1]EXT Comercio(M)'!G381","v":426.30342842999926},{"$f":"'[1]EXT Comercio(M)'!H381","v":964.7},{"$f":"'[1]EXT Comercio(M)'!I381","v":872.85300000000007},{"$f":"'[1]EXT Comercio(M)'!K381","v":4553.0136429019112},{"$f":"'[1]EXT Comercio(M)'!L381","v":5425.866642901914},null,null,{"$f":"'[1]EXT Comercio(M)'!AG381","v":1642.4484420899998},{"$f":"'[1]EXT Comercio(M)'!AH381","v":1059.6599999999999},{"$f":"'[1]EXT Comercio(M)'!AI381","v":1780.6},{"$f":"'[1]EXT Comercio(M)'!AJ381","v":930.10162570178397},{"$f":"'[1]EXT Comercio(M)'!AK381","v":655.99761498999942},{"$f":"'[1]EXT Comercio(M)'!AL381","v":1768.3999999999999},{"$f":"'[1]EXT Comercio(M)'!AM381","v":1445.759002},{"$f":"'[1]EXT Comercio(M)'!AO381","v":7837.20768278178},{"$f":"'[1]EXT Comercio(M)'!AP381","v":9282.9666847817716},null,null,{"$f":"'[1]EXT Comercio(M)'!$BS381","v":-3284.194039879887},{"$f":"'[1]EXT Comercio(M)'!$BT381","v":-3857.1000418798867}]
[null,2021,"Enero",{"$f":"'[1]REAL IPC(M)'!AD382","v":0.95912353093986868},{"$f":"'[1]REAL IPC(M)'!AE382","v":0.30562937587131012},{"$f":"'[1]REAL IPC(M)'!AF382","v":5.2382298883076457},{"$f":"'[1]REAL IPC(M)'!AG382","v":4.1814946619217146},{"$f":"'[1]REAL IPC(M)'!AH382","v":3.1825074223787233},{"$f":"'[1]REAL IPC(M)'!AI382","v":6.2270483901758453},{"$f":"'[1]REAL IPC(M)'!AJ382","v":-1.4108520767563284},null,null,{"$f":"'[1]REAL IMAE(M)'!AG382","v":-3.3286054482799434},{"$f":"'[1]REAL IMAE(M)'!AH382","v":-0.9177325382137167},{"$f":"'[1]REAL IMAE(M)'!AI382","v":3.7722957425678159},{"$f":"'[1]REAL IMAE(M)'!AJ382","v":-2.4488551857845651},{"$f":"'[1]REAL IMAE(M)'!AK382","v":2.8541019612106004},{"$f":"'[1]REAL IMAE(M)'!AL382","v":3.71245110701217},{"$f":"'[1]REAL IMAE(M)'!AM382","v":-7.5520498226615089},null,null,{"$f":"'[1]EXT ITCER(M)'!C382","v":85.713108460846229},{"$f":"'[1]EXT ITCER(M)'!D382","v":98.648202139543457},{"$f":"'[1]EXT ITCER(M)'!E382","v":52.783332084126258},{"$f":"'[1]EXT ITCER(M)'!F382","v":74.956117174029373},{"$f":"'[1]EXT ITCER(M)'!G382","v":108.9497357122525},{"$f":"'[1]EXT ITCER(M)'!H382","v":120.5397486200504},{"$f":"'[1]EXT ITCER(M)'!I382","v":96.575811068193659},null,null,{"$f":"'[1]EXT TC(M)'!J382","v":7.3524171652028736},{"$f":"'[1]EXT TC(M)'!K382","v":0},{"$f":"'[1]EXT TC(M)'!L382","v":1.2731614235216773},{"$f":"'[1]EXT TC(M)'!M382","v":-2.2441338517772746},{"$f":"'[1]EXT TC(M)'!N382","v":3.131474721482451},{"$f":"'[1]EXT TC(M)'!O382","v":9.4780144678620868},{"$f":"'[1]EXT TC(M)'!P382","v":0},null,null,{"$f":"'[1]EXT RIN(M)'!C382","v":7265.9578536099998},{"$f":"'[1]EXT RIN(M)'!D382","v":2770.23},{"$f":"'[1]EXT RIN(M)'!E382","v":18253.3},{"$f":"'[1]EXT RIN(M)'!F382","v":8130.6443762306944},{"$f":"'[1]EXT RIN(M)'!G382","v":3201.4100342933903},{"$f":"'[1]EXT RIN(M)'!H382","v":12522.991938799278},{"$f":"'[1]EXT RIN(M)'!I382","v":9676.5894383899995},null,null,{"$f":"'[1]EXT RIN(M)'!P382","v":64.181469337665959},{"$f":"'[1]EXT RIN(M)'!Q382","v":100.55697404538699},{"$f":"'[1]EXT RIN(M)'!R382","v":115.86324151736906},{"$f":"'[1]EXT RIN(M)'!S382","v":97.300582963663587},{"$f":"'[1]EXT RIN(M)'!T382","v":134.88068270601175},{"$f":"'[1]EXT RIN(M)'!U382","v":117.26468396359171},{"$f":"'[1]EXT RIN(M)'!V382","v":425.64734578618851},null,null,{"$f":"+'[1]MONE(M)CAPARD'!AE382","v":2.566262838312114},{"$f":"'[1]MONE(M)CAPARD'!AF382","v":3.6532053554016786},{"$f":"'[1]MONE(M)CAPARD'!AG382","v":-0.87252502183112468},{"$f":"'[1]MONE(M)CAPARD'!AH382","v":2.9246675226878587},{"$f":"'[1]MONE(M)CAPARD'!AI382","v":2.9825570590530295},{"$f":"'[1]MONE(M)CAPARD'!AJ382","v":-2.194119506752104},{"$f":"'[1]MONE(M)CAPARD'!AK382","v":3.3582317592743407},null,null,{"$f":"'[1]MONE(M)CAPARD'!AL382","v":2.4548119800000001},{"$f":"'[1]MONE(M)CAPARD'!AM382","v":3.97},{"$f":"'[1]MONE(M)CAPARD'!AN382","v":2.61},{"$f":"'[1]MONE(M)CAPARD'!AO382","v":3.27},{"$f":"'[1]MONE(M)CAPARD'!AP382","v":3.5288733712812501},{"$f":"'[1]MONE(M)CAPARD'!AQ382","v":1.3150999999999999},{"$f":"'[1]MONE(M)CAPARD'!AR382","v":1.9},null,null,{"$f":"'[1]MONE(M)CAPARD'!J382","v":8.4638676725847581},{"$f":"'[1]MONE(M)CAPARD'!K382","v":5.8066238758178335},{"$f":"'[1]MONE(M)CAPARD'!L382","v":6.7482797071270264},{"$f":"'[1]MONE(M)CAPARD'!M382","v":11.958462852263015},{"$f":"'[1]MONE(M)CAPARD'!N382","v":9.7760995948492972},{"$f":"'[1]MONE(M)CAPARD'!O382","v":3.2813220951232949},{"$f":"'[1]MONE(M)CAPARD'!P382","v":9.8701046532345096},null,null,{"$f":"'[1]MONE(M)CAPARD'!Q382","v":5.87580934},{"$f":"'[1]MONE(M)CAPARD'!R382","v":6.13},{"$f":"'[1]MONE(M)CAPARD'!S382","v":6.06},{"$f":"'[1]MONE(M)CAPARD'!T382","v":7.68},{"$f":"'[1]MONE(M)CAPARD'!U382","v":9.7496510662057201},{"$f":"'[1]MONE(M)CAPARD'!V382","v":3.4941},{"$f":"'[1]MONE(M)CAPARD'!W382","v":8.32},null,null,{"$f":"'[1]MONE(M)CAPARD'!AS382","v":0.75},{"$f":"'[1]MONE(M)CAPARD'!AT382","v":"n.a."},{"$f":"'[1]MONE(M)CAPARD'!AU382","v":1.75},{"$f":"'[1]MONE(M)CAPARD'!AV382","v":3},{"$f":"'[1]MONE(M)CAPARD'!AW382","v":3.75},{"$f":"'[1]MONE(M)CAPARD'!AX382","v":3},{"$f":"'[1]MONE(M)CAPARD'!AY382","v":"n.a."},null,null,{"$f":"+'Datos_Regional (M)'!CF375","v":3.6684535170541155},{"$f":"+'Datos_Regional (M)'!CG375","v":2.0931913855708251},{"$f":"+'Datos_Regional (M)'!CH375","v":6.122606925053975},{"$f":"+'Datos_Regional (M)'!CI375","v":2.5825531365680998},{"$f":"+'Datos_Regional (M)'!CJ375","v":-4.3862924942772992},{"$f":"+'Datos_Regional (M)'!CK375","v":4.2222063751522709},{"$f":"+'Datos_Regional (M)'!CL375","v":-3.2929504077583882},null,null,{"$f":"IF(EH187=\"\",\"\",+AVERAGE(EH176:EH187))","v":1092.4617862208331},{"$f":"IF(EI187=\"\",\"\",+AVERAGE(EI176:EI187))","v":418.13083333333338},{"$f":"IF(EJ187=\"\",\"\",+AVERAGE(EJ176:EJ187))","v":924.62499999999989},{"$f":"IF(EK187=\"\",\"\",+AVERAGE(EK176:EK187))","v":350.44775828196316},{"$f":"IF(EL187=\"\",\"\",+AVERAGE(EL176:EL187))","v":442.8302591791666},852.30000000000007,{"$f":"IF(EN187=\"\",\"\",+AVERAGE(EN176:EN187))","v":800.09843608250003},{"$f":"IF(EO187=\"\",\"\",+AVERAGE(EO176:EO187))","v":4080.7956370152965},{"$f":"IF(EP187=\"\",\"\",+AVERAGE(EP176:EP187))","v":4880.8940730977965},null,null,{"$f":"IF(ES187=\"\",\"\",+AVERAGE(ES176:ES187))","v":1526.9773723433336},{"$f":"IF(ET187=\"\",\"\",+AVERAGE(ET176:ET187))","v":861.37833333333322},{"$f":"IF(EU187=\"\",\"\",+AVERAGE(EU176:EU187))","v":1514.4833333333329},{"$f":"IF(EV187=\"\",\"\",+AVERAGE(EV176:EV187))","v":742.74787053107468},{"$f":"IF(EW187=\"\",\"\",+AVERAGE(EW176:EW187))","v":526.64378629999987},{"$f":"IF(EX187=\"\",\"\",+AVERAGE(EX176:EX187))","v":1418.2666666666667},{"$f":"IF(EY187=\"\",\"\",+AVERAGE(EY176:EY187))","v":1207.0255405833334},6590.4973625077409,{"$f":"IF(FA187=\"\",\"\",+AVERAGE(FA176:FA187))","v":7797.522903091075},null,null,{"$f":"IF(FD187=\"\",\"\",+AVERAGE(FD176:FD187))","v":-2509.7017254924453},{"$f":"IF(FE187=\"\",\"\",+AVERAGE(FE176:FE187))","v":-2916.6288299932785},null,null,{"$f":"'[1]EXT Comercio(M)'!C382","v":1079.9136016299999},{"$f":"'[1]EXT Comercio(M)'!D382","v":499.13},{"$f":"'[1]EXT Comercio(M)'!E382","v":1004},{"$f":"'[1]EXT Comercio(M)'!F382","v":358.55620509155813},{"$f":"'[1]EXT Comercio(M)'!G382","v":486.13217741},{"$f":"'[1]EXT Comercio(M)'!H382","v":789.3},{"$f":"'[1]EXT Comercio(M)'!I382","v":814.67000000000007},{"$f":"'[1]EXT Comercio(M)'!K382","v":4217.0319841315586},{"$f":"'[1]EXT Comercio(M)'!L382","v":5031.7019841315587},null,null,{"$f":"'[1]EXT Comercio(M)'!AG382","v":1676.45684893},{"$f":"'[1]EXT Comercio(M)'!AH382","v":1056.1500000000001},{"$f":"'[1]EXT Comercio(M)'!AI382","v":1703.3},{"$f":"'[1]EXT Comercio(M)'!AJ382","v":823.0425353960959},{"$f":"'[1]EXT Comercio(M)'!AK382","v":580.63906376},{"$f":"'[1]EXT Comercio(M)'!AL382","v":1498.9},{"$f":"'[1]EXT Comercio(M)'!AM382","v":1295.8699999999999},{"$f":"'[1]EXT Comercio(M)'!AO382","v":7338.4884480860946},{"$f":"'[1]EXT Comercio(M)'!AP382","v":8634.3584480860954},null,null,{"$f":"'[1]EXT Comercio(M)'!$BS382","v":-3121.4564639545379},{"$f":"'[1]EXT Comercio(M)'!$BT382","v":-3602.6564639545377}]
[null,null,"Febrero",{"$f":"'[1]REAL IPC(M)'!AD383","v":0.4142856917048387},{"$f":"'[1]REAL IPC(M)'!AE383","v":1.0584687337529035},{"$f":"'[1]REAL IPC(M)'!AF383","v":5.9975867698204404},{"$f":"'[1]REAL IPC(M)'!AG383","v":3.8665879574970385},{"$f":"'[1]REAL IPC(M)'!AH383","v":3.7730623705781703},{"$f":"'[1]REAL IPC(M)'!AI383","v":7.0877017403547349},{"$f":"'[1]REAL IPC(M)'!AJ383","v":-0.58560851989096674},null,null,{"$f":"'[1]REAL IMAE(M)'!AG383","v":-2.7749293169528166},{"$f":"'[1]REAL IMAE(M)'!AH383","v":2.5710283264914362},{"$f":"'[1]REAL IMAE(M)'!AI383","v":6.338449497468833},{"$f":"'[1]REAL IMAE(M)'!AJ383","v":-1.3193517557338186},{"$f":"'[1]REAL IMAE(M)'!AK383","v":3.8563635812461952},{"$f":"'[1]REAL IMAE(M)'!AL383","v":7.9676284357106812},{"$f":"'[1]REAL IMAE(M)'!AM383","v":-6.0455473123392629},null,null,{"$f":"'[1]EXT ITCER(M)'!C383","v":86.202642588827999},{"$f":"'[1]EXT ITCER(M)'!D383","v":98.472338675485304},{"$f":"'[1]EXT ITCER(M)'!E383","v":52.51819890152003},{"$f":"'[1]EXT ITCER(M)'!F383","v":75.092302358452969},{"$f":"'[1]EXT ITCER(M)'!G383","v":108.59145461611691},{"$f":"'[1]EXT ITCER(M)'!H383","v":119.77785082830211},{"$f":"'[1]EXT ITCER(M)'!I383","v":96.434572221970456},null,null,{"$f":"'[1]EXT TC(M)'!J383","v":7.0131273990590053},{"$f":"'[1]EXT TC(M)'!K383","v":0},{"$f":"'[1]EXT TC(M)'!L383","v":1.2253411081163275},{"$f":"'[1]EXT TC(M)'!M383","v":-2.4128728707143532},{"$f":"'[1]EXT TC(M)'!N383","v":2.8807139036670306},{"$f":"'[1]EXT TC(M)'!O383","v":8.5431577051112235},{"$f":"'[1]EXT TC(M)'!P383","v":0},null,null,{"$f":"'[1]EXT RIN(M)'!C383","v":7296.84548283},{"$f":"'[1]EXT RIN(M)'!D383","v":2522.9699999999998},{"$f":"'[1]EXT RIN(M)'!E383","v":18374.400000000001},{"$f":"'[1]EXT RIN(M)'!F383","v":8242.7006274638479},{"$f":"'[1]EXT RIN(M)'!G383","v":3150.3164686291989},{"$f":"'[1]EXT RIN(M)'!H383","v":11963.162508328376},{"$f":"'[1]EXT RIN(M)'!I383","v":9062.67691457},null,null,{"$f":"'[1]EXT RIN(M)'!P383","v":64.345849995515664},{"$f":"'[1]EXT RIN(M)'!Q383","v":98.30498832638736},{"$f":"'[1]EXT RIN(M)'!R383","v":115.52848228253114},{"$f":"'[1]EXT RIN(M)'!S383","v":99.93181579575905},{"$f":"'[1]EXT RIN(M)'!T383","v":136.94033397806629},{"$f":"'[1]EXT RIN(M)'!U383","v":116.10364164350115},{"$f":"'[1]EXT RIN(M)'!V383","v":398.88264285914238},null,null,{"$f":"+'[1]MONE(M)CAPARD'!AE383","v":3.0231896660755115},{"$f":"'[1]MONE(M)CAPARD'!AF383","v":3.0492558464997641},{"$f":"'[1]MONE(M)CAPARD'!AG383","v":-1.6109675907325685},{"$f":"'[1]MONE(M)CAPARD'!AH383","v":3.0167661267405612},{"$f":"'[1]MONE(M)CAPARD'!AI383","v":2.7239891877639422},{"$f":"'[1]MONE(M)CAPARD'!AJ383","v":-2.693588239804146},{"$f":"'[1]MONE(M)CAPARD'!AK383","v":2.490191292260024},null,null,{"$f":"'[1]MONE(M)CAPARD'!AL383","v":2.5480190399999998},{"$f":"'[1]MONE(M)CAPARD'!AM383","v":4.1399999999999997},{"$f":"'[1]MONE(M)CAPARD'!AN383","v":2.6},{"$f":"'[1]MONE(M)CAPARD'!AO383","v":3.21},{"$f":"'[1]MONE(M)CAPARD'!AP383","v":3.5857730635233498},{"$f":"'[1]MONE(M)CAPARD'!AQ383","v":0.94620000000000004},{"$f":"'[1]MONE(M)CAPARD'!AR383","v":1.89},null,null,{"$f":"'[1]MONE(M)CAPARD'!J383","v":10.074473565797478},{"$f":"'[1]MONE(M)CAPARD'!K383","v":5.1173655518885157},{"$f":"'[1]MONE(M)CAPARD'!L383","v":5.9646765769385164},{"$f":"'[1]MONE(M)CAPARD'!M383","v":12.220880932082988},{"$f":"'[1]MONE(M)CAPARD'!N383","v":10.542903596274284},{"$f":"'[1]MONE(M)CAPARD'!O383","v":2.5071957059598504},{"$f":"'[1]MONE(M)CAPARD'!P383","v":8.9278910102938251},null,null,{"$f":"'[1]MONE(M)CAPARD'!Q383","v":5.8058735600000002},{"$f":"'[1]MONE(M)CAPARD'!R383","v":6.23},{"$f":"'[1]MONE(M)CAPARD'!S383","v":6.04},{"$f":"'[1]MONE(M)CAPARD'!T383","v":7.64},{"$f":"'[1]MONE(M)CAPARD'!U383","v":8.8217755071920294},{"$f":"'[1]MONE(M)CAPARD'!V383","v":3.7345999999999999},{"$f":"'[1]MONE(M)CAPARD'!W383","v":8.2899999999999991},null,null,{"$f":"'[1]MONE(M)CAPARD'!AS383","v":0.75},{"$f":"'[1]MONE(M)CAPARD'!AT383","v":"n.a."},{"$f":"'[1]MONE(M)CAPARD'!AU383","v":1.75},{"$f":"'[1]MONE(M)CAPARD'!AV383","v":3},{"$f":"'[1]MONE(M)CAPARD'!AW383","v":3.75},{"$f":"'[1]MONE(M)CAPARD'!AX383","v":3},{"$f":"'[1]MONE(M)CAPARD'!AY383","v":"n.a."},null,null,{"$f":"+'Datos_Regional (M)'!CF376","v":3.5514323895042388},{"$f":"+'Datos_Regional (M)'!CG376","v":1.8119634277849572},{"$f":"+'Datos_Regional (M)'!CH376","v":6.3328255425260327},{"$f":"+'Datos_Regional (M)'!CI376","v":2.9604159905775473},{"$f":"+'Datos_Regional (M)'!CJ376","v":-3.703895100710064},{"$f":"+'Datos_Regional (M)'!CK376","v":4.5338991521331362},{"$f":"+'Datos_Regional (M)'!CL376","v":-3.2088581193290722},null,null,1095.2668618608332,420.29,924.55833333333339,350.86767490612982,446.88460864166655,852.99166666666667,793.92520983250006,4090.8591454086295,4884.7843552411305,null,null,1529.883220139167,869.39333333333332,1533.3666666666668,753.81030355720316,527.90531170833322,1424.3916666666667,1222.4600177500004,6638.7505020713697,7861.2105198213685,null,null,-2547.8913566627402,-2976.4261645802399,null,null,{"$f":"'[1]EXT Comercio(M)'!C383","v":1227.5459445500001},{"$f":"'[1]EXT Comercio(M)'!D383","v":531.21999999999991},{"$f":"'[1]EXT Comercio(M)'!E383","v":1031.0999999999999},{"$f":"'[1]EXT Comercio(M)'!F383","v":406.31263907999994},{"$f":"'[1]EXT Comercio(M)'!G383","v":525.68310871000006},{"$f":"'[1]EXT Comercio(M)'!H383","v":961.50000000000011},{"$f":"'[1]EXT Comercio(M)'!I383","v":801.17000000000007},{"$f":"'[1]EXT Comercio(M)'!K383","v":4683.3616923399995},{"$f":"'[1]EXT Comercio(M)'!L383","v":5484.5316923399996},null,null,{"$f":"'[1]EXT Comercio(M)'!AG383","v":1664.91246211},{"$f":"'[1]EXT Comercio(M)'!AH383","v":984.55},{"$f":"'[1]EXT Comercio(M)'!AI383","v":1759.9},{"$f":"'[1]EXT Comercio(M)'!AJ383","v":927.15879169688867},{"$f":"'[1]EXT Comercio(M)'!AK383","v":575.64646934000007},{"$f":"'[1]EXT Comercio(M)'!AL383","v":1608.4},{"$f":"'[1]EXT Comercio(M)'!AM383","v":1460.54},{"$f":"'[1]EXT Comercio(M)'!AO383","v":7520.5677231468908},{"$f":"'[1]EXT Comercio(M)'!AP383","v":8981.107723146888},null,null,{"$f":"'[1]EXT Comercio(M)'!$BS383","v":-2837.2060308068876},{"$f":"'[1]EXT Comercio(M)'!$BT383","v":-3496.5760308068875}]
[null,null,"Marzo",{"$f":"'[1]REAL IPC(M)'!AD384","v":0.47273206790342198},{"$f":"'[1]REAL IPC(M)'!AE384","v":1.7694173897368006},{"$f":"'[1]REAL IPC(M)'!AF384","v":5.8416331143603939},{"$f":"'[1]REAL IPC(M)'!AG384","v":3.9434961742201229},{"$f":"'[1]REAL IPC(M)'!AH384","v":4.1108997892738905},{"$f":"'[1]REAL IPC(M)'!AI384","v":8.2965106026717894},{"$f":"'[1]REAL IPC(M)'!AJ384","v":0.28839027278834267},null,null,{"$f":"'[1]REAL IMAE(M)'!AG384","v":8.5090888747241991},{"$f":"'[1]REAL IMAE(M)'!AH384","v":11.023045308574515},{"$f":"'[1]REAL IMAE(M)'!AI384","v":9.6021091602895385},{"$f":"'[1]REAL IMAE(M)'!AJ384","v":12.412754292052842},{"$f":"'[1]REAL IMAE(M)'!AK384","v":5.139639158337153},{"$f":"'[1]REAL IMAE(M)'!AL384","v":12.049452851289873},{"$f":"'[1]REAL IMAE(M)'!AM384","v":-4.9460331840208065},null,null,{"$f":"'[1]EXT ITCER(M)'!C384","v":86.727355516109469},{"$f":"'[1]EXT ITCER(M)'!D384","v":98.329667052534802},{"$f":"'[1]EXT ITCER(M)'!E384","v":52.53932447120723},{"$f":"'[1]EXT ITCER(M)'!F384","v":75.146532662866349},{"$f":"'[1]EXT ITCER(M)'!G384","v":109.08021724190991},{"$f":"'[1]EXT ITCER(M)'!H384","v":118.4363335237835},{"$f":"'[1]EXT ITCER(M)'!I384","v":96.633744635911157},null,null,{"$f":"'[1]EXT TC(M)'!J384","v":7.0395354823751717},{"$f":"'[1]EXT TC(M)'!K384","v":0},{"$f":"'[1]EXT TC(M)'!L384","v":0.39551609375060859},{"$f":"'[1]EXT TC(M)'!M384","v":-2.776316179079191},{"$f":"'[1]EXT TC(M)'!N384","v":2.7303360306820728},{"$f":"'[1]EXT TC(M)'!O384","v":6.5558402832781955},{"$f":"'[1]EXT TC(M)'!P384","v":0},null,null,{"$f":"'[1]EXT RIN(M)'!C384","v":7169.0402848000003},{"$f":"'[1]EXT RIN(M)'!D384","v":2447.37},{"$f":"'[1]EXT RIN(M)'!E384","v":18699.8},{"$f":"'[1]EXT RIN(M)'!F384","v":8252.9434180912322},{"$f":"'[1]EXT RIN(M)'!G384","v":3227.8067002013695},{"$f":"'[1]EXT RIN(M)'!H384","v":12174.180959732435},{"$f":"'[1]EXT RIN(M)'!I384","v":7891.2991930999997},null,null,{"$f":"'[1]EXT RIN(M)'!P384","v":65.042750181692668},{"$f":"'[1]EXT RIN(M)'!Q384","v":100.44196813511938},{"$f":"'[1]EXT RIN(M)'!R384","v":122.48858836590802},{"$f":"'[1]EXT RIN(M)'!S384","v":99.625670246197089},{"$f":"'[1]EXT RIN(M)'!T384","v":134.01606909466858},{"$f":"'[1]EXT RIN(M)'!U384","v":110.61318433100946},{"$f":"'[1]EXT RIN(M)'!V384","v":339.61466395777541},null,null,{"$f":"+'[1]MONE(M)CAPARD'!AE384","v":2.9134949073726943},{"$f":"'[1]MONE(M)CAPARD'!AF384","v":2.2212789148689516},{"$f":"'[1]MONE(M)CAPARD'!AG384","v":-1.5037873731980844},{"$f":"'[1]MONE(M)CAPARD'!AH384","v":2.6807870894677306},{"$f":"'[1]MONE(M)CAPARD'!AI384","v":2.576036143450648},{"$f":"'[1]MONE(M)CAPARD'!AJ384","v":-4.4974769506115795},{"$f":"'[1]MONE(M)CAPARD'!AK384","v":1.606975366568369},null,null,{"$f":"'[1]MONE(M)CAPARD'!AL384","v":2.55742899},{"$f":"'[1]MONE(M)CAPARD'!AM384","v":4.03},{"$f":"'[1]MONE(M)CAPARD'!AN384","v":2.61},{"$f":"'[1]MONE(M)CAPARD'!AO384","v":3.21},{"$f":"'[1]MONE(M)CAPARD'!AP384","v":3.4407022277322801},{"$f":"'[1]MONE(M)CAPARD'!AQ384","v":0.75700000000000001},{"$f":"'[1]MONE(M)CAPARD'!AR384","v":1.9},null,null,{"$f":"'[1]MONE(M)CAPARD'!J384","v":9.0697997601357887},{"$f":"'[1]MONE(M)CAPARD'!K384","v":4.2061581170994158},{"$f":"'[1]MONE(M)CAPARD'!L384","v":6.120811532301115},{"$f":"'[1]MONE(M)CAPARD'!M384","v":11.772265005662522},{"$f":"'[1]MONE(M)CAPARD'!N384","v":8.0876489310919233},{"$f":"'[1]MONE(M)CAPARD'!O384","v":0.65144240881091342},{"$f":"'[1]MONE(M)CAPARD'!P384","v":7.9985427080767426},null,null,{"$f":"'[1]MONE(M)CAPARD'!Q384","v":6.0726114400000002},{"$f":"'[1]MONE(M)CAPARD'!R384","v":6.05},{"$f":"'[1]MONE(M)CAPARD'!S384","v":5.99},{"$f":"'[1]MONE(M)CAPARD'!T384","v":7.61},{"$f":"'[1]MONE(M)CAPARD'!U384","v":8.5509152280162102},{"$f":"'[1]MONE(M)CAPARD'!V384","v":3.5796000000000001},{"$f":"'[1]MONE(M)CAPARD'!W384","v":8.31},null,null,{"$f":"'[1]MONE(M)CAPARD'!AS384","v":0.75},{"$f":"'[1]MONE(M)CAPARD'!AT384","v":"n.a."},{"$f":"'[1]MONE(M)CAPARD'!AU384","v":1.75},{"$f":"'[1]MONE(M)CAPARD'!AV384","v":3},{"$f":"'[1]MONE(M)CAPARD'!AW384","v":3.5},{"$f":"'[1]MONE(M)CAPARD'!AX384","v":3},{"$f":"'[1]MONE(M)CAPARD'!AY384","v":"n.a."},null,null,{"$f":"+'Datos_Regional (M)'!CF377","v":2.7957914923438132},{"$f":"+'Datos_Regional (M)'!CG377","v":1.2878825412196315},{"$f":"+'Datos_Regional (M)'!CH377","v":4.7633679965661146},{"$f":"+'Datos_Regional (M)'!CI377","v":3.1190007356207916},{"$f":"+'Datos_Regional (M)'!CJ377","v":-3.5056394304158744},{"$f":"+'Datos_Regional (M)'!CK377","v":5.4199126963489608},{"$f":"+'Datos_Regional (M)'!CL377","v":-1.7740946210972441},null,null,1114.5411261183333,431.67416666666674,945.14166666666677,356.56329536279651,459.03706070166658,876.3416666666667,820.28764133250013,4183.2989821827969,5003.5866235152971,null,null,{"$f":"IF(ES189=\"\",\"\",+AVERAGE(ES178:ES189))","v":1555.4548870116669},{"$f":"IF(ET189=\"\",\"\",+AVERAGE(ET178:ET189))","v":905.77833333333319},1590.2416666666666,782.7066388526041,{"$f":"IF(EW189=\"\",\"\",+AVERAGE(EW178:EW189))","v":543.3605273899999},{"$f":"IF(EX189=\"\",\"\",+AVERAGE(EX178:EX189))","v":1455.7083333333333},{"$f":"IF(EY189=\"\",\"\",+AVERAGE(EY178:EY189))","v":1270.7256080833333},{"$f":"IF(EZ189=\"\",\"\",+AVERAGE(EZ178:EZ189))","v":6833.2503865876051},8103.9759946709355,null,null,-2649.9514044048078,-3100.3893711556411,null,null,{"$f":"'[1]EXT Comercio(M)'!C384","v":1475.82713233},{"$f":"'[1]EXT Comercio(M)'!D384","v":574.18000000000006},{"$f":"'[1]EXT Comercio(M)'!E384","v":1250.5999999999999},{"$f":"'[1]EXT Comercio(M)'!F384","v":473.40399113000018},{"$f":"'[1]EXT Comercio(M)'!G384","v":656.28099012999996},{"$f":"'[1]EXT Comercio(M)'!H384","v":1154.5},{"$f":"'[1]EXT Comercio(M)'!I384","v":1169.45},{"$f":"'[1]EXT Comercio(M)'!K384","v":5584.7921135900033},{"$f":"'[1]EXT Comercio(M)'!L384","v":6754.242113590004},null,null,{"$f":"'[1]EXT Comercio(M)'!AG384","v":1980.9206177799999},{"$f":"'[1]EXT Comercio(M)'!AH384","v":1318.0599999999997},{"$f":"'[1]EXT Comercio(M)'!AI384","v":2151.5},{"$f":"'[1]EXT Comercio(M)'!AJ384","v":1068.3337372231497},{"$f":"'[1]EXT Comercio(M)'!AK384","v":724.76561616000015},{"$f":"'[1]EXT Comercio(M)'!AL384","v":1880.9999999999998},{"$f":"'[1]EXT Comercio(M)'!AM384","v":1776.8000000000002},{"$f":"'[1]EXT Comercio(M)'!AO384","v":9124.5799711631498},{"$f":"'[1]EXT Comercio(M)'!AP384","v":10901.379971163151},null,null,{"$f":"'[1]EXT Comercio(M)'!$BS384","v":-3539.787857573152},{"$f":"'[1]EXT Comercio(M)'!$BT384","v":-4147.1378575731524}]
[null,null,"Abril",{"$f":"'[1]REAL IPC(M)'!AD385","v":1.2098355534775576},{"$f":"'[1]REAL IPC(M)'!AE385","v":2.7946132328563618},{"$f":"'[1]REAL IPC(M)'!AF385","v":5.2040959461354941},{"$f":"'[1]REAL IPC(M)'!AG385","v":3.9577836411609493},{"$f":"'[1]REAL IPC(M)'!AH385","v":4.4030833590771996},{"$f":"'[1]REAL IPC(M)'!AI385","v":9.6452641918615676},{"$f":"'[1]REAL IPC(M)'!AJ385","v":1.7052889858233271},null,null,{"$f":"'[1]REAL IMAE(M)'!AG385","v":10.180766832236248},{"$f":"'[1]REAL IMAE(M)'!AH385","v":21.624845168665743},{"$f":"'[1]REAL IMAE(M)'!AI385","v":12.516060923647817},{"$f":"'[1]REAL IMAE(M)'!AJ385","v":12.43771323205107},{"$f":"'[1]REAL IMAE(M)'!AK385","v":6.5196502552710784},{"$f":"'[1]REAL IMAE(M)'!AL385","v":15.052164386537578},{"$f":"'[1]REAL IMAE(M)'!AM385","v":28.878185445228716},null,null,{"$f":"'[1]EXT ITCER(M)'!C385","v":87.355840883698548},{"$f":"'[1]EXT ITCER(M)'!D385","v":98.329131731707591},{"$f":"'[1]EXT ITCER(M)'!E385","v":52.794974872937772},{"$f":"'[1]EXT ITCER(M)'!F385","v":75.281807648744206},{"$f":"'[1]EXT ITCER(M)'!G385","v":109.85077490191181},{"$f":"'[1]EXT ITCER(M)'!H385","v":117.9185404597153},{"$f":"'[1]EXT ITCER(M)'!I385","v":97.132471892599142},null,null,{"$f":"'[1]EXT TC(M)'!J385","v":7.8255294121806509},{"$f":"'[1]EXT TC(M)'!K385","v":0},{"$f":"'[1]EXT TC(M)'!L385","v":8.984749330695227E-2},{"$f":"'[1]EXT TC(M)'!M385","v":-3.1929575805388217},{"$f":"'[1]EXT TC(M)'!N385","v":2.7080140708263993},{"$f":"'[1]EXT TC(M)'!O385","v":4.9443652663852111},{"$f":"'[1]EXT TC(M)'!P385","v":0},null,null,{"$f":"'[1]EXT RIN(M)'!C385","v":7098.4088019800001},{"$f":"'[1]EXT RIN(M)'!D385","v":2496.64},{"$f":"'[1]EXT RIN(M)'!E385","v":18812.2},{"$f":"'[1]EXT RIN(M)'!F385","v":8482.9648848130546},{"$f":"'[1]EXT RIN(M)'!G385","v":3354.4646831551927},{"$f":"'[1]EXT RIN(M)'!H385","v":12245.922034553323},{"$f":"'[1]EXT RIN(M)'!I385","v":8445.1795811499996},null,null,{"$f":"'[1]EXT RIN(M)'!P385","v":64.073392595439628},{"$f":"'[1]EXT RIN(M)'!Q385","v":105.00125329937366},{"$f":"'[1]EXT RIN(M)'!R385","v":123.79530225687836},{"$f":"'[1]EXT RIN(M)'!S385","v":103.39700172594415},{"$f":"'[1]EXT RIN(M)'!T385","v":136.88639767633455},{"$f":"'[1]EXT RIN(M)'!U385","v":105.70167148004226},{"$f":"'[1]EXT RIN(M)'!V385","v":380.41484733647746},null,null,{"$f":"+'[1]MONE(M)CAPARD'!AE385","v":2.0651791746248169},{"$f":"'[1]MONE(M)CAPARD'!AF385","v":1.0753353044285028},{"$f":"'[1]MONE(M)CAPARD'!AG385","v":-0.93541599999999203},{"$f":"'[1]MONE(M)CAPARD'!AH385","v":2.4116304692828807},{"$f":"'[1]MONE(M)CAPARD'!AI385","v":2.0246923994181452},{"$f":"'[1]MONE(M)CAPARD'!AJ385","v":-5.8580406907700446},{"$f":"'[1]MONE(M)CAPARD'!AK385","v":0.14228464971653954},null,null,{"$f":"'[1]MONE(M)CAPARD'!AL385","v":2.4461444499999998},{"$f":"'[1]MONE(M)CAPARD'!AM385","v":3.9},{"$f":"'[1]MONE(M)CAPARD'!AN385","v":2.5499999999999998},{"$f":"'[1]MONE(M)CAPARD'!AO385","v":3.0716117347402827},{"$f":"'[1]MONE(M)CAPARD'!AP385","v":3.5528119037457899},{"$f":"'[1]MONE(M)CAPARD'!AQ385","v":0.7177},{"$f":"'[1]MONE(M)CAPARD'!AR385","v":1.85},null,null,{"$f":"'[1]MONE(M)CAPARD'!J385","v":9.0520091613839728},{"$f":"'[1]MONE(M)CAPARD'!K385","v":3.2836222259015799},{"$f":"'[1]MONE(M)CAPARD'!L385","v":6.7258826666666751},{"$f":"'[1]MONE(M)CAPARD'!M385","v":11.901192893401014},{"$f":"'[1]MONE(M)CAPARD'!N385","v":8.4606371587910196},{"$f":"'[1]MONE(M)CAPARD'!O385","v":0.34022062958020677},{"$f":"'[1]MONE(M)CAPARD'!P385","v":6.4644730669740484},null,null,{"$f":"'[1]MONE(M)CAPARD'!Q385","v":5.7733076900000002},{"$f":"'[1]MONE(M)CAPARD'!R385","v":6.17},{"$f":"'[1]MONE(M)CAPARD'!S385","v":5.95},{"$f":"'[1]MONE(M)CAPARD'!T385","v":7.62},{"$f":"'[1]MONE(M)CAPARD'!U385","v":9.0261059479174293},{"$f":"'[1]MONE(M)CAPARD'!V385","v":4.2447999999999997},{"$f":"'[1]MONE(M)CAPARD'!W385","v":8.2799999999999994},null,null,{"$f":"'[1]MONE(M)CAPARD'!AS385","v":0.75},{"$f":"'[1]MONE(M)CAPARD'!AT385","v":"n.a."},{"$f":"'[1]MONE(M)CAPARD'!AU385","v":1.75},{"$f":"'[1]MONE(M)CAPARD'!AV385","v":3},{"$f":"'[1]MONE(M)CAPARD'!AW385","v":3.5},{"$f":"'[1]MONE(M)CAPARD'!AX385","v":3},{"$f":"'[1]MONE(M)CAPARD'!AY385","v":"n.a."},null,null,{"$f":"+'Datos_Regional (M)'!CF378","v":4.6455501276852385},{"$f":"+'Datos_Regional (M)'!CG378","v":1.8846033625514513},{"$f":"+'Datos_Regional (M)'!CH378","v":4.185759472521533},{"$f":"+'Datos_Regional (M)'!CI378","v":2.3218278325401798},{"$f":"+'Datos_Regional (M)'!CJ378","v":-1.5201908734486014},{"$f":"+'Datos_Regional (M)'!CK378","v":4.9930397953873662},{"$f":"+'Datos_Regional (M)'!CL378","v":-1.9603617977768661},null,null,{"$f":"IF(EH190=\"\",\"\",+AVERAGE(EH179:EH190))","v":1148.1718244599999},{"$f":"IF(EI190=\"\",\"\",+AVERAGE(EI179:EI190))","v":457.96750000000003},{"$f":"IF(EJ190=\"\",\"\",+AVERAGE(EJ179:EJ190))","v":963.7166666666667},{"$f":"IF(EK190=\"\",\"\",+AVERAGE(EK179:EK190))","v":364.69634109159188},{"$f":"IF(EL190=\"\",\"\",+AVERAGE(EL179:EL190))","v":475.30438763666666},{"$f":"IF(EM190=\"\",\"\",+AVERAGE(EM179:EM190))","v":914.4083333333333},{"$f":"IF(EN190=\"\",\"\",+AVERAGE(EN179:EN190))","v":871.18085699916685},{"$f":"IF(EO190=\"\",\"\",+AVERAGE(EO179:EO190))","v":4324.2650531882582},{"$f":"IF(EP190=\"\",\"\",+AVERAGE(EP179:EP190))","v":5195.4459101874263},null,null,{"$f":"IF(ES190=\"\",\"\",+AVERAGE(ES179:ES190))","v":1600.2691392199997},{"$f":"IF(ET190=\"\",\"\",+AVERAGE(ET179:ET190))","v":953.66666666666652},{"$f":"IF(EU190=\"\",\"\",+AVERAGE(EU179:EU190))","v":1649.9416666666666},{"$f":"IF(EV190=\"\",\"\",+AVERAGE(EV179:EV190))","v":815.40049805900082},{"$f":"IF(EW190=\"\",\"\",+AVERAGE(EW179:EW190))","v":576.67916562583321},{"$f":"IF(EX190=\"\",\"\",+AVERAGE(EX179:EX190))","v":1516.8999999999999},{"$f":"IF(EY190=\"\",\"\",+AVERAGE(EY179:EY190))","v":1305.491958916667},{"$f":"IF(EZ190=\"\",\"\",+AVERAGE(EZ179:EZ190))","v":7112.8571362381672},{"$f":"IF(FA190=\"\",\"\",+AVERAGE(FA179:FA190))","v":8418.349095154832},null,null,{"$f":"IF(FD190=\"\",\"\",+AVERAGE(FD179:FD190))","v":-2788.5920830499094},{"$f":"IF(FE190=\"\",\"\",+AVERAGE(FE179:FE190))","v":-3222.9031849674088},null,null,{"$f":"'[1]EXT Comercio(M)'!C385","v":1308.35802853},{"$f":"'[1]EXT Comercio(M)'!D385","v":543.45000000000005},{"$f":"'[1]EXT Comercio(M)'!E385","v":1049.9000000000001},{"$f":"'[1]EXT Comercio(M)'!F385","v":457.26822471237176},{"$f":"'[1]EXT Comercio(M)'!G385","v":562.13436058999991},{"$f":"'[1]EXT Comercio(M)'!H385","v":1012.0000000000001},{"$f":"'[1]EXT Comercio(M)'!I385","v":1010.46},{"$f":"'[1]EXT Comercio(M)'!K385","v":4933.1106138323703},{"$f":"'[1]EXT Comercio(M)'!L385","v":5943.5706138323694},null,null,{"$f":"'[1]EXT Comercio(M)'!AG385","v":1935.11230606},{"$f":"'[1]EXT Comercio(M)'!AH385","v":1220.8399999999997},{"$f":"'[1]EXT Comercio(M)'!AI385","v":2079.3000000000002},{"$f":"'[1]EXT Comercio(M)'!AJ385","v":998.62763605368525},{"$f":"'[1]EXT Comercio(M)'!AK385","v":838.13529739000001},{"$f":"'[1]EXT Comercio(M)'!AL385","v":1934.6},{"$f":"'[1]EXT Comercio(M)'!AM385","v":1417.35},{"$f":"'[1]EXT Comercio(M)'!AO385","v":9006.6152395036843},{"$f":"'[1]EXT Comercio(M)'!AP385","v":10423.965239503683},null,null,{"$f":"'[1]EXT Comercio(M)'!$BS385","v":-4073.504625671314},{"$f":"'[1]EXT Comercio(M)'!$BT385","v":-4480.3946256713134}]
[null,null,"Mayo ",{"$f":"'[1]REAL IPC(M)'!AD386","v":1.3418059270051181},{"$f":"'[1]REAL IPC(M)'!AE386","v":2.590073848836751},{"$f":"'[1]REAL IPC(M)'!AF386","v":5.1732586629331569},{"$f":"'[1]REAL IPC(M)'!AG386","v":4.8391856004721259},{"$f":"'[1]REAL IPC(M)'!AH386","v":3.9732654377111127},{"$f":"'[1]REAL IPC(M)'!AI386","v":10.480820683305565},{"$f":"'[1]REAL IPC(M)'!AJ386","v":1.9240394409096875},null,null,{"$f":"'[1]REAL IMAE(M)'!AG386","v":11.516702100034529},{"$f":"'[1]REAL IMAE(M)'!AH386","v":25.240665488083636},{"$f":"'[1]REAL IMAE(M)'!AI386","v":13.923315019162052},{"$f":"'[1]REAL IMAE(M)'!AJ386","v":12.685394878339434},{"$f":"'[1]REAL IMAE(M)'!AK386","v":7.6600133810920106},{"$f":"'[1]REAL IMAE(M)'!AL386","v":16.30040500943489},{"$f":"'[1]REAL IMAE(M)'!AM386","v":29.482978193126723},null,null,{"$f":"'[1]EXT ITCER(M)'!C386","v":88.307538653533328},{"$f":"'[1]EXT ITCER(M)'!D386","v":98.990181879161696},{"$f":"'[1]EXT ITCER(M)'!E386","v":53.068377575554287},{"$f":"'[1]EXT ITCER(M)'!F386","v":75.612097891827446},{"$f":"'[1]EXT ITCER(M)'!G386","v":110.7201902598994},{"$f":"'[1]EXT ITCER(M)'!H386","v":117.9711083060875},{"$f":"'[1]EXT ITCER(M)'!I386","v":97.612431413149267},null,null,{"$f":"'[1]EXT TC(M)'!J386","v":8.04753591897577},{"$f":"'[1]EXT TC(M)'!K386","v":0},{"$f":"'[1]EXT TC(M)'!L386","v":0.21251023812344405},{"$f":"'[1]EXT TC(M)'!M386","v":-3.350983242494777},{"$f":"'[1]EXT TC(M)'!N386","v":2.3942536168295332},{"$f":"'[1]EXT TC(M)'!O386","v":2.6783341318556166},{"$f":"'[1]EXT TC(M)'!P386","v":0},null,null,{"$f":"'[1]EXT RIN(M)'!C386","v":6831.1434277199996},{"$f":"'[1]EXT RIN(M)'!D386","v":2985.16},{"$f":"'[1]EXT RIN(M)'!E386","v":18929.7},{"$f":"'[1]EXT RIN(M)'!F386","v":8540.1575189652613},{"$f":"'[1]EXT RIN(M)'!G386","v":3509.1089193086445},{"$f":"'[1]EXT RIN(M)'!H386","v":12417.540378595846},{"$f":"'[1]EXT RIN(M)'!I386","v":8286.6627843499991},null,null,{"$f":"'[1]EXT RIN(M)'!P386","v":61.321828324155661},{"$f":"'[1]EXT RIN(M)'!Q386","v":112.62438479633433},{"$f":"'[1]EXT RIN(M)'!R386","v":124.65009700390961},{"$f":"'[1]EXT RIN(M)'!S386","v":103.27167460387416},{"$f":"'[1]EXT RIN(M)'!T386","v":139.22573194552194},{"$f":"'[1]EXT RIN(M)'!U386","v":103.0453565707417},{"$f":"'[1]EXT RIN(M)'!V386","v":376.81940202434487},null,null,{"$f":"+'[1]MONE(M)CAPARD'!AE386","v":1.8335908423946079},{"$f":"'[1]MONE(M)CAPARD'!AF386","v":1.3158447991297118},{"$f":"'[1]MONE(M)CAPARD'!AG386","v":-0.93489416932908276},{"$f":"'[1]MONE(M)CAPARD'!AH386","v":1.2598480157613188},{"$f":"'[1]MONE(M)CAPARD'!AI386","v":1.377260865608344},{"$f":"'[1]MONE(M)CAPARD'!AJ386","v":-6.404750290178467},{"$f":"'[1]MONE(M)CAPARD'!AK386","v":-9.2264240531996028E-2},null,null,{"$f":"'[1]MONE(M)CAPARD'!AL386","v":2.2766643000000002},{"$f":"'[1]MONE(M)CAPARD'!AM386","v":3.94},{"$f":"'[1]MONE(M)CAPARD'!AN386","v":2.48},{"$f":"'[1]MONE(M)CAPARD'!AO386","v":3.02},{"$f":"'[1]MONE(M)CAPARD'!AP386","v":4.1936545423834497},{"$f":"'[1]MONE(M)CAPARD'!AQ386","v":0.74509999999999998},{"$f":"'[1]MONE(M)CAPARD'!AR386","v":1.83},null,null,{"$f":"'[1]MONE(M)CAPARD'!J386","v":7.6361886116070483},{"$f":"'[1]MONE(M)CAPARD'!K386","v":3.5285345017853249},{"$f":"'[1]MONE(M)CAPARD'!L386","v":6.7286508253461017},{"$f":"'[1]MONE(M)CAPARD'!M386","v":10.950880945679698},{"$f":"'[1]MONE(M)CAPARD'!N386","v":7.1089190895081913},{"$f":"'[1]MONE(M)CAPARD'!O386","v":-0.42217344188867334},{"$f":"'[1]MONE(M)CAPARD'!P386","v":6.2556003412588126},null,null,{"$f":"'[1]MONE(M)CAPARD'!Q386","v":6.2203406799999996},{"$f":"'[1]MONE(M)CAPARD'!R386","v":6.21},{"$f":"'[1]MONE(M)CAPARD'!S386","v":5.92},{"$f":"'[1]MONE(M)CAPARD'!T386","v":7.65},{"$f":"'[1]MONE(M)CAPARD'!U386","v":8.7956001158216495},{"$f":"'[1]MONE(M)CAPARD'!V386","v":3.9443000000000001},{"$f":"'[1]MONE(M)CAPARD'!W386","v":8.3000000000000007},null,null,{"$f":"'[1]MONE(M)CAPARD'!AS386","v":0.75},{"$f":"'[1]MONE(M)CAPARD'!AT386","v":"n.a."},{"$f":"'[1]MONE(M)CAPARD'!AU386","v":1.75},{"$f":"'[1]MONE(M)CAPARD'!AV386","v":3},{"$f":"'[1]MONE(M)CAPARD'!AW386","v":3.5},{"$f":"'[1]MONE(M)CAPARD'!AX386","v":3},{"$f":"'[1]MONE(M)CAPARD'!AY386","v":"n.a."},null,null,{"$f":"+'Datos_Regional (M)'!CF379","v":3.8331539022443462},{"$f":"+'Datos_Regional (M)'!CG379","v":2.4372015796903623},{"$f":"+'Datos_Regional (M)'!CH379","v":4.5918980371282059},{"$f":"+'Datos_Regional (M)'!CI379","v":2.6909430949168422},{"$f":"+'Datos_Regional (M)'!CJ379","v":-0.34291859300399352},{"$f":"+'Datos_Regional (M)'!CK379","v":4.26385517408856},{"$f":"+'Datos_Regional (M)'!CL379","v":-1.2078558840359688},null,null,1189.7094538791666,485.64333333333343,980.86666666666679,374.64890825726928,493.82618167083336,945.88333333333333,906.12103541583349,4470.5778771406031,5376.6989125564369,null,null,1658.9238031875,1001.2083333333331,1722.0833333333333,859.14599023610265,603.54625917999999,1587.3583333333333,1372.8791890833336,7432.2660526036025,8805.1452416869361,null,null,-2961.6881754630008,-3428.4463291305001,null,null,{"$f":"'[1]EXT Comercio(M)'!C386","v":1448.5099786200001},{"$f":"'[1]EXT Comercio(M)'!D386","v":552.75999999999976},{"$f":"'[1]EXT Comercio(M)'!E386","v":1088},{"$f":"'[1]EXT Comercio(M)'!F386","v":480.88997256671712},{"$f":"'[1]EXT Comercio(M)'!G386","v":571.06994335000002},{"$f":"'[1]EXT Comercio(M)'!H386","v":1061.9000000000001},{"$f":"'[1]EXT Comercio(M)'!I386","v":877.75},{"$f":"'[1]EXT Comercio(M)'!K386","v":5203.1298945367162},{"$f":"'[1]EXT Comercio(M)'!L386","v":6080.8798945367162},null,null,{"$f":"'[1]EXT Comercio(M)'!AG386","v":1958.34860536},{"$f":"'[1]EXT Comercio(M)'!AH386","v":1170.75},{"$f":"'[1]EXT Comercio(M)'!AI386","v":2159.9},{"$f":"'[1]EXT Comercio(M)'!AJ386","v":1108.2933578511131},{"$f":"'[1]EXT Comercio(M)'!AK386","v":719.36671999999999},{"$f":"'[1]EXT Comercio(M)'!AL386","v":1954.0000000000002},{"$f":"'[1]EXT Comercio(M)'!AM386","v":1694.69},{"$f":"'[1]EXT Comercio(M)'!AO386","v":9070.6586832111134},{"$f":"'[1]EXT Comercio(M)'!AP386","v":10765.348683211116},null,null,{"$f":"'[1]EXT Comercio(M)'!$BS386","v":-3867.5287886743936},{"$f":"'[1]EXT Comercio(M)'!$BT386","v":-4684.4687886743941}]
[null,null,"Junio",{"$f":"'[1]REAL IPC(M)'!AD387","v":1.9080336324936071},{"$f":"'[1]REAL IPC(M)'!AE387","v":2.5874516893015422},{"$f":"'[1]REAL IPC(M)'!AF387","v":3.9072207648764299},{"$f":"'[1]REAL IPC(M)'!AG387","v":4.6709753231492463},{"$f":"'[1]REAL IPC(M)'!AH387","v":3.9422249165742156},{"$f":"'[1]REAL IPC(M)'!AI387","v":9.319367673985937},{"$f":"'[1]REAL IPC(M)'!AJ387","v":1.5800761799955862},null,null,{"$f":"'[1]REAL IMAE(M)'!AG387","v":12.380029652352476},{"$f":"'[1]REAL IMAE(M)'!AH387","v":20.845388982538715},{"$f":"'[1]REAL IMAE(M)'!AI387","v":13.182766470841251},{"$f":"'[1]REAL IMAE(M)'!AJ387","v":12.526223354418622},{"$f":"'[1]REAL IMAE(M)'!AK387","v":8.3152950387152735},{"$f":"'[1]REAL IMAE(M)'!AL387","v":15.8407308728603},{"$f":"'[1]REAL IMAE(M)'!AM387","v":29.905736315421304},null,null,{"$f":"'[1]EXT ITCER(M)'!C387","v":88.900844767546005},{"$f":"'[1]EXT ITCER(M)'!D387","v":99.282856961568157},{"$f":"'[1]EXT ITCER(M)'!E387","v":53.594943934109658},{"$f":"'[1]EXT ITCER(M)'!F387","v":75.954075680055951},{"$f":"'[1]EXT ITCER(M)'!G387","v":111.0612045137094},{"$f":"'[1]EXT ITCER(M)'!H387","v":118.43677450130031},{"$f":"'[1]EXT ITCER(M)'!I387","v":98.291153322112493},null,null,{"$f":"'[1]EXT TC(M)'!J387","v":7.0143810725779669},{"$f":"'[1]EXT TC(M)'!K387","v":0},{"$f":"'[1]EXT TC(M)'!L387","v":0.49040411798859357},{"$f":"'[1]EXT TC(M)'!M387","v":-3.2732525190331949},{"$f":"'[1]EXT TC(M)'!N387","v":2.0543083325439309},{"$f":"'[1]EXT TC(M)'!O387","v":-1.6908959864769879},{"$f":"'[1]EXT TC(M)'!P387","v":0},null,null,{"$f":"'[1]EXT RIN(M)'!C387","v":7137.0566722599997},{"$f":"'[1]EXT RIN(M)'!D387","v":2604.3200000000002},{"$f":"'[1]EXT RIN(M)'!E387","v":18748.8},{"$f":"'[1]EXT RIN(M)'!F387","v":8645.3844918320228},{"$f":"'[1]EXT RIN(M)'!G387","v":3497.0349520029649},{"$f":"'[1]EXT RIN(M)'!H387","v":12611.563669947142},{"$f":"'[1]EXT RIN(M)'!I387","v":8901.2020722899997},null,null,{"$f":"'[1]EXT RIN(M)'!P387","v":63.907391286651659},{"$f":"'[1]EXT RIN(M)'!Q387","v":104.6684679970468},{"$f":"'[1]EXT RIN(M)'!R387","v":127.12134755954769},{"$f":"'[1]EXT RIN(M)'!S387","v":100.94608775854907},{"$f":"'[1]EXT RIN(M)'!T387","v":142.49489779101418},{"$f":"'[1]EXT RIN(M)'!U387","v":101.64351524372567},{"$f":"'[1]EXT RIN(M)'!V387","v":406.68217130576403},null,null,{"$f":"+'[1]MONE(M)CAPARD'!AE387","v":1.2677767605305326},{"$f":"'[1]MONE(M)CAPARD'!AF387","v":1.2989388943340174},{"$f":"'[1]MONE(M)CAPARD'!AG387","v":0.23365001328727356},{"$f":"'[1]MONE(M)CAPARD'!AH387","v":1.1168565815324065},{"$f":"'[1]MONE(M)CAPARD'!AI387","v":0.72651917207399019},{"$f":"'[1]MONE(M)CAPARD'!AJ387","v":-5.6284332821384604},{"$f":"'[1]MONE(M)CAPARD'!AK387","v":0.20665845892105622},null,null,{"$f":"'[1]MONE(M)CAPARD'!AL387","v":2.31915878},{"$f":"'[1]MONE(M)CAPARD'!AM387","v":3.92},{"$f":"'[1]MONE(M)CAPARD'!AN387","v":2.4900000000000002},{"$f":"'[1]MONE(M)CAPARD'!AO387","v":2.95},{"$f":"'[1]MONE(M)CAPARD'!AP387","v":3.1856099506047801},{"$f":"'[1]MONE(M)CAPARD'!AQ387","v":0.45739999999999997},{"$f":"'[1]MONE(M)CAPARD'!AR387","v":1.79},null,null,{"$f":"'[1]MONE(M)CAPARD'!J387","v":6.8012894277810974},{"$f":"'[1]MONE(M)CAPARD'!K387","v":3.6579018670465686},{"$f":"'[1]MONE(M)CAPARD'!L387","v":8.0194419346266308},{"$f":"'[1]MONE(M)CAPARD'!M387","v":10.699264664608465},{"$f":"'[1]MONE(M)CAPARD'!N387","v":7.2902360119165079},{"$f":"'[1]MONE(M)CAPARD'!O387","v":4.8053997321614493E-2},{"$f":"'[1]MONE(M)CAPARD'!P387","v":6.5869560082424972},null,null,{"$f":"'[1]MONE(M)CAPARD'!Q387","v":6.1583083199999997},{"$f":"'[1]MONE(M)CAPARD'!R387","v":6.34},{"$f":"'[1]MONE(M)CAPARD'!S387","v":5.89},{"$f":"'[1]MONE(M)CAPARD'!T387","v":7.57},{"$f":"'[1]MONE(M)CAPARD'!U387","v":8.9144126803582697},{"$f":"'[1]MONE(M)CAPARD'!V387","v":3.9887000000000001},{"$f":"'[1]MONE(M)CAPARD'!W387","v":8.2711111111111109},null,null,{"$f":"'[1]MONE(M)CAPARD'!AS387","v":0.75},{"$f":"'[1]MONE(M)CAPARD'!AT387","v":"n.a."},{"$f":"'[1]MONE(M)CAPARD'!AU387","v":1.75},{"$f":"'[1]MONE(M)CAPARD'!AV387","v":3},{"$f":"'[1]MONE(M)CAPARD'!AW387","v":3.5},{"$f":"'[1]MONE(M)CAPARD'!AX387","v":3},{"$f":"'[1]MONE(M)CAPARD'!AY387","v":"n.a."},null,null,{"$f":"+'Datos_Regional (M)'!CF380","v":3.0248727057298641},{"$f":"+'Datos_Regional (M)'!CG380","v":3.156997192837685},{"$f":"+'Datos_Regional (M)'!CH380","v":5.6017401168971803},{"$f":"+'Datos_Regional (M)'!CI380","v":2.9947285515278921},{"$f":"+'Datos_Regional (M)'!CJ380","v":1.3544150313482106},{"$f":"+'Datos_Regional (M)'!CK380","v":2.9145246616444354},{"$f":"+'Datos_Regional (M)'!CL380","v":-0.82322930129179461},null,null,{"$f":"IF(EH192=\"\",\"\",+AVERAGE(EH181:EH192))","v":1231.2055769125},{"$f":"IF(EI192=\"\",\"\",+AVERAGE(EI181:EI192))","v":507.42249999999996},{"$f":"IF(EJ192=\"\",\"\",+AVERAGE(EJ181:EJ192))","v":1011.9333333333334},{"$f":"IF(EK192=\"\",\"\",+AVERAGE(EK181:EK192))","v":382.68280729309555},{"$f":"IF(EL192=\"\",\"\",+AVERAGE(EL181:EL192))","v":511.8707022983333},{"$f":"IF(EM192=\"\",\"\",+AVERAGE(EM181:EM192))","v":964.875},{"$f":"IF(EN192=\"\",\"\",+AVERAGE(EN181:EN192))","v":940.44973733250015},{"$f":"IF(EO192=\"\",\"\",+AVERAGE(EO181:EO192))","v":4609.9899198372632},{"$f":"IF(EP192=\"\",\"\",+AVERAGE(EP181:EP192))","v":5550.4396571697625},null,null,1741.9659159258333,1043.3308333333334,1793.625,897.31112661677992,627.40550371583322,1659.7416666666668,1408.7011825833335,7763.3800462584468,9172.0812288417801,null,null,-3153.390126421184,-3621.6415716720185,null,null,{"$f":"'[1]EXT Comercio(M)'!C387","v":1493.79386987},{"$f":"'[1]EXT Comercio(M)'!D387","v":555.01000000000022},{"$f":"'[1]EXT Comercio(M)'!E387","v":1136.0999999999999},{"$f":"'[1]EXT Comercio(M)'!F387","v":473.8392304632896},{"$f":"'[1]EXT Comercio(M)'!G387","v":610.28012003000003},{"$f":"'[1]EXT Comercio(M)'!H387","v":1041.9000000000001},{"$f":"'[1]EXT Comercio(M)'!I387","v":1201.72},{"$f":"'[1]EXT Comercio(M)'!K387","v":5310.9232203632928},{"$f":"'[1]EXT Comercio(M)'!L387","v":6512.6432203632939},null,null,{"$f":"'[1]EXT Comercio(M)'!AG387","v":2513.9607677700001},{"$f":"'[1]EXT Comercio(M)'!AH387","v":1275.4800000000005},{"$f":"'[1]EXT Comercio(M)'!AI387","v":2154.8000000000002},{"$f":"'[1]EXT Comercio(M)'!AJ387","v":1144.2221312892923},{"$f":"'[1]EXT Comercio(M)'!AK387","v":767.34125506999999},{"$f":"'[1]EXT Comercio(M)'!AL387","v":2093.9},{"$f":"'[1]EXT Comercio(M)'!AM387","v":1636.15},{"$f":"'[1]EXT Comercio(M)'!AO387","v":9949.7041541293002},{"$f":"'[1]EXT Comercio(M)'!AP387","v":11585.854154129302},null,null,{"$f":"'[1]EXT Comercio(M)'!$BS387","v":-4638.7809337660037},{"$f":"'[1]EXT Comercio(M)'!$BT387","v":-5073.210933766004}]
[null,null,"Julio",{"$f":"'[1]REAL IPC(M)'!AD388","v":1.439779728861988},{"$f":"'[1]REAL IPC(M)'!AE388","v":3.4325980884013325},{"$f":"'[1]REAL IPC(M)'!AF388","v":3.8152196329140109},{"$f":"'[1]REAL IPC(M)'!AG388","v":4.2590431738622998},{"$f":"'[1]REAL IPC(M)'!AH388","v":4.1162086857337572},{"$f":"'[1]REAL IPC(M)'!AI388","v":7.8760412420828194},{"$f":"'[1]REAL IPC(M)'!AJ388","v":2.3723976671893023},null,null,{"$f":"'[1]REAL IMAE(M)'!AG388","v":13.024235136534342},{"$f":"'[1]REAL IMAE(M)'!AH388","v":15.256713146563392},{"$f":"'[1]REAL IMAE(M)'!AI388","v":10.869225704529669},{"$f":"'[1]REAL IMAE(M)'!AJ388","v":12.319701532826635},{"$f":"'[1]REAL IMAE(M)'!AK388","v":8.4457281305492948},{"$f":"'[1]REAL IMAE(M)'!AL388","v":14.412356548477057},{"$f":"'[1]REAL IMAE(M)'!AM388","v":30.104050349305407},null,null,{"$f":"'[1]EXT ITCER(M)'!C388","v":89.711170120986353},{"$f":"'[1]EXT ITCER(M)'!D388","v":99.006350067628247},{"$f":"'[1]EXT ITCER(M)'!E388","v":53.712415672948062},{"$f":"'[1]EXT ITCER(M)'!F388","v":75.429243283791052},{"$f":"'[1]EXT ITCER(M)'!G388","v":111.34268777936551},{"$f":"'[1]EXT ITCER(M)'!H388","v":118.51233893591019},{"$f":"'[1]EXT ITCER(M)'!I388","v":98.370744106096978},null,null,{"$f":"'[1]EXT TC(M)'!J388","v":6.3830961234917671},{"$f":"'[1]EXT TC(M)'!K388","v":0},{"$f":"'[1]EXT TC(M)'!L388","v":0.61397146432520111},{"$f":"'[1]EXT TC(M)'!M388","v":-3.7054812580090406},{"$f":"'[1]EXT TC(M)'!N388","v":1.705512940323187},{"$f":"'[1]EXT TC(M)'!O388","v":-2.2433768725555336},{"$f":"'[1]EXT TC(M)'!P388","v":0},null,null,{"$f":"'[1]EXT RIN(M)'!C388","v":7375.9128943599999},{"$f":"'[1]EXT RIN(M)'!D388","v":2877.28},{"$f":"'[1]EXT RIN(M)'!E388","v":19167.099999999999},{"$f":"'[1]EXT RIN(M)'!F388","v":8632.7698387484488},{"$f":"'[1]EXT RIN(M)'!G388","v":3530.8946672313718},{"$f":"'[1]EXT RIN(M)'!H388","v":12143.783081088359},{"$f":"'[1]EXT RIN(M)'!I388","v":8210.2170179200002},null,null,{"$f":"'[1]EXT RIN(M)'!P388","v":64.112711672115665},{"$f":"'[1]EXT RIN(M)'!Q388","v":109.99424278034718},{"$f":"'[1]EXT RIN(M)'!R388","v":125.92439838530409},{"$f":"'[1]EXT RIN(M)'!S388","v":101.36798858458209},{"$f":"'[1]EXT RIN(M)'!T388","v":140.64441263530978},{"$f":"'[1]EXT RIN(M)'!U388","v":98.040795803997042},{"$f":"'[1]EXT RIN(M)'!V388","v":369.84180995235107},null,null,{"$f":"+'[1]MONE(M)CAPARD'!AE388","v":1.7352366850981917},{"$f":"'[1]MONE(M)CAPARD'!AF388","v":0.43255406889836012},{"$f":"'[1]MONE(M)CAPARD'!AG388","v":0.26468216130313083},{"$f":"'[1]MONE(M)CAPARD'!AH388","v":1.2478119753777379},{"$f":"'[1]MONE(M)CAPARD'!AI388","v":0.5055916917201444},{"$f":"'[1]MONE(M)CAPARD'!AJ388","v":-4.7059951251737306},{"$f":"'[1]MONE(M)CAPARD'!AK388","v":-0.60797410373517402},null,null,{"$f":"'[1]MONE(M)CAPARD'!AL388","v":2.2470648600000001},{"$f":"'[1]MONE(M)CAPARD'!AM388","v":3.88},{"$f":"'[1]MONE(M)CAPARD'!AN388","v":2.4500000000000002},{"$f":"'[1]MONE(M)CAPARD'!AO388","v":2.88},{"$f":"'[1]MONE(M)CAPARD'!AP388","v":3.40872484261121},{"$f":"'[1]MONE(M)CAPARD'!AQ388","v":0.46839999999999998},{"$f":"'[1]MONE(M)CAPARD'!AR388","v":1.75},null,null,{"$f":"'[1]MONE(M)CAPARD'!J388","v":8.3191151476218668},{"$f":"'[1]MONE(M)CAPARD'!K388","v":2.7529057223962048},{"$f":"'[1]MONE(M)CAPARD'!L388","v":8.0188438617401587},{"$f":"'[1]MONE(M)CAPARD'!M388","v":11.251740346950207},{"$f":"'[1]MONE(M)CAPARD'!N388","v":6.8815912485649111},{"$f":"'[1]MONE(M)CAPARD'!O388","v":1.3329732360963094},{"$f":"'[1]MONE(M)CAPARD'!P388","v":5.7609301600844489},null,null,{"$f":"'[1]MONE(M)CAPARD'!Q388","v":5.3915698399999998},{"$f":"'[1]MONE(M)CAPARD'!R388","v":6.28},{"$f":"'[1]MONE(M)CAPARD'!S388","v":5.8},{"$f":"'[1]MONE(M)CAPARD'!T388","v":7.56},{"$f":"'[1]MONE(M)CAPARD'!U388","v":9.0194777452240604},{"$f":"'[1]MONE(M)CAPARD'!V388","v":3.3791000000000002},{"$f":"'[1]MONE(M)CAPARD'!W388","v":8.27},null,null,{"$f":"'[1]MONE(M)CAPARD'!AS388","v":0.75},{"$f":"'[1]MONE(M)CAPARD'!AT388","v":"n.a."},{"$f":"'[1]MONE(M)CAPARD'!AU388","v":1.75},{"$f":"'[1]MONE(M)CAPARD'!AV388","v":3},{"$f":"'[1]MONE(M)CAPARD'!AW388","v":3.5},{"$f":"'[1]MONE(M)CAPARD'!AX388","v":3},{"$f":"'[1]MONE(M)CAPARD'!AY388","v":"n.a."},null,null,{"$f":"+'Datos_Regional (M)'!CF381","v":2.6630696477096594},{"$f":"+'Datos_Regional (M)'!CG381","v":3.5738390128527309},{"$f":"+'Datos_Regional (M)'!CH381","v":7.2892172302613467},{"$f":"+'Datos_Regional (M)'!CI381","v":3.9790913897456148},{"$f":"+'Datos_Regional (M)'!CJ381","v":2.1766163955549089},{"$f":"+'Datos_Regional (M)'!CK381","v":6.3884330421661639},{"$f":"+'Datos_Regional (M)'!CL381","v":-1.1325675683203751},null,null,1259.9157945099998,518.1450000000001,1035.875,394.72863043135726,523.84153542166666,978.69166666666661,969.14519474916654,4711.1976270296909,5680.3428217788578,null,null,{"$f":"IF(ES193=\"\",\"\",+AVERAGE(ES182:ES193))","v":1777.7586063883334},{"$f":"IF(ET193=\"\",\"\",+AVERAGE(ET182:ET193))","v":1084.0033333333331},{"$f":"IF(EU193=\"\",\"\",+AVERAGE(EU182:EU193))","v":1864.2749999999999},{"$f":"IF(EV193=\"\",\"\",+AVERAGE(EV182:EV193))","v":930.52704254739865},{"$f":"IF(EW193=\"\",\"\",+AVERAGE(EW182:EW193))","v":648.27329905833324},{"$f":"IF(EX193=\"\",\"\",+AVERAGE(EX182:EX193))","v":1726.9083333333335},{"$f":"IF(EY193=\"\",\"\",+AVERAGE(EY182:EY193))","v":1458.3528499166669},{"$f":"IF(EZ193=\"\",\"\",+AVERAGE(EZ182:EZ193))","v":8031.7456146607319},{"$f":"IF(FA193=\"\",\"\",+AVERAGE(FA182:FA193))","v":9490.0984645774006},null,null,{"$f":"IF(FD193=\"\",\"\",+AVERAGE(FD182:FD193))","v":-3320.5479876310419},{"$f":"IF(FE193=\"\",\"\",+AVERAGE(FE182:FE193))","v":-3809.7556427985414},null,null,{"$f":"'[1]EXT Comercio(M)'!C388","v":1380.8612988899999},{"$f":"'[1]EXT Comercio(M)'!D388","v":593.80000000000018},{"$f":"'[1]EXT Comercio(M)'!E388","v":1196.8000000000002},{"$f":"'[1]EXT Comercio(M)'!F388","v":476.00224483077307},{"$f":"'[1]EXT Comercio(M)'!G388","v":623.29189942000005},{"$f":"'[1]EXT Comercio(M)'!H388","v":1055.6999999999998},{"$f":"'[1]EXT Comercio(M)'!I388","v":1085.0500000000002},{"$f":"'[1]EXT Comercio(M)'!K388","v":5326.4554431407669},{"$f":"'[1]EXT Comercio(M)'!L388","v":6411.5054431407625},null,null,{"$f":"'[1]EXT Comercio(M)'!AG388","v":1870.1508538200001},{"$f":"'[1]EXT Comercio(M)'!AH388","v":1348.4799999999996},{"$f":"'[1]EXT Comercio(M)'!AI388","v":2289.4},{"$f":"'[1]EXT Comercio(M)'!AJ388","v":1085.8178926280082},{"$f":"'[1]EXT Comercio(M)'!AK388","v":786.44001084000013},{"$f":"'[1]EXT Comercio(M)'!AL388","v":2097.5},{"$f":"'[1]EXT Comercio(M)'!AM388","v":1692.28},{"$f":"'[1]EXT Comercio(M)'!AO388","v":9477.788757287999},{"$f":"'[1]EXT Comercio(M)'!AP388","v":11170.068757288005},null,null,{"$f":"'[1]EXT Comercio(M)'!$BS388","v":-4151.3333141472358},{"$f":"'[1]EXT Comercio(M)'!$BT388","v":-4758.5633141472354}]
[null,null,"Agosto",{"$f":"'[1]REAL IPC(M)'!AD389","v":1.7246570007465145},{"$f":"'[1]REAL IPC(M)'!AE389","v":4.2967857990473171},{"$f":"'[1]REAL IPC(M)'!AF389","v":3.6152002738788087},{"$f":"'[1]REAL IPC(M)'!AG389","v":4.4845661036692004},{"$f":"'[1]REAL IPC(M)'!AH389","v":4.9807367088258454},{"$f":"'[1]REAL IPC(M)'!AI389","v":7.8970977155353586},{"$f":"'[1]REAL IPC(M)'!AJ389","v":2.3927172083280328},null,null,{"$f":"'[1]REAL IMAE(M)'!AG389","v":12.830981135604869},{"$f":"'[1]REAL IMAE(M)'!AH389","v":10.586419645051794},{"$f":"'[1]REAL IMAE(M)'!AI389","v":8.2245994576559269},{"$f":"'[1]REAL IMAE(M)'!AJ389","v":12.207273743228791},{"$f":"'[1]REAL IMAE(M)'!AK389","v":8.1744566825452534},{"$f":"'[1]REAL IMAE(M)'!AL389","v":12.780612935260249},{"$f":"'[1]REAL IMAE(M)'!AM389","v":30.020259788846626},null,null,{"$f":"'[1]EXT ITCER(M)'!C389","v":89.993139709896482},{"$f":"'[1]EXT ITCER(M)'!D389","v":99.106664648222861},{"$f":"'[1]EXT ITCER(M)'!E389","v":53.735819746553993},{"$f":"'[1]EXT ITCER(M)'!F389","v":75.370679960326342},{"$f":"'[1]EXT ITCER(M)'!G389","v":111.67015892810871},{"$f":"'[1]EXT ITCER(M)'!H389","v":117.8998094622044},{"$f":"'[1]EXT ITCER(M)'!I389","v":98.662910313700522},null,null,{"$f":"'[1]EXT TC(M)'!J389","v":4.7667069061325753},{"$f":"'[1]EXT TC(M)'!K389","v":0},{"$f":"'[1]EXT TC(M)'!L389","v":0.40538589694067578},{"$f":"'[1]EXT TC(M)'!M389","v":-3.1788916055419758},{"$f":"'[1]EXT TC(M)'!N389","v":1.5902324863605193},{"$f":"'[1]EXT TC(M)'!O389","v":-2.4464679836045256},{"$f":"'[1]EXT TC(M)'!P389","v":0},null,null,{"$f":"'[1]EXT RIN(M)'!C389","v":7564.3115012799999},{"$f":"'[1]EXT RIN(M)'!D389","v":3228},{"$f":"'[1]EXT RIN(M)'!E389","v":19810.400000000001},{"$f":"'[1]EXT RIN(M)'!F389","v":8934.1514730713388},{"$f":"'[1]EXT RIN(M)'!G389","v":3949.9448551209839},{"$f":"'[1]EXT RIN(M)'!H389","v":13060.291905139489},{"$f":"'[1]EXT RIN(M)'!I389","v":7918.9460666800005},null,null,{"$f":"'[1]EXT RIN(M)'!P389","v":69.043835619868418},{"$f":"'[1]EXT RIN(M)'!Q389","v":113.22442322363399},{"$f":"'[1]EXT RIN(M)'!R389","v":131.34465842737481},{"$f":"'[1]EXT RIN(M)'!S389","v":106.28451092979756},{"$f":"'[1]EXT RIN(M)'!T389","v":154.21186668069916},{"$f":"'[1]EXT RIN(M)'!U389","v":102.43363304680986},{"$f":"'[1]EXT RIN(M)'!V389","v":357.25171023697141},null,null,{"$f":"+'[1]MONE(M)CAPARD'!AE389","v":1.2537206188310139},{"$f":"'[1]MONE(M)CAPARD'!AF389","v":-0.31332298166594302},{"$f":"'[1]MONE(M)CAPARD'!AG389","v":0.43893147426154783},{"$f":"'[1]MONE(M)CAPARD'!AH389","v":0.80914715719062591},{"$f":"'[1]MONE(M)CAPARD'!AI389","v":0.60606801849400604},{"$f":"'[1]MONE(M)CAPARD'!AJ389","v":-4.3043768682080676},{"$f":"'[1]MONE(M)CAPARD'!AK389","v":-0.69606240342068448},null,null,{"$f":"'[1]MONE(M)CAPARD'!AL389","v":2.24950758},{"$f":"'[1]MONE(M)CAPARD'!AM389","v":3.97},{"$f":"'[1]MONE(M)CAPARD'!AN389","v":2.4500000000000002},{"$f":"'[1]MONE(M)CAPARD'!AO389","v":2.81},{"$f":"'[1]MONE(M)CAPARD'!AP389","v":3.4856582043880899},{"$f":"'[1]MONE(M)CAPARD'!AQ389","v":0.62439999999999996},{"$f":"'[1]MONE(M)CAPARD'!AR389","v":1.68},null,null,{"$f":"'[1]MONE(M)CAPARD'!J389","v":8.0388237919479799},{"$f":"'[1]MONE(M)CAPARD'!K389","v":1.7481020023623173},{"$f":"'[1]MONE(M)CAPARD'!L389","v":8.2273640388554821},{"$f":"'[1]MONE(M)CAPARD'!M389","v":10.925473801560747},{"$f":"'[1]MONE(M)CAPARD'!N389","v":5.0661040629554908},{"$f":"'[1]MONE(M)CAPARD'!O389","v":1.87716104264871},{"$f":"'[1]MONE(M)CAPARD'!P389","v":5.735601620258457},null,null,{"$f":"'[1]MONE(M)CAPARD'!Q389","v":6.3469527799999996},{"$f":"'[1]MONE(M)CAPARD'!R389","v":6.12},{"$f":"'[1]MONE(M)CAPARD'!S389","v":5.76},{"$f":"'[1]MONE(M)CAPARD'!T389","v":7.49},{"$f":"'[1]MONE(M)CAPARD'!U389","v":9.7023939731559494},{"$f":"'[1]MONE(M)CAPARD'!V389","v":3.1495000000000002},{"$f":"'[1]MONE(M)CAPARD'!W389","v":8.2655555555555562},null,null,{"$f":"'[1]MONE(M)CAPARD'!AS389","v":0.75},{"$f":"'[1]MONE(M)CAPARD'!AT389","v":"n.a."},{"$f":"'[1]MONE(M)CAPARD'!AU389","v":1.75},{"$f":"'[1]MONE(M)CAPARD'!AV389","v":3},{"$f":"'[1]MONE(M)CAPARD'!AW389","v":3.5},{"$f":"'[1]MONE(M)CAPARD'!AX389","v":3},{"$f":"'[1]MONE(M)CAPARD'!AY389","v":"n.a."},null,null,{"$f":"+'Datos_Regional (M)'!CF382","v":2.3602009564714255},{"$f":"+'Datos_Regional (M)'!CG382","v":4.7042370264082312},{"$f":"+'Datos_Regional (M)'!CH382","v":7.6088716210261698},{"$f":"+'Datos_Regional (M)'!CI382","v":5.4348310991015003},{"$f":"+'Datos_Regional (M)'!CJ382","v":2.5931773188287099},{"$f":"+'Datos_Regional (M)'!CK382","v":7.5575139747398046},{"$f":"+'Datos_Regional (M)'!CL382","v":2.2824369501600161},null,null,{"$f":"IF(EH194=\"\",\"\",+AVERAGE(EH183:EH194))","v":1286.3167850016669},{"$f":"IF(EI194=\"\",\"\",+AVERAGE(EI183:EI194))","v":524.90000000000009},{"$f":"IF(EJ194=\"\",\"\",+AVERAGE(EJ183:EJ194))","v":1055.4750000000001},{"$f":"IF(EK194=\"\",\"\",+AVERAGE(EK183:EK194))","v":404.52240768101956},{"$f":"IF(EL194=\"\",\"\",+AVERAGE(EL183:EL194))","v":533.58916671833333},{"$f":"IF(EM194=\"\",\"\",+AVERAGE(EM183:EM194))","v":994.80833333333339},{"$f":"IF(EN194=\"\",\"\",+AVERAGE(EN183:EN194))","v":987.25427358249999},{"$f":"IF(EO194=\"\",\"\",+AVERAGE(EO183:EO194))","v":4799.6116927343537},{"$f":"IF(EP194=\"\",\"\",+AVERAGE(EP183:EP194))","v":5786.8659663168537},null,null,{"$f":"IF(ES194=\"\",\"\",+AVERAGE(ES183:ES194))","v":1832.52430093},{"$f":"IF(ET194=\"\",\"\",+AVERAGE(ET183:ET194))","v":1120.0200000000002},{"$f":"IF(EU194=\"\",\"\",+AVERAGE(EU183:EU194))","v":1937.075},{"$f":"IF(EV194=\"\",\"\",+AVERAGE(EV183:EV194))","v":966.07383678977146},{"$f":"IF(EW194=\"\",\"\",+AVERAGE(EW183:EW194))","v":673.99043557999994},{"$f":"IF(EX194=\"\",\"\",+AVERAGE(EX183:EX194))","v":1776.425},{"$f":"IF(EY194=\"\",\"\",+AVERAGE(EY183:EY194))","v":1498.5160700000004},{"$f":"IF(EZ194=\"\",\"\",+AVERAGE(EZ183:EZ194))","v":8306.1085732997726},{"$f":"IF(FA194=\"\",\"\",+AVERAGE(FA183:FA194))","v":9804.6246432997723},null,null,-3506.4968805654189,-4017.758676982919,null,null,{"$f":"'[1]EXT Comercio(M)'!C389","v":1351.42062794},{"$f":"'[1]EXT Comercio(M)'!D389","v":512.54},{"$f":"'[1]EXT Comercio(M)'!E389","v":1133.5},{"$f":"'[1]EXT Comercio(M)'!F389","v":426.99298591496034},{"$f":"'[1]EXT Comercio(M)'!G389","v":580.05588777999992},{"$f":"'[1]EXT Comercio(M)'!H389","v":1086.5},{"$f":"'[1]EXT Comercio(M)'!I389","v":1165.1399999999999},{"$f":"'[1]EXT Comercio(M)'!K389","v":5091.009501634966},{"$f":"'[1]EXT Comercio(M)'!L389","v":6256.1495016349654},null,null,{"$f":"'[1]EXT Comercio(M)'!AG389","v":2161.3750949599998},{"$f":"'[1]EXT Comercio(M)'!AH389","v":1220.9500000000007},{"$f":"'[1]EXT Comercio(M)'!AI389","v":2317.4},{"$f":"'[1]EXT Comercio(M)'!AJ389","v":1165.4306088771534},{"$f":"'[1]EXT Comercio(M)'!AK389","v":805.23132912999984},{"$f":"'[1]EXT Comercio(M)'!AL389","v":1935.3},{"$f":"'[1]EXT Comercio(M)'!AM389","v":1811.4},{"$f":"'[1]EXT Comercio(M)'!AO389","v":9605.6870329671656},{"$f":"'[1]EXT Comercio(M)'!AP389","v":11417.08703296716},null,null,{"$f":"'[1]EXT Comercio(M)'!$BS389","v":-4514.6775313321923},{"$f":"'[1]EXT Comercio(M)'!$BT389","v":-5160.9375313321907}]
[null,null,"Setiembre",{"$f":"'[1]REAL IPC(M)'!AD390","v":2.0863576192586506},{"$f":"'[1]REAL IPC(M)'!AE390","v":4.9697981104596254},{"$f":"'[1]REAL IPC(M)'!AF390","v":3.6710418375717833},{"$f":"'[1]REAL IPC(M)'!AG390","v":4.6153846153846088},{"$f":"'[1]REAL IPC(M)'!AH390","v":5.8583449696002114},{"$f":"'[1]REAL IPC(M)'!AI390","v":7.738118445163547},{"$f":"'[1]REAL IPC(M)'!AJ390","v":2.4859534590791688},null,null,{"$f":"'[1]REAL IMAE(M)'!AG390","v":11.970497732136346},{"$f":"'[1]REAL IMAE(M)'!AH390","v":6.9671241532039092},{"$f":"'[1]REAL IMAE(M)'!AI390","v":6.193810906927709},{"$f":"'[1]REAL IMAE(M)'!AJ390","v":7.1101495125627441},{"$f":"'[1]REAL IMAE(M)'!AK390","v":7.668831537867554},{"$f":"'[1]REAL IMAE(M)'!AL390","v":11.332796096689455},{"$f":"'[1]REAL IMAE(M)'!AM390","v":29.656226519725813},null,null,{"$f":"'[1]EXT ITCER(M)'!C390","v":90.405240420906807},{"$f":"'[1]EXT ITCER(M)'!D390","v":99.108909595825622},{"$f":"'[1]EXT ITCER(M)'!E390","v":53.797614805470587},{"$f":"'[1]EXT ITCER(M)'!F390","v":76.259362380205289},{"$f":"'[1]EXT ITCER(M)'!G390","v":111.6919874206074},{"$f":"'[1]EXT ITCER(M)'!H390","v":117.0352739153646},{"$f":"'[1]EXT ITCER(M)'!I390","v":98.919074881286207},null,null,{"$f":"'[1]EXT TC(M)'!J390","v":4.474515752507755},{"$f":"'[1]EXT TC(M)'!K390","v":0},{"$f":"'[1]EXT TC(M)'!L390","v":-0.37712114500179311},{"$f":"'[1]EXT TC(M)'!M390","v":-1.77403613156684},{"$f":"'[1]EXT TC(M)'!N390","v":1.7614858769990274},{"$f":"'[1]EXT TC(M)'!O390","v":-3.1004151255146239},{"$f":"'[1]EXT TC(M)'!P390","v":0},null,null,{"$f":"'[1]EXT RIN(M)'!C390","v":7568.2822246100004},{"$f":"'[1]EXT RIN(M)'!D390","v":3292.46},{"$f":"'[1]EXT RIN(M)'!E390","v":19827.2},{"$f":"'[1]EXT RIN(M)'!F390","v":8972.910945499576},{"$f":"'[1]EXT RIN(M)'!G390","v":3955.3646186211736},{"$f":"'[1]EXT RIN(M)'!H390","v":12932.304087663511},{"$f":"'[1]EXT RIN(M)'!I390","v":7814.9459386500002},null,null,{"$f":"'[1]EXT RIN(M)'!P390","v":68.486626647419527},{"$f":"'[1]EXT RIN(M)'!Q390","v":111.42980818271934},{"$f":"'[1]EXT RIN(M)'!R390","v":129.76907734513662},{"$f":"'[1]EXT RIN(M)'!S390","v":110.15286783874679},{"$f":"'[1]EXT RIN(M)'!T390","v":153.18566838064916},{"$f":"'[1]EXT RIN(M)'!U390","v":97.948468855489551},{"$f":"'[1]EXT RIN(M)'!V390","v":354.76527424274082},null,null,{"$f":"+'[1]MONE(M)CAPARD'!AE390","v":0.7970138221366565},{"$f":"'[1]MONE(M)CAPARD'!AF390","v":-0.80003784476741269},{"$f":"'[1]MONE(M)CAPARD'!AG390","v":0.355893175074181},{"$f":"'[1]MONE(M)CAPARD'!AH390","v":0.46323529411765313},{"$f":"'[1]MONE(M)CAPARD'!AI390","v":-3.6246428650714181E-2},{"$f":"'[1]MONE(M)CAPARD'!AJ390","v":-4.4197156158682711},{"$f":"'[1]MONE(M)CAPARD'!AK390","v":-0.82543356482207408},null,null,{"$f":"'[1]MONE(M)CAPARD'!AL390","v":2.15709091},{"$f":"'[1]MONE(M)CAPARD'!AM390","v":4.13},{"$f":"'[1]MONE(M)CAPARD'!AN390","v":2.5},{"$f":"'[1]MONE(M)CAPARD'!AO390","v":2.79},{"$f":"'[1]MONE(M)CAPARD'!AP390","v":3.3557399832027599},{"$f":"'[1]MONE(M)CAPARD'!AQ390","v":0.7288},{"$f":"'[1]MONE(M)CAPARD'!AR390","v":1.64},null,null,{"$f":"'[1]MONE(M)CAPARD'!J390","v":7.3406943155817226},{"$f":"'[1]MONE(M)CAPARD'!K390","v":1.3148561913856298},{"$f":"'[1]MONE(M)CAPARD'!L390","v":8.1883600395647846},{"$f":"'[1]MONE(M)CAPARD'!M390","v":10.662500000000007},{"$f":"'[1]MONE(M)CAPARD'!N390","v":5.3500167153566629},{"$f":"'[1]MONE(M)CAPARD'!O390","v":1.4788466494775481},{"$f":"'[1]MONE(M)CAPARD'!P390","v":5.6339882159815264},null,null,{"$f":"'[1]MONE(M)CAPARD'!Q390","v":6.5539841699999997},{"$f":"'[1]MONE(M)CAPARD'!R390","v":6.35},{"$f":"'[1]MONE(M)CAPARD'!S390","v":5.73},{"$f":"'[1]MONE(M)CAPARD'!T390","v":7.44},{"$f":"'[1]MONE(M)CAPARD'!U390","v":9.9463712344856106},{"$f":"'[1]MONE(M)CAPARD'!V390","v":2.9758},{"$f":"'[1]MONE(M)CAPARD'!W390","v":8.26},null,null,{"$f":"'[1]MONE(M)CAPARD'!AS390","v":0.75},{"$f":"'[1]MONE(M)CAPARD'!AT390","v":"n.a."},{"$f":"'[1]MONE(M)CAPARD'!AU390","v":1.75},{"$f":"'[1]MONE(M)CAPARD'!AV390","v":3},{"$f":"'[1]MONE(M)CAPARD'!AW390","v":3.5},{"$f":"'[1]MONE(M)CAPARD'!AX390","v":3},{"$f":"'[1]MONE(M)CAPARD'!AY390","v":"n.a."},null,null,{"$f":"+'Datos_Regional (M)'!CF383","v":1.6704419050744601},{"$f":"+'Datos_Regional (M)'!CG383","v":4.888693854727566},{"$f":"+'Datos_Regional (M)'!CH383","v":8.2039761762431098},{"$f":"+'Datos_Regional (M)'!CI383","v":7.1131423746938038},{"$f":"+'Datos_Regional (M)'!CJ383","v":2.2271248088619799},{"$f":"+'Datos_Regional (M)'!CK383","v":7.875555053803196},{"$f":"+'Datos_Regional (M)'!CL383","v":2.755604756630059},null,null,1310.1722333266669,531.91416666666657,1080,410.69595048685659,539.77831616749995,1006.8833333333333,1009.9812810824998,4879.4439999810229,5889.4252810635235,null,null,1878.0130095775,1152.4641666666664,2002.166666666667,1001.044579360861,693.21629540499998,1828.2583333333332,1564.6596244166667,8555.1630510100276,10119.822675426694,null,null,{"$f":"IF(FD195=\"\",\"\",+AVERAGE(FD184:FD195))","v":-3675.7190510290052},{"$f":"IF(FE195=\"\",\"\",+AVERAGE(FE184:FE195))","v":-4230.3973943631709},null,null,{"$f":"'[1]EXT Comercio(M)'!C390","v":1390.35800432},{"$f":"'[1]EXT Comercio(M)'!D390","v":569.14999999999964},{"$f":"'[1]EXT Comercio(M)'!E390","v":1188.5},{"$f":"'[1]EXT Comercio(M)'!F390","v":421.4833674343933},{"$f":"'[1]EXT Comercio(M)'!G390","v":535.4179624300001},{"$f":"'[1]EXT Comercio(M)'!H390","v":1070.5999999999999},{"$f":"'[1]EXT Comercio(M)'!I390","v":1215.92},{"$f":"'[1]EXT Comercio(M)'!K390","v":5175.5093341843894},{"$f":"'[1]EXT Comercio(M)'!L390","v":6391.429334184395},null,null,{"$f":"'[1]EXT Comercio(M)'!AG390","v":1978.5395227899999},{"$f":"'[1]EXT Comercio(M)'!AH390","v":1248.4699999999993},{"$f":"'[1]EXT Comercio(M)'!AI390","v":2276.1},{"$f":"'[1]EXT Comercio(M)'!AJ390","v":1164.0558316804527},{"$f":"'[1]EXT Comercio(M)'!AK390","v":764.77043494000009},{"$f":"'[1]EXT Comercio(M)'!AL390","v":2058},{"$f":"'[1]EXT Comercio(M)'!AM390","v":1936.35},{"$f":"'[1]EXT Comercio(M)'!AO390","v":9489.9357894104469},{"$f":"'[1]EXT Comercio(M)'!AP390","v":11426.285789410438},null,null,{"$f":"'[1]EXT Comercio(M)'!$BS390","v":-4314.4264552260574},{"$f":"'[1]EXT Comercio(M)'!$BT390","v":-5034.8564552260577}]
[null,null,"Octubre",{"$f":"'[1]REAL IPC(M)'!AD391","v":2.5039199664197187},{"$f":"'[1]REAL IPC(M)'!AE391","v":5.4946149327683402},{"$f":"'[1]REAL IPC(M)'!AF391","v":2.9560982209294298},{"$f":"'[1]REAL IPC(M)'!AG391","v":4.6504910456383666},{"$f":"'[1]REAL IPC(M)'!AH391","v":6.4081125497371962},{"$f":"'[1]REAL IPC(M)'!AI391","v":7.7152484604361167},{"$f":"'[1]REAL IPC(M)'!AJ391","v":2.9430143194188476},null,null,{"$f":"'[1]REAL IMAE(M)'!AG391","v":11.119036469160255},{"$f":"'[1]REAL IMAE(M)'!AH391","v":5.1239706049304923},{"$f":"'[1]REAL IMAE(M)'!AI391","v":5.1224288549283337},{"$f":"'[1]REAL IMAE(M)'!AJ391","v":7.1099651790442326},{"$f":"'[1]REAL IMAE(M)'!AK391","v":7.1022250082116312},{"$f":"'[1]REAL IMAE(M)'!AL391","v":10.221113979065558},{"$f":"'[1]REAL IMAE(M)'!AM391","v":13.823160636911695},null,null,{"$f":"'[1]EXT ITCER(M)'!C391","v":91.469832336142161},{"$f":"'[1]EXT ITCER(M)'!D391","v":99.249537206868311},{"$f":"'[1]EXT ITCER(M)'!E391","v":54.071452448096387},{"$f":"'[1]EXT ITCER(M)'!F391","v":76.6414395127468},{"$f":"'[1]EXT ITCER(M)'!G391","v":112.11827075410829},{"$f":"'[1]EXT ITCER(M)'!H391","v":116.7448873823579},{"$f":"'[1]EXT ITCER(M)'!I391","v":99.476758704566379},null,null,{"$f":"'[1]EXT TC(M)'!J391","v":4.3899465461409903},{"$f":"'[1]EXT TC(M)'!K391","v":0},{"$f":"'[1]EXT TC(M)'!L391","v":-0.6457720221267812},{"$f":"'[1]EXT TC(M)'!M391","v":-1.2720760353763012},{"$f":"'[1]EXT TC(M)'!N391","v":1.9586060576953113},{"$f":"'[1]EXT TC(M)'!O391","v":-3.5436094349972564},{"$f":"'[1]EXT TC(M)'!P391","v":0},null,null,{"$f":"'[1]EXT RIN(M)'!C391","v":7313.0874763299998},{"$f":"'[1]EXT RIN(M)'!D391","v":3365},{"$f":"'[1]EXT RIN(M)'!E391","v":20663.2},{"$f":"'[1]EXT RIN(M)'!F391","v":8823.3398930864387},{"$f":"'[1]EXT RIN(M)'!G391","v":3937.097373981022},{"$f":"'[1]EXT RIN(M)'!H391","v":12504.833016093617},{"$f":"'[1]EXT RIN(M)'!I391","v":7414.9898952800004},null,null,{"$f":"'[1]EXT RIN(M)'!P391","v":68.712529034070997},{"$f":"'[1]EXT RIN(M)'!Q391","v":110.35931221059376},{"$f":"'[1]EXT RIN(M)'!R391","v":136.75832190865319},{"$f":"'[1]EXT RIN(M)'!S391","v":108.86783509209434},{"$f":"'[1]EXT RIN(M)'!T391","v":151.54798447357751},{"$f":"'[1]EXT RIN(M)'!U391","v":96.098052986928479},{"$f":"'[1]EXT RIN(M)'!V391","v":324.32043509593365},null,null,{"$f":"+'[1]MONE(M)CAPARD'!AE391","v":0.28884752278476467},{"$f":"'[1]MONE(M)CAPARD'!AF391","v":-0.9428110936299523},{"$f":"'[1]MONE(M)CAPARD'!AG391","v":1.0430676741130254},{"$f":"'[1]MONE(M)CAPARD'!AH391","v":0.2384211979022843},{"$f":"'[1]MONE(M)CAPARD'!AI391","v":-1.3845619975448726},{"$f":"'[1]MONE(M)CAPARD'!AJ391","v":-4.7534109920535066},{"$f":"'[1]MONE(M)CAPARD'!AK391","v":-1.2074780670031042},null,null,{"$f":"'[1]MONE(M)CAPARD'!AL391","v":2.3495268500000002},{"$f":"'[1]MONE(M)CAPARD'!AM391","v":4.5},{"$f":"'[1]MONE(M)CAPARD'!AN391","v":2.48},{"$f":"'[1]MONE(M)CAPARD'!AO391","v":2.73},{"$f":"'[1]MONE(M)CAPARD'!AP391","v":3.4321593373075401},{"$f":"'[1]MONE(M)CAPARD'!AQ391","v":0.45040000000000002},{"$f":"'[1]MONE(M)CAPARD'!AR391","v":1.7},null,null,{"$f":"'[1]MONE(M)CAPARD'!J391","v":6.3366808856755483},{"$f":"'[1]MONE(M)CAPARD'!K391","v":0.73499966583679344},{"$f":"'[1]MONE(M)CAPARD'!L391","v":8.9104986859395705},{"$f":"'[1]MONE(M)CAPARD'!M391","v":10.405597571073686},{"$f":"'[1]MONE(M)CAPARD'!N391","v":5.0145569259202221},{"$f":"'[1]MONE(M)CAPARD'!O391","v":1.8359067707022365},{"$f":"'[1]MONE(M)CAPARD'!P391","v":5.1498687502737654},null,null,{"$f":"'[1]MONE(M)CAPARD'!Q391","v":5.5061810900000001},{"$f":"'[1]MONE(M)CAPARD'!R391","v":6.27},{"$f":"'[1]MONE(M)CAPARD'!S391","v":5.69},{"$f":"'[1]MONE(M)CAPARD'!T391","v":7.45},{"$f":"'[1]MONE(M)CAPARD'!U391","v":11.1133956378064},{"$f":"'[1]MONE(M)CAPARD'!V391","v":3.0238999999999998},{"$f":"'[1]MONE(M)CAPARD'!W391","v":8.2444444444444471},null,null,{"$f":"'[1]MONE(M)CAPARD'!AS391","v":0.75},{"$f":"'[1]MONE(M)CAPARD'!AT391","v":"n.a."},{"$f":"'[1]MONE(M)CAPARD'!AU391","v":1.75},{"$f":"'[1]MONE(M)CAPARD'!AV391","v":3},{"$f":"'[1]MONE(M)CAPARD'!AW391","v":3.5},{"$f":"'[1]MONE(M)CAPARD'!AX391","v":3},{"$f":"'[1]MONE(M)CAPARD'!AY391","v":"n.a."},null,null,{"$f":"+'Datos_Regional (M)'!CF384","v":2.5302202943356278},{"$f":"+'Datos_Regional (M)'!CG384","v":5.9131467190817188},{"$f":"+'Datos_Regional (M)'!CH384","v":8.5821435147567904},{"$f":"+'Datos_Regional (M)'!CI384","v":9.3894010872680447},{"$f":"+'Datos_Regional (M)'!CJ384","v":3.3609641265409218},{"$f":"+'Datos_Regional (M)'!CK384","v":7.676879108269663},{"$f":"+'Datos_Regional (M)'!CL384","v":2.6573105539406061},null,null,1335.9590899525001,536.73583333333329,1097.2583333333332,414.04721723925621,546.96130103749999,1013.6999999999998,1030.4061870833334,4944.6617748959225,5975.0679619792545,null,null,1937.2950616441669,1199.5683333333332,2071.9416666666671,1030.1936082029749,712.90335655499985,1890.6083333333336,1616.0726890833332,8842.5103597354755,10458.583048818808,null,null,{"$f":"IF(FD196=\"\",\"\",+AVERAGE(FD185:FD196))","v":-3897.8485848395521},{"$f":"IF(FE196=\"\",\"\",+AVERAGE(FE185:FE196))","v":-4483.5150868395531},null,null,{"$f":"'[1]EXT Comercio(M)'!C391","v":1464.82477967},{"$f":"'[1]EXT Comercio(M)'!D391","v":566.36999999999989},{"$f":"'[1]EXT Comercio(M)'!E391","v":1120},{"$f":"'[1]EXT Comercio(M)'!F391","v":380.92846313926628},{"$f":"'[1]EXT Comercio(M)'!G391","v":583.33579077000002},{"$f":"'[1]EXT Comercio(M)'!H391","v":1051.9000000000001},{"$f":"'[1]EXT Comercio(M)'!I391","v":1250.6200000000001},{"$f":"'[1]EXT Comercio(M)'!K391","v":5167.3590335792614},{"$f":"'[1]EXT Comercio(M)'!L391","v":6417.9790335792568},null,null,{"$f":"'[1]EXT Comercio(M)'!AG391","v":2295.4289739000001},{"$f":"'[1]EXT Comercio(M)'!AH391","v":1531.9300000000003},{"$f":"'[1]EXT Comercio(M)'!AI391","v":2508.1999999999998},{"$f":"'[1]EXT Comercio(M)'!AJ391","v":1197.9358370781997},{"$f":"'[1]EXT Comercio(M)'!AK391","v":803.06555577999984},{"$f":"'[1]EXT Comercio(M)'!AL391","v":2339.3999999999996},{"$f":"'[1]EXT Comercio(M)'!AM391","v":1903.47},{"$f":"'[1]EXT Comercio(M)'!AO391","v":10675.960366758198},{"$f":"'[1]EXT Comercio(M)'!AP391","v":12579.430366758199},null,null,{"$f":"'[1]EXT Comercio(M)'!$BS391","v":-5508.6013331789291},{"$f":"'[1]EXT Comercio(M)'!$BT391","v":-6161.4513331789276}]
[null,null,"Noviembre",{"$f":"'[1]REAL IPC(M)'!AD392","v":3.3456433387984887},{"$f":"'[1]REAL IPC(M)'!AE392","v":6.2038288093420917},{"$f":"'[1]REAL IPC(M)'!AF392","v":2.8859737638748681},{"$f":"'[1]REAL IPC(M)'!AG392","v":4.9453709028177073},{"$f":"'[1]REAL IPC(M)'!AH392","v":7.0957104828745923},{"$f":"'[1]REAL IPC(M)'!AI392","v":8.2315459174342749},{"$f":"'[1]REAL IPC(M)'!AJ392","v":3.3604717326744367},null,null,{"$f":"'[1]REAL IMAE(M)'!AG392","v":10.337152461709938},{"$f":"'[1]REAL IMAE(M)'!AH392","v":4.4574425149074441},{"$f":"'[1]REAL IMAE(M)'!AI392","v":4.7660162621159516},{"$f":"'[1]REAL IMAE(M)'!AJ392","v":7.0017000178079254},{"$f":"'[1]REAL IMAE(M)'!AK392","v":6.6334506573782939},{"$f":"'[1]REAL IMAE(M)'!AL392","v":9.3884095927550675},{"$f":"'[1]REAL IMAE(M)'!AM392","v":12.949655126708612},null,null,{"$f":"'[1]EXT ITCER(M)'!C392","v":92.496781645925978},{"$f":"'[1]EXT ITCER(M)'!D392","v":99.125566961076501},{"$f":"'[1]EXT ITCER(M)'!E392","v":54.176037608763288},{"$f":"'[1]EXT ITCER(M)'!F392","v":76.667709496321876},{"$f":"'[1]EXT ITCER(M)'!G392","v":111.49109304365641},{"$f":"'[1]EXT ITCER(M)'!H392","v":116.6989006899659},{"$f":"'[1]EXT ITCER(M)'!I392","v":99.871954792879293},null,null,{"$f":"'[1]EXT TC(M)'!J392","v":5.0198780547710253},{"$f":"'[1]EXT TC(M)'!K392","v":0},{"$f":"'[1]EXT TC(M)'!L392","v":-0.71840578534842547},{"$f":"'[1]EXT TC(M)'!M392","v":-0.73417330121003477},{"$f":"'[1]EXT TC(M)'!N392","v":2.0026933738785897},{"$f":"'[1]EXT TC(M)'!O392","v":-3.1395235129724051},{"$f":"'[1]EXT TC(M)'!P392","v":0},null,null,{"$f":"'[1]EXT RIN(M)'!C392","v":6780.7525001699996},{"$f":"'[1]EXT RIN(M)'!D392","v":3468.86},{"$f":"'[1]EXT RIN(M)'!E392","v":20701.8},{"$f":"'[1]EXT RIN(M)'!F392","v":8836.5575590047283},{"$f":"'[1]EXT RIN(M)'!G392","v":3908.5722108584887},{"$f":"'[1]EXT RIN(M)'!H392","v":12199.583225603856},{"$f":"'[1]EXT RIN(M)'!I392","v":8305.6168758399999},null,null,{"$f":"'[1]EXT RIN(M)'!P392","v":62.760635471517467},{"$f":"'[1]EXT RIN(M)'!Q392","v":112.50846928790521},{"$f":"'[1]EXT RIN(M)'!R392","v":142.13381171430996},{"$f":"'[1]EXT RIN(M)'!S392","v":105.66551135094096},{"$f":"'[1]EXT RIN(M)'!T392","v":144.47922236583381},{"$f":"'[1]EXT RIN(M)'!U392","v":93.216138536470638},{"$f":"'[1]EXT RIN(M)'!V392","v":354.49980854731388},null,null,{"$f":"+'[1]MONE(M)CAPARD'!AE392","v":-0.43121637681187414},{"$f":"'[1]MONE(M)CAPARD'!AF392","v":-1.8491130040778205},{"$f":"'[1]MONE(M)CAPARD'!AG392","v":1.1022165555119707},{"$f":"'[1]MONE(M)CAPARD'!AH392","v":-0.20522191780821494},{"$f":"'[1]MONE(M)CAPARD'!AI392","v":-1.6073344782167467},{"$f":"'[1]MONE(M)CAPARD'!AJ392","v":-5.4105721837342626},{"$f":"'[1]MONE(M)CAPARD'!AK392","v":-1.6838852450053559},null,null,{"$f":"'[1]MONE(M)CAPARD'!AL392","v":2.09516575},{"$f":"'[1]MONE(M)CAPARD'!AM392","v":4.24},{"$f":"'[1]MONE(M)CAPARD'!AN392","v":2.5},{"$f":"'[1]MONE(M)CAPARD'!AO392","v":2.7},{"$f":"'[1]MONE(M)CAPARD'!AP392","v":3.8735258716324599},{"$f":"'[1]MONE(M)CAPARD'!AQ392","v":0.52639999999999998},{"$f":"'[1]MONE(M)CAPARD'!AR392","v":1.62},null,null,{"$f":"'[1]MONE(M)CAPARD'!J392","v":5.8177313111217712},{"$f":"'[1]MONE(M)CAPARD'!K392","v":2.4642417275644039E-2},{"$f":"'[1]MONE(M)CAPARD'!L392","v":8.877814829344846},{"$f":"'[1]MONE(M)CAPARD'!M392","v":9.9524438356164442},{"$f":"'[1]MONE(M)CAPARD'!N392","v":4.4743151697927841},{"$f":"'[1]MONE(M)CAPARD'!O392","v":1.5663216007826128},{"$f":"'[1]MONE(M)CAPARD'!P392","v":4.7015345284936076},null,null,{"$f":"'[1]MONE(M)CAPARD'!Q392","v":5.3117073799999996},{"$f":"'[1]MONE(M)CAPARD'!R392","v":6.23},{"$f":"'[1]MONE(M)CAPARD'!S392","v":5.66},{"$f":"'[1]MONE(M)CAPARD'!T392","v":7.42},{"$f":"'[1]MONE(M)CAPARD'!U392","v":10.726282930288299},{"$f":"'[1]MONE(M)CAPARD'!V392","v":3.1564999999999999},{"$f":"'[1]MONE(M)CAPARD'!W392","v":8.2200000000000006},null,null,{"$f":"'[1]MONE(M)CAPARD'!AS392","v":0.75},{"$f":"'[1]MONE(M)CAPARD'!AT392","v":"n.a."},{"$f":"'[1]MONE(M)CAPARD'!AU392","v":1.75},{"$f":"'[1]MONE(M)CAPARD'!AV392","v":3},{"$f":"'[1]MONE(M)CAPARD'!AW392","v":3.5},{"$f":"'[1]MONE(M)CAPARD'!AX392","v":3.5},{"$f":"'[1]MONE(M)CAPARD'!AY392","v":"n.a."},null,null,{"$f":"+'Datos_Regional (M)'!CF385","v":2.3747382246203541},{"$f":"+'Datos_Regional (M)'!CG385","v":6.0817503517516025},{"$f":"+'Datos_Regional (M)'!CH385","v":10.060535853077157},{"$f":"+'Datos_Regional (M)'!CI385","v":11.76799181166599},{"$f":"+'Datos_Regional (M)'!CJ385","v":4.7495613830505823},{"$f":"+'Datos_Regional (M)'!CK385","v":8.8675527053852186},{"$f":"+'Datos_Regional (M)'!CL385","v":1.9194261750339336},null,null,1352.5230525325003,546.94999999999993,1116.2416666666666,423.87102493190764,560.89600811833327,1031.2916666666667,1055.4610833333334,5031.7734189160747,6087.2345022494073,null,null,2005.4965094133333,1237.9416666666664,2153.2249999999999,1076.9041887794458,735.52026877416665,1972.1333333333334,1664.4307501666665,9181.2209669669446,10845.651717133611,null,null,-4149.4475480508727,-4758.4172148842054,null,null,{"$f":"'[1]EXT Comercio(M)'!C392","v":1371.1631979399999},{"$f":"'[1]EXT Comercio(M)'!D392","v":566.59999999999945},{"$f":"'[1]EXT Comercio(M)'!E392","v":1112.0999999999999},{"$f":"'[1]EXT Comercio(M)'!F392","v":389.95492644765432},{"$f":"'[1]EXT Comercio(M)'!G392","v":570.76642836999986},{"$f":"'[1]EXT Comercio(M)'!H392","v":1125},{"$f":"'[1]EXT Comercio(M)'!I392","v":1200.73},{"$f":"'[1]EXT Comercio(M)'!K392","v":5135.5845527576603},{"$f":"'[1]EXT Comercio(M)'!L392","v":6336.3145527576562},null,null,{"$f":"'[1]EXT Comercio(M)'!AG392","v":2388.30361739},{"$f":"'[1]EXT Comercio(M)'!AH392","v":1419.9799999999996},{"$f":"'[1]EXT Comercio(M)'!AI392","v":2658.3},{"$f":"'[1]EXT Comercio(M)'!AJ392","v":1309.8302798775296},{"$f":"'[1]EXT Comercio(M)'!AK392","v":804.84385788999998},{"$f":"'[1]EXT Comercio(M)'!AL392","v":2496.1999999999998},{"$f":"'[1]EXT Comercio(M)'!AM392","v":1902.51},{"$f":"'[1]EXT Comercio(M)'!AO392","v":11077.45775515752},{"$f":"'[1]EXT Comercio(M)'!AP392","v":12979.96775515753},null,null,{"$f":"'[1]EXT Comercio(M)'!$BS392","v":-5941.8732023998746},{"$f":"'[1]EXT Comercio(M)'!$BT392","v":-6643.6532023998734}]
[null,null,"Diciembre ",{"$f":"'[1]REAL IPC(M)'!AD393","v":3.2989079099999969},{"$f":"'[1]REAL IPC(M)'!AE393","v":6.114806269433835},{"$f":"'[1]REAL IPC(M)'!AF393","v":3.0678148546824562},{"$f":"'[1]REAL IPC(M)'!AG393","v":5.315804515575886},{"$f":"'[1]REAL IPC(M)'!AH393","v":7.2100675352489079},{"$f":"'[1]REAL IPC(M)'!AI393","v":8.4956989865317922},{"$f":"'[1]REAL IPC(M)'!AJ393","v":2.6243501775598737},null,null,{"$f":"'[1]REAL IMAE(M)'!AG393","v":9.6505082826727921},{"$f":"'[1]REAL IMAE(M)'!AH393","v":3.3822250361264281},{"$f":"'[1]REAL IMAE(M)'!AI393","v":4.6937774136661403},{"$f":"'[1]REAL IMAE(M)'!AJ393","v":6.7065261405878154},{"$f":"'[1]REAL IMAE(M)'!AK393","v":6.2831413329590529},{"$f":"'[1]REAL IMAE(M)'!AL393","v":8.512082050446649},{"$f":"'[1]REAL IMAE(M)'!AM393","v":12.069930703101628},null,null,{"$f":"'[1]EXT ITCER(M)'!C393","v":92.628823207653198},{"$f":"'[1]EXT ITCER(M)'!D393","v":99.584394855251972},{"$f":"'[1]EXT ITCER(M)'!E393","v":54.358780618899438},{"$f":"'[1]EXT ITCER(M)'!F393","v":76.810368495284294},{"$f":"'[1]EXT ITCER(M)'!G393","v":110.73979326924859},{"$f":"'[1]EXT ITCER(M)'!H393","v":117.2765878104384},{"$f":"'[1]EXT ITCER(M)'!I393","v":100.8555829373402},null,null,{"$f":"'[1]EXT TC(M)'!J393","v":5.2511223742381885},{"$f":"'[1]EXT TC(M)'!K393","v":0},{"$f":"'[1]EXT TC(M)'!L393","v":-0.95617724424089112},{"$f":"'[1]EXT TC(M)'!M393","v":0.3943735105238419},{"$f":"'[1]EXT TC(M)'!N393","v":1.9936414206095272},{"$f":"'[1]EXT TC(M)'!O393","v":-2.1557772937418793},{"$f":"'[1]EXT TC(M)'!P393","v":0},null,null,{"$f":"'[1]EXT RIN(M)'!C393","v":6918.1401695499999},{"$f":"'[1]EXT RIN(M)'!D393","v":3342.39},{"$f":"'[1]EXT RIN(M)'!E393","v":20939.599999999999},{"$f":"'[1]EXT RIN(M)'!F393","v":8677.5568154226803},{"$f":"'[1]EXT RIN(M)'!G393","v":3954.5522422552585},{"$f":"'[1]EXT RIN(M)'!H393","v":13033.917427885361},{"$f":"'[1]EXT RIN(M)'!I393","v":8099.4653844300001},null,null,{"$f":"'[1]EXT RIN(M)'!P393","v":62.207809752554155},{"$f":"'[1]EXT RIN(M)'!Q393","v":112.72253526636781},{"$f":"'[1]EXT RIN(M)'!R393","v":128.41652748442729},{"$f":"'[1]EXT RIN(M)'!S393","v":101.50945639897819},{"$f":"'[1]EXT RIN(M)'!T393","v":141.51188012674208},{"$f":"'[1]EXT RIN(M)'!U393","v":89.108528890081004},{"$f":"'[1]EXT RIN(M)'!V393","v":367.37174699793366},null,null,{"$f":"+'[1]MONE(M)CAPARD'!AE393","v":-0.38616856467403193},{"$f":"'[1]MONE(M)CAPARD'!AF393","v":-1.5594489851229165},{"$f":"'[1]MONE(M)CAPARD'!AG393","v":0.89473629242819674},{"$f":"'[1]MONE(M)CAPARD'!AH393","v":-0.6701791044776183},{"$f":"'[1]MONE(M)CAPARD'!AI393","v":-2.0612254633373941},{"$f":"'[1]MONE(M)CAPARD'!AJ393","v":-4.6600916292169545},{"$f":"'[1]MONE(M)CAPARD'!AK393","v":-0.99815509261452151},null,null,{"$f":"'[1]MONE(M)CAPARD'!AL393","v":2.0823728199999998},{"$f":"'[1]MONE(M)CAPARD'!AM393","v":4.46},{"$f":"'[1]MONE(M)CAPARD'!AN393","v":2.5499999999999998},{"$f":"'[1]MONE(M)CAPARD'!AO393","v":2.71},{"$f":"'[1]MONE(M)CAPARD'!AP393","v":3.3592156358131802},{"$f":"'[1]MONE(M)CAPARD'!AQ393","v":1.0194000000000001},{"$f":"'[1]MONE(M)CAPARD'!AR393","v":1.6},null,null,{"$f":"'[1]MONE(M)CAPARD'!J393","v":4.8141644288560634},{"$f":"'[1]MONE(M)CAPARD'!K393","v":-0.14588564487482522},{"$f":"'[1]MONE(M)CAPARD'!L393","v":8.5886997389033919},{"$f":"'[1]MONE(M)CAPARD'!M393","v":9.2713487109904946},{"$f":"'[1]MONE(M)CAPARD'!N393","v":4.0891449365374566},{"$f":"'[1]MONE(M)CAPARD'!O393","v":0.66786150993704985},{"$f":"'[1]MONE(M)CAPARD'!P393","v":5.483737351518629},null,null,{"$f":"'[1]MONE(M)CAPARD'!Q393","v":5.2552985200000002},{"$f":"'[1]MONE(M)CAPARD'!R393","v":5.96},{"$f":"'[1]MONE(M)CAPARD'!S393","v":5.61},{"$f":"'[1]MONE(M)CAPARD'!T393","v":7.33},{"$f":"'[1]MONE(M)CAPARD'!U393","v":9.5314289567687105},{"$f":"'[1]MONE(M)CAPARD'!V393","v":3.2469000000000001},{"$f":"'[1]MONE(M)CAPARD'!W393","v":8.2519999999999989},null,null,{"$f":"'[1]MONE(M)CAPARD'!AS393","v":1.25},{"$f":"'[1]MONE(M)CAPARD'!AT393","v":"n.a."},{"$f":"'[1]MONE(M)CAPARD'!AU393","v":1.75},{"$f":"'[1]MONE(M)CAPARD'!AV393","v":3},{"$f":"'[1]MONE(M)CAPARD'!AW393","v":3.5},{"$f":"'[1]MONE(M)CAPARD'!AX393","v":3.5},{"$f":"'[1]MONE(M)CAPARD'!AY393","v":"n.a."},null,null,{"$f":"+'Datos_Regional (M)'!CF386","v":2.7916346650896706},{"$f":"+'Datos_Regional (M)'!CG386","v":5.718056270976235},{"$f":"+'Datos_Regional (M)'!CH386","v":10.793579442265111},{"$f":"+'Datos_Regional (M)'!CI386","v":12.15184791793693},{"$f":"+'Datos_Regional (M)'!CJ386","v":5.1387202220816608},{"$f":"+'Datos_Regional (M)'!CK386","v":9.930841011511248},{"$f":"+'Datos_Regional (M)'!CL386","v":3.5549853475845161},null,null,1362.6865039325,552.39583333333326,1135.1416666666667,433.57049005560043,574.05304315833337,1038.5,1094.3641666666667,5096.3475371464338,6190.7117038131,null,null,2098.5967578641666,1256.3266666666666,2217.3166666666666,1101.8198114418858,742.93765347166664,2011.9333333333334,1735.5991666666666,9428.9308894443857,11164.530056111054,null,null,-4332.5833522979519,-4973.8183522979516,null,null,{"$f":"'[1]EXT Comercio(M)'!C393","v":1359.6615829},{"$f":"'[1]EXT Comercio(M)'!D393","v":564.54},{"$f":"'[1]EXT Comercio(M)'!E393","v":1311.1},{"$f":"'[1]EXT Comercio(M)'!F393","v":457.21362985622153},{"$f":"'[1]EXT Comercio(M)'!G393","v":584.18784890999996},{"$f":"'[1]EXT Comercio(M)'!H393","v":1051.1999999999998},{"$f":"'[1]EXT Comercio(M)'!I393","v":1339.69},{"$f":"'[1]EXT Comercio(M)'!K393","v":5327.9030616662203},{"$f":"'[1]EXT Comercio(M)'!L393","v":6667.5930616662226},null,null,{"$f":"'[1]EXT Comercio(M)'!AG393","v":2759.6514235},{"$f":"'[1]EXT Comercio(M)'!AH393","v":1280.2800000000007},{"$f":"'[1]EXT Comercio(M)'!AI393","v":2549.6999999999998},{"$f":"'[1]EXT Comercio(M)'!AJ393","v":1229.0890976510593},{"$f":"'[1]EXT Comercio(M)'!AK393","v":745.0062313599999},{"$f":"'[1]EXT Comercio(M)'!AL393","v":2246},{"$f":"'[1]EXT Comercio(M)'!AM393","v":2299.7800000000002},{"$f":"'[1]EXT Comercio(M)'!AO393","v":10809.726752511066},{"$f":"'[1]EXT Comercio(M)'!AP393","v":13109.506752511079},null,null,{"$f":"'[1]EXT Comercio(M)'!$BS393","v":-5481.8236908448453},{"$f":"'[1]EXT Comercio(M)'!$BT393","v":-6441.913690844849}]
[null,2022,"Enero",{"$f":"'[1]REAL IPC(M)'!AD394","v":3.4980842505554182},{"$f":"'[1]REAL IPC(M)'!AE394","v":6.4834679779200473},{"$f":"'[1]REAL IPC(M)'!AF394","v":2.86827433331093},{"$f":"'[1]REAL IPC(M)'!AG394","v":6.1770566467406738},{"$f":"'[1]REAL IPC(M)'!AH394","v":7.6802472614263015},{"$f":"'[1]REAL IPC(M)'!AI394","v":8.7264240446282955},{"$f":"'[1]REAL IPC(M)'!AJ394","v":2.6262074628368794},null,null,{"$f":"'[1]REAL IMAE(M)'!AG394","v":9.0410723325710851},{"$f":"'[1]REAL IMAE(M)'!AH394","v":2.3217362395427399},{"$f":"'[1]REAL IMAE(M)'!AI394","v":4.6371739827588065},{"$f":"'[1]REAL IMAE(M)'!AJ394","v":6.0187376970240631},{"$f":"'[1]REAL IMAE(M)'!AK394","v":5.864132734016696},{"$f":"'[1]REAL IMAE(M)'!AL394","v":7.453669337430564},{"$f":"'[1]REAL IMAE(M)'!AM394","v":11.327562543723364},null,null,{"$f":"'[1]EXT ITCER(M)'!C394","v":92.978249265971357},{"$f":"'[1]EXT ITCER(M)'!D394","v":99.613961805360773},{"$f":"'[1]EXT ITCER(M)'!E394","v":54.540562645222742},{"$f":"'[1]EXT ITCER(M)'!F394","v":76.955617366073},{"$f":"'[1]EXT ITCER(M)'!G394","v":110.9916003975507},{"$f":"'[1]EXT ITCER(M)'!H394","v":118.09000271828459},{"$f":"'[1]EXT ITCER(M)'!I394","v":101.1866713424411},null,null,{"$f":"'[1]EXT TC(M)'!J394","v":4.4126707734660968},{"$f":"'[1]EXT TC(M)'!K394","v":0},{"$f":"'[1]EXT TC(M)'!L394","v":-1.1467299534615565},{"$f":"'[1]EXT TC(M)'!M394","v":1.3796300111447473},{"$f":"'[1]EXT TC(M)'!N394","v":2.0203364289723411},{"$f":"'[1]EXT TC(M)'!O394","v":-0.93853863507207236},{"$f":"'[1]EXT TC(M)'!P394","v":0},null,null,{"$f":"'[1]EXT RIN(M)'!C394","v":6827.9},{"$f":"'[1]EXT RIN(M)'!D394","v":3404.24},{"$f":"'[1]EXT RIN(M)'!E394","v":20813.400000000001},{"$f":"'[1]EXT RIN(M)'!F394","v":8530.8922088004419},{"$f":"'[1]EXT RIN(M)'!G394","v":4001.5522422552585},{"$f":"'[1]EXT RIN(M)'!H394","v":12373.983627802445},{"$f":"'[1]EXT RIN(M)'!I394","v":10043.17956147},null,null,{"$f":"'[1]EXT RIN(M)'!P394","v":62.951673703965106},{"$f":"'[1]EXT RIN(M)'!Q394","v":109.03204688431825},{"$f":"'[1]EXT RIN(M)'!R394","v":131.52014510244643},{"$f":"'[1]EXT RIN(M)'!S394","v":101.6435736425513},{"$f":"'[1]EXT RIN(M)'!T394","v":146.42519652869447},{"$f":"'[1]EXT RIN(M)'!U394","v":94.889466897633525},{"$f":"'[1]EXT RIN(M)'!V394","v":458.955595324809},null,null,{"$f":"+'[1]MONE(M)CAPARD'!AE394","v":-0.43293965661302924},{"$f":"'[1]MONE(M)CAPARD'!AF394","v":-2.0786963647530925},{"$f":"'[1]MONE(M)CAPARD'!AG394","v":1.051563928431513},{"$f":"'[1]MONE(M)CAPARD'!AH394","v":-1.588908847184983},{"$f":"'[1]MONE(M)CAPARD'!AI394","v":-1.5626916592988405},{"$f":"'[1]MONE(M)CAPARD'!AJ394","v":-4.3836850945009758},{"$f":"'[1]MONE(M)CAPARD'!AK394","v":-1.0681554838064529},null,null,{"$f":"'[1]MONE(M)CAPARD'!AL394","v":2.0526829100000001},{"$f":"'[1]MONE(M)CAPARD'!AM394","v":4.2699999999999996},{"$f":"'[1]MONE(M)CAPARD'!AN394","v":2.5099999999999998},{"$f":"'[1]MONE(M)CAPARD'!AO394","v":2.7},{"$f":"'[1]MONE(M)CAPARD'!AP394","v":3.4718775026209499},{"$f":"'[1]MONE(M)CAPARD'!AQ394","v":1.0726},{"$f":"'[1]MONE(M)CAPARD'!AR394","v":1.53},null,null,{"$f":"'[1]MONE(M)CAPARD'!J394","v":5.8249926296700787},{"$f":"'[1]MONE(M)CAPARD'!K394","v":-0.58550683008307591},{"$f":"'[1]MONE(M)CAPARD'!L394","v":8.7993365547864819},{"$f":"'[1]MONE(M)CAPARD'!M394","v":8.4980160857908889},{"$f":"'[1]MONE(M)CAPARD'!N394","v":3.9496541968744214},{"$f":"'[1]MONE(M)CAPARD'!O394","v":0.8107283607615855},{"$f":"'[1]MONE(M)CAPARD'!P394","v":5.4506472327633775},null,null,{"$f":"'[1]MONE(M)CAPARD'!Q394","v":5.2502232400000004},{"$f":"'[1]MONE(M)CAPARD'!R394","v":5.86},{"$f":"'[1]MONE(M)CAPARD'!S394","v":5.66},{"$f":"'[1]MONE(M)CAPARD'!T394","v":7.3},{"$f":"'[1]MONE(M)CAPARD'!U394","v":8.8433812456750207},{"$f":"'[1]MONE(M)CAPARD'!V394","v":3.4805000000000001},{"$f":"'[1]MONE(M)CAPARD'!W394","v":8.2200000000000006},null,null,{"$f":"'[1]MONE(M)CAPARD'!AS394","v":1.75},{"$f":"'[1]MONE(M)CAPARD'!AT394","v":"n.a."},{"$f":"'[1]MONE(M)CAPARD'!AU394","v":1.75},{"$f":"'[1]MONE(M)CAPARD'!AV394","v":3},{"$f":"'[1]MONE(M)CAPARD'!AW394","v":3.5},{"$f":"'[1]MONE(M)CAPARD'!AX394","v":4.5},{"$f":"'[1]MONE(M)CAPARD'!AY394","v":"n.a."},null,null,{"$f":"+'Datos_Regional (M)'!CF387","v":3.0203663283297599},{"$f":"+'Datos_Regional (M)'!CG387","v":6.2016180971857571},{"$f":"+'Datos_Regional (M)'!CH387","v":10.690336908759912},{"$f":"+'Datos_Regional (M)'!CI387","v":14.419808933312005},{"$f":"+'Datos_Regional (M)'!CJ387","v":5.7809462439708303},{"$f":"+'Datos_Regional (M)'!CK387","v":12.495266972166474},{"$f":"+'Datos_Regional (M)'!CL387","v":3.9395513753040845},null,null,{"$f":"IF(EH199=\"\",\"\",+AVERAGE(EH188:EH199))","v":1380.9189666708335},{"$f":"IF(EI199=\"\",\"\",+AVERAGE(EI188:EI199))","v":557.77249999999992},{"$f":"IF(EJ199=\"\",\"\",+AVERAGE(EJ188:EJ199))","v":1152.6333333333334},{"$f":"IF(EK199=\"\",\"\",+AVERAGE(EK188:EK199))","v":443.7965653625169},{"$f":"IF(EL199=\"\",\"\",+AVERAGE(EL188:EL199))","v":587.44751835833347},1050.0333333333331,{"$f":"IF(EN199=\"\",\"\",+AVERAGE(EN188:EN199))","v":1109.1591666666666},{"$f":"IF(EO199=\"\",\"\",+AVERAGE(EO188:EO199))","v":5172.6022170583501},{"$f":"IF(EP199=\"\",\"\",+AVERAGE(EP188:EP199))","v":6281.7613837250165},null,null,{"$f":"IF(ES199=\"\",\"\",+AVERAGE(ES188:ES199))","v":2131.1736871200001},{"$f":"IF(ET199=\"\",\"\",+AVERAGE(ET188:ET199))","v":1284.1166666666668},{"$f":"IF(EU199=\"\",\"\",+AVERAGE(EU188:EU199))","v":2285.0833333333335},{"$f":"IF(EV199=\"\",\"\",+AVERAGE(EV188:EV199))","v":1124.3946162113264},{"$f":"IF(EW199=\"\",\"\",+AVERAGE(EW188:EW199))","v":765.71780217083335},2074.4083333333333,{"$f":"IF(EY199=\"\",\"\",+AVERAGE(EY188:EY199))","v":1791.9574999999998},{"$f":"IF(EZ199=\"\",\"\",+AVERAGE(EZ188:EZ199))","v":9664.8944388354939},{"$f":"IF(FA199=\"\",\"\",+AVERAGE(FA188:FA199))","v":11456.851938835493},null,null,{"$f":"IF(FD199=\"\",\"\",+AVERAGE(FD188:FD199))","v":-4492.292221777142},{"$f":"IF(FE199=\"\",\"\",+AVERAGE(FE188:FE199))","v":-5175.0905551104761},null,null,{"$f":"'[1]EXT Comercio(M)'!C394","v":1298.7031544900001},{"$f":"'[1]EXT Comercio(M)'!D394","v":563.65},{"$f":"'[1]EXT Comercio(M)'!E394","v":1213.9000000000001},{"$f":"'[1]EXT Comercio(M)'!F394","v":481.2691087745556},{"$f":"'[1]EXT Comercio(M)'!G394","v":646.86587981000002},{"$f":"'[1]EXT Comercio(M)'!H394","v":927.7},{"$f":"'[1]EXT Comercio(M)'!I394","v":992.21},{"$f":"'[1]EXT Comercio(M)'!K394","v":5132.0881430745558},{"$f":"'[1]EXT Comercio(M)'!L394","v":6124.2981430745558},null,null,{"$f":"'[1]EXT Comercio(M)'!AG394","v":2067.38},{"$f":"'[1]EXT Comercio(M)'!AH394","v":1389.63},{"$f":"'[1]EXT Comercio(M)'!AI394","v":2516.5},{"$f":"'[1]EXT Comercio(M)'!AJ394","v":1093.9401926293847},{"$f":"'[1]EXT Comercio(M)'!AK394","v":854.00084815000002},{"$f":"'[1]EXT Comercio(M)'!AL394","v":2248.6000000000004},{"$f":"'[1]EXT Comercio(M)'!AM394","v":1972.17},{"$f":"'[1]EXT Comercio(M)'!AO394","v":10170.051040779384},{"$f":"'[1]EXT Comercio(M)'!AP394","v":12142.221040779385},null,null,{"$f":"'[1]EXT Comercio(M)'!$BS394","v":-5037.9628977048287},{"$f":"'[1]EXT Comercio(M)'!$BT394","v":-6017.9228977048288}]
[null,null,"Febrero",{"$f":"'[1]REAL IPC(M)'!AD395","v":4.8973145631015589},{"$f":"'[1]REAL IPC(M)'!AE395","v":6.6675496992549013},{"$f":"'[1]REAL IPC(M)'!AF395","v":2.9797776884960414},{"$f":"'[1]REAL IPC(M)'!AG395","v":6.3654447286160947},{"$f":"'[1]REAL IPC(M)'!AH395","v":7.7533516680632744},{"$f":"'[1]REAL IPC(M)'!AI395","v":8.9838302363273215},{"$f":"'[1]REAL IPC(M)'!AJ395","v":2.7355245639824521},null,null,{"$f":"'[1]REAL IMAE(M)'!AG395","v":8.2664079492557274},{"$f":"'[1]REAL IMAE(M)'!AH395","v":2.4291337180625217},{"$f":"'[1]REAL IMAE(M)'!AI395","v":4.5134915318545961},{"$f":"'[1]REAL IMAE(M)'!AJ395","v":5.4740728220480399},{"$f":"'[1]REAL IMAE(M)'!AK395","v":5.281413034721866},{"$f":"'[1]REAL IMAE(M)'!AL395","v":6.4792415339472154},{"$f":"'[1]REAL IMAE(M)'!AM395","v":10.939503466708238},null,null,{"$f":"'[1]EXT ITCER(M)'!C395","v":93.271790003004298},{"$f":"'[1]EXT ITCER(M)'!D395","v":99.621201126253865},{"$f":"'[1]EXT ITCER(M)'!E395","v":54.734584526395473},{"$f":"'[1]EXT ITCER(M)'!F395","v":77.497664971044884},{"$f":"'[1]EXT ITCER(M)'!G395","v":110.99902300517429},{"$f":"'[1]EXT ITCER(M)'!H395","v":115.60020653299679},{"$f":"'[1]EXT ITCER(M)'!I395","v":101.2935882010993},null,null,{"$f":"'[1]EXT TC(M)'!J395","v":5.177843449803178},{"$f":"'[1]EXT TC(M)'!K395","v":0},{"$f":"'[1]EXT TC(M)'!L395","v":-0.54328470320078137},{"$f":"'[1]EXT TC(M)'!M395","v":1.7241142991003759},{"$f":"'[1]EXT TC(M)'!N395","v":2.0667892209608789},{"$f":"'[1]EXT TC(M)'!O395","v":-2.5292471211013221},{"$f":"'[1]EXT TC(M)'!P395","v":0},null,null,{"$f":"'[1]EXT RIN(M)'!C395","v":6567.8},{"$f":"'[1]EXT RIN(M)'!D395","v":3293.63},{"$f":"'[1]EXT RIN(M)'!E395","v":20835.900000000001},{"$f":"'[1]EXT RIN(M)'!F395","v":8483.3358332595963},{"$f":"'[1]EXT RIN(M)'!G395","v":4055.4391589354545},{"$f":"'[1]EXT RIN(M)'!H395","v":14849.759523177323},{"$f":"'[1]EXT RIN(M)'!I395","v":9756.13518931},null,null,{"$f":"'[1]EXT RIN(M)'!P395","v":59.023053540695301},{"$f":"'[1]EXT RIN(M)'!Q395","v":110.89853731495052},{"$f":"'[1]EXT RIN(M)'!R395","v":130.38783554339534},{"$f":"'[1]EXT RIN(M)'!S395","v":101.12850286820559},{"$f":"'[1]EXT RIN(M)'!T395","v":152.01105351217436},{"$f":"'[1]EXT RIN(M)'!U395","v":110.63748807593656},{"$f":"'[1]EXT RIN(M)'!V395","v":409.15619409354196},null,null,{"$f":"+'[1]MONE(M)CAPARD'!AE395","v":-1.7610694523455095},{"$f":"'[1]MONE(M)CAPARD'!AF395","v":-2.1445600894597852},{"$f":"'[1]MONE(M)CAPARD'!AG395","v":0.94214838416022639},{"$f":"'[1]MONE(M)CAPARD'!AH395","v":-1.8478226021907656},{"$f":"'[1]MONE(M)CAPARD'!AI395","v":-1.7647245948585364},{"$f":"'[1]MONE(M)CAPARD'!AJ395","v":-4.1442205018243499},{"$f":"'[1]MONE(M)CAPARD'!AK395","v":-1.1052891089053243},null,null,{"$f":"'[1]MONE(M)CAPARD'!AL395","v":2.2550390299999998},{"$f":"'[1]MONE(M)CAPARD'!AM395","v":4.38},{"$f":"'[1]MONE(M)CAPARD'!AN395","v":2.57},{"$f":"'[1]MONE(M)CAPARD'!AO395","v":2.69},{"$f":"'[1]MONE(M)CAPARD'!AP395","v":3.1853769946177999},{"$f":"'[1]MONE(M)CAPARD'!AQ395","v":0.7198},{"$f":"'[1]MONE(M)CAPARD'!AR395","v":1.6},null,null,{"$f":"'[1]MONE(M)CAPARD'!J395","v":4.4263586596445617},{"$f":"'[1]MONE(M)CAPARD'!K395","v":-0.42894929202456167},{"$f":"'[1]MONE(M)CAPARD'!L395","v":8.6815319591651043},{"$f":"'[1]MONE(M)CAPARD'!M395","v":8.0614106331819286},{"$f":"'[1]MONE(M)CAPARD'!N395","v":3.3822494556996117},{"$f":"'[1]MONE(M)CAPARD'!O395","v":0.88826916944784928},{"$f":"'[1]MONE(M)CAPARD'!P395","v":5.3216774207352051},null,null,{"$f":"'[1]MONE(M)CAPARD'!Q395","v":5.5659750600000004},{"$f":"'[1]MONE(M)CAPARD'!R395","v":6.21},{"$f":"'[1]MONE(M)CAPARD'!S395","v":5.6},{"$f":"'[1]MONE(M)CAPARD'!T395","v":7.27},{"$f":"'[1]MONE(M)CAPARD'!U395","v":8.4118841752928404},{"$f":"'[1]MONE(M)CAPARD'!V395","v":3.1427},{"$f":"'[1]MONE(M)CAPARD'!W395","v":8.2027777777777757},null,null,{"$f":"'[1]MONE(M)CAPARD'!AS395","v":1.75},{"$f":"'[1]MONE(M)CAPARD'!AT395","v":"n.a."},{"$f":"'[1]MONE(M)CAPARD'!AU395","v":1.75},{"$f":"'[1]MONE(M)CAPARD'!AV395","v":3},{"$f":"'[1]MONE(M)CAPARD'!AW395","v":3.5},{"$f":"'[1]MONE(M)CAPARD'!AX395","v":5},{"$f":"'[1]MONE(M)CAPARD'!AY395","v":"n.a."},{"$f":"'[1]MONE(M)CAPARD'!AZ395","v":13.462063433318042},null,{"$f":"+'Datos_Regional (M)'!CF388","v":3.3066435831062169},{"$f":"+'Datos_Regional (M)'!CG388","v":6.8391420391505475},{"$f":"+'Datos_Regional (M)'!CH388","v":11.170047697489128},{"$f":"+'Datos_Regional (M)'!CI388","v":15.043107568268365},{"$f":"+'Datos_Regional (M)'!CJ388","v":6.2283996330927849},{"$f":"+'Datos_Regional (M)'!CK388","v":11.860180721076041},{"$f":"+'Datos_Regional (M)'!CL388","v":3.8950028847666518},null,null,1386.8158418100002,564.67999999999995,1173.075,450.63313600112014,595.32700152583323,{"$f":"IF(EM200=\"\",\"\",+AVERAGE(EM189:EM200))","v":1063.1833333333334},1140.6866666666667,5233.7143126702877,6374.4009793369523,null,null,2162.6834819441669,1315.3383333333334,2336.8416666666667,1133.4477863700683,782.24590269999999,2120.7999999999997,1836.4224999999997,9851.3571710142351,11687.779671014237,null,null,-4617.6428583439483,-5313.3786916772815,null,null,{"$f":"'[1]EXT Comercio(M)'!C395","v":1298.30844622},{"$f":"'[1]EXT Comercio(M)'!D395","v":614.11},{"$f":"'[1]EXT Comercio(M)'!E395","v":1276.4000000000001},{"$f":"'[1]EXT Comercio(M)'!F395","v":488.35148674323847},{"$f":"'[1]EXT Comercio(M)'!G395","v":620.23690671999998},{"$f":"'[1]EXT Comercio(M)'!H395","v":1119.3000000000002},{"$f":"'[1]EXT Comercio(M)'!I395","v":1179.5},{"$f":"'[1]EXT Comercio(M)'!K395","v":5416.7068396832383},{"$f":"'[1]EXT Comercio(M)'!L395","v":6596.2068396832374},null,null,{"$f":"'[1]EXT Comercio(M)'!AG395","v":2043.03},{"$f":"'[1]EXT Comercio(M)'!AH395","v":1359.2100000000005},{"$f":"'[1]EXT Comercio(M)'!AI395","v":2381},{"$f":"'[1]EXT Comercio(M)'!AJ395","v":1035.7968336017914},{"$f":"'[1]EXT Comercio(M)'!AK395","v":773.98367569000004},{"$f":"'[1]EXT Comercio(M)'!AL395","v":2165.1000000000004},{"$f":"'[1]EXT Comercio(M)'!AM395","v":1994.12},{"$f":"'[1]EXT Comercio(M)'!AO395","v":9758.1205092917917},{"$f":"'[1]EXT Comercio(M)'!AP395","v":11752.240509291792},null,null,{"$f":"'[1]EXT Comercio(M)'!$BS395","v":-4341.4136696085534},{"$f":"'[1]EXT Comercio(M)'!$BT395","v":-5156.0336696085533}]
[null,null,"Marzo",{"$f":"'[1]REAL IPC(M)'!AD396","v":5.7931750632076655},{"$f":"'[1]REAL IPC(M)'!AE396","v":6.6948663790853002},{"$f":"'[1]REAL IPC(M)'!AF396","v":4.1711158569140414},{"$f":"'[1]REAL IPC(M)'!AG396","v":6.9648924122310367},{"$f":"'[1]REAL IPC(M)'!AH396","v":8.7414217514084633},{"$f":"'[1]REAL IPC(M)'!AI396","v":9.054550222921586},{"$f":"'[1]REAL IPC(M)'!AJ396","v":3.1844502361354969},null,null,{"$f":"'[1]REAL IMAE(M)'!AG396","v":7.3348253889960207},{"$f":"'[1]REAL IMAE(M)'!AH396","v":2.9242874076604188},{"$f":"'[1]REAL IMAE(M)'!AI396","v":4.3462580918741809},{"$f":"'[1]REAL IMAE(M)'!AJ396","v":4.9535399630849657},{"$f":"'[1]REAL IMAE(M)'!AK396","v":4.5891977525635461},{"$f":"'[1]REAL IMAE(M)'!AL396","v":5.8843743053560962},{"$f":"'[1]REAL IMAE(M)'!AM396","v":13.819464306606619},null,null,{"$f":"'[1]EXT ITCER(M)'!C396","v":94.690814530801447},{"$f":"'[1]EXT ITCER(M)'!D396","v":100.0463441763825},{"$f":"'[1]EXT ITCER(M)'!E396","v":54.549689640244139},{"$f":"'[1]EXT ITCER(M)'!F396","v":77.364040490182362},{"$f":"'[1]EXT ITCER(M)'!G396","v":111.1985705543277},{"$f":"'[1]EXT ITCER(M)'!H396","v":113.04983001196091},{"$f":"'[1]EXT ITCER(M)'!I396","v":101.6657650972775},null,null,{"$f":"'[1]EXT TC(M)'!J396","v":6.401860228069074},{"$f":"'[1]EXT TC(M)'!K396","v":0},{"$f":"'[1]EXT TC(M)'!L396","v":-0.36889732033297051},{"$f":"'[1]EXT TC(M)'!M396","v":1.4404756271914667},{"$f":"'[1]EXT TC(M)'!N396","v":2.1146465353966084},{"$f":"'[1]EXT TC(M)'!O396","v":-4.1110481467489342},{"$f":"'[1]EXT TC(M)'!P396","v":0},null,null,{"$f":"'[1]EXT RIN(M)'!C396","v":7054.1},{"$f":"'[1]EXT RIN(M)'!D396","v":3334.89},{"$f":"'[1]EXT RIN(M)'!E396","v":20763.5},{"$f":"'[1]EXT RIN(M)'!F396","v":8542.8247545658905},{"$f":"'[1]EXT RIN(M)'!G396","v":4128.7631367492959},{"$f":"'[1]EXT RIN(M)'!H396","v":14595.958530444243},{"$f":"'[1]EXT RIN(M)'!I396","v":8965.7074552899994},null,null,{"$f":"'[1]EXT RIN(M)'!P396","v":65.576614390819316},{"$f":"'[1]EXT RIN(M)'!Q396","v":111.68452952470385},{"$f":"'[1]EXT RIN(M)'!R396","v":127.92763479456556},{"$f":"'[1]EXT RIN(M)'!S396","v":97.604442488158156},{"$f":"'[1]EXT RIN(M)'!T396","v":154.10021049009697},{"$f":"'[1]EXT RIN(M)'!U396","v":108.98723286508346},{"$f":"'[1]EXT RIN(M)'!V396","v":399.42440364568699},null,null,{"$f":"+'[1]MONE(M)CAPARD'!AE396","v":-2.6874843878246106},{"$f":"'[1]MONE(M)CAPARD'!AF396","v":-2.0571433786579498},{"$f":"'[1]MONE(M)CAPARD'!AG396","v":-0.2506605163687613},{"$f":"'[1]MONE(M)CAPARD'!AH396","v":-2.4726733721545844},{"$f":"'[1]MONE(M)CAPARD'!AI396","v":-2.160080866282343},{"$f":"'[1]MONE(M)CAPARD'!AJ396","v":-3.741384669031445},{"$f":"'[1]MONE(M)CAPARD'!AK396","v":-1.4870944533056476},null,null,{"$f":"'[1]MONE(M)CAPARD'!AL396","v":2.1119108899999999},{"$f":"'[1]MONE(M)CAPARD'!AM396","v":4.5},{"$f":"'[1]MONE(M)CAPARD'!AN396","v":2.59},{"$f":"'[1]MONE(M)CAPARD'!AO396","v":2.7},{"$f":"'[1]MONE(M)CAPARD'!AP396","v":3.72959967520636},{"$f":"'[1]MONE(M)CAPARD'!AQ396","v":0.78},{"$f":"'[1]MONE(M)CAPARD'!AR396","v":1.65},null,null,{"$f":"'[1]MONE(M)CAPARD'!J396","v":3.4045673784158446},{"$f":"'[1]MONE(M)CAPARD'!K396","v":-0.52942226580830831},{"$f":"'[1]MONE(M)CAPARD'!L396","v":7.4674098276635279},{"$f":"'[1]MONE(M)CAPARD'!M396","v":7.4651667548967637},{"$f":"'[1]MONE(M)CAPARD'!N396","v":2.1498918735005303},{"$f":"'[1]MONE(M)CAPARD'!O396","v":1.1809225515541373},{"$f":"'[1]MONE(M)CAPARD'!P396","v":4.8639917019591863},null,null,{"$f":"'[1]MONE(M)CAPARD'!Q396","v":6.0040512599999998},{"$f":"'[1]MONE(M)CAPARD'!R396","v":6.13},{"$f":"'[1]MONE(M)CAPARD'!S396","v":5.53},{"$f":"'[1]MONE(M)CAPARD'!T396","v":7.28},{"$f":"'[1]MONE(M)CAPARD'!U396","v":7.6793541497266604},{"$f":"'[1]MONE(M)CAPARD'!V396","v":3.9809000000000001},{"$f":"'[1]MONE(M)CAPARD'!W396","v":8.2033333333333331},null,null,{"$f":"'[1]MONE(M)CAPARD'!AS396","v":2.5},{"$f":"'[1]MONE(M)CAPARD'!AT396","v":"n.a."},{"$f":"'[1]MONE(M)CAPARD'!AU396","v":1.75},{"$f":"'[1]MONE(M)CAPARD'!AV396","v":3},{"$f":"'[1]MONE(M)CAPARD'!AW396","v":3.5},{"$f":"'[1]MONE(M)CAPARD'!AX396","v":5},{"$f":"'[1]MONE(M)CAPARD'!AY396","v":"n.a."},{"$f":"'[1]MONE(M)CAPARD'!AZ396","v":13.305664219183083},null,{"$f":"+'Datos_Regional (M)'!CF389","v":""},{"$f":"+'Datos_Regional (M)'!CG389","v":7.2664713245291557},{"$f":"+'Datos_Regional (M)'!CH389","v":11.996974215163437},{"$f":"+'Datos_Regional (M)'!CI389","v":15.228476041434869},{"$f":"+'Datos_Regional (M)'!CJ389","v":7.1159247369551037},{"$f":"+'Datos_Regional (M)'!CK389","v":12.71912037720373},{"$f":"+'Datos_Regional (M)'!CL389","v":2.3352069595624192},null,null,{"$f":"IF(EH201=\"\",\"\",+AVERAGE(EH190:EH201))","v":1409.0454299125001},{"$f":"IF(EI201=\"\",\"\",+AVERAGE(EI190:EI201))","v":576.0183333333332},{"$f":"IF(EJ201=\"\",\"\",+AVERAGE(EJ190:EJ201))","v":1198.4583333333333},{"$f":"IF(EK201=\"\",\"\",+AVERAGE(EK190:EK201))","v":466.85998060641259},{"$f":"IF(EL201=\"\",\"\",+AVERAGE(EL190:EL201))","v":602.6412135733334},{"$f":"IF(EM201=\"\",\"\",+AVERAGE(EM190:EM201))","v":1073.7250000000001},{"$f":"IF(EN201=\"\",\"\",+AVERAGE(EN190:EN201))","v":1159.7733333333333},5326.7482907589138,6486.5216240922455,null,null,{"$f":"IF(ES201=\"\",\"\",+AVERAGE(ES190:ES201))","v":2252.6292637958336},{"$f":"IF(ET201=\"\",\"\",+AVERAGE(ET190:ET201))","v":1339.1200000000001},{"$f":"IF(EU201=\"\",\"\",+AVERAGE(EU190:EU201))","v":2396.2583333333337},{"$f":"IF(EV201=\"\",\"\",+AVERAGE(EV190:EV201))","v":1164.9362879921412},{"$f":"IF(EW201=\"\",\"\",+AVERAGE(EW190:EW201))","v":802.87290442416679},2175.0749999999998,{"$f":"IF(EY201=\"\",\"\",+AVERAGE(EY190:EY201))","v":1876.4733333333334},10130.891789545474,12007.365122878809,null,null,-4804.1434987865623,-5520.8434987865612,null,null,{"$f":"'[1]EXT Comercio(M)'!C396","v":1742.58218956},{"$f":"'[1]EXT Comercio(M)'!D396","v":710.24},{"$f":"'[1]EXT Comercio(M)'!E396","v":1555.2},{"$f":"'[1]EXT Comercio(M)'!F396","v":668.12612639351062},{"$f":"'[1]EXT Comercio(M)'!G396","v":744.05153469999993},{"$f":"'[1]EXT Comercio(M)'!H396","v":1281},{"$f":"'[1]EXT Comercio(M)'!I396","v":1398.49},{"$f":"'[1]EXT Comercio(M)'!K396","v":6701.1998506535128},{"$f":"'[1]EXT Comercio(M)'!L396","v":8099.6898506535144},null,null,{"$f":"'[1]EXT Comercio(M)'!AG396","v":3060.27},{"$f":"'[1]EXT Comercio(M)'!AH396","v":1603.44},{"$f":"'[1]EXT Comercio(M)'!AI396","v":2864.5},{"$f":"'[1]EXT Comercio(M)'!AJ396","v":1446.1957566880249},{"$f":"'[1]EXT Comercio(M)'!AK396","v":972.28963685000008},{"$f":"'[1]EXT Comercio(M)'!AL396","v":2532.3000000000002},{"$f":"'[1]EXT Comercio(M)'!AM396","v":2257.41},{"$f":"'[1]EXT Comercio(M)'!AO396","v":12478.995393538022},{"$f":"'[1]EXT Comercio(M)'!AP396","v":14736.405393538018},null,null,{"$f":"'[1]EXT Comercio(M)'!$BS396","v":-5777.7955428845144},{"$f":"'[1]EXT Comercio(M)'!$BT396","v":-6636.7155428845126}]
[null,null,"Abril",{"$f":"'[1]REAL IPC(M)'!AD397","v":7.1515617414220367},{"$f":"'[1]REAL IPC(M)'!AE397","v":6.5459119390914964},{"$f":"'[1]REAL IPC(M)'!AF397","v":4.6200000000000045},{"$f":"'[1]REAL IPC(M)'!AG397","v":8.3474337281443773},{"$f":"'[1]REAL IPC(M)'!AH397","v":9.9460482801112988},{"$f":"'[1]REAL IPC(M)'!AI397","v":9.6431169897207187},{"$f":"'[1]REAL IPC(M)'!AJ397","v":3.6504575158393164},null,null,{"$f":"'[1]REAL IMAE(M)'!AG397","v":6.3099832742146758},{"$f":"'[1]REAL IMAE(M)'!AH397","v":2.8879177603354913},{"$f":"'[1]REAL IMAE(M)'!AI397","v":4.124574657902726},{"$f":"'[1]REAL IMAE(M)'!AJ397","v":4.5500440356505472},{"$f":"'[1]REAL IMAE(M)'!AK397","v":3.9543501119334854},{"$f":"'[1]REAL IMAE(M)'!AL397","v":5.7664375670527859},{"$f":"'[1]REAL IMAE(M)'!AM397","v":7.2081314150444626},null,null,{"$f":"'[1]EXT ITCER(M)'!C397","v":94.753724024248157},{"$f":"'[1]EXT ITCER(M)'!D397","v":99.877934826177381},{"$f":"'[1]EXT ITCER(M)'!E397","v":54.239856069570607},{"$f":"'[1]EXT ITCER(M)'!F397","v":76.209293012982116},{"$f":"'[1]EXT ITCER(M)'!G397","v":110.41078533135931},{"$f":"'[1]EXT ITCER(M)'!H397","v":112.60273317875399},{"$f":"'[1]EXT ITCER(M)'!I397","v":101.4185409257185},null,null,{"$f":"'[1]EXT TC(M)'!J397","v":7.3936749319004065},{"$f":"'[1]EXT TC(M)'!K397","v":0},{"$f":"'[1]EXT TC(M)'!L397","v":-0.68461830256232536},{"$f":"'[1]EXT TC(M)'!M397","v":1.3473465843026524},{"$f":"'[1]EXT TC(M)'!N397","v":2.1089612096801802},{"$f":"'[1]EXT TC(M)'!O397","v":-3.2559932953969231},{"$f":"'[1]EXT TC(M)'!P397","v":0},null,null,{"$f":"'[1]EXT RIN(M)'!C397","v":6965.1},{"$f":"'[1]EXT RIN(M)'!D397","v":3419.2},{"$f":"'[1]EXT RIN(M)'!E397","v":20843.7},{"$f":"'[1]EXT RIN(M)'!F397","v":8524.3440168576908},{"$f":"'[1]EXT RIN(M)'!G397","v":4245.7095765260819},{"$f":"'[1]EXT RIN(M)'!H397","v":14410.348158283283},{"$f":"'[1]EXT RIN(M)'!I397","v":8721.9294583400006},null,null,{"$f":"'[1]EXT RIN(M)'!P397","v":""},{"$f":"'[1]EXT RIN(M)'!Q397","v":107.75083061608504},{"$f":"'[1]EXT RIN(M)'!R397","v":125.89446008381005},{"$f":"'[1]EXT RIN(M)'!S397","v":98.655116087631924},{"$f":"'[1]EXT RIN(M)'!T397","v":157.9182225614671},{"$f":"'[1]EXT RIN(M)'!U397","v":105.55536626003492},{"$f":"'[1]EXT RIN(M)'!V397","v":375.79365555418104},null,null,{"$f":"+'[1]MONE(M)CAPARD'!AE397","v":-3.9678019361788666},{"$f":"'[1]MONE(M)CAPARD'!AF397","v":-2.0422294009134654},{"$f":"'[1]MONE(M)CAPARD'!AG397","v":-0.68820493213535139},{"$f":"'[1]MONE(M)CAPARD'!AH397","v":-3.7817542946381999},{"$f":"'[1]MONE(M)CAPARD'!AI397","v":-4.2644548712296269},{"$f":"'[1]MONE(M)CAPARD'!AJ397","v":-4.7352876607908483},{"$f":"'[1]MONE(M)CAPARD'!AK397","v":-1.9492991775077892},null,null,{"$f":"'[1]MONE(M)CAPARD'!AL397","v":""},{"$f":"'[1]MONE(M)CAPARD'!AM397","v":4.37},{"$f":"'[1]MONE(M)CAPARD'!AN397","v":2.5499999999999998},{"$f":"'[1]MONE(M)CAPARD'!AO397","v":2.75},{"$f":"'[1]MONE(M)CAPARD'!AP397","v":3.1131942149985998},{"$f":"'[1]MONE(M)CAPARD'!AQ397","v":0.73650000000000004},{"$f":"'[1]MONE(M)CAPARD'!AR397","v":1.63},null,null,{"$f":"'[1]MONE(M)CAPARD'!J397","v":""},{"$f":"'[1]MONE(M)CAPARD'!K397","v":-0.59684311440782867},{"$f":"'[1]MONE(M)CAPARD'!L397","v":6.9871917415408094},{"$f":"'[1]MONE(M)CAPARD'!M397","v":6.0200468505986571},{"$f":"'[1]MONE(M)CAPARD'!N397","v":1.3564897800775433},{"$f":"'[1]MONE(M)CAPARD'!O397","v":0.67152688695297658},{"$f":"'[1]MONE(M)CAPARD'!P397","v":4.3882405172736494},null,null,{"$f":"'[1]MONE(M)CAPARD'!Q397","v":""},{"$f":"'[1]MONE(M)CAPARD'!R397","v":5.91},{"$f":"'[1]MONE(M)CAPARD'!S397","v":5.52},{"$f":"'[1]MONE(M)CAPARD'!T397","v":7.39},{"$f":"'[1]MONE(M)CAPARD'!U397","v":8.2960772140241108},{"$f":"'[1]MONE(M)CAPARD'!V397","v":3.6259999999999999},{"$f":"'[1]MONE(M)CAPARD'!W397","v":8.198888888888888},null,null,{"$f":"'[1]MONE(M)CAPARD'!AS397","v":4},{"$f":"'[1]MONE(M)CAPARD'!AT397","v":"n.a."},{"$f":"'[1]MONE(M)CAPARD'!AU397","v":1.75},{"$f":"'[1]MONE(M)CAPARD'!AV397","v":3},{"$f":"'[1]MONE(M)CAPARD'!AW397","v":4},{"$f":"'[1]MONE(M)CAPARD'!AX397","v":5.5},{"$f":"'[1]MONE(M)CAPARD'!AY397","v":"n.a."},null,null,null,{"$f":"+'Datos_Regional (M)'!CG390","v":7.6513312458993399},{"$f":"+'Datos_Regional (M)'!CH390","v":12.80209741853704},{"$f":"+'Datos_Regional (M)'!CI390","v":16.481564907617564},{"$f":"+'Datos_Regional (M)'!CJ390","v":9.1753605745885647},{"$f":"+'Datos_Regional (M)'!CK390","v":12.783030864499922},{"$f":"+'Datos_Regional (M)'!CL390","v":2.8369878443728513},null,null,{"$f":"IF(EH202=\"\",\"\",+AVERAGE(EH191:EH202))","v":""},{"$f":"IF(EI202=\"\",\"\",+AVERAGE(EI191:EI202))","v":579.73583333333318},{"$f":"IF(EJ202=\"\",\"\",+AVERAGE(EJ191:EJ202))","v":1221.2},{"$f":"IF(EK202=\"\",\"\",+AVERAGE(EK191:EK202))","v":475.19112633540232},{"$f":"IF(EL202=\"\",\"\",+AVERAGE(EL191:EL202))","v":610.81953331166676},{"$f":"IF(EM202=\"\",\"\",+AVERAGE(EM191:EM202))","v":""},{"$f":"IF(EN202=\"\",\"\",+AVERAGE(EN191:EN202))","v":1170.2},{"$f":"IF(EO202=\"\",\"\",+AVERAGE(EO191:EO202))","v":""},"",null,null,{"$f":"IF(ES202=\"\",\"\",+AVERAGE(ES191:ES202))","v":""},{"$f":"IF(ET202=\"\",\"\",+AVERAGE(ET191:ET202))","v":1357.6650000000002},{"$f":"IF(EU202=\"\",\"\",+AVERAGE(EU191:EU202))","v":2448.0666666666666},{"$f":"IF(EV202=\"\",\"\",+AVERAGE(EV191:EV202))","v":1178.8844826342129},{"$f":"IF(EW202=\"\",\"\",+AVERAGE(EW191:EW202))","v":803.99746428083336},{"$f":"IF(EX202=\"\",\"\",+AVERAGE(EX191:EX202))","v":""},{"$f":"IF(EY202=\"\",\"\",+AVERAGE(EY191:EY202))","v":1916.2283333333335},null,null,null,null,null,null,null,null,{"$f":"'[1]EXT Comercio(M)'!C397","v":""},{"$f":"'[1]EXT Comercio(M)'!D397","v":588.05999999999995},{"$f":"'[1]EXT Comercio(M)'!E397","v":1322.8000000000002},{"$f":"'[1]EXT Comercio(M)'!F397","v":557.24197346024823},{"$f":"'[1]EXT Comercio(M)'!G397","v":660.27419744999997},{"$f":"'[1]EXT Comercio(M)'!H397","v":""},{"$f":"'[1]EXT Comercio(M)'!I397","v":1135.58},{"$f":"'[1]EXT Comercio(M)'!K397","v":""},{"$f":"'[1]EXT Comercio(M)'!L397","v":""},null,null,{"$f":"'[1]EXT Comercio(M)'!AG397","v":""},{"$f":"'[1]EXT Comercio(M)'!AH397","v":1443.38},{"$f":"'[1]EXT Comercio(M)'!AI397","v":2701},{"$f":"'[1]EXT Comercio(M)'!AJ397","v":1166.0059717585443},{"$f":"'[1]EXT Comercio(M)'!AK397","v":851.63001566999992},{"$f":"'[1]EXT Comercio(M)'!AL397","v":""},{"$f":"'[1]EXT Comercio(M)'!AM397","v":1894.4099999999999}]
[null,null,"Mayo ",{"$f":"'[1]REAL IPC(M)'!AD398","v":8.714147294619103},{"$f":"'[1]REAL IPC(M)'!AE398","v":7.4826684698767787},{"$f":"'[1]REAL IPC(M)'!AF398","v":5.8173588924387518},{"$f":"'[1]REAL IPC(M)'!AG398","v":9.0909090909090935},{"$f":"'[1]REAL IPC(M)'!AH398","v":10.610153942576776},{"$f":"'[1]REAL IPC(M)'!AI398","v":9.4725720799621911},{"$f":"'[1]REAL IPC(M)'!AJ398","v":4.2200679651442137},null,null,{"$f":"'[1]REAL IMAE(M)'!AG398","v":5.3810233157872869},{"$f":"'[1]REAL IMAE(M)'!AH398","v":""},{"$f":"'[1]REAL IMAE(M)'!AI398","v":3.835091024592264},{"$f":"'[1]REAL IMAE(M)'!AJ398","v":4.2539492800066334},{"$f":"'[1]REAL IMAE(M)'!AK398","v":3.5376331974604636},{"$f":"'[1]REAL IMAE(M)'!AL398","v":6.1045139148101839},{"$f":"'[1]REAL IMAE(M)'!AM398","v":27.714292739652713},null,null,{"$f":"'[1]EXT ITCER(M)'!C398","v":96.398707491079563},{"$f":"'[1]EXT ITCER(M)'!D398","v":99.942247499037947},{"$f":"'[1]EXT ITCER(M)'!E398","v":54.121297423401302},{"$f":"'[1]EXT ITCER(M)'!F398","v":76.39828204603954},{"$f":"'[1]EXT ITCER(M)'!G398","v":110.9387589149575},{"$f":"'[1]EXT ITCER(M)'!H398","v":113.37290253396699},{"$f":"'[1]EXT ITCER(M)'!I398","v":101.63638464632611},null,null,{"$f":"'[1]EXT TC(M)'!J398","v":9.3614009719369022},{"$f":"'[1]EXT TC(M)'!K398","v":0},{"$f":"'[1]EXT TC(M)'!L398","v":-0.5524983920113784},{"$f":"'[1]EXT TC(M)'!M398","v":1.5746737817152829},{"$f":"'[1]EXT TC(M)'!N398","v":2.1306384661782971},{"$f":"'[1]EXT TC(M)'!O398","v":-3.0509632535625704},{"$f":"'[1]EXT TC(M)'!P398","v":0},null,null,{"$f":"'[1]EXT RIN(M)'!C398","v":6618.7},{"$f":"'[1]EXT RIN(M)'!D398","v":3649.33},{"$f":"'[1]EXT RIN(M)'!E398","v":20986.7},{"$f":"'[1]EXT RIN(M)'!F398","v":8460.0289939404411},{"$f":"'[1]EXT RIN(M)'!G398","v":4284.2910583158855},{"$f":"'[1]EXT RIN(M)'!H398","v":14248.935253775322},{"$f":"'[1]EXT RIN(M)'!I398","v":8250.77309117},null,null,null,{"$f":"'[1]EXT RIN(M)'!Q398","v":117.03314923151224},{"$f":"'[1]EXT RIN(M)'!R398","v":127.57905880984701},{"$f":"'[1]EXT RIN(M)'!S398","v":100.80761356651506},{"$f":"'[1]EXT RIN(M)'!T398","v":163.55470158951778},{"$f":"'[1]EXT RIN(M)'!U398","v":112.58117017936233},{"$f":"'[1]EXT RIN(M)'!V398","v":365.20863394837198},null,null,{"$f":"+'[1]MONE(M)CAPARD'!AE398","v":-5.145739937101995},{"$f":"'[1]MONE(M)CAPARD'!AF398","v":-2.7843265453681099},{"$f":"'[1]MONE(M)CAPARD'!AG398","v":-1.8214014341426474},{"$f":"'[1]MONE(M)CAPARD'!AH398","v":-4.4833333333333361},{"$f":"'[1]MONE(M)CAPARD'!AI398","v":-5.0646575865610348},{"$f":"'[1]MONE(M)CAPARD'!AJ398","v":-3.9813370574490814},{"$f":"'[1]MONE(M)CAPARD'!AK398","v":-2.5139764503132738},null,null,null,{"$f":"'[1]MONE(M)CAPARD'!AM398","v":4.49},{"$f":"'[1]MONE(M)CAPARD'!AN398","v":2.57},{"$f":"'[1]MONE(M)CAPARD'!AO398","v":2.78},{"$f":"'[1]MONE(M)CAPARD'!AP398","v":3.71827991886832},{"$f":"'[1]MONE(M)CAPARD'!AQ398","v":0.89849999999999997},{"$f":"'[1]MONE(M)CAPARD'!AR398","v":1.6},null,null,{"$f":"'[1]MONE(M)CAPARD'!J398","v":""},{"$f":"'[1]MONE(M)CAPARD'!K398","v":-1.2678029763083913},{"$f":"'[1]MONE(M)CAPARD'!L398","v":5.7860460435275005},{"$f":"'[1]MONE(M)CAPARD'!M398","v":5.1966666666666645},{"$f":"'[1]MONE(M)CAPARD'!N398","v":0.69505538345770546},{"$f":"'[1]MONE(M)CAPARD'!O398","v":1.7134227180372803},{"$f":"'[1]MONE(M)CAPARD'!P398","v":3.8134464474053482},null,null,{"$f":"'[1]MONE(M)CAPARD'!Q398","v":""},{"$f":"'[1]MONE(M)CAPARD'!R398","v":6.12},{"$f":"'[1]MONE(M)CAPARD'!S398","v":5.56},{"$f":"'[1]MONE(M)CAPARD'!T398","v":7.39},{"$f":"'[1]MONE(M)CAPARD'!U398","v":8.0532802725535095},{"$f":"'[1]MONE(M)CAPARD'!V398","v":3.8024},{"$f":"'[1]MONE(M)CAPARD'!W398","v":8.1944444444444446},null,null,{"$f":"'[1]MONE(M)CAPARD'!AS398","v":4},{"$f":"'[1]MONE(M)CAPARD'!AT398","v":"n.a."},{"$f":"'[1]MONE(M)CAPARD'!AU398","v":2},{"$f":"'[1]MONE(M)CAPARD'!AV398","v":3},{"$f":"'[1]MONE(M)CAPARD'!AW398","v":4},{"$f":"'[1]MONE(M)CAPARD'!AX398","v":5.5},{"$f":"'[1]MONE(M)CAPARD'!AY398","v":"n.a."},null,null,null,null,{"$f":"+'Datos_Regional (M)'!CH391","v":13.513473018668654},null,null,{"$f":"+'Datos_Regional (M)'!CK391","v":13.26225184835077},null,null,null,"",590.69333333333316,"",484.88490622833433,"","",1199.5708333333334,"","",null,null,"",1388.9750000000004,"",1199.3214383522693,"","",1957.2466666666667,null,null,null,null,null,null,null,null,{"$f":"'[1]EXT Comercio(M)'!C398","v":""},{"$f":"'[1]EXT Comercio(M)'!D398","v":684.25},{"$f":"'[1]EXT Comercio(M)'!E398","v":""},{"$f":"'[1]EXT Comercio(M)'!F398","v":597.21533128190083},{"$f":"'[1]EXT Comercio(M)'!G398","v":""},{"$f":"'[1]EXT Comercio(M)'!H398","v":""},{"$f":"'[1]EXT Comercio(M)'!I398","v":1230.2},{"$f":"'[1]EXT Comercio(M)'!K398","v":""},{"$f":"'[1]EXT Comercio(M)'!L398","v":""},null,null,{"$f":"'[1]EXT Comercio(M)'!AG398","v":""},{"$f":"'[1]EXT Comercio(M)'!AH398","v":1546.4700000000003},{"$f":"'[1]EXT Comercio(M)'!AI398","v":""},{"$f":"'[1]EXT Comercio(M)'!AJ398","v":1353.5368264677895},{"$f":"'[1]EXT Comercio(M)'!AK398","v":""},{"$f":"'[1]EXT Comercio(M)'!AL398","v":""},{"$f":"'[1]EXT Comercio(M)'!AM398","v":2186.91}]
[null,null,"Junio",{"$f":"'[1]REAL IPC(M)'!AD399","v":10.055605676445079},{"$f":"'[1]REAL IPC(M)'!AE399","v":7.759211946994812},{"$f":"'[1]REAL IPC(M)'!AF399","v":7.5538134467180278},{"$f":"'[1]REAL IPC(M)'!AG399","v":10.216110019646358},{"$f":"'[1]REAL IPC(M)'!AH399","v":10.37048519913351},{"$f":"'[1]REAL IPC(M)'!AI399","v":9.4782888980982669},{"$f":"'[1]REAL IPC(M)'!AJ399","v":5.1984402104513991},null,null,null,null,null,null,null,null,null,null,null,{"$f":"'[1]EXT ITCER(M)'!C399","v":98.258298038654374},{"$f":"'[1]EXT ITCER(M)'!D399","v":100.42164100550301},{"$f":"'[1]EXT ITCER(M)'!E399","v":54.309338978350063},{"$f":"'[1]EXT ITCER(M)'!F399","v":76.45541988042693},{"$f":"'[1]EXT ITCER(M)'!G399","v":111.98050270079131},{"$f":"'[1]EXT ITCER(M)'!H399","v":113.46616591855241},{"$f":"'[1]EXT ITCER(M)'!I399","v":101.83863866027031},null,null,{"$f":"'[1]EXT TC(M)'!J399","v":11.60099405768853},{"$f":"'[1]EXT TC(M)'!K399","v":0},{"$f":"'[1]EXT TC(M)'!L399","v":-7.1251922182486065E-3},{"$f":"'[1]EXT TC(M)'!M399","v":1.7875869823380821},{"$f":"'[1]EXT TC(M)'!N399","v":""},{"$f":"'[1]EXT TC(M)'!O399","v":-3.7722447458270802},{"$f":"'[1]EXT TC(M)'!P399","v":0},null,null,{"$f":"'[1]EXT RIN(M)'!C399","v":6197.3},{"$f":"'[1]EXT RIN(M)'!D399","v":3483.47},{"$f":"'[1]EXT RIN(M)'!E399","v":19875.599999999999},{"$f":"'[1]EXT RIN(M)'!F399","v":8352.4907055666154},{"$f":"'[1]EXT RIN(M)'!G399","v":4278.3910583158859},{"$f":"'[1]EXT RIN(M)'!H399","v":14455.381276348726},{"$f":"'[1]EXT RIN(M)'!I399","v":""},null,null,null,{"$f":"'[1]EXT RIN(M)'!Q399","v":111.99809407084989},{"$f":"'[1]EXT RIN(M)'!R399","v":119.79528102643344},{"$f":"'[1]EXT RIN(M)'!S399","v":""},{"$f":"'[1]EXT RIN(M)'!T399","v":""},{"$f":"'[1]EXT RIN(M)'!U399","v":112.13173050502519},{"$f":"'[1]EXT RIN(M)'!V399","v":""},null,null,{"$f":"+'[1]MONE(M)CAPARD'!AE399","v":""},{"$f":"'[1]MONE(M)CAPARD'!AF399","v":-3.0709318370132155},{"$f":"'[1]MONE(M)CAPARD'!AG399","v":-3.4157909691765864},{"$f":"'[1]MONE(M)CAPARD'!AH399","v":""},{"$f":"'[1]MONE(M)CAPARD'!AI399","v":""},{"$f":"'[1]MONE(M)CAPARD'!AJ399","v":-3.8834082454974492},{"$f":"'[1]MONE(M)CAPARD'!AK399","v":""},null,null,null,{"$f":"'[1]MONE(M)CAPARD'!AM399","v":4.45},{"$f":"'[1]MONE(M)CAPARD'!AN399","v":2.64},{"$f":"'[1]MONE(M)CAPARD'!AO399","v":""},{"$f":"'[1]MONE(M)CAPARD'!AP399","v":3.3494404851629},{"$f":"'[1]MONE(M)CAPARD'!AQ399","v":0.95409999999999995},{"$f":"'[1]MONE(M)CAPARD'!AR399","v":""},null,null,null,{"$f":"'[1]MONE(M)CAPARD'!K399","v":-1.4655006458024245},{"$f":"'[1]MONE(M)CAPARD'!L399","v":4.1153227500154586},{"$f":"'[1]MONE(M)CAPARD'!M399","v":""},{"$f":"'[1]MONE(M)CAPARD'!N399","v":""},{"$f":"'[1]MONE(M)CAPARD'!O399","v":2.0171224122412217},{"$f":"'[1]MONE(M)CAPARD'!P399","v":""},null,null,{"$f":"'[1]MONE(M)CAPARD'!Q399","v":""},{"$f":"'[1]MONE(M)CAPARD'!R399","v":6.18},{"$f":"'[1]MONE(M)CAPARD'!S399","v":5.52},{"$f":"'[1]MONE(M)CAPARD'!T399","v":""},{"$f":"'[1]MONE(M)CAPARD'!U399","v":8.3077221405215003},{"$f":"'[1]MONE(M)CAPARD'!V399","v":4.3262},{"$f":"'[1]MONE(M)CAPARD'!W399","v":""},null,null,{"$f":"'[1]MONE(M)CAPARD'!AS399","v":5.5},{"$f":"'[1]MONE(M)CAPARD'!AT399","v":"n.a."},{"$f":"'[1]MONE(M)CAPARD'!AU399","v":2.25},{"$f":"'[1]MONE(M)CAPARD'!AV399","v":3},{"$f":"'[1]MONE(M)CAPARD'!AW399","v":5},{"$f":"'[1]MONE(M)CAPARD'!AX399","v":6.5},{"$f":"'[1]MONE(M)CAPARD'!AY399","v":"n.a."},null,null,null,null,null,null,null,null,null,null,null,"",597.94333333333327,"","","","","","",{"$f":"IF(EP204=\"\",\"\",+AVERAGE(EP193:EP204))","v":""},null,null,"",1415.3733333333337,"","","","","",null,null,null,null,null,null,null,null,{"$f":"'[1]EXT Comercio(M)'!C399","v":""},{"$f":"'[1]EXT Comercio(M)'!D399","v":642.00999999999976},{"$f":"'[1]EXT Comercio(M)'!E399","v":""},{"$f":"'[1]EXT Comercio(M)'!F399","v":""},{"$f":"'[1]EXT Comercio(M)'!G399","v":""},{"$f":"'[1]EXT Comercio(M)'!H399","v":""},{"$f":"'[1]EXT Comercio(M)'!I399","v":""},{"$f":"'[1]EXT Comercio(M)'!K399","v":""},{"$f":"'[1]EXT Comercio(M)'!L399","v":""},null,null,{"$f":"'[1]EXT Comercio(M)'!AG399","v":""},{"$f":"'[1]EXT Comercio(M)'!AH399","v":1592.2600000000002},{"$f":"'[1]EXT Comercio(M)'!AI399","v":""},{"$f":"'[1]EXT Comercio(M)'!AJ399","v":""},{"$f":"'[1]EXT Comercio(M)'!AK399","v":""},{"$f":"'[1]EXT Comercio(M)'!AL399","v":""},{"$f":"'[1]EXT Comercio(M)'!AM399","v":""}]
[null,null,"Julio",null,null,null,null,null,null,null,null,null,null,null,null,null,null,null,null,null,null,null,null,null,null,null,null,null,null,null,null,null,null,null,null,null,null,null,null,null,null,null,null,null,null,null,null,null,null,null,null,null,null,null,null,null,null,null,null,null,null,null,null,null,null,null,null,null,null,null,null,null,null,null,null,null,null,null,null,null,null,null,null,null,null,null,null,null,null,null,null,null,null,{"$f":"'[1]MONE(M)CAPARD'!AS400","v":7.5},{"$f":"'[1]MONE(M)CAPARD'!AT400","v":"n.a."},{"$f":"'[1]MONE(M)CAPARD'!AU400","v":2.25},{"$f":"'[1]MONE(M)CAPARD'!AV400","v":3},{"$f":"'[1]MONE(M)CAPARD'!AW400","v":5},{"$f":"'[1]MONE(M)CAPARD'!AX400","v":7.25},{"$f":"'[1]MONE(M)CAPARD'!AY400","v":"n.a."},null,null,null,null,null,null,null,null,null,null,null,"","","","","","","","","",null,null,"","","","","","","",null,null,null,null,null,null,null,null,{"$f":"'[1]EXT Comercio(M)'!C400","v":""},{"$f":"'[1]EXT Comercio(M)'!D400","v":""},{"$f":"'[1]EXT Comercio(M)'!E400","v":""},{"$f":"'[1]EXT Comercio(M)'!F400","v":""},{"$f":"'[1]EXT Comercio(M)'!G400","v":""},{"$f":"'[1]EXT Comercio(M)'!H400","v":""},{"$f":"'[1]EXT Comercio(M)'!I400","v":""},{"$f":"'[1]EXT Comercio(M)'!K400","v":""},{"$f":"'[1]EXT Comercio(M)'!L400","v":""}]
[null,null,"Agosto"]
[null,null,"Setiembre"]
[null,null,"Octubre"]
[null,null,"Noviembre"]
[null,null,"Diciembre "]
[]
[]
[]
[]
[]
[]
[]
[]
[]
[]
[]
[]
[]
[null,"Año","Mes","Inflación",null,null,null,null,null,null,null,null,"T1,12 de la Tendencia Ciclo",null,null,null,null,null,null,null,null,"ITCER con USA",null,null,null,null,null,null,null,null,"Variación Interanual del Tipo de Cambio",null,null,null,null,null,null,null,null,"Reservas Internacionales Netas por país",null,null,null,null,null,null,null,null,"RIN a Base Monetaria Amplia por país",null,null,null,null,null,null,null,null,"Tasa de Interés pasiva Real en MN",null,null,null,null,null,null,null,null,"Tasa de Interés pasiva en ME (180 días)",null,null,null,null,null,null,null,null,"Tasa de Interés Activa Real en MN",null,null,null,null,null,null,null,null,"Tasa de Interés Activa en ME (180 días)",null,null,null,null,null,null,null,null,"Tasa de Interés de Política Monetaria",null,null,null,null,null,null,null,null,"Créditos de las OSD con el sector Privado, Variación Interanual ",null,null,null,null,null,null,null,null,"Promedio de Exportaciones Totales al mes por país y Región",null,null,null,null,null,null,null,null,null,null,"Promedio Móvil de Importaciones Totales al mes por país y Región",null,null,null,null,null,null,null,null,null,null,"CARD","CAPARD",null,null,"Exportaciones Totales al mes por país y Región",null,null,null,null,null,null,null,null,null,null,"Importaciones Totales al mes por país y Región",null,null,null,null,null,null,null,null,null,null,"CARD","CAPARD"]
[]
[]
[null,null,null,"Variación Interanual Costa Rica","Variación Interanual\nEl Salvador","Variación Interanual Guatemala","Variación Interanual Honduras","Variación Interanual Nicaragua","Variación Interanual Dominicana","Variación Interanual Panamá",null,null,"Variación Interanual Costa Rica","Variación Interanual\nEl Salvador","Variación Interanual Guatemala","Variación Interanual Honduras","Variación Interanual Nicaragua","Variación Interanual Dominicana","Variación Interanual Panamá",null,null,"Indice Original\nCosta Rica","Indice Original\nEl Salvador","Indice Original\nGuatemala","Indice Original\nHonduras","Indice Original\nNicaragua","Indice Original\nDominicana","Indice Original\nPanamá",null,null,"Variación Interanual Costa Rica","Variación Interanual\nEl Salvador","Variación Interanual Guatemala","Variación Interanual Honduras","Variación Interanual Nicaragua","Variación Interanual Dominicana","Variación Interanual Panamá",null,null,"RIN del BC Costa Rica","RIN del BC\nEl Salvador","RIN del BC\nGuatemala","RIN del BC\nHonduras","RIN del BC\nNicaragua","RIN del BC\nDominicana","RIN del BC\nPanmaná",null,null,"RIN del BC Costa Rica","RIN del BC\nEl Salvador","RIN del BC\nGuatemala","RIN del BC\nHonduras","RIN del BC\nNicaragua","RIN del BC\nDominicana","RIN del BC\nPanmaná",null,null,"Ti pasiva real MN\nCosta Rica","Ti pasiva real MN\nEl Salvador","Ti pasiva real MN\nGuatemala","Ti pasiva real MN\nHonduras","Ti pasiva real MN\nNicaragua","Ti pasiva real MN\nDominicana","Ti pasiva real MN\nPanamá",null,null,"Ti pasiva ME (prom nominal)\nCosta Rica","Ti pasiva ME (prom nominal)\nEl Salvador","Ti pasiva ME (prom nominal)\nGuatemala","Ti pasiva ME (prom nominal)\nHonduras","Ti pasiva ME (prom nominal)\nNicaragua","Ti pasiva ME (prom nominal)\nDominicana","Ti pasiva ME (prom nominal)\nPanamá",null,null,"Ti activa real MN\nCosta Rica","Ti activa real MN\nEl Salvador","Ti activa real MN\nGuatemala","Ti activa real MN\nHonduras","Ti activa real MN\nNicaragua","Ti activa real MN\nDominicana","Ti activa real MN\nPanamá",null,null,"Ti activa ME (prom nominal)\nCosta Rica","Ti activa ME (prom nominal)\nEl Salvador","Ti activa ME (prom nominal)\nGuatemala","Ti activa ME (prom nominal)\nHonduras","Ti activa ME (prom nominal)\nNicaragua","Ti activa ME (prom nominal)\nDominicana","Ti activa ME (prom nominal)\nPanamá",null,null,"Tasa de Política Monetaria\nCosta Rica","Tasa de Política Monetaria\nEl Salvador","Tasa de Política Monetaria\nGuatemala","Tasa de Política Monetaria\nHonduras","Tasa de Política Monetaria\nNicaragua","Tasa de Política Monetaria\nDominicana","Tasa de Política Monetaria\nPanamá",null,null,"Créditos de las OSD con el sector Privado Costa Rica","Créditos de las OSD con el sector Privado El Salvador","Créditos de las OSD con el sector Privado Guatemala","Créditos de las OSD con el sector Privado Honduras","Créditos de las OSD con el sector Privado Nicaragua","Créditos de las OSD con el sector Privado Dominicana","Créditos de las OSD con el sector Privado Panamá",null,null,"Exp Total FOB\nCosta Rica","Exp Total FOB\nEl Salvador","Exp Total FOB\nGuatemala","Exp Total FOB\nHonduras","Exp Total FOB\nNicaragua","Exp Total FOB\nDominicana","Exp Total FOB\nPanamá","Exp Total FOB\nRegional","Exp Total FOB\nCAPARD",null,null,"Imp Total CIF Costa Rica","Imp Total CIF El Salvador","Imp Total CIF Guatemala","Imp Total CIF Honduras","Imp Total CIF Nicaragua","Imp Total CIF Dominicana","Imp Total CIF  Panamá","Imp Total CIF Regional","Imp Total CIF CAPARD",null,null,"Saldo de Comercio Exterior Promedio Movil Regional al mes","Saldo de Comercio Exterior Promedio Movil Regional al mes",null,null,"Exp Total FOB\nCosta Rica","Exp Total FOB\nEl Salvador","Exp Total FOB\nGuatemala","Exp Total FOB\nHonduras","Exp Total FOB\nNicaragua","Exp Total FOB\nDominicana","Exp Total FOB\nPanamá","Exp Total FOB\nRegional","Exp Total FOB\nCAPARD",null,null,"Imp Total CIF\nCosta Rica","Imp Total CIF\nEl Salvador","Imp Total CIF\nGuatemala","Imp Total CIF\nHonduras","Imp Total CIF\nNicaragua","Imp Total CIF\nDominicana","Imp Total CIF\nPanamá","Imp Total CIF\nRegional","Imp Total CIF\nCAPARD",null,null,"Saldo de Comercio Regional al mes","Saldo de Comercio Regional al mes"]
[null,null,null,"%","%","%","%","%","%","%",null,null,"%","%","%","%","%","%","%",null,null,"Nivel","Nivel","Nivel","Nivel","Nivel","Nivel","Nivel",null,null,"%","%","%","%","%","%","%",null,null,"Millones US$","Millones US$","Millones US$","Millones US$","Millones US$","Millones US$","Millones US$",null,null,"Millones US$","Millones US$","Millones US$","Millones US$","Millones US$","Millones US$","Millones US$",null,null,"%","%","%","%","%","%","%",null,null,"%","%","%","%","%","%","%",null,null,"%","%","%","%","%","%","%",null,null,"%","%","%","%","%","%","%",null,null,"%","%","%","%","%","%","%",null,null,"%","%","%","%","%","%","%",null,null,"Millones US$","Millones US$","Millones US$","Millones US$","Millones US$","Millones US$","Millones US$","Millones US$","Millones US$",null,null,"Millones US$","Millones US$","Millones US$","Millones US$","Millones US$","Millones US$","Millones US$","Millones US$","Millones US$",null,null,"Millones US$","Millones US$",null,null,"Millones US$","Millones US$","Millones US$","Millones US$","Millones US$","Millones US$","Millones US$","Millones US$","Millones US$",null,null,"Millones US$","Millones US$","Millones US$","Millones US$","Millones US$","Millones US$","Millones US$","Millones US$","Millones US$",null,null,"Millones US$","Millones US$"]
[null,2006,"Enero",13.195387319236479,3.3321432821611303,8.0834131604155832,7.2930354796320787,10.268771845245265,8.2493088307041695,3.0481809242871103,null,null,5.4578416234217908,6.9914187371499725,3.4128069935503538,6.8235853355685672,"n.d.","n.d.",5.8222747168762554,null,null,102.37993931645707,96.991859031211774,76.577806016513378,95.98306320482402,107.38657563086096,103.10057299544465,106.9645426201087,null,null,8.2188905526177418,0,-1.8077581502633662,1.2861736334405061,5.7161451937718022,15.851197897813357,0,null,null,2350.1,1726.4,4087.8,2206.3262658537619,727.7,1476.5,1207.5531742798,null,null,55.332612936163692,88.770053475935825,109.18065979452966,106.57212687030275,75.781538882375614,32.655446523979343,153.29313559107652,null,null,1.815102822581639,0.72176056513970366,-3.2043891464412244,3.1940232700550992,1.6236165781056027,2.6704015023474281,-0.24083969465648031,null,null,3.33,4.08,3.33,2.88,4.7,3.23,2.8,null,null,9.4214198317133349,4.314104572152484,4.2898227433869742,10.3426699326393,8.0469961165330179,11.862146103286396,4.6403721374045892,null,null,10.48,7.79,7.31,8.84,10.199999999999999,9.1300000000000008,7.83,null,null,"n.d.","n.a.",4.25,7,"n.a.",10,"n.a.",null,null,28.663359416032286,10.056744831538357,5.5704972052809554,18.897940444016182,33.219639618913476,15.191353953505837,18.007091781691955,null,null,null,null,null,null,null,null,null,null,null,null,null,null,null,null,null,null,null,null,null,null,null,null,null,null,null,null,538.82476956999994,303.18,460.6,174.29626059859416,129.1,423.68849999999998,617.28600000000006,2029.689530168594,2646.9755301685946,null,null,923.31914477000009,545.83000000000004,927.1,418.00248488743978,282.7,824.5,825.89502800000002,3921.4516296574393,4747.3466576574392,null,null,-1891.7620994888457,-2100.3711274888456]
[null,null,"Febrero",12.962452589513699,3.7450957080014327,7.2635505815229342,6.7812337662337576,10.489343969520185,8.0752661952369387,2.3483365949119261,null,null,5.8076502141353874,5.5201766982716283,3.6274827192794685,6.8556718237779855,"n.d.","n.d.",6.6288009974371356,null,null,102.28824337722259,96.708584963967652,76.623928651935742,95.508118204332305,106.64365661201944,102.26221905728706,107.38523935434533,null,null,8.0871055590410599,0,-1.3945515557158745,0.90763481046448546,5.1752110005894103,18.46329837940895,0,null,null,2405.1999999999998,1855.6,4067.1,2270.2131867352559,703.4,1501.8,1113.42992807276,null,null,55.689856024431819,88.42312725096329,110.26084499290828,108.74372710957549,72.204193537757462,32.693547603786485,142.26851713515128,null,null,2.0250511408308385,0.21955796396696795,-2.4365691489361723,3.6230769183991387,0.61621694331956445,2.7339593126010557,0.90051625239006861,null,null,3.3600000000000003,3.97,3.34,2.96,4.8,2.98,3.27,null,null,9.478855310946205,3.6517352452853413,5.1056014729950885,10.899636409189572,6.9939714704741958,12.523433234309776,4.9064435946462837,null,null,10.54,7.53,7.39,8.84,9.9,7.96,7.37,null,null,"n.d.","n.a.",4.25,7,"n.a.",10,"n.a.",null,null,28.314985229658095,11.127324148385686,7.0601135588099773,19.072651696269148,35.861908009926658,15.161705146044335,17.320750903486658,null,null,null,null,null,null,null,null,null,null,null,null,null,null,null,null,null,null,null,null,null,null,null,null,null,null,null,null,634.0564989500001,293.33999999999997,428.30000000000007,179.35100965771059,151.80000000000001,497.19280000000003,682.21600000000001,2184.0403086077108,2866.2563086077107,null,null,814.71968157999993,580.4799999999999,824.9,365.87825691667001,259.90000000000003,868.8,768.52662899999996,3714.6779384966712,4483.2045674966721,null,null,-1530.6376298889591,-1616.9482588889591]
[null,null,"Marzo",12.21660233979196,4.0394439824165271,7.2806698216235848,6.1855670103092928,10.14031364225916,8.256059866601607,2.0408163265305994,null,null,6.1839315896027562,4.1436090839490198,3.6959022335294334,7.3301770171878458,"n.d.","n.d.",7.4396736500034502,null,null,103.24718516408933,96.89971606388039,76.785349236053037,95.828866892410815,106.860571618649,97.884022383734731,107.56837098692031,null,null,7.9570237908960726,0,7.0228598032013922E-2,0.69259456579647849,5.0675579975700797,15.064615645573381,0,null,null,2765.7,1763.7,4115.5,2386.1356907394475,766.5,1524.2,1137.2237359982,null,null,59.589120646112079,86.286017330588408,111.36425811817583,109.04177308514507,79.856837221370455,33.358120831968563,146.83767313913012,null,null,2.703162989970195,7.6459913605915295E-2,-2.4521377672208979,4.1007766990291108,0.92714709573714138,2.7194229468780398,1.136000000000013,null,null,3.3849999999999998,4.12,3.43,3,4.9000000000000004,3,3.2,null,null,10.108484330071299,3.2611153514555422,5.1074720054292539,11.333398058252412,7.3185637832743771,12.196952438199702,5.2422000000000128,null,null,10.88,7.43,7.4700000000000006,8.91,9.8000000000000007,8.6300000000000008,7.39,null,null,8.51,"n.a.",4.25,6.75,"n.a.",10,"n.a.",null,null,28.531391372747095,10.922799190821063,8.2393467364412878,21.229670591680438,34.888310903525891,18.195251345727016,17.031070937013769,null,null,null,null,null,null,null,null,null,null,null,null,null,null,null,null,null,null,null,null,null,null,null,null,null,null,null,null,815.36940162999986,338.25,495.90000000000009,206.75582121440425,172.59999999999997,596.0009,810.74200000000008,2624.8761228444046,3435.6181228444048,null,null,976.88234908000004,672.33000000000015,983.1999999999997,430.41950835667751,308.8,1027.9000000000001,841.15919899999994,4399.5318574366775,5240.6910564366772,null,null,-1774.6557345922738,-1805.0729335922738]
[null,null,"Abril",11.629027958973545,4.2203570161957593,7.4808276660396675,5.8109833971902907,9.8446196660482492,8.5586863977295735,2.9069767441860583,null,null,6.4762616570382487,2.9294986576273816,3.7815760562554495,8.2399501680102389,"n.d.","n.d.",8.1433899709904622,null,null,104.2109641076829,97.070180965128657,76.549169095729042,96.119304236936543,106.61759400101026,96.763660033858969,107.2578138004184,null,null,7.8381253172890961,0,-0.14062271636213511,0.47846889952153038,5.1287312757251211,13.662287456057429,0,null,null,2740.9,2149.6,4141.6000000000004,2489.5851170323681,801.4,1571.7,1106.9278590550798,null,null,59.687169372967766,106.56947044452201,115.17775149034952,110.18220226831099,79.946625788184761,34.152831126417745,143.50734827652013,null,null,3.2437548600163373,-0.19144861451938872,-2.5965818524502069,4.1857815328907702,0.39639578480145093,2.3962279653421006,0.43050847457625974,null,null,3.4450000000000003,4.0199999999999996,3.47,3.6,5.0999999999999996,2.96,3.35,null,null,10.607430911637458,3.0047054649063427,4.8931260096930336,11.529064574532292,3.5547190077742474,10.714309456229465,4.3175141242937727,null,null,11.12,7.35,7.5,8.94,10.7,8.34,7.35,null,null,8.51,"n.a.",4.5,6.5,"n.a.",10,"n.a.",null,null,28.427447143515483,11.40928258867806,7.9690601288370688,23.180124138490179,35.565596882865776,18.35592399818189,16.873481818690415,null,null,null,null,null,null,null,null,null,null,null,null,null,null,null,null,null,null,null,null,null,null,null,null,null,null,null,null,560.88800568000011,281.52,394.29999999999995,152.97518801633385,145.29999999999998,514.74340000000018,603.60799999999995,2049.726593696334,2653.3345936963324,null,null,848.22872828000027,502.64999999999986,882.10000000000036,420.65743794337754,270.30000000000007,936.0999999999998,783.96233899999993,3860.0361662233772,4643.9985052233751,null,null,-1810.3095725270432,-1990.6639115270427]
[null,null,"Mayo ",11.864015532006505,3.603286384976518,7.6164423007702933,6.1068702290076482,9.9126034958601714,9.5075434101907277,3.1098153547132847,null,null,6.7569761673843081,2.0272340157942637,4.0912689965256712,8.7104192852163145,"n.d.","n.d.",8.784156776152372,null,null,103.51597609361066,97.43035192675886,76.358563640412711,95.959297004844586,106.64010405879532,97.854455626594316,107.89170358432861,null,null,7.5524724054266441,0,-9.6936925055224304E-2,0.2652519893899053,5.0127871096329617,13.218230600369344,0,null,null,2503.8000000000002,2109.6999999999998,4211.6000000000004,2497.1465653790383,795.9,1617.4,1168.69120848646,null,null,56.116102384432466,105.8140817943805,116.04615472941164,115.41564344056023,83.043793597156039,34.657508173285848,149.17051518786872,null,null,1.6859617023671072,0.50470246755937143,-2.7100341159943899,3.4805755395683318,1.4656885228186862,1.3080894203275204,0.17475023562679556,null,null,3.59,4.13,3.48,3.2,4.8,2.9,3.29,null,null,9.4811404807815336,3.8830510644138108,4.7237741654960086,10.878776978417251,3.6631563533505322,9.8828411749415039,4.1510933081998402,null,null,11.15,7.63,7.48,8.9,10.3,8.85,7.39,null,null,8.51,"n.a.",4.5,6.5,"n.a.",10,"n.a.",null,null,27.945206113279951,11.980956643146467,8.2071235896640218,24.987245255851832,33.524058722373653,18.751213604780361,16.843773745597513,null,null,null,null,null,null,null,null,null,null,null,null,null,null,null,null,null,null,null,null,null,null,null,null,null,null,null,null,766.52788651999981,338.72,483.79999999999995,226.90800636623408,179.70000000000005,548.99959999999976,730.09500000000003,2544.6554928862333,3274.7504928862345,null,null,1042.3718409900002,765.95000000000027,1100.8999999999996,480.31871327763292,337,1053.7,994.184978,4780.2405542676352,5774.4255322676363,null,null,-2235.5850613814,-2499.6750393814]
[null,null,"Junio",12.419859591990127,4.423325120262831,7.552567586897446,5.6854074542008837,9.4988012330174598,10.27433448486078,3.2038834951456234,null,null,6.9318353220244493,1.646137852740567,4.8029999087411612,9.0507272249583401,"n.d.","n.d.",9.3532612438873279,null,null,103.29776624349118,96.822080548884387,76.320189993334409,95.86149164224237,107.08271544574629,98.127273475518436,107.90142728291998,null,null,7.38813611625425,0,-4.4972424802689412E-2,0.21208907741250871,5.4509161920953115,13.379886914937064,0,null,null,2613.6,2011,4062.4,2526.1261082221936,813.4,1579.8,1206.5475861353896,null,null,57.5850766914904,104.62928662701401,112.563116570863,109.94387281875375,83.700001166394387,35.680205791948282,155.48732370098767,null,null,0.96080925255168603,-3.6498511277098425E-2,-2.6522542891341994,3.5147638971906767,2.0814565136228373,0.80314745881400895,0.51947318908749596,null,null,3.6,4.3899999999999997,3.88,3.33,5,2.83,3.74,null,null,8.8864551595141137,2.6122768086460417,4.8045644367602023,11.273640167364018,7.3781358610277801,8.61094792319318,4.0755409219191048,null,null,11.14,7.15,7.57,8.91,10.4,8.35,7.41,null,null,8.51,"n.a.",4.75,6.5,"n.a.",10,"n.a.",null,null,28.676773912451424,12.648099658012345,10.432409150206446,24.025631739942121,32.383280222459,20.430382278475445,14.897359968446832,null,null,null,null,null,null,null,null,null,null,null,null,null,null,null,null,null,null,null,null,null,null,null,null,null,null,null,null,748.31039812000063,330.50000000000023,543.70000000000027,195.32250643696693,174.10000000000002,595.95899999999983,696.54599999999994,2587.8919045569692,3284.4379045569676,null,null,959.15423295999972,745.0300000000002,971.8,510.63011593044484,306.50000000000011,995.59999999999991,1006.4809100000002,4488.7143488904439,5495.195258890446,null,null,-1900.8224443334784,-2210.7573543334784]
[null,null,"Julio",12.02600946663302,5.552301745343807,7.0355675216097628,5.322479649342517,9.1711956521739229,10.60116354234,2.8046421663442853,null,null,7.1556396738488477,1.4863965318741952,5.7772979341018393,9.435265091470491,"n.d.","n.d.",9.857123231213075,null,null,103.22923744322732,95.912187052094779,75.931343843754689,95.630515866562263,107.06310021808989,97.5117040969957,108.22050493875906,null,null,7.2663951639162061,0,-7.9681695373191197E-2,0.1589825119236756,4.8793715099395145,13.231237252393949,0,null,null,2588.1,2257,4038.2,2495.5068193657653,853.3,1603.2,1170.0952668014199,null,null,56.717919357660548,109.04419406098069,110.13940226151702,113.87922713777145,84.723603846593292,35.671129885585025,151.56518659495978,null,null,1.5389198775922921,-0.96838580778900196,-2.1913907460117947,3.5771284185493459,2.3131880079041438,-0.32654587960255987,1.1432925682032071,null,null,4,4.53,3.86,3.37,4.9000000000000004,2.7,3.98,null,null,9.2246350437115865,1.7327765869511118,5.2921029986099022,11.324762187871581,7.8851738336867188,9.1037346580946963,4.4602634054562644,null,null,11.06,7.38,7.55,9.0399999999999991,10.7,7.47,7.39,null,null,9.1999999999999993,"n.a.",5,6.5,"n.a.",10,"n.a.",null,null,29.88101983577096,12.933105287067281,9.491381901729401,23.684151770169848,34.20576039234917,20.631768338058865,14.851197703255782,null,null,null,null,null,null,null,null,null,null,null,null,null,null,null,null,null,null,null,null,null,null,null,null,null,null,null,null,628.46014399999967,328.89999999999964,568.19999999999982,179.08528911488315,155.80000000000001,534.09709999999995,633.16300000000001,2394.5425331148799,3027.705533114884,null,null,970.95297905999996,710.60000000000036,1028.8999999999999,478.96918852355384,308.00000000000006,1071.9999999999998,1033.4480789999998,4569.4221675835506,5602.8702465835522,null,null,-2174.8796344686707,-2575.16471346867]
[null,null,"Agosto",11.614065597123826,4.7079439252336419,6.9961171902576735,4.8447204968944169,8.6501687289088824,9.3489614479926431,2.9013539651837639,null,null,7.5231231469588309,2.95797038354499,6.6939002046125875,9.8254547572428592,"n.d.","n.d.",10.236759271931032,null,null,103.05472117345064,96.622993952648983,75.825467067443455,95.477900356012114,107.63465736435317,97.16086974700292,108.33131245175956,null,null,7.1502751059285634,0,-7.2170253189606737E-2,0.1589825119236756,4.9273131014063685,12.52853349884486,0,null,null,2675.6,2070.3000000000002,4031.8,2597.6150644142435,830.4,1645,991.54574445036008,null,null,58.607651805603957,100.75894069516518,113.43398387823622,116.38403829621112,84.816116199415731,35.4173370629034,124.83811126517543,null,null,1.9136785123905931,-0.11698427048048278,-2.1459817893903366,3.7057464454976241,1.9816572135735517,-0.86782849642698923,1.0482330827067556,null,null,4,4.59,3.94,3.42,5.2,2.5,3.98,null,null,9.7531922441129471,2.6621329742477826,5.3215789126418613,11.660367298578191,8.1623637113658898,9.5666556074085083,4.4106766917293125,null,null,11.01,7.5,7.7399999999999993,9.0399999999999991,10.4,8.1999999999999993,7.44,null,null,9.1999999999999993,"n.a.",5,6.5,"n.a.",8,"n.a.",null,null,29.442459616577409,13.180534372214336,9.7963922850724536,26.41370031961592,34.231942963984707,20.392618218128099,15.144955284079176,null,null,null,null,null,null,null,null,null,null,null,null,null,null,null,null,null,null,null,null,null,null,null,null,null,null,null,null,718.98630540999966,308.55000000000018,530.90000000000032,162.20858367926917,186.39999999999998,596.3438000000001,757.88799999999992,2503.3886890892682,3261.2766890892708,null,null,1030.1968674199998,605.3799999999992,1060.1000000000008,496.83527569275293,331.2000000000001,1169.0000000000002,1157.9029500000001,4692.7121431127525,5850.6150931127486,null,null,-2189.3234540234826,-2589.3384040234814]
[null,null,"Setiembre",11.239649756896396,4.235020360674806,5.6982849142457317,4.4554455445544665,7.4860335195530761,4.7295471217327423,1.6299137104506298,null,null,7.9357226207718607,6.0063689186895965,7.3005378560715748,10.2451776967564,"n.d.","n.d.",10.422765334604128,null,null,103.23917533372064,96.180908785466727,75.979747340067462,95.009641894236665,107.71696899982726,98.704691328742598,108.20680868089049,null,null,7.0035757378140691,0,-0.19428750083744134,0.10593220338982826,4.6985060874582079,8.3052841947486815,0,null,null,2764.6,2017.3,4031.3,2552.4508792756892,824.7,1582.9,906.06812264791006,null,null,58.559557009563832,94.516337603193506,109.52317551649166,117.7459844380077,85.182868558149082,35.370695825987589,113.60851123721952,null,null,2.0319645506214146,0.33027052031187254,-0.92554473806214177,3.8337440758293742,2.5107208802128045,2.6166950527169592,2.469830188679238,null,null,4.01,4.58,3.95,3.5,4.95,2.91,4.1399999999999997,null,null,10.050688108256155,3.2331768286285931,6.6242466388502343,11.932890995260655,9.6798476920558656,12.251034431910352,5.726745283018861,null,null,11,7.61,7.7299999999999995,9.06,10.6,8.15,7.45,null,null,9.1999999999999993,"n.a.",5,6,"n.a.",8,"n.a.",null,null,28.76606106737345,10.478764499582226,10.555102234319214,25.766264714812625,34.210318719132204,18.301422585889938,15.321998372030542,null,null,null,null,null,null,null,null,null,null,null,null,null,null,null,null,null,null,null,null,null,null,null,null,null,null,null,null,713.49606009000036,328.69000000000051,593.89999999999986,141.04834327899357,164.40000000000003,624.10519999999997,805.48099999999988,2565.6396033689962,3371.1206033689923,null,null,969.2747209299996,639.75,1008.7,465.54228456237934,310.4000000000002,1016.3999999999996,1109.3948429999998,4410.0670054923758,5519.4618484923776,null,null,-1844.4274021233832,-2148.3412451233853]
[null,null,"Octubre",10.085398343659078,1.8837766868363959,3.8509180721097915,4.5145330859616646,6.9744271006310168,3.6847531406315905,1.3346043851286793,null,null,8.2127275646222504,7.6964094644194292,7.5494600205035791,10.627308400228218,"n.d.","n.d.",10.378634212305608,null,null,102.38852413103577,96.04105375334133,75.657082836084072,94.382729707483364,107.14063057507293,99.628534995591494,107.31645158054832,null,null,6.2123866763761075,0,-0.79417258904438459,5.2938062466903177E-2,4.8196879372582258,3.293166494376127,0,null,null,2882.3,2020.5,4036.3,2538.5154229952577,804.4,1717.2,921.9005963797199,null,null,59.319298653483735,92.242457278799577,104.28778506152831,121.41518841790402,85.826123378218,37.882658799880637,114.0051858009642,null,null,2.8746788194659554,2.6925386804357494,0.92351800609433332,3.5262721893491049,3.7375068293501239,3.5639250202548149,2.8177892756350102,null,null,3.835,4.63,3.95,3.57,5.0599999999999996,2.73,4.1900000000000004,null,null,10.877556703788207,5.6380587388865138,8.7231601762056208,11.678248520710051,10.135975891366355,12.967429108050348,6.064459078080918,null,null,10.99,7.63,7.7200000000000006,9.06,10.8,8.06,7.48,null,null,9.1999999999999993,"n.a.",5,6,"n.a.",8,"n.a.",null,null,27.87577257438436,10.148382736914208,11.203495106865979,28.150625084411594,33.737539178871415,16.1962027309017,15.195246216398939,null,null,null,null,null,null,null,null,null,null,null,null,null,null,null,null,null,null,null,null,null,null,null,null,null,null,null,null,705.68679489999977,287,533.19999999999982,153.88775569585482,183.29999999999995,574.88709999999992,957.74,2437.9616505958547,3395.7016505958527,null,null,1025.6791732399997,628.09000000000015,1078.7999999999995,523.69304758456519,327.59999999999991,1116.2000000000003,1181.327949,4700.0622208245768,5881.3901698245754,null,null,-2262.1005702287111,-2485.6885192287118]
[null,null,"Noviembre",9.4247765712161744,3.8510466057592092,4.4010452482464757,4.8765432098765462,8.0937048961918592,5.2331626169663803,2.0134228187919545,null,null,8.1883347653009224,5.677672126723099,7.4750773817250122,10.934406976809798,"n.d.","n.d.",10.14949386605887,null,null,100.57343660152478,95.295041401397356,75.05799102055694,93.743194302886295,106.69293267898014,99.098912592255715,107.05620136846272,null,null,4.8579419491384375,0,-2.2102907453289161E-2,0,4.888392328238286,0.92446679257537701,0,null,null,3122.5,2020.8,4053,2506.7516600872182,832.9,1760.9,1833.7288151269699,null,null,62.053801856516579,93.518840751408703,104.21618642679569,118.73420027187332,87.126842281197199,38.124975778018012,218.85746297013347,null,null,1.6680165981322863,0.85475036244738567,0.42045053352652795,3.0831077104178894,3.6912705967432697,2.3726716188524621,2.829605263157887,null,null,3.8849999999999998,4.74,3.97,3.68,5.63,2.62,4.9000000000000004,null,null,10.422889398223138,3.6939633771001317,8.1215228560136836,10.978104767510299,8.8729230858562076,11.789855093676818,5.3782894736842017,null,null,10.97,7.69,7.7,9.0299999999999994,10.8,8.08,7.5,null,null,9.1999999999999993,"n.a.",5,6,"n.a.",8,"n.a.",null,null,29.131079154238691,9.7526554424262724,26.868164288951913,28.173131882731226,32.451389352511463,10.630842132732067,14.487487270522292,null,null,null,null,null,null,null,null,null,null,null,null,null,null,null,null,null,null,null,null,null,null,null,null,null,null,null,null,730.81582707000143,308.94999999999982,495.89999999999964,183.09850630385154,169.40000000000003,587.01040000000012,846.86699999999996,2475.1747333738567,3322.0417333738515,null,null,1102.6326128600012,695.88000000000011,1082.2000000000007,529.21041873303966,318.89999999999998,1083.2999999999997,958.30848700000024,4812.123031593037,5770.4315185930391,null,null,-2336.9482982191912,-2448.3897852191913]
[null,null,"Diciembre",9.4337156343225015,4.8859557716799795,5.7925151348376378,5.2858020897357241,9.4479477818342801,5.0001907013997506,2.1967526265520423,null,null,8.1717758563584759,2.1817018654857514,7.2141420802281395,11.07150428314406,"n.d.","n.d.",9.8427025950753393,null,null,99.791592288957645,94.607000299067465,74.168783901489434,93.115477644861016,105.56187481250016,97.128491062386743,106.6143813365634,null,null,4.2586928919512541,0,-9.5891528134761678E-2,0,5.1374387634603575,-0.1120077771437786,0,null,null,3114.5,1905.8,4061.1,2613.6789902959476,859,1817,1312.0485185115999,null,null,59.27734185079909,89.485941813947363,98.45756816100058,113.45385516613189,85.437807647985395,39.38010735930709,156.18387412042162,null,null,1.6597118586292354,-2.5045661601972025E-2,-0.90036155546884555,2.6159252772912871,2.8819627939659651,2.7426705412277492,2.8701962616822545,null,null,3.8899999999999997,4.8600000000000003,3.81,3.71,5.9,2.73,5.13,null,null,10.29507614684538,2.5928873978686933,6.7183248796982777,10.74617629889082,7.2047343399309272,10.895036687250272,5.1696822429906666,null,null,10.81,7.61,7.66,9.19,10.7,8.99,7.48,null,null,8.9700000000000006,"n.a.",5,6,"n.a.",8,"n.a.",null,null,27.626521905358679,8.8660099510984089,21.384571284804444,29.095485181319724,30.737097637432441,11.950283584187593,12.439940561628671,null,null,null,null,null,null,null,null,null,null,null,null,null,null,null,null,null,null,null,null,null,null,null,null,null,null,null,null,638.3577506699985,282.39999999999964,484.19999999999982,141.0390037610382,173.90000000000003,517.17219999999907,605.58899999999994,2237.0689544310335,2842.6579544310371,null,null,905.71290502999909,670.6899999999996,965.79999999999927,522.94093123000675,319.00000000000023,1010.3999999999996,974.75948100000005,4394.5438362600034,5369.3033172599971,null,null,-2157.4748818289663,-2526.6453628289637]
[null,2007,"Enero",9.1933576822021337,5.5395600598871404,6.2244341423507068,5.5725658297611718,9.0829598863263783,4.3643192488262841,2.2900763358778722,null,null,8.3064005040268594,2.4704392197644292E-2,6.9510034672611427,11.324674523199802,2.3583052502482147,"n.d.",9.0735998949510819,null,null,99.337023053131105,93.808486290671198,74.144467008656505,92.803777320341482,105.40111425455268,98.319852609215118,106.74031004312559,null,null,3.7935508144188694,0,0.75767329789554017,0,4.8890127887932486,-2.4987776617319923,0,null,null,3164.1,1920.4,4037.2,2578.6904217183292,845.1,1882.4,1346.5704241083499,null,null,58.589941852934004,86.383722938737918,99.99958288541221,116.4249349317178,87.117223411094315,40.886762841375123,164.5758907225802,null,null,1.4255833406491363,-0.71969227411611059,-1.2938964122970396,2.2614153132250618,3.0784476574154129,3.454897973872681,2.7958955223880504,null,null,4.1050000000000004,4.78,3.88,3.72,6.3,3,5.15,null,null,10.244801106522283,2.2270700567437753,6.3408818432706404,10.975800464037128,8.0785216109467424,12.126444020585174,5.0346268656716324,null,null,10.72,7.89,7.62,9.61,10.8,7.99,7.44,null,null,5.98,"n.a.",5,6,null,8,"n.a.",null,null,29.358918626217289,8.7510340740641457,21.412638655662452,29.18861974420366,30.725134704000201,15.122931317549604,12.545041612789687,null,null,696.52404626333339,311.51,508.0333333333333,176.49736159452075,169.50833333333333,555.01356666666652,733.35858333333329,2417.0866411911875,3150.4452245245207,null,null,975.27570417166669,655.63749999999993,1006.7166666666667,474.58373929043495,308.44166666666666,1020.7249999999999,991.42098350000003,4441.3802767954348,5432.8012602954341,null,null,-2024.2936356042476,-2282.3560357709143,null,null,697.33348211999999,311.3,544.09999999999991,196.28832560870899,177.39999999999998,473.65129999999999,670.36800000000005,2400.0731077287091,3070.4411077287091,null,null,1057.5023586299999,650.82000000000005,1093.2,469.90969273411918,303.7,899.30000000000007,1087.5959580000001,4474.4320513641187,5562.0280093641186,null,null,-2074.3589436354105,-2491.5869016354104]
[null,null,"Febrero",8.6173790521659583,4.7902819161127406,6.6216584833606245,5.8000000000000078,8.8146551724138007,4.8095363441507093,2.7724665391969316,null,null,8.2825565925318134,-1.0833608232539889,6.7878198369391729,10.451436980866562,2.8146512286277865,"n.d.",8.847602962193065,null,null,99.716548813116503,94.516674379413558,74.446989138681289,92.452579510026041,105.23651305486641,97.55202680578796,107.01193623316648,null,null,3.3894977331953062,0,1.1495009178899693,0,4.8466115893465753,-2.375803615060688,0,null,null,3239.3,1912.7,4054.6,2648.2001819699285,819.7,1927.4,1270.3506655722399,null,null,58.581444258236395,85.651848766966239,102.20812650892637,114.86508389258768,82.259905433024528,41.809736099415645,151.61416203992763,null,null,1.0427621598802959,8.5616797900287075E-2,-1.5959782539175051,1.918714555765588,3.3871899489228618,3.1871753013777342,2.0604093023255898,null,null,4.1400000000000006,4.88,3.7,3.74,6.5,2.64,4.8899999999999997,null,null,9.8627135174352212,2.8816776027996749,5.9634614646626032,10.586011342155002,8.6866265259878901,12.193989308266367,4.6752302393357201,null,null,10.48,7.81,7.68,9.56,10.7,7.97,7.5773159725486519,null,null,5.98,"n.a.",5,6,null,8,"n.a.",null,null,30.88127372572178,7.7820471013881898,20.819311494565707,30.183824428992324,29.263086504986614,16.18320684115535,13.170981854696183,null,null,701.78841915916655,312.3725,519.22499999999991,177.42515361593192,171.74166666666667,561.09114999999997,735.1246666666666,2443.6438894417656,3178.7685561084322,null,null,986.35672991916647,659.0625,1017.3166666666667,486.8961380093096,311.17500000000001,1027.7749999999999,1003.9579524166667,4488.5820345951433,5492.539987011809,null,null,-2044.9381451533779,-2313.7714309033772,null,null,697.22897369999998,303.69,562.60000000000014,190.48451391464437,178.60000000000002,570.12380000000007,703.40899999999999,2502.7272876146444,3206.1362876146445,null,null,947.69199055000013,621.58000000000004,952.09999999999991,513.62704154316509,292.7,953.4,918.97025600000006,4281.099032093166,5200.0692880931665,null,null,-1778.3717444785202,-1993.9330004785202]
[null,null,"Marzo",9.2185163291480752,5.0588100947813253,7.0240922972514541,6.3106796116504711,9.3137779680976376,5.5376061311894142,3.238095238095231,null,null,8.1932264461883975,-1.3644874965777867,6.7899034985537368,10.286501960342212,3.5255033471995127,"n.d.",8.790784477765639,null,null,99.850068903370754,94.79675690283446,74.458487283496723,92.645197518582762,105.28780241442512,95.999194299285065,107.08978870407013,null,null,2.7691982094070386,0,0.97501931902412176,0,4.7929386398813616,0.70697857259120978,0,null,null,3491.6,1907.5,4249.5,2618.5479259358244,830.8,2046.5,1119.8790553072299,null,null,60.593250330847503,83.441928136268203,103.83388690429918,112.26221755497947,84.262000809076341,43.857517838258417,131.64863007194953,null,null,-1.1156682910288924,1.065108695651491E-2,-1.9659987317691932,1.3256621004566347,2.7665792090159038,2.3805674213299231,1.4547970479704868,null,null,4.0650000000000004,5.07,3.7,3.82,6.4,2.92,4.74,null,null,8.1776276982864466,2.5901586956521667,5.4809226379200906,9.9983561643835781,8.2308469468087146,10.586173287768769,4.0308739446710122,null,null,10.46,7.78,7.66,9.56,10.5,7.38,7.3994927200222573,null,null,5.98,"n.a.",5.25,6,null,8,"n.a.",null,null,30.308267238780708,8.5716971889342908,18.887427908567211,30.625405505892921,28.142359592739673,15.998120714222019,13.407400263614221,null,null,705.28287478333334,314.68416666666667,528.29999999999995,179.29026528764416,175.58333333333334,567.84875833333319,743.15583333333325,2470.9893984043106,3214.1452317376438,null,null,988.18698235833335,664.70666666666659,1028.6083333333333,500.20413863408641,312.26666666666671,1040.0749999999998,1036.6783065833336,4534.0477876590876,5570.7260942424191,null,null,-2063.0583892547756,-2356.5808625047753,null,null,857.30286911999997,365.99,604.79999999999995,229.13716127495093,218.7,677.09220000000005,907.11599999999999,2953.0222303949504,3860.1382303949513,null,null,998.84537835000015,740.06,1118.6999999999998,590.11551585399957,321.90000000000009,1175.5,1233.803449,4945.1208942039993,6178.9243432040003,null,null,-1992.0986638090494,-2318.7861128090499]
[null,null,"Abril",9.7567789886713001,4.4351179673321184,6.4014539579967664,6.3367531683765836,8.8778634012456425,5.7663579324768479,2.7306967984933999,null,null,8.1669513096237036,-0.31427816609478126,6.8950627507963631,9.8246695839224678,4.2943751128996039,"n.d.",8.8842051478571875,null,null,99.543056467729301,95.340030730099286,74.461569050147318,92.717824466921272,105.05622348514393,94.198760963703492,107.09389564675922,null,null,2.2098853750119463,0,0.90280863542327938,0,4.5915230032669916,0.37936479756309621,0,null,null,3559.2,2042.6,4263.2,2659.9587131822532,883.8,2173,1648.3656573262797,null,null,60.858854254874473,86.484701319541628,106.96201453905118,114.49762876302418,90.835450237115239,45.102996971494179,191.8748698809533,null,null,-2.0561636397795202,0.53131747583360989,-1.4017232871512597,1.2255845629965949,2.8836511272110248,1.9889519774011273,2.0240329972502376,null,null,4.125,4.99,3.72,3.87,6.3,2.52,4.8099999999999996,null,null,7.3008893780759623,3.221983273596182,6.0229872841146364,9.7833030646992043,8.2439758077884218,10.384816384180789,4.5988542638000727,null,null,10.47,7.8,7.6700000000000008,9.56,11.3,8.77,7.4551318284424379,null,null,5.98,"n.a.",5.5,6,null,7,"n.a.",null,null,30.64422951138188,8.0040097431943291,16.884218131623019,30.364243355315246,27.41491833764147,17.072849164885163,8.2444632926105257,null,null,719.53647165916664,315.01750000000004,539.75,182.62679142722948,177.89166666666665,573.99677499999996,750.35158333333322,2508.8192047530629,3259.170788086396,null,null,995.0079961908333,680.00166666666667,1033.7666666666667,510.78432791330488,317.60833333333335,1042.958333333333,1054.7682180000002,4580.1273241041381,5634.8955421041383,null,null,-2071.3081193510757,-2375.7247540177418,null,null,731.93116818999988,285.52,531.70000000000005,193.01350169135787,173,588.51959999999985,689.95699999999999,2503.6842698813571,3193.6412698813565,null,null,930.08089427000004,686.19,944.00000000000011,547.61970929399968,334.4,970.69999999999982,1001.0412759999999,4412.9906035640015,5414.0318795640014,null,null,-1909.3063336826408,-2220.3906096826413]
[null,null,"Mayo ",9.1692343858474015,3.8744760394244961,5.4652485116061298,6.0551558752997563,8.7361372672107223,6.283189126963487,3.3930254476908721,null,null,8.0633012436340863,1.9438370658520727,6.8652126659902803,9.5631075470494018,4.9021474499324471,"n.d.",8.886774500475731,null,null,99.125813755910215,96.320168533327291,74.934168453632438,92.915267116306765,105.12432715015659,93.520728004226811,107.15899097491769,null,null,1.8000144885724763,0,0.78588496217771375,0,4.3817950982119616,-1.0854812649072823,0,null,null,3588.1,2163.8000000000002,4253.2,2639.7673840725906,929.3,2217.8000000000002,1682.1831294799003,null,null,60.459505609416041,94.694516313119465,106.56985564801336,118.18629043538711,93.430251384744082,45.261862491371105,195.90091428819244,null,null,-1.7580359366755345,0.94876431453811483,-0.5264753266522918,1.4566421707179229,3.2911544849814232,1.4930026903322828,1.3608021877848535,null,null,4.1150000000000002,4.8600000000000003,3.8,3.92,6.4,2.4900000000000002,4.8,null,null,6.7058871210878026,3.7117144726796787,6.9167347456552051,10.037083097795366,8.8588932955101569,9.048289717340424,3.8947834586216818,null,null,10.06,7.73,7.68,9.59,11,8.07,7.4199599001960426,null,null,5.98,"n.a.",5.5,6,null,7,"n.a.",null,null,30.547584691232956,8.3651038955635073,16.586310051452834,29.807444212715239,27.127831939484981,18.199274136549469,14.547809901707609,null,null,727.72995301333333,315.11333333333334,556.01666666666665,184.70758088836442,179.32500000000002,581.47249999999985,755.72741666666661,2544.3650339016981,3300.0924505683647,null,null,997.4461999350001,688.43916666666667,1039.7916666666667,521.3602789855272,319.81666666666666,1053.383333333333,1071.5232660833333,4620.2373122538602,5691.7605783371937,null,null,-2075.872278352163,-2391.6681277688294,null,null,864.84966277000012,339.86999999999989,679,251.87747989985348,196.89999999999998,638.70829999999978,794.60500000000002,2971.2054426698542,3765.8104426698555,null,null,1071.63028592,867.20000000000027,1173.2000000000005,607.23012614430081,363.50000000000006,1178.8,1195.2455549999997,5261.5604120643002,6456.8059670642979,null,null,-2290.3549693944497,-2690.9955243944496]
[null,null,"Junio",8.7507581935482559,3.7078651685393225,5.3132065434233393,6.1566049013747657,9.4567824001668317,5.907934986916314,3.668861712135481,null,null,7.8754532057951367,3.4407538784191489,6.6078382604703414,9.0440142206035681,5.1751490131839653,"n.d.",8.7359072872708783,null,null,98.738605272829929,95.869032146571485,75.086460920610847,92.728404787718375,104.46828143762676,94.127260741776581,106.87951787295535,null,null,1.2308130380235491,0,0.89959006688382859,0,3.9901310511850419,-1.0675961080658805,0,null,null,3734.1,2142,4392.3999999999996,2684.0973766622042,945.8,2240.9,1743.0560142500499,null,null,61.50905703381747,92.210772646203793,110.16852994960024,111.8507006936556,95.040007782596462,46.381768112941764,201.15482970564739,null,null,-1.3799979121403851,1.2459371614301227,-0.37336869356571178,1.3220045045045137,2.1310771509153388,1.4560429426503221,1.0911070780399124,null,null,4.1099999999999994,5,3.84,3.93,6.4,2.83,4.8,null,null,7.0797132226690174,3.9169014084507072,7.0805872324303722,9.8377252252252347,7.9264219938975353,8.7359507238307241,3.6378059929667423,null,null,10.11,7.77,7.6700000000000008,9.52,11.2,8.17,7.44013377633995,null,null,5.98,"n.a.",5.5,6,null,7,"n.a.",null,null,31.167661346131158,8.6634963409532482,12.992649198938079,31.75618058342744,29.530484303184188,19.55947240448188,14.312721944849716,null,null,733.49178569249989,315.95750000000004,562.22499999999991,186.74370797768609,181.94999999999996,586.11114999999995,761.7890000000001,2566.4791436701862,3328.268143670186,null,null,1000.9566693641667,686.72916666666663,1051.9916666666668,526.26208314109851,322.60833333333341,1059.9083333333333,1081.8010054166664,4648.4562525052643,5730.2572579219313,null,null,-2081.9771088350794,-2401.9891142517449,null,null,817.45239027000025,340.63000000000011,618.20000000000027,219.75603150882716,205.6,651.6228000000001,769.28499999999997,2853.2612217788301,3622.5462217788263,null,null,1001.2798661099996,724.51000000000022,1118.1999999999998,569.45176579729969,339.99999999999994,1073.9000000000001,1129.8137820000002,4827.341631907304,5957.155413907305,null,null,-1974.0804101284702,-2334.6091921284697]
[null,null,"Julio",8.752412111860421,3.1628010209743413,5.5868140597074278,6.3020214030915715,9.7593860194980255,5.2381648158971474,4.1392285983066959,null,null,7.5673243268939938,4.4522215933278595,6.1676703810207654,8.263832580868101,5.2125538038427361,"n.d.",8.5662477333833476,null,null,97.789418232871668,95.164164765081949,74.542824994436245,92.082636816534418,104.01120210417731,95.533229911308595,106.36970897552807,null,null,0.64802798002691142,0,1.2678700627927713,0,4.1739659406690048,0.72753584251276904,0,null,null,3839.3,2445,4441.3,2635.3969294642525,963.7,2366.1999999999998,1882.8632412773002,null,null,62.978328120279038,93.384375819977834,107.67828979781112,115.64135934709093,95.742344629020323,46.102089988931674,199.38214756868945,null,null,-1.3814977280570695,1.5870051635112103,-0.65047332455646079,1.2586577181207919,2.0295552366933287,1.9116973273168931,0.64411020776872796,null,null,4.1099999999999994,4.8,3.92,3.92,6.4,2.7,4.8099999999999996,null,null,7.0045231644382184,4.4756432874354797,6.8031088959939741,9.5181431767337674,7.6293168729397296,9.5705157931273757,3.1904644858693381,null,null,10.220000000000001,7.78,7.68,9.66,10.7,7.84,7.4617537025939562,null,null,5.98,"n.a.",5.5,6,null,7,"n.a.",null,null,31.989280715423106,8.4338463788141471,14.328907494976928,33.483131070674773,28.604722123904658,19.252458062975641,14.586299845149986,null,null,742.18267684583327,320.70416666666659,563.125,191.12359321196553,186.06666666666663,590.51859166666657,773.26150000000007,2593.7206950577988,3366.9821950577984,null,null,1009.702258223333,694.75416666666672,1066.1666666666667,541.73380737729838,328.50833333333338,1070.8916666666667,1108.6010100000001,4711.7568989339643,5820.3579089339646,null,null,-2118.0362038761655,-2453.3757138761653,null,null,732.7508378399998,385.85999999999967,579,231.6439119262368,205.20000000000002,586.98639999999978,770.83299999999997,2721.4411497662331,3492.2741497662391,null,null,1075.90004537,806.89999999999964,1198.9999999999998,664.62987935795172,378.80000000000007,1203.7999999999997,1355.0481339999999,5329.0299247279472,6684.0780587279442,null,null,-2607.5887749617141,-3191.8039089617141]
[null,null,"Agosto",8.5627158951680666,3.5590762021644515,6.2087622063869068,6.6943127962085205,9.8664458018428416,4.364153419862939,4.2293233082706738,null,null,7.1356963108202622,3.3278500401235034,5.6995880912089119,7.3953542268532653,5.1933562249746972,"n.d.",8.5350713842333956,null,null,96.926641909326449,95.140427189430682,73.571962624764026,91.250313203595425,104.35534131739628,95.714840128967779,105.98315917365466,null,null,0.13437674888306969,0,1.0612860336183925,0,4.4611616515045576,0.8245900031868264,0,null,null,3902.8,2389,4263.1000000000004,2566.9299530724898,955.7,2360.6,1839.1799722968501,null,null,63.932936191032688,93.351344528982096,105.57612904774093,116.32406800214838,96.077566684615235,48.772786526124492,194.7584285542319,null,null,-1.2091774693208519,0.91824283559577891,-1.2228390383301209,0.94258745141589007,2.2111418602783468,2.401060611353687,0.5571145175834108,null,null,4.1150000000000002,4.51,4.03,4.04,6.52,2.57,4.8099999999999996,null,null,6.7954122536777666,3.8730780004309446,6.0176181897247956,8.9467629094947334,7.6307093821721743,10.880983755458489,3.1012892374299064,null,null,10.32,7.57,7.59,9.67,11,7.85,7.4617760942760931,null,null,5.52,"n.a.",5.5,6.25,null,7,"n.a.",null,null,31.689265485894545,8.4192556350793488,13.816194883087164,32.463644222153199,29.438814747696206,19.491880465378351,14.677106039466414,null,null,749.40172186333314,324.09333333333331,567.94166666666661,195.40383427206052,187.85833333333332,593.2041499999998,778.37116666666668,2617.9030394687275,3396.2742061353929,null,null,1018.9361926274996,703.07499999999993,1082.8000000000002,556.85965429701048,333.35833333333341,1071.1249999999998,1120.8687069166667,4766.154180257844,5887.0228871745103,null,null,-2148.2511407891166,-2490.7486810391165,null,null,805.61484561999987,349.22000000000025,588.70000000000027,213.57147640040876,207.9,628.57049999999981,819.20399999999995,2793.5768220204081,3612.7808220204024,null,null,1141.0040802699996,705.22999999999956,1259.7,678.34543872930044,389.40000000000009,1171.8000000000002,1305.1153130000002,5345.4795189993019,6650.594831999304,null,null,-2551.9026969788938,-3037.8140099788943]
[null,null,"Setiembre",9.4300842523360817,4.3085165755106649,7.3316113649910584,7.109004739336493,11.55925155925155,6.8126520681265319,5.1886792452830202,null,null,6.6249683786895384,0.17115285457231436,5.2750535452480563,6.884622563795963,5.3597475707781008,"n.d.",8.7731196054254124,null,null,96.54316466420461,94.748488273463181,73.626617845140032,91.147524835236524,103.94634806353821,95.983047666339985,105.70335425298018,null,null,-0.41118717116599374,0,1.2188673144508635,0,4.7677268430074253,1.0825657445484649,0,null,null,3885.9,2416.6,4274.6000000000004,2523.4002776074221,971.1,2357.8000000000002,1719.7764627567501,null,null,63.592305120123505,93.90944806923325,105.50155217724948,115.00448000806696,99.166704074689278,47.017569586709087,179.82101142795003,null,null,-1.992216549973532,0.20274799357944884,-2.2468789337282482,0.6357964601769911,0.67385860513159712,0.10986332574030812,-0.62618834080717589,null,null,4.085,4.5199999999999996,4.03,4.03,6.6,2.74,4.53,null,null,5.7661618322243671,3.5581787051899356,5.0948537578674582,8.5529646017699115,6.2146773156752175,7.3561958997721977,2.1408382809235991,null,null,10.16,8.02,7.7,9.69,10.9,7.99,7.4405987577639756,null,null,5.52,"n.a.",5.75,6.25,null,7,"n.a.",null,null,33.981181623606169,8.8158710874133739,12.266744086755853,33.910260447110254,28.645484802856135,20.652440909919068,13.8769944163476,null,null,752.35653394166673,325.05166666666656,562.5333333333333,200.46630550783888,189.79999999999995,585.63991666666641,782.52441666666664,2615.8477561161721,3398.3721727828383,null,null,1028.7619396524999,710.82499999999993,1087.7166666666665,565.4558648346873,335.82500000000005,1084.1249999999998,1134.8115165000002,4812.7094711538539,5947.5209876538538,null,null,-2196.8617150376822,-2549.1488148710155,null,null,748.95380502999978,340.1899999999996,528.99999999999955,201.79799810833379,187.7,533.33439999999973,855.31999999999994,2540.9762031383361,3396.2962031383358,null,null,1087.1836852300003,732.75,1067.7,568.69681101449987,340.00000000000023,1172.4000000000001,1276.7085580000003,4968.7304962444978,6245.4390542444962,null,null,-2427.7542931061689,-2849.1428511061677]
[null,null,"Octubre",9.8439825044703593,5.4571940833706893,7.7172760996290375,8.2840236686390547,13.349891338093766,7.2107240185607822,5.45625587958608,null,null,6.2309451636118984,-0.15518108758112886,4.9019115340892965,6.158778743575402,5.8527161714853966,"n.d.",9.2679938744257235,null,null,96.241230565318801,94.291559530762555,73.73324603906886,90.244400190458123,102.72282027629517,96.160395803312412,105.362500852991,null,null,-0.27729724546007056,0,1.3927752414213912,0,4.9643281807372253,-5.5566011525464129E-2,0,null,null,3830.9,2400.5,4288,2432.7214627310786,937,2349.4,1778.0790366305998,null,null,63.03120920626025,91.211372904997688,108.84084445848478,114.72045926651218,102.35668617667295,46.033940308528813,181.85096832776759,null,null,-2.5891108759979073,-0.9455913292955086,-2.6061521431646235,-0.38234972677595752,-0.82319960390700753,-0.14991412475953161,-0.83091882247993143,null,null,4.0750000000000002,4.46,3.92,4.01,6.2,2.56,4.58,null,null,5.5679131104605863,2.6672489639783192,4.755712440809301,7.3842622950819674,4.7329236675828037,6.9482563891179092,1.9382060910127283,null,null,10.210000000000001,8.27,7.57,9.73,11.3,8.64,7.5002154543981856,null,null,5.52,"n.a.",6,6.75,null,7,"n.a.",null,null,38.018408149057059,8.561781786937317,12.239782962650981,32.410606467544191,30.522150238013456,21.35654644900271,14.977994436389652,null,null,764.85920802166675,330.22249999999991,564.58333333333337,203.64756627904345,191.50833333333335,586.69119999999987,793.65674999999999,2641.5121409673766,3435.1688909673762,null,null,1045.2035933408335,727.74249999999995,1103.9750000000001,577.3165859261361,343.80000000000013,1092.9416666666664,1166.6644004166667,4890.9793459336352,6057.6437463503025,null,null,-2249.467204966259,-2622.4748553829259,null,null,855.71888386000046,349.05000000000018,557.80000000000041,192.06288495031004,203.8,587.5024999999996,1091.328,2745.9342688103061,3837.2622688103074,null,null,1222.9790174999998,831.09999999999945,1273.9000000000001,666.02170068195028,423.30000000000007,1221.9999999999991,1563.5625559999999,5639.3007181819485,7202.8632741819529,null,null,-2893.3664493716351,-3365.6010053716345]
[null,null,"Noviembre",10.090655724292324,6.2249443207127042,9.1292319852456831,9.5938787522071696,17.337715694330317,8.4455503512880767,6.4849624060150237,null,null,6.083384066087798,2.5261733810545532,4.6614904714226659,5.7627462029081888,6.6418086598318329,"n.d.",9.8959284279715121,null,null,94.646456576957391,93.573727357878568,72.030989034932276,89.220281375044721,99.489275229963582,94.887161708075652,104.8657544762938,null,null,-0.6743560786589059,0,0.40455194543369533,0,4.8982167227560192,-0.45025179534550963,0,null,null,3798.9,2284.3000000000002,4301.8,2366.8284898989687,1042,2296.6999999999998,1784.0964512599999,null,null,60.098166460126166,88.68843000940349,108.37753402131352,110.87934538333208,110.55186092174083,44.947834656126702,178.6015501537459,null,null,-2.8073733523547295,-1.8027256525841373,-3.8387807822308035,-1.4817239527389807,-3.771400514974895,-1.3606370630314673,-1.7889496910856006,null,null,3.9649999999999999,4.3099999999999996,3.67,4.13,6.94,2.52,4.58,null,null,5.5402924316813467,1.3792011741272585,3.446160067600196,6.1646885069817525,1.020361778222185,6.126991496828162,0.94075450148656758,null,null,10.32,7.69,7.53,9.81,11.4,7.96,7.4867244832558892,null,null,5.52,"n.a.",6.25,7,null,7,"n.a.",null,null,36.685443095222148,8.3508424968524508,13.30830496851927,31.961848319293829,31.999821293135099,29.586241076177778,15.398822307000891,null,null,771.72281219833314,330.65916666666658,568.22500000000014,205.51983036221691,193.50000000000003,585.25128333333305,804.41741666666655,2654.8780925605497,3459.2955092272168,null,null,1062.8402213533334,735.71833333333325,1114.675,591.83034734581599,358.05,1114.0499999999997,1190.8146709999999,4977.1639020324819,6167.9785730324811,null,null,-2322.2858094719318,-2708.6830638052656,null,null,813.17907718999959,314.1899999999996,539.60000000000036,205.56567530193252,193.30000000000007,569.73139999999967,975.99499999999989,2635.5661524919342,3611.5611524919368,null,null,1314.2721490100012,791.58999999999924,1210.6000000000004,703.37555576919931,489.9,1336.6000000000008,1248.1117340000001,5846.3377047791946,7094.4494387791929,null,null,-3210.7715522872677,-3482.8882862872706]
[null,null,"Diciembre ",10.805524297769391,4.8570482393200036,8.746260892183626,8.8733216579100915,16.870514505205698,8.8775880857246747,6.3551401869158948,null,null,5.9763517495040155,4.6101128753676601,4.6247661177534445,5.6163081731240831,7.3648492075906002,"n.d.",10.501510574018125,null,null,90.199439227439711,93.907055112425141,71.169064518613752,89.017005179819321,98.484676357381289,94.065738642866251,104.33496715977505,null,null,-3.7726067127003224,0,0.25634214583453679,0,4.7596276814607945,1.3096331938970509,0,null,null,4113.6000000000004,2196.1,4320.3,2514.3013647104272,1018.6,2394.9,2071.6448292949999,null,null,62.761004890056249,84.362689264798803,104.48929136878658,109.25736672958514,102.81078639129224,46.002647914769852,205.64232963566442,null,null,-3.4344174895252664,-0.46448784082534078,-3.5277175147999644,-0.73784986595173541,-3.7832725992908696,-1.549986655101097,-1.6690685413005335,null,null,3.9450000000000003,4.37,3.63,4.21,6.58,3.09,4.58,null,null,4.9225665669887171,2.6635803768817867,3.8104658255097901,6.9683538873994726,1.2005638488919501,5.935484086208036,1.0363330015964629,null,null,10.1,7.65,7.5200000000000005,9.85,10.9,7.99,7.4573336035670863,null,null,5.52,"n.a.",6.5,7.5,null,7,"n.a.",null,null,37.383995581672337,7.8059213377459358,13.004888400500914,32.422324099251384,31.972200044493061,28.886715560482411,18.616500220957821,null,null,778.03571097583335,334.54583333333329,574.80833333333339,210.74938722034696,194.3666666666667,596.68333333333339,809.64208333333318,2689.1892648628473,3498.83134819618,null,null,1079.4224542308332,735.05083333333323,1131.3166666666666,602.02985110090015,363.62500000000006,1133.0833333333333,1208.6714899166666,5044.5281386650668,6253.1996285817331,null,null,-2355.3388738022195,-2754.3682803855531,null,null,714.11253600000055,329.04000000000042,563.19999999999936,203.79368605859872,184.30000000000004,654.35680000000229,668.28499999999997,2648.8030220586043,3317.0880220585968,null,null,1104.6996995599984,662.68000000000029,1165.4999999999991,645.33497629101657,385.89999999999986,1238.7999999999997,1189.0413080000001,5202.9146758510178,6391.9559838510177,null,null,-2554.1116537924136,-3074.8679617924136]
[null,2008,"Enero",10.562682399481172,4.7468354430379858,8.3884217957769032,8.8747099767981332,17.284569138276552,9.0473962644402057,7.6492537313432738,null,null,5.8076843912751395,4.6327678621134076,4.7586917180969985,5.5868110149409356,7.7842317289852874,7.5472582412099447,12.273520736772417,null,null,89.781830211770327,93.390664197196045,71.574882950816317,88.864495538317556,98.088245618042762,94.177388665527488,103.3997963965486,null,null,-4.1739397814222139,0,0.33733100386910347,-2.5925925925921897E-2,4.6671489467424001,0.16557273924963459,0,null,null,4397.3,2221.1999999999998,4319.6000000000004,2426.456912816021,985.7,2328.4,2103.9093223349996,null,null,63.238524256471329,87.258533457943471,106.68222235657143,112.49310045941637,101.03547654863246,45.830523410385403,197.01581925100388,null,null,-2.9962029774948271,-0.59842900302115853,-3.181540738986258,-0.63808204581778494,-4.0558765237270702,-1.7949958747236066,-3.3992374350086569,null,null,3.855,4.12,3.57,4.3,6.88,2.67,3.99,null,null,5.2371002815396039,2.7334138972809563,4.0147998578872617,6.9118806606286718,2.6283527092492625,5.7796920893699877,-0.35422843010624872,null,null,9.8310484430300811,7.61,7.4499999999999993,9.77,11.2,8.5500000000000007,7.2679294698296442,null,null,5.99,"n.a.",6.5,7.5,null,7,"n.a.",null,null,39.171033006855495,8.1961879990541053,12.106578238569554,31.006310498154164,30.773474301659554,29.125838582409958,18.228357774085158,null,null,780.13154925499987,336.33416666666659,578.93333333333339,212.3194966754545,197.8416666666667,600.14192500000001,817.44883358333334,2705.7021375971212,3523.1509711804542,null,null,1098.2299104000001,746.9649999999998,1135.8083333333332,617.40508347639025,371.67500000000013,1160.8083333333332,1231.9023992499999,5130.8916605430559,6362.7940597930565,null,null,-2425.1895229459356,-2839.6430886126022,null,null,722.48354146999998,332.76,593.6,215.12963907,219.10000000000002,515.15440000000001,764.04900300000008,2598.2275805399995,3362.27658354,null,null,1283.19183266,793.79,1147.0999999999999,654.41248124000003,400.29999999999995,1232,1366.3668700000003,5510.7943138999999,6877.1611838999997,null,null,-2912.5667333599999,-3514.8846003600001]
[null,null,"Febrero",11.399219030141698,5.8180227471566131,8.762392069075803,9.0350200815664881,18.350168350168349,8.678960964408736,8.3720930232558288,null,null,5.5997808296030875,4.8289846622996944,4.909420469250577,6.2659174936035233,7.7515492038297458,7.4945046812460951,12.497015994270708,null,null,88.853743802017576,92.916535477897511,71.460490479471602,88.182952103804979,96.820323387092103,94.698705492824189,102.72093860942843,null,null,-4.5784602562767178,0,0.35832102230599738,-2.5925925925884302E-2,4.6706066414789085,1.4165902319419212,0,null,null,4554.7,2277.1999999999998,4348.3999999999996,2497.9126125206399,950.5,2216.9,2109.3915369452502,null,null,64.162679642461356,89.2565974312663,109.76070940953262,110.70596808519497,94.632141842086185,43.621750791868493,207.57218016126052,null,null,-5.2955658685453368,-1.9826705250103418,-3.5144428109379691,-0.61908557549814935,-4.5716739227645684,-1.4068601234690261,-4.0158798283261934,null,null,3.36,3.72,3.54,4.34,6.71,2.31,4.0199999999999996,null,null,2.8642533030575144,1.7690533278214069,3.6939311967068393,7.0023189913864075,-6.1159900578281322E-2,6.3039239378032965,-1.1120939285162508,null,null,9.3830141843115911,7.69,7.48,9.7799999999999994,10.58,7.75,7.1668935565382172,null,null,5.99,"n.a.",6.5,7.75,null,8,"n.a.",null,null,39.95423744097446,9.157166994826337,11.606532767833833,30.478026780464894,32.151438223893635,29.413301621695442,18.784687923443787,null,null,792.71631719583331,343.38583333333327,585.57500000000005,218.26491378173421,202.15,596.76431666666679,825.05607558333338,2738.8563809775678,3563.9124565609004,null,null,1123.0927071266665,761.61,1154.4833333333333,630.06561745862655,379.81666666666678,1184.0333333333331,1261.1831490833333,5233.1016579186262,6494.28480700196,null,null,-2494.2452769410588,-2930.3723504410591,null,null,848.24618898999995,388.30999999999995,642.30000000000007,261.82951918999998,230.3,529.59250000000009,794.69590400000004,2900.5782081800007,3695.2741121799995,null,null,1246.0455512699998,797.31999999999994,1176.2000000000003,665.55344933000015,390.4,1232.1000000000001,1270.3392539999998,5507.6190006000015,6777.958254600002,null,null,-2607.0407924200003,-3082.6841424200002]
[null,null,"Marzo",11.035531672346533,5.9891304347826138,9.0995561192137124,9.2465753424657642,18.910978356674178,9.6717926811903663,8.7638376383763994,null,null,5.2679598278237636,6.1672096863621828,4.9496031722633314,6.0868875948993972,7.1543556906662049,7.3112166899560957,12.398698609878721,null,null,89.064507211850696,93.0010916055395,70.458843606882837,88.166181981255562,96.468822639434407,94.142571626723367,102.3810157744677,null,null,-4.7505708485627549,0,-0.71391395974146266,-1.5873015873016476E-2,4.7791748746514084,3.4326177980134931,0,null,null,4890.5902181000001,2271.6999999999998,4338.3999999999996,2520.6142551523426,984.3,2245.1999999999998,2011.2491596709999,null,null,65.066332191708469,89.116259510062605,106.82465662529704,108.77338660927651,97.840598294166227,43.823893178006188,194.73209627253433,null,null,-5.2105227781634218,-2.263562711516772,-3.7851264167393337,-0.69253918495298772,-4.7734230666346384,-2.2264546074199023,-4.453536895674314,null,null,3.3149999999999999,3.59,3.52,4.38,6.7,1.97,3.92,null,null,2.7959233263698549,1.4726694697979643,3.6576169718105054,6.8683385579937202,-0.65842247184592506,5.1136278360219496,-1.5602585340069717,null,null,9.34,7.55,7.5399999999999991,9.74,10.119999999999999,7.62,7.0668405797101448,null,null,5.99,"n.a.",6.75,7.75,null,9,"n.a.",null,null,40.711522786235534,8.6943036641364824,11.813534750254595,28.717908361377063,31.318681356908495,30.917264622434693,18.305666513210173,null,null,791.03026995916673,342.565,588.72500000000002,222.65278168715494,204.9666666666667,592.56044166666675,825.06483724999987,2742.5001599796556,3567.5649972296546,null,null,1129.9465517716665,762.41166666666652,1158.5249999999999,637.8106179007932,388.25833333333338,1196.95,1254.7671233333335,5273.9021696724594,6528.6692930057934,null,null,-2531.4020096928048,-2961.1042957761383,null,null,837.07030228000008,356.1400000000001,642.5999999999998,281.79157613999996,252.49999999999997,626.64570000000003,907.22113999999999,2996.7475784199987,3903.9687184200011,null,null,1081.0915140900001,749.68000000000006,1167.1999999999998,683.0555211599999,423.2,1330.5000000000002,1156.8111400000009,5434.7270352499982,6591.5381752499998,null,null,-2437.9794568300003,-2687.5694568300005]
[null,null,"Abril",10.946228468348087,6.7883132399261426,10.368823938761327,9.7048808172531356,19.352336629823537,10.833333333333329,8.5242896425298049,null,null,4.7916901110899133,6.0353898812824376,4.827112181025444,7.0580083385707635,6.3076022943289667,6.8027889799449515,12.153918348193336,null,null,88.659961694210722,92.794295222729318,69.002788195711148,87.85969969036384,96.036174765018572,93.264884049325971,102.56695956323442,null,null,-4.9265192536198068,0,-1.5963620869363464,1.904761904763105E-2,4.9721947339884585,5.5780514519937539,0,null,null,4936.5400497700002,2312.3000000000002,4468.7,2593.063537103832,1030.5999999999999,2183.9,1957.96682021162,null,null,66.104659310164109,90.068578791601652,110.87539005328935,109.3449405463862,100.9271208100288,44.730661731393361,190.52183488807387,null,null,-6.035562048974489,-2.8826312042310818,-4.8734993694829924,-0.93421624418004401,-5.4785009944851462,-2.8451127819548829,-4.5282854729729873,null,null,3.2549999999999999,3.71,3.52,4.38,6.69,1.96,3.61,null,null,3.0859737981658282,0.47915988608624938,2.5923770491803104,6.5950750129332514,-0.8610461719397603,4.7338345864661679,-1.2433600239723159,null,null,9.36,7.3,7.4899999999999993,9.6999999999999993,11.11,9.19,7.1749420088146607,null,null,5.99,"n.a.",6.75,7.75,null,9,"n.a.",null,null,41.541538378595064,8.6948252061132436,11.647547358662358,27.080951548609455,30.12781965697371,30.30346700308144,23.934773177279279,null,null,803.95209933750004,354.40916666666664,604.7166666666667,227.44328976120846,212.34166666666667,594.61500000000001,844.6427427499998,2797.4778890987091,3642.1206318487079,null,null,1177.5409911258332,782.05833333333328,1195.8416666666665,653.77107082629334,403.35000000000008,1232.1583333333333,1279.2157099166668,5444.7203952854588,6723.9361052021268,null,null,-2647.2425061867507,-3081.8154733534175,null,null,886.9931207300001,427.65000000000009,723.59999999999991,250.49959858,261.49999999999994,613.17429999999968,924.89186600000005,3163.4170193100017,4088.3088853099998,null,null,1501.2141665200002,921.95000000000027,1391.8000000000002,739.14514439999994,515.5,1393.2,1294.4243149999998,6462.8093109200017,7757.2336259200019,null,null,-3299.39229161,-3668.9247406100003]
[null,null,"Mayo ",11.895754249466041,8.3978623623077819,12.241532411518467,11.249293386093841,21.745405561435575,10.034589986373652,8.8422971741112093,null,null,4.2686823310666346,2.6940919733620405,4.6044696061836294,6.5300420915544404,5.445309913825418,5.7608370621234277,12.052895258068274,null,null,90.641379587039154,92.568300187499929,67.632978839046103,87.062106108392328,94.658080880171468,93.697016328587949,102.56441077099062,null,null,-1.7827937926815738,0,-2.7551886641566181,6.3013353489417695E-2,5.2304127548441057,5.823309416984551,0,null,null,4572.5978635600004,2404.9,4573.2,2512.6440159337553,1042.0999999999999,2193.1999999999998,1954.1300465132897,null,null,67.142608765097805,93.582757642488119,110.15779183343813,109.52443778200514,104.74773712305117,45.37248757111292,201.64764739912582,null,null,-6.1626594312349221,-4.2970057349834043,-6.4071937160940404,-2.1746595528455308,-7.0307159131404555,-1.1674419712317112,-4.9909798994974848,null,null,3.4050000000000002,3.74,3.54,4.3899999999999997,6.88,2.27,3.41,null,null,2.6247179927169308,-0.89287956534863222,0.96975474683543483,5.2051626016260126,-2.7003318179827462,6.0212066173435268,-1.5481346741540718,null,null,9.329979941885906,7.43,7.51,9.75,10.5,7.98,7.1572718314129764,null,null,7.0012000000000008,"n.a.",6.75,8,null,9,"n.a.",null,null,44.099437713414822,8.1486344696407809,11.904972439564965,25.342986887555831,28.99678639715335,29.801814651017811,17.34116912013026,null,null,802.09680668500005,362.4108333333333,602.39166666666677,229.29545216788733,213.64166666666665,592.25172500000008,845.29144924999991,2802.0881505195539,3647.3795997695538,null,null,1197.8683783583331,783.63666666666643,1208.6249999999998,674.56759208676829,409.77500000000003,1258.8166666666666,1299.1597400000003,5533.2893037784343,6832.4490437784334,null,null,-2731.2011532588804,-3185.0694440088805,null,null,842.58615094000015,435.88999999999987,651.1,274.10342878000006,212.50000000000006,610.34900000000016,802.38947799999994,3026.5285797199977,3828.9180577199986,null,null,1315.5589327099997,886.13999999999987,1326.5999999999995,856.78838126999972,440.59999999999985,1498.6999999999996,1434.5739159999998,6324.387313979998,7758.9612299799919,null,null,-3297.8587342599985,-3930.0431722599988]
[null,null,"Junio",12.817967448777587,9.0249187432286,13.556860516511978,12.162162162162158,23.090112402362347,12.204203786191545,9.6188747731397459,null,null,3.7861906793027673,-0.45228760740910845,4.3089080952226873,6.1645445496153393,4.6066371439270704,4.1516471939421082,12.065569972196487,null,null,91.877180042226968,92.348955470240199,67.744863364883628,86.820198429185098,94.049514718680584,92.836035479145622,102.39731350712516,null,null,-4.1547609754369157E-2,0,-2.4451878590017322,-5.7697152935095811E-3,5.5154026438938182,5.3733719158178062,0,null,null,4334.2038455100001,2300.4,4771.3,2547.3266866087911,1035.7,1975,2516.4444039084201,null,null,66.558689524327775,91.068342824567566,116.54173182293516,107.47799049236173,105.59940044694187,43.044906072348724,261.34255074032848,null,null,-6.4865265888916452,-4.7282023253502912,-7.4208290702847091,-2.8460240963855381,-8.0030654718505492,-1.5010166547777892,-5.7370364238410598,null,null,3.4050000000000002,3.87,3.57,4.46,6.47,2.06,3.33,null,null,2.2088968628900898,-1.6738547152936478,-0.13813389679716395,4.5807228915662703,-3.5455173955704762,6.0209831591353096,-2.219960176922136,null,null,9.6,7.2,7.4899999999999993,9.75,10.89,7.51,7.1853794067858985,null,null,8,"n.a.",6.75,8.5,null,9,"n.a.",null,null,42.836680601841024,8.0828550962577239,12.319732653439619,25.046697395257866,26.547056436769356,25.976049235231713,18.429525070705566,null,null,799.92494641249993,366.76249999999999,612.27499999999998,233.00984341548505,218.70000000000002,589.52339166666673,849.71352583333328,2820.195681494652,3669.9092073279849,null,null,1221.8149682591666,796.65499999999975,1221.9166666666663,692.70684204865984,417.92500000000001,1293.9416666666668,1329.1763065833334,5644.9601436411585,6974.1364502244905,null,null,-2824.7644621465074,-3304.227242896508,null,null,791.39006699999936,392.85000000000036,736.80000000000018,264.32872648000011,266.30000000000007,618.88280000000032,822.349919,3070.5515934800023,3892.9015124800026,null,null,1288.6389449200005,880.72999999999956,1277.6999999999994,787.12276534000011,437.80000000000018,1495.4000000000008,1490.012580999999,6167.3917102599989,7657.404291259998,null,null,-3096.8401167799984,-3764.5027787799954]
[null,null,"Julio",14.169802634896744,9.6385542168674778,14.1558522976616,13.758389261744963,23.632240385523957,13.72787226657409,9.5754290876242099,null,null,3.347574629372621,-1.2210036917968516,3.955927729486977,4.8965217208507674,3.8238660807334504,2.2200519680428332,11.887346656683761,null,null,93.191976637677129,91.65888374462547,66.812883596266374,85.458117559539815,93.730167313338796,92.149681105612657,102.51070366968486,null,null,3.0323220389572176,0,-3.107954202284462,-2.426961122616467E-2,5.503433179598038,3.8823739796985475,0,null,null,4106.6158990900003,2262.6,4742.3,2441.1181316090333,1053.8,2078.5,2430.5744654860796,null,null,68.873563841179788,88.358065338731308,109.17843992928955,109.47353812678482,101.46131585599383,45.951182117383773,247.26361674072871,null,null,-6.2799466038777334,-5.079010989010996,-7.8277653907408515,-4.0070796460176972,-8.7923432991855428,-0.85983518998930419,-5.5627699917559772,null,null,3.87,4.07,3.68,4.42,6.28,2.0099999999999998,3.48,null,null,1.7081551435300713,-2.0873626373626446,-0.59204349497502162,3.4561061946902703,-3.6721529903823424,6.9746558828017857,-2.3024625657058033,null,null,9.86,7.35,7.51,9.8000000000000007,10.45,8.02,7.0524958516701544,null,null,8.9976000000000003,"n.a.",7.25,9,null,9,"n.a.",null,null,44.483159397948711,7.4920309007296293,10.554711758621483,22.460381449836355,26.140099248725267,23.636320650778742,18.393413784320135,null,null,805.40352346000009,371.95083333333338,626.13333333333333,234.36683907663198,221.70000000000005,595.55388333333337,863.32232133333321,2855.1084125366324,3718.4307338699655,null,null,1244.679815890833,805.89583333333303,1238.55,707.03401275883061,430.05,1334.2583333333334,1365.4783853333336,5760.4679953163295,7125.9463806496633,null,null,-2905.359582779698,-3407.5156467796974,null,null,798.49376241000027,448.11999999999989,745.3,247.9278598599999,241.20000000000002,659.35229999999956,934.13854600000002,3140.3939222699992,4074.5324682699975,null,null,1350.2782169499997,917.79,1398.6000000000001,836.55592788000013,524.29999999999984,1687.5999999999992,1790.6730790000001,6715.1241448299988,8505.797223829999,null,null,-3574.7302225599997,-4431.2647555600015]
[null,null,"Agosto",15.402643306505363,9.8901098901099047,13.68577995899857,13.99222654081067,23.91632114587259,14.567685589519645,9.8286744815148612,null,null,2.8851437303734246,0.38843295819627999,3.581526777376951,4.4363344284758064,3.0783774746745705,0.38299863393943384,11.301115241635699,null,null,93.740100914654661,91.228622115620595,65.901867727213698,84.32831882058494,93.366808188762619,92.772635558947329,101.68238982965907,null,null,5.9188801686540771,0,-3.3577792241937314,-2.5396825396822604E-2,5.2159825068851386,5.3848374792955127,0,null,null,4004.20506015,2304.3000000000002,4714.8999999999996,2386.9813027731525,1020.8,2111.1999999999998,2405.1473954663206,null,null,68.091590818016968,89.869892825384952,105.57612904774093,108.56704527028094,101.52474323814442,44.894407981798054,243.97711180817691,null,null,-5.9813563140696377,-5.2508000000000123,-1.2228390383301209,-3.8530930345835439,-9.0116250936379796,-0.81845555724957486,-5.8442610837438282,null,null,3.89,4.12,3.67,4.37,7.25,2.35,3.41,null,null,1.9127436304356669,-2.1841000000000128,6.0176181897247956,4.0246371164149926,-3.4585831760604573,8.0060222594907806,-2.584529519157921,null,null,10.43,7.49,7.5600000000000005,10.09,10.83,8.26,6.9901199690402471,null,null,10,"n.a.",7.25,9,null,9.5,"n.a.",null,null,41.990596270935598,7.5957732425602664,0,20.634849799284403,25.761831771668021,22.412121148538368,19.126106651075169,null,null,804.43549423833338,378.05916666666673,634.1583333333333,236.07527319826457,225.31666666666663,593.14105833333349,872.84756991666654,2871.1859924365986,3744.0335623532651,null,null,1263.8653700091663,811.84583333333319,1236.333333333333,720.44756931555548,434.06666666666661,1351.3416666666665,1394.3817409999999,5817.9004393247205,7212.2821803247207,null,null,-2946.7144468881233,-3468.2486179714565,null,null,793.99849496000024,422.52,685.00000000000045,234.07268586000009,251.2999999999999,599.61660000000029,933.50698299999999,2986.507780820004,3920.0147638200033,null,null,1371.2307296899999,776.63000000000011,1233.0999999999995,839.3081174099998,437.5999999999998,1376.7999999999993,1651.9555809999995,6034.6688471000016,7686.6244281000036,null,null,-3048.1610662800013,-3766.6096642800003]
[null,null,"Setiembre",15.766820863465508,8.6784376672017167,12.748364803159332,13.716814159292026,22.791651136787188,14.578587699316625,10.044843049327357,null,null,2.4620987488068806,2.3193646254317057,3.1487813643815441,3.4815087413599648,2.2810597066645628,-1.1301755520160977,10.174006688204946,null,null,93.037781196699981,91.4865492321061,66.38816486328264,84.088475142358675,92.83595528287357,91.932485136217181,100.79695610489442,null,null,6.3147634110128772,0,-3.1191989579150219,-2.5799949609446409E-2,4.5075027282833737,4.5802283058409579,0,null,null,3814.0297339700001,2259,4745.0700062100004,2358.4707795904228,1053,2099.1999999999998,2224.2239325130799,null,null,65.896672714668398,89.602073976646352,107.52010803754504,109.26377360670192,100.20920832464182,43.949378141292506,223.51695737436086,null,null,-5.6292647777978155,-3.8907788499409257,-6.5707070928196218,-3.2421011673151678,-8.8986670634963794,-0.47878727634194551,-6.0473920130399366,null,null,3.9849999999999999,4.45,3.73,4.43,6.53,2.79,3.39,null,null,2.1881737005630981,-1.038327097282399,0.81742666374780382,4.6019455252918364,-4.1155066458660539,7.7600994035785327,-3.0970795979353456,null,null,10.59,7.55,7.66,10.14,10.52,7.91,6.6366666666666667,null,null,10,"n.a.",7.25,9,null,9.5,"n.a.",null,null,39.166562363655764,7.2704308649084171,10.835783331133708,18.88194961469982,23.757716516697556,20.983410613861441,20.028507696367058,null,null,809.64569980416672,381.02333333333337,643.25833333333344,239.20898882257009,228.84166666666667,592.01935833333346,887.24102391666656,2893.9973802934037,3781.2384042100698,null,null,1287.043767578333,823.17583333333312,1246.5499999999995,738.16816918268057,440.49999999999994,1361.4416666666666,1441.9641643333334,5896.8794367610126,7338.8436010943478,null,null,-3002.8820564676084,-3557.6051968842753,null,null,811.47627181999997,375.76000000000022,638.19999999999959,239.40258559999984,230.00000000000009,519.8739999999998,1028.0414479999999,2814.712857419996,3842.7543054199959,null,null,1365.3244560599996,868.71,1190.3,781.34400941999957,417.19999999999993,1293.6000000000008,1847.6976380000001,5916.4784654800023,7764.1761034800074,null,null,-3101.7656080599954,-3921.4217980599933]
[null,null,"Octubre",16.303829003855022,7.4062267559239237,12.926634278334644,13.060109289617488,20.286679448552906,12.843500961802684,9.4558429973238383,null,null,2.145545563579784,1.4164393792926995,2.5986862673909954,2.7571450070323751,1.3414617700435474,-2.0745046363187463,8.5884067720596438,null,null,91.36508936140892,90.998533909338022,65.942341895395302,82.716038480899229,92.931433230124085,92.383058701801957,99.778772457207836,null,null,6.5177765774429259,0,-2.566935811082844,-2.582514487271895E-2,4.9837786946512184,4.5879402542512215,0,null,null,3625.18987436,2342.8000000000002,4787.33603958,2336.5118956681367,1017.2,2007.7,2373.8951024462003,null,null,65.366507693882184,91.234011266785103,108.75473456555767,108.94739978786481,100.27315939094007,43.65050432148049,185.57028394158723,null,null,-4.9902303778202759,-2.3706509695290898,-6.647355007351722,-2.167085548574192,-5.9754369259809499,1.4059285866488158,-5.6879951100244668,null,null,4.1150000000000002,4.8600000000000003,3.78,4.4400000000000004,6.52,2.85,3.23,null,null,3.2726102200905576,1.1021458250890337,0.73797091978436802,5.4837119381343644,-1.3933432089234989,10.196864631213671,-2.3959521869057503,null,null,11.92,8.59,7.84,10.48,11.26,7.69,6.833333333333333,null,null,10,"n.a.",7.25,9,null,9.5,"n.a.",null,null,34.832020144123788,7.030582101039573,9.6039807750441639,15.315869356785949,17.990331566078609,18.635269939082487,19.276794903484884,null,null,813.74625185083335,385.98250000000007,648.7166666666667,240.53107061837758,230.69166666666663,589.7270583333335,906.69614016666662,2909.3952141358786,3816.091354302544,null,null,1307.0606982074999,823.23333333333323,1248.2916666666663,743.8136945208513,448.70833333333326,1368.0166666666667,1479.60706725,5939.1243927283504,7418.7314599783504,null,null,-3029.7291785924722,-3602.6401056758064,null,null,904.92550842000037,408.55999999999995,623.30000000000018,207.92786650000016,225.99999999999994,559.99489999999969,1324.789395,2930.7082749200017,4255.4976699200051,null,null,1463.18218505,831.79000000000087,1294.7999999999997,733.76800473999992,521.79999999999984,1300.9000000000001,2015.277391000001,6146.2401897899981,8161.5175807899941,null,null,-3215.53191487,-3906.0199108700035]
[null,null,"Noviembre",16.297472991123708,5.294055980710751,10.846209560598744,10.902255639097751,15.423669467787132,7.214198947226345,7.6787290379523521,null,null,1.9550297239112873,-2.2496710425620727,1.8846549102090344,1.9850999749373872,0.24931264475203141,-2.3910612246669505,6.8671429362574106,null,null,88.264102634847958,89.819474977015631,65.600327904010499,81.288925444153776,91.467697561572209,94.231537203212639,98.42925617109475,null,null,7.3073798760524058,0,-0.11804348014108808,-2.5846560846531627E-2,4.9943474777764143,5.3466395672879798,0,null,null,3753.9122622899999,2407.6,4727.00320663,2330.8160575153879,1012.8,1986.5,2352.9313784329697,null,null,63.576285808664053,91.620262249491304,104.03167619691629,106.75175348852422,97.152063869333418,42.269402515413972,235.4018942976428,null,null,-4.5551058380552325,-0.39323775388290078,-4.8681949360196022,0.20535593220338458,-2.231556846658644,6.8421917290866761,-4.0664754098360776,null,null,4.2850000000000001,4.88,3.77,4.58,6.96,3.1,3.3,null,null,3.9489482453829097,3.6620718837116839,2.6557429893819759,7.8968135593220277,3.4446162578896371,15.954790709385035,-0.99251639344263476,null,null,11.88,9.15,8.0500000000000007,10.72,11.96,8.69,6.61,null,null,10,"n.a.",7.25,9,null,9.5,"n.a.",null,null,30.502748713499095,6.1315329171933719,9.8041638801219975,13.224243706789673,15.319832533958945,17.005980941688303,18.383480606932913,null,null,800.82214952333334,390.36916666666667,646.9083333333333,237.2448977890499,230.07500000000002,579.39918333333355,909.0975698333333,2884.8187306457171,3793.9163004790494,null,null,1286.128622883333,817.22583333333341,1229.3916666666664,740.13419594758454,437.9666666666667,1351.7499999999998,1495.8232435833331,5862.5969854975847,7358.4202290809189,null,null,-2977.7782548518676,-3564.5039286018678,null,null,658.08984925999903,366.82999999999993,517.89999999999964,166.13160134999998,185.89999999999992,445.79690000000028,1004.8121560000001,2340.6483506099976,3345.4605066099975,null,null,1063.0872451200012,719.5,983.79999999999882,659.22157288999915,361,1141.4000000000001,1442.7058499999998,4928.0088180099992,6370.7146680099977,null,null,-2587.3604674000053,-3025.2541614000074]
[null,null,"Diciembre ",13.902332628419961,5.4742604484682627,9.4002272319559861,10.831099195710451,13.777893098079922,4.5172482818442559,6.7662565905096752,null,null,-4.105371454429644,-4.0696202511289554,1.0468092973594951,1.1115334288539918,-0.84919918254041293,-2.4192573614613746,5.2165354330708613,null,null,87.053265669854682,89.114536452556138,65.752511471485207,80.370292520057021,91.030668251690841,94.753375187734449,97.812123525295632,null,null,9.8289997657531529,0,0.98165698380179278,-2.5925925925921897E-2,5.0703396991881178,5.1851343570343875,0,null,null,3799.0988521700001,2539.5,4658.8242851999994,2460.0103567114747,1029.8,2165.4,2611.5755368652699,null,null,65.628342679764373,95.097400408924443,96.070211922545042,105.70758733369181,98.097638346079535,42.00070915185217,254.90494417062189,null,null,-2.1091162596567647,-8.9368200419206303E-2,-3.592522000546595,0.91932752781809823,-1.2442415527485853,9.5512959652706932,-3.2653168724279924,null,null,4.0999999999999996,5.38,3.82,4.82,6.63,2.76,3.28,null,null,5.9943174347232189,3.8926459726519584,4.0582847772615489,8.3089501693275309,4.887591588169232,18.583298008171614,0.14399999999999138,null,null,11.52,9.58,8.129999999999999,10.7,12.63,8.9700000000000006,6.92,null,null,10,"n.a.",7.25,7.75,null,9.5,"n.a.",null,null,33.873684582043808,4.4147711261212752,11.221711450122829,10.406254330647702,11.58457913730382,13.614271082474684,16.017035050488349,null,null,791.97305865750002,386.75666666666672,644.78333333333342,236.08202375333335,229.25,562.29166666666663,903.92448191666665,2851.1367490775006,3755.0612309941666,null,null,1281.0406608666667,818.13916666666671,1212.208333333333,734.45614720833328,434.19166666666661,1332.7416666666666,1505.5099901666665,5812.7776414083319,7318.2876315749991,null,null,-2961.6408923308322,-3563.226400580832,null,null,607.92344561000027,285.69000000000051,537.70000000000027,189.83919762999994,174.40000000000009,449.06660000000011,606.20794499999988,2244.6192432400057,2850.8271882400004,null,null,1043.6441553599998,673.63999999999942,959.29999999999973,577.19839142000092,340.60000000000036,1010.6999999999998,1305.2822669999994,4605.0825467799878,5910.3648137799901,null,null,-2360.4633035399893,-3059.5376255399824]
[null,2009,"Enero",13.500969550722061,3.812897176789261,7.8813358597821086,10.069259456579651,12.456215292609993,3.6797465430183993,4.9393414211438307,null,null,-4.2960540977854986,-2.1858466660822451,0.19227941279126615,-0.81455495457534566,-1.8312990939955351,-2.4750813917531915,3.1417542354707186,null,null,88.196609796965618,89.987410606746366,67.663825430949615,80.759168292876652,91.925924113287877,95.201751990570912,98.562327740853505,null,null,11.463687442321563,0,1.9559590130220801,0,5.3597905029247777,4.7761945670527739,0,null,null,3844.11383252,2370.6999999999998,4758.5618823800005,2421.723321083191,973.1,2085.4,2569.2381637559597,null,null,66.651464268674445,87.59279970707567,97.995100378001837,103.63297445819109,94.678187920274411,44.22873124460768,249.31663585089194,null,null,-1.9832161512398996,1.4324836929252265,-2.2073659366595448,1.908562439496609,1.4002658408947768,9.2113009294626771,-1.3334764657307852,null,null,4.07,5.3,3.85,4.91,6.69,2.92,3.54,null,null,6.4924823712326605,5.5360200702458489,5.5882364564465528,8.6406873184898298,6.5438254774697704,20.727532785841593,2.2114285714285877,null,null,11.62,9.56,8.17,10.7,12.79,9.01,7.26,null,null,10,"n.a.",7,6.75,null,8.5,"n.a.",null,null,32.017584369039788,3.2480113609204775,7.8572985171677212,9.6690389001451891,8.6436038048413053,9.5296777957637033,15.920851067399155,null,null,783.35939617500014,385.42750000000007,644.37500000000011,233.00087980916669,226.44166666666669,549.8288,891.69803058333343,2822.4332426508336,3714.1312732341667,null,null,1245.6694817091666,801.00500000000011,1186.7249999999995,721.17134566749985,428.02500000000003,1306.4416666666664,1494.9247555000002,5689.0374940433321,7183.9622495433323,null,null,-2866.604251392499,-3469.8309763091656,null,null,619.11959167999998,316.81,588.70000000000005,178.15591174000002,185.4,365.6,617.33158700000013,2253.7855034200002,2871.1170904199998,null,null,858.73768276999999,588.17999999999995,841.3,494.99486274999998,326.3,916.39999999999986,1239.3440539999997,4025.9125455199992,5265.2565995199984,null,null,-1772.1270420999995,-2394.139509099999]
[null,null,"Febrero",12.748404472680134,2.8627532038032202,6.4980887974125228,9.7522403795466541,10.777340808300545,4.030900267406146,4.2918454935622314,null,null,-4.4196936856481193,-2.1789760830065599,-0.47814111231479373,-3.0682331705755446,-2.7131719046626928,-2.6390237869494753,1.8355437665782535,null,null,89.281491889059964,90.543946329609113,69.164804742419591,80.537064275104669,92.230380168395428,95.892598465643715,98.726372924648771,null,null,13.024229957862781,0,2.8339270724055421,0,5.2770847462501571,5.094223630388,0,null,null,4077.23960304,2411.1999999999998,4742.3425540299995,2437.42831220364,971.4,2095.6,2527.6139956297602,null,null,70.609184475371734,87.957979198988497,101.78057197975461,102.71484167979953,91.297261711037422,44.813694700109977,240.08142219102305,null,null,-0.6637827635571788,2.2527559529790051,-0.890240198785199,2.2029250720461082,1.9819024512420731,7.8333453922315446,-0.70172839506172802,null,null,4.7650000000000006,5.18,3.84,4.91,6.74,2.96,3.56,null,null,7.8684887526444296,6.5205787199839289,6.9972252898950886,9.2825072046109511,9.1475304866755458,18.618602437166807,3.028189300411523,null,null,11.7,9.57,8.2100000000000009,10.53,13.12,9.4499999999999993,7.45,null,null,10,"n.a.",6.5,6.75,null,6,"n.a.",null,null,30.114857246898019,2.0790668190203254,7.2574770262722632,7.5942103229184488,5.7227148663661298,8.1191016349958733,14.695887194110057,null,null,769.86674730416678,379.80166666666679,641.05833333333328,227.64976429666669,225.04999999999998,540.90442500000006,883.01920299999995,2784.3309366008339,3667.3501396008337,null,null,1211.1044516741665,783.21583333333353,1162.5666666666664,707.17295374749995,422.05,1270.4999999999998,1479.7207896666666,5556.6099054216647,7036.3306950883316,null,null,-2772.2789688208322,-3368.9805554874988,null,null,686.33440253999993,320.80000000000013,602.5,197.61613303999997,213.6,422.50000000000006,690.54997300000002,2443.3505355800007,3133.90050858,null,null,831.26519084999995,583.85,886.3,497.57274629,318.7,800.8,1087.8916639999998,3918.4879371400002,5006.3796011400009,null,null,-1475.1374015599999,-1872.4790925599996]
[null,null,"Marzo",12.321919570610815,2.5535842477694537,4.998546934030812,8.7774294670846302,8.4582441113490336,2.4408452075692173,3.7319762510601997,null,null,-4.3410231186622701,-3.8444307292626259,-0.79906532804271524,-3.2375678375152641,-3.3521664150170114,-2.7199050803418534,0.9473185621809439,null,null,89.955670088756875,90.33753503701648,70.660531884941577,80.73291015675936,93.089133697851153,96.270483103125201,98.319082187132665,null,null,13.882595586491403,0,5.7045414138887862,-1.0054506006183345E-2,5.0614876593412648,5.1596696632062482,0,null,null,4167.2698822599996,2516.1999999999998,5029.7989562299999,2552.9074220040643,970.2,2103.8000000000002,2855.6692107751196,null,null,71.139594237171565,91.509229477886066,106.08711876102772,103.05592734085489,89.652756602972303,44.545407375055198,280.3169105965531,null,null,-0.50917893449697749,2.4635080000000058,0.57282037088291582,2.8797982708933803,3.8620235753552814,8.5309280441050639,-0.15614881439082229,null,null,4.3550000000000004,5.08,3.91,4.93,6.73,2.83,3.57,null,null,8.6876012141083567,6.9392170000000055,8.4110240797121438,10.372161383285309,10.884963986858031,17.843619657171821,3.3625347506132663,null,null,11.71,9.67,8.24,10.36,12.56,8.7799999999999994,7.22,null,null,10,"n.a.",6.25,5.75,null,6,"n.a.",null,null,27.25950451576702,0.74743671383639132,7.5502774910768844,6.3568584289452001,4.3063380781609206,5.6221184625666165,13.850052149296799,null,null,764.49113144166677,379.08750000000003,641.69999999999993,223.7423315325,224.02499999999998,529.05061666666666,892.42940558333339,2762.0965796408341,3654.525985224167,null,null,1191.0609915091666,771.69333333333327,1140.6666666666663,694.05017595083336,415.38333333333327,1244.0916666666665,1497.9382996666664,5456.9461674599988,6954.8844671266661,null,null,-2694.8495878191661,-3300.3584819024986,null,null,772.56291193000015,347.56999999999994,650.30000000000007,234.90238296999996,240.20000000000002,484.39999999999992,1020.143571,2729.9352948999995,3750.0788659000018,null,null,840.56999211000016,611.41000000000008,904.40000000000009,525.5821876,343.19999999999993,1013.5999999999998,1375.4212599999996,4238.7621797100001,5614.1834397099992,null,null,-1508.8268848100006,-1864.1045738100001]
[null,null,"Abril",11.750730438363346,1.7900732302685161,3.6226069012954087,8.0703569580962196,6.8805848903330622,0.69453294252581921,3.7162162162161949,null,null,-4.1857811587434632,-3.6640503330193792,-0.7976792595045612,-4.5928042714971253,-3.7662222522807798,-2.3636763972421329,0.40271966527197189,null,null,90.586008226687753,90.490658267162758,70.920008216494196,80.663247152883471,93.303357137565996,96.802213282287511,98.163201477998498,null,null,15.026010444888142,0,7.2923493173073091,-4.4964980215379084E-2,4.6100337417267552,5.289515602866075,0,null,null,4270.68760372,2673.8,5001.00000507,2589.0663725737131,1012.8,2038.9,2843.7327772075,null,null,74.44841969993783,92.459780099396525,104.57828706650527,101.64577796076715,91.050189092455327,43.989528511517797,277.92363104019569,null,null,-0.22436583253315115,3.1731254996003142,1.9468658037393682,2.9699569171852596,5.8133313868211136,8.3574220084793875,-6.3843648208448622E-2,null,null,3.88,5.0199999999999996,3.94,4.8899999999999997,6.87,2.86,3.65,null,null,9.2699792662724381,7.6431095123900832,9.8698473282442922,10.983255146002877,11.93055755616375,18.099758273745479,3.1082736156352011,null,null,12.37,9.57,8.2199999999999989,10.42,13.39,8.86,6.94,null,null,10,"n.a.",5.75,4.5,null,5,"n.a.",null,null,26.034349863958163,-0.52989003840799853,7.2769292530270757,4.9064276594758205,1.2811321421830835,4.0878600728111669,12.753610935807981,null,null,751.6544517133334,369.19750000000005,634.09166666666658,218.71941284583332,219.2833333333333,516.60275833333333,889.50710041666662,2709.5491228925002,3599.0562233091673,null,null,1135.8620673766666,741.26166666666677,1098.1083333333329,674.91882522083336,399.79999999999995,1210.0999999999997,1482.8013018333331,5260.0508925974991,6742.8521944308313,null,null,-2550.5017697049993,-3143.7959711216649,null,null,732.95296399000017,308.97000000000003,632.30000000000007,190.22457434,204.60000000000002,463.79999999999984,889.8242039999999,2532.8475383300001,3422.6717423299997,null,null,838.82707692999975,556.77,881.09999999999957,509.56893564000006,328.5,985.30000000000007,1112.7803410000004,4100.0660125700015,5212.846353570003,null,null,-1567.2184742399986,-1790.1746112399996]
[null,null,"Mayo ",9.5237291520749743,0.97595331522287265,2.2943037974683538,6.1483739837398339,4.093890776890861,0.4731210110183135,2.5125628140703617,null,null,-3.9986765153755002,-1.9561771404342805,-0.48871435570184252,-4.7275006480911941,-4.016638176223764,-1.4987707607490972,0.10917598128412163,null,null,91.708299448893456,90.498870127164523,71.111148448446755,80.896264224005975,94.21314581271227,97.303519029437282,98.76849326069437,null,null,12.251337850033662,0,8.9511446446919702,-8.8883271085537507E-2,4.949463199779637,5.6948552544146995,0,null,null,3900.5751640499998,2928.9,5007.5742491400006,2534.2079799180215,1020.3,2073,2750.9609279830502,null,null,68.946206400912146,106.51126425077733,103.9715316319803,101.00720677011998,90.353162156206608,46.009365570511704,269.27841766847916,null,null,1.5761614963424628,3.8465065763252162,3.3195359628770311,4.1749353757778875,8.5045543524609251,7.292377220150442,1.0998039215686177,null,null,3.0249999999999999,4.8600000000000003,3.98,4.8499999999999996,6.67,2.96,3.64,null,null,11.50095138816487,8.3228198485452243,11.296519721577726,12.879731929152708,14.926910896088271,17.872321281840602,3.577549019607833,null,null,11.88,9.3800000000000008,8.19,10.39,12.73,7.95,6.18,null,null,10,"n.a.",5.75,4.5,null,5,"n.a.",null,null,21.553702912780803,-1.7276770595137658,6.6666450993285276,4.2958599916558038,-0.22263314117164645,3.4379300023831494,11.16420211061644,null,null,744.73560864916669,360.93333333333345,630.17500000000007,215.18837963166663,218.81666666666663,505.0153416666667,894.82164533333344,2674.8643299475007,3569.6859752808336,null,null,1100.1522380383333,717.75999999999988,1061.5333333333331,644.06632935749997,391.75833333333338,1164.3499999999997,1476.5161136666666,5079.6202340624986,6556.1363477291643,null,null,-2404.7559041149993,-2986.4503724483316,null,null,759.56003417000011,336.72000000000025,604.09999999999991,231.73103021000009,206.90000000000003,471.29999999999984,866.16401700000006,2610.311064380001,3476.4750813799983,null,null,887.04098064999971,604.11999999999989,887.70000000000027,486.55843090999997,344.10000000000014,949.69999999999993,1359.151658,4159.2194115599959,5518.3710695599948,null,null,-1548.9083471800004,-2041.8959881800001]
[null,null,"Junio",8.196070831866594,-0.22856007154922967,0.61721530249109913,5.4216867469879579,1.9579012536759026,0.25742021524050807,1.8211920529801224,null,null,-3.729477505049597,-0.12267370335870163,-2.7984943692744634E-2,-5.2502849380934791,-4.0248294958942301,-0.26225195696236381,-3.1012560086836345E-2,null,null,92.689934715801655,91.239880633450213,72.019069262155355,81.163772180817631,95.505370606716042,95.99569892612476,99.130967859916382,null,null,10.733097325713075,0,8.5136735215632129,-2.0157373655426494E-2,5.0347875789289471,5.1702130151183292,0,null,null,3935.8131411099998,2781.5,5137.2821378400004,2444.222793169075,1030.9000000000001,2047.1,2705.4254256132299,null,null,69.162905270247265,99.033272901021547,105.71208246632288,95.133024266402927,89.2348601708687,46.865895920709086,262.94309314142248,null,null,2.5915258870305524,4.9899651394422202,5.0814213871235197,4.4377142857142795,11.197414147055508,6.8748824475654375,1.6684227642276523,null,null,2.6799999999999997,4.75,3.98,4.8,6.64,2.92,3.52,null,null,12.407039444870774,9.7608695219123405,13.121794970986466,13.449142857142851,17.58451779456103,17.407768669182712,4.7915447154471646,null,null,11.89,9.51,8.19,10.38,13.1,8.3800000000000008,6.7,null,null,10,"n.a.",5.25,3.5,null,5,"n.a.",null,null,19.343395537355423,-3.6012317784486214,3.6638144214194535,2.781974780178853,-2.5010110642093464,4.4587341232797062,8.6314873635808596,null,null,741.06604578083341,355.69583333333344,620.6,211.23475491333332,214.79999999999998,495.44177500000001,918.17510016666677,2638.8384090274999,3557.0135091941665,null,null,1077.31086048,696.95000000000016,1038.0416666666667,623.23496731666671,388.74999999999994,1124.9416666666666,1485.34047775,4949.2291611299997,6434.5696388799988,null,null,-2310.3907521024998,-2877.5561296858323,null,null,747.35531257999992,330,621.90000000000009,216.88522985999998,218.10000000000002,503.99999999999989,1102.591377,2638.2405424399949,3740.8319194399992,null,null,1014.5424142200009,631.01000000000022,995.80000000000041,537.14642085000014,401.69999999999993,1022.5000000000003,1595.9049500000001,4602.6988350700049,6198.603785070005,null,null,-1964.4582926300027,-2457.7718656300021]
[null,null,"Julio",6.9027168627060487,-1.8936420722135072,-0.30204843758580524,3.9823008849557495,7.642922653622311E-2,-1.2208148939417038,1.8961253091508559,null,null,-3.39883195247375,-0.86175185915479591,0.47400156865932841,-4.6935019684943908,-3.866570977543287,1.2222812279039399,0.14927677973953365,null,null,92.552109863336042,91.468739593386104,72.084264842166817,80.460363085910018,96.403685339830261,95.879091408108167,98.493331816543446,null,null,8.4429338784623464,0,9.8679974297222461,-1.6567167784784821E-3,5.1358332986173059,4.978467391811769,0,null,null,3884.3575550800001,2676.3,5035.4762010599998,2204.9730131065198,1102.3,2059.3000000000002,2486.8558421243306,null,null,70.676061190090877,93.778448371920916,102.69189442600724,94.431673088392102,89.095655740334507,45.554744272304319,246.30407128266279,null,null,4.7681511618132761,6.4864726472647334,6.0001718629503094,5.6718297872340457,13.796161103303087,8.5350115865904499,1.5740291262136019,null,null,2.4,4.47,3.97,4.72,6.85,2.77,3.5,null,null,14.075678876635081,11.389314931493157,14.235045169108732,14.750297872340429,19.742304676463132,19.073669086976668,4.3022977346278415,null,null,11.75,9.2799999999999994,8.18,10.27,13.01,8.5399999999999991,6.28,null,null,9,"n.a.",4.75,4,null,5,"n.a.",null,null,16.159577350848188,-3.8519661001622407,3.6861062050727256,3.1286260190423576,-4.6859187722143698,5.350022954087752,6.8282020722149506,null,null,736.17801880250011,349.44250000000011,609.51666666666665,208.16840627666667,213.39166666666668,479.81241666666671,933.98922725,2596.5096750791668,3530.498902329166,null,null,1045.833766275,675.81500000000017,1012.6749999999998,597.48407812833329,375.09166666666664,1076.7416666666668,1446.1744527499998,4783.6411777366666,6229.8156304866652,null,null,-2187.1315026574994,-2699.3167281574988,null,null,739.83743867000067,373.07999999999947,612.30000000000041,211.13167621999992,224.29999999999998,471.79999999999984,1123.9080709999998,2632.4491148900051,3756.3571858899995,null,null,972.55308648999926,664.17000000000007,1094.1999999999996,527.54525762000003,360.4,1109.2000000000003,1320.6807789999998,4728.0683441100009,6048.7491231099993,null,null,-2095.6192292199976,-2292.391937219998]
[null,null,"Agosto",5.7116567660008748,-2.1568627450980458,-0.73224043715847198,3.117389186556248,-0.12167300380227877,-0.4695837780149395,1.8062397372742276,null,null,-3.0099519573856508,-3.43381287360529,0.94680609982207531,-4.6107694237038261,-3.5838042111607877,2.6790411094263176,0.6268948152715681,null,null,92.956348677663811,91.855672100327993,72.937068601290989,80.564639558542595,96.914967013720954,95.406062948507071,98.395804565737123,null,null,6.4072662613609142,0,11.520207399372996,-5.2923493793482742E-4,5.2360081125526508,3.8978754329450584,0,null,null,4052.1901452900001,2977.5,5169.9563626600002,2253.0741964783074,1252,2272.6999999999998,2736.8132973672004,null,null,74.771124243712023,100.8485845295731,107.42127337101044,101.25664797093259,101.04319676813836,49.68427811180586,262.50022358290846,null,null,5.4755959713332976,6.4867735470941961,6.4393922712760121,6.6260510155881081,13.666907492497083,7.6957216384301939,1.6538870967741861,null,null,2.0949999999999998,4.1900000000000004,3.98,4.7,6.66,2.73,3.49,null,null,15.796122895523851,11.862725450901809,14.790542772211825,15.470340103920655,19.472475348296676,17.632382586317817,3.8934354838709595,null,null,11.13,9.4499999999999993,8.14,10.38,12.66,8.3699999999999992,5.77,null,null,9,"n.a.",4.75,4.5,null,5,"n.a.",null,null,15.457909905457591,-5.2337645942481359,13.962377853539776,0.89330562994243135,-7.220567762662955,4.2568713411206272,4.860769023204381,null,null,731.98027525750001,339.36000000000007,598.76666666666665,204.07553325916669,212.53333333333333,469.3610333333333,939.66850633333343,2556.0768418499997,3495.7453481833327,null,null,1013.4889709183334,657.80000000000007,987.94999999999982,570.47214933499993,368.98333333333329,1049.625,1417.286102916667,4648.319453586666,6065.6055565033339,null,null,-2092.2426117366658,-2569.8602083199989,null,null,743.62557242000003,301.5300000000002,555.99999999999977,184.95820965000007,241.00000000000006,474.20000000000005,1001.6583320000001,2501.3137820699958,3502.9721140700021,null,null,983.09318540999993,560.44999999999982,936.39999999999941,515.16497188999983,364.3,1051.4000000000003,1305.2953830000006,4410.8081573000018,5716.103540300006,null,null,-1909.4943752299987,-2213.1314262300002]
[null,null,"Setiembre",4.8338258929422064,-1.8018905080740413,3.2837127845881657E-2,3.0642023346303562,7.5884049172794841E-3,-1.5693716488945144,0.48899755501220976,null,null,-2.6524572685777468,-5.3949030111692577,1.3921006602893624,-3.7560875424135292,-3.1429838083536166,4.0010253439718193,1.3478752958123288,null,null,92.901581267160694,91.966988208294026,73.011242848488308,80.538986002725935,97.034638788851822,95.437324603276011,99.01631229509276,null,null,6.0443056805362074,0,11.445829172969933,-7.3085119453832712E-5,5.8926199209406267,3.5146145608741559,0,null,null,4059.3971229499998,2743.5,5087.2152935399999,2205.5372715607355,1280.0999999999999,2210.9,2717.1761630798001,null,null,73.329865259358243,96.976805099421099,109.82146155057293,97.532801271093874,102.70387497543925,47.874038797009526,260.12001097223407,null,null,6.3588007462114282,5.8778020655770549,5.6253156800525259,6.797508258612547,15.234193822729273,8.035478165070236,2.9565450121654653,null,null,1.89,3.97,4,4.67,6.8,3.09,3.46,null,null,16.317418502179567,11.224137170359969,13.942584527847689,15.520226521944306,20.920196035612253,17.443119013373323,4.7975425790754409,null,null,11.11,9.2200000000000006,8.129999999999999,10.43,13.08,8.14,5.31,null,null,9,"n.a.",4.5,4.5,null,4,"n.a.",null,null,14.29106524772228,-5.6510718937310305,2.1441244553151773,0.47572555459829413,-7.8327441879963438,4.7104014368545055,2.7135054903900224,null,null,726.6382226991667,333.45666666666671,591.40833333333342,198.45256931000003,214.85833333333335,464.32153333333326,976.90275724999992,2529.1356586758338,3506.0384159258333,null,null,978.05828336916682,634.87083333333328,965.30833333333305,545.48998906000008,362.99166666666662,1023.9833333333332,1389.860042,4510.7024390958322,5900.5624810958316,null,null,-1981.5667804199993,-2394.5240651699992,null,null,747.37164112000028,304.92000000000007,549.89999999999964,171.92701820999991,257.90000000000009,459.40000000000009,1474.8524589999997,2491.4186593300037,3966.2711183300016,null,null,940.15620547000071,593.5600000000004,918.60000000000036,481.55808611999964,345.29999999999984,985.90000000000009,1518.5849069999995,4265.0742915899973,5783.659198589994,null,null,-1773.6556322600009,-1817.3880802599997]
[null,null,"Octubre",4.0001465418616435,-2.0280965571824279,-0.65348799215814191,2.6582890285161911,0.4250474383301725,-0.30136068917231806,0.73349633251832314,null,null,-2.4175402044988714,-5.8699751318175206,1.8564185498345365,-2.7227205922885256,-2.5530776557355113,5.20115320854699,2.2354155911202955,null,null,92.031259373604684,92.71244251221718,73.510074233797809,80.426777882100694,97.121533513052327,95.413577454530994,98.87111270486281,null,null,4.9503423944808889,0,10.950674138348019,-4.7883366205993903E-5,5.1452767567756945,3.1577593598170925,0,null,null,4066.7415792299998,2928.6,5091.3049877000003,2147.3992722455691,1287.2,2074.6,2679.3982361406001,null,null,70.697676389270285,102.20312898058607,107.31574607692107,94.637831456738581,106.48783595663673,44.505917261988913,253.28258737339661,null,null,4.8075446367489114,5.8568797334141145,6.3550172668968896,7.531501883239172,11.181196560136426,5.6784733756717092,2.5775970873786553,null,null,1.7999999999999998,3.71,3.97,4.68,6.51,2.66,3.33,null,null,16.432528257467208,11.287007977380588,14.679416214438412,16.035442561205276,19.075595487186316,15.006584636052754,5.2049919093851287,null,null,11.05,9.0299999999999994,8.09,10.63,12.39,8.3699999999999992,5.9766666666666666,null,null,9,"n.a.",4.5,4.5,null,4,"n.a.",null,null,13.576656802550202,-6.2531006899954278,1.0204816305484199,1.9247812348975213,-7.9257226098780169,6.0006077528596879,1.9027380954190987,null,null,717.23092837416664,328.03916666666674,590.98333333333323,196.28193630249999,214.69166666666672,457.58862499999992,981.7919886666665,2504.8156563433336,3486.607645009999,null,null,945.0123494825001,618.37249999999995,951.12499999999989,527.91298009499997,352.97500000000008,1008.5083333333332,1359.5736138333334,4403.9061629108319,5763.479776744166,null,null,-1899.090506567499,-2276.8721317341656,null,null,792.03797651999957,343.55000000000018,618.19999999999982,181.88027041000009,223.99999999999991,479.20000000000005,1383.4601720000001,2638.8682469300002,4022.3284189299957,null,null,1066.6309784099994,633.80999999999949,1124.6000000000004,522.84389715999987,401.60000000000019,1115.1999999999998,1651.8402530000012,4864.6848755699975,6516.5251285699997,null,null,-2225.8166286399992,-2494.1967096400003]
[null,null,"Noviembre",2.56654859369926,-2.9868578255772948E-2,-0.6098557037843747,3.0992736077481866,0.46261186106475438,4.1795178447787418,1.3934426229508079,null,null,-2.2687312628783669,-2.3169757969191243,2.3174176211343092,-2.4088052434196778,-1.8199751634319694,6.317659546645837,3.0833808363994346,null,null,89.830572771703956,91.497951812532136,73.140951853767149,80.294682590700944,97.388719145987963,94.466837624183256,98.861104355691566,null,null,2.5025517023500123,0,8.814506179090781,-2.6461865926904145E-5,5.0350504789669301,2.5544054259094588,0,null,null,4059.79113474,2731.1,5111.03923614,2066.7989592252898,1307.7,2222.9,3026.8883949599999,null,null,68.968896821279259,99.163189183438647,104.15564099024861,90.115674561314222,107.24464415491141,45.25132867871136,279.65670934222254,null,null,6.5162097136514143,3.6609620555722557,6.2982660384594338,7.2752465946453713,12.099993258481819,0.70117636396593153,1.9000808407437466,null,null,1.7949999999999999,3.63,3.9,4.62,6.29,2.76,3.32,null,null,17.075207893961206,9.1526023304452817,14.377537938968938,15.393635509628933,18.603089304627655,9.9064406984472324,4.553112368633804,null,null,10.58,9.1199999999999992,8.09,10.41,12.68,7.92,6.01,null,null,9,"n.a.",4.5,4.5,null,4,"n.a.",null,null,12.47795754911898,-6.280643711607981,-0.3778745585305221,2.1396956222186958,-8.2262893153439265,6.3891772772979305,1.2092512216758777,null,null,725.03746686916691,321.0266666666667,592.64166666666677,196.02821800416666,216.65000000000006,457.72221666666672,980.36904358333322,2509.106234873334,3489.4752784566667,null,null,948.51602288166669,615.58166666666659,950.20833333333337,518.80922558416671,355.00000000000006,1006.7833333333332,1341.8403479166666,4394.8985817991661,5736.7389297158325,null,null,-1885.7923469258324,-2247.2636512591653,null,null,751.76831120000043,282.67999999999984,537.80000000000064,163.08698176999997,209.40000000000003,447.40000000000009,987.73681499999998,2392.1352929700006,3379.8721079700044,null,null,1105.1313259100007,686.00999999999931,972.79999999999927,549.97651875999964,385.30000000000007,1120.6999999999998,1229.9066589999989,4819.9178446700025,6049.8245036700027,null,null,-2427.7825517000019,-2669.9523957000019]
[null,null,"Diciembre ",4.0470413162490413,-0.18963968459925915,-0.27876468980595154,2.9511369134010756,0.93379779551500885,5.7648110316649532,1.8930041152263277,null,null,3.8934677757549245,1.616390562834958,2.706079051238214,-0.9295552741620795,-1.0573622776636917,7.4562137874189691,3.804178359837866,null,null,88.809535258051781,91.713563383348514,73.234761517298608,80.190933751982172,97.255241613191643,94.199993103264404,98.607275504774478,null,null,3.3340916738945312,0,8.1264481505124646,5.2923773924069472E-5,4.9787173587837028,2.3615235599272748,0,null,null,4066.2656085899998,2983.4,5212.5943903699999,2116.3361415778572,1422.8,2851.9,3204.5331848385295,null,null,67.864031627670755,109.47232460815593,101.40223427143657,84.393086823148195,107.9785240937761,54.90819686292938,254.12570304778791,null,null,4.0394792763029699,3.8469349999999976,5.9052263757947756,7.5558787593984844,11.267220973842255,-0.82712862920262176,1.3710420032310275,null,null,1.7850000000000001,3.65,3.88,4.6399999999999997,6.46,2.64,3.29,null,null,15.515057868072553,8.6259979999999974,13.88747807498355,15.530535714285703,18.849367551700816,7.6161332769964503,4.1877221324717393,null,null,10.56,8.42,8.1199999999999992,10.26,12.45,8.09,6.16,null,null,9,"n.a.",4.5,4.5,null,4,"n.a.",null,null,7.3667687370214452,-5.1099661640702232,-2.6987739204442196,2.5058362240420573,-7.3137881303383834,7.9854357463250425,2.0864406026152249,null,null,731.97497315333351,322.17416666666668,601.14166666666654,196.82933375499999,218.80833333333337,456.90833333333336,988.23281725000004,2527.8368069083335,3516.0696241583341,null,null,949.55567407499996,610.44749999999988,960.94166666666649,518.64481135583321,360.58333333333331,1024.6583333333335,1337.4061076666667,4424.831318764167,5762.2374264308337,null,null,-1896.9945118558328,-2246.1678022724996,null,null,691.17352102000132,299.46000000000004,639.69999999999936,199.45258663999994,200.30000000000004,439.30000000000018,700.5732290000002,2469.3861076600006,3169.9593366600093,null,null,1056.1199696799995,612.02999999999975,1088.099999999999,575.22542067999984,407.59999999999991,1225.1999999999998,1252.0713840000003,4964.2753903600023,6216.3467743599977,null,null,-2494.8892826999945,-3046.3874376999956]
[null,2010,"Enero",5.3430509509209418,0.79277471149022205,1.4325703935452141,3.5818005808325295,1.8504656993086652,6.8531958237840449,3.0553261767134727,null,null,4.033174847966289,1.7843276980671723,3.0559556054955461,1.7303834290852687,-0.34863322736372199,8.6413518386684078,4.3091797484145919,null,null,87.128195963229544,91.623847134841967,72.917228907383617,80.01377863005456,97.286627108608656,93.350063488491642,98.151440640339629,null,null,1.4043425142300792,0,6.511100117246432,5.2923773924069472E-5,5.0320863805486331,2.0941890283381257,0,null,null,4072.4222186000002,3013.5,5526.1660629600001,2077.2321656241356,1348.8,2615.7731839341236,2740.80962322,null,null,67.714424980642264,106.01489872560488,107.14559616339592,83.231953567140934,105.11754664533153,51.888946277011719,243.37514712891704,null,null,2.5221873057291084,2.7752240143369113,4.1282889610389466,6.9685981308411185,7.4447034174301541,-1.9308695522654697,0.24712339743588507,null,null,1.7850000000000001,3.59,3.9,4.57,5.97,2.5,3.31,null,null,13.647743187424895,7.7458183990441984,11.916714285714271,14.952626168224295,17.519900196279309,5.9023074860734743,3.2261057692307564,null,null,10.57,8.6,8.1100000000000012,10.32,12.89,8.48,6.38,null,null,9,"n.a.",4.5,4.5,null,4,"n.a.",null,null,6.3611273081439101,-5.3937263513163192,0.68490266692415869,1.9444348866115568,-6.6741122536062019,10.827182775303257,1.5022583036576886,null,null,740.74932155000022,323.26916666666665,608.01666666666665,200.08065294583332,222.625,459.17500000000001,991.57369949999986,2553.9158078291671,3545.4895073291677,null,null,965.88366715333348,614.63166666666666,967.85833333333312,519.74026435916664,360.625,1032.241666666667,1338.2338819166666,4460.9805981791678,5799.214480095834,null,null,-1907.0647903499994,-2253.7249727666667,null,null,724.41177244000005,329.95,671.2,217.17174202999999,231.2,392.79999999999995,657.42217399999993,2566.73351447,3224.1556884700003,null,null,1054.67359971,638.39,924.3,508.14029879000003,326.8,1007.4,1249.2773450000004,4459.7038984999999,5708.9812435000003,null,null,-1892.9703840299999,-2484.8255550300005]
[null,null,"Febrero",5.5994495137550935,1.0449110820857952,2.4848150193263336,3.5062439961575467,2.7426097137246073,6.6768215283066814,2.9629629629629575,null,null,4.2297105131454824,2.874643670418668,3.3260256663352346,4.8787740561637261,0.37660525402609435,9.557455946656038,5.1625338612210854,null,null,84.943498596612272,91.528215042266552,70.704359348014478,79.476597344702142,96.464783396545613,93.45451702628857,97.940466889270951,null,null,-1.6395877820072453,0,2.5676813557500902,6.7190024562947988E-10,5.2047545986273116,1.7830024185837234,0,null,null,4113.3952816999999,2842.8,5565.4613587100002,2139.2136788249127,1365.3,2430.1143302571368,2698.6626112100003,null,null,67.53921132226634,101.31107825307883,109.21978820344793,82.212047674641838,100.2529709008644,48.967696565438928,245.38156063317626,null,null,2.2732604171966573,2.4989768320572812,3.059170258620695,6.9983758700695988,6.8301854299558782,-1.721856258924326,0.34676258992806269,null,null,1.7749999999999999,3.57,3.92,4.47,4.84,2.52,3.32,null,null,13.939987901825017,7.6847896987173208,10.748114224137936,15.026877030162403,16.67048143284935,5.9836601618276966,2.9496402877697894,null,null,10.83,8.81,8.09,10.29,12.17,8.0399999999999991,6,null,null,9,"n.a.",4.5,4.5,null,4,"n.a.",null,null,4.8475397809677023,-6.3219050633716805,-0.4549456724735057,1.7579687403344479,-6.9173471035634542,12.957411814775433,1.7389908128091935,null,null,746.97530377000021,327.1658333333333,609.6583333333333,204.95634860416666,224.875,468.82500000000005,999.02322791666654,2582.4558190408338,3581.4790469575005,null,null,976.07669970333336,616.54,976.49166666666633,522.41650837999998,364.05833333333339,1050.916666666667,1352.3180196666667,4506.4998747500003,5858.8178944166675,null,null,-1924.0440557091661,-2277.3388474591666,null,null,761.04618918000006,367.56,622.20000000000005,256.12448094000001,240.59999999999997,538.29999999999995,779.94431400000008,2785.8306701200008,3565.7749841199993,null,null,953.58158144999993,606.74999999999989,989.89999999999986,529.68767453999999,359.90000000000003,1024.9000000000001,1256.9013170000003,4464.7192559899995,5721.6205729899993,null,null,-1678.8885858699996,-2155.8455888699996]
[null,null,"Marzo",5.8416234406492622,0.88999999999998625,3.9299999999999913,3.9865513928914562,4.4243070848204091,7.4268876144608988,2.6982829108749091,null,null,4.3482570667759708,3.5267488847977146,3.3792559063849996,4.1479667044571782,1.1006712065425488,9.9615855985217827,5.9121005161357614,null,null,82.605067891832746,91.612557204026018,69.102381867830942,79.434361100188909,96.18566856407746,93.309101234252793,97.951146821850401,null,null,-5.0052180236404942,0,-0.66045864780634,1.9092906117310185E-5,5.4576500843545697,1.7674650726584078,0,null,null,4155.1881406399998,2605.4,5547.3303416799999,2194.4289586800073,1339.6,2295.5093843614832,2863.5467707600001,null,null,64.968712507060246,93.956580332443437,103.8636744728084,78.436689878235924,99.264380680039309,46.904040003770156,260.47024859669506,null,null,2.0392511843176688,2.5572405590246943,1.6260944866737315,6.4176073903002244,3.8172694779370362,-2.3987361746055278,0.52748407643311013,null,null,1.605,3.47,3.81,4.37,4.1500000000000004,2.2599999999999998,3.24,null,null,13.63204388831376,7.2653384874616069,9.1888771288367277,14.332092378752881,14.855428577099016,4.4989783217814345,3.2733917197452111,null,null,10.24,8.2200000000000006,8,10.220000000000001,10.7,8.1199999999999992,6.06,null,null,9,"n.a.",4.5,4.5,null,4,"n.a.",null,null,1.8847691291064006,-5.7089838139304909,-1.785619035943975,1.9369577592874609,-7.8151813763154498,15.459624810257754,2.5564165107037518,null,null,759.83754886250028,330.89916666666664,627.34166666666658,208.55448270499997,233.92500000000004,480.2,1013.698034,2640.7578649008337,3654.4558989008342,null,null,1002.8045951283334,624.51666666666654,996.35833333333323,531.81034234166657,370.82500000000005,1072.2833333333335,1367.7006346666667,4598.5982708033343,5966.298905470001,null,null,-1957.8404059024997,-2311.8430065691668,null,null,926.90985303999992,392.36999999999989,862.49999999999989,278.07999217999998,348.80000000000007,620.9,1196.2412440000003,3429.5598452199993,4625.8010892199991,null,null,1161.3047372100002,707.13000000000011,1142.8000000000002,638.30819513999995,424.4,1270,1560.0126400000001,5343.9429323500008,6903.9555723500034,null,null,-1914.3830871300006,-2278.1544831300007]
[null,null,"Abril",5.5560336650257307,0.62949640287767905,3.7504148689014145,4.16467209191,4.8483392870715258,7.6567740302474165,2.6058631921824214,null,null,4.3452984991337935,2.336854452146913,3.2264307013816467,4.6762572228233763,1.800609045081232,9.8333238474310587,6.4541334583528762,null,null,79.38294418261269,91.935702118505873,69.135050744029016,79.170079616225294,96.335655531779054,93.457728662994441,97.809780574272224,null,null,-9.5219163222317746,0,-1.0732818611348862,1.9092906136112487E-5,5.8877191630336512,1.6636148452503139,0,null,null,4193.8890468099999,2734.9,5601.6,2144.4307483213433,1401.4,2294.334554135256,2722.5123906899998,null,null,64.39192553967797,94.214858381450114,106.05832560456916,78.60838862677663,100.79181641529063,46.190016049097245,256.23249447958756,null,null,2.0784850189140736,2.5544235924933165,1.7634484964811383,6.0532306985294166,5.1218623263328755,-2.4306636101804457,0.66676190476189412,null,null,1.4899999999999998,3.2,3.69,4.4000000000000004,3.69,2.29,3.29,null,null,13.996325775646683,7.55295799821271,9.3200447856685997,14.213386948529417,15.03920969922739,3.3934009287015861,2.7816507936507828,null,null,9.7799999999999994,8.23,7.9,10.17,10.55,7.51,5.46,null,null,9,"n.a.",4.5,4.5,null,4,"n.a.",null,null,-0.70208311149574376,-4.9967733355476778,-1.5121892429780792,2.6701679870077211,-6.6670096316224221,16.027784085319663,3.1975802509886186,null,null,764.64965827916694,334.53666666666663,633.50833333333333,212.49888553999997,238.6166666666667,490.1583333333333,1018.2844233333334,2673.9685438191668,3692.2529671525008,null,null,1026.8914441525001,637.65333333333331,1020.2749999999997,540.61201921916665,378.37500000000006,1105.4083333333331,1395.08469625,4709.2151300383339,6104.2998262883339,null,null,-2035.2465862191666,-2412.0468591358335,null,null,790.69827699000007,352.62000000000012,706.29999999999984,237.55740835999995,260.89999999999998,583.30000000000007,944.86087599999996,2931.3756853499999,3876.2365613500024,null,null,1127.8692652200002,714.40999999999985,1168.1000000000004,615.18905816999995,419.09999999999997,1382.8,1441.3890799999997,5427.4683233900032,6868.8574033900004,null,null,-2496.0926380400006,-2992.6208420399998]
[null,null,"Mayo ",6.2329852044837493,0.13949780789159083,3.507899679593423,4.3561512685495423,4.6758180851871396,7.9008912205296742,3.1862745098039174,null,null,4.3734862892156796,1.4132022902997849,2.8982904437024057,5.0976007530226477,2.6241643518074289,9.3246804957997718,6.6213128375571255,null,null,80.753933756035138,92.199223802599121,69.216847692483796,79.086058141546246,96.820950072670016,93.920292821168758,97.653095088134535,null,null,-8.3093786890954302,0,-1.2452251202102969,0,5.4422540973620146,2.0860513570878085,0,null,null,4042.17194599,2628.3,5675.55,2146.6131234051436,1383.8,2655.5062605782509,2751.2950950999998,null,null,65.533011765943556,94.034836144754223,106.015568928267,78.056593525436483,99.45435832261596,52.949797564043102,253.77729633410294,null,null,2.1340027098904608,2.9563781094527357,1.9535710092330609,5.6574036697247738,4.9327324137393616,-2.6421387147794491,-0.10299287410925952,null,null,1.4899999999999998,3.1,3.58,4.33,3.78,2.2400000000000002,3.08,null,null,13.100464752012339,7.7097472636815914,9.5182110263115671,13.821752293577987,13.807239206146415,3.7248151836447789,2.1744418052256571,null,null,9.57,7.86,7.89,9.83,9.99,7.58,5.43,null,null,9,"n.a.",4.5,4.5,null,4,"n.a.",null,null,2.210087298394714,-4.5183681188196934,-1.9025357703262857,2.7376112088785653,-6.4562158384815156,15.978112131633093,4.4699929453112075,null,null,771.85909534500024,337.34583333333325,645.49166666666656,215.89572839416664,244.06666666666669,499.42500000000001,1028.7927299166668,2714.0839904058334,3742.8767203225011,null,null,1045.4012230116668,644.10500000000002,1040.5416666666667,551.62420898333312,387.18333333333339,1129.5250000000001,1410.2732475833334,4798.3804319950004,6208.6536795783331,null,null,-2084.2964415891661,-2465.7769592558334,null,null,846.0732789599997,370.42999999999984,747.89999999999986,272.49314445999994,272.29999999999995,582.5,992.26369599999998,3091.6964234199986,4083.9601194199986,null,null,1109.1583269599996,681.54000000000042,1130.8999999999996,618.70470807999982,449.80000000000007,1239.0999999999999,1541.4142740000002,5229.2030350399982,6770.6173090399971,null,null,-2137.5066116200005,-2686.6571896200003]
[null,null,"Junio",6.311904234143169,0.55776892430277691,4.0674219397623776,4.2380952380952408,4.6325738140417316,5.4383468415516862,2.7642276422764342,null,null,4.4265291906744011,0.38907517921142115,2.5015112667613275,5.5088079375072843,3.5956404832092086,8.743695826954907,6.5611912517449964,null,null,81.63768798667094,91.68953922230979,68.892260734610574,78.684006796233334,97.085763635742524,94.061771584070982,97.480577813859327,null,null,-7.3406377172459569,0,-1.4884806788092335,-5.640690462819195E-14,5.2552953769316444,2.2372728487439848,0,null,null,4064.9799089600001,2681.5,5847.6420291099994,2207.9432334304947,1411.5,2511.3163564168599,2529.4983001400001,null,null,65.890207088387427,96.465127757386341,113.96696512368504,74.274145151234123,99.383636437644782,50.36689169943768,232.88693090531427,null,null,1.8230279765387911,2.4087955625990616,1.3765864797408409,5.5947921425308333,5.1621706091279851,-0.51057974416147744,0.33647151898733041,null,null,1.2749999999999999,2.98,3.48,4.18,3.8,2.2999999999999998,3.11,null,null,13.119975468439309,6.8937797147385238,8.9293824013594474,14.056190041114661,17.68626687929866,5.9576552047881766,2.0296677215189756,null,null,9.75,7.49,7.84,10.16,10.75,8.1199999999999992,4.8499999999999996,null,null,9,"n.a.",4.5,4.5,null,4,"n.a.",null,null,3.6693041549463734,-3.3973026866849998,-3.144465354728565E-2,2.2532038116427344,-4.7213197540997172,15.583381978274446,8.3730793533143277,null,null,775.37384546999999,342.17833333333328,656.01666666666665,219.98337833333335,253.52499999999998,508.30833333333339,1017.5262684166669,2755.3855571366671,3772.911825553334,null,null,1053.9856390450002,655.83416666666665,1055.1166666666666,556.93771797833324,392.29166666666669,1154.0083333333332,1432.2438571666669,4868.1741903566681,6300.4180475233325,null,null,-2112.7886332199996,-2527.5062219699998,null,null,789.53231408000011,387.99000000000024,748.2000000000005,265.93702912999993,331.59999999999997,610.59999999999991,967.39383899999996,3133.8593432099988,4101.2531822099991,null,null,1117.5554066200002,771.75999999999931,1170.7000000000003,600.90852878999976,462.99999999999989,1316.2999999999995,1859.5522649999994,5440.2239354099984,7299.7762004100005,null,null,-2306.3645921999978,-3198.5230181999978]
[null,null,"Julio",5.6820735037581009,0.99009900990098487,4.1199999999999948,4.1607565011820382,6.1978150297846364,5.6727946856171743,3.3980582524271816,null,null,4.4402664296110759,1.1584151317148079,2.213051763469049,5.913512048780051,4.569667326633577,8.3185426095381967,6.3887746710526354,null,null,79.673003579809119,91.690725890038664,68.608414972257847,78.20047243917432,96.646694301849408,93.936689244893813,96.433062693330882,null,null,-10.134151821142829,0,-2.1097229287426105,5.6406904628191988E-14,5.166503424941248,2.2687667280898451,0,null,null,4097.8259955900003,2609.1999999999998,5732.0343297200006,2129.0175306460383,1446.6,2470,2375.3658111100003,null,null,64.334413433338696,92.024723797095575,111.75178746240313,74.415013576593381,97.610695276453441,48.053191739798216,217.24243320568584,null,null,2.1933015051767444,1.9208823529411818,1.2677679600461063,5.3467771221062144,2.9405174480906093,-0.49472968626647862,-0.39464788732394074,null,null,1.4550000000000001,2.93,3.38,4.13,3.22,2.31,2.99,null,null,13.548112783529715,6.4163725490196128,8.8071456012293563,14.131275533363588,11.645155720035909,5.4292169819595975,2.0618779342723035,null,null,9.5500000000000007,7.47,7.7399999999999993,10.220000000000001,10.84,6.84,5.53,null,null,9,"n.a.",4.5,4.5,null,4,"n.a.",null,null,1.8357025025104168,-2.4291612075385216,-0.5508553785808723,1.0552534649739265,-3.9996526908895658,15.699043023716651,8.4325793101126081,null,null,779.07588752166669,346.33666666666676,662.11666666666667,219.78872625416662,259.57500000000005,517.86666666666667,993.32786308333345,2784.7596137758337,3778.0874768591675,null,null,1074.6699955983333,659.5374999999998,1067.3,559.44792197416655,402.05833333333339,1176.1166666666666,1448.7628929166667,4939.1304175724999,6387.8933104891648,null,null,-2154.3708037966662,-2609.8058336299996,null,null,784.26194329000009,422.98,685.50000000000023,208.79585126999996,296.89999999999986,586.50000000000023,833.52720699999998,2984.9377945600063,3818.4650015600018,null,null,1220.7653651299997,708.61000000000058,1240.3999999999999,557.66770557000018,477.60000000000008,1374.5000000000005,1518.909208,5579.5430706999978,7098.4522786999951,null,null,-2594.6052761400006,-3279.9872771400005]
[null,null,"Agosto",5.2062429651685243,1.0199999999999991,4.0955631399317429,4.534718941898924,5.34067077813308,5.0090377133053385,3.6290322580645138,null,null,4.4006882454117662,2.6057975637167163,2.118714625803483,6.0905730894081493,5.3846030191450485,8.1434719568398695,6.2707450339580255,null,null,77.802346172249457,91.972155278182456,68.729467417742597,77.954583334205381,97.757389519535522,94.107730392344791,96.040162797978425,null,null,-12.944262280549134,0,-3.0229108944355678,-1.5582399130525351E-6,5.0502461033333352,2.4043145538472621,0,null,null,4048.3305481699999,2567.6,5681.8764391300001,2113.5463745553056,1398.3,2407,2505.8207950399997,null,null,62.832929381481748,96.141676795317366,113.09414412342311,74.802038080503522,100.04895865534836,46.111874928953505,222.75453230764649,null,null,2.8931334840085423,1.7422292615323705,1.2723278688524569,4.7307546317216351,2.905504733630317,3.900834403082154E-2,-0.59735408560311076,null,null,1.21,2.78,3.31,4,3.2,2.33,3.01,null,null,13.690971787734521,6.2462878637893491,8.8134754098360641,13.493393583370981,12.738320671934371,5.4575895670440095,1.6221011673151768,null,null,9.39,7.33,7.6300000000000008,10.19,10.93,7.12,5.31,null,null,7.5,"n.a.",4.5,4.5,null,4,"n.a.",null,null,1.7237543757345763,-2.3351739595104948,-0.24439180601587562,1.7200458566081656,-3.2249351086832245,17.855962361618573,10.245898363318439,null,null,779.90521572416685,352.96499999999997,667.94166666666661,222.21519018249998,263.96666666666664,527.91666666666674,992.05397658333322,2814.9104059066672,3806.9643824900013,null,null,1086.6425654224997,669.19083333333322,1088.4083333333333,564.76781490416658,411.56666666666678,1197.3333333333333,1490.2968657499998,5017.9095469933336,6508.2064127433332,null,null,-2202.999141086666,-2701.2420302533333,null,null,753.57751085000018,381.07000000000016,625.89999999999918,214.07577678999996,293.69999999999993,594.79999999999995,986.37169399999993,2863.123287639999,3849.4949816400003,null,null,1126.7640232999993,676.29,1189.700000000001,579.00368704999983,478.40000000000009,1306.0000000000011,1803.7030569999993,5356.1577103500022,7159.8607673500082,null,null,-2493.0344227100013,-3310.3657857100043]
[null,null,"Setiembre",5.0007323677593041,1.3800000000000103,3.7566363934785136,5.0495516753185408,5.4260702632976869,5.7012577654007366,4.2173560421735603,null,null,4.3363247405582772,3.2321907064486135,2.2921176019407614,5.9327425864039816,5.8201448268343352,8.1217082109725123,6.3908629441624383,null,null,77.637624533741089,91.75261264910597,69.14235815970072,77.544408336681258,97.803322364874106,93.674767354162142,96.096032840281822,null,null,-13.243365033521973,0,-2.852513625382052,-5.2923745914825832E-5,5.0596792793452536,2.5760000443755264,0,null,null,4571.2699859100003,2529.6999999999998,5659.2212569399999,2069.7490058293315,1417.8,2274.3000000000002,2309.5924205599999,null,null,70.60057223441639,93.770943425321306,111.84151851842985,72.5615084756638,100.65945022285901,46.982905147778261,206.52619924660692,null,null,2.3802382840459178,1.173801538765032,1.603139485182882,3.9128661275831149,3.2299899765509292,-0.45529994209611691,-1.254451361867704,null,null,1.0549999999999999,2.57,3.23,3.91,3.49,2.29,2.91,null,null,13.589683908261923,5.6125468534227556,9.1689205984316544,12.93717879604673,13.035792673425755,5.0318627678054462,0.71259143968871597,null,null,9.3699999999999992,7.07,7.51,10.130000000000001,10.49,7.03,4.96,null,null,7.5,"n.a.",4.5,4.5,null,4,"n.a.",null,null,1.0088766775123492,-2.2705091896399354,-0.95469893754525081,1.6382402935991358,-2.030285639580276,17.498784569528336,12.381713473520906,null,null,781.19487687083347,358.06083333333328,672.77499999999998,224.2646064208333,266.94166666666666,536.65833333333342,968.61446008333326,2839.8953166250008,3808.5097767083348,null,null,1104.1697302383332,679.36500000000001,1106.2083333333333,572.90629091249991,419.76666666666665,1222.3166666666668,1515.5205973333334,5104.7326878174999,6620.2532851508331,null,null,-2264.8373711924996,-2811.7435084425001,null,null,762.84757488000014,366.06999999999971,607.90000000000032,196.52001306999978,293.60000000000002,564.29999999999995,1193.5782609999999,2791.2375879499996,3984.8158489499983,null,null,1150.482183260001,715.65000000000055,1132.200000000001,579.21979822000048,443.69999999999993,1285.7,1821.2696860000001,5306.9519814800005,7128.2216674800002,null,null,-2515.7143935300046,-3143.4058185300019]
[null,null,"Octubre",5.2529068483650256,2.7800000000000025,4.5057282245244652,5.7909604519773925,7.2600680220693814,6.1706155349291789,4.1262135922330092,null,null,4.2694747095072207,3.547284897618054,2.6604533629194984,6.0510860550403471,5.9112793532230929,8.0117100330746442,6.7666515174468547,null,null,77.367449176204303,91.262119354083168,68.680202986231421,76.915350037957666,96.319808680283259,93.676568035153622,96.066172179430197,null,null,-12.542739088929109,0,-3.4919225761222563,-5.2923745877221248E-5,5.1421873007909307,3.0300679597394597,0,null,null,4617.2830663300001,2781.7,5650.5295661,2113.1830398339143,1407.8,2418.1999999999998,2317.7089598300004,null,null,72.460140169250934,99.754924989259578,110.55481808540134,73.696931023307926,102.55164301180709,51.822104767210561,197.36368823027291,null,null,1.8974232794514396,-0.4475578906402049,0.86528441152312696,2.986114819759687,0.42709544757761403,-0.65989589624135037,-1.2256410256410251,null,null,1,2.3199999999999998,3.18,3.75,2.96,2.48,2.85,null,null,12.728478061602921,3.9988324576765883,8.328990116957911,12.107877169559423,10.994241264316399,5.7825646334799856,0.45501165501165514,null,null,9.49,6.89,7.41,10.039999999999999,10.24,6.92,4.5999999999999996,null,null,6.5,"n.a.",4.5,4.5,null,4.75,"n.a.",null,null,2.0922076279112911,-1.8132764073085395,0.35824314205923358,1.8195686803927247,-0.44640047530903892,19.511237668723513,12.884656380812597,null,null,779.99908956000002,361.86999999999995,675.59166666666658,223.83090798333333,271.08333333333331,546.9666666666667,976.71297933333335,2859.3416642100001,3836.0546435433339,null,null,1114.7359447783333,685.38166666666666,1112.4083333333333,579.65933369083325,427.92499999999995,1238.7166666666669,1532.2275756666666,5158.8269451358337,6691.0545208024996,null,null,-2299.4852809258336,-2854.9998772591666,null,null,777.68852878999951,389.25999999999976,651.99999999999955,176.67588916000022,273.69999999999993,602.90000000000009,1480.6424029999998,2872.2244179499976,4352.8668209499956,null,null,1193.4255528899994,706.01000000000022,1198.9999999999998,603.88041049999993,499.5,1312.0000000000002,1852.3239929999991,5513.8159633899922,7366.1399563899904,null,null,-2641.5915454400019,-3013.2731354400021]
[null,null,"Noviembre",6.1128648439259585,1.8200000000001011,5.2580748370130994,6.4349459840300547,8.7899199818826812,5.3742976255211206,4.284559417946646,null,null,4.1562520000380871,2.4064502660119826,3.125999146805361,7.1416439825060056,5.7511731184565278,7.5088065455577908,7.3597426100945178,null,null,77.25166476342666,90.88972759039514,67.732118246210575,76.302511627706636,94.98190372434874,93.493886524357677,95.883078391972148,null,null,-9.7774295246839316,0,-3.6275387640000405,-5.292374585841896E-5,4.9021407950735529,3.1102897783786885,0,null,null,4603.3299308200003,2908.8,5594.9317196000002,2270.1680266072053,1420.2,2656.1,2425.1758079899996,null,null,69.305309974725546,107.12770470937633,108.18881507629557,75.951719553374488,101.3525460505694,53.542451708130592,204.47800854691752,null,null,0.8360297897407899,0.26517383618139706,0.13483541591147757,2.1844836716681435,8.0900831013412278E-2,0.74562999913992911,-1.5290465116279077,null,null,1,2.09,3.11,3.69,3.4,2.99,2.69,null,null,12.125895554984664,5.0186603810645183,7.5546937138077643,11.83357016769639,7.7178671532181182,7.3411662509675706,1.0120775193798439,null,null,9.4499999999999993,6.93,7.2900000000000009,9.98,9.9499999999999993,7.03,5.34,null,null,6.5,"n.a.",4.5,4.5,null,5,"n.a.",null,null,4.3916362669841558,-0.87463135237064726,1.5030495807406563,2.2584513919664317,1.1142770907059285,19.991569162932365,14.017632302613414,null,null,783.31214392583354,368.31666666666666,684.33333333333337,227.43964567916666,278.04166666666657,559.04166666666663,998.8660157500002,2900.4851229383335,3899.3511386883342,null,null,1118.1438110149998,689.24750000000006,1137.2,588.36439773500001,436.38333333333338,1259.2583333333334,1579.4352070833331,5228.5973754166671,6808.0325825,null,null,-2328.1122524783332,-2908.6814438116667,null,null,791.52496359000088,360.04000000000042,642.70000000000027,206.39183412000011,292.89999999999992,592.29999999999973,1253.5732519999999,2885.8567977100029,4139.4300497100048,null,null,1146.0257207499999,732.39999999999964,1270.3000000000002,654.43728729000031,486.7999999999999,1367.2000000000003,1796.3982360000009,5657.1630080400137,7453.5612440400146,null,null,-2771.3062103299962,-3314.1311943299952]
[null,null,"Diciembre ",5.8243157684466969,2.1299999999999955,5.3899999999999988,6.4849624060150299,9.2303838460606329,6.2383050642844289,4.9273021001615538,null,null,4.0520317654852889,2.2402793777510697,3.5741464371526881,7.0001558981176286,5.5442976925984677,6.6810737876151745,8.1205567237408633,null,null,75.864239745978367,91.143977997269758,67.524558984740139,76.433632976006351,94.797579100253742,93.037573121297299,95.382389255187888,null,null,-10.933325383047105,0,-4.2593998742885582,-5.292374585841896E-5,4.9010766278558293,3.3810388063009968,0,null,null,4627.2341165400003,2880.7,5953.8343435200004,2719.3488686918827,1631.6,3342.7,2546.6231461599996,null,null,68.896302701952195,106.78015231749293,106.21055299615728,80.728690351560502,104.0477837213144,59.637861692518257,215.98626907143822,null,null,2.0559398143074943,-0.32311759522177169,-4.7442831388176232E-2,2.1177052074139526,-0.56377088855290269,-0.12077100082384751,-2.1036489607390325,null,null,1,1.8,3.08,3.72,3.29,2.06,2.72,null,null,12.422177404705208,4.3669832566337066,7.4580130942214637,11.715304501323928,5.7938477778347552,6.948242379477847,0.70782140107774927,null,null,9.5399999999999991,6.59,7.12,9.8000000000000007,9.77,7.36,5.67,null,null,6.5,"n.a.",4.5,4.5,null,5,"n.a.",null,null,4.8732915685316902,-0.57798674325102439,2.3312663598876737,2.6918617399883882,5.6515140688908838,20.403388847884152,14.799033755551871,null,null,787.34133073333339,374.93666666666667,705.46666666666658,234.90092942249998,286.2833333333333,567.89166666666677,1017.9884786666667,2956.8205934891662,3974.8090721558328,null,null,1130.7968822041666,701.34749999999997,1153.0250000000003,593.9732953058334,441.18333333333334,1267.491666666667,1613.8191036666667,5287.8176775100001,6901.6367811766659,null,null,-2330.9970840208334,-2926.8277090208335,null,null,739.52376270999957,378.89999999999964,893.29999999999973,288.98799155999995,299.2000000000001,545.49999999999955,930.04278399999987,3145.4117542699896,4075.4545382699944,null,null,1207.9568239500004,757.22999999999956,1277.9999999999995,642.53219153000009,465.19999999999993,1324,1664.6781430000001,5674.9190154799944,7339.5971584799845,null,null,-2529.5072612099975,-3264.1426202099974]
[null,2011,"Enero",4.8352713305312252,2.3197929111907589,4.9006346894183688,6.355140186915885,8.0194207368431236,6.1657923590217187,4.8076923076923102,null,null,4.0059444516523213,3.355457507114127,3.8423175683638107,6.7846620705788103,5.5398795057769377,5.7097309301236878,6.6078636567498972,null,null,75.826143003296266,91.007815160268038,67.125298719870457,76.460279946905473,96.090275525546915,92.670941081593497,95.177290562906862,null,null,-10.228630679775661,0,-4.982330580214982,-5.2923745877221248E-5,4.9780057250899921,3.7011908058709526,0,null,null,4633.1754411700003,2768.1,5910.0665015100003,2802.6250040996561,1510.4,2705.3,2922.56265231,null,null,67.202666594712284,103.97596018405484,102.67929698738673,80.71669010293742,102.67921119674396,53.838460701807634,247.13696553377241,null,null,2.7802939018113206,-0.60574097499270052,0.4283723467566013,2.2235500878734658,0.10963117536113445,-9.964825455638314E-2,-2.0491743119266075,null,null,1.0349999999999999,1.7,3.03,3.69,3.82,2.1,2.66,null,null,13.301562038581428,4.1733930135253496,7.987907161277529,11.861072056239019,8.0398766893009874,6.5974241658670012,0.12623853211008976,null,null,9.59,6.59,7.04,9.74,9.2899999999999991,6.61,4.9400000000000004,null,null,6.5,"n.a.",4.5,4.5,null,5,"n.a.",null,null,4.7256729771370409,-0.49399788482745732,2.2014088185220215,4.4391401626546978,6.4565561600332888,19.788831083214141,15.243579209077751,null,null,785.92406170249944,381.49499999999989,713.30000000000007,245.53436185249998,293.07410225333331,576.44999999999993,1035.3383879166665,2995.7775258083325,4031.1159137249983,null,null,1143.0881957225001,705.57,1175.325,605.0369592466667,454.17499999999995,1279.8916666666669,1659.4215199166665,5363.086821635834,7022.5083415524996,null,null,-2367.309295827501,-2991.3924278275008,null,null,707.40454406999424,408.65,765.2,344.77293119000001,312.68922703999999,495.5,865.62108499999999,3034.2167022999943,3899.837787299994,null,null,1202.1693619300031,689.06,1191.9000000000001,640.90426608000007,482.7,1156.2,1796.5063399999995,5362.9336280100033,7159.4399680100032,null,null,-2328.716925710009,-3259.6021807100087]
[null,null,"Febrero",4.5743345812437415,2.3764542109973159,5.2315342380607035,6.3573085846867698,7.2231863180537674,7.2920532187053659,4.9560351718625135,null,null,3.892797797238349,2.9184562667137133,3.9211766349292376,6.0774427885057696,5.8520101796998212,4.8206395789567615,7.2323772725021023,null,null,75.163318982631964,91.287836010385433,65.717825518729668,76.300947225039621,96.339737743804591,92.46655539940646,95.282415109250792,null,null,-9.3760659502612889,0,-4.2089590281074303,-6.7190024562496533E-10,4.8738887719424291,3.9666224580017708,0,null,null,4427.5760043199998,3376.2,6042.4738115600003,2912.4082053079055,1492.7,2635,2508.7846144300001,null,null,64.20024938705555,128.11775206129857,105.35357857464851,80.072655322949359,99.43368460976005,52.814734426019925,216.14955556797489,null,null,2.7976897332368447,-0.6314481351981357,9.3570584760782616E-2,2.2120636998254857,1.3398686309268018,-0.84074560197539561,-2.263838537699927,null,null,1.03,1.73,2.93,3.68,3.45,2.11,2.58,null,null,13.555587496017443,4.0864335664335654,7.7338659184878935,11.868193717277492,8.5875129370282135,5.9444726705842355,0.11811119573495481,null,null,9.61,6.56,6.9099999999999993,9.7100000000000009,10.31,7.62,5.08,null,null,6.5,"n.a.",4.5,4.5,null,5,"n.a.",null,null,5.9049630909127737,0.77093798978258299,4.3274836895145441,4.7077548899875143,5.4502219293966148,18.271011012419436,15.544414564792653,null,null,791.72224830416587,388.69666666666654,736.54166666666652,257.86446320833329,300.98335036177224,582.08333333333337,1079.6081506666667,3057.8917285409375,4137.499879207604,null,null,1161.9080174333337,718.24416666666673,1191.2833333333335,613.14115989916661,465.73333333333335,1293.6333333333334,1709.5166319999998,5443.9433439991672,7153.4599759991661,null,null,-2386.0516154582292,-3015.960096791563,null,null,830.6244283999954,453.98,901.10000000000014,404.08569721000003,335.51097730126668,605.90000000000009,1311.1814670000001,3531.2011029112623,4842.382569911264,null,null,1179.4194419800031,758.84000000000015,1181.4000000000001,626.93808236999985,498.6,1189.8000000000002,1858.0426620000007,5434.997524350003,7293.0401863500028,null,null,-1903.7964214387407,-2450.6576164387416]
[null,null,"Marzo",4.5830833926969508,2.7158291208246554,4.9979516591560786,6.605080831408781,6.7409312796723908,7.6067731897949953,5.4936305732484128,null,null,3.8380471786978352,3.4025718184850646,3.9740657366101715,6.8661764535941554,6.4411283260129695,4.1518041784045936,7.7873492493231566,null,null,75.389187042723634,91.58203105950696,64.885480366456946,76.510856059801895,96.941694704853631,92.633741705429642,95.340171179862224,null,null,-7.045339615614048,0,-3.9842026796603918,-1.9092902528327135E-5,4.7703961665038932,4.0380413970185058,0,null,null,4641.6707590899996,3247.3,6191.0129805900006,2991.0261667820446,1542.2,2594.9,2176.8393456399999,null,null,65.12516901121181,127.33196536984619,100.74020615299241,81.132322342518449,108.02221662533213,52.111726470288403,185.64508310610927,null,null,2.7890902580400616,-0.96949917977419175,0.28767069840031667,1.8994584055459232,1.3439106676747423,-0.74044891987390116,-2.6291924528301931,null,null,0.98499999999999999,1.72,2.9,3.71,3.29,2.69,2.72,null,null,13.421784989848486,3.5964961883624484,7.9735349200156111,11.561286828422871,9.0980694499956041,6.4245275694788955,-0.19934591194969048,null,null,9.66,6.41,6.8500000000000005,9.64,9.36,7.72,5.2833333333333332,null,null,6.5,"n.a.",4.75,4.5,null,6,"n.a.",null,null,10.486937129435315,0.56099838477299269,5.1611650946535192,4.8176151042000237,6.0429494176976739,18.222418199924185,16.820923346148664,null,null,795.51277396666501,400.33166666666665,752.31666666666661,268.5351828808333,308.41153072214723,595.81666666666672,1077.5260688333333,3120.9244875696445,4198.4505564029787,null,null,1188.2340622666682,738.24916666666661,1219.5000000000002,624.34861781749987,478.45833333333343,1315.325,1734.1434914999998,5564.1151800841681,7298.2586715841671,null,null,-2443.1906925145227,-3099.8081151811894,null,null,972.39616098999159,531.9899999999999,1051.7999999999997,406.12862825000002,437.93816432450001,785.69999999999993,1171.2562620000001,4185.9529535644906,5357.2092155644896,null,null,1477.2172752100121,947.19,1481.3999999999999,772.79769016,577.1,1530.3000000000002,1855.5349539999997,6786.0049653700098,8641.5399193700123,null,null,-2600.052011805521,-3284.3307038055209]
[null,null,"Abril",4.6819017627088382,5.9577003276735185,5.7611481291645363,7.261029411764711,7.11320404300257,8.1603641333098142,6.2698412698412778,null,null,3.9609772057824664,4.9833135473881764,4.1429166382169686,6.3799463979404276,7.1573103172735868,3.7051371141040943,8.1914268937169599,null,null,75.662634498212824,89.511388099321053,64.150754695793424,76.145747938573606,97.075372519071749,92.600186540039743,94.950853196151755,null,null,-3.2837961619829779,0,-4.8731705600127846,-1.9092902490722538E-5,4.6257057323033335,3.8814879082742073,0,null,null,4810.6397858399996,3383.8,6393.1173355999999,3105.2064007493946,1575.8,2568.4,2392.6901641499999,null,null,66.000735033252809,128.30045313514847,102.56136852308271,81.541562640754194,105.71255556016305,52.017905072282922,198.6044075068861,null,null,2.2144212091089748,-4.0371773966825986,-0.46439371910439625,1.0991602399314429,-0.232005204445344,-0.7769612649177553,-3.7356235997012774,null,null,0.96,1.68,2.85,3.56,3.1,2.89,2.2999999999999998,null,null,12.41675783072845,0.28530222097272917,7.2605602403799505,10.841748071979429,6.8593952480289664,5.6301917208642047,-1.1541448842419795,null,null,9.49,6.26,6.78,9.3800000000000008,9.2100000000000009,7.44,5.043333333333333,null,null,6.5,"n.a.",4.75,4.5,null,6.25,"n.a.",null,null,12.248126368470214,1.6407084433277763,4.5230361161579191,4.1763012771780517,6.6318456087626876,17.41064347457959,17.205784273167257,null,null,806.45282300499809,406.73499999999996,771.4666666666667,281.9135747366667,316.1171560365222,611.62499999999989,1088.5678403333334,3194.3102204448533,4282.8780607781873,null,null,1198.1343029508348,744.79666666666662,1238.575,630.63674714083334,486.35000000000008,1330.1916666666668,1763.0665634999998,5628.6843834250021,7391.7509469250008,null,null,-2434.374162980148,-3108.8728861468139,null,null,921.97886544999483,429.46000000000004,936.10000000000036,398.09811063000006,353.36750377250002,773,1077.362134,3812.0044798524978,4889.3666138524986,null,null,1246.6721534300009,792.98,1397.0000000000005,690.64661004999971,513.79999999999995,1561.2000000000003,1788.465944,6202.2987634800047,7990.7647074800043,null,null,-2390.2942836275051,-3101.3980936275057]
[null,null,"Mayo ",4.8451392400321609,6.6965174129353269,6.3930220625962066,7.7064220183486283,8.2891165974087677,8.0300152305078747,6.4133016627078305,null,null,3.9959345900863226,5.0858059156028856,4.4369814403442778,6.2006564574423839,7.6372149344795357,3.406369532638339,8.4944717743899467,null,null,76.011724910313646,89.496348926492431,64.52907625444918,76.047795374443339,96.909278332961691,92.968483829544198,95.042618328048576,null,null,-4.7122869461154782,0,-4.2302223726484494,0,4.6532049039534495,3.2505681477565704,0,null,null,4650.3994588400001,3319.9,6421.0835425200003,3056.8442059287977,1556.6,2599.6999999999998,2274.29516298,null,null,65.043499402122407,130.87955682531825,110.44715444818374,81.32993660420307,108.65418511495182,51.784665227875401,182.29563616560074,null,null,2.2937265239912077,-4.6735521775622519,-1.0461419753086449,0.55110732538330143,-1.6566902967870984,-0.59244204413213253,-3.9217857142857064,null,null,0.96499999999999997,1.71,2.81,3.55,3.14,2.67,2.2400000000000002,null,null,12.184504557126766,-0.33414156486058344,6.5577401620370335,10.309114139693349,6.2969795033057006,5.7854150590984244,-1.2122247023809443,null,null,9.51,6.34,6.7299999999999995,9.35,9.5500000000000007,7.27,5.123333333333334,null,null,6.5,"n.a.",4.75,4.5,null,6.75,"n.a.",null,null,9.9189117859887599,2.1655979074988396,6.9443552921351515,4.7168295188808385,7.5702476260840923,16.658556288729322,10.374920475472749,null,null,813.77440387416402,416.16666666666669,783.30000000000007,293.34380198583335,324.94010787735556,624.18333333333328,1122.2147805,3255.708313737352,4377.9230942373533,null,null,1217.2658349533347,765.42333333333329,1272.3583333333333,649.71770731666663,498.54166666666669,1349.5416666666667,1818.8746549166663,5752.8485422700005,7571.7231971866668,null,null,-2497.1402285326481,-3193.8001029493148,null,null,933.93224938999219,483.61000000000013,889.89999999999986,409.65587144999995,378.17542208999998,733.2,1396.0269780000001,3828.4735429299926,5224.5005209299925,null,null,1338.7367109899967,929.06,1536.3000000000002,847.67623018999984,596.1,1471.2999999999997,2211.1113709999981,6719.1729411799934,8930.2843121799888,null,null,-2890.6993982500026,-3705.7837912499999]
[null,null,"Junio",5.1759635575723602,6.2698098256735477,6.4222993669593693,7.7204202832343558,9.014750131400449,9.318913566482804,6.4873417721518916,null,null,3.9177080024637121,5.29249093024373,4.8384291731896987,6.5827284244300008,7.5846840078382574,3.2233070348993276,8.7093643862202903,null,null,75.877480106422595,89.350505665029203,65.083048189907615,75.644186353751337,96.82295487318865,92.267133395312271,94.799759743789508,null,null,-5.6044384616352243,0,-2.9170512827255362,0,4.9834685580174298,3.5480805622037268,0,null,null,4842.7701523799997,3056.3,6382.5368342399997,3049.1118222188197,1603.7,2606.5,2348.4792351200003,null,null,67.626049572486764,128.35076635440234,108.80979077670692,78.820286530101384,109.65738952334358,52.163040887208268,193.28485455758843,null,null,1.9719680889012348,-4.187275608164799,-1.0921577281013206,0.3616581849024571,-0.71255866490376374,-1.0692692859336947,-3.9791976225854317,null,null,0.94499999999999995,1.82,2.74,3.52,3.33,2.57,2.25,null,null,12.002777071072872,-0.60206170192936315,6.5472186510601498,10.174096692111956,5.7300502830282962,5.2882765158486515,-1.4718573551262937,null,null,9.5299999999999994,5.63,6.64,9.3000000000000007,9.4700000000000006,7.43,4.92,null,null,5,"n.a.",4.75,4.5,null,6.75,"n.a.",null,null,9.0644657584439514,2.267862470689086,7.9500860240427906,5.9140927376796215,6.5484375648153348,15.623846410260356,14.375454097222097,null,null,820.99454245416348,422.64583333333331,793.9,303.72113218166669,328.50176370485553,639.84166666666658,1154.7923344999999,3309.6049383406848,4464.397272840687,null,null,1232.3014649358338,773.30583333333334,1296.5416666666667,670.21215831833331,506.20000000000005,1361.5250000000001,1852.3270678333331,5840.0861232541674,7692.4131910874994,null,null,-2530.4811849134821,-3228.0159182468155,null,null,876.17397703999359,465.74000000000024,875.39999999999964,390.46499148000021,374.33986992999996,798.5,1358.3244870000001,3780.618838449991,5138.9433254499927,null,null,1297.9829664099902,866.35000000000036,1460.8999999999999,846.84194080999987,554.9000000000002,1460.1000000000004,2260.9812200000015,6487.0749072199978,8748.0561272199993,null,null,-2706.4560687700014,-3609.112801770003]
[null,null,"Julio",5.1938669485476003,6.526044761338869,7.0396744659206529,7.7621425329096656,8.456406866099897,9.8712537645098113,5.3990610328638553,null,null,3.8307698113233766,5.3532038369439698,5.1748482530521418,6.9037628528963761,7.0959325082132718,3.0611648573632158,8.8893183245567311,null,null,75.567882018392368,89.196892766931612,64.357705825978499,75.110636905350162,97.045716059573607,91.604973782012934,94.813315860821319,null,null,-3.7199375118160414,0,-3.1080200228453645,-0.12008404295293887,5.0907423974236732,3.3921981074132774,0,null,null,4806.5703396600002,2877.2,6333.8110733200001,3105.83635293826,1771.4,3239.2,2115.7969825499999,null,null,65.153271663029017,101.30329584280456,107.67193611978567,79.630913681096331,119.24490585722826,66.494955213824852,169.05792700871592,null,null,1.9546130417077634,-4.4271283815190028,-1.6813153392891103,0.21144481887110667,-0.2471461881621532,-0.84758636367779561,-2.8833853006681567,null,null,0.92999999999999994,1.81,2.71,3.56,3.2063541321037601,2.62,2.36,null,null,11.841120973024877,-0.66279074091288437,5.9139992396882706,9.7231339511373243,6.6667358360936015,6.3517489756218994,-0.12244988864143105,null,null,9.51,5.82,6.5699999999999994,9.16,9.3012276764760706,7.51,5.27,null,null,5,"n.a.",5,4.5,null,6.75,"n.a.",null,null,11.188723328922091,1.7984255621270595,8.5819012190139645,7.0671663460430523,7.264639259770922,16.368136076046035,15.733142299677215,null,null,826.35550932832984,426.70833333333331,805.43333333333339,309.26457862833337,333.13081697402225,652.01666666666665,1205.3234183333334,3352.9092382640169,4558.2326565973526,null,null,1249.2608611908347,790.30583333333334,1303.875,688.07998835500018,515.80833333333328,1370.1750000000002,1925.8646934999997,5917.5050162125017,7843.3697097125014,null,null,-2564.5957779484829,-3285.1370531151497,null,null,848.59354577999511,471.72999999999956,823.90000000000077,275.3172086300001,352.44863923000003,732.6,1439.9002130000001,3504.5893936399916,4944.4896066399961,null,null,1424.2781201900093,912.61000000000058,1328.3999999999994,772.08166600999994,592.89999999999986,1478.3000000000004,2401.360716000001,6508.5697862000088,8909.9305022000117,null,null,-3003.9803925600136,-3965.4408955600156]
[null,null,"Agosto",5.2518141392544386,6.824719769864096,7.6258261311642093,7.6818798011748752,9.6949778343574202,10.175145291165839,5.2918287937743402,null,null,3.8168311938094801,4.4178104070582158,5.2488664846808435,7.2067479966528669,6.4148688475461668,2.8395788283909669,9.1057613761952751,null,null,75.700711979621801,89.343194090428483,64.734233963565501,74.938294662436078,97.092415882963692,91.446059646378899,94.653154394207391,null,null,-1.3129907804244254,0,-2.3143750000000018,-0.24655420091285735,4.989431298042116,3.1683431319135575,0,null,null,4808.17325514,2760.9,6398.5615988,2709.512438380465,1584.1,3032.9759568159898,1914.01566071,null,null,65.038266127030411,101.89319317006704,109.5841152908074,77.056359900959066,107.80874250008634,62.302786062016544,152.47030115650782,null,null,1.8984811628739142,-4.7130662085616075,-2.2074870099196975,0.18398657154846867,-1.2556468776968459,-0.97585103094213699,-3.0694013303769596,null,null,0.91499999999999992,1.79,2.69,3.53,3.11,2.9,2.06,null,null,11.960065456718526,-1.0060590584083899,5.4115021256495037,9.8792110784725136,5.0899483651147257,5.8042625602481683,0.30218033998519817,null,null,9.5399999999999991,5.75,6.47,9.16,9.61,7.52,5.61,null,null,5,"n.a.",5,4.5,null,6.75,"n.a.",null,null,12.781213977722183,1.8123478437119145,8.4466687554852093,8.130804879939312,9.2512799660430911,15.268418555126217,16.596655138466907,null,null,832.83760365249611,430.03166666666658,824.25,311.76668287000001,339.16984624568892,660.52499999999998,1248.7678185,3398.5807994348506,4647.348617934852,null,null,1276.9328824716674,805.39,1330.0166666666667,703.30198733583336,522.29166666666663,1385.9083333333335,1980.2181778333331,6023.8415364741677,8004.0597143075001,null,null,-2625.2607370393157,-3356.7110963726482,null,null,831.36264273999768,420.95000000000027,851.69999999999982,244.10102769000014,366.16835126000001,696.9,1507.7044960000001,3411.1820216899978,4918.8865176899926,null,null,1458.828278669992,857.29999999999927,1503.4,761.66767481999977,556.20000000000005,1494.8000000000004,2455.9448689999995,6632.1959534899943,9088.1408224899933,null,null,-3221.0139317999929,-4169.2543047999934]
[null,null,"Setiembre",5.1747094413399868,6.2209474829393789,7.2493156240494834,6.8283917340521194,9.4958588830837414,9.5674438332368332,6.0700389105058452,null,null,3.9854143437861027,3.1999349344460049,4.9841767165862905,7.0428982746419413,5.8438096379551823,2.5888275629042732,9.3659048618731777,null,null,76.739999685893551,89.720467926213672,65.083470477288188,75.51148168916805,97.312214248703881,91.589714390379697,94.101379923922195,null,null,8.6986594296586284E-2,0,-2.8063741898372121,0.15345468809814744,4.8885737246379186,3.1388655308817031,0,null,null,4762.9319688599999,2662,6303,2534.7089758304983,1534.4,2912.3201727212545,1798.1285319399999,null,null,65.49881517605229,101.5097574443031,108.9735787298425,74.856741592929424,108.33218624357261,57.733585596091885,153.46975087639581,null,null,2.4485834872910557,-4.1620297951582925,-1.8734997163925176,0.93758620689654426,-3.0390597351799333,-0.46313376992637451,-3.7145634629493847,null,null,0.93499999999999994,1.8,2.66,3.63,3.83,2.81,2.13,null,null,12.108700501034694,-0.31156517690875823,5.8375051994705931,10.700908326324637,7.3735605046797152,6.5736280000522385,-0.54684519442407253,null,null,9.5399999999999991,5.89,6.419999999999999,9.17,9.81,7.04,5.49,null,null,5,"n.a.",5.5,5,null,6.75,"n.a.",null,null,13.89467928104402,2.8594605632814352,10.624365865542229,8.7335855180680646,11.766833792486974,15.697645493323131,16.385830525640532,null,null,843.47109693999573,436.09,841.80000000000018,315.9670704483334,344.22964498568894,673.38333333333321,1287.8131789166666,3454.9411457073497,4742.7543246240175,null,null,1293.4136240583346,815.34666666666669,1353.875,716.89055940333321,529.25,1398.9583333333337,2027.1554517499999,6107.7341834616682,8134.8896352116672,null,null,-2652.7930377543166,-3392.1353105876501,null,null,890.4494943299942,438.77,818.49999999999909,246.92466401000001,354.31758488000003,718.59999999999991,1662.122586,3467.5617432199979,5129.6843292199919,null,null,1348.2510823000073,835.13000000000011,1418.5000000000009,742.28266302999964,527.20000000000016,1442.3000000000011,2384.5169730000007,6313.6637453300063,8698.1807183300116,null,null,-2846.1020021100194,-3568.4963891100197]
[null,null,"Octubre",4.9263243475468812,5.4431125957948439,6.646495209278859,5.919003115264803,7.6586118715072331,8.8636453570298706,6.138306138306131,null,null,4.2247309522173513,2.5964255081341108,4.491445299457018,6.3587727401889129,5.5061376209183752,2.3327325154999974,9.6438537577448731,null,null,77.008851659869549,89.60214582811011,64.890979406348549,75.57227356606812,96.903243017243938,91.74539083670183,93.701040108889828,null,null,0.88364161259004059,0,-2.668533118862499,0.52573888938869717,4.6225734360283779,2.9888191542569484,0,null,null,4732.9333521400004,2727.9,6574,2489.0699817320224,1572.6,2668.8,1707.8027485099999,null,null,64.075867816760365,103.64082123924467,114.55608718729411,75.765494034988706,110.17350788143985,54.682753955892863,141.46422205234262,null,null,2.9293655965794372,-3.5024692508386064,-1.3188386608662648,1.8042058823529359,-0.46830638957958159,0.64884345977352187,-3.5974816983894518,null,null,0.99499999999999988,1.75,2.63,3.52,2.21,2.63,2.3199999999999998,null,null,12.326435455674558,0.1867238166231901,6.4545063362965864,11.689117647058817,6.59667518186893,7.7862123899774112,-0.65792093704245258,null,null,9.44,5.64,6.4,9.27,9.11,7.57,5.44,null,null,5,"n.a.",5.5,5,null,6.75,"n.a.",null,null,13.893718866212602,3.6017647181054269,10.802643260211987,8.2261908174947163,14.450218883538479,13.013982805232583,17.156721049757806,null,null,851.0692777758286,436.05833333333334,848.5,321.05195295000004,351.38399616235557,679.61666666666656,1304.3803661666668,3487.6802268881825,4792.0605930548509,null,null,1310.7421948991675,818.13583333333315,1370.6833333333334,728.23312786416648,536.17499999999984,1411.7500000000002,2064.8027996666665,6175.7194894300019,8240.522289096667,null,null,-2688.0392625418167,-3448.4616960418166,null,null,868.86669881999478,388.88000000000011,732.40000000000055,237.69447918000014,359.55221411999997,677.7,1679.44865,3265.0933921199903,4944.5420421200033,null,null,1401.3684029799954,739.47999999999956,1400.6999999999994,739.99123202999999,582.59999999999968,1465.4999999999995,2304.0921679999988,6329.6396350099894,8633.731803009985,null,null,-3064.5462428899991,-3689.1897608899963]
[null,null,"Noviembre",4.5554336715375801,5.1251956181533744,6.0548438751000768,5.4280670785525205,7.3423765116738595,8.6274946245807129,6.8217054263566004,null,null,4.4089078983477945,3.407366795725232,3.9364438082950106,5.3860047061178653,5.4471585147153441,2.2068839248011454,9.786476868327405,null,null,75.613756125958943,89.393287292809134,64.45567527506077,75.182487613000347,95.776286020047465,91.921189784334842,92.80671163467359,null,null,-1.0210939363062814,0,-2.3887014048166941,0.47017961847726591,4.6866747423808697,3.2940398810179654,0,null,null,4722.8858149099997,2681.7,6037.6159582700002,2471.2306353119156,1668,3039,2212.23838329,null,null,62.496292622784253,103.52567121633494,111.24747098830916,75.076594046062482,110.12105579351905,58.210991233043096,176.93706333432303,null,null,3.2944881035886566,-3.2106438407145608,-0.75889402661130212,2.2592967768940926,0.42556883894799524,0.73876818957554435,-4.3920899854862219,null,null,1,1.75,2.65,3.55,2.8258079129184899,2.62,2.13,null,null,12.657942164089887,0.39458131745440084,7.0672454468245771,12.133327752197566,6.3868409789572977,7.5786571382052275,-1.4151669085631455,null,null,10.27,5.54,6.36,9.18,9.4621816751736798,6.72,5.31,null,null,5,"n.a.",5.5,5.5,null,6.75,"n.a.",null,null,13.839861215734906,3.6167541177863027,11.960756174166033,9.3952886367667521,17.048666835840699,12.902369114453194,17.212504679816565,null,null,860.38952883332843,438.45333333333332,860.77499999999998,325.97087066833336,355.43129956818888,686.98333333333323,1323.5688861666667,3528.0033657365152,4851.5722519031842,null,null,1339.5907155408338,822.05916666666656,1382.5083333333332,740.19850260833334,544.28333333333319,1424.5916666666669,2094.8864274166667,6253.2317181491671,8348.1181455658316,null,null,-2725.2283524126501,-3496.5458936626505,null,null,903.3679762799984,388.77999999999975,790,265.41884673999994,341.46764086999997,680.7,1483.8354919999999,3369.7344638899958,4853.5699558899942,null,null,1492.2079684499956,779.47999999999956,1412.2000000000003,798.02178421999997,584.10000000000014,1521.2999999999993,2157.4017689999996,6587.309752669993,8744.7115216699895,null,null,-3217.5752887799972,-3891.1415657800026]
[null,null,"Diciembre ",4.735748650300641,5.0523842161950565,6.2000000000000028,5.6045895851721168,7.9504211029485123,7.760000000000006,6.3125481139337882,null,null,4.5567262966257589,3.4610796049932584,3.4896333429051372,4.5233450005386757,5.6892192871480507,2.2178456213501314,9.645304686052965,null,null,74.3839690556959,89.330713507936622,64.031757591298572,74.974568171395461,94.702781786350997,91.844199681807623,92.376692000575147,null,null,-0.26250807865708492,0,-2.1908586153016985,0.60823425045015989,4.7396440310127197,3.3170998426682621,0,null,null,4755.8138503999999,2502,6187.94,2820.6863589035297,1710.5,3637.9,2216.8830439200001,null,null,61.384967788271346,99.094799503337811,101.20645566057867,77.83158027029944,107.69346015674539,62.353859680592464,181.20210990236697,null,null,3.116654421235272,-2.9912545437599132,-0.96045197740113286,2.1925282072712005,-1.1546142526802705,1.6982182628062301,-3.9812309920347513,null,null,1.335,1.91,2.67,3.63,3.0499790356984802,3.51,2.08,null,null,12.54991873310383,0.35945474881162132,6.9397363465160051,11.832260760551602,9.8229053396360655,8.778767631774306,-0.35983345401882066,null,null,10.33,5.43,6.29,8.93,8.4326140388319502,7.19,5.93,null,null,5,"n.a.",5.5,5.5,null,6.75,"n.a.",null,null,13.035915987640134,4.6816072351016258,10.767210602795153,10.924792310914899,15.700619726814047,12.568603972673609,16.510572406124837,null,null,868.8049639698279,442.34750000000003,866.75833333333333,329.98389427250004,358.62568957985553,696.82499999999993,1335.9675567500001,3563.3453811555169,4899.3129379055172,null,null,1352.4292401933344,830.37583333333339,1384.3916666666667,751.34773024833328,550.13333333333321,1441.8000000000002,2115.211804,6310.4778037750011,8425.6896077750007,null,null,-2747.1324226194847,-3526.3766698694849,null,null,840.50898434799274,425.63000000000011,965.10000000000036,337.14427480999984,337.53268014000002,663.6,1078.8268310000001,3569.5159392979986,4648.342770297997,null,null,1362.0191197800073,857.03000000000065,1300.6000000000004,776.32292321000023,535.39999999999964,1530.5000000000005,1908.5826620000007,6361.8720429900131,8270.4547049900139,null,null,-2792.3561036920146,-3622.1119346920095]
[null,2012,"E",4.2138538820197748,4.7484674515909413,5.4354294782781238,5.3602811950790938,8.2541404339734434,6.9004787458380124,6.1162079510703444,null,null,4.6899786109443582,2.2956874523501378,3.2606215174871398,3.9191083299076452,5.9393249145500233,2.2728188276824919,11.354181274248582,null,null,75.221288870797835,89.423734072280112,64.339763904469081,75.454547660019671,95.746169281699892,92.58900049699281,92.315240493511524,null,null,0.4443404600495347,0,-1.8120906801007586,1.019372637232101,4.8008233099919071,3.7704458360594524,0,null,null,4646.3623359599997,2578.6999999999998,6185.7,2880.4390615127977,1624.8,3046.8,2082.7013444499999,null,null,59.756291335107846,98.958417279328529,99.820789789363687,77.886682281179944,106.0529268895631,57.466687929524255,181.80623674379575,null,null,4.352728507469279,-2.5665935903390711,-0.22329256820320248,2.4864386989157561,-0.23517230035137776,3.1800804767624511,-4.0580115273775288,null,null,1.3484834265379795,2.06,2.64,3.57,2.7315146174798404,2.74,1.81,null,null,13.468599043753953,0.80338411518809971,7.7057309501411053,12.120050041701409,6.6778725039674738,9.6159730758569726,0.33340057636886822,null,null,10.89,5.59,6.2,8.91,9.8081726268401095,7.59,6.47,null,null,5,"n.a.",5.5,6,null,6.75,"n.a.",null,null,14.173766041645086,4.9747994344418567,10.637370396312651,11.062361108234553,17.660522635394017,13.253731988072248,12.955649532005697,null,null,883.16433071399467,445.68416666666661,865.00833333333333,329.80009541333334,365.22324316068881,704.30000000000007,1350.240045,3593.1801692880167,4943.4202142880176,null,null,1374.9807937641679,841.34416666666664,1396.7833333333331,759.62250331833332,552.09166666666658,1456.0833333333337,2121.8704113333333,6380.9057970825015,8502.7762084158348,null,null,-2787.7256277944848,-3559.3559941278186,null,null,879.71694499999444,448.69,744.19999999999993,342.56734488000001,391.85987001000001,585.20000000000005,1036.890944,3392.2341598899948,4429.1251038899945,null,null,1472.7880047800049,820.68,1340.6000000000001,740.20154291999995,506.20000000000005,1327.5999999999997,1876.4096279999999,6208.0695477000045,8084.4791757000039,null,null,-2815.8353878100102,-3655.3540718100103]
[null,null,"F",4.0533296379370327,4.8951048951049012,5.1683402244536323,5.6282722513089034,8.8085488426911773,6.0013078146807084,6.3975628332063907,null,null,4.7310029491121552,2.4204439356203657,3.2124863693675039,4.0644197233845443,5.9871852612105831,2.4769320083862256,10.763616205478826,null,null,75.482778810163367,89.52638929211885,64.101193979942096,75.362533321626742,95.475163930391872,92.871860211800481,92.124353939462011,null,null,1.5791405954741329,0,-0.28176676486589108,1.4173730171731007,4.8225191312483089,3.4945093495200372,0,null,null,4708.1602812800002,2616.6999999999998,6126.9,3016.4715980587525,1595.7,2980.1,2008.5231295799999,null,null,61.974589235185007,99.720544673028115,102.00323386867431,79.428699703726892,105.91510693618056,56.099179484576652,169.85415332145735,null,null,4.7539760335090993,-2.6265333333333389,3.0103903397922412E-2,2.3305576208178409,-0.86017822107624065,4.1496584108277315,-3.8981746599856777,null,null,1.7514468120655697,2.14,2.62,3.58,3.0049386295903551,3.1,2.25,null,null,14.056897941806055,0.68153333333332777,7.9127042965459156,11.892391573729862,6.2691301232623333,11.42315357701869,-3.5304223335712689E-2,null,null,10.97,5.61,6.2,8.85,9.1959083486448154,6.98,6.36,null,null,5,"n.a.",5.5,6,null,6.75,"n.a.",null,null,15.566298696552462,3.5048993770651959,12.715636419225396,11.942699378676714,21.597833032270831,13.059626560899829,12.700918936018812,null,null,893.12500576732816,445.36833333333328,861.57499999999993,332.16625053083334,369.03033763474997,710.6,1358.3092338333333,3611.8649272662446,4970.1741610995787,null,null,1387.112337162501,846.39833333333343,1407.625,771.17335797833323,557.16666666666663,1470.5500000000002,2144.7053688333331,6440.0256951408346,8584.7310639741681,null,null,-2828.1607678745909,-3614.5569028745908,null,null,950.15252903999612,450.18999999999988,859.9,432.47955861999998,381.19611099000002,681.5,1408.011733,3755.4181986499962,5163.4299316499955,null,null,1324.9979627600053,819.4899999999999,1311.4999999999998,765.54833828999983,559.5,1363.4,2132.062152,6144.4363010500074,8276.4984530500078,null,null,-2389.0181024000099,-3113.0685214000096]
[null,null,"M",4.2080604447938468,4.3713210460291432,4.5454545454545556,5.6759098786828392,8.5485341154628731,4.9447633749819095,6.3396226415094281,null,null,4.5447683370034326,2.7569749708326752,3.2216156569300192,4.5809947761249026,5.7805437715290306,2.873900112485289,10.188610311914875,null,null,75.483456065901109,90.072861427797378,63.877521530055631,75.679074171587828,95.952557152770197,93.564059594711765,92.033445600686591,null,null,1.643394367738829,0,0.26302855998689079,1.8272173497602258,4.665858342337045,3.2608638084897938,0,null,null,4745.4197414500004,2648.9,6140.8,3068.3124150705976,1753.1,3031,1712.1733605899999,null,null,61.054566378998906,101.60756212813931,99.696896744376204,78.151439955030199,107.31794538751274,57.607903083224741,149.17989274003111,null,null,4.8383393216134873,-2.128286797337279,0.63565217391303364,2.3601312013120159,-2.0541730664836448,4.693170451411234,-3.6765436479772835,null,null,1.9718244942589092,2.15,2.61,3.67,2.9713866785694685,2.89,2.4300000000000002,null,null,13.973909027258891,1.1101507026627211,8.4599999999999902,11.794637146371466,6.6033612757000046,11.658739542153166,1.9162526614626099E-2,null,null,10.86,5.53,6.29,8.7899999999999991,8.3274279489590253,7.53,6.36,null,null,5,"n.a.",5.5,6,null,6.75,"n.a.",null,null,14.179958530408964,3.4548781363048509,14.809406924471169,12.928872439948336,21.900516367140121,11.495022723145087,11.176262533197523,null,null,904.69025696816163,443.00333333333327,860.05000000000007,340.31394517749999,370.75222430854166,711.47499999999991,1406.4982486666668,3630.2847597875357,5036.7830084542038,null,null,1395.8355493500001,842.20166666666671,1407.125,780.27792660499983,563.56666666666661,1465.9333333333334,2179.3231988333332,6454.9401426216673,8634.263341455,null,null,-2824.6553828341307,-3597.4803330007976,null,null,1111.1791753999951,503.61000000000013,1033.5,503.90096400999994,458.60080440999997,796.2,1749.5244400000001,4406.9909438199929,6156.5153838199949,null,null,1581.8958214599961,896.83000000000015,1475.4,882.05251368000017,653.90000000000009,1474.9000000000003,2270.9489140000001,6964.9783351399947,9235.9272491399952,null,null,-2557.9873913200008,-3079.4118653200021]
[null,null,"A",4.7073967209458161,1.9866929060069389,4.2744984006978735,5.6555269922879123,8.9766105663035489,4.045911047345772,5.9746079163554811,null,null,4.206740246849054,2.3044696433167373,3.1488674553825362,5.1500241944191938,5.3376014867960544,3.311515528397079,9.8733604703754008,null,null,74.692860244653147,89.788775240634223,64.037227196489724,75.327633993147131,95.453315880502203,93.893921826681151,91.660942374551581,null,null,1.0386950824269232,0,1.7469953993902709,2.1677020692359568,4.743717878119674,3.1248595887967192,0,null,null,4765.5887301000002,2709.9,6183.3,2978.3443822345153,1707.9,3125.5,2019.5000679399998,null,null,60.687214854315584,100.68823505588405,105.68021433962545,77.87613214642316,114.28850341724331,59.61942828969368,168.51779670928505,null,null,4.5771391847410756,0.18954148672240706,0.91633296151701471,2.4272019464720254,-2.3727289960094979,5.8955598455598404,-3.5334954193093653,null,null,1.9749292888336507,2.1800000000000002,2.63,3.67,1.936089779043209,3.19,2.23,null,null,13.821949297145585,3.2291537259946663,8.7610122699386555,11.806739659367402,8.0056000665259415,12.565692222835075,0.25986610288936635,null,null,10.84,5.28,6.2,8.74,8.5998449167314739,6.59,6.25,null,null,5,"n.a.",5.5,6,null,6.75,"n.a.",null,null,14.403474022616102,3.4503712247465623,18.548804053184842,14.760343788421416,22.739708313613495,10.327808254772064,12.236350982984856,null,null,907.46980457149505,441.85083333333336,854.97500000000002,339.92202612416662,376.46063612999995,710.91666666666663,1418.617505416667,3631.5949668256612,5050.2124722423287,null,null,1401.7478577933327,844.16333333333341,1400.9750000000001,785.22175332916675,569.25833333333333,1451.3916666666667,2196.4460036666665,6452.7579444558332,8649.2039481224983,null,null,-2821.162977630172,-3598.9914758801719,null,null,955.33343668999578,415.62999999999988,875.2,393.39508199000011,421.86844563,766.3,1222.7932149999999,3827.7269643099953,5050.5201793099986,null,null,1317.6198547499937,816.52000000000044,1323.2000000000003,749.97253073999991,582.1,1386.7000000000007,1993.9396020000001,6176.1123854899961,8170.0519874899946,null,null,-2348.385421179999,-3119.5318081799996]
[null,null,"M",5.0352968067359258,1.2123472908700896,3.8966049382715973,5.1533219761499121,7.5269721128235769,3.5407520519182993,6.0267857142857233,null,null,3.9367322570445631,3.5060724209654883,2.9972143492979901,5.576908252487609,4.8893207507614482,3.5584902911007354,9.849607182940515,null,null,73.829874990225832,89.931313982789305,64.169686825559324,75.432363845310803,95.946714930268072,94.045514804572065,91.167892233556515,null,null,0.31080010938923325,0,1.5866666666666585,2.554558396813821,4.6750191864769679,2.9851337121381971,0,null,null,4858.1739648499997,2651.4,6112.7,2860.6851934678953,1690.3,3012.3,2041.8728008699998,null,null,61.558086662579861,100.09264062008059,107.02095929874027,77.898803330209176,116.46177781206566,56.868564999604018,175.77998498341466,null,null,4.7266998225618204,1.1042651801345278,1.302636464909031,3.0590360469825861,-0.97652652578999422,6.0258862567978664,-3.7696000000000085,null,null,1.9867261475528928,2.33,2.67,3.65,2.3004809037473035,2.6,2.0299999999999998,null,null,13.961690625096816,4.3943775914493708,9.1758484961010112,12.255131632239777,10.985431745393202,12.361555903769936,0.37086315789472823,null,null,10.97,5.66,6.3,8.69,8.3744368675031939,7.3,6.42,null,null,5,"n.a.",5.5,7,null,6.75,"n.a.",null,null,13.662202182965434,3.400751566016913,18.574452561475873,15.469787368446974,25.502765266920413,9.0826943553058204,21.792552773050232,null,null,919.30583368149519,439.98166666666674,853.43333333333328,340.41978561916665,377.62913543833332,716.5333333333333,1429.1767017499999,3647.3030880723286,5076.4797898223287,null,null,1416.6842692683324,849.22000000000014,1404.1333333333334,782.69490482916672,576.81666666666672,1454.8416666666669,2219.9356451666667,6484.3908407641675,8704.3264859308329,null,null,-2837.087752691838,-3627.8466961085055,null,null,1075.9645987099934,461.18000000000029,871.40000000000032,415.6289853899998,392.19741379000004,800.59999999999991,1522.7373339999999,4016.9709978899955,5539.7083318899931,null,null,1517.973648689996,989.73999999999978,1574.1999999999998,817.35404818999996,686.80000000000007,1512.6999999999998,2492.9870689999998,7098.7676968799933,9591.7547658799958,null,null,-3081.7966989900033,-4052.0464339900027]
[null,null,"J",4.6149100459102517,0.60583465374218604,3.4730883622757265,4.7073791348600489,6.4643678423417246,2.7113840340103965,5.7949479940564714,null,null,3.7587561408928201,4.0803002420919654,2.8209935199883844,5.7154313809204451,4.7063105929810947,3.4536628966449183,9.9442088819459951,null,null,72.935747689599594,90.290282684360207,64.536189883852501,75.626211885376094,96.676010861522343,93.812684381641432,91.098132434412378,null,null,-1.0868667052279113,0,0.92428511819825432,2.969099320534351,4.562871810592962,2.7225874309755338,0,null,null,4869.4577913100002,2601.4,6811.6,2784.4624407518713,1689.1,3219.2,2209.4662591199999,null,null,60.556086704608894,98.510415278164885,116.64650235092971,75.001706335630075,116.77518976257666,58.371261440626988,192.18532799622844,null,null,4.9085641400366802,1.8728191587919301,1.6689476124246736,3.6412150668286767,0.53748070481872801,6.2394407652685748,-3.5492696629213558,null,null,2.0056829169914554,2.4900000000000002,2.66,3.75,1.9469250399295202,3.26,2.04,null,null,14.314489161794864,4.8050546599963031,9.6516995827538334,12.857375455650065,10.578465748162245,13.132542310522437,0.67588483146066658,null,null,10.74,5.44,6.3,8.66,8.3744368675031939,7.38,6.51,null,null,5,"n.a.",5,7,null,6,"n.a.",null,null,14.267983672314323,3.8019477577549754,18.305870092304776,15.339436523678639,28.228214455755428,8.9512391513454581,15.880989384963694,null,null,925.8977621631617,433.86333333333329,849.76666666666654,339.94844490916665,378.87721709166658,710.7833333333333,1421.3003142500002,3639.1367574973278,5060.4370717473284,null,null,1425.9916067241672,834.2258333333333,1403.2250000000001,773.92988520666677,579.38333333333333,1462.45,2208.5943003333332,6479.2056585975006,8687.7999589308329,null,null,-2840.0689011001723,-3627.3628871835076,null,null,955.27711881999221,392.31999999999971,831.40000000000009,384.80890296000007,389.31684976999998,729.5,1263.8078369999998,3682.6228715499929,4946.4307085499895,null,null,1409.6710158800024,686.42000000000007,1450.0000000000002,741.66170534000003,585.69999999999982,1551.4,2124.8850820000011,6424.8527212200061,8549.7378032200068,null,null,-2742.2298496700114,-3603.3070946700136]
[null,null,"J",3.9486456636426319,3.7185088779405275E-2,2.8606728758791151,4.0859309182813766,6.369628450408217,1.639344262295082,6.013363028953238,null,null,3.6549508755101128,2.9299548545378067,2.6940035425491797,5.6164346987254099,4.8832912320094524,2.9723503086743852,9.8939615777097529,null,null,73.106999010568231,90.419564435945176,63.999395143146806,75.746371409858199,97.002620959407011,93.886455367506656,90.694901028187701,null,null,-0.8331783113977117,0,0.86733079818450587,3.5090377964445958,4.8456929784925364,2.7239225746758975,0,null,null,4911.8982414900001,2526,6778.1,2690.4639516236912,1618.7,3127.7,2134.6191387399999,null,null,61.184830226206479,97.340065186244757,113.90566873835175,74.620126488487699,112.60141166161904,54.960668911353054,179.70200221824973,null,null,6.0619879066356184,2.3719329058637615,2.4103742030860156,4.5578389316066419,1.0609812312789346,6.7303225806451614,-3.7479831932773191,null,null,2.1150000000000002,2.41,2.68,3.8,2.7407337275071901,2.42,2.04,null,null,15.383898680470534,5.450788030852145,10.353157165296121,13.608053419668154,11.029255101179551,14.089677419354839,0.3709943977590951,null,null,10.79,5.49,6.22,8.75,8.3394512614496801,6.78,6.4066666666666663,null,null,5,"n.a.",5,7,null,6,"n.a.",null,null,14.259429526557454,3.8331801588582293,20.251560921546897,14.972457705732968,29.593259490418909,7.1548996286515232,15.934564067532264,null,null,931.11966015649466,438.28500000000003,846.4,348.95651216750002,384.08868137250005,715.19999999999993,1410.8370857500001,3664.0498536964951,5074.8869394464955,null,null,1426.3020568758336,843.76333333333332,1411.3416666666669,772.12470664416662,578.65833333333342,1469.2833333333335,2219.6929264999999,6501.4734301866665,8721.1663566866646,null,null,-2837.4235764901714,-3646.2794172401723,null,null,911.25632169999244,524.79,783.50000000000023,383.41401572999985,414.98621059999999,785.6,1314.341471,3803.5465480299936,5117.8880190299969,null,null,1428.0035220100031,1027.0599999999995,1425.7999999999997,750.41952325999955,584.20000000000016,1560.2999999999997,2534.5442300000004,6775.78304527,9310.3272752699995,null,null,-2972.2364972400064,-4192.4392562400026]
[null,null,"A",4.230869108776063,0.10214504596527017,2.7113840340103965,4.3222828367603787,5.9664513046565943,2.1625652498135657,6.0606060606060375,null,null,3.6072491989571511,2.9975514002088541,2.7484109304843214,5.4819252859053584,5.4391040914907789,2.3863611260051578,9.5877741566105907,null,null,72.943439165716754,90.762510135258452,64.569072391708048,76.028412585310349,97.830438263508597,93.53363651481979,90.754756242568348,null,null,-1.2370114124154099,0,0.74435209888866072,4.0784441997269445,4.9950137625653879,2.75576690662604,0,null,null,4898.2062223599996,2499.4,6765.7,2505.9990309376426,1615.4,3245.1544858921702,2187.0237964900002,null,null,59.813244739086443,96.754837935452912,111.5901711639949,72.855633576028382,113.35455967272412,55.305006944136935,188.81015051763254,null,null,6.0146585616970905,2.4953061224489805,2.5592255334804959,4.6276950925181097,1.6488672342539528,4.2926828512594897,-3.6399999999999788,null,null,2.1150000000000002,2.6,2.69,3.84,2.53039119923453,2.4025630982605106,2.2000000000000002,null,null,15.292140446689046,5.6021326530612257,10.49408112582781,13.532791633145624,12.955103011143606,12.344084317190624,0.13142857142859346,null,null,10.88,5.71,6.2,8.76,8.7967658973220306,7.011313887152685,6.2,null,null,5,"n.a.",5,7,null,5.5,"n.a.",null,null,13.290052753979031,4.3220336990323904,39.60211478227167,15.560903968359764,29.494513297546888,6.81634788108052,14.898321025679785,null,null,938.08962028066105,440.93833333333333,844.58333333333337,362.49490264333326,387.33890973249999,718.25,1416.8282256666664,3691.6950993231603,5108.5233249898292,null,null,1437.4036852841675,843.22833333333335,1406.0333333333335,778.82234853833336,581.80833333333328,1475.6833333333334,2228.7361237499999,6522.9793671558336,8751.7154909058336,null,null,-2831.2842678326729,-3643.1921659160071,null,null,915.00216422999438,452.78999999999996,829.90000000000032,406.56171339999992,405.17109158,733.5,1579.5981750000001,3742.9249692099911,5322.5231442099903,null,null,1592.0478195700027,850.88000000000102,1439.6999999999996,842.0393775499997,594.00000000000023,1571.5999999999992,2564.4632359999987,6890.2671971200034,9454.7304331199994,null,null,-3147.3422279100087,-4132.2072889100091]
[null,null,"S",4.466305312334117,0.78212290502792292,3.2803932690489686,5.2985702270815782,6.4054942745756058,2.604408892196072,5.3558327219368946,null,null,3.4191373921930808,3.4961861952622764,2.9880715891369198,5.3480066119967713,6.2212150804857771,1.9436321892678168,9.0480760841113383,null,null,73.012824627254119,90.796912080279228,65.256267035749985,76.125020427439651,97.954702376911882,93.569931143115269,91.096241527804921,null,null,-2.5480483272600942,0,1.5327982081426943,4.081574454208762,5.0168378373397919,2.7762048571788029,0,null,null,5139.7594487200004,2485.6,6753.7,2466.3195746445567,1643.1,3002.4,1942.56059026,null,null,61.101273502184185,99.197353885841622,110.4928029358711,72.588809234040625,115.17870493531042,52.922873145032625,165.20887193305981,null,null,5.7757328257169025,1.9426829268292785,2.0329189931350125,3.9140415335463286,1.5945715899414072,2.6944158760965764,-3.0048955431754791,null,null,2.12,2.74,2.72,3.95,3.0989768766090302,2.4109215332598599,2.19,null,null,15.271617618758638,4.7804878048780584,9.914376201372999,12.831541533546329,11.315480548550408,10.589491483077538,0.469045961002794,null,null,10.88,5.6,6.18,8.81,8.1959132044136194,6.1213131312324967,5.85,null,null,5,"n.a.",5,7,null,5,"n.a.",null,null,13.495197438190299,3.803816987852926,39.396273288941309,16.341551847862835,28.037376534173418,5.7105424077370515,15.210448060397642,null,null,939.48917512566106,438.53583333333336,841.80833333333339,367.70980691416662,389.99462972500004,719.94999999999993,1384.8525230000002,3697.4877784314954,5082.3403014314963,null,null,1433.7883305200005,839.47166666666669,1394.6000000000001,781.6071125366667,586.53333333333319,1476.4083333333331,2235.4235635833334,6512.4087763899997,8747.8323399733345,null,null,-2814.9209979585053,-3665.4920385418391,null,null,907.24415246999524,409.94000000000005,785.19999999999982,309.50351525999986,386.18622478999998,739,1278.4141540000001,3537.0738925199985,4815.4880465199967,null,null,1304.8668251300016,790.05000000000018,1281.3,775.6998310099998,583.89999999999975,1451.0000000000007,2464.766251,6186.8166561400067,8651.5829071400076,null,null,-2649.7427636200082,-3836.0948606200109]
[null,null,"O",4.6840231310456026,0.94111069698099625,3.3478343105731097,5.6722689075630255,6.4684304258566057,2.817556258136495,5.2708638360175915,null,null,3.1495085618158773,3.6544439335491772,3.3033011556875138,5.1559321915324894,6.9756571471945543,1.7365176412808663,8.3901302734880581,null,null,72.629165867077333,90.68619461467172,64.3859465943505,76.046509435323102,97.637683430138424,93.846043811646723,90.934162657652479,null,null,-3.3593223236246583,0,0.373088842984313,4.0847208559403327,5.0048018425171215,2.9456842149237201,0,null,null,5365.96608913,2548.6999999999998,6804.2,2398.500381807964,1684.1,2994.8,1908.7486163199999,null,null,63.146759894356663,98.830107760375668,108.03640676924063,75.208677183355505,111.13950072473887,55.33834199794849,159.43826343268881,null,null,5.316930618983271,1.8217446690667356,1.9856881405563636,3.9156262425447319,1.4249399453782414,2.0499697059669968,-2.9931015299026629,null,null,2.15,2.78,2.73,3.92,3.4381887188681901,2.5531292063992899,2.12,null,null,15.280246595001371,4.7937745776793079,9.9103825036603173,12.508230616302185,9.5723076974709684,9.9323505788186779,0.89528048215111544,null,null,10.8,5.78,6.17,8.85,8.9289823895589606,6.3022872373723722,6.2133333333333338,null,null,5,"n.a.",5,7,null,5,"n.a.",null,null,13.513257349732054,4.2968949259419853,38.730837846143771,17.602361812441501,27.270744586671157,5.8773749637774486,14.256218205175596,null,null,943.71777948899444,443.21166666666659,841.81666666666661,370.89283751083332,396.36646916166666,726.55833333333339,1381.2353620833335,3722.5637528281623,5103.7991149114941,null,null,1451.6897303433332,849.81083333333333,1405.5166666666664,787.5454540574998,592.75833333333333,1480.8916666666667,2267.1862459166673,6568.2126844008335,8835.3989303175003,null,null,-2845.6489315726722,-3731.5998154060057,null,null,919.609951179993,444.99000000000024,732.5,275.89084633999983,436.01428736000003,757,1636.042719,3566.0050848799947,5202.047803879992,null,null,1616.1852008599869,863.55000000000018,1531.7000000000003,811.25133027999982,657.3,1519.3000000000002,2685.244356000002,6999.2865311399873,9684.5308871399902,null,null,-3433.2814462599963,-4482.4830832599982]
[null,null,"N",5.2163663222012522,0.65128395980647824,3.1140888930829456,5.4416073670992047,6.1635032457332173,3.3723522853957593,4.4992743105950526,null,null,3.0320644984165703,3.0899909700035941,3.6071391489685918,4.8559809213159166,7.4914606757647757,1.7887262423437351,7.8478205237567193,null,null,71.999495086972928,90.381663254686259,64.075573278197524,75.864942017017583,96.705614745606042,94.007748074474605,90.409462713865736,null,null,-1.5496652170911633,0,0.72901938112189735,4.5542560254875797,5.3353635780372368,3.8861545825355774,0,null,null,6530.7613680000004,2514.6,6711.2,2376.1123724889212,1702.5,3119.3,2106.1048792199999,null,null,75.365066629609785,99.663191837970615,105.71411976243461,73.883324366367262,111.49331023499469,56.11320788733051,136.91898306608931,null,null,4.0712617576965586,2.4229358476613028,2.2265736249656838,4.5033386264390627,2.1724784172249403,1.4998954035247378,-2.2768333333333213,null,null,2.15,3.09,2.76,3.98,1.92275526041191,2.4133867878690398,2.12,null,null,14.706489329099524,5.1551414309484169,10.120742198224583,12.820738388249305,10.431999812145555,9.8645490666499054,1.6530185185185309,null,null,11.1,5.84,6.2,8.74,8.4761685189420692,5.8745883164269106,6.2266666666666666,null,null,5,"n.a.",5,7,null,5,"n.a.",null,null,13.685649982366188,4.4200988006592778,37.898275065483247,17.171558684633293,25.636888853021354,5.9303229719078088,14.616660632069657,null,null,950.36903455066067,445.54333333333335,843.3416666666667,369.58294994333323,401.10716126083327,742.85833333333323,1400.0135364166665,3752.8024790881609,5152.8160155048281,null,null,1456.6213977450009,856.59333333333336,1407.0916666666665,784.54099858583322,593.07499999999993,1477.1083333333329,2275.3033097500006,6575.0307296641695,8850.3340394141705,null,null,-2822.2282505760068,-3697.5180239093402,null,null,983.18303701999321,416.76000000000022,808.29999999999973,249.70019592999961,398.35594606000001,876.3,1709.1735840000001,3732.599179009987,5441.772763009998,null,null,1551.3879772700107,860.8700000000008,1431.0999999999997,761.96831855999972,587.89999999999986,1475.8999999999996,2254.8065350000006,6669.1262958300067,8923.9328308300173,null,null,-2936.5271168200125,-3482.160067820012]
[null,null,"D",4.5505304856303015,0.78292478329759441,3.4463276836158157,5.3907229419139053,6.6186108228091536,3.9068299925760894,4.6343229543808873,null,null,2.8355020277097838,2.2860510756543722,3.845546172476344,4.4725591735409544,7.5472126091169596,2.027593953231376,7.5341019468727577,null,null,71.592249581698383,90.179940111575149,63.708172847251689,75.86856381933633,95.266917314358352,93.716471462321152,89.786117128644818,null,null,-1.0953286373159281,0,1.1623029286473625,4.8224186163205651,5.4183704095367222,4.2106710457022949,0,null,null,6856.6761120399997,3172.9,6693.8,2570.9308349226294,1718.1,3209.8098136290778,2418.5563101600001,null,null,75.528614572263805,131.27881511859943,101.67566131039575,74.670903759849566,115.30061075949349,56.259014451288678,193.37093950180434,null,null,4.4471027537231196,2.5173661333580051,1.8692517749863498,4.8479381443299072,1.5425221116799057,1.2926676788425524,-2.3934048442906612,null,null,2.15,3.32,2.77,4.1100000000000003,2.9963724161366301,2.46,2.13,null,null,15.236144137074739,4.8689549616202825,9.6897323866739544,13.140888183980978,10.809478337601952,8.6165365722961553,1.5536747404844251,null,null,11.1,5.69,6.1899999999999995,8.75,8.3290553009836703,6.82,6.26,null,null,5,"n.a.",5,7,null,5,"n.a.",null,null,14.049232257194166,3.4139141305052245,41.109297639245867,16.879082829856749,26.286194155104383,5.8899808902095563,15.211570560887466,null,null,953.71615834832721,444.92333333333335,831.55833333333339,365.92236845999992,402.35546811916669,744.62499999999989,1409.7487818333332,3743.1006615941606,5152.8494434274935,null,null,1465.8858827616671,854.78416666666681,1416.1666666666667,782.10712010499992,601.35833333333323,1472.7749999999999,2268.2019118333337,6593.0771695333342,8861.279081366667,null,null,-2849.9765079391732,-3708.429637939174,null,null,880.67446991999168,418.1899999999996,823.69999999999982,293.21729701000004,352.51236244,684.8,1195.649776,3453.0941293699943,4648.7439053699854,null,null,1473.1929399800003,835.31999999999971,1409.4999999999993,747.11638144000062,634.79999999999961,1478.5000000000005,1823.3658869999999,6578.4293214200006,8401.7952084199933,null,null,-3125.3351920500136,-3753.0513030500151]
[null,2013,"E",5.7367026519222346,0.87320018578727132,3.857008466603959,5.6713928273561276,7.7431221581462317,4.7583849210015625,4.6829971181556225,null,null,2.441468835339565,2.3691499694489768,4.0057328112054913,3.9484798106984811,7.2118982133424758,2.3340162933973505,8.08496347913694,null,null,71.019648352615619,90.063487075445494,63.515580341414449,76.01711299636824,95.038086014268714,93.76103524610555,89.591954977728605,null,null,-1.7366074913835243,0,0.91712287650779423,4.7880183605774009,5.2674431116844094,4.4191217342968265,0,null,null,6748.7871541100003,3116,6649.7,2535.3638062192508,1717.9,3017.8,2590.8353731500001,null,null,71.343228895754351,115.52537164801244,103.08884859816045,73.937711462219013,114.21335335326681,56.588836462159783,217.3229183104186,null,null,2.4242266785873556,2.3760521226632312,1.5049456521739053,5.1183267561168133,0.6527348585987377,1.0897600987828624,-2.4292360633172772,null,null,2.1550000000000002,3.27,2.78,4.17,3.2650459696615299,2.11,2.14,null,null,13.621852199127286,4.7255364214016042,9.3041304347825999,13.08642462509866,12.606536286991251,7.9149894161227827,1.5160082587749451,null,null,11.21,5.64,6.18,8.75,8.7767559505213004,7.02,6.27,null,null,5,"n.a.",5,7,null,5,"n.a.",null,null,14.398525332226786,3.8633469805749998,40.64299583443762,15.448290728615998,25.747361922451905,6.6944211394347031,19.130349014659508,null,null,956.36932721666028,447.435,838.55833333333339,369.00561891104627,402.62106464583331,752.26666666666654,1414.722404833333,3766.2560107735403,5180.9784156068736,null,null,1473.3947740641661,860.16333333333341,1426.5833333333333,787.70891689485882,605.27499999999998,1466.5916666666665,2294.8526542500003,6619.7170242923594,8914.5696785423588,null,null,-2853.4610135188182,-3733.5912629354857,null,null,911.55497141999081,478.83,828.19999999999993,379.56635029255699,395.04702832999999,676.9,1096.5744199999999,3670.0983500425477,4766.6727700425481,null,null,1562.8947004099925,885.23,1465.6,807.42310439830715,553.20000000000005,1253.4000000000001,2196.2185369999997,6527.7478048082994,8723.9663418083001,null,null,-2857.6494547657521,-3957.2935717657519]
[null,null,"F",6.515785305324914,0.97222222222221966,4.1842179163156406,5.7827344072697349,7.0810337818385873,4.7325292330356321,4.581245526127419,null,null,2.2248852177009919,2.2214139862662434,4.0020251891157672,3.3719899449550463,6.6601944243410554,2.5125590494437846,8.1619885723818513,null,null,71.003425678579305,90.418088048441717,63.088302205405185,76.130645263897094,95.75572781027445,94.644845949175334,89.831119070736733,null,null,-1.7484904415029727,0,0.54917058257373952,4.7882641892950648,5.3126981243704279,4.6618124562867456,0,null,null,6816.2660269300004,3070.5,7276.7,2465.0716619624882,1700.5,3035.2,2557.8234821000001,null,null,71.131019357072205,115.57018955317753,116.62432027240175,73.209400009069768,109.10278853943447,55.760209931013073,214.10694252294218,null,null,0.78318410754926748,2.2558459422283383,1.2149460916442061,5.3858180398281812,1.7390651926532481,1.6685081318681321,-2.3343052703627678,null,null,2.17,3.25,2.8,4.2300000000000004,3.0114232713399698,1.79,2.14,null,null,11.861354321513696,4.6723521320495216,8.9416442048517535,13.128102303787571,13.099070437694637,8.2758153846153828,1.6721492128678959,null,null,11.13,5.69,6.16,8.7799999999999994,8.9046228229723798,6.12,6.33,null,null,5,"n.a.",5,7,null,5,"n.a.",null,null,12.952589264620773,5.6724203638708115,37.611295613252253,14.870383243426044,23.811493728583777,7.0563942613386388,19.166181768040214,null,null,955.21577805749337,446.11999999999995,833.23333333333358,362.83588986221451,400.48202006249988,755.42500000000007,1402.3911987499998,3753.3120213155412,5155.7032200655412,null,null,1475.8170084324984,861.47916666666686,1428.75,784.4048618713349,606.23333333333323,1469.1999999999998,2288.7330466666672,6625.8843703038337,8914.6174169705009,null,null,-2872.5723489882926,-3758.9141969049597,null,null,936.30993912999338,434.41,796.00000000000011,358.44281003401807,355.52757599,719.40000000000009,1260.0372600000001,3600.0903251540108,4860.1275851540113,null,null,1354.0647751799925,835.28,1337.5000000000002,725.89967800771285,571.00000000000011,1394.6999999999998,2058.6268610000002,6218.444453187707,8277.0713141877059,null,null,-2618.3541280336931,-3416.9437290336928]
[null,null,"M",6.2058775162663231,1.2758875739645059,4.3384959880574652,5.5760557605576029,6.7943130672651559,4.9737979222212108,4.1163946061036061,null,null,2.1953896262059893,1.6219778083727483,3.9085627634740066,2.8136524080568326,6.0575781823780135,2.5272478829512504,8.1482095490716162,null,null,70.722367645415758,90.248966570850371,62.80886196944865,76.184931053859387,96.081441554364972,95.075993586640479,89.720689655172393,null,null,-1.9383422558612331,0,1.1027814627934478,4.7380214281315514,5.3845020359552853,5.1207352850665746,0,null,null,6936.8452548100004,3027.5,7279.8,3051.1054984985508,1698.7,3500.5,2097.7660981199997,null,null,69.99884117194199,116.83185204823315,112.65838593079258,85.098560824183551,112.25490608233638,63.152142661460388,170.63246904014437,null,null,0.70064153042933541,1.9986123790396109,1.0748707860144942,5.8194485436893242,1.9954996092299531,1.3395743562795488,-1.9750920245398647,null,null,2.3250000000000002,3.3,2.79,4.25,3.6305639918334198,2.0299999999999998,2.06,null,null,11.839384768437556,4.3091327368997527,8.7805597782348297,13.444283495145635,15.184176702172985,8.2841644771413456,2.1549011588275531,null,null,11.16,5.64,6.15,8.65,8.3938901801492793,7.7,6.36,null,null,5,"n.a.",5,7,null,5,"n.a.",null,null,12.605328866407461,6.0890309776690854,35.670934207936014,14.789850088540767,27.521735274220195,7.1208658884623466,19.592131336681362,null,null,947.54609697082651,441.565,828.95000000000016,352.62224571764091,395.05512342083335,756.94166666666661,1367.6868590833335,3722.6801327759676,5090.3669918593014,null,null,1467.3662931749984,855.48250000000019,1417.9666666666669,767.52394132586824,593.06666666666649,1456.9083333333335,2260.1270238333341,6558.3144011675349,8818.4414250008685,null,null,-2835.6342683915664,-3728.0744331415667,null,null,1019.1430023599917,448.95000000000005,982.1,381.33723427511586,393.47804471000001,814.40000000000009,1333.0723640000001,4039.4082813451087,5372.4806453451074,null,null,1480.4872383699999,824.87000000000012,1346,679.48146713439883,495.9,1327.4,1927.6766400000001,6154.1387055043979,8081.8153455043976,null,null,-2114.7304241592919,-2709.334700159292]
[null,null,"A",6.307269239954584,1.8377285674902159E-2,4.1271611823759038,4.6634225466342372,6.343806475904783,4.8997977569406128,3.735024665257209,null,null,2.2010677974459978,1.241935320161569,3.8073333778051062,2.3881224306910465,5.6808128683890882,2.5674067011274384,7.9899559543901404,null,null,70.135374008692779,90.726633491815818,62.531655227206592,76.178736178248499,95.385168923735378,95.177995634739105,89.29999944801304,null,null,-1.2292306717236545,0,0.60947471423196953,4.7325833837483176,5.150049667852568,5.2158513081276139,0,null,null,7960.4042082599999,3093.3,7220.8,2954.9363294765917,1730.5,4099.6000000000004,2863.0006039399996,null,null,80.78236878194889,114.55745964120663,113.11595109632979,80.928500852674077,114.68911016069991,66.448025951827788,233.95434328169796,null,null,0.41646329450179098,3.201034451079471,1.2704070701660444,7.0192406044168809,2.5033450150208014,2.2499588116729483,-1.5183152173912904,null,null,2.2850000000000001,3.22,2.79,4.28,3.8423504726768072,2.4,2.16,null,null,10.425186193363608,5.6905769407441467,9.0301499732190695,14.82521503293296,12.955078709454712,8.9706581368854632,2.5111820652174051,null,null,11.02,5.71,6.1400000000000006,8.6,9.3830128967005439,6.12,6.34,null,null,5,"n.a.",5.25,7,null,5,"n.a.",null,null,12.822594625943996,5.2257461935270255,34.108020768899962,13.49322823449759,28.070876081166098,8.5420112477957666,18.851597996525136,null,null,951.36211507915971,448.30666666666662,830.08333333333337,349.39458764483078,395.49666405083332,762.44999999999993,1371.09383,3737.0933667748236,5108.1871967748239,null,null,1491.3797618716662,867.38166666666677,1441.875,771.29572128585949,596.15833333333319,1455.3999999999999,2276.343409666667,6623.4904831575259,8899.8338928241919,null,null,-2886.3971163827023,-3791.646696049369,null,null,1001.125653989995,496.52999999999975,888.79999999999984,354.66318511627901,427.16693319000001,832.40000000000009,1263.676866,4000.6857722962723,5264.3626382962739,null,null,1605.781479110005,959.30999999999949,1610.1,795.23389025989491,619.20000000000005,1368.6,2188.5362319999995,6958.2253693698985,9146.7616013698971,null,null,-2957.5395970736245,-3882.3989630736232]
[null,null,"M",5.2840368710750312,0.14742467520500929,4.2703304864463369,4.8197650870797917,7.7284868220783665,4.9866347128767732,3.7192982456140355,null,null,2.3778299147304476,0.49929753198722215,3.6811796185456549,2.1240909519231836,5.553480891529226,2.9800787136861424,7.7935346765294833,null,null,70.263733674011618,91.021958229915398,62.416192320109523,76.416624385788822,95.102200979226964,95.621438359467035,89.095827520773682,null,null,-1.1477411477411512,0,5.8290805494003929E-2,4.7606760599589801,5.3455018972351782,5.3115918630933283,0,null,null,7885.1966123700004,3058.7,7252.9,2839.7668864127813,1727,4067.4,2770.37502614,null,null,77.691798084357998,116.41023962538031,110.8384576929452,80.424071827956197,116.54574083664251,66.75890985335559,231.38414623298104,null,null,1.2974076250178515,3.1778903302971786,1.1217663817663874,6.9740996908809869,1.1432051024636158,0.72710711150130702,-1.5130243572395135,null,null,2.0499999999999998,3.33,2.89,4.32,3.4490119720693002,1.9221571562034878,2.15,null,null,10.928497295132065,5.5843426258165456,8.9379878917378974,14.692109737248837,12.086720439459887,7.7440064153845327,2.50744248985115,null,null,10.84,5.74,6.09,8.59,8.41823119777027,6.7064413023315241,6.32,null,null,5,"n.a.",5.25,7,null,4.25,"n.a.",null,null,13.616453016724407,5.684515599356188,32.168513704561086,12.863888297372149,26.018404833293161,11.010717208040631,15.66496267460391,null,null,947.7950062466598,453.46083333333326,837.90833333333319,344.18697943114171,395.61720850833336,771.76666666666654,1362.1340636666669,3750.7350275194681,5112.8690911861349,null,null,1488.8459558483337,862.80333333333328,1443.7083333333333,768.55949454657332,588.62499999999989,1446.8666666666666,2250.3972938333336,6599.4087837282414,8849.8060775615741,null,null,-2848.6737562087724,-3736.9369863754387,null,null,1033.1592927199954,523.0300000000002,965.29999999999973,353.13768682573095,393.64394728000002,912.4,1415.2201380000001,4180.6709268257273,5595.8910648257297,null,null,1487.5679764100048,934.80000000000018,1596.1999999999998,784.51932731856641,596.39999999999986,1410.3,2181.6336790000005,6809.7873037285717,8991.420982728574,null,null,-2629.1163769028462,-3395.529917902848]
[null,null,"J",5.1379035832886322,0.89864739670187033,4.7936949466852123,5.2652895909274893,8.2852699778671468,4.8013245033112568,4.1432584269662938,null,null,2.6281853329146911,0.35537462267496078,3.539017027882887,1.9745239863750412,5.458203064292344,3.8207284329927158,7.6929322453618969,null,null,70.381989705240557,91.056077274674507,62.411716627770872,76.57539449385628,95.724542186929156,96.67458504350634,89.008520131312451,null,null,-0.29265650453334202,0,-0.40335907124053261,4.7487422242585495,5.3709004596895884,6.1363764354134487,0,null,null,7877.81888385,2887.6,7070.9,2915.737988576333,1705,3841.4,2790.4651858599996,null,null,77.427497617368275,111.86251710807733,108.52804007925457,78.795258896750354,115.82504135130822,65.408033753520229,228.66128058846354,null,null,1.3906463410600696,2.5187182076944277,0.63582551760750161,6.3408464794151707,-7.4077558146578171E-3,-0.12530805687203658,-1.9043560350640607,null,null,1.97,3.44,2.89,4.28,3.3319376986991398,1.98,2.16,null,null,11.149258268445401,4.56037094848958,8.4225535303486083,14.159188149288202,10.025850105218534,7.1742180094786745,2.0613351314902206,null,null,10.72,5.5,6.09,8.5299999999999994,8.2373225753929091,6.73,6.29,null,null,4,"n.a.",5.25,7,null,4.25,"n.a.",null,null,13.053926246137259,6.7438367798653864,31.548010640737758,12.842162374245625,24.664378549513199,12.819155045584573,14.387020860572042,null,null,948.39523927999323,458.75333333333327,835.95833333333337,338.78549366637873,395.74273578666674,775.54999999999984,1351.2846897500001,3753.1851353997049,5104.4698251497057,null,null,1487.1181843149996,885.3183333333335,1438.0833333333333,764.05027446213535,590.36666666666656,1434.4833333333333,2246.613388416667,6599.4201254438012,8846.033513860466,null,null,-2846.2349900440963,-3741.563688710763,null,null,962.47991521999302,455.82999999999993,807.99999999999977,319.99107378284498,390.82317710999996,774.90000000000009,1133.61535,3712.0241661128384,4845.6395161128348,null,null,1388.9377574799896,956.60000000000036,1382.5000000000002,687.55106432674484,606.60000000000014,1402.7999999999997,2079.4782169999999,6424.9888218067354,8504.4670388067316,null,null,-2712.9646556938969,-3658.8275226938931]
[null,null,"J",5.8141562841761356,1.0872595483691123,4.7399057562598133,5.6252529340348065,7.6558827286991598,5.6682027649769635,4.1316526610644129,null,null,2.7921964744882088,1.2905371996378783,3.4210631549578743,1.8641451489326049,5.2508125400387193,4.870447081735211,7.8404457184383771,null,null,70.134364266660583,91.200814643943829,62.289477374664187,76.568329822451403,96.623847239226848,97.145534981884254,88.804063809989103,null,null,-0.44044398734029599,0,-1.8818119672992493E-2,4.7182492558651949,5.173394968447969,7.2337496513624329,0,null,null,7723.7136800400003,2864.6,6727.1,2779.6456492389716,1711.1,3453.8,2734.8101442900002,null,null,75.732017445787662,107.52248246838528,100.81528564746709,78.072214170492956,110.75783759433936,62.665455584936048,231.42975789090184,null,null,0.69541141317713484,2.2285107556536112,0.67795959774171166,5.9405747126436763,1.6018149633610581,-0.98251199302224634,-1.9798520511096047,null,null,1.95,3.34,2.9,4.26,3.53,1.8,2.0699999999999998,null,null,10.28770072189368,4.6917291781577486,8.4782339449541304,13.760674329501914,12.651012340626561,6.7965547317924058,2.0727101546738527,null,null,10.65,5.83,6.08,8.5,8.57,6.3,6.29,null,null,4,"n.a.",5.25,7,null,4.25,"n.a.",null,null,12.393023105225831,6.6146405531721575,30.741721841220084,13.483389296978142,23.05294918698193,13.846244309921673,14.568723072189972,null,null,951.57139153332639,455.96083333333337,839.65,332.53107450996066,395.39421414750001,781.14999999999975,1369.0313333333336,3756.2575135241204,5125.2888468574538,null,null,1496.1863176566656,880.15083333333348,1446.958333333333,768.55643913010954,593.52499999999998,1425.2833333333331,2240.1511520833337,6610.6602567867749,8850.8114088701095,null,null,-2854.4027432626553,-3725.5225620126562,null,null,949.37014873999033,491.2800000000002,827.79999999999973,308.36098585298305,410.80395093000004,852.80000000000007,1527.3011940000001,3840.4150855229709,5367.7162795229742,null,null,1536.8211221100003,965.05000000000018,1532.2999999999997,804.49349927568892,622.10000000000014,1449.9,2456.997394,6910.6646213856875,9367.6620153856929,null,null,-3070.2495358627202,-3999.9457358627224]
[null,null,"A",5.3070005331345174,0.99257884972171373,4.4150110375275915,5.3901850362027375,7.9357436536217438,5.3010948905109512,3.9024390243902451,null,null,2.8851528759457441,2.0777899054963771,3.2796415330634812,1.742133222209824,4.7663179143268026,5.8364323902469133,8.2023871719647943,null,null,70.196687965204333,91.235038945273203,62.891413643378812,76.378605009812176,96.642912911905654,97.687773793096795,88.672362155493389,null,null,-0.17415311761504193,0,0.18094465168568796,4.292082778285609,5.0308003598337763,8.3329711154690802,0,null,null,7719.44312145,2855.7,6745.8,2655.8394964333825,1746.8,3392.6,2892.9286542099999,null,null,74.734311830849038,106.5124113422272,101.98904422521086,74.773042463771461,112.64170145244994,67.590781539782824,235.00448915984103,null,null,1.1803578580239591,2.3045467070818337,1.0103805496828773,6.0345419847328223,0.79705031659961978,-5.8019235768132955E-2,-1.7636150234741796,null,null,1.95,3.32,2.89,4.26,3.3927653005273783,2.06,2.0699999999999998,null,null,9.9072230735588285,4.9780104712041817,8.8157716701902764,14.128274809160303,12.002240520174732,7.2163590676717764,2.3363849765258204,null,null,10.28,6.02,6.0699999999999994,8.5299999999999994,9,6.54,6.33,null,null,4,"n.a.",5.25,7,null,6.25,"n.a.",null,null,12.790948493496757,7.3547539969954556,13.803025521758228,13.433317439676596,22.13501016312518,14.967281049158165,13.765231685726764,null,null,954.57556837499305,458.34416666666658,837.52499999999998,322.58531189050899,398.03842013500002,786.21666666666658,1343.8384170833335,3757.2851337338348,5101.1235508171685,null,null,1490.6308708083316,884.71500000000003,1442.5833333333333,762.30741861478145,597.76666666666677,1412.9999999999998,2211.2395205000007,6591.0032894231144,8802.2428099231165,null,null,-2833.7181556892792,-3701.1192591059457,null,null,951.05228632999388,481.38999999999987,804.39999999999964,287.21256196657896,436.90156343000001,794.30000000000007,1277.2831799999999,3755.256411726572,5032.5395917265705,null,null,1525.3824573899974,905.64999999999964,1387.1999999999994,767.05113136606542,644.90000000000009,1424.2000000000003,2217.5236569999988,6654.3835887560708,8871.9072457560687,null,null,-2899.1271770294879,-3839.3676540294873]
[null,null,"S",5.3718385431013242,0.75757575757576445,4.210526315789469,4.9520766773162954,7.3518468085529021,5.1309944701296315,3.8997214484679681,null,null,2.9347618606255477,2.8392089843437973,3.1111699388268774,1.7244891242033127,4.0885915330931137,6.4266565152646411,8.5253640582493091,null,null,70.467971772172206,91.182014788917769,63.112420962465237,76.481866012557646,97.07992773887257,97.888927328432459,88.71598751273801,null,null,0.50816962174181002,0,-0.39333775539943705,4.2092509661377484,5.1472357570324849,8.6956632640047395,0,null,null,7617.35809264,2889,6583.6,2561.1840444518798,1731.7,3343.8,2425.49320433,null,null,72.076200277111312,106.20507468359968,101.48287811173591,73.398923906610648,111.98363388794186,65.34049423502222,192.60210367374592,null,null,1.1180989832166079,2.6821052631578879,1.2373737373737419,6.3151902587519011,1.9995593821264486,1.7302276450806275,-1.7802949061662214,null,null,1.9650000000000001,3.46,2.92,4.22,3.7918328285247744,1.61,2.0499999999999998,null,null,9.9724571579084067,5.0938345864661585,9.038888888888895,14.461765601217653,13.472204834616125,8.4837069931878961,2.3101876675603199,null,null,10.31,5.89,6.09,8.5500000000000007,8.4371588097991239,6.33,6.3,null,null,4,"n.a.",5.25,7,null,6.25,"n.a.",null,null,12.396638561788809,7.0611122144784932,12.948007650078486,12.966578355250192,21.916701226877432,16.022003524533758,12.231295282375655,null,null,960.17756597916002,459.73166666666674,833.07499999999982,320.95641491749387,399.18699330833334,785.50833333333333,1373.5021268333333,3758.6359742049863,5132.1381010383202,null,null,1506.943693496665,889.60083333333341,1458.625,758.77058631297348,595.80833333333351,1406.7,2192.1532306666672,6616.4484464763054,8808.6016771429713,null,null,-2857.8124722713196,-3676.463576104652,null,null,974.4681237199984,426.59000000000015,731.7999999999995,289.95675158381891,399.96910287000003,730.5,1634.3786709999999,3553.2839781738185,5187.6626491738134,null,null,1500.6206973900016,848.68000000000029,1473.8000000000006,733.25784338830363,560.40000000000032,1375.4,2235.7307730000002,6492.1585407782986,8727.889313778287,null,null,-2938.8745626044911,-3540.2266646044882]
[null,null,"O",4.1061599231433501,0.53540108926428354,4.1544655929721745,4.6123260437375837,6.8305985700632972,4.739079316270244,3.8942976356050076,null,null,2.9462955828809361,2.9993060886063851,2.9875673486664507,1.8928948008471174,3.475218859783352,6.6596297685192969,8.5445934651967992,null,null,70.659750881014659,91.072455389163053,63.097436213722652,76.21883247092893,97.341656729771216,97.370901069466953,88.369061528184304,null,null,0.31655064613806655,0,1.0959228311530642,3.8486807564108596,5.4901831566368777,7.6358858992145233,0,null,null,7441.1258433399998,2847.7,6657.8,2499.9386394088324,1749.2,3648.2,2677.7236857100006,null,null,70.565282784660454,105.58393175474659,103.06835281079569,73.8593629860585,110.85737377179802,65.732115796516183,215.9522940385815,null,null,2.3474500238861378,2.9289174547791768,1.2630609734668843,6.5457620676548762,2.6160016062897684,2.7505690354891557,-1.7077911646586352,null,null,1.9550000000000001,3.48,2.92,4.18,3.79075888533814,1.57,2.12,null,null,11.520778486843556,5.226615554127263,9.1263820066772183,14.948213606993528,15.235752108097826,9.5388662464381238,2.286653279785809,null,null,10.56,5.79,6.07,8.6,8.8000000000000007,7.06,6.27,null,null,4,"n.a.",5,7,null,6.25,"n.a.",null,null,12.248832748387661,7.4624841907608763,12.901375372748024,14.253800763250467,22.480960046968335,15.121675909007969,11.883545944689832,null,null,968.23796949249379,460.36166666666662,835.95833333333303,320.4087637134383,399.72029064499998,791.58333333333337,1370.0661808333334,3776.2703571842653,5146.3365380175992,null,null,1506.4297822583333,893.8950000000001,1464.7250000000001,757.63866712968229,594.14166666666665,1412.6666666666667,2169.5671064166663,6629.4967827213486,8799.0638891380149,null,null,-2853.2264255370847,-3652.7273511204171,null,null,1016.3347933399982,452.55000000000018,767.09999999999945,269.319031891333,442.41385540000005,829.9,1594.8113669999998,3777.6176806313379,5372.4290476313399,null,null,1610.0182660000046,915.08000000000084,1604.9000000000003,797.66830008050692,637.29999999999961,1590.9,2414.210865,7155.8665660805127,9570.0774310805136,null,null,-3378.2488854491821,-4197.648383449181]
[null,null,"N",3.4431410651304986,0.75799593270474497,4.6307312162533201,4.7240968638348573,6.2944611064371863,4.1430754021748895,3.8194444444444455,null,null,2.9240591671570297,2.6419424336814772,2.9716210504239253,2.205158563762704,3.1387475086429792,6.6245803315172465,8.174483904136661,null,null,70.343580807669994,90.811402948027236,62.178932360339786,75.932039639599765,96.954174364708663,97.163672055439761,88.128362423854355,null,null,-0.17090271691501532,0,0.29295880759910992,3.5359046398111702,5.2654569485915896,6.3239473651262683,0,null,null,7398.0345456100004,2747.7,6957.6,2383.4106976996054,1754.9,3542,3148.2979409499999,null,null,68.239359648146078,104.22988917347446,107.94972485796843,69.536208082678669,110.44094342326775,64.374015176560718,266.77768268683968,null,null,3.003446045499401,2.9099467889908324,0.83079681623370694,6.3747536012130386,2.8671441521711718,2.9065058681394551,-1.608026755852844,null,null,1.855,3.69,2.93,4.16,3.4646361978997793,1.69,2.15,null,null,12.245238107394981,4.7956532110091814,8.6487676025540061,14.815981804397266,13.391560530559151,10.079330341732827,2.4374581939799316,null,null,10.47,5.59,6.07,8.5299999999999994,8.5,5.68,6.35,null,null,4,"n.a.",5,7,null,6.25,"n.a.",null,null,13.208663820386501,8.0714250519637645,11.953187365533546,13.735545684195017,21.874068722022024,15.238444749241165,-4.3446684991081614,null,null,968.96319880832743,459.26499999999993,835.51666666666642,323.67159110031918,400.17910077833335,781.54166666666663,1341.7389346666666,3769.1372240203127,5110.8761586869796,null,null,1503.403291557499,899.43916666666689,1465.7583333333332,761.39202402219507,595.9,1407.6333333333332,2149.2692059999995,6633.526148913028,8782.795354913027,null,null,-2864.3889248927153,-3671.9191962260484,null,null,991.88578880999739,403.59999999999945,803,288.85412457257007,403.86166766000002,755.8,1369.2466300000001,3647.0015810425612,5016.2482110425626,null,null,1515.0700888600047,927.39999999999964,1443.5000000000009,807.00860127015039,608.99999999999977,1415.5,2011.2317300000004,6717.4786901301559,8728.71042013017,null,null,-3070.4771090875838,-3712.4622090875855]
[null,null,"D",3.6795406730651412,0.78609081660964453,4.3874021481886105,4.9167327517843118,5.6748063186391358,3.8760382245244291,3.7370242214532876,null,null,3.0046721396670648,2.7631006393239526,3.1059705293542637,2.5531321565149612,3.2261683408594344,6.4297371147962012,7.4892981973844375,null,null,69.971448161180689,90.820274556076228,61.703765224472185,75.856373240073424,96.00082720387006,97.123886859393721,87.849935516781244,null,null,-0.16692475400134169,0,-0.39270705044374349,3.3478630343798441,4.9133741864135017,6.0601006379489926,0,null,null,7330.8633171600004,2720.7,7272.6,3055.9363093790512,1840,4386.5041908662597,2748.6520483199997,null,null,67.018715700381037,102.02968074801515,99.520485668955246,82.706719369155394,112.84486146522967,73.433376910943338,232.01845812774121,null,null,2.720362482499604,2.8316498440080666,1.0275165678409421,6.1222524565381571,2.8634456795500021,3.3250803886166254,-1.5684122748499005,null,null,1.8599999999999999,3.64,2.94,4.18,3.08,1.79,2.11,null,null,12.018243180446047,5.0045687282070022,8.9211893965817861,14.643295540438384,12.652400166572139,9.8039566675264354,2.4802868579052695,null,null,10.53,5.83,6.06,8.48,8.0299999999999994,7.17,6.31,null,null,3.75,"n.a.",5,7,null,6.25,"n.a.",null,null,13.086229132800087,7.946945203386746,10.166199221924632,13.599401069967175,20.247758493291013,15.238610543426368,-8.6862357311441318,null,null,969.59492761499439,459.94166666666666,835.68333333333305,327.44879043828752,399.5332200758333,785.36666666666679,1313.669114,3777.568604795782,5091.2377187957809,null,null,1496.8095505191657,895.62833333333344,1459.6250000000002,762.68996295340912,593.22500000000002,1400.1000000000001,2143.3555729999994,6608.0778468059079,8751.4334198059078,null,null,-2830.5092420101269,-3660.1957010101264,null,null,888.2552155999947,426.3100000000004,825.70000000000027,338.54368906562013,344.76179401000002,730.7,858.81192800000008,3554.2706986756166,4413.0826266756048,null,null,1394.0680475199924,789.59000000000015,1335.9000000000005,762.6916486145692,602.69999999999982,1388.1,1752.4022910000003,6273.0496961345634,8025.4519871345547,null,null,-2718.7789974589541,-3612.3693604589498]
[null,2014,"E",3.1040330797733393,0.84722350124320989,4.1394927536231823,5.9984214680347341,5.1922326714335245,2.8223672605397803,3.3723331039228013,null,null,3.2277882337113302,3.2346205092560982,3.4080123485589553,2.8275750476756403,3.7643696113074387,6.3233717500178974,5.7596706540313747,null,null,70.120651941798499,90.716966673260643,61.674020370437383,75.123337236668647,96.301763796641467,97.850764460556277,88.055888383463412,null,null,0.21653281790923695,0,-0.45172491808195159,3.1238670923439034,4.9340717145808313,5.6393497569968067,0,null,null,7258.3436738500004,2751.3,7164.6,2925.7112050424298,1874.4,3753.8264529553708,2346.1767065199997,null,null,68.699381693964042,102.76889195016234,99.602853777760842,79.974841100943195,112.12883509730503,69.099456168666521,194.38421274223074,null,null,3.3422231891755909,2.6205743767692438,1.8441680438375285,4.8506180193596373,3.8243172150106512,4.0435100360267615,-1.1534354194406338,null,null,1.875,3.49,2.94,4.17,3.6302273824629938,1.46,2.1800000000000002,null,null,12.944175414167034,4.9508318874988575,9.2573019048447485,13.728108711839159,14.917278153774664,11.561329559101045,2.8224833555260815,null,null,10.07,5.84,6.06,8.51,8.8520728691260526,8.09,6.29,null,null,3.75,"n.a.",5,7,null,6.25,"n.a.",null,null,13.560347534824114,7.6264986567358362,10.817445566034278,13.5271897275816,19.762868220964357,12.104848584044836,10.917251818061136,null,null,964.87548666416126,453.76416666666665,836.2833333333333,324.24326124724104,402.77096771499993,790.0916666666667,1299.0811794166668,3772.0288822930688,5071.1100617097336,null,null,1493.0538260341661,896.51250000000016,1466.4833333333336,752.09333278555414,597.4666666666667,1404.7916666666667,2124.3110816666663,6610.4013254863867,8734.7124071530543,null,null,-2838.3724431933188,-3663.602345443318,null,null,854.92168000999231,404.7,835.4,341.1,433.9,733.60000000000014,921.51920499999994,3603.6216800099928,4525.1408850099924,null,null,1517.826006589999,895.84,1547.8999999999999,680.2635423840469,604.09999999999991,1309.7,1967.6846409999971,6555.6295489740451,8523.3141899740422,null,null,-2952.0078689640536,-3998.1733049640507]
[null,null,"F",2.7396626608914247,0.61439706556625562,3.5040431266846408,5.7399453338539583,5.2528405814158781,2.8395604395604428,3.3538672142368378,null,null,3.3103108443942144,3.2530359756689644,3.8155093353792151,2.992881675533785,4.5373479838307853,6.4727873757503618,5.0936993907611781,null,null,73.063799447257608,90.878158764445686,61.093749292061254,74.959516131627268,96.613114771926632,98.385302031330085,87.872146276113995,null,null,4.543432761484679,0,-0.88464885339885801,2.953713518373644,5.012456697821956,5.713179974292391,0,null,null,7275.1072810599999,2824.6,7163.9,3006.1140247603885,1816.2,3449.5470622487833,2140.5441688699998,null,null,72.235924194068375,102.44079352990244,101.45375757065314,79.247365042204592,106.56142995792506,67.032893930253607,173.62127295780755,null,null,3.6600639301951268,2.858043200874953,2.4790885416666621,5.2014918759231961,4.0954227280460387,4.035839459736704,-1.1164238410596157,null,null,1.9650000000000001,3.49,2.95,4.1100000000000003,3.3233665434587873,1.66,2.2000000000000002,null,null,13.237669836984987,5.5514947138169868,9.9570572916666613,13.826425406203846,13.540095509043965,12.023325624641254,2.6376688741721721,null,null,10.15,6.2,6.07,8.4700000000000006,8.6497021245682202,7.34,6.08,null,null,3.75,"n.a.",5,7,null,6.25,"n.a.",null,null,16.916526704494128,7.5105083306802989,10.418699503741834,13.774664959385397,21.50804531009738,12.232219145772749,11.149579926724385,null,null,967.5681033316614,452.17750000000001,837.09166666666658,321.7313604110729,406.5603363825,795.7166666666667,1272.0191094166669,3780.8456334585676,5052.8647428752329,null,null,1495.5699071691668,896.47583333333341,1468.0500000000002,749.84001069507678,595.22499999999991,1387.4916666666668,2100.9521643333323,6592.652417864243,8693.6045821975749,null,null,-2811.8067844056764,-3640.7398393223425,null,null,968.62133913999537,415.36999999999995,805.69999999999993,328.3,401,786.90000000000009,935.29241999999988,3705.8913391399938,4641.1837591399944,null,null,1384.2577487999972,834.84,1356.3000000000002,698.8598129219846,544.09999999999991,1187.0999999999999,1778.3198529999988,6005.4575617219807,7783.7774147219807,null,null,-2299.5662225819865,-3142.5936555819853]
[null,null,"M",3.2591887870732568,0.4108088369545268,3.2459983904140168,5.7864077669902825,5.1012817348377988,2.9865125240847754,3.3772324471711217,null,null,3.2565085848981297,2.9520069709183447,4.2295418704619721,2.9879900602712275,5.1817414960101713,6.7133839245012306,4.7022303977925883,null,null,76.358253391973321,91.238896588754812,61.118318972984447,75.204221586282259,97.550726318980182,98.570860087453042,88.079379796708338,null,null,9.8271340570615955,0,-1.0295711509725645,2.8690570907294251,5.1188877430416317,5.181599953160684,0,null,null,6785.6091915899997,2801.1,7110.7,3069.0782040609893,1858.9,3584.8739572163063,2070.0241558499997,null,null,68.381360111903277,102.6564382822647,100.60894711659618,77.295660290568208,108.53483621494691,68.206550413915195,170.8864051814931,null,null,3.2353645723764344,3.1163887626147937,2.1831370171488005,5.0796622613803315,3.7135799714422419,4.3146304957904613,-1.1387734216745673,null,null,1.9750000000000001,3.54,2.92,4.1100000000000003,3.2777717216382856,1.41,2.2000000000000002,null,null,12.968154571929745,5.5364469497227136,10.222189502858139,14.022209985315721,14.919247437416834,10.735708414176427,2.5854508672349521,null,null,10.35,5.97,6.08,8.42,7.8324688408574854,5.94,6.05,null,null,4.75,"n.a.",4.75,7,null,6.25,"n.a.",null,null,18.457448266827448,8.2395672172887338,10.536280308526313,13.426222144065637,19.868610788388153,13.535265897415361,11.335766930985635,null,null,970.09537779332834,454.4883333333334,841.60833333333312,319.8532575548133,413.1788326566666,799.44166666666672,1241.7298379166668,3798.6658013381416,5040.3956392548071,null,null,1507.5623495675,902.32333333333338,1478.8416666666669,759.12323612288571,601.44999999999993,1400.1333333333332,2085.7839469166661,6649.4339190237197,8735.2178659403853,null,null,-2850.7681176855785,-3694.8222266855778,null,null,1049.4702958999947,476.68000000000006,1036.3,358.8,472.9,859.09999999999991,969.60110599999985,4253.2502958999958,5222.8514018999958,null,null,1624.3965471500019,895.04000000000019,1475.4999999999998,790.88017226810598,570.59999999999991,1479.1000000000001,1745.6580310000031,6835.5167194181086,8581.1747504181112,null,null,-2582.2664235181137,-3358.323348518119]
[null,null,"A",3.6792927951940326,0.56959118052366065,3.2672737011248087,5.9666795815575258,4.9007181576330803,3.4878625887301764,3.5291440217391536,null,null,3.2470187968601398,2.8372721463293797,4.5659717975645178,2.8455948092225256,5.3862835499191384,6.8501344409749461,4.5856522070595522,null,null,75.483796002150925,91.974516982954938,61.359528934706937,75.309221673635363,97.438289941124808,98.46521624018223,87.940359597188859,null,null,9.4483545877012833,0,-0.60938005889516833,2.7505884383069859,5.1060844369380973,5.0113634425993858,0,null,null,7775.8436125999997,2841.1,7214.9,3161.2609550678944,1916,5161.981456020425,2258.3106731999997,null,null,78.503087337660361,101.69179700726671,103.56388966180276,78.73674893022816,112.58873414912513,96.154288753213351,178.74878048472891,null,null,2.9135106222335021,3.0629624554672468,2.1620850622406547,4.7876563071298079,4.4220102821174825,3.7802862223727631,-1.3224720774776804,null,null,1.97,3.65,2.88,4.0599999999999996,3.987221648857421,1.53,2.16,null,null,12.770830946125034,5.3897095094546401,10.209164937759326,13.799923217550287,15.76619501875331,11.153131509865354,2.4252648874732454,null,null,10.29,5.99,6.06,8.4499999999999993,8.6483290360719263,5.94,6.04,null,null,4.75,"n.a.",4.75,7,null,6.25,"n.a.",null,null,18.532813296251582,8.7584087997966584,10.753875706339301,13.897785791389673,21.170150134620492,14.077410651755006,11.085122456640949,null,null,968.9786256258285,448.44666666666672,845.84166666666658,320.4979921284567,412.43158822416666,795.97500000000002,1247.68283675,3792.1715393117847,5039.8543760617831,null,null,1498.0023230216657,899.27916666666681,1471.4416666666668,757.13215062150221,597.45833333333337,1414.4250000000002,2091.4320843333326,6637.7386403098353,8729.170724643167,null,null,-2845.5671009980506,-3689.3163485813834,null,null,987.72462797999742,424.03,939.6,362.4,418.20000000000005,790.8,1335.112852,3922.7546279799972,5257.8674799799956,null,null,1491.0611605599952,922.77999999999975,1521.2999999999997,771.34086424329325,571.29999999999995,1540.1,2256.3138809999946,6817.8820248032862,9074.1959058032771,null,null,-2895.1273968232908,-3816.3284258232852]
[null,null,"M",4.2102988382663771,0.94764927776244468,3.2229344729344773,6.2210200927356896,4.8473220695518888,3.6962247585601347,3.2476319350473597,null,null,3.1217952387784398,2.4440979394546605,4.8025822912538532,2.598584470243376,5.1323157094488021,6.802117939253546,4.6329996966939753,null,null,76.131967416796272,92.085449717232805,61.340055174817735,75.356244602545857,97.397081044019174,98.937827547799841,88.105497621424149,null,null,10.561881757533905,0,-0.66963223596980437,2.5653854986426459,5.1408943522645183,5.0579674525711456,0,null,null,7704.4670957600001,2816.4,7174.4,3211.5809867864473,1931.6,4598.0900066988679,2247.5061663799997,null,null,77.674198193046337,104.27291632805613,106.8620823697711,82.447734470870998,114.09286313854292,84.341376832753795,179.37036534540061,null,null,2.5330521015961898,2.7562313160772862,2.2156563739865405,4.4426045834849166,3.886932626571888,3.417458301583276,-1.082477064220182,null,null,2.0750000000000002,3.73,2.88,4.0599999999999996,3.582997096907107,1.41,2.13,null,null,11.956304994789216,4.8662358731316067,10.275880627910984,13.621578755911258,13.869573363027602,9.5218271103208938,2.7142201834862401,null,null,9.93,5.86,6.06,8.48,8.7371739596041031,6.2,6.05,null,null,5.25,"n.a.",4.75,7,null,6.25,"n.a.",null,null,18.440227565709844,8.5660539130192106,11.171519390356387,13.791374612960695,22.453124904006149,13.485198834043665,11.262447187065284,null,null,970.7326444158283,445.71499999999997,844.27499999999975,325.43651822631244,416.51125928416667,794.23333333333346,1221.998947,3796.9037552596405,5018.9027022596383,null,null,1503.3453885066654,902.4725000000002,1477.4416666666668,764.43722849958738,600.87500000000011,1428.1083333333336,2075.2130077499992,6676.6801170062536,8751.8931247562523,null,null,-2879.776361746613,-3732.9904224966117,null,null,1054.2075181999944,490.24999999999977,946.5,412.4,442.6,891.50000000000011,1107.013461,4237.4575181999935,5344.4709791999921,null,null,1551.6847622299961,973.11999999999989,1668.1999999999998,872.18026185558938,637.40000000000009,1574.5,1987.00476,7277.0850240855907,9264.0897840855905,null,null,-3039.6275058855899,-3919.6188048855911]
[null,null,"J",4.5891347708327457,1.138554769993581,3.1321889930985725,6.2331666025394563,6.0528388698858784,3.677374056520974,3.3604180714767362,null,null,2.9978217472273321,2.2221250085580602,4.8323251113102508,2.2756424596475444,4.6974192207331447,6.5769707123047514,4.7383896260555076,null,null,75.849523659172362,91.89677492247047,61.683123165816191,75.525300937271453,96.964738317247935,99.538749968583232,87.899296669649502,null,null,10.425610983858007,0,-0.14119009670625096,2.6491297558054452,5.2457950663664006,4.5817194290758314,0,null,null,7494.0057608999996,2660.2,7096.4,3172.9837429338422,1944.4,4666.5868257044622,2342.8661294499998,null,null,75.033481572145192,103.96397332938349,101.6258509039103,79.877551713247001,113.44811748732486,80.146515619513281,189.30646638883479,null,null,2.2572757960583707,2.6908088969586843,2.2958991077556568,4.3647700108656098,2.8899220337058344,2.7900262422754611,-1.1807402623243857,null,null,2.1550000000000002,3.86,2.87,4.08,3.2976456399744682,1.67,2.14,null,null,11.512539280919006,4.6979564230594555,10.382608098833211,13.505041651575496,13.651876945653461,8.8376331160585799,2.6214889404273785,null,null,9.86,5.89,6.05,8.4700000000000006,8.7552409420964779,6.09,6.07,null,null,5.25,"n.a.",4.5,7,null,6.25,"n.a.",null,null,18.019801212731366,7.7314307931637627,10.413653099562614,14.479832233971578,22.307323844993654,12.775932108073151,10.304364312773039,null,null,972.6613579541621,447.03666666666669,851.21666666666658,331.22892874440873,422.40099452500004,800.96666666666681,1236.8452528333335,3825.5112812235707,5062.356534056903,null,null,1500.8286418591661,894.81,1482.4583333333337,772.76285969051276,603.29166666666674,1424.5500000000002,2080.9570379999991,6678.70150154968,8759.6585395496786,null,null,-2853.1902203261093,-3697.3020054927752,null,null,985.62447767999765,471.69000000000005,891.3,389.5,461.5,855.7,1311.7710199999999,4055.3144776799963,5367.0854976800001,null,null,1358.736797710003,864.64999999999964,1442.7,787.45863861784983,635.5999999999998,1360.1,2148.4065799999989,6449.2454363278448,8597.6520163278474,null,null,-2393.9309586478539,-3230.5665186478509]
[null,null,"J",5.1860001486131093,1.8293804008089676,3.4139026111503221,6.5900383141762413,6.9365963772630739,3.4103794156127312,2.1860121049092203,null,null,3.0746411901405213,1.6370262385445695,4.6220268417984673,1.9739061574164989,4.3715068024508597,6.4270546416875503,4.8070083486204087,null,null,73.515779032303783,91.346754958165789,61.045512060455778,75.087157108904009,96.927896323720702,99.38458689629995,88.635744498973963,null,null,8.1035938991446805,0,-0.63110183543209863,2.486249083148226,5.1776131850202454,3.7272386697432802,0,null,null,7338.8224336200001,2697.5,7132.7,3148.2774924910527,1893.3,4538.0680927097028,2241.9406929100001,null,null,73.146186100125064,102.52552971206956,99.02878079806581,82.695540457170907,115.2226013469021,79.006215103559313,178.42977724168071,null,null,1.7245639645924167,1.9155764196082015,1.9785515652989802,3.8840043134435702,2.0332755574637527,2.1367493252361709,-4.5027791927119962E-2,null,null,2.0300000000000002,3.78,2.89,4.07,3.1511898271855556,1.59,2.14,null,null,10.917802595785023,4.2037176130721363,10.110920412863596,13.031200575125814,11.239635954553693,9.5441295546558731,3.8008997661081882,null,null,10.27,6.11,6.06,8.5500000000000007,8.8135420345241116,6.11,6.07,null,null,5.25,"n.a.",4.5,7,null,6.25,"n.a.",null,null,18.675937949737719,7.0339911733140914,10.286092499283539,13.393094543110928,22.748009145778546,14.300843755879233,10.228862725009581,null,null,972.78184377499565,446.88083333333333,861.2833333333333,335.68636640853407,426.70066528083339,801.94166666666672,1226.9944818333333,3845.2747087976968,5072.2691906310292,null,null,1489.3766956983329,892.2700000000001,1489.791666666667,771.80269728644146,603.07499999999993,1430.4583333333337,2058.8183471666657,6676.7743929847757,8735.5927401514418,null,null,-2831.4996841870793,-3663.3235495204112,null,null,950.81597858999521,489.41000000000031,948.6,361.85023782248754,462.4,864.5,1409.091942,4077.5762164124826,5486.6681584124854,null,null,1399.3977681800038,934.57000000000062,1620.3,792.97155042683426,619.50000000000023,1520.8000000000002,2191.3331039999994,6887.5393186068468,9078.8724226068443,null,null,-2809.9631021943587,-3592.204264194359]
[null,null,"A",5.4857470660008785,1.9932029025443203,3.6997885835095161,6.335877862595428,6.7292712327953934,3.1279785113941596,2.0791415157612425,null,null,3.187779048303256,0.51643642107065602,4.391360481885072,1.7522499974449572,4.3562037564118938,6.5223804368222629,4.7986926162531622,null,null,73.307745772971543,90.972415187875512,60.933063870119057,75.154052569014013,96.734516450207792,98.887842834020176,88.342678370815023,null,null,8.3197710015542121,0,-1.208350408477818,2.8824291328873706,5.0450771464176727,2.6502242152466398,0,null,null,7342.8691060199999,2567.3000000000002,7248.1,3153.0439987387831,2018.6,4249.4965935608752,2458.3312767800003,null,null,72.746918649949279,101.77948584173733,98.096372322605291,83.498866388261007,118.94837465577169,76.484728394753589,191.58180734447603,null,null,1.5303043135788073,1.6342237031700275,1.6974108053007111,4.0570710696338761,2.4753059049991029,2.0867484456393885,0.23968088116621777,null,null,1.9950000000000001,3.66,2.9,4.08,3.259807114781601,1.25,2.3238057016331295,null,null,10.223421872453855,3.7422073126801134,9.6819979612640132,13.357788944723611,11.807719486553735,9.8828869097630641,3.9095729303547877,null,null,9.7899999999999991,5.81,6.06,8.59,8.937041737786096,5.88,6.07,null,null,5.25,"n.a.",4.5,7,null,6.25,"n.a.",null,null,18.91234955752925,6.8640168248656819,8.3244703010580743,13.542185943796348,22.724680010827527,13.9890171952622,11.102064261542388,null,null,973.15959110582924,443.07499999999999,867.08333333333337,336.99825188762412,427.52553499500004,805.98333333333323,1217.3039364166668,3853.8250446551206,5071.1289810717863,null,null,1481.8615655233334,880.7791666666667,1496.0833333333337,775.58095279830195,601.32499999999993,1435.6499999999999,2045.4064366666653,6671.280018321635,8716.6864549883012,null,null,-2817.4549736665163,-3645.5574739165154,null,null,955.58525429999463,435.7199999999998,874,302.95518771565958,446.8,842.8,1160.9966349999997,3857.8604420156553,5018.8570770156512,null,null,1435.2008952900021,767.76000000000022,1462.6999999999998,812.39019750839088,623.9000000000002,1486.5,2056.5807309999905,6588.4510927983938,8645.0318237983884,null,null,-2730.5906507827422,-3626.1747467827336]
[null,null,"S",5.2030039783020205,1.696313955620754,3.4519104084321537,6.1263318112633049,6.4946284249925217,2.8283176683625086,2.3458445040212177,null,null,3.3484161791020997,0.10121127791812987,4.3548193500506756,1.6359365372619914,4.6370999336562786,6.8954786277551232,4.8217642938769645,null,null,73.475560204808289,91.147589165765737,60.286515225874204,75.544213918925536,97.118343773585764,99.129903759262447,88.119675864820522,null,null,7.904128485764085,0,-2.7918580057184124,3.1156706459651695,4.7992831161460252,2.4336461435328394,0,null,null,7195.0737996799999,3026.5,7149.2,3028.3087496503927,2001.9,4023.3482828687684,3393.0334561599998,null,null,71.098251798859152,102.43189877907541,96.370820502866295,82.205914054414038,120.46892847759236,75.373227874928801,272.85669528352116,null,null,1.8507038198980987,2.216094130375986,1.9604177279673911,4.1965722481176178,1.8973781389538968,2.8024209643605857,-0.50165283063914934,null,null,1.9950000000000001,3.95,2.91,4.07,3.1332034575731758,1.1200000000000001,1.832423678025253,null,null,10.899875078558203,4.5072292850058657,9.9351375445746246,13.741799928289725,11.072734102998506,9.6001593291404586,3.6485658153243978,null,null,9.98,6.28,6.04,8.6999999999999993,8.6048569535009278,6.2,6.08,null,null,5.25,"n.a.",4.5,7,null,6.25,"n.a.",null,null,18.363441277265569,7.4671974961522336,7.9394048259235239,13.327309509104124,21.880076677301563,13.584334016463263,11.852208644893135,null,null,968.16115743582884,443.7949999999999,879.72500000000002,336.5738594669661,430.4531097558334,815,1195.8912709166666,3873.7081266586283,5069.5993975752945,null,null,1473.7290117908333,880.31916666666666,1501.8000000000002,779.77788766146466,601.54166666666652,1439.4416666666668,2063.7909170833314,6676.6093994522989,8740.4003165356316,null,null,-2802.9012727936702,-3670.8009189603358,null,null,914.48691967999366,435.23,883.49999999999989,284.86404253592264,435.1,838.7,1377.4266849999999,3791.880962215917,5169.3076472159155,null,null,1403.0300525999992,843.15999999999985,1542.4,783.62106174625478,563.00000000000023,1420.9,2456.3445379999989,6556.1111143462476,9012.4556523462525,null,null,-2764.2301521303343,-3843.1480051303297]
[null,null,"O",5.7025699091009443,1.8914700211183566,3.6373220875065901,6.3093880653743692,6.6820460918601778,2.8840341939383505,2.1037483266398893,null,null,3.6372256877703553,0.14264781545442856,4.554952742834093,1.6542898113957225,5.0382367729455302,7.3618590647272013,4.9497690107794972,null,null,73.445934236115193,90.869442623978529,59.411655939831867,75.578223561252074,97.157060274028254,99.310803534763025,87.988761264638498,null,null,8.0718428823876742,0,-4.0140914205450784,3.6901158352918073,4.7365639839323164,3.2159098942010944,0,null,null,7081.9497149600002,2902.3,7097.5,3018.38467049055,2042.1,4214.4045314446339,3416.7129762899995,null,null,69.160187865646989,100.56211251466955,95.225415763414716,83.246838429204644,122.59127385256951,74.256989443886923,264.21301258489774,null,null,1.4166449240417038,2.0693881229161013,1.7876551373346889,3.9701215588130259,1.0499921270427357,3.9811481326059561,9.4268501340609295E-2,null,null,2.0049999999999999,4,2.88,4.07,1.6764860763201166,1.47,2.2000000000000002,null,null,10.385206434115542,4.012632242948543,9.7384587995930811,13.687043260636409,8.9532797952461962,10.308660511959713,3.8943248788866129,null,null,9.77,5.98,6.01,8.73,9.1931244131397474,6.38,6.08,null,null,5.25,"n.a.",4.5,7,null,6.25,"n.a.",null,null,18.657382714563163,6.1754974081871694,7.80548995407917,11.65081502951546,19.675782213652294,15.714664485400176,12.409416808922646,null,null,964.15950445166175,441.67499999999995,889.40833333333342,339.15580486887416,430.09362180583344,818.36666666666667,1191.3496108333334,3882.858931126369,5074.2085419597015,null,null,1456.0698582624993,878.39583333333337,1499.3250000000005,779.03927281914582,607.22499999999991,1438.3666666666668,2066.731110499999,6658.4216310816455,8725.1527415816454,null,null,-2775.5626999552769,-3650.9441996219425,null,null,968.31495752999399,427.10999999999967,883.30000000000007,300.30237671422998,438.1,870.3,1540.3114459999999,3887.4273342442248,5427.7387802442245,null,null,1398.1084236600004,892,1575.2,788.80492197267995,705.50000000000023,1578,2449.4931860000079,6937.6133456326861,9387.1065316326858,null,null,-3050.1860113884577,-3959.3677513884686]
[null,null,"N",5.8861964728978622,1.2844036697247758,3.3761917257062879,6.4063684609552602,7.6707930200482384,2.6751812219537525,1.6391973244147207,null,null,3.8930370246524335,-0.27586371224804562,4.8421476385414985,1.8388315083634834,5.2908816128910692,7.7014628476197737,5.1731071546082825,null,null,72.467358772709687,90.845430201804945,58.794377599832686,75.133683796417344,95.581380185639901,99.411829635939995,87.854857079442596,null,null,7.6594192866525042,0,-3.5265544781100342,3.913497445993293,4.7609481965252307,3.6798473893690682,0,null,null,7252.1965410499997,2766.3,7053.5,3066.9136443693001,1999.9,4208.1044533984232,3929.1359555600002,null,null,68.420754326800733,99.526204465673132,95.275108695118305,83.941997023633391,120.52416540746822,72.018701868038917,298.53350137229751,null,null,1.2407693958963035,2.740398550724632,2.0447728234199181,3.8377698610616404,0.89294637744071947,4.7478063540090689,0.57143571660789294,null,null,1.99,4.0599999999999996,2.91,4.03,1.4779276643903798,1.51,2.2200000000000002,null,null,10.023783905055216,4.5768115942028924,9.9866401556815294,13.451856074100471,9.2056576024198637,11.42907043200537,4.3691831424160181,null,null,9.8699999999999992,5.92,6.02,8.7200000000000006,8.8734313551955513,7.02,6.08,null,null,5.25,"n.a.",4,7,null,6.25,"n.a.",null,null,18.191490178279125,5.351480200029135,8.2248070651267611,11.781050769067036,20.967918216604264,16.456437494943433,31.137047482721659,null,null,949.76055213916152,443.56333333333333,892.42500000000007,337.36793866457577,428.8801495008334,816.52500000000009,1166.542095,3868.521973637904,5035.0640686379029,null,null,1440.0730863341653,873.5383333333333,1508.708333333333,775.23611185568723,611.70833333333337,1438.5916666666665,2055.744708249998,6647.8558648565186,8703.6005731065161,null,null,-2779.3338912186168,-3668.5365044686137,null,null,819.0983610599942,426.26000000000022,839.19999999999993,267.39973012098972,389.29999999999995,733.7,1071.5564400000001,3474.9580911809826,4546.5145311809829,null,null,1323.1088257199947,869.10999999999876,1556.1,761.37066970864726,662.79999999999984,1418.2000000000003,1879.3949029999876,6590.6894954286399,8470.0843984286184,null,null,-3115.7314042476573,-3923.5698672476428]
[null,null,"D",5.127185268704018,0.47715177096714623,2.9473317056156221,5.8201058201058107,6.4796923391486985,1.5819791935345229,1.007019726376557,null,null,4.0556549515288545,-0.53999522638202402,4.9693473445787015,2.1176578306329317,5.2217405972720767,7.8684147304009731,5.4658385093167841,null,null,71.927389848505086,91.072768492843366,58.566256385960855,75.31771303631416,95.296769677992387,99.813894469226696,87.668889325301166,null,null,7.2544773441386061,0,-3.0209670408671845,4.279801850197841,4.9051835323080777,3.6116459582378662,0,null,null,7211.4158651300004,2661.2,7333.4,3516.4834622255066,2153.1999999999998,4650.4486369269598,3969.8091757400002,null,null,67.562552295822115,99.133863870117182,93.108592957703152,85.486224566856862,117.84863909039451,69.917130498146236,295.60101374910232,null,null,1.9717209450450133,3.5956913242009172,2.4407318312722381,4.4319500000000094,1.7307145351728779,6.8595048666948761,1.1711861975812008,null,null,1.9750000000000001,4.09,2.93,4.07,2.3846510474335099,1.53,2.19,null,null,11.303274886004825,5.5662885844748899,10.386542436049471,14.014250000000008,10.574557395533191,12.460892086330931,5.0224036778492396,null,null,9.85,6.07,5.98,8.65,8.7287822913177706,7.04,6.08,null,null,5.25,"n.a.",4,7,null,6.25,"n.a.",null,null,17.71606774605068,4.5892834973283669,8.5450118224117855,11.461296669765119,20.597010544536044,19.50387132761271,38.904317287157419,null,null,941.67862765582856,441.79416666666657,900.29166666666686,339.38115969107946,432.97499999999997,824.9083333333333,1165.4758718333335,3881.0289540135745,5046.5048258469078,null,null,1432.3780676283329,876.18249999999989,1523.4833333333333,775.90356321831939,614.10833333333335,1439.4250000000002,2064.5656675833316,6661.480797513319,8726.0464650966514,null,null,-2780.4518434997444,-3679.5416392497427,null,null,791.27212179999879,405.07999999999902,920.1,362.70234138366413,393.9,831.3,846.0172500000001,3704.354463183663,4550.3717131836675,null,null,1301.7278230500024,821.31999999999971,1513.2,770.70106496615517,631.49999999999966,1398.1,1858.2538030000048,6436.5488880161574,8294.8026910161716,null,null,-2732.1944248324944,-3744.4309778324969]
[null,2015,"E",4.3859265811975288,-0.74879006483426835,2.3223449595546679,3.8346984363365428,5.4492658379268457,1.1580030880082419,0.86970705725709541,null,null,4.2315529346109892,-4.9952285478600193E-2,4.744467007536799,2.4707586110072279,4.7816500298886577,7.7481096606141424,5.3688810546803296,null,null,71.85706923142169,91.319705475708133,58.637468464718182,75.717395869408307,95.708582940875672,100.24830121922479,87.200592385836643,null,null,7.0665265655937812,0,-2.6285482272908345,4.7493919385957337,4.8934605174955434,3.7292540558699918,0,null,null,7323.6687877000004,2672.6,7656,3407.6230623486281,2157.6,4369.8,3957.7766050899995,null,null,68.803001206105165,98.506806943465648,101.11261165666197,84.995025802949101,118.42733582466975,73.67405473804196,312.54423122365955,null,null,2.6958360366962064,4.915597571073703,3.0566686501190055,6.3324704195052162,2.9146797647675968,5.7948918850165274,1.289081708153285,null,null,1.95,4.13,2.94,4.0999999999999996,3.28,1.79,2.17,null,null,11.873318398930811,6.6586493697672351,11.021693301598093,16.319498027967033,11.37982498802463,12.823500381582289,5.3041622691596553,null,null,9.5500000000000007,5.86,5.96,8.68,9.08,7.17,6.22,null,null,5.25,"n.a.",4,7,null,6.25,"n.a.",null,null,16.69701817561662,5.1274362055206302,8.7780408035045276,10.884113643042426,20.518058031041299,18.393849061736823,14.077215555055588,null,null,931.39071035166182,443.54083333333324,903.94166666666672,338.51159638696373,429.51560779874995,821.41666666666663,1180.1143381666668,3868.3170812040421,5048.4314193707096,null,null,1406.2399529108327,872.9649999999998,1507.7333333333336,780.25084998680552,609.16666666666674,1435.125,2076.4710520833319,6611.4808028976395,8687.9518549809709,null,null,-2743.163721693596,-3639.5204356102618,null,null,731.46667235999394,425.66000000000008,879.2,330.6652403506111,392.38729358500007,691.7,1097.180801,3451.0792062956052,4548.2600072956047,null,null,1204.1686299800003,857.23,1358.9,732.4309836058801,544.79999999999995,1258.0999999999999,2110.5492549999999,5955.6296135858811,8066.178868585881,null,null,-2504.550407290275,-3517.9188612902749]
[null,null,"F",3.5270960116658623,-1.0572366022602959,2.4392361111111129,3.6558345642540533,5.5092102810453287,1.0172679090442791,-0.44933774834437845,null,null,4.54170454060701,0.59333752419255359,4.2073073320813048,2.8593451382127868,4.1406208027686091,7.4592301389043394,5.1843698403962559,null,null,72.204101026653603,91.826140834601304,58.72080524689251,76.150926954456821,95.688979956759113,101.12665223622402,88.269588739797712,null,null,2.3346705320820891,0,-1.5148600371581615,5.3298154821087271,4.5262487548145725,3.8580529864342705,0,null,null,7255.1285616499999,2666.7,7625.4,3477.8266616433898,2169.4,4575.7,4053.25072907,null,null,68.418103079881348,99.5268304808056,97.485743074460871,82.879555371271636,114.07312522972923,77.510893599556766,310.08063107940063,null,null,3.4994741792298507,5.2325571112748674,2.9390729599186489,6.4677164232276541,3.4106070133024069,6.3184564610307206,2.6612959556683586,null,null,1.92,4.12,2.9,4.08,3.32043,1.57,2.2000000000000002,null,null,12.762749563073193,7.1629661016949111,10.777866282518429,16.578097613110092,10.708897045445708,14.326988237285269,6.6994408650791879,null,null,9.91,6.03,5.94,8.6,8.9786240588999995,5.14,6.22,null,null,4.75,"n.a.",3.5,6.75,null,6.25,"n.a.",null,null,12.931486659970215,5.1661374272873095,9.1821265877380718,11.243903785476238,20.051230403604549,17.670310205801918,14.027674707531013,null,null,915.38878358749525,448.96083333333326,910.55833333333351,342.87362405160678,428.48122252874992,818.33333333333337,1172.24486475,3864.5961301678522,5036.8409949178522,null,null,1390.3407266833337,870.64333333333309,1502.5249999999999,788.70994940279843,614.30000000000007,1437.4833333333333,2061.6044126666657,6604.0023427527994,8665.6067554194651,null,null,-2739.4062125849468,-3628.7657605016116,null,null,776.59821796999529,480.41000000000008,885.1,380.64433197571651,388.58737675999998,749.9,840.85873900000013,3661.2399267057126,4502.0986657057128,null,null,1193.4670340700052,806.98,1293.8,800.36900591390008,605.70000000000005,1215.4000000000001,1599.9201800000001,5915.7160399839049,7515.6362199839059,null,null,-2254.4761132781932,-3013.5375542781926]
[null,null,"M",3.0463139339173573,-0.80916446949722765,2.425082279577353,3.7444933920705017,5.9242221154388943,0.63780933752870139,0,null,null,4.9959145227227868,1.1780564828401432,3.6085110387931949,3.2096544158786431,3.6325041628633863,7.2753888834378486,4.9449141685882836,null,null,72.05084995658207,91.915457872935036,58.822243921579755,76.300020572429702,96.176344298427253,101.3735475586512,88.014520439534735,null,null,-2.6949220835413348,0,-1.3501499446617302,5.3337170243737706,4.5088243564176915,3.5755371655471748,0,null,null,8341.9202438100001,2617.5,7770.3,3583.9203274996353,2222.1999999999998,4797.8,4741.4129657599997,null,null,77.704080610033898,97.369081829087961,99.138944402531536,82.341474316300094,115.13209560214779,79.411575902641701,368.67019090437026,null,null,3.9338486829909822,5.130680109990835,2.953297818366301,6.0779193205944626,2.4129868650223774,6.460981916511745,2.12,null,null,1.74,4.28,2.92,4.05,3.96,1.56,2.12,null,null,12.852168658683672,7.0562612282309818,10.685778792491108,16.314607218683634,9.3391830865296708,15.016414568193341,6.16,null,null,9.64,6.19,5.94,8.5,8.0500000000000007,6.34,6.16,null,null,4.5,"n.a.",3.5,6.5,null,6.25,"n.a.",null,null,12.058696882003694,4.211575700329151,9.7802627751741866,11.136680269175603,19.978461103056677,16.428780290331812,13.835193778527977,null,null,901.65993863666188,453.33999999999986,907.95000000000016,349.78940505727115,428.31691562624997,815.42500000000007,1185.2906303333334,3856.4812593201823,5041.7718896535171,null,null,1362.7557677400005,868.55583333333323,1507.2416666666668,795.9207733015146,618.6,1436,2082.9344223333319,6589.0740410415156,8672.0084633748465,null,null,-2732.5927817213319,-3630.2365737213299,null,null,884.72415648999436,529.22999999999979,1005,441.78937206797332,470.92831717000001,824.19999999999993,1126.1502929999999,4155.8718457279647,5282.0221387279689,null,null,1293.3770398300014,869.99000000000024,1532.1,877.41005905269992,622.20000000000005,1461.3,2001.6181469999999,6656.3770988827,8657.9952458826992,null,null,-2500.5052531547335,-3375.973107154734]
[null,null,"A",1.8050494903583385,-0.32885722115648069,2.5760719225449424,3.5831809872029297,5.6685386031132463,-4.2340587687354693E-2,0,null,null,5.5223488203165356,1.6429643492632953,3.259486754536419,3.487603785667774,3.4951897401494283,7.3362493999021314,4.7162590662244401,null,null,72.08573123670422,92.093869114362178,59.354099314228911,76.631137820932736,96.487477392807122,101.9280988991564,87.764903237561981,null,null,-2.5835600832160268,0,-0.57808474525879705,5.6121095492427298,4.846601729930569,3.6798886569241422,0,null,null,8444.1724583100004,2739.6,7721.3,3649.1838767120794,2264.4,4623.8,4231.2672330100004,null,null,78.118463224647769,98.429390852275091,102.44089972858576,84.636655173603501,119.82029020613498,77.790152227284921,329.60079964358448,null,null,5.2010686406688595,4.6942947484190256,2.7822551828754514,6.3203494528768047,3.1017418219135195,6.9352770247373741,2.19,null,null,1.7349999999999999,4.3499999999999996,2.93,4.09,3.19,1.33,2.19,null,null,14.002203794920893,6.3999037668408016,10.444860947244237,16.505400635368861,11.535625042838035,15.718996103015924,6.22,null,null,9.48,6.05,5.93,8.52,8.8699999999999992,6.79,6.22,null,null,4,"n.a.",3.5,6.5,null,5.75,"n.a.",null,null,12.056158189717259,3.4435486229064338,9.7132518642700774,10.910652658718734,19.432255953703393,16.096374841323268,13.320524239285092,null,null,887.28054768999516,453.6749999999999,905.86666666666667,353.00349379529763,426.45670497588327,819.45833333333337,1160.2945385,3845.7407464611765,5006.0352849611763,null,null,1347.512769547501,859.98166666666646,1499.675,797.75746751435815,617.05833333333339,1418.7083333333333,2040.5149770833323,6540.6935703951931,8581.2085474785254,null,null,-2694.9528239340161,-3575.1732625173481,null,null,815.17193661999522,428.04999999999995,914.59999999999991,400.96906485631712,395.87747219559998,839.2,1035.15975,3793.8684736719133,4829.0282236719104,null,null,1308.1451822500019,819.88999999999987,1430.5,793.38119479741533,552.79999999999995,1332.6,1747.280538,6237.3163770474202,7984.5969150474193,null,null,-2443.4479033755069,-3155.5686913755071]
[null,null,"M",0.97250322824646762,-0.35545023696682515,2.5530446782818772,3.4921789741724352,5.2210601157111061,0.22860045720091104,0.35085190039319236,null,null,6.0195681709363935,1.6501337831499916,3.3578220100614455,3.7214926586343107,3.8050324273318914,7.5037284645303748,4.540184071309505,null,null,72.770462151684285,92.377031848159731,59.32745299321406,76.688078833362837,96.946202906543164,102.29990972427078,87.785702989494808,null,null,-3.4472465296413595,0,-0.77215478311306174,5.3633576958517493,4.7758024600819589,3.6759460285792924,0,null,null,8309.7627848400007,2798.2,7649.8,3754.532509567844,2340.5,4925.9654378229834,4143.3153343599997,null,null,76.304912098592609,101.25635023363648,97.987587610573243,88.713528243128394,121.24863455208626,78.385439146867171,315.28332358909262,null,null,5.8704068753576095,4.6720570749108203,2.8638402018502873,6.2495746924428737,3.1616020873344888,5.8979168778509923,1.8327179737669983,null,null,1.635,4.3,3,4.0599999999999996,3.63,1.7,2.19,null,null,14.744109827679445,6.4584066587395963,10.391651808242214,17.158611599297,11.75508303341266,14.248826659908774,5.8286980018989656,null,null,9.39,6.08,5.92,8.57,8.49,7.18,6.2,null,null,3.75,"n.a.",3.5,6.5,null,5.25,"n.a.",null,null,11.971831771473251,3.3893603511183867,9.9093286823153548,10.454985662112804,18.83540023820278,17.192363549562661,12.864878066929819,null,null,873.1065198074956,454.42083333333329,910.14166666666654,349.95090461803733,423.73795372421665,813.4,1146.7640900833333,3824.7578781497491,4971.5219682330826,null,null,1322.9926869350013,852.44833333333315,1489.3416666666665,795.17777963534593,619.31666666666661,1409.2583333333332,2013.7485544999993,6488.5354665703462,8502.2840210703471,null,null,-2663.777588420598,-3530.7620528372631,null,null,884.11918360999812,499.20000000000027,997.8,375.76892987287624,409.97498497999999,818.8,944.64807999999994,3985.6630984628737,4930.3111784628745,null,null,1257.4437708800001,882.72000000000025,1544.2000000000003,841.22400730744403,664.5,1461.1,1665.8076890000002,6651.1877781874427,8316.9954671874439,null,null,-2665.5246797245709,-3386.6842887245693]
[null,null,"J",1.0205076673946956,-0.82614616432138965,2.3850377487989025,3.6218761318362906,3.8222189581524764,0.61796326081436048,0,null,null,6.3416342733970215,1.5728379141214559,3.9224806336800198,3.9620206477290405,4.4643186309484024,7.7761763600017488,4.4340471477415839,null,null,73.093556754424142,92.776990212957315,59.068494528112559,76.480684220785122,97.787284035549177,102.36269042217884,88.00809068716859,null,null,-2.7703807407262753,0,-2.0760681852590306,4.8029608255845266,4.573504364222317,3.3446104104256595,0,null,null,8270.9554906800004,2773.4,7717.7,3872.492136512335,2240.3000000000002,4923.9753367940812,4344.7100744299996,null,null,74.862004719832569,100.3662677565313,97.955110481408255,86.947330530246376,120.9037243308001,78.658493115873895,331.66118811947547,null,null,5.7211079913200047,5.1587651043573892,3.032632813809284,5.9718315274379599,4.1885195672343354,5.4781835773178491,2.13,null,null,1.55,4.29,2.99,4,3.21,1.32,2.13,null,null,14.798472787953008,7.1149258513365181,10.51419473772415,16.654903879762319,12.296771525047921,12.802919400975934,6.18,null,null,9.4700000000000006,6.23,5.93,8.5500000000000007,8.39,5.74,6.18,null,null,3.5,"n.a.",3.25,6.5,null,5,"n.a.",null,null,13.277985493728405,2.8970260345655197,10.232592662504004,10.018574725837425,19.511477965660461,16.079326713944852,13.147884218789629,null,null,861.80213313582851,454.96749999999992,911.73333333333323,348.73110304593973,421.59960134088334,812.73333333333323,1120.1775725833334,3811.5670041893186,4931.7445767726504,null,null,1313.9695340500014,855.06916666666655,1489.9499999999998,795.45895443951815,621.27499999999998,1419.9000000000003,1990.0453114166658,6495.6226551561876,8485.6679665728516,null,null,-2684.0556509668691,-3553.9233898002003,null,null,849.9718376199944,478.24999999999955,910.4,374.86238113482904,435.83977140000002,847.7,992.73280999999997,3897.0239901548266,4889.7568001548207,null,null,1250.4589630900059,896.09999999999945,1449.9999999999998,790.83273626791777,659.1,1487.8000000000002,1863.9676629999999,6534.2916993579202,8398.2593623579232,null,null,-2637.2677092031008,-3508.5025622031026]
[null,null,"J",-0.32170012984744362,-1.4534621287352167,2.3202251983280719,3.1991373112868566,3.0784704090957198,0.4976383265856979,0.97465886939571167,null,null,6.4410000061047592,2.1753844400805975,4.6458135396505345,4.170797953810462,5.1782410232580904,8.0078488592948247,4.3364886586890474,null,null,73.229000500914722,92.851208602367919,58.769965621298383,76.200010726410937,98.732435680048951,102.40616115035826,87.929035789509399,null,null,-0.87861624296239704,0,-1.6606407021902168,4.551346181284857,4.8197744183154629,3.3777550799752456,0,null,null,8349.2951866599997,2783.6,7584.5,3795.8601752106215,2266.4,4736.3999999999996,4015.1678141299999,null,null,74.489506736513349,98.923202672447488,95.286277206793159,87.499333982752759,118.1033003320489,78.505651779746913,305.43682196253422,null,null,7.0945232172017842,5.7368449981678271,3.0881233847436449,6.2702681992337039,5.7975471230822153,5.6144221569450234,1.1937065637065636,null,null,1.5699999999999998,4.2,2.97,4.01,3.1,1.47,2.1800000000000002,null,null,16.344279695539964,7.9084078417002557,10.554877865777408,17.045552072448608,14.380123994658691,13.186739404112462,5.2046138996139,null,null,9.4700000000000006,6.34,5.93,8.6,8.6999999999999993,7.09,6.23,null,null,3,"n.a.",3.25,6.25,null,5,"n.a.",null,null,13.269189166411422,3.4857918235244645,9.5409063367297264,10.329499961005828,20.734270259444809,15.501000713633983,13.002543342728345,null,null,848.61282133416182,459.27916666666653,913.11666666666667,344.34872026264389,420.45317006505002,814.2833333333333,1091.1438900833334,3800.0938783285224,4891.2377684118555,null,null,1317.2128800150003,855.79833333333283,1491.6499999999999,798.9031783554201,622.60833333333335,1419.7916666666667,1978.1309818333327,6505.9643917037538,8484.0953735370858,null,null,-2705.8705133752314,-3592.8576051252298,null,null,792.54423696999515,541.15000000000009,965.19999999999993,309.26164442293742,448.64282469,883.10000000000014,1060.687752,3939.8987060829313,5000.5864580829366,null,null,1438.3179197599895,943.32000000000062,1640.7,834.30223741765587,635.5,1519.5,2048.3611490000003,7011.6401571776514,9060.0013061776481,null,null,-3071.7414510947128,-4059.4148480947115]
[null,null,"A",-0.73828535940538575,-1.9992795389049109,1.9622833843017349,3.086862885857848,2.7469084290107375,0.42849941186355667,0.41997371879107026,null,null,6.3018745685666326,2.5088303336835143,5.1247168698225893,4.3253148513669686,5.6564694128133137,7.867458992211648,4.21037709101219,null,null,73.144766416033391,93.009401465001986,58.651458632240008,76.279423699394499,99.001719336760857,102.11522678123686,88.144831516361762,null,null,-1.1517985038032916,0,-2.0467250858577337,4.4267902063658857,4.9502897022629186,3.5042501189849471,0,null,null,8190.3024225500003,2827.3,7572.6,3743.6341744258889,2281.1999999999998,4884,4454.2348364999998,null,null,73.031993275050823,98.527197346773718,97.548251547874685,87.006340542526161,122.24291556191167,78.203554780631094,337.44335898795111,null,null,7.342493909517315,6.2135048704282427,3.4500174956260921,6.1143941504178416,5.893176736805426,6.6231205555090726,1.6630419421195546,null,null,1.63,4.09,2.99,3.95,3.41,1.41,2.09,null,null,16.792260149510486,8.0910420878515108,10.913561609597599,17.231232590529263,15.831834107781754,14.041333556429342,5.775769566969724,null,null,9.49,5.93,5.92,8.57,8.32,6.92,6.22,null,null,3,"n.a.",3.25,6.25,null,5,"n.a.",null,null,12.603983293749987,3.2451821955328919,11.152523179917594,10.363492187425805,20.187694790074783,17.568226435785238,12.684926235070337,null,null,831.41866992666212,457.85416666666657,913.47499999999991,340.97385064046188,417.54524979855006,808.14166666666654,1067.1306165833334,3769.408603699007,4836.5392202823414,null,null,1304.7068460491666,858.99249999999972,1490.9666666666669,790.68555090288316,622.75,1412.2416666666668,1961.0816888333336,6480.3432302853835,8441.4249191187137,null,null,-2710.9346265863765,-3604.8856988363755,null,null,749.25543740999797,418.61999999999989,878.30000000000007,262.45675224947496,411.90495680200002,769.09999999999991,872.83735300000001,3489.6371464614713,4362.4744994614739,null,null,1285.1284877000001,806.09000000000015,1454.5,713.77866807794851,625.59999999999991,1395.9,1851.9892150000001,6280.9971557779427,8132.9863707779368,null,null,-2791.3600093164787,-3770.5118713164811]
[null,null,"S",-0.86419232992965966,-2.2540798845911101,1.8763796909492221,2.7608461814270511,2.7703850726177008,0.3941299790356384,-0.3937786509493364,null,null,5.9531589844176676,2.8712748657454807,5.0912029335568603,4.4126953478488158,5.7906973907893393,7.3484720819755402,4.0407947951468088,null,null,73.330490552730438,93.215816746202364,58.891511593536563,76.206463779344048,99.227567923418533,101.99321333943078,88.436080854303668,null,null,-1.0241656933505086,0,-0.44502627990466309,3.6991538322783248,5.0403115182667264,3.3312893320697978,0,null,null,8051.9971898699996,2791.8,7536.1,3672.5778311813669,2320.5,4720.2,4062.3142484099999,null,null,70.359329536643799,98.470042611096247,97.847257024983961,85.242838078869525,125.56366276835651,78.929606058065616,305.30526109029284,null,null,7.4788237626603626,6.6949903145466285,3.5470639219935047,6.2661549197487618,6.3175271398425696,6.669583194119614,2.5939932425455492,null,null,1.6949999999999998,4.29,3.01,3.9,3.42,1.6,2.19,null,null,16.789284047309401,8.9354930356978155,11.046348862405207,17.46691905094206,15.271012409454363,14.02061059137989,6.6399252590585007,null,null,9.4600000000000009,6.48,5.93,8.5500000000000007,8.11,6,6.22,null,null,3,"n.a.",3.25,6.25,null,5,"n.a.",null,null,12.999306736163053,3.2418392926455875,11.753423583547162,10.138723727026422,23.893225825321053,20.036367592556314,12.407627974956515,null,null,816.82576017582903,458.45749999999998,907.73333333333346,337.68495576615959,414.01466945154999,806.60833333333323,1048.3221635833333,3741.324552060205,4789.6467156435392,null,null,1290.8221605975007,861.04583333333323,1490.4666666666669,788.09699850864524,627.125,1416.1166666666666,1936.5842287500006,6473.6733257728147,8410.2575545228137,null,null,-2732.3487737126075,-3620.6108388792745,null,null,739.37200266999548,442.47000000000025,814.6,245.39730404429517,392.733035836,820.3,1151.7252490000001,3454.8723425502903,4606.5975915502931,null,null,1236.4138271800052,867.80000000000018,1536.3999999999999,752.55843301540017,615.5,1467.4,2162.3750170000003,6476.0722601954185,8638.447277195417,null,null,-3021.1999176451136,-4031.8496856451129]
[null,null,"O",-0.85644268394147927,-0.18924033522573105,2.2295693455408694,2.5384340364676521,3.0303933883283189,1.2253462022660457,-0.38834951456311234,null,null,5.5383817583533546,3.7904640432203367,4.5674044292780573,4.4370210070605491,5.5302482639100887,6.6945574318524184,3.8708775852431465,null,null,73.445219101405456,91.197024217335198,58.495809616500992,76.592561876941971,99.323900812281309,101.46877626860883,88.482468835873945,null,null,-1.026231970845136,0,0.48227653406028015,3.7376564768159608,5.1488665624626,3.2488048982051736,0,null,null,7909.9839506099997,2689.1,7564.4,3581.5278330797746,2349.6999999999998,4621.3132722143491,3904.0534608100002,null,null,69.023524972719898,94.619886045159006,97.775116178283554,87.420115230058727,126.93019465507354,78.541471735727399,285.30970433785706,null,null,7.1678310388453195,4.4476570964246962,3.1893224977195378,6.3796234309623339,6.3833446617973877,6.3172456678550759,2.417738791423008,null,null,1.7949999999999999,4.25,2.98,3.86,3.19,2.21,2.02,null,null,16.739809547632539,6.4013542795232876,10.652916493904959,17.302357043235695,14.404959100033444,12.906504435784766,6.5738791423002008,null,null,9.5399999999999991,6.2,5.91,8.6999999999999993,8.5500000000000007,5.87,6.16,null,null,2.25,"n.a.",3,6.25,null,5,"n.a.",null,null,12.259401981045471,3.6999330699529542,12.087738621359833,9.5896360826378313,24.631302521017929,19.389373922632135,11.992599280711879,null,null,803.92479219832887,462.37499999999994,902.875,334.80157746786125,413.86884262904999,799.51666666666677,1023.0752578333335,3717.3618789619068,4740.4371367952408,null,null,1287.835189924167,860.57499999999982,1488.2250000000001,786.36320152870758,624.19166666666672,1406.0166666666667,1907.1251086666662,6453.2067247862078,8360.3318334528758,null,null,-2735.8448458243015,-3619.8946966576332,null,null,813.50334179999447,474.11999999999989,825,265.70183713465093,436.35007813000004,785.19999999999993,1237.348577,3599.8752570646466,4837.2238340646436,null,null,1362.2647755799967,886.34999999999854,1548.3,767.99935821342888,670.3,1456.8,2095.983745,6692.0141337934183,8787.9978787934233,null,null,-3092.138876728779,-3950.7740447287797]
[null,null,"N",-1.2037736769680414,0.26268115942028264,2.5129029528724924,2.1018881368008673,1.9860749754835074,1.5380736258194641,0,null,null,5.1749607059672398,3.6406698108272817,3.7633690877954491,4.3639552728522863,5.0257346974473824,6.1679503488827176,3.7367908787541713,null,null,73.142963996194979,91.062087423850741,57.811377058093122,76.693927221526025,99.06969747132031,101.31630393627147,88.295710625009363,null,null,-0.78058792497471963,0,0.29567820530694811,3.7017864663268569,5.1803441903773892,2.9665973854873071,0,null,null,7895.1279943199997,2714.4,7421.7,3543.4519604293264,2328.6999999999998,4875.8326268282563,3603.1309214500002,null,null,67.900323711987767,95.527212093356539,97.57769355080282,85.947248947707749,125.58313735891318,78.783908521375324,254.64428777005352,null,null,7.2915474089537113,3.9768723461920761,2.9138742159128435,7.1478715980460441,6.8963844128067571,6.984499627514281,2.04,null,null,1.855,4.25,2.98,3.9,3.43,1.64,2.04,null,null,16.664375041094384,6.0414490920589117,10.347084846483988,17.656981856245622,14.837553346512596,13.996647628507576,6.1,null,null,9.74,6.32,5.91,8.51,8.6,5.94,6.1,null,null,2.25,"n.a.",3,6.25,null,5,"n.a.",null,null,11.559122575520586,4.0234191604699099,11.858566848849094,9.5772788759358463,23.165517232638532,17.894825689489615,12.369504045443591,null,null,803.1661574983292,460.91583333333324,898.47499999999991,334.07336990891679,412.26127555404997,800.69166666666661,1017.5868812500001,3709.5833029612963,4727.1701842112961,null,null,1292.2420072083339,859.18083333333334,1480.3916666666667,784.80800315262616,630.55833333333339,1407.1666666666667,1891.1332082500005,6454.3475103609599,8345.4807186109629,null,null,-2744.7642073996644,-3618.3105343996644,null,null,809.99474465999822,408.75,786.4,258.66123941365538,370.0091951,747.8,1005.695921,3381.6151791736556,4387.311100173647,null,null,1375.9906331299981,852.38000000000102,1462.1000000000001,742.70828919566816,739.2,1432,1687.4920979999999,6604.3789223256608,8291.8710203256633,null,null,-3222.7637431520125,-3904.559920152009]
[null,null,"D",-0.80758133239945784,1.0136986301369859,3.0662375063527056,2.3571428571428652,3.0522004919302783,2.3444773592890362,0.25954604670277082,null,null,5.0482611864301141,2.3924085926540011,2.9292162487843871,4.1732725056456488,4.5437213421397509,5.8393532531932211,3.6201759855885771,null,null,72.869849722570052,90.816556172832932,57.167949036528654,76.933758106435548,98.030674946344305,101.12193070166587,88.07984346747034,null,null,-0.2356701057315925,0,-0.12315707982340751,3.7961426664371767,5.2408433510006649,2.9347469049803414,0,null,null,7834.0881326400004,2670.2,7751.2,3822.2649997223657,2401.1999999999998,5195.054100524937,3896.1141070399995,null,null,67.059877439721845,94.548065769365323,94.657959325991925,87.398820775023395,119.70372807580168,76.938277147091355,256.18303271039099,null,null,6.8125986141164763,3.2830214266341202,2.2934401709401668,6.4312630844382337,5.218171360665691,5.8874917300694696,1.8356894937863686,null,null,1.885,4.33,2.98,3.95,3.38,1.38,2.1,null,null,16.400024879527027,5.2134526715486853,9.69644641683103,17.256106071179335,13.939545556725903,14.007128680119088,5.8452827529932359,null,null,9.61,6.28,5.91,8.32,10.4,6.19,6.12,null,null,2.25,"n.a.",3,6.25,null,5,"n.a.",null,null,11.974506538780805,4.5035009389866598,11.741019128034402,9.4791371905555089,23.59842699712118,14.817842982799112,11.347416905052254,null,null,803.70322583749612,459.08666666666659,889.56666666666661,329.92671436931442,409.64514451738336,786.81666666666661,1023.3885624999999,3675.6570964091929,4699.0456589091928,null,null,1290.0730219541672,857.78249999999991,1470.075,785.35728008840499,628.95833333333337,1408.8749999999998,1875.7976124166669,6441.018135949239,8316.815748365907,null,null,-2765.3610395400451,-3617.770089456712,null,null,797.71694187000003,383.1299999999992,813.19999999999993,312.94247490843611,362.50642756000002,664.8,915.63742499999989,3297.2399845584223,4212.8774095584304,null,null,1275.7,804.53999999999905,1389.4,777.29238819550039,612.29999999999995,1418.6,1674.2266529999999,6276.5963950755104,7950.8230480755155,null,null,-2979.3564105170663,-3737.9456385170706]
[null,2016,"E",-0.17270016448184974,1.8216947281258662,4.37776266575995,3.0835424883470863,3.191793097632492,2.5269227507843546,0.29325513196480663,null,null,5.0839966258639455,0.97903117032037712,2.3863918323171127,3.9786978509925213,4.2843695666585191,5.8809845214352894,4.34600773707872,null,null,72.773244109508425,90.917367420769423,56.999978939246233,77.38599890300938,98.989986841208534,101.490084929004,88.13945873544138,null,null,-0.26929508052452106,0,8.8641671288882382E-2,3.9281957314064089,5.2841192468076876,2.3910144099607953,0,null,null,7786.8334580000001,2788.3,7680.4,3737.2183544755526,2351.8000000000002,5637.939475887707,3806.0830365599995,null,null,67.663062410310687,97.058348486915918,97.294785672873616,88.262895877801526,118.80350245759277,83.359723661614098,242.69706475062924,null,null,6.1332923741820089,2.3946814854974212,1.0751689877025774,5.9043930434782519,5.996483055606471,4.6164237862873305,1.7017543859649149,null,null,2.9331135399999999,4.26,2.95,3.94,3.25,1.65,2,null,null,15.830038671322944,4.3294361615613957,8.3372522192360883,16.420135652173908,15.995188743785734,12.448512943511714,5.7598538011695934,null,null,9.68,6.23,5.94,8.3800000000000008,8.8699999999999992,6.81,6.07,null,null,1.75,"n.a.",3,6.25,null,5,"n.a.",null,null,11.910244898431976,4.6768395839986043,11.348238137245549,9.8897684470909084,22.583773193591085,17.883311252565726,11.300782488327087,null,null,804.22258594082962,457.83333333333326,885.77500000000009,329.39525245620536,407.87120338530002,781.1,988.52802933333339,3663.1093868006678,4651.6374161340009,null,null,1291.0012362850009,851.68833333333339,1463.05,778.2604887125309,630.11813517250005,1398.3083333333334,1816.6452306666667,6412.3235274100325,8228.9687580767004,null,null,-2749.2141406093633,-3577.3313419426972,null,null,737.69899359999806,410.62,833.7,324.28769739330204,371.1,623.09999999999991,678.85440300000005,3300.5066909932998,3979.3610939932996,null,null,1215.3072019500044,784.10000000000014,1274.5999999999999,647.26948709539215,558.71762207000006,1131.3,1400.7206740000001,5611.2943111153972,7012.0149851153974,null,null,-2310.7876201220961,-3032.653891122096]
[null,null,"F",-3.233718437322243E-2,1.6672807663964648,4.2708245063977559,2.921268257926608,3.4037852986557207,1.743251248201745,1.1822660098522195,null,null,4.9084909410342243,0.47818393184634383,2.2897910460690989,3.6420192008014634,4.3809939763024444,6.1966227160955372,4.3358448444258428,null,null,72.895075936015985,91.239527992579113,57.037554480226035,77.529788302727979,98.614361516940875,102.45572137275001,88.126111359536011,null,null,-9.2530045935107913E-2,0,0.26140740488257735,3.7291043545787996,5.4913315783649903,2.0418424628146421,0,null,null,7784.1073550000001,2740.1,7636,3775.0887417362956,2315.13,5065.1244855519062,3578.4801332400002,null,null,66.481469159834887,97.177452674711773,96.438745441925988,87.982659207650954,114.08762107074031,78.594292287887285,226.39144267049446,null,null,5.7341914569320798,2.5305282232490693,1.1788297440065083,5.7993181031498846,6.5178600404706755,5.3927397488147708,0.87736124634858514,null,null,3.0647932500000001,4.24,2.95,3.91,3.82,1.69,2.0699999999999998,null,null,15.377309769560512,4.5665814985956299,8.438770418529062,16.35107303565248,13.965234605123817,13.835560176328704,4.8800389483933753,null,null,9.67,6.31,5.94,8.35,7.82,6.01,6.12,null,null,1.75,"n.a.",3,6.25,null,5,"n.a.",null,null,11.996380040430488,4.3100876546931399,11.160108428929227,10.304538167991995,22.27745390254201,18.55973594840663,10.853095309305449,null,null,812.34701445916289,452.55666666666662,882.20833333333337,327.24494926270171,409.60558865529998,785.81666666666672,979.18988725000008,3666.6912307288308,4645.8811179788308,null,null,1290.7427763775004,847.51166666666677,1460.9833333333333,766.73939155898631,629.27679114083332,1402.6333333333332,1805.5514471666668,6397.7842929839871,8203.3357401506546,null,null,-2731.0930622551555,-3557.4546221718224,null,null,874.09136018999402,417.09000000000003,842.30000000000007,354.84069365367316,409.4,806.5,728.80103399999996,3704.2220538436682,4433.0230878436678,null,null,1190.3655151800001,756.8599999999999,1269,662.1158400713648,595.60387162000006,1267.2999999999997,1466.794778,5741.245226871365,7208.0400048713645,null,null,-2037.0231730276982,-2775.0169170276986]
[null,null,"M",-1.0860925989431325,1.1182401466544445,4.2617960426179531,2.4769992922859161,3.6579044731442725,1.5886428933581169,0.58593749999999445,null,null,4.5548397639128577,1.3890707680411873,2.5696379797788507,3.315690519184284,4.7791029655701633,6.5727983519036703,4.1643415178571415,null,null,73.700325771986513,91.673935691213686,57.560116422510482,77.808146480776287,98.571460604153984,103.02422000671351,88.247799157955725,null,null,0.32307450469961324,0,1.1622438255386238,3.6191416831946612,5.3412644991944234,2.3700757779330495,0,null,null,7811.9661759999999,2807.3,7586.1,3825.1130705644573,2394.5,5134.0711943492624,4699.0868548400003,null,null,67.362700721068052,98.460642749167889,96.106674588550689,85.715528448975675,119.20628844150671,76.601861936329215,293.82672584836001,null,null,6.860605116847462,3.1564630166787535,1.1780000000000073,6.1994406077348083,5.9531377998429313,5.6909482615205489,1.5052427184466075,null,null,3.3883974100000001,4.3099999999999996,2.93,3.85,3.35,1.87,2.1,null,null,16.717661880227432,4.9464467005076154,8.4865255474452628,16.757907458563533,11.816840131562628,13.664280485776082,5.2731650485436941,null,null,9.82,6.12,5.97,8.33,7.95,5.67,5.89,null,null,1.75,"n.a.",3,5.75,null,5,"n.a.",null,null,12.297744471992299,4.5120868784322088,10.444046086403347,9.5173379638472824,22.413415233720578,18.608193753472801,10.62798109255656,null,null,811.47882009332989,447.73916666666656,876.68333333333328,319.90104044782225,404.81156222446663,785.86666666666667,963.26785291666658,3643.3926011172844,4606.6604540339513,null,null,1287.769098766667,840.38333333333321,1448.9916666666666,753.60322797995298,631.37626426583336,1403.5083333333332,1788.4069420833337,6365.5289249191201,8153.9358670024549,null,null,-2722.1363238018348,-3547.2754129685018,null,null,874.30582409999647,471.41999999999985,938.69999999999993,353.66246628941906,413.4,824.8,935.08588100000009,3876.2882903894151,4811.374171389416,null,null,1257.6929084999997,784.44999999999982,1388.2,719.77609610429965,647.39367749999997,1471.8000000000002,1795.884086,6269.312682104297,8065.1967681042952,null,null,-2393.0243917148828,-3253.822596714881]
[null,null,"A",-0.91805692862924793,0.86151590138392242,4.0873082757458361,2.4355806565478209,3.5963791107405827,1.7536428329379812,0.58309037900874083,null,null,4.1738304635831929,2.2017150337093812,2.8923838271858817,3.0357035402148984,5.2219547133880804,6.9076930916514732,4.6221850962375042,null,null,74.080900679991785,92.334550000207742,57.842121206640861,77.891796177515687,99.017520744426676,103.72758204881882,88.237848900437655,null,null,0.69141677721473671,0,0.3072354401216032,2.9623080808911944,5.129999724725633,2.397955987506831,0,null,null,7898.7532970000002,2804.3,7675.3,3899.5999396380557,2435.5,5015.4147240342054,4491.66916855,null,null,67.96310848389308,97.927641170606009,97.182208374588001,86.899856491430128,120.66240092444293,76.537075795545505,320.48777060381815,null,null,6.5279875629657527,3.4388577919127692,1.3380034005343626,6.515723638869753,4.6770125045920459,5.2836999417200969,1.5280000000000058,null,null,3.2568826099999999,4.33,2.92,3.8,3.27,2.56,2.12,null,null,15.95452857516945,5.3622871422080882,8.6876026232693651,16.795354927636122,13.576841876044025,14.000832570144043,5.2562608695652226,null,null,9.81,6.27,5.97,8.33,8.01,5.43,5.87,null,null,1.75,"n.a.",3,5.75,null,5,"n.a.",null,null,12.243287827190507,4.9990551845708886,9.6205024588773114,9.1332581893116114,22.622316882683123,19.223334708062122,10.292258349446183,null,null,820.84047646666329,454.87916666666661,876.65000000000009,318.73349332233403,409.18843954149997,785.37499999999989,944.7212459166667,3662.5785876821628,4607.2998335988304,null,null,1293.2233257750001,844.36583333333328,1450.0083333333332,748.68477013985091,638.85127898583335,1411.8083333333332,1782.3828809166671,6386.8388754740181,8169.2217563906861,null,null,-2724.2602877918539,-3561.9219227918543,null,null,927.51181309999686,513.73,914.19999999999993,386.95849935045851,448.4,833.3,812.60046599999998,4024.100312450455,4836.7007784504549,null,null,1373.5959063499995,867.68000000000029,1442.6999999999998,734.35970071618988,642.50017663999995,1432.2,1674.991804,6493.0357837061892,8168.0275877061904,null,null,-2468.9354712557333,-3331.3268092557337]
[null,null,"M",-0.43272306743848038,0.73172962590322621,4.3566021867115161,2.3550087873462173,3.6513019423440927,1.7148166920087864,0.2901353965183725,null,null,3.8304148646836089,2.9454417487923421,2.9350031581190272,2.8143046387865489,5.4632757569743458,7.0925648583135024,4.3430037087102802,null,null,74.43956733242068,92.64077179578743,57.172866262639801,77.999618686193173,99.382555724845986,103.98604589612331,88.426549788192972,null,null,0.82329468476595391,0,-0.44805720101250307,3.0550479332694902,5.183996254650963,2.3480524122831556,0,null,null,7760.4476640000003,2840.4,8549.2000000000007,3892.589118566304,2441.4,5011.0678018557619,5021.5927543999996,null,null,67.034211186976918,103.53013560173339,105.28060620819579,91.92504833199861,126.31202685787271,75.380001902674564,350.54168404890009,null,null,5.8580723022231433,3.6118414600926205,1.0764990328820179,6.1403846153846198,5.1826750604538931,4.4193987210364574,1.7647444551591156,null,null,3.11314906,4.37,2.88,3.79,3.1,1.67,2.06,null,null,14.776665110987294,5.6370226096431528,8.426297549967769,16.799364697802201,13.767773285359235,12.717108213603519,5.6634329797492802,null,null,9.5500000000000007,6.41,5.98,8.06,8.17,5.0199999999999996,5.97,null,null,1.75,"n.a.",3,5.75,null,5,"n.a.",null,null,12.230434864104867,5.3653602288718183,8.7988874531036423,9.6720181409224679,23.334681245786214,16.232109884652601,10.423968063468436,null,null,828.9287615891634,454.21666666666653,869.9,317.986307390668,410.44885745983339,782.36666666666679,965.28606016666674,3660.7592714579973,4626.045331624664,null,null,1302.7293300916656,839.83749999999998,1440,739.53827990695675,635.17466605250002,1411.8916666666667,1792.6231995833339,6369.0684432911221,8161.6916428744562,null,null,-2708.3091718331248,-3535.6463112497913,null,null,981.17860507999853,491.25000000000023,916.8,366.80269869288384,425.1,782.7,1191.425851,3963.831303772884,5155.257154772884,null,null,1371.5158226799886,828.38000000000011,1424.1,731.46612451271517,620.38064480000003,1462.1,1788.6915129999998,6437.9425919927053,8226.6341049927032,null,null,-2474.1112882198213,-3071.3769502198229]
[null,null,"J",-0.87839426663984221,0.91541559868180156,4.4327132562426614,2.4466969591052079,3.5641154287860957,1.9098098603398923,9.6618357487917222E-2,null,null,3.6134651780031288,3.8546147904841384,2.6664098452053002,2.7371837595682647,5.3707324657448776,6.9711066023636246,3.9769790123031195,null,null,75.5259189162757,92.852295322060002,57.06656525915772,78.208333512512397,100.20951095934531,103.82901354820255,88.807390316658299,null,null,1.4087370013568035,0,-0.10298404795440373,3.7264107425517579,5.0814316284438066,2.3488929452877052,0,null,null,7787.4259480000001,2970.08,8696.4,3955.6458092543835,2382.1999999999998,5301.0212852378345,4770.54989002,null,null,68.72626109259491,99.720153168715584,106.79361906071185,90.58843803446517,126.022275832064,78.787287560026158,324.22250605679881,null,null,6.1827027769236294,3.532249637155298,0.98368290138811509,5.9477789150460589,4.9757908061748601,4.7396714273920617,2.0547349016576852,null,null,3.1144005199999998,4.4800000000000004,2.84,3.73,3.03,2.2400000000000002,2.1533385102583149,null,null,15.262458833857718,5.6132002902757625,8.3377003931637734,16.538652337086322,13.478566052219199,12.108932551803852,5.8876930501930573,null,null,9.77,6.58,5.98,8.3800000000000008,8.17,5.18,5.99,null,null,1.75,"n.a.",3,5.5,null,5,"n.a.",null,null,12.131325169193774,5.3417264456903979,8.7904226725698855,9.4736608567739466,23.515469848430648,16.956286155232149,10.516036606610403,null,null,831.56442050583018,452.90916666666652,868.83333333333337,316.78251526769128,407.72887650983336,784.52500000000009,965.88300041666673,3659.2553239683534,4625.1383243850205,null,null,1314.6546131758307,837.22833333333335,1442.1083333333336,736.9084424111802,633.12553822416669,1410.05,1789.0043524166667,6373.9722610511781,8162.9766134678457,null,null,-2714.7169370828233,-3537.8382890828238,null,null,881.59974461999673,462.55999999999995,897.60000000000014,360.41687565910883,403.20000000000005,873.59999999999991,999.89609299999995,3878.9766202791034,4878.8727132791028,null,null,1393.5623600999884,864.78999999999905,1475.3,759.27468631859995,634.51046606,1465.7,1820.5414970000002,6593.1375124785882,8413.6790094785902,null,null,-2714.160892199483,-3534.8062961994838]
[null,null,"J",0.47552710755759564,0.87944301942104075,4.6185910796164995,2.4033437826541193,4.114878333974656,1.8548048678136748,9.6525096525104756E-2,null,null,3.4802289087273177,3.8284973138265741,2.3232132414526991,2.8556765293562645,4.9771271489446081,6.5585712607680087,4.440412201718658,null,null,75.367516713175874,92.803066946377442,56.249362669750681,78.177273194220888,100.38827709178945,103.60057410834607,88.577831494360836,null,null,2.5614020305851786,0,-0.68986029837605378,4.198671081276486,4.9925544479373727,2.1974720726333996,0,null,null,7960.5164569999997,3019.77,8861,3845.271290093568,2383.8000000000002,5333.600631131173,4216.3467571700003,null,null,69.735893469870035,103.66572055909602,104.17503963750221,90.908139273731805,121.73599660270365,76.688338064451813,281.65423714249533,null,null,4.7021130665889288,3.5493425354159021,0.80426328791139434,5.9340408163265401,5.1086465759954915,5.4049439683586087,1.971571841851486,null,null,3.1656468100000001,4.46,2.87,3.75,3.57,1.85,2.0699999999999998,null,null,13.729186883261566,5.5715583000363162,8.1165391664674527,16.431744897959195,12.046644162514236,12.522919413315762,5.8678109932497495,null,null,9.89,6.5,5.99,8.43,8.35,6.03,5.97,null,null,1.75,"n.a.",3,5.5,null,5,"n.a.",null,null,11.583843245403136,5.5381489790039762,8.1364561924818002,9.6974517119586157,21.838007749425081,16.360435014070383,7.9867247620767801,null,null,833.22847053749717,448.74166666666662,858.7833333333333,315.34740590534778,404.80864111900001,781.77499999999998,954.17664424999987,3639.5965292468445,4593.7731734968438,null,null,1300.1308058499983,827.14583333333337,1414.675,728.94621576179941,632.93094940333333,1400.9916666666668,1766.7739977499998,6304.7174715884639,8071.4914693384662,null,null,-2665.1209423416203,-3477.7182958416201,null,null,812.51283734999879,491.13999999999987,844.59999999999991,292.04033207481513,413.6,850.10000000000014,920.21147799999994,3703.9931694248153,4624.2046474248164,null,null,1264.032231850003,822.33000000000084,1311.4999999999998,738.75551762508485,633.16493414999991,1410.7999999999997,1781.5968929999999,6180.5826836250853,7962.1795766250871,null,null,-2476.5895142002755,-3337.9749292002743]
[null,null,"A",0.59586675348913609,0.94651718434111476,4.7404815462800949,2.506963788300832,3.7504713807529804,1.472433698653062,0.48449612403100772,null,null,3.521810799274192,3.7654638487661902,2.1472213952344967,3.1524214549211371,4.4950986387919993,6.1099293777277497,4.2273160114270185,null,null,75.75091796733355,93.116609963563093,55.739649971495773,78.312327770934942,101.31244581668653,103.79307279033321,88.652184060409311,null,null,3.0844440480212776,0,-1.5063255979707835,4.1320584511637417,5.0554276431424929,2.0550014438989725,0,null,null,8007.6259069999996,3050.86,8919.2999999999993,3776.6892372229431,2405.1,5131.3255729987877,4330.4001211100003,null,null,70.63051576081412,104.74602643799788,106.09211314551894,88.89905841332299,123.47622793899752,74.481682733863437,288.39965592214151,null,null,4.3780459386106489,3.4706326809285382,0.69650095450206961,5.8269565217391346,4.7511769830786319,6.0386511666254385,1.6873288331726135,null,null,3.4059610600000001,4.45,2.84,3.75,4.33,2.02,2.1800000000000002,null,null,13.50366938352918,5.3429112426035488,7.9811724467069691,16.22625,12.81129654601056,12.956786214856949,5.4889103182256509,null,null,9.94,6.34,5.97,8.3800000000000008,8.18,7.03,6,null,null,1.75,"n.a.",3,5.5,null,5,"n.a.",null,null,11.699321846372568,5.5876810877295124,7.4626387632189539,8.8964008875957123,22.318886308054964,14.283533363334012,9.2935808171376699,null,null,837.88542906749683,450.46499999999986,859.63333333333333,319.92029475558013,407.86656138550006,791.8416666666667,962.50015733333328,3664.5242968935759,4627.0244542269093,null,null,1307.6705566558317,829.11916666666673,1419.8333333333333,735.94462979874527,634.64665656500006,1416.5333333333335,1780.6143695833332,6343.6446769262429,8124.2590465095782,null,null,-2679.1203800326666,-3497.2345922826667,null,null,805.13893976999589,439.29999999999973,888.5,317.33141845226311,448.6,889.9,972.71951000000001,3788.7703582222566,4761.489868222252,null,null,1375.6054973699952,829.76999999999953,1516.4,797.75963652129997,646.18848593999996,1582.4,2018.0736769999999,6748.1236198312909,8766.1972968312912,null,null,-2959.3532616090342,-4004.7074286090356]
[null,null,"S",0.38575471814753798,1.0146665436767903,4.5587132261021743,2.8960223307745827,3.5228490136803452,1.353157367190114,1.1684518013631966,null,null,3.792877949353382,3.4855199590008441,2.283580896873155,3.5772985430389879,4.1130827353495247,5.6972381716855303,4.0494862087614987,null,null,76.515388627438213,93.630259708579018,55.909076416123554,78.629822065025735,102.36090610518956,104.31256367483788,88.694244249681645,null,null,3.2345890227459129,0,-2.1684818802284953,4.6364547213523144,5.2511711217672623,2.1625144939906762,0,null,null,7699.1623669999999,2979.43,9014.7999999999993,3706.3937006078863,2417.1999999999998,4938.5580471256781,4100.1830274599997,null,null,68.158936024871679,104.24410663203328,104.58897923210624,88.168551258689192,124.77100287125577,77.332252652090133,270.69471597254017,null,null,4.2976668286890849,3.4602237238608264,0.88111908177905429,5.4559715157680735,6.0412967049394428,5.6306510631283953,0.98998075072184499,null,null,3.5606965700000002,4.51,2.85,3.74,3.04,2.0099999999999998,2.17,null,null,13.691429944205209,5.2025449730618121,8.1880184919496255,15.650729060698563,13.259831763473224,13.141863881221676,4.7658614051973025,null,null,9.89,6.27,5.99,8.36,8.49,5,5.99,null,null,1.75,"n.a.",3,5.5,null,5,"n.a.",null,null,12.251632969940761,5.4830646166862618,6.4731928323540133,9.5376192107700764,19.239615368862715,12.062924875579117,8.9725716416110934,null,null,848.56720226416383,450.67083333333329,861.38333333333333,320.21694741843072,408.22214173250001,796.72499999999991,960.08295825000005,3682.6974697667611,4642.7804280167602,null,null,1314.2579081422846,822.92083333333312,1413.6333333333332,739.95558574822041,633.64020881499994,1421.7333333333333,1750.6745240833334,6346.0382032788375,8096.7127273621709,null,null,-2663.3407335120773,-3453.9322993454102,null,null,867.55328102999965,444.94000000000051,835.6,248.95713599850268,397,878.9,1122.7188599999999,3672.9504170285036,4795.6692770285081,null,null,1315.4620450174421,793.42000000000007,1461.9999999999998,800.68990440909977,603.42262700000003,1529.8000000000002,1803.096871,6504.794576426546,8307.8914474265475,null,null,-2831.8441593980424,-3512.2221703980395]
[null,null,"O",0.55180099133034877,-0.8757674250631986,4.7599303424827886,2.8242677824267663,3.3961025778788416,0.91203051156620052,1.3645224171540018,null,null,4.0119298389849414,2.2732558983979816,2.7451460640834884,4.0449891609404842,4.0816231956000228,5.3611636981573865,4.2008610251580825,null,null,76.876917111498415,93.507907950669036,55.388722281051074,79.125045085335387,102.57218379252109,104.72255835894069,88.719434413287104,null,null,3.5558817172658195,0,-2.4012444033819138,4.5142452636535895,5.058813525022984,2.4715379563932141,0,null,null,7715.316143,2954.13,9063.2000000000007,3732.618613722248,2332.6,5450.2544242431322,3941.5233068399998,null,null,67.855403608305309,103.20050724625027,102.26249400013347,89.351963366313655,123.00939567947663,77.55257980344949,255.91515338072378,null,null,4.0757092080356188,5.3829091902723372,0.69689780733001316,5.519837232960338,6.078854604322248,6.3599646701174963,0.78476923076922511,null,null,3.3040258599999999,4.46,2.85,3.74,3.15,2.06,2.16,null,null,13.851764836463618,7.3299608343200644,7.9611256233673764,15.643906408952201,11.281189236258351,14.287661654753105,4.651999999999993,null,null,9.9700000000000006,6.39,6.01,8.42,7.95,6.29,6.08,null,null,1.75,"n.a.",3,5.5,null,5,"n.a.",null,null,12.362781787589538,5.7951004644006376,5.9676497113355431,9.2122935495182254,19.647657652296679,11.610170275434207,9.0785374290003329,null,null,851.91175380999766,447.98833333333329,851.7166666666667,319.90138994473091,405.3346352216667,803.43333333333339,946.25308499999994,3677.1981239947277,4623.4512089947266,null,null,1310.5441087997854,817.01249999999982,1401.3833333333332,737.73860502834248,631.28066265583323,1426.1916666666666,1746.0984532499999,6324.0478770572945,8070.1463303072933,null,null,-2646.8497530625659,-3446.6951213125653,null,null,853.63796034999746,441.92999999999938,709,261.91514745025268,401.7,865.69999999999993,1071.3900980000001,3533.8831078002477,4605.2732058002439,null,null,1317.6991834700036,815.44999999999982,1401.3,741.39558957489282,641.98544608999998,1510.3000000000002,2041.0708949999998,6428.130219134895,8469.2011141348921,null,null,-2894.2471113346437,-3863.927908334641]
[null,null,"N",0.56037233607343251,-0.82211581895383201,4.6715087487619646,3.0355896720167439,3.3063565881557109,0.87741081036338231,1.2670565302144361,null,null,4.0571462797967435,2.2485216604793634,3.3989359386880214,4.4578624581198056,4.4712269533767026,5.2077525492780463,4.1584291123546455,null,null,76.884677065320545,93.370964564445202,55.148333625852644,79.233266317094817,102.47774570315411,104.74910216384681,88.666691238768578,null,null,3.9453411719632756,0,-1.8119847770722313,4.6754317166622306,5.0816028794594548,2.5594811325957623,0,null,null,7583.0048699999998,3028.36,9003.6,3679.9548910651647,2296.1,5709.3339168861885,4146.9411949899995,null,null,64.424380479162167,103.67264972977451,105.96905138072084,87.809876410777093,122.70843659922288,80.223642450946016,256.95672039036259,null,null,4.0171168480164896,5.3359837857533208,0.78196183567260991,5.2160717913985817,5.5430418308140634,7.9230713054894535,0.9015206929740025,null,null,3.2359271600000001,4.47,2.86,3.63,3.49,2.39,2.1800000000000002,null,null,13.613342255123174,7.4634742211696086,8.0332187352152697,15.43584151710126,13.283814270410184,14.832447690161644,4.7625986525505173,null,null,9.7899999999999991,6.58,6,8.35,8.6199999999999992,6.74,6.09,null,null,1.75,"n.a.",3,5.5,null,5.5,"n.a.",null,null,12.897264885701487,5.5483739156772183,6.0260948660573632,9.7560538598383104,18.703604357627569,11.696356462873014,8.0382702238769976,null,null,861.01585181249766,450.10083333333318,857.33333333333337,324.0637743232852,405.35053562999997,812.44166666666661,943.26246524999988,3707.218006784115,4650.4804720341153,null,null,1319.2694454372847,818.13249999999982,1409.0999999999997,742.36272558065957,625.21605775749993,1440.5249999999999,1745.9876356666666,6354.5027293487774,8100.4903650154438,null,null,-2647.2847225646615,-3450.0098929813284,null,null,919.24392068999737,434.10000000000036,853.80000000000007,308.6098519563069,370.2,855.90000000000009,969.80848400000002,3741.853772646311,4711.662256646312,null,null,1480.6946727799905,865.81999999999971,1554.7,798.19773582347398,666.42474121999999,1603.9999999999998,1686.1622870000001,6969.8371498234628,8655.999436823462,null,null,-3227.9833771771591,-3944.3371801771646]
[null,null,"D",0.76519109124868812,-0.93119971069523655,4.2324128862590324,3.3147243545010467,3.1296532012614322,1.6953357591796205,1.4634146341463417,null,null,3.9046682316179679,3.1176485079331875,3.9996939873810375,4.7679408029516779,5.0443144370305362,5.3140702129490283,4.0854535120858442,null,null,76.349573901842035,93.571998729049511,55.160561714738186,79.984747637435945,102.04611107501998,104.06073572180829,88.610429403458966,null,null,3.4311838952807183,0,-1.4716797389061356,5.2288130433529458,5.1720265242132593,2.5238231475164485,0,null,null,7573.8,2922.99,9160.4,3887.6050145088475,2387.5,6046.699976951857,4502.1774745299999,null,null,65.431752834127167,101.17474561715942,100.23957162416191,81.977400691635239,122.32108072957088,80.01081823949751,275.42153380223914,null,null,3.6568271808630541,5.5428143821865312,1.1585523929669714,4.6995001688618707,6.5389174686972371,5.0490656257623838,0.71610576923076896,null,null,3.2935811799999999,4.5599999999999996,2.88,3.55,3.54,2.0699999999999998,2.19,null,null,13.382407902475862,7.390015513779888,8.4403563825593384,14.978770685579196,13.351207778746993,12.551867935268769,4.5697115384615374,null,null,9.82,6.39,5.93,8.18,7.64,6.98,6.1,null,null,1.75,"n.a.",3,5.5,null,5.5,"n.a.",null,null,12.149654232111873,5.0584468647588254,6.6840962486078404,11.727420063249427,17.512010337992635,11.407213499098457,8.5815479642203698,null,null,864.91980560166382,451.67916666666662,870.77499999999998,325.59544521185927,403.26666666666665,819.9666666666667,932.91222266666671,3736.2027508135229,4669.1149734801893,null,null,1328.6999549697844,818.8158333333331,1416.8999999999999,742.72923263123448,624.62623514416657,1449.8833333333332,1744.5847155833333,6381.6545894118508,8126.2393049951834,null,null,-2645.4518385983292,-3457.1243315149964,null,null,844.56438733999425,402.06999999999971,974.50000000000023,331.32252557132506,337.5,755.09999999999991,791.43451399999992,3645.0569129113137,4436.4914269113142,null,null,1388.8661143899972,812.73999999999796,1483,781.69047280240011,605.22212863999994,1530.9,1657.3916119999999,6602.4187158323912,8259.8103278323833,null,null,-2957.3618029210811,-3823.3189009210837]
[null,2017,"E",0.65571453973752936,-0.25300442757748359,3.827673263295047,3.4434782608695569,3.8815156361188228,2.3323132908775182,1.6569200779727127,null,null,3.5703805422576029,3.1285074493221892,4.3735582290904631,4.8819883649386808,5.5493032277964822,5.5509052486324233,4.7962591850367451,null,null,76.677143428891341,93.426713703859335,55.282895640233235,80.547792105669103,102.47206612500642,104.25068723520192,88.870469749982163,null,null,3.4686020796032864,0,-1.7561971290336555,5.0437744599621999,4.9127955366307328,2.5519819705043769,0,null,null,7523.8,2903.89,9065.2000000000007,4445.9861856149864,2398.9,6707,4320.8750235799998,null,null,66.425655942158599,101.29999609296512,100.19886947647763,100.60671451113909,123.58945069165821,94.445259274215715,282.00464541856991,null,null,3.8689164092848558,4.7349841471147753,1.5625186289120812,4.8978648285137947,5.0627539735370517,3.6427269053584359,0.52439117929050505,null,null,3.2719320500000002,4.47,2.91,3.65,3.79,1.77,2.19,null,null,13.505726444388282,6.5495751426759679,8.8823397913561948,15.792703429724288,12.516018650310142,14.030452598399737,4.2837679769894512,null,null,9.84,6.28,6,8.43,7.87,6.94,6.0116666666666667,null,null,1.75,"n.a.",3,5.5,null,5.5,"n.a.",null,null,12.552297027231463,5.3623662092741053,6.1780908224726483,11.708501814766903,18.663532732878551,11.321829171175658,8.2779128203285488,null,null,870.68665473166402,452.97499999999997,874.55000000000007,331.28842354017934,406.89999999999992,824,937.85479633333341,3760.4000782718431,4698.2548746051762,null,null,1339.3102291372841,824.04999999999973,1429.9916666666666,747.80940352131518,626.92476663833327,1466.0083333333332,1764.7853749166663,6434.0943992969305,8198.8797742135976,null,null,-2673.6943210250893,-3500.6248996084232,null,null,806.90118316000007,426.17,879,392.60343733314249,414.70000000000005,671.5,738.16528700000003,3590.8746204931431,4329.0399074931429,null,null,1342.6304919600002,846.91,1431.7,708.23153777636014,586.29999999999995,1324.8,1643.1285859999998,6240.5720297363605,7883.7006157363603,null,null,-2649.6974092432174,-3554.6607082432174]
[null,null,"F",1.0854653797116591,0.28993385883844625,3.9577407557903328,3.8421599169262799,3.6910327222805419,3.3435914497213641,1.8500486854917151,null,null,3.3148364128453665,3.114857261584516,4.3878322674227377,5.0299179148425051,5.7664687072559566,5.6718879944712493,5.6634682892581312,null,null,77.384511618550874,93.466636678431925,54.438945026508286,80.032702124390525,102.47909517046922,104.88803056429457,88.894378152238673,null,null,4.4512491086021555,0,-3.4227786000826295,4.337797454344221,4.8830684723851592,2.9774979468929654,0,null,null,7454.1,3510.89,9267.5,4508.2249684299941,2372.5,6299.1,4222.02254558,null,null,66.498184998381603,121.61061699837859,102.56628821147807,89.503656251236862,120.10964311875291,86.510814808614697,255.90067428885615,null,null,3.4767952074418229,4.1978950221338938,1.4354479362101278,4.504759999999993,5.6406459042062744,3.615520321931593,0.20613766730402358,null,null,3.4650554699999998,4.5,2.95,3.62,3.94,2.2400000000000002,2.06,null,null,13.112206156968433,6.1322865660854715,8.7461108505315792,15.319249999999993,13.317900810496269,11.937274849094571,4.3396653919694153,null,null,9.9,6.44,5.98,8.42,8.1300000000000008,5.82,6.27,null,null,1.75,"n.a.",3,5.5,null,5.5,"n.a.",null,null,13.288628839563966,5.9313727421131501,6.1751688690227402,9.8541488446404415,17.390242563248549,11.829734286162896,8.6213152908029667,null,null,871.49856134666425,455.83083333333326,882.85833333333346,336.90705540455326,410.0333333333333,821.76666666666677,958.9518519999998,3778.8947834178839,4737.8466354178836,null,null,1344.8442732639498,824.33916666666653,1436.9416666666668,754.48362281060975,624.72444400333325,1471.6833333333332,1773.6419804999998,6457.0165067445587,8230.6584872445583,null,null,-2678.1217233266752,-3492.811851826676,null,null,883.83423957000002,451.35999999999996,942,422.26427602616059,447,779.7,981.96570200000008,3926.1585155961593,4908.1242175961597,null,null,1256.7740446999896,760.33,1352.4,742.20647154290009,569.20000000000005,1335.4,1573.0740449999998,6016.3105162428892,7589.3845612428895,null,null,-2090.1520006467299,-2681.2603436467298]
[null,null,"M",1.5816604303683284,0.5438723712835466,3.9983779399837736,3.9364640883977819,3.1655557282095037,3.1442355681251049,1.4563106796116505,null,null,3.2641960050581447,2.6995850808422346,4.0675272557208055,5.2419264594807355,5.6221077668481163,5.6387218562922135,6.5927810888635889,null,null,77.718326310962908,93.348639344140835,54.016808647541872,79.583351323945109,102.66991308611894,105.61530743546152,89.051766845986421,null,null,4.6288895432810078,0,-4.672961520530567,3.8358611013782928,4.9564182065029012,3.279653156936857,0,null,null,7273.8,3136.38,9424.5,4480.3941721141564,2404.1,6456.4,3757.08828541,null,null,65.006597998694716,100.28345187792864,102.76811868983131,86.445024245278319,124.43636064152248,86.015874936279275,228.79233267044364,null,null,2.8729000587967795,3.9745113595383978,1.3861966778445043,3.9673621262458552,6.3750687931510486,2.778404838709676,0.63444976076555026,null,null,3.54703882,4.54,2.97,3.54,4.1100000000000003,2.11,2.1,null,null,12.323424848887202,5.6255319148936094,8.7324651017702628,15.166511627906985,11.787419271149922,12.289358064516128,4.764306220095694,null,null,9.89,6.2,5.98,8.36,8.0500000000000007,5.82,6.29,null,null,1.75,"n.a.",3,5.5,null,5.5,"n.a.",null,null,12.723655259126442,5.399506780663188,6.230662575921353,10.048236759155294,18.23098364465876,11.093472922634962,8.423458768856861,null,null,881.04120809833114,463.21833333333325,895.20833333333348,343.37676423487187,420.45833333333331,833.22499999999991,964.43337866666661,3836.5279723332028,4800.961350999869,null,null,1362.4855997322829,832.60583333333307,1454.8916666666667,762.27259766323459,626.18330421166672,1475.7333333333333,1786.5760871666664,6514.1723349405174,8300.7484221071809,null,null,-2677.6443626073146,-3499.7870711073151,null,null,988.81758511999999,560.07000000000016,1086.9000000000001,431.29897225324214,538.5,962.30000000000007,1000.864201,4567.8865573732428,5568.7507583732422,null,null,1469.3888261199968,883.65000000000032,1603.6,813.24379433579895,664.90000000000009,1520.4,1951.0933660000001,6955.1826204557947,8906.2759864557956,null,null,-2387.2960630825537,-3337.5252280825534]
[null,null,"A",1.6438548141513163,0.86324398000908931,4.0887377540280117,4.1006202618883654,3.3548896941638962,3.5134460078261585,0.96618357487922701,null,null,3.2916679359490364,2.309709368176863,3.652221176565333,5.5327498381624007,5.2146541682236442,5.3670427628676896,6.5271632456169559,null,null,78.128784958535746,93.55799003405798,53.892835790764693,79.42150558393493,102.76379320869201,105.80309211002533,89.315852831809494,null,null,4.8905507193855637,0,-5.1055114844195604,3.8604347436987352,4.9565455747047462,3.3121250125633126,0,null,null,7300.6,3256.02,9792.7000000000007,4440.4420675162419,2444.3000000000002,6316.5,3797.1627938300003,null,null,65.190337602843911,101.30355972797548,103.57412897941394,86.228945105611388,124.49684043751294,85.668890292996394,226.73573962664238,null,null,2.9083363627792322,3.4668288288288265,1.2789685749844453,4.0723866269447084,6.2818807349457355,3.107377945789433,1.1229665071770336,null,null,3.48208114,4.3600000000000003,2.97,3.65,3.88,1.6,2.1,null,null,12.34324024154647,5.5091981981981943,8.6380740510267611,14.994511751075791,14.812052702971187,11.009732968712301,5.3223923444976071,null,null,9.86,6.42,5.99,8.4700000000000006,8.2899999999999991,6.13,6.34,null,null,2.5,"n.a.",3,5.5,null,5.75,"n.a.",null,null,12.971705320361337,5.7564733684709379,6.2906006484853672,9.5478796180644476,19.849578871134167,10.089263224518884,8.6913598363513866,null,null,880.88199635583157,457.60499999999996,897.95000000000016,345.89262938911543,418.38333333333327,830.3416666666667,973.56182999999999,3831.0546257449464,4804.6164557449474,null,null,1348.3576153089502,829.07333333333293,1446.9083333333335,761.12546236819787,618.33328949166673,1472.925,1778.8343538333331,6476.7230338354811,8255.557387668814,null,null,-2645.6684080905347,-3450.940931923868,null,null,925.60127219000003,446.36999999999989,947.09999999999991,417.14888120138204,423.5,798.69999999999993,922.14188200000001,3958.420153391382,4880.5620353913837,null,null,1204.0600932700058,825.28999999999951,1346.8999999999999,720.59407717574993,548.29999999999995,1398.5,1582.0910039999999,6043.6441704457611,7625.7351744457592,null,null,-2085.2240170543737,-2745.1731390543737]
[null,null,"M",1.6711599502232679,0.96249886497775572,3.932946486137983,4.0521978021978065,2.9072008795424518,3.10605431442572,0.77145612343297698,null,null,3.2214524797178559,2.7529762356416145,3.400888488679652,5.8337350125884413,4.6669370310041138,4.9350412134406918,7.0223226149348879,null,null,79.722658766268637,93.477948790489194,53.785329902312178,79.28077784993296,103.38313571259542,106.16861278917743,89.392193040712698,null,null,6.8829942588583322,0,-4.0245823645518994,3.8148737909884547,5.0795500863547716,3.3327876188293208,0,null,null,6832.9,3367.89,9916,4412.9522977873821,2501.1,6087.2,4573.9156307900003,null,null,61.971745547247927,107.82903417184244,107.39545028922142,87.754098600852416,130.63606781407998,86.21737619120762,274.77050770350326,null,null,2.8315208085391497,3.3948259735587709,1.4211600496277843,4.1112079207920749,5.7767629515751784,3.9027249295207325,1.3580669856459362,null,null,3.3898038700000002,4.3899999999999997,2.95,3.54,3.72,2.2799999999999998,2.14,null,null,12.273726449495399,5.4946155229786839,8.7624317617865923,14.89425742574257,14.507251640019687,11.167089810712838,5.5358373205741653,null,null,9.3800000000000008,6.51,5.99,8.44,8.19,5.97,6.35,null,null,4,"n.a.",3,5.5,null,5.75,"n.a.",null,null,12.553817061241258,5.7792225449945667,5.7952308775477634,10.11102726550963,19.460248583226083,11.976229907956881,8.4323679717247515,null,null,885.24054067999839,458.99916666666655,903.05000000000007,353.96037766418357,421.2833333333333,843.75833333333355,969.99499733333323,3866.2917516775142,4836.2867490108483,null,null,1358.3473298389508,836.48166666666646,1457.8916666666667,770.69350158764746,622.65156909166672,1476.1666666666667,1805.467686916666,6522.2324005182645,8327.7000874349287,null,null,-2655.9406488407499,-3491.4133384240831,null,null,1033.4811369700001,507.97999999999979,978,463.61567799370096,459.9,943.69999999999993,1148.6238589999998,4386.6768149636991,5535.3006739636985,null,null,1491.3923970399983,917.2800000000002,1555.9,846.28259514611079,672.2,1501,2108.29151,6984.054992186102,9092.3465021861011,null,null,-2597.3781772224065,-3557.0458282224081]
[null,null,"J",1.7743170392902428,0.92525399129173636,4.3649201636845048,3.6506311838962766,3.06106757003983,2.5509782877899805,0.67567567567567854,null,null,3.0412057015155751,2.6230438386574817,3.2633292327760266,5.9981698104275898,4.1170839743776835,4.5377869458949585,5.1042391700639804,null,null,79.217294962882264,93.503878018942174,53.389137907644717,79.053429274708805,104.0340512518973,106.36903974973008,89.644850776056884,null,null,5.0329000240165085,0,-3.9297570035111007,3.0867393031945807,5.2747878027508825,3.3711833808639207,0,null,null,6812.6,3282.88,10793.9,4522.4190168291079,2521.6,6512.7857449028688,4337.6371392700003,null,null,61.267789064762056,105.92737433772803,112.25872668115838,88.11569946313719,132.6322195101616,93.608941854442449,250.72276883254472,null,null,3.8572432368018794,3.5221571094732971,0.99178903667256257,4.2444206714944093,6.2849621990578468,4.4846200289808378,1.4842953020134197,null,null,3.2026009200000001,4.4800000000000004,2.97,3.55,3.46,1.82,2.17,null,null,12.739641333875568,5.583088261729273,8.3218382409471836,15.185019749835423,14.681525286768133,10.335368700692317,5.6362416107382511,null,null,9.67,6.56,6,8.42,7.98,5.6,6.35,null,null,4.5,"n.a.",3,5.5,null,5.75,"n.a.",null,null,11.80300586813221,5.9178331908187554,5.423674761916164,10.130169843907799,17.842685530252389,12.204381557498213,8.1733224238083935,null,null,894.91594539499874,461.565,903.3416666666667,359.00591067787701,426.43333333333334,843.15000000000009,962.47588683333333,3888.4118560728753,4850.8877429062086,null,null,1358.9310719647849,837.16999999999973,1460.7833333333335,777.68526942187384,626.55903025333328,1474.5666666666666,1805.3282388333328,6535.6953716399912,8341.0236104733249,null,null,-2647.2835155671169,-3490.1358675671167,null,null,997.70460120000098,493.35000000000036,901.09999999999991,420.96327182343003,465,866.3,909.66676700000005,4144.4178730234344,5054.0846400234332,null,null,1400.5672656099996,873.05000000000018,1510,843.17590032931503,681.40000000000009,1446.5,1818.8681200000001,6754.6931659393158,8573.5612859393223,null,null,-2610.2752929158833,-3519.4766459158818]
[null,null,"J",1.1631081312736706,1.0170722847802309,5.2195394055303188,3.639455782312921,3.1288235822280464,2.5379037574159513,0.38572806171648166,null,null,2.825937925801326,1.8288352003528949,3.1241934585276039,5.9304569420648425,3.7840125337156563,4.331052713547777,5.0055726742280147,null,null,79.539858381720009,93.45616717530585,52.25071251961144,78.736235301831954,103.92953870696807,106.17218611793332,89.755112279446806,null,null,4.9499793130750174,0,-3.9205312342911496,2.6074363434010017,4.9531912196147294,3.298167684619651,0,null,null,6865.4,3323.66,11024.9,4472.8121381178662,2572,6248.7458037199667,3909.6115338700001,null,null,63.026444678724978,104.12788362549978,111.13590273592003,87.125828833093848,129.74927490291466,83.773793607274456,222.47815299021622,null,null,4.7318552818220505,3.3686659475009075,0.14299681914571574,4.4486380045946872,5.3716414229665483,3.2398714239794293,1.7276080691642737,null,null,3.0788937600000001,4.42,2.95,3.57,3.69,1.62,2.12,null,null,13.974355016461374,5.3485293060050427,7.4515252953650428,15.158844765342964,12.149458033715607,10.837062037929925,5.9513160422670595,null,null,9.6300000000000008,6.42,6.04,8.41,8.25,5.34,6.36,null,null,4.5,"n.a.",3,5.5,null,5.75,"n.a.",null,null,10.863297801081684,6.1640981322889088,5.2448250545585662,10.287112272270127,18.20912093683782,10.360419246699237,10.396929639907704,null,null,901.74499135666565,466.45416666666671,908.47500000000025,366.78220409742613,428.58333333333326,840.62499999999989,963.07587041666682,3912.664695454092,4875.7405658707585,null,null,1354.9262477839518,841.9991666666665,1477.9916666666668,781.42324381221795,626.98695240749998,1479.0083333333332,1809.9783749999999,6562.335610670335,8372.3139856703347,null,null,-2649.6709152162452,-3496.5734197995785,null,null,894.46138889000201,549.80999999999995,906.2,385.35585310940513,439.4,819.8,927.41128100000003,3995.0272419994071,4922.4385229994041,null,null,1215.9743416800029,880.27999999999975,1518,783.61121030921311,638.29999999999995,1464.1,1837.3985269999998,6500.2655519892141,8337.6640789892117,null,null,-2505.2383099898125,-3415.2255559898149]
[null,null,"A",0.90944211777957451,1.1379153390987711,4.7168310531339541,3.8383152173913082,3.4704581014840974,3.1824552724874264,0.67502410800386003,null,null,2.6934638954234273,1.4616105166470603,2.8620748762825312,5.6618305721477187,3.7084452106866803,4.4054238854917438,5.2435801220347811,null,null,80.386540616026636,93.85413640338659,52.379234194068481,78.503293426540935,104.67473509103107,105.96766556001415,89.765190372159381,null,null,5.047805815875436,0,-3.4680366238288949,2.1116085759820318,4.8709454471570037,3.3405090320207256,0,null,null,6868.5,3262.97,11277.9,4470.4148977895729,2518.4,6279.1282342772065,3571.3758189099999,null,null,62.775593092606684,102.96070764917053,112.83118126912206,86.938338320046597,129.57379318287451,82.653808032321834,198.50845450805906,null,null,4.9951300563962198,3.2550450045004498,0.60464868970755203,4.2100883218841973,6.3299717497185393,2.9244746304434686,1.3955555555555528,null,null,3.01623361,4.43,2.95,3.5,3.42,1.84,2.08,null,null,13.725730299877586,5.3709675967596766,7.9673619445499382,14.957566241413147,12.178069519195974,9.9702461046743931,5.6369252873563189,null,null,9.39,6.57,6.03,8.36,7.92,5.78,6.35,null,null,4.5,"n.a.",3,5.5,null,5.25,"n.a.",null,null,10.714731445290315,5.4822008819452872,4.7731888380598608,10.496947308193505,17.967551796968607,10.374183581692753,8.122368683310599,null,null,909.26810702749947,469.74166666666662,908.63333333333355,368.62800536641083,427.29999999999995,839.30833333333328,954.17760550000014,3922.8794457272438,4877.0570512272443,null,null,1359.9144899272849,850.89666666666653,1484.9583333333333,785.72353040875942,629.6545785791667,1479.1000000000001,1797.1376067499998,6590.2475989152108,8387.3852056652086,null,null,-2667.3681531879679,-3510.3281544379679,null,null,895.41632782000102,478.75,890.4,339.48103368007844,433.2,874.10000000000014,865.94033100000001,3911.3473615000803,4777.2876925000819,null,null,1435.4644030899933,936.54000000000087,1600,849.36307567980009,678.19999999999993,1583.5,1863.9844579999999,7083.0674787697935,8947.0519367697852,null,null,-3171.7201172697132,-4169.7642442697143]
[null,null,"S",1.6412002719537446,1.5615012327641253,4.3599553642595357,3.6622583926754873,4.1228479442557164,3.7992417999011034,0.76997112608276908,null,null,2.690498594822551,1.3310317702023005,2.4698923482091661,5.2449455457169591,3.7785174442481728,4.7940210054663419,4.5123773633941866,null,null,80.78098467839115,94.249285814712152,53.163711130717502,78.954580421398916,105.40360684422113,106.17539822636758,89.981919872402315,null,null,4.9637135800056491,0,-2.9320395592215975,1.8168722189277169,4.8760778750159774,3.3452473182683256,0,null,null,6898.1,3320.04,11268.4,4516.842434066446,2492.9,6169.144841569394,3571.3758189099999,null,null,63.173052271464705,103.41724461777353,111.23655207106931,87.341399988178551,132.42813668508035,81.028453650831338,198.50841451299249,null,null,4.1408402498554331,2.8243957921237244,0.94868250210034832,4.3291952894995056,5.497694439841565,2.3706899563318786,1.5282617000955139,null,null,3.3526696999999999,4.43,2.96,3.38,4.24,1.65,2.31,null,null,12.906970496678408,4.7739534256428762,8.3269915221874182,15.094926398429829,8.7208434011504252,8.7387518856689166,5.5473161413562595,null,null,9.6300000000000008,6.41,6.04,8.32,7.42,5.86,6.36,null,null,4.5,"n.a.",3,5.5,null,5.25,"n.a.",null,null,9.183086615612023,5.4722573353432225,5.2859230382994227,9.9842419782303118,17.764304661113961,10.063119300118096,7.1067564670950656,null,null,914.45189929749949,472.11666666666662,908.76666666666688,374.0074061095101,427.43333333333339,831.14166666666654,928.50165941666683,3927.9176387403422,4856.4192981570086,null,null,1363.9600842408306,853.67666666666662,1485.1583333333335,791.53843657730749,629.6276929958334,1462.1166666666668,1792.6907245833333,6586.0778804806387,8378.7686050639713,null,null,-2658.160241740296,-3522.3493069069627,null,null,929.75878826999906,473.44000000000005,837.2,313.50994491569429,398.6,780.90000000000009,814.60750700000006,3733.4087331856863,4548.0162401856869,null,null,1364.0091767799913,826.77999999999975,1464.4,870.46877843167613,603.1,1326,1749.7342849999998,6454.7579552116804,8204.4922402116936,null,null,-2721.3492220259759,-3656.4760000259739]
[null,null,"O",2.325431601228714,1.4300027324892914,4.2032771313227171,3.967446592065123,4.3733083811180258,3.48369074028429,0.48076923076923078,null,null,2.8177630293925722,1.6468962763592325,1.9917704079892868,4.7864348706782858,3.8943695785548016,5.3562116194663316,4.4252929214679906,null,null,79.644884132567569,94.071302502197923,53.115289819354011,78.953292492602799,105.02654544489265,106.35962569665158,90.097152864555724,null,null,3.8891653322705078,0,-2.0725755772753387,1.6666232711026865,4.7330316271886606,2.9990484348803577,0,null,null,6847.5,3332.08,11494.4,4521.7909723722523,2551.9,5821.8289709762084,3451.9862829700005,null,null,62.124047873877053,102.7671519409171,110.5630881242804,91.203760973212468,126.85641139901469,80.550955006448902,203.41585082909353,null,null,3.4933333131449258,2.9084069683908105,1.0812739288970008,4.1576027397260109,4.9404356100000033,2.1803525208415961,1.8503349282296648,null,null,3.3498133299999999,4.38,2.95,3.44,4.05,1.74,2.34,null,null,12.210618800899908,5.0083773347701213,8.5186599817684705,13.977984344422683,8.6331187525205646,8.9060500198491379,5.9307177033492824,null,null,9.56,6.51,6.04,8.3699999999999992,7.98,5.55,6.44,null,null,4.5,"n.a.",3,5.5,null,5.25,"n.a.",null,null,8.1024380830316609,4.9628763274241816,5.3522033390909662,10.107532482149661,16.596870790368822,11.022547400676963,7.3732784910300886,null,null,920.19595552166629,474.41500000000013,920.66666666666686,376.30032428492041,428.21666666666675,835.47500000000002,926.34705616666668,3955.2696131399211,4881.616669306587,null,null,1373.7030464016636,864.78833333333307,1509.5249999999999,798.44268293256653,637.81223915499993,1474.9333333333334,1791.8475345833331,6659.2046351558956,8451.0521697392287,null,null,-2703.9350220159772,-3569.4355004326439,null,null,922.56663504000107,469.51000000000022,851.8,289.43016555517636,411.1,917.69999999999993,1045.5348590000001,3862.1068005951893,4907.6416595951887,null,null,1434.6147294000011,948.78999999999905,1693.6999999999998,824.24654583799997,740.2,1664.1,2030.9526149999997,7305.6512752379786,9336.6038902379805,null,null,-3443.544474642822,-4428.9622306428246]
[null,null,"N",2.4913167908647074,1.6760794315904568,4.6916890080429088,4.3345750084659702,5.3467286613125937,4.1355542791499067,0.38498556304137771,null,null,3.0467859504482315,2.530157815562291,1.643204154904945,4.3466151376800628,3.9472652289588668,5.9141424580605175,4.7226869128812279,null,null,79.034277971684446,93.854462163670462,52.576855532865871,78.912663615211855,104.0099171399993,105.87077124563928,90.272114045760134,null,null,3.0862868459210064,0,-2.3409378977637783,1.6729729654271448,4.6175076347281001,2.9823810435429743,0,null,null,6837.1,3416.98,11572.6,4481.3185652269458,2660.2,6344.5116152361661,3264.9391592700003,null,null,60.328603634311008,102.73263802242272,112.65175616516969,88.669732404204765,129.05275410591128,83.28483304639181,189.69245143211131,null,null,3.3258263426711823,2.5905017022039027,0.60015364916772107,3.8486043492372568,3.4092012959190336,1.0509817981246625,1.818015340364342,null,null,3.0968837100000002,4.3099999999999996,2.95,3.45,4.03,1.63,2.21,null,null,12.05827342262309,4.90176312488801,7.9837387964148396,13.529000324569941,9.7450382715068873,7.7537837837837911,6.0517162032598364,null,null,9.49,6.66,6.03,8.31,8.56,5.58,6.46,null,null,4.75,"n.a.",2.75,5.5,null,5.25,"n.a.",null,null,7.2439861679320705,4.9248088397938483,4.9051265662446664,9.9119260985230042,17.089521292033226,11.30639171952954,7.5171565150213171,null,null,922.98753905583271,478.42083333333335,922.4666666666667,377.06848006973604,430.65833333333336,839.50000000000011,924.27726574999986,3971.1018524589022,4895.3791182089026,null,null,1383.5891485933314,878.30999999999983,1510.7249999999997,806.21833461196036,644.31851071999995,1475.1666666666667,1801.2156299999995,6698.3276605919573,8499.543290591957,null,null,-2727.2258081330569,-3604.1641723830567,null,null,952.74292309999544,482.16999999999916,875.4,317.82772137409438,399.5,904.2,944.97099900000001,3931.8406444740831,4876.8116434740878,null,null,1599.3278990800002,1028.08,1569.1,891.50555597619996,744.5,1606.8000000000002,1798.579432,7439.3134550562099,9237.892887056194,null,null,-3507.4728105821123,-4361.0812435821135]
[null,null,"D",2.5741099538031378,2.0350428910385143,5.6768903256327397,4.7281323877068555,5.6784984336508488,4.2042774660486195,0.48076923076923078,null,null,3.1981129468184593,2.8502169019207648,1.6741452076033523,4.0529013882308238,3.9316108290877212,6.3567774509142447,4.6831336523945781,null,null,78.431600374047136,93.639897282523521,52.130135426505952,78.323350261025581,103.17469486110949,105.31230345165079,90.046381146672744,null,null,3.1948068515917925,0,-2.1916743355456307,0.43453246929667944,4.6403044566958052,3.2793254596894394,0,null,null,7149.8,3273.16,11769.5,4785.6407855964271,2716.2,6780.4030804810109,3510.3838357999998,null,null,63.251838212023173,99.497158101250491,105.92515915287497,85.606543162928986,130.52511384000408,82.61753779113198,196.45468000134809,null,null,3.2911716842957497,2.3079885520078665,-0.37556964858613995,3.1146049661399551,3.8298470167812364,0.96514515373810894,1.7010526315789474,null,null,3.0154855299999999,4.3899999999999997,2.96,3.43,4.05,2,2.19,null,null,11.987323184285536,4.5229138717467094,6.9297172274863801,12.901851015801352,10.711569663802315,6.6654869673794401,5.9406698564593308,null,null,9.7899999999999991,6.65,6.03,8.17,8.5,6.39,6.45,null,null,4.75,"n.a.",2.75,5.5,null,5.25,"n.a.",null,null,6.9356325967461885,5.1303314397344479,3.727708387403772,7.8237270051769059,16.194870193215682,11.819029018974248,7.786854983765279,null,null,922.02983838166608,480.00083333333333,915.19999999999982,378.73585466346748,432.2,844.55000000000018,938.40921274999982,3972.7165263784664,4911.1257391284671,null,null,1382.569244979165,880.95833333333337,1532.5166666666664,806.91537956338982,644.68333333333328,1475.0250000000003,1828.2458631666666,6722.6679578758885,8550.9138210425554,null,null,-2749.9514314974217,-3639.7880819140883,null,null,833.07197924999286,421.03000000000065,887.3,351.33102069610322,356,815.7,961.01787800000011,3664.4329999460897,4625.4508779460957,null,null,1376.6272710200001,844.52000000000044,1744.5,790.05501221955546,609.6,1529.1999999999998,1981.75441,6894.5022832395625,8876.2566932395712,null,null,-3230.0692832934583,-4250.8058152934536]
[null,2018,"E",2.4078251769652224,1.422230274481378,4.7140952231547617,4.5729657027572372,5.3590959201744264,3.8632506263638304,0.38350910834132856,null,null,3.226346752011632,2.9172104256117422,2.0740982276559423,3.9304983974329208,3.8068619058462998,6.6605838755985243,3.2543350864128628,null,null,78.891642780860963,94.023884775943458,52.638094241775349,78.628960562514209,104.03140002563175,106.06634192496833,90.363985483341011,null,null,3.2281022048072447,0,-2.3180671350007698,1.1063215374145426E-2,4.7926229730830858,3.5285902774208018,0,null,null,7120.0502999999999,3441.87,11345.9,4674.0289756200364,2739.8,6803.9781630356683,3219.9777227200002,null,null,62.809300808576538,103.02149944147187,105.48346903062252,87.959663681286344,135.84042485887485,87.794403967967739,197.2166538553343,null,null,3.6053639618403541,2.8472749196141538,0.53087865168538861,3.5927395498392203,3.0131462929911548,1.7588024278266543,1.42602196752626,null,null,3.6385876599999998,4.3099999999999996,2.96,3.5,4.03,1.69,1.8149999999999999,null,null,12.374225115255307,5.0361441586280877,7.9797325842696596,12.925935691318317,12.292982683003792,7.8629826472648308,5.9935052531041011,null,null,10.130000000000001,6.53,6.08,8.18,8.76,6.62,6.4,null,null,4.75,"n.a.",2.75,5.5,null,5.25,"n.a.",null,null,6.1547674726853296,4.6976374204637406,4.0845463747357869,8.787771835958381,16.158911427150024,11.781437367081281,7.3081624939931311,null,null,923.43033296666579,486.15500000000003,915.21666666666658,379.38354471061069,436.43552980333334,852.7166666666667,955.9954388333332,3993.3377408139427,4949.3331796472767,null,null,1385.7700677483326,885.2791666666667,1543.7583333333334,817.38936686210138,646.22841355000003,1498.3166666666666,1860.2551476666667,6776.7420148271003,8636.9971624937662,null,null,-2783.4042740131572,-3687.6639828464904,null,null,823.70711817999563,500.02,879.4,400.37571789886067,465.57595276000001,769.50000000000011,949.2,3838.5787888388563,4787.7787888388566,null,null,1381.0403651900108,898.76,1566.4,833.91938536089776,668.88110600999994,1573.1,2027.24,6922.1008565609081,8949.3408565609079,null,null,-3083.5220677220523,-4161.5620677220522]
[null,null,"F",2.212488153872779,1.2286566085463904,4.1510318949343246,4.3333333333333339,4.8161039269698067,3.3158953722333822,0.38240917782027312,null,null,3.3588622703839368,3.0752738260477757,2.7693704498830738,3.9203751154361282,3.5409789630998985,6.9472515975845255,2.660142226132252,null,null,79.282443566864188,94.374390285848804,53.118560360599744,78.39367141270013,104.58070416614399,107.56719393897907,90.514404547708665,null,null,2.4532936216300127,0,-0.57418587050558789,-1.4829870201496826E-2,4.6509741082928571,3.6621078173879966,0,null,null,7015.9,3370.66,11475.2,4764.165179075585,2770.9,8050.147613639987,2824.90965276,null,null,62.202851221090647,101.56120531052058,106.915234733948,86.815176685527689,129.08715280548532,106.38407819138267,169.35715355580464,null,null,3.7055274893860553,3.0241865238732717,1.0743706372438726,3.8498402555910531,4.914454433083443,2.497807136983853,1.4121904761904709,null,null,3.28750594,4.29,2.94,3.46,4.51,1.7456538739512792,1.8,null,null,12.579198567958993,5.2468772869254803,8.5442918261652885,13.252396166134183,8.309097991062929,8.7819058191166359,5.6758857142857089,null,null,9.81,6.54,6.08,8.1999999999999993,8.35,5.5015999999999998,6.08,null,null,5,"n.a.",2.75,5.5,null,5.25,"n.a.",null,null,4.9092829247841641,4.9200491644593614,3.5488823410208203,9.6423851589230836,16.674414537975824,11.593720364612704,7.1498270035061262,null,null,925.75611620749851,489.27333333333331,914.07499999999982,380.00254856400102,437.35154586499999,856.05833333333339,951.34236591666684,4002.5168773031669,4953.8592432198329,null,null,1388.5321310616666,890.76666666666677,1549.8583333333333,817.67572167075934,649.33146130166665,1502.4750000000001,1868.8690682500003,6798.6393140340924,8667.5083822840934,null,null,-2796.122436730926,-3713.6491390642591,null,null,911.74363845999505,488.78,928.30000000000007,429.69232226684454,458.00861867999993,819.8,926.128827,4036.3245794068403,4962.4534064068403,null,null,1289.9188044600012,826.18000000000006,1425.6,745.64272924679528,606.45880070000021,1386.4,1676.441092,6280.200334406798,7956.6414264067989,null,null,-2243.8757549999573,-2994.1880199999569]
[null,null,"M",2.6129676904971761,0.9105661738189732,4.1409966466505521,4.3521594684385452,4.8384299879093637,3.9112903225806317,0.57416267942583188,null,null,3.5254768924310307,3.1738140044955023,3.5770098168052837,3.8989200803940998,3.2296111541674395,7.2353724080051638,1.979428207645038,null,null,79.021682282410538,94.689190096912441,53.348697304925501,78.470229337176491,104.94119343541875,108.20801302529051,90.632752105762705,null,null,1.9285924893451545,0,0.48183875225968809,0.5206032447254485,4.6873629746557972,4.0078789354965085,0,null,null,8473.9,3400.37,11740.8,4832.1434372273143,2852.1,7576.7978562124863,2787.7063490299997,null,null,75.606783334985423,100.99064007733851,108.05976691663111,87.586873199233423,127.26086931481539,104.28371667786256,165.12133991951404,null,null,3.3007838928495308,3.3489395157687794,1.0649056462483129,3.6586119070359691,4.8786569437957805,1.8162700814901183,1.1740960989533831,null,null,3.4417385500000002,4.29,3.03,3.36,4.38,1.8187,1.7549999999999999,null,null,12.061859809799694,5.5885464129366511,8.5163419200239616,13.260713148678759,7.8943052725614962,7.8218734963135557,5.5241198858230316,null,null,10.33,6.55,6.11,8.23,7.61,5.6927000000000003,6.13,null,null,5,"n.a.",2.75,5.5,null,5.25,"n.a.",null,null,3.8830331632307979,5.3508448302869605,3.7553130105482335,10.35181130884788,15.894782285555277,12.788396678576275,6.8240801937131002,null,null,936.05638832249781,483.74,912.27499999999975,378.85901375953472,435.07595586999997,853.4083333333333,959.82118627500006,3999.4146912853666,4959.2358775603661,null,null,1384.7116176499997,889.6674999999999,1540.1249999999998,819.38038797179115,646.99000090666675,1511.75,1871.5825422500002,6792.6245065284556,8664.2070487784567,null,null,-2793.2098152430913,-3704.9711712180911,null,null,1112.420850499992,493.66999999999985,1065.3,417.57655459964616,511.12792657,930.5,1102.6100452999999,4530.5953316696368,5633.2053769696358,null,null,1423.5426651799933,870.46,1486.8,833.69978994817711,626.75353355000016,1632.7,1983.6550540000001,6873.9559886781699,8857.611042678167,null,null,-2343.3606570085321,-3224.4056657085321]
[null,null,"A",2.3754301980577606,0.87387387387387294,3.9203484754200311,4.2039059913935741,4.8240941781801796,4.0456848709080599,0.76555023923444698,null,null,3.5941047547398979,3.0450935241186299,4.1905517017833311,3.8439530579904937,3.0507211647728338,7.480035917535897,1.4570358698007566,null,null,79.103337020416873,95.031627205065249,53.665034543798079,78.723831836773726,105.35297545690941,108.59150221299069,90.820199334583606,null,null,1.161088161003597,0,0.99386415914939263,0.80594044929493069,4.88220649321336,4.2210806592490897,0,null,null,8128.2201999999997,3401.03,11845.9,4873.4576251489889,2932.5,7202.1803552235524,3344.6422300300001,null,null,71.758541917123722,101.44636603888395,108.63128769400574,91.373148050940685,131.89225865730467,100.22814653691236,204.86484645578491,null,null,3.6869879761578277,3.2774850406358853,1.2794910179640782,3.9404415501906018,4.6880047132254345,2.0847718305504093,1.0067426400759765,null,null,3.4717663399999998,4.18,3.05,3.52,4.21,1.9897,1.78,null,null,12.243728575980178,5.4980798428150406,8.7563712574850374,13.258710292249051,10.491220113557171,7.8291715213358142,5.3236942070275441,null,null,10.48,6.42,6.2,8.27,7.21,5.7499000000000002,6.13,null,null,5,"n.a.",2.75,5.5,null,5.25,"n.a.",null,null,2.9923700113904772,5.0620712594141581,3.4486803286323697,11.652842049005919,13.812784202251937,13.532892362416082,6.4633307822110631,null,null,939.73862931833082,489.87249999999995,912.00833333333321,376.92034493843062,441.86641886166666,859.95833333333337,975.34309619166686,4020.3645597850955,4995.707655976762,null,null,1410.4154892008326,904.29750000000013,1566.0249999999999,833.63965739995331,659.5266813208334,1528.6000000000001,1899.7166955833334,6902.5043279216179,8802.2210235049515,null,null,-2882.1397681365233,-3806.51336752819,null,null,969.78816413999698,519.96000000000026,943.9,393.88485534813287,504.94602915999997,877.30000000000018,1108.4048010000001,4209.7790486481317,5318.1838496481341,null,null,1512.5065518799952,1000.8499999999999,1657.6000000000001,891.70531031369887,698.74783752000019,1607.5,1919.700844,7368.9096997136949,9288.6105437136939,null,null,-3159.1306510655641,-3970.4266940655634]
[null,null,"M",2.0359031201269446,0.82741253709866147,4.0865384615384475,3.9933993399340006,5.2647100235690694,4.4703987112363661,0.76555023923444698,null,null,3.702776362375527,2.2087386607790531,4.4342857727868621,3.7562957343735319,-4.4579978108933744,7.6695222405323946,1.0151110838782582,null,null,79.511608701887198,95.307689316647611,53.885427139887142,79.477408057777893,106.08532031595921,108.82524918236004,91.197912998767578,null,null,-1.0070217697586545,0,1.4389324287600729,1.410792983677474,5.0729682688445541,4.1668162988531563,0,null,null,8010.7,3532.18,11849.5,4890.554671413397,2868.5,6911.1900791018998,3307.9993902700003,null,null,71.680043227924685,105.58798630176298,111.62097914797744,93.903400898586213,131.38920877546411,97.528749036899157,203.31132245574528,null,null,3.8359996434441186,3.2854036214432236,1.0889607390300364,4.1412250079339818,3.8405072940444644,1.5021492289900171,0.94223646723647003,null,null,3.2165026499999998,4.1399999999999997,3.01,3.47,3.88,1.9204000000000001,1.7149999999999999,null,null,13.779482433805684,5.6557907412362844,8.5442956120092521,13.487972072357971,9.3704160742906009,7.6717437548188547,5.3137701804368511,null,null,10.539722330577412,6.53,6.22,8.1999999999999993,8.34,5.3033000000000001,6.12,null,null,5,"n.a.",2.75,5.5,null,5.25,"n.a.",null,null,2.0882319324248666,5.2141296026069428,3.8430112397368932,12.15781042155999,10.911333039210724,12.869139797450369,6.1317849013327264,null,null,945.14442625082995,490.27416666666676,910.24166666666645,372.20916586196898,442.65992481416657,862.66666666666663,955.43864960833344,4023.196016926966,4978.6346665353003,null,null,1416.2296428874981,908.95500000000004,1593.1249999999998,844.27322300200103,659.01678349666656,1545.4750000000004,1884.6697071666665,6967.0746493861652,8851.7443565528338,null,null,-2943.8786324592002,-3873.109690017533,null,null,1098.3507001599889,512.79999999999995,956.8,407.08152907616119,469.45802566999998,976.2,909.77050000000008,4420.6902549061451,5330.4607549061438,null,null,1561.1622412799893,973.17000000000007,1881.1,973.88538237068292,655.55064851999987,1708.9,1927.7276489999999,7753.7682721706697,9681.4959211706737,null,null,-3333.0780172645245,-4351.0351662645262]
[null,null,"J",2.1341316063528097,0.89879561387740425,3.7902667794264682,4.1474654377880071,5.6707510633995986,4.6288842376428629,1.1663470757430454,null,null,3.7259259566771106,1.7320256573443504,4.3123761991314691,3.6636944008771168,-4.2606730118403071,7.7386568959805988,2.8996008024742199,null,null,79.794577017409097,95.332046352892888,53.965526658102284,79.780001930393681,106.55515708000723,108.79388626497484,91.155851934581975,null,null,6.6765258668008845E-3,0,1.9823148030586626,2.1707918646831055,5.2103541563372433,4.0268796112327383,0,null,null,8070.9,3457.39,11979.2,4884.7412109127436,2572.4,6597.9586467956469,2895.9110779099997,null,null,71.560793235375812,104.44513925706404,111.18345185041005,92.358597644868311,117.081529820464,96.050877547897571,174.56980874737422,null,null,3.736134369217901,3.2916194548369853,1.3678866666666614,3.862345132743374,4.2338761273548542,1.8193979379857166,0.6115204731013667,null,null,3.2757069099999998,4.22,3.07,3.4,4.1100000000000003,1.8028,1.7849999999999999,null,null,13.659904439202084,5.6206859077142362,8.8155985185185113,13.022433628318597,9.8692160727252656,7.1497615757482791,4.9163116668957025,null,null,10.541406350781061,6.57,6.29,8.1999999999999993,9.08,5.3677000000000001,6.14,null,null,5,"n.a.",2.75,5.5,null,5.25,"n.a.",null,null,1.5006209498118483,5.602774686067713,3.9884091510973274,12.360623536964631,8.7437002681588716,11.932454382803037,6.021679486258269,null,null,945.96864793749592,493.52833333333336,910.72499999999991,368.63949124387045,435.93976429249989,866.81666666666672,971.08744077500012,4021.6179034738657,4992.7053442488659,null,null,1419.0991880883312,918.98583333333329,1601.0583333333334,850.22359656850733,641.61093426249988,1570.75,1891.228930333333,7001.7278855860059,8892.9568159193386,null,null,-2980.1099821121384,-3900.2514716704718,null,null,1007.595261439993,532.40000000000009,906.9,378.12717640624828,384.33847517999993,916.1,1097.4522610000001,4125.4609130262434,5222.9131740262419,null,null,1435.0018080199939,993.42000000000007,1605.2,914.58038312739166,461.89318206000007,1747.9999999999998,1897.578798,7158.0953732073904,9055.6741712073854,null,null,-3032.6344601811434,-3832.7609971811435]
[null,null,"J",2.084340184925372,1.0607695073714551,2.6052711299606166,4.2336724647194073,5.171925852311821,4.4278367084538361,1.3046109510086528,null,null,3.5997535904650291,2.5156825975860833,4.0162431531524341,3.6494656459918797,-4.1387539970903742,7.5700286463378248,2.1178761177382821,null,null,79.535474661203452,95.202788772082144,53.747144174126028,79.595320160467764,107.17271573980656,109.19084226326646,91.212484791884137,null,null,-0.84585256004833831,0,2.5199871467060695,2.3520681590878554,5.3466567098565303,4.3199649242625568,0,null,null,7900.4038,3752.4,12127.1,4813.8329813645632,2414.6,7391,2526.4067045899997,null,null,69.752972077510279,108.84367948721297,110.753957818901,93.040202913732131,113.01767173018879,113.48047206625857,154.00965066020674,null,null,3.835710558525848,3.1458601672300239,2.4996073221139667,3.9683217884130859,3.6218700790777842,1.7213449480569809,0.47913816008442456,null,null,3.4577165299999999,4.24,3.08,3.57,4.78,1.7159,1.79,null,null,13.730393836973336,5.4711937377690729,10.091809861234134,12.775456549118374,11.354695956414464,8.4928152981916494,4.7632472043399154,null,null,10.489836757804584,6.59,6.36,8.17,9.7899999999999991,5.7885999999999997,6.13,null,null,5,"n.a.",2.75,5.5,null,5.5,"n.a.",null,null,2.0082522639847777,5.6019228059110082,3.9036428331589157,12.668801134728881,5.806133328415819,13.696699996199158,5.1581917390429277,null,null,951.30342668666219,490.34833333333336,910.12499999999989,366.49755850824505,439.75694323166664,876.39166666666688,979.36236702500003,4034.4229284265734,5013.7852954515738,null,null,1441.904807293331,924.42916666666679,1612.75,861.61668279092999,630.90490513833322,1595.9583333333333,1914.6629169999999,7067.5638952225954,8982.2268122225942,null,null,-3033.1409667960202,-3968.441516771019,null,null,958.47873387999823,511.65000000000009,899,359.6526602819003,485.13768133999997,934.69999999999993,1026.7103959999999,4148.6190755019052,5175.3294715019038,null,null,1489.6417721400026,945.60000000000127,1658.3000000000002,920.32824497828517,509.82512139999994,1770.1000000000004,2118.6063669999999,7293.7951385182896,9412.4015055182899,null,null,-3145.1760630163881,-4237.0720340163862]
[null,null,"A",2.2403361755443707,1.4491449144914488,3.3649829092290218,4.3506705920837465,4.9511530243974669,3.8673591689971794,1.0795019157088077,null,null,3.3252141808510105,2.8437857659862855,3.7204193300758845,3.6793079792189003,-4.2214393691132077,7.1655416667968472,1.6048356372942767,null,null,79.74117785070986,95.010587483399632,53.721328898526131,79.327885034721106,107.89256733125093,109.55597883397832,91.203570243200502,null,null,-1.2460219089082725,0,3.227180024253113,2.6753676542399076,5.3343196973648572,4.562228288342947,0,null,null,7799.9912000000004,3655.86,12535.8,4726.7085381577817,2315,7430.6821161792477,2787.9804913400003,null,null,68.527826125852599,109.7611942090947,114.4307880831048,92.550887982708105,111.52177924691181,108.89523874930094,170.04835559024571,null,null,3.6283760042476967,2.7214177978883867,1.726906966490295,3.7463385579937261,5.493746608160075,2.4615440803138942,0.71280335838221964,null,null,3.5732170399999998,4.21,3.07,3.57,4.8499999999999996,2.0482999999999998,1.8,null,null,13.571387311747221,5.156135214266703,9.2439594356260955,12.639429467084636,10.572220186671069,8.2099332256327653,5.4417542429899504,null,null,10.49066799339545,6.68,6.37,8.17,9.89,5.4657,6.58,null,null,5,"n.a.",2.75,5.5,null,5.5,"n.a.",null,null,1.9863477023189136,6.4604132689425109,4.2231822997498947,13.662502809932132,3.2725355370075482,13.364072240070124,5.1667387600109915,null,null,958.29494695249502,491.66833333333335,913.89166666666654,368.11632318565404,444.75968046083335,877.94999999999993,992.64215377500022,4054.6809505989822,5047.3231043739825,null,null,1444.365989516665,930.7791666666667,1625.3916666666667,871.57928944334492,622.76231312250013,1613.4750000000001,1928.1255158333333,7108.353425415843,9036.4789412491755,null,null,-3053.6724748168604,-3989.1558368751935,null,null,979.31457100999285,494.58999999999969,935.6,358.90620980898598,493.28592459000004,892.8,1025.2977719999999,4154.496705408972,5179.7944774089774,null,null,1464.9985897700026,1012.7399999999998,1751.8,968.91435550877986,580.41461865999997,1797.2000000000003,2025.535644,7576.0675639387773,9601.6032079387733,null,null,-3421.5708585298053,-4421.8087305298031]
[null,null,"S",2.211752846119865,1.3846430498111908,4.5520507141220339,4.3833824010467888,5.1374086584802514,3.2870186581976699,0.75377268385863794,null,null,2.8452246741819534,2.0837679559964686,3.4435890691696085,3.7083254918084396,-4.5803765406682153,6.5970847024584138,1.884914289275758,null,null,81.239759487854727,95.078813660747812,54.585493833413949,79.533068132739828,107.96417821209106,109.83498090063479,91.342270086971368,null,null,0.50379474959777826,0,4.9582659724261777,2.8072895227810735,5.2939982085484658,4.4683317304259749,0,null,null,7468.7727000000004,3558.55,12309.2,4629.7832003720378,2122.6,7328.6,2200.1805097499996,null,null,67.422867663872623,108.30103521370017,118.99380288220995,92.277565662114597,111.29132510121791,106.60068076099671,133.04346936665473,null,null,3.6084374361848615,2.8360872649875786,0.55278617868362989,3.7904669382638563,5.5669955421510142,4.3811714197863303,1.1277268194279662,null,null,3.6225425200000001,4.26,3.13,3.59,5.27,2.1789875477662557,1.89,null,null,13.266695232171843,4.9863142958495867,7.9557973555409607,12.699931056095258,12.226899918920809,9.7170107917938537,5.8024897335461887,null,null,10.523450251057346,6.44,6.36,8.17,10.52,5.8731681699515201,6.6,null,null,5,"n.a.",2.75,5.5,null,5.5,"n.a.",null,null,3.6776062933818965,6.7179967915566907,4.970978007023108,13.630120416222358,4.9589351650070057E-2,13.201750113251954,5.0925835021585542,null,null,958.86072742249462,490.88499999999999,913.88333333333333,365.79451633371053,445.66717773000005,887.9666666666667,999.91716777500017,4063.0574214862058,5062.9745892612054,null,null,1428.9877817699987,946.64583333333337,1634.9499999999998,874.09830216883563,615.87996735833337,1638.3500000000001,1929.6463110000002,7138.9118846305,9068.5581956305014,null,null,-3075.8544631442951,-4005.583606369295,null,null,936.54815390999465,464.03999999999996,837,285.64826269237142,409.52109643999995,901.1,901.90767500000004,3833.8575130423706,4735.7651880423728,null,null,1179.4706838199954,1017.1799999999994,1579.1,900.69693113756273,509.55725964000004,1620.3999999999999,1767.983827,6806.4048745975597,8574.3887015975633,null,null,-2972.5473615551891,-3838.6235135551906]
[null,null,"O",2.0269004078892925,1.4906609195402269,4.337587359465215,4.6640574037834153,5.1042985286963898,3.5172687574433867,1.0280382775119559,null,null,2.308594046879751,1.6260698714079078,3.2479282869343837,3.6970429312170228,-5.3488055788674096,6.0777914656089305,1.1571122232675031,null,null,82.925275728525321,95.027682296525683,54.932056921220394,79.341185045981433,108.088436979831,110.11398521929792,91.42989216356591,null,null,3.6154868527235227,0,5.2514373799338889,2.5904520239291897,5.5070726579191795,4.5344467116096014,0,null,null,6866.1754000000001,3499.76,12357.4,4612.6674062992843,2032.9,6984.5,2374.0483965200001,null,null,63.768238947704567,103.87007870627178,120.78836757538858,94.160096359125916,109.61898653263074,102.19483109125488,143.82099059361624,null,null,3.6981419380833707,2.6793983365776,0.74030141973060892,3.5216889996883918,6.2355551170822006,4.565258820371267,0.91258005025844924,null,null,3.6663670599999998,4.21,3.14,3.64,5.0599999999999996,1.7476,1.95,null,null,13.400819765336456,4.96532295168997,8.1585293046960246,12.407260828918682,12.529582619530535,9.8943213683080682,5.4261785301915388,null,null,10.660239715476584,6.53,6.39,8.24,10.87,5.9096000000000002,6.51,null,null,5,"n.a.",2.75,5.5,null,5.5,"n.a.",null,null,5.1187927023158775,6.7592091028168877,5.1742681505719368,13.957560352226373,-3.2672906060357221,11.398195575390812,4.4595692859063396,null,null,967.59276480916105,492.64416666666665,914.43333333333328,366.20754711527428,448.24492954333328,885.54166666666663,994.97627152500024,4074.6644081344343,5069.6406796594338,null,null,1444.9277461224983,955.25166666666667,1647.6416666666664,878.30513456649805,604.37499824166673,1659.625,1941.3903399999999,7190.1262122639964,9131.5165522639982,null,null,-3115.4618041295612,-4061.8758726045603,null,null,1027.3510836799951,490.61999999999989,858.30000000000007,294.38653493394088,442.04655895000008,888.59999999999991,986.24410399999999,4001.3041775639285,4987.5482815639261,null,null,1625.8943016299975,1052.0600000000013,1846.1000000000001,874.72853460994941,591.33082439000009,1926.8999999999996,2171.8809630000001,7917.0136606299493,10088.894623629953,null,null,-3915.7094830660135,-5101.3463420660119]
[null,null,"N",2.2924130467923365,1.0750761512273685,3.1483015741507705,4.7062641999350854,4.3957333820349653,2.3717595146166177,0.77996164908917043,null,null,1.8616192973610755,1.5845984428682216,3.1887866693488189,3.6758316683909511,-6.4619317679953783,5.6844475284181852,0.3350949339103681,null,null,84.920595702638423,94.877296171773892,54.699420040643105,79.143502946044407,107.86532193666724,110.50332177734158,91.523132478449,null,null,7.5695901850684155,0,5.0264637098428642,2.7755427565705055,5.9591319268513052,4.5750239556347712,0,null,null,6537.8323,3503.95,12472.4,4462.9558556984221,2026.7,6687.3247431731197,2579.2710548099999,null,null,58.564255756974227,102.34984458900722,121.24234876853002,93.379420255402025,105.31579113571074,96.365383402432116,150.17160703671473,null,null,3.4778600359933747,3.1312604148200776,1.8824337349397751,3.479959702417855,6.8261917801732386,5.6173113685345237,1.1709057352290571,null,null,3.5975362099999999,4.24,3.15,3.64,5.58,1.9041999999999999,1.96,null,null,13.241182043357032,5.5354139336997088,9.3668032128514245,12.352399256044638,13.778775283205887,9.7198099676724574,5.7253825626584547,null,null,10.732079455605849,6.67,6.42,8.2799999999999994,11.02,5.9271000000000003,6.55,null,null,5.25,"n.a.",2.75,5.5,null,5.5,"n.a.",null,null,4.6564307171231167,6.8424848593473531,4.9312294650942112,14.00238487290455,-6.343971991981789,11.101611878450313,4.4649620890699238,null,null,969.74392856832753,492.36916666666679,913.13333333333321,364.72659450344531,450.58781918749997,885.80000000000007,988.03861360833343,4076.3608422592733,5064.399455867605,null,null,1443.411815844999,951.9675000000002,1658.0000000000002,885.40239789358748,591.47365299833336,1675.7833333333335,1934.6553272499998,7206.0387000702531,9140.6940273202545,null,null,-3129.6778578109793,-4076.2945714526454,null,null,978.5568882099958,478.86999999999989,859.8,300.05629003214779,427.59774202999995,907.3,861.7191039999999,3952.1809202721488,4813.9000242721449,null,null,1581.1367357500037,988.67000000000007,1693.4,976.67271590127291,578.64269109000008,1808.2,1717.7592789999999,7626.7221427412733,9344.4814217412641,null,null,-3674.5412224691318,-4530.5813974691337]
[null,null,"D",2.0272621475774466,0.43824344870762438,2.3129150190255872,4.2244437278297209,3.8850547509849016,1.1705946620883314,0.15837320574162145,null,null,1.6172456258415191,1.8742115971586371,3.2637800905373715,3.6269636954057551,-7.6875838778987653,5.4763254948733975,8.2993808161138383E-2,null,null,83.10835146518815,95.012183397103072,54.693519144073065,79.089668634106815,107.01941999772788,110.56605382279739,91.6213064638291,null,null,6.0846005172708146,0,5.3319185894074517,3.2715290467338232,5.7365154921040622,4.2268282290833037,0,null,null,7494.9984000000004,3353.55,12755.6,4853.1386447195428,2038.9,7627.1078836426968,2907.0582651700001,null,null,68.517783645481785,99.118893904611426,113.55932336120256,91.23046266398174,107.34241795445925,98.937327768798227,160.07850169838505,null,null,3.8938003125832998,3.7951246660730238,2.6752096550718334,3.8911757425742679,8.6321639385310416,6.9632933970996715,1.818746387300501,null,null,3.6468646100000002,4.25,3.14,3.65,5.24,2.1215999999999999,1.98,null,null,13.585275868991921,6.0353072128228007,10.171819441405969,12.670306311881198,15.380325157611544,10.766721714193455,6.3915043639021514,null,null,10.812962593964714,6.5,6.45,8.1199999999999992,11.03,6.0841000000000003,6.56,null,null,5.25,"n.a.",2.75,5.5,null,5.5,"n.a.",null,null,4.4432114496036901,6.8864085962981436,4.5397688442660122,14.204321626748694,-8.828082165925677,10.372298125428436,3.3541087512918955,null,null,971.77817671749438,492.11583333333328,914.13333333333321,361.11242562398814,451.34094328791667,886.50833333333333,968.88348602500002,4076.9890456293992,5045.8725316543996,null,null,1438.8386851849984,955.35916666666697,1639.5250000000003,893.70157420729174,583.23084561666667,1683.1083333333336,1917.1636025833332,7193.7636050089577,9110.9272075922909,null,null,-3116.7745593795576,-4065.0546759378908,null,null,857.48295703999338,417.98999999999978,899.3,307.96099414261738,365.04728808499999,824.2,731.15634699999998,3671.9812392676104,4403.1375862676141,null,null,1321.749703099993,885.22000000000116,1522.8999999999999,889.64512798400642,510.71452385999993,1617.9,1771.8537139999999,6748.1293549440161,8519.9830689440278,null,null,-3076.1481156763912,-4116.8454826763918]
[null,2019,"E",1.6663756337366431,0.24984360485888271,4.1048689138576702,3.9549839228295856,3.3048488318587941,0.70811609991439906,-0.30477554918817584,null,null,1.5885686956039393,2.5140987114582658,3.4577293505998044,3.4615637031406159,-8.7914074134458922,5.3799434039730833,0.71888110593530374,null,null,83.879676575670572,95.24445413724311,54.067107714183088,79.243808988874946,108.32846103179138,111.28119856345926,92.046277927496561,null,null,6.4431894195015449,0,5.2976823492953589,3.1675016378280603,5.9286961769362607,4.0455392991671291,0,null,null,7571.5874999999996,3493.55,12452.4,4788.8999999999996,1961.6000000000001,7046.5049646461903,2844.6931911500001,null,null,71.081034112191006,99.927461738641441,116.29543082487007,94.433264908578437,109.80240371966769,95.72633541805429,168.4498577955948,null,null,4.5084958893157809,4.0699877909269491,0.90786444092675944,4.2181874420043268,9.9212425899130565,7.1115260392520527,2.3419131277848919,null,null,3.6397709100000002,4.33,3.16,3.69,5.1583060550661974,2.2852999999999999,2.0299999999999998,null,null,11.790722912606283,6.2844550860084958,8.2946467117570961,12.933498298793685,15.714175368554594,11.830311559264416,6.8682081683526599,null,null,8.3605535300000007,6.55,6.55,8.18,11.072876283627158,6.1733000000000002,6.5424999999999995,null,null,5.25,"n.a.",2.75,5.75,null,5.5,"n.a.",null,null,4.4761505862802808,7.3051971145787986,4.6742866691968699,13.71521307819541,-11.911048796065293,9.9487446696527648,2.9884078096588329,null,null,974.80280721082715,490.77083333333331,912.16666666666652,358.01014767695443,448.92931076791666,892.43333333333339,957.65706935833339,4077.1130989890316,5034.7701683473651,null,null,1442.4188867733308,958.97583333333353,1649.4583333333333,894.70935874853865,572.06335748749996,1687.9666666666669,1900.4697692500001,7205.5924363427039,9106.0622055927051,null,null,-3128.4793373536709,-4071.2920372453377,null,null,860.00268409999148,483.88,855.80000000000007,363.14838253445589,436.63636252000003,840.59999999999991,814.48300000000006,3840.0674291544474,4654.5504291544476,null,null,1424.002784249999,942.16,1685.6000000000001,846.01279985586075,534.87124846000006,1631.4,1826.914,7064.0468325658603,8890.960832565861,null,null,-3223.9794034114125,-4236.4104034114125]
[null,null,"F",1.5354770355484519,0.34841535029005516,4.4584553028597149,4.089456869009588,3.3579926806237168,1.1918672587053112,-0.50047619047618463,null,null,1.4786649481067089,2.7034465859587393,3.688123790945967,3.271770512913545,-9.6081168271004067,5.2639253022593966,0.87647561637385996,null,null,84.749941770339547,95.476354399966709,54.228344689926601,79.118420408482635,108.86660538812899,111.5761700850355,92.352548448269474,null,null,6.9123823726509661,0,5.0440513637539688,3.4787463230153115,5.9827045671758574,3.3915467664156624,0,null,null,7525.2952999999998,3615.3,12557.2,4838.3999999999996,1937.4,7133.8695190563603,2480.4440872700002,null,null,70.603425737943297,100.41713399117069,116.13530442341171,95.019913805810859,109.09972242715232,97.141760608923676,147.83037335399897,null,null,4.6432272759214523,3.9777256429773873,0.5471502478982555,4.1027624309392223,10.391810478580974,5.9860865357967601,2.5934558193626134,null,null,4.0652984300000004,4.34,3.15,3.69,5.3094594696521398,2.3952,2.08,null,null,11.995065330896596,6.2298787956813255,7.9567945677947849,12.816421117249842,14.667742021612719,12.066911177829093,7.1311659783009187,null,null,8.6145363600000007,6.6,6.56,8.1999999999999993,12.604218208320511,6.3169000000000004,6.5949999999999998,null,null,5.25,"n.a.",2.75,5.75,null,5.5,"n.a.",null,null,4.218567346316604,7.0481885113485632,4.2161525947022271,14.090362646076438,-14.099994703577302,9.634218830756879,3.2442669240535515,null,null,976.31050225332729,489.04333333333329,909.32499999999993,353.40479365605597,447.4112899120833,893.38333333333355,944.70416710833342,4068.8782524881335,5013.5824195964669,null,null,1441.1228891649971,962.60083333333353,1652.2833333333331,901.1339245868711,564.36626491750008,1694.5666666666668,1902.8768449166666,7216.0739120027019,9118.9507569193702,null,null,-3147.1956595145689,-4105.3683373229023,null,null,929.83597896999458,468.05000000000007,894.2,374.42807401606376,439.79236840999999,831.2,770.69400000000007,3937.5064213960586,4708.200421396059,null,null,1274.3668331600018,869.67999999999972,1459.5,822.73751930678566,514.09368986000004,1465.6,1705.326,6405.9780423267875,8111.3040423267867,null,null,-2468.4716209307276,-3403.1036209307276]
[null,null,"M",1.4201372317598189,0.68222728491020856,4.1710348959113537,4.1388092964024192,5.0875154396655624,1.4745828482731846,-0.18401522359658529,null,null,1.2675038203077109,2.9244624967497113,3.8860316440029621,3.0964779053338201,-10.138233717939777,5.0825941030097095,1.4355580643723114,null,null,84.475594838191569,95.798475588991948,54.242212088279139,79.375948693432306,107.58496616506336,111.56533098175176,92.490277557349259,null,null,6.4383590619585362,0,3.9799349240780826,3.4154923662152821,5.7659079958260344,2.7107971081107372,0,null,null,8336.4212000000007,3594.41,12759.2,4830.8999999999996,1913.1000000000001,7353.5459141715801,2697.0524484800003,null,null,77.483024719104662,103.75867227142066,114.000060682773,96.794360473132485,112.13094091830871,97.992932795370365,162.27434706308412,null,null,4.7129326568721721,3.6031907645665533,0.81497232406008024,4.0726322225619089,6.6573165560866041,5.5968864244741887,2.2882259076168818,null,null,3.9689317599999998,4.3099999999999996,3.12,3.74,5.8845742684087234,2.0144000000000002,2.1,null,null,11.682388795397801,5.7485545077499856,8.273859535619275,12.734148578416384,13.605009069912398,11.109991128107076,6.8315863825536356,null,null,9.02676634,6.47,6.59,8.19,11.419850272378261,5.8235000000000001,6.6349999999999998,null,null,5,"n.a.",2.75,5.75,null,5.5,"n.a.",null,null,4.2706767075909147,6.9718587610636096,4.2748883929449644,13.891382078062264,-16.815600545838837,11.87279628564788,3.4579045014985654,null,null,974.33922555332776,490.81083333333339,909.25833333333333,352.48706121509923,445.2254869645833,898.00000000000011,928.23582999999996,4070.1209403996777,4998.3567703996778,null,null,1448.5622575894956,973.39000000000033,1663.9416666666666,904.66472849726642,556.62448314500011,1700.0833333333333,1886.45267375,7247.2664692317639,9133.7191429817631,null,null,-3177.1455288320853,-4135.3623725820862,null,null,1088.7655300999984,514.87999999999988,1064.5,406.56376530816522,484.89829120000002,985.9,904.99,4545.5075866081652,5450.4975866081641,null,null,1512.8150862739735,999.92999999999984,1626.7,876.0694368729221,533.85215228000004,1698.9,1786.5650000000001,7248.2666754268957,9034.8316754268963,null,null,-2702.7590888187342,-3584.3340888187349]
[null,null,"A",2.070072322870216,0.8047791372689137,4.7529940119760434,4.8602287166454925,5.7699592597319818,1.6079158936301692,-9.3922127255461008E-2,null,null,1.1327237021700096,3.5866817015117132,3.9854078712394401,2.9537162380812738,-10.467354047498802,4.8892822216414933,2.2717780534955874,null,null,83.901630609913241,96.155040702911322,53.884602947734656,79.104574288204319,106.9035935226367,111.60700208287338,92.720454941997531,null,null,6.1424251408241499,0,3.1228021769944125,3.3049568235262421,5.225942062071522,2.3854237867395689,0,null,null,8138.8918999999996,3712.89,12845.9,4950.8,1968.8000000000002,7275.4016782442932,2979.7113331100004,null,null,75.55809632803637,100.92463074299364,114.27460359814248,97.992487804463451,115.17211213908493,94.491658896647124,181.79646453501937,null,null,3.9971830961616948,3.407795634424478,0.24534476598785687,3.356631323841258,7.6158335572850691,5.2871708460134013,2.2260128458732851,null,null,4.2974513300000003,4.24,3.14,3.74,6.1803796302169323,1.9298999999999999,2.13,null,null,11.257476002155407,5.719193982738072,7.6341550553769251,11.872729475916385,12.374495538853806,11.591699330493011,6.6501681066072509,null,null,7.8117478399999998,6.57,6.6,8.17,11.494728606171783,5.4684999999999997,6.55,null,null,5,"n.a.",2.75,5.75,null,5.5,"n.a.",null,null,4.1229420693254859,6.9514070717207943,4.6301586152399654,13.244291860545099,-19.648706478528645,10.926092435861223,3.1895898407427126,null,null,976.54889646166146,486.32333333333327,907.125,351.87705680810922,441.46080580291664,896.28333333333342,905.96326325000007,4059.6184257393543,4965.5816889893549,null,null,1438.4503316561631,969.04083333333358,1661.0083333333334,902.12405329505452,546.83950224333341,1699.7666666666667,1888.2019367499997,7217.2297205278874,9105.4316572778862,null,null,-3157.6112947885317,-4139.8499682885313,null,null,996.30421503999946,466.11000000000013,918.3,386.56480246425178,459.76985521999995,856.7,841.13400000000001,4083.7488727242526,4924.8828727242526,null,null,1391.1634406800067,948.65999999999985,1622.4,861.21720788715618,581.32806670000002,1603.7000000000003,1940.692,7008.468715267165,8949.1607152671677,null,null,-2924.7198425429124,-4024.2778425429115]
[null,null,"M",2.3219000529435876,0.8050263134421497,4.5369887506518696,5.1412250079339854,5.9949961396103735,1.3107170393215433,-4.5584045584074308E-3,null,null,1.0260957603078245,3.3087303160011765,3.9729861432469766,2.8933673523430352,-3.5632230648152552,4.7292187119684295,3.1318469408696092,null,null,82.851352036865876,96.239164108805014,54.053362006946855,79.064722136367592,106.77407407653536,111.90232588401228,92.834795785755205,null,null,4.7445816791141917,0,3.018513333046136,2.7557177720583468,4.8068808565630867,2.343141338470339,0,null,null,7739.3371999999999,3765.82,14070.1,5028.6000000000004,1947.8000000000002,6980.5,2797.80935404,null,null,72.003811441648466,106.36945067975476,127.64470902345639,99.891590463079055,114.38543145820013,101.07868122683858,173.57469265135131,null,null,3.8878284560764178,3.4075420762028048,0.5385761117445802,3.1089375188650807,5.241411760583035,5.3019888888888547,2.1946584459690501,null,null,3.8924265299999998,4.24,3.17,3.75,6.1536541328112122,1.5387,2.19,null,null,11.600586571315276,5.8776570010852405,7.8469940136830063,11.573742831270753,11.997769591071775,10.938411339421577,6.6248603924965277,null,null,9.0250436100000009,6.73,6.59,8.2100000000000009,12.406844829981461,5.7721,6.62,null,null,4.75,"n.a.",2.75,5.75,null,5.5,"n.a.",null,null,3.5634344941058771,6.5405300567834335,4.6913092802999712,12.4907209814894,-21.287370857682063,10.507622752360945,2.1178469732963334,null,null,977.42142356249542,489.15916666666664,906.40833333333342,352.50802424500893,441.86871128708327,899.61666666666679,913.3683049166666,4066.9823257612538,4980.3506306779209,null,null,1433.0682045844978,977.57916666666699,1652.1833333333334,896.58125712842582,536.29586444083338,1716.9333333333336,1882.0056326666665,7212.6411594870915,9094.6467921537569,null,null,-3145.6588337258358,-4114.296161475836,null,null,1108.8210253699976,546.82999999999993,948.19999999999993,414.6531383189573,474.35289147999993,1016.1999999999999,998.63100000000009,4509.0570551689489,5507.6880551689501,null,null,1496.5767164200049,1075.6300000000001,1775.2,907.37182837113698,529.02699489000008,1914.9,1853.3720000000001,7698.7055396811338,9552.0775396811296,null,null,-3189.6484845121831,-4044.3894845121813]
[null,null,"J",2.4213709456570536,0.52955460538036259,4.7999999999999927,4.8040455120101289,5.625585579852407,0.91559590674772584,-0.54019987395336977,null,null,1.0372042199288878,2.4514336116297599,3.9794839559524195,2.8768620175861526,-3.5331338226298894,4.6325057714718962,3.88059207118248,null,null,81.834741302560388,96.393126269911377,53.841225436686265,79.163433121168964,107.24616171214774,112.45647132299707,93.161802104379674,null,null,3.3365630594170601,0,2.8629298377369707,2.3075574259162024,4.586470077768527,2.621259783197246,0,null,null,7793.1674999999996,3757,14279.8,5062.8999999999996,1978.8000000000002,8711.6,2923.7763551100002,null,null,71.455351000241151,106.29698591317374,125.13672073527692,97.467565845873111,119.31034301606552,123.55040261874409,172.27840008683063,null,null,4.031023033790011,3.7704786512769175,0.26717557251909102,3.4406634499396715,5.8953142759041057,5.0052759911558251,2.7751914546935899,null,null,3.7180350999999998,4.32,3.19,3.76,5.9114598359687873,1.7053,2.2200000000000002,null,null,10.616546062552013,5.9588898191527724,7.585877862595428,11.989951749095281,12.586404845838635,10.807055138761802,7.2795238526296808,null,null,8.7755948799999999,6.52,6.57,8.2100000000000009,11.697538437867497,5.5815000000000001,6.7,null,null,4.5,"n.a.",2.75,5.75,null,5.5,"n.a.",null,null,3.011213400324686,6.5347455390516007,4.8964310664277644,12.225813768535353,-20.463949156029415,11.566818064480167,2.3063344060075819,null,null,978.37566391249527,488.97166666666664,910.19166666666661,351.57371645850509,450.27475919958334,901.91666666666663,897.90619983333318,4081.3041395705841,4979.2103394039177,null,null,1422.0860908836655,972.17083333333358,1645.5250000000003,886.34784571826356,542.3157748491667,1706.3166666666666,1879.8798161666664,7174.7622114510959,9054.6420276177651,null,null,-3093.4580718805119,-4075.431688213846,null,null,1019.0461456399908,530.14999999999964,952.30000000000007,366.91548296820326,485.21105012999999,943.7,911.90700000000004,4297.3226787381973,5209.2296787381965,null,null,1303.2164436100059,928.51999999999953,1525.3000000000002,791.77944620544406,534.1321069600001,1620.6,1872.069,6703.5479967754582,8575.6169967754613,null,null,-2406.2253180372609,-3366.3873180372611]
[null,null,"J",2.8892280164944131,0.12787884718021925,4.3696486566282964,4.6914357682619574,6.0848492114204475,1.400538668718774,-0.26550829191878211,null,null,1.1813437661159478,1.9617258084916249,3.9389235404405842,2.8026060117042184,-3.251381612340472,4.7708664918220389,4.4596895051906307,null,null,80.066677153136837,96.803562505631959,53.760009974243864,79.062237755086485,107.29778629632501,112.56729446955183,93.111986898913074,null,null,1.733538591441989,0,2.5372068757207873,2.1400434741659877,4.3189491769875046,2.6761529519420986,0,null,null,7877.6172999999999,3693.67,14386.4,5068.3,1973.5,8214.9557832058163,3899.8993976000002,null,null,71.433442487750398,100.99991742095243,124.69034724443659,97.307472153331545,122.95836414740091,111.36410420412291,235.12441442141369,null,null,3.1206104326012247,4.1767799347899164,0.63270438472417556,3.5805834586466232,6.3847760896161319,4.4158161189951821,2.4520186046334755,null,null,3.4831547999999999,4.3099999999999996,3.19,3.75,5.7018070665093505,1.7402,2.1800000000000002,null,null,10.446947577235614,6.4938169345858388,8.048653465346522,12.033996992481208,9.4126896039681309,11.081855657585148,8.0869798941034308,null,null,8.7188317699999995,6.63,6.53,8.24,11.577063060639652,5.4332000000000003,7.8,null,null,4,"n.a.",2.75,5.75,null,5,"n.a.",null,null,1.4301269089084245,6.0544514801203375,4.996561155758239,11.587958863167858,-21.173511787386467,11.429621385980848,1.9793777796590195,null,null,980.90297706916181,491.59499999999986,911.7833333333333,351.41757950094171,451.87782203375008,906.22500000000002,900.06116683333323,4093.8017119371866,4993.8628787705202,null,null,1417.0868420519982,979.79083333333347,1649.3333333333333,883.60565576328952,545.45197277833347,1710.2916666666667,1865.4391189166665,7185.5603039269554,9050.9994228436208,null,null,-3091.7585919897683,-4057.136544073102,null,null,988.80649175999633,543.13000000000011,918.1,357.77901679114007,504.37443535000006,986.4,1052.57,4298.5899439011337,5351.159943901137,null,null,1429.6507861599969,1037.0400000000009,1704,887.42196551859536,547.45949654999993,1817.8000000000002,1945.3180000000002,7423.3722482285884,9368.6902482285877,null,null,-3124.7823043274548,-4017.5303043274544]
[null,null,"A",2.8558096363562626,-0.48806414692572797,3.0129335684891196,4.2946708463949808,6.3016169456871536,1.7155165781983328,-0.60515318354545367,null,null,1.396711763139219,2.0037441751641234,3.9326780189204271,2.6705511785718694,-2.7562489604943603,5.1361357312693112,4.7956410155578419,null,null,78.951662832028561,97.147204309990386,54.209486287753357,79.143412564835486,107.587912260172,112.71910661770352,93.364429792948528,null,null,8.6150014139244002E-2,0,2.1613965577313516,2.2627662230626711,4.1785587537698152,2.8525788231123146,0,null,null,7707.7112999999999,4575.57,14700.1,5063.6000000000004,1995.8,7899.7222149838335,3932.1073723700001,null,null,69.7087590764895,125.44947127235977,125.61745432092557,97.761454315972045,126.378574783812,107.68050490078073,231.74242641412906,null,null,2.9110561418257372,4.9019889977097932,1.928948494792414,3.936278929966941,5.377538908549802,4.2615753895023349,2.8423537779201618,null,null,3.1644786300000001,4.3899999999999997,3.19,3.74,5.9390031513538801,1.7349000000000001,2.2200000000000002,null,null,9.8585651598036055,7.1529752545818113,9.4911057212155843,12.412263300270515,10.714148561672269,10.144551951293289,9.2410758482348978,null,null,8.9039776499999999,6.63,6.52,8.23,11.90008179653824,5.5617000000000001,8.58,null,null,4,"n.a.",2.75,5.75,null,4.75,"n.a.",null,null,0.78631220841480776,5.6012676744183754,4.9134014922360469,10.360279557962105,-20.784645675963354,11.234941765223304,1.9732684549969015,null,null,984.45843969666169,490.93250000000006,913.65833333333342,348.79010564960481,451.61233138291664,908.49999999999989,891.69426916666669,4097.9517100625162,4989.6459792291816,null,null,1409.0628664778317,977.30666666666696,1648.1166666666668,876.44817455958128,544.16796094250014,1708.6666666666667,1843.0804819166667,7163.769001979912,9006.8494838965835,null,null,-3065.8172919173962,-4017.2035046673968,null,null,1021.9801225399915,486.63999999999987,958.1,327.37652359294191,490.10003677999998,920.1,924.89499999999998,4204.2966829129327,5129.1916829129259,null,null,1368.7108828800042,982.92999999999938,1737.2,883.02458106428219,565.00647663000007,1777.7000000000003,1757.232,7314.5719405742784,9071.803940574282,null,null,-3110.2752576613493,-3942.6122576613525]
[null,null,"S",2.5290714175627027,-0.67894466122739006,1.8043684710351577,4.4186775305546737,5.6241457216649771,2.0216773003305586,-0.61674560049748905,null,null,1.6910549234915857,2.3553723261399999,4.1726744421140074,2.5691907439005712,-2.052203369916537,5.4974301738567917,4.9438852420581503,null,null,80.406877711287137,97.366969531424743,54.84849358017226,79.295899317447081,108.12438965351031,113.42659357886436,93.481960355150406,null,null,-0.22944940247074655,0,0.57375152165754684,2.3556820443365973,4.0011090424467888,3.5851371968072421,0,null,null,7462.5070999999998,4466.62,14516,5055.5,2051.1999999999998,7587.8028349934102,3287.7810872,null,null,67.902159182623436,123.11915154949827,125.24900268815647,96.420951541849604,128.64811123218135,106.7064983106772,188.71594664369411,null,null,3.0927116949331244,5.0733901729498685,3.1291697761193831,3.8607292917166975,4.1950019391965201,3.2028709840265033,2.864411733846119,null,null,3.3582352900000001,4.3600000000000003,3.16,3.71,5.8458874799401324,1.7259,2.23,null,null,9.3134059641952547,7.5200013086366075,10.781100746268635,12.336224489795931,10.165412516564942,9.917228345388768,8.921770225851926,null,null,7.5227256799999997,6.79,6.51,8.23,12.82178287773236,5.4379999999999997,8.25,null,null,3.75,"n.a.",2.75,5.75,null,4.5,"n.a.",null,null,-0.17795862485061598,5.1494243495237235,4.4104310948471559,9.8921031433875086,-19.790415911164306,12.048719591495182,2.1931793457450333,null,null,988.56040778832823,490.77666666666664,916.98333333333323,350.35548508492064,454.89305008541663,908.50833333333333,904.45012958333336,4110.0772762919987,5014.5274058753321,null,null,1421.7306322778329,968.375,1648.0666666666668,870.46969212715487,545.42984430666672,1713.0500000000002,1835.2776629999998,7167.1218353783215,9002.3994983783214,null,null,-3057.0445590863224,-3987.8720925029897,null,null,985.7717710099954,462.17000000000053,876.90000000000009,304.43281591616181,448.88972087000002,901.2,1054.9780000000001,3979.3643077961606,5034.3423077961634,null,null,1331.4838734200046,910,1578.5,828.9551419484452,524.69986000999995,1673,1674.35,6846.6388753784486,8520.9888753784471,null,null,-2867.2745675822953,-3486.6465675822947]
[null,null,"O",2.0724345977549929,-0.86772907450008852,2.1696396068438428,4.0822686195076425,5.4396854509802495,2.4773738303421302,-0.74885649253653375,null,null,1.9978316972930348,2.6019145796569956,4.5423319145052616,2.5523136673911599,-1.1374039875148785,5.4138185387384166,4.9333403977359103,null,null,81.10416873787004,97.550485344979066,54.930394069020778,79.381505354182266,108.43576891165534,115.30430378772631,93.744768510775657,null,null,-1.8996912625155788,0,0.39552661859118254,2.3300166328949672,3.9448736612924273,5.4475932431647198,0,null,null,7692.7,4861.3500000000004,14631,5137.6000000000004,2118.4,7491.6,3388.5703558499995,null,null,70.412471695428664,122.69697870662819,124.67590346082112,100.71408433876239,130.54661001598603,109.23754628842136,175.09032348958118,null,null,3.5049280604929289,5.1726133444009266,2.7311052519062078,4.2156377245508914,5.5967529262535196,4.0769254846193617,3.0114076139704915,null,null,3.4131705999999999,4.26,3.16,3.71,6.0909202590264462,1.4930000000000001,2.2400000000000002,null,null,10.081098557897363,7.6238837302334064,10.306741252761332,12.670488023952087,10.436365719573363,9.5991200808322148,9.1372816191831348,null,null,7.0445676099999996,6.69,6.47,8.31,10.341874284685677,4.9420000000000002,8.32,null,null,3.25,"n.a.",2.75,5.75,null,4.5,"n.a.",null,null,-1.1582862918070314,5.2509948430059961,4.110745002232008,9.2466599918051617,-17.884464829592073,12.46003491736265,2.4077771400677461,null,null,989.27746589582841,490.96833333333319,918.44166666666661,347.49463900263027,458.27624324125003,914.41666666666663,925.52312091666647,4118.8750148063755,5044.3981357230414,null,null,1413.4696467028323,968.20833333333348,1649.95,874.72844517288411,546.21776825916675,1696.3833333333334,1817.9089994166661,7148.9575268015506,8966.8665262182167,null,null,-3030.0825119951746,-3922.4683904951758,null,null,1035.9557809699957,492.91999999999916,875.8,260.05638194645712,482.64487681999998,959.5,1239.1199999999999,4106.8770397364497,5345.9970397364596,null,null,1526.7624747299942,1050.0599999999995,1868.7,925.83357115870012,600.78591181999991,1726.9,1963.4570000000001,7699.0419577087014,9662.4989577086963,null,null,-3592.1649179722408,-4316.501917972244]
[null,null,"N",1.8558595617916422,-0.5731572650942458,2.9207740051113547,3.8437693738375627,5.7188934302477552,3.2250615763547361,-0.32859718304499225,null,null,2.1907856420721892,2.4734780926904971,4.6033662684928025,2.6497796529411954,-8.4044529167957932E-2,4.4766636235093316,4.7134743630381157,null,null,80.242135323279513,97.381643220948646,54.275799578286367,79.108137359943825,107.90496389989747,115.13313833629732,93.708449669205052,null,null,-5.690158365890853,0,7.0968808882947473E-2,1.7109912085451606,3.6319668341306954,5.3881334129099816,0,null,null,9150.2999999999993,4062.36,14604.1,5124.0364783089844,2161.6999999999998,7145.6,4569.8718668299989,null,null,79.409872052348121,101.61804008128723,123.32886156918912,96.956944408187013,122.36246243331959,98.850700519679194,227.9671560010276,null,null,4.706789043687718,4.8409032537895245,1.9716388790351189,4.4646208955223949,3.7319782117548188,3.2791827604204942,2.5569994110802794,null,null,3.1670308399999998,4.24,3.21,3.7,5.826547800697413,1.8753,2.2200000000000002,null,null,10.569819512128406,7.2748536171257738,9.4725540971975875,13.01592835820896,10.229876815470128,8.4153385728133028,8.9981648994302645,null,null,7.2599393399999999,6.66,6.44,8.2899999999999991,9.6679047855137057,5.9779,8.64,null,null,3.25,"n.a.",2.75,5.75,null,4.5,"n.a.",null,null,-2.3072623230150135,4.8375017073418514,4.7416324824318457,8.6005656046575609,-16.662603036635005,12.619671531465171,1.951645104805011,null,null,992.97566022166154,489.53833333333324,923.19166666666661,347.5284918435612,459.65918213374994,921.70833333333337,936.96236224999984,4134.6016675323053,5071.5640297823056,null,null,1402.9131374286651,967.58166666666659,1654.991666666667,864.36983876504439,543.13051060833334,1691.4000000000003,1803.650892833333,7124.3868201353771,8928.0377129687131,null,null,-2989.7851526030699,-3856.4736831864034,null,null,1022.9352201199933,461.71000000000004,916.8,300.4625241233191,444.19300874000004,994.80000000000007,998.99,4140.9007529833107,5139.8907529833086,null,null,1454.4586244599971,981.14999999999964,1753.9,852.36943900719848,541.59559927999999,1748.3999999999996,1546.662,7331.8736627471953,8878.5356627472065,null,null,-3190.9729097638774,-3738.6449097638761]
[null,null,"D",1.5224291145129978,-8.1930382300786069E-3,3.4055276015459901,4.0841584158415811,6.1297243704681899,3.6562789262573676,-6.2580315385681165E-2,null,null,2.2564319447304513,1.5191124317523401,3.8508197415788059,2.7865685050611284,0.91006069683905788,2.4498851231116703,4.3163691957876242,null,null,79.135085186018728,97.191297976848858,53.795878698389082,78.734594081027396,106.84612863466943,114.96675987718176,93.77365603581805,null,null,-5.4908392498758856,0,-0.56382911142139969,1.3019887588865635,3.5906919389496008,5.3740315381674142,0,null,null,8912.2999999999993,3936.49,14789,5808.8569290984369,2208.5,8781.4,4142.34042013,null,null,74.25707316498314,99.466947780793632,116.063651270137,100.07267971769384,122.21584848858622,98.925752495713681,198.85952730442332,null,null,4.1641742838111977,4.2585419421994475,1.4549245416078869,4.2425683709869233,3.4233928809168725,2.8338091084982491,2.2339783460803062,null,null,3.0921123700000002,4.25,3.2,3.72,5.2920828330410599,1.6742999999999999,2.17,null,null,9.4525602659315737,6.4587222038094119,8.9303469675599292,12.783733650416174,8.7475349671168292,8.4649199880934241,8.5279171128107087,null,null,6.9869658399999999,6.45,6.41,8.19,9.4358010174230582,6.0696000000000003,8.4600000000000009,null,null,2.75,"n.a.",2.75,5.5,null,4.5,"n.a.",null,null,-2.1296594071194552,5.597627985415099,5.0489536489688014,9.0293698423220103,-14.792507787741727,12.760180788599396,2.1849244506356946,null,null,997.67632499916169,492.08166666666665,930.79166666666663,352.74675362437716,465.89832368166662,932.72499999999991,956.24676124999985,4171.9197356385384,5128.1664968885398,null,null,1402.6711818978329,966.84250000000009,1656.8000000000002,862.84805799644971,544.82641620333322,1688.9833333333336,1790.9813271666669,7122.9714894309482,8913.9528165976153,null,null,-2951.0517537924097,-3785.786319709076,null,null,913.89093436999542,448.51000000000022,990.5,370.58013551240953,439.91698666000002,956.4,962.56913499999996,4119.7980565424077,5082.3671915424129,null,null,1318.8462367300044,876.35000000000218,1544.6,871.38375876087093,531.06539099999998,1588.9,1619.8189259999999,6731.145386490869,8350.9643124908616,null,null,-2611.3473299484685,-3268.5971209484633]
[null,2020,"E",1.5827643368556139,-7.8489390220480085E-2,1.7844294143042296,4.2994123105474724,6.4152757000630558,4.1724617524339518,0.3558122223510457,null,null,2.3336585315244305,0.39017033866503742,1.9887591563841351,2.8526541638281513,1.7216869805603547,-0.55426400958137967,3.7537575477984952,null,null,79.581877431069188,97.689451877839801,54.151334121361252,78.865675615340109,107.61534973451272,115.47066699611057,94.000609203662506,null,null,-5.9604605812882241,0,-0.53039290043625931,1.283238706455323,3.1498630705926391,5.4716743337854092,0,null,null,8211.4246999999996,3948.04,14895.4,5764,2237.6,10408.336724746965,3344.3621086600001,null,null,68.625238380409868,98.043325373395248,117.8539329124912,101.95948154232725,126.10420005877252,126.06642811943291,175.58676762204635,null,null,4.1023058294865242,4.3719208842634609,3.0314760356284332,4.0178440094899237,3.442330288033189,2.1733558077436426,1.797791017476444,null,null,3.1871662700000001,4.29,3.21,3.73,5.7631311041882727,1.6912,2.16,null,null,12.332630072559581,6.553633297032607,10.675081295065729,12.541381969157777,8.3532718198630604,8.0130949265687423,8.1352415937406395,null,null,6.9145027700000004,6.47,6.37,8.17,10.043156409826043,5.1388999999999996,8.52,null,null,2.25,"n.a.",2.75,5.5,null,4.5,"n.a.",null,null,-2.1597750987204178,5.4988652698424456,4.9679346881358111,8.8146636745707987,-12.890358723326756,13.371915179536442,2.450979864269609,null,null,1002.7499171024957,494.24833333333328,943.62499999999989,356.8210959334088,470.61771574333335,934.64166666666654,960.89443258333324,4202.7037287792382,5163.5981613625718,null,null,1417.1289698386663,968.9575000000001,1661.0249999999999,864.66261340364451,543.28489725916654,1685.0916666666669,1767.9955643333335,7140.1506471681432,8908.1462115014783,null,null,-2937.4469183889055,-3744.5480501389052,null,null,920.88578933999997,509.88,1009.8,412.04049024283574,493.26906725999999,863.6,870.25505600000008,4209.4753468428362,5079.7304028428362,null,null,1597.49623954,967.54,1736.3,867.78746474219827,516.37302112999998,1584.6999999999998,1551.084846,7270.1967254121982,8821.2815714121989,null,null,-3060.721378569363,-3741.5511685693627]
[null,null,"F",1.7900762599195572,-0.38958257461608103,1.2358985413523023,3.9901780233271942,6.4136214583747391,3.656658968437263,1.4453287644329923E-2,null,null,2.5399700514191106,-2.344841092519657,-0.85394054430203237,2.17513745142492,2.2586431568639829,-3.9733374245192179,2.9820444728150113,null,null,79.727250274378576,98.087739298813872,54.205619472043352,78.778283140961946,107.96278372183718,116.47733406624081,94.495206023681789,null,null,-6.427300260559524,0,-1.1153572928603723,1.1806740041331067,3.1223873541202312,5.7410263273403519,0,null,null,8102.0591999999997,3867.49,15203.2,5855.5,2269.6,9863.6,3374.7569836500002,null,null,68.451107723882515,97.447412906228251,120.87432594614089,103.07115717296288,129.93656653816805,129.60021268105325,167.55119415543166,null,null,2.956991340093551,4.71796293609194,3.560102207395841,4.3175442739079104,2.5831415859658504,4.022550092833268,2.1552352100113552,null,null,2.8954608199999998,4.3099999999999996,3.21,3.72,5.5631029999044586,2.202,2.17,null,null,11.671256851939637,6.8562934993540994,11.304390659379658,12.885661157024794,8.9098127942033667,8.6306476791682112,8.3932225046533322,null,null,6.6049045099999999,6.44,6.37,8.14,10.182828917217801,5.4591000000000003,8.4088888888888889,null,null,2.25,"n.a.",2.75,5.25,null,4.5,"n.a.",null,null,-1.9554972066749166,5.3676765180285191,5.9081431484056646,8.4420549025842728,-11.275165861062931,13.272470977651007,1.8375340670037543,null,null,1024.7540052608294,497.3533333333333,955.1,359.05822639702933,473.72092797249996,944.80833333333339,969.6073255,4254.7948262970249,5224.4021517970259,null,null,1446.768591121999,970.51499999999999,1667.175,862.30195307669146,547.15277014083335,1690.866666666667,1732.1622538333334,7184.7799810061915,8916.9422348395237,null,null,-2929.9851547091644,-3692.5400830424983,null,null,1193.88503687,505.31000000000006,1031.9000000000001,401.27363957950877,477.03091515999995,953.2,875.24871499999995,4562.599591609508,5437.8483066095077,null,null,1630.0422885600001,888.36999999999989,1533.3,794.40959538334823,560.50816443999997,1534.8999999999999,1275.326274,6941.5300483833498,8216.8563223833498,null,null,-2378.9304567738391,-2779.0080157738394]
[null,null,"M",1.9069285766384596,-0.53324188465219202,1.7683847315074255,3.8826047080403505,4.4185378473396941,2.4474187380497057,-0.83969931348454996,null,null,-7.4337041332176526,-9.5666355402723973,-4.0360936142506016,-9.843970119847123,2.4650443541009839,-7.1432191138783461,2.0177945392708252,null,null,79.556666185717489,97.795378629202915,54.130641730039606,78.514644748104288,108.03387678882085,117.63556296447207,94.710023681896374,null,null,-5.4826945387359221,0,1.8645137400320779E-2,1.1968219695093847,3.2638430092212429,6.3831143137867254,0,null,null,8032.8577080200002,3864.18,15337.7,6086.2,2394.5,9324.4,3223.7272755699996,null,null,68.798368610386504,105.28532793053671,122.19212355324709,106.56003581661604,135.71187063050547,111.88858718077945,158.92421513372054,null,null,2.2010980555406037,4.6982951623222817,2.9985886840432445,4.37743672748676,4.5443538279748967,4.1439611795446138,3.0049317043768822,null,null,3.3148440099999998,4.1399999999999997,3.14,3.7,5.3477499691828321,1.8828,2.14,null,null,9.3429794385385918,7.0810007464849836,10.682703962703981,12.896668628605067,9.2420441988261199,10.572917693169101,9.312339408007384,null,null,6.7416474500000003,6.51,6.31,8.0399999999999991,9.3968483871347832,5.0694999999999997,8.3944444444444439,null,null,1.25,"n.a.",2,4.5,null,3.5,"n.a.",null,null,-0.63281508084093163,6.3432273346886392,7.6019944479178703,8.369722691069569,-9.2207739229426604,10.526650515259718,1.8269167933354202,null,null,1037.7348745224965,490.91083333333336,950.02499999999998,358.93262475238208,475.85036749,935.50833333333333,965.28322733333334,4248.962033431545,5214.2452607648793,null,null,1460.2057185416681,960.64083333333338,1654.0333333333335,849.42764281047596,547.60700978249997,1674.7250000000001,1683.0829135000004,7146.6395378013103,8829.7224513013098,null,null,-2897.6775043697653,-3615.4771905364319,null,null,1244.53596124,437.56999999999994,1003.6,405.05654557239939,510.45156541000006,874.3,853.10082199999999,4475.5140722224005,5328.6148942224008,null,null,1674.0606153100002,881.44000000000051,1469,721.57771367833652,539.30302798000002,1505.2000000000003,1197.612916,6790.5813569683341,7988.1942729683324,null,null,-2315.0672847459373,-2659.5793787459361]
[null,null,"A",0.8911626229277152,-1.0492710830404626,1.8792425866381024,3.3323235383217207,3.2463383911215602,1.0727328058429724,-2.3736443820454518,null,null,-7.6934787313497344,-17.439528555192432,-6.4712591565196291,-9.4747559939125168,2.3530241106216367,-9.4033130521860553,-25.00526573627625,null,null,79.089798284684463,97.494464984255231,53.525731097555969,77.977175090277797,107.70590572285485,118.83387183619399,95.287378390738226,null,null,-5.2069949477456738,0,0.86877030442372005,1.5255131120407039,3.6799954371974217,7.2644749297418878,0,null,null,8530.9281593100004,3663.53,16549.400000000001,6131,2494.5,8613.7032668002321,5633.3423553399989,null,null,71.48710870131076,117.0856007463247,128.59034645586601,107.13517164208103,133.08309190197963,105.12361531985621,274.83710857233399,null,null,2.9822605854167454,5.3352523430836785,2.8079884976854927,4.8655408970976257,5.7526517457354265,4.987860775310498,4.633630287038498,null,null,3.1547401599999998,4.2300000000000004,3.09,3.67,5.4317625865585297,1.0955999999999999,2.15,null,null,9.3895149592809659,8.1346253545999581,10.542635713283751,13.246267956610966,12.563699708698509,9.1847394806172353,11.004860638339323,null,null,7.7222214899999999,7,6.21,7.94,10.3068899661298,4.4138000000000002,8.3699999999999992,null,null,1.25,"n.a.",2,4.5,6,3.5,"n.a.",null,null,-2.0086836719972911,6.0742415060164978,7.8943932078250789,8.7491045457915853,-9.6927837049300294,11.804081891661045,1.8089029924701183,null,null,1030.1086606383299,471.0625,942.41666666666663,356.69153087759673,468.11341600249995,910.38333333333333,928.50051166666663,4178.7761075184262,5107.2766191850933,null,null,1460.7205384483343,935.43416666666678,1632.4083333333335,828.18465261795689,535.68897410416662,1641.1083333333333,1604.7047293333335,7033.5449985037912,8638.2497278371229,null,null,-2854.7688909853637,-3530.9731086520301,null,null,904.78964842999994,227.93000000000006,827,359.6716759668268,366.92643736999997,555.19999999999993,399.74141200000003,3241.5177617668251,3641.2591737668245,null,null,1397.34127956,646.17999999999984,1362.8999999999999,606.30132557692298,438.31163856000001,1200.3,1000.15379,5651.3342436969251,6651.4880336969254,null,null,-2409.8164819300964,-3010.2288599300973]
[null,null,"M",0.60875081100752826,-0.94696974525974364,1.8030216647662494,2.2939933594928963,2.9330826341760647,0.98934550989343406,-2.4690584186173612,null,null,-7.8353307782225325,-19.635243747727596,-7.3478877893714962,-9.3593230889222667,2.0497153391967897,-10.378296077639222,-25.726834702724727,null,null,79.335946938443726,97.273809003080586,53.347940378274522,78.562617375428161,107.68900891808673,121.5856146553693,95.297216435834855,null,null,-3.7735818044049187,0,0.35609836416906165,1.5246455357014324,3.692823276242243,9.5990507985927049,0,null,null,8552.7344102400002,3441.4,16708.099999999999,6353.3,2562.5,8008.8939985043398,6104.1939384200004,null,null,70.082257135543529,115.87989624887072,125.27648575294803,106.25139824407775,132.78755110386163,102.32182980941525,285.61823583953856,null,null,3.2216374449188061,5.2163671641054865,2.8751389569478469,5.8615432280908921,5.9779292130649972,3.6363781461944451,4.7359928487546545,null,null,2.92022001,4.22,3.07,3.64,5.5605955600218904,1.7024999999999999,2.15,null,null,10.653359496657023,8.3359082746129314,10.664691634581729,14.405544408380067,13.227734046005395,9.5950265259985166,11.082696673852954,null,null,7.6261134999999998,7.31,6.22,7.96,10.6040722984696,4.8818999999999999,8.34,null,null,1.25,"n.a.",2,4.5,5.5,3.5,"n.a.",null,null,-1.014614995874108,6.1864760551375575,7.7042497649167707,8.3776354143717313,-7.9681401418362992,13.225688766196498,2.1061950124160678,null,null,1016.8784439899965,443.88083333333333,936.91666666666686,352.25869989923268,457.65137629083341,882.7166666666667,883.48691658333325,4090.3026868467296,4973.7896034300638,null,null,1440.5468652258339,895.81916666666677,1592.325,801.18262123085287,524.68352430916661,1573.9083333333331,1524.0939991666664,6828.4655107658537,8352.5595099325201,null,null,-2738.1628239191232,-3378.7699065024567,null,null,950.05842558999996,220.65000000000009,882.2,361.45916657858874,348.80841493999998,684.2,458.46785899999998,3447.3760071085926,3905.8438661085929,null,null,1254.4926377500001,600.25000000000045,1294.2,583.34745172589066,396.96159735000003,1108.5,886.04323799999997,5237.7516868258936,6123.7949248258919,null,null,-1790.375679717301,-2217.9510587173008]
[null,null,"J",0.31161483621358926,-0.2306266023124347,2.3890302516256887,2.6537997587454627,3.6214635934798296,2.8972247636474506,-1.6363575726679735,null,null,-7.7425551994414201,-16.706422587551753,-6.4618106034605898,-8.9275963834914407,1.6920543950346909,-10.125165641871446,-26.225956726035378,null,null,80.825396942094173,97.239829456578235,52.907913842791956,78.470505457951504,107.9937756444571,125.73773272832864,95.323207167257323,null,null,-1.561273465840711,0,-3.1364566889171747E-2,1.102406260429049,3.6743501825004321,14.311379860760882,0,null,null,8565.13666715,3103.77,16991.8,7389,2574.6999999999998,7142.4894966384772,5909.7032492800008,null,null,67.931640810969469,104.42767107690941,125.99771610897963,117.82251518300515,134.08598431692312,87.429804264629524,277.10863568251989,null,null,3.6270826361703774,4.5010071221079926,2.2375148419163153,5.4417861339600613,5.8480415299275483,2.3297763781861325,3.7985148581990318,null,null,2.9190898199999999,4.26,3.05,3.65,5.7943498338608004,1.5757000000000001,2.1,null,null,11.830880435095962,7.4778725657360461,10.021551843158893,13.858425381903658,11.655116558068565,7.9088384113811534,10.111823156626222,null,null,7.2081683200000004,7.23,6.21,7.97,10.058727307113299,4.1985000000000001,8.31,null,null,0.75,"n.a.",1.75,4.5,4.5,3.5,"n.a.",null,null,-0.14256330020202546,5.580481628732481,7.0593657906853791,7.9701255998888998,-7.6598862791007694,13.173957949804716,1.2474500594518823,null,null,1014.9446313091639,424.17333333333335,921.16666666666686,353.13511315466354,450.02927815499999,871.90833333333342,873.30929800000001,4035.3573559521606,4908.6666539521621,null,null,1458.4001128341667,882.61000000000013,1573.2416666666666,792.38770860716306,520.25837544916669,1540.9666666666662,1468.6120890000002,6767.8645302238292,8236.4766192238294,null,null,-2732.5071742716682,-3327.8099652716683,null,null,995.84039347000009,293.65999999999985,763.3,377.43244203337372,393.74587250000002,814,789.775577,3637.9787080033711,4427.7542850033715,null,null,1517.4554149099999,770.01000000000022,1296.3,686.24049472116644,481.03032064000001,1225.3,1206.2860780000001,5976.3362302711612,7182.6223082711658,null,null,-2338.3575222677955,-2754.8680232677943]
[null,null,"J",-0.16512011017254632,-6.1945569849340534E-2,2.8783592644978735,3.0977443609022588,3.4448288508614771,4.3484859983304061,-2.24999310693007,null,null,-7.5384474221959428,-12.563684635792752,-4.2557283194934632,-8.4014049678142442,1.3904238587823479,-9.0940777620177506,-26.333047560850382,null,null,81.711593730211675,97.818719204777224,52.939386990892757,78.010562035943522,108.87722409284954,124.92342050315546,96.194517287107004,null,null,0.89105269728167324,0,0.31874133748567923,0.73304121240534836,3.942591592889523,14.671704760685705,0,null,null,8340.1769999999997,3578.9,17398.099999999999,7513.7,2610.9,6689.1783358598996,6572.3126470500001,null,null,67.325528084427617,114.4577003177657,127.49987497643242,112.66959734409849,134.97307699907367,80.647935690621466,315.41021606214025,null,null,3.8715127563010947,4.2445748959563225,1.6734721935794368,4.9392502917152816,5.1846698887233318,1.5983116436363816,4.3682790852394247,null,null,2.79259426,4.18,2.99,3.64,4.9913844318855096,1.1791,2.02,null,null,10.187883294292332,7.0463104470090947,9.3135629339382753,13.455440490081676,10.556829137891141,6.5942633818182008,10.792831061864632,null,null,7.1565871799999998,6.98,6.18,7.99,9.6822137211558505,4,8.3000000000000007,null,null,0.75,"n.a.",1.75,4.5,4.5,3.5,"n.a.",null,null,1.4508241928370413,5.290682378834588,6.4960332717034053,6.8629365371313478,-5.5598061915138057,9.9251414146743997,1.8910484289788698,null,null,1018.9056476391643,417.6733333333334,920.45000000000016,350.9412256863713,447.96823370416672,863.86666666666667,847.32050724999999,4019.805107029702,4867.1256142797029,null,null,1459.3157613433334,867.89083333333338,1551.3749999999998,775.70478660232891,519.30562296416667,1497.1083333333333,1397.873921666667,6670.7003375764953,8068.5742592431607,null,null,-2650.8952305467928,-3201.4486449634592,null,null,1036.3386877200001,465.13000000000011,909.5,331.45236717163226,479.64190194000003,889.9,740.70451099999991,4111.9629568316304,4852.6674678316303,null,null,1440.6385682700002,860.40999999999985,1441.6000000000001,687.2269014605854,536.02646673000004,1291.5,1096.4599920000001,6257.401936460592,7353.8619284605884,null,null,-2145.4389796289506,-2501.1944606289508]
[null,null,"A",-7.0774520073274394E-2,-0.30234406357643451,4.1874732486802717,3.2161106101592991,2.8702854223144829,4.8026017243987225,-1.9637061867661447,null,null,-7.0663261574383656,-8.6640355217441627,-1.7441410376575162,-7.8937597323214881,1.2313033689594282,-7.7969546683409181,-25.933837934440895,null,null,83.451608998163437,98.717956065146495,52.960577142269862,77.679584943719448,110.20902639550812,124.53810058446496,96.48179164816915,null,null,4.2593851512293082,0,0.47132459590482684,-2.5745799313873184E-3,4.014248413637544,14.294667531027885,0,null,null,7934.06931136,3801.75,17623,7510.3814209851453,2686.2,7018.555595239256,6781.2506160100002,null,null,65.734566994870178,120.20549471987465,122.74499794825462,109.70975021424178,129.88282961968528,81.966550087864817,317.95522050201856,null,null,3.7234097454509785,4.4357553064201722,0.35755426223895553,4.7123354688410055,6.2532904128650966,0.30237634408602848,3.9920992874557606,null,null,2.8151272000000001,4.12,2.8,3.61,4.7185675631812698,1.3156000000000001,1.95,null,null,10.223637290299518,7.3144588958307173,7.959235878123927,13.267201514269079,12.706751743613344,5.178304914483661,10.448891719918683,null,null,6.8480416100000001,6.99,6.16,7.98,11.597661468183,3.911,8.2799999999999994,null,null,0.75,"n.a.",1.75,3.75,4.25,3.5,"n.a.",null,null,1.9689675511775473,4.2987084406272968,6.2586133975221392,5.8038577075112174,-5.4176795058657357,8.6086600523355159,-1.9347165705324465,null,null,1019.9580325974981,413.07666666666665,915.4666666666667,349.44882029687716,445.71692332416666,861.61666666666667,849.23184508333327,4005.2837762185422,4854.5156213018763,null,null,1470.6054178083334,851.70916666666687,1526.925,763.69182801102841,513.6072241508333,1460.7249999999997,1362.2247015833336,6587.2636366368633,7949.4883382201951,null,null,-2581.9798604183193,-3094.9727169183188,null,null,1034.6087420399999,431.48,898.3,309.46765891901327,463.08431222000002,893.09999999999991,947.83105399999999,4030.0407131790125,4977.8717671790146,null,null,1504.1867604600002,788.74999999999909,1443.8,738.86907796867922,496.62569086999997,1341.1000000000001,1329.4413590000001,6313.3315292986736,7642.7728882986776,null,null,-2283.2908161196683,-2664.9011211196703]
[null,null,"S",0.29896291812436576,-0.38986000115775277,4.9655568312284633,3.39135654261705,2.8060939220446968,5.0331525015069349,-1.8585711751206504,null,null,-6.3966791493785493,-5.1661903777527902,0.1365947031975534,-2.6963194807974449,1.2339941630591327,-6.3681502620969832,-25.007215773481466,null,null,84.138954762798633,99.088493392553843,53.322138869366199,77.35859828813696,110.66488677316606,123.93969164751809,96.55851035875726,null,null,3.5345342731993226,0,0.66408469289982952,-0.49910803321966113,3.7982212343090342,13.215737514940566,0,null,null,8238.1380160200006,3809.72,17611.2,7519.8230610380815,2755.9,10551.95133366878,9042.9972048700001,null,null,69.790738408972317,115.44529097078747,118.40311414580762,107.67879583632694,129.0053457885916,114.33594366945346,419.0792944265433,null,null,3.1416447291163676,4.3367673222906449,-0.43400601585998549,4.4478026124818548,4.8577257339868423,-0.46257061692970169,3.8806966851038527,null,null,3.0105601200000001,3.93,2.8,3.56,4.0987836287339796,1.121,1.95,null,null,8.8368279033062826,6.8666302459139716,7.1589608969100462,13.046200290275758,11.711612294478662,4.6814242754662816,10.310193458845935,null,null,6.34995391,6.45,6.15,7.92,9.8166302978062205,4.0023,8.26,null,null,0.75,"n.a.",1.75,3.75,4.25,3,"n.a.",null,null,2.4228962301462209,4.5422744402441095,5.5549487035778222,5.2699382025807706,-4.3289853340326196,7.5010146080240592,-2.4168023266229688,null,null,1029.8181037149986,414.97749999999996,916.9083333333333,353.02949011755942,446.73846067166664,863.65833333333342,839.9166709166667,4025.1302211708917,4865.0468920875592,null,null,1479.0380132749997,847.47083333333342,1519.9666666666669,756.6461429176062,514.38724557000012,1440.9749999999997,1317.9144805000001,6558.4839017626045,7876.398382262606,null,null,-2533.3536805917133,-3011.3514901750464,null,null,1104.09262442,484.98,894.2,347.40085376434871,461.14816903999997,925.7,943.19591000000014,4217.5216472243555,5160.7175572243577,null,null,1432.67501902,859.14000000000033,1495,744.40692082737735,534.06011704000002,1436,1142.6273470000001,6501.2820568873794,7643.9094038873736,null,null,-2283.7604096630239,-2483.1918466630232]
[null,null,"O",0.45245635372738391,-0.20823273737451958,5.3445450010689086,3.6526946107784397,2.6898395334267886,5.0250240673017377,-1.9488718188039107,null,null,-5.6896098913260955,-3.4149860024968781,1.1273071645278088,-2.9552375342975026,1.4049192424353845,-4.7678751263014139,-13.42906848536466,null,null,84.847522270378576,98.909558710323594,52.93138290804,76.74399471467855,110.53675831237072,123.15825711591989,96.738197165941997,null,null,3.8611206953345039,0,0.3249689890427952,-0.96194007449827612,3.4565739361123922,10.868267911375314,0,null,null,7809.1955475900004,3689.85,18314.8,7760.4,2781,9873.7272429092845,8192.7798642800008,null,null,69.502492397224714,108.37919810231766,124.10487163940826,105.22324622943178,128.38012712053353,105.6166927526556,372.35248332376199,null,null,2.8844925763381788,4.1268261404133897,-0.8396685381857536,4.0493934142114414,5.684779750242881,-0.63396706948152315,3.9355710539840092,null,null,2.9459493800000001,3.91,2.81,3.46,3.8245428233254701,0.95550000000000002,1.91,null,null,9.1703937670119497,6.9527105568888565,6.6310552661841307,12.732235701906417,11.293255744121831,4.9257555317322685,10.411784145857215,null,null,6.5543736800000003,6.73,6.12,7.79,10.7827456663529,4.4279000000000002,8.26,null,null,0.75,"n.a.",1.75,3.75,4.25,3,"n.a.",null,null,2.3329165810886954,3.5182016551443374,6.5324076947695042,4.4605610881416125,-4.4689220225589299,6.6984731770888262,-2.8592727947715946,null,null,1039.7703303141659,416.27666666666681,920,359.75089679789397,447.9463852975,864.54166666666663,820.45009824916679,4048.2859457428931,4868.7360439920603,null,null,1483.8115028058335,840.52250000000004,1503.4833333333333,750.17230290211728,511.55682141666665,1429.6666666666667,1261.5024991666667,6519.2131271246153,7780.7156262912822,null,null,-2470.9271813817236,-2911.9795822992223,null,null,1155.3825001600001,508.51000000000022,912.90000000000009,340.71326211047165,497.13997233000009,970.10000000000014,1005.52112799,4384.7457346004667,5390.2668625904626,null,null,1584.0443491000001,966.68000000000029,1670.8999999999999,848.147490972833,566.82082198000001,1591.2,1286.513224,7227.7926620528233,8514.3058860528254,null,null,-2843.0469274523603,-3124.0390234623592]
[null,null,"N",0.24451285840510067,-0.17613054069237558,5.4629301170628013,3.8208955223880632,2.6430348771900971,5.2585709374322578,-2.0365931996476068,null,null,-4.8764882145348336,-3.3525853426279895,1.610521427387458,-2.907407991285889,1.6993681719781617,-2.744705216501238,-11.468279330122057,null,null,85.336602006423107,98.699265017020721,52.635981823715142,75.991334596230573,109.74599249750149,122.25372081531242,96.780106000878234,null,null,5.371280549899633,0,1.0892818105162339,-1.4273429718816626,3.1823727884680171,10.470925362272137,0,null,null,7457.5999831099998,3473.22,18249.400000000001,8195,2793.1,9903.7999999999993,7748.7730907100004,null,null,65.595948682956703,105.70683353065242,124.32583120038494,106.05372421919141,121.32006319428473,101.01588705513271,347.21022141760687,null,null,3.1477903893373296,4.0833225187228157,-0.98890682811975672,3.7267107533064947,3.8177046165265272,-1.5392294641690691,4.0490559987684485,null,null,2.4621751600000001,3.9,2.8,3.34,3.9115694840639899,0.8125,1.93,null,null,9.261157231327191,6.7780687899005292,6.5018768920282408,12.5399654974123,11.086509498985784,4.3382016513240114,10.510652432322891,null,null,6.3058676,6.59,6.11,7.77,10.321818284015899,3.8077999999999999,8.26,null,null,0.75,"n.a.",1.75,3,4.25,3,"n.a.",null,null,3.7876748162178009,3.7184550200823008,5.921342613024061,3.5626337433729116,-3.990477816327731,5.5998727605238496,-2.9356035679303671,null,null,1052.2253658858328,414.80333333333334,917.29166666666652,357.38478929893716,444.55946318583341,857.80000000000007,812.20686866583344,4044.0646183706035,4856.2714870364371,null,null,1493.4304711141669,838.71833333333359,1497.5666666666666,741.58345906484044,510.87726408166668,1410.4583333333333,1242.7984380833334,6492.6345275940084,7735.4329656773407,null,null,-2448.5699092234031,-2879.1614786409027,null,null,1172.39564698,444.02999999999975,884.3,272.06923413583741,403.54994339999996,913.90000000000009,900.07124499999998,4090.2448245158375,4990.3160695158367,null,null,1569.8862441599999,959.5,1682.8999999999999,749.30331295987583,533.44091125999989,1517.9,1322.2132670000001,7012.930468379891,8335.1437353798974,null,null,-2922.6856438640352,-3344.8276658640352]
[null,null,"D",0.89244852204476821,-8.5308433546244525E-2,4.8236953455571046,4.0130796670630211,2.9305695911470475,5.5536478118097348,-1.5762906309751652,null,null,-4.0502309630689197,-2.5366808593170798,2.2957911580036248,-2.8338372945712047,2.1370598947172947,7.8159585863760324E-3,-9.4278335445372399,null,null,84.824457659091891,98.599162196442052,52.780236386268527,75.181324911419281,108.61057956146279,121.33737823178272,96.573131609220525,null,null,6.6928913610353886,0,1.46274237793748,-2.0155536956402598,3.2244366975818917,9.9057380384201235,0,null,null,7224.6663515199998,2915.2,18468.2,8148.8,3073.5,10751.6724920383,8672.3315890199992,null,null,63.927514840187861,101.53051540180165,114.63593455606562,97.308673779973972,130.77506414980675,98.781919430615929,374.0109298069558,null,null,2.5844862684499996,3.9787026024118259,-0.45189720129169458,3.3235438696770498,3.9512784325713119,-1.5144410874930307,3.5421248125325624,null,null,2.71850418,3.89,2.66,3.32,3.4236455304849698,0.8821,1.91,null,null,8.3088589193308771,6.5809225154570736,7.1608853606028173,12.178199485567305,10.584955070117875,4.0710598612864644,10.071716826354001,null,null,6.8315155699999996,6.49,6.07,7.66,10.4107123181848,4.8220999999999998,8.3366666666666678,null,null,0.75,"n.a.",1.75,3,4,3,"n.a.",null,null,3.9446780197889275,2.6729038875000111,5.9116243999646656,2.9493678033488679,-4.0777602816925551,5.1375665842864793,-3.2695156978307827,null,null,1079.2094685299999,419.0266666666667,925.10833333333323,354.90478203722859,443.42499999999995,858.49166666666667,804.73052408249987,4080.165917233895,4884.8964413163949,null,null,1520.3973215608332,853.99416666666673,1517.2333333333333,746.47661464324995,521.28828274749992,1425.4166666666667,1228.2934444166669,6584.8063856182498,7813.0998300349165,null,null,-2504.6404683843548,-2928.2033887185212,null,null,1237.7001660999999,499.19000000000051,1084.3,340.82004837190686,426.30342842999926,964.7,872.85300000000007,4553.0136429019039,5425.8666429019067,null,null,1642.4484420899998,1059.6599999999999,1780.6,930.10162570178397,655.99761498999942,1768.3999999999999,1445.759002,7837.20768278178,9282.9666847817716,null,null,-3284.194039879887,-3857.1000418798867]
[null,2021,"E",0.95912353093986868,0.30562937587131012,5.2382298883076457,4.1814946619217146,3.1825074223787233,6.2270483901758453,-1.4108520767563284,null,null,-3.409860806590491,-0.9177325382137167,3.7448331633918119,-2.4008339762600883,2.8357740916629512,3.6957285377556626,-7.5520498226615089,null,null,85.805950237840023,98.755054808269819,52.840505350086886,75.037307312153587,109.06774668219822,120.67031353201347,96.680418987276227,null,null,7.3524171652028736,0,1.2731614235216773,-2.2441338517772746,3.131474721482451,9.4780144678620868,0,null,null,7265.9578536099998,2770.23,18253.3,8130.6443762306944,3201.4100342933903,12522.991938799278,9676.5894383899995,null,null,64.181469337665959,100.55697404538699,115.86324151736906,97.300582963663587,134.88068270601175,117.26468396359171,425.64734578618851,null,null,2.566262838312114,3.5933881742790077,-0.87252502183112468,2.9246675226878587,2.9825570590530295,-2.194119506752104,3.3582317592743407,null,null,2.4548119800000001,3.91,2.61,3.27,3.5288733712812501,1.3150999999999999,1.9,null,null,8.4638676725847581,6.1754964927409715,6.7482797071270264,11.958462852263015,9.7760995948492972,3.2813220951232949,9.8701046532345096,null,null,5.87580934,6.5,6.06,7.68,9.7496510662057201,3.4941,8.32,null,null,0.75,"n.a.",1.75,3,3.75,3,"n.a.",null,null,3.6684535170541155,2.0931913855708251,6.122606925053975,2.5825531365680998,-4.3862924942772992,4.2222063751522709,-3.2929504077583882,null,null,1092.4617862208331,418.13083333333338,924.62499999999989,350.44775828196316,442.8302591791666,852.30000000000007,800.09843608250003,4080.7956370152965,4880.8940730977965,null,null,1526.9773723433336,861.37833333333322,1514.4833333333329,742.74787053107468,526.64378629999987,1418.2666666666667,1207.0255405833334,6590.4973625077409,7797.522903091075,null,null,-2509.7017254924453,-2916.6288299932785,null,null,1079.9136016299999,499.13,1004,358.55620509155813,486.13217741,789.3,814.67000000000007,4217.0319841315586,5031.7019841315587,null,null,1676.45684893,1056.1500000000001,1703.3,823.0425353960959,580.63906376,1498.9,1295.8699999999999,7338.4884480860946,8634.3584480860954,null,null,-3121.4564639545379,-3602.6564639545377]
[null,null,"F",0.4142856917048387,1.0584687337529035,5.9975867698204404,3.8665879574970385,3.7730623705781703,7.0877017403547349,-0.58560851989096674,null,null,-2.8110794229452121,2.5710283264914362,6.2724588403130044,-1.3586194006602377,3.848661279587863,7.9584308295703998,-6.0455473123392629,null,null,86.390842764569072,98.687326417018411,52.632858196943445,75.256246108623998,108.82853471283984,120.03935339827895,96.645111051113545,null,null,7.0131273990590053,0,1.2253411081163275,-2.4128728707143532,2.8807139036670306,8.5431577051112235,0,null,null,7296.84548283,2522.9699999999998,18374.400000000001,8242.7006274638479,3150.3164686291989,11963.162508328376,9062.67691457,null,null,64.345849995515664,98.30498832638736,115.52848228253114,99.93181579575905,136.94033397806629,116.10364164350115,398.88264285914238,null,null,3.0231896660755115,2.8612458732826052,-1.6109675907325685,3.0167661267405612,2.7239891877639422,-2.693588239804146,2.490191292260024,null,null,2.5480190399999998,3.95,2.6,3.21,3.5857730635233498,0.94620000000000004,1.89,null,null,10.074473565797478,5.3647470955953036,5.9646765769385164,12.220880932082988,10.542903596274284,2.5071957059598504,8.9278910102938251,null,null,5.8058735600000002,6.48,6.04,7.64,8.8217755071920294,3.7345999999999999,8.2899999999999991,null,null,0.75,"n.a.",1.75,3,3.75,3,"n.a.",null,null,3.5514323895042388,1.8119634277849572,6.3328255425260327,2.9604159905775473,-3.703895100710064,4.5338991521331362,-3.2088581193290722,null,null,1095.2668618608332,420.29,924.55833333333339,350.86767490612982,446.88460864166655,852.99166666666667,793.92520983250006,4090.8591454086295,4884.7843552411305,null,null,1529.883220139167,869.39333333333332,1533.3666666666668,753.81030355720316,527.90531170833322,1424.3916666666667,1222.4600177500004,6638.7505020713697,7861.2105198213685,null,null,-2547.8913566627402,-2976.4261645802399,null,null,1227.5459445500001,531.21999999999991,1031.0999999999999,406.31263907999994,525.68310871000006,961.50000000000011,801.17000000000007,4683.3616923399995,5484.5316923399996,null,null,1664.91246211,984.55,1759.9,927.15879169688867,575.64646934000007,1608.4,1460.54,7520.5677231468908,8981.107723146888,null,null,-2837.2060308068876,-3496.5760308068875]
[null,null,"M",0.47273206790342198,1.7694173897368006,5.8416331143603939,3.9434961742201229,4.1108997892738905,8.2965106026717894,0.28839027278834267,null,null,8.6369394412562617,11.023045308574515,9.5609129656770886,12.24166952653122,5.1505408374885686,12.050873075556252,-4.9460331840208065,null,null,86.976831965038883,98.612518247693373,52.69045699473714,75.362696179054822,109.39399304060704,118.77702275310335,96.911717408343279,null,null,7.0395354823751717,0,0.39551609375060859,-2.776316179079191,2.7303360306820728,6.5558402832781955,0,null,null,7169.0402848000003,2447.37,18699.8,8252.9434180912322,3227.8067002013695,12174.180959732435,7891.2991930999997,null,null,65.042750181692668,100.44196813511938,122.48858836590802,99.625670246197089,134.01606909466858,110.61318433100946,339.61466395777541,null,null,2.9134949073726943,2.0640607602368353,-1.5037873731980844,2.6807870894677306,2.576036143450648,-4.4974769506115795,1.606975366568369,null,null,2.55742899,3.87,2.61,3.21,3.4407022277322801,0.75700000000000001,1.9,null,null,9.0697997601357887,4.4714637530411121,6.120811532301115,11.772265005662522,8.0876489310919233,0.65144240881091342,7.9985427080767426,null,null,6.0726114400000002,6.32,5.99,7.61,8.5509152280162102,3.5796000000000001,8.31,null,null,0.75,"n.a.",1.75,3,3.5,3,"n.a.",null,null,2.7957914923438132,1.2878825412196315,4.7633679965661146,3.1190007356207916,-3.5056394304158744,5.4199126963489608,-1.7740946210972441,null,null,1114.5411261183333,431.67416666666674,945.14166666666677,356.56329536279651,459.03706070166658,876.3416666666667,820.28764133250013,4183.2989821827969,5003.5866235152971,null,null,1555.4548870116669,905.77833333333319,1590.2416666666666,782.7066388526041,543.3605273899999,1455.7083333333333,1270.7256080833333,6833.2503865876051,8103.9759946709355,null,null,-2649.9514044048078,-3100.3893711556411,null,null,1475.82713233,574.18000000000006,1250.5999999999999,473.40399113000018,656.28099012999996,1154.5,1169.45,5584.7921135900033,6754.242113590004,null,null,1980.9206177799999,1318.0599999999997,2151.5,1068.3337372231497,724.76561616000015,1880.9999999999998,1776.8000000000002,9124.5799711631498,10901.379971163151,null,null,-3539.787857573152,-4147.1378575731524]
[null,null,"A",1.2098355534775576,2.7946132328563618,5.2040959461354941,3.9577836411609493,4.4030833590771996,9.6452641918615676,1.7052889858233271,null,null,9.8085002331905038,21.624845168665743,12.555548441651013,12.168986097037267,6.5515534711053123,15.063848061462695,28.878185445228716,null,null,87.764533086773298,98.789162212409607,53.041974894617141,75.634011777376827,110.36470911340773,118.47021951856603,97.586903828990543,null,null,7.8255294121806509,0,8.984749330695227E-2,-3.1929575805388217,2.7080140708263993,4.9443652663852111,0,null,null,7098.4088019800001,2496.64,18812.2,8482.9648848130546,3354.4646831551927,12245.922034553323,8445.1795811499996,null,null,64.073392595439628,105.00125329937366,123.79530225687836,103.39700172594415,136.88639767633455,105.70167148004226,380.41484733647746,null,null,2.0651791746248169,0.96832580603112928,-0.93541599999999203,2.4116304692828807,2.0246923994181452,-5.8580406907700446,0.14228464971653954,null,null,2.4461444499999998,3.79,2.5499999999999998,3.0716117347402827,3.5528119037457899,0.7177,1.85,null,null,9.0520091613839728,3.3419910432092386,6.7258826666666751,11.901192893401014,8.4606371587910196,0.34022062958020677,6.4644730669740484,null,null,5.7733076900000002,6.23,5.95,7.62,9.0261059479174293,4.2447999999999997,8.2799999999999994,null,null,0.75,"n.a.",1.75,3,3.5,3,"n.a.",null,null,4.6455501276852385,1.8846033625514513,4.185759472521533,2.3218278325401798,-1.5201908734486014,4.9930397953873662,-1.9603617977768661,null,null,1148.1718244599999,457.96750000000003,963.7166666666667,364.69634109159188,475.30438763666666,914.4083333333333,871.18085699916685,4324.2650531882582,5195.4459101874263,null,null,1600.2691392199997,953.66666666666652,1649.9416666666666,815.40049805900082,576.67916562583321,1516.8999999999999,1305.491958916667,7112.8571362381672,8418.349095154832,null,null,-2788.5920830499094,-3222.9031849674088,null,null,1308.35802853,543.45000000000005,1049.9000000000001,457.26822471237176,562.13436058999991,1012.0000000000001,1010.46,4933.1106138323703,5943.5706138323694,null,null,1935.11230606,1220.8399999999997,2079.3000000000002,998.62763605368525,838.13529739000001,1934.6,1417.35,9006.6152395036843,10423.965239503683,null,null,-4073.504625671314,-4480.3946256713134]
[null,null,"M",1.3418059270051181,2.590073848836751,5.1732586629331569,4.8391856004721259,3.9732654377111127,10.480820683305565,1.9240394409096875,null,null,10.728981768570591,25.240665488083636,14.033387081935938,12.344305151676908,7.7083410750577199,16.319102401906612,29.482978193126723,null,null,88.808670552998862,99.551936160052378,53.369532576152025,76.041185088875991,111.3485105607496,118.64057646802357,98.166367168933832,null,null,8.04753591897577,0,0.21251023812344405,-3.350983242494777,2.3942536168295332,2.6783341318556166,0,null,null,6831.1434277199996,2985.16,18929.7,8540.1575189652613,3509.1089193086445,12417.540378595846,8286.6627843499991,null,null,61.321828324155661,112.62438479633433,124.65009700390961,103.27167460387416,139.22573194552194,103.0453565707417,376.81940202434487,null,null,1.8335908423946079,1.1988744183725868,-0.93489416932908276,1.2598480157613188,1.377260865608344,-6.404750290178467,-9.2264240531996028E-2,null,null,2.2766643000000002,3.82,2.48,3.02,4.1936545423834497,0.74509999999999998,1.83,null,null,7.6361886116070483,3.7819703267590952,6.7286508253461017,10.950880945679698,7.1089190895081913,-0.42217344188867334,6.2556003412588126,null,null,6.2203406799999996,6.47,5.92,7.65,8.7956001158216495,3.9443000000000001,8.3000000000000007,null,null,0.75,"n.a.",1.75,3,3.5,3,"n.a.",null,null,3.8331539022443462,2.4372015796903623,4.5918980371282059,2.6909430949168422,-0.34291859300399352,4.26385517408856,-1.2078558840359688,null,null,1189.7094538791666,485.64333333333343,980.86666666666679,374.64890825726928,493.82618167083336,945.88333333333333,906.12103541583349,4470.5778771406031,5376.6989125564369,null,null,1658.9238031875,1001.2083333333331,1722.0833333333333,859.14599023610265,603.54625917999999,1587.3583333333333,1372.8791890833336,7432.2660526036025,8805.1452416869361,null,null,-2961.6881754630008,-3428.4463291305001,null,null,1448.5099786200001,552.75999999999976,1088,480.88997256671712,571.06994335000002,1061.9000000000001,877.75,5203.1298945367162,6080.8798945367162,null,null,1958.34860536,1170.75,2159.9,1108.2933578511131,719.36671999999999,1954.0000000000002,1694.69,9070.6586832111134,10765.348683211116,null,null,-3867.5287886743936,-4684.4687886743941]
[null,null,"J",1.9080336324936071,2.5874516893015422,3.9072207648764299,4.6709753231492463,3.9422249165742156,9.319367673985937,1.5800761799955862,null,null,11.349346013140362,20.845388982538715,13.30825838731352,12.168130517550766,8.3705381623841912,15.859937101301741,29.905736315421304,null,null,89.45136125427733,99.89766382589039,53.926829422018308,76.424419589673946,111.74894853100086,119.17019157026886,98.899819083896233,null,null,7.0143810725779669,0,0.49040411798859357,-3.2732525190331949,2.0543083325439309,-1.6908959864769879,0,null,null,7137.0566722599997,2604.3200000000002,18748.8,8645.3844918320228,3497.0349520029649,12611.563669947142,8901.2020722899997,null,null,63.907391286651659,104.6684679970468,127.12134755954769,100.94608775854907,142.49489779101418,101.64351524372567,406.68217130576403,null,null,1.2677767605305326,1.1527221811493551,0.23365001328727356,1.1168565815324065,0.72651917207399019,-5.6284332821384604,0.20665845892105622,null,null,2.31915878,3.77,2.4900000000000002,2.95,3.1856099506047801,0.45739999999999997,1.79,null,null,6.8012894277810974,3.804118580231231,8.0194419346266308,10.699264664608465,7.2902360119165079,4.8053997321614493E-2,6.5869560082424972,null,null,6.1583083199999997,6.49,5.89,7.57,8.9144126803582697,3.9887000000000001,8.2711111111111109,null,null,0.75,"n.a.",1.75,3,3.5,3,"n.a.",null,null,3.0248727057298641,3.156997192837685,5.6017401168971803,2.9947285515278921,1.3544150313482106,2.9145246616444354,-0.82322930129179461,null,null,1231.2055769125,507.42249999999996,1011.9333333333334,382.68280729309555,511.8707022983333,964.875,940.44973733250015,4609.9899198372632,5550.4396571697625,null,null,1741.9659159258333,1043.3308333333334,1793.625,897.31112661677992,627.40550371583322,1659.7416666666668,1408.7011825833335,7763.3800462584468,9172.0812288417801,null,null,-3153.390126421184,-3621.6415716720185,null,null,1493.79386987,555.01000000000022,1136.0999999999999,473.8392304632896,610.28012003000003,1041.9000000000001,1201.72,5310.9232203632928,6512.6432203632939,null,null,2513.9607677700001,1275.4800000000005,2154.8000000000002,1144.2221312892923,767.34125506999999,2093.9,1636.15,9949.7041541293002,11585.854154129302,null,null,-4638.7809337660037,-5073.210933766004]
[null,null,"J",1.439779728861988,3.4325980884013325,3.8152196329140109,4.2590431738622998,4.1162086857337572,7.8760412420828194,2.3723976671893023,null,null,11.845492103735456,15.256713146563392,10.942170994237872,11.990373200243525,8.4960446197053621,14.425081915651031,30.104050349305407,null,null,90.291390177398199,99.646688053900107,54.05980854286318,75.917092898662844,112.06281282619375,119.278834745631,99.006971218256325,null,null,6.3830961234917671,0,0.61397146432520111,-3.7054812580090406,1.705512940323187,-2.2433768725555336,0,null,null,7375.9128943599999,2877.28,19167.099999999999,8632.7698387484488,3530.8946672313718,12143.783081088359,8210.2170179200002,null,null,64.112711672115665,109.99424278034718,125.92439838530409,101.36798858458209,140.64441263530978,98.040795803997042,369.84180995235107,null,null,1.7352366850981917,0.37454527756091394,0.26468216130313083,1.2478119753777379,0.5055916917201444,-4.7059951251737306,-0.60797410373517402,null,null,2.2470648600000001,3.82,2.4500000000000002,2.88,3.40872484261121,0.46839999999999998,1.75,null,null,8.3191151476218668,2.8785914369606713,8.0188438617401587,11.251740346950207,6.8815912485649111,1.3329732360963094,5.7609301600844489,null,null,5.3915698399999998,6.41,5.8,7.56,9.0194777452240604,3.3791000000000002,8.27,null,null,0.75,"n.a.",1.75,3,3.5,3,"n.a.",null,null,2.6630696477096594,3.5738390128527309,7.2892172302613467,3.9790913897456148,2.1766163955549089,6.3884330421661639,-1.1325675683203751,null,null,1259.9157945099998,518.1450000000001,1035.875,394.72863043135726,523.84153542166666,978.69166666666661,969.14519474916654,4711.1976270296909,5680.3428217788578,null,null,1777.7586063883334,1084.0033333333331,1864.2749999999999,930.52704254739865,648.27329905833324,1726.9083333333335,1458.3528499166669,8031.7456146607319,9490.0984645774006,null,null,-3320.5479876310419,-3809.7556427985414,null,null,1380.8612988899999,593.80000000000018,1196.8000000000002,476.00224483077307,623.29189942000005,1055.6999999999998,1085.0500000000002,5326.4554431407669,6411.5054431407625,null,null,1870.1508538200001,1348.4799999999996,2289.4,1085.8178926280082,786.44001084000013,2097.5,1692.28,9477.788757287999,11170.068757288005,null,null,-4151.3333141472358,-4758.5633141472354]
[null,null,"A",1.7246570007465145,4.2967857990473171,3.6152002738788087,4.4845661036692004,4.9807367088258454,7.8970977155353586,2.3927172083280328,null,null,11.797494986583539,10.586419645051794,8.2415779407265095,11.936194786651992,8.2091100409072428,12.783022027326638,30.020259788846626,null,null,90.460529356104601,99.62138642675086,54.014902861789281,75.76212619228005,112.25013064863832,118.51213558406413,99.175327403425783,null,null,4.7667069061325753,0,0.40538589694067578,-3.1788916055419758,1.5902324863605193,-2.4464679836045256,0,null,null,7564.3115012799999,3228,19810.400000000001,8934.1514730713388,3949.9448551209839,13060.291905139489,7918.9460666800005,null,null,69.043835619868418,113.22442322363399,131.34465842737481,106.28451092979756,154.21186668069916,102.43363304680986,357.25171023697141,null,null,1.2537206188310139,-0.42837925984426461,0.43893147426154783,0.80914715719062591,0.60606801849400604,-4.3043768682080676,-0.69606240342068448,null,null,2.24950758,3.85,2.4500000000000002,2.81,3.4856582043880899,0.62439999999999996,1.68,null,null,8.0388237919479799,1.8727463037221654,8.2273640388554821,10.925473801560747,5.0661040629554908,1.87716104264871,5.735601620258457,null,null,6.3469527799999996,6.25,5.76,7.49,9.7023939731559494,3.1495000000000002,8.2655555555555562,null,null,0.75,"n.a.",1.75,3,3.5,3,"n.a.",null,null,2.3602009564714255,4.7042370264082312,7.6088716210261698,5.4348310991015003,2.5931773188287099,7.5575139747398046,2.2824369501600161,null,null,1286.3167850016669,524.90000000000009,1055.4750000000001,404.52240768101956,533.58916671833333,994.80833333333339,987.25427358249999,4799.6116927343537,5786.8659663168537,null,null,1832.52430093,1120.0200000000002,1937.075,966.07383678977146,673.99043557999994,1776.425,1498.5160700000004,8306.1085732997726,9804.6246432997723,null,null,-3506.4968805654189,-4017.758676982919,null,null,1351.42062794,512.54,1133.5,426.99298591496034,580.05588777999992,1086.5,1165.1399999999999,5091.009501634966,6256.1495016349654,null,null,2161.3750949599998,1220.9500000000007,2317.4,1165.4306088771534,805.23132912999984,1935.3,1811.4,9605.6870329671656,11417.08703296716,null,null,-4514.6775313321923,-5160.9375313321907]
[null,null,"S",2.0863576192586506,4.9697981104596254,3.6710418375717833,4.6153846153846088,5.8583449696002114,7.738118445163547,2.4859534590791688,null,null,11.324693098636395,6.9671241532039092,6.1962249974416865,6.4454869797613652,7.6822335188843267,11.322932920567983,29.656226519725813,null,null,90.748741876894982,99.485481292212498,54.002022856688988,76.549115517173547,112.1163694599955,117.47995817044462,99.294925286511926,null,null,4.474515752507755,0,-0.37712114500179311,-1.77403613156684,1.7614858769990274,-3.1004151255146239,0,null,null,7568.2822246100004,3292.46,19827.2,8972.910945499576,3955.3646186211736,12932.304087663511,7814.9459386500002,null,null,68.486626647419527,111.42980818271934,129.76907734513662,110.15286783874679,153.18566838064916,97.948468855489551,354.76527424274082,null,null,0.7970138221366565,-1.0096219384402365,0.355893175074181,0.46323529411765313,-3.6246428650714181E-2,-4.4197156158682711,-0.82543356482207408,null,null,2.15709091,3.91,2.5,2.79,3.3557399832027599,0.7288,1.64,null,null,7.3406943155817226,1.4672809867840473,8.1883600395647846,10.662500000000007,5.3500167153566629,1.4788466494775481,5.6339882159815264,null,null,6.5539841699999997,6.51,5.73,7.44,9.9463712344856106,2.9758,8.26,null,null,0.75,"n.a.",1.75,3,3.5,3,"n.a.",null,null,1.6704419050744601,4.888693854727566,8.2039761762431098,7.1131423746938038,2.2271248088619799,7.875555053803196,2.755604756630059,null,null,1310.1722333266669,531.91416666666657,1080,410.69595048685659,539.77831616749995,1006.8833333333333,1009.9812810824998,4879.4439999810229,5889.4252810635235,null,null,1878.0130095775,1152.4641666666664,2002.166666666667,1001.044579360861,693.21629540499998,1828.2583333333332,1564.6596244166667,8555.1630510100276,10119.822675426694,null,null,-3675.7190510290052,-4230.3973943631709,null,null,1390.35800432,569.14999999999964,1188.5,421.4833674343933,535.4179624300001,1070.5999999999999,1215.92,5175.5093341843894,6391.429334184395,null,null,1978.5395227899999,1248.4699999999993,2276.1,1164.0558316804527,764.77043494000009,2058,1936.35,9489.9357894104469,11426.285789410438,null,null,-4314.4264552260574,-5034.8564552260577]
[null,null,"O",2.5039199664197187,5.4946149327683402,2.9560982209294298,4.6504910456383666,6.4081125497371962,7.7152484604361167,2.9430143194188476,null,null,10.807422378148342,5.1239706049304923,5.1263603740397219,7.0220984294535631,7.1015217885540185,10.201155275717632,13.823160636911695,null,null,91.784913705237557,99.591416920283578,54.257709565128266,76.905442289119804,112.50447872396643,117.14703241763186,99.819421116044552,null,null,4.3899465461409903,0,-0.6457720221267812,-1.2720760353763012,1.9586060576953113,-3.5436094349972564,0,null,null,7313.0874763299998,3365,20663.2,8823.3398930864387,3937.097373981022,12504.833016093617,7414.9898952800004,null,null,68.712529034070997,110.35931221059376,136.75832190865319,108.86783509209434,151.54798447357751,96.098052986928479,324.32043509593365,null,null,0.28884752278476467,-1.4072897784540799,1.0430676741130254,0.2384211979022843,-1.3845619975448726,-4.7534109920535066,-1.2074780670031042,null,null,2.3495268500000002,4.01,2.48,2.73,3.4321593373075401,0.45040000000000002,1.7,null,null,6.3366808856755483,1.0952076254963217,8.9104986859395705,10.405597571073686,5.0145569259202221,1.8359067707022365,5.1498687502737654,null,null,5.5061810900000001,6.65,5.69,7.45,11.1133956378064,3.0238999999999998,8.2444444444444471,null,null,0.75,"n.a.",1.75,3,3.5,3,"n.a.",null,null,2.5302202943356278,5.9131467190817188,8.5821435147567904,9.3647131657322191,3.3609641265409218,7.676879108269663,2.6573105539406061,null,null,1335.9590899525001,536.73583333333329,1097.2583333333332,414.04721723925621,546.96130103749999,1013.6999999999998,1030.4061870833334,4944.6617748959225,5975.0679619792545,null,null,1937.2950616441669,1199.5683333333332,2071.9416666666671,1030.1936082029749,712.90335655499985,1890.6083333333336,1616.0726890833332,8842.5103597354755,10458.583048818808,null,null,-3897.8485848395521,-4483.5150868395531,null,null,1464.82477967,566.36999999999989,1120,380.92846313926628,583.33579077000002,1051.9000000000001,1250.6200000000001,5167.3590335792614,6417.9790335792568,null,null,2295.4289739000001,1531.9300000000003,2508.1999999999998,1197.9358370781997,803.06555577999984,2339.3999999999996,1903.47,10675.960366758198,12579.430366758199,null,null,-5508.6013331789291,-6161.4513331789276]
[null,null,"N",3.3456433387984887,6.2038288093420917,2.8859737638748681,4.9453709028177073,7.0957104828745923,8.2315459174342749,3.3604717326744367,null,null,10.245866191645945,4.4574425149074441,4.7588021078275453,7.0275859089347898,6.6290286579062316,9.3557097169288692,12.949655126708612,null,null,92.623789001681502,99.261676303731022,54.250426740574774,76.772981948851424,111.64418149350072,116.85913998189002,100.00908900086641,null,null,5.0198780547710253,0,-0.71840578534842547,-0.73417330121003477,2.0026933738785897,-3.1395235129724051,0,null,null,6780.7525001699996,3468.86,20701.8,8836.5575590047283,3908.5722108584887,12199.583225603856,8305.6168758399999,null,null,62.760635471517467,112.50846928790521,142.13381171430996,105.66551135094096,144.47922236583381,93.216138536470638,354.49980854731388,null,null,-0.43121637681187414,-2.0091825626859054,1.1022165555119707,-0.20522191780821494,-1.6073344782167467,-5.4105721837342626,-1.6838852450053559,null,null,2.09516575,4.07,2.5,2.7,3.8735258716324599,0.52639999999999998,1.62,null,null,5.8177313111217712,0.28828639615954799,8.877814829344846,9.9524438356164442,4.4743151697927841,1.5663216007826128,4.7015345284936076,null,null,5.3117073799999996,6.51,5.66,7.42,10.726282930288299,3.1564999999999999,8.2200000000000006,null,null,0.75,"n.a.",1.75,3,3.5,3.5,"n.a.",null,null,2.3747382246203541,6.0817503517516025,10.060535853077157,11.743865921575591,4.7495613830505823,8.8675527053852186,1.9194261750339336,null,null,1352.5230525325003,546.94999999999993,1116.2416666666666,423.87102493190764,560.89600811833327,1031.2916666666667,1055.4610833333334,5031.7734189160747,6087.2345022494073,null,null,2005.4965094133333,1237.9416666666664,2153.2249999999999,1076.9041887794458,735.52026877416665,1972.1333333333334,1664.4307501666665,9181.2209669669446,10845.651717133611,null,null,-4149.4475480508727,-4758.4172148842054,null,null,1371.1631979399999,566.59999999999945,1112.0999999999999,389.95492644765432,570.76642836999986,1125,1200.73,5135.5845527576603,6336.3145527576562,null,null,2388.30361739,1419.9799999999996,2658.3,1309.8302798775296,804.84385788999998,2496.1999999999998,1902.51,11077.45775515752,12979.96775515753,null,null,-5941.8732023998746,-6643.6532023998734]
[null,null,"D",3.2989079099999969,6.114806269433835,3.0678148546824562,5.315804515575886,7.2100675352489079,8.4956989865317922,2.6243501775598737,null,null,9.6901198182922297,3.3822250361264281,4.7183227600692756,6.8641641797660622,6.2752190056998529,8.4728939690218503,12.069930703101628,null,null,92.50891827582241,99.455486167188809,54.28841498476087,76.710940027131599,110.59644428884393,117.12477716684172,100.72502873857046,null,null,5.2511223742381885,0,-0.95617724424089112,0.3943735105238419,1.9936414206095272,-2.1557772937418793,0,null,null,6918.1401695499999,3342.39,20939.599999999999,8677.5568154226803,3954.5522422552585,13033.917427885361,8099.4653844300001,null,null,62.207809752554155,112.72253526636781,128.41652748442729,101.50945639897819,141.51188012674208,89.108528890081004,367.37174699793366,null,null,-0.38616856467403193,-1.766771608359303,0.89473629242819674,-0.6701791044776183,-2.0612254633373941,-4.6600916292169545,-0.99815509261452151,null,null,2.0823728199999998,4.24,2.5499999999999998,2.71,3.3592156358131802,1.0194000000000001,1.6,null,null,4.8141644288560634,0.22164082358967824,8.5886997389033919,9.2713487109904946,4.0891449365374566,0.66786150993704985,5.483737351518629,null,null,5.2552985200000002,6.35,5.61,7.33,9.5314289567687105,3.2469000000000001,8.2519999999999989,null,null,1.25,"n.a.",1.75,3,3.5,3.5,"n.a.",null,null,2.7916346650896706,5.718056270976235,10.793579442265111,12.114317386467178,5.1387202220816608,9.930841011511248,3.5549853475845161,null,null,1362.6865039325,552.39583333333326,1135.1416666666667,433.57049005560043,574.05304315833337,1038.5,1094.3641666666667,5096.3475371464338,6190.7117038131,null,null,2098.5967578641666,1256.3266666666666,2217.3166666666666,1101.8198114418858,742.93765347166664,2011.9333333333334,1735.5991666666666,9428.9308894443857,11164.530056111054,null,null,-4332.5833522979519,-4973.8183522979516,null,null,1359.6615829,564.54,1311.1,457.21362985622153,584.18784890999996,1051.1999999999998,1339.69,5327.9030616662203,6667.5930616662226,null,null,2759.6514235,1280.2800000000007,2549.6999999999998,1229.0890976510593,745.0062313599999,2246,2299.7800000000002,10809.726752511066,13109.506752511079,null,null,-5481.8236908448453,-6441.913690844849]
[null,2022,"E",3.4980842505554182,6.4834679779200473,2.86827433331093,6.1770566467406738,7.6802472614263015,8.7264240446282955,2.6262074628368794,null,null,9.0410723325710851,2.3217362395427399,4.6371739827588065,6.0187376970240631,5.864132734016696,7.453669337430564,11.327562543723364,null,null,92.978249265971357,99.613961805360773,54.540562645222742,76.955617366073,110.9916003975507,118.09000271828459,101.1866713424411,null,null,4.4126707734660968,0,-1.1467299534615565,1.3796300111447473,2.0203364289723411,-0.93853863507207236,0,null,null,6827.9,3404.24,20813.400000000001,8530.8922088004419,4001.5522422552585,12373.983627802445,10043.17956147,null,null,62.951673703965106,109.03204688431825,131.52014510244643,101.6435736425513,146.42519652869447,94.889466897633525,458.955595324809,null,null,-0.43293965661302924,-2.0786963647530925,1.051563928431513,-1.588908847184983,-1.5626916592988405,-4.3836850945009758,-1.0681554838064529,null,null,2.0526829100000001,4.2699999999999996,2.5099999999999998,2.7,3.4718775026209499,1.0726,1.53,null,null,5.8249926296700787,-0.58550683008307591,8.7993365547864819,8.4980160857908889,3.9496541968744214,0.8107283607615855,5.4506472327633775,null,null,5.2502232400000004,5.86,5.66,7.3,8.8433812456750207,3.4805000000000001,8.2200000000000006,null,null,1.75,"n.a.",1.75,3,3.5,4.5,"n.a.",null,null,3.0203663283297599,6.2016180971857571,10.690336908759912,14.419808933312005,5.7809462439708303,12.495266972166474,3.9395513753040845,null,null,1380.9189666708335,557.77249999999992,1152.6333333333334,443.7965653625169,587.44751835833347,1050.0333333333331,1109.1591666666666,5172.6022170583501,6281.7613837250165,null,null,2131.1736871200001,1284.1166666666668,2285.0833333333335,1124.3946162113264,765.71780217083335,2074.4083333333333,1791.9574999999998,9664.8944388354939,11456.851938835493,null,null,-4492.292221777142,-5175.0905551104761,null,null,1298.7031544900001,563.65,1213.9000000000001,481.2691087745556,646.86587981000002,927.7,992.21,5132.0881430745558,6124.2981430745558,null,null,2067.38,1389.63,2516.5,1093.9401926293847,854.00084815000002,2248.6000000000004,1972.17,10170.051040779384,12142.221040779385,null,null,-5037.9628977048287,-6017.9228977048288]
[null,null,"F",4.8973145631015589,6.6675496992549013,2.9797776884960414,6.3654447286160947,7.7533516680632744,8.9838302363273215,2.7355245639824521,null,null,8.2664079492557274,2.4291337180625217,4.5134915318545961,5.4740728220480399,5.281413034721866,6.4792415339472154,10.939503466708238,null,null,93.271790003004298,99.621201126253865,54.734584526395473,77.497664971044884,110.99902300517429,115.60020653299679,101.2935882010993,null,null,5.177843449803178,0,-0.54328470320078137,1.7241142991003759,2.0667892209608789,-2.5292471211013221,0,null,null,6567.8,3293.63,20835.900000000001,8483.3358332595963,4055.4391589354545,14849.759523177323,9756.13518931,null,null,59.023053540695301,110.89853731495052,130.38783554339534,101.12850286820559,152.01105351217436,110.63748807593656,409.15619409354196,null,null,-1.7610694523455095,-2.1445600894597852,0.94214838416022639,-1.8478226021907656,-1.7647245948585364,-4.1442205018243499,-1.1052891089053243,null,null,2.2550390299999998,4.38,2.57,2.69,3.1853769946177999,0.7198,1.6,null,null,4.4263586596445617,-0.42894929202456167,8.6815319591651043,8.0614106331819286,3.3822494556996117,0.88826916944784928,5.3216774207352051,null,null,5.5659750600000004,6.21,5.6,7.27,8.4118841752928404,3.1427,8.2027777777777757,null,null,1.75,"n.a.",1.75,3,3.5,5,"n.a.",13.462063433318042,null,3.3066435831062169,6.8391420391505475,11.170047697489128,15.043107568268365,6.2283996330927849,11.860180721076041,3.8950028847666518,null,null,1386.8158418100002,564.67999999999995,1173.075,450.63313600112014,595.32700152583323,1063.1833333333334,1140.6866666666667,5233.7143126702877,6374.4009793369523,null,null,2162.6834819441669,1315.3383333333334,2336.8416666666667,1133.4477863700683,782.24590269999999,2120.7999999999997,1836.4224999999997,9851.3571710142351,11687.779671014237,null,null,-4617.6428583439483,-5313.3786916772815,null,null,1298.30844622,614.11,1276.4000000000001,488.35148674323847,620.23690671999998,1119.3000000000002,1179.5,5416.7068396832383,6596.2068396832374,null,null,2043.03,1359.2100000000005,2381,1035.7968336017914,773.98367569000004,2165.1000000000004,1994.12,9758.1205092917917,11752.240509291792,null,null,-4341.4136696085534,-5156.0336696085533]
[null,null,"M",5.7931750632076655,6.6948663790853002,4.1711158569140414,6.9648924122310367,8.7414217514084633,9.054550222921586,3.1844502361354969,null,null,7.3348253889960207,2.9242874076604188,4.3462580918741809,4.9535399630849657,4.5891977525635461,5.8843743053560962,13.819464306606619,null,null,94.690814530801447,100.0463441763825,54.549689640244139,77.364040490182362,111.1985705543277,113.04983001196091,101.6657650972775,null,null,6.401860228069074,0,-0.36889732033297051,1.4404756271914667,2.1146465353966084,-4.1110481467489342,0,null,null,7054.1,3334.89,20763.5,8542.8247545658905,4128.7631367492959,14595.958530444243,8965.7074552899994,null,null,65.576614390819316,111.68452952470385,127.92763479456556,97.604442488158156,154.10021049009697,108.98723286508346,399.42440364568699,null,null,-2.6874843878246106,-2.0571433786579498,-0.2506605163687613,-2.4726733721545844,-2.160080866282343,-3.741384669031445,-1.4870944533056476,null,null,2.1119108899999999,4.5,2.59,2.7,3.72959967520636,0.78,1.65,null,null,3.4045673784158446,-0.52942226580830831,7.4674098276635279,7.4651667548967637,2.1498918735005303,1.1809225515541373,4.8639917019591863,null,null,6.0040512599999998,6.13,5.53,7.28,7.6793541497266604,3.9809000000000001,8.2033333333333331,null,null,2.5,"n.a.",1.75,3,3.5,5,"n.a.",13.305664219183083,null,null,7.2664713245291557,11.996974215163437,15.228476041434869,7.1159247369551037,12.71912037720373,2.3352069595624192,null,null,1409.0454299125001,576.0183333333332,1198.4583333333333,466.85998060641259,602.6412135733334,1073.7250000000001,1159.7733333333333,5326.7482907589138,6486.5216240922455,null,null,2252.6292637958336,1339.1200000000001,2396.2583333333337,1164.9362879921412,802.87290442416679,2175.0749999999998,1876.4733333333334,10130.891789545474,12007.365122878809,null,null,-4804.1434987865623,-5520.8434987865612,null,null,1742.58218956,710.24,1555.2,668.12612639351062,744.05153469999993,1281,1398.49,6701.1998506535128,8099.6898506535144,null,null,3060.27,1603.44,2864.5,1446.1957566880249,972.28963685000008,2532.3000000000002,2257.41,12478.995393538022,14736.405393538018,null,null,-5777.7955428845144,-6636.7155428845126]
[null,null,"A",7.1515617414220367,6.5459119390914964,4.6200000000000045,8.3474337281443773,9.9460482801112988,9.6431169897207187,3.6504575158393164,null,null,6.3099832742146758,2.8879177603354913,4.124574657902726,4.5500440356505472,3.9543501119334854,5.7664375670527859,7.2081314150444626,null,null,94.753724024248157,99.877934826177381,54.239856069570607,76.209293012982116,110.41078533135931,112.60273317875399,101.4185409257185,null,null,7.3936749319004065,0,-0.68461830256232536,1.3473465843026524,2.1089612096801802,-3.2559932953969231,0,null,null,6965.1,3419.2,20843.7,8524.3440168576908,4245.7095765260819,14410.348158283283,8721.9294583400006,null,null,null,107.75083061608504,125.89446008381005,98.655116087631924,157.9182225614671,105.55536626003492,375.79365555418104,null,null,-3.9678019361788666,-2.0422294009134654,-0.68820493213535139,-3.7817542946381999,-4.2644548712296269,-4.7352876607908483,-1.9492991775077892,null,null,null,4.37,2.5499999999999998,2.75,3.1131942149985998,0.73650000000000004,1.63,null,null,null,-0.59684311440782867,6.9871917415408094,6.0200468505986571,1.3564897800775433,0.67152688695297658,4.3882405172736494,null,null,null,5.91,5.52,7.39,8.2960772140241108,3.6259999999999999,8.198888888888888,null,null,4,"n.a.",1.75,3,4,5.5,"n.a.",null,null,null,7.6513312458993399,12.80209741853704,16.481564907617564,9.1753605745885647,12.783030864499922,2.8369878443728513,null,null,null,579.73583333333318,1221.2,475.19112633540232,610.81953331166676,null,1170.2,null,null,null,null,null,1357.6650000000002,2448.0666666666666,1178.8844826342129,803.99746428083336,null,1916.2283333333335,null,null,null,null,null,null,null,null,null,588.05999999999995,1322.8000000000002,557.24197346024823,660.27419744999997,null,1135.58,null,null,null,null,null,1443.38,2701,1166.0059717585443,851.63001566999992,null,1894.4099999999999]
[null,null,"M",8.714147294619103,7.4826684698767787,5.8173588924387518,9.0909090909090935,10.610153942576776,9.4725720799621911,4.2200679651442137,null,null,5.3810233157872869,null,3.835091024592264,4.2539492800066334,3.5376331974604636,6.1045139148101839,27.714292739652713,null,null,96.398707491079563,99.942247499037947,54.121297423401302,76.39828204603954,110.9387589149575,113.37290253396699,101.63638464632611,null,null,9.3614009719369022,0,-0.5524983920113784,1.5746737817152829,2.1306384661782971,-3.0509632535625704,0,null,null,6618.7,3649.33,20986.7,8460.0289939404411,4284.2910583158855,14248.935253775322,8250.77309117,null,null,null,117.03314923151224,127.57905880984701,100.80761356651506,163.55470158951778,112.58117017936233,365.20863394837198,null,null,-5.145739937101995,-2.7843265453681099,-1.8214014341426474,-4.4833333333333361,-5.0646575865610348,-3.9813370574490814,-2.5139764503132738,null,null,null,4.49,2.57,2.78,3.71827991886832,0.89849999999999997,1.6,null,null,null,-1.2678029763083913,5.7860460435275005,5.1966666666666645,0.69505538345770546,1.7134227180372803,3.8134464474053482,null,null,null,6.12,5.56,7.39,8.0532802725535095,3.8024,8.1944444444444446,null,null,4,"n.a.",2,3,4,5.5,"n.a.",null,null,null,null,13.513473018668654,null,null,13.26225184835077,null,null,null,null,590.69333333333316,null,484.88490622833433,null,null,1199.5708333333334,null,null,null,null,null,1388.9750000000004,null,1199.3214383522693,null,null,1957.2466666666667,null,null,null,null,null,null,null,null,null,684.25,null,597.21533128190083,null,null,1230.2,null,null,null,null,null,1546.4700000000003,null,1353.5368264677895,null,null,2186.91]
[null,null,"J",10.055605676445079,7.759211946994812,7.5538134467180278,10.216110019646358,10.37048519913351,9.4782888980982669,5.1984402104513991,null,null,null,null,null,null,null,null,null,null,null,98.258298038654374,100.42164100550301,54.309338978350063,76.45541988042693,111.98050270079131,113.46616591855241,101.83863866027031,null,null,11.60099405768853,0,-7.1251922182486065E-3,1.7875869823380821,null,-3.7722447458270802,0,null,null,6197.3,3483.47,19875.599999999999,8352.4907055666154,4278.3910583158859,14455.381276348726,null,null,null,null,111.99809407084989,119.79528102643344,null,null,112.13173050502519,null,null,null,null,-3.0709318370132155,-3.4157909691765864,null,null,-3.8834082454974492,null,null,null,null,4.45,2.64,null,3.3494404851629,0.95409999999999995,null,null,null,null,-1.4655006458024245,4.1153227500154586,null,null,2.0171224122412217,null,null,null,null,6.18,5.52,null,8.3077221405215003,4.3262,null,null,null,5.5,"n.a.",2.25,3,5,6.5,"n.a.",null,null,null,null,null,null,null,null,null,null,null,null,597.94333333333327,null,null,null,null,null,null,null,null,null,null,1415.3733333333337,null,null,null,null,null,null,null,null,null,null,null,null,null,null,642.00999999999976,null,null,null,null,null,null,null,null,null,null,1592.2600000000002]
[null,null,"J",null,null,null,null,null,null,null,null,null,null,null,null,null,null,null,null,null,null,null,null,null,null,null,null,null,null,null,null,null,null,null,null,null,null,null,null,null,null,null,null,null,null,null,null,null,null,null,null,null,null,null,null,null,null,null,null,null,null,null,null,null,null,null,null,null,null,null,null,null,null,null,null,null,null,null,null,null,null,null,null,null,null,null,null,null,null,null,null,null,null,7.5,"n.a.",2.25,3,5,7.25,"n.a."]
[null,null,"A"]
[null,null,"S"]
[null,null,"O"]
[null,null,"N"]
[null,null,"D"]

{"sheet":"Hoja1","index":15,"n_rows":0,"n_cols":0,"rows_kept":0,"cut":false,"hidden":false,"merged":[]}

{"sheet":"Hoja2","index":16,"n_rows":0,"n_cols":0,"rows_kept":0,"cut":false,"hidden":false,"merged":[]}